{"text_format":"1","workbook":"xlsx","n_sheets":49,"sheets":["Projects & Portfolios","Scores & Costs","Utility Functions","sdmtool_State_Vectors","0_WeightElicitation","Portfolio_A","Portfolio_B","Portfolio_C","Portfolio_D","Portfolio_E","bar_plot","bar_plot_mgmt_spatial","bar_plot_ep","Constraint_Scenario_1","Constraint_Scenario_2","Constraint_Scenario_3","Constraint_Scenario_4","constraint_barplot","Sens_Mgmt","Sens_Status","Sens_EP","Sens_Int","Sens_Rigor","Portfolio_A_Rigor","Portfolio_B_Rigor","Portfolio_C_Rigor","Portfolio_D_Rigor","Portfolio_E_Rigor","Portfolio_A_Int","Portfolio_B_Int","Portfolio_C_Int","Portfolio_D_Int","Portfolio_E_Int","Portfolio_A_ep","Portfolio_B_ep","Portfolio_C_ep","Portfolio_D_ep","Portfolio_E_ep","Portfolio_A_Mgmt","Portfolio_B_Mgmt","Portfolio_C_Mgmt","Portfolio_D_Mgmt","Portfolio_E_Mgmt","Portfolio_A_Status","Portfolio_B_Status","Portfolio_C_Status","Portfolio_D_Status","Portfolio_E_Status","Weights worksheet"],"not_rendered":{"charts":47,"images":0,"macros":1,"external_links":0,"defined_names":1170,"comments":0,"pivot_tables":0},"unopened":[],"bounds":{"document_bytes":16777216,"sheet_cells":100000,"rows_first":2000,"rows_last":500,"rows_between":2000,"halvings":0,"cell_chars":16384,"cell_head_chars":4096},"cells_cut":0,"cells_raw":0,"read":"whole","date_system":"1900"}

{"sheet":"Projects & Portfolios","index":0,"n_rows":41,"n_cols":10,"rows_kept":41,"cut":false,"hidden":false,"merged":[]}
["project","title","cost","states","taxa_groups","A_Marshbird_portfolio","B_Shorebird_portfolio","C_All_states_portfolio","D_No_proj_over_halfM","E_Texas_portfolio"]
[1,"NFWF-A",700000,"All","Shorebirds",0,1,0,0,0]
[2,"NFWF-B",5400000,"MS, AL","All",0,0,0,0,0]
[3,"NFWF-C",250000,"LA","All",0,0,0,1,0]
[4,"NFWF-D",150000,"LA","Shorebirds",0,1,0,0,0]
[5,"NFWF-E",220000,"TX,LA,MS","Shorebirds",0,1,0,1,0]
[6,"NFWF-F",110000,"AL,FL","Shorebirds",0,1,0,0,1]
[7,"Omnibus Monitoring In Response to Sea Level Rise",1000000,"All","All Minus Seabirds",0,0,1,0,0]
[8,"The effectiveness of island creation in Mobile Bay for island nesting species",5000000,"AL","wading, Seabirds",0,0,0,0,0]
[9,"the impact of wind development on migrating raptors in the GoM",25000,"All","Raptors",0,0,0,0,0]
[10,"Do hurricanes impact survival of migratory/wintering waterfowl? Does stress/movement to avoid hurricanes impact migratory/wintering waterfowl survival?",900000,"TX,AL","Waterfowl",0,0,0,0,1]
[11,"How does increase in salinity impact habitat quality/quantity, and does it impact the population trend of wetland associated birds?",1500000,"All","waterfowl, marshbirds, wadingbirds",0,0,1,0,0]
[12,"The impact of rice agriculture on nesting King Rails and wintering Yellow Rails in Louisiana",100000,"TX","marshbird, landbird",1,0,0,0,0]
[13,"How do hurricanes impact forage quality for nesting wadingbirds?",250000,"All","Wading",0,0,0,1,0]
[14,"How do hurriances impact forest management rotations, and nesting landbirds and raptors in those forests?",500000,"LA","Landbird,Raptor",0,0,0,0,0]
[15,"Using adaptive managgement to learn about how we should manage grasslands using prescribed fire in the face of climage change",800000,"LA,MS","Landbirds,Marshbird,Raptor",0,0,0,0,0]
[16,"Long-term monitoring of GoM raptors",2000000,"AL,FL","Raptors",0,0,0,0,0]
[17,"Learning more about how perscribed fire increases habitat quantity in forested systems through adapative management?",500000,"MS,AL","Landbirds",0,0,0,0,0]
[18,"How do hurriances impact the survival of marshbirds",300000,"All","Marshbirds",1,0,0,1,0]
[19,"How can prescribed fire be used to manage scrubland habitats for a greater diversity of migratory birds in the face of climate change?",750000,"All","Landbirds",0,0,0,0,0]
[20,"Comparison of the impacts of forested habitat cover change on population dynamics of long and short distance migrants",1500000,"All","Landbirds",0,0,0,0,0]
[21,"How do open ocean currents, surface temperature and seasonality impact seabird use off the GoM?",900000,"All","Seabirds",0,0,0,0,0]
[22,"What has a larger impact on X seabird populations in the gulf, plastic consumption, accidental take, or weather patterns?",750000,"All","Seabirds",0,0,0,0,0]
[23,"How does water management, including the flooding of wetlands and cropfields, impact overwinter waterfowl surival?",1000000,"All","Waterfowl",0,0,0,0,0]
[24,"What kind of signage is most effective for decreasing human disturbance impacts on beach nesting birds?",150000,"All","Shorebirds",0,0,0,0,0]
[25,"How does invasive species control impact marshbird use?",250000,"All","Marshbirds",1,0,0,0,1]
[26,"How does human disturbance impact the nest survival and fledging rate of nesting wading and marshbirds",500000,"All","Marshbirds, Wadingbirds",0,0,0,0,0]
[27,"How does beach renourishment impact the invertebrate communities which are used by migratory and wintering shorebirds?",1200000,"TX,LA,MS","Shorebirds",0,1,0,0,0]
[28,"Learning about how beach renourishment after oil contamination can increase habitat quantity for 3 declining shorebirds",500000,"MS,AL,FL","Shorebirds",0,0,0,0,0]
[29,"When restoring wetlands and grasslands, but unable to restore very large patches, is there an advantage to restoring the two habitat types near each other for species in each habitat type, versus cropfields",2000000,"All","Marshbirds, Landbirds, Raptors",0,0,0,0,1]
[30,"How does prescribed fire impact marshbird habitat quanitity?",250000,"All","Marshbirds",1,0,0,0,0]
[31,"How does fresh water management impact the quantity of wetland habitat available to wintering marshbirds?",650000,"TX,MS","Marshbirds",1,0,0,0,1]
[32,"Learning about how management of scrub shrub succession impacts habitat quantity and quantity as well as population trends for migratory landbirds through adpative management",200000,"LA","Landbirds",0,0,0,0,0]
[33,"The impacts of offshore oil development on wintering seabirds and lesser scaup",400000,"All","Seabirds, Waterfowl",0,0,1,1,0]
[34,"long-term monitoring of the reddish egret",900000,"All","Wading",0,0,1,0,0]
[35,"The impacts of sealevel rise and stormwater management on the habitat quantity , food resources and use by wadingbirds",900000,"All","Wading",0,0,1,0,0]
[]
[null,null,null,null,"Number of proposals",{"$f":"SUM(F2:F36)","v":5},{"$f":"SUM(G2:G36)","v":5},{"$f":"SUM(H2:H36)","v":5},{"$f":"SUM(I2:I36)","v":5},{"$f":"SUM(J2:J36)","v":5}]
[null,null,null,null,"Benefit",1.9938517142493426,1.938068233493371,2.3804519169472935,1.9839975413595772,1.9727694138340679]
[null,null,null,null,"Cost",1550000,2380000,4700000,1420000,3910000]
[null,null,null,null,null,{"$f":"SUMPRODUCT($C$2:$C$36,F$2:F$36)","v":1550000},{"$f":"SUMPRODUCT($C$2:$C$36,G$2:G$36)","v":2380000},{"$f":"SUMPRODUCT($C$2:$C$36,H$2:H$36)","v":4700000},1420000,3910000]

{"sheet":"Scores & Costs","index":1,"n_rows":123,"n_cols":40,"rows_kept":123,"cut":false,"hidden":false,"merged":[]}
["project","manage_species","manage_spatial","manage_uncertainty","manage_currentpractices","manage_adaptivemanagement","pop_a","pop_b","pop_spatialscope","pop_temporalscope","hab_quantity","hab_quality","hab_temporal","ecoprocess_spp","ecoprocess_uncertainty","datasharing","broaderimpacts","exisitingpriorities","partners","leverage","alignment","objhyp","response","targettaxa","surveydesign","stats","datamanagement","budget","timeline","cost",null,"Project","title","states","taxa_groups","A_Marshbird_portfolio","B_Shorebird_portfolio","C_All_states_portfolio","D_No_proj_over_halfM","E_Texas_portfolio"]
[1,9,6.25,2,2,0,186,1054,75,5,0,2,0,0,0,4,0,2,3,0,0,2,3,3,3,2,3,2,2,700000,null,1,"NFWF-A","NA","Shorebirds",0,1,0,0,0]
[2,3,28.2,1,0,0,0,0,0,0,0,2,0,4,1,0,0,3,3,0,0,2,3,3,3,2,3,2,2,5400000,null,2,"NFWF-B","NA","NA",0,0,0,0,0]
[3,8,28.2,2,0,0,0,0,0,0,0,2,0,5,1,0,2,0,0,0,1,2,3,3,3,2,1,2,2,250000,null,3,"NFWF-C","NA","NA",0,0,0,1,0]
[4,1,6.25,2,0,0,0,0,0,0,0,2,0,4,1,0,1,3,3,4,0,1,3,3,1,0,0,2,1,150000,null,4,"NFWF-D","LA","Shorebirds",0,1,0,0,0]
[5,4,3.1,2,0,0,0,0,50,2,0,2,0,0,0,0,1,3,3,4,1,0,3,3,2,0,0,2,1,220000,null,5,"NFWF-E","MS,FL","Shorebirds",0,1,0,1,0]
[6,10,6.2E-2,2,0,0,0,0,10,2,0,2,0,0,0,0,1,0,3,3,0,0,0,3,0,0,0,2,1,110000,null,6,"NFWF-F","TX,LA","Shorebirds",0,1,0,0,1]
[7,52,18.8,0,2,0,0,0,85,12,85,8,12,8,1,0,0,3,3,0,0,2,0,1,3,2,2,0,2,1000000,null,7,"Omnibus Monitoring In Response to Sea Level Rise","All","All Minus Seabirds",0,0,1,0,0]
[8,3,18.8,2,1,1,0,0,14,14,14,8,14,0,0,0,3,1,3,0,0,2,3,3,3,2,0,1,1,5000000,null,8,"The effectiveness of island creation in Mobile Bay for island nesting species","AL","wading, Seabirds",0,0,0,0,0]
[9,9,15.6,2,1,0,70,140,0,0,0,2,0,0,0,3,0,3,2,1,0,2,3,3,1,2,1,1,2,25000,null,9,"the impact of wind development on migrating raptors in the GoM","All","Raptors",0,0,0,0,0]
[10,0,0,0,0,0,0,0,0,0,0,2,0,6,2,1,2,3,2,2,0,0,2,3,3,1,1,0,2,900000,null,10,"Do hurricanes impact survival of migratory/wintering waterfowl? Does stress/movement to avoid hurricanes impact migratory/wintering waterfowl survival?","Texas","Waterfowl",0,0,0,0,1]
[11,0,0,0,0,0,6,102,52,15,52,8,15,3,1,1,0,3,3,2,2,2,1,3,3,1,2,0,1,1500000,null,11,"How does increase in salinity impact habitat quality/quantity, and does it impact the population trend of wetland associated birds?","All","waterfowl, marshbirds, wadingbirds",0,0,1,0,0]
[12,2,15.6,2,1,0,0,0,0,0,0,2,0,0,0,0,1,3,3,3,0,1,1,3,1,2,1,2,0,100000,null,12,"The impact of rice agriculture on nesting King Rails and wintering Yellow Rails in Louisiana","LA","marshbird, landbird",1,0,0,0,0]
[13,0,0,0,0,0,0,12,39,2,39,8,2,7,1,1,0,3,3,0,0,1,0,1,0,2,1,1,1,250000,null,13,"How do hurricanes impact forage quality for nesting wadingbirds?","Fl, AL","Wading",0,0,0,1,0]
[14,6,15.6,1,1,0,0,0,0,0,0,2,0,6,1,1,0,3,3,0,0,1,1,3,3,1,2,1,1,500000,null,14,"How do hurriances impact forest management rotations, and nesting landbirds and raptors in those forests?","MS, AL","Landbird,Raptor",0,0,0,0,0]
[15,23,12.5,2,1,1,0,0,23,3,23,8,3,1,2,2,0,2,3,3,2,0,3,1,1,2,3,2,1,800000,null,15,"Using adaptive managgement to learn about how we should manage grasslands using prescribed fire in the face of climage change","All","Landbirds,Marshbird,Raptor",0,0,0,0,0]
[16,0,0,0,0,0,0,0,100,15,100,7,15,0,0,3,0,3,3,5,0,2,2,2,1,2,3,2,2,2000000,null,16,"Long-term monitoring of GoM raptors","All","Raptors",0,0,0,0,0]
[17,2,15.6,2,1,1,58,290,0,0,0,8,3,0,0,0,0,3,2,0,0,2,3,1,0,1,0,2,1,500000,null,17,"Learning more about how perscribed fire increases habitat quantity in forested systems through adapative management?","MS,AL","Landbirds",0,0,0,0,0]
[18,0,0,0,0,0,0,30,0,0,0,2,0,8,1,1,3,3,3,5,1,2,2,1,2,1,2,1,0,300000,null,18,"How do hurriances impact the survival of marshbirds","All","Marshbirds",1,0,0,1,0]
[19,8,3.125,1,2,0,0,0,0,0,0,2,0,8,2,0,0,2,3,0,0,1,1,3,2,0,1,0,1,750000,null,19,"How can prescribed fire be used to manage scrubland habitats for a greater diversity of migratory birds in the face of climate change?","ALl","Landbirds",0,0,0,0,0]
[20,9,15.6,1,2,0,0,435,76,10,76,6,10,8,2,1,0,3,3,3,2,1,0,0,1,2,1,0,1,1500000,null,20,"Comparison of the impacts of forested habitat cover change on population dynamics of long and short distance migrants","All","Landbirds",0,0,0,0,0]
[21,0,0,0,0,0,0,0,0,0,0,2,0,8,2,0,1,3,3,5,1,0,2,3,1,0,3,1,2,900000,null,21,"How do open ocean currents, surface temperature and seasonality impact seabird use off the GoM?","All","Seabirds",0,0,0,0,0]
[22,0,0,0,0,0,16,64,0,0,0,2,0,1,2,4,2,2,3,5,0,1,2,1,0,2,1,2,1,750000,null,22,"What has a larger impact on X seabird populations in the gulf, plastic consumption, accidental take, or weather patterns?","ALl","Seabirds",0,0,0,0,0]
[23,9,18.8,2,0,0,0,0,0,0,0,2,0,0,0,3,0,3,3,5,0,2,1,2,1,1,1,0,1,1000000,null,23,"How does water management, including the flooding of wetlands and cropfields, impact overwinter waterfowl surival?","All","Waterfowl",0,0,0,0,0]
[24,5,6.25,2,0,0,0,0,0,0,0,2,0,0,0,0,0,3,3,5,0,0,3,1,3,2,1,0,2,150000,null,24,"What kind of signage is most effective for decreasing human disturbance impacts on beach nesting birds?","All","Shorebirds",0,0,0,0,0]
[25,9,18.8,2,0,0,176,308,0,0,0,2,0,8,1,2,2,3,3,0,0,2,1,3,2,1,1,2,2,250000,null,25,"How does invasive species control impact marshbird use?","TX,LA,MS","Marshbirds",1,0,0,0,1]
[26,17,18.8,2,1,0,0,0,0,0,0,2,0,0,0,3,0,3,3,4,0,2,1,0,2,0,1,2,2,500000,null,26,"How does human disturbance impact the nest survival and fledging rate of nesting wading and marshbirds","Al,MS,FL","Marshbirds, Wadingbirds",0,0,0,0,0]
[27,0,6.25,2,0,0,0,0,0,0,80,2,5,0,0,2,2,3,3,5,0,1,2,3,1,0,0,0,0,1200000,null,27,"How does beach renourishment impact the invertebrate communities which are used by migratory and wintering shorebirds?","All","Shorebirds",0,1,0,0,0]
[28,3,6.25,2,0,1,0,0,0,0,0,4,5,0,0,4,0,3,3,4,0,2,3,3,1,0,2,2,1,500000,null,28,"Learning about how beach renourishment after oil contamination can increase habitat quantity for 3 declining shorebirds","LA","Shorebirds",0,0,0,0,0]
[29,9,12.5,2,1,0,0,0,15,12,15,8,12,0,0,1,0,3,3,4,0,2,1,0,2,1,1,1,2,2000000,null,29,"When restoring wetlands and grasslands, but unable to restore very large patches, is there an advantage to restoring the two habitat types near each other for species in each habitat type, versus cropfields","ALl","Marshbirds, Landbirds, Raptors",0,0,0,0,1]
[30,33,18.8,2,0,0,0,0,0,0,0,4,2,0,0,0,0,1,1,0,0,0,3,1,2,0,2,2,0,250000,null,30,"How does prescribed fire impact marshbird habitat quanitity?","LA","Marshbirds",1,0,0,0,0]
[31,4,18.8,1,0,0,0,0,65,4,0,4,4,0,0,2,0,3,2,3,0,1,0,1,1,2,2,1,1,650000,null,31,"How does fresh water management impact the quantity of wetland habitat available to wintering marshbirds?","TX,LA,MS","Marshbirds",1,0,0,0,1]
[32,5,3.125,2,2,1,6,102,40,16,40,8,16,0,0,2,3,3,0,4,0,0,2,1,2,1,0,2,1,200000,null,32,"Learning about how management of scrub shrub succession impacts habitat quantity and quantity as well as population trends for migratory landbirds through adpative management","FL, Al","Landbirds",0,0,0,0,0]
[33,14,18.8,2,1,0,0,0,0,0,0,5,0,0,0,2,0,3,2,0,0,1,3,0,2,2,3,0,0,400000,null,33,"The impacts of offshore oil development on wintering seabirds and lesser scaup","All","Seabirds, Waterfowl",0,0,1,1,0]
[34,0,0,0,0,0,0,12,100,15,100,8,15,0,0,2,0,3,3,4,0,2,3,3,0,2,2,1,0,900000,null,34,"long-term monitoring of the reddish egret","All","Wading",0,0,1,0,0]
[35,8,9.4,1,1,1,0,0,0,0,100,6,5,8,0,0,0,3,3,3,0,2,2,0,1,2,0,1,1,900000,null,35,"The impacts of sealevel rise and stormwater management on the habitat quantity , food resources and use by wadingbirds","All","Wading",0,0,1,0,0]
[]
[null,{"$f":"B1","v":"manage_species"},{"$f":"C1","v":"manage_spatial"},"manage_uncertainty","manage_currentpractices","manage_adaptivemanagement","pop_a","pop_b","pop_spatialscope","pop_temporalscope","hab_quantity","hab_quality","hab_temporal","ecoprocess_spp","ecoprocess_uncertainty","datasharing","broaderimpacts","exisitingpriorities","partners","leverage","alignment","objhyp","response","targettaxa","surveydesign","stats","datamanagement","budget","timeline"]
[null,"Metric 1","Metric 2","Metric 3","Metric 4","Metric 5","Metric 6a","Metric 6b","Metric 7","Metric 8","Metric 9","Metric 10","Metric 11","Metric 12","Metric 13","Metric 14","Metric 15","Metric 16","Metric 17","Metric 18","Metric 19","Metric 20","Metric 21","Metric 22","Metric 23","Metric 24","Metric 25","Metric 26","Metric 27"]
["Weights",0.03,0.03,0.03,0.03,0.04,1.4999999999999999E-2,1.4999999999999999E-2,0.03,0.02,0.02,0.02,0.02,0.03,0.09,0.04,0.04,0.05,0.05,0.03,0.03,0.05,0.04,0.04,0.05,0.05,0.04,0.04,0.03]
[]
["Project",null,null,null,null,null,null,null,null,null,null,null,null,null,null,null,null,null,null,null,null,null,null,null,null,null,null,null,null,"total","sdm_tool_excel after corrections",null,"management","status","ep","integration","rigor"]
[{"$f":"A2","v":1},{"$f":"$B$40*(valueE(B2,'Utility Functions'!$B$3,'Utility Functions'!$B$4,'Utility Functions'!$B$5,'Utility Functions'!$B$6))","v":2.5041071294184137E-2},{"$f":"$C$40*(valueE(C2,'Utility Functions'!$D$3,'Utility Functions'!$D$4,'Utility Functions'!$D$5,'Utility Functions'!$D$6))","v":1.3942790146123618E-2},{"$f":"$D$40*(valuePL(D2,'Utility Functions'!$E$3:$E$5,'Utility Functions'!$F$3:$F$5))","v":0.03},{"$f":"$E$40*(valuePL(E2,'Utility Functions'!$G$3:$G$5,'Utility Functions'!$H$3:$H$5))","v":0.03},{"$f":"$F$40*(valuePL(F2,'Utility Functions'!$I$3:$I$4,'Utility Functions'!$J$3:$J$5))","v":0},{"$f":"$G$40*(valueE(G2,'Utility Functions'!$L$3,'Utility Functions'!$L$4,'Utility Functions'!$L$5,'Utility Functions'!$L$6))","v":1.4999999999999999E-2},{"$f":"$H$40*(valueE(H2,'Utility Functions'!$N$3,'Utility Functions'!$N$4,'Utility Functions'!$N$5,'Utility Functions'!$N$6))","v":1.4999999999999999E-2},{"$f":"$I$40*valuePL(I2,'Utility Functions'!$O$3:$O$6,'Utility Functions'!$P$3:$P$6)","v":2.7545454545454547E-2},{"$f":"$J$40*valuePL(J2,'Utility Functions'!$Q$3:$Q$6,'Utility Functions'!$R$3:$R$6)","v":2E-3},{"$f":"$K$40*(valuePL(K2,'Utility Functions'!$S$3:$S$7,'Utility Functions'!$T$3:$T$7))","v":0},{"$f":"$L$40*(valueE(L2,'Utility Functions'!$V$3,'Utility Functions'!$V$4,'Utility Functions'!$V$5,'Utility Functions'!$V$6))","v":0},{"$f":"$M$40*valuePL(M2,'Utility Functions'!$W$3:$W$6,'Utility Functions'!$X$3:$X$6)","v":0},{"$f":"$N$40*valueE(N2,'Utility Functions'!$Z$3,'Utility Functions'!$Z$4,'Utility Functions'!$Z$5,'Utility Functions'!$Z$6)","v":0},{"$f":"$O$40*valuePL(O2,'Utility Functions'!$AA$3:$AA$5,'Utility Functions'!$AB$3:$AB$5)","v":0},{"$f":"$P$40*valuePL(P2,'Utility Functions'!$AC$3:$AC$7,'Utility Functions'!$AD$3:$AD$7)","v":0.04},{"$f":"$Q$40*valuePL(Q2,'Utility Functions'!$AE$3:$AE$6,'Utility Functions'!$AF$3:$AF$6)","v":0},{"$f":"$R$40*valuePL(R2,'Utility Functions'!$AG$3:$AG$6,'Utility Functions'!$AH$3:$AH$6)","v":4.0000000000000008E-2},{"$f":"$S$40*valuePL(S2,'Utility Functions'!$AI$3:$AI$6,'Utility Functions'!$AJ$3:$AJ$6)","v":0.05},{"$f":"$T$40*valuePL(T2,'Utility Functions'!$AK$3:$AK$8,'Utility Functions'!$AL$3:$AL$8)","v":0},{"$f":"$U$40*valuePL(U2,'Utility Functions'!$AM$3:$AM$5,'Utility Functions'!$AN$3:$AN$5)","v":0},{"$f":"$V$40*valuePL(V2,'Utility Functions'!$AO$3:$AO$5,'Utility Functions'!$AP$3:$AP$5)","v":0.05},{"$f":"$W$40*valuePL(W2,'Utility Functions'!$AQ$3:$AQ$6,'Utility Functions'!$AR$3:$AR$6)","v":0.04},{"$f":"$X$40*valuePL(X2,'Utility Functions'!$AS$3:$AS$6,'Utility Functions'!$AT$3:$AT$6)","v":0.04},{"$f":"$Y$40*valuePL(Y2,'Utility Functions'!$AU$3:$AU$6,'Utility Functions'!$AV$3:$AV$6)","v":0.05},{"$f":"$Z$40*valuePL(Z2,'Utility Functions'!$AW$3:$AW$5,'Utility Functions'!$AX$3:$AX$5)","v":0.05},{"$f":"$AA$40*valuePL(AA2,'Utility Functions'!$AY$3:$AY$6,'Utility Functions'!$AZ$3:$AZ$6)","v":0.04},{"$f":"$AB$40*valuePL(AB2,'Utility Functions'!$BA$3:$BA$5,'Utility Functions'!$BB$3:$BB$5)","v":0.04},{"$f":"$AC$40*valuePL(AC2,'Utility Functions'!$BC$3:$BC$5,'Utility Functions'!$BD$3:$BD$5)","v":0.03},{"$f":"SUM(B43:AC43)","v":0.62852931598576234},0.62679466938600437,null,{"$f":"SUM(B43:F43)","v":9.8983861440307755E-2},{"$f":"SUM(G43:M43)","v":5.9545454545454547E-2},{"$f":"SUM(N43:O43)","v":0},{"$f":"SUM(P43:U43)","v":0.13},{"$f":"SUM(V43:AC43)","v":0.33999999999999997}]
[{"$f":"A3","v":2},{"$f":"$B$40*(valueE(B3,'Utility Functions'!$B$3,'Utility Functions'!$B$4,'Utility Functions'!$B$5,'Utility Functions'!$B$6))","v":1.3535671425672068E-2},{"$f":"$C$40*(valueE(C3,'Utility Functions'!$D$3,'Utility Functions'!$D$4,'Utility Functions'!$D$5,'Utility Functions'!$D$6))","v":2.8213102591607857E-2},{"$f":"$D$40*(valuePL(D3,'Utility Functions'!$E$3:$E$5,'Utility Functions'!$F$3:$F$5))","v":1.4999999999999999E-2},{"$f":"$E$40*(valuePL(E3,'Utility Functions'!$G$3:$G$5,'Utility Functions'!$H$3:$H$5))","v":0},{"$f":"$F$40*(valuePL(F3,'Utility Functions'!$I$3:$I$4,'Utility Functions'!$J$3:$J$5))","v":0},{"$f":"$G$40*(valueE(G3,'Utility Functions'!$L$3,'Utility Functions'!$L$4,'Utility Functions'!$L$5,'Utility Functions'!$L$6))","v":0},{"$f":"$H$40*(valueE(H3,'Utility Functions'!$N$3,'Utility Functions'!$N$4,'Utility Functions'!$N$5,'Utility Functions'!$N$6))","v":0},{"$f":"$I$40*valuePL(I3,'Utility Functions'!$O$3:$O$6,'Utility Functions'!$P$3:$P$6)","v":0},{"$f":"$J$40*valuePL(J3,'Utility Functions'!$Q$3:$Q$6,'Utility Functions'!$R$3:$R$6)","v":0},{"$f":"$K$40*(valuePL(K3,'Utility Functions'!$S$3:$S$7,'Utility Functions'!$T$3:$T$7))","v":0},{"$f":"$L$40*(valueE(L3,'Utility Functions'!$V$3,'Utility Functions'!$V$4,'Utility Functions'!$V$5,'Utility Functions'!$V$6))","v":0},{"$f":"$M$40*valuePL(M3,'Utility Functions'!$W$3:$W$6,'Utility Functions'!$X$3:$X$6)","v":0},{"$f":"$N$40*valueE(N3,'Utility Functions'!$Z$3,'Utility Functions'!$Z$4,'Utility Functions'!$Z$5,'Utility Functions'!$Z$6)","v":1.4999999999999999E-2},{"$f":"$O$40*valuePL(O3,'Utility Functions'!$AA$3:$AA$5,'Utility Functions'!$AB$3:$AB$5)","v":2.2499999999999999E-2},{"$f":"$P$40*valuePL(P3,'Utility Functions'!$AC$3:$AC$7,'Utility Functions'!$AD$3:$AD$7)","v":0},{"$f":"$Q$40*valuePL(Q3,'Utility Functions'!$AE$3:$AE$6,'Utility Functions'!$AF$3:$AF$6)","v":0},{"$f":"$R$40*valuePL(R3,'Utility Functions'!$AG$3:$AG$6,'Utility Functions'!$AH$3:$AH$6)","v":0.05},{"$f":"$S$40*valuePL(S3,'Utility Functions'!$AI$3:$AI$6,'Utility Functions'!$AJ$3:$AJ$6)","v":0.05},{"$f":"$T$40*valuePL(T3,'Utility Functions'!$AK$3:$AK$8,'Utility Functions'!$AL$3:$AL$8)","v":0},{"$f":"$U$40*valuePL(U3,'Utility Functions'!$AM$3:$AM$5,'Utility Functions'!$AN$3:$AN$5)","v":0},{"$f":"$V$40*valuePL(V3,'Utility Functions'!$AO$3:$AO$5,'Utility Functions'!$AP$3:$AP$5)","v":0.05},{"$f":"$W$40*valuePL(W3,'Utility Functions'!$AQ$3:$AQ$6,'Utility Functions'!$AR$3:$AR$6)","v":0.04},{"$f":"$X$40*valuePL(X3,'Utility Functions'!$AS$3:$AS$6,'Utility Functions'!$AT$3:$AT$6)","v":0.04},{"$f":"$Y$40*valuePL(Y3,'Utility Functions'!$AU$3:$AU$6,'Utility Functions'!$AV$3:$AV$6)","v":0.05},{"$f":"$Z$40*valuePL(Z3,'Utility Functions'!$AW$3:$AW$5,'Utility Functions'!$AX$3:$AX$5)","v":0.05},{"$f":"$AA$40*valuePL(AA3,'Utility Functions'!$AY$3:$AY$6,'Utility Functions'!$AZ$3:$AZ$6)","v":0.04},{"$f":"$AB$40*valuePL(AB3,'Utility Functions'!$BA$3:$BA$5,'Utility Functions'!$BB$3:$BB$5)","v":0.04},{"$f":"$AC$40*valuePL(AC3,'Utility Functions'!$BC$3:$BC$5,'Utility Functions'!$BD$3:$BD$5)","v":0.03},{"$f":"SUM(B44:AC44)","v":0.53424877401727988},0.5325173496849499,null,{"$f":"SUM(B44:F44)","v":5.6748774017279922E-2},{"$f":"SUM(G44:M44)","v":0},{"$f":"SUM(N44:O44)","v":3.7499999999999999E-2},{"$f":"SUM(P44:U44)","v":0.1},{"$f":"SUM(V44:AC44)","v":0.33999999999999997}]
[3,{"$f":"$B$40*(valueE(B4,'Utility Functions'!$B$3,'Utility Functions'!$B$4,'Utility Functions'!$B$5,'Utility Functions'!$B$6))","v":2.3943140737469053E-2},{"$f":"$C$40*(valueE(C4,'Utility Functions'!$D$3,'Utility Functions'!$D$4,'Utility Functions'!$D$5,'Utility Functions'!$D$6))","v":2.8213102591607857E-2},{"$f":"$D$40*(valuePL(D4,'Utility Functions'!$E$3:$E$5,'Utility Functions'!$F$3:$F$5))","v":0.03},{"$f":"$E$40*(valuePL(E4,'Utility Functions'!$G$3:$G$5,'Utility Functions'!$H$3:$H$5))","v":0},{"$f":"$F$40*(valuePL(F4,'Utility Functions'!$I$3:$I$4,'Utility Functions'!$J$3:$J$5))","v":0},{"$f":"$G$40*(valueE(G4,'Utility Functions'!$L$3,'Utility Functions'!$L$4,'Utility Functions'!$L$5,'Utility Functions'!$L$6))","v":0},{"$f":"$H$40*(valueE(H4,'Utility Functions'!$N$3,'Utility Functions'!$N$4,'Utility Functions'!$N$5,'Utility Functions'!$N$6))","v":0},{"$f":"$I$40*valuePL(I4,'Utility Functions'!$O$3:$O$6,'Utility Functions'!$P$3:$P$6)","v":0},{"$f":"$J$40*valuePL(J4,'Utility Functions'!$Q$3:$Q$6,'Utility Functions'!$R$3:$R$6)","v":0},{"$f":"$K$40*(valuePL(K4,'Utility Functions'!$S$3:$S$7,'Utility Functions'!$T$3:$T$7))","v":0},{"$f":"$L$40*(valueE(L4,'Utility Functions'!$V$3,'Utility Functions'!$V$4,'Utility Functions'!$V$5,'Utility Functions'!$V$6))","v":0},{"$f":"$M$40*valuePL(M4,'Utility Functions'!$W$3:$W$6,'Utility Functions'!$X$3:$X$6)","v":0},{"$f":"$N$40*valueE(N4,'Utility Functions'!$Z$3,'Utility Functions'!$Z$4,'Utility Functions'!$Z$5,'Utility Functions'!$Z$6)","v":1.8749999999999999E-2},{"$f":"$O$40*valuePL(O4,'Utility Functions'!$AA$3:$AA$5,'Utility Functions'!$AB$3:$AB$5)","v":2.2499999999999999E-2},{"$f":"$P$40*valuePL(P4,'Utility Functions'!$AC$3:$AC$7,'Utility Functions'!$AD$3:$AD$7)","v":0},{"$f":"$Q$40*valuePL(Q4,'Utility Functions'!$AE$3:$AE$6,'Utility Functions'!$AF$3:$AF$6)","v":0.02},{"$f":"$R$40*valuePL(R4,'Utility Functions'!$AG$3:$AG$6,'Utility Functions'!$AH$3:$AH$6)","v":0},{"$f":"$S$40*valuePL(S4,'Utility Functions'!$AI$3:$AI$6,'Utility Functions'!$AJ$3:$AJ$6)","v":0},{"$f":"$T$40*valuePL(T4,'Utility Functions'!$AK$3:$AK$8,'Utility Functions'!$AL$3:$AL$8)","v":0},{"$f":"$U$40*valuePL(U4,'Utility Functions'!$AM$3:$AM$5,'Utility Functions'!$AN$3:$AN$5)","v":7.4999999999999997E-3},{"$f":"$V$40*valuePL(V4,'Utility Functions'!$AO$3:$AO$5,'Utility Functions'!$AP$3:$AP$5)","v":0.05},{"$f":"$W$40*valuePL(W4,'Utility Functions'!$AQ$3:$AQ$6,'Utility Functions'!$AR$3:$AR$6)","v":0.04},{"$f":"$X$40*valuePL(X4,'Utility Functions'!$AS$3:$AS$6,'Utility Functions'!$AT$3:$AT$6)","v":0.04},{"$f":"$Y$40*valuePL(Y4,'Utility Functions'!$AU$3:$AU$6,'Utility Functions'!$AV$3:$AV$6)","v":0.05},{"$f":"$Z$40*valuePL(Z4,'Utility Functions'!$AW$3:$AW$5,'Utility Functions'!$AX$3:$AX$5)","v":0.05},{"$f":"$AA$40*valuePL(AA4,'Utility Functions'!$AY$3:$AY$6,'Utility Functions'!$AZ$3:$AZ$6)","v":8.0000000000000002E-3},{"$f":"$AB$40*valuePL(AB4,'Utility Functions'!$BA$3:$BA$5,'Utility Functions'!$BB$3:$BB$5)","v":0.04},{"$f":"$AC$40*valuePL(AC4,'Utility Functions'!$BC$3:$BC$5,'Utility Functions'!$BD$3:$BD$5)","v":0.03},0.45890624332907692,0.45705550078349133,null,8.2156243329076908E-2,0,4.1249999999999995E-2,2.75E-2,0.30799999999999994]
[4,{"$f":"$B$40*(valueE(B5,'Utility Functions'!$B$3,'Utility Functions'!$B$4,'Utility Functions'!$B$5,'Utility Functions'!$B$6))","v":5.4380856471439951E-3},{"$f":"$C$40*(valueE(C5,'Utility Functions'!$D$3,'Utility Functions'!$D$4,'Utility Functions'!$D$5,'Utility Functions'!$D$6))","v":1.3942790146123618E-2},{"$f":"$D$40*(valuePL(D5,'Utility Functions'!$E$3:$E$5,'Utility Functions'!$F$3:$F$5))","v":0.03},{"$f":"$E$40*(valuePL(E5,'Utility Functions'!$G$3:$G$5,'Utility Functions'!$H$3:$H$5))","v":0},{"$f":"$F$40*(valuePL(F5,'Utility Functions'!$I$3:$I$4,'Utility Functions'!$J$3:$J$5))","v":0},{"$f":"$G$40*(valueE(G5,'Utility Functions'!$L$3,'Utility Functions'!$L$4,'Utility Functions'!$L$5,'Utility Functions'!$L$6))","v":0},{"$f":"$H$40*(valueE(H5,'Utility Functions'!$N$3,'Utility Functions'!$N$4,'Utility Functions'!$N$5,'Utility Functions'!$N$6))","v":0},{"$f":"$I$40*valuePL(I5,'Utility Functions'!$O$3:$O$6,'Utility Functions'!$P$3:$P$6)","v":0},{"$f":"$J$40*valuePL(J5,'Utility Functions'!$Q$3:$Q$6,'Utility Functions'!$R$3:$R$6)","v":0},{"$f":"$K$40*(valuePL(K5,'Utility Functions'!$S$3:$S$7,'Utility Functions'!$T$3:$T$7))","v":0},{"$f":"$L$40*(valueE(L5,'Utility Functions'!$V$3,'Utility Functions'!$V$4,'Utility Functions'!$V$5,'Utility Functions'!$V$6))","v":0},{"$f":"$M$40*valuePL(M5,'Utility Functions'!$W$3:$W$6,'Utility Functions'!$X$3:$X$6)","v":0},{"$f":"$N$40*valueE(N5,'Utility Functions'!$Z$3,'Utility Functions'!$Z$4,'Utility Functions'!$Z$5,'Utility Functions'!$Z$6)","v":1.4999999999999999E-2},{"$f":"$O$40*valuePL(O5,'Utility Functions'!$AA$3:$AA$5,'Utility Functions'!$AB$3:$AB$5)","v":2.2499999999999999E-2},{"$f":"$P$40*valuePL(P5,'Utility Functions'!$AC$3:$AC$7,'Utility Functions'!$AD$3:$AD$7)","v":0},{"$f":"$Q$40*valuePL(Q5,'Utility Functions'!$AE$3:$AE$6,'Utility Functions'!$AF$3:$AF$6)","v":4.0000000000000001E-3},{"$f":"$R$40*valuePL(R5,'Utility Functions'!$AG$3:$AG$6,'Utility Functions'!$AH$3:$AH$6)","v":0.05},{"$f":"$S$40*valuePL(S5,'Utility Functions'!$AI$3:$AI$6,'Utility Functions'!$AJ$3:$AJ$6)","v":0.05},{"$f":"$T$40*valuePL(T5,'Utility Functions'!$AK$3:$AK$8,'Utility Functions'!$AL$3:$AL$8)","v":2.4E-2},{"$f":"$U$40*valuePL(U5,'Utility Functions'!$AM$3:$AM$5,'Utility Functions'!$AN$3:$AN$5)","v":0},{"$f":"$V$40*valuePL(V5,'Utility Functions'!$AO$3:$AO$5,'Utility Functions'!$AP$3:$AP$5)","v":2.5000000000000001E-2},{"$f":"$W$40*valuePL(W5,'Utility Functions'!$AQ$3:$AQ$6,'Utility Functions'!$AR$3:$AR$6)","v":0.04},{"$f":"$X$40*valuePL(X5,'Utility Functions'!$AS$3:$AS$6,'Utility Functions'!$AT$3:$AT$6)","v":0.04},{"$f":"$Y$40*valuePL(Y5,'Utility Functions'!$AU$3:$AU$6,'Utility Functions'!$AV$3:$AV$6)","v":1.0000000000000002E-2},{"$f":"$Z$40*valuePL(Z5,'Utility Functions'!$AW$3:$AW$5,'Utility Functions'!$AX$3:$AX$5)","v":0},{"$f":"$AA$40*valuePL(AA5,'Utility Functions'!$AY$3:$AY$6,'Utility Functions'!$AZ$3:$AZ$6)","v":0},{"$f":"$AB$40*valuePL(AB5,'Utility Functions'!$BA$3:$BA$5,'Utility Functions'!$BB$3:$BB$5)","v":0.04},{"$f":"$AC$40*valuePL(AC5,'Utility Functions'!$BC$3:$BC$5,'Utility Functions'!$BD$3:$BD$5)","v":7.4999999999999997E-3},0.37738087579326757,0.37654840351211377,null,4.9380875793267609E-2,0,3.7499999999999999E-2,0.128,0.16250000000000003]
[5,{"$f":"$B$40*(valueE(B6,'Utility Functions'!$B$3,'Utility Functions'!$B$4,'Utility Functions'!$B$5,'Utility Functions'!$B$6))","v":1.6520156106900608E-2},{"$f":"$C$40*(valueE(C6,'Utility Functions'!$D$3,'Utility Functions'!$D$4,'Utility Functions'!$D$5,'Utility Functions'!$D$6))","v":7.9969543744382362E-3},{"$f":"$D$40*(valuePL(D6,'Utility Functions'!$E$3:$E$5,'Utility Functions'!$F$3:$F$5))","v":0.03},{"$f":"$E$40*(valuePL(E6,'Utility Functions'!$G$3:$G$5,'Utility Functions'!$H$3:$H$5))","v":0},{"$f":"$F$40*(valuePL(F6,'Utility Functions'!$I$3:$I$4,'Utility Functions'!$J$3:$J$5))","v":0},{"$f":"$G$40*(valueE(G6,'Utility Functions'!$L$3,'Utility Functions'!$L$4,'Utility Functions'!$L$5,'Utility Functions'!$L$6))","v":0},{"$f":"$H$40*(valueE(H6,'Utility Functions'!$N$3,'Utility Functions'!$N$4,'Utility Functions'!$N$5,'Utility Functions'!$N$6))","v":0},{"$f":"$I$40*valuePL(I6,'Utility Functions'!$O$3:$O$6,'Utility Functions'!$P$3:$P$6)","v":1.5272727272727275E-2},{"$f":"$J$40*valuePL(J6,'Utility Functions'!$Q$3:$Q$6,'Utility Functions'!$R$3:$R$6)","v":8.0000000000000004E-4},{"$f":"$K$40*(valuePL(K6,'Utility Functions'!$S$3:$S$7,'Utility Functions'!$T$3:$T$7))","v":0},{"$f":"$L$40*(valueE(L6,'Utility Functions'!$V$3,'Utility Functions'!$V$4,'Utility Functions'!$V$5,'Utility Functions'!$V$6))","v":0},{"$f":"$M$40*valuePL(M6,'Utility Functions'!$W$3:$W$6,'Utility Functions'!$X$3:$X$6)","v":0},{"$f":"$N$40*valueE(N6,'Utility Functions'!$Z$3,'Utility Functions'!$Z$4,'Utility Functions'!$Z$5,'Utility Functions'!$Z$6)","v":0},{"$f":"$O$40*valuePL(O6,'Utility Functions'!$AA$3:$AA$5,'Utility Functions'!$AB$3:$AB$5)","v":0},{"$f":"$P$40*valuePL(P6,'Utility Functions'!$AC$3:$AC$7,'Utility Functions'!$AD$3:$AD$7)","v":0},{"$f":"$Q$40*valuePL(Q6,'Utility Functions'!$AE$3:$AE$6,'Utility Functions'!$AF$3:$AF$6)","v":4.0000000000000001E-3},{"$f":"$R$40*valuePL(R6,'Utility Functions'!$AG$3:$AG$6,'Utility Functions'!$AH$3:$AH$6)","v":0.05},{"$f":"$S$40*valuePL(S6,'Utility Functions'!$AI$3:$AI$6,'Utility Functions'!$AJ$3:$AJ$6)","v":0.05},{"$f":"$T$40*valuePL(T6,'Utility Functions'!$AK$3:$AK$8,'Utility Functions'!$AL$3:$AL$8)","v":2.4E-2},{"$f":"$U$40*valuePL(U6,'Utility Functions'!$AM$3:$AM$5,'Utility Functions'!$AN$3:$AN$5)","v":7.4999999999999997E-3},{"$f":"$V$40*valuePL(V6,'Utility Functions'!$AO$3:$AO$5,'Utility Functions'!$AP$3:$AP$5)","v":0},{"$f":"$W$40*valuePL(W6,'Utility Functions'!$AQ$3:$AQ$6,'Utility Functions'!$AR$3:$AR$6)","v":0.04},{"$f":"$X$40*valuePL(X6,'Utility Functions'!$AS$3:$AS$6,'Utility Functions'!$AT$3:$AT$6)","v":0.04},{"$f":"$Y$40*valuePL(Y6,'Utility Functions'!$AU$3:$AU$6,'Utility Functions'!$AV$3:$AV$6)","v":4.0000000000000008E-2},{"$f":"$Z$40*valuePL(Z6,'Utility Functions'!$AW$3:$AW$5,'Utility Functions'!$AX$3:$AX$5)","v":0},{"$f":"$AA$40*valuePL(AA6,'Utility Functions'!$AY$3:$AY$6,'Utility Functions'!$AZ$3:$AZ$6)","v":0},{"$f":"$AB$40*valuePL(AB6,'Utility Functions'!$BA$3:$BA$5,'Utility Functions'!$BB$3:$BB$5)","v":0.04},{"$f":"$AC$40*valuePL(AC6,'Utility Functions'!$BC$3:$BC$5,'Utility Functions'!$BD$3:$BD$5)","v":7.4999999999999997E-3},0.37358983775406607,0.37166737445376297,null,5.4517110481338844E-2,1.6072727272727273E-2,0,0.13550000000000001,0.16750000000000001]
[6,{"$f":"$B$40*(valueE(B7,'Utility Functions'!$B$3,'Utility Functions'!$B$4,'Utility Functions'!$B$5,'Utility Functions'!$B$6))","v":2.5939980805710805E-2},{"$f":"$C$40*(valueE(C7,'Utility Functions'!$D$3,'Utility Functions'!$D$4,'Utility Functions'!$D$5,'Utility Functions'!$D$6))","v":1.8543300844080441E-4},{"$f":"$D$40*(valuePL(D7,'Utility Functions'!$E$3:$E$5,'Utility Functions'!$F$3:$F$5))","v":0.03},{"$f":"$E$40*(valuePL(E7,'Utility Functions'!$G$3:$G$5,'Utility Functions'!$H$3:$H$5))","v":0},{"$f":"$F$40*(valuePL(F7,'Utility Functions'!$I$3:$I$4,'Utility Functions'!$J$3:$J$5))","v":0},{"$f":"$G$40*(valueE(G7,'Utility Functions'!$L$3,'Utility Functions'!$L$4,'Utility Functions'!$L$5,'Utility Functions'!$L$6))","v":0},{"$f":"$H$40*(valueE(H7,'Utility Functions'!$N$3,'Utility Functions'!$N$4,'Utility Functions'!$N$5,'Utility Functions'!$N$6))","v":0},{"$f":"$I$40*valuePL(I7,'Utility Functions'!$O$3:$O$6,'Utility Functions'!$P$3:$P$6)","v":1.1999999999999999E-3},{"$f":"$J$40*valuePL(J7,'Utility Functions'!$Q$3:$Q$6,'Utility Functions'!$R$3:$R$6)","v":8.0000000000000004E-4},{"$f":"$K$40*(valuePL(K7,'Utility Functions'!$S$3:$S$7,'Utility Functions'!$T$3:$T$7))","v":0},{"$f":"$L$40*(valueE(L7,'Utility Functions'!$V$3,'Utility Functions'!$V$4,'Utility Functions'!$V$5,'Utility Functions'!$V$6))","v":0},{"$f":"$M$40*valuePL(M7,'Utility Functions'!$W$3:$W$6,'Utility Functions'!$X$3:$X$6)","v":0},{"$f":"$N$40*valueE(N7,'Utility Functions'!$Z$3,'Utility Functions'!$Z$4,'Utility Functions'!$Z$5,'Utility Functions'!$Z$6)","v":0},{"$f":"$O$40*valuePL(O7,'Utility Functions'!$AA$3:$AA$5,'Utility Functions'!$AB$3:$AB$5)","v":0},{"$f":"$P$40*valuePL(P7,'Utility Functions'!$AC$3:$AC$7,'Utility Functions'!$AD$3:$AD$7)","v":0},{"$f":"$Q$40*valuePL(Q7,'Utility Functions'!$AE$3:$AE$6,'Utility Functions'!$AF$3:$AF$6)","v":4.0000000000000001E-3},{"$f":"$R$40*valuePL(R7,'Utility Functions'!$AG$3:$AG$6,'Utility Functions'!$AH$3:$AH$6)","v":0},{"$f":"$S$40*valuePL(S7,'Utility Functions'!$AI$3:$AI$6,'Utility Functions'!$AJ$3:$AJ$6)","v":0.05},{"$f":"$T$40*valuePL(T7,'Utility Functions'!$AK$3:$AK$8,'Utility Functions'!$AL$3:$AL$8)","v":1.7999999999999999E-2},{"$f":"$U$40*valuePL(U7,'Utility Functions'!$AM$3:$AM$5,'Utility Functions'!$AN$3:$AN$5)","v":0},{"$f":"$V$40*valuePL(V7,'Utility Functions'!$AO$3:$AO$5,'Utility Functions'!$AP$3:$AP$5)","v":0},{"$f":"$W$40*valuePL(W7,'Utility Functions'!$AQ$3:$AQ$6,'Utility Functions'!$AR$3:$AR$6)","v":0},{"$f":"$X$40*valuePL(X7,'Utility Functions'!$AS$3:$AS$6,'Utility Functions'!$AT$3:$AT$6)","v":0.04},{"$f":"$Y$40*valuePL(Y7,'Utility Functions'!$AU$3:$AU$6,'Utility Functions'!$AV$3:$AV$6)","v":0},{"$f":"$Z$40*valuePL(Z7,'Utility Functions'!$AW$3:$AW$5,'Utility Functions'!$AX$3:$AX$5)","v":0},{"$f":"$AA$40*valuePL(AA7,'Utility Functions'!$AY$3:$AY$6,'Utility Functions'!$AZ$3:$AZ$6)","v":0},{"$f":"$AB$40*valuePL(AB7,'Utility Functions'!$BA$3:$BA$5,'Utility Functions'!$BB$3:$BB$5)","v":0.04},{"$f":"$AC$40*valuePL(AC7,'Utility Functions'!$BC$3:$BC$5,'Utility Functions'!$BD$3:$BD$5)","v":7.4999999999999997E-3},0.21762541381415162,0.21601950895080207,null,5.6125413814151606E-2,2E-3,0,7.2000000000000008E-2,8.7499999999999994E-2]
[7,{"$f":"$B$40*(valueE(B8,'Utility Functions'!$B$3,'Utility Functions'!$B$4,'Utility Functions'!$B$5,'Utility Functions'!$B$6))","v":2.9999132478518691E-2},{"$f":"$C$40*(valueE(C8,'Utility Functions'!$D$3,'Utility Functions'!$D$4,'Utility Functions'!$D$5,'Utility Functions'!$D$6))","v":2.542345105018548E-2},{"$f":"$D$40*(valuePL(D8,'Utility Functions'!$E$3:$E$5,'Utility Functions'!$F$3:$F$5))","v":0},{"$f":"$E$40*(valuePL(E8,'Utility Functions'!$G$3:$G$5,'Utility Functions'!$H$3:$H$5))","v":0.03},{"$f":"$F$40*(valuePL(F8,'Utility Functions'!$I$3:$I$4,'Utility Functions'!$J$3:$J$5))","v":0},{"$f":"$G$40*(valueE(G8,'Utility Functions'!$L$3,'Utility Functions'!$L$4,'Utility Functions'!$L$5,'Utility Functions'!$L$6))","v":0},{"$f":"$H$40*(valueE(H8,'Utility Functions'!$N$3,'Utility Functions'!$N$4,'Utility Functions'!$N$5,'Utility Functions'!$N$6))","v":0},{"$f":"$I$40*valuePL(I8,'Utility Functions'!$O$3:$O$6,'Utility Functions'!$P$3:$P$6)","v":0.03},{"$f":"$J$40*valuePL(J8,'Utility Functions'!$Q$3:$Q$6,'Utility Functions'!$R$3:$R$6)","v":1.3454545454545455E-2},{"$f":"$K$40*(valuePL(K8,'Utility Functions'!$S$3:$S$7,'Utility Functions'!$T$3:$T$7))","v":0.02},{"$f":"$L$40*(valueE(L8,'Utility Functions'!$V$3,'Utility Functions'!$V$4,'Utility Functions'!$V$5,'Utility Functions'!$V$6))","v":0.02},{"$f":"$M$40*valuePL(M8,'Utility Functions'!$W$3:$W$6,'Utility Functions'!$X$3:$X$6)","v":1.3454545454545455E-2},{"$f":"$N$40*valueE(N8,'Utility Functions'!$Z$3,'Utility Functions'!$Z$4,'Utility Functions'!$Z$5,'Utility Functions'!$Z$6)","v":0.03},{"$f":"$O$40*valuePL(O8,'Utility Functions'!$AA$3:$AA$5,'Utility Functions'!$AB$3:$AB$5)","v":2.2499999999999999E-2},{"$f":"$P$40*valuePL(P8,'Utility Functions'!$AC$3:$AC$7,'Utility Functions'!$AD$3:$AD$7)","v":0},{"$f":"$Q$40*valuePL(Q8,'Utility Functions'!$AE$3:$AE$6,'Utility Functions'!$AF$3:$AF$6)","v":0},{"$f":"$R$40*valuePL(R8,'Utility Functions'!$AG$3:$AG$6,'Utility Functions'!$AH$3:$AH$6)","v":0.05},{"$f":"$S$40*valuePL(S8,'Utility Functions'!$AI$3:$AI$6,'Utility Functions'!$AJ$3:$AJ$6)","v":0.05},{"$f":"$T$40*valuePL(T8,'Utility Functions'!$AK$3:$AK$8,'Utility Functions'!$AL$3:$AL$8)","v":0},{"$f":"$U$40*valuePL(U8,'Utility Functions'!$AM$3:$AM$5,'Utility Functions'!$AN$3:$AN$5)","v":0},{"$f":"$V$40*valuePL(V8,'Utility Functions'!$AO$3:$AO$5,'Utility Functions'!$AP$3:$AP$5)","v":0.05},{"$f":"$W$40*valuePL(W8,'Utility Functions'!$AQ$3:$AQ$6,'Utility Functions'!$AR$3:$AR$6)","v":0},{"$f":"$X$40*valuePL(X8,'Utility Functions'!$AS$3:$AS$6,'Utility Functions'!$AT$3:$AT$6)","v":8.0000000000000002E-3},{"$f":"$Y$40*valuePL(Y8,'Utility Functions'!$AU$3:$AU$6,'Utility Functions'!$AV$3:$AV$6)","v":0.05},{"$f":"$Z$40*valuePL(Z8,'Utility Functions'!$AW$3:$AW$5,'Utility Functions'!$AX$3:$AX$5)","v":0.05},{"$f":"$AA$40*valuePL(AA8,'Utility Functions'!$AY$3:$AY$6,'Utility Functions'!$AZ$3:$AZ$6)","v":3.5999999999999997E-2},{"$f":"$AB$40*valuePL(AB8,'Utility Functions'!$BA$3:$BA$5,'Utility Functions'!$BB$3:$BB$5)","v":0},{"$f":"$AC$40*valuePL(AC8,'Utility Functions'!$BC$3:$BC$5,'Utility Functions'!$BD$3:$BD$5)","v":0.03},0.55883167443779502,0.55882779905507862,null,8.5422583528704174E-2,9.6909090909090917E-2,5.2499999999999998E-2,0.1,0.22400000000000003]
[8,{"$f":"$B$40*(valueE(B9,'Utility Functions'!$B$3,'Utility Functions'!$B$4,'Utility Functions'!$B$5,'Utility Functions'!$B$6))","v":1.3535671425672068E-2},{"$f":"$C$40*(valueE(C9,'Utility Functions'!$D$3,'Utility Functions'!$D$4,'Utility Functions'!$D$5,'Utility Functions'!$D$6))","v":2.542345105018548E-2},{"$f":"$D$40*(valuePL(D9,'Utility Functions'!$E$3:$E$5,'Utility Functions'!$F$3:$F$5))","v":0.03},{"$f":"$E$40*(valuePL(E9,'Utility Functions'!$G$3:$G$5,'Utility Functions'!$H$3:$H$5))","v":1.4999999999999999E-2},{"$f":"$F$40*(valuePL(F9,'Utility Functions'!$I$3:$I$4,'Utility Functions'!$J$3:$J$5))","v":0.04},{"$f":"$G$40*(valueE(G9,'Utility Functions'!$L$3,'Utility Functions'!$L$4,'Utility Functions'!$L$5,'Utility Functions'!$L$6))","v":0},{"$f":"$H$40*(valueE(H9,'Utility Functions'!$N$3,'Utility Functions'!$N$4,'Utility Functions'!$N$5,'Utility Functions'!$N$6))","v":0},{"$f":"$I$40*valuePL(I9,'Utility Functions'!$O$3:$O$6,'Utility Functions'!$P$3:$P$6)","v":1.6800000000000003E-3},{"$f":"$J$40*valuePL(J9,'Utility Functions'!$Q$3:$Q$6,'Utility Functions'!$R$3:$R$6)","v":1.6727272727272726E-2},{"$f":"$K$40*(valuePL(K9,'Utility Functions'!$S$3:$S$7,'Utility Functions'!$T$3:$T$7))","v":0},{"$f":"$L$40*(valueE(L9,'Utility Functions'!$V$3,'Utility Functions'!$V$4,'Utility Functions'!$V$5,'Utility Functions'!$V$6))","v":0.02},{"$f":"$M$40*valuePL(M9,'Utility Functions'!$W$3:$W$6,'Utility Functions'!$X$3:$X$6)","v":1.6727272727272726E-2},{"$f":"$N$40*valueE(N9,'Utility Functions'!$Z$3,'Utility Functions'!$Z$4,'Utility Functions'!$Z$5,'Utility Functions'!$Z$6)","v":0},{"$f":"$O$40*valuePL(O9,'Utility Functions'!$AA$3:$AA$5,'Utility Functions'!$AB$3:$AB$5)","v":0},{"$f":"$P$40*valuePL(P9,'Utility Functions'!$AC$3:$AC$7,'Utility Functions'!$AD$3:$AD$7)","v":0},{"$f":"$Q$40*valuePL(Q9,'Utility Functions'!$AE$3:$AE$6,'Utility Functions'!$AF$3:$AF$6)","v":0.04},{"$f":"$R$40*valuePL(R9,'Utility Functions'!$AG$3:$AG$6,'Utility Functions'!$AH$3:$AH$6)","v":1.0000000000000002E-2},{"$f":"$S$40*valuePL(S9,'Utility Functions'!$AI$3:$AI$6,'Utility Functions'!$AJ$3:$AJ$6)","v":0.05},{"$f":"$T$40*valuePL(T9,'Utility Functions'!$AK$3:$AK$8,'Utility Functions'!$AL$3:$AL$8)","v":0},{"$f":"$U$40*valuePL(U9,'Utility Functions'!$AM$3:$AM$5,'Utility Functions'!$AN$3:$AN$5)","v":0},{"$f":"$V$40*valuePL(V9,'Utility Functions'!$AO$3:$AO$5,'Utility Functions'!$AP$3:$AP$5)","v":0.05},{"$f":"$W$40*valuePL(W9,'Utility Functions'!$AQ$3:$AQ$6,'Utility Functions'!$AR$3:$AR$6)","v":0.04},{"$f":"$X$40*valuePL(X9,'Utility Functions'!$AS$3:$AS$6,'Utility Functions'!$AT$3:$AT$6)","v":0.04},{"$f":"$Y$40*valuePL(Y9,'Utility Functions'!$AU$3:$AU$6,'Utility Functions'!$AV$3:$AV$6)","v":0.05},{"$f":"$Z$40*valuePL(Z9,'Utility Functions'!$AW$3:$AW$5,'Utility Functions'!$AX$3:$AX$5)","v":0.05},{"$f":"$AA$40*valuePL(AA9,'Utility Functions'!$AY$3:$AY$6,'Utility Functions'!$AZ$3:$AZ$6)","v":0},{"$f":"$AB$40*valuePL(AB9,'Utility Functions'!$BA$3:$BA$5,'Utility Functions'!$BB$3:$BB$5)","v":0.01},{"$f":"$AC$40*valuePL(AC9,'Utility Functions'!$BC$3:$BC$5,'Utility Functions'!$BD$3:$BD$5)","v":7.4999999999999997E-3},0.52659366793040296,0.52486224359807299,null,0.12395912247585755,5.513454545454545E-2,0,0.1,0.2475]
[9,{"$f":"$B$40*(valueE(B10,'Utility Functions'!$B$3,'Utility Functions'!$B$4,'Utility Functions'!$B$5,'Utility Functions'!$B$6))","v":2.5041071294184137E-2},{"$f":"$C$40*(valueE(C10,'Utility Functions'!$D$3,'Utility Functions'!$D$4,'Utility Functions'!$D$5,'Utility Functions'!$D$6))","v":2.3696993705826886E-2},{"$f":"$D$40*(valuePL(D10,'Utility Functions'!$E$3:$E$5,'Utility Functions'!$F$3:$F$5))","v":0.03},{"$f":"$E$40*(valuePL(E10,'Utility Functions'!$G$3:$G$5,'Utility Functions'!$H$3:$H$5))","v":1.4999999999999999E-2},{"$f":"$F$40*(valuePL(F10,'Utility Functions'!$I$3:$I$4,'Utility Functions'!$J$3:$J$5))","v":0},{"$f":"$G$40*(valueE(G10,'Utility Functions'!$L$3,'Utility Functions'!$L$4,'Utility Functions'!$L$5,'Utility Functions'!$L$6))","v":5.6451612903225803E-3},{"$f":"$H$40*(valueE(H10,'Utility Functions'!$N$3,'Utility Functions'!$N$4,'Utility Functions'!$N$5,'Utility Functions'!$N$6))","v":1.9924098671726754E-3},{"$f":"$I$40*valuePL(I10,'Utility Functions'!$O$3:$O$6,'Utility Functions'!$P$3:$P$6)","v":0},{"$f":"$J$40*valuePL(J10,'Utility Functions'!$Q$3:$Q$6,'Utility Functions'!$R$3:$R$6)","v":0},{"$f":"$K$40*(valuePL(K10,'Utility Functions'!$S$3:$S$7,'Utility Functions'!$T$3:$T$7))","v":0},{"$f":"$L$40*(valueE(L10,'Utility Functions'!$V$3,'Utility Functions'!$V$4,'Utility Functions'!$V$5,'Utility Functions'!$V$6))","v":0},{"$f":"$M$40*valuePL(M10,'Utility Functions'!$W$3:$W$6,'Utility Functions'!$X$3:$X$6)","v":0},{"$f":"$N$40*valueE(N10,'Utility Functions'!$Z$3,'Utility Functions'!$Z$4,'Utility Functions'!$Z$5,'Utility Functions'!$Z$6)","v":0},{"$f":"$O$40*valuePL(O10,'Utility Functions'!$AA$3:$AA$5,'Utility Functions'!$AB$3:$AB$5)","v":0},{"$f":"$P$40*valuePL(P10,'Utility Functions'!$AC$3:$AC$7,'Utility Functions'!$AD$3:$AD$7)","v":0.03},{"$f":"$Q$40*valuePL(Q10,'Utility Functions'!$AE$3:$AE$6,'Utility Functions'!$AF$3:$AF$6)","v":0},{"$f":"$R$40*valuePL(R10,'Utility Functions'!$AG$3:$AG$6,'Utility Functions'!$AH$3:$AH$6)","v":0.05},{"$f":"$S$40*valuePL(S10,'Utility Functions'!$AI$3:$AI$6,'Utility Functions'!$AJ$3:$AJ$6)","v":3.3000000000000002E-2},{"$f":"$T$40*valuePL(T10,'Utility Functions'!$AK$3:$AK$8,'Utility Functions'!$AL$3:$AL$8)","v":6.0000000000000001E-3},{"$f":"$U$40*valuePL(U10,'Utility Functions'!$AM$3:$AM$5,'Utility Functions'!$AN$3:$AN$5)","v":0},{"$f":"$V$40*valuePL(V10,'Utility Functions'!$AO$3:$AO$5,'Utility Functions'!$AP$3:$AP$5)","v":0.05},{"$f":"$W$40*valuePL(W10,'Utility Functions'!$AQ$3:$AQ$6,'Utility Functions'!$AR$3:$AR$6)","v":0.04},{"$f":"$X$40*valuePL(X10,'Utility Functions'!$AS$3:$AS$6,'Utility Functions'!$AT$3:$AT$6)","v":0.04},{"$f":"$Y$40*valuePL(Y10,'Utility Functions'!$AU$3:$AU$6,'Utility Functions'!$AV$3:$AV$6)","v":1.0000000000000002E-2},{"$f":"$Z$40*valuePL(Z10,'Utility Functions'!$AW$3:$AW$5,'Utility Functions'!$AX$3:$AX$5)","v":0.05},{"$f":"$AA$40*valuePL(AA10,'Utility Functions'!$AY$3:$AY$6,'Utility Functions'!$AZ$3:$AZ$6)","v":8.0000000000000002E-3},{"$f":"$AB$40*valuePL(AB10,'Utility Functions'!$BA$3:$BA$5,'Utility Functions'!$BB$3:$BB$5)","v":0.01},{"$f":"$AC$40*valuePL(AC10,'Utility Functions'!$BC$3:$BC$5,'Utility Functions'!$BD$3:$BD$5)","v":0.03},0.45837563615750632,0.45664098955774823,null,9.3738065000011014E-2,7.6375711574952557E-3,0,0.11900000000000001,0.23800000000000002]
[10,{"$f":"$B$40*(valueE(B11,'Utility Functions'!$B$3,'Utility Functions'!$B$4,'Utility Functions'!$B$5,'Utility Functions'!$B$6))","v":0},{"$f":"$C$40*(valueE(C11,'Utility Functions'!$D$3,'Utility Functions'!$D$4,'Utility Functions'!$D$5,'Utility Functions'!$D$6))","v":0},{"$f":"$D$40*(valuePL(D11,'Utility Functions'!$E$3:$E$5,'Utility Functions'!$F$3:$F$5))","v":0},{"$f":"$E$40*(valuePL(E11,'Utility Functions'!$G$3:$G$5,'Utility Functions'!$H$3:$H$5))","v":0},{"$f":"$F$40*(valuePL(F11,'Utility Functions'!$I$3:$I$4,'Utility Functions'!$J$3:$J$5))","v":0},{"$f":"$G$40*(valueE(G11,'Utility Functions'!$L$3,'Utility Functions'!$L$4,'Utility Functions'!$L$5,'Utility Functions'!$L$6))","v":0},{"$f":"$H$40*(valueE(H11,'Utility Functions'!$N$3,'Utility Functions'!$N$4,'Utility Functions'!$N$5,'Utility Functions'!$N$6))","v":0},{"$f":"$I$40*valuePL(I11,'Utility Functions'!$O$3:$O$6,'Utility Functions'!$P$3:$P$6)","v":0},{"$f":"$J$40*valuePL(J11,'Utility Functions'!$Q$3:$Q$6,'Utility Functions'!$R$3:$R$6)","v":0},{"$f":"$K$40*(valuePL(K11,'Utility Functions'!$S$3:$S$7,'Utility Functions'!$T$3:$T$7))","v":0},{"$f":"$L$40*(valueE(L11,'Utility Functions'!$V$3,'Utility Functions'!$V$4,'Utility Functions'!$V$5,'Utility Functions'!$V$6))","v":0},{"$f":"$M$40*valuePL(M11,'Utility Functions'!$W$3:$W$6,'Utility Functions'!$X$3:$X$6)","v":0},{"$f":"$N$40*valueE(N11,'Utility Functions'!$Z$3,'Utility Functions'!$Z$4,'Utility Functions'!$Z$5,'Utility Functions'!$Z$6)","v":2.2499999999999999E-2},{"$f":"$O$40*valuePL(O11,'Utility Functions'!$AA$3:$AA$5,'Utility Functions'!$AB$3:$AB$5)","v":0.09},{"$f":"$P$40*valuePL(P11,'Utility Functions'!$AC$3:$AC$7,'Utility Functions'!$AD$3:$AD$7)","v":0.01},{"$f":"$Q$40*valuePL(Q11,'Utility Functions'!$AE$3:$AE$6,'Utility Functions'!$AF$3:$AF$6)","v":0.02},{"$f":"$R$40*valuePL(R11,'Utility Functions'!$AG$3:$AG$6,'Utility Functions'!$AH$3:$AH$6)","v":0.05},{"$f":"$S$40*valuePL(S11,'Utility Functions'!$AI$3:$AI$6,'Utility Functions'!$AJ$3:$AJ$6)","v":3.3000000000000002E-2},{"$f":"$T$40*valuePL(T11,'Utility Functions'!$AK$3:$AK$8,'Utility Functions'!$AL$3:$AL$8)","v":1.2E-2},{"$f":"$U$40*valuePL(U11,'Utility Functions'!$AM$3:$AM$5,'Utility Functions'!$AN$3:$AN$5)","v":0},{"$f":"$V$40*valuePL(V11,'Utility Functions'!$AO$3:$AO$5,'Utility Functions'!$AP$3:$AP$5)","v":0},{"$f":"$W$40*valuePL(W11,'Utility Functions'!$AQ$3:$AQ$6,'Utility Functions'!$AR$3:$AR$6)","v":0.03},{"$f":"$X$40*valuePL(X11,'Utility Functions'!$AS$3:$AS$6,'Utility Functions'!$AT$3:$AT$6)","v":0.04},{"$f":"$Y$40*valuePL(Y11,'Utility Functions'!$AU$3:$AU$6,'Utility Functions'!$AV$3:$AV$6)","v":0.05},{"$f":"$Z$40*valuePL(Z11,'Utility Functions'!$AW$3:$AW$5,'Utility Functions'!$AX$3:$AX$5)","v":2.5000000000000001E-2},{"$f":"$AA$40*valuePL(AA11,'Utility Functions'!$AY$3:$AY$6,'Utility Functions'!$AZ$3:$AZ$6)","v":8.0000000000000002E-3},{"$f":"$AB$40*valuePL(AB11,'Utility Functions'!$BA$3:$BA$5,'Utility Functions'!$BB$3:$BB$5)","v":0},{"$f":"$AC$40*valuePL(AC11,'Utility Functions'!$BC$3:$BC$5,'Utility Functions'!$BD$3:$BD$5)","v":0.03},0.42049999999999998,0.42049999999999998,null,0,0,0.11249999999999999,0.125,0.18300000000000002]
[11,{"$f":"$B$40*(valueE(B12,'Utility Functions'!$B$3,'Utility Functions'!$B$4,'Utility Functions'!$B$5,'Utility Functions'!$B$6))","v":0},{"$f":"$C$40*(valueE(C12,'Utility Functions'!$D$3,'Utility Functions'!$D$4,'Utility Functions'!$D$5,'Utility Functions'!$D$6))","v":0},{"$f":"$D$40*(valuePL(D12,'Utility Functions'!$E$3:$E$5,'Utility Functions'!$F$3:$F$5))","v":0},{"$f":"$E$40*(valuePL(E12,'Utility Functions'!$G$3:$G$5,'Utility Functions'!$H$3:$H$5))","v":0},{"$f":"$F$40*(valuePL(F12,'Utility Functions'!$I$3:$I$4,'Utility Functions'!$J$3:$J$5))","v":0},{"$f":"$G$40*(valueE(G12,'Utility Functions'!$L$3,'Utility Functions'!$L$4,'Utility Functions'!$L$5,'Utility Functions'!$L$6))","v":4.8387096774193543E-4},{"$f":"$H$40*(valueE(H12,'Utility Functions'!$N$3,'Utility Functions'!$N$4,'Utility Functions'!$N$5,'Utility Functions'!$N$6))","v":1.4516129032258063E-3},{"$f":"$I$40*valuePL(I12,'Utility Functions'!$O$3:$O$6,'Utility Functions'!$P$3:$P$6)","v":1.6254545454545456E-2},{"$f":"$J$40*valuePL(J12,'Utility Functions'!$Q$3:$Q$6,'Utility Functions'!$R$3:$R$6)","v":1.8363636363636363E-2},{"$f":"$K$40*(valuePL(K12,'Utility Functions'!$S$3:$S$7,'Utility Functions'!$T$3:$T$7))","v":1.0836363636363637E-2},{"$f":"$L$40*(valueE(L12,'Utility Functions'!$V$3,'Utility Functions'!$V$4,'Utility Functions'!$V$5,'Utility Functions'!$V$6))","v":0.02},{"$f":"$M$40*valuePL(M12,'Utility Functions'!$W$3:$W$6,'Utility Functions'!$X$3:$X$6)","v":1.8363636363636363E-2},{"$f":"$N$40*valueE(N12,'Utility Functions'!$Z$3,'Utility Functions'!$Z$4,'Utility Functions'!$Z$5,'Utility Functions'!$Z$6)","v":1.125E-2},{"$f":"$O$40*valuePL(O12,'Utility Functions'!$AA$3:$AA$5,'Utility Functions'!$AB$3:$AB$5)","v":2.2499999999999999E-2},{"$f":"$P$40*valuePL(P12,'Utility Functions'!$AC$3:$AC$7,'Utility Functions'!$AD$3:$AD$7)","v":0.01},{"$f":"$Q$40*valuePL(Q12,'Utility Functions'!$AE$3:$AE$6,'Utility Functions'!$AF$3:$AF$6)","v":0},{"$f":"$R$40*valuePL(R12,'Utility Functions'!$AG$3:$AG$6,'Utility Functions'!$AH$3:$AH$6)","v":0.05},{"$f":"$S$40*valuePL(S12,'Utility Functions'!$AI$3:$AI$6,'Utility Functions'!$AJ$3:$AJ$6)","v":0.05},{"$f":"$T$40*valuePL(T12,'Utility Functions'!$AK$3:$AK$8,'Utility Functions'!$AL$3:$AL$8)","v":1.2E-2},{"$f":"$U$40*valuePL(U12,'Utility Functions'!$AM$3:$AM$5,'Utility Functions'!$AN$3:$AN$5)","v":0.03},{"$f":"$V$40*valuePL(V12,'Utility Functions'!$AO$3:$AO$5,'Utility Functions'!$AP$3:$AP$5)","v":0.05},{"$f":"$W$40*valuePL(W12,'Utility Functions'!$AQ$3:$AQ$6,'Utility Functions'!$AR$3:$AR$6)","v":8.0000000000000002E-3},{"$f":"$X$40*valuePL(X12,'Utility Functions'!$AS$3:$AS$6,'Utility Functions'!$AT$3:$AT$6)","v":0.04},{"$f":"$Y$40*valuePL(Y12,'Utility Functions'!$AU$3:$AU$6,'Utility Functions'!$AV$3:$AV$6)","v":0.05},{"$f":"$Z$40*valuePL(Z12,'Utility Functions'!$AW$3:$AW$5,'Utility Functions'!$AX$3:$AX$5)","v":2.5000000000000001E-2},{"$f":"$AA$40*valuePL(AA12,'Utility Functions'!$AY$3:$AY$6,'Utility Functions'!$AZ$3:$AZ$6)","v":3.5999999999999997E-2},{"$f":"$AB$40*valuePL(AB12,'Utility Functions'!$BA$3:$BA$5,'Utility Functions'!$BB$3:$BB$5)","v":0},{"$f":"$AC$40*valuePL(AC12,'Utility Functions'!$BC$3:$BC$5,'Utility Functions'!$BD$3:$BD$5)","v":7.4999999999999997E-3},0.48800366568914949,0.48800366568914949,null,0,8.575366568914955E-2,3.3750000000000002E-2,0.15200000000000002,0.21650000000000003]
[12,{"$f":"$B$40*(valueE(B13,'Utility Functions'!$B$3,'Utility Functions'!$B$4,'Utility Functions'!$B$5,'Utility Functions'!$B$6))","v":9.8904136043327599E-3},{"$f":"$C$40*(valueE(C13,'Utility Functions'!$D$3,'Utility Functions'!$D$4,'Utility Functions'!$D$5,'Utility Functions'!$D$6))","v":2.3696993705826886E-2},{"$f":"$D$40*(valuePL(D13,'Utility Functions'!$E$3:$E$5,'Utility Functions'!$F$3:$F$5))","v":0.03},{"$f":"$E$40*(valuePL(E13,'Utility Functions'!$G$3:$G$5,'Utility Functions'!$H$3:$H$5))","v":1.4999999999999999E-2},{"$f":"$F$40*(valuePL(F13,'Utility Functions'!$I$3:$I$4,'Utility Functions'!$J$3:$J$5))","v":0},{"$f":"$G$40*(valueE(G13,'Utility Functions'!$L$3,'Utility Functions'!$L$4,'Utility Functions'!$L$5,'Utility Functions'!$L$6))","v":0},{"$f":"$H$40*(valueE(H13,'Utility Functions'!$N$3,'Utility Functions'!$N$4,'Utility Functions'!$N$5,'Utility Functions'!$N$6))","v":0},{"$f":"$I$40*valuePL(I13,'Utility Functions'!$O$3:$O$6,'Utility Functions'!$P$3:$P$6)","v":0},{"$f":"$J$40*valuePL(J13,'Utility Functions'!$Q$3:$Q$6,'Utility Functions'!$R$3:$R$6)","v":0},{"$f":"$K$40*(valuePL(K13,'Utility Functions'!$S$3:$S$7,'Utility Functions'!$T$3:$T$7))","v":0},{"$f":"$L$40*(valueE(L13,'Utility Functions'!$V$3,'Utility Functions'!$V$4,'Utility Functions'!$V$5,'Utility Functions'!$V$6))","v":0},{"$f":"$M$40*valuePL(M13,'Utility Functions'!$W$3:$W$6,'Utility Functions'!$X$3:$X$6)","v":0},{"$f":"$N$40*valueE(N13,'Utility Functions'!$Z$3,'Utility Functions'!$Z$4,'Utility Functions'!$Z$5,'Utility Functions'!$Z$6)","v":0},{"$f":"$O$40*valuePL(O13,'Utility Functions'!$AA$3:$AA$5,'Utility Functions'!$AB$3:$AB$5)","v":0},{"$f":"$P$40*valuePL(P13,'Utility Functions'!$AC$3:$AC$7,'Utility Functions'!$AD$3:$AD$7)","v":0},{"$f":"$Q$40*valuePL(Q13,'Utility Functions'!$AE$3:$AE$6,'Utility Functions'!$AF$3:$AF$6)","v":4.0000000000000001E-3},{"$f":"$R$40*valuePL(R13,'Utility Functions'!$AG$3:$AG$6,'Utility Functions'!$AH$3:$AH$6)","v":0.05},{"$f":"$S$40*valuePL(S13,'Utility Functions'!$AI$3:$AI$6,'Utility Functions'!$AJ$3:$AJ$6)","v":0.05},{"$f":"$T$40*valuePL(T13,'Utility Functions'!$AK$3:$AK$8,'Utility Functions'!$AL$3:$AL$8)","v":1.7999999999999999E-2},{"$f":"$U$40*valuePL(U13,'Utility Functions'!$AM$3:$AM$5,'Utility Functions'!$AN$3:$AN$5)","v":0},{"$f":"$V$40*valuePL(V13,'Utility Functions'!$AO$3:$AO$5,'Utility Functions'!$AP$3:$AP$5)","v":2.5000000000000001E-2},{"$f":"$W$40*valuePL(W13,'Utility Functions'!$AQ$3:$AQ$6,'Utility Functions'!$AR$3:$AR$6)","v":8.0000000000000002E-3},{"$f":"$X$40*valuePL(X13,'Utility Functions'!$AS$3:$AS$6,'Utility Functions'!$AT$3:$AT$6)","v":0.04},{"$f":"$Y$40*valuePL(Y13,'Utility Functions'!$AU$3:$AU$6,'Utility Functions'!$AV$3:$AV$6)","v":1.0000000000000002E-2},{"$f":"$Z$40*valuePL(Z13,'Utility Functions'!$AW$3:$AW$5,'Utility Functions'!$AX$3:$AX$5)","v":0.05},{"$f":"$AA$40*valuePL(AA13,'Utility Functions'!$AY$3:$AY$6,'Utility Functions'!$AZ$3:$AZ$6)","v":8.0000000000000002E-3},{"$f":"$AB$40*valuePL(AB13,'Utility Functions'!$BA$3:$BA$5,'Utility Functions'!$BB$3:$BB$5)","v":0.04},{"$f":"$AC$40*valuePL(AC13,'Utility Functions'!$BC$3:$BC$5,'Utility Functions'!$BD$3:$BD$5)","v":0},0.38158740731015961,0.38020117461803976,null,7.8587407310159646E-2,0,0,0.12200000000000001,0.18100000000000002]
[13,{"$f":"$B$40*(valueE(B14,'Utility Functions'!$B$3,'Utility Functions'!$B$4,'Utility Functions'!$B$5,'Utility Functions'!$B$6))","v":0},{"$f":"$C$40*(valueE(C14,'Utility Functions'!$D$3,'Utility Functions'!$D$4,'Utility Functions'!$D$5,'Utility Functions'!$D$6))","v":0},{"$f":"$D$40*(valuePL(D14,'Utility Functions'!$E$3:$E$5,'Utility Functions'!$F$3:$F$5))","v":0},{"$f":"$E$40*(valuePL(E14,'Utility Functions'!$G$3:$G$5,'Utility Functions'!$H$3:$H$5))","v":0},{"$f":"$F$40*(valuePL(F14,'Utility Functions'!$I$3:$I$4,'Utility Functions'!$J$3:$J$5))","v":0},{"$f":"$G$40*(valueE(G14,'Utility Functions'!$L$3,'Utility Functions'!$L$4,'Utility Functions'!$L$5,'Utility Functions'!$L$6))","v":0},{"$f":"$H$40*(valueE(H14,'Utility Functions'!$N$3,'Utility Functions'!$N$4,'Utility Functions'!$N$5,'Utility Functions'!$N$6))","v":1.7077798861480075E-4},{"$f":"$I$40*valuePL(I14,'Utility Functions'!$O$3:$O$6,'Utility Functions'!$P$3:$P$6)","v":9.8727272727272726E-3},{"$f":"$J$40*valuePL(J14,'Utility Functions'!$Q$3:$Q$6,'Utility Functions'!$R$3:$R$6)","v":8.0000000000000004E-4},{"$f":"$K$40*(valuePL(K14,'Utility Functions'!$S$3:$S$7,'Utility Functions'!$T$3:$T$7))","v":6.5818181818181817E-3},{"$f":"$L$40*(valueE(L14,'Utility Functions'!$V$3,'Utility Functions'!$V$4,'Utility Functions'!$V$5,'Utility Functions'!$V$6))","v":0.02},{"$f":"$M$40*valuePL(M14,'Utility Functions'!$W$3:$W$6,'Utility Functions'!$X$3:$X$6)","v":8.0000000000000004E-4},{"$f":"$N$40*valueE(N14,'Utility Functions'!$Z$3,'Utility Functions'!$Z$4,'Utility Functions'!$Z$5,'Utility Functions'!$Z$6)","v":2.6249999999999999E-2},{"$f":"$O$40*valuePL(O14,'Utility Functions'!$AA$3:$AA$5,'Utility Functions'!$AB$3:$AB$5)","v":2.2499999999999999E-2},{"$f":"$P$40*valuePL(P14,'Utility Functions'!$AC$3:$AC$7,'Utility Functions'!$AD$3:$AD$7)","v":0.01},{"$f":"$Q$40*valuePL(Q14,'Utility Functions'!$AE$3:$AE$6,'Utility Functions'!$AF$3:$AF$6)","v":0},{"$f":"$R$40*valuePL(R14,'Utility Functions'!$AG$3:$AG$6,'Utility Functions'!$AH$3:$AH$6)","v":0.05},{"$f":"$S$40*valuePL(S14,'Utility Functions'!$AI$3:$AI$6,'Utility Functions'!$AJ$3:$AJ$6)","v":0.05},{"$f":"$T$40*valuePL(T14,'Utility Functions'!$AK$3:$AK$8,'Utility Functions'!$AL$3:$AL$8)","v":0},{"$f":"$U$40*valuePL(U14,'Utility Functions'!$AM$3:$AM$5,'Utility Functions'!$AN$3:$AN$5)","v":0},{"$f":"$V$40*valuePL(V14,'Utility Functions'!$AO$3:$AO$5,'Utility Functions'!$AP$3:$AP$5)","v":2.5000000000000001E-2},{"$f":"$W$40*valuePL(W14,'Utility Functions'!$AQ$3:$AQ$6,'Utility Functions'!$AR$3:$AR$6)","v":0},{"$f":"$X$40*valuePL(X14,'Utility Functions'!$AS$3:$AS$6,'Utility Functions'!$AT$3:$AT$6)","v":8.0000000000000002E-3},{"$f":"$Y$40*valuePL(Y14,'Utility Functions'!$AU$3:$AU$6,'Utility Functions'!$AV$3:$AV$6)","v":0},{"$f":"$Z$40*valuePL(Z14,'Utility Functions'!$AW$3:$AW$5,'Utility Functions'!$AX$3:$AX$5)","v":0.05},{"$f":"$AA$40*valuePL(AA14,'Utility Functions'!$AY$3:$AY$6,'Utility Functions'!$AZ$3:$AZ$6)","v":8.0000000000000002E-3},{"$f":"$AB$40*valuePL(AB14,'Utility Functions'!$BA$3:$BA$5,'Utility Functions'!$BB$3:$BB$5)","v":0.01},{"$f":"$AC$40*valuePL(AC14,'Utility Functions'!$BC$3:$BC$5,'Utility Functions'!$BD$3:$BD$5)","v":7.4999999999999997E-3},0.30547532344316031,0.30547532344316031,null,0,3.8225323443160257E-2,4.8750000000000002E-2,0.11000000000000001,0.10849999999999999]
[14,{"$f":"$B$40*(valueE(B15,'Utility Functions'!$B$3,'Utility Functions'!$B$4,'Utility Functions'!$B$5,'Utility Functions'!$B$6))","v":2.0964205406426323E-2},{"$f":"$C$40*(valueE(C15,'Utility Functions'!$D$3,'Utility Functions'!$D$4,'Utility Functions'!$D$5,'Utility Functions'!$D$6))","v":2.3696993705826886E-2},{"$f":"$D$40*(valuePL(D15,'Utility Functions'!$E$3:$E$5,'Utility Functions'!$F$3:$F$5))","v":1.4999999999999999E-2},{"$f":"$E$40*(valuePL(E15,'Utility Functions'!$G$3:$G$5,'Utility Functions'!$H$3:$H$5))","v":1.4999999999999999E-2},{"$f":"$F$40*(valuePL(F15,'Utility Functions'!$I$3:$I$4,'Utility Functions'!$J$3:$J$5))","v":0},{"$f":"$G$40*(valueE(G15,'Utility Functions'!$L$3,'Utility Functions'!$L$4,'Utility Functions'!$L$5,'Utility Functions'!$L$6))","v":0},{"$f":"$H$40*(valueE(H15,'Utility Functions'!$N$3,'Utility Functions'!$N$4,'Utility Functions'!$N$5,'Utility Functions'!$N$6))","v":0},{"$f":"$I$40*valuePL(I15,'Utility Functions'!$O$3:$O$6,'Utility Functions'!$P$3:$P$6)","v":0},{"$f":"$J$40*valuePL(J15,'Utility Functions'!$Q$3:$Q$6,'Utility Functions'!$R$3:$R$6)","v":0},{"$f":"$K$40*(valuePL(K15,'Utility Functions'!$S$3:$S$7,'Utility Functions'!$T$3:$T$7))","v":0},{"$f":"$L$40*(valueE(L15,'Utility Functions'!$V$3,'Utility Functions'!$V$4,'Utility Functions'!$V$5,'Utility Functions'!$V$6))","v":0},{"$f":"$M$40*valuePL(M15,'Utility Functions'!$W$3:$W$6,'Utility Functions'!$X$3:$X$6)","v":0},{"$f":"$N$40*valueE(N15,'Utility Functions'!$Z$3,'Utility Functions'!$Z$4,'Utility Functions'!$Z$5,'Utility Functions'!$Z$6)","v":2.2499999999999999E-2},{"$f":"$O$40*valuePL(O15,'Utility Functions'!$AA$3:$AA$5,'Utility Functions'!$AB$3:$AB$5)","v":2.2499999999999999E-2},{"$f":"$P$40*valuePL(P15,'Utility Functions'!$AC$3:$AC$7,'Utility Functions'!$AD$3:$AD$7)","v":0.01},{"$f":"$Q$40*valuePL(Q15,'Utility Functions'!$AE$3:$AE$6,'Utility Functions'!$AF$3:$AF$6)","v":0},{"$f":"$R$40*valuePL(R15,'Utility Functions'!$AG$3:$AG$6,'Utility Functions'!$AH$3:$AH$6)","v":0.05},{"$f":"$S$40*valuePL(S15,'Utility Functions'!$AI$3:$AI$6,'Utility Functions'!$AJ$3:$AJ$6)","v":0.05},{"$f":"$T$40*valuePL(T15,'Utility Functions'!$AK$3:$AK$8,'Utility Functions'!$AL$3:$AL$8)","v":0},{"$f":"$U$40*valuePL(U15,'Utility Functions'!$AM$3:$AM$5,'Utility Functions'!$AN$3:$AN$5)","v":0},{"$f":"$V$40*valuePL(V15,'Utility Functions'!$AO$3:$AO$5,'Utility Functions'!$AP$3:$AP$5)","v":2.5000000000000001E-2},{"$f":"$W$40*valuePL(W15,'Utility Functions'!$AQ$3:$AQ$6,'Utility Functions'!$AR$3:$AR$6)","v":8.0000000000000002E-3},{"$f":"$X$40*valuePL(X15,'Utility Functions'!$AS$3:$AS$6,'Utility Functions'!$AT$3:$AT$6)","v":0.04},{"$f":"$Y$40*valuePL(Y15,'Utility Functions'!$AU$3:$AU$6,'Utility Functions'!$AV$3:$AV$6)","v":0.05},{"$f":"$Z$40*valuePL(Z15,'Utility Functions'!$AW$3:$AW$5,'Utility Functions'!$AX$3:$AX$5)","v":2.5000000000000001E-2},{"$f":"$AA$40*valuePL(AA15,'Utility Functions'!$AY$3:$AY$6,'Utility Functions'!$AZ$3:$AZ$6)","v":3.5999999999999997E-2},{"$f":"$AB$40*valuePL(AB15,'Utility Functions'!$BA$3:$BA$5,'Utility Functions'!$BB$3:$BB$5)","v":0.01},{"$f":"$AC$40*valuePL(AC15,'Utility Functions'!$BC$3:$BC$5,'Utility Functions'!$BD$3:$BD$5)","v":7.4999999999999997E-3},0.4311611991122532,0.42916087857610469,null,7.4661199112253204E-2,0,4.4999999999999998E-2,0.11000000000000001,0.20150000000000004]
[15,{"$f":"$B$40*(valueE(B16,'Utility Functions'!$B$3,'Utility Functions'!$B$4,'Utility Functions'!$B$5,'Utility Functions'!$B$6))","v":2.9698489925153143E-2},{"$f":"$C$40*(valueE(C16,'Utility Functions'!$D$3,'Utility Functions'!$D$4,'Utility Functions'!$D$5,'Utility Functions'!$D$6))","v":2.1405827917278249E-2},{"$f":"$D$40*(valuePL(D16,'Utility Functions'!$E$3:$E$5,'Utility Functions'!$F$3:$F$5))","v":0.03},{"$f":"$E$40*(valuePL(E16,'Utility Functions'!$G$3:$G$5,'Utility Functions'!$H$3:$H$5))","v":1.4999999999999999E-2},{"$f":"$F$40*(valuePL(F16,'Utility Functions'!$I$3:$I$4,'Utility Functions'!$J$3:$J$5))","v":0.04},{"$f":"$G$40*(valueE(G16,'Utility Functions'!$L$3,'Utility Functions'!$L$4,'Utility Functions'!$L$5,'Utility Functions'!$L$6))","v":0},{"$f":"$H$40*(valueE(H16,'Utility Functions'!$N$3,'Utility Functions'!$N$4,'Utility Functions'!$N$5,'Utility Functions'!$N$6))","v":0},{"$f":"$I$40*valuePL(I16,'Utility Functions'!$O$3:$O$6,'Utility Functions'!$P$3:$P$6)","v":2.7600000000000003E-3},{"$f":"$J$40*valuePL(J16,'Utility Functions'!$Q$3:$Q$6,'Utility Functions'!$R$3:$R$6)","v":1.2000000000000003E-3},{"$f":"$K$40*(valuePL(K16,'Utility Functions'!$S$3:$S$7,'Utility Functions'!$T$3:$T$7))","v":1.2000000000000003E-3},{"$f":"$L$40*(valueE(L16,'Utility Functions'!$V$3,'Utility Functions'!$V$4,'Utility Functions'!$V$5,'Utility Functions'!$V$6))","v":0.02},{"$f":"$M$40*valuePL(M16,'Utility Functions'!$W$3:$W$6,'Utility Functions'!$X$3:$X$6)","v":1.2000000000000003E-3},{"$f":"$N$40*valueE(N16,'Utility Functions'!$Z$3,'Utility Functions'!$Z$4,'Utility Functions'!$Z$5,'Utility Functions'!$Z$6)","v":3.7499999999999999E-3},{"$f":"$O$40*valuePL(O16,'Utility Functions'!$AA$3:$AA$5,'Utility Functions'!$AB$3:$AB$5)","v":0.09},{"$f":"$P$40*valuePL(P16,'Utility Functions'!$AC$3:$AC$7,'Utility Functions'!$AD$3:$AD$7)","v":0.02},{"$f":"$Q$40*valuePL(Q16,'Utility Functions'!$AE$3:$AE$6,'Utility Functions'!$AF$3:$AF$6)","v":0},{"$f":"$R$40*valuePL(R16,'Utility Functions'!$AG$3:$AG$6,'Utility Functions'!$AH$3:$AH$6)","v":4.0000000000000008E-2},{"$f":"$S$40*valuePL(S16,'Utility Functions'!$AI$3:$AI$6,'Utility Functions'!$AJ$3:$AJ$6)","v":0.05},{"$f":"$T$40*valuePL(T16,'Utility Functions'!$AK$3:$AK$8,'Utility Functions'!$AL$3:$AL$8)","v":1.7999999999999999E-2},{"$f":"$U$40*valuePL(U16,'Utility Functions'!$AM$3:$AM$5,'Utility Functions'!$AN$3:$AN$5)","v":0.03},{"$f":"$V$40*valuePL(V16,'Utility Functions'!$AO$3:$AO$5,'Utility Functions'!$AP$3:$AP$5)","v":0},{"$f":"$W$40*valuePL(W16,'Utility Functions'!$AQ$3:$AQ$6,'Utility Functions'!$AR$3:$AR$6)","v":0.04},{"$f":"$X$40*valuePL(X16,'Utility Functions'!$AS$3:$AS$6,'Utility Functions'!$AT$3:$AT$6)","v":8.0000000000000002E-3},{"$f":"$Y$40*valuePL(Y16,'Utility Functions'!$AU$3:$AU$6,'Utility Functions'!$AV$3:$AV$6)","v":1.0000000000000002E-2},{"$f":"$Z$40*valuePL(Z16,'Utility Functions'!$AW$3:$AW$5,'Utility Functions'!$AX$3:$AX$5)","v":0.05},{"$f":"$AA$40*valuePL(AA16,'Utility Functions'!$AY$3:$AY$6,'Utility Functions'!$AZ$3:$AZ$6)","v":0.04},{"$f":"$AB$40*valuePL(AB16,'Utility Functions'!$BA$3:$BA$5,'Utility Functions'!$BB$3:$BB$5)","v":0.04},{"$f":"$AC$40*valuePL(AC16,'Utility Functions'!$BC$3:$BC$5,'Utility Functions'!$BD$3:$BD$5)","v":7.4999999999999997E-3},0.60971431784243146,0.60936712175502528,null,0.13610431784243138,2.6360000000000001E-2,9.375E-2,0.158,0.19550000000000003]
[16,{"$f":"$B$40*(valueE(B17,'Utility Functions'!$B$3,'Utility Functions'!$B$4,'Utility Functions'!$B$5,'Utility Functions'!$B$6))","v":0},{"$f":"$C$40*(valueE(C17,'Utility Functions'!$D$3,'Utility Functions'!$D$4,'Utility Functions'!$D$5,'Utility Functions'!$D$6))","v":0},{"$f":"$D$40*(valuePL(D17,'Utility Functions'!$E$3:$E$5,'Utility Functions'!$F$3:$F$5))","v":0},{"$f":"$E$40*(valuePL(E17,'Utility Functions'!$G$3:$G$5,'Utility Functions'!$H$3:$H$5))","v":0},{"$f":"$F$40*(valuePL(F17,'Utility Functions'!$I$3:$I$4,'Utility Functions'!$J$3:$J$5))","v":0},{"$f":"$G$40*(valueE(G17,'Utility Functions'!$L$3,'Utility Functions'!$L$4,'Utility Functions'!$L$5,'Utility Functions'!$L$6))","v":0},{"$f":"$H$40*(valueE(H17,'Utility Functions'!$N$3,'Utility Functions'!$N$4,'Utility Functions'!$N$5,'Utility Functions'!$N$6))","v":0},{"$f":"$I$40*valuePL(I17,'Utility Functions'!$O$3:$O$6,'Utility Functions'!$P$3:$P$6)","v":0.03},{"$f":"$J$40*valuePL(J17,'Utility Functions'!$Q$3:$Q$6,'Utility Functions'!$R$3:$R$6)","v":1.8363636363636363E-2},{"$f":"$K$40*(valuePL(K17,'Utility Functions'!$S$3:$S$7,'Utility Functions'!$T$3:$T$7))","v":0.02},{"$f":"$L$40*(valueE(L17,'Utility Functions'!$V$3,'Utility Functions'!$V$4,'Utility Functions'!$V$5,'Utility Functions'!$V$6))","v":1.6666666666666666E-2},{"$f":"$M$40*valuePL(M17,'Utility Functions'!$W$3:$W$6,'Utility Functions'!$X$3:$X$6)","v":1.8363636363636363E-2},{"$f":"$N$40*valueE(N17,'Utility Functions'!$Z$3,'Utility Functions'!$Z$4,'Utility Functions'!$Z$5,'Utility Functions'!$Z$6)","v":0},{"$f":"$O$40*valuePL(O17,'Utility Functions'!$AA$3:$AA$5,'Utility Functions'!$AB$3:$AB$5)","v":0},{"$f":"$P$40*valuePL(P17,'Utility Functions'!$AC$3:$AC$7,'Utility Functions'!$AD$3:$AD$7)","v":0.03},{"$f":"$Q$40*valuePL(Q17,'Utility Functions'!$AE$3:$AE$6,'Utility Functions'!$AF$3:$AF$6)","v":0},{"$f":"$R$40*valuePL(R17,'Utility Functions'!$AG$3:$AG$6,'Utility Functions'!$AH$3:$AH$6)","v":0.05},{"$f":"$S$40*valuePL(S17,'Utility Functions'!$AI$3:$AI$6,'Utility Functions'!$AJ$3:$AJ$6)","v":0.05},{"$f":"$T$40*valuePL(T17,'Utility Functions'!$AK$3:$AK$8,'Utility Functions'!$AL$3:$AL$8)","v":0.03},{"$f":"$U$40*valuePL(U17,'Utility Functions'!$AM$3:$AM$5,'Utility Functions'!$AN$3:$AN$5)","v":0},{"$f":"$V$40*valuePL(V17,'Utility Functions'!$AO$3:$AO$5,'Utility Functions'!$AP$3:$AP$5)","v":0.05},{"$f":"$W$40*valuePL(W17,'Utility Functions'!$AQ$3:$AQ$6,'Utility Functions'!$AR$3:$AR$6)","v":0.03},{"$f":"$X$40*valuePL(X17,'Utility Functions'!$AS$3:$AS$6,'Utility Functions'!$AT$3:$AT$6)","v":0.03},{"$f":"$Y$40*valuePL(Y17,'Utility Functions'!$AU$3:$AU$6,'Utility Functions'!$AV$3:$AV$6)","v":1.0000000000000002E-2},{"$f":"$Z$40*valuePL(Z17,'Utility Functions'!$AW$3:$AW$5,'Utility Functions'!$AX$3:$AX$5)","v":0.05},{"$f":"$AA$40*valuePL(AA17,'Utility Functions'!$AY$3:$AY$6,'Utility Functions'!$AZ$3:$AZ$6)","v":0.04},{"$f":"$AB$40*valuePL(AB17,'Utility Functions'!$BA$3:$BA$5,'Utility Functions'!$BB$3:$BB$5)","v":0.04},{"$f":"$AC$40*valuePL(AC17,'Utility Functions'!$BC$3:$BC$5,'Utility Functions'!$BD$3:$BD$5)","v":0.03},0.54339393939393943,0.54339393939393943,null,0,0.10339393939393939,0,0.16,0.28000000000000003]
[17,{"$f":"$B$40*(valueE(B18,'Utility Functions'!$B$3,'Utility Functions'!$B$4,'Utility Functions'!$B$5,'Utility Functions'!$B$6))","v":9.8904136043327599E-3},{"$f":"$C$40*(valueE(C18,'Utility Functions'!$D$3,'Utility Functions'!$D$4,'Utility Functions'!$D$5,'Utility Functions'!$D$6))","v":2.3696993705826886E-2},{"$f":"$D$40*(valuePL(D18,'Utility Functions'!$E$3:$E$5,'Utility Functions'!$F$3:$F$5))","v":0.03},{"$f":"$E$40*(valuePL(E18,'Utility Functions'!$G$3:$G$5,'Utility Functions'!$H$3:$H$5))","v":1.4999999999999999E-2},{"$f":"$F$40*(valuePL(F18,'Utility Functions'!$I$3:$I$4,'Utility Functions'!$J$3:$J$5))","v":0.04},{"$f":"$G$40*(valueE(G18,'Utility Functions'!$L$3,'Utility Functions'!$L$4,'Utility Functions'!$L$5,'Utility Functions'!$L$6))","v":4.6774193548387091E-3},{"$f":"$H$40*(valueE(H18,'Utility Functions'!$N$3,'Utility Functions'!$N$4,'Utility Functions'!$N$5,'Utility Functions'!$N$6))","v":4.1271347248576853E-3},{"$f":"$I$40*valuePL(I18,'Utility Functions'!$O$3:$O$6,'Utility Functions'!$P$3:$P$6)","v":0},{"$f":"$J$40*valuePL(J18,'Utility Functions'!$Q$3:$Q$6,'Utility Functions'!$R$3:$R$6)","v":0},{"$f":"$K$40*(valuePL(K18,'Utility Functions'!$S$3:$S$7,'Utility Functions'!$T$3:$T$7))","v":0},{"$f":"$L$40*(valueE(L18,'Utility Functions'!$V$3,'Utility Functions'!$V$4,'Utility Functions'!$V$5,'Utility Functions'!$V$6))","v":0.02},{"$f":"$M$40*valuePL(M18,'Utility Functions'!$W$3:$W$6,'Utility Functions'!$X$3:$X$6)","v":1.2000000000000003E-3},{"$f":"$N$40*valueE(N18,'Utility Functions'!$Z$3,'Utility Functions'!$Z$4,'Utility Functions'!$Z$5,'Utility Functions'!$Z$6)","v":0},{"$f":"$O$40*valuePL(O18,'Utility Functions'!$AA$3:$AA$5,'Utility Functions'!$AB$3:$AB$5)","v":0},{"$f":"$P$40*valuePL(P18,'Utility Functions'!$AC$3:$AC$7,'Utility Functions'!$AD$3:$AD$7)","v":0},{"$f":"$Q$40*valuePL(Q18,'Utility Functions'!$AE$3:$AE$6,'Utility Functions'!$AF$3:$AF$6)","v":0},{"$f":"$R$40*valuePL(R18,'Utility Functions'!$AG$3:$AG$6,'Utility Functions'!$AH$3:$AH$6)","v":0.05},{"$f":"$S$40*valuePL(S18,'Utility Functions'!$AI$3:$AI$6,'Utility Functions'!$AJ$3:$AJ$6)","v":3.3000000000000002E-2},{"$f":"$T$40*valuePL(T18,'Utility Functions'!$AK$3:$AK$8,'Utility Functions'!$AL$3:$AL$8)","v":0},{"$f":"$U$40*valuePL(U18,'Utility Functions'!$AM$3:$AM$5,'Utility Functions'!$AN$3:$AN$5)","v":0},{"$f":"$V$40*valuePL(V18,'Utility Functions'!$AO$3:$AO$5,'Utility Functions'!$AP$3:$AP$5)","v":0.05},{"$f":"$W$40*valuePL(W18,'Utility Functions'!$AQ$3:$AQ$6,'Utility Functions'!$AR$3:$AR$6)","v":0.04},{"$f":"$X$40*valuePL(X18,'Utility Functions'!$AS$3:$AS$6,'Utility Functions'!$AT$3:$AT$6)","v":8.0000000000000002E-3},{"$f":"$Y$40*valuePL(Y18,'Utility Functions'!$AU$3:$AU$6,'Utility Functions'!$AV$3:$AV$6)","v":0},{"$f":"$Z$40*valuePL(Z18,'Utility Functions'!$AW$3:$AW$5,'Utility Functions'!$AX$3:$AX$5)","v":2.5000000000000001E-2},{"$f":"$AA$40*valuePL(AA18,'Utility Functions'!$AY$3:$AY$6,'Utility Functions'!$AZ$3:$AZ$6)","v":0},{"$f":"$AB$40*valuePL(AB18,'Utility Functions'!$BA$3:$BA$5,'Utility Functions'!$BB$3:$BB$5)","v":0.04},{"$f":"$AC$40*valuePL(AC18,'Utility Functions'!$BC$3:$BC$5,'Utility Functions'!$BD$3:$BD$5)","v":7.4999999999999997E-3},0.40209196138985603,0.40070572869773624,null,0.11858740731015965,3.0004554079696395E-2,0,8.3000000000000004E-2,0.17050000000000001]
[18,{"$f":"$B$40*(valueE(B19,'Utility Functions'!$B$3,'Utility Functions'!$B$4,'Utility Functions'!$B$5,'Utility Functions'!$B$6))","v":0},{"$f":"$C$40*(valueE(C19,'Utility Functions'!$D$3,'Utility Functions'!$D$4,'Utility Functions'!$D$5,'Utility Functions'!$D$6))","v":0},{"$f":"$D$40*(valuePL(D19,'Utility Functions'!$E$3:$E$5,'Utility Functions'!$F$3:$F$5))","v":0},{"$f":"$E$40*(valuePL(E19,'Utility Functions'!$G$3:$G$5,'Utility Functions'!$H$3:$H$5))","v":0},{"$f":"$F$40*(valuePL(F19,'Utility Functions'!$I$3:$I$4,'Utility Functions'!$J$3:$J$5))","v":0},{"$f":"$G$40*(valueE(G19,'Utility Functions'!$L$3,'Utility Functions'!$L$4,'Utility Functions'!$L$5,'Utility Functions'!$L$6))","v":0},{"$f":"$H$40*(valueE(H19,'Utility Functions'!$N$3,'Utility Functions'!$N$4,'Utility Functions'!$N$5,'Utility Functions'!$N$6))","v":4.2694497153700185E-4},{"$f":"$I$40*valuePL(I19,'Utility Functions'!$O$3:$O$6,'Utility Functions'!$P$3:$P$6)","v":0},{"$f":"$J$40*valuePL(J19,'Utility Functions'!$Q$3:$Q$6,'Utility Functions'!$R$3:$R$6)","v":0},{"$f":"$K$40*(valuePL(K19,'Utility Functions'!$S$3:$S$7,'Utility Functions'!$T$3:$T$7))","v":0},{"$f":"$L$40*(valueE(L19,'Utility Functions'!$V$3,'Utility Functions'!$V$4,'Utility Functions'!$V$5,'Utility Functions'!$V$6))","v":0},{"$f":"$M$40*valuePL(M19,'Utility Functions'!$W$3:$W$6,'Utility Functions'!$X$3:$X$6)","v":0},{"$f":"$N$40*valueE(N19,'Utility Functions'!$Z$3,'Utility Functions'!$Z$4,'Utility Functions'!$Z$5,'Utility Functions'!$Z$6)","v":0.03},{"$f":"$O$40*valuePL(O19,'Utility Functions'!$AA$3:$AA$5,'Utility Functions'!$AB$3:$AB$5)","v":2.2499999999999999E-2},{"$f":"$P$40*valuePL(P19,'Utility Functions'!$AC$3:$AC$7,'Utility Functions'!$AD$3:$AD$7)","v":0.01},{"$f":"$Q$40*valuePL(Q19,'Utility Functions'!$AE$3:$AE$6,'Utility Functions'!$AF$3:$AF$6)","v":0.04},{"$f":"$R$40*valuePL(R19,'Utility Functions'!$AG$3:$AG$6,'Utility Functions'!$AH$3:$AH$6)","v":0.05},{"$f":"$S$40*valuePL(S19,'Utility Functions'!$AI$3:$AI$6,'Utility Functions'!$AJ$3:$AJ$6)","v":0.05},{"$f":"$T$40*valuePL(T19,'Utility Functions'!$AK$3:$AK$8,'Utility Functions'!$AL$3:$AL$8)","v":0.03},{"$f":"$U$40*valuePL(U19,'Utility Functions'!$AM$3:$AM$5,'Utility Functions'!$AN$3:$AN$5)","v":7.4999999999999997E-3},{"$f":"$V$40*valuePL(V19,'Utility Functions'!$AO$3:$AO$5,'Utility Functions'!$AP$3:$AP$5)","v":0.05},{"$f":"$W$40*valuePL(W19,'Utility Functions'!$AQ$3:$AQ$6,'Utility Functions'!$AR$3:$AR$6)","v":0.03},{"$f":"$X$40*valuePL(X19,'Utility Functions'!$AS$3:$AS$6,'Utility Functions'!$AT$3:$AT$6)","v":8.0000000000000002E-3},{"$f":"$Y$40*valuePL(Y19,'Utility Functions'!$AU$3:$AU$6,'Utility Functions'!$AV$3:$AV$6)","v":4.0000000000000008E-2},{"$f":"$Z$40*valuePL(Z19,'Utility Functions'!$AW$3:$AW$5,'Utility Functions'!$AX$3:$AX$5)","v":2.5000000000000001E-2},{"$f":"$AA$40*valuePL(AA19,'Utility Functions'!$AY$3:$AY$6,'Utility Functions'!$AZ$3:$AZ$6)","v":3.5999999999999997E-2},{"$f":"$AB$40*valuePL(AB19,'Utility Functions'!$BA$3:$BA$5,'Utility Functions'!$BB$3:$BB$5)","v":0.01},{"$f":"$AC$40*valuePL(AC19,'Utility Functions'!$BC$3:$BC$5,'Utility Functions'!$BD$3:$BD$5)","v":0},0.43942694497153706,0.43942694497153706,null,0,4.2694497153700185E-4,5.2499999999999998E-2,0.18750000000000003,0.19900000000000001]
[19,{"$f":"$B$40*(valueE(B20,'Utility Functions'!$B$3,'Utility Functions'!$B$4,'Utility Functions'!$B$5,'Utility Functions'!$B$6))","v":2.3943140737469053E-2},{"$f":"$C$40*(valueE(C20,'Utility Functions'!$D$3,'Utility Functions'!$D$4,'Utility Functions'!$D$5,'Utility Functions'!$D$6))","v":8.0518966871447988E-3},{"$f":"$D$40*(valuePL(D20,'Utility Functions'!$E$3:$E$5,'Utility Functions'!$F$3:$F$5))","v":1.4999999999999999E-2},{"$f":"$E$40*(valuePL(E20,'Utility Functions'!$G$3:$G$5,'Utility Functions'!$H$3:$H$5))","v":0.03},{"$f":"$F$40*(valuePL(F20,'Utility Functions'!$I$3:$I$4,'Utility Functions'!$J$3:$J$5))","v":0},{"$f":"$G$40*(valueE(G20,'Utility Functions'!$L$3,'Utility Functions'!$L$4,'Utility Functions'!$L$5,'Utility Functions'!$L$6))","v":0},{"$f":"$H$40*(valueE(H20,'Utility Functions'!$N$3,'Utility Functions'!$N$4,'Utility Functions'!$N$5,'Utility Functions'!$N$6))","v":0},{"$f":"$I$40*valuePL(I20,'Utility Functions'!$O$3:$O$6,'Utility Functions'!$P$3:$P$6)","v":0},{"$f":"$J$40*valuePL(J20,'Utility Functions'!$Q$3:$Q$6,'Utility Functions'!$R$3:$R$6)","v":0},{"$f":"$K$40*(valuePL(K20,'Utility Functions'!$S$3:$S$7,'Utility Functions'!$T$3:$T$7))","v":0},{"$f":"$L$40*(valueE(L20,'Utility Functions'!$V$3,'Utility Functions'!$V$4,'Utility Functions'!$V$5,'Utility Functions'!$V$6))","v":0},{"$f":"$M$40*valuePL(M20,'Utility Functions'!$W$3:$W$6,'Utility Functions'!$X$3:$X$6)","v":0},{"$f":"$N$40*valueE(N20,'Utility Functions'!$Z$3,'Utility Functions'!$Z$4,'Utility Functions'!$Z$5,'Utility Functions'!$Z$6)","v":0.03},{"$f":"$O$40*valuePL(O20,'Utility Functions'!$AA$3:$AA$5,'Utility Functions'!$AB$3:$AB$5)","v":0.09},{"$f":"$P$40*valuePL(P20,'Utility Functions'!$AC$3:$AC$7,'Utility Functions'!$AD$3:$AD$7)","v":0},{"$f":"$Q$40*valuePL(Q20,'Utility Functions'!$AE$3:$AE$6,'Utility Functions'!$AF$3:$AF$6)","v":0},{"$f":"$R$40*valuePL(R20,'Utility Functions'!$AG$3:$AG$6,'Utility Functions'!$AH$3:$AH$6)","v":4.0000000000000008E-2},{"$f":"$S$40*valuePL(S20,'Utility Functions'!$AI$3:$AI$6,'Utility Functions'!$AJ$3:$AJ$6)","v":0.05},{"$f":"$T$40*valuePL(T20,'Utility Functions'!$AK$3:$AK$8,'Utility Functions'!$AL$3:$AL$8)","v":0},{"$f":"$U$40*valuePL(U20,'Utility Functions'!$AM$3:$AM$5,'Utility Functions'!$AN$3:$AN$5)","v":0},{"$f":"$V$40*valuePL(V20,'Utility Functions'!$AO$3:$AO$5,'Utility Functions'!$AP$3:$AP$5)","v":2.5000000000000001E-2},{"$f":"$W$40*valuePL(W20,'Utility Functions'!$AQ$3:$AQ$6,'Utility Functions'!$AR$3:$AR$6)","v":8.0000000000000002E-3},{"$f":"$X$40*valuePL(X20,'Utility Functions'!$AS$3:$AS$6,'Utility Functions'!$AT$3:$AT$6)","v":0.04},{"$f":"$Y$40*valuePL(Y20,'Utility Functions'!$AU$3:$AU$6,'Utility Functions'!$AV$3:$AV$6)","v":4.0000000000000008E-2},{"$f":"$Z$40*valuePL(Z20,'Utility Functions'!$AW$3:$AW$5,'Utility Functions'!$AX$3:$AX$5)","v":0},{"$f":"$AA$40*valuePL(AA20,'Utility Functions'!$AY$3:$AY$6,'Utility Functions'!$AZ$3:$AZ$6)","v":8.0000000000000002E-3},{"$f":"$AB$40*valuePL(AB20,'Utility Functions'!$BA$3:$BA$5,'Utility Functions'!$BB$3:$BB$5)","v":0},{"$f":"$AC$40*valuePL(AC20,'Utility Functions'!$BC$3:$BC$5,'Utility Functions'!$BD$3:$BD$5)","v":7.4999999999999997E-3},0.41549503742461386,0.41364429487902837,null,7.6995037424613846E-2,0,0.12,9.0000000000000011E-2,0.12850000000000003]
[20,{"$f":"$B$40*(valueE(B21,'Utility Functions'!$B$3,'Utility Functions'!$B$4,'Utility Functions'!$B$5,'Utility Functions'!$B$6))","v":2.5041071294184137E-2},{"$f":"$C$40*(valueE(C21,'Utility Functions'!$D$3,'Utility Functions'!$D$4,'Utility Functions'!$D$5,'Utility Functions'!$D$6))","v":2.3696993705826886E-2},{"$f":"$D$40*(valuePL(D21,'Utility Functions'!$E$3:$E$5,'Utility Functions'!$F$3:$F$5))","v":1.4999999999999999E-2},{"$f":"$E$40*(valuePL(E21,'Utility Functions'!$G$3:$G$5,'Utility Functions'!$H$3:$H$5))","v":0.03},{"$f":"$F$40*(valuePL(F21,'Utility Functions'!$I$3:$I$4,'Utility Functions'!$J$3:$J$5))","v":0},{"$f":"$G$40*(valueE(G21,'Utility Functions'!$L$3,'Utility Functions'!$L$4,'Utility Functions'!$L$5,'Utility Functions'!$L$6))","v":0},{"$f":"$H$40*(valueE(H21,'Utility Functions'!$N$3,'Utility Functions'!$N$4,'Utility Functions'!$N$5,'Utility Functions'!$N$6))","v":6.1907020872865271E-3},{"$f":"$I$40*valuePL(I21,'Utility Functions'!$O$3:$O$6,'Utility Functions'!$P$3:$P$6)","v":2.8036363636363634E-2},{"$f":"$J$40*valuePL(J21,'Utility Functions'!$Q$3:$Q$6,'Utility Functions'!$R$3:$R$6)","v":1.0181818181818183E-2},{"$f":"$K$40*(valuePL(K21,'Utility Functions'!$S$3:$S$7,'Utility Functions'!$T$3:$T$7))","v":1.8690909090909088E-2},{"$f":"$L$40*(valueE(L21,'Utility Functions'!$V$3,'Utility Functions'!$V$4,'Utility Functions'!$V$5,'Utility Functions'!$V$6))","v":1.3333333333333332E-2},{"$f":"$M$40*valuePL(M21,'Utility Functions'!$W$3:$W$6,'Utility Functions'!$X$3:$X$6)","v":1.0181818181818183E-2},{"$f":"$N$40*valueE(N21,'Utility Functions'!$Z$3,'Utility Functions'!$Z$4,'Utility Functions'!$Z$5,'Utility Functions'!$Z$6)","v":0.03},{"$f":"$O$40*valuePL(O21,'Utility Functions'!$AA$3:$AA$5,'Utility Functions'!$AB$3:$AB$5)","v":0.09},{"$f":"$P$40*valuePL(P21,'Utility Functions'!$AC$3:$AC$7,'Utility Functions'!$AD$3:$AD$7)","v":0.01},{"$f":"$Q$40*valuePL(Q21,'Utility Functions'!$AE$3:$AE$6,'Utility Functions'!$AF$3:$AF$6)","v":0},{"$f":"$R$40*valuePL(R21,'Utility Functions'!$AG$3:$AG$6,'Utility Functions'!$AH$3:$AH$6)","v":0.05},{"$f":"$S$40*valuePL(S21,'Utility Functions'!$AI$3:$AI$6,'Utility Functions'!$AJ$3:$AJ$6)","v":0.05},{"$f":"$T$40*valuePL(T21,'Utility Functions'!$AK$3:$AK$8,'Utility Functions'!$AL$3:$AL$8)","v":1.7999999999999999E-2},{"$f":"$U$40*valuePL(U21,'Utility Functions'!$AM$3:$AM$5,'Utility Functions'!$AN$3:$AN$5)","v":0.03},{"$f":"$V$40*valuePL(V21,'Utility Functions'!$AO$3:$AO$5,'Utility Functions'!$AP$3:$AP$5)","v":2.5000000000000001E-2},{"$f":"$W$40*valuePL(W21,'Utility Functions'!$AQ$3:$AQ$6,'Utility Functions'!$AR$3:$AR$6)","v":0},{"$f":"$X$40*valuePL(X21,'Utility Functions'!$AS$3:$AS$6,'Utility Functions'!$AT$3:$AT$6)","v":0},{"$f":"$Y$40*valuePL(Y21,'Utility Functions'!$AU$3:$AU$6,'Utility Functions'!$AV$3:$AV$6)","v":1.0000000000000002E-2},{"$f":"$Z$40*valuePL(Z21,'Utility Functions'!$AW$3:$AW$5,'Utility Functions'!$AX$3:$AX$5)","v":0.05},{"$f":"$AA$40*valuePL(AA21,'Utility Functions'!$AY$3:$AY$6,'Utility Functions'!$AZ$3:$AZ$6)","v":8.0000000000000002E-3},{"$f":"$AB$40*valuePL(AB21,'Utility Functions'!$BA$3:$BA$5,'Utility Functions'!$BB$3:$BB$5)","v":0},{"$f":"$AC$40*valuePL(AC21,'Utility Functions'!$BC$3:$BC$5,'Utility Functions'!$BD$3:$BD$5)","v":7.4999999999999997E-3},0.55885300951154004,0.55711836291178196,null,9.3738065000011028E-2,8.6614944511528943E-2,0.12,0.158,0.10050000000000001]
[{"$f":"A22","v":21},{"$f":"$B$40*(valueE(B22,'Utility Functions'!$B$3,'Utility Functions'!$B$4,'Utility Functions'!$B$5,'Utility Functions'!$B$6))","v":0},{"$f":"$C$40*(valueE(C22,'Utility Functions'!$D$3,'Utility Functions'!$D$4,'Utility Functions'!$D$5,'Utility Functions'!$D$6))","v":0},{"$f":"$D$40*(valuePL(D22,'Utility Functions'!$E$3:$E$5,'Utility Functions'!$F$3:$F$5))","v":0},{"$f":"$E$40*(valuePL(E22,'Utility Functions'!$G$3:$G$5,'Utility Functions'!$H$3:$H$5))","v":0},{"$f":"$F$40*(valuePL(F22,'Utility Functions'!$I$3:$I$4,'Utility Functions'!$J$3:$J$5))","v":0},{"$f":"$G$40*(valueE(G22,'Utility Functions'!$L$3,'Utility Functions'!$L$4,'Utility Functions'!$L$5,'Utility Functions'!$L$6))","v":0},{"$f":"$H$40*(valueE(H22,'Utility Functions'!$N$3,'Utility Functions'!$N$4,'Utility Functions'!$N$5,'Utility Functions'!$N$6))","v":0},{"$f":"$I$40*valuePL(I22,'Utility Functions'!$O$3:$O$6,'Utility Functions'!$P$3:$P$6)","v":0},{"$f":"$J$40*valuePL(J22,'Utility Functions'!$Q$3:$Q$6,'Utility Functions'!$R$3:$R$6)","v":0},{"$f":"$K$40*(valuePL(K22,'Utility Functions'!$S$3:$S$7,'Utility Functions'!$T$3:$T$7))","v":0},{"$f":"$L$40*(valueE(L22,'Utility Functions'!$V$3,'Utility Functions'!$V$4,'Utility Functions'!$V$5,'Utility Functions'!$V$6))","v":0},{"$f":"$M$40*valuePL(M22,'Utility Functions'!$W$3:$W$6,'Utility Functions'!$X$3:$X$6)","v":0},{"$f":"$N$40*valueE(N22,'Utility Functions'!$Z$3,'Utility Functions'!$Z$4,'Utility Functions'!$Z$5,'Utility Functions'!$Z$6)","v":0.03},{"$f":"$O$40*valuePL(O22,'Utility Functions'!$AA$3:$AA$5,'Utility Functions'!$AB$3:$AB$5)","v":0.09},{"$f":"$P$40*valuePL(P22,'Utility Functions'!$AC$3:$AC$7,'Utility Functions'!$AD$3:$AD$7)","v":0},{"$f":"$Q$40*valuePL(Q22,'Utility Functions'!$AE$3:$AE$6,'Utility Functions'!$AF$3:$AF$6)","v":4.0000000000000001E-3},{"$f":"$R$40*valuePL(R22,'Utility Functions'!$AG$3:$AG$6,'Utility Functions'!$AH$3:$AH$6)","v":0.05},{"$f":"$S$40*valuePL(S22,'Utility Functions'!$AI$3:$AI$6,'Utility Functions'!$AJ$3:$AJ$6)","v":0.05},{"$f":"$T$40*valuePL(T22,'Utility Functions'!$AK$3:$AK$8,'Utility Functions'!$AL$3:$AL$8)","v":0.03},{"$f":"$U$40*valuePL(U22,'Utility Functions'!$AM$3:$AM$5,'Utility Functions'!$AN$3:$AN$5)","v":7.4999999999999997E-3},{"$f":"$V$40*valuePL(V22,'Utility Functions'!$AO$3:$AO$5,'Utility Functions'!$AP$3:$AP$5)","v":0},{"$f":"$W$40*valuePL(W22,'Utility Functions'!$AQ$3:$AQ$6,'Utility Functions'!$AR$3:$AR$6)","v":0.03},{"$f":"$X$40*valuePL(X22,'Utility Functions'!$AS$3:$AS$6,'Utility Functions'!$AT$3:$AT$6)","v":0.04},{"$f":"$Y$40*valuePL(Y22,'Utility Functions'!$AU$3:$AU$6,'Utility Functions'!$AV$3:$AV$6)","v":1.0000000000000002E-2},{"$f":"$Z$40*valuePL(Z22,'Utility Functions'!$AW$3:$AW$5,'Utility Functions'!$AX$3:$AX$5)","v":0},{"$f":"$AA$40*valuePL(AA22,'Utility Functions'!$AY$3:$AY$6,'Utility Functions'!$AZ$3:$AZ$6)","v":0.04},{"$f":"$AB$40*valuePL(AB22,'Utility Functions'!$BA$3:$BA$5,'Utility Functions'!$BB$3:$BB$5)","v":0.01},{"$f":"$AC$40*valuePL(AC22,'Utility Functions'!$BC$3:$BC$5,'Utility Functions'!$BD$3:$BD$5)","v":0.03},0.42149999999999999,0.42149999999999999,null,0,0,0.12,0.14150000000000001,0.16000000000000003]
[22,{"$f":"$B$40*(valueE(B23,'Utility Functions'!$B$3,'Utility Functions'!$B$4,'Utility Functions'!$B$5,'Utility Functions'!$B$6))","v":0},{"$f":"$C$40*(valueE(C23,'Utility Functions'!$D$3,'Utility Functions'!$D$4,'Utility Functions'!$D$5,'Utility Functions'!$D$6))","v":0},{"$f":"$D$40*(valuePL(D23,'Utility Functions'!$E$3:$E$5,'Utility Functions'!$F$3:$F$5))","v":0},{"$f":"$E$40*(valuePL(E23,'Utility Functions'!$G$3:$G$5,'Utility Functions'!$H$3:$H$5))","v":0},{"$f":"$F$40*(valuePL(F23,'Utility Functions'!$I$3:$I$4,'Utility Functions'!$J$3:$J$5))","v":0},{"$f":"$G$40*(valueE(G23,'Utility Functions'!$L$3,'Utility Functions'!$L$4,'Utility Functions'!$L$5,'Utility Functions'!$L$6))","v":1.2903225806451613E-3},{"$f":"$H$40*(valueE(H23,'Utility Functions'!$N$3,'Utility Functions'!$N$4,'Utility Functions'!$N$5,'Utility Functions'!$N$6))","v":9.1081593927893733E-4},{"$f":"$I$40*valuePL(I23,'Utility Functions'!$O$3:$O$6,'Utility Functions'!$P$3:$P$6)","v":0},{"$f":"$J$40*valuePL(J23,'Utility Functions'!$Q$3:$Q$6,'Utility Functions'!$R$3:$R$6)","v":0},{"$f":"$K$40*(valuePL(K23,'Utility Functions'!$S$3:$S$7,'Utility Functions'!$T$3:$T$7))","v":0},{"$f":"$L$40*(valueE(L23,'Utility Functions'!$V$3,'Utility Functions'!$V$4,'Utility Functions'!$V$5,'Utility Functions'!$V$6))","v":0},{"$f":"$M$40*valuePL(M23,'Utility Functions'!$W$3:$W$6,'Utility Functions'!$X$3:$X$6)","v":0},{"$f":"$N$40*valueE(N23,'Utility Functions'!$Z$3,'Utility Functions'!$Z$4,'Utility Functions'!$Z$5,'Utility Functions'!$Z$6)","v":3.7499999999999999E-3},{"$f":"$O$40*valuePL(O23,'Utility Functions'!$AA$3:$AA$5,'Utility Functions'!$AB$3:$AB$5)","v":0.09},{"$f":"$P$40*valuePL(P23,'Utility Functions'!$AC$3:$AC$7,'Utility Functions'!$AD$3:$AD$7)","v":0.04},{"$f":"$Q$40*valuePL(Q23,'Utility Functions'!$AE$3:$AE$6,'Utility Functions'!$AF$3:$AF$6)","v":0.02},{"$f":"$R$40*valuePL(R23,'Utility Functions'!$AG$3:$AG$6,'Utility Functions'!$AH$3:$AH$6)","v":4.0000000000000008E-2},{"$f":"$S$40*valuePL(S23,'Utility Functions'!$AI$3:$AI$6,'Utility Functions'!$AJ$3:$AJ$6)","v":0.05},{"$f":"$T$40*valuePL(T23,'Utility Functions'!$AK$3:$AK$8,'Utility Functions'!$AL$3:$AL$8)","v":0.03},{"$f":"$U$40*valuePL(U23,'Utility Functions'!$AM$3:$AM$5,'Utility Functions'!$AN$3:$AN$5)","v":0},{"$f":"$V$40*valuePL(V23,'Utility Functions'!$AO$3:$AO$5,'Utility Functions'!$AP$3:$AP$5)","v":2.5000000000000001E-2},{"$f":"$W$40*valuePL(W23,'Utility Functions'!$AQ$3:$AQ$6,'Utility Functions'!$AR$3:$AR$6)","v":0.03},{"$f":"$X$40*valuePL(X23,'Utility Functions'!$AS$3:$AS$6,'Utility Functions'!$AT$3:$AT$6)","v":8.0000000000000002E-3},{"$f":"$Y$40*valuePL(Y23,'Utility Functions'!$AU$3:$AU$6,'Utility Functions'!$AV$3:$AV$6)","v":0},{"$f":"$Z$40*valuePL(Z23,'Utility Functions'!$AW$3:$AW$5,'Utility Functions'!$AX$3:$AX$5)","v":0.05},{"$f":"$AA$40*valuePL(AA23,'Utility Functions'!$AY$3:$AY$6,'Utility Functions'!$AZ$3:$AZ$6)","v":8.0000000000000002E-3},{"$f":"$AB$40*valuePL(AB23,'Utility Functions'!$BA$3:$BA$5,'Utility Functions'!$BB$3:$BB$5)","v":0.04},{"$f":"$AC$40*valuePL(AC23,'Utility Functions'!$BC$3:$BC$5,'Utility Functions'!$BD$3:$BD$5)","v":7.4999999999999997E-3},0.44445113851992418,0.44445113851992418,null,0,2.2011385199240986E-3,9.375E-2,0.18000000000000002,0.16850000000000001]
[23,{"$f":"$B$40*(valueE(B24,'Utility Functions'!$B$3,'Utility Functions'!$B$4,'Utility Functions'!$B$5,'Utility Functions'!$B$6))","v":2.5041071294184137E-2},{"$f":"$C$40*(valueE(C24,'Utility Functions'!$D$3,'Utility Functions'!$D$4,'Utility Functions'!$D$5,'Utility Functions'!$D$6))","v":2.542345105018548E-2},{"$f":"$D$40*(valuePL(D24,'Utility Functions'!$E$3:$E$5,'Utility Functions'!$F$3:$F$5))","v":0.03},{"$f":"$E$40*(valuePL(E24,'Utility Functions'!$G$3:$G$5,'Utility Functions'!$H$3:$H$5))","v":0},{"$f":"$F$40*(valuePL(F24,'Utility Functions'!$I$3:$I$4,'Utility Functions'!$J$3:$J$5))","v":0},{"$f":"$G$40*(valueE(G24,'Utility Functions'!$L$3,'Utility Functions'!$L$4,'Utility Functions'!$L$5,'Utility Functions'!$L$6))","v":0},{"$f":"$H$40*(valueE(H24,'Utility Functions'!$N$3,'Utility Functions'!$N$4,'Utility Functions'!$N$5,'Utility Functions'!$N$6))","v":0},{"$f":"$I$40*valuePL(I24,'Utility Functions'!$O$3:$O$6,'Utility Functions'!$P$3:$P$6)","v":0},{"$f":"$J$40*valuePL(J24,'Utility Functions'!$Q$3:$Q$6,'Utility Functions'!$R$3:$R$6)","v":0},{"$f":"$K$40*(valuePL(K24,'Utility Functions'!$S$3:$S$7,'Utility Functions'!$T$3:$T$7))","v":0},{"$f":"$L$40*(valueE(L24,'Utility Functions'!$V$3,'Utility Functions'!$V$4,'Utility Functions'!$V$5,'Utility Functions'!$V$6))","v":0},{"$f":"$M$40*valuePL(M24,'Utility Functions'!$W$3:$W$6,'Utility Functions'!$X$3:$X$6)","v":0},{"$f":"$N$40*valueE(N24,'Utility Functions'!$Z$3,'Utility Functions'!$Z$4,'Utility Functions'!$Z$5,'Utility Functions'!$Z$6)","v":0},{"$f":"$O$40*valuePL(O24,'Utility Functions'!$AA$3:$AA$5,'Utility Functions'!$AB$3:$AB$5)","v":0},{"$f":"$P$40*valuePL(P24,'Utility Functions'!$AC$3:$AC$7,'Utility Functions'!$AD$3:$AD$7)","v":0.03},{"$f":"$Q$40*valuePL(Q24,'Utility Functions'!$AE$3:$AE$6,'Utility Functions'!$AF$3:$AF$6)","v":0},{"$f":"$R$40*valuePL(R24,'Utility Functions'!$AG$3:$AG$6,'Utility Functions'!$AH$3:$AH$6)","v":0.05},{"$f":"$S$40*valuePL(S24,'Utility Functions'!$AI$3:$AI$6,'Utility Functions'!$AJ$3:$AJ$6)","v":0.05},{"$f":"$T$40*valuePL(T24,'Utility Functions'!$AK$3:$AK$8,'Utility Functions'!$AL$3:$AL$8)","v":0.03},{"$f":"$U$40*valuePL(U24,'Utility Functions'!$AM$3:$AM$5,'Utility Functions'!$AN$3:$AN$5)","v":0},{"$f":"$V$40*valuePL(V24,'Utility Functions'!$AO$3:$AO$5,'Utility Functions'!$AP$3:$AP$5)","v":0.05},{"$f":"$W$40*valuePL(W24,'Utility Functions'!$AQ$3:$AQ$6,'Utility Functions'!$AR$3:$AR$6)","v":8.0000000000000002E-3},{"$f":"$X$40*valuePL(X24,'Utility Functions'!$AS$3:$AS$6,'Utility Functions'!$AT$3:$AT$6)","v":0.03},{"$f":"$Y$40*valuePL(Y24,'Utility Functions'!$AU$3:$AU$6,'Utility Functions'!$AV$3:$AV$6)","v":1.0000000000000002E-2},{"$f":"$Z$40*valuePL(Z24,'Utility Functions'!$AW$3:$AW$5,'Utility Functions'!$AX$3:$AX$5)","v":2.5000000000000001E-2},{"$f":"$AA$40*valuePL(AA24,'Utility Functions'!$AY$3:$AY$6,'Utility Functions'!$AZ$3:$AZ$6)","v":8.0000000000000002E-3},{"$f":"$AB$40*valuePL(AB24,'Utility Functions'!$BA$3:$BA$5,'Utility Functions'!$BB$3:$BB$5)","v":0},{"$f":"$AC$40*valuePL(AC24,'Utility Functions'!$BC$3:$BC$5,'Utility Functions'!$BD$3:$BD$5)","v":7.4999999999999997E-3},0.37896452234436967,0.3772298757446117,null,8.0464522344369613E-2,0,0,0.16,0.13850000000000001]
[24,{"$f":"$B$40*(valueE(B25,'Utility Functions'!$B$3,'Utility Functions'!$B$4,'Utility Functions'!$B$5,'Utility Functions'!$B$6))","v":1.896364549751255E-2},{"$f":"$C$40*(valueE(C25,'Utility Functions'!$D$3,'Utility Functions'!$D$4,'Utility Functions'!$D$5,'Utility Functions'!$D$6))","v":1.3942790146123618E-2},{"$f":"$D$40*(valuePL(D25,'Utility Functions'!$E$3:$E$5,'Utility Functions'!$F$3:$F$5))","v":0.03},{"$f":"$E$40*(valuePL(E25,'Utility Functions'!$G$3:$G$5,'Utility Functions'!$H$3:$H$5))","v":0},{"$f":"$F$40*(valuePL(F25,'Utility Functions'!$I$3:$I$4,'Utility Functions'!$J$3:$J$5))","v":0},{"$f":"$G$40*(valueE(G25,'Utility Functions'!$L$3,'Utility Functions'!$L$4,'Utility Functions'!$L$5,'Utility Functions'!$L$6))","v":0},{"$f":"$H$40*(valueE(H25,'Utility Functions'!$N$3,'Utility Functions'!$N$4,'Utility Functions'!$N$5,'Utility Functions'!$N$6))","v":0},{"$f":"$I$40*valuePL(I25,'Utility Functions'!$O$3:$O$6,'Utility Functions'!$P$3:$P$6)","v":0},{"$f":"$J$40*valuePL(J25,'Utility Functions'!$Q$3:$Q$6,'Utility Functions'!$R$3:$R$6)","v":0},{"$f":"$K$40*(valuePL(K25,'Utility Functions'!$S$3:$S$7,'Utility Functions'!$T$3:$T$7))","v":0},{"$f":"$L$40*(valueE(L25,'Utility Functions'!$V$3,'Utility Functions'!$V$4,'Utility Functions'!$V$5,'Utility Functions'!$V$6))","v":0},{"$f":"$M$40*valuePL(M25,'Utility Functions'!$W$3:$W$6,'Utility Functions'!$X$3:$X$6)","v":0},{"$f":"$N$40*valueE(N25,'Utility Functions'!$Z$3,'Utility Functions'!$Z$4,'Utility Functions'!$Z$5,'Utility Functions'!$Z$6)","v":0},{"$f":"$O$40*valuePL(O25,'Utility Functions'!$AA$3:$AA$5,'Utility Functions'!$AB$3:$AB$5)","v":0},{"$f":"$P$40*valuePL(P25,'Utility Functions'!$AC$3:$AC$7,'Utility Functions'!$AD$3:$AD$7)","v":0},{"$f":"$Q$40*valuePL(Q25,'Utility Functions'!$AE$3:$AE$6,'Utility Functions'!$AF$3:$AF$6)","v":0},{"$f":"$R$40*valuePL(R25,'Utility Functions'!$AG$3:$AG$6,'Utility Functions'!$AH$3:$AH$6)","v":0.05},{"$f":"$S$40*valuePL(S25,'Utility Functions'!$AI$3:$AI$6,'Utility Functions'!$AJ$3:$AJ$6)","v":0.05},{"$f":"$T$40*valuePL(T25,'Utility Functions'!$AK$3:$AK$8,'Utility Functions'!$AL$3:$AL$8)","v":0.03},{"$f":"$U$40*valuePL(U25,'Utility Functions'!$AM$3:$AM$5,'Utility Functions'!$AN$3:$AN$5)","v":0},{"$f":"$V$40*valuePL(V25,'Utility Functions'!$AO$3:$AO$5,'Utility Functions'!$AP$3:$AP$5)","v":0},{"$f":"$W$40*valuePL(W25,'Utility Functions'!$AQ$3:$AQ$6,'Utility Functions'!$AR$3:$AR$6)","v":0.04},{"$f":"$X$40*valuePL(X25,'Utility Functions'!$AS$3:$AS$6,'Utility Functions'!$AT$3:$AT$6)","v":8.0000000000000002E-3},{"$f":"$Y$40*valuePL(Y25,'Utility Functions'!$AU$3:$AU$6,'Utility Functions'!$AV$3:$AV$6)","v":0.05},{"$f":"$Z$40*valuePL(Z25,'Utility Functions'!$AW$3:$AW$5,'Utility Functions'!$AX$3:$AX$5)","v":0.05},{"$f":"$AA$40*valuePL(AA25,'Utility Functions'!$AY$3:$AY$6,'Utility Functions'!$AZ$3:$AZ$6)","v":8.0000000000000002E-3},{"$f":"$AB$40*valuePL(AB25,'Utility Functions'!$BA$3:$BA$5,'Utility Functions'!$BB$3:$BB$5)","v":0},{"$f":"$AC$40*valuePL(AC25,'Utility Functions'!$BC$3:$BC$5,'Utility Functions'!$BD$3:$BD$5)","v":0.03},0.37890643564363613,0.37690508369846576,null,6.2906435643636169E-2,0,0,0.13,0.18600000000000003]
[25,{"$f":"$B$40*(valueE(B26,'Utility Functions'!$B$3,'Utility Functions'!$B$4,'Utility Functions'!$B$5,'Utility Functions'!$B$6))","v":2.5041071294184137E-2},{"$f":"$C$40*(valueE(C26,'Utility Functions'!$D$3,'Utility Functions'!$D$4,'Utility Functions'!$D$5,'Utility Functions'!$D$6))","v":2.542345105018548E-2},{"$f":"$D$40*(valuePL(D26,'Utility Functions'!$E$3:$E$5,'Utility Functions'!$F$3:$F$5))","v":0.03},{"$f":"$E$40*(valuePL(E26,'Utility Functions'!$G$3:$G$5,'Utility Functions'!$H$3:$H$5))","v":0},{"$f":"$F$40*(valuePL(F26,'Utility Functions'!$I$3:$I$4,'Utility Functions'!$J$3:$J$5))","v":0},{"$f":"$G$40*(valueE(G26,'Utility Functions'!$L$3,'Utility Functions'!$L$4,'Utility Functions'!$L$5,'Utility Functions'!$L$6))","v":1.4193548387096775E-2},{"$f":"$H$40*(valueE(H26,'Utility Functions'!$N$3,'Utility Functions'!$N$4,'Utility Functions'!$N$5,'Utility Functions'!$N$6))","v":4.383301707779886E-3},{"$f":"$I$40*valuePL(I26,'Utility Functions'!$O$3:$O$6,'Utility Functions'!$P$3:$P$6)","v":0},{"$f":"$J$40*valuePL(J26,'Utility Functions'!$Q$3:$Q$6,'Utility Functions'!$R$3:$R$6)","v":0},{"$f":"$K$40*(valuePL(K26,'Utility Functions'!$S$3:$S$7,'Utility Functions'!$T$3:$T$7))","v":0},{"$f":"$L$40*(valueE(L26,'Utility Functions'!$V$3,'Utility Functions'!$V$4,'Utility Functions'!$V$5,'Utility Functions'!$V$6))","v":0},{"$f":"$M$40*valuePL(M26,'Utility Functions'!$W$3:$W$6,'Utility Functions'!$X$3:$X$6)","v":0},{"$f":"$N$40*valueE(N26,'Utility Functions'!$Z$3,'Utility Functions'!$Z$4,'Utility Functions'!$Z$5,'Utility Functions'!$Z$6)","v":0.03},{"$f":"$O$40*valuePL(O26,'Utility Functions'!$AA$3:$AA$5,'Utility Functions'!$AB$3:$AB$5)","v":2.2499999999999999E-2},{"$f":"$P$40*valuePL(P26,'Utility Functions'!$AC$3:$AC$7,'Utility Functions'!$AD$3:$AD$7)","v":0.02},{"$f":"$Q$40*valuePL(Q26,'Utility Functions'!$AE$3:$AE$6,'Utility Functions'!$AF$3:$AF$6)","v":0.02},{"$f":"$R$40*valuePL(R26,'Utility Functions'!$AG$3:$AG$6,'Utility Functions'!$AH$3:$AH$6)","v":0.05},{"$f":"$S$40*valuePL(S26,'Utility Functions'!$AI$3:$AI$6,'Utility Functions'!$AJ$3:$AJ$6)","v":0.05},{"$f":"$T$40*valuePL(T26,'Utility Functions'!$AK$3:$AK$8,'Utility Functions'!$AL$3:$AL$8)","v":0},{"$f":"$U$40*valuePL(U26,'Utility Functions'!$AM$3:$AM$5,'Utility Functions'!$AN$3:$AN$5)","v":0},{"$f":"$V$40*valuePL(V26,'Utility Functions'!$AO$3:$AO$5,'Utility Functions'!$AP$3:$AP$5)","v":0.05},{"$f":"$W$40*valuePL(W26,'Utility Functions'!$AQ$3:$AQ$6,'Utility Functions'!$AR$3:$AR$6)","v":8.0000000000000002E-3},{"$f":"$X$40*valuePL(X26,'Utility Functions'!$AS$3:$AS$6,'Utility Functions'!$AT$3:$AT$6)","v":0.04},{"$f":"$Y$40*valuePL(Y26,'Utility Functions'!$AU$3:$AU$6,'Utility Functions'!$AV$3:$AV$6)","v":4.0000000000000008E-2},{"$f":"$Z$40*valuePL(Z26,'Utility Functions'!$AW$3:$AW$5,'Utility Functions'!$AX$3:$AX$5)","v":2.5000000000000001E-2},{"$f":"$AA$40*valuePL(AA26,'Utility Functions'!$AY$3:$AY$6,'Utility Functions'!$AZ$3:$AZ$6)","v":8.0000000000000002E-3},{"$f":"$AB$40*valuePL(AB26,'Utility Functions'!$BA$3:$BA$5,'Utility Functions'!$BB$3:$BB$5)","v":0.04},{"$f":"$AC$40*valuePL(AC26,'Utility Functions'!$BC$3:$BC$5,'Utility Functions'!$BD$3:$BD$5)","v":0.03},0.53254137243924626,0.53080672583948829,null,8.0464522344369613E-2,1.8576850094876661E-2,5.2499999999999998E-2,0.14000000000000001,0.24100000000000002]
[26,{"$f":"$B$40*(valueE(B27,'Utility Functions'!$B$3,'Utility Functions'!$B$4,'Utility Functions'!$B$5,'Utility Functions'!$B$6))","v":2.8998845838620748E-2},{"$f":"$C$40*(valueE(C27,'Utility Functions'!$D$3,'Utility Functions'!$D$4,'Utility Functions'!$D$5,'Utility Functions'!$D$6))","v":2.542345105018548E-2},{"$f":"$D$40*(valuePL(D27,'Utility Functions'!$E$3:$E$5,'Utility Functions'!$F$3:$F$5))","v":0.03},{"$f":"$E$40*(valuePL(E27,'Utility Functions'!$G$3:$G$5,'Utility Functions'!$H$3:$H$5))","v":1.4999999999999999E-2},{"$f":"$F$40*(valuePL(F27,'Utility Functions'!$I$3:$I$4,'Utility Functions'!$J$3:$J$5))","v":0},{"$f":"$G$40*(valueE(G27,'Utility Functions'!$L$3,'Utility Functions'!$L$4,'Utility Functions'!$L$5,'Utility Functions'!$L$6))","v":0},{"$f":"$H$40*(valueE(H27,'Utility Functions'!$N$3,'Utility Functions'!$N$4,'Utility Functions'!$N$5,'Utility Functions'!$N$6))","v":0},{"$f":"$I$40*valuePL(I27,'Utility Functions'!$O$3:$O$6,'Utility Functions'!$P$3:$P$6)","v":0},{"$f":"$J$40*valuePL(J27,'Utility Functions'!$Q$3:$Q$6,'Utility Functions'!$R$3:$R$6)","v":0},{"$f":"$K$40*(valuePL(K27,'Utility Functions'!$S$3:$S$7,'Utility Functions'!$T$3:$T$7))","v":0},{"$f":"$L$40*(valueE(L27,'Utility Functions'!$V$3,'Utility Functions'!$V$4,'Utility Functions'!$V$5,'Utility Functions'!$V$6))","v":0},{"$f":"$M$40*valuePL(M27,'Utility Functions'!$W$3:$W$6,'Utility Functions'!$X$3:$X$6)","v":0},{"$f":"$N$40*valueE(N27,'Utility Functions'!$Z$3,'Utility Functions'!$Z$4,'Utility Functions'!$Z$5,'Utility Functions'!$Z$6)","v":0},{"$f":"$O$40*valuePL(O27,'Utility Functions'!$AA$3:$AA$5,'Utility Functions'!$AB$3:$AB$5)","v":0},{"$f":"$P$40*valuePL(P27,'Utility Functions'!$AC$3:$AC$7,'Utility Functions'!$AD$3:$AD$7)","v":0.03},{"$f":"$Q$40*valuePL(Q27,'Utility Functions'!$AE$3:$AE$6,'Utility Functions'!$AF$3:$AF$6)","v":0},{"$f":"$R$40*valuePL(R27,'Utility Functions'!$AG$3:$AG$6,'Utility Functions'!$AH$3:$AH$6)","v":0.05},{"$f":"$S$40*valuePL(S27,'Utility Functions'!$AI$3:$AI$6,'Utility Functions'!$AJ$3:$AJ$6)","v":0.05},{"$f":"$T$40*valuePL(T27,'Utility Functions'!$AK$3:$AK$8,'Utility Functions'!$AL$3:$AL$8)","v":2.4E-2},{"$f":"$U$40*valuePL(U27,'Utility Functions'!$AM$3:$AM$5,'Utility Functions'!$AN$3:$AN$5)","v":0},{"$f":"$V$40*valuePL(V27,'Utility Functions'!$AO$3:$AO$5,'Utility Functions'!$AP$3:$AP$5)","v":0.05},{"$f":"$W$40*valuePL(W27,'Utility Functions'!$AQ$3:$AQ$6,'Utility Functions'!$AR$3:$AR$6)","v":8.0000000000000002E-3},{"$f":"$X$40*valuePL(X27,'Utility Functions'!$AS$3:$AS$6,'Utility Functions'!$AT$3:$AT$6)","v":0},{"$f":"$Y$40*valuePL(Y27,'Utility Functions'!$AU$3:$AU$6,'Utility Functions'!$AV$3:$AV$6)","v":4.0000000000000008E-2},{"$f":"$Z$40*valuePL(Z27,'Utility Functions'!$AW$3:$AW$5,'Utility Functions'!$AX$3:$AX$5)","v":0},{"$f":"$AA$40*valuePL(AA27,'Utility Functions'!$AY$3:$AY$6,'Utility Functions'!$AZ$3:$AZ$6)","v":8.0000000000000002E-3},{"$f":"$AB$40*valuePL(AB27,'Utility Functions'!$BA$3:$BA$5,'Utility Functions'!$BB$3:$BB$5)","v":0.04},{"$f":"$AC$40*valuePL(AC27,'Utility Functions'!$BC$3:$BC$5,'Utility Functions'!$BD$3:$BD$5)","v":0.03},0.42942229688880618,0.4286593560912294,null,9.942229688880623E-2,0,0,0.154,0.17600000000000002]
[27,{"$f":"$B$40*(valueE(B28,'Utility Functions'!$B$3,'Utility Functions'!$B$4,'Utility Functions'!$B$5,'Utility Functions'!$B$6))","v":0},{"$f":"$C$40*(valueE(C28,'Utility Functions'!$D$3,'Utility Functions'!$D$4,'Utility Functions'!$D$5,'Utility Functions'!$D$6))","v":1.3942790146123618E-2},{"$f":"$D$40*(valuePL(D28,'Utility Functions'!$E$3:$E$5,'Utility Functions'!$F$3:$F$5))","v":0.03},{"$f":"$E$40*(valuePL(E28,'Utility Functions'!$G$3:$G$5,'Utility Functions'!$H$3:$H$5))","v":0},{"$f":"$F$40*(valuePL(F28,'Utility Functions'!$I$3:$I$4,'Utility Functions'!$J$3:$J$5))","v":0},{"$f":"$G$40*(valueE(G28,'Utility Functions'!$L$3,'Utility Functions'!$L$4,'Utility Functions'!$L$5,'Utility Functions'!$L$6))","v":0},{"$f":"$H$40*(valueE(H28,'Utility Functions'!$N$3,'Utility Functions'!$N$4,'Utility Functions'!$N$5,'Utility Functions'!$N$6))","v":0},{"$f":"$I$40*valuePL(I28,'Utility Functions'!$O$3:$O$6,'Utility Functions'!$P$3:$P$6)","v":0},{"$f":"$J$40*valuePL(J28,'Utility Functions'!$Q$3:$Q$6,'Utility Functions'!$R$3:$R$6)","v":0},{"$f":"$K$40*(valuePL(K28,'Utility Functions'!$S$3:$S$7,'Utility Functions'!$T$3:$T$7))","v":0.02},{"$f":"$L$40*(valueE(L28,'Utility Functions'!$V$3,'Utility Functions'!$V$4,'Utility Functions'!$V$5,'Utility Functions'!$V$6))","v":0},{"$f":"$M$40*valuePL(M28,'Utility Functions'!$W$3:$W$6,'Utility Functions'!$X$3:$X$6)","v":2E-3},{"$f":"$N$40*valueE(N28,'Utility Functions'!$Z$3,'Utility Functions'!$Z$4,'Utility Functions'!$Z$5,'Utility Functions'!$Z$6)","v":0},{"$f":"$O$40*valuePL(O28,'Utility Functions'!$AA$3:$AA$5,'Utility Functions'!$AB$3:$AB$5)","v":0},{"$f":"$P$40*valuePL(P28,'Utility Functions'!$AC$3:$AC$7,'Utility Functions'!$AD$3:$AD$7)","v":0.02},{"$f":"$Q$40*valuePL(Q28,'Utility Functions'!$AE$3:$AE$6,'Utility Functions'!$AF$3:$AF$6)","v":0.02},{"$f":"$R$40*valuePL(R28,'Utility Functions'!$AG$3:$AG$6,'Utility Functions'!$AH$3:$AH$6)","v":0.05},{"$f":"$S$40*valuePL(S28,'Utility Functions'!$AI$3:$AI$6,'Utility Functions'!$AJ$3:$AJ$6)","v":0.05},{"$f":"$T$40*valuePL(T28,'Utility Functions'!$AK$3:$AK$8,'Utility Functions'!$AL$3:$AL$8)","v":0.03},{"$f":"$U$40*valuePL(U28,'Utility Functions'!$AM$3:$AM$5,'Utility Functions'!$AN$3:$AN$5)","v":0},{"$f":"$V$40*valuePL(V28,'Utility Functions'!$AO$3:$AO$5,'Utility Functions'!$AP$3:$AP$5)","v":2.5000000000000001E-2},{"$f":"$W$40*valuePL(W28,'Utility Functions'!$AQ$3:$AQ$6,'Utility Functions'!$AR$3:$AR$6)","v":0.03},{"$f":"$X$40*valuePL(X28,'Utility Functions'!$AS$3:$AS$6,'Utility Functions'!$AT$3:$AT$6)","v":0.04},{"$f":"$Y$40*valuePL(Y28,'Utility Functions'!$AU$3:$AU$6,'Utility Functions'!$AV$3:$AV$6)","v":1.0000000000000002E-2},{"$f":"$Z$40*valuePL(Z28,'Utility Functions'!$AW$3:$AW$5,'Utility Functions'!$AX$3:$AX$5)","v":0},{"$f":"$AA$40*valuePL(AA28,'Utility Functions'!$AY$3:$AY$6,'Utility Functions'!$AZ$3:$AZ$6)","v":0},{"$f":"$AB$40*valuePL(AB28,'Utility Functions'!$BA$3:$BA$5,'Utility Functions'!$BB$3:$BB$5)","v":0},{"$f":"$AC$40*valuePL(AC28,'Utility Functions'!$BC$3:$BC$5,'Utility Functions'!$BD$3:$BD$5)","v":0},0.34094279014612355,0.34094279014612355,null,4.3942790146123616E-2,2.1999999999999999E-2,0,0.17,0.10500000000000001]
[{"$f":"A29","v":28},{"$f":"$B$40*(valueE(B29,'Utility Functions'!$B$3,'Utility Functions'!$B$4,'Utility Functions'!$B$5,'Utility Functions'!$B$6))","v":1.3535671425672068E-2},{"$f":"$C$40*(valueE(C29,'Utility Functions'!$D$3,'Utility Functions'!$D$4,'Utility Functions'!$D$5,'Utility Functions'!$D$6))","v":1.3942790146123618E-2},{"$f":"$D$40*(valuePL(D29,'Utility Functions'!$E$3:$E$5,'Utility Functions'!$F$3:$F$5))","v":0.03},{"$f":"$E$40*(valuePL(E29,'Utility Functions'!$G$3:$G$5,'Utility Functions'!$H$3:$H$5))","v":0},{"$f":"$F$40*(valuePL(F29,'Utility Functions'!$I$3:$I$4,'Utility Functions'!$J$3:$J$5))","v":0.04},{"$f":"$G$40*(valueE(G29,'Utility Functions'!$L$3,'Utility Functions'!$L$4,'Utility Functions'!$L$5,'Utility Functions'!$L$6))","v":0},{"$f":"$H$40*(valueE(H29,'Utility Functions'!$N$3,'Utility Functions'!$N$4,'Utility Functions'!$N$5,'Utility Functions'!$N$6))","v":0},{"$f":"$I$40*valuePL(I29,'Utility Functions'!$O$3:$O$6,'Utility Functions'!$P$3:$P$6)","v":0},{"$f":"$J$40*valuePL(J29,'Utility Functions'!$Q$3:$Q$6,'Utility Functions'!$R$3:$R$6)","v":0},{"$f":"$K$40*(valuePL(K29,'Utility Functions'!$S$3:$S$7,'Utility Functions'!$T$3:$T$7))","v":0},{"$f":"$L$40*(valueE(L29,'Utility Functions'!$V$3,'Utility Functions'!$V$4,'Utility Functions'!$V$5,'Utility Functions'!$V$6))","v":6.6666666666666662E-3},{"$f":"$M$40*valuePL(M29,'Utility Functions'!$W$3:$W$6,'Utility Functions'!$X$3:$X$6)","v":2E-3},{"$f":"$N$40*valueE(N29,'Utility Functions'!$Z$3,'Utility Functions'!$Z$4,'Utility Functions'!$Z$5,'Utility Functions'!$Z$6)","v":0},{"$f":"$O$40*valuePL(O29,'Utility Functions'!$AA$3:$AA$5,'Utility Functions'!$AB$3:$AB$5)","v":0},{"$f":"$P$40*valuePL(P29,'Utility Functions'!$AC$3:$AC$7,'Utility Functions'!$AD$3:$AD$7)","v":0.04},{"$f":"$Q$40*valuePL(Q29,'Utility Functions'!$AE$3:$AE$6,'Utility Functions'!$AF$3:$AF$6)","v":0},{"$f":"$R$40*valuePL(R29,'Utility Functions'!$AG$3:$AG$6,'Utility Functions'!$AH$3:$AH$6)","v":0.05},{"$f":"$S$40*valuePL(S29,'Utility Functions'!$AI$3:$AI$6,'Utility Functions'!$AJ$3:$AJ$6)","v":0.05},{"$f":"$T$40*valuePL(T29,'Utility Functions'!$AK$3:$AK$8,'Utility Functions'!$AL$3:$AL$8)","v":2.4E-2},{"$f":"$U$40*valuePL(U29,'Utility Functions'!$AM$3:$AM$5,'Utility Functions'!$AN$3:$AN$5)","v":0},{"$f":"$V$40*valuePL(V29,'Utility Functions'!$AO$3:$AO$5,'Utility Functions'!$AP$3:$AP$5)","v":0.05},{"$f":"$W$40*valuePL(W29,'Utility Functions'!$AQ$3:$AQ$6,'Utility Functions'!$AR$3:$AR$6)","v":0.04},{"$f":"$X$40*valuePL(X29,'Utility Functions'!$AS$3:$AS$6,'Utility Functions'!$AT$3:$AT$6)","v":0.04},{"$f":"$Y$40*valuePL(Y29,'Utility Functions'!$AU$3:$AU$6,'Utility Functions'!$AV$3:$AV$6)","v":1.0000000000000002E-2},{"$f":"$Z$40*valuePL(Z29,'Utility Functions'!$AW$3:$AW$5,'Utility Functions'!$AX$3:$AX$5)","v":0},{"$f":"$AA$40*valuePL(AA29,'Utility Functions'!$AY$3:$AY$6,'Utility Functions'!$AZ$3:$AZ$6)","v":3.5999999999999997E-2},{"$f":"$AB$40*valuePL(AB29,'Utility Functions'!$BA$3:$BA$5,'Utility Functions'!$BB$3:$BB$5)","v":0.04},{"$f":"$AC$40*valuePL(AC29,'Utility Functions'!$BC$3:$BC$5,'Utility Functions'!$BD$3:$BD$5)","v":7.4999999999999997E-3},0.49364512823846229,0.49191370390613232,null,9.7478461571795683E-2,8.6666666666666663E-3,0,0.16400000000000001,0.22350000000000003]
[29,{"$f":"$B$40*(valueE(B30,'Utility Functions'!$B$3,'Utility Functions'!$B$4,'Utility Functions'!$B$5,'Utility Functions'!$B$6))","v":2.5041071294184137E-2},{"$f":"$C$40*(valueE(C30,'Utility Functions'!$D$3,'Utility Functions'!$D$4,'Utility Functions'!$D$5,'Utility Functions'!$D$6))","v":2.1405827917278249E-2},{"$f":"$D$40*(valuePL(D30,'Utility Functions'!$E$3:$E$5,'Utility Functions'!$F$3:$F$5))","v":0.03},{"$f":"$E$40*(valuePL(E30,'Utility Functions'!$G$3:$G$5,'Utility Functions'!$H$3:$H$5))","v":1.4999999999999999E-2},{"$f":"$F$40*(valuePL(F30,'Utility Functions'!$I$3:$I$4,'Utility Functions'!$J$3:$J$5))","v":0},{"$f":"$G$40*(valueE(G30,'Utility Functions'!$L$3,'Utility Functions'!$L$4,'Utility Functions'!$L$5,'Utility Functions'!$L$6))","v":0},{"$f":"$H$40*(valueE(H30,'Utility Functions'!$N$3,'Utility Functions'!$N$4,'Utility Functions'!$N$5,'Utility Functions'!$N$6))","v":0},{"$f":"$I$40*valuePL(I30,'Utility Functions'!$O$3:$O$6,'Utility Functions'!$P$3:$P$6)","v":1.8E-3},{"$f":"$J$40*valuePL(J30,'Utility Functions'!$Q$3:$Q$6,'Utility Functions'!$R$3:$R$6)","v":1.3454545454545455E-2},{"$f":"$K$40*(valuePL(K30,'Utility Functions'!$S$3:$S$7,'Utility Functions'!$T$3:$T$7))","v":0},{"$f":"$L$40*(valueE(L30,'Utility Functions'!$V$3,'Utility Functions'!$V$4,'Utility Functions'!$V$5,'Utility Functions'!$V$6))","v":0.02},{"$f":"$M$40*valuePL(M30,'Utility Functions'!$W$3:$W$6,'Utility Functions'!$X$3:$X$6)","v":1.3454545454545455E-2},{"$f":"$N$40*valueE(N30,'Utility Functions'!$Z$3,'Utility Functions'!$Z$4,'Utility Functions'!$Z$5,'Utility Functions'!$Z$6)","v":0},{"$f":"$O$40*valuePL(O30,'Utility Functions'!$AA$3:$AA$5,'Utility Functions'!$AB$3:$AB$5)","v":0},{"$f":"$P$40*valuePL(P30,'Utility Functions'!$AC$3:$AC$7,'Utility Functions'!$AD$3:$AD$7)","v":0.01},{"$f":"$Q$40*valuePL(Q30,'Utility Functions'!$AE$3:$AE$6,'Utility Functions'!$AF$3:$AF$6)","v":0},{"$f":"$R$40*valuePL(R30,'Utility Functions'!$AG$3:$AG$6,'Utility Functions'!$AH$3:$AH$6)","v":0.05},{"$f":"$S$40*valuePL(S30,'Utility Functions'!$AI$3:$AI$6,'Utility Functions'!$AJ$3:$AJ$6)","v":0.05},{"$f":"$T$40*valuePL(T30,'Utility Functions'!$AK$3:$AK$8,'Utility Functions'!$AL$3:$AL$8)","v":2.4E-2},{"$f":"$U$40*valuePL(U30,'Utility Functions'!$AM$3:$AM$5,'Utility Functions'!$AN$3:$AN$5)","v":0},{"$f":"$V$40*valuePL(V30,'Utility Functions'!$AO$3:$AO$5,'Utility Functions'!$AP$3:$AP$5)","v":0.05},{"$f":"$W$40*valuePL(W30,'Utility Functions'!$AQ$3:$AQ$6,'Utility Functions'!$AR$3:$AR$6)","v":8.0000000000000002E-3},{"$f":"$X$40*valuePL(X30,'Utility Functions'!$AS$3:$AS$6,'Utility Functions'!$AT$3:$AT$6)","v":0},{"$f":"$Y$40*valuePL(Y30,'Utility Functions'!$AU$3:$AU$6,'Utility Functions'!$AV$3:$AV$6)","v":4.0000000000000008E-2},{"$f":"$Z$40*valuePL(Z30,'Utility Functions'!$AW$3:$AW$5,'Utility Functions'!$AX$3:$AX$5)","v":2.5000000000000001E-2},{"$f":"$AA$40*valuePL(AA30,'Utility Functions'!$AY$3:$AY$6,'Utility Functions'!$AZ$3:$AZ$6)","v":8.0000000000000002E-3},{"$f":"$AB$40*valuePL(AB30,'Utility Functions'!$BA$3:$BA$5,'Utility Functions'!$BB$3:$BB$5)","v":0.01},{"$f":"$AC$40*valuePL(AC30,'Utility Functions'!$BC$3:$BC$5,'Utility Functions'!$BD$3:$BD$5)","v":0.03},0.4451559901205534,0.44342134352079532,null,9.1446899211462387E-2,4.870909090909091E-2,0,0.13400000000000001,0.17100000000000001]
[30,{"$f":"$B$40*(valueE(B31,'Utility Functions'!$B$3,'Utility Functions'!$B$4,'Utility Functions'!$B$5,'Utility Functions'!$B$6))","v":2.9959234351431094E-2},{"$f":"$C$40*(valueE(C31,'Utility Functions'!$D$3,'Utility Functions'!$D$4,'Utility Functions'!$D$5,'Utility Functions'!$D$6))","v":2.542345105018548E-2},{"$f":"$D$40*(valuePL(D31,'Utility Functions'!$E$3:$E$5,'Utility Functions'!$F$3:$F$5))","v":0.03},{"$f":"$E$40*(valuePL(E31,'Utility Functions'!$G$3:$G$5,'Utility Functions'!$H$3:$H$5))","v":0},{"$f":"$F$40*(valuePL(F31,'Utility Functions'!$I$3:$I$4,'Utility Functions'!$J$3:$J$5))","v":0},{"$f":"$G$40*(valueE(G31,'Utility Functions'!$L$3,'Utility Functions'!$L$4,'Utility Functions'!$L$5,'Utility Functions'!$L$6))","v":0},{"$f":"$H$40*(valueE(H31,'Utility Functions'!$N$3,'Utility Functions'!$N$4,'Utility Functions'!$N$5,'Utility Functions'!$N$6))","v":0},{"$f":"$I$40*valuePL(I31,'Utility Functions'!$O$3:$O$6,'Utility Functions'!$P$3:$P$6)","v":0},{"$f":"$J$40*valuePL(J31,'Utility Functions'!$Q$3:$Q$6,'Utility Functions'!$R$3:$R$6)","v":0},{"$f":"$K$40*(valuePL(K31,'Utility Functions'!$S$3:$S$7,'Utility Functions'!$T$3:$T$7))","v":0},{"$f":"$L$40*(valueE(L31,'Utility Functions'!$V$3,'Utility Functions'!$V$4,'Utility Functions'!$V$5,'Utility Functions'!$V$6))","v":6.6666666666666662E-3},{"$f":"$M$40*valuePL(M31,'Utility Functions'!$W$3:$W$6,'Utility Functions'!$X$3:$X$6)","v":8.0000000000000004E-4},{"$f":"$N$40*valueE(N31,'Utility Functions'!$Z$3,'Utility Functions'!$Z$4,'Utility Functions'!$Z$5,'Utility Functions'!$Z$6)","v":0},{"$f":"$O$40*valuePL(O31,'Utility Functions'!$AA$3:$AA$5,'Utility Functions'!$AB$3:$AB$5)","v":0},{"$f":"$P$40*valuePL(P31,'Utility Functions'!$AC$3:$AC$7,'Utility Functions'!$AD$3:$AD$7)","v":0},{"$f":"$Q$40*valuePL(Q31,'Utility Functions'!$AE$3:$AE$6,'Utility Functions'!$AF$3:$AF$6)","v":0},{"$f":"$R$40*valuePL(R31,'Utility Functions'!$AG$3:$AG$6,'Utility Functions'!$AH$3:$AH$6)","v":1.0000000000000002E-2},{"$f":"$S$40*valuePL(S31,'Utility Functions'!$AI$3:$AI$6,'Utility Functions'!$AJ$3:$AJ$6)","v":1.6500000000000001E-2},{"$f":"$T$40*valuePL(T31,'Utility Functions'!$AK$3:$AK$8,'Utility Functions'!$AL$3:$AL$8)","v":0},{"$f":"$U$40*valuePL(U31,'Utility Functions'!$AM$3:$AM$5,'Utility Functions'!$AN$3:$AN$5)","v":0},{"$f":"$V$40*valuePL(V31,'Utility Functions'!$AO$3:$AO$5,'Utility Functions'!$AP$3:$AP$5)","v":0},{"$f":"$W$40*valuePL(W31,'Utility Functions'!$AQ$3:$AQ$6,'Utility Functions'!$AR$3:$AR$6)","v":0.04},{"$f":"$X$40*valuePL(X31,'Utility Functions'!$AS$3:$AS$6,'Utility Functions'!$AT$3:$AT$6)","v":8.0000000000000002E-3},{"$f":"$Y$40*valuePL(Y31,'Utility Functions'!$AU$3:$AU$6,'Utility Functions'!$AV$3:$AV$6)","v":4.0000000000000008E-2},{"$f":"$Z$40*valuePL(Z31,'Utility Functions'!$AW$3:$AW$5,'Utility Functions'!$AX$3:$AX$5)","v":0},{"$f":"$AA$40*valuePL(AA31,'Utility Functions'!$AY$3:$AY$6,'Utility Functions'!$AZ$3:$AZ$6)","v":3.5999999999999997E-2},{"$f":"$AB$40*valuePL(AB31,'Utility Functions'!$BA$3:$BA$5,'Utility Functions'!$BB$3:$BB$5)","v":0.04},{"$f":"$AC$40*valuePL(AC31,'Utility Functions'!$BC$3:$BC$5,'Utility Functions'!$BD$3:$BD$5)","v":0},0.28334935206828327,0.2832679369768803,null,8.5382685401616573E-2,7.4666666666666666E-3,0,2.6500000000000003E-2,0.16400000000000001]
[31,{"$f":"$B$40*(valueE(B32,'Utility Functions'!$B$3,'Utility Functions'!$B$4,'Utility Functions'!$B$5,'Utility Functions'!$B$6))","v":1.6520156106900608E-2},{"$f":"$C$40*(valueE(C32,'Utility Functions'!$D$3,'Utility Functions'!$D$4,'Utility Functions'!$D$5,'Utility Functions'!$D$6))","v":2.542345105018548E-2},{"$f":"$D$40*(valuePL(D32,'Utility Functions'!$E$3:$E$5,'Utility Functions'!$F$3:$F$5))","v":1.4999999999999999E-2},{"$f":"$E$40*(valuePL(E32,'Utility Functions'!$G$3:$G$5,'Utility Functions'!$H$3:$H$5))","v":0},{"$f":"$F$40*(valuePL(F32,'Utility Functions'!$I$3:$I$4,'Utility Functions'!$J$3:$J$5))","v":0},{"$f":"$G$40*(valueE(G32,'Utility Functions'!$L$3,'Utility Functions'!$L$4,'Utility Functions'!$L$5,'Utility Functions'!$L$6))","v":0},{"$f":"$H$40*(valueE(H32,'Utility Functions'!$N$3,'Utility Functions'!$N$4,'Utility Functions'!$N$5,'Utility Functions'!$N$6))","v":0},{"$f":"$I$40*valuePL(I32,'Utility Functions'!$O$3:$O$6,'Utility Functions'!$P$3:$P$6)","v":2.2636363636363635E-2},{"$f":"$J$40*valuePL(J32,'Utility Functions'!$Q$3:$Q$6,'Utility Functions'!$R$3:$R$6)","v":1.6000000000000001E-3},{"$f":"$K$40*(valuePL(K32,'Utility Functions'!$S$3:$S$7,'Utility Functions'!$T$3:$T$7))","v":0},{"$f":"$L$40*(valueE(L32,'Utility Functions'!$V$3,'Utility Functions'!$V$4,'Utility Functions'!$V$5,'Utility Functions'!$V$6))","v":6.6666666666666662E-3},{"$f":"$M$40*valuePL(M32,'Utility Functions'!$W$3:$W$6,'Utility Functions'!$X$3:$X$6)","v":1.6000000000000001E-3},{"$f":"$N$40*valueE(N32,'Utility Functions'!$Z$3,'Utility Functions'!$Z$4,'Utility Functions'!$Z$5,'Utility Functions'!$Z$6)","v":0},{"$f":"$O$40*valuePL(O32,'Utility Functions'!$AA$3:$AA$5,'Utility Functions'!$AB$3:$AB$5)","v":0},{"$f":"$P$40*valuePL(P32,'Utility Functions'!$AC$3:$AC$7,'Utility Functions'!$AD$3:$AD$7)","v":0.02},{"$f":"$Q$40*valuePL(Q32,'Utility Functions'!$AE$3:$AE$6,'Utility Functions'!$AF$3:$AF$6)","v":0},{"$f":"$R$40*valuePL(R32,'Utility Functions'!$AG$3:$AG$6,'Utility Functions'!$AH$3:$AH$6)","v":0.05},{"$f":"$S$40*valuePL(S32,'Utility Functions'!$AI$3:$AI$6,'Utility Functions'!$AJ$3:$AJ$6)","v":3.3000000000000002E-2},{"$f":"$T$40*valuePL(T32,'Utility Functions'!$AK$3:$AK$8,'Utility Functions'!$AL$3:$AL$8)","v":1.7999999999999999E-2},{"$f":"$U$40*valuePL(U32,'Utility Functions'!$AM$3:$AM$5,'Utility Functions'!$AN$3:$AN$5)","v":0},{"$f":"$V$40*valuePL(V32,'Utility Functions'!$AO$3:$AO$5,'Utility Functions'!$AP$3:$AP$5)","v":2.5000000000000001E-2},{"$f":"$W$40*valuePL(W32,'Utility Functions'!$AQ$3:$AQ$6,'Utility Functions'!$AR$3:$AR$6)","v":0},{"$f":"$X$40*valuePL(X32,'Utility Functions'!$AS$3:$AS$6,'Utility Functions'!$AT$3:$AT$6)","v":8.0000000000000002E-3},{"$f":"$Y$40*valuePL(Y32,'Utility Functions'!$AU$3:$AU$6,'Utility Functions'!$AV$3:$AV$6)","v":1.0000000000000002E-2},{"$f":"$Z$40*valuePL(Z32,'Utility Functions'!$AW$3:$AW$5,'Utility Functions'!$AX$3:$AX$5)","v":0.05},{"$f":"$AA$40*valuePL(AA32,'Utility Functions'!$AY$3:$AY$6,'Utility Functions'!$AZ$3:$AZ$6)","v":3.5999999999999997E-2},{"$f":"$AB$40*valuePL(AB32,'Utility Functions'!$BA$3:$BA$5,'Utility Functions'!$BB$3:$BB$5)","v":0.01},{"$f":"$AC$40*valuePL(AC32,'Utility Functions'!$BC$3:$BC$5,'Utility Functions'!$BD$3:$BD$5)","v":7.4999999999999997E-3},0.35694663746011634,0.35502417415981324,null,5.6943607157086087E-2,3.2503030303030297E-2,0,0.12100000000000001,0.14650000000000002]
[{"$f":"A33","v":32},{"$f":"$B$40*(valueE(B33,'Utility Functions'!$B$3,'Utility Functions'!$B$4,'Utility Functions'!$B$5,'Utility Functions'!$B$6))","v":1.896364549751255E-2},{"$f":"$C$40*(valueE(C33,'Utility Functions'!$D$3,'Utility Functions'!$D$4,'Utility Functions'!$D$5,'Utility Functions'!$D$6))","v":8.0518966871447988E-3},{"$f":"$D$40*(valuePL(D33,'Utility Functions'!$E$3:$E$5,'Utility Functions'!$F$3:$F$5))","v":0.03},{"$f":"$E$40*(valuePL(E33,'Utility Functions'!$G$3:$G$5,'Utility Functions'!$H$3:$H$5))","v":0.03},{"$f":"$F$40*(valuePL(F33,'Utility Functions'!$I$3:$I$4,'Utility Functions'!$J$3:$J$5))","v":0.04},{"$f":"$G$40*(valueE(G33,'Utility Functions'!$L$3,'Utility Functions'!$L$4,'Utility Functions'!$L$5,'Utility Functions'!$L$6))","v":4.8387096774193543E-4},{"$f":"$H$40*(valueE(H33,'Utility Functions'!$N$3,'Utility Functions'!$N$4,'Utility Functions'!$N$5,'Utility Functions'!$N$6))","v":1.4516129032258063E-3},{"$f":"$I$40*valuePL(I33,'Utility Functions'!$O$3:$O$6,'Utility Functions'!$P$3:$P$6)","v":1.0363636363636363E-2},{"$f":"$J$40*valuePL(J33,'Utility Functions'!$Q$3:$Q$6,'Utility Functions'!$R$3:$R$6)","v":0.02},{"$f":"$K$40*(valuePL(K33,'Utility Functions'!$S$3:$S$7,'Utility Functions'!$T$3:$T$7))","v":6.909090909090909E-3},{"$f":"$L$40*(valueE(L33,'Utility Functions'!$V$3,'Utility Functions'!$V$4,'Utility Functions'!$V$5,'Utility Functions'!$V$6))","v":0.02},{"$f":"$M$40*valuePL(M33,'Utility Functions'!$W$3:$W$6,'Utility Functions'!$X$3:$X$6)","v":0.02},{"$f":"$N$40*valueE(N33,'Utility Functions'!$Z$3,'Utility Functions'!$Z$4,'Utility Functions'!$Z$5,'Utility Functions'!$Z$6)","v":0},{"$f":"$O$40*valuePL(O33,'Utility Functions'!$AA$3:$AA$5,'Utility Functions'!$AB$3:$AB$5)","v":0},{"$f":"$P$40*valuePL(P33,'Utility Functions'!$AC$3:$AC$7,'Utility Functions'!$AD$3:$AD$7)","v":0.02},{"$f":"$Q$40*valuePL(Q33,'Utility Functions'!$AE$3:$AE$6,'Utility Functions'!$AF$3:$AF$6)","v":0.04},{"$f":"$R$40*valuePL(R33,'Utility Functions'!$AG$3:$AG$6,'Utility Functions'!$AH$3:$AH$6)","v":0.05},{"$f":"$S$40*valuePL(S33,'Utility Functions'!$AI$3:$AI$6,'Utility Functions'!$AJ$3:$AJ$6)","v":0},{"$f":"$T$40*valuePL(T33,'Utility Functions'!$AK$3:$AK$8,'Utility Functions'!$AL$3:$AL$8)","v":2.4E-2},{"$f":"$U$40*valuePL(U33,'Utility Functions'!$AM$3:$AM$5,'Utility Functions'!$AN$3:$AN$5)","v":0},{"$f":"$V$40*valuePL(V33,'Utility Functions'!$AO$3:$AO$5,'Utility Functions'!$AP$3:$AP$5)","v":0},{"$f":"$W$40*valuePL(W33,'Utility Functions'!$AQ$3:$AQ$6,'Utility Functions'!$AR$3:$AR$6)","v":0.03},{"$f":"$X$40*valuePL(X33,'Utility Functions'!$AS$3:$AS$6,'Utility Functions'!$AT$3:$AT$6)","v":8.0000000000000002E-3},{"$f":"$Y$40*valuePL(Y33,'Utility Functions'!$AU$3:$AU$6,'Utility Functions'!$AV$3:$AV$6)","v":4.0000000000000008E-2},{"$f":"$Z$40*valuePL(Z33,'Utility Functions'!$AW$3:$AW$5,'Utility Functions'!$AX$3:$AX$5)","v":2.5000000000000001E-2},{"$f":"$AA$40*valuePL(AA33,'Utility Functions'!$AY$3:$AY$6,'Utility Functions'!$AZ$3:$AZ$6)","v":0},{"$f":"$AB$40*valuePL(AB33,'Utility Functions'!$BA$3:$BA$5,'Utility Functions'!$BB$3:$BB$5)","v":0.04},{"$f":"$AC$40*valuePL(AC33,'Utility Functions'!$BC$3:$BC$5,'Utility Functions'!$BD$3:$BD$5)","v":7.4999999999999997E-3},0.49072375332835239,0.48872240138318201,null,0.12701554218465735,7.9208211143695015E-2,0,0.13400000000000001,0.15050000000000002]
[33,{"$f":"$B$40*(valueE(B34,'Utility Functions'!$B$3,'Utility Functions'!$B$4,'Utility Functions'!$B$5,'Utility Functions'!$B$6))","v":2.8175740811551258E-2},{"$f":"$C$40*(valueE(C34,'Utility Functions'!$D$3,'Utility Functions'!$D$4,'Utility Functions'!$D$5,'Utility Functions'!$D$6))","v":2.542345105018548E-2},{"$f":"$D$40*(valuePL(D34,'Utility Functions'!$E$3:$E$5,'Utility Functions'!$F$3:$F$5))","v":0.03},{"$f":"$E$40*(valuePL(E34,'Utility Functions'!$G$3:$G$5,'Utility Functions'!$H$3:$H$5))","v":1.4999999999999999E-2},{"$f":"$F$40*(valuePL(F34,'Utility Functions'!$I$3:$I$4,'Utility Functions'!$J$3:$J$5))","v":0},{"$f":"$G$40*(valueE(G34,'Utility Functions'!$L$3,'Utility Functions'!$L$4,'Utility Functions'!$L$5,'Utility Functions'!$L$6))","v":0},{"$f":"$H$40*(valueE(H34,'Utility Functions'!$N$3,'Utility Functions'!$N$4,'Utility Functions'!$N$5,'Utility Functions'!$N$6))","v":0},{"$f":"$I$40*valuePL(I34,'Utility Functions'!$O$3:$O$6,'Utility Functions'!$P$3:$P$6)","v":0},{"$f":"$J$40*valuePL(J34,'Utility Functions'!$Q$3:$Q$6,'Utility Functions'!$R$3:$R$6)","v":0},{"$f":"$K$40*(valuePL(K34,'Utility Functions'!$S$3:$S$7,'Utility Functions'!$T$3:$T$7))","v":0},{"$f":"$L$40*(valueE(L34,'Utility Functions'!$V$3,'Utility Functions'!$V$4,'Utility Functions'!$V$5,'Utility Functions'!$V$6))","v":0.01},{"$f":"$M$40*valuePL(M34,'Utility Functions'!$W$3:$W$6,'Utility Functions'!$X$3:$X$6)","v":0},{"$f":"$N$40*valueE(N34,'Utility Functions'!$Z$3,'Utility Functions'!$Z$4,'Utility Functions'!$Z$5,'Utility Functions'!$Z$6)","v":0},{"$f":"$O$40*valuePL(O34,'Utility Functions'!$AA$3:$AA$5,'Utility Functions'!$AB$3:$AB$5)","v":0},{"$f":"$P$40*valuePL(P34,'Utility Functions'!$AC$3:$AC$7,'Utility Functions'!$AD$3:$AD$7)","v":0.02},{"$f":"$Q$40*valuePL(Q34,'Utility Functions'!$AE$3:$AE$6,'Utility Functions'!$AF$3:$AF$6)","v":0},{"$f":"$R$40*valuePL(R34,'Utility Functions'!$AG$3:$AG$6,'Utility Functions'!$AH$3:$AH$6)","v":0.05},{"$f":"$S$40*valuePL(S34,'Utility Functions'!$AI$3:$AI$6,'Utility Functions'!$AJ$3:$AJ$6)","v":3.3000000000000002E-2},{"$f":"$T$40*valuePL(T34,'Utility Functions'!$AK$3:$AK$8,'Utility Functions'!$AL$3:$AL$8)","v":0},{"$f":"$U$40*valuePL(U34,'Utility Functions'!$AM$3:$AM$5,'Utility Functions'!$AN$3:$AN$5)","v":0},{"$f":"$V$40*valuePL(V34,'Utility Functions'!$AO$3:$AO$5,'Utility Functions'!$AP$3:$AP$5)","v":2.5000000000000001E-2},{"$f":"$W$40*valuePL(W34,'Utility Functions'!$AQ$3:$AQ$6,'Utility Functions'!$AR$3:$AR$6)","v":0.04},{"$f":"$X$40*valuePL(X34,'Utility Functions'!$AS$3:$AS$6,'Utility Functions'!$AT$3:$AT$6)","v":0},{"$f":"$Y$40*valuePL(Y34,'Utility Functions'!$AU$3:$AU$6,'Utility Functions'!$AV$3:$AV$6)","v":4.0000000000000008E-2},{"$f":"$Z$40*valuePL(Z34,'Utility Functions'!$AW$3:$AW$5,'Utility Functions'!$AX$3:$AX$5)","v":0.05},{"$f":"$AA$40*valuePL(AA34,'Utility Functions'!$AY$3:$AY$6,'Utility Functions'!$AZ$3:$AZ$6)","v":0.04},{"$f":"$AB$40*valuePL(AB34,'Utility Functions'!$BA$3:$BA$5,'Utility Functions'!$BB$3:$BB$5)","v":0},{"$f":"$AC$40*valuePL(AC34,'Utility Functions'!$BC$3:$BC$5,'Utility Functions'!$BD$3:$BD$5)","v":0},0.40659919186173665,0.40551467502143035,null,9.859919186173674E-2,0.01,0,0.10300000000000001,0.19500000000000003]
[34,{"$f":"$B$40*(valueE(B35,'Utility Functions'!$B$3,'Utility Functions'!$B$4,'Utility Functions'!$B$5,'Utility Functions'!$B$6))","v":0},{"$f":"$C$40*(valueE(C35,'Utility Functions'!$D$3,'Utility Functions'!$D$4,'Utility Functions'!$D$5,'Utility Functions'!$D$6))","v":0},{"$f":"$D$40*(valuePL(D35,'Utility Functions'!$E$3:$E$5,'Utility Functions'!$F$3:$F$5))","v":0},{"$f":"$E$40*(valuePL(E35,'Utility Functions'!$G$3:$G$5,'Utility Functions'!$H$3:$H$5))","v":0},{"$f":"$F$40*(valuePL(F35,'Utility Functions'!$I$3:$I$4,'Utility Functions'!$J$3:$J$5))","v":0},{"$f":"$G$40*(valueE(G35,'Utility Functions'!$L$3,'Utility Functions'!$L$4,'Utility Functions'!$L$5,'Utility Functions'!$L$6))","v":0},{"$f":"$H$40*(valueE(H35,'Utility Functions'!$N$3,'Utility Functions'!$N$4,'Utility Functions'!$N$5,'Utility Functions'!$N$6))","v":1.7077798861480075E-4},{"$f":"$I$40*valuePL(I35,'Utility Functions'!$O$3:$O$6,'Utility Functions'!$P$3:$P$6)","v":0.03},{"$f":"$J$40*valuePL(J35,'Utility Functions'!$Q$3:$Q$6,'Utility Functions'!$R$3:$R$6)","v":1.8363636363636363E-2},{"$f":"$K$40*(valuePL(K35,'Utility Functions'!$S$3:$S$7,'Utility Functions'!$T$3:$T$7))","v":0.02},{"$f":"$L$40*(valueE(L35,'Utility Functions'!$V$3,'Utility Functions'!$V$4,'Utility Functions'!$V$5,'Utility Functions'!$V$6))","v":0.02},{"$f":"$M$40*valuePL(M35,'Utility Functions'!$W$3:$W$6,'Utility Functions'!$X$3:$X$6)","v":1.8363636363636363E-2},{"$f":"$N$40*valueE(N35,'Utility Functions'!$Z$3,'Utility Functions'!$Z$4,'Utility Functions'!$Z$5,'Utility Functions'!$Z$6)","v":0},{"$f":"$O$40*valuePL(O35,'Utility Functions'!$AA$3:$AA$5,'Utility Functions'!$AB$3:$AB$5)","v":0},{"$f":"$P$40*valuePL(P35,'Utility Functions'!$AC$3:$AC$7,'Utility Functions'!$AD$3:$AD$7)","v":0.02},{"$f":"$Q$40*valuePL(Q35,'Utility Functions'!$AE$3:$AE$6,'Utility Functions'!$AF$3:$AF$6)","v":0},{"$f":"$R$40*valuePL(R35,'Utility Functions'!$AG$3:$AG$6,'Utility Functions'!$AH$3:$AH$6)","v":0.05},{"$f":"$S$40*valuePL(S35,'Utility Functions'!$AI$3:$AI$6,'Utility Functions'!$AJ$3:$AJ$6)","v":0.05},{"$f":"$T$40*valuePL(T35,'Utility Functions'!$AK$3:$AK$8,'Utility Functions'!$AL$3:$AL$8)","v":2.4E-2},{"$f":"$U$40*valuePL(U35,'Utility Functions'!$AM$3:$AM$5,'Utility Functions'!$AN$3:$AN$5)","v":0},{"$f":"$V$40*valuePL(V35,'Utility Functions'!$AO$3:$AO$5,'Utility Functions'!$AP$3:$AP$5)","v":0.05},{"$f":"$W$40*valuePL(W35,'Utility Functions'!$AQ$3:$AQ$6,'Utility Functions'!$AR$3:$AR$6)","v":0.04},{"$f":"$X$40*valuePL(X35,'Utility Functions'!$AS$3:$AS$6,'Utility Functions'!$AT$3:$AT$6)","v":0.04},{"$f":"$Y$40*valuePL(Y35,'Utility Functions'!$AU$3:$AU$6,'Utility Functions'!$AV$3:$AV$6)","v":0},{"$f":"$Z$40*valuePL(Z35,'Utility Functions'!$AW$3:$AW$5,'Utility Functions'!$AX$3:$AX$5)","v":0.05},{"$f":"$AA$40*valuePL(AA35,'Utility Functions'!$AY$3:$AY$6,'Utility Functions'!$AZ$3:$AZ$6)","v":3.5999999999999997E-2},{"$f":"$AB$40*valuePL(AB35,'Utility Functions'!$BA$3:$BA$5,'Utility Functions'!$BB$3:$BB$5)","v":0.01},{"$f":"$AC$40*valuePL(AC35,'Utility Functions'!$BC$3:$BC$5,'Utility Functions'!$BD$3:$BD$5)","v":0},0.47689805071588748,0.47689805071588748,null,0,0.10689805071588752,0,0.14400000000000002,0.22600000000000001]
[35,{"$f":"$B$40*(valueE(B36,'Utility Functions'!$B$3,'Utility Functions'!$B$4,'Utility Functions'!$B$5,'Utility Functions'!$B$6))","v":2.3943140737469053E-2},{"$f":"$C$40*(valueE(C36,'Utility Functions'!$D$3,'Utility Functions'!$D$4,'Utility Functions'!$D$5,'Utility Functions'!$D$6))","v":1.8281994940530583E-2},{"$f":"$D$40*(valuePL(D36,'Utility Functions'!$E$3:$E$5,'Utility Functions'!$F$3:$F$5))","v":1.4999999999999999E-2},{"$f":"$E$40*(valuePL(E36,'Utility Functions'!$G$3:$G$5,'Utility Functions'!$H$3:$H$5))","v":1.4999999999999999E-2},{"$f":"$F$40*(valuePL(F36,'Utility Functions'!$I$3:$I$4,'Utility Functions'!$J$3:$J$5))","v":0.04},{"$f":"$G$40*(valueE(G36,'Utility Functions'!$L$3,'Utility Functions'!$L$4,'Utility Functions'!$L$5,'Utility Functions'!$L$6))","v":0},{"$f":"$H$40*(valueE(H36,'Utility Functions'!$N$3,'Utility Functions'!$N$4,'Utility Functions'!$N$5,'Utility Functions'!$N$6))","v":0},{"$f":"$I$40*valuePL(I36,'Utility Functions'!$O$3:$O$6,'Utility Functions'!$P$3:$P$6)","v":0},{"$f":"$J$40*valuePL(J36,'Utility Functions'!$Q$3:$Q$6,'Utility Functions'!$R$3:$R$6)","v":0},{"$f":"$K$40*(valuePL(K36,'Utility Functions'!$S$3:$S$7,'Utility Functions'!$T$3:$T$7))","v":0.02},{"$f":"$L$40*(valueE(L36,'Utility Functions'!$V$3,'Utility Functions'!$V$4,'Utility Functions'!$V$5,'Utility Functions'!$V$6))","v":1.3333333333333332E-2},{"$f":"$M$40*valuePL(M36,'Utility Functions'!$W$3:$W$6,'Utility Functions'!$X$3:$X$6)","v":2E-3},{"$f":"$N$40*valueE(N36,'Utility Functions'!$Z$3,'Utility Functions'!$Z$4,'Utility Functions'!$Z$5,'Utility Functions'!$Z$6)","v":0.03},{"$f":"$O$40*valuePL(O36,'Utility Functions'!$AA$3:$AA$5,'Utility Functions'!$AB$3:$AB$5)","v":0},{"$f":"$P$40*valuePL(P36,'Utility Functions'!$AC$3:$AC$7,'Utility Functions'!$AD$3:$AD$7)","v":0},{"$f":"$Q$40*valuePL(Q36,'Utility Functions'!$AE$3:$AE$6,'Utility Functions'!$AF$3:$AF$6)","v":0},{"$f":"$R$40*valuePL(R36,'Utility Functions'!$AG$3:$AG$6,'Utility Functions'!$AH$3:$AH$6)","v":0.05},{"$f":"$S$40*valuePL(S36,'Utility Functions'!$AI$3:$AI$6,'Utility Functions'!$AJ$3:$AJ$6)","v":0.05},{"$f":"$T$40*valuePL(T36,'Utility Functions'!$AK$3:$AK$8,'Utility Functions'!$AL$3:$AL$8)","v":1.7999999999999999E-2},{"$f":"$U$40*valuePL(U36,'Utility Functions'!$AM$3:$AM$5,'Utility Functions'!$AN$3:$AN$5)","v":0},{"$f":"$V$40*valuePL(V36,'Utility Functions'!$AO$3:$AO$5,'Utility Functions'!$AP$3:$AP$5)","v":0.05},{"$f":"$W$40*valuePL(W36,'Utility Functions'!$AQ$3:$AQ$6,'Utility Functions'!$AR$3:$AR$6)","v":0.03},{"$f":"$X$40*valuePL(X36,'Utility Functions'!$AS$3:$AS$6,'Utility Functions'!$AT$3:$AT$6)","v":0},{"$f":"$Y$40*valuePL(Y36,'Utility Functions'!$AU$3:$AU$6,'Utility Functions'!$AV$3:$AV$6)","v":1.0000000000000002E-2},{"$f":"$Z$40*valuePL(Z36,'Utility Functions'!$AW$3:$AW$5,'Utility Functions'!$AX$3:$AX$5)","v":0.05},{"$f":"$AA$40*valuePL(AA36,'Utility Functions'!$AY$3:$AY$6,'Utility Functions'!$AZ$3:$AZ$6)","v":0},{"$f":"$AB$40*valuePL(AB36,'Utility Functions'!$BA$3:$BA$5,'Utility Functions'!$BB$3:$BB$5)","v":0.01},{"$f":"$AC$40*valuePL(AC36,'Utility Functions'!$BC$3:$BC$5,'Utility Functions'!$BD$3:$BD$5)","v":7.4999999999999997E-3},0.45305846901133295,0.45120772646574747,null,0.11222513567799963,3.5333333333333335E-2,0.03,0.11800000000000001,0.15750000000000003]
[]
[]
[]
[null,"Decision variable","Benefit","Cost"]
[{"$f":"A2","v":1},0,{"$f":"AD43","v":0.62852931598576234},{"$f":"AD2","v":700000},{"$f":"(C82/D82)*1000000","v":0.89789902283680334}]
[{"$f":"A3","v":2},0,{"$f":"AD44","v":0.53424877401727988},{"$f":"AD3","v":5400000},{"$f":"(C83/D83)*1000000","v":9.8934958151348118E-2}]
[3,0,0.45890624332907692,250000,1.8356249733163077]
[4,0,0.37738087579326757,150000,2.5158725052884505]
[5,0,0.37358983775406607,220000,1.6981356261548459]
[6,0,0.21762541381415162,110000,1.9784128528559239]
[7,1,0.55883167443779502,1000000,0.55883167443779502]
[8,0,0.52659366793040296,5000000,0.10531873358608058]
[9,0,0.45837563615750632,25000,18.335025446300254]
[10,0,0.42049999999999998,900000,0.46722222222222221]
[11,1,0.48800366568914949,1500000,0.32533577712609968]
[12,0,0.38158740731015961,100000,3.8158740731015963]
[13,0,0.30547532344316031,250000,1.2219012937726412]
[14,0,0.4311611991122532,500000,0.8623223982245064]
[15,0,0.60971431784243146,800000,0.7621428973030393]
[16,0,0.54339393939393943,2000000,0.27169696969696971]
[17,0,0.40209196138985603,500000,0.80418392277971207]
[{"$f":"A19","v":18},0,0.43942694497153706,300000,1.464756483238457]
[19,0,0.41549503742461386,750000,0.55399338323281844]
[20,0,0.55885300951154004,1500000,0.37256867300769336]
[21,0,0.42149999999999999,900000,0.46833333333333332]
[22,0,0.44445113851992418,750000,0.59260151802656558]
[23,0,0.37896452234436967,1000000,0.37896452234436967]
[24,0,0.37890643564363613,150000,2.5260429042909074]
[25,0,0.53254137243924626,250000,2.1301654897569851]
[26,0,0.42942229688880618,500000,0.85884459377761235]
[27,0,0.34094279014612355,1200000,0.2841189917884363]
[28,0,0.49364512823846229,500000,0.98729025647692448]
[{"$f":"A30","v":29},0,0.4451559901205534,2000000,0.2225779950602767]
[30,0,0.28334935206828327,250000,1.1333974082731331]
[31,0,0.35694663746011634,650000,0.54914867301556358]
[32,0,0.49072375332835239,200000,2.4536187666417617]
[{"$f":"A34","v":33},1,0.40659919186173665,400000,1.0164979796543416]
[34,1,0.47689805071588748,900000,0.52988672301765272]
[{"$f":"A36","v":35},1,0.45305846901133295,900000,0.50339829890148102]
[null,{"$f":"SUM(B82:B116)","v":5},{"$f":"SUMPRODUCT(B82:B116,C82:C116)","v":2.3833910517159018},{"$f":"SUMPRODUCT(B82:B116,D82:D116)","v":4700000}]
[]
[null,null,"Cost constraint",4000000]
[]
[null,null,null,"FL proposals","Seabird Proposals"]
[null,null,"User Constraint",11,2]
[null,null,"Result in Portfolio",{"$f":"SUMPRODUCT(B82:B116,sdmtool_State_Vectors!I2:I36)","v":3},{"$f":"SUMPRODUCT(B82:B116,sdmtool_State_Vectors!J2:J36)","v":1}]

{"sheet":"Utility Functions","index":2,"n_rows":482,"n_cols":57,"rows_kept":482,"cut":false,"hidden":false,"merged":[]}
["metric 1",null,"metric 2",null,"metric 3",null,"metric 4",null,"metric 5",null,"metric 6a",null,"metric 6b",null,"metric 7",null,"metric 8",null,"metric 9",null,"metric 10",null,"metric 11",null,"metric 12",null,"metric 13",null,"metric 14",null,"metric 15",null,"metric 16",null,"metric 17",null,"metric 18",null,"metric 19",null,"metric 20",null,"metric 21",null,"metric 22",null,"metric 23",null,"metric 24",null,"metric 25",null,"metric 26",null,"metric 27",null,"cost"]
["Taxa","f(x)","Spatial","f(x)","Uncert (x)","y","Freq (x)","y","ARM (x)","y","Trend (x)","f(x)","SumCS (x)","f(x)","PopSpatial","y","PopTime (x)","y","HabSpat (x)","y","HabQual (x)","f(x)","HabTime (x)","y","EPTaxa (x)","f(x)","EPUncert (x)","y","Share (x)","y","Impacts (x)","y","ExPriorities (x)","y","Partners (x)","y","Leverage (x)","y","Alignment (x)","y","Objectives (x)","y","Response (x)","y","Taxa (x)","y","Design (x)","y","Stats (x)","y","Data Plan (x)","y","Budget (x)","y","Timeline (x)","y"]
["Low",0,"Low",0,0,0,0,0,0,0,"Low",0,"Low",0,0,0,0,0,0,0,"Low",2,0,0,"Low",0,0,0,0,0,0,0,0,0,0,0,0,0,0,0,0,0,0,0,0,0,0,0,0,0,0,0,0,0,0,0]
["High",67,"High",100,1,0.5,1,0.5,1,1,"High",{"$f":"MAX('Scores & Costs'!G2:G36)","v":186},"High",{"$f":"MAX('Scores & Costs'!H2:H36)","v":1054},25,0.1,5,0.1,20,0,"High",8,5,0.1,"High",8,1,0.25,1,0.25,1,0.1,1,0.2,1,0.33,1,0.2,1,0.25,1,0.5,1,0.2,1,0.2,1,0.2,1,0.5,1,0.2,1,0.25,1,0.25]
["Mono","increasing","Mono","increasing",2,1,2,1,null,null,"Mono","increasing","Mono","increasing",80,1,16,1,25,0.1,"Mono","increasing",16,1,"Mono","increasing",2,1,2,0.5,2,0.5,2,0.8,2,0.66,2,0.4,2,1,2,1,2,0.75,2,0.75,2,0.8,2,1,2,0.9,2,1,2,1]
["Rho",5,"Rho",10,null,null,null,null,null,null,"Rho","infinity","Rho","infinity",100,1,20,1,80,1,"Rho","infinity",20,1,"Rho","infinity",null,null,3,0.75,3,1,3,1,3,1,3,0.6,null,null,null,null,3,1,3,1,3,1,null,null,3,1]
[null,null,null,null,null,null,null,null,null,null,null,null,null,null,null,null,null,null,100,1,null,null,null,null,null,null,null,null,4,1,null,null,null,null,null,null,4,0.8]
[null,null,null,null,null,null,null,null,null,null,null,null,null,null,null,null,null,null,null,null,null,null,null,null,null,null,null,null,null,null,null,null,null,null,null,null,5,1]
[]
["min",{"$f":"MIN('Scores & Costs'!B2:B36)","v":0},null,{"$f":"MIN('Scores & Costs'!C2:C36)","v":0},{"$f":"MIN('Scores & Costs'!D2:D36)","v":0},null,{"$f":"MIN('Scores & Costs'!E2:E36)","v":0},null,{"$f":"MIN('Scores & Costs'!F2:F36)","v":0},null,null,{"$f":"MIN('Scores & Costs'!G2:G36)","v":0},null,{"$f":"MIN('Scores & Costs'!H2:H36)","v":0},{"$f":"MIN('Scores & Costs'!I2:I36)","v":0},null,{"$f":"MIN('Scores & Costs'!J2:J36)","v":0},null,{"$f":"MIN('Scores & Costs'!K2:K36)","v":0},null,null,{"$f":"MIN('Scores & Costs'!L2:L36)","v":2},{"$f":"MIN('Scores & Costs'!M2:M36)","v":0},null,null,{"$f":"MIN('Scores & Costs'!N2:N36)","v":0},{"$f":"MIN('Scores & Costs'!O2:O36)","v":0},null,{"$f":"MIN('Scores & Costs'!P2:P36)","v":0},null,{"$f":"MIN('Scores & Costs'!Q2:Q36)","v":0},null,{"$f":"MIN('Scores & Costs'!R2:R36)","v":0},null,{"$f":"MIN('Scores & Costs'!S2:S36)","v":0},null,{"$f":"MIN('Scores & Costs'!T2:T36)","v":0},null,{"$f":"MIN('Scores & Costs'!U2:U36)","v":0},null,{"$f":"MIN('Scores & Costs'!V2:V36)","v":0},null,{"$f":"MIN('Scores & Costs'!W2:W36)","v":0},null,{"$f":"MIN('Scores & Costs'!X2:X36)","v":0},null,{"$f":"MIN('Scores & Costs'!Y2:Y36)","v":0},null,{"$f":"MIN('Scores & Costs'!Z2:Z36)","v":0},null,{"$f":"MIN('Scores & Costs'!AA2:AA36)","v":0},null,{"$f":"MIN('Scores & Costs'!AB2:AB36)","v":0},null,{"$f":"MIN('Scores & Costs'!AC2:AC36)","v":0},null,{"$f":"MIN('Scores & Costs'!AD2:AD36)","v":25000}]
["max",{"$f":"MAX('Scores & Costs'!B2:B36)","v":52},null,{"$f":"MAX('Scores & Costs'!C2:C36)","v":28.2},{"$f":"MAX('Scores & Costs'!D2:D36)","v":2},null,{"$f":"MAX('Scores & Costs'!E2:E36)","v":2},null,{"$f":"MAX('Scores & Costs'!F2:F36)","v":1},null,null,{"$f":"MAX('Scores & Costs'!G2:G36)","v":186},null,{"$f":"MAX('Scores & Costs'!H2:H36)","v":1054},{"$f":"MAX('Scores & Costs'!I2:I36)","v":100},null,{"$f":"MAX('Scores & Costs'!J2:J36)","v":16},null,{"$f":"MAX('Scores & Costs'!K2:K36)","v":100},null,null,{"$f":"MAX('Scores & Costs'!L2:L36)","v":8},{"$f":"MAX('Scores & Costs'!M2:M36)","v":16},null,null,{"$f":"MAX('Scores & Costs'!N2:N36)","v":8},{"$f":"MAX('Scores & Costs'!O2:O36)","v":2},null,{"$f":"MAX('Scores & Costs'!P2:P36)","v":4},null,{"$f":"MAX('Scores & Costs'!Q2:Q36)","v":3},null,{"$f":"MAX('Scores & Costs'!R2:R36)","v":3},null,{"$f":"MAX('Scores & Costs'!S2:S36)","v":3},null,{"$f":"MAX('Scores & Costs'!T2:T36)","v":5},null,{"$f":"MAX('Scores & Costs'!U2:U36)","v":2},null,{"$f":"MAX('Scores & Costs'!V2:V36)","v":2},null,{"$f":"MAX('Scores & Costs'!W2:W36)","v":3},null,{"$f":"MAX('Scores & Costs'!X2:X36)","v":3},null,{"$f":"MAX('Scores & Costs'!Y2:Y36)","v":3},null,{"$f":"MAX('Scores & Costs'!Z2:Z36)","v":2},null,{"$f":"MAX('Scores & Costs'!AA2:AA36)","v":3},null,{"$f":"MAX('Scores & Costs'!AB2:AB36)","v":2},null,{"$f":"MAX('Scores & Costs'!AC2:AC36)","v":2},null,{"$f":"MAX('Scores & Costs'!AD2:AD36)","v":5400000}]
[]
[]
["Metric 1 - Mgmt. Taxa"]
[]
[0,{"$f":"valueE(A16,$B$3,$B$4,$B$5,$B$6)","v":0}]
[10,{"$f":"valueE(A17,$B$3,$B$4,$B$5,$B$6)","v":0.86466602685702687}]
[18,0.97267775129967537]
[19,0.97763070939524754]
[20,0.98168584850679919]
[21,0.98500591560543571]
[30,0.99752275921406897]
[40,0.99966605201023029]
[50,0.99995611514785776]
[67,1]
[]
[]
[]
["Metric 2 - Mgmt. Spatial"]
[]
[0,{"$f":"valueE(A31,$D$3,$D$4,$D$5,$D$6)","v":0}]
[1,{"$f":"valueE(A32,$D$3,$D$4,$D$5,$D$6)","v":9.5166902534731271E-2}]
[2,0.18127747690673726]
[3,0.2591935466870966]
[4,0.32969492209066664]
[5,{"$f":"valueE(A36,$D$3,$D$4,$D$5,$D$6)","v":0.39348720457881692}]
[6,0.45120884875601525]
[7,0.50343755223810183]
[8,0.55069603744419893]
[9,0.59345728317837421]
[10,0.63214925836048663]
[12,0.69883751526190618]
[15,0.77690511128905482]
[17,0.8173535837425584]
[20,{"$f":"valueE(A45,$D$3,$D$4,$D$5,$D$6)","v":0.86470397426308421}]
[25,0.91795667654474133]
[40,0.98172893153580332]
[80,0.99970992413243598]
[100,1]
[]
[]
["Metric 3 - Uncertainty"]
[]
["Low"]
["Med"]
["High"]
[]
[]
[]
[]
[]
[]
[]
[]
[]
[]
[]
[]
["Metric 4 - Mgmt. Frequency"]
[]
["<50"]
["50-100"]
[">100"]
[]
[]
[]
[]
[]
[]
[]
[]
[]
[]
["Metric 5 - ARM"]
[]
["No"]
["Yes"]
[]
[]
[]
[]
[]
[]
[]
[]
[]
[]
[]
[]
[]
["Metric 6a - Trend"]
[0,{"$f":"valueE(A102,$L$3,$L$4,$L$5,$L$6)","v":0}]
[186,{"$f":"valueE(A103,$L$3,$L$4,$L$5,$L$6)","v":1}]
[]
[]
[]
[]
[]
[]
[]
[]
[]
[]
[]
[]
[]
[]
["Metric 6b - Sum Conservation Scores"]
[]
[0,{"$f":"valueE(A120,$N$3,$N$4,$N$5,$N$6)","v":0}]
[1054,{"$f":"valueE(A121,$N$3,$N$4,$N$5,$N$6)","v":1}]
[]
[]
[]
[]
[]
[]
[]
[]
[]
[]
[]
[]
[]
["Metric 7 - PopSpatial"]
[]
[]
[]
[]
[]
[]
[]
[]
[]
[]
[]
[]
[]
[]
[]
[]
["Metric 8 - PopTime"]
[]
[]
[]
[]
[]
[]
[]
[]
[]
[]
[]
[]
[]
[]
[]
[]
[]
["Metric 9 - HabQuant"]
[]
[]
[]
[]
[]
[]
[]
[]
[]
[]
[]
[]
[]
[]
[]
[]
[]
[]
["Metric 10 - HabQual"]
[]
[2,{"$f":"valueE(A191,$V$3,$V$4,$V$5,$V$6)","v":0}]
[3,0.16666666666666666]
[4,0.33333333333333331]
[5,0.5]
[6,0.66666666666666663]
[7,0.83333333333333337]
[8,1]
[]
[]
[]
[]
[]
[]
[]
[]
["Metric 11 - HabTime"]
[]
[]
[]
[]
[]
[]
[]
[]
[]
[]
[]
[]
[]
[]
[]
[]
["Metric 12 - EPTaxaSumOfScores"]
[]
[0,{"$f":"valueE(A225,$Z$3,$Z$4,$Z$5,$Z$6)","v":0}]
[1,{"$f":"valueE(A226,$Z$3,$Z$4,$Z$5,$Z$6)","v":0.125}]
[2,0.25]
[3,0.375]
[4,0.5]
[5,0.625]
[6,0.75]
[7,0.875]
[8,1]
[]
[]
[]
[]
[]
[]
[]
["Metric 13 - EPUncertainty"]
[]
[]
[]
[]
[]
[]
[]
[]
[]
[]
[]
[]
[]
[]
[]
[]
[]
["Metric 14 - Data sharing"]
[]
[]
[]
[]
[]
[]
[]
[]
[]
[]
[]
[]
[]
[]
[]
[]
["Metric 15 - Impacts (Other Uses)"]
[]
[]
[]
[]
[]
[]
[]
[]
[]
[]
[]
[]
[]
[]
[]
[]
[]
[]
["Metric 16 - Existing Priorities"]
[]
[]
[]
[]
[]
[]
[]
[]
[]
[]
[]
[]
[]
[]
[]
[]
[]
["Metric 17 - Partners"]
[]
[]
[]
[]
[]
[]
[]
[]
[]
[]
[]
[]
[]
[]
[]
[]
[]
[]
["Metric 18 - Leverage"]
[]
[]
[]
[]
[]
[]
[]
[]
[]
[]
[]
[]
[]
[]
[]
[]
["Metric 19 - Alignment"]
[]
[]
[]
[]
[]
[]
[]
[]
[]
[]
[]
[]
[]
[]
[]
[]
["Metric 20 - Obj/Hypoth"]
[]
[]
[]
[]
[]
[]
[]
[]
[]
[]
[]
[]
[]
[]
[]
[]
["Metric 21 - Response Variable"]
[]
[]
[]
[]
[]
[]
[]
[]
[]
[]
[]
[]
[]
[]
[]
[]
[]
["Metric 22 - Target taxa"]
[]
[]
[]
[]
[]
[]
[]
[]
[]
[]
[]
[]
[]
[]
[]
[]
["Metric 23 - Study Design"]
[]
[]
[]
[]
[]
[]
[]
[]
[]
[]
[]
[]
[]
[]
[]
[]
["Metric 24 - Stats"]
[]
[]
[]
[]
[]
[]
[]
[]
[]
[]
[]
[]
[]
[]
[]
[]
["Metric 25 - Data plan"]
[]
[]
[]
[]
[]
[]
[]
[]
[]
[]
[]
[]
[]
[]
[]
["Metric 26 - Budget"]
[]
[]
[]
[]
[]
[]
[]
[]
[]
[]
[]
[]
[]
["Metric 27 - Timeline"]

{"sheet":"sdmtool_State_Vectors","index":3,"n_rows":37,"n_cols":12,"rows_kept":37,"cut":false,"hidden":false,"merged":[]}
["proposal","title","cost","taxa_groups","TX","LA","MS","AL","FL","seabird","sdmtool_states","proposal"]
[1,"NFWF-A",700000,"Shorebirds",1,1,1,1,1,0,"All",{"$f":"A2","v":1}]
[2,"NFWF-B",5400000,"All",0,0,1,1,0,1,"MS, AL",2]
[3,"NFWF-C",250000,"All",0,1,0,0,0,1,"LA",3]
[4,"NFWF-D",150000,"Shorebirds",0,1,0,0,0,0,"LA",4]
[5,"NFWF-E",220000,"Shorebirds",1,1,1,0,0,0,"TX,LA,MS",5]
[6,"NFWF-F",110000,"Shorebirds",0,0,0,1,1,0,"AL,FL",6]
[7,"Omnibus Monitoring In Response to Sea Level Rise",1000000,"All Minus Seabirds",1,1,1,1,1,0,"All",7]
[8,"The effectiveness of island creation in Mobile Bay for island nesting species",5000000,"wading, Seabirds",1,1,1,1,1,0,"AL",8]
[9,"the impact of wind development on migrating raptors in the GoM",25000,"Raptors",1,1,1,1,1,0,"All",9]
[10,"Do hurricanes impact survival of migratory/wintering waterfowl? Does stress/movement to avoid hurricanes impact migratory/wintering waterfowl survival?",900000,"Waterfowl",0,0,0,1,0,0,"AL",10]
[11,"How does increase in salinity impact habitat quality/quantity, and does it impact the population trend of wetland associated birds?",1500000,"waterfowl, marshbirds, wadingbirds",1,1,1,1,1,0,"All",11]
[12,"The impact of rice agriculture on nesting King Rails and wintering Yellow Rails in Louisiana",100000,"marshbird, landbird",1,0,0,0,0,0,"TX",12]
[13,"How do hurricanes impact forage quality for nesting wadingbirds?",250000,"Wading",1,1,1,1,1,0,"All",13]
[14,"How do hurriances impact forest management rotations, and nesting landbirds and raptors in those forests?",500000,"Landbird,Raptor",0,1,0,0,0,0,"LA",14]
[15,"Using adaptive managgement to learn about how we should manage grasslands using prescribed fire in the face of climage change",800000,"Landbirds,Marshbird,Raptor",0,1,1,0,0,0,"LA,MS",15]
[16,"Long-term monitoring of GoM raptors",2000000,"Raptors",0,0,0,1,1,0,"AL,FL",16]
[17,"Learning more about how perscribed fire increases habitat quantity in forested systems through adapative management?",500000,"Landbirds",0,0,1,1,0,0,"MS,AL",17]
[18,"How do hurriances impact the survival of marshbirds",300000,"Marshbirds",1,1,1,1,1,0,"All",18]
[19,"How can prescribed fire be used to manage scrubland habitats for a greater diversity of migratory birds in the face of climate change?",750000,"Landbirds",1,1,1,1,1,0,"All",19]
[20,"Comparison of the impacts of forested habitat cover change on population dynamics of long and short distance migrants",1500000,"Landbirds",1,1,1,1,1,0,"All",20]
[21,"How do open ocean currents, surface temperature and seasonality impact seabird use off the GoM?",900000,"Seabirds",1,1,1,1,1,1,"All",21]
[22,"What has a larger impact on X seabird populations in the gulf, plastic consumption, accidental take, or weather patterns?",750000,"Seabirds",1,1,1,1,1,1,"All",22]
[23,"How does water management, including the flooding of wetlands and cropfields, impact overwinter waterfowl surival?",1000000,"Waterfowl",1,1,1,1,1,0,"All",23]
[24,"What kind of signage is most effective for decreasing human disturbance impacts on beach nesting birds?",150000,"Shorebirds",1,1,1,1,1,0,"All",24]
[25,"How does invasive species control impact marshbird use?",250000,"Marshbirds",1,1,1,1,1,0,"All",25]
[26,"How does human disturbance impact the nest survival and fledging rate of nesting wading and marshbirds",500000,"Marshbirds, Wadingbirds",1,1,1,1,1,0,"All",26]
[27,"How does beach renourishment impact the invertebrate communities which are used by migratory and wintering shorebirds?",1200000,"Shorebirds",1,1,1,0,0,0,"TX,LA,MS",27]
[28,"Learning about how beach renourishment after oil contamination can increase habitat quantity for 3 declining shorebirds",500000,"Shorebirds",0,0,1,1,1,0,"MS,AL,FL",28]
[29,"When restoring wetlands and grasslands, but unable to restore very large patches, is there an advantage to restoring the two habitat types near each other for species in each habitat type, versus cropfields",2000000,"Marshbirds, Landbirds, Raptors",1,1,1,1,1,0,"All",29]
[30,"How does prescribed fire impact marshbird habitat quanitity?",250000,"Marshbirds",1,1,1,1,1,0,"All",30]
[31,"How does fresh water management impact the quantity of wetland habitat available to wintering marshbirds?",650000,"Marshbirds",0,0,1,0,0,0,"MS",31]
[32,"Learning about how management of scrub shrub succession impacts habitat quantity and quantity as well as population trends for migratory landbirds through adpative management",200000,"Landbirds",0,1,0,0,0,0,"LA",32]
[33,"The impacts of offshore oil development on wintering seabirds and lesser scaup",400000,"Seabirds, Waterfowl",0,0,1,0,0,1,"MS",33]
[34,"long-term monitoring of the reddish egret",900000,"Wading",0,1,0,0,0,0,"LA",34]
[35,"The impacts of sealevel rise and stormwater management on the habitat quantity , food resources and use by wadingbirds",900000,"Wading",0,0,1,0,1,0,"MS,FL",35]
[null,null,{"$f":"SUM(C2:C36)","v":32505000},null,{"$f":"SUM(E2:E36)","v":20},25,26,23,21,{"$f":"SUM(J2:J36)","v":5}]

{"sheet":"0_WeightElicitation","index":4,"n_rows":58,"n_cols":12,"rows_kept":58,"cut":false,"hidden":false,"merged":[[44,2,44,6],[48,2,48,6],[53,2,53,6],[5,2,5,6],[10,2,10,6],[15,2,15,6],[23,2,23,6],[33,2,33,6],[40,2,40,6]]}
[]
[]
[]
[null,null,null,"Ave. weight","Min","Median","Max"]
[]
[null,null,"Fundamental Objectives"]
[null,null,"Relevance of data",0.42,0.34615384615384615,0.41666666666666669,0.58823529411764708,{"$f":"D7","v":0.42}]
[null,null,"Integration of efforts",0.24,0.1,0.22222222222222221,0.38461538461538464,{"$f":"D8","v":0.24}]
[null,null,"Scientific rigor",0.34,0.26923076923076922,0.33333333333333331,0.46511627906976744,0.34]
[]
[null,null,"Sub-objective: Relevance of data"]
[null,null,"Management effectiveness",0.36694011756290501,0.12195121951219512,0.35750000000000004,0.5780346820809249,{"$f":"D12","v":0.36694011756290501}]
[null,null,"Status and trends",0.33950627659221072,9.0909090909090912E-2,0.38098693759071123,0.55555555555555558,{"$f":"D13","v":0.33950627659221072}]
[null,null,"Ecological processes",0.29355360584488432,0,0.30384615384615388,0.45454545454545453,0.29355360584488432]
[]
[null,null,"Sub-objective: Integration of efforts"]
[null,null,"Data Sharing",0.16473933293713175,3.6363636363636362E-2,0.16853932584269662,0.20512820512820512,{"$f":"D17","v":0.16473933293713175}]
[null,null,"Broad Impacts",0.18159432126129066,9.3023255813953487E-2,0.17857142857142858,0.34545454545454546,{"$f":"D18","v":0.18159432126129066}]
[null,null,"Existing Priorities",0.20786163779177183,0.16666666666666666,0.2,0.36363636363636365,0.20786163779177183]
[null,null,"Partners",0.18205601219260392,0.15368852459016394,0.19101123595505617,0.21818181818181817,0.18205601219260392]
[null,null,"Leverage",0.13251383660059851,1.8181818181818181E-2,0.14959016393442623,0.18604651162790697,0.13251383660059851]
[null,null,"Alignment",0.13123485921660338,1.8181818181818181E-2,0.13461538461538461,0.23076923076923078,0.13123485921660338]
[]
[null,null,"Sub-objective: Scientific Rigor"]
[null,null,"Objectives/Hypotheses",0.16016578765068418,0.13245033112582782,0.15384615384615385,0.24691358024691357,{"$f":"D25","v":0.16016578765068418}]
[null,null,"Response Variable",0.11550698105183116,2.4691358024691357E-2,0.12307692307692308,0.1388888888888889,{"$f":"D26","v":0.11550698105183116}]
[null,null,"Target Taxa",0.1235276954540751,2.4691358024691357E-2,0.12790697674418605,0.17241379310344829,0.1235276954540751]
[null,null,"Survey Design",0.15350454693417923,0.13245033112582782,0.14388489208633093,0.22222222222222221,0.15350454693417923]
[null,null,"Statistical Rigor",0.13300800593613818,0.1,0.13245033112582782,0.20987654320987653,0.13300800593613818]
[null,null,"Data Management",0.10306092077825441,4.9382716049382713E-2,0.1076923076923077,0.1388888888888889,0.10306092077825441]
[null,null,"Budget",0.10929800483888977,8.7209302325581398E-2,0.1076923076923077,0.1388888888888889,0.10929800483888977]
[null,null,"Timeline",0.10192805735594795,8.3333333333333329E-2,0.1,0.13245033112582782,0.10192805735594795]
[]
[null,null,"Sub-objective: Relevance-Management effectiveness"]
[null,null,"Birds of Conservation Concern",0.19820870600426765,0.125,0.20202020202020202,0.28125,{"$f":"D35","v":0.19820870600426765}]
[null,null,"Spatial Scope",0.18737160628911689,7.8125E-2,0.2,0.24691358024691357,{"$f":"D36","v":0.18737160628911689}]
[null,null,"Uncertainty Reduction",0.18975768026679279,7.8125E-2,0.19767441860465115,0.25,0.18975768026679279]
[null,null,"Current Managemetn Practices",0.18487218984594747,0.11594202898550725,0.18181818181818182,0.3125,0.18487218984594747]
[null,null,"Adaptive Management",0.23978981759387516,0.15384615384615385,0.21505376344086022,0.5,0.23978981759387516]
[]
[null,null,"Sub-objective: Relevance-Status and trends"]
[null,null,"Populations",0.567475095958068,0.5,0.52631578947368418,0.8,{"$f":"D42","v":0.567475095958068}]
[null,null,"Habitats",0.43252490404193195,0.2,0.47368421052631576,0.5,{"$f":"D43","v":0.43252490404193195}]
[]
[null,null,"Sub-objective: Relevance-Ecological processes"]
[null,null,"Birds of Conservation Concern",{"$f":"0.03/0.12","v":0.25},"−","−","−",{"$f":"D46","v":0.25}]
[null,null,"Uncertainty Reduction",{"$f":"0.09/0.12","v":0.75},"−","−","−",{"$f":"D47","v":0.75}]
[]
[null,null,"Sub-objective: Relevance-Status and trends-Populations"]
[null,null,"Conservation Need",0.37371956448650689,0.2857142857142857,0.37735849056603776,0.57692307692307687,{"$f":"D50","v":0.37371956448650689},null,null,0.21207654571838788,0.10603827285919394]
[null,null,"Spatial Scope of Population Monitoring",0.31719235689245973,0.24038461538461539,0.32,0.3888888888888889,{"$f":"D51","v":0.31719235689245973},null,null,0.17999876316471433]
[null,null,"Temporal Scope of Population Monitoring",0.30908807862103338,0.18269230769230768,0.31446540880503143,0.35714285714285715,0.30908807862103338,null,null,0.17539978707496579]
[null,null,null,null,null,null,null,null,null,null,0.15453456200081242]
[null,null,"Sub-objective: Relevance-Status and trends-Habitats",null,null,null,null,null,null,null,0.15839220012471103]
[null,null,"Spatial Scope of Habitat Quant.",0.35728477263781039,0.30612244897959184,0.33908045977011492,0.44444444444444442,{"$f":"D55","v":0.35728477263781039},null,null,0.1195981419164085]
[null,null,"Spatial Scope of Habitat Qual.",0.36620365358050089,0.26923076923076922,0.37037037037037035,0.44444444444444442,{"$f":"D56","v":0.36620365358050089}]
[null,null,"Temporal Scope of Habitat Monitoring",0.27651157378168872,0.2,0.29100529100529099,0.34615384615384615,{"$f":"D57","v":0.27651157378168872}]
[null,null,null,null,null,null,null,null,null,null,{"$f":"SUM(K50:K55)","v":0.99999999999999989}]

{"sheet":"Portfolio_A","index":5,"n_rows":119,"n_cols":37,"rows_kept":119,"cut":false,"hidden":false,"merged":[]}
["Project","manage_species","manage_spatial","manage_uncertainty","manage_currentpractices","manage_adaptivemanagement","pop_a","pop_b","pop_spatialscope","pop_temporalscope","hab_quantity","hab_quality","hab_temporal","ecoprocess_spp","ecoprocess_uncertainty","datasharing","broaderimpacts","exisitingpriorities","partners","leverage","alignment","objhyp","response","targettaxa","surveydesign","stats","datamanagement","budget","timeline","cost"]
[1,9,6.25,2,2,0,186,1054,75,5,0,2,0,0,0,4,0,2,3,0,0,2,3,3,3,2,3,2,2,700000]
[2,3,28.2,1,0,0,0,0,0,0,0,2,0,4,1,0,0,3,3,0,0,2,3,3,3,2,3,2,2,5400000]
[3,8,28.2,2,0,0,0,0,0,0,0,2,0,5,1,0,2,0,0,0,1,2,3,3,3,2,1,2,2,250000]
[4,1,6.25,2,0,0,0,0,0,0,0,2,0,4,1,0,1,3,3,4,0,1,3,3,1,0,0,2,1,150000]
[5,4,3.1,2,0,0,0,0,50,2,0,2,0,0,0,0,1,3,3,4,1,0,3,3,2,0,0,2,1,220000]
[6,10,6.2E-2,2,0,0,0,0,10,2,0,2,0,0,0,0,1,0,3,3,0,0,0,3,0,0,0,2,1,110000]
[7,52,18.8,0,2,0,0,0,85,12,85,8,12,8,1,0,0,3,3,0,0,2,0,1,3,2,2,0,2,1000000]
[8,3,18.8,2,1,1,0,0,14,14,14,8,14,0,0,0,3,1,3,0,0,2,3,3,3,2,0,1,1,5000000]
[9,9,15.6,2,1,0,70,140,0,0,0,2,0,0,0,3,0,3,2,1,0,2,3,3,1,2,1,1,2,25000]
[10,0,0,0,0,0,0,0,0,0,0,2,0,6,2,1,2,3,2,2,0,0,2,3,3,1,1,0,2,900000]
[11,0,0,0,0,0,6,102,52,15,52,8,15,3,1,1,0,3,3,2,2,2,1,3,3,1,2,0,1,1500000]
[12,2,15.6,2,1,0,0,0,0,0,0,2,0,0,0,0,1,3,3,3,0,1,1,3,1,2,1,2,0,100000]
[13,0,0,0,0,0,0,12,39,2,39,8,2,7,1,1,0,3,3,0,0,1,0,1,0,2,1,1,1,250000]
[14,6,15.6,1,1,0,0,0,0,0,0,2,0,6,1,1,0,3,3,0,0,1,1,3,3,1,2,1,1,500000]
[15,23,12.5,2,1,1,0,0,23,3,23,8,3,1,2,2,0,2,3,3,2,0,3,1,1,2,3,2,1,800000]
[16,0,0,0,0,0,0,0,100,15,100,7,15,0,0,3,0,3,3,5,0,2,2,2,1,2,3,2,2,2000000]
[17,2,15.6,2,1,1,58,290,0,0,0,8,3,0,0,0,0,3,2,0,0,2,3,1,0,1,0,2,1,500000]
[18,0,0,0,0,0,0,30,0,0,0,2,0,8,1,1,3,3,3,5,1,2,2,1,2,1,2,1,0,300000]
[19,8,3.125,1,2,0,0,0,0,0,0,2,0,8,2,0,0,2,3,0,0,1,1,3,2,0,1,0,1,750000]
[20,9,15.6,1,2,0,0,435,76,10,76,6,10,8,2,1,0,3,3,3,2,1,0,0,1,2,1,0,1,1500000]
[21,0,0,0,0,0,0,0,0,0,0,2,0,8,2,0,1,3,3,5,1,0,2,3,1,0,3,1,2,900000]
[22,0,0,0,0,0,16,64,0,0,0,2,0,1,2,4,2,2,3,5,0,1,2,1,0,2,1,2,1,750000]
[23,9,18.8,2,0,0,0,0,0,0,0,2,0,0,0,3,0,3,3,5,0,2,1,2,1,1,1,0,1,1000000]
[24,5,6.25,2,0,0,0,0,0,0,0,2,0,0,0,0,0,3,3,5,0,0,3,1,3,2,1,0,2,150000]
[25,9,18.8,2,0,0,176,308,0,0,0,2,0,8,1,2,2,3,3,0,0,2,1,3,2,1,1,2,2,250000]
[26,17,18.8,2,1,0,0,0,0,0,0,2,0,0,0,3,0,3,3,4,0,2,1,0,2,0,1,2,2,500000]
[27,0,6.25,2,0,0,0,0,0,0,80,2,5,0,0,2,2,3,3,5,0,1,2,3,1,0,0,0,0,1200000]
[28,3,6.25,2,0,1,0,0,0,0,0,4,5,0,0,4,0,3,3,4,0,2,3,3,1,0,2,2,1,500000]
[29,9,12.5,2,1,0,0,0,15,12,15,8,12,0,0,1,0,3,3,4,0,2,1,0,2,1,1,1,2,2000000]
[30,33,18.8,2,0,0,0,0,0,0,0,4,2,0,0,0,0,1,1,0,0,0,3,1,2,0,2,2,0,250000]
[31,4,18.8,1,0,0,0,0,65,4,0,4,4,0,0,2,0,3,2,3,0,1,0,1,1,2,2,1,1,650000]
[32,5,3.125,2,2,1,6,102,40,16,40,8,16,0,0,2,3,3,0,4,0,0,2,1,2,1,0,2,1,200000]
[33,14,18.8,2,1,0,0,0,0,0,0,5,0,0,0,2,0,3,2,0,0,1,3,0,2,2,3,0,0,400000]
[34,0,0,0,0,0,0,12,100,15,100,8,15,0,0,2,0,3,3,4,0,2,3,3,0,2,2,1,0,900000]
[35,8,9.4,1,1,1,0,0,0,0,100,6,5,8,0,0,0,3,3,3,0,2,2,0,1,2,0,1,1,900000]
[null,{"$f":"SUM(B2:B36)","v":265},{"$f":"SUM(C2:C36)","v":359.86200000000002},46,20,6,518,2549,744,127,724,146,138,93,21,45,24,91,92,86,10,44,66,68,57,43,47,42,41]
[null,{"$f":"B1","v":"manage_species"},{"$f":"C1","v":"manage_spatial"},"manage_uncertainty","manage_currentpractices","manage_adaptivemanagement","pop_a","pop_b","pop_spatialscope","pop_temporalscope","hab_quantity","hab_quality","hab_temporal","ecoprocess_spp","ecoprocess_uncertainty","datasharing","broaderimpacts","exisitingpriorities","partners","leverage","alignment","objhyp","response","targettaxa","surveydesign","stats","datamanagement","budget","timeline"]
[null,"Metric 1","Metric 2","Metric 3","Metric 4","Metric 5","Metric 6a","Metric 6b","Metric 7","Metric 8","Metric 9","Metric 10","Metric 11","Metric 12","Metric 13","Metric 14","Metric 15","Metric 16","Metric 17","Metric 18","Metric 19","Metric 20","Metric 21","Metric 22","Metric 23","Metric 24","Metric 25","Metric 26","Metric 27"]
["Weights",0.03,0.03,0.03,0.03,0.04,1.4999999999999999E-2,1.4999999999999999E-2,0.03,0.02,0.02,0.02,0.02,0.03,0.09,0.04,0.04,0.05,0.05,0.03,0.03,0.05,0.04,0.04,0.05,0.05,0.04,0.04,0.03]
[]
["Project",null,null,null,null,null,null,null,null,null,null,null,null,null,null,null,null,null,null,null,null,null,null,null,null,null,null,null,null,"total","sdm_tool_excel"]
[{"$f":"A2","v":1},{"$f":"$B$40*(valueE(B2,'Utility Functions'!$B$3,'Utility Functions'!$B$4,'Utility Functions'!$B$5,'Utility Functions'!$B$6))","v":2.5041071294184137E-2},{"$f":"$C$40*(valueE(C2,'Utility Functions'!$D$3,'Utility Functions'!$D$4,'Utility Functions'!$D$5,'Utility Functions'!$D$6))","v":1.3942790146123618E-2},{"$f":"$D$40*(valuePL(D2,'Utility Functions'!$E$3:$E$5,'Utility Functions'!$F$3:$F$5))","v":0.03},{"$f":"$E$40*(valuePL(E2,'Utility Functions'!$G$3:$G$5,'Utility Functions'!$H$3:$H$5))","v":0.03},{"$f":"$F$40*(valuePL(F2,'Utility Functions'!$I$3:$I$4,'Utility Functions'!$J$3:$J$5))","v":0},{"$f":"$G$40*(valueE(G2,'Utility Functions'!$L$3,'Utility Functions'!$L$4,'Utility Functions'!$L$5,'Utility Functions'!$L$6))","v":1.4999999999999999E-2},{"$f":"$H$40*(valueE(H2,'Utility Functions'!$N$3,'Utility Functions'!$N$4,'Utility Functions'!$N$5,'Utility Functions'!$N$6))","v":1.4999999999999999E-2},{"$f":"$I$40*valuePL(I2,'Utility Functions'!$O$3:$O$6,'Utility Functions'!$P$3:$P$6)","v":2.7545454545454547E-2},{"$f":"$J$40*valuePL(J2,'Utility Functions'!$Q$3:$Q$6,'Utility Functions'!$R$3:$R$6)","v":2E-3},{"$f":"$K$40*(valuePL(K2,'Utility Functions'!$S$3:$S$7,'Utility Functions'!$T$3:$T$7))","v":0},{"$f":"$L$40*(valueE(L2,'Utility Functions'!$V$3,'Utility Functions'!$V$4,'Utility Functions'!$V$5,'Utility Functions'!$V$6))","v":0},{"$f":"$M$40*valuePL(M2,'Utility Functions'!$W$3:$W$6,'Utility Functions'!$X$3:$X$6)","v":0},{"$f":"$N$40*valueE(N2,'Utility Functions'!$Z$3,'Utility Functions'!$Z$4,'Utility Functions'!$Z$5,'Utility Functions'!$Z$6)","v":0},{"$f":"$O$40*valuePL(O2,'Utility Functions'!$AA$3:$AA$5,'Utility Functions'!$AB$3:$AB$5)","v":0},{"$f":"$P$40*valuePL(P2,'Utility Functions'!$AC$3:$AC$7,'Utility Functions'!$AD$3:$AD$7)","v":0.04},{"$f":"$Q$40*valuePL(Q2,'Utility Functions'!$AE$3:$AE$6,'Utility Functions'!$AF$3:$AF$6)","v":0},{"$f":"$R$40*valuePL(R2,'Utility Functions'!$AG$3:$AG$6,'Utility Functions'!$AH$3:$AH$6)","v":4.0000000000000008E-2},{"$f":"$S$40*valuePL(S2,'Utility Functions'!$AI$3:$AI$6,'Utility Functions'!$AJ$3:$AJ$6)","v":0.05},{"$f":"$T$40*valuePL(T2,'Utility Functions'!$AK$3:$AK$8,'Utility Functions'!$AL$3:$AL$8)","v":0},{"$f":"$U$40*valuePL(U2,'Utility Functions'!$AM$3:$AM$5,'Utility Functions'!$AN$3:$AN$5)","v":0},{"$f":"$V$40*valuePL(V2,'Utility Functions'!$AO$3:$AO$5,'Utility Functions'!$AP$3:$AP$5)","v":0.05},{"$f":"$W$40*valuePL(W2,'Utility Functions'!$AQ$3:$AQ$6,'Utility Functions'!$AR$3:$AR$6)","v":0.04},{"$f":"$X$40*valuePL(X2,'Utility Functions'!$AS$3:$AS$6,'Utility Functions'!$AT$3:$AT$6)","v":0.04},{"$f":"$Y$40*valuePL(Y2,'Utility Functions'!$AU$3:$AU$6,'Utility Functions'!$AV$3:$AV$6)","v":0.05},{"$f":"$Z$40*valuePL(Z2,'Utility Functions'!$AW$3:$AW$5,'Utility Functions'!$AX$3:$AX$5)","v":0.05},{"$f":"$AA$40*valuePL(AA2,'Utility Functions'!$AY$3:$AY$6,'Utility Functions'!$AZ$3:$AZ$6)","v":0.04},{"$f":"$AB$40*valuePL(AB2,'Utility Functions'!$BA$3:$BA$5,'Utility Functions'!$BB$3:$BB$5)","v":0.04},{"$f":"$AC$40*valuePL(AC2,'Utility Functions'!$BC$3:$BC$5,'Utility Functions'!$BD$3:$BD$5)","v":0.03},{"$f":"SUM(B43:AC43)","v":0.62852931598576234},0.62679466938600437]
[{"$f":"A3","v":2},{"$f":"$B$40*(valueE(B3,'Utility Functions'!$B$3,'Utility Functions'!$B$4,'Utility Functions'!$B$5,'Utility Functions'!$B$6))","v":1.3535671425672068E-2},{"$f":"$C$40*(valueE(C3,'Utility Functions'!$D$3,'Utility Functions'!$D$4,'Utility Functions'!$D$5,'Utility Functions'!$D$6))","v":2.8213102591607857E-2},{"$f":"$D$40*(valuePL(D3,'Utility Functions'!$E$3:$E$5,'Utility Functions'!$F$3:$F$5))","v":1.4999999999999999E-2},{"$f":"$E$40*(valuePL(E3,'Utility Functions'!$G$3:$G$5,'Utility Functions'!$H$3:$H$5))","v":0},{"$f":"$F$40*(valuePL(F3,'Utility Functions'!$I$3:$I$4,'Utility Functions'!$J$3:$J$5))","v":0},{"$f":"$G$40*(valueE(G3,'Utility Functions'!$L$3,'Utility Functions'!$L$4,'Utility Functions'!$L$5,'Utility Functions'!$L$6))","v":0},{"$f":"$H$40*(valueE(H3,'Utility Functions'!$N$3,'Utility Functions'!$N$4,'Utility Functions'!$N$5,'Utility Functions'!$N$6))","v":0},{"$f":"$I$40*valuePL(I3,'Utility Functions'!$O$3:$O$6,'Utility Functions'!$P$3:$P$6)","v":0},{"$f":"$J$40*valuePL(J3,'Utility Functions'!$Q$3:$Q$6,'Utility Functions'!$R$3:$R$6)","v":0},{"$f":"$K$40*(valuePL(K3,'Utility Functions'!$S$3:$S$7,'Utility Functions'!$T$3:$T$7))","v":0},{"$f":"$L$40*(valueE(L3,'Utility Functions'!$V$3,'Utility Functions'!$V$4,'Utility Functions'!$V$5,'Utility Functions'!$V$6))","v":0},{"$f":"$M$40*valuePL(M3,'Utility Functions'!$W$3:$W$6,'Utility Functions'!$X$3:$X$6)","v":0},{"$f":"$N$40*valueE(N3,'Utility Functions'!$Z$3,'Utility Functions'!$Z$4,'Utility Functions'!$Z$5,'Utility Functions'!$Z$6)","v":1.4999999999999999E-2},{"$f":"$O$40*valuePL(O3,'Utility Functions'!$AA$3:$AA$5,'Utility Functions'!$AB$3:$AB$5)","v":2.2499999999999999E-2},{"$f":"$P$40*valuePL(P3,'Utility Functions'!$AC$3:$AC$7,'Utility Functions'!$AD$3:$AD$7)","v":0},{"$f":"$Q$40*valuePL(Q3,'Utility Functions'!$AE$3:$AE$6,'Utility Functions'!$AF$3:$AF$6)","v":0},{"$f":"$R$40*valuePL(R3,'Utility Functions'!$AG$3:$AG$6,'Utility Functions'!$AH$3:$AH$6)","v":0.05},{"$f":"$S$40*valuePL(S3,'Utility Functions'!$AI$3:$AI$6,'Utility Functions'!$AJ$3:$AJ$6)","v":0.05},{"$f":"$T$40*valuePL(T3,'Utility Functions'!$AK$3:$AK$8,'Utility Functions'!$AL$3:$AL$8)","v":0},{"$f":"$U$40*valuePL(U3,'Utility Functions'!$AM$3:$AM$5,'Utility Functions'!$AN$3:$AN$5)","v":0},{"$f":"$V$40*valuePL(V3,'Utility Functions'!$AO$3:$AO$5,'Utility Functions'!$AP$3:$AP$5)","v":0.05},{"$f":"$W$40*valuePL(W3,'Utility Functions'!$AQ$3:$AQ$6,'Utility Functions'!$AR$3:$AR$6)","v":0.04},{"$f":"$X$40*valuePL(X3,'Utility Functions'!$AS$3:$AS$6,'Utility Functions'!$AT$3:$AT$6)","v":0.04},{"$f":"$Y$40*valuePL(Y3,'Utility Functions'!$AU$3:$AU$6,'Utility Functions'!$AV$3:$AV$6)","v":0.05},{"$f":"$Z$40*valuePL(Z3,'Utility Functions'!$AW$3:$AW$5,'Utility Functions'!$AX$3:$AX$5)","v":0.05},{"$f":"$AA$40*valuePL(AA3,'Utility Functions'!$AY$3:$AY$6,'Utility Functions'!$AZ$3:$AZ$6)","v":0.04},{"$f":"$AB$40*valuePL(AB3,'Utility Functions'!$BA$3:$BA$5,'Utility Functions'!$BB$3:$BB$5)","v":0.04},{"$f":"$AC$40*valuePL(AC3,'Utility Functions'!$BC$3:$BC$5,'Utility Functions'!$BD$3:$BD$5)","v":0.03},{"$f":"SUM(B44:AC44)","v":0.53424877401727988},0.5325173496849499]
[3,{"$f":"$B$40*(valueE(B4,'Utility Functions'!$B$3,'Utility Functions'!$B$4,'Utility Functions'!$B$5,'Utility Functions'!$B$6))","v":2.3943140737469053E-2},{"$f":"$C$40*(valueE(C4,'Utility Functions'!$D$3,'Utility Functions'!$D$4,'Utility Functions'!$D$5,'Utility Functions'!$D$6))","v":2.8213102591607857E-2},{"$f":"$D$40*(valuePL(D4,'Utility Functions'!$E$3:$E$5,'Utility Functions'!$F$3:$F$5))","v":0.03},{"$f":"$E$40*(valuePL(E4,'Utility Functions'!$G$3:$G$5,'Utility Functions'!$H$3:$H$5))","v":0},{"$f":"$F$40*(valuePL(F4,'Utility Functions'!$I$3:$I$4,'Utility Functions'!$J$3:$J$5))","v":0},{"$f":"$G$40*(valueE(G4,'Utility Functions'!$L$3,'Utility Functions'!$L$4,'Utility Functions'!$L$5,'Utility Functions'!$L$6))","v":0},{"$f":"$H$40*(valueE(H4,'Utility Functions'!$N$3,'Utility Functions'!$N$4,'Utility Functions'!$N$5,'Utility Functions'!$N$6))","v":0},{"$f":"$I$40*valuePL(I4,'Utility Functions'!$O$3:$O$6,'Utility Functions'!$P$3:$P$6)","v":0},{"$f":"$J$40*valuePL(J4,'Utility Functions'!$Q$3:$Q$6,'Utility Functions'!$R$3:$R$6)","v":0},{"$f":"$K$40*(valuePL(K4,'Utility Functions'!$S$3:$S$7,'Utility Functions'!$T$3:$T$7))","v":0},{"$f":"$L$40*(valueE(L4,'Utility Functions'!$V$3,'Utility Functions'!$V$4,'Utility Functions'!$V$5,'Utility Functions'!$V$6))","v":0},{"$f":"$M$40*valuePL(M4,'Utility Functions'!$W$3:$W$6,'Utility Functions'!$X$3:$X$6)","v":0},{"$f":"$N$40*valueE(N4,'Utility Functions'!$Z$3,'Utility Functions'!$Z$4,'Utility Functions'!$Z$5,'Utility Functions'!$Z$6)","v":1.8749999999999999E-2},{"$f":"$O$40*valuePL(O4,'Utility Functions'!$AA$3:$AA$5,'Utility Functions'!$AB$3:$AB$5)","v":2.2499999999999999E-2},{"$f":"$P$40*valuePL(P4,'Utility Functions'!$AC$3:$AC$7,'Utility Functions'!$AD$3:$AD$7)","v":0},{"$f":"$Q$40*valuePL(Q4,'Utility Functions'!$AE$3:$AE$6,'Utility Functions'!$AF$3:$AF$6)","v":0.02},{"$f":"$R$40*valuePL(R4,'Utility Functions'!$AG$3:$AG$6,'Utility Functions'!$AH$3:$AH$6)","v":0},{"$f":"$S$40*valuePL(S4,'Utility Functions'!$AI$3:$AI$6,'Utility Functions'!$AJ$3:$AJ$6)","v":0},{"$f":"$T$40*valuePL(T4,'Utility Functions'!$AK$3:$AK$8,'Utility Functions'!$AL$3:$AL$8)","v":0},{"$f":"$U$40*valuePL(U4,'Utility Functions'!$AM$3:$AM$5,'Utility Functions'!$AN$3:$AN$5)","v":7.4999999999999997E-3},{"$f":"$V$40*valuePL(V4,'Utility Functions'!$AO$3:$AO$5,'Utility Functions'!$AP$3:$AP$5)","v":0.05},{"$f":"$W$40*valuePL(W4,'Utility Functions'!$AQ$3:$AQ$6,'Utility Functions'!$AR$3:$AR$6)","v":0.04},{"$f":"$X$40*valuePL(X4,'Utility Functions'!$AS$3:$AS$6,'Utility Functions'!$AT$3:$AT$6)","v":0.04},{"$f":"$Y$40*valuePL(Y4,'Utility Functions'!$AU$3:$AU$6,'Utility Functions'!$AV$3:$AV$6)","v":0.05},{"$f":"$Z$40*valuePL(Z4,'Utility Functions'!$AW$3:$AW$5,'Utility Functions'!$AX$3:$AX$5)","v":0.05},{"$f":"$AA$40*valuePL(AA4,'Utility Functions'!$AY$3:$AY$6,'Utility Functions'!$AZ$3:$AZ$6)","v":8.0000000000000002E-3},{"$f":"$AB$40*valuePL(AB4,'Utility Functions'!$BA$3:$BA$5,'Utility Functions'!$BB$3:$BB$5)","v":0.04},{"$f":"$AC$40*valuePL(AC4,'Utility Functions'!$BC$3:$BC$5,'Utility Functions'!$BD$3:$BD$5)","v":0.03},0.45890624332907692,0.45705550078349133]
[4,{"$f":"$B$40*(valueE(B5,'Utility Functions'!$B$3,'Utility Functions'!$B$4,'Utility Functions'!$B$5,'Utility Functions'!$B$6))","v":5.4380856471439951E-3},{"$f":"$C$40*(valueE(C5,'Utility Functions'!$D$3,'Utility Functions'!$D$4,'Utility Functions'!$D$5,'Utility Functions'!$D$6))","v":1.3942790146123618E-2},{"$f":"$D$40*(valuePL(D5,'Utility Functions'!$E$3:$E$5,'Utility Functions'!$F$3:$F$5))","v":0.03},{"$f":"$E$40*(valuePL(E5,'Utility Functions'!$G$3:$G$5,'Utility Functions'!$H$3:$H$5))","v":0},{"$f":"$F$40*(valuePL(F5,'Utility Functions'!$I$3:$I$4,'Utility Functions'!$J$3:$J$5))","v":0},{"$f":"$G$40*(valueE(G5,'Utility Functions'!$L$3,'Utility Functions'!$L$4,'Utility Functions'!$L$5,'Utility Functions'!$L$6))","v":0},{"$f":"$H$40*(valueE(H5,'Utility Functions'!$N$3,'Utility Functions'!$N$4,'Utility Functions'!$N$5,'Utility Functions'!$N$6))","v":0},{"$f":"$I$40*valuePL(I5,'Utility Functions'!$O$3:$O$6,'Utility Functions'!$P$3:$P$6)","v":0},{"$f":"$J$40*valuePL(J5,'Utility Functions'!$Q$3:$Q$6,'Utility Functions'!$R$3:$R$6)","v":0},{"$f":"$K$40*(valuePL(K5,'Utility Functions'!$S$3:$S$7,'Utility Functions'!$T$3:$T$7))","v":0},{"$f":"$L$40*(valueE(L5,'Utility Functions'!$V$3,'Utility Functions'!$V$4,'Utility Functions'!$V$5,'Utility Functions'!$V$6))","v":0},{"$f":"$M$40*valuePL(M5,'Utility Functions'!$W$3:$W$6,'Utility Functions'!$X$3:$X$6)","v":0},{"$f":"$N$40*valueE(N5,'Utility Functions'!$Z$3,'Utility Functions'!$Z$4,'Utility Functions'!$Z$5,'Utility Functions'!$Z$6)","v":1.4999999999999999E-2},{"$f":"$O$40*valuePL(O5,'Utility Functions'!$AA$3:$AA$5,'Utility Functions'!$AB$3:$AB$5)","v":2.2499999999999999E-2},{"$f":"$P$40*valuePL(P5,'Utility Functions'!$AC$3:$AC$7,'Utility Functions'!$AD$3:$AD$7)","v":0},{"$f":"$Q$40*valuePL(Q5,'Utility Functions'!$AE$3:$AE$6,'Utility Functions'!$AF$3:$AF$6)","v":4.0000000000000001E-3},{"$f":"$R$40*valuePL(R5,'Utility Functions'!$AG$3:$AG$6,'Utility Functions'!$AH$3:$AH$6)","v":0.05},{"$f":"$S$40*valuePL(S5,'Utility Functions'!$AI$3:$AI$6,'Utility Functions'!$AJ$3:$AJ$6)","v":0.05},{"$f":"$T$40*valuePL(T5,'Utility Functions'!$AK$3:$AK$8,'Utility Functions'!$AL$3:$AL$8)","v":2.4E-2},{"$f":"$U$40*valuePL(U5,'Utility Functions'!$AM$3:$AM$5,'Utility Functions'!$AN$3:$AN$5)","v":0},{"$f":"$V$40*valuePL(V5,'Utility Functions'!$AO$3:$AO$5,'Utility Functions'!$AP$3:$AP$5)","v":2.5000000000000001E-2},{"$f":"$W$40*valuePL(W5,'Utility Functions'!$AQ$3:$AQ$6,'Utility Functions'!$AR$3:$AR$6)","v":0.04},{"$f":"$X$40*valuePL(X5,'Utility Functions'!$AS$3:$AS$6,'Utility Functions'!$AT$3:$AT$6)","v":0.04},{"$f":"$Y$40*valuePL(Y5,'Utility Functions'!$AU$3:$AU$6,'Utility Functions'!$AV$3:$AV$6)","v":1.0000000000000002E-2},{"$f":"$Z$40*valuePL(Z5,'Utility Functions'!$AW$3:$AW$5,'Utility Functions'!$AX$3:$AX$5)","v":0},{"$f":"$AA$40*valuePL(AA5,'Utility Functions'!$AY$3:$AY$6,'Utility Functions'!$AZ$3:$AZ$6)","v":0},{"$f":"$AB$40*valuePL(AB5,'Utility Functions'!$BA$3:$BA$5,'Utility Functions'!$BB$3:$BB$5)","v":0.04},{"$f":"$AC$40*valuePL(AC5,'Utility Functions'!$BC$3:$BC$5,'Utility Functions'!$BD$3:$BD$5)","v":7.4999999999999997E-3},0.37738087579326757,0.37654840351211377]
[5,{"$f":"$B$40*(valueE(B6,'Utility Functions'!$B$3,'Utility Functions'!$B$4,'Utility Functions'!$B$5,'Utility Functions'!$B$6))","v":1.6520156106900608E-2},{"$f":"$C$40*(valueE(C6,'Utility Functions'!$D$3,'Utility Functions'!$D$4,'Utility Functions'!$D$5,'Utility Functions'!$D$6))","v":7.9969543744382362E-3},{"$f":"$D$40*(valuePL(D6,'Utility Functions'!$E$3:$E$5,'Utility Functions'!$F$3:$F$5))","v":0.03},{"$f":"$E$40*(valuePL(E6,'Utility Functions'!$G$3:$G$5,'Utility Functions'!$H$3:$H$5))","v":0},{"$f":"$F$40*(valuePL(F6,'Utility Functions'!$I$3:$I$4,'Utility Functions'!$J$3:$J$5))","v":0},{"$f":"$G$40*(valueE(G6,'Utility Functions'!$L$3,'Utility Functions'!$L$4,'Utility Functions'!$L$5,'Utility Functions'!$L$6))","v":0},{"$f":"$H$40*(valueE(H6,'Utility Functions'!$N$3,'Utility Functions'!$N$4,'Utility Functions'!$N$5,'Utility Functions'!$N$6))","v":0},{"$f":"$I$40*valuePL(I6,'Utility Functions'!$O$3:$O$6,'Utility Functions'!$P$3:$P$6)","v":1.5272727272727275E-2},{"$f":"$J$40*valuePL(J6,'Utility Functions'!$Q$3:$Q$6,'Utility Functions'!$R$3:$R$6)","v":8.0000000000000004E-4},{"$f":"$K$40*(valuePL(K6,'Utility Functions'!$S$3:$S$7,'Utility Functions'!$T$3:$T$7))","v":0},{"$f":"$L$40*(valueE(L6,'Utility Functions'!$V$3,'Utility Functions'!$V$4,'Utility Functions'!$V$5,'Utility Functions'!$V$6))","v":0},{"$f":"$M$40*valuePL(M6,'Utility Functions'!$W$3:$W$6,'Utility Functions'!$X$3:$X$6)","v":0},{"$f":"$N$40*valueE(N6,'Utility Functions'!$Z$3,'Utility Functions'!$Z$4,'Utility Functions'!$Z$5,'Utility Functions'!$Z$6)","v":0},{"$f":"$O$40*valuePL(O6,'Utility Functions'!$AA$3:$AA$5,'Utility Functions'!$AB$3:$AB$5)","v":0},{"$f":"$P$40*valuePL(P6,'Utility Functions'!$AC$3:$AC$7,'Utility Functions'!$AD$3:$AD$7)","v":0},{"$f":"$Q$40*valuePL(Q6,'Utility Functions'!$AE$3:$AE$6,'Utility Functions'!$AF$3:$AF$6)","v":4.0000000000000001E-3},{"$f":"$R$40*valuePL(R6,'Utility Functions'!$AG$3:$AG$6,'Utility Functions'!$AH$3:$AH$6)","v":0.05},{"$f":"$S$40*valuePL(S6,'Utility Functions'!$AI$3:$AI$6,'Utility Functions'!$AJ$3:$AJ$6)","v":0.05},{"$f":"$T$40*valuePL(T6,'Utility Functions'!$AK$3:$AK$8,'Utility Functions'!$AL$3:$AL$8)","v":2.4E-2},{"$f":"$U$40*valuePL(U6,'Utility Functions'!$AM$3:$AM$5,'Utility Functions'!$AN$3:$AN$5)","v":7.4999999999999997E-3},{"$f":"$V$40*valuePL(V6,'Utility Functions'!$AO$3:$AO$5,'Utility Functions'!$AP$3:$AP$5)","v":0},{"$f":"$W$40*valuePL(W6,'Utility Functions'!$AQ$3:$AQ$6,'Utility Functions'!$AR$3:$AR$6)","v":0.04},{"$f":"$X$40*valuePL(X6,'Utility Functions'!$AS$3:$AS$6,'Utility Functions'!$AT$3:$AT$6)","v":0.04},{"$f":"$Y$40*valuePL(Y6,'Utility Functions'!$AU$3:$AU$6,'Utility Functions'!$AV$3:$AV$6)","v":4.0000000000000008E-2},{"$f":"$Z$40*valuePL(Z6,'Utility Functions'!$AW$3:$AW$5,'Utility Functions'!$AX$3:$AX$5)","v":0},{"$f":"$AA$40*valuePL(AA6,'Utility Functions'!$AY$3:$AY$6,'Utility Functions'!$AZ$3:$AZ$6)","v":0},{"$f":"$AB$40*valuePL(AB6,'Utility Functions'!$BA$3:$BA$5,'Utility Functions'!$BB$3:$BB$5)","v":0.04},{"$f":"$AC$40*valuePL(AC6,'Utility Functions'!$BC$3:$BC$5,'Utility Functions'!$BD$3:$BD$5)","v":7.4999999999999997E-3},0.37358983775406607,0.37166737445376297]
[6,{"$f":"$B$40*(valueE(B7,'Utility Functions'!$B$3,'Utility Functions'!$B$4,'Utility Functions'!$B$5,'Utility Functions'!$B$6))","v":2.5939980805710805E-2},{"$f":"$C$40*(valueE(C7,'Utility Functions'!$D$3,'Utility Functions'!$D$4,'Utility Functions'!$D$5,'Utility Functions'!$D$6))","v":1.8543300844080441E-4},{"$f":"$D$40*(valuePL(D7,'Utility Functions'!$E$3:$E$5,'Utility Functions'!$F$3:$F$5))","v":0.03},{"$f":"$E$40*(valuePL(E7,'Utility Functions'!$G$3:$G$5,'Utility Functions'!$H$3:$H$5))","v":0},{"$f":"$F$40*(valuePL(F7,'Utility Functions'!$I$3:$I$4,'Utility Functions'!$J$3:$J$5))","v":0},{"$f":"$G$40*(valueE(G7,'Utility Functions'!$L$3,'Utility Functions'!$L$4,'Utility Functions'!$L$5,'Utility Functions'!$L$6))","v":0},{"$f":"$H$40*(valueE(H7,'Utility Functions'!$N$3,'Utility Functions'!$N$4,'Utility Functions'!$N$5,'Utility Functions'!$N$6))","v":0},{"$f":"$I$40*valuePL(I7,'Utility Functions'!$O$3:$O$6,'Utility Functions'!$P$3:$P$6)","v":1.1999999999999999E-3},{"$f":"$J$40*valuePL(J7,'Utility Functions'!$Q$3:$Q$6,'Utility Functions'!$R$3:$R$6)","v":8.0000000000000004E-4},{"$f":"$K$40*(valuePL(K7,'Utility Functions'!$S$3:$S$7,'Utility Functions'!$T$3:$T$7))","v":0},{"$f":"$L$40*(valueE(L7,'Utility Functions'!$V$3,'Utility Functions'!$V$4,'Utility Functions'!$V$5,'Utility Functions'!$V$6))","v":0},{"$f":"$M$40*valuePL(M7,'Utility Functions'!$W$3:$W$6,'Utility Functions'!$X$3:$X$6)","v":0},{"$f":"$N$40*valueE(N7,'Utility Functions'!$Z$3,'Utility Functions'!$Z$4,'Utility Functions'!$Z$5,'Utility Functions'!$Z$6)","v":0},{"$f":"$O$40*valuePL(O7,'Utility Functions'!$AA$3:$AA$5,'Utility Functions'!$AB$3:$AB$5)","v":0},{"$f":"$P$40*valuePL(P7,'Utility Functions'!$AC$3:$AC$7,'Utility Functions'!$AD$3:$AD$7)","v":0},{"$f":"$Q$40*valuePL(Q7,'Utility Functions'!$AE$3:$AE$6,'Utility Functions'!$AF$3:$AF$6)","v":4.0000000000000001E-3},{"$f":"$R$40*valuePL(R7,'Utility Functions'!$AG$3:$AG$6,'Utility Functions'!$AH$3:$AH$6)","v":0},{"$f":"$S$40*valuePL(S7,'Utility Functions'!$AI$3:$AI$6,'Utility Functions'!$AJ$3:$AJ$6)","v":0.05},{"$f":"$T$40*valuePL(T7,'Utility Functions'!$AK$3:$AK$8,'Utility Functions'!$AL$3:$AL$8)","v":1.7999999999999999E-2},{"$f":"$U$40*valuePL(U7,'Utility Functions'!$AM$3:$AM$5,'Utility Functions'!$AN$3:$AN$5)","v":0},{"$f":"$V$40*valuePL(V7,'Utility Functions'!$AO$3:$AO$5,'Utility Functions'!$AP$3:$AP$5)","v":0},{"$f":"$W$40*valuePL(W7,'Utility Functions'!$AQ$3:$AQ$6,'Utility Functions'!$AR$3:$AR$6)","v":0},{"$f":"$X$40*valuePL(X7,'Utility Functions'!$AS$3:$AS$6,'Utility Functions'!$AT$3:$AT$6)","v":0.04},{"$f":"$Y$40*valuePL(Y7,'Utility Functions'!$AU$3:$AU$6,'Utility Functions'!$AV$3:$AV$6)","v":0},{"$f":"$Z$40*valuePL(Z7,'Utility Functions'!$AW$3:$AW$5,'Utility Functions'!$AX$3:$AX$5)","v":0},{"$f":"$AA$40*valuePL(AA7,'Utility Functions'!$AY$3:$AY$6,'Utility Functions'!$AZ$3:$AZ$6)","v":0},{"$f":"$AB$40*valuePL(AB7,'Utility Functions'!$BA$3:$BA$5,'Utility Functions'!$BB$3:$BB$5)","v":0.04},{"$f":"$AC$40*valuePL(AC7,'Utility Functions'!$BC$3:$BC$5,'Utility Functions'!$BD$3:$BD$5)","v":7.4999999999999997E-3},0.21762541381415162,0.21601950895080207]
[7,{"$f":"$B$40*(valueE(B8,'Utility Functions'!$B$3,'Utility Functions'!$B$4,'Utility Functions'!$B$5,'Utility Functions'!$B$6))","v":2.9999132478518691E-2},{"$f":"$C$40*(valueE(C8,'Utility Functions'!$D$3,'Utility Functions'!$D$4,'Utility Functions'!$D$5,'Utility Functions'!$D$6))","v":2.542345105018548E-2},{"$f":"$D$40*(valuePL(D8,'Utility Functions'!$E$3:$E$5,'Utility Functions'!$F$3:$F$5))","v":0},{"$f":"$E$40*(valuePL(E8,'Utility Functions'!$G$3:$G$5,'Utility Functions'!$H$3:$H$5))","v":0.03},{"$f":"$F$40*(valuePL(F8,'Utility Functions'!$I$3:$I$4,'Utility Functions'!$J$3:$J$5))","v":0},{"$f":"$G$40*(valueE(G8,'Utility Functions'!$L$3,'Utility Functions'!$L$4,'Utility Functions'!$L$5,'Utility Functions'!$L$6))","v":0},{"$f":"$H$40*(valueE(H8,'Utility Functions'!$N$3,'Utility Functions'!$N$4,'Utility Functions'!$N$5,'Utility Functions'!$N$6))","v":0},{"$f":"$I$40*valuePL(I8,'Utility Functions'!$O$3:$O$6,'Utility Functions'!$P$3:$P$6)","v":0.03},{"$f":"$J$40*valuePL(J8,'Utility Functions'!$Q$3:$Q$6,'Utility Functions'!$R$3:$R$6)","v":1.3454545454545455E-2},{"$f":"$K$40*(valuePL(K8,'Utility Functions'!$S$3:$S$7,'Utility Functions'!$T$3:$T$7))","v":0.02},{"$f":"$L$40*(valueE(L8,'Utility Functions'!$V$3,'Utility Functions'!$V$4,'Utility Functions'!$V$5,'Utility Functions'!$V$6))","v":0.02},{"$f":"$M$40*valuePL(M8,'Utility Functions'!$W$3:$W$6,'Utility Functions'!$X$3:$X$6)","v":1.3454545454545455E-2},{"$f":"$N$40*valueE(N8,'Utility Functions'!$Z$3,'Utility Functions'!$Z$4,'Utility Functions'!$Z$5,'Utility Functions'!$Z$6)","v":0.03},{"$f":"$O$40*valuePL(O8,'Utility Functions'!$AA$3:$AA$5,'Utility Functions'!$AB$3:$AB$5)","v":2.2499999999999999E-2},{"$f":"$P$40*valuePL(P8,'Utility Functions'!$AC$3:$AC$7,'Utility Functions'!$AD$3:$AD$7)","v":0},{"$f":"$Q$40*valuePL(Q8,'Utility Functions'!$AE$3:$AE$6,'Utility Functions'!$AF$3:$AF$6)","v":0},{"$f":"$R$40*valuePL(R8,'Utility Functions'!$AG$3:$AG$6,'Utility Functions'!$AH$3:$AH$6)","v":0.05},{"$f":"$S$40*valuePL(S8,'Utility Functions'!$AI$3:$AI$6,'Utility Functions'!$AJ$3:$AJ$6)","v":0.05},{"$f":"$T$40*valuePL(T8,'Utility Functions'!$AK$3:$AK$8,'Utility Functions'!$AL$3:$AL$8)","v":0},{"$f":"$U$40*valuePL(U8,'Utility Functions'!$AM$3:$AM$5,'Utility Functions'!$AN$3:$AN$5)","v":0},{"$f":"$V$40*valuePL(V8,'Utility Functions'!$AO$3:$AO$5,'Utility Functions'!$AP$3:$AP$5)","v":0.05},{"$f":"$W$40*valuePL(W8,'Utility Functions'!$AQ$3:$AQ$6,'Utility Functions'!$AR$3:$AR$6)","v":0},{"$f":"$X$40*valuePL(X8,'Utility Functions'!$AS$3:$AS$6,'Utility Functions'!$AT$3:$AT$6)","v":8.0000000000000002E-3},{"$f":"$Y$40*valuePL(Y8,'Utility Functions'!$AU$3:$AU$6,'Utility Functions'!$AV$3:$AV$6)","v":0.05},{"$f":"$Z$40*valuePL(Z8,'Utility Functions'!$AW$3:$AW$5,'Utility Functions'!$AX$3:$AX$5)","v":0.05},{"$f":"$AA$40*valuePL(AA8,'Utility Functions'!$AY$3:$AY$6,'Utility Functions'!$AZ$3:$AZ$6)","v":3.5999999999999997E-2},{"$f":"$AB$40*valuePL(AB8,'Utility Functions'!$BA$3:$BA$5,'Utility Functions'!$BB$3:$BB$5)","v":0},{"$f":"$AC$40*valuePL(AC8,'Utility Functions'!$BC$3:$BC$5,'Utility Functions'!$BD$3:$BD$5)","v":0.03},0.55883167443779502,0.55882779905507862]
[8,{"$f":"$B$40*(valueE(B9,'Utility Functions'!$B$3,'Utility Functions'!$B$4,'Utility Functions'!$B$5,'Utility Functions'!$B$6))","v":1.3535671425672068E-2},{"$f":"$C$40*(valueE(C9,'Utility Functions'!$D$3,'Utility Functions'!$D$4,'Utility Functions'!$D$5,'Utility Functions'!$D$6))","v":2.542345105018548E-2},{"$f":"$D$40*(valuePL(D9,'Utility Functions'!$E$3:$E$5,'Utility Functions'!$F$3:$F$5))","v":0.03},{"$f":"$E$40*(valuePL(E9,'Utility Functions'!$G$3:$G$5,'Utility Functions'!$H$3:$H$5))","v":1.4999999999999999E-2},{"$f":"$F$40*(valuePL(F9,'Utility Functions'!$I$3:$I$4,'Utility Functions'!$J$3:$J$5))","v":0.04},{"$f":"$G$40*(valueE(G9,'Utility Functions'!$L$3,'Utility Functions'!$L$4,'Utility Functions'!$L$5,'Utility Functions'!$L$6))","v":0},{"$f":"$H$40*(valueE(H9,'Utility Functions'!$N$3,'Utility Functions'!$N$4,'Utility Functions'!$N$5,'Utility Functions'!$N$6))","v":0},{"$f":"$I$40*valuePL(I9,'Utility Functions'!$O$3:$O$6,'Utility Functions'!$P$3:$P$6)","v":1.6800000000000003E-3},{"$f":"$J$40*valuePL(J9,'Utility Functions'!$Q$3:$Q$6,'Utility Functions'!$R$3:$R$6)","v":1.6727272727272726E-2},{"$f":"$K$40*(valuePL(K9,'Utility Functions'!$S$3:$S$7,'Utility Functions'!$T$3:$T$7))","v":0},{"$f":"$L$40*(valueE(L9,'Utility Functions'!$V$3,'Utility Functions'!$V$4,'Utility Functions'!$V$5,'Utility Functions'!$V$6))","v":0.02},{"$f":"$M$40*valuePL(M9,'Utility Functions'!$W$3:$W$6,'Utility Functions'!$X$3:$X$6)","v":1.6727272727272726E-2},{"$f":"$N$40*valueE(N9,'Utility Functions'!$Z$3,'Utility Functions'!$Z$4,'Utility Functions'!$Z$5,'Utility Functions'!$Z$6)","v":0},{"$f":"$O$40*valuePL(O9,'Utility Functions'!$AA$3:$AA$5,'Utility Functions'!$AB$3:$AB$5)","v":0},{"$f":"$P$40*valuePL(P9,'Utility Functions'!$AC$3:$AC$7,'Utility Functions'!$AD$3:$AD$7)","v":0},{"$f":"$Q$40*valuePL(Q9,'Utility Functions'!$AE$3:$AE$6,'Utility Functions'!$AF$3:$AF$6)","v":0.04},{"$f":"$R$40*valuePL(R9,'Utility Functions'!$AG$3:$AG$6,'Utility Functions'!$AH$3:$AH$6)","v":1.0000000000000002E-2},{"$f":"$S$40*valuePL(S9,'Utility Functions'!$AI$3:$AI$6,'Utility Functions'!$AJ$3:$AJ$6)","v":0.05},{"$f":"$T$40*valuePL(T9,'Utility Functions'!$AK$3:$AK$8,'Utility Functions'!$AL$3:$AL$8)","v":0},{"$f":"$U$40*valuePL(U9,'Utility Functions'!$AM$3:$AM$5,'Utility Functions'!$AN$3:$AN$5)","v":0},{"$f":"$V$40*valuePL(V9,'Utility Functions'!$AO$3:$AO$5,'Utility Functions'!$AP$3:$AP$5)","v":0.05},{"$f":"$W$40*valuePL(W9,'Utility Functions'!$AQ$3:$AQ$6,'Utility Functions'!$AR$3:$AR$6)","v":0.04},{"$f":"$X$40*valuePL(X9,'Utility Functions'!$AS$3:$AS$6,'Utility Functions'!$AT$3:$AT$6)","v":0.04},{"$f":"$Y$40*valuePL(Y9,'Utility Functions'!$AU$3:$AU$6,'Utility Functions'!$AV$3:$AV$6)","v":0.05},{"$f":"$Z$40*valuePL(Z9,'Utility Functions'!$AW$3:$AW$5,'Utility Functions'!$AX$3:$AX$5)","v":0.05},{"$f":"$AA$40*valuePL(AA9,'Utility Functions'!$AY$3:$AY$6,'Utility Functions'!$AZ$3:$AZ$6)","v":0},{"$f":"$AB$40*valuePL(AB9,'Utility Functions'!$BA$3:$BA$5,'Utility Functions'!$BB$3:$BB$5)","v":0.01},{"$f":"$AC$40*valuePL(AC9,'Utility Functions'!$BC$3:$BC$5,'Utility Functions'!$BD$3:$BD$5)","v":7.4999999999999997E-3},0.52659366793040296,0.52486224359807299]
[9,{"$f":"$B$40*(valueE(B10,'Utility Functions'!$B$3,'Utility Functions'!$B$4,'Utility Functions'!$B$5,'Utility Functions'!$B$6))","v":2.5041071294184137E-2},{"$f":"$C$40*(valueE(C10,'Utility Functions'!$D$3,'Utility Functions'!$D$4,'Utility Functions'!$D$5,'Utility Functions'!$D$6))","v":2.3696993705826886E-2},{"$f":"$D$40*(valuePL(D10,'Utility Functions'!$E$3:$E$5,'Utility Functions'!$F$3:$F$5))","v":0.03},{"$f":"$E$40*(valuePL(E10,'Utility Functions'!$G$3:$G$5,'Utility Functions'!$H$3:$H$5))","v":1.4999999999999999E-2},{"$f":"$F$40*(valuePL(F10,'Utility Functions'!$I$3:$I$4,'Utility Functions'!$J$3:$J$5))","v":0},{"$f":"$G$40*(valueE(G10,'Utility Functions'!$L$3,'Utility Functions'!$L$4,'Utility Functions'!$L$5,'Utility Functions'!$L$6))","v":5.6451612903225803E-3},{"$f":"$H$40*(valueE(H10,'Utility Functions'!$N$3,'Utility Functions'!$N$4,'Utility Functions'!$N$5,'Utility Functions'!$N$6))","v":1.9924098671726754E-3},{"$f":"$I$40*valuePL(I10,'Utility Functions'!$O$3:$O$6,'Utility Functions'!$P$3:$P$6)","v":0},{"$f":"$J$40*valuePL(J10,'Utility Functions'!$Q$3:$Q$6,'Utility Functions'!$R$3:$R$6)","v":0},{"$f":"$K$40*(valuePL(K10,'Utility Functions'!$S$3:$S$7,'Utility Functions'!$T$3:$T$7))","v":0},{"$f":"$L$40*(valueE(L10,'Utility Functions'!$V$3,'Utility Functions'!$V$4,'Utility Functions'!$V$5,'Utility Functions'!$V$6))","v":0},{"$f":"$M$40*valuePL(M10,'Utility Functions'!$W$3:$W$6,'Utility Functions'!$X$3:$X$6)","v":0},{"$f":"$N$40*valueE(N10,'Utility Functions'!$Z$3,'Utility Functions'!$Z$4,'Utility Functions'!$Z$5,'Utility Functions'!$Z$6)","v":0},{"$f":"$O$40*valuePL(O10,'Utility Functions'!$AA$3:$AA$5,'Utility Functions'!$AB$3:$AB$5)","v":0},{"$f":"$P$40*valuePL(P10,'Utility Functions'!$AC$3:$AC$7,'Utility Functions'!$AD$3:$AD$7)","v":0.03},{"$f":"$Q$40*valuePL(Q10,'Utility Functions'!$AE$3:$AE$6,'Utility Functions'!$AF$3:$AF$6)","v":0},{"$f":"$R$40*valuePL(R10,'Utility Functions'!$AG$3:$AG$6,'Utility Functions'!$AH$3:$AH$6)","v":0.05},{"$f":"$S$40*valuePL(S10,'Utility Functions'!$AI$3:$AI$6,'Utility Functions'!$AJ$3:$AJ$6)","v":3.3000000000000002E-2},{"$f":"$T$40*valuePL(T10,'Utility Functions'!$AK$3:$AK$8,'Utility Functions'!$AL$3:$AL$8)","v":6.0000000000000001E-3},{"$f":"$U$40*valuePL(U10,'Utility Functions'!$AM$3:$AM$5,'Utility Functions'!$AN$3:$AN$5)","v":0},{"$f":"$V$40*valuePL(V10,'Utility Functions'!$AO$3:$AO$5,'Utility Functions'!$AP$3:$AP$5)","v":0.05},{"$f":"$W$40*valuePL(W10,'Utility Functions'!$AQ$3:$AQ$6,'Utility Functions'!$AR$3:$AR$6)","v":0.04},{"$f":"$X$40*valuePL(X10,'Utility Functions'!$AS$3:$AS$6,'Utility Functions'!$AT$3:$AT$6)","v":0.04},{"$f":"$Y$40*valuePL(Y10,'Utility Functions'!$AU$3:$AU$6,'Utility Functions'!$AV$3:$AV$6)","v":1.0000000000000002E-2},{"$f":"$Z$40*valuePL(Z10,'Utility Functions'!$AW$3:$AW$5,'Utility Functions'!$AX$3:$AX$5)","v":0.05},{"$f":"$AA$40*valuePL(AA10,'Utility Functions'!$AY$3:$AY$6,'Utility Functions'!$AZ$3:$AZ$6)","v":8.0000000000000002E-3},{"$f":"$AB$40*valuePL(AB10,'Utility Functions'!$BA$3:$BA$5,'Utility Functions'!$BB$3:$BB$5)","v":0.01},{"$f":"$AC$40*valuePL(AC10,'Utility Functions'!$BC$3:$BC$5,'Utility Functions'!$BD$3:$BD$5)","v":0.03},0.45837563615750632,0.45664098955774823]
[10,{"$f":"$B$40*(valueE(B11,'Utility Functions'!$B$3,'Utility Functions'!$B$4,'Utility Functions'!$B$5,'Utility Functions'!$B$6))","v":0},{"$f":"$C$40*(valueE(C11,'Utility Functions'!$D$3,'Utility Functions'!$D$4,'Utility Functions'!$D$5,'Utility Functions'!$D$6))","v":0},{"$f":"$D$40*(valuePL(D11,'Utility Functions'!$E$3:$E$5,'Utility Functions'!$F$3:$F$5))","v":0},{"$f":"$E$40*(valuePL(E11,'Utility Functions'!$G$3:$G$5,'Utility Functions'!$H$3:$H$5))","v":0},{"$f":"$F$40*(valuePL(F11,'Utility Functions'!$I$3:$I$4,'Utility Functions'!$J$3:$J$5))","v":0},{"$f":"$G$40*(valueE(G11,'Utility Functions'!$L$3,'Utility Functions'!$L$4,'Utility Functions'!$L$5,'Utility Functions'!$L$6))","v":0},{"$f":"$H$40*(valueE(H11,'Utility Functions'!$N$3,'Utility Functions'!$N$4,'Utility Functions'!$N$5,'Utility Functions'!$N$6))","v":0},{"$f":"$I$40*valuePL(I11,'Utility Functions'!$O$3:$O$6,'Utility Functions'!$P$3:$P$6)","v":0},{"$f":"$J$40*valuePL(J11,'Utility Functions'!$Q$3:$Q$6,'Utility Functions'!$R$3:$R$6)","v":0},{"$f":"$K$40*(valuePL(K11,'Utility Functions'!$S$3:$S$7,'Utility Functions'!$T$3:$T$7))","v":0},{"$f":"$L$40*(valueE(L11,'Utility Functions'!$V$3,'Utility Functions'!$V$4,'Utility Functions'!$V$5,'Utility Functions'!$V$6))","v":0},{"$f":"$M$40*valuePL(M11,'Utility Functions'!$W$3:$W$6,'Utility Functions'!$X$3:$X$6)","v":0},{"$f":"$N$40*valueE(N11,'Utility Functions'!$Z$3,'Utility Functions'!$Z$4,'Utility Functions'!$Z$5,'Utility Functions'!$Z$6)","v":2.2499999999999999E-2},{"$f":"$O$40*valuePL(O11,'Utility Functions'!$AA$3:$AA$5,'Utility Functions'!$AB$3:$AB$5)","v":0.09},{"$f":"$P$40*valuePL(P11,'Utility Functions'!$AC$3:$AC$7,'Utility Functions'!$AD$3:$AD$7)","v":0.01},{"$f":"$Q$40*valuePL(Q11,'Utility Functions'!$AE$3:$AE$6,'Utility Functions'!$AF$3:$AF$6)","v":0.02},{"$f":"$R$40*valuePL(R11,'Utility Functions'!$AG$3:$AG$6,'Utility Functions'!$AH$3:$AH$6)","v":0.05},{"$f":"$S$40*valuePL(S11,'Utility Functions'!$AI$3:$AI$6,'Utility Functions'!$AJ$3:$AJ$6)","v":3.3000000000000002E-2},{"$f":"$T$40*valuePL(T11,'Utility Functions'!$AK$3:$AK$8,'Utility Functions'!$AL$3:$AL$8)","v":1.2E-2},{"$f":"$U$40*valuePL(U11,'Utility Functions'!$AM$3:$AM$5,'Utility Functions'!$AN$3:$AN$5)","v":0},{"$f":"$V$40*valuePL(V11,'Utility Functions'!$AO$3:$AO$5,'Utility Functions'!$AP$3:$AP$5)","v":0},{"$f":"$W$40*valuePL(W11,'Utility Functions'!$AQ$3:$AQ$6,'Utility Functions'!$AR$3:$AR$6)","v":0.03},{"$f":"$X$40*valuePL(X11,'Utility Functions'!$AS$3:$AS$6,'Utility Functions'!$AT$3:$AT$6)","v":0.04},{"$f":"$Y$40*valuePL(Y11,'Utility Functions'!$AU$3:$AU$6,'Utility Functions'!$AV$3:$AV$6)","v":0.05},{"$f":"$Z$40*valuePL(Z11,'Utility Functions'!$AW$3:$AW$5,'Utility Functions'!$AX$3:$AX$5)","v":2.5000000000000001E-2},{"$f":"$AA$40*valuePL(AA11,'Utility Functions'!$AY$3:$AY$6,'Utility Functions'!$AZ$3:$AZ$6)","v":8.0000000000000002E-3},{"$f":"$AB$40*valuePL(AB11,'Utility Functions'!$BA$3:$BA$5,'Utility Functions'!$BB$3:$BB$5)","v":0},{"$f":"$AC$40*valuePL(AC11,'Utility Functions'!$BC$3:$BC$5,'Utility Functions'!$BD$3:$BD$5)","v":0.03},0.42049999999999998,0.42049999999999998]
[11,{"$f":"$B$40*(valueE(B12,'Utility Functions'!$B$3,'Utility Functions'!$B$4,'Utility Functions'!$B$5,'Utility Functions'!$B$6))","v":0},{"$f":"$C$40*(valueE(C12,'Utility Functions'!$D$3,'Utility Functions'!$D$4,'Utility Functions'!$D$5,'Utility Functions'!$D$6))","v":0},{"$f":"$D$40*(valuePL(D12,'Utility Functions'!$E$3:$E$5,'Utility Functions'!$F$3:$F$5))","v":0},{"$f":"$E$40*(valuePL(E12,'Utility Functions'!$G$3:$G$5,'Utility Functions'!$H$3:$H$5))","v":0},{"$f":"$F$40*(valuePL(F12,'Utility Functions'!$I$3:$I$4,'Utility Functions'!$J$3:$J$5))","v":0},{"$f":"$G$40*(valueE(G12,'Utility Functions'!$L$3,'Utility Functions'!$L$4,'Utility Functions'!$L$5,'Utility Functions'!$L$6))","v":4.8387096774193543E-4},{"$f":"$H$40*(valueE(H12,'Utility Functions'!$N$3,'Utility Functions'!$N$4,'Utility Functions'!$N$5,'Utility Functions'!$N$6))","v":1.4516129032258063E-3},{"$f":"$I$40*valuePL(I12,'Utility Functions'!$O$3:$O$6,'Utility Functions'!$P$3:$P$6)","v":1.6254545454545456E-2},{"$f":"$J$40*valuePL(J12,'Utility Functions'!$Q$3:$Q$6,'Utility Functions'!$R$3:$R$6)","v":1.8363636363636363E-2},{"$f":"$K$40*(valuePL(K12,'Utility Functions'!$S$3:$S$7,'Utility Functions'!$T$3:$T$7))","v":1.0836363636363637E-2},{"$f":"$L$40*(valueE(L12,'Utility Functions'!$V$3,'Utility Functions'!$V$4,'Utility Functions'!$V$5,'Utility Functions'!$V$6))","v":0.02},{"$f":"$M$40*valuePL(M12,'Utility Functions'!$W$3:$W$6,'Utility Functions'!$X$3:$X$6)","v":1.8363636363636363E-2},{"$f":"$N$40*valueE(N12,'Utility Functions'!$Z$3,'Utility Functions'!$Z$4,'Utility Functions'!$Z$5,'Utility Functions'!$Z$6)","v":1.125E-2},{"$f":"$O$40*valuePL(O12,'Utility Functions'!$AA$3:$AA$5,'Utility Functions'!$AB$3:$AB$5)","v":2.2499999999999999E-2},{"$f":"$P$40*valuePL(P12,'Utility Functions'!$AC$3:$AC$7,'Utility Functions'!$AD$3:$AD$7)","v":0.01},{"$f":"$Q$40*valuePL(Q12,'Utility Functions'!$AE$3:$AE$6,'Utility Functions'!$AF$3:$AF$6)","v":0},{"$f":"$R$40*valuePL(R12,'Utility Functions'!$AG$3:$AG$6,'Utility Functions'!$AH$3:$AH$6)","v":0.05},{"$f":"$S$40*valuePL(S12,'Utility Functions'!$AI$3:$AI$6,'Utility Functions'!$AJ$3:$AJ$6)","v":0.05},{"$f":"$T$40*valuePL(T12,'Utility Functions'!$AK$3:$AK$8,'Utility Functions'!$AL$3:$AL$8)","v":1.2E-2},{"$f":"$U$40*valuePL(U12,'Utility Functions'!$AM$3:$AM$5,'Utility Functions'!$AN$3:$AN$5)","v":0.03},{"$f":"$V$40*valuePL(V12,'Utility Functions'!$AO$3:$AO$5,'Utility Functions'!$AP$3:$AP$5)","v":0.05},{"$f":"$W$40*valuePL(W12,'Utility Functions'!$AQ$3:$AQ$6,'Utility Functions'!$AR$3:$AR$6)","v":8.0000000000000002E-3},{"$f":"$X$40*valuePL(X12,'Utility Functions'!$AS$3:$AS$6,'Utility Functions'!$AT$3:$AT$6)","v":0.04},{"$f":"$Y$40*valuePL(Y12,'Utility Functions'!$AU$3:$AU$6,'Utility Functions'!$AV$3:$AV$6)","v":0.05},{"$f":"$Z$40*valuePL(Z12,'Utility Functions'!$AW$3:$AW$5,'Utility Functions'!$AX$3:$AX$5)","v":2.5000000000000001E-2},{"$f":"$AA$40*valuePL(AA12,'Utility Functions'!$AY$3:$AY$6,'Utility Functions'!$AZ$3:$AZ$6)","v":3.5999999999999997E-2},{"$f":"$AB$40*valuePL(AB12,'Utility Functions'!$BA$3:$BA$5,'Utility Functions'!$BB$3:$BB$5)","v":0},{"$f":"$AC$40*valuePL(AC12,'Utility Functions'!$BC$3:$BC$5,'Utility Functions'!$BD$3:$BD$5)","v":7.4999999999999997E-3},0.48800366568914949,0.48800366568914949]
[12,{"$f":"$B$40*(valueE(B13,'Utility Functions'!$B$3,'Utility Functions'!$B$4,'Utility Functions'!$B$5,'Utility Functions'!$B$6))","v":9.8904136043327599E-3},{"$f":"$C$40*(valueE(C13,'Utility Functions'!$D$3,'Utility Functions'!$D$4,'Utility Functions'!$D$5,'Utility Functions'!$D$6))","v":2.3696993705826886E-2},{"$f":"$D$40*(valuePL(D13,'Utility Functions'!$E$3:$E$5,'Utility Functions'!$F$3:$F$5))","v":0.03},{"$f":"$E$40*(valuePL(E13,'Utility Functions'!$G$3:$G$5,'Utility Functions'!$H$3:$H$5))","v":1.4999999999999999E-2},{"$f":"$F$40*(valuePL(F13,'Utility Functions'!$I$3:$I$4,'Utility Functions'!$J$3:$J$5))","v":0},{"$f":"$G$40*(valueE(G13,'Utility Functions'!$L$3,'Utility Functions'!$L$4,'Utility Functions'!$L$5,'Utility Functions'!$L$6))","v":0},{"$f":"$H$40*(valueE(H13,'Utility Functions'!$N$3,'Utility Functions'!$N$4,'Utility Functions'!$N$5,'Utility Functions'!$N$6))","v":0},{"$f":"$I$40*valuePL(I13,'Utility Functions'!$O$3:$O$6,'Utility Functions'!$P$3:$P$6)","v":0},{"$f":"$J$40*valuePL(J13,'Utility Functions'!$Q$3:$Q$6,'Utility Functions'!$R$3:$R$6)","v":0},{"$f":"$K$40*(valuePL(K13,'Utility Functions'!$S$3:$S$7,'Utility Functions'!$T$3:$T$7))","v":0},{"$f":"$L$40*(valueE(L13,'Utility Functions'!$V$3,'Utility Functions'!$V$4,'Utility Functions'!$V$5,'Utility Functions'!$V$6))","v":0},{"$f":"$M$40*valuePL(M13,'Utility Functions'!$W$3:$W$6,'Utility Functions'!$X$3:$X$6)","v":0},{"$f":"$N$40*valueE(N13,'Utility Functions'!$Z$3,'Utility Functions'!$Z$4,'Utility Functions'!$Z$5,'Utility Functions'!$Z$6)","v":0},{"$f":"$O$40*valuePL(O13,'Utility Functions'!$AA$3:$AA$5,'Utility Functions'!$AB$3:$AB$5)","v":0},{"$f":"$P$40*valuePL(P13,'Utility Functions'!$AC$3:$AC$7,'Utility Functions'!$AD$3:$AD$7)","v":0},{"$f":"$Q$40*valuePL(Q13,'Utility Functions'!$AE$3:$AE$6,'Utility Functions'!$AF$3:$AF$6)","v":4.0000000000000001E-3},{"$f":"$R$40*valuePL(R13,'Utility Functions'!$AG$3:$AG$6,'Utility Functions'!$AH$3:$AH$6)","v":0.05},{"$f":"$S$40*valuePL(S13,'Utility Functions'!$AI$3:$AI$6,'Utility Functions'!$AJ$3:$AJ$6)","v":0.05},{"$f":"$T$40*valuePL(T13,'Utility Functions'!$AK$3:$AK$8,'Utility Functions'!$AL$3:$AL$8)","v":1.7999999999999999E-2},{"$f":"$U$40*valuePL(U13,'Utility Functions'!$AM$3:$AM$5,'Utility Functions'!$AN$3:$AN$5)","v":0},{"$f":"$V$40*valuePL(V13,'Utility Functions'!$AO$3:$AO$5,'Utility Functions'!$AP$3:$AP$5)","v":2.5000000000000001E-2},{"$f":"$W$40*valuePL(W13,'Utility Functions'!$AQ$3:$AQ$6,'Utility Functions'!$AR$3:$AR$6)","v":8.0000000000000002E-3},{"$f":"$X$40*valuePL(X13,'Utility Functions'!$AS$3:$AS$6,'Utility Functions'!$AT$3:$AT$6)","v":0.04},{"$f":"$Y$40*valuePL(Y13,'Utility Functions'!$AU$3:$AU$6,'Utility Functions'!$AV$3:$AV$6)","v":1.0000000000000002E-2},{"$f":"$Z$40*valuePL(Z13,'Utility Functions'!$AW$3:$AW$5,'Utility Functions'!$AX$3:$AX$5)","v":0.05},{"$f":"$AA$40*valuePL(AA13,'Utility Functions'!$AY$3:$AY$6,'Utility Functions'!$AZ$3:$AZ$6)","v":8.0000000000000002E-3},{"$f":"$AB$40*valuePL(AB13,'Utility Functions'!$BA$3:$BA$5,'Utility Functions'!$BB$3:$BB$5)","v":0.04},{"$f":"$AC$40*valuePL(AC13,'Utility Functions'!$BC$3:$BC$5,'Utility Functions'!$BD$3:$BD$5)","v":0},0.38158740731015961,0.38020117461803976]
[13,{"$f":"$B$40*(valueE(B14,'Utility Functions'!$B$3,'Utility Functions'!$B$4,'Utility Functions'!$B$5,'Utility Functions'!$B$6))","v":0},{"$f":"$C$40*(valueE(C14,'Utility Functions'!$D$3,'Utility Functions'!$D$4,'Utility Functions'!$D$5,'Utility Functions'!$D$6))","v":0},{"$f":"$D$40*(valuePL(D14,'Utility Functions'!$E$3:$E$5,'Utility Functions'!$F$3:$F$5))","v":0},{"$f":"$E$40*(valuePL(E14,'Utility Functions'!$G$3:$G$5,'Utility Functions'!$H$3:$H$5))","v":0},{"$f":"$F$40*(valuePL(F14,'Utility Functions'!$I$3:$I$4,'Utility Functions'!$J$3:$J$5))","v":0},{"$f":"$G$40*(valueE(G14,'Utility Functions'!$L$3,'Utility Functions'!$L$4,'Utility Functions'!$L$5,'Utility Functions'!$L$6))","v":0},{"$f":"$H$40*(valueE(H14,'Utility Functions'!$N$3,'Utility Functions'!$N$4,'Utility Functions'!$N$5,'Utility Functions'!$N$6))","v":1.7077798861480075E-4},{"$f":"$I$40*valuePL(I14,'Utility Functions'!$O$3:$O$6,'Utility Functions'!$P$3:$P$6)","v":9.8727272727272726E-3},{"$f":"$J$40*valuePL(J14,'Utility Functions'!$Q$3:$Q$6,'Utility Functions'!$R$3:$R$6)","v":8.0000000000000004E-4},{"$f":"$K$40*(valuePL(K14,'Utility Functions'!$S$3:$S$7,'Utility Functions'!$T$3:$T$7))","v":6.5818181818181817E-3},{"$f":"$L$40*(valueE(L14,'Utility Functions'!$V$3,'Utility Functions'!$V$4,'Utility Functions'!$V$5,'Utility Functions'!$V$6))","v":0.02},{"$f":"$M$40*valuePL(M14,'Utility Functions'!$W$3:$W$6,'Utility Functions'!$X$3:$X$6)","v":8.0000000000000004E-4},{"$f":"$N$40*valueE(N14,'Utility Functions'!$Z$3,'Utility Functions'!$Z$4,'Utility Functions'!$Z$5,'Utility Functions'!$Z$6)","v":2.6249999999999999E-2},{"$f":"$O$40*valuePL(O14,'Utility Functions'!$AA$3:$AA$5,'Utility Functions'!$AB$3:$AB$5)","v":2.2499999999999999E-2},{"$f":"$P$40*valuePL(P14,'Utility Functions'!$AC$3:$AC$7,'Utility Functions'!$AD$3:$AD$7)","v":0.01},{"$f":"$Q$40*valuePL(Q14,'Utility Functions'!$AE$3:$AE$6,'Utility Functions'!$AF$3:$AF$6)","v":0},{"$f":"$R$40*valuePL(R14,'Utility Functions'!$AG$3:$AG$6,'Utility Functions'!$AH$3:$AH$6)","v":0.05},{"$f":"$S$40*valuePL(S14,'Utility Functions'!$AI$3:$AI$6,'Utility Functions'!$AJ$3:$AJ$6)","v":0.05},{"$f":"$T$40*valuePL(T14,'Utility Functions'!$AK$3:$AK$8,'Utility Functions'!$AL$3:$AL$8)","v":0},{"$f":"$U$40*valuePL(U14,'Utility Functions'!$AM$3:$AM$5,'Utility Functions'!$AN$3:$AN$5)","v":0},{"$f":"$V$40*valuePL(V14,'Utility Functions'!$AO$3:$AO$5,'Utility Functions'!$AP$3:$AP$5)","v":2.5000000000000001E-2},{"$f":"$W$40*valuePL(W14,'Utility Functions'!$AQ$3:$AQ$6,'Utility Functions'!$AR$3:$AR$6)","v":0},{"$f":"$X$40*valuePL(X14,'Utility Functions'!$AS$3:$AS$6,'Utility Functions'!$AT$3:$AT$6)","v":8.0000000000000002E-3},{"$f":"$Y$40*valuePL(Y14,'Utility Functions'!$AU$3:$AU$6,'Utility Functions'!$AV$3:$AV$6)","v":0},{"$f":"$Z$40*valuePL(Z14,'Utility Functions'!$AW$3:$AW$5,'Utility Functions'!$AX$3:$AX$5)","v":0.05},{"$f":"$AA$40*valuePL(AA14,'Utility Functions'!$AY$3:$AY$6,'Utility Functions'!$AZ$3:$AZ$6)","v":8.0000000000000002E-3},{"$f":"$AB$40*valuePL(AB14,'Utility Functions'!$BA$3:$BA$5,'Utility Functions'!$BB$3:$BB$5)","v":0.01},{"$f":"$AC$40*valuePL(AC14,'Utility Functions'!$BC$3:$BC$5,'Utility Functions'!$BD$3:$BD$5)","v":7.4999999999999997E-3},0.30547532344316031,0.30547532344316031]
[14,{"$f":"$B$40*(valueE(B15,'Utility Functions'!$B$3,'Utility Functions'!$B$4,'Utility Functions'!$B$5,'Utility Functions'!$B$6))","v":2.0964205406426323E-2},{"$f":"$C$40*(valueE(C15,'Utility Functions'!$D$3,'Utility Functions'!$D$4,'Utility Functions'!$D$5,'Utility Functions'!$D$6))","v":2.3696993705826886E-2},{"$f":"$D$40*(valuePL(D15,'Utility Functions'!$E$3:$E$5,'Utility Functions'!$F$3:$F$5))","v":1.4999999999999999E-2},{"$f":"$E$40*(valuePL(E15,'Utility Functions'!$G$3:$G$5,'Utility Functions'!$H$3:$H$5))","v":1.4999999999999999E-2},{"$f":"$F$40*(valuePL(F15,'Utility Functions'!$I$3:$I$4,'Utility Functions'!$J$3:$J$5))","v":0},{"$f":"$G$40*(valueE(G15,'Utility Functions'!$L$3,'Utility Functions'!$L$4,'Utility Functions'!$L$5,'Utility Functions'!$L$6))","v":0},{"$f":"$H$40*(valueE(H15,'Utility Functions'!$N$3,'Utility Functions'!$N$4,'Utility Functions'!$N$5,'Utility Functions'!$N$6))","v":0},{"$f":"$I$40*valuePL(I15,'Utility Functions'!$O$3:$O$6,'Utility Functions'!$P$3:$P$6)","v":0},{"$f":"$J$40*valuePL(J15,'Utility Functions'!$Q$3:$Q$6,'Utility Functions'!$R$3:$R$6)","v":0},{"$f":"$K$40*(valuePL(K15,'Utility Functions'!$S$3:$S$7,'Utility Functions'!$T$3:$T$7))","v":0},{"$f":"$L$40*(valueE(L15,'Utility Functions'!$V$3,'Utility Functions'!$V$4,'Utility Functions'!$V$5,'Utility Functions'!$V$6))","v":0},{"$f":"$M$40*valuePL(M15,'Utility Functions'!$W$3:$W$6,'Utility Functions'!$X$3:$X$6)","v":0},{"$f":"$N$40*valueE(N15,'Utility Functions'!$Z$3,'Utility Functions'!$Z$4,'Utility Functions'!$Z$5,'Utility Functions'!$Z$6)","v":2.2499999999999999E-2},{"$f":"$O$40*valuePL(O15,'Utility Functions'!$AA$3:$AA$5,'Utility Functions'!$AB$3:$AB$5)","v":2.2499999999999999E-2},{"$f":"$P$40*valuePL(P15,'Utility Functions'!$AC$3:$AC$7,'Utility Functions'!$AD$3:$AD$7)","v":0.01},{"$f":"$Q$40*valuePL(Q15,'Utility Functions'!$AE$3:$AE$6,'Utility Functions'!$AF$3:$AF$6)","v":0},{"$f":"$R$40*valuePL(R15,'Utility Functions'!$AG$3:$AG$6,'Utility Functions'!$AH$3:$AH$6)","v":0.05},{"$f":"$S$40*valuePL(S15,'Utility Functions'!$AI$3:$AI$6,'Utility Functions'!$AJ$3:$AJ$6)","v":0.05},{"$f":"$T$40*valuePL(T15,'Utility Functions'!$AK$3:$AK$8,'Utility Functions'!$AL$3:$AL$8)","v":0},{"$f":"$U$40*valuePL(U15,'Utility Functions'!$AM$3:$AM$5,'Utility Functions'!$AN$3:$AN$5)","v":0},{"$f":"$V$40*valuePL(V15,'Utility Functions'!$AO$3:$AO$5,'Utility Functions'!$AP$3:$AP$5)","v":2.5000000000000001E-2},{"$f":"$W$40*valuePL(W15,'Utility Functions'!$AQ$3:$AQ$6,'Utility Functions'!$AR$3:$AR$6)","v":8.0000000000000002E-3},{"$f":"$X$40*valuePL(X15,'Utility Functions'!$AS$3:$AS$6,'Utility Functions'!$AT$3:$AT$6)","v":0.04},{"$f":"$Y$40*valuePL(Y15,'Utility Functions'!$AU$3:$AU$6,'Utility Functions'!$AV$3:$AV$6)","v":0.05},{"$f":"$Z$40*valuePL(Z15,'Utility Functions'!$AW$3:$AW$5,'Utility Functions'!$AX$3:$AX$5)","v":2.5000000000000001E-2},{"$f":"$AA$40*valuePL(AA15,'Utility Functions'!$AY$3:$AY$6,'Utility Functions'!$AZ$3:$AZ$6)","v":3.5999999999999997E-2},{"$f":"$AB$40*valuePL(AB15,'Utility Functions'!$BA$3:$BA$5,'Utility Functions'!$BB$3:$BB$5)","v":0.01},{"$f":"$AC$40*valuePL(AC15,'Utility Functions'!$BC$3:$BC$5,'Utility Functions'!$BD$3:$BD$5)","v":7.4999999999999997E-3},0.4311611991122532,0.42916087857610469]
[15,{"$f":"$B$40*(valueE(B16,'Utility Functions'!$B$3,'Utility Functions'!$B$4,'Utility Functions'!$B$5,'Utility Functions'!$B$6))","v":2.9698489925153143E-2},{"$f":"$C$40*(valueE(C16,'Utility Functions'!$D$3,'Utility Functions'!$D$4,'Utility Functions'!$D$5,'Utility Functions'!$D$6))","v":2.1405827917278249E-2},{"$f":"$D$40*(valuePL(D16,'Utility Functions'!$E$3:$E$5,'Utility Functions'!$F$3:$F$5))","v":0.03},{"$f":"$E$40*(valuePL(E16,'Utility Functions'!$G$3:$G$5,'Utility Functions'!$H$3:$H$5))","v":1.4999999999999999E-2},{"$f":"$F$40*(valuePL(F16,'Utility Functions'!$I$3:$I$4,'Utility Functions'!$J$3:$J$5))","v":0.04},{"$f":"$G$40*(valueE(G16,'Utility Functions'!$L$3,'Utility Functions'!$L$4,'Utility Functions'!$L$5,'Utility Functions'!$L$6))","v":0},{"$f":"$H$40*(valueE(H16,'Utility Functions'!$N$3,'Utility Functions'!$N$4,'Utility Functions'!$N$5,'Utility Functions'!$N$6))","v":0},{"$f":"$I$40*valuePL(I16,'Utility Functions'!$O$3:$O$6,'Utility Functions'!$P$3:$P$6)","v":2.7600000000000003E-3},{"$f":"$J$40*valuePL(J16,'Utility Functions'!$Q$3:$Q$6,'Utility Functions'!$R$3:$R$6)","v":1.2000000000000003E-3},{"$f":"$K$40*(valuePL(K16,'Utility Functions'!$S$3:$S$7,'Utility Functions'!$T$3:$T$7))","v":1.2000000000000003E-3},{"$f":"$L$40*(valueE(L16,'Utility Functions'!$V$3,'Utility Functions'!$V$4,'Utility Functions'!$V$5,'Utility Functions'!$V$6))","v":0.02},{"$f":"$M$40*valuePL(M16,'Utility Functions'!$W$3:$W$6,'Utility Functions'!$X$3:$X$6)","v":1.2000000000000003E-3},{"$f":"$N$40*valueE(N16,'Utility Functions'!$Z$3,'Utility Functions'!$Z$4,'Utility Functions'!$Z$5,'Utility Functions'!$Z$6)","v":3.7499999999999999E-3},{"$f":"$O$40*valuePL(O16,'Utility Functions'!$AA$3:$AA$5,'Utility Functions'!$AB$3:$AB$5)","v":0.09},{"$f":"$P$40*valuePL(P16,'Utility Functions'!$AC$3:$AC$7,'Utility Functions'!$AD$3:$AD$7)","v":0.02},{"$f":"$Q$40*valuePL(Q16,'Utility Functions'!$AE$3:$AE$6,'Utility Functions'!$AF$3:$AF$6)","v":0},{"$f":"$R$40*valuePL(R16,'Utility Functions'!$AG$3:$AG$6,'Utility Functions'!$AH$3:$AH$6)","v":4.0000000000000008E-2},{"$f":"$S$40*valuePL(S16,'Utility Functions'!$AI$3:$AI$6,'Utility Functions'!$AJ$3:$AJ$6)","v":0.05},{"$f":"$T$40*valuePL(T16,'Utility Functions'!$AK$3:$AK$8,'Utility Functions'!$AL$3:$AL$8)","v":1.7999999999999999E-2},{"$f":"$U$40*valuePL(U16,'Utility Functions'!$AM$3:$AM$5,'Utility Functions'!$AN$3:$AN$5)","v":0.03},{"$f":"$V$40*valuePL(V16,'Utility Functions'!$AO$3:$AO$5,'Utility Functions'!$AP$3:$AP$5)","v":0},{"$f":"$W$40*valuePL(W16,'Utility Functions'!$AQ$3:$AQ$6,'Utility Functions'!$AR$3:$AR$6)","v":0.04},{"$f":"$X$40*valuePL(X16,'Utility Functions'!$AS$3:$AS$6,'Utility Functions'!$AT$3:$AT$6)","v":8.0000000000000002E-3},{"$f":"$Y$40*valuePL(Y16,'Utility Functions'!$AU$3:$AU$6,'Utility Functions'!$AV$3:$AV$6)","v":1.0000000000000002E-2},{"$f":"$Z$40*valuePL(Z16,'Utility Functions'!$AW$3:$AW$5,'Utility Functions'!$AX$3:$AX$5)","v":0.05},{"$f":"$AA$40*valuePL(AA16,'Utility Functions'!$AY$3:$AY$6,'Utility Functions'!$AZ$3:$AZ$6)","v":0.04},{"$f":"$AB$40*valuePL(AB16,'Utility Functions'!$BA$3:$BA$5,'Utility Functions'!$BB$3:$BB$5)","v":0.04},{"$f":"$AC$40*valuePL(AC16,'Utility Functions'!$BC$3:$BC$5,'Utility Functions'!$BD$3:$BD$5)","v":7.4999999999999997E-3},0.60971431784243146,0.60936712175502528]
[16,{"$f":"$B$40*(valueE(B17,'Utility Functions'!$B$3,'Utility Functions'!$B$4,'Utility Functions'!$B$5,'Utility Functions'!$B$6))","v":0},{"$f":"$C$40*(valueE(C17,'Utility Functions'!$D$3,'Utility Functions'!$D$4,'Utility Functions'!$D$5,'Utility Functions'!$D$6))","v":0},{"$f":"$D$40*(valuePL(D17,'Utility Functions'!$E$3:$E$5,'Utility Functions'!$F$3:$F$5))","v":0},{"$f":"$E$40*(valuePL(E17,'Utility Functions'!$G$3:$G$5,'Utility Functions'!$H$3:$H$5))","v":0},{"$f":"$F$40*(valuePL(F17,'Utility Functions'!$I$3:$I$4,'Utility Functions'!$J$3:$J$5))","v":0},{"$f":"$G$40*(valueE(G17,'Utility Functions'!$L$3,'Utility Functions'!$L$4,'Utility Functions'!$L$5,'Utility Functions'!$L$6))","v":0},{"$f":"$H$40*(valueE(H17,'Utility Functions'!$N$3,'Utility Functions'!$N$4,'Utility Functions'!$N$5,'Utility Functions'!$N$6))","v":0},{"$f":"$I$40*valuePL(I17,'Utility Functions'!$O$3:$O$6,'Utility Functions'!$P$3:$P$6)","v":0.03},{"$f":"$J$40*valuePL(J17,'Utility Functions'!$Q$3:$Q$6,'Utility Functions'!$R$3:$R$6)","v":1.8363636363636363E-2},{"$f":"$K$40*(valuePL(K17,'Utility Functions'!$S$3:$S$7,'Utility Functions'!$T$3:$T$7))","v":0.02},{"$f":"$L$40*(valueE(L17,'Utility Functions'!$V$3,'Utility Functions'!$V$4,'Utility Functions'!$V$5,'Utility Functions'!$V$6))","v":1.6666666666666666E-2},{"$f":"$M$40*valuePL(M17,'Utility Functions'!$W$3:$W$6,'Utility Functions'!$X$3:$X$6)","v":1.8363636363636363E-2},{"$f":"$N$40*valueE(N17,'Utility Functions'!$Z$3,'Utility Functions'!$Z$4,'Utility Functions'!$Z$5,'Utility Functions'!$Z$6)","v":0},{"$f":"$O$40*valuePL(O17,'Utility Functions'!$AA$3:$AA$5,'Utility Functions'!$AB$3:$AB$5)","v":0},{"$f":"$P$40*valuePL(P17,'Utility Functions'!$AC$3:$AC$7,'Utility Functions'!$AD$3:$AD$7)","v":0.03},{"$f":"$Q$40*valuePL(Q17,'Utility Functions'!$AE$3:$AE$6,'Utility Functions'!$AF$3:$AF$6)","v":0},{"$f":"$R$40*valuePL(R17,'Utility Functions'!$AG$3:$AG$6,'Utility Functions'!$AH$3:$AH$6)","v":0.05},{"$f":"$S$40*valuePL(S17,'Utility Functions'!$AI$3:$AI$6,'Utility Functions'!$AJ$3:$AJ$6)","v":0.05},{"$f":"$T$40*valuePL(T17,'Utility Functions'!$AK$3:$AK$8,'Utility Functions'!$AL$3:$AL$8)","v":0.03},{"$f":"$U$40*valuePL(U17,'Utility Functions'!$AM$3:$AM$5,'Utility Functions'!$AN$3:$AN$5)","v":0},{"$f":"$V$40*valuePL(V17,'Utility Functions'!$AO$3:$AO$5,'Utility Functions'!$AP$3:$AP$5)","v":0.05},{"$f":"$W$40*valuePL(W17,'Utility Functions'!$AQ$3:$AQ$6,'Utility Functions'!$AR$3:$AR$6)","v":0.03},{"$f":"$X$40*valuePL(X17,'Utility Functions'!$AS$3:$AS$6,'Utility Functions'!$AT$3:$AT$6)","v":0.03},{"$f":"$Y$40*valuePL(Y17,'Utility Functions'!$AU$3:$AU$6,'Utility Functions'!$AV$3:$AV$6)","v":1.0000000000000002E-2},{"$f":"$Z$40*valuePL(Z17,'Utility Functions'!$AW$3:$AW$5,'Utility Functions'!$AX$3:$AX$5)","v":0.05},{"$f":"$AA$40*valuePL(AA17,'Utility Functions'!$AY$3:$AY$6,'Utility Functions'!$AZ$3:$AZ$6)","v":0.04},{"$f":"$AB$40*valuePL(AB17,'Utility Functions'!$BA$3:$BA$5,'Utility Functions'!$BB$3:$BB$5)","v":0.04},{"$f":"$AC$40*valuePL(AC17,'Utility Functions'!$BC$3:$BC$5,'Utility Functions'!$BD$3:$BD$5)","v":0.03},0.54339393939393943,0.54339393939393943]
[17,{"$f":"$B$40*(valueE(B18,'Utility Functions'!$B$3,'Utility Functions'!$B$4,'Utility Functions'!$B$5,'Utility Functions'!$B$6))","v":9.8904136043327599E-3},{"$f":"$C$40*(valueE(C18,'Utility Functions'!$D$3,'Utility Functions'!$D$4,'Utility Functions'!$D$5,'Utility Functions'!$D$6))","v":2.3696993705826886E-2},{"$f":"$D$40*(valuePL(D18,'Utility Functions'!$E$3:$E$5,'Utility Functions'!$F$3:$F$5))","v":0.03},{"$f":"$E$40*(valuePL(E18,'Utility Functions'!$G$3:$G$5,'Utility Functions'!$H$3:$H$5))","v":1.4999999999999999E-2},{"$f":"$F$40*(valuePL(F18,'Utility Functions'!$I$3:$I$4,'Utility Functions'!$J$3:$J$5))","v":0.04},{"$f":"$G$40*(valueE(G18,'Utility Functions'!$L$3,'Utility Functions'!$L$4,'Utility Functions'!$L$5,'Utility Functions'!$L$6))","v":4.6774193548387091E-3},{"$f":"$H$40*(valueE(H18,'Utility Functions'!$N$3,'Utility Functions'!$N$4,'Utility Functions'!$N$5,'Utility Functions'!$N$6))","v":4.1271347248576853E-3},{"$f":"$I$40*valuePL(I18,'Utility Functions'!$O$3:$O$6,'Utility Functions'!$P$3:$P$6)","v":0},{"$f":"$J$40*valuePL(J18,'Utility Functions'!$Q$3:$Q$6,'Utility Functions'!$R$3:$R$6)","v":0},{"$f":"$K$40*(valuePL(K18,'Utility Functions'!$S$3:$S$7,'Utility Functions'!$T$3:$T$7))","v":0},{"$f":"$L$40*(valueE(L18,'Utility Functions'!$V$3,'Utility Functions'!$V$4,'Utility Functions'!$V$5,'Utility Functions'!$V$6))","v":0.02},{"$f":"$M$40*valuePL(M18,'Utility Functions'!$W$3:$W$6,'Utility Functions'!$X$3:$X$6)","v":1.2000000000000003E-3},{"$f":"$N$40*valueE(N18,'Utility Functions'!$Z$3,'Utility Functions'!$Z$4,'Utility Functions'!$Z$5,'Utility Functions'!$Z$6)","v":0},{"$f":"$O$40*valuePL(O18,'Utility Functions'!$AA$3:$AA$5,'Utility Functions'!$AB$3:$AB$5)","v":0},{"$f":"$P$40*valuePL(P18,'Utility Functions'!$AC$3:$AC$7,'Utility Functions'!$AD$3:$AD$7)","v":0},{"$f":"$Q$40*valuePL(Q18,'Utility Functions'!$AE$3:$AE$6,'Utility Functions'!$AF$3:$AF$6)","v":0},{"$f":"$R$40*valuePL(R18,'Utility Functions'!$AG$3:$AG$6,'Utility Functions'!$AH$3:$AH$6)","v":0.05},{"$f":"$S$40*valuePL(S18,'Utility Functions'!$AI$3:$AI$6,'Utility Functions'!$AJ$3:$AJ$6)","v":3.3000000000000002E-2},{"$f":"$T$40*valuePL(T18,'Utility Functions'!$AK$3:$AK$8,'Utility Functions'!$AL$3:$AL$8)","v":0},{"$f":"$U$40*valuePL(U18,'Utility Functions'!$AM$3:$AM$5,'Utility Functions'!$AN$3:$AN$5)","v":0},{"$f":"$V$40*valuePL(V18,'Utility Functions'!$AO$3:$AO$5,'Utility Functions'!$AP$3:$AP$5)","v":0.05},{"$f":"$W$40*valuePL(W18,'Utility Functions'!$AQ$3:$AQ$6,'Utility Functions'!$AR$3:$AR$6)","v":0.04},{"$f":"$X$40*valuePL(X18,'Utility Functions'!$AS$3:$AS$6,'Utility Functions'!$AT$3:$AT$6)","v":8.0000000000000002E-3},{"$f":"$Y$40*valuePL(Y18,'Utility Functions'!$AU$3:$AU$6,'Utility Functions'!$AV$3:$AV$6)","v":0},{"$f":"$Z$40*valuePL(Z18,'Utility Functions'!$AW$3:$AW$5,'Utility Functions'!$AX$3:$AX$5)","v":2.5000000000000001E-2},{"$f":"$AA$40*valuePL(AA18,'Utility Functions'!$AY$3:$AY$6,'Utility Functions'!$AZ$3:$AZ$6)","v":0},{"$f":"$AB$40*valuePL(AB18,'Utility Functions'!$BA$3:$BA$5,'Utility Functions'!$BB$3:$BB$5)","v":0.04},{"$f":"$AC$40*valuePL(AC18,'Utility Functions'!$BC$3:$BC$5,'Utility Functions'!$BD$3:$BD$5)","v":7.4999999999999997E-3},0.40209196138985603,0.40070572869773624]
[18,{"$f":"$B$40*(valueE(B19,'Utility Functions'!$B$3,'Utility Functions'!$B$4,'Utility Functions'!$B$5,'Utility Functions'!$B$6))","v":0},{"$f":"$C$40*(valueE(C19,'Utility Functions'!$D$3,'Utility Functions'!$D$4,'Utility Functions'!$D$5,'Utility Functions'!$D$6))","v":0},{"$f":"$D$40*(valuePL(D19,'Utility Functions'!$E$3:$E$5,'Utility Functions'!$F$3:$F$5))","v":0},{"$f":"$E$40*(valuePL(E19,'Utility Functions'!$G$3:$G$5,'Utility Functions'!$H$3:$H$5))","v":0},{"$f":"$F$40*(valuePL(F19,'Utility Functions'!$I$3:$I$4,'Utility Functions'!$J$3:$J$5))","v":0},{"$f":"$G$40*(valueE(G19,'Utility Functions'!$L$3,'Utility Functions'!$L$4,'Utility Functions'!$L$5,'Utility Functions'!$L$6))","v":0},{"$f":"$H$40*(valueE(H19,'Utility Functions'!$N$3,'Utility Functions'!$N$4,'Utility Functions'!$N$5,'Utility Functions'!$N$6))","v":4.2694497153700185E-4},{"$f":"$I$40*valuePL(I19,'Utility Functions'!$O$3:$O$6,'Utility Functions'!$P$3:$P$6)","v":0},{"$f":"$J$40*valuePL(J19,'Utility Functions'!$Q$3:$Q$6,'Utility Functions'!$R$3:$R$6)","v":0},{"$f":"$K$40*(valuePL(K19,'Utility Functions'!$S$3:$S$7,'Utility Functions'!$T$3:$T$7))","v":0},{"$f":"$L$40*(valueE(L19,'Utility Functions'!$V$3,'Utility Functions'!$V$4,'Utility Functions'!$V$5,'Utility Functions'!$V$6))","v":0},{"$f":"$M$40*valuePL(M19,'Utility Functions'!$W$3:$W$6,'Utility Functions'!$X$3:$X$6)","v":0},{"$f":"$N$40*valueE(N19,'Utility Functions'!$Z$3,'Utility Functions'!$Z$4,'Utility Functions'!$Z$5,'Utility Functions'!$Z$6)","v":0.03},{"$f":"$O$40*valuePL(O19,'Utility Functions'!$AA$3:$AA$5,'Utility Functions'!$AB$3:$AB$5)","v":2.2499999999999999E-2},{"$f":"$P$40*valuePL(P19,'Utility Functions'!$AC$3:$AC$7,'Utility Functions'!$AD$3:$AD$7)","v":0.01},{"$f":"$Q$40*valuePL(Q19,'Utility Functions'!$AE$3:$AE$6,'Utility Functions'!$AF$3:$AF$6)","v":0.04},{"$f":"$R$40*valuePL(R19,'Utility Functions'!$AG$3:$AG$6,'Utility Functions'!$AH$3:$AH$6)","v":0.05},{"$f":"$S$40*valuePL(S19,'Utility Functions'!$AI$3:$AI$6,'Utility Functions'!$AJ$3:$AJ$6)","v":0.05},{"$f":"$T$40*valuePL(T19,'Utility Functions'!$AK$3:$AK$8,'Utility Functions'!$AL$3:$AL$8)","v":0.03},{"$f":"$U$40*valuePL(U19,'Utility Functions'!$AM$3:$AM$5,'Utility Functions'!$AN$3:$AN$5)","v":7.4999999999999997E-3},{"$f":"$V$40*valuePL(V19,'Utility Functions'!$AO$3:$AO$5,'Utility Functions'!$AP$3:$AP$5)","v":0.05},{"$f":"$W$40*valuePL(W19,'Utility Functions'!$AQ$3:$AQ$6,'Utility Functions'!$AR$3:$AR$6)","v":0.03},{"$f":"$X$40*valuePL(X19,'Utility Functions'!$AS$3:$AS$6,'Utility Functions'!$AT$3:$AT$6)","v":8.0000000000000002E-3},{"$f":"$Y$40*valuePL(Y19,'Utility Functions'!$AU$3:$AU$6,'Utility Functions'!$AV$3:$AV$6)","v":4.0000000000000008E-2},{"$f":"$Z$40*valuePL(Z19,'Utility Functions'!$AW$3:$AW$5,'Utility Functions'!$AX$3:$AX$5)","v":2.5000000000000001E-2},{"$f":"$AA$40*valuePL(AA19,'Utility Functions'!$AY$3:$AY$6,'Utility Functions'!$AZ$3:$AZ$6)","v":3.5999999999999997E-2},{"$f":"$AB$40*valuePL(AB19,'Utility Functions'!$BA$3:$BA$5,'Utility Functions'!$BB$3:$BB$5)","v":0.01},{"$f":"$AC$40*valuePL(AC19,'Utility Functions'!$BC$3:$BC$5,'Utility Functions'!$BD$3:$BD$5)","v":0},0.43942694497153706,0.43942694497153706]
[19,{"$f":"$B$40*(valueE(B20,'Utility Functions'!$B$3,'Utility Functions'!$B$4,'Utility Functions'!$B$5,'Utility Functions'!$B$6))","v":2.3943140737469053E-2},{"$f":"$C$40*(valueE(C20,'Utility Functions'!$D$3,'Utility Functions'!$D$4,'Utility Functions'!$D$5,'Utility Functions'!$D$6))","v":8.0518966871447988E-3},{"$f":"$D$40*(valuePL(D20,'Utility Functions'!$E$3:$E$5,'Utility Functions'!$F$3:$F$5))","v":1.4999999999999999E-2},{"$f":"$E$40*(valuePL(E20,'Utility Functions'!$G$3:$G$5,'Utility Functions'!$H$3:$H$5))","v":0.03},{"$f":"$F$40*(valuePL(F20,'Utility Functions'!$I$3:$I$4,'Utility Functions'!$J$3:$J$5))","v":0},{"$f":"$G$40*(valueE(G20,'Utility Functions'!$L$3,'Utility Functions'!$L$4,'Utility Functions'!$L$5,'Utility Functions'!$L$6))","v":0},{"$f":"$H$40*(valueE(H20,'Utility Functions'!$N$3,'Utility Functions'!$N$4,'Utility Functions'!$N$5,'Utility Functions'!$N$6))","v":0},{"$f":"$I$40*valuePL(I20,'Utility Functions'!$O$3:$O$6,'Utility Functions'!$P$3:$P$6)","v":0},{"$f":"$J$40*valuePL(J20,'Utility Functions'!$Q$3:$Q$6,'Utility Functions'!$R$3:$R$6)","v":0},{"$f":"$K$40*(valuePL(K20,'Utility Functions'!$S$3:$S$7,'Utility Functions'!$T$3:$T$7))","v":0},{"$f":"$L$40*(valueE(L20,'Utility Functions'!$V$3,'Utility Functions'!$V$4,'Utility Functions'!$V$5,'Utility Functions'!$V$6))","v":0},{"$f":"$M$40*valuePL(M20,'Utility Functions'!$W$3:$W$6,'Utility Functions'!$X$3:$X$6)","v":0},{"$f":"$N$40*valueE(N20,'Utility Functions'!$Z$3,'Utility Functions'!$Z$4,'Utility Functions'!$Z$5,'Utility Functions'!$Z$6)","v":0.03},{"$f":"$O$40*valuePL(O20,'Utility Functions'!$AA$3:$AA$5,'Utility Functions'!$AB$3:$AB$5)","v":0.09},{"$f":"$P$40*valuePL(P20,'Utility Functions'!$AC$3:$AC$7,'Utility Functions'!$AD$3:$AD$7)","v":0},{"$f":"$Q$40*valuePL(Q20,'Utility Functions'!$AE$3:$AE$6,'Utility Functions'!$AF$3:$AF$6)","v":0},{"$f":"$R$40*valuePL(R20,'Utility Functions'!$AG$3:$AG$6,'Utility Functions'!$AH$3:$AH$6)","v":4.0000000000000008E-2},{"$f":"$S$40*valuePL(S20,'Utility Functions'!$AI$3:$AI$6,'Utility Functions'!$AJ$3:$AJ$6)","v":0.05},{"$f":"$T$40*valuePL(T20,'Utility Functions'!$AK$3:$AK$8,'Utility Functions'!$AL$3:$AL$8)","v":0},{"$f":"$U$40*valuePL(U20,'Utility Functions'!$AM$3:$AM$5,'Utility Functions'!$AN$3:$AN$5)","v":0},{"$f":"$V$40*valuePL(V20,'Utility Functions'!$AO$3:$AO$5,'Utility Functions'!$AP$3:$AP$5)","v":2.5000000000000001E-2},{"$f":"$W$40*valuePL(W20,'Utility Functions'!$AQ$3:$AQ$6,'Utility Functions'!$AR$3:$AR$6)","v":8.0000000000000002E-3},{"$f":"$X$40*valuePL(X20,'Utility Functions'!$AS$3:$AS$6,'Utility Functions'!$AT$3:$AT$6)","v":0.04},{"$f":"$Y$40*valuePL(Y20,'Utility Functions'!$AU$3:$AU$6,'Utility Functions'!$AV$3:$AV$6)","v":4.0000000000000008E-2},{"$f":"$Z$40*valuePL(Z20,'Utility Functions'!$AW$3:$AW$5,'Utility Functions'!$AX$3:$AX$5)","v":0},{"$f":"$AA$40*valuePL(AA20,'Utility Functions'!$AY$3:$AY$6,'Utility Functions'!$AZ$3:$AZ$6)","v":8.0000000000000002E-3},{"$f":"$AB$40*valuePL(AB20,'Utility Functions'!$BA$3:$BA$5,'Utility Functions'!$BB$3:$BB$5)","v":0},{"$f":"$AC$40*valuePL(AC20,'Utility Functions'!$BC$3:$BC$5,'Utility Functions'!$BD$3:$BD$5)","v":7.4999999999999997E-3},0.41549503742461386,0.41364429487902837]
[20,{"$f":"$B$40*(valueE(B21,'Utility Functions'!$B$3,'Utility Functions'!$B$4,'Utility Functions'!$B$5,'Utility Functions'!$B$6))","v":2.5041071294184137E-2},{"$f":"$C$40*(valueE(C21,'Utility Functions'!$D$3,'Utility Functions'!$D$4,'Utility Functions'!$D$5,'Utility Functions'!$D$6))","v":2.3696993705826886E-2},{"$f":"$D$40*(valuePL(D21,'Utility Functions'!$E$3:$E$5,'Utility Functions'!$F$3:$F$5))","v":1.4999999999999999E-2},{"$f":"$E$40*(valuePL(E21,'Utility Functions'!$G$3:$G$5,'Utility Functions'!$H$3:$H$5))","v":0.03},{"$f":"$F$40*(valuePL(F21,'Utility Functions'!$I$3:$I$4,'Utility Functions'!$J$3:$J$5))","v":0},{"$f":"$G$40*(valueE(G21,'Utility Functions'!$L$3,'Utility Functions'!$L$4,'Utility Functions'!$L$5,'Utility Functions'!$L$6))","v":0},{"$f":"$H$40*(valueE(H21,'Utility Functions'!$N$3,'Utility Functions'!$N$4,'Utility Functions'!$N$5,'Utility Functions'!$N$6))","v":6.1907020872865271E-3},{"$f":"$I$40*valuePL(I21,'Utility Functions'!$O$3:$O$6,'Utility Functions'!$P$3:$P$6)","v":2.8036363636363634E-2},{"$f":"$J$40*valuePL(J21,'Utility Functions'!$Q$3:$Q$6,'Utility Functions'!$R$3:$R$6)","v":1.0181818181818183E-2},{"$f":"$K$40*(valuePL(K21,'Utility Functions'!$S$3:$S$7,'Utility Functions'!$T$3:$T$7))","v":1.8690909090909088E-2},{"$f":"$L$40*(valueE(L21,'Utility Functions'!$V$3,'Utility Functions'!$V$4,'Utility Functions'!$V$5,'Utility Functions'!$V$6))","v":1.3333333333333332E-2},{"$f":"$M$40*valuePL(M21,'Utility Functions'!$W$3:$W$6,'Utility Functions'!$X$3:$X$6)","v":1.0181818181818183E-2},{"$f":"$N$40*valueE(N21,'Utility Functions'!$Z$3,'Utility Functions'!$Z$4,'Utility Functions'!$Z$5,'Utility Functions'!$Z$6)","v":0.03},{"$f":"$O$40*valuePL(O21,'Utility Functions'!$AA$3:$AA$5,'Utility Functions'!$AB$3:$AB$5)","v":0.09},{"$f":"$P$40*valuePL(P21,'Utility Functions'!$AC$3:$AC$7,'Utility Functions'!$AD$3:$AD$7)","v":0.01},{"$f":"$Q$40*valuePL(Q21,'Utility Functions'!$AE$3:$AE$6,'Utility Functions'!$AF$3:$AF$6)","v":0},{"$f":"$R$40*valuePL(R21,'Utility Functions'!$AG$3:$AG$6,'Utility Functions'!$AH$3:$AH$6)","v":0.05},{"$f":"$S$40*valuePL(S21,'Utility Functions'!$AI$3:$AI$6,'Utility Functions'!$AJ$3:$AJ$6)","v":0.05},{"$f":"$T$40*valuePL(T21,'Utility Functions'!$AK$3:$AK$8,'Utility Functions'!$AL$3:$AL$8)","v":1.7999999999999999E-2},{"$f":"$U$40*valuePL(U21,'Utility Functions'!$AM$3:$AM$5,'Utility Functions'!$AN$3:$AN$5)","v":0.03},{"$f":"$V$40*valuePL(V21,'Utility Functions'!$AO$3:$AO$5,'Utility Functions'!$AP$3:$AP$5)","v":2.5000000000000001E-2},{"$f":"$W$40*valuePL(W21,'Utility Functions'!$AQ$3:$AQ$6,'Utility Functions'!$AR$3:$AR$6)","v":0},{"$f":"$X$40*valuePL(X21,'Utility Functions'!$AS$3:$AS$6,'Utility Functions'!$AT$3:$AT$6)","v":0},{"$f":"$Y$40*valuePL(Y21,'Utility Functions'!$AU$3:$AU$6,'Utility Functions'!$AV$3:$AV$6)","v":1.0000000000000002E-2},{"$f":"$Z$40*valuePL(Z21,'Utility Functions'!$AW$3:$AW$5,'Utility Functions'!$AX$3:$AX$5)","v":0.05},{"$f":"$AA$40*valuePL(AA21,'Utility Functions'!$AY$3:$AY$6,'Utility Functions'!$AZ$3:$AZ$6)","v":8.0000000000000002E-3},{"$f":"$AB$40*valuePL(AB21,'Utility Functions'!$BA$3:$BA$5,'Utility Functions'!$BB$3:$BB$5)","v":0},{"$f":"$AC$40*valuePL(AC21,'Utility Functions'!$BC$3:$BC$5,'Utility Functions'!$BD$3:$BD$5)","v":7.4999999999999997E-3},0.55885300951154004,0.55711836291178196]
[{"$f":"A22","v":21},{"$f":"$B$40*(valueE(B22,'Utility Functions'!$B$3,'Utility Functions'!$B$4,'Utility Functions'!$B$5,'Utility Functions'!$B$6))","v":0},{"$f":"$C$40*(valueE(C22,'Utility Functions'!$D$3,'Utility Functions'!$D$4,'Utility Functions'!$D$5,'Utility Functions'!$D$6))","v":0},{"$f":"$D$40*(valuePL(D22,'Utility Functions'!$E$3:$E$5,'Utility Functions'!$F$3:$F$5))","v":0},{"$f":"$E$40*(valuePL(E22,'Utility Functions'!$G$3:$G$5,'Utility Functions'!$H$3:$H$5))","v":0},{"$f":"$F$40*(valuePL(F22,'Utility Functions'!$I$3:$I$4,'Utility Functions'!$J$3:$J$5))","v":0},{"$f":"$G$40*(valueE(G22,'Utility Functions'!$L$3,'Utility Functions'!$L$4,'Utility Functions'!$L$5,'Utility Functions'!$L$6))","v":0},{"$f":"$H$40*(valueE(H22,'Utility Functions'!$N$3,'Utility Functions'!$N$4,'Utility Functions'!$N$5,'Utility Functions'!$N$6))","v":0},{"$f":"$I$40*valuePL(I22,'Utility Functions'!$O$3:$O$6,'Utility Functions'!$P$3:$P$6)","v":0},{"$f":"$J$40*valuePL(J22,'Utility Functions'!$Q$3:$Q$6,'Utility Functions'!$R$3:$R$6)","v":0},{"$f":"$K$40*(valuePL(K22,'Utility Functions'!$S$3:$S$7,'Utility Functions'!$T$3:$T$7))","v":0},{"$f":"$L$40*(valueE(L22,'Utility Functions'!$V$3,'Utility Functions'!$V$4,'Utility Functions'!$V$5,'Utility Functions'!$V$6))","v":0},{"$f":"$M$40*valuePL(M22,'Utility Functions'!$W$3:$W$6,'Utility Functions'!$X$3:$X$6)","v":0},{"$f":"$N$40*valueE(N22,'Utility Functions'!$Z$3,'Utility Functions'!$Z$4,'Utility Functions'!$Z$5,'Utility Functions'!$Z$6)","v":0.03},{"$f":"$O$40*valuePL(O22,'Utility Functions'!$AA$3:$AA$5,'Utility Functions'!$AB$3:$AB$5)","v":0.09},{"$f":"$P$40*valuePL(P22,'Utility Functions'!$AC$3:$AC$7,'Utility Functions'!$AD$3:$AD$7)","v":0},{"$f":"$Q$40*valuePL(Q22,'Utility Functions'!$AE$3:$AE$6,'Utility Functions'!$AF$3:$AF$6)","v":4.0000000000000001E-3},{"$f":"$R$40*valuePL(R22,'Utility Functions'!$AG$3:$AG$6,'Utility Functions'!$AH$3:$AH$6)","v":0.05},{"$f":"$S$40*valuePL(S22,'Utility Functions'!$AI$3:$AI$6,'Utility Functions'!$AJ$3:$AJ$6)","v":0.05},{"$f":"$T$40*valuePL(T22,'Utility Functions'!$AK$3:$AK$8,'Utility Functions'!$AL$3:$AL$8)","v":0.03},{"$f":"$U$40*valuePL(U22,'Utility Functions'!$AM$3:$AM$5,'Utility Functions'!$AN$3:$AN$5)","v":7.4999999999999997E-3},{"$f":"$V$40*valuePL(V22,'Utility Functions'!$AO$3:$AO$5,'Utility Functions'!$AP$3:$AP$5)","v":0},{"$f":"$W$40*valuePL(W22,'Utility Functions'!$AQ$3:$AQ$6,'Utility Functions'!$AR$3:$AR$6)","v":0.03},{"$f":"$X$40*valuePL(X22,'Utility Functions'!$AS$3:$AS$6,'Utility Functions'!$AT$3:$AT$6)","v":0.04},{"$f":"$Y$40*valuePL(Y22,'Utility Functions'!$AU$3:$AU$6,'Utility Functions'!$AV$3:$AV$6)","v":1.0000000000000002E-2},{"$f":"$Z$40*valuePL(Z22,'Utility Functions'!$AW$3:$AW$5,'Utility Functions'!$AX$3:$AX$5)","v":0},{"$f":"$AA$40*valuePL(AA22,'Utility Functions'!$AY$3:$AY$6,'Utility Functions'!$AZ$3:$AZ$6)","v":0.04},{"$f":"$AB$40*valuePL(AB22,'Utility Functions'!$BA$3:$BA$5,'Utility Functions'!$BB$3:$BB$5)","v":0.01},{"$f":"$AC$40*valuePL(AC22,'Utility Functions'!$BC$3:$BC$5,'Utility Functions'!$BD$3:$BD$5)","v":0.03},0.42149999999999999,0.42149999999999999]
[22,{"$f":"$B$40*(valueE(B23,'Utility Functions'!$B$3,'Utility Functions'!$B$4,'Utility Functions'!$B$5,'Utility Functions'!$B$6))","v":0},{"$f":"$C$40*(valueE(C23,'Utility Functions'!$D$3,'Utility Functions'!$D$4,'Utility Functions'!$D$5,'Utility Functions'!$D$6))","v":0},{"$f":"$D$40*(valuePL(D23,'Utility Functions'!$E$3:$E$5,'Utility Functions'!$F$3:$F$5))","v":0},{"$f":"$E$40*(valuePL(E23,'Utility Functions'!$G$3:$G$5,'Utility Functions'!$H$3:$H$5))","v":0},{"$f":"$F$40*(valuePL(F23,'Utility Functions'!$I$3:$I$4,'Utility Functions'!$J$3:$J$5))","v":0},{"$f":"$G$40*(valueE(G23,'Utility Functions'!$L$3,'Utility Functions'!$L$4,'Utility Functions'!$L$5,'Utility Functions'!$L$6))","v":1.2903225806451613E-3},{"$f":"$H$40*(valueE(H23,'Utility Functions'!$N$3,'Utility Functions'!$N$4,'Utility Functions'!$N$5,'Utility Functions'!$N$6))","v":9.1081593927893733E-4},{"$f":"$I$40*valuePL(I23,'Utility Functions'!$O$3:$O$6,'Utility Functions'!$P$3:$P$6)","v":0},{"$f":"$J$40*valuePL(J23,'Utility Functions'!$Q$3:$Q$6,'Utility Functions'!$R$3:$R$6)","v":0},{"$f":"$K$40*(valuePL(K23,'Utility Functions'!$S$3:$S$7,'Utility Functions'!$T$3:$T$7))","v":0},{"$f":"$L$40*(valueE(L23,'Utility Functions'!$V$3,'Utility Functions'!$V$4,'Utility Functions'!$V$5,'Utility Functions'!$V$6))","v":0},{"$f":"$M$40*valuePL(M23,'Utility Functions'!$W$3:$W$6,'Utility Functions'!$X$3:$X$6)","v":0},{"$f":"$N$40*valueE(N23,'Utility Functions'!$Z$3,'Utility Functions'!$Z$4,'Utility Functions'!$Z$5,'Utility Functions'!$Z$6)","v":3.7499999999999999E-3},{"$f":"$O$40*valuePL(O23,'Utility Functions'!$AA$3:$AA$5,'Utility Functions'!$AB$3:$AB$5)","v":0.09},{"$f":"$P$40*valuePL(P23,'Utility Functions'!$AC$3:$AC$7,'Utility Functions'!$AD$3:$AD$7)","v":0.04},{"$f":"$Q$40*valuePL(Q23,'Utility Functions'!$AE$3:$AE$6,'Utility Functions'!$AF$3:$AF$6)","v":0.02},{"$f":"$R$40*valuePL(R23,'Utility Functions'!$AG$3:$AG$6,'Utility Functions'!$AH$3:$AH$6)","v":4.0000000000000008E-2},{"$f":"$S$40*valuePL(S23,'Utility Functions'!$AI$3:$AI$6,'Utility Functions'!$AJ$3:$AJ$6)","v":0.05},{"$f":"$T$40*valuePL(T23,'Utility Functions'!$AK$3:$AK$8,'Utility Functions'!$AL$3:$AL$8)","v":0.03},{"$f":"$U$40*valuePL(U23,'Utility Functions'!$AM$3:$AM$5,'Utility Functions'!$AN$3:$AN$5)","v":0},{"$f":"$V$40*valuePL(V23,'Utility Functions'!$AO$3:$AO$5,'Utility Functions'!$AP$3:$AP$5)","v":2.5000000000000001E-2},{"$f":"$W$40*valuePL(W23,'Utility Functions'!$AQ$3:$AQ$6,'Utility Functions'!$AR$3:$AR$6)","v":0.03},{"$f":"$X$40*valuePL(X23,'Utility Functions'!$AS$3:$AS$6,'Utility Functions'!$AT$3:$AT$6)","v":8.0000000000000002E-3},{"$f":"$Y$40*valuePL(Y23,'Utility Functions'!$AU$3:$AU$6,'Utility Functions'!$AV$3:$AV$6)","v":0},{"$f":"$Z$40*valuePL(Z23,'Utility Functions'!$AW$3:$AW$5,'Utility Functions'!$AX$3:$AX$5)","v":0.05},{"$f":"$AA$40*valuePL(AA23,'Utility Functions'!$AY$3:$AY$6,'Utility Functions'!$AZ$3:$AZ$6)","v":8.0000000000000002E-3},{"$f":"$AB$40*valuePL(AB23,'Utility Functions'!$BA$3:$BA$5,'Utility Functions'!$BB$3:$BB$5)","v":0.04},{"$f":"$AC$40*valuePL(AC23,'Utility Functions'!$BC$3:$BC$5,'Utility Functions'!$BD$3:$BD$5)","v":7.4999999999999997E-3},0.44445113851992418,0.44445113851992418]
[23,{"$f":"$B$40*(valueE(B24,'Utility Functions'!$B$3,'Utility Functions'!$B$4,'Utility Functions'!$B$5,'Utility Functions'!$B$6))","v":2.5041071294184137E-2},{"$f":"$C$40*(valueE(C24,'Utility Functions'!$D$3,'Utility Functions'!$D$4,'Utility Functions'!$D$5,'Utility Functions'!$D$6))","v":2.542345105018548E-2},{"$f":"$D$40*(valuePL(D24,'Utility Functions'!$E$3:$E$5,'Utility Functions'!$F$3:$F$5))","v":0.03},{"$f":"$E$40*(valuePL(E24,'Utility Functions'!$G$3:$G$5,'Utility Functions'!$H$3:$H$5))","v":0},{"$f":"$F$40*(valuePL(F24,'Utility Functions'!$I$3:$I$4,'Utility Functions'!$J$3:$J$5))","v":0},{"$f":"$G$40*(valueE(G24,'Utility Functions'!$L$3,'Utility Functions'!$L$4,'Utility Functions'!$L$5,'Utility Functions'!$L$6))","v":0},{"$f":"$H$40*(valueE(H24,'Utility Functions'!$N$3,'Utility Functions'!$N$4,'Utility Functions'!$N$5,'Utility Functions'!$N$6))","v":0},{"$f":"$I$40*valuePL(I24,'Utility Functions'!$O$3:$O$6,'Utility Functions'!$P$3:$P$6)","v":0},{"$f":"$J$40*valuePL(J24,'Utility Functions'!$Q$3:$Q$6,'Utility Functions'!$R$3:$R$6)","v":0},{"$f":"$K$40*(valuePL(K24,'Utility Functions'!$S$3:$S$7,'Utility Functions'!$T$3:$T$7))","v":0},{"$f":"$L$40*(valueE(L24,'Utility Functions'!$V$3,'Utility Functions'!$V$4,'Utility Functions'!$V$5,'Utility Functions'!$V$6))","v":0},{"$f":"$M$40*valuePL(M24,'Utility Functions'!$W$3:$W$6,'Utility Functions'!$X$3:$X$6)","v":0},{"$f":"$N$40*valueE(N24,'Utility Functions'!$Z$3,'Utility Functions'!$Z$4,'Utility Functions'!$Z$5,'Utility Functions'!$Z$6)","v":0},{"$f":"$O$40*valuePL(O24,'Utility Functions'!$AA$3:$AA$5,'Utility Functions'!$AB$3:$AB$5)","v":0},{"$f":"$P$40*valuePL(P24,'Utility Functions'!$AC$3:$AC$7,'Utility Functions'!$AD$3:$AD$7)","v":0.03},{"$f":"$Q$40*valuePL(Q24,'Utility Functions'!$AE$3:$AE$6,'Utility Functions'!$AF$3:$AF$6)","v":0},{"$f":"$R$40*valuePL(R24,'Utility Functions'!$AG$3:$AG$6,'Utility Functions'!$AH$3:$AH$6)","v":0.05},{"$f":"$S$40*valuePL(S24,'Utility Functions'!$AI$3:$AI$6,'Utility Functions'!$AJ$3:$AJ$6)","v":0.05},{"$f":"$T$40*valuePL(T24,'Utility Functions'!$AK$3:$AK$8,'Utility Functions'!$AL$3:$AL$8)","v":0.03},{"$f":"$U$40*valuePL(U24,'Utility Functions'!$AM$3:$AM$5,'Utility Functions'!$AN$3:$AN$5)","v":0},{"$f":"$V$40*valuePL(V24,'Utility Functions'!$AO$3:$AO$5,'Utility Functions'!$AP$3:$AP$5)","v":0.05},{"$f":"$W$40*valuePL(W24,'Utility Functions'!$AQ$3:$AQ$6,'Utility Functions'!$AR$3:$AR$6)","v":8.0000000000000002E-3},{"$f":"$X$40*valuePL(X24,'Utility Functions'!$AS$3:$AS$6,'Utility Functions'!$AT$3:$AT$6)","v":0.03},{"$f":"$Y$40*valuePL(Y24,'Utility Functions'!$AU$3:$AU$6,'Utility Functions'!$AV$3:$AV$6)","v":1.0000000000000002E-2},{"$f":"$Z$40*valuePL(Z24,'Utility Functions'!$AW$3:$AW$5,'Utility Functions'!$AX$3:$AX$5)","v":2.5000000000000001E-2},{"$f":"$AA$40*valuePL(AA24,'Utility Functions'!$AY$3:$AY$6,'Utility Functions'!$AZ$3:$AZ$6)","v":8.0000000000000002E-3},{"$f":"$AB$40*valuePL(AB24,'Utility Functions'!$BA$3:$BA$5,'Utility Functions'!$BB$3:$BB$5)","v":0},{"$f":"$AC$40*valuePL(AC24,'Utility Functions'!$BC$3:$BC$5,'Utility Functions'!$BD$3:$BD$5)","v":7.4999999999999997E-3},0.37896452234436967,0.3772298757446117]
[24,{"$f":"$B$40*(valueE(B25,'Utility Functions'!$B$3,'Utility Functions'!$B$4,'Utility Functions'!$B$5,'Utility Functions'!$B$6))","v":1.896364549751255E-2},{"$f":"$C$40*(valueE(C25,'Utility Functions'!$D$3,'Utility Functions'!$D$4,'Utility Functions'!$D$5,'Utility Functions'!$D$6))","v":1.3942790146123618E-2},{"$f":"$D$40*(valuePL(D25,'Utility Functions'!$E$3:$E$5,'Utility Functions'!$F$3:$F$5))","v":0.03},{"$f":"$E$40*(valuePL(E25,'Utility Functions'!$G$3:$G$5,'Utility Functions'!$H$3:$H$5))","v":0},{"$f":"$F$40*(valuePL(F25,'Utility Functions'!$I$3:$I$4,'Utility Functions'!$J$3:$J$5))","v":0},{"$f":"$G$40*(valueE(G25,'Utility Functions'!$L$3,'Utility Functions'!$L$4,'Utility Functions'!$L$5,'Utility Functions'!$L$6))","v":0},{"$f":"$H$40*(valueE(H25,'Utility Functions'!$N$3,'Utility Functions'!$N$4,'Utility Functions'!$N$5,'Utility Functions'!$N$6))","v":0},{"$f":"$I$40*valuePL(I25,'Utility Functions'!$O$3:$O$6,'Utility Functions'!$P$3:$P$6)","v":0},{"$f":"$J$40*valuePL(J25,'Utility Functions'!$Q$3:$Q$6,'Utility Functions'!$R$3:$R$6)","v":0},{"$f":"$K$40*(valuePL(K25,'Utility Functions'!$S$3:$S$7,'Utility Functions'!$T$3:$T$7))","v":0},{"$f":"$L$40*(valueE(L25,'Utility Functions'!$V$3,'Utility Functions'!$V$4,'Utility Functions'!$V$5,'Utility Functions'!$V$6))","v":0},{"$f":"$M$40*valuePL(M25,'Utility Functions'!$W$3:$W$6,'Utility Functions'!$X$3:$X$6)","v":0},{"$f":"$N$40*valueE(N25,'Utility Functions'!$Z$3,'Utility Functions'!$Z$4,'Utility Functions'!$Z$5,'Utility Functions'!$Z$6)","v":0},{"$f":"$O$40*valuePL(O25,'Utility Functions'!$AA$3:$AA$5,'Utility Functions'!$AB$3:$AB$5)","v":0},{"$f":"$P$40*valuePL(P25,'Utility Functions'!$AC$3:$AC$7,'Utility Functions'!$AD$3:$AD$7)","v":0},{"$f":"$Q$40*valuePL(Q25,'Utility Functions'!$AE$3:$AE$6,'Utility Functions'!$AF$3:$AF$6)","v":0},{"$f":"$R$40*valuePL(R25,'Utility Functions'!$AG$3:$AG$6,'Utility Functions'!$AH$3:$AH$6)","v":0.05},{"$f":"$S$40*valuePL(S25,'Utility Functions'!$AI$3:$AI$6,'Utility Functions'!$AJ$3:$AJ$6)","v":0.05},{"$f":"$T$40*valuePL(T25,'Utility Functions'!$AK$3:$AK$8,'Utility Functions'!$AL$3:$AL$8)","v":0.03},{"$f":"$U$40*valuePL(U25,'Utility Functions'!$AM$3:$AM$5,'Utility Functions'!$AN$3:$AN$5)","v":0},{"$f":"$V$40*valuePL(V25,'Utility Functions'!$AO$3:$AO$5,'Utility Functions'!$AP$3:$AP$5)","v":0},{"$f":"$W$40*valuePL(W25,'Utility Functions'!$AQ$3:$AQ$6,'Utility Functions'!$AR$3:$AR$6)","v":0.04},{"$f":"$X$40*valuePL(X25,'Utility Functions'!$AS$3:$AS$6,'Utility Functions'!$AT$3:$AT$6)","v":8.0000000000000002E-3},{"$f":"$Y$40*valuePL(Y25,'Utility Functions'!$AU$3:$AU$6,'Utility Functions'!$AV$3:$AV$6)","v":0.05},{"$f":"$Z$40*valuePL(Z25,'Utility Functions'!$AW$3:$AW$5,'Utility Functions'!$AX$3:$AX$5)","v":0.05},{"$f":"$AA$40*valuePL(AA25,'Utility Functions'!$AY$3:$AY$6,'Utility Functions'!$AZ$3:$AZ$6)","v":8.0000000000000002E-3},{"$f":"$AB$40*valuePL(AB25,'Utility Functions'!$BA$3:$BA$5,'Utility Functions'!$BB$3:$BB$5)","v":0},{"$f":"$AC$40*valuePL(AC25,'Utility Functions'!$BC$3:$BC$5,'Utility Functions'!$BD$3:$BD$5)","v":0.03},0.37890643564363613,0.37690508369846576]
[25,{"$f":"$B$40*(valueE(B26,'Utility Functions'!$B$3,'Utility Functions'!$B$4,'Utility Functions'!$B$5,'Utility Functions'!$B$6))","v":2.5041071294184137E-2},{"$f":"$C$40*(valueE(C26,'Utility Functions'!$D$3,'Utility Functions'!$D$4,'Utility Functions'!$D$5,'Utility Functions'!$D$6))","v":2.542345105018548E-2},{"$f":"$D$40*(valuePL(D26,'Utility Functions'!$E$3:$E$5,'Utility Functions'!$F$3:$F$5))","v":0.03},{"$f":"$E$40*(valuePL(E26,'Utility Functions'!$G$3:$G$5,'Utility Functions'!$H$3:$H$5))","v":0},{"$f":"$F$40*(valuePL(F26,'Utility Functions'!$I$3:$I$4,'Utility Functions'!$J$3:$J$5))","v":0},{"$f":"$G$40*(valueE(G26,'Utility Functions'!$L$3,'Utility Functions'!$L$4,'Utility Functions'!$L$5,'Utility Functions'!$L$6))","v":1.4193548387096775E-2},{"$f":"$H$40*(valueE(H26,'Utility Functions'!$N$3,'Utility Functions'!$N$4,'Utility Functions'!$N$5,'Utility Functions'!$N$6))","v":4.383301707779886E-3},{"$f":"$I$40*valuePL(I26,'Utility Functions'!$O$3:$O$6,'Utility Functions'!$P$3:$P$6)","v":0},{"$f":"$J$40*valuePL(J26,'Utility Functions'!$Q$3:$Q$6,'Utility Functions'!$R$3:$R$6)","v":0},{"$f":"$K$40*(valuePL(K26,'Utility Functions'!$S$3:$S$7,'Utility Functions'!$T$3:$T$7))","v":0},{"$f":"$L$40*(valueE(L26,'Utility Functions'!$V$3,'Utility Functions'!$V$4,'Utility Functions'!$V$5,'Utility Functions'!$V$6))","v":0},{"$f":"$M$40*valuePL(M26,'Utility Functions'!$W$3:$W$6,'Utility Functions'!$X$3:$X$6)","v":0},{"$f":"$N$40*valueE(N26,'Utility Functions'!$Z$3,'Utility Functions'!$Z$4,'Utility Functions'!$Z$5,'Utility Functions'!$Z$6)","v":0.03},{"$f":"$O$40*valuePL(O26,'Utility Functions'!$AA$3:$AA$5,'Utility Functions'!$AB$3:$AB$5)","v":2.2499999999999999E-2},{"$f":"$P$40*valuePL(P26,'Utility Functions'!$AC$3:$AC$7,'Utility Functions'!$AD$3:$AD$7)","v":0.02},{"$f":"$Q$40*valuePL(Q26,'Utility Functions'!$AE$3:$AE$6,'Utility Functions'!$AF$3:$AF$6)","v":0.02},{"$f":"$R$40*valuePL(R26,'Utility Functions'!$AG$3:$AG$6,'Utility Functions'!$AH$3:$AH$6)","v":0.05},{"$f":"$S$40*valuePL(S26,'Utility Functions'!$AI$3:$AI$6,'Utility Functions'!$AJ$3:$AJ$6)","v":0.05},{"$f":"$T$40*valuePL(T26,'Utility Functions'!$AK$3:$AK$8,'Utility Functions'!$AL$3:$AL$8)","v":0},{"$f":"$U$40*valuePL(U26,'Utility Functions'!$AM$3:$AM$5,'Utility Functions'!$AN$3:$AN$5)","v":0},{"$f":"$V$40*valuePL(V26,'Utility Functions'!$AO$3:$AO$5,'Utility Functions'!$AP$3:$AP$5)","v":0.05},{"$f":"$W$40*valuePL(W26,'Utility Functions'!$AQ$3:$AQ$6,'Utility Functions'!$AR$3:$AR$6)","v":8.0000000000000002E-3},{"$f":"$X$40*valuePL(X26,'Utility Functions'!$AS$3:$AS$6,'Utility Functions'!$AT$3:$AT$6)","v":0.04},{"$f":"$Y$40*valuePL(Y26,'Utility Functions'!$AU$3:$AU$6,'Utility Functions'!$AV$3:$AV$6)","v":4.0000000000000008E-2},{"$f":"$Z$40*valuePL(Z26,'Utility Functions'!$AW$3:$AW$5,'Utility Functions'!$AX$3:$AX$5)","v":2.5000000000000001E-2},{"$f":"$AA$40*valuePL(AA26,'Utility Functions'!$AY$3:$AY$6,'Utility Functions'!$AZ$3:$AZ$6)","v":8.0000000000000002E-3},{"$f":"$AB$40*valuePL(AB26,'Utility Functions'!$BA$3:$BA$5,'Utility Functions'!$BB$3:$BB$5)","v":0.04},{"$f":"$AC$40*valuePL(AC26,'Utility Functions'!$BC$3:$BC$5,'Utility Functions'!$BD$3:$BD$5)","v":0.03},0.53254137243924626,0.53080672583948829]
[26,{"$f":"$B$40*(valueE(B27,'Utility Functions'!$B$3,'Utility Functions'!$B$4,'Utility Functions'!$B$5,'Utility Functions'!$B$6))","v":2.8998845838620748E-2},{"$f":"$C$40*(valueE(C27,'Utility Functions'!$D$3,'Utility Functions'!$D$4,'Utility Functions'!$D$5,'Utility Functions'!$D$6))","v":2.542345105018548E-2},{"$f":"$D$40*(valuePL(D27,'Utility Functions'!$E$3:$E$5,'Utility Functions'!$F$3:$F$5))","v":0.03},{"$f":"$E$40*(valuePL(E27,'Utility Functions'!$G$3:$G$5,'Utility Functions'!$H$3:$H$5))","v":1.4999999999999999E-2},{"$f":"$F$40*(valuePL(F27,'Utility Functions'!$I$3:$I$4,'Utility Functions'!$J$3:$J$5))","v":0},{"$f":"$G$40*(valueE(G27,'Utility Functions'!$L$3,'Utility Functions'!$L$4,'Utility Functions'!$L$5,'Utility Functions'!$L$6))","v":0},{"$f":"$H$40*(valueE(H27,'Utility Functions'!$N$3,'Utility Functions'!$N$4,'Utility Functions'!$N$5,'Utility Functions'!$N$6))","v":0},{"$f":"$I$40*valuePL(I27,'Utility Functions'!$O$3:$O$6,'Utility Functions'!$P$3:$P$6)","v":0},{"$f":"$J$40*valuePL(J27,'Utility Functions'!$Q$3:$Q$6,'Utility Functions'!$R$3:$R$6)","v":0},{"$f":"$K$40*(valuePL(K27,'Utility Functions'!$S$3:$S$7,'Utility Functions'!$T$3:$T$7))","v":0},{"$f":"$L$40*(valueE(L27,'Utility Functions'!$V$3,'Utility Functions'!$V$4,'Utility Functions'!$V$5,'Utility Functions'!$V$6))","v":0},{"$f":"$M$40*valuePL(M27,'Utility Functions'!$W$3:$W$6,'Utility Functions'!$X$3:$X$6)","v":0},{"$f":"$N$40*valueE(N27,'Utility Functions'!$Z$3,'Utility Functions'!$Z$4,'Utility Functions'!$Z$5,'Utility Functions'!$Z$6)","v":0},{"$f":"$O$40*valuePL(O27,'Utility Functions'!$AA$3:$AA$5,'Utility Functions'!$AB$3:$AB$5)","v":0},{"$f":"$P$40*valuePL(P27,'Utility Functions'!$AC$3:$AC$7,'Utility Functions'!$AD$3:$AD$7)","v":0.03},{"$f":"$Q$40*valuePL(Q27,'Utility Functions'!$AE$3:$AE$6,'Utility Functions'!$AF$3:$AF$6)","v":0},{"$f":"$R$40*valuePL(R27,'Utility Functions'!$AG$3:$AG$6,'Utility Functions'!$AH$3:$AH$6)","v":0.05},{"$f":"$S$40*valuePL(S27,'Utility Functions'!$AI$3:$AI$6,'Utility Functions'!$AJ$3:$AJ$6)","v":0.05},{"$f":"$T$40*valuePL(T27,'Utility Functions'!$AK$3:$AK$8,'Utility Functions'!$AL$3:$AL$8)","v":2.4E-2},{"$f":"$U$40*valuePL(U27,'Utility Functions'!$AM$3:$AM$5,'Utility Functions'!$AN$3:$AN$5)","v":0},{"$f":"$V$40*valuePL(V27,'Utility Functions'!$AO$3:$AO$5,'Utility Functions'!$AP$3:$AP$5)","v":0.05},{"$f":"$W$40*valuePL(W27,'Utility Functions'!$AQ$3:$AQ$6,'Utility Functions'!$AR$3:$AR$6)","v":8.0000000000000002E-3},{"$f":"$X$40*valuePL(X27,'Utility Functions'!$AS$3:$AS$6,'Utility Functions'!$AT$3:$AT$6)","v":0},{"$f":"$Y$40*valuePL(Y27,'Utility Functions'!$AU$3:$AU$6,'Utility Functions'!$AV$3:$AV$6)","v":4.0000000000000008E-2},{"$f":"$Z$40*valuePL(Z27,'Utility Functions'!$AW$3:$AW$5,'Utility Functions'!$AX$3:$AX$5)","v":0},{"$f":"$AA$40*valuePL(AA27,'Utility Functions'!$AY$3:$AY$6,'Utility Functions'!$AZ$3:$AZ$6)","v":8.0000000000000002E-3},{"$f":"$AB$40*valuePL(AB27,'Utility Functions'!$BA$3:$BA$5,'Utility Functions'!$BB$3:$BB$5)","v":0.04},{"$f":"$AC$40*valuePL(AC27,'Utility Functions'!$BC$3:$BC$5,'Utility Functions'!$BD$3:$BD$5)","v":0.03},0.42942229688880618,0.4286593560912294]
[27,{"$f":"$B$40*(valueE(B28,'Utility Functions'!$B$3,'Utility Functions'!$B$4,'Utility Functions'!$B$5,'Utility Functions'!$B$6))","v":0},{"$f":"$C$40*(valueE(C28,'Utility Functions'!$D$3,'Utility Functions'!$D$4,'Utility Functions'!$D$5,'Utility Functions'!$D$6))","v":1.3942790146123618E-2},{"$f":"$D$40*(valuePL(D28,'Utility Functions'!$E$3:$E$5,'Utility Functions'!$F$3:$F$5))","v":0.03},{"$f":"$E$40*(valuePL(E28,'Utility Functions'!$G$3:$G$5,'Utility Functions'!$H$3:$H$5))","v":0},{"$f":"$F$40*(valuePL(F28,'Utility Functions'!$I$3:$I$4,'Utility Functions'!$J$3:$J$5))","v":0},{"$f":"$G$40*(valueE(G28,'Utility Functions'!$L$3,'Utility Functions'!$L$4,'Utility Functions'!$L$5,'Utility Functions'!$L$6))","v":0},{"$f":"$H$40*(valueE(H28,'Utility Functions'!$N$3,'Utility Functions'!$N$4,'Utility Functions'!$N$5,'Utility Functions'!$N$6))","v":0},{"$f":"$I$40*valuePL(I28,'Utility Functions'!$O$3:$O$6,'Utility Functions'!$P$3:$P$6)","v":0},{"$f":"$J$40*valuePL(J28,'Utility Functions'!$Q$3:$Q$6,'Utility Functions'!$R$3:$R$6)","v":0},{"$f":"$K$40*(valuePL(K28,'Utility Functions'!$S$3:$S$7,'Utility Functions'!$T$3:$T$7))","v":0.02},{"$f":"$L$40*(valueE(L28,'Utility Functions'!$V$3,'Utility Functions'!$V$4,'Utility Functions'!$V$5,'Utility Functions'!$V$6))","v":0},{"$f":"$M$40*valuePL(M28,'Utility Functions'!$W$3:$W$6,'Utility Functions'!$X$3:$X$6)","v":2E-3},{"$f":"$N$40*valueE(N28,'Utility Functions'!$Z$3,'Utility Functions'!$Z$4,'Utility Functions'!$Z$5,'Utility Functions'!$Z$6)","v":0},{"$f":"$O$40*valuePL(O28,'Utility Functions'!$AA$3:$AA$5,'Utility Functions'!$AB$3:$AB$5)","v":0},{"$f":"$P$40*valuePL(P28,'Utility Functions'!$AC$3:$AC$7,'Utility Functions'!$AD$3:$AD$7)","v":0.02},{"$f":"$Q$40*valuePL(Q28,'Utility Functions'!$AE$3:$AE$6,'Utility Functions'!$AF$3:$AF$6)","v":0.02},{"$f":"$R$40*valuePL(R28,'Utility Functions'!$AG$3:$AG$6,'Utility Functions'!$AH$3:$AH$6)","v":0.05},{"$f":"$S$40*valuePL(S28,'Utility Functions'!$AI$3:$AI$6,'Utility Functions'!$AJ$3:$AJ$6)","v":0.05},{"$f":"$T$40*valuePL(T28,'Utility Functions'!$AK$3:$AK$8,'Utility Functions'!$AL$3:$AL$8)","v":0.03},{"$f":"$U$40*valuePL(U28,'Utility Functions'!$AM$3:$AM$5,'Utility Functions'!$AN$3:$AN$5)","v":0},{"$f":"$V$40*valuePL(V28,'Utility Functions'!$AO$3:$AO$5,'Utility Functions'!$AP$3:$AP$5)","v":2.5000000000000001E-2},{"$f":"$W$40*valuePL(W28,'Utility Functions'!$AQ$3:$AQ$6,'Utility Functions'!$AR$3:$AR$6)","v":0.03},{"$f":"$X$40*valuePL(X28,'Utility Functions'!$AS$3:$AS$6,'Utility Functions'!$AT$3:$AT$6)","v":0.04},{"$f":"$Y$40*valuePL(Y28,'Utility Functions'!$AU$3:$AU$6,'Utility Functions'!$AV$3:$AV$6)","v":1.0000000000000002E-2},{"$f":"$Z$40*valuePL(Z28,'Utility Functions'!$AW$3:$AW$5,'Utility Functions'!$AX$3:$AX$5)","v":0},{"$f":"$AA$40*valuePL(AA28,'Utility Functions'!$AY$3:$AY$6,'Utility Functions'!$AZ$3:$AZ$6)","v":0},{"$f":"$AB$40*valuePL(AB28,'Utility Functions'!$BA$3:$BA$5,'Utility Functions'!$BB$3:$BB$5)","v":0},{"$f":"$AC$40*valuePL(AC28,'Utility Functions'!$BC$3:$BC$5,'Utility Functions'!$BD$3:$BD$5)","v":0},0.34094279014612355,0.34094279014612355]
[{"$f":"A29","v":28},{"$f":"$B$40*(valueE(B29,'Utility Functions'!$B$3,'Utility Functions'!$B$4,'Utility Functions'!$B$5,'Utility Functions'!$B$6))","v":1.3535671425672068E-2},{"$f":"$C$40*(valueE(C29,'Utility Functions'!$D$3,'Utility Functions'!$D$4,'Utility Functions'!$D$5,'Utility Functions'!$D$6))","v":1.3942790146123618E-2},{"$f":"$D$40*(valuePL(D29,'Utility Functions'!$E$3:$E$5,'Utility Functions'!$F$3:$F$5))","v":0.03},{"$f":"$E$40*(valuePL(E29,'Utility Functions'!$G$3:$G$5,'Utility Functions'!$H$3:$H$5))","v":0},{"$f":"$F$40*(valuePL(F29,'Utility Functions'!$I$3:$I$4,'Utility Functions'!$J$3:$J$5))","v":0.04},{"$f":"$G$40*(valueE(G29,'Utility Functions'!$L$3,'Utility Functions'!$L$4,'Utility Functions'!$L$5,'Utility Functions'!$L$6))","v":0},{"$f":"$H$40*(valueE(H29,'Utility Functions'!$N$3,'Utility Functions'!$N$4,'Utility Functions'!$N$5,'Utility Functions'!$N$6))","v":0},{"$f":"$I$40*valuePL(I29,'Utility Functions'!$O$3:$O$6,'Utility Functions'!$P$3:$P$6)","v":0},{"$f":"$J$40*valuePL(J29,'Utility Functions'!$Q$3:$Q$6,'Utility Functions'!$R$3:$R$6)","v":0},{"$f":"$K$40*(valuePL(K29,'Utility Functions'!$S$3:$S$7,'Utility Functions'!$T$3:$T$7))","v":0},{"$f":"$L$40*(valueE(L29,'Utility Functions'!$V$3,'Utility Functions'!$V$4,'Utility Functions'!$V$5,'Utility Functions'!$V$6))","v":6.6666666666666662E-3},{"$f":"$M$40*valuePL(M29,'Utility Functions'!$W$3:$W$6,'Utility Functions'!$X$3:$X$6)","v":2E-3},{"$f":"$N$40*valueE(N29,'Utility Functions'!$Z$3,'Utility Functions'!$Z$4,'Utility Functions'!$Z$5,'Utility Functions'!$Z$6)","v":0},{"$f":"$O$40*valuePL(O29,'Utility Functions'!$AA$3:$AA$5,'Utility Functions'!$AB$3:$AB$5)","v":0},{"$f":"$P$40*valuePL(P29,'Utility Functions'!$AC$3:$AC$7,'Utility Functions'!$AD$3:$AD$7)","v":0.04},{"$f":"$Q$40*valuePL(Q29,'Utility Functions'!$AE$3:$AE$6,'Utility Functions'!$AF$3:$AF$6)","v":0},{"$f":"$R$40*valuePL(R29,'Utility Functions'!$AG$3:$AG$6,'Utility Functions'!$AH$3:$AH$6)","v":0.05},{"$f":"$S$40*valuePL(S29,'Utility Functions'!$AI$3:$AI$6,'Utility Functions'!$AJ$3:$AJ$6)","v":0.05},{"$f":"$T$40*valuePL(T29,'Utility Functions'!$AK$3:$AK$8,'Utility Functions'!$AL$3:$AL$8)","v":2.4E-2},{"$f":"$U$40*valuePL(U29,'Utility Functions'!$AM$3:$AM$5,'Utility Functions'!$AN$3:$AN$5)","v":0},{"$f":"$V$40*valuePL(V29,'Utility Functions'!$AO$3:$AO$5,'Utility Functions'!$AP$3:$AP$5)","v":0.05},{"$f":"$W$40*valuePL(W29,'Utility Functions'!$AQ$3:$AQ$6,'Utility Functions'!$AR$3:$AR$6)","v":0.04},{"$f":"$X$40*valuePL(X29,'Utility Functions'!$AS$3:$AS$6,'Utility Functions'!$AT$3:$AT$6)","v":0.04},{"$f":"$Y$40*valuePL(Y29,'Utility Functions'!$AU$3:$AU$6,'Utility Functions'!$AV$3:$AV$6)","v":1.0000000000000002E-2},{"$f":"$Z$40*valuePL(Z29,'Utility Functions'!$AW$3:$AW$5,'Utility Functions'!$AX$3:$AX$5)","v":0},{"$f":"$AA$40*valuePL(AA29,'Utility Functions'!$AY$3:$AY$6,'Utility Functions'!$AZ$3:$AZ$6)","v":3.5999999999999997E-2},{"$f":"$AB$40*valuePL(AB29,'Utility Functions'!$BA$3:$BA$5,'Utility Functions'!$BB$3:$BB$5)","v":0.04},{"$f":"$AC$40*valuePL(AC29,'Utility Functions'!$BC$3:$BC$5,'Utility Functions'!$BD$3:$BD$5)","v":7.4999999999999997E-3},0.49364512823846229,0.49191370390613232]
[29,{"$f":"$B$40*(valueE(B30,'Utility Functions'!$B$3,'Utility Functions'!$B$4,'Utility Functions'!$B$5,'Utility Functions'!$B$6))","v":2.5041071294184137E-2},{"$f":"$C$40*(valueE(C30,'Utility Functions'!$D$3,'Utility Functions'!$D$4,'Utility Functions'!$D$5,'Utility Functions'!$D$6))","v":2.1405827917278249E-2},{"$f":"$D$40*(valuePL(D30,'Utility Functions'!$E$3:$E$5,'Utility Functions'!$F$3:$F$5))","v":0.03},{"$f":"$E$40*(valuePL(E30,'Utility Functions'!$G$3:$G$5,'Utility Functions'!$H$3:$H$5))","v":1.4999999999999999E-2},{"$f":"$F$40*(valuePL(F30,'Utility Functions'!$I$3:$I$4,'Utility Functions'!$J$3:$J$5))","v":0},{"$f":"$G$40*(valueE(G30,'Utility Functions'!$L$3,'Utility Functions'!$L$4,'Utility Functions'!$L$5,'Utility Functions'!$L$6))","v":0},{"$f":"$H$40*(valueE(H30,'Utility Functions'!$N$3,'Utility Functions'!$N$4,'Utility Functions'!$N$5,'Utility Functions'!$N$6))","v":0},{"$f":"$I$40*valuePL(I30,'Utility Functions'!$O$3:$O$6,'Utility Functions'!$P$3:$P$6)","v":1.8E-3},{"$f":"$J$40*valuePL(J30,'Utility Functions'!$Q$3:$Q$6,'Utility Functions'!$R$3:$R$6)","v":1.3454545454545455E-2},{"$f":"$K$40*(valuePL(K30,'Utility Functions'!$S$3:$S$7,'Utility Functions'!$T$3:$T$7))","v":0},{"$f":"$L$40*(valueE(L30,'Utility Functions'!$V$3,'Utility Functions'!$V$4,'Utility Functions'!$V$5,'Utility Functions'!$V$6))","v":0.02},{"$f":"$M$40*valuePL(M30,'Utility Functions'!$W$3:$W$6,'Utility Functions'!$X$3:$X$6)","v":1.3454545454545455E-2},{"$f":"$N$40*valueE(N30,'Utility Functions'!$Z$3,'Utility Functions'!$Z$4,'Utility Functions'!$Z$5,'Utility Functions'!$Z$6)","v":0},{"$f":"$O$40*valuePL(O30,'Utility Functions'!$AA$3:$AA$5,'Utility Functions'!$AB$3:$AB$5)","v":0},{"$f":"$P$40*valuePL(P30,'Utility Functions'!$AC$3:$AC$7,'Utility Functions'!$AD$3:$AD$7)","v":0.01},{"$f":"$Q$40*valuePL(Q30,'Utility Functions'!$AE$3:$AE$6,'Utility Functions'!$AF$3:$AF$6)","v":0},{"$f":"$R$40*valuePL(R30,'Utility Functions'!$AG$3:$AG$6,'Utility Functions'!$AH$3:$AH$6)","v":0.05},{"$f":"$S$40*valuePL(S30,'Utility Functions'!$AI$3:$AI$6,'Utility Functions'!$AJ$3:$AJ$6)","v":0.05},{"$f":"$T$40*valuePL(T30,'Utility Functions'!$AK$3:$AK$8,'Utility Functions'!$AL$3:$AL$8)","v":2.4E-2},{"$f":"$U$40*valuePL(U30,'Utility Functions'!$AM$3:$AM$5,'Utility Functions'!$AN$3:$AN$5)","v":0},{"$f":"$V$40*valuePL(V30,'Utility Functions'!$AO$3:$AO$5,'Utility Functions'!$AP$3:$AP$5)","v":0.05},{"$f":"$W$40*valuePL(W30,'Utility Functions'!$AQ$3:$AQ$6,'Utility Functions'!$AR$3:$AR$6)","v":8.0000000000000002E-3},{"$f":"$X$40*valuePL(X30,'Utility Functions'!$AS$3:$AS$6,'Utility Functions'!$AT$3:$AT$6)","v":0},{"$f":"$Y$40*valuePL(Y30,'Utility Functions'!$AU$3:$AU$6,'Utility Functions'!$AV$3:$AV$6)","v":4.0000000000000008E-2},{"$f":"$Z$40*valuePL(Z30,'Utility Functions'!$AW$3:$AW$5,'Utility Functions'!$AX$3:$AX$5)","v":2.5000000000000001E-2},{"$f":"$AA$40*valuePL(AA30,'Utility Functions'!$AY$3:$AY$6,'Utility Functions'!$AZ$3:$AZ$6)","v":8.0000000000000002E-3},{"$f":"$AB$40*valuePL(AB30,'Utility Functions'!$BA$3:$BA$5,'Utility Functions'!$BB$3:$BB$5)","v":0.01},{"$f":"$AC$40*valuePL(AC30,'Utility Functions'!$BC$3:$BC$5,'Utility Functions'!$BD$3:$BD$5)","v":0.03},0.4451559901205534,0.44342134352079532]
[30,{"$f":"$B$40*(valueE(B31,'Utility Functions'!$B$3,'Utility Functions'!$B$4,'Utility Functions'!$B$5,'Utility Functions'!$B$6))","v":2.9959234351431094E-2},{"$f":"$C$40*(valueE(C31,'Utility Functions'!$D$3,'Utility Functions'!$D$4,'Utility Functions'!$D$5,'Utility Functions'!$D$6))","v":2.542345105018548E-2},{"$f":"$D$40*(valuePL(D31,'Utility Functions'!$E$3:$E$5,'Utility Functions'!$F$3:$F$5))","v":0.03},{"$f":"$E$40*(valuePL(E31,'Utility Functions'!$G$3:$G$5,'Utility Functions'!$H$3:$H$5))","v":0},{"$f":"$F$40*(valuePL(F31,'Utility Functions'!$I$3:$I$4,'Utility Functions'!$J$3:$J$5))","v":0},{"$f":"$G$40*(valueE(G31,'Utility Functions'!$L$3,'Utility Functions'!$L$4,'Utility Functions'!$L$5,'Utility Functions'!$L$6))","v":0},{"$f":"$H$40*(valueE(H31,'Utility Functions'!$N$3,'Utility Functions'!$N$4,'Utility Functions'!$N$5,'Utility Functions'!$N$6))","v":0},{"$f":"$I$40*valuePL(I31,'Utility Functions'!$O$3:$O$6,'Utility Functions'!$P$3:$P$6)","v":0},{"$f":"$J$40*valuePL(J31,'Utility Functions'!$Q$3:$Q$6,'Utility Functions'!$R$3:$R$6)","v":0},{"$f":"$K$40*(valuePL(K31,'Utility Functions'!$S$3:$S$7,'Utility Functions'!$T$3:$T$7))","v":0},{"$f":"$L$40*(valueE(L31,'Utility Functions'!$V$3,'Utility Functions'!$V$4,'Utility Functions'!$V$5,'Utility Functions'!$V$6))","v":6.6666666666666662E-3},{"$f":"$M$40*valuePL(M31,'Utility Functions'!$W$3:$W$6,'Utility Functions'!$X$3:$X$6)","v":8.0000000000000004E-4},{"$f":"$N$40*valueE(N31,'Utility Functions'!$Z$3,'Utility Functions'!$Z$4,'Utility Functions'!$Z$5,'Utility Functions'!$Z$6)","v":0},{"$f":"$O$40*valuePL(O31,'Utility Functions'!$AA$3:$AA$5,'Utility Functions'!$AB$3:$AB$5)","v":0},{"$f":"$P$40*valuePL(P31,'Utility Functions'!$AC$3:$AC$7,'Utility Functions'!$AD$3:$AD$7)","v":0},{"$f":"$Q$40*valuePL(Q31,'Utility Functions'!$AE$3:$AE$6,'Utility Functions'!$AF$3:$AF$6)","v":0},{"$f":"$R$40*valuePL(R31,'Utility Functions'!$AG$3:$AG$6,'Utility Functions'!$AH$3:$AH$6)","v":1.0000000000000002E-2},{"$f":"$S$40*valuePL(S31,'Utility Functions'!$AI$3:$AI$6,'Utility Functions'!$AJ$3:$AJ$6)","v":1.6500000000000001E-2},{"$f":"$T$40*valuePL(T31,'Utility Functions'!$AK$3:$AK$8,'Utility Functions'!$AL$3:$AL$8)","v":0},{"$f":"$U$40*valuePL(U31,'Utility Functions'!$AM$3:$AM$5,'Utility Functions'!$AN$3:$AN$5)","v":0},{"$f":"$V$40*valuePL(V31,'Utility Functions'!$AO$3:$AO$5,'Utility Functions'!$AP$3:$AP$5)","v":0},{"$f":"$W$40*valuePL(W31,'Utility Functions'!$AQ$3:$AQ$6,'Utility Functions'!$AR$3:$AR$6)","v":0.04},{"$f":"$X$40*valuePL(X31,'Utility Functions'!$AS$3:$AS$6,'Utility Functions'!$AT$3:$AT$6)","v":8.0000000000000002E-3},{"$f":"$Y$40*valuePL(Y31,'Utility Functions'!$AU$3:$AU$6,'Utility Functions'!$AV$3:$AV$6)","v":4.0000000000000008E-2},{"$f":"$Z$40*valuePL(Z31,'Utility Functions'!$AW$3:$AW$5,'Utility Functions'!$AX$3:$AX$5)","v":0},{"$f":"$AA$40*valuePL(AA31,'Utility Functions'!$AY$3:$AY$6,'Utility Functions'!$AZ$3:$AZ$6)","v":3.5999999999999997E-2},{"$f":"$AB$40*valuePL(AB31,'Utility Functions'!$BA$3:$BA$5,'Utility Functions'!$BB$3:$BB$5)","v":0.04},{"$f":"$AC$40*valuePL(AC31,'Utility Functions'!$BC$3:$BC$5,'Utility Functions'!$BD$3:$BD$5)","v":0},0.28334935206828327,0.2832679369768803]
[31,{"$f":"$B$40*(valueE(B32,'Utility Functions'!$B$3,'Utility Functions'!$B$4,'Utility Functions'!$B$5,'Utility Functions'!$B$6))","v":1.6520156106900608E-2},{"$f":"$C$40*(valueE(C32,'Utility Functions'!$D$3,'Utility Functions'!$D$4,'Utility Functions'!$D$5,'Utility Functions'!$D$6))","v":2.542345105018548E-2},{"$f":"$D$40*(valuePL(D32,'Utility Functions'!$E$3:$E$5,'Utility Functions'!$F$3:$F$5))","v":1.4999999999999999E-2},{"$f":"$E$40*(valuePL(E32,'Utility Functions'!$G$3:$G$5,'Utility Functions'!$H$3:$H$5))","v":0},{"$f":"$F$40*(valuePL(F32,'Utility Functions'!$I$3:$I$4,'Utility Functions'!$J$3:$J$5))","v":0},{"$f":"$G$40*(valueE(G32,'Utility Functions'!$L$3,'Utility Functions'!$L$4,'Utility Functions'!$L$5,'Utility Functions'!$L$6))","v":0},{"$f":"$H$40*(valueE(H32,'Utility Functions'!$N$3,'Utility Functions'!$N$4,'Utility Functions'!$N$5,'Utility Functions'!$N$6))","v":0},{"$f":"$I$40*valuePL(I32,'Utility Functions'!$O$3:$O$6,'Utility Functions'!$P$3:$P$6)","v":2.2636363636363635E-2},{"$f":"$J$40*valuePL(J32,'Utility Functions'!$Q$3:$Q$6,'Utility Functions'!$R$3:$R$6)","v":1.6000000000000001E-3},{"$f":"$K$40*(valuePL(K32,'Utility Functions'!$S$3:$S$7,'Utility Functions'!$T$3:$T$7))","v":0},{"$f":"$L$40*(valueE(L32,'Utility Functions'!$V$3,'Utility Functions'!$V$4,'Utility Functions'!$V$5,'Utility Functions'!$V$6))","v":6.6666666666666662E-3},{"$f":"$M$40*valuePL(M32,'Utility Functions'!$W$3:$W$6,'Utility Functions'!$X$3:$X$6)","v":1.6000000000000001E-3},{"$f":"$N$40*valueE(N32,'Utility Functions'!$Z$3,'Utility Functions'!$Z$4,'Utility Functions'!$Z$5,'Utility Functions'!$Z$6)","v":0},{"$f":"$O$40*valuePL(O32,'Utility Functions'!$AA$3:$AA$5,'Utility Functions'!$AB$3:$AB$5)","v":0},{"$f":"$P$40*valuePL(P32,'Utility Functions'!$AC$3:$AC$7,'Utility Functions'!$AD$3:$AD$7)","v":0.02},{"$f":"$Q$40*valuePL(Q32,'Utility Functions'!$AE$3:$AE$6,'Utility Functions'!$AF$3:$AF$6)","v":0},{"$f":"$R$40*valuePL(R32,'Utility Functions'!$AG$3:$AG$6,'Utility Functions'!$AH$3:$AH$6)","v":0.05},{"$f":"$S$40*valuePL(S32,'Utility Functions'!$AI$3:$AI$6,'Utility Functions'!$AJ$3:$AJ$6)","v":3.3000000000000002E-2},{"$f":"$T$40*valuePL(T32,'Utility Functions'!$AK$3:$AK$8,'Utility Functions'!$AL$3:$AL$8)","v":1.7999999999999999E-2},{"$f":"$U$40*valuePL(U32,'Utility Functions'!$AM$3:$AM$5,'Utility Functions'!$AN$3:$AN$5)","v":0},{"$f":"$V$40*valuePL(V32,'Utility Functions'!$AO$3:$AO$5,'Utility Functions'!$AP$3:$AP$5)","v":2.5000000000000001E-2},{"$f":"$W$40*valuePL(W32,'Utility Functions'!$AQ$3:$AQ$6,'Utility Functions'!$AR$3:$AR$6)","v":0},{"$f":"$X$40*valuePL(X32,'Utility Functions'!$AS$3:$AS$6,'Utility Functions'!$AT$3:$AT$6)","v":8.0000000000000002E-3},{"$f":"$Y$40*valuePL(Y32,'Utility Functions'!$AU$3:$AU$6,'Utility Functions'!$AV$3:$AV$6)","v":1.0000000000000002E-2},{"$f":"$Z$40*valuePL(Z32,'Utility Functions'!$AW$3:$AW$5,'Utility Functions'!$AX$3:$AX$5)","v":0.05},{"$f":"$AA$40*valuePL(AA32,'Utility Functions'!$AY$3:$AY$6,'Utility Functions'!$AZ$3:$AZ$6)","v":3.5999999999999997E-2},{"$f":"$AB$40*valuePL(AB32,'Utility Functions'!$BA$3:$BA$5,'Utility Functions'!$BB$3:$BB$5)","v":0.01},{"$f":"$AC$40*valuePL(AC32,'Utility Functions'!$BC$3:$BC$5,'Utility Functions'!$BD$3:$BD$5)","v":7.4999999999999997E-3},0.35694663746011634,0.35502417415981324]
[{"$f":"A33","v":32},{"$f":"$B$40*(valueE(B33,'Utility Functions'!$B$3,'Utility Functions'!$B$4,'Utility Functions'!$B$5,'Utility Functions'!$B$6))","v":1.896364549751255E-2},{"$f":"$C$40*(valueE(C33,'Utility Functions'!$D$3,'Utility Functions'!$D$4,'Utility Functions'!$D$5,'Utility Functions'!$D$6))","v":8.0518966871447988E-3},{"$f":"$D$40*(valuePL(D33,'Utility Functions'!$E$3:$E$5,'Utility Functions'!$F$3:$F$5))","v":0.03},{"$f":"$E$40*(valuePL(E33,'Utility Functions'!$G$3:$G$5,'Utility Functions'!$H$3:$H$5))","v":0.03},{"$f":"$F$40*(valuePL(F33,'Utility Functions'!$I$3:$I$4,'Utility Functions'!$J$3:$J$5))","v":0.04},{"$f":"$G$40*(valueE(G33,'Utility Functions'!$L$3,'Utility Functions'!$L$4,'Utility Functions'!$L$5,'Utility Functions'!$L$6))","v":4.8387096774193543E-4},{"$f":"$H$40*(valueE(H33,'Utility Functions'!$N$3,'Utility Functions'!$N$4,'Utility Functions'!$N$5,'Utility Functions'!$N$6))","v":1.4516129032258063E-3},{"$f":"$I$40*valuePL(I33,'Utility Functions'!$O$3:$O$6,'Utility Functions'!$P$3:$P$6)","v":1.0363636363636363E-2},{"$f":"$J$40*valuePL(J33,'Utility Functions'!$Q$3:$Q$6,'Utility Functions'!$R$3:$R$6)","v":0.02},{"$f":"$K$40*(valuePL(K33,'Utility Functions'!$S$3:$S$7,'Utility Functions'!$T$3:$T$7))","v":6.909090909090909E-3},{"$f":"$L$40*(valueE(L33,'Utility Functions'!$V$3,'Utility Functions'!$V$4,'Utility Functions'!$V$5,'Utility Functions'!$V$6))","v":0.02},{"$f":"$M$40*valuePL(M33,'Utility Functions'!$W$3:$W$6,'Utility Functions'!$X$3:$X$6)","v":0.02},{"$f":"$N$40*valueE(N33,'Utility Functions'!$Z$3,'Utility Functions'!$Z$4,'Utility Functions'!$Z$5,'Utility Functions'!$Z$6)","v":0},{"$f":"$O$40*valuePL(O33,'Utility Functions'!$AA$3:$AA$5,'Utility Functions'!$AB$3:$AB$5)","v":0},{"$f":"$P$40*valuePL(P33,'Utility Functions'!$AC$3:$AC$7,'Utility Functions'!$AD$3:$AD$7)","v":0.02},{"$f":"$Q$40*valuePL(Q33,'Utility Functions'!$AE$3:$AE$6,'Utility Functions'!$AF$3:$AF$6)","v":0.04},{"$f":"$R$40*valuePL(R33,'Utility Functions'!$AG$3:$AG$6,'Utility Functions'!$AH$3:$AH$6)","v":0.05},{"$f":"$S$40*valuePL(S33,'Utility Functions'!$AI$3:$AI$6,'Utility Functions'!$AJ$3:$AJ$6)","v":0},{"$f":"$T$40*valuePL(T33,'Utility Functions'!$AK$3:$AK$8,'Utility Functions'!$AL$3:$AL$8)","v":2.4E-2},{"$f":"$U$40*valuePL(U33,'Utility Functions'!$AM$3:$AM$5,'Utility Functions'!$AN$3:$AN$5)","v":0},{"$f":"$V$40*valuePL(V33,'Utility Functions'!$AO$3:$AO$5,'Utility Functions'!$AP$3:$AP$5)","v":0},{"$f":"$W$40*valuePL(W33,'Utility Functions'!$AQ$3:$AQ$6,'Utility Functions'!$AR$3:$AR$6)","v":0.03},{"$f":"$X$40*valuePL(X33,'Utility Functions'!$AS$3:$AS$6,'Utility Functions'!$AT$3:$AT$6)","v":8.0000000000000002E-3},{"$f":"$Y$40*valuePL(Y33,'Utility Functions'!$AU$3:$AU$6,'Utility Functions'!$AV$3:$AV$6)","v":4.0000000000000008E-2},{"$f":"$Z$40*valuePL(Z33,'Utility Functions'!$AW$3:$AW$5,'Utility Functions'!$AX$3:$AX$5)","v":2.5000000000000001E-2},{"$f":"$AA$40*valuePL(AA33,'Utility Functions'!$AY$3:$AY$6,'Utility Functions'!$AZ$3:$AZ$6)","v":0},{"$f":"$AB$40*valuePL(AB33,'Utility Functions'!$BA$3:$BA$5,'Utility Functions'!$BB$3:$BB$5)","v":0.04},{"$f":"$AC$40*valuePL(AC33,'Utility Functions'!$BC$3:$BC$5,'Utility Functions'!$BD$3:$BD$5)","v":7.4999999999999997E-3},0.49072375332835239,0.48872240138318201]
[33,{"$f":"$B$40*(valueE(B34,'Utility Functions'!$B$3,'Utility Functions'!$B$4,'Utility Functions'!$B$5,'Utility Functions'!$B$6))","v":2.8175740811551258E-2},{"$f":"$C$40*(valueE(C34,'Utility Functions'!$D$3,'Utility Functions'!$D$4,'Utility Functions'!$D$5,'Utility Functions'!$D$6))","v":2.542345105018548E-2},{"$f":"$D$40*(valuePL(D34,'Utility Functions'!$E$3:$E$5,'Utility Functions'!$F$3:$F$5))","v":0.03},{"$f":"$E$40*(valuePL(E34,'Utility Functions'!$G$3:$G$5,'Utility Functions'!$H$3:$H$5))","v":1.4999999999999999E-2},{"$f":"$F$40*(valuePL(F34,'Utility Functions'!$I$3:$I$4,'Utility Functions'!$J$3:$J$5))","v":0},{"$f":"$G$40*(valueE(G34,'Utility Functions'!$L$3,'Utility Functions'!$L$4,'Utility Functions'!$L$5,'Utility Functions'!$L$6))","v":0},{"$f":"$H$40*(valueE(H34,'Utility Functions'!$N$3,'Utility Functions'!$N$4,'Utility Functions'!$N$5,'Utility Functions'!$N$6))","v":0},{"$f":"$I$40*valuePL(I34,'Utility Functions'!$O$3:$O$6,'Utility Functions'!$P$3:$P$6)","v":0},{"$f":"$J$40*valuePL(J34,'Utility Functions'!$Q$3:$Q$6,'Utility Functions'!$R$3:$R$6)","v":0},{"$f":"$K$40*(valuePL(K34,'Utility Functions'!$S$3:$S$7,'Utility Functions'!$T$3:$T$7))","v":0},{"$f":"$L$40*(valueE(L34,'Utility Functions'!$V$3,'Utility Functions'!$V$4,'Utility Functions'!$V$5,'Utility Functions'!$V$6))","v":0.01},{"$f":"$M$40*valuePL(M34,'Utility Functions'!$W$3:$W$6,'Utility Functions'!$X$3:$X$6)","v":0},{"$f":"$N$40*valueE(N34,'Utility Functions'!$Z$3,'Utility Functions'!$Z$4,'Utility Functions'!$Z$5,'Utility Functions'!$Z$6)","v":0},{"$f":"$O$40*valuePL(O34,'Utility Functions'!$AA$3:$AA$5,'Utility Functions'!$AB$3:$AB$5)","v":0},{"$f":"$P$40*valuePL(P34,'Utility Functions'!$AC$3:$AC$7,'Utility Functions'!$AD$3:$AD$7)","v":0.02},{"$f":"$Q$40*valuePL(Q34,'Utility Functions'!$AE$3:$AE$6,'Utility Functions'!$AF$3:$AF$6)","v":0},{"$f":"$R$40*valuePL(R34,'Utility Functions'!$AG$3:$AG$6,'Utility Functions'!$AH$3:$AH$6)","v":0.05},{"$f":"$S$40*valuePL(S34,'Utility Functions'!$AI$3:$AI$6,'Utility Functions'!$AJ$3:$AJ$6)","v":3.3000000000000002E-2},{"$f":"$T$40*valuePL(T34,'Utility Functions'!$AK$3:$AK$8,'Utility Functions'!$AL$3:$AL$8)","v":0},{"$f":"$U$40*valuePL(U34,'Utility Functions'!$AM$3:$AM$5,'Utility Functions'!$AN$3:$AN$5)","v":0},{"$f":"$V$40*valuePL(V34,'Utility Functions'!$AO$3:$AO$5,'Utility Functions'!$AP$3:$AP$5)","v":2.5000000000000001E-2},{"$f":"$W$40*valuePL(W34,'Utility Functions'!$AQ$3:$AQ$6,'Utility Functions'!$AR$3:$AR$6)","v":0.04},{"$f":"$X$40*valuePL(X34,'Utility Functions'!$AS$3:$AS$6,'Utility Functions'!$AT$3:$AT$6)","v":0},{"$f":"$Y$40*valuePL(Y34,'Utility Functions'!$AU$3:$AU$6,'Utility Functions'!$AV$3:$AV$6)","v":4.0000000000000008E-2},{"$f":"$Z$40*valuePL(Z34,'Utility Functions'!$AW$3:$AW$5,'Utility Functions'!$AX$3:$AX$5)","v":0.05},{"$f":"$AA$40*valuePL(AA34,'Utility Functions'!$AY$3:$AY$6,'Utility Functions'!$AZ$3:$AZ$6)","v":0.04},{"$f":"$AB$40*valuePL(AB34,'Utility Functions'!$BA$3:$BA$5,'Utility Functions'!$BB$3:$BB$5)","v":0},{"$f":"$AC$40*valuePL(AC34,'Utility Functions'!$BC$3:$BC$5,'Utility Functions'!$BD$3:$BD$5)","v":0},0.40659919186173665,0.40551467502143035]
[34,{"$f":"$B$40*(valueE(B35,'Utility Functions'!$B$3,'Utility Functions'!$B$4,'Utility Functions'!$B$5,'Utility Functions'!$B$6))","v":0},{"$f":"$C$40*(valueE(C35,'Utility Functions'!$D$3,'Utility Functions'!$D$4,'Utility Functions'!$D$5,'Utility Functions'!$D$6))","v":0},{"$f":"$D$40*(valuePL(D35,'Utility Functions'!$E$3:$E$5,'Utility Functions'!$F$3:$F$5))","v":0},{"$f":"$E$40*(valuePL(E35,'Utility Functions'!$G$3:$G$5,'Utility Functions'!$H$3:$H$5))","v":0},{"$f":"$F$40*(valuePL(F35,'Utility Functions'!$I$3:$I$4,'Utility Functions'!$J$3:$J$5))","v":0},{"$f":"$G$40*(valueE(G35,'Utility Functions'!$L$3,'Utility Functions'!$L$4,'Utility Functions'!$L$5,'Utility Functions'!$L$6))","v":0},{"$f":"$H$40*(valueE(H35,'Utility Functions'!$N$3,'Utility Functions'!$N$4,'Utility Functions'!$N$5,'Utility Functions'!$N$6))","v":1.7077798861480075E-4},{"$f":"$I$40*valuePL(I35,'Utility Functions'!$O$3:$O$6,'Utility Functions'!$P$3:$P$6)","v":0.03},{"$f":"$J$40*valuePL(J35,'Utility Functions'!$Q$3:$Q$6,'Utility Functions'!$R$3:$R$6)","v":1.8363636363636363E-2},{"$f":"$K$40*(valuePL(K35,'Utility Functions'!$S$3:$S$7,'Utility Functions'!$T$3:$T$7))","v":0.02},{"$f":"$L$40*(valueE(L35,'Utility Functions'!$V$3,'Utility Functions'!$V$4,'Utility Functions'!$V$5,'Utility Functions'!$V$6))","v":0.02},{"$f":"$M$40*valuePL(M35,'Utility Functions'!$W$3:$W$6,'Utility Functions'!$X$3:$X$6)","v":1.8363636363636363E-2},{"$f":"$N$40*valueE(N35,'Utility Functions'!$Z$3,'Utility Functions'!$Z$4,'Utility Functions'!$Z$5,'Utility Functions'!$Z$6)","v":0},{"$f":"$O$40*valuePL(O35,'Utility Functions'!$AA$3:$AA$5,'Utility Functions'!$AB$3:$AB$5)","v":0},{"$f":"$P$40*valuePL(P35,'Utility Functions'!$AC$3:$AC$7,'Utility Functions'!$AD$3:$AD$7)","v":0.02},{"$f":"$Q$40*valuePL(Q35,'Utility Functions'!$AE$3:$AE$6,'Utility Functions'!$AF$3:$AF$6)","v":0},{"$f":"$R$40*valuePL(R35,'Utility Functions'!$AG$3:$AG$6,'Utility Functions'!$AH$3:$AH$6)","v":0.05},{"$f":"$S$40*valuePL(S35,'Utility Functions'!$AI$3:$AI$6,'Utility Functions'!$AJ$3:$AJ$6)","v":0.05},{"$f":"$T$40*valuePL(T35,'Utility Functions'!$AK$3:$AK$8,'Utility Functions'!$AL$3:$AL$8)","v":2.4E-2},{"$f":"$U$40*valuePL(U35,'Utility Functions'!$AM$3:$AM$5,'Utility Functions'!$AN$3:$AN$5)","v":0},{"$f":"$V$40*valuePL(V35,'Utility Functions'!$AO$3:$AO$5,'Utility Functions'!$AP$3:$AP$5)","v":0.05},{"$f":"$W$40*valuePL(W35,'Utility Functions'!$AQ$3:$AQ$6,'Utility Functions'!$AR$3:$AR$6)","v":0.04},{"$f":"$X$40*valuePL(X35,'Utility Functions'!$AS$3:$AS$6,'Utility Functions'!$AT$3:$AT$6)","v":0.04},{"$f":"$Y$40*valuePL(Y35,'Utility Functions'!$AU$3:$AU$6,'Utility Functions'!$AV$3:$AV$6)","v":0},{"$f":"$Z$40*valuePL(Z35,'Utility Functions'!$AW$3:$AW$5,'Utility Functions'!$AX$3:$AX$5)","v":0.05},{"$f":"$AA$40*valuePL(AA35,'Utility Functions'!$AY$3:$AY$6,'Utility Functions'!$AZ$3:$AZ$6)","v":3.5999999999999997E-2},{"$f":"$AB$40*valuePL(AB35,'Utility Functions'!$BA$3:$BA$5,'Utility Functions'!$BB$3:$BB$5)","v":0.01},{"$f":"$AC$40*valuePL(AC35,'Utility Functions'!$BC$3:$BC$5,'Utility Functions'!$BD$3:$BD$5)","v":0},0.47689805071588748,0.47689805071588748]
[35,{"$f":"$B$40*(valueE(B36,'Utility Functions'!$B$3,'Utility Functions'!$B$4,'Utility Functions'!$B$5,'Utility Functions'!$B$6))","v":2.3943140737469053E-2},{"$f":"$C$40*(valueE(C36,'Utility Functions'!$D$3,'Utility Functions'!$D$4,'Utility Functions'!$D$5,'Utility Functions'!$D$6))","v":1.8281994940530583E-2},{"$f":"$D$40*(valuePL(D36,'Utility Functions'!$E$3:$E$5,'Utility Functions'!$F$3:$F$5))","v":1.4999999999999999E-2},{"$f":"$E$40*(valuePL(E36,'Utility Functions'!$G$3:$G$5,'Utility Functions'!$H$3:$H$5))","v":1.4999999999999999E-2},{"$f":"$F$40*(valuePL(F36,'Utility Functions'!$I$3:$I$4,'Utility Functions'!$J$3:$J$5))","v":0.04},{"$f":"$G$40*(valueE(G36,'Utility Functions'!$L$3,'Utility Functions'!$L$4,'Utility Functions'!$L$5,'Utility Functions'!$L$6))","v":0},{"$f":"$H$40*(valueE(H36,'Utility Functions'!$N$3,'Utility Functions'!$N$4,'Utility Functions'!$N$5,'Utility Functions'!$N$6))","v":0},{"$f":"$I$40*valuePL(I36,'Utility Functions'!$O$3:$O$6,'Utility Functions'!$P$3:$P$6)","v":0},{"$f":"$J$40*valuePL(J36,'Utility Functions'!$Q$3:$Q$6,'Utility Functions'!$R$3:$R$6)","v":0},{"$f":"$K$40*(valuePL(K36,'Utility Functions'!$S$3:$S$7,'Utility Functions'!$T$3:$T$7))","v":0.02},{"$f":"$L$40*(valueE(L36,'Utility Functions'!$V$3,'Utility Functions'!$V$4,'Utility Functions'!$V$5,'Utility Functions'!$V$6))","v":1.3333333333333332E-2},{"$f":"$M$40*valuePL(M36,'Utility Functions'!$W$3:$W$6,'Utility Functions'!$X$3:$X$6)","v":2E-3},{"$f":"$N$40*valueE(N36,'Utility Functions'!$Z$3,'Utility Functions'!$Z$4,'Utility Functions'!$Z$5,'Utility Functions'!$Z$6)","v":0.03},{"$f":"$O$40*valuePL(O36,'Utility Functions'!$AA$3:$AA$5,'Utility Functions'!$AB$3:$AB$5)","v":0},{"$f":"$P$40*valuePL(P36,'Utility Functions'!$AC$3:$AC$7,'Utility Functions'!$AD$3:$AD$7)","v":0},{"$f":"$Q$40*valuePL(Q36,'Utility Functions'!$AE$3:$AE$6,'Utility Functions'!$AF$3:$AF$6)","v":0},{"$f":"$R$40*valuePL(R36,'Utility Functions'!$AG$3:$AG$6,'Utility Functions'!$AH$3:$AH$6)","v":0.05},{"$f":"$S$40*valuePL(S36,'Utility Functions'!$AI$3:$AI$6,'Utility Functions'!$AJ$3:$AJ$6)","v":0.05},{"$f":"$T$40*valuePL(T36,'Utility Functions'!$AK$3:$AK$8,'Utility Functions'!$AL$3:$AL$8)","v":1.7999999999999999E-2},{"$f":"$U$40*valuePL(U36,'Utility Functions'!$AM$3:$AM$5,'Utility Functions'!$AN$3:$AN$5)","v":0},{"$f":"$V$40*valuePL(V36,'Utility Functions'!$AO$3:$AO$5,'Utility Functions'!$AP$3:$AP$5)","v":0.05},{"$f":"$W$40*valuePL(W36,'Utility Functions'!$AQ$3:$AQ$6,'Utility Functions'!$AR$3:$AR$6)","v":0.03},{"$f":"$X$40*valuePL(X36,'Utility Functions'!$AS$3:$AS$6,'Utility Functions'!$AT$3:$AT$6)","v":0},{"$f":"$Y$40*valuePL(Y36,'Utility Functions'!$AU$3:$AU$6,'Utility Functions'!$AV$3:$AV$6)","v":1.0000000000000002E-2},{"$f":"$Z$40*valuePL(Z36,'Utility Functions'!$AW$3:$AW$5,'Utility Functions'!$AX$3:$AX$5)","v":0.05},{"$f":"$AA$40*valuePL(AA36,'Utility Functions'!$AY$3:$AY$6,'Utility Functions'!$AZ$3:$AZ$6)","v":0},{"$f":"$AB$40*valuePL(AB36,'Utility Functions'!$BA$3:$BA$5,'Utility Functions'!$BB$3:$BB$5)","v":0.01},{"$f":"$AC$40*valuePL(AC36,'Utility Functions'!$BC$3:$BC$5,'Utility Functions'!$BD$3:$BD$5)","v":7.4999999999999997E-3},0.45305846901133295,0.45120772646574747,null,"management","status","ecol_proc","integration","rigor"]
["Portfolio total",{"$f":"SUMPRODUCT($B$82:$B$116,B$43:B$77)","v":8.14108753568486E-2},{"$f":"SUMPRODUCT($B$82:$B$116,C$43:C$77)","v":9.9967346856383324E-2},0.105,1.4999999999999999E-2,0,1.4193548387096775E-2,4.8102466793168881E-3,2.2636363636363635E-2,1.6000000000000001E-3,0,1.3333333333333332E-2,2.4000000000000002E-3,0.06,4.4999999999999998E-2,0.05,6.4000000000000001E-2,0.21000000000000002,0.19950000000000004,6.6000000000000003E-2,7.4999999999999997E-3,0.15,8.5999999999999993E-2,0.10400000000000001,0.14000000000000004,0.15000000000000002,0.124,0.14000000000000001,3.7499999999999999E-2,1.9938517142493426,1.9887269565657586,null,{"$f":"SUM(B78:F78)","v":0.30137822221323191},{"$f":"SUM(G78:M78)","v":5.8973492036110631E-2},{"$f":"SUM(N78:O78)","v":0.105},{"$f":"SUM(P78:U78)","v":0.59700000000000009},{"$f":"SUM(V78:AC78)","v":0.93149999999999999}]
[]
[]
[null,"Decision variable","Benefit","Cost"]
[{"$f":"A2","v":1},0,{"$f":"AD43","v":0.62852931598576234},{"$f":"AD2","v":700000}]
[{"$f":"A3","v":2},0,{"$f":"AD44","v":0.53424877401727988},{"$f":"AD3","v":5400000}]
[3,0,0.45890624332907692,250000]
[4,0,0.37738087579326757,150000]
[5,0,0.37358983775406607,220000]
[6,0,0.21762541381415162,110000]
[7,0,0.55883167443779502,1000000]
[8,0,0.52659366793040296,5000000]
[9,0,0.45837563615750632,25000]
[10,0,0.42049999999999998,900000]
[11,0,0.48800366568914949,1500000]
[12,1,0.38158740731015961,100000]
[13,0,0.30547532344316031,250000]
[14,0,0.4311611991122532,500000]
[15,0,0.60971431784243146,800000]
[16,0,0.54339393939393943,2000000]
[17,0,0.40209196138985603,500000]
[{"$f":"A19","v":18},1,0.43942694497153706,300000]
[19,0,0.41549503742461386,750000]
[20,0,0.55885300951154004,1500000]
[21,0,0.42149999999999999,900000]
[22,0,0.44445113851992418,750000]
[23,0,0.37896452234436967,1000000]
[24,0,0.37890643564363613,150000]
[25,1,0.53254137243924626,250000]
[26,0,0.42942229688880618,500000]
[27,0,0.34094279014612355,1200000]
[28,0,0.49364512823846229,500000]
[{"$f":"A30","v":29},0,0.4451559901205534,2000000]
[30,1,0.28334935206828327,250000]
[31,1,0.35694663746011634,650000]
[32,0,0.49072375332835239,200000]
[{"$f":"A34","v":33},0,0.40659919186173665,400000]
[34,0,0.47689805071588748,900000]
[{"$f":"A36","v":35},0,0.45305846901133295,900000]
[null,5,{"$f":"SUMPRODUCT(B82:B116,C82:C116)","v":1.9938517142493426},{"$f":"SUMPRODUCT(B82:B116,D82:D116)","v":1550000}]
[]
[null,null,"Cost constraint",15000000]

{"sheet":"Portfolio_B","index":6,"n_rows":119,"n_cols":37,"rows_kept":119,"cut":false,"hidden":false,"merged":[]}
["Project","manage_species","manage_spatial","manage_uncertainty","manage_currentpractices","manage_adaptivemanagement","pop_a","pop_b","pop_spatialscope","pop_temporalscope","hab_quantity","hab_quality","hab_temporal","ecoprocess_spp","ecoprocess_uncertainty","datasharing","broaderimpacts","exisitingpriorities","partners","leverage","alignment","objhyp","response","targettaxa","surveydesign","stats","datamanagement","budget","timeline","cost"]
[1,9,6.25,2,2,0,186,1054,75,5,0,2,0,0,0,4,0,2,3,0,0,2,3,3,3,2,3,2,2,700000]
[2,3,28.2,1,0,0,0,0,0,0,0,2,0,4,1,0,0,3,3,0,0,2,3,3,3,2,3,2,2,5400000]
[3,8,28.2,2,0,0,0,0,0,0,0,2,0,5,1,0,2,0,0,0,1,2,3,3,3,2,1,2,2,250000]
[4,1,6.25,2,0,0,0,0,0,0,0,2,0,4,1,0,1,3,3,4,0,1,3,3,1,0,0,2,1,150000]
[5,4,3.1,2,0,0,0,0,50,2,0,2,0,0,0,0,1,3,3,4,1,0,3,3,2,0,0,2,1,220000]
[6,10,6.2E-2,2,0,0,0,0,10,2,0,2,0,0,0,0,1,0,3,3,0,0,0,3,0,0,0,2,1,110000]
[7,52,18.8,0,2,0,0,0,85,12,85,8,12,8,1,0,0,3,3,0,0,2,0,1,3,2,2,0,2,1000000]
[8,3,18.8,2,1,1,0,0,14,14,14,8,14,0,0,0,3,1,3,0,0,2,3,3,3,2,0,1,1,5000000]
[9,9,15.6,2,1,0,70,140,0,0,0,2,0,0,0,3,0,3,2,1,0,2,3,3,1,2,1,1,2,25000]
[10,0,0,0,0,0,0,0,0,0,0,2,0,6,2,1,2,3,2,2,0,0,2,3,3,1,1,0,2,900000]
[11,0,0,0,0,0,6,102,52,15,52,8,15,3,1,1,0,3,3,2,2,2,1,3,3,1,2,0,1,1500000]
[12,2,15.6,2,1,0,0,0,0,0,0,2,0,0,0,0,1,3,3,3,0,1,1,3,1,2,1,2,0,100000]
[13,0,0,0,0,0,0,12,39,2,39,8,2,7,1,1,0,3,3,0,0,1,0,1,0,2,1,1,1,250000]
[14,6,15.6,1,1,0,0,0,0,0,0,2,0,6,1,1,0,3,3,0,0,1,1,3,3,1,2,1,1,500000]
[15,23,12.5,2,1,1,0,0,23,3,23,8,3,1,2,2,0,2,3,3,2,0,3,1,1,2,3,2,1,800000]
[16,0,0,0,0,0,0,0,100,15,100,7,15,0,0,3,0,3,3,5,0,2,2,2,1,2,3,2,2,2000000]
[17,2,15.6,2,1,1,58,290,0,0,0,8,3,0,0,0,0,3,2,0,0,2,3,1,0,1,0,2,1,500000]
[18,0,0,0,0,0,0,30,0,0,0,2,0,8,1,1,3,3,3,5,1,2,2,1,2,1,2,1,0,300000]
[19,8,3.125,1,2,0,0,0,0,0,0,2,0,8,2,0,0,2,3,0,0,1,1,3,2,0,1,0,1,750000]
[20,9,15.6,1,2,0,0,435,76,10,76,6,10,8,2,1,0,3,3,3,2,1,0,0,1,2,1,0,1,1500000]
[21,0,0,0,0,0,0,0,0,0,0,2,0,8,2,0,1,3,3,5,1,0,2,3,1,0,3,1,2,900000]
[22,0,0,0,0,0,16,64,0,0,0,2,0,1,2,4,2,2,3,5,0,1,2,1,0,2,1,2,1,750000]
[23,9,18.8,2,0,0,0,0,0,0,0,2,0,0,0,3,0,3,3,5,0,2,1,2,1,1,1,0,1,1000000]
[24,5,6.25,2,0,0,0,0,0,0,0,2,0,0,0,0,0,3,3,5,0,0,3,1,3,2,1,0,2,150000]
[25,9,18.8,2,0,0,176,308,0,0,0,2,0,8,1,2,2,3,3,0,0,2,1,3,2,1,1,2,2,250000]
[26,17,18.8,2,1,0,0,0,0,0,0,2,0,0,0,3,0,3,3,4,0,2,1,0,2,0,1,2,2,500000]
[27,0,6.25,2,0,0,0,0,0,0,80,2,5,0,0,2,2,3,3,5,0,1,2,3,1,0,0,0,0,1200000]
[28,3,6.25,2,0,1,0,0,0,0,0,4,5,0,0,4,0,3,3,4,0,2,3,3,1,0,2,2,1,500000]
[29,9,12.5,2,1,0,0,0,15,12,15,8,12,0,0,1,0,3,3,4,0,2,1,0,2,1,1,1,2,2000000]
[30,33,18.8,2,0,0,0,0,0,0,0,4,2,0,0,0,0,1,1,0,0,0,3,1,2,0,2,2,0,250000]
[31,4,18.8,1,0,0,0,0,65,4,0,4,4,0,0,2,0,3,2,3,0,1,0,1,1,2,2,1,1,650000]
[32,5,3.125,2,2,1,6,102,40,16,40,8,16,0,0,2,3,3,0,4,0,0,2,1,2,1,0,2,1,200000]
[33,14,18.8,2,1,0,0,0,0,0,0,5,0,0,0,2,0,3,2,0,0,1,3,0,2,2,3,0,0,400000]
[34,0,0,0,0,0,0,12,100,15,100,8,15,0,0,2,0,3,3,4,0,2,3,3,0,2,2,1,0,900000]
[35,8,9.4,1,1,1,0,0,0,0,100,6,5,8,0,0,0,3,3,3,0,2,2,0,1,2,0,1,1,900000]
[null,{"$f":"SUM(B2:B36)","v":265},{"$f":"SUM(C2:C36)","v":359.86200000000002},46,20,6,518,2549,744,127,724,146,138,93,21,45,24,91,92,86,10,44,66,68,57,43,47,42,41]
[null,{"$f":"B1","v":"manage_species"},{"$f":"C1","v":"manage_spatial"},"manage_uncertainty","manage_currentpractices","manage_adaptivemanagement","pop_a","pop_b","pop_spatialscope","pop_temporalscope","hab_quantity","hab_quality","hab_temporal","ecoprocess_spp","ecoprocess_uncertainty","datasharing","broaderimpacts","exisitingpriorities","partners","leverage","alignment","objhyp","response","targettaxa","surveydesign","stats","datamanagement","budget","timeline"]
[null,"Metric 1","Metric 2","Metric 3","Metric 4","Metric 5","Metric 6a","Metric 6b","Metric 7","Metric 8","Metric 9","Metric 10","Metric 11","Metric 12","Metric 13","Metric 14","Metric 15","Metric 16","Metric 17","Metric 18","Metric 19","Metric 20","Metric 21","Metric 22","Metric 23","Metric 24","Metric 25","Metric 26","Metric 27"]
["Weights",0.03,0.03,0.03,0.03,0.04,1.4999999999999999E-2,1.4999999999999999E-2,0.03,0.02,0.02,0.02,0.02,0.03,0.09,0.04,0.04,0.05,0.05,0.03,0.03,0.05,0.04,0.04,0.05,0.05,0.04,0.04,0.03]
[]
["Project",null,null,null,null,null,null,null,null,null,null,null,null,null,null,null,null,null,null,null,null,null,null,null,null,null,null,null,null,"total","sdm_tool_excel"]
[{"$f":"A2","v":1},{"$f":"$B$40*(valueE(B2,'Utility Functions'!$B$3,'Utility Functions'!$B$4,'Utility Functions'!$B$5,'Utility Functions'!$B$6))","v":2.5041071294184137E-2},{"$f":"$C$40*(valueE(C2,'Utility Functions'!$D$3,'Utility Functions'!$D$4,'Utility Functions'!$D$5,'Utility Functions'!$D$6))","v":1.3942790146123618E-2},{"$f":"$D$40*(valuePL(D2,'Utility Functions'!$E$3:$E$5,'Utility Functions'!$F$3:$F$5))","v":0.03},{"$f":"$E$40*(valuePL(E2,'Utility Functions'!$G$3:$G$5,'Utility Functions'!$H$3:$H$5))","v":0.03},{"$f":"$F$40*(valuePL(F2,'Utility Functions'!$I$3:$I$4,'Utility Functions'!$J$3:$J$5))","v":0},{"$f":"$G$40*(valueE(G2,'Utility Functions'!$L$3,'Utility Functions'!$L$4,'Utility Functions'!$L$5,'Utility Functions'!$L$6))","v":1.4999999999999999E-2},{"$f":"$H$40*(valueE(H2,'Utility Functions'!$N$3,'Utility Functions'!$N$4,'Utility Functions'!$N$5,'Utility Functions'!$N$6))","v":1.4999999999999999E-2},{"$f":"$I$40*valuePL(I2,'Utility Functions'!$O$3:$O$6,'Utility Functions'!$P$3:$P$6)","v":2.7545454545454547E-2},{"$f":"$J$40*valuePL(J2,'Utility Functions'!$Q$3:$Q$6,'Utility Functions'!$R$3:$R$6)","v":2E-3},{"$f":"$K$40*(valuePL(K2,'Utility Functions'!$S$3:$S$7,'Utility Functions'!$T$3:$T$7))","v":0},{"$f":"$L$40*(valueE(L2,'Utility Functions'!$V$3,'Utility Functions'!$V$4,'Utility Functions'!$V$5,'Utility Functions'!$V$6))","v":0},{"$f":"$M$40*valuePL(M2,'Utility Functions'!$W$3:$W$6,'Utility Functions'!$X$3:$X$6)","v":0},{"$f":"$N$40*valueE(N2,'Utility Functions'!$Z$3,'Utility Functions'!$Z$4,'Utility Functions'!$Z$5,'Utility Functions'!$Z$6)","v":0},{"$f":"$O$40*valuePL(O2,'Utility Functions'!$AA$3:$AA$5,'Utility Functions'!$AB$3:$AB$5)","v":0},{"$f":"$P$40*valuePL(P2,'Utility Functions'!$AC$3:$AC$7,'Utility Functions'!$AD$3:$AD$7)","v":0.04},{"$f":"$Q$40*valuePL(Q2,'Utility Functions'!$AE$3:$AE$6,'Utility Functions'!$AF$3:$AF$6)","v":0},{"$f":"$R$40*valuePL(R2,'Utility Functions'!$AG$3:$AG$6,'Utility Functions'!$AH$3:$AH$6)","v":4.0000000000000008E-2},{"$f":"$S$40*valuePL(S2,'Utility Functions'!$AI$3:$AI$6,'Utility Functions'!$AJ$3:$AJ$6)","v":0.05},{"$f":"$T$40*valuePL(T2,'Utility Functions'!$AK$3:$AK$8,'Utility Functions'!$AL$3:$AL$8)","v":0},{"$f":"$U$40*valuePL(U2,'Utility Functions'!$AM$3:$AM$5,'Utility Functions'!$AN$3:$AN$5)","v":0},{"$f":"$V$40*valuePL(V2,'Utility Functions'!$AO$3:$AO$5,'Utility Functions'!$AP$3:$AP$5)","v":0.05},{"$f":"$W$40*valuePL(W2,'Utility Functions'!$AQ$3:$AQ$6,'Utility Functions'!$AR$3:$AR$6)","v":0.04},{"$f":"$X$40*valuePL(X2,'Utility Functions'!$AS$3:$AS$6,'Utility Functions'!$AT$3:$AT$6)","v":0.04},{"$f":"$Y$40*valuePL(Y2,'Utility Functions'!$AU$3:$AU$6,'Utility Functions'!$AV$3:$AV$6)","v":0.05},{"$f":"$Z$40*valuePL(Z2,'Utility Functions'!$AW$3:$AW$5,'Utility Functions'!$AX$3:$AX$5)","v":0.05},{"$f":"$AA$40*valuePL(AA2,'Utility Functions'!$AY$3:$AY$6,'Utility Functions'!$AZ$3:$AZ$6)","v":0.04},{"$f":"$AB$40*valuePL(AB2,'Utility Functions'!$BA$3:$BA$5,'Utility Functions'!$BB$3:$BB$5)","v":0.04},{"$f":"$AC$40*valuePL(AC2,'Utility Functions'!$BC$3:$BC$5,'Utility Functions'!$BD$3:$BD$5)","v":0.03},{"$f":"SUM(B43:AC43)","v":0.62852931598576234},0.62679466938600437]
[{"$f":"A3","v":2},{"$f":"$B$40*(valueE(B3,'Utility Functions'!$B$3,'Utility Functions'!$B$4,'Utility Functions'!$B$5,'Utility Functions'!$B$6))","v":1.3535671425672068E-2},{"$f":"$C$40*(valueE(C3,'Utility Functions'!$D$3,'Utility Functions'!$D$4,'Utility Functions'!$D$5,'Utility Functions'!$D$6))","v":2.8213102591607857E-2},{"$f":"$D$40*(valuePL(D3,'Utility Functions'!$E$3:$E$5,'Utility Functions'!$F$3:$F$5))","v":1.4999999999999999E-2},{"$f":"$E$40*(valuePL(E3,'Utility Functions'!$G$3:$G$5,'Utility Functions'!$H$3:$H$5))","v":0},{"$f":"$F$40*(valuePL(F3,'Utility Functions'!$I$3:$I$4,'Utility Functions'!$J$3:$J$5))","v":0},{"$f":"$G$40*(valueE(G3,'Utility Functions'!$L$3,'Utility Functions'!$L$4,'Utility Functions'!$L$5,'Utility Functions'!$L$6))","v":0},{"$f":"$H$40*(valueE(H3,'Utility Functions'!$N$3,'Utility Functions'!$N$4,'Utility Functions'!$N$5,'Utility Functions'!$N$6))","v":0},{"$f":"$I$40*valuePL(I3,'Utility Functions'!$O$3:$O$6,'Utility Functions'!$P$3:$P$6)","v":0},{"$f":"$J$40*valuePL(J3,'Utility Functions'!$Q$3:$Q$6,'Utility Functions'!$R$3:$R$6)","v":0},{"$f":"$K$40*(valuePL(K3,'Utility Functions'!$S$3:$S$7,'Utility Functions'!$T$3:$T$7))","v":0},{"$f":"$L$40*(valueE(L3,'Utility Functions'!$V$3,'Utility Functions'!$V$4,'Utility Functions'!$V$5,'Utility Functions'!$V$6))","v":0},{"$f":"$M$40*valuePL(M3,'Utility Functions'!$W$3:$W$6,'Utility Functions'!$X$3:$X$6)","v":0},{"$f":"$N$40*valueE(N3,'Utility Functions'!$Z$3,'Utility Functions'!$Z$4,'Utility Functions'!$Z$5,'Utility Functions'!$Z$6)","v":1.4999999999999999E-2},{"$f":"$O$40*valuePL(O3,'Utility Functions'!$AA$3:$AA$5,'Utility Functions'!$AB$3:$AB$5)","v":2.2499999999999999E-2},{"$f":"$P$40*valuePL(P3,'Utility Functions'!$AC$3:$AC$7,'Utility Functions'!$AD$3:$AD$7)","v":0},{"$f":"$Q$40*valuePL(Q3,'Utility Functions'!$AE$3:$AE$6,'Utility Functions'!$AF$3:$AF$6)","v":0},{"$f":"$R$40*valuePL(R3,'Utility Functions'!$AG$3:$AG$6,'Utility Functions'!$AH$3:$AH$6)","v":0.05},{"$f":"$S$40*valuePL(S3,'Utility Functions'!$AI$3:$AI$6,'Utility Functions'!$AJ$3:$AJ$6)","v":0.05},{"$f":"$T$40*valuePL(T3,'Utility Functions'!$AK$3:$AK$8,'Utility Functions'!$AL$3:$AL$8)","v":0},{"$f":"$U$40*valuePL(U3,'Utility Functions'!$AM$3:$AM$5,'Utility Functions'!$AN$3:$AN$5)","v":0},{"$f":"$V$40*valuePL(V3,'Utility Functions'!$AO$3:$AO$5,'Utility Functions'!$AP$3:$AP$5)","v":0.05},{"$f":"$W$40*valuePL(W3,'Utility Functions'!$AQ$3:$AQ$6,'Utility Functions'!$AR$3:$AR$6)","v":0.04},{"$f":"$X$40*valuePL(X3,'Utility Functions'!$AS$3:$AS$6,'Utility Functions'!$AT$3:$AT$6)","v":0.04},{"$f":"$Y$40*valuePL(Y3,'Utility Functions'!$AU$3:$AU$6,'Utility Functions'!$AV$3:$AV$6)","v":0.05},{"$f":"$Z$40*valuePL(Z3,'Utility Functions'!$AW$3:$AW$5,'Utility Functions'!$AX$3:$AX$5)","v":0.05},{"$f":"$AA$40*valuePL(AA3,'Utility Functions'!$AY$3:$AY$6,'Utility Functions'!$AZ$3:$AZ$6)","v":0.04},{"$f":"$AB$40*valuePL(AB3,'Utility Functions'!$BA$3:$BA$5,'Utility Functions'!$BB$3:$BB$5)","v":0.04},{"$f":"$AC$40*valuePL(AC3,'Utility Functions'!$BC$3:$BC$5,'Utility Functions'!$BD$3:$BD$5)","v":0.03},{"$f":"SUM(B44:AC44)","v":0.53424877401727988},0.5325173496849499]
[3,{"$f":"$B$40*(valueE(B4,'Utility Functions'!$B$3,'Utility Functions'!$B$4,'Utility Functions'!$B$5,'Utility Functions'!$B$6))","v":2.3943140737469053E-2},{"$f":"$C$40*(valueE(C4,'Utility Functions'!$D$3,'Utility Functions'!$D$4,'Utility Functions'!$D$5,'Utility Functions'!$D$6))","v":2.8213102591607857E-2},{"$f":"$D$40*(valuePL(D4,'Utility Functions'!$E$3:$E$5,'Utility Functions'!$F$3:$F$5))","v":0.03},{"$f":"$E$40*(valuePL(E4,'Utility Functions'!$G$3:$G$5,'Utility Functions'!$H$3:$H$5))","v":0},{"$f":"$F$40*(valuePL(F4,'Utility Functions'!$I$3:$I$4,'Utility Functions'!$J$3:$J$5))","v":0},{"$f":"$G$40*(valueE(G4,'Utility Functions'!$L$3,'Utility Functions'!$L$4,'Utility Functions'!$L$5,'Utility Functions'!$L$6))","v":0},{"$f":"$H$40*(valueE(H4,'Utility Functions'!$N$3,'Utility Functions'!$N$4,'Utility Functions'!$N$5,'Utility Functions'!$N$6))","v":0},{"$f":"$I$40*valuePL(I4,'Utility Functions'!$O$3:$O$6,'Utility Functions'!$P$3:$P$6)","v":0},{"$f":"$J$40*valuePL(J4,'Utility Functions'!$Q$3:$Q$6,'Utility Functions'!$R$3:$R$6)","v":0},{"$f":"$K$40*(valuePL(K4,'Utility Functions'!$S$3:$S$7,'Utility Functions'!$T$3:$T$7))","v":0},{"$f":"$L$40*(valueE(L4,'Utility Functions'!$V$3,'Utility Functions'!$V$4,'Utility Functions'!$V$5,'Utility Functions'!$V$6))","v":0},{"$f":"$M$40*valuePL(M4,'Utility Functions'!$W$3:$W$6,'Utility Functions'!$X$3:$X$6)","v":0},{"$f":"$N$40*valueE(N4,'Utility Functions'!$Z$3,'Utility Functions'!$Z$4,'Utility Functions'!$Z$5,'Utility Functions'!$Z$6)","v":1.8749999999999999E-2},{"$f":"$O$40*valuePL(O4,'Utility Functions'!$AA$3:$AA$5,'Utility Functions'!$AB$3:$AB$5)","v":2.2499999999999999E-2},{"$f":"$P$40*valuePL(P4,'Utility Functions'!$AC$3:$AC$7,'Utility Functions'!$AD$3:$AD$7)","v":0},{"$f":"$Q$40*valuePL(Q4,'Utility Functions'!$AE$3:$AE$6,'Utility Functions'!$AF$3:$AF$6)","v":0.02},{"$f":"$R$40*valuePL(R4,'Utility Functions'!$AG$3:$AG$6,'Utility Functions'!$AH$3:$AH$6)","v":0},{"$f":"$S$40*valuePL(S4,'Utility Functions'!$AI$3:$AI$6,'Utility Functions'!$AJ$3:$AJ$6)","v":0},{"$f":"$T$40*valuePL(T4,'Utility Functions'!$AK$3:$AK$8,'Utility Functions'!$AL$3:$AL$8)","v":0},{"$f":"$U$40*valuePL(U4,'Utility Functions'!$AM$3:$AM$5,'Utility Functions'!$AN$3:$AN$5)","v":7.4999999999999997E-3},{"$f":"$V$40*valuePL(V4,'Utility Functions'!$AO$3:$AO$5,'Utility Functions'!$AP$3:$AP$5)","v":0.05},{"$f":"$W$40*valuePL(W4,'Utility Functions'!$AQ$3:$AQ$6,'Utility Functions'!$AR$3:$AR$6)","v":0.04},{"$f":"$X$40*valuePL(X4,'Utility Functions'!$AS$3:$AS$6,'Utility Functions'!$AT$3:$AT$6)","v":0.04},{"$f":"$Y$40*valuePL(Y4,'Utility Functions'!$AU$3:$AU$6,'Utility Functions'!$AV$3:$AV$6)","v":0.05},{"$f":"$Z$40*valuePL(Z4,'Utility Functions'!$AW$3:$AW$5,'Utility Functions'!$AX$3:$AX$5)","v":0.05},{"$f":"$AA$40*valuePL(AA4,'Utility Functions'!$AY$3:$AY$6,'Utility Functions'!$AZ$3:$AZ$6)","v":8.0000000000000002E-3},{"$f":"$AB$40*valuePL(AB4,'Utility Functions'!$BA$3:$BA$5,'Utility Functions'!$BB$3:$BB$5)","v":0.04},{"$f":"$AC$40*valuePL(AC4,'Utility Functions'!$BC$3:$BC$5,'Utility Functions'!$BD$3:$BD$5)","v":0.03},0.45890624332907692,0.45705550078349133]
[4,{"$f":"$B$40*(valueE(B5,'Utility Functions'!$B$3,'Utility Functions'!$B$4,'Utility Functions'!$B$5,'Utility Functions'!$B$6))","v":5.4380856471439951E-3},{"$f":"$C$40*(valueE(C5,'Utility Functions'!$D$3,'Utility Functions'!$D$4,'Utility Functions'!$D$5,'Utility Functions'!$D$6))","v":1.3942790146123618E-2},{"$f":"$D$40*(valuePL(D5,'Utility Functions'!$E$3:$E$5,'Utility Functions'!$F$3:$F$5))","v":0.03},{"$f":"$E$40*(valuePL(E5,'Utility Functions'!$G$3:$G$5,'Utility Functions'!$H$3:$H$5))","v":0},{"$f":"$F$40*(valuePL(F5,'Utility Functions'!$I$3:$I$4,'Utility Functions'!$J$3:$J$5))","v":0},{"$f":"$G$40*(valueE(G5,'Utility Functions'!$L$3,'Utility Functions'!$L$4,'Utility Functions'!$L$5,'Utility Functions'!$L$6))","v":0},{"$f":"$H$40*(valueE(H5,'Utility Functions'!$N$3,'Utility Functions'!$N$4,'Utility Functions'!$N$5,'Utility Functions'!$N$6))","v":0},{"$f":"$I$40*valuePL(I5,'Utility Functions'!$O$3:$O$6,'Utility Functions'!$P$3:$P$6)","v":0},{"$f":"$J$40*valuePL(J5,'Utility Functions'!$Q$3:$Q$6,'Utility Functions'!$R$3:$R$6)","v":0},{"$f":"$K$40*(valuePL(K5,'Utility Functions'!$S$3:$S$7,'Utility Functions'!$T$3:$T$7))","v":0},{"$f":"$L$40*(valueE(L5,'Utility Functions'!$V$3,'Utility Functions'!$V$4,'Utility Functions'!$V$5,'Utility Functions'!$V$6))","v":0},{"$f":"$M$40*valuePL(M5,'Utility Functions'!$W$3:$W$6,'Utility Functions'!$X$3:$X$6)","v":0},{"$f":"$N$40*valueE(N5,'Utility Functions'!$Z$3,'Utility Functions'!$Z$4,'Utility Functions'!$Z$5,'Utility Functions'!$Z$6)","v":1.4999999999999999E-2},{"$f":"$O$40*valuePL(O5,'Utility Functions'!$AA$3:$AA$5,'Utility Functions'!$AB$3:$AB$5)","v":2.2499999999999999E-2},{"$f":"$P$40*valuePL(P5,'Utility Functions'!$AC$3:$AC$7,'Utility Functions'!$AD$3:$AD$7)","v":0},{"$f":"$Q$40*valuePL(Q5,'Utility Functions'!$AE$3:$AE$6,'Utility Functions'!$AF$3:$AF$6)","v":4.0000000000000001E-3},{"$f":"$R$40*valuePL(R5,'Utility Functions'!$AG$3:$AG$6,'Utility Functions'!$AH$3:$AH$6)","v":0.05},{"$f":"$S$40*valuePL(S5,'Utility Functions'!$AI$3:$AI$6,'Utility Functions'!$AJ$3:$AJ$6)","v":0.05},{"$f":"$T$40*valuePL(T5,'Utility Functions'!$AK$3:$AK$8,'Utility Functions'!$AL$3:$AL$8)","v":2.4E-2},{"$f":"$U$40*valuePL(U5,'Utility Functions'!$AM$3:$AM$5,'Utility Functions'!$AN$3:$AN$5)","v":0},{"$f":"$V$40*valuePL(V5,'Utility Functions'!$AO$3:$AO$5,'Utility Functions'!$AP$3:$AP$5)","v":2.5000000000000001E-2},{"$f":"$W$40*valuePL(W5,'Utility Functions'!$AQ$3:$AQ$6,'Utility Functions'!$AR$3:$AR$6)","v":0.04},{"$f":"$X$40*valuePL(X5,'Utility Functions'!$AS$3:$AS$6,'Utility Functions'!$AT$3:$AT$6)","v":0.04},{"$f":"$Y$40*valuePL(Y5,'Utility Functions'!$AU$3:$AU$6,'Utility Functions'!$AV$3:$AV$6)","v":1.0000000000000002E-2},{"$f":"$Z$40*valuePL(Z5,'Utility Functions'!$AW$3:$AW$5,'Utility Functions'!$AX$3:$AX$5)","v":0},{"$f":"$AA$40*valuePL(AA5,'Utility Functions'!$AY$3:$AY$6,'Utility Functions'!$AZ$3:$AZ$6)","v":0},{"$f":"$AB$40*valuePL(AB5,'Utility Functions'!$BA$3:$BA$5,'Utility Functions'!$BB$3:$BB$5)","v":0.04},{"$f":"$AC$40*valuePL(AC5,'Utility Functions'!$BC$3:$BC$5,'Utility Functions'!$BD$3:$BD$5)","v":7.4999999999999997E-3},0.37738087579326757,0.37654840351211377]
[5,{"$f":"$B$40*(valueE(B6,'Utility Functions'!$B$3,'Utility Functions'!$B$4,'Utility Functions'!$B$5,'Utility Functions'!$B$6))","v":1.6520156106900608E-2},{"$f":"$C$40*(valueE(C6,'Utility Functions'!$D$3,'Utility Functions'!$D$4,'Utility Functions'!$D$5,'Utility Functions'!$D$6))","v":7.9969543744382362E-3},{"$f":"$D$40*(valuePL(D6,'Utility Functions'!$E$3:$E$5,'Utility Functions'!$F$3:$F$5))","v":0.03},{"$f":"$E$40*(valuePL(E6,'Utility Functions'!$G$3:$G$5,'Utility Functions'!$H$3:$H$5))","v":0},{"$f":"$F$40*(valuePL(F6,'Utility Functions'!$I$3:$I$4,'Utility Functions'!$J$3:$J$5))","v":0},{"$f":"$G$40*(valueE(G6,'Utility Functions'!$L$3,'Utility Functions'!$L$4,'Utility Functions'!$L$5,'Utility Functions'!$L$6))","v":0},{"$f":"$H$40*(valueE(H6,'Utility Functions'!$N$3,'Utility Functions'!$N$4,'Utility Functions'!$N$5,'Utility Functions'!$N$6))","v":0},{"$f":"$I$40*valuePL(I6,'Utility Functions'!$O$3:$O$6,'Utility Functions'!$P$3:$P$6)","v":1.5272727272727275E-2},{"$f":"$J$40*valuePL(J6,'Utility Functions'!$Q$3:$Q$6,'Utility Functions'!$R$3:$R$6)","v":8.0000000000000004E-4},{"$f":"$K$40*(valuePL(K6,'Utility Functions'!$S$3:$S$7,'Utility Functions'!$T$3:$T$7))","v":0},{"$f":"$L$40*(valueE(L6,'Utility Functions'!$V$3,'Utility Functions'!$V$4,'Utility Functions'!$V$5,'Utility Functions'!$V$6))","v":0},{"$f":"$M$40*valuePL(M6,'Utility Functions'!$W$3:$W$6,'Utility Functions'!$X$3:$X$6)","v":0},{"$f":"$N$40*valueE(N6,'Utility Functions'!$Z$3,'Utility Functions'!$Z$4,'Utility Functions'!$Z$5,'Utility Functions'!$Z$6)","v":0},{"$f":"$O$40*valuePL(O6,'Utility Functions'!$AA$3:$AA$5,'Utility Functions'!$AB$3:$AB$5)","v":0},{"$f":"$P$40*valuePL(P6,'Utility Functions'!$AC$3:$AC$7,'Utility Functions'!$AD$3:$AD$7)","v":0},{"$f":"$Q$40*valuePL(Q6,'Utility Functions'!$AE$3:$AE$6,'Utility Functions'!$AF$3:$AF$6)","v":4.0000000000000001E-3},{"$f":"$R$40*valuePL(R6,'Utility Functions'!$AG$3:$AG$6,'Utility Functions'!$AH$3:$AH$6)","v":0.05},{"$f":"$S$40*valuePL(S6,'Utility Functions'!$AI$3:$AI$6,'Utility Functions'!$AJ$3:$AJ$6)","v":0.05},{"$f":"$T$40*valuePL(T6,'Utility Functions'!$AK$3:$AK$8,'Utility Functions'!$AL$3:$AL$8)","v":2.4E-2},{"$f":"$U$40*valuePL(U6,'Utility Functions'!$AM$3:$AM$5,'Utility Functions'!$AN$3:$AN$5)","v":7.4999999999999997E-3},{"$f":"$V$40*valuePL(V6,'Utility Functions'!$AO$3:$AO$5,'Utility Functions'!$AP$3:$AP$5)","v":0},{"$f":"$W$40*valuePL(W6,'Utility Functions'!$AQ$3:$AQ$6,'Utility Functions'!$AR$3:$AR$6)","v":0.04},{"$f":"$X$40*valuePL(X6,'Utility Functions'!$AS$3:$AS$6,'Utility Functions'!$AT$3:$AT$6)","v":0.04},{"$f":"$Y$40*valuePL(Y6,'Utility Functions'!$AU$3:$AU$6,'Utility Functions'!$AV$3:$AV$6)","v":4.0000000000000008E-2},{"$f":"$Z$40*valuePL(Z6,'Utility Functions'!$AW$3:$AW$5,'Utility Functions'!$AX$3:$AX$5)","v":0},{"$f":"$AA$40*valuePL(AA6,'Utility Functions'!$AY$3:$AY$6,'Utility Functions'!$AZ$3:$AZ$6)","v":0},{"$f":"$AB$40*valuePL(AB6,'Utility Functions'!$BA$3:$BA$5,'Utility Functions'!$BB$3:$BB$5)","v":0.04},{"$f":"$AC$40*valuePL(AC6,'Utility Functions'!$BC$3:$BC$5,'Utility Functions'!$BD$3:$BD$5)","v":7.4999999999999997E-3},0.37358983775406607,0.37166737445376297]
[6,{"$f":"$B$40*(valueE(B7,'Utility Functions'!$B$3,'Utility Functions'!$B$4,'Utility Functions'!$B$5,'Utility Functions'!$B$6))","v":2.5939980805710805E-2},{"$f":"$C$40*(valueE(C7,'Utility Functions'!$D$3,'Utility Functions'!$D$4,'Utility Functions'!$D$5,'Utility Functions'!$D$6))","v":1.8543300844080441E-4},{"$f":"$D$40*(valuePL(D7,'Utility Functions'!$E$3:$E$5,'Utility Functions'!$F$3:$F$5))","v":0.03},{"$f":"$E$40*(valuePL(E7,'Utility Functions'!$G$3:$G$5,'Utility Functions'!$H$3:$H$5))","v":0},{"$f":"$F$40*(valuePL(F7,'Utility Functions'!$I$3:$I$4,'Utility Functions'!$J$3:$J$5))","v":0},{"$f":"$G$40*(valueE(G7,'Utility Functions'!$L$3,'Utility Functions'!$L$4,'Utility Functions'!$L$5,'Utility Functions'!$L$6))","v":0},{"$f":"$H$40*(valueE(H7,'Utility Functions'!$N$3,'Utility Functions'!$N$4,'Utility Functions'!$N$5,'Utility Functions'!$N$6))","v":0},{"$f":"$I$40*valuePL(I7,'Utility Functions'!$O$3:$O$6,'Utility Functions'!$P$3:$P$6)","v":1.1999999999999999E-3},{"$f":"$J$40*valuePL(J7,'Utility Functions'!$Q$3:$Q$6,'Utility Functions'!$R$3:$R$6)","v":8.0000000000000004E-4},{"$f":"$K$40*(valuePL(K7,'Utility Functions'!$S$3:$S$7,'Utility Functions'!$T$3:$T$7))","v":0},{"$f":"$L$40*(valueE(L7,'Utility Functions'!$V$3,'Utility Functions'!$V$4,'Utility Functions'!$V$5,'Utility Functions'!$V$6))","v":0},{"$f":"$M$40*valuePL(M7,'Utility Functions'!$W$3:$W$6,'Utility Functions'!$X$3:$X$6)","v":0},{"$f":"$N$40*valueE(N7,'Utility Functions'!$Z$3,'Utility Functions'!$Z$4,'Utility Functions'!$Z$5,'Utility Functions'!$Z$6)","v":0},{"$f":"$O$40*valuePL(O7,'Utility Functions'!$AA$3:$AA$5,'Utility Functions'!$AB$3:$AB$5)","v":0},{"$f":"$P$40*valuePL(P7,'Utility Functions'!$AC$3:$AC$7,'Utility Functions'!$AD$3:$AD$7)","v":0},{"$f":"$Q$40*valuePL(Q7,'Utility Functions'!$AE$3:$AE$6,'Utility Functions'!$AF$3:$AF$6)","v":4.0000000000000001E-3},{"$f":"$R$40*valuePL(R7,'Utility Functions'!$AG$3:$AG$6,'Utility Functions'!$AH$3:$AH$6)","v":0},{"$f":"$S$40*valuePL(S7,'Utility Functions'!$AI$3:$AI$6,'Utility Functions'!$AJ$3:$AJ$6)","v":0.05},{"$f":"$T$40*valuePL(T7,'Utility Functions'!$AK$3:$AK$8,'Utility Functions'!$AL$3:$AL$8)","v":1.7999999999999999E-2},{"$f":"$U$40*valuePL(U7,'Utility Functions'!$AM$3:$AM$5,'Utility Functions'!$AN$3:$AN$5)","v":0},{"$f":"$V$40*valuePL(V7,'Utility Functions'!$AO$3:$AO$5,'Utility Functions'!$AP$3:$AP$5)","v":0},{"$f":"$W$40*valuePL(W7,'Utility Functions'!$AQ$3:$AQ$6,'Utility Functions'!$AR$3:$AR$6)","v":0},{"$f":"$X$40*valuePL(X7,'Utility Functions'!$AS$3:$AS$6,'Utility Functions'!$AT$3:$AT$6)","v":0.04},{"$f":"$Y$40*valuePL(Y7,'Utility Functions'!$AU$3:$AU$6,'Utility Functions'!$AV$3:$AV$6)","v":0},{"$f":"$Z$40*valuePL(Z7,'Utility Functions'!$AW$3:$AW$5,'Utility Functions'!$AX$3:$AX$5)","v":0},{"$f":"$AA$40*valuePL(AA7,'Utility Functions'!$AY$3:$AY$6,'Utility Functions'!$AZ$3:$AZ$6)","v":0},{"$f":"$AB$40*valuePL(AB7,'Utility Functions'!$BA$3:$BA$5,'Utility Functions'!$BB$3:$BB$5)","v":0.04},{"$f":"$AC$40*valuePL(AC7,'Utility Functions'!$BC$3:$BC$5,'Utility Functions'!$BD$3:$BD$5)","v":7.4999999999999997E-3},0.21762541381415162,0.21601950895080207]
[7,{"$f":"$B$40*(valueE(B8,'Utility Functions'!$B$3,'Utility Functions'!$B$4,'Utility Functions'!$B$5,'Utility Functions'!$B$6))","v":2.9999132478518691E-2},{"$f":"$C$40*(valueE(C8,'Utility Functions'!$D$3,'Utility Functions'!$D$4,'Utility Functions'!$D$5,'Utility Functions'!$D$6))","v":2.542345105018548E-2},{"$f":"$D$40*(valuePL(D8,'Utility Functions'!$E$3:$E$5,'Utility Functions'!$F$3:$F$5))","v":0},{"$f":"$E$40*(valuePL(E8,'Utility Functions'!$G$3:$G$5,'Utility Functions'!$H$3:$H$5))","v":0.03},{"$f":"$F$40*(valuePL(F8,'Utility Functions'!$I$3:$I$4,'Utility Functions'!$J$3:$J$5))","v":0},{"$f":"$G$40*(valueE(G8,'Utility Functions'!$L$3,'Utility Functions'!$L$4,'Utility Functions'!$L$5,'Utility Functions'!$L$6))","v":0},{"$f":"$H$40*(valueE(H8,'Utility Functions'!$N$3,'Utility Functions'!$N$4,'Utility Functions'!$N$5,'Utility Functions'!$N$6))","v":0},{"$f":"$I$40*valuePL(I8,'Utility Functions'!$O$3:$O$6,'Utility Functions'!$P$3:$P$6)","v":0.03},{"$f":"$J$40*valuePL(J8,'Utility Functions'!$Q$3:$Q$6,'Utility Functions'!$R$3:$R$6)","v":1.3454545454545455E-2},{"$f":"$K$40*(valuePL(K8,'Utility Functions'!$S$3:$S$7,'Utility Functions'!$T$3:$T$7))","v":0.02},{"$f":"$L$40*(valueE(L8,'Utility Functions'!$V$3,'Utility Functions'!$V$4,'Utility Functions'!$V$5,'Utility Functions'!$V$6))","v":0.02},{"$f":"$M$40*valuePL(M8,'Utility Functions'!$W$3:$W$6,'Utility Functions'!$X$3:$X$6)","v":1.3454545454545455E-2},{"$f":"$N$40*valueE(N8,'Utility Functions'!$Z$3,'Utility Functions'!$Z$4,'Utility Functions'!$Z$5,'Utility Functions'!$Z$6)","v":0.03},{"$f":"$O$40*valuePL(O8,'Utility Functions'!$AA$3:$AA$5,'Utility Functions'!$AB$3:$AB$5)","v":2.2499999999999999E-2},{"$f":"$P$40*valuePL(P8,'Utility Functions'!$AC$3:$AC$7,'Utility Functions'!$AD$3:$AD$7)","v":0},{"$f":"$Q$40*valuePL(Q8,'Utility Functions'!$AE$3:$AE$6,'Utility Functions'!$AF$3:$AF$6)","v":0},{"$f":"$R$40*valuePL(R8,'Utility Functions'!$AG$3:$AG$6,'Utility Functions'!$AH$3:$AH$6)","v":0.05},{"$f":"$S$40*valuePL(S8,'Utility Functions'!$AI$3:$AI$6,'Utility Functions'!$AJ$3:$AJ$6)","v":0.05},{"$f":"$T$40*valuePL(T8,'Utility Functions'!$AK$3:$AK$8,'Utility Functions'!$AL$3:$AL$8)","v":0},{"$f":"$U$40*valuePL(U8,'Utility Functions'!$AM$3:$AM$5,'Utility Functions'!$AN$3:$AN$5)","v":0},{"$f":"$V$40*valuePL(V8,'Utility Functions'!$AO$3:$AO$5,'Utility Functions'!$AP$3:$AP$5)","v":0.05},{"$f":"$W$40*valuePL(W8,'Utility Functions'!$AQ$3:$AQ$6,'Utility Functions'!$AR$3:$AR$6)","v":0},{"$f":"$X$40*valuePL(X8,'Utility Functions'!$AS$3:$AS$6,'Utility Functions'!$AT$3:$AT$6)","v":8.0000000000000002E-3},{"$f":"$Y$40*valuePL(Y8,'Utility Functions'!$AU$3:$AU$6,'Utility Functions'!$AV$3:$AV$6)","v":0.05},{"$f":"$Z$40*valuePL(Z8,'Utility Functions'!$AW$3:$AW$5,'Utility Functions'!$AX$3:$AX$5)","v":0.05},{"$f":"$AA$40*valuePL(AA8,'Utility Functions'!$AY$3:$AY$6,'Utility Functions'!$AZ$3:$AZ$6)","v":3.5999999999999997E-2},{"$f":"$AB$40*valuePL(AB8,'Utility Functions'!$BA$3:$BA$5,'Utility Functions'!$BB$3:$BB$5)","v":0},{"$f":"$AC$40*valuePL(AC8,'Utility Functions'!$BC$3:$BC$5,'Utility Functions'!$BD$3:$BD$5)","v":0.03},0.55883167443779502,0.55882779905507862]
[8,{"$f":"$B$40*(valueE(B9,'Utility Functions'!$B$3,'Utility Functions'!$B$4,'Utility Functions'!$B$5,'Utility Functions'!$B$6))","v":1.3535671425672068E-2},{"$f":"$C$40*(valueE(C9,'Utility Functions'!$D$3,'Utility Functions'!$D$4,'Utility Functions'!$D$5,'Utility Functions'!$D$6))","v":2.542345105018548E-2},{"$f":"$D$40*(valuePL(D9,'Utility Functions'!$E$3:$E$5,'Utility Functions'!$F$3:$F$5))","v":0.03},{"$f":"$E$40*(valuePL(E9,'Utility Functions'!$G$3:$G$5,'Utility Functions'!$H$3:$H$5))","v":1.4999999999999999E-2},{"$f":"$F$40*(valuePL(F9,'Utility Functions'!$I$3:$I$4,'Utility Functions'!$J$3:$J$5))","v":0.04},{"$f":"$G$40*(valueE(G9,'Utility Functions'!$L$3,'Utility Functions'!$L$4,'Utility Functions'!$L$5,'Utility Functions'!$L$6))","v":0},{"$f":"$H$40*(valueE(H9,'Utility Functions'!$N$3,'Utility Functions'!$N$4,'Utility Functions'!$N$5,'Utility Functions'!$N$6))","v":0},{"$f":"$I$40*valuePL(I9,'Utility Functions'!$O$3:$O$6,'Utility Functions'!$P$3:$P$6)","v":1.6800000000000003E-3},{"$f":"$J$40*valuePL(J9,'Utility Functions'!$Q$3:$Q$6,'Utility Functions'!$R$3:$R$6)","v":1.6727272727272726E-2},{"$f":"$K$40*(valuePL(K9,'Utility Functions'!$S$3:$S$7,'Utility Functions'!$T$3:$T$7))","v":0},{"$f":"$L$40*(valueE(L9,'Utility Functions'!$V$3,'Utility Functions'!$V$4,'Utility Functions'!$V$5,'Utility Functions'!$V$6))","v":0.02},{"$f":"$M$40*valuePL(M9,'Utility Functions'!$W$3:$W$6,'Utility Functions'!$X$3:$X$6)","v":1.6727272727272726E-2},{"$f":"$N$40*valueE(N9,'Utility Functions'!$Z$3,'Utility Functions'!$Z$4,'Utility Functions'!$Z$5,'Utility Functions'!$Z$6)","v":0},{"$f":"$O$40*valuePL(O9,'Utility Functions'!$AA$3:$AA$5,'Utility Functions'!$AB$3:$AB$5)","v":0},{"$f":"$P$40*valuePL(P9,'Utility Functions'!$AC$3:$AC$7,'Utility Functions'!$AD$3:$AD$7)","v":0},{"$f":"$Q$40*valuePL(Q9,'Utility Functions'!$AE$3:$AE$6,'Utility Functions'!$AF$3:$AF$6)","v":0.04},{"$f":"$R$40*valuePL(R9,'Utility Functions'!$AG$3:$AG$6,'Utility Functions'!$AH$3:$AH$6)","v":1.0000000000000002E-2},{"$f":"$S$40*valuePL(S9,'Utility Functions'!$AI$3:$AI$6,'Utility Functions'!$AJ$3:$AJ$6)","v":0.05},{"$f":"$T$40*valuePL(T9,'Utility Functions'!$AK$3:$AK$8,'Utility Functions'!$AL$3:$AL$8)","v":0},{"$f":"$U$40*valuePL(U9,'Utility Functions'!$AM$3:$AM$5,'Utility Functions'!$AN$3:$AN$5)","v":0},{"$f":"$V$40*valuePL(V9,'Utility Functions'!$AO$3:$AO$5,'Utility Functions'!$AP$3:$AP$5)","v":0.05},{"$f":"$W$40*valuePL(W9,'Utility Functions'!$AQ$3:$AQ$6,'Utility Functions'!$AR$3:$AR$6)","v":0.04},{"$f":"$X$40*valuePL(X9,'Utility Functions'!$AS$3:$AS$6,'Utility Functions'!$AT$3:$AT$6)","v":0.04},{"$f":"$Y$40*valuePL(Y9,'Utility Functions'!$AU$3:$AU$6,'Utility Functions'!$AV$3:$AV$6)","v":0.05},{"$f":"$Z$40*valuePL(Z9,'Utility Functions'!$AW$3:$AW$5,'Utility Functions'!$AX$3:$AX$5)","v":0.05},{"$f":"$AA$40*valuePL(AA9,'Utility Functions'!$AY$3:$AY$6,'Utility Functions'!$AZ$3:$AZ$6)","v":0},{"$f":"$AB$40*valuePL(AB9,'Utility Functions'!$BA$3:$BA$5,'Utility Functions'!$BB$3:$BB$5)","v":0.01},{"$f":"$AC$40*valuePL(AC9,'Utility Functions'!$BC$3:$BC$5,'Utility Functions'!$BD$3:$BD$5)","v":7.4999999999999997E-3},0.52659366793040296,0.52486224359807299]
[9,{"$f":"$B$40*(valueE(B10,'Utility Functions'!$B$3,'Utility Functions'!$B$4,'Utility Functions'!$B$5,'Utility Functions'!$B$6))","v":2.5041071294184137E-2},{"$f":"$C$40*(valueE(C10,'Utility Functions'!$D$3,'Utility Functions'!$D$4,'Utility Functions'!$D$5,'Utility Functions'!$D$6))","v":2.3696993705826886E-2},{"$f":"$D$40*(valuePL(D10,'Utility Functions'!$E$3:$E$5,'Utility Functions'!$F$3:$F$5))","v":0.03},{"$f":"$E$40*(valuePL(E10,'Utility Functions'!$G$3:$G$5,'Utility Functions'!$H$3:$H$5))","v":1.4999999999999999E-2},{"$f":"$F$40*(valuePL(F10,'Utility Functions'!$I$3:$I$4,'Utility Functions'!$J$3:$J$5))","v":0},{"$f":"$G$40*(valueE(G10,'Utility Functions'!$L$3,'Utility Functions'!$L$4,'Utility Functions'!$L$5,'Utility Functions'!$L$6))","v":5.6451612903225803E-3},{"$f":"$H$40*(valueE(H10,'Utility Functions'!$N$3,'Utility Functions'!$N$4,'Utility Functions'!$N$5,'Utility Functions'!$N$6))","v":1.9924098671726754E-3},{"$f":"$I$40*valuePL(I10,'Utility Functions'!$O$3:$O$6,'Utility Functions'!$P$3:$P$6)","v":0},{"$f":"$J$40*valuePL(J10,'Utility Functions'!$Q$3:$Q$6,'Utility Functions'!$R$3:$R$6)","v":0},{"$f":"$K$40*(valuePL(K10,'Utility Functions'!$S$3:$S$7,'Utility Functions'!$T$3:$T$7))","v":0},{"$f":"$L$40*(valueE(L10,'Utility Functions'!$V$3,'Utility Functions'!$V$4,'Utility Functions'!$V$5,'Utility Functions'!$V$6))","v":0},{"$f":"$M$40*valuePL(M10,'Utility Functions'!$W$3:$W$6,'Utility Functions'!$X$3:$X$6)","v":0},{"$f":"$N$40*valueE(N10,'Utility Functions'!$Z$3,'Utility Functions'!$Z$4,'Utility Functions'!$Z$5,'Utility Functions'!$Z$6)","v":0},{"$f":"$O$40*valuePL(O10,'Utility Functions'!$AA$3:$AA$5,'Utility Functions'!$AB$3:$AB$5)","v":0},{"$f":"$P$40*valuePL(P10,'Utility Functions'!$AC$3:$AC$7,'Utility Functions'!$AD$3:$AD$7)","v":0.03},{"$f":"$Q$40*valuePL(Q10,'Utility Functions'!$AE$3:$AE$6,'Utility Functions'!$AF$3:$AF$6)","v":0},{"$f":"$R$40*valuePL(R10,'Utility Functions'!$AG$3:$AG$6,'Utility Functions'!$AH$3:$AH$6)","v":0.05},{"$f":"$S$40*valuePL(S10,'Utility Functions'!$AI$3:$AI$6,'Utility Functions'!$AJ$3:$AJ$6)","v":3.3000000000000002E-2},{"$f":"$T$40*valuePL(T10,'Utility Functions'!$AK$3:$AK$8,'Utility Functions'!$AL$3:$AL$8)","v":6.0000000000000001E-3},{"$f":"$U$40*valuePL(U10,'Utility Functions'!$AM$3:$AM$5,'Utility Functions'!$AN$3:$AN$5)","v":0},{"$f":"$V$40*valuePL(V10,'Utility Functions'!$AO$3:$AO$5,'Utility Functions'!$AP$3:$AP$5)","v":0.05},{"$f":"$W$40*valuePL(W10,'Utility Functions'!$AQ$3:$AQ$6,'Utility Functions'!$AR$3:$AR$6)","v":0.04},{"$f":"$X$40*valuePL(X10,'Utility Functions'!$AS$3:$AS$6,'Utility Functions'!$AT$3:$AT$6)","v":0.04},{"$f":"$Y$40*valuePL(Y10,'Utility Functions'!$AU$3:$AU$6,'Utility Functions'!$AV$3:$AV$6)","v":1.0000000000000002E-2},{"$f":"$Z$40*valuePL(Z10,'Utility Functions'!$AW$3:$AW$5,'Utility Functions'!$AX$3:$AX$5)","v":0.05},{"$f":"$AA$40*valuePL(AA10,'Utility Functions'!$AY$3:$AY$6,'Utility Functions'!$AZ$3:$AZ$6)","v":8.0000000000000002E-3},{"$f":"$AB$40*valuePL(AB10,'Utility Functions'!$BA$3:$BA$5,'Utility Functions'!$BB$3:$BB$5)","v":0.01},{"$f":"$AC$40*valuePL(AC10,'Utility Functions'!$BC$3:$BC$5,'Utility Functions'!$BD$3:$BD$5)","v":0.03},0.45837563615750632,0.45664098955774823]
[10,{"$f":"$B$40*(valueE(B11,'Utility Functions'!$B$3,'Utility Functions'!$B$4,'Utility Functions'!$B$5,'Utility Functions'!$B$6))","v":0},{"$f":"$C$40*(valueE(C11,'Utility Functions'!$D$3,'Utility Functions'!$D$4,'Utility Functions'!$D$5,'Utility Functions'!$D$6))","v":0},{"$f":"$D$40*(valuePL(D11,'Utility Functions'!$E$3:$E$5,'Utility Functions'!$F$3:$F$5))","v":0},{"$f":"$E$40*(valuePL(E11,'Utility Functions'!$G$3:$G$5,'Utility Functions'!$H$3:$H$5))","v":0},{"$f":"$F$40*(valuePL(F11,'Utility Functions'!$I$3:$I$4,'Utility Functions'!$J$3:$J$5))","v":0},{"$f":"$G$40*(valueE(G11,'Utility Functions'!$L$3,'Utility Functions'!$L$4,'Utility Functions'!$L$5,'Utility Functions'!$L$6))","v":0},{"$f":"$H$40*(valueE(H11,'Utility Functions'!$N$3,'Utility Functions'!$N$4,'Utility Functions'!$N$5,'Utility Functions'!$N$6))","v":0},{"$f":"$I$40*valuePL(I11,'Utility Functions'!$O$3:$O$6,'Utility Functions'!$P$3:$P$6)","v":0},{"$f":"$J$40*valuePL(J11,'Utility Functions'!$Q$3:$Q$6,'Utility Functions'!$R$3:$R$6)","v":0},{"$f":"$K$40*(valuePL(K11,'Utility Functions'!$S$3:$S$7,'Utility Functions'!$T$3:$T$7))","v":0},{"$f":"$L$40*(valueE(L11,'Utility Functions'!$V$3,'Utility Functions'!$V$4,'Utility Functions'!$V$5,'Utility Functions'!$V$6))","v":0},{"$f":"$M$40*valuePL(M11,'Utility Functions'!$W$3:$W$6,'Utility Functions'!$X$3:$X$6)","v":0},{"$f":"$N$40*valueE(N11,'Utility Functions'!$Z$3,'Utility Functions'!$Z$4,'Utility Functions'!$Z$5,'Utility Functions'!$Z$6)","v":2.2499999999999999E-2},{"$f":"$O$40*valuePL(O11,'Utility Functions'!$AA$3:$AA$5,'Utility Functions'!$AB$3:$AB$5)","v":0.09},{"$f":"$P$40*valuePL(P11,'Utility Functions'!$AC$3:$AC$7,'Utility Functions'!$AD$3:$AD$7)","v":0.01},{"$f":"$Q$40*valuePL(Q11,'Utility Functions'!$AE$3:$AE$6,'Utility Functions'!$AF$3:$AF$6)","v":0.02},{"$f":"$R$40*valuePL(R11,'Utility Functions'!$AG$3:$AG$6,'Utility Functions'!$AH$3:$AH$6)","v":0.05},{"$f":"$S$40*valuePL(S11,'Utility Functions'!$AI$3:$AI$6,'Utility Functions'!$AJ$3:$AJ$6)","v":3.3000000000000002E-2},{"$f":"$T$40*valuePL(T11,'Utility Functions'!$AK$3:$AK$8,'Utility Functions'!$AL$3:$AL$8)","v":1.2E-2},{"$f":"$U$40*valuePL(U11,'Utility Functions'!$AM$3:$AM$5,'Utility Functions'!$AN$3:$AN$5)","v":0},{"$f":"$V$40*valuePL(V11,'Utility Functions'!$AO$3:$AO$5,'Utility Functions'!$AP$3:$AP$5)","v":0},{"$f":"$W$40*valuePL(W11,'Utility Functions'!$AQ$3:$AQ$6,'Utility Functions'!$AR$3:$AR$6)","v":0.03},{"$f":"$X$40*valuePL(X11,'Utility Functions'!$AS$3:$AS$6,'Utility Functions'!$AT$3:$AT$6)","v":0.04},{"$f":"$Y$40*valuePL(Y11,'Utility Functions'!$AU$3:$AU$6,'Utility Functions'!$AV$3:$AV$6)","v":0.05},{"$f":"$Z$40*valuePL(Z11,'Utility Functions'!$AW$3:$AW$5,'Utility Functions'!$AX$3:$AX$5)","v":2.5000000000000001E-2},{"$f":"$AA$40*valuePL(AA11,'Utility Functions'!$AY$3:$AY$6,'Utility Functions'!$AZ$3:$AZ$6)","v":8.0000000000000002E-3},{"$f":"$AB$40*valuePL(AB11,'Utility Functions'!$BA$3:$BA$5,'Utility Functions'!$BB$3:$BB$5)","v":0},{"$f":"$AC$40*valuePL(AC11,'Utility Functions'!$BC$3:$BC$5,'Utility Functions'!$BD$3:$BD$5)","v":0.03},0.42049999999999998,0.42049999999999998]
[11,{"$f":"$B$40*(valueE(B12,'Utility Functions'!$B$3,'Utility Functions'!$B$4,'Utility Functions'!$B$5,'Utility Functions'!$B$6))","v":0},{"$f":"$C$40*(valueE(C12,'Utility Functions'!$D$3,'Utility Functions'!$D$4,'Utility Functions'!$D$5,'Utility Functions'!$D$6))","v":0},{"$f":"$D$40*(valuePL(D12,'Utility Functions'!$E$3:$E$5,'Utility Functions'!$F$3:$F$5))","v":0},{"$f":"$E$40*(valuePL(E12,'Utility Functions'!$G$3:$G$5,'Utility Functions'!$H$3:$H$5))","v":0},{"$f":"$F$40*(valuePL(F12,'Utility Functions'!$I$3:$I$4,'Utility Functions'!$J$3:$J$5))","v":0},{"$f":"$G$40*(valueE(G12,'Utility Functions'!$L$3,'Utility Functions'!$L$4,'Utility Functions'!$L$5,'Utility Functions'!$L$6))","v":4.8387096774193543E-4},{"$f":"$H$40*(valueE(H12,'Utility Functions'!$N$3,'Utility Functions'!$N$4,'Utility Functions'!$N$5,'Utility Functions'!$N$6))","v":1.4516129032258063E-3},{"$f":"$I$40*valuePL(I12,'Utility Functions'!$O$3:$O$6,'Utility Functions'!$P$3:$P$6)","v":1.6254545454545456E-2},{"$f":"$J$40*valuePL(J12,'Utility Functions'!$Q$3:$Q$6,'Utility Functions'!$R$3:$R$6)","v":1.8363636363636363E-2},{"$f":"$K$40*(valuePL(K12,'Utility Functions'!$S$3:$S$7,'Utility Functions'!$T$3:$T$7))","v":1.0836363636363637E-2},{"$f":"$L$40*(valueE(L12,'Utility Functions'!$V$3,'Utility Functions'!$V$4,'Utility Functions'!$V$5,'Utility Functions'!$V$6))","v":0.02},{"$f":"$M$40*valuePL(M12,'Utility Functions'!$W$3:$W$6,'Utility Functions'!$X$3:$X$6)","v":1.8363636363636363E-2},{"$f":"$N$40*valueE(N12,'Utility Functions'!$Z$3,'Utility Functions'!$Z$4,'Utility Functions'!$Z$5,'Utility Functions'!$Z$6)","v":1.125E-2},{"$f":"$O$40*valuePL(O12,'Utility Functions'!$AA$3:$AA$5,'Utility Functions'!$AB$3:$AB$5)","v":2.2499999999999999E-2},{"$f":"$P$40*valuePL(P12,'Utility Functions'!$AC$3:$AC$7,'Utility Functions'!$AD$3:$AD$7)","v":0.01},{"$f":"$Q$40*valuePL(Q12,'Utility Functions'!$AE$3:$AE$6,'Utility Functions'!$AF$3:$AF$6)","v":0},{"$f":"$R$40*valuePL(R12,'Utility Functions'!$AG$3:$AG$6,'Utility Functions'!$AH$3:$AH$6)","v":0.05},{"$f":"$S$40*valuePL(S12,'Utility Functions'!$AI$3:$AI$6,'Utility Functions'!$AJ$3:$AJ$6)","v":0.05},{"$f":"$T$40*valuePL(T12,'Utility Functions'!$AK$3:$AK$8,'Utility Functions'!$AL$3:$AL$8)","v":1.2E-2},{"$f":"$U$40*valuePL(U12,'Utility Functions'!$AM$3:$AM$5,'Utility Functions'!$AN$3:$AN$5)","v":0.03},{"$f":"$V$40*valuePL(V12,'Utility Functions'!$AO$3:$AO$5,'Utility Functions'!$AP$3:$AP$5)","v":0.05},{"$f":"$W$40*valuePL(W12,'Utility Functions'!$AQ$3:$AQ$6,'Utility Functions'!$AR$3:$AR$6)","v":8.0000000000000002E-3},{"$f":"$X$40*valuePL(X12,'Utility Functions'!$AS$3:$AS$6,'Utility Functions'!$AT$3:$AT$6)","v":0.04},{"$f":"$Y$40*valuePL(Y12,'Utility Functions'!$AU$3:$AU$6,'Utility Functions'!$AV$3:$AV$6)","v":0.05},{"$f":"$Z$40*valuePL(Z12,'Utility Functions'!$AW$3:$AW$5,'Utility Functions'!$AX$3:$AX$5)","v":2.5000000000000001E-2},{"$f":"$AA$40*valuePL(AA12,'Utility Functions'!$AY$3:$AY$6,'Utility Functions'!$AZ$3:$AZ$6)","v":3.5999999999999997E-2},{"$f":"$AB$40*valuePL(AB12,'Utility Functions'!$BA$3:$BA$5,'Utility Functions'!$BB$3:$BB$5)","v":0},{"$f":"$AC$40*valuePL(AC12,'Utility Functions'!$BC$3:$BC$5,'Utility Functions'!$BD$3:$BD$5)","v":7.4999999999999997E-3},0.48800366568914949,0.48800366568914949]
[12,{"$f":"$B$40*(valueE(B13,'Utility Functions'!$B$3,'Utility Functions'!$B$4,'Utility Functions'!$B$5,'Utility Functions'!$B$6))","v":9.8904136043327599E-3},{"$f":"$C$40*(valueE(C13,'Utility Functions'!$D$3,'Utility Functions'!$D$4,'Utility Functions'!$D$5,'Utility Functions'!$D$6))","v":2.3696993705826886E-2},{"$f":"$D$40*(valuePL(D13,'Utility Functions'!$E$3:$E$5,'Utility Functions'!$F$3:$F$5))","v":0.03},{"$f":"$E$40*(valuePL(E13,'Utility Functions'!$G$3:$G$5,'Utility Functions'!$H$3:$H$5))","v":1.4999999999999999E-2},{"$f":"$F$40*(valuePL(F13,'Utility Functions'!$I$3:$I$4,'Utility Functions'!$J$3:$J$5))","v":0},{"$f":"$G$40*(valueE(G13,'Utility Functions'!$L$3,'Utility Functions'!$L$4,'Utility Functions'!$L$5,'Utility Functions'!$L$6))","v":0},{"$f":"$H$40*(valueE(H13,'Utility Functions'!$N$3,'Utility Functions'!$N$4,'Utility Functions'!$N$5,'Utility Functions'!$N$6))","v":0},{"$f":"$I$40*valuePL(I13,'Utility Functions'!$O$3:$O$6,'Utility Functions'!$P$3:$P$6)","v":0},{"$f":"$J$40*valuePL(J13,'Utility Functions'!$Q$3:$Q$6,'Utility Functions'!$R$3:$R$6)","v":0},{"$f":"$K$40*(valuePL(K13,'Utility Functions'!$S$3:$S$7,'Utility Functions'!$T$3:$T$7))","v":0},{"$f":"$L$40*(valueE(L13,'Utility Functions'!$V$3,'Utility Functions'!$V$4,'Utility Functions'!$V$5,'Utility Functions'!$V$6))","v":0},{"$f":"$M$40*valuePL(M13,'Utility Functions'!$W$3:$W$6,'Utility Functions'!$X$3:$X$6)","v":0},{"$f":"$N$40*valueE(N13,'Utility Functions'!$Z$3,'Utility Functions'!$Z$4,'Utility Functions'!$Z$5,'Utility Functions'!$Z$6)","v":0},{"$f":"$O$40*valuePL(O13,'Utility Functions'!$AA$3:$AA$5,'Utility Functions'!$AB$3:$AB$5)","v":0},{"$f":"$P$40*valuePL(P13,'Utility Functions'!$AC$3:$AC$7,'Utility Functions'!$AD$3:$AD$7)","v":0},{"$f":"$Q$40*valuePL(Q13,'Utility Functions'!$AE$3:$AE$6,'Utility Functions'!$AF$3:$AF$6)","v":4.0000000000000001E-3},{"$f":"$R$40*valuePL(R13,'Utility Functions'!$AG$3:$AG$6,'Utility Functions'!$AH$3:$AH$6)","v":0.05},{"$f":"$S$40*valuePL(S13,'Utility Functions'!$AI$3:$AI$6,'Utility Functions'!$AJ$3:$AJ$6)","v":0.05},{"$f":"$T$40*valuePL(T13,'Utility Functions'!$AK$3:$AK$8,'Utility Functions'!$AL$3:$AL$8)","v":1.7999999999999999E-2},{"$f":"$U$40*valuePL(U13,'Utility Functions'!$AM$3:$AM$5,'Utility Functions'!$AN$3:$AN$5)","v":0},{"$f":"$V$40*valuePL(V13,'Utility Functions'!$AO$3:$AO$5,'Utility Functions'!$AP$3:$AP$5)","v":2.5000000000000001E-2},{"$f":"$W$40*valuePL(W13,'Utility Functions'!$AQ$3:$AQ$6,'Utility Functions'!$AR$3:$AR$6)","v":8.0000000000000002E-3},{"$f":"$X$40*valuePL(X13,'Utility Functions'!$AS$3:$AS$6,'Utility Functions'!$AT$3:$AT$6)","v":0.04},{"$f":"$Y$40*valuePL(Y13,'Utility Functions'!$AU$3:$AU$6,'Utility Functions'!$AV$3:$AV$6)","v":1.0000000000000002E-2},{"$f":"$Z$40*valuePL(Z13,'Utility Functions'!$AW$3:$AW$5,'Utility Functions'!$AX$3:$AX$5)","v":0.05},{"$f":"$AA$40*valuePL(AA13,'Utility Functions'!$AY$3:$AY$6,'Utility Functions'!$AZ$3:$AZ$6)","v":8.0000000000000002E-3},{"$f":"$AB$40*valuePL(AB13,'Utility Functions'!$BA$3:$BA$5,'Utility Functions'!$BB$3:$BB$5)","v":0.04},{"$f":"$AC$40*valuePL(AC13,'Utility Functions'!$BC$3:$BC$5,'Utility Functions'!$BD$3:$BD$5)","v":0},0.38158740731015961,0.38020117461803976]
[13,{"$f":"$B$40*(valueE(B14,'Utility Functions'!$B$3,'Utility Functions'!$B$4,'Utility Functions'!$B$5,'Utility Functions'!$B$6))","v":0},{"$f":"$C$40*(valueE(C14,'Utility Functions'!$D$3,'Utility Functions'!$D$4,'Utility Functions'!$D$5,'Utility Functions'!$D$6))","v":0},{"$f":"$D$40*(valuePL(D14,'Utility Functions'!$E$3:$E$5,'Utility Functions'!$F$3:$F$5))","v":0},{"$f":"$E$40*(valuePL(E14,'Utility Functions'!$G$3:$G$5,'Utility Functions'!$H$3:$H$5))","v":0},{"$f":"$F$40*(valuePL(F14,'Utility Functions'!$I$3:$I$4,'Utility Functions'!$J$3:$J$5))","v":0},{"$f":"$G$40*(valueE(G14,'Utility Functions'!$L$3,'Utility Functions'!$L$4,'Utility Functions'!$L$5,'Utility Functions'!$L$6))","v":0},{"$f":"$H$40*(valueE(H14,'Utility Functions'!$N$3,'Utility Functions'!$N$4,'Utility Functions'!$N$5,'Utility Functions'!$N$6))","v":1.7077798861480075E-4},{"$f":"$I$40*valuePL(I14,'Utility Functions'!$O$3:$O$6,'Utility Functions'!$P$3:$P$6)","v":9.8727272727272726E-3},{"$f":"$J$40*valuePL(J14,'Utility Functions'!$Q$3:$Q$6,'Utility Functions'!$R$3:$R$6)","v":8.0000000000000004E-4},{"$f":"$K$40*(valuePL(K14,'Utility Functions'!$S$3:$S$7,'Utility Functions'!$T$3:$T$7))","v":6.5818181818181817E-3},{"$f":"$L$40*(valueE(L14,'Utility Functions'!$V$3,'Utility Functions'!$V$4,'Utility Functions'!$V$5,'Utility Functions'!$V$6))","v":0.02},{"$f":"$M$40*valuePL(M14,'Utility Functions'!$W$3:$W$6,'Utility Functions'!$X$3:$X$6)","v":8.0000000000000004E-4},{"$f":"$N$40*valueE(N14,'Utility Functions'!$Z$3,'Utility Functions'!$Z$4,'Utility Functions'!$Z$5,'Utility Functions'!$Z$6)","v":2.6249999999999999E-2},{"$f":"$O$40*valuePL(O14,'Utility Functions'!$AA$3:$AA$5,'Utility Functions'!$AB$3:$AB$5)","v":2.2499999999999999E-2},{"$f":"$P$40*valuePL(P14,'Utility Functions'!$AC$3:$AC$7,'Utility Functions'!$AD$3:$AD$7)","v":0.01},{"$f":"$Q$40*valuePL(Q14,'Utility Functions'!$AE$3:$AE$6,'Utility Functions'!$AF$3:$AF$6)","v":0},{"$f":"$R$40*valuePL(R14,'Utility Functions'!$AG$3:$AG$6,'Utility Functions'!$AH$3:$AH$6)","v":0.05},{"$f":"$S$40*valuePL(S14,'Utility Functions'!$AI$3:$AI$6,'Utility Functions'!$AJ$3:$AJ$6)","v":0.05},{"$f":"$T$40*valuePL(T14,'Utility Functions'!$AK$3:$AK$8,'Utility Functions'!$AL$3:$AL$8)","v":0},{"$f":"$U$40*valuePL(U14,'Utility Functions'!$AM$3:$AM$5,'Utility Functions'!$AN$3:$AN$5)","v":0},{"$f":"$V$40*valuePL(V14,'Utility Functions'!$AO$3:$AO$5,'Utility Functions'!$AP$3:$AP$5)","v":2.5000000000000001E-2},{"$f":"$W$40*valuePL(W14,'Utility Functions'!$AQ$3:$AQ$6,'Utility Functions'!$AR$3:$AR$6)","v":0},{"$f":"$X$40*valuePL(X14,'Utility Functions'!$AS$3:$AS$6,'Utility Functions'!$AT$3:$AT$6)","v":8.0000000000000002E-3},{"$f":"$Y$40*valuePL(Y14,'Utility Functions'!$AU$3:$AU$6,'Utility Functions'!$AV$3:$AV$6)","v":0},{"$f":"$Z$40*valuePL(Z14,'Utility Functions'!$AW$3:$AW$5,'Utility Functions'!$AX$3:$AX$5)","v":0.05},{"$f":"$AA$40*valuePL(AA14,'Utility Functions'!$AY$3:$AY$6,'Utility Functions'!$AZ$3:$AZ$6)","v":8.0000000000000002E-3},{"$f":"$AB$40*valuePL(AB14,'Utility Functions'!$BA$3:$BA$5,'Utility Functions'!$BB$3:$BB$5)","v":0.01},{"$f":"$AC$40*valuePL(AC14,'Utility Functions'!$BC$3:$BC$5,'Utility Functions'!$BD$3:$BD$5)","v":7.4999999999999997E-3},0.30547532344316031,0.30547532344316031]
[14,{"$f":"$B$40*(valueE(B15,'Utility Functions'!$B$3,'Utility Functions'!$B$4,'Utility Functions'!$B$5,'Utility Functions'!$B$6))","v":2.0964205406426323E-2},{"$f":"$C$40*(valueE(C15,'Utility Functions'!$D$3,'Utility Functions'!$D$4,'Utility Functions'!$D$5,'Utility Functions'!$D$6))","v":2.3696993705826886E-2},{"$f":"$D$40*(valuePL(D15,'Utility Functions'!$E$3:$E$5,'Utility Functions'!$F$3:$F$5))","v":1.4999999999999999E-2},{"$f":"$E$40*(valuePL(E15,'Utility Functions'!$G$3:$G$5,'Utility Functions'!$H$3:$H$5))","v":1.4999999999999999E-2},{"$f":"$F$40*(valuePL(F15,'Utility Functions'!$I$3:$I$4,'Utility Functions'!$J$3:$J$5))","v":0},{"$f":"$G$40*(valueE(G15,'Utility Functions'!$L$3,'Utility Functions'!$L$4,'Utility Functions'!$L$5,'Utility Functions'!$L$6))","v":0},{"$f":"$H$40*(valueE(H15,'Utility Functions'!$N$3,'Utility Functions'!$N$4,'Utility Functions'!$N$5,'Utility Functions'!$N$6))","v":0},{"$f":"$I$40*valuePL(I15,'Utility Functions'!$O$3:$O$6,'Utility Functions'!$P$3:$P$6)","v":0},{"$f":"$J$40*valuePL(J15,'Utility Functions'!$Q$3:$Q$6,'Utility Functions'!$R$3:$R$6)","v":0},{"$f":"$K$40*(valuePL(K15,'Utility Functions'!$S$3:$S$7,'Utility Functions'!$T$3:$T$7))","v":0},{"$f":"$L$40*(valueE(L15,'Utility Functions'!$V$3,'Utility Functions'!$V$4,'Utility Functions'!$V$5,'Utility Functions'!$V$6))","v":0},{"$f":"$M$40*valuePL(M15,'Utility Functions'!$W$3:$W$6,'Utility Functions'!$X$3:$X$6)","v":0},{"$f":"$N$40*valueE(N15,'Utility Functions'!$Z$3,'Utility Functions'!$Z$4,'Utility Functions'!$Z$5,'Utility Functions'!$Z$6)","v":2.2499999999999999E-2},{"$f":"$O$40*valuePL(O15,'Utility Functions'!$AA$3:$AA$5,'Utility Functions'!$AB$3:$AB$5)","v":2.2499999999999999E-2},{"$f":"$P$40*valuePL(P15,'Utility Functions'!$AC$3:$AC$7,'Utility Functions'!$AD$3:$AD$7)","v":0.01},{"$f":"$Q$40*valuePL(Q15,'Utility Functions'!$AE$3:$AE$6,'Utility Functions'!$AF$3:$AF$6)","v":0},{"$f":"$R$40*valuePL(R15,'Utility Functions'!$AG$3:$AG$6,'Utility Functions'!$AH$3:$AH$6)","v":0.05},{"$f":"$S$40*valuePL(S15,'Utility Functions'!$AI$3:$AI$6,'Utility Functions'!$AJ$3:$AJ$6)","v":0.05},{"$f":"$T$40*valuePL(T15,'Utility Functions'!$AK$3:$AK$8,'Utility Functions'!$AL$3:$AL$8)","v":0},{"$f":"$U$40*valuePL(U15,'Utility Functions'!$AM$3:$AM$5,'Utility Functions'!$AN$3:$AN$5)","v":0},{"$f":"$V$40*valuePL(V15,'Utility Functions'!$AO$3:$AO$5,'Utility Functions'!$AP$3:$AP$5)","v":2.5000000000000001E-2},{"$f":"$W$40*valuePL(W15,'Utility Functions'!$AQ$3:$AQ$6,'Utility Functions'!$AR$3:$AR$6)","v":8.0000000000000002E-3},{"$f":"$X$40*valuePL(X15,'Utility Functions'!$AS$3:$AS$6,'Utility Functions'!$AT$3:$AT$6)","v":0.04},{"$f":"$Y$40*valuePL(Y15,'Utility Functions'!$AU$3:$AU$6,'Utility Functions'!$AV$3:$AV$6)","v":0.05},{"$f":"$Z$40*valuePL(Z15,'Utility Functions'!$AW$3:$AW$5,'Utility Functions'!$AX$3:$AX$5)","v":2.5000000000000001E-2},{"$f":"$AA$40*valuePL(AA15,'Utility Functions'!$AY$3:$AY$6,'Utility Functions'!$AZ$3:$AZ$6)","v":3.5999999999999997E-2},{"$f":"$AB$40*valuePL(AB15,'Utility Functions'!$BA$3:$BA$5,'Utility Functions'!$BB$3:$BB$5)","v":0.01},{"$f":"$AC$40*valuePL(AC15,'Utility Functions'!$BC$3:$BC$5,'Utility Functions'!$BD$3:$BD$5)","v":7.4999999999999997E-3},0.4311611991122532,0.42916087857610469]
[15,{"$f":"$B$40*(valueE(B16,'Utility Functions'!$B$3,'Utility Functions'!$B$4,'Utility Functions'!$B$5,'Utility Functions'!$B$6))","v":2.9698489925153143E-2},{"$f":"$C$40*(valueE(C16,'Utility Functions'!$D$3,'Utility Functions'!$D$4,'Utility Functions'!$D$5,'Utility Functions'!$D$6))","v":2.1405827917278249E-2},{"$f":"$D$40*(valuePL(D16,'Utility Functions'!$E$3:$E$5,'Utility Functions'!$F$3:$F$5))","v":0.03},{"$f":"$E$40*(valuePL(E16,'Utility Functions'!$G$3:$G$5,'Utility Functions'!$H$3:$H$5))","v":1.4999999999999999E-2},{"$f":"$F$40*(valuePL(F16,'Utility Functions'!$I$3:$I$4,'Utility Functions'!$J$3:$J$5))","v":0.04},{"$f":"$G$40*(valueE(G16,'Utility Functions'!$L$3,'Utility Functions'!$L$4,'Utility Functions'!$L$5,'Utility Functions'!$L$6))","v":0},{"$f":"$H$40*(valueE(H16,'Utility Functions'!$N$3,'Utility Functions'!$N$4,'Utility Functions'!$N$5,'Utility Functions'!$N$6))","v":0},{"$f":"$I$40*valuePL(I16,'Utility Functions'!$O$3:$O$6,'Utility Functions'!$P$3:$P$6)","v":2.7600000000000003E-3},{"$f":"$J$40*valuePL(J16,'Utility Functions'!$Q$3:$Q$6,'Utility Functions'!$R$3:$R$6)","v":1.2000000000000003E-3},{"$f":"$K$40*(valuePL(K16,'Utility Functions'!$S$3:$S$7,'Utility Functions'!$T$3:$T$7))","v":1.2000000000000003E-3},{"$f":"$L$40*(valueE(L16,'Utility Functions'!$V$3,'Utility Functions'!$V$4,'Utility Functions'!$V$5,'Utility Functions'!$V$6))","v":0.02},{"$f":"$M$40*valuePL(M16,'Utility Functions'!$W$3:$W$6,'Utility Functions'!$X$3:$X$6)","v":1.2000000000000003E-3},{"$f":"$N$40*valueE(N16,'Utility Functions'!$Z$3,'Utility Functions'!$Z$4,'Utility Functions'!$Z$5,'Utility Functions'!$Z$6)","v":3.7499999999999999E-3},{"$f":"$O$40*valuePL(O16,'Utility Functions'!$AA$3:$AA$5,'Utility Functions'!$AB$3:$AB$5)","v":0.09},{"$f":"$P$40*valuePL(P16,'Utility Functions'!$AC$3:$AC$7,'Utility Functions'!$AD$3:$AD$7)","v":0.02},{"$f":"$Q$40*valuePL(Q16,'Utility Functions'!$AE$3:$AE$6,'Utility Functions'!$AF$3:$AF$6)","v":0},{"$f":"$R$40*valuePL(R16,'Utility Functions'!$AG$3:$AG$6,'Utility Functions'!$AH$3:$AH$6)","v":4.0000000000000008E-2},{"$f":"$S$40*valuePL(S16,'Utility Functions'!$AI$3:$AI$6,'Utility Functions'!$AJ$3:$AJ$6)","v":0.05},{"$f":"$T$40*valuePL(T16,'Utility Functions'!$AK$3:$AK$8,'Utility Functions'!$AL$3:$AL$8)","v":1.7999999999999999E-2},{"$f":"$U$40*valuePL(U16,'Utility Functions'!$AM$3:$AM$5,'Utility Functions'!$AN$3:$AN$5)","v":0.03},{"$f":"$V$40*valuePL(V16,'Utility Functions'!$AO$3:$AO$5,'Utility Functions'!$AP$3:$AP$5)","v":0},{"$f":"$W$40*valuePL(W16,'Utility Functions'!$AQ$3:$AQ$6,'Utility Functions'!$AR$3:$AR$6)","v":0.04},{"$f":"$X$40*valuePL(X16,'Utility Functions'!$AS$3:$AS$6,'Utility Functions'!$AT$3:$AT$6)","v":8.0000000000000002E-3},{"$f":"$Y$40*valuePL(Y16,'Utility Functions'!$AU$3:$AU$6,'Utility Functions'!$AV$3:$AV$6)","v":1.0000000000000002E-2},{"$f":"$Z$40*valuePL(Z16,'Utility Functions'!$AW$3:$AW$5,'Utility Functions'!$AX$3:$AX$5)","v":0.05},{"$f":"$AA$40*valuePL(AA16,'Utility Functions'!$AY$3:$AY$6,'Utility Functions'!$AZ$3:$AZ$6)","v":0.04},{"$f":"$AB$40*valuePL(AB16,'Utility Functions'!$BA$3:$BA$5,'Utility Functions'!$BB$3:$BB$5)","v":0.04},{"$f":"$AC$40*valuePL(AC16,'Utility Functions'!$BC$3:$BC$5,'Utility Functions'!$BD$3:$BD$5)","v":7.4999999999999997E-3},0.60971431784243146,0.60936712175502528]
[16,{"$f":"$B$40*(valueE(B17,'Utility Functions'!$B$3,'Utility Functions'!$B$4,'Utility Functions'!$B$5,'Utility Functions'!$B$6))","v":0},{"$f":"$C$40*(valueE(C17,'Utility Functions'!$D$3,'Utility Functions'!$D$4,'Utility Functions'!$D$5,'Utility Functions'!$D$6))","v":0},{"$f":"$D$40*(valuePL(D17,'Utility Functions'!$E$3:$E$5,'Utility Functions'!$F$3:$F$5))","v":0},{"$f":"$E$40*(valuePL(E17,'Utility Functions'!$G$3:$G$5,'Utility Functions'!$H$3:$H$5))","v":0},{"$f":"$F$40*(valuePL(F17,'Utility Functions'!$I$3:$I$4,'Utility Functions'!$J$3:$J$5))","v":0},{"$f":"$G$40*(valueE(G17,'Utility Functions'!$L$3,'Utility Functions'!$L$4,'Utility Functions'!$L$5,'Utility Functions'!$L$6))","v":0},{"$f":"$H$40*(valueE(H17,'Utility Functions'!$N$3,'Utility Functions'!$N$4,'Utility Functions'!$N$5,'Utility Functions'!$N$6))","v":0},{"$f":"$I$40*valuePL(I17,'Utility Functions'!$O$3:$O$6,'Utility Functions'!$P$3:$P$6)","v":0.03},{"$f":"$J$40*valuePL(J17,'Utility Functions'!$Q$3:$Q$6,'Utility Functions'!$R$3:$R$6)","v":1.8363636363636363E-2},{"$f":"$K$40*(valuePL(K17,'Utility Functions'!$S$3:$S$7,'Utility Functions'!$T$3:$T$7))","v":0.02},{"$f":"$L$40*(valueE(L17,'Utility Functions'!$V$3,'Utility Functions'!$V$4,'Utility Functions'!$V$5,'Utility Functions'!$V$6))","v":1.6666666666666666E-2},{"$f":"$M$40*valuePL(M17,'Utility Functions'!$W$3:$W$6,'Utility Functions'!$X$3:$X$6)","v":1.8363636363636363E-2},{"$f":"$N$40*valueE(N17,'Utility Functions'!$Z$3,'Utility Functions'!$Z$4,'Utility Functions'!$Z$5,'Utility Functions'!$Z$6)","v":0},{"$f":"$O$40*valuePL(O17,'Utility Functions'!$AA$3:$AA$5,'Utility Functions'!$AB$3:$AB$5)","v":0},{"$f":"$P$40*valuePL(P17,'Utility Functions'!$AC$3:$AC$7,'Utility Functions'!$AD$3:$AD$7)","v":0.03},{"$f":"$Q$40*valuePL(Q17,'Utility Functions'!$AE$3:$AE$6,'Utility Functions'!$AF$3:$AF$6)","v":0},{"$f":"$R$40*valuePL(R17,'Utility Functions'!$AG$3:$AG$6,'Utility Functions'!$AH$3:$AH$6)","v":0.05},{"$f":"$S$40*valuePL(S17,'Utility Functions'!$AI$3:$AI$6,'Utility Functions'!$AJ$3:$AJ$6)","v":0.05},{"$f":"$T$40*valuePL(T17,'Utility Functions'!$AK$3:$AK$8,'Utility Functions'!$AL$3:$AL$8)","v":0.03},{"$f":"$U$40*valuePL(U17,'Utility Functions'!$AM$3:$AM$5,'Utility Functions'!$AN$3:$AN$5)","v":0},{"$f":"$V$40*valuePL(V17,'Utility Functions'!$AO$3:$AO$5,'Utility Functions'!$AP$3:$AP$5)","v":0.05},{"$f":"$W$40*valuePL(W17,'Utility Functions'!$AQ$3:$AQ$6,'Utility Functions'!$AR$3:$AR$6)","v":0.03},{"$f":"$X$40*valuePL(X17,'Utility Functions'!$AS$3:$AS$6,'Utility Functions'!$AT$3:$AT$6)","v":0.03},{"$f":"$Y$40*valuePL(Y17,'Utility Functions'!$AU$3:$AU$6,'Utility Functions'!$AV$3:$AV$6)","v":1.0000000000000002E-2},{"$f":"$Z$40*valuePL(Z17,'Utility Functions'!$AW$3:$AW$5,'Utility Functions'!$AX$3:$AX$5)","v":0.05},{"$f":"$AA$40*valuePL(AA17,'Utility Functions'!$AY$3:$AY$6,'Utility Functions'!$AZ$3:$AZ$6)","v":0.04},{"$f":"$AB$40*valuePL(AB17,'Utility Functions'!$BA$3:$BA$5,'Utility Functions'!$BB$3:$BB$5)","v":0.04},{"$f":"$AC$40*valuePL(AC17,'Utility Functions'!$BC$3:$BC$5,'Utility Functions'!$BD$3:$BD$5)","v":0.03},0.54339393939393943,0.54339393939393943]
[17,{"$f":"$B$40*(valueE(B18,'Utility Functions'!$B$3,'Utility Functions'!$B$4,'Utility Functions'!$B$5,'Utility Functions'!$B$6))","v":9.8904136043327599E-3},{"$f":"$C$40*(valueE(C18,'Utility Functions'!$D$3,'Utility Functions'!$D$4,'Utility Functions'!$D$5,'Utility Functions'!$D$6))","v":2.3696993705826886E-2},{"$f":"$D$40*(valuePL(D18,'Utility Functions'!$E$3:$E$5,'Utility Functions'!$F$3:$F$5))","v":0.03},{"$f":"$E$40*(valuePL(E18,'Utility Functions'!$G$3:$G$5,'Utility Functions'!$H$3:$H$5))","v":1.4999999999999999E-2},{"$f":"$F$40*(valuePL(F18,'Utility Functions'!$I$3:$I$4,'Utility Functions'!$J$3:$J$5))","v":0.04},{"$f":"$G$40*(valueE(G18,'Utility Functions'!$L$3,'Utility Functions'!$L$4,'Utility Functions'!$L$5,'Utility Functions'!$L$6))","v":4.6774193548387091E-3},{"$f":"$H$40*(valueE(H18,'Utility Functions'!$N$3,'Utility Functions'!$N$4,'Utility Functions'!$N$5,'Utility Functions'!$N$6))","v":4.1271347248576853E-3},{"$f":"$I$40*valuePL(I18,'Utility Functions'!$O$3:$O$6,'Utility Functions'!$P$3:$P$6)","v":0},{"$f":"$J$40*valuePL(J18,'Utility Functions'!$Q$3:$Q$6,'Utility Functions'!$R$3:$R$6)","v":0},{"$f":"$K$40*(valuePL(K18,'Utility Functions'!$S$3:$S$7,'Utility Functions'!$T$3:$T$7))","v":0},{"$f":"$L$40*(valueE(L18,'Utility Functions'!$V$3,'Utility Functions'!$V$4,'Utility Functions'!$V$5,'Utility Functions'!$V$6))","v":0.02},{"$f":"$M$40*valuePL(M18,'Utility Functions'!$W$3:$W$6,'Utility Functions'!$X$3:$X$6)","v":1.2000000000000003E-3},{"$f":"$N$40*valueE(N18,'Utility Functions'!$Z$3,'Utility Functions'!$Z$4,'Utility Functions'!$Z$5,'Utility Functions'!$Z$6)","v":0},{"$f":"$O$40*valuePL(O18,'Utility Functions'!$AA$3:$AA$5,'Utility Functions'!$AB$3:$AB$5)","v":0},{"$f":"$P$40*valuePL(P18,'Utility Functions'!$AC$3:$AC$7,'Utility Functions'!$AD$3:$AD$7)","v":0},{"$f":"$Q$40*valuePL(Q18,'Utility Functions'!$AE$3:$AE$6,'Utility Functions'!$AF$3:$AF$6)","v":0},{"$f":"$R$40*valuePL(R18,'Utility Functions'!$AG$3:$AG$6,'Utility Functions'!$AH$3:$AH$6)","v":0.05},{"$f":"$S$40*valuePL(S18,'Utility Functions'!$AI$3:$AI$6,'Utility Functions'!$AJ$3:$AJ$6)","v":3.3000000000000002E-2},{"$f":"$T$40*valuePL(T18,'Utility Functions'!$AK$3:$AK$8,'Utility Functions'!$AL$3:$AL$8)","v":0},{"$f":"$U$40*valuePL(U18,'Utility Functions'!$AM$3:$AM$5,'Utility Functions'!$AN$3:$AN$5)","v":0},{"$f":"$V$40*valuePL(V18,'Utility Functions'!$AO$3:$AO$5,'Utility Functions'!$AP$3:$AP$5)","v":0.05},{"$f":"$W$40*valuePL(W18,'Utility Functions'!$AQ$3:$AQ$6,'Utility Functions'!$AR$3:$AR$6)","v":0.04},{"$f":"$X$40*valuePL(X18,'Utility Functions'!$AS$3:$AS$6,'Utility Functions'!$AT$3:$AT$6)","v":8.0000000000000002E-3},{"$f":"$Y$40*valuePL(Y18,'Utility Functions'!$AU$3:$AU$6,'Utility Functions'!$AV$3:$AV$6)","v":0},{"$f":"$Z$40*valuePL(Z18,'Utility Functions'!$AW$3:$AW$5,'Utility Functions'!$AX$3:$AX$5)","v":2.5000000000000001E-2},{"$f":"$AA$40*valuePL(AA18,'Utility Functions'!$AY$3:$AY$6,'Utility Functions'!$AZ$3:$AZ$6)","v":0},{"$f":"$AB$40*valuePL(AB18,'Utility Functions'!$BA$3:$BA$5,'Utility Functions'!$BB$3:$BB$5)","v":0.04},{"$f":"$AC$40*valuePL(AC18,'Utility Functions'!$BC$3:$BC$5,'Utility Functions'!$BD$3:$BD$5)","v":7.4999999999999997E-3},0.40209196138985603,0.40070572869773624]
[18,{"$f":"$B$40*(valueE(B19,'Utility Functions'!$B$3,'Utility Functions'!$B$4,'Utility Functions'!$B$5,'Utility Functions'!$B$6))","v":0},{"$f":"$C$40*(valueE(C19,'Utility Functions'!$D$3,'Utility Functions'!$D$4,'Utility Functions'!$D$5,'Utility Functions'!$D$6))","v":0},{"$f":"$D$40*(valuePL(D19,'Utility Functions'!$E$3:$E$5,'Utility Functions'!$F$3:$F$5))","v":0},{"$f":"$E$40*(valuePL(E19,'Utility Functions'!$G$3:$G$5,'Utility Functions'!$H$3:$H$5))","v":0},{"$f":"$F$40*(valuePL(F19,'Utility Functions'!$I$3:$I$4,'Utility Functions'!$J$3:$J$5))","v":0},{"$f":"$G$40*(valueE(G19,'Utility Functions'!$L$3,'Utility Functions'!$L$4,'Utility Functions'!$L$5,'Utility Functions'!$L$6))","v":0},{"$f":"$H$40*(valueE(H19,'Utility Functions'!$N$3,'Utility Functions'!$N$4,'Utility Functions'!$N$5,'Utility Functions'!$N$6))","v":4.2694497153700185E-4},{"$f":"$I$40*valuePL(I19,'Utility Functions'!$O$3:$O$6,'Utility Functions'!$P$3:$P$6)","v":0},{"$f":"$J$40*valuePL(J19,'Utility Functions'!$Q$3:$Q$6,'Utility Functions'!$R$3:$R$6)","v":0},{"$f":"$K$40*(valuePL(K19,'Utility Functions'!$S$3:$S$7,'Utility Functions'!$T$3:$T$7))","v":0},{"$f":"$L$40*(valueE(L19,'Utility Functions'!$V$3,'Utility Functions'!$V$4,'Utility Functions'!$V$5,'Utility Functions'!$V$6))","v":0},{"$f":"$M$40*valuePL(M19,'Utility Functions'!$W$3:$W$6,'Utility Functions'!$X$3:$X$6)","v":0},{"$f":"$N$40*valueE(N19,'Utility Functions'!$Z$3,'Utility Functions'!$Z$4,'Utility Functions'!$Z$5,'Utility Functions'!$Z$6)","v":0.03},{"$f":"$O$40*valuePL(O19,'Utility Functions'!$AA$3:$AA$5,'Utility Functions'!$AB$3:$AB$5)","v":2.2499999999999999E-2},{"$f":"$P$40*valuePL(P19,'Utility Functions'!$AC$3:$AC$7,'Utility Functions'!$AD$3:$AD$7)","v":0.01},{"$f":"$Q$40*valuePL(Q19,'Utility Functions'!$AE$3:$AE$6,'Utility Functions'!$AF$3:$AF$6)","v":0.04},{"$f":"$R$40*valuePL(R19,'Utility Functions'!$AG$3:$AG$6,'Utility Functions'!$AH$3:$AH$6)","v":0.05},{"$f":"$S$40*valuePL(S19,'Utility Functions'!$AI$3:$AI$6,'Utility Functions'!$AJ$3:$AJ$6)","v":0.05},{"$f":"$T$40*valuePL(T19,'Utility Functions'!$AK$3:$AK$8,'Utility Functions'!$AL$3:$AL$8)","v":0.03},{"$f":"$U$40*valuePL(U19,'Utility Functions'!$AM$3:$AM$5,'Utility Functions'!$AN$3:$AN$5)","v":7.4999999999999997E-3},{"$f":"$V$40*valuePL(V19,'Utility Functions'!$AO$3:$AO$5,'Utility Functions'!$AP$3:$AP$5)","v":0.05},{"$f":"$W$40*valuePL(W19,'Utility Functions'!$AQ$3:$AQ$6,'Utility Functions'!$AR$3:$AR$6)","v":0.03},{"$f":"$X$40*valuePL(X19,'Utility Functions'!$AS$3:$AS$6,'Utility Functions'!$AT$3:$AT$6)","v":8.0000000000000002E-3},{"$f":"$Y$40*valuePL(Y19,'Utility Functions'!$AU$3:$AU$6,'Utility Functions'!$AV$3:$AV$6)","v":4.0000000000000008E-2},{"$f":"$Z$40*valuePL(Z19,'Utility Functions'!$AW$3:$AW$5,'Utility Functions'!$AX$3:$AX$5)","v":2.5000000000000001E-2},{"$f":"$AA$40*valuePL(AA19,'Utility Functions'!$AY$3:$AY$6,'Utility Functions'!$AZ$3:$AZ$6)","v":3.5999999999999997E-2},{"$f":"$AB$40*valuePL(AB19,'Utility Functions'!$BA$3:$BA$5,'Utility Functions'!$BB$3:$BB$5)","v":0.01},{"$f":"$AC$40*valuePL(AC19,'Utility Functions'!$BC$3:$BC$5,'Utility Functions'!$BD$3:$BD$5)","v":0},0.43942694497153706,0.43942694497153706]
[19,{"$f":"$B$40*(valueE(B20,'Utility Functions'!$B$3,'Utility Functions'!$B$4,'Utility Functions'!$B$5,'Utility Functions'!$B$6))","v":2.3943140737469053E-2},{"$f":"$C$40*(valueE(C20,'Utility Functions'!$D$3,'Utility Functions'!$D$4,'Utility Functions'!$D$5,'Utility Functions'!$D$6))","v":8.0518966871447988E-3},{"$f":"$D$40*(valuePL(D20,'Utility Functions'!$E$3:$E$5,'Utility Functions'!$F$3:$F$5))","v":1.4999999999999999E-2},{"$f":"$E$40*(valuePL(E20,'Utility Functions'!$G$3:$G$5,'Utility Functions'!$H$3:$H$5))","v":0.03},{"$f":"$F$40*(valuePL(F20,'Utility Functions'!$I$3:$I$4,'Utility Functions'!$J$3:$J$5))","v":0},{"$f":"$G$40*(valueE(G20,'Utility Functions'!$L$3,'Utility Functions'!$L$4,'Utility Functions'!$L$5,'Utility Functions'!$L$6))","v":0},{"$f":"$H$40*(valueE(H20,'Utility Functions'!$N$3,'Utility Functions'!$N$4,'Utility Functions'!$N$5,'Utility Functions'!$N$6))","v":0},{"$f":"$I$40*valuePL(I20,'Utility Functions'!$O$3:$O$6,'Utility Functions'!$P$3:$P$6)","v":0},{"$f":"$J$40*valuePL(J20,'Utility Functions'!$Q$3:$Q$6,'Utility Functions'!$R$3:$R$6)","v":0},{"$f":"$K$40*(valuePL(K20,'Utility Functions'!$S$3:$S$7,'Utility Functions'!$T$3:$T$7))","v":0},{"$f":"$L$40*(valueE(L20,'Utility Functions'!$V$3,'Utility Functions'!$V$4,'Utility Functions'!$V$5,'Utility Functions'!$V$6))","v":0},{"$f":"$M$40*valuePL(M20,'Utility Functions'!$W$3:$W$6,'Utility Functions'!$X$3:$X$6)","v":0},{"$f":"$N$40*valueE(N20,'Utility Functions'!$Z$3,'Utility Functions'!$Z$4,'Utility Functions'!$Z$5,'Utility Functions'!$Z$6)","v":0.03},{"$f":"$O$40*valuePL(O20,'Utility Functions'!$AA$3:$AA$5,'Utility Functions'!$AB$3:$AB$5)","v":0.09},{"$f":"$P$40*valuePL(P20,'Utility Functions'!$AC$3:$AC$7,'Utility Functions'!$AD$3:$AD$7)","v":0},{"$f":"$Q$40*valuePL(Q20,'Utility Functions'!$AE$3:$AE$6,'Utility Functions'!$AF$3:$AF$6)","v":0},{"$f":"$R$40*valuePL(R20,'Utility Functions'!$AG$3:$AG$6,'Utility Functions'!$AH$3:$AH$6)","v":4.0000000000000008E-2},{"$f":"$S$40*valuePL(S20,'Utility Functions'!$AI$3:$AI$6,'Utility Functions'!$AJ$3:$AJ$6)","v":0.05},{"$f":"$T$40*valuePL(T20,'Utility Functions'!$AK$3:$AK$8,'Utility Functions'!$AL$3:$AL$8)","v":0},{"$f":"$U$40*valuePL(U20,'Utility Functions'!$AM$3:$AM$5,'Utility Functions'!$AN$3:$AN$5)","v":0},{"$f":"$V$40*valuePL(V20,'Utility Functions'!$AO$3:$AO$5,'Utility Functions'!$AP$3:$AP$5)","v":2.5000000000000001E-2},{"$f":"$W$40*valuePL(W20,'Utility Functions'!$AQ$3:$AQ$6,'Utility Functions'!$AR$3:$AR$6)","v":8.0000000000000002E-3},{"$f":"$X$40*valuePL(X20,'Utility Functions'!$AS$3:$AS$6,'Utility Functions'!$AT$3:$AT$6)","v":0.04},{"$f":"$Y$40*valuePL(Y20,'Utility Functions'!$AU$3:$AU$6,'Utility Functions'!$AV$3:$AV$6)","v":4.0000000000000008E-2},{"$f":"$Z$40*valuePL(Z20,'Utility Functions'!$AW$3:$AW$5,'Utility Functions'!$AX$3:$AX$5)","v":0},{"$f":"$AA$40*valuePL(AA20,'Utility Functions'!$AY$3:$AY$6,'Utility Functions'!$AZ$3:$AZ$6)","v":8.0000000000000002E-3},{"$f":"$AB$40*valuePL(AB20,'Utility Functions'!$BA$3:$BA$5,'Utility Functions'!$BB$3:$BB$5)","v":0},{"$f":"$AC$40*valuePL(AC20,'Utility Functions'!$BC$3:$BC$5,'Utility Functions'!$BD$3:$BD$5)","v":7.4999999999999997E-3},0.41549503742461386,0.41364429487902837]
[20,{"$f":"$B$40*(valueE(B21,'Utility Functions'!$B$3,'Utility Functions'!$B$4,'Utility Functions'!$B$5,'Utility Functions'!$B$6))","v":2.5041071294184137E-2},{"$f":"$C$40*(valueE(C21,'Utility Functions'!$D$3,'Utility Functions'!$D$4,'Utility Functions'!$D$5,'Utility Functions'!$D$6))","v":2.3696993705826886E-2},{"$f":"$D$40*(valuePL(D21,'Utility Functions'!$E$3:$E$5,'Utility Functions'!$F$3:$F$5))","v":1.4999999999999999E-2},{"$f":"$E$40*(valuePL(E21,'Utility Functions'!$G$3:$G$5,'Utility Functions'!$H$3:$H$5))","v":0.03},{"$f":"$F$40*(valuePL(F21,'Utility Functions'!$I$3:$I$4,'Utility Functions'!$J$3:$J$5))","v":0},{"$f":"$G$40*(valueE(G21,'Utility Functions'!$L$3,'Utility Functions'!$L$4,'Utility Functions'!$L$5,'Utility Functions'!$L$6))","v":0},{"$f":"$H$40*(valueE(H21,'Utility Functions'!$N$3,'Utility Functions'!$N$4,'Utility Functions'!$N$5,'Utility Functions'!$N$6))","v":6.1907020872865271E-3},{"$f":"$I$40*valuePL(I21,'Utility Functions'!$O$3:$O$6,'Utility Functions'!$P$3:$P$6)","v":2.8036363636363634E-2},{"$f":"$J$40*valuePL(J21,'Utility Functions'!$Q$3:$Q$6,'Utility Functions'!$R$3:$R$6)","v":1.0181818181818183E-2},{"$f":"$K$40*(valuePL(K21,'Utility Functions'!$S$3:$S$7,'Utility Functions'!$T$3:$T$7))","v":1.8690909090909088E-2},{"$f":"$L$40*(valueE(L21,'Utility Functions'!$V$3,'Utility Functions'!$V$4,'Utility Functions'!$V$5,'Utility Functions'!$V$6))","v":1.3333333333333332E-2},{"$f":"$M$40*valuePL(M21,'Utility Functions'!$W$3:$W$6,'Utility Functions'!$X$3:$X$6)","v":1.0181818181818183E-2},{"$f":"$N$40*valueE(N21,'Utility Functions'!$Z$3,'Utility Functions'!$Z$4,'Utility Functions'!$Z$5,'Utility Functions'!$Z$6)","v":0.03},{"$f":"$O$40*valuePL(O21,'Utility Functions'!$AA$3:$AA$5,'Utility Functions'!$AB$3:$AB$5)","v":0.09},{"$f":"$P$40*valuePL(P21,'Utility Functions'!$AC$3:$AC$7,'Utility Functions'!$AD$3:$AD$7)","v":0.01},{"$f":"$Q$40*valuePL(Q21,'Utility Functions'!$AE$3:$AE$6,'Utility Functions'!$AF$3:$AF$6)","v":0},{"$f":"$R$40*valuePL(R21,'Utility Functions'!$AG$3:$AG$6,'Utility Functions'!$AH$3:$AH$6)","v":0.05},{"$f":"$S$40*valuePL(S21,'Utility Functions'!$AI$3:$AI$6,'Utility Functions'!$AJ$3:$AJ$6)","v":0.05},{"$f":"$T$40*valuePL(T21,'Utility Functions'!$AK$3:$AK$8,'Utility Functions'!$AL$3:$AL$8)","v":1.7999999999999999E-2},{"$f":"$U$40*valuePL(U21,'Utility Functions'!$AM$3:$AM$5,'Utility Functions'!$AN$3:$AN$5)","v":0.03},{"$f":"$V$40*valuePL(V21,'Utility Functions'!$AO$3:$AO$5,'Utility Functions'!$AP$3:$AP$5)","v":2.5000000000000001E-2},{"$f":"$W$40*valuePL(W21,'Utility Functions'!$AQ$3:$AQ$6,'Utility Functions'!$AR$3:$AR$6)","v":0},{"$f":"$X$40*valuePL(X21,'Utility Functions'!$AS$3:$AS$6,'Utility Functions'!$AT$3:$AT$6)","v":0},{"$f":"$Y$40*valuePL(Y21,'Utility Functions'!$AU$3:$AU$6,'Utility Functions'!$AV$3:$AV$6)","v":1.0000000000000002E-2},{"$f":"$Z$40*valuePL(Z21,'Utility Functions'!$AW$3:$AW$5,'Utility Functions'!$AX$3:$AX$5)","v":0.05},{"$f":"$AA$40*valuePL(AA21,'Utility Functions'!$AY$3:$AY$6,'Utility Functions'!$AZ$3:$AZ$6)","v":8.0000000000000002E-3},{"$f":"$AB$40*valuePL(AB21,'Utility Functions'!$BA$3:$BA$5,'Utility Functions'!$BB$3:$BB$5)","v":0},{"$f":"$AC$40*valuePL(AC21,'Utility Functions'!$BC$3:$BC$5,'Utility Functions'!$BD$3:$BD$5)","v":7.4999999999999997E-3},0.55885300951154004,0.55711836291178196]
[{"$f":"A22","v":21},{"$f":"$B$40*(valueE(B22,'Utility Functions'!$B$3,'Utility Functions'!$B$4,'Utility Functions'!$B$5,'Utility Functions'!$B$6))","v":0},{"$f":"$C$40*(valueE(C22,'Utility Functions'!$D$3,'Utility Functions'!$D$4,'Utility Functions'!$D$5,'Utility Functions'!$D$6))","v":0},{"$f":"$D$40*(valuePL(D22,'Utility Functions'!$E$3:$E$5,'Utility Functions'!$F$3:$F$5))","v":0},{"$f":"$E$40*(valuePL(E22,'Utility Functions'!$G$3:$G$5,'Utility Functions'!$H$3:$H$5))","v":0},{"$f":"$F$40*(valuePL(F22,'Utility Functions'!$I$3:$I$4,'Utility Functions'!$J$3:$J$5))","v":0},{"$f":"$G$40*(valueE(G22,'Utility Functions'!$L$3,'Utility Functions'!$L$4,'Utility Functions'!$L$5,'Utility Functions'!$L$6))","v":0},{"$f":"$H$40*(valueE(H22,'Utility Functions'!$N$3,'Utility Functions'!$N$4,'Utility Functions'!$N$5,'Utility Functions'!$N$6))","v":0},{"$f":"$I$40*valuePL(I22,'Utility Functions'!$O$3:$O$6,'Utility Functions'!$P$3:$P$6)","v":0},{"$f":"$J$40*valuePL(J22,'Utility Functions'!$Q$3:$Q$6,'Utility Functions'!$R$3:$R$6)","v":0},{"$f":"$K$40*(valuePL(K22,'Utility Functions'!$S$3:$S$7,'Utility Functions'!$T$3:$T$7))","v":0},{"$f":"$L$40*(valueE(L22,'Utility Functions'!$V$3,'Utility Functions'!$V$4,'Utility Functions'!$V$5,'Utility Functions'!$V$6))","v":0},{"$f":"$M$40*valuePL(M22,'Utility Functions'!$W$3:$W$6,'Utility Functions'!$X$3:$X$6)","v":0},{"$f":"$N$40*valueE(N22,'Utility Functions'!$Z$3,'Utility Functions'!$Z$4,'Utility Functions'!$Z$5,'Utility Functions'!$Z$6)","v":0.03},{"$f":"$O$40*valuePL(O22,'Utility Functions'!$AA$3:$AA$5,'Utility Functions'!$AB$3:$AB$5)","v":0.09},{"$f":"$P$40*valuePL(P22,'Utility Functions'!$AC$3:$AC$7,'Utility Functions'!$AD$3:$AD$7)","v":0},{"$f":"$Q$40*valuePL(Q22,'Utility Functions'!$AE$3:$AE$6,'Utility Functions'!$AF$3:$AF$6)","v":4.0000000000000001E-3},{"$f":"$R$40*valuePL(R22,'Utility Functions'!$AG$3:$AG$6,'Utility Functions'!$AH$3:$AH$6)","v":0.05},{"$f":"$S$40*valuePL(S22,'Utility Functions'!$AI$3:$AI$6,'Utility Functions'!$AJ$3:$AJ$6)","v":0.05},{"$f":"$T$40*valuePL(T22,'Utility Functions'!$AK$3:$AK$8,'Utility Functions'!$AL$3:$AL$8)","v":0.03},{"$f":"$U$40*valuePL(U22,'Utility Functions'!$AM$3:$AM$5,'Utility Functions'!$AN$3:$AN$5)","v":7.4999999999999997E-3},{"$f":"$V$40*valuePL(V22,'Utility Functions'!$AO$3:$AO$5,'Utility Functions'!$AP$3:$AP$5)","v":0},{"$f":"$W$40*valuePL(W22,'Utility Functions'!$AQ$3:$AQ$6,'Utility Functions'!$AR$3:$AR$6)","v":0.03},{"$f":"$X$40*valuePL(X22,'Utility Functions'!$AS$3:$AS$6,'Utility Functions'!$AT$3:$AT$6)","v":0.04},{"$f":"$Y$40*valuePL(Y22,'Utility Functions'!$AU$3:$AU$6,'Utility Functions'!$AV$3:$AV$6)","v":1.0000000000000002E-2},{"$f":"$Z$40*valuePL(Z22,'Utility Functions'!$AW$3:$AW$5,'Utility Functions'!$AX$3:$AX$5)","v":0},{"$f":"$AA$40*valuePL(AA22,'Utility Functions'!$AY$3:$AY$6,'Utility Functions'!$AZ$3:$AZ$6)","v":0.04},{"$f":"$AB$40*valuePL(AB22,'Utility Functions'!$BA$3:$BA$5,'Utility Functions'!$BB$3:$BB$5)","v":0.01},{"$f":"$AC$40*valuePL(AC22,'Utility Functions'!$BC$3:$BC$5,'Utility Functions'!$BD$3:$BD$5)","v":0.03},0.42149999999999999,0.42149999999999999]
[22,{"$f":"$B$40*(valueE(B23,'Utility Functions'!$B$3,'Utility Functions'!$B$4,'Utility Functions'!$B$5,'Utility Functions'!$B$6))","v":0},{"$f":"$C$40*(valueE(C23,'Utility Functions'!$D$3,'Utility Functions'!$D$4,'Utility Functions'!$D$5,'Utility Functions'!$D$6))","v":0},{"$f":"$D$40*(valuePL(D23,'Utility Functions'!$E$3:$E$5,'Utility Functions'!$F$3:$F$5))","v":0},{"$f":"$E$40*(valuePL(E23,'Utility Functions'!$G$3:$G$5,'Utility Functions'!$H$3:$H$5))","v":0},{"$f":"$F$40*(valuePL(F23,'Utility Functions'!$I$3:$I$4,'Utility Functions'!$J$3:$J$5))","v":0},{"$f":"$G$40*(valueE(G23,'Utility Functions'!$L$3,'Utility Functions'!$L$4,'Utility Functions'!$L$5,'Utility Functions'!$L$6))","v":1.2903225806451613E-3},{"$f":"$H$40*(valueE(H23,'Utility Functions'!$N$3,'Utility Functions'!$N$4,'Utility Functions'!$N$5,'Utility Functions'!$N$6))","v":9.1081593927893733E-4},{"$f":"$I$40*valuePL(I23,'Utility Functions'!$O$3:$O$6,'Utility Functions'!$P$3:$P$6)","v":0},{"$f":"$J$40*valuePL(J23,'Utility Functions'!$Q$3:$Q$6,'Utility Functions'!$R$3:$R$6)","v":0},{"$f":"$K$40*(valuePL(K23,'Utility Functions'!$S$3:$S$7,'Utility Functions'!$T$3:$T$7))","v":0},{"$f":"$L$40*(valueE(L23,'Utility Functions'!$V$3,'Utility Functions'!$V$4,'Utility Functions'!$V$5,'Utility Functions'!$V$6))","v":0},{"$f":"$M$40*valuePL(M23,'Utility Functions'!$W$3:$W$6,'Utility Functions'!$X$3:$X$6)","v":0},{"$f":"$N$40*valueE(N23,'Utility Functions'!$Z$3,'Utility Functions'!$Z$4,'Utility Functions'!$Z$5,'Utility Functions'!$Z$6)","v":3.7499999999999999E-3},{"$f":"$O$40*valuePL(O23,'Utility Functions'!$AA$3:$AA$5,'Utility Functions'!$AB$3:$AB$5)","v":0.09},{"$f":"$P$40*valuePL(P23,'Utility Functions'!$AC$3:$AC$7,'Utility Functions'!$AD$3:$AD$7)","v":0.04},{"$f":"$Q$40*valuePL(Q23,'Utility Functions'!$AE$3:$AE$6,'Utility Functions'!$AF$3:$AF$6)","v":0.02},{"$f":"$R$40*valuePL(R23,'Utility Functions'!$AG$3:$AG$6,'Utility Functions'!$AH$3:$AH$6)","v":4.0000000000000008E-2},{"$f":"$S$40*valuePL(S23,'Utility Functions'!$AI$3:$AI$6,'Utility Functions'!$AJ$3:$AJ$6)","v":0.05},{"$f":"$T$40*valuePL(T23,'Utility Functions'!$AK$3:$AK$8,'Utility Functions'!$AL$3:$AL$8)","v":0.03},{"$f":"$U$40*valuePL(U23,'Utility Functions'!$AM$3:$AM$5,'Utility Functions'!$AN$3:$AN$5)","v":0},{"$f":"$V$40*valuePL(V23,'Utility Functions'!$AO$3:$AO$5,'Utility Functions'!$AP$3:$AP$5)","v":2.5000000000000001E-2},{"$f":"$W$40*valuePL(W23,'Utility Functions'!$AQ$3:$AQ$6,'Utility Functions'!$AR$3:$AR$6)","v":0.03},{"$f":"$X$40*valuePL(X23,'Utility Functions'!$AS$3:$AS$6,'Utility Functions'!$AT$3:$AT$6)","v":8.0000000000000002E-3},{"$f":"$Y$40*valuePL(Y23,'Utility Functions'!$AU$3:$AU$6,'Utility Functions'!$AV$3:$AV$6)","v":0},{"$f":"$Z$40*valuePL(Z23,'Utility Functions'!$AW$3:$AW$5,'Utility Functions'!$AX$3:$AX$5)","v":0.05},{"$f":"$AA$40*valuePL(AA23,'Utility Functions'!$AY$3:$AY$6,'Utility Functions'!$AZ$3:$AZ$6)","v":8.0000000000000002E-3},{"$f":"$AB$40*valuePL(AB23,'Utility Functions'!$BA$3:$BA$5,'Utility Functions'!$BB$3:$BB$5)","v":0.04},{"$f":"$AC$40*valuePL(AC23,'Utility Functions'!$BC$3:$BC$5,'Utility Functions'!$BD$3:$BD$5)","v":7.4999999999999997E-3},0.44445113851992418,0.44445113851992418]
[23,{"$f":"$B$40*(valueE(B24,'Utility Functions'!$B$3,'Utility Functions'!$B$4,'Utility Functions'!$B$5,'Utility Functions'!$B$6))","v":2.5041071294184137E-2},{"$f":"$C$40*(valueE(C24,'Utility Functions'!$D$3,'Utility Functions'!$D$4,'Utility Functions'!$D$5,'Utility Functions'!$D$6))","v":2.542345105018548E-2},{"$f":"$D$40*(valuePL(D24,'Utility Functions'!$E$3:$E$5,'Utility Functions'!$F$3:$F$5))","v":0.03},{"$f":"$E$40*(valuePL(E24,'Utility Functions'!$G$3:$G$5,'Utility Functions'!$H$3:$H$5))","v":0},{"$f":"$F$40*(valuePL(F24,'Utility Functions'!$I$3:$I$4,'Utility Functions'!$J$3:$J$5))","v":0},{"$f":"$G$40*(valueE(G24,'Utility Functions'!$L$3,'Utility Functions'!$L$4,'Utility Functions'!$L$5,'Utility Functions'!$L$6))","v":0},{"$f":"$H$40*(valueE(H24,'Utility Functions'!$N$3,'Utility Functions'!$N$4,'Utility Functions'!$N$5,'Utility Functions'!$N$6))","v":0},{"$f":"$I$40*valuePL(I24,'Utility Functions'!$O$3:$O$6,'Utility Functions'!$P$3:$P$6)","v":0},{"$f":"$J$40*valuePL(J24,'Utility Functions'!$Q$3:$Q$6,'Utility Functions'!$R$3:$R$6)","v":0},{"$f":"$K$40*(valuePL(K24,'Utility Functions'!$S$3:$S$7,'Utility Functions'!$T$3:$T$7))","v":0},{"$f":"$L$40*(valueE(L24,'Utility Functions'!$V$3,'Utility Functions'!$V$4,'Utility Functions'!$V$5,'Utility Functions'!$V$6))","v":0},{"$f":"$M$40*valuePL(M24,'Utility Functions'!$W$3:$W$6,'Utility Functions'!$X$3:$X$6)","v":0},{"$f":"$N$40*valueE(N24,'Utility Functions'!$Z$3,'Utility Functions'!$Z$4,'Utility Functions'!$Z$5,'Utility Functions'!$Z$6)","v":0},{"$f":"$O$40*valuePL(O24,'Utility Functions'!$AA$3:$AA$5,'Utility Functions'!$AB$3:$AB$5)","v":0},{"$f":"$P$40*valuePL(P24,'Utility Functions'!$AC$3:$AC$7,'Utility Functions'!$AD$3:$AD$7)","v":0.03},{"$f":"$Q$40*valuePL(Q24,'Utility Functions'!$AE$3:$AE$6,'Utility Functions'!$AF$3:$AF$6)","v":0},{"$f":"$R$40*valuePL(R24,'Utility Functions'!$AG$3:$AG$6,'Utility Functions'!$AH$3:$AH$6)","v":0.05},{"$f":"$S$40*valuePL(S24,'Utility Functions'!$AI$3:$AI$6,'Utility Functions'!$AJ$3:$AJ$6)","v":0.05},{"$f":"$T$40*valuePL(T24,'Utility Functions'!$AK$3:$AK$8,'Utility Functions'!$AL$3:$AL$8)","v":0.03},{"$f":"$U$40*valuePL(U24,'Utility Functions'!$AM$3:$AM$5,'Utility Functions'!$AN$3:$AN$5)","v":0},{"$f":"$V$40*valuePL(V24,'Utility Functions'!$AO$3:$AO$5,'Utility Functions'!$AP$3:$AP$5)","v":0.05},{"$f":"$W$40*valuePL(W24,'Utility Functions'!$AQ$3:$AQ$6,'Utility Functions'!$AR$3:$AR$6)","v":8.0000000000000002E-3},{"$f":"$X$40*valuePL(X24,'Utility Functions'!$AS$3:$AS$6,'Utility Functions'!$AT$3:$AT$6)","v":0.03},{"$f":"$Y$40*valuePL(Y24,'Utility Functions'!$AU$3:$AU$6,'Utility Functions'!$AV$3:$AV$6)","v":1.0000000000000002E-2},{"$f":"$Z$40*valuePL(Z24,'Utility Functions'!$AW$3:$AW$5,'Utility Functions'!$AX$3:$AX$5)","v":2.5000000000000001E-2},{"$f":"$AA$40*valuePL(AA24,'Utility Functions'!$AY$3:$AY$6,'Utility Functions'!$AZ$3:$AZ$6)","v":8.0000000000000002E-3},{"$f":"$AB$40*valuePL(AB24,'Utility Functions'!$BA$3:$BA$5,'Utility Functions'!$BB$3:$BB$5)","v":0},{"$f":"$AC$40*valuePL(AC24,'Utility Functions'!$BC$3:$BC$5,'Utility Functions'!$BD$3:$BD$5)","v":7.4999999999999997E-3},0.37896452234436967,0.3772298757446117]
[24,{"$f":"$B$40*(valueE(B25,'Utility Functions'!$B$3,'Utility Functions'!$B$4,'Utility Functions'!$B$5,'Utility Functions'!$B$6))","v":1.896364549751255E-2},{"$f":"$C$40*(valueE(C25,'Utility Functions'!$D$3,'Utility Functions'!$D$4,'Utility Functions'!$D$5,'Utility Functions'!$D$6))","v":1.3942790146123618E-2},{"$f":"$D$40*(valuePL(D25,'Utility Functions'!$E$3:$E$5,'Utility Functions'!$F$3:$F$5))","v":0.03},{"$f":"$E$40*(valuePL(E25,'Utility Functions'!$G$3:$G$5,'Utility Functions'!$H$3:$H$5))","v":0},{"$f":"$F$40*(valuePL(F25,'Utility Functions'!$I$3:$I$4,'Utility Functions'!$J$3:$J$5))","v":0},{"$f":"$G$40*(valueE(G25,'Utility Functions'!$L$3,'Utility Functions'!$L$4,'Utility Functions'!$L$5,'Utility Functions'!$L$6))","v":0},{"$f":"$H$40*(valueE(H25,'Utility Functions'!$N$3,'Utility Functions'!$N$4,'Utility Functions'!$N$5,'Utility Functions'!$N$6))","v":0},{"$f":"$I$40*valuePL(I25,'Utility Functions'!$O$3:$O$6,'Utility Functions'!$P$3:$P$6)","v":0},{"$f":"$J$40*valuePL(J25,'Utility Functions'!$Q$3:$Q$6,'Utility Functions'!$R$3:$R$6)","v":0},{"$f":"$K$40*(valuePL(K25,'Utility Functions'!$S$3:$S$7,'Utility Functions'!$T$3:$T$7))","v":0},{"$f":"$L$40*(valueE(L25,'Utility Functions'!$V$3,'Utility Functions'!$V$4,'Utility Functions'!$V$5,'Utility Functions'!$V$6))","v":0},{"$f":"$M$40*valuePL(M25,'Utility Functions'!$W$3:$W$6,'Utility Functions'!$X$3:$X$6)","v":0},{"$f":"$N$40*valueE(N25,'Utility Functions'!$Z$3,'Utility Functions'!$Z$4,'Utility Functions'!$Z$5,'Utility Functions'!$Z$6)","v":0},{"$f":"$O$40*valuePL(O25,'Utility Functions'!$AA$3:$AA$5,'Utility Functions'!$AB$3:$AB$5)","v":0},{"$f":"$P$40*valuePL(P25,'Utility Functions'!$AC$3:$AC$7,'Utility Functions'!$AD$3:$AD$7)","v":0},{"$f":"$Q$40*valuePL(Q25,'Utility Functions'!$AE$3:$AE$6,'Utility Functions'!$AF$3:$AF$6)","v":0},{"$f":"$R$40*valuePL(R25,'Utility Functions'!$AG$3:$AG$6,'Utility Functions'!$AH$3:$AH$6)","v":0.05},{"$f":"$S$40*valuePL(S25,'Utility Functions'!$AI$3:$AI$6,'Utility Functions'!$AJ$3:$AJ$6)","v":0.05},{"$f":"$T$40*valuePL(T25,'Utility Functions'!$AK$3:$AK$8,'Utility Functions'!$AL$3:$AL$8)","v":0.03},{"$f":"$U$40*valuePL(U25,'Utility Functions'!$AM$3:$AM$5,'Utility Functions'!$AN$3:$AN$5)","v":0},{"$f":"$V$40*valuePL(V25,'Utility Functions'!$AO$3:$AO$5,'Utility Functions'!$AP$3:$AP$5)","v":0},{"$f":"$W$40*valuePL(W25,'Utility Functions'!$AQ$3:$AQ$6,'Utility Functions'!$AR$3:$AR$6)","v":0.04},{"$f":"$X$40*valuePL(X25,'Utility Functions'!$AS$3:$AS$6,'Utility Functions'!$AT$3:$AT$6)","v":8.0000000000000002E-3},{"$f":"$Y$40*valuePL(Y25,'Utility Functions'!$AU$3:$AU$6,'Utility Functions'!$AV$3:$AV$6)","v":0.05},{"$f":"$Z$40*valuePL(Z25,'Utility Functions'!$AW$3:$AW$5,'Utility Functions'!$AX$3:$AX$5)","v":0.05},{"$f":"$AA$40*valuePL(AA25,'Utility Functions'!$AY$3:$AY$6,'Utility Functions'!$AZ$3:$AZ$6)","v":8.0000000000000002E-3},{"$f":"$AB$40*valuePL(AB25,'Utility Functions'!$BA$3:$BA$5,'Utility Functions'!$BB$3:$BB$5)","v":0},{"$f":"$AC$40*valuePL(AC25,'Utility Functions'!$BC$3:$BC$5,'Utility Functions'!$BD$3:$BD$5)","v":0.03},0.37890643564363613,0.37690508369846576]
[25,{"$f":"$B$40*(valueE(B26,'Utility Functions'!$B$3,'Utility Functions'!$B$4,'Utility Functions'!$B$5,'Utility Functions'!$B$6))","v":2.5041071294184137E-2},{"$f":"$C$40*(valueE(C26,'Utility Functions'!$D$3,'Utility Functions'!$D$4,'Utility Functions'!$D$5,'Utility Functions'!$D$6))","v":2.542345105018548E-2},{"$f":"$D$40*(valuePL(D26,'Utility Functions'!$E$3:$E$5,'Utility Functions'!$F$3:$F$5))","v":0.03},{"$f":"$E$40*(valuePL(E26,'Utility Functions'!$G$3:$G$5,'Utility Functions'!$H$3:$H$5))","v":0},{"$f":"$F$40*(valuePL(F26,'Utility Functions'!$I$3:$I$4,'Utility Functions'!$J$3:$J$5))","v":0},{"$f":"$G$40*(valueE(G26,'Utility Functions'!$L$3,'Utility Functions'!$L$4,'Utility Functions'!$L$5,'Utility Functions'!$L$6))","v":1.4193548387096775E-2},{"$f":"$H$40*(valueE(H26,'Utility Functions'!$N$3,'Utility Functions'!$N$4,'Utility Functions'!$N$5,'Utility Functions'!$N$6))","v":4.383301707779886E-3},{"$f":"$I$40*valuePL(I26,'Utility Functions'!$O$3:$O$6,'Utility Functions'!$P$3:$P$6)","v":0},{"$f":"$J$40*valuePL(J26,'Utility Functions'!$Q$3:$Q$6,'Utility Functions'!$R$3:$R$6)","v":0},{"$f":"$K$40*(valuePL(K26,'Utility Functions'!$S$3:$S$7,'Utility Functions'!$T$3:$T$7))","v":0},{"$f":"$L$40*(valueE(L26,'Utility Functions'!$V$3,'Utility Functions'!$V$4,'Utility Functions'!$V$5,'Utility Functions'!$V$6))","v":0},{"$f":"$M$40*valuePL(M26,'Utility Functions'!$W$3:$W$6,'Utility Functions'!$X$3:$X$6)","v":0},{"$f":"$N$40*valueE(N26,'Utility Functions'!$Z$3,'Utility Functions'!$Z$4,'Utility Functions'!$Z$5,'Utility Functions'!$Z$6)","v":0.03},{"$f":"$O$40*valuePL(O26,'Utility Functions'!$AA$3:$AA$5,'Utility Functions'!$AB$3:$AB$5)","v":2.2499999999999999E-2},{"$f":"$P$40*valuePL(P26,'Utility Functions'!$AC$3:$AC$7,'Utility Functions'!$AD$3:$AD$7)","v":0.02},{"$f":"$Q$40*valuePL(Q26,'Utility Functions'!$AE$3:$AE$6,'Utility Functions'!$AF$3:$AF$6)","v":0.02},{"$f":"$R$40*valuePL(R26,'Utility Functions'!$AG$3:$AG$6,'Utility Functions'!$AH$3:$AH$6)","v":0.05},{"$f":"$S$40*valuePL(S26,'Utility Functions'!$AI$3:$AI$6,'Utility Functions'!$AJ$3:$AJ$6)","v":0.05},{"$f":"$T$40*valuePL(T26,'Utility Functions'!$AK$3:$AK$8,'Utility Functions'!$AL$3:$AL$8)","v":0},{"$f":"$U$40*valuePL(U26,'Utility Functions'!$AM$3:$AM$5,'Utility Functions'!$AN$3:$AN$5)","v":0},{"$f":"$V$40*valuePL(V26,'Utility Functions'!$AO$3:$AO$5,'Utility Functions'!$AP$3:$AP$5)","v":0.05},{"$f":"$W$40*valuePL(W26,'Utility Functions'!$AQ$3:$AQ$6,'Utility Functions'!$AR$3:$AR$6)","v":8.0000000000000002E-3},{"$f":"$X$40*valuePL(X26,'Utility Functions'!$AS$3:$AS$6,'Utility Functions'!$AT$3:$AT$6)","v":0.04},{"$f":"$Y$40*valuePL(Y26,'Utility Functions'!$AU$3:$AU$6,'Utility Functions'!$AV$3:$AV$6)","v":4.0000000000000008E-2},{"$f":"$Z$40*valuePL(Z26,'Utility Functions'!$AW$3:$AW$5,'Utility Functions'!$AX$3:$AX$5)","v":2.5000000000000001E-2},{"$f":"$AA$40*valuePL(AA26,'Utility Functions'!$AY$3:$AY$6,'Utility Functions'!$AZ$3:$AZ$6)","v":8.0000000000000002E-3},{"$f":"$AB$40*valuePL(AB26,'Utility Functions'!$BA$3:$BA$5,'Utility Functions'!$BB$3:$BB$5)","v":0.04},{"$f":"$AC$40*valuePL(AC26,'Utility Functions'!$BC$3:$BC$5,'Utility Functions'!$BD$3:$BD$5)","v":0.03},0.53254137243924626,0.53080672583948829]
[26,{"$f":"$B$40*(valueE(B27,'Utility Functions'!$B$3,'Utility Functions'!$B$4,'Utility Functions'!$B$5,'Utility Functions'!$B$6))","v":2.8998845838620748E-2},{"$f":"$C$40*(valueE(C27,'Utility Functions'!$D$3,'Utility Functions'!$D$4,'Utility Functions'!$D$5,'Utility Functions'!$D$6))","v":2.542345105018548E-2},{"$f":"$D$40*(valuePL(D27,'Utility Functions'!$E$3:$E$5,'Utility Functions'!$F$3:$F$5))","v":0.03},{"$f":"$E$40*(valuePL(E27,'Utility Functions'!$G$3:$G$5,'Utility Functions'!$H$3:$H$5))","v":1.4999999999999999E-2},{"$f":"$F$40*(valuePL(F27,'Utility Functions'!$I$3:$I$4,'Utility Functions'!$J$3:$J$5))","v":0},{"$f":"$G$40*(valueE(G27,'Utility Functions'!$L$3,'Utility Functions'!$L$4,'Utility Functions'!$L$5,'Utility Functions'!$L$6))","v":0},{"$f":"$H$40*(valueE(H27,'Utility Functions'!$N$3,'Utility Functions'!$N$4,'Utility Functions'!$N$5,'Utility Functions'!$N$6))","v":0},{"$f":"$I$40*valuePL(I27,'Utility Functions'!$O$3:$O$6,'Utility Functions'!$P$3:$P$6)","v":0},{"$f":"$J$40*valuePL(J27,'Utility Functions'!$Q$3:$Q$6,'Utility Functions'!$R$3:$R$6)","v":0},{"$f":"$K$40*(valuePL(K27,'Utility Functions'!$S$3:$S$7,'Utility Functions'!$T$3:$T$7))","v":0},{"$f":"$L$40*(valueE(L27,'Utility Functions'!$V$3,'Utility Functions'!$V$4,'Utility Functions'!$V$5,'Utility Functions'!$V$6))","v":0},{"$f":"$M$40*valuePL(M27,'Utility Functions'!$W$3:$W$6,'Utility Functions'!$X$3:$X$6)","v":0},{"$f":"$N$40*valueE(N27,'Utility Functions'!$Z$3,'Utility Functions'!$Z$4,'Utility Functions'!$Z$5,'Utility Functions'!$Z$6)","v":0},{"$f":"$O$40*valuePL(O27,'Utility Functions'!$AA$3:$AA$5,'Utility Functions'!$AB$3:$AB$5)","v":0},{"$f":"$P$40*valuePL(P27,'Utility Functions'!$AC$3:$AC$7,'Utility Functions'!$AD$3:$AD$7)","v":0.03},{"$f":"$Q$40*valuePL(Q27,'Utility Functions'!$AE$3:$AE$6,'Utility Functions'!$AF$3:$AF$6)","v":0},{"$f":"$R$40*valuePL(R27,'Utility Functions'!$AG$3:$AG$6,'Utility Functions'!$AH$3:$AH$6)","v":0.05},{"$f":"$S$40*valuePL(S27,'Utility Functions'!$AI$3:$AI$6,'Utility Functions'!$AJ$3:$AJ$6)","v":0.05},{"$f":"$T$40*valuePL(T27,'Utility Functions'!$AK$3:$AK$8,'Utility Functions'!$AL$3:$AL$8)","v":2.4E-2},{"$f":"$U$40*valuePL(U27,'Utility Functions'!$AM$3:$AM$5,'Utility Functions'!$AN$3:$AN$5)","v":0},{"$f":"$V$40*valuePL(V27,'Utility Functions'!$AO$3:$AO$5,'Utility Functions'!$AP$3:$AP$5)","v":0.05},{"$f":"$W$40*valuePL(W27,'Utility Functions'!$AQ$3:$AQ$6,'Utility Functions'!$AR$3:$AR$6)","v":8.0000000000000002E-3},{"$f":"$X$40*valuePL(X27,'Utility Functions'!$AS$3:$AS$6,'Utility Functions'!$AT$3:$AT$6)","v":0},{"$f":"$Y$40*valuePL(Y27,'Utility Functions'!$AU$3:$AU$6,'Utility Functions'!$AV$3:$AV$6)","v":4.0000000000000008E-2},{"$f":"$Z$40*valuePL(Z27,'Utility Functions'!$AW$3:$AW$5,'Utility Functions'!$AX$3:$AX$5)","v":0},{"$f":"$AA$40*valuePL(AA27,'Utility Functions'!$AY$3:$AY$6,'Utility Functions'!$AZ$3:$AZ$6)","v":8.0000000000000002E-3},{"$f":"$AB$40*valuePL(AB27,'Utility Functions'!$BA$3:$BA$5,'Utility Functions'!$BB$3:$BB$5)","v":0.04},{"$f":"$AC$40*valuePL(AC27,'Utility Functions'!$BC$3:$BC$5,'Utility Functions'!$BD$3:$BD$5)","v":0.03},0.42942229688880618,0.4286593560912294]
[27,{"$f":"$B$40*(valueE(B28,'Utility Functions'!$B$3,'Utility Functions'!$B$4,'Utility Functions'!$B$5,'Utility Functions'!$B$6))","v":0},{"$f":"$C$40*(valueE(C28,'Utility Functions'!$D$3,'Utility Functions'!$D$4,'Utility Functions'!$D$5,'Utility Functions'!$D$6))","v":1.3942790146123618E-2},{"$f":"$D$40*(valuePL(D28,'Utility Functions'!$E$3:$E$5,'Utility Functions'!$F$3:$F$5))","v":0.03},{"$f":"$E$40*(valuePL(E28,'Utility Functions'!$G$3:$G$5,'Utility Functions'!$H$3:$H$5))","v":0},{"$f":"$F$40*(valuePL(F28,'Utility Functions'!$I$3:$I$4,'Utility Functions'!$J$3:$J$5))","v":0},{"$f":"$G$40*(valueE(G28,'Utility Functions'!$L$3,'Utility Functions'!$L$4,'Utility Functions'!$L$5,'Utility Functions'!$L$6))","v":0},{"$f":"$H$40*(valueE(H28,'Utility Functions'!$N$3,'Utility Functions'!$N$4,'Utility Functions'!$N$5,'Utility Functions'!$N$6))","v":0},{"$f":"$I$40*valuePL(I28,'Utility Functions'!$O$3:$O$6,'Utility Functions'!$P$3:$P$6)","v":0},{"$f":"$J$40*valuePL(J28,'Utility Functions'!$Q$3:$Q$6,'Utility Functions'!$R$3:$R$6)","v":0},{"$f":"$K$40*(valuePL(K28,'Utility Functions'!$S$3:$S$7,'Utility Functions'!$T$3:$T$7))","v":0.02},{"$f":"$L$40*(valueE(L28,'Utility Functions'!$V$3,'Utility Functions'!$V$4,'Utility Functions'!$V$5,'Utility Functions'!$V$6))","v":0},{"$f":"$M$40*valuePL(M28,'Utility Functions'!$W$3:$W$6,'Utility Functions'!$X$3:$X$6)","v":2E-3},{"$f":"$N$40*valueE(N28,'Utility Functions'!$Z$3,'Utility Functions'!$Z$4,'Utility Functions'!$Z$5,'Utility Functions'!$Z$6)","v":0},{"$f":"$O$40*valuePL(O28,'Utility Functions'!$AA$3:$AA$5,'Utility Functions'!$AB$3:$AB$5)","v":0},{"$f":"$P$40*valuePL(P28,'Utility Functions'!$AC$3:$AC$7,'Utility Functions'!$AD$3:$AD$7)","v":0.02},{"$f":"$Q$40*valuePL(Q28,'Utility Functions'!$AE$3:$AE$6,'Utility Functions'!$AF$3:$AF$6)","v":0.02},{"$f":"$R$40*valuePL(R28,'Utility Functions'!$AG$3:$AG$6,'Utility Functions'!$AH$3:$AH$6)","v":0.05},{"$f":"$S$40*valuePL(S28,'Utility Functions'!$AI$3:$AI$6,'Utility Functions'!$AJ$3:$AJ$6)","v":0.05},{"$f":"$T$40*valuePL(T28,'Utility Functions'!$AK$3:$AK$8,'Utility Functions'!$AL$3:$AL$8)","v":0.03},{"$f":"$U$40*valuePL(U28,'Utility Functions'!$AM$3:$AM$5,'Utility Functions'!$AN$3:$AN$5)","v":0},{"$f":"$V$40*valuePL(V28,'Utility Functions'!$AO$3:$AO$5,'Utility Functions'!$AP$3:$AP$5)","v":2.5000000000000001E-2},{"$f":"$W$40*valuePL(W28,'Utility Functions'!$AQ$3:$AQ$6,'Utility Functions'!$AR$3:$AR$6)","v":0.03},{"$f":"$X$40*valuePL(X28,'Utility Functions'!$AS$3:$AS$6,'Utility Functions'!$AT$3:$AT$6)","v":0.04},{"$f":"$Y$40*valuePL(Y28,'Utility Functions'!$AU$3:$AU$6,'Utility Functions'!$AV$3:$AV$6)","v":1.0000000000000002E-2},{"$f":"$Z$40*valuePL(Z28,'Utility Functions'!$AW$3:$AW$5,'Utility Functions'!$AX$3:$AX$5)","v":0},{"$f":"$AA$40*valuePL(AA28,'Utility Functions'!$AY$3:$AY$6,'Utility Functions'!$AZ$3:$AZ$6)","v":0},{"$f":"$AB$40*valuePL(AB28,'Utility Functions'!$BA$3:$BA$5,'Utility Functions'!$BB$3:$BB$5)","v":0},{"$f":"$AC$40*valuePL(AC28,'Utility Functions'!$BC$3:$BC$5,'Utility Functions'!$BD$3:$BD$5)","v":0},0.34094279014612355,0.34094279014612355]
[{"$f":"A29","v":28},{"$f":"$B$40*(valueE(B29,'Utility Functions'!$B$3,'Utility Functions'!$B$4,'Utility Functions'!$B$5,'Utility Functions'!$B$6))","v":1.3535671425672068E-2},{"$f":"$C$40*(valueE(C29,'Utility Functions'!$D$3,'Utility Functions'!$D$4,'Utility Functions'!$D$5,'Utility Functions'!$D$6))","v":1.3942790146123618E-2},{"$f":"$D$40*(valuePL(D29,'Utility Functions'!$E$3:$E$5,'Utility Functions'!$F$3:$F$5))","v":0.03},{"$f":"$E$40*(valuePL(E29,'Utility Functions'!$G$3:$G$5,'Utility Functions'!$H$3:$H$5))","v":0},{"$f":"$F$40*(valuePL(F29,'Utility Functions'!$I$3:$I$4,'Utility Functions'!$J$3:$J$5))","v":0.04},{"$f":"$G$40*(valueE(G29,'Utility Functions'!$L$3,'Utility Functions'!$L$4,'Utility Functions'!$L$5,'Utility Functions'!$L$6))","v":0},{"$f":"$H$40*(valueE(H29,'Utility Functions'!$N$3,'Utility Functions'!$N$4,'Utility Functions'!$N$5,'Utility Functions'!$N$6))","v":0},{"$f":"$I$40*valuePL(I29,'Utility Functions'!$O$3:$O$6,'Utility Functions'!$P$3:$P$6)","v":0},{"$f":"$J$40*valuePL(J29,'Utility Functions'!$Q$3:$Q$6,'Utility Functions'!$R$3:$R$6)","v":0},{"$f":"$K$40*(valuePL(K29,'Utility Functions'!$S$3:$S$7,'Utility Functions'!$T$3:$T$7))","v":0},{"$f":"$L$40*(valueE(L29,'Utility Functions'!$V$3,'Utility Functions'!$V$4,'Utility Functions'!$V$5,'Utility Functions'!$V$6))","v":6.6666666666666662E-3},{"$f":"$M$40*valuePL(M29,'Utility Functions'!$W$3:$W$6,'Utility Functions'!$X$3:$X$6)","v":2E-3},{"$f":"$N$40*valueE(N29,'Utility Functions'!$Z$3,'Utility Functions'!$Z$4,'Utility Functions'!$Z$5,'Utility Functions'!$Z$6)","v":0},{"$f":"$O$40*valuePL(O29,'Utility Functions'!$AA$3:$AA$5,'Utility Functions'!$AB$3:$AB$5)","v":0},{"$f":"$P$40*valuePL(P29,'Utility Functions'!$AC$3:$AC$7,'Utility Functions'!$AD$3:$AD$7)","v":0.04},{"$f":"$Q$40*valuePL(Q29,'Utility Functions'!$AE$3:$AE$6,'Utility Functions'!$AF$3:$AF$6)","v":0},{"$f":"$R$40*valuePL(R29,'Utility Functions'!$AG$3:$AG$6,'Utility Functions'!$AH$3:$AH$6)","v":0.05},{"$f":"$S$40*valuePL(S29,'Utility Functions'!$AI$3:$AI$6,'Utility Functions'!$AJ$3:$AJ$6)","v":0.05},{"$f":"$T$40*valuePL(T29,'Utility Functions'!$AK$3:$AK$8,'Utility Functions'!$AL$3:$AL$8)","v":2.4E-2},{"$f":"$U$40*valuePL(U29,'Utility Functions'!$AM$3:$AM$5,'Utility Functions'!$AN$3:$AN$5)","v":0},{"$f":"$V$40*valuePL(V29,'Utility Functions'!$AO$3:$AO$5,'Utility Functions'!$AP$3:$AP$5)","v":0.05},{"$f":"$W$40*valuePL(W29,'Utility Functions'!$AQ$3:$AQ$6,'Utility Functions'!$AR$3:$AR$6)","v":0.04},{"$f":"$X$40*valuePL(X29,'Utility Functions'!$AS$3:$AS$6,'Utility Functions'!$AT$3:$AT$6)","v":0.04},{"$f":"$Y$40*valuePL(Y29,'Utility Functions'!$AU$3:$AU$6,'Utility Functions'!$AV$3:$AV$6)","v":1.0000000000000002E-2},{"$f":"$Z$40*valuePL(Z29,'Utility Functions'!$AW$3:$AW$5,'Utility Functions'!$AX$3:$AX$5)","v":0},{"$f":"$AA$40*valuePL(AA29,'Utility Functions'!$AY$3:$AY$6,'Utility Functions'!$AZ$3:$AZ$6)","v":3.5999999999999997E-2},{"$f":"$AB$40*valuePL(AB29,'Utility Functions'!$BA$3:$BA$5,'Utility Functions'!$BB$3:$BB$5)","v":0.04},{"$f":"$AC$40*valuePL(AC29,'Utility Functions'!$BC$3:$BC$5,'Utility Functions'!$BD$3:$BD$5)","v":7.4999999999999997E-3},0.49364512823846229,0.49191370390613232]
[29,{"$f":"$B$40*(valueE(B30,'Utility Functions'!$B$3,'Utility Functions'!$B$4,'Utility Functions'!$B$5,'Utility Functions'!$B$6))","v":2.5041071294184137E-2},{"$f":"$C$40*(valueE(C30,'Utility Functions'!$D$3,'Utility Functions'!$D$4,'Utility Functions'!$D$5,'Utility Functions'!$D$6))","v":2.1405827917278249E-2},{"$f":"$D$40*(valuePL(D30,'Utility Functions'!$E$3:$E$5,'Utility Functions'!$F$3:$F$5))","v":0.03},{"$f":"$E$40*(valuePL(E30,'Utility Functions'!$G$3:$G$5,'Utility Functions'!$H$3:$H$5))","v":1.4999999999999999E-2},{"$f":"$F$40*(valuePL(F30,'Utility Functions'!$I$3:$I$4,'Utility Functions'!$J$3:$J$5))","v":0},{"$f":"$G$40*(valueE(G30,'Utility Functions'!$L$3,'Utility Functions'!$L$4,'Utility Functions'!$L$5,'Utility Functions'!$L$6))","v":0},{"$f":"$H$40*(valueE(H30,'Utility Functions'!$N$3,'Utility Functions'!$N$4,'Utility Functions'!$N$5,'Utility Functions'!$N$6))","v":0},{"$f":"$I$40*valuePL(I30,'Utility Functions'!$O$3:$O$6,'Utility Functions'!$P$3:$P$6)","v":1.8E-3},{"$f":"$J$40*valuePL(J30,'Utility Functions'!$Q$3:$Q$6,'Utility Functions'!$R$3:$R$6)","v":1.3454545454545455E-2},{"$f":"$K$40*(valuePL(K30,'Utility Functions'!$S$3:$S$7,'Utility Functions'!$T$3:$T$7))","v":0},{"$f":"$L$40*(valueE(L30,'Utility Functions'!$V$3,'Utility Functions'!$V$4,'Utility Functions'!$V$5,'Utility Functions'!$V$6))","v":0.02},{"$f":"$M$40*valuePL(M30,'Utility Functions'!$W$3:$W$6,'Utility Functions'!$X$3:$X$6)","v":1.3454545454545455E-2},{"$f":"$N$40*valueE(N30,'Utility Functions'!$Z$3,'Utility Functions'!$Z$4,'Utility Functions'!$Z$5,'Utility Functions'!$Z$6)","v":0},{"$f":"$O$40*valuePL(O30,'Utility Functions'!$AA$3:$AA$5,'Utility Functions'!$AB$3:$AB$5)","v":0},{"$f":"$P$40*valuePL(P30,'Utility Functions'!$AC$3:$AC$7,'Utility Functions'!$AD$3:$AD$7)","v":0.01},{"$f":"$Q$40*valuePL(Q30,'Utility Functions'!$AE$3:$AE$6,'Utility Functions'!$AF$3:$AF$6)","v":0},{"$f":"$R$40*valuePL(R30,'Utility Functions'!$AG$3:$AG$6,'Utility Functions'!$AH$3:$AH$6)","v":0.05},{"$f":"$S$40*valuePL(S30,'Utility Functions'!$AI$3:$AI$6,'Utility Functions'!$AJ$3:$AJ$6)","v":0.05},{"$f":"$T$40*valuePL(T30,'Utility Functions'!$AK$3:$AK$8,'Utility Functions'!$AL$3:$AL$8)","v":2.4E-2},{"$f":"$U$40*valuePL(U30,'Utility Functions'!$AM$3:$AM$5,'Utility Functions'!$AN$3:$AN$5)","v":0},{"$f":"$V$40*valuePL(V30,'Utility Functions'!$AO$3:$AO$5,'Utility Functions'!$AP$3:$AP$5)","v":0.05},{"$f":"$W$40*valuePL(W30,'Utility Functions'!$AQ$3:$AQ$6,'Utility Functions'!$AR$3:$AR$6)","v":8.0000000000000002E-3},{"$f":"$X$40*valuePL(X30,'Utility Functions'!$AS$3:$AS$6,'Utility Functions'!$AT$3:$AT$6)","v":0},{"$f":"$Y$40*valuePL(Y30,'Utility Functions'!$AU$3:$AU$6,'Utility Functions'!$AV$3:$AV$6)","v":4.0000000000000008E-2},{"$f":"$Z$40*valuePL(Z30,'Utility Functions'!$AW$3:$AW$5,'Utility Functions'!$AX$3:$AX$5)","v":2.5000000000000001E-2},{"$f":"$AA$40*valuePL(AA30,'Utility Functions'!$AY$3:$AY$6,'Utility Functions'!$AZ$3:$AZ$6)","v":8.0000000000000002E-3},{"$f":"$AB$40*valuePL(AB30,'Utility Functions'!$BA$3:$BA$5,'Utility Functions'!$BB$3:$BB$5)","v":0.01},{"$f":"$AC$40*valuePL(AC30,'Utility Functions'!$BC$3:$BC$5,'Utility Functions'!$BD$3:$BD$5)","v":0.03},0.4451559901205534,0.44342134352079532]
[30,{"$f":"$B$40*(valueE(B31,'Utility Functions'!$B$3,'Utility Functions'!$B$4,'Utility Functions'!$B$5,'Utility Functions'!$B$6))","v":2.9959234351431094E-2},{"$f":"$C$40*(valueE(C31,'Utility Functions'!$D$3,'Utility Functions'!$D$4,'Utility Functions'!$D$5,'Utility Functions'!$D$6))","v":2.542345105018548E-2},{"$f":"$D$40*(valuePL(D31,'Utility Functions'!$E$3:$E$5,'Utility Functions'!$F$3:$F$5))","v":0.03},{"$f":"$E$40*(valuePL(E31,'Utility Functions'!$G$3:$G$5,'Utility Functions'!$H$3:$H$5))","v":0},{"$f":"$F$40*(valuePL(F31,'Utility Functions'!$I$3:$I$4,'Utility Functions'!$J$3:$J$5))","v":0},{"$f":"$G$40*(valueE(G31,'Utility Functions'!$L$3,'Utility Functions'!$L$4,'Utility Functions'!$L$5,'Utility Functions'!$L$6))","v":0},{"$f":"$H$40*(valueE(H31,'Utility Functions'!$N$3,'Utility Functions'!$N$4,'Utility Functions'!$N$5,'Utility Functions'!$N$6))","v":0},{"$f":"$I$40*valuePL(I31,'Utility Functions'!$O$3:$O$6,'Utility Functions'!$P$3:$P$6)","v":0},{"$f":"$J$40*valuePL(J31,'Utility Functions'!$Q$3:$Q$6,'Utility Functions'!$R$3:$R$6)","v":0},{"$f":"$K$40*(valuePL(K31,'Utility Functions'!$S$3:$S$7,'Utility Functions'!$T$3:$T$7))","v":0},{"$f":"$L$40*(valueE(L31,'Utility Functions'!$V$3,'Utility Functions'!$V$4,'Utility Functions'!$V$5,'Utility Functions'!$V$6))","v":6.6666666666666662E-3},{"$f":"$M$40*valuePL(M31,'Utility Functions'!$W$3:$W$6,'Utility Functions'!$X$3:$X$6)","v":8.0000000000000004E-4},{"$f":"$N$40*valueE(N31,'Utility Functions'!$Z$3,'Utility Functions'!$Z$4,'Utility Functions'!$Z$5,'Utility Functions'!$Z$6)","v":0},{"$f":"$O$40*valuePL(O31,'Utility Functions'!$AA$3:$AA$5,'Utility Functions'!$AB$3:$AB$5)","v":0},{"$f":"$P$40*valuePL(P31,'Utility Functions'!$AC$3:$AC$7,'Utility Functions'!$AD$3:$AD$7)","v":0},{"$f":"$Q$40*valuePL(Q31,'Utility Functions'!$AE$3:$AE$6,'Utility Functions'!$AF$3:$AF$6)","v":0},{"$f":"$R$40*valuePL(R31,'Utility Functions'!$AG$3:$AG$6,'Utility Functions'!$AH$3:$AH$6)","v":1.0000000000000002E-2},{"$f":"$S$40*valuePL(S31,'Utility Functions'!$AI$3:$AI$6,'Utility Functions'!$AJ$3:$AJ$6)","v":1.6500000000000001E-2},{"$f":"$T$40*valuePL(T31,'Utility Functions'!$AK$3:$AK$8,'Utility Functions'!$AL$3:$AL$8)","v":0},{"$f":"$U$40*valuePL(U31,'Utility Functions'!$AM$3:$AM$5,'Utility Functions'!$AN$3:$AN$5)","v":0},{"$f":"$V$40*valuePL(V31,'Utility Functions'!$AO$3:$AO$5,'Utility Functions'!$AP$3:$AP$5)","v":0},{"$f":"$W$40*valuePL(W31,'Utility Functions'!$AQ$3:$AQ$6,'Utility Functions'!$AR$3:$AR$6)","v":0.04},{"$f":"$X$40*valuePL(X31,'Utility Functions'!$AS$3:$AS$6,'Utility Functions'!$AT$3:$AT$6)","v":8.0000000000000002E-3},{"$f":"$Y$40*valuePL(Y31,'Utility Functions'!$AU$3:$AU$6,'Utility Functions'!$AV$3:$AV$6)","v":4.0000000000000008E-2},{"$f":"$Z$40*valuePL(Z31,'Utility Functions'!$AW$3:$AW$5,'Utility Functions'!$AX$3:$AX$5)","v":0},{"$f":"$AA$40*valuePL(AA31,'Utility Functions'!$AY$3:$AY$6,'Utility Functions'!$AZ$3:$AZ$6)","v":3.5999999999999997E-2},{"$f":"$AB$40*valuePL(AB31,'Utility Functions'!$BA$3:$BA$5,'Utility Functions'!$BB$3:$BB$5)","v":0.04},{"$f":"$AC$40*valuePL(AC31,'Utility Functions'!$BC$3:$BC$5,'Utility Functions'!$BD$3:$BD$5)","v":0},0.28334935206828327,0.2832679369768803]
[31,{"$f":"$B$40*(valueE(B32,'Utility Functions'!$B$3,'Utility Functions'!$B$4,'Utility Functions'!$B$5,'Utility Functions'!$B$6))","v":1.6520156106900608E-2},{"$f":"$C$40*(valueE(C32,'Utility Functions'!$D$3,'Utility Functions'!$D$4,'Utility Functions'!$D$5,'Utility Functions'!$D$6))","v":2.542345105018548E-2},{"$f":"$D$40*(valuePL(D32,'Utility Functions'!$E$3:$E$5,'Utility Functions'!$F$3:$F$5))","v":1.4999999999999999E-2},{"$f":"$E$40*(valuePL(E32,'Utility Functions'!$G$3:$G$5,'Utility Functions'!$H$3:$H$5))","v":0},{"$f":"$F$40*(valuePL(F32,'Utility Functions'!$I$3:$I$4,'Utility Functions'!$J$3:$J$5))","v":0},{"$f":"$G$40*(valueE(G32,'Utility Functions'!$L$3,'Utility Functions'!$L$4,'Utility Functions'!$L$5,'Utility Functions'!$L$6))","v":0},{"$f":"$H$40*(valueE(H32,'Utility Functions'!$N$3,'Utility Functions'!$N$4,'Utility Functions'!$N$5,'Utility Functions'!$N$6))","v":0},{"$f":"$I$40*valuePL(I32,'Utility Functions'!$O$3:$O$6,'Utility Functions'!$P$3:$P$6)","v":2.2636363636363635E-2},{"$f":"$J$40*valuePL(J32,'Utility Functions'!$Q$3:$Q$6,'Utility Functions'!$R$3:$R$6)","v":1.6000000000000001E-3},{"$f":"$K$40*(valuePL(K32,'Utility Functions'!$S$3:$S$7,'Utility Functions'!$T$3:$T$7))","v":0},{"$f":"$L$40*(valueE(L32,'Utility Functions'!$V$3,'Utility Functions'!$V$4,'Utility Functions'!$V$5,'Utility Functions'!$V$6))","v":6.6666666666666662E-3},{"$f":"$M$40*valuePL(M32,'Utility Functions'!$W$3:$W$6,'Utility Functions'!$X$3:$X$6)","v":1.6000000000000001E-3},{"$f":"$N$40*valueE(N32,'Utility Functions'!$Z$3,'Utility Functions'!$Z$4,'Utility Functions'!$Z$5,'Utility Functions'!$Z$6)","v":0},{"$f":"$O$40*valuePL(O32,'Utility Functions'!$AA$3:$AA$5,'Utility Functions'!$AB$3:$AB$5)","v":0},{"$f":"$P$40*valuePL(P32,'Utility Functions'!$AC$3:$AC$7,'Utility Functions'!$AD$3:$AD$7)","v":0.02},{"$f":"$Q$40*valuePL(Q32,'Utility Functions'!$AE$3:$AE$6,'Utility Functions'!$AF$3:$AF$6)","v":0},{"$f":"$R$40*valuePL(R32,'Utility Functions'!$AG$3:$AG$6,'Utility Functions'!$AH$3:$AH$6)","v":0.05},{"$f":"$S$40*valuePL(S32,'Utility Functions'!$AI$3:$AI$6,'Utility Functions'!$AJ$3:$AJ$6)","v":3.3000000000000002E-2},{"$f":"$T$40*valuePL(T32,'Utility Functions'!$AK$3:$AK$8,'Utility Functions'!$AL$3:$AL$8)","v":1.7999999999999999E-2},{"$f":"$U$40*valuePL(U32,'Utility Functions'!$AM$3:$AM$5,'Utility Functions'!$AN$3:$AN$5)","v":0},{"$f":"$V$40*valuePL(V32,'Utility Functions'!$AO$3:$AO$5,'Utility Functions'!$AP$3:$AP$5)","v":2.5000000000000001E-2},{"$f":"$W$40*valuePL(W32,'Utility Functions'!$AQ$3:$AQ$6,'Utility Functions'!$AR$3:$AR$6)","v":0},{"$f":"$X$40*valuePL(X32,'Utility Functions'!$AS$3:$AS$6,'Utility Functions'!$AT$3:$AT$6)","v":8.0000000000000002E-3},{"$f":"$Y$40*valuePL(Y32,'Utility Functions'!$AU$3:$AU$6,'Utility Functions'!$AV$3:$AV$6)","v":1.0000000000000002E-2},{"$f":"$Z$40*valuePL(Z32,'Utility Functions'!$AW$3:$AW$5,'Utility Functions'!$AX$3:$AX$5)","v":0.05},{"$f":"$AA$40*valuePL(AA32,'Utility Functions'!$AY$3:$AY$6,'Utility Functions'!$AZ$3:$AZ$6)","v":3.5999999999999997E-2},{"$f":"$AB$40*valuePL(AB32,'Utility Functions'!$BA$3:$BA$5,'Utility Functions'!$BB$3:$BB$5)","v":0.01},{"$f":"$AC$40*valuePL(AC32,'Utility Functions'!$BC$3:$BC$5,'Utility Functions'!$BD$3:$BD$5)","v":7.4999999999999997E-3},0.35694663746011634,0.35502417415981324]
[{"$f":"A33","v":32},{"$f":"$B$40*(valueE(B33,'Utility Functions'!$B$3,'Utility Functions'!$B$4,'Utility Functions'!$B$5,'Utility Functions'!$B$6))","v":1.896364549751255E-2},{"$f":"$C$40*(valueE(C33,'Utility Functions'!$D$3,'Utility Functions'!$D$4,'Utility Functions'!$D$5,'Utility Functions'!$D$6))","v":8.0518966871447988E-3},{"$f":"$D$40*(valuePL(D33,'Utility Functions'!$E$3:$E$5,'Utility Functions'!$F$3:$F$5))","v":0.03},{"$f":"$E$40*(valuePL(E33,'Utility Functions'!$G$3:$G$5,'Utility Functions'!$H$3:$H$5))","v":0.03},{"$f":"$F$40*(valuePL(F33,'Utility Functions'!$I$3:$I$4,'Utility Functions'!$J$3:$J$5))","v":0.04},{"$f":"$G$40*(valueE(G33,'Utility Functions'!$L$3,'Utility Functions'!$L$4,'Utility Functions'!$L$5,'Utility Functions'!$L$6))","v":4.8387096774193543E-4},{"$f":"$H$40*(valueE(H33,'Utility Functions'!$N$3,'Utility Functions'!$N$4,'Utility Functions'!$N$5,'Utility Functions'!$N$6))","v":1.4516129032258063E-3},{"$f":"$I$40*valuePL(I33,'Utility Functions'!$O$3:$O$6,'Utility Functions'!$P$3:$P$6)","v":1.0363636363636363E-2},{"$f":"$J$40*valuePL(J33,'Utility Functions'!$Q$3:$Q$6,'Utility Functions'!$R$3:$R$6)","v":0.02},{"$f":"$K$40*(valuePL(K33,'Utility Functions'!$S$3:$S$7,'Utility Functions'!$T$3:$T$7))","v":6.909090909090909E-3},{"$f":"$L$40*(valueE(L33,'Utility Functions'!$V$3,'Utility Functions'!$V$4,'Utility Functions'!$V$5,'Utility Functions'!$V$6))","v":0.02},{"$f":"$M$40*valuePL(M33,'Utility Functions'!$W$3:$W$6,'Utility Functions'!$X$3:$X$6)","v":0.02},{"$f":"$N$40*valueE(N33,'Utility Functions'!$Z$3,'Utility Functions'!$Z$4,'Utility Functions'!$Z$5,'Utility Functions'!$Z$6)","v":0},{"$f":"$O$40*valuePL(O33,'Utility Functions'!$AA$3:$AA$5,'Utility Functions'!$AB$3:$AB$5)","v":0},{"$f":"$P$40*valuePL(P33,'Utility Functions'!$AC$3:$AC$7,'Utility Functions'!$AD$3:$AD$7)","v":0.02},{"$f":"$Q$40*valuePL(Q33,'Utility Functions'!$AE$3:$AE$6,'Utility Functions'!$AF$3:$AF$6)","v":0.04},{"$f":"$R$40*valuePL(R33,'Utility Functions'!$AG$3:$AG$6,'Utility Functions'!$AH$3:$AH$6)","v":0.05},{"$f":"$S$40*valuePL(S33,'Utility Functions'!$AI$3:$AI$6,'Utility Functions'!$AJ$3:$AJ$6)","v":0},{"$f":"$T$40*valuePL(T33,'Utility Functions'!$AK$3:$AK$8,'Utility Functions'!$AL$3:$AL$8)","v":2.4E-2},{"$f":"$U$40*valuePL(U33,'Utility Functions'!$AM$3:$AM$5,'Utility Functions'!$AN$3:$AN$5)","v":0},{"$f":"$V$40*valuePL(V33,'Utility Functions'!$AO$3:$AO$5,'Utility Functions'!$AP$3:$AP$5)","v":0},{"$f":"$W$40*valuePL(W33,'Utility Functions'!$AQ$3:$AQ$6,'Utility Functions'!$AR$3:$AR$6)","v":0.03},{"$f":"$X$40*valuePL(X33,'Utility Functions'!$AS$3:$AS$6,'Utility Functions'!$AT$3:$AT$6)","v":8.0000000000000002E-3},{"$f":"$Y$40*valuePL(Y33,'Utility Functions'!$AU$3:$AU$6,'Utility Functions'!$AV$3:$AV$6)","v":4.0000000000000008E-2},{"$f":"$Z$40*valuePL(Z33,'Utility Functions'!$AW$3:$AW$5,'Utility Functions'!$AX$3:$AX$5)","v":2.5000000000000001E-2},{"$f":"$AA$40*valuePL(AA33,'Utility Functions'!$AY$3:$AY$6,'Utility Functions'!$AZ$3:$AZ$6)","v":0},{"$f":"$AB$40*valuePL(AB33,'Utility Functions'!$BA$3:$BA$5,'Utility Functions'!$BB$3:$BB$5)","v":0.04},{"$f":"$AC$40*valuePL(AC33,'Utility Functions'!$BC$3:$BC$5,'Utility Functions'!$BD$3:$BD$5)","v":7.4999999999999997E-3},0.49072375332835239,0.48872240138318201]
[33,{"$f":"$B$40*(valueE(B34,'Utility Functions'!$B$3,'Utility Functions'!$B$4,'Utility Functions'!$B$5,'Utility Functions'!$B$6))","v":2.8175740811551258E-2},{"$f":"$C$40*(valueE(C34,'Utility Functions'!$D$3,'Utility Functions'!$D$4,'Utility Functions'!$D$5,'Utility Functions'!$D$6))","v":2.542345105018548E-2},{"$f":"$D$40*(valuePL(D34,'Utility Functions'!$E$3:$E$5,'Utility Functions'!$F$3:$F$5))","v":0.03},{"$f":"$E$40*(valuePL(E34,'Utility Functions'!$G$3:$G$5,'Utility Functions'!$H$3:$H$5))","v":1.4999999999999999E-2},{"$f":"$F$40*(valuePL(F34,'Utility Functions'!$I$3:$I$4,'Utility Functions'!$J$3:$J$5))","v":0},{"$f":"$G$40*(valueE(G34,'Utility Functions'!$L$3,'Utility Functions'!$L$4,'Utility Functions'!$L$5,'Utility Functions'!$L$6))","v":0},{"$f":"$H$40*(valueE(H34,'Utility Functions'!$N$3,'Utility Functions'!$N$4,'Utility Functions'!$N$5,'Utility Functions'!$N$6))","v":0},{"$f":"$I$40*valuePL(I34,'Utility Functions'!$O$3:$O$6,'Utility Functions'!$P$3:$P$6)","v":0},{"$f":"$J$40*valuePL(J34,'Utility Functions'!$Q$3:$Q$6,'Utility Functions'!$R$3:$R$6)","v":0},{"$f":"$K$40*(valuePL(K34,'Utility Functions'!$S$3:$S$7,'Utility Functions'!$T$3:$T$7))","v":0},{"$f":"$L$40*(valueE(L34,'Utility Functions'!$V$3,'Utility Functions'!$V$4,'Utility Functions'!$V$5,'Utility Functions'!$V$6))","v":0.01},{"$f":"$M$40*valuePL(M34,'Utility Functions'!$W$3:$W$6,'Utility Functions'!$X$3:$X$6)","v":0},{"$f":"$N$40*valueE(N34,'Utility Functions'!$Z$3,'Utility Functions'!$Z$4,'Utility Functions'!$Z$5,'Utility Functions'!$Z$6)","v":0},{"$f":"$O$40*valuePL(O34,'Utility Functions'!$AA$3:$AA$5,'Utility Functions'!$AB$3:$AB$5)","v":0},{"$f":"$P$40*valuePL(P34,'Utility Functions'!$AC$3:$AC$7,'Utility Functions'!$AD$3:$AD$7)","v":0.02},{"$f":"$Q$40*valuePL(Q34,'Utility Functions'!$AE$3:$AE$6,'Utility Functions'!$AF$3:$AF$6)","v":0},{"$f":"$R$40*valuePL(R34,'Utility Functions'!$AG$3:$AG$6,'Utility Functions'!$AH$3:$AH$6)","v":0.05},{"$f":"$S$40*valuePL(S34,'Utility Functions'!$AI$3:$AI$6,'Utility Functions'!$AJ$3:$AJ$6)","v":3.3000000000000002E-2},{"$f":"$T$40*valuePL(T34,'Utility Functions'!$AK$3:$AK$8,'Utility Functions'!$AL$3:$AL$8)","v":0},{"$f":"$U$40*valuePL(U34,'Utility Functions'!$AM$3:$AM$5,'Utility Functions'!$AN$3:$AN$5)","v":0},{"$f":"$V$40*valuePL(V34,'Utility Functions'!$AO$3:$AO$5,'Utility Functions'!$AP$3:$AP$5)","v":2.5000000000000001E-2},{"$f":"$W$40*valuePL(W34,'Utility Functions'!$AQ$3:$AQ$6,'Utility Functions'!$AR$3:$AR$6)","v":0.04},{"$f":"$X$40*valuePL(X34,'Utility Functions'!$AS$3:$AS$6,'Utility Functions'!$AT$3:$AT$6)","v":0},{"$f":"$Y$40*valuePL(Y34,'Utility Functions'!$AU$3:$AU$6,'Utility Functions'!$AV$3:$AV$6)","v":4.0000000000000008E-2},{"$f":"$Z$40*valuePL(Z34,'Utility Functions'!$AW$3:$AW$5,'Utility Functions'!$AX$3:$AX$5)","v":0.05},{"$f":"$AA$40*valuePL(AA34,'Utility Functions'!$AY$3:$AY$6,'Utility Functions'!$AZ$3:$AZ$6)","v":0.04},{"$f":"$AB$40*valuePL(AB34,'Utility Functions'!$BA$3:$BA$5,'Utility Functions'!$BB$3:$BB$5)","v":0},{"$f":"$AC$40*valuePL(AC34,'Utility Functions'!$BC$3:$BC$5,'Utility Functions'!$BD$3:$BD$5)","v":0},0.40659919186173665,0.40551467502143035]
[34,{"$f":"$B$40*(valueE(B35,'Utility Functions'!$B$3,'Utility Functions'!$B$4,'Utility Functions'!$B$5,'Utility Functions'!$B$6))","v":0},{"$f":"$C$40*(valueE(C35,'Utility Functions'!$D$3,'Utility Functions'!$D$4,'Utility Functions'!$D$5,'Utility Functions'!$D$6))","v":0},{"$f":"$D$40*(valuePL(D35,'Utility Functions'!$E$3:$E$5,'Utility Functions'!$F$3:$F$5))","v":0},{"$f":"$E$40*(valuePL(E35,'Utility Functions'!$G$3:$G$5,'Utility Functions'!$H$3:$H$5))","v":0},{"$f":"$F$40*(valuePL(F35,'Utility Functions'!$I$3:$I$4,'Utility Functions'!$J$3:$J$5))","v":0},{"$f":"$G$40*(valueE(G35,'Utility Functions'!$L$3,'Utility Functions'!$L$4,'Utility Functions'!$L$5,'Utility Functions'!$L$6))","v":0},{"$f":"$H$40*(valueE(H35,'Utility Functions'!$N$3,'Utility Functions'!$N$4,'Utility Functions'!$N$5,'Utility Functions'!$N$6))","v":1.7077798861480075E-4},{"$f":"$I$40*valuePL(I35,'Utility Functions'!$O$3:$O$6,'Utility Functions'!$P$3:$P$6)","v":0.03},{"$f":"$J$40*valuePL(J35,'Utility Functions'!$Q$3:$Q$6,'Utility Functions'!$R$3:$R$6)","v":1.8363636363636363E-2},{"$f":"$K$40*(valuePL(K35,'Utility Functions'!$S$3:$S$7,'Utility Functions'!$T$3:$T$7))","v":0.02},{"$f":"$L$40*(valueE(L35,'Utility Functions'!$V$3,'Utility Functions'!$V$4,'Utility Functions'!$V$5,'Utility Functions'!$V$6))","v":0.02},{"$f":"$M$40*valuePL(M35,'Utility Functions'!$W$3:$W$6,'Utility Functions'!$X$3:$X$6)","v":1.8363636363636363E-2},{"$f":"$N$40*valueE(N35,'Utility Functions'!$Z$3,'Utility Functions'!$Z$4,'Utility Functions'!$Z$5,'Utility Functions'!$Z$6)","v":0},{"$f":"$O$40*valuePL(O35,'Utility Functions'!$AA$3:$AA$5,'Utility Functions'!$AB$3:$AB$5)","v":0},{"$f":"$P$40*valuePL(P35,'Utility Functions'!$AC$3:$AC$7,'Utility Functions'!$AD$3:$AD$7)","v":0.02},{"$f":"$Q$40*valuePL(Q35,'Utility Functions'!$AE$3:$AE$6,'Utility Functions'!$AF$3:$AF$6)","v":0},{"$f":"$R$40*valuePL(R35,'Utility Functions'!$AG$3:$AG$6,'Utility Functions'!$AH$3:$AH$6)","v":0.05},{"$f":"$S$40*valuePL(S35,'Utility Functions'!$AI$3:$AI$6,'Utility Functions'!$AJ$3:$AJ$6)","v":0.05},{"$f":"$T$40*valuePL(T35,'Utility Functions'!$AK$3:$AK$8,'Utility Functions'!$AL$3:$AL$8)","v":2.4E-2},{"$f":"$U$40*valuePL(U35,'Utility Functions'!$AM$3:$AM$5,'Utility Functions'!$AN$3:$AN$5)","v":0},{"$f":"$V$40*valuePL(V35,'Utility Functions'!$AO$3:$AO$5,'Utility Functions'!$AP$3:$AP$5)","v":0.05},{"$f":"$W$40*valuePL(W35,'Utility Functions'!$AQ$3:$AQ$6,'Utility Functions'!$AR$3:$AR$6)","v":0.04},{"$f":"$X$40*valuePL(X35,'Utility Functions'!$AS$3:$AS$6,'Utility Functions'!$AT$3:$AT$6)","v":0.04},{"$f":"$Y$40*valuePL(Y35,'Utility Functions'!$AU$3:$AU$6,'Utility Functions'!$AV$3:$AV$6)","v":0},{"$f":"$Z$40*valuePL(Z35,'Utility Functions'!$AW$3:$AW$5,'Utility Functions'!$AX$3:$AX$5)","v":0.05},{"$f":"$AA$40*valuePL(AA35,'Utility Functions'!$AY$3:$AY$6,'Utility Functions'!$AZ$3:$AZ$6)","v":3.5999999999999997E-2},{"$f":"$AB$40*valuePL(AB35,'Utility Functions'!$BA$3:$BA$5,'Utility Functions'!$BB$3:$BB$5)","v":0.01},{"$f":"$AC$40*valuePL(AC35,'Utility Functions'!$BC$3:$BC$5,'Utility Functions'!$BD$3:$BD$5)","v":0},0.47689805071588748,0.47689805071588748]
[35,{"$f":"$B$40*(valueE(B36,'Utility Functions'!$B$3,'Utility Functions'!$B$4,'Utility Functions'!$B$5,'Utility Functions'!$B$6))","v":2.3943140737469053E-2},{"$f":"$C$40*(valueE(C36,'Utility Functions'!$D$3,'Utility Functions'!$D$4,'Utility Functions'!$D$5,'Utility Functions'!$D$6))","v":1.8281994940530583E-2},{"$f":"$D$40*(valuePL(D36,'Utility Functions'!$E$3:$E$5,'Utility Functions'!$F$3:$F$5))","v":1.4999999999999999E-2},{"$f":"$E$40*(valuePL(E36,'Utility Functions'!$G$3:$G$5,'Utility Functions'!$H$3:$H$5))","v":1.4999999999999999E-2},{"$f":"$F$40*(valuePL(F36,'Utility Functions'!$I$3:$I$4,'Utility Functions'!$J$3:$J$5))","v":0.04},{"$f":"$G$40*(valueE(G36,'Utility Functions'!$L$3,'Utility Functions'!$L$4,'Utility Functions'!$L$5,'Utility Functions'!$L$6))","v":0},{"$f":"$H$40*(valueE(H36,'Utility Functions'!$N$3,'Utility Functions'!$N$4,'Utility Functions'!$N$5,'Utility Functions'!$N$6))","v":0},{"$f":"$I$40*valuePL(I36,'Utility Functions'!$O$3:$O$6,'Utility Functions'!$P$3:$P$6)","v":0},{"$f":"$J$40*valuePL(J36,'Utility Functions'!$Q$3:$Q$6,'Utility Functions'!$R$3:$R$6)","v":0},{"$f":"$K$40*(valuePL(K36,'Utility Functions'!$S$3:$S$7,'Utility Functions'!$T$3:$T$7))","v":0.02},{"$f":"$L$40*(valueE(L36,'Utility Functions'!$V$3,'Utility Functions'!$V$4,'Utility Functions'!$V$5,'Utility Functions'!$V$6))","v":1.3333333333333332E-2},{"$f":"$M$40*valuePL(M36,'Utility Functions'!$W$3:$W$6,'Utility Functions'!$X$3:$X$6)","v":2E-3},{"$f":"$N$40*valueE(N36,'Utility Functions'!$Z$3,'Utility Functions'!$Z$4,'Utility Functions'!$Z$5,'Utility Functions'!$Z$6)","v":0.03},{"$f":"$O$40*valuePL(O36,'Utility Functions'!$AA$3:$AA$5,'Utility Functions'!$AB$3:$AB$5)","v":0},{"$f":"$P$40*valuePL(P36,'Utility Functions'!$AC$3:$AC$7,'Utility Functions'!$AD$3:$AD$7)","v":0},{"$f":"$Q$40*valuePL(Q36,'Utility Functions'!$AE$3:$AE$6,'Utility Functions'!$AF$3:$AF$6)","v":0},{"$f":"$R$40*valuePL(R36,'Utility Functions'!$AG$3:$AG$6,'Utility Functions'!$AH$3:$AH$6)","v":0.05},{"$f":"$S$40*valuePL(S36,'Utility Functions'!$AI$3:$AI$6,'Utility Functions'!$AJ$3:$AJ$6)","v":0.05},{"$f":"$T$40*valuePL(T36,'Utility Functions'!$AK$3:$AK$8,'Utility Functions'!$AL$3:$AL$8)","v":1.7999999999999999E-2},{"$f":"$U$40*valuePL(U36,'Utility Functions'!$AM$3:$AM$5,'Utility Functions'!$AN$3:$AN$5)","v":0},{"$f":"$V$40*valuePL(V36,'Utility Functions'!$AO$3:$AO$5,'Utility Functions'!$AP$3:$AP$5)","v":0.05},{"$f":"$W$40*valuePL(W36,'Utility Functions'!$AQ$3:$AQ$6,'Utility Functions'!$AR$3:$AR$6)","v":0.03},{"$f":"$X$40*valuePL(X36,'Utility Functions'!$AS$3:$AS$6,'Utility Functions'!$AT$3:$AT$6)","v":0},{"$f":"$Y$40*valuePL(Y36,'Utility Functions'!$AU$3:$AU$6,'Utility Functions'!$AV$3:$AV$6)","v":1.0000000000000002E-2},{"$f":"$Z$40*valuePL(Z36,'Utility Functions'!$AW$3:$AW$5,'Utility Functions'!$AX$3:$AX$5)","v":0.05},{"$f":"$AA$40*valuePL(AA36,'Utility Functions'!$AY$3:$AY$6,'Utility Functions'!$AZ$3:$AZ$6)","v":0},{"$f":"$AB$40*valuePL(AB36,'Utility Functions'!$BA$3:$BA$5,'Utility Functions'!$BB$3:$BB$5)","v":0.01},{"$f":"$AC$40*valuePL(AC36,'Utility Functions'!$BC$3:$BC$5,'Utility Functions'!$BD$3:$BD$5)","v":7.4999999999999997E-3},0.45305846901133295,0.45120772646574747,null,"management","status","ecol_proc","integration","rigor"]
["Portfolio total",{"$f":"SUMPRODUCT($B$82:$B$116,B$43:B$77)","v":7.2939293853939546E-2},{"$f":"SUMPRODUCT($B$82:$B$116,C$43:C$77)","v":5.001075782124989E-2},0.15,0.03,0,1.4999999999999999E-2,1.4999999999999999E-2,4.4018181818181824E-2,3.5999999999999999E-3,0.02,0,2E-3,1.4999999999999999E-2,2.2499999999999999E-2,0.06,3.2000000000000001E-2,0.19,0.25,9.6000000000000002E-2,7.4999999999999997E-3,0.1,0.15,0.2,0.11000000000000001,0.05,0.04,0.16,5.2499999999999998E-2,1.938068233493371,1.9319727464488066,null,{"$f":"SUM(B78:F78)","v":0.3029500516751894},{"$f":"SUM(G78:M78)","v":9.9618181818181828E-2},{"$f":"SUM(N78:O78)","v":3.7499999999999999E-2},{"$f":"SUM(P78:U78)","v":0.63549999999999995},{"$f":"SUM(V78:AC78)","v":0.86250000000000016}]
[]
[]
[null,"Decision variable","Benefit","Cost"]
[{"$f":"A2","v":1},1,{"$f":"AD43","v":0.62852931598576234},{"$f":"AD2","v":700000}]
[{"$f":"A3","v":2},0,{"$f":"AD44","v":0.53424877401727988},{"$f":"AD3","v":5400000}]
[3,0,0.45890624332907692,250000]
[4,1,0.37738087579326757,150000]
[5,1,0.37358983775406607,220000]
[6,1,0.21762541381415162,110000]
[7,0,0.55883167443779502,1000000]
[8,0,0.52659366793040296,5000000]
[9,0,0.45837563615750632,25000]
[10,0,0.42049999999999998,900000]
[11,0,0.48800366568914949,1500000]
[12,0,0.38158740731015961,100000]
[13,0,0.30547532344316031,250000]
[14,0,0.4311611991122532,500000]
[15,0,0.60971431784243146,800000]
[16,0,0.54339393939393943,2000000]
[17,0,0.40209196138985603,500000]
[{"$f":"A19","v":18},0,0.43942694497153706,300000]
[19,0,0.41549503742461386,750000]
[20,0,0.55885300951154004,1500000]
[21,0,0.42149999999999999,900000]
[22,0,0.44445113851992418,750000]
[23,0,0.37896452234436967,1000000]
[24,0,0.37890643564363613,150000]
[25,0,0.53254137243924626,250000]
[26,0,0.42942229688880618,500000]
[27,1,0.34094279014612355,1200000]
[28,0,0.49364512823846229,500000]
[{"$f":"A30","v":29},0,0.4451559901205534,2000000]
[30,0,0.28334935206828327,250000]
[31,0,0.35694663746011634,650000]
[32,0,0.49072375332835239,200000]
[{"$f":"A34","v":33},0,0.40659919186173665,400000]
[34,0,0.47689805071588748,900000]
[{"$f":"A36","v":35},0,0.45305846901133295,900000]
[null,5,{"$f":"SUMPRODUCT(B82:B116,C82:C116)","v":1.938068233493371},{"$f":"SUMPRODUCT(B82:B116,D82:D116)","v":2380000}]
[]
[null,null,"Cost constraint",15000000]

{"sheet":"Portfolio_C","index":7,"n_rows":119,"n_cols":37,"rows_kept":119,"cut":false,"hidden":false,"merged":[]}
["Project","manage_species","manage_spatial","manage_uncertainty","manage_currentpractices","manage_adaptivemanagement","pop_a","pop_b","pop_spatialscope","pop_temporalscope","hab_quantity","hab_quality","hab_temporal","ecoprocess_spp","ecoprocess_uncertainty","datasharing","broaderimpacts","exisitingpriorities","partners","leverage","alignment","objhyp","response","targettaxa","surveydesign","stats","datamanagement","budget","timeline","cost"]
[1,9,6.25,2,2,0,186,1054,75,5,0,2,0,0,0,4,0,2,3,0,0,2,3,3,3,2,3,2,2,700000]
[2,3,28.2,1,0,0,0,0,0,0,0,2,0,4,1,0,0,3,3,0,0,2,3,3,3,2,3,2,2,5400000]
[3,8,28.2,2,0,0,0,0,0,0,0,2,0,5,1,0,2,0,0,0,1,2,3,3,3,2,1,2,2,250000]
[4,1,6.25,2,0,0,0,0,0,0,0,2,0,4,1,0,1,3,3,4,0,1,3,3,1,0,0,2,1,150000]
[5,4,3.1,2,0,0,0,0,50,2,0,2,0,0,0,0,1,3,3,4,1,0,3,3,2,0,0,2,1,220000]
[6,10,6.2E-2,2,0,0,0,0,10,2,0,2,0,0,0,0,1,0,3,3,0,0,0,3,0,0,0,2,1,110000]
[7,52,18.8,0,2,0,0,0,85,12,85,8,12,8,1,0,0,3,3,0,0,2,0,1,3,2,2,0,2,1000000]
[8,3,18.8,2,1,1,0,0,14,14,14,8,14,0,0,0,3,1,3,0,0,2,3,3,3,2,0,1,1,5000000]
[9,9,15.6,2,1,0,70,140,0,0,0,2,0,0,0,3,0,3,2,1,0,2,3,3,1,2,1,1,2,25000]
[10,0,0,0,0,0,0,0,0,0,0,2,0,6,2,1,2,3,2,2,0,0,2,3,3,1,1,0,2,900000]
[11,0,0,0,0,0,6,102,52,15,52,8,15,3,1,1,0,3,3,2,2,2,1,3,3,1,2,0,1,1500000]
[12,2,15.6,2,1,0,0,0,0,0,0,2,0,0,0,0,1,3,3,3,0,1,1,3,1,2,1,2,0,100000]
[13,0,0,0,0,0,0,12,39,2,39,8,2,7,1,1,0,3,3,0,0,1,0,1,0,2,1,1,1,250000]
[14,6,15.6,1,1,0,0,0,0,0,0,2,0,6,1,1,0,3,3,0,0,1,1,3,3,1,2,1,1,500000]
[15,23,12.5,2,1,1,0,0,23,3,23,8,3,1,2,2,0,2,3,3,2,0,3,1,1,2,3,2,1,800000]
[16,0,0,0,0,0,0,0,100,15,100,7,15,0,0,3,0,3,3,5,0,2,2,2,1,2,3,2,2,2000000]
[17,2,15.6,2,1,1,58,290,0,0,0,8,3,0,0,0,0,3,2,0,0,2,3,1,0,1,0,2,1,500000]
[18,0,0,0,0,0,0,30,0,0,0,2,0,8,1,1,3,3,3,5,1,2,2,1,2,1,2,1,0,300000]
[19,8,3.125,1,2,0,0,0,0,0,0,2,0,8,2,0,0,2,3,0,0,1,1,3,2,0,1,0,1,750000]
[20,9,15.6,1,2,0,0,435,76,10,76,6,10,8,2,1,0,3,3,3,2,1,0,0,1,2,1,0,1,1500000]
[21,0,0,0,0,0,0,0,0,0,0,2,0,8,2,0,1,3,3,5,1,0,2,3,1,0,3,1,2,900000]
[22,0,0,0,0,0,16,64,0,0,0,2,0,1,2,4,2,2,3,5,0,1,2,1,0,2,1,2,1,750000]
[23,9,18.8,2,0,0,0,0,0,0,0,2,0,0,0,3,0,3,3,5,0,2,1,2,1,1,1,0,1,1000000]
[24,5,6.25,2,0,0,0,0,0,0,0,2,0,0,0,0,0,3,3,5,0,0,3,1,3,2,1,0,2,150000]
[25,9,18.8,2,0,0,176,308,0,0,0,2,0,8,1,2,2,3,3,0,0,2,1,3,2,1,1,2,2,250000]
[26,17,18.8,2,1,0,0,0,0,0,0,2,0,0,0,3,0,3,3,4,0,2,1,0,2,0,1,2,2,500000]
[27,0,6.25,2,0,0,0,0,0,0,80,2,5,0,0,2,2,3,3,5,0,1,2,3,1,0,0,0,0,1200000]
[28,3,6.25,2,0,1,0,0,0,0,0,4,5,0,0,4,0,3,3,4,0,2,3,3,1,0,2,2,1,500000]
[29,9,12.5,2,1,0,0,0,15,12,15,8,12,0,0,1,0,3,3,4,0,2,1,0,2,1,1,1,2,2000000]
[30,33,18.8,2,0,0,0,0,0,0,0,4,2,0,0,0,0,1,1,0,0,0,3,1,2,0,2,2,0,250000]
[31,4,18.8,1,0,0,0,0,65,4,0,4,4,0,0,2,0,3,2,3,0,1,0,1,1,2,2,1,1,650000]
[32,5,3.125,2,2,1,6,102,40,16,40,8,16,0,0,2,3,3,0,4,0,0,2,1,2,1,0,2,1,200000]
[33,14,18.8,2,1,0,0,0,0,0,0,5,0,0,0,2,0,3,2,0,0,1,3,0,2,2,3,0,0,400000]
[34,0,0,0,0,0,0,12,100,15,100,8,15,0,0,2,0,3,3,4,0,2,3,3,0,2,2,1,0,900000]
[35,8,9.4,1,1,1,0,0,0,0,100,6,5,8,0,0,0,3,3,3,0,2,2,0,1,2,0,1,1,900000]
[null,{"$f":"SUM(B2:B36)","v":265},{"$f":"SUM(C2:C36)","v":359.86200000000002},46,20,6,518,2549,744,127,724,146,138,93,21,45,24,91,92,86,10,44,66,68,57,43,47,42,41]
[null,{"$f":"B1","v":"manage_species"},{"$f":"C1","v":"manage_spatial"},"manage_uncertainty","manage_currentpractices","manage_adaptivemanagement","pop_a","pop_b","pop_spatialscope","pop_temporalscope","hab_quantity","hab_quality","hab_temporal","ecoprocess_spp","ecoprocess_uncertainty","datasharing","broaderimpacts","exisitingpriorities","partners","leverage","alignment","objhyp","response","targettaxa","surveydesign","stats","datamanagement","budget","timeline"]
[null,"Metric 1","Metric 2","Metric 3","Metric 4","Metric 5","Metric 6a","Metric 6b","Metric 7","Metric 8","Metric 9","Metric 10","Metric 11","Metric 12","Metric 13","Metric 14","Metric 15","Metric 16","Metric 17","Metric 18","Metric 19","Metric 20","Metric 21","Metric 22","Metric 23","Metric 24","Metric 25","Metric 26","Metric 27"]
["Weights",0.03,0.03,0.03,0.03,0.04,1.4999999999999999E-2,1.4999999999999999E-2,0.03,0.02,0.02,0.02,0.02,0.03,0.09,0.04,0.04,0.05,0.05,0.03,0.03,0.05,0.04,0.04,0.05,0.05,0.04,0.04,0.03]
[]
["Project",null,null,null,null,null,null,null,null,null,null,null,null,null,null,null,null,null,null,null,null,null,null,null,null,null,null,null,null,"total","sdm_tool_excel"]
[{"$f":"A2","v":1},{"$f":"$B$40*(valueE(B2,'Utility Functions'!$B$3,'Utility Functions'!$B$4,'Utility Functions'!$B$5,'Utility Functions'!$B$6))","v":2.5041071294184137E-2},{"$f":"$C$40*(valueE(C2,'Utility Functions'!$D$3,'Utility Functions'!$D$4,'Utility Functions'!$D$5,'Utility Functions'!$D$6))","v":1.3942790146123618E-2},{"$f":"$D$40*(valuePL(D2,'Utility Functions'!$E$3:$E$5,'Utility Functions'!$F$3:$F$5))","v":0.03},{"$f":"$E$40*(valuePL(E2,'Utility Functions'!$G$3:$G$5,'Utility Functions'!$H$3:$H$5))","v":0.03},{"$f":"$F$40*(valuePL(F2,'Utility Functions'!$I$3:$I$4,'Utility Functions'!$J$3:$J$5))","v":0},{"$f":"$G$40*(valueE(G2,'Utility Functions'!$L$3,'Utility Functions'!$L$4,'Utility Functions'!$L$5,'Utility Functions'!$L$6))","v":1.4999999999999999E-2},{"$f":"$H$40*(valueE(H2,'Utility Functions'!$N$3,'Utility Functions'!$N$4,'Utility Functions'!$N$5,'Utility Functions'!$N$6))","v":1.4999999999999999E-2},{"$f":"$I$40*valuePL(I2,'Utility Functions'!$O$3:$O$6,'Utility Functions'!$P$3:$P$6)","v":2.7545454545454547E-2},{"$f":"$J$40*valuePL(J2,'Utility Functions'!$Q$3:$Q$6,'Utility Functions'!$R$3:$R$6)","v":2E-3},{"$f":"$K$40*(valuePL(K2,'Utility Functions'!$S$3:$S$7,'Utility Functions'!$T$3:$T$7))","v":0},{"$f":"$L$40*(valueE(L2,'Utility Functions'!$V$3,'Utility Functions'!$V$4,'Utility Functions'!$V$5,'Utility Functions'!$V$6))","v":0},{"$f":"$M$40*valuePL(M2,'Utility Functions'!$W$3:$W$6,'Utility Functions'!$X$3:$X$6)","v":0},{"$f":"$N$40*valueE(N2,'Utility Functions'!$Z$3,'Utility Functions'!$Z$4,'Utility Functions'!$Z$5,'Utility Functions'!$Z$6)","v":0},{"$f":"$O$40*valuePL(O2,'Utility Functions'!$AA$3:$AA$5,'Utility Functions'!$AB$3:$AB$5)","v":0},{"$f":"$P$40*valuePL(P2,'Utility Functions'!$AC$3:$AC$7,'Utility Functions'!$AD$3:$AD$7)","v":0.04},{"$f":"$Q$40*valuePL(Q2,'Utility Functions'!$AE$3:$AE$6,'Utility Functions'!$AF$3:$AF$6)","v":0},{"$f":"$R$40*valuePL(R2,'Utility Functions'!$AG$3:$AG$6,'Utility Functions'!$AH$3:$AH$6)","v":4.0000000000000008E-2},{"$f":"$S$40*valuePL(S2,'Utility Functions'!$AI$3:$AI$6,'Utility Functions'!$AJ$3:$AJ$6)","v":0.05},{"$f":"$T$40*valuePL(T2,'Utility Functions'!$AK$3:$AK$8,'Utility Functions'!$AL$3:$AL$8)","v":0},{"$f":"$U$40*valuePL(U2,'Utility Functions'!$AM$3:$AM$5,'Utility Functions'!$AN$3:$AN$5)","v":0},{"$f":"$V$40*valuePL(V2,'Utility Functions'!$AO$3:$AO$5,'Utility Functions'!$AP$3:$AP$5)","v":0.05},{"$f":"$W$40*valuePL(W2,'Utility Functions'!$AQ$3:$AQ$6,'Utility Functions'!$AR$3:$AR$6)","v":0.04},{"$f":"$X$40*valuePL(X2,'Utility Functions'!$AS$3:$AS$6,'Utility Functions'!$AT$3:$AT$6)","v":0.04},{"$f":"$Y$40*valuePL(Y2,'Utility Functions'!$AU$3:$AU$6,'Utility Functions'!$AV$3:$AV$6)","v":0.05},{"$f":"$Z$40*valuePL(Z2,'Utility Functions'!$AW$3:$AW$5,'Utility Functions'!$AX$3:$AX$5)","v":0.05},{"$f":"$AA$40*valuePL(AA2,'Utility Functions'!$AY$3:$AY$6,'Utility Functions'!$AZ$3:$AZ$6)","v":0.04},{"$f":"$AB$40*valuePL(AB2,'Utility Functions'!$BA$3:$BA$5,'Utility Functions'!$BB$3:$BB$5)","v":0.04},{"$f":"$AC$40*valuePL(AC2,'Utility Functions'!$BC$3:$BC$5,'Utility Functions'!$BD$3:$BD$5)","v":0.03},{"$f":"SUM(B43:AC43)","v":0.62852931598576234},0.62679466938600437]
[{"$f":"A3","v":2},{"$f":"$B$40*(valueE(B3,'Utility Functions'!$B$3,'Utility Functions'!$B$4,'Utility Functions'!$B$5,'Utility Functions'!$B$6))","v":1.3535671425672068E-2},{"$f":"$C$40*(valueE(C3,'Utility Functions'!$D$3,'Utility Functions'!$D$4,'Utility Functions'!$D$5,'Utility Functions'!$D$6))","v":2.8213102591607857E-2},{"$f":"$D$40*(valuePL(D3,'Utility Functions'!$E$3:$E$5,'Utility Functions'!$F$3:$F$5))","v":1.4999999999999999E-2},{"$f":"$E$40*(valuePL(E3,'Utility Functions'!$G$3:$G$5,'Utility Functions'!$H$3:$H$5))","v":0},{"$f":"$F$40*(valuePL(F3,'Utility Functions'!$I$3:$I$4,'Utility Functions'!$J$3:$J$5))","v":0},{"$f":"$G$40*(valueE(G3,'Utility Functions'!$L$3,'Utility Functions'!$L$4,'Utility Functions'!$L$5,'Utility Functions'!$L$6))","v":0},{"$f":"$H$40*(valueE(H3,'Utility Functions'!$N$3,'Utility Functions'!$N$4,'Utility Functions'!$N$5,'Utility Functions'!$N$6))","v":0},{"$f":"$I$40*valuePL(I3,'Utility Functions'!$O$3:$O$6,'Utility Functions'!$P$3:$P$6)","v":0},{"$f":"$J$40*valuePL(J3,'Utility Functions'!$Q$3:$Q$6,'Utility Functions'!$R$3:$R$6)","v":0},{"$f":"$K$40*(valuePL(K3,'Utility Functions'!$S$3:$S$7,'Utility Functions'!$T$3:$T$7))","v":0},{"$f":"$L$40*(valueE(L3,'Utility Functions'!$V$3,'Utility Functions'!$V$4,'Utility Functions'!$V$5,'Utility Functions'!$V$6))","v":0},{"$f":"$M$40*valuePL(M3,'Utility Functions'!$W$3:$W$6,'Utility Functions'!$X$3:$X$6)","v":0},{"$f":"$N$40*valueE(N3,'Utility Functions'!$Z$3,'Utility Functions'!$Z$4,'Utility Functions'!$Z$5,'Utility Functions'!$Z$6)","v":1.4999999999999999E-2},{"$f":"$O$40*valuePL(O3,'Utility Functions'!$AA$3:$AA$5,'Utility Functions'!$AB$3:$AB$5)","v":2.2499999999999999E-2},{"$f":"$P$40*valuePL(P3,'Utility Functions'!$AC$3:$AC$7,'Utility Functions'!$AD$3:$AD$7)","v":0},{"$f":"$Q$40*valuePL(Q3,'Utility Functions'!$AE$3:$AE$6,'Utility Functions'!$AF$3:$AF$6)","v":0},{"$f":"$R$40*valuePL(R3,'Utility Functions'!$AG$3:$AG$6,'Utility Functions'!$AH$3:$AH$6)","v":0.05},{"$f":"$S$40*valuePL(S3,'Utility Functions'!$AI$3:$AI$6,'Utility Functions'!$AJ$3:$AJ$6)","v":0.05},{"$f":"$T$40*valuePL(T3,'Utility Functions'!$AK$3:$AK$8,'Utility Functions'!$AL$3:$AL$8)","v":0},{"$f":"$U$40*valuePL(U3,'Utility Functions'!$AM$3:$AM$5,'Utility Functions'!$AN$3:$AN$5)","v":0},{"$f":"$V$40*valuePL(V3,'Utility Functions'!$AO$3:$AO$5,'Utility Functions'!$AP$3:$AP$5)","v":0.05},{"$f":"$W$40*valuePL(W3,'Utility Functions'!$AQ$3:$AQ$6,'Utility Functions'!$AR$3:$AR$6)","v":0.04},{"$f":"$X$40*valuePL(X3,'Utility Functions'!$AS$3:$AS$6,'Utility Functions'!$AT$3:$AT$6)","v":0.04},{"$f":"$Y$40*valuePL(Y3,'Utility Functions'!$AU$3:$AU$6,'Utility Functions'!$AV$3:$AV$6)","v":0.05},{"$f":"$Z$40*valuePL(Z3,'Utility Functions'!$AW$3:$AW$5,'Utility Functions'!$AX$3:$AX$5)","v":0.05},{"$f":"$AA$40*valuePL(AA3,'Utility Functions'!$AY$3:$AY$6,'Utility Functions'!$AZ$3:$AZ$6)","v":0.04},{"$f":"$AB$40*valuePL(AB3,'Utility Functions'!$BA$3:$BA$5,'Utility Functions'!$BB$3:$BB$5)","v":0.04},{"$f":"$AC$40*valuePL(AC3,'Utility Functions'!$BC$3:$BC$5,'Utility Functions'!$BD$3:$BD$5)","v":0.03},{"$f":"SUM(B44:AC44)","v":0.53424877401727988},0.5325173496849499]
[3,{"$f":"$B$40*(valueE(B4,'Utility Functions'!$B$3,'Utility Functions'!$B$4,'Utility Functions'!$B$5,'Utility Functions'!$B$6))","v":2.3943140737469053E-2},{"$f":"$C$40*(valueE(C4,'Utility Functions'!$D$3,'Utility Functions'!$D$4,'Utility Functions'!$D$5,'Utility Functions'!$D$6))","v":2.8213102591607857E-2},{"$f":"$D$40*(valuePL(D4,'Utility Functions'!$E$3:$E$5,'Utility Functions'!$F$3:$F$5))","v":0.03},{"$f":"$E$40*(valuePL(E4,'Utility Functions'!$G$3:$G$5,'Utility Functions'!$H$3:$H$5))","v":0},{"$f":"$F$40*(valuePL(F4,'Utility Functions'!$I$3:$I$4,'Utility Functions'!$J$3:$J$5))","v":0},{"$f":"$G$40*(valueE(G4,'Utility Functions'!$L$3,'Utility Functions'!$L$4,'Utility Functions'!$L$5,'Utility Functions'!$L$6))","v":0},{"$f":"$H$40*(valueE(H4,'Utility Functions'!$N$3,'Utility Functions'!$N$4,'Utility Functions'!$N$5,'Utility Functions'!$N$6))","v":0},{"$f":"$I$40*valuePL(I4,'Utility Functions'!$O$3:$O$6,'Utility Functions'!$P$3:$P$6)","v":0},{"$f":"$J$40*valuePL(J4,'Utility Functions'!$Q$3:$Q$6,'Utility Functions'!$R$3:$R$6)","v":0},{"$f":"$K$40*(valuePL(K4,'Utility Functions'!$S$3:$S$7,'Utility Functions'!$T$3:$T$7))","v":0},{"$f":"$L$40*(valueE(L4,'Utility Functions'!$V$3,'Utility Functions'!$V$4,'Utility Functions'!$V$5,'Utility Functions'!$V$6))","v":0},{"$f":"$M$40*valuePL(M4,'Utility Functions'!$W$3:$W$6,'Utility Functions'!$X$3:$X$6)","v":0},{"$f":"$N$40*valueE(N4,'Utility Functions'!$Z$3,'Utility Functions'!$Z$4,'Utility Functions'!$Z$5,'Utility Functions'!$Z$6)","v":1.8749999999999999E-2},{"$f":"$O$40*valuePL(O4,'Utility Functions'!$AA$3:$AA$5,'Utility Functions'!$AB$3:$AB$5)","v":2.2499999999999999E-2},{"$f":"$P$40*valuePL(P4,'Utility Functions'!$AC$3:$AC$7,'Utility Functions'!$AD$3:$AD$7)","v":0},{"$f":"$Q$40*valuePL(Q4,'Utility Functions'!$AE$3:$AE$6,'Utility Functions'!$AF$3:$AF$6)","v":0.02},{"$f":"$R$40*valuePL(R4,'Utility Functions'!$AG$3:$AG$6,'Utility Functions'!$AH$3:$AH$6)","v":0},{"$f":"$S$40*valuePL(S4,'Utility Functions'!$AI$3:$AI$6,'Utility Functions'!$AJ$3:$AJ$6)","v":0},{"$f":"$T$40*valuePL(T4,'Utility Functions'!$AK$3:$AK$8,'Utility Functions'!$AL$3:$AL$8)","v":0},{"$f":"$U$40*valuePL(U4,'Utility Functions'!$AM$3:$AM$5,'Utility Functions'!$AN$3:$AN$5)","v":7.4999999999999997E-3},{"$f":"$V$40*valuePL(V4,'Utility Functions'!$AO$3:$AO$5,'Utility Functions'!$AP$3:$AP$5)","v":0.05},{"$f":"$W$40*valuePL(W4,'Utility Functions'!$AQ$3:$AQ$6,'Utility Functions'!$AR$3:$AR$6)","v":0.04},{"$f":"$X$40*valuePL(X4,'Utility Functions'!$AS$3:$AS$6,'Utility Functions'!$AT$3:$AT$6)","v":0.04},{"$f":"$Y$40*valuePL(Y4,'Utility Functions'!$AU$3:$AU$6,'Utility Functions'!$AV$3:$AV$6)","v":0.05},{"$f":"$Z$40*valuePL(Z4,'Utility Functions'!$AW$3:$AW$5,'Utility Functions'!$AX$3:$AX$5)","v":0.05},{"$f":"$AA$40*valuePL(AA4,'Utility Functions'!$AY$3:$AY$6,'Utility Functions'!$AZ$3:$AZ$6)","v":8.0000000000000002E-3},{"$f":"$AB$40*valuePL(AB4,'Utility Functions'!$BA$3:$BA$5,'Utility Functions'!$BB$3:$BB$5)","v":0.04},{"$f":"$AC$40*valuePL(AC4,'Utility Functions'!$BC$3:$BC$5,'Utility Functions'!$BD$3:$BD$5)","v":0.03},0.45890624332907692,0.45705550078349133]
[4,{"$f":"$B$40*(valueE(B5,'Utility Functions'!$B$3,'Utility Functions'!$B$4,'Utility Functions'!$B$5,'Utility Functions'!$B$6))","v":5.4380856471439951E-3},{"$f":"$C$40*(valueE(C5,'Utility Functions'!$D$3,'Utility Functions'!$D$4,'Utility Functions'!$D$5,'Utility Functions'!$D$6))","v":1.3942790146123618E-2},{"$f":"$D$40*(valuePL(D5,'Utility Functions'!$E$3:$E$5,'Utility Functions'!$F$3:$F$5))","v":0.03},{"$f":"$E$40*(valuePL(E5,'Utility Functions'!$G$3:$G$5,'Utility Functions'!$H$3:$H$5))","v":0},{"$f":"$F$40*(valuePL(F5,'Utility Functions'!$I$3:$I$4,'Utility Functions'!$J$3:$J$5))","v":0},{"$f":"$G$40*(valueE(G5,'Utility Functions'!$L$3,'Utility Functions'!$L$4,'Utility Functions'!$L$5,'Utility Functions'!$L$6))","v":0},{"$f":"$H$40*(valueE(H5,'Utility Functions'!$N$3,'Utility Functions'!$N$4,'Utility Functions'!$N$5,'Utility Functions'!$N$6))","v":0},{"$f":"$I$40*valuePL(I5,'Utility Functions'!$O$3:$O$6,'Utility Functions'!$P$3:$P$6)","v":0},{"$f":"$J$40*valuePL(J5,'Utility Functions'!$Q$3:$Q$6,'Utility Functions'!$R$3:$R$6)","v":0},{"$f":"$K$40*(valuePL(K5,'Utility Functions'!$S$3:$S$7,'Utility Functions'!$T$3:$T$7))","v":0},{"$f":"$L$40*(valueE(L5,'Utility Functions'!$V$3,'Utility Functions'!$V$4,'Utility Functions'!$V$5,'Utility Functions'!$V$6))","v":0},{"$f":"$M$40*valuePL(M5,'Utility Functions'!$W$3:$W$6,'Utility Functions'!$X$3:$X$6)","v":0},{"$f":"$N$40*valueE(N5,'Utility Functions'!$Z$3,'Utility Functions'!$Z$4,'Utility Functions'!$Z$5,'Utility Functions'!$Z$6)","v":1.4999999999999999E-2},{"$f":"$O$40*valuePL(O5,'Utility Functions'!$AA$3:$AA$5,'Utility Functions'!$AB$3:$AB$5)","v":2.2499999999999999E-2},{"$f":"$P$40*valuePL(P5,'Utility Functions'!$AC$3:$AC$7,'Utility Functions'!$AD$3:$AD$7)","v":0},{"$f":"$Q$40*valuePL(Q5,'Utility Functions'!$AE$3:$AE$6,'Utility Functions'!$AF$3:$AF$6)","v":4.0000000000000001E-3},{"$f":"$R$40*valuePL(R5,'Utility Functions'!$AG$3:$AG$6,'Utility Functions'!$AH$3:$AH$6)","v":0.05},{"$f":"$S$40*valuePL(S5,'Utility Functions'!$AI$3:$AI$6,'Utility Functions'!$AJ$3:$AJ$6)","v":0.05},{"$f":"$T$40*valuePL(T5,'Utility Functions'!$AK$3:$AK$8,'Utility Functions'!$AL$3:$AL$8)","v":2.4E-2},{"$f":"$U$40*valuePL(U5,'Utility Functions'!$AM$3:$AM$5,'Utility Functions'!$AN$3:$AN$5)","v":0},{"$f":"$V$40*valuePL(V5,'Utility Functions'!$AO$3:$AO$5,'Utility Functions'!$AP$3:$AP$5)","v":2.5000000000000001E-2},{"$f":"$W$40*valuePL(W5,'Utility Functions'!$AQ$3:$AQ$6,'Utility Functions'!$AR$3:$AR$6)","v":0.04},{"$f":"$X$40*valuePL(X5,'Utility Functions'!$AS$3:$AS$6,'Utility Functions'!$AT$3:$AT$6)","v":0.04},{"$f":"$Y$40*valuePL(Y5,'Utility Functions'!$AU$3:$AU$6,'Utility Functions'!$AV$3:$AV$6)","v":1.0000000000000002E-2},{"$f":"$Z$40*valuePL(Z5,'Utility Functions'!$AW$3:$AW$5,'Utility Functions'!$AX$3:$AX$5)","v":0},{"$f":"$AA$40*valuePL(AA5,'Utility Functions'!$AY$3:$AY$6,'Utility Functions'!$AZ$3:$AZ$6)","v":0},{"$f":"$AB$40*valuePL(AB5,'Utility Functions'!$BA$3:$BA$5,'Utility Functions'!$BB$3:$BB$5)","v":0.04},{"$f":"$AC$40*valuePL(AC5,'Utility Functions'!$BC$3:$BC$5,'Utility Functions'!$BD$3:$BD$5)","v":7.4999999999999997E-3},0.37738087579326757,0.37654840351211377]
[5,{"$f":"$B$40*(valueE(B6,'Utility Functions'!$B$3,'Utility Functions'!$B$4,'Utility Functions'!$B$5,'Utility Functions'!$B$6))","v":1.6520156106900608E-2},{"$f":"$C$40*(valueE(C6,'Utility Functions'!$D$3,'Utility Functions'!$D$4,'Utility Functions'!$D$5,'Utility Functions'!$D$6))","v":7.9969543744382362E-3},{"$f":"$D$40*(valuePL(D6,'Utility Functions'!$E$3:$E$5,'Utility Functions'!$F$3:$F$5))","v":0.03},{"$f":"$E$40*(valuePL(E6,'Utility Functions'!$G$3:$G$5,'Utility Functions'!$H$3:$H$5))","v":0},{"$f":"$F$40*(valuePL(F6,'Utility Functions'!$I$3:$I$4,'Utility Functions'!$J$3:$J$5))","v":0},{"$f":"$G$40*(valueE(G6,'Utility Functions'!$L$3,'Utility Functions'!$L$4,'Utility Functions'!$L$5,'Utility Functions'!$L$6))","v":0},{"$f":"$H$40*(valueE(H6,'Utility Functions'!$N$3,'Utility Functions'!$N$4,'Utility Functions'!$N$5,'Utility Functions'!$N$6))","v":0},{"$f":"$I$40*valuePL(I6,'Utility Functions'!$O$3:$O$6,'Utility Functions'!$P$3:$P$6)","v":1.5272727272727275E-2},{"$f":"$J$40*valuePL(J6,'Utility Functions'!$Q$3:$Q$6,'Utility Functions'!$R$3:$R$6)","v":8.0000000000000004E-4},{"$f":"$K$40*(valuePL(K6,'Utility Functions'!$S$3:$S$7,'Utility Functions'!$T$3:$T$7))","v":0},{"$f":"$L$40*(valueE(L6,'Utility Functions'!$V$3,'Utility Functions'!$V$4,'Utility Functions'!$V$5,'Utility Functions'!$V$6))","v":0},{"$f":"$M$40*valuePL(M6,'Utility Functions'!$W$3:$W$6,'Utility Functions'!$X$3:$X$6)","v":0},{"$f":"$N$40*valueE(N6,'Utility Functions'!$Z$3,'Utility Functions'!$Z$4,'Utility Functions'!$Z$5,'Utility Functions'!$Z$6)","v":0},{"$f":"$O$40*valuePL(O6,'Utility Functions'!$AA$3:$AA$5,'Utility Functions'!$AB$3:$AB$5)","v":0},{"$f":"$P$40*valuePL(P6,'Utility Functions'!$AC$3:$AC$7,'Utility Functions'!$AD$3:$AD$7)","v":0},{"$f":"$Q$40*valuePL(Q6,'Utility Functions'!$AE$3:$AE$6,'Utility Functions'!$AF$3:$AF$6)","v":4.0000000000000001E-3},{"$f":"$R$40*valuePL(R6,'Utility Functions'!$AG$3:$AG$6,'Utility Functions'!$AH$3:$AH$6)","v":0.05},{"$f":"$S$40*valuePL(S6,'Utility Functions'!$AI$3:$AI$6,'Utility Functions'!$AJ$3:$AJ$6)","v":0.05},{"$f":"$T$40*valuePL(T6,'Utility Functions'!$AK$3:$AK$8,'Utility Functions'!$AL$3:$AL$8)","v":2.4E-2},{"$f":"$U$40*valuePL(U6,'Utility Functions'!$AM$3:$AM$5,'Utility Functions'!$AN$3:$AN$5)","v":7.4999999999999997E-3},{"$f":"$V$40*valuePL(V6,'Utility Functions'!$AO$3:$AO$5,'Utility Functions'!$AP$3:$AP$5)","v":0},{"$f":"$W$40*valuePL(W6,'Utility Functions'!$AQ$3:$AQ$6,'Utility Functions'!$AR$3:$AR$6)","v":0.04},{"$f":"$X$40*valuePL(X6,'Utility Functions'!$AS$3:$AS$6,'Utility Functions'!$AT$3:$AT$6)","v":0.04},{"$f":"$Y$40*valuePL(Y6,'Utility Functions'!$AU$3:$AU$6,'Utility Functions'!$AV$3:$AV$6)","v":4.0000000000000008E-2},{"$f":"$Z$40*valuePL(Z6,'Utility Functions'!$AW$3:$AW$5,'Utility Functions'!$AX$3:$AX$5)","v":0},{"$f":"$AA$40*valuePL(AA6,'Utility Functions'!$AY$3:$AY$6,'Utility Functions'!$AZ$3:$AZ$6)","v":0},{"$f":"$AB$40*valuePL(AB6,'Utility Functions'!$BA$3:$BA$5,'Utility Functions'!$BB$3:$BB$5)","v":0.04},{"$f":"$AC$40*valuePL(AC6,'Utility Functions'!$BC$3:$BC$5,'Utility Functions'!$BD$3:$BD$5)","v":7.4999999999999997E-3},0.37358983775406607,0.37166737445376297]
[6,{"$f":"$B$40*(valueE(B7,'Utility Functions'!$B$3,'Utility Functions'!$B$4,'Utility Functions'!$B$5,'Utility Functions'!$B$6))","v":2.5939980805710805E-2},{"$f":"$C$40*(valueE(C7,'Utility Functions'!$D$3,'Utility Functions'!$D$4,'Utility Functions'!$D$5,'Utility Functions'!$D$6))","v":1.8543300844080441E-4},{"$f":"$D$40*(valuePL(D7,'Utility Functions'!$E$3:$E$5,'Utility Functions'!$F$3:$F$5))","v":0.03},{"$f":"$E$40*(valuePL(E7,'Utility Functions'!$G$3:$G$5,'Utility Functions'!$H$3:$H$5))","v":0},{"$f":"$F$40*(valuePL(F7,'Utility Functions'!$I$3:$I$4,'Utility Functions'!$J$3:$J$5))","v":0},{"$f":"$G$40*(valueE(G7,'Utility Functions'!$L$3,'Utility Functions'!$L$4,'Utility Functions'!$L$5,'Utility Functions'!$L$6))","v":0},{"$f":"$H$40*(valueE(H7,'Utility Functions'!$N$3,'Utility Functions'!$N$4,'Utility Functions'!$N$5,'Utility Functions'!$N$6))","v":0},{"$f":"$I$40*valuePL(I7,'Utility Functions'!$O$3:$O$6,'Utility Functions'!$P$3:$P$6)","v":1.1999999999999999E-3},{"$f":"$J$40*valuePL(J7,'Utility Functions'!$Q$3:$Q$6,'Utility Functions'!$R$3:$R$6)","v":8.0000000000000004E-4},{"$f":"$K$40*(valuePL(K7,'Utility Functions'!$S$3:$S$7,'Utility Functions'!$T$3:$T$7))","v":0},{"$f":"$L$40*(valueE(L7,'Utility Functions'!$V$3,'Utility Functions'!$V$4,'Utility Functions'!$V$5,'Utility Functions'!$V$6))","v":0},{"$f":"$M$40*valuePL(M7,'Utility Functions'!$W$3:$W$6,'Utility Functions'!$X$3:$X$6)","v":0},{"$f":"$N$40*valueE(N7,'Utility Functions'!$Z$3,'Utility Functions'!$Z$4,'Utility Functions'!$Z$5,'Utility Functions'!$Z$6)","v":0},{"$f":"$O$40*valuePL(O7,'Utility Functions'!$AA$3:$AA$5,'Utility Functions'!$AB$3:$AB$5)","v":0},{"$f":"$P$40*valuePL(P7,'Utility Functions'!$AC$3:$AC$7,'Utility Functions'!$AD$3:$AD$7)","v":0},{"$f":"$Q$40*valuePL(Q7,'Utility Functions'!$AE$3:$AE$6,'Utility Functions'!$AF$3:$AF$6)","v":4.0000000000000001E-3},{"$f":"$R$40*valuePL(R7,'Utility Functions'!$AG$3:$AG$6,'Utility Functions'!$AH$3:$AH$6)","v":0},{"$f":"$S$40*valuePL(S7,'Utility Functions'!$AI$3:$AI$6,'Utility Functions'!$AJ$3:$AJ$6)","v":0.05},{"$f":"$T$40*valuePL(T7,'Utility Functions'!$AK$3:$AK$8,'Utility Functions'!$AL$3:$AL$8)","v":1.7999999999999999E-2},{"$f":"$U$40*valuePL(U7,'Utility Functions'!$AM$3:$AM$5,'Utility Functions'!$AN$3:$AN$5)","v":0},{"$f":"$V$40*valuePL(V7,'Utility Functions'!$AO$3:$AO$5,'Utility Functions'!$AP$3:$AP$5)","v":0},{"$f":"$W$40*valuePL(W7,'Utility Functions'!$AQ$3:$AQ$6,'Utility Functions'!$AR$3:$AR$6)","v":0},{"$f":"$X$40*valuePL(X7,'Utility Functions'!$AS$3:$AS$6,'Utility Functions'!$AT$3:$AT$6)","v":0.04},{"$f":"$Y$40*valuePL(Y7,'Utility Functions'!$AU$3:$AU$6,'Utility Functions'!$AV$3:$AV$6)","v":0},{"$f":"$Z$40*valuePL(Z7,'Utility Functions'!$AW$3:$AW$5,'Utility Functions'!$AX$3:$AX$5)","v":0},{"$f":"$AA$40*valuePL(AA7,'Utility Functions'!$AY$3:$AY$6,'Utility Functions'!$AZ$3:$AZ$6)","v":0},{"$f":"$AB$40*valuePL(AB7,'Utility Functions'!$BA$3:$BA$5,'Utility Functions'!$BB$3:$BB$5)","v":0.04},{"$f":"$AC$40*valuePL(AC7,'Utility Functions'!$BC$3:$BC$5,'Utility Functions'!$BD$3:$BD$5)","v":7.4999999999999997E-3},0.21762541381415162,0.21601950895080207]
[7,{"$f":"$B$40*(valueE(B8,'Utility Functions'!$B$3,'Utility Functions'!$B$4,'Utility Functions'!$B$5,'Utility Functions'!$B$6))","v":2.9999132478518691E-2},{"$f":"$C$40*(valueE(C8,'Utility Functions'!$D$3,'Utility Functions'!$D$4,'Utility Functions'!$D$5,'Utility Functions'!$D$6))","v":2.542345105018548E-2},{"$f":"$D$40*(valuePL(D8,'Utility Functions'!$E$3:$E$5,'Utility Functions'!$F$3:$F$5))","v":0},{"$f":"$E$40*(valuePL(E8,'Utility Functions'!$G$3:$G$5,'Utility Functions'!$H$3:$H$5))","v":0.03},{"$f":"$F$40*(valuePL(F8,'Utility Functions'!$I$3:$I$4,'Utility Functions'!$J$3:$J$5))","v":0},{"$f":"$G$40*(valueE(G8,'Utility Functions'!$L$3,'Utility Functions'!$L$4,'Utility Functions'!$L$5,'Utility Functions'!$L$6))","v":0},{"$f":"$H$40*(valueE(H8,'Utility Functions'!$N$3,'Utility Functions'!$N$4,'Utility Functions'!$N$5,'Utility Functions'!$N$6))","v":0},{"$f":"$I$40*valuePL(I8,'Utility Functions'!$O$3:$O$6,'Utility Functions'!$P$3:$P$6)","v":0.03},{"$f":"$J$40*valuePL(J8,'Utility Functions'!$Q$3:$Q$6,'Utility Functions'!$R$3:$R$6)","v":1.3454545454545455E-2},{"$f":"$K$40*(valuePL(K8,'Utility Functions'!$S$3:$S$7,'Utility Functions'!$T$3:$T$7))","v":0.02},{"$f":"$L$40*(valueE(L8,'Utility Functions'!$V$3,'Utility Functions'!$V$4,'Utility Functions'!$V$5,'Utility Functions'!$V$6))","v":0.02},{"$f":"$M$40*valuePL(M8,'Utility Functions'!$W$3:$W$6,'Utility Functions'!$X$3:$X$6)","v":1.3454545454545455E-2},{"$f":"$N$40*valueE(N8,'Utility Functions'!$Z$3,'Utility Functions'!$Z$4,'Utility Functions'!$Z$5,'Utility Functions'!$Z$6)","v":0.03},{"$f":"$O$40*valuePL(O8,'Utility Functions'!$AA$3:$AA$5,'Utility Functions'!$AB$3:$AB$5)","v":2.2499999999999999E-2},{"$f":"$P$40*valuePL(P8,'Utility Functions'!$AC$3:$AC$7,'Utility Functions'!$AD$3:$AD$7)","v":0},{"$f":"$Q$40*valuePL(Q8,'Utility Functions'!$AE$3:$AE$6,'Utility Functions'!$AF$3:$AF$6)","v":0},{"$f":"$R$40*valuePL(R8,'Utility Functions'!$AG$3:$AG$6,'Utility Functions'!$AH$3:$AH$6)","v":0.05},{"$f":"$S$40*valuePL(S8,'Utility Functions'!$AI$3:$AI$6,'Utility Functions'!$AJ$3:$AJ$6)","v":0.05},{"$f":"$T$40*valuePL(T8,'Utility Functions'!$AK$3:$AK$8,'Utility Functions'!$AL$3:$AL$8)","v":0},{"$f":"$U$40*valuePL(U8,'Utility Functions'!$AM$3:$AM$5,'Utility Functions'!$AN$3:$AN$5)","v":0},{"$f":"$V$40*valuePL(V8,'Utility Functions'!$AO$3:$AO$5,'Utility Functions'!$AP$3:$AP$5)","v":0.05},{"$f":"$W$40*valuePL(W8,'Utility Functions'!$AQ$3:$AQ$6,'Utility Functions'!$AR$3:$AR$6)","v":0},{"$f":"$X$40*valuePL(X8,'Utility Functions'!$AS$3:$AS$6,'Utility Functions'!$AT$3:$AT$6)","v":8.0000000000000002E-3},{"$f":"$Y$40*valuePL(Y8,'Utility Functions'!$AU$3:$AU$6,'Utility Functions'!$AV$3:$AV$6)","v":0.05},{"$f":"$Z$40*valuePL(Z8,'Utility Functions'!$AW$3:$AW$5,'Utility Functions'!$AX$3:$AX$5)","v":0.05},{"$f":"$AA$40*valuePL(AA8,'Utility Functions'!$AY$3:$AY$6,'Utility Functions'!$AZ$3:$AZ$6)","v":3.5999999999999997E-2},{"$f":"$AB$40*valuePL(AB8,'Utility Functions'!$BA$3:$BA$5,'Utility Functions'!$BB$3:$BB$5)","v":0},{"$f":"$AC$40*valuePL(AC8,'Utility Functions'!$BC$3:$BC$5,'Utility Functions'!$BD$3:$BD$5)","v":0.03},0.55883167443779502,0.55882779905507862]
[8,{"$f":"$B$40*(valueE(B9,'Utility Functions'!$B$3,'Utility Functions'!$B$4,'Utility Functions'!$B$5,'Utility Functions'!$B$6))","v":1.3535671425672068E-2},{"$f":"$C$40*(valueE(C9,'Utility Functions'!$D$3,'Utility Functions'!$D$4,'Utility Functions'!$D$5,'Utility Functions'!$D$6))","v":2.542345105018548E-2},{"$f":"$D$40*(valuePL(D9,'Utility Functions'!$E$3:$E$5,'Utility Functions'!$F$3:$F$5))","v":0.03},{"$f":"$E$40*(valuePL(E9,'Utility Functions'!$G$3:$G$5,'Utility Functions'!$H$3:$H$5))","v":1.4999999999999999E-2},{"$f":"$F$40*(valuePL(F9,'Utility Functions'!$I$3:$I$4,'Utility Functions'!$J$3:$J$5))","v":0.04},{"$f":"$G$40*(valueE(G9,'Utility Functions'!$L$3,'Utility Functions'!$L$4,'Utility Functions'!$L$5,'Utility Functions'!$L$6))","v":0},{"$f":"$H$40*(valueE(H9,'Utility Functions'!$N$3,'Utility Functions'!$N$4,'Utility Functions'!$N$5,'Utility Functions'!$N$6))","v":0},{"$f":"$I$40*valuePL(I9,'Utility Functions'!$O$3:$O$6,'Utility Functions'!$P$3:$P$6)","v":1.6800000000000003E-3},{"$f":"$J$40*valuePL(J9,'Utility Functions'!$Q$3:$Q$6,'Utility Functions'!$R$3:$R$6)","v":1.6727272727272726E-2},{"$f":"$K$40*(valuePL(K9,'Utility Functions'!$S$3:$S$7,'Utility Functions'!$T$3:$T$7))","v":0},{"$f":"$L$40*(valueE(L9,'Utility Functions'!$V$3,'Utility Functions'!$V$4,'Utility Functions'!$V$5,'Utility Functions'!$V$6))","v":0.02},{"$f":"$M$40*valuePL(M9,'Utility Functions'!$W$3:$W$6,'Utility Functions'!$X$3:$X$6)","v":1.6727272727272726E-2},{"$f":"$N$40*valueE(N9,'Utility Functions'!$Z$3,'Utility Functions'!$Z$4,'Utility Functions'!$Z$5,'Utility Functions'!$Z$6)","v":0},{"$f":"$O$40*valuePL(O9,'Utility Functions'!$AA$3:$AA$5,'Utility Functions'!$AB$3:$AB$5)","v":0},{"$f":"$P$40*valuePL(P9,'Utility Functions'!$AC$3:$AC$7,'Utility Functions'!$AD$3:$AD$7)","v":0},{"$f":"$Q$40*valuePL(Q9,'Utility Functions'!$AE$3:$AE$6,'Utility Functions'!$AF$3:$AF$6)","v":0.04},{"$f":"$R$40*valuePL(R9,'Utility Functions'!$AG$3:$AG$6,'Utility Functions'!$AH$3:$AH$6)","v":1.0000000000000002E-2},{"$f":"$S$40*valuePL(S9,'Utility Functions'!$AI$3:$AI$6,'Utility Functions'!$AJ$3:$AJ$6)","v":0.05},{"$f":"$T$40*valuePL(T9,'Utility Functions'!$AK$3:$AK$8,'Utility Functions'!$AL$3:$AL$8)","v":0},{"$f":"$U$40*valuePL(U9,'Utility Functions'!$AM$3:$AM$5,'Utility Functions'!$AN$3:$AN$5)","v":0},{"$f":"$V$40*valuePL(V9,'Utility Functions'!$AO$3:$AO$5,'Utility Functions'!$AP$3:$AP$5)","v":0.05},{"$f":"$W$40*valuePL(W9,'Utility Functions'!$AQ$3:$AQ$6,'Utility Functions'!$AR$3:$AR$6)","v":0.04},{"$f":"$X$40*valuePL(X9,'Utility Functions'!$AS$3:$AS$6,'Utility Functions'!$AT$3:$AT$6)","v":0.04},{"$f":"$Y$40*valuePL(Y9,'Utility Functions'!$AU$3:$AU$6,'Utility Functions'!$AV$3:$AV$6)","v":0.05},{"$f":"$Z$40*valuePL(Z9,'Utility Functions'!$AW$3:$AW$5,'Utility Functions'!$AX$3:$AX$5)","v":0.05},{"$f":"$AA$40*valuePL(AA9,'Utility Functions'!$AY$3:$AY$6,'Utility Functions'!$AZ$3:$AZ$6)","v":0},{"$f":"$AB$40*valuePL(AB9,'Utility Functions'!$BA$3:$BA$5,'Utility Functions'!$BB$3:$BB$5)","v":0.01},{"$f":"$AC$40*valuePL(AC9,'Utility Functions'!$BC$3:$BC$5,'Utility Functions'!$BD$3:$BD$5)","v":7.4999999999999997E-3},0.52659366793040296,0.52486224359807299]
[9,{"$f":"$B$40*(valueE(B10,'Utility Functions'!$B$3,'Utility Functions'!$B$4,'Utility Functions'!$B$5,'Utility Functions'!$B$6))","v":2.5041071294184137E-2},{"$f":"$C$40*(valueE(C10,'Utility Functions'!$D$3,'Utility Functions'!$D$4,'Utility Functions'!$D$5,'Utility Functions'!$D$6))","v":2.3696993705826886E-2},{"$f":"$D$40*(valuePL(D10,'Utility Functions'!$E$3:$E$5,'Utility Functions'!$F$3:$F$5))","v":0.03},{"$f":"$E$40*(valuePL(E10,'Utility Functions'!$G$3:$G$5,'Utility Functions'!$H$3:$H$5))","v":1.4999999999999999E-2},{"$f":"$F$40*(valuePL(F10,'Utility Functions'!$I$3:$I$4,'Utility Functions'!$J$3:$J$5))","v":0},{"$f":"$G$40*(valueE(G10,'Utility Functions'!$L$3,'Utility Functions'!$L$4,'Utility Functions'!$L$5,'Utility Functions'!$L$6))","v":5.6451612903225803E-3},{"$f":"$H$40*(valueE(H10,'Utility Functions'!$N$3,'Utility Functions'!$N$4,'Utility Functions'!$N$5,'Utility Functions'!$N$6))","v":1.9924098671726754E-3},{"$f":"$I$40*valuePL(I10,'Utility Functions'!$O$3:$O$6,'Utility Functions'!$P$3:$P$6)","v":0},{"$f":"$J$40*valuePL(J10,'Utility Functions'!$Q$3:$Q$6,'Utility Functions'!$R$3:$R$6)","v":0},{"$f":"$K$40*(valuePL(K10,'Utility Functions'!$S$3:$S$7,'Utility Functions'!$T$3:$T$7))","v":0},{"$f":"$L$40*(valueE(L10,'Utility Functions'!$V$3,'Utility Functions'!$V$4,'Utility Functions'!$V$5,'Utility Functions'!$V$6))","v":0},{"$f":"$M$40*valuePL(M10,'Utility Functions'!$W$3:$W$6,'Utility Functions'!$X$3:$X$6)","v":0},{"$f":"$N$40*valueE(N10,'Utility Functions'!$Z$3,'Utility Functions'!$Z$4,'Utility Functions'!$Z$5,'Utility Functions'!$Z$6)","v":0},{"$f":"$O$40*valuePL(O10,'Utility Functions'!$AA$3:$AA$5,'Utility Functions'!$AB$3:$AB$5)","v":0},{"$f":"$P$40*valuePL(P10,'Utility Functions'!$AC$3:$AC$7,'Utility Functions'!$AD$3:$AD$7)","v":0.03},{"$f":"$Q$40*valuePL(Q10,'Utility Functions'!$AE$3:$AE$6,'Utility Functions'!$AF$3:$AF$6)","v":0},{"$f":"$R$40*valuePL(R10,'Utility Functions'!$AG$3:$AG$6,'Utility Functions'!$AH$3:$AH$6)","v":0.05},{"$f":"$S$40*valuePL(S10,'Utility Functions'!$AI$3:$AI$6,'Utility Functions'!$AJ$3:$AJ$6)","v":3.3000000000000002E-2},{"$f":"$T$40*valuePL(T10,'Utility Functions'!$AK$3:$AK$8,'Utility Functions'!$AL$3:$AL$8)","v":6.0000000000000001E-3},{"$f":"$U$40*valuePL(U10,'Utility Functions'!$AM$3:$AM$5,'Utility Functions'!$AN$3:$AN$5)","v":0},{"$f":"$V$40*valuePL(V10,'Utility Functions'!$AO$3:$AO$5,'Utility Functions'!$AP$3:$AP$5)","v":0.05},{"$f":"$W$40*valuePL(W10,'Utility Functions'!$AQ$3:$AQ$6,'Utility Functions'!$AR$3:$AR$6)","v":0.04},{"$f":"$X$40*valuePL(X10,'Utility Functions'!$AS$3:$AS$6,'Utility Functions'!$AT$3:$AT$6)","v":0.04},{"$f":"$Y$40*valuePL(Y10,'Utility Functions'!$AU$3:$AU$6,'Utility Functions'!$AV$3:$AV$6)","v":1.0000000000000002E-2},{"$f":"$Z$40*valuePL(Z10,'Utility Functions'!$AW$3:$AW$5,'Utility Functions'!$AX$3:$AX$5)","v":0.05},{"$f":"$AA$40*valuePL(AA10,'Utility Functions'!$AY$3:$AY$6,'Utility Functions'!$AZ$3:$AZ$6)","v":8.0000000000000002E-3},{"$f":"$AB$40*valuePL(AB10,'Utility Functions'!$BA$3:$BA$5,'Utility Functions'!$BB$3:$BB$5)","v":0.01},{"$f":"$AC$40*valuePL(AC10,'Utility Functions'!$BC$3:$BC$5,'Utility Functions'!$BD$3:$BD$5)","v":0.03},0.45837563615750632,0.45664098955774823]
[10,{"$f":"$B$40*(valueE(B11,'Utility Functions'!$B$3,'Utility Functions'!$B$4,'Utility Functions'!$B$5,'Utility Functions'!$B$6))","v":0},{"$f":"$C$40*(valueE(C11,'Utility Functions'!$D$3,'Utility Functions'!$D$4,'Utility Functions'!$D$5,'Utility Functions'!$D$6))","v":0},{"$f":"$D$40*(valuePL(D11,'Utility Functions'!$E$3:$E$5,'Utility Functions'!$F$3:$F$5))","v":0},{"$f":"$E$40*(valuePL(E11,'Utility Functions'!$G$3:$G$5,'Utility Functions'!$H$3:$H$5))","v":0},{"$f":"$F$40*(valuePL(F11,'Utility Functions'!$I$3:$I$4,'Utility Functions'!$J$3:$J$5))","v":0},{"$f":"$G$40*(valueE(G11,'Utility Functions'!$L$3,'Utility Functions'!$L$4,'Utility Functions'!$L$5,'Utility Functions'!$L$6))","v":0},{"$f":"$H$40*(valueE(H11,'Utility Functions'!$N$3,'Utility Functions'!$N$4,'Utility Functions'!$N$5,'Utility Functions'!$N$6))","v":0},{"$f":"$I$40*valuePL(I11,'Utility Functions'!$O$3:$O$6,'Utility Functions'!$P$3:$P$6)","v":0},{"$f":"$J$40*valuePL(J11,'Utility Functions'!$Q$3:$Q$6,'Utility Functions'!$R$3:$R$6)","v":0},{"$f":"$K$40*(valuePL(K11,'Utility Functions'!$S$3:$S$7,'Utility Functions'!$T$3:$T$7))","v":0},{"$f":"$L$40*(valueE(L11,'Utility Functions'!$V$3,'Utility Functions'!$V$4,'Utility Functions'!$V$5,'Utility Functions'!$V$6))","v":0},{"$f":"$M$40*valuePL(M11,'Utility Functions'!$W$3:$W$6,'Utility Functions'!$X$3:$X$6)","v":0},{"$f":"$N$40*valueE(N11,'Utility Functions'!$Z$3,'Utility Functions'!$Z$4,'Utility Functions'!$Z$5,'Utility Functions'!$Z$6)","v":2.2499999999999999E-2},{"$f":"$O$40*valuePL(O11,'Utility Functions'!$AA$3:$AA$5,'Utility Functions'!$AB$3:$AB$5)","v":0.09},{"$f":"$P$40*valuePL(P11,'Utility Functions'!$AC$3:$AC$7,'Utility Functions'!$AD$3:$AD$7)","v":0.01},{"$f":"$Q$40*valuePL(Q11,'Utility Functions'!$AE$3:$AE$6,'Utility Functions'!$AF$3:$AF$6)","v":0.02},{"$f":"$R$40*valuePL(R11,'Utility Functions'!$AG$3:$AG$6,'Utility Functions'!$AH$3:$AH$6)","v":0.05},{"$f":"$S$40*valuePL(S11,'Utility Functions'!$AI$3:$AI$6,'Utility Functions'!$AJ$3:$AJ$6)","v":3.3000000000000002E-2},{"$f":"$T$40*valuePL(T11,'Utility Functions'!$AK$3:$AK$8,'Utility Functions'!$AL$3:$AL$8)","v":1.2E-2},{"$f":"$U$40*valuePL(U11,'Utility Functions'!$AM$3:$AM$5,'Utility Functions'!$AN$3:$AN$5)","v":0},{"$f":"$V$40*valuePL(V11,'Utility Functions'!$AO$3:$AO$5,'Utility Functions'!$AP$3:$AP$5)","v":0},{"$f":"$W$40*valuePL(W11,'Utility Functions'!$AQ$3:$AQ$6,'Utility Functions'!$AR$3:$AR$6)","v":0.03},{"$f":"$X$40*valuePL(X11,'Utility Functions'!$AS$3:$AS$6,'Utility Functions'!$AT$3:$AT$6)","v":0.04},{"$f":"$Y$40*valuePL(Y11,'Utility Functions'!$AU$3:$AU$6,'Utility Functions'!$AV$3:$AV$6)","v":0.05},{"$f":"$Z$40*valuePL(Z11,'Utility Functions'!$AW$3:$AW$5,'Utility Functions'!$AX$3:$AX$5)","v":2.5000000000000001E-2},{"$f":"$AA$40*valuePL(AA11,'Utility Functions'!$AY$3:$AY$6,'Utility Functions'!$AZ$3:$AZ$6)","v":8.0000000000000002E-3},{"$f":"$AB$40*valuePL(AB11,'Utility Functions'!$BA$3:$BA$5,'Utility Functions'!$BB$3:$BB$5)","v":0},{"$f":"$AC$40*valuePL(AC11,'Utility Functions'!$BC$3:$BC$5,'Utility Functions'!$BD$3:$BD$5)","v":0.03},0.42049999999999998,0.42049999999999998]
[11,{"$f":"$B$40*(valueE(B12,'Utility Functions'!$B$3,'Utility Functions'!$B$4,'Utility Functions'!$B$5,'Utility Functions'!$B$6))","v":0},{"$f":"$C$40*(valueE(C12,'Utility Functions'!$D$3,'Utility Functions'!$D$4,'Utility Functions'!$D$5,'Utility Functions'!$D$6))","v":0},{"$f":"$D$40*(valuePL(D12,'Utility Functions'!$E$3:$E$5,'Utility Functions'!$F$3:$F$5))","v":0},{"$f":"$E$40*(valuePL(E12,'Utility Functions'!$G$3:$G$5,'Utility Functions'!$H$3:$H$5))","v":0},{"$f":"$F$40*(valuePL(F12,'Utility Functions'!$I$3:$I$4,'Utility Functions'!$J$3:$J$5))","v":0},{"$f":"$G$40*(valueE(G12,'Utility Functions'!$L$3,'Utility Functions'!$L$4,'Utility Functions'!$L$5,'Utility Functions'!$L$6))","v":4.8387096774193543E-4},{"$f":"$H$40*(valueE(H12,'Utility Functions'!$N$3,'Utility Functions'!$N$4,'Utility Functions'!$N$5,'Utility Functions'!$N$6))","v":1.4516129032258063E-3},{"$f":"$I$40*valuePL(I12,'Utility Functions'!$O$3:$O$6,'Utility Functions'!$P$3:$P$6)","v":1.6254545454545456E-2},{"$f":"$J$40*valuePL(J12,'Utility Functions'!$Q$3:$Q$6,'Utility Functions'!$R$3:$R$6)","v":1.8363636363636363E-2},{"$f":"$K$40*(valuePL(K12,'Utility Functions'!$S$3:$S$7,'Utility Functions'!$T$3:$T$7))","v":1.0836363636363637E-2},{"$f":"$L$40*(valueE(L12,'Utility Functions'!$V$3,'Utility Functions'!$V$4,'Utility Functions'!$V$5,'Utility Functions'!$V$6))","v":0.02},{"$f":"$M$40*valuePL(M12,'Utility Functions'!$W$3:$W$6,'Utility Functions'!$X$3:$X$6)","v":1.8363636363636363E-2},{"$f":"$N$40*valueE(N12,'Utility Functions'!$Z$3,'Utility Functions'!$Z$4,'Utility Functions'!$Z$5,'Utility Functions'!$Z$6)","v":1.125E-2},{"$f":"$O$40*valuePL(O12,'Utility Functions'!$AA$3:$AA$5,'Utility Functions'!$AB$3:$AB$5)","v":2.2499999999999999E-2},{"$f":"$P$40*valuePL(P12,'Utility Functions'!$AC$3:$AC$7,'Utility Functions'!$AD$3:$AD$7)","v":0.01},{"$f":"$Q$40*valuePL(Q12,'Utility Functions'!$AE$3:$AE$6,'Utility Functions'!$AF$3:$AF$6)","v":0},{"$f":"$R$40*valuePL(R12,'Utility Functions'!$AG$3:$AG$6,'Utility Functions'!$AH$3:$AH$6)","v":0.05},{"$f":"$S$40*valuePL(S12,'Utility Functions'!$AI$3:$AI$6,'Utility Functions'!$AJ$3:$AJ$6)","v":0.05},{"$f":"$T$40*valuePL(T12,'Utility Functions'!$AK$3:$AK$8,'Utility Functions'!$AL$3:$AL$8)","v":1.2E-2},{"$f":"$U$40*valuePL(U12,'Utility Functions'!$AM$3:$AM$5,'Utility Functions'!$AN$3:$AN$5)","v":0.03},{"$f":"$V$40*valuePL(V12,'Utility Functions'!$AO$3:$AO$5,'Utility Functions'!$AP$3:$AP$5)","v":0.05},{"$f":"$W$40*valuePL(W12,'Utility Functions'!$AQ$3:$AQ$6,'Utility Functions'!$AR$3:$AR$6)","v":8.0000000000000002E-3},{"$f":"$X$40*valuePL(X12,'Utility Functions'!$AS$3:$AS$6,'Utility Functions'!$AT$3:$AT$6)","v":0.04},{"$f":"$Y$40*valuePL(Y12,'Utility Functions'!$AU$3:$AU$6,'Utility Functions'!$AV$3:$AV$6)","v":0.05},{"$f":"$Z$40*valuePL(Z12,'Utility Functions'!$AW$3:$AW$5,'Utility Functions'!$AX$3:$AX$5)","v":2.5000000000000001E-2},{"$f":"$AA$40*valuePL(AA12,'Utility Functions'!$AY$3:$AY$6,'Utility Functions'!$AZ$3:$AZ$6)","v":3.5999999999999997E-2},{"$f":"$AB$40*valuePL(AB12,'Utility Functions'!$BA$3:$BA$5,'Utility Functions'!$BB$3:$BB$5)","v":0},{"$f":"$AC$40*valuePL(AC12,'Utility Functions'!$BC$3:$BC$5,'Utility Functions'!$BD$3:$BD$5)","v":7.4999999999999997E-3},0.48800366568914949,0.48800366568914949]
[12,{"$f":"$B$40*(valueE(B13,'Utility Functions'!$B$3,'Utility Functions'!$B$4,'Utility Functions'!$B$5,'Utility Functions'!$B$6))","v":9.8904136043327599E-3},{"$f":"$C$40*(valueE(C13,'Utility Functions'!$D$3,'Utility Functions'!$D$4,'Utility Functions'!$D$5,'Utility Functions'!$D$6))","v":2.3696993705826886E-2},{"$f":"$D$40*(valuePL(D13,'Utility Functions'!$E$3:$E$5,'Utility Functions'!$F$3:$F$5))","v":0.03},{"$f":"$E$40*(valuePL(E13,'Utility Functions'!$G$3:$G$5,'Utility Functions'!$H$3:$H$5))","v":1.4999999999999999E-2},{"$f":"$F$40*(valuePL(F13,'Utility Functions'!$I$3:$I$4,'Utility Functions'!$J$3:$J$5))","v":0},{"$f":"$G$40*(valueE(G13,'Utility Functions'!$L$3,'Utility Functions'!$L$4,'Utility Functions'!$L$5,'Utility Functions'!$L$6))","v":0},{"$f":"$H$40*(valueE(H13,'Utility Functions'!$N$3,'Utility Functions'!$N$4,'Utility Functions'!$N$5,'Utility Functions'!$N$6))","v":0},{"$f":"$I$40*valuePL(I13,'Utility Functions'!$O$3:$O$6,'Utility Functions'!$P$3:$P$6)","v":0},{"$f":"$J$40*valuePL(J13,'Utility Functions'!$Q$3:$Q$6,'Utility Functions'!$R$3:$R$6)","v":0},{"$f":"$K$40*(valuePL(K13,'Utility Functions'!$S$3:$S$7,'Utility Functions'!$T$3:$T$7))","v":0},{"$f":"$L$40*(valueE(L13,'Utility Functions'!$V$3,'Utility Functions'!$V$4,'Utility Functions'!$V$5,'Utility Functions'!$V$6))","v":0},{"$f":"$M$40*valuePL(M13,'Utility Functions'!$W$3:$W$6,'Utility Functions'!$X$3:$X$6)","v":0},{"$f":"$N$40*valueE(N13,'Utility Functions'!$Z$3,'Utility Functions'!$Z$4,'Utility Functions'!$Z$5,'Utility Functions'!$Z$6)","v":0},{"$f":"$O$40*valuePL(O13,'Utility Functions'!$AA$3:$AA$5,'Utility Functions'!$AB$3:$AB$5)","v":0},{"$f":"$P$40*valuePL(P13,'Utility Functions'!$AC$3:$AC$7,'Utility Functions'!$AD$3:$AD$7)","v":0},{"$f":"$Q$40*valuePL(Q13,'Utility Functions'!$AE$3:$AE$6,'Utility Functions'!$AF$3:$AF$6)","v":4.0000000000000001E-3},{"$f":"$R$40*valuePL(R13,'Utility Functions'!$AG$3:$AG$6,'Utility Functions'!$AH$3:$AH$6)","v":0.05},{"$f":"$S$40*valuePL(S13,'Utility Functions'!$AI$3:$AI$6,'Utility Functions'!$AJ$3:$AJ$6)","v":0.05},{"$f":"$T$40*valuePL(T13,'Utility Functions'!$AK$3:$AK$8,'Utility Functions'!$AL$3:$AL$8)","v":1.7999999999999999E-2},{"$f":"$U$40*valuePL(U13,'Utility Functions'!$AM$3:$AM$5,'Utility Functions'!$AN$3:$AN$5)","v":0},{"$f":"$V$40*valuePL(V13,'Utility Functions'!$AO$3:$AO$5,'Utility Functions'!$AP$3:$AP$5)","v":2.5000000000000001E-2},{"$f":"$W$40*valuePL(W13,'Utility Functions'!$AQ$3:$AQ$6,'Utility Functions'!$AR$3:$AR$6)","v":8.0000000000000002E-3},{"$f":"$X$40*valuePL(X13,'Utility Functions'!$AS$3:$AS$6,'Utility Functions'!$AT$3:$AT$6)","v":0.04},{"$f":"$Y$40*valuePL(Y13,'Utility Functions'!$AU$3:$AU$6,'Utility Functions'!$AV$3:$AV$6)","v":1.0000000000000002E-2},{"$f":"$Z$40*valuePL(Z13,'Utility Functions'!$AW$3:$AW$5,'Utility Functions'!$AX$3:$AX$5)","v":0.05},{"$f":"$AA$40*valuePL(AA13,'Utility Functions'!$AY$3:$AY$6,'Utility Functions'!$AZ$3:$AZ$6)","v":8.0000000000000002E-3},{"$f":"$AB$40*valuePL(AB13,'Utility Functions'!$BA$3:$BA$5,'Utility Functions'!$BB$3:$BB$5)","v":0.04},{"$f":"$AC$40*valuePL(AC13,'Utility Functions'!$BC$3:$BC$5,'Utility Functions'!$BD$3:$BD$5)","v":0},0.38158740731015961,0.38020117461803976]
[13,{"$f":"$B$40*(valueE(B14,'Utility Functions'!$B$3,'Utility Functions'!$B$4,'Utility Functions'!$B$5,'Utility Functions'!$B$6))","v":0},{"$f":"$C$40*(valueE(C14,'Utility Functions'!$D$3,'Utility Functions'!$D$4,'Utility Functions'!$D$5,'Utility Functions'!$D$6))","v":0},{"$f":"$D$40*(valuePL(D14,'Utility Functions'!$E$3:$E$5,'Utility Functions'!$F$3:$F$5))","v":0},{"$f":"$E$40*(valuePL(E14,'Utility Functions'!$G$3:$G$5,'Utility Functions'!$H$3:$H$5))","v":0},{"$f":"$F$40*(valuePL(F14,'Utility Functions'!$I$3:$I$4,'Utility Functions'!$J$3:$J$5))","v":0},{"$f":"$G$40*(valueE(G14,'Utility Functions'!$L$3,'Utility Functions'!$L$4,'Utility Functions'!$L$5,'Utility Functions'!$L$6))","v":0},{"$f":"$H$40*(valueE(H14,'Utility Functions'!$N$3,'Utility Functions'!$N$4,'Utility Functions'!$N$5,'Utility Functions'!$N$6))","v":1.7077798861480075E-4},{"$f":"$I$40*valuePL(I14,'Utility Functions'!$O$3:$O$6,'Utility Functions'!$P$3:$P$6)","v":9.8727272727272726E-3},{"$f":"$J$40*valuePL(J14,'Utility Functions'!$Q$3:$Q$6,'Utility Functions'!$R$3:$R$6)","v":8.0000000000000004E-4},{"$f":"$K$40*(valuePL(K14,'Utility Functions'!$S$3:$S$7,'Utility Functions'!$T$3:$T$7))","v":6.5818181818181817E-3},{"$f":"$L$40*(valueE(L14,'Utility Functions'!$V$3,'Utility Functions'!$V$4,'Utility Functions'!$V$5,'Utility Functions'!$V$6))","v":0.02},{"$f":"$M$40*valuePL(M14,'Utility Functions'!$W$3:$W$6,'Utility Functions'!$X$3:$X$6)","v":8.0000000000000004E-4},{"$f":"$N$40*valueE(N14,'Utility Functions'!$Z$3,'Utility Functions'!$Z$4,'Utility Functions'!$Z$5,'Utility Functions'!$Z$6)","v":2.6249999999999999E-2},{"$f":"$O$40*valuePL(O14,'Utility Functions'!$AA$3:$AA$5,'Utility Functions'!$AB$3:$AB$5)","v":2.2499999999999999E-2},{"$f":"$P$40*valuePL(P14,'Utility Functions'!$AC$3:$AC$7,'Utility Functions'!$AD$3:$AD$7)","v":0.01},{"$f":"$Q$40*valuePL(Q14,'Utility Functions'!$AE$3:$AE$6,'Utility Functions'!$AF$3:$AF$6)","v":0},{"$f":"$R$40*valuePL(R14,'Utility Functions'!$AG$3:$AG$6,'Utility Functions'!$AH$3:$AH$6)","v":0.05},{"$f":"$S$40*valuePL(S14,'Utility Functions'!$AI$3:$AI$6,'Utility Functions'!$AJ$3:$AJ$6)","v":0.05},{"$f":"$T$40*valuePL(T14,'Utility Functions'!$AK$3:$AK$8,'Utility Functions'!$AL$3:$AL$8)","v":0},{"$f":"$U$40*valuePL(U14,'Utility Functions'!$AM$3:$AM$5,'Utility Functions'!$AN$3:$AN$5)","v":0},{"$f":"$V$40*valuePL(V14,'Utility Functions'!$AO$3:$AO$5,'Utility Functions'!$AP$3:$AP$5)","v":2.5000000000000001E-2},{"$f":"$W$40*valuePL(W14,'Utility Functions'!$AQ$3:$AQ$6,'Utility Functions'!$AR$3:$AR$6)","v":0},{"$f":"$X$40*valuePL(X14,'Utility Functions'!$AS$3:$AS$6,'Utility Functions'!$AT$3:$AT$6)","v":8.0000000000000002E-3},{"$f":"$Y$40*valuePL(Y14,'Utility Functions'!$AU$3:$AU$6,'Utility Functions'!$AV$3:$AV$6)","v":0},{"$f":"$Z$40*valuePL(Z14,'Utility Functions'!$AW$3:$AW$5,'Utility Functions'!$AX$3:$AX$5)","v":0.05},{"$f":"$AA$40*valuePL(AA14,'Utility Functions'!$AY$3:$AY$6,'Utility Functions'!$AZ$3:$AZ$6)","v":8.0000000000000002E-3},{"$f":"$AB$40*valuePL(AB14,'Utility Functions'!$BA$3:$BA$5,'Utility Functions'!$BB$3:$BB$5)","v":0.01},{"$f":"$AC$40*valuePL(AC14,'Utility Functions'!$BC$3:$BC$5,'Utility Functions'!$BD$3:$BD$5)","v":7.4999999999999997E-3},0.30547532344316031,0.30547532344316031]
[14,{"$f":"$B$40*(valueE(B15,'Utility Functions'!$B$3,'Utility Functions'!$B$4,'Utility Functions'!$B$5,'Utility Functions'!$B$6))","v":2.0964205406426323E-2},{"$f":"$C$40*(valueE(C15,'Utility Functions'!$D$3,'Utility Functions'!$D$4,'Utility Functions'!$D$5,'Utility Functions'!$D$6))","v":2.3696993705826886E-2},{"$f":"$D$40*(valuePL(D15,'Utility Functions'!$E$3:$E$5,'Utility Functions'!$F$3:$F$5))","v":1.4999999999999999E-2},{"$f":"$E$40*(valuePL(E15,'Utility Functions'!$G$3:$G$5,'Utility Functions'!$H$3:$H$5))","v":1.4999999999999999E-2},{"$f":"$F$40*(valuePL(F15,'Utility Functions'!$I$3:$I$4,'Utility Functions'!$J$3:$J$5))","v":0},{"$f":"$G$40*(valueE(G15,'Utility Functions'!$L$3,'Utility Functions'!$L$4,'Utility Functions'!$L$5,'Utility Functions'!$L$6))","v":0},{"$f":"$H$40*(valueE(H15,'Utility Functions'!$N$3,'Utility Functions'!$N$4,'Utility Functions'!$N$5,'Utility Functions'!$N$6))","v":0},{"$f":"$I$40*valuePL(I15,'Utility Functions'!$O$3:$O$6,'Utility Functions'!$P$3:$P$6)","v":0},{"$f":"$J$40*valuePL(J15,'Utility Functions'!$Q$3:$Q$6,'Utility Functions'!$R$3:$R$6)","v":0},{"$f":"$K$40*(valuePL(K15,'Utility Functions'!$S$3:$S$7,'Utility Functions'!$T$3:$T$7))","v":0},{"$f":"$L$40*(valueE(L15,'Utility Functions'!$V$3,'Utility Functions'!$V$4,'Utility Functions'!$V$5,'Utility Functions'!$V$6))","v":0},{"$f":"$M$40*valuePL(M15,'Utility Functions'!$W$3:$W$6,'Utility Functions'!$X$3:$X$6)","v":0},{"$f":"$N$40*valueE(N15,'Utility Functions'!$Z$3,'Utility Functions'!$Z$4,'Utility Functions'!$Z$5,'Utility Functions'!$Z$6)","v":2.2499999999999999E-2},{"$f":"$O$40*valuePL(O15,'Utility Functions'!$AA$3:$AA$5,'Utility Functions'!$AB$3:$AB$5)","v":2.2499999999999999E-2},{"$f":"$P$40*valuePL(P15,'Utility Functions'!$AC$3:$AC$7,'Utility Functions'!$AD$3:$AD$7)","v":0.01},{"$f":"$Q$40*valuePL(Q15,'Utility Functions'!$AE$3:$AE$6,'Utility Functions'!$AF$3:$AF$6)","v":0},{"$f":"$R$40*valuePL(R15,'Utility Functions'!$AG$3:$AG$6,'Utility Functions'!$AH$3:$AH$6)","v":0.05},{"$f":"$S$40*valuePL(S15,'Utility Functions'!$AI$3:$AI$6,'Utility Functions'!$AJ$3:$AJ$6)","v":0.05},{"$f":"$T$40*valuePL(T15,'Utility Functions'!$AK$3:$AK$8,'Utility Functions'!$AL$3:$AL$8)","v":0},{"$f":"$U$40*valuePL(U15,'Utility Functions'!$AM$3:$AM$5,'Utility Functions'!$AN$3:$AN$5)","v":0},{"$f":"$V$40*valuePL(V15,'Utility Functions'!$AO$3:$AO$5,'Utility Functions'!$AP$3:$AP$5)","v":2.5000000000000001E-2},{"$f":"$W$40*valuePL(W15,'Utility Functions'!$AQ$3:$AQ$6,'Utility Functions'!$AR$3:$AR$6)","v":8.0000000000000002E-3},{"$f":"$X$40*valuePL(X15,'Utility Functions'!$AS$3:$AS$6,'Utility Functions'!$AT$3:$AT$6)","v":0.04},{"$f":"$Y$40*valuePL(Y15,'Utility Functions'!$AU$3:$AU$6,'Utility Functions'!$AV$3:$AV$6)","v":0.05},{"$f":"$Z$40*valuePL(Z15,'Utility Functions'!$AW$3:$AW$5,'Utility Functions'!$AX$3:$AX$5)","v":2.5000000000000001E-2},{"$f":"$AA$40*valuePL(AA15,'Utility Functions'!$AY$3:$AY$6,'Utility Functions'!$AZ$3:$AZ$6)","v":3.5999999999999997E-2},{"$f":"$AB$40*valuePL(AB15,'Utility Functions'!$BA$3:$BA$5,'Utility Functions'!$BB$3:$BB$5)","v":0.01},{"$f":"$AC$40*valuePL(AC15,'Utility Functions'!$BC$3:$BC$5,'Utility Functions'!$BD$3:$BD$5)","v":7.4999999999999997E-3},0.4311611991122532,0.42916087857610469]
[15,{"$f":"$B$40*(valueE(B16,'Utility Functions'!$B$3,'Utility Functions'!$B$4,'Utility Functions'!$B$5,'Utility Functions'!$B$6))","v":2.9698489925153143E-2},{"$f":"$C$40*(valueE(C16,'Utility Functions'!$D$3,'Utility Functions'!$D$4,'Utility Functions'!$D$5,'Utility Functions'!$D$6))","v":2.1405827917278249E-2},{"$f":"$D$40*(valuePL(D16,'Utility Functions'!$E$3:$E$5,'Utility Functions'!$F$3:$F$5))","v":0.03},{"$f":"$E$40*(valuePL(E16,'Utility Functions'!$G$3:$G$5,'Utility Functions'!$H$3:$H$5))","v":1.4999999999999999E-2},{"$f":"$F$40*(valuePL(F16,'Utility Functions'!$I$3:$I$4,'Utility Functions'!$J$3:$J$5))","v":0.04},{"$f":"$G$40*(valueE(G16,'Utility Functions'!$L$3,'Utility Functions'!$L$4,'Utility Functions'!$L$5,'Utility Functions'!$L$6))","v":0},{"$f":"$H$40*(valueE(H16,'Utility Functions'!$N$3,'Utility Functions'!$N$4,'Utility Functions'!$N$5,'Utility Functions'!$N$6))","v":0},{"$f":"$I$40*valuePL(I16,'Utility Functions'!$O$3:$O$6,'Utility Functions'!$P$3:$P$6)","v":2.7600000000000003E-3},{"$f":"$J$40*valuePL(J16,'Utility Functions'!$Q$3:$Q$6,'Utility Functions'!$R$3:$R$6)","v":1.2000000000000003E-3},{"$f":"$K$40*(valuePL(K16,'Utility Functions'!$S$3:$S$7,'Utility Functions'!$T$3:$T$7))","v":1.2000000000000003E-3},{"$f":"$L$40*(valueE(L16,'Utility Functions'!$V$3,'Utility Functions'!$V$4,'Utility Functions'!$V$5,'Utility Functions'!$V$6))","v":0.02},{"$f":"$M$40*valuePL(M16,'Utility Functions'!$W$3:$W$6,'Utility Functions'!$X$3:$X$6)","v":1.2000000000000003E-3},{"$f":"$N$40*valueE(N16,'Utility Functions'!$Z$3,'Utility Functions'!$Z$4,'Utility Functions'!$Z$5,'Utility Functions'!$Z$6)","v":3.7499999999999999E-3},{"$f":"$O$40*valuePL(O16,'Utility Functions'!$AA$3:$AA$5,'Utility Functions'!$AB$3:$AB$5)","v":0.09},{"$f":"$P$40*valuePL(P16,'Utility Functions'!$AC$3:$AC$7,'Utility Functions'!$AD$3:$AD$7)","v":0.02},{"$f":"$Q$40*valuePL(Q16,'Utility Functions'!$AE$3:$AE$6,'Utility Functions'!$AF$3:$AF$6)","v":0},{"$f":"$R$40*valuePL(R16,'Utility Functions'!$AG$3:$AG$6,'Utility Functions'!$AH$3:$AH$6)","v":4.0000000000000008E-2},{"$f":"$S$40*valuePL(S16,'Utility Functions'!$AI$3:$AI$6,'Utility Functions'!$AJ$3:$AJ$6)","v":0.05},{"$f":"$T$40*valuePL(T16,'Utility Functions'!$AK$3:$AK$8,'Utility Functions'!$AL$3:$AL$8)","v":1.7999999999999999E-2},{"$f":"$U$40*valuePL(U16,'Utility Functions'!$AM$3:$AM$5,'Utility Functions'!$AN$3:$AN$5)","v":0.03},{"$f":"$V$40*valuePL(V16,'Utility Functions'!$AO$3:$AO$5,'Utility Functions'!$AP$3:$AP$5)","v":0},{"$f":"$W$40*valuePL(W16,'Utility Functions'!$AQ$3:$AQ$6,'Utility Functions'!$AR$3:$AR$6)","v":0.04},{"$f":"$X$40*valuePL(X16,'Utility Functions'!$AS$3:$AS$6,'Utility Functions'!$AT$3:$AT$6)","v":8.0000000000000002E-3},{"$f":"$Y$40*valuePL(Y16,'Utility Functions'!$AU$3:$AU$6,'Utility Functions'!$AV$3:$AV$6)","v":1.0000000000000002E-2},{"$f":"$Z$40*valuePL(Z16,'Utility Functions'!$AW$3:$AW$5,'Utility Functions'!$AX$3:$AX$5)","v":0.05},{"$f":"$AA$40*valuePL(AA16,'Utility Functions'!$AY$3:$AY$6,'Utility Functions'!$AZ$3:$AZ$6)","v":0.04},{"$f":"$AB$40*valuePL(AB16,'Utility Functions'!$BA$3:$BA$5,'Utility Functions'!$BB$3:$BB$5)","v":0.04},{"$f":"$AC$40*valuePL(AC16,'Utility Functions'!$BC$3:$BC$5,'Utility Functions'!$BD$3:$BD$5)","v":7.4999999999999997E-3},0.60971431784243146,0.60936712175502528]
[16,{"$f":"$B$40*(valueE(B17,'Utility Functions'!$B$3,'Utility Functions'!$B$4,'Utility Functions'!$B$5,'Utility Functions'!$B$6))","v":0},{"$f":"$C$40*(valueE(C17,'Utility Functions'!$D$3,'Utility Functions'!$D$4,'Utility Functions'!$D$5,'Utility Functions'!$D$6))","v":0},{"$f":"$D$40*(valuePL(D17,'Utility Functions'!$E$3:$E$5,'Utility Functions'!$F$3:$F$5))","v":0},{"$f":"$E$40*(valuePL(E17,'Utility Functions'!$G$3:$G$5,'Utility Functions'!$H$3:$H$5))","v":0},{"$f":"$F$40*(valuePL(F17,'Utility Functions'!$I$3:$I$4,'Utility Functions'!$J$3:$J$5))","v":0},{"$f":"$G$40*(valueE(G17,'Utility Functions'!$L$3,'Utility Functions'!$L$4,'Utility Functions'!$L$5,'Utility Functions'!$L$6))","v":0},{"$f":"$H$40*(valueE(H17,'Utility Functions'!$N$3,'Utility Functions'!$N$4,'Utility Functions'!$N$5,'Utility Functions'!$N$6))","v":0},{"$f":"$I$40*valuePL(I17,'Utility Functions'!$O$3:$O$6,'Utility Functions'!$P$3:$P$6)","v":0.03},{"$f":"$J$40*valuePL(J17,'Utility Functions'!$Q$3:$Q$6,'Utility Functions'!$R$3:$R$6)","v":1.8363636363636363E-2},{"$f":"$K$40*(valuePL(K17,'Utility Functions'!$S$3:$S$7,'Utility Functions'!$T$3:$T$7))","v":0.02},{"$f":"$L$40*(valueE(L17,'Utility Functions'!$V$3,'Utility Functions'!$V$4,'Utility Functions'!$V$5,'Utility Functions'!$V$6))","v":1.6666666666666666E-2},{"$f":"$M$40*valuePL(M17,'Utility Functions'!$W$3:$W$6,'Utility Functions'!$X$3:$X$6)","v":1.8363636363636363E-2},{"$f":"$N$40*valueE(N17,'Utility Functions'!$Z$3,'Utility Functions'!$Z$4,'Utility Functions'!$Z$5,'Utility Functions'!$Z$6)","v":0},{"$f":"$O$40*valuePL(O17,'Utility Functions'!$AA$3:$AA$5,'Utility Functions'!$AB$3:$AB$5)","v":0},{"$f":"$P$40*valuePL(P17,'Utility Functions'!$AC$3:$AC$7,'Utility Functions'!$AD$3:$AD$7)","v":0.03},{"$f":"$Q$40*valuePL(Q17,'Utility Functions'!$AE$3:$AE$6,'Utility Functions'!$AF$3:$AF$6)","v":0},{"$f":"$R$40*valuePL(R17,'Utility Functions'!$AG$3:$AG$6,'Utility Functions'!$AH$3:$AH$6)","v":0.05},{"$f":"$S$40*valuePL(S17,'Utility Functions'!$AI$3:$AI$6,'Utility Functions'!$AJ$3:$AJ$6)","v":0.05},{"$f":"$T$40*valuePL(T17,'Utility Functions'!$AK$3:$AK$8,'Utility Functions'!$AL$3:$AL$8)","v":0.03},{"$f":"$U$40*valuePL(U17,'Utility Functions'!$AM$3:$AM$5,'Utility Functions'!$AN$3:$AN$5)","v":0},{"$f":"$V$40*valuePL(V17,'Utility Functions'!$AO$3:$AO$5,'Utility Functions'!$AP$3:$AP$5)","v":0.05},{"$f":"$W$40*valuePL(W17,'Utility Functions'!$AQ$3:$AQ$6,'Utility Functions'!$AR$3:$AR$6)","v":0.03},{"$f":"$X$40*valuePL(X17,'Utility Functions'!$AS$3:$AS$6,'Utility Functions'!$AT$3:$AT$6)","v":0.03},{"$f":"$Y$40*valuePL(Y17,'Utility Functions'!$AU$3:$AU$6,'Utility Functions'!$AV$3:$AV$6)","v":1.0000000000000002E-2},{"$f":"$Z$40*valuePL(Z17,'Utility Functions'!$AW$3:$AW$5,'Utility Functions'!$AX$3:$AX$5)","v":0.05},{"$f":"$AA$40*valuePL(AA17,'Utility Functions'!$AY$3:$AY$6,'Utility Functions'!$AZ$3:$AZ$6)","v":0.04},{"$f":"$AB$40*valuePL(AB17,'Utility Functions'!$BA$3:$BA$5,'Utility Functions'!$BB$3:$BB$5)","v":0.04},{"$f":"$AC$40*valuePL(AC17,'Utility Functions'!$BC$3:$BC$5,'Utility Functions'!$BD$3:$BD$5)","v":0.03},0.54339393939393943,0.54339393939393943]
[17,{"$f":"$B$40*(valueE(B18,'Utility Functions'!$B$3,'Utility Functions'!$B$4,'Utility Functions'!$B$5,'Utility Functions'!$B$6))","v":9.8904136043327599E-3},{"$f":"$C$40*(valueE(C18,'Utility Functions'!$D$3,'Utility Functions'!$D$4,'Utility Functions'!$D$5,'Utility Functions'!$D$6))","v":2.3696993705826886E-2},{"$f":"$D$40*(valuePL(D18,'Utility Functions'!$E$3:$E$5,'Utility Functions'!$F$3:$F$5))","v":0.03},{"$f":"$E$40*(valuePL(E18,'Utility Functions'!$G$3:$G$5,'Utility Functions'!$H$3:$H$5))","v":1.4999999999999999E-2},{"$f":"$F$40*(valuePL(F18,'Utility Functions'!$I$3:$I$4,'Utility Functions'!$J$3:$J$5))","v":0.04},{"$f":"$G$40*(valueE(G18,'Utility Functions'!$L$3,'Utility Functions'!$L$4,'Utility Functions'!$L$5,'Utility Functions'!$L$6))","v":4.6774193548387091E-3},{"$f":"$H$40*(valueE(H18,'Utility Functions'!$N$3,'Utility Functions'!$N$4,'Utility Functions'!$N$5,'Utility Functions'!$N$6))","v":4.1271347248576853E-3},{"$f":"$I$40*valuePL(I18,'Utility Functions'!$O$3:$O$6,'Utility Functions'!$P$3:$P$6)","v":0},{"$f":"$J$40*valuePL(J18,'Utility Functions'!$Q$3:$Q$6,'Utility Functions'!$R$3:$R$6)","v":0},{"$f":"$K$40*(valuePL(K18,'Utility Functions'!$S$3:$S$7,'Utility Functions'!$T$3:$T$7))","v":0},{"$f":"$L$40*(valueE(L18,'Utility Functions'!$V$3,'Utility Functions'!$V$4,'Utility Functions'!$V$5,'Utility Functions'!$V$6))","v":0.02},{"$f":"$M$40*valuePL(M18,'Utility Functions'!$W$3:$W$6,'Utility Functions'!$X$3:$X$6)","v":1.2000000000000003E-3},{"$f":"$N$40*valueE(N18,'Utility Functions'!$Z$3,'Utility Functions'!$Z$4,'Utility Functions'!$Z$5,'Utility Functions'!$Z$6)","v":0},{"$f":"$O$40*valuePL(O18,'Utility Functions'!$AA$3:$AA$5,'Utility Functions'!$AB$3:$AB$5)","v":0},{"$f":"$P$40*valuePL(P18,'Utility Functions'!$AC$3:$AC$7,'Utility Functions'!$AD$3:$AD$7)","v":0},{"$f":"$Q$40*valuePL(Q18,'Utility Functions'!$AE$3:$AE$6,'Utility Functions'!$AF$3:$AF$6)","v":0},{"$f":"$R$40*valuePL(R18,'Utility Functions'!$AG$3:$AG$6,'Utility Functions'!$AH$3:$AH$6)","v":0.05},{"$f":"$S$40*valuePL(S18,'Utility Functions'!$AI$3:$AI$6,'Utility Functions'!$AJ$3:$AJ$6)","v":3.3000000000000002E-2},{"$f":"$T$40*valuePL(T18,'Utility Functions'!$AK$3:$AK$8,'Utility Functions'!$AL$3:$AL$8)","v":0},{"$f":"$U$40*valuePL(U18,'Utility Functions'!$AM$3:$AM$5,'Utility Functions'!$AN$3:$AN$5)","v":0},{"$f":"$V$40*valuePL(V18,'Utility Functions'!$AO$3:$AO$5,'Utility Functions'!$AP$3:$AP$5)","v":0.05},{"$f":"$W$40*valuePL(W18,'Utility Functions'!$AQ$3:$AQ$6,'Utility Functions'!$AR$3:$AR$6)","v":0.04},{"$f":"$X$40*valuePL(X18,'Utility Functions'!$AS$3:$AS$6,'Utility Functions'!$AT$3:$AT$6)","v":8.0000000000000002E-3},{"$f":"$Y$40*valuePL(Y18,'Utility Functions'!$AU$3:$AU$6,'Utility Functions'!$AV$3:$AV$6)","v":0},{"$f":"$Z$40*valuePL(Z18,'Utility Functions'!$AW$3:$AW$5,'Utility Functions'!$AX$3:$AX$5)","v":2.5000000000000001E-2},{"$f":"$AA$40*valuePL(AA18,'Utility Functions'!$AY$3:$AY$6,'Utility Functions'!$AZ$3:$AZ$6)","v":0},{"$f":"$AB$40*valuePL(AB18,'Utility Functions'!$BA$3:$BA$5,'Utility Functions'!$BB$3:$BB$5)","v":0.04},{"$f":"$AC$40*valuePL(AC18,'Utility Functions'!$BC$3:$BC$5,'Utility Functions'!$BD$3:$BD$5)","v":7.4999999999999997E-3},0.40209196138985603,0.40070572869773624]
[18,{"$f":"$B$40*(valueE(B19,'Utility Functions'!$B$3,'Utility Functions'!$B$4,'Utility Functions'!$B$5,'Utility Functions'!$B$6))","v":0},{"$f":"$C$40*(valueE(C19,'Utility Functions'!$D$3,'Utility Functions'!$D$4,'Utility Functions'!$D$5,'Utility Functions'!$D$6))","v":0},{"$f":"$D$40*(valuePL(D19,'Utility Functions'!$E$3:$E$5,'Utility Functions'!$F$3:$F$5))","v":0},{"$f":"$E$40*(valuePL(E19,'Utility Functions'!$G$3:$G$5,'Utility Functions'!$H$3:$H$5))","v":0},{"$f":"$F$40*(valuePL(F19,'Utility Functions'!$I$3:$I$4,'Utility Functions'!$J$3:$J$5))","v":0},{"$f":"$G$40*(valueE(G19,'Utility Functions'!$L$3,'Utility Functions'!$L$4,'Utility Functions'!$L$5,'Utility Functions'!$L$6))","v":0},{"$f":"$H$40*(valueE(H19,'Utility Functions'!$N$3,'Utility Functions'!$N$4,'Utility Functions'!$N$5,'Utility Functions'!$N$6))","v":4.2694497153700185E-4},{"$f":"$I$40*valuePL(I19,'Utility Functions'!$O$3:$O$6,'Utility Functions'!$P$3:$P$6)","v":0},{"$f":"$J$40*valuePL(J19,'Utility Functions'!$Q$3:$Q$6,'Utility Functions'!$R$3:$R$6)","v":0},{"$f":"$K$40*(valuePL(K19,'Utility Functions'!$S$3:$S$7,'Utility Functions'!$T$3:$T$7))","v":0},{"$f":"$L$40*(valueE(L19,'Utility Functions'!$V$3,'Utility Functions'!$V$4,'Utility Functions'!$V$5,'Utility Functions'!$V$6))","v":0},{"$f":"$M$40*valuePL(M19,'Utility Functions'!$W$3:$W$6,'Utility Functions'!$X$3:$X$6)","v":0},{"$f":"$N$40*valueE(N19,'Utility Functions'!$Z$3,'Utility Functions'!$Z$4,'Utility Functions'!$Z$5,'Utility Functions'!$Z$6)","v":0.03},{"$f":"$O$40*valuePL(O19,'Utility Functions'!$AA$3:$AA$5,'Utility Functions'!$AB$3:$AB$5)","v":2.2499999999999999E-2},{"$f":"$P$40*valuePL(P19,'Utility Functions'!$AC$3:$AC$7,'Utility Functions'!$AD$3:$AD$7)","v":0.01},{"$f":"$Q$40*valuePL(Q19,'Utility Functions'!$AE$3:$AE$6,'Utility Functions'!$AF$3:$AF$6)","v":0.04},{"$f":"$R$40*valuePL(R19,'Utility Functions'!$AG$3:$AG$6,'Utility Functions'!$AH$3:$AH$6)","v":0.05},{"$f":"$S$40*valuePL(S19,'Utility Functions'!$AI$3:$AI$6,'Utility Functions'!$AJ$3:$AJ$6)","v":0.05},{"$f":"$T$40*valuePL(T19,'Utility Functions'!$AK$3:$AK$8,'Utility Functions'!$AL$3:$AL$8)","v":0.03},{"$f":"$U$40*valuePL(U19,'Utility Functions'!$AM$3:$AM$5,'Utility Functions'!$AN$3:$AN$5)","v":7.4999999999999997E-3},{"$f":"$V$40*valuePL(V19,'Utility Functions'!$AO$3:$AO$5,'Utility Functions'!$AP$3:$AP$5)","v":0.05},{"$f":"$W$40*valuePL(W19,'Utility Functions'!$AQ$3:$AQ$6,'Utility Functions'!$AR$3:$AR$6)","v":0.03},{"$f":"$X$40*valuePL(X19,'Utility Functions'!$AS$3:$AS$6,'Utility Functions'!$AT$3:$AT$6)","v":8.0000000000000002E-3},{"$f":"$Y$40*valuePL(Y19,'Utility Functions'!$AU$3:$AU$6,'Utility Functions'!$AV$3:$AV$6)","v":4.0000000000000008E-2},{"$f":"$Z$40*valuePL(Z19,'Utility Functions'!$AW$3:$AW$5,'Utility Functions'!$AX$3:$AX$5)","v":2.5000000000000001E-2},{"$f":"$AA$40*valuePL(AA19,'Utility Functions'!$AY$3:$AY$6,'Utility Functions'!$AZ$3:$AZ$6)","v":3.5999999999999997E-2},{"$f":"$AB$40*valuePL(AB19,'Utility Functions'!$BA$3:$BA$5,'Utility Functions'!$BB$3:$BB$5)","v":0.01},{"$f":"$AC$40*valuePL(AC19,'Utility Functions'!$BC$3:$BC$5,'Utility Functions'!$BD$3:$BD$5)","v":0},0.43942694497153706,0.43942694497153706]
[19,{"$f":"$B$40*(valueE(B20,'Utility Functions'!$B$3,'Utility Functions'!$B$4,'Utility Functions'!$B$5,'Utility Functions'!$B$6))","v":2.3943140737469053E-2},{"$f":"$C$40*(valueE(C20,'Utility Functions'!$D$3,'Utility Functions'!$D$4,'Utility Functions'!$D$5,'Utility Functions'!$D$6))","v":8.0518966871447988E-3},{"$f":"$D$40*(valuePL(D20,'Utility Functions'!$E$3:$E$5,'Utility Functions'!$F$3:$F$5))","v":1.4999999999999999E-2},{"$f":"$E$40*(valuePL(E20,'Utility Functions'!$G$3:$G$5,'Utility Functions'!$H$3:$H$5))","v":0.03},{"$f":"$F$40*(valuePL(F20,'Utility Functions'!$I$3:$I$4,'Utility Functions'!$J$3:$J$5))","v":0},{"$f":"$G$40*(valueE(G20,'Utility Functions'!$L$3,'Utility Functions'!$L$4,'Utility Functions'!$L$5,'Utility Functions'!$L$6))","v":0},{"$f":"$H$40*(valueE(H20,'Utility Functions'!$N$3,'Utility Functions'!$N$4,'Utility Functions'!$N$5,'Utility Functions'!$N$6))","v":0},{"$f":"$I$40*valuePL(I20,'Utility Functions'!$O$3:$O$6,'Utility Functions'!$P$3:$P$6)","v":0},{"$f":"$J$40*valuePL(J20,'Utility Functions'!$Q$3:$Q$6,'Utility Functions'!$R$3:$R$6)","v":0},{"$f":"$K$40*(valuePL(K20,'Utility Functions'!$S$3:$S$7,'Utility Functions'!$T$3:$T$7))","v":0},{"$f":"$L$40*(valueE(L20,'Utility Functions'!$V$3,'Utility Functions'!$V$4,'Utility Functions'!$V$5,'Utility Functions'!$V$6))","v":0},{"$f":"$M$40*valuePL(M20,'Utility Functions'!$W$3:$W$6,'Utility Functions'!$X$3:$X$6)","v":0},{"$f":"$N$40*valueE(N20,'Utility Functions'!$Z$3,'Utility Functions'!$Z$4,'Utility Functions'!$Z$5,'Utility Functions'!$Z$6)","v":0.03},{"$f":"$O$40*valuePL(O20,'Utility Functions'!$AA$3:$AA$5,'Utility Functions'!$AB$3:$AB$5)","v":0.09},{"$f":"$P$40*valuePL(P20,'Utility Functions'!$AC$3:$AC$7,'Utility Functions'!$AD$3:$AD$7)","v":0},{"$f":"$Q$40*valuePL(Q20,'Utility Functions'!$AE$3:$AE$6,'Utility Functions'!$AF$3:$AF$6)","v":0},{"$f":"$R$40*valuePL(R20,'Utility Functions'!$AG$3:$AG$6,'Utility Functions'!$AH$3:$AH$6)","v":4.0000000000000008E-2},{"$f":"$S$40*valuePL(S20,'Utility Functions'!$AI$3:$AI$6,'Utility Functions'!$AJ$3:$AJ$6)","v":0.05},{"$f":"$T$40*valuePL(T20,'Utility Functions'!$AK$3:$AK$8,'Utility Functions'!$AL$3:$AL$8)","v":0},{"$f":"$U$40*valuePL(U20,'Utility Functions'!$AM$3:$AM$5,'Utility Functions'!$AN$3:$AN$5)","v":0},{"$f":"$V$40*valuePL(V20,'Utility Functions'!$AO$3:$AO$5,'Utility Functions'!$AP$3:$AP$5)","v":2.5000000000000001E-2},{"$f":"$W$40*valuePL(W20,'Utility Functions'!$AQ$3:$AQ$6,'Utility Functions'!$AR$3:$AR$6)","v":8.0000000000000002E-3},{"$f":"$X$40*valuePL(X20,'Utility Functions'!$AS$3:$AS$6,'Utility Functions'!$AT$3:$AT$6)","v":0.04},{"$f":"$Y$40*valuePL(Y20,'Utility Functions'!$AU$3:$AU$6,'Utility Functions'!$AV$3:$AV$6)","v":4.0000000000000008E-2},{"$f":"$Z$40*valuePL(Z20,'Utility Functions'!$AW$3:$AW$5,'Utility Functions'!$AX$3:$AX$5)","v":0},{"$f":"$AA$40*valuePL(AA20,'Utility Functions'!$AY$3:$AY$6,'Utility Functions'!$AZ$3:$AZ$6)","v":8.0000000000000002E-3},{"$f":"$AB$40*valuePL(AB20,'Utility Functions'!$BA$3:$BA$5,'Utility Functions'!$BB$3:$BB$5)","v":0},{"$f":"$AC$40*valuePL(AC20,'Utility Functions'!$BC$3:$BC$5,'Utility Functions'!$BD$3:$BD$5)","v":7.4999999999999997E-3},0.41549503742461386,0.41364429487902837]
[20,{"$f":"$B$40*(valueE(B21,'Utility Functions'!$B$3,'Utility Functions'!$B$4,'Utility Functions'!$B$5,'Utility Functions'!$B$6))","v":2.5041071294184137E-2},{"$f":"$C$40*(valueE(C21,'Utility Functions'!$D$3,'Utility Functions'!$D$4,'Utility Functions'!$D$5,'Utility Functions'!$D$6))","v":2.3696993705826886E-2},{"$f":"$D$40*(valuePL(D21,'Utility Functions'!$E$3:$E$5,'Utility Functions'!$F$3:$F$5))","v":1.4999999999999999E-2},{"$f":"$E$40*(valuePL(E21,'Utility Functions'!$G$3:$G$5,'Utility Functions'!$H$3:$H$5))","v":0.03},{"$f":"$F$40*(valuePL(F21,'Utility Functions'!$I$3:$I$4,'Utility Functions'!$J$3:$J$5))","v":0},{"$f":"$G$40*(valueE(G21,'Utility Functions'!$L$3,'Utility Functions'!$L$4,'Utility Functions'!$L$5,'Utility Functions'!$L$6))","v":0},{"$f":"$H$40*(valueE(H21,'Utility Functions'!$N$3,'Utility Functions'!$N$4,'Utility Functions'!$N$5,'Utility Functions'!$N$6))","v":6.1907020872865271E-3},{"$f":"$I$40*valuePL(I21,'Utility Functions'!$O$3:$O$6,'Utility Functions'!$P$3:$P$6)","v":2.8036363636363634E-2},{"$f":"$J$40*valuePL(J21,'Utility Functions'!$Q$3:$Q$6,'Utility Functions'!$R$3:$R$6)","v":1.0181818181818183E-2},{"$f":"$K$40*(valuePL(K21,'Utility Functions'!$S$3:$S$7,'Utility Functions'!$T$3:$T$7))","v":1.8690909090909088E-2},{"$f":"$L$40*(valueE(L21,'Utility Functions'!$V$3,'Utility Functions'!$V$4,'Utility Functions'!$V$5,'Utility Functions'!$V$6))","v":1.3333333333333332E-2},{"$f":"$M$40*valuePL(M21,'Utility Functions'!$W$3:$W$6,'Utility Functions'!$X$3:$X$6)","v":1.0181818181818183E-2},{"$f":"$N$40*valueE(N21,'Utility Functions'!$Z$3,'Utility Functions'!$Z$4,'Utility Functions'!$Z$5,'Utility Functions'!$Z$6)","v":0.03},{"$f":"$O$40*valuePL(O21,'Utility Functions'!$AA$3:$AA$5,'Utility Functions'!$AB$3:$AB$5)","v":0.09},{"$f":"$P$40*valuePL(P21,'Utility Functions'!$AC$3:$AC$7,'Utility Functions'!$AD$3:$AD$7)","v":0.01},{"$f":"$Q$40*valuePL(Q21,'Utility Functions'!$AE$3:$AE$6,'Utility Functions'!$AF$3:$AF$6)","v":0},{"$f":"$R$40*valuePL(R21,'Utility Functions'!$AG$3:$AG$6,'Utility Functions'!$AH$3:$AH$6)","v":0.05},{"$f":"$S$40*valuePL(S21,'Utility Functions'!$AI$3:$AI$6,'Utility Functions'!$AJ$3:$AJ$6)","v":0.05},{"$f":"$T$40*valuePL(T21,'Utility Functions'!$AK$3:$AK$8,'Utility Functions'!$AL$3:$AL$8)","v":1.7999999999999999E-2},{"$f":"$U$40*valuePL(U21,'Utility Functions'!$AM$3:$AM$5,'Utility Functions'!$AN$3:$AN$5)","v":0.03},{"$f":"$V$40*valuePL(V21,'Utility Functions'!$AO$3:$AO$5,'Utility Functions'!$AP$3:$AP$5)","v":2.5000000000000001E-2},{"$f":"$W$40*valuePL(W21,'Utility Functions'!$AQ$3:$AQ$6,'Utility Functions'!$AR$3:$AR$6)","v":0},{"$f":"$X$40*valuePL(X21,'Utility Functions'!$AS$3:$AS$6,'Utility Functions'!$AT$3:$AT$6)","v":0},{"$f":"$Y$40*valuePL(Y21,'Utility Functions'!$AU$3:$AU$6,'Utility Functions'!$AV$3:$AV$6)","v":1.0000000000000002E-2},{"$f":"$Z$40*valuePL(Z21,'Utility Functions'!$AW$3:$AW$5,'Utility Functions'!$AX$3:$AX$5)","v":0.05},{"$f":"$AA$40*valuePL(AA21,'Utility Functions'!$AY$3:$AY$6,'Utility Functions'!$AZ$3:$AZ$6)","v":8.0000000000000002E-3},{"$f":"$AB$40*valuePL(AB21,'Utility Functions'!$BA$3:$BA$5,'Utility Functions'!$BB$3:$BB$5)","v":0},{"$f":"$AC$40*valuePL(AC21,'Utility Functions'!$BC$3:$BC$5,'Utility Functions'!$BD$3:$BD$5)","v":7.4999999999999997E-3},0.55885300951154004,0.55711836291178196]
[{"$f":"A22","v":21},{"$f":"$B$40*(valueE(B22,'Utility Functions'!$B$3,'Utility Functions'!$B$4,'Utility Functions'!$B$5,'Utility Functions'!$B$6))","v":0},{"$f":"$C$40*(valueE(C22,'Utility Functions'!$D$3,'Utility Functions'!$D$4,'Utility Functions'!$D$5,'Utility Functions'!$D$6))","v":0},{"$f":"$D$40*(valuePL(D22,'Utility Functions'!$E$3:$E$5,'Utility Functions'!$F$3:$F$5))","v":0},{"$f":"$E$40*(valuePL(E22,'Utility Functions'!$G$3:$G$5,'Utility Functions'!$H$3:$H$5))","v":0},{"$f":"$F$40*(valuePL(F22,'Utility Functions'!$I$3:$I$4,'Utility Functions'!$J$3:$J$5))","v":0},{"$f":"$G$40*(valueE(G22,'Utility Functions'!$L$3,'Utility Functions'!$L$4,'Utility Functions'!$L$5,'Utility Functions'!$L$6))","v":0},{"$f":"$H$40*(valueE(H22,'Utility Functions'!$N$3,'Utility Functions'!$N$4,'Utility Functions'!$N$5,'Utility Functions'!$N$6))","v":0},{"$f":"$I$40*valuePL(I22,'Utility Functions'!$O$3:$O$6,'Utility Functions'!$P$3:$P$6)","v":0},{"$f":"$J$40*valuePL(J22,'Utility Functions'!$Q$3:$Q$6,'Utility Functions'!$R$3:$R$6)","v":0},{"$f":"$K$40*(valuePL(K22,'Utility Functions'!$S$3:$S$7,'Utility Functions'!$T$3:$T$7))","v":0},{"$f":"$L$40*(valueE(L22,'Utility Functions'!$V$3,'Utility Functions'!$V$4,'Utility Functions'!$V$5,'Utility Functions'!$V$6))","v":0},{"$f":"$M$40*valuePL(M22,'Utility Functions'!$W$3:$W$6,'Utility Functions'!$X$3:$X$6)","v":0},{"$f":"$N$40*valueE(N22,'Utility Functions'!$Z$3,'Utility Functions'!$Z$4,'Utility Functions'!$Z$5,'Utility Functions'!$Z$6)","v":0.03},{"$f":"$O$40*valuePL(O22,'Utility Functions'!$AA$3:$AA$5,'Utility Functions'!$AB$3:$AB$5)","v":0.09},{"$f":"$P$40*valuePL(P22,'Utility Functions'!$AC$3:$AC$7,'Utility Functions'!$AD$3:$AD$7)","v":0},{"$f":"$Q$40*valuePL(Q22,'Utility Functions'!$AE$3:$AE$6,'Utility Functions'!$AF$3:$AF$6)","v":4.0000000000000001E-3},{"$f":"$R$40*valuePL(R22,'Utility Functions'!$AG$3:$AG$6,'Utility Functions'!$AH$3:$AH$6)","v":0.05},{"$f":"$S$40*valuePL(S22,'Utility Functions'!$AI$3:$AI$6,'Utility Functions'!$AJ$3:$AJ$6)","v":0.05},{"$f":"$T$40*valuePL(T22,'Utility Functions'!$AK$3:$AK$8,'Utility Functions'!$AL$3:$AL$8)","v":0.03},{"$f":"$U$40*valuePL(U22,'Utility Functions'!$AM$3:$AM$5,'Utility Functions'!$AN$3:$AN$5)","v":7.4999999999999997E-3},{"$f":"$V$40*valuePL(V22,'Utility Functions'!$AO$3:$AO$5,'Utility Functions'!$AP$3:$AP$5)","v":0},{"$f":"$W$40*valuePL(W22,'Utility Functions'!$AQ$3:$AQ$6,'Utility Functions'!$AR$3:$AR$6)","v":0.03},{"$f":"$X$40*valuePL(X22,'Utility Functions'!$AS$3:$AS$6,'Utility Functions'!$AT$3:$AT$6)","v":0.04},{"$f":"$Y$40*valuePL(Y22,'Utility Functions'!$AU$3:$AU$6,'Utility Functions'!$AV$3:$AV$6)","v":1.0000000000000002E-2},{"$f":"$Z$40*valuePL(Z22,'Utility Functions'!$AW$3:$AW$5,'Utility Functions'!$AX$3:$AX$5)","v":0},{"$f":"$AA$40*valuePL(AA22,'Utility Functions'!$AY$3:$AY$6,'Utility Functions'!$AZ$3:$AZ$6)","v":0.04},{"$f":"$AB$40*valuePL(AB22,'Utility Functions'!$BA$3:$BA$5,'Utility Functions'!$BB$3:$BB$5)","v":0.01},{"$f":"$AC$40*valuePL(AC22,'Utility Functions'!$BC$3:$BC$5,'Utility Functions'!$BD$3:$BD$5)","v":0.03},0.42149999999999999,0.42149999999999999]
[22,{"$f":"$B$40*(valueE(B23,'Utility Functions'!$B$3,'Utility Functions'!$B$4,'Utility Functions'!$B$5,'Utility Functions'!$B$6))","v":0},{"$f":"$C$40*(valueE(C23,'Utility Functions'!$D$3,'Utility Functions'!$D$4,'Utility Functions'!$D$5,'Utility Functions'!$D$6))","v":0},{"$f":"$D$40*(valuePL(D23,'Utility Functions'!$E$3:$E$5,'Utility Functions'!$F$3:$F$5))","v":0},{"$f":"$E$40*(valuePL(E23,'Utility Functions'!$G$3:$G$5,'Utility Functions'!$H$3:$H$5))","v":0},{"$f":"$F$40*(valuePL(F23,'Utility Functions'!$I$3:$I$4,'Utility Functions'!$J$3:$J$5))","v":0},{"$f":"$G$40*(valueE(G23,'Utility Functions'!$L$3,'Utility Functions'!$L$4,'Utility Functions'!$L$5,'Utility Functions'!$L$6))","v":1.2903225806451613E-3},{"$f":"$H$40*(valueE(H23,'Utility Functions'!$N$3,'Utility Functions'!$N$4,'Utility Functions'!$N$5,'Utility Functions'!$N$6))","v":9.1081593927893733E-4},{"$f":"$I$40*valuePL(I23,'Utility Functions'!$O$3:$O$6,'Utility Functions'!$P$3:$P$6)","v":0},{"$f":"$J$40*valuePL(J23,'Utility Functions'!$Q$3:$Q$6,'Utility Functions'!$R$3:$R$6)","v":0},{"$f":"$K$40*(valuePL(K23,'Utility Functions'!$S$3:$S$7,'Utility Functions'!$T$3:$T$7))","v":0},{"$f":"$L$40*(valueE(L23,'Utility Functions'!$V$3,'Utility Functions'!$V$4,'Utility Functions'!$V$5,'Utility Functions'!$V$6))","v":0},{"$f":"$M$40*valuePL(M23,'Utility Functions'!$W$3:$W$6,'Utility Functions'!$X$3:$X$6)","v":0},{"$f":"$N$40*valueE(N23,'Utility Functions'!$Z$3,'Utility Functions'!$Z$4,'Utility Functions'!$Z$5,'Utility Functions'!$Z$6)","v":3.7499999999999999E-3},{"$f":"$O$40*valuePL(O23,'Utility Functions'!$AA$3:$AA$5,'Utility Functions'!$AB$3:$AB$5)","v":0.09},{"$f":"$P$40*valuePL(P23,'Utility Functions'!$AC$3:$AC$7,'Utility Functions'!$AD$3:$AD$7)","v":0.04},{"$f":"$Q$40*valuePL(Q23,'Utility Functions'!$AE$3:$AE$6,'Utility Functions'!$AF$3:$AF$6)","v":0.02},{"$f":"$R$40*valuePL(R23,'Utility Functions'!$AG$3:$AG$6,'Utility Functions'!$AH$3:$AH$6)","v":4.0000000000000008E-2},{"$f":"$S$40*valuePL(S23,'Utility Functions'!$AI$3:$AI$6,'Utility Functions'!$AJ$3:$AJ$6)","v":0.05},{"$f":"$T$40*valuePL(T23,'Utility Functions'!$AK$3:$AK$8,'Utility Functions'!$AL$3:$AL$8)","v":0.03},{"$f":"$U$40*valuePL(U23,'Utility Functions'!$AM$3:$AM$5,'Utility Functions'!$AN$3:$AN$5)","v":0},{"$f":"$V$40*valuePL(V23,'Utility Functions'!$AO$3:$AO$5,'Utility Functions'!$AP$3:$AP$5)","v":2.5000000000000001E-2},{"$f":"$W$40*valuePL(W23,'Utility Functions'!$AQ$3:$AQ$6,'Utility Functions'!$AR$3:$AR$6)","v":0.03},{"$f":"$X$40*valuePL(X23,'Utility Functions'!$AS$3:$AS$6,'Utility Functions'!$AT$3:$AT$6)","v":8.0000000000000002E-3},{"$f":"$Y$40*valuePL(Y23,'Utility Functions'!$AU$3:$AU$6,'Utility Functions'!$AV$3:$AV$6)","v":0},{"$f":"$Z$40*valuePL(Z23,'Utility Functions'!$AW$3:$AW$5,'Utility Functions'!$AX$3:$AX$5)","v":0.05},{"$f":"$AA$40*valuePL(AA23,'Utility Functions'!$AY$3:$AY$6,'Utility Functions'!$AZ$3:$AZ$6)","v":8.0000000000000002E-3},{"$f":"$AB$40*valuePL(AB23,'Utility Functions'!$BA$3:$BA$5,'Utility Functions'!$BB$3:$BB$5)","v":0.04},{"$f":"$AC$40*valuePL(AC23,'Utility Functions'!$BC$3:$BC$5,'Utility Functions'!$BD$3:$BD$5)","v":7.4999999999999997E-3},0.44445113851992418,0.44445113851992418]
[23,{"$f":"$B$40*(valueE(B24,'Utility Functions'!$B$3,'Utility Functions'!$B$4,'Utility Functions'!$B$5,'Utility Functions'!$B$6))","v":2.5041071294184137E-2},{"$f":"$C$40*(valueE(C24,'Utility Functions'!$D$3,'Utility Functions'!$D$4,'Utility Functions'!$D$5,'Utility Functions'!$D$6))","v":2.542345105018548E-2},{"$f":"$D$40*(valuePL(D24,'Utility Functions'!$E$3:$E$5,'Utility Functions'!$F$3:$F$5))","v":0.03},{"$f":"$E$40*(valuePL(E24,'Utility Functions'!$G$3:$G$5,'Utility Functions'!$H$3:$H$5))","v":0},{"$f":"$F$40*(valuePL(F24,'Utility Functions'!$I$3:$I$4,'Utility Functions'!$J$3:$J$5))","v":0},{"$f":"$G$40*(valueE(G24,'Utility Functions'!$L$3,'Utility Functions'!$L$4,'Utility Functions'!$L$5,'Utility Functions'!$L$6))","v":0},{"$f":"$H$40*(valueE(H24,'Utility Functions'!$N$3,'Utility Functions'!$N$4,'Utility Functions'!$N$5,'Utility Functions'!$N$6))","v":0},{"$f":"$I$40*valuePL(I24,'Utility Functions'!$O$3:$O$6,'Utility Functions'!$P$3:$P$6)","v":0},{"$f":"$J$40*valuePL(J24,'Utility Functions'!$Q$3:$Q$6,'Utility Functions'!$R$3:$R$6)","v":0},{"$f":"$K$40*(valuePL(K24,'Utility Functions'!$S$3:$S$7,'Utility Functions'!$T$3:$T$7))","v":0},{"$f":"$L$40*(valueE(L24,'Utility Functions'!$V$3,'Utility Functions'!$V$4,'Utility Functions'!$V$5,'Utility Functions'!$V$6))","v":0},{"$f":"$M$40*valuePL(M24,'Utility Functions'!$W$3:$W$6,'Utility Functions'!$X$3:$X$6)","v":0},{"$f":"$N$40*valueE(N24,'Utility Functions'!$Z$3,'Utility Functions'!$Z$4,'Utility Functions'!$Z$5,'Utility Functions'!$Z$6)","v":0},{"$f":"$O$40*valuePL(O24,'Utility Functions'!$AA$3:$AA$5,'Utility Functions'!$AB$3:$AB$5)","v":0},{"$f":"$P$40*valuePL(P24,'Utility Functions'!$AC$3:$AC$7,'Utility Functions'!$AD$3:$AD$7)","v":0.03},{"$f":"$Q$40*valuePL(Q24,'Utility Functions'!$AE$3:$AE$6,'Utility Functions'!$AF$3:$AF$6)","v":0},{"$f":"$R$40*valuePL(R24,'Utility Functions'!$AG$3:$AG$6,'Utility Functions'!$AH$3:$AH$6)","v":0.05},{"$f":"$S$40*valuePL(S24,'Utility Functions'!$AI$3:$AI$6,'Utility Functions'!$AJ$3:$AJ$6)","v":0.05},{"$f":"$T$40*valuePL(T24,'Utility Functions'!$AK$3:$AK$8,'Utility Functions'!$AL$3:$AL$8)","v":0.03},{"$f":"$U$40*valuePL(U24,'Utility Functions'!$AM$3:$AM$5,'Utility Functions'!$AN$3:$AN$5)","v":0},{"$f":"$V$40*valuePL(V24,'Utility Functions'!$AO$3:$AO$5,'Utility Functions'!$AP$3:$AP$5)","v":0.05},{"$f":"$W$40*valuePL(W24,'Utility Functions'!$AQ$3:$AQ$6,'Utility Functions'!$AR$3:$AR$6)","v":8.0000000000000002E-3},{"$f":"$X$40*valuePL(X24,'Utility Functions'!$AS$3:$AS$6,'Utility Functions'!$AT$3:$AT$6)","v":0.03},{"$f":"$Y$40*valuePL(Y24,'Utility Functions'!$AU$3:$AU$6,'Utility Functions'!$AV$3:$AV$6)","v":1.0000000000000002E-2},{"$f":"$Z$40*valuePL(Z24,'Utility Functions'!$AW$3:$AW$5,'Utility Functions'!$AX$3:$AX$5)","v":2.5000000000000001E-2},{"$f":"$AA$40*valuePL(AA24,'Utility Functions'!$AY$3:$AY$6,'Utility Functions'!$AZ$3:$AZ$6)","v":8.0000000000000002E-3},{"$f":"$AB$40*valuePL(AB24,'Utility Functions'!$BA$3:$BA$5,'Utility Functions'!$BB$3:$BB$5)","v":0},{"$f":"$AC$40*valuePL(AC24,'Utility Functions'!$BC$3:$BC$5,'Utility Functions'!$BD$3:$BD$5)","v":7.4999999999999997E-3},0.37896452234436967,0.3772298757446117]
[24,{"$f":"$B$40*(valueE(B25,'Utility Functions'!$B$3,'Utility Functions'!$B$4,'Utility Functions'!$B$5,'Utility Functions'!$B$6))","v":1.896364549751255E-2},{"$f":"$C$40*(valueE(C25,'Utility Functions'!$D$3,'Utility Functions'!$D$4,'Utility Functions'!$D$5,'Utility Functions'!$D$6))","v":1.3942790146123618E-2},{"$f":"$D$40*(valuePL(D25,'Utility Functions'!$E$3:$E$5,'Utility Functions'!$F$3:$F$5))","v":0.03},{"$f":"$E$40*(valuePL(E25,'Utility Functions'!$G$3:$G$5,'Utility Functions'!$H$3:$H$5))","v":0},{"$f":"$F$40*(valuePL(F25,'Utility Functions'!$I$3:$I$4,'Utility Functions'!$J$3:$J$5))","v":0},{"$f":"$G$40*(valueE(G25,'Utility Functions'!$L$3,'Utility Functions'!$L$4,'Utility Functions'!$L$5,'Utility Functions'!$L$6))","v":0},{"$f":"$H$40*(valueE(H25,'Utility Functions'!$N$3,'Utility Functions'!$N$4,'Utility Functions'!$N$5,'Utility Functions'!$N$6))","v":0},{"$f":"$I$40*valuePL(I25,'Utility Functions'!$O$3:$O$6,'Utility Functions'!$P$3:$P$6)","v":0},{"$f":"$J$40*valuePL(J25,'Utility Functions'!$Q$3:$Q$6,'Utility Functions'!$R$3:$R$6)","v":0},{"$f":"$K$40*(valuePL(K25,'Utility Functions'!$S$3:$S$7,'Utility Functions'!$T$3:$T$7))","v":0},{"$f":"$L$40*(valueE(L25,'Utility Functions'!$V$3,'Utility Functions'!$V$4,'Utility Functions'!$V$5,'Utility Functions'!$V$6))","v":0},{"$f":"$M$40*valuePL(M25,'Utility Functions'!$W$3:$W$6,'Utility Functions'!$X$3:$X$6)","v":0},{"$f":"$N$40*valueE(N25,'Utility Functions'!$Z$3,'Utility Functions'!$Z$4,'Utility Functions'!$Z$5,'Utility Functions'!$Z$6)","v":0},{"$f":"$O$40*valuePL(O25,'Utility Functions'!$AA$3:$AA$5,'Utility Functions'!$AB$3:$AB$5)","v":0},{"$f":"$P$40*valuePL(P25,'Utility Functions'!$AC$3:$AC$7,'Utility Functions'!$AD$3:$AD$7)","v":0},{"$f":"$Q$40*valuePL(Q25,'Utility Functions'!$AE$3:$AE$6,'Utility Functions'!$AF$3:$AF$6)","v":0},{"$f":"$R$40*valuePL(R25,'Utility Functions'!$AG$3:$AG$6,'Utility Functions'!$AH$3:$AH$6)","v":0.05},{"$f":"$S$40*valuePL(S25,'Utility Functions'!$AI$3:$AI$6,'Utility Functions'!$AJ$3:$AJ$6)","v":0.05},{"$f":"$T$40*valuePL(T25,'Utility Functions'!$AK$3:$AK$8,'Utility Functions'!$AL$3:$AL$8)","v":0.03},{"$f":"$U$40*valuePL(U25,'Utility Functions'!$AM$3:$AM$5,'Utility Functions'!$AN$3:$AN$5)","v":0},{"$f":"$V$40*valuePL(V25,'Utility Functions'!$AO$3:$AO$5,'Utility Functions'!$AP$3:$AP$5)","v":0},{"$f":"$W$40*valuePL(W25,'Utility Functions'!$AQ$3:$AQ$6,'Utility Functions'!$AR$3:$AR$6)","v":0.04},{"$f":"$X$40*valuePL(X25,'Utility Functions'!$AS$3:$AS$6,'Utility Functions'!$AT$3:$AT$6)","v":8.0000000000000002E-3},{"$f":"$Y$40*valuePL(Y25,'Utility Functions'!$AU$3:$AU$6,'Utility Functions'!$AV$3:$AV$6)","v":0.05},{"$f":"$Z$40*valuePL(Z25,'Utility Functions'!$AW$3:$AW$5,'Utility Functions'!$AX$3:$AX$5)","v":0.05},{"$f":"$AA$40*valuePL(AA25,'Utility Functions'!$AY$3:$AY$6,'Utility Functions'!$AZ$3:$AZ$6)","v":8.0000000000000002E-3},{"$f":"$AB$40*valuePL(AB25,'Utility Functions'!$BA$3:$BA$5,'Utility Functions'!$BB$3:$BB$5)","v":0},{"$f":"$AC$40*valuePL(AC25,'Utility Functions'!$BC$3:$BC$5,'Utility Functions'!$BD$3:$BD$5)","v":0.03},0.37890643564363613,0.37690508369846576]
[25,{"$f":"$B$40*(valueE(B26,'Utility Functions'!$B$3,'Utility Functions'!$B$4,'Utility Functions'!$B$5,'Utility Functions'!$B$6))","v":2.5041071294184137E-2},{"$f":"$C$40*(valueE(C26,'Utility Functions'!$D$3,'Utility Functions'!$D$4,'Utility Functions'!$D$5,'Utility Functions'!$D$6))","v":2.542345105018548E-2},{"$f":"$D$40*(valuePL(D26,'Utility Functions'!$E$3:$E$5,'Utility Functions'!$F$3:$F$5))","v":0.03},{"$f":"$E$40*(valuePL(E26,'Utility Functions'!$G$3:$G$5,'Utility Functions'!$H$3:$H$5))","v":0},{"$f":"$F$40*(valuePL(F26,'Utility Functions'!$I$3:$I$4,'Utility Functions'!$J$3:$J$5))","v":0},{"$f":"$G$40*(valueE(G26,'Utility Functions'!$L$3,'Utility Functions'!$L$4,'Utility Functions'!$L$5,'Utility Functions'!$L$6))","v":1.4193548387096775E-2},{"$f":"$H$40*(valueE(H26,'Utility Functions'!$N$3,'Utility Functions'!$N$4,'Utility Functions'!$N$5,'Utility Functions'!$N$6))","v":4.383301707779886E-3},{"$f":"$I$40*valuePL(I26,'Utility Functions'!$O$3:$O$6,'Utility Functions'!$P$3:$P$6)","v":0},{"$f":"$J$40*valuePL(J26,'Utility Functions'!$Q$3:$Q$6,'Utility Functions'!$R$3:$R$6)","v":0},{"$f":"$K$40*(valuePL(K26,'Utility Functions'!$S$3:$S$7,'Utility Functions'!$T$3:$T$7))","v":0},{"$f":"$L$40*(valueE(L26,'Utility Functions'!$V$3,'Utility Functions'!$V$4,'Utility Functions'!$V$5,'Utility Functions'!$V$6))","v":0},{"$f":"$M$40*valuePL(M26,'Utility Functions'!$W$3:$W$6,'Utility Functions'!$X$3:$X$6)","v":0},{"$f":"$N$40*valueE(N26,'Utility Functions'!$Z$3,'Utility Functions'!$Z$4,'Utility Functions'!$Z$5,'Utility Functions'!$Z$6)","v":0.03},{"$f":"$O$40*valuePL(O26,'Utility Functions'!$AA$3:$AA$5,'Utility Functions'!$AB$3:$AB$5)","v":2.2499999999999999E-2},{"$f":"$P$40*valuePL(P26,'Utility Functions'!$AC$3:$AC$7,'Utility Functions'!$AD$3:$AD$7)","v":0.02},{"$f":"$Q$40*valuePL(Q26,'Utility Functions'!$AE$3:$AE$6,'Utility Functions'!$AF$3:$AF$6)","v":0.02},{"$f":"$R$40*valuePL(R26,'Utility Functions'!$AG$3:$AG$6,'Utility Functions'!$AH$3:$AH$6)","v":0.05},{"$f":"$S$40*valuePL(S26,'Utility Functions'!$AI$3:$AI$6,'Utility Functions'!$AJ$3:$AJ$6)","v":0.05},{"$f":"$T$40*valuePL(T26,'Utility Functions'!$AK$3:$AK$8,'Utility Functions'!$AL$3:$AL$8)","v":0},{"$f":"$U$40*valuePL(U26,'Utility Functions'!$AM$3:$AM$5,'Utility Functions'!$AN$3:$AN$5)","v":0},{"$f":"$V$40*valuePL(V26,'Utility Functions'!$AO$3:$AO$5,'Utility Functions'!$AP$3:$AP$5)","v":0.05},{"$f":"$W$40*valuePL(W26,'Utility Functions'!$AQ$3:$AQ$6,'Utility Functions'!$AR$3:$AR$6)","v":8.0000000000000002E-3},{"$f":"$X$40*valuePL(X26,'Utility Functions'!$AS$3:$AS$6,'Utility Functions'!$AT$3:$AT$6)","v":0.04},{"$f":"$Y$40*valuePL(Y26,'Utility Functions'!$AU$3:$AU$6,'Utility Functions'!$AV$3:$AV$6)","v":4.0000000000000008E-2},{"$f":"$Z$40*valuePL(Z26,'Utility Functions'!$AW$3:$AW$5,'Utility Functions'!$AX$3:$AX$5)","v":2.5000000000000001E-2},{"$f":"$AA$40*valuePL(AA26,'Utility Functions'!$AY$3:$AY$6,'Utility Functions'!$AZ$3:$AZ$6)","v":8.0000000000000002E-3},{"$f":"$AB$40*valuePL(AB26,'Utility Functions'!$BA$3:$BA$5,'Utility Functions'!$BB$3:$BB$5)","v":0.04},{"$f":"$AC$40*valuePL(AC26,'Utility Functions'!$BC$3:$BC$5,'Utility Functions'!$BD$3:$BD$5)","v":0.03},0.53254137243924626,0.53080672583948829]
[26,{"$f":"$B$40*(valueE(B27,'Utility Functions'!$B$3,'Utility Functions'!$B$4,'Utility Functions'!$B$5,'Utility Functions'!$B$6))","v":2.8998845838620748E-2},{"$f":"$C$40*(valueE(C27,'Utility Functions'!$D$3,'Utility Functions'!$D$4,'Utility Functions'!$D$5,'Utility Functions'!$D$6))","v":2.542345105018548E-2},{"$f":"$D$40*(valuePL(D27,'Utility Functions'!$E$3:$E$5,'Utility Functions'!$F$3:$F$5))","v":0.03},{"$f":"$E$40*(valuePL(E27,'Utility Functions'!$G$3:$G$5,'Utility Functions'!$H$3:$H$5))","v":1.4999999999999999E-2},{"$f":"$F$40*(valuePL(F27,'Utility Functions'!$I$3:$I$4,'Utility Functions'!$J$3:$J$5))","v":0},{"$f":"$G$40*(valueE(G27,'Utility Functions'!$L$3,'Utility Functions'!$L$4,'Utility Functions'!$L$5,'Utility Functions'!$L$6))","v":0},{"$f":"$H$40*(valueE(H27,'Utility Functions'!$N$3,'Utility Functions'!$N$4,'Utility Functions'!$N$5,'Utility Functions'!$N$6))","v":0},{"$f":"$I$40*valuePL(I27,'Utility Functions'!$O$3:$O$6,'Utility Functions'!$P$3:$P$6)","v":0},{"$f":"$J$40*valuePL(J27,'Utility Functions'!$Q$3:$Q$6,'Utility Functions'!$R$3:$R$6)","v":0},{"$f":"$K$40*(valuePL(K27,'Utility Functions'!$S$3:$S$7,'Utility Functions'!$T$3:$T$7))","v":0},{"$f":"$L$40*(valueE(L27,'Utility Functions'!$V$3,'Utility Functions'!$V$4,'Utility Functions'!$V$5,'Utility Functions'!$V$6))","v":0},{"$f":"$M$40*valuePL(M27,'Utility Functions'!$W$3:$W$6,'Utility Functions'!$X$3:$X$6)","v":0},{"$f":"$N$40*valueE(N27,'Utility Functions'!$Z$3,'Utility Functions'!$Z$4,'Utility Functions'!$Z$5,'Utility Functions'!$Z$6)","v":0},{"$f":"$O$40*valuePL(O27,'Utility Functions'!$AA$3:$AA$5,'Utility Functions'!$AB$3:$AB$5)","v":0},{"$f":"$P$40*valuePL(P27,'Utility Functions'!$AC$3:$AC$7,'Utility Functions'!$AD$3:$AD$7)","v":0.03},{"$f":"$Q$40*valuePL(Q27,'Utility Functions'!$AE$3:$AE$6,'Utility Functions'!$AF$3:$AF$6)","v":0},{"$f":"$R$40*valuePL(R27,'Utility Functions'!$AG$3:$AG$6,'Utility Functions'!$AH$3:$AH$6)","v":0.05},{"$f":"$S$40*valuePL(S27,'Utility Functions'!$AI$3:$AI$6,'Utility Functions'!$AJ$3:$AJ$6)","v":0.05},{"$f":"$T$40*valuePL(T27,'Utility Functions'!$AK$3:$AK$8,'Utility Functions'!$AL$3:$AL$8)","v":2.4E-2},{"$f":"$U$40*valuePL(U27,'Utility Functions'!$AM$3:$AM$5,'Utility Functions'!$AN$3:$AN$5)","v":0},{"$f":"$V$40*valuePL(V27,'Utility Functions'!$AO$3:$AO$5,'Utility Functions'!$AP$3:$AP$5)","v":0.05},{"$f":"$W$40*valuePL(W27,'Utility Functions'!$AQ$3:$AQ$6,'Utility Functions'!$AR$3:$AR$6)","v":8.0000000000000002E-3},{"$f":"$X$40*valuePL(X27,'Utility Functions'!$AS$3:$AS$6,'Utility Functions'!$AT$3:$AT$6)","v":0},{"$f":"$Y$40*valuePL(Y27,'Utility Functions'!$AU$3:$AU$6,'Utility Functions'!$AV$3:$AV$6)","v":4.0000000000000008E-2},{"$f":"$Z$40*valuePL(Z27,'Utility Functions'!$AW$3:$AW$5,'Utility Functions'!$AX$3:$AX$5)","v":0},{"$f":"$AA$40*valuePL(AA27,'Utility Functions'!$AY$3:$AY$6,'Utility Functions'!$AZ$3:$AZ$6)","v":8.0000000000000002E-3},{"$f":"$AB$40*valuePL(AB27,'Utility Functions'!$BA$3:$BA$5,'Utility Functions'!$BB$3:$BB$5)","v":0.04},{"$f":"$AC$40*valuePL(AC27,'Utility Functions'!$BC$3:$BC$5,'Utility Functions'!$BD$3:$BD$5)","v":0.03},0.42942229688880618,0.4286593560912294]
[27,{"$f":"$B$40*(valueE(B28,'Utility Functions'!$B$3,'Utility Functions'!$B$4,'Utility Functions'!$B$5,'Utility Functions'!$B$6))","v":0},{"$f":"$C$40*(valueE(C28,'Utility Functions'!$D$3,'Utility Functions'!$D$4,'Utility Functions'!$D$5,'Utility Functions'!$D$6))","v":1.3942790146123618E-2},{"$f":"$D$40*(valuePL(D28,'Utility Functions'!$E$3:$E$5,'Utility Functions'!$F$3:$F$5))","v":0.03},{"$f":"$E$40*(valuePL(E28,'Utility Functions'!$G$3:$G$5,'Utility Functions'!$H$3:$H$5))","v":0},{"$f":"$F$40*(valuePL(F28,'Utility Functions'!$I$3:$I$4,'Utility Functions'!$J$3:$J$5))","v":0},{"$f":"$G$40*(valueE(G28,'Utility Functions'!$L$3,'Utility Functions'!$L$4,'Utility Functions'!$L$5,'Utility Functions'!$L$6))","v":0},{"$f":"$H$40*(valueE(H28,'Utility Functions'!$N$3,'Utility Functions'!$N$4,'Utility Functions'!$N$5,'Utility Functions'!$N$6))","v":0},{"$f":"$I$40*valuePL(I28,'Utility Functions'!$O$3:$O$6,'Utility Functions'!$P$3:$P$6)","v":0},{"$f":"$J$40*valuePL(J28,'Utility Functions'!$Q$3:$Q$6,'Utility Functions'!$R$3:$R$6)","v":0},{"$f":"$K$40*(valuePL(K28,'Utility Functions'!$S$3:$S$7,'Utility Functions'!$T$3:$T$7))","v":0.02},{"$f":"$L$40*(valueE(L28,'Utility Functions'!$V$3,'Utility Functions'!$V$4,'Utility Functions'!$V$5,'Utility Functions'!$V$6))","v":0},{"$f":"$M$40*valuePL(M28,'Utility Functions'!$W$3:$W$6,'Utility Functions'!$X$3:$X$6)","v":2E-3},{"$f":"$N$40*valueE(N28,'Utility Functions'!$Z$3,'Utility Functions'!$Z$4,'Utility Functions'!$Z$5,'Utility Functions'!$Z$6)","v":0},{"$f":"$O$40*valuePL(O28,'Utility Functions'!$AA$3:$AA$5,'Utility Functions'!$AB$3:$AB$5)","v":0},{"$f":"$P$40*valuePL(P28,'Utility Functions'!$AC$3:$AC$7,'Utility Functions'!$AD$3:$AD$7)","v":0.02},{"$f":"$Q$40*valuePL(Q28,'Utility Functions'!$AE$3:$AE$6,'Utility Functions'!$AF$3:$AF$6)","v":0.02},{"$f":"$R$40*valuePL(R28,'Utility Functions'!$AG$3:$AG$6,'Utility Functions'!$AH$3:$AH$6)","v":0.05},{"$f":"$S$40*valuePL(S28,'Utility Functions'!$AI$3:$AI$6,'Utility Functions'!$AJ$3:$AJ$6)","v":0.05},{"$f":"$T$40*valuePL(T28,'Utility Functions'!$AK$3:$AK$8,'Utility Functions'!$AL$3:$AL$8)","v":0.03},{"$f":"$U$40*valuePL(U28,'Utility Functions'!$AM$3:$AM$5,'Utility Functions'!$AN$3:$AN$5)","v":0},{"$f":"$V$40*valuePL(V28,'Utility Functions'!$AO$3:$AO$5,'Utility Functions'!$AP$3:$AP$5)","v":2.5000000000000001E-2},{"$f":"$W$40*valuePL(W28,'Utility Functions'!$AQ$3:$AQ$6,'Utility Functions'!$AR$3:$AR$6)","v":0.03},{"$f":"$X$40*valuePL(X28,'Utility Functions'!$AS$3:$AS$6,'Utility Functions'!$AT$3:$AT$6)","v":0.04},{"$f":"$Y$40*valuePL(Y28,'Utility Functions'!$AU$3:$AU$6,'Utility Functions'!$AV$3:$AV$6)","v":1.0000000000000002E-2},{"$f":"$Z$40*valuePL(Z28,'Utility Functions'!$AW$3:$AW$5,'Utility Functions'!$AX$3:$AX$5)","v":0},{"$f":"$AA$40*valuePL(AA28,'Utility Functions'!$AY$3:$AY$6,'Utility Functions'!$AZ$3:$AZ$6)","v":0},{"$f":"$AB$40*valuePL(AB28,'Utility Functions'!$BA$3:$BA$5,'Utility Functions'!$BB$3:$BB$5)","v":0},{"$f":"$AC$40*valuePL(AC28,'Utility Functions'!$BC$3:$BC$5,'Utility Functions'!$BD$3:$BD$5)","v":0},0.34094279014612355,0.34094279014612355]
[{"$f":"A29","v":28},{"$f":"$B$40*(valueE(B29,'Utility Functions'!$B$3,'Utility Functions'!$B$4,'Utility Functions'!$B$5,'Utility Functions'!$B$6))","v":1.3535671425672068E-2},{"$f":"$C$40*(valueE(C29,'Utility Functions'!$D$3,'Utility Functions'!$D$4,'Utility Functions'!$D$5,'Utility Functions'!$D$6))","v":1.3942790146123618E-2},{"$f":"$D$40*(valuePL(D29,'Utility Functions'!$E$3:$E$5,'Utility Functions'!$F$3:$F$5))","v":0.03},{"$f":"$E$40*(valuePL(E29,'Utility Functions'!$G$3:$G$5,'Utility Functions'!$H$3:$H$5))","v":0},{"$f":"$F$40*(valuePL(F29,'Utility Functions'!$I$3:$I$4,'Utility Functions'!$J$3:$J$5))","v":0.04},{"$f":"$G$40*(valueE(G29,'Utility Functions'!$L$3,'Utility Functions'!$L$4,'Utility Functions'!$L$5,'Utility Functions'!$L$6))","v":0},{"$f":"$H$40*(valueE(H29,'Utility Functions'!$N$3,'Utility Functions'!$N$4,'Utility Functions'!$N$5,'Utility Functions'!$N$6))","v":0},{"$f":"$I$40*valuePL(I29,'Utility Functions'!$O$3:$O$6,'Utility Functions'!$P$3:$P$6)","v":0},{"$f":"$J$40*valuePL(J29,'Utility Functions'!$Q$3:$Q$6,'Utility Functions'!$R$3:$R$6)","v":0},{"$f":"$K$40*(valuePL(K29,'Utility Functions'!$S$3:$S$7,'Utility Functions'!$T$3:$T$7))","v":0},{"$f":"$L$40*(valueE(L29,'Utility Functions'!$V$3,'Utility Functions'!$V$4,'Utility Functions'!$V$5,'Utility Functions'!$V$6))","v":6.6666666666666662E-3},{"$f":"$M$40*valuePL(M29,'Utility Functions'!$W$3:$W$6,'Utility Functions'!$X$3:$X$6)","v":2E-3},{"$f":"$N$40*valueE(N29,'Utility Functions'!$Z$3,'Utility Functions'!$Z$4,'Utility Functions'!$Z$5,'Utility Functions'!$Z$6)","v":0},{"$f":"$O$40*valuePL(O29,'Utility Functions'!$AA$3:$AA$5,'Utility Functions'!$AB$3:$AB$5)","v":0},{"$f":"$P$40*valuePL(P29,'Utility Functions'!$AC$3:$AC$7,'Utility Functions'!$AD$3:$AD$7)","v":0.04},{"$f":"$Q$40*valuePL(Q29,'Utility Functions'!$AE$3:$AE$6,'Utility Functions'!$AF$3:$AF$6)","v":0},{"$f":"$R$40*valuePL(R29,'Utility Functions'!$AG$3:$AG$6,'Utility Functions'!$AH$3:$AH$6)","v":0.05},{"$f":"$S$40*valuePL(S29,'Utility Functions'!$AI$3:$AI$6,'Utility Functions'!$AJ$3:$AJ$6)","v":0.05},{"$f":"$T$40*valuePL(T29,'Utility Functions'!$AK$3:$AK$8,'Utility Functions'!$AL$3:$AL$8)","v":2.4E-2},{"$f":"$U$40*valuePL(U29,'Utility Functions'!$AM$3:$AM$5,'Utility Functions'!$AN$3:$AN$5)","v":0},{"$f":"$V$40*valuePL(V29,'Utility Functions'!$AO$3:$AO$5,'Utility Functions'!$AP$3:$AP$5)","v":0.05},{"$f":"$W$40*valuePL(W29,'Utility Functions'!$AQ$3:$AQ$6,'Utility Functions'!$AR$3:$AR$6)","v":0.04},{"$f":"$X$40*valuePL(X29,'Utility Functions'!$AS$3:$AS$6,'Utility Functions'!$AT$3:$AT$6)","v":0.04},{"$f":"$Y$40*valuePL(Y29,'Utility Functions'!$AU$3:$AU$6,'Utility Functions'!$AV$3:$AV$6)","v":1.0000000000000002E-2},{"$f":"$Z$40*valuePL(Z29,'Utility Functions'!$AW$3:$AW$5,'Utility Functions'!$AX$3:$AX$5)","v":0},{"$f":"$AA$40*valuePL(AA29,'Utility Functions'!$AY$3:$AY$6,'Utility Functions'!$AZ$3:$AZ$6)","v":3.5999999999999997E-2},{"$f":"$AB$40*valuePL(AB29,'Utility Functions'!$BA$3:$BA$5,'Utility Functions'!$BB$3:$BB$5)","v":0.04},{"$f":"$AC$40*valuePL(AC29,'Utility Functions'!$BC$3:$BC$5,'Utility Functions'!$BD$3:$BD$5)","v":7.4999999999999997E-3},0.49364512823846229,0.49191370390613232]
[29,{"$f":"$B$40*(valueE(B30,'Utility Functions'!$B$3,'Utility Functions'!$B$4,'Utility Functions'!$B$5,'Utility Functions'!$B$6))","v":2.5041071294184137E-2},{"$f":"$C$40*(valueE(C30,'Utility Functions'!$D$3,'Utility Functions'!$D$4,'Utility Functions'!$D$5,'Utility Functions'!$D$6))","v":2.1405827917278249E-2},{"$f":"$D$40*(valuePL(D30,'Utility Functions'!$E$3:$E$5,'Utility Functions'!$F$3:$F$5))","v":0.03},{"$f":"$E$40*(valuePL(E30,'Utility Functions'!$G$3:$G$5,'Utility Functions'!$H$3:$H$5))","v":1.4999999999999999E-2},{"$f":"$F$40*(valuePL(F30,'Utility Functions'!$I$3:$I$4,'Utility Functions'!$J$3:$J$5))","v":0},{"$f":"$G$40*(valueE(G30,'Utility Functions'!$L$3,'Utility Functions'!$L$4,'Utility Functions'!$L$5,'Utility Functions'!$L$6))","v":0},{"$f":"$H$40*(valueE(H30,'Utility Functions'!$N$3,'Utility Functions'!$N$4,'Utility Functions'!$N$5,'Utility Functions'!$N$6))","v":0},{"$f":"$I$40*valuePL(I30,'Utility Functions'!$O$3:$O$6,'Utility Functions'!$P$3:$P$6)","v":1.8E-3},{"$f":"$J$40*valuePL(J30,'Utility Functions'!$Q$3:$Q$6,'Utility Functions'!$R$3:$R$6)","v":1.3454545454545455E-2},{"$f":"$K$40*(valuePL(K30,'Utility Functions'!$S$3:$S$7,'Utility Functions'!$T$3:$T$7))","v":0},{"$f":"$L$40*(valueE(L30,'Utility Functions'!$V$3,'Utility Functions'!$V$4,'Utility Functions'!$V$5,'Utility Functions'!$V$6))","v":0.02},{"$f":"$M$40*valuePL(M30,'Utility Functions'!$W$3:$W$6,'Utility Functions'!$X$3:$X$6)","v":1.3454545454545455E-2},{"$f":"$N$40*valueE(N30,'Utility Functions'!$Z$3,'Utility Functions'!$Z$4,'Utility Functions'!$Z$5,'Utility Functions'!$Z$6)","v":0},{"$f":"$O$40*valuePL(O30,'Utility Functions'!$AA$3:$AA$5,'Utility Functions'!$AB$3:$AB$5)","v":0},{"$f":"$P$40*valuePL(P30,'Utility Functions'!$AC$3:$AC$7,'Utility Functions'!$AD$3:$AD$7)","v":0.01},{"$f":"$Q$40*valuePL(Q30,'Utility Functions'!$AE$3:$AE$6,'Utility Functions'!$AF$3:$AF$6)","v":0},{"$f":"$R$40*valuePL(R30,'Utility Functions'!$AG$3:$AG$6,'Utility Functions'!$AH$3:$AH$6)","v":0.05},{"$f":"$S$40*valuePL(S30,'Utility Functions'!$AI$3:$AI$6,'Utility Functions'!$AJ$3:$AJ$6)","v":0.05},{"$f":"$T$40*valuePL(T30,'Utility Functions'!$AK$3:$AK$8,'Utility Functions'!$AL$3:$AL$8)","v":2.4E-2},{"$f":"$U$40*valuePL(U30,'Utility Functions'!$AM$3:$AM$5,'Utility Functions'!$AN$3:$AN$5)","v":0},{"$f":"$V$40*valuePL(V30,'Utility Functions'!$AO$3:$AO$5,'Utility Functions'!$AP$3:$AP$5)","v":0.05},{"$f":"$W$40*valuePL(W30,'Utility Functions'!$AQ$3:$AQ$6,'Utility Functions'!$AR$3:$AR$6)","v":8.0000000000000002E-3},{"$f":"$X$40*valuePL(X30,'Utility Functions'!$AS$3:$AS$6,'Utility Functions'!$AT$3:$AT$6)","v":0},{"$f":"$Y$40*valuePL(Y30,'Utility Functions'!$AU$3:$AU$6,'Utility Functions'!$AV$3:$AV$6)","v":4.0000000000000008E-2},{"$f":"$Z$40*valuePL(Z30,'Utility Functions'!$AW$3:$AW$5,'Utility Functions'!$AX$3:$AX$5)","v":2.5000000000000001E-2},{"$f":"$AA$40*valuePL(AA30,'Utility Functions'!$AY$3:$AY$6,'Utility Functions'!$AZ$3:$AZ$6)","v":8.0000000000000002E-3},{"$f":"$AB$40*valuePL(AB30,'Utility Functions'!$BA$3:$BA$5,'Utility Functions'!$BB$3:$BB$5)","v":0.01},{"$f":"$AC$40*valuePL(AC30,'Utility Functions'!$BC$3:$BC$5,'Utility Functions'!$BD$3:$BD$5)","v":0.03},0.4451559901205534,0.44342134352079532]
[30,{"$f":"$B$40*(valueE(B31,'Utility Functions'!$B$3,'Utility Functions'!$B$4,'Utility Functions'!$B$5,'Utility Functions'!$B$6))","v":2.9959234351431094E-2},{"$f":"$C$40*(valueE(C31,'Utility Functions'!$D$3,'Utility Functions'!$D$4,'Utility Functions'!$D$5,'Utility Functions'!$D$6))","v":2.542345105018548E-2},{"$f":"$D$40*(valuePL(D31,'Utility Functions'!$E$3:$E$5,'Utility Functions'!$F$3:$F$5))","v":0.03},{"$f":"$E$40*(valuePL(E31,'Utility Functions'!$G$3:$G$5,'Utility Functions'!$H$3:$H$5))","v":0},{"$f":"$F$40*(valuePL(F31,'Utility Functions'!$I$3:$I$4,'Utility Functions'!$J$3:$J$5))","v":0},{"$f":"$G$40*(valueE(G31,'Utility Functions'!$L$3,'Utility Functions'!$L$4,'Utility Functions'!$L$5,'Utility Functions'!$L$6))","v":0},{"$f":"$H$40*(valueE(H31,'Utility Functions'!$N$3,'Utility Functions'!$N$4,'Utility Functions'!$N$5,'Utility Functions'!$N$6))","v":0},{"$f":"$I$40*valuePL(I31,'Utility Functions'!$O$3:$O$6,'Utility Functions'!$P$3:$P$6)","v":0},{"$f":"$J$40*valuePL(J31,'Utility Functions'!$Q$3:$Q$6,'Utility Functions'!$R$3:$R$6)","v":0},{"$f":"$K$40*(valuePL(K31,'Utility Functions'!$S$3:$S$7,'Utility Functions'!$T$3:$T$7))","v":0},{"$f":"$L$40*(valueE(L31,'Utility Functions'!$V$3,'Utility Functions'!$V$4,'Utility Functions'!$V$5,'Utility Functions'!$V$6))","v":6.6666666666666662E-3},{"$f":"$M$40*valuePL(M31,'Utility Functions'!$W$3:$W$6,'Utility Functions'!$X$3:$X$6)","v":8.0000000000000004E-4},{"$f":"$N$40*valueE(N31,'Utility Functions'!$Z$3,'Utility Functions'!$Z$4,'Utility Functions'!$Z$5,'Utility Functions'!$Z$6)","v":0},{"$f":"$O$40*valuePL(O31,'Utility Functions'!$AA$3:$AA$5,'Utility Functions'!$AB$3:$AB$5)","v":0},{"$f":"$P$40*valuePL(P31,'Utility Functions'!$AC$3:$AC$7,'Utility Functions'!$AD$3:$AD$7)","v":0},{"$f":"$Q$40*valuePL(Q31,'Utility Functions'!$AE$3:$AE$6,'Utility Functions'!$AF$3:$AF$6)","v":0},{"$f":"$R$40*valuePL(R31,'Utility Functions'!$AG$3:$AG$6,'Utility Functions'!$AH$3:$AH$6)","v":1.0000000000000002E-2},{"$f":"$S$40*valuePL(S31,'Utility Functions'!$AI$3:$AI$6,'Utility Functions'!$AJ$3:$AJ$6)","v":1.6500000000000001E-2},{"$f":"$T$40*valuePL(T31,'Utility Functions'!$AK$3:$AK$8,'Utility Functions'!$AL$3:$AL$8)","v":0},{"$f":"$U$40*valuePL(U31,'Utility Functions'!$AM$3:$AM$5,'Utility Functions'!$AN$3:$AN$5)","v":0},{"$f":"$V$40*valuePL(V31,'Utility Functions'!$AO$3:$AO$5,'Utility Functions'!$AP$3:$AP$5)","v":0},{"$f":"$W$40*valuePL(W31,'Utility Functions'!$AQ$3:$AQ$6,'Utility Functions'!$AR$3:$AR$6)","v":0.04},{"$f":"$X$40*valuePL(X31,'Utility Functions'!$AS$3:$AS$6,'Utility Functions'!$AT$3:$AT$6)","v":8.0000000000000002E-3},{"$f":"$Y$40*valuePL(Y31,'Utility Functions'!$AU$3:$AU$6,'Utility Functions'!$AV$3:$AV$6)","v":4.0000000000000008E-2},{"$f":"$Z$40*valuePL(Z31,'Utility Functions'!$AW$3:$AW$5,'Utility Functions'!$AX$3:$AX$5)","v":0},{"$f":"$AA$40*valuePL(AA31,'Utility Functions'!$AY$3:$AY$6,'Utility Functions'!$AZ$3:$AZ$6)","v":3.5999999999999997E-2},{"$f":"$AB$40*valuePL(AB31,'Utility Functions'!$BA$3:$BA$5,'Utility Functions'!$BB$3:$BB$5)","v":0.04},{"$f":"$AC$40*valuePL(AC31,'Utility Functions'!$BC$3:$BC$5,'Utility Functions'!$BD$3:$BD$5)","v":0},0.28334935206828327,0.2832679369768803]
[31,{"$f":"$B$40*(valueE(B32,'Utility Functions'!$B$3,'Utility Functions'!$B$4,'Utility Functions'!$B$5,'Utility Functions'!$B$6))","v":1.6520156106900608E-2},{"$f":"$C$40*(valueE(C32,'Utility Functions'!$D$3,'Utility Functions'!$D$4,'Utility Functions'!$D$5,'Utility Functions'!$D$6))","v":2.542345105018548E-2},{"$f":"$D$40*(valuePL(D32,'Utility Functions'!$E$3:$E$5,'Utility Functions'!$F$3:$F$5))","v":1.4999999999999999E-2},{"$f":"$E$40*(valuePL(E32,'Utility Functions'!$G$3:$G$5,'Utility Functions'!$H$3:$H$5))","v":0},{"$f":"$F$40*(valuePL(F32,'Utility Functions'!$I$3:$I$4,'Utility Functions'!$J$3:$J$5))","v":0},{"$f":"$G$40*(valueE(G32,'Utility Functions'!$L$3,'Utility Functions'!$L$4,'Utility Functions'!$L$5,'Utility Functions'!$L$6))","v":0},{"$f":"$H$40*(valueE(H32,'Utility Functions'!$N$3,'Utility Functions'!$N$4,'Utility Functions'!$N$5,'Utility Functions'!$N$6))","v":0},{"$f":"$I$40*valuePL(I32,'Utility Functions'!$O$3:$O$6,'Utility Functions'!$P$3:$P$6)","v":2.2636363636363635E-2},{"$f":"$J$40*valuePL(J32,'Utility Functions'!$Q$3:$Q$6,'Utility Functions'!$R$3:$R$6)","v":1.6000000000000001E-3},{"$f":"$K$40*(valuePL(K32,'Utility Functions'!$S$3:$S$7,'Utility Functions'!$T$3:$T$7))","v":0},{"$f":"$L$40*(valueE(L32,'Utility Functions'!$V$3,'Utility Functions'!$V$4,'Utility Functions'!$V$5,'Utility Functions'!$V$6))","v":6.6666666666666662E-3},{"$f":"$M$40*valuePL(M32,'Utility Functions'!$W$3:$W$6,'Utility Functions'!$X$3:$X$6)","v":1.6000000000000001E-3},{"$f":"$N$40*valueE(N32,'Utility Functions'!$Z$3,'Utility Functions'!$Z$4,'Utility Functions'!$Z$5,'Utility Functions'!$Z$6)","v":0},{"$f":"$O$40*valuePL(O32,'Utility Functions'!$AA$3:$AA$5,'Utility Functions'!$AB$3:$AB$5)","v":0},{"$f":"$P$40*valuePL(P32,'Utility Functions'!$AC$3:$AC$7,'Utility Functions'!$AD$3:$AD$7)","v":0.02},{"$f":"$Q$40*valuePL(Q32,'Utility Functions'!$AE$3:$AE$6,'Utility Functions'!$AF$3:$AF$6)","v":0},{"$f":"$R$40*valuePL(R32,'Utility Functions'!$AG$3:$AG$6,'Utility Functions'!$AH$3:$AH$6)","v":0.05},{"$f":"$S$40*valuePL(S32,'Utility Functions'!$AI$3:$AI$6,'Utility Functions'!$AJ$3:$AJ$6)","v":3.3000000000000002E-2},{"$f":"$T$40*valuePL(T32,'Utility Functions'!$AK$3:$AK$8,'Utility Functions'!$AL$3:$AL$8)","v":1.7999999999999999E-2},{"$f":"$U$40*valuePL(U32,'Utility Functions'!$AM$3:$AM$5,'Utility Functions'!$AN$3:$AN$5)","v":0},{"$f":"$V$40*valuePL(V32,'Utility Functions'!$AO$3:$AO$5,'Utility Functions'!$AP$3:$AP$5)","v":2.5000000000000001E-2},{"$f":"$W$40*valuePL(W32,'Utility Functions'!$AQ$3:$AQ$6,'Utility Functions'!$AR$3:$AR$6)","v":0},{"$f":"$X$40*valuePL(X32,'Utility Functions'!$AS$3:$AS$6,'Utility Functions'!$AT$3:$AT$6)","v":8.0000000000000002E-3},{"$f":"$Y$40*valuePL(Y32,'Utility Functions'!$AU$3:$AU$6,'Utility Functions'!$AV$3:$AV$6)","v":1.0000000000000002E-2},{"$f":"$Z$40*valuePL(Z32,'Utility Functions'!$AW$3:$AW$5,'Utility Functions'!$AX$3:$AX$5)","v":0.05},{"$f":"$AA$40*valuePL(AA32,'Utility Functions'!$AY$3:$AY$6,'Utility Functions'!$AZ$3:$AZ$6)","v":3.5999999999999997E-2},{"$f":"$AB$40*valuePL(AB32,'Utility Functions'!$BA$3:$BA$5,'Utility Functions'!$BB$3:$BB$5)","v":0.01},{"$f":"$AC$40*valuePL(AC32,'Utility Functions'!$BC$3:$BC$5,'Utility Functions'!$BD$3:$BD$5)","v":7.4999999999999997E-3},0.35694663746011634,0.35502417415981324]
[{"$f":"A33","v":32},{"$f":"$B$40*(valueE(B33,'Utility Functions'!$B$3,'Utility Functions'!$B$4,'Utility Functions'!$B$5,'Utility Functions'!$B$6))","v":1.896364549751255E-2},{"$f":"$C$40*(valueE(C33,'Utility Functions'!$D$3,'Utility Functions'!$D$4,'Utility Functions'!$D$5,'Utility Functions'!$D$6))","v":8.0518966871447988E-3},{"$f":"$D$40*(valuePL(D33,'Utility Functions'!$E$3:$E$5,'Utility Functions'!$F$3:$F$5))","v":0.03},{"$f":"$E$40*(valuePL(E33,'Utility Functions'!$G$3:$G$5,'Utility Functions'!$H$3:$H$5))","v":0.03},{"$f":"$F$40*(valuePL(F33,'Utility Functions'!$I$3:$I$4,'Utility Functions'!$J$3:$J$5))","v":0.04},{"$f":"$G$40*(valueE(G33,'Utility Functions'!$L$3,'Utility Functions'!$L$4,'Utility Functions'!$L$5,'Utility Functions'!$L$6))","v":4.8387096774193543E-4},{"$f":"$H$40*(valueE(H33,'Utility Functions'!$N$3,'Utility Functions'!$N$4,'Utility Functions'!$N$5,'Utility Functions'!$N$6))","v":1.4516129032258063E-3},{"$f":"$I$40*valuePL(I33,'Utility Functions'!$O$3:$O$6,'Utility Functions'!$P$3:$P$6)","v":1.0363636363636363E-2},{"$f":"$J$40*valuePL(J33,'Utility Functions'!$Q$3:$Q$6,'Utility Functions'!$R$3:$R$6)","v":0.02},{"$f":"$K$40*(valuePL(K33,'Utility Functions'!$S$3:$S$7,'Utility Functions'!$T$3:$T$7))","v":6.909090909090909E-3},{"$f":"$L$40*(valueE(L33,'Utility Functions'!$V$3,'Utility Functions'!$V$4,'Utility Functions'!$V$5,'Utility Functions'!$V$6))","v":0.02},{"$f":"$M$40*valuePL(M33,'Utility Functions'!$W$3:$W$6,'Utility Functions'!$X$3:$X$6)","v":0.02},{"$f":"$N$40*valueE(N33,'Utility Functions'!$Z$3,'Utility Functions'!$Z$4,'Utility Functions'!$Z$5,'Utility Functions'!$Z$6)","v":0},{"$f":"$O$40*valuePL(O33,'Utility Functions'!$AA$3:$AA$5,'Utility Functions'!$AB$3:$AB$5)","v":0},{"$f":"$P$40*valuePL(P33,'Utility Functions'!$AC$3:$AC$7,'Utility Functions'!$AD$3:$AD$7)","v":0.02},{"$f":"$Q$40*valuePL(Q33,'Utility Functions'!$AE$3:$AE$6,'Utility Functions'!$AF$3:$AF$6)","v":0.04},{"$f":"$R$40*valuePL(R33,'Utility Functions'!$AG$3:$AG$6,'Utility Functions'!$AH$3:$AH$6)","v":0.05},{"$f":"$S$40*valuePL(S33,'Utility Functions'!$AI$3:$AI$6,'Utility Functions'!$AJ$3:$AJ$6)","v":0},{"$f":"$T$40*valuePL(T33,'Utility Functions'!$AK$3:$AK$8,'Utility Functions'!$AL$3:$AL$8)","v":2.4E-2},{"$f":"$U$40*valuePL(U33,'Utility Functions'!$AM$3:$AM$5,'Utility Functions'!$AN$3:$AN$5)","v":0},{"$f":"$V$40*valuePL(V33,'Utility Functions'!$AO$3:$AO$5,'Utility Functions'!$AP$3:$AP$5)","v":0},{"$f":"$W$40*valuePL(W33,'Utility Functions'!$AQ$3:$AQ$6,'Utility Functions'!$AR$3:$AR$6)","v":0.03},{"$f":"$X$40*valuePL(X33,'Utility Functions'!$AS$3:$AS$6,'Utility Functions'!$AT$3:$AT$6)","v":8.0000000000000002E-3},{"$f":"$Y$40*valuePL(Y33,'Utility Functions'!$AU$3:$AU$6,'Utility Functions'!$AV$3:$AV$6)","v":4.0000000000000008E-2},{"$f":"$Z$40*valuePL(Z33,'Utility Functions'!$AW$3:$AW$5,'Utility Functions'!$AX$3:$AX$5)","v":2.5000000000000001E-2},{"$f":"$AA$40*valuePL(AA33,'Utility Functions'!$AY$3:$AY$6,'Utility Functions'!$AZ$3:$AZ$6)","v":0},{"$f":"$AB$40*valuePL(AB33,'Utility Functions'!$BA$3:$BA$5,'Utility Functions'!$BB$3:$BB$5)","v":0.04},{"$f":"$AC$40*valuePL(AC33,'Utility Functions'!$BC$3:$BC$5,'Utility Functions'!$BD$3:$BD$5)","v":7.4999999999999997E-3},0.49072375332835239,0.48872240138318201]
[33,{"$f":"$B$40*(valueE(B34,'Utility Functions'!$B$3,'Utility Functions'!$B$4,'Utility Functions'!$B$5,'Utility Functions'!$B$6))","v":2.8175740811551258E-2},{"$f":"$C$40*(valueE(C34,'Utility Functions'!$D$3,'Utility Functions'!$D$4,'Utility Functions'!$D$5,'Utility Functions'!$D$6))","v":2.542345105018548E-2},{"$f":"$D$40*(valuePL(D34,'Utility Functions'!$E$3:$E$5,'Utility Functions'!$F$3:$F$5))","v":0.03},{"$f":"$E$40*(valuePL(E34,'Utility Functions'!$G$3:$G$5,'Utility Functions'!$H$3:$H$5))","v":1.4999999999999999E-2},{"$f":"$F$40*(valuePL(F34,'Utility Functions'!$I$3:$I$4,'Utility Functions'!$J$3:$J$5))","v":0},{"$f":"$G$40*(valueE(G34,'Utility Functions'!$L$3,'Utility Functions'!$L$4,'Utility Functions'!$L$5,'Utility Functions'!$L$6))","v":0},{"$f":"$H$40*(valueE(H34,'Utility Functions'!$N$3,'Utility Functions'!$N$4,'Utility Functions'!$N$5,'Utility Functions'!$N$6))","v":0},{"$f":"$I$40*valuePL(I34,'Utility Functions'!$O$3:$O$6,'Utility Functions'!$P$3:$P$6)","v":0},{"$f":"$J$40*valuePL(J34,'Utility Functions'!$Q$3:$Q$6,'Utility Functions'!$R$3:$R$6)","v":0},{"$f":"$K$40*(valuePL(K34,'Utility Functions'!$S$3:$S$7,'Utility Functions'!$T$3:$T$7))","v":0},{"$f":"$L$40*(valueE(L34,'Utility Functions'!$V$3,'Utility Functions'!$V$4,'Utility Functions'!$V$5,'Utility Functions'!$V$6))","v":0.01},{"$f":"$M$40*valuePL(M34,'Utility Functions'!$W$3:$W$6,'Utility Functions'!$X$3:$X$6)","v":0},{"$f":"$N$40*valueE(N34,'Utility Functions'!$Z$3,'Utility Functions'!$Z$4,'Utility Functions'!$Z$5,'Utility Functions'!$Z$6)","v":0},{"$f":"$O$40*valuePL(O34,'Utility Functions'!$AA$3:$AA$5,'Utility Functions'!$AB$3:$AB$5)","v":0},{"$f":"$P$40*valuePL(P34,'Utility Functions'!$AC$3:$AC$7,'Utility Functions'!$AD$3:$AD$7)","v":0.02},{"$f":"$Q$40*valuePL(Q34,'Utility Functions'!$AE$3:$AE$6,'Utility Functions'!$AF$3:$AF$6)","v":0},{"$f":"$R$40*valuePL(R34,'Utility Functions'!$AG$3:$AG$6,'Utility Functions'!$AH$3:$AH$6)","v":0.05},{"$f":"$S$40*valuePL(S34,'Utility Functions'!$AI$3:$AI$6,'Utility Functions'!$AJ$3:$AJ$6)","v":3.3000000000000002E-2},{"$f":"$T$40*valuePL(T34,'Utility Functions'!$AK$3:$AK$8,'Utility Functions'!$AL$3:$AL$8)","v":0},{"$f":"$U$40*valuePL(U34,'Utility Functions'!$AM$3:$AM$5,'Utility Functions'!$AN$3:$AN$5)","v":0},{"$f":"$V$40*valuePL(V34,'Utility Functions'!$AO$3:$AO$5,'Utility Functions'!$AP$3:$AP$5)","v":2.5000000000000001E-2},{"$f":"$W$40*valuePL(W34,'Utility Functions'!$AQ$3:$AQ$6,'Utility Functions'!$AR$3:$AR$6)","v":0.04},{"$f":"$X$40*valuePL(X34,'Utility Functions'!$AS$3:$AS$6,'Utility Functions'!$AT$3:$AT$6)","v":0},{"$f":"$Y$40*valuePL(Y34,'Utility Functions'!$AU$3:$AU$6,'Utility Functions'!$AV$3:$AV$6)","v":4.0000000000000008E-2},{"$f":"$Z$40*valuePL(Z34,'Utility Functions'!$AW$3:$AW$5,'Utility Functions'!$AX$3:$AX$5)","v":0.05},{"$f":"$AA$40*valuePL(AA34,'Utility Functions'!$AY$3:$AY$6,'Utility Functions'!$AZ$3:$AZ$6)","v":0.04},{"$f":"$AB$40*valuePL(AB34,'Utility Functions'!$BA$3:$BA$5,'Utility Functions'!$BB$3:$BB$5)","v":0},{"$f":"$AC$40*valuePL(AC34,'Utility Functions'!$BC$3:$BC$5,'Utility Functions'!$BD$3:$BD$5)","v":0},0.40659919186173665,0.40551467502143035]
[34,{"$f":"$B$40*(valueE(B35,'Utility Functions'!$B$3,'Utility Functions'!$B$4,'Utility Functions'!$B$5,'Utility Functions'!$B$6))","v":0},{"$f":"$C$40*(valueE(C35,'Utility Functions'!$D$3,'Utility Functions'!$D$4,'Utility Functions'!$D$5,'Utility Functions'!$D$6))","v":0},{"$f":"$D$40*(valuePL(D35,'Utility Functions'!$E$3:$E$5,'Utility Functions'!$F$3:$F$5))","v":0},{"$f":"$E$40*(valuePL(E35,'Utility Functions'!$G$3:$G$5,'Utility Functions'!$H$3:$H$5))","v":0},{"$f":"$F$40*(valuePL(F35,'Utility Functions'!$I$3:$I$4,'Utility Functions'!$J$3:$J$5))","v":0},{"$f":"$G$40*(valueE(G35,'Utility Functions'!$L$3,'Utility Functions'!$L$4,'Utility Functions'!$L$5,'Utility Functions'!$L$6))","v":0},{"$f":"$H$40*(valueE(H35,'Utility Functions'!$N$3,'Utility Functions'!$N$4,'Utility Functions'!$N$5,'Utility Functions'!$N$6))","v":1.7077798861480075E-4},{"$f":"$I$40*valuePL(I35,'Utility Functions'!$O$3:$O$6,'Utility Functions'!$P$3:$P$6)","v":0.03},{"$f":"$J$40*valuePL(J35,'Utility Functions'!$Q$3:$Q$6,'Utility Functions'!$R$3:$R$6)","v":1.8363636363636363E-2},{"$f":"$K$40*(valuePL(K35,'Utility Functions'!$S$3:$S$7,'Utility Functions'!$T$3:$T$7))","v":0.02},{"$f":"$L$40*(valueE(L35,'Utility Functions'!$V$3,'Utility Functions'!$V$4,'Utility Functions'!$V$5,'Utility Functions'!$V$6))","v":0.02},{"$f":"$M$40*valuePL(M35,'Utility Functions'!$W$3:$W$6,'Utility Functions'!$X$3:$X$6)","v":1.8363636363636363E-2},{"$f":"$N$40*valueE(N35,'Utility Functions'!$Z$3,'Utility Functions'!$Z$4,'Utility Functions'!$Z$5,'Utility Functions'!$Z$6)","v":0},{"$f":"$O$40*valuePL(O35,'Utility Functions'!$AA$3:$AA$5,'Utility Functions'!$AB$3:$AB$5)","v":0},{"$f":"$P$40*valuePL(P35,'Utility Functions'!$AC$3:$AC$7,'Utility Functions'!$AD$3:$AD$7)","v":0.02},{"$f":"$Q$40*valuePL(Q35,'Utility Functions'!$AE$3:$AE$6,'Utility Functions'!$AF$3:$AF$6)","v":0},{"$f":"$R$40*valuePL(R35,'Utility Functions'!$AG$3:$AG$6,'Utility Functions'!$AH$3:$AH$6)","v":0.05},{"$f":"$S$40*valuePL(S35,'Utility Functions'!$AI$3:$AI$6,'Utility Functions'!$AJ$3:$AJ$6)","v":0.05},{"$f":"$T$40*valuePL(T35,'Utility Functions'!$AK$3:$AK$8,'Utility Functions'!$AL$3:$AL$8)","v":2.4E-2},{"$f":"$U$40*valuePL(U35,'Utility Functions'!$AM$3:$AM$5,'Utility Functions'!$AN$3:$AN$5)","v":0},{"$f":"$V$40*valuePL(V35,'Utility Functions'!$AO$3:$AO$5,'Utility Functions'!$AP$3:$AP$5)","v":0.05},{"$f":"$W$40*valuePL(W35,'Utility Functions'!$AQ$3:$AQ$6,'Utility Functions'!$AR$3:$AR$6)","v":0.04},{"$f":"$X$40*valuePL(X35,'Utility Functions'!$AS$3:$AS$6,'Utility Functions'!$AT$3:$AT$6)","v":0.04},{"$f":"$Y$40*valuePL(Y35,'Utility Functions'!$AU$3:$AU$6,'Utility Functions'!$AV$3:$AV$6)","v":0},{"$f":"$Z$40*valuePL(Z35,'Utility Functions'!$AW$3:$AW$5,'Utility Functions'!$AX$3:$AX$5)","v":0.05},{"$f":"$AA$40*valuePL(AA35,'Utility Functions'!$AY$3:$AY$6,'Utility Functions'!$AZ$3:$AZ$6)","v":3.5999999999999997E-2},{"$f":"$AB$40*valuePL(AB35,'Utility Functions'!$BA$3:$BA$5,'Utility Functions'!$BB$3:$BB$5)","v":0.01},{"$f":"$AC$40*valuePL(AC35,'Utility Functions'!$BC$3:$BC$5,'Utility Functions'!$BD$3:$BD$5)","v":0},0.47689805071588748,0.47689805071588748]
[35,{"$f":"$B$40*(valueE(B36,'Utility Functions'!$B$3,'Utility Functions'!$B$4,'Utility Functions'!$B$5,'Utility Functions'!$B$6))","v":2.3943140737469053E-2},{"$f":"$C$40*(valueE(C36,'Utility Functions'!$D$3,'Utility Functions'!$D$4,'Utility Functions'!$D$5,'Utility Functions'!$D$6))","v":1.8281994940530583E-2},{"$f":"$D$40*(valuePL(D36,'Utility Functions'!$E$3:$E$5,'Utility Functions'!$F$3:$F$5))","v":1.4999999999999999E-2},{"$f":"$E$40*(valuePL(E36,'Utility Functions'!$G$3:$G$5,'Utility Functions'!$H$3:$H$5))","v":1.4999999999999999E-2},{"$f":"$F$40*(valuePL(F36,'Utility Functions'!$I$3:$I$4,'Utility Functions'!$J$3:$J$5))","v":0.04},{"$f":"$G$40*(valueE(G36,'Utility Functions'!$L$3,'Utility Functions'!$L$4,'Utility Functions'!$L$5,'Utility Functions'!$L$6))","v":0},{"$f":"$H$40*(valueE(H36,'Utility Functions'!$N$3,'Utility Functions'!$N$4,'Utility Functions'!$N$5,'Utility Functions'!$N$6))","v":0},{"$f":"$I$40*valuePL(I36,'Utility Functions'!$O$3:$O$6,'Utility Functions'!$P$3:$P$6)","v":0},{"$f":"$J$40*valuePL(J36,'Utility Functions'!$Q$3:$Q$6,'Utility Functions'!$R$3:$R$6)","v":0},{"$f":"$K$40*(valuePL(K36,'Utility Functions'!$S$3:$S$7,'Utility Functions'!$T$3:$T$7))","v":0.02},{"$f":"$L$40*(valueE(L36,'Utility Functions'!$V$3,'Utility Functions'!$V$4,'Utility Functions'!$V$5,'Utility Functions'!$V$6))","v":1.3333333333333332E-2},{"$f":"$M$40*valuePL(M36,'Utility Functions'!$W$3:$W$6,'Utility Functions'!$X$3:$X$6)","v":2E-3},{"$f":"$N$40*valueE(N36,'Utility Functions'!$Z$3,'Utility Functions'!$Z$4,'Utility Functions'!$Z$5,'Utility Functions'!$Z$6)","v":0.03},{"$f":"$O$40*valuePL(O36,'Utility Functions'!$AA$3:$AA$5,'Utility Functions'!$AB$3:$AB$5)","v":0},{"$f":"$P$40*valuePL(P36,'Utility Functions'!$AC$3:$AC$7,'Utility Functions'!$AD$3:$AD$7)","v":0},{"$f":"$Q$40*valuePL(Q36,'Utility Functions'!$AE$3:$AE$6,'Utility Functions'!$AF$3:$AF$6)","v":0},{"$f":"$R$40*valuePL(R36,'Utility Functions'!$AG$3:$AG$6,'Utility Functions'!$AH$3:$AH$6)","v":0.05},{"$f":"$S$40*valuePL(S36,'Utility Functions'!$AI$3:$AI$6,'Utility Functions'!$AJ$3:$AJ$6)","v":0.05},{"$f":"$T$40*valuePL(T36,'Utility Functions'!$AK$3:$AK$8,'Utility Functions'!$AL$3:$AL$8)","v":1.7999999999999999E-2},{"$f":"$U$40*valuePL(U36,'Utility Functions'!$AM$3:$AM$5,'Utility Functions'!$AN$3:$AN$5)","v":0},{"$f":"$V$40*valuePL(V36,'Utility Functions'!$AO$3:$AO$5,'Utility Functions'!$AP$3:$AP$5)","v":0.05},{"$f":"$W$40*valuePL(W36,'Utility Functions'!$AQ$3:$AQ$6,'Utility Functions'!$AR$3:$AR$6)","v":0.03},{"$f":"$X$40*valuePL(X36,'Utility Functions'!$AS$3:$AS$6,'Utility Functions'!$AT$3:$AT$6)","v":0},{"$f":"$Y$40*valuePL(Y36,'Utility Functions'!$AU$3:$AU$6,'Utility Functions'!$AV$3:$AV$6)","v":1.0000000000000002E-2},{"$f":"$Z$40*valuePL(Z36,'Utility Functions'!$AW$3:$AW$5,'Utility Functions'!$AX$3:$AX$5)","v":0.05},{"$f":"$AA$40*valuePL(AA36,'Utility Functions'!$AY$3:$AY$6,'Utility Functions'!$AZ$3:$AZ$6)","v":0},{"$f":"$AB$40*valuePL(AB36,'Utility Functions'!$BA$3:$BA$5,'Utility Functions'!$BB$3:$BB$5)","v":0.01},{"$f":"$AC$40*valuePL(AC36,'Utility Functions'!$BC$3:$BC$5,'Utility Functions'!$BD$3:$BD$5)","v":7.4999999999999997E-3},0.45305846901133295,0.45120772646574747,null,"management","status","ecol_proc","integration","rigor"]
["Portfolio total",{"$f":"SUMPRODUCT($B$82:$B$116,B$43:B$77)","v":8.2118014027539002E-2},{"$f":"SUMPRODUCT($B$82:$B$116,C$43:C$77)","v":6.9128897040901541E-2},4.4999999999999998E-2,0.06,0.04,4.8387096774193543E-4,1.622390891840607E-3,7.625454545454545E-2,5.0181818181818175E-2,7.0836363636363642E-2,8.3333333333333343E-2,5.2181818181818176E-2,7.1249999999999994E-2,4.4999999999999998E-2,0.05,0,0.25,0.23299999999999998,5.4000000000000006E-2,0.03,0.22499999999999998,0.11799999999999999,8.7999999999999995E-2,0.15000000000000002,0.22499999999999998,0.14799999999999999,0.02,4.4999999999999998E-2,2.3833910517159018,2.3804519169472935,null,{"$f":"SUM(B78:F78)","v":0.29624691106844053},{"$f":"SUM(G78:M78)","v":0.33489414064746131},{"$f":"SUM(N78:O78)","v":0.11624999999999999},{"$f":"SUM(P78:U78)","v":0.61699999999999999},{"$f":"SUM(V78:AC78)","v":1.0189999999999999}]
[]
[]
[null,"Decision variable","Benefit","Cost"]
[{"$f":"A2","v":1},0,{"$f":"AD43","v":0.62852931598576234},{"$f":"AD2","v":700000}]
[{"$f":"A3","v":2},0,{"$f":"AD44","v":0.53424877401727988},{"$f":"AD3","v":5400000}]
[3,0,0.45890624332907692,250000]
[4,0,0.37738087579326757,150000]
[5,0,0.37358983775406607,220000]
[6,0,0.21762541381415162,110000]
[7,1,0.55883167443779502,1000000]
[8,0,0.52659366793040296,5000000]
[9,0,0.45837563615750632,25000]
[10,0,0.42049999999999998,900000]
[11,1,0.48800366568914949,1500000]
[12,0,0.38158740731015961,100000]
[13,0,0.30547532344316031,250000]
[14,0,0.4311611991122532,500000]
[15,0,0.60971431784243146,800000]
[16,0,0.54339393939393943,2000000]
[17,0,0.40209196138985603,500000]
[{"$f":"A19","v":18},0,0.43942694497153706,300000]
[19,0,0.41549503742461386,750000]
[20,0,0.55885300951154004,1500000]
[21,0,0.42149999999999999,900000]
[22,0,0.44445113851992418,750000]
[23,0,0.37896452234436967,1000000]
[24,0,0.37890643564363613,150000]
[25,0,0.53254137243924626,250000]
[26,0,0.42942229688880618,500000]
[27,0,0.34094279014612355,1200000]
[28,0,0.49364512823846229,500000]
[{"$f":"A30","v":29},0,0.4451559901205534,2000000]
[30,0,0.28334935206828327,250000]
[31,0,0.35694663746011634,650000]
[32,0,0.49072375332835239,200000]
[{"$f":"A34","v":33},1,0.40659919186173665,400000]
[34,1,0.47689805071588748,900000]
[{"$f":"A36","v":35},1,0.45305846901133295,900000]
[null,5,{"$f":"SUMPRODUCT(B82:B116,C82:C116)","v":2.3833910517159018},{"$f":"SUMPRODUCT(B82:B116,D82:D116)","v":4700000}]
[]
[null,null,"Cost constraint",15000000]

{"sheet":"Portfolio_D","index":8,"n_rows":119,"n_cols":37,"rows_kept":119,"cut":false,"hidden":false,"merged":[]}
["Project","manage_species","manage_spatial","manage_uncertainty","manage_currentpractices","manage_adaptivemanagement","pop_a","pop_b","pop_spatialscope","pop_temporalscope","hab_quantity","hab_quality","hab_temporal","ecoprocess_spp","ecoprocess_uncertainty","datasharing","broaderimpacts","exisitingpriorities","partners","leverage","alignment","objhyp","response","targettaxa","surveydesign","stats","datamanagement","budget","timeline","cost"]
[1,9,6.25,2,2,0,186,1054,75,5,0,2,0,0,0,4,0,2,3,0,0,2,3,3,3,2,3,2,2,700000]
[2,3,28.2,1,0,0,0,0,0,0,0,2,0,4,1,0,0,3,3,0,0,2,3,3,3,2,3,2,2,5400000]
[3,8,28.2,2,0,0,0,0,0,0,0,2,0,5,1,0,2,0,0,0,1,2,3,3,3,2,1,2,2,250000]
[4,1,6.25,2,0,0,0,0,0,0,0,2,0,4,1,0,1,3,3,4,0,1,3,3,1,0,0,2,1,150000]
[5,4,3.1,2,0,0,0,0,50,2,0,2,0,0,0,0,1,3,3,4,1,0,3,3,2,0,0,2,1,220000]
[6,10,6.2E-2,2,0,0,0,0,10,2,0,2,0,0,0,0,1,0,3,3,0,0,0,3,0,0,0,2,1,110000]
[7,52,18.8,0,2,0,0,0,85,12,85,8,12,8,1,0,0,3,3,0,0,2,0,1,3,2,2,0,2,1000000]
[8,3,18.8,2,1,1,0,0,14,14,14,8,14,0,0,0,3,1,3,0,0,2,3,3,3,2,0,1,1,5000000]
[9,9,15.6,2,1,0,70,140,0,0,0,2,0,0,0,3,0,3,2,1,0,2,3,3,1,2,1,1,2,25000]
[10,0,0,0,0,0,0,0,0,0,0,2,0,6,2,1,2,3,2,2,0,0,2,3,3,1,1,0,2,900000]
[11,0,0,0,0,0,6,102,52,15,52,8,15,3,1,1,0,3,3,2,2,2,1,3,3,1,2,0,1,1500000]
[12,2,15.6,2,1,0,0,0,0,0,0,2,0,0,0,0,1,3,3,3,0,1,1,3,1,2,1,2,0,100000]
[13,0,0,0,0,0,0,12,39,2,39,8,2,7,1,1,0,3,3,0,0,1,0,1,0,2,1,1,1,250000]
[14,6,15.6,1,1,0,0,0,0,0,0,2,0,6,1,1,0,3,3,0,0,1,1,3,3,1,2,1,1,500000]
[15,23,12.5,2,1,1,0,0,23,3,23,8,3,1,2,2,0,2,3,3,2,0,3,1,1,2,3,2,1,800000]
[16,0,0,0,0,0,0,0,100,15,100,7,15,0,0,3,0,3,3,5,0,2,2,2,1,2,3,2,2,2000000]
[17,2,15.6,2,1,1,58,290,0,0,0,8,3,0,0,0,0,3,2,0,0,2,3,1,0,1,0,2,1,500000]
[18,0,0,0,0,0,0,30,0,0,0,2,0,8,1,1,3,3,3,5,1,2,2,1,2,1,2,1,0,300000]
[19,8,3.125,1,2,0,0,0,0,0,0,2,0,8,2,0,0,2,3,0,0,1,1,3,2,0,1,0,1,750000]
[20,9,15.6,1,2,0,0,435,76,10,76,6,10,8,2,1,0,3,3,3,2,1,0,0,1,2,1,0,1,1500000]
[21,0,0,0,0,0,0,0,0,0,0,2,0,8,2,0,1,3,3,5,1,0,2,3,1,0,3,1,2,900000]
[22,0,0,0,0,0,16,64,0,0,0,2,0,1,2,4,2,2,3,5,0,1,2,1,0,2,1,2,1,750000]
[23,9,18.8,2,0,0,0,0,0,0,0,2,0,0,0,3,0,3,3,5,0,2,1,2,1,1,1,0,1,1000000]
[24,5,6.25,2,0,0,0,0,0,0,0,2,0,0,0,0,0,3,3,5,0,0,3,1,3,2,1,0,2,150000]
[25,9,18.8,2,0,0,176,308,0,0,0,2,0,8,1,2,2,3,3,0,0,2,1,3,2,1,1,2,2,250000]
[26,17,18.8,2,1,0,0,0,0,0,0,2,0,0,0,3,0,3,3,4,0,2,1,0,2,0,1,2,2,500000]
[27,0,6.25,2,0,0,0,0,0,0,80,2,5,0,0,2,2,3,3,5,0,1,2,3,1,0,0,0,0,1200000]
[28,3,6.25,2,0,1,0,0,0,0,0,4,5,0,0,4,0,3,3,4,0,2,3,3,1,0,2,2,1,500000]
[29,9,12.5,2,1,0,0,0,15,12,15,8,12,0,0,1,0,3,3,4,0,2,1,0,2,1,1,1,2,2000000]
[30,33,18.8,2,0,0,0,0,0,0,0,4,2,0,0,0,0,1,1,0,0,0,3,1,2,0,2,2,0,250000]
[31,4,18.8,1,0,0,0,0,65,4,0,4,4,0,0,2,0,3,2,3,0,1,0,1,1,2,2,1,1,650000]
[32,5,3.125,2,2,1,6,102,40,16,40,8,16,0,0,2,3,3,0,4,0,0,2,1,2,1,0,2,1,200000]
[33,14,18.8,2,1,0,0,0,0,0,0,5,0,0,0,2,0,3,2,0,0,1,3,0,2,2,3,0,0,400000]
[34,0,0,0,0,0,0,12,100,15,100,8,15,0,0,2,0,3,3,4,0,2,3,3,0,2,2,1,0,900000]
[35,8,9.4,1,1,1,0,0,0,0,100,6,5,8,0,0,0,3,3,3,0,2,2,0,1,2,0,1,1,900000]
[null,{"$f":"SUM(B2:B36)","v":265},{"$f":"SUM(C2:C36)","v":359.86200000000002},46,20,6,518,2549,744,127,724,146,138,93,21,45,24,91,92,86,10,44,66,68,57,43,47,42,41]
[null,{"$f":"B1","v":"manage_species"},{"$f":"C1","v":"manage_spatial"},"manage_uncertainty","manage_currentpractices","manage_adaptivemanagement","pop_a","pop_b","pop_spatialscope","pop_temporalscope","hab_quantity","hab_quality","hab_temporal","ecoprocess_spp","ecoprocess_uncertainty","datasharing","broaderimpacts","exisitingpriorities","partners","leverage","alignment","objhyp","response","targettaxa","surveydesign","stats","datamanagement","budget","timeline"]
[null,"Metric 1","Metric 2","Metric 3","Metric 4","Metric 5","Metric 6a","Metric 6b","Metric 7","Metric 8","Metric 9","Metric 10","Metric 11","Metric 12","Metric 13","Metric 14","Metric 15","Metric 16","Metric 17","Metric 18","Metric 19","Metric 20","Metric 21","Metric 22","Metric 23","Metric 24","Metric 25","Metric 26","Metric 27"]
["Weights",0.03,0.03,0.03,0.03,0.04,1.4999999999999999E-2,1.4999999999999999E-2,0.03,0.02,0.02,0.02,0.02,0.03,0.09,0.04,0.04,0.05,0.05,0.03,0.03,0.05,0.04,0.04,0.05,0.05,0.04,0.04,0.03]
[]
["Project",null,null,null,null,null,null,null,null,null,null,null,null,null,null,null,null,null,null,null,null,null,null,null,null,null,null,null,null,"total","sdm_tool_excel"]
[{"$f":"A2","v":1},{"$f":"$B$40*(valueE(B2,'Utility Functions'!$B$3,'Utility Functions'!$B$4,'Utility Functions'!$B$5,'Utility Functions'!$B$6))","v":2.5041071294184137E-2},{"$f":"$C$40*(valueE(C2,'Utility Functions'!$D$3,'Utility Functions'!$D$4,'Utility Functions'!$D$5,'Utility Functions'!$D$6))","v":1.3942790146123618E-2},{"$f":"$D$40*(valuePL(D2,'Utility Functions'!$E$3:$E$5,'Utility Functions'!$F$3:$F$5))","v":0.03},{"$f":"$E$40*(valuePL(E2,'Utility Functions'!$G$3:$G$5,'Utility Functions'!$H$3:$H$5))","v":0.03},{"$f":"$F$40*(valuePL(F2,'Utility Functions'!$I$3:$I$4,'Utility Functions'!$J$3:$J$5))","v":0},{"$f":"$G$40*(valueE(G2,'Utility Functions'!$L$3,'Utility Functions'!$L$4,'Utility Functions'!$L$5,'Utility Functions'!$L$6))","v":1.4999999999999999E-2},{"$f":"$H$40*(valueE(H2,'Utility Functions'!$N$3,'Utility Functions'!$N$4,'Utility Functions'!$N$5,'Utility Functions'!$N$6))","v":1.4999999999999999E-2},{"$f":"$I$40*valuePL(I2,'Utility Functions'!$O$3:$O$6,'Utility Functions'!$P$3:$P$6)","v":2.7545454545454547E-2},{"$f":"$J$40*valuePL(J2,'Utility Functions'!$Q$3:$Q$6,'Utility Functions'!$R$3:$R$6)","v":2E-3},{"$f":"$K$40*(valuePL(K2,'Utility Functions'!$S$3:$S$7,'Utility Functions'!$T$3:$T$7))","v":0},{"$f":"$L$40*(valueE(L2,'Utility Functions'!$V$3,'Utility Functions'!$V$4,'Utility Functions'!$V$5,'Utility Functions'!$V$6))","v":0},{"$f":"$M$40*valuePL(M2,'Utility Functions'!$W$3:$W$6,'Utility Functions'!$X$3:$X$6)","v":0},{"$f":"$N$40*valueE(N2,'Utility Functions'!$Z$3,'Utility Functions'!$Z$4,'Utility Functions'!$Z$5,'Utility Functions'!$Z$6)","v":0},{"$f":"$O$40*valuePL(O2,'Utility Functions'!$AA$3:$AA$5,'Utility Functions'!$AB$3:$AB$5)","v":0},{"$f":"$P$40*valuePL(P2,'Utility Functions'!$AC$3:$AC$7,'Utility Functions'!$AD$3:$AD$7)","v":0.04},{"$f":"$Q$40*valuePL(Q2,'Utility Functions'!$AE$3:$AE$6,'Utility Functions'!$AF$3:$AF$6)","v":0},{"$f":"$R$40*valuePL(R2,'Utility Functions'!$AG$3:$AG$6,'Utility Functions'!$AH$3:$AH$6)","v":4.0000000000000008E-2},{"$f":"$S$40*valuePL(S2,'Utility Functions'!$AI$3:$AI$6,'Utility Functions'!$AJ$3:$AJ$6)","v":0.05},{"$f":"$T$40*valuePL(T2,'Utility Functions'!$AK$3:$AK$8,'Utility Functions'!$AL$3:$AL$8)","v":0},{"$f":"$U$40*valuePL(U2,'Utility Functions'!$AM$3:$AM$5,'Utility Functions'!$AN$3:$AN$5)","v":0},{"$f":"$V$40*valuePL(V2,'Utility Functions'!$AO$3:$AO$5,'Utility Functions'!$AP$3:$AP$5)","v":0.05},{"$f":"$W$40*valuePL(W2,'Utility Functions'!$AQ$3:$AQ$6,'Utility Functions'!$AR$3:$AR$6)","v":0.04},{"$f":"$X$40*valuePL(X2,'Utility Functions'!$AS$3:$AS$6,'Utility Functions'!$AT$3:$AT$6)","v":0.04},{"$f":"$Y$40*valuePL(Y2,'Utility Functions'!$AU$3:$AU$6,'Utility Functions'!$AV$3:$AV$6)","v":0.05},{"$f":"$Z$40*valuePL(Z2,'Utility Functions'!$AW$3:$AW$5,'Utility Functions'!$AX$3:$AX$5)","v":0.05},{"$f":"$AA$40*valuePL(AA2,'Utility Functions'!$AY$3:$AY$6,'Utility Functions'!$AZ$3:$AZ$6)","v":0.04},{"$f":"$AB$40*valuePL(AB2,'Utility Functions'!$BA$3:$BA$5,'Utility Functions'!$BB$3:$BB$5)","v":0.04},{"$f":"$AC$40*valuePL(AC2,'Utility Functions'!$BC$3:$BC$5,'Utility Functions'!$BD$3:$BD$5)","v":0.03},{"$f":"SUM(B43:AC43)","v":0.62852931598576234},0.62679466938600437]
[{"$f":"A3","v":2},{"$f":"$B$40*(valueE(B3,'Utility Functions'!$B$3,'Utility Functions'!$B$4,'Utility Functions'!$B$5,'Utility Functions'!$B$6))","v":1.3535671425672068E-2},{"$f":"$C$40*(valueE(C3,'Utility Functions'!$D$3,'Utility Functions'!$D$4,'Utility Functions'!$D$5,'Utility Functions'!$D$6))","v":2.8213102591607857E-2},{"$f":"$D$40*(valuePL(D3,'Utility Functions'!$E$3:$E$5,'Utility Functions'!$F$3:$F$5))","v":1.4999999999999999E-2},{"$f":"$E$40*(valuePL(E3,'Utility Functions'!$G$3:$G$5,'Utility Functions'!$H$3:$H$5))","v":0},{"$f":"$F$40*(valuePL(F3,'Utility Functions'!$I$3:$I$4,'Utility Functions'!$J$3:$J$5))","v":0},{"$f":"$G$40*(valueE(G3,'Utility Functions'!$L$3,'Utility Functions'!$L$4,'Utility Functions'!$L$5,'Utility Functions'!$L$6))","v":0},{"$f":"$H$40*(valueE(H3,'Utility Functions'!$N$3,'Utility Functions'!$N$4,'Utility Functions'!$N$5,'Utility Functions'!$N$6))","v":0},{"$f":"$I$40*valuePL(I3,'Utility Functions'!$O$3:$O$6,'Utility Functions'!$P$3:$P$6)","v":0},{"$f":"$J$40*valuePL(J3,'Utility Functions'!$Q$3:$Q$6,'Utility Functions'!$R$3:$R$6)","v":0},{"$f":"$K$40*(valuePL(K3,'Utility Functions'!$S$3:$S$7,'Utility Functions'!$T$3:$T$7))","v":0},{"$f":"$L$40*(valueE(L3,'Utility Functions'!$V$3,'Utility Functions'!$V$4,'Utility Functions'!$V$5,'Utility Functions'!$V$6))","v":0},{"$f":"$M$40*valuePL(M3,'Utility Functions'!$W$3:$W$6,'Utility Functions'!$X$3:$X$6)","v":0},{"$f":"$N$40*valueE(N3,'Utility Functions'!$Z$3,'Utility Functions'!$Z$4,'Utility Functions'!$Z$5,'Utility Functions'!$Z$6)","v":1.4999999999999999E-2},{"$f":"$O$40*valuePL(O3,'Utility Functions'!$AA$3:$AA$5,'Utility Functions'!$AB$3:$AB$5)","v":2.2499999999999999E-2},{"$f":"$P$40*valuePL(P3,'Utility Functions'!$AC$3:$AC$7,'Utility Functions'!$AD$3:$AD$7)","v":0},{"$f":"$Q$40*valuePL(Q3,'Utility Functions'!$AE$3:$AE$6,'Utility Functions'!$AF$3:$AF$6)","v":0},{"$f":"$R$40*valuePL(R3,'Utility Functions'!$AG$3:$AG$6,'Utility Functions'!$AH$3:$AH$6)","v":0.05},{"$f":"$S$40*valuePL(S3,'Utility Functions'!$AI$3:$AI$6,'Utility Functions'!$AJ$3:$AJ$6)","v":0.05},{"$f":"$T$40*valuePL(T3,'Utility Functions'!$AK$3:$AK$8,'Utility Functions'!$AL$3:$AL$8)","v":0},{"$f":"$U$40*valuePL(U3,'Utility Functions'!$AM$3:$AM$5,'Utility Functions'!$AN$3:$AN$5)","v":0},{"$f":"$V$40*valuePL(V3,'Utility Functions'!$AO$3:$AO$5,'Utility Functions'!$AP$3:$AP$5)","v":0.05},{"$f":"$W$40*valuePL(W3,'Utility Functions'!$AQ$3:$AQ$6,'Utility Functions'!$AR$3:$AR$6)","v":0.04},{"$f":"$X$40*valuePL(X3,'Utility Functions'!$AS$3:$AS$6,'Utility Functions'!$AT$3:$AT$6)","v":0.04},{"$f":"$Y$40*valuePL(Y3,'Utility Functions'!$AU$3:$AU$6,'Utility Functions'!$AV$3:$AV$6)","v":0.05},{"$f":"$Z$40*valuePL(Z3,'Utility Functions'!$AW$3:$AW$5,'Utility Functions'!$AX$3:$AX$5)","v":0.05},{"$f":"$AA$40*valuePL(AA3,'Utility Functions'!$AY$3:$AY$6,'Utility Functions'!$AZ$3:$AZ$6)","v":0.04},{"$f":"$AB$40*valuePL(AB3,'Utility Functions'!$BA$3:$BA$5,'Utility Functions'!$BB$3:$BB$5)","v":0.04},{"$f":"$AC$40*valuePL(AC3,'Utility Functions'!$BC$3:$BC$5,'Utility Functions'!$BD$3:$BD$5)","v":0.03},{"$f":"SUM(B44:AC44)","v":0.53424877401727988},0.5325173496849499]
[3,{"$f":"$B$40*(valueE(B4,'Utility Functions'!$B$3,'Utility Functions'!$B$4,'Utility Functions'!$B$5,'Utility Functions'!$B$6))","v":2.3943140737469053E-2},{"$f":"$C$40*(valueE(C4,'Utility Functions'!$D$3,'Utility Functions'!$D$4,'Utility Functions'!$D$5,'Utility Functions'!$D$6))","v":2.8213102591607857E-2},{"$f":"$D$40*(valuePL(D4,'Utility Functions'!$E$3:$E$5,'Utility Functions'!$F$3:$F$5))","v":0.03},{"$f":"$E$40*(valuePL(E4,'Utility Functions'!$G$3:$G$5,'Utility Functions'!$H$3:$H$5))","v":0},{"$f":"$F$40*(valuePL(F4,'Utility Functions'!$I$3:$I$4,'Utility Functions'!$J$3:$J$5))","v":0},{"$f":"$G$40*(valueE(G4,'Utility Functions'!$L$3,'Utility Functions'!$L$4,'Utility Functions'!$L$5,'Utility Functions'!$L$6))","v":0},{"$f":"$H$40*(valueE(H4,'Utility Functions'!$N$3,'Utility Functions'!$N$4,'Utility Functions'!$N$5,'Utility Functions'!$N$6))","v":0},{"$f":"$I$40*valuePL(I4,'Utility Functions'!$O$3:$O$6,'Utility Functions'!$P$3:$P$6)","v":0},{"$f":"$J$40*valuePL(J4,'Utility Functions'!$Q$3:$Q$6,'Utility Functions'!$R$3:$R$6)","v":0},{"$f":"$K$40*(valuePL(K4,'Utility Functions'!$S$3:$S$7,'Utility Functions'!$T$3:$T$7))","v":0},{"$f":"$L$40*(valueE(L4,'Utility Functions'!$V$3,'Utility Functions'!$V$4,'Utility Functions'!$V$5,'Utility Functions'!$V$6))","v":0},{"$f":"$M$40*valuePL(M4,'Utility Functions'!$W$3:$W$6,'Utility Functions'!$X$3:$X$6)","v":0},{"$f":"$N$40*valueE(N4,'Utility Functions'!$Z$3,'Utility Functions'!$Z$4,'Utility Functions'!$Z$5,'Utility Functions'!$Z$6)","v":1.8749999999999999E-2},{"$f":"$O$40*valuePL(O4,'Utility Functions'!$AA$3:$AA$5,'Utility Functions'!$AB$3:$AB$5)","v":2.2499999999999999E-2},{"$f":"$P$40*valuePL(P4,'Utility Functions'!$AC$3:$AC$7,'Utility Functions'!$AD$3:$AD$7)","v":0},{"$f":"$Q$40*valuePL(Q4,'Utility Functions'!$AE$3:$AE$6,'Utility Functions'!$AF$3:$AF$6)","v":0.02},{"$f":"$R$40*valuePL(R4,'Utility Functions'!$AG$3:$AG$6,'Utility Functions'!$AH$3:$AH$6)","v":0},{"$f":"$S$40*valuePL(S4,'Utility Functions'!$AI$3:$AI$6,'Utility Functions'!$AJ$3:$AJ$6)","v":0},{"$f":"$T$40*valuePL(T4,'Utility Functions'!$AK$3:$AK$8,'Utility Functions'!$AL$3:$AL$8)","v":0},{"$f":"$U$40*valuePL(U4,'Utility Functions'!$AM$3:$AM$5,'Utility Functions'!$AN$3:$AN$5)","v":7.4999999999999997E-3},{"$f":"$V$40*valuePL(V4,'Utility Functions'!$AO$3:$AO$5,'Utility Functions'!$AP$3:$AP$5)","v":0.05},{"$f":"$W$40*valuePL(W4,'Utility Functions'!$AQ$3:$AQ$6,'Utility Functions'!$AR$3:$AR$6)","v":0.04},{"$f":"$X$40*valuePL(X4,'Utility Functions'!$AS$3:$AS$6,'Utility Functions'!$AT$3:$AT$6)","v":0.04},{"$f":"$Y$40*valuePL(Y4,'Utility Functions'!$AU$3:$AU$6,'Utility Functions'!$AV$3:$AV$6)","v":0.05},{"$f":"$Z$40*valuePL(Z4,'Utility Functions'!$AW$3:$AW$5,'Utility Functions'!$AX$3:$AX$5)","v":0.05},{"$f":"$AA$40*valuePL(AA4,'Utility Functions'!$AY$3:$AY$6,'Utility Functions'!$AZ$3:$AZ$6)","v":8.0000000000000002E-3},{"$f":"$AB$40*valuePL(AB4,'Utility Functions'!$BA$3:$BA$5,'Utility Functions'!$BB$3:$BB$5)","v":0.04},{"$f":"$AC$40*valuePL(AC4,'Utility Functions'!$BC$3:$BC$5,'Utility Functions'!$BD$3:$BD$5)","v":0.03},0.45890624332907692,0.45705550078349133]
[4,{"$f":"$B$40*(valueE(B5,'Utility Functions'!$B$3,'Utility Functions'!$B$4,'Utility Functions'!$B$5,'Utility Functions'!$B$6))","v":5.4380856471439951E-3},{"$f":"$C$40*(valueE(C5,'Utility Functions'!$D$3,'Utility Functions'!$D$4,'Utility Functions'!$D$5,'Utility Functions'!$D$6))","v":1.3942790146123618E-2},{"$f":"$D$40*(valuePL(D5,'Utility Functions'!$E$3:$E$5,'Utility Functions'!$F$3:$F$5))","v":0.03},{"$f":"$E$40*(valuePL(E5,'Utility Functions'!$G$3:$G$5,'Utility Functions'!$H$3:$H$5))","v":0},{"$f":"$F$40*(valuePL(F5,'Utility Functions'!$I$3:$I$4,'Utility Functions'!$J$3:$J$5))","v":0},{"$f":"$G$40*(valueE(G5,'Utility Functions'!$L$3,'Utility Functions'!$L$4,'Utility Functions'!$L$5,'Utility Functions'!$L$6))","v":0},{"$f":"$H$40*(valueE(H5,'Utility Functions'!$N$3,'Utility Functions'!$N$4,'Utility Functions'!$N$5,'Utility Functions'!$N$6))","v":0},{"$f":"$I$40*valuePL(I5,'Utility Functions'!$O$3:$O$6,'Utility Functions'!$P$3:$P$6)","v":0},{"$f":"$J$40*valuePL(J5,'Utility Functions'!$Q$3:$Q$6,'Utility Functions'!$R$3:$R$6)","v":0},{"$f":"$K$40*(valuePL(K5,'Utility Functions'!$S$3:$S$7,'Utility Functions'!$T$3:$T$7))","v":0},{"$f":"$L$40*(valueE(L5,'Utility Functions'!$V$3,'Utility Functions'!$V$4,'Utility Functions'!$V$5,'Utility Functions'!$V$6))","v":0},{"$f":"$M$40*valuePL(M5,'Utility Functions'!$W$3:$W$6,'Utility Functions'!$X$3:$X$6)","v":0},{"$f":"$N$40*valueE(N5,'Utility Functions'!$Z$3,'Utility Functions'!$Z$4,'Utility Functions'!$Z$5,'Utility Functions'!$Z$6)","v":1.4999999999999999E-2},{"$f":"$O$40*valuePL(O5,'Utility Functions'!$AA$3:$AA$5,'Utility Functions'!$AB$3:$AB$5)","v":2.2499999999999999E-2},{"$f":"$P$40*valuePL(P5,'Utility Functions'!$AC$3:$AC$7,'Utility Functions'!$AD$3:$AD$7)","v":0},{"$f":"$Q$40*valuePL(Q5,'Utility Functions'!$AE$3:$AE$6,'Utility Functions'!$AF$3:$AF$6)","v":4.0000000000000001E-3},{"$f":"$R$40*valuePL(R5,'Utility Functions'!$AG$3:$AG$6,'Utility Functions'!$AH$3:$AH$6)","v":0.05},{"$f":"$S$40*valuePL(S5,'Utility Functions'!$AI$3:$AI$6,'Utility Functions'!$AJ$3:$AJ$6)","v":0.05},{"$f":"$T$40*valuePL(T5,'Utility Functions'!$AK$3:$AK$8,'Utility Functions'!$AL$3:$AL$8)","v":2.4E-2},{"$f":"$U$40*valuePL(U5,'Utility Functions'!$AM$3:$AM$5,'Utility Functions'!$AN$3:$AN$5)","v":0},{"$f":"$V$40*valuePL(V5,'Utility Functions'!$AO$3:$AO$5,'Utility Functions'!$AP$3:$AP$5)","v":2.5000000000000001E-2},{"$f":"$W$40*valuePL(W5,'Utility Functions'!$AQ$3:$AQ$6,'Utility Functions'!$AR$3:$AR$6)","v":0.04},{"$f":"$X$40*valuePL(X5,'Utility Functions'!$AS$3:$AS$6,'Utility Functions'!$AT$3:$AT$6)","v":0.04},{"$f":"$Y$40*valuePL(Y5,'Utility Functions'!$AU$3:$AU$6,'Utility Functions'!$AV$3:$AV$6)","v":1.0000000000000002E-2},{"$f":"$Z$40*valuePL(Z5,'Utility Functions'!$AW$3:$AW$5,'Utility Functions'!$AX$3:$AX$5)","v":0},{"$f":"$AA$40*valuePL(AA5,'Utility Functions'!$AY$3:$AY$6,'Utility Functions'!$AZ$3:$AZ$6)","v":0},{"$f":"$AB$40*valuePL(AB5,'Utility Functions'!$BA$3:$BA$5,'Utility Functions'!$BB$3:$BB$5)","v":0.04},{"$f":"$AC$40*valuePL(AC5,'Utility Functions'!$BC$3:$BC$5,'Utility Functions'!$BD$3:$BD$5)","v":7.4999999999999997E-3},0.37738087579326757,0.37654840351211377]
[5,{"$f":"$B$40*(valueE(B6,'Utility Functions'!$B$3,'Utility Functions'!$B$4,'Utility Functions'!$B$5,'Utility Functions'!$B$6))","v":1.6520156106900608E-2},{"$f":"$C$40*(valueE(C6,'Utility Functions'!$D$3,'Utility Functions'!$D$4,'Utility Functions'!$D$5,'Utility Functions'!$D$6))","v":7.9969543744382362E-3},{"$f":"$D$40*(valuePL(D6,'Utility Functions'!$E$3:$E$5,'Utility Functions'!$F$3:$F$5))","v":0.03},{"$f":"$E$40*(valuePL(E6,'Utility Functions'!$G$3:$G$5,'Utility Functions'!$H$3:$H$5))","v":0},{"$f":"$F$40*(valuePL(F6,'Utility Functions'!$I$3:$I$4,'Utility Functions'!$J$3:$J$5))","v":0},{"$f":"$G$40*(valueE(G6,'Utility Functions'!$L$3,'Utility Functions'!$L$4,'Utility Functions'!$L$5,'Utility Functions'!$L$6))","v":0},{"$f":"$H$40*(valueE(H6,'Utility Functions'!$N$3,'Utility Functions'!$N$4,'Utility Functions'!$N$5,'Utility Functions'!$N$6))","v":0},{"$f":"$I$40*valuePL(I6,'Utility Functions'!$O$3:$O$6,'Utility Functions'!$P$3:$P$6)","v":1.5272727272727275E-2},{"$f":"$J$40*valuePL(J6,'Utility Functions'!$Q$3:$Q$6,'Utility Functions'!$R$3:$R$6)","v":8.0000000000000004E-4},{"$f":"$K$40*(valuePL(K6,'Utility Functions'!$S$3:$S$7,'Utility Functions'!$T$3:$T$7))","v":0},{"$f":"$L$40*(valueE(L6,'Utility Functions'!$V$3,'Utility Functions'!$V$4,'Utility Functions'!$V$5,'Utility Functions'!$V$6))","v":0},{"$f":"$M$40*valuePL(M6,'Utility Functions'!$W$3:$W$6,'Utility Functions'!$X$3:$X$6)","v":0},{"$f":"$N$40*valueE(N6,'Utility Functions'!$Z$3,'Utility Functions'!$Z$4,'Utility Functions'!$Z$5,'Utility Functions'!$Z$6)","v":0},{"$f":"$O$40*valuePL(O6,'Utility Functions'!$AA$3:$AA$5,'Utility Functions'!$AB$3:$AB$5)","v":0},{"$f":"$P$40*valuePL(P6,'Utility Functions'!$AC$3:$AC$7,'Utility Functions'!$AD$3:$AD$7)","v":0},{"$f":"$Q$40*valuePL(Q6,'Utility Functions'!$AE$3:$AE$6,'Utility Functions'!$AF$3:$AF$6)","v":4.0000000000000001E-3},{"$f":"$R$40*valuePL(R6,'Utility Functions'!$AG$3:$AG$6,'Utility Functions'!$AH$3:$AH$6)","v":0.05},{"$f":"$S$40*valuePL(S6,'Utility Functions'!$AI$3:$AI$6,'Utility Functions'!$AJ$3:$AJ$6)","v":0.05},{"$f":"$T$40*valuePL(T6,'Utility Functions'!$AK$3:$AK$8,'Utility Functions'!$AL$3:$AL$8)","v":2.4E-2},{"$f":"$U$40*valuePL(U6,'Utility Functions'!$AM$3:$AM$5,'Utility Functions'!$AN$3:$AN$5)","v":7.4999999999999997E-3},{"$f":"$V$40*valuePL(V6,'Utility Functions'!$AO$3:$AO$5,'Utility Functions'!$AP$3:$AP$5)","v":0},{"$f":"$W$40*valuePL(W6,'Utility Functions'!$AQ$3:$AQ$6,'Utility Functions'!$AR$3:$AR$6)","v":0.04},{"$f":"$X$40*valuePL(X6,'Utility Functions'!$AS$3:$AS$6,'Utility Functions'!$AT$3:$AT$6)","v":0.04},{"$f":"$Y$40*valuePL(Y6,'Utility Functions'!$AU$3:$AU$6,'Utility Functions'!$AV$3:$AV$6)","v":4.0000000000000008E-2},{"$f":"$Z$40*valuePL(Z6,'Utility Functions'!$AW$3:$AW$5,'Utility Functions'!$AX$3:$AX$5)","v":0},{"$f":"$AA$40*valuePL(AA6,'Utility Functions'!$AY$3:$AY$6,'Utility Functions'!$AZ$3:$AZ$6)","v":0},{"$f":"$AB$40*valuePL(AB6,'Utility Functions'!$BA$3:$BA$5,'Utility Functions'!$BB$3:$BB$5)","v":0.04},{"$f":"$AC$40*valuePL(AC6,'Utility Functions'!$BC$3:$BC$5,'Utility Functions'!$BD$3:$BD$5)","v":7.4999999999999997E-3},0.37358983775406607,0.37166737445376297]
[6,{"$f":"$B$40*(valueE(B7,'Utility Functions'!$B$3,'Utility Functions'!$B$4,'Utility Functions'!$B$5,'Utility Functions'!$B$6))","v":2.5939980805710805E-2},{"$f":"$C$40*(valueE(C7,'Utility Functions'!$D$3,'Utility Functions'!$D$4,'Utility Functions'!$D$5,'Utility Functions'!$D$6))","v":1.8543300844080441E-4},{"$f":"$D$40*(valuePL(D7,'Utility Functions'!$E$3:$E$5,'Utility Functions'!$F$3:$F$5))","v":0.03},{"$f":"$E$40*(valuePL(E7,'Utility Functions'!$G$3:$G$5,'Utility Functions'!$H$3:$H$5))","v":0},{"$f":"$F$40*(valuePL(F7,'Utility Functions'!$I$3:$I$4,'Utility Functions'!$J$3:$J$5))","v":0},{"$f":"$G$40*(valueE(G7,'Utility Functions'!$L$3,'Utility Functions'!$L$4,'Utility Functions'!$L$5,'Utility Functions'!$L$6))","v":0},{"$f":"$H$40*(valueE(H7,'Utility Functions'!$N$3,'Utility Functions'!$N$4,'Utility Functions'!$N$5,'Utility Functions'!$N$6))","v":0},{"$f":"$I$40*valuePL(I7,'Utility Functions'!$O$3:$O$6,'Utility Functions'!$P$3:$P$6)","v":1.1999999999999999E-3},{"$f":"$J$40*valuePL(J7,'Utility Functions'!$Q$3:$Q$6,'Utility Functions'!$R$3:$R$6)","v":8.0000000000000004E-4},{"$f":"$K$40*(valuePL(K7,'Utility Functions'!$S$3:$S$7,'Utility Functions'!$T$3:$T$7))","v":0},{"$f":"$L$40*(valueE(L7,'Utility Functions'!$V$3,'Utility Functions'!$V$4,'Utility Functions'!$V$5,'Utility Functions'!$V$6))","v":0},{"$f":"$M$40*valuePL(M7,'Utility Functions'!$W$3:$W$6,'Utility Functions'!$X$3:$X$6)","v":0},{"$f":"$N$40*valueE(N7,'Utility Functions'!$Z$3,'Utility Functions'!$Z$4,'Utility Functions'!$Z$5,'Utility Functions'!$Z$6)","v":0},{"$f":"$O$40*valuePL(O7,'Utility Functions'!$AA$3:$AA$5,'Utility Functions'!$AB$3:$AB$5)","v":0},{"$f":"$P$40*valuePL(P7,'Utility Functions'!$AC$3:$AC$7,'Utility Functions'!$AD$3:$AD$7)","v":0},{"$f":"$Q$40*valuePL(Q7,'Utility Functions'!$AE$3:$AE$6,'Utility Functions'!$AF$3:$AF$6)","v":4.0000000000000001E-3},{"$f":"$R$40*valuePL(R7,'Utility Functions'!$AG$3:$AG$6,'Utility Functions'!$AH$3:$AH$6)","v":0},{"$f":"$S$40*valuePL(S7,'Utility Functions'!$AI$3:$AI$6,'Utility Functions'!$AJ$3:$AJ$6)","v":0.05},{"$f":"$T$40*valuePL(T7,'Utility Functions'!$AK$3:$AK$8,'Utility Functions'!$AL$3:$AL$8)","v":1.7999999999999999E-2},{"$f":"$U$40*valuePL(U7,'Utility Functions'!$AM$3:$AM$5,'Utility Functions'!$AN$3:$AN$5)","v":0},{"$f":"$V$40*valuePL(V7,'Utility Functions'!$AO$3:$AO$5,'Utility Functions'!$AP$3:$AP$5)","v":0},{"$f":"$W$40*valuePL(W7,'Utility Functions'!$AQ$3:$AQ$6,'Utility Functions'!$AR$3:$AR$6)","v":0},{"$f":"$X$40*valuePL(X7,'Utility Functions'!$AS$3:$AS$6,'Utility Functions'!$AT$3:$AT$6)","v":0.04},{"$f":"$Y$40*valuePL(Y7,'Utility Functions'!$AU$3:$AU$6,'Utility Functions'!$AV$3:$AV$6)","v":0},{"$f":"$Z$40*valuePL(Z7,'Utility Functions'!$AW$3:$AW$5,'Utility Functions'!$AX$3:$AX$5)","v":0},{"$f":"$AA$40*valuePL(AA7,'Utility Functions'!$AY$3:$AY$6,'Utility Functions'!$AZ$3:$AZ$6)","v":0},{"$f":"$AB$40*valuePL(AB7,'Utility Functions'!$BA$3:$BA$5,'Utility Functions'!$BB$3:$BB$5)","v":0.04},{"$f":"$AC$40*valuePL(AC7,'Utility Functions'!$BC$3:$BC$5,'Utility Functions'!$BD$3:$BD$5)","v":7.4999999999999997E-3},0.21762541381415162,0.21601950895080207]
[7,{"$f":"$B$40*(valueE(B8,'Utility Functions'!$B$3,'Utility Functions'!$B$4,'Utility Functions'!$B$5,'Utility Functions'!$B$6))","v":2.9999132478518691E-2},{"$f":"$C$40*(valueE(C8,'Utility Functions'!$D$3,'Utility Functions'!$D$4,'Utility Functions'!$D$5,'Utility Functions'!$D$6))","v":2.542345105018548E-2},{"$f":"$D$40*(valuePL(D8,'Utility Functions'!$E$3:$E$5,'Utility Functions'!$F$3:$F$5))","v":0},{"$f":"$E$40*(valuePL(E8,'Utility Functions'!$G$3:$G$5,'Utility Functions'!$H$3:$H$5))","v":0.03},{"$f":"$F$40*(valuePL(F8,'Utility Functions'!$I$3:$I$4,'Utility Functions'!$J$3:$J$5))","v":0},{"$f":"$G$40*(valueE(G8,'Utility Functions'!$L$3,'Utility Functions'!$L$4,'Utility Functions'!$L$5,'Utility Functions'!$L$6))","v":0},{"$f":"$H$40*(valueE(H8,'Utility Functions'!$N$3,'Utility Functions'!$N$4,'Utility Functions'!$N$5,'Utility Functions'!$N$6))","v":0},{"$f":"$I$40*valuePL(I8,'Utility Functions'!$O$3:$O$6,'Utility Functions'!$P$3:$P$6)","v":0.03},{"$f":"$J$40*valuePL(J8,'Utility Functions'!$Q$3:$Q$6,'Utility Functions'!$R$3:$R$6)","v":1.3454545454545455E-2},{"$f":"$K$40*(valuePL(K8,'Utility Functions'!$S$3:$S$7,'Utility Functions'!$T$3:$T$7))","v":0.02},{"$f":"$L$40*(valueE(L8,'Utility Functions'!$V$3,'Utility Functions'!$V$4,'Utility Functions'!$V$5,'Utility Functions'!$V$6))","v":0.02},{"$f":"$M$40*valuePL(M8,'Utility Functions'!$W$3:$W$6,'Utility Functions'!$X$3:$X$6)","v":1.3454545454545455E-2},{"$f":"$N$40*valueE(N8,'Utility Functions'!$Z$3,'Utility Functions'!$Z$4,'Utility Functions'!$Z$5,'Utility Functions'!$Z$6)","v":0.03},{"$f":"$O$40*valuePL(O8,'Utility Functions'!$AA$3:$AA$5,'Utility Functions'!$AB$3:$AB$5)","v":2.2499999999999999E-2},{"$f":"$P$40*valuePL(P8,'Utility Functions'!$AC$3:$AC$7,'Utility Functions'!$AD$3:$AD$7)","v":0},{"$f":"$Q$40*valuePL(Q8,'Utility Functions'!$AE$3:$AE$6,'Utility Functions'!$AF$3:$AF$6)","v":0},{"$f":"$R$40*valuePL(R8,'Utility Functions'!$AG$3:$AG$6,'Utility Functions'!$AH$3:$AH$6)","v":0.05},{"$f":"$S$40*valuePL(S8,'Utility Functions'!$AI$3:$AI$6,'Utility Functions'!$AJ$3:$AJ$6)","v":0.05},{"$f":"$T$40*valuePL(T8,'Utility Functions'!$AK$3:$AK$8,'Utility Functions'!$AL$3:$AL$8)","v":0},{"$f":"$U$40*valuePL(U8,'Utility Functions'!$AM$3:$AM$5,'Utility Functions'!$AN$3:$AN$5)","v":0},{"$f":"$V$40*valuePL(V8,'Utility Functions'!$AO$3:$AO$5,'Utility Functions'!$AP$3:$AP$5)","v":0.05},{"$f":"$W$40*valuePL(W8,'Utility Functions'!$AQ$3:$AQ$6,'Utility Functions'!$AR$3:$AR$6)","v":0},{"$f":"$X$40*valuePL(X8,'Utility Functions'!$AS$3:$AS$6,'Utility Functions'!$AT$3:$AT$6)","v":8.0000000000000002E-3},{"$f":"$Y$40*valuePL(Y8,'Utility Functions'!$AU$3:$AU$6,'Utility Functions'!$AV$3:$AV$6)","v":0.05},{"$f":"$Z$40*valuePL(Z8,'Utility Functions'!$AW$3:$AW$5,'Utility Functions'!$AX$3:$AX$5)","v":0.05},{"$f":"$AA$40*valuePL(AA8,'Utility Functions'!$AY$3:$AY$6,'Utility Functions'!$AZ$3:$AZ$6)","v":3.5999999999999997E-2},{"$f":"$AB$40*valuePL(AB8,'Utility Functions'!$BA$3:$BA$5,'Utility Functions'!$BB$3:$BB$5)","v":0},{"$f":"$AC$40*valuePL(AC8,'Utility Functions'!$BC$3:$BC$5,'Utility Functions'!$BD$3:$BD$5)","v":0.03},0.55883167443779502,0.55882779905507862]
[8,{"$f":"$B$40*(valueE(B9,'Utility Functions'!$B$3,'Utility Functions'!$B$4,'Utility Functions'!$B$5,'Utility Functions'!$B$6))","v":1.3535671425672068E-2},{"$f":"$C$40*(valueE(C9,'Utility Functions'!$D$3,'Utility Functions'!$D$4,'Utility Functions'!$D$5,'Utility Functions'!$D$6))","v":2.542345105018548E-2},{"$f":"$D$40*(valuePL(D9,'Utility Functions'!$E$3:$E$5,'Utility Functions'!$F$3:$F$5))","v":0.03},{"$f":"$E$40*(valuePL(E9,'Utility Functions'!$G$3:$G$5,'Utility Functions'!$H$3:$H$5))","v":1.4999999999999999E-2},{"$f":"$F$40*(valuePL(F9,'Utility Functions'!$I$3:$I$4,'Utility Functions'!$J$3:$J$5))","v":0.04},{"$f":"$G$40*(valueE(G9,'Utility Functions'!$L$3,'Utility Functions'!$L$4,'Utility Functions'!$L$5,'Utility Functions'!$L$6))","v":0},{"$f":"$H$40*(valueE(H9,'Utility Functions'!$N$3,'Utility Functions'!$N$4,'Utility Functions'!$N$5,'Utility Functions'!$N$6))","v":0},{"$f":"$I$40*valuePL(I9,'Utility Functions'!$O$3:$O$6,'Utility Functions'!$P$3:$P$6)","v":1.6800000000000003E-3},{"$f":"$J$40*valuePL(J9,'Utility Functions'!$Q$3:$Q$6,'Utility Functions'!$R$3:$R$6)","v":1.6727272727272726E-2},{"$f":"$K$40*(valuePL(K9,'Utility Functions'!$S$3:$S$7,'Utility Functions'!$T$3:$T$7))","v":0},{"$f":"$L$40*(valueE(L9,'Utility Functions'!$V$3,'Utility Functions'!$V$4,'Utility Functions'!$V$5,'Utility Functions'!$V$6))","v":0.02},{"$f":"$M$40*valuePL(M9,'Utility Functions'!$W$3:$W$6,'Utility Functions'!$X$3:$X$6)","v":1.6727272727272726E-2},{"$f":"$N$40*valueE(N9,'Utility Functions'!$Z$3,'Utility Functions'!$Z$4,'Utility Functions'!$Z$5,'Utility Functions'!$Z$6)","v":0},{"$f":"$O$40*valuePL(O9,'Utility Functions'!$AA$3:$AA$5,'Utility Functions'!$AB$3:$AB$5)","v":0},{"$f":"$P$40*valuePL(P9,'Utility Functions'!$AC$3:$AC$7,'Utility Functions'!$AD$3:$AD$7)","v":0},{"$f":"$Q$40*valuePL(Q9,'Utility Functions'!$AE$3:$AE$6,'Utility Functions'!$AF$3:$AF$6)","v":0.04},{"$f":"$R$40*valuePL(R9,'Utility Functions'!$AG$3:$AG$6,'Utility Functions'!$AH$3:$AH$6)","v":1.0000000000000002E-2},{"$f":"$S$40*valuePL(S9,'Utility Functions'!$AI$3:$AI$6,'Utility Functions'!$AJ$3:$AJ$6)","v":0.05},{"$f":"$T$40*valuePL(T9,'Utility Functions'!$AK$3:$AK$8,'Utility Functions'!$AL$3:$AL$8)","v":0},{"$f":"$U$40*valuePL(U9,'Utility Functions'!$AM$3:$AM$5,'Utility Functions'!$AN$3:$AN$5)","v":0},{"$f":"$V$40*valuePL(V9,'Utility Functions'!$AO$3:$AO$5,'Utility Functions'!$AP$3:$AP$5)","v":0.05},{"$f":"$W$40*valuePL(W9,'Utility Functions'!$AQ$3:$AQ$6,'Utility Functions'!$AR$3:$AR$6)","v":0.04},{"$f":"$X$40*valuePL(X9,'Utility Functions'!$AS$3:$AS$6,'Utility Functions'!$AT$3:$AT$6)","v":0.04},{"$f":"$Y$40*valuePL(Y9,'Utility Functions'!$AU$3:$AU$6,'Utility Functions'!$AV$3:$AV$6)","v":0.05},{"$f":"$Z$40*valuePL(Z9,'Utility Functions'!$AW$3:$AW$5,'Utility Functions'!$AX$3:$AX$5)","v":0.05},{"$f":"$AA$40*valuePL(AA9,'Utility Functions'!$AY$3:$AY$6,'Utility Functions'!$AZ$3:$AZ$6)","v":0},{"$f":"$AB$40*valuePL(AB9,'Utility Functions'!$BA$3:$BA$5,'Utility Functions'!$BB$3:$BB$5)","v":0.01},{"$f":"$AC$40*valuePL(AC9,'Utility Functions'!$BC$3:$BC$5,'Utility Functions'!$BD$3:$BD$5)","v":7.4999999999999997E-3},0.52659366793040296,0.52486224359807299]
[9,{"$f":"$B$40*(valueE(B10,'Utility Functions'!$B$3,'Utility Functions'!$B$4,'Utility Functions'!$B$5,'Utility Functions'!$B$6))","v":2.5041071294184137E-2},{"$f":"$C$40*(valueE(C10,'Utility Functions'!$D$3,'Utility Functions'!$D$4,'Utility Functions'!$D$5,'Utility Functions'!$D$6))","v":2.3696993705826886E-2},{"$f":"$D$40*(valuePL(D10,'Utility Functions'!$E$3:$E$5,'Utility Functions'!$F$3:$F$5))","v":0.03},{"$f":"$E$40*(valuePL(E10,'Utility Functions'!$G$3:$G$5,'Utility Functions'!$H$3:$H$5))","v":1.4999999999999999E-2},{"$f":"$F$40*(valuePL(F10,'Utility Functions'!$I$3:$I$4,'Utility Functions'!$J$3:$J$5))","v":0},{"$f":"$G$40*(valueE(G10,'Utility Functions'!$L$3,'Utility Functions'!$L$4,'Utility Functions'!$L$5,'Utility Functions'!$L$6))","v":5.6451612903225803E-3},{"$f":"$H$40*(valueE(H10,'Utility Functions'!$N$3,'Utility Functions'!$N$4,'Utility Functions'!$N$5,'Utility Functions'!$N$6))","v":1.9924098671726754E-3},{"$f":"$I$40*valuePL(I10,'Utility Functions'!$O$3:$O$6,'Utility Functions'!$P$3:$P$6)","v":0},{"$f":"$J$40*valuePL(J10,'Utility Functions'!$Q$3:$Q$6,'Utility Functions'!$R$3:$R$6)","v":0},{"$f":"$K$40*(valuePL(K10,'Utility Functions'!$S$3:$S$7,'Utility Functions'!$T$3:$T$7))","v":0},{"$f":"$L$40*(valueE(L10,'Utility Functions'!$V$3,'Utility Functions'!$V$4,'Utility Functions'!$V$5,'Utility Functions'!$V$6))","v":0},{"$f":"$M$40*valuePL(M10,'Utility Functions'!$W$3:$W$6,'Utility Functions'!$X$3:$X$6)","v":0},{"$f":"$N$40*valueE(N10,'Utility Functions'!$Z$3,'Utility Functions'!$Z$4,'Utility Functions'!$Z$5,'Utility Functions'!$Z$6)","v":0},{"$f":"$O$40*valuePL(O10,'Utility Functions'!$AA$3:$AA$5,'Utility Functions'!$AB$3:$AB$5)","v":0},{"$f":"$P$40*valuePL(P10,'Utility Functions'!$AC$3:$AC$7,'Utility Functions'!$AD$3:$AD$7)","v":0.03},{"$f":"$Q$40*valuePL(Q10,'Utility Functions'!$AE$3:$AE$6,'Utility Functions'!$AF$3:$AF$6)","v":0},{"$f":"$R$40*valuePL(R10,'Utility Functions'!$AG$3:$AG$6,'Utility Functions'!$AH$3:$AH$6)","v":0.05},{"$f":"$S$40*valuePL(S10,'Utility Functions'!$AI$3:$AI$6,'Utility Functions'!$AJ$3:$AJ$6)","v":3.3000000000000002E-2},{"$f":"$T$40*valuePL(T10,'Utility Functions'!$AK$3:$AK$8,'Utility Functions'!$AL$3:$AL$8)","v":6.0000000000000001E-3},{"$f":"$U$40*valuePL(U10,'Utility Functions'!$AM$3:$AM$5,'Utility Functions'!$AN$3:$AN$5)","v":0},{"$f":"$V$40*valuePL(V10,'Utility Functions'!$AO$3:$AO$5,'Utility Functions'!$AP$3:$AP$5)","v":0.05},{"$f":"$W$40*valuePL(W10,'Utility Functions'!$AQ$3:$AQ$6,'Utility Functions'!$AR$3:$AR$6)","v":0.04},{"$f":"$X$40*valuePL(X10,'Utility Functions'!$AS$3:$AS$6,'Utility Functions'!$AT$3:$AT$6)","v":0.04},{"$f":"$Y$40*valuePL(Y10,'Utility Functions'!$AU$3:$AU$6,'Utility Functions'!$AV$3:$AV$6)","v":1.0000000000000002E-2},{"$f":"$Z$40*valuePL(Z10,'Utility Functions'!$AW$3:$AW$5,'Utility Functions'!$AX$3:$AX$5)","v":0.05},{"$f":"$AA$40*valuePL(AA10,'Utility Functions'!$AY$3:$AY$6,'Utility Functions'!$AZ$3:$AZ$6)","v":8.0000000000000002E-3},{"$f":"$AB$40*valuePL(AB10,'Utility Functions'!$BA$3:$BA$5,'Utility Functions'!$BB$3:$BB$5)","v":0.01},{"$f":"$AC$40*valuePL(AC10,'Utility Functions'!$BC$3:$BC$5,'Utility Functions'!$BD$3:$BD$5)","v":0.03},0.45837563615750632,0.45664098955774823]
[10,{"$f":"$B$40*(valueE(B11,'Utility Functions'!$B$3,'Utility Functions'!$B$4,'Utility Functions'!$B$5,'Utility Functions'!$B$6))","v":0},{"$f":"$C$40*(valueE(C11,'Utility Functions'!$D$3,'Utility Functions'!$D$4,'Utility Functions'!$D$5,'Utility Functions'!$D$6))","v":0},{"$f":"$D$40*(valuePL(D11,'Utility Functions'!$E$3:$E$5,'Utility Functions'!$F$3:$F$5))","v":0},{"$f":"$E$40*(valuePL(E11,'Utility Functions'!$G$3:$G$5,'Utility Functions'!$H$3:$H$5))","v":0},{"$f":"$F$40*(valuePL(F11,'Utility Functions'!$I$3:$I$4,'Utility Functions'!$J$3:$J$5))","v":0},{"$f":"$G$40*(valueE(G11,'Utility Functions'!$L$3,'Utility Functions'!$L$4,'Utility Functions'!$L$5,'Utility Functions'!$L$6))","v":0},{"$f":"$H$40*(valueE(H11,'Utility Functions'!$N$3,'Utility Functions'!$N$4,'Utility Functions'!$N$5,'Utility Functions'!$N$6))","v":0},{"$f":"$I$40*valuePL(I11,'Utility Functions'!$O$3:$O$6,'Utility Functions'!$P$3:$P$6)","v":0},{"$f":"$J$40*valuePL(J11,'Utility Functions'!$Q$3:$Q$6,'Utility Functions'!$R$3:$R$6)","v":0},{"$f":"$K$40*(valuePL(K11,'Utility Functions'!$S$3:$S$7,'Utility Functions'!$T$3:$T$7))","v":0},{"$f":"$L$40*(valueE(L11,'Utility Functions'!$V$3,'Utility Functions'!$V$4,'Utility Functions'!$V$5,'Utility Functions'!$V$6))","v":0},{"$f":"$M$40*valuePL(M11,'Utility Functions'!$W$3:$W$6,'Utility Functions'!$X$3:$X$6)","v":0},{"$f":"$N$40*valueE(N11,'Utility Functions'!$Z$3,'Utility Functions'!$Z$4,'Utility Functions'!$Z$5,'Utility Functions'!$Z$6)","v":2.2499999999999999E-2},{"$f":"$O$40*valuePL(O11,'Utility Functions'!$AA$3:$AA$5,'Utility Functions'!$AB$3:$AB$5)","v":0.09},{"$f":"$P$40*valuePL(P11,'Utility Functions'!$AC$3:$AC$7,'Utility Functions'!$AD$3:$AD$7)","v":0.01},{"$f":"$Q$40*valuePL(Q11,'Utility Functions'!$AE$3:$AE$6,'Utility Functions'!$AF$3:$AF$6)","v":0.02},{"$f":"$R$40*valuePL(R11,'Utility Functions'!$AG$3:$AG$6,'Utility Functions'!$AH$3:$AH$6)","v":0.05},{"$f":"$S$40*valuePL(S11,'Utility Functions'!$AI$3:$AI$6,'Utility Functions'!$AJ$3:$AJ$6)","v":3.3000000000000002E-2},{"$f":"$T$40*valuePL(T11,'Utility Functions'!$AK$3:$AK$8,'Utility Functions'!$AL$3:$AL$8)","v":1.2E-2},{"$f":"$U$40*valuePL(U11,'Utility Functions'!$AM$3:$AM$5,'Utility Functions'!$AN$3:$AN$5)","v":0},{"$f":"$V$40*valuePL(V11,'Utility Functions'!$AO$3:$AO$5,'Utility Functions'!$AP$3:$AP$5)","v":0},{"$f":"$W$40*valuePL(W11,'Utility Functions'!$AQ$3:$AQ$6,'Utility Functions'!$AR$3:$AR$6)","v":0.03},{"$f":"$X$40*valuePL(X11,'Utility Functions'!$AS$3:$AS$6,'Utility Functions'!$AT$3:$AT$6)","v":0.04},{"$f":"$Y$40*valuePL(Y11,'Utility Functions'!$AU$3:$AU$6,'Utility Functions'!$AV$3:$AV$6)","v":0.05},{"$f":"$Z$40*valuePL(Z11,'Utility Functions'!$AW$3:$AW$5,'Utility Functions'!$AX$3:$AX$5)","v":2.5000000000000001E-2},{"$f":"$AA$40*valuePL(AA11,'Utility Functions'!$AY$3:$AY$6,'Utility Functions'!$AZ$3:$AZ$6)","v":8.0000000000000002E-3},{"$f":"$AB$40*valuePL(AB11,'Utility Functions'!$BA$3:$BA$5,'Utility Functions'!$BB$3:$BB$5)","v":0},{"$f":"$AC$40*valuePL(AC11,'Utility Functions'!$BC$3:$BC$5,'Utility Functions'!$BD$3:$BD$5)","v":0.03},0.42049999999999998,0.42049999999999998]
[11,{"$f":"$B$40*(valueE(B12,'Utility Functions'!$B$3,'Utility Functions'!$B$4,'Utility Functions'!$B$5,'Utility Functions'!$B$6))","v":0},{"$f":"$C$40*(valueE(C12,'Utility Functions'!$D$3,'Utility Functions'!$D$4,'Utility Functions'!$D$5,'Utility Functions'!$D$6))","v":0},{"$f":"$D$40*(valuePL(D12,'Utility Functions'!$E$3:$E$5,'Utility Functions'!$F$3:$F$5))","v":0},{"$f":"$E$40*(valuePL(E12,'Utility Functions'!$G$3:$G$5,'Utility Functions'!$H$3:$H$5))","v":0},{"$f":"$F$40*(valuePL(F12,'Utility Functions'!$I$3:$I$4,'Utility Functions'!$J$3:$J$5))","v":0},{"$f":"$G$40*(valueE(G12,'Utility Functions'!$L$3,'Utility Functions'!$L$4,'Utility Functions'!$L$5,'Utility Functions'!$L$6))","v":4.8387096774193543E-4},{"$f":"$H$40*(valueE(H12,'Utility Functions'!$N$3,'Utility Functions'!$N$4,'Utility Functions'!$N$5,'Utility Functions'!$N$6))","v":1.4516129032258063E-3},{"$f":"$I$40*valuePL(I12,'Utility Functions'!$O$3:$O$6,'Utility Functions'!$P$3:$P$6)","v":1.6254545454545456E-2},{"$f":"$J$40*valuePL(J12,'Utility Functions'!$Q$3:$Q$6,'Utility Functions'!$R$3:$R$6)","v":1.8363636363636363E-2},{"$f":"$K$40*(valuePL(K12,'Utility Functions'!$S$3:$S$7,'Utility Functions'!$T$3:$T$7))","v":1.0836363636363637E-2},{"$f":"$L$40*(valueE(L12,'Utility Functions'!$V$3,'Utility Functions'!$V$4,'Utility Functions'!$V$5,'Utility Functions'!$V$6))","v":0.02},{"$f":"$M$40*valuePL(M12,'Utility Functions'!$W$3:$W$6,'Utility Functions'!$X$3:$X$6)","v":1.8363636363636363E-2},{"$f":"$N$40*valueE(N12,'Utility Functions'!$Z$3,'Utility Functions'!$Z$4,'Utility Functions'!$Z$5,'Utility Functions'!$Z$6)","v":1.125E-2},{"$f":"$O$40*valuePL(O12,'Utility Functions'!$AA$3:$AA$5,'Utility Functions'!$AB$3:$AB$5)","v":2.2499999999999999E-2},{"$f":"$P$40*valuePL(P12,'Utility Functions'!$AC$3:$AC$7,'Utility Functions'!$AD$3:$AD$7)","v":0.01},{"$f":"$Q$40*valuePL(Q12,'Utility Functions'!$AE$3:$AE$6,'Utility Functions'!$AF$3:$AF$6)","v":0},{"$f":"$R$40*valuePL(R12,'Utility Functions'!$AG$3:$AG$6,'Utility Functions'!$AH$3:$AH$6)","v":0.05},{"$f":"$S$40*valuePL(S12,'Utility Functions'!$AI$3:$AI$6,'Utility Functions'!$AJ$3:$AJ$6)","v":0.05},{"$f":"$T$40*valuePL(T12,'Utility Functions'!$AK$3:$AK$8,'Utility Functions'!$AL$3:$AL$8)","v":1.2E-2},{"$f":"$U$40*valuePL(U12,'Utility Functions'!$AM$3:$AM$5,'Utility Functions'!$AN$3:$AN$5)","v":0.03},{"$f":"$V$40*valuePL(V12,'Utility Functions'!$AO$3:$AO$5,'Utility Functions'!$AP$3:$AP$5)","v":0.05},{"$f":"$W$40*valuePL(W12,'Utility Functions'!$AQ$3:$AQ$6,'Utility Functions'!$AR$3:$AR$6)","v":8.0000000000000002E-3},{"$f":"$X$40*valuePL(X12,'Utility Functions'!$AS$3:$AS$6,'Utility Functions'!$AT$3:$AT$6)","v":0.04},{"$f":"$Y$40*valuePL(Y12,'Utility Functions'!$AU$3:$AU$6,'Utility Functions'!$AV$3:$AV$6)","v":0.05},{"$f":"$Z$40*valuePL(Z12,'Utility Functions'!$AW$3:$AW$5,'Utility Functions'!$AX$3:$AX$5)","v":2.5000000000000001E-2},{"$f":"$AA$40*valuePL(AA12,'Utility Functions'!$AY$3:$AY$6,'Utility Functions'!$AZ$3:$AZ$6)","v":3.5999999999999997E-2},{"$f":"$AB$40*valuePL(AB12,'Utility Functions'!$BA$3:$BA$5,'Utility Functions'!$BB$3:$BB$5)","v":0},{"$f":"$AC$40*valuePL(AC12,'Utility Functions'!$BC$3:$BC$5,'Utility Functions'!$BD$3:$BD$5)","v":7.4999999999999997E-3},0.48800366568914949,0.48800366568914949]
[12,{"$f":"$B$40*(valueE(B13,'Utility Functions'!$B$3,'Utility Functions'!$B$4,'Utility Functions'!$B$5,'Utility Functions'!$B$6))","v":9.8904136043327599E-3},{"$f":"$C$40*(valueE(C13,'Utility Functions'!$D$3,'Utility Functions'!$D$4,'Utility Functions'!$D$5,'Utility Functions'!$D$6))","v":2.3696993705826886E-2},{"$f":"$D$40*(valuePL(D13,'Utility Functions'!$E$3:$E$5,'Utility Functions'!$F$3:$F$5))","v":0.03},{"$f":"$E$40*(valuePL(E13,'Utility Functions'!$G$3:$G$5,'Utility Functions'!$H$3:$H$5))","v":1.4999999999999999E-2},{"$f":"$F$40*(valuePL(F13,'Utility Functions'!$I$3:$I$4,'Utility Functions'!$J$3:$J$5))","v":0},{"$f":"$G$40*(valueE(G13,'Utility Functions'!$L$3,'Utility Functions'!$L$4,'Utility Functions'!$L$5,'Utility Functions'!$L$6))","v":0},{"$f":"$H$40*(valueE(H13,'Utility Functions'!$N$3,'Utility Functions'!$N$4,'Utility Functions'!$N$5,'Utility Functions'!$N$6))","v":0},{"$f":"$I$40*valuePL(I13,'Utility Functions'!$O$3:$O$6,'Utility Functions'!$P$3:$P$6)","v":0},{"$f":"$J$40*valuePL(J13,'Utility Functions'!$Q$3:$Q$6,'Utility Functions'!$R$3:$R$6)","v":0},{"$f":"$K$40*(valuePL(K13,'Utility Functions'!$S$3:$S$7,'Utility Functions'!$T$3:$T$7))","v":0},{"$f":"$L$40*(valueE(L13,'Utility Functions'!$V$3,'Utility Functions'!$V$4,'Utility Functions'!$V$5,'Utility Functions'!$V$6))","v":0},{"$f":"$M$40*valuePL(M13,'Utility Functions'!$W$3:$W$6,'Utility Functions'!$X$3:$X$6)","v":0},{"$f":"$N$40*valueE(N13,'Utility Functions'!$Z$3,'Utility Functions'!$Z$4,'Utility Functions'!$Z$5,'Utility Functions'!$Z$6)","v":0},{"$f":"$O$40*valuePL(O13,'Utility Functions'!$AA$3:$AA$5,'Utility Functions'!$AB$3:$AB$5)","v":0},{"$f":"$P$40*valuePL(P13,'Utility Functions'!$AC$3:$AC$7,'Utility Functions'!$AD$3:$AD$7)","v":0},{"$f":"$Q$40*valuePL(Q13,'Utility Functions'!$AE$3:$AE$6,'Utility Functions'!$AF$3:$AF$6)","v":4.0000000000000001E-3},{"$f":"$R$40*valuePL(R13,'Utility Functions'!$AG$3:$AG$6,'Utility Functions'!$AH$3:$AH$6)","v":0.05},{"$f":"$S$40*valuePL(S13,'Utility Functions'!$AI$3:$AI$6,'Utility Functions'!$AJ$3:$AJ$6)","v":0.05},{"$f":"$T$40*valuePL(T13,'Utility Functions'!$AK$3:$AK$8,'Utility Functions'!$AL$3:$AL$8)","v":1.7999999999999999E-2},{"$f":"$U$40*valuePL(U13,'Utility Functions'!$AM$3:$AM$5,'Utility Functions'!$AN$3:$AN$5)","v":0},{"$f":"$V$40*valuePL(V13,'Utility Functions'!$AO$3:$AO$5,'Utility Functions'!$AP$3:$AP$5)","v":2.5000000000000001E-2},{"$f":"$W$40*valuePL(W13,'Utility Functions'!$AQ$3:$AQ$6,'Utility Functions'!$AR$3:$AR$6)","v":8.0000000000000002E-3},{"$f":"$X$40*valuePL(X13,'Utility Functions'!$AS$3:$AS$6,'Utility Functions'!$AT$3:$AT$6)","v":0.04},{"$f":"$Y$40*valuePL(Y13,'Utility Functions'!$AU$3:$AU$6,'Utility Functions'!$AV$3:$AV$6)","v":1.0000000000000002E-2},{"$f":"$Z$40*valuePL(Z13,'Utility Functions'!$AW$3:$AW$5,'Utility Functions'!$AX$3:$AX$5)","v":0.05},{"$f":"$AA$40*valuePL(AA13,'Utility Functions'!$AY$3:$AY$6,'Utility Functions'!$AZ$3:$AZ$6)","v":8.0000000000000002E-3},{"$f":"$AB$40*valuePL(AB13,'Utility Functions'!$BA$3:$BA$5,'Utility Functions'!$BB$3:$BB$5)","v":0.04},{"$f":"$AC$40*valuePL(AC13,'Utility Functions'!$BC$3:$BC$5,'Utility Functions'!$BD$3:$BD$5)","v":0},0.38158740731015961,0.38020117461803976]
[13,{"$f":"$B$40*(valueE(B14,'Utility Functions'!$B$3,'Utility Functions'!$B$4,'Utility Functions'!$B$5,'Utility Functions'!$B$6))","v":0},{"$f":"$C$40*(valueE(C14,'Utility Functions'!$D$3,'Utility Functions'!$D$4,'Utility Functions'!$D$5,'Utility Functions'!$D$6))","v":0},{"$f":"$D$40*(valuePL(D14,'Utility Functions'!$E$3:$E$5,'Utility Functions'!$F$3:$F$5))","v":0},{"$f":"$E$40*(valuePL(E14,'Utility Functions'!$G$3:$G$5,'Utility Functions'!$H$3:$H$5))","v":0},{"$f":"$F$40*(valuePL(F14,'Utility Functions'!$I$3:$I$4,'Utility Functions'!$J$3:$J$5))","v":0},{"$f":"$G$40*(valueE(G14,'Utility Functions'!$L$3,'Utility Functions'!$L$4,'Utility Functions'!$L$5,'Utility Functions'!$L$6))","v":0},{"$f":"$H$40*(valueE(H14,'Utility Functions'!$N$3,'Utility Functions'!$N$4,'Utility Functions'!$N$5,'Utility Functions'!$N$6))","v":1.7077798861480075E-4},{"$f":"$I$40*valuePL(I14,'Utility Functions'!$O$3:$O$6,'Utility Functions'!$P$3:$P$6)","v":9.8727272727272726E-3},{"$f":"$J$40*valuePL(J14,'Utility Functions'!$Q$3:$Q$6,'Utility Functions'!$R$3:$R$6)","v":8.0000000000000004E-4},{"$f":"$K$40*(valuePL(K14,'Utility Functions'!$S$3:$S$7,'Utility Functions'!$T$3:$T$7))","v":6.5818181818181817E-3},{"$f":"$L$40*(valueE(L14,'Utility Functions'!$V$3,'Utility Functions'!$V$4,'Utility Functions'!$V$5,'Utility Functions'!$V$6))","v":0.02},{"$f":"$M$40*valuePL(M14,'Utility Functions'!$W$3:$W$6,'Utility Functions'!$X$3:$X$6)","v":8.0000000000000004E-4},{"$f":"$N$40*valueE(N14,'Utility Functions'!$Z$3,'Utility Functions'!$Z$4,'Utility Functions'!$Z$5,'Utility Functions'!$Z$6)","v":2.6249999999999999E-2},{"$f":"$O$40*valuePL(O14,'Utility Functions'!$AA$3:$AA$5,'Utility Functions'!$AB$3:$AB$5)","v":2.2499999999999999E-2},{"$f":"$P$40*valuePL(P14,'Utility Functions'!$AC$3:$AC$7,'Utility Functions'!$AD$3:$AD$7)","v":0.01},{"$f":"$Q$40*valuePL(Q14,'Utility Functions'!$AE$3:$AE$6,'Utility Functions'!$AF$3:$AF$6)","v":0},{"$f":"$R$40*valuePL(R14,'Utility Functions'!$AG$3:$AG$6,'Utility Functions'!$AH$3:$AH$6)","v":0.05},{"$f":"$S$40*valuePL(S14,'Utility Functions'!$AI$3:$AI$6,'Utility Functions'!$AJ$3:$AJ$6)","v":0.05},{"$f":"$T$40*valuePL(T14,'Utility Functions'!$AK$3:$AK$8,'Utility Functions'!$AL$3:$AL$8)","v":0},{"$f":"$U$40*valuePL(U14,'Utility Functions'!$AM$3:$AM$5,'Utility Functions'!$AN$3:$AN$5)","v":0},{"$f":"$V$40*valuePL(V14,'Utility Functions'!$AO$3:$AO$5,'Utility Functions'!$AP$3:$AP$5)","v":2.5000000000000001E-2},{"$f":"$W$40*valuePL(W14,'Utility Functions'!$AQ$3:$AQ$6,'Utility Functions'!$AR$3:$AR$6)","v":0},{"$f":"$X$40*valuePL(X14,'Utility Functions'!$AS$3:$AS$6,'Utility Functions'!$AT$3:$AT$6)","v":8.0000000000000002E-3},{"$f":"$Y$40*valuePL(Y14,'Utility Functions'!$AU$3:$AU$6,'Utility Functions'!$AV$3:$AV$6)","v":0},{"$f":"$Z$40*valuePL(Z14,'Utility Functions'!$AW$3:$AW$5,'Utility Functions'!$AX$3:$AX$5)","v":0.05},{"$f":"$AA$40*valuePL(AA14,'Utility Functions'!$AY$3:$AY$6,'Utility Functions'!$AZ$3:$AZ$6)","v":8.0000000000000002E-3},{"$f":"$AB$40*valuePL(AB14,'Utility Functions'!$BA$3:$BA$5,'Utility Functions'!$BB$3:$BB$5)","v":0.01},{"$f":"$AC$40*valuePL(AC14,'Utility Functions'!$BC$3:$BC$5,'Utility Functions'!$BD$3:$BD$5)","v":7.4999999999999997E-3},0.30547532344316031,0.30547532344316031]
[14,{"$f":"$B$40*(valueE(B15,'Utility Functions'!$B$3,'Utility Functions'!$B$4,'Utility Functions'!$B$5,'Utility Functions'!$B$6))","v":2.0964205406426323E-2},{"$f":"$C$40*(valueE(C15,'Utility Functions'!$D$3,'Utility Functions'!$D$4,'Utility Functions'!$D$5,'Utility Functions'!$D$6))","v":2.3696993705826886E-2},{"$f":"$D$40*(valuePL(D15,'Utility Functions'!$E$3:$E$5,'Utility Functions'!$F$3:$F$5))","v":1.4999999999999999E-2},{"$f":"$E$40*(valuePL(E15,'Utility Functions'!$G$3:$G$5,'Utility Functions'!$H$3:$H$5))","v":1.4999999999999999E-2},{"$f":"$F$40*(valuePL(F15,'Utility Functions'!$I$3:$I$4,'Utility Functions'!$J$3:$J$5))","v":0},{"$f":"$G$40*(valueE(G15,'Utility Functions'!$L$3,'Utility Functions'!$L$4,'Utility Functions'!$L$5,'Utility Functions'!$L$6))","v":0},{"$f":"$H$40*(valueE(H15,'Utility Functions'!$N$3,'Utility Functions'!$N$4,'Utility Functions'!$N$5,'Utility Functions'!$N$6))","v":0},{"$f":"$I$40*valuePL(I15,'Utility Functions'!$O$3:$O$6,'Utility Functions'!$P$3:$P$6)","v":0},{"$f":"$J$40*valuePL(J15,'Utility Functions'!$Q$3:$Q$6,'Utility Functions'!$R$3:$R$6)","v":0},{"$f":"$K$40*(valuePL(K15,'Utility Functions'!$S$3:$S$7,'Utility Functions'!$T$3:$T$7))","v":0},{"$f":"$L$40*(valueE(L15,'Utility Functions'!$V$3,'Utility Functions'!$V$4,'Utility Functions'!$V$5,'Utility Functions'!$V$6))","v":0},{"$f":"$M$40*valuePL(M15,'Utility Functions'!$W$3:$W$6,'Utility Functions'!$X$3:$X$6)","v":0},{"$f":"$N$40*valueE(N15,'Utility Functions'!$Z$3,'Utility Functions'!$Z$4,'Utility Functions'!$Z$5,'Utility Functions'!$Z$6)","v":2.2499999999999999E-2},{"$f":"$O$40*valuePL(O15,'Utility Functions'!$AA$3:$AA$5,'Utility Functions'!$AB$3:$AB$5)","v":2.2499999999999999E-2},{"$f":"$P$40*valuePL(P15,'Utility Functions'!$AC$3:$AC$7,'Utility Functions'!$AD$3:$AD$7)","v":0.01},{"$f":"$Q$40*valuePL(Q15,'Utility Functions'!$AE$3:$AE$6,'Utility Functions'!$AF$3:$AF$6)","v":0},{"$f":"$R$40*valuePL(R15,'Utility Functions'!$AG$3:$AG$6,'Utility Functions'!$AH$3:$AH$6)","v":0.05},{"$f":"$S$40*valuePL(S15,'Utility Functions'!$AI$3:$AI$6,'Utility Functions'!$AJ$3:$AJ$6)","v":0.05},{"$f":"$T$40*valuePL(T15,'Utility Functions'!$AK$3:$AK$8,'Utility Functions'!$AL$3:$AL$8)","v":0},{"$f":"$U$40*valuePL(U15,'Utility Functions'!$AM$3:$AM$5,'Utility Functions'!$AN$3:$AN$5)","v":0},{"$f":"$V$40*valuePL(V15,'Utility Functions'!$AO$3:$AO$5,'Utility Functions'!$AP$3:$AP$5)","v":2.5000000000000001E-2},{"$f":"$W$40*valuePL(W15,'Utility Functions'!$AQ$3:$AQ$6,'Utility Functions'!$AR$3:$AR$6)","v":8.0000000000000002E-3},{"$f":"$X$40*valuePL(X15,'Utility Functions'!$AS$3:$AS$6,'Utility Functions'!$AT$3:$AT$6)","v":0.04},{"$f":"$Y$40*valuePL(Y15,'Utility Functions'!$AU$3:$AU$6,'Utility Functions'!$AV$3:$AV$6)","v":0.05},{"$f":"$Z$40*valuePL(Z15,'Utility Functions'!$AW$3:$AW$5,'Utility Functions'!$AX$3:$AX$5)","v":2.5000000000000001E-2},{"$f":"$AA$40*valuePL(AA15,'Utility Functions'!$AY$3:$AY$6,'Utility Functions'!$AZ$3:$AZ$6)","v":3.5999999999999997E-2},{"$f":"$AB$40*valuePL(AB15,'Utility Functions'!$BA$3:$BA$5,'Utility Functions'!$BB$3:$BB$5)","v":0.01},{"$f":"$AC$40*valuePL(AC15,'Utility Functions'!$BC$3:$BC$5,'Utility Functions'!$BD$3:$BD$5)","v":7.4999999999999997E-3},0.4311611991122532,0.42916087857610469]
[15,{"$f":"$B$40*(valueE(B16,'Utility Functions'!$B$3,'Utility Functions'!$B$4,'Utility Functions'!$B$5,'Utility Functions'!$B$6))","v":2.9698489925153143E-2},{"$f":"$C$40*(valueE(C16,'Utility Functions'!$D$3,'Utility Functions'!$D$4,'Utility Functions'!$D$5,'Utility Functions'!$D$6))","v":2.1405827917278249E-2},{"$f":"$D$40*(valuePL(D16,'Utility Functions'!$E$3:$E$5,'Utility Functions'!$F$3:$F$5))","v":0.03},{"$f":"$E$40*(valuePL(E16,'Utility Functions'!$G$3:$G$5,'Utility Functions'!$H$3:$H$5))","v":1.4999999999999999E-2},{"$f":"$F$40*(valuePL(F16,'Utility Functions'!$I$3:$I$4,'Utility Functions'!$J$3:$J$5))","v":0.04},{"$f":"$G$40*(valueE(G16,'Utility Functions'!$L$3,'Utility Functions'!$L$4,'Utility Functions'!$L$5,'Utility Functions'!$L$6))","v":0},{"$f":"$H$40*(valueE(H16,'Utility Functions'!$N$3,'Utility Functions'!$N$4,'Utility Functions'!$N$5,'Utility Functions'!$N$6))","v":0},{"$f":"$I$40*valuePL(I16,'Utility Functions'!$O$3:$O$6,'Utility Functions'!$P$3:$P$6)","v":2.7600000000000003E-3},{"$f":"$J$40*valuePL(J16,'Utility Functions'!$Q$3:$Q$6,'Utility Functions'!$R$3:$R$6)","v":1.2000000000000003E-3},{"$f":"$K$40*(valuePL(K16,'Utility Functions'!$S$3:$S$7,'Utility Functions'!$T$3:$T$7))","v":1.2000000000000003E-3},{"$f":"$L$40*(valueE(L16,'Utility Functions'!$V$3,'Utility Functions'!$V$4,'Utility Functions'!$V$5,'Utility Functions'!$V$6))","v":0.02},{"$f":"$M$40*valuePL(M16,'Utility Functions'!$W$3:$W$6,'Utility Functions'!$X$3:$X$6)","v":1.2000000000000003E-3},{"$f":"$N$40*valueE(N16,'Utility Functions'!$Z$3,'Utility Functions'!$Z$4,'Utility Functions'!$Z$5,'Utility Functions'!$Z$6)","v":3.7499999999999999E-3},{"$f":"$O$40*valuePL(O16,'Utility Functions'!$AA$3:$AA$5,'Utility Functions'!$AB$3:$AB$5)","v":0.09},{"$f":"$P$40*valuePL(P16,'Utility Functions'!$AC$3:$AC$7,'Utility Functions'!$AD$3:$AD$7)","v":0.02},{"$f":"$Q$40*valuePL(Q16,'Utility Functions'!$AE$3:$AE$6,'Utility Functions'!$AF$3:$AF$6)","v":0},{"$f":"$R$40*valuePL(R16,'Utility Functions'!$AG$3:$AG$6,'Utility Functions'!$AH$3:$AH$6)","v":4.0000000000000008E-2},{"$f":"$S$40*valuePL(S16,'Utility Functions'!$AI$3:$AI$6,'Utility Functions'!$AJ$3:$AJ$6)","v":0.05},{"$f":"$T$40*valuePL(T16,'Utility Functions'!$AK$3:$AK$8,'Utility Functions'!$AL$3:$AL$8)","v":1.7999999999999999E-2},{"$f":"$U$40*valuePL(U16,'Utility Functions'!$AM$3:$AM$5,'Utility Functions'!$AN$3:$AN$5)","v":0.03},{"$f":"$V$40*valuePL(V16,'Utility Functions'!$AO$3:$AO$5,'Utility Functions'!$AP$3:$AP$5)","v":0},{"$f":"$W$40*valuePL(W16,'Utility Functions'!$AQ$3:$AQ$6,'Utility Functions'!$AR$3:$AR$6)","v":0.04},{"$f":"$X$40*valuePL(X16,'Utility Functions'!$AS$3:$AS$6,'Utility Functions'!$AT$3:$AT$6)","v":8.0000000000000002E-3},{"$f":"$Y$40*valuePL(Y16,'Utility Functions'!$AU$3:$AU$6,'Utility Functions'!$AV$3:$AV$6)","v":1.0000000000000002E-2},{"$f":"$Z$40*valuePL(Z16,'Utility Functions'!$AW$3:$AW$5,'Utility Functions'!$AX$3:$AX$5)","v":0.05},{"$f":"$AA$40*valuePL(AA16,'Utility Functions'!$AY$3:$AY$6,'Utility Functions'!$AZ$3:$AZ$6)","v":0.04},{"$f":"$AB$40*valuePL(AB16,'Utility Functions'!$BA$3:$BA$5,'Utility Functions'!$BB$3:$BB$5)","v":0.04},{"$f":"$AC$40*valuePL(AC16,'Utility Functions'!$BC$3:$BC$5,'Utility Functions'!$BD$3:$BD$5)","v":7.4999999999999997E-3},0.60971431784243146,0.60936712175502528]
[16,{"$f":"$B$40*(valueE(B17,'Utility Functions'!$B$3,'Utility Functions'!$B$4,'Utility Functions'!$B$5,'Utility Functions'!$B$6))","v":0},{"$f":"$C$40*(valueE(C17,'Utility Functions'!$D$3,'Utility Functions'!$D$4,'Utility Functions'!$D$5,'Utility Functions'!$D$6))","v":0},{"$f":"$D$40*(valuePL(D17,'Utility Functions'!$E$3:$E$5,'Utility Functions'!$F$3:$F$5))","v":0},{"$f":"$E$40*(valuePL(E17,'Utility Functions'!$G$3:$G$5,'Utility Functions'!$H$3:$H$5))","v":0},{"$f":"$F$40*(valuePL(F17,'Utility Functions'!$I$3:$I$4,'Utility Functions'!$J$3:$J$5))","v":0},{"$f":"$G$40*(valueE(G17,'Utility Functions'!$L$3,'Utility Functions'!$L$4,'Utility Functions'!$L$5,'Utility Functions'!$L$6))","v":0},{"$f":"$H$40*(valueE(H17,'Utility Functions'!$N$3,'Utility Functions'!$N$4,'Utility Functions'!$N$5,'Utility Functions'!$N$6))","v":0},{"$f":"$I$40*valuePL(I17,'Utility Functions'!$O$3:$O$6,'Utility Functions'!$P$3:$P$6)","v":0.03},{"$f":"$J$40*valuePL(J17,'Utility Functions'!$Q$3:$Q$6,'Utility Functions'!$R$3:$R$6)","v":1.8363636363636363E-2},{"$f":"$K$40*(valuePL(K17,'Utility Functions'!$S$3:$S$7,'Utility Functions'!$T$3:$T$7))","v":0.02},{"$f":"$L$40*(valueE(L17,'Utility Functions'!$V$3,'Utility Functions'!$V$4,'Utility Functions'!$V$5,'Utility Functions'!$V$6))","v":1.6666666666666666E-2},{"$f":"$M$40*valuePL(M17,'Utility Functions'!$W$3:$W$6,'Utility Functions'!$X$3:$X$6)","v":1.8363636363636363E-2},{"$f":"$N$40*valueE(N17,'Utility Functions'!$Z$3,'Utility Functions'!$Z$4,'Utility Functions'!$Z$5,'Utility Functions'!$Z$6)","v":0},{"$f":"$O$40*valuePL(O17,'Utility Functions'!$AA$3:$AA$5,'Utility Functions'!$AB$3:$AB$5)","v":0},{"$f":"$P$40*valuePL(P17,'Utility Functions'!$AC$3:$AC$7,'Utility Functions'!$AD$3:$AD$7)","v":0.03},{"$f":"$Q$40*valuePL(Q17,'Utility Functions'!$AE$3:$AE$6,'Utility Functions'!$AF$3:$AF$6)","v":0},{"$f":"$R$40*valuePL(R17,'Utility Functions'!$AG$3:$AG$6,'Utility Functions'!$AH$3:$AH$6)","v":0.05},{"$f":"$S$40*valuePL(S17,'Utility Functions'!$AI$3:$AI$6,'Utility Functions'!$AJ$3:$AJ$6)","v":0.05},{"$f":"$T$40*valuePL(T17,'Utility Functions'!$AK$3:$AK$8,'Utility Functions'!$AL$3:$AL$8)","v":0.03},{"$f":"$U$40*valuePL(U17,'Utility Functions'!$AM$3:$AM$5,'Utility Functions'!$AN$3:$AN$5)","v":0},{"$f":"$V$40*valuePL(V17,'Utility Functions'!$AO$3:$AO$5,'Utility Functions'!$AP$3:$AP$5)","v":0.05},{"$f":"$W$40*valuePL(W17,'Utility Functions'!$AQ$3:$AQ$6,'Utility Functions'!$AR$3:$AR$6)","v":0.03},{"$f":"$X$40*valuePL(X17,'Utility Functions'!$AS$3:$AS$6,'Utility Functions'!$AT$3:$AT$6)","v":0.03},{"$f":"$Y$40*valuePL(Y17,'Utility Functions'!$AU$3:$AU$6,'Utility Functions'!$AV$3:$AV$6)","v":1.0000000000000002E-2},{"$f":"$Z$40*valuePL(Z17,'Utility Functions'!$AW$3:$AW$5,'Utility Functions'!$AX$3:$AX$5)","v":0.05},{"$f":"$AA$40*valuePL(AA17,'Utility Functions'!$AY$3:$AY$6,'Utility Functions'!$AZ$3:$AZ$6)","v":0.04},{"$f":"$AB$40*valuePL(AB17,'Utility Functions'!$BA$3:$BA$5,'Utility Functions'!$BB$3:$BB$5)","v":0.04},{"$f":"$AC$40*valuePL(AC17,'Utility Functions'!$BC$3:$BC$5,'Utility Functions'!$BD$3:$BD$5)","v":0.03},0.54339393939393943,0.54339393939393943]
[17,{"$f":"$B$40*(valueE(B18,'Utility Functions'!$B$3,'Utility Functions'!$B$4,'Utility Functions'!$B$5,'Utility Functions'!$B$6))","v":9.8904136043327599E-3},{"$f":"$C$40*(valueE(C18,'Utility Functions'!$D$3,'Utility Functions'!$D$4,'Utility Functions'!$D$5,'Utility Functions'!$D$6))","v":2.3696993705826886E-2},{"$f":"$D$40*(valuePL(D18,'Utility Functions'!$E$3:$E$5,'Utility Functions'!$F$3:$F$5))","v":0.03},{"$f":"$E$40*(valuePL(E18,'Utility Functions'!$G$3:$G$5,'Utility Functions'!$H$3:$H$5))","v":1.4999999999999999E-2},{"$f":"$F$40*(valuePL(F18,'Utility Functions'!$I$3:$I$4,'Utility Functions'!$J$3:$J$5))","v":0.04},{"$f":"$G$40*(valueE(G18,'Utility Functions'!$L$3,'Utility Functions'!$L$4,'Utility Functions'!$L$5,'Utility Functions'!$L$6))","v":4.6774193548387091E-3},{"$f":"$H$40*(valueE(H18,'Utility Functions'!$N$3,'Utility Functions'!$N$4,'Utility Functions'!$N$5,'Utility Functions'!$N$6))","v":4.1271347248576853E-3},{"$f":"$I$40*valuePL(I18,'Utility Functions'!$O$3:$O$6,'Utility Functions'!$P$3:$P$6)","v":0},{"$f":"$J$40*valuePL(J18,'Utility Functions'!$Q$3:$Q$6,'Utility Functions'!$R$3:$R$6)","v":0},{"$f":"$K$40*(valuePL(K18,'Utility Functions'!$S$3:$S$7,'Utility Functions'!$T$3:$T$7))","v":0},{"$f":"$L$40*(valueE(L18,'Utility Functions'!$V$3,'Utility Functions'!$V$4,'Utility Functions'!$V$5,'Utility Functions'!$V$6))","v":0.02},{"$f":"$M$40*valuePL(M18,'Utility Functions'!$W$3:$W$6,'Utility Functions'!$X$3:$X$6)","v":1.2000000000000003E-3},{"$f":"$N$40*valueE(N18,'Utility Functions'!$Z$3,'Utility Functions'!$Z$4,'Utility Functions'!$Z$5,'Utility Functions'!$Z$6)","v":0},{"$f":"$O$40*valuePL(O18,'Utility Functions'!$AA$3:$AA$5,'Utility Functions'!$AB$3:$AB$5)","v":0},{"$f":"$P$40*valuePL(P18,'Utility Functions'!$AC$3:$AC$7,'Utility Functions'!$AD$3:$AD$7)","v":0},{"$f":"$Q$40*valuePL(Q18,'Utility Functions'!$AE$3:$AE$6,'Utility Functions'!$AF$3:$AF$6)","v":0},{"$f":"$R$40*valuePL(R18,'Utility Functions'!$AG$3:$AG$6,'Utility Functions'!$AH$3:$AH$6)","v":0.05},{"$f":"$S$40*valuePL(S18,'Utility Functions'!$AI$3:$AI$6,'Utility Functions'!$AJ$3:$AJ$6)","v":3.3000000000000002E-2},{"$f":"$T$40*valuePL(T18,'Utility Functions'!$AK$3:$AK$8,'Utility Functions'!$AL$3:$AL$8)","v":0},{"$f":"$U$40*valuePL(U18,'Utility Functions'!$AM$3:$AM$5,'Utility Functions'!$AN$3:$AN$5)","v":0},{"$f":"$V$40*valuePL(V18,'Utility Functions'!$AO$3:$AO$5,'Utility Functions'!$AP$3:$AP$5)","v":0.05},{"$f":"$W$40*valuePL(W18,'Utility Functions'!$AQ$3:$AQ$6,'Utility Functions'!$AR$3:$AR$6)","v":0.04},{"$f":"$X$40*valuePL(X18,'Utility Functions'!$AS$3:$AS$6,'Utility Functions'!$AT$3:$AT$6)","v":8.0000000000000002E-3},{"$f":"$Y$40*valuePL(Y18,'Utility Functions'!$AU$3:$AU$6,'Utility Functions'!$AV$3:$AV$6)","v":0},{"$f":"$Z$40*valuePL(Z18,'Utility Functions'!$AW$3:$AW$5,'Utility Functions'!$AX$3:$AX$5)","v":2.5000000000000001E-2},{"$f":"$AA$40*valuePL(AA18,'Utility Functions'!$AY$3:$AY$6,'Utility Functions'!$AZ$3:$AZ$6)","v":0},{"$f":"$AB$40*valuePL(AB18,'Utility Functions'!$BA$3:$BA$5,'Utility Functions'!$BB$3:$BB$5)","v":0.04},{"$f":"$AC$40*valuePL(AC18,'Utility Functions'!$BC$3:$BC$5,'Utility Functions'!$BD$3:$BD$5)","v":7.4999999999999997E-3},0.40209196138985603,0.40070572869773624]
[18,{"$f":"$B$40*(valueE(B19,'Utility Functions'!$B$3,'Utility Functions'!$B$4,'Utility Functions'!$B$5,'Utility Functions'!$B$6))","v":0},{"$f":"$C$40*(valueE(C19,'Utility Functions'!$D$3,'Utility Functions'!$D$4,'Utility Functions'!$D$5,'Utility Functions'!$D$6))","v":0},{"$f":"$D$40*(valuePL(D19,'Utility Functions'!$E$3:$E$5,'Utility Functions'!$F$3:$F$5))","v":0},{"$f":"$E$40*(valuePL(E19,'Utility Functions'!$G$3:$G$5,'Utility Functions'!$H$3:$H$5))","v":0},{"$f":"$F$40*(valuePL(F19,'Utility Functions'!$I$3:$I$4,'Utility Functions'!$J$3:$J$5))","v":0},{"$f":"$G$40*(valueE(G19,'Utility Functions'!$L$3,'Utility Functions'!$L$4,'Utility Functions'!$L$5,'Utility Functions'!$L$6))","v":0},{"$f":"$H$40*(valueE(H19,'Utility Functions'!$N$3,'Utility Functions'!$N$4,'Utility Functions'!$N$5,'Utility Functions'!$N$6))","v":4.2694497153700185E-4},{"$f":"$I$40*valuePL(I19,'Utility Functions'!$O$3:$O$6,'Utility Functions'!$P$3:$P$6)","v":0},{"$f":"$J$40*valuePL(J19,'Utility Functions'!$Q$3:$Q$6,'Utility Functions'!$R$3:$R$6)","v":0},{"$f":"$K$40*(valuePL(K19,'Utility Functions'!$S$3:$S$7,'Utility Functions'!$T$3:$T$7))","v":0},{"$f":"$L$40*(valueE(L19,'Utility Functions'!$V$3,'Utility Functions'!$V$4,'Utility Functions'!$V$5,'Utility Functions'!$V$6))","v":0},{"$f":"$M$40*valuePL(M19,'Utility Functions'!$W$3:$W$6,'Utility Functions'!$X$3:$X$6)","v":0},{"$f":"$N$40*valueE(N19,'Utility Functions'!$Z$3,'Utility Functions'!$Z$4,'Utility Functions'!$Z$5,'Utility Functions'!$Z$6)","v":0.03},{"$f":"$O$40*valuePL(O19,'Utility Functions'!$AA$3:$AA$5,'Utility Functions'!$AB$3:$AB$5)","v":2.2499999999999999E-2},{"$f":"$P$40*valuePL(P19,'Utility Functions'!$AC$3:$AC$7,'Utility Functions'!$AD$3:$AD$7)","v":0.01},{"$f":"$Q$40*valuePL(Q19,'Utility Functions'!$AE$3:$AE$6,'Utility Functions'!$AF$3:$AF$6)","v":0.04},{"$f":"$R$40*valuePL(R19,'Utility Functions'!$AG$3:$AG$6,'Utility Functions'!$AH$3:$AH$6)","v":0.05},{"$f":"$S$40*valuePL(S19,'Utility Functions'!$AI$3:$AI$6,'Utility Functions'!$AJ$3:$AJ$6)","v":0.05},{"$f":"$T$40*valuePL(T19,'Utility Functions'!$AK$3:$AK$8,'Utility Functions'!$AL$3:$AL$8)","v":0.03},{"$f":"$U$40*valuePL(U19,'Utility Functions'!$AM$3:$AM$5,'Utility Functions'!$AN$3:$AN$5)","v":7.4999999999999997E-3},{"$f":"$V$40*valuePL(V19,'Utility Functions'!$AO$3:$AO$5,'Utility Functions'!$AP$3:$AP$5)","v":0.05},{"$f":"$W$40*valuePL(W19,'Utility Functions'!$AQ$3:$AQ$6,'Utility Functions'!$AR$3:$AR$6)","v":0.03},{"$f":"$X$40*valuePL(X19,'Utility Functions'!$AS$3:$AS$6,'Utility Functions'!$AT$3:$AT$6)","v":8.0000000000000002E-3},{"$f":"$Y$40*valuePL(Y19,'Utility Functions'!$AU$3:$AU$6,'Utility Functions'!$AV$3:$AV$6)","v":4.0000000000000008E-2},{"$f":"$Z$40*valuePL(Z19,'Utility Functions'!$AW$3:$AW$5,'Utility Functions'!$AX$3:$AX$5)","v":2.5000000000000001E-2},{"$f":"$AA$40*valuePL(AA19,'Utility Functions'!$AY$3:$AY$6,'Utility Functions'!$AZ$3:$AZ$6)","v":3.5999999999999997E-2},{"$f":"$AB$40*valuePL(AB19,'Utility Functions'!$BA$3:$BA$5,'Utility Functions'!$BB$3:$BB$5)","v":0.01},{"$f":"$AC$40*valuePL(AC19,'Utility Functions'!$BC$3:$BC$5,'Utility Functions'!$BD$3:$BD$5)","v":0},0.43942694497153706,0.43942694497153706]
[19,{"$f":"$B$40*(valueE(B20,'Utility Functions'!$B$3,'Utility Functions'!$B$4,'Utility Functions'!$B$5,'Utility Functions'!$B$6))","v":2.3943140737469053E-2},{"$f":"$C$40*(valueE(C20,'Utility Functions'!$D$3,'Utility Functions'!$D$4,'Utility Functions'!$D$5,'Utility Functions'!$D$6))","v":8.0518966871447988E-3},{"$f":"$D$40*(valuePL(D20,'Utility Functions'!$E$3:$E$5,'Utility Functions'!$F$3:$F$5))","v":1.4999999999999999E-2},{"$f":"$E$40*(valuePL(E20,'Utility Functions'!$G$3:$G$5,'Utility Functions'!$H$3:$H$5))","v":0.03},{"$f":"$F$40*(valuePL(F20,'Utility Functions'!$I$3:$I$4,'Utility Functions'!$J$3:$J$5))","v":0},{"$f":"$G$40*(valueE(G20,'Utility Functions'!$L$3,'Utility Functions'!$L$4,'Utility Functions'!$L$5,'Utility Functions'!$L$6))","v":0},{"$f":"$H$40*(valueE(H20,'Utility Functions'!$N$3,'Utility Functions'!$N$4,'Utility Functions'!$N$5,'Utility Functions'!$N$6))","v":0},{"$f":"$I$40*valuePL(I20,'Utility Functions'!$O$3:$O$6,'Utility Functions'!$P$3:$P$6)","v":0},{"$f":"$J$40*valuePL(J20,'Utility Functions'!$Q$3:$Q$6,'Utility Functions'!$R$3:$R$6)","v":0},{"$f":"$K$40*(valuePL(K20,'Utility Functions'!$S$3:$S$7,'Utility Functions'!$T$3:$T$7))","v":0},{"$f":"$L$40*(valueE(L20,'Utility Functions'!$V$3,'Utility Functions'!$V$4,'Utility Functions'!$V$5,'Utility Functions'!$V$6))","v":0},{"$f":"$M$40*valuePL(M20,'Utility Functions'!$W$3:$W$6,'Utility Functions'!$X$3:$X$6)","v":0},{"$f":"$N$40*valueE(N20,'Utility Functions'!$Z$3,'Utility Functions'!$Z$4,'Utility Functions'!$Z$5,'Utility Functions'!$Z$6)","v":0.03},{"$f":"$O$40*valuePL(O20,'Utility Functions'!$AA$3:$AA$5,'Utility Functions'!$AB$3:$AB$5)","v":0.09},{"$f":"$P$40*valuePL(P20,'Utility Functions'!$AC$3:$AC$7,'Utility Functions'!$AD$3:$AD$7)","v":0},{"$f":"$Q$40*valuePL(Q20,'Utility Functions'!$AE$3:$AE$6,'Utility Functions'!$AF$3:$AF$6)","v":0},{"$f":"$R$40*valuePL(R20,'Utility Functions'!$AG$3:$AG$6,'Utility Functions'!$AH$3:$AH$6)","v":4.0000000000000008E-2},{"$f":"$S$40*valuePL(S20,'Utility Functions'!$AI$3:$AI$6,'Utility Functions'!$AJ$3:$AJ$6)","v":0.05},{"$f":"$T$40*valuePL(T20,'Utility Functions'!$AK$3:$AK$8,'Utility Functions'!$AL$3:$AL$8)","v":0},{"$f":"$U$40*valuePL(U20,'Utility Functions'!$AM$3:$AM$5,'Utility Functions'!$AN$3:$AN$5)","v":0},{"$f":"$V$40*valuePL(V20,'Utility Functions'!$AO$3:$AO$5,'Utility Functions'!$AP$3:$AP$5)","v":2.5000000000000001E-2},{"$f":"$W$40*valuePL(W20,'Utility Functions'!$AQ$3:$AQ$6,'Utility Functions'!$AR$3:$AR$6)","v":8.0000000000000002E-3},{"$f":"$X$40*valuePL(X20,'Utility Functions'!$AS$3:$AS$6,'Utility Functions'!$AT$3:$AT$6)","v":0.04},{"$f":"$Y$40*valuePL(Y20,'Utility Functions'!$AU$3:$AU$6,'Utility Functions'!$AV$3:$AV$6)","v":4.0000000000000008E-2},{"$f":"$Z$40*valuePL(Z20,'Utility Functions'!$AW$3:$AW$5,'Utility Functions'!$AX$3:$AX$5)","v":0},{"$f":"$AA$40*valuePL(AA20,'Utility Functions'!$AY$3:$AY$6,'Utility Functions'!$AZ$3:$AZ$6)","v":8.0000000000000002E-3},{"$f":"$AB$40*valuePL(AB20,'Utility Functions'!$BA$3:$BA$5,'Utility Functions'!$BB$3:$BB$5)","v":0},{"$f":"$AC$40*valuePL(AC20,'Utility Functions'!$BC$3:$BC$5,'Utility Functions'!$BD$3:$BD$5)","v":7.4999999999999997E-3},0.41549503742461386,0.41364429487902837]
[20,{"$f":"$B$40*(valueE(B21,'Utility Functions'!$B$3,'Utility Functions'!$B$4,'Utility Functions'!$B$5,'Utility Functions'!$B$6))","v":2.5041071294184137E-2},{"$f":"$C$40*(valueE(C21,'Utility Functions'!$D$3,'Utility Functions'!$D$4,'Utility Functions'!$D$5,'Utility Functions'!$D$6))","v":2.3696993705826886E-2},{"$f":"$D$40*(valuePL(D21,'Utility Functions'!$E$3:$E$5,'Utility Functions'!$F$3:$F$5))","v":1.4999999999999999E-2},{"$f":"$E$40*(valuePL(E21,'Utility Functions'!$G$3:$G$5,'Utility Functions'!$H$3:$H$5))","v":0.03},{"$f":"$F$40*(valuePL(F21,'Utility Functions'!$I$3:$I$4,'Utility Functions'!$J$3:$J$5))","v":0},{"$f":"$G$40*(valueE(G21,'Utility Functions'!$L$3,'Utility Functions'!$L$4,'Utility Functions'!$L$5,'Utility Functions'!$L$6))","v":0},{"$f":"$H$40*(valueE(H21,'Utility Functions'!$N$3,'Utility Functions'!$N$4,'Utility Functions'!$N$5,'Utility Functions'!$N$6))","v":6.1907020872865271E-3},{"$f":"$I$40*valuePL(I21,'Utility Functions'!$O$3:$O$6,'Utility Functions'!$P$3:$P$6)","v":2.8036363636363634E-2},{"$f":"$J$40*valuePL(J21,'Utility Functions'!$Q$3:$Q$6,'Utility Functions'!$R$3:$R$6)","v":1.0181818181818183E-2},{"$f":"$K$40*(valuePL(K21,'Utility Functions'!$S$3:$S$7,'Utility Functions'!$T$3:$T$7))","v":1.8690909090909088E-2},{"$f":"$L$40*(valueE(L21,'Utility Functions'!$V$3,'Utility Functions'!$V$4,'Utility Functions'!$V$5,'Utility Functions'!$V$6))","v":1.3333333333333332E-2},{"$f":"$M$40*valuePL(M21,'Utility Functions'!$W$3:$W$6,'Utility Functions'!$X$3:$X$6)","v":1.0181818181818183E-2},{"$f":"$N$40*valueE(N21,'Utility Functions'!$Z$3,'Utility Functions'!$Z$4,'Utility Functions'!$Z$5,'Utility Functions'!$Z$6)","v":0.03},{"$f":"$O$40*valuePL(O21,'Utility Functions'!$AA$3:$AA$5,'Utility Functions'!$AB$3:$AB$5)","v":0.09},{"$f":"$P$40*valuePL(P21,'Utility Functions'!$AC$3:$AC$7,'Utility Functions'!$AD$3:$AD$7)","v":0.01},{"$f":"$Q$40*valuePL(Q21,'Utility Functions'!$AE$3:$AE$6,'Utility Functions'!$AF$3:$AF$6)","v":0},{"$f":"$R$40*valuePL(R21,'Utility Functions'!$AG$3:$AG$6,'Utility Functions'!$AH$3:$AH$6)","v":0.05},{"$f":"$S$40*valuePL(S21,'Utility Functions'!$AI$3:$AI$6,'Utility Functions'!$AJ$3:$AJ$6)","v":0.05},{"$f":"$T$40*valuePL(T21,'Utility Functions'!$AK$3:$AK$8,'Utility Functions'!$AL$3:$AL$8)","v":1.7999999999999999E-2},{"$f":"$U$40*valuePL(U21,'Utility Functions'!$AM$3:$AM$5,'Utility Functions'!$AN$3:$AN$5)","v":0.03},{"$f":"$V$40*valuePL(V21,'Utility Functions'!$AO$3:$AO$5,'Utility Functions'!$AP$3:$AP$5)","v":2.5000000000000001E-2},{"$f":"$W$40*valuePL(W21,'Utility Functions'!$AQ$3:$AQ$6,'Utility Functions'!$AR$3:$AR$6)","v":0},{"$f":"$X$40*valuePL(X21,'Utility Functions'!$AS$3:$AS$6,'Utility Functions'!$AT$3:$AT$6)","v":0},{"$f":"$Y$40*valuePL(Y21,'Utility Functions'!$AU$3:$AU$6,'Utility Functions'!$AV$3:$AV$6)","v":1.0000000000000002E-2},{"$f":"$Z$40*valuePL(Z21,'Utility Functions'!$AW$3:$AW$5,'Utility Functions'!$AX$3:$AX$5)","v":0.05},{"$f":"$AA$40*valuePL(AA21,'Utility Functions'!$AY$3:$AY$6,'Utility Functions'!$AZ$3:$AZ$6)","v":8.0000000000000002E-3},{"$f":"$AB$40*valuePL(AB21,'Utility Functions'!$BA$3:$BA$5,'Utility Functions'!$BB$3:$BB$5)","v":0},{"$f":"$AC$40*valuePL(AC21,'Utility Functions'!$BC$3:$BC$5,'Utility Functions'!$BD$3:$BD$5)","v":7.4999999999999997E-3},0.55885300951154004,0.55711836291178196]
[{"$f":"A22","v":21},{"$f":"$B$40*(valueE(B22,'Utility Functions'!$B$3,'Utility Functions'!$B$4,'Utility Functions'!$B$5,'Utility Functions'!$B$6))","v":0},{"$f":"$C$40*(valueE(C22,'Utility Functions'!$D$3,'Utility Functions'!$D$4,'Utility Functions'!$D$5,'Utility Functions'!$D$6))","v":0},{"$f":"$D$40*(valuePL(D22,'Utility Functions'!$E$3:$E$5,'Utility Functions'!$F$3:$F$5))","v":0},{"$f":"$E$40*(valuePL(E22,'Utility Functions'!$G$3:$G$5,'Utility Functions'!$H$3:$H$5))","v":0},{"$f":"$F$40*(valuePL(F22,'Utility Functions'!$I$3:$I$4,'Utility Functions'!$J$3:$J$5))","v":0},{"$f":"$G$40*(valueE(G22,'Utility Functions'!$L$3,'Utility Functions'!$L$4,'Utility Functions'!$L$5,'Utility Functions'!$L$6))","v":0},{"$f":"$H$40*(valueE(H22,'Utility Functions'!$N$3,'Utility Functions'!$N$4,'Utility Functions'!$N$5,'Utility Functions'!$N$6))","v":0},{"$f":"$I$40*valuePL(I22,'Utility Functions'!$O$3:$O$6,'Utility Functions'!$P$3:$P$6)","v":0},{"$f":"$J$40*valuePL(J22,'Utility Functions'!$Q$3:$Q$6,'Utility Functions'!$R$3:$R$6)","v":0},{"$f":"$K$40*(valuePL(K22,'Utility Functions'!$S$3:$S$7,'Utility Functions'!$T$3:$T$7))","v":0},{"$f":"$L$40*(valueE(L22,'Utility Functions'!$V$3,'Utility Functions'!$V$4,'Utility Functions'!$V$5,'Utility Functions'!$V$6))","v":0},{"$f":"$M$40*valuePL(M22,'Utility Functions'!$W$3:$W$6,'Utility Functions'!$X$3:$X$6)","v":0},{"$f":"$N$40*valueE(N22,'Utility Functions'!$Z$3,'Utility Functions'!$Z$4,'Utility Functions'!$Z$5,'Utility Functions'!$Z$6)","v":0.03},{"$f":"$O$40*valuePL(O22,'Utility Functions'!$AA$3:$AA$5,'Utility Functions'!$AB$3:$AB$5)","v":0.09},{"$f":"$P$40*valuePL(P22,'Utility Functions'!$AC$3:$AC$7,'Utility Functions'!$AD$3:$AD$7)","v":0},{"$f":"$Q$40*valuePL(Q22,'Utility Functions'!$AE$3:$AE$6,'Utility Functions'!$AF$3:$AF$6)","v":4.0000000000000001E-3},{"$f":"$R$40*valuePL(R22,'Utility Functions'!$AG$3:$AG$6,'Utility Functions'!$AH$3:$AH$6)","v":0.05},{"$f":"$S$40*valuePL(S22,'Utility Functions'!$AI$3:$AI$6,'Utility Functions'!$AJ$3:$AJ$6)","v":0.05},{"$f":"$T$40*valuePL(T22,'Utility Functions'!$AK$3:$AK$8,'Utility Functions'!$AL$3:$AL$8)","v":0.03},{"$f":"$U$40*valuePL(U22,'Utility Functions'!$AM$3:$AM$5,'Utility Functions'!$AN$3:$AN$5)","v":7.4999999999999997E-3},{"$f":"$V$40*valuePL(V22,'Utility Functions'!$AO$3:$AO$5,'Utility Functions'!$AP$3:$AP$5)","v":0},{"$f":"$W$40*valuePL(W22,'Utility Functions'!$AQ$3:$AQ$6,'Utility Functions'!$AR$3:$AR$6)","v":0.03},{"$f":"$X$40*valuePL(X22,'Utility Functions'!$AS$3:$AS$6,'Utility Functions'!$AT$3:$AT$6)","v":0.04},{"$f":"$Y$40*valuePL(Y22,'Utility Functions'!$AU$3:$AU$6,'Utility Functions'!$AV$3:$AV$6)","v":1.0000000000000002E-2},{"$f":"$Z$40*valuePL(Z22,'Utility Functions'!$AW$3:$AW$5,'Utility Functions'!$AX$3:$AX$5)","v":0},{"$f":"$AA$40*valuePL(AA22,'Utility Functions'!$AY$3:$AY$6,'Utility Functions'!$AZ$3:$AZ$6)","v":0.04},{"$f":"$AB$40*valuePL(AB22,'Utility Functions'!$BA$3:$BA$5,'Utility Functions'!$BB$3:$BB$5)","v":0.01},{"$f":"$AC$40*valuePL(AC22,'Utility Functions'!$BC$3:$BC$5,'Utility Functions'!$BD$3:$BD$5)","v":0.03},0.42149999999999999,0.42149999999999999]
[22,{"$f":"$B$40*(valueE(B23,'Utility Functions'!$B$3,'Utility Functions'!$B$4,'Utility Functions'!$B$5,'Utility Functions'!$B$6))","v":0},{"$f":"$C$40*(valueE(C23,'Utility Functions'!$D$3,'Utility Functions'!$D$4,'Utility Functions'!$D$5,'Utility Functions'!$D$6))","v":0},{"$f":"$D$40*(valuePL(D23,'Utility Functions'!$E$3:$E$5,'Utility Functions'!$F$3:$F$5))","v":0},{"$f":"$E$40*(valuePL(E23,'Utility Functions'!$G$3:$G$5,'Utility Functions'!$H$3:$H$5))","v":0},{"$f":"$F$40*(valuePL(F23,'Utility Functions'!$I$3:$I$4,'Utility Functions'!$J$3:$J$5))","v":0},{"$f":"$G$40*(valueE(G23,'Utility Functions'!$L$3,'Utility Functions'!$L$4,'Utility Functions'!$L$5,'Utility Functions'!$L$6))","v":1.2903225806451613E-3},{"$f":"$H$40*(valueE(H23,'Utility Functions'!$N$3,'Utility Functions'!$N$4,'Utility Functions'!$N$5,'Utility Functions'!$N$6))","v":9.1081593927893733E-4},{"$f":"$I$40*valuePL(I23,'Utility Functions'!$O$3:$O$6,'Utility Functions'!$P$3:$P$6)","v":0},{"$f":"$J$40*valuePL(J23,'Utility Functions'!$Q$3:$Q$6,'Utility Functions'!$R$3:$R$6)","v":0},{"$f":"$K$40*(valuePL(K23,'Utility Functions'!$S$3:$S$7,'Utility Functions'!$T$3:$T$7))","v":0},{"$f":"$L$40*(valueE(L23,'Utility Functions'!$V$3,'Utility Functions'!$V$4,'Utility Functions'!$V$5,'Utility Functions'!$V$6))","v":0},{"$f":"$M$40*valuePL(M23,'Utility Functions'!$W$3:$W$6,'Utility Functions'!$X$3:$X$6)","v":0},{"$f":"$N$40*valueE(N23,'Utility Functions'!$Z$3,'Utility Functions'!$Z$4,'Utility Functions'!$Z$5,'Utility Functions'!$Z$6)","v":3.7499999999999999E-3},{"$f":"$O$40*valuePL(O23,'Utility Functions'!$AA$3:$AA$5,'Utility Functions'!$AB$3:$AB$5)","v":0.09},{"$f":"$P$40*valuePL(P23,'Utility Functions'!$AC$3:$AC$7,'Utility Functions'!$AD$3:$AD$7)","v":0.04},{"$f":"$Q$40*valuePL(Q23,'Utility Functions'!$AE$3:$AE$6,'Utility Functions'!$AF$3:$AF$6)","v":0.02},{"$f":"$R$40*valuePL(R23,'Utility Functions'!$AG$3:$AG$6,'Utility Functions'!$AH$3:$AH$6)","v":4.0000000000000008E-2},{"$f":"$S$40*valuePL(S23,'Utility Functions'!$AI$3:$AI$6,'Utility Functions'!$AJ$3:$AJ$6)","v":0.05},{"$f":"$T$40*valuePL(T23,'Utility Functions'!$AK$3:$AK$8,'Utility Functions'!$AL$3:$AL$8)","v":0.03},{"$f":"$U$40*valuePL(U23,'Utility Functions'!$AM$3:$AM$5,'Utility Functions'!$AN$3:$AN$5)","v":0},{"$f":"$V$40*valuePL(V23,'Utility Functions'!$AO$3:$AO$5,'Utility Functions'!$AP$3:$AP$5)","v":2.5000000000000001E-2},{"$f":"$W$40*valuePL(W23,'Utility Functions'!$AQ$3:$AQ$6,'Utility Functions'!$AR$3:$AR$6)","v":0.03},{"$f":"$X$40*valuePL(X23,'Utility Functions'!$AS$3:$AS$6,'Utility Functions'!$AT$3:$AT$6)","v":8.0000000000000002E-3},{"$f":"$Y$40*valuePL(Y23,'Utility Functions'!$AU$3:$AU$6,'Utility Functions'!$AV$3:$AV$6)","v":0},{"$f":"$Z$40*valuePL(Z23,'Utility Functions'!$AW$3:$AW$5,'Utility Functions'!$AX$3:$AX$5)","v":0.05},{"$f":"$AA$40*valuePL(AA23,'Utility Functions'!$AY$3:$AY$6,'Utility Functions'!$AZ$3:$AZ$6)","v":8.0000000000000002E-3},{"$f":"$AB$40*valuePL(AB23,'Utility Functions'!$BA$3:$BA$5,'Utility Functions'!$BB$3:$BB$5)","v":0.04},{"$f":"$AC$40*valuePL(AC23,'Utility Functions'!$BC$3:$BC$5,'Utility Functions'!$BD$3:$BD$5)","v":7.4999999999999997E-3},0.44445113851992418,0.44445113851992418]
[23,{"$f":"$B$40*(valueE(B24,'Utility Functions'!$B$3,'Utility Functions'!$B$4,'Utility Functions'!$B$5,'Utility Functions'!$B$6))","v":2.5041071294184137E-2},{"$f":"$C$40*(valueE(C24,'Utility Functions'!$D$3,'Utility Functions'!$D$4,'Utility Functions'!$D$5,'Utility Functions'!$D$6))","v":2.542345105018548E-2},{"$f":"$D$40*(valuePL(D24,'Utility Functions'!$E$3:$E$5,'Utility Functions'!$F$3:$F$5))","v":0.03},{"$f":"$E$40*(valuePL(E24,'Utility Functions'!$G$3:$G$5,'Utility Functions'!$H$3:$H$5))","v":0},{"$f":"$F$40*(valuePL(F24,'Utility Functions'!$I$3:$I$4,'Utility Functions'!$J$3:$J$5))","v":0},{"$f":"$G$40*(valueE(G24,'Utility Functions'!$L$3,'Utility Functions'!$L$4,'Utility Functions'!$L$5,'Utility Functions'!$L$6))","v":0},{"$f":"$H$40*(valueE(H24,'Utility Functions'!$N$3,'Utility Functions'!$N$4,'Utility Functions'!$N$5,'Utility Functions'!$N$6))","v":0},{"$f":"$I$40*valuePL(I24,'Utility Functions'!$O$3:$O$6,'Utility Functions'!$P$3:$P$6)","v":0},{"$f":"$J$40*valuePL(J24,'Utility Functions'!$Q$3:$Q$6,'Utility Functions'!$R$3:$R$6)","v":0},{"$f":"$K$40*(valuePL(K24,'Utility Functions'!$S$3:$S$7,'Utility Functions'!$T$3:$T$7))","v":0},{"$f":"$L$40*(valueE(L24,'Utility Functions'!$V$3,'Utility Functions'!$V$4,'Utility Functions'!$V$5,'Utility Functions'!$V$6))","v":0},{"$f":"$M$40*valuePL(M24,'Utility Functions'!$W$3:$W$6,'Utility Functions'!$X$3:$X$6)","v":0},{"$f":"$N$40*valueE(N24,'Utility Functions'!$Z$3,'Utility Functions'!$Z$4,'Utility Functions'!$Z$5,'Utility Functions'!$Z$6)","v":0},{"$f":"$O$40*valuePL(O24,'Utility Functions'!$AA$3:$AA$5,'Utility Functions'!$AB$3:$AB$5)","v":0},{"$f":"$P$40*valuePL(P24,'Utility Functions'!$AC$3:$AC$7,'Utility Functions'!$AD$3:$AD$7)","v":0.03},{"$f":"$Q$40*valuePL(Q24,'Utility Functions'!$AE$3:$AE$6,'Utility Functions'!$AF$3:$AF$6)","v":0},{"$f":"$R$40*valuePL(R24,'Utility Functions'!$AG$3:$AG$6,'Utility Functions'!$AH$3:$AH$6)","v":0.05},{"$f":"$S$40*valuePL(S24,'Utility Functions'!$AI$3:$AI$6,'Utility Functions'!$AJ$3:$AJ$6)","v":0.05},{"$f":"$T$40*valuePL(T24,'Utility Functions'!$AK$3:$AK$8,'Utility Functions'!$AL$3:$AL$8)","v":0.03},{"$f":"$U$40*valuePL(U24,'Utility Functions'!$AM$3:$AM$5,'Utility Functions'!$AN$3:$AN$5)","v":0},{"$f":"$V$40*valuePL(V24,'Utility Functions'!$AO$3:$AO$5,'Utility Functions'!$AP$3:$AP$5)","v":0.05},{"$f":"$W$40*valuePL(W24,'Utility Functions'!$AQ$3:$AQ$6,'Utility Functions'!$AR$3:$AR$6)","v":8.0000000000000002E-3},{"$f":"$X$40*valuePL(X24,'Utility Functions'!$AS$3:$AS$6,'Utility Functions'!$AT$3:$AT$6)","v":0.03},{"$f":"$Y$40*valuePL(Y24,'Utility Functions'!$AU$3:$AU$6,'Utility Functions'!$AV$3:$AV$6)","v":1.0000000000000002E-2},{"$f":"$Z$40*valuePL(Z24,'Utility Functions'!$AW$3:$AW$5,'Utility Functions'!$AX$3:$AX$5)","v":2.5000000000000001E-2},{"$f":"$AA$40*valuePL(AA24,'Utility Functions'!$AY$3:$AY$6,'Utility Functions'!$AZ$3:$AZ$6)","v":8.0000000000000002E-3},{"$f":"$AB$40*valuePL(AB24,'Utility Functions'!$BA$3:$BA$5,'Utility Functions'!$BB$3:$BB$5)","v":0},{"$f":"$AC$40*valuePL(AC24,'Utility Functions'!$BC$3:$BC$5,'Utility Functions'!$BD$3:$BD$5)","v":7.4999999999999997E-3},0.37896452234436967,0.3772298757446117]
[24,{"$f":"$B$40*(valueE(B25,'Utility Functions'!$B$3,'Utility Functions'!$B$4,'Utility Functions'!$B$5,'Utility Functions'!$B$6))","v":1.896364549751255E-2},{"$f":"$C$40*(valueE(C25,'Utility Functions'!$D$3,'Utility Functions'!$D$4,'Utility Functions'!$D$5,'Utility Functions'!$D$6))","v":1.3942790146123618E-2},{"$f":"$D$40*(valuePL(D25,'Utility Functions'!$E$3:$E$5,'Utility Functions'!$F$3:$F$5))","v":0.03},{"$f":"$E$40*(valuePL(E25,'Utility Functions'!$G$3:$G$5,'Utility Functions'!$H$3:$H$5))","v":0},{"$f":"$F$40*(valuePL(F25,'Utility Functions'!$I$3:$I$4,'Utility Functions'!$J$3:$J$5))","v":0},{"$f":"$G$40*(valueE(G25,'Utility Functions'!$L$3,'Utility Functions'!$L$4,'Utility Functions'!$L$5,'Utility Functions'!$L$6))","v":0},{"$f":"$H$40*(valueE(H25,'Utility Functions'!$N$3,'Utility Functions'!$N$4,'Utility Functions'!$N$5,'Utility Functions'!$N$6))","v":0},{"$f":"$I$40*valuePL(I25,'Utility Functions'!$O$3:$O$6,'Utility Functions'!$P$3:$P$6)","v":0},{"$f":"$J$40*valuePL(J25,'Utility Functions'!$Q$3:$Q$6,'Utility Functions'!$R$3:$R$6)","v":0},{"$f":"$K$40*(valuePL(K25,'Utility Functions'!$S$3:$S$7,'Utility Functions'!$T$3:$T$7))","v":0},{"$f":"$L$40*(valueE(L25,'Utility Functions'!$V$3,'Utility Functions'!$V$4,'Utility Functions'!$V$5,'Utility Functions'!$V$6))","v":0},{"$f":"$M$40*valuePL(M25,'Utility Functions'!$W$3:$W$6,'Utility Functions'!$X$3:$X$6)","v":0},{"$f":"$N$40*valueE(N25,'Utility Functions'!$Z$3,'Utility Functions'!$Z$4,'Utility Functions'!$Z$5,'Utility Functions'!$Z$6)","v":0},{"$f":"$O$40*valuePL(O25,'Utility Functions'!$AA$3:$AA$5,'Utility Functions'!$AB$3:$AB$5)","v":0},{"$f":"$P$40*valuePL(P25,'Utility Functions'!$AC$3:$AC$7,'Utility Functions'!$AD$3:$AD$7)","v":0},{"$f":"$Q$40*valuePL(Q25,'Utility Functions'!$AE$3:$AE$6,'Utility Functions'!$AF$3:$AF$6)","v":0},{"$f":"$R$40*valuePL(R25,'Utility Functions'!$AG$3:$AG$6,'Utility Functions'!$AH$3:$AH$6)","v":0.05},{"$f":"$S$40*valuePL(S25,'Utility Functions'!$AI$3:$AI$6,'Utility Functions'!$AJ$3:$AJ$6)","v":0.05},{"$f":"$T$40*valuePL(T25,'Utility Functions'!$AK$3:$AK$8,'Utility Functions'!$AL$3:$AL$8)","v":0.03},{"$f":"$U$40*valuePL(U25,'Utility Functions'!$AM$3:$AM$5,'Utility Functions'!$AN$3:$AN$5)","v":0},{"$f":"$V$40*valuePL(V25,'Utility Functions'!$AO$3:$AO$5,'Utility Functions'!$AP$3:$AP$5)","v":0},{"$f":"$W$40*valuePL(W25,'Utility Functions'!$AQ$3:$AQ$6,'Utility Functions'!$AR$3:$AR$6)","v":0.04},{"$f":"$X$40*valuePL(X25,'Utility Functions'!$AS$3:$AS$6,'Utility Functions'!$AT$3:$AT$6)","v":8.0000000000000002E-3},{"$f":"$Y$40*valuePL(Y25,'Utility Functions'!$AU$3:$AU$6,'Utility Functions'!$AV$3:$AV$6)","v":0.05},{"$f":"$Z$40*valuePL(Z25,'Utility Functions'!$AW$3:$AW$5,'Utility Functions'!$AX$3:$AX$5)","v":0.05},{"$f":"$AA$40*valuePL(AA25,'Utility Functions'!$AY$3:$AY$6,'Utility Functions'!$AZ$3:$AZ$6)","v":8.0000000000000002E-3},{"$f":"$AB$40*valuePL(AB25,'Utility Functions'!$BA$3:$BA$5,'Utility Functions'!$BB$3:$BB$5)","v":0},{"$f":"$AC$40*valuePL(AC25,'Utility Functions'!$BC$3:$BC$5,'Utility Functions'!$BD$3:$BD$5)","v":0.03},0.37890643564363613,0.37690508369846576]
[25,{"$f":"$B$40*(valueE(B26,'Utility Functions'!$B$3,'Utility Functions'!$B$4,'Utility Functions'!$B$5,'Utility Functions'!$B$6))","v":2.5041071294184137E-2},{"$f":"$C$40*(valueE(C26,'Utility Functions'!$D$3,'Utility Functions'!$D$4,'Utility Functions'!$D$5,'Utility Functions'!$D$6))","v":2.542345105018548E-2},{"$f":"$D$40*(valuePL(D26,'Utility Functions'!$E$3:$E$5,'Utility Functions'!$F$3:$F$5))","v":0.03},{"$f":"$E$40*(valuePL(E26,'Utility Functions'!$G$3:$G$5,'Utility Functions'!$H$3:$H$5))","v":0},{"$f":"$F$40*(valuePL(F26,'Utility Functions'!$I$3:$I$4,'Utility Functions'!$J$3:$J$5))","v":0},{"$f":"$G$40*(valueE(G26,'Utility Functions'!$L$3,'Utility Functions'!$L$4,'Utility Functions'!$L$5,'Utility Functions'!$L$6))","v":1.4193548387096775E-2},{"$f":"$H$40*(valueE(H26,'Utility Functions'!$N$3,'Utility Functions'!$N$4,'Utility Functions'!$N$5,'Utility Functions'!$N$6))","v":4.383301707779886E-3},{"$f":"$I$40*valuePL(I26,'Utility Functions'!$O$3:$O$6,'Utility Functions'!$P$3:$P$6)","v":0},{"$f":"$J$40*valuePL(J26,'Utility Functions'!$Q$3:$Q$6,'Utility Functions'!$R$3:$R$6)","v":0},{"$f":"$K$40*(valuePL(K26,'Utility Functions'!$S$3:$S$7,'Utility Functions'!$T$3:$T$7))","v":0},{"$f":"$L$40*(valueE(L26,'Utility Functions'!$V$3,'Utility Functions'!$V$4,'Utility Functions'!$V$5,'Utility Functions'!$V$6))","v":0},{"$f":"$M$40*valuePL(M26,'Utility Functions'!$W$3:$W$6,'Utility Functions'!$X$3:$X$6)","v":0},{"$f":"$N$40*valueE(N26,'Utility Functions'!$Z$3,'Utility Functions'!$Z$4,'Utility Functions'!$Z$5,'Utility Functions'!$Z$6)","v":0.03},{"$f":"$O$40*valuePL(O26,'Utility Functions'!$AA$3:$AA$5,'Utility Functions'!$AB$3:$AB$5)","v":2.2499999999999999E-2},{"$f":"$P$40*valuePL(P26,'Utility Functions'!$AC$3:$AC$7,'Utility Functions'!$AD$3:$AD$7)","v":0.02},{"$f":"$Q$40*valuePL(Q26,'Utility Functions'!$AE$3:$AE$6,'Utility Functions'!$AF$3:$AF$6)","v":0.02},{"$f":"$R$40*valuePL(R26,'Utility Functions'!$AG$3:$AG$6,'Utility Functions'!$AH$3:$AH$6)","v":0.05},{"$f":"$S$40*valuePL(S26,'Utility Functions'!$AI$3:$AI$6,'Utility Functions'!$AJ$3:$AJ$6)","v":0.05},{"$f":"$T$40*valuePL(T26,'Utility Functions'!$AK$3:$AK$8,'Utility Functions'!$AL$3:$AL$8)","v":0},{"$f":"$U$40*valuePL(U26,'Utility Functions'!$AM$3:$AM$5,'Utility Functions'!$AN$3:$AN$5)","v":0},{"$f":"$V$40*valuePL(V26,'Utility Functions'!$AO$3:$AO$5,'Utility Functions'!$AP$3:$AP$5)","v":0.05},{"$f":"$W$40*valuePL(W26,'Utility Functions'!$AQ$3:$AQ$6,'Utility Functions'!$AR$3:$AR$6)","v":8.0000000000000002E-3},{"$f":"$X$40*valuePL(X26,'Utility Functions'!$AS$3:$AS$6,'Utility Functions'!$AT$3:$AT$6)","v":0.04},{"$f":"$Y$40*valuePL(Y26,'Utility Functions'!$AU$3:$AU$6,'Utility Functions'!$AV$3:$AV$6)","v":4.0000000000000008E-2},{"$f":"$Z$40*valuePL(Z26,'Utility Functions'!$AW$3:$AW$5,'Utility Functions'!$AX$3:$AX$5)","v":2.5000000000000001E-2},{"$f":"$AA$40*valuePL(AA26,'Utility Functions'!$AY$3:$AY$6,'Utility Functions'!$AZ$3:$AZ$6)","v":8.0000000000000002E-3},{"$f":"$AB$40*valuePL(AB26,'Utility Functions'!$BA$3:$BA$5,'Utility Functions'!$BB$3:$BB$5)","v":0.04},{"$f":"$AC$40*valuePL(AC26,'Utility Functions'!$BC$3:$BC$5,'Utility Functions'!$BD$3:$BD$5)","v":0.03},0.53254137243924626,0.53080672583948829]
[26,{"$f":"$B$40*(valueE(B27,'Utility Functions'!$B$3,'Utility Functions'!$B$4,'Utility Functions'!$B$5,'Utility Functions'!$B$6))","v":2.8998845838620748E-2},{"$f":"$C$40*(valueE(C27,'Utility Functions'!$D$3,'Utility Functions'!$D$4,'Utility Functions'!$D$5,'Utility Functions'!$D$6))","v":2.542345105018548E-2},{"$f":"$D$40*(valuePL(D27,'Utility Functions'!$E$3:$E$5,'Utility Functions'!$F$3:$F$5))","v":0.03},{"$f":"$E$40*(valuePL(E27,'Utility Functions'!$G$3:$G$5,'Utility Functions'!$H$3:$H$5))","v":1.4999999999999999E-2},{"$f":"$F$40*(valuePL(F27,'Utility Functions'!$I$3:$I$4,'Utility Functions'!$J$3:$J$5))","v":0},{"$f":"$G$40*(valueE(G27,'Utility Functions'!$L$3,'Utility Functions'!$L$4,'Utility Functions'!$L$5,'Utility Functions'!$L$6))","v":0},{"$f":"$H$40*(valueE(H27,'Utility Functions'!$N$3,'Utility Functions'!$N$4,'Utility Functions'!$N$5,'Utility Functions'!$N$6))","v":0},{"$f":"$I$40*valuePL(I27,'Utility Functions'!$O$3:$O$6,'Utility Functions'!$P$3:$P$6)","v":0},{"$f":"$J$40*valuePL(J27,'Utility Functions'!$Q$3:$Q$6,'Utility Functions'!$R$3:$R$6)","v":0},{"$f":"$K$40*(valuePL(K27,'Utility Functions'!$S$3:$S$7,'Utility Functions'!$T$3:$T$7))","v":0},{"$f":"$L$40*(valueE(L27,'Utility Functions'!$V$3,'Utility Functions'!$V$4,'Utility Functions'!$V$5,'Utility Functions'!$V$6))","v":0},{"$f":"$M$40*valuePL(M27,'Utility Functions'!$W$3:$W$6,'Utility Functions'!$X$3:$X$6)","v":0},{"$f":"$N$40*valueE(N27,'Utility Functions'!$Z$3,'Utility Functions'!$Z$4,'Utility Functions'!$Z$5,'Utility Functions'!$Z$6)","v":0},{"$f":"$O$40*valuePL(O27,'Utility Functions'!$AA$3:$AA$5,'Utility Functions'!$AB$3:$AB$5)","v":0},{"$f":"$P$40*valuePL(P27,'Utility Functions'!$AC$3:$AC$7,'Utility Functions'!$AD$3:$AD$7)","v":0.03},{"$f":"$Q$40*valuePL(Q27,'Utility Functions'!$AE$3:$AE$6,'Utility Functions'!$AF$3:$AF$6)","v":0},{"$f":"$R$40*valuePL(R27,'Utility Functions'!$AG$3:$AG$6,'Utility Functions'!$AH$3:$AH$6)","v":0.05},{"$f":"$S$40*valuePL(S27,'Utility Functions'!$AI$3:$AI$6,'Utility Functions'!$AJ$3:$AJ$6)","v":0.05},{"$f":"$T$40*valuePL(T27,'Utility Functions'!$AK$3:$AK$8,'Utility Functions'!$AL$3:$AL$8)","v":2.4E-2},{"$f":"$U$40*valuePL(U27,'Utility Functions'!$AM$3:$AM$5,'Utility Functions'!$AN$3:$AN$5)","v":0},{"$f":"$V$40*valuePL(V27,'Utility Functions'!$AO$3:$AO$5,'Utility Functions'!$AP$3:$AP$5)","v":0.05},{"$f":"$W$40*valuePL(W27,'Utility Functions'!$AQ$3:$AQ$6,'Utility Functions'!$AR$3:$AR$6)","v":8.0000000000000002E-3},{"$f":"$X$40*valuePL(X27,'Utility Functions'!$AS$3:$AS$6,'Utility Functions'!$AT$3:$AT$6)","v":0},{"$f":"$Y$40*valuePL(Y27,'Utility Functions'!$AU$3:$AU$6,'Utility Functions'!$AV$3:$AV$6)","v":4.0000000000000008E-2},{"$f":"$Z$40*valuePL(Z27,'Utility Functions'!$AW$3:$AW$5,'Utility Functions'!$AX$3:$AX$5)","v":0},{"$f":"$AA$40*valuePL(AA27,'Utility Functions'!$AY$3:$AY$6,'Utility Functions'!$AZ$3:$AZ$6)","v":8.0000000000000002E-3},{"$f":"$AB$40*valuePL(AB27,'Utility Functions'!$BA$3:$BA$5,'Utility Functions'!$BB$3:$BB$5)","v":0.04},{"$f":"$AC$40*valuePL(AC27,'Utility Functions'!$BC$3:$BC$5,'Utility Functions'!$BD$3:$BD$5)","v":0.03},0.42942229688880618,0.4286593560912294]
[27,{"$f":"$B$40*(valueE(B28,'Utility Functions'!$B$3,'Utility Functions'!$B$4,'Utility Functions'!$B$5,'Utility Functions'!$B$6))","v":0},{"$f":"$C$40*(valueE(C28,'Utility Functions'!$D$3,'Utility Functions'!$D$4,'Utility Functions'!$D$5,'Utility Functions'!$D$6))","v":1.3942790146123618E-2},{"$f":"$D$40*(valuePL(D28,'Utility Functions'!$E$3:$E$5,'Utility Functions'!$F$3:$F$5))","v":0.03},{"$f":"$E$40*(valuePL(E28,'Utility Functions'!$G$3:$G$5,'Utility Functions'!$H$3:$H$5))","v":0},{"$f":"$F$40*(valuePL(F28,'Utility Functions'!$I$3:$I$4,'Utility Functions'!$J$3:$J$5))","v":0},{"$f":"$G$40*(valueE(G28,'Utility Functions'!$L$3,'Utility Functions'!$L$4,'Utility Functions'!$L$5,'Utility Functions'!$L$6))","v":0},{"$f":"$H$40*(valueE(H28,'Utility Functions'!$N$3,'Utility Functions'!$N$4,'Utility Functions'!$N$5,'Utility Functions'!$N$6))","v":0},{"$f":"$I$40*valuePL(I28,'Utility Functions'!$O$3:$O$6,'Utility Functions'!$P$3:$P$6)","v":0},{"$f":"$J$40*valuePL(J28,'Utility Functions'!$Q$3:$Q$6,'Utility Functions'!$R$3:$R$6)","v":0},{"$f":"$K$40*(valuePL(K28,'Utility Functions'!$S$3:$S$7,'Utility Functions'!$T$3:$T$7))","v":0.02},{"$f":"$L$40*(valueE(L28,'Utility Functions'!$V$3,'Utility Functions'!$V$4,'Utility Functions'!$V$5,'Utility Functions'!$V$6))","v":0},{"$f":"$M$40*valuePL(M28,'Utility Functions'!$W$3:$W$6,'Utility Functions'!$X$3:$X$6)","v":2E-3},{"$f":"$N$40*valueE(N28,'Utility Functions'!$Z$3,'Utility Functions'!$Z$4,'Utility Functions'!$Z$5,'Utility Functions'!$Z$6)","v":0},{"$f":"$O$40*valuePL(O28,'Utility Functions'!$AA$3:$AA$5,'Utility Functions'!$AB$3:$AB$5)","v":0},{"$f":"$P$40*valuePL(P28,'Utility Functions'!$AC$3:$AC$7,'Utility Functions'!$AD$3:$AD$7)","v":0.02},{"$f":"$Q$40*valuePL(Q28,'Utility Functions'!$AE$3:$AE$6,'Utility Functions'!$AF$3:$AF$6)","v":0.02},{"$f":"$R$40*valuePL(R28,'Utility Functions'!$AG$3:$AG$6,'Utility Functions'!$AH$3:$AH$6)","v":0.05},{"$f":"$S$40*valuePL(S28,'Utility Functions'!$AI$3:$AI$6,'Utility Functions'!$AJ$3:$AJ$6)","v":0.05},{"$f":"$T$40*valuePL(T28,'Utility Functions'!$AK$3:$AK$8,'Utility Functions'!$AL$3:$AL$8)","v":0.03},{"$f":"$U$40*valuePL(U28,'Utility Functions'!$AM$3:$AM$5,'Utility Functions'!$AN$3:$AN$5)","v":0},{"$f":"$V$40*valuePL(V28,'Utility Functions'!$AO$3:$AO$5,'Utility Functions'!$AP$3:$AP$5)","v":2.5000000000000001E-2},{"$f":"$W$40*valuePL(W28,'Utility Functions'!$AQ$3:$AQ$6,'Utility Functions'!$AR$3:$AR$6)","v":0.03},{"$f":"$X$40*valuePL(X28,'Utility Functions'!$AS$3:$AS$6,'Utility Functions'!$AT$3:$AT$6)","v":0.04},{"$f":"$Y$40*valuePL(Y28,'Utility Functions'!$AU$3:$AU$6,'Utility Functions'!$AV$3:$AV$6)","v":1.0000000000000002E-2},{"$f":"$Z$40*valuePL(Z28,'Utility Functions'!$AW$3:$AW$5,'Utility Functions'!$AX$3:$AX$5)","v":0},{"$f":"$AA$40*valuePL(AA28,'Utility Functions'!$AY$3:$AY$6,'Utility Functions'!$AZ$3:$AZ$6)","v":0},{"$f":"$AB$40*valuePL(AB28,'Utility Functions'!$BA$3:$BA$5,'Utility Functions'!$BB$3:$BB$5)","v":0},{"$f":"$AC$40*valuePL(AC28,'Utility Functions'!$BC$3:$BC$5,'Utility Functions'!$BD$3:$BD$5)","v":0},0.34094279014612355,0.34094279014612355]
[{"$f":"A29","v":28},{"$f":"$B$40*(valueE(B29,'Utility Functions'!$B$3,'Utility Functions'!$B$4,'Utility Functions'!$B$5,'Utility Functions'!$B$6))","v":1.3535671425672068E-2},{"$f":"$C$40*(valueE(C29,'Utility Functions'!$D$3,'Utility Functions'!$D$4,'Utility Functions'!$D$5,'Utility Functions'!$D$6))","v":1.3942790146123618E-2},{"$f":"$D$40*(valuePL(D29,'Utility Functions'!$E$3:$E$5,'Utility Functions'!$F$3:$F$5))","v":0.03},{"$f":"$E$40*(valuePL(E29,'Utility Functions'!$G$3:$G$5,'Utility Functions'!$H$3:$H$5))","v":0},{"$f":"$F$40*(valuePL(F29,'Utility Functions'!$I$3:$I$4,'Utility Functions'!$J$3:$J$5))","v":0.04},{"$f":"$G$40*(valueE(G29,'Utility Functions'!$L$3,'Utility Functions'!$L$4,'Utility Functions'!$L$5,'Utility Functions'!$L$6))","v":0},{"$f":"$H$40*(valueE(H29,'Utility Functions'!$N$3,'Utility Functions'!$N$4,'Utility Functions'!$N$5,'Utility Functions'!$N$6))","v":0},{"$f":"$I$40*valuePL(I29,'Utility Functions'!$O$3:$O$6,'Utility Functions'!$P$3:$P$6)","v":0},{"$f":"$J$40*valuePL(J29,'Utility Functions'!$Q$3:$Q$6,'Utility Functions'!$R$3:$R$6)","v":0},{"$f":"$K$40*(valuePL(K29,'Utility Functions'!$S$3:$S$7,'Utility Functions'!$T$3:$T$7))","v":0},{"$f":"$L$40*(valueE(L29,'Utility Functions'!$V$3,'Utility Functions'!$V$4,'Utility Functions'!$V$5,'Utility Functions'!$V$6))","v":6.6666666666666662E-3},{"$f":"$M$40*valuePL(M29,'Utility Functions'!$W$3:$W$6,'Utility Functions'!$X$3:$X$6)","v":2E-3},{"$f":"$N$40*valueE(N29,'Utility Functions'!$Z$3,'Utility Functions'!$Z$4,'Utility Functions'!$Z$5,'Utility Functions'!$Z$6)","v":0},{"$f":"$O$40*valuePL(O29,'Utility Functions'!$AA$3:$AA$5,'Utility Functions'!$AB$3:$AB$5)","v":0},{"$f":"$P$40*valuePL(P29,'Utility Functions'!$AC$3:$AC$7,'Utility Functions'!$AD$3:$AD$7)","v":0.04},{"$f":"$Q$40*valuePL(Q29,'Utility Functions'!$AE$3:$AE$6,'Utility Functions'!$AF$3:$AF$6)","v":0},{"$f":"$R$40*valuePL(R29,'Utility Functions'!$AG$3:$AG$6,'Utility Functions'!$AH$3:$AH$6)","v":0.05},{"$f":"$S$40*valuePL(S29,'Utility Functions'!$AI$3:$AI$6,'Utility Functions'!$AJ$3:$AJ$6)","v":0.05},{"$f":"$T$40*valuePL(T29,'Utility Functions'!$AK$3:$AK$8,'Utility Functions'!$AL$3:$AL$8)","v":2.4E-2},{"$f":"$U$40*valuePL(U29,'Utility Functions'!$AM$3:$AM$5,'Utility Functions'!$AN$3:$AN$5)","v":0},{"$f":"$V$40*valuePL(V29,'Utility Functions'!$AO$3:$AO$5,'Utility Functions'!$AP$3:$AP$5)","v":0.05},{"$f":"$W$40*valuePL(W29,'Utility Functions'!$AQ$3:$AQ$6,'Utility Functions'!$AR$3:$AR$6)","v":0.04},{"$f":"$X$40*valuePL(X29,'Utility Functions'!$AS$3:$AS$6,'Utility Functions'!$AT$3:$AT$6)","v":0.04},{"$f":"$Y$40*valuePL(Y29,'Utility Functions'!$AU$3:$AU$6,'Utility Functions'!$AV$3:$AV$6)","v":1.0000000000000002E-2},{"$f":"$Z$40*valuePL(Z29,'Utility Functions'!$AW$3:$AW$5,'Utility Functions'!$AX$3:$AX$5)","v":0},{"$f":"$AA$40*valuePL(AA29,'Utility Functions'!$AY$3:$AY$6,'Utility Functions'!$AZ$3:$AZ$6)","v":3.5999999999999997E-2},{"$f":"$AB$40*valuePL(AB29,'Utility Functions'!$BA$3:$BA$5,'Utility Functions'!$BB$3:$BB$5)","v":0.04},{"$f":"$AC$40*valuePL(AC29,'Utility Functions'!$BC$3:$BC$5,'Utility Functions'!$BD$3:$BD$5)","v":7.4999999999999997E-3},0.49364512823846229,0.49191370390613232]
[29,{"$f":"$B$40*(valueE(B30,'Utility Functions'!$B$3,'Utility Functions'!$B$4,'Utility Functions'!$B$5,'Utility Functions'!$B$6))","v":2.5041071294184137E-2},{"$f":"$C$40*(valueE(C30,'Utility Functions'!$D$3,'Utility Functions'!$D$4,'Utility Functions'!$D$5,'Utility Functions'!$D$6))","v":2.1405827917278249E-2},{"$f":"$D$40*(valuePL(D30,'Utility Functions'!$E$3:$E$5,'Utility Functions'!$F$3:$F$5))","v":0.03},{"$f":"$E$40*(valuePL(E30,'Utility Functions'!$G$3:$G$5,'Utility Functions'!$H$3:$H$5))","v":1.4999999999999999E-2},{"$f":"$F$40*(valuePL(F30,'Utility Functions'!$I$3:$I$4,'Utility Functions'!$J$3:$J$5))","v":0},{"$f":"$G$40*(valueE(G30,'Utility Functions'!$L$3,'Utility Functions'!$L$4,'Utility Functions'!$L$5,'Utility Functions'!$L$6))","v":0},{"$f":"$H$40*(valueE(H30,'Utility Functions'!$N$3,'Utility Functions'!$N$4,'Utility Functions'!$N$5,'Utility Functions'!$N$6))","v":0},{"$f":"$I$40*valuePL(I30,'Utility Functions'!$O$3:$O$6,'Utility Functions'!$P$3:$P$6)","v":1.8E-3},{"$f":"$J$40*valuePL(J30,'Utility Functions'!$Q$3:$Q$6,'Utility Functions'!$R$3:$R$6)","v":1.3454545454545455E-2},{"$f":"$K$40*(valuePL(K30,'Utility Functions'!$S$3:$S$7,'Utility Functions'!$T$3:$T$7))","v":0},{"$f":"$L$40*(valueE(L30,'Utility Functions'!$V$3,'Utility Functions'!$V$4,'Utility Functions'!$V$5,'Utility Functions'!$V$6))","v":0.02},{"$f":"$M$40*valuePL(M30,'Utility Functions'!$W$3:$W$6,'Utility Functions'!$X$3:$X$6)","v":1.3454545454545455E-2},{"$f":"$N$40*valueE(N30,'Utility Functions'!$Z$3,'Utility Functions'!$Z$4,'Utility Functions'!$Z$5,'Utility Functions'!$Z$6)","v":0},{"$f":"$O$40*valuePL(O30,'Utility Functions'!$AA$3:$AA$5,'Utility Functions'!$AB$3:$AB$5)","v":0},{"$f":"$P$40*valuePL(P30,'Utility Functions'!$AC$3:$AC$7,'Utility Functions'!$AD$3:$AD$7)","v":0.01},{"$f":"$Q$40*valuePL(Q30,'Utility Functions'!$AE$3:$AE$6,'Utility Functions'!$AF$3:$AF$6)","v":0},{"$f":"$R$40*valuePL(R30,'Utility Functions'!$AG$3:$AG$6,'Utility Functions'!$AH$3:$AH$6)","v":0.05},{"$f":"$S$40*valuePL(S30,'Utility Functions'!$AI$3:$AI$6,'Utility Functions'!$AJ$3:$AJ$6)","v":0.05},{"$f":"$T$40*valuePL(T30,'Utility Functions'!$AK$3:$AK$8,'Utility Functions'!$AL$3:$AL$8)","v":2.4E-2},{"$f":"$U$40*valuePL(U30,'Utility Functions'!$AM$3:$AM$5,'Utility Functions'!$AN$3:$AN$5)","v":0},{"$f":"$V$40*valuePL(V30,'Utility Functions'!$AO$3:$AO$5,'Utility Functions'!$AP$3:$AP$5)","v":0.05},{"$f":"$W$40*valuePL(W30,'Utility Functions'!$AQ$3:$AQ$6,'Utility Functions'!$AR$3:$AR$6)","v":8.0000000000000002E-3},{"$f":"$X$40*valuePL(X30,'Utility Functions'!$AS$3:$AS$6,'Utility Functions'!$AT$3:$AT$6)","v":0},{"$f":"$Y$40*valuePL(Y30,'Utility Functions'!$AU$3:$AU$6,'Utility Functions'!$AV$3:$AV$6)","v":4.0000000000000008E-2},{"$f":"$Z$40*valuePL(Z30,'Utility Functions'!$AW$3:$AW$5,'Utility Functions'!$AX$3:$AX$5)","v":2.5000000000000001E-2},{"$f":"$AA$40*valuePL(AA30,'Utility Functions'!$AY$3:$AY$6,'Utility Functions'!$AZ$3:$AZ$6)","v":8.0000000000000002E-3},{"$f":"$AB$40*valuePL(AB30,'Utility Functions'!$BA$3:$BA$5,'Utility Functions'!$BB$3:$BB$5)","v":0.01},{"$f":"$AC$40*valuePL(AC30,'Utility Functions'!$BC$3:$BC$5,'Utility Functions'!$BD$3:$BD$5)","v":0.03},0.4451559901205534,0.44342134352079532]
[30,{"$f":"$B$40*(valueE(B31,'Utility Functions'!$B$3,'Utility Functions'!$B$4,'Utility Functions'!$B$5,'Utility Functions'!$B$6))","v":2.9959234351431094E-2},{"$f":"$C$40*(valueE(C31,'Utility Functions'!$D$3,'Utility Functions'!$D$4,'Utility Functions'!$D$5,'Utility Functions'!$D$6))","v":2.542345105018548E-2},{"$f":"$D$40*(valuePL(D31,'Utility Functions'!$E$3:$E$5,'Utility Functions'!$F$3:$F$5))","v":0.03},{"$f":"$E$40*(valuePL(E31,'Utility Functions'!$G$3:$G$5,'Utility Functions'!$H$3:$H$5))","v":0},{"$f":"$F$40*(valuePL(F31,'Utility Functions'!$I$3:$I$4,'Utility Functions'!$J$3:$J$5))","v":0},{"$f":"$G$40*(valueE(G31,'Utility Functions'!$L$3,'Utility Functions'!$L$4,'Utility Functions'!$L$5,'Utility Functions'!$L$6))","v":0},{"$f":"$H$40*(valueE(H31,'Utility Functions'!$N$3,'Utility Functions'!$N$4,'Utility Functions'!$N$5,'Utility Functions'!$N$6))","v":0},{"$f":"$I$40*valuePL(I31,'Utility Functions'!$O$3:$O$6,'Utility Functions'!$P$3:$P$6)","v":0},{"$f":"$J$40*valuePL(J31,'Utility Functions'!$Q$3:$Q$6,'Utility Functions'!$R$3:$R$6)","v":0},{"$f":"$K$40*(valuePL(K31,'Utility Functions'!$S$3:$S$7,'Utility Functions'!$T$3:$T$7))","v":0},{"$f":"$L$40*(valueE(L31,'Utility Functions'!$V$3,'Utility Functions'!$V$4,'Utility Functions'!$V$5,'Utility Functions'!$V$6))","v":6.6666666666666662E-3},{"$f":"$M$40*valuePL(M31,'Utility Functions'!$W$3:$W$6,'Utility Functions'!$X$3:$X$6)","v":8.0000000000000004E-4},{"$f":"$N$40*valueE(N31,'Utility Functions'!$Z$3,'Utility Functions'!$Z$4,'Utility Functions'!$Z$5,'Utility Functions'!$Z$6)","v":0},{"$f":"$O$40*valuePL(O31,'Utility Functions'!$AA$3:$AA$5,'Utility Functions'!$AB$3:$AB$5)","v":0},{"$f":"$P$40*valuePL(P31,'Utility Functions'!$AC$3:$AC$7,'Utility Functions'!$AD$3:$AD$7)","v":0},{"$f":"$Q$40*valuePL(Q31,'Utility Functions'!$AE$3:$AE$6,'Utility Functions'!$AF$3:$AF$6)","v":0},{"$f":"$R$40*valuePL(R31,'Utility Functions'!$AG$3:$AG$6,'Utility Functions'!$AH$3:$AH$6)","v":1.0000000000000002E-2},{"$f":"$S$40*valuePL(S31,'Utility Functions'!$AI$3:$AI$6,'Utility Functions'!$AJ$3:$AJ$6)","v":1.6500000000000001E-2},{"$f":"$T$40*valuePL(T31,'Utility Functions'!$AK$3:$AK$8,'Utility Functions'!$AL$3:$AL$8)","v":0},{"$f":"$U$40*valuePL(U31,'Utility Functions'!$AM$3:$AM$5,'Utility Functions'!$AN$3:$AN$5)","v":0},{"$f":"$V$40*valuePL(V31,'Utility Functions'!$AO$3:$AO$5,'Utility Functions'!$AP$3:$AP$5)","v":0},{"$f":"$W$40*valuePL(W31,'Utility Functions'!$AQ$3:$AQ$6,'Utility Functions'!$AR$3:$AR$6)","v":0.04},{"$f":"$X$40*valuePL(X31,'Utility Functions'!$AS$3:$AS$6,'Utility Functions'!$AT$3:$AT$6)","v":8.0000000000000002E-3},{"$f":"$Y$40*valuePL(Y31,'Utility Functions'!$AU$3:$AU$6,'Utility Functions'!$AV$3:$AV$6)","v":4.0000000000000008E-2},{"$f":"$Z$40*valuePL(Z31,'Utility Functions'!$AW$3:$AW$5,'Utility Functions'!$AX$3:$AX$5)","v":0},{"$f":"$AA$40*valuePL(AA31,'Utility Functions'!$AY$3:$AY$6,'Utility Functions'!$AZ$3:$AZ$6)","v":3.5999999999999997E-2},{"$f":"$AB$40*valuePL(AB31,'Utility Functions'!$BA$3:$BA$5,'Utility Functions'!$BB$3:$BB$5)","v":0.04},{"$f":"$AC$40*valuePL(AC31,'Utility Functions'!$BC$3:$BC$5,'Utility Functions'!$BD$3:$BD$5)","v":0},0.28334935206828327,0.2832679369768803]
[31,{"$f":"$B$40*(valueE(B32,'Utility Functions'!$B$3,'Utility Functions'!$B$4,'Utility Functions'!$B$5,'Utility Functions'!$B$6))","v":1.6520156106900608E-2},{"$f":"$C$40*(valueE(C32,'Utility Functions'!$D$3,'Utility Functions'!$D$4,'Utility Functions'!$D$5,'Utility Functions'!$D$6))","v":2.542345105018548E-2},{"$f":"$D$40*(valuePL(D32,'Utility Functions'!$E$3:$E$5,'Utility Functions'!$F$3:$F$5))","v":1.4999999999999999E-2},{"$f":"$E$40*(valuePL(E32,'Utility Functions'!$G$3:$G$5,'Utility Functions'!$H$3:$H$5))","v":0},{"$f":"$F$40*(valuePL(F32,'Utility Functions'!$I$3:$I$4,'Utility Functions'!$J$3:$J$5))","v":0},{"$f":"$G$40*(valueE(G32,'Utility Functions'!$L$3,'Utility Functions'!$L$4,'Utility Functions'!$L$5,'Utility Functions'!$L$6))","v":0},{"$f":"$H$40*(valueE(H32,'Utility Functions'!$N$3,'Utility Functions'!$N$4,'Utility Functions'!$N$5,'Utility Functions'!$N$6))","v":0},{"$f":"$I$40*valuePL(I32,'Utility Functions'!$O$3:$O$6,'Utility Functions'!$P$3:$P$6)","v":2.2636363636363635E-2},{"$f":"$J$40*valuePL(J32,'Utility Functions'!$Q$3:$Q$6,'Utility Functions'!$R$3:$R$6)","v":1.6000000000000001E-3},{"$f":"$K$40*(valuePL(K32,'Utility Functions'!$S$3:$S$7,'Utility Functions'!$T$3:$T$7))","v":0},{"$f":"$L$40*(valueE(L32,'Utility Functions'!$V$3,'Utility Functions'!$V$4,'Utility Functions'!$V$5,'Utility Functions'!$V$6))","v":6.6666666666666662E-3},{"$f":"$M$40*valuePL(M32,'Utility Functions'!$W$3:$W$6,'Utility Functions'!$X$3:$X$6)","v":1.6000000000000001E-3},{"$f":"$N$40*valueE(N32,'Utility Functions'!$Z$3,'Utility Functions'!$Z$4,'Utility Functions'!$Z$5,'Utility Functions'!$Z$6)","v":0},{"$f":"$O$40*valuePL(O32,'Utility Functions'!$AA$3:$AA$5,'Utility Functions'!$AB$3:$AB$5)","v":0},{"$f":"$P$40*valuePL(P32,'Utility Functions'!$AC$3:$AC$7,'Utility Functions'!$AD$3:$AD$7)","v":0.02},{"$f":"$Q$40*valuePL(Q32,'Utility Functions'!$AE$3:$AE$6,'Utility Functions'!$AF$3:$AF$6)","v":0},{"$f":"$R$40*valuePL(R32,'Utility Functions'!$AG$3:$AG$6,'Utility Functions'!$AH$3:$AH$6)","v":0.05},{"$f":"$S$40*valuePL(S32,'Utility Functions'!$AI$3:$AI$6,'Utility Functions'!$AJ$3:$AJ$6)","v":3.3000000000000002E-2},{"$f":"$T$40*valuePL(T32,'Utility Functions'!$AK$3:$AK$8,'Utility Functions'!$AL$3:$AL$8)","v":1.7999999999999999E-2},{"$f":"$U$40*valuePL(U32,'Utility Functions'!$AM$3:$AM$5,'Utility Functions'!$AN$3:$AN$5)","v":0},{"$f":"$V$40*valuePL(V32,'Utility Functions'!$AO$3:$AO$5,'Utility Functions'!$AP$3:$AP$5)","v":2.5000000000000001E-2},{"$f":"$W$40*valuePL(W32,'Utility Functions'!$AQ$3:$AQ$6,'Utility Functions'!$AR$3:$AR$6)","v":0},{"$f":"$X$40*valuePL(X32,'Utility Functions'!$AS$3:$AS$6,'Utility Functions'!$AT$3:$AT$6)","v":8.0000000000000002E-3},{"$f":"$Y$40*valuePL(Y32,'Utility Functions'!$AU$3:$AU$6,'Utility Functions'!$AV$3:$AV$6)","v":1.0000000000000002E-2},{"$f":"$Z$40*valuePL(Z32,'Utility Functions'!$AW$3:$AW$5,'Utility Functions'!$AX$3:$AX$5)","v":0.05},{"$f":"$AA$40*valuePL(AA32,'Utility Functions'!$AY$3:$AY$6,'Utility Functions'!$AZ$3:$AZ$6)","v":3.5999999999999997E-2},{"$f":"$AB$40*valuePL(AB32,'Utility Functions'!$BA$3:$BA$5,'Utility Functions'!$BB$3:$BB$5)","v":0.01},{"$f":"$AC$40*valuePL(AC32,'Utility Functions'!$BC$3:$BC$5,'Utility Functions'!$BD$3:$BD$5)","v":7.4999999999999997E-3},0.35694663746011634,0.35502417415981324]
[{"$f":"A33","v":32},{"$f":"$B$40*(valueE(B33,'Utility Functions'!$B$3,'Utility Functions'!$B$4,'Utility Functions'!$B$5,'Utility Functions'!$B$6))","v":1.896364549751255E-2},{"$f":"$C$40*(valueE(C33,'Utility Functions'!$D$3,'Utility Functions'!$D$4,'Utility Functions'!$D$5,'Utility Functions'!$D$6))","v":8.0518966871447988E-3},{"$f":"$D$40*(valuePL(D33,'Utility Functions'!$E$3:$E$5,'Utility Functions'!$F$3:$F$5))","v":0.03},{"$f":"$E$40*(valuePL(E33,'Utility Functions'!$G$3:$G$5,'Utility Functions'!$H$3:$H$5))","v":0.03},{"$f":"$F$40*(valuePL(F33,'Utility Functions'!$I$3:$I$4,'Utility Functions'!$J$3:$J$5))","v":0.04},{"$f":"$G$40*(valueE(G33,'Utility Functions'!$L$3,'Utility Functions'!$L$4,'Utility Functions'!$L$5,'Utility Functions'!$L$6))","v":4.8387096774193543E-4},{"$f":"$H$40*(valueE(H33,'Utility Functions'!$N$3,'Utility Functions'!$N$4,'Utility Functions'!$N$5,'Utility Functions'!$N$6))","v":1.4516129032258063E-3},{"$f":"$I$40*valuePL(I33,'Utility Functions'!$O$3:$O$6,'Utility Functions'!$P$3:$P$6)","v":1.0363636363636363E-2},{"$f":"$J$40*valuePL(J33,'Utility Functions'!$Q$3:$Q$6,'Utility Functions'!$R$3:$R$6)","v":0.02},{"$f":"$K$40*(valuePL(K33,'Utility Functions'!$S$3:$S$7,'Utility Functions'!$T$3:$T$7))","v":6.909090909090909E-3},{"$f":"$L$40*(valueE(L33,'Utility Functions'!$V$3,'Utility Functions'!$V$4,'Utility Functions'!$V$5,'Utility Functions'!$V$6))","v":0.02},{"$f":"$M$40*valuePL(M33,'Utility Functions'!$W$3:$W$6,'Utility Functions'!$X$3:$X$6)","v":0.02},{"$f":"$N$40*valueE(N33,'Utility Functions'!$Z$3,'Utility Functions'!$Z$4,'Utility Functions'!$Z$5,'Utility Functions'!$Z$6)","v":0},{"$f":"$O$40*valuePL(O33,'Utility Functions'!$AA$3:$AA$5,'Utility Functions'!$AB$3:$AB$5)","v":0},{"$f":"$P$40*valuePL(P33,'Utility Functions'!$AC$3:$AC$7,'Utility Functions'!$AD$3:$AD$7)","v":0.02},{"$f":"$Q$40*valuePL(Q33,'Utility Functions'!$AE$3:$AE$6,'Utility Functions'!$AF$3:$AF$6)","v":0.04},{"$f":"$R$40*valuePL(R33,'Utility Functions'!$AG$3:$AG$6,'Utility Functions'!$AH$3:$AH$6)","v":0.05},{"$f":"$S$40*valuePL(S33,'Utility Functions'!$AI$3:$AI$6,'Utility Functions'!$AJ$3:$AJ$6)","v":0},{"$f":"$T$40*valuePL(T33,'Utility Functions'!$AK$3:$AK$8,'Utility Functions'!$AL$3:$AL$8)","v":2.4E-2},{"$f":"$U$40*valuePL(U33,'Utility Functions'!$AM$3:$AM$5,'Utility Functions'!$AN$3:$AN$5)","v":0},{"$f":"$V$40*valuePL(V33,'Utility Functions'!$AO$3:$AO$5,'Utility Functions'!$AP$3:$AP$5)","v":0},{"$f":"$W$40*valuePL(W33,'Utility Functions'!$AQ$3:$AQ$6,'Utility Functions'!$AR$3:$AR$6)","v":0.03},{"$f":"$X$40*valuePL(X33,'Utility Functions'!$AS$3:$AS$6,'Utility Functions'!$AT$3:$AT$6)","v":8.0000000000000002E-3},{"$f":"$Y$40*valuePL(Y33,'Utility Functions'!$AU$3:$AU$6,'Utility Functions'!$AV$3:$AV$6)","v":4.0000000000000008E-2},{"$f":"$Z$40*valuePL(Z33,'Utility Functions'!$AW$3:$AW$5,'Utility Functions'!$AX$3:$AX$5)","v":2.5000000000000001E-2},{"$f":"$AA$40*valuePL(AA33,'Utility Functions'!$AY$3:$AY$6,'Utility Functions'!$AZ$3:$AZ$6)","v":0},{"$f":"$AB$40*valuePL(AB33,'Utility Functions'!$BA$3:$BA$5,'Utility Functions'!$BB$3:$BB$5)","v":0.04},{"$f":"$AC$40*valuePL(AC33,'Utility Functions'!$BC$3:$BC$5,'Utility Functions'!$BD$3:$BD$5)","v":7.4999999999999997E-3},0.49072375332835239,0.48872240138318201]
[33,{"$f":"$B$40*(valueE(B34,'Utility Functions'!$B$3,'Utility Functions'!$B$4,'Utility Functions'!$B$5,'Utility Functions'!$B$6))","v":2.8175740811551258E-2},{"$f":"$C$40*(valueE(C34,'Utility Functions'!$D$3,'Utility Functions'!$D$4,'Utility Functions'!$D$5,'Utility Functions'!$D$6))","v":2.542345105018548E-2},{"$f":"$D$40*(valuePL(D34,'Utility Functions'!$E$3:$E$5,'Utility Functions'!$F$3:$F$5))","v":0.03},{"$f":"$E$40*(valuePL(E34,'Utility Functions'!$G$3:$G$5,'Utility Functions'!$H$3:$H$5))","v":1.4999999999999999E-2},{"$f":"$F$40*(valuePL(F34,'Utility Functions'!$I$3:$I$4,'Utility Functions'!$J$3:$J$5))","v":0},{"$f":"$G$40*(valueE(G34,'Utility Functions'!$L$3,'Utility Functions'!$L$4,'Utility Functions'!$L$5,'Utility Functions'!$L$6))","v":0},{"$f":"$H$40*(valueE(H34,'Utility Functions'!$N$3,'Utility Functions'!$N$4,'Utility Functions'!$N$5,'Utility Functions'!$N$6))","v":0},{"$f":"$I$40*valuePL(I34,'Utility Functions'!$O$3:$O$6,'Utility Functions'!$P$3:$P$6)","v":0},{"$f":"$J$40*valuePL(J34,'Utility Functions'!$Q$3:$Q$6,'Utility Functions'!$R$3:$R$6)","v":0},{"$f":"$K$40*(valuePL(K34,'Utility Functions'!$S$3:$S$7,'Utility Functions'!$T$3:$T$7))","v":0},{"$f":"$L$40*(valueE(L34,'Utility Functions'!$V$3,'Utility Functions'!$V$4,'Utility Functions'!$V$5,'Utility Functions'!$V$6))","v":0.01},{"$f":"$M$40*valuePL(M34,'Utility Functions'!$W$3:$W$6,'Utility Functions'!$X$3:$X$6)","v":0},{"$f":"$N$40*valueE(N34,'Utility Functions'!$Z$3,'Utility Functions'!$Z$4,'Utility Functions'!$Z$5,'Utility Functions'!$Z$6)","v":0},{"$f":"$O$40*valuePL(O34,'Utility Functions'!$AA$3:$AA$5,'Utility Functions'!$AB$3:$AB$5)","v":0},{"$f":"$P$40*valuePL(P34,'Utility Functions'!$AC$3:$AC$7,'Utility Functions'!$AD$3:$AD$7)","v":0.02},{"$f":"$Q$40*valuePL(Q34,'Utility Functions'!$AE$3:$AE$6,'Utility Functions'!$AF$3:$AF$6)","v":0},{"$f":"$R$40*valuePL(R34,'Utility Functions'!$AG$3:$AG$6,'Utility Functions'!$AH$3:$AH$6)","v":0.05},{"$f":"$S$40*valuePL(S34,'Utility Functions'!$AI$3:$AI$6,'Utility Functions'!$AJ$3:$AJ$6)","v":3.3000000000000002E-2},{"$f":"$T$40*valuePL(T34,'Utility Functions'!$AK$3:$AK$8,'Utility Functions'!$AL$3:$AL$8)","v":0},{"$f":"$U$40*valuePL(U34,'Utility Functions'!$AM$3:$AM$5,'Utility Functions'!$AN$3:$AN$5)","v":0},{"$f":"$V$40*valuePL(V34,'Utility Functions'!$AO$3:$AO$5,'Utility Functions'!$AP$3:$AP$5)","v":2.5000000000000001E-2},{"$f":"$W$40*valuePL(W34,'Utility Functions'!$AQ$3:$AQ$6,'Utility Functions'!$AR$3:$AR$6)","v":0.04},{"$f":"$X$40*valuePL(X34,'Utility Functions'!$AS$3:$AS$6,'Utility Functions'!$AT$3:$AT$6)","v":0},{"$f":"$Y$40*valuePL(Y34,'Utility Functions'!$AU$3:$AU$6,'Utility Functions'!$AV$3:$AV$6)","v":4.0000000000000008E-2},{"$f":"$Z$40*valuePL(Z34,'Utility Functions'!$AW$3:$AW$5,'Utility Functions'!$AX$3:$AX$5)","v":0.05},{"$f":"$AA$40*valuePL(AA34,'Utility Functions'!$AY$3:$AY$6,'Utility Functions'!$AZ$3:$AZ$6)","v":0.04},{"$f":"$AB$40*valuePL(AB34,'Utility Functions'!$BA$3:$BA$5,'Utility Functions'!$BB$3:$BB$5)","v":0},{"$f":"$AC$40*valuePL(AC34,'Utility Functions'!$BC$3:$BC$5,'Utility Functions'!$BD$3:$BD$5)","v":0},0.40659919186173665,0.40551467502143035]
[34,{"$f":"$B$40*(valueE(B35,'Utility Functions'!$B$3,'Utility Functions'!$B$4,'Utility Functions'!$B$5,'Utility Functions'!$B$6))","v":0},{"$f":"$C$40*(valueE(C35,'Utility Functions'!$D$3,'Utility Functions'!$D$4,'Utility Functions'!$D$5,'Utility Functions'!$D$6))","v":0},{"$f":"$D$40*(valuePL(D35,'Utility Functions'!$E$3:$E$5,'Utility Functions'!$F$3:$F$5))","v":0},{"$f":"$E$40*(valuePL(E35,'Utility Functions'!$G$3:$G$5,'Utility Functions'!$H$3:$H$5))","v":0},{"$f":"$F$40*(valuePL(F35,'Utility Functions'!$I$3:$I$4,'Utility Functions'!$J$3:$J$5))","v":0},{"$f":"$G$40*(valueE(G35,'Utility Functions'!$L$3,'Utility Functions'!$L$4,'Utility Functions'!$L$5,'Utility Functions'!$L$6))","v":0},{"$f":"$H$40*(valueE(H35,'Utility Functions'!$N$3,'Utility Functions'!$N$4,'Utility Functions'!$N$5,'Utility Functions'!$N$6))","v":1.7077798861480075E-4},{"$f":"$I$40*valuePL(I35,'Utility Functions'!$O$3:$O$6,'Utility Functions'!$P$3:$P$6)","v":0.03},{"$f":"$J$40*valuePL(J35,'Utility Functions'!$Q$3:$Q$6,'Utility Functions'!$R$3:$R$6)","v":1.8363636363636363E-2},{"$f":"$K$40*(valuePL(K35,'Utility Functions'!$S$3:$S$7,'Utility Functions'!$T$3:$T$7))","v":0.02},{"$f":"$L$40*(valueE(L35,'Utility Functions'!$V$3,'Utility Functions'!$V$4,'Utility Functions'!$V$5,'Utility Functions'!$V$6))","v":0.02},{"$f":"$M$40*valuePL(M35,'Utility Functions'!$W$3:$W$6,'Utility Functions'!$X$3:$X$6)","v":1.8363636363636363E-2},{"$f":"$N$40*valueE(N35,'Utility Functions'!$Z$3,'Utility Functions'!$Z$4,'Utility Functions'!$Z$5,'Utility Functions'!$Z$6)","v":0},{"$f":"$O$40*valuePL(O35,'Utility Functions'!$AA$3:$AA$5,'Utility Functions'!$AB$3:$AB$5)","v":0},{"$f":"$P$40*valuePL(P35,'Utility Functions'!$AC$3:$AC$7,'Utility Functions'!$AD$3:$AD$7)","v":0.02},{"$f":"$Q$40*valuePL(Q35,'Utility Functions'!$AE$3:$AE$6,'Utility Functions'!$AF$3:$AF$6)","v":0},{"$f":"$R$40*valuePL(R35,'Utility Functions'!$AG$3:$AG$6,'Utility Functions'!$AH$3:$AH$6)","v":0.05},{"$f":"$S$40*valuePL(S35,'Utility Functions'!$AI$3:$AI$6,'Utility Functions'!$AJ$3:$AJ$6)","v":0.05},{"$f":"$T$40*valuePL(T35,'Utility Functions'!$AK$3:$AK$8,'Utility Functions'!$AL$3:$AL$8)","v":2.4E-2},{"$f":"$U$40*valuePL(U35,'Utility Functions'!$AM$3:$AM$5,'Utility Functions'!$AN$3:$AN$5)","v":0},{"$f":"$V$40*valuePL(V35,'Utility Functions'!$AO$3:$AO$5,'Utility Functions'!$AP$3:$AP$5)","v":0.05},{"$f":"$W$40*valuePL(W35,'Utility Functions'!$AQ$3:$AQ$6,'Utility Functions'!$AR$3:$AR$6)","v":0.04},{"$f":"$X$40*valuePL(X35,'Utility Functions'!$AS$3:$AS$6,'Utility Functions'!$AT$3:$AT$6)","v":0.04},{"$f":"$Y$40*valuePL(Y35,'Utility Functions'!$AU$3:$AU$6,'Utility Functions'!$AV$3:$AV$6)","v":0},{"$f":"$Z$40*valuePL(Z35,'Utility Functions'!$AW$3:$AW$5,'Utility Functions'!$AX$3:$AX$5)","v":0.05},{"$f":"$AA$40*valuePL(AA35,'Utility Functions'!$AY$3:$AY$6,'Utility Functions'!$AZ$3:$AZ$6)","v":3.5999999999999997E-2},{"$f":"$AB$40*valuePL(AB35,'Utility Functions'!$BA$3:$BA$5,'Utility Functions'!$BB$3:$BB$5)","v":0.01},{"$f":"$AC$40*valuePL(AC35,'Utility Functions'!$BC$3:$BC$5,'Utility Functions'!$BD$3:$BD$5)","v":0},0.47689805071588748,0.47689805071588748]
[35,{"$f":"$B$40*(valueE(B36,'Utility Functions'!$B$3,'Utility Functions'!$B$4,'Utility Functions'!$B$5,'Utility Functions'!$B$6))","v":2.3943140737469053E-2},{"$f":"$C$40*(valueE(C36,'Utility Functions'!$D$3,'Utility Functions'!$D$4,'Utility Functions'!$D$5,'Utility Functions'!$D$6))","v":1.8281994940530583E-2},{"$f":"$D$40*(valuePL(D36,'Utility Functions'!$E$3:$E$5,'Utility Functions'!$F$3:$F$5))","v":1.4999999999999999E-2},{"$f":"$E$40*(valuePL(E36,'Utility Functions'!$G$3:$G$5,'Utility Functions'!$H$3:$H$5))","v":1.4999999999999999E-2},{"$f":"$F$40*(valuePL(F36,'Utility Functions'!$I$3:$I$4,'Utility Functions'!$J$3:$J$5))","v":0.04},{"$f":"$G$40*(valueE(G36,'Utility Functions'!$L$3,'Utility Functions'!$L$4,'Utility Functions'!$L$5,'Utility Functions'!$L$6))","v":0},{"$f":"$H$40*(valueE(H36,'Utility Functions'!$N$3,'Utility Functions'!$N$4,'Utility Functions'!$N$5,'Utility Functions'!$N$6))","v":0},{"$f":"$I$40*valuePL(I36,'Utility Functions'!$O$3:$O$6,'Utility Functions'!$P$3:$P$6)","v":0},{"$f":"$J$40*valuePL(J36,'Utility Functions'!$Q$3:$Q$6,'Utility Functions'!$R$3:$R$6)","v":0},{"$f":"$K$40*(valuePL(K36,'Utility Functions'!$S$3:$S$7,'Utility Functions'!$T$3:$T$7))","v":0.02},{"$f":"$L$40*(valueE(L36,'Utility Functions'!$V$3,'Utility Functions'!$V$4,'Utility Functions'!$V$5,'Utility Functions'!$V$6))","v":1.3333333333333332E-2},{"$f":"$M$40*valuePL(M36,'Utility Functions'!$W$3:$W$6,'Utility Functions'!$X$3:$X$6)","v":2E-3},{"$f":"$N$40*valueE(N36,'Utility Functions'!$Z$3,'Utility Functions'!$Z$4,'Utility Functions'!$Z$5,'Utility Functions'!$Z$6)","v":0.03},{"$f":"$O$40*valuePL(O36,'Utility Functions'!$AA$3:$AA$5,'Utility Functions'!$AB$3:$AB$5)","v":0},{"$f":"$P$40*valuePL(P36,'Utility Functions'!$AC$3:$AC$7,'Utility Functions'!$AD$3:$AD$7)","v":0},{"$f":"$Q$40*valuePL(Q36,'Utility Functions'!$AE$3:$AE$6,'Utility Functions'!$AF$3:$AF$6)","v":0},{"$f":"$R$40*valuePL(R36,'Utility Functions'!$AG$3:$AG$6,'Utility Functions'!$AH$3:$AH$6)","v":0.05},{"$f":"$S$40*valuePL(S36,'Utility Functions'!$AI$3:$AI$6,'Utility Functions'!$AJ$3:$AJ$6)","v":0.05},{"$f":"$T$40*valuePL(T36,'Utility Functions'!$AK$3:$AK$8,'Utility Functions'!$AL$3:$AL$8)","v":1.7999999999999999E-2},{"$f":"$U$40*valuePL(U36,'Utility Functions'!$AM$3:$AM$5,'Utility Functions'!$AN$3:$AN$5)","v":0},{"$f":"$V$40*valuePL(V36,'Utility Functions'!$AO$3:$AO$5,'Utility Functions'!$AP$3:$AP$5)","v":0.05},{"$f":"$W$40*valuePL(W36,'Utility Functions'!$AQ$3:$AQ$6,'Utility Functions'!$AR$3:$AR$6)","v":0.03},{"$f":"$X$40*valuePL(X36,'Utility Functions'!$AS$3:$AS$6,'Utility Functions'!$AT$3:$AT$6)","v":0},{"$f":"$Y$40*valuePL(Y36,'Utility Functions'!$AU$3:$AU$6,'Utility Functions'!$AV$3:$AV$6)","v":1.0000000000000002E-2},{"$f":"$Z$40*valuePL(Z36,'Utility Functions'!$AW$3:$AW$5,'Utility Functions'!$AX$3:$AX$5)","v":0.05},{"$f":"$AA$40*valuePL(AA36,'Utility Functions'!$AY$3:$AY$6,'Utility Functions'!$AZ$3:$AZ$6)","v":0},{"$f":"$AB$40*valuePL(AB36,'Utility Functions'!$BA$3:$BA$5,'Utility Functions'!$BB$3:$BB$5)","v":0.01},{"$f":"$AC$40*valuePL(AC36,'Utility Functions'!$BC$3:$BC$5,'Utility Functions'!$BD$3:$BD$5)","v":7.4999999999999997E-3},0.45305846901133295,0.45120772646574747,null,"management","status","ecol_proc","integration","rigor"]
["Portfolio total",{"$f":"SUMPRODUCT($B$82:$B$116,B$43:B$77)","v":6.8639037655920915E-2},{"$f":"SUMPRODUCT($B$82:$B$116,C$43:C$77)","v":6.1633508016231575E-2},0.09,1.4999999999999999E-2,0,0,5.9772296015180265E-4,2.5145454545454547E-2,1.6000000000000001E-3,6.5818181818181817E-3,0.03,8.0000000000000004E-4,7.4999999999999997E-2,6.7500000000000004E-2,0.04,6.4000000000000001E-2,0.2,0.18300000000000002,5.3999999999999999E-2,2.2499999999999999E-2,0.15,0.15,9.6000000000000002E-2,0.17,0.17499999999999999,9.1999999999999998E-2,9.9999999999999992E-2,4.4999999999999998E-2,1.9839975413595772,1.979139818673382,null,{"$f":"SUM(B78:F78)","v":0.2352725456721525},{"$f":"SUM(G78:M78)","v":6.4724995687424527E-2},{"$f":"SUM(N78:O78)","v":0.14250000000000002},{"$f":"SUM(P78:U78)","v":0.56350000000000011},{"$f":"SUM(V78:AC78)","v":0.97800000000000009}]
[]
[]
[null,"Decision variable","Benefit","Cost"]
[{"$f":"A2","v":1},0,{"$f":"AD43","v":0.62852931598576234},{"$f":"AD2","v":700000}]
[{"$f":"A3","v":2},0,{"$f":"AD44","v":0.53424877401727988},{"$f":"AD3","v":5400000}]
[3,1,0.45890624332907692,250000]
[4,0,0.37738087579326757,150000]
[5,1,0.37358983775406607,220000]
[6,0,0.21762541381415162,110000]
[7,0,0.55883167443779502,1000000]
[8,0,0.52659366793040296,5000000]
[9,0,0.45837563615750632,25000]
[10,0,0.42049999999999998,900000]
[11,0,0.48800366568914949,1500000]
[12,0,0.38158740731015961,100000]
[13,1,0.30547532344316031,250000]
[14,0,0.4311611991122532,500000]
[15,0,0.60971431784243146,800000]
[16,0,0.54339393939393943,2000000]
[17,0,0.40209196138985603,500000]
[{"$f":"A19","v":18},1,0.43942694497153706,300000]
[19,0,0.41549503742461386,750000]
[20,0,0.55885300951154004,1500000]
[21,0,0.42149999999999999,900000]
[22,0,0.44445113851992418,750000]
[23,0,0.37896452234436967,1000000]
[24,0,0.37890643564363613,150000]
[25,0,0.53254137243924626,250000]
[26,0,0.42942229688880618,500000]
[27,0,0.34094279014612355,1200000]
[28,0,0.49364512823846229,500000]
[{"$f":"A30","v":29},0,0.4451559901205534,2000000]
[30,0,0.28334935206828327,250000]
[31,0,0.35694663746011634,650000]
[32,0,0.49072375332835239,200000]
[{"$f":"A34","v":33},1,0.40659919186173665,400000]
[34,0,0.47689805071588748,900000]
[{"$f":"A36","v":35},0,0.45305846901133295,900000]
[null,5,{"$f":"SUMPRODUCT(B82:B116,C82:C116)","v":1.9839975413595772},{"$f":"SUMPRODUCT(B82:B116,D82:D116)","v":1420000}]
[]
[null,null,"Cost constraint",15000000]

{"sheet":"Portfolio_E","index":9,"n_rows":119,"n_cols":37,"rows_kept":119,"cut":false,"hidden":false,"merged":[]}
["Project","manage_species","manage_spatial","manage_uncertainty","manage_currentpractices","manage_adaptivemanagement","pop_a","pop_b","pop_spatialscope","pop_temporalscope","hab_quantity","hab_quality","hab_temporal","ecoprocess_spp","ecoprocess_uncertainty","datasharing","broaderimpacts","exisitingpriorities","partners","leverage","alignment","objhyp","response","targettaxa","surveydesign","stats","datamanagement","budget","timeline","cost"]
[1,9,6.25,2,2,0,186,1054,75,5,0,2,0,0,0,4,0,2,3,0,0,2,3,3,3,2,3,2,2,700000]
[2,3,28.2,1,0,0,0,0,0,0,0,2,0,4,1,0,0,3,3,0,0,2,3,3,3,2,3,2,2,5400000]
[3,8,28.2,2,0,0,0,0,0,0,0,2,0,5,1,0,2,0,0,0,1,2,3,3,3,2,1,2,2,250000]
[4,1,6.25,2,0,0,0,0,0,0,0,2,0,4,1,0,1,3,3,4,0,1,3,3,1,0,0,2,1,150000]
[5,4,3.1,2,0,0,0,0,50,2,0,2,0,0,0,0,1,3,3,4,1,0,3,3,2,0,0,2,1,220000]
[6,10,6.2E-2,2,0,0,0,0,10,2,0,2,0,0,0,0,1,0,3,3,0,0,0,3,0,0,0,2,1,110000]
[7,52,18.8,0,2,0,0,0,85,12,85,8,12,8,1,0,0,3,3,0,0,2,0,1,3,2,2,0,2,1000000]
[8,3,18.8,2,1,1,0,0,14,14,14,8,14,0,0,0,3,1,3,0,0,2,3,3,3,2,0,1,1,5000000]
[9,9,15.6,2,1,0,70,140,0,0,0,2,0,0,0,3,0,3,2,1,0,2,3,3,1,2,1,1,2,25000]
[10,0,0,0,0,0,0,0,0,0,0,2,0,6,2,1,2,3,2,2,0,0,2,3,3,1,1,0,2,900000]
[11,0,0,0,0,0,6,102,52,15,52,8,15,3,1,1,0,3,3,2,2,2,1,3,3,1,2,0,1,1500000]
[12,2,15.6,2,1,0,0,0,0,0,0,2,0,0,0,0,1,3,3,3,0,1,1,3,1,2,1,2,0,100000]
[13,0,0,0,0,0,0,12,39,2,39,8,2,7,1,1,0,3,3,0,0,1,0,1,0,2,1,1,1,250000]
[14,6,15.6,1,1,0,0,0,0,0,0,2,0,6,1,1,0,3,3,0,0,1,1,3,3,1,2,1,1,500000]
[15,23,12.5,2,1,1,0,0,23,3,23,8,3,1,2,2,0,2,3,3,2,0,3,1,1,2,3,2,1,800000]
[16,0,0,0,0,0,0,0,100,15,100,7,15,0,0,3,0,3,3,5,0,2,2,2,1,2,3,2,2,2000000]
[17,2,15.6,2,1,1,58,290,0,0,0,8,3,0,0,0,0,3,2,0,0,2,3,1,0,1,0,2,1,500000]
[18,0,0,0,0,0,0,30,0,0,0,2,0,8,1,1,3,3,3,5,1,2,2,1,2,1,2,1,0,300000]
[19,8,3.125,1,2,0,0,0,0,0,0,2,0,8,2,0,0,2,3,0,0,1,1,3,2,0,1,0,1,750000]
[20,9,15.6,1,2,0,0,435,76,10,76,6,10,8,2,1,0,3,3,3,2,1,0,0,1,2,1,0,1,1500000]
[21,0,0,0,0,0,0,0,0,0,0,2,0,8,2,0,1,3,3,5,1,0,2,3,1,0,3,1,2,900000]
[22,0,0,0,0,0,16,64,0,0,0,2,0,1,2,4,2,2,3,5,0,1,2,1,0,2,1,2,1,750000]
[23,9,18.8,2,0,0,0,0,0,0,0,2,0,0,0,3,0,3,3,5,0,2,1,2,1,1,1,0,1,1000000]
[24,5,6.25,2,0,0,0,0,0,0,0,2,0,0,0,0,0,3,3,5,0,0,3,1,3,2,1,0,2,150000]
[25,9,18.8,2,0,0,176,308,0,0,0,2,0,8,1,2,2,3,3,0,0,2,1,3,2,1,1,2,2,250000]
[26,17,18.8,2,1,0,0,0,0,0,0,2,0,0,0,3,0,3,3,4,0,2,1,0,2,0,1,2,2,500000]
[27,0,6.25,2,0,0,0,0,0,0,80,2,5,0,0,2,2,3,3,5,0,1,2,3,1,0,0,0,0,1200000]
[28,3,6.25,2,0,1,0,0,0,0,0,4,5,0,0,4,0,3,3,4,0,2,3,3,1,0,2,2,1,500000]
[29,9,12.5,2,1,0,0,0,15,12,15,8,12,0,0,1,0,3,3,4,0,2,1,0,2,1,1,1,2,2000000]
[30,33,18.8,2,0,0,0,0,0,0,0,4,2,0,0,0,0,1,1,0,0,0,3,1,2,0,2,2,0,250000]
[31,4,18.8,1,0,0,0,0,65,4,0,4,4,0,0,2,0,3,2,3,0,1,0,1,1,2,2,1,1,650000]
[32,5,3.125,2,2,1,6,102,40,16,40,8,16,0,0,2,3,3,0,4,0,0,2,1,2,1,0,2,1,200000]
[33,14,18.8,2,1,0,0,0,0,0,0,5,0,0,0,2,0,3,2,0,0,1,3,0,2,2,3,0,0,400000]
[34,0,0,0,0,0,0,12,100,15,100,8,15,0,0,2,0,3,3,4,0,2,3,3,0,2,2,1,0,900000]
[35,8,9.4,1,1,1,0,0,0,0,100,6,5,8,0,0,0,3,3,3,0,2,2,0,1,2,0,1,1,900000]
[null,{"$f":"SUM(B2:B36)","v":265},{"$f":"SUM(C2:C36)","v":359.86200000000002},46,20,6,518,2549,744,127,724,146,138,93,21,45,24,91,92,86,10,44,66,68,57,43,47,42,41]
[null,{"$f":"B1","v":"manage_species"},{"$f":"C1","v":"manage_spatial"},"manage_uncertainty","manage_currentpractices","manage_adaptivemanagement","pop_a","pop_b","pop_spatialscope","pop_temporalscope","hab_quantity","hab_quality","hab_temporal","ecoprocess_spp","ecoprocess_uncertainty","datasharing","broaderimpacts","exisitingpriorities","partners","leverage","alignment","objhyp","response","targettaxa","surveydesign","stats","datamanagement","budget","timeline"]
[null,"Metric 1","Metric 2","Metric 3","Metric 4","Metric 5","Metric 6a","Metric 6b","Metric 7","Metric 8","Metric 9","Metric 10","Metric 11","Metric 12","Metric 13","Metric 14","Metric 15","Metric 16","Metric 17","Metric 18","Metric 19","Metric 20","Metric 21","Metric 22","Metric 23","Metric 24","Metric 25","Metric 26","Metric 27"]
["Weights",0.03,0.03,0.03,0.03,0.04,1.4999999999999999E-2,1.4999999999999999E-2,0.03,0.02,0.02,0.02,0.02,0.03,0.09,0.04,0.04,0.05,0.05,0.03,0.03,0.05,0.04,0.04,0.05,0.05,0.04,0.04,0.03]
[]
["Project",null,null,null,null,null,null,null,null,null,null,null,null,null,null,null,null,null,null,null,null,null,null,null,null,null,null,null,null,"total","sdm_tool_excel"]
[{"$f":"A2","v":1},{"$f":"$B$40*(valueE(B2,'Utility Functions'!$B$3,'Utility Functions'!$B$4,'Utility Functions'!$B$5,'Utility Functions'!$B$6))","v":2.5041071294184137E-2},{"$f":"$C$40*(valueE(C2,'Utility Functions'!$D$3,'Utility Functions'!$D$4,'Utility Functions'!$D$5,'Utility Functions'!$D$6))","v":1.3942790146123618E-2},{"$f":"$D$40*(valuePL(D2,'Utility Functions'!$E$3:$E$5,'Utility Functions'!$F$3:$F$5))","v":0.03},{"$f":"$E$40*(valuePL(E2,'Utility Functions'!$G$3:$G$5,'Utility Functions'!$H$3:$H$5))","v":0.03},{"$f":"$F$40*(valuePL(F2,'Utility Functions'!$I$3:$I$4,'Utility Functions'!$J$3:$J$5))","v":0},{"$f":"$G$40*(valueE(G2,'Utility Functions'!$L$3,'Utility Functions'!$L$4,'Utility Functions'!$L$5,'Utility Functions'!$L$6))","v":1.4999999999999999E-2},{"$f":"$H$40*(valueE(H2,'Utility Functions'!$N$3,'Utility Functions'!$N$4,'Utility Functions'!$N$5,'Utility Functions'!$N$6))","v":1.4999999999999999E-2},{"$f":"$I$40*valuePL(I2,'Utility Functions'!$O$3:$O$6,'Utility Functions'!$P$3:$P$6)","v":2.7545454545454547E-2},{"$f":"$J$40*valuePL(J2,'Utility Functions'!$Q$3:$Q$6,'Utility Functions'!$R$3:$R$6)","v":2E-3},{"$f":"$K$40*(valuePL(K2,'Utility Functions'!$S$3:$S$7,'Utility Functions'!$T$3:$T$7))","v":0},{"$f":"$L$40*(valueE(L2,'Utility Functions'!$V$3,'Utility Functions'!$V$4,'Utility Functions'!$V$5,'Utility Functions'!$V$6))","v":0},{"$f":"$M$40*valuePL(M2,'Utility Functions'!$W$3:$W$6,'Utility Functions'!$X$3:$X$6)","v":0},{"$f":"$N$40*valueE(N2,'Utility Functions'!$Z$3,'Utility Functions'!$Z$4,'Utility Functions'!$Z$5,'Utility Functions'!$Z$6)","v":0},{"$f":"$O$40*valuePL(O2,'Utility Functions'!$AA$3:$AA$5,'Utility Functions'!$AB$3:$AB$5)","v":0},{"$f":"$P$40*valuePL(P2,'Utility Functions'!$AC$3:$AC$7,'Utility Functions'!$AD$3:$AD$7)","v":0.04},{"$f":"$Q$40*valuePL(Q2,'Utility Functions'!$AE$3:$AE$6,'Utility Functions'!$AF$3:$AF$6)","v":0},{"$f":"$R$40*valuePL(R2,'Utility Functions'!$AG$3:$AG$6,'Utility Functions'!$AH$3:$AH$6)","v":4.0000000000000008E-2},{"$f":"$S$40*valuePL(S2,'Utility Functions'!$AI$3:$AI$6,'Utility Functions'!$AJ$3:$AJ$6)","v":0.05},{"$f":"$T$40*valuePL(T2,'Utility Functions'!$AK$3:$AK$8,'Utility Functions'!$AL$3:$AL$8)","v":0},{"$f":"$U$40*valuePL(U2,'Utility Functions'!$AM$3:$AM$5,'Utility Functions'!$AN$3:$AN$5)","v":0},{"$f":"$V$40*valuePL(V2,'Utility Functions'!$AO$3:$AO$5,'Utility Functions'!$AP$3:$AP$5)","v":0.05},{"$f":"$W$40*valuePL(W2,'Utility Functions'!$AQ$3:$AQ$6,'Utility Functions'!$AR$3:$AR$6)","v":0.04},{"$f":"$X$40*valuePL(X2,'Utility Functions'!$AS$3:$AS$6,'Utility Functions'!$AT$3:$AT$6)","v":0.04},{"$f":"$Y$40*valuePL(Y2,'Utility Functions'!$AU$3:$AU$6,'Utility Functions'!$AV$3:$AV$6)","v":0.05},{"$f":"$Z$40*valuePL(Z2,'Utility Functions'!$AW$3:$AW$5,'Utility Functions'!$AX$3:$AX$5)","v":0.05},{"$f":"$AA$40*valuePL(AA2,'Utility Functions'!$AY$3:$AY$6,'Utility Functions'!$AZ$3:$AZ$6)","v":0.04},{"$f":"$AB$40*valuePL(AB2,'Utility Functions'!$BA$3:$BA$5,'Utility Functions'!$BB$3:$BB$5)","v":0.04},{"$f":"$AC$40*valuePL(AC2,'Utility Functions'!$BC$3:$BC$5,'Utility Functions'!$BD$3:$BD$5)","v":0.03},{"$f":"SUM(B43:AC43)","v":0.62852931598576234},0.62679466938600437]
[{"$f":"A3","v":2},{"$f":"$B$40*(valueE(B3,'Utility Functions'!$B$3,'Utility Functions'!$B$4,'Utility Functions'!$B$5,'Utility Functions'!$B$6))","v":1.3535671425672068E-2},{"$f":"$C$40*(valueE(C3,'Utility Functions'!$D$3,'Utility Functions'!$D$4,'Utility Functions'!$D$5,'Utility Functions'!$D$6))","v":2.8213102591607857E-2},{"$f":"$D$40*(valuePL(D3,'Utility Functions'!$E$3:$E$5,'Utility Functions'!$F$3:$F$5))","v":1.4999999999999999E-2},{"$f":"$E$40*(valuePL(E3,'Utility Functions'!$G$3:$G$5,'Utility Functions'!$H$3:$H$5))","v":0},{"$f":"$F$40*(valuePL(F3,'Utility Functions'!$I$3:$I$4,'Utility Functions'!$J$3:$J$5))","v":0},{"$f":"$G$40*(valueE(G3,'Utility Functions'!$L$3,'Utility Functions'!$L$4,'Utility Functions'!$L$5,'Utility Functions'!$L$6))","v":0},{"$f":"$H$40*(valueE(H3,'Utility Functions'!$N$3,'Utility Functions'!$N$4,'Utility Functions'!$N$5,'Utility Functions'!$N$6))","v":0},{"$f":"$I$40*valuePL(I3,'Utility Functions'!$O$3:$O$6,'Utility Functions'!$P$3:$P$6)","v":0},{"$f":"$J$40*valuePL(J3,'Utility Functions'!$Q$3:$Q$6,'Utility Functions'!$R$3:$R$6)","v":0},{"$f":"$K$40*(valuePL(K3,'Utility Functions'!$S$3:$S$7,'Utility Functions'!$T$3:$T$7))","v":0},{"$f":"$L$40*(valueE(L3,'Utility Functions'!$V$3,'Utility Functions'!$V$4,'Utility Functions'!$V$5,'Utility Functions'!$V$6))","v":0},{"$f":"$M$40*valuePL(M3,'Utility Functions'!$W$3:$W$6,'Utility Functions'!$X$3:$X$6)","v":0},{"$f":"$N$40*valueE(N3,'Utility Functions'!$Z$3,'Utility Functions'!$Z$4,'Utility Functions'!$Z$5,'Utility Functions'!$Z$6)","v":1.4999999999999999E-2},{"$f":"$O$40*valuePL(O3,'Utility Functions'!$AA$3:$AA$5,'Utility Functions'!$AB$3:$AB$5)","v":2.2499999999999999E-2},{"$f":"$P$40*valuePL(P3,'Utility Functions'!$AC$3:$AC$7,'Utility Functions'!$AD$3:$AD$7)","v":0},{"$f":"$Q$40*valuePL(Q3,'Utility Functions'!$AE$3:$AE$6,'Utility Functions'!$AF$3:$AF$6)","v":0},{"$f":"$R$40*valuePL(R3,'Utility Functions'!$AG$3:$AG$6,'Utility Functions'!$AH$3:$AH$6)","v":0.05},{"$f":"$S$40*valuePL(S3,'Utility Functions'!$AI$3:$AI$6,'Utility Functions'!$AJ$3:$AJ$6)","v":0.05},{"$f":"$T$40*valuePL(T3,'Utility Functions'!$AK$3:$AK$8,'Utility Functions'!$AL$3:$AL$8)","v":0},{"$f":"$U$40*valuePL(U3,'Utility Functions'!$AM$3:$AM$5,'Utility Functions'!$AN$3:$AN$5)","v":0},{"$f":"$V$40*valuePL(V3,'Utility Functions'!$AO$3:$AO$5,'Utility Functions'!$AP$3:$AP$5)","v":0.05},{"$f":"$W$40*valuePL(W3,'Utility Functions'!$AQ$3:$AQ$6,'Utility Functions'!$AR$3:$AR$6)","v":0.04},{"$f":"$X$40*valuePL(X3,'Utility Functions'!$AS$3:$AS$6,'Utility Functions'!$AT$3:$AT$6)","v":0.04},{"$f":"$Y$40*valuePL(Y3,'Utility Functions'!$AU$3:$AU$6,'Utility Functions'!$AV$3:$AV$6)","v":0.05},{"$f":"$Z$40*valuePL(Z3,'Utility Functions'!$AW$3:$AW$5,'Utility Functions'!$AX$3:$AX$5)","v":0.05},{"$f":"$AA$40*valuePL(AA3,'Utility Functions'!$AY$3:$AY$6,'Utility Functions'!$AZ$3:$AZ$6)","v":0.04},{"$f":"$AB$40*valuePL(AB3,'Utility Functions'!$BA$3:$BA$5,'Utility Functions'!$BB$3:$BB$5)","v":0.04},{"$f":"$AC$40*valuePL(AC3,'Utility Functions'!$BC$3:$BC$5,'Utility Functions'!$BD$3:$BD$5)","v":0.03},{"$f":"SUM(B44:AC44)","v":0.53424877401727988},0.5325173496849499]
[3,{"$f":"$B$40*(valueE(B4,'Utility Functions'!$B$3,'Utility Functions'!$B$4,'Utility Functions'!$B$5,'Utility Functions'!$B$6))","v":2.3943140737469053E-2},{"$f":"$C$40*(valueE(C4,'Utility Functions'!$D$3,'Utility Functions'!$D$4,'Utility Functions'!$D$5,'Utility Functions'!$D$6))","v":2.8213102591607857E-2},{"$f":"$D$40*(valuePL(D4,'Utility Functions'!$E$3:$E$5,'Utility Functions'!$F$3:$F$5))","v":0.03},{"$f":"$E$40*(valuePL(E4,'Utility Functions'!$G$3:$G$5,'Utility Functions'!$H$3:$H$5))","v":0},{"$f":"$F$40*(valuePL(F4,'Utility Functions'!$I$3:$I$4,'Utility Functions'!$J$3:$J$5))","v":0},{"$f":"$G$40*(valueE(G4,'Utility Functions'!$L$3,'Utility Functions'!$L$4,'Utility Functions'!$L$5,'Utility Functions'!$L$6))","v":0},{"$f":"$H$40*(valueE(H4,'Utility Functions'!$N$3,'Utility Functions'!$N$4,'Utility Functions'!$N$5,'Utility Functions'!$N$6))","v":0},{"$f":"$I$40*valuePL(I4,'Utility Functions'!$O$3:$O$6,'Utility Functions'!$P$3:$P$6)","v":0},{"$f":"$J$40*valuePL(J4,'Utility Functions'!$Q$3:$Q$6,'Utility Functions'!$R$3:$R$6)","v":0},{"$f":"$K$40*(valuePL(K4,'Utility Functions'!$S$3:$S$7,'Utility Functions'!$T$3:$T$7))","v":0},{"$f":"$L$40*(valueE(L4,'Utility Functions'!$V$3,'Utility Functions'!$V$4,'Utility Functions'!$V$5,'Utility Functions'!$V$6))","v":0},{"$f":"$M$40*valuePL(M4,'Utility Functions'!$W$3:$W$6,'Utility Functions'!$X$3:$X$6)","v":0},{"$f":"$N$40*valueE(N4,'Utility Functions'!$Z$3,'Utility Functions'!$Z$4,'Utility Functions'!$Z$5,'Utility Functions'!$Z$6)","v":1.8749999999999999E-2},{"$f":"$O$40*valuePL(O4,'Utility Functions'!$AA$3:$AA$5,'Utility Functions'!$AB$3:$AB$5)","v":2.2499999999999999E-2},{"$f":"$P$40*valuePL(P4,'Utility Functions'!$AC$3:$AC$7,'Utility Functions'!$AD$3:$AD$7)","v":0},{"$f":"$Q$40*valuePL(Q4,'Utility Functions'!$AE$3:$AE$6,'Utility Functions'!$AF$3:$AF$6)","v":0.02},{"$f":"$R$40*valuePL(R4,'Utility Functions'!$AG$3:$AG$6,'Utility Functions'!$AH$3:$AH$6)","v":0},{"$f":"$S$40*valuePL(S4,'Utility Functions'!$AI$3:$AI$6,'Utility Functions'!$AJ$3:$AJ$6)","v":0},{"$f":"$T$40*valuePL(T4,'Utility Functions'!$AK$3:$AK$8,'Utility Functions'!$AL$3:$AL$8)","v":0},{"$f":"$U$40*valuePL(U4,'Utility Functions'!$AM$3:$AM$5,'Utility Functions'!$AN$3:$AN$5)","v":7.4999999999999997E-3},{"$f":"$V$40*valuePL(V4,'Utility Functions'!$AO$3:$AO$5,'Utility Functions'!$AP$3:$AP$5)","v":0.05},{"$f":"$W$40*valuePL(W4,'Utility Functions'!$AQ$3:$AQ$6,'Utility Functions'!$AR$3:$AR$6)","v":0.04},{"$f":"$X$40*valuePL(X4,'Utility Functions'!$AS$3:$AS$6,'Utility Functions'!$AT$3:$AT$6)","v":0.04},{"$f":"$Y$40*valuePL(Y4,'Utility Functions'!$AU$3:$AU$6,'Utility Functions'!$AV$3:$AV$6)","v":0.05},{"$f":"$Z$40*valuePL(Z4,'Utility Functions'!$AW$3:$AW$5,'Utility Functions'!$AX$3:$AX$5)","v":0.05},{"$f":"$AA$40*valuePL(AA4,'Utility Functions'!$AY$3:$AY$6,'Utility Functions'!$AZ$3:$AZ$6)","v":8.0000000000000002E-3},{"$f":"$AB$40*valuePL(AB4,'Utility Functions'!$BA$3:$BA$5,'Utility Functions'!$BB$3:$BB$5)","v":0.04},{"$f":"$AC$40*valuePL(AC4,'Utility Functions'!$BC$3:$BC$5,'Utility Functions'!$BD$3:$BD$5)","v":0.03},0.45890624332907692,0.45705550078349133]
[4,{"$f":"$B$40*(valueE(B5,'Utility Functions'!$B$3,'Utility Functions'!$B$4,'Utility Functions'!$B$5,'Utility Functions'!$B$6))","v":5.4380856471439951E-3},{"$f":"$C$40*(valueE(C5,'Utility Functions'!$D$3,'Utility Functions'!$D$4,'Utility Functions'!$D$5,'Utility Functions'!$D$6))","v":1.3942790146123618E-2},{"$f":"$D$40*(valuePL(D5,'Utility Functions'!$E$3:$E$5,'Utility Functions'!$F$3:$F$5))","v":0.03},{"$f":"$E$40*(valuePL(E5,'Utility Functions'!$G$3:$G$5,'Utility Functions'!$H$3:$H$5))","v":0},{"$f":"$F$40*(valuePL(F5,'Utility Functions'!$I$3:$I$4,'Utility Functions'!$J$3:$J$5))","v":0},{"$f":"$G$40*(valueE(G5,'Utility Functions'!$L$3,'Utility Functions'!$L$4,'Utility Functions'!$L$5,'Utility Functions'!$L$6))","v":0},{"$f":"$H$40*(valueE(H5,'Utility Functions'!$N$3,'Utility Functions'!$N$4,'Utility Functions'!$N$5,'Utility Functions'!$N$6))","v":0},{"$f":"$I$40*valuePL(I5,'Utility Functions'!$O$3:$O$6,'Utility Functions'!$P$3:$P$6)","v":0},{"$f":"$J$40*valuePL(J5,'Utility Functions'!$Q$3:$Q$6,'Utility Functions'!$R$3:$R$6)","v":0},{"$f":"$K$40*(valuePL(K5,'Utility Functions'!$S$3:$S$7,'Utility Functions'!$T$3:$T$7))","v":0},{"$f":"$L$40*(valueE(L5,'Utility Functions'!$V$3,'Utility Functions'!$V$4,'Utility Functions'!$V$5,'Utility Functions'!$V$6))","v":0},{"$f":"$M$40*valuePL(M5,'Utility Functions'!$W$3:$W$6,'Utility Functions'!$X$3:$X$6)","v":0},{"$f":"$N$40*valueE(N5,'Utility Functions'!$Z$3,'Utility Functions'!$Z$4,'Utility Functions'!$Z$5,'Utility Functions'!$Z$6)","v":1.4999999999999999E-2},{"$f":"$O$40*valuePL(O5,'Utility Functions'!$AA$3:$AA$5,'Utility Functions'!$AB$3:$AB$5)","v":2.2499999999999999E-2},{"$f":"$P$40*valuePL(P5,'Utility Functions'!$AC$3:$AC$7,'Utility Functions'!$AD$3:$AD$7)","v":0},{"$f":"$Q$40*valuePL(Q5,'Utility Functions'!$AE$3:$AE$6,'Utility Functions'!$AF$3:$AF$6)","v":4.0000000000000001E-3},{"$f":"$R$40*valuePL(R5,'Utility Functions'!$AG$3:$AG$6,'Utility Functions'!$AH$3:$AH$6)","v":0.05},{"$f":"$S$40*valuePL(S5,'Utility Functions'!$AI$3:$AI$6,'Utility Functions'!$AJ$3:$AJ$6)","v":0.05},{"$f":"$T$40*valuePL(T5,'Utility Functions'!$AK$3:$AK$8,'Utility Functions'!$AL$3:$AL$8)","v":2.4E-2},{"$f":"$U$40*valuePL(U5,'Utility Functions'!$AM$3:$AM$5,'Utility Functions'!$AN$3:$AN$5)","v":0},{"$f":"$V$40*valuePL(V5,'Utility Functions'!$AO$3:$AO$5,'Utility Functions'!$AP$3:$AP$5)","v":2.5000000000000001E-2},{"$f":"$W$40*valuePL(W5,'Utility Functions'!$AQ$3:$AQ$6,'Utility Functions'!$AR$3:$AR$6)","v":0.04},{"$f":"$X$40*valuePL(X5,'Utility Functions'!$AS$3:$AS$6,'Utility Functions'!$AT$3:$AT$6)","v":0.04},{"$f":"$Y$40*valuePL(Y5,'Utility Functions'!$AU$3:$AU$6,'Utility Functions'!$AV$3:$AV$6)","v":1.0000000000000002E-2},{"$f":"$Z$40*valuePL(Z5,'Utility Functions'!$AW$3:$AW$5,'Utility Functions'!$AX$3:$AX$5)","v":0},{"$f":"$AA$40*valuePL(AA5,'Utility Functions'!$AY$3:$AY$6,'Utility Functions'!$AZ$3:$AZ$6)","v":0},{"$f":"$AB$40*valuePL(AB5,'Utility Functions'!$BA$3:$BA$5,'Utility Functions'!$BB$3:$BB$5)","v":0.04},{"$f":"$AC$40*valuePL(AC5,'Utility Functions'!$BC$3:$BC$5,'Utility Functions'!$BD$3:$BD$5)","v":7.4999999999999997E-3},0.37738087579326757,0.37654840351211377]
[5,{"$f":"$B$40*(valueE(B6,'Utility Functions'!$B$3,'Utility Functions'!$B$4,'Utility Functions'!$B$5,'Utility Functions'!$B$6))","v":1.6520156106900608E-2},{"$f":"$C$40*(valueE(C6,'Utility Functions'!$D$3,'Utility Functions'!$D$4,'Utility Functions'!$D$5,'Utility Functions'!$D$6))","v":7.9969543744382362E-3},{"$f":"$D$40*(valuePL(D6,'Utility Functions'!$E$3:$E$5,'Utility Functions'!$F$3:$F$5))","v":0.03},{"$f":"$E$40*(valuePL(E6,'Utility Functions'!$G$3:$G$5,'Utility Functions'!$H$3:$H$5))","v":0},{"$f":"$F$40*(valuePL(F6,'Utility Functions'!$I$3:$I$4,'Utility Functions'!$J$3:$J$5))","v":0},{"$f":"$G$40*(valueE(G6,'Utility Functions'!$L$3,'Utility Functions'!$L$4,'Utility Functions'!$L$5,'Utility Functions'!$L$6))","v":0},{"$f":"$H$40*(valueE(H6,'Utility Functions'!$N$3,'Utility Functions'!$N$4,'Utility Functions'!$N$5,'Utility Functions'!$N$6))","v":0},{"$f":"$I$40*valuePL(I6,'Utility Functions'!$O$3:$O$6,'Utility Functions'!$P$3:$P$6)","v":1.5272727272727275E-2},{"$f":"$J$40*valuePL(J6,'Utility Functions'!$Q$3:$Q$6,'Utility Functions'!$R$3:$R$6)","v":8.0000000000000004E-4},{"$f":"$K$40*(valuePL(K6,'Utility Functions'!$S$3:$S$7,'Utility Functions'!$T$3:$T$7))","v":0},{"$f":"$L$40*(valueE(L6,'Utility Functions'!$V$3,'Utility Functions'!$V$4,'Utility Functions'!$V$5,'Utility Functions'!$V$6))","v":0},{"$f":"$M$40*valuePL(M6,'Utility Functions'!$W$3:$W$6,'Utility Functions'!$X$3:$X$6)","v":0},{"$f":"$N$40*valueE(N6,'Utility Functions'!$Z$3,'Utility Functions'!$Z$4,'Utility Functions'!$Z$5,'Utility Functions'!$Z$6)","v":0},{"$f":"$O$40*valuePL(O6,'Utility Functions'!$AA$3:$AA$5,'Utility Functions'!$AB$3:$AB$5)","v":0},{"$f":"$P$40*valuePL(P6,'Utility Functions'!$AC$3:$AC$7,'Utility Functions'!$AD$3:$AD$7)","v":0},{"$f":"$Q$40*valuePL(Q6,'Utility Functions'!$AE$3:$AE$6,'Utility Functions'!$AF$3:$AF$6)","v":4.0000000000000001E-3},{"$f":"$R$40*valuePL(R6,'Utility Functions'!$AG$3:$AG$6,'Utility Functions'!$AH$3:$AH$6)","v":0.05},{"$f":"$S$40*valuePL(S6,'Utility Functions'!$AI$3:$AI$6,'Utility Functions'!$AJ$3:$AJ$6)","v":0.05},{"$f":"$T$40*valuePL(T6,'Utility Functions'!$AK$3:$AK$8,'Utility Functions'!$AL$3:$AL$8)","v":2.4E-2},{"$f":"$U$40*valuePL(U6,'Utility Functions'!$AM$3:$AM$5,'Utility Functions'!$AN$3:$AN$5)","v":7.4999999999999997E-3},{"$f":"$V$40*valuePL(V6,'Utility Functions'!$AO$3:$AO$5,'Utility Functions'!$AP$3:$AP$5)","v":0},{"$f":"$W$40*valuePL(W6,'Utility Functions'!$AQ$3:$AQ$6,'Utility Functions'!$AR$3:$AR$6)","v":0.04},{"$f":"$X$40*valuePL(X6,'Utility Functions'!$AS$3:$AS$6,'Utility Functions'!$AT$3:$AT$6)","v":0.04},{"$f":"$Y$40*valuePL(Y6,'Utility Functions'!$AU$3:$AU$6,'Utility Functions'!$AV$3:$AV$6)","v":4.0000000000000008E-2},{"$f":"$Z$40*valuePL(Z6,'Utility Functions'!$AW$3:$AW$5,'Utility Functions'!$AX$3:$AX$5)","v":0},{"$f":"$AA$40*valuePL(AA6,'Utility Functions'!$AY$3:$AY$6,'Utility Functions'!$AZ$3:$AZ$6)","v":0},{"$f":"$AB$40*valuePL(AB6,'Utility Functions'!$BA$3:$BA$5,'Utility Functions'!$BB$3:$BB$5)","v":0.04},{"$f":"$AC$40*valuePL(AC6,'Utility Functions'!$BC$3:$BC$5,'Utility Functions'!$BD$3:$BD$5)","v":7.4999999999999997E-3},0.37358983775406607,0.37166737445376297]
[6,{"$f":"$B$40*(valueE(B7,'Utility Functions'!$B$3,'Utility Functions'!$B$4,'Utility Functions'!$B$5,'Utility Functions'!$B$6))","v":2.5939980805710805E-2},{"$f":"$C$40*(valueE(C7,'Utility Functions'!$D$3,'Utility Functions'!$D$4,'Utility Functions'!$D$5,'Utility Functions'!$D$6))","v":1.8543300844080441E-4},{"$f":"$D$40*(valuePL(D7,'Utility Functions'!$E$3:$E$5,'Utility Functions'!$F$3:$F$5))","v":0.03},{"$f":"$E$40*(valuePL(E7,'Utility Functions'!$G$3:$G$5,'Utility Functions'!$H$3:$H$5))","v":0},{"$f":"$F$40*(valuePL(F7,'Utility Functions'!$I$3:$I$4,'Utility Functions'!$J$3:$J$5))","v":0},{"$f":"$G$40*(valueE(G7,'Utility Functions'!$L$3,'Utility Functions'!$L$4,'Utility Functions'!$L$5,'Utility Functions'!$L$6))","v":0},{"$f":"$H$40*(valueE(H7,'Utility Functions'!$N$3,'Utility Functions'!$N$4,'Utility Functions'!$N$5,'Utility Functions'!$N$6))","v":0},{"$f":"$I$40*valuePL(I7,'Utility Functions'!$O$3:$O$6,'Utility Functions'!$P$3:$P$6)","v":1.1999999999999999E-3},{"$f":"$J$40*valuePL(J7,'Utility Functions'!$Q$3:$Q$6,'Utility Functions'!$R$3:$R$6)","v":8.0000000000000004E-4},{"$f":"$K$40*(valuePL(K7,'Utility Functions'!$S$3:$S$7,'Utility Functions'!$T$3:$T$7))","v":0},{"$f":"$L$40*(valueE(L7,'Utility Functions'!$V$3,'Utility Functions'!$V$4,'Utility Functions'!$V$5,'Utility Functions'!$V$6))","v":0},{"$f":"$M$40*valuePL(M7,'Utility Functions'!$W$3:$W$6,'Utility Functions'!$X$3:$X$6)","v":0},{"$f":"$N$40*valueE(N7,'Utility Functions'!$Z$3,'Utility Functions'!$Z$4,'Utility Functions'!$Z$5,'Utility Functions'!$Z$6)","v":0},{"$f":"$O$40*valuePL(O7,'Utility Functions'!$AA$3:$AA$5,'Utility Functions'!$AB$3:$AB$5)","v":0},{"$f":"$P$40*valuePL(P7,'Utility Functions'!$AC$3:$AC$7,'Utility Functions'!$AD$3:$AD$7)","v":0},{"$f":"$Q$40*valuePL(Q7,'Utility Functions'!$AE$3:$AE$6,'Utility Functions'!$AF$3:$AF$6)","v":4.0000000000000001E-3},{"$f":"$R$40*valuePL(R7,'Utility Functions'!$AG$3:$AG$6,'Utility Functions'!$AH$3:$AH$6)","v":0},{"$f":"$S$40*valuePL(S7,'Utility Functions'!$AI$3:$AI$6,'Utility Functions'!$AJ$3:$AJ$6)","v":0.05},{"$f":"$T$40*valuePL(T7,'Utility Functions'!$AK$3:$AK$8,'Utility Functions'!$AL$3:$AL$8)","v":1.7999999999999999E-2},{"$f":"$U$40*valuePL(U7,'Utility Functions'!$AM$3:$AM$5,'Utility Functions'!$AN$3:$AN$5)","v":0},{"$f":"$V$40*valuePL(V7,'Utility Functions'!$AO$3:$AO$5,'Utility Functions'!$AP$3:$AP$5)","v":0},{"$f":"$W$40*valuePL(W7,'Utility Functions'!$AQ$3:$AQ$6,'Utility Functions'!$AR$3:$AR$6)","v":0},{"$f":"$X$40*valuePL(X7,'Utility Functions'!$AS$3:$AS$6,'Utility Functions'!$AT$3:$AT$6)","v":0.04},{"$f":"$Y$40*valuePL(Y7,'Utility Functions'!$AU$3:$AU$6,'Utility Functions'!$AV$3:$AV$6)","v":0},{"$f":"$Z$40*valuePL(Z7,'Utility Functions'!$AW$3:$AW$5,'Utility Functions'!$AX$3:$AX$5)","v":0},{"$f":"$AA$40*valuePL(AA7,'Utility Functions'!$AY$3:$AY$6,'Utility Functions'!$AZ$3:$AZ$6)","v":0},{"$f":"$AB$40*valuePL(AB7,'Utility Functions'!$BA$3:$BA$5,'Utility Functions'!$BB$3:$BB$5)","v":0.04},{"$f":"$AC$40*valuePL(AC7,'Utility Functions'!$BC$3:$BC$5,'Utility Functions'!$BD$3:$BD$5)","v":7.4999999999999997E-3},0.21762541381415162,0.21601950895080207]
[7,{"$f":"$B$40*(valueE(B8,'Utility Functions'!$B$3,'Utility Functions'!$B$4,'Utility Functions'!$B$5,'Utility Functions'!$B$6))","v":2.9999132478518691E-2},{"$f":"$C$40*(valueE(C8,'Utility Functions'!$D$3,'Utility Functions'!$D$4,'Utility Functions'!$D$5,'Utility Functions'!$D$6))","v":2.542345105018548E-2},{"$f":"$D$40*(valuePL(D8,'Utility Functions'!$E$3:$E$5,'Utility Functions'!$F$3:$F$5))","v":0},{"$f":"$E$40*(valuePL(E8,'Utility Functions'!$G$3:$G$5,'Utility Functions'!$H$3:$H$5))","v":0.03},{"$f":"$F$40*(valuePL(F8,'Utility Functions'!$I$3:$I$4,'Utility Functions'!$J$3:$J$5))","v":0},{"$f":"$G$40*(valueE(G8,'Utility Functions'!$L$3,'Utility Functions'!$L$4,'Utility Functions'!$L$5,'Utility Functions'!$L$6))","v":0},{"$f":"$H$40*(valueE(H8,'Utility Functions'!$N$3,'Utility Functions'!$N$4,'Utility Functions'!$N$5,'Utility Functions'!$N$6))","v":0},{"$f":"$I$40*valuePL(I8,'Utility Functions'!$O$3:$O$6,'Utility Functions'!$P$3:$P$6)","v":0.03},{"$f":"$J$40*valuePL(J8,'Utility Functions'!$Q$3:$Q$6,'Utility Functions'!$R$3:$R$6)","v":1.3454545454545455E-2},{"$f":"$K$40*(valuePL(K8,'Utility Functions'!$S$3:$S$7,'Utility Functions'!$T$3:$T$7))","v":0.02},{"$f":"$L$40*(valueE(L8,'Utility Functions'!$V$3,'Utility Functions'!$V$4,'Utility Functions'!$V$5,'Utility Functions'!$V$6))","v":0.02},{"$f":"$M$40*valuePL(M8,'Utility Functions'!$W$3:$W$6,'Utility Functions'!$X$3:$X$6)","v":1.3454545454545455E-2},{"$f":"$N$40*valueE(N8,'Utility Functions'!$Z$3,'Utility Functions'!$Z$4,'Utility Functions'!$Z$5,'Utility Functions'!$Z$6)","v":0.03},{"$f":"$O$40*valuePL(O8,'Utility Functions'!$AA$3:$AA$5,'Utility Functions'!$AB$3:$AB$5)","v":2.2499999999999999E-2},{"$f":"$P$40*valuePL(P8,'Utility Functions'!$AC$3:$AC$7,'Utility Functions'!$AD$3:$AD$7)","v":0},{"$f":"$Q$40*valuePL(Q8,'Utility Functions'!$AE$3:$AE$6,'Utility Functions'!$AF$3:$AF$6)","v":0},{"$f":"$R$40*valuePL(R8,'Utility Functions'!$AG$3:$AG$6,'Utility Functions'!$AH$3:$AH$6)","v":0.05},{"$f":"$S$40*valuePL(S8,'Utility Functions'!$AI$3:$AI$6,'Utility Functions'!$AJ$3:$AJ$6)","v":0.05},{"$f":"$T$40*valuePL(T8,'Utility Functions'!$AK$3:$AK$8,'Utility Functions'!$AL$3:$AL$8)","v":0},{"$f":"$U$40*valuePL(U8,'Utility Functions'!$AM$3:$AM$5,'Utility Functions'!$AN$3:$AN$5)","v":0},{"$f":"$V$40*valuePL(V8,'Utility Functions'!$AO$3:$AO$5,'Utility Functions'!$AP$3:$AP$5)","v":0.05},{"$f":"$W$40*valuePL(W8,'Utility Functions'!$AQ$3:$AQ$6,'Utility Functions'!$AR$3:$AR$6)","v":0},{"$f":"$X$40*valuePL(X8,'Utility Functions'!$AS$3:$AS$6,'Utility Functions'!$AT$3:$AT$6)","v":8.0000000000000002E-3},{"$f":"$Y$40*valuePL(Y8,'Utility Functions'!$AU$3:$AU$6,'Utility Functions'!$AV$3:$AV$6)","v":0.05},{"$f":"$Z$40*valuePL(Z8,'Utility Functions'!$AW$3:$AW$5,'Utility Functions'!$AX$3:$AX$5)","v":0.05},{"$f":"$AA$40*valuePL(AA8,'Utility Functions'!$AY$3:$AY$6,'Utility Functions'!$AZ$3:$AZ$6)","v":3.5999999999999997E-2},{"$f":"$AB$40*valuePL(AB8,'Utility Functions'!$BA$3:$BA$5,'Utility Functions'!$BB$3:$BB$5)","v":0},{"$f":"$AC$40*valuePL(AC8,'Utility Functions'!$BC$3:$BC$5,'Utility Functions'!$BD$3:$BD$5)","v":0.03},0.55883167443779502,0.55882779905507862]
[8,{"$f":"$B$40*(valueE(B9,'Utility Functions'!$B$3,'Utility Functions'!$B$4,'Utility Functions'!$B$5,'Utility Functions'!$B$6))","v":1.3535671425672068E-2},{"$f":"$C$40*(valueE(C9,'Utility Functions'!$D$3,'Utility Functions'!$D$4,'Utility Functions'!$D$5,'Utility Functions'!$D$6))","v":2.542345105018548E-2},{"$f":"$D$40*(valuePL(D9,'Utility Functions'!$E$3:$E$5,'Utility Functions'!$F$3:$F$5))","v":0.03},{"$f":"$E$40*(valuePL(E9,'Utility Functions'!$G$3:$G$5,'Utility Functions'!$H$3:$H$5))","v":1.4999999999999999E-2},{"$f":"$F$40*(valuePL(F9,'Utility Functions'!$I$3:$I$4,'Utility Functions'!$J$3:$J$5))","v":0.04},{"$f":"$G$40*(valueE(G9,'Utility Functions'!$L$3,'Utility Functions'!$L$4,'Utility Functions'!$L$5,'Utility Functions'!$L$6))","v":0},{"$f":"$H$40*(valueE(H9,'Utility Functions'!$N$3,'Utility Functions'!$N$4,'Utility Functions'!$N$5,'Utility Functions'!$N$6))","v":0},{"$f":"$I$40*valuePL(I9,'Utility Functions'!$O$3:$O$6,'Utility Functions'!$P$3:$P$6)","v":1.6800000000000003E-3},{"$f":"$J$40*valuePL(J9,'Utility Functions'!$Q$3:$Q$6,'Utility Functions'!$R$3:$R$6)","v":1.6727272727272726E-2},{"$f":"$K$40*(valuePL(K9,'Utility Functions'!$S$3:$S$7,'Utility Functions'!$T$3:$T$7))","v":0},{"$f":"$L$40*(valueE(L9,'Utility Functions'!$V$3,'Utility Functions'!$V$4,'Utility Functions'!$V$5,'Utility Functions'!$V$6))","v":0.02},{"$f":"$M$40*valuePL(M9,'Utility Functions'!$W$3:$W$6,'Utility Functions'!$X$3:$X$6)","v":1.6727272727272726E-2},{"$f":"$N$40*valueE(N9,'Utility Functions'!$Z$3,'Utility Functions'!$Z$4,'Utility Functions'!$Z$5,'Utility Functions'!$Z$6)","v":0},{"$f":"$O$40*valuePL(O9,'Utility Functions'!$AA$3:$AA$5,'Utility Functions'!$AB$3:$AB$5)","v":0},{"$f":"$P$40*valuePL(P9,'Utility Functions'!$AC$3:$AC$7,'Utility Functions'!$AD$3:$AD$7)","v":0},{"$f":"$Q$40*valuePL(Q9,'Utility Functions'!$AE$3:$AE$6,'Utility Functions'!$AF$3:$AF$6)","v":0.04},{"$f":"$R$40*valuePL(R9,'Utility Functions'!$AG$3:$AG$6,'Utility Functions'!$AH$3:$AH$6)","v":1.0000000000000002E-2},{"$f":"$S$40*valuePL(S9,'Utility Functions'!$AI$3:$AI$6,'Utility Functions'!$AJ$3:$AJ$6)","v":0.05},{"$f":"$T$40*valuePL(T9,'Utility Functions'!$AK$3:$AK$8,'Utility Functions'!$AL$3:$AL$8)","v":0},{"$f":"$U$40*valuePL(U9,'Utility Functions'!$AM$3:$AM$5,'Utility Functions'!$AN$3:$AN$5)","v":0},{"$f":"$V$40*valuePL(V9,'Utility Functions'!$AO$3:$AO$5,'Utility Functions'!$AP$3:$AP$5)","v":0.05},{"$f":"$W$40*valuePL(W9,'Utility Functions'!$AQ$3:$AQ$6,'Utility Functions'!$AR$3:$AR$6)","v":0.04},{"$f":"$X$40*valuePL(X9,'Utility Functions'!$AS$3:$AS$6,'Utility Functions'!$AT$3:$AT$6)","v":0.04},{"$f":"$Y$40*valuePL(Y9,'Utility Functions'!$AU$3:$AU$6,'Utility Functions'!$AV$3:$AV$6)","v":0.05},{"$f":"$Z$40*valuePL(Z9,'Utility Functions'!$AW$3:$AW$5,'Utility Functions'!$AX$3:$AX$5)","v":0.05},{"$f":"$AA$40*valuePL(AA9,'Utility Functions'!$AY$3:$AY$6,'Utility Functions'!$AZ$3:$AZ$6)","v":0},{"$f":"$AB$40*valuePL(AB9,'Utility Functions'!$BA$3:$BA$5,'Utility Functions'!$BB$3:$BB$5)","v":0.01},{"$f":"$AC$40*valuePL(AC9,'Utility Functions'!$BC$3:$BC$5,'Utility Functions'!$BD$3:$BD$5)","v":7.4999999999999997E-3},0.52659366793040296,0.52486224359807299]
[9,{"$f":"$B$40*(valueE(B10,'Utility Functions'!$B$3,'Utility Functions'!$B$4,'Utility Functions'!$B$5,'Utility Functions'!$B$6))","v":2.5041071294184137E-2},{"$f":"$C$40*(valueE(C10,'Utility Functions'!$D$3,'Utility Functions'!$D$4,'Utility Functions'!$D$5,'Utility Functions'!$D$6))","v":2.3696993705826886E-2},{"$f":"$D$40*(valuePL(D10,'Utility Functions'!$E$3:$E$5,'Utility Functions'!$F$3:$F$5))","v":0.03},{"$f":"$E$40*(valuePL(E10,'Utility Functions'!$G$3:$G$5,'Utility Functions'!$H$3:$H$5))","v":1.4999999999999999E-2},{"$f":"$F$40*(valuePL(F10,'Utility Functions'!$I$3:$I$4,'Utility Functions'!$J$3:$J$5))","v":0},{"$f":"$G$40*(valueE(G10,'Utility Functions'!$L$3,'Utility Functions'!$L$4,'Utility Functions'!$L$5,'Utility Functions'!$L$6))","v":5.6451612903225803E-3},{"$f":"$H$40*(valueE(H10,'Utility Functions'!$N$3,'Utility Functions'!$N$4,'Utility Functions'!$N$5,'Utility Functions'!$N$6))","v":1.9924098671726754E-3},{"$f":"$I$40*valuePL(I10,'Utility Functions'!$O$3:$O$6,'Utility Functions'!$P$3:$P$6)","v":0},{"$f":"$J$40*valuePL(J10,'Utility Functions'!$Q$3:$Q$6,'Utility Functions'!$R$3:$R$6)","v":0},{"$f":"$K$40*(valuePL(K10,'Utility Functions'!$S$3:$S$7,'Utility Functions'!$T$3:$T$7))","v":0},{"$f":"$L$40*(valueE(L10,'Utility Functions'!$V$3,'Utility Functions'!$V$4,'Utility Functions'!$V$5,'Utility Functions'!$V$6))","v":0},{"$f":"$M$40*valuePL(M10,'Utility Functions'!$W$3:$W$6,'Utility Functions'!$X$3:$X$6)","v":0},{"$f":"$N$40*valueE(N10,'Utility Functions'!$Z$3,'Utility Functions'!$Z$4,'Utility Functions'!$Z$5,'Utility Functions'!$Z$6)","v":0},{"$f":"$O$40*valuePL(O10,'Utility Functions'!$AA$3:$AA$5,'Utility Functions'!$AB$3:$AB$5)","v":0},{"$f":"$P$40*valuePL(P10,'Utility Functions'!$AC$3:$AC$7,'Utility Functions'!$AD$3:$AD$7)","v":0.03},{"$f":"$Q$40*valuePL(Q10,'Utility Functions'!$AE$3:$AE$6,'Utility Functions'!$AF$3:$AF$6)","v":0},{"$f":"$R$40*valuePL(R10,'Utility Functions'!$AG$3:$AG$6,'Utility Functions'!$AH$3:$AH$6)","v":0.05},{"$f":"$S$40*valuePL(S10,'Utility Functions'!$AI$3:$AI$6,'Utility Functions'!$AJ$3:$AJ$6)","v":3.3000000000000002E-2},{"$f":"$T$40*valuePL(T10,'Utility Functions'!$AK$3:$AK$8,'Utility Functions'!$AL$3:$AL$8)","v":6.0000000000000001E-3},{"$f":"$U$40*valuePL(U10,'Utility Functions'!$AM$3:$AM$5,'Utility Functions'!$AN$3:$AN$5)","v":0},{"$f":"$V$40*valuePL(V10,'Utility Functions'!$AO$3:$AO$5,'Utility Functions'!$AP$3:$AP$5)","v":0.05},{"$f":"$W$40*valuePL(W10,'Utility Functions'!$AQ$3:$AQ$6,'Utility Functions'!$AR$3:$AR$6)","v":0.04},{"$f":"$X$40*valuePL(X10,'Utility Functions'!$AS$3:$AS$6,'Utility Functions'!$AT$3:$AT$6)","v":0.04},{"$f":"$Y$40*valuePL(Y10,'Utility Functions'!$AU$3:$AU$6,'Utility Functions'!$AV$3:$AV$6)","v":1.0000000000000002E-2},{"$f":"$Z$40*valuePL(Z10,'Utility Functions'!$AW$3:$AW$5,'Utility Functions'!$AX$3:$AX$5)","v":0.05},{"$f":"$AA$40*valuePL(AA10,'Utility Functions'!$AY$3:$AY$6,'Utility Functions'!$AZ$3:$AZ$6)","v":8.0000000000000002E-3},{"$f":"$AB$40*valuePL(AB10,'Utility Functions'!$BA$3:$BA$5,'Utility Functions'!$BB$3:$BB$5)","v":0.01},{"$f":"$AC$40*valuePL(AC10,'Utility Functions'!$BC$3:$BC$5,'Utility Functions'!$BD$3:$BD$5)","v":0.03},0.45837563615750632,0.45664098955774823]
[10,{"$f":"$B$40*(valueE(B11,'Utility Functions'!$B$3,'Utility Functions'!$B$4,'Utility Functions'!$B$5,'Utility Functions'!$B$6))","v":0},{"$f":"$C$40*(valueE(C11,'Utility Functions'!$D$3,'Utility Functions'!$D$4,'Utility Functions'!$D$5,'Utility Functions'!$D$6))","v":0},{"$f":"$D$40*(valuePL(D11,'Utility Functions'!$E$3:$E$5,'Utility Functions'!$F$3:$F$5))","v":0},{"$f":"$E$40*(valuePL(E11,'Utility Functions'!$G$3:$G$5,'Utility Functions'!$H$3:$H$5))","v":0},{"$f":"$F$40*(valuePL(F11,'Utility Functions'!$I$3:$I$4,'Utility Functions'!$J$3:$J$5))","v":0},{"$f":"$G$40*(valueE(G11,'Utility Functions'!$L$3,'Utility Functions'!$L$4,'Utility Functions'!$L$5,'Utility Functions'!$L$6))","v":0},{"$f":"$H$40*(valueE(H11,'Utility Functions'!$N$3,'Utility Functions'!$N$4,'Utility Functions'!$N$5,'Utility Functions'!$N$6))","v":0},{"$f":"$I$40*valuePL(I11,'Utility Functions'!$O$3:$O$6,'Utility Functions'!$P$3:$P$6)","v":0},{"$f":"$J$40*valuePL(J11,'Utility Functions'!$Q$3:$Q$6,'Utility Functions'!$R$3:$R$6)","v":0},{"$f":"$K$40*(valuePL(K11,'Utility Functions'!$S$3:$S$7,'Utility Functions'!$T$3:$T$7))","v":0},{"$f":"$L$40*(valueE(L11,'Utility Functions'!$V$3,'Utility Functions'!$V$4,'Utility Functions'!$V$5,'Utility Functions'!$V$6))","v":0},{"$f":"$M$40*valuePL(M11,'Utility Functions'!$W$3:$W$6,'Utility Functions'!$X$3:$X$6)","v":0},{"$f":"$N$40*valueE(N11,'Utility Functions'!$Z$3,'Utility Functions'!$Z$4,'Utility Functions'!$Z$5,'Utility Functions'!$Z$6)","v":2.2499999999999999E-2},{"$f":"$O$40*valuePL(O11,'Utility Functions'!$AA$3:$AA$5,'Utility Functions'!$AB$3:$AB$5)","v":0.09},{"$f":"$P$40*valuePL(P11,'Utility Functions'!$AC$3:$AC$7,'Utility Functions'!$AD$3:$AD$7)","v":0.01},{"$f":"$Q$40*valuePL(Q11,'Utility Functions'!$AE$3:$AE$6,'Utility Functions'!$AF$3:$AF$6)","v":0.02},{"$f":"$R$40*valuePL(R11,'Utility Functions'!$AG$3:$AG$6,'Utility Functions'!$AH$3:$AH$6)","v":0.05},{"$f":"$S$40*valuePL(S11,'Utility Functions'!$AI$3:$AI$6,'Utility Functions'!$AJ$3:$AJ$6)","v":3.3000000000000002E-2},{"$f":"$T$40*valuePL(T11,'Utility Functions'!$AK$3:$AK$8,'Utility Functions'!$AL$3:$AL$8)","v":1.2E-2},{"$f":"$U$40*valuePL(U11,'Utility Functions'!$AM$3:$AM$5,'Utility Functions'!$AN$3:$AN$5)","v":0},{"$f":"$V$40*valuePL(V11,'Utility Functions'!$AO$3:$AO$5,'Utility Functions'!$AP$3:$AP$5)","v":0},{"$f":"$W$40*valuePL(W11,'Utility Functions'!$AQ$3:$AQ$6,'Utility Functions'!$AR$3:$AR$6)","v":0.03},{"$f":"$X$40*valuePL(X11,'Utility Functions'!$AS$3:$AS$6,'Utility Functions'!$AT$3:$AT$6)","v":0.04},{"$f":"$Y$40*valuePL(Y11,'Utility Functions'!$AU$3:$AU$6,'Utility Functions'!$AV$3:$AV$6)","v":0.05},{"$f":"$Z$40*valuePL(Z11,'Utility Functions'!$AW$3:$AW$5,'Utility Functions'!$AX$3:$AX$5)","v":2.5000000000000001E-2},{"$f":"$AA$40*valuePL(AA11,'Utility Functions'!$AY$3:$AY$6,'Utility Functions'!$AZ$3:$AZ$6)","v":8.0000000000000002E-3},{"$f":"$AB$40*valuePL(AB11,'Utility Functions'!$BA$3:$BA$5,'Utility Functions'!$BB$3:$BB$5)","v":0},{"$f":"$AC$40*valuePL(AC11,'Utility Functions'!$BC$3:$BC$5,'Utility Functions'!$BD$3:$BD$5)","v":0.03},0.42049999999999998,0.42049999999999998]
[11,{"$f":"$B$40*(valueE(B12,'Utility Functions'!$B$3,'Utility Functions'!$B$4,'Utility Functions'!$B$5,'Utility Functions'!$B$6))","v":0},{"$f":"$C$40*(valueE(C12,'Utility Functions'!$D$3,'Utility Functions'!$D$4,'Utility Functions'!$D$5,'Utility Functions'!$D$6))","v":0},{"$f":"$D$40*(valuePL(D12,'Utility Functions'!$E$3:$E$5,'Utility Functions'!$F$3:$F$5))","v":0},{"$f":"$E$40*(valuePL(E12,'Utility Functions'!$G$3:$G$5,'Utility Functions'!$H$3:$H$5))","v":0},{"$f":"$F$40*(valuePL(F12,'Utility Functions'!$I$3:$I$4,'Utility Functions'!$J$3:$J$5))","v":0},{"$f":"$G$40*(valueE(G12,'Utility Functions'!$L$3,'Utility Functions'!$L$4,'Utility Functions'!$L$5,'Utility Functions'!$L$6))","v":4.8387096774193543E-4},{"$f":"$H$40*(valueE(H12,'Utility Functions'!$N$3,'Utility Functions'!$N$4,'Utility Functions'!$N$5,'Utility Functions'!$N$6))","v":1.4516129032258063E-3},{"$f":"$I$40*valuePL(I12,'Utility Functions'!$O$3:$O$6,'Utility Functions'!$P$3:$P$6)","v":1.6254545454545456E-2},{"$f":"$J$40*valuePL(J12,'Utility Functions'!$Q$3:$Q$6,'Utility Functions'!$R$3:$R$6)","v":1.8363636363636363E-2},{"$f":"$K$40*(valuePL(K12,'Utility Functions'!$S$3:$S$7,'Utility Functions'!$T$3:$T$7))","v":1.0836363636363637E-2},{"$f":"$L$40*(valueE(L12,'Utility Functions'!$V$3,'Utility Functions'!$V$4,'Utility Functions'!$V$5,'Utility Functions'!$V$6))","v":0.02},{"$f":"$M$40*valuePL(M12,'Utility Functions'!$W$3:$W$6,'Utility Functions'!$X$3:$X$6)","v":1.8363636363636363E-2},{"$f":"$N$40*valueE(N12,'Utility Functions'!$Z$3,'Utility Functions'!$Z$4,'Utility Functions'!$Z$5,'Utility Functions'!$Z$6)","v":1.125E-2},{"$f":"$O$40*valuePL(O12,'Utility Functions'!$AA$3:$AA$5,'Utility Functions'!$AB$3:$AB$5)","v":2.2499999999999999E-2},{"$f":"$P$40*valuePL(P12,'Utility Functions'!$AC$3:$AC$7,'Utility Functions'!$AD$3:$AD$7)","v":0.01},{"$f":"$Q$40*valuePL(Q12,'Utility Functions'!$AE$3:$AE$6,'Utility Functions'!$AF$3:$AF$6)","v":0},{"$f":"$R$40*valuePL(R12,'Utility Functions'!$AG$3:$AG$6,'Utility Functions'!$AH$3:$AH$6)","v":0.05},{"$f":"$S$40*valuePL(S12,'Utility Functions'!$AI$3:$AI$6,'Utility Functions'!$AJ$3:$AJ$6)","v":0.05},{"$f":"$T$40*valuePL(T12,'Utility Functions'!$AK$3:$AK$8,'Utility Functions'!$AL$3:$AL$8)","v":1.2E-2},{"$f":"$U$40*valuePL(U12,'Utility Functions'!$AM$3:$AM$5,'Utility Functions'!$AN$3:$AN$5)","v":0.03},{"$f":"$V$40*valuePL(V12,'Utility Functions'!$AO$3:$AO$5,'Utility Functions'!$AP$3:$AP$5)","v":0.05},{"$f":"$W$40*valuePL(W12,'Utility Functions'!$AQ$3:$AQ$6,'Utility Functions'!$AR$3:$AR$6)","v":8.0000000000000002E-3},{"$f":"$X$40*valuePL(X12,'Utility Functions'!$AS$3:$AS$6,'Utility Functions'!$AT$3:$AT$6)","v":0.04},{"$f":"$Y$40*valuePL(Y12,'Utility Functions'!$AU$3:$AU$6,'Utility Functions'!$AV$3:$AV$6)","v":0.05},{"$f":"$Z$40*valuePL(Z12,'Utility Functions'!$AW$3:$AW$5,'Utility Functions'!$AX$3:$AX$5)","v":2.5000000000000001E-2},{"$f":"$AA$40*valuePL(AA12,'Utility Functions'!$AY$3:$AY$6,'Utility Functions'!$AZ$3:$AZ$6)","v":3.5999999999999997E-2},{"$f":"$AB$40*valuePL(AB12,'Utility Functions'!$BA$3:$BA$5,'Utility Functions'!$BB$3:$BB$5)","v":0},{"$f":"$AC$40*valuePL(AC12,'Utility Functions'!$BC$3:$BC$5,'Utility Functions'!$BD$3:$BD$5)","v":7.4999999999999997E-3},0.48800366568914949,0.48800366568914949]
[12,{"$f":"$B$40*(valueE(B13,'Utility Functions'!$B$3,'Utility Functions'!$B$4,'Utility Functions'!$B$5,'Utility Functions'!$B$6))","v":9.8904136043327599E-3},{"$f":"$C$40*(valueE(C13,'Utility Functions'!$D$3,'Utility Functions'!$D$4,'Utility Functions'!$D$5,'Utility Functions'!$D$6))","v":2.3696993705826886E-2},{"$f":"$D$40*(valuePL(D13,'Utility Functions'!$E$3:$E$5,'Utility Functions'!$F$3:$F$5))","v":0.03},{"$f":"$E$40*(valuePL(E13,'Utility Functions'!$G$3:$G$5,'Utility Functions'!$H$3:$H$5))","v":1.4999999999999999E-2},{"$f":"$F$40*(valuePL(F13,'Utility Functions'!$I$3:$I$4,'Utility Functions'!$J$3:$J$5))","v":0},{"$f":"$G$40*(valueE(G13,'Utility Functions'!$L$3,'Utility Functions'!$L$4,'Utility Functions'!$L$5,'Utility Functions'!$L$6))","v":0},{"$f":"$H$40*(valueE(H13,'Utility Functions'!$N$3,'Utility Functions'!$N$4,'Utility Functions'!$N$5,'Utility Functions'!$N$6))","v":0},{"$f":"$I$40*valuePL(I13,'Utility Functions'!$O$3:$O$6,'Utility Functions'!$P$3:$P$6)","v":0},{"$f":"$J$40*valuePL(J13,'Utility Functions'!$Q$3:$Q$6,'Utility Functions'!$R$3:$R$6)","v":0},{"$f":"$K$40*(valuePL(K13,'Utility Functions'!$S$3:$S$7,'Utility Functions'!$T$3:$T$7))","v":0},{"$f":"$L$40*(valueE(L13,'Utility Functions'!$V$3,'Utility Functions'!$V$4,'Utility Functions'!$V$5,'Utility Functions'!$V$6))","v":0},{"$f":"$M$40*valuePL(M13,'Utility Functions'!$W$3:$W$6,'Utility Functions'!$X$3:$X$6)","v":0},{"$f":"$N$40*valueE(N13,'Utility Functions'!$Z$3,'Utility Functions'!$Z$4,'Utility Functions'!$Z$5,'Utility Functions'!$Z$6)","v":0},{"$f":"$O$40*valuePL(O13,'Utility Functions'!$AA$3:$AA$5,'Utility Functions'!$AB$3:$AB$5)","v":0},{"$f":"$P$40*valuePL(P13,'Utility Functions'!$AC$3:$AC$7,'Utility Functions'!$AD$3:$AD$7)","v":0},{"$f":"$Q$40*valuePL(Q13,'Utility Functions'!$AE$3:$AE$6,'Utility Functions'!$AF$3:$AF$6)","v":4.0000000000000001E-3},{"$f":"$R$40*valuePL(R13,'Utility Functions'!$AG$3:$AG$6,'Utility Functions'!$AH$3:$AH$6)","v":0.05},{"$f":"$S$40*valuePL(S13,'Utility Functions'!$AI$3:$AI$6,'Utility Functions'!$AJ$3:$AJ$6)","v":0.05},{"$f":"$T$40*valuePL(T13,'Utility Functions'!$AK$3:$AK$8,'Utility Functions'!$AL$3:$AL$8)","v":1.7999999999999999E-2},{"$f":"$U$40*valuePL(U13,'Utility Functions'!$AM$3:$AM$5,'Utility Functions'!$AN$3:$AN$5)","v":0},{"$f":"$V$40*valuePL(V13,'Utility Functions'!$AO$3:$AO$5,'Utility Functions'!$AP$3:$AP$5)","v":2.5000000000000001E-2},{"$f":"$W$40*valuePL(W13,'Utility Functions'!$AQ$3:$AQ$6,'Utility Functions'!$AR$3:$AR$6)","v":8.0000000000000002E-3},{"$f":"$X$40*valuePL(X13,'Utility Functions'!$AS$3:$AS$6,'Utility Functions'!$AT$3:$AT$6)","v":0.04},{"$f":"$Y$40*valuePL(Y13,'Utility Functions'!$AU$3:$AU$6,'Utility Functions'!$AV$3:$AV$6)","v":1.0000000000000002E-2},{"$f":"$Z$40*valuePL(Z13,'Utility Functions'!$AW$3:$AW$5,'Utility Functions'!$AX$3:$AX$5)","v":0.05},{"$f":"$AA$40*valuePL(AA13,'Utility Functions'!$AY$3:$AY$6,'Utility Functions'!$AZ$3:$AZ$6)","v":8.0000000000000002E-3},{"$f":"$AB$40*valuePL(AB13,'Utility Functions'!$BA$3:$BA$5,'Utility Functions'!$BB$3:$BB$5)","v":0.04},{"$f":"$AC$40*valuePL(AC13,'Utility Functions'!$BC$3:$BC$5,'Utility Functions'!$BD$3:$BD$5)","v":0},0.38158740731015961,0.38020117461803976]
[13,{"$f":"$B$40*(valueE(B14,'Utility Functions'!$B$3,'Utility Functions'!$B$4,'Utility Functions'!$B$5,'Utility Functions'!$B$6))","v":0},{"$f":"$C$40*(valueE(C14,'Utility Functions'!$D$3,'Utility Functions'!$D$4,'Utility Functions'!$D$5,'Utility Functions'!$D$6))","v":0},{"$f":"$D$40*(valuePL(D14,'Utility Functions'!$E$3:$E$5,'Utility Functions'!$F$3:$F$5))","v":0},{"$f":"$E$40*(valuePL(E14,'Utility Functions'!$G$3:$G$5,'Utility Functions'!$H$3:$H$5))","v":0},{"$f":"$F$40*(valuePL(F14,'Utility Functions'!$I$3:$I$4,'Utility Functions'!$J$3:$J$5))","v":0},{"$f":"$G$40*(valueE(G14,'Utility Functions'!$L$3,'Utility Functions'!$L$4,'Utility Functions'!$L$5,'Utility Functions'!$L$6))","v":0},{"$f":"$H$40*(valueE(H14,'Utility Functions'!$N$3,'Utility Functions'!$N$4,'Utility Functions'!$N$5,'Utility Functions'!$N$6))","v":1.7077798861480075E-4},{"$f":"$I$40*valuePL(I14,'Utility Functions'!$O$3:$O$6,'Utility Functions'!$P$3:$P$6)","v":9.8727272727272726E-3},{"$f":"$J$40*valuePL(J14,'Utility Functions'!$Q$3:$Q$6,'Utility Functions'!$R$3:$R$6)","v":8.0000000000000004E-4},{"$f":"$K$40*(valuePL(K14,'Utility Functions'!$S$3:$S$7,'Utility Functions'!$T$3:$T$7))","v":6.5818181818181817E-3},{"$f":"$L$40*(valueE(L14,'Utility Functions'!$V$3,'Utility Functions'!$V$4,'Utility Functions'!$V$5,'Utility Functions'!$V$6))","v":0.02},{"$f":"$M$40*valuePL(M14,'Utility Functions'!$W$3:$W$6,'Utility Functions'!$X$3:$X$6)","v":8.0000000000000004E-4},{"$f":"$N$40*valueE(N14,'Utility Functions'!$Z$3,'Utility Functions'!$Z$4,'Utility Functions'!$Z$5,'Utility Functions'!$Z$6)","v":2.6249999999999999E-2},{"$f":"$O$40*valuePL(O14,'Utility Functions'!$AA$3:$AA$5,'Utility Functions'!$AB$3:$AB$5)","v":2.2499999999999999E-2},{"$f":"$P$40*valuePL(P14,'Utility Functions'!$AC$3:$AC$7,'Utility Functions'!$AD$3:$AD$7)","v":0.01},{"$f":"$Q$40*valuePL(Q14,'Utility Functions'!$AE$3:$AE$6,'Utility Functions'!$AF$3:$AF$6)","v":0},{"$f":"$R$40*valuePL(R14,'Utility Functions'!$AG$3:$AG$6,'Utility Functions'!$AH$3:$AH$6)","v":0.05},{"$f":"$S$40*valuePL(S14,'Utility Functions'!$AI$3:$AI$6,'Utility Functions'!$AJ$3:$AJ$6)","v":0.05},{"$f":"$T$40*valuePL(T14,'Utility Functions'!$AK$3:$AK$8,'Utility Functions'!$AL$3:$AL$8)","v":0},{"$f":"$U$40*valuePL(U14,'Utility Functions'!$AM$3:$AM$5,'Utility Functions'!$AN$3:$AN$5)","v":0},{"$f":"$V$40*valuePL(V14,'Utility Functions'!$AO$3:$AO$5,'Utility Functions'!$AP$3:$AP$5)","v":2.5000000000000001E-2},{"$f":"$W$40*valuePL(W14,'Utility Functions'!$AQ$3:$AQ$6,'Utility Functions'!$AR$3:$AR$6)","v":0},{"$f":"$X$40*valuePL(X14,'Utility Functions'!$AS$3:$AS$6,'Utility Functions'!$AT$3:$AT$6)","v":8.0000000000000002E-3},{"$f":"$Y$40*valuePL(Y14,'Utility Functions'!$AU$3:$AU$6,'Utility Functions'!$AV$3:$AV$6)","v":0},{"$f":"$Z$40*valuePL(Z14,'Utility Functions'!$AW$3:$AW$5,'Utility Functions'!$AX$3:$AX$5)","v":0.05},{"$f":"$AA$40*valuePL(AA14,'Utility Functions'!$AY$3:$AY$6,'Utility Functions'!$AZ$3:$AZ$6)","v":8.0000000000000002E-3},{"$f":"$AB$40*valuePL(AB14,'Utility Functions'!$BA$3:$BA$5,'Utility Functions'!$BB$3:$BB$5)","v":0.01},{"$f":"$AC$40*valuePL(AC14,'Utility Functions'!$BC$3:$BC$5,'Utility Functions'!$BD$3:$BD$5)","v":7.4999999999999997E-3},0.30547532344316031,0.30547532344316031]
[14,{"$f":"$B$40*(valueE(B15,'Utility Functions'!$B$3,'Utility Functions'!$B$4,'Utility Functions'!$B$5,'Utility Functions'!$B$6))","v":2.0964205406426323E-2},{"$f":"$C$40*(valueE(C15,'Utility Functions'!$D$3,'Utility Functions'!$D$4,'Utility Functions'!$D$5,'Utility Functions'!$D$6))","v":2.3696993705826886E-2},{"$f":"$D$40*(valuePL(D15,'Utility Functions'!$E$3:$E$5,'Utility Functions'!$F$3:$F$5))","v":1.4999999999999999E-2},{"$f":"$E$40*(valuePL(E15,'Utility Functions'!$G$3:$G$5,'Utility Functions'!$H$3:$H$5))","v":1.4999999999999999E-2},{"$f":"$F$40*(valuePL(F15,'Utility Functions'!$I$3:$I$4,'Utility Functions'!$J$3:$J$5))","v":0},{"$f":"$G$40*(valueE(G15,'Utility Functions'!$L$3,'Utility Functions'!$L$4,'Utility Functions'!$L$5,'Utility Functions'!$L$6))","v":0},{"$f":"$H$40*(valueE(H15,'Utility Functions'!$N$3,'Utility Functions'!$N$4,'Utility Functions'!$N$5,'Utility Functions'!$N$6))","v":0},{"$f":"$I$40*valuePL(I15,'Utility Functions'!$O$3:$O$6,'Utility Functions'!$P$3:$P$6)","v":0},{"$f":"$J$40*valuePL(J15,'Utility Functions'!$Q$3:$Q$6,'Utility Functions'!$R$3:$R$6)","v":0},{"$f":"$K$40*(valuePL(K15,'Utility Functions'!$S$3:$S$7,'Utility Functions'!$T$3:$T$7))","v":0},{"$f":"$L$40*(valueE(L15,'Utility Functions'!$V$3,'Utility Functions'!$V$4,'Utility Functions'!$V$5,'Utility Functions'!$V$6))","v":0},{"$f":"$M$40*valuePL(M15,'Utility Functions'!$W$3:$W$6,'Utility Functions'!$X$3:$X$6)","v":0},{"$f":"$N$40*valueE(N15,'Utility Functions'!$Z$3,'Utility Functions'!$Z$4,'Utility Functions'!$Z$5,'Utility Functions'!$Z$6)","v":2.2499999999999999E-2},{"$f":"$O$40*valuePL(O15,'Utility Functions'!$AA$3:$AA$5,'Utility Functions'!$AB$3:$AB$5)","v":2.2499999999999999E-2},{"$f":"$P$40*valuePL(P15,'Utility Functions'!$AC$3:$AC$7,'Utility Functions'!$AD$3:$AD$7)","v":0.01},{"$f":"$Q$40*valuePL(Q15,'Utility Functions'!$AE$3:$AE$6,'Utility Functions'!$AF$3:$AF$6)","v":0},{"$f":"$R$40*valuePL(R15,'Utility Functions'!$AG$3:$AG$6,'Utility Functions'!$AH$3:$AH$6)","v":0.05},{"$f":"$S$40*valuePL(S15,'Utility Functions'!$AI$3:$AI$6,'Utility Functions'!$AJ$3:$AJ$6)","v":0.05},{"$f":"$T$40*valuePL(T15,'Utility Functions'!$AK$3:$AK$8,'Utility Functions'!$AL$3:$AL$8)","v":0},{"$f":"$U$40*valuePL(U15,'Utility Functions'!$AM$3:$AM$5,'Utility Functions'!$AN$3:$AN$5)","v":0},{"$f":"$V$40*valuePL(V15,'Utility Functions'!$AO$3:$AO$5,'Utility Functions'!$AP$3:$AP$5)","v":2.5000000000000001E-2},{"$f":"$W$40*valuePL(W15,'Utility Functions'!$AQ$3:$AQ$6,'Utility Functions'!$AR$3:$AR$6)","v":8.0000000000000002E-3},{"$f":"$X$40*valuePL(X15,'Utility Functions'!$AS$3:$AS$6,'Utility Functions'!$AT$3:$AT$6)","v":0.04},{"$f":"$Y$40*valuePL(Y15,'Utility Functions'!$AU$3:$AU$6,'Utility Functions'!$AV$3:$AV$6)","v":0.05},{"$f":"$Z$40*valuePL(Z15,'Utility Functions'!$AW$3:$AW$5,'Utility Functions'!$AX$3:$AX$5)","v":2.5000000000000001E-2},{"$f":"$AA$40*valuePL(AA15,'Utility Functions'!$AY$3:$AY$6,'Utility Functions'!$AZ$3:$AZ$6)","v":3.5999999999999997E-2},{"$f":"$AB$40*valuePL(AB15,'Utility Functions'!$BA$3:$BA$5,'Utility Functions'!$BB$3:$BB$5)","v":0.01},{"$f":"$AC$40*valuePL(AC15,'Utility Functions'!$BC$3:$BC$5,'Utility Functions'!$BD$3:$BD$5)","v":7.4999999999999997E-3},0.4311611991122532,0.42916087857610469]
[15,{"$f":"$B$40*(valueE(B16,'Utility Functions'!$B$3,'Utility Functions'!$B$4,'Utility Functions'!$B$5,'Utility Functions'!$B$6))","v":2.9698489925153143E-2},{"$f":"$C$40*(valueE(C16,'Utility Functions'!$D$3,'Utility Functions'!$D$4,'Utility Functions'!$D$5,'Utility Functions'!$D$6))","v":2.1405827917278249E-2},{"$f":"$D$40*(valuePL(D16,'Utility Functions'!$E$3:$E$5,'Utility Functions'!$F$3:$F$5))","v":0.03},{"$f":"$E$40*(valuePL(E16,'Utility Functions'!$G$3:$G$5,'Utility Functions'!$H$3:$H$5))","v":1.4999999999999999E-2},{"$f":"$F$40*(valuePL(F16,'Utility Functions'!$I$3:$I$4,'Utility Functions'!$J$3:$J$5))","v":0.04},{"$f":"$G$40*(valueE(G16,'Utility Functions'!$L$3,'Utility Functions'!$L$4,'Utility Functions'!$L$5,'Utility Functions'!$L$6))","v":0},{"$f":"$H$40*(valueE(H16,'Utility Functions'!$N$3,'Utility Functions'!$N$4,'Utility Functions'!$N$5,'Utility Functions'!$N$6))","v":0},{"$f":"$I$40*valuePL(I16,'Utility Functions'!$O$3:$O$6,'Utility Functions'!$P$3:$P$6)","v":2.7600000000000003E-3},{"$f":"$J$40*valuePL(J16,'Utility Functions'!$Q$3:$Q$6,'Utility Functions'!$R$3:$R$6)","v":1.2000000000000003E-3},{"$f":"$K$40*(valuePL(K16,'Utility Functions'!$S$3:$S$7,'Utility Functions'!$T$3:$T$7))","v":1.2000000000000003E-3},{"$f":"$L$40*(valueE(L16,'Utility Functions'!$V$3,'Utility Functions'!$V$4,'Utility Functions'!$V$5,'Utility Functions'!$V$6))","v":0.02},{"$f":"$M$40*valuePL(M16,'Utility Functions'!$W$3:$W$6,'Utility Functions'!$X$3:$X$6)","v":1.2000000000000003E-3},{"$f":"$N$40*valueE(N16,'Utility Functions'!$Z$3,'Utility Functions'!$Z$4,'Utility Functions'!$Z$5,'Utility Functions'!$Z$6)","v":3.7499999999999999E-3},{"$f":"$O$40*valuePL(O16,'Utility Functions'!$AA$3:$AA$5,'Utility Functions'!$AB$3:$AB$5)","v":0.09},{"$f":"$P$40*valuePL(P16,'Utility Functions'!$AC$3:$AC$7,'Utility Functions'!$AD$3:$AD$7)","v":0.02},{"$f":"$Q$40*valuePL(Q16,'Utility Functions'!$AE$3:$AE$6,'Utility Functions'!$AF$3:$AF$6)","v":0},{"$f":"$R$40*valuePL(R16,'Utility Functions'!$AG$3:$AG$6,'Utility Functions'!$AH$3:$AH$6)","v":4.0000000000000008E-2},{"$f":"$S$40*valuePL(S16,'Utility Functions'!$AI$3:$AI$6,'Utility Functions'!$AJ$3:$AJ$6)","v":0.05},{"$f":"$T$40*valuePL(T16,'Utility Functions'!$AK$3:$AK$8,'Utility Functions'!$AL$3:$AL$8)","v":1.7999999999999999E-2},{"$f":"$U$40*valuePL(U16,'Utility Functions'!$AM$3:$AM$5,'Utility Functions'!$AN$3:$AN$5)","v":0.03},{"$f":"$V$40*valuePL(V16,'Utility Functions'!$AO$3:$AO$5,'Utility Functions'!$AP$3:$AP$5)","v":0},{"$f":"$W$40*valuePL(W16,'Utility Functions'!$AQ$3:$AQ$6,'Utility Functions'!$AR$3:$AR$6)","v":0.04},{"$f":"$X$40*valuePL(X16,'Utility Functions'!$AS$3:$AS$6,'Utility Functions'!$AT$3:$AT$6)","v":8.0000000000000002E-3},{"$f":"$Y$40*valuePL(Y16,'Utility Functions'!$AU$3:$AU$6,'Utility Functions'!$AV$3:$AV$6)","v":1.0000000000000002E-2},{"$f":"$Z$40*valuePL(Z16,'Utility Functions'!$AW$3:$AW$5,'Utility Functions'!$AX$3:$AX$5)","v":0.05},{"$f":"$AA$40*valuePL(AA16,'Utility Functions'!$AY$3:$AY$6,'Utility Functions'!$AZ$3:$AZ$6)","v":0.04},{"$f":"$AB$40*valuePL(AB16,'Utility Functions'!$BA$3:$BA$5,'Utility Functions'!$BB$3:$BB$5)","v":0.04},{"$f":"$AC$40*valuePL(AC16,'Utility Functions'!$BC$3:$BC$5,'Utility Functions'!$BD$3:$BD$5)","v":7.4999999999999997E-3},0.60971431784243146,0.60936712175502528]
[16,{"$f":"$B$40*(valueE(B17,'Utility Functions'!$B$3,'Utility Functions'!$B$4,'Utility Functions'!$B$5,'Utility Functions'!$B$6))","v":0},{"$f":"$C$40*(valueE(C17,'Utility Functions'!$D$3,'Utility Functions'!$D$4,'Utility Functions'!$D$5,'Utility Functions'!$D$6))","v":0},{"$f":"$D$40*(valuePL(D17,'Utility Functions'!$E$3:$E$5,'Utility Functions'!$F$3:$F$5))","v":0},{"$f":"$E$40*(valuePL(E17,'Utility Functions'!$G$3:$G$5,'Utility Functions'!$H$3:$H$5))","v":0},{"$f":"$F$40*(valuePL(F17,'Utility Functions'!$I$3:$I$4,'Utility Functions'!$J$3:$J$5))","v":0},{"$f":"$G$40*(valueE(G17,'Utility Functions'!$L$3,'Utility Functions'!$L$4,'Utility Functions'!$L$5,'Utility Functions'!$L$6))","v":0},{"$f":"$H$40*(valueE(H17,'Utility Functions'!$N$3,'Utility Functions'!$N$4,'Utility Functions'!$N$5,'Utility Functions'!$N$6))","v":0},{"$f":"$I$40*valuePL(I17,'Utility Functions'!$O$3:$O$6,'Utility Functions'!$P$3:$P$6)","v":0.03},{"$f":"$J$40*valuePL(J17,'Utility Functions'!$Q$3:$Q$6,'Utility Functions'!$R$3:$R$6)","v":1.8363636363636363E-2},{"$f":"$K$40*(valuePL(K17,'Utility Functions'!$S$3:$S$7,'Utility Functions'!$T$3:$T$7))","v":0.02},{"$f":"$L$40*(valueE(L17,'Utility Functions'!$V$3,'Utility Functions'!$V$4,'Utility Functions'!$V$5,'Utility Functions'!$V$6))","v":1.6666666666666666E-2},{"$f":"$M$40*valuePL(M17,'Utility Functions'!$W$3:$W$6,'Utility Functions'!$X$3:$X$6)","v":1.8363636363636363E-2},{"$f":"$N$40*valueE(N17,'Utility Functions'!$Z$3,'Utility Functions'!$Z$4,'Utility Functions'!$Z$5,'Utility Functions'!$Z$6)","v":0},{"$f":"$O$40*valuePL(O17,'Utility Functions'!$AA$3:$AA$5,'Utility Functions'!$AB$3:$AB$5)","v":0},{"$f":"$P$40*valuePL(P17,'Utility Functions'!$AC$3:$AC$7,'Utility Functions'!$AD$3:$AD$7)","v":0.03},{"$f":"$Q$40*valuePL(Q17,'Utility Functions'!$AE$3:$AE$6,'Utility Functions'!$AF$3:$AF$6)","v":0},{"$f":"$R$40*valuePL(R17,'Utility Functions'!$AG$3:$AG$6,'Utility Functions'!$AH$3:$AH$6)","v":0.05},{"$f":"$S$40*valuePL(S17,'Utility Functions'!$AI$3:$AI$6,'Utility Functions'!$AJ$3:$AJ$6)","v":0.05},{"$f":"$T$40*valuePL(T17,'Utility Functions'!$AK$3:$AK$8,'Utility Functions'!$AL$3:$AL$8)","v":0.03},{"$f":"$U$40*valuePL(U17,'Utility Functions'!$AM$3:$AM$5,'Utility Functions'!$AN$3:$AN$5)","v":0},{"$f":"$V$40*valuePL(V17,'Utility Functions'!$AO$3:$AO$5,'Utility Functions'!$AP$3:$AP$5)","v":0.05},{"$f":"$W$40*valuePL(W17,'Utility Functions'!$AQ$3:$AQ$6,'Utility Functions'!$AR$3:$AR$6)","v":0.03},{"$f":"$X$40*valuePL(X17,'Utility Functions'!$AS$3:$AS$6,'Utility Functions'!$AT$3:$AT$6)","v":0.03},{"$f":"$Y$40*valuePL(Y17,'Utility Functions'!$AU$3:$AU$6,'Utility Functions'!$AV$3:$AV$6)","v":1.0000000000000002E-2},{"$f":"$Z$40*valuePL(Z17,'Utility Functions'!$AW$3:$AW$5,'Utility Functions'!$AX$3:$AX$5)","v":0.05},{"$f":"$AA$40*valuePL(AA17,'Utility Functions'!$AY$3:$AY$6,'Utility Functions'!$AZ$3:$AZ$6)","v":0.04},{"$f":"$AB$40*valuePL(AB17,'Utility Functions'!$BA$3:$BA$5,'Utility Functions'!$BB$3:$BB$5)","v":0.04},{"$f":"$AC$40*valuePL(AC17,'Utility Functions'!$BC$3:$BC$5,'Utility Functions'!$BD$3:$BD$5)","v":0.03},0.54339393939393943,0.54339393939393943]
[17,{"$f":"$B$40*(valueE(B18,'Utility Functions'!$B$3,'Utility Functions'!$B$4,'Utility Functions'!$B$5,'Utility Functions'!$B$6))","v":9.8904136043327599E-3},{"$f":"$C$40*(valueE(C18,'Utility Functions'!$D$3,'Utility Functions'!$D$4,'Utility Functions'!$D$5,'Utility Functions'!$D$6))","v":2.3696993705826886E-2},{"$f":"$D$40*(valuePL(D18,'Utility Functions'!$E$3:$E$5,'Utility Functions'!$F$3:$F$5))","v":0.03},{"$f":"$E$40*(valuePL(E18,'Utility Functions'!$G$3:$G$5,'Utility Functions'!$H$3:$H$5))","v":1.4999999999999999E-2},{"$f":"$F$40*(valuePL(F18,'Utility Functions'!$I$3:$I$4,'Utility Functions'!$J$3:$J$5))","v":0.04},{"$f":"$G$40*(valueE(G18,'Utility Functions'!$L$3,'Utility Functions'!$L$4,'Utility Functions'!$L$5,'Utility Functions'!$L$6))","v":4.6774193548387091E-3},{"$f":"$H$40*(valueE(H18,'Utility Functions'!$N$3,'Utility Functions'!$N$4,'Utility Functions'!$N$5,'Utility Functions'!$N$6))","v":4.1271347248576853E-3},{"$f":"$I$40*valuePL(I18,'Utility Functions'!$O$3:$O$6,'Utility Functions'!$P$3:$P$6)","v":0},{"$f":"$J$40*valuePL(J18,'Utility Functions'!$Q$3:$Q$6,'Utility Functions'!$R$3:$R$6)","v":0},{"$f":"$K$40*(valuePL(K18,'Utility Functions'!$S$3:$S$7,'Utility Functions'!$T$3:$T$7))","v":0},{"$f":"$L$40*(valueE(L18,'Utility Functions'!$V$3,'Utility Functions'!$V$4,'Utility Functions'!$V$5,'Utility Functions'!$V$6))","v":0.02},{"$f":"$M$40*valuePL(M18,'Utility Functions'!$W$3:$W$6,'Utility Functions'!$X$3:$X$6)","v":1.2000000000000003E-3},{"$f":"$N$40*valueE(N18,'Utility Functions'!$Z$3,'Utility Functions'!$Z$4,'Utility Functions'!$Z$5,'Utility Functions'!$Z$6)","v":0},{"$f":"$O$40*valuePL(O18,'Utility Functions'!$AA$3:$AA$5,'Utility Functions'!$AB$3:$AB$5)","v":0},{"$f":"$P$40*valuePL(P18,'Utility Functions'!$AC$3:$AC$7,'Utility Functions'!$AD$3:$AD$7)","v":0},{"$f":"$Q$40*valuePL(Q18,'Utility Functions'!$AE$3:$AE$6,'Utility Functions'!$AF$3:$AF$6)","v":0},{"$f":"$R$40*valuePL(R18,'Utility Functions'!$AG$3:$AG$6,'Utility Functions'!$AH$3:$AH$6)","v":0.05},{"$f":"$S$40*valuePL(S18,'Utility Functions'!$AI$3:$AI$6,'Utility Functions'!$AJ$3:$AJ$6)","v":3.3000000000000002E-2},{"$f":"$T$40*valuePL(T18,'Utility Functions'!$AK$3:$AK$8,'Utility Functions'!$AL$3:$AL$8)","v":0},{"$f":"$U$40*valuePL(U18,'Utility Functions'!$AM$3:$AM$5,'Utility Functions'!$AN$3:$AN$5)","v":0},{"$f":"$V$40*valuePL(V18,'Utility Functions'!$AO$3:$AO$5,'Utility Functions'!$AP$3:$AP$5)","v":0.05},{"$f":"$W$40*valuePL(W18,'Utility Functions'!$AQ$3:$AQ$6,'Utility Functions'!$AR$3:$AR$6)","v":0.04},{"$f":"$X$40*valuePL(X18,'Utility Functions'!$AS$3:$AS$6,'Utility Functions'!$AT$3:$AT$6)","v":8.0000000000000002E-3},{"$f":"$Y$40*valuePL(Y18,'Utility Functions'!$AU$3:$AU$6,'Utility Functions'!$AV$3:$AV$6)","v":0},{"$f":"$Z$40*valuePL(Z18,'Utility Functions'!$AW$3:$AW$5,'Utility Functions'!$AX$3:$AX$5)","v":2.5000000000000001E-2},{"$f":"$AA$40*valuePL(AA18,'Utility Functions'!$AY$3:$AY$6,'Utility Functions'!$AZ$3:$AZ$6)","v":0},{"$f":"$AB$40*valuePL(AB18,'Utility Functions'!$BA$3:$BA$5,'Utility Functions'!$BB$3:$BB$5)","v":0.04},{"$f":"$AC$40*valuePL(AC18,'Utility Functions'!$BC$3:$BC$5,'Utility Functions'!$BD$3:$BD$5)","v":7.4999999999999997E-3},0.40209196138985603,0.40070572869773624]
[18,{"$f":"$B$40*(valueE(B19,'Utility Functions'!$B$3,'Utility Functions'!$B$4,'Utility Functions'!$B$5,'Utility Functions'!$B$6))","v":0},{"$f":"$C$40*(valueE(C19,'Utility Functions'!$D$3,'Utility Functions'!$D$4,'Utility Functions'!$D$5,'Utility Functions'!$D$6))","v":0},{"$f":"$D$40*(valuePL(D19,'Utility Functions'!$E$3:$E$5,'Utility Functions'!$F$3:$F$5))","v":0},{"$f":"$E$40*(valuePL(E19,'Utility Functions'!$G$3:$G$5,'Utility Functions'!$H$3:$H$5))","v":0},{"$f":"$F$40*(valuePL(F19,'Utility Functions'!$I$3:$I$4,'Utility Functions'!$J$3:$J$5))","v":0},{"$f":"$G$40*(valueE(G19,'Utility Functions'!$L$3,'Utility Functions'!$L$4,'Utility Functions'!$L$5,'Utility Functions'!$L$6))","v":0},{"$f":"$H$40*(valueE(H19,'Utility Functions'!$N$3,'Utility Functions'!$N$4,'Utility Functions'!$N$5,'Utility Functions'!$N$6))","v":4.2694497153700185E-4},{"$f":"$I$40*valuePL(I19,'Utility Functions'!$O$3:$O$6,'Utility Functions'!$P$3:$P$6)","v":0},{"$f":"$J$40*valuePL(J19,'Utility Functions'!$Q$3:$Q$6,'Utility Functions'!$R$3:$R$6)","v":0},{"$f":"$K$40*(valuePL(K19,'Utility Functions'!$S$3:$S$7,'Utility Functions'!$T$3:$T$7))","v":0},{"$f":"$L$40*(valueE(L19,'Utility Functions'!$V$3,'Utility Functions'!$V$4,'Utility Functions'!$V$5,'Utility Functions'!$V$6))","v":0},{"$f":"$M$40*valuePL(M19,'Utility Functions'!$W$3:$W$6,'Utility Functions'!$X$3:$X$6)","v":0},{"$f":"$N$40*valueE(N19,'Utility Functions'!$Z$3,'Utility Functions'!$Z$4,'Utility Functions'!$Z$5,'Utility Functions'!$Z$6)","v":0.03},{"$f":"$O$40*valuePL(O19,'Utility Functions'!$AA$3:$AA$5,'Utility Functions'!$AB$3:$AB$5)","v":2.2499999999999999E-2},{"$f":"$P$40*valuePL(P19,'Utility Functions'!$AC$3:$AC$7,'Utility Functions'!$AD$3:$AD$7)","v":0.01},{"$f":"$Q$40*valuePL(Q19,'Utility Functions'!$AE$3:$AE$6,'Utility Functions'!$AF$3:$AF$6)","v":0.04},{"$f":"$R$40*valuePL(R19,'Utility Functions'!$AG$3:$AG$6,'Utility Functions'!$AH$3:$AH$6)","v":0.05},{"$f":"$S$40*valuePL(S19,'Utility Functions'!$AI$3:$AI$6,'Utility Functions'!$AJ$3:$AJ$6)","v":0.05},{"$f":"$T$40*valuePL(T19,'Utility Functions'!$AK$3:$AK$8,'Utility Functions'!$AL$3:$AL$8)","v":0.03},{"$f":"$U$40*valuePL(U19,'Utility Functions'!$AM$3:$AM$5,'Utility Functions'!$AN$3:$AN$5)","v":7.4999999999999997E-3},{"$f":"$V$40*valuePL(V19,'Utility Functions'!$AO$3:$AO$5,'Utility Functions'!$AP$3:$AP$5)","v":0.05},{"$f":"$W$40*valuePL(W19,'Utility Functions'!$AQ$3:$AQ$6,'Utility Functions'!$AR$3:$AR$6)","v":0.03},{"$f":"$X$40*valuePL(X19,'Utility Functions'!$AS$3:$AS$6,'Utility Functions'!$AT$3:$AT$6)","v":8.0000000000000002E-3},{"$f":"$Y$40*valuePL(Y19,'Utility Functions'!$AU$3:$AU$6,'Utility Functions'!$AV$3:$AV$6)","v":4.0000000000000008E-2},{"$f":"$Z$40*valuePL(Z19,'Utility Functions'!$AW$3:$AW$5,'Utility Functions'!$AX$3:$AX$5)","v":2.5000000000000001E-2},{"$f":"$AA$40*valuePL(AA19,'Utility Functions'!$AY$3:$AY$6,'Utility Functions'!$AZ$3:$AZ$6)","v":3.5999999999999997E-2},{"$f":"$AB$40*valuePL(AB19,'Utility Functions'!$BA$3:$BA$5,'Utility Functions'!$BB$3:$BB$5)","v":0.01},{"$f":"$AC$40*valuePL(AC19,'Utility Functions'!$BC$3:$BC$5,'Utility Functions'!$BD$3:$BD$5)","v":0},0.43942694497153706,0.43942694497153706]
[19,{"$f":"$B$40*(valueE(B20,'Utility Functions'!$B$3,'Utility Functions'!$B$4,'Utility Functions'!$B$5,'Utility Functions'!$B$6))","v":2.3943140737469053E-2},{"$f":"$C$40*(valueE(C20,'Utility Functions'!$D$3,'Utility Functions'!$D$4,'Utility Functions'!$D$5,'Utility Functions'!$D$6))","v":8.0518966871447988E-3},{"$f":"$D$40*(valuePL(D20,'Utility Functions'!$E$3:$E$5,'Utility Functions'!$F$3:$F$5))","v":1.4999999999999999E-2},{"$f":"$E$40*(valuePL(E20,'Utility Functions'!$G$3:$G$5,'Utility Functions'!$H$3:$H$5))","v":0.03},{"$f":"$F$40*(valuePL(F20,'Utility Functions'!$I$3:$I$4,'Utility Functions'!$J$3:$J$5))","v":0},{"$f":"$G$40*(valueE(G20,'Utility Functions'!$L$3,'Utility Functions'!$L$4,'Utility Functions'!$L$5,'Utility Functions'!$L$6))","v":0},{"$f":"$H$40*(valueE(H20,'Utility Functions'!$N$3,'Utility Functions'!$N$4,'Utility Functions'!$N$5,'Utility Functions'!$N$6))","v":0},{"$f":"$I$40*valuePL(I20,'Utility Functions'!$O$3:$O$6,'Utility Functions'!$P$3:$P$6)","v":0},{"$f":"$J$40*valuePL(J20,'Utility Functions'!$Q$3:$Q$6,'Utility Functions'!$R$3:$R$6)","v":0},{"$f":"$K$40*(valuePL(K20,'Utility Functions'!$S$3:$S$7,'Utility Functions'!$T$3:$T$7))","v":0},{"$f":"$L$40*(valueE(L20,'Utility Functions'!$V$3,'Utility Functions'!$V$4,'Utility Functions'!$V$5,'Utility Functions'!$V$6))","v":0},{"$f":"$M$40*valuePL(M20,'Utility Functions'!$W$3:$W$6,'Utility Functions'!$X$3:$X$6)","v":0},{"$f":"$N$40*valueE(N20,'Utility Functions'!$Z$3,'Utility Functions'!$Z$4,'Utility Functions'!$Z$5,'Utility Functions'!$Z$6)","v":0.03},{"$f":"$O$40*valuePL(O20,'Utility Functions'!$AA$3:$AA$5,'Utility Functions'!$AB$3:$AB$5)","v":0.09},{"$f":"$P$40*valuePL(P20,'Utility Functions'!$AC$3:$AC$7,'Utility Functions'!$AD$3:$AD$7)","v":0},{"$f":"$Q$40*valuePL(Q20,'Utility Functions'!$AE$3:$AE$6,'Utility Functions'!$AF$3:$AF$6)","v":0},{"$f":"$R$40*valuePL(R20,'Utility Functions'!$AG$3:$AG$6,'Utility Functions'!$AH$3:$AH$6)","v":4.0000000000000008E-2},{"$f":"$S$40*valuePL(S20,'Utility Functions'!$AI$3:$AI$6,'Utility Functions'!$AJ$3:$AJ$6)","v":0.05},{"$f":"$T$40*valuePL(T20,'Utility Functions'!$AK$3:$AK$8,'Utility Functions'!$AL$3:$AL$8)","v":0},{"$f":"$U$40*valuePL(U20,'Utility Functions'!$AM$3:$AM$5,'Utility Functions'!$AN$3:$AN$5)","v":0},{"$f":"$V$40*valuePL(V20,'Utility Functions'!$AO$3:$AO$5,'Utility Functions'!$AP$3:$AP$5)","v":2.5000000000000001E-2},{"$f":"$W$40*valuePL(W20,'Utility Functions'!$AQ$3:$AQ$6,'Utility Functions'!$AR$3:$AR$6)","v":8.0000000000000002E-3},{"$f":"$X$40*valuePL(X20,'Utility Functions'!$AS$3:$AS$6,'Utility Functions'!$AT$3:$AT$6)","v":0.04},{"$f":"$Y$40*valuePL(Y20,'Utility Functions'!$AU$3:$AU$6,'Utility Functions'!$AV$3:$AV$6)","v":4.0000000000000008E-2},{"$f":"$Z$40*valuePL(Z20,'Utility Functions'!$AW$3:$AW$5,'Utility Functions'!$AX$3:$AX$5)","v":0},{"$f":"$AA$40*valuePL(AA20,'Utility Functions'!$AY$3:$AY$6,'Utility Functions'!$AZ$3:$AZ$6)","v":8.0000000000000002E-3},{"$f":"$AB$40*valuePL(AB20,'Utility Functions'!$BA$3:$BA$5,'Utility Functions'!$BB$3:$BB$5)","v":0},{"$f":"$AC$40*valuePL(AC20,'Utility Functions'!$BC$3:$BC$5,'Utility Functions'!$BD$3:$BD$5)","v":7.4999999999999997E-3},0.41549503742461386,0.41364429487902837]
[20,{"$f":"$B$40*(valueE(B21,'Utility Functions'!$B$3,'Utility Functions'!$B$4,'Utility Functions'!$B$5,'Utility Functions'!$B$6))","v":2.5041071294184137E-2},{"$f":"$C$40*(valueE(C21,'Utility Functions'!$D$3,'Utility Functions'!$D$4,'Utility Functions'!$D$5,'Utility Functions'!$D$6))","v":2.3696993705826886E-2},{"$f":"$D$40*(valuePL(D21,'Utility Functions'!$E$3:$E$5,'Utility Functions'!$F$3:$F$5))","v":1.4999999999999999E-2},{"$f":"$E$40*(valuePL(E21,'Utility Functions'!$G$3:$G$5,'Utility Functions'!$H$3:$H$5))","v":0.03},{"$f":"$F$40*(valuePL(F21,'Utility Functions'!$I$3:$I$4,'Utility Functions'!$J$3:$J$5))","v":0},{"$f":"$G$40*(valueE(G21,'Utility Functions'!$L$3,'Utility Functions'!$L$4,'Utility Functions'!$L$5,'Utility Functions'!$L$6))","v":0},{"$f":"$H$40*(valueE(H21,'Utility Functions'!$N$3,'Utility Functions'!$N$4,'Utility Functions'!$N$5,'Utility Functions'!$N$6))","v":6.1907020872865271E-3},{"$f":"$I$40*valuePL(I21,'Utility Functions'!$O$3:$O$6,'Utility Functions'!$P$3:$P$6)","v":2.8036363636363634E-2},{"$f":"$J$40*valuePL(J21,'Utility Functions'!$Q$3:$Q$6,'Utility Functions'!$R$3:$R$6)","v":1.0181818181818183E-2},{"$f":"$K$40*(valuePL(K21,'Utility Functions'!$S$3:$S$7,'Utility Functions'!$T$3:$T$7))","v":1.8690909090909088E-2},{"$f":"$L$40*(valueE(L21,'Utility Functions'!$V$3,'Utility Functions'!$V$4,'Utility Functions'!$V$5,'Utility Functions'!$V$6))","v":1.3333333333333332E-2},{"$f":"$M$40*valuePL(M21,'Utility Functions'!$W$3:$W$6,'Utility Functions'!$X$3:$X$6)","v":1.0181818181818183E-2},{"$f":"$N$40*valueE(N21,'Utility Functions'!$Z$3,'Utility Functions'!$Z$4,'Utility Functions'!$Z$5,'Utility Functions'!$Z$6)","v":0.03},{"$f":"$O$40*valuePL(O21,'Utility Functions'!$AA$3:$AA$5,'Utility Functions'!$AB$3:$AB$5)","v":0.09},{"$f":"$P$40*valuePL(P21,'Utility Functions'!$AC$3:$AC$7,'Utility Functions'!$AD$3:$AD$7)","v":0.01},{"$f":"$Q$40*valuePL(Q21,'Utility Functions'!$AE$3:$AE$6,'Utility Functions'!$AF$3:$AF$6)","v":0},{"$f":"$R$40*valuePL(R21,'Utility Functions'!$AG$3:$AG$6,'Utility Functions'!$AH$3:$AH$6)","v":0.05},{"$f":"$S$40*valuePL(S21,'Utility Functions'!$AI$3:$AI$6,'Utility Functions'!$AJ$3:$AJ$6)","v":0.05},{"$f":"$T$40*valuePL(T21,'Utility Functions'!$AK$3:$AK$8,'Utility Functions'!$AL$3:$AL$8)","v":1.7999999999999999E-2},{"$f":"$U$40*valuePL(U21,'Utility Functions'!$AM$3:$AM$5,'Utility Functions'!$AN$3:$AN$5)","v":0.03},{"$f":"$V$40*valuePL(V21,'Utility Functions'!$AO$3:$AO$5,'Utility Functions'!$AP$3:$AP$5)","v":2.5000000000000001E-2},{"$f":"$W$40*valuePL(W21,'Utility Functions'!$AQ$3:$AQ$6,'Utility Functions'!$AR$3:$AR$6)","v":0},{"$f":"$X$40*valuePL(X21,'Utility Functions'!$AS$3:$AS$6,'Utility Functions'!$AT$3:$AT$6)","v":0},{"$f":"$Y$40*valuePL(Y21,'Utility Functions'!$AU$3:$AU$6,'Utility Functions'!$AV$3:$AV$6)","v":1.0000000000000002E-2},{"$f":"$Z$40*valuePL(Z21,'Utility Functions'!$AW$3:$AW$5,'Utility Functions'!$AX$3:$AX$5)","v":0.05},{"$f":"$AA$40*valuePL(AA21,'Utility Functions'!$AY$3:$AY$6,'Utility Functions'!$AZ$3:$AZ$6)","v":8.0000000000000002E-3},{"$f":"$AB$40*valuePL(AB21,'Utility Functions'!$BA$3:$BA$5,'Utility Functions'!$BB$3:$BB$5)","v":0},{"$f":"$AC$40*valuePL(AC21,'Utility Functions'!$BC$3:$BC$5,'Utility Functions'!$BD$3:$BD$5)","v":7.4999999999999997E-3},0.55885300951154004,0.55711836291178196]
[{"$f":"A22","v":21},{"$f":"$B$40*(valueE(B22,'Utility Functions'!$B$3,'Utility Functions'!$B$4,'Utility Functions'!$B$5,'Utility Functions'!$B$6))","v":0},{"$f":"$C$40*(valueE(C22,'Utility Functions'!$D$3,'Utility Functions'!$D$4,'Utility Functions'!$D$5,'Utility Functions'!$D$6))","v":0},{"$f":"$D$40*(valuePL(D22,'Utility Functions'!$E$3:$E$5,'Utility Functions'!$F$3:$F$5))","v":0},{"$f":"$E$40*(valuePL(E22,'Utility Functions'!$G$3:$G$5,'Utility Functions'!$H$3:$H$5))","v":0},{"$f":"$F$40*(valuePL(F22,'Utility Functions'!$I$3:$I$4,'Utility Functions'!$J$3:$J$5))","v":0},{"$f":"$G$40*(valueE(G22,'Utility Functions'!$L$3,'Utility Functions'!$L$4,'Utility Functions'!$L$5,'Utility Functions'!$L$6))","v":0},{"$f":"$H$40*(valueE(H22,'Utility Functions'!$N$3,'Utility Functions'!$N$4,'Utility Functions'!$N$5,'Utility Functions'!$N$6))","v":0},{"$f":"$I$40*valuePL(I22,'Utility Functions'!$O$3:$O$6,'Utility Functions'!$P$3:$P$6)","v":0},{"$f":"$J$40*valuePL(J22,'Utility Functions'!$Q$3:$Q$6,'Utility Functions'!$R$3:$R$6)","v":0},{"$f":"$K$40*(valuePL(K22,'Utility Functions'!$S$3:$S$7,'Utility Functions'!$T$3:$T$7))","v":0},{"$f":"$L$40*(valueE(L22,'Utility Functions'!$V$3,'Utility Functions'!$V$4,'Utility Functions'!$V$5,'Utility Functions'!$V$6))","v":0},{"$f":"$M$40*valuePL(M22,'Utility Functions'!$W$3:$W$6,'Utility Functions'!$X$3:$X$6)","v":0},{"$f":"$N$40*valueE(N22,'Utility Functions'!$Z$3,'Utility Functions'!$Z$4,'Utility Functions'!$Z$5,'Utility Functions'!$Z$6)","v":0.03},{"$f":"$O$40*valuePL(O22,'Utility Functions'!$AA$3:$AA$5,'Utility Functions'!$AB$3:$AB$5)","v":0.09},{"$f":"$P$40*valuePL(P22,'Utility Functions'!$AC$3:$AC$7,'Utility Functions'!$AD$3:$AD$7)","v":0},{"$f":"$Q$40*valuePL(Q22,'Utility Functions'!$AE$3:$AE$6,'Utility Functions'!$AF$3:$AF$6)","v":4.0000000000000001E-3},{"$f":"$R$40*valuePL(R22,'Utility Functions'!$AG$3:$AG$6,'Utility Functions'!$AH$3:$AH$6)","v":0.05},{"$f":"$S$40*valuePL(S22,'Utility Functions'!$AI$3:$AI$6,'Utility Functions'!$AJ$3:$AJ$6)","v":0.05},{"$f":"$T$40*valuePL(T22,'Utility Functions'!$AK$3:$AK$8,'Utility Functions'!$AL$3:$AL$8)","v":0.03},{"$f":"$U$40*valuePL(U22,'Utility Functions'!$AM$3:$AM$5,'Utility Functions'!$AN$3:$AN$5)","v":7.4999999999999997E-3},{"$f":"$V$40*valuePL(V22,'Utility Functions'!$AO$3:$AO$5,'Utility Functions'!$AP$3:$AP$5)","v":0},{"$f":"$W$40*valuePL(W22,'Utility Functions'!$AQ$3:$AQ$6,'Utility Functions'!$AR$3:$AR$6)","v":0.03},{"$f":"$X$40*valuePL(X22,'Utility Functions'!$AS$3:$AS$6,'Utility Functions'!$AT$3:$AT$6)","v":0.04},{"$f":"$Y$40*valuePL(Y22,'Utility Functions'!$AU$3:$AU$6,'Utility Functions'!$AV$3:$AV$6)","v":1.0000000000000002E-2},{"$f":"$Z$40*valuePL(Z22,'Utility Functions'!$AW$3:$AW$5,'Utility Functions'!$AX$3:$AX$5)","v":0},{"$f":"$AA$40*valuePL(AA22,'Utility Functions'!$AY$3:$AY$6,'Utility Functions'!$AZ$3:$AZ$6)","v":0.04},{"$f":"$AB$40*valuePL(AB22,'Utility Functions'!$BA$3:$BA$5,'Utility Functions'!$BB$3:$BB$5)","v":0.01},{"$f":"$AC$40*valuePL(AC22,'Utility Functions'!$BC$3:$BC$5,'Utility Functions'!$BD$3:$BD$5)","v":0.03},0.42149999999999999,0.42149999999999999]
[22,{"$f":"$B$40*(valueE(B23,'Utility Functions'!$B$3,'Utility Functions'!$B$4,'Utility Functions'!$B$5,'Utility Functions'!$B$6))","v":0},{"$f":"$C$40*(valueE(C23,'Utility Functions'!$D$3,'Utility Functions'!$D$4,'Utility Functions'!$D$5,'Utility Functions'!$D$6))","v":0},{"$f":"$D$40*(valuePL(D23,'Utility Functions'!$E$3:$E$5,'Utility Functions'!$F$3:$F$5))","v":0},{"$f":"$E$40*(valuePL(E23,'Utility Functions'!$G$3:$G$5,'Utility Functions'!$H$3:$H$5))","v":0},{"$f":"$F$40*(valuePL(F23,'Utility Functions'!$I$3:$I$4,'Utility Functions'!$J$3:$J$5))","v":0},{"$f":"$G$40*(valueE(G23,'Utility Functions'!$L$3,'Utility Functions'!$L$4,'Utility Functions'!$L$5,'Utility Functions'!$L$6))","v":1.2903225806451613E-3},{"$f":"$H$40*(valueE(H23,'Utility Functions'!$N$3,'Utility Functions'!$N$4,'Utility Functions'!$N$5,'Utility Functions'!$N$6))","v":9.1081593927893733E-4},{"$f":"$I$40*valuePL(I23,'Utility Functions'!$O$3:$O$6,'Utility Functions'!$P$3:$P$6)","v":0},{"$f":"$J$40*valuePL(J23,'Utility Functions'!$Q$3:$Q$6,'Utility Functions'!$R$3:$R$6)","v":0},{"$f":"$K$40*(valuePL(K23,'Utility Functions'!$S$3:$S$7,'Utility Functions'!$T$3:$T$7))","v":0},{"$f":"$L$40*(valueE(L23,'Utility Functions'!$V$3,'Utility Functions'!$V$4,'Utility Functions'!$V$5,'Utility Functions'!$V$6))","v":0},{"$f":"$M$40*valuePL(M23,'Utility Functions'!$W$3:$W$6,'Utility Functions'!$X$3:$X$6)","v":0},{"$f":"$N$40*valueE(N23,'Utility Functions'!$Z$3,'Utility Functions'!$Z$4,'Utility Functions'!$Z$5,'Utility Functions'!$Z$6)","v":3.7499999999999999E-3},{"$f":"$O$40*valuePL(O23,'Utility Functions'!$AA$3:$AA$5,'Utility Functions'!$AB$3:$AB$5)","v":0.09},{"$f":"$P$40*valuePL(P23,'Utility Functions'!$AC$3:$AC$7,'Utility Functions'!$AD$3:$AD$7)","v":0.04},{"$f":"$Q$40*valuePL(Q23,'Utility Functions'!$AE$3:$AE$6,'Utility Functions'!$AF$3:$AF$6)","v":0.02},{"$f":"$R$40*valuePL(R23,'Utility Functions'!$AG$3:$AG$6,'Utility Functions'!$AH$3:$AH$6)","v":4.0000000000000008E-2},{"$f":"$S$40*valuePL(S23,'Utility Functions'!$AI$3:$AI$6,'Utility Functions'!$AJ$3:$AJ$6)","v":0.05},{"$f":"$T$40*valuePL(T23,'Utility Functions'!$AK$3:$AK$8,'Utility Functions'!$AL$3:$AL$8)","v":0.03},{"$f":"$U$40*valuePL(U23,'Utility Functions'!$AM$3:$AM$5,'Utility Functions'!$AN$3:$AN$5)","v":0},{"$f":"$V$40*valuePL(V23,'Utility Functions'!$AO$3:$AO$5,'Utility Functions'!$AP$3:$AP$5)","v":2.5000000000000001E-2},{"$f":"$W$40*valuePL(W23,'Utility Functions'!$AQ$3:$AQ$6,'Utility Functions'!$AR$3:$AR$6)","v":0.03},{"$f":"$X$40*valuePL(X23,'Utility Functions'!$AS$3:$AS$6,'Utility Functions'!$AT$3:$AT$6)","v":8.0000000000000002E-3},{"$f":"$Y$40*valuePL(Y23,'Utility Functions'!$AU$3:$AU$6,'Utility Functions'!$AV$3:$AV$6)","v":0},{"$f":"$Z$40*valuePL(Z23,'Utility Functions'!$AW$3:$AW$5,'Utility Functions'!$AX$3:$AX$5)","v":0.05},{"$f":"$AA$40*valuePL(AA23,'Utility Functions'!$AY$3:$AY$6,'Utility Functions'!$AZ$3:$AZ$6)","v":8.0000000000000002E-3},{"$f":"$AB$40*valuePL(AB23,'Utility Functions'!$BA$3:$BA$5,'Utility Functions'!$BB$3:$BB$5)","v":0.04},{"$f":"$AC$40*valuePL(AC23,'Utility Functions'!$BC$3:$BC$5,'Utility Functions'!$BD$3:$BD$5)","v":7.4999999999999997E-3},0.44445113851992418,0.44445113851992418]
[23,{"$f":"$B$40*(valueE(B24,'Utility Functions'!$B$3,'Utility Functions'!$B$4,'Utility Functions'!$B$5,'Utility Functions'!$B$6))","v":2.5041071294184137E-2},{"$f":"$C$40*(valueE(C24,'Utility Functions'!$D$3,'Utility Functions'!$D$4,'Utility Functions'!$D$5,'Utility Functions'!$D$6))","v":2.542345105018548E-2},{"$f":"$D$40*(valuePL(D24,'Utility Functions'!$E$3:$E$5,'Utility Functions'!$F$3:$F$5))","v":0.03},{"$f":"$E$40*(valuePL(E24,'Utility Functions'!$G$3:$G$5,'Utility Functions'!$H$3:$H$5))","v":0},{"$f":"$F$40*(valuePL(F24,'Utility Functions'!$I$3:$I$4,'Utility Functions'!$J$3:$J$5))","v":0},{"$f":"$G$40*(valueE(G24,'Utility Functions'!$L$3,'Utility Functions'!$L$4,'Utility Functions'!$L$5,'Utility Functions'!$L$6))","v":0},{"$f":"$H$40*(valueE(H24,'Utility Functions'!$N$3,'Utility Functions'!$N$4,'Utility Functions'!$N$5,'Utility Functions'!$N$6))","v":0},{"$f":"$I$40*valuePL(I24,'Utility Functions'!$O$3:$O$6,'Utility Functions'!$P$3:$P$6)","v":0},{"$f":"$J$40*valuePL(J24,'Utility Functions'!$Q$3:$Q$6,'Utility Functions'!$R$3:$R$6)","v":0},{"$f":"$K$40*(valuePL(K24,'Utility Functions'!$S$3:$S$7,'Utility Functions'!$T$3:$T$7))","v":0},{"$f":"$L$40*(valueE(L24,'Utility Functions'!$V$3,'Utility Functions'!$V$4,'Utility Functions'!$V$5,'Utility Functions'!$V$6))","v":0},{"$f":"$M$40*valuePL(M24,'Utility Functions'!$W$3:$W$6,'Utility Functions'!$X$3:$X$6)","v":0},{"$f":"$N$40*valueE(N24,'Utility Functions'!$Z$3,'Utility Functions'!$Z$4,'Utility Functions'!$Z$5,'Utility Functions'!$Z$6)","v":0},{"$f":"$O$40*valuePL(O24,'Utility Functions'!$AA$3:$AA$5,'Utility Functions'!$AB$3:$AB$5)","v":0},{"$f":"$P$40*valuePL(P24,'Utility Functions'!$AC$3:$AC$7,'Utility Functions'!$AD$3:$AD$7)","v":0.03},{"$f":"$Q$40*valuePL(Q24,'Utility Functions'!$AE$3:$AE$6,'Utility Functions'!$AF$3:$AF$6)","v":0},{"$f":"$R$40*valuePL(R24,'Utility Functions'!$AG$3:$AG$6,'Utility Functions'!$AH$3:$AH$6)","v":0.05},{"$f":"$S$40*valuePL(S24,'Utility Functions'!$AI$3:$AI$6,'Utility Functions'!$AJ$3:$AJ$6)","v":0.05},{"$f":"$T$40*valuePL(T24,'Utility Functions'!$AK$3:$AK$8,'Utility Functions'!$AL$3:$AL$8)","v":0.03},{"$f":"$U$40*valuePL(U24,'Utility Functions'!$AM$3:$AM$5,'Utility Functions'!$AN$3:$AN$5)","v":0},{"$f":"$V$40*valuePL(V24,'Utility Functions'!$AO$3:$AO$5,'Utility Functions'!$AP$3:$AP$5)","v":0.05},{"$f":"$W$40*valuePL(W24,'Utility Functions'!$AQ$3:$AQ$6,'Utility Functions'!$AR$3:$AR$6)","v":8.0000000000000002E-3},{"$f":"$X$40*valuePL(X24,'Utility Functions'!$AS$3:$AS$6,'Utility Functions'!$AT$3:$AT$6)","v":0.03},{"$f":"$Y$40*valuePL(Y24,'Utility Functions'!$AU$3:$AU$6,'Utility Functions'!$AV$3:$AV$6)","v":1.0000000000000002E-2},{"$f":"$Z$40*valuePL(Z24,'Utility Functions'!$AW$3:$AW$5,'Utility Functions'!$AX$3:$AX$5)","v":2.5000000000000001E-2},{"$f":"$AA$40*valuePL(AA24,'Utility Functions'!$AY$3:$AY$6,'Utility Functions'!$AZ$3:$AZ$6)","v":8.0000000000000002E-3},{"$f":"$AB$40*valuePL(AB24,'Utility Functions'!$BA$3:$BA$5,'Utility Functions'!$BB$3:$BB$5)","v":0},{"$f":"$AC$40*valuePL(AC24,'Utility Functions'!$BC$3:$BC$5,'Utility Functions'!$BD$3:$BD$5)","v":7.4999999999999997E-3},0.37896452234436967,0.3772298757446117]
[24,{"$f":"$B$40*(valueE(B25,'Utility Functions'!$B$3,'Utility Functions'!$B$4,'Utility Functions'!$B$5,'Utility Functions'!$B$6))","v":1.896364549751255E-2},{"$f":"$C$40*(valueE(C25,'Utility Functions'!$D$3,'Utility Functions'!$D$4,'Utility Functions'!$D$5,'Utility Functions'!$D$6))","v":1.3942790146123618E-2},{"$f":"$D$40*(valuePL(D25,'Utility Functions'!$E$3:$E$5,'Utility Functions'!$F$3:$F$5))","v":0.03},{"$f":"$E$40*(valuePL(E25,'Utility Functions'!$G$3:$G$5,'Utility Functions'!$H$3:$H$5))","v":0},{"$f":"$F$40*(valuePL(F25,'Utility Functions'!$I$3:$I$4,'Utility Functions'!$J$3:$J$5))","v":0},{"$f":"$G$40*(valueE(G25,'Utility Functions'!$L$3,'Utility Functions'!$L$4,'Utility Functions'!$L$5,'Utility Functions'!$L$6))","v":0},{"$f":"$H$40*(valueE(H25,'Utility Functions'!$N$3,'Utility Functions'!$N$4,'Utility Functions'!$N$5,'Utility Functions'!$N$6))","v":0},{"$f":"$I$40*valuePL(I25,'Utility Functions'!$O$3:$O$6,'Utility Functions'!$P$3:$P$6)","v":0},{"$f":"$J$40*valuePL(J25,'Utility Functions'!$Q$3:$Q$6,'Utility Functions'!$R$3:$R$6)","v":0},{"$f":"$K$40*(valuePL(K25,'Utility Functions'!$S$3:$S$7,'Utility Functions'!$T$3:$T$7))","v":0},{"$f":"$L$40*(valueE(L25,'Utility Functions'!$V$3,'Utility Functions'!$V$4,'Utility Functions'!$V$5,'Utility Functions'!$V$6))","v":0},{"$f":"$M$40*valuePL(M25,'Utility Functions'!$W$3:$W$6,'Utility Functions'!$X$3:$X$6)","v":0},{"$f":"$N$40*valueE(N25,'Utility Functions'!$Z$3,'Utility Functions'!$Z$4,'Utility Functions'!$Z$5,'Utility Functions'!$Z$6)","v":0},{"$f":"$O$40*valuePL(O25,'Utility Functions'!$AA$3:$AA$5,'Utility Functions'!$AB$3:$AB$5)","v":0},{"$f":"$P$40*valuePL(P25,'Utility Functions'!$AC$3:$AC$7,'Utility Functions'!$AD$3:$AD$7)","v":0},{"$f":"$Q$40*valuePL(Q25,'Utility Functions'!$AE$3:$AE$6,'Utility Functions'!$AF$3:$AF$6)","v":0},{"$f":"$R$40*valuePL(R25,'Utility Functions'!$AG$3:$AG$6,'Utility Functions'!$AH$3:$AH$6)","v":0.05},{"$f":"$S$40*valuePL(S25,'Utility Functions'!$AI$3:$AI$6,'Utility Functions'!$AJ$3:$AJ$6)","v":0.05},{"$f":"$T$40*valuePL(T25,'Utility Functions'!$AK$3:$AK$8,'Utility Functions'!$AL$3:$AL$8)","v":0.03},{"$f":"$U$40*valuePL(U25,'Utility Functions'!$AM$3:$AM$5,'Utility Functions'!$AN$3:$AN$5)","v":0},{"$f":"$V$40*valuePL(V25,'Utility Functions'!$AO$3:$AO$5,'Utility Functions'!$AP$3:$AP$5)","v":0},{"$f":"$W$40*valuePL(W25,'Utility Functions'!$AQ$3:$AQ$6,'Utility Functions'!$AR$3:$AR$6)","v":0.04},{"$f":"$X$40*valuePL(X25,'Utility Functions'!$AS$3:$AS$6,'Utility Functions'!$AT$3:$AT$6)","v":8.0000000000000002E-3},{"$f":"$Y$40*valuePL(Y25,'Utility Functions'!$AU$3:$AU$6,'Utility Functions'!$AV$3:$AV$6)","v":0.05},{"$f":"$Z$40*valuePL(Z25,'Utility Functions'!$AW$3:$AW$5,'Utility Functions'!$AX$3:$AX$5)","v":0.05},{"$f":"$AA$40*valuePL(AA25,'Utility Functions'!$AY$3:$AY$6,'Utility Functions'!$AZ$3:$AZ$6)","v":8.0000000000000002E-3},{"$f":"$AB$40*valuePL(AB25,'Utility Functions'!$BA$3:$BA$5,'Utility Functions'!$BB$3:$BB$5)","v":0},{"$f":"$AC$40*valuePL(AC25,'Utility Functions'!$BC$3:$BC$5,'Utility Functions'!$BD$3:$BD$5)","v":0.03},0.37890643564363613,0.37690508369846576]
[25,{"$f":"$B$40*(valueE(B26,'Utility Functions'!$B$3,'Utility Functions'!$B$4,'Utility Functions'!$B$5,'Utility Functions'!$B$6))","v":2.5041071294184137E-2},{"$f":"$C$40*(valueE(C26,'Utility Functions'!$D$3,'Utility Functions'!$D$4,'Utility Functions'!$D$5,'Utility Functions'!$D$6))","v":2.542345105018548E-2},{"$f":"$D$40*(valuePL(D26,'Utility Functions'!$E$3:$E$5,'Utility Functions'!$F$3:$F$5))","v":0.03},{"$f":"$E$40*(valuePL(E26,'Utility Functions'!$G$3:$G$5,'Utility Functions'!$H$3:$H$5))","v":0},{"$f":"$F$40*(valuePL(F26,'Utility Functions'!$I$3:$I$4,'Utility Functions'!$J$3:$J$5))","v":0},{"$f":"$G$40*(valueE(G26,'Utility Functions'!$L$3,'Utility Functions'!$L$4,'Utility Functions'!$L$5,'Utility Functions'!$L$6))","v":1.4193548387096775E-2},{"$f":"$H$40*(valueE(H26,'Utility Functions'!$N$3,'Utility Functions'!$N$4,'Utility Functions'!$N$5,'Utility Functions'!$N$6))","v":4.383301707779886E-3},{"$f":"$I$40*valuePL(I26,'Utility Functions'!$O$3:$O$6,'Utility Functions'!$P$3:$P$6)","v":0},{"$f":"$J$40*valuePL(J26,'Utility Functions'!$Q$3:$Q$6,'Utility Functions'!$R$3:$R$6)","v":0},{"$f":"$K$40*(valuePL(K26,'Utility Functions'!$S$3:$S$7,'Utility Functions'!$T$3:$T$7))","v":0},{"$f":"$L$40*(valueE(L26,'Utility Functions'!$V$3,'Utility Functions'!$V$4,'Utility Functions'!$V$5,'Utility Functions'!$V$6))","v":0},{"$f":"$M$40*valuePL(M26,'Utility Functions'!$W$3:$W$6,'Utility Functions'!$X$3:$X$6)","v":0},{"$f":"$N$40*valueE(N26,'Utility Functions'!$Z$3,'Utility Functions'!$Z$4,'Utility Functions'!$Z$5,'Utility Functions'!$Z$6)","v":0.03},{"$f":"$O$40*valuePL(O26,'Utility Functions'!$AA$3:$AA$5,'Utility Functions'!$AB$3:$AB$5)","v":2.2499999999999999E-2},{"$f":"$P$40*valuePL(P26,'Utility Functions'!$AC$3:$AC$7,'Utility Functions'!$AD$3:$AD$7)","v":0.02},{"$f":"$Q$40*valuePL(Q26,'Utility Functions'!$AE$3:$AE$6,'Utility Functions'!$AF$3:$AF$6)","v":0.02},{"$f":"$R$40*valuePL(R26,'Utility Functions'!$AG$3:$AG$6,'Utility Functions'!$AH$3:$AH$6)","v":0.05},{"$f":"$S$40*valuePL(S26,'Utility Functions'!$AI$3:$AI$6,'Utility Functions'!$AJ$3:$AJ$6)","v":0.05},{"$f":"$T$40*valuePL(T26,'Utility Functions'!$AK$3:$AK$8,'Utility Functions'!$AL$3:$AL$8)","v":0},{"$f":"$U$40*valuePL(U26,'Utility Functions'!$AM$3:$AM$5,'Utility Functions'!$AN$3:$AN$5)","v":0},{"$f":"$V$40*valuePL(V26,'Utility Functions'!$AO$3:$AO$5,'Utility Functions'!$AP$3:$AP$5)","v":0.05},{"$f":"$W$40*valuePL(W26,'Utility Functions'!$AQ$3:$AQ$6,'Utility Functions'!$AR$3:$AR$6)","v":8.0000000000000002E-3},{"$f":"$X$40*valuePL(X26,'Utility Functions'!$AS$3:$AS$6,'Utility Functions'!$AT$3:$AT$6)","v":0.04},{"$f":"$Y$40*valuePL(Y26,'Utility Functions'!$AU$3:$AU$6,'Utility Functions'!$AV$3:$AV$6)","v":4.0000000000000008E-2},{"$f":"$Z$40*valuePL(Z26,'Utility Functions'!$AW$3:$AW$5,'Utility Functions'!$AX$3:$AX$5)","v":2.5000000000000001E-2},{"$f":"$AA$40*valuePL(AA26,'Utility Functions'!$AY$3:$AY$6,'Utility Functions'!$AZ$3:$AZ$6)","v":8.0000000000000002E-3},{"$f":"$AB$40*valuePL(AB26,'Utility Functions'!$BA$3:$BA$5,'Utility Functions'!$BB$3:$BB$5)","v":0.04},{"$f":"$AC$40*valuePL(AC26,'Utility Functions'!$BC$3:$BC$5,'Utility Functions'!$BD$3:$BD$5)","v":0.03},0.53254137243924626,0.53080672583948829]
[26,{"$f":"$B$40*(valueE(B27,'Utility Functions'!$B$3,'Utility Functions'!$B$4,'Utility Functions'!$B$5,'Utility Functions'!$B$6))","v":2.8998845838620748E-2},{"$f":"$C$40*(valueE(C27,'Utility Functions'!$D$3,'Utility Functions'!$D$4,'Utility Functions'!$D$5,'Utility Functions'!$D$6))","v":2.542345105018548E-2},{"$f":"$D$40*(valuePL(D27,'Utility Functions'!$E$3:$E$5,'Utility Functions'!$F$3:$F$5))","v":0.03},{"$f":"$E$40*(valuePL(E27,'Utility Functions'!$G$3:$G$5,'Utility Functions'!$H$3:$H$5))","v":1.4999999999999999E-2},{"$f":"$F$40*(valuePL(F27,'Utility Functions'!$I$3:$I$4,'Utility Functions'!$J$3:$J$5))","v":0},{"$f":"$G$40*(valueE(G27,'Utility Functions'!$L$3,'Utility Functions'!$L$4,'Utility Functions'!$L$5,'Utility Functions'!$L$6))","v":0},{"$f":"$H$40*(valueE(H27,'Utility Functions'!$N$3,'Utility Functions'!$N$4,'Utility Functions'!$N$5,'Utility Functions'!$N$6))","v":0},{"$f":"$I$40*valuePL(I27,'Utility Functions'!$O$3:$O$6,'Utility Functions'!$P$3:$P$6)","v":0},{"$f":"$J$40*valuePL(J27,'Utility Functions'!$Q$3:$Q$6,'Utility Functions'!$R$3:$R$6)","v":0},{"$f":"$K$40*(valuePL(K27,'Utility Functions'!$S$3:$S$7,'Utility Functions'!$T$3:$T$7))","v":0},{"$f":"$L$40*(valueE(L27,'Utility Functions'!$V$3,'Utility Functions'!$V$4,'Utility Functions'!$V$5,'Utility Functions'!$V$6))","v":0},{"$f":"$M$40*valuePL(M27,'Utility Functions'!$W$3:$W$6,'Utility Functions'!$X$3:$X$6)","v":0},{"$f":"$N$40*valueE(N27,'Utility Functions'!$Z$3,'Utility Functions'!$Z$4,'Utility Functions'!$Z$5,'Utility Functions'!$Z$6)","v":0},{"$f":"$O$40*valuePL(O27,'Utility Functions'!$AA$3:$AA$5,'Utility Functions'!$AB$3:$AB$5)","v":0},{"$f":"$P$40*valuePL(P27,'Utility Functions'!$AC$3:$AC$7,'Utility Functions'!$AD$3:$AD$7)","v":0.03},{"$f":"$Q$40*valuePL(Q27,'Utility Functions'!$AE$3:$AE$6,'Utility Functions'!$AF$3:$AF$6)","v":0},{"$f":"$R$40*valuePL(R27,'Utility Functions'!$AG$3:$AG$6,'Utility Functions'!$AH$3:$AH$6)","v":0.05},{"$f":"$S$40*valuePL(S27,'Utility Functions'!$AI$3:$AI$6,'Utility Functions'!$AJ$3:$AJ$6)","v":0.05},{"$f":"$T$40*valuePL(T27,'Utility Functions'!$AK$3:$AK$8,'Utility Functions'!$AL$3:$AL$8)","v":2.4E-2},{"$f":"$U$40*valuePL(U27,'Utility Functions'!$AM$3:$AM$5,'Utility Functions'!$AN$3:$AN$5)","v":0},{"$f":"$V$40*valuePL(V27,'Utility Functions'!$AO$3:$AO$5,'Utility Functions'!$AP$3:$AP$5)","v":0.05},{"$f":"$W$40*valuePL(W27,'Utility Functions'!$AQ$3:$AQ$6,'Utility Functions'!$AR$3:$AR$6)","v":8.0000000000000002E-3},{"$f":"$X$40*valuePL(X27,'Utility Functions'!$AS$3:$AS$6,'Utility Functions'!$AT$3:$AT$6)","v":0},{"$f":"$Y$40*valuePL(Y27,'Utility Functions'!$AU$3:$AU$6,'Utility Functions'!$AV$3:$AV$6)","v":4.0000000000000008E-2},{"$f":"$Z$40*valuePL(Z27,'Utility Functions'!$AW$3:$AW$5,'Utility Functions'!$AX$3:$AX$5)","v":0},{"$f":"$AA$40*valuePL(AA27,'Utility Functions'!$AY$3:$AY$6,'Utility Functions'!$AZ$3:$AZ$6)","v":8.0000000000000002E-3},{"$f":"$AB$40*valuePL(AB27,'Utility Functions'!$BA$3:$BA$5,'Utility Functions'!$BB$3:$BB$5)","v":0.04},{"$f":"$AC$40*valuePL(AC27,'Utility Functions'!$BC$3:$BC$5,'Utility Functions'!$BD$3:$BD$5)","v":0.03},0.42942229688880618,0.4286593560912294]
[27,{"$f":"$B$40*(valueE(B28,'Utility Functions'!$B$3,'Utility Functions'!$B$4,'Utility Functions'!$B$5,'Utility Functions'!$B$6))","v":0},{"$f":"$C$40*(valueE(C28,'Utility Functions'!$D$3,'Utility Functions'!$D$4,'Utility Functions'!$D$5,'Utility Functions'!$D$6))","v":1.3942790146123618E-2},{"$f":"$D$40*(valuePL(D28,'Utility Functions'!$E$3:$E$5,'Utility Functions'!$F$3:$F$5))","v":0.03},{"$f":"$E$40*(valuePL(E28,'Utility Functions'!$G$3:$G$5,'Utility Functions'!$H$3:$H$5))","v":0},{"$f":"$F$40*(valuePL(F28,'Utility Functions'!$I$3:$I$4,'Utility Functions'!$J$3:$J$5))","v":0},{"$f":"$G$40*(valueE(G28,'Utility Functions'!$L$3,'Utility Functions'!$L$4,'Utility Functions'!$L$5,'Utility Functions'!$L$6))","v":0},{"$f":"$H$40*(valueE(H28,'Utility Functions'!$N$3,'Utility Functions'!$N$4,'Utility Functions'!$N$5,'Utility Functions'!$N$6))","v":0},{"$f":"$I$40*valuePL(I28,'Utility Functions'!$O$3:$O$6,'Utility Functions'!$P$3:$P$6)","v":0},{"$f":"$J$40*valuePL(J28,'Utility Functions'!$Q$3:$Q$6,'Utility Functions'!$R$3:$R$6)","v":0},{"$f":"$K$40*(valuePL(K28,'Utility Functions'!$S$3:$S$7,'Utility Functions'!$T$3:$T$7))","v":0.02},{"$f":"$L$40*(valueE(L28,'Utility Functions'!$V$3,'Utility Functions'!$V$4,'Utility Functions'!$V$5,'Utility Functions'!$V$6))","v":0},{"$f":"$M$40*valuePL(M28,'Utility Functions'!$W$3:$W$6,'Utility Functions'!$X$3:$X$6)","v":2E-3},{"$f":"$N$40*valueE(N28,'Utility Functions'!$Z$3,'Utility Functions'!$Z$4,'Utility Functions'!$Z$5,'Utility Functions'!$Z$6)","v":0},{"$f":"$O$40*valuePL(O28,'Utility Functions'!$AA$3:$AA$5,'Utility Functions'!$AB$3:$AB$5)","v":0},{"$f":"$P$40*valuePL(P28,'Utility Functions'!$AC$3:$AC$7,'Utility Functions'!$AD$3:$AD$7)","v":0.02},{"$f":"$Q$40*valuePL(Q28,'Utility Functions'!$AE$3:$AE$6,'Utility Functions'!$AF$3:$AF$6)","v":0.02},{"$f":"$R$40*valuePL(R28,'Utility Functions'!$AG$3:$AG$6,'Utility Functions'!$AH$3:$AH$6)","v":0.05},{"$f":"$S$40*valuePL(S28,'Utility Functions'!$AI$3:$AI$6,'Utility Functions'!$AJ$3:$AJ$6)","v":0.05},{"$f":"$T$40*valuePL(T28,'Utility Functions'!$AK$3:$AK$8,'Utility Functions'!$AL$3:$AL$8)","v":0.03},{"$f":"$U$40*valuePL(U28,'Utility Functions'!$AM$3:$AM$5,'Utility Functions'!$AN$3:$AN$5)","v":0},{"$f":"$V$40*valuePL(V28,'Utility Functions'!$AO$3:$AO$5,'Utility Functions'!$AP$3:$AP$5)","v":2.5000000000000001E-2},{"$f":"$W$40*valuePL(W28,'Utility Functions'!$AQ$3:$AQ$6,'Utility Functions'!$AR$3:$AR$6)","v":0.03},{"$f":"$X$40*valuePL(X28,'Utility Functions'!$AS$3:$AS$6,'Utility Functions'!$AT$3:$AT$6)","v":0.04},{"$f":"$Y$40*valuePL(Y28,'Utility Functions'!$AU$3:$AU$6,'Utility Functions'!$AV$3:$AV$6)","v":1.0000000000000002E-2},{"$f":"$Z$40*valuePL(Z28,'Utility Functions'!$AW$3:$AW$5,'Utility Functions'!$AX$3:$AX$5)","v":0},{"$f":"$AA$40*valuePL(AA28,'Utility Functions'!$AY$3:$AY$6,'Utility Functions'!$AZ$3:$AZ$6)","v":0},{"$f":"$AB$40*valuePL(AB28,'Utility Functions'!$BA$3:$BA$5,'Utility Functions'!$BB$3:$BB$5)","v":0},{"$f":"$AC$40*valuePL(AC28,'Utility Functions'!$BC$3:$BC$5,'Utility Functions'!$BD$3:$BD$5)","v":0},0.34094279014612355,0.34094279014612355]
[{"$f":"A29","v":28},{"$f":"$B$40*(valueE(B29,'Utility Functions'!$B$3,'Utility Functions'!$B$4,'Utility Functions'!$B$5,'Utility Functions'!$B$6))","v":1.3535671425672068E-2},{"$f":"$C$40*(valueE(C29,'Utility Functions'!$D$3,'Utility Functions'!$D$4,'Utility Functions'!$D$5,'Utility Functions'!$D$6))","v":1.3942790146123618E-2},{"$f":"$D$40*(valuePL(D29,'Utility Functions'!$E$3:$E$5,'Utility Functions'!$F$3:$F$5))","v":0.03},{"$f":"$E$40*(valuePL(E29,'Utility Functions'!$G$3:$G$5,'Utility Functions'!$H$3:$H$5))","v":0},{"$f":"$F$40*(valuePL(F29,'Utility Functions'!$I$3:$I$4,'Utility Functions'!$J$3:$J$5))","v":0.04},{"$f":"$G$40*(valueE(G29,'Utility Functions'!$L$3,'Utility Functions'!$L$4,'Utility Functions'!$L$5,'Utility Functions'!$L$6))","v":0},{"$f":"$H$40*(valueE(H29,'Utility Functions'!$N$3,'Utility Functions'!$N$4,'Utility Functions'!$N$5,'Utility Functions'!$N$6))","v":0},{"$f":"$I$40*valuePL(I29,'Utility Functions'!$O$3:$O$6,'Utility Functions'!$P$3:$P$6)","v":0},{"$f":"$J$40*valuePL(J29,'Utility Functions'!$Q$3:$Q$6,'Utility Functions'!$R$3:$R$6)","v":0},{"$f":"$K$40*(valuePL(K29,'Utility Functions'!$S$3:$S$7,'Utility Functions'!$T$3:$T$7))","v":0},{"$f":"$L$40*(valueE(L29,'Utility Functions'!$V$3,'Utility Functions'!$V$4,'Utility Functions'!$V$5,'Utility Functions'!$V$6))","v":6.6666666666666662E-3},{"$f":"$M$40*valuePL(M29,'Utility Functions'!$W$3:$W$6,'Utility Functions'!$X$3:$X$6)","v":2E-3},{"$f":"$N$40*valueE(N29,'Utility Functions'!$Z$3,'Utility Functions'!$Z$4,'Utility Functions'!$Z$5,'Utility Functions'!$Z$6)","v":0},{"$f":"$O$40*valuePL(O29,'Utility Functions'!$AA$3:$AA$5,'Utility Functions'!$AB$3:$AB$5)","v":0},{"$f":"$P$40*valuePL(P29,'Utility Functions'!$AC$3:$AC$7,'Utility Functions'!$AD$3:$AD$7)","v":0.04},{"$f":"$Q$40*valuePL(Q29,'Utility Functions'!$AE$3:$AE$6,'Utility Functions'!$AF$3:$AF$6)","v":0},{"$f":"$R$40*valuePL(R29,'Utility Functions'!$AG$3:$AG$6,'Utility Functions'!$AH$3:$AH$6)","v":0.05},{"$f":"$S$40*valuePL(S29,'Utility Functions'!$AI$3:$AI$6,'Utility Functions'!$AJ$3:$AJ$6)","v":0.05},{"$f":"$T$40*valuePL(T29,'Utility Functions'!$AK$3:$AK$8,'Utility Functions'!$AL$3:$AL$8)","v":2.4E-2},{"$f":"$U$40*valuePL(U29,'Utility Functions'!$AM$3:$AM$5,'Utility Functions'!$AN$3:$AN$5)","v":0},{"$f":"$V$40*valuePL(V29,'Utility Functions'!$AO$3:$AO$5,'Utility Functions'!$AP$3:$AP$5)","v":0.05},{"$f":"$W$40*valuePL(W29,'Utility Functions'!$AQ$3:$AQ$6,'Utility Functions'!$AR$3:$AR$6)","v":0.04},{"$f":"$X$40*valuePL(X29,'Utility Functions'!$AS$3:$AS$6,'Utility Functions'!$AT$3:$AT$6)","v":0.04},{"$f":"$Y$40*valuePL(Y29,'Utility Functions'!$AU$3:$AU$6,'Utility Functions'!$AV$3:$AV$6)","v":1.0000000000000002E-2},{"$f":"$Z$40*valuePL(Z29,'Utility Functions'!$AW$3:$AW$5,'Utility Functions'!$AX$3:$AX$5)","v":0},{"$f":"$AA$40*valuePL(AA29,'Utility Functions'!$AY$3:$AY$6,'Utility Functions'!$AZ$3:$AZ$6)","v":3.5999999999999997E-2},{"$f":"$AB$40*valuePL(AB29,'Utility Functions'!$BA$3:$BA$5,'Utility Functions'!$BB$3:$BB$5)","v":0.04},{"$f":"$AC$40*valuePL(AC29,'Utility Functions'!$BC$3:$BC$5,'Utility Functions'!$BD$3:$BD$5)","v":7.4999999999999997E-3},0.49364512823846229,0.49191370390613232]
[29,{"$f":"$B$40*(valueE(B30,'Utility Functions'!$B$3,'Utility Functions'!$B$4,'Utility Functions'!$B$5,'Utility Functions'!$B$6))","v":2.5041071294184137E-2},{"$f":"$C$40*(valueE(C30,'Utility Functions'!$D$3,'Utility Functions'!$D$4,'Utility Functions'!$D$5,'Utility Functions'!$D$6))","v":2.1405827917278249E-2},{"$f":"$D$40*(valuePL(D30,'Utility Functions'!$E$3:$E$5,'Utility Functions'!$F$3:$F$5))","v":0.03},{"$f":"$E$40*(valuePL(E30,'Utility Functions'!$G$3:$G$5,'Utility Functions'!$H$3:$H$5))","v":1.4999999999999999E-2},{"$f":"$F$40*(valuePL(F30,'Utility Functions'!$I$3:$I$4,'Utility Functions'!$J$3:$J$5))","v":0},{"$f":"$G$40*(valueE(G30,'Utility Functions'!$L$3,'Utility Functions'!$L$4,'Utility Functions'!$L$5,'Utility Functions'!$L$6))","v":0},{"$f":"$H$40*(valueE(H30,'Utility Functions'!$N$3,'Utility Functions'!$N$4,'Utility Functions'!$N$5,'Utility Functions'!$N$6))","v":0},{"$f":"$I$40*valuePL(I30,'Utility Functions'!$O$3:$O$6,'Utility Functions'!$P$3:$P$6)","v":1.8E-3},{"$f":"$J$40*valuePL(J30,'Utility Functions'!$Q$3:$Q$6,'Utility Functions'!$R$3:$R$6)","v":1.3454545454545455E-2},{"$f":"$K$40*(valuePL(K30,'Utility Functions'!$S$3:$S$7,'Utility Functions'!$T$3:$T$7))","v":0},{"$f":"$L$40*(valueE(L30,'Utility Functions'!$V$3,'Utility Functions'!$V$4,'Utility Functions'!$V$5,'Utility Functions'!$V$6))","v":0.02},{"$f":"$M$40*valuePL(M30,'Utility Functions'!$W$3:$W$6,'Utility Functions'!$X$3:$X$6)","v":1.3454545454545455E-2},{"$f":"$N$40*valueE(N30,'Utility Functions'!$Z$3,'Utility Functions'!$Z$4,'Utility Functions'!$Z$5,'Utility Functions'!$Z$6)","v":0},{"$f":"$O$40*valuePL(O30,'Utility Functions'!$AA$3:$AA$5,'Utility Functions'!$AB$3:$AB$5)","v":0},{"$f":"$P$40*valuePL(P30,'Utility Functions'!$AC$3:$AC$7,'Utility Functions'!$AD$3:$AD$7)","v":0.01},{"$f":"$Q$40*valuePL(Q30,'Utility Functions'!$AE$3:$AE$6,'Utility Functions'!$AF$3:$AF$6)","v":0},{"$f":"$R$40*valuePL(R30,'Utility Functions'!$AG$3:$AG$6,'Utility Functions'!$AH$3:$AH$6)","v":0.05},{"$f":"$S$40*valuePL(S30,'Utility Functions'!$AI$3:$AI$6,'Utility Functions'!$AJ$3:$AJ$6)","v":0.05},{"$f":"$T$40*valuePL(T30,'Utility Functions'!$AK$3:$AK$8,'Utility Functions'!$AL$3:$AL$8)","v":2.4E-2},{"$f":"$U$40*valuePL(U30,'Utility Functions'!$AM$3:$AM$5,'Utility Functions'!$AN$3:$AN$5)","v":0},{"$f":"$V$40*valuePL(V30,'Utility Functions'!$AO$3:$AO$5,'Utility Functions'!$AP$3:$AP$5)","v":0.05},{"$f":"$W$40*valuePL(W30,'Utility Functions'!$AQ$3:$AQ$6,'Utility Functions'!$AR$3:$AR$6)","v":8.0000000000000002E-3},{"$f":"$X$40*valuePL(X30,'Utility Functions'!$AS$3:$AS$6,'Utility Functions'!$AT$3:$AT$6)","v":0},{"$f":"$Y$40*valuePL(Y30,'Utility Functions'!$AU$3:$AU$6,'Utility Functions'!$AV$3:$AV$6)","v":4.0000000000000008E-2},{"$f":"$Z$40*valuePL(Z30,'Utility Functions'!$AW$3:$AW$5,'Utility Functions'!$AX$3:$AX$5)","v":2.5000000000000001E-2},{"$f":"$AA$40*valuePL(AA30,'Utility Functions'!$AY$3:$AY$6,'Utility Functions'!$AZ$3:$AZ$6)","v":8.0000000000000002E-3},{"$f":"$AB$40*valuePL(AB30,'Utility Functions'!$BA$3:$BA$5,'Utility Functions'!$BB$3:$BB$5)","v":0.01},{"$f":"$AC$40*valuePL(AC30,'Utility Functions'!$BC$3:$BC$5,'Utility Functions'!$BD$3:$BD$5)","v":0.03},0.4451559901205534,0.44342134352079532]
[30,{"$f":"$B$40*(valueE(B31,'Utility Functions'!$B$3,'Utility Functions'!$B$4,'Utility Functions'!$B$5,'Utility Functions'!$B$6))","v":2.9959234351431094E-2},{"$f":"$C$40*(valueE(C31,'Utility Functions'!$D$3,'Utility Functions'!$D$4,'Utility Functions'!$D$5,'Utility Functions'!$D$6))","v":2.542345105018548E-2},{"$f":"$D$40*(valuePL(D31,'Utility Functions'!$E$3:$E$5,'Utility Functions'!$F$3:$F$5))","v":0.03},{"$f":"$E$40*(valuePL(E31,'Utility Functions'!$G$3:$G$5,'Utility Functions'!$H$3:$H$5))","v":0},{"$f":"$F$40*(valuePL(F31,'Utility Functions'!$I$3:$I$4,'Utility Functions'!$J$3:$J$5))","v":0},{"$f":"$G$40*(valueE(G31,'Utility Functions'!$L$3,'Utility Functions'!$L$4,'Utility Functions'!$L$5,'Utility Functions'!$L$6))","v":0},{"$f":"$H$40*(valueE(H31,'Utility Functions'!$N$3,'Utility Functions'!$N$4,'Utility Functions'!$N$5,'Utility Functions'!$N$6))","v":0},{"$f":"$I$40*valuePL(I31,'Utility Functions'!$O$3:$O$6,'Utility Functions'!$P$3:$P$6)","v":0},{"$f":"$J$40*valuePL(J31,'Utility Functions'!$Q$3:$Q$6,'Utility Functions'!$R$3:$R$6)","v":0},{"$f":"$K$40*(valuePL(K31,'Utility Functions'!$S$3:$S$7,'Utility Functions'!$T$3:$T$7))","v":0},{"$f":"$L$40*(valueE(L31,'Utility Functions'!$V$3,'Utility Functions'!$V$4,'Utility Functions'!$V$5,'Utility Functions'!$V$6))","v":6.6666666666666662E-3},{"$f":"$M$40*valuePL(M31,'Utility Functions'!$W$3:$W$6,'Utility Functions'!$X$3:$X$6)","v":8.0000000000000004E-4},{"$f":"$N$40*valueE(N31,'Utility Functions'!$Z$3,'Utility Functions'!$Z$4,'Utility Functions'!$Z$5,'Utility Functions'!$Z$6)","v":0},{"$f":"$O$40*valuePL(O31,'Utility Functions'!$AA$3:$AA$5,'Utility Functions'!$AB$3:$AB$5)","v":0},{"$f":"$P$40*valuePL(P31,'Utility Functions'!$AC$3:$AC$7,'Utility Functions'!$AD$3:$AD$7)","v":0},{"$f":"$Q$40*valuePL(Q31,'Utility Functions'!$AE$3:$AE$6,'Utility Functions'!$AF$3:$AF$6)","v":0},{"$f":"$R$40*valuePL(R31,'Utility Functions'!$AG$3:$AG$6,'Utility Functions'!$AH$3:$AH$6)","v":1.0000000000000002E-2},{"$f":"$S$40*valuePL(S31,'Utility Functions'!$AI$3:$AI$6,'Utility Functions'!$AJ$3:$AJ$6)","v":1.6500000000000001E-2},{"$f":"$T$40*valuePL(T31,'Utility Functions'!$AK$3:$AK$8,'Utility Functions'!$AL$3:$AL$8)","v":0},{"$f":"$U$40*valuePL(U31,'Utility Functions'!$AM$3:$AM$5,'Utility Functions'!$AN$3:$AN$5)","v":0},{"$f":"$V$40*valuePL(V31,'Utility Functions'!$AO$3:$AO$5,'Utility Functions'!$AP$3:$AP$5)","v":0},{"$f":"$W$40*valuePL(W31,'Utility Functions'!$AQ$3:$AQ$6,'Utility Functions'!$AR$3:$AR$6)","v":0.04},{"$f":"$X$40*valuePL(X31,'Utility Functions'!$AS$3:$AS$6,'Utility Functions'!$AT$3:$AT$6)","v":8.0000000000000002E-3},{"$f":"$Y$40*valuePL(Y31,'Utility Functions'!$AU$3:$AU$6,'Utility Functions'!$AV$3:$AV$6)","v":4.0000000000000008E-2},{"$f":"$Z$40*valuePL(Z31,'Utility Functions'!$AW$3:$AW$5,'Utility Functions'!$AX$3:$AX$5)","v":0},{"$f":"$AA$40*valuePL(AA31,'Utility Functions'!$AY$3:$AY$6,'Utility Functions'!$AZ$3:$AZ$6)","v":3.5999999999999997E-2},{"$f":"$AB$40*valuePL(AB31,'Utility Functions'!$BA$3:$BA$5,'Utility Functions'!$BB$3:$BB$5)","v":0.04},{"$f":"$AC$40*valuePL(AC31,'Utility Functions'!$BC$3:$BC$5,'Utility Functions'!$BD$3:$BD$5)","v":0},0.28334935206828327,0.2832679369768803]
[31,{"$f":"$B$40*(valueE(B32,'Utility Functions'!$B$3,'Utility Functions'!$B$4,'Utility Functions'!$B$5,'Utility Functions'!$B$6))","v":1.6520156106900608E-2},{"$f":"$C$40*(valueE(C32,'Utility Functions'!$D$3,'Utility Functions'!$D$4,'Utility Functions'!$D$5,'Utility Functions'!$D$6))","v":2.542345105018548E-2},{"$f":"$D$40*(valuePL(D32,'Utility Functions'!$E$3:$E$5,'Utility Functions'!$F$3:$F$5))","v":1.4999999999999999E-2},{"$f":"$E$40*(valuePL(E32,'Utility Functions'!$G$3:$G$5,'Utility Functions'!$H$3:$H$5))","v":0},{"$f":"$F$40*(valuePL(F32,'Utility Functions'!$I$3:$I$4,'Utility Functions'!$J$3:$J$5))","v":0},{"$f":"$G$40*(valueE(G32,'Utility Functions'!$L$3,'Utility Functions'!$L$4,'Utility Functions'!$L$5,'Utility Functions'!$L$6))","v":0},{"$f":"$H$40*(valueE(H32,'Utility Functions'!$N$3,'Utility Functions'!$N$4,'Utility Functions'!$N$5,'Utility Functions'!$N$6))","v":0},{"$f":"$I$40*valuePL(I32,'Utility Functions'!$O$3:$O$6,'Utility Functions'!$P$3:$P$6)","v":2.2636363636363635E-2},{"$f":"$J$40*valuePL(J32,'Utility Functions'!$Q$3:$Q$6,'Utility Functions'!$R$3:$R$6)","v":1.6000000000000001E-3},{"$f":"$K$40*(valuePL(K32,'Utility Functions'!$S$3:$S$7,'Utility Functions'!$T$3:$T$7))","v":0},{"$f":"$L$40*(valueE(L32,'Utility Functions'!$V$3,'Utility Functions'!$V$4,'Utility Functions'!$V$5,'Utility Functions'!$V$6))","v":6.6666666666666662E-3},{"$f":"$M$40*valuePL(M32,'Utility Functions'!$W$3:$W$6,'Utility Functions'!$X$3:$X$6)","v":1.6000000000000001E-3},{"$f":"$N$40*valueE(N32,'Utility Functions'!$Z$3,'Utility Functions'!$Z$4,'Utility Functions'!$Z$5,'Utility Functions'!$Z$6)","v":0},{"$f":"$O$40*valuePL(O32,'Utility Functions'!$AA$3:$AA$5,'Utility Functions'!$AB$3:$AB$5)","v":0},{"$f":"$P$40*valuePL(P32,'Utility Functions'!$AC$3:$AC$7,'Utility Functions'!$AD$3:$AD$7)","v":0.02},{"$f":"$Q$40*valuePL(Q32,'Utility Functions'!$AE$3:$AE$6,'Utility Functions'!$AF$3:$AF$6)","v":0},{"$f":"$R$40*valuePL(R32,'Utility Functions'!$AG$3:$AG$6,'Utility Functions'!$AH$3:$AH$6)","v":0.05},{"$f":"$S$40*valuePL(S32,'Utility Functions'!$AI$3:$AI$6,'Utility Functions'!$AJ$3:$AJ$6)","v":3.3000000000000002E-2},{"$f":"$T$40*valuePL(T32,'Utility Functions'!$AK$3:$AK$8,'Utility Functions'!$AL$3:$AL$8)","v":1.7999999999999999E-2},{"$f":"$U$40*valuePL(U32,'Utility Functions'!$AM$3:$AM$5,'Utility Functions'!$AN$3:$AN$5)","v":0},{"$f":"$V$40*valuePL(V32,'Utility Functions'!$AO$3:$AO$5,'Utility Functions'!$AP$3:$AP$5)","v":2.5000000000000001E-2},{"$f":"$W$40*valuePL(W32,'Utility Functions'!$AQ$3:$AQ$6,'Utility Functions'!$AR$3:$AR$6)","v":0},{"$f":"$X$40*valuePL(X32,'Utility Functions'!$AS$3:$AS$6,'Utility Functions'!$AT$3:$AT$6)","v":8.0000000000000002E-3},{"$f":"$Y$40*valuePL(Y32,'Utility Functions'!$AU$3:$AU$6,'Utility Functions'!$AV$3:$AV$6)","v":1.0000000000000002E-2},{"$f":"$Z$40*valuePL(Z32,'Utility Functions'!$AW$3:$AW$5,'Utility Functions'!$AX$3:$AX$5)","v":0.05},{"$f":"$AA$40*valuePL(AA32,'Utility Functions'!$AY$3:$AY$6,'Utility Functions'!$AZ$3:$AZ$6)","v":3.5999999999999997E-2},{"$f":"$AB$40*valuePL(AB32,'Utility Functions'!$BA$3:$BA$5,'Utility Functions'!$BB$3:$BB$5)","v":0.01},{"$f":"$AC$40*valuePL(AC32,'Utility Functions'!$BC$3:$BC$5,'Utility Functions'!$BD$3:$BD$5)","v":7.4999999999999997E-3},0.35694663746011634,0.35502417415981324]
[{"$f":"A33","v":32},{"$f":"$B$40*(valueE(B33,'Utility Functions'!$B$3,'Utility Functions'!$B$4,'Utility Functions'!$B$5,'Utility Functions'!$B$6))","v":1.896364549751255E-2},{"$f":"$C$40*(valueE(C33,'Utility Functions'!$D$3,'Utility Functions'!$D$4,'Utility Functions'!$D$5,'Utility Functions'!$D$6))","v":8.0518966871447988E-3},{"$f":"$D$40*(valuePL(D33,'Utility Functions'!$E$3:$E$5,'Utility Functions'!$F$3:$F$5))","v":0.03},{"$f":"$E$40*(valuePL(E33,'Utility Functions'!$G$3:$G$5,'Utility Functions'!$H$3:$H$5))","v":0.03},{"$f":"$F$40*(valuePL(F33,'Utility Functions'!$I$3:$I$4,'Utility Functions'!$J$3:$J$5))","v":0.04},{"$f":"$G$40*(valueE(G33,'Utility Functions'!$L$3,'Utility Functions'!$L$4,'Utility Functions'!$L$5,'Utility Functions'!$L$6))","v":4.8387096774193543E-4},{"$f":"$H$40*(valueE(H33,'Utility Functions'!$N$3,'Utility Functions'!$N$4,'Utility Functions'!$N$5,'Utility Functions'!$N$6))","v":1.4516129032258063E-3},{"$f":"$I$40*valuePL(I33,'Utility Functions'!$O$3:$O$6,'Utility Functions'!$P$3:$P$6)","v":1.0363636363636363E-2},{"$f":"$J$40*valuePL(J33,'Utility Functions'!$Q$3:$Q$6,'Utility Functions'!$R$3:$R$6)","v":0.02},{"$f":"$K$40*(valuePL(K33,'Utility Functions'!$S$3:$S$7,'Utility Functions'!$T$3:$T$7))","v":6.909090909090909E-3},{"$f":"$L$40*(valueE(L33,'Utility Functions'!$V$3,'Utility Functions'!$V$4,'Utility Functions'!$V$5,'Utility Functions'!$V$6))","v":0.02},{"$f":"$M$40*valuePL(M33,'Utility Functions'!$W$3:$W$6,'Utility Functions'!$X$3:$X$6)","v":0.02},{"$f":"$N$40*valueE(N33,'Utility Functions'!$Z$3,'Utility Functions'!$Z$4,'Utility Functions'!$Z$5,'Utility Functions'!$Z$6)","v":0},{"$f":"$O$40*valuePL(O33,'Utility Functions'!$AA$3:$AA$5,'Utility Functions'!$AB$3:$AB$5)","v":0},{"$f":"$P$40*valuePL(P33,'Utility Functions'!$AC$3:$AC$7,'Utility Functions'!$AD$3:$AD$7)","v":0.02},{"$f":"$Q$40*valuePL(Q33,'Utility Functions'!$AE$3:$AE$6,'Utility Functions'!$AF$3:$AF$6)","v":0.04},{"$f":"$R$40*valuePL(R33,'Utility Functions'!$AG$3:$AG$6,'Utility Functions'!$AH$3:$AH$6)","v":0.05},{"$f":"$S$40*valuePL(S33,'Utility Functions'!$AI$3:$AI$6,'Utility Functions'!$AJ$3:$AJ$6)","v":0},{"$f":"$T$40*valuePL(T33,'Utility Functions'!$AK$3:$AK$8,'Utility Functions'!$AL$3:$AL$8)","v":2.4E-2},{"$f":"$U$40*valuePL(U33,'Utility Functions'!$AM$3:$AM$5,'Utility Functions'!$AN$3:$AN$5)","v":0},{"$f":"$V$40*valuePL(V33,'Utility Functions'!$AO$3:$AO$5,'Utility Functions'!$AP$3:$AP$5)","v":0},{"$f":"$W$40*valuePL(W33,'Utility Functions'!$AQ$3:$AQ$6,'Utility Functions'!$AR$3:$AR$6)","v":0.03},{"$f":"$X$40*valuePL(X33,'Utility Functions'!$AS$3:$AS$6,'Utility Functions'!$AT$3:$AT$6)","v":8.0000000000000002E-3},{"$f":"$Y$40*valuePL(Y33,'Utility Functions'!$AU$3:$AU$6,'Utility Functions'!$AV$3:$AV$6)","v":4.0000000000000008E-2},{"$f":"$Z$40*valuePL(Z33,'Utility Functions'!$AW$3:$AW$5,'Utility Functions'!$AX$3:$AX$5)","v":2.5000000000000001E-2},{"$f":"$AA$40*valuePL(AA33,'Utility Functions'!$AY$3:$AY$6,'Utility Functions'!$AZ$3:$AZ$6)","v":0},{"$f":"$AB$40*valuePL(AB33,'Utility Functions'!$BA$3:$BA$5,'Utility Functions'!$BB$3:$BB$5)","v":0.04},{"$f":"$AC$40*valuePL(AC33,'Utility Functions'!$BC$3:$BC$5,'Utility Functions'!$BD$3:$BD$5)","v":7.4999999999999997E-3},0.49072375332835239,0.48872240138318201]
[33,{"$f":"$B$40*(valueE(B34,'Utility Functions'!$B$3,'Utility Functions'!$B$4,'Utility Functions'!$B$5,'Utility Functions'!$B$6))","v":2.8175740811551258E-2},{"$f":"$C$40*(valueE(C34,'Utility Functions'!$D$3,'Utility Functions'!$D$4,'Utility Functions'!$D$5,'Utility Functions'!$D$6))","v":2.542345105018548E-2},{"$f":"$D$40*(valuePL(D34,'Utility Functions'!$E$3:$E$5,'Utility Functions'!$F$3:$F$5))","v":0.03},{"$f":"$E$40*(valuePL(E34,'Utility Functions'!$G$3:$G$5,'Utility Functions'!$H$3:$H$5))","v":1.4999999999999999E-2},{"$f":"$F$40*(valuePL(F34,'Utility Functions'!$I$3:$I$4,'Utility Functions'!$J$3:$J$5))","v":0},{"$f":"$G$40*(valueE(G34,'Utility Functions'!$L$3,'Utility Functions'!$L$4,'Utility Functions'!$L$5,'Utility Functions'!$L$6))","v":0},{"$f":"$H$40*(valueE(H34,'Utility Functions'!$N$3,'Utility Functions'!$N$4,'Utility Functions'!$N$5,'Utility Functions'!$N$6))","v":0},{"$f":"$I$40*valuePL(I34,'Utility Functions'!$O$3:$O$6,'Utility Functions'!$P$3:$P$6)","v":0},{"$f":"$J$40*valuePL(J34,'Utility Functions'!$Q$3:$Q$6,'Utility Functions'!$R$3:$R$6)","v":0},{"$f":"$K$40*(valuePL(K34,'Utility Functions'!$S$3:$S$7,'Utility Functions'!$T$3:$T$7))","v":0},{"$f":"$L$40*(valueE(L34,'Utility Functions'!$V$3,'Utility Functions'!$V$4,'Utility Functions'!$V$5,'Utility Functions'!$V$6))","v":0.01},{"$f":"$M$40*valuePL(M34,'Utility Functions'!$W$3:$W$6,'Utility Functions'!$X$3:$X$6)","v":0},{"$f":"$N$40*valueE(N34,'Utility Functions'!$Z$3,'Utility Functions'!$Z$4,'Utility Functions'!$Z$5,'Utility Functions'!$Z$6)","v":0},{"$f":"$O$40*valuePL(O34,'Utility Functions'!$AA$3:$AA$5,'Utility Functions'!$AB$3:$AB$5)","v":0},{"$f":"$P$40*valuePL(P34,'Utility Functions'!$AC$3:$AC$7,'Utility Functions'!$AD$3:$AD$7)","v":0.02},{"$f":"$Q$40*valuePL(Q34,'Utility Functions'!$AE$3:$AE$6,'Utility Functions'!$AF$3:$AF$6)","v":0},{"$f":"$R$40*valuePL(R34,'Utility Functions'!$AG$3:$AG$6,'Utility Functions'!$AH$3:$AH$6)","v":0.05},{"$f":"$S$40*valuePL(S34,'Utility Functions'!$AI$3:$AI$6,'Utility Functions'!$AJ$3:$AJ$6)","v":3.3000000000000002E-2},{"$f":"$T$40*valuePL(T34,'Utility Functions'!$AK$3:$AK$8,'Utility Functions'!$AL$3:$AL$8)","v":0},{"$f":"$U$40*valuePL(U34,'Utility Functions'!$AM$3:$AM$5,'Utility Functions'!$AN$3:$AN$5)","v":0},{"$f":"$V$40*valuePL(V34,'Utility Functions'!$AO$3:$AO$5,'Utility Functions'!$AP$3:$AP$5)","v":2.5000000000000001E-2},{"$f":"$W$40*valuePL(W34,'Utility Functions'!$AQ$3:$AQ$6,'Utility Functions'!$AR$3:$AR$6)","v":0.04},{"$f":"$X$40*valuePL(X34,'Utility Functions'!$AS$3:$AS$6,'Utility Functions'!$AT$3:$AT$6)","v":0},{"$f":"$Y$40*valuePL(Y34,'Utility Functions'!$AU$3:$AU$6,'Utility Functions'!$AV$3:$AV$6)","v":4.0000000000000008E-2},{"$f":"$Z$40*valuePL(Z34,'Utility Functions'!$AW$3:$AW$5,'Utility Functions'!$AX$3:$AX$5)","v":0.05},{"$f":"$AA$40*valuePL(AA34,'Utility Functions'!$AY$3:$AY$6,'Utility Functions'!$AZ$3:$AZ$6)","v":0.04},{"$f":"$AB$40*valuePL(AB34,'Utility Functions'!$BA$3:$BA$5,'Utility Functions'!$BB$3:$BB$5)","v":0},{"$f":"$AC$40*valuePL(AC34,'Utility Functions'!$BC$3:$BC$5,'Utility Functions'!$BD$3:$BD$5)","v":0},0.40659919186173665,0.40551467502143035]
[34,{"$f":"$B$40*(valueE(B35,'Utility Functions'!$B$3,'Utility Functions'!$B$4,'Utility Functions'!$B$5,'Utility Functions'!$B$6))","v":0},{"$f":"$C$40*(valueE(C35,'Utility Functions'!$D$3,'Utility Functions'!$D$4,'Utility Functions'!$D$5,'Utility Functions'!$D$6))","v":0},{"$f":"$D$40*(valuePL(D35,'Utility Functions'!$E$3:$E$5,'Utility Functions'!$F$3:$F$5))","v":0},{"$f":"$E$40*(valuePL(E35,'Utility Functions'!$G$3:$G$5,'Utility Functions'!$H$3:$H$5))","v":0},{"$f":"$F$40*(valuePL(F35,'Utility Functions'!$I$3:$I$4,'Utility Functions'!$J$3:$J$5))","v":0},{"$f":"$G$40*(valueE(G35,'Utility Functions'!$L$3,'Utility Functions'!$L$4,'Utility Functions'!$L$5,'Utility Functions'!$L$6))","v":0},{"$f":"$H$40*(valueE(H35,'Utility Functions'!$N$3,'Utility Functions'!$N$4,'Utility Functions'!$N$5,'Utility Functions'!$N$6))","v":1.7077798861480075E-4},{"$f":"$I$40*valuePL(I35,'Utility Functions'!$O$3:$O$6,'Utility Functions'!$P$3:$P$6)","v":0.03},{"$f":"$J$40*valuePL(J35,'Utility Functions'!$Q$3:$Q$6,'Utility Functions'!$R$3:$R$6)","v":1.8363636363636363E-2},{"$f":"$K$40*(valuePL(K35,'Utility Functions'!$S$3:$S$7,'Utility Functions'!$T$3:$T$7))","v":0.02},{"$f":"$L$40*(valueE(L35,'Utility Functions'!$V$3,'Utility Functions'!$V$4,'Utility Functions'!$V$5,'Utility Functions'!$V$6))","v":0.02},{"$f":"$M$40*valuePL(M35,'Utility Functions'!$W$3:$W$6,'Utility Functions'!$X$3:$X$6)","v":1.8363636363636363E-2},{"$f":"$N$40*valueE(N35,'Utility Functions'!$Z$3,'Utility Functions'!$Z$4,'Utility Functions'!$Z$5,'Utility Functions'!$Z$6)","v":0},{"$f":"$O$40*valuePL(O35,'Utility Functions'!$AA$3:$AA$5,'Utility Functions'!$AB$3:$AB$5)","v":0},{"$f":"$P$40*valuePL(P35,'Utility Functions'!$AC$3:$AC$7,'Utility Functions'!$AD$3:$AD$7)","v":0.02},{"$f":"$Q$40*valuePL(Q35,'Utility Functions'!$AE$3:$AE$6,'Utility Functions'!$AF$3:$AF$6)","v":0},{"$f":"$R$40*valuePL(R35,'Utility Functions'!$AG$3:$AG$6,'Utility Functions'!$AH$3:$AH$6)","v":0.05},{"$f":"$S$40*valuePL(S35,'Utility Functions'!$AI$3:$AI$6,'Utility Functions'!$AJ$3:$AJ$6)","v":0.05},{"$f":"$T$40*valuePL(T35,'Utility Functions'!$AK$3:$AK$8,'Utility Functions'!$AL$3:$AL$8)","v":2.4E-2},{"$f":"$U$40*valuePL(U35,'Utility Functions'!$AM$3:$AM$5,'Utility Functions'!$AN$3:$AN$5)","v":0},{"$f":"$V$40*valuePL(V35,'Utility Functions'!$AO$3:$AO$5,'Utility Functions'!$AP$3:$AP$5)","v":0.05},{"$f":"$W$40*valuePL(W35,'Utility Functions'!$AQ$3:$AQ$6,'Utility Functions'!$AR$3:$AR$6)","v":0.04},{"$f":"$X$40*valuePL(X35,'Utility Functions'!$AS$3:$AS$6,'Utility Functions'!$AT$3:$AT$6)","v":0.04},{"$f":"$Y$40*valuePL(Y35,'Utility Functions'!$AU$3:$AU$6,'Utility Functions'!$AV$3:$AV$6)","v":0},{"$f":"$Z$40*valuePL(Z35,'Utility Functions'!$AW$3:$AW$5,'Utility Functions'!$AX$3:$AX$5)","v":0.05},{"$f":"$AA$40*valuePL(AA35,'Utility Functions'!$AY$3:$AY$6,'Utility Functions'!$AZ$3:$AZ$6)","v":3.5999999999999997E-2},{"$f":"$AB$40*valuePL(AB35,'Utility Functions'!$BA$3:$BA$5,'Utility Functions'!$BB$3:$BB$5)","v":0.01},{"$f":"$AC$40*valuePL(AC35,'Utility Functions'!$BC$3:$BC$5,'Utility Functions'!$BD$3:$BD$5)","v":0},0.47689805071588748,0.47689805071588748]
[35,{"$f":"$B$40*(valueE(B36,'Utility Functions'!$B$3,'Utility Functions'!$B$4,'Utility Functions'!$B$5,'Utility Functions'!$B$6))","v":2.3943140737469053E-2},{"$f":"$C$40*(valueE(C36,'Utility Functions'!$D$3,'Utility Functions'!$D$4,'Utility Functions'!$D$5,'Utility Functions'!$D$6))","v":1.8281994940530583E-2},{"$f":"$D$40*(valuePL(D36,'Utility Functions'!$E$3:$E$5,'Utility Functions'!$F$3:$F$5))","v":1.4999999999999999E-2},{"$f":"$E$40*(valuePL(E36,'Utility Functions'!$G$3:$G$5,'Utility Functions'!$H$3:$H$5))","v":1.4999999999999999E-2},{"$f":"$F$40*(valuePL(F36,'Utility Functions'!$I$3:$I$4,'Utility Functions'!$J$3:$J$5))","v":0.04},{"$f":"$G$40*(valueE(G36,'Utility Functions'!$L$3,'Utility Functions'!$L$4,'Utility Functions'!$L$5,'Utility Functions'!$L$6))","v":0},{"$f":"$H$40*(valueE(H36,'Utility Functions'!$N$3,'Utility Functions'!$N$4,'Utility Functions'!$N$5,'Utility Functions'!$N$6))","v":0},{"$f":"$I$40*valuePL(I36,'Utility Functions'!$O$3:$O$6,'Utility Functions'!$P$3:$P$6)","v":0},{"$f":"$J$40*valuePL(J36,'Utility Functions'!$Q$3:$Q$6,'Utility Functions'!$R$3:$R$6)","v":0},{"$f":"$K$40*(valuePL(K36,'Utility Functions'!$S$3:$S$7,'Utility Functions'!$T$3:$T$7))","v":0.02},{"$f":"$L$40*(valueE(L36,'Utility Functions'!$V$3,'Utility Functions'!$V$4,'Utility Functions'!$V$5,'Utility Functions'!$V$6))","v":1.3333333333333332E-2},{"$f":"$M$40*valuePL(M36,'Utility Functions'!$W$3:$W$6,'Utility Functions'!$X$3:$X$6)","v":2E-3},{"$f":"$N$40*valueE(N36,'Utility Functions'!$Z$3,'Utility Functions'!$Z$4,'Utility Functions'!$Z$5,'Utility Functions'!$Z$6)","v":0.03},{"$f":"$O$40*valuePL(O36,'Utility Functions'!$AA$3:$AA$5,'Utility Functions'!$AB$3:$AB$5)","v":0},{"$f":"$P$40*valuePL(P36,'Utility Functions'!$AC$3:$AC$7,'Utility Functions'!$AD$3:$AD$7)","v":0},{"$f":"$Q$40*valuePL(Q36,'Utility Functions'!$AE$3:$AE$6,'Utility Functions'!$AF$3:$AF$6)","v":0},{"$f":"$R$40*valuePL(R36,'Utility Functions'!$AG$3:$AG$6,'Utility Functions'!$AH$3:$AH$6)","v":0.05},{"$f":"$S$40*valuePL(S36,'Utility Functions'!$AI$3:$AI$6,'Utility Functions'!$AJ$3:$AJ$6)","v":0.05},{"$f":"$T$40*valuePL(T36,'Utility Functions'!$AK$3:$AK$8,'Utility Functions'!$AL$3:$AL$8)","v":1.7999999999999999E-2},{"$f":"$U$40*valuePL(U36,'Utility Functions'!$AM$3:$AM$5,'Utility Functions'!$AN$3:$AN$5)","v":0},{"$f":"$V$40*valuePL(V36,'Utility Functions'!$AO$3:$AO$5,'Utility Functions'!$AP$3:$AP$5)","v":0.05},{"$f":"$W$40*valuePL(W36,'Utility Functions'!$AQ$3:$AQ$6,'Utility Functions'!$AR$3:$AR$6)","v":0.03},{"$f":"$X$40*valuePL(X36,'Utility Functions'!$AS$3:$AS$6,'Utility Functions'!$AT$3:$AT$6)","v":0},{"$f":"$Y$40*valuePL(Y36,'Utility Functions'!$AU$3:$AU$6,'Utility Functions'!$AV$3:$AV$6)","v":1.0000000000000002E-2},{"$f":"$Z$40*valuePL(Z36,'Utility Functions'!$AW$3:$AW$5,'Utility Functions'!$AX$3:$AX$5)","v":0.05},{"$f":"$AA$40*valuePL(AA36,'Utility Functions'!$AY$3:$AY$6,'Utility Functions'!$AZ$3:$AZ$6)","v":0},{"$f":"$AB$40*valuePL(AB36,'Utility Functions'!$BA$3:$BA$5,'Utility Functions'!$BB$3:$BB$5)","v":0.01},{"$f":"$AC$40*valuePL(AC36,'Utility Functions'!$BC$3:$BC$5,'Utility Functions'!$BD$3:$BD$5)","v":7.4999999999999997E-3},0.45305846901133295,0.45120772646574747,null,"management","status","ecol_proc","integration","rigor"]
["Portfolio total",{"$f":"SUMPRODUCT($B$82:$B$116,B$43:B$77)","v":9.2542279500979679E-2},{"$f":"SUMPRODUCT($B$82:$B$116,C$43:C$77)","v":7.2438163026090019E-2},0.105,1.4999999999999999E-2,0,1.4193548387096775E-2,4.383301707779886E-3,2.5636363636363634E-2,1.5854545454545454E-2,0,2.6666666666666665E-2,1.5054545454545456E-2,5.2499999999999998E-2,0.11249999999999999,0.06,4.3999999999999997E-2,0.2,0.216,7.1999999999999995E-2,0,0.125,4.5999999999999999E-2,0.128,0.14000000000000001,0.125,0.06,9.9999999999999992E-2,0.10500000000000001,1.9727694138340679,1.9657717524708989,null,{"$f":"SUM(B78:F78)","v":0.28498044252706972},{"$f":"SUM(G78:M78)","v":0.10178897130699788},{"$f":"SUM(N78:O78)","v":0.16499999999999998},{"$f":"SUM(P78:U78)","v":0.59199999999999997},{"$f":"SUM(V78:AC78)","v":0.82900000000000007}]
[]
[]
[null,"Decision variable","Benefit","Cost"]
[{"$f":"A2","v":1},0,{"$f":"AD43","v":0.62852931598576234},{"$f":"AD2","v":700000},{"$f":"(C82/D82)*1000000","v":0.89789902283680334}]
[{"$f":"A3","v":2},0,{"$f":"AD44","v":0.53424877401727988},{"$f":"AD3","v":5400000},{"$f":"(C83/D83)*1000000","v":9.8934958151348118E-2}]
[3,0,0.45890624332907692,250000,1.8356249733163077]
[4,0,0.37738087579326757,150000,2.5158725052884505]
[5,0,0.37358983775406607,220000,1.6981356261548459]
[6,1,0.21762541381415162,110000,1.9784128528559239]
[7,0,0.55883167443779502,1000000,0.55883167443779502]
[8,0,0.52659366793040296,5000000,0.10531873358608058]
[9,0,0.45837563615750632,25000,18.335025446300254]
[10,1,0.42049999999999998,900000,0.46722222222222221]
[11,0,0.48800366568914949,1500000,0.32533577712609968]
[12,0,0.38158740731015961,100000,3.8158740731015963]
[13,0,0.30547532344316031,250000,1.2219012937726412]
[14,0,0.4311611991122532,500000,0.8623223982245064]
[15,0,0.60971431784243146,800000,0.7621428973030393]
[16,0,0.54339393939393943,2000000,0.27169696969696971]
[17,0,0.40209196138985603,500000,0.80418392277971207]
[{"$f":"A19","v":18},0,0.43942694497153706,300000,1.464756483238457]
[19,0,0.41549503742461386,750000,0.55399338323281844]
[20,0,0.55885300951154004,1500000,0.37256867300769336]
[21,0,0.42149999999999999,900000,0.46833333333333332]
[22,0,0.44445113851992418,750000,0.59260151802656558]
[23,0,0.37896452234436967,1000000,0.37896452234436967]
[24,0,0.37890643564363613,150000,2.5260429042909074]
[25,1,0.53254137243924626,250000,2.1301654897569851]
[26,0,0.42942229688880618,500000,0.85884459377761235]
[27,0,0.34094279014612355,1200000,0.2841189917884363]
[28,0,0.49364512823846229,500000,0.98729025647692448]
[{"$f":"A30","v":29},1,0.4451559901205534,2000000,0.2225779950602767]
[30,0,0.28334935206828327,250000,1.1333974082731331]
[31,1,0.35694663746011634,650000,0.54914867301556358]
[32,0,0.49072375332835239,200000,2.4536187666417617]
[{"$f":"A34","v":33},0,0.40659919186173665,400000,1.0164979796543416]
[34,0,0.47689805071588748,900000,0.52988672301765272]
[{"$f":"A36","v":35},0,0.45305846901133295,900000,0.50339829890148102]
[null,5,{"$f":"SUMPRODUCT(B82:B116,C82:C116)","v":1.9727694138340679},{"$f":"SUMPRODUCT(B82:B116,D82:D116)","v":3910000}]
[]
[null,null,"Cost constraint",15000000]

{"sheet":"bar_plot","index":10,"n_rows":8,"n_cols":7,"rows_kept":8,"cut":false,"hidden":false,"merged":[]}
[]
[]
[null,"portfolio","management","status","ecol_proc","integration","rigor"]
[null,"A",{"$f":"Portfolio_A!AG78","v":0.30137822221323191},{"$f":"Portfolio_A!AH78","v":5.8973492036110631E-2},{"$f":"Portfolio_A!AI78","v":0.105},{"$f":"Portfolio_A!AJ78","v":0.59700000000000009},{"$f":"Portfolio_A!AK78","v":0.93149999999999999}]
[null,"B",{"$f":"Portfolio_B!AG78","v":0.3029500516751894},{"$f":"Portfolio_B!AH78","v":9.9618181818181828E-2},{"$f":"Portfolio_B!AI78","v":3.7499999999999999E-2},{"$f":"Portfolio_B!AJ78","v":0.63549999999999995},{"$f":"Portfolio_B!AK78","v":0.86250000000000016}]
[null,"C",{"$f":"Portfolio_C!AG78","v":0.29624691106844053},{"$f":"Portfolio_C!AH78","v":0.33489414064746131},{"$f":"Portfolio_C!AI78","v":0.11624999999999999},{"$f":"Portfolio_C!AJ78","v":0.61699999999999999},{"$f":"Portfolio_C!AK78","v":1.0189999999999999}]
[null,"D",{"$f":"Portfolio_D!AG78","v":0.2352725456721525},{"$f":"Portfolio_D!AH78","v":6.4724995687424527E-2},{"$f":"Portfolio_D!AI78","v":0.14250000000000002},{"$f":"Portfolio_D!AJ78","v":0.56350000000000011},{"$f":"Portfolio_D!AK78","v":0.97800000000000009}]
[null,"E",{"$f":"Portfolio_E!AG78","v":0.28498044252706972},{"$f":"Portfolio_E!AH78","v":0.10178897130699788},{"$f":"Portfolio_E!AI78","v":0.16499999999999998},{"$f":"Portfolio_E!AJ78","v":0.59199999999999997},{"$f":"Portfolio_E!AK78","v":0.82900000000000007}]

{"sheet":"bar_plot_mgmt_spatial","index":11,"n_rows":8,"n_cols":7,"rows_kept":8,"cut":false,"hidden":false,"merged":[]}
[]
[]
[null,"portfolio",{"$f":"Portfolio_A!B38","v":"manage_species"},{"$f":"Portfolio_A!C38","v":"manage_spatial"},{"$f":"Portfolio_A!D38","v":"manage_uncertainty"},{"$f":"Portfolio_A!E38","v":"manage_currentpractices"},{"$f":"Portfolio_A!F38","v":"manage_adaptivemanagement"}]
[null,"A",{"$f":"Portfolio_A!B78","v":8.14108753568486E-2},{"$f":"Portfolio_A!C78","v":9.9967346856383324E-2},{"$f":"Portfolio_A!D78","v":0.105},{"$f":"Portfolio_A!E78","v":1.4999999999999999E-2},{"$f":"Portfolio_A!F78","v":0}]
[null,"B",{"$f":"Portfolio_B!B78","v":7.2939293853939546E-2},{"$f":"Portfolio_B!C78","v":5.001075782124989E-2},{"$f":"Portfolio_B!D78","v":0.15},{"$f":"Portfolio_B!E78","v":0.03},{"$f":"Portfolio_B!F78","v":0}]
[null,"C",{"$f":"Portfolio_C!B78","v":8.2118014027539002E-2},{"$f":"Portfolio_C!C78","v":6.9128897040901541E-2},{"$f":"Portfolio_C!D78","v":4.4999999999999998E-2},{"$f":"Portfolio_C!E78","v":0.06},{"$f":"Portfolio_C!F78","v":0.04}]
[null,"D",{"$f":"Portfolio_D!B78","v":6.8639037655920915E-2},{"$f":"Portfolio_D!C78","v":6.1633508016231575E-2},{"$f":"Portfolio_D!D78","v":0.09},{"$f":"Portfolio_D!E78","v":1.4999999999999999E-2},{"$f":"Portfolio_D!F78","v":0}]
[null,"E",{"$f":"Portfolio_E!B78","v":9.2542279500979679E-2},{"$f":"Portfolio_E!C78","v":7.2438163026090019E-2},{"$f":"Portfolio_E!D78","v":0.105},{"$f":"Portfolio_E!E78","v":1.4999999999999999E-2},{"$f":"Portfolio_E!F78","v":0}]

{"sheet":"bar_plot_ep","index":12,"n_rows":8,"n_cols":4,"rows_kept":8,"cut":false,"hidden":false,"merged":[]}
[]
[null,null,"Weighted utilities (base weights)"]
[null,"portfolio",{"$f":"Portfolio_A!N1","v":"ecoprocess_spp"},{"$f":"Portfolio_A!O1","v":"ecoprocess_uncertainty"}]
[null,"A",{"$f":"Portfolio_A!N78","v":0.06},{"$f":"Portfolio_A!O78","v":4.4999999999999998E-2}]
[null,"B",{"$f":"Portfolio_B!N78","v":1.4999999999999999E-2},{"$f":"Portfolio_B!O78","v":2.2499999999999999E-2}]
[null,"C",{"$f":"Portfolio_C!N78","v":7.1249999999999994E-2},{"$f":"Portfolio_C!O78","v":4.4999999999999998E-2}]
[null,"D",{"$f":"Portfolio_D!N78","v":7.4999999999999997E-2},{"$f":"Portfolio_D!O78","v":6.7500000000000004E-2}]
[null,"E",{"$f":"Portfolio_E!N78","v":5.2499999999999998E-2},{"$f":"Portfolio_E!O78","v":0.11249999999999999}]

{"sheet":"Constraint_Scenario_1","index":13,"n_rows":120,"n_cols":40,"rows_kept":120,"cut":false,"hidden":false,"merged":[]}
["Project","manage_species","manage_spatial","manage_uncertainty","manage_currentpractices","manage_adaptivemanagement","pop_a","pop_b","pop_spatialscope","pop_temporalscope","hab_quantity","hab_quality","hab_temporal","ecoprocess_spp","ecoprocess_uncertainty","datasharing","broaderimpacts","exisitingpriorities","partners","leverage","alignment","objhyp","response","targettaxa","surveydesign","stats","datamanagement","budget","timeline","cost",null,"Project","title","states","taxa_groups","A_Marshbird_portfolio","B_Shorebird_portfolio","C_All_states_portfolio","D_No_proj_over_halfM","E_Texas_portfolio"]
[1,9,6.25,2,2,0,186,1054,75,5,0,2,0,0,0,4,0,2,3,0,0,2,3,3,3,2,3,2,2,700000,null,1,"NFWF-A","NA","Shorebirds",0,1,0,0,0]
[2,3,28.2,1,0,0,0,0,0,0,0,2,0,4,1,0,0,3,3,0,0,2,3,3,3,2,3,2,2,5400000,null,2,"NFWF-B","NA","NA",0,0,0,0,0]
[3,8,28.2,2,0,0,0,0,0,0,0,2,0,5,1,0,2,0,0,0,1,2,3,3,3,2,1,2,2,250000,null,3,"NFWF-C","NA","NA",0,0,0,1,0]
[4,1,6.25,2,0,0,0,0,0,0,0,2,0,4,1,0,1,3,3,4,0,1,3,3,1,0,0,2,1,150000,null,4,"NFWF-D","LA","Shorebirds",0,1,0,0,0]
[5,4,3.1,2,0,0,0,0,50,2,0,2,0,0,0,0,1,3,3,4,1,0,3,3,2,0,0,2,1,220000,null,5,"NFWF-E","MS,FL","Shorebirds",0,1,0,1,0]
[6,10,6.2E-2,2,0,0,0,0,10,2,0,2,0,0,0,0,1,0,3,3,0,0,0,3,0,0,0,2,1,110000,null,6,"NFWF-F","TX,LA","Shorebirds",0,1,0,0,1]
[7,52,18.8,0,2,0,0,0,85,12,85,8,12,8,1,0,0,3,3,0,0,2,0,1,3,2,2,0,2,1000000,null,7,"Omnibus Monitoring In Response to Sea Level Rise","All","All Minus Seabirds",0,0,1,0,0]
[8,3,18.8,2,1,1,0,0,14,14,14,8,14,0,0,0,3,1,3,0,0,2,3,3,3,2,0,1,1,5000000,null,8,"The effectiveness of island creation in Mobile Bay for island nesting species","AL","wading, Seabirds",0,0,0,0,0]
[9,9,15.6,2,1,0,70,140,0,0,0,2,0,0,0,3,0,3,2,1,0,2,3,3,1,2,1,1,2,25000,null,9,"the impact of wind development on migrating raptors in the GoM","All","Raptors",0,0,0,0,0]
[10,0,0,0,0,0,0,0,0,0,0,2,0,6,2,1,2,3,2,2,0,0,2,3,3,1,1,0,2,900000,null,10,"Do hurricanes impact survival of migratory/wintering waterfowl? Does stress/movement to avoid hurricanes impact migratory/wintering waterfowl survival?","Texas","Waterfowl",0,0,0,0,1]
[11,0,0,0,0,0,6,102,52,15,52,8,15,3,1,1,0,3,3,2,2,2,1,3,3,1,2,0,1,1500000,null,11,"How does increase in salinity impact habitat quality/quantity, and does it impact the population trend of wetland associated birds?","All","waterfowl, marshbirds, wadingbirds",0,0,1,0,0]
[12,2,15.6,2,1,0,0,0,0,0,0,2,0,0,0,0,1,3,3,3,0,1,1,3,1,2,1,2,0,100000,null,12,"The impact of rice agriculture on nesting King Rails and wintering Yellow Rails in Louisiana","LA","marshbird, landbird",1,0,0,0,0]
[13,0,0,0,0,0,0,12,39,2,39,8,2,7,1,1,0,3,3,0,0,1,0,1,0,2,1,1,1,250000,null,13,"How do hurricanes impact forage quality for nesting wadingbirds?","Fl, AL","Wading",0,0,0,1,0]
[14,6,15.6,1,1,0,0,0,0,0,0,2,0,6,1,1,0,3,3,0,0,1,1,3,3,1,2,1,1,500000,null,14,"How do hurriances impact forest management rotations, and nesting landbirds and raptors in those forests?","MS, AL","Landbird,Raptor",0,0,0,0,0]
[15,23,12.5,2,1,1,0,0,23,3,23,8,3,1,2,2,0,2,3,3,2,0,3,1,1,2,3,2,1,800000,null,15,"Using adaptive managgement to learn about how we should manage grasslands using prescribed fire in the face of climage change","All","Landbirds,Marshbird,Raptor",0,0,0,0,0]
[16,0,0,0,0,0,0,0,100,15,100,7,15,0,0,3,0,3,3,5,0,2,2,2,1,2,3,2,2,2000000,null,16,"Long-term monitoring of GoM raptors","All","Raptors",0,0,0,0,0]
[17,2,15.6,2,1,1,58,290,0,0,0,8,3,0,0,0,0,3,2,0,0,2,3,1,0,1,0,2,1,500000,null,17,"Learning more about how perscribed fire increases habitat quantity in forested systems through adapative management?","MS,AL","Landbirds",0,0,0,0,0]
[18,0,0,0,0,0,0,30,0,0,0,2,0,8,1,1,3,3,3,5,1,2,2,1,2,1,2,1,0,300000,null,18,"How do hurriances impact the survival of marshbirds","All","Marshbirds",1,0,0,1,0]
[19,8,3.125,1,2,0,0,0,0,0,0,2,0,8,2,0,0,2,3,0,0,1,1,3,2,0,1,0,1,750000,null,19,"How can prescribed fire be used to manage scrubland habitats for a greater diversity of migratory birds in the face of climate change?","ALl","Landbirds",0,0,0,0,0]
[20,9,15.6,1,2,0,0,435,76,10,76,6,10,8,2,1,0,3,3,3,2,1,0,0,1,2,1,0,1,1500000,null,20,"Comparison of the impacts of forested habitat cover change on population dynamics of long and short distance migrants","All","Landbirds",0,0,0,0,0]
[21,0,0,0,0,0,0,0,0,0,0,2,0,8,2,0,1,3,3,5,1,0,2,3,1,0,3,1,2,900000,null,21,"How do open ocean currents, surface temperature and seasonality impact seabird use off the GoM?","All","Seabirds",0,0,0,0,0]
[22,0,0,0,0,0,16,64,0,0,0,2,0,1,2,4,2,2,3,5,0,1,2,1,0,2,1,2,1,750000,null,22,"What has a larger impact on X seabird populations in the gulf, plastic consumption, accidental take, or weather patterns?","ALl","Seabirds",0,0,0,0,0]
[23,9,18.8,2,0,0,0,0,0,0,0,2,0,0,0,3,0,3,3,5,0,2,1,2,1,1,1,0,1,1000000,null,23,"How does water management, including the flooding of wetlands and cropfields, impact overwinter waterfowl surival?","All","Waterfowl",0,0,0,0,0]
[24,5,6.25,2,0,0,0,0,0,0,0,2,0,0,0,0,0,3,3,5,0,0,3,1,3,2,1,0,2,150000,null,24,"What kind of signage is most effective for decreasing human disturbance impacts on beach nesting birds?","All","Shorebirds",0,0,0,0,0]
[25,9,18.8,2,0,0,176,308,0,0,0,2,0,8,1,2,2,3,3,0,0,2,1,3,2,1,1,2,2,250000,null,25,"How does invasive species control impact marshbird use?","TX,LA,MS","Marshbirds",1,0,0,0,1]
[26,17,18.8,2,1,0,0,0,0,0,0,2,0,0,0,3,0,3,3,4,0,2,1,0,2,0,1,2,2,500000,null,26,"How does human disturbance impact the nest survival and fledging rate of nesting wading and marshbirds","Al,MS,FL","Marshbirds, Wadingbirds",0,0,0,0,0]
[27,0,6.25,2,0,0,0,0,0,0,80,2,5,0,0,2,2,3,3,5,0,1,2,3,1,0,0,0,0,1200000,null,27,"How does beach renourishment impact the invertebrate communities which are used by migratory and wintering shorebirds?","All","Shorebirds",0,1,0,0,0]
[28,3,6.25,2,0,1,0,0,0,0,0,4,5,0,0,4,0,3,3,4,0,2,3,3,1,0,2,2,1,500000,null,28,"Learning about how beach renourishment after oil contamination can increase habitat quantity for 3 declining shorebirds","LA","Shorebirds",0,0,0,0,0]
[29,9,12.5,2,1,0,0,0,15,12,15,8,12,0,0,1,0,3,3,4,0,2,1,0,2,1,1,1,2,2000000,null,29,"When restoring wetlands and grasslands, but unable to restore very large patches, is there an advantage to restoring the two habitat types near each other for species in each habitat type, versus cropfields","ALl","Marshbirds, Landbirds, Raptors",0,0,0,0,1]
[30,33,18.8,2,0,0,0,0,0,0,0,4,2,0,0,0,0,1,1,0,0,0,3,1,2,0,2,2,0,250000,null,30,"How does prescribed fire impact marshbird habitat quanitity?","LA","Marshbirds",1,0,0,0,0]
[31,4,18.8,1,0,0,0,0,65,4,0,4,4,0,0,2,0,3,2,3,0,1,0,1,1,2,2,1,1,650000,null,31,"How does fresh water management impact the quantity of wetland habitat available to wintering marshbirds?","TX,LA,MS","Marshbirds",1,0,0,0,1]
[32,5,3.125,2,2,1,6,102,40,16,40,8,16,0,0,2,3,3,0,4,0,0,2,1,2,1,0,2,1,200000,null,32,"Learning about how management of scrub shrub succession impacts habitat quantity and quantity as well as population trends for migratory landbirds through adpative management","FL, Al","Landbirds",0,0,0,0,0]
[33,14,18.8,2,1,0,0,0,0,0,0,5,0,0,0,2,0,3,2,0,0,1,3,0,2,2,3,0,0,400000,null,33,"The impacts of offshore oil development on wintering seabirds and lesser scaup","All","Seabirds, Waterfowl",0,0,1,1,0]
[34,0,0,0,0,0,0,12,100,15,100,8,15,0,0,2,0,3,3,4,0,2,3,3,0,2,2,1,0,900000,null,34,"long-term monitoring of the reddish egret","All","Wading",0,0,1,0,0]
[35,8,9.4,1,1,1,0,0,0,0,100,6,5,8,0,0,0,3,3,3,0,2,2,0,1,2,0,1,1,900000,null,35,"The impacts of sealevel rise and stormwater management on the habitat quantity , food resources and use by wadingbirds","All","Wading",0,0,1,0,0]
[]
[null,{"$f":"B1","v":"manage_species"},{"$f":"C1","v":"manage_spatial"},"manage_uncertainty","manage_currentpractices","manage_adaptivemanagement","pop_a","pop_b","pop_spatialscope","pop_temporalscope","hab_quantity","hab_quality","hab_temporal","ecoprocess_spp","ecoprocess_uncertainty","datasharing","broaderimpacts","exisitingpriorities","partners","leverage","alignment","objhyp","response","targettaxa","surveydesign","stats","datamanagement","budget","timeline"]
[null,"Metric 1","Metric 2","Metric 3","Metric 4","Metric 5","Metric 6a","Metric 6b","Metric 7","Metric 8","Metric 9","Metric 10","Metric 11","Metric 12","Metric 13","Metric 14","Metric 15","Metric 16","Metric 17","Metric 18","Metric 19","Metric 20","Metric 21","Metric 22","Metric 23","Metric 24","Metric 25","Metric 26","Metric 27"]
["Weights",0.03,0.03,0.03,0.03,0.04,1.4999999999999999E-2,1.4999999999999999E-2,0.03,0.02,0.02,0.02,0.02,0.03,0.09,0.04,0.04,0.05,0.05,0.03,0.03,0.05,0.04,0.04,0.05,0.05,0.04,0.04,0.03]
[]
["Project",null,null,null,null,null,null,null,null,null,null,null,null,null,null,null,null,null,null,null,null,null,null,null,null,null,null,null,null,"total"]
[{"$f":"A2","v":1},{"$f":"$B$40*(valueE(B2,'Utility Functions'!$B$3,'Utility Functions'!$B$4,'Utility Functions'!$B$5,'Utility Functions'!$B$6))","v":2.5041071294184137E-2},{"$f":"$C$40*(valueE(C2,'Utility Functions'!$D$3,'Utility Functions'!$D$4,'Utility Functions'!$D$5,'Utility Functions'!$D$6))","v":1.3942790146123618E-2},{"$f":"$D$40*(valuePL(D2,'Utility Functions'!$E$3:$E$5,'Utility Functions'!$F$3:$F$5))","v":0.03},{"$f":"$E$40*(valuePL(E2,'Utility Functions'!$G$3:$G$5,'Utility Functions'!$H$3:$H$5))","v":0.03},{"$f":"$F$40*(valuePL(F2,'Utility Functions'!$I$3:$I$4,'Utility Functions'!$J$3:$J$5))","v":0},{"$f":"$G$40*(valueE(G2,'Utility Functions'!$L$3,'Utility Functions'!$L$4,'Utility Functions'!$L$5,'Utility Functions'!$L$6))","v":1.4999999999999999E-2},{"$f":"$H$40*(valueE(H2,'Utility Functions'!$N$3,'Utility Functions'!$N$4,'Utility Functions'!$N$5,'Utility Functions'!$N$6))","v":1.4999999999999999E-2},{"$f":"$I$40*valuePL(I2,'Utility Functions'!$O$3:$O$6,'Utility Functions'!$P$3:$P$6)","v":2.7545454545454547E-2},{"$f":"$J$40*valuePL(J2,'Utility Functions'!$Q$3:$Q$6,'Utility Functions'!$R$3:$R$6)","v":2E-3},{"$f":"$K$40*(valuePL(K2,'Utility Functions'!$S$3:$S$7,'Utility Functions'!$T$3:$T$7))","v":0},{"$f":"$L$40*(valueE(L2,'Utility Functions'!$V$3,'Utility Functions'!$V$4,'Utility Functions'!$V$5,'Utility Functions'!$V$6))","v":0},{"$f":"$M$40*valuePL(M2,'Utility Functions'!$W$3:$W$6,'Utility Functions'!$X$3:$X$6)","v":0},{"$f":"$N$40*valueE(N2,'Utility Functions'!$Z$3,'Utility Functions'!$Z$4,'Utility Functions'!$Z$5,'Utility Functions'!$Z$6)","v":0},{"$f":"$O$40*valuePL(O2,'Utility Functions'!$AA$3:$AA$5,'Utility Functions'!$AB$3:$AB$5)","v":0},{"$f":"$P$40*valuePL(P2,'Utility Functions'!$AC$3:$AC$7,'Utility Functions'!$AD$3:$AD$7)","v":0.04},{"$f":"$Q$40*valuePL(Q2,'Utility Functions'!$AE$3:$AE$6,'Utility Functions'!$AF$3:$AF$6)","v":0},{"$f":"$R$40*valuePL(R2,'Utility Functions'!$AG$3:$AG$6,'Utility Functions'!$AH$3:$AH$6)","v":4.0000000000000008E-2},{"$f":"$S$40*valuePL(S2,'Utility Functions'!$AI$3:$AI$6,'Utility Functions'!$AJ$3:$AJ$6)","v":0.05},{"$f":"$T$40*valuePL(T2,'Utility Functions'!$AK$3:$AK$8,'Utility Functions'!$AL$3:$AL$8)","v":0},{"$f":"$U$40*valuePL(U2,'Utility Functions'!$AM$3:$AM$5,'Utility Functions'!$AN$3:$AN$5)","v":0},{"$f":"$V$40*valuePL(V2,'Utility Functions'!$AO$3:$AO$5,'Utility Functions'!$AP$3:$AP$5)","v":0.05},{"$f":"$W$40*valuePL(W2,'Utility Functions'!$AQ$3:$AQ$6,'Utility Functions'!$AR$3:$AR$6)","v":0.04},{"$f":"$X$40*valuePL(X2,'Utility Functions'!$AS$3:$AS$6,'Utility Functions'!$AT$3:$AT$6)","v":0.04},{"$f":"$Y$40*valuePL(Y2,'Utility Functions'!$AU$3:$AU$6,'Utility Functions'!$AV$3:$AV$6)","v":0.05},{"$f":"$Z$40*valuePL(Z2,'Utility Functions'!$AW$3:$AW$5,'Utility Functions'!$AX$3:$AX$5)","v":0.05},{"$f":"$AA$40*valuePL(AA2,'Utility Functions'!$AY$3:$AY$6,'Utility Functions'!$AZ$3:$AZ$6)","v":0.04},{"$f":"$AB$40*valuePL(AB2,'Utility Functions'!$BA$3:$BA$5,'Utility Functions'!$BB$3:$BB$5)","v":0.04},{"$f":"$AC$40*valuePL(AC2,'Utility Functions'!$BC$3:$BC$5,'Utility Functions'!$BD$3:$BD$5)","v":0.03},{"$f":"SUM(B43:AC43)","v":0.62852931598576234}]
[{"$f":"A3","v":2},{"$f":"$B$40*(valueE(B3,'Utility Functions'!$B$3,'Utility Functions'!$B$4,'Utility Functions'!$B$5,'Utility Functions'!$B$6))","v":1.3535671425672068E-2},{"$f":"$C$40*(valueE(C3,'Utility Functions'!$D$3,'Utility Functions'!$D$4,'Utility Functions'!$D$5,'Utility Functions'!$D$6))","v":2.8213102591607857E-2},{"$f":"$D$40*(valuePL(D3,'Utility Functions'!$E$3:$E$5,'Utility Functions'!$F$3:$F$5))","v":1.4999999999999999E-2},{"$f":"$E$40*(valuePL(E3,'Utility Functions'!$G$3:$G$5,'Utility Functions'!$H$3:$H$5))","v":0},{"$f":"$F$40*(valuePL(F3,'Utility Functions'!$I$3:$I$4,'Utility Functions'!$J$3:$J$5))","v":0},{"$f":"$G$40*(valueE(G3,'Utility Functions'!$L$3,'Utility Functions'!$L$4,'Utility Functions'!$L$5,'Utility Functions'!$L$6))","v":0},{"$f":"$H$40*(valueE(H3,'Utility Functions'!$N$3,'Utility Functions'!$N$4,'Utility Functions'!$N$5,'Utility Functions'!$N$6))","v":0},{"$f":"$I$40*valuePL(I3,'Utility Functions'!$O$3:$O$6,'Utility Functions'!$P$3:$P$6)","v":0},{"$f":"$J$40*valuePL(J3,'Utility Functions'!$Q$3:$Q$6,'Utility Functions'!$R$3:$R$6)","v":0},{"$f":"$K$40*(valuePL(K3,'Utility Functions'!$S$3:$S$7,'Utility Functions'!$T$3:$T$7))","v":0},{"$f":"$L$40*(valueE(L3,'Utility Functions'!$V$3,'Utility Functions'!$V$4,'Utility Functions'!$V$5,'Utility Functions'!$V$6))","v":0},{"$f":"$M$40*valuePL(M3,'Utility Functions'!$W$3:$W$6,'Utility Functions'!$X$3:$X$6)","v":0},{"$f":"$N$40*valueE(N3,'Utility Functions'!$Z$3,'Utility Functions'!$Z$4,'Utility Functions'!$Z$5,'Utility Functions'!$Z$6)","v":1.4999999999999999E-2},{"$f":"$O$40*valuePL(O3,'Utility Functions'!$AA$3:$AA$5,'Utility Functions'!$AB$3:$AB$5)","v":2.2499999999999999E-2},{"$f":"$P$40*valuePL(P3,'Utility Functions'!$AC$3:$AC$7,'Utility Functions'!$AD$3:$AD$7)","v":0},{"$f":"$Q$40*valuePL(Q3,'Utility Functions'!$AE$3:$AE$6,'Utility Functions'!$AF$3:$AF$6)","v":0},{"$f":"$R$40*valuePL(R3,'Utility Functions'!$AG$3:$AG$6,'Utility Functions'!$AH$3:$AH$6)","v":0.05},{"$f":"$S$40*valuePL(S3,'Utility Functions'!$AI$3:$AI$6,'Utility Functions'!$AJ$3:$AJ$6)","v":0.05},{"$f":"$T$40*valuePL(T3,'Utility Functions'!$AK$3:$AK$8,'Utility Functions'!$AL$3:$AL$8)","v":0},{"$f":"$U$40*valuePL(U3,'Utility Functions'!$AM$3:$AM$5,'Utility Functions'!$AN$3:$AN$5)","v":0},{"$f":"$V$40*valuePL(V3,'Utility Functions'!$AO$3:$AO$5,'Utility Functions'!$AP$3:$AP$5)","v":0.05},{"$f":"$W$40*valuePL(W3,'Utility Functions'!$AQ$3:$AQ$6,'Utility Functions'!$AR$3:$AR$6)","v":0.04},{"$f":"$X$40*valuePL(X3,'Utility Functions'!$AS$3:$AS$6,'Utility Functions'!$AT$3:$AT$6)","v":0.04},{"$f":"$Y$40*valuePL(Y3,'Utility Functions'!$AU$3:$AU$6,'Utility Functions'!$AV$3:$AV$6)","v":0.05},{"$f":"$Z$40*valuePL(Z3,'Utility Functions'!$AW$3:$AW$5,'Utility Functions'!$AX$3:$AX$5)","v":0.05},{"$f":"$AA$40*valuePL(AA3,'Utility Functions'!$AY$3:$AY$6,'Utility Functions'!$AZ$3:$AZ$6)","v":0.04},{"$f":"$AB$40*valuePL(AB3,'Utility Functions'!$BA$3:$BA$5,'Utility Functions'!$BB$3:$BB$5)","v":0.04},{"$f":"$AC$40*valuePL(AC3,'Utility Functions'!$BC$3:$BC$5,'Utility Functions'!$BD$3:$BD$5)","v":0.03},{"$f":"SUM(B44:AC44)","v":0.53424877401727988}]
[3,{"$f":"$B$40*(valueE(B4,'Utility Functions'!$B$3,'Utility Functions'!$B$4,'Utility Functions'!$B$5,'Utility Functions'!$B$6))","v":2.3943140737469053E-2},{"$f":"$C$40*(valueE(C4,'Utility Functions'!$D$3,'Utility Functions'!$D$4,'Utility Functions'!$D$5,'Utility Functions'!$D$6))","v":2.8213102591607857E-2},{"$f":"$D$40*(valuePL(D4,'Utility Functions'!$E$3:$E$5,'Utility Functions'!$F$3:$F$5))","v":0.03},{"$f":"$E$40*(valuePL(E4,'Utility Functions'!$G$3:$G$5,'Utility Functions'!$H$3:$H$5))","v":0},{"$f":"$F$40*(valuePL(F4,'Utility Functions'!$I$3:$I$4,'Utility Functions'!$J$3:$J$5))","v":0},{"$f":"$G$40*(valueE(G4,'Utility Functions'!$L$3,'Utility Functions'!$L$4,'Utility Functions'!$L$5,'Utility Functions'!$L$6))","v":0},{"$f":"$H$40*(valueE(H4,'Utility Functions'!$N$3,'Utility Functions'!$N$4,'Utility Functions'!$N$5,'Utility Functions'!$N$6))","v":0},{"$f":"$I$40*valuePL(I4,'Utility Functions'!$O$3:$O$6,'Utility Functions'!$P$3:$P$6)","v":0},{"$f":"$J$40*valuePL(J4,'Utility Functions'!$Q$3:$Q$6,'Utility Functions'!$R$3:$R$6)","v":0},{"$f":"$K$40*(valuePL(K4,'Utility Functions'!$S$3:$S$7,'Utility Functions'!$T$3:$T$7))","v":0},{"$f":"$L$40*(valueE(L4,'Utility Functions'!$V$3,'Utility Functions'!$V$4,'Utility Functions'!$V$5,'Utility Functions'!$V$6))","v":0},{"$f":"$M$40*valuePL(M4,'Utility Functions'!$W$3:$W$6,'Utility Functions'!$X$3:$X$6)","v":0},{"$f":"$N$40*valueE(N4,'Utility Functions'!$Z$3,'Utility Functions'!$Z$4,'Utility Functions'!$Z$5,'Utility Functions'!$Z$6)","v":1.8749999999999999E-2},{"$f":"$O$40*valuePL(O4,'Utility Functions'!$AA$3:$AA$5,'Utility Functions'!$AB$3:$AB$5)","v":2.2499999999999999E-2},{"$f":"$P$40*valuePL(P4,'Utility Functions'!$AC$3:$AC$7,'Utility Functions'!$AD$3:$AD$7)","v":0},{"$f":"$Q$40*valuePL(Q4,'Utility Functions'!$AE$3:$AE$6,'Utility Functions'!$AF$3:$AF$6)","v":0.02},{"$f":"$R$40*valuePL(R4,'Utility Functions'!$AG$3:$AG$6,'Utility Functions'!$AH$3:$AH$6)","v":0},{"$f":"$S$40*valuePL(S4,'Utility Functions'!$AI$3:$AI$6,'Utility Functions'!$AJ$3:$AJ$6)","v":0},{"$f":"$T$40*valuePL(T4,'Utility Functions'!$AK$3:$AK$8,'Utility Functions'!$AL$3:$AL$8)","v":0},{"$f":"$U$40*valuePL(U4,'Utility Functions'!$AM$3:$AM$5,'Utility Functions'!$AN$3:$AN$5)","v":7.4999999999999997E-3},{"$f":"$V$40*valuePL(V4,'Utility Functions'!$AO$3:$AO$5,'Utility Functions'!$AP$3:$AP$5)","v":0.05},{"$f":"$W$40*valuePL(W4,'Utility Functions'!$AQ$3:$AQ$6,'Utility Functions'!$AR$3:$AR$6)","v":0.04},{"$f":"$X$40*valuePL(X4,'Utility Functions'!$AS$3:$AS$6,'Utility Functions'!$AT$3:$AT$6)","v":0.04},{"$f":"$Y$40*valuePL(Y4,'Utility Functions'!$AU$3:$AU$6,'Utility Functions'!$AV$3:$AV$6)","v":0.05},{"$f":"$Z$40*valuePL(Z4,'Utility Functions'!$AW$3:$AW$5,'Utility Functions'!$AX$3:$AX$5)","v":0.05},{"$f":"$AA$40*valuePL(AA4,'Utility Functions'!$AY$3:$AY$6,'Utility Functions'!$AZ$3:$AZ$6)","v":8.0000000000000002E-3},{"$f":"$AB$40*valuePL(AB4,'Utility Functions'!$BA$3:$BA$5,'Utility Functions'!$BB$3:$BB$5)","v":0.04},{"$f":"$AC$40*valuePL(AC4,'Utility Functions'!$BC$3:$BC$5,'Utility Functions'!$BD$3:$BD$5)","v":0.03},0.45890624332907692]
[4,{"$f":"$B$40*(valueE(B5,'Utility Functions'!$B$3,'Utility Functions'!$B$4,'Utility Functions'!$B$5,'Utility Functions'!$B$6))","v":5.4380856471439951E-3},{"$f":"$C$40*(valueE(C5,'Utility Functions'!$D$3,'Utility Functions'!$D$4,'Utility Functions'!$D$5,'Utility Functions'!$D$6))","v":1.3942790146123618E-2},{"$f":"$D$40*(valuePL(D5,'Utility Functions'!$E$3:$E$5,'Utility Functions'!$F$3:$F$5))","v":0.03},{"$f":"$E$40*(valuePL(E5,'Utility Functions'!$G$3:$G$5,'Utility Functions'!$H$3:$H$5))","v":0},{"$f":"$F$40*(valuePL(F5,'Utility Functions'!$I$3:$I$4,'Utility Functions'!$J$3:$J$5))","v":0},{"$f":"$G$40*(valueE(G5,'Utility Functions'!$L$3,'Utility Functions'!$L$4,'Utility Functions'!$L$5,'Utility Functions'!$L$6))","v":0},{"$f":"$H$40*(valueE(H5,'Utility Functions'!$N$3,'Utility Functions'!$N$4,'Utility Functions'!$N$5,'Utility Functions'!$N$6))","v":0},{"$f":"$I$40*valuePL(I5,'Utility Functions'!$O$3:$O$6,'Utility Functions'!$P$3:$P$6)","v":0},{"$f":"$J$40*valuePL(J5,'Utility Functions'!$Q$3:$Q$6,'Utility Functions'!$R$3:$R$6)","v":0},{"$f":"$K$40*(valuePL(K5,'Utility Functions'!$S$3:$S$7,'Utility Functions'!$T$3:$T$7))","v":0},{"$f":"$L$40*(valueE(L5,'Utility Functions'!$V$3,'Utility Functions'!$V$4,'Utility Functions'!$V$5,'Utility Functions'!$V$6))","v":0},{"$f":"$M$40*valuePL(M5,'Utility Functions'!$W$3:$W$6,'Utility Functions'!$X$3:$X$6)","v":0},{"$f":"$N$40*valueE(N5,'Utility Functions'!$Z$3,'Utility Functions'!$Z$4,'Utility Functions'!$Z$5,'Utility Functions'!$Z$6)","v":1.4999999999999999E-2},{"$f":"$O$40*valuePL(O5,'Utility Functions'!$AA$3:$AA$5,'Utility Functions'!$AB$3:$AB$5)","v":2.2499999999999999E-2},{"$f":"$P$40*valuePL(P5,'Utility Functions'!$AC$3:$AC$7,'Utility Functions'!$AD$3:$AD$7)","v":0},{"$f":"$Q$40*valuePL(Q5,'Utility Functions'!$AE$3:$AE$6,'Utility Functions'!$AF$3:$AF$6)","v":4.0000000000000001E-3},{"$f":"$R$40*valuePL(R5,'Utility Functions'!$AG$3:$AG$6,'Utility Functions'!$AH$3:$AH$6)","v":0.05},{"$f":"$S$40*valuePL(S5,'Utility Functions'!$AI$3:$AI$6,'Utility Functions'!$AJ$3:$AJ$6)","v":0.05},{"$f":"$T$40*valuePL(T5,'Utility Functions'!$AK$3:$AK$8,'Utility Functions'!$AL$3:$AL$8)","v":2.4E-2},{"$f":"$U$40*valuePL(U5,'Utility Functions'!$AM$3:$AM$5,'Utility Functions'!$AN$3:$AN$5)","v":0},{"$f":"$V$40*valuePL(V5,'Utility Functions'!$AO$3:$AO$5,'Utility Functions'!$AP$3:$AP$5)","v":2.5000000000000001E-2},{"$f":"$W$40*valuePL(W5,'Utility Functions'!$AQ$3:$AQ$6,'Utility Functions'!$AR$3:$AR$6)","v":0.04},{"$f":"$X$40*valuePL(X5,'Utility Functions'!$AS$3:$AS$6,'Utility Functions'!$AT$3:$AT$6)","v":0.04},{"$f":"$Y$40*valuePL(Y5,'Utility Functions'!$AU$3:$AU$6,'Utility Functions'!$AV$3:$AV$6)","v":1.0000000000000002E-2},{"$f":"$Z$40*valuePL(Z5,'Utility Functions'!$AW$3:$AW$5,'Utility Functions'!$AX$3:$AX$5)","v":0},{"$f":"$AA$40*valuePL(AA5,'Utility Functions'!$AY$3:$AY$6,'Utility Functions'!$AZ$3:$AZ$6)","v":0},{"$f":"$AB$40*valuePL(AB5,'Utility Functions'!$BA$3:$BA$5,'Utility Functions'!$BB$3:$BB$5)","v":0.04},{"$f":"$AC$40*valuePL(AC5,'Utility Functions'!$BC$3:$BC$5,'Utility Functions'!$BD$3:$BD$5)","v":7.4999999999999997E-3},0.37738087579326757]
[5,{"$f":"$B$40*(valueE(B6,'Utility Functions'!$B$3,'Utility Functions'!$B$4,'Utility Functions'!$B$5,'Utility Functions'!$B$6))","v":1.6520156106900608E-2},{"$f":"$C$40*(valueE(C6,'Utility Functions'!$D$3,'Utility Functions'!$D$4,'Utility Functions'!$D$5,'Utility Functions'!$D$6))","v":7.9969543744382362E-3},{"$f":"$D$40*(valuePL(D6,'Utility Functions'!$E$3:$E$5,'Utility Functions'!$F$3:$F$5))","v":0.03},{"$f":"$E$40*(valuePL(E6,'Utility Functions'!$G$3:$G$5,'Utility Functions'!$H$3:$H$5))","v":0},{"$f":"$F$40*(valuePL(F6,'Utility Functions'!$I$3:$I$4,'Utility Functions'!$J$3:$J$5))","v":0},{"$f":"$G$40*(valueE(G6,'Utility Functions'!$L$3,'Utility Functions'!$L$4,'Utility Functions'!$L$5,'Utility Functions'!$L$6))","v":0},{"$f":"$H$40*(valueE(H6,'Utility Functions'!$N$3,'Utility Functions'!$N$4,'Utility Functions'!$N$5,'Utility Functions'!$N$6))","v":0},{"$f":"$I$40*valuePL(I6,'Utility Functions'!$O$3:$O$6,'Utility Functions'!$P$3:$P$6)","v":1.5272727272727275E-2},{"$f":"$J$40*valuePL(J6,'Utility Functions'!$Q$3:$Q$6,'Utility Functions'!$R$3:$R$6)","v":8.0000000000000004E-4},{"$f":"$K$40*(valuePL(K6,'Utility Functions'!$S$3:$S$7,'Utility Functions'!$T$3:$T$7))","v":0},{"$f":"$L$40*(valueE(L6,'Utility Functions'!$V$3,'Utility Functions'!$V$4,'Utility Functions'!$V$5,'Utility Functions'!$V$6))","v":0},{"$f":"$M$40*valuePL(M6,'Utility Functions'!$W$3:$W$6,'Utility Functions'!$X$3:$X$6)","v":0},{"$f":"$N$40*valueE(N6,'Utility Functions'!$Z$3,'Utility Functions'!$Z$4,'Utility Functions'!$Z$5,'Utility Functions'!$Z$6)","v":0},{"$f":"$O$40*valuePL(O6,'Utility Functions'!$AA$3:$AA$5,'Utility Functions'!$AB$3:$AB$5)","v":0},{"$f":"$P$40*valuePL(P6,'Utility Functions'!$AC$3:$AC$7,'Utility Functions'!$AD$3:$AD$7)","v":0},{"$f":"$Q$40*valuePL(Q6,'Utility Functions'!$AE$3:$AE$6,'Utility Functions'!$AF$3:$AF$6)","v":4.0000000000000001E-3},{"$f":"$R$40*valuePL(R6,'Utility Functions'!$AG$3:$AG$6,'Utility Functions'!$AH$3:$AH$6)","v":0.05},{"$f":"$S$40*valuePL(S6,'Utility Functions'!$AI$3:$AI$6,'Utility Functions'!$AJ$3:$AJ$6)","v":0.05},{"$f":"$T$40*valuePL(T6,'Utility Functions'!$AK$3:$AK$8,'Utility Functions'!$AL$3:$AL$8)","v":2.4E-2},{"$f":"$U$40*valuePL(U6,'Utility Functions'!$AM$3:$AM$5,'Utility Functions'!$AN$3:$AN$5)","v":7.4999999999999997E-3},{"$f":"$V$40*valuePL(V6,'Utility Functions'!$AO$3:$AO$5,'Utility Functions'!$AP$3:$AP$5)","v":0},{"$f":"$W$40*valuePL(W6,'Utility Functions'!$AQ$3:$AQ$6,'Utility Functions'!$AR$3:$AR$6)","v":0.04},{"$f":"$X$40*valuePL(X6,'Utility Functions'!$AS$3:$AS$6,'Utility Functions'!$AT$3:$AT$6)","v":0.04},{"$f":"$Y$40*valuePL(Y6,'Utility Functions'!$AU$3:$AU$6,'Utility Functions'!$AV$3:$AV$6)","v":4.0000000000000008E-2},{"$f":"$Z$40*valuePL(Z6,'Utility Functions'!$AW$3:$AW$5,'Utility Functions'!$AX$3:$AX$5)","v":0},{"$f":"$AA$40*valuePL(AA6,'Utility Functions'!$AY$3:$AY$6,'Utility Functions'!$AZ$3:$AZ$6)","v":0},{"$f":"$AB$40*valuePL(AB6,'Utility Functions'!$BA$3:$BA$5,'Utility Functions'!$BB$3:$BB$5)","v":0.04},{"$f":"$AC$40*valuePL(AC6,'Utility Functions'!$BC$3:$BC$5,'Utility Functions'!$BD$3:$BD$5)","v":7.4999999999999997E-3},0.37358983775406607]
[6,{"$f":"$B$40*(valueE(B7,'Utility Functions'!$B$3,'Utility Functions'!$B$4,'Utility Functions'!$B$5,'Utility Functions'!$B$6))","v":2.5939980805710805E-2},{"$f":"$C$40*(valueE(C7,'Utility Functions'!$D$3,'Utility Functions'!$D$4,'Utility Functions'!$D$5,'Utility Functions'!$D$6))","v":1.8543300844080441E-4},{"$f":"$D$40*(valuePL(D7,'Utility Functions'!$E$3:$E$5,'Utility Functions'!$F$3:$F$5))","v":0.03},{"$f":"$E$40*(valuePL(E7,'Utility Functions'!$G$3:$G$5,'Utility Functions'!$H$3:$H$5))","v":0},{"$f":"$F$40*(valuePL(F7,'Utility Functions'!$I$3:$I$4,'Utility Functions'!$J$3:$J$5))","v":0},{"$f":"$G$40*(valueE(G7,'Utility Functions'!$L$3,'Utility Functions'!$L$4,'Utility Functions'!$L$5,'Utility Functions'!$L$6))","v":0},{"$f":"$H$40*(valueE(H7,'Utility Functions'!$N$3,'Utility Functions'!$N$4,'Utility Functions'!$N$5,'Utility Functions'!$N$6))","v":0},{"$f":"$I$40*valuePL(I7,'Utility Functions'!$O$3:$O$6,'Utility Functions'!$P$3:$P$6)","v":1.1999999999999999E-3},{"$f":"$J$40*valuePL(J7,'Utility Functions'!$Q$3:$Q$6,'Utility Functions'!$R$3:$R$6)","v":8.0000000000000004E-4},{"$f":"$K$40*(valuePL(K7,'Utility Functions'!$S$3:$S$7,'Utility Functions'!$T$3:$T$7))","v":0},{"$f":"$L$40*(valueE(L7,'Utility Functions'!$V$3,'Utility Functions'!$V$4,'Utility Functions'!$V$5,'Utility Functions'!$V$6))","v":0},{"$f":"$M$40*valuePL(M7,'Utility Functions'!$W$3:$W$6,'Utility Functions'!$X$3:$X$6)","v":0},{"$f":"$N$40*valueE(N7,'Utility Functions'!$Z$3,'Utility Functions'!$Z$4,'Utility Functions'!$Z$5,'Utility Functions'!$Z$6)","v":0},{"$f":"$O$40*valuePL(O7,'Utility Functions'!$AA$3:$AA$5,'Utility Functions'!$AB$3:$AB$5)","v":0},{"$f":"$P$40*valuePL(P7,'Utility Functions'!$AC$3:$AC$7,'Utility Functions'!$AD$3:$AD$7)","v":0},{"$f":"$Q$40*valuePL(Q7,'Utility Functions'!$AE$3:$AE$6,'Utility Functions'!$AF$3:$AF$6)","v":4.0000000000000001E-3},{"$f":"$R$40*valuePL(R7,'Utility Functions'!$AG$3:$AG$6,'Utility Functions'!$AH$3:$AH$6)","v":0},{"$f":"$S$40*valuePL(S7,'Utility Functions'!$AI$3:$AI$6,'Utility Functions'!$AJ$3:$AJ$6)","v":0.05},{"$f":"$T$40*valuePL(T7,'Utility Functions'!$AK$3:$AK$8,'Utility Functions'!$AL$3:$AL$8)","v":1.7999999999999999E-2},{"$f":"$U$40*valuePL(U7,'Utility Functions'!$AM$3:$AM$5,'Utility Functions'!$AN$3:$AN$5)","v":0},{"$f":"$V$40*valuePL(V7,'Utility Functions'!$AO$3:$AO$5,'Utility Functions'!$AP$3:$AP$5)","v":0},{"$f":"$W$40*valuePL(W7,'Utility Functions'!$AQ$3:$AQ$6,'Utility Functions'!$AR$3:$AR$6)","v":0},{"$f":"$X$40*valuePL(X7,'Utility Functions'!$AS$3:$AS$6,'Utility Functions'!$AT$3:$AT$6)","v":0.04},{"$f":"$Y$40*valuePL(Y7,'Utility Functions'!$AU$3:$AU$6,'Utility Functions'!$AV$3:$AV$6)","v":0},{"$f":"$Z$40*valuePL(Z7,'Utility Functions'!$AW$3:$AW$5,'Utility Functions'!$AX$3:$AX$5)","v":0},{"$f":"$AA$40*valuePL(AA7,'Utility Functions'!$AY$3:$AY$6,'Utility Functions'!$AZ$3:$AZ$6)","v":0},{"$f":"$AB$40*valuePL(AB7,'Utility Functions'!$BA$3:$BA$5,'Utility Functions'!$BB$3:$BB$5)","v":0.04},{"$f":"$AC$40*valuePL(AC7,'Utility Functions'!$BC$3:$BC$5,'Utility Functions'!$BD$3:$BD$5)","v":7.4999999999999997E-3},0.21762541381415162]
[7,{"$f":"$B$40*(valueE(B8,'Utility Functions'!$B$3,'Utility Functions'!$B$4,'Utility Functions'!$B$5,'Utility Functions'!$B$6))","v":2.9999132478518691E-2},{"$f":"$C$40*(valueE(C8,'Utility Functions'!$D$3,'Utility Functions'!$D$4,'Utility Functions'!$D$5,'Utility Functions'!$D$6))","v":2.542345105018548E-2},{"$f":"$D$40*(valuePL(D8,'Utility Functions'!$E$3:$E$5,'Utility Functions'!$F$3:$F$5))","v":0},{"$f":"$E$40*(valuePL(E8,'Utility Functions'!$G$3:$G$5,'Utility Functions'!$H$3:$H$5))","v":0.03},{"$f":"$F$40*(valuePL(F8,'Utility Functions'!$I$3:$I$4,'Utility Functions'!$J$3:$J$5))","v":0},{"$f":"$G$40*(valueE(G8,'Utility Functions'!$L$3,'Utility Functions'!$L$4,'Utility Functions'!$L$5,'Utility Functions'!$L$6))","v":0},{"$f":"$H$40*(valueE(H8,'Utility Functions'!$N$3,'Utility Functions'!$N$4,'Utility Functions'!$N$5,'Utility Functions'!$N$6))","v":0},{"$f":"$I$40*valuePL(I8,'Utility Functions'!$O$3:$O$6,'Utility Functions'!$P$3:$P$6)","v":0.03},{"$f":"$J$40*valuePL(J8,'Utility Functions'!$Q$3:$Q$6,'Utility Functions'!$R$3:$R$6)","v":1.3454545454545455E-2},{"$f":"$K$40*(valuePL(K8,'Utility Functions'!$S$3:$S$7,'Utility Functions'!$T$3:$T$7))","v":0.02},{"$f":"$L$40*(valueE(L8,'Utility Functions'!$V$3,'Utility Functions'!$V$4,'Utility Functions'!$V$5,'Utility Functions'!$V$6))","v":0.02},{"$f":"$M$40*valuePL(M8,'Utility Functions'!$W$3:$W$6,'Utility Functions'!$X$3:$X$6)","v":1.3454545454545455E-2},{"$f":"$N$40*valueE(N8,'Utility Functions'!$Z$3,'Utility Functions'!$Z$4,'Utility Functions'!$Z$5,'Utility Functions'!$Z$6)","v":0.03},{"$f":"$O$40*valuePL(O8,'Utility Functions'!$AA$3:$AA$5,'Utility Functions'!$AB$3:$AB$5)","v":2.2499999999999999E-2},{"$f":"$P$40*valuePL(P8,'Utility Functions'!$AC$3:$AC$7,'Utility Functions'!$AD$3:$AD$7)","v":0},{"$f":"$Q$40*valuePL(Q8,'Utility Functions'!$AE$3:$AE$6,'Utility Functions'!$AF$3:$AF$6)","v":0},{"$f":"$R$40*valuePL(R8,'Utility Functions'!$AG$3:$AG$6,'Utility Functions'!$AH$3:$AH$6)","v":0.05},{"$f":"$S$40*valuePL(S8,'Utility Functions'!$AI$3:$AI$6,'Utility Functions'!$AJ$3:$AJ$6)","v":0.05},{"$f":"$T$40*valuePL(T8,'Utility Functions'!$AK$3:$AK$8,'Utility Functions'!$AL$3:$AL$8)","v":0},{"$f":"$U$40*valuePL(U8,'Utility Functions'!$AM$3:$AM$5,'Utility Functions'!$AN$3:$AN$5)","v":0},{"$f":"$V$40*valuePL(V8,'Utility Functions'!$AO$3:$AO$5,'Utility Functions'!$AP$3:$AP$5)","v":0.05},{"$f":"$W$40*valuePL(W8,'Utility Functions'!$AQ$3:$AQ$6,'Utility Functions'!$AR$3:$AR$6)","v":0},{"$f":"$X$40*valuePL(X8,'Utility Functions'!$AS$3:$AS$6,'Utility Functions'!$AT$3:$AT$6)","v":8.0000000000000002E-3},{"$f":"$Y$40*valuePL(Y8,'Utility Functions'!$AU$3:$AU$6,'Utility Functions'!$AV$3:$AV$6)","v":0.05},{"$f":"$Z$40*valuePL(Z8,'Utility Functions'!$AW$3:$AW$5,'Utility Functions'!$AX$3:$AX$5)","v":0.05},{"$f":"$AA$40*valuePL(AA8,'Utility Functions'!$AY$3:$AY$6,'Utility Functions'!$AZ$3:$AZ$6)","v":3.5999999999999997E-2},{"$f":"$AB$40*valuePL(AB8,'Utility Functions'!$BA$3:$BA$5,'Utility Functions'!$BB$3:$BB$5)","v":0},{"$f":"$AC$40*valuePL(AC8,'Utility Functions'!$BC$3:$BC$5,'Utility Functions'!$BD$3:$BD$5)","v":0.03},0.55883167443779502]
[8,{"$f":"$B$40*(valueE(B9,'Utility Functions'!$B$3,'Utility Functions'!$B$4,'Utility Functions'!$B$5,'Utility Functions'!$B$6))","v":1.3535671425672068E-2},{"$f":"$C$40*(valueE(C9,'Utility Functions'!$D$3,'Utility Functions'!$D$4,'Utility Functions'!$D$5,'Utility Functions'!$D$6))","v":2.542345105018548E-2},{"$f":"$D$40*(valuePL(D9,'Utility Functions'!$E$3:$E$5,'Utility Functions'!$F$3:$F$5))","v":0.03},{"$f":"$E$40*(valuePL(E9,'Utility Functions'!$G$3:$G$5,'Utility Functions'!$H$3:$H$5))","v":1.4999999999999999E-2},{"$f":"$F$40*(valuePL(F9,'Utility Functions'!$I$3:$I$4,'Utility Functions'!$J$3:$J$5))","v":0.04},{"$f":"$G$40*(valueE(G9,'Utility Functions'!$L$3,'Utility Functions'!$L$4,'Utility Functions'!$L$5,'Utility Functions'!$L$6))","v":0},{"$f":"$H$40*(valueE(H9,'Utility Functions'!$N$3,'Utility Functions'!$N$4,'Utility Functions'!$N$5,'Utility Functions'!$N$6))","v":0},{"$f":"$I$40*valuePL(I9,'Utility Functions'!$O$3:$O$6,'Utility Functions'!$P$3:$P$6)","v":1.6800000000000003E-3},{"$f":"$J$40*valuePL(J9,'Utility Functions'!$Q$3:$Q$6,'Utility Functions'!$R$3:$R$6)","v":1.6727272727272726E-2},{"$f":"$K$40*(valuePL(K9,'Utility Functions'!$S$3:$S$7,'Utility Functions'!$T$3:$T$7))","v":0},{"$f":"$L$40*(valueE(L9,'Utility Functions'!$V$3,'Utility Functions'!$V$4,'Utility Functions'!$V$5,'Utility Functions'!$V$6))","v":0.02},{"$f":"$M$40*valuePL(M9,'Utility Functions'!$W$3:$W$6,'Utility Functions'!$X$3:$X$6)","v":1.6727272727272726E-2},{"$f":"$N$40*valueE(N9,'Utility Functions'!$Z$3,'Utility Functions'!$Z$4,'Utility Functions'!$Z$5,'Utility Functions'!$Z$6)","v":0},{"$f":"$O$40*valuePL(O9,'Utility Functions'!$AA$3:$AA$5,'Utility Functions'!$AB$3:$AB$5)","v":0},{"$f":"$P$40*valuePL(P9,'Utility Functions'!$AC$3:$AC$7,'Utility Functions'!$AD$3:$AD$7)","v":0},{"$f":"$Q$40*valuePL(Q9,'Utility Functions'!$AE$3:$AE$6,'Utility Functions'!$AF$3:$AF$6)","v":0.04},{"$f":"$R$40*valuePL(R9,'Utility Functions'!$AG$3:$AG$6,'Utility Functions'!$AH$3:$AH$6)","v":1.0000000000000002E-2},{"$f":"$S$40*valuePL(S9,'Utility Functions'!$AI$3:$AI$6,'Utility Functions'!$AJ$3:$AJ$6)","v":0.05},{"$f":"$T$40*valuePL(T9,'Utility Functions'!$AK$3:$AK$8,'Utility Functions'!$AL$3:$AL$8)","v":0},{"$f":"$U$40*valuePL(U9,'Utility Functions'!$AM$3:$AM$5,'Utility Functions'!$AN$3:$AN$5)","v":0},{"$f":"$V$40*valuePL(V9,'Utility Functions'!$AO$3:$AO$5,'Utility Functions'!$AP$3:$AP$5)","v":0.05},{"$f":"$W$40*valuePL(W9,'Utility Functions'!$AQ$3:$AQ$6,'Utility Functions'!$AR$3:$AR$6)","v":0.04},{"$f":"$X$40*valuePL(X9,'Utility Functions'!$AS$3:$AS$6,'Utility Functions'!$AT$3:$AT$6)","v":0.04},{"$f":"$Y$40*valuePL(Y9,'Utility Functions'!$AU$3:$AU$6,'Utility Functions'!$AV$3:$AV$6)","v":0.05},{"$f":"$Z$40*valuePL(Z9,'Utility Functions'!$AW$3:$AW$5,'Utility Functions'!$AX$3:$AX$5)","v":0.05},{"$f":"$AA$40*valuePL(AA9,'Utility Functions'!$AY$3:$AY$6,'Utility Functions'!$AZ$3:$AZ$6)","v":0},{"$f":"$AB$40*valuePL(AB9,'Utility Functions'!$BA$3:$BA$5,'Utility Functions'!$BB$3:$BB$5)","v":0.01},{"$f":"$AC$40*valuePL(AC9,'Utility Functions'!$BC$3:$BC$5,'Utility Functions'!$BD$3:$BD$5)","v":7.4999999999999997E-3},0.52659366793040296]
[9,{"$f":"$B$40*(valueE(B10,'Utility Functions'!$B$3,'Utility Functions'!$B$4,'Utility Functions'!$B$5,'Utility Functions'!$B$6))","v":2.5041071294184137E-2},{"$f":"$C$40*(valueE(C10,'Utility Functions'!$D$3,'Utility Functions'!$D$4,'Utility Functions'!$D$5,'Utility Functions'!$D$6))","v":2.3696993705826886E-2},{"$f":"$D$40*(valuePL(D10,'Utility Functions'!$E$3:$E$5,'Utility Functions'!$F$3:$F$5))","v":0.03},{"$f":"$E$40*(valuePL(E10,'Utility Functions'!$G$3:$G$5,'Utility Functions'!$H$3:$H$5))","v":1.4999999999999999E-2},{"$f":"$F$40*(valuePL(F10,'Utility Functions'!$I$3:$I$4,'Utility Functions'!$J$3:$J$5))","v":0},{"$f":"$G$40*(valueE(G10,'Utility Functions'!$L$3,'Utility Functions'!$L$4,'Utility Functions'!$L$5,'Utility Functions'!$L$6))","v":5.6451612903225803E-3},{"$f":"$H$40*(valueE(H10,'Utility Functions'!$N$3,'Utility Functions'!$N$4,'Utility Functions'!$N$5,'Utility Functions'!$N$6))","v":1.9924098671726754E-3},{"$f":"$I$40*valuePL(I10,'Utility Functions'!$O$3:$O$6,'Utility Functions'!$P$3:$P$6)","v":0},{"$f":"$J$40*valuePL(J10,'Utility Functions'!$Q$3:$Q$6,'Utility Functions'!$R$3:$R$6)","v":0},{"$f":"$K$40*(valuePL(K10,'Utility Functions'!$S$3:$S$7,'Utility Functions'!$T$3:$T$7))","v":0},{"$f":"$L$40*(valueE(L10,'Utility Functions'!$V$3,'Utility Functions'!$V$4,'Utility Functions'!$V$5,'Utility Functions'!$V$6))","v":0},{"$f":"$M$40*valuePL(M10,'Utility Functions'!$W$3:$W$6,'Utility Functions'!$X$3:$X$6)","v":0},{"$f":"$N$40*valueE(N10,'Utility Functions'!$Z$3,'Utility Functions'!$Z$4,'Utility Functions'!$Z$5,'Utility Functions'!$Z$6)","v":0},{"$f":"$O$40*valuePL(O10,'Utility Functions'!$AA$3:$AA$5,'Utility Functions'!$AB$3:$AB$5)","v":0},{"$f":"$P$40*valuePL(P10,'Utility Functions'!$AC$3:$AC$7,'Utility Functions'!$AD$3:$AD$7)","v":0.03},{"$f":"$Q$40*valuePL(Q10,'Utility Functions'!$AE$3:$AE$6,'Utility Functions'!$AF$3:$AF$6)","v":0},{"$f":"$R$40*valuePL(R10,'Utility Functions'!$AG$3:$AG$6,'Utility Functions'!$AH$3:$AH$6)","v":0.05},{"$f":"$S$40*valuePL(S10,'Utility Functions'!$AI$3:$AI$6,'Utility Functions'!$AJ$3:$AJ$6)","v":3.3000000000000002E-2},{"$f":"$T$40*valuePL(T10,'Utility Functions'!$AK$3:$AK$8,'Utility Functions'!$AL$3:$AL$8)","v":6.0000000000000001E-3},{"$f":"$U$40*valuePL(U10,'Utility Functions'!$AM$3:$AM$5,'Utility Functions'!$AN$3:$AN$5)","v":0},{"$f":"$V$40*valuePL(V10,'Utility Functions'!$AO$3:$AO$5,'Utility Functions'!$AP$3:$AP$5)","v":0.05},{"$f":"$W$40*valuePL(W10,'Utility Functions'!$AQ$3:$AQ$6,'Utility Functions'!$AR$3:$AR$6)","v":0.04},{"$f":"$X$40*valuePL(X10,'Utility Functions'!$AS$3:$AS$6,'Utility Functions'!$AT$3:$AT$6)","v":0.04},{"$f":"$Y$40*valuePL(Y10,'Utility Functions'!$AU$3:$AU$6,'Utility Functions'!$AV$3:$AV$6)","v":1.0000000000000002E-2},{"$f":"$Z$40*valuePL(Z10,'Utility Functions'!$AW$3:$AW$5,'Utility Functions'!$AX$3:$AX$5)","v":0.05},{"$f":"$AA$40*valuePL(AA10,'Utility Functions'!$AY$3:$AY$6,'Utility Functions'!$AZ$3:$AZ$6)","v":8.0000000000000002E-3},{"$f":"$AB$40*valuePL(AB10,'Utility Functions'!$BA$3:$BA$5,'Utility Functions'!$BB$3:$BB$5)","v":0.01},{"$f":"$AC$40*valuePL(AC10,'Utility Functions'!$BC$3:$BC$5,'Utility Functions'!$BD$3:$BD$5)","v":0.03},0.45837563615750632]
[10,{"$f":"$B$40*(valueE(B11,'Utility Functions'!$B$3,'Utility Functions'!$B$4,'Utility Functions'!$B$5,'Utility Functions'!$B$6))","v":0},{"$f":"$C$40*(valueE(C11,'Utility Functions'!$D$3,'Utility Functions'!$D$4,'Utility Functions'!$D$5,'Utility Functions'!$D$6))","v":0},{"$f":"$D$40*(valuePL(D11,'Utility Functions'!$E$3:$E$5,'Utility Functions'!$F$3:$F$5))","v":0},{"$f":"$E$40*(valuePL(E11,'Utility Functions'!$G$3:$G$5,'Utility Functions'!$H$3:$H$5))","v":0},{"$f":"$F$40*(valuePL(F11,'Utility Functions'!$I$3:$I$4,'Utility Functions'!$J$3:$J$5))","v":0},{"$f":"$G$40*(valueE(G11,'Utility Functions'!$L$3,'Utility Functions'!$L$4,'Utility Functions'!$L$5,'Utility Functions'!$L$6))","v":0},{"$f":"$H$40*(valueE(H11,'Utility Functions'!$N$3,'Utility Functions'!$N$4,'Utility Functions'!$N$5,'Utility Functions'!$N$6))","v":0},{"$f":"$I$40*valuePL(I11,'Utility Functions'!$O$3:$O$6,'Utility Functions'!$P$3:$P$6)","v":0},{"$f":"$J$40*valuePL(J11,'Utility Functions'!$Q$3:$Q$6,'Utility Functions'!$R$3:$R$6)","v":0},{"$f":"$K$40*(valuePL(K11,'Utility Functions'!$S$3:$S$7,'Utility Functions'!$T$3:$T$7))","v":0},{"$f":"$L$40*(valueE(L11,'Utility Functions'!$V$3,'Utility Functions'!$V$4,'Utility Functions'!$V$5,'Utility Functions'!$V$6))","v":0},{"$f":"$M$40*valuePL(M11,'Utility Functions'!$W$3:$W$6,'Utility Functions'!$X$3:$X$6)","v":0},{"$f":"$N$40*valueE(N11,'Utility Functions'!$Z$3,'Utility Functions'!$Z$4,'Utility Functions'!$Z$5,'Utility Functions'!$Z$6)","v":2.2499999999999999E-2},{"$f":"$O$40*valuePL(O11,'Utility Functions'!$AA$3:$AA$5,'Utility Functions'!$AB$3:$AB$5)","v":0.09},{"$f":"$P$40*valuePL(P11,'Utility Functions'!$AC$3:$AC$7,'Utility Functions'!$AD$3:$AD$7)","v":0.01},{"$f":"$Q$40*valuePL(Q11,'Utility Functions'!$AE$3:$AE$6,'Utility Functions'!$AF$3:$AF$6)","v":0.02},{"$f":"$R$40*valuePL(R11,'Utility Functions'!$AG$3:$AG$6,'Utility Functions'!$AH$3:$AH$6)","v":0.05},{"$f":"$S$40*valuePL(S11,'Utility Functions'!$AI$3:$AI$6,'Utility Functions'!$AJ$3:$AJ$6)","v":3.3000000000000002E-2},{"$f":"$T$40*valuePL(T11,'Utility Functions'!$AK$3:$AK$8,'Utility Functions'!$AL$3:$AL$8)","v":1.2E-2},{"$f":"$U$40*valuePL(U11,'Utility Functions'!$AM$3:$AM$5,'Utility Functions'!$AN$3:$AN$5)","v":0},{"$f":"$V$40*valuePL(V11,'Utility Functions'!$AO$3:$AO$5,'Utility Functions'!$AP$3:$AP$5)","v":0},{"$f":"$W$40*valuePL(W11,'Utility Functions'!$AQ$3:$AQ$6,'Utility Functions'!$AR$3:$AR$6)","v":0.03},{"$f":"$X$40*valuePL(X11,'Utility Functions'!$AS$3:$AS$6,'Utility Functions'!$AT$3:$AT$6)","v":0.04},{"$f":"$Y$40*valuePL(Y11,'Utility Functions'!$AU$3:$AU$6,'Utility Functions'!$AV$3:$AV$6)","v":0.05},{"$f":"$Z$40*valuePL(Z11,'Utility Functions'!$AW$3:$AW$5,'Utility Functions'!$AX$3:$AX$5)","v":2.5000000000000001E-2},{"$f":"$AA$40*valuePL(AA11,'Utility Functions'!$AY$3:$AY$6,'Utility Functions'!$AZ$3:$AZ$6)","v":8.0000000000000002E-3},{"$f":"$AB$40*valuePL(AB11,'Utility Functions'!$BA$3:$BA$5,'Utility Functions'!$BB$3:$BB$5)","v":0},{"$f":"$AC$40*valuePL(AC11,'Utility Functions'!$BC$3:$BC$5,'Utility Functions'!$BD$3:$BD$5)","v":0.03},0.42049999999999998]
[11,{"$f":"$B$40*(valueE(B12,'Utility Functions'!$B$3,'Utility Functions'!$B$4,'Utility Functions'!$B$5,'Utility Functions'!$B$6))","v":0},{"$f":"$C$40*(valueE(C12,'Utility Functions'!$D$3,'Utility Functions'!$D$4,'Utility Functions'!$D$5,'Utility Functions'!$D$6))","v":0},{"$f":"$D$40*(valuePL(D12,'Utility Functions'!$E$3:$E$5,'Utility Functions'!$F$3:$F$5))","v":0},{"$f":"$E$40*(valuePL(E12,'Utility Functions'!$G$3:$G$5,'Utility Functions'!$H$3:$H$5))","v":0},{"$f":"$F$40*(valuePL(F12,'Utility Functions'!$I$3:$I$4,'Utility Functions'!$J$3:$J$5))","v":0},{"$f":"$G$40*(valueE(G12,'Utility Functions'!$L$3,'Utility Functions'!$L$4,'Utility Functions'!$L$5,'Utility Functions'!$L$6))","v":4.8387096774193543E-4},{"$f":"$H$40*(valueE(H12,'Utility Functions'!$N$3,'Utility Functions'!$N$4,'Utility Functions'!$N$5,'Utility Functions'!$N$6))","v":1.4516129032258063E-3},{"$f":"$I$40*valuePL(I12,'Utility Functions'!$O$3:$O$6,'Utility Functions'!$P$3:$P$6)","v":1.6254545454545456E-2},{"$f":"$J$40*valuePL(J12,'Utility Functions'!$Q$3:$Q$6,'Utility Functions'!$R$3:$R$6)","v":1.8363636363636363E-2},{"$f":"$K$40*(valuePL(K12,'Utility Functions'!$S$3:$S$7,'Utility Functions'!$T$3:$T$7))","v":1.0836363636363637E-2},{"$f":"$L$40*(valueE(L12,'Utility Functions'!$V$3,'Utility Functions'!$V$4,'Utility Functions'!$V$5,'Utility Functions'!$V$6))","v":0.02},{"$f":"$M$40*valuePL(M12,'Utility Functions'!$W$3:$W$6,'Utility Functions'!$X$3:$X$6)","v":1.8363636363636363E-2},{"$f":"$N$40*valueE(N12,'Utility Functions'!$Z$3,'Utility Functions'!$Z$4,'Utility Functions'!$Z$5,'Utility Functions'!$Z$6)","v":1.125E-2},{"$f":"$O$40*valuePL(O12,'Utility Functions'!$AA$3:$AA$5,'Utility Functions'!$AB$3:$AB$5)","v":2.2499999999999999E-2},{"$f":"$P$40*valuePL(P12,'Utility Functions'!$AC$3:$AC$7,'Utility Functions'!$AD$3:$AD$7)","v":0.01},{"$f":"$Q$40*valuePL(Q12,'Utility Functions'!$AE$3:$AE$6,'Utility Functions'!$AF$3:$AF$6)","v":0},{"$f":"$R$40*valuePL(R12,'Utility Functions'!$AG$3:$AG$6,'Utility Functions'!$AH$3:$AH$6)","v":0.05},{"$f":"$S$40*valuePL(S12,'Utility Functions'!$AI$3:$AI$6,'Utility Functions'!$AJ$3:$AJ$6)","v":0.05},{"$f":"$T$40*valuePL(T12,'Utility Functions'!$AK$3:$AK$8,'Utility Functions'!$AL$3:$AL$8)","v":1.2E-2},{"$f":"$U$40*valuePL(U12,'Utility Functions'!$AM$3:$AM$5,'Utility Functions'!$AN$3:$AN$5)","v":0.03},{"$f":"$V$40*valuePL(V12,'Utility Functions'!$AO$3:$AO$5,'Utility Functions'!$AP$3:$AP$5)","v":0.05},{"$f":"$W$40*valuePL(W12,'Utility Functions'!$AQ$3:$AQ$6,'Utility Functions'!$AR$3:$AR$6)","v":8.0000000000000002E-3},{"$f":"$X$40*valuePL(X12,'Utility Functions'!$AS$3:$AS$6,'Utility Functions'!$AT$3:$AT$6)","v":0.04},{"$f":"$Y$40*valuePL(Y12,'Utility Functions'!$AU$3:$AU$6,'Utility Functions'!$AV$3:$AV$6)","v":0.05},{"$f":"$Z$40*valuePL(Z12,'Utility Functions'!$AW$3:$AW$5,'Utility Functions'!$AX$3:$AX$5)","v":2.5000000000000001E-2},{"$f":"$AA$40*valuePL(AA12,'Utility Functions'!$AY$3:$AY$6,'Utility Functions'!$AZ$3:$AZ$6)","v":3.5999999999999997E-2},{"$f":"$AB$40*valuePL(AB12,'Utility Functions'!$BA$3:$BA$5,'Utility Functions'!$BB$3:$BB$5)","v":0},{"$f":"$AC$40*valuePL(AC12,'Utility Functions'!$BC$3:$BC$5,'Utility Functions'!$BD$3:$BD$5)","v":7.4999999999999997E-3},0.48800366568914949]
[12,{"$f":"$B$40*(valueE(B13,'Utility Functions'!$B$3,'Utility Functions'!$B$4,'Utility Functions'!$B$5,'Utility Functions'!$B$6))","v":9.8904136043327599E-3},{"$f":"$C$40*(valueE(C13,'Utility Functions'!$D$3,'Utility Functions'!$D$4,'Utility Functions'!$D$5,'Utility Functions'!$D$6))","v":2.3696993705826886E-2},{"$f":"$D$40*(valuePL(D13,'Utility Functions'!$E$3:$E$5,'Utility Functions'!$F$3:$F$5))","v":0.03},{"$f":"$E$40*(valuePL(E13,'Utility Functions'!$G$3:$G$5,'Utility Functions'!$H$3:$H$5))","v":1.4999999999999999E-2},{"$f":"$F$40*(valuePL(F13,'Utility Functions'!$I$3:$I$4,'Utility Functions'!$J$3:$J$5))","v":0},{"$f":"$G$40*(valueE(G13,'Utility Functions'!$L$3,'Utility Functions'!$L$4,'Utility Functions'!$L$5,'Utility Functions'!$L$6))","v":0},{"$f":"$H$40*(valueE(H13,'Utility Functions'!$N$3,'Utility Functions'!$N$4,'Utility Functions'!$N$5,'Utility Functions'!$N$6))","v":0},{"$f":"$I$40*valuePL(I13,'Utility Functions'!$O$3:$O$6,'Utility Functions'!$P$3:$P$6)","v":0},{"$f":"$J$40*valuePL(J13,'Utility Functions'!$Q$3:$Q$6,'Utility Functions'!$R$3:$R$6)","v":0},{"$f":"$K$40*(valuePL(K13,'Utility Functions'!$S$3:$S$7,'Utility Functions'!$T$3:$T$7))","v":0},{"$f":"$L$40*(valueE(L13,'Utility Functions'!$V$3,'Utility Functions'!$V$4,'Utility Functions'!$V$5,'Utility Functions'!$V$6))","v":0},{"$f":"$M$40*valuePL(M13,'Utility Functions'!$W$3:$W$6,'Utility Functions'!$X$3:$X$6)","v":0},{"$f":"$N$40*valueE(N13,'Utility Functions'!$Z$3,'Utility Functions'!$Z$4,'Utility Functions'!$Z$5,'Utility Functions'!$Z$6)","v":0},{"$f":"$O$40*valuePL(O13,'Utility Functions'!$AA$3:$AA$5,'Utility Functions'!$AB$3:$AB$5)","v":0},{"$f":"$P$40*valuePL(P13,'Utility Functions'!$AC$3:$AC$7,'Utility Functions'!$AD$3:$AD$7)","v":0},{"$f":"$Q$40*valuePL(Q13,'Utility Functions'!$AE$3:$AE$6,'Utility Functions'!$AF$3:$AF$6)","v":4.0000000000000001E-3},{"$f":"$R$40*valuePL(R13,'Utility Functions'!$AG$3:$AG$6,'Utility Functions'!$AH$3:$AH$6)","v":0.05},{"$f":"$S$40*valuePL(S13,'Utility Functions'!$AI$3:$AI$6,'Utility Functions'!$AJ$3:$AJ$6)","v":0.05},{"$f":"$T$40*valuePL(T13,'Utility Functions'!$AK$3:$AK$8,'Utility Functions'!$AL$3:$AL$8)","v":1.7999999999999999E-2},{"$f":"$U$40*valuePL(U13,'Utility Functions'!$AM$3:$AM$5,'Utility Functions'!$AN$3:$AN$5)","v":0},{"$f":"$V$40*valuePL(V13,'Utility Functions'!$AO$3:$AO$5,'Utility Functions'!$AP$3:$AP$5)","v":2.5000000000000001E-2},{"$f":"$W$40*valuePL(W13,'Utility Functions'!$AQ$3:$AQ$6,'Utility Functions'!$AR$3:$AR$6)","v":8.0000000000000002E-3},{"$f":"$X$40*valuePL(X13,'Utility Functions'!$AS$3:$AS$6,'Utility Functions'!$AT$3:$AT$6)","v":0.04},{"$f":"$Y$40*valuePL(Y13,'Utility Functions'!$AU$3:$AU$6,'Utility Functions'!$AV$3:$AV$6)","v":1.0000000000000002E-2},{"$f":"$Z$40*valuePL(Z13,'Utility Functions'!$AW$3:$AW$5,'Utility Functions'!$AX$3:$AX$5)","v":0.05},{"$f":"$AA$40*valuePL(AA13,'Utility Functions'!$AY$3:$AY$6,'Utility Functions'!$AZ$3:$AZ$6)","v":8.0000000000000002E-3},{"$f":"$AB$40*valuePL(AB13,'Utility Functions'!$BA$3:$BA$5,'Utility Functions'!$BB$3:$BB$5)","v":0.04},{"$f":"$AC$40*valuePL(AC13,'Utility Functions'!$BC$3:$BC$5,'Utility Functions'!$BD$3:$BD$5)","v":0},0.38158740731015961]
[13,{"$f":"$B$40*(valueE(B14,'Utility Functions'!$B$3,'Utility Functions'!$B$4,'Utility Functions'!$B$5,'Utility Functions'!$B$6))","v":0},{"$f":"$C$40*(valueE(C14,'Utility Functions'!$D$3,'Utility Functions'!$D$4,'Utility Functions'!$D$5,'Utility Functions'!$D$6))","v":0},{"$f":"$D$40*(valuePL(D14,'Utility Functions'!$E$3:$E$5,'Utility Functions'!$F$3:$F$5))","v":0},{"$f":"$E$40*(valuePL(E14,'Utility Functions'!$G$3:$G$5,'Utility Functions'!$H$3:$H$5))","v":0},{"$f":"$F$40*(valuePL(F14,'Utility Functions'!$I$3:$I$4,'Utility Functions'!$J$3:$J$5))","v":0},{"$f":"$G$40*(valueE(G14,'Utility Functions'!$L$3,'Utility Functions'!$L$4,'Utility Functions'!$L$5,'Utility Functions'!$L$6))","v":0},{"$f":"$H$40*(valueE(H14,'Utility Functions'!$N$3,'Utility Functions'!$N$4,'Utility Functions'!$N$5,'Utility Functions'!$N$6))","v":1.7077798861480075E-4},{"$f":"$I$40*valuePL(I14,'Utility Functions'!$O$3:$O$6,'Utility Functions'!$P$3:$P$6)","v":9.8727272727272726E-3},{"$f":"$J$40*valuePL(J14,'Utility Functions'!$Q$3:$Q$6,'Utility Functions'!$R$3:$R$6)","v":8.0000000000000004E-4},{"$f":"$K$40*(valuePL(K14,'Utility Functions'!$S$3:$S$7,'Utility Functions'!$T$3:$T$7))","v":6.5818181818181817E-3},{"$f":"$L$40*(valueE(L14,'Utility Functions'!$V$3,'Utility Functions'!$V$4,'Utility Functions'!$V$5,'Utility Functions'!$V$6))","v":0.02},{"$f":"$M$40*valuePL(M14,'Utility Functions'!$W$3:$W$6,'Utility Functions'!$X$3:$X$6)","v":8.0000000000000004E-4},{"$f":"$N$40*valueE(N14,'Utility Functions'!$Z$3,'Utility Functions'!$Z$4,'Utility Functions'!$Z$5,'Utility Functions'!$Z$6)","v":2.6249999999999999E-2},{"$f":"$O$40*valuePL(O14,'Utility Functions'!$AA$3:$AA$5,'Utility Functions'!$AB$3:$AB$5)","v":2.2499999999999999E-2},{"$f":"$P$40*valuePL(P14,'Utility Functions'!$AC$3:$AC$7,'Utility Functions'!$AD$3:$AD$7)","v":0.01},{"$f":"$Q$40*valuePL(Q14,'Utility Functions'!$AE$3:$AE$6,'Utility Functions'!$AF$3:$AF$6)","v":0},{"$f":"$R$40*valuePL(R14,'Utility Functions'!$AG$3:$AG$6,'Utility Functions'!$AH$3:$AH$6)","v":0.05},{"$f":"$S$40*valuePL(S14,'Utility Functions'!$AI$3:$AI$6,'Utility Functions'!$AJ$3:$AJ$6)","v":0.05},{"$f":"$T$40*valuePL(T14,'Utility Functions'!$AK$3:$AK$8,'Utility Functions'!$AL$3:$AL$8)","v":0},{"$f":"$U$40*valuePL(U14,'Utility Functions'!$AM$3:$AM$5,'Utility Functions'!$AN$3:$AN$5)","v":0},{"$f":"$V$40*valuePL(V14,'Utility Functions'!$AO$3:$AO$5,'Utility Functions'!$AP$3:$AP$5)","v":2.5000000000000001E-2},{"$f":"$W$40*valuePL(W14,'Utility Functions'!$AQ$3:$AQ$6,'Utility Functions'!$AR$3:$AR$6)","v":0},{"$f":"$X$40*valuePL(X14,'Utility Functions'!$AS$3:$AS$6,'Utility Functions'!$AT$3:$AT$6)","v":8.0000000000000002E-3},{"$f":"$Y$40*valuePL(Y14,'Utility Functions'!$AU$3:$AU$6,'Utility Functions'!$AV$3:$AV$6)","v":0},{"$f":"$Z$40*valuePL(Z14,'Utility Functions'!$AW$3:$AW$5,'Utility Functions'!$AX$3:$AX$5)","v":0.05},{"$f":"$AA$40*valuePL(AA14,'Utility Functions'!$AY$3:$AY$6,'Utility Functions'!$AZ$3:$AZ$6)","v":8.0000000000000002E-3},{"$f":"$AB$40*valuePL(AB14,'Utility Functions'!$BA$3:$BA$5,'Utility Functions'!$BB$3:$BB$5)","v":0.01},{"$f":"$AC$40*valuePL(AC14,'Utility Functions'!$BC$3:$BC$5,'Utility Functions'!$BD$3:$BD$5)","v":7.4999999999999997E-3},0.30547532344316031]
[14,{"$f":"$B$40*(valueE(B15,'Utility Functions'!$B$3,'Utility Functions'!$B$4,'Utility Functions'!$B$5,'Utility Functions'!$B$6))","v":2.0964205406426323E-2},{"$f":"$C$40*(valueE(C15,'Utility Functions'!$D$3,'Utility Functions'!$D$4,'Utility Functions'!$D$5,'Utility Functions'!$D$6))","v":2.3696993705826886E-2},{"$f":"$D$40*(valuePL(D15,'Utility Functions'!$E$3:$E$5,'Utility Functions'!$F$3:$F$5))","v":1.4999999999999999E-2},{"$f":"$E$40*(valuePL(E15,'Utility Functions'!$G$3:$G$5,'Utility Functions'!$H$3:$H$5))","v":1.4999999999999999E-2},{"$f":"$F$40*(valuePL(F15,'Utility Functions'!$I$3:$I$4,'Utility Functions'!$J$3:$J$5))","v":0},{"$f":"$G$40*(valueE(G15,'Utility Functions'!$L$3,'Utility Functions'!$L$4,'Utility Functions'!$L$5,'Utility Functions'!$L$6))","v":0},{"$f":"$H$40*(valueE(H15,'Utility Functions'!$N$3,'Utility Functions'!$N$4,'Utility Functions'!$N$5,'Utility Functions'!$N$6))","v":0},{"$f":"$I$40*valuePL(I15,'Utility Functions'!$O$3:$O$6,'Utility Functions'!$P$3:$P$6)","v":0},{"$f":"$J$40*valuePL(J15,'Utility Functions'!$Q$3:$Q$6,'Utility Functions'!$R$3:$R$6)","v":0},{"$f":"$K$40*(valuePL(K15,'Utility Functions'!$S$3:$S$7,'Utility Functions'!$T$3:$T$7))","v":0},{"$f":"$L$40*(valueE(L15,'Utility Functions'!$V$3,'Utility Functions'!$V$4,'Utility Functions'!$V$5,'Utility Functions'!$V$6))","v":0},{"$f":"$M$40*valuePL(M15,'Utility Functions'!$W$3:$W$6,'Utility Functions'!$X$3:$X$6)","v":0},{"$f":"$N$40*valueE(N15,'Utility Functions'!$Z$3,'Utility Functions'!$Z$4,'Utility Functions'!$Z$5,'Utility Functions'!$Z$6)","v":2.2499999999999999E-2},{"$f":"$O$40*valuePL(O15,'Utility Functions'!$AA$3:$AA$5,'Utility Functions'!$AB$3:$AB$5)","v":2.2499999999999999E-2},{"$f":"$P$40*valuePL(P15,'Utility Functions'!$AC$3:$AC$7,'Utility Functions'!$AD$3:$AD$7)","v":0.01},{"$f":"$Q$40*valuePL(Q15,'Utility Functions'!$AE$3:$AE$6,'Utility Functions'!$AF$3:$AF$6)","v":0},{"$f":"$R$40*valuePL(R15,'Utility Functions'!$AG$3:$AG$6,'Utility Functions'!$AH$3:$AH$6)","v":0.05},{"$f":"$S$40*valuePL(S15,'Utility Functions'!$AI$3:$AI$6,'Utility Functions'!$AJ$3:$AJ$6)","v":0.05},{"$f":"$T$40*valuePL(T15,'Utility Functions'!$AK$3:$AK$8,'Utility Functions'!$AL$3:$AL$8)","v":0},{"$f":"$U$40*valuePL(U15,'Utility Functions'!$AM$3:$AM$5,'Utility Functions'!$AN$3:$AN$5)","v":0},{"$f":"$V$40*valuePL(V15,'Utility Functions'!$AO$3:$AO$5,'Utility Functions'!$AP$3:$AP$5)","v":2.5000000000000001E-2},{"$f":"$W$40*valuePL(W15,'Utility Functions'!$AQ$3:$AQ$6,'Utility Functions'!$AR$3:$AR$6)","v":8.0000000000000002E-3},{"$f":"$X$40*valuePL(X15,'Utility Functions'!$AS$3:$AS$6,'Utility Functions'!$AT$3:$AT$6)","v":0.04},{"$f":"$Y$40*valuePL(Y15,'Utility Functions'!$AU$3:$AU$6,'Utility Functions'!$AV$3:$AV$6)","v":0.05},{"$f":"$Z$40*valuePL(Z15,'Utility Functions'!$AW$3:$AW$5,'Utility Functions'!$AX$3:$AX$5)","v":2.5000000000000001E-2},{"$f":"$AA$40*valuePL(AA15,'Utility Functions'!$AY$3:$AY$6,'Utility Functions'!$AZ$3:$AZ$6)","v":3.5999999999999997E-2},{"$f":"$AB$40*valuePL(AB15,'Utility Functions'!$BA$3:$BA$5,'Utility Functions'!$BB$3:$BB$5)","v":0.01},{"$f":"$AC$40*valuePL(AC15,'Utility Functions'!$BC$3:$BC$5,'Utility Functions'!$BD$3:$BD$5)","v":7.4999999999999997E-3},0.4311611991122532]
[15,{"$f":"$B$40*(valueE(B16,'Utility Functions'!$B$3,'Utility Functions'!$B$4,'Utility Functions'!$B$5,'Utility Functions'!$B$6))","v":2.9698489925153143E-2},{"$f":"$C$40*(valueE(C16,'Utility Functions'!$D$3,'Utility Functions'!$D$4,'Utility Functions'!$D$5,'Utility Functions'!$D$6))","v":2.1405827917278249E-2},{"$f":"$D$40*(valuePL(D16,'Utility Functions'!$E$3:$E$5,'Utility Functions'!$F$3:$F$5))","v":0.03},{"$f":"$E$40*(valuePL(E16,'Utility Functions'!$G$3:$G$5,'Utility Functions'!$H$3:$H$5))","v":1.4999999999999999E-2},{"$f":"$F$40*(valuePL(F16,'Utility Functions'!$I$3:$I$4,'Utility Functions'!$J$3:$J$5))","v":0.04},{"$f":"$G$40*(valueE(G16,'Utility Functions'!$L$3,'Utility Functions'!$L$4,'Utility Functions'!$L$5,'Utility Functions'!$L$6))","v":0},{"$f":"$H$40*(valueE(H16,'Utility Functions'!$N$3,'Utility Functions'!$N$4,'Utility Functions'!$N$5,'Utility Functions'!$N$6))","v":0},{"$f":"$I$40*valuePL(I16,'Utility Functions'!$O$3:$O$6,'Utility Functions'!$P$3:$P$6)","v":2.7600000000000003E-3},{"$f":"$J$40*valuePL(J16,'Utility Functions'!$Q$3:$Q$6,'Utility Functions'!$R$3:$R$6)","v":1.2000000000000003E-3},{"$f":"$K$40*(valuePL(K16,'Utility Functions'!$S$3:$S$7,'Utility Functions'!$T$3:$T$7))","v":1.2000000000000003E-3},{"$f":"$L$40*(valueE(L16,'Utility Functions'!$V$3,'Utility Functions'!$V$4,'Utility Functions'!$V$5,'Utility Functions'!$V$6))","v":0.02},{"$f":"$M$40*valuePL(M16,'Utility Functions'!$W$3:$W$6,'Utility Functions'!$X$3:$X$6)","v":1.2000000000000003E-3},{"$f":"$N$40*valueE(N16,'Utility Functions'!$Z$3,'Utility Functions'!$Z$4,'Utility Functions'!$Z$5,'Utility Functions'!$Z$6)","v":3.7499999999999999E-3},{"$f":"$O$40*valuePL(O16,'Utility Functions'!$AA$3:$AA$5,'Utility Functions'!$AB$3:$AB$5)","v":0.09},{"$f":"$P$40*valuePL(P16,'Utility Functions'!$AC$3:$AC$7,'Utility Functions'!$AD$3:$AD$7)","v":0.02},{"$f":"$Q$40*valuePL(Q16,'Utility Functions'!$AE$3:$AE$6,'Utility Functions'!$AF$3:$AF$6)","v":0},{"$f":"$R$40*valuePL(R16,'Utility Functions'!$AG$3:$AG$6,'Utility Functions'!$AH$3:$AH$6)","v":4.0000000000000008E-2},{"$f":"$S$40*valuePL(S16,'Utility Functions'!$AI$3:$AI$6,'Utility Functions'!$AJ$3:$AJ$6)","v":0.05},{"$f":"$T$40*valuePL(T16,'Utility Functions'!$AK$3:$AK$8,'Utility Functions'!$AL$3:$AL$8)","v":1.7999999999999999E-2},{"$f":"$U$40*valuePL(U16,'Utility Functions'!$AM$3:$AM$5,'Utility Functions'!$AN$3:$AN$5)","v":0.03},{"$f":"$V$40*valuePL(V16,'Utility Functions'!$AO$3:$AO$5,'Utility Functions'!$AP$3:$AP$5)","v":0},{"$f":"$W$40*valuePL(W16,'Utility Functions'!$AQ$3:$AQ$6,'Utility Functions'!$AR$3:$AR$6)","v":0.04},{"$f":"$X$40*valuePL(X16,'Utility Functions'!$AS$3:$AS$6,'Utility Functions'!$AT$3:$AT$6)","v":8.0000000000000002E-3},{"$f":"$Y$40*valuePL(Y16,'Utility Functions'!$AU$3:$AU$6,'Utility Functions'!$AV$3:$AV$6)","v":1.0000000000000002E-2},{"$f":"$Z$40*valuePL(Z16,'Utility Functions'!$AW$3:$AW$5,'Utility Functions'!$AX$3:$AX$5)","v":0.05},{"$f":"$AA$40*valuePL(AA16,'Utility Functions'!$AY$3:$AY$6,'Utility Functions'!$AZ$3:$AZ$6)","v":0.04},{"$f":"$AB$40*valuePL(AB16,'Utility Functions'!$BA$3:$BA$5,'Utility Functions'!$BB$3:$BB$5)","v":0.04},{"$f":"$AC$40*valuePL(AC16,'Utility Functions'!$BC$3:$BC$5,'Utility Functions'!$BD$3:$BD$5)","v":7.4999999999999997E-3},0.60971431784243146]
[16,{"$f":"$B$40*(valueE(B17,'Utility Functions'!$B$3,'Utility Functions'!$B$4,'Utility Functions'!$B$5,'Utility Functions'!$B$6))","v":0},{"$f":"$C$40*(valueE(C17,'Utility Functions'!$D$3,'Utility Functions'!$D$4,'Utility Functions'!$D$5,'Utility Functions'!$D$6))","v":0},{"$f":"$D$40*(valuePL(D17,'Utility Functions'!$E$3:$E$5,'Utility Functions'!$F$3:$F$5))","v":0},{"$f":"$E$40*(valuePL(E17,'Utility Functions'!$G$3:$G$5,'Utility Functions'!$H$3:$H$5))","v":0},{"$f":"$F$40*(valuePL(F17,'Utility Functions'!$I$3:$I$4,'Utility Functions'!$J$3:$J$5))","v":0},{"$f":"$G$40*(valueE(G17,'Utility Functions'!$L$3,'Utility Functions'!$L$4,'Utility Functions'!$L$5,'Utility Functions'!$L$6))","v":0},{"$f":"$H$40*(valueE(H17,'Utility Functions'!$N$3,'Utility Functions'!$N$4,'Utility Functions'!$N$5,'Utility Functions'!$N$6))","v":0},{"$f":"$I$40*valuePL(I17,'Utility Functions'!$O$3:$O$6,'Utility Functions'!$P$3:$P$6)","v":0.03},{"$f":"$J$40*valuePL(J17,'Utility Functions'!$Q$3:$Q$6,'Utility Functions'!$R$3:$R$6)","v":1.8363636363636363E-2},{"$f":"$K$40*(valuePL(K17,'Utility Functions'!$S$3:$S$7,'Utility Functions'!$T$3:$T$7))","v":0.02},{"$f":"$L$40*(valueE(L17,'Utility Functions'!$V$3,'Utility Functions'!$V$4,'Utility Functions'!$V$5,'Utility Functions'!$V$6))","v":1.6666666666666666E-2},{"$f":"$M$40*valuePL(M17,'Utility Functions'!$W$3:$W$6,'Utility Functions'!$X$3:$X$6)","v":1.8363636363636363E-2},{"$f":"$N$40*valueE(N17,'Utility Functions'!$Z$3,'Utility Functions'!$Z$4,'Utility Functions'!$Z$5,'Utility Functions'!$Z$6)","v":0},{"$f":"$O$40*valuePL(O17,'Utility Functions'!$AA$3:$AA$5,'Utility Functions'!$AB$3:$AB$5)","v":0},{"$f":"$P$40*valuePL(P17,'Utility Functions'!$AC$3:$AC$7,'Utility Functions'!$AD$3:$AD$7)","v":0.03},{"$f":"$Q$40*valuePL(Q17,'Utility Functions'!$AE$3:$AE$6,'Utility Functions'!$AF$3:$AF$6)","v":0},{"$f":"$R$40*valuePL(R17,'Utility Functions'!$AG$3:$AG$6,'Utility Functions'!$AH$3:$AH$6)","v":0.05},{"$f":"$S$40*valuePL(S17,'Utility Functions'!$AI$3:$AI$6,'Utility Functions'!$AJ$3:$AJ$6)","v":0.05},{"$f":"$T$40*valuePL(T17,'Utility Functions'!$AK$3:$AK$8,'Utility Functions'!$AL$3:$AL$8)","v":0.03},{"$f":"$U$40*valuePL(U17,'Utility Functions'!$AM$3:$AM$5,'Utility Functions'!$AN$3:$AN$5)","v":0},{"$f":"$V$40*valuePL(V17,'Utility Functions'!$AO$3:$AO$5,'Utility Functions'!$AP$3:$AP$5)","v":0.05},{"$f":"$W$40*valuePL(W17,'Utility Functions'!$AQ$3:$AQ$6,'Utility Functions'!$AR$3:$AR$6)","v":0.03},{"$f":"$X$40*valuePL(X17,'Utility Functions'!$AS$3:$AS$6,'Utility Functions'!$AT$3:$AT$6)","v":0.03},{"$f":"$Y$40*valuePL(Y17,'Utility Functions'!$AU$3:$AU$6,'Utility Functions'!$AV$3:$AV$6)","v":1.0000000000000002E-2},{"$f":"$Z$40*valuePL(Z17,'Utility Functions'!$AW$3:$AW$5,'Utility Functions'!$AX$3:$AX$5)","v":0.05},{"$f":"$AA$40*valuePL(AA17,'Utility Functions'!$AY$3:$AY$6,'Utility Functions'!$AZ$3:$AZ$6)","v":0.04},{"$f":"$AB$40*valuePL(AB17,'Utility Functions'!$BA$3:$BA$5,'Utility Functions'!$BB$3:$BB$5)","v":0.04},{"$f":"$AC$40*valuePL(AC17,'Utility Functions'!$BC$3:$BC$5,'Utility Functions'!$BD$3:$BD$5)","v":0.03},0.54339393939393943]
[17,{"$f":"$B$40*(valueE(B18,'Utility Functions'!$B$3,'Utility Functions'!$B$4,'Utility Functions'!$B$5,'Utility Functions'!$B$6))","v":9.8904136043327599E-3},{"$f":"$C$40*(valueE(C18,'Utility Functions'!$D$3,'Utility Functions'!$D$4,'Utility Functions'!$D$5,'Utility Functions'!$D$6))","v":2.3696993705826886E-2},{"$f":"$D$40*(valuePL(D18,'Utility Functions'!$E$3:$E$5,'Utility Functions'!$F$3:$F$5))","v":0.03},{"$f":"$E$40*(valuePL(E18,'Utility Functions'!$G$3:$G$5,'Utility Functions'!$H$3:$H$5))","v":1.4999999999999999E-2},{"$f":"$F$40*(valuePL(F18,'Utility Functions'!$I$3:$I$4,'Utility Functions'!$J$3:$J$5))","v":0.04},{"$f":"$G$40*(valueE(G18,'Utility Functions'!$L$3,'Utility Functions'!$L$4,'Utility Functions'!$L$5,'Utility Functions'!$L$6))","v":4.6774193548387091E-3},{"$f":"$H$40*(valueE(H18,'Utility Functions'!$N$3,'Utility Functions'!$N$4,'Utility Functions'!$N$5,'Utility Functions'!$N$6))","v":4.1271347248576853E-3},{"$f":"$I$40*valuePL(I18,'Utility Functions'!$O$3:$O$6,'Utility Functions'!$P$3:$P$6)","v":0},{"$f":"$J$40*valuePL(J18,'Utility Functions'!$Q$3:$Q$6,'Utility Functions'!$R$3:$R$6)","v":0},{"$f":"$K$40*(valuePL(K18,'Utility Functions'!$S$3:$S$7,'Utility Functions'!$T$3:$T$7))","v":0},{"$f":"$L$40*(valueE(L18,'Utility Functions'!$V$3,'Utility Functions'!$V$4,'Utility Functions'!$V$5,'Utility Functions'!$V$6))","v":0.02},{"$f":"$M$40*valuePL(M18,'Utility Functions'!$W$3:$W$6,'Utility Functions'!$X$3:$X$6)","v":1.2000000000000003E-3},{"$f":"$N$40*valueE(N18,'Utility Functions'!$Z$3,'Utility Functions'!$Z$4,'Utility Functions'!$Z$5,'Utility Functions'!$Z$6)","v":0},{"$f":"$O$40*valuePL(O18,'Utility Functions'!$AA$3:$AA$5,'Utility Functions'!$AB$3:$AB$5)","v":0},{"$f":"$P$40*valuePL(P18,'Utility Functions'!$AC$3:$AC$7,'Utility Functions'!$AD$3:$AD$7)","v":0},{"$f":"$Q$40*valuePL(Q18,'Utility Functions'!$AE$3:$AE$6,'Utility Functions'!$AF$3:$AF$6)","v":0},{"$f":"$R$40*valuePL(R18,'Utility Functions'!$AG$3:$AG$6,'Utility Functions'!$AH$3:$AH$6)","v":0.05},{"$f":"$S$40*valuePL(S18,'Utility Functions'!$AI$3:$AI$6,'Utility Functions'!$AJ$3:$AJ$6)","v":3.3000000000000002E-2},{"$f":"$T$40*valuePL(T18,'Utility Functions'!$AK$3:$AK$8,'Utility Functions'!$AL$3:$AL$8)","v":0},{"$f":"$U$40*valuePL(U18,'Utility Functions'!$AM$3:$AM$5,'Utility Functions'!$AN$3:$AN$5)","v":0},{"$f":"$V$40*valuePL(V18,'Utility Functions'!$AO$3:$AO$5,'Utility Functions'!$AP$3:$AP$5)","v":0.05},{"$f":"$W$40*valuePL(W18,'Utility Functions'!$AQ$3:$AQ$6,'Utility Functions'!$AR$3:$AR$6)","v":0.04},{"$f":"$X$40*valuePL(X18,'Utility Functions'!$AS$3:$AS$6,'Utility Functions'!$AT$3:$AT$6)","v":8.0000000000000002E-3},{"$f":"$Y$40*valuePL(Y18,'Utility Functions'!$AU$3:$AU$6,'Utility Functions'!$AV$3:$AV$6)","v":0},{"$f":"$Z$40*valuePL(Z18,'Utility Functions'!$AW$3:$AW$5,'Utility Functions'!$AX$3:$AX$5)","v":2.5000000000000001E-2},{"$f":"$AA$40*valuePL(AA18,'Utility Functions'!$AY$3:$AY$6,'Utility Functions'!$AZ$3:$AZ$6)","v":0},{"$f":"$AB$40*valuePL(AB18,'Utility Functions'!$BA$3:$BA$5,'Utility Functions'!$BB$3:$BB$5)","v":0.04},{"$f":"$AC$40*valuePL(AC18,'Utility Functions'!$BC$3:$BC$5,'Utility Functions'!$BD$3:$BD$5)","v":7.4999999999999997E-3},0.40209196138985603]
[18,{"$f":"$B$40*(valueE(B19,'Utility Functions'!$B$3,'Utility Functions'!$B$4,'Utility Functions'!$B$5,'Utility Functions'!$B$6))","v":0},{"$f":"$C$40*(valueE(C19,'Utility Functions'!$D$3,'Utility Functions'!$D$4,'Utility Functions'!$D$5,'Utility Functions'!$D$6))","v":0},{"$f":"$D$40*(valuePL(D19,'Utility Functions'!$E$3:$E$5,'Utility Functions'!$F$3:$F$5))","v":0},{"$f":"$E$40*(valuePL(E19,'Utility Functions'!$G$3:$G$5,'Utility Functions'!$H$3:$H$5))","v":0},{"$f":"$F$40*(valuePL(F19,'Utility Functions'!$I$3:$I$4,'Utility Functions'!$J$3:$J$5))","v":0},{"$f":"$G$40*(valueE(G19,'Utility Functions'!$L$3,'Utility Functions'!$L$4,'Utility Functions'!$L$5,'Utility Functions'!$L$6))","v":0},{"$f":"$H$40*(valueE(H19,'Utility Functions'!$N$3,'Utility Functions'!$N$4,'Utility Functions'!$N$5,'Utility Functions'!$N$6))","v":4.2694497153700185E-4},{"$f":"$I$40*valuePL(I19,'Utility Functions'!$O$3:$O$6,'Utility Functions'!$P$3:$P$6)","v":0},{"$f":"$J$40*valuePL(J19,'Utility Functions'!$Q$3:$Q$6,'Utility Functions'!$R$3:$R$6)","v":0},{"$f":"$K$40*(valuePL(K19,'Utility Functions'!$S$3:$S$7,'Utility Functions'!$T$3:$T$7))","v":0},{"$f":"$L$40*(valueE(L19,'Utility Functions'!$V$3,'Utility Functions'!$V$4,'Utility Functions'!$V$5,'Utility Functions'!$V$6))","v":0},{"$f":"$M$40*valuePL(M19,'Utility Functions'!$W$3:$W$6,'Utility Functions'!$X$3:$X$6)","v":0},{"$f":"$N$40*valueE(N19,'Utility Functions'!$Z$3,'Utility Functions'!$Z$4,'Utility Functions'!$Z$5,'Utility Functions'!$Z$6)","v":0.03},{"$f":"$O$40*valuePL(O19,'Utility Functions'!$AA$3:$AA$5,'Utility Functions'!$AB$3:$AB$5)","v":2.2499999999999999E-2},{"$f":"$P$40*valuePL(P19,'Utility Functions'!$AC$3:$AC$7,'Utility Functions'!$AD$3:$AD$7)","v":0.01},{"$f":"$Q$40*valuePL(Q19,'Utility Functions'!$AE$3:$AE$6,'Utility Functions'!$AF$3:$AF$6)","v":0.04},{"$f":"$R$40*valuePL(R19,'Utility Functions'!$AG$3:$AG$6,'Utility Functions'!$AH$3:$AH$6)","v":0.05},{"$f":"$S$40*valuePL(S19,'Utility Functions'!$AI$3:$AI$6,'Utility Functions'!$AJ$3:$AJ$6)","v":0.05},{"$f":"$T$40*valuePL(T19,'Utility Functions'!$AK$3:$AK$8,'Utility Functions'!$AL$3:$AL$8)","v":0.03},{"$f":"$U$40*valuePL(U19,'Utility Functions'!$AM$3:$AM$5,'Utility Functions'!$AN$3:$AN$5)","v":7.4999999999999997E-3},{"$f":"$V$40*valuePL(V19,'Utility Functions'!$AO$3:$AO$5,'Utility Functions'!$AP$3:$AP$5)","v":0.05},{"$f":"$W$40*valuePL(W19,'Utility Functions'!$AQ$3:$AQ$6,'Utility Functions'!$AR$3:$AR$6)","v":0.03},{"$f":"$X$40*valuePL(X19,'Utility Functions'!$AS$3:$AS$6,'Utility Functions'!$AT$3:$AT$6)","v":8.0000000000000002E-3},{"$f":"$Y$40*valuePL(Y19,'Utility Functions'!$AU$3:$AU$6,'Utility Functions'!$AV$3:$AV$6)","v":4.0000000000000008E-2},{"$f":"$Z$40*valuePL(Z19,'Utility Functions'!$AW$3:$AW$5,'Utility Functions'!$AX$3:$AX$5)","v":2.5000000000000001E-2},{"$f":"$AA$40*valuePL(AA19,'Utility Functions'!$AY$3:$AY$6,'Utility Functions'!$AZ$3:$AZ$6)","v":3.5999999999999997E-2},{"$f":"$AB$40*valuePL(AB19,'Utility Functions'!$BA$3:$BA$5,'Utility Functions'!$BB$3:$BB$5)","v":0.01},{"$f":"$AC$40*valuePL(AC19,'Utility Functions'!$BC$3:$BC$5,'Utility Functions'!$BD$3:$BD$5)","v":0},0.43942694497153706]
[19,{"$f":"$B$40*(valueE(B20,'Utility Functions'!$B$3,'Utility Functions'!$B$4,'Utility Functions'!$B$5,'Utility Functions'!$B$6))","v":2.3943140737469053E-2},{"$f":"$C$40*(valueE(C20,'Utility Functions'!$D$3,'Utility Functions'!$D$4,'Utility Functions'!$D$5,'Utility Functions'!$D$6))","v":8.0518966871447988E-3},{"$f":"$D$40*(valuePL(D20,'Utility Functions'!$E$3:$E$5,'Utility Functions'!$F$3:$F$5))","v":1.4999999999999999E-2},{"$f":"$E$40*(valuePL(E20,'Utility Functions'!$G$3:$G$5,'Utility Functions'!$H$3:$H$5))","v":0.03},{"$f":"$F$40*(valuePL(F20,'Utility Functions'!$I$3:$I$4,'Utility Functions'!$J$3:$J$5))","v":0},{"$f":"$G$40*(valueE(G20,'Utility Functions'!$L$3,'Utility Functions'!$L$4,'Utility Functions'!$L$5,'Utility Functions'!$L$6))","v":0},{"$f":"$H$40*(valueE(H20,'Utility Functions'!$N$3,'Utility Functions'!$N$4,'Utility Functions'!$N$5,'Utility Functions'!$N$6))","v":0},{"$f":"$I$40*valuePL(I20,'Utility Functions'!$O$3:$O$6,'Utility Functions'!$P$3:$P$6)","v":0},{"$f":"$J$40*valuePL(J20,'Utility Functions'!$Q$3:$Q$6,'Utility Functions'!$R$3:$R$6)","v":0},{"$f":"$K$40*(valuePL(K20,'Utility Functions'!$S$3:$S$7,'Utility Functions'!$T$3:$T$7))","v":0},{"$f":"$L$40*(valueE(L20,'Utility Functions'!$V$3,'Utility Functions'!$V$4,'Utility Functions'!$V$5,'Utility Functions'!$V$6))","v":0},{"$f":"$M$40*valuePL(M20,'Utility Functions'!$W$3:$W$6,'Utility Functions'!$X$3:$X$6)","v":0},{"$f":"$N$40*valueE(N20,'Utility Functions'!$Z$3,'Utility Functions'!$Z$4,'Utility Functions'!$Z$5,'Utility Functions'!$Z$6)","v":0.03},{"$f":"$O$40*valuePL(O20,'Utility Functions'!$AA$3:$AA$5,'Utility Functions'!$AB$3:$AB$5)","v":0.09},{"$f":"$P$40*valuePL(P20,'Utility Functions'!$AC$3:$AC$7,'Utility Functions'!$AD$3:$AD$7)","v":0},{"$f":"$Q$40*valuePL(Q20,'Utility Functions'!$AE$3:$AE$6,'Utility Functions'!$AF$3:$AF$6)","v":0},{"$f":"$R$40*valuePL(R20,'Utility Functions'!$AG$3:$AG$6,'Utility Functions'!$AH$3:$AH$6)","v":4.0000000000000008E-2},{"$f":"$S$40*valuePL(S20,'Utility Functions'!$AI$3:$AI$6,'Utility Functions'!$AJ$3:$AJ$6)","v":0.05},{"$f":"$T$40*valuePL(T20,'Utility Functions'!$AK$3:$AK$8,'Utility Functions'!$AL$3:$AL$8)","v":0},{"$f":"$U$40*valuePL(U20,'Utility Functions'!$AM$3:$AM$5,'Utility Functions'!$AN$3:$AN$5)","v":0},{"$f":"$V$40*valuePL(V20,'Utility Functions'!$AO$3:$AO$5,'Utility Functions'!$AP$3:$AP$5)","v":2.5000000000000001E-2},{"$f":"$W$40*valuePL(W20,'Utility Functions'!$AQ$3:$AQ$6,'Utility Functions'!$AR$3:$AR$6)","v":8.0000000000000002E-3},{"$f":"$X$40*valuePL(X20,'Utility Functions'!$AS$3:$AS$6,'Utility Functions'!$AT$3:$AT$6)","v":0.04},{"$f":"$Y$40*valuePL(Y20,'Utility Functions'!$AU$3:$AU$6,'Utility Functions'!$AV$3:$AV$6)","v":4.0000000000000008E-2},{"$f":"$Z$40*valuePL(Z20,'Utility Functions'!$AW$3:$AW$5,'Utility Functions'!$AX$3:$AX$5)","v":0},{"$f":"$AA$40*valuePL(AA20,'Utility Functions'!$AY$3:$AY$6,'Utility Functions'!$AZ$3:$AZ$6)","v":8.0000000000000002E-3},{"$f":"$AB$40*valuePL(AB20,'Utility Functions'!$BA$3:$BA$5,'Utility Functions'!$BB$3:$BB$5)","v":0},{"$f":"$AC$40*valuePL(AC20,'Utility Functions'!$BC$3:$BC$5,'Utility Functions'!$BD$3:$BD$5)","v":7.4999999999999997E-3},0.41549503742461386]
[20,{"$f":"$B$40*(valueE(B21,'Utility Functions'!$B$3,'Utility Functions'!$B$4,'Utility Functions'!$B$5,'Utility Functions'!$B$6))","v":2.5041071294184137E-2},{"$f":"$C$40*(valueE(C21,'Utility Functions'!$D$3,'Utility Functions'!$D$4,'Utility Functions'!$D$5,'Utility Functions'!$D$6))","v":2.3696993705826886E-2},{"$f":"$D$40*(valuePL(D21,'Utility Functions'!$E$3:$E$5,'Utility Functions'!$F$3:$F$5))","v":1.4999999999999999E-2},{"$f":"$E$40*(valuePL(E21,'Utility Functions'!$G$3:$G$5,'Utility Functions'!$H$3:$H$5))","v":0.03},{"$f":"$F$40*(valuePL(F21,'Utility Functions'!$I$3:$I$4,'Utility Functions'!$J$3:$J$5))","v":0},{"$f":"$G$40*(valueE(G21,'Utility Functions'!$L$3,'Utility Functions'!$L$4,'Utility Functions'!$L$5,'Utility Functions'!$L$6))","v":0},{"$f":"$H$40*(valueE(H21,'Utility Functions'!$N$3,'Utility Functions'!$N$4,'Utility Functions'!$N$5,'Utility Functions'!$N$6))","v":6.1907020872865271E-3},{"$f":"$I$40*valuePL(I21,'Utility Functions'!$O$3:$O$6,'Utility Functions'!$P$3:$P$6)","v":2.8036363636363634E-2},{"$f":"$J$40*valuePL(J21,'Utility Functions'!$Q$3:$Q$6,'Utility Functions'!$R$3:$R$6)","v":1.0181818181818183E-2},{"$f":"$K$40*(valuePL(K21,'Utility Functions'!$S$3:$S$7,'Utility Functions'!$T$3:$T$7))","v":1.8690909090909088E-2},{"$f":"$L$40*(valueE(L21,'Utility Functions'!$V$3,'Utility Functions'!$V$4,'Utility Functions'!$V$5,'Utility Functions'!$V$6))","v":1.3333333333333332E-2},{"$f":"$M$40*valuePL(M21,'Utility Functions'!$W$3:$W$6,'Utility Functions'!$X$3:$X$6)","v":1.0181818181818183E-2},{"$f":"$N$40*valueE(N21,'Utility Functions'!$Z$3,'Utility Functions'!$Z$4,'Utility Functions'!$Z$5,'Utility Functions'!$Z$6)","v":0.03},{"$f":"$O$40*valuePL(O21,'Utility Functions'!$AA$3:$AA$5,'Utility Functions'!$AB$3:$AB$5)","v":0.09},{"$f":"$P$40*valuePL(P21,'Utility Functions'!$AC$3:$AC$7,'Utility Functions'!$AD$3:$AD$7)","v":0.01},{"$f":"$Q$40*valuePL(Q21,'Utility Functions'!$AE$3:$AE$6,'Utility Functions'!$AF$3:$AF$6)","v":0},{"$f":"$R$40*valuePL(R21,'Utility Functions'!$AG$3:$AG$6,'Utility Functions'!$AH$3:$AH$6)","v":0.05},{"$f":"$S$40*valuePL(S21,'Utility Functions'!$AI$3:$AI$6,'Utility Functions'!$AJ$3:$AJ$6)","v":0.05},{"$f":"$T$40*valuePL(T21,'Utility Functions'!$AK$3:$AK$8,'Utility Functions'!$AL$3:$AL$8)","v":1.7999999999999999E-2},{"$f":"$U$40*valuePL(U21,'Utility Functions'!$AM$3:$AM$5,'Utility Functions'!$AN$3:$AN$5)","v":0.03},{"$f":"$V$40*valuePL(V21,'Utility Functions'!$AO$3:$AO$5,'Utility Functions'!$AP$3:$AP$5)","v":2.5000000000000001E-2},{"$f":"$W$40*valuePL(W21,'Utility Functions'!$AQ$3:$AQ$6,'Utility Functions'!$AR$3:$AR$6)","v":0},{"$f":"$X$40*valuePL(X21,'Utility Functions'!$AS$3:$AS$6,'Utility Functions'!$AT$3:$AT$6)","v":0},{"$f":"$Y$40*valuePL(Y21,'Utility Functions'!$AU$3:$AU$6,'Utility Functions'!$AV$3:$AV$6)","v":1.0000000000000002E-2},{"$f":"$Z$40*valuePL(Z21,'Utility Functions'!$AW$3:$AW$5,'Utility Functions'!$AX$3:$AX$5)","v":0.05},{"$f":"$AA$40*valuePL(AA21,'Utility Functions'!$AY$3:$AY$6,'Utility Functions'!$AZ$3:$AZ$6)","v":8.0000000000000002E-3},{"$f":"$AB$40*valuePL(AB21,'Utility Functions'!$BA$3:$BA$5,'Utility Functions'!$BB$3:$BB$5)","v":0},{"$f":"$AC$40*valuePL(AC21,'Utility Functions'!$BC$3:$BC$5,'Utility Functions'!$BD$3:$BD$5)","v":7.4999999999999997E-3},0.55885300951154004]
[{"$f":"A22","v":21},{"$f":"$B$40*(valueE(B22,'Utility Functions'!$B$3,'Utility Functions'!$B$4,'Utility Functions'!$B$5,'Utility Functions'!$B$6))","v":0},{"$f":"$C$40*(valueE(C22,'Utility Functions'!$D$3,'Utility Functions'!$D$4,'Utility Functions'!$D$5,'Utility Functions'!$D$6))","v":0},{"$f":"$D$40*(valuePL(D22,'Utility Functions'!$E$3:$E$5,'Utility Functions'!$F$3:$F$5))","v":0},{"$f":"$E$40*(valuePL(E22,'Utility Functions'!$G$3:$G$5,'Utility Functions'!$H$3:$H$5))","v":0},{"$f":"$F$40*(valuePL(F22,'Utility Functions'!$I$3:$I$4,'Utility Functions'!$J$3:$J$5))","v":0},{"$f":"$G$40*(valueE(G22,'Utility Functions'!$L$3,'Utility Functions'!$L$4,'Utility Functions'!$L$5,'Utility Functions'!$L$6))","v":0},{"$f":"$H$40*(valueE(H22,'Utility Functions'!$N$3,'Utility Functions'!$N$4,'Utility Functions'!$N$5,'Utility Functions'!$N$6))","v":0},{"$f":"$I$40*valuePL(I22,'Utility Functions'!$O$3:$O$6,'Utility Functions'!$P$3:$P$6)","v":0},{"$f":"$J$40*valuePL(J22,'Utility Functions'!$Q$3:$Q$6,'Utility Functions'!$R$3:$R$6)","v":0},{"$f":"$K$40*(valuePL(K22,'Utility Functions'!$S$3:$S$7,'Utility Functions'!$T$3:$T$7))","v":0},{"$f":"$L$40*(valueE(L22,'Utility Functions'!$V$3,'Utility Functions'!$V$4,'Utility Functions'!$V$5,'Utility Functions'!$V$6))","v":0},{"$f":"$M$40*valuePL(M22,'Utility Functions'!$W$3:$W$6,'Utility Functions'!$X$3:$X$6)","v":0},{"$f":"$N$40*valueE(N22,'Utility Functions'!$Z$3,'Utility Functions'!$Z$4,'Utility Functions'!$Z$5,'Utility Functions'!$Z$6)","v":0.03},{"$f":"$O$40*valuePL(O22,'Utility Functions'!$AA$3:$AA$5,'Utility Functions'!$AB$3:$AB$5)","v":0.09},{"$f":"$P$40*valuePL(P22,'Utility Functions'!$AC$3:$AC$7,'Utility Functions'!$AD$3:$AD$7)","v":0},{"$f":"$Q$40*valuePL(Q22,'Utility Functions'!$AE$3:$AE$6,'Utility Functions'!$AF$3:$AF$6)","v":4.0000000000000001E-3},{"$f":"$R$40*valuePL(R22,'Utility Functions'!$AG$3:$AG$6,'Utility Functions'!$AH$3:$AH$6)","v":0.05},{"$f":"$S$40*valuePL(S22,'Utility Functions'!$AI$3:$AI$6,'Utility Functions'!$AJ$3:$AJ$6)","v":0.05},{"$f":"$T$40*valuePL(T22,'Utility Functions'!$AK$3:$AK$8,'Utility Functions'!$AL$3:$AL$8)","v":0.03},{"$f":"$U$40*valuePL(U22,'Utility Functions'!$AM$3:$AM$5,'Utility Functions'!$AN$3:$AN$5)","v":7.4999999999999997E-3},{"$f":"$V$40*valuePL(V22,'Utility Functions'!$AO$3:$AO$5,'Utility Functions'!$AP$3:$AP$5)","v":0},{"$f":"$W$40*valuePL(W22,'Utility Functions'!$AQ$3:$AQ$6,'Utility Functions'!$AR$3:$AR$6)","v":0.03},{"$f":"$X$40*valuePL(X22,'Utility Functions'!$AS$3:$AS$6,'Utility Functions'!$AT$3:$AT$6)","v":0.04},{"$f":"$Y$40*valuePL(Y22,'Utility Functions'!$AU$3:$AU$6,'Utility Functions'!$AV$3:$AV$6)","v":1.0000000000000002E-2},{"$f":"$Z$40*valuePL(Z22,'Utility Functions'!$AW$3:$AW$5,'Utility Functions'!$AX$3:$AX$5)","v":0},{"$f":"$AA$40*valuePL(AA22,'Utility Functions'!$AY$3:$AY$6,'Utility Functions'!$AZ$3:$AZ$6)","v":0.04},{"$f":"$AB$40*valuePL(AB22,'Utility Functions'!$BA$3:$BA$5,'Utility Functions'!$BB$3:$BB$5)","v":0.01},{"$f":"$AC$40*valuePL(AC22,'Utility Functions'!$BC$3:$BC$5,'Utility Functions'!$BD$3:$BD$5)","v":0.03},0.42149999999999999]
[22,{"$f":"$B$40*(valueE(B23,'Utility Functions'!$B$3,'Utility Functions'!$B$4,'Utility Functions'!$B$5,'Utility Functions'!$B$6))","v":0},{"$f":"$C$40*(valueE(C23,'Utility Functions'!$D$3,'Utility Functions'!$D$4,'Utility Functions'!$D$5,'Utility Functions'!$D$6))","v":0},{"$f":"$D$40*(valuePL(D23,'Utility Functions'!$E$3:$E$5,'Utility Functions'!$F$3:$F$5))","v":0},{"$f":"$E$40*(valuePL(E23,'Utility Functions'!$G$3:$G$5,'Utility Functions'!$H$3:$H$5))","v":0},{"$f":"$F$40*(valuePL(F23,'Utility Functions'!$I$3:$I$4,'Utility Functions'!$J$3:$J$5))","v":0},{"$f":"$G$40*(valueE(G23,'Utility Functions'!$L$3,'Utility Functions'!$L$4,'Utility Functions'!$L$5,'Utility Functions'!$L$6))","v":1.2903225806451613E-3},{"$f":"$H$40*(valueE(H23,'Utility Functions'!$N$3,'Utility Functions'!$N$4,'Utility Functions'!$N$5,'Utility Functions'!$N$6))","v":9.1081593927893733E-4},{"$f":"$I$40*valuePL(I23,'Utility Functions'!$O$3:$O$6,'Utility Functions'!$P$3:$P$6)","v":0},{"$f":"$J$40*valuePL(J23,'Utility Functions'!$Q$3:$Q$6,'Utility Functions'!$R$3:$R$6)","v":0},{"$f":"$K$40*(valuePL(K23,'Utility Functions'!$S$3:$S$7,'Utility Functions'!$T$3:$T$7))","v":0},{"$f":"$L$40*(valueE(L23,'Utility Functions'!$V$3,'Utility Functions'!$V$4,'Utility Functions'!$V$5,'Utility Functions'!$V$6))","v":0},{"$f":"$M$40*valuePL(M23,'Utility Functions'!$W$3:$W$6,'Utility Functions'!$X$3:$X$6)","v":0},{"$f":"$N$40*valueE(N23,'Utility Functions'!$Z$3,'Utility Functions'!$Z$4,'Utility Functions'!$Z$5,'Utility Functions'!$Z$6)","v":3.7499999999999999E-3},{"$f":"$O$40*valuePL(O23,'Utility Functions'!$AA$3:$AA$5,'Utility Functions'!$AB$3:$AB$5)","v":0.09},{"$f":"$P$40*valuePL(P23,'Utility Functions'!$AC$3:$AC$7,'Utility Functions'!$AD$3:$AD$7)","v":0.04},{"$f":"$Q$40*valuePL(Q23,'Utility Functions'!$AE$3:$AE$6,'Utility Functions'!$AF$3:$AF$6)","v":0.02},{"$f":"$R$40*valuePL(R23,'Utility Functions'!$AG$3:$AG$6,'Utility Functions'!$AH$3:$AH$6)","v":4.0000000000000008E-2},{"$f":"$S$40*valuePL(S23,'Utility Functions'!$AI$3:$AI$6,'Utility Functions'!$AJ$3:$AJ$6)","v":0.05},{"$f":"$T$40*valuePL(T23,'Utility Functions'!$AK$3:$AK$8,'Utility Functions'!$AL$3:$AL$8)","v":0.03},{"$f":"$U$40*valuePL(U23,'Utility Functions'!$AM$3:$AM$5,'Utility Functions'!$AN$3:$AN$5)","v":0},{"$f":"$V$40*valuePL(V23,'Utility Functions'!$AO$3:$AO$5,'Utility Functions'!$AP$3:$AP$5)","v":2.5000000000000001E-2},{"$f":"$W$40*valuePL(W23,'Utility Functions'!$AQ$3:$AQ$6,'Utility Functions'!$AR$3:$AR$6)","v":0.03},{"$f":"$X$40*valuePL(X23,'Utility Functions'!$AS$3:$AS$6,'Utility Functions'!$AT$3:$AT$6)","v":8.0000000000000002E-3},{"$f":"$Y$40*valuePL(Y23,'Utility Functions'!$AU$3:$AU$6,'Utility Functions'!$AV$3:$AV$6)","v":0},{"$f":"$Z$40*valuePL(Z23,'Utility Functions'!$AW$3:$AW$5,'Utility Functions'!$AX$3:$AX$5)","v":0.05},{"$f":"$AA$40*valuePL(AA23,'Utility Functions'!$AY$3:$AY$6,'Utility Functions'!$AZ$3:$AZ$6)","v":8.0000000000000002E-3},{"$f":"$AB$40*valuePL(AB23,'Utility Functions'!$BA$3:$BA$5,'Utility Functions'!$BB$3:$BB$5)","v":0.04},{"$f":"$AC$40*valuePL(AC23,'Utility Functions'!$BC$3:$BC$5,'Utility Functions'!$BD$3:$BD$5)","v":7.4999999999999997E-3},0.44445113851992418]
[23,{"$f":"$B$40*(valueE(B24,'Utility Functions'!$B$3,'Utility Functions'!$B$4,'Utility Functions'!$B$5,'Utility Functions'!$B$6))","v":2.5041071294184137E-2},{"$f":"$C$40*(valueE(C24,'Utility Functions'!$D$3,'Utility Functions'!$D$4,'Utility Functions'!$D$5,'Utility Functions'!$D$6))","v":2.542345105018548E-2},{"$f":"$D$40*(valuePL(D24,'Utility Functions'!$E$3:$E$5,'Utility Functions'!$F$3:$F$5))","v":0.03},{"$f":"$E$40*(valuePL(E24,'Utility Functions'!$G$3:$G$5,'Utility Functions'!$H$3:$H$5))","v":0},{"$f":"$F$40*(valuePL(F24,'Utility Functions'!$I$3:$I$4,'Utility Functions'!$J$3:$J$5))","v":0},{"$f":"$G$40*(valueE(G24,'Utility Functions'!$L$3,'Utility Functions'!$L$4,'Utility Functions'!$L$5,'Utility Functions'!$L$6))","v":0},{"$f":"$H$40*(valueE(H24,'Utility Functions'!$N$3,'Utility Functions'!$N$4,'Utility Functions'!$N$5,'Utility Functions'!$N$6))","v":0},{"$f":"$I$40*valuePL(I24,'Utility Functions'!$O$3:$O$6,'Utility Functions'!$P$3:$P$6)","v":0},{"$f":"$J$40*valuePL(J24,'Utility Functions'!$Q$3:$Q$6,'Utility Functions'!$R$3:$R$6)","v":0},{"$f":"$K$40*(valuePL(K24,'Utility Functions'!$S$3:$S$7,'Utility Functions'!$T$3:$T$7))","v":0},{"$f":"$L$40*(valueE(L24,'Utility Functions'!$V$3,'Utility Functions'!$V$4,'Utility Functions'!$V$5,'Utility Functions'!$V$6))","v":0},{"$f":"$M$40*valuePL(M24,'Utility Functions'!$W$3:$W$6,'Utility Functions'!$X$3:$X$6)","v":0},{"$f":"$N$40*valueE(N24,'Utility Functions'!$Z$3,'Utility Functions'!$Z$4,'Utility Functions'!$Z$5,'Utility Functions'!$Z$6)","v":0},{"$f":"$O$40*valuePL(O24,'Utility Functions'!$AA$3:$AA$5,'Utility Functions'!$AB$3:$AB$5)","v":0},{"$f":"$P$40*valuePL(P24,'Utility Functions'!$AC$3:$AC$7,'Utility Functions'!$AD$3:$AD$7)","v":0.03},{"$f":"$Q$40*valuePL(Q24,'Utility Functions'!$AE$3:$AE$6,'Utility Functions'!$AF$3:$AF$6)","v":0},{"$f":"$R$40*valuePL(R24,'Utility Functions'!$AG$3:$AG$6,'Utility Functions'!$AH$3:$AH$6)","v":0.05},{"$f":"$S$40*valuePL(S24,'Utility Functions'!$AI$3:$AI$6,'Utility Functions'!$AJ$3:$AJ$6)","v":0.05},{"$f":"$T$40*valuePL(T24,'Utility Functions'!$AK$3:$AK$8,'Utility Functions'!$AL$3:$AL$8)","v":0.03},{"$f":"$U$40*valuePL(U24,'Utility Functions'!$AM$3:$AM$5,'Utility Functions'!$AN$3:$AN$5)","v":0},{"$f":"$V$40*valuePL(V24,'Utility Functions'!$AO$3:$AO$5,'Utility Functions'!$AP$3:$AP$5)","v":0.05},{"$f":"$W$40*valuePL(W24,'Utility Functions'!$AQ$3:$AQ$6,'Utility Functions'!$AR$3:$AR$6)","v":8.0000000000000002E-3},{"$f":"$X$40*valuePL(X24,'Utility Functions'!$AS$3:$AS$6,'Utility Functions'!$AT$3:$AT$6)","v":0.03},{"$f":"$Y$40*valuePL(Y24,'Utility Functions'!$AU$3:$AU$6,'Utility Functions'!$AV$3:$AV$6)","v":1.0000000000000002E-2},{"$f":"$Z$40*valuePL(Z24,'Utility Functions'!$AW$3:$AW$5,'Utility Functions'!$AX$3:$AX$5)","v":2.5000000000000001E-2},{"$f":"$AA$40*valuePL(AA24,'Utility Functions'!$AY$3:$AY$6,'Utility Functions'!$AZ$3:$AZ$6)","v":8.0000000000000002E-3},{"$f":"$AB$40*valuePL(AB24,'Utility Functions'!$BA$3:$BA$5,'Utility Functions'!$BB$3:$BB$5)","v":0},{"$f":"$AC$40*valuePL(AC24,'Utility Functions'!$BC$3:$BC$5,'Utility Functions'!$BD$3:$BD$5)","v":7.4999999999999997E-3},0.37896452234436967]
[24,{"$f":"$B$40*(valueE(B25,'Utility Functions'!$B$3,'Utility Functions'!$B$4,'Utility Functions'!$B$5,'Utility Functions'!$B$6))","v":1.896364549751255E-2},{"$f":"$C$40*(valueE(C25,'Utility Functions'!$D$3,'Utility Functions'!$D$4,'Utility Functions'!$D$5,'Utility Functions'!$D$6))","v":1.3942790146123618E-2},{"$f":"$D$40*(valuePL(D25,'Utility Functions'!$E$3:$E$5,'Utility Functions'!$F$3:$F$5))","v":0.03},{"$f":"$E$40*(valuePL(E25,'Utility Functions'!$G$3:$G$5,'Utility Functions'!$H$3:$H$5))","v":0},{"$f":"$F$40*(valuePL(F25,'Utility Functions'!$I$3:$I$4,'Utility Functions'!$J$3:$J$5))","v":0},{"$f":"$G$40*(valueE(G25,'Utility Functions'!$L$3,'Utility Functions'!$L$4,'Utility Functions'!$L$5,'Utility Functions'!$L$6))","v":0},{"$f":"$H$40*(valueE(H25,'Utility Functions'!$N$3,'Utility Functions'!$N$4,'Utility Functions'!$N$5,'Utility Functions'!$N$6))","v":0},{"$f":"$I$40*valuePL(I25,'Utility Functions'!$O$3:$O$6,'Utility Functions'!$P$3:$P$6)","v":0},{"$f":"$J$40*valuePL(J25,'Utility Functions'!$Q$3:$Q$6,'Utility Functions'!$R$3:$R$6)","v":0},{"$f":"$K$40*(valuePL(K25,'Utility Functions'!$S$3:$S$7,'Utility Functions'!$T$3:$T$7))","v":0},{"$f":"$L$40*(valueE(L25,'Utility Functions'!$V$3,'Utility Functions'!$V$4,'Utility Functions'!$V$5,'Utility Functions'!$V$6))","v":0},{"$f":"$M$40*valuePL(M25,'Utility Functions'!$W$3:$W$6,'Utility Functions'!$X$3:$X$6)","v":0},{"$f":"$N$40*valueE(N25,'Utility Functions'!$Z$3,'Utility Functions'!$Z$4,'Utility Functions'!$Z$5,'Utility Functions'!$Z$6)","v":0},{"$f":"$O$40*valuePL(O25,'Utility Functions'!$AA$3:$AA$5,'Utility Functions'!$AB$3:$AB$5)","v":0},{"$f":"$P$40*valuePL(P25,'Utility Functions'!$AC$3:$AC$7,'Utility Functions'!$AD$3:$AD$7)","v":0},{"$f":"$Q$40*valuePL(Q25,'Utility Functions'!$AE$3:$AE$6,'Utility Functions'!$AF$3:$AF$6)","v":0},{"$f":"$R$40*valuePL(R25,'Utility Functions'!$AG$3:$AG$6,'Utility Functions'!$AH$3:$AH$6)","v":0.05},{"$f":"$S$40*valuePL(S25,'Utility Functions'!$AI$3:$AI$6,'Utility Functions'!$AJ$3:$AJ$6)","v":0.05},{"$f":"$T$40*valuePL(T25,'Utility Functions'!$AK$3:$AK$8,'Utility Functions'!$AL$3:$AL$8)","v":0.03},{"$f":"$U$40*valuePL(U25,'Utility Functions'!$AM$3:$AM$5,'Utility Functions'!$AN$3:$AN$5)","v":0},{"$f":"$V$40*valuePL(V25,'Utility Functions'!$AO$3:$AO$5,'Utility Functions'!$AP$3:$AP$5)","v":0},{"$f":"$W$40*valuePL(W25,'Utility Functions'!$AQ$3:$AQ$6,'Utility Functions'!$AR$3:$AR$6)","v":0.04},{"$f":"$X$40*valuePL(X25,'Utility Functions'!$AS$3:$AS$6,'Utility Functions'!$AT$3:$AT$6)","v":8.0000000000000002E-3},{"$f":"$Y$40*valuePL(Y25,'Utility Functions'!$AU$3:$AU$6,'Utility Functions'!$AV$3:$AV$6)","v":0.05},{"$f":"$Z$40*valuePL(Z25,'Utility Functions'!$AW$3:$AW$5,'Utility Functions'!$AX$3:$AX$5)","v":0.05},{"$f":"$AA$40*valuePL(AA25,'Utility Functions'!$AY$3:$AY$6,'Utility Functions'!$AZ$3:$AZ$6)","v":8.0000000000000002E-3},{"$f":"$AB$40*valuePL(AB25,'Utility Functions'!$BA$3:$BA$5,'Utility Functions'!$BB$3:$BB$5)","v":0},{"$f":"$AC$40*valuePL(AC25,'Utility Functions'!$BC$3:$BC$5,'Utility Functions'!$BD$3:$BD$5)","v":0.03},0.37890643564363613]
[25,{"$f":"$B$40*(valueE(B26,'Utility Functions'!$B$3,'Utility Functions'!$B$4,'Utility Functions'!$B$5,'Utility Functions'!$B$6))","v":2.5041071294184137E-2},{"$f":"$C$40*(valueE(C26,'Utility Functions'!$D$3,'Utility Functions'!$D$4,'Utility Functions'!$D$5,'Utility Functions'!$D$6))","v":2.542345105018548E-2},{"$f":"$D$40*(valuePL(D26,'Utility Functions'!$E$3:$E$5,'Utility Functions'!$F$3:$F$5))","v":0.03},{"$f":"$E$40*(valuePL(E26,'Utility Functions'!$G$3:$G$5,'Utility Functions'!$H$3:$H$5))","v":0},{"$f":"$F$40*(valuePL(F26,'Utility Functions'!$I$3:$I$4,'Utility Functions'!$J$3:$J$5))","v":0},{"$f":"$G$40*(valueE(G26,'Utility Functions'!$L$3,'Utility Functions'!$L$4,'Utility Functions'!$L$5,'Utility Functions'!$L$6))","v":1.4193548387096775E-2},{"$f":"$H$40*(valueE(H26,'Utility Functions'!$N$3,'Utility Functions'!$N$4,'Utility Functions'!$N$5,'Utility Functions'!$N$6))","v":4.383301707779886E-3},{"$f":"$I$40*valuePL(I26,'Utility Functions'!$O$3:$O$6,'Utility Functions'!$P$3:$P$6)","v":0},{"$f":"$J$40*valuePL(J26,'Utility Functions'!$Q$3:$Q$6,'Utility Functions'!$R$3:$R$6)","v":0},{"$f":"$K$40*(valuePL(K26,'Utility Functions'!$S$3:$S$7,'Utility Functions'!$T$3:$T$7))","v":0},{"$f":"$L$40*(valueE(L26,'Utility Functions'!$V$3,'Utility Functions'!$V$4,'Utility Functions'!$V$5,'Utility Functions'!$V$6))","v":0},{"$f":"$M$40*valuePL(M26,'Utility Functions'!$W$3:$W$6,'Utility Functions'!$X$3:$X$6)","v":0},{"$f":"$N$40*valueE(N26,'Utility Functions'!$Z$3,'Utility Functions'!$Z$4,'Utility Functions'!$Z$5,'Utility Functions'!$Z$6)","v":0.03},{"$f":"$O$40*valuePL(O26,'Utility Functions'!$AA$3:$AA$5,'Utility Functions'!$AB$3:$AB$5)","v":2.2499999999999999E-2},{"$f":"$P$40*valuePL(P26,'Utility Functions'!$AC$3:$AC$7,'Utility Functions'!$AD$3:$AD$7)","v":0.02},{"$f":"$Q$40*valuePL(Q26,'Utility Functions'!$AE$3:$AE$6,'Utility Functions'!$AF$3:$AF$6)","v":0.02},{"$f":"$R$40*valuePL(R26,'Utility Functions'!$AG$3:$AG$6,'Utility Functions'!$AH$3:$AH$6)","v":0.05},{"$f":"$S$40*valuePL(S26,'Utility Functions'!$AI$3:$AI$6,'Utility Functions'!$AJ$3:$AJ$6)","v":0.05},{"$f":"$T$40*valuePL(T26,'Utility Functions'!$AK$3:$AK$8,'Utility Functions'!$AL$3:$AL$8)","v":0},{"$f":"$U$40*valuePL(U26,'Utility Functions'!$AM$3:$AM$5,'Utility Functions'!$AN$3:$AN$5)","v":0},{"$f":"$V$40*valuePL(V26,'Utility Functions'!$AO$3:$AO$5,'Utility Functions'!$AP$3:$AP$5)","v":0.05},{"$f":"$W$40*valuePL(W26,'Utility Functions'!$AQ$3:$AQ$6,'Utility Functions'!$AR$3:$AR$6)","v":8.0000000000000002E-3},{"$f":"$X$40*valuePL(X26,'Utility Functions'!$AS$3:$AS$6,'Utility Functions'!$AT$3:$AT$6)","v":0.04},{"$f":"$Y$40*valuePL(Y26,'Utility Functions'!$AU$3:$AU$6,'Utility Functions'!$AV$3:$AV$6)","v":4.0000000000000008E-2},{"$f":"$Z$40*valuePL(Z26,'Utility Functions'!$AW$3:$AW$5,'Utility Functions'!$AX$3:$AX$5)","v":2.5000000000000001E-2},{"$f":"$AA$40*valuePL(AA26,'Utility Functions'!$AY$3:$AY$6,'Utility Functions'!$AZ$3:$AZ$6)","v":8.0000000000000002E-3},{"$f":"$AB$40*valuePL(AB26,'Utility Functions'!$BA$3:$BA$5,'Utility Functions'!$BB$3:$BB$5)","v":0.04},{"$f":"$AC$40*valuePL(AC26,'Utility Functions'!$BC$3:$BC$5,'Utility Functions'!$BD$3:$BD$5)","v":0.03},0.53254137243924626]
[26,{"$f":"$B$40*(valueE(B27,'Utility Functions'!$B$3,'Utility Functions'!$B$4,'Utility Functions'!$B$5,'Utility Functions'!$B$6))","v":2.8998845838620748E-2},{"$f":"$C$40*(valueE(C27,'Utility Functions'!$D$3,'Utility Functions'!$D$4,'Utility Functions'!$D$5,'Utility Functions'!$D$6))","v":2.542345105018548E-2},{"$f":"$D$40*(valuePL(D27,'Utility Functions'!$E$3:$E$5,'Utility Functions'!$F$3:$F$5))","v":0.03},{"$f":"$E$40*(valuePL(E27,'Utility Functions'!$G$3:$G$5,'Utility Functions'!$H$3:$H$5))","v":1.4999999999999999E-2},{"$f":"$F$40*(valuePL(F27,'Utility Functions'!$I$3:$I$4,'Utility Functions'!$J$3:$J$5))","v":0},{"$f":"$G$40*(valueE(G27,'Utility Functions'!$L$3,'Utility Functions'!$L$4,'Utility Functions'!$L$5,'Utility Functions'!$L$6))","v":0},{"$f":"$H$40*(valueE(H27,'Utility Functions'!$N$3,'Utility Functions'!$N$4,'Utility Functions'!$N$5,'Utility Functions'!$N$6))","v":0},{"$f":"$I$40*valuePL(I27,'Utility Functions'!$O$3:$O$6,'Utility Functions'!$P$3:$P$6)","v":0},{"$f":"$J$40*valuePL(J27,'Utility Functions'!$Q$3:$Q$6,'Utility Functions'!$R$3:$R$6)","v":0},{"$f":"$K$40*(valuePL(K27,'Utility Functions'!$S$3:$S$7,'Utility Functions'!$T$3:$T$7))","v":0},{"$f":"$L$40*(valueE(L27,'Utility Functions'!$V$3,'Utility Functions'!$V$4,'Utility Functions'!$V$5,'Utility Functions'!$V$6))","v":0},{"$f":"$M$40*valuePL(M27,'Utility Functions'!$W$3:$W$6,'Utility Functions'!$X$3:$X$6)","v":0},{"$f":"$N$40*valueE(N27,'Utility Functions'!$Z$3,'Utility Functions'!$Z$4,'Utility Functions'!$Z$5,'Utility Functions'!$Z$6)","v":0},{"$f":"$O$40*valuePL(O27,'Utility Functions'!$AA$3:$AA$5,'Utility Functions'!$AB$3:$AB$5)","v":0},{"$f":"$P$40*valuePL(P27,'Utility Functions'!$AC$3:$AC$7,'Utility Functions'!$AD$3:$AD$7)","v":0.03},{"$f":"$Q$40*valuePL(Q27,'Utility Functions'!$AE$3:$AE$6,'Utility Functions'!$AF$3:$AF$6)","v":0},{"$f":"$R$40*valuePL(R27,'Utility Functions'!$AG$3:$AG$6,'Utility Functions'!$AH$3:$AH$6)","v":0.05},{"$f":"$S$40*valuePL(S27,'Utility Functions'!$AI$3:$AI$6,'Utility Functions'!$AJ$3:$AJ$6)","v":0.05},{"$f":"$T$40*valuePL(T27,'Utility Functions'!$AK$3:$AK$8,'Utility Functions'!$AL$3:$AL$8)","v":2.4E-2},{"$f":"$U$40*valuePL(U27,'Utility Functions'!$AM$3:$AM$5,'Utility Functions'!$AN$3:$AN$5)","v":0},{"$f":"$V$40*valuePL(V27,'Utility Functions'!$AO$3:$AO$5,'Utility Functions'!$AP$3:$AP$5)","v":0.05},{"$f":"$W$40*valuePL(W27,'Utility Functions'!$AQ$3:$AQ$6,'Utility Functions'!$AR$3:$AR$6)","v":8.0000000000000002E-3},{"$f":"$X$40*valuePL(X27,'Utility Functions'!$AS$3:$AS$6,'Utility Functions'!$AT$3:$AT$6)","v":0},{"$f":"$Y$40*valuePL(Y27,'Utility Functions'!$AU$3:$AU$6,'Utility Functions'!$AV$3:$AV$6)","v":4.0000000000000008E-2},{"$f":"$Z$40*valuePL(Z27,'Utility Functions'!$AW$3:$AW$5,'Utility Functions'!$AX$3:$AX$5)","v":0},{"$f":"$AA$40*valuePL(AA27,'Utility Functions'!$AY$3:$AY$6,'Utility Functions'!$AZ$3:$AZ$6)","v":8.0000000000000002E-3},{"$f":"$AB$40*valuePL(AB27,'Utility Functions'!$BA$3:$BA$5,'Utility Functions'!$BB$3:$BB$5)","v":0.04},{"$f":"$AC$40*valuePL(AC27,'Utility Functions'!$BC$3:$BC$5,'Utility Functions'!$BD$3:$BD$5)","v":0.03},0.42942229688880618]
[27,{"$f":"$B$40*(valueE(B28,'Utility Functions'!$B$3,'Utility Functions'!$B$4,'Utility Functions'!$B$5,'Utility Functions'!$B$6))","v":0},{"$f":"$C$40*(valueE(C28,'Utility Functions'!$D$3,'Utility Functions'!$D$4,'Utility Functions'!$D$5,'Utility Functions'!$D$6))","v":1.3942790146123618E-2},{"$f":"$D$40*(valuePL(D28,'Utility Functions'!$E$3:$E$5,'Utility Functions'!$F$3:$F$5))","v":0.03},{"$f":"$E$40*(valuePL(E28,'Utility Functions'!$G$3:$G$5,'Utility Functions'!$H$3:$H$5))","v":0},{"$f":"$F$40*(valuePL(F28,'Utility Functions'!$I$3:$I$4,'Utility Functions'!$J$3:$J$5))","v":0},{"$f":"$G$40*(valueE(G28,'Utility Functions'!$L$3,'Utility Functions'!$L$4,'Utility Functions'!$L$5,'Utility Functions'!$L$6))","v":0},{"$f":"$H$40*(valueE(H28,'Utility Functions'!$N$3,'Utility Functions'!$N$4,'Utility Functions'!$N$5,'Utility Functions'!$N$6))","v":0},{"$f":"$I$40*valuePL(I28,'Utility Functions'!$O$3:$O$6,'Utility Functions'!$P$3:$P$6)","v":0},{"$f":"$J$40*valuePL(J28,'Utility Functions'!$Q$3:$Q$6,'Utility Functions'!$R$3:$R$6)","v":0},{"$f":"$K$40*(valuePL(K28,'Utility Functions'!$S$3:$S$7,'Utility Functions'!$T$3:$T$7))","v":0.02},{"$f":"$L$40*(valueE(L28,'Utility Functions'!$V$3,'Utility Functions'!$V$4,'Utility Functions'!$V$5,'Utility Functions'!$V$6))","v":0},{"$f":"$M$40*valuePL(M28,'Utility Functions'!$W$3:$W$6,'Utility Functions'!$X$3:$X$6)","v":2E-3},{"$f":"$N$40*valueE(N28,'Utility Functions'!$Z$3,'Utility Functions'!$Z$4,'Utility Functions'!$Z$5,'Utility Functions'!$Z$6)","v":0},{"$f":"$O$40*valuePL(O28,'Utility Functions'!$AA$3:$AA$5,'Utility Functions'!$AB$3:$AB$5)","v":0},{"$f":"$P$40*valuePL(P28,'Utility Functions'!$AC$3:$AC$7,'Utility Functions'!$AD$3:$AD$7)","v":0.02},{"$f":"$Q$40*valuePL(Q28,'Utility Functions'!$AE$3:$AE$6,'Utility Functions'!$AF$3:$AF$6)","v":0.02},{"$f":"$R$40*valuePL(R28,'Utility Functions'!$AG$3:$AG$6,'Utility Functions'!$AH$3:$AH$6)","v":0.05},{"$f":"$S$40*valuePL(S28,'Utility Functions'!$AI$3:$AI$6,'Utility Functions'!$AJ$3:$AJ$6)","v":0.05},{"$f":"$T$40*valuePL(T28,'Utility Functions'!$AK$3:$AK$8,'Utility Functions'!$AL$3:$AL$8)","v":0.03},{"$f":"$U$40*valuePL(U28,'Utility Functions'!$AM$3:$AM$5,'Utility Functions'!$AN$3:$AN$5)","v":0},{"$f":"$V$40*valuePL(V28,'Utility Functions'!$AO$3:$AO$5,'Utility Functions'!$AP$3:$AP$5)","v":2.5000000000000001E-2},{"$f":"$W$40*valuePL(W28,'Utility Functions'!$AQ$3:$AQ$6,'Utility Functions'!$AR$3:$AR$6)","v":0.03},{"$f":"$X$40*valuePL(X28,'Utility Functions'!$AS$3:$AS$6,'Utility Functions'!$AT$3:$AT$6)","v":0.04},{"$f":"$Y$40*valuePL(Y28,'Utility Functions'!$AU$3:$AU$6,'Utility Functions'!$AV$3:$AV$6)","v":1.0000000000000002E-2},{"$f":"$Z$40*valuePL(Z28,'Utility Functions'!$AW$3:$AW$5,'Utility Functions'!$AX$3:$AX$5)","v":0},{"$f":"$AA$40*valuePL(AA28,'Utility Functions'!$AY$3:$AY$6,'Utility Functions'!$AZ$3:$AZ$6)","v":0},{"$f":"$AB$40*valuePL(AB28,'Utility Functions'!$BA$3:$BA$5,'Utility Functions'!$BB$3:$BB$5)","v":0},{"$f":"$AC$40*valuePL(AC28,'Utility Functions'!$BC$3:$BC$5,'Utility Functions'!$BD$3:$BD$5)","v":0},0.34094279014612355]
[{"$f":"A29","v":28},{"$f":"$B$40*(valueE(B29,'Utility Functions'!$B$3,'Utility Functions'!$B$4,'Utility Functions'!$B$5,'Utility Functions'!$B$6))","v":1.3535671425672068E-2},{"$f":"$C$40*(valueE(C29,'Utility Functions'!$D$3,'Utility Functions'!$D$4,'Utility Functions'!$D$5,'Utility Functions'!$D$6))","v":1.3942790146123618E-2},{"$f":"$D$40*(valuePL(D29,'Utility Functions'!$E$3:$E$5,'Utility Functions'!$F$3:$F$5))","v":0.03},{"$f":"$E$40*(valuePL(E29,'Utility Functions'!$G$3:$G$5,'Utility Functions'!$H$3:$H$5))","v":0},{"$f":"$F$40*(valuePL(F29,'Utility Functions'!$I$3:$I$4,'Utility Functions'!$J$3:$J$5))","v":0.04},{"$f":"$G$40*(valueE(G29,'Utility Functions'!$L$3,'Utility Functions'!$L$4,'Utility Functions'!$L$5,'Utility Functions'!$L$6))","v":0},{"$f":"$H$40*(valueE(H29,'Utility Functions'!$N$3,'Utility Functions'!$N$4,'Utility Functions'!$N$5,'Utility Functions'!$N$6))","v":0},{"$f":"$I$40*valuePL(I29,'Utility Functions'!$O$3:$O$6,'Utility Functions'!$P$3:$P$6)","v":0},{"$f":"$J$40*valuePL(J29,'Utility Functions'!$Q$3:$Q$6,'Utility Functions'!$R$3:$R$6)","v":0},{"$f":"$K$40*(valuePL(K29,'Utility Functions'!$S$3:$S$7,'Utility Functions'!$T$3:$T$7))","v":0},{"$f":"$L$40*(valueE(L29,'Utility Functions'!$V$3,'Utility Functions'!$V$4,'Utility Functions'!$V$5,'Utility Functions'!$V$6))","v":6.6666666666666662E-3},{"$f":"$M$40*valuePL(M29,'Utility Functions'!$W$3:$W$6,'Utility Functions'!$X$3:$X$6)","v":2E-3},{"$f":"$N$40*valueE(N29,'Utility Functions'!$Z$3,'Utility Functions'!$Z$4,'Utility Functions'!$Z$5,'Utility Functions'!$Z$6)","v":0},{"$f":"$O$40*valuePL(O29,'Utility Functions'!$AA$3:$AA$5,'Utility Functions'!$AB$3:$AB$5)","v":0},{"$f":"$P$40*valuePL(P29,'Utility Functions'!$AC$3:$AC$7,'Utility Functions'!$AD$3:$AD$7)","v":0.04},{"$f":"$Q$40*valuePL(Q29,'Utility Functions'!$AE$3:$AE$6,'Utility Functions'!$AF$3:$AF$6)","v":0},{"$f":"$R$40*valuePL(R29,'Utility Functions'!$AG$3:$AG$6,'Utility Functions'!$AH$3:$AH$6)","v":0.05},{"$f":"$S$40*valuePL(S29,'Utility Functions'!$AI$3:$AI$6,'Utility Functions'!$AJ$3:$AJ$6)","v":0.05},{"$f":"$T$40*valuePL(T29,'Utility Functions'!$AK$3:$AK$8,'Utility Functions'!$AL$3:$AL$8)","v":2.4E-2},{"$f":"$U$40*valuePL(U29,'Utility Functions'!$AM$3:$AM$5,'Utility Functions'!$AN$3:$AN$5)","v":0},{"$f":"$V$40*valuePL(V29,'Utility Functions'!$AO$3:$AO$5,'Utility Functions'!$AP$3:$AP$5)","v":0.05},{"$f":"$W$40*valuePL(W29,'Utility Functions'!$AQ$3:$AQ$6,'Utility Functions'!$AR$3:$AR$6)","v":0.04},{"$f":"$X$40*valuePL(X29,'Utility Functions'!$AS$3:$AS$6,'Utility Functions'!$AT$3:$AT$6)","v":0.04},{"$f":"$Y$40*valuePL(Y29,'Utility Functions'!$AU$3:$AU$6,'Utility Functions'!$AV$3:$AV$6)","v":1.0000000000000002E-2},{"$f":"$Z$40*valuePL(Z29,'Utility Functions'!$AW$3:$AW$5,'Utility Functions'!$AX$3:$AX$5)","v":0},{"$f":"$AA$40*valuePL(AA29,'Utility Functions'!$AY$3:$AY$6,'Utility Functions'!$AZ$3:$AZ$6)","v":3.5999999999999997E-2},{"$f":"$AB$40*valuePL(AB29,'Utility Functions'!$BA$3:$BA$5,'Utility Functions'!$BB$3:$BB$5)","v":0.04},{"$f":"$AC$40*valuePL(AC29,'Utility Functions'!$BC$3:$BC$5,'Utility Functions'!$BD$3:$BD$5)","v":7.4999999999999997E-3},0.49364512823846229]
[29,{"$f":"$B$40*(valueE(B30,'Utility Functions'!$B$3,'Utility Functions'!$B$4,'Utility Functions'!$B$5,'Utility Functions'!$B$6))","v":2.5041071294184137E-2},{"$f":"$C$40*(valueE(C30,'Utility Functions'!$D$3,'Utility Functions'!$D$4,'Utility Functions'!$D$5,'Utility Functions'!$D$6))","v":2.1405827917278249E-2},{"$f":"$D$40*(valuePL(D30,'Utility Functions'!$E$3:$E$5,'Utility Functions'!$F$3:$F$5))","v":0.03},{"$f":"$E$40*(valuePL(E30,'Utility Functions'!$G$3:$G$5,'Utility Functions'!$H$3:$H$5))","v":1.4999999999999999E-2},{"$f":"$F$40*(valuePL(F30,'Utility Functions'!$I$3:$I$4,'Utility Functions'!$J$3:$J$5))","v":0},{"$f":"$G$40*(valueE(G30,'Utility Functions'!$L$3,'Utility Functions'!$L$4,'Utility Functions'!$L$5,'Utility Functions'!$L$6))","v":0},{"$f":"$H$40*(valueE(H30,'Utility Functions'!$N$3,'Utility Functions'!$N$4,'Utility Functions'!$N$5,'Utility Functions'!$N$6))","v":0},{"$f":"$I$40*valuePL(I30,'Utility Functions'!$O$3:$O$6,'Utility Functions'!$P$3:$P$6)","v":1.8E-3},{"$f":"$J$40*valuePL(J30,'Utility Functions'!$Q$3:$Q$6,'Utility Functions'!$R$3:$R$6)","v":1.3454545454545455E-2},{"$f":"$K$40*(valuePL(K30,'Utility Functions'!$S$3:$S$7,'Utility Functions'!$T$3:$T$7))","v":0},{"$f":"$L$40*(valueE(L30,'Utility Functions'!$V$3,'Utility Functions'!$V$4,'Utility Functions'!$V$5,'Utility Functions'!$V$6))","v":0.02},{"$f":"$M$40*valuePL(M30,'Utility Functions'!$W$3:$W$6,'Utility Functions'!$X$3:$X$6)","v":1.3454545454545455E-2},{"$f":"$N$40*valueE(N30,'Utility Functions'!$Z$3,'Utility Functions'!$Z$4,'Utility Functions'!$Z$5,'Utility Functions'!$Z$6)","v":0},{"$f":"$O$40*valuePL(O30,'Utility Functions'!$AA$3:$AA$5,'Utility Functions'!$AB$3:$AB$5)","v":0},{"$f":"$P$40*valuePL(P30,'Utility Functions'!$AC$3:$AC$7,'Utility Functions'!$AD$3:$AD$7)","v":0.01},{"$f":"$Q$40*valuePL(Q30,'Utility Functions'!$AE$3:$AE$6,'Utility Functions'!$AF$3:$AF$6)","v":0},{"$f":"$R$40*valuePL(R30,'Utility Functions'!$AG$3:$AG$6,'Utility Functions'!$AH$3:$AH$6)","v":0.05},{"$f":"$S$40*valuePL(S30,'Utility Functions'!$AI$3:$AI$6,'Utility Functions'!$AJ$3:$AJ$6)","v":0.05},{"$f":"$T$40*valuePL(T30,'Utility Functions'!$AK$3:$AK$8,'Utility Functions'!$AL$3:$AL$8)","v":2.4E-2},{"$f":"$U$40*valuePL(U30,'Utility Functions'!$AM$3:$AM$5,'Utility Functions'!$AN$3:$AN$5)","v":0},{"$f":"$V$40*valuePL(V30,'Utility Functions'!$AO$3:$AO$5,'Utility Functions'!$AP$3:$AP$5)","v":0.05},{"$f":"$W$40*valuePL(W30,'Utility Functions'!$AQ$3:$AQ$6,'Utility Functions'!$AR$3:$AR$6)","v":8.0000000000000002E-3},{"$f":"$X$40*valuePL(X30,'Utility Functions'!$AS$3:$AS$6,'Utility Functions'!$AT$3:$AT$6)","v":0},{"$f":"$Y$40*valuePL(Y30,'Utility Functions'!$AU$3:$AU$6,'Utility Functions'!$AV$3:$AV$6)","v":4.0000000000000008E-2},{"$f":"$Z$40*valuePL(Z30,'Utility Functions'!$AW$3:$AW$5,'Utility Functions'!$AX$3:$AX$5)","v":2.5000000000000001E-2},{"$f":"$AA$40*valuePL(AA30,'Utility Functions'!$AY$3:$AY$6,'Utility Functions'!$AZ$3:$AZ$6)","v":8.0000000000000002E-3},{"$f":"$AB$40*valuePL(AB30,'Utility Functions'!$BA$3:$BA$5,'Utility Functions'!$BB$3:$BB$5)","v":0.01},{"$f":"$AC$40*valuePL(AC30,'Utility Functions'!$BC$3:$BC$5,'Utility Functions'!$BD$3:$BD$5)","v":0.03},0.4451559901205534]
[30,{"$f":"$B$40*(valueE(B31,'Utility Functions'!$B$3,'Utility Functions'!$B$4,'Utility Functions'!$B$5,'Utility Functions'!$B$6))","v":2.9959234351431094E-2},{"$f":"$C$40*(valueE(C31,'Utility Functions'!$D$3,'Utility Functions'!$D$4,'Utility Functions'!$D$5,'Utility Functions'!$D$6))","v":2.542345105018548E-2},{"$f":"$D$40*(valuePL(D31,'Utility Functions'!$E$3:$E$5,'Utility Functions'!$F$3:$F$5))","v":0.03},{"$f":"$E$40*(valuePL(E31,'Utility Functions'!$G$3:$G$5,'Utility Functions'!$H$3:$H$5))","v":0},{"$f":"$F$40*(valuePL(F31,'Utility Functions'!$I$3:$I$4,'Utility Functions'!$J$3:$J$5))","v":0},{"$f":"$G$40*(valueE(G31,'Utility Functions'!$L$3,'Utility Functions'!$L$4,'Utility Functions'!$L$5,'Utility Functions'!$L$6))","v":0},{"$f":"$H$40*(valueE(H31,'Utility Functions'!$N$3,'Utility Functions'!$N$4,'Utility Functions'!$N$5,'Utility Functions'!$N$6))","v":0},{"$f":"$I$40*valuePL(I31,'Utility Functions'!$O$3:$O$6,'Utility Functions'!$P$3:$P$6)","v":0},{"$f":"$J$40*valuePL(J31,'Utility Functions'!$Q$3:$Q$6,'Utility Functions'!$R$3:$R$6)","v":0},{"$f":"$K$40*(valuePL(K31,'Utility Functions'!$S$3:$S$7,'Utility Functions'!$T$3:$T$7))","v":0},{"$f":"$L$40*(valueE(L31,'Utility Functions'!$V$3,'Utility Functions'!$V$4,'Utility Functions'!$V$5,'Utility Functions'!$V$6))","v":6.6666666666666662E-3},{"$f":"$M$40*valuePL(M31,'Utility Functions'!$W$3:$W$6,'Utility Functions'!$X$3:$X$6)","v":8.0000000000000004E-4},{"$f":"$N$40*valueE(N31,'Utility Functions'!$Z$3,'Utility Functions'!$Z$4,'Utility Functions'!$Z$5,'Utility Functions'!$Z$6)","v":0},{"$f":"$O$40*valuePL(O31,'Utility Functions'!$AA$3:$AA$5,'Utility Functions'!$AB$3:$AB$5)","v":0},{"$f":"$P$40*valuePL(P31,'Utility Functions'!$AC$3:$AC$7,'Utility Functions'!$AD$3:$AD$7)","v":0},{"$f":"$Q$40*valuePL(Q31,'Utility Functions'!$AE$3:$AE$6,'Utility Functions'!$AF$3:$AF$6)","v":0},{"$f":"$R$40*valuePL(R31,'Utility Functions'!$AG$3:$AG$6,'Utility Functions'!$AH$3:$AH$6)","v":1.0000000000000002E-2},{"$f":"$S$40*valuePL(S31,'Utility Functions'!$AI$3:$AI$6,'Utility Functions'!$AJ$3:$AJ$6)","v":1.6500000000000001E-2},{"$f":"$T$40*valuePL(T31,'Utility Functions'!$AK$3:$AK$8,'Utility Functions'!$AL$3:$AL$8)","v":0},{"$f":"$U$40*valuePL(U31,'Utility Functions'!$AM$3:$AM$5,'Utility Functions'!$AN$3:$AN$5)","v":0},{"$f":"$V$40*valuePL(V31,'Utility Functions'!$AO$3:$AO$5,'Utility Functions'!$AP$3:$AP$5)","v":0},{"$f":"$W$40*valuePL(W31,'Utility Functions'!$AQ$3:$AQ$6,'Utility Functions'!$AR$3:$AR$6)","v":0.04},{"$f":"$X$40*valuePL(X31,'Utility Functions'!$AS$3:$AS$6,'Utility Functions'!$AT$3:$AT$6)","v":8.0000000000000002E-3},{"$f":"$Y$40*valuePL(Y31,'Utility Functions'!$AU$3:$AU$6,'Utility Functions'!$AV$3:$AV$6)","v":4.0000000000000008E-2},{"$f":"$Z$40*valuePL(Z31,'Utility Functions'!$AW$3:$AW$5,'Utility Functions'!$AX$3:$AX$5)","v":0},{"$f":"$AA$40*valuePL(AA31,'Utility Functions'!$AY$3:$AY$6,'Utility Functions'!$AZ$3:$AZ$6)","v":3.5999999999999997E-2},{"$f":"$AB$40*valuePL(AB31,'Utility Functions'!$BA$3:$BA$5,'Utility Functions'!$BB$3:$BB$5)","v":0.04},{"$f":"$AC$40*valuePL(AC31,'Utility Functions'!$BC$3:$BC$5,'Utility Functions'!$BD$3:$BD$5)","v":0},0.28334935206828327]
[31,{"$f":"$B$40*(valueE(B32,'Utility Functions'!$B$3,'Utility Functions'!$B$4,'Utility Functions'!$B$5,'Utility Functions'!$B$6))","v":1.6520156106900608E-2},{"$f":"$C$40*(valueE(C32,'Utility Functions'!$D$3,'Utility Functions'!$D$4,'Utility Functions'!$D$5,'Utility Functions'!$D$6))","v":2.542345105018548E-2},{"$f":"$D$40*(valuePL(D32,'Utility Functions'!$E$3:$E$5,'Utility Functions'!$F$3:$F$5))","v":1.4999999999999999E-2},{"$f":"$E$40*(valuePL(E32,'Utility Functions'!$G$3:$G$5,'Utility Functions'!$H$3:$H$5))","v":0},{"$f":"$F$40*(valuePL(F32,'Utility Functions'!$I$3:$I$4,'Utility Functions'!$J$3:$J$5))","v":0},{"$f":"$G$40*(valueE(G32,'Utility Functions'!$L$3,'Utility Functions'!$L$4,'Utility Functions'!$L$5,'Utility Functions'!$L$6))","v":0},{"$f":"$H$40*(valueE(H32,'Utility Functions'!$N$3,'Utility Functions'!$N$4,'Utility Functions'!$N$5,'Utility Functions'!$N$6))","v":0},{"$f":"$I$40*valuePL(I32,'Utility Functions'!$O$3:$O$6,'Utility Functions'!$P$3:$P$6)","v":2.2636363636363635E-2},{"$f":"$J$40*valuePL(J32,'Utility Functions'!$Q$3:$Q$6,'Utility Functions'!$R$3:$R$6)","v":1.6000000000000001E-3},{"$f":"$K$40*(valuePL(K32,'Utility Functions'!$S$3:$S$7,'Utility Functions'!$T$3:$T$7))","v":0},{"$f":"$L$40*(valueE(L32,'Utility Functions'!$V$3,'Utility Functions'!$V$4,'Utility Functions'!$V$5,'Utility Functions'!$V$6))","v":6.6666666666666662E-3},{"$f":"$M$40*valuePL(M32,'Utility Functions'!$W$3:$W$6,'Utility Functions'!$X$3:$X$6)","v":1.6000000000000001E-3},{"$f":"$N$40*valueE(N32,'Utility Functions'!$Z$3,'Utility Functions'!$Z$4,'Utility Functions'!$Z$5,'Utility Functions'!$Z$6)","v":0},{"$f":"$O$40*valuePL(O32,'Utility Functions'!$AA$3:$AA$5,'Utility Functions'!$AB$3:$AB$5)","v":0},{"$f":"$P$40*valuePL(P32,'Utility Functions'!$AC$3:$AC$7,'Utility Functions'!$AD$3:$AD$7)","v":0.02},{"$f":"$Q$40*valuePL(Q32,'Utility Functions'!$AE$3:$AE$6,'Utility Functions'!$AF$3:$AF$6)","v":0},{"$f":"$R$40*valuePL(R32,'Utility Functions'!$AG$3:$AG$6,'Utility Functions'!$AH$3:$AH$6)","v":0.05},{"$f":"$S$40*valuePL(S32,'Utility Functions'!$AI$3:$AI$6,'Utility Functions'!$AJ$3:$AJ$6)","v":3.3000000000000002E-2},{"$f":"$T$40*valuePL(T32,'Utility Functions'!$AK$3:$AK$8,'Utility Functions'!$AL$3:$AL$8)","v":1.7999999999999999E-2},{"$f":"$U$40*valuePL(U32,'Utility Functions'!$AM$3:$AM$5,'Utility Functions'!$AN$3:$AN$5)","v":0},{"$f":"$V$40*valuePL(V32,'Utility Functions'!$AO$3:$AO$5,'Utility Functions'!$AP$3:$AP$5)","v":2.5000000000000001E-2},{"$f":"$W$40*valuePL(W32,'Utility Functions'!$AQ$3:$AQ$6,'Utility Functions'!$AR$3:$AR$6)","v":0},{"$f":"$X$40*valuePL(X32,'Utility Functions'!$AS$3:$AS$6,'Utility Functions'!$AT$3:$AT$6)","v":8.0000000000000002E-3},{"$f":"$Y$40*valuePL(Y32,'Utility Functions'!$AU$3:$AU$6,'Utility Functions'!$AV$3:$AV$6)","v":1.0000000000000002E-2},{"$f":"$Z$40*valuePL(Z32,'Utility Functions'!$AW$3:$AW$5,'Utility Functions'!$AX$3:$AX$5)","v":0.05},{"$f":"$AA$40*valuePL(AA32,'Utility Functions'!$AY$3:$AY$6,'Utility Functions'!$AZ$3:$AZ$6)","v":3.5999999999999997E-2},{"$f":"$AB$40*valuePL(AB32,'Utility Functions'!$BA$3:$BA$5,'Utility Functions'!$BB$3:$BB$5)","v":0.01},{"$f":"$AC$40*valuePL(AC32,'Utility Functions'!$BC$3:$BC$5,'Utility Functions'!$BD$3:$BD$5)","v":7.4999999999999997E-3},0.35694663746011634]
[{"$f":"A33","v":32},{"$f":"$B$40*(valueE(B33,'Utility Functions'!$B$3,'Utility Functions'!$B$4,'Utility Functions'!$B$5,'Utility Functions'!$B$6))","v":1.896364549751255E-2},{"$f":"$C$40*(valueE(C33,'Utility Functions'!$D$3,'Utility Functions'!$D$4,'Utility Functions'!$D$5,'Utility Functions'!$D$6))","v":8.0518966871447988E-3},{"$f":"$D$40*(valuePL(D33,'Utility Functions'!$E$3:$E$5,'Utility Functions'!$F$3:$F$5))","v":0.03},{"$f":"$E$40*(valuePL(E33,'Utility Functions'!$G$3:$G$5,'Utility Functions'!$H$3:$H$5))","v":0.03},{"$f":"$F$40*(valuePL(F33,'Utility Functions'!$I$3:$I$4,'Utility Functions'!$J$3:$J$5))","v":0.04},{"$f":"$G$40*(valueE(G33,'Utility Functions'!$L$3,'Utility Functions'!$L$4,'Utility Functions'!$L$5,'Utility Functions'!$L$6))","v":4.8387096774193543E-4},{"$f":"$H$40*(valueE(H33,'Utility Functions'!$N$3,'Utility Functions'!$N$4,'Utility Functions'!$N$5,'Utility Functions'!$N$6))","v":1.4516129032258063E-3},{"$f":"$I$40*valuePL(I33,'Utility Functions'!$O$3:$O$6,'Utility Functions'!$P$3:$P$6)","v":1.0363636363636363E-2},{"$f":"$J$40*valuePL(J33,'Utility Functions'!$Q$3:$Q$6,'Utility Functions'!$R$3:$R$6)","v":0.02},{"$f":"$K$40*(valuePL(K33,'Utility Functions'!$S$3:$S$7,'Utility Functions'!$T$3:$T$7))","v":6.909090909090909E-3},{"$f":"$L$40*(valueE(L33,'Utility Functions'!$V$3,'Utility Functions'!$V$4,'Utility Functions'!$V$5,'Utility Functions'!$V$6))","v":0.02},{"$f":"$M$40*valuePL(M33,'Utility Functions'!$W$3:$W$6,'Utility Functions'!$X$3:$X$6)","v":0.02},{"$f":"$N$40*valueE(N33,'Utility Functions'!$Z$3,'Utility Functions'!$Z$4,'Utility Functions'!$Z$5,'Utility Functions'!$Z$6)","v":0},{"$f":"$O$40*valuePL(O33,'Utility Functions'!$AA$3:$AA$5,'Utility Functions'!$AB$3:$AB$5)","v":0},{"$f":"$P$40*valuePL(P33,'Utility Functions'!$AC$3:$AC$7,'Utility Functions'!$AD$3:$AD$7)","v":0.02},{"$f":"$Q$40*valuePL(Q33,'Utility Functions'!$AE$3:$AE$6,'Utility Functions'!$AF$3:$AF$6)","v":0.04},{"$f":"$R$40*valuePL(R33,'Utility Functions'!$AG$3:$AG$6,'Utility Functions'!$AH$3:$AH$6)","v":0.05},{"$f":"$S$40*valuePL(S33,'Utility Functions'!$AI$3:$AI$6,'Utility Functions'!$AJ$3:$AJ$6)","v":0},{"$f":"$T$40*valuePL(T33,'Utility Functions'!$AK$3:$AK$8,'Utility Functions'!$AL$3:$AL$8)","v":2.4E-2},{"$f":"$U$40*valuePL(U33,'Utility Functions'!$AM$3:$AM$5,'Utility Functions'!$AN$3:$AN$5)","v":0},{"$f":"$V$40*valuePL(V33,'Utility Functions'!$AO$3:$AO$5,'Utility Functions'!$AP$3:$AP$5)","v":0},{"$f":"$W$40*valuePL(W33,'Utility Functions'!$AQ$3:$AQ$6,'Utility Functions'!$AR$3:$AR$6)","v":0.03},{"$f":"$X$40*valuePL(X33,'Utility Functions'!$AS$3:$AS$6,'Utility Functions'!$AT$3:$AT$6)","v":8.0000000000000002E-3},{"$f":"$Y$40*valuePL(Y33,'Utility Functions'!$AU$3:$AU$6,'Utility Functions'!$AV$3:$AV$6)","v":4.0000000000000008E-2},{"$f":"$Z$40*valuePL(Z33,'Utility Functions'!$AW$3:$AW$5,'Utility Functions'!$AX$3:$AX$5)","v":2.5000000000000001E-2},{"$f":"$AA$40*valuePL(AA33,'Utility Functions'!$AY$3:$AY$6,'Utility Functions'!$AZ$3:$AZ$6)","v":0},{"$f":"$AB$40*valuePL(AB33,'Utility Functions'!$BA$3:$BA$5,'Utility Functions'!$BB$3:$BB$5)","v":0.04},{"$f":"$AC$40*valuePL(AC33,'Utility Functions'!$BC$3:$BC$5,'Utility Functions'!$BD$3:$BD$5)","v":7.4999999999999997E-3},0.49072375332835239]
[33,{"$f":"$B$40*(valueE(B34,'Utility Functions'!$B$3,'Utility Functions'!$B$4,'Utility Functions'!$B$5,'Utility Functions'!$B$6))","v":2.8175740811551258E-2},{"$f":"$C$40*(valueE(C34,'Utility Functions'!$D$3,'Utility Functions'!$D$4,'Utility Functions'!$D$5,'Utility Functions'!$D$6))","v":2.542345105018548E-2},{"$f":"$D$40*(valuePL(D34,'Utility Functions'!$E$3:$E$5,'Utility Functions'!$F$3:$F$5))","v":0.03},{"$f":"$E$40*(valuePL(E34,'Utility Functions'!$G$3:$G$5,'Utility Functions'!$H$3:$H$5))","v":1.4999999999999999E-2},{"$f":"$F$40*(valuePL(F34,'Utility Functions'!$I$3:$I$4,'Utility Functions'!$J$3:$J$5))","v":0},{"$f":"$G$40*(valueE(G34,'Utility Functions'!$L$3,'Utility Functions'!$L$4,'Utility Functions'!$L$5,'Utility Functions'!$L$6))","v":0},{"$f":"$H$40*(valueE(H34,'Utility Functions'!$N$3,'Utility Functions'!$N$4,'Utility Functions'!$N$5,'Utility Functions'!$N$6))","v":0},{"$f":"$I$40*valuePL(I34,'Utility Functions'!$O$3:$O$6,'Utility Functions'!$P$3:$P$6)","v":0},{"$f":"$J$40*valuePL(J34,'Utility Functions'!$Q$3:$Q$6,'Utility Functions'!$R$3:$R$6)","v":0},{"$f":"$K$40*(valuePL(K34,'Utility Functions'!$S$3:$S$7,'Utility Functions'!$T$3:$T$7))","v":0},{"$f":"$L$40*(valueE(L34,'Utility Functions'!$V$3,'Utility Functions'!$V$4,'Utility Functions'!$V$5,'Utility Functions'!$V$6))","v":0.01},{"$f":"$M$40*valuePL(M34,'Utility Functions'!$W$3:$W$6,'Utility Functions'!$X$3:$X$6)","v":0},{"$f":"$N$40*valueE(N34,'Utility Functions'!$Z$3,'Utility Functions'!$Z$4,'Utility Functions'!$Z$5,'Utility Functions'!$Z$6)","v":0},{"$f":"$O$40*valuePL(O34,'Utility Functions'!$AA$3:$AA$5,'Utility Functions'!$AB$3:$AB$5)","v":0},{"$f":"$P$40*valuePL(P34,'Utility Functions'!$AC$3:$AC$7,'Utility Functions'!$AD$3:$AD$7)","v":0.02},{"$f":"$Q$40*valuePL(Q34,'Utility Functions'!$AE$3:$AE$6,'Utility Functions'!$AF$3:$AF$6)","v":0},{"$f":"$R$40*valuePL(R34,'Utility Functions'!$AG$3:$AG$6,'Utility Functions'!$AH$3:$AH$6)","v":0.05},{"$f":"$S$40*valuePL(S34,'Utility Functions'!$AI$3:$AI$6,'Utility Functions'!$AJ$3:$AJ$6)","v":3.3000000000000002E-2},{"$f":"$T$40*valuePL(T34,'Utility Functions'!$AK$3:$AK$8,'Utility Functions'!$AL$3:$AL$8)","v":0},{"$f":"$U$40*valuePL(U34,'Utility Functions'!$AM$3:$AM$5,'Utility Functions'!$AN$3:$AN$5)","v":0},{"$f":"$V$40*valuePL(V34,'Utility Functions'!$AO$3:$AO$5,'Utility Functions'!$AP$3:$AP$5)","v":2.5000000000000001E-2},{"$f":"$W$40*valuePL(W34,'Utility Functions'!$AQ$3:$AQ$6,'Utility Functions'!$AR$3:$AR$6)","v":0.04},{"$f":"$X$40*valuePL(X34,'Utility Functions'!$AS$3:$AS$6,'Utility Functions'!$AT$3:$AT$6)","v":0},{"$f":"$Y$40*valuePL(Y34,'Utility Functions'!$AU$3:$AU$6,'Utility Functions'!$AV$3:$AV$6)","v":4.0000000000000008E-2},{"$f":"$Z$40*valuePL(Z34,'Utility Functions'!$AW$3:$AW$5,'Utility Functions'!$AX$3:$AX$5)","v":0.05},{"$f":"$AA$40*valuePL(AA34,'Utility Functions'!$AY$3:$AY$6,'Utility Functions'!$AZ$3:$AZ$6)","v":0.04},{"$f":"$AB$40*valuePL(AB34,'Utility Functions'!$BA$3:$BA$5,'Utility Functions'!$BB$3:$BB$5)","v":0},{"$f":"$AC$40*valuePL(AC34,'Utility Functions'!$BC$3:$BC$5,'Utility Functions'!$BD$3:$BD$5)","v":0},0.40659919186173665]
[34,{"$f":"$B$40*(valueE(B35,'Utility Functions'!$B$3,'Utility Functions'!$B$4,'Utility Functions'!$B$5,'Utility Functions'!$B$6))","v":0},{"$f":"$C$40*(valueE(C35,'Utility Functions'!$D$3,'Utility Functions'!$D$4,'Utility Functions'!$D$5,'Utility Functions'!$D$6))","v":0},{"$f":"$D$40*(valuePL(D35,'Utility Functions'!$E$3:$E$5,'Utility Functions'!$F$3:$F$5))","v":0},{"$f":"$E$40*(valuePL(E35,'Utility Functions'!$G$3:$G$5,'Utility Functions'!$H$3:$H$5))","v":0},{"$f":"$F$40*(valuePL(F35,'Utility Functions'!$I$3:$I$4,'Utility Functions'!$J$3:$J$5))","v":0},{"$f":"$G$40*(valueE(G35,'Utility Functions'!$L$3,'Utility Functions'!$L$4,'Utility Functions'!$L$5,'Utility Functions'!$L$6))","v":0},{"$f":"$H$40*(valueE(H35,'Utility Functions'!$N$3,'Utility Functions'!$N$4,'Utility Functions'!$N$5,'Utility Functions'!$N$6))","v":1.7077798861480075E-4},{"$f":"$I$40*valuePL(I35,'Utility Functions'!$O$3:$O$6,'Utility Functions'!$P$3:$P$6)","v":0.03},{"$f":"$J$40*valuePL(J35,'Utility Functions'!$Q$3:$Q$6,'Utility Functions'!$R$3:$R$6)","v":1.8363636363636363E-2},{"$f":"$K$40*(valuePL(K35,'Utility Functions'!$S$3:$S$7,'Utility Functions'!$T$3:$T$7))","v":0.02},{"$f":"$L$40*(valueE(L35,'Utility Functions'!$V$3,'Utility Functions'!$V$4,'Utility Functions'!$V$5,'Utility Functions'!$V$6))","v":0.02},{"$f":"$M$40*valuePL(M35,'Utility Functions'!$W$3:$W$6,'Utility Functions'!$X$3:$X$6)","v":1.8363636363636363E-2},{"$f":"$N$40*valueE(N35,'Utility Functions'!$Z$3,'Utility Functions'!$Z$4,'Utility Functions'!$Z$5,'Utility Functions'!$Z$6)","v":0},{"$f":"$O$40*valuePL(O35,'Utility Functions'!$AA$3:$AA$5,'Utility Functions'!$AB$3:$AB$5)","v":0},{"$f":"$P$40*valuePL(P35,'Utility Functions'!$AC$3:$AC$7,'Utility Functions'!$AD$3:$AD$7)","v":0.02},{"$f":"$Q$40*valuePL(Q35,'Utility Functions'!$AE$3:$AE$6,'Utility Functions'!$AF$3:$AF$6)","v":0},{"$f":"$R$40*valuePL(R35,'Utility Functions'!$AG$3:$AG$6,'Utility Functions'!$AH$3:$AH$6)","v":0.05},{"$f":"$S$40*valuePL(S35,'Utility Functions'!$AI$3:$AI$6,'Utility Functions'!$AJ$3:$AJ$6)","v":0.05},{"$f":"$T$40*valuePL(T35,'Utility Functions'!$AK$3:$AK$8,'Utility Functions'!$AL$3:$AL$8)","v":2.4E-2},{"$f":"$U$40*valuePL(U35,'Utility Functions'!$AM$3:$AM$5,'Utility Functions'!$AN$3:$AN$5)","v":0},{"$f":"$V$40*valuePL(V35,'Utility Functions'!$AO$3:$AO$5,'Utility Functions'!$AP$3:$AP$5)","v":0.05},{"$f":"$W$40*valuePL(W35,'Utility Functions'!$AQ$3:$AQ$6,'Utility Functions'!$AR$3:$AR$6)","v":0.04},{"$f":"$X$40*valuePL(X35,'Utility Functions'!$AS$3:$AS$6,'Utility Functions'!$AT$3:$AT$6)","v":0.04},{"$f":"$Y$40*valuePL(Y35,'Utility Functions'!$AU$3:$AU$6,'Utility Functions'!$AV$3:$AV$6)","v":0},{"$f":"$Z$40*valuePL(Z35,'Utility Functions'!$AW$3:$AW$5,'Utility Functions'!$AX$3:$AX$5)","v":0.05},{"$f":"$AA$40*valuePL(AA35,'Utility Functions'!$AY$3:$AY$6,'Utility Functions'!$AZ$3:$AZ$6)","v":3.5999999999999997E-2},{"$f":"$AB$40*valuePL(AB35,'Utility Functions'!$BA$3:$BA$5,'Utility Functions'!$BB$3:$BB$5)","v":0.01},{"$f":"$AC$40*valuePL(AC35,'Utility Functions'!$BC$3:$BC$5,'Utility Functions'!$BD$3:$BD$5)","v":0},0.47689805071588748]
[35,{"$f":"$B$40*(valueE(B36,'Utility Functions'!$B$3,'Utility Functions'!$B$4,'Utility Functions'!$B$5,'Utility Functions'!$B$6))","v":2.3943140737469053E-2},{"$f":"$C$40*(valueE(C36,'Utility Functions'!$D$3,'Utility Functions'!$D$4,'Utility Functions'!$D$5,'Utility Functions'!$D$6))","v":1.8281994940530583E-2},{"$f":"$D$40*(valuePL(D36,'Utility Functions'!$E$3:$E$5,'Utility Functions'!$F$3:$F$5))","v":1.4999999999999999E-2},{"$f":"$E$40*(valuePL(E36,'Utility Functions'!$G$3:$G$5,'Utility Functions'!$H$3:$H$5))","v":1.4999999999999999E-2},{"$f":"$F$40*(valuePL(F36,'Utility Functions'!$I$3:$I$4,'Utility Functions'!$J$3:$J$5))","v":0.04},{"$f":"$G$40*(valueE(G36,'Utility Functions'!$L$3,'Utility Functions'!$L$4,'Utility Functions'!$L$5,'Utility Functions'!$L$6))","v":0},{"$f":"$H$40*(valueE(H36,'Utility Functions'!$N$3,'Utility Functions'!$N$4,'Utility Functions'!$N$5,'Utility Functions'!$N$6))","v":0},{"$f":"$I$40*valuePL(I36,'Utility Functions'!$O$3:$O$6,'Utility Functions'!$P$3:$P$6)","v":0},{"$f":"$J$40*valuePL(J36,'Utility Functions'!$Q$3:$Q$6,'Utility Functions'!$R$3:$R$6)","v":0},{"$f":"$K$40*(valuePL(K36,'Utility Functions'!$S$3:$S$7,'Utility Functions'!$T$3:$T$7))","v":0.02},{"$f":"$L$40*(valueE(L36,'Utility Functions'!$V$3,'Utility Functions'!$V$4,'Utility Functions'!$V$5,'Utility Functions'!$V$6))","v":1.3333333333333332E-2},{"$f":"$M$40*valuePL(M36,'Utility Functions'!$W$3:$W$6,'Utility Functions'!$X$3:$X$6)","v":2E-3},{"$f":"$N$40*valueE(N36,'Utility Functions'!$Z$3,'Utility Functions'!$Z$4,'Utility Functions'!$Z$5,'Utility Functions'!$Z$6)","v":0.03},{"$f":"$O$40*valuePL(O36,'Utility Functions'!$AA$3:$AA$5,'Utility Functions'!$AB$3:$AB$5)","v":0},{"$f":"$P$40*valuePL(P36,'Utility Functions'!$AC$3:$AC$7,'Utility Functions'!$AD$3:$AD$7)","v":0},{"$f":"$Q$40*valuePL(Q36,'Utility Functions'!$AE$3:$AE$6,'Utility Functions'!$AF$3:$AF$6)","v":0},{"$f":"$R$40*valuePL(R36,'Utility Functions'!$AG$3:$AG$6,'Utility Functions'!$AH$3:$AH$6)","v":0.05},{"$f":"$S$40*valuePL(S36,'Utility Functions'!$AI$3:$AI$6,'Utility Functions'!$AJ$3:$AJ$6)","v":0.05},{"$f":"$T$40*valuePL(T36,'Utility Functions'!$AK$3:$AK$8,'Utility Functions'!$AL$3:$AL$8)","v":1.7999999999999999E-2},{"$f":"$U$40*valuePL(U36,'Utility Functions'!$AM$3:$AM$5,'Utility Functions'!$AN$3:$AN$5)","v":0},{"$f":"$V$40*valuePL(V36,'Utility Functions'!$AO$3:$AO$5,'Utility Functions'!$AP$3:$AP$5)","v":0.05},{"$f":"$W$40*valuePL(W36,'Utility Functions'!$AQ$3:$AQ$6,'Utility Functions'!$AR$3:$AR$6)","v":0.03},{"$f":"$X$40*valuePL(X36,'Utility Functions'!$AS$3:$AS$6,'Utility Functions'!$AT$3:$AT$6)","v":0},{"$f":"$Y$40*valuePL(Y36,'Utility Functions'!$AU$3:$AU$6,'Utility Functions'!$AV$3:$AV$6)","v":1.0000000000000002E-2},{"$f":"$Z$40*valuePL(Z36,'Utility Functions'!$AW$3:$AW$5,'Utility Functions'!$AX$3:$AX$5)","v":0.05},{"$f":"$AA$40*valuePL(AA36,'Utility Functions'!$AY$3:$AY$6,'Utility Functions'!$AZ$3:$AZ$6)","v":0},{"$f":"$AB$40*valuePL(AB36,'Utility Functions'!$BA$3:$BA$5,'Utility Functions'!$BB$3:$BB$5)","v":0.01},{"$f":"$AC$40*valuePL(AC36,'Utility Functions'!$BC$3:$BC$5,'Utility Functions'!$BD$3:$BD$5)","v":7.4999999999999997E-3},0.45305846901133295]
[null,{"$f":"B38","v":"manage_species"},{"$f":"C38","v":"manage_spatial"},"manage_uncertainty","manage_currentpractices","manage_adaptivemanagement","pop_a","pop_b","pop_spatialscope","pop_temporalscope","hab_quantity","hab_quality","hab_temporal","ecoprocess_spp","ecoprocess_uncertainty","datasharing","broaderimpacts","exisitingpriorities","partners","leverage","alignment","objhyp","response","targettaxa","surveydesign","stats","datamanagement","budget","timeline","total",null,"mgmt","status","ep","integration","rigor"]
[null,{"$f":"SUMPRODUCT($B$83:$B$117,B$43:B$77)","v":0.25924139296266424},0.22215643046397779,0.37500000000000011,0.105,0.08,3.5322580645161285E-2,2.3425047438330168E-2,6.4254545454545467E-2,2.4400000000000002E-2,1.3490909090909092E-2,5.333333333333333E-2,2.3599999999999999E-2,0.14249999999999999,0.13499999999999998,0.18,0.13600000000000001,0.6,0.59950000000000003,0.19800000000000001,2.2499999999999999E-2,0.39999999999999997,0.40400000000000003,0.44,0.44000000000000006,0.40000000000000008,0.23200000000000004,0.43999999999999995,0.20250000000000004,6.2512242393889226,null,{"$f":"SUM(B79:F79)","v":1.0413978234266421},{"$f":"SUM(G79:M79)","v":0.23782641596227933},{"$f":"SUM(N79:O79)","v":0.27749999999999997},{"$f":"SUM(P79:U79)","v":1.7359999999999998},{"$f":"SUM(V79:AC79)","v":2.9585000000000004}]
[]
[]
[null,"Decision variable","Benefit","Cost"]
[{"$f":"A2","v":1},1,{"$f":"AD43","v":0.62852931598576234},{"$f":"AD2","v":700000}]
[{"$f":"A3","v":2},0,{"$f":"AD44","v":0.53424877401727988},{"$f":"AD3","v":5400000}]
[3,1,0.45890624332907692,250000]
[4,1,0.37738087579326757,150000]
[5,1,0.37358983775406607,220000]
[6,1,0.21762541381415162,110000]
[7,0,0.55883167443779502,1000000]
[8,0,0.52659366793040296,5000000]
[9,1,0.45837563615750632,25000]
[10,0,0.42049999999999998,900000]
[11,0,0.48800366568914949,1500000]
[12,1,0.38158740731015961,100000]
[13,1,0.30547532344316031,250000]
[14,1,0.4311611991122532,500000]
[15,0,0.60971431784243146,800000]
[16,0,0.54339393939393943,2000000]
[17,0,0.40209196138985603,500000]
[{"$f":"A19","v":18},1,0.43942694497153706,300000]
[19,0,0.41549503742461386,750000]
[20,0,0.55885300951154004,1500000]
[21,0,0.42149999999999999,900000]
[22,0,0.44445113851992418,750000]
[23,0,0.37896452234436967,1000000]
[24,1,0.37890643564363613,150000]
[25,1,0.53254137243924626,250000]
[26,0,0.42942229688880618,500000]
[27,0,0.34094279014612355,1200000]
[28,1,0.49364512823846229,500000]
[{"$f":"A30","v":29},0,0.4451559901205534,2000000]
[30,1,0.28334935206828327,250000]
[31,0,0.35694663746011634,650000]
[32,1,0.49072375332835239,200000]
[{"$f":"A34","v":33},0,0.40659919186173665,400000]
[34,0,0.47689805071588748,900000]
[{"$f":"A36","v":35},0,0.45305846901133295,900000]
[null,{"$f":"SUM(B83:B117)","v":15},{"$f":"SUMPRODUCT(B83:B117,C83:C117)","v":6.2512242393889226},{"$f":"SUMPRODUCT(B83:B117,D83:D117)","v":3955000}]
[]
[null,null,"Cost constraint",4000000]

{"sheet":"Constraint_Scenario_2","index":14,"n_rows":120,"n_cols":40,"rows_kept":120,"cut":false,"hidden":false,"merged":[]}
["Project","manage_species","manage_spatial","manage_uncertainty","manage_currentpractices","manage_adaptivemanagement","pop_a","pop_b","pop_spatialscope","pop_temporalscope","hab_quantity","hab_quality","hab_temporal","ecoprocess_spp","ecoprocess_uncertainty","datasharing","broaderimpacts","exisitingpriorities","partners","leverage","alignment","objhyp","response","targettaxa","surveydesign","stats","datamanagement","budget","timeline","cost",null,"Project","title","states","taxa_groups","A_Marshbird_portfolio","B_Shorebird_portfolio","C_All_states_portfolio","D_No_proj_over_halfM","E_Texas_portfolio"]
[1,9,6.25,2,2,0,186,1054,75,5,0,2,0,0,0,4,0,2,3,0,0,2,3,3,3,2,3,2,2,700000,null,1,"NFWF-A","NA","Shorebirds",0,1,0,0,0]
[2,3,28.2,1,0,0,0,0,0,0,0,2,0,4,1,0,0,3,3,0,0,2,3,3,3,2,3,2,2,5400000,null,2,"NFWF-B","NA","NA",0,0,0,0,0]
[3,8,28.2,2,0,0,0,0,0,0,0,2,0,5,1,0,2,0,0,0,1,2,3,3,3,2,1,2,2,250000,null,3,"NFWF-C","NA","NA",0,0,0,1,0]
[4,1,6.25,2,0,0,0,0,0,0,0,2,0,4,1,0,1,3,3,4,0,1,3,3,1,0,0,2,1,150000,null,4,"NFWF-D","LA","Shorebirds",0,1,0,0,0]
[5,4,3.1,2,0,0,0,0,50,2,0,2,0,0,0,0,1,3,3,4,1,0,3,3,2,0,0,2,1,220000,null,5,"NFWF-E","MS,FL","Shorebirds",0,1,0,1,0]
[6,10,6.2E-2,2,0,0,0,0,10,2,0,2,0,0,0,0,1,0,3,3,0,0,0,3,0,0,0,2,1,110000,null,6,"NFWF-F","TX,LA","Shorebirds",0,1,0,0,1]
[7,52,18.8,0,2,0,0,0,85,12,85,8,12,8,1,0,0,3,3,0,0,2,0,1,3,2,2,0,2,1000000,null,7,"Omnibus Monitoring In Response to Sea Level Rise","All","All Minus Seabirds",0,0,1,0,0]
[8,3,18.8,2,1,1,0,0,14,14,14,8,14,0,0,0,3,1,3,0,0,2,3,3,3,2,0,1,1,5000000,null,8,"The effectiveness of island creation in Mobile Bay for island nesting species","AL","wading, Seabirds",0,0,0,0,0]
[9,9,15.6,2,1,0,70,140,0,0,0,2,0,0,0,3,0,3,2,1,0,2,3,3,1,2,1,1,2,25000,null,9,"the impact of wind development on migrating raptors in the GoM","All","Raptors",0,0,0,0,0]
[10,0,0,0,0,0,0,0,0,0,0,2,0,6,2,1,2,3,2,2,0,0,2,3,3,1,1,0,2,900000,null,10,"Do hurricanes impact survival of migratory/wintering waterfowl? Does stress/movement to avoid hurricanes impact migratory/wintering waterfowl survival?","Texas","Waterfowl",0,0,0,0,1]
[11,0,0,0,0,0,6,102,52,15,52,8,15,3,1,1,0,3,3,2,2,2,1,3,3,1,2,0,1,1500000,null,11,"How does increase in salinity impact habitat quality/quantity, and does it impact the population trend of wetland associated birds?","All","waterfowl, marshbirds, wadingbirds",0,0,1,0,0]
[12,2,15.6,2,1,0,0,0,0,0,0,2,0,0,0,0,1,3,3,3,0,1,1,3,1,2,1,2,0,100000,null,12,"The impact of rice agriculture on nesting King Rails and wintering Yellow Rails in Louisiana","LA","marshbird, landbird",1,0,0,0,0]
[13,0,0,0,0,0,0,12,39,2,39,8,2,7,1,1,0,3,3,0,0,1,0,1,0,2,1,1,1,250000,null,13,"How do hurricanes impact forage quality for nesting wadingbirds?","Fl, AL","Wading",0,0,0,1,0]
[14,6,15.6,1,1,0,0,0,0,0,0,2,0,6,1,1,0,3,3,0,0,1,1,3,3,1,2,1,1,500000,null,14,"How do hurriances impact forest management rotations, and nesting landbirds and raptors in those forests?","MS, AL","Landbird,Raptor",0,0,0,0,0]
[15,23,12.5,2,1,1,0,0,23,3,23,8,3,1,2,2,0,2,3,3,2,0,3,1,1,2,3,2,1,800000,null,15,"Using adaptive managgement to learn about how we should manage grasslands using prescribed fire in the face of climage change","All","Landbirds,Marshbird,Raptor",0,0,0,0,0]
[16,0,0,0,0,0,0,0,100,15,100,7,15,0,0,3,0,3,3,5,0,2,2,2,1,2,3,2,2,2000000,null,16,"Long-term monitoring of GoM raptors","All","Raptors",0,0,0,0,0]
[17,2,15.6,2,1,1,58,290,0,0,0,8,3,0,0,0,0,3,2,0,0,2,3,1,0,1,0,2,1,500000,null,17,"Learning more about how perscribed fire increases habitat quantity in forested systems through adapative management?","MS,AL","Landbirds",0,0,0,0,0]
[18,0,0,0,0,0,0,30,0,0,0,2,0,8,1,1,3,3,3,5,1,2,2,1,2,1,2,1,0,300000,null,18,"How do hurriances impact the survival of marshbirds","All","Marshbirds",1,0,0,1,0]
[19,8,3.125,1,2,0,0,0,0,0,0,2,0,8,2,0,0,2,3,0,0,1,1,3,2,0,1,0,1,750000,null,19,"How can prescribed fire be used to manage scrubland habitats for a greater diversity of migratory birds in the face of climate change?","ALl","Landbirds",0,0,0,0,0]
[20,9,15.6,1,2,0,0,435,76,10,76,6,10,8,2,1,0,3,3,3,2,1,0,0,1,2,1,0,1,1500000,null,20,"Comparison of the impacts of forested habitat cover change on population dynamics of long and short distance migrants","All","Landbirds",0,0,0,0,0]
[21,0,0,0,0,0,0,0,0,0,0,2,0,8,2,0,1,3,3,5,1,0,2,3,1,0,3,1,2,900000,null,21,"How do open ocean currents, surface temperature and seasonality impact seabird use off the GoM?","All","Seabirds",0,0,0,0,0]
[22,0,0,0,0,0,16,64,0,0,0,2,0,1,2,4,2,2,3,5,0,1,2,1,0,2,1,2,1,750000,null,22,"What has a larger impact on X seabird populations in the gulf, plastic consumption, accidental take, or weather patterns?","ALl","Seabirds",0,0,0,0,0]
[23,9,18.8,2,0,0,0,0,0,0,0,2,0,0,0,3,0,3,3,5,0,2,1,2,1,1,1,0,1,1000000,null,23,"How does water management, including the flooding of wetlands and cropfields, impact overwinter waterfowl surival?","All","Waterfowl",0,0,0,0,0]
[24,5,6.25,2,0,0,0,0,0,0,0,2,0,0,0,0,0,3,3,5,0,0,3,1,3,2,1,0,2,150000,null,24,"What kind of signage is most effective for decreasing human disturbance impacts on beach nesting birds?","All","Shorebirds",0,0,0,0,0]
[25,9,18.8,2,0,0,176,308,0,0,0,2,0,8,1,2,2,3,3,0,0,2,1,3,2,1,1,2,2,250000,null,25,"How does invasive species control impact marshbird use?","TX,LA,MS","Marshbirds",1,0,0,0,1]
[26,17,18.8,2,1,0,0,0,0,0,0,2,0,0,0,3,0,3,3,4,0,2,1,0,2,0,1,2,2,500000,null,26,"How does human disturbance impact the nest survival and fledging rate of nesting wading and marshbirds","Al,MS,FL","Marshbirds, Wadingbirds",0,0,0,0,0]
[27,0,6.25,2,0,0,0,0,0,0,80,2,5,0,0,2,2,3,3,5,0,1,2,3,1,0,0,0,0,1200000,null,27,"How does beach renourishment impact the invertebrate communities which are used by migratory and wintering shorebirds?","All","Shorebirds",0,1,0,0,0]
[28,3,6.25,2,0,1,0,0,0,0,0,4,5,0,0,4,0,3,3,4,0,2,3,3,1,0,2,2,1,500000,null,28,"Learning about how beach renourishment after oil contamination can increase habitat quantity for 3 declining shorebirds","LA","Shorebirds",0,0,0,0,0]
[29,9,12.5,2,1,0,0,0,15,12,15,8,12,0,0,1,0,3,3,4,0,2,1,0,2,1,1,1,2,2000000,null,29,"When restoring wetlands and grasslands, but unable to restore very large patches, is there an advantage to restoring the two habitat types near each other for species in each habitat type, versus cropfields","ALl","Marshbirds, Landbirds, Raptors",0,0,0,0,1]
[30,33,18.8,2,0,0,0,0,0,0,0,4,2,0,0,0,0,1,1,0,0,0,3,1,2,0,2,2,0,250000,null,30,"How does prescribed fire impact marshbird habitat quanitity?","LA","Marshbirds",1,0,0,0,0]
[31,4,18.8,1,0,0,0,0,65,4,0,4,4,0,0,2,0,3,2,3,0,1,0,1,1,2,2,1,1,650000,null,31,"How does fresh water management impact the quantity of wetland habitat available to wintering marshbirds?","TX,LA,MS","Marshbirds",1,0,0,0,1]
[32,5,3.125,2,2,1,6,102,40,16,40,8,16,0,0,2,3,3,0,4,0,0,2,1,2,1,0,2,1,200000,null,32,"Learning about how management of scrub shrub succession impacts habitat quantity and quantity as well as population trends for migratory landbirds through adpative management","FL, Al","Landbirds",0,0,0,0,0]
[33,14,18.8,2,1,0,0,0,0,0,0,5,0,0,0,2,0,3,2,0,0,1,3,0,2,2,3,0,0,400000,null,33,"The impacts of offshore oil development on wintering seabirds and lesser scaup","All","Seabirds, Waterfowl",0,0,1,1,0]
[34,0,0,0,0,0,0,12,100,15,100,8,15,0,0,2,0,3,3,4,0,2,3,3,0,2,2,1,0,900000,null,34,"long-term monitoring of the reddish egret","All","Wading",0,0,1,0,0]
[35,8,9.4,1,1,1,0,0,0,0,100,6,5,8,0,0,0,3,3,3,0,2,2,0,1,2,0,1,1,900000,null,35,"The impacts of sealevel rise and stormwater management on the habitat quantity , food resources and use by wadingbirds","All","Wading",0,0,1,0,0]
[]
[null,{"$f":"B1","v":"manage_species"},{"$f":"C1","v":"manage_spatial"},"manage_uncertainty","manage_currentpractices","manage_adaptivemanagement","pop_a","pop_b","pop_spatialscope","pop_temporalscope","hab_quantity","hab_quality","hab_temporal","ecoprocess_spp","ecoprocess_uncertainty","datasharing","broaderimpacts","exisitingpriorities","partners","leverage","alignment","objhyp","response","targettaxa","surveydesign","stats","datamanagement","budget","timeline"]
[null,"Metric 1","Metric 2","Metric 3","Metric 4","Metric 5","Metric 6a","Metric 6b","Metric 7","Metric 8","Metric 9","Metric 10","Metric 11","Metric 12","Metric 13","Metric 14","Metric 15","Metric 16","Metric 17","Metric 18","Metric 19","Metric 20","Metric 21","Metric 22","Metric 23","Metric 24","Metric 25","Metric 26","Metric 27"]
["Weights",0.03,0.03,0.03,0.03,0.04,1.4999999999999999E-2,1.4999999999999999E-2,0.03,0.02,0.02,0.02,0.02,0.03,0.09,0.04,0.04,0.05,0.05,0.03,0.03,0.05,0.04,0.04,0.05,0.05,0.04,0.04,0.03]
[]
["Project",null,null,null,null,null,null,null,null,null,null,null,null,null,null,null,null,null,null,null,null,null,null,null,null,null,null,null,null,"total"]
[{"$f":"A2","v":1},{"$f":"$B$40*(valueE(B2,'Utility Functions'!$B$3,'Utility Functions'!$B$4,'Utility Functions'!$B$5,'Utility Functions'!$B$6))","v":2.5041071294184137E-2},{"$f":"$C$40*(valueE(C2,'Utility Functions'!$D$3,'Utility Functions'!$D$4,'Utility Functions'!$D$5,'Utility Functions'!$D$6))","v":1.3942790146123618E-2},{"$f":"$D$40*(valuePL(D2,'Utility Functions'!$E$3:$E$5,'Utility Functions'!$F$3:$F$5))","v":0.03},{"$f":"$E$40*(valuePL(E2,'Utility Functions'!$G$3:$G$5,'Utility Functions'!$H$3:$H$5))","v":0.03},{"$f":"$F$40*(valuePL(F2,'Utility Functions'!$I$3:$I$4,'Utility Functions'!$J$3:$J$5))","v":0},{"$f":"$G$40*(valueE(G2,'Utility Functions'!$L$3,'Utility Functions'!$L$4,'Utility Functions'!$L$5,'Utility Functions'!$L$6))","v":1.4999999999999999E-2},{"$f":"$H$40*(valueE(H2,'Utility Functions'!$N$3,'Utility Functions'!$N$4,'Utility Functions'!$N$5,'Utility Functions'!$N$6))","v":1.4999999999999999E-2},{"$f":"$I$40*valuePL(I2,'Utility Functions'!$O$3:$O$6,'Utility Functions'!$P$3:$P$6)","v":2.7545454545454547E-2},{"$f":"$J$40*valuePL(J2,'Utility Functions'!$Q$3:$Q$6,'Utility Functions'!$R$3:$R$6)","v":2E-3},{"$f":"$K$40*(valuePL(K2,'Utility Functions'!$S$3:$S$7,'Utility Functions'!$T$3:$T$7))","v":0},{"$f":"$L$40*(valueE(L2,'Utility Functions'!$V$3,'Utility Functions'!$V$4,'Utility Functions'!$V$5,'Utility Functions'!$V$6))","v":0},{"$f":"$M$40*valuePL(M2,'Utility Functions'!$W$3:$W$6,'Utility Functions'!$X$3:$X$6)","v":0},{"$f":"$N$40*valueE(N2,'Utility Functions'!$Z$3,'Utility Functions'!$Z$4,'Utility Functions'!$Z$5,'Utility Functions'!$Z$6)","v":0},{"$f":"$O$40*valuePL(O2,'Utility Functions'!$AA$3:$AA$5,'Utility Functions'!$AB$3:$AB$5)","v":0},{"$f":"$P$40*valuePL(P2,'Utility Functions'!$AC$3:$AC$7,'Utility Functions'!$AD$3:$AD$7)","v":0.04},{"$f":"$Q$40*valuePL(Q2,'Utility Functions'!$AE$3:$AE$6,'Utility Functions'!$AF$3:$AF$6)","v":0},{"$f":"$R$40*valuePL(R2,'Utility Functions'!$AG$3:$AG$6,'Utility Functions'!$AH$3:$AH$6)","v":4.0000000000000008E-2},{"$f":"$S$40*valuePL(S2,'Utility Functions'!$AI$3:$AI$6,'Utility Functions'!$AJ$3:$AJ$6)","v":0.05},{"$f":"$T$40*valuePL(T2,'Utility Functions'!$AK$3:$AK$8,'Utility Functions'!$AL$3:$AL$8)","v":0},{"$f":"$U$40*valuePL(U2,'Utility Functions'!$AM$3:$AM$5,'Utility Functions'!$AN$3:$AN$5)","v":0},{"$f":"$V$40*valuePL(V2,'Utility Functions'!$AO$3:$AO$5,'Utility Functions'!$AP$3:$AP$5)","v":0.05},{"$f":"$W$40*valuePL(W2,'Utility Functions'!$AQ$3:$AQ$6,'Utility Functions'!$AR$3:$AR$6)","v":0.04},{"$f":"$X$40*valuePL(X2,'Utility Functions'!$AS$3:$AS$6,'Utility Functions'!$AT$3:$AT$6)","v":0.04},{"$f":"$Y$40*valuePL(Y2,'Utility Functions'!$AU$3:$AU$6,'Utility Functions'!$AV$3:$AV$6)","v":0.05},{"$f":"$Z$40*valuePL(Z2,'Utility Functions'!$AW$3:$AW$5,'Utility Functions'!$AX$3:$AX$5)","v":0.05},{"$f":"$AA$40*valuePL(AA2,'Utility Functions'!$AY$3:$AY$6,'Utility Functions'!$AZ$3:$AZ$6)","v":0.04},{"$f":"$AB$40*valuePL(AB2,'Utility Functions'!$BA$3:$BA$5,'Utility Functions'!$BB$3:$BB$5)","v":0.04},{"$f":"$AC$40*valuePL(AC2,'Utility Functions'!$BC$3:$BC$5,'Utility Functions'!$BD$3:$BD$5)","v":0.03},{"$f":"SUM(B43:AC43)","v":0.62852931598576234}]
[{"$f":"A3","v":2},{"$f":"$B$40*(valueE(B3,'Utility Functions'!$B$3,'Utility Functions'!$B$4,'Utility Functions'!$B$5,'Utility Functions'!$B$6))","v":1.3535671425672068E-2},{"$f":"$C$40*(valueE(C3,'Utility Functions'!$D$3,'Utility Functions'!$D$4,'Utility Functions'!$D$5,'Utility Functions'!$D$6))","v":2.8213102591607857E-2},{"$f":"$D$40*(valuePL(D3,'Utility Functions'!$E$3:$E$5,'Utility Functions'!$F$3:$F$5))","v":1.4999999999999999E-2},{"$f":"$E$40*(valuePL(E3,'Utility Functions'!$G$3:$G$5,'Utility Functions'!$H$3:$H$5))","v":0},{"$f":"$F$40*(valuePL(F3,'Utility Functions'!$I$3:$I$4,'Utility Functions'!$J$3:$J$5))","v":0},{"$f":"$G$40*(valueE(G3,'Utility Functions'!$L$3,'Utility Functions'!$L$4,'Utility Functions'!$L$5,'Utility Functions'!$L$6))","v":0},{"$f":"$H$40*(valueE(H3,'Utility Functions'!$N$3,'Utility Functions'!$N$4,'Utility Functions'!$N$5,'Utility Functions'!$N$6))","v":0},{"$f":"$I$40*valuePL(I3,'Utility Functions'!$O$3:$O$6,'Utility Functions'!$P$3:$P$6)","v":0},{"$f":"$J$40*valuePL(J3,'Utility Functions'!$Q$3:$Q$6,'Utility Functions'!$R$3:$R$6)","v":0},{"$f":"$K$40*(valuePL(K3,'Utility Functions'!$S$3:$S$7,'Utility Functions'!$T$3:$T$7))","v":0},{"$f":"$L$40*(valueE(L3,'Utility Functions'!$V$3,'Utility Functions'!$V$4,'Utility Functions'!$V$5,'Utility Functions'!$V$6))","v":0},{"$f":"$M$40*valuePL(M3,'Utility Functions'!$W$3:$W$6,'Utility Functions'!$X$3:$X$6)","v":0},{"$f":"$N$40*valueE(N3,'Utility Functions'!$Z$3,'Utility Functions'!$Z$4,'Utility Functions'!$Z$5,'Utility Functions'!$Z$6)","v":1.4999999999999999E-2},{"$f":"$O$40*valuePL(O3,'Utility Functions'!$AA$3:$AA$5,'Utility Functions'!$AB$3:$AB$5)","v":2.2499999999999999E-2},{"$f":"$P$40*valuePL(P3,'Utility Functions'!$AC$3:$AC$7,'Utility Functions'!$AD$3:$AD$7)","v":0},{"$f":"$Q$40*valuePL(Q3,'Utility Functions'!$AE$3:$AE$6,'Utility Functions'!$AF$3:$AF$6)","v":0},{"$f":"$R$40*valuePL(R3,'Utility Functions'!$AG$3:$AG$6,'Utility Functions'!$AH$3:$AH$6)","v":0.05},{"$f":"$S$40*valuePL(S3,'Utility Functions'!$AI$3:$AI$6,'Utility Functions'!$AJ$3:$AJ$6)","v":0.05},{"$f":"$T$40*valuePL(T3,'Utility Functions'!$AK$3:$AK$8,'Utility Functions'!$AL$3:$AL$8)","v":0},{"$f":"$U$40*valuePL(U3,'Utility Functions'!$AM$3:$AM$5,'Utility Functions'!$AN$3:$AN$5)","v":0},{"$f":"$V$40*valuePL(V3,'Utility Functions'!$AO$3:$AO$5,'Utility Functions'!$AP$3:$AP$5)","v":0.05},{"$f":"$W$40*valuePL(W3,'Utility Functions'!$AQ$3:$AQ$6,'Utility Functions'!$AR$3:$AR$6)","v":0.04},{"$f":"$X$40*valuePL(X3,'Utility Functions'!$AS$3:$AS$6,'Utility Functions'!$AT$3:$AT$6)","v":0.04},{"$f":"$Y$40*valuePL(Y3,'Utility Functions'!$AU$3:$AU$6,'Utility Functions'!$AV$3:$AV$6)","v":0.05},{"$f":"$Z$40*valuePL(Z3,'Utility Functions'!$AW$3:$AW$5,'Utility Functions'!$AX$3:$AX$5)","v":0.05},{"$f":"$AA$40*valuePL(AA3,'Utility Functions'!$AY$3:$AY$6,'Utility Functions'!$AZ$3:$AZ$6)","v":0.04},{"$f":"$AB$40*valuePL(AB3,'Utility Functions'!$BA$3:$BA$5,'Utility Functions'!$BB$3:$BB$5)","v":0.04},{"$f":"$AC$40*valuePL(AC3,'Utility Functions'!$BC$3:$BC$5,'Utility Functions'!$BD$3:$BD$5)","v":0.03},{"$f":"SUM(B44:AC44)","v":0.53424877401727988}]
[3,{"$f":"$B$40*(valueE(B4,'Utility Functions'!$B$3,'Utility Functions'!$B$4,'Utility Functions'!$B$5,'Utility Functions'!$B$6))","v":2.3943140737469053E-2},{"$f":"$C$40*(valueE(C4,'Utility Functions'!$D$3,'Utility Functions'!$D$4,'Utility Functions'!$D$5,'Utility Functions'!$D$6))","v":2.8213102591607857E-2},{"$f":"$D$40*(valuePL(D4,'Utility Functions'!$E$3:$E$5,'Utility Functions'!$F$3:$F$5))","v":0.03},{"$f":"$E$40*(valuePL(E4,'Utility Functions'!$G$3:$G$5,'Utility Functions'!$H$3:$H$5))","v":0},{"$f":"$F$40*(valuePL(F4,'Utility Functions'!$I$3:$I$4,'Utility Functions'!$J$3:$J$5))","v":0},{"$f":"$G$40*(valueE(G4,'Utility Functions'!$L$3,'Utility Functions'!$L$4,'Utility Functions'!$L$5,'Utility Functions'!$L$6))","v":0},{"$f":"$H$40*(valueE(H4,'Utility Functions'!$N$3,'Utility Functions'!$N$4,'Utility Functions'!$N$5,'Utility Functions'!$N$6))","v":0},{"$f":"$I$40*valuePL(I4,'Utility Functions'!$O$3:$O$6,'Utility Functions'!$P$3:$P$6)","v":0},{"$f":"$J$40*valuePL(J4,'Utility Functions'!$Q$3:$Q$6,'Utility Functions'!$R$3:$R$6)","v":0},{"$f":"$K$40*(valuePL(K4,'Utility Functions'!$S$3:$S$7,'Utility Functions'!$T$3:$T$7))","v":0},{"$f":"$L$40*(valueE(L4,'Utility Functions'!$V$3,'Utility Functions'!$V$4,'Utility Functions'!$V$5,'Utility Functions'!$V$6))","v":0},{"$f":"$M$40*valuePL(M4,'Utility Functions'!$W$3:$W$6,'Utility Functions'!$X$3:$X$6)","v":0},{"$f":"$N$40*valueE(N4,'Utility Functions'!$Z$3,'Utility Functions'!$Z$4,'Utility Functions'!$Z$5,'Utility Functions'!$Z$6)","v":1.8749999999999999E-2},{"$f":"$O$40*valuePL(O4,'Utility Functions'!$AA$3:$AA$5,'Utility Functions'!$AB$3:$AB$5)","v":2.2499999999999999E-2},{"$f":"$P$40*valuePL(P4,'Utility Functions'!$AC$3:$AC$7,'Utility Functions'!$AD$3:$AD$7)","v":0},{"$f":"$Q$40*valuePL(Q4,'Utility Functions'!$AE$3:$AE$6,'Utility Functions'!$AF$3:$AF$6)","v":0.02},{"$f":"$R$40*valuePL(R4,'Utility Functions'!$AG$3:$AG$6,'Utility Functions'!$AH$3:$AH$6)","v":0},{"$f":"$S$40*valuePL(S4,'Utility Functions'!$AI$3:$AI$6,'Utility Functions'!$AJ$3:$AJ$6)","v":0},{"$f":"$T$40*valuePL(T4,'Utility Functions'!$AK$3:$AK$8,'Utility Functions'!$AL$3:$AL$8)","v":0},{"$f":"$U$40*valuePL(U4,'Utility Functions'!$AM$3:$AM$5,'Utility Functions'!$AN$3:$AN$5)","v":7.4999999999999997E-3},{"$f":"$V$40*valuePL(V4,'Utility Functions'!$AO$3:$AO$5,'Utility Functions'!$AP$3:$AP$5)","v":0.05},{"$f":"$W$40*valuePL(W4,'Utility Functions'!$AQ$3:$AQ$6,'Utility Functions'!$AR$3:$AR$6)","v":0.04},{"$f":"$X$40*valuePL(X4,'Utility Functions'!$AS$3:$AS$6,'Utility Functions'!$AT$3:$AT$6)","v":0.04},{"$f":"$Y$40*valuePL(Y4,'Utility Functions'!$AU$3:$AU$6,'Utility Functions'!$AV$3:$AV$6)","v":0.05},{"$f":"$Z$40*valuePL(Z4,'Utility Functions'!$AW$3:$AW$5,'Utility Functions'!$AX$3:$AX$5)","v":0.05},{"$f":"$AA$40*valuePL(AA4,'Utility Functions'!$AY$3:$AY$6,'Utility Functions'!$AZ$3:$AZ$6)","v":8.0000000000000002E-3},{"$f":"$AB$40*valuePL(AB4,'Utility Functions'!$BA$3:$BA$5,'Utility Functions'!$BB$3:$BB$5)","v":0.04},{"$f":"$AC$40*valuePL(AC4,'Utility Functions'!$BC$3:$BC$5,'Utility Functions'!$BD$3:$BD$5)","v":0.03},0.45890624332907692]
[4,{"$f":"$B$40*(valueE(B5,'Utility Functions'!$B$3,'Utility Functions'!$B$4,'Utility Functions'!$B$5,'Utility Functions'!$B$6))","v":5.4380856471439951E-3},{"$f":"$C$40*(valueE(C5,'Utility Functions'!$D$3,'Utility Functions'!$D$4,'Utility Functions'!$D$5,'Utility Functions'!$D$6))","v":1.3942790146123618E-2},{"$f":"$D$40*(valuePL(D5,'Utility Functions'!$E$3:$E$5,'Utility Functions'!$F$3:$F$5))","v":0.03},{"$f":"$E$40*(valuePL(E5,'Utility Functions'!$G$3:$G$5,'Utility Functions'!$H$3:$H$5))","v":0},{"$f":"$F$40*(valuePL(F5,'Utility Functions'!$I$3:$I$4,'Utility Functions'!$J$3:$J$5))","v":0},{"$f":"$G$40*(valueE(G5,'Utility Functions'!$L$3,'Utility Functions'!$L$4,'Utility Functions'!$L$5,'Utility Functions'!$L$6))","v":0},{"$f":"$H$40*(valueE(H5,'Utility Functions'!$N$3,'Utility Functions'!$N$4,'Utility Functions'!$N$5,'Utility Functions'!$N$6))","v":0},{"$f":"$I$40*valuePL(I5,'Utility Functions'!$O$3:$O$6,'Utility Functions'!$P$3:$P$6)","v":0},{"$f":"$J$40*valuePL(J5,'Utility Functions'!$Q$3:$Q$6,'Utility Functions'!$R$3:$R$6)","v":0},{"$f":"$K$40*(valuePL(K5,'Utility Functions'!$S$3:$S$7,'Utility Functions'!$T$3:$T$7))","v":0},{"$f":"$L$40*(valueE(L5,'Utility Functions'!$V$3,'Utility Functions'!$V$4,'Utility Functions'!$V$5,'Utility Functions'!$V$6))","v":0},{"$f":"$M$40*valuePL(M5,'Utility Functions'!$W$3:$W$6,'Utility Functions'!$X$3:$X$6)","v":0},{"$f":"$N$40*valueE(N5,'Utility Functions'!$Z$3,'Utility Functions'!$Z$4,'Utility Functions'!$Z$5,'Utility Functions'!$Z$6)","v":1.4999999999999999E-2},{"$f":"$O$40*valuePL(O5,'Utility Functions'!$AA$3:$AA$5,'Utility Functions'!$AB$3:$AB$5)","v":2.2499999999999999E-2},{"$f":"$P$40*valuePL(P5,'Utility Functions'!$AC$3:$AC$7,'Utility Functions'!$AD$3:$AD$7)","v":0},{"$f":"$Q$40*valuePL(Q5,'Utility Functions'!$AE$3:$AE$6,'Utility Functions'!$AF$3:$AF$6)","v":4.0000000000000001E-3},{"$f":"$R$40*valuePL(R5,'Utility Functions'!$AG$3:$AG$6,'Utility Functions'!$AH$3:$AH$6)","v":0.05},{"$f":"$S$40*valuePL(S5,'Utility Functions'!$AI$3:$AI$6,'Utility Functions'!$AJ$3:$AJ$6)","v":0.05},{"$f":"$T$40*valuePL(T5,'Utility Functions'!$AK$3:$AK$8,'Utility Functions'!$AL$3:$AL$8)","v":2.4E-2},{"$f":"$U$40*valuePL(U5,'Utility Functions'!$AM$3:$AM$5,'Utility Functions'!$AN$3:$AN$5)","v":0},{"$f":"$V$40*valuePL(V5,'Utility Functions'!$AO$3:$AO$5,'Utility Functions'!$AP$3:$AP$5)","v":2.5000000000000001E-2},{"$f":"$W$40*valuePL(W5,'Utility Functions'!$AQ$3:$AQ$6,'Utility Functions'!$AR$3:$AR$6)","v":0.04},{"$f":"$X$40*valuePL(X5,'Utility Functions'!$AS$3:$AS$6,'Utility Functions'!$AT$3:$AT$6)","v":0.04},{"$f":"$Y$40*valuePL(Y5,'Utility Functions'!$AU$3:$AU$6,'Utility Functions'!$AV$3:$AV$6)","v":1.0000000000000002E-2},{"$f":"$Z$40*valuePL(Z5,'Utility Functions'!$AW$3:$AW$5,'Utility Functions'!$AX$3:$AX$5)","v":0},{"$f":"$AA$40*valuePL(AA5,'Utility Functions'!$AY$3:$AY$6,'Utility Functions'!$AZ$3:$AZ$6)","v":0},{"$f":"$AB$40*valuePL(AB5,'Utility Functions'!$BA$3:$BA$5,'Utility Functions'!$BB$3:$BB$5)","v":0.04},{"$f":"$AC$40*valuePL(AC5,'Utility Functions'!$BC$3:$BC$5,'Utility Functions'!$BD$3:$BD$5)","v":7.4999999999999997E-3},0.37738087579326757]
[5,{"$f":"$B$40*(valueE(B6,'Utility Functions'!$B$3,'Utility Functions'!$B$4,'Utility Functions'!$B$5,'Utility Functions'!$B$6))","v":1.6520156106900608E-2},{"$f":"$C$40*(valueE(C6,'Utility Functions'!$D$3,'Utility Functions'!$D$4,'Utility Functions'!$D$5,'Utility Functions'!$D$6))","v":7.9969543744382362E-3},{"$f":"$D$40*(valuePL(D6,'Utility Functions'!$E$3:$E$5,'Utility Functions'!$F$3:$F$5))","v":0.03},{"$f":"$E$40*(valuePL(E6,'Utility Functions'!$G$3:$G$5,'Utility Functions'!$H$3:$H$5))","v":0},{"$f":"$F$40*(valuePL(F6,'Utility Functions'!$I$3:$I$4,'Utility Functions'!$J$3:$J$5))","v":0},{"$f":"$G$40*(valueE(G6,'Utility Functions'!$L$3,'Utility Functions'!$L$4,'Utility Functions'!$L$5,'Utility Functions'!$L$6))","v":0},{"$f":"$H$40*(valueE(H6,'Utility Functions'!$N$3,'Utility Functions'!$N$4,'Utility Functions'!$N$5,'Utility Functions'!$N$6))","v":0},{"$f":"$I$40*valuePL(I6,'Utility Functions'!$O$3:$O$6,'Utility Functions'!$P$3:$P$6)","v":1.5272727272727275E-2},{"$f":"$J$40*valuePL(J6,'Utility Functions'!$Q$3:$Q$6,'Utility Functions'!$R$3:$R$6)","v":8.0000000000000004E-4},{"$f":"$K$40*(valuePL(K6,'Utility Functions'!$S$3:$S$7,'Utility Functions'!$T$3:$T$7))","v":0},{"$f":"$L$40*(valueE(L6,'Utility Functions'!$V$3,'Utility Functions'!$V$4,'Utility Functions'!$V$5,'Utility Functions'!$V$6))","v":0},{"$f":"$M$40*valuePL(M6,'Utility Functions'!$W$3:$W$6,'Utility Functions'!$X$3:$X$6)","v":0},{"$f":"$N$40*valueE(N6,'Utility Functions'!$Z$3,'Utility Functions'!$Z$4,'Utility Functions'!$Z$5,'Utility Functions'!$Z$6)","v":0},{"$f":"$O$40*valuePL(O6,'Utility Functions'!$AA$3:$AA$5,'Utility Functions'!$AB$3:$AB$5)","v":0},{"$f":"$P$40*valuePL(P6,'Utility Functions'!$AC$3:$AC$7,'Utility Functions'!$AD$3:$AD$7)","v":0},{"$f":"$Q$40*valuePL(Q6,'Utility Functions'!$AE$3:$AE$6,'Utility Functions'!$AF$3:$AF$6)","v":4.0000000000000001E-3},{"$f":"$R$40*valuePL(R6,'Utility Functions'!$AG$3:$AG$6,'Utility Functions'!$AH$3:$AH$6)","v":0.05},{"$f":"$S$40*valuePL(S6,'Utility Functions'!$AI$3:$AI$6,'Utility Functions'!$AJ$3:$AJ$6)","v":0.05},{"$f":"$T$40*valuePL(T6,'Utility Functions'!$AK$3:$AK$8,'Utility Functions'!$AL$3:$AL$8)","v":2.4E-2},{"$f":"$U$40*valuePL(U6,'Utility Functions'!$AM$3:$AM$5,'Utility Functions'!$AN$3:$AN$5)","v":7.4999999999999997E-3},{"$f":"$V$40*valuePL(V6,'Utility Functions'!$AO$3:$AO$5,'Utility Functions'!$AP$3:$AP$5)","v":0},{"$f":"$W$40*valuePL(W6,'Utility Functions'!$AQ$3:$AQ$6,'Utility Functions'!$AR$3:$AR$6)","v":0.04},{"$f":"$X$40*valuePL(X6,'Utility Functions'!$AS$3:$AS$6,'Utility Functions'!$AT$3:$AT$6)","v":0.04},{"$f":"$Y$40*valuePL(Y6,'Utility Functions'!$AU$3:$AU$6,'Utility Functions'!$AV$3:$AV$6)","v":4.0000000000000008E-2},{"$f":"$Z$40*valuePL(Z6,'Utility Functions'!$AW$3:$AW$5,'Utility Functions'!$AX$3:$AX$5)","v":0},{"$f":"$AA$40*valuePL(AA6,'Utility Functions'!$AY$3:$AY$6,'Utility Functions'!$AZ$3:$AZ$6)","v":0},{"$f":"$AB$40*valuePL(AB6,'Utility Functions'!$BA$3:$BA$5,'Utility Functions'!$BB$3:$BB$5)","v":0.04},{"$f":"$AC$40*valuePL(AC6,'Utility Functions'!$BC$3:$BC$5,'Utility Functions'!$BD$3:$BD$5)","v":7.4999999999999997E-3},0.37358983775406607]
[6,{"$f":"$B$40*(valueE(B7,'Utility Functions'!$B$3,'Utility Functions'!$B$4,'Utility Functions'!$B$5,'Utility Functions'!$B$6))","v":2.5939980805710805E-2},{"$f":"$C$40*(valueE(C7,'Utility Functions'!$D$3,'Utility Functions'!$D$4,'Utility Functions'!$D$5,'Utility Functions'!$D$6))","v":1.8543300844080441E-4},{"$f":"$D$40*(valuePL(D7,'Utility Functions'!$E$3:$E$5,'Utility Functions'!$F$3:$F$5))","v":0.03},{"$f":"$E$40*(valuePL(E7,'Utility Functions'!$G$3:$G$5,'Utility Functions'!$H$3:$H$5))","v":0},{"$f":"$F$40*(valuePL(F7,'Utility Functions'!$I$3:$I$4,'Utility Functions'!$J$3:$J$5))","v":0},{"$f":"$G$40*(valueE(G7,'Utility Functions'!$L$3,'Utility Functions'!$L$4,'Utility Functions'!$L$5,'Utility Functions'!$L$6))","v":0},{"$f":"$H$40*(valueE(H7,'Utility Functions'!$N$3,'Utility Functions'!$N$4,'Utility Functions'!$N$5,'Utility Functions'!$N$6))","v":0},{"$f":"$I$40*valuePL(I7,'Utility Functions'!$O$3:$O$6,'Utility Functions'!$P$3:$P$6)","v":1.1999999999999999E-3},{"$f":"$J$40*valuePL(J7,'Utility Functions'!$Q$3:$Q$6,'Utility Functions'!$R$3:$R$6)","v":8.0000000000000004E-4},{"$f":"$K$40*(valuePL(K7,'Utility Functions'!$S$3:$S$7,'Utility Functions'!$T$3:$T$7))","v":0},{"$f":"$L$40*(valueE(L7,'Utility Functions'!$V$3,'Utility Functions'!$V$4,'Utility Functions'!$V$5,'Utility Functions'!$V$6))","v":0},{"$f":"$M$40*valuePL(M7,'Utility Functions'!$W$3:$W$6,'Utility Functions'!$X$3:$X$6)","v":0},{"$f":"$N$40*valueE(N7,'Utility Functions'!$Z$3,'Utility Functions'!$Z$4,'Utility Functions'!$Z$5,'Utility Functions'!$Z$6)","v":0},{"$f":"$O$40*valuePL(O7,'Utility Functions'!$AA$3:$AA$5,'Utility Functions'!$AB$3:$AB$5)","v":0},{"$f":"$P$40*valuePL(P7,'Utility Functions'!$AC$3:$AC$7,'Utility Functions'!$AD$3:$AD$7)","v":0},{"$f":"$Q$40*valuePL(Q7,'Utility Functions'!$AE$3:$AE$6,'Utility Functions'!$AF$3:$AF$6)","v":4.0000000000000001E-3},{"$f":"$R$40*valuePL(R7,'Utility Functions'!$AG$3:$AG$6,'Utility Functions'!$AH$3:$AH$6)","v":0},{"$f":"$S$40*valuePL(S7,'Utility Functions'!$AI$3:$AI$6,'Utility Functions'!$AJ$3:$AJ$6)","v":0.05},{"$f":"$T$40*valuePL(T7,'Utility Functions'!$AK$3:$AK$8,'Utility Functions'!$AL$3:$AL$8)","v":1.7999999999999999E-2},{"$f":"$U$40*valuePL(U7,'Utility Functions'!$AM$3:$AM$5,'Utility Functions'!$AN$3:$AN$5)","v":0},{"$f":"$V$40*valuePL(V7,'Utility Functions'!$AO$3:$AO$5,'Utility Functions'!$AP$3:$AP$5)","v":0},{"$f":"$W$40*valuePL(W7,'Utility Functions'!$AQ$3:$AQ$6,'Utility Functions'!$AR$3:$AR$6)","v":0},{"$f":"$X$40*valuePL(X7,'Utility Functions'!$AS$3:$AS$6,'Utility Functions'!$AT$3:$AT$6)","v":0.04},{"$f":"$Y$40*valuePL(Y7,'Utility Functions'!$AU$3:$AU$6,'Utility Functions'!$AV$3:$AV$6)","v":0},{"$f":"$Z$40*valuePL(Z7,'Utility Functions'!$AW$3:$AW$5,'Utility Functions'!$AX$3:$AX$5)","v":0},{"$f":"$AA$40*valuePL(AA7,'Utility Functions'!$AY$3:$AY$6,'Utility Functions'!$AZ$3:$AZ$6)","v":0},{"$f":"$AB$40*valuePL(AB7,'Utility Functions'!$BA$3:$BA$5,'Utility Functions'!$BB$3:$BB$5)","v":0.04},{"$f":"$AC$40*valuePL(AC7,'Utility Functions'!$BC$3:$BC$5,'Utility Functions'!$BD$3:$BD$5)","v":7.4999999999999997E-3},0.21762541381415162]
[7,{"$f":"$B$40*(valueE(B8,'Utility Functions'!$B$3,'Utility Functions'!$B$4,'Utility Functions'!$B$5,'Utility Functions'!$B$6))","v":2.9999132478518691E-2},{"$f":"$C$40*(valueE(C8,'Utility Functions'!$D$3,'Utility Functions'!$D$4,'Utility Functions'!$D$5,'Utility Functions'!$D$6))","v":2.542345105018548E-2},{"$f":"$D$40*(valuePL(D8,'Utility Functions'!$E$3:$E$5,'Utility Functions'!$F$3:$F$5))","v":0},{"$f":"$E$40*(valuePL(E8,'Utility Functions'!$G$3:$G$5,'Utility Functions'!$H$3:$H$5))","v":0.03},{"$f":"$F$40*(valuePL(F8,'Utility Functions'!$I$3:$I$4,'Utility Functions'!$J$3:$J$5))","v":0},{"$f":"$G$40*(valueE(G8,'Utility Functions'!$L$3,'Utility Functions'!$L$4,'Utility Functions'!$L$5,'Utility Functions'!$L$6))","v":0},{"$f":"$H$40*(valueE(H8,'Utility Functions'!$N$3,'Utility Functions'!$N$4,'Utility Functions'!$N$5,'Utility Functions'!$N$6))","v":0},{"$f":"$I$40*valuePL(I8,'Utility Functions'!$O$3:$O$6,'Utility Functions'!$P$3:$P$6)","v":0.03},{"$f":"$J$40*valuePL(J8,'Utility Functions'!$Q$3:$Q$6,'Utility Functions'!$R$3:$R$6)","v":1.3454545454545455E-2},{"$f":"$K$40*(valuePL(K8,'Utility Functions'!$S$3:$S$7,'Utility Functions'!$T$3:$T$7))","v":0.02},{"$f":"$L$40*(valueE(L8,'Utility Functions'!$V$3,'Utility Functions'!$V$4,'Utility Functions'!$V$5,'Utility Functions'!$V$6))","v":0.02},{"$f":"$M$40*valuePL(M8,'Utility Functions'!$W$3:$W$6,'Utility Functions'!$X$3:$X$6)","v":1.3454545454545455E-2},{"$f":"$N$40*valueE(N8,'Utility Functions'!$Z$3,'Utility Functions'!$Z$4,'Utility Functions'!$Z$5,'Utility Functions'!$Z$6)","v":0.03},{"$f":"$O$40*valuePL(O8,'Utility Functions'!$AA$3:$AA$5,'Utility Functions'!$AB$3:$AB$5)","v":2.2499999999999999E-2},{"$f":"$P$40*valuePL(P8,'Utility Functions'!$AC$3:$AC$7,'Utility Functions'!$AD$3:$AD$7)","v":0},{"$f":"$Q$40*valuePL(Q8,'Utility Functions'!$AE$3:$AE$6,'Utility Functions'!$AF$3:$AF$6)","v":0},{"$f":"$R$40*valuePL(R8,'Utility Functions'!$AG$3:$AG$6,'Utility Functions'!$AH$3:$AH$6)","v":0.05},{"$f":"$S$40*valuePL(S8,'Utility Functions'!$AI$3:$AI$6,'Utility Functions'!$AJ$3:$AJ$6)","v":0.05},{"$f":"$T$40*valuePL(T8,'Utility Functions'!$AK$3:$AK$8,'Utility Functions'!$AL$3:$AL$8)","v":0},{"$f":"$U$40*valuePL(U8,'Utility Functions'!$AM$3:$AM$5,'Utility Functions'!$AN$3:$AN$5)","v":0},{"$f":"$V$40*valuePL(V8,'Utility Functions'!$AO$3:$AO$5,'Utility Functions'!$AP$3:$AP$5)","v":0.05},{"$f":"$W$40*valuePL(W8,'Utility Functions'!$AQ$3:$AQ$6,'Utility Functions'!$AR$3:$AR$6)","v":0},{"$f":"$X$40*valuePL(X8,'Utility Functions'!$AS$3:$AS$6,'Utility Functions'!$AT$3:$AT$6)","v":8.0000000000000002E-3},{"$f":"$Y$40*valuePL(Y8,'Utility Functions'!$AU$3:$AU$6,'Utility Functions'!$AV$3:$AV$6)","v":0.05},{"$f":"$Z$40*valuePL(Z8,'Utility Functions'!$AW$3:$AW$5,'Utility Functions'!$AX$3:$AX$5)","v":0.05},{"$f":"$AA$40*valuePL(AA8,'Utility Functions'!$AY$3:$AY$6,'Utility Functions'!$AZ$3:$AZ$6)","v":3.5999999999999997E-2},{"$f":"$AB$40*valuePL(AB8,'Utility Functions'!$BA$3:$BA$5,'Utility Functions'!$BB$3:$BB$5)","v":0},{"$f":"$AC$40*valuePL(AC8,'Utility Functions'!$BC$3:$BC$5,'Utility Functions'!$BD$3:$BD$5)","v":0.03},0.55883167443779502]
[8,{"$f":"$B$40*(valueE(B9,'Utility Functions'!$B$3,'Utility Functions'!$B$4,'Utility Functions'!$B$5,'Utility Functions'!$B$6))","v":1.3535671425672068E-2},{"$f":"$C$40*(valueE(C9,'Utility Functions'!$D$3,'Utility Functions'!$D$4,'Utility Functions'!$D$5,'Utility Functions'!$D$6))","v":2.542345105018548E-2},{"$f":"$D$40*(valuePL(D9,'Utility Functions'!$E$3:$E$5,'Utility Functions'!$F$3:$F$5))","v":0.03},{"$f":"$E$40*(valuePL(E9,'Utility Functions'!$G$3:$G$5,'Utility Functions'!$H$3:$H$5))","v":1.4999999999999999E-2},{"$f":"$F$40*(valuePL(F9,'Utility Functions'!$I$3:$I$4,'Utility Functions'!$J$3:$J$5))","v":0.04},{"$f":"$G$40*(valueE(G9,'Utility Functions'!$L$3,'Utility Functions'!$L$4,'Utility Functions'!$L$5,'Utility Functions'!$L$6))","v":0},{"$f":"$H$40*(valueE(H9,'Utility Functions'!$N$3,'Utility Functions'!$N$4,'Utility Functions'!$N$5,'Utility Functions'!$N$6))","v":0},{"$f":"$I$40*valuePL(I9,'Utility Functions'!$O$3:$O$6,'Utility Functions'!$P$3:$P$6)","v":1.6800000000000003E-3},{"$f":"$J$40*valuePL(J9,'Utility Functions'!$Q$3:$Q$6,'Utility Functions'!$R$3:$R$6)","v":1.6727272727272726E-2},{"$f":"$K$40*(valuePL(K9,'Utility Functions'!$S$3:$S$7,'Utility Functions'!$T$3:$T$7))","v":0},{"$f":"$L$40*(valueE(L9,'Utility Functions'!$V$3,'Utility Functions'!$V$4,'Utility Functions'!$V$5,'Utility Functions'!$V$6))","v":0.02},{"$f":"$M$40*valuePL(M9,'Utility Functions'!$W$3:$W$6,'Utility Functions'!$X$3:$X$6)","v":1.6727272727272726E-2},{"$f":"$N$40*valueE(N9,'Utility Functions'!$Z$3,'Utility Functions'!$Z$4,'Utility Functions'!$Z$5,'Utility Functions'!$Z$6)","v":0},{"$f":"$O$40*valuePL(O9,'Utility Functions'!$AA$3:$AA$5,'Utility Functions'!$AB$3:$AB$5)","v":0},{"$f":"$P$40*valuePL(P9,'Utility Functions'!$AC$3:$AC$7,'Utility Functions'!$AD$3:$AD$7)","v":0},{"$f":"$Q$40*valuePL(Q9,'Utility Functions'!$AE$3:$AE$6,'Utility Functions'!$AF$3:$AF$6)","v":0.04},{"$f":"$R$40*valuePL(R9,'Utility Functions'!$AG$3:$AG$6,'Utility Functions'!$AH$3:$AH$6)","v":1.0000000000000002E-2},{"$f":"$S$40*valuePL(S9,'Utility Functions'!$AI$3:$AI$6,'Utility Functions'!$AJ$3:$AJ$6)","v":0.05},{"$f":"$T$40*valuePL(T9,'Utility Functions'!$AK$3:$AK$8,'Utility Functions'!$AL$3:$AL$8)","v":0},{"$f":"$U$40*valuePL(U9,'Utility Functions'!$AM$3:$AM$5,'Utility Functions'!$AN$3:$AN$5)","v":0},{"$f":"$V$40*valuePL(V9,'Utility Functions'!$AO$3:$AO$5,'Utility Functions'!$AP$3:$AP$5)","v":0.05},{"$f":"$W$40*valuePL(W9,'Utility Functions'!$AQ$3:$AQ$6,'Utility Functions'!$AR$3:$AR$6)","v":0.04},{"$f":"$X$40*valuePL(X9,'Utility Functions'!$AS$3:$AS$6,'Utility Functions'!$AT$3:$AT$6)","v":0.04},{"$f":"$Y$40*valuePL(Y9,'Utility Functions'!$AU$3:$AU$6,'Utility Functions'!$AV$3:$AV$6)","v":0.05},{"$f":"$Z$40*valuePL(Z9,'Utility Functions'!$AW$3:$AW$5,'Utility Functions'!$AX$3:$AX$5)","v":0.05},{"$f":"$AA$40*valuePL(AA9,'Utility Functions'!$AY$3:$AY$6,'Utility Functions'!$AZ$3:$AZ$6)","v":0},{"$f":"$AB$40*valuePL(AB9,'Utility Functions'!$BA$3:$BA$5,'Utility Functions'!$BB$3:$BB$5)","v":0.01},{"$f":"$AC$40*valuePL(AC9,'Utility Functions'!$BC$3:$BC$5,'Utility Functions'!$BD$3:$BD$5)","v":7.4999999999999997E-3},0.52659366793040296]
[9,{"$f":"$B$40*(valueE(B10,'Utility Functions'!$B$3,'Utility Functions'!$B$4,'Utility Functions'!$B$5,'Utility Functions'!$B$6))","v":2.5041071294184137E-2},{"$f":"$C$40*(valueE(C10,'Utility Functions'!$D$3,'Utility Functions'!$D$4,'Utility Functions'!$D$5,'Utility Functions'!$D$6))","v":2.3696993705826886E-2},{"$f":"$D$40*(valuePL(D10,'Utility Functions'!$E$3:$E$5,'Utility Functions'!$F$3:$F$5))","v":0.03},{"$f":"$E$40*(valuePL(E10,'Utility Functions'!$G$3:$G$5,'Utility Functions'!$H$3:$H$5))","v":1.4999999999999999E-2},{"$f":"$F$40*(valuePL(F10,'Utility Functions'!$I$3:$I$4,'Utility Functions'!$J$3:$J$5))","v":0},{"$f":"$G$40*(valueE(G10,'Utility Functions'!$L$3,'Utility Functions'!$L$4,'Utility Functions'!$L$5,'Utility Functions'!$L$6))","v":5.6451612903225803E-3},{"$f":"$H$40*(valueE(H10,'Utility Functions'!$N$3,'Utility Functions'!$N$4,'Utility Functions'!$N$5,'Utility Functions'!$N$6))","v":1.9924098671726754E-3},{"$f":"$I$40*valuePL(I10,'Utility Functions'!$O$3:$O$6,'Utility Functions'!$P$3:$P$6)","v":0},{"$f":"$J$40*valuePL(J10,'Utility Functions'!$Q$3:$Q$6,'Utility Functions'!$R$3:$R$6)","v":0},{"$f":"$K$40*(valuePL(K10,'Utility Functions'!$S$3:$S$7,'Utility Functions'!$T$3:$T$7))","v":0},{"$f":"$L$40*(valueE(L10,'Utility Functions'!$V$3,'Utility Functions'!$V$4,'Utility Functions'!$V$5,'Utility Functions'!$V$6))","v":0},{"$f":"$M$40*valuePL(M10,'Utility Functions'!$W$3:$W$6,'Utility Functions'!$X$3:$X$6)","v":0},{"$f":"$N$40*valueE(N10,'Utility Functions'!$Z$3,'Utility Functions'!$Z$4,'Utility Functions'!$Z$5,'Utility Functions'!$Z$6)","v":0},{"$f":"$O$40*valuePL(O10,'Utility Functions'!$AA$3:$AA$5,'Utility Functions'!$AB$3:$AB$5)","v":0},{"$f":"$P$40*valuePL(P10,'Utility Functions'!$AC$3:$AC$7,'Utility Functions'!$AD$3:$AD$7)","v":0.03},{"$f":"$Q$40*valuePL(Q10,'Utility Functions'!$AE$3:$AE$6,'Utility Functions'!$AF$3:$AF$6)","v":0},{"$f":"$R$40*valuePL(R10,'Utility Functions'!$AG$3:$AG$6,'Utility Functions'!$AH$3:$AH$6)","v":0.05},{"$f":"$S$40*valuePL(S10,'Utility Functions'!$AI$3:$AI$6,'Utility Functions'!$AJ$3:$AJ$6)","v":3.3000000000000002E-2},{"$f":"$T$40*valuePL(T10,'Utility Functions'!$AK$3:$AK$8,'Utility Functions'!$AL$3:$AL$8)","v":6.0000000000000001E-3},{"$f":"$U$40*valuePL(U10,'Utility Functions'!$AM$3:$AM$5,'Utility Functions'!$AN$3:$AN$5)","v":0},{"$f":"$V$40*valuePL(V10,'Utility Functions'!$AO$3:$AO$5,'Utility Functions'!$AP$3:$AP$5)","v":0.05},{"$f":"$W$40*valuePL(W10,'Utility Functions'!$AQ$3:$AQ$6,'Utility Functions'!$AR$3:$AR$6)","v":0.04},{"$f":"$X$40*valuePL(X10,'Utility Functions'!$AS$3:$AS$6,'Utility Functions'!$AT$3:$AT$6)","v":0.04},{"$f":"$Y$40*valuePL(Y10,'Utility Functions'!$AU$3:$AU$6,'Utility Functions'!$AV$3:$AV$6)","v":1.0000000000000002E-2},{"$f":"$Z$40*valuePL(Z10,'Utility Functions'!$AW$3:$AW$5,'Utility Functions'!$AX$3:$AX$5)","v":0.05},{"$f":"$AA$40*valuePL(AA10,'Utility Functions'!$AY$3:$AY$6,'Utility Functions'!$AZ$3:$AZ$6)","v":8.0000000000000002E-3},{"$f":"$AB$40*valuePL(AB10,'Utility Functions'!$BA$3:$BA$5,'Utility Functions'!$BB$3:$BB$5)","v":0.01},{"$f":"$AC$40*valuePL(AC10,'Utility Functions'!$BC$3:$BC$5,'Utility Functions'!$BD$3:$BD$5)","v":0.03},0.45837563615750632]
[10,{"$f":"$B$40*(valueE(B11,'Utility Functions'!$B$3,'Utility Functions'!$B$4,'Utility Functions'!$B$5,'Utility Functions'!$B$6))","v":0},{"$f":"$C$40*(valueE(C11,'Utility Functions'!$D$3,'Utility Functions'!$D$4,'Utility Functions'!$D$5,'Utility Functions'!$D$6))","v":0},{"$f":"$D$40*(valuePL(D11,'Utility Functions'!$E$3:$E$5,'Utility Functions'!$F$3:$F$5))","v":0},{"$f":"$E$40*(valuePL(E11,'Utility Functions'!$G$3:$G$5,'Utility Functions'!$H$3:$H$5))","v":0},{"$f":"$F$40*(valuePL(F11,'Utility Functions'!$I$3:$I$4,'Utility Functions'!$J$3:$J$5))","v":0},{"$f":"$G$40*(valueE(G11,'Utility Functions'!$L$3,'Utility Functions'!$L$4,'Utility Functions'!$L$5,'Utility Functions'!$L$6))","v":0},{"$f":"$H$40*(valueE(H11,'Utility Functions'!$N$3,'Utility Functions'!$N$4,'Utility Functions'!$N$5,'Utility Functions'!$N$6))","v":0},{"$f":"$I$40*valuePL(I11,'Utility Functions'!$O$3:$O$6,'Utility Functions'!$P$3:$P$6)","v":0},{"$f":"$J$40*valuePL(J11,'Utility Functions'!$Q$3:$Q$6,'Utility Functions'!$R$3:$R$6)","v":0},{"$f":"$K$40*(valuePL(K11,'Utility Functions'!$S$3:$S$7,'Utility Functions'!$T$3:$T$7))","v":0},{"$f":"$L$40*(valueE(L11,'Utility Functions'!$V$3,'Utility Functions'!$V$4,'Utility Functions'!$V$5,'Utility Functions'!$V$6))","v":0},{"$f":"$M$40*valuePL(M11,'Utility Functions'!$W$3:$W$6,'Utility Functions'!$X$3:$X$6)","v":0},{"$f":"$N$40*valueE(N11,'Utility Functions'!$Z$3,'Utility Functions'!$Z$4,'Utility Functions'!$Z$5,'Utility Functions'!$Z$6)","v":2.2499999999999999E-2},{"$f":"$O$40*valuePL(O11,'Utility Functions'!$AA$3:$AA$5,'Utility Functions'!$AB$3:$AB$5)","v":0.09},{"$f":"$P$40*valuePL(P11,'Utility Functions'!$AC$3:$AC$7,'Utility Functions'!$AD$3:$AD$7)","v":0.01},{"$f":"$Q$40*valuePL(Q11,'Utility Functions'!$AE$3:$AE$6,'Utility Functions'!$AF$3:$AF$6)","v":0.02},{"$f":"$R$40*valuePL(R11,'Utility Functions'!$AG$3:$AG$6,'Utility Functions'!$AH$3:$AH$6)","v":0.05},{"$f":"$S$40*valuePL(S11,'Utility Functions'!$AI$3:$AI$6,'Utility Functions'!$AJ$3:$AJ$6)","v":3.3000000000000002E-2},{"$f":"$T$40*valuePL(T11,'Utility Functions'!$AK$3:$AK$8,'Utility Functions'!$AL$3:$AL$8)","v":1.2E-2},{"$f":"$U$40*valuePL(U11,'Utility Functions'!$AM$3:$AM$5,'Utility Functions'!$AN$3:$AN$5)","v":0},{"$f":"$V$40*valuePL(V11,'Utility Functions'!$AO$3:$AO$5,'Utility Functions'!$AP$3:$AP$5)","v":0},{"$f":"$W$40*valuePL(W11,'Utility Functions'!$AQ$3:$AQ$6,'Utility Functions'!$AR$3:$AR$6)","v":0.03},{"$f":"$X$40*valuePL(X11,'Utility Functions'!$AS$3:$AS$6,'Utility Functions'!$AT$3:$AT$6)","v":0.04},{"$f":"$Y$40*valuePL(Y11,'Utility Functions'!$AU$3:$AU$6,'Utility Functions'!$AV$3:$AV$6)","v":0.05},{"$f":"$Z$40*valuePL(Z11,'Utility Functions'!$AW$3:$AW$5,'Utility Functions'!$AX$3:$AX$5)","v":2.5000000000000001E-2},{"$f":"$AA$40*valuePL(AA11,'Utility Functions'!$AY$3:$AY$6,'Utility Functions'!$AZ$3:$AZ$6)","v":8.0000000000000002E-3},{"$f":"$AB$40*valuePL(AB11,'Utility Functions'!$BA$3:$BA$5,'Utility Functions'!$BB$3:$BB$5)","v":0},{"$f":"$AC$40*valuePL(AC11,'Utility Functions'!$BC$3:$BC$5,'Utility Functions'!$BD$3:$BD$5)","v":0.03},0.42049999999999998]
[11,{"$f":"$B$40*(valueE(B12,'Utility Functions'!$B$3,'Utility Functions'!$B$4,'Utility Functions'!$B$5,'Utility Functions'!$B$6))","v":0},{"$f":"$C$40*(valueE(C12,'Utility Functions'!$D$3,'Utility Functions'!$D$4,'Utility Functions'!$D$5,'Utility Functions'!$D$6))","v":0},{"$f":"$D$40*(valuePL(D12,'Utility Functions'!$E$3:$E$5,'Utility Functions'!$F$3:$F$5))","v":0},{"$f":"$E$40*(valuePL(E12,'Utility Functions'!$G$3:$G$5,'Utility Functions'!$H$3:$H$5))","v":0},{"$f":"$F$40*(valuePL(F12,'Utility Functions'!$I$3:$I$4,'Utility Functions'!$J$3:$J$5))","v":0},{"$f":"$G$40*(valueE(G12,'Utility Functions'!$L$3,'Utility Functions'!$L$4,'Utility Functions'!$L$5,'Utility Functions'!$L$6))","v":4.8387096774193543E-4},{"$f":"$H$40*(valueE(H12,'Utility Functions'!$N$3,'Utility Functions'!$N$4,'Utility Functions'!$N$5,'Utility Functions'!$N$6))","v":1.4516129032258063E-3},{"$f":"$I$40*valuePL(I12,'Utility Functions'!$O$3:$O$6,'Utility Functions'!$P$3:$P$6)","v":1.6254545454545456E-2},{"$f":"$J$40*valuePL(J12,'Utility Functions'!$Q$3:$Q$6,'Utility Functions'!$R$3:$R$6)","v":1.8363636363636363E-2},{"$f":"$K$40*(valuePL(K12,'Utility Functions'!$S$3:$S$7,'Utility Functions'!$T$3:$T$7))","v":1.0836363636363637E-2},{"$f":"$L$40*(valueE(L12,'Utility Functions'!$V$3,'Utility Functions'!$V$4,'Utility Functions'!$V$5,'Utility Functions'!$V$6))","v":0.02},{"$f":"$M$40*valuePL(M12,'Utility Functions'!$W$3:$W$6,'Utility Functions'!$X$3:$X$6)","v":1.8363636363636363E-2},{"$f":"$N$40*valueE(N12,'Utility Functions'!$Z$3,'Utility Functions'!$Z$4,'Utility Functions'!$Z$5,'Utility Functions'!$Z$6)","v":1.125E-2},{"$f":"$O$40*valuePL(O12,'Utility Functions'!$AA$3:$AA$5,'Utility Functions'!$AB$3:$AB$5)","v":2.2499999999999999E-2},{"$f":"$P$40*valuePL(P12,'Utility Functions'!$AC$3:$AC$7,'Utility Functions'!$AD$3:$AD$7)","v":0.01},{"$f":"$Q$40*valuePL(Q12,'Utility Functions'!$AE$3:$AE$6,'Utility Functions'!$AF$3:$AF$6)","v":0},{"$f":"$R$40*valuePL(R12,'Utility Functions'!$AG$3:$AG$6,'Utility Functions'!$AH$3:$AH$6)","v":0.05},{"$f":"$S$40*valuePL(S12,'Utility Functions'!$AI$3:$AI$6,'Utility Functions'!$AJ$3:$AJ$6)","v":0.05},{"$f":"$T$40*valuePL(T12,'Utility Functions'!$AK$3:$AK$8,'Utility Functions'!$AL$3:$AL$8)","v":1.2E-2},{"$f":"$U$40*valuePL(U12,'Utility Functions'!$AM$3:$AM$5,'Utility Functions'!$AN$3:$AN$5)","v":0.03},{"$f":"$V$40*valuePL(V12,'Utility Functions'!$AO$3:$AO$5,'Utility Functions'!$AP$3:$AP$5)","v":0.05},{"$f":"$W$40*valuePL(W12,'Utility Functions'!$AQ$3:$AQ$6,'Utility Functions'!$AR$3:$AR$6)","v":8.0000000000000002E-3},{"$f":"$X$40*valuePL(X12,'Utility Functions'!$AS$3:$AS$6,'Utility Functions'!$AT$3:$AT$6)","v":0.04},{"$f":"$Y$40*valuePL(Y12,'Utility Functions'!$AU$3:$AU$6,'Utility Functions'!$AV$3:$AV$6)","v":0.05},{"$f":"$Z$40*valuePL(Z12,'Utility Functions'!$AW$3:$AW$5,'Utility Functions'!$AX$3:$AX$5)","v":2.5000000000000001E-2},{"$f":"$AA$40*valuePL(AA12,'Utility Functions'!$AY$3:$AY$6,'Utility Functions'!$AZ$3:$AZ$6)","v":3.5999999999999997E-2},{"$f":"$AB$40*valuePL(AB12,'Utility Functions'!$BA$3:$BA$5,'Utility Functions'!$BB$3:$BB$5)","v":0},{"$f":"$AC$40*valuePL(AC12,'Utility Functions'!$BC$3:$BC$5,'Utility Functions'!$BD$3:$BD$5)","v":7.4999999999999997E-3},0.48800366568914949]
[12,{"$f":"$B$40*(valueE(B13,'Utility Functions'!$B$3,'Utility Functions'!$B$4,'Utility Functions'!$B$5,'Utility Functions'!$B$6))","v":9.8904136043327599E-3},{"$f":"$C$40*(valueE(C13,'Utility Functions'!$D$3,'Utility Functions'!$D$4,'Utility Functions'!$D$5,'Utility Functions'!$D$6))","v":2.3696993705826886E-2},{"$f":"$D$40*(valuePL(D13,'Utility Functions'!$E$3:$E$5,'Utility Functions'!$F$3:$F$5))","v":0.03},{"$f":"$E$40*(valuePL(E13,'Utility Functions'!$G$3:$G$5,'Utility Functions'!$H$3:$H$5))","v":1.4999999999999999E-2},{"$f":"$F$40*(valuePL(F13,'Utility Functions'!$I$3:$I$4,'Utility Functions'!$J$3:$J$5))","v":0},{"$f":"$G$40*(valueE(G13,'Utility Functions'!$L$3,'Utility Functions'!$L$4,'Utility Functions'!$L$5,'Utility Functions'!$L$6))","v":0},{"$f":"$H$40*(valueE(H13,'Utility Functions'!$N$3,'Utility Functions'!$N$4,'Utility Functions'!$N$5,'Utility Functions'!$N$6))","v":0},{"$f":"$I$40*valuePL(I13,'Utility Functions'!$O$3:$O$6,'Utility Functions'!$P$3:$P$6)","v":0},{"$f":"$J$40*valuePL(J13,'Utility Functions'!$Q$3:$Q$6,'Utility Functions'!$R$3:$R$6)","v":0},{"$f":"$K$40*(valuePL(K13,'Utility Functions'!$S$3:$S$7,'Utility Functions'!$T$3:$T$7))","v":0},{"$f":"$L$40*(valueE(L13,'Utility Functions'!$V$3,'Utility Functions'!$V$4,'Utility Functions'!$V$5,'Utility Functions'!$V$6))","v":0},{"$f":"$M$40*valuePL(M13,'Utility Functions'!$W$3:$W$6,'Utility Functions'!$X$3:$X$6)","v":0},{"$f":"$N$40*valueE(N13,'Utility Functions'!$Z$3,'Utility Functions'!$Z$4,'Utility Functions'!$Z$5,'Utility Functions'!$Z$6)","v":0},{"$f":"$O$40*valuePL(O13,'Utility Functions'!$AA$3:$AA$5,'Utility Functions'!$AB$3:$AB$5)","v":0},{"$f":"$P$40*valuePL(P13,'Utility Functions'!$AC$3:$AC$7,'Utility Functions'!$AD$3:$AD$7)","v":0},{"$f":"$Q$40*valuePL(Q13,'Utility Functions'!$AE$3:$AE$6,'Utility Functions'!$AF$3:$AF$6)","v":4.0000000000000001E-3},{"$f":"$R$40*valuePL(R13,'Utility Functions'!$AG$3:$AG$6,'Utility Functions'!$AH$3:$AH$6)","v":0.05},{"$f":"$S$40*valuePL(S13,'Utility Functions'!$AI$3:$AI$6,'Utility Functions'!$AJ$3:$AJ$6)","v":0.05},{"$f":"$T$40*valuePL(T13,'Utility Functions'!$AK$3:$AK$8,'Utility Functions'!$AL$3:$AL$8)","v":1.7999999999999999E-2},{"$f":"$U$40*valuePL(U13,'Utility Functions'!$AM$3:$AM$5,'Utility Functions'!$AN$3:$AN$5)","v":0},{"$f":"$V$40*valuePL(V13,'Utility Functions'!$AO$3:$AO$5,'Utility Functions'!$AP$3:$AP$5)","v":2.5000000000000001E-2},{"$f":"$W$40*valuePL(W13,'Utility Functions'!$AQ$3:$AQ$6,'Utility Functions'!$AR$3:$AR$6)","v":8.0000000000000002E-3},{"$f":"$X$40*valuePL(X13,'Utility Functions'!$AS$3:$AS$6,'Utility Functions'!$AT$3:$AT$6)","v":0.04},{"$f":"$Y$40*valuePL(Y13,'Utility Functions'!$AU$3:$AU$6,'Utility Functions'!$AV$3:$AV$6)","v":1.0000000000000002E-2},{"$f":"$Z$40*valuePL(Z13,'Utility Functions'!$AW$3:$AW$5,'Utility Functions'!$AX$3:$AX$5)","v":0.05},{"$f":"$AA$40*valuePL(AA13,'Utility Functions'!$AY$3:$AY$6,'Utility Functions'!$AZ$3:$AZ$6)","v":8.0000000000000002E-3},{"$f":"$AB$40*valuePL(AB13,'Utility Functions'!$BA$3:$BA$5,'Utility Functions'!$BB$3:$BB$5)","v":0.04},{"$f":"$AC$40*valuePL(AC13,'Utility Functions'!$BC$3:$BC$5,'Utility Functions'!$BD$3:$BD$5)","v":0},0.38158740731015961]
[13,{"$f":"$B$40*(valueE(B14,'Utility Functions'!$B$3,'Utility Functions'!$B$4,'Utility Functions'!$B$5,'Utility Functions'!$B$6))","v":0},{"$f":"$C$40*(valueE(C14,'Utility Functions'!$D$3,'Utility Functions'!$D$4,'Utility Functions'!$D$5,'Utility Functions'!$D$6))","v":0},{"$f":"$D$40*(valuePL(D14,'Utility Functions'!$E$3:$E$5,'Utility Functions'!$F$3:$F$5))","v":0},{"$f":"$E$40*(valuePL(E14,'Utility Functions'!$G$3:$G$5,'Utility Functions'!$H$3:$H$5))","v":0},{"$f":"$F$40*(valuePL(F14,'Utility Functions'!$I$3:$I$4,'Utility Functions'!$J$3:$J$5))","v":0},{"$f":"$G$40*(valueE(G14,'Utility Functions'!$L$3,'Utility Functions'!$L$4,'Utility Functions'!$L$5,'Utility Functions'!$L$6))","v":0},{"$f":"$H$40*(valueE(H14,'Utility Functions'!$N$3,'Utility Functions'!$N$4,'Utility Functions'!$N$5,'Utility Functions'!$N$6))","v":1.7077798861480075E-4},{"$f":"$I$40*valuePL(I14,'Utility Functions'!$O$3:$O$6,'Utility Functions'!$P$3:$P$6)","v":9.8727272727272726E-3},{"$f":"$J$40*valuePL(J14,'Utility Functions'!$Q$3:$Q$6,'Utility Functions'!$R$3:$R$6)","v":8.0000000000000004E-4},{"$f":"$K$40*(valuePL(K14,'Utility Functions'!$S$3:$S$7,'Utility Functions'!$T$3:$T$7))","v":6.5818181818181817E-3},{"$f":"$L$40*(valueE(L14,'Utility Functions'!$V$3,'Utility Functions'!$V$4,'Utility Functions'!$V$5,'Utility Functions'!$V$6))","v":0.02},{"$f":"$M$40*valuePL(M14,'Utility Functions'!$W$3:$W$6,'Utility Functions'!$X$3:$X$6)","v":8.0000000000000004E-4},{"$f":"$N$40*valueE(N14,'Utility Functions'!$Z$3,'Utility Functions'!$Z$4,'Utility Functions'!$Z$5,'Utility Functions'!$Z$6)","v":2.6249999999999999E-2},{"$f":"$O$40*valuePL(O14,'Utility Functions'!$AA$3:$AA$5,'Utility Functions'!$AB$3:$AB$5)","v":2.2499999999999999E-2},{"$f":"$P$40*valuePL(P14,'Utility Functions'!$AC$3:$AC$7,'Utility Functions'!$AD$3:$AD$7)","v":0.01},{"$f":"$Q$40*valuePL(Q14,'Utility Functions'!$AE$3:$AE$6,'Utility Functions'!$AF$3:$AF$6)","v":0},{"$f":"$R$40*valuePL(R14,'Utility Functions'!$AG$3:$AG$6,'Utility Functions'!$AH$3:$AH$6)","v":0.05},{"$f":"$S$40*valuePL(S14,'Utility Functions'!$AI$3:$AI$6,'Utility Functions'!$AJ$3:$AJ$6)","v":0.05},{"$f":"$T$40*valuePL(T14,'Utility Functions'!$AK$3:$AK$8,'Utility Functions'!$AL$3:$AL$8)","v":0},{"$f":"$U$40*valuePL(U14,'Utility Functions'!$AM$3:$AM$5,'Utility Functions'!$AN$3:$AN$5)","v":0},{"$f":"$V$40*valuePL(V14,'Utility Functions'!$AO$3:$AO$5,'Utility Functions'!$AP$3:$AP$5)","v":2.5000000000000001E-2},{"$f":"$W$40*valuePL(W14,'Utility Functions'!$AQ$3:$AQ$6,'Utility Functions'!$AR$3:$AR$6)","v":0},{"$f":"$X$40*valuePL(X14,'Utility Functions'!$AS$3:$AS$6,'Utility Functions'!$AT$3:$AT$6)","v":8.0000000000000002E-3},{"$f":"$Y$40*valuePL(Y14,'Utility Functions'!$AU$3:$AU$6,'Utility Functions'!$AV$3:$AV$6)","v":0},{"$f":"$Z$40*valuePL(Z14,'Utility Functions'!$AW$3:$AW$5,'Utility Functions'!$AX$3:$AX$5)","v":0.05},{"$f":"$AA$40*valuePL(AA14,'Utility Functions'!$AY$3:$AY$6,'Utility Functions'!$AZ$3:$AZ$6)","v":8.0000000000000002E-3},{"$f":"$AB$40*valuePL(AB14,'Utility Functions'!$BA$3:$BA$5,'Utility Functions'!$BB$3:$BB$5)","v":0.01},{"$f":"$AC$40*valuePL(AC14,'Utility Functions'!$BC$3:$BC$5,'Utility Functions'!$BD$3:$BD$5)","v":7.4999999999999997E-3},0.30547532344316031]
[14,{"$f":"$B$40*(valueE(B15,'Utility Functions'!$B$3,'Utility Functions'!$B$4,'Utility Functions'!$B$5,'Utility Functions'!$B$6))","v":2.0964205406426323E-2},{"$f":"$C$40*(valueE(C15,'Utility Functions'!$D$3,'Utility Functions'!$D$4,'Utility Functions'!$D$5,'Utility Functions'!$D$6))","v":2.3696993705826886E-2},{"$f":"$D$40*(valuePL(D15,'Utility Functions'!$E$3:$E$5,'Utility Functions'!$F$3:$F$5))","v":1.4999999999999999E-2},{"$f":"$E$40*(valuePL(E15,'Utility Functions'!$G$3:$G$5,'Utility Functions'!$H$3:$H$5))","v":1.4999999999999999E-2},{"$f":"$F$40*(valuePL(F15,'Utility Functions'!$I$3:$I$4,'Utility Functions'!$J$3:$J$5))","v":0},{"$f":"$G$40*(valueE(G15,'Utility Functions'!$L$3,'Utility Functions'!$L$4,'Utility Functions'!$L$5,'Utility Functions'!$L$6))","v":0},{"$f":"$H$40*(valueE(H15,'Utility Functions'!$N$3,'Utility Functions'!$N$4,'Utility Functions'!$N$5,'Utility Functions'!$N$6))","v":0},{"$f":"$I$40*valuePL(I15,'Utility Functions'!$O$3:$O$6,'Utility Functions'!$P$3:$P$6)","v":0},{"$f":"$J$40*valuePL(J15,'Utility Functions'!$Q$3:$Q$6,'Utility Functions'!$R$3:$R$6)","v":0},{"$f":"$K$40*(valuePL(K15,'Utility Functions'!$S$3:$S$7,'Utility Functions'!$T$3:$T$7))","v":0},{"$f":"$L$40*(valueE(L15,'Utility Functions'!$V$3,'Utility Functions'!$V$4,'Utility Functions'!$V$5,'Utility Functions'!$V$6))","v":0},{"$f":"$M$40*valuePL(M15,'Utility Functions'!$W$3:$W$6,'Utility Functions'!$X$3:$X$6)","v":0},{"$f":"$N$40*valueE(N15,'Utility Functions'!$Z$3,'Utility Functions'!$Z$4,'Utility Functions'!$Z$5,'Utility Functions'!$Z$6)","v":2.2499999999999999E-2},{"$f":"$O$40*valuePL(O15,'Utility Functions'!$AA$3:$AA$5,'Utility Functions'!$AB$3:$AB$5)","v":2.2499999999999999E-2},{"$f":"$P$40*valuePL(P15,'Utility Functions'!$AC$3:$AC$7,'Utility Functions'!$AD$3:$AD$7)","v":0.01},{"$f":"$Q$40*valuePL(Q15,'Utility Functions'!$AE$3:$AE$6,'Utility Functions'!$AF$3:$AF$6)","v":0},{"$f":"$R$40*valuePL(R15,'Utility Functions'!$AG$3:$AG$6,'Utility Functions'!$AH$3:$AH$6)","v":0.05},{"$f":"$S$40*valuePL(S15,'Utility Functions'!$AI$3:$AI$6,'Utility Functions'!$AJ$3:$AJ$6)","v":0.05},{"$f":"$T$40*valuePL(T15,'Utility Functions'!$AK$3:$AK$8,'Utility Functions'!$AL$3:$AL$8)","v":0},{"$f":"$U$40*valuePL(U15,'Utility Functions'!$AM$3:$AM$5,'Utility Functions'!$AN$3:$AN$5)","v":0},{"$f":"$V$40*valuePL(V15,'Utility Functions'!$AO$3:$AO$5,'Utility Functions'!$AP$3:$AP$5)","v":2.5000000000000001E-2},{"$f":"$W$40*valuePL(W15,'Utility Functions'!$AQ$3:$AQ$6,'Utility Functions'!$AR$3:$AR$6)","v":8.0000000000000002E-3},{"$f":"$X$40*valuePL(X15,'Utility Functions'!$AS$3:$AS$6,'Utility Functions'!$AT$3:$AT$6)","v":0.04},{"$f":"$Y$40*valuePL(Y15,'Utility Functions'!$AU$3:$AU$6,'Utility Functions'!$AV$3:$AV$6)","v":0.05},{"$f":"$Z$40*valuePL(Z15,'Utility Functions'!$AW$3:$AW$5,'Utility Functions'!$AX$3:$AX$5)","v":2.5000000000000001E-2},{"$f":"$AA$40*valuePL(AA15,'Utility Functions'!$AY$3:$AY$6,'Utility Functions'!$AZ$3:$AZ$6)","v":3.5999999999999997E-2},{"$f":"$AB$40*valuePL(AB15,'Utility Functions'!$BA$3:$BA$5,'Utility Functions'!$BB$3:$BB$5)","v":0.01},{"$f":"$AC$40*valuePL(AC15,'Utility Functions'!$BC$3:$BC$5,'Utility Functions'!$BD$3:$BD$5)","v":7.4999999999999997E-3},0.4311611991122532]
[15,{"$f":"$B$40*(valueE(B16,'Utility Functions'!$B$3,'Utility Functions'!$B$4,'Utility Functions'!$B$5,'Utility Functions'!$B$6))","v":2.9698489925153143E-2},{"$f":"$C$40*(valueE(C16,'Utility Functions'!$D$3,'Utility Functions'!$D$4,'Utility Functions'!$D$5,'Utility Functions'!$D$6))","v":2.1405827917278249E-2},{"$f":"$D$40*(valuePL(D16,'Utility Functions'!$E$3:$E$5,'Utility Functions'!$F$3:$F$5))","v":0.03},{"$f":"$E$40*(valuePL(E16,'Utility Functions'!$G$3:$G$5,'Utility Functions'!$H$3:$H$5))","v":1.4999999999999999E-2},{"$f":"$F$40*(valuePL(F16,'Utility Functions'!$I$3:$I$4,'Utility Functions'!$J$3:$J$5))","v":0.04},{"$f":"$G$40*(valueE(G16,'Utility Functions'!$L$3,'Utility Functions'!$L$4,'Utility Functions'!$L$5,'Utility Functions'!$L$6))","v":0},{"$f":"$H$40*(valueE(H16,'Utility Functions'!$N$3,'Utility Functions'!$N$4,'Utility Functions'!$N$5,'Utility Functions'!$N$6))","v":0},{"$f":"$I$40*valuePL(I16,'Utility Functions'!$O$3:$O$6,'Utility Functions'!$P$3:$P$6)","v":2.7600000000000003E-3},{"$f":"$J$40*valuePL(J16,'Utility Functions'!$Q$3:$Q$6,'Utility Functions'!$R$3:$R$6)","v":1.2000000000000003E-3},{"$f":"$K$40*(valuePL(K16,'Utility Functions'!$S$3:$S$7,'Utility Functions'!$T$3:$T$7))","v":1.2000000000000003E-3},{"$f":"$L$40*(valueE(L16,'Utility Functions'!$V$3,'Utility Functions'!$V$4,'Utility Functions'!$V$5,'Utility Functions'!$V$6))","v":0.02},{"$f":"$M$40*valuePL(M16,'Utility Functions'!$W$3:$W$6,'Utility Functions'!$X$3:$X$6)","v":1.2000000000000003E-3},{"$f":"$N$40*valueE(N16,'Utility Functions'!$Z$3,'Utility Functions'!$Z$4,'Utility Functions'!$Z$5,'Utility Functions'!$Z$6)","v":3.7499999999999999E-3},{"$f":"$O$40*valuePL(O16,'Utility Functions'!$AA$3:$AA$5,'Utility Functions'!$AB$3:$AB$5)","v":0.09},{"$f":"$P$40*valuePL(P16,'Utility Functions'!$AC$3:$AC$7,'Utility Functions'!$AD$3:$AD$7)","v":0.02},{"$f":"$Q$40*valuePL(Q16,'Utility Functions'!$AE$3:$AE$6,'Utility Functions'!$AF$3:$AF$6)","v":0},{"$f":"$R$40*valuePL(R16,'Utility Functions'!$AG$3:$AG$6,'Utility Functions'!$AH$3:$AH$6)","v":4.0000000000000008E-2},{"$f":"$S$40*valuePL(S16,'Utility Functions'!$AI$3:$AI$6,'Utility Functions'!$AJ$3:$AJ$6)","v":0.05},{"$f":"$T$40*valuePL(T16,'Utility Functions'!$AK$3:$AK$8,'Utility Functions'!$AL$3:$AL$8)","v":1.7999999999999999E-2},{"$f":"$U$40*valuePL(U16,'Utility Functions'!$AM$3:$AM$5,'Utility Functions'!$AN$3:$AN$5)","v":0.03},{"$f":"$V$40*valuePL(V16,'Utility Functions'!$AO$3:$AO$5,'Utility Functions'!$AP$3:$AP$5)","v":0},{"$f":"$W$40*valuePL(W16,'Utility Functions'!$AQ$3:$AQ$6,'Utility Functions'!$AR$3:$AR$6)","v":0.04},{"$f":"$X$40*valuePL(X16,'Utility Functions'!$AS$3:$AS$6,'Utility Functions'!$AT$3:$AT$6)","v":8.0000000000000002E-3},{"$f":"$Y$40*valuePL(Y16,'Utility Functions'!$AU$3:$AU$6,'Utility Functions'!$AV$3:$AV$6)","v":1.0000000000000002E-2},{"$f":"$Z$40*valuePL(Z16,'Utility Functions'!$AW$3:$AW$5,'Utility Functions'!$AX$3:$AX$5)","v":0.05},{"$f":"$AA$40*valuePL(AA16,'Utility Functions'!$AY$3:$AY$6,'Utility Functions'!$AZ$3:$AZ$6)","v":0.04},{"$f":"$AB$40*valuePL(AB16,'Utility Functions'!$BA$3:$BA$5,'Utility Functions'!$BB$3:$BB$5)","v":0.04},{"$f":"$AC$40*valuePL(AC16,'Utility Functions'!$BC$3:$BC$5,'Utility Functions'!$BD$3:$BD$5)","v":7.4999999999999997E-3},0.60971431784243146]
[16,{"$f":"$B$40*(valueE(B17,'Utility Functions'!$B$3,'Utility Functions'!$B$4,'Utility Functions'!$B$5,'Utility Functions'!$B$6))","v":0},{"$f":"$C$40*(valueE(C17,'Utility Functions'!$D$3,'Utility Functions'!$D$4,'Utility Functions'!$D$5,'Utility Functions'!$D$6))","v":0},{"$f":"$D$40*(valuePL(D17,'Utility Functions'!$E$3:$E$5,'Utility Functions'!$F$3:$F$5))","v":0},{"$f":"$E$40*(valuePL(E17,'Utility Functions'!$G$3:$G$5,'Utility Functions'!$H$3:$H$5))","v":0},{"$f":"$F$40*(valuePL(F17,'Utility Functions'!$I$3:$I$4,'Utility Functions'!$J$3:$J$5))","v":0},{"$f":"$G$40*(valueE(G17,'Utility Functions'!$L$3,'Utility Functions'!$L$4,'Utility Functions'!$L$5,'Utility Functions'!$L$6))","v":0},{"$f":"$H$40*(valueE(H17,'Utility Functions'!$N$3,'Utility Functions'!$N$4,'Utility Functions'!$N$5,'Utility Functions'!$N$6))","v":0},{"$f":"$I$40*valuePL(I17,'Utility Functions'!$O$3:$O$6,'Utility Functions'!$P$3:$P$6)","v":0.03},{"$f":"$J$40*valuePL(J17,'Utility Functions'!$Q$3:$Q$6,'Utility Functions'!$R$3:$R$6)","v":1.8363636363636363E-2},{"$f":"$K$40*(valuePL(K17,'Utility Functions'!$S$3:$S$7,'Utility Functions'!$T$3:$T$7))","v":0.02},{"$f":"$L$40*(valueE(L17,'Utility Functions'!$V$3,'Utility Functions'!$V$4,'Utility Functions'!$V$5,'Utility Functions'!$V$6))","v":1.6666666666666666E-2},{"$f":"$M$40*valuePL(M17,'Utility Functions'!$W$3:$W$6,'Utility Functions'!$X$3:$X$6)","v":1.8363636363636363E-2},{"$f":"$N$40*valueE(N17,'Utility Functions'!$Z$3,'Utility Functions'!$Z$4,'Utility Functions'!$Z$5,'Utility Functions'!$Z$6)","v":0},{"$f":"$O$40*valuePL(O17,'Utility Functions'!$AA$3:$AA$5,'Utility Functions'!$AB$3:$AB$5)","v":0},{"$f":"$P$40*valuePL(P17,'Utility Functions'!$AC$3:$AC$7,'Utility Functions'!$AD$3:$AD$7)","v":0.03},{"$f":"$Q$40*valuePL(Q17,'Utility Functions'!$AE$3:$AE$6,'Utility Functions'!$AF$3:$AF$6)","v":0},{"$f":"$R$40*valuePL(R17,'Utility Functions'!$AG$3:$AG$6,'Utility Functions'!$AH$3:$AH$6)","v":0.05},{"$f":"$S$40*valuePL(S17,'Utility Functions'!$AI$3:$AI$6,'Utility Functions'!$AJ$3:$AJ$6)","v":0.05},{"$f":"$T$40*valuePL(T17,'Utility Functions'!$AK$3:$AK$8,'Utility Functions'!$AL$3:$AL$8)","v":0.03},{"$f":"$U$40*valuePL(U17,'Utility Functions'!$AM$3:$AM$5,'Utility Functions'!$AN$3:$AN$5)","v":0},{"$f":"$V$40*valuePL(V17,'Utility Functions'!$AO$3:$AO$5,'Utility Functions'!$AP$3:$AP$5)","v":0.05},{"$f":"$W$40*valuePL(W17,'Utility Functions'!$AQ$3:$AQ$6,'Utility Functions'!$AR$3:$AR$6)","v":0.03},{"$f":"$X$40*valuePL(X17,'Utility Functions'!$AS$3:$AS$6,'Utility Functions'!$AT$3:$AT$6)","v":0.03},{"$f":"$Y$40*valuePL(Y17,'Utility Functions'!$AU$3:$AU$6,'Utility Functions'!$AV$3:$AV$6)","v":1.0000000000000002E-2},{"$f":"$Z$40*valuePL(Z17,'Utility Functions'!$AW$3:$AW$5,'Utility Functions'!$AX$3:$AX$5)","v":0.05},{"$f":"$AA$40*valuePL(AA17,'Utility Functions'!$AY$3:$AY$6,'Utility Functions'!$AZ$3:$AZ$6)","v":0.04},{"$f":"$AB$40*valuePL(AB17,'Utility Functions'!$BA$3:$BA$5,'Utility Functions'!$BB$3:$BB$5)","v":0.04},{"$f":"$AC$40*valuePL(AC17,'Utility Functions'!$BC$3:$BC$5,'Utility Functions'!$BD$3:$BD$5)","v":0.03},0.54339393939393943]
[17,{"$f":"$B$40*(valueE(B18,'Utility Functions'!$B$3,'Utility Functions'!$B$4,'Utility Functions'!$B$5,'Utility Functions'!$B$6))","v":9.8904136043327599E-3},{"$f":"$C$40*(valueE(C18,'Utility Functions'!$D$3,'Utility Functions'!$D$4,'Utility Functions'!$D$5,'Utility Functions'!$D$6))","v":2.3696993705826886E-2},{"$f":"$D$40*(valuePL(D18,'Utility Functions'!$E$3:$E$5,'Utility Functions'!$F$3:$F$5))","v":0.03},{"$f":"$E$40*(valuePL(E18,'Utility Functions'!$G$3:$G$5,'Utility Functions'!$H$3:$H$5))","v":1.4999999999999999E-2},{"$f":"$F$40*(valuePL(F18,'Utility Functions'!$I$3:$I$4,'Utility Functions'!$J$3:$J$5))","v":0.04},{"$f":"$G$40*(valueE(G18,'Utility Functions'!$L$3,'Utility Functions'!$L$4,'Utility Functions'!$L$5,'Utility Functions'!$L$6))","v":4.6774193548387091E-3},{"$f":"$H$40*(valueE(H18,'Utility Functions'!$N$3,'Utility Functions'!$N$4,'Utility Functions'!$N$5,'Utility Functions'!$N$6))","v":4.1271347248576853E-3},{"$f":"$I$40*valuePL(I18,'Utility Functions'!$O$3:$O$6,'Utility Functions'!$P$3:$P$6)","v":0},{"$f":"$J$40*valuePL(J18,'Utility Functions'!$Q$3:$Q$6,'Utility Functions'!$R$3:$R$6)","v":0},{"$f":"$K$40*(valuePL(K18,'Utility Functions'!$S$3:$S$7,'Utility Functions'!$T$3:$T$7))","v":0},{"$f":"$L$40*(valueE(L18,'Utility Functions'!$V$3,'Utility Functions'!$V$4,'Utility Functions'!$V$5,'Utility Functions'!$V$6))","v":0.02},{"$f":"$M$40*valuePL(M18,'Utility Functions'!$W$3:$W$6,'Utility Functions'!$X$3:$X$6)","v":1.2000000000000003E-3},{"$f":"$N$40*valueE(N18,'Utility Functions'!$Z$3,'Utility Functions'!$Z$4,'Utility Functions'!$Z$5,'Utility Functions'!$Z$6)","v":0},{"$f":"$O$40*valuePL(O18,'Utility Functions'!$AA$3:$AA$5,'Utility Functions'!$AB$3:$AB$5)","v":0},{"$f":"$P$40*valuePL(P18,'Utility Functions'!$AC$3:$AC$7,'Utility Functions'!$AD$3:$AD$7)","v":0},{"$f":"$Q$40*valuePL(Q18,'Utility Functions'!$AE$3:$AE$6,'Utility Functions'!$AF$3:$AF$6)","v":0},{"$f":"$R$40*valuePL(R18,'Utility Functions'!$AG$3:$AG$6,'Utility Functions'!$AH$3:$AH$6)","v":0.05},{"$f":"$S$40*valuePL(S18,'Utility Functions'!$AI$3:$AI$6,'Utility Functions'!$AJ$3:$AJ$6)","v":3.3000000000000002E-2},{"$f":"$T$40*valuePL(T18,'Utility Functions'!$AK$3:$AK$8,'Utility Functions'!$AL$3:$AL$8)","v":0},{"$f":"$U$40*valuePL(U18,'Utility Functions'!$AM$3:$AM$5,'Utility Functions'!$AN$3:$AN$5)","v":0},{"$f":"$V$40*valuePL(V18,'Utility Functions'!$AO$3:$AO$5,'Utility Functions'!$AP$3:$AP$5)","v":0.05},{"$f":"$W$40*valuePL(W18,'Utility Functions'!$AQ$3:$AQ$6,'Utility Functions'!$AR$3:$AR$6)","v":0.04},{"$f":"$X$40*valuePL(X18,'Utility Functions'!$AS$3:$AS$6,'Utility Functions'!$AT$3:$AT$6)","v":8.0000000000000002E-3},{"$f":"$Y$40*valuePL(Y18,'Utility Functions'!$AU$3:$AU$6,'Utility Functions'!$AV$3:$AV$6)","v":0},{"$f":"$Z$40*valuePL(Z18,'Utility Functions'!$AW$3:$AW$5,'Utility Functions'!$AX$3:$AX$5)","v":2.5000000000000001E-2},{"$f":"$AA$40*valuePL(AA18,'Utility Functions'!$AY$3:$AY$6,'Utility Functions'!$AZ$3:$AZ$6)","v":0},{"$f":"$AB$40*valuePL(AB18,'Utility Functions'!$BA$3:$BA$5,'Utility Functions'!$BB$3:$BB$5)","v":0.04},{"$f":"$AC$40*valuePL(AC18,'Utility Functions'!$BC$3:$BC$5,'Utility Functions'!$BD$3:$BD$5)","v":7.4999999999999997E-3},0.40209196138985603]
[18,{"$f":"$B$40*(valueE(B19,'Utility Functions'!$B$3,'Utility Functions'!$B$4,'Utility Functions'!$B$5,'Utility Functions'!$B$6))","v":0},{"$f":"$C$40*(valueE(C19,'Utility Functions'!$D$3,'Utility Functions'!$D$4,'Utility Functions'!$D$5,'Utility Functions'!$D$6))","v":0},{"$f":"$D$40*(valuePL(D19,'Utility Functions'!$E$3:$E$5,'Utility Functions'!$F$3:$F$5))","v":0},{"$f":"$E$40*(valuePL(E19,'Utility Functions'!$G$3:$G$5,'Utility Functions'!$H$3:$H$5))","v":0},{"$f":"$F$40*(valuePL(F19,'Utility Functions'!$I$3:$I$4,'Utility Functions'!$J$3:$J$5))","v":0},{"$f":"$G$40*(valueE(G19,'Utility Functions'!$L$3,'Utility Functions'!$L$4,'Utility Functions'!$L$5,'Utility Functions'!$L$6))","v":0},{"$f":"$H$40*(valueE(H19,'Utility Functions'!$N$3,'Utility Functions'!$N$4,'Utility Functions'!$N$5,'Utility Functions'!$N$6))","v":4.2694497153700185E-4},{"$f":"$I$40*valuePL(I19,'Utility Functions'!$O$3:$O$6,'Utility Functions'!$P$3:$P$6)","v":0},{"$f":"$J$40*valuePL(J19,'Utility Functions'!$Q$3:$Q$6,'Utility Functions'!$R$3:$R$6)","v":0},{"$f":"$K$40*(valuePL(K19,'Utility Functions'!$S$3:$S$7,'Utility Functions'!$T$3:$T$7))","v":0},{"$f":"$L$40*(valueE(L19,'Utility Functions'!$V$3,'Utility Functions'!$V$4,'Utility Functions'!$V$5,'Utility Functions'!$V$6))","v":0},{"$f":"$M$40*valuePL(M19,'Utility Functions'!$W$3:$W$6,'Utility Functions'!$X$3:$X$6)","v":0},{"$f":"$N$40*valueE(N19,'Utility Functions'!$Z$3,'Utility Functions'!$Z$4,'Utility Functions'!$Z$5,'Utility Functions'!$Z$6)","v":0.03},{"$f":"$O$40*valuePL(O19,'Utility Functions'!$AA$3:$AA$5,'Utility Functions'!$AB$3:$AB$5)","v":2.2499999999999999E-2},{"$f":"$P$40*valuePL(P19,'Utility Functions'!$AC$3:$AC$7,'Utility Functions'!$AD$3:$AD$7)","v":0.01},{"$f":"$Q$40*valuePL(Q19,'Utility Functions'!$AE$3:$AE$6,'Utility Functions'!$AF$3:$AF$6)","v":0.04},{"$f":"$R$40*valuePL(R19,'Utility Functions'!$AG$3:$AG$6,'Utility Functions'!$AH$3:$AH$6)","v":0.05},{"$f":"$S$40*valuePL(S19,'Utility Functions'!$AI$3:$AI$6,'Utility Functions'!$AJ$3:$AJ$6)","v":0.05},{"$f":"$T$40*valuePL(T19,'Utility Functions'!$AK$3:$AK$8,'Utility Functions'!$AL$3:$AL$8)","v":0.03},{"$f":"$U$40*valuePL(U19,'Utility Functions'!$AM$3:$AM$5,'Utility Functions'!$AN$3:$AN$5)","v":7.4999999999999997E-3},{"$f":"$V$40*valuePL(V19,'Utility Functions'!$AO$3:$AO$5,'Utility Functions'!$AP$3:$AP$5)","v":0.05},{"$f":"$W$40*valuePL(W19,'Utility Functions'!$AQ$3:$AQ$6,'Utility Functions'!$AR$3:$AR$6)","v":0.03},{"$f":"$X$40*valuePL(X19,'Utility Functions'!$AS$3:$AS$6,'Utility Functions'!$AT$3:$AT$6)","v":8.0000000000000002E-3},{"$f":"$Y$40*valuePL(Y19,'Utility Functions'!$AU$3:$AU$6,'Utility Functions'!$AV$3:$AV$6)","v":4.0000000000000008E-2},{"$f":"$Z$40*valuePL(Z19,'Utility Functions'!$AW$3:$AW$5,'Utility Functions'!$AX$3:$AX$5)","v":2.5000000000000001E-2},{"$f":"$AA$40*valuePL(AA19,'Utility Functions'!$AY$3:$AY$6,'Utility Functions'!$AZ$3:$AZ$6)","v":3.5999999999999997E-2},{"$f":"$AB$40*valuePL(AB19,'Utility Functions'!$BA$3:$BA$5,'Utility Functions'!$BB$3:$BB$5)","v":0.01},{"$f":"$AC$40*valuePL(AC19,'Utility Functions'!$BC$3:$BC$5,'Utility Functions'!$BD$3:$BD$5)","v":0},0.43942694497153706]
[19,{"$f":"$B$40*(valueE(B20,'Utility Functions'!$B$3,'Utility Functions'!$B$4,'Utility Functions'!$B$5,'Utility Functions'!$B$6))","v":2.3943140737469053E-2},{"$f":"$C$40*(valueE(C20,'Utility Functions'!$D$3,'Utility Functions'!$D$4,'Utility Functions'!$D$5,'Utility Functions'!$D$6))","v":8.0518966871447988E-3},{"$f":"$D$40*(valuePL(D20,'Utility Functions'!$E$3:$E$5,'Utility Functions'!$F$3:$F$5))","v":1.4999999999999999E-2},{"$f":"$E$40*(valuePL(E20,'Utility Functions'!$G$3:$G$5,'Utility Functions'!$H$3:$H$5))","v":0.03},{"$f":"$F$40*(valuePL(F20,'Utility Functions'!$I$3:$I$4,'Utility Functions'!$J$3:$J$5))","v":0},{"$f":"$G$40*(valueE(G20,'Utility Functions'!$L$3,'Utility Functions'!$L$4,'Utility Functions'!$L$5,'Utility Functions'!$L$6))","v":0},{"$f":"$H$40*(valueE(H20,'Utility Functions'!$N$3,'Utility Functions'!$N$4,'Utility Functions'!$N$5,'Utility Functions'!$N$6))","v":0},{"$f":"$I$40*valuePL(I20,'Utility Functions'!$O$3:$O$6,'Utility Functions'!$P$3:$P$6)","v":0},{"$f":"$J$40*valuePL(J20,'Utility Functions'!$Q$3:$Q$6,'Utility Functions'!$R$3:$R$6)","v":0},{"$f":"$K$40*(valuePL(K20,'Utility Functions'!$S$3:$S$7,'Utility Functions'!$T$3:$T$7))","v":0},{"$f":"$L$40*(valueE(L20,'Utility Functions'!$V$3,'Utility Functions'!$V$4,'Utility Functions'!$V$5,'Utility Functions'!$V$6))","v":0},{"$f":"$M$40*valuePL(M20,'Utility Functions'!$W$3:$W$6,'Utility Functions'!$X$3:$X$6)","v":0},{"$f":"$N$40*valueE(N20,'Utility Functions'!$Z$3,'Utility Functions'!$Z$4,'Utility Functions'!$Z$5,'Utility Functions'!$Z$6)","v":0.03},{"$f":"$O$40*valuePL(O20,'Utility Functions'!$AA$3:$AA$5,'Utility Functions'!$AB$3:$AB$5)","v":0.09},{"$f":"$P$40*valuePL(P20,'Utility Functions'!$AC$3:$AC$7,'Utility Functions'!$AD$3:$AD$7)","v":0},{"$f":"$Q$40*valuePL(Q20,'Utility Functions'!$AE$3:$AE$6,'Utility Functions'!$AF$3:$AF$6)","v":0},{"$f":"$R$40*valuePL(R20,'Utility Functions'!$AG$3:$AG$6,'Utility Functions'!$AH$3:$AH$6)","v":4.0000000000000008E-2},{"$f":"$S$40*valuePL(S20,'Utility Functions'!$AI$3:$AI$6,'Utility Functions'!$AJ$3:$AJ$6)","v":0.05},{"$f":"$T$40*valuePL(T20,'Utility Functions'!$AK$3:$AK$8,'Utility Functions'!$AL$3:$AL$8)","v":0},{"$f":"$U$40*valuePL(U20,'Utility Functions'!$AM$3:$AM$5,'Utility Functions'!$AN$3:$AN$5)","v":0},{"$f":"$V$40*valuePL(V20,'Utility Functions'!$AO$3:$AO$5,'Utility Functions'!$AP$3:$AP$5)","v":2.5000000000000001E-2},{"$f":"$W$40*valuePL(W20,'Utility Functions'!$AQ$3:$AQ$6,'Utility Functions'!$AR$3:$AR$6)","v":8.0000000000000002E-3},{"$f":"$X$40*valuePL(X20,'Utility Functions'!$AS$3:$AS$6,'Utility Functions'!$AT$3:$AT$6)","v":0.04},{"$f":"$Y$40*valuePL(Y20,'Utility Functions'!$AU$3:$AU$6,'Utility Functions'!$AV$3:$AV$6)","v":4.0000000000000008E-2},{"$f":"$Z$40*valuePL(Z20,'Utility Functions'!$AW$3:$AW$5,'Utility Functions'!$AX$3:$AX$5)","v":0},{"$f":"$AA$40*valuePL(AA20,'Utility Functions'!$AY$3:$AY$6,'Utility Functions'!$AZ$3:$AZ$6)","v":8.0000000000000002E-3},{"$f":"$AB$40*valuePL(AB20,'Utility Functions'!$BA$3:$BA$5,'Utility Functions'!$BB$3:$BB$5)","v":0},{"$f":"$AC$40*valuePL(AC20,'Utility Functions'!$BC$3:$BC$5,'Utility Functions'!$BD$3:$BD$5)","v":7.4999999999999997E-3},0.41549503742461386]
[20,{"$f":"$B$40*(valueE(B21,'Utility Functions'!$B$3,'Utility Functions'!$B$4,'Utility Functions'!$B$5,'Utility Functions'!$B$6))","v":2.5041071294184137E-2},{"$f":"$C$40*(valueE(C21,'Utility Functions'!$D$3,'Utility Functions'!$D$4,'Utility Functions'!$D$5,'Utility Functions'!$D$6))","v":2.3696993705826886E-2},{"$f":"$D$40*(valuePL(D21,'Utility Functions'!$E$3:$E$5,'Utility Functions'!$F$3:$F$5))","v":1.4999999999999999E-2},{"$f":"$E$40*(valuePL(E21,'Utility Functions'!$G$3:$G$5,'Utility Functions'!$H$3:$H$5))","v":0.03},{"$f":"$F$40*(valuePL(F21,'Utility Functions'!$I$3:$I$4,'Utility Functions'!$J$3:$J$5))","v":0},{"$f":"$G$40*(valueE(G21,'Utility Functions'!$L$3,'Utility Functions'!$L$4,'Utility Functions'!$L$5,'Utility Functions'!$L$6))","v":0},{"$f":"$H$40*(valueE(H21,'Utility Functions'!$N$3,'Utility Functions'!$N$4,'Utility Functions'!$N$5,'Utility Functions'!$N$6))","v":6.1907020872865271E-3},{"$f":"$I$40*valuePL(I21,'Utility Functions'!$O$3:$O$6,'Utility Functions'!$P$3:$P$6)","v":2.8036363636363634E-2},{"$f":"$J$40*valuePL(J21,'Utility Functions'!$Q$3:$Q$6,'Utility Functions'!$R$3:$R$6)","v":1.0181818181818183E-2},{"$f":"$K$40*(valuePL(K21,'Utility Functions'!$S$3:$S$7,'Utility Functions'!$T$3:$T$7))","v":1.8690909090909088E-2},{"$f":"$L$40*(valueE(L21,'Utility Functions'!$V$3,'Utility Functions'!$V$4,'Utility Functions'!$V$5,'Utility Functions'!$V$6))","v":1.3333333333333332E-2},{"$f":"$M$40*valuePL(M21,'Utility Functions'!$W$3:$W$6,'Utility Functions'!$X$3:$X$6)","v":1.0181818181818183E-2},{"$f":"$N$40*valueE(N21,'Utility Functions'!$Z$3,'Utility Functions'!$Z$4,'Utility Functions'!$Z$5,'Utility Functions'!$Z$6)","v":0.03},{"$f":"$O$40*valuePL(O21,'Utility Functions'!$AA$3:$AA$5,'Utility Functions'!$AB$3:$AB$5)","v":0.09},{"$f":"$P$40*valuePL(P21,'Utility Functions'!$AC$3:$AC$7,'Utility Functions'!$AD$3:$AD$7)","v":0.01},{"$f":"$Q$40*valuePL(Q21,'Utility Functions'!$AE$3:$AE$6,'Utility Functions'!$AF$3:$AF$6)","v":0},{"$f":"$R$40*valuePL(R21,'Utility Functions'!$AG$3:$AG$6,'Utility Functions'!$AH$3:$AH$6)","v":0.05},{"$f":"$S$40*valuePL(S21,'Utility Functions'!$AI$3:$AI$6,'Utility Functions'!$AJ$3:$AJ$6)","v":0.05},{"$f":"$T$40*valuePL(T21,'Utility Functions'!$AK$3:$AK$8,'Utility Functions'!$AL$3:$AL$8)","v":1.7999999999999999E-2},{"$f":"$U$40*valuePL(U21,'Utility Functions'!$AM$3:$AM$5,'Utility Functions'!$AN$3:$AN$5)","v":0.03},{"$f":"$V$40*valuePL(V21,'Utility Functions'!$AO$3:$AO$5,'Utility Functions'!$AP$3:$AP$5)","v":2.5000000000000001E-2},{"$f":"$W$40*valuePL(W21,'Utility Functions'!$AQ$3:$AQ$6,'Utility Functions'!$AR$3:$AR$6)","v":0},{"$f":"$X$40*valuePL(X21,'Utility Functions'!$AS$3:$AS$6,'Utility Functions'!$AT$3:$AT$6)","v":0},{"$f":"$Y$40*valuePL(Y21,'Utility Functions'!$AU$3:$AU$6,'Utility Functions'!$AV$3:$AV$6)","v":1.0000000000000002E-2},{"$f":"$Z$40*valuePL(Z21,'Utility Functions'!$AW$3:$AW$5,'Utility Functions'!$AX$3:$AX$5)","v":0.05},{"$f":"$AA$40*valuePL(AA21,'Utility Functions'!$AY$3:$AY$6,'Utility Functions'!$AZ$3:$AZ$6)","v":8.0000000000000002E-3},{"$f":"$AB$40*valuePL(AB21,'Utility Functions'!$BA$3:$BA$5,'Utility Functions'!$BB$3:$BB$5)","v":0},{"$f":"$AC$40*valuePL(AC21,'Utility Functions'!$BC$3:$BC$5,'Utility Functions'!$BD$3:$BD$5)","v":7.4999999999999997E-3},0.55885300951154004]
[{"$f":"A22","v":21},{"$f":"$B$40*(valueE(B22,'Utility Functions'!$B$3,'Utility Functions'!$B$4,'Utility Functions'!$B$5,'Utility Functions'!$B$6))","v":0},{"$f":"$C$40*(valueE(C22,'Utility Functions'!$D$3,'Utility Functions'!$D$4,'Utility Functions'!$D$5,'Utility Functions'!$D$6))","v":0},{"$f":"$D$40*(valuePL(D22,'Utility Functions'!$E$3:$E$5,'Utility Functions'!$F$3:$F$5))","v":0},{"$f":"$E$40*(valuePL(E22,'Utility Functions'!$G$3:$G$5,'Utility Functions'!$H$3:$H$5))","v":0},{"$f":"$F$40*(valuePL(F22,'Utility Functions'!$I$3:$I$4,'Utility Functions'!$J$3:$J$5))","v":0},{"$f":"$G$40*(valueE(G22,'Utility Functions'!$L$3,'Utility Functions'!$L$4,'Utility Functions'!$L$5,'Utility Functions'!$L$6))","v":0},{"$f":"$H$40*(valueE(H22,'Utility Functions'!$N$3,'Utility Functions'!$N$4,'Utility Functions'!$N$5,'Utility Functions'!$N$6))","v":0},{"$f":"$I$40*valuePL(I22,'Utility Functions'!$O$3:$O$6,'Utility Functions'!$P$3:$P$6)","v":0},{"$f":"$J$40*valuePL(J22,'Utility Functions'!$Q$3:$Q$6,'Utility Functions'!$R$3:$R$6)","v":0},{"$f":"$K$40*(valuePL(K22,'Utility Functions'!$S$3:$S$7,'Utility Functions'!$T$3:$T$7))","v":0},{"$f":"$L$40*(valueE(L22,'Utility Functions'!$V$3,'Utility Functions'!$V$4,'Utility Functions'!$V$5,'Utility Functions'!$V$6))","v":0},{"$f":"$M$40*valuePL(M22,'Utility Functions'!$W$3:$W$6,'Utility Functions'!$X$3:$X$6)","v":0},{"$f":"$N$40*valueE(N22,'Utility Functions'!$Z$3,'Utility Functions'!$Z$4,'Utility Functions'!$Z$5,'Utility Functions'!$Z$6)","v":0.03},{"$f":"$O$40*valuePL(O22,'Utility Functions'!$AA$3:$AA$5,'Utility Functions'!$AB$3:$AB$5)","v":0.09},{"$f":"$P$40*valuePL(P22,'Utility Functions'!$AC$3:$AC$7,'Utility Functions'!$AD$3:$AD$7)","v":0},{"$f":"$Q$40*valuePL(Q22,'Utility Functions'!$AE$3:$AE$6,'Utility Functions'!$AF$3:$AF$6)","v":4.0000000000000001E-3},{"$f":"$R$40*valuePL(R22,'Utility Functions'!$AG$3:$AG$6,'Utility Functions'!$AH$3:$AH$6)","v":0.05},{"$f":"$S$40*valuePL(S22,'Utility Functions'!$AI$3:$AI$6,'Utility Functions'!$AJ$3:$AJ$6)","v":0.05},{"$f":"$T$40*valuePL(T22,'Utility Functions'!$AK$3:$AK$8,'Utility Functions'!$AL$3:$AL$8)","v":0.03},{"$f":"$U$40*valuePL(U22,'Utility Functions'!$AM$3:$AM$5,'Utility Functions'!$AN$3:$AN$5)","v":7.4999999999999997E-3},{"$f":"$V$40*valuePL(V22,'Utility Functions'!$AO$3:$AO$5,'Utility Functions'!$AP$3:$AP$5)","v":0},{"$f":"$W$40*valuePL(W22,'Utility Functions'!$AQ$3:$AQ$6,'Utility Functions'!$AR$3:$AR$6)","v":0.03},{"$f":"$X$40*valuePL(X22,'Utility Functions'!$AS$3:$AS$6,'Utility Functions'!$AT$3:$AT$6)","v":0.04},{"$f":"$Y$40*valuePL(Y22,'Utility Functions'!$AU$3:$AU$6,'Utility Functions'!$AV$3:$AV$6)","v":1.0000000000000002E-2},{"$f":"$Z$40*valuePL(Z22,'Utility Functions'!$AW$3:$AW$5,'Utility Functions'!$AX$3:$AX$5)","v":0},{"$f":"$AA$40*valuePL(AA22,'Utility Functions'!$AY$3:$AY$6,'Utility Functions'!$AZ$3:$AZ$6)","v":0.04},{"$f":"$AB$40*valuePL(AB22,'Utility Functions'!$BA$3:$BA$5,'Utility Functions'!$BB$3:$BB$5)","v":0.01},{"$f":"$AC$40*valuePL(AC22,'Utility Functions'!$BC$3:$BC$5,'Utility Functions'!$BD$3:$BD$5)","v":0.03},0.42149999999999999]
[22,{"$f":"$B$40*(valueE(B23,'Utility Functions'!$B$3,'Utility Functions'!$B$4,'Utility Functions'!$B$5,'Utility Functions'!$B$6))","v":0},{"$f":"$C$40*(valueE(C23,'Utility Functions'!$D$3,'Utility Functions'!$D$4,'Utility Functions'!$D$5,'Utility Functions'!$D$6))","v":0},{"$f":"$D$40*(valuePL(D23,'Utility Functions'!$E$3:$E$5,'Utility Functions'!$F$3:$F$5))","v":0},{"$f":"$E$40*(valuePL(E23,'Utility Functions'!$G$3:$G$5,'Utility Functions'!$H$3:$H$5))","v":0},{"$f":"$F$40*(valuePL(F23,'Utility Functions'!$I$3:$I$4,'Utility Functions'!$J$3:$J$5))","v":0},{"$f":"$G$40*(valueE(G23,'Utility Functions'!$L$3,'Utility Functions'!$L$4,'Utility Functions'!$L$5,'Utility Functions'!$L$6))","v":1.2903225806451613E-3},{"$f":"$H$40*(valueE(H23,'Utility Functions'!$N$3,'Utility Functions'!$N$4,'Utility Functions'!$N$5,'Utility Functions'!$N$6))","v":9.1081593927893733E-4},{"$f":"$I$40*valuePL(I23,'Utility Functions'!$O$3:$O$6,'Utility Functions'!$P$3:$P$6)","v":0},{"$f":"$J$40*valuePL(J23,'Utility Functions'!$Q$3:$Q$6,'Utility Functions'!$R$3:$R$6)","v":0},{"$f":"$K$40*(valuePL(K23,'Utility Functions'!$S$3:$S$7,'Utility Functions'!$T$3:$T$7))","v":0},{"$f":"$L$40*(valueE(L23,'Utility Functions'!$V$3,'Utility Functions'!$V$4,'Utility Functions'!$V$5,'Utility Functions'!$V$6))","v":0},{"$f":"$M$40*valuePL(M23,'Utility Functions'!$W$3:$W$6,'Utility Functions'!$X$3:$X$6)","v":0},{"$f":"$N$40*valueE(N23,'Utility Functions'!$Z$3,'Utility Functions'!$Z$4,'Utility Functions'!$Z$5,'Utility Functions'!$Z$6)","v":3.7499999999999999E-3},{"$f":"$O$40*valuePL(O23,'Utility Functions'!$AA$3:$AA$5,'Utility Functions'!$AB$3:$AB$5)","v":0.09},{"$f":"$P$40*valuePL(P23,'Utility Functions'!$AC$3:$AC$7,'Utility Functions'!$AD$3:$AD$7)","v":0.04},{"$f":"$Q$40*valuePL(Q23,'Utility Functions'!$AE$3:$AE$6,'Utility Functions'!$AF$3:$AF$6)","v":0.02},{"$f":"$R$40*valuePL(R23,'Utility Functions'!$AG$3:$AG$6,'Utility Functions'!$AH$3:$AH$6)","v":4.0000000000000008E-2},{"$f":"$S$40*valuePL(S23,'Utility Functions'!$AI$3:$AI$6,'Utility Functions'!$AJ$3:$AJ$6)","v":0.05},{"$f":"$T$40*valuePL(T23,'Utility Functions'!$AK$3:$AK$8,'Utility Functions'!$AL$3:$AL$8)","v":0.03},{"$f":"$U$40*valuePL(U23,'Utility Functions'!$AM$3:$AM$5,'Utility Functions'!$AN$3:$AN$5)","v":0},{"$f":"$V$40*valuePL(V23,'Utility Functions'!$AO$3:$AO$5,'Utility Functions'!$AP$3:$AP$5)","v":2.5000000000000001E-2},{"$f":"$W$40*valuePL(W23,'Utility Functions'!$AQ$3:$AQ$6,'Utility Functions'!$AR$3:$AR$6)","v":0.03},{"$f":"$X$40*valuePL(X23,'Utility Functions'!$AS$3:$AS$6,'Utility Functions'!$AT$3:$AT$6)","v":8.0000000000000002E-3},{"$f":"$Y$40*valuePL(Y23,'Utility Functions'!$AU$3:$AU$6,'Utility Functions'!$AV$3:$AV$6)","v":0},{"$f":"$Z$40*valuePL(Z23,'Utility Functions'!$AW$3:$AW$5,'Utility Functions'!$AX$3:$AX$5)","v":0.05},{"$f":"$AA$40*valuePL(AA23,'Utility Functions'!$AY$3:$AY$6,'Utility Functions'!$AZ$3:$AZ$6)","v":8.0000000000000002E-3},{"$f":"$AB$40*valuePL(AB23,'Utility Functions'!$BA$3:$BA$5,'Utility Functions'!$BB$3:$BB$5)","v":0.04},{"$f":"$AC$40*valuePL(AC23,'Utility Functions'!$BC$3:$BC$5,'Utility Functions'!$BD$3:$BD$5)","v":7.4999999999999997E-3},0.44445113851992418]
[23,{"$f":"$B$40*(valueE(B24,'Utility Functions'!$B$3,'Utility Functions'!$B$4,'Utility Functions'!$B$5,'Utility Functions'!$B$6))","v":2.5041071294184137E-2},{"$f":"$C$40*(valueE(C24,'Utility Functions'!$D$3,'Utility Functions'!$D$4,'Utility Functions'!$D$5,'Utility Functions'!$D$6))","v":2.542345105018548E-2},{"$f":"$D$40*(valuePL(D24,'Utility Functions'!$E$3:$E$5,'Utility Functions'!$F$3:$F$5))","v":0.03},{"$f":"$E$40*(valuePL(E24,'Utility Functions'!$G$3:$G$5,'Utility Functions'!$H$3:$H$5))","v":0},{"$f":"$F$40*(valuePL(F24,'Utility Functions'!$I$3:$I$4,'Utility Functions'!$J$3:$J$5))","v":0},{"$f":"$G$40*(valueE(G24,'Utility Functions'!$L$3,'Utility Functions'!$L$4,'Utility Functions'!$L$5,'Utility Functions'!$L$6))","v":0},{"$f":"$H$40*(valueE(H24,'Utility Functions'!$N$3,'Utility Functions'!$N$4,'Utility Functions'!$N$5,'Utility Functions'!$N$6))","v":0},{"$f":"$I$40*valuePL(I24,'Utility Functions'!$O$3:$O$6,'Utility Functions'!$P$3:$P$6)","v":0},{"$f":"$J$40*valuePL(J24,'Utility Functions'!$Q$3:$Q$6,'Utility Functions'!$R$3:$R$6)","v":0},{"$f":"$K$40*(valuePL(K24,'Utility Functions'!$S$3:$S$7,'Utility Functions'!$T$3:$T$7))","v":0},{"$f":"$L$40*(valueE(L24,'Utility Functions'!$V$3,'Utility Functions'!$V$4,'Utility Functions'!$V$5,'Utility Functions'!$V$6))","v":0},{"$f":"$M$40*valuePL(M24,'Utility Functions'!$W$3:$W$6,'Utility Functions'!$X$3:$X$6)","v":0},{"$f":"$N$40*valueE(N24,'Utility Functions'!$Z$3,'Utility Functions'!$Z$4,'Utility Functions'!$Z$5,'Utility Functions'!$Z$6)","v":0},{"$f":"$O$40*valuePL(O24,'Utility Functions'!$AA$3:$AA$5,'Utility Functions'!$AB$3:$AB$5)","v":0},{"$f":"$P$40*valuePL(P24,'Utility Functions'!$AC$3:$AC$7,'Utility Functions'!$AD$3:$AD$7)","v":0.03},{"$f":"$Q$40*valuePL(Q24,'Utility Functions'!$AE$3:$AE$6,'Utility Functions'!$AF$3:$AF$6)","v":0},{"$f":"$R$40*valuePL(R24,'Utility Functions'!$AG$3:$AG$6,'Utility Functions'!$AH$3:$AH$6)","v":0.05},{"$f":"$S$40*valuePL(S24,'Utility Functions'!$AI$3:$AI$6,'Utility Functions'!$AJ$3:$AJ$6)","v":0.05},{"$f":"$T$40*valuePL(T24,'Utility Functions'!$AK$3:$AK$8,'Utility Functions'!$AL$3:$AL$8)","v":0.03},{"$f":"$U$40*valuePL(U24,'Utility Functions'!$AM$3:$AM$5,'Utility Functions'!$AN$3:$AN$5)","v":0},{"$f":"$V$40*valuePL(V24,'Utility Functions'!$AO$3:$AO$5,'Utility Functions'!$AP$3:$AP$5)","v":0.05},{"$f":"$W$40*valuePL(W24,'Utility Functions'!$AQ$3:$AQ$6,'Utility Functions'!$AR$3:$AR$6)","v":8.0000000000000002E-3},{"$f":"$X$40*valuePL(X24,'Utility Functions'!$AS$3:$AS$6,'Utility Functions'!$AT$3:$AT$6)","v":0.03},{"$f":"$Y$40*valuePL(Y24,'Utility Functions'!$AU$3:$AU$6,'Utility Functions'!$AV$3:$AV$6)","v":1.0000000000000002E-2},{"$f":"$Z$40*valuePL(Z24,'Utility Functions'!$AW$3:$AW$5,'Utility Functions'!$AX$3:$AX$5)","v":2.5000000000000001E-2},{"$f":"$AA$40*valuePL(AA24,'Utility Functions'!$AY$3:$AY$6,'Utility Functions'!$AZ$3:$AZ$6)","v":8.0000000000000002E-3},{"$f":"$AB$40*valuePL(AB24,'Utility Functions'!$BA$3:$BA$5,'Utility Functions'!$BB$3:$BB$5)","v":0},{"$f":"$AC$40*valuePL(AC24,'Utility Functions'!$BC$3:$BC$5,'Utility Functions'!$BD$3:$BD$5)","v":7.4999999999999997E-3},0.37896452234436967]
[24,{"$f":"$B$40*(valueE(B25,'Utility Functions'!$B$3,'Utility Functions'!$B$4,'Utility Functions'!$B$5,'Utility Functions'!$B$6))","v":1.896364549751255E-2},{"$f":"$C$40*(valueE(C25,'Utility Functions'!$D$3,'Utility Functions'!$D$4,'Utility Functions'!$D$5,'Utility Functions'!$D$6))","v":1.3942790146123618E-2},{"$f":"$D$40*(valuePL(D25,'Utility Functions'!$E$3:$E$5,'Utility Functions'!$F$3:$F$5))","v":0.03},{"$f":"$E$40*(valuePL(E25,'Utility Functions'!$G$3:$G$5,'Utility Functions'!$H$3:$H$5))","v":0},{"$f":"$F$40*(valuePL(F25,'Utility Functions'!$I$3:$I$4,'Utility Functions'!$J$3:$J$5))","v":0},{"$f":"$G$40*(valueE(G25,'Utility Functions'!$L$3,'Utility Functions'!$L$4,'Utility Functions'!$L$5,'Utility Functions'!$L$6))","v":0},{"$f":"$H$40*(valueE(H25,'Utility Functions'!$N$3,'Utility Functions'!$N$4,'Utility Functions'!$N$5,'Utility Functions'!$N$6))","v":0},{"$f":"$I$40*valuePL(I25,'Utility Functions'!$O$3:$O$6,'Utility Functions'!$P$3:$P$6)","v":0},{"$f":"$J$40*valuePL(J25,'Utility Functions'!$Q$3:$Q$6,'Utility Functions'!$R$3:$R$6)","v":0},{"$f":"$K$40*(valuePL(K25,'Utility Functions'!$S$3:$S$7,'Utility Functions'!$T$3:$T$7))","v":0},{"$f":"$L$40*(valueE(L25,'Utility Functions'!$V$3,'Utility Functions'!$V$4,'Utility Functions'!$V$5,'Utility Functions'!$V$6))","v":0},{"$f":"$M$40*valuePL(M25,'Utility Functions'!$W$3:$W$6,'Utility Functions'!$X$3:$X$6)","v":0},{"$f":"$N$40*valueE(N25,'Utility Functions'!$Z$3,'Utility Functions'!$Z$4,'Utility Functions'!$Z$5,'Utility Functions'!$Z$6)","v":0},{"$f":"$O$40*valuePL(O25,'Utility Functions'!$AA$3:$AA$5,'Utility Functions'!$AB$3:$AB$5)","v":0},{"$f":"$P$40*valuePL(P25,'Utility Functions'!$AC$3:$AC$7,'Utility Functions'!$AD$3:$AD$7)","v":0},{"$f":"$Q$40*valuePL(Q25,'Utility Functions'!$AE$3:$AE$6,'Utility Functions'!$AF$3:$AF$6)","v":0},{"$f":"$R$40*valuePL(R25,'Utility Functions'!$AG$3:$AG$6,'Utility Functions'!$AH$3:$AH$6)","v":0.05},{"$f":"$S$40*valuePL(S25,'Utility Functions'!$AI$3:$AI$6,'Utility Functions'!$AJ$3:$AJ$6)","v":0.05},{"$f":"$T$40*valuePL(T25,'Utility Functions'!$AK$3:$AK$8,'Utility Functions'!$AL$3:$AL$8)","v":0.03},{"$f":"$U$40*valuePL(U25,'Utility Functions'!$AM$3:$AM$5,'Utility Functions'!$AN$3:$AN$5)","v":0},{"$f":"$V$40*valuePL(V25,'Utility Functions'!$AO$3:$AO$5,'Utility Functions'!$AP$3:$AP$5)","v":0},{"$f":"$W$40*valuePL(W25,'Utility Functions'!$AQ$3:$AQ$6,'Utility Functions'!$AR$3:$AR$6)","v":0.04},{"$f":"$X$40*valuePL(X25,'Utility Functions'!$AS$3:$AS$6,'Utility Functions'!$AT$3:$AT$6)","v":8.0000000000000002E-3},{"$f":"$Y$40*valuePL(Y25,'Utility Functions'!$AU$3:$AU$6,'Utility Functions'!$AV$3:$AV$6)","v":0.05},{"$f":"$Z$40*valuePL(Z25,'Utility Functions'!$AW$3:$AW$5,'Utility Functions'!$AX$3:$AX$5)","v":0.05},{"$f":"$AA$40*valuePL(AA25,'Utility Functions'!$AY$3:$AY$6,'Utility Functions'!$AZ$3:$AZ$6)","v":8.0000000000000002E-3},{"$f":"$AB$40*valuePL(AB25,'Utility Functions'!$BA$3:$BA$5,'Utility Functions'!$BB$3:$BB$5)","v":0},{"$f":"$AC$40*valuePL(AC25,'Utility Functions'!$BC$3:$BC$5,'Utility Functions'!$BD$3:$BD$5)","v":0.03},0.37890643564363613]
[25,{"$f":"$B$40*(valueE(B26,'Utility Functions'!$B$3,'Utility Functions'!$B$4,'Utility Functions'!$B$5,'Utility Functions'!$B$6))","v":2.5041071294184137E-2},{"$f":"$C$40*(valueE(C26,'Utility Functions'!$D$3,'Utility Functions'!$D$4,'Utility Functions'!$D$5,'Utility Functions'!$D$6))","v":2.542345105018548E-2},{"$f":"$D$40*(valuePL(D26,'Utility Functions'!$E$3:$E$5,'Utility Functions'!$F$3:$F$5))","v":0.03},{"$f":"$E$40*(valuePL(E26,'Utility Functions'!$G$3:$G$5,'Utility Functions'!$H$3:$H$5))","v":0},{"$f":"$F$40*(valuePL(F26,'Utility Functions'!$I$3:$I$4,'Utility Functions'!$J$3:$J$5))","v":0},{"$f":"$G$40*(valueE(G26,'Utility Functions'!$L$3,'Utility Functions'!$L$4,'Utility Functions'!$L$5,'Utility Functions'!$L$6))","v":1.4193548387096775E-2},{"$f":"$H$40*(valueE(H26,'Utility Functions'!$N$3,'Utility Functions'!$N$4,'Utility Functions'!$N$5,'Utility Functions'!$N$6))","v":4.383301707779886E-3},{"$f":"$I$40*valuePL(I26,'Utility Functions'!$O$3:$O$6,'Utility Functions'!$P$3:$P$6)","v":0},{"$f":"$J$40*valuePL(J26,'Utility Functions'!$Q$3:$Q$6,'Utility Functions'!$R$3:$R$6)","v":0},{"$f":"$K$40*(valuePL(K26,'Utility Functions'!$S$3:$S$7,'Utility Functions'!$T$3:$T$7))","v":0},{"$f":"$L$40*(valueE(L26,'Utility Functions'!$V$3,'Utility Functions'!$V$4,'Utility Functions'!$V$5,'Utility Functions'!$V$6))","v":0},{"$f":"$M$40*valuePL(M26,'Utility Functions'!$W$3:$W$6,'Utility Functions'!$X$3:$X$6)","v":0},{"$f":"$N$40*valueE(N26,'Utility Functions'!$Z$3,'Utility Functions'!$Z$4,'Utility Functions'!$Z$5,'Utility Functions'!$Z$6)","v":0.03},{"$f":"$O$40*valuePL(O26,'Utility Functions'!$AA$3:$AA$5,'Utility Functions'!$AB$3:$AB$5)","v":2.2499999999999999E-2},{"$f":"$P$40*valuePL(P26,'Utility Functions'!$AC$3:$AC$7,'Utility Functions'!$AD$3:$AD$7)","v":0.02},{"$f":"$Q$40*valuePL(Q26,'Utility Functions'!$AE$3:$AE$6,'Utility Functions'!$AF$3:$AF$6)","v":0.02},{"$f":"$R$40*valuePL(R26,'Utility Functions'!$AG$3:$AG$6,'Utility Functions'!$AH$3:$AH$6)","v":0.05},{"$f":"$S$40*valuePL(S26,'Utility Functions'!$AI$3:$AI$6,'Utility Functions'!$AJ$3:$AJ$6)","v":0.05},{"$f":"$T$40*valuePL(T26,'Utility Functions'!$AK$3:$AK$8,'Utility Functions'!$AL$3:$AL$8)","v":0},{"$f":"$U$40*valuePL(U26,'Utility Functions'!$AM$3:$AM$5,'Utility Functions'!$AN$3:$AN$5)","v":0},{"$f":"$V$40*valuePL(V26,'Utility Functions'!$AO$3:$AO$5,'Utility Functions'!$AP$3:$AP$5)","v":0.05},{"$f":"$W$40*valuePL(W26,'Utility Functions'!$AQ$3:$AQ$6,'Utility Functions'!$AR$3:$AR$6)","v":8.0000000000000002E-3},{"$f":"$X$40*valuePL(X26,'Utility Functions'!$AS$3:$AS$6,'Utility Functions'!$AT$3:$AT$6)","v":0.04},{"$f":"$Y$40*valuePL(Y26,'Utility Functions'!$AU$3:$AU$6,'Utility Functions'!$AV$3:$AV$6)","v":4.0000000000000008E-2},{"$f":"$Z$40*valuePL(Z26,'Utility Functions'!$AW$3:$AW$5,'Utility Functions'!$AX$3:$AX$5)","v":2.5000000000000001E-2},{"$f":"$AA$40*valuePL(AA26,'Utility Functions'!$AY$3:$AY$6,'Utility Functions'!$AZ$3:$AZ$6)","v":8.0000000000000002E-3},{"$f":"$AB$40*valuePL(AB26,'Utility Functions'!$BA$3:$BA$5,'Utility Functions'!$BB$3:$BB$5)","v":0.04},{"$f":"$AC$40*valuePL(AC26,'Utility Functions'!$BC$3:$BC$5,'Utility Functions'!$BD$3:$BD$5)","v":0.03},0.53254137243924626]
[26,{"$f":"$B$40*(valueE(B27,'Utility Functions'!$B$3,'Utility Functions'!$B$4,'Utility Functions'!$B$5,'Utility Functions'!$B$6))","v":2.8998845838620748E-2},{"$f":"$C$40*(valueE(C27,'Utility Functions'!$D$3,'Utility Functions'!$D$4,'Utility Functions'!$D$5,'Utility Functions'!$D$6))","v":2.542345105018548E-2},{"$f":"$D$40*(valuePL(D27,'Utility Functions'!$E$3:$E$5,'Utility Functions'!$F$3:$F$5))","v":0.03},{"$f":"$E$40*(valuePL(E27,'Utility Functions'!$G$3:$G$5,'Utility Functions'!$H$3:$H$5))","v":1.4999999999999999E-2},{"$f":"$F$40*(valuePL(F27,'Utility Functions'!$I$3:$I$4,'Utility Functions'!$J$3:$J$5))","v":0},{"$f":"$G$40*(valueE(G27,'Utility Functions'!$L$3,'Utility Functions'!$L$4,'Utility Functions'!$L$5,'Utility Functions'!$L$6))","v":0},{"$f":"$H$40*(valueE(H27,'Utility Functions'!$N$3,'Utility Functions'!$N$4,'Utility Functions'!$N$5,'Utility Functions'!$N$6))","v":0},{"$f":"$I$40*valuePL(I27,'Utility Functions'!$O$3:$O$6,'Utility Functions'!$P$3:$P$6)","v":0},{"$f":"$J$40*valuePL(J27,'Utility Functions'!$Q$3:$Q$6,'Utility Functions'!$R$3:$R$6)","v":0},{"$f":"$K$40*(valuePL(K27,'Utility Functions'!$S$3:$S$7,'Utility Functions'!$T$3:$T$7))","v":0},{"$f":"$L$40*(valueE(L27,'Utility Functions'!$V$3,'Utility Functions'!$V$4,'Utility Functions'!$V$5,'Utility Functions'!$V$6))","v":0},{"$f":"$M$40*valuePL(M27,'Utility Functions'!$W$3:$W$6,'Utility Functions'!$X$3:$X$6)","v":0},{"$f":"$N$40*valueE(N27,'Utility Functions'!$Z$3,'Utility Functions'!$Z$4,'Utility Functions'!$Z$5,'Utility Functions'!$Z$6)","v":0},{"$f":"$O$40*valuePL(O27,'Utility Functions'!$AA$3:$AA$5,'Utility Functions'!$AB$3:$AB$5)","v":0},{"$f":"$P$40*valuePL(P27,'Utility Functions'!$AC$3:$AC$7,'Utility Functions'!$AD$3:$AD$7)","v":0.03},{"$f":"$Q$40*valuePL(Q27,'Utility Functions'!$AE$3:$AE$6,'Utility Functions'!$AF$3:$AF$6)","v":0},{"$f":"$R$40*valuePL(R27,'Utility Functions'!$AG$3:$AG$6,'Utility Functions'!$AH$3:$AH$6)","v":0.05},{"$f":"$S$40*valuePL(S27,'Utility Functions'!$AI$3:$AI$6,'Utility Functions'!$AJ$3:$AJ$6)","v":0.05},{"$f":"$T$40*valuePL(T27,'Utility Functions'!$AK$3:$AK$8,'Utility Functions'!$AL$3:$AL$8)","v":2.4E-2},{"$f":"$U$40*valuePL(U27,'Utility Functions'!$AM$3:$AM$5,'Utility Functions'!$AN$3:$AN$5)","v":0},{"$f":"$V$40*valuePL(V27,'Utility Functions'!$AO$3:$AO$5,'Utility Functions'!$AP$3:$AP$5)","v":0.05},{"$f":"$W$40*valuePL(W27,'Utility Functions'!$AQ$3:$AQ$6,'Utility Functions'!$AR$3:$AR$6)","v":8.0000000000000002E-3},{"$f":"$X$40*valuePL(X27,'Utility Functions'!$AS$3:$AS$6,'Utility Functions'!$AT$3:$AT$6)","v":0},{"$f":"$Y$40*valuePL(Y27,'Utility Functions'!$AU$3:$AU$6,'Utility Functions'!$AV$3:$AV$6)","v":4.0000000000000008E-2},{"$f":"$Z$40*valuePL(Z27,'Utility Functions'!$AW$3:$AW$5,'Utility Functions'!$AX$3:$AX$5)","v":0},{"$f":"$AA$40*valuePL(AA27,'Utility Functions'!$AY$3:$AY$6,'Utility Functions'!$AZ$3:$AZ$6)","v":8.0000000000000002E-3},{"$f":"$AB$40*valuePL(AB27,'Utility Functions'!$BA$3:$BA$5,'Utility Functions'!$BB$3:$BB$5)","v":0.04},{"$f":"$AC$40*valuePL(AC27,'Utility Functions'!$BC$3:$BC$5,'Utility Functions'!$BD$3:$BD$5)","v":0.03},0.42942229688880618]
[27,{"$f":"$B$40*(valueE(B28,'Utility Functions'!$B$3,'Utility Functions'!$B$4,'Utility Functions'!$B$5,'Utility Functions'!$B$6))","v":0},{"$f":"$C$40*(valueE(C28,'Utility Functions'!$D$3,'Utility Functions'!$D$4,'Utility Functions'!$D$5,'Utility Functions'!$D$6))","v":1.3942790146123618E-2},{"$f":"$D$40*(valuePL(D28,'Utility Functions'!$E$3:$E$5,'Utility Functions'!$F$3:$F$5))","v":0.03},{"$f":"$E$40*(valuePL(E28,'Utility Functions'!$G$3:$G$5,'Utility Functions'!$H$3:$H$5))","v":0},{"$f":"$F$40*(valuePL(F28,'Utility Functions'!$I$3:$I$4,'Utility Functions'!$J$3:$J$5))","v":0},{"$f":"$G$40*(valueE(G28,'Utility Functions'!$L$3,'Utility Functions'!$L$4,'Utility Functions'!$L$5,'Utility Functions'!$L$6))","v":0},{"$f":"$H$40*(valueE(H28,'Utility Functions'!$N$3,'Utility Functions'!$N$4,'Utility Functions'!$N$5,'Utility Functions'!$N$6))","v":0},{"$f":"$I$40*valuePL(I28,'Utility Functions'!$O$3:$O$6,'Utility Functions'!$P$3:$P$6)","v":0},{"$f":"$J$40*valuePL(J28,'Utility Functions'!$Q$3:$Q$6,'Utility Functions'!$R$3:$R$6)","v":0},{"$f":"$K$40*(valuePL(K28,'Utility Functions'!$S$3:$S$7,'Utility Functions'!$T$3:$T$7))","v":0.02},{"$f":"$L$40*(valueE(L28,'Utility Functions'!$V$3,'Utility Functions'!$V$4,'Utility Functions'!$V$5,'Utility Functions'!$V$6))","v":0},{"$f":"$M$40*valuePL(M28,'Utility Functions'!$W$3:$W$6,'Utility Functions'!$X$3:$X$6)","v":2E-3},{"$f":"$N$40*valueE(N28,'Utility Functions'!$Z$3,'Utility Functions'!$Z$4,'Utility Functions'!$Z$5,'Utility Functions'!$Z$6)","v":0},{"$f":"$O$40*valuePL(O28,'Utility Functions'!$AA$3:$AA$5,'Utility Functions'!$AB$3:$AB$5)","v":0},{"$f":"$P$40*valuePL(P28,'Utility Functions'!$AC$3:$AC$7,'Utility Functions'!$AD$3:$AD$7)","v":0.02},{"$f":"$Q$40*valuePL(Q28,'Utility Functions'!$AE$3:$AE$6,'Utility Functions'!$AF$3:$AF$6)","v":0.02},{"$f":"$R$40*valuePL(R28,'Utility Functions'!$AG$3:$AG$6,'Utility Functions'!$AH$3:$AH$6)","v":0.05},{"$f":"$S$40*valuePL(S28,'Utility Functions'!$AI$3:$AI$6,'Utility Functions'!$AJ$3:$AJ$6)","v":0.05},{"$f":"$T$40*valuePL(T28,'Utility Functions'!$AK$3:$AK$8,'Utility Functions'!$AL$3:$AL$8)","v":0.03},{"$f":"$U$40*valuePL(U28,'Utility Functions'!$AM$3:$AM$5,'Utility Functions'!$AN$3:$AN$5)","v":0},{"$f":"$V$40*valuePL(V28,'Utility Functions'!$AO$3:$AO$5,'Utility Functions'!$AP$3:$AP$5)","v":2.5000000000000001E-2},{"$f":"$W$40*valuePL(W28,'Utility Functions'!$AQ$3:$AQ$6,'Utility Functions'!$AR$3:$AR$6)","v":0.03},{"$f":"$X$40*valuePL(X28,'Utility Functions'!$AS$3:$AS$6,'Utility Functions'!$AT$3:$AT$6)","v":0.04},{"$f":"$Y$40*valuePL(Y28,'Utility Functions'!$AU$3:$AU$6,'Utility Functions'!$AV$3:$AV$6)","v":1.0000000000000002E-2},{"$f":"$Z$40*valuePL(Z28,'Utility Functions'!$AW$3:$AW$5,'Utility Functions'!$AX$3:$AX$5)","v":0},{"$f":"$AA$40*valuePL(AA28,'Utility Functions'!$AY$3:$AY$6,'Utility Functions'!$AZ$3:$AZ$6)","v":0},{"$f":"$AB$40*valuePL(AB28,'Utility Functions'!$BA$3:$BA$5,'Utility Functions'!$BB$3:$BB$5)","v":0},{"$f":"$AC$40*valuePL(AC28,'Utility Functions'!$BC$3:$BC$5,'Utility Functions'!$BD$3:$BD$5)","v":0},0.34094279014612355]
[{"$f":"A29","v":28},{"$f":"$B$40*(valueE(B29,'Utility Functions'!$B$3,'Utility Functions'!$B$4,'Utility Functions'!$B$5,'Utility Functions'!$B$6))","v":1.3535671425672068E-2},{"$f":"$C$40*(valueE(C29,'Utility Functions'!$D$3,'Utility Functions'!$D$4,'Utility Functions'!$D$5,'Utility Functions'!$D$6))","v":1.3942790146123618E-2},{"$f":"$D$40*(valuePL(D29,'Utility Functions'!$E$3:$E$5,'Utility Functions'!$F$3:$F$5))","v":0.03},{"$f":"$E$40*(valuePL(E29,'Utility Functions'!$G$3:$G$5,'Utility Functions'!$H$3:$H$5))","v":0},{"$f":"$F$40*(valuePL(F29,'Utility Functions'!$I$3:$I$4,'Utility Functions'!$J$3:$J$5))","v":0.04},{"$f":"$G$40*(valueE(G29,'Utility Functions'!$L$3,'Utility Functions'!$L$4,'Utility Functions'!$L$5,'Utility Functions'!$L$6))","v":0},{"$f":"$H$40*(valueE(H29,'Utility Functions'!$N$3,'Utility Functions'!$N$4,'Utility Functions'!$N$5,'Utility Functions'!$N$6))","v":0},{"$f":"$I$40*valuePL(I29,'Utility Functions'!$O$3:$O$6,'Utility Functions'!$P$3:$P$6)","v":0},{"$f":"$J$40*valuePL(J29,'Utility Functions'!$Q$3:$Q$6,'Utility Functions'!$R$3:$R$6)","v":0},{"$f":"$K$40*(valuePL(K29,'Utility Functions'!$S$3:$S$7,'Utility Functions'!$T$3:$T$7))","v":0},{"$f":"$L$40*(valueE(L29,'Utility Functions'!$V$3,'Utility Functions'!$V$4,'Utility Functions'!$V$5,'Utility Functions'!$V$6))","v":6.6666666666666662E-3},{"$f":"$M$40*valuePL(M29,'Utility Functions'!$W$3:$W$6,'Utility Functions'!$X$3:$X$6)","v":2E-3},{"$f":"$N$40*valueE(N29,'Utility Functions'!$Z$3,'Utility Functions'!$Z$4,'Utility Functions'!$Z$5,'Utility Functions'!$Z$6)","v":0},{"$f":"$O$40*valuePL(O29,'Utility Functions'!$AA$3:$AA$5,'Utility Functions'!$AB$3:$AB$5)","v":0},{"$f":"$P$40*valuePL(P29,'Utility Functions'!$AC$3:$AC$7,'Utility Functions'!$AD$3:$AD$7)","v":0.04},{"$f":"$Q$40*valuePL(Q29,'Utility Functions'!$AE$3:$AE$6,'Utility Functions'!$AF$3:$AF$6)","v":0},{"$f":"$R$40*valuePL(R29,'Utility Functions'!$AG$3:$AG$6,'Utility Functions'!$AH$3:$AH$6)","v":0.05},{"$f":"$S$40*valuePL(S29,'Utility Functions'!$AI$3:$AI$6,'Utility Functions'!$AJ$3:$AJ$6)","v":0.05},{"$f":"$T$40*valuePL(T29,'Utility Functions'!$AK$3:$AK$8,'Utility Functions'!$AL$3:$AL$8)","v":2.4E-2},{"$f":"$U$40*valuePL(U29,'Utility Functions'!$AM$3:$AM$5,'Utility Functions'!$AN$3:$AN$5)","v":0},{"$f":"$V$40*valuePL(V29,'Utility Functions'!$AO$3:$AO$5,'Utility Functions'!$AP$3:$AP$5)","v":0.05},{"$f":"$W$40*valuePL(W29,'Utility Functions'!$AQ$3:$AQ$6,'Utility Functions'!$AR$3:$AR$6)","v":0.04},{"$f":"$X$40*valuePL(X29,'Utility Functions'!$AS$3:$AS$6,'Utility Functions'!$AT$3:$AT$6)","v":0.04},{"$f":"$Y$40*valuePL(Y29,'Utility Functions'!$AU$3:$AU$6,'Utility Functions'!$AV$3:$AV$6)","v":1.0000000000000002E-2},{"$f":"$Z$40*valuePL(Z29,'Utility Functions'!$AW$3:$AW$5,'Utility Functions'!$AX$3:$AX$5)","v":0},{"$f":"$AA$40*valuePL(AA29,'Utility Functions'!$AY$3:$AY$6,'Utility Functions'!$AZ$3:$AZ$6)","v":3.5999999999999997E-2},{"$f":"$AB$40*valuePL(AB29,'Utility Functions'!$BA$3:$BA$5,'Utility Functions'!$BB$3:$BB$5)","v":0.04},{"$f":"$AC$40*valuePL(AC29,'Utility Functions'!$BC$3:$BC$5,'Utility Functions'!$BD$3:$BD$5)","v":7.4999999999999997E-3},0.49364512823846229]
[29,{"$f":"$B$40*(valueE(B30,'Utility Functions'!$B$3,'Utility Functions'!$B$4,'Utility Functions'!$B$5,'Utility Functions'!$B$6))","v":2.5041071294184137E-2},{"$f":"$C$40*(valueE(C30,'Utility Functions'!$D$3,'Utility Functions'!$D$4,'Utility Functions'!$D$5,'Utility Functions'!$D$6))","v":2.1405827917278249E-2},{"$f":"$D$40*(valuePL(D30,'Utility Functions'!$E$3:$E$5,'Utility Functions'!$F$3:$F$5))","v":0.03},{"$f":"$E$40*(valuePL(E30,'Utility Functions'!$G$3:$G$5,'Utility Functions'!$H$3:$H$5))","v":1.4999999999999999E-2},{"$f":"$F$40*(valuePL(F30,'Utility Functions'!$I$3:$I$4,'Utility Functions'!$J$3:$J$5))","v":0},{"$f":"$G$40*(valueE(G30,'Utility Functions'!$L$3,'Utility Functions'!$L$4,'Utility Functions'!$L$5,'Utility Functions'!$L$6))","v":0},{"$f":"$H$40*(valueE(H30,'Utility Functions'!$N$3,'Utility Functions'!$N$4,'Utility Functions'!$N$5,'Utility Functions'!$N$6))","v":0},{"$f":"$I$40*valuePL(I30,'Utility Functions'!$O$3:$O$6,'Utility Functions'!$P$3:$P$6)","v":1.8E-3},{"$f":"$J$40*valuePL(J30,'Utility Functions'!$Q$3:$Q$6,'Utility Functions'!$R$3:$R$6)","v":1.3454545454545455E-2},{"$f":"$K$40*(valuePL(K30,'Utility Functions'!$S$3:$S$7,'Utility Functions'!$T$3:$T$7))","v":0},{"$f":"$L$40*(valueE(L30,'Utility Functions'!$V$3,'Utility Functions'!$V$4,'Utility Functions'!$V$5,'Utility Functions'!$V$6))","v":0.02},{"$f":"$M$40*valuePL(M30,'Utility Functions'!$W$3:$W$6,'Utility Functions'!$X$3:$X$6)","v":1.3454545454545455E-2},{"$f":"$N$40*valueE(N30,'Utility Functions'!$Z$3,'Utility Functions'!$Z$4,'Utility Functions'!$Z$5,'Utility Functions'!$Z$6)","v":0},{"$f":"$O$40*valuePL(O30,'Utility Functions'!$AA$3:$AA$5,'Utility Functions'!$AB$3:$AB$5)","v":0},{"$f":"$P$40*valuePL(P30,'Utility Functions'!$AC$3:$AC$7,'Utility Functions'!$AD$3:$AD$7)","v":0.01},{"$f":"$Q$40*valuePL(Q30,'Utility Functions'!$AE$3:$AE$6,'Utility Functions'!$AF$3:$AF$6)","v":0},{"$f":"$R$40*valuePL(R30,'Utility Functions'!$AG$3:$AG$6,'Utility Functions'!$AH$3:$AH$6)","v":0.05},{"$f":"$S$40*valuePL(S30,'Utility Functions'!$AI$3:$AI$6,'Utility Functions'!$AJ$3:$AJ$6)","v":0.05},{"$f":"$T$40*valuePL(T30,'Utility Functions'!$AK$3:$AK$8,'Utility Functions'!$AL$3:$AL$8)","v":2.4E-2},{"$f":"$U$40*valuePL(U30,'Utility Functions'!$AM$3:$AM$5,'Utility Functions'!$AN$3:$AN$5)","v":0},{"$f":"$V$40*valuePL(V30,'Utility Functions'!$AO$3:$AO$5,'Utility Functions'!$AP$3:$AP$5)","v":0.05},{"$f":"$W$40*valuePL(W30,'Utility Functions'!$AQ$3:$AQ$6,'Utility Functions'!$AR$3:$AR$6)","v":8.0000000000000002E-3},{"$f":"$X$40*valuePL(X30,'Utility Functions'!$AS$3:$AS$6,'Utility Functions'!$AT$3:$AT$6)","v":0},{"$f":"$Y$40*valuePL(Y30,'Utility Functions'!$AU$3:$AU$6,'Utility Functions'!$AV$3:$AV$6)","v":4.0000000000000008E-2},{"$f":"$Z$40*valuePL(Z30,'Utility Functions'!$AW$3:$AW$5,'Utility Functions'!$AX$3:$AX$5)","v":2.5000000000000001E-2},{"$f":"$AA$40*valuePL(AA30,'Utility Functions'!$AY$3:$AY$6,'Utility Functions'!$AZ$3:$AZ$6)","v":8.0000000000000002E-3},{"$f":"$AB$40*valuePL(AB30,'Utility Functions'!$BA$3:$BA$5,'Utility Functions'!$BB$3:$BB$5)","v":0.01},{"$f":"$AC$40*valuePL(AC30,'Utility Functions'!$BC$3:$BC$5,'Utility Functions'!$BD$3:$BD$5)","v":0.03},0.4451559901205534]
[30,{"$f":"$B$40*(valueE(B31,'Utility Functions'!$B$3,'Utility Functions'!$B$4,'Utility Functions'!$B$5,'Utility Functions'!$B$6))","v":2.9959234351431094E-2},{"$f":"$C$40*(valueE(C31,'Utility Functions'!$D$3,'Utility Functions'!$D$4,'Utility Functions'!$D$5,'Utility Functions'!$D$6))","v":2.542345105018548E-2},{"$f":"$D$40*(valuePL(D31,'Utility Functions'!$E$3:$E$5,'Utility Functions'!$F$3:$F$5))","v":0.03},{"$f":"$E$40*(valuePL(E31,'Utility Functions'!$G$3:$G$5,'Utility Functions'!$H$3:$H$5))","v":0},{"$f":"$F$40*(valuePL(F31,'Utility Functions'!$I$3:$I$4,'Utility Functions'!$J$3:$J$5))","v":0},{"$f":"$G$40*(valueE(G31,'Utility Functions'!$L$3,'Utility Functions'!$L$4,'Utility Functions'!$L$5,'Utility Functions'!$L$6))","v":0},{"$f":"$H$40*(valueE(H31,'Utility Functions'!$N$3,'Utility Functions'!$N$4,'Utility Functions'!$N$5,'Utility Functions'!$N$6))","v":0},{"$f":"$I$40*valuePL(I31,'Utility Functions'!$O$3:$O$6,'Utility Functions'!$P$3:$P$6)","v":0},{"$f":"$J$40*valuePL(J31,'Utility Functions'!$Q$3:$Q$6,'Utility Functions'!$R$3:$R$6)","v":0},{"$f":"$K$40*(valuePL(K31,'Utility Functions'!$S$3:$S$7,'Utility Functions'!$T$3:$T$7))","v":0},{"$f":"$L$40*(valueE(L31,'Utility Functions'!$V$3,'Utility Functions'!$V$4,'Utility Functions'!$V$5,'Utility Functions'!$V$6))","v":6.6666666666666662E-3},{"$f":"$M$40*valuePL(M31,'Utility Functions'!$W$3:$W$6,'Utility Functions'!$X$3:$X$6)","v":8.0000000000000004E-4},{"$f":"$N$40*valueE(N31,'Utility Functions'!$Z$3,'Utility Functions'!$Z$4,'Utility Functions'!$Z$5,'Utility Functions'!$Z$6)","v":0},{"$f":"$O$40*valuePL(O31,'Utility Functions'!$AA$3:$AA$5,'Utility Functions'!$AB$3:$AB$5)","v":0},{"$f":"$P$40*valuePL(P31,'Utility Functions'!$AC$3:$AC$7,'Utility Functions'!$AD$3:$AD$7)","v":0},{"$f":"$Q$40*valuePL(Q31,'Utility Functions'!$AE$3:$AE$6,'Utility Functions'!$AF$3:$AF$6)","v":0},{"$f":"$R$40*valuePL(R31,'Utility Functions'!$AG$3:$AG$6,'Utility Functions'!$AH$3:$AH$6)","v":1.0000000000000002E-2},{"$f":"$S$40*valuePL(S31,'Utility Functions'!$AI$3:$AI$6,'Utility Functions'!$AJ$3:$AJ$6)","v":1.6500000000000001E-2},{"$f":"$T$40*valuePL(T31,'Utility Functions'!$AK$3:$AK$8,'Utility Functions'!$AL$3:$AL$8)","v":0},{"$f":"$U$40*valuePL(U31,'Utility Functions'!$AM$3:$AM$5,'Utility Functions'!$AN$3:$AN$5)","v":0},{"$f":"$V$40*valuePL(V31,'Utility Functions'!$AO$3:$AO$5,'Utility Functions'!$AP$3:$AP$5)","v":0},{"$f":"$W$40*valuePL(W31,'Utility Functions'!$AQ$3:$AQ$6,'Utility Functions'!$AR$3:$AR$6)","v":0.04},{"$f":"$X$40*valuePL(X31,'Utility Functions'!$AS$3:$AS$6,'Utility Functions'!$AT$3:$AT$6)","v":8.0000000000000002E-3},{"$f":"$Y$40*valuePL(Y31,'Utility Functions'!$AU$3:$AU$6,'Utility Functions'!$AV$3:$AV$6)","v":4.0000000000000008E-2},{"$f":"$Z$40*valuePL(Z31,'Utility Functions'!$AW$3:$AW$5,'Utility Functions'!$AX$3:$AX$5)","v":0},{"$f":"$AA$40*valuePL(AA31,'Utility Functions'!$AY$3:$AY$6,'Utility Functions'!$AZ$3:$AZ$6)","v":3.5999999999999997E-2},{"$f":"$AB$40*valuePL(AB31,'Utility Functions'!$BA$3:$BA$5,'Utility Functions'!$BB$3:$BB$5)","v":0.04},{"$f":"$AC$40*valuePL(AC31,'Utility Functions'!$BC$3:$BC$5,'Utility Functions'!$BD$3:$BD$5)","v":0},0.28334935206828327]
[31,{"$f":"$B$40*(valueE(B32,'Utility Functions'!$B$3,'Utility Functions'!$B$4,'Utility Functions'!$B$5,'Utility Functions'!$B$6))","v":1.6520156106900608E-2},{"$f":"$C$40*(valueE(C32,'Utility Functions'!$D$3,'Utility Functions'!$D$4,'Utility Functions'!$D$5,'Utility Functions'!$D$6))","v":2.542345105018548E-2},{"$f":"$D$40*(valuePL(D32,'Utility Functions'!$E$3:$E$5,'Utility Functions'!$F$3:$F$5))","v":1.4999999999999999E-2},{"$f":"$E$40*(valuePL(E32,'Utility Functions'!$G$3:$G$5,'Utility Functions'!$H$3:$H$5))","v":0},{"$f":"$F$40*(valuePL(F32,'Utility Functions'!$I$3:$I$4,'Utility Functions'!$J$3:$J$5))","v":0},{"$f":"$G$40*(valueE(G32,'Utility Functions'!$L$3,'Utility Functions'!$L$4,'Utility Functions'!$L$5,'Utility Functions'!$L$6))","v":0},{"$f":"$H$40*(valueE(H32,'Utility Functions'!$N$3,'Utility Functions'!$N$4,'Utility Functions'!$N$5,'Utility Functions'!$N$6))","v":0},{"$f":"$I$40*valuePL(I32,'Utility Functions'!$O$3:$O$6,'Utility Functions'!$P$3:$P$6)","v":2.2636363636363635E-2},{"$f":"$J$40*valuePL(J32,'Utility Functions'!$Q$3:$Q$6,'Utility Functions'!$R$3:$R$6)","v":1.6000000000000001E-3},{"$f":"$K$40*(valuePL(K32,'Utility Functions'!$S$3:$S$7,'Utility Functions'!$T$3:$T$7))","v":0},{"$f":"$L$40*(valueE(L32,'Utility Functions'!$V$3,'Utility Functions'!$V$4,'Utility Functions'!$V$5,'Utility Functions'!$V$6))","v":6.6666666666666662E-3},{"$f":"$M$40*valuePL(M32,'Utility Functions'!$W$3:$W$6,'Utility Functions'!$X$3:$X$6)","v":1.6000000000000001E-3},{"$f":"$N$40*valueE(N32,'Utility Functions'!$Z$3,'Utility Functions'!$Z$4,'Utility Functions'!$Z$5,'Utility Functions'!$Z$6)","v":0},{"$f":"$O$40*valuePL(O32,'Utility Functions'!$AA$3:$AA$5,'Utility Functions'!$AB$3:$AB$5)","v":0},{"$f":"$P$40*valuePL(P32,'Utility Functions'!$AC$3:$AC$7,'Utility Functions'!$AD$3:$AD$7)","v":0.02},{"$f":"$Q$40*valuePL(Q32,'Utility Functions'!$AE$3:$AE$6,'Utility Functions'!$AF$3:$AF$6)","v":0},{"$f":"$R$40*valuePL(R32,'Utility Functions'!$AG$3:$AG$6,'Utility Functions'!$AH$3:$AH$6)","v":0.05},{"$f":"$S$40*valuePL(S32,'Utility Functions'!$AI$3:$AI$6,'Utility Functions'!$AJ$3:$AJ$6)","v":3.3000000000000002E-2},{"$f":"$T$40*valuePL(T32,'Utility Functions'!$AK$3:$AK$8,'Utility Functions'!$AL$3:$AL$8)","v":1.7999999999999999E-2},{"$f":"$U$40*valuePL(U32,'Utility Functions'!$AM$3:$AM$5,'Utility Functions'!$AN$3:$AN$5)","v":0},{"$f":"$V$40*valuePL(V32,'Utility Functions'!$AO$3:$AO$5,'Utility Functions'!$AP$3:$AP$5)","v":2.5000000000000001E-2},{"$f":"$W$40*valuePL(W32,'Utility Functions'!$AQ$3:$AQ$6,'Utility Functions'!$AR$3:$AR$6)","v":0},{"$f":"$X$40*valuePL(X32,'Utility Functions'!$AS$3:$AS$6,'Utility Functions'!$AT$3:$AT$6)","v":8.0000000000000002E-3},{"$f":"$Y$40*valuePL(Y32,'Utility Functions'!$AU$3:$AU$6,'Utility Functions'!$AV$3:$AV$6)","v":1.0000000000000002E-2},{"$f":"$Z$40*valuePL(Z32,'Utility Functions'!$AW$3:$AW$5,'Utility Functions'!$AX$3:$AX$5)","v":0.05},{"$f":"$AA$40*valuePL(AA32,'Utility Functions'!$AY$3:$AY$6,'Utility Functions'!$AZ$3:$AZ$6)","v":3.5999999999999997E-2},{"$f":"$AB$40*valuePL(AB32,'Utility Functions'!$BA$3:$BA$5,'Utility Functions'!$BB$3:$BB$5)","v":0.01},{"$f":"$AC$40*valuePL(AC32,'Utility Functions'!$BC$3:$BC$5,'Utility Functions'!$BD$3:$BD$5)","v":7.4999999999999997E-3},0.35694663746011634]
[{"$f":"A33","v":32},{"$f":"$B$40*(valueE(B33,'Utility Functions'!$B$3,'Utility Functions'!$B$4,'Utility Functions'!$B$5,'Utility Functions'!$B$6))","v":1.896364549751255E-2},{"$f":"$C$40*(valueE(C33,'Utility Functions'!$D$3,'Utility Functions'!$D$4,'Utility Functions'!$D$5,'Utility Functions'!$D$6))","v":8.0518966871447988E-3},{"$f":"$D$40*(valuePL(D33,'Utility Functions'!$E$3:$E$5,'Utility Functions'!$F$3:$F$5))","v":0.03},{"$f":"$E$40*(valuePL(E33,'Utility Functions'!$G$3:$G$5,'Utility Functions'!$H$3:$H$5))","v":0.03},{"$f":"$F$40*(valuePL(F33,'Utility Functions'!$I$3:$I$4,'Utility Functions'!$J$3:$J$5))","v":0.04},{"$f":"$G$40*(valueE(G33,'Utility Functions'!$L$3,'Utility Functions'!$L$4,'Utility Functions'!$L$5,'Utility Functions'!$L$6))","v":4.8387096774193543E-4},{"$f":"$H$40*(valueE(H33,'Utility Functions'!$N$3,'Utility Functions'!$N$4,'Utility Functions'!$N$5,'Utility Functions'!$N$6))","v":1.4516129032258063E-3},{"$f":"$I$40*valuePL(I33,'Utility Functions'!$O$3:$O$6,'Utility Functions'!$P$3:$P$6)","v":1.0363636363636363E-2},{"$f":"$J$40*valuePL(J33,'Utility Functions'!$Q$3:$Q$6,'Utility Functions'!$R$3:$R$6)","v":0.02},{"$f":"$K$40*(valuePL(K33,'Utility Functions'!$S$3:$S$7,'Utility Functions'!$T$3:$T$7))","v":6.909090909090909E-3},{"$f":"$L$40*(valueE(L33,'Utility Functions'!$V$3,'Utility Functions'!$V$4,'Utility Functions'!$V$5,'Utility Functions'!$V$6))","v":0.02},{"$f":"$M$40*valuePL(M33,'Utility Functions'!$W$3:$W$6,'Utility Functions'!$X$3:$X$6)","v":0.02},{"$f":"$N$40*valueE(N33,'Utility Functions'!$Z$3,'Utility Functions'!$Z$4,'Utility Functions'!$Z$5,'Utility Functions'!$Z$6)","v":0},{"$f":"$O$40*valuePL(O33,'Utility Functions'!$AA$3:$AA$5,'Utility Functions'!$AB$3:$AB$5)","v":0},{"$f":"$P$40*valuePL(P33,'Utility Functions'!$AC$3:$AC$7,'Utility Functions'!$AD$3:$AD$7)","v":0.02},{"$f":"$Q$40*valuePL(Q33,'Utility Functions'!$AE$3:$AE$6,'Utility Functions'!$AF$3:$AF$6)","v":0.04},{"$f":"$R$40*valuePL(R33,'Utility Functions'!$AG$3:$AG$6,'Utility Functions'!$AH$3:$AH$6)","v":0.05},{"$f":"$S$40*valuePL(S33,'Utility Functions'!$AI$3:$AI$6,'Utility Functions'!$AJ$3:$AJ$6)","v":0},{"$f":"$T$40*valuePL(T33,'Utility Functions'!$AK$3:$AK$8,'Utility Functions'!$AL$3:$AL$8)","v":2.4E-2},{"$f":"$U$40*valuePL(U33,'Utility Functions'!$AM$3:$AM$5,'Utility Functions'!$AN$3:$AN$5)","v":0},{"$f":"$V$40*valuePL(V33,'Utility Functions'!$AO$3:$AO$5,'Utility Functions'!$AP$3:$AP$5)","v":0},{"$f":"$W$40*valuePL(W33,'Utility Functions'!$AQ$3:$AQ$6,'Utility Functions'!$AR$3:$AR$6)","v":0.03},{"$f":"$X$40*valuePL(X33,'Utility Functions'!$AS$3:$AS$6,'Utility Functions'!$AT$3:$AT$6)","v":8.0000000000000002E-3},{"$f":"$Y$40*valuePL(Y33,'Utility Functions'!$AU$3:$AU$6,'Utility Functions'!$AV$3:$AV$6)","v":4.0000000000000008E-2},{"$f":"$Z$40*valuePL(Z33,'Utility Functions'!$AW$3:$AW$5,'Utility Functions'!$AX$3:$AX$5)","v":2.5000000000000001E-2},{"$f":"$AA$40*valuePL(AA33,'Utility Functions'!$AY$3:$AY$6,'Utility Functions'!$AZ$3:$AZ$6)","v":0},{"$f":"$AB$40*valuePL(AB33,'Utility Functions'!$BA$3:$BA$5,'Utility Functions'!$BB$3:$BB$5)","v":0.04},{"$f":"$AC$40*valuePL(AC33,'Utility Functions'!$BC$3:$BC$5,'Utility Functions'!$BD$3:$BD$5)","v":7.4999999999999997E-3},0.49072375332835239]
[33,{"$f":"$B$40*(valueE(B34,'Utility Functions'!$B$3,'Utility Functions'!$B$4,'Utility Functions'!$B$5,'Utility Functions'!$B$6))","v":2.8175740811551258E-2},{"$f":"$C$40*(valueE(C34,'Utility Functions'!$D$3,'Utility Functions'!$D$4,'Utility Functions'!$D$5,'Utility Functions'!$D$6))","v":2.542345105018548E-2},{"$f":"$D$40*(valuePL(D34,'Utility Functions'!$E$3:$E$5,'Utility Functions'!$F$3:$F$5))","v":0.03},{"$f":"$E$40*(valuePL(E34,'Utility Functions'!$G$3:$G$5,'Utility Functions'!$H$3:$H$5))","v":1.4999999999999999E-2},{"$f":"$F$40*(valuePL(F34,'Utility Functions'!$I$3:$I$4,'Utility Functions'!$J$3:$J$5))","v":0},{"$f":"$G$40*(valueE(G34,'Utility Functions'!$L$3,'Utility Functions'!$L$4,'Utility Functions'!$L$5,'Utility Functions'!$L$6))","v":0},{"$f":"$H$40*(valueE(H34,'Utility Functions'!$N$3,'Utility Functions'!$N$4,'Utility Functions'!$N$5,'Utility Functions'!$N$6))","v":0},{"$f":"$I$40*valuePL(I34,'Utility Functions'!$O$3:$O$6,'Utility Functions'!$P$3:$P$6)","v":0},{"$f":"$J$40*valuePL(J34,'Utility Functions'!$Q$3:$Q$6,'Utility Functions'!$R$3:$R$6)","v":0},{"$f":"$K$40*(valuePL(K34,'Utility Functions'!$S$3:$S$7,'Utility Functions'!$T$3:$T$7))","v":0},{"$f":"$L$40*(valueE(L34,'Utility Functions'!$V$3,'Utility Functions'!$V$4,'Utility Functions'!$V$5,'Utility Functions'!$V$6))","v":0.01},{"$f":"$M$40*valuePL(M34,'Utility Functions'!$W$3:$W$6,'Utility Functions'!$X$3:$X$6)","v":0},{"$f":"$N$40*valueE(N34,'Utility Functions'!$Z$3,'Utility Functions'!$Z$4,'Utility Functions'!$Z$5,'Utility Functions'!$Z$6)","v":0},{"$f":"$O$40*valuePL(O34,'Utility Functions'!$AA$3:$AA$5,'Utility Functions'!$AB$3:$AB$5)","v":0},{"$f":"$P$40*valuePL(P34,'Utility Functions'!$AC$3:$AC$7,'Utility Functions'!$AD$3:$AD$7)","v":0.02},{"$f":"$Q$40*valuePL(Q34,'Utility Functions'!$AE$3:$AE$6,'Utility Functions'!$AF$3:$AF$6)","v":0},{"$f":"$R$40*valuePL(R34,'Utility Functions'!$AG$3:$AG$6,'Utility Functions'!$AH$3:$AH$6)","v":0.05},{"$f":"$S$40*valuePL(S34,'Utility Functions'!$AI$3:$AI$6,'Utility Functions'!$AJ$3:$AJ$6)","v":3.3000000000000002E-2},{"$f":"$T$40*valuePL(T34,'Utility Functions'!$AK$3:$AK$8,'Utility Functions'!$AL$3:$AL$8)","v":0},{"$f":"$U$40*valuePL(U34,'Utility Functions'!$AM$3:$AM$5,'Utility Functions'!$AN$3:$AN$5)","v":0},{"$f":"$V$40*valuePL(V34,'Utility Functions'!$AO$3:$AO$5,'Utility Functions'!$AP$3:$AP$5)","v":2.5000000000000001E-2},{"$f":"$W$40*valuePL(W34,'Utility Functions'!$AQ$3:$AQ$6,'Utility Functions'!$AR$3:$AR$6)","v":0.04},{"$f":"$X$40*valuePL(X34,'Utility Functions'!$AS$3:$AS$6,'Utility Functions'!$AT$3:$AT$6)","v":0},{"$f":"$Y$40*valuePL(Y34,'Utility Functions'!$AU$3:$AU$6,'Utility Functions'!$AV$3:$AV$6)","v":4.0000000000000008E-2},{"$f":"$Z$40*valuePL(Z34,'Utility Functions'!$AW$3:$AW$5,'Utility Functions'!$AX$3:$AX$5)","v":0.05},{"$f":"$AA$40*valuePL(AA34,'Utility Functions'!$AY$3:$AY$6,'Utility Functions'!$AZ$3:$AZ$6)","v":0.04},{"$f":"$AB$40*valuePL(AB34,'Utility Functions'!$BA$3:$BA$5,'Utility Functions'!$BB$3:$BB$5)","v":0},{"$f":"$AC$40*valuePL(AC34,'Utility Functions'!$BC$3:$BC$5,'Utility Functions'!$BD$3:$BD$5)","v":0},0.40659919186173665]
[34,{"$f":"$B$40*(valueE(B35,'Utility Functions'!$B$3,'Utility Functions'!$B$4,'Utility Functions'!$B$5,'Utility Functions'!$B$6))","v":0},{"$f":"$C$40*(valueE(C35,'Utility Functions'!$D$3,'Utility Functions'!$D$4,'Utility Functions'!$D$5,'Utility Functions'!$D$6))","v":0},{"$f":"$D$40*(valuePL(D35,'Utility Functions'!$E$3:$E$5,'Utility Functions'!$F$3:$F$5))","v":0},{"$f":"$E$40*(valuePL(E35,'Utility Functions'!$G$3:$G$5,'Utility Functions'!$H$3:$H$5))","v":0},{"$f":"$F$40*(valuePL(F35,'Utility Functions'!$I$3:$I$4,'Utility Functions'!$J$3:$J$5))","v":0},{"$f":"$G$40*(valueE(G35,'Utility Functions'!$L$3,'Utility Functions'!$L$4,'Utility Functions'!$L$5,'Utility Functions'!$L$6))","v":0},{"$f":"$H$40*(valueE(H35,'Utility Functions'!$N$3,'Utility Functions'!$N$4,'Utility Functions'!$N$5,'Utility Functions'!$N$6))","v":1.7077798861480075E-4},{"$f":"$I$40*valuePL(I35,'Utility Functions'!$O$3:$O$6,'Utility Functions'!$P$3:$P$6)","v":0.03},{"$f":"$J$40*valuePL(J35,'Utility Functions'!$Q$3:$Q$6,'Utility Functions'!$R$3:$R$6)","v":1.8363636363636363E-2},{"$f":"$K$40*(valuePL(K35,'Utility Functions'!$S$3:$S$7,'Utility Functions'!$T$3:$T$7))","v":0.02},{"$f":"$L$40*(valueE(L35,'Utility Functions'!$V$3,'Utility Functions'!$V$4,'Utility Functions'!$V$5,'Utility Functions'!$V$6))","v":0.02},{"$f":"$M$40*valuePL(M35,'Utility Functions'!$W$3:$W$6,'Utility Functions'!$X$3:$X$6)","v":1.8363636363636363E-2},{"$f":"$N$40*valueE(N35,'Utility Functions'!$Z$3,'Utility Functions'!$Z$4,'Utility Functions'!$Z$5,'Utility Functions'!$Z$6)","v":0},{"$f":"$O$40*valuePL(O35,'Utility Functions'!$AA$3:$AA$5,'Utility Functions'!$AB$3:$AB$5)","v":0},{"$f":"$P$40*valuePL(P35,'Utility Functions'!$AC$3:$AC$7,'Utility Functions'!$AD$3:$AD$7)","v":0.02},{"$f":"$Q$40*valuePL(Q35,'Utility Functions'!$AE$3:$AE$6,'Utility Functions'!$AF$3:$AF$6)","v":0},{"$f":"$R$40*valuePL(R35,'Utility Functions'!$AG$3:$AG$6,'Utility Functions'!$AH$3:$AH$6)","v":0.05},{"$f":"$S$40*valuePL(S35,'Utility Functions'!$AI$3:$AI$6,'Utility Functions'!$AJ$3:$AJ$6)","v":0.05},{"$f":"$T$40*valuePL(T35,'Utility Functions'!$AK$3:$AK$8,'Utility Functions'!$AL$3:$AL$8)","v":2.4E-2},{"$f":"$U$40*valuePL(U35,'Utility Functions'!$AM$3:$AM$5,'Utility Functions'!$AN$3:$AN$5)","v":0},{"$f":"$V$40*valuePL(V35,'Utility Functions'!$AO$3:$AO$5,'Utility Functions'!$AP$3:$AP$5)","v":0.05},{"$f":"$W$40*valuePL(W35,'Utility Functions'!$AQ$3:$AQ$6,'Utility Functions'!$AR$3:$AR$6)","v":0.04},{"$f":"$X$40*valuePL(X35,'Utility Functions'!$AS$3:$AS$6,'Utility Functions'!$AT$3:$AT$6)","v":0.04},{"$f":"$Y$40*valuePL(Y35,'Utility Functions'!$AU$3:$AU$6,'Utility Functions'!$AV$3:$AV$6)","v":0},{"$f":"$Z$40*valuePL(Z35,'Utility Functions'!$AW$3:$AW$5,'Utility Functions'!$AX$3:$AX$5)","v":0.05},{"$f":"$AA$40*valuePL(AA35,'Utility Functions'!$AY$3:$AY$6,'Utility Functions'!$AZ$3:$AZ$6)","v":3.5999999999999997E-2},{"$f":"$AB$40*valuePL(AB35,'Utility Functions'!$BA$3:$BA$5,'Utility Functions'!$BB$3:$BB$5)","v":0.01},{"$f":"$AC$40*valuePL(AC35,'Utility Functions'!$BC$3:$BC$5,'Utility Functions'!$BD$3:$BD$5)","v":0},0.47689805071588748]
[35,{"$f":"$B$40*(valueE(B36,'Utility Functions'!$B$3,'Utility Functions'!$B$4,'Utility Functions'!$B$5,'Utility Functions'!$B$6))","v":2.3943140737469053E-2},{"$f":"$C$40*(valueE(C36,'Utility Functions'!$D$3,'Utility Functions'!$D$4,'Utility Functions'!$D$5,'Utility Functions'!$D$6))","v":1.8281994940530583E-2},{"$f":"$D$40*(valuePL(D36,'Utility Functions'!$E$3:$E$5,'Utility Functions'!$F$3:$F$5))","v":1.4999999999999999E-2},{"$f":"$E$40*(valuePL(E36,'Utility Functions'!$G$3:$G$5,'Utility Functions'!$H$3:$H$5))","v":1.4999999999999999E-2},{"$f":"$F$40*(valuePL(F36,'Utility Functions'!$I$3:$I$4,'Utility Functions'!$J$3:$J$5))","v":0.04},{"$f":"$G$40*(valueE(G36,'Utility Functions'!$L$3,'Utility Functions'!$L$4,'Utility Functions'!$L$5,'Utility Functions'!$L$6))","v":0},{"$f":"$H$40*(valueE(H36,'Utility Functions'!$N$3,'Utility Functions'!$N$4,'Utility Functions'!$N$5,'Utility Functions'!$N$6))","v":0},{"$f":"$I$40*valuePL(I36,'Utility Functions'!$O$3:$O$6,'Utility Functions'!$P$3:$P$6)","v":0},{"$f":"$J$40*valuePL(J36,'Utility Functions'!$Q$3:$Q$6,'Utility Functions'!$R$3:$R$6)","v":0},{"$f":"$K$40*(valuePL(K36,'Utility Functions'!$S$3:$S$7,'Utility Functions'!$T$3:$T$7))","v":0.02},{"$f":"$L$40*(valueE(L36,'Utility Functions'!$V$3,'Utility Functions'!$V$4,'Utility Functions'!$V$5,'Utility Functions'!$V$6))","v":1.3333333333333332E-2},{"$f":"$M$40*valuePL(M36,'Utility Functions'!$W$3:$W$6,'Utility Functions'!$X$3:$X$6)","v":2E-3},{"$f":"$N$40*valueE(N36,'Utility Functions'!$Z$3,'Utility Functions'!$Z$4,'Utility Functions'!$Z$5,'Utility Functions'!$Z$6)","v":0.03},{"$f":"$O$40*valuePL(O36,'Utility Functions'!$AA$3:$AA$5,'Utility Functions'!$AB$3:$AB$5)","v":0},{"$f":"$P$40*valuePL(P36,'Utility Functions'!$AC$3:$AC$7,'Utility Functions'!$AD$3:$AD$7)","v":0},{"$f":"$Q$40*valuePL(Q36,'Utility Functions'!$AE$3:$AE$6,'Utility Functions'!$AF$3:$AF$6)","v":0},{"$f":"$R$40*valuePL(R36,'Utility Functions'!$AG$3:$AG$6,'Utility Functions'!$AH$3:$AH$6)","v":0.05},{"$f":"$S$40*valuePL(S36,'Utility Functions'!$AI$3:$AI$6,'Utility Functions'!$AJ$3:$AJ$6)","v":0.05},{"$f":"$T$40*valuePL(T36,'Utility Functions'!$AK$3:$AK$8,'Utility Functions'!$AL$3:$AL$8)","v":1.7999999999999999E-2},{"$f":"$U$40*valuePL(U36,'Utility Functions'!$AM$3:$AM$5,'Utility Functions'!$AN$3:$AN$5)","v":0},{"$f":"$V$40*valuePL(V36,'Utility Functions'!$AO$3:$AO$5,'Utility Functions'!$AP$3:$AP$5)","v":0.05},{"$f":"$W$40*valuePL(W36,'Utility Functions'!$AQ$3:$AQ$6,'Utility Functions'!$AR$3:$AR$6)","v":0.03},{"$f":"$X$40*valuePL(X36,'Utility Functions'!$AS$3:$AS$6,'Utility Functions'!$AT$3:$AT$6)","v":0},{"$f":"$Y$40*valuePL(Y36,'Utility Functions'!$AU$3:$AU$6,'Utility Functions'!$AV$3:$AV$6)","v":1.0000000000000002E-2},{"$f":"$Z$40*valuePL(Z36,'Utility Functions'!$AW$3:$AW$5,'Utility Functions'!$AX$3:$AX$5)","v":0.05},{"$f":"$AA$40*valuePL(AA36,'Utility Functions'!$AY$3:$AY$6,'Utility Functions'!$AZ$3:$AZ$6)","v":0},{"$f":"$AB$40*valuePL(AB36,'Utility Functions'!$BA$3:$BA$5,'Utility Functions'!$BB$3:$BB$5)","v":0.01},{"$f":"$AC$40*valuePL(AC36,'Utility Functions'!$BC$3:$BC$5,'Utility Functions'!$BD$3:$BD$5)","v":7.4999999999999997E-3},0.45305846901133295]
[null,{"$f":"B38","v":"manage_species"},{"$f":"C38","v":"manage_spatial"},"manage_uncertainty","manage_currentpractices","manage_adaptivemanagement","pop_a","pop_b","pop_spatialscope","pop_temporalscope","hab_quantity","hab_quality","hab_temporal","ecoprocess_spp","ecoprocess_uncertainty","datasharing","broaderimpacts","exisitingpriorities","partners","leverage","alignment","objhyp","response","targettaxa","surveydesign","stats","datamanagement","budget","timeline","total",null,"mgmt","status","ep","integration","rigor"]
[null,{"$f":"SUMPRODUCT($B$83:$B$117,B$43:B$77)","v":0.21148423729901222},0.15003304699033979,0.27,0.09,0.08,3.6612903225806452E-2,2.433586337760911E-2,4.8981818181818182E-2,2.3599999999999999E-2,1.3490909090909092E-2,5.333333333333333E-2,2.3599999999999999E-2,0.09,0.1575,0.24,0.124,0.49,0.49949999999999994,0.18599999999999997,7.4999999999999997E-3,0.35,0.30600000000000005,0.24800000000000005,0.32000000000000006,0.32500000000000007,0.19600000000000004,0.35,0.18750000000000003,5.1024721114988285,null,{"$f":"SUM(B79:F79)","v":0.80151728428935198},{"$f":"SUM(G79:M79)","v":0.22395482720947618},{"$f":"SUM(N79:O79)","v":0.2475},{"$f":"SUM(P79:U79)","v":1.5469999999999999},{"$f":"SUM(V79:AC79)","v":2.2825000000000002}]
[]
[]
[null,"Decision variable","Benefit","Cost"]
[{"$f":"A2","v":1},1,{"$f":"AD43","v":0.62852931598576234},{"$f":"AD2","v":700000}]
[{"$f":"A3","v":2},0,{"$f":"AD44","v":0.53424877401727988},{"$f":"AD3","v":5400000}]
[3,0,0.45890624332907692,250000]
[4,0,0.37738087579326757,150000]
[5,0,0.37358983775406607,220000]
[6,1,0.21762541381415162,110000]
[7,0,0.55883167443779502,1000000]
[8,0,0.52659366793040296,5000000]
[9,1,0.45837563615750632,25000]
[10,0,0.42049999999999998,900000]
[11,0,0.48800366568914949,1500000]
[12,0,0.38158740731015961,100000]
[13,1,0.30547532344316031,250000]
[14,0,0.4311611991122532,500000]
[15,0,0.60971431784243146,800000]
[16,0,0.54339393939393943,2000000]
[17,0,0.40209196138985603,500000]
[{"$f":"A19","v":18},1,0.43942694497153706,300000]
[19,0,0.41549503742461386,750000]
[20,0,0.55885300951154004,1500000]
[21,0,0.42149999999999999,900000]
[22,1,0.44445113851992418,750000]
[23,0,0.37896452234436967,1000000]
[24,1,0.37890643564363613,150000]
[25,1,0.53254137243924626,250000]
[26,1,0.42942229688880618,500000]
[27,0,0.34094279014612355,1200000]
[28,1,0.49364512823846229,500000]
[{"$f":"A30","v":29},0,0.4451559901205534,2000000]
[30,1,0.28334935206828327,250000]
[31,0,0.35694663746011634,650000]
[32,1,0.49072375332835239,200000]
[{"$f":"A34","v":33},0,0.40659919186173665,400000]
[34,0,0.47689805071588748,900000]
[{"$f":"A36","v":35},0,0.45305846901133295,900000]
[null,{"$f":"SUM(B83:B117)","v":12},{"$f":"SUMPRODUCT(B83:B117,C83:C117)","v":5.1024721114988285},{"$f":"SUMPRODUCT(B83:B117,D83:D117)","v":3985000}]
[]
[null,null,"Cost constraint",15000000]

{"sheet":"Constraint_Scenario_3","index":15,"n_rows":120,"n_cols":40,"rows_kept":120,"cut":false,"hidden":false,"merged":[]}
["Project","manage_species","manage_spatial","manage_uncertainty","manage_currentpractices","manage_adaptivemanagement","pop_a","pop_b","pop_spatialscope","pop_temporalscope","hab_quantity","hab_quality","hab_temporal","ecoprocess_spp","ecoprocess_uncertainty","datasharing","broaderimpacts","exisitingpriorities","partners","leverage","alignment","objhyp","response","targettaxa","surveydesign","stats","datamanagement","budget","timeline","cost",null,"Project","title","states","taxa_groups","A_Marshbird_portfolio","B_Shorebird_portfolio","C_All_states_portfolio","D_No_proj_over_halfM","E_Texas_portfolio"]
[1,9,6.25,2,2,0,186,1054,75,5,0,2,0,0,0,4,0,2,3,0,0,2,3,3,3,2,3,2,2,700000,null,1,"NFWF-A","NA","Shorebirds",0,1,0,0,0]
[2,3,28.2,1,0,0,0,0,0,0,0,2,0,4,1,0,0,3,3,0,0,2,3,3,3,2,3,2,2,5400000,null,2,"NFWF-B","NA","NA",0,0,0,0,0]
[3,8,28.2,2,0,0,0,0,0,0,0,2,0,5,1,0,2,0,0,0,1,2,3,3,3,2,1,2,2,250000,null,3,"NFWF-C","NA","NA",0,0,0,1,0]
[4,1,6.25,2,0,0,0,0,0,0,0,2,0,4,1,0,1,3,3,4,0,1,3,3,1,0,0,2,1,150000,null,4,"NFWF-D","LA","Shorebirds",0,1,0,0,0]
[5,4,3.1,2,0,0,0,0,50,2,0,2,0,0,0,0,1,3,3,4,1,0,3,3,2,0,0,2,1,220000,null,5,"NFWF-E","MS,FL","Shorebirds",0,1,0,1,0]
[6,10,6.2E-2,2,0,0,0,0,10,2,0,2,0,0,0,0,1,0,3,3,0,0,0,3,0,0,0,2,1,110000,null,6,"NFWF-F","TX,LA","Shorebirds",0,1,0,0,1]
[7,52,18.8,0,2,0,0,0,85,12,85,8,12,8,1,0,0,3,3,0,0,2,0,1,3,2,2,0,2,1000000,null,7,"Omnibus Monitoring In Response to Sea Level Rise","All","All Minus Seabirds",0,0,1,0,0]
[8,3,18.8,2,1,1,0,0,14,14,14,8,14,0,0,0,3,1,3,0,0,2,3,3,3,2,0,1,1,5000000,null,8,"The effectiveness of island creation in Mobile Bay for island nesting species","AL","wading, Seabirds",0,0,0,0,0]
[9,9,15.6,2,1,0,70,140,0,0,0,2,0,0,0,3,0,3,2,1,0,2,3,3,1,2,1,1,2,25000,null,9,"the impact of wind development on migrating raptors in the GoM","All","Raptors",0,0,0,0,0]
[10,0,0,0,0,0,0,0,0,0,0,2,0,6,2,1,2,3,2,2,0,0,2,3,3,1,1,0,2,900000,null,10,"Do hurricanes impact survival of migratory/wintering waterfowl? Does stress/movement to avoid hurricanes impact migratory/wintering waterfowl survival?","Texas","Waterfowl",0,0,0,0,1]
[11,0,0,0,0,0,6,102,52,15,52,8,15,3,1,1,0,3,3,2,2,2,1,3,3,1,2,0,1,1500000,null,11,"How does increase in salinity impact habitat quality/quantity, and does it impact the population trend of wetland associated birds?","All","waterfowl, marshbirds, wadingbirds",0,0,1,0,0]
[12,2,15.6,2,1,0,0,0,0,0,0,2,0,0,0,0,1,3,3,3,0,1,1,3,1,2,1,2,0,100000,null,12,"The impact of rice agriculture on nesting King Rails and wintering Yellow Rails in Louisiana","LA","marshbird, landbird",1,0,0,0,0]
[13,0,0,0,0,0,0,12,39,2,39,8,2,7,1,1,0,3,3,0,0,1,0,1,0,2,1,1,1,250000,null,13,"How do hurricanes impact forage quality for nesting wadingbirds?","Fl, AL","Wading",0,0,0,1,0]
[14,6,15.6,1,1,0,0,0,0,0,0,2,0,6,1,1,0,3,3,0,0,1,1,3,3,1,2,1,1,500000,null,14,"How do hurriances impact forest management rotations, and nesting landbirds and raptors in those forests?","MS, AL","Landbird,Raptor",0,0,0,0,0]
[15,23,12.5,2,1,1,0,0,23,3,23,8,3,1,2,2,0,2,3,3,2,0,3,1,1,2,3,2,1,800000,null,15,"Using adaptive managgement to learn about how we should manage grasslands using prescribed fire in the face of climage change","All","Landbirds,Marshbird,Raptor",0,0,0,0,0]
[16,0,0,0,0,0,0,0,100,15,100,7,15,0,0,3,0,3,3,5,0,2,2,2,1,2,3,2,2,2000000,null,16,"Long-term monitoring of GoM raptors","All","Raptors",0,0,0,0,0]
[17,2,15.6,2,1,1,58,290,0,0,0,8,3,0,0,0,0,3,2,0,0,2,3,1,0,1,0,2,1,500000,null,17,"Learning more about how perscribed fire increases habitat quantity in forested systems through adapative management?","MS,AL","Landbirds",0,0,0,0,0]
[18,0,0,0,0,0,0,30,0,0,0,2,0,8,1,1,3,3,3,5,1,2,2,1,2,1,2,1,0,300000,null,18,"How do hurriances impact the survival of marshbirds","All","Marshbirds",1,0,0,1,0]
[19,8,3.125,1,2,0,0,0,0,0,0,2,0,8,2,0,0,2,3,0,0,1,1,3,2,0,1,0,1,750000,null,19,"How can prescribed fire be used to manage scrubland habitats for a greater diversity of migratory birds in the face of climate change?","ALl","Landbirds",0,0,0,0,0]
[20,9,15.6,1,2,0,0,435,76,10,76,6,10,8,2,1,0,3,3,3,2,1,0,0,1,2,1,0,1,1500000,null,20,"Comparison of the impacts of forested habitat cover change on population dynamics of long and short distance migrants","All","Landbirds",0,0,0,0,0]
[21,0,0,0,0,0,0,0,0,0,0,2,0,8,2,0,1,3,3,5,1,0,2,3,1,0,3,1,2,900000,null,21,"How do open ocean currents, surface temperature and seasonality impact seabird use off the GoM?","All","Seabirds",0,0,0,0,0]
[22,0,0,0,0,0,16,64,0,0,0,2,0,1,2,4,2,2,3,5,0,1,2,1,0,2,1,2,1,750000,null,22,"What has a larger impact on X seabird populations in the gulf, plastic consumption, accidental take, or weather patterns?","ALl","Seabirds",0,0,0,0,0]
[23,9,18.8,2,0,0,0,0,0,0,0,2,0,0,0,3,0,3,3,5,0,2,1,2,1,1,1,0,1,1000000,null,23,"How does water management, including the flooding of wetlands and cropfields, impact overwinter waterfowl surival?","All","Waterfowl",0,0,0,0,0]
[24,5,6.25,2,0,0,0,0,0,0,0,2,0,0,0,0,0,3,3,5,0,0,3,1,3,2,1,0,2,150000,null,24,"What kind of signage is most effective for decreasing human disturbance impacts on beach nesting birds?","All","Shorebirds",0,0,0,0,0]
[25,9,18.8,2,0,0,176,308,0,0,0,2,0,8,1,2,2,3,3,0,0,2,1,3,2,1,1,2,2,250000,null,25,"How does invasive species control impact marshbird use?","TX,LA,MS","Marshbirds",1,0,0,0,1]
[26,17,18.8,2,1,0,0,0,0,0,0,2,0,0,0,3,0,3,3,4,0,2,1,0,2,0,1,2,2,500000,null,26,"How does human disturbance impact the nest survival and fledging rate of nesting wading and marshbirds","Al,MS,FL","Marshbirds, Wadingbirds",0,0,0,0,0]
[27,0,6.25,2,0,0,0,0,0,0,80,2,5,0,0,2,2,3,3,5,0,1,2,3,1,0,0,0,0,1200000,null,27,"How does beach renourishment impact the invertebrate communities which are used by migratory and wintering shorebirds?","All","Shorebirds",0,1,0,0,0]
[28,3,6.25,2,0,1,0,0,0,0,0,4,5,0,0,4,0,3,3,4,0,2,3,3,1,0,2,2,1,500000,null,28,"Learning about how beach renourishment after oil contamination can increase habitat quantity for 3 declining shorebirds","LA","Shorebirds",0,0,0,0,0]
[29,9,12.5,2,1,0,0,0,15,12,15,8,12,0,0,1,0,3,3,4,0,2,1,0,2,1,1,1,2,2000000,null,29,"When restoring wetlands and grasslands, but unable to restore very large patches, is there an advantage to restoring the two habitat types near each other for species in each habitat type, versus cropfields","ALl","Marshbirds, Landbirds, Raptors",0,0,0,0,1]
[30,33,18.8,2,0,0,0,0,0,0,0,4,2,0,0,0,0,1,1,0,0,0,3,1,2,0,2,2,0,250000,null,30,"How does prescribed fire impact marshbird habitat quanitity?","LA","Marshbirds",1,0,0,0,0]
[31,4,18.8,1,0,0,0,0,65,4,0,4,4,0,0,2,0,3,2,3,0,1,0,1,1,2,2,1,1,650000,null,31,"How does fresh water management impact the quantity of wetland habitat available to wintering marshbirds?","TX,LA,MS","Marshbirds",1,0,0,0,1]
[32,5,3.125,2,2,1,6,102,40,16,40,8,16,0,0,2,3,3,0,4,0,0,2,1,2,1,0,2,1,200000,null,32,"Learning about how management of scrub shrub succession impacts habitat quantity and quantity as well as population trends for migratory landbirds through adpative management","FL, Al","Landbirds",0,0,0,0,0]
[33,14,18.8,2,1,0,0,0,0,0,0,5,0,0,0,2,0,3,2,0,0,1,3,0,2,2,3,0,0,400000,null,33,"The impacts of offshore oil development on wintering seabirds and lesser scaup","All","Seabirds, Waterfowl",0,0,1,1,0]
[34,0,0,0,0,0,0,12,100,15,100,8,15,0,0,2,0,3,3,4,0,2,3,3,0,2,2,1,0,900000,null,34,"long-term monitoring of the reddish egret","All","Wading",0,0,1,0,0]
[35,8,9.4,1,1,1,0,0,0,0,100,6,5,8,0,0,0,3,3,3,0,2,2,0,1,2,0,1,1,900000,null,35,"The impacts of sealevel rise and stormwater management on the habitat quantity , food resources and use by wadingbirds","All","Wading",0,0,1,0,0]
[]
[null,{"$f":"B1","v":"manage_species"},{"$f":"C1","v":"manage_spatial"},"manage_uncertainty","manage_currentpractices","manage_adaptivemanagement","pop_a","pop_b","pop_spatialscope","pop_temporalscope","hab_quantity","hab_quality","hab_temporal","ecoprocess_spp","ecoprocess_uncertainty","datasharing","broaderimpacts","exisitingpriorities","partners","leverage","alignment","objhyp","response","targettaxa","surveydesign","stats","datamanagement","budget","timeline"]
[null,"Metric 1","Metric 2","Metric 3","Metric 4","Metric 5","Metric 6a","Metric 6b","Metric 7","Metric 8","Metric 9","Metric 10","Metric 11","Metric 12","Metric 13","Metric 14","Metric 15","Metric 16","Metric 17","Metric 18","Metric 19","Metric 20","Metric 21","Metric 22","Metric 23","Metric 24","Metric 25","Metric 26","Metric 27"]
["Weights",0.03,0.03,0.03,0.03,0.04,1.4999999999999999E-2,1.4999999999999999E-2,0.03,0.02,0.02,0.02,0.02,0.03,0.09,0.04,0.04,0.05,0.05,0.03,0.03,0.05,0.04,0.04,0.05,0.05,0.04,0.04,0.03]
[]
["Project",null,null,null,null,null,null,null,null,null,null,null,null,null,null,null,null,null,null,null,null,null,null,null,null,null,null,null,null,"total"]
[{"$f":"A2","v":1},{"$f":"$B$40*(valueE(B2,'Utility Functions'!$B$3,'Utility Functions'!$B$4,'Utility Functions'!$B$5,'Utility Functions'!$B$6))","v":2.5041071294184137E-2},{"$f":"$C$40*(valueE(C2,'Utility Functions'!$D$3,'Utility Functions'!$D$4,'Utility Functions'!$D$5,'Utility Functions'!$D$6))","v":1.3942790146123618E-2},{"$f":"$D$40*(valuePL(D2,'Utility Functions'!$E$3:$E$5,'Utility Functions'!$F$3:$F$5))","v":0.03},{"$f":"$E$40*(valuePL(E2,'Utility Functions'!$G$3:$G$5,'Utility Functions'!$H$3:$H$5))","v":0.03},{"$f":"$F$40*(valuePL(F2,'Utility Functions'!$I$3:$I$4,'Utility Functions'!$J$3:$J$5))","v":0},{"$f":"$G$40*(valueE(G2,'Utility Functions'!$L$3,'Utility Functions'!$L$4,'Utility Functions'!$L$5,'Utility Functions'!$L$6))","v":1.4999999999999999E-2},{"$f":"$H$40*(valueE(H2,'Utility Functions'!$N$3,'Utility Functions'!$N$4,'Utility Functions'!$N$5,'Utility Functions'!$N$6))","v":1.4999999999999999E-2},{"$f":"$I$40*valuePL(I2,'Utility Functions'!$O$3:$O$6,'Utility Functions'!$P$3:$P$6)","v":2.7545454545454547E-2},{"$f":"$J$40*valuePL(J2,'Utility Functions'!$Q$3:$Q$6,'Utility Functions'!$R$3:$R$6)","v":2E-3},{"$f":"$K$40*(valuePL(K2,'Utility Functions'!$S$3:$S$7,'Utility Functions'!$T$3:$T$7))","v":0},{"$f":"$L$40*(valueE(L2,'Utility Functions'!$V$3,'Utility Functions'!$V$4,'Utility Functions'!$V$5,'Utility Functions'!$V$6))","v":0},{"$f":"$M$40*valuePL(M2,'Utility Functions'!$W$3:$W$6,'Utility Functions'!$X$3:$X$6)","v":0},{"$f":"$N$40*valueE(N2,'Utility Functions'!$Z$3,'Utility Functions'!$Z$4,'Utility Functions'!$Z$5,'Utility Functions'!$Z$6)","v":0},{"$f":"$O$40*valuePL(O2,'Utility Functions'!$AA$3:$AA$5,'Utility Functions'!$AB$3:$AB$5)","v":0},{"$f":"$P$40*valuePL(P2,'Utility Functions'!$AC$3:$AC$7,'Utility Functions'!$AD$3:$AD$7)","v":0.04},{"$f":"$Q$40*valuePL(Q2,'Utility Functions'!$AE$3:$AE$6,'Utility Functions'!$AF$3:$AF$6)","v":0},{"$f":"$R$40*valuePL(R2,'Utility Functions'!$AG$3:$AG$6,'Utility Functions'!$AH$3:$AH$6)","v":4.0000000000000008E-2},{"$f":"$S$40*valuePL(S2,'Utility Functions'!$AI$3:$AI$6,'Utility Functions'!$AJ$3:$AJ$6)","v":0.05},{"$f":"$T$40*valuePL(T2,'Utility Functions'!$AK$3:$AK$8,'Utility Functions'!$AL$3:$AL$8)","v":0},{"$f":"$U$40*valuePL(U2,'Utility Functions'!$AM$3:$AM$5,'Utility Functions'!$AN$3:$AN$5)","v":0},{"$f":"$V$40*valuePL(V2,'Utility Functions'!$AO$3:$AO$5,'Utility Functions'!$AP$3:$AP$5)","v":0.05},{"$f":"$W$40*valuePL(W2,'Utility Functions'!$AQ$3:$AQ$6,'Utility Functions'!$AR$3:$AR$6)","v":0.04},{"$f":"$X$40*valuePL(X2,'Utility Functions'!$AS$3:$AS$6,'Utility Functions'!$AT$3:$AT$6)","v":0.04},{"$f":"$Y$40*valuePL(Y2,'Utility Functions'!$AU$3:$AU$6,'Utility Functions'!$AV$3:$AV$6)","v":0.05},{"$f":"$Z$40*valuePL(Z2,'Utility Functions'!$AW$3:$AW$5,'Utility Functions'!$AX$3:$AX$5)","v":0.05},{"$f":"$AA$40*valuePL(AA2,'Utility Functions'!$AY$3:$AY$6,'Utility Functions'!$AZ$3:$AZ$6)","v":0.04},{"$f":"$AB$40*valuePL(AB2,'Utility Functions'!$BA$3:$BA$5,'Utility Functions'!$BB$3:$BB$5)","v":0.04},{"$f":"$AC$40*valuePL(AC2,'Utility Functions'!$BC$3:$BC$5,'Utility Functions'!$BD$3:$BD$5)","v":0.03},{"$f":"SUM(B43:AC43)","v":0.62852931598576234}]
[{"$f":"A3","v":2},{"$f":"$B$40*(valueE(B3,'Utility Functions'!$B$3,'Utility Functions'!$B$4,'Utility Functions'!$B$5,'Utility Functions'!$B$6))","v":1.3535671425672068E-2},{"$f":"$C$40*(valueE(C3,'Utility Functions'!$D$3,'Utility Functions'!$D$4,'Utility Functions'!$D$5,'Utility Functions'!$D$6))","v":2.8213102591607857E-2},{"$f":"$D$40*(valuePL(D3,'Utility Functions'!$E$3:$E$5,'Utility Functions'!$F$3:$F$5))","v":1.4999999999999999E-2},{"$f":"$E$40*(valuePL(E3,'Utility Functions'!$G$3:$G$5,'Utility Functions'!$H$3:$H$5))","v":0},{"$f":"$F$40*(valuePL(F3,'Utility Functions'!$I$3:$I$4,'Utility Functions'!$J$3:$J$5))","v":0},{"$f":"$G$40*(valueE(G3,'Utility Functions'!$L$3,'Utility Functions'!$L$4,'Utility Functions'!$L$5,'Utility Functions'!$L$6))","v":0},{"$f":"$H$40*(valueE(H3,'Utility Functions'!$N$3,'Utility Functions'!$N$4,'Utility Functions'!$N$5,'Utility Functions'!$N$6))","v":0},{"$f":"$I$40*valuePL(I3,'Utility Functions'!$O$3:$O$6,'Utility Functions'!$P$3:$P$6)","v":0},{"$f":"$J$40*valuePL(J3,'Utility Functions'!$Q$3:$Q$6,'Utility Functions'!$R$3:$R$6)","v":0},{"$f":"$K$40*(valuePL(K3,'Utility Functions'!$S$3:$S$7,'Utility Functions'!$T$3:$T$7))","v":0},{"$f":"$L$40*(valueE(L3,'Utility Functions'!$V$3,'Utility Functions'!$V$4,'Utility Functions'!$V$5,'Utility Functions'!$V$6))","v":0},{"$f":"$M$40*valuePL(M3,'Utility Functions'!$W$3:$W$6,'Utility Functions'!$X$3:$X$6)","v":0},{"$f":"$N$40*valueE(N3,'Utility Functions'!$Z$3,'Utility Functions'!$Z$4,'Utility Functions'!$Z$5,'Utility Functions'!$Z$6)","v":1.4999999999999999E-2},{"$f":"$O$40*valuePL(O3,'Utility Functions'!$AA$3:$AA$5,'Utility Functions'!$AB$3:$AB$5)","v":2.2499999999999999E-2},{"$f":"$P$40*valuePL(P3,'Utility Functions'!$AC$3:$AC$7,'Utility Functions'!$AD$3:$AD$7)","v":0},{"$f":"$Q$40*valuePL(Q3,'Utility Functions'!$AE$3:$AE$6,'Utility Functions'!$AF$3:$AF$6)","v":0},{"$f":"$R$40*valuePL(R3,'Utility Functions'!$AG$3:$AG$6,'Utility Functions'!$AH$3:$AH$6)","v":0.05},{"$f":"$S$40*valuePL(S3,'Utility Functions'!$AI$3:$AI$6,'Utility Functions'!$AJ$3:$AJ$6)","v":0.05},{"$f":"$T$40*valuePL(T3,'Utility Functions'!$AK$3:$AK$8,'Utility Functions'!$AL$3:$AL$8)","v":0},{"$f":"$U$40*valuePL(U3,'Utility Functions'!$AM$3:$AM$5,'Utility Functions'!$AN$3:$AN$5)","v":0},{"$f":"$V$40*valuePL(V3,'Utility Functions'!$AO$3:$AO$5,'Utility Functions'!$AP$3:$AP$5)","v":0.05},{"$f":"$W$40*valuePL(W3,'Utility Functions'!$AQ$3:$AQ$6,'Utility Functions'!$AR$3:$AR$6)","v":0.04},{"$f":"$X$40*valuePL(X3,'Utility Functions'!$AS$3:$AS$6,'Utility Functions'!$AT$3:$AT$6)","v":0.04},{"$f":"$Y$40*valuePL(Y3,'Utility Functions'!$AU$3:$AU$6,'Utility Functions'!$AV$3:$AV$6)","v":0.05},{"$f":"$Z$40*valuePL(Z3,'Utility Functions'!$AW$3:$AW$5,'Utility Functions'!$AX$3:$AX$5)","v":0.05},{"$f":"$AA$40*valuePL(AA3,'Utility Functions'!$AY$3:$AY$6,'Utility Functions'!$AZ$3:$AZ$6)","v":0.04},{"$f":"$AB$40*valuePL(AB3,'Utility Functions'!$BA$3:$BA$5,'Utility Functions'!$BB$3:$BB$5)","v":0.04},{"$f":"$AC$40*valuePL(AC3,'Utility Functions'!$BC$3:$BC$5,'Utility Functions'!$BD$3:$BD$5)","v":0.03},{"$f":"SUM(B44:AC44)","v":0.53424877401727988}]
[3,{"$f":"$B$40*(valueE(B4,'Utility Functions'!$B$3,'Utility Functions'!$B$4,'Utility Functions'!$B$5,'Utility Functions'!$B$6))","v":2.3943140737469053E-2},{"$f":"$C$40*(valueE(C4,'Utility Functions'!$D$3,'Utility Functions'!$D$4,'Utility Functions'!$D$5,'Utility Functions'!$D$6))","v":2.8213102591607857E-2},{"$f":"$D$40*(valuePL(D4,'Utility Functions'!$E$3:$E$5,'Utility Functions'!$F$3:$F$5))","v":0.03},{"$f":"$E$40*(valuePL(E4,'Utility Functions'!$G$3:$G$5,'Utility Functions'!$H$3:$H$5))","v":0},{"$f":"$F$40*(valuePL(F4,'Utility Functions'!$I$3:$I$4,'Utility Functions'!$J$3:$J$5))","v":0},{"$f":"$G$40*(valueE(G4,'Utility Functions'!$L$3,'Utility Functions'!$L$4,'Utility Functions'!$L$5,'Utility Functions'!$L$6))","v":0},{"$f":"$H$40*(valueE(H4,'Utility Functions'!$N$3,'Utility Functions'!$N$4,'Utility Functions'!$N$5,'Utility Functions'!$N$6))","v":0},{"$f":"$I$40*valuePL(I4,'Utility Functions'!$O$3:$O$6,'Utility Functions'!$P$3:$P$6)","v":0},{"$f":"$J$40*valuePL(J4,'Utility Functions'!$Q$3:$Q$6,'Utility Functions'!$R$3:$R$6)","v":0},{"$f":"$K$40*(valuePL(K4,'Utility Functions'!$S$3:$S$7,'Utility Functions'!$T$3:$T$7))","v":0},{"$f":"$L$40*(valueE(L4,'Utility Functions'!$V$3,'Utility Functions'!$V$4,'Utility Functions'!$V$5,'Utility Functions'!$V$6))","v":0},{"$f":"$M$40*valuePL(M4,'Utility Functions'!$W$3:$W$6,'Utility Functions'!$X$3:$X$6)","v":0},{"$f":"$N$40*valueE(N4,'Utility Functions'!$Z$3,'Utility Functions'!$Z$4,'Utility Functions'!$Z$5,'Utility Functions'!$Z$6)","v":1.8749999999999999E-2},{"$f":"$O$40*valuePL(O4,'Utility Functions'!$AA$3:$AA$5,'Utility Functions'!$AB$3:$AB$5)","v":2.2499999999999999E-2},{"$f":"$P$40*valuePL(P4,'Utility Functions'!$AC$3:$AC$7,'Utility Functions'!$AD$3:$AD$7)","v":0},{"$f":"$Q$40*valuePL(Q4,'Utility Functions'!$AE$3:$AE$6,'Utility Functions'!$AF$3:$AF$6)","v":0.02},{"$f":"$R$40*valuePL(R4,'Utility Functions'!$AG$3:$AG$6,'Utility Functions'!$AH$3:$AH$6)","v":0},{"$f":"$S$40*valuePL(S4,'Utility Functions'!$AI$3:$AI$6,'Utility Functions'!$AJ$3:$AJ$6)","v":0},{"$f":"$T$40*valuePL(T4,'Utility Functions'!$AK$3:$AK$8,'Utility Functions'!$AL$3:$AL$8)","v":0},{"$f":"$U$40*valuePL(U4,'Utility Functions'!$AM$3:$AM$5,'Utility Functions'!$AN$3:$AN$5)","v":7.4999999999999997E-3},{"$f":"$V$40*valuePL(V4,'Utility Functions'!$AO$3:$AO$5,'Utility Functions'!$AP$3:$AP$5)","v":0.05},{"$f":"$W$40*valuePL(W4,'Utility Functions'!$AQ$3:$AQ$6,'Utility Functions'!$AR$3:$AR$6)","v":0.04},{"$f":"$X$40*valuePL(X4,'Utility Functions'!$AS$3:$AS$6,'Utility Functions'!$AT$3:$AT$6)","v":0.04},{"$f":"$Y$40*valuePL(Y4,'Utility Functions'!$AU$3:$AU$6,'Utility Functions'!$AV$3:$AV$6)","v":0.05},{"$f":"$Z$40*valuePL(Z4,'Utility Functions'!$AW$3:$AW$5,'Utility Functions'!$AX$3:$AX$5)","v":0.05},{"$f":"$AA$40*valuePL(AA4,'Utility Functions'!$AY$3:$AY$6,'Utility Functions'!$AZ$3:$AZ$6)","v":8.0000000000000002E-3},{"$f":"$AB$40*valuePL(AB4,'Utility Functions'!$BA$3:$BA$5,'Utility Functions'!$BB$3:$BB$5)","v":0.04},{"$f":"$AC$40*valuePL(AC4,'Utility Functions'!$BC$3:$BC$5,'Utility Functions'!$BD$3:$BD$5)","v":0.03},0.45890624332907692]
[4,{"$f":"$B$40*(valueE(B5,'Utility Functions'!$B$3,'Utility Functions'!$B$4,'Utility Functions'!$B$5,'Utility Functions'!$B$6))","v":5.4380856471439951E-3},{"$f":"$C$40*(valueE(C5,'Utility Functions'!$D$3,'Utility Functions'!$D$4,'Utility Functions'!$D$5,'Utility Functions'!$D$6))","v":1.3942790146123618E-2},{"$f":"$D$40*(valuePL(D5,'Utility Functions'!$E$3:$E$5,'Utility Functions'!$F$3:$F$5))","v":0.03},{"$f":"$E$40*(valuePL(E5,'Utility Functions'!$G$3:$G$5,'Utility Functions'!$H$3:$H$5))","v":0},{"$f":"$F$40*(valuePL(F5,'Utility Functions'!$I$3:$I$4,'Utility Functions'!$J$3:$J$5))","v":0},{"$f":"$G$40*(valueE(G5,'Utility Functions'!$L$3,'Utility Functions'!$L$4,'Utility Functions'!$L$5,'Utility Functions'!$L$6))","v":0},{"$f":"$H$40*(valueE(H5,'Utility Functions'!$N$3,'Utility Functions'!$N$4,'Utility Functions'!$N$5,'Utility Functions'!$N$6))","v":0},{"$f":"$I$40*valuePL(I5,'Utility Functions'!$O$3:$O$6,'Utility Functions'!$P$3:$P$6)","v":0},{"$f":"$J$40*valuePL(J5,'Utility Functions'!$Q$3:$Q$6,'Utility Functions'!$R$3:$R$6)","v":0},{"$f":"$K$40*(valuePL(K5,'Utility Functions'!$S$3:$S$7,'Utility Functions'!$T$3:$T$7))","v":0},{"$f":"$L$40*(valueE(L5,'Utility Functions'!$V$3,'Utility Functions'!$V$4,'Utility Functions'!$V$5,'Utility Functions'!$V$6))","v":0},{"$f":"$M$40*valuePL(M5,'Utility Functions'!$W$3:$W$6,'Utility Functions'!$X$3:$X$6)","v":0},{"$f":"$N$40*valueE(N5,'Utility Functions'!$Z$3,'Utility Functions'!$Z$4,'Utility Functions'!$Z$5,'Utility Functions'!$Z$6)","v":1.4999999999999999E-2},{"$f":"$O$40*valuePL(O5,'Utility Functions'!$AA$3:$AA$5,'Utility Functions'!$AB$3:$AB$5)","v":2.2499999999999999E-2},{"$f":"$P$40*valuePL(P5,'Utility Functions'!$AC$3:$AC$7,'Utility Functions'!$AD$3:$AD$7)","v":0},{"$f":"$Q$40*valuePL(Q5,'Utility Functions'!$AE$3:$AE$6,'Utility Functions'!$AF$3:$AF$6)","v":4.0000000000000001E-3},{"$f":"$R$40*valuePL(R5,'Utility Functions'!$AG$3:$AG$6,'Utility Functions'!$AH$3:$AH$6)","v":0.05},{"$f":"$S$40*valuePL(S5,'Utility Functions'!$AI$3:$AI$6,'Utility Functions'!$AJ$3:$AJ$6)","v":0.05},{"$f":"$T$40*valuePL(T5,'Utility Functions'!$AK$3:$AK$8,'Utility Functions'!$AL$3:$AL$8)","v":2.4E-2},{"$f":"$U$40*valuePL(U5,'Utility Functions'!$AM$3:$AM$5,'Utility Functions'!$AN$3:$AN$5)","v":0},{"$f":"$V$40*valuePL(V5,'Utility Functions'!$AO$3:$AO$5,'Utility Functions'!$AP$3:$AP$5)","v":2.5000000000000001E-2},{"$f":"$W$40*valuePL(W5,'Utility Functions'!$AQ$3:$AQ$6,'Utility Functions'!$AR$3:$AR$6)","v":0.04},{"$f":"$X$40*valuePL(X5,'Utility Functions'!$AS$3:$AS$6,'Utility Functions'!$AT$3:$AT$6)","v":0.04},{"$f":"$Y$40*valuePL(Y5,'Utility Functions'!$AU$3:$AU$6,'Utility Functions'!$AV$3:$AV$6)","v":1.0000000000000002E-2},{"$f":"$Z$40*valuePL(Z5,'Utility Functions'!$AW$3:$AW$5,'Utility Functions'!$AX$3:$AX$5)","v":0},{"$f":"$AA$40*valuePL(AA5,'Utility Functions'!$AY$3:$AY$6,'Utility Functions'!$AZ$3:$AZ$6)","v":0},{"$f":"$AB$40*valuePL(AB5,'Utility Functions'!$BA$3:$BA$5,'Utility Functions'!$BB$3:$BB$5)","v":0.04},{"$f":"$AC$40*valuePL(AC5,'Utility Functions'!$BC$3:$BC$5,'Utility Functions'!$BD$3:$BD$5)","v":7.4999999999999997E-3},0.37738087579326757]
[5,{"$f":"$B$40*(valueE(B6,'Utility Functions'!$B$3,'Utility Functions'!$B$4,'Utility Functions'!$B$5,'Utility Functions'!$B$6))","v":1.6520156106900608E-2},{"$f":"$C$40*(valueE(C6,'Utility Functions'!$D$3,'Utility Functions'!$D$4,'Utility Functions'!$D$5,'Utility Functions'!$D$6))","v":7.9969543744382362E-3},{"$f":"$D$40*(valuePL(D6,'Utility Functions'!$E$3:$E$5,'Utility Functions'!$F$3:$F$5))","v":0.03},{"$f":"$E$40*(valuePL(E6,'Utility Functions'!$G$3:$G$5,'Utility Functions'!$H$3:$H$5))","v":0},{"$f":"$F$40*(valuePL(F6,'Utility Functions'!$I$3:$I$4,'Utility Functions'!$J$3:$J$5))","v":0},{"$f":"$G$40*(valueE(G6,'Utility Functions'!$L$3,'Utility Functions'!$L$4,'Utility Functions'!$L$5,'Utility Functions'!$L$6))","v":0},{"$f":"$H$40*(valueE(H6,'Utility Functions'!$N$3,'Utility Functions'!$N$4,'Utility Functions'!$N$5,'Utility Functions'!$N$6))","v":0},{"$f":"$I$40*valuePL(I6,'Utility Functions'!$O$3:$O$6,'Utility Functions'!$P$3:$P$6)","v":1.5272727272727275E-2},{"$f":"$J$40*valuePL(J6,'Utility Functions'!$Q$3:$Q$6,'Utility Functions'!$R$3:$R$6)","v":8.0000000000000004E-4},{"$f":"$K$40*(valuePL(K6,'Utility Functions'!$S$3:$S$7,'Utility Functions'!$T$3:$T$7))","v":0},{"$f":"$L$40*(valueE(L6,'Utility Functions'!$V$3,'Utility Functions'!$V$4,'Utility Functions'!$V$5,'Utility Functions'!$V$6))","v":0},{"$f":"$M$40*valuePL(M6,'Utility Functions'!$W$3:$W$6,'Utility Functions'!$X$3:$X$6)","v":0},{"$f":"$N$40*valueE(N6,'Utility Functions'!$Z$3,'Utility Functions'!$Z$4,'Utility Functions'!$Z$5,'Utility Functions'!$Z$6)","v":0},{"$f":"$O$40*valuePL(O6,'Utility Functions'!$AA$3:$AA$5,'Utility Functions'!$AB$3:$AB$5)","v":0},{"$f":"$P$40*valuePL(P6,'Utility Functions'!$AC$3:$AC$7,'Utility Functions'!$AD$3:$AD$7)","v":0},{"$f":"$Q$40*valuePL(Q6,'Utility Functions'!$AE$3:$AE$6,'Utility Functions'!$AF$3:$AF$6)","v":4.0000000000000001E-3},{"$f":"$R$40*valuePL(R6,'Utility Functions'!$AG$3:$AG$6,'Utility Functions'!$AH$3:$AH$6)","v":0.05},{"$f":"$S$40*valuePL(S6,'Utility Functions'!$AI$3:$AI$6,'Utility Functions'!$AJ$3:$AJ$6)","v":0.05},{"$f":"$T$40*valuePL(T6,'Utility Functions'!$AK$3:$AK$8,'Utility Functions'!$AL$3:$AL$8)","v":2.4E-2},{"$f":"$U$40*valuePL(U6,'Utility Functions'!$AM$3:$AM$5,'Utility Functions'!$AN$3:$AN$5)","v":7.4999999999999997E-3},{"$f":"$V$40*valuePL(V6,'Utility Functions'!$AO$3:$AO$5,'Utility Functions'!$AP$3:$AP$5)","v":0},{"$f":"$W$40*valuePL(W6,'Utility Functions'!$AQ$3:$AQ$6,'Utility Functions'!$AR$3:$AR$6)","v":0.04},{"$f":"$X$40*valuePL(X6,'Utility Functions'!$AS$3:$AS$6,'Utility Functions'!$AT$3:$AT$6)","v":0.04},{"$f":"$Y$40*valuePL(Y6,'Utility Functions'!$AU$3:$AU$6,'Utility Functions'!$AV$3:$AV$6)","v":4.0000000000000008E-2},{"$f":"$Z$40*valuePL(Z6,'Utility Functions'!$AW$3:$AW$5,'Utility Functions'!$AX$3:$AX$5)","v":0},{"$f":"$AA$40*valuePL(AA6,'Utility Functions'!$AY$3:$AY$6,'Utility Functions'!$AZ$3:$AZ$6)","v":0},{"$f":"$AB$40*valuePL(AB6,'Utility Functions'!$BA$3:$BA$5,'Utility Functions'!$BB$3:$BB$5)","v":0.04},{"$f":"$AC$40*valuePL(AC6,'Utility Functions'!$BC$3:$BC$5,'Utility Functions'!$BD$3:$BD$5)","v":7.4999999999999997E-3},0.37358983775406607]
[6,{"$f":"$B$40*(valueE(B7,'Utility Functions'!$B$3,'Utility Functions'!$B$4,'Utility Functions'!$B$5,'Utility Functions'!$B$6))","v":2.5939980805710805E-2},{"$f":"$C$40*(valueE(C7,'Utility Functions'!$D$3,'Utility Functions'!$D$4,'Utility Functions'!$D$5,'Utility Functions'!$D$6))","v":1.8543300844080441E-4},{"$f":"$D$40*(valuePL(D7,'Utility Functions'!$E$3:$E$5,'Utility Functions'!$F$3:$F$5))","v":0.03},{"$f":"$E$40*(valuePL(E7,'Utility Functions'!$G$3:$G$5,'Utility Functions'!$H$3:$H$5))","v":0},{"$f":"$F$40*(valuePL(F7,'Utility Functions'!$I$3:$I$4,'Utility Functions'!$J$3:$J$5))","v":0},{"$f":"$G$40*(valueE(G7,'Utility Functions'!$L$3,'Utility Functions'!$L$4,'Utility Functions'!$L$5,'Utility Functions'!$L$6))","v":0},{"$f":"$H$40*(valueE(H7,'Utility Functions'!$N$3,'Utility Functions'!$N$4,'Utility Functions'!$N$5,'Utility Functions'!$N$6))","v":0},{"$f":"$I$40*valuePL(I7,'Utility Functions'!$O$3:$O$6,'Utility Functions'!$P$3:$P$6)","v":1.1999999999999999E-3},{"$f":"$J$40*valuePL(J7,'Utility Functions'!$Q$3:$Q$6,'Utility Functions'!$R$3:$R$6)","v":8.0000000000000004E-4},{"$f":"$K$40*(valuePL(K7,'Utility Functions'!$S$3:$S$7,'Utility Functions'!$T$3:$T$7))","v":0},{"$f":"$L$40*(valueE(L7,'Utility Functions'!$V$3,'Utility Functions'!$V$4,'Utility Functions'!$V$5,'Utility Functions'!$V$6))","v":0},{"$f":"$M$40*valuePL(M7,'Utility Functions'!$W$3:$W$6,'Utility Functions'!$X$3:$X$6)","v":0},{"$f":"$N$40*valueE(N7,'Utility Functions'!$Z$3,'Utility Functions'!$Z$4,'Utility Functions'!$Z$5,'Utility Functions'!$Z$6)","v":0},{"$f":"$O$40*valuePL(O7,'Utility Functions'!$AA$3:$AA$5,'Utility Functions'!$AB$3:$AB$5)","v":0},{"$f":"$P$40*valuePL(P7,'Utility Functions'!$AC$3:$AC$7,'Utility Functions'!$AD$3:$AD$7)","v":0},{"$f":"$Q$40*valuePL(Q7,'Utility Functions'!$AE$3:$AE$6,'Utility Functions'!$AF$3:$AF$6)","v":4.0000000000000001E-3},{"$f":"$R$40*valuePL(R7,'Utility Functions'!$AG$3:$AG$6,'Utility Functions'!$AH$3:$AH$6)","v":0},{"$f":"$S$40*valuePL(S7,'Utility Functions'!$AI$3:$AI$6,'Utility Functions'!$AJ$3:$AJ$6)","v":0.05},{"$f":"$T$40*valuePL(T7,'Utility Functions'!$AK$3:$AK$8,'Utility Functions'!$AL$3:$AL$8)","v":1.7999999999999999E-2},{"$f":"$U$40*valuePL(U7,'Utility Functions'!$AM$3:$AM$5,'Utility Functions'!$AN$3:$AN$5)","v":0},{"$f":"$V$40*valuePL(V7,'Utility Functions'!$AO$3:$AO$5,'Utility Functions'!$AP$3:$AP$5)","v":0},{"$f":"$W$40*valuePL(W7,'Utility Functions'!$AQ$3:$AQ$6,'Utility Functions'!$AR$3:$AR$6)","v":0},{"$f":"$X$40*valuePL(X7,'Utility Functions'!$AS$3:$AS$6,'Utility Functions'!$AT$3:$AT$6)","v":0.04},{"$f":"$Y$40*valuePL(Y7,'Utility Functions'!$AU$3:$AU$6,'Utility Functions'!$AV$3:$AV$6)","v":0},{"$f":"$Z$40*valuePL(Z7,'Utility Functions'!$AW$3:$AW$5,'Utility Functions'!$AX$3:$AX$5)","v":0},{"$f":"$AA$40*valuePL(AA7,'Utility Functions'!$AY$3:$AY$6,'Utility Functions'!$AZ$3:$AZ$6)","v":0},{"$f":"$AB$40*valuePL(AB7,'Utility Functions'!$BA$3:$BA$5,'Utility Functions'!$BB$3:$BB$5)","v":0.04},{"$f":"$AC$40*valuePL(AC7,'Utility Functions'!$BC$3:$BC$5,'Utility Functions'!$BD$3:$BD$5)","v":7.4999999999999997E-3},0.21762541381415162]
[7,{"$f":"$B$40*(valueE(B8,'Utility Functions'!$B$3,'Utility Functions'!$B$4,'Utility Functions'!$B$5,'Utility Functions'!$B$6))","v":2.9999132478518691E-2},{"$f":"$C$40*(valueE(C8,'Utility Functions'!$D$3,'Utility Functions'!$D$4,'Utility Functions'!$D$5,'Utility Functions'!$D$6))","v":2.542345105018548E-2},{"$f":"$D$40*(valuePL(D8,'Utility Functions'!$E$3:$E$5,'Utility Functions'!$F$3:$F$5))","v":0},{"$f":"$E$40*(valuePL(E8,'Utility Functions'!$G$3:$G$5,'Utility Functions'!$H$3:$H$5))","v":0.03},{"$f":"$F$40*(valuePL(F8,'Utility Functions'!$I$3:$I$4,'Utility Functions'!$J$3:$J$5))","v":0},{"$f":"$G$40*(valueE(G8,'Utility Functions'!$L$3,'Utility Functions'!$L$4,'Utility Functions'!$L$5,'Utility Functions'!$L$6))","v":0},{"$f":"$H$40*(valueE(H8,'Utility Functions'!$N$3,'Utility Functions'!$N$4,'Utility Functions'!$N$5,'Utility Functions'!$N$6))","v":0},{"$f":"$I$40*valuePL(I8,'Utility Functions'!$O$3:$O$6,'Utility Functions'!$P$3:$P$6)","v":0.03},{"$f":"$J$40*valuePL(J8,'Utility Functions'!$Q$3:$Q$6,'Utility Functions'!$R$3:$R$6)","v":1.3454545454545455E-2},{"$f":"$K$40*(valuePL(K8,'Utility Functions'!$S$3:$S$7,'Utility Functions'!$T$3:$T$7))","v":0.02},{"$f":"$L$40*(valueE(L8,'Utility Functions'!$V$3,'Utility Functions'!$V$4,'Utility Functions'!$V$5,'Utility Functions'!$V$6))","v":0.02},{"$f":"$M$40*valuePL(M8,'Utility Functions'!$W$3:$W$6,'Utility Functions'!$X$3:$X$6)","v":1.3454545454545455E-2},{"$f":"$N$40*valueE(N8,'Utility Functions'!$Z$3,'Utility Functions'!$Z$4,'Utility Functions'!$Z$5,'Utility Functions'!$Z$6)","v":0.03},{"$f":"$O$40*valuePL(O8,'Utility Functions'!$AA$3:$AA$5,'Utility Functions'!$AB$3:$AB$5)","v":2.2499999999999999E-2},{"$f":"$P$40*valuePL(P8,'Utility Functions'!$AC$3:$AC$7,'Utility Functions'!$AD$3:$AD$7)","v":0},{"$f":"$Q$40*valuePL(Q8,'Utility Functions'!$AE$3:$AE$6,'Utility Functions'!$AF$3:$AF$6)","v":0},{"$f":"$R$40*valuePL(R8,'Utility Functions'!$AG$3:$AG$6,'Utility Functions'!$AH$3:$AH$6)","v":0.05},{"$f":"$S$40*valuePL(S8,'Utility Functions'!$AI$3:$AI$6,'Utility Functions'!$AJ$3:$AJ$6)","v":0.05},{"$f":"$T$40*valuePL(T8,'Utility Functions'!$AK$3:$AK$8,'Utility Functions'!$AL$3:$AL$8)","v":0},{"$f":"$U$40*valuePL(U8,'Utility Functions'!$AM$3:$AM$5,'Utility Functions'!$AN$3:$AN$5)","v":0},{"$f":"$V$40*valuePL(V8,'Utility Functions'!$AO$3:$AO$5,'Utility Functions'!$AP$3:$AP$5)","v":0.05},{"$f":"$W$40*valuePL(W8,'Utility Functions'!$AQ$3:$AQ$6,'Utility Functions'!$AR$3:$AR$6)","v":0},{"$f":"$X$40*valuePL(X8,'Utility Functions'!$AS$3:$AS$6,'Utility Functions'!$AT$3:$AT$6)","v":8.0000000000000002E-3},{"$f":"$Y$40*valuePL(Y8,'Utility Functions'!$AU$3:$AU$6,'Utility Functions'!$AV$3:$AV$6)","v":0.05},{"$f":"$Z$40*valuePL(Z8,'Utility Functions'!$AW$3:$AW$5,'Utility Functions'!$AX$3:$AX$5)","v":0.05},{"$f":"$AA$40*valuePL(AA8,'Utility Functions'!$AY$3:$AY$6,'Utility Functions'!$AZ$3:$AZ$6)","v":3.5999999999999997E-2},{"$f":"$AB$40*valuePL(AB8,'Utility Functions'!$BA$3:$BA$5,'Utility Functions'!$BB$3:$BB$5)","v":0},{"$f":"$AC$40*valuePL(AC8,'Utility Functions'!$BC$3:$BC$5,'Utility Functions'!$BD$3:$BD$5)","v":0.03},0.55883167443779502]
[8,{"$f":"$B$40*(valueE(B9,'Utility Functions'!$B$3,'Utility Functions'!$B$4,'Utility Functions'!$B$5,'Utility Functions'!$B$6))","v":1.3535671425672068E-2},{"$f":"$C$40*(valueE(C9,'Utility Functions'!$D$3,'Utility Functions'!$D$4,'Utility Functions'!$D$5,'Utility Functions'!$D$6))","v":2.542345105018548E-2},{"$f":"$D$40*(valuePL(D9,'Utility Functions'!$E$3:$E$5,'Utility Functions'!$F$3:$F$5))","v":0.03},{"$f":"$E$40*(valuePL(E9,'Utility Functions'!$G$3:$G$5,'Utility Functions'!$H$3:$H$5))","v":1.4999999999999999E-2},{"$f":"$F$40*(valuePL(F9,'Utility Functions'!$I$3:$I$4,'Utility Functions'!$J$3:$J$5))","v":0.04},{"$f":"$G$40*(valueE(G9,'Utility Functions'!$L$3,'Utility Functions'!$L$4,'Utility Functions'!$L$5,'Utility Functions'!$L$6))","v":0},{"$f":"$H$40*(valueE(H9,'Utility Functions'!$N$3,'Utility Functions'!$N$4,'Utility Functions'!$N$5,'Utility Functions'!$N$6))","v":0},{"$f":"$I$40*valuePL(I9,'Utility Functions'!$O$3:$O$6,'Utility Functions'!$P$3:$P$6)","v":1.6800000000000003E-3},{"$f":"$J$40*valuePL(J9,'Utility Functions'!$Q$3:$Q$6,'Utility Functions'!$R$3:$R$6)","v":1.6727272727272726E-2},{"$f":"$K$40*(valuePL(K9,'Utility Functions'!$S$3:$S$7,'Utility Functions'!$T$3:$T$7))","v":0},{"$f":"$L$40*(valueE(L9,'Utility Functions'!$V$3,'Utility Functions'!$V$4,'Utility Functions'!$V$5,'Utility Functions'!$V$6))","v":0.02},{"$f":"$M$40*valuePL(M9,'Utility Functions'!$W$3:$W$6,'Utility Functions'!$X$3:$X$6)","v":1.6727272727272726E-2},{"$f":"$N$40*valueE(N9,'Utility Functions'!$Z$3,'Utility Functions'!$Z$4,'Utility Functions'!$Z$5,'Utility Functions'!$Z$6)","v":0},{"$f":"$O$40*valuePL(O9,'Utility Functions'!$AA$3:$AA$5,'Utility Functions'!$AB$3:$AB$5)","v":0},{"$f":"$P$40*valuePL(P9,'Utility Functions'!$AC$3:$AC$7,'Utility Functions'!$AD$3:$AD$7)","v":0},{"$f":"$Q$40*valuePL(Q9,'Utility Functions'!$AE$3:$AE$6,'Utility Functions'!$AF$3:$AF$6)","v":0.04},{"$f":"$R$40*valuePL(R9,'Utility Functions'!$AG$3:$AG$6,'Utility Functions'!$AH$3:$AH$6)","v":1.0000000000000002E-2},{"$f":"$S$40*valuePL(S9,'Utility Functions'!$AI$3:$AI$6,'Utility Functions'!$AJ$3:$AJ$6)","v":0.05},{"$f":"$T$40*valuePL(T9,'Utility Functions'!$AK$3:$AK$8,'Utility Functions'!$AL$3:$AL$8)","v":0},{"$f":"$U$40*valuePL(U9,'Utility Functions'!$AM$3:$AM$5,'Utility Functions'!$AN$3:$AN$5)","v":0},{"$f":"$V$40*valuePL(V9,'Utility Functions'!$AO$3:$AO$5,'Utility Functions'!$AP$3:$AP$5)","v":0.05},{"$f":"$W$40*valuePL(W9,'Utility Functions'!$AQ$3:$AQ$6,'Utility Functions'!$AR$3:$AR$6)","v":0.04},{"$f":"$X$40*valuePL(X9,'Utility Functions'!$AS$3:$AS$6,'Utility Functions'!$AT$3:$AT$6)","v":0.04},{"$f":"$Y$40*valuePL(Y9,'Utility Functions'!$AU$3:$AU$6,'Utility Functions'!$AV$3:$AV$6)","v":0.05},{"$f":"$Z$40*valuePL(Z9,'Utility Functions'!$AW$3:$AW$5,'Utility Functions'!$AX$3:$AX$5)","v":0.05},{"$f":"$AA$40*valuePL(AA9,'Utility Functions'!$AY$3:$AY$6,'Utility Functions'!$AZ$3:$AZ$6)","v":0},{"$f":"$AB$40*valuePL(AB9,'Utility Functions'!$BA$3:$BA$5,'Utility Functions'!$BB$3:$BB$5)","v":0.01},{"$f":"$AC$40*valuePL(AC9,'Utility Functions'!$BC$3:$BC$5,'Utility Functions'!$BD$3:$BD$5)","v":7.4999999999999997E-3},0.52659366793040296]
[9,{"$f":"$B$40*(valueE(B10,'Utility Functions'!$B$3,'Utility Functions'!$B$4,'Utility Functions'!$B$5,'Utility Functions'!$B$6))","v":2.5041071294184137E-2},{"$f":"$C$40*(valueE(C10,'Utility Functions'!$D$3,'Utility Functions'!$D$4,'Utility Functions'!$D$5,'Utility Functions'!$D$6))","v":2.3696993705826886E-2},{"$f":"$D$40*(valuePL(D10,'Utility Functions'!$E$3:$E$5,'Utility Functions'!$F$3:$F$5))","v":0.03},{"$f":"$E$40*(valuePL(E10,'Utility Functions'!$G$3:$G$5,'Utility Functions'!$H$3:$H$5))","v":1.4999999999999999E-2},{"$f":"$F$40*(valuePL(F10,'Utility Functions'!$I$3:$I$4,'Utility Functions'!$J$3:$J$5))","v":0},{"$f":"$G$40*(valueE(G10,'Utility Functions'!$L$3,'Utility Functions'!$L$4,'Utility Functions'!$L$5,'Utility Functions'!$L$6))","v":5.6451612903225803E-3},{"$f":"$H$40*(valueE(H10,'Utility Functions'!$N$3,'Utility Functions'!$N$4,'Utility Functions'!$N$5,'Utility Functions'!$N$6))","v":1.9924098671726754E-3},{"$f":"$I$40*valuePL(I10,'Utility Functions'!$O$3:$O$6,'Utility Functions'!$P$3:$P$6)","v":0},{"$f":"$J$40*valuePL(J10,'Utility Functions'!$Q$3:$Q$6,'Utility Functions'!$R$3:$R$6)","v":0},{"$f":"$K$40*(valuePL(K10,'Utility Functions'!$S$3:$S$7,'Utility Functions'!$T$3:$T$7))","v":0},{"$f":"$L$40*(valueE(L10,'Utility Functions'!$V$3,'Utility Functions'!$V$4,'Utility Functions'!$V$5,'Utility Functions'!$V$6))","v":0},{"$f":"$M$40*valuePL(M10,'Utility Functions'!$W$3:$W$6,'Utility Functions'!$X$3:$X$6)","v":0},{"$f":"$N$40*valueE(N10,'Utility Functions'!$Z$3,'Utility Functions'!$Z$4,'Utility Functions'!$Z$5,'Utility Functions'!$Z$6)","v":0},{"$f":"$O$40*valuePL(O10,'Utility Functions'!$AA$3:$AA$5,'Utility Functions'!$AB$3:$AB$5)","v":0},{"$f":"$P$40*valuePL(P10,'Utility Functions'!$AC$3:$AC$7,'Utility Functions'!$AD$3:$AD$7)","v":0.03},{"$f":"$Q$40*valuePL(Q10,'Utility Functions'!$AE$3:$AE$6,'Utility Functions'!$AF$3:$AF$6)","v":0},{"$f":"$R$40*valuePL(R10,'Utility Functions'!$AG$3:$AG$6,'Utility Functions'!$AH$3:$AH$6)","v":0.05},{"$f":"$S$40*valuePL(S10,'Utility Functions'!$AI$3:$AI$6,'Utility Functions'!$AJ$3:$AJ$6)","v":3.3000000000000002E-2},{"$f":"$T$40*valuePL(T10,'Utility Functions'!$AK$3:$AK$8,'Utility Functions'!$AL$3:$AL$8)","v":6.0000000000000001E-3},{"$f":"$U$40*valuePL(U10,'Utility Functions'!$AM$3:$AM$5,'Utility Functions'!$AN$3:$AN$5)","v":0},{"$f":"$V$40*valuePL(V10,'Utility Functions'!$AO$3:$AO$5,'Utility Functions'!$AP$3:$AP$5)","v":0.05},{"$f":"$W$40*valuePL(W10,'Utility Functions'!$AQ$3:$AQ$6,'Utility Functions'!$AR$3:$AR$6)","v":0.04},{"$f":"$X$40*valuePL(X10,'Utility Functions'!$AS$3:$AS$6,'Utility Functions'!$AT$3:$AT$6)","v":0.04},{"$f":"$Y$40*valuePL(Y10,'Utility Functions'!$AU$3:$AU$6,'Utility Functions'!$AV$3:$AV$6)","v":1.0000000000000002E-2},{"$f":"$Z$40*valuePL(Z10,'Utility Functions'!$AW$3:$AW$5,'Utility Functions'!$AX$3:$AX$5)","v":0.05},{"$f":"$AA$40*valuePL(AA10,'Utility Functions'!$AY$3:$AY$6,'Utility Functions'!$AZ$3:$AZ$6)","v":8.0000000000000002E-3},{"$f":"$AB$40*valuePL(AB10,'Utility Functions'!$BA$3:$BA$5,'Utility Functions'!$BB$3:$BB$5)","v":0.01},{"$f":"$AC$40*valuePL(AC10,'Utility Functions'!$BC$3:$BC$5,'Utility Functions'!$BD$3:$BD$5)","v":0.03},0.45837563615750632]
[10,{"$f":"$B$40*(valueE(B11,'Utility Functions'!$B$3,'Utility Functions'!$B$4,'Utility Functions'!$B$5,'Utility Functions'!$B$6))","v":0},{"$f":"$C$40*(valueE(C11,'Utility Functions'!$D$3,'Utility Functions'!$D$4,'Utility Functions'!$D$5,'Utility Functions'!$D$6))","v":0},{"$f":"$D$40*(valuePL(D11,'Utility Functions'!$E$3:$E$5,'Utility Functions'!$F$3:$F$5))","v":0},{"$f":"$E$40*(valuePL(E11,'Utility Functions'!$G$3:$G$5,'Utility Functions'!$H$3:$H$5))","v":0},{"$f":"$F$40*(valuePL(F11,'Utility Functions'!$I$3:$I$4,'Utility Functions'!$J$3:$J$5))","v":0},{"$f":"$G$40*(valueE(G11,'Utility Functions'!$L$3,'Utility Functions'!$L$4,'Utility Functions'!$L$5,'Utility Functions'!$L$6))","v":0},{"$f":"$H$40*(valueE(H11,'Utility Functions'!$N$3,'Utility Functions'!$N$4,'Utility Functions'!$N$5,'Utility Functions'!$N$6))","v":0},{"$f":"$I$40*valuePL(I11,'Utility Functions'!$O$3:$O$6,'Utility Functions'!$P$3:$P$6)","v":0},{"$f":"$J$40*valuePL(J11,'Utility Functions'!$Q$3:$Q$6,'Utility Functions'!$R$3:$R$6)","v":0},{"$f":"$K$40*(valuePL(K11,'Utility Functions'!$S$3:$S$7,'Utility Functions'!$T$3:$T$7))","v":0},{"$f":"$L$40*(valueE(L11,'Utility Functions'!$V$3,'Utility Functions'!$V$4,'Utility Functions'!$V$5,'Utility Functions'!$V$6))","v":0},{"$f":"$M$40*valuePL(M11,'Utility Functions'!$W$3:$W$6,'Utility Functions'!$X$3:$X$6)","v":0},{"$f":"$N$40*valueE(N11,'Utility Functions'!$Z$3,'Utility Functions'!$Z$4,'Utility Functions'!$Z$5,'Utility Functions'!$Z$6)","v":2.2499999999999999E-2},{"$f":"$O$40*valuePL(O11,'Utility Functions'!$AA$3:$AA$5,'Utility Functions'!$AB$3:$AB$5)","v":0.09},{"$f":"$P$40*valuePL(P11,'Utility Functions'!$AC$3:$AC$7,'Utility Functions'!$AD$3:$AD$7)","v":0.01},{"$f":"$Q$40*valuePL(Q11,'Utility Functions'!$AE$3:$AE$6,'Utility Functions'!$AF$3:$AF$6)","v":0.02},{"$f":"$R$40*valuePL(R11,'Utility Functions'!$AG$3:$AG$6,'Utility Functions'!$AH$3:$AH$6)","v":0.05},{"$f":"$S$40*valuePL(S11,'Utility Functions'!$AI$3:$AI$6,'Utility Functions'!$AJ$3:$AJ$6)","v":3.3000000000000002E-2},{"$f":"$T$40*valuePL(T11,'Utility Functions'!$AK$3:$AK$8,'Utility Functions'!$AL$3:$AL$8)","v":1.2E-2},{"$f":"$U$40*valuePL(U11,'Utility Functions'!$AM$3:$AM$5,'Utility Functions'!$AN$3:$AN$5)","v":0},{"$f":"$V$40*valuePL(V11,'Utility Functions'!$AO$3:$AO$5,'Utility Functions'!$AP$3:$AP$5)","v":0},{"$f":"$W$40*valuePL(W11,'Utility Functions'!$AQ$3:$AQ$6,'Utility Functions'!$AR$3:$AR$6)","v":0.03},{"$f":"$X$40*valuePL(X11,'Utility Functions'!$AS$3:$AS$6,'Utility Functions'!$AT$3:$AT$6)","v":0.04},{"$f":"$Y$40*valuePL(Y11,'Utility Functions'!$AU$3:$AU$6,'Utility Functions'!$AV$3:$AV$6)","v":0.05},{"$f":"$Z$40*valuePL(Z11,'Utility Functions'!$AW$3:$AW$5,'Utility Functions'!$AX$3:$AX$5)","v":2.5000000000000001E-2},{"$f":"$AA$40*valuePL(AA11,'Utility Functions'!$AY$3:$AY$6,'Utility Functions'!$AZ$3:$AZ$6)","v":8.0000000000000002E-3},{"$f":"$AB$40*valuePL(AB11,'Utility Functions'!$BA$3:$BA$5,'Utility Functions'!$BB$3:$BB$5)","v":0},{"$f":"$AC$40*valuePL(AC11,'Utility Functions'!$BC$3:$BC$5,'Utility Functions'!$BD$3:$BD$5)","v":0.03},0.42049999999999998]
[11,{"$f":"$B$40*(valueE(B12,'Utility Functions'!$B$3,'Utility Functions'!$B$4,'Utility Functions'!$B$5,'Utility Functions'!$B$6))","v":0},{"$f":"$C$40*(valueE(C12,'Utility Functions'!$D$3,'Utility Functions'!$D$4,'Utility Functions'!$D$5,'Utility Functions'!$D$6))","v":0},{"$f":"$D$40*(valuePL(D12,'Utility Functions'!$E$3:$E$5,'Utility Functions'!$F$3:$F$5))","v":0},{"$f":"$E$40*(valuePL(E12,'Utility Functions'!$G$3:$G$5,'Utility Functions'!$H$3:$H$5))","v":0},{"$f":"$F$40*(valuePL(F12,'Utility Functions'!$I$3:$I$4,'Utility Functions'!$J$3:$J$5))","v":0},{"$f":"$G$40*(valueE(G12,'Utility Functions'!$L$3,'Utility Functions'!$L$4,'Utility Functions'!$L$5,'Utility Functions'!$L$6))","v":4.8387096774193543E-4},{"$f":"$H$40*(valueE(H12,'Utility Functions'!$N$3,'Utility Functions'!$N$4,'Utility Functions'!$N$5,'Utility Functions'!$N$6))","v":1.4516129032258063E-3},{"$f":"$I$40*valuePL(I12,'Utility Functions'!$O$3:$O$6,'Utility Functions'!$P$3:$P$6)","v":1.6254545454545456E-2},{"$f":"$J$40*valuePL(J12,'Utility Functions'!$Q$3:$Q$6,'Utility Functions'!$R$3:$R$6)","v":1.8363636363636363E-2},{"$f":"$K$40*(valuePL(K12,'Utility Functions'!$S$3:$S$7,'Utility Functions'!$T$3:$T$7))","v":1.0836363636363637E-2},{"$f":"$L$40*(valueE(L12,'Utility Functions'!$V$3,'Utility Functions'!$V$4,'Utility Functions'!$V$5,'Utility Functions'!$V$6))","v":0.02},{"$f":"$M$40*valuePL(M12,'Utility Functions'!$W$3:$W$6,'Utility Functions'!$X$3:$X$6)","v":1.8363636363636363E-2},{"$f":"$N$40*valueE(N12,'Utility Functions'!$Z$3,'Utility Functions'!$Z$4,'Utility Functions'!$Z$5,'Utility Functions'!$Z$6)","v":1.125E-2},{"$f":"$O$40*valuePL(O12,'Utility Functions'!$AA$3:$AA$5,'Utility Functions'!$AB$3:$AB$5)","v":2.2499999999999999E-2},{"$f":"$P$40*valuePL(P12,'Utility Functions'!$AC$3:$AC$7,'Utility Functions'!$AD$3:$AD$7)","v":0.01},{"$f":"$Q$40*valuePL(Q12,'Utility Functions'!$AE$3:$AE$6,'Utility Functions'!$AF$3:$AF$6)","v":0},{"$f":"$R$40*valuePL(R12,'Utility Functions'!$AG$3:$AG$6,'Utility Functions'!$AH$3:$AH$6)","v":0.05},{"$f":"$S$40*valuePL(S12,'Utility Functions'!$AI$3:$AI$6,'Utility Functions'!$AJ$3:$AJ$6)","v":0.05},{"$f":"$T$40*valuePL(T12,'Utility Functions'!$AK$3:$AK$8,'Utility Functions'!$AL$3:$AL$8)","v":1.2E-2},{"$f":"$U$40*valuePL(U12,'Utility Functions'!$AM$3:$AM$5,'Utility Functions'!$AN$3:$AN$5)","v":0.03},{"$f":"$V$40*valuePL(V12,'Utility Functions'!$AO$3:$AO$5,'Utility Functions'!$AP$3:$AP$5)","v":0.05},{"$f":"$W$40*valuePL(W12,'Utility Functions'!$AQ$3:$AQ$6,'Utility Functions'!$AR$3:$AR$6)","v":8.0000000000000002E-3},{"$f":"$X$40*valuePL(X12,'Utility Functions'!$AS$3:$AS$6,'Utility Functions'!$AT$3:$AT$6)","v":0.04},{"$f":"$Y$40*valuePL(Y12,'Utility Functions'!$AU$3:$AU$6,'Utility Functions'!$AV$3:$AV$6)","v":0.05},{"$f":"$Z$40*valuePL(Z12,'Utility Functions'!$AW$3:$AW$5,'Utility Functions'!$AX$3:$AX$5)","v":2.5000000000000001E-2},{"$f":"$AA$40*valuePL(AA12,'Utility Functions'!$AY$3:$AY$6,'Utility Functions'!$AZ$3:$AZ$6)","v":3.5999999999999997E-2},{"$f":"$AB$40*valuePL(AB12,'Utility Functions'!$BA$3:$BA$5,'Utility Functions'!$BB$3:$BB$5)","v":0},{"$f":"$AC$40*valuePL(AC12,'Utility Functions'!$BC$3:$BC$5,'Utility Functions'!$BD$3:$BD$5)","v":7.4999999999999997E-3},0.48800366568914949]
[12,{"$f":"$B$40*(valueE(B13,'Utility Functions'!$B$3,'Utility Functions'!$B$4,'Utility Functions'!$B$5,'Utility Functions'!$B$6))","v":9.8904136043327599E-3},{"$f":"$C$40*(valueE(C13,'Utility Functions'!$D$3,'Utility Functions'!$D$4,'Utility Functions'!$D$5,'Utility Functions'!$D$6))","v":2.3696993705826886E-2},{"$f":"$D$40*(valuePL(D13,'Utility Functions'!$E$3:$E$5,'Utility Functions'!$F$3:$F$5))","v":0.03},{"$f":"$E$40*(valuePL(E13,'Utility Functions'!$G$3:$G$5,'Utility Functions'!$H$3:$H$5))","v":1.4999999999999999E-2},{"$f":"$F$40*(valuePL(F13,'Utility Functions'!$I$3:$I$4,'Utility Functions'!$J$3:$J$5))","v":0},{"$f":"$G$40*(valueE(G13,'Utility Functions'!$L$3,'Utility Functions'!$L$4,'Utility Functions'!$L$5,'Utility Functions'!$L$6))","v":0},{"$f":"$H$40*(valueE(H13,'Utility Functions'!$N$3,'Utility Functions'!$N$4,'Utility Functions'!$N$5,'Utility Functions'!$N$6))","v":0},{"$f":"$I$40*valuePL(I13,'Utility Functions'!$O$3:$O$6,'Utility Functions'!$P$3:$P$6)","v":0},{"$f":"$J$40*valuePL(J13,'Utility Functions'!$Q$3:$Q$6,'Utility Functions'!$R$3:$R$6)","v":0},{"$f":"$K$40*(valuePL(K13,'Utility Functions'!$S$3:$S$7,'Utility Functions'!$T$3:$T$7))","v":0},{"$f":"$L$40*(valueE(L13,'Utility Functions'!$V$3,'Utility Functions'!$V$4,'Utility Functions'!$V$5,'Utility Functions'!$V$6))","v":0},{"$f":"$M$40*valuePL(M13,'Utility Functions'!$W$3:$W$6,'Utility Functions'!$X$3:$X$6)","v":0},{"$f":"$N$40*valueE(N13,'Utility Functions'!$Z$3,'Utility Functions'!$Z$4,'Utility Functions'!$Z$5,'Utility Functions'!$Z$6)","v":0},{"$f":"$O$40*valuePL(O13,'Utility Functions'!$AA$3:$AA$5,'Utility Functions'!$AB$3:$AB$5)","v":0},{"$f":"$P$40*valuePL(P13,'Utility Functions'!$AC$3:$AC$7,'Utility Functions'!$AD$3:$AD$7)","v":0},{"$f":"$Q$40*valuePL(Q13,'Utility Functions'!$AE$3:$AE$6,'Utility Functions'!$AF$3:$AF$6)","v":4.0000000000000001E-3},{"$f":"$R$40*valuePL(R13,'Utility Functions'!$AG$3:$AG$6,'Utility Functions'!$AH$3:$AH$6)","v":0.05},{"$f":"$S$40*valuePL(S13,'Utility Functions'!$AI$3:$AI$6,'Utility Functions'!$AJ$3:$AJ$6)","v":0.05},{"$f":"$T$40*valuePL(T13,'Utility Functions'!$AK$3:$AK$8,'Utility Functions'!$AL$3:$AL$8)","v":1.7999999999999999E-2},{"$f":"$U$40*valuePL(U13,'Utility Functions'!$AM$3:$AM$5,'Utility Functions'!$AN$3:$AN$5)","v":0},{"$f":"$V$40*valuePL(V13,'Utility Functions'!$AO$3:$AO$5,'Utility Functions'!$AP$3:$AP$5)","v":2.5000000000000001E-2},{"$f":"$W$40*valuePL(W13,'Utility Functions'!$AQ$3:$AQ$6,'Utility Functions'!$AR$3:$AR$6)","v":8.0000000000000002E-3},{"$f":"$X$40*valuePL(X13,'Utility Functions'!$AS$3:$AS$6,'Utility Functions'!$AT$3:$AT$6)","v":0.04},{"$f":"$Y$40*valuePL(Y13,'Utility Functions'!$AU$3:$AU$6,'Utility Functions'!$AV$3:$AV$6)","v":1.0000000000000002E-2},{"$f":"$Z$40*valuePL(Z13,'Utility Functions'!$AW$3:$AW$5,'Utility Functions'!$AX$3:$AX$5)","v":0.05},{"$f":"$AA$40*valuePL(AA13,'Utility Functions'!$AY$3:$AY$6,'Utility Functions'!$AZ$3:$AZ$6)","v":8.0000000000000002E-3},{"$f":"$AB$40*valuePL(AB13,'Utility Functions'!$BA$3:$BA$5,'Utility Functions'!$BB$3:$BB$5)","v":0.04},{"$f":"$AC$40*valuePL(AC13,'Utility Functions'!$BC$3:$BC$5,'Utility Functions'!$BD$3:$BD$5)","v":0},0.38158740731015961]
[13,{"$f":"$B$40*(valueE(B14,'Utility Functions'!$B$3,'Utility Functions'!$B$4,'Utility Functions'!$B$5,'Utility Functions'!$B$6))","v":0},{"$f":"$C$40*(valueE(C14,'Utility Functions'!$D$3,'Utility Functions'!$D$4,'Utility Functions'!$D$5,'Utility Functions'!$D$6))","v":0},{"$f":"$D$40*(valuePL(D14,'Utility Functions'!$E$3:$E$5,'Utility Functions'!$F$3:$F$5))","v":0},{"$f":"$E$40*(valuePL(E14,'Utility Functions'!$G$3:$G$5,'Utility Functions'!$H$3:$H$5))","v":0},{"$f":"$F$40*(valuePL(F14,'Utility Functions'!$I$3:$I$4,'Utility Functions'!$J$3:$J$5))","v":0},{"$f":"$G$40*(valueE(G14,'Utility Functions'!$L$3,'Utility Functions'!$L$4,'Utility Functions'!$L$5,'Utility Functions'!$L$6))","v":0},{"$f":"$H$40*(valueE(H14,'Utility Functions'!$N$3,'Utility Functions'!$N$4,'Utility Functions'!$N$5,'Utility Functions'!$N$6))","v":1.7077798861480075E-4},{"$f":"$I$40*valuePL(I14,'Utility Functions'!$O$3:$O$6,'Utility Functions'!$P$3:$P$6)","v":9.8727272727272726E-3},{"$f":"$J$40*valuePL(J14,'Utility Functions'!$Q$3:$Q$6,'Utility Functions'!$R$3:$R$6)","v":8.0000000000000004E-4},{"$f":"$K$40*(valuePL(K14,'Utility Functions'!$S$3:$S$7,'Utility Functions'!$T$3:$T$7))","v":6.5818181818181817E-3},{"$f":"$L$40*(valueE(L14,'Utility Functions'!$V$3,'Utility Functions'!$V$4,'Utility Functions'!$V$5,'Utility Functions'!$V$6))","v":0.02},{"$f":"$M$40*valuePL(M14,'Utility Functions'!$W$3:$W$6,'Utility Functions'!$X$3:$X$6)","v":8.0000000000000004E-4},{"$f":"$N$40*valueE(N14,'Utility Functions'!$Z$3,'Utility Functions'!$Z$4,'Utility Functions'!$Z$5,'Utility Functions'!$Z$6)","v":2.6249999999999999E-2},{"$f":"$O$40*valuePL(O14,'Utility Functions'!$AA$3:$AA$5,'Utility Functions'!$AB$3:$AB$5)","v":2.2499999999999999E-2},{"$f":"$P$40*valuePL(P14,'Utility Functions'!$AC$3:$AC$7,'Utility Functions'!$AD$3:$AD$7)","v":0.01},{"$f":"$Q$40*valuePL(Q14,'Utility Functions'!$AE$3:$AE$6,'Utility Functions'!$AF$3:$AF$6)","v":0},{"$f":"$R$40*valuePL(R14,'Utility Functions'!$AG$3:$AG$6,'Utility Functions'!$AH$3:$AH$6)","v":0.05},{"$f":"$S$40*valuePL(S14,'Utility Functions'!$AI$3:$AI$6,'Utility Functions'!$AJ$3:$AJ$6)","v":0.05},{"$f":"$T$40*valuePL(T14,'Utility Functions'!$AK$3:$AK$8,'Utility Functions'!$AL$3:$AL$8)","v":0},{"$f":"$U$40*valuePL(U14,'Utility Functions'!$AM$3:$AM$5,'Utility Functions'!$AN$3:$AN$5)","v":0},{"$f":"$V$40*valuePL(V14,'Utility Functions'!$AO$3:$AO$5,'Utility Functions'!$AP$3:$AP$5)","v":2.5000000000000001E-2},{"$f":"$W$40*valuePL(W14,'Utility Functions'!$AQ$3:$AQ$6,'Utility Functions'!$AR$3:$AR$6)","v":0},{"$f":"$X$40*valuePL(X14,'Utility Functions'!$AS$3:$AS$6,'Utility Functions'!$AT$3:$AT$6)","v":8.0000000000000002E-3},{"$f":"$Y$40*valuePL(Y14,'Utility Functions'!$AU$3:$AU$6,'Utility Functions'!$AV$3:$AV$6)","v":0},{"$f":"$Z$40*valuePL(Z14,'Utility Functions'!$AW$3:$AW$5,'Utility Functions'!$AX$3:$AX$5)","v":0.05},{"$f":"$AA$40*valuePL(AA14,'Utility Functions'!$AY$3:$AY$6,'Utility Functions'!$AZ$3:$AZ$6)","v":8.0000000000000002E-3},{"$f":"$AB$40*valuePL(AB14,'Utility Functions'!$BA$3:$BA$5,'Utility Functions'!$BB$3:$BB$5)","v":0.01},{"$f":"$AC$40*valuePL(AC14,'Utility Functions'!$BC$3:$BC$5,'Utility Functions'!$BD$3:$BD$5)","v":7.4999999999999997E-3},0.30547532344316031]
[14,{"$f":"$B$40*(valueE(B15,'Utility Functions'!$B$3,'Utility Functions'!$B$4,'Utility Functions'!$B$5,'Utility Functions'!$B$6))","v":2.0964205406426323E-2},{"$f":"$C$40*(valueE(C15,'Utility Functions'!$D$3,'Utility Functions'!$D$4,'Utility Functions'!$D$5,'Utility Functions'!$D$6))","v":2.3696993705826886E-2},{"$f":"$D$40*(valuePL(D15,'Utility Functions'!$E$3:$E$5,'Utility Functions'!$F$3:$F$5))","v":1.4999999999999999E-2},{"$f":"$E$40*(valuePL(E15,'Utility Functions'!$G$3:$G$5,'Utility Functions'!$H$3:$H$5))","v":1.4999999999999999E-2},{"$f":"$F$40*(valuePL(F15,'Utility Functions'!$I$3:$I$4,'Utility Functions'!$J$3:$J$5))","v":0},{"$f":"$G$40*(valueE(G15,'Utility Functions'!$L$3,'Utility Functions'!$L$4,'Utility Functions'!$L$5,'Utility Functions'!$L$6))","v":0},{"$f":"$H$40*(valueE(H15,'Utility Functions'!$N$3,'Utility Functions'!$N$4,'Utility Functions'!$N$5,'Utility Functions'!$N$6))","v":0},{"$f":"$I$40*valuePL(I15,'Utility Functions'!$O$3:$O$6,'Utility Functions'!$P$3:$P$6)","v":0},{"$f":"$J$40*valuePL(J15,'Utility Functions'!$Q$3:$Q$6,'Utility Functions'!$R$3:$R$6)","v":0},{"$f":"$K$40*(valuePL(K15,'Utility Functions'!$S$3:$S$7,'Utility Functions'!$T$3:$T$7))","v":0},{"$f":"$L$40*(valueE(L15,'Utility Functions'!$V$3,'Utility Functions'!$V$4,'Utility Functions'!$V$5,'Utility Functions'!$V$6))","v":0},{"$f":"$M$40*valuePL(M15,'Utility Functions'!$W$3:$W$6,'Utility Functions'!$X$3:$X$6)","v":0},{"$f":"$N$40*valueE(N15,'Utility Functions'!$Z$3,'Utility Functions'!$Z$4,'Utility Functions'!$Z$5,'Utility Functions'!$Z$6)","v":2.2499999999999999E-2},{"$f":"$O$40*valuePL(O15,'Utility Functions'!$AA$3:$AA$5,'Utility Functions'!$AB$3:$AB$5)","v":2.2499999999999999E-2},{"$f":"$P$40*valuePL(P15,'Utility Functions'!$AC$3:$AC$7,'Utility Functions'!$AD$3:$AD$7)","v":0.01},{"$f":"$Q$40*valuePL(Q15,'Utility Functions'!$AE$3:$AE$6,'Utility Functions'!$AF$3:$AF$6)","v":0},{"$f":"$R$40*valuePL(R15,'Utility Functions'!$AG$3:$AG$6,'Utility Functions'!$AH$3:$AH$6)","v":0.05},{"$f":"$S$40*valuePL(S15,'Utility Functions'!$AI$3:$AI$6,'Utility Functions'!$AJ$3:$AJ$6)","v":0.05},{"$f":"$T$40*valuePL(T15,'Utility Functions'!$AK$3:$AK$8,'Utility Functions'!$AL$3:$AL$8)","v":0},{"$f":"$U$40*valuePL(U15,'Utility Functions'!$AM$3:$AM$5,'Utility Functions'!$AN$3:$AN$5)","v":0},{"$f":"$V$40*valuePL(V15,'Utility Functions'!$AO$3:$AO$5,'Utility Functions'!$AP$3:$AP$5)","v":2.5000000000000001E-2},{"$f":"$W$40*valuePL(W15,'Utility Functions'!$AQ$3:$AQ$6,'Utility Functions'!$AR$3:$AR$6)","v":8.0000000000000002E-3},{"$f":"$X$40*valuePL(X15,'Utility Functions'!$AS$3:$AS$6,'Utility Functions'!$AT$3:$AT$6)","v":0.04},{"$f":"$Y$40*valuePL(Y15,'Utility Functions'!$AU$3:$AU$6,'Utility Functions'!$AV$3:$AV$6)","v":0.05},{"$f":"$Z$40*valuePL(Z15,'Utility Functions'!$AW$3:$AW$5,'Utility Functions'!$AX$3:$AX$5)","v":2.5000000000000001E-2},{"$f":"$AA$40*valuePL(AA15,'Utility Functions'!$AY$3:$AY$6,'Utility Functions'!$AZ$3:$AZ$6)","v":3.5999999999999997E-2},{"$f":"$AB$40*valuePL(AB15,'Utility Functions'!$BA$3:$BA$5,'Utility Functions'!$BB$3:$BB$5)","v":0.01},{"$f":"$AC$40*valuePL(AC15,'Utility Functions'!$BC$3:$BC$5,'Utility Functions'!$BD$3:$BD$5)","v":7.4999999999999997E-3},0.4311611991122532]
[15,{"$f":"$B$40*(valueE(B16,'Utility Functions'!$B$3,'Utility Functions'!$B$4,'Utility Functions'!$B$5,'Utility Functions'!$B$6))","v":2.9698489925153143E-2},{"$f":"$C$40*(valueE(C16,'Utility Functions'!$D$3,'Utility Functions'!$D$4,'Utility Functions'!$D$5,'Utility Functions'!$D$6))","v":2.1405827917278249E-2},{"$f":"$D$40*(valuePL(D16,'Utility Functions'!$E$3:$E$5,'Utility Functions'!$F$3:$F$5))","v":0.03},{"$f":"$E$40*(valuePL(E16,'Utility Functions'!$G$3:$G$5,'Utility Functions'!$H$3:$H$5))","v":1.4999999999999999E-2},{"$f":"$F$40*(valuePL(F16,'Utility Functions'!$I$3:$I$4,'Utility Functions'!$J$3:$J$5))","v":0.04},{"$f":"$G$40*(valueE(G16,'Utility Functions'!$L$3,'Utility Functions'!$L$4,'Utility Functions'!$L$5,'Utility Functions'!$L$6))","v":0},{"$f":"$H$40*(valueE(H16,'Utility Functions'!$N$3,'Utility Functions'!$N$4,'Utility Functions'!$N$5,'Utility Functions'!$N$6))","v":0},{"$f":"$I$40*valuePL(I16,'Utility Functions'!$O$3:$O$6,'Utility Functions'!$P$3:$P$6)","v":2.7600000000000003E-3},{"$f":"$J$40*valuePL(J16,'Utility Functions'!$Q$3:$Q$6,'Utility Functions'!$R$3:$R$6)","v":1.2000000000000003E-3},{"$f":"$K$40*(valuePL(K16,'Utility Functions'!$S$3:$S$7,'Utility Functions'!$T$3:$T$7))","v":1.2000000000000003E-3},{"$f":"$L$40*(valueE(L16,'Utility Functions'!$V$3,'Utility Functions'!$V$4,'Utility Functions'!$V$5,'Utility Functions'!$V$6))","v":0.02},{"$f":"$M$40*valuePL(M16,'Utility Functions'!$W$3:$W$6,'Utility Functions'!$X$3:$X$6)","v":1.2000000000000003E-3},{"$f":"$N$40*valueE(N16,'Utility Functions'!$Z$3,'Utility Functions'!$Z$4,'Utility Functions'!$Z$5,'Utility Functions'!$Z$6)","v":3.7499999999999999E-3},{"$f":"$O$40*valuePL(O16,'Utility Functions'!$AA$3:$AA$5,'Utility Functions'!$AB$3:$AB$5)","v":0.09},{"$f":"$P$40*valuePL(P16,'Utility Functions'!$AC$3:$AC$7,'Utility Functions'!$AD$3:$AD$7)","v":0.02},{"$f":"$Q$40*valuePL(Q16,'Utility Functions'!$AE$3:$AE$6,'Utility Functions'!$AF$3:$AF$6)","v":0},{"$f":"$R$40*valuePL(R16,'Utility Functions'!$AG$3:$AG$6,'Utility Functions'!$AH$3:$AH$6)","v":4.0000000000000008E-2},{"$f":"$S$40*valuePL(S16,'Utility Functions'!$AI$3:$AI$6,'Utility Functions'!$AJ$3:$AJ$6)","v":0.05},{"$f":"$T$40*valuePL(T16,'Utility Functions'!$AK$3:$AK$8,'Utility Functions'!$AL$3:$AL$8)","v":1.7999999999999999E-2},{"$f":"$U$40*valuePL(U16,'Utility Functions'!$AM$3:$AM$5,'Utility Functions'!$AN$3:$AN$5)","v":0.03},{"$f":"$V$40*valuePL(V16,'Utility Functions'!$AO$3:$AO$5,'Utility Functions'!$AP$3:$AP$5)","v":0},{"$f":"$W$40*valuePL(W16,'Utility Functions'!$AQ$3:$AQ$6,'Utility Functions'!$AR$3:$AR$6)","v":0.04},{"$f":"$X$40*valuePL(X16,'Utility Functions'!$AS$3:$AS$6,'Utility Functions'!$AT$3:$AT$6)","v":8.0000000000000002E-3},{"$f":"$Y$40*valuePL(Y16,'Utility Functions'!$AU$3:$AU$6,'Utility Functions'!$AV$3:$AV$6)","v":1.0000000000000002E-2},{"$f":"$Z$40*valuePL(Z16,'Utility Functions'!$AW$3:$AW$5,'Utility Functions'!$AX$3:$AX$5)","v":0.05},{"$f":"$AA$40*valuePL(AA16,'Utility Functions'!$AY$3:$AY$6,'Utility Functions'!$AZ$3:$AZ$6)","v":0.04},{"$f":"$AB$40*valuePL(AB16,'Utility Functions'!$BA$3:$BA$5,'Utility Functions'!$BB$3:$BB$5)","v":0.04},{"$f":"$AC$40*valuePL(AC16,'Utility Functions'!$BC$3:$BC$5,'Utility Functions'!$BD$3:$BD$5)","v":7.4999999999999997E-3},0.60971431784243146]
[16,{"$f":"$B$40*(valueE(B17,'Utility Functions'!$B$3,'Utility Functions'!$B$4,'Utility Functions'!$B$5,'Utility Functions'!$B$6))","v":0},{"$f":"$C$40*(valueE(C17,'Utility Functions'!$D$3,'Utility Functions'!$D$4,'Utility Functions'!$D$5,'Utility Functions'!$D$6))","v":0},{"$f":"$D$40*(valuePL(D17,'Utility Functions'!$E$3:$E$5,'Utility Functions'!$F$3:$F$5))","v":0},{"$f":"$E$40*(valuePL(E17,'Utility Functions'!$G$3:$G$5,'Utility Functions'!$H$3:$H$5))","v":0},{"$f":"$F$40*(valuePL(F17,'Utility Functions'!$I$3:$I$4,'Utility Functions'!$J$3:$J$5))","v":0},{"$f":"$G$40*(valueE(G17,'Utility Functions'!$L$3,'Utility Functions'!$L$4,'Utility Functions'!$L$5,'Utility Functions'!$L$6))","v":0},{"$f":"$H$40*(valueE(H17,'Utility Functions'!$N$3,'Utility Functions'!$N$4,'Utility Functions'!$N$5,'Utility Functions'!$N$6))","v":0},{"$f":"$I$40*valuePL(I17,'Utility Functions'!$O$3:$O$6,'Utility Functions'!$P$3:$P$6)","v":0.03},{"$f":"$J$40*valuePL(J17,'Utility Functions'!$Q$3:$Q$6,'Utility Functions'!$R$3:$R$6)","v":1.8363636363636363E-2},{"$f":"$K$40*(valuePL(K17,'Utility Functions'!$S$3:$S$7,'Utility Functions'!$T$3:$T$7))","v":0.02},{"$f":"$L$40*(valueE(L17,'Utility Functions'!$V$3,'Utility Functions'!$V$4,'Utility Functions'!$V$5,'Utility Functions'!$V$6))","v":1.6666666666666666E-2},{"$f":"$M$40*valuePL(M17,'Utility Functions'!$W$3:$W$6,'Utility Functions'!$X$3:$X$6)","v":1.8363636363636363E-2},{"$f":"$N$40*valueE(N17,'Utility Functions'!$Z$3,'Utility Functions'!$Z$4,'Utility Functions'!$Z$5,'Utility Functions'!$Z$6)","v":0},{"$f":"$O$40*valuePL(O17,'Utility Functions'!$AA$3:$AA$5,'Utility Functions'!$AB$3:$AB$5)","v":0},{"$f":"$P$40*valuePL(P17,'Utility Functions'!$AC$3:$AC$7,'Utility Functions'!$AD$3:$AD$7)","v":0.03},{"$f":"$Q$40*valuePL(Q17,'Utility Functions'!$AE$3:$AE$6,'Utility Functions'!$AF$3:$AF$6)","v":0},{"$f":"$R$40*valuePL(R17,'Utility Functions'!$AG$3:$AG$6,'Utility Functions'!$AH$3:$AH$6)","v":0.05},{"$f":"$S$40*valuePL(S17,'Utility Functions'!$AI$3:$AI$6,'Utility Functions'!$AJ$3:$AJ$6)","v":0.05},{"$f":"$T$40*valuePL(T17,'Utility Functions'!$AK$3:$AK$8,'Utility Functions'!$AL$3:$AL$8)","v":0.03},{"$f":"$U$40*valuePL(U17,'Utility Functions'!$AM$3:$AM$5,'Utility Functions'!$AN$3:$AN$5)","v":0},{"$f":"$V$40*valuePL(V17,'Utility Functions'!$AO$3:$AO$5,'Utility Functions'!$AP$3:$AP$5)","v":0.05},{"$f":"$W$40*valuePL(W17,'Utility Functions'!$AQ$3:$AQ$6,'Utility Functions'!$AR$3:$AR$6)","v":0.03},{"$f":"$X$40*valuePL(X17,'Utility Functions'!$AS$3:$AS$6,'Utility Functions'!$AT$3:$AT$6)","v":0.03},{"$f":"$Y$40*valuePL(Y17,'Utility Functions'!$AU$3:$AU$6,'Utility Functions'!$AV$3:$AV$6)","v":1.0000000000000002E-2},{"$f":"$Z$40*valuePL(Z17,'Utility Functions'!$AW$3:$AW$5,'Utility Functions'!$AX$3:$AX$5)","v":0.05},{"$f":"$AA$40*valuePL(AA17,'Utility Functions'!$AY$3:$AY$6,'Utility Functions'!$AZ$3:$AZ$6)","v":0.04},{"$f":"$AB$40*valuePL(AB17,'Utility Functions'!$BA$3:$BA$5,'Utility Functions'!$BB$3:$BB$5)","v":0.04},{"$f":"$AC$40*valuePL(AC17,'Utility Functions'!$BC$3:$BC$5,'Utility Functions'!$BD$3:$BD$5)","v":0.03},0.54339393939393943]
[17,{"$f":"$B$40*(valueE(B18,'Utility Functions'!$B$3,'Utility Functions'!$B$4,'Utility Functions'!$B$5,'Utility Functions'!$B$6))","v":9.8904136043327599E-3},{"$f":"$C$40*(valueE(C18,'Utility Functions'!$D$3,'Utility Functions'!$D$4,'Utility Functions'!$D$5,'Utility Functions'!$D$6))","v":2.3696993705826886E-2},{"$f":"$D$40*(valuePL(D18,'Utility Functions'!$E$3:$E$5,'Utility Functions'!$F$3:$F$5))","v":0.03},{"$f":"$E$40*(valuePL(E18,'Utility Functions'!$G$3:$G$5,'Utility Functions'!$H$3:$H$5))","v":1.4999999999999999E-2},{"$f":"$F$40*(valuePL(F18,'Utility Functions'!$I$3:$I$4,'Utility Functions'!$J$3:$J$5))","v":0.04},{"$f":"$G$40*(valueE(G18,'Utility Functions'!$L$3,'Utility Functions'!$L$4,'Utility Functions'!$L$5,'Utility Functions'!$L$6))","v":4.6774193548387091E-3},{"$f":"$H$40*(valueE(H18,'Utility Functions'!$N$3,'Utility Functions'!$N$4,'Utility Functions'!$N$5,'Utility Functions'!$N$6))","v":4.1271347248576853E-3},{"$f":"$I$40*valuePL(I18,'Utility Functions'!$O$3:$O$6,'Utility Functions'!$P$3:$P$6)","v":0},{"$f":"$J$40*valuePL(J18,'Utility Functions'!$Q$3:$Q$6,'Utility Functions'!$R$3:$R$6)","v":0},{"$f":"$K$40*(valuePL(K18,'Utility Functions'!$S$3:$S$7,'Utility Functions'!$T$3:$T$7))","v":0},{"$f":"$L$40*(valueE(L18,'Utility Functions'!$V$3,'Utility Functions'!$V$4,'Utility Functions'!$V$5,'Utility Functions'!$V$6))","v":0.02},{"$f":"$M$40*valuePL(M18,'Utility Functions'!$W$3:$W$6,'Utility Functions'!$X$3:$X$6)","v":1.2000000000000003E-3},{"$f":"$N$40*valueE(N18,'Utility Functions'!$Z$3,'Utility Functions'!$Z$4,'Utility Functions'!$Z$5,'Utility Functions'!$Z$6)","v":0},{"$f":"$O$40*valuePL(O18,'Utility Functions'!$AA$3:$AA$5,'Utility Functions'!$AB$3:$AB$5)","v":0},{"$f":"$P$40*valuePL(P18,'Utility Functions'!$AC$3:$AC$7,'Utility Functions'!$AD$3:$AD$7)","v":0},{"$f":"$Q$40*valuePL(Q18,'Utility Functions'!$AE$3:$AE$6,'Utility Functions'!$AF$3:$AF$6)","v":0},{"$f":"$R$40*valuePL(R18,'Utility Functions'!$AG$3:$AG$6,'Utility Functions'!$AH$3:$AH$6)","v":0.05},{"$f":"$S$40*valuePL(S18,'Utility Functions'!$AI$3:$AI$6,'Utility Functions'!$AJ$3:$AJ$6)","v":3.3000000000000002E-2},{"$f":"$T$40*valuePL(T18,'Utility Functions'!$AK$3:$AK$8,'Utility Functions'!$AL$3:$AL$8)","v":0},{"$f":"$U$40*valuePL(U18,'Utility Functions'!$AM$3:$AM$5,'Utility Functions'!$AN$3:$AN$5)","v":0},{"$f":"$V$40*valuePL(V18,'Utility Functions'!$AO$3:$AO$5,'Utility Functions'!$AP$3:$AP$5)","v":0.05},{"$f":"$W$40*valuePL(W18,'Utility Functions'!$AQ$3:$AQ$6,'Utility Functions'!$AR$3:$AR$6)","v":0.04},{"$f":"$X$40*valuePL(X18,'Utility Functions'!$AS$3:$AS$6,'Utility Functions'!$AT$3:$AT$6)","v":8.0000000000000002E-3},{"$f":"$Y$40*valuePL(Y18,'Utility Functions'!$AU$3:$AU$6,'Utility Functions'!$AV$3:$AV$6)","v":0},{"$f":"$Z$40*valuePL(Z18,'Utility Functions'!$AW$3:$AW$5,'Utility Functions'!$AX$3:$AX$5)","v":2.5000000000000001E-2},{"$f":"$AA$40*valuePL(AA18,'Utility Functions'!$AY$3:$AY$6,'Utility Functions'!$AZ$3:$AZ$6)","v":0},{"$f":"$AB$40*valuePL(AB18,'Utility Functions'!$BA$3:$BA$5,'Utility Functions'!$BB$3:$BB$5)","v":0.04},{"$f":"$AC$40*valuePL(AC18,'Utility Functions'!$BC$3:$BC$5,'Utility Functions'!$BD$3:$BD$5)","v":7.4999999999999997E-3},0.40209196138985603]
[18,{"$f":"$B$40*(valueE(B19,'Utility Functions'!$B$3,'Utility Functions'!$B$4,'Utility Functions'!$B$5,'Utility Functions'!$B$6))","v":0},{"$f":"$C$40*(valueE(C19,'Utility Functions'!$D$3,'Utility Functions'!$D$4,'Utility Functions'!$D$5,'Utility Functions'!$D$6))","v":0},{"$f":"$D$40*(valuePL(D19,'Utility Functions'!$E$3:$E$5,'Utility Functions'!$F$3:$F$5))","v":0},{"$f":"$E$40*(valuePL(E19,'Utility Functions'!$G$3:$G$5,'Utility Functions'!$H$3:$H$5))","v":0},{"$f":"$F$40*(valuePL(F19,'Utility Functions'!$I$3:$I$4,'Utility Functions'!$J$3:$J$5))","v":0},{"$f":"$G$40*(valueE(G19,'Utility Functions'!$L$3,'Utility Functions'!$L$4,'Utility Functions'!$L$5,'Utility Functions'!$L$6))","v":0},{"$f":"$H$40*(valueE(H19,'Utility Functions'!$N$3,'Utility Functions'!$N$4,'Utility Functions'!$N$5,'Utility Functions'!$N$6))","v":4.2694497153700185E-4},{"$f":"$I$40*valuePL(I19,'Utility Functions'!$O$3:$O$6,'Utility Functions'!$P$3:$P$6)","v":0},{"$f":"$J$40*valuePL(J19,'Utility Functions'!$Q$3:$Q$6,'Utility Functions'!$R$3:$R$6)","v":0},{"$f":"$K$40*(valuePL(K19,'Utility Functions'!$S$3:$S$7,'Utility Functions'!$T$3:$T$7))","v":0},{"$f":"$L$40*(valueE(L19,'Utility Functions'!$V$3,'Utility Functions'!$V$4,'Utility Functions'!$V$5,'Utility Functions'!$V$6))","v":0},{"$f":"$M$40*valuePL(M19,'Utility Functions'!$W$3:$W$6,'Utility Functions'!$X$3:$X$6)","v":0},{"$f":"$N$40*valueE(N19,'Utility Functions'!$Z$3,'Utility Functions'!$Z$4,'Utility Functions'!$Z$5,'Utility Functions'!$Z$6)","v":0.03},{"$f":"$O$40*valuePL(O19,'Utility Functions'!$AA$3:$AA$5,'Utility Functions'!$AB$3:$AB$5)","v":2.2499999999999999E-2},{"$f":"$P$40*valuePL(P19,'Utility Functions'!$AC$3:$AC$7,'Utility Functions'!$AD$3:$AD$7)","v":0.01},{"$f":"$Q$40*valuePL(Q19,'Utility Functions'!$AE$3:$AE$6,'Utility Functions'!$AF$3:$AF$6)","v":0.04},{"$f":"$R$40*valuePL(R19,'Utility Functions'!$AG$3:$AG$6,'Utility Functions'!$AH$3:$AH$6)","v":0.05},{"$f":"$S$40*valuePL(S19,'Utility Functions'!$AI$3:$AI$6,'Utility Functions'!$AJ$3:$AJ$6)","v":0.05},{"$f":"$T$40*valuePL(T19,'Utility Functions'!$AK$3:$AK$8,'Utility Functions'!$AL$3:$AL$8)","v":0.03},{"$f":"$U$40*valuePL(U19,'Utility Functions'!$AM$3:$AM$5,'Utility Functions'!$AN$3:$AN$5)","v":7.4999999999999997E-3},{"$f":"$V$40*valuePL(V19,'Utility Functions'!$AO$3:$AO$5,'Utility Functions'!$AP$3:$AP$5)","v":0.05},{"$f":"$W$40*valuePL(W19,'Utility Functions'!$AQ$3:$AQ$6,'Utility Functions'!$AR$3:$AR$6)","v":0.03},{"$f":"$X$40*valuePL(X19,'Utility Functions'!$AS$3:$AS$6,'Utility Functions'!$AT$3:$AT$6)","v":8.0000000000000002E-3},{"$f":"$Y$40*valuePL(Y19,'Utility Functions'!$AU$3:$AU$6,'Utility Functions'!$AV$3:$AV$6)","v":4.0000000000000008E-2},{"$f":"$Z$40*valuePL(Z19,'Utility Functions'!$AW$3:$AW$5,'Utility Functions'!$AX$3:$AX$5)","v":2.5000000000000001E-2},{"$f":"$AA$40*valuePL(AA19,'Utility Functions'!$AY$3:$AY$6,'Utility Functions'!$AZ$3:$AZ$6)","v":3.5999999999999997E-2},{"$f":"$AB$40*valuePL(AB19,'Utility Functions'!$BA$3:$BA$5,'Utility Functions'!$BB$3:$BB$5)","v":0.01},{"$f":"$AC$40*valuePL(AC19,'Utility Functions'!$BC$3:$BC$5,'Utility Functions'!$BD$3:$BD$5)","v":0},0.43942694497153706]
[19,{"$f":"$B$40*(valueE(B20,'Utility Functions'!$B$3,'Utility Functions'!$B$4,'Utility Functions'!$B$5,'Utility Functions'!$B$6))","v":2.3943140737469053E-2},{"$f":"$C$40*(valueE(C20,'Utility Functions'!$D$3,'Utility Functions'!$D$4,'Utility Functions'!$D$5,'Utility Functions'!$D$6))","v":8.0518966871447988E-3},{"$f":"$D$40*(valuePL(D20,'Utility Functions'!$E$3:$E$5,'Utility Functions'!$F$3:$F$5))","v":1.4999999999999999E-2},{"$f":"$E$40*(valuePL(E20,'Utility Functions'!$G$3:$G$5,'Utility Functions'!$H$3:$H$5))","v":0.03},{"$f":"$F$40*(valuePL(F20,'Utility Functions'!$I$3:$I$4,'Utility Functions'!$J$3:$J$5))","v":0},{"$f":"$G$40*(valueE(G20,'Utility Functions'!$L$3,'Utility Functions'!$L$4,'Utility Functions'!$L$5,'Utility Functions'!$L$6))","v":0},{"$f":"$H$40*(valueE(H20,'Utility Functions'!$N$3,'Utility Functions'!$N$4,'Utility Functions'!$N$5,'Utility Functions'!$N$6))","v":0},{"$f":"$I$40*valuePL(I20,'Utility Functions'!$O$3:$O$6,'Utility Functions'!$P$3:$P$6)","v":0},{"$f":"$J$40*valuePL(J20,'Utility Functions'!$Q$3:$Q$6,'Utility Functions'!$R$3:$R$6)","v":0},{"$f":"$K$40*(valuePL(K20,'Utility Functions'!$S$3:$S$7,'Utility Functions'!$T$3:$T$7))","v":0},{"$f":"$L$40*(valueE(L20,'Utility Functions'!$V$3,'Utility Functions'!$V$4,'Utility Functions'!$V$5,'Utility Functions'!$V$6))","v":0},{"$f":"$M$40*valuePL(M20,'Utility Functions'!$W$3:$W$6,'Utility Functions'!$X$3:$X$6)","v":0},{"$f":"$N$40*valueE(N20,'Utility Functions'!$Z$3,'Utility Functions'!$Z$4,'Utility Functions'!$Z$5,'Utility Functions'!$Z$6)","v":0.03},{"$f":"$O$40*valuePL(O20,'Utility Functions'!$AA$3:$AA$5,'Utility Functions'!$AB$3:$AB$5)","v":0.09},{"$f":"$P$40*valuePL(P20,'Utility Functions'!$AC$3:$AC$7,'Utility Functions'!$AD$3:$AD$7)","v":0},{"$f":"$Q$40*valuePL(Q20,'Utility Functions'!$AE$3:$AE$6,'Utility Functions'!$AF$3:$AF$6)","v":0},{"$f":"$R$40*valuePL(R20,'Utility Functions'!$AG$3:$AG$6,'Utility Functions'!$AH$3:$AH$6)","v":4.0000000000000008E-2},{"$f":"$S$40*valuePL(S20,'Utility Functions'!$AI$3:$AI$6,'Utility Functions'!$AJ$3:$AJ$6)","v":0.05},{"$f":"$T$40*valuePL(T20,'Utility Functions'!$AK$3:$AK$8,'Utility Functions'!$AL$3:$AL$8)","v":0},{"$f":"$U$40*valuePL(U20,'Utility Functions'!$AM$3:$AM$5,'Utility Functions'!$AN$3:$AN$5)","v":0},{"$f":"$V$40*valuePL(V20,'Utility Functions'!$AO$3:$AO$5,'Utility Functions'!$AP$3:$AP$5)","v":2.5000000000000001E-2},{"$f":"$W$40*valuePL(W20,'Utility Functions'!$AQ$3:$AQ$6,'Utility Functions'!$AR$3:$AR$6)","v":8.0000000000000002E-3},{"$f":"$X$40*valuePL(X20,'Utility Functions'!$AS$3:$AS$6,'Utility Functions'!$AT$3:$AT$6)","v":0.04},{"$f":"$Y$40*valuePL(Y20,'Utility Functions'!$AU$3:$AU$6,'Utility Functions'!$AV$3:$AV$6)","v":4.0000000000000008E-2},{"$f":"$Z$40*valuePL(Z20,'Utility Functions'!$AW$3:$AW$5,'Utility Functions'!$AX$3:$AX$5)","v":0},{"$f":"$AA$40*valuePL(AA20,'Utility Functions'!$AY$3:$AY$6,'Utility Functions'!$AZ$3:$AZ$6)","v":8.0000000000000002E-3},{"$f":"$AB$40*valuePL(AB20,'Utility Functions'!$BA$3:$BA$5,'Utility Functions'!$BB$3:$BB$5)","v":0},{"$f":"$AC$40*valuePL(AC20,'Utility Functions'!$BC$3:$BC$5,'Utility Functions'!$BD$3:$BD$5)","v":7.4999999999999997E-3},0.41549503742461386]
[20,{"$f":"$B$40*(valueE(B21,'Utility Functions'!$B$3,'Utility Functions'!$B$4,'Utility Functions'!$B$5,'Utility Functions'!$B$6))","v":2.5041071294184137E-2},{"$f":"$C$40*(valueE(C21,'Utility Functions'!$D$3,'Utility Functions'!$D$4,'Utility Functions'!$D$5,'Utility Functions'!$D$6))","v":2.3696993705826886E-2},{"$f":"$D$40*(valuePL(D21,'Utility Functions'!$E$3:$E$5,'Utility Functions'!$F$3:$F$5))","v":1.4999999999999999E-2},{"$f":"$E$40*(valuePL(E21,'Utility Functions'!$G$3:$G$5,'Utility Functions'!$H$3:$H$5))","v":0.03},{"$f":"$F$40*(valuePL(F21,'Utility Functions'!$I$3:$I$4,'Utility Functions'!$J$3:$J$5))","v":0},{"$f":"$G$40*(valueE(G21,'Utility Functions'!$L$3,'Utility Functions'!$L$4,'Utility Functions'!$L$5,'Utility Functions'!$L$6))","v":0},{"$f":"$H$40*(valueE(H21,'Utility Functions'!$N$3,'Utility Functions'!$N$4,'Utility Functions'!$N$5,'Utility Functions'!$N$6))","v":6.1907020872865271E-3},{"$f":"$I$40*valuePL(I21,'Utility Functions'!$O$3:$O$6,'Utility Functions'!$P$3:$P$6)","v":2.8036363636363634E-2},{"$f":"$J$40*valuePL(J21,'Utility Functions'!$Q$3:$Q$6,'Utility Functions'!$R$3:$R$6)","v":1.0181818181818183E-2},{"$f":"$K$40*(valuePL(K21,'Utility Functions'!$S$3:$S$7,'Utility Functions'!$T$3:$T$7))","v":1.8690909090909088E-2},{"$f":"$L$40*(valueE(L21,'Utility Functions'!$V$3,'Utility Functions'!$V$4,'Utility Functions'!$V$5,'Utility Functions'!$V$6))","v":1.3333333333333332E-2},{"$f":"$M$40*valuePL(M21,'Utility Functions'!$W$3:$W$6,'Utility Functions'!$X$3:$X$6)","v":1.0181818181818183E-2},{"$f":"$N$40*valueE(N21,'Utility Functions'!$Z$3,'Utility Functions'!$Z$4,'Utility Functions'!$Z$5,'Utility Functions'!$Z$6)","v":0.03},{"$f":"$O$40*valuePL(O21,'Utility Functions'!$AA$3:$AA$5,'Utility Functions'!$AB$3:$AB$5)","v":0.09},{"$f":"$P$40*valuePL(P21,'Utility Functions'!$AC$3:$AC$7,'Utility Functions'!$AD$3:$AD$7)","v":0.01},{"$f":"$Q$40*valuePL(Q21,'Utility Functions'!$AE$3:$AE$6,'Utility Functions'!$AF$3:$AF$6)","v":0},{"$f":"$R$40*valuePL(R21,'Utility Functions'!$AG$3:$AG$6,'Utility Functions'!$AH$3:$AH$6)","v":0.05},{"$f":"$S$40*valuePL(S21,'Utility Functions'!$AI$3:$AI$6,'Utility Functions'!$AJ$3:$AJ$6)","v":0.05},{"$f":"$T$40*valuePL(T21,'Utility Functions'!$AK$3:$AK$8,'Utility Functions'!$AL$3:$AL$8)","v":1.7999999999999999E-2},{"$f":"$U$40*valuePL(U21,'Utility Functions'!$AM$3:$AM$5,'Utility Functions'!$AN$3:$AN$5)","v":0.03},{"$f":"$V$40*valuePL(V21,'Utility Functions'!$AO$3:$AO$5,'Utility Functions'!$AP$3:$AP$5)","v":2.5000000000000001E-2},{"$f":"$W$40*valuePL(W21,'Utility Functions'!$AQ$3:$AQ$6,'Utility Functions'!$AR$3:$AR$6)","v":0},{"$f":"$X$40*valuePL(X21,'Utility Functions'!$AS$3:$AS$6,'Utility Functions'!$AT$3:$AT$6)","v":0},{"$f":"$Y$40*valuePL(Y21,'Utility Functions'!$AU$3:$AU$6,'Utility Functions'!$AV$3:$AV$6)","v":1.0000000000000002E-2},{"$f":"$Z$40*valuePL(Z21,'Utility Functions'!$AW$3:$AW$5,'Utility Functions'!$AX$3:$AX$5)","v":0.05},{"$f":"$AA$40*valuePL(AA21,'Utility Functions'!$AY$3:$AY$6,'Utility Functions'!$AZ$3:$AZ$6)","v":8.0000000000000002E-3},{"$f":"$AB$40*valuePL(AB21,'Utility Functions'!$BA$3:$BA$5,'Utility Functions'!$BB$3:$BB$5)","v":0},{"$f":"$AC$40*valuePL(AC21,'Utility Functions'!$BC$3:$BC$5,'Utility Functions'!$BD$3:$BD$5)","v":7.4999999999999997E-3},0.55885300951154004]
[{"$f":"A22","v":21},{"$f":"$B$40*(valueE(B22,'Utility Functions'!$B$3,'Utility Functions'!$B$4,'Utility Functions'!$B$5,'Utility Functions'!$B$6))","v":0},{"$f":"$C$40*(valueE(C22,'Utility Functions'!$D$3,'Utility Functions'!$D$4,'Utility Functions'!$D$5,'Utility Functions'!$D$6))","v":0},{"$f":"$D$40*(valuePL(D22,'Utility Functions'!$E$3:$E$5,'Utility Functions'!$F$3:$F$5))","v":0},{"$f":"$E$40*(valuePL(E22,'Utility Functions'!$G$3:$G$5,'Utility Functions'!$H$3:$H$5))","v":0},{"$f":"$F$40*(valuePL(F22,'Utility Functions'!$I$3:$I$4,'Utility Functions'!$J$3:$J$5))","v":0},{"$f":"$G$40*(valueE(G22,'Utility Functions'!$L$3,'Utility Functions'!$L$4,'Utility Functions'!$L$5,'Utility Functions'!$L$6))","v":0},{"$f":"$H$40*(valueE(H22,'Utility Functions'!$N$3,'Utility Functions'!$N$4,'Utility Functions'!$N$5,'Utility Functions'!$N$6))","v":0},{"$f":"$I$40*valuePL(I22,'Utility Functions'!$O$3:$O$6,'Utility Functions'!$P$3:$P$6)","v":0},{"$f":"$J$40*valuePL(J22,'Utility Functions'!$Q$3:$Q$6,'Utility Functions'!$R$3:$R$6)","v":0},{"$f":"$K$40*(valuePL(K22,'Utility Functions'!$S$3:$S$7,'Utility Functions'!$T$3:$T$7))","v":0},{"$f":"$L$40*(valueE(L22,'Utility Functions'!$V$3,'Utility Functions'!$V$4,'Utility Functions'!$V$5,'Utility Functions'!$V$6))","v":0},{"$f":"$M$40*valuePL(M22,'Utility Functions'!$W$3:$W$6,'Utility Functions'!$X$3:$X$6)","v":0},{"$f":"$N$40*valueE(N22,'Utility Functions'!$Z$3,'Utility Functions'!$Z$4,'Utility Functions'!$Z$5,'Utility Functions'!$Z$6)","v":0.03},{"$f":"$O$40*valuePL(O22,'Utility Functions'!$AA$3:$AA$5,'Utility Functions'!$AB$3:$AB$5)","v":0.09},{"$f":"$P$40*valuePL(P22,'Utility Functions'!$AC$3:$AC$7,'Utility Functions'!$AD$3:$AD$7)","v":0},{"$f":"$Q$40*valuePL(Q22,'Utility Functions'!$AE$3:$AE$6,'Utility Functions'!$AF$3:$AF$6)","v":4.0000000000000001E-3},{"$f":"$R$40*valuePL(R22,'Utility Functions'!$AG$3:$AG$6,'Utility Functions'!$AH$3:$AH$6)","v":0.05},{"$f":"$S$40*valuePL(S22,'Utility Functions'!$AI$3:$AI$6,'Utility Functions'!$AJ$3:$AJ$6)","v":0.05},{"$f":"$T$40*valuePL(T22,'Utility Functions'!$AK$3:$AK$8,'Utility Functions'!$AL$3:$AL$8)","v":0.03},{"$f":"$U$40*valuePL(U22,'Utility Functions'!$AM$3:$AM$5,'Utility Functions'!$AN$3:$AN$5)","v":7.4999999999999997E-3},{"$f":"$V$40*valuePL(V22,'Utility Functions'!$AO$3:$AO$5,'Utility Functions'!$AP$3:$AP$5)","v":0},{"$f":"$W$40*valuePL(W22,'Utility Functions'!$AQ$3:$AQ$6,'Utility Functions'!$AR$3:$AR$6)","v":0.03},{"$f":"$X$40*valuePL(X22,'Utility Functions'!$AS$3:$AS$6,'Utility Functions'!$AT$3:$AT$6)","v":0.04},{"$f":"$Y$40*valuePL(Y22,'Utility Functions'!$AU$3:$AU$6,'Utility Functions'!$AV$3:$AV$6)","v":1.0000000000000002E-2},{"$f":"$Z$40*valuePL(Z22,'Utility Functions'!$AW$3:$AW$5,'Utility Functions'!$AX$3:$AX$5)","v":0},{"$f":"$AA$40*valuePL(AA22,'Utility Functions'!$AY$3:$AY$6,'Utility Functions'!$AZ$3:$AZ$6)","v":0.04},{"$f":"$AB$40*valuePL(AB22,'Utility Functions'!$BA$3:$BA$5,'Utility Functions'!$BB$3:$BB$5)","v":0.01},{"$f":"$AC$40*valuePL(AC22,'Utility Functions'!$BC$3:$BC$5,'Utility Functions'!$BD$3:$BD$5)","v":0.03},0.42149999999999999]
[22,{"$f":"$B$40*(valueE(B23,'Utility Functions'!$B$3,'Utility Functions'!$B$4,'Utility Functions'!$B$5,'Utility Functions'!$B$6))","v":0},{"$f":"$C$40*(valueE(C23,'Utility Functions'!$D$3,'Utility Functions'!$D$4,'Utility Functions'!$D$5,'Utility Functions'!$D$6))","v":0},{"$f":"$D$40*(valuePL(D23,'Utility Functions'!$E$3:$E$5,'Utility Functions'!$F$3:$F$5))","v":0},{"$f":"$E$40*(valuePL(E23,'Utility Functions'!$G$3:$G$5,'Utility Functions'!$H$3:$H$5))","v":0},{"$f":"$F$40*(valuePL(F23,'Utility Functions'!$I$3:$I$4,'Utility Functions'!$J$3:$J$5))","v":0},{"$f":"$G$40*(valueE(G23,'Utility Functions'!$L$3,'Utility Functions'!$L$4,'Utility Functions'!$L$5,'Utility Functions'!$L$6))","v":1.2903225806451613E-3},{"$f":"$H$40*(valueE(H23,'Utility Functions'!$N$3,'Utility Functions'!$N$4,'Utility Functions'!$N$5,'Utility Functions'!$N$6))","v":9.1081593927893733E-4},{"$f":"$I$40*valuePL(I23,'Utility Functions'!$O$3:$O$6,'Utility Functions'!$P$3:$P$6)","v":0},{"$f":"$J$40*valuePL(J23,'Utility Functions'!$Q$3:$Q$6,'Utility Functions'!$R$3:$R$6)","v":0},{"$f":"$K$40*(valuePL(K23,'Utility Functions'!$S$3:$S$7,'Utility Functions'!$T$3:$T$7))","v":0},{"$f":"$L$40*(valueE(L23,'Utility Functions'!$V$3,'Utility Functions'!$V$4,'Utility Functions'!$V$5,'Utility Functions'!$V$6))","v":0},{"$f":"$M$40*valuePL(M23,'Utility Functions'!$W$3:$W$6,'Utility Functions'!$X$3:$X$6)","v":0},{"$f":"$N$40*valueE(N23,'Utility Functions'!$Z$3,'Utility Functions'!$Z$4,'Utility Functions'!$Z$5,'Utility Functions'!$Z$6)","v":3.7499999999999999E-3},{"$f":"$O$40*valuePL(O23,'Utility Functions'!$AA$3:$AA$5,'Utility Functions'!$AB$3:$AB$5)","v":0.09},{"$f":"$P$40*valuePL(P23,'Utility Functions'!$AC$3:$AC$7,'Utility Functions'!$AD$3:$AD$7)","v":0.04},{"$f":"$Q$40*valuePL(Q23,'Utility Functions'!$AE$3:$AE$6,'Utility Functions'!$AF$3:$AF$6)","v":0.02},{"$f":"$R$40*valuePL(R23,'Utility Functions'!$AG$3:$AG$6,'Utility Functions'!$AH$3:$AH$6)","v":4.0000000000000008E-2},{"$f":"$S$40*valuePL(S23,'Utility Functions'!$AI$3:$AI$6,'Utility Functions'!$AJ$3:$AJ$6)","v":0.05},{"$f":"$T$40*valuePL(T23,'Utility Functions'!$AK$3:$AK$8,'Utility Functions'!$AL$3:$AL$8)","v":0.03},{"$f":"$U$40*valuePL(U23,'Utility Functions'!$AM$3:$AM$5,'Utility Functions'!$AN$3:$AN$5)","v":0},{"$f":"$V$40*valuePL(V23,'Utility Functions'!$AO$3:$AO$5,'Utility Functions'!$AP$3:$AP$5)","v":2.5000000000000001E-2},{"$f":"$W$40*valuePL(W23,'Utility Functions'!$AQ$3:$AQ$6,'Utility Functions'!$AR$3:$AR$6)","v":0.03},{"$f":"$X$40*valuePL(X23,'Utility Functions'!$AS$3:$AS$6,'Utility Functions'!$AT$3:$AT$6)","v":8.0000000000000002E-3},{"$f":"$Y$40*valuePL(Y23,'Utility Functions'!$AU$3:$AU$6,'Utility Functions'!$AV$3:$AV$6)","v":0},{"$f":"$Z$40*valuePL(Z23,'Utility Functions'!$AW$3:$AW$5,'Utility Functions'!$AX$3:$AX$5)","v":0.05},{"$f":"$AA$40*valuePL(AA23,'Utility Functions'!$AY$3:$AY$6,'Utility Functions'!$AZ$3:$AZ$6)","v":8.0000000000000002E-3},{"$f":"$AB$40*valuePL(AB23,'Utility Functions'!$BA$3:$BA$5,'Utility Functions'!$BB$3:$BB$5)","v":0.04},{"$f":"$AC$40*valuePL(AC23,'Utility Functions'!$BC$3:$BC$5,'Utility Functions'!$BD$3:$BD$5)","v":7.4999999999999997E-3},0.44445113851992418]
[23,{"$f":"$B$40*(valueE(B24,'Utility Functions'!$B$3,'Utility Functions'!$B$4,'Utility Functions'!$B$5,'Utility Functions'!$B$6))","v":2.5041071294184137E-2},{"$f":"$C$40*(valueE(C24,'Utility Functions'!$D$3,'Utility Functions'!$D$4,'Utility Functions'!$D$5,'Utility Functions'!$D$6))","v":2.542345105018548E-2},{"$f":"$D$40*(valuePL(D24,'Utility Functions'!$E$3:$E$5,'Utility Functions'!$F$3:$F$5))","v":0.03},{"$f":"$E$40*(valuePL(E24,'Utility Functions'!$G$3:$G$5,'Utility Functions'!$H$3:$H$5))","v":0},{"$f":"$F$40*(valuePL(F24,'Utility Functions'!$I$3:$I$4,'Utility Functions'!$J$3:$J$5))","v":0},{"$f":"$G$40*(valueE(G24,'Utility Functions'!$L$3,'Utility Functions'!$L$4,'Utility Functions'!$L$5,'Utility Functions'!$L$6))","v":0},{"$f":"$H$40*(valueE(H24,'Utility Functions'!$N$3,'Utility Functions'!$N$4,'Utility Functions'!$N$5,'Utility Functions'!$N$6))","v":0},{"$f":"$I$40*valuePL(I24,'Utility Functions'!$O$3:$O$6,'Utility Functions'!$P$3:$P$6)","v":0},{"$f":"$J$40*valuePL(J24,'Utility Functions'!$Q$3:$Q$6,'Utility Functions'!$R$3:$R$6)","v":0},{"$f":"$K$40*(valuePL(K24,'Utility Functions'!$S$3:$S$7,'Utility Functions'!$T$3:$T$7))","v":0},{"$f":"$L$40*(valueE(L24,'Utility Functions'!$V$3,'Utility Functions'!$V$4,'Utility Functions'!$V$5,'Utility Functions'!$V$6))","v":0},{"$f":"$M$40*valuePL(M24,'Utility Functions'!$W$3:$W$6,'Utility Functions'!$X$3:$X$6)","v":0},{"$f":"$N$40*valueE(N24,'Utility Functions'!$Z$3,'Utility Functions'!$Z$4,'Utility Functions'!$Z$5,'Utility Functions'!$Z$6)","v":0},{"$f":"$O$40*valuePL(O24,'Utility Functions'!$AA$3:$AA$5,'Utility Functions'!$AB$3:$AB$5)","v":0},{"$f":"$P$40*valuePL(P24,'Utility Functions'!$AC$3:$AC$7,'Utility Functions'!$AD$3:$AD$7)","v":0.03},{"$f":"$Q$40*valuePL(Q24,'Utility Functions'!$AE$3:$AE$6,'Utility Functions'!$AF$3:$AF$6)","v":0},{"$f":"$R$40*valuePL(R24,'Utility Functions'!$AG$3:$AG$6,'Utility Functions'!$AH$3:$AH$6)","v":0.05},{"$f":"$S$40*valuePL(S24,'Utility Functions'!$AI$3:$AI$6,'Utility Functions'!$AJ$3:$AJ$6)","v":0.05},{"$f":"$T$40*valuePL(T24,'Utility Functions'!$AK$3:$AK$8,'Utility Functions'!$AL$3:$AL$8)","v":0.03},{"$f":"$U$40*valuePL(U24,'Utility Functions'!$AM$3:$AM$5,'Utility Functions'!$AN$3:$AN$5)","v":0},{"$f":"$V$40*valuePL(V24,'Utility Functions'!$AO$3:$AO$5,'Utility Functions'!$AP$3:$AP$5)","v":0.05},{"$f":"$W$40*valuePL(W24,'Utility Functions'!$AQ$3:$AQ$6,'Utility Functions'!$AR$3:$AR$6)","v":8.0000000000000002E-3},{"$f":"$X$40*valuePL(X24,'Utility Functions'!$AS$3:$AS$6,'Utility Functions'!$AT$3:$AT$6)","v":0.03},{"$f":"$Y$40*valuePL(Y24,'Utility Functions'!$AU$3:$AU$6,'Utility Functions'!$AV$3:$AV$6)","v":1.0000000000000002E-2},{"$f":"$Z$40*valuePL(Z24,'Utility Functions'!$AW$3:$AW$5,'Utility Functions'!$AX$3:$AX$5)","v":2.5000000000000001E-2},{"$f":"$AA$40*valuePL(AA24,'Utility Functions'!$AY$3:$AY$6,'Utility Functions'!$AZ$3:$AZ$6)","v":8.0000000000000002E-3},{"$f":"$AB$40*valuePL(AB24,'Utility Functions'!$BA$3:$BA$5,'Utility Functions'!$BB$3:$BB$5)","v":0},{"$f":"$AC$40*valuePL(AC24,'Utility Functions'!$BC$3:$BC$5,'Utility Functions'!$BD$3:$BD$5)","v":7.4999999999999997E-3},0.37896452234436967]
[24,{"$f":"$B$40*(valueE(B25,'Utility Functions'!$B$3,'Utility Functions'!$B$4,'Utility Functions'!$B$5,'Utility Functions'!$B$6))","v":1.896364549751255E-2},{"$f":"$C$40*(valueE(C25,'Utility Functions'!$D$3,'Utility Functions'!$D$4,'Utility Functions'!$D$5,'Utility Functions'!$D$6))","v":1.3942790146123618E-2},{"$f":"$D$40*(valuePL(D25,'Utility Functions'!$E$3:$E$5,'Utility Functions'!$F$3:$F$5))","v":0.03},{"$f":"$E$40*(valuePL(E25,'Utility Functions'!$G$3:$G$5,'Utility Functions'!$H$3:$H$5))","v":0},{"$f":"$F$40*(valuePL(F25,'Utility Functions'!$I$3:$I$4,'Utility Functions'!$J$3:$J$5))","v":0},{"$f":"$G$40*(valueE(G25,'Utility Functions'!$L$3,'Utility Functions'!$L$4,'Utility Functions'!$L$5,'Utility Functions'!$L$6))","v":0},{"$f":"$H$40*(valueE(H25,'Utility Functions'!$N$3,'Utility Functions'!$N$4,'Utility Functions'!$N$5,'Utility Functions'!$N$6))","v":0},{"$f":"$I$40*valuePL(I25,'Utility Functions'!$O$3:$O$6,'Utility Functions'!$P$3:$P$6)","v":0},{"$f":"$J$40*valuePL(J25,'Utility Functions'!$Q$3:$Q$6,'Utility Functions'!$R$3:$R$6)","v":0},{"$f":"$K$40*(valuePL(K25,'Utility Functions'!$S$3:$S$7,'Utility Functions'!$T$3:$T$7))","v":0},{"$f":"$L$40*(valueE(L25,'Utility Functions'!$V$3,'Utility Functions'!$V$4,'Utility Functions'!$V$5,'Utility Functions'!$V$6))","v":0},{"$f":"$M$40*valuePL(M25,'Utility Functions'!$W$3:$W$6,'Utility Functions'!$X$3:$X$6)","v":0},{"$f":"$N$40*valueE(N25,'Utility Functions'!$Z$3,'Utility Functions'!$Z$4,'Utility Functions'!$Z$5,'Utility Functions'!$Z$6)","v":0},{"$f":"$O$40*valuePL(O25,'Utility Functions'!$AA$3:$AA$5,'Utility Functions'!$AB$3:$AB$5)","v":0},{"$f":"$P$40*valuePL(P25,'Utility Functions'!$AC$3:$AC$7,'Utility Functions'!$AD$3:$AD$7)","v":0},{"$f":"$Q$40*valuePL(Q25,'Utility Functions'!$AE$3:$AE$6,'Utility Functions'!$AF$3:$AF$6)","v":0},{"$f":"$R$40*valuePL(R25,'Utility Functions'!$AG$3:$AG$6,'Utility Functions'!$AH$3:$AH$6)","v":0.05},{"$f":"$S$40*valuePL(S25,'Utility Functions'!$AI$3:$AI$6,'Utility Functions'!$AJ$3:$AJ$6)","v":0.05},{"$f":"$T$40*valuePL(T25,'Utility Functions'!$AK$3:$AK$8,'Utility Functions'!$AL$3:$AL$8)","v":0.03},{"$f":"$U$40*valuePL(U25,'Utility Functions'!$AM$3:$AM$5,'Utility Functions'!$AN$3:$AN$5)","v":0},{"$f":"$V$40*valuePL(V25,'Utility Functions'!$AO$3:$AO$5,'Utility Functions'!$AP$3:$AP$5)","v":0},{"$f":"$W$40*valuePL(W25,'Utility Functions'!$AQ$3:$AQ$6,'Utility Functions'!$AR$3:$AR$6)","v":0.04},{"$f":"$X$40*valuePL(X25,'Utility Functions'!$AS$3:$AS$6,'Utility Functions'!$AT$3:$AT$6)","v":8.0000000000000002E-3},{"$f":"$Y$40*valuePL(Y25,'Utility Functions'!$AU$3:$AU$6,'Utility Functions'!$AV$3:$AV$6)","v":0.05},{"$f":"$Z$40*valuePL(Z25,'Utility Functions'!$AW$3:$AW$5,'Utility Functions'!$AX$3:$AX$5)","v":0.05},{"$f":"$AA$40*valuePL(AA25,'Utility Functions'!$AY$3:$AY$6,'Utility Functions'!$AZ$3:$AZ$6)","v":8.0000000000000002E-3},{"$f":"$AB$40*valuePL(AB25,'Utility Functions'!$BA$3:$BA$5,'Utility Functions'!$BB$3:$BB$5)","v":0},{"$f":"$AC$40*valuePL(AC25,'Utility Functions'!$BC$3:$BC$5,'Utility Functions'!$BD$3:$BD$5)","v":0.03},0.37890643564363613]
[25,{"$f":"$B$40*(valueE(B26,'Utility Functions'!$B$3,'Utility Functions'!$B$4,'Utility Functions'!$B$5,'Utility Functions'!$B$6))","v":2.5041071294184137E-2},{"$f":"$C$40*(valueE(C26,'Utility Functions'!$D$3,'Utility Functions'!$D$4,'Utility Functions'!$D$5,'Utility Functions'!$D$6))","v":2.542345105018548E-2},{"$f":"$D$40*(valuePL(D26,'Utility Functions'!$E$3:$E$5,'Utility Functions'!$F$3:$F$5))","v":0.03},{"$f":"$E$40*(valuePL(E26,'Utility Functions'!$G$3:$G$5,'Utility Functions'!$H$3:$H$5))","v":0},{"$f":"$F$40*(valuePL(F26,'Utility Functions'!$I$3:$I$4,'Utility Functions'!$J$3:$J$5))","v":0},{"$f":"$G$40*(valueE(G26,'Utility Functions'!$L$3,'Utility Functions'!$L$4,'Utility Functions'!$L$5,'Utility Functions'!$L$6))","v":1.4193548387096775E-2},{"$f":"$H$40*(valueE(H26,'Utility Functions'!$N$3,'Utility Functions'!$N$4,'Utility Functions'!$N$5,'Utility Functions'!$N$6))","v":4.383301707779886E-3},{"$f":"$I$40*valuePL(I26,'Utility Functions'!$O$3:$O$6,'Utility Functions'!$P$3:$P$6)","v":0},{"$f":"$J$40*valuePL(J26,'Utility Functions'!$Q$3:$Q$6,'Utility Functions'!$R$3:$R$6)","v":0},{"$f":"$K$40*(valuePL(K26,'Utility Functions'!$S$3:$S$7,'Utility Functions'!$T$3:$T$7))","v":0},{"$f":"$L$40*(valueE(L26,'Utility Functions'!$V$3,'Utility Functions'!$V$4,'Utility Functions'!$V$5,'Utility Functions'!$V$6))","v":0},{"$f":"$M$40*valuePL(M26,'Utility Functions'!$W$3:$W$6,'Utility Functions'!$X$3:$X$6)","v":0},{"$f":"$N$40*valueE(N26,'Utility Functions'!$Z$3,'Utility Functions'!$Z$4,'Utility Functions'!$Z$5,'Utility Functions'!$Z$6)","v":0.03},{"$f":"$O$40*valuePL(O26,'Utility Functions'!$AA$3:$AA$5,'Utility Functions'!$AB$3:$AB$5)","v":2.2499999999999999E-2},{"$f":"$P$40*valuePL(P26,'Utility Functions'!$AC$3:$AC$7,'Utility Functions'!$AD$3:$AD$7)","v":0.02},{"$f":"$Q$40*valuePL(Q26,'Utility Functions'!$AE$3:$AE$6,'Utility Functions'!$AF$3:$AF$6)","v":0.02},{"$f":"$R$40*valuePL(R26,'Utility Functions'!$AG$3:$AG$6,'Utility Functions'!$AH$3:$AH$6)","v":0.05},{"$f":"$S$40*valuePL(S26,'Utility Functions'!$AI$3:$AI$6,'Utility Functions'!$AJ$3:$AJ$6)","v":0.05},{"$f":"$T$40*valuePL(T26,'Utility Functions'!$AK$3:$AK$8,'Utility Functions'!$AL$3:$AL$8)","v":0},{"$f":"$U$40*valuePL(U26,'Utility Functions'!$AM$3:$AM$5,'Utility Functions'!$AN$3:$AN$5)","v":0},{"$f":"$V$40*valuePL(V26,'Utility Functions'!$AO$3:$AO$5,'Utility Functions'!$AP$3:$AP$5)","v":0.05},{"$f":"$W$40*valuePL(W26,'Utility Functions'!$AQ$3:$AQ$6,'Utility Functions'!$AR$3:$AR$6)","v":8.0000000000000002E-3},{"$f":"$X$40*valuePL(X26,'Utility Functions'!$AS$3:$AS$6,'Utility Functions'!$AT$3:$AT$6)","v":0.04},{"$f":"$Y$40*valuePL(Y26,'Utility Functions'!$AU$3:$AU$6,'Utility Functions'!$AV$3:$AV$6)","v":4.0000000000000008E-2},{"$f":"$Z$40*valuePL(Z26,'Utility Functions'!$AW$3:$AW$5,'Utility Functions'!$AX$3:$AX$5)","v":2.5000000000000001E-2},{"$f":"$AA$40*valuePL(AA26,'Utility Functions'!$AY$3:$AY$6,'Utility Functions'!$AZ$3:$AZ$6)","v":8.0000000000000002E-3},{"$f":"$AB$40*valuePL(AB26,'Utility Functions'!$BA$3:$BA$5,'Utility Functions'!$BB$3:$BB$5)","v":0.04},{"$f":"$AC$40*valuePL(AC26,'Utility Functions'!$BC$3:$BC$5,'Utility Functions'!$BD$3:$BD$5)","v":0.03},0.53254137243924626]
[26,{"$f":"$B$40*(valueE(B27,'Utility Functions'!$B$3,'Utility Functions'!$B$4,'Utility Functions'!$B$5,'Utility Functions'!$B$6))","v":2.8998845838620748E-2},{"$f":"$C$40*(valueE(C27,'Utility Functions'!$D$3,'Utility Functions'!$D$4,'Utility Functions'!$D$5,'Utility Functions'!$D$6))","v":2.542345105018548E-2},{"$f":"$D$40*(valuePL(D27,'Utility Functions'!$E$3:$E$5,'Utility Functions'!$F$3:$F$5))","v":0.03},{"$f":"$E$40*(valuePL(E27,'Utility Functions'!$G$3:$G$5,'Utility Functions'!$H$3:$H$5))","v":1.4999999999999999E-2},{"$f":"$F$40*(valuePL(F27,'Utility Functions'!$I$3:$I$4,'Utility Functions'!$J$3:$J$5))","v":0},{"$f":"$G$40*(valueE(G27,'Utility Functions'!$L$3,'Utility Functions'!$L$4,'Utility Functions'!$L$5,'Utility Functions'!$L$6))","v":0},{"$f":"$H$40*(valueE(H27,'Utility Functions'!$N$3,'Utility Functions'!$N$4,'Utility Functions'!$N$5,'Utility Functions'!$N$6))","v":0},{"$f":"$I$40*valuePL(I27,'Utility Functions'!$O$3:$O$6,'Utility Functions'!$P$3:$P$6)","v":0},{"$f":"$J$40*valuePL(J27,'Utility Functions'!$Q$3:$Q$6,'Utility Functions'!$R$3:$R$6)","v":0},{"$f":"$K$40*(valuePL(K27,'Utility Functions'!$S$3:$S$7,'Utility Functions'!$T$3:$T$7))","v":0},{"$f":"$L$40*(valueE(L27,'Utility Functions'!$V$3,'Utility Functions'!$V$4,'Utility Functions'!$V$5,'Utility Functions'!$V$6))","v":0},{"$f":"$M$40*valuePL(M27,'Utility Functions'!$W$3:$W$6,'Utility Functions'!$X$3:$X$6)","v":0},{"$f":"$N$40*valueE(N27,'Utility Functions'!$Z$3,'Utility Functions'!$Z$4,'Utility Functions'!$Z$5,'Utility Functions'!$Z$6)","v":0},{"$f":"$O$40*valuePL(O27,'Utility Functions'!$AA$3:$AA$5,'Utility Functions'!$AB$3:$AB$5)","v":0},{"$f":"$P$40*valuePL(P27,'Utility Functions'!$AC$3:$AC$7,'Utility Functions'!$AD$3:$AD$7)","v":0.03},{"$f":"$Q$40*valuePL(Q27,'Utility Functions'!$AE$3:$AE$6,'Utility Functions'!$AF$3:$AF$6)","v":0},{"$f":"$R$40*valuePL(R27,'Utility Functions'!$AG$3:$AG$6,'Utility Functions'!$AH$3:$AH$6)","v":0.05},{"$f":"$S$40*valuePL(S27,'Utility Functions'!$AI$3:$AI$6,'Utility Functions'!$AJ$3:$AJ$6)","v":0.05},{"$f":"$T$40*valuePL(T27,'Utility Functions'!$AK$3:$AK$8,'Utility Functions'!$AL$3:$AL$8)","v":2.4E-2},{"$f":"$U$40*valuePL(U27,'Utility Functions'!$AM$3:$AM$5,'Utility Functions'!$AN$3:$AN$5)","v":0},{"$f":"$V$40*valuePL(V27,'Utility Functions'!$AO$3:$AO$5,'Utility Functions'!$AP$3:$AP$5)","v":0.05},{"$f":"$W$40*valuePL(W27,'Utility Functions'!$AQ$3:$AQ$6,'Utility Functions'!$AR$3:$AR$6)","v":8.0000000000000002E-3},{"$f":"$X$40*valuePL(X27,'Utility Functions'!$AS$3:$AS$6,'Utility Functions'!$AT$3:$AT$6)","v":0},{"$f":"$Y$40*valuePL(Y27,'Utility Functions'!$AU$3:$AU$6,'Utility Functions'!$AV$3:$AV$6)","v":4.0000000000000008E-2},{"$f":"$Z$40*valuePL(Z27,'Utility Functions'!$AW$3:$AW$5,'Utility Functions'!$AX$3:$AX$5)","v":0},{"$f":"$AA$40*valuePL(AA27,'Utility Functions'!$AY$3:$AY$6,'Utility Functions'!$AZ$3:$AZ$6)","v":8.0000000000000002E-3},{"$f":"$AB$40*valuePL(AB27,'Utility Functions'!$BA$3:$BA$5,'Utility Functions'!$BB$3:$BB$5)","v":0.04},{"$f":"$AC$40*valuePL(AC27,'Utility Functions'!$BC$3:$BC$5,'Utility Functions'!$BD$3:$BD$5)","v":0.03},0.42942229688880618]
[27,{"$f":"$B$40*(valueE(B28,'Utility Functions'!$B$3,'Utility Functions'!$B$4,'Utility Functions'!$B$5,'Utility Functions'!$B$6))","v":0},{"$f":"$C$40*(valueE(C28,'Utility Functions'!$D$3,'Utility Functions'!$D$4,'Utility Functions'!$D$5,'Utility Functions'!$D$6))","v":1.3942790146123618E-2},{"$f":"$D$40*(valuePL(D28,'Utility Functions'!$E$3:$E$5,'Utility Functions'!$F$3:$F$5))","v":0.03},{"$f":"$E$40*(valuePL(E28,'Utility Functions'!$G$3:$G$5,'Utility Functions'!$H$3:$H$5))","v":0},{"$f":"$F$40*(valuePL(F28,'Utility Functions'!$I$3:$I$4,'Utility Functions'!$J$3:$J$5))","v":0},{"$f":"$G$40*(valueE(G28,'Utility Functions'!$L$3,'Utility Functions'!$L$4,'Utility Functions'!$L$5,'Utility Functions'!$L$6))","v":0},{"$f":"$H$40*(valueE(H28,'Utility Functions'!$N$3,'Utility Functions'!$N$4,'Utility Functions'!$N$5,'Utility Functions'!$N$6))","v":0},{"$f":"$I$40*valuePL(I28,'Utility Functions'!$O$3:$O$6,'Utility Functions'!$P$3:$P$6)","v":0},{"$f":"$J$40*valuePL(J28,'Utility Functions'!$Q$3:$Q$6,'Utility Functions'!$R$3:$R$6)","v":0},{"$f":"$K$40*(valuePL(K28,'Utility Functions'!$S$3:$S$7,'Utility Functions'!$T$3:$T$7))","v":0.02},{"$f":"$L$40*(valueE(L28,'Utility Functions'!$V$3,'Utility Functions'!$V$4,'Utility Functions'!$V$5,'Utility Functions'!$V$6))","v":0},{"$f":"$M$40*valuePL(M28,'Utility Functions'!$W$3:$W$6,'Utility Functions'!$X$3:$X$6)","v":2E-3},{"$f":"$N$40*valueE(N28,'Utility Functions'!$Z$3,'Utility Functions'!$Z$4,'Utility Functions'!$Z$5,'Utility Functions'!$Z$6)","v":0},{"$f":"$O$40*valuePL(O28,'Utility Functions'!$AA$3:$AA$5,'Utility Functions'!$AB$3:$AB$5)","v":0},{"$f":"$P$40*valuePL(P28,'Utility Functions'!$AC$3:$AC$7,'Utility Functions'!$AD$3:$AD$7)","v":0.02},{"$f":"$Q$40*valuePL(Q28,'Utility Functions'!$AE$3:$AE$6,'Utility Functions'!$AF$3:$AF$6)","v":0.02},{"$f":"$R$40*valuePL(R28,'Utility Functions'!$AG$3:$AG$6,'Utility Functions'!$AH$3:$AH$6)","v":0.05},{"$f":"$S$40*valuePL(S28,'Utility Functions'!$AI$3:$AI$6,'Utility Functions'!$AJ$3:$AJ$6)","v":0.05},{"$f":"$T$40*valuePL(T28,'Utility Functions'!$AK$3:$AK$8,'Utility Functions'!$AL$3:$AL$8)","v":0.03},{"$f":"$U$40*valuePL(U28,'Utility Functions'!$AM$3:$AM$5,'Utility Functions'!$AN$3:$AN$5)","v":0},{"$f":"$V$40*valuePL(V28,'Utility Functions'!$AO$3:$AO$5,'Utility Functions'!$AP$3:$AP$5)","v":2.5000000000000001E-2},{"$f":"$W$40*valuePL(W28,'Utility Functions'!$AQ$3:$AQ$6,'Utility Functions'!$AR$3:$AR$6)","v":0.03},{"$f":"$X$40*valuePL(X28,'Utility Functions'!$AS$3:$AS$6,'Utility Functions'!$AT$3:$AT$6)","v":0.04},{"$f":"$Y$40*valuePL(Y28,'Utility Functions'!$AU$3:$AU$6,'Utility Functions'!$AV$3:$AV$6)","v":1.0000000000000002E-2},{"$f":"$Z$40*valuePL(Z28,'Utility Functions'!$AW$3:$AW$5,'Utility Functions'!$AX$3:$AX$5)","v":0},{"$f":"$AA$40*valuePL(AA28,'Utility Functions'!$AY$3:$AY$6,'Utility Functions'!$AZ$3:$AZ$6)","v":0},{"$f":"$AB$40*valuePL(AB28,'Utility Functions'!$BA$3:$BA$5,'Utility Functions'!$BB$3:$BB$5)","v":0},{"$f":"$AC$40*valuePL(AC28,'Utility Functions'!$BC$3:$BC$5,'Utility Functions'!$BD$3:$BD$5)","v":0},0.34094279014612355]
[{"$f":"A29","v":28},{"$f":"$B$40*(valueE(B29,'Utility Functions'!$B$3,'Utility Functions'!$B$4,'Utility Functions'!$B$5,'Utility Functions'!$B$6))","v":1.3535671425672068E-2},{"$f":"$C$40*(valueE(C29,'Utility Functions'!$D$3,'Utility Functions'!$D$4,'Utility Functions'!$D$5,'Utility Functions'!$D$6))","v":1.3942790146123618E-2},{"$f":"$D$40*(valuePL(D29,'Utility Functions'!$E$3:$E$5,'Utility Functions'!$F$3:$F$5))","v":0.03},{"$f":"$E$40*(valuePL(E29,'Utility Functions'!$G$3:$G$5,'Utility Functions'!$H$3:$H$5))","v":0},{"$f":"$F$40*(valuePL(F29,'Utility Functions'!$I$3:$I$4,'Utility Functions'!$J$3:$J$5))","v":0.04},{"$f":"$G$40*(valueE(G29,'Utility Functions'!$L$3,'Utility Functions'!$L$4,'Utility Functions'!$L$5,'Utility Functions'!$L$6))","v":0},{"$f":"$H$40*(valueE(H29,'Utility Functions'!$N$3,'Utility Functions'!$N$4,'Utility Functions'!$N$5,'Utility Functions'!$N$6))","v":0},{"$f":"$I$40*valuePL(I29,'Utility Functions'!$O$3:$O$6,'Utility Functions'!$P$3:$P$6)","v":0},{"$f":"$J$40*valuePL(J29,'Utility Functions'!$Q$3:$Q$6,'Utility Functions'!$R$3:$R$6)","v":0},{"$f":"$K$40*(valuePL(K29,'Utility Functions'!$S$3:$S$7,'Utility Functions'!$T$3:$T$7))","v":0},{"$f":"$L$40*(valueE(L29,'Utility Functions'!$V$3,'Utility Functions'!$V$4,'Utility Functions'!$V$5,'Utility Functions'!$V$6))","v":6.6666666666666662E-3},{"$f":"$M$40*valuePL(M29,'Utility Functions'!$W$3:$W$6,'Utility Functions'!$X$3:$X$6)","v":2E-3},{"$f":"$N$40*valueE(N29,'Utility Functions'!$Z$3,'Utility Functions'!$Z$4,'Utility Functions'!$Z$5,'Utility Functions'!$Z$6)","v":0},{"$f":"$O$40*valuePL(O29,'Utility Functions'!$AA$3:$AA$5,'Utility Functions'!$AB$3:$AB$5)","v":0},{"$f":"$P$40*valuePL(P29,'Utility Functions'!$AC$3:$AC$7,'Utility Functions'!$AD$3:$AD$7)","v":0.04},{"$f":"$Q$40*valuePL(Q29,'Utility Functions'!$AE$3:$AE$6,'Utility Functions'!$AF$3:$AF$6)","v":0},{"$f":"$R$40*valuePL(R29,'Utility Functions'!$AG$3:$AG$6,'Utility Functions'!$AH$3:$AH$6)","v":0.05},{"$f":"$S$40*valuePL(S29,'Utility Functions'!$AI$3:$AI$6,'Utility Functions'!$AJ$3:$AJ$6)","v":0.05},{"$f":"$T$40*valuePL(T29,'Utility Functions'!$AK$3:$AK$8,'Utility Functions'!$AL$3:$AL$8)","v":2.4E-2},{"$f":"$U$40*valuePL(U29,'Utility Functions'!$AM$3:$AM$5,'Utility Functions'!$AN$3:$AN$5)","v":0},{"$f":"$V$40*valuePL(V29,'Utility Functions'!$AO$3:$AO$5,'Utility Functions'!$AP$3:$AP$5)","v":0.05},{"$f":"$W$40*valuePL(W29,'Utility Functions'!$AQ$3:$AQ$6,'Utility Functions'!$AR$3:$AR$6)","v":0.04},{"$f":"$X$40*valuePL(X29,'Utility Functions'!$AS$3:$AS$6,'Utility Functions'!$AT$3:$AT$6)","v":0.04},{"$f":"$Y$40*valuePL(Y29,'Utility Functions'!$AU$3:$AU$6,'Utility Functions'!$AV$3:$AV$6)","v":1.0000000000000002E-2},{"$f":"$Z$40*valuePL(Z29,'Utility Functions'!$AW$3:$AW$5,'Utility Functions'!$AX$3:$AX$5)","v":0},{"$f":"$AA$40*valuePL(AA29,'Utility Functions'!$AY$3:$AY$6,'Utility Functions'!$AZ$3:$AZ$6)","v":3.5999999999999997E-2},{"$f":"$AB$40*valuePL(AB29,'Utility Functions'!$BA$3:$BA$5,'Utility Functions'!$BB$3:$BB$5)","v":0.04},{"$f":"$AC$40*valuePL(AC29,'Utility Functions'!$BC$3:$BC$5,'Utility Functions'!$BD$3:$BD$5)","v":7.4999999999999997E-3},0.49364512823846229]
[29,{"$f":"$B$40*(valueE(B30,'Utility Functions'!$B$3,'Utility Functions'!$B$4,'Utility Functions'!$B$5,'Utility Functions'!$B$6))","v":2.5041071294184137E-2},{"$f":"$C$40*(valueE(C30,'Utility Functions'!$D$3,'Utility Functions'!$D$4,'Utility Functions'!$D$5,'Utility Functions'!$D$6))","v":2.1405827917278249E-2},{"$f":"$D$40*(valuePL(D30,'Utility Functions'!$E$3:$E$5,'Utility Functions'!$F$3:$F$5))","v":0.03},{"$f":"$E$40*(valuePL(E30,'Utility Functions'!$G$3:$G$5,'Utility Functions'!$H$3:$H$5))","v":1.4999999999999999E-2},{"$f":"$F$40*(valuePL(F30,'Utility Functions'!$I$3:$I$4,'Utility Functions'!$J$3:$J$5))","v":0},{"$f":"$G$40*(valueE(G30,'Utility Functions'!$L$3,'Utility Functions'!$L$4,'Utility Functions'!$L$5,'Utility Functions'!$L$6))","v":0},{"$f":"$H$40*(valueE(H30,'Utility Functions'!$N$3,'Utility Functions'!$N$4,'Utility Functions'!$N$5,'Utility Functions'!$N$6))","v":0},{"$f":"$I$40*valuePL(I30,'Utility Functions'!$O$3:$O$6,'Utility Functions'!$P$3:$P$6)","v":1.8E-3},{"$f":"$J$40*valuePL(J30,'Utility Functions'!$Q$3:$Q$6,'Utility Functions'!$R$3:$R$6)","v":1.3454545454545455E-2},{"$f":"$K$40*(valuePL(K30,'Utility Functions'!$S$3:$S$7,'Utility Functions'!$T$3:$T$7))","v":0},{"$f":"$L$40*(valueE(L30,'Utility Functions'!$V$3,'Utility Functions'!$V$4,'Utility Functions'!$V$5,'Utility Functions'!$V$6))","v":0.02},{"$f":"$M$40*valuePL(M30,'Utility Functions'!$W$3:$W$6,'Utility Functions'!$X$3:$X$6)","v":1.3454545454545455E-2},{"$f":"$N$40*valueE(N30,'Utility Functions'!$Z$3,'Utility Functions'!$Z$4,'Utility Functions'!$Z$5,'Utility Functions'!$Z$6)","v":0},{"$f":"$O$40*valuePL(O30,'Utility Functions'!$AA$3:$AA$5,'Utility Functions'!$AB$3:$AB$5)","v":0},{"$f":"$P$40*valuePL(P30,'Utility Functions'!$AC$3:$AC$7,'Utility Functions'!$AD$3:$AD$7)","v":0.01},{"$f":"$Q$40*valuePL(Q30,'Utility Functions'!$AE$3:$AE$6,'Utility Functions'!$AF$3:$AF$6)","v":0},{"$f":"$R$40*valuePL(R30,'Utility Functions'!$AG$3:$AG$6,'Utility Functions'!$AH$3:$AH$6)","v":0.05},{"$f":"$S$40*valuePL(S30,'Utility Functions'!$AI$3:$AI$6,'Utility Functions'!$AJ$3:$AJ$6)","v":0.05},{"$f":"$T$40*valuePL(T30,'Utility Functions'!$AK$3:$AK$8,'Utility Functions'!$AL$3:$AL$8)","v":2.4E-2},{"$f":"$U$40*valuePL(U30,'Utility Functions'!$AM$3:$AM$5,'Utility Functions'!$AN$3:$AN$5)","v":0},{"$f":"$V$40*valuePL(V30,'Utility Functions'!$AO$3:$AO$5,'Utility Functions'!$AP$3:$AP$5)","v":0.05},{"$f":"$W$40*valuePL(W30,'Utility Functions'!$AQ$3:$AQ$6,'Utility Functions'!$AR$3:$AR$6)","v":8.0000000000000002E-3},{"$f":"$X$40*valuePL(X30,'Utility Functions'!$AS$3:$AS$6,'Utility Functions'!$AT$3:$AT$6)","v":0},{"$f":"$Y$40*valuePL(Y30,'Utility Functions'!$AU$3:$AU$6,'Utility Functions'!$AV$3:$AV$6)","v":4.0000000000000008E-2},{"$f":"$Z$40*valuePL(Z30,'Utility Functions'!$AW$3:$AW$5,'Utility Functions'!$AX$3:$AX$5)","v":2.5000000000000001E-2},{"$f":"$AA$40*valuePL(AA30,'Utility Functions'!$AY$3:$AY$6,'Utility Functions'!$AZ$3:$AZ$6)","v":8.0000000000000002E-3},{"$f":"$AB$40*valuePL(AB30,'Utility Functions'!$BA$3:$BA$5,'Utility Functions'!$BB$3:$BB$5)","v":0.01},{"$f":"$AC$40*valuePL(AC30,'Utility Functions'!$BC$3:$BC$5,'Utility Functions'!$BD$3:$BD$5)","v":0.03},0.4451559901205534]
[30,{"$f":"$B$40*(valueE(B31,'Utility Functions'!$B$3,'Utility Functions'!$B$4,'Utility Functions'!$B$5,'Utility Functions'!$B$6))","v":2.9959234351431094E-2},{"$f":"$C$40*(valueE(C31,'Utility Functions'!$D$3,'Utility Functions'!$D$4,'Utility Functions'!$D$5,'Utility Functions'!$D$6))","v":2.542345105018548E-2},{"$f":"$D$40*(valuePL(D31,'Utility Functions'!$E$3:$E$5,'Utility Functions'!$F$3:$F$5))","v":0.03},{"$f":"$E$40*(valuePL(E31,'Utility Functions'!$G$3:$G$5,'Utility Functions'!$H$3:$H$5))","v":0},{"$f":"$F$40*(valuePL(F31,'Utility Functions'!$I$3:$I$4,'Utility Functions'!$J$3:$J$5))","v":0},{"$f":"$G$40*(valueE(G31,'Utility Functions'!$L$3,'Utility Functions'!$L$4,'Utility Functions'!$L$5,'Utility Functions'!$L$6))","v":0},{"$f":"$H$40*(valueE(H31,'Utility Functions'!$N$3,'Utility Functions'!$N$4,'Utility Functions'!$N$5,'Utility Functions'!$N$6))","v":0},{"$f":"$I$40*valuePL(I31,'Utility Functions'!$O$3:$O$6,'Utility Functions'!$P$3:$P$6)","v":0},{"$f":"$J$40*valuePL(J31,'Utility Functions'!$Q$3:$Q$6,'Utility Functions'!$R$3:$R$6)","v":0},{"$f":"$K$40*(valuePL(K31,'Utility Functions'!$S$3:$S$7,'Utility Functions'!$T$3:$T$7))","v":0},{"$f":"$L$40*(valueE(L31,'Utility Functions'!$V$3,'Utility Functions'!$V$4,'Utility Functions'!$V$5,'Utility Functions'!$V$6))","v":6.6666666666666662E-3},{"$f":"$M$40*valuePL(M31,'Utility Functions'!$W$3:$W$6,'Utility Functions'!$X$3:$X$6)","v":8.0000000000000004E-4},{"$f":"$N$40*valueE(N31,'Utility Functions'!$Z$3,'Utility Functions'!$Z$4,'Utility Functions'!$Z$5,'Utility Functions'!$Z$6)","v":0},{"$f":"$O$40*valuePL(O31,'Utility Functions'!$AA$3:$AA$5,'Utility Functions'!$AB$3:$AB$5)","v":0},{"$f":"$P$40*valuePL(P31,'Utility Functions'!$AC$3:$AC$7,'Utility Functions'!$AD$3:$AD$7)","v":0},{"$f":"$Q$40*valuePL(Q31,'Utility Functions'!$AE$3:$AE$6,'Utility Functions'!$AF$3:$AF$6)","v":0},{"$f":"$R$40*valuePL(R31,'Utility Functions'!$AG$3:$AG$6,'Utility Functions'!$AH$3:$AH$6)","v":1.0000000000000002E-2},{"$f":"$S$40*valuePL(S31,'Utility Functions'!$AI$3:$AI$6,'Utility Functions'!$AJ$3:$AJ$6)","v":1.6500000000000001E-2},{"$f":"$T$40*valuePL(T31,'Utility Functions'!$AK$3:$AK$8,'Utility Functions'!$AL$3:$AL$8)","v":0},{"$f":"$U$40*valuePL(U31,'Utility Functions'!$AM$3:$AM$5,'Utility Functions'!$AN$3:$AN$5)","v":0},{"$f":"$V$40*valuePL(V31,'Utility Functions'!$AO$3:$AO$5,'Utility Functions'!$AP$3:$AP$5)","v":0},{"$f":"$W$40*valuePL(W31,'Utility Functions'!$AQ$3:$AQ$6,'Utility Functions'!$AR$3:$AR$6)","v":0.04},{"$f":"$X$40*valuePL(X31,'Utility Functions'!$AS$3:$AS$6,'Utility Functions'!$AT$3:$AT$6)","v":8.0000000000000002E-3},{"$f":"$Y$40*valuePL(Y31,'Utility Functions'!$AU$3:$AU$6,'Utility Functions'!$AV$3:$AV$6)","v":4.0000000000000008E-2},{"$f":"$Z$40*valuePL(Z31,'Utility Functions'!$AW$3:$AW$5,'Utility Functions'!$AX$3:$AX$5)","v":0},{"$f":"$AA$40*valuePL(AA31,'Utility Functions'!$AY$3:$AY$6,'Utility Functions'!$AZ$3:$AZ$6)","v":3.5999999999999997E-2},{"$f":"$AB$40*valuePL(AB31,'Utility Functions'!$BA$3:$BA$5,'Utility Functions'!$BB$3:$BB$5)","v":0.04},{"$f":"$AC$40*valuePL(AC31,'Utility Functions'!$BC$3:$BC$5,'Utility Functions'!$BD$3:$BD$5)","v":0},0.28334935206828327]
[31,{"$f":"$B$40*(valueE(B32,'Utility Functions'!$B$3,'Utility Functions'!$B$4,'Utility Functions'!$B$5,'Utility Functions'!$B$6))","v":1.6520156106900608E-2},{"$f":"$C$40*(valueE(C32,'Utility Functions'!$D$3,'Utility Functions'!$D$4,'Utility Functions'!$D$5,'Utility Functions'!$D$6))","v":2.542345105018548E-2},{"$f":"$D$40*(valuePL(D32,'Utility Functions'!$E$3:$E$5,'Utility Functions'!$F$3:$F$5))","v":1.4999999999999999E-2},{"$f":"$E$40*(valuePL(E32,'Utility Functions'!$G$3:$G$5,'Utility Functions'!$H$3:$H$5))","v":0},{"$f":"$F$40*(valuePL(F32,'Utility Functions'!$I$3:$I$4,'Utility Functions'!$J$3:$J$5))","v":0},{"$f":"$G$40*(valueE(G32,'Utility Functions'!$L$3,'Utility Functions'!$L$4,'Utility Functions'!$L$5,'Utility Functions'!$L$6))","v":0},{"$f":"$H$40*(valueE(H32,'Utility Functions'!$N$3,'Utility Functions'!$N$4,'Utility Functions'!$N$5,'Utility Functions'!$N$6))","v":0},{"$f":"$I$40*valuePL(I32,'Utility Functions'!$O$3:$O$6,'Utility Functions'!$P$3:$P$6)","v":2.2636363636363635E-2},{"$f":"$J$40*valuePL(J32,'Utility Functions'!$Q$3:$Q$6,'Utility Functions'!$R$3:$R$6)","v":1.6000000000000001E-3},{"$f":"$K$40*(valuePL(K32,'Utility Functions'!$S$3:$S$7,'Utility Functions'!$T$3:$T$7))","v":0},{"$f":"$L$40*(valueE(L32,'Utility Functions'!$V$3,'Utility Functions'!$V$4,'Utility Functions'!$V$5,'Utility Functions'!$V$6))","v":6.6666666666666662E-3},{"$f":"$M$40*valuePL(M32,'Utility Functions'!$W$3:$W$6,'Utility Functions'!$X$3:$X$6)","v":1.6000000000000001E-3},{"$f":"$N$40*valueE(N32,'Utility Functions'!$Z$3,'Utility Functions'!$Z$4,'Utility Functions'!$Z$5,'Utility Functions'!$Z$6)","v":0},{"$f":"$O$40*valuePL(O32,'Utility Functions'!$AA$3:$AA$5,'Utility Functions'!$AB$3:$AB$5)","v":0},{"$f":"$P$40*valuePL(P32,'Utility Functions'!$AC$3:$AC$7,'Utility Functions'!$AD$3:$AD$7)","v":0.02},{"$f":"$Q$40*valuePL(Q32,'Utility Functions'!$AE$3:$AE$6,'Utility Functions'!$AF$3:$AF$6)","v":0},{"$f":"$R$40*valuePL(R32,'Utility Functions'!$AG$3:$AG$6,'Utility Functions'!$AH$3:$AH$6)","v":0.05},{"$f":"$S$40*valuePL(S32,'Utility Functions'!$AI$3:$AI$6,'Utility Functions'!$AJ$3:$AJ$6)","v":3.3000000000000002E-2},{"$f":"$T$40*valuePL(T32,'Utility Functions'!$AK$3:$AK$8,'Utility Functions'!$AL$3:$AL$8)","v":1.7999999999999999E-2},{"$f":"$U$40*valuePL(U32,'Utility Functions'!$AM$3:$AM$5,'Utility Functions'!$AN$3:$AN$5)","v":0},{"$f":"$V$40*valuePL(V32,'Utility Functions'!$AO$3:$AO$5,'Utility Functions'!$AP$3:$AP$5)","v":2.5000000000000001E-2},{"$f":"$W$40*valuePL(W32,'Utility Functions'!$AQ$3:$AQ$6,'Utility Functions'!$AR$3:$AR$6)","v":0},{"$f":"$X$40*valuePL(X32,'Utility Functions'!$AS$3:$AS$6,'Utility Functions'!$AT$3:$AT$6)","v":8.0000000000000002E-3},{"$f":"$Y$40*valuePL(Y32,'Utility Functions'!$AU$3:$AU$6,'Utility Functions'!$AV$3:$AV$6)","v":1.0000000000000002E-2},{"$f":"$Z$40*valuePL(Z32,'Utility Functions'!$AW$3:$AW$5,'Utility Functions'!$AX$3:$AX$5)","v":0.05},{"$f":"$AA$40*valuePL(AA32,'Utility Functions'!$AY$3:$AY$6,'Utility Functions'!$AZ$3:$AZ$6)","v":3.5999999999999997E-2},{"$f":"$AB$40*valuePL(AB32,'Utility Functions'!$BA$3:$BA$5,'Utility Functions'!$BB$3:$BB$5)","v":0.01},{"$f":"$AC$40*valuePL(AC32,'Utility Functions'!$BC$3:$BC$5,'Utility Functions'!$BD$3:$BD$5)","v":7.4999999999999997E-3},0.35694663746011634]
[{"$f":"A33","v":32},{"$f":"$B$40*(valueE(B33,'Utility Functions'!$B$3,'Utility Functions'!$B$4,'Utility Functions'!$B$5,'Utility Functions'!$B$6))","v":1.896364549751255E-2},{"$f":"$C$40*(valueE(C33,'Utility Functions'!$D$3,'Utility Functions'!$D$4,'Utility Functions'!$D$5,'Utility Functions'!$D$6))","v":8.0518966871447988E-3},{"$f":"$D$40*(valuePL(D33,'Utility Functions'!$E$3:$E$5,'Utility Functions'!$F$3:$F$5))","v":0.03},{"$f":"$E$40*(valuePL(E33,'Utility Functions'!$G$3:$G$5,'Utility Functions'!$H$3:$H$5))","v":0.03},{"$f":"$F$40*(valuePL(F33,'Utility Functions'!$I$3:$I$4,'Utility Functions'!$J$3:$J$5))","v":0.04},{"$f":"$G$40*(valueE(G33,'Utility Functions'!$L$3,'Utility Functions'!$L$4,'Utility Functions'!$L$5,'Utility Functions'!$L$6))","v":4.8387096774193543E-4},{"$f":"$H$40*(valueE(H33,'Utility Functions'!$N$3,'Utility Functions'!$N$4,'Utility Functions'!$N$5,'Utility Functions'!$N$6))","v":1.4516129032258063E-3},{"$f":"$I$40*valuePL(I33,'Utility Functions'!$O$3:$O$6,'Utility Functions'!$P$3:$P$6)","v":1.0363636363636363E-2},{"$f":"$J$40*valuePL(J33,'Utility Functions'!$Q$3:$Q$6,'Utility Functions'!$R$3:$R$6)","v":0.02},{"$f":"$K$40*(valuePL(K33,'Utility Functions'!$S$3:$S$7,'Utility Functions'!$T$3:$T$7))","v":6.909090909090909E-3},{"$f":"$L$40*(valueE(L33,'Utility Functions'!$V$3,'Utility Functions'!$V$4,'Utility Functions'!$V$5,'Utility Functions'!$V$6))","v":0.02},{"$f":"$M$40*valuePL(M33,'Utility Functions'!$W$3:$W$6,'Utility Functions'!$X$3:$X$6)","v":0.02},{"$f":"$N$40*valueE(N33,'Utility Functions'!$Z$3,'Utility Functions'!$Z$4,'Utility Functions'!$Z$5,'Utility Functions'!$Z$6)","v":0},{"$f":"$O$40*valuePL(O33,'Utility Functions'!$AA$3:$AA$5,'Utility Functions'!$AB$3:$AB$5)","v":0},{"$f":"$P$40*valuePL(P33,'Utility Functions'!$AC$3:$AC$7,'Utility Functions'!$AD$3:$AD$7)","v":0.02},{"$f":"$Q$40*valuePL(Q33,'Utility Functions'!$AE$3:$AE$6,'Utility Functions'!$AF$3:$AF$6)","v":0.04},{"$f":"$R$40*valuePL(R33,'Utility Functions'!$AG$3:$AG$6,'Utility Functions'!$AH$3:$AH$6)","v":0.05},{"$f":"$S$40*valuePL(S33,'Utility Functions'!$AI$3:$AI$6,'Utility Functions'!$AJ$3:$AJ$6)","v":0},{"$f":"$T$40*valuePL(T33,'Utility Functions'!$AK$3:$AK$8,'Utility Functions'!$AL$3:$AL$8)","v":2.4E-2},{"$f":"$U$40*valuePL(U33,'Utility Functions'!$AM$3:$AM$5,'Utility Functions'!$AN$3:$AN$5)","v":0},{"$f":"$V$40*valuePL(V33,'Utility Functions'!$AO$3:$AO$5,'Utility Functions'!$AP$3:$AP$5)","v":0},{"$f":"$W$40*valuePL(W33,'Utility Functions'!$AQ$3:$AQ$6,'Utility Functions'!$AR$3:$AR$6)","v":0.03},{"$f":"$X$40*valuePL(X33,'Utility Functions'!$AS$3:$AS$6,'Utility Functions'!$AT$3:$AT$6)","v":8.0000000000000002E-3},{"$f":"$Y$40*valuePL(Y33,'Utility Functions'!$AU$3:$AU$6,'Utility Functions'!$AV$3:$AV$6)","v":4.0000000000000008E-2},{"$f":"$Z$40*valuePL(Z33,'Utility Functions'!$AW$3:$AW$5,'Utility Functions'!$AX$3:$AX$5)","v":2.5000000000000001E-2},{"$f":"$AA$40*valuePL(AA33,'Utility Functions'!$AY$3:$AY$6,'Utility Functions'!$AZ$3:$AZ$6)","v":0},{"$f":"$AB$40*valuePL(AB33,'Utility Functions'!$BA$3:$BA$5,'Utility Functions'!$BB$3:$BB$5)","v":0.04},{"$f":"$AC$40*valuePL(AC33,'Utility Functions'!$BC$3:$BC$5,'Utility Functions'!$BD$3:$BD$5)","v":7.4999999999999997E-3},0.49072375332835239]
[33,{"$f":"$B$40*(valueE(B34,'Utility Functions'!$B$3,'Utility Functions'!$B$4,'Utility Functions'!$B$5,'Utility Functions'!$B$6))","v":2.8175740811551258E-2},{"$f":"$C$40*(valueE(C34,'Utility Functions'!$D$3,'Utility Functions'!$D$4,'Utility Functions'!$D$5,'Utility Functions'!$D$6))","v":2.542345105018548E-2},{"$f":"$D$40*(valuePL(D34,'Utility Functions'!$E$3:$E$5,'Utility Functions'!$F$3:$F$5))","v":0.03},{"$f":"$E$40*(valuePL(E34,'Utility Functions'!$G$3:$G$5,'Utility Functions'!$H$3:$H$5))","v":1.4999999999999999E-2},{"$f":"$F$40*(valuePL(F34,'Utility Functions'!$I$3:$I$4,'Utility Functions'!$J$3:$J$5))","v":0},{"$f":"$G$40*(valueE(G34,'Utility Functions'!$L$3,'Utility Functions'!$L$4,'Utility Functions'!$L$5,'Utility Functions'!$L$6))","v":0},{"$f":"$H$40*(valueE(H34,'Utility Functions'!$N$3,'Utility Functions'!$N$4,'Utility Functions'!$N$5,'Utility Functions'!$N$6))","v":0},{"$f":"$I$40*valuePL(I34,'Utility Functions'!$O$3:$O$6,'Utility Functions'!$P$3:$P$6)","v":0},{"$f":"$J$40*valuePL(J34,'Utility Functions'!$Q$3:$Q$6,'Utility Functions'!$R$3:$R$6)","v":0},{"$f":"$K$40*(valuePL(K34,'Utility Functions'!$S$3:$S$7,'Utility Functions'!$T$3:$T$7))","v":0},{"$f":"$L$40*(valueE(L34,'Utility Functions'!$V$3,'Utility Functions'!$V$4,'Utility Functions'!$V$5,'Utility Functions'!$V$6))","v":0.01},{"$f":"$M$40*valuePL(M34,'Utility Functions'!$W$3:$W$6,'Utility Functions'!$X$3:$X$6)","v":0},{"$f":"$N$40*valueE(N34,'Utility Functions'!$Z$3,'Utility Functions'!$Z$4,'Utility Functions'!$Z$5,'Utility Functions'!$Z$6)","v":0},{"$f":"$O$40*valuePL(O34,'Utility Functions'!$AA$3:$AA$5,'Utility Functions'!$AB$3:$AB$5)","v":0},{"$f":"$P$40*valuePL(P34,'Utility Functions'!$AC$3:$AC$7,'Utility Functions'!$AD$3:$AD$7)","v":0.02},{"$f":"$Q$40*valuePL(Q34,'Utility Functions'!$AE$3:$AE$6,'Utility Functions'!$AF$3:$AF$6)","v":0},{"$f":"$R$40*valuePL(R34,'Utility Functions'!$AG$3:$AG$6,'Utility Functions'!$AH$3:$AH$6)","v":0.05},{"$f":"$S$40*valuePL(S34,'Utility Functions'!$AI$3:$AI$6,'Utility Functions'!$AJ$3:$AJ$6)","v":3.3000000000000002E-2},{"$f":"$T$40*valuePL(T34,'Utility Functions'!$AK$3:$AK$8,'Utility Functions'!$AL$3:$AL$8)","v":0},{"$f":"$U$40*valuePL(U34,'Utility Functions'!$AM$3:$AM$5,'Utility Functions'!$AN$3:$AN$5)","v":0},{"$f":"$V$40*valuePL(V34,'Utility Functions'!$AO$3:$AO$5,'Utility Functions'!$AP$3:$AP$5)","v":2.5000000000000001E-2},{"$f":"$W$40*valuePL(W34,'Utility Functions'!$AQ$3:$AQ$6,'Utility Functions'!$AR$3:$AR$6)","v":0.04},{"$f":"$X$40*valuePL(X34,'Utility Functions'!$AS$3:$AS$6,'Utility Functions'!$AT$3:$AT$6)","v":0},{"$f":"$Y$40*valuePL(Y34,'Utility Functions'!$AU$3:$AU$6,'Utility Functions'!$AV$3:$AV$6)","v":4.0000000000000008E-2},{"$f":"$Z$40*valuePL(Z34,'Utility Functions'!$AW$3:$AW$5,'Utility Functions'!$AX$3:$AX$5)","v":0.05},{"$f":"$AA$40*valuePL(AA34,'Utility Functions'!$AY$3:$AY$6,'Utility Functions'!$AZ$3:$AZ$6)","v":0.04},{"$f":"$AB$40*valuePL(AB34,'Utility Functions'!$BA$3:$BA$5,'Utility Functions'!$BB$3:$BB$5)","v":0},{"$f":"$AC$40*valuePL(AC34,'Utility Functions'!$BC$3:$BC$5,'Utility Functions'!$BD$3:$BD$5)","v":0},0.40659919186173665]
[34,{"$f":"$B$40*(valueE(B35,'Utility Functions'!$B$3,'Utility Functions'!$B$4,'Utility Functions'!$B$5,'Utility Functions'!$B$6))","v":0},{"$f":"$C$40*(valueE(C35,'Utility Functions'!$D$3,'Utility Functions'!$D$4,'Utility Functions'!$D$5,'Utility Functions'!$D$6))","v":0},{"$f":"$D$40*(valuePL(D35,'Utility Functions'!$E$3:$E$5,'Utility Functions'!$F$3:$F$5))","v":0},{"$f":"$E$40*(valuePL(E35,'Utility Functions'!$G$3:$G$5,'Utility Functions'!$H$3:$H$5))","v":0},{"$f":"$F$40*(valuePL(F35,'Utility Functions'!$I$3:$I$4,'Utility Functions'!$J$3:$J$5))","v":0},{"$f":"$G$40*(valueE(G35,'Utility Functions'!$L$3,'Utility Functions'!$L$4,'Utility Functions'!$L$5,'Utility Functions'!$L$6))","v":0},{"$f":"$H$40*(valueE(H35,'Utility Functions'!$N$3,'Utility Functions'!$N$4,'Utility Functions'!$N$5,'Utility Functions'!$N$6))","v":1.7077798861480075E-4},{"$f":"$I$40*valuePL(I35,'Utility Functions'!$O$3:$O$6,'Utility Functions'!$P$3:$P$6)","v":0.03},{"$f":"$J$40*valuePL(J35,'Utility Functions'!$Q$3:$Q$6,'Utility Functions'!$R$3:$R$6)","v":1.8363636363636363E-2},{"$f":"$K$40*(valuePL(K35,'Utility Functions'!$S$3:$S$7,'Utility Functions'!$T$3:$T$7))","v":0.02},{"$f":"$L$40*(valueE(L35,'Utility Functions'!$V$3,'Utility Functions'!$V$4,'Utility Functions'!$V$5,'Utility Functions'!$V$6))","v":0.02},{"$f":"$M$40*valuePL(M35,'Utility Functions'!$W$3:$W$6,'Utility Functions'!$X$3:$X$6)","v":1.8363636363636363E-2},{"$f":"$N$40*valueE(N35,'Utility Functions'!$Z$3,'Utility Functions'!$Z$4,'Utility Functions'!$Z$5,'Utility Functions'!$Z$6)","v":0},{"$f":"$O$40*valuePL(O35,'Utility Functions'!$AA$3:$AA$5,'Utility Functions'!$AB$3:$AB$5)","v":0},{"$f":"$P$40*valuePL(P35,'Utility Functions'!$AC$3:$AC$7,'Utility Functions'!$AD$3:$AD$7)","v":0.02},{"$f":"$Q$40*valuePL(Q35,'Utility Functions'!$AE$3:$AE$6,'Utility Functions'!$AF$3:$AF$6)","v":0},{"$f":"$R$40*valuePL(R35,'Utility Functions'!$AG$3:$AG$6,'Utility Functions'!$AH$3:$AH$6)","v":0.05},{"$f":"$S$40*valuePL(S35,'Utility Functions'!$AI$3:$AI$6,'Utility Functions'!$AJ$3:$AJ$6)","v":0.05},{"$f":"$T$40*valuePL(T35,'Utility Functions'!$AK$3:$AK$8,'Utility Functions'!$AL$3:$AL$8)","v":2.4E-2},{"$f":"$U$40*valuePL(U35,'Utility Functions'!$AM$3:$AM$5,'Utility Functions'!$AN$3:$AN$5)","v":0},{"$f":"$V$40*valuePL(V35,'Utility Functions'!$AO$3:$AO$5,'Utility Functions'!$AP$3:$AP$5)","v":0.05},{"$f":"$W$40*valuePL(W35,'Utility Functions'!$AQ$3:$AQ$6,'Utility Functions'!$AR$3:$AR$6)","v":0.04},{"$f":"$X$40*valuePL(X35,'Utility Functions'!$AS$3:$AS$6,'Utility Functions'!$AT$3:$AT$6)","v":0.04},{"$f":"$Y$40*valuePL(Y35,'Utility Functions'!$AU$3:$AU$6,'Utility Functions'!$AV$3:$AV$6)","v":0},{"$f":"$Z$40*valuePL(Z35,'Utility Functions'!$AW$3:$AW$5,'Utility Functions'!$AX$3:$AX$5)","v":0.05},{"$f":"$AA$40*valuePL(AA35,'Utility Functions'!$AY$3:$AY$6,'Utility Functions'!$AZ$3:$AZ$6)","v":3.5999999999999997E-2},{"$f":"$AB$40*valuePL(AB35,'Utility Functions'!$BA$3:$BA$5,'Utility Functions'!$BB$3:$BB$5)","v":0.01},{"$f":"$AC$40*valuePL(AC35,'Utility Functions'!$BC$3:$BC$5,'Utility Functions'!$BD$3:$BD$5)","v":0},0.47689805071588748]
[35,{"$f":"$B$40*(valueE(B36,'Utility Functions'!$B$3,'Utility Functions'!$B$4,'Utility Functions'!$B$5,'Utility Functions'!$B$6))","v":2.3943140737469053E-2},{"$f":"$C$40*(valueE(C36,'Utility Functions'!$D$3,'Utility Functions'!$D$4,'Utility Functions'!$D$5,'Utility Functions'!$D$6))","v":1.8281994940530583E-2},{"$f":"$D$40*(valuePL(D36,'Utility Functions'!$E$3:$E$5,'Utility Functions'!$F$3:$F$5))","v":1.4999999999999999E-2},{"$f":"$E$40*(valuePL(E36,'Utility Functions'!$G$3:$G$5,'Utility Functions'!$H$3:$H$5))","v":1.4999999999999999E-2},{"$f":"$F$40*(valuePL(F36,'Utility Functions'!$I$3:$I$4,'Utility Functions'!$J$3:$J$5))","v":0.04},{"$f":"$G$40*(valueE(G36,'Utility Functions'!$L$3,'Utility Functions'!$L$4,'Utility Functions'!$L$5,'Utility Functions'!$L$6))","v":0},{"$f":"$H$40*(valueE(H36,'Utility Functions'!$N$3,'Utility Functions'!$N$4,'Utility Functions'!$N$5,'Utility Functions'!$N$6))","v":0},{"$f":"$I$40*valuePL(I36,'Utility Functions'!$O$3:$O$6,'Utility Functions'!$P$3:$P$6)","v":0},{"$f":"$J$40*valuePL(J36,'Utility Functions'!$Q$3:$Q$6,'Utility Functions'!$R$3:$R$6)","v":0},{"$f":"$K$40*(valuePL(K36,'Utility Functions'!$S$3:$S$7,'Utility Functions'!$T$3:$T$7))","v":0.02},{"$f":"$L$40*(valueE(L36,'Utility Functions'!$V$3,'Utility Functions'!$V$4,'Utility Functions'!$V$5,'Utility Functions'!$V$6))","v":1.3333333333333332E-2},{"$f":"$M$40*valuePL(M36,'Utility Functions'!$W$3:$W$6,'Utility Functions'!$X$3:$X$6)","v":2E-3},{"$f":"$N$40*valueE(N36,'Utility Functions'!$Z$3,'Utility Functions'!$Z$4,'Utility Functions'!$Z$5,'Utility Functions'!$Z$6)","v":0.03},{"$f":"$O$40*valuePL(O36,'Utility Functions'!$AA$3:$AA$5,'Utility Functions'!$AB$3:$AB$5)","v":0},{"$f":"$P$40*valuePL(P36,'Utility Functions'!$AC$3:$AC$7,'Utility Functions'!$AD$3:$AD$7)","v":0},{"$f":"$Q$40*valuePL(Q36,'Utility Functions'!$AE$3:$AE$6,'Utility Functions'!$AF$3:$AF$6)","v":0},{"$f":"$R$40*valuePL(R36,'Utility Functions'!$AG$3:$AG$6,'Utility Functions'!$AH$3:$AH$6)","v":0.05},{"$f":"$S$40*valuePL(S36,'Utility Functions'!$AI$3:$AI$6,'Utility Functions'!$AJ$3:$AJ$6)","v":0.05},{"$f":"$T$40*valuePL(T36,'Utility Functions'!$AK$3:$AK$8,'Utility Functions'!$AL$3:$AL$8)","v":1.7999999999999999E-2},{"$f":"$U$40*valuePL(U36,'Utility Functions'!$AM$3:$AM$5,'Utility Functions'!$AN$3:$AN$5)","v":0},{"$f":"$V$40*valuePL(V36,'Utility Functions'!$AO$3:$AO$5,'Utility Functions'!$AP$3:$AP$5)","v":0.05},{"$f":"$W$40*valuePL(W36,'Utility Functions'!$AQ$3:$AQ$6,'Utility Functions'!$AR$3:$AR$6)","v":0.03},{"$f":"$X$40*valuePL(X36,'Utility Functions'!$AS$3:$AS$6,'Utility Functions'!$AT$3:$AT$6)","v":0},{"$f":"$Y$40*valuePL(Y36,'Utility Functions'!$AU$3:$AU$6,'Utility Functions'!$AV$3:$AV$6)","v":1.0000000000000002E-2},{"$f":"$Z$40*valuePL(Z36,'Utility Functions'!$AW$3:$AW$5,'Utility Functions'!$AX$3:$AX$5)","v":0.05},{"$f":"$AA$40*valuePL(AA36,'Utility Functions'!$AY$3:$AY$6,'Utility Functions'!$AZ$3:$AZ$6)","v":0},{"$f":"$AB$40*valuePL(AB36,'Utility Functions'!$BA$3:$BA$5,'Utility Functions'!$BB$3:$BB$5)","v":0.01},{"$f":"$AC$40*valuePL(AC36,'Utility Functions'!$BC$3:$BC$5,'Utility Functions'!$BD$3:$BD$5)","v":7.4999999999999997E-3},0.45305846901133295]
[null,{"$f":"B38","v":"manage_species"},{"$f":"C38","v":"manage_spatial"},"manage_uncertainty","manage_currentpractices","manage_adaptivemanagement","pop_a","pop_b","pop_spatialscope","pop_temporalscope","hab_quantity","hab_quality","hab_temporal","ecoprocess_spp","ecoprocess_uncertainty","datasharing","broaderimpacts","exisitingpriorities","partners","leverage","alignment","objhyp","response","targettaxa","surveydesign","stats","datamanagement","budget","timeline","total",null,"mgmt","status","ep","integration","rigor"]
[null,{"$f":"SUMPRODUCT($B$83:$B$117,B$43:B$77)","v":0.26645292836778922},0.22388288780833637,0.39000000000000012,0.105,0.08,3.5322580645161285E-2,2.3425047438330168E-2,6.4254545454545467E-2,2.4400000000000002E-2,1.3490909090909092E-2,6.3333333333333325E-2,2.3599999999999999E-2,0.12,0.11249999999999999,0.18999999999999997,0.13600000000000001,0.6,0.58250000000000002,0.19800000000000001,2.2499999999999999E-2,0.39999999999999997,0.436,0.4,0.43000000000000016,0.42500000000000004,0.23600000000000004,0.42999999999999994,0.19500000000000003,6.2266622321384055,null,{"$f":"SUM(B79:F79)","v":1.0653358161761257},{"$f":"SUM(G79:M79)","v":0.24782641596227933},{"$f":"SUM(N79:O79)","v":0.23249999999999998},{"$f":"SUM(P79:U79)","v":1.7289999999999999},{"$f":"SUM(V79:AC79)","v":2.9520000000000004}]
[]
[]
[null,"Decision variable","Benefit","Cost"]
[{"$f":"A2","v":1},1,{"$f":"AD43","v":0.62852931598576234},{"$f":"AD2","v":700000}]
[{"$f":"A3","v":2},0,{"$f":"AD44","v":0.53424877401727988},{"$f":"AD3","v":5400000}]
[3,1,0.45890624332907692,250000]
[4,1,0.37738087579326757,150000]
[5,1,0.37358983775406607,220000]
[6,1,0.21762541381415162,110000]
[7,0,0.55883167443779502,1000000]
[8,0,0.52659366793040296,5000000]
[9,1,0.45837563615750632,25000]
[10,0,0.42049999999999998,900000]
[11,0,0.48800366568914949,1500000]
[12,1,0.38158740731015961,100000]
[13,1,0.30547532344316031,250000]
[14,0,0.4311611991122532,500000]
[15,0,0.60971431784243146,800000]
[16,0,0.54339393939393943,2000000]
[17,0,0.40209196138985603,500000]
[{"$f":"A19","v":18},1,0.43942694497153706,300000]
[19,0,0.41549503742461386,750000]
[20,0,0.55885300951154004,1500000]
[21,0,0.42149999999999999,900000]
[22,0,0.44445113851992418,750000]
[23,0,0.37896452234436967,1000000]
[24,1,0.37890643564363613,150000]
[25,1,0.53254137243924626,250000]
[26,0,0.42942229688880618,500000]
[27,0,0.34094279014612355,1200000]
[28,1,0.49364512823846229,500000]
[{"$f":"A30","v":29},0,0.4451559901205534,2000000]
[30,1,0.28334935206828327,250000]
[31,0,0.35694663746011634,650000]
[32,1,0.49072375332835239,200000]
[{"$f":"A34","v":33},1,0.40659919186173665,400000]
[34,0,0.47689805071588748,900000]
[{"$f":"A36","v":35},0,0.45305846901133295,900000]
[null,{"$f":"SUM(B83:B117)","v":15},{"$f":"SUMPRODUCT(B83:B117,C83:C117)","v":6.2266622321384055},{"$f":"SUMPRODUCT(B83:B117,D83:D117)","v":3855000}]
[]
[null,null,"Cost constraint",4000000]

{"sheet":"Constraint_Scenario_4","index":16,"n_rows":120,"n_cols":40,"rows_kept":120,"cut":false,"hidden":false,"merged":[]}
["Project","manage_species","manage_spatial","manage_uncertainty","manage_currentpractices","manage_adaptivemanagement","pop_a","pop_b","pop_spatialscope","pop_temporalscope","hab_quantity","hab_quality","hab_temporal","ecoprocess_spp","ecoprocess_uncertainty","datasharing","broaderimpacts","exisitingpriorities","partners","leverage","alignment","objhyp","response","targettaxa","surveydesign","stats","datamanagement","budget","timeline","cost",null,"Project","title","states","taxa_groups","A_Marshbird_portfolio","B_Shorebird_portfolio","C_All_states_portfolio","D_No_proj_over_halfM","E_Texas_portfolio"]
[1,9,6.25,2,2,0,186,1054,75,5,0,2,0,0,0,4,0,2,3,0,0,2,3,3,3,2,3,2,2,700000,null,1,"NFWF-A","NA","Shorebirds",0,1,0,0,0]
[2,3,28.2,1,0,0,0,0,0,0,0,2,0,4,1,0,0,3,3,0,0,2,3,3,3,2,3,2,2,5400000,null,2,"NFWF-B","NA","NA",0,0,0,0,0]
[3,8,28.2,2,0,0,0,0,0,0,0,2,0,5,1,0,2,0,0,0,1,2,3,3,3,2,1,2,2,250000,null,3,"NFWF-C","NA","NA",0,0,0,1,0]
[4,1,6.25,2,0,0,0,0,0,0,0,2,0,4,1,0,1,3,3,4,0,1,3,3,1,0,0,2,1,150000,null,4,"NFWF-D","LA","Shorebirds",0,1,0,0,0]
[5,4,3.1,2,0,0,0,0,50,2,0,2,0,0,0,0,1,3,3,4,1,0,3,3,2,0,0,2,1,220000,null,5,"NFWF-E","MS,FL","Shorebirds",0,1,0,1,0]
[6,10,6.2E-2,2,0,0,0,0,10,2,0,2,0,0,0,0,1,0,3,3,0,0,0,3,0,0,0,2,1,110000,null,6,"NFWF-F","TX,LA","Shorebirds",0,1,0,0,1]
[7,52,18.8,0,2,0,0,0,85,12,85,8,12,8,1,0,0,3,3,0,0,2,0,1,3,2,2,0,2,1000000,null,7,"Omnibus Monitoring In Response to Sea Level Rise","All","All Minus Seabirds",0,0,1,0,0]
[8,3,18.8,2,1,1,0,0,14,14,14,8,14,0,0,0,3,1,3,0,0,2,3,3,3,2,0,1,1,5000000,null,8,"The effectiveness of island creation in Mobile Bay for island nesting species","AL","wading, Seabirds",0,0,0,0,0]
[9,9,15.6,2,1,0,70,140,0,0,0,2,0,0,0,3,0,3,2,1,0,2,3,3,1,2,1,1,2,25000,null,9,"the impact of wind development on migrating raptors in the GoM","All","Raptors",0,0,0,0,0]
[10,0,0,0,0,0,0,0,0,0,0,2,0,6,2,1,2,3,2,2,0,0,2,3,3,1,1,0,2,900000,null,10,"Do hurricanes impact survival of migratory/wintering waterfowl? Does stress/movement to avoid hurricanes impact migratory/wintering waterfowl survival?","Texas","Waterfowl",0,0,0,0,1]
[11,0,0,0,0,0,6,102,52,15,52,8,15,3,1,1,0,3,3,2,2,2,1,3,3,1,2,0,1,1500000,null,11,"How does increase in salinity impact habitat quality/quantity, and does it impact the population trend of wetland associated birds?","All","waterfowl, marshbirds, wadingbirds",0,0,1,0,0]
[12,2,15.6,2,1,0,0,0,0,0,0,2,0,0,0,0,1,3,3,3,0,1,1,3,1,2,1,2,0,100000,null,12,"The impact of rice agriculture on nesting King Rails and wintering Yellow Rails in Louisiana","LA","marshbird, landbird",1,0,0,0,0]
[13,0,0,0,0,0,0,12,39,2,39,8,2,7,1,1,0,3,3,0,0,1,0,1,0,2,1,1,1,250000,null,13,"How do hurricanes impact forage quality for nesting wadingbirds?","Fl, AL","Wading",0,0,0,1,0]
[14,6,15.6,1,1,0,0,0,0,0,0,2,0,6,1,1,0,3,3,0,0,1,1,3,3,1,2,1,1,500000,null,14,"How do hurriances impact forest management rotations, and nesting landbirds and raptors in those forests?","MS, AL","Landbird,Raptor",0,0,0,0,0]
[15,23,12.5,2,1,1,0,0,23,3,23,8,3,1,2,2,0,2,3,3,2,0,3,1,1,2,3,2,1,800000,null,15,"Using adaptive managgement to learn about how we should manage grasslands using prescribed fire in the face of climage change","All","Landbirds,Marshbird,Raptor",0,0,0,0,0]
[16,0,0,0,0,0,0,0,100,15,100,7,15,0,0,3,0,3,3,5,0,2,2,2,1,2,3,2,2,2000000,null,16,"Long-term monitoring of GoM raptors","All","Raptors",0,0,0,0,0]
[17,2,15.6,2,1,1,58,290,0,0,0,8,3,0,0,0,0,3,2,0,0,2,3,1,0,1,0,2,1,500000,null,17,"Learning more about how perscribed fire increases habitat quantity in forested systems through adapative management?","MS,AL","Landbirds",0,0,0,0,0]
[18,0,0,0,0,0,0,30,0,0,0,2,0,8,1,1,3,3,3,5,1,2,2,1,2,1,2,1,0,300000,null,18,"How do hurriances impact the survival of marshbirds","All","Marshbirds",1,0,0,1,0]
[19,8,3.125,1,2,0,0,0,0,0,0,2,0,8,2,0,0,2,3,0,0,1,1,3,2,0,1,0,1,750000,null,19,"How can prescribed fire be used to manage scrubland habitats for a greater diversity of migratory birds in the face of climate change?","ALl","Landbirds",0,0,0,0,0]
[20,9,15.6,1,2,0,0,435,76,10,76,6,10,8,2,1,0,3,3,3,2,1,0,0,1,2,1,0,1,1500000,null,20,"Comparison of the impacts of forested habitat cover change on population dynamics of long and short distance migrants","All","Landbirds",0,0,0,0,0]
[21,0,0,0,0,0,0,0,0,0,0,2,0,8,2,0,1,3,3,5,1,0,2,3,1,0,3,1,2,900000,null,21,"How do open ocean currents, surface temperature and seasonality impact seabird use off the GoM?","All","Seabirds",0,0,0,0,0]
[22,0,0,0,0,0,16,64,0,0,0,2,0,1,2,4,2,2,3,5,0,1,2,1,0,2,1,2,1,750000,null,22,"What has a larger impact on X seabird populations in the gulf, plastic consumption, accidental take, or weather patterns?","ALl","Seabirds",0,0,0,0,0]
[23,9,18.8,2,0,0,0,0,0,0,0,2,0,0,0,3,0,3,3,5,0,2,1,2,1,1,1,0,1,1000000,null,23,"How does water management, including the flooding of wetlands and cropfields, impact overwinter waterfowl surival?","All","Waterfowl",0,0,0,0,0]
[24,5,6.25,2,0,0,0,0,0,0,0,2,0,0,0,0,0,3,3,5,0,0,3,1,3,2,1,0,2,150000,null,24,"What kind of signage is most effective for decreasing human disturbance impacts on beach nesting birds?","All","Shorebirds",0,0,0,0,0]
[25,9,18.8,2,0,0,176,308,0,0,0,2,0,8,1,2,2,3,3,0,0,2,1,3,2,1,1,2,2,250000,null,25,"How does invasive species control impact marshbird use?","TX,LA,MS","Marshbirds",1,0,0,0,1]
[26,17,18.8,2,1,0,0,0,0,0,0,2,0,0,0,3,0,3,3,4,0,2,1,0,2,0,1,2,2,500000,null,26,"How does human disturbance impact the nest survival and fledging rate of nesting wading and marshbirds","Al,MS,FL","Marshbirds, Wadingbirds",0,0,0,0,0]
[27,0,6.25,2,0,0,0,0,0,0,80,2,5,0,0,2,2,3,3,5,0,1,2,3,1,0,0,0,0,1200000,null,27,"How does beach renourishment impact the invertebrate communities which are used by migratory and wintering shorebirds?","All","Shorebirds",0,1,0,0,0]
[28,3,6.25,2,0,1,0,0,0,0,0,4,5,0,0,4,0,3,3,4,0,2,3,3,1,0,2,2,1,500000,null,28,"Learning about how beach renourishment after oil contamination can increase habitat quantity for 3 declining shorebirds","LA","Shorebirds",0,0,0,0,0]
[29,9,12.5,2,1,0,0,0,15,12,15,8,12,0,0,1,0,3,3,4,0,2,1,0,2,1,1,1,2,2000000,null,29,"When restoring wetlands and grasslands, but unable to restore very large patches, is there an advantage to restoring the two habitat types near each other for species in each habitat type, versus cropfields","ALl","Marshbirds, Landbirds, Raptors",0,0,0,0,1]
[30,33,18.8,2,0,0,0,0,0,0,0,4,2,0,0,0,0,1,1,0,0,0,3,1,2,0,2,2,0,250000,null,30,"How does prescribed fire impact marshbird habitat quanitity?","LA","Marshbirds",1,0,0,0,0]
[31,4,18.8,1,0,0,0,0,65,4,0,4,4,0,0,2,0,3,2,3,0,1,0,1,1,2,2,1,1,650000,null,31,"How does fresh water management impact the quantity of wetland habitat available to wintering marshbirds?","TX,LA,MS","Marshbirds",1,0,0,0,1]
[32,5,3.125,2,2,1,6,102,40,16,40,8,16,0,0,2,3,3,0,4,0,0,2,1,2,1,0,2,1,200000,null,32,"Learning about how management of scrub shrub succession impacts habitat quantity and quantity as well as population trends for migratory landbirds through adpative management","FL, Al","Landbirds",0,0,0,0,0]
[33,14,18.8,2,1,0,0,0,0,0,0,5,0,0,0,2,0,3,2,0,0,1,3,0,2,2,3,0,0,400000,null,33,"The impacts of offshore oil development on wintering seabirds and lesser scaup","All","Seabirds, Waterfowl",0,0,1,1,0]
[34,0,0,0,0,0,0,12,100,15,100,8,15,0,0,2,0,3,3,4,0,2,3,3,0,2,2,1,0,900000,null,34,"long-term monitoring of the reddish egret","All","Wading",0,0,1,0,0]
[35,8,9.4,1,1,1,0,0,0,0,100,6,5,8,0,0,0,3,3,3,0,2,2,0,1,2,0,1,1,900000,null,35,"The impacts of sealevel rise and stormwater management on the habitat quantity , food resources and use by wadingbirds","All","Wading",0,0,1,0,0]
[]
[null,{"$f":"B1","v":"manage_species"},{"$f":"C1","v":"manage_spatial"},"manage_uncertainty","manage_currentpractices","manage_adaptivemanagement","pop_a","pop_b","pop_spatialscope","pop_temporalscope","hab_quantity","hab_quality","hab_temporal","ecoprocess_spp","ecoprocess_uncertainty","datasharing","broaderimpacts","exisitingpriorities","partners","leverage","alignment","objhyp","response","targettaxa","surveydesign","stats","datamanagement","budget","timeline"]
[null,"Metric 1","Metric 2","Metric 3","Metric 4","Metric 5","Metric 6a","Metric 6b","Metric 7","Metric 8","Metric 9","Metric 10","Metric 11","Metric 12","Metric 13","Metric 14","Metric 15","Metric 16","Metric 17","Metric 18","Metric 19","Metric 20","Metric 21","Metric 22","Metric 23","Metric 24","Metric 25","Metric 26","Metric 27"]
["Weights",0.03,0.03,0.03,0.03,0.04,1.4999999999999999E-2,1.4999999999999999E-2,0.03,0.02,0.02,0.02,0.02,0.03,0.09,0.04,0.04,0.05,0.05,0.03,0.03,0.05,0.04,0.04,0.05,0.05,0.04,0.04,0.03]
[]
["Project",null,null,null,null,null,null,null,null,null,null,null,null,null,null,null,null,null,null,null,null,null,null,null,null,null,null,null,null,"total"]
[{"$f":"A2","v":1},{"$f":"$B$40*(valueE(B2,'Utility Functions'!$B$3,'Utility Functions'!$B$4,'Utility Functions'!$B$5,'Utility Functions'!$B$6))","v":2.5041071294184137E-2},{"$f":"$C$40*(valueE(C2,'Utility Functions'!$D$3,'Utility Functions'!$D$4,'Utility Functions'!$D$5,'Utility Functions'!$D$6))","v":1.3942790146123618E-2},{"$f":"$D$40*(valuePL(D2,'Utility Functions'!$E$3:$E$5,'Utility Functions'!$F$3:$F$5))","v":0.03},{"$f":"$E$40*(valuePL(E2,'Utility Functions'!$G$3:$G$5,'Utility Functions'!$H$3:$H$5))","v":0.03},{"$f":"$F$40*(valuePL(F2,'Utility Functions'!$I$3:$I$4,'Utility Functions'!$J$3:$J$5))","v":0},{"$f":"$G$40*(valueE(G2,'Utility Functions'!$L$3,'Utility Functions'!$L$4,'Utility Functions'!$L$5,'Utility Functions'!$L$6))","v":1.4999999999999999E-2},{"$f":"$H$40*(valueE(H2,'Utility Functions'!$N$3,'Utility Functions'!$N$4,'Utility Functions'!$N$5,'Utility Functions'!$N$6))","v":1.4999999999999999E-2},{"$f":"$I$40*valuePL(I2,'Utility Functions'!$O$3:$O$6,'Utility Functions'!$P$3:$P$6)","v":2.7545454545454547E-2},{"$f":"$J$40*valuePL(J2,'Utility Functions'!$Q$3:$Q$6,'Utility Functions'!$R$3:$R$6)","v":2E-3},{"$f":"$K$40*(valuePL(K2,'Utility Functions'!$S$3:$S$7,'Utility Functions'!$T$3:$T$7))","v":0},{"$f":"$L$40*(valueE(L2,'Utility Functions'!$V$3,'Utility Functions'!$V$4,'Utility Functions'!$V$5,'Utility Functions'!$V$6))","v":0},{"$f":"$M$40*valuePL(M2,'Utility Functions'!$W$3:$W$6,'Utility Functions'!$X$3:$X$6)","v":0},{"$f":"$N$40*valueE(N2,'Utility Functions'!$Z$3,'Utility Functions'!$Z$4,'Utility Functions'!$Z$5,'Utility Functions'!$Z$6)","v":0},{"$f":"$O$40*valuePL(O2,'Utility Functions'!$AA$3:$AA$5,'Utility Functions'!$AB$3:$AB$5)","v":0},{"$f":"$P$40*valuePL(P2,'Utility Functions'!$AC$3:$AC$7,'Utility Functions'!$AD$3:$AD$7)","v":0.04},{"$f":"$Q$40*valuePL(Q2,'Utility Functions'!$AE$3:$AE$6,'Utility Functions'!$AF$3:$AF$6)","v":0},{"$f":"$R$40*valuePL(R2,'Utility Functions'!$AG$3:$AG$6,'Utility Functions'!$AH$3:$AH$6)","v":4.0000000000000008E-2},{"$f":"$S$40*valuePL(S2,'Utility Functions'!$AI$3:$AI$6,'Utility Functions'!$AJ$3:$AJ$6)","v":0.05},{"$f":"$T$40*valuePL(T2,'Utility Functions'!$AK$3:$AK$8,'Utility Functions'!$AL$3:$AL$8)","v":0},{"$f":"$U$40*valuePL(U2,'Utility Functions'!$AM$3:$AM$5,'Utility Functions'!$AN$3:$AN$5)","v":0},{"$f":"$V$40*valuePL(V2,'Utility Functions'!$AO$3:$AO$5,'Utility Functions'!$AP$3:$AP$5)","v":0.05},{"$f":"$W$40*valuePL(W2,'Utility Functions'!$AQ$3:$AQ$6,'Utility Functions'!$AR$3:$AR$6)","v":0.04},{"$f":"$X$40*valuePL(X2,'Utility Functions'!$AS$3:$AS$6,'Utility Functions'!$AT$3:$AT$6)","v":0.04},{"$f":"$Y$40*valuePL(Y2,'Utility Functions'!$AU$3:$AU$6,'Utility Functions'!$AV$3:$AV$6)","v":0.05},{"$f":"$Z$40*valuePL(Z2,'Utility Functions'!$AW$3:$AW$5,'Utility Functions'!$AX$3:$AX$5)","v":0.05},{"$f":"$AA$40*valuePL(AA2,'Utility Functions'!$AY$3:$AY$6,'Utility Functions'!$AZ$3:$AZ$6)","v":0.04},{"$f":"$AB$40*valuePL(AB2,'Utility Functions'!$BA$3:$BA$5,'Utility Functions'!$BB$3:$BB$5)","v":0.04},{"$f":"$AC$40*valuePL(AC2,'Utility Functions'!$BC$3:$BC$5,'Utility Functions'!$BD$3:$BD$5)","v":0.03},{"$f":"SUM(B43:AC43)","v":0.62852931598576234}]
[{"$f":"A3","v":2},{"$f":"$B$40*(valueE(B3,'Utility Functions'!$B$3,'Utility Functions'!$B$4,'Utility Functions'!$B$5,'Utility Functions'!$B$6))","v":1.3535671425672068E-2},{"$f":"$C$40*(valueE(C3,'Utility Functions'!$D$3,'Utility Functions'!$D$4,'Utility Functions'!$D$5,'Utility Functions'!$D$6))","v":2.8213102591607857E-2},{"$f":"$D$40*(valuePL(D3,'Utility Functions'!$E$3:$E$5,'Utility Functions'!$F$3:$F$5))","v":1.4999999999999999E-2},{"$f":"$E$40*(valuePL(E3,'Utility Functions'!$G$3:$G$5,'Utility Functions'!$H$3:$H$5))","v":0},{"$f":"$F$40*(valuePL(F3,'Utility Functions'!$I$3:$I$4,'Utility Functions'!$J$3:$J$5))","v":0},{"$f":"$G$40*(valueE(G3,'Utility Functions'!$L$3,'Utility Functions'!$L$4,'Utility Functions'!$L$5,'Utility Functions'!$L$6))","v":0},{"$f":"$H$40*(valueE(H3,'Utility Functions'!$N$3,'Utility Functions'!$N$4,'Utility Functions'!$N$5,'Utility Functions'!$N$6))","v":0},{"$f":"$I$40*valuePL(I3,'Utility Functions'!$O$3:$O$6,'Utility Functions'!$P$3:$P$6)","v":0},{"$f":"$J$40*valuePL(J3,'Utility Functions'!$Q$3:$Q$6,'Utility Functions'!$R$3:$R$6)","v":0},{"$f":"$K$40*(valuePL(K3,'Utility Functions'!$S$3:$S$7,'Utility Functions'!$T$3:$T$7))","v":0},{"$f":"$L$40*(valueE(L3,'Utility Functions'!$V$3,'Utility Functions'!$V$4,'Utility Functions'!$V$5,'Utility Functions'!$V$6))","v":0},{"$f":"$M$40*valuePL(M3,'Utility Functions'!$W$3:$W$6,'Utility Functions'!$X$3:$X$6)","v":0},{"$f":"$N$40*valueE(N3,'Utility Functions'!$Z$3,'Utility Functions'!$Z$4,'Utility Functions'!$Z$5,'Utility Functions'!$Z$6)","v":1.4999999999999999E-2},{"$f":"$O$40*valuePL(O3,'Utility Functions'!$AA$3:$AA$5,'Utility Functions'!$AB$3:$AB$5)","v":2.2499999999999999E-2},{"$f":"$P$40*valuePL(P3,'Utility Functions'!$AC$3:$AC$7,'Utility Functions'!$AD$3:$AD$7)","v":0},{"$f":"$Q$40*valuePL(Q3,'Utility Functions'!$AE$3:$AE$6,'Utility Functions'!$AF$3:$AF$6)","v":0},{"$f":"$R$40*valuePL(R3,'Utility Functions'!$AG$3:$AG$6,'Utility Functions'!$AH$3:$AH$6)","v":0.05},{"$f":"$S$40*valuePL(S3,'Utility Functions'!$AI$3:$AI$6,'Utility Functions'!$AJ$3:$AJ$6)","v":0.05},{"$f":"$T$40*valuePL(T3,'Utility Functions'!$AK$3:$AK$8,'Utility Functions'!$AL$3:$AL$8)","v":0},{"$f":"$U$40*valuePL(U3,'Utility Functions'!$AM$3:$AM$5,'Utility Functions'!$AN$3:$AN$5)","v":0},{"$f":"$V$40*valuePL(V3,'Utility Functions'!$AO$3:$AO$5,'Utility Functions'!$AP$3:$AP$5)","v":0.05},{"$f":"$W$40*valuePL(W3,'Utility Functions'!$AQ$3:$AQ$6,'Utility Functions'!$AR$3:$AR$6)","v":0.04},{"$f":"$X$40*valuePL(X3,'Utility Functions'!$AS$3:$AS$6,'Utility Functions'!$AT$3:$AT$6)","v":0.04},{"$f":"$Y$40*valuePL(Y3,'Utility Functions'!$AU$3:$AU$6,'Utility Functions'!$AV$3:$AV$6)","v":0.05},{"$f":"$Z$40*valuePL(Z3,'Utility Functions'!$AW$3:$AW$5,'Utility Functions'!$AX$3:$AX$5)","v":0.05},{"$f":"$AA$40*valuePL(AA3,'Utility Functions'!$AY$3:$AY$6,'Utility Functions'!$AZ$3:$AZ$6)","v":0.04},{"$f":"$AB$40*valuePL(AB3,'Utility Functions'!$BA$3:$BA$5,'Utility Functions'!$BB$3:$BB$5)","v":0.04},{"$f":"$AC$40*valuePL(AC3,'Utility Functions'!$BC$3:$BC$5,'Utility Functions'!$BD$3:$BD$5)","v":0.03},{"$f":"SUM(B44:AC44)","v":0.53424877401727988}]
[3,{"$f":"$B$40*(valueE(B4,'Utility Functions'!$B$3,'Utility Functions'!$B$4,'Utility Functions'!$B$5,'Utility Functions'!$B$6))","v":2.3943140737469053E-2},{"$f":"$C$40*(valueE(C4,'Utility Functions'!$D$3,'Utility Functions'!$D$4,'Utility Functions'!$D$5,'Utility Functions'!$D$6))","v":2.8213102591607857E-2},{"$f":"$D$40*(valuePL(D4,'Utility Functions'!$E$3:$E$5,'Utility Functions'!$F$3:$F$5))","v":0.03},{"$f":"$E$40*(valuePL(E4,'Utility Functions'!$G$3:$G$5,'Utility Functions'!$H$3:$H$5))","v":0},{"$f":"$F$40*(valuePL(F4,'Utility Functions'!$I$3:$I$4,'Utility Functions'!$J$3:$J$5))","v":0},{"$f":"$G$40*(valueE(G4,'Utility Functions'!$L$3,'Utility Functions'!$L$4,'Utility Functions'!$L$5,'Utility Functions'!$L$6))","v":0},{"$f":"$H$40*(valueE(H4,'Utility Functions'!$N$3,'Utility Functions'!$N$4,'Utility Functions'!$N$5,'Utility Functions'!$N$6))","v":0},{"$f":"$I$40*valuePL(I4,'Utility Functions'!$O$3:$O$6,'Utility Functions'!$P$3:$P$6)","v":0},{"$f":"$J$40*valuePL(J4,'Utility Functions'!$Q$3:$Q$6,'Utility Functions'!$R$3:$R$6)","v":0},{"$f":"$K$40*(valuePL(K4,'Utility Functions'!$S$3:$S$7,'Utility Functions'!$T$3:$T$7))","v":0},{"$f":"$L$40*(valueE(L4,'Utility Functions'!$V$3,'Utility Functions'!$V$4,'Utility Functions'!$V$5,'Utility Functions'!$V$6))","v":0},{"$f":"$M$40*valuePL(M4,'Utility Functions'!$W$3:$W$6,'Utility Functions'!$X$3:$X$6)","v":0},{"$f":"$N$40*valueE(N4,'Utility Functions'!$Z$3,'Utility Functions'!$Z$4,'Utility Functions'!$Z$5,'Utility Functions'!$Z$6)","v":1.8749999999999999E-2},{"$f":"$O$40*valuePL(O4,'Utility Functions'!$AA$3:$AA$5,'Utility Functions'!$AB$3:$AB$5)","v":2.2499999999999999E-2},{"$f":"$P$40*valuePL(P4,'Utility Functions'!$AC$3:$AC$7,'Utility Functions'!$AD$3:$AD$7)","v":0},{"$f":"$Q$40*valuePL(Q4,'Utility Functions'!$AE$3:$AE$6,'Utility Functions'!$AF$3:$AF$6)","v":0.02},{"$f":"$R$40*valuePL(R4,'Utility Functions'!$AG$3:$AG$6,'Utility Functions'!$AH$3:$AH$6)","v":0},{"$f":"$S$40*valuePL(S4,'Utility Functions'!$AI$3:$AI$6,'Utility Functions'!$AJ$3:$AJ$6)","v":0},{"$f":"$T$40*valuePL(T4,'Utility Functions'!$AK$3:$AK$8,'Utility Functions'!$AL$3:$AL$8)","v":0},{"$f":"$U$40*valuePL(U4,'Utility Functions'!$AM$3:$AM$5,'Utility Functions'!$AN$3:$AN$5)","v":7.4999999999999997E-3},{"$f":"$V$40*valuePL(V4,'Utility Functions'!$AO$3:$AO$5,'Utility Functions'!$AP$3:$AP$5)","v":0.05},{"$f":"$W$40*valuePL(W4,'Utility Functions'!$AQ$3:$AQ$6,'Utility Functions'!$AR$3:$AR$6)","v":0.04},{"$f":"$X$40*valuePL(X4,'Utility Functions'!$AS$3:$AS$6,'Utility Functions'!$AT$3:$AT$6)","v":0.04},{"$f":"$Y$40*valuePL(Y4,'Utility Functions'!$AU$3:$AU$6,'Utility Functions'!$AV$3:$AV$6)","v":0.05},{"$f":"$Z$40*valuePL(Z4,'Utility Functions'!$AW$3:$AW$5,'Utility Functions'!$AX$3:$AX$5)","v":0.05},{"$f":"$AA$40*valuePL(AA4,'Utility Functions'!$AY$3:$AY$6,'Utility Functions'!$AZ$3:$AZ$6)","v":8.0000000000000002E-3},{"$f":"$AB$40*valuePL(AB4,'Utility Functions'!$BA$3:$BA$5,'Utility Functions'!$BB$3:$BB$5)","v":0.04},{"$f":"$AC$40*valuePL(AC4,'Utility Functions'!$BC$3:$BC$5,'Utility Functions'!$BD$3:$BD$5)","v":0.03},0.45890624332907692]
[4,{"$f":"$B$40*(valueE(B5,'Utility Functions'!$B$3,'Utility Functions'!$B$4,'Utility Functions'!$B$5,'Utility Functions'!$B$6))","v":5.4380856471439951E-3},{"$f":"$C$40*(valueE(C5,'Utility Functions'!$D$3,'Utility Functions'!$D$4,'Utility Functions'!$D$5,'Utility Functions'!$D$6))","v":1.3942790146123618E-2},{"$f":"$D$40*(valuePL(D5,'Utility Functions'!$E$3:$E$5,'Utility Functions'!$F$3:$F$5))","v":0.03},{"$f":"$E$40*(valuePL(E5,'Utility Functions'!$G$3:$G$5,'Utility Functions'!$H$3:$H$5))","v":0},{"$f":"$F$40*(valuePL(F5,'Utility Functions'!$I$3:$I$4,'Utility Functions'!$J$3:$J$5))","v":0},{"$f":"$G$40*(valueE(G5,'Utility Functions'!$L$3,'Utility Functions'!$L$4,'Utility Functions'!$L$5,'Utility Functions'!$L$6))","v":0},{"$f":"$H$40*(valueE(H5,'Utility Functions'!$N$3,'Utility Functions'!$N$4,'Utility Functions'!$N$5,'Utility Functions'!$N$6))","v":0},{"$f":"$I$40*valuePL(I5,'Utility Functions'!$O$3:$O$6,'Utility Functions'!$P$3:$P$6)","v":0},{"$f":"$J$40*valuePL(J5,'Utility Functions'!$Q$3:$Q$6,'Utility Functions'!$R$3:$R$6)","v":0},{"$f":"$K$40*(valuePL(K5,'Utility Functions'!$S$3:$S$7,'Utility Functions'!$T$3:$T$7))","v":0},{"$f":"$L$40*(valueE(L5,'Utility Functions'!$V$3,'Utility Functions'!$V$4,'Utility Functions'!$V$5,'Utility Functions'!$V$6))","v":0},{"$f":"$M$40*valuePL(M5,'Utility Functions'!$W$3:$W$6,'Utility Functions'!$X$3:$X$6)","v":0},{"$f":"$N$40*valueE(N5,'Utility Functions'!$Z$3,'Utility Functions'!$Z$4,'Utility Functions'!$Z$5,'Utility Functions'!$Z$6)","v":1.4999999999999999E-2},{"$f":"$O$40*valuePL(O5,'Utility Functions'!$AA$3:$AA$5,'Utility Functions'!$AB$3:$AB$5)","v":2.2499999999999999E-2},{"$f":"$P$40*valuePL(P5,'Utility Functions'!$AC$3:$AC$7,'Utility Functions'!$AD$3:$AD$7)","v":0},{"$f":"$Q$40*valuePL(Q5,'Utility Functions'!$AE$3:$AE$6,'Utility Functions'!$AF$3:$AF$6)","v":4.0000000000000001E-3},{"$f":"$R$40*valuePL(R5,'Utility Functions'!$AG$3:$AG$6,'Utility Functions'!$AH$3:$AH$6)","v":0.05},{"$f":"$S$40*valuePL(S5,'Utility Functions'!$AI$3:$AI$6,'Utility Functions'!$AJ$3:$AJ$6)","v":0.05},{"$f":"$T$40*valuePL(T5,'Utility Functions'!$AK$3:$AK$8,'Utility Functions'!$AL$3:$AL$8)","v":2.4E-2},{"$f":"$U$40*valuePL(U5,'Utility Functions'!$AM$3:$AM$5,'Utility Functions'!$AN$3:$AN$5)","v":0},{"$f":"$V$40*valuePL(V5,'Utility Functions'!$AO$3:$AO$5,'Utility Functions'!$AP$3:$AP$5)","v":2.5000000000000001E-2},{"$f":"$W$40*valuePL(W5,'Utility Functions'!$AQ$3:$AQ$6,'Utility Functions'!$AR$3:$AR$6)","v":0.04},{"$f":"$X$40*valuePL(X5,'Utility Functions'!$AS$3:$AS$6,'Utility Functions'!$AT$3:$AT$6)","v":0.04},{"$f":"$Y$40*valuePL(Y5,'Utility Functions'!$AU$3:$AU$6,'Utility Functions'!$AV$3:$AV$6)","v":1.0000000000000002E-2},{"$f":"$Z$40*valuePL(Z5,'Utility Functions'!$AW$3:$AW$5,'Utility Functions'!$AX$3:$AX$5)","v":0},{"$f":"$AA$40*valuePL(AA5,'Utility Functions'!$AY$3:$AY$6,'Utility Functions'!$AZ$3:$AZ$6)","v":0},{"$f":"$AB$40*valuePL(AB5,'Utility Functions'!$BA$3:$BA$5,'Utility Functions'!$BB$3:$BB$5)","v":0.04},{"$f":"$AC$40*valuePL(AC5,'Utility Functions'!$BC$3:$BC$5,'Utility Functions'!$BD$3:$BD$5)","v":7.4999999999999997E-3},0.37738087579326757]
[5,{"$f":"$B$40*(valueE(B6,'Utility Functions'!$B$3,'Utility Functions'!$B$4,'Utility Functions'!$B$5,'Utility Functions'!$B$6))","v":1.6520156106900608E-2},{"$f":"$C$40*(valueE(C6,'Utility Functions'!$D$3,'Utility Functions'!$D$4,'Utility Functions'!$D$5,'Utility Functions'!$D$6))","v":7.9969543744382362E-3},{"$f":"$D$40*(valuePL(D6,'Utility Functions'!$E$3:$E$5,'Utility Functions'!$F$3:$F$5))","v":0.03},{"$f":"$E$40*(valuePL(E6,'Utility Functions'!$G$3:$G$5,'Utility Functions'!$H$3:$H$5))","v":0},{"$f":"$F$40*(valuePL(F6,'Utility Functions'!$I$3:$I$4,'Utility Functions'!$J$3:$J$5))","v":0},{"$f":"$G$40*(valueE(G6,'Utility Functions'!$L$3,'Utility Functions'!$L$4,'Utility Functions'!$L$5,'Utility Functions'!$L$6))","v":0},{"$f":"$H$40*(valueE(H6,'Utility Functions'!$N$3,'Utility Functions'!$N$4,'Utility Functions'!$N$5,'Utility Functions'!$N$6))","v":0},{"$f":"$I$40*valuePL(I6,'Utility Functions'!$O$3:$O$6,'Utility Functions'!$P$3:$P$6)","v":1.5272727272727275E-2},{"$f":"$J$40*valuePL(J6,'Utility Functions'!$Q$3:$Q$6,'Utility Functions'!$R$3:$R$6)","v":8.0000000000000004E-4},{"$f":"$K$40*(valuePL(K6,'Utility Functions'!$S$3:$S$7,'Utility Functions'!$T$3:$T$7))","v":0},{"$f":"$L$40*(valueE(L6,'Utility Functions'!$V$3,'Utility Functions'!$V$4,'Utility Functions'!$V$5,'Utility Functions'!$V$6))","v":0},{"$f":"$M$40*valuePL(M6,'Utility Functions'!$W$3:$W$6,'Utility Functions'!$X$3:$X$6)","v":0},{"$f":"$N$40*valueE(N6,'Utility Functions'!$Z$3,'Utility Functions'!$Z$4,'Utility Functions'!$Z$5,'Utility Functions'!$Z$6)","v":0},{"$f":"$O$40*valuePL(O6,'Utility Functions'!$AA$3:$AA$5,'Utility Functions'!$AB$3:$AB$5)","v":0},{"$f":"$P$40*valuePL(P6,'Utility Functions'!$AC$3:$AC$7,'Utility Functions'!$AD$3:$AD$7)","v":0},{"$f":"$Q$40*valuePL(Q6,'Utility Functions'!$AE$3:$AE$6,'Utility Functions'!$AF$3:$AF$6)","v":4.0000000000000001E-3},{"$f":"$R$40*valuePL(R6,'Utility Functions'!$AG$3:$AG$6,'Utility Functions'!$AH$3:$AH$6)","v":0.05},{"$f":"$S$40*valuePL(S6,'Utility Functions'!$AI$3:$AI$6,'Utility Functions'!$AJ$3:$AJ$6)","v":0.05},{"$f":"$T$40*valuePL(T6,'Utility Functions'!$AK$3:$AK$8,'Utility Functions'!$AL$3:$AL$8)","v":2.4E-2},{"$f":"$U$40*valuePL(U6,'Utility Functions'!$AM$3:$AM$5,'Utility Functions'!$AN$3:$AN$5)","v":7.4999999999999997E-3},{"$f":"$V$40*valuePL(V6,'Utility Functions'!$AO$3:$AO$5,'Utility Functions'!$AP$3:$AP$5)","v":0},{"$f":"$W$40*valuePL(W6,'Utility Functions'!$AQ$3:$AQ$6,'Utility Functions'!$AR$3:$AR$6)","v":0.04},{"$f":"$X$40*valuePL(X6,'Utility Functions'!$AS$3:$AS$6,'Utility Functions'!$AT$3:$AT$6)","v":0.04},{"$f":"$Y$40*valuePL(Y6,'Utility Functions'!$AU$3:$AU$6,'Utility Functions'!$AV$3:$AV$6)","v":4.0000000000000008E-2},{"$f":"$Z$40*valuePL(Z6,'Utility Functions'!$AW$3:$AW$5,'Utility Functions'!$AX$3:$AX$5)","v":0},{"$f":"$AA$40*valuePL(AA6,'Utility Functions'!$AY$3:$AY$6,'Utility Functions'!$AZ$3:$AZ$6)","v":0},{"$f":"$AB$40*valuePL(AB6,'Utility Functions'!$BA$3:$BA$5,'Utility Functions'!$BB$3:$BB$5)","v":0.04},{"$f":"$AC$40*valuePL(AC6,'Utility Functions'!$BC$3:$BC$5,'Utility Functions'!$BD$3:$BD$5)","v":7.4999999999999997E-3},0.37358983775406607]
[6,{"$f":"$B$40*(valueE(B7,'Utility Functions'!$B$3,'Utility Functions'!$B$4,'Utility Functions'!$B$5,'Utility Functions'!$B$6))","v":2.5939980805710805E-2},{"$f":"$C$40*(valueE(C7,'Utility Functions'!$D$3,'Utility Functions'!$D$4,'Utility Functions'!$D$5,'Utility Functions'!$D$6))","v":1.8543300844080441E-4},{"$f":"$D$40*(valuePL(D7,'Utility Functions'!$E$3:$E$5,'Utility Functions'!$F$3:$F$5))","v":0.03},{"$f":"$E$40*(valuePL(E7,'Utility Functions'!$G$3:$G$5,'Utility Functions'!$H$3:$H$5))","v":0},{"$f":"$F$40*(valuePL(F7,'Utility Functions'!$I$3:$I$4,'Utility Functions'!$J$3:$J$5))","v":0},{"$f":"$G$40*(valueE(G7,'Utility Functions'!$L$3,'Utility Functions'!$L$4,'Utility Functions'!$L$5,'Utility Functions'!$L$6))","v":0},{"$f":"$H$40*(valueE(H7,'Utility Functions'!$N$3,'Utility Functions'!$N$4,'Utility Functions'!$N$5,'Utility Functions'!$N$6))","v":0},{"$f":"$I$40*valuePL(I7,'Utility Functions'!$O$3:$O$6,'Utility Functions'!$P$3:$P$6)","v":1.1999999999999999E-3},{"$f":"$J$40*valuePL(J7,'Utility Functions'!$Q$3:$Q$6,'Utility Functions'!$R$3:$R$6)","v":8.0000000000000004E-4},{"$f":"$K$40*(valuePL(K7,'Utility Functions'!$S$3:$S$7,'Utility Functions'!$T$3:$T$7))","v":0},{"$f":"$L$40*(valueE(L7,'Utility Functions'!$V$3,'Utility Functions'!$V$4,'Utility Functions'!$V$5,'Utility Functions'!$V$6))","v":0},{"$f":"$M$40*valuePL(M7,'Utility Functions'!$W$3:$W$6,'Utility Functions'!$X$3:$X$6)","v":0},{"$f":"$N$40*valueE(N7,'Utility Functions'!$Z$3,'Utility Functions'!$Z$4,'Utility Functions'!$Z$5,'Utility Functions'!$Z$6)","v":0},{"$f":"$O$40*valuePL(O7,'Utility Functions'!$AA$3:$AA$5,'Utility Functions'!$AB$3:$AB$5)","v":0},{"$f":"$P$40*valuePL(P7,'Utility Functions'!$AC$3:$AC$7,'Utility Functions'!$AD$3:$AD$7)","v":0},{"$f":"$Q$40*valuePL(Q7,'Utility Functions'!$AE$3:$AE$6,'Utility Functions'!$AF$3:$AF$6)","v":4.0000000000000001E-3},{"$f":"$R$40*valuePL(R7,'Utility Functions'!$AG$3:$AG$6,'Utility Functions'!$AH$3:$AH$6)","v":0},{"$f":"$S$40*valuePL(S7,'Utility Functions'!$AI$3:$AI$6,'Utility Functions'!$AJ$3:$AJ$6)","v":0.05},{"$f":"$T$40*valuePL(T7,'Utility Functions'!$AK$3:$AK$8,'Utility Functions'!$AL$3:$AL$8)","v":1.7999999999999999E-2},{"$f":"$U$40*valuePL(U7,'Utility Functions'!$AM$3:$AM$5,'Utility Functions'!$AN$3:$AN$5)","v":0},{"$f":"$V$40*valuePL(V7,'Utility Functions'!$AO$3:$AO$5,'Utility Functions'!$AP$3:$AP$5)","v":0},{"$f":"$W$40*valuePL(W7,'Utility Functions'!$AQ$3:$AQ$6,'Utility Functions'!$AR$3:$AR$6)","v":0},{"$f":"$X$40*valuePL(X7,'Utility Functions'!$AS$3:$AS$6,'Utility Functions'!$AT$3:$AT$6)","v":0.04},{"$f":"$Y$40*valuePL(Y7,'Utility Functions'!$AU$3:$AU$6,'Utility Functions'!$AV$3:$AV$6)","v":0},{"$f":"$Z$40*valuePL(Z7,'Utility Functions'!$AW$3:$AW$5,'Utility Functions'!$AX$3:$AX$5)","v":0},{"$f":"$AA$40*valuePL(AA7,'Utility Functions'!$AY$3:$AY$6,'Utility Functions'!$AZ$3:$AZ$6)","v":0},{"$f":"$AB$40*valuePL(AB7,'Utility Functions'!$BA$3:$BA$5,'Utility Functions'!$BB$3:$BB$5)","v":0.04},{"$f":"$AC$40*valuePL(AC7,'Utility Functions'!$BC$3:$BC$5,'Utility Functions'!$BD$3:$BD$5)","v":7.4999999999999997E-3},0.21762541381415162]
[7,{"$f":"$B$40*(valueE(B8,'Utility Functions'!$B$3,'Utility Functions'!$B$4,'Utility Functions'!$B$5,'Utility Functions'!$B$6))","v":2.9999132478518691E-2},{"$f":"$C$40*(valueE(C8,'Utility Functions'!$D$3,'Utility Functions'!$D$4,'Utility Functions'!$D$5,'Utility Functions'!$D$6))","v":2.542345105018548E-2},{"$f":"$D$40*(valuePL(D8,'Utility Functions'!$E$3:$E$5,'Utility Functions'!$F$3:$F$5))","v":0},{"$f":"$E$40*(valuePL(E8,'Utility Functions'!$G$3:$G$5,'Utility Functions'!$H$3:$H$5))","v":0.03},{"$f":"$F$40*(valuePL(F8,'Utility Functions'!$I$3:$I$4,'Utility Functions'!$J$3:$J$5))","v":0},{"$f":"$G$40*(valueE(G8,'Utility Functions'!$L$3,'Utility Functions'!$L$4,'Utility Functions'!$L$5,'Utility Functions'!$L$6))","v":0},{"$f":"$H$40*(valueE(H8,'Utility Functions'!$N$3,'Utility Functions'!$N$4,'Utility Functions'!$N$5,'Utility Functions'!$N$6))","v":0},{"$f":"$I$40*valuePL(I8,'Utility Functions'!$O$3:$O$6,'Utility Functions'!$P$3:$P$6)","v":0.03},{"$f":"$J$40*valuePL(J8,'Utility Functions'!$Q$3:$Q$6,'Utility Functions'!$R$3:$R$6)","v":1.3454545454545455E-2},{"$f":"$K$40*(valuePL(K8,'Utility Functions'!$S$3:$S$7,'Utility Functions'!$T$3:$T$7))","v":0.02},{"$f":"$L$40*(valueE(L8,'Utility Functions'!$V$3,'Utility Functions'!$V$4,'Utility Functions'!$V$5,'Utility Functions'!$V$6))","v":0.02},{"$f":"$M$40*valuePL(M8,'Utility Functions'!$W$3:$W$6,'Utility Functions'!$X$3:$X$6)","v":1.3454545454545455E-2},{"$f":"$N$40*valueE(N8,'Utility Functions'!$Z$3,'Utility Functions'!$Z$4,'Utility Functions'!$Z$5,'Utility Functions'!$Z$6)","v":0.03},{"$f":"$O$40*valuePL(O8,'Utility Functions'!$AA$3:$AA$5,'Utility Functions'!$AB$3:$AB$5)","v":2.2499999999999999E-2},{"$f":"$P$40*valuePL(P8,'Utility Functions'!$AC$3:$AC$7,'Utility Functions'!$AD$3:$AD$7)","v":0},{"$f":"$Q$40*valuePL(Q8,'Utility Functions'!$AE$3:$AE$6,'Utility Functions'!$AF$3:$AF$6)","v":0},{"$f":"$R$40*valuePL(R8,'Utility Functions'!$AG$3:$AG$6,'Utility Functions'!$AH$3:$AH$6)","v":0.05},{"$f":"$S$40*valuePL(S8,'Utility Functions'!$AI$3:$AI$6,'Utility Functions'!$AJ$3:$AJ$6)","v":0.05},{"$f":"$T$40*valuePL(T8,'Utility Functions'!$AK$3:$AK$8,'Utility Functions'!$AL$3:$AL$8)","v":0},{"$f":"$U$40*valuePL(U8,'Utility Functions'!$AM$3:$AM$5,'Utility Functions'!$AN$3:$AN$5)","v":0},{"$f":"$V$40*valuePL(V8,'Utility Functions'!$AO$3:$AO$5,'Utility Functions'!$AP$3:$AP$5)","v":0.05},{"$f":"$W$40*valuePL(W8,'Utility Functions'!$AQ$3:$AQ$6,'Utility Functions'!$AR$3:$AR$6)","v":0},{"$f":"$X$40*valuePL(X8,'Utility Functions'!$AS$3:$AS$6,'Utility Functions'!$AT$3:$AT$6)","v":8.0000000000000002E-3},{"$f":"$Y$40*valuePL(Y8,'Utility Functions'!$AU$3:$AU$6,'Utility Functions'!$AV$3:$AV$6)","v":0.05},{"$f":"$Z$40*valuePL(Z8,'Utility Functions'!$AW$3:$AW$5,'Utility Functions'!$AX$3:$AX$5)","v":0.05},{"$f":"$AA$40*valuePL(AA8,'Utility Functions'!$AY$3:$AY$6,'Utility Functions'!$AZ$3:$AZ$6)","v":3.5999999999999997E-2},{"$f":"$AB$40*valuePL(AB8,'Utility Functions'!$BA$3:$BA$5,'Utility Functions'!$BB$3:$BB$5)","v":0},{"$f":"$AC$40*valuePL(AC8,'Utility Functions'!$BC$3:$BC$5,'Utility Functions'!$BD$3:$BD$5)","v":0.03},0.55883167443779502]
[8,{"$f":"$B$40*(valueE(B9,'Utility Functions'!$B$3,'Utility Functions'!$B$4,'Utility Functions'!$B$5,'Utility Functions'!$B$6))","v":1.3535671425672068E-2},{"$f":"$C$40*(valueE(C9,'Utility Functions'!$D$3,'Utility Functions'!$D$4,'Utility Functions'!$D$5,'Utility Functions'!$D$6))","v":2.542345105018548E-2},{"$f":"$D$40*(valuePL(D9,'Utility Functions'!$E$3:$E$5,'Utility Functions'!$F$3:$F$5))","v":0.03},{"$f":"$E$40*(valuePL(E9,'Utility Functions'!$G$3:$G$5,'Utility Functions'!$H$3:$H$5))","v":1.4999999999999999E-2},{"$f":"$F$40*(valuePL(F9,'Utility Functions'!$I$3:$I$4,'Utility Functions'!$J$3:$J$5))","v":0.04},{"$f":"$G$40*(valueE(G9,'Utility Functions'!$L$3,'Utility Functions'!$L$4,'Utility Functions'!$L$5,'Utility Functions'!$L$6))","v":0},{"$f":"$H$40*(valueE(H9,'Utility Functions'!$N$3,'Utility Functions'!$N$4,'Utility Functions'!$N$5,'Utility Functions'!$N$6))","v":0},{"$f":"$I$40*valuePL(I9,'Utility Functions'!$O$3:$O$6,'Utility Functions'!$P$3:$P$6)","v":1.6800000000000003E-3},{"$f":"$J$40*valuePL(J9,'Utility Functions'!$Q$3:$Q$6,'Utility Functions'!$R$3:$R$6)","v":1.6727272727272726E-2},{"$f":"$K$40*(valuePL(K9,'Utility Functions'!$S$3:$S$7,'Utility Functions'!$T$3:$T$7))","v":0},{"$f":"$L$40*(valueE(L9,'Utility Functions'!$V$3,'Utility Functions'!$V$4,'Utility Functions'!$V$5,'Utility Functions'!$V$6))","v":0.02},{"$f":"$M$40*valuePL(M9,'Utility Functions'!$W$3:$W$6,'Utility Functions'!$X$3:$X$6)","v":1.6727272727272726E-2},{"$f":"$N$40*valueE(N9,'Utility Functions'!$Z$3,'Utility Functions'!$Z$4,'Utility Functions'!$Z$5,'Utility Functions'!$Z$6)","v":0},{"$f":"$O$40*valuePL(O9,'Utility Functions'!$AA$3:$AA$5,'Utility Functions'!$AB$3:$AB$5)","v":0},{"$f":"$P$40*valuePL(P9,'Utility Functions'!$AC$3:$AC$7,'Utility Functions'!$AD$3:$AD$7)","v":0},{"$f":"$Q$40*valuePL(Q9,'Utility Functions'!$AE$3:$AE$6,'Utility Functions'!$AF$3:$AF$6)","v":0.04},{"$f":"$R$40*valuePL(R9,'Utility Functions'!$AG$3:$AG$6,'Utility Functions'!$AH$3:$AH$6)","v":1.0000000000000002E-2},{"$f":"$S$40*valuePL(S9,'Utility Functions'!$AI$3:$AI$6,'Utility Functions'!$AJ$3:$AJ$6)","v":0.05},{"$f":"$T$40*valuePL(T9,'Utility Functions'!$AK$3:$AK$8,'Utility Functions'!$AL$3:$AL$8)","v":0},{"$f":"$U$40*valuePL(U9,'Utility Functions'!$AM$3:$AM$5,'Utility Functions'!$AN$3:$AN$5)","v":0},{"$f":"$V$40*valuePL(V9,'Utility Functions'!$AO$3:$AO$5,'Utility Functions'!$AP$3:$AP$5)","v":0.05},{"$f":"$W$40*valuePL(W9,'Utility Functions'!$AQ$3:$AQ$6,'Utility Functions'!$AR$3:$AR$6)","v":0.04},{"$f":"$X$40*valuePL(X9,'Utility Functions'!$AS$3:$AS$6,'Utility Functions'!$AT$3:$AT$6)","v":0.04},{"$f":"$Y$40*valuePL(Y9,'Utility Functions'!$AU$3:$AU$6,'Utility Functions'!$AV$3:$AV$6)","v":0.05},{"$f":"$Z$40*valuePL(Z9,'Utility Functions'!$AW$3:$AW$5,'Utility Functions'!$AX$3:$AX$5)","v":0.05},{"$f":"$AA$40*valuePL(AA9,'Utility Functions'!$AY$3:$AY$6,'Utility Functions'!$AZ$3:$AZ$6)","v":0},{"$f":"$AB$40*valuePL(AB9,'Utility Functions'!$BA$3:$BA$5,'Utility Functions'!$BB$3:$BB$5)","v":0.01},{"$f":"$AC$40*valuePL(AC9,'Utility Functions'!$BC$3:$BC$5,'Utility Functions'!$BD$3:$BD$5)","v":7.4999999999999997E-3},0.52659366793040296]
[9,{"$f":"$B$40*(valueE(B10,'Utility Functions'!$B$3,'Utility Functions'!$B$4,'Utility Functions'!$B$5,'Utility Functions'!$B$6))","v":2.5041071294184137E-2},{"$f":"$C$40*(valueE(C10,'Utility Functions'!$D$3,'Utility Functions'!$D$4,'Utility Functions'!$D$5,'Utility Functions'!$D$6))","v":2.3696993705826886E-2},{"$f":"$D$40*(valuePL(D10,'Utility Functions'!$E$3:$E$5,'Utility Functions'!$F$3:$F$5))","v":0.03},{"$f":"$E$40*(valuePL(E10,'Utility Functions'!$G$3:$G$5,'Utility Functions'!$H$3:$H$5))","v":1.4999999999999999E-2},{"$f":"$F$40*(valuePL(F10,'Utility Functions'!$I$3:$I$4,'Utility Functions'!$J$3:$J$5))","v":0},{"$f":"$G$40*(valueE(G10,'Utility Functions'!$L$3,'Utility Functions'!$L$4,'Utility Functions'!$L$5,'Utility Functions'!$L$6))","v":5.6451612903225803E-3},{"$f":"$H$40*(valueE(H10,'Utility Functions'!$N$3,'Utility Functions'!$N$4,'Utility Functions'!$N$5,'Utility Functions'!$N$6))","v":1.9924098671726754E-3},{"$f":"$I$40*valuePL(I10,'Utility Functions'!$O$3:$O$6,'Utility Functions'!$P$3:$P$6)","v":0},{"$f":"$J$40*valuePL(J10,'Utility Functions'!$Q$3:$Q$6,'Utility Functions'!$R$3:$R$6)","v":0},{"$f":"$K$40*(valuePL(K10,'Utility Functions'!$S$3:$S$7,'Utility Functions'!$T$3:$T$7))","v":0},{"$f":"$L$40*(valueE(L10,'Utility Functions'!$V$3,'Utility Functions'!$V$4,'Utility Functions'!$V$5,'Utility Functions'!$V$6))","v":0},{"$f":"$M$40*valuePL(M10,'Utility Functions'!$W$3:$W$6,'Utility Functions'!$X$3:$X$6)","v":0},{"$f":"$N$40*valueE(N10,'Utility Functions'!$Z$3,'Utility Functions'!$Z$4,'Utility Functions'!$Z$5,'Utility Functions'!$Z$6)","v":0},{"$f":"$O$40*valuePL(O10,'Utility Functions'!$AA$3:$AA$5,'Utility Functions'!$AB$3:$AB$5)","v":0},{"$f":"$P$40*valuePL(P10,'Utility Functions'!$AC$3:$AC$7,'Utility Functions'!$AD$3:$AD$7)","v":0.03},{"$f":"$Q$40*valuePL(Q10,'Utility Functions'!$AE$3:$AE$6,'Utility Functions'!$AF$3:$AF$6)","v":0},{"$f":"$R$40*valuePL(R10,'Utility Functions'!$AG$3:$AG$6,'Utility Functions'!$AH$3:$AH$6)","v":0.05},{"$f":"$S$40*valuePL(S10,'Utility Functions'!$AI$3:$AI$6,'Utility Functions'!$AJ$3:$AJ$6)","v":3.3000000000000002E-2},{"$f":"$T$40*valuePL(T10,'Utility Functions'!$AK$3:$AK$8,'Utility Functions'!$AL$3:$AL$8)","v":6.0000000000000001E-3},{"$f":"$U$40*valuePL(U10,'Utility Functions'!$AM$3:$AM$5,'Utility Functions'!$AN$3:$AN$5)","v":0},{"$f":"$V$40*valuePL(V10,'Utility Functions'!$AO$3:$AO$5,'Utility Functions'!$AP$3:$AP$5)","v":0.05},{"$f":"$W$40*valuePL(W10,'Utility Functions'!$AQ$3:$AQ$6,'Utility Functions'!$AR$3:$AR$6)","v":0.04},{"$f":"$X$40*valuePL(X10,'Utility Functions'!$AS$3:$AS$6,'Utility Functions'!$AT$3:$AT$6)","v":0.04},{"$f":"$Y$40*valuePL(Y10,'Utility Functions'!$AU$3:$AU$6,'Utility Functions'!$AV$3:$AV$6)","v":1.0000000000000002E-2},{"$f":"$Z$40*valuePL(Z10,'Utility Functions'!$AW$3:$AW$5,'Utility Functions'!$AX$3:$AX$5)","v":0.05},{"$f":"$AA$40*valuePL(AA10,'Utility Functions'!$AY$3:$AY$6,'Utility Functions'!$AZ$3:$AZ$6)","v":8.0000000000000002E-3},{"$f":"$AB$40*valuePL(AB10,'Utility Functions'!$BA$3:$BA$5,'Utility Functions'!$BB$3:$BB$5)","v":0.01},{"$f":"$AC$40*valuePL(AC10,'Utility Functions'!$BC$3:$BC$5,'Utility Functions'!$BD$3:$BD$5)","v":0.03},0.45837563615750632]
[10,{"$f":"$B$40*(valueE(B11,'Utility Functions'!$B$3,'Utility Functions'!$B$4,'Utility Functions'!$B$5,'Utility Functions'!$B$6))","v":0},{"$f":"$C$40*(valueE(C11,'Utility Functions'!$D$3,'Utility Functions'!$D$4,'Utility Functions'!$D$5,'Utility Functions'!$D$6))","v":0},{"$f":"$D$40*(valuePL(D11,'Utility Functions'!$E$3:$E$5,'Utility Functions'!$F$3:$F$5))","v":0},{"$f":"$E$40*(valuePL(E11,'Utility Functions'!$G$3:$G$5,'Utility Functions'!$H$3:$H$5))","v":0},{"$f":"$F$40*(valuePL(F11,'Utility Functions'!$I$3:$I$4,'Utility Functions'!$J$3:$J$5))","v":0},{"$f":"$G$40*(valueE(G11,'Utility Functions'!$L$3,'Utility Functions'!$L$4,'Utility Functions'!$L$5,'Utility Functions'!$L$6))","v":0},{"$f":"$H$40*(valueE(H11,'Utility Functions'!$N$3,'Utility Functions'!$N$4,'Utility Functions'!$N$5,'Utility Functions'!$N$6))","v":0},{"$f":"$I$40*valuePL(I11,'Utility Functions'!$O$3:$O$6,'Utility Functions'!$P$3:$P$6)","v":0},{"$f":"$J$40*valuePL(J11,'Utility Functions'!$Q$3:$Q$6,'Utility Functions'!$R$3:$R$6)","v":0},{"$f":"$K$40*(valuePL(K11,'Utility Functions'!$S$3:$S$7,'Utility Functions'!$T$3:$T$7))","v":0},{"$f":"$L$40*(valueE(L11,'Utility Functions'!$V$3,'Utility Functions'!$V$4,'Utility Functions'!$V$5,'Utility Functions'!$V$6))","v":0},{"$f":"$M$40*valuePL(M11,'Utility Functions'!$W$3:$W$6,'Utility Functions'!$X$3:$X$6)","v":0},{"$f":"$N$40*valueE(N11,'Utility Functions'!$Z$3,'Utility Functions'!$Z$4,'Utility Functions'!$Z$5,'Utility Functions'!$Z$6)","v":2.2499999999999999E-2},{"$f":"$O$40*valuePL(O11,'Utility Functions'!$AA$3:$AA$5,'Utility Functions'!$AB$3:$AB$5)","v":0.09},{"$f":"$P$40*valuePL(P11,'Utility Functions'!$AC$3:$AC$7,'Utility Functions'!$AD$3:$AD$7)","v":0.01},{"$f":"$Q$40*valuePL(Q11,'Utility Functions'!$AE$3:$AE$6,'Utility Functions'!$AF$3:$AF$6)","v":0.02},{"$f":"$R$40*valuePL(R11,'Utility Functions'!$AG$3:$AG$6,'Utility Functions'!$AH$3:$AH$6)","v":0.05},{"$f":"$S$40*valuePL(S11,'Utility Functions'!$AI$3:$AI$6,'Utility Functions'!$AJ$3:$AJ$6)","v":3.3000000000000002E-2},{"$f":"$T$40*valuePL(T11,'Utility Functions'!$AK$3:$AK$8,'Utility Functions'!$AL$3:$AL$8)","v":1.2E-2},{"$f":"$U$40*valuePL(U11,'Utility Functions'!$AM$3:$AM$5,'Utility Functions'!$AN$3:$AN$5)","v":0},{"$f":"$V$40*valuePL(V11,'Utility Functions'!$AO$3:$AO$5,'Utility Functions'!$AP$3:$AP$5)","v":0},{"$f":"$W$40*valuePL(W11,'Utility Functions'!$AQ$3:$AQ$6,'Utility Functions'!$AR$3:$AR$6)","v":0.03},{"$f":"$X$40*valuePL(X11,'Utility Functions'!$AS$3:$AS$6,'Utility Functions'!$AT$3:$AT$6)","v":0.04},{"$f":"$Y$40*valuePL(Y11,'Utility Functions'!$AU$3:$AU$6,'Utility Functions'!$AV$3:$AV$6)","v":0.05},{"$f":"$Z$40*valuePL(Z11,'Utility Functions'!$AW$3:$AW$5,'Utility Functions'!$AX$3:$AX$5)","v":2.5000000000000001E-2},{"$f":"$AA$40*valuePL(AA11,'Utility Functions'!$AY$3:$AY$6,'Utility Functions'!$AZ$3:$AZ$6)","v":8.0000000000000002E-3},{"$f":"$AB$40*valuePL(AB11,'Utility Functions'!$BA$3:$BA$5,'Utility Functions'!$BB$3:$BB$5)","v":0},{"$f":"$AC$40*valuePL(AC11,'Utility Functions'!$BC$3:$BC$5,'Utility Functions'!$BD$3:$BD$5)","v":0.03},0.42049999999999998]
[11,{"$f":"$B$40*(valueE(B12,'Utility Functions'!$B$3,'Utility Functions'!$B$4,'Utility Functions'!$B$5,'Utility Functions'!$B$6))","v":0},{"$f":"$C$40*(valueE(C12,'Utility Functions'!$D$3,'Utility Functions'!$D$4,'Utility Functions'!$D$5,'Utility Functions'!$D$6))","v":0},{"$f":"$D$40*(valuePL(D12,'Utility Functions'!$E$3:$E$5,'Utility Functions'!$F$3:$F$5))","v":0},{"$f":"$E$40*(valuePL(E12,'Utility Functions'!$G$3:$G$5,'Utility Functions'!$H$3:$H$5))","v":0},{"$f":"$F$40*(valuePL(F12,'Utility Functions'!$I$3:$I$4,'Utility Functions'!$J$3:$J$5))","v":0},{"$f":"$G$40*(valueE(G12,'Utility Functions'!$L$3,'Utility Functions'!$L$4,'Utility Functions'!$L$5,'Utility Functions'!$L$6))","v":4.8387096774193543E-4},{"$f":"$H$40*(valueE(H12,'Utility Functions'!$N$3,'Utility Functions'!$N$4,'Utility Functions'!$N$5,'Utility Functions'!$N$6))","v":1.4516129032258063E-3},{"$f":"$I$40*valuePL(I12,'Utility Functions'!$O$3:$O$6,'Utility Functions'!$P$3:$P$6)","v":1.6254545454545456E-2},{"$f":"$J$40*valuePL(J12,'Utility Functions'!$Q$3:$Q$6,'Utility Functions'!$R$3:$R$6)","v":1.8363636363636363E-2},{"$f":"$K$40*(valuePL(K12,'Utility Functions'!$S$3:$S$7,'Utility Functions'!$T$3:$T$7))","v":1.0836363636363637E-2},{"$f":"$L$40*(valueE(L12,'Utility Functions'!$V$3,'Utility Functions'!$V$4,'Utility Functions'!$V$5,'Utility Functions'!$V$6))","v":0.02},{"$f":"$M$40*valuePL(M12,'Utility Functions'!$W$3:$W$6,'Utility Functions'!$X$3:$X$6)","v":1.8363636363636363E-2},{"$f":"$N$40*valueE(N12,'Utility Functions'!$Z$3,'Utility Functions'!$Z$4,'Utility Functions'!$Z$5,'Utility Functions'!$Z$6)","v":1.125E-2},{"$f":"$O$40*valuePL(O12,'Utility Functions'!$AA$3:$AA$5,'Utility Functions'!$AB$3:$AB$5)","v":2.2499999999999999E-2},{"$f":"$P$40*valuePL(P12,'Utility Functions'!$AC$3:$AC$7,'Utility Functions'!$AD$3:$AD$7)","v":0.01},{"$f":"$Q$40*valuePL(Q12,'Utility Functions'!$AE$3:$AE$6,'Utility Functions'!$AF$3:$AF$6)","v":0},{"$f":"$R$40*valuePL(R12,'Utility Functions'!$AG$3:$AG$6,'Utility Functions'!$AH$3:$AH$6)","v":0.05},{"$f":"$S$40*valuePL(S12,'Utility Functions'!$AI$3:$AI$6,'Utility Functions'!$AJ$3:$AJ$6)","v":0.05},{"$f":"$T$40*valuePL(T12,'Utility Functions'!$AK$3:$AK$8,'Utility Functions'!$AL$3:$AL$8)","v":1.2E-2},{"$f":"$U$40*valuePL(U12,'Utility Functions'!$AM$3:$AM$5,'Utility Functions'!$AN$3:$AN$5)","v":0.03},{"$f":"$V$40*valuePL(V12,'Utility Functions'!$AO$3:$AO$5,'Utility Functions'!$AP$3:$AP$5)","v":0.05},{"$f":"$W$40*valuePL(W12,'Utility Functions'!$AQ$3:$AQ$6,'Utility Functions'!$AR$3:$AR$6)","v":8.0000000000000002E-3},{"$f":"$X$40*valuePL(X12,'Utility Functions'!$AS$3:$AS$6,'Utility Functions'!$AT$3:$AT$6)","v":0.04},{"$f":"$Y$40*valuePL(Y12,'Utility Functions'!$AU$3:$AU$6,'Utility Functions'!$AV$3:$AV$6)","v":0.05},{"$f":"$Z$40*valuePL(Z12,'Utility Functions'!$AW$3:$AW$5,'Utility Functions'!$AX$3:$AX$5)","v":2.5000000000000001E-2},{"$f":"$AA$40*valuePL(AA12,'Utility Functions'!$AY$3:$AY$6,'Utility Functions'!$AZ$3:$AZ$6)","v":3.5999999999999997E-2},{"$f":"$AB$40*valuePL(AB12,'Utility Functions'!$BA$3:$BA$5,'Utility Functions'!$BB$3:$BB$5)","v":0},{"$f":"$AC$40*valuePL(AC12,'Utility Functions'!$BC$3:$BC$5,'Utility Functions'!$BD$3:$BD$5)","v":7.4999999999999997E-3},0.48800366568914949]
[12,{"$f":"$B$40*(valueE(B13,'Utility Functions'!$B$3,'Utility Functions'!$B$4,'Utility Functions'!$B$5,'Utility Functions'!$B$6))","v":9.8904136043327599E-3},{"$f":"$C$40*(valueE(C13,'Utility Functions'!$D$3,'Utility Functions'!$D$4,'Utility Functions'!$D$5,'Utility Functions'!$D$6))","v":2.3696993705826886E-2},{"$f":"$D$40*(valuePL(D13,'Utility Functions'!$E$3:$E$5,'Utility Functions'!$F$3:$F$5))","v":0.03},{"$f":"$E$40*(valuePL(E13,'Utility Functions'!$G$3:$G$5,'Utility Functions'!$H$3:$H$5))","v":1.4999999999999999E-2},{"$f":"$F$40*(valuePL(F13,'Utility Functions'!$I$3:$I$4,'Utility Functions'!$J$3:$J$5))","v":0},{"$f":"$G$40*(valueE(G13,'Utility Functions'!$L$3,'Utility Functions'!$L$4,'Utility Functions'!$L$5,'Utility Functions'!$L$6))","v":0},{"$f":"$H$40*(valueE(H13,'Utility Functions'!$N$3,'Utility Functions'!$N$4,'Utility Functions'!$N$5,'Utility Functions'!$N$6))","v":0},{"$f":"$I$40*valuePL(I13,'Utility Functions'!$O$3:$O$6,'Utility Functions'!$P$3:$P$6)","v":0},{"$f":"$J$40*valuePL(J13,'Utility Functions'!$Q$3:$Q$6,'Utility Functions'!$R$3:$R$6)","v":0},{"$f":"$K$40*(valuePL(K13,'Utility Functions'!$S$3:$S$7,'Utility Functions'!$T$3:$T$7))","v":0},{"$f":"$L$40*(valueE(L13,'Utility Functions'!$V$3,'Utility Functions'!$V$4,'Utility Functions'!$V$5,'Utility Functions'!$V$6))","v":0},{"$f":"$M$40*valuePL(M13,'Utility Functions'!$W$3:$W$6,'Utility Functions'!$X$3:$X$6)","v":0},{"$f":"$N$40*valueE(N13,'Utility Functions'!$Z$3,'Utility Functions'!$Z$4,'Utility Functions'!$Z$5,'Utility Functions'!$Z$6)","v":0},{"$f":"$O$40*valuePL(O13,'Utility Functions'!$AA$3:$AA$5,'Utility Functions'!$AB$3:$AB$5)","v":0},{"$f":"$P$40*valuePL(P13,'Utility Functions'!$AC$3:$AC$7,'Utility Functions'!$AD$3:$AD$7)","v":0},{"$f":"$Q$40*valuePL(Q13,'Utility Functions'!$AE$3:$AE$6,'Utility Functions'!$AF$3:$AF$6)","v":4.0000000000000001E-3},{"$f":"$R$40*valuePL(R13,'Utility Functions'!$AG$3:$AG$6,'Utility Functions'!$AH$3:$AH$6)","v":0.05},{"$f":"$S$40*valuePL(S13,'Utility Functions'!$AI$3:$AI$6,'Utility Functions'!$AJ$3:$AJ$6)","v":0.05},{"$f":"$T$40*valuePL(T13,'Utility Functions'!$AK$3:$AK$8,'Utility Functions'!$AL$3:$AL$8)","v":1.7999999999999999E-2},{"$f":"$U$40*valuePL(U13,'Utility Functions'!$AM$3:$AM$5,'Utility Functions'!$AN$3:$AN$5)","v":0},{"$f":"$V$40*valuePL(V13,'Utility Functions'!$AO$3:$AO$5,'Utility Functions'!$AP$3:$AP$5)","v":2.5000000000000001E-2},{"$f":"$W$40*valuePL(W13,'Utility Functions'!$AQ$3:$AQ$6,'Utility Functions'!$AR$3:$AR$6)","v":8.0000000000000002E-3},{"$f":"$X$40*valuePL(X13,'Utility Functions'!$AS$3:$AS$6,'Utility Functions'!$AT$3:$AT$6)","v":0.04},{"$f":"$Y$40*valuePL(Y13,'Utility Functions'!$AU$3:$AU$6,'Utility Functions'!$AV$3:$AV$6)","v":1.0000000000000002E-2},{"$f":"$Z$40*valuePL(Z13,'Utility Functions'!$AW$3:$AW$5,'Utility Functions'!$AX$3:$AX$5)","v":0.05},{"$f":"$AA$40*valuePL(AA13,'Utility Functions'!$AY$3:$AY$6,'Utility Functions'!$AZ$3:$AZ$6)","v":8.0000000000000002E-3},{"$f":"$AB$40*valuePL(AB13,'Utility Functions'!$BA$3:$BA$5,'Utility Functions'!$BB$3:$BB$5)","v":0.04},{"$f":"$AC$40*valuePL(AC13,'Utility Functions'!$BC$3:$BC$5,'Utility Functions'!$BD$3:$BD$5)","v":0},0.38158740731015961]
[13,{"$f":"$B$40*(valueE(B14,'Utility Functions'!$B$3,'Utility Functions'!$B$4,'Utility Functions'!$B$5,'Utility Functions'!$B$6))","v":0},{"$f":"$C$40*(valueE(C14,'Utility Functions'!$D$3,'Utility Functions'!$D$4,'Utility Functions'!$D$5,'Utility Functions'!$D$6))","v":0},{"$f":"$D$40*(valuePL(D14,'Utility Functions'!$E$3:$E$5,'Utility Functions'!$F$3:$F$5))","v":0},{"$f":"$E$40*(valuePL(E14,'Utility Functions'!$G$3:$G$5,'Utility Functions'!$H$3:$H$5))","v":0},{"$f":"$F$40*(valuePL(F14,'Utility Functions'!$I$3:$I$4,'Utility Functions'!$J$3:$J$5))","v":0},{"$f":"$G$40*(valueE(G14,'Utility Functions'!$L$3,'Utility Functions'!$L$4,'Utility Functions'!$L$5,'Utility Functions'!$L$6))","v":0},{"$f":"$H$40*(valueE(H14,'Utility Functions'!$N$3,'Utility Functions'!$N$4,'Utility Functions'!$N$5,'Utility Functions'!$N$6))","v":1.7077798861480075E-4},{"$f":"$I$40*valuePL(I14,'Utility Functions'!$O$3:$O$6,'Utility Functions'!$P$3:$P$6)","v":9.8727272727272726E-3},{"$f":"$J$40*valuePL(J14,'Utility Functions'!$Q$3:$Q$6,'Utility Functions'!$R$3:$R$6)","v":8.0000000000000004E-4},{"$f":"$K$40*(valuePL(K14,'Utility Functions'!$S$3:$S$7,'Utility Functions'!$T$3:$T$7))","v":6.5818181818181817E-3},{"$f":"$L$40*(valueE(L14,'Utility Functions'!$V$3,'Utility Functions'!$V$4,'Utility Functions'!$V$5,'Utility Functions'!$V$6))","v":0.02},{"$f":"$M$40*valuePL(M14,'Utility Functions'!$W$3:$W$6,'Utility Functions'!$X$3:$X$6)","v":8.0000000000000004E-4},{"$f":"$N$40*valueE(N14,'Utility Functions'!$Z$3,'Utility Functions'!$Z$4,'Utility Functions'!$Z$5,'Utility Functions'!$Z$6)","v":2.6249999999999999E-2},{"$f":"$O$40*valuePL(O14,'Utility Functions'!$AA$3:$AA$5,'Utility Functions'!$AB$3:$AB$5)","v":2.2499999999999999E-2},{"$f":"$P$40*valuePL(P14,'Utility Functions'!$AC$3:$AC$7,'Utility Functions'!$AD$3:$AD$7)","v":0.01},{"$f":"$Q$40*valuePL(Q14,'Utility Functions'!$AE$3:$AE$6,'Utility Functions'!$AF$3:$AF$6)","v":0},{"$f":"$R$40*valuePL(R14,'Utility Functions'!$AG$3:$AG$6,'Utility Functions'!$AH$3:$AH$6)","v":0.05},{"$f":"$S$40*valuePL(S14,'Utility Functions'!$AI$3:$AI$6,'Utility Functions'!$AJ$3:$AJ$6)","v":0.05},{"$f":"$T$40*valuePL(T14,'Utility Functions'!$AK$3:$AK$8,'Utility Functions'!$AL$3:$AL$8)","v":0},{"$f":"$U$40*valuePL(U14,'Utility Functions'!$AM$3:$AM$5,'Utility Functions'!$AN$3:$AN$5)","v":0},{"$f":"$V$40*valuePL(V14,'Utility Functions'!$AO$3:$AO$5,'Utility Functions'!$AP$3:$AP$5)","v":2.5000000000000001E-2},{"$f":"$W$40*valuePL(W14,'Utility Functions'!$AQ$3:$AQ$6,'Utility Functions'!$AR$3:$AR$6)","v":0},{"$f":"$X$40*valuePL(X14,'Utility Functions'!$AS$3:$AS$6,'Utility Functions'!$AT$3:$AT$6)","v":8.0000000000000002E-3},{"$f":"$Y$40*valuePL(Y14,'Utility Functions'!$AU$3:$AU$6,'Utility Functions'!$AV$3:$AV$6)","v":0},{"$f":"$Z$40*valuePL(Z14,'Utility Functions'!$AW$3:$AW$5,'Utility Functions'!$AX$3:$AX$5)","v":0.05},{"$f":"$AA$40*valuePL(AA14,'Utility Functions'!$AY$3:$AY$6,'Utility Functions'!$AZ$3:$AZ$6)","v":8.0000000000000002E-3},{"$f":"$AB$40*valuePL(AB14,'Utility Functions'!$BA$3:$BA$5,'Utility Functions'!$BB$3:$BB$5)","v":0.01},{"$f":"$AC$40*valuePL(AC14,'Utility Functions'!$BC$3:$BC$5,'Utility Functions'!$BD$3:$BD$5)","v":7.4999999999999997E-3},0.30547532344316031]
[14,{"$f":"$B$40*(valueE(B15,'Utility Functions'!$B$3,'Utility Functions'!$B$4,'Utility Functions'!$B$5,'Utility Functions'!$B$6))","v":2.0964205406426323E-2},{"$f":"$C$40*(valueE(C15,'Utility Functions'!$D$3,'Utility Functions'!$D$4,'Utility Functions'!$D$5,'Utility Functions'!$D$6))","v":2.3696993705826886E-2},{"$f":"$D$40*(valuePL(D15,'Utility Functions'!$E$3:$E$5,'Utility Functions'!$F$3:$F$5))","v":1.4999999999999999E-2},{"$f":"$E$40*(valuePL(E15,'Utility Functions'!$G$3:$G$5,'Utility Functions'!$H$3:$H$5))","v":1.4999999999999999E-2},{"$f":"$F$40*(valuePL(F15,'Utility Functions'!$I$3:$I$4,'Utility Functions'!$J$3:$J$5))","v":0},{"$f":"$G$40*(valueE(G15,'Utility Functions'!$L$3,'Utility Functions'!$L$4,'Utility Functions'!$L$5,'Utility Functions'!$L$6))","v":0},{"$f":"$H$40*(valueE(H15,'Utility Functions'!$N$3,'Utility Functions'!$N$4,'Utility Functions'!$N$5,'Utility Functions'!$N$6))","v":0},{"$f":"$I$40*valuePL(I15,'Utility Functions'!$O$3:$O$6,'Utility Functions'!$P$3:$P$6)","v":0},{"$f":"$J$40*valuePL(J15,'Utility Functions'!$Q$3:$Q$6,'Utility Functions'!$R$3:$R$6)","v":0},{"$f":"$K$40*(valuePL(K15,'Utility Functions'!$S$3:$S$7,'Utility Functions'!$T$3:$T$7))","v":0},{"$f":"$L$40*(valueE(L15,'Utility Functions'!$V$3,'Utility Functions'!$V$4,'Utility Functions'!$V$5,'Utility Functions'!$V$6))","v":0},{"$f":"$M$40*valuePL(M15,'Utility Functions'!$W$3:$W$6,'Utility Functions'!$X$3:$X$6)","v":0},{"$f":"$N$40*valueE(N15,'Utility Functions'!$Z$3,'Utility Functions'!$Z$4,'Utility Functions'!$Z$5,'Utility Functions'!$Z$6)","v":2.2499999999999999E-2},{"$f":"$O$40*valuePL(O15,'Utility Functions'!$AA$3:$AA$5,'Utility Functions'!$AB$3:$AB$5)","v":2.2499999999999999E-2},{"$f":"$P$40*valuePL(P15,'Utility Functions'!$AC$3:$AC$7,'Utility Functions'!$AD$3:$AD$7)","v":0.01},{"$f":"$Q$40*valuePL(Q15,'Utility Functions'!$AE$3:$AE$6,'Utility Functions'!$AF$3:$AF$6)","v":0},{"$f":"$R$40*valuePL(R15,'Utility Functions'!$AG$3:$AG$6,'Utility Functions'!$AH$3:$AH$6)","v":0.05},{"$f":"$S$40*valuePL(S15,'Utility Functions'!$AI$3:$AI$6,'Utility Functions'!$AJ$3:$AJ$6)","v":0.05},{"$f":"$T$40*valuePL(T15,'Utility Functions'!$AK$3:$AK$8,'Utility Functions'!$AL$3:$AL$8)","v":0},{"$f":"$U$40*valuePL(U15,'Utility Functions'!$AM$3:$AM$5,'Utility Functions'!$AN$3:$AN$5)","v":0},{"$f":"$V$40*valuePL(V15,'Utility Functions'!$AO$3:$AO$5,'Utility Functions'!$AP$3:$AP$5)","v":2.5000000000000001E-2},{"$f":"$W$40*valuePL(W15,'Utility Functions'!$AQ$3:$AQ$6,'Utility Functions'!$AR$3:$AR$6)","v":8.0000000000000002E-3},{"$f":"$X$40*valuePL(X15,'Utility Functions'!$AS$3:$AS$6,'Utility Functions'!$AT$3:$AT$6)","v":0.04},{"$f":"$Y$40*valuePL(Y15,'Utility Functions'!$AU$3:$AU$6,'Utility Functions'!$AV$3:$AV$6)","v":0.05},{"$f":"$Z$40*valuePL(Z15,'Utility Functions'!$AW$3:$AW$5,'Utility Functions'!$AX$3:$AX$5)","v":2.5000000000000001E-2},{"$f":"$AA$40*valuePL(AA15,'Utility Functions'!$AY$3:$AY$6,'Utility Functions'!$AZ$3:$AZ$6)","v":3.5999999999999997E-2},{"$f":"$AB$40*valuePL(AB15,'Utility Functions'!$BA$3:$BA$5,'Utility Functions'!$BB$3:$BB$5)","v":0.01},{"$f":"$AC$40*valuePL(AC15,'Utility Functions'!$BC$3:$BC$5,'Utility Functions'!$BD$3:$BD$5)","v":7.4999999999999997E-3},0.4311611991122532]
[15,{"$f":"$B$40*(valueE(B16,'Utility Functions'!$B$3,'Utility Functions'!$B$4,'Utility Functions'!$B$5,'Utility Functions'!$B$6))","v":2.9698489925153143E-2},{"$f":"$C$40*(valueE(C16,'Utility Functions'!$D$3,'Utility Functions'!$D$4,'Utility Functions'!$D$5,'Utility Functions'!$D$6))","v":2.1405827917278249E-2},{"$f":"$D$40*(valuePL(D16,'Utility Functions'!$E$3:$E$5,'Utility Functions'!$F$3:$F$5))","v":0.03},{"$f":"$E$40*(valuePL(E16,'Utility Functions'!$G$3:$G$5,'Utility Functions'!$H$3:$H$5))","v":1.4999999999999999E-2},{"$f":"$F$40*(valuePL(F16,'Utility Functions'!$I$3:$I$4,'Utility Functions'!$J$3:$J$5))","v":0.04},{"$f":"$G$40*(valueE(G16,'Utility Functions'!$L$3,'Utility Functions'!$L$4,'Utility Functions'!$L$5,'Utility Functions'!$L$6))","v":0},{"$f":"$H$40*(valueE(H16,'Utility Functions'!$N$3,'Utility Functions'!$N$4,'Utility Functions'!$N$5,'Utility Functions'!$N$6))","v":0},{"$f":"$I$40*valuePL(I16,'Utility Functions'!$O$3:$O$6,'Utility Functions'!$P$3:$P$6)","v":2.7600000000000003E-3},{"$f":"$J$40*valuePL(J16,'Utility Functions'!$Q$3:$Q$6,'Utility Functions'!$R$3:$R$6)","v":1.2000000000000003E-3},{"$f":"$K$40*(valuePL(K16,'Utility Functions'!$S$3:$S$7,'Utility Functions'!$T$3:$T$7))","v":1.2000000000000003E-3},{"$f":"$L$40*(valueE(L16,'Utility Functions'!$V$3,'Utility Functions'!$V$4,'Utility Functions'!$V$5,'Utility Functions'!$V$6))","v":0.02},{"$f":"$M$40*valuePL(M16,'Utility Functions'!$W$3:$W$6,'Utility Functions'!$X$3:$X$6)","v":1.2000000000000003E-3},{"$f":"$N$40*valueE(N16,'Utility Functions'!$Z$3,'Utility Functions'!$Z$4,'Utility Functions'!$Z$5,'Utility Functions'!$Z$6)","v":3.7499999999999999E-3},{"$f":"$O$40*valuePL(O16,'Utility Functions'!$AA$3:$AA$5,'Utility Functions'!$AB$3:$AB$5)","v":0.09},{"$f":"$P$40*valuePL(P16,'Utility Functions'!$AC$3:$AC$7,'Utility Functions'!$AD$3:$AD$7)","v":0.02},{"$f":"$Q$40*valuePL(Q16,'Utility Functions'!$AE$3:$AE$6,'Utility Functions'!$AF$3:$AF$6)","v":0},{"$f":"$R$40*valuePL(R16,'Utility Functions'!$AG$3:$AG$6,'Utility Functions'!$AH$3:$AH$6)","v":4.0000000000000008E-2},{"$f":"$S$40*valuePL(S16,'Utility Functions'!$AI$3:$AI$6,'Utility Functions'!$AJ$3:$AJ$6)","v":0.05},{"$f":"$T$40*valuePL(T16,'Utility Functions'!$AK$3:$AK$8,'Utility Functions'!$AL$3:$AL$8)","v":1.7999999999999999E-2},{"$f":"$U$40*valuePL(U16,'Utility Functions'!$AM$3:$AM$5,'Utility Functions'!$AN$3:$AN$5)","v":0.03},{"$f":"$V$40*valuePL(V16,'Utility Functions'!$AO$3:$AO$5,'Utility Functions'!$AP$3:$AP$5)","v":0},{"$f":"$W$40*valuePL(W16,'Utility Functions'!$AQ$3:$AQ$6,'Utility Functions'!$AR$3:$AR$6)","v":0.04},{"$f":"$X$40*valuePL(X16,'Utility Functions'!$AS$3:$AS$6,'Utility Functions'!$AT$3:$AT$6)","v":8.0000000000000002E-3},{"$f":"$Y$40*valuePL(Y16,'Utility Functions'!$AU$3:$AU$6,'Utility Functions'!$AV$3:$AV$6)","v":1.0000000000000002E-2},{"$f":"$Z$40*valuePL(Z16,'Utility Functions'!$AW$3:$AW$5,'Utility Functions'!$AX$3:$AX$5)","v":0.05},{"$f":"$AA$40*valuePL(AA16,'Utility Functions'!$AY$3:$AY$6,'Utility Functions'!$AZ$3:$AZ$6)","v":0.04},{"$f":"$AB$40*valuePL(AB16,'Utility Functions'!$BA$3:$BA$5,'Utility Functions'!$BB$3:$BB$5)","v":0.04},{"$f":"$AC$40*valuePL(AC16,'Utility Functions'!$BC$3:$BC$5,'Utility Functions'!$BD$3:$BD$5)","v":7.4999999999999997E-3},0.60971431784243146]
[16,{"$f":"$B$40*(valueE(B17,'Utility Functions'!$B$3,'Utility Functions'!$B$4,'Utility Functions'!$B$5,'Utility Functions'!$B$6))","v":0},{"$f":"$C$40*(valueE(C17,'Utility Functions'!$D$3,'Utility Functions'!$D$4,'Utility Functions'!$D$5,'Utility Functions'!$D$6))","v":0},{"$f":"$D$40*(valuePL(D17,'Utility Functions'!$E$3:$E$5,'Utility Functions'!$F$3:$F$5))","v":0},{"$f":"$E$40*(valuePL(E17,'Utility Functions'!$G$3:$G$5,'Utility Functions'!$H$3:$H$5))","v":0},{"$f":"$F$40*(valuePL(F17,'Utility Functions'!$I$3:$I$4,'Utility Functions'!$J$3:$J$5))","v":0},{"$f":"$G$40*(valueE(G17,'Utility Functions'!$L$3,'Utility Functions'!$L$4,'Utility Functions'!$L$5,'Utility Functions'!$L$6))","v":0},{"$f":"$H$40*(valueE(H17,'Utility Functions'!$N$3,'Utility Functions'!$N$4,'Utility Functions'!$N$5,'Utility Functions'!$N$6))","v":0},{"$f":"$I$40*valuePL(I17,'Utility Functions'!$O$3:$O$6,'Utility Functions'!$P$3:$P$6)","v":0.03},{"$f":"$J$40*valuePL(J17,'Utility Functions'!$Q$3:$Q$6,'Utility Functions'!$R$3:$R$6)","v":1.8363636363636363E-2},{"$f":"$K$40*(valuePL(K17,'Utility Functions'!$S$3:$S$7,'Utility Functions'!$T$3:$T$7))","v":0.02},{"$f":"$L$40*(valueE(L17,'Utility Functions'!$V$3,'Utility Functions'!$V$4,'Utility Functions'!$V$5,'Utility Functions'!$V$6))","v":1.6666666666666666E-2},{"$f":"$M$40*valuePL(M17,'Utility Functions'!$W$3:$W$6,'Utility Functions'!$X$3:$X$6)","v":1.8363636363636363E-2},{"$f":"$N$40*valueE(N17,'Utility Functions'!$Z$3,'Utility Functions'!$Z$4,'Utility Functions'!$Z$5,'Utility Functions'!$Z$6)","v":0},{"$f":"$O$40*valuePL(O17,'Utility Functions'!$AA$3:$AA$5,'Utility Functions'!$AB$3:$AB$5)","v":0},{"$f":"$P$40*valuePL(P17,'Utility Functions'!$AC$3:$AC$7,'Utility Functions'!$AD$3:$AD$7)","v":0.03},{"$f":"$Q$40*valuePL(Q17,'Utility Functions'!$AE$3:$AE$6,'Utility Functions'!$AF$3:$AF$6)","v":0},{"$f":"$R$40*valuePL(R17,'Utility Functions'!$AG$3:$AG$6,'Utility Functions'!$AH$3:$AH$6)","v":0.05},{"$f":"$S$40*valuePL(S17,'Utility Functions'!$AI$3:$AI$6,'Utility Functions'!$AJ$3:$AJ$6)","v":0.05},{"$f":"$T$40*valuePL(T17,'Utility Functions'!$AK$3:$AK$8,'Utility Functions'!$AL$3:$AL$8)","v":0.03},{"$f":"$U$40*valuePL(U17,'Utility Functions'!$AM$3:$AM$5,'Utility Functions'!$AN$3:$AN$5)","v":0},{"$f":"$V$40*valuePL(V17,'Utility Functions'!$AO$3:$AO$5,'Utility Functions'!$AP$3:$AP$5)","v":0.05},{"$f":"$W$40*valuePL(W17,'Utility Functions'!$AQ$3:$AQ$6,'Utility Functions'!$AR$3:$AR$6)","v":0.03},{"$f":"$X$40*valuePL(X17,'Utility Functions'!$AS$3:$AS$6,'Utility Functions'!$AT$3:$AT$6)","v":0.03},{"$f":"$Y$40*valuePL(Y17,'Utility Functions'!$AU$3:$AU$6,'Utility Functions'!$AV$3:$AV$6)","v":1.0000000000000002E-2},{"$f":"$Z$40*valuePL(Z17,'Utility Functions'!$AW$3:$AW$5,'Utility Functions'!$AX$3:$AX$5)","v":0.05},{"$f":"$AA$40*valuePL(AA17,'Utility Functions'!$AY$3:$AY$6,'Utility Functions'!$AZ$3:$AZ$6)","v":0.04},{"$f":"$AB$40*valuePL(AB17,'Utility Functions'!$BA$3:$BA$5,'Utility Functions'!$BB$3:$BB$5)","v":0.04},{"$f":"$AC$40*valuePL(AC17,'Utility Functions'!$BC$3:$BC$5,'Utility Functions'!$BD$3:$BD$5)","v":0.03},0.54339393939393943]
[17,{"$f":"$B$40*(valueE(B18,'Utility Functions'!$B$3,'Utility Functions'!$B$4,'Utility Functions'!$B$5,'Utility Functions'!$B$6))","v":9.8904136043327599E-3},{"$f":"$C$40*(valueE(C18,'Utility Functions'!$D$3,'Utility Functions'!$D$4,'Utility Functions'!$D$5,'Utility Functions'!$D$6))","v":2.3696993705826886E-2},{"$f":"$D$40*(valuePL(D18,'Utility Functions'!$E$3:$E$5,'Utility Functions'!$F$3:$F$5))","v":0.03},{"$f":"$E$40*(valuePL(E18,'Utility Functions'!$G$3:$G$5,'Utility Functions'!$H$3:$H$5))","v":1.4999999999999999E-2},{"$f":"$F$40*(valuePL(F18,'Utility Functions'!$I$3:$I$4,'Utility Functions'!$J$3:$J$5))","v":0.04},{"$f":"$G$40*(valueE(G18,'Utility Functions'!$L$3,'Utility Functions'!$L$4,'Utility Functions'!$L$5,'Utility Functions'!$L$6))","v":4.6774193548387091E-3},{"$f":"$H$40*(valueE(H18,'Utility Functions'!$N$3,'Utility Functions'!$N$4,'Utility Functions'!$N$5,'Utility Functions'!$N$6))","v":4.1271347248576853E-3},{"$f":"$I$40*valuePL(I18,'Utility Functions'!$O$3:$O$6,'Utility Functions'!$P$3:$P$6)","v":0},{"$f":"$J$40*valuePL(J18,'Utility Functions'!$Q$3:$Q$6,'Utility Functions'!$R$3:$R$6)","v":0},{"$f":"$K$40*(valuePL(K18,'Utility Functions'!$S$3:$S$7,'Utility Functions'!$T$3:$T$7))","v":0},{"$f":"$L$40*(valueE(L18,'Utility Functions'!$V$3,'Utility Functions'!$V$4,'Utility Functions'!$V$5,'Utility Functions'!$V$6))","v":0.02},{"$f":"$M$40*valuePL(M18,'Utility Functions'!$W$3:$W$6,'Utility Functions'!$X$3:$X$6)","v":1.2000000000000003E-3},{"$f":"$N$40*valueE(N18,'Utility Functions'!$Z$3,'Utility Functions'!$Z$4,'Utility Functions'!$Z$5,'Utility Functions'!$Z$6)","v":0},{"$f":"$O$40*valuePL(O18,'Utility Functions'!$AA$3:$AA$5,'Utility Functions'!$AB$3:$AB$5)","v":0},{"$f":"$P$40*valuePL(P18,'Utility Functions'!$AC$3:$AC$7,'Utility Functions'!$AD$3:$AD$7)","v":0},{"$f":"$Q$40*valuePL(Q18,'Utility Functions'!$AE$3:$AE$6,'Utility Functions'!$AF$3:$AF$6)","v":0},{"$f":"$R$40*valuePL(R18,'Utility Functions'!$AG$3:$AG$6,'Utility Functions'!$AH$3:$AH$6)","v":0.05},{"$f":"$S$40*valuePL(S18,'Utility Functions'!$AI$3:$AI$6,'Utility Functions'!$AJ$3:$AJ$6)","v":3.3000000000000002E-2},{"$f":"$T$40*valuePL(T18,'Utility Functions'!$AK$3:$AK$8,'Utility Functions'!$AL$3:$AL$8)","v":0},{"$f":"$U$40*valuePL(U18,'Utility Functions'!$AM$3:$AM$5,'Utility Functions'!$AN$3:$AN$5)","v":0},{"$f":"$V$40*valuePL(V18,'Utility Functions'!$AO$3:$AO$5,'Utility Functions'!$AP$3:$AP$5)","v":0.05},{"$f":"$W$40*valuePL(W18,'Utility Functions'!$AQ$3:$AQ$6,'Utility Functions'!$AR$3:$AR$6)","v":0.04},{"$f":"$X$40*valuePL(X18,'Utility Functions'!$AS$3:$AS$6,'Utility Functions'!$AT$3:$AT$6)","v":8.0000000000000002E-3},{"$f":"$Y$40*valuePL(Y18,'Utility Functions'!$AU$3:$AU$6,'Utility Functions'!$AV$3:$AV$6)","v":0},{"$f":"$Z$40*valuePL(Z18,'Utility Functions'!$AW$3:$AW$5,'Utility Functions'!$AX$3:$AX$5)","v":2.5000000000000001E-2},{"$f":"$AA$40*valuePL(AA18,'Utility Functions'!$AY$3:$AY$6,'Utility Functions'!$AZ$3:$AZ$6)","v":0},{"$f":"$AB$40*valuePL(AB18,'Utility Functions'!$BA$3:$BA$5,'Utility Functions'!$BB$3:$BB$5)","v":0.04},{"$f":"$AC$40*valuePL(AC18,'Utility Functions'!$BC$3:$BC$5,'Utility Functions'!$BD$3:$BD$5)","v":7.4999999999999997E-3},0.40209196138985603]
[18,{"$f":"$B$40*(valueE(B19,'Utility Functions'!$B$3,'Utility Functions'!$B$4,'Utility Functions'!$B$5,'Utility Functions'!$B$6))","v":0},{"$f":"$C$40*(valueE(C19,'Utility Functions'!$D$3,'Utility Functions'!$D$4,'Utility Functions'!$D$5,'Utility Functions'!$D$6))","v":0},{"$f":"$D$40*(valuePL(D19,'Utility Functions'!$E$3:$E$5,'Utility Functions'!$F$3:$F$5))","v":0},{"$f":"$E$40*(valuePL(E19,'Utility Functions'!$G$3:$G$5,'Utility Functions'!$H$3:$H$5))","v":0},{"$f":"$F$40*(valuePL(F19,'Utility Functions'!$I$3:$I$4,'Utility Functions'!$J$3:$J$5))","v":0},{"$f":"$G$40*(valueE(G19,'Utility Functions'!$L$3,'Utility Functions'!$L$4,'Utility Functions'!$L$5,'Utility Functions'!$L$6))","v":0},{"$f":"$H$40*(valueE(H19,'Utility Functions'!$N$3,'Utility Functions'!$N$4,'Utility Functions'!$N$5,'Utility Functions'!$N$6))","v":4.2694497153700185E-4},{"$f":"$I$40*valuePL(I19,'Utility Functions'!$O$3:$O$6,'Utility Functions'!$P$3:$P$6)","v":0},{"$f":"$J$40*valuePL(J19,'Utility Functions'!$Q$3:$Q$6,'Utility Functions'!$R$3:$R$6)","v":0},{"$f":"$K$40*(valuePL(K19,'Utility Functions'!$S$3:$S$7,'Utility Functions'!$T$3:$T$7))","v":0},{"$f":"$L$40*(valueE(L19,'Utility Functions'!$V$3,'Utility Functions'!$V$4,'Utility Functions'!$V$5,'Utility Functions'!$V$6))","v":0},{"$f":"$M$40*valuePL(M19,'Utility Functions'!$W$3:$W$6,'Utility Functions'!$X$3:$X$6)","v":0},{"$f":"$N$40*valueE(N19,'Utility Functions'!$Z$3,'Utility Functions'!$Z$4,'Utility Functions'!$Z$5,'Utility Functions'!$Z$6)","v":0.03},{"$f":"$O$40*valuePL(O19,'Utility Functions'!$AA$3:$AA$5,'Utility Functions'!$AB$3:$AB$5)","v":2.2499999999999999E-2},{"$f":"$P$40*valuePL(P19,'Utility Functions'!$AC$3:$AC$7,'Utility Functions'!$AD$3:$AD$7)","v":0.01},{"$f":"$Q$40*valuePL(Q19,'Utility Functions'!$AE$3:$AE$6,'Utility Functions'!$AF$3:$AF$6)","v":0.04},{"$f":"$R$40*valuePL(R19,'Utility Functions'!$AG$3:$AG$6,'Utility Functions'!$AH$3:$AH$6)","v":0.05},{"$f":"$S$40*valuePL(S19,'Utility Functions'!$AI$3:$AI$6,'Utility Functions'!$AJ$3:$AJ$6)","v":0.05},{"$f":"$T$40*valuePL(T19,'Utility Functions'!$AK$3:$AK$8,'Utility Functions'!$AL$3:$AL$8)","v":0.03},{"$f":"$U$40*valuePL(U19,'Utility Functions'!$AM$3:$AM$5,'Utility Functions'!$AN$3:$AN$5)","v":7.4999999999999997E-3},{"$f":"$V$40*valuePL(V19,'Utility Functions'!$AO$3:$AO$5,'Utility Functions'!$AP$3:$AP$5)","v":0.05},{"$f":"$W$40*valuePL(W19,'Utility Functions'!$AQ$3:$AQ$6,'Utility Functions'!$AR$3:$AR$6)","v":0.03},{"$f":"$X$40*valuePL(X19,'Utility Functions'!$AS$3:$AS$6,'Utility Functions'!$AT$3:$AT$6)","v":8.0000000000000002E-3},{"$f":"$Y$40*valuePL(Y19,'Utility Functions'!$AU$3:$AU$6,'Utility Functions'!$AV$3:$AV$6)","v":4.0000000000000008E-2},{"$f":"$Z$40*valuePL(Z19,'Utility Functions'!$AW$3:$AW$5,'Utility Functions'!$AX$3:$AX$5)","v":2.5000000000000001E-2},{"$f":"$AA$40*valuePL(AA19,'Utility Functions'!$AY$3:$AY$6,'Utility Functions'!$AZ$3:$AZ$6)","v":3.5999999999999997E-2},{"$f":"$AB$40*valuePL(AB19,'Utility Functions'!$BA$3:$BA$5,'Utility Functions'!$BB$3:$BB$5)","v":0.01},{"$f":"$AC$40*valuePL(AC19,'Utility Functions'!$BC$3:$BC$5,'Utility Functions'!$BD$3:$BD$5)","v":0},0.43942694497153706]
[19,{"$f":"$B$40*(valueE(B20,'Utility Functions'!$B$3,'Utility Functions'!$B$4,'Utility Functions'!$B$5,'Utility Functions'!$B$6))","v":2.3943140737469053E-2},{"$f":"$C$40*(valueE(C20,'Utility Functions'!$D$3,'Utility Functions'!$D$4,'Utility Functions'!$D$5,'Utility Functions'!$D$6))","v":8.0518966871447988E-3},{"$f":"$D$40*(valuePL(D20,'Utility Functions'!$E$3:$E$5,'Utility Functions'!$F$3:$F$5))","v":1.4999999999999999E-2},{"$f":"$E$40*(valuePL(E20,'Utility Functions'!$G$3:$G$5,'Utility Functions'!$H$3:$H$5))","v":0.03},{"$f":"$F$40*(valuePL(F20,'Utility Functions'!$I$3:$I$4,'Utility Functions'!$J$3:$J$5))","v":0},{"$f":"$G$40*(valueE(G20,'Utility Functions'!$L$3,'Utility Functions'!$L$4,'Utility Functions'!$L$5,'Utility Functions'!$L$6))","v":0},{"$f":"$H$40*(valueE(H20,'Utility Functions'!$N$3,'Utility Functions'!$N$4,'Utility Functions'!$N$5,'Utility Functions'!$N$6))","v":0},{"$f":"$I$40*valuePL(I20,'Utility Functions'!$O$3:$O$6,'Utility Functions'!$P$3:$P$6)","v":0},{"$f":"$J$40*valuePL(J20,'Utility Functions'!$Q$3:$Q$6,'Utility Functions'!$R$3:$R$6)","v":0},{"$f":"$K$40*(valuePL(K20,'Utility Functions'!$S$3:$S$7,'Utility Functions'!$T$3:$T$7))","v":0},{"$f":"$L$40*(valueE(L20,'Utility Functions'!$V$3,'Utility Functions'!$V$4,'Utility Functions'!$V$5,'Utility Functions'!$V$6))","v":0},{"$f":"$M$40*valuePL(M20,'Utility Functions'!$W$3:$W$6,'Utility Functions'!$X$3:$X$6)","v":0},{"$f":"$N$40*valueE(N20,'Utility Functions'!$Z$3,'Utility Functions'!$Z$4,'Utility Functions'!$Z$5,'Utility Functions'!$Z$6)","v":0.03},{"$f":"$O$40*valuePL(O20,'Utility Functions'!$AA$3:$AA$5,'Utility Functions'!$AB$3:$AB$5)","v":0.09},{"$f":"$P$40*valuePL(P20,'Utility Functions'!$AC$3:$AC$7,'Utility Functions'!$AD$3:$AD$7)","v":0},{"$f":"$Q$40*valuePL(Q20,'Utility Functions'!$AE$3:$AE$6,'Utility Functions'!$AF$3:$AF$6)","v":0},{"$f":"$R$40*valuePL(R20,'Utility Functions'!$AG$3:$AG$6,'Utility Functions'!$AH$3:$AH$6)","v":4.0000000000000008E-2},{"$f":"$S$40*valuePL(S20,'Utility Functions'!$AI$3:$AI$6,'Utility Functions'!$AJ$3:$AJ$6)","v":0.05},{"$f":"$T$40*valuePL(T20,'Utility Functions'!$AK$3:$AK$8,'Utility Functions'!$AL$3:$AL$8)","v":0},{"$f":"$U$40*valuePL(U20,'Utility Functions'!$AM$3:$AM$5,'Utility Functions'!$AN$3:$AN$5)","v":0},{"$f":"$V$40*valuePL(V20,'Utility Functions'!$AO$3:$AO$5,'Utility Functions'!$AP$3:$AP$5)","v":2.5000000000000001E-2},{"$f":"$W$40*valuePL(W20,'Utility Functions'!$AQ$3:$AQ$6,'Utility Functions'!$AR$3:$AR$6)","v":8.0000000000000002E-3},{"$f":"$X$40*valuePL(X20,'Utility Functions'!$AS$3:$AS$6,'Utility Functions'!$AT$3:$AT$6)","v":0.04},{"$f":"$Y$40*valuePL(Y20,'Utility Functions'!$AU$3:$AU$6,'Utility Functions'!$AV$3:$AV$6)","v":4.0000000000000008E-2},{"$f":"$Z$40*valuePL(Z20,'Utility Functions'!$AW$3:$AW$5,'Utility Functions'!$AX$3:$AX$5)","v":0},{"$f":"$AA$40*valuePL(AA20,'Utility Functions'!$AY$3:$AY$6,'Utility Functions'!$AZ$3:$AZ$6)","v":8.0000000000000002E-3},{"$f":"$AB$40*valuePL(AB20,'Utility Functions'!$BA$3:$BA$5,'Utility Functions'!$BB$3:$BB$5)","v":0},{"$f":"$AC$40*valuePL(AC20,'Utility Functions'!$BC$3:$BC$5,'Utility Functions'!$BD$3:$BD$5)","v":7.4999999999999997E-3},0.41549503742461386]
[20,{"$f":"$B$40*(valueE(B21,'Utility Functions'!$B$3,'Utility Functions'!$B$4,'Utility Functions'!$B$5,'Utility Functions'!$B$6))","v":2.5041071294184137E-2},{"$f":"$C$40*(valueE(C21,'Utility Functions'!$D$3,'Utility Functions'!$D$4,'Utility Functions'!$D$5,'Utility Functions'!$D$6))","v":2.3696993705826886E-2},{"$f":"$D$40*(valuePL(D21,'Utility Functions'!$E$3:$E$5,'Utility Functions'!$F$3:$F$5))","v":1.4999999999999999E-2},{"$f":"$E$40*(valuePL(E21,'Utility Functions'!$G$3:$G$5,'Utility Functions'!$H$3:$H$5))","v":0.03},{"$f":"$F$40*(valuePL(F21,'Utility Functions'!$I$3:$I$4,'Utility Functions'!$J$3:$J$5))","v":0},{"$f":"$G$40*(valueE(G21,'Utility Functions'!$L$3,'Utility Functions'!$L$4,'Utility Functions'!$L$5,'Utility Functions'!$L$6))","v":0},{"$f":"$H$40*(valueE(H21,'Utility Functions'!$N$3,'Utility Functions'!$N$4,'Utility Functions'!$N$5,'Utility Functions'!$N$6))","v":6.1907020872865271E-3},{"$f":"$I$40*valuePL(I21,'Utility Functions'!$O$3:$O$6,'Utility Functions'!$P$3:$P$6)","v":2.8036363636363634E-2},{"$f":"$J$40*valuePL(J21,'Utility Functions'!$Q$3:$Q$6,'Utility Functions'!$R$3:$R$6)","v":1.0181818181818183E-2},{"$f":"$K$40*(valuePL(K21,'Utility Functions'!$S$3:$S$7,'Utility Functions'!$T$3:$T$7))","v":1.8690909090909088E-2},{"$f":"$L$40*(valueE(L21,'Utility Functions'!$V$3,'Utility Functions'!$V$4,'Utility Functions'!$V$5,'Utility Functions'!$V$6))","v":1.3333333333333332E-2},{"$f":"$M$40*valuePL(M21,'Utility Functions'!$W$3:$W$6,'Utility Functions'!$X$3:$X$6)","v":1.0181818181818183E-2},{"$f":"$N$40*valueE(N21,'Utility Functions'!$Z$3,'Utility Functions'!$Z$4,'Utility Functions'!$Z$5,'Utility Functions'!$Z$6)","v":0.03},{"$f":"$O$40*valuePL(O21,'Utility Functions'!$AA$3:$AA$5,'Utility Functions'!$AB$3:$AB$5)","v":0.09},{"$f":"$P$40*valuePL(P21,'Utility Functions'!$AC$3:$AC$7,'Utility Functions'!$AD$3:$AD$7)","v":0.01},{"$f":"$Q$40*valuePL(Q21,'Utility Functions'!$AE$3:$AE$6,'Utility Functions'!$AF$3:$AF$6)","v":0},{"$f":"$R$40*valuePL(R21,'Utility Functions'!$AG$3:$AG$6,'Utility Functions'!$AH$3:$AH$6)","v":0.05},{"$f":"$S$40*valuePL(S21,'Utility Functions'!$AI$3:$AI$6,'Utility Functions'!$AJ$3:$AJ$6)","v":0.05},{"$f":"$T$40*valuePL(T21,'Utility Functions'!$AK$3:$AK$8,'Utility Functions'!$AL$3:$AL$8)","v":1.7999999999999999E-2},{"$f":"$U$40*valuePL(U21,'Utility Functions'!$AM$3:$AM$5,'Utility Functions'!$AN$3:$AN$5)","v":0.03},{"$f":"$V$40*valuePL(V21,'Utility Functions'!$AO$3:$AO$5,'Utility Functions'!$AP$3:$AP$5)","v":2.5000000000000001E-2},{"$f":"$W$40*valuePL(W21,'Utility Functions'!$AQ$3:$AQ$6,'Utility Functions'!$AR$3:$AR$6)","v":0},{"$f":"$X$40*valuePL(X21,'Utility Functions'!$AS$3:$AS$6,'Utility Functions'!$AT$3:$AT$6)","v":0},{"$f":"$Y$40*valuePL(Y21,'Utility Functions'!$AU$3:$AU$6,'Utility Functions'!$AV$3:$AV$6)","v":1.0000000000000002E-2},{"$f":"$Z$40*valuePL(Z21,'Utility Functions'!$AW$3:$AW$5,'Utility Functions'!$AX$3:$AX$5)","v":0.05},{"$f":"$AA$40*valuePL(AA21,'Utility Functions'!$AY$3:$AY$6,'Utility Functions'!$AZ$3:$AZ$6)","v":8.0000000000000002E-3},{"$f":"$AB$40*valuePL(AB21,'Utility Functions'!$BA$3:$BA$5,'Utility Functions'!$BB$3:$BB$5)","v":0},{"$f":"$AC$40*valuePL(AC21,'Utility Functions'!$BC$3:$BC$5,'Utility Functions'!$BD$3:$BD$5)","v":7.4999999999999997E-3},0.55885300951154004]
[{"$f":"A22","v":21},{"$f":"$B$40*(valueE(B22,'Utility Functions'!$B$3,'Utility Functions'!$B$4,'Utility Functions'!$B$5,'Utility Functions'!$B$6))","v":0},{"$f":"$C$40*(valueE(C22,'Utility Functions'!$D$3,'Utility Functions'!$D$4,'Utility Functions'!$D$5,'Utility Functions'!$D$6))","v":0},{"$f":"$D$40*(valuePL(D22,'Utility Functions'!$E$3:$E$5,'Utility Functions'!$F$3:$F$5))","v":0},{"$f":"$E$40*(valuePL(E22,'Utility Functions'!$G$3:$G$5,'Utility Functions'!$H$3:$H$5))","v":0},{"$f":"$F$40*(valuePL(F22,'Utility Functions'!$I$3:$I$4,'Utility Functions'!$J$3:$J$5))","v":0},{"$f":"$G$40*(valueE(G22,'Utility Functions'!$L$3,'Utility Functions'!$L$4,'Utility Functions'!$L$5,'Utility Functions'!$L$6))","v":0},{"$f":"$H$40*(valueE(H22,'Utility Functions'!$N$3,'Utility Functions'!$N$4,'Utility Functions'!$N$5,'Utility Functions'!$N$6))","v":0},{"$f":"$I$40*valuePL(I22,'Utility Functions'!$O$3:$O$6,'Utility Functions'!$P$3:$P$6)","v":0},{"$f":"$J$40*valuePL(J22,'Utility Functions'!$Q$3:$Q$6,'Utility Functions'!$R$3:$R$6)","v":0},{"$f":"$K$40*(valuePL(K22,'Utility Functions'!$S$3:$S$7,'Utility Functions'!$T$3:$T$7))","v":0},{"$f":"$L$40*(valueE(L22,'Utility Functions'!$V$3,'Utility Functions'!$V$4,'Utility Functions'!$V$5,'Utility Functions'!$V$6))","v":0},{"$f":"$M$40*valuePL(M22,'Utility Functions'!$W$3:$W$6,'Utility Functions'!$X$3:$X$6)","v":0},{"$f":"$N$40*valueE(N22,'Utility Functions'!$Z$3,'Utility Functions'!$Z$4,'Utility Functions'!$Z$5,'Utility Functions'!$Z$6)","v":0.03},{"$f":"$O$40*valuePL(O22,'Utility Functions'!$AA$3:$AA$5,'Utility Functions'!$AB$3:$AB$5)","v":0.09},{"$f":"$P$40*valuePL(P22,'Utility Functions'!$AC$3:$AC$7,'Utility Functions'!$AD$3:$AD$7)","v":0},{"$f":"$Q$40*valuePL(Q22,'Utility Functions'!$AE$3:$AE$6,'Utility Functions'!$AF$3:$AF$6)","v":4.0000000000000001E-3},{"$f":"$R$40*valuePL(R22,'Utility Functions'!$AG$3:$AG$6,'Utility Functions'!$AH$3:$AH$6)","v":0.05},{"$f":"$S$40*valuePL(S22,'Utility Functions'!$AI$3:$AI$6,'Utility Functions'!$AJ$3:$AJ$6)","v":0.05},{"$f":"$T$40*valuePL(T22,'Utility Functions'!$AK$3:$AK$8,'Utility Functions'!$AL$3:$AL$8)","v":0.03},{"$f":"$U$40*valuePL(U22,'Utility Functions'!$AM$3:$AM$5,'Utility Functions'!$AN$3:$AN$5)","v":7.4999999999999997E-3},{"$f":"$V$40*valuePL(V22,'Utility Functions'!$AO$3:$AO$5,'Utility Functions'!$AP$3:$AP$5)","v":0},{"$f":"$W$40*valuePL(W22,'Utility Functions'!$AQ$3:$AQ$6,'Utility Functions'!$AR$3:$AR$6)","v":0.03},{"$f":"$X$40*valuePL(X22,'Utility Functions'!$AS$3:$AS$6,'Utility Functions'!$AT$3:$AT$6)","v":0.04},{"$f":"$Y$40*valuePL(Y22,'Utility Functions'!$AU$3:$AU$6,'Utility Functions'!$AV$3:$AV$6)","v":1.0000000000000002E-2},{"$f":"$Z$40*valuePL(Z22,'Utility Functions'!$AW$3:$AW$5,'Utility Functions'!$AX$3:$AX$5)","v":0},{"$f":"$AA$40*valuePL(AA22,'Utility Functions'!$AY$3:$AY$6,'Utility Functions'!$AZ$3:$AZ$6)","v":0.04},{"$f":"$AB$40*valuePL(AB22,'Utility Functions'!$BA$3:$BA$5,'Utility Functions'!$BB$3:$BB$5)","v":0.01},{"$f":"$AC$40*valuePL(AC22,'Utility Functions'!$BC$3:$BC$5,'Utility Functions'!$BD$3:$BD$5)","v":0.03},0.42149999999999999]
[22,{"$f":"$B$40*(valueE(B23,'Utility Functions'!$B$3,'Utility Functions'!$B$4,'Utility Functions'!$B$5,'Utility Functions'!$B$6))","v":0},{"$f":"$C$40*(valueE(C23,'Utility Functions'!$D$3,'Utility Functions'!$D$4,'Utility Functions'!$D$5,'Utility Functions'!$D$6))","v":0},{"$f":"$D$40*(valuePL(D23,'Utility Functions'!$E$3:$E$5,'Utility Functions'!$F$3:$F$5))","v":0},{"$f":"$E$40*(valuePL(E23,'Utility Functions'!$G$3:$G$5,'Utility Functions'!$H$3:$H$5))","v":0},{"$f":"$F$40*(valuePL(F23,'Utility Functions'!$I$3:$I$4,'Utility Functions'!$J$3:$J$5))","v":0},{"$f":"$G$40*(valueE(G23,'Utility Functions'!$L$3,'Utility Functions'!$L$4,'Utility Functions'!$L$5,'Utility Functions'!$L$6))","v":1.2903225806451613E-3},{"$f":"$H$40*(valueE(H23,'Utility Functions'!$N$3,'Utility Functions'!$N$4,'Utility Functions'!$N$5,'Utility Functions'!$N$6))","v":9.1081593927893733E-4},{"$f":"$I$40*valuePL(I23,'Utility Functions'!$O$3:$O$6,'Utility Functions'!$P$3:$P$6)","v":0},{"$f":"$J$40*valuePL(J23,'Utility Functions'!$Q$3:$Q$6,'Utility Functions'!$R$3:$R$6)","v":0},{"$f":"$K$40*(valuePL(K23,'Utility Functions'!$S$3:$S$7,'Utility Functions'!$T$3:$T$7))","v":0},{"$f":"$L$40*(valueE(L23,'Utility Functions'!$V$3,'Utility Functions'!$V$4,'Utility Functions'!$V$5,'Utility Functions'!$V$6))","v":0},{"$f":"$M$40*valuePL(M23,'Utility Functions'!$W$3:$W$6,'Utility Functions'!$X$3:$X$6)","v":0},{"$f":"$N$40*valueE(N23,'Utility Functions'!$Z$3,'Utility Functions'!$Z$4,'Utility Functions'!$Z$5,'Utility Functions'!$Z$6)","v":3.7499999999999999E-3},{"$f":"$O$40*valuePL(O23,'Utility Functions'!$AA$3:$AA$5,'Utility Functions'!$AB$3:$AB$5)","v":0.09},{"$f":"$P$40*valuePL(P23,'Utility Functions'!$AC$3:$AC$7,'Utility Functions'!$AD$3:$AD$7)","v":0.04},{"$f":"$Q$40*valuePL(Q23,'Utility Functions'!$AE$3:$AE$6,'Utility Functions'!$AF$3:$AF$6)","v":0.02},{"$f":"$R$40*valuePL(R23,'Utility Functions'!$AG$3:$AG$6,'Utility Functions'!$AH$3:$AH$6)","v":4.0000000000000008E-2},{"$f":"$S$40*valuePL(S23,'Utility Functions'!$AI$3:$AI$6,'Utility Functions'!$AJ$3:$AJ$6)","v":0.05},{"$f":"$T$40*valuePL(T23,'Utility Functions'!$AK$3:$AK$8,'Utility Functions'!$AL$3:$AL$8)","v":0.03},{"$f":"$U$40*valuePL(U23,'Utility Functions'!$AM$3:$AM$5,'Utility Functions'!$AN$3:$AN$5)","v":0},{"$f":"$V$40*valuePL(V23,'Utility Functions'!$AO$3:$AO$5,'Utility Functions'!$AP$3:$AP$5)","v":2.5000000000000001E-2},{"$f":"$W$40*valuePL(W23,'Utility Functions'!$AQ$3:$AQ$6,'Utility Functions'!$AR$3:$AR$6)","v":0.03},{"$f":"$X$40*valuePL(X23,'Utility Functions'!$AS$3:$AS$6,'Utility Functions'!$AT$3:$AT$6)","v":8.0000000000000002E-3},{"$f":"$Y$40*valuePL(Y23,'Utility Functions'!$AU$3:$AU$6,'Utility Functions'!$AV$3:$AV$6)","v":0},{"$f":"$Z$40*valuePL(Z23,'Utility Functions'!$AW$3:$AW$5,'Utility Functions'!$AX$3:$AX$5)","v":0.05},{"$f":"$AA$40*valuePL(AA23,'Utility Functions'!$AY$3:$AY$6,'Utility Functions'!$AZ$3:$AZ$6)","v":8.0000000000000002E-3},{"$f":"$AB$40*valuePL(AB23,'Utility Functions'!$BA$3:$BA$5,'Utility Functions'!$BB$3:$BB$5)","v":0.04},{"$f":"$AC$40*valuePL(AC23,'Utility Functions'!$BC$3:$BC$5,'Utility Functions'!$BD$3:$BD$5)","v":7.4999999999999997E-3},0.44445113851992418]
[23,{"$f":"$B$40*(valueE(B24,'Utility Functions'!$B$3,'Utility Functions'!$B$4,'Utility Functions'!$B$5,'Utility Functions'!$B$6))","v":2.5041071294184137E-2},{"$f":"$C$40*(valueE(C24,'Utility Functions'!$D$3,'Utility Functions'!$D$4,'Utility Functions'!$D$5,'Utility Functions'!$D$6))","v":2.542345105018548E-2},{"$f":"$D$40*(valuePL(D24,'Utility Functions'!$E$3:$E$5,'Utility Functions'!$F$3:$F$5))","v":0.03},{"$f":"$E$40*(valuePL(E24,'Utility Functions'!$G$3:$G$5,'Utility Functions'!$H$3:$H$5))","v":0},{"$f":"$F$40*(valuePL(F24,'Utility Functions'!$I$3:$I$4,'Utility Functions'!$J$3:$J$5))","v":0},{"$f":"$G$40*(valueE(G24,'Utility Functions'!$L$3,'Utility Functions'!$L$4,'Utility Functions'!$L$5,'Utility Functions'!$L$6))","v":0},{"$f":"$H$40*(valueE(H24,'Utility Functions'!$N$3,'Utility Functions'!$N$4,'Utility Functions'!$N$5,'Utility Functions'!$N$6))","v":0},{"$f":"$I$40*valuePL(I24,'Utility Functions'!$O$3:$O$6,'Utility Functions'!$P$3:$P$6)","v":0},{"$f":"$J$40*valuePL(J24,'Utility Functions'!$Q$3:$Q$6,'Utility Functions'!$R$3:$R$6)","v":0},{"$f":"$K$40*(valuePL(K24,'Utility Functions'!$S$3:$S$7,'Utility Functions'!$T$3:$T$7))","v":0},{"$f":"$L$40*(valueE(L24,'Utility Functions'!$V$3,'Utility Functions'!$V$4,'Utility Functions'!$V$5,'Utility Functions'!$V$6))","v":0},{"$f":"$M$40*valuePL(M24,'Utility Functions'!$W$3:$W$6,'Utility Functions'!$X$3:$X$6)","v":0},{"$f":"$N$40*valueE(N24,'Utility Functions'!$Z$3,'Utility Functions'!$Z$4,'Utility Functions'!$Z$5,'Utility Functions'!$Z$6)","v":0},{"$f":"$O$40*valuePL(O24,'Utility Functions'!$AA$3:$AA$5,'Utility Functions'!$AB$3:$AB$5)","v":0},{"$f":"$P$40*valuePL(P24,'Utility Functions'!$AC$3:$AC$7,'Utility Functions'!$AD$3:$AD$7)","v":0.03},{"$f":"$Q$40*valuePL(Q24,'Utility Functions'!$AE$3:$AE$6,'Utility Functions'!$AF$3:$AF$6)","v":0},{"$f":"$R$40*valuePL(R24,'Utility Functions'!$AG$3:$AG$6,'Utility Functions'!$AH$3:$AH$6)","v":0.05},{"$f":"$S$40*valuePL(S24,'Utility Functions'!$AI$3:$AI$6,'Utility Functions'!$AJ$3:$AJ$6)","v":0.05},{"$f":"$T$40*valuePL(T24,'Utility Functions'!$AK$3:$AK$8,'Utility Functions'!$AL$3:$AL$8)","v":0.03},{"$f":"$U$40*valuePL(U24,'Utility Functions'!$AM$3:$AM$5,'Utility Functions'!$AN$3:$AN$5)","v":0},{"$f":"$V$40*valuePL(V24,'Utility Functions'!$AO$3:$AO$5,'Utility Functions'!$AP$3:$AP$5)","v":0.05},{"$f":"$W$40*valuePL(W24,'Utility Functions'!$AQ$3:$AQ$6,'Utility Functions'!$AR$3:$AR$6)","v":8.0000000000000002E-3},{"$f":"$X$40*valuePL(X24,'Utility Functions'!$AS$3:$AS$6,'Utility Functions'!$AT$3:$AT$6)","v":0.03},{"$f":"$Y$40*valuePL(Y24,'Utility Functions'!$AU$3:$AU$6,'Utility Functions'!$AV$3:$AV$6)","v":1.0000000000000002E-2},{"$f":"$Z$40*valuePL(Z24,'Utility Functions'!$AW$3:$AW$5,'Utility Functions'!$AX$3:$AX$5)","v":2.5000000000000001E-2},{"$f":"$AA$40*valuePL(AA24,'Utility Functions'!$AY$3:$AY$6,'Utility Functions'!$AZ$3:$AZ$6)","v":8.0000000000000002E-3},{"$f":"$AB$40*valuePL(AB24,'Utility Functions'!$BA$3:$BA$5,'Utility Functions'!$BB$3:$BB$5)","v":0},{"$f":"$AC$40*valuePL(AC24,'Utility Functions'!$BC$3:$BC$5,'Utility Functions'!$BD$3:$BD$5)","v":7.4999999999999997E-3},0.37896452234436967]
[24,{"$f":"$B$40*(valueE(B25,'Utility Functions'!$B$3,'Utility Functions'!$B$4,'Utility Functions'!$B$5,'Utility Functions'!$B$6))","v":1.896364549751255E-2},{"$f":"$C$40*(valueE(C25,'Utility Functions'!$D$3,'Utility Functions'!$D$4,'Utility Functions'!$D$5,'Utility Functions'!$D$6))","v":1.3942790146123618E-2},{"$f":"$D$40*(valuePL(D25,'Utility Functions'!$E$3:$E$5,'Utility Functions'!$F$3:$F$5))","v":0.03},{"$f":"$E$40*(valuePL(E25,'Utility Functions'!$G$3:$G$5,'Utility Functions'!$H$3:$H$5))","v":0},{"$f":"$F$40*(valuePL(F25,'Utility Functions'!$I$3:$I$4,'Utility Functions'!$J$3:$J$5))","v":0},{"$f":"$G$40*(valueE(G25,'Utility Functions'!$L$3,'Utility Functions'!$L$4,'Utility Functions'!$L$5,'Utility Functions'!$L$6))","v":0},{"$f":"$H$40*(valueE(H25,'Utility Functions'!$N$3,'Utility Functions'!$N$4,'Utility Functions'!$N$5,'Utility Functions'!$N$6))","v":0},{"$f":"$I$40*valuePL(I25,'Utility Functions'!$O$3:$O$6,'Utility Functions'!$P$3:$P$6)","v":0},{"$f":"$J$40*valuePL(J25,'Utility Functions'!$Q$3:$Q$6,'Utility Functions'!$R$3:$R$6)","v":0},{"$f":"$K$40*(valuePL(K25,'Utility Functions'!$S$3:$S$7,'Utility Functions'!$T$3:$T$7))","v":0},{"$f":"$L$40*(valueE(L25,'Utility Functions'!$V$3,'Utility Functions'!$V$4,'Utility Functions'!$V$5,'Utility Functions'!$V$6))","v":0},{"$f":"$M$40*valuePL(M25,'Utility Functions'!$W$3:$W$6,'Utility Functions'!$X$3:$X$6)","v":0},{"$f":"$N$40*valueE(N25,'Utility Functions'!$Z$3,'Utility Functions'!$Z$4,'Utility Functions'!$Z$5,'Utility Functions'!$Z$6)","v":0},{"$f":"$O$40*valuePL(O25,'Utility Functions'!$AA$3:$AA$5,'Utility Functions'!$AB$3:$AB$5)","v":0},{"$f":"$P$40*valuePL(P25,'Utility Functions'!$AC$3:$AC$7,'Utility Functions'!$AD$3:$AD$7)","v":0},{"$f":"$Q$40*valuePL(Q25,'Utility Functions'!$AE$3:$AE$6,'Utility Functions'!$AF$3:$AF$6)","v":0},{"$f":"$R$40*valuePL(R25,'Utility Functions'!$AG$3:$AG$6,'Utility Functions'!$AH$3:$AH$6)","v":0.05},{"$f":"$S$40*valuePL(S25,'Utility Functions'!$AI$3:$AI$6,'Utility Functions'!$AJ$3:$AJ$6)","v":0.05},{"$f":"$T$40*valuePL(T25,'Utility Functions'!$AK$3:$AK$8,'Utility Functions'!$AL$3:$AL$8)","v":0.03},{"$f":"$U$40*valuePL(U25,'Utility Functions'!$AM$3:$AM$5,'Utility Functions'!$AN$3:$AN$5)","v":0},{"$f":"$V$40*valuePL(V25,'Utility Functions'!$AO$3:$AO$5,'Utility Functions'!$AP$3:$AP$5)","v":0},{"$f":"$W$40*valuePL(W25,'Utility Functions'!$AQ$3:$AQ$6,'Utility Functions'!$AR$3:$AR$6)","v":0.04},{"$f":"$X$40*valuePL(X25,'Utility Functions'!$AS$3:$AS$6,'Utility Functions'!$AT$3:$AT$6)","v":8.0000000000000002E-3},{"$f":"$Y$40*valuePL(Y25,'Utility Functions'!$AU$3:$AU$6,'Utility Functions'!$AV$3:$AV$6)","v":0.05},{"$f":"$Z$40*valuePL(Z25,'Utility Functions'!$AW$3:$AW$5,'Utility Functions'!$AX$3:$AX$5)","v":0.05},{"$f":"$AA$40*valuePL(AA25,'Utility Functions'!$AY$3:$AY$6,'Utility Functions'!$AZ$3:$AZ$6)","v":8.0000000000000002E-3},{"$f":"$AB$40*valuePL(AB25,'Utility Functions'!$BA$3:$BA$5,'Utility Functions'!$BB$3:$BB$5)","v":0},{"$f":"$AC$40*valuePL(AC25,'Utility Functions'!$BC$3:$BC$5,'Utility Functions'!$BD$3:$BD$5)","v":0.03},0.37890643564363613]
[25,{"$f":"$B$40*(valueE(B26,'Utility Functions'!$B$3,'Utility Functions'!$B$4,'Utility Functions'!$B$5,'Utility Functions'!$B$6))","v":2.5041071294184137E-2},{"$f":"$C$40*(valueE(C26,'Utility Functions'!$D$3,'Utility Functions'!$D$4,'Utility Functions'!$D$5,'Utility Functions'!$D$6))","v":2.542345105018548E-2},{"$f":"$D$40*(valuePL(D26,'Utility Functions'!$E$3:$E$5,'Utility Functions'!$F$3:$F$5))","v":0.03},{"$f":"$E$40*(valuePL(E26,'Utility Functions'!$G$3:$G$5,'Utility Functions'!$H$3:$H$5))","v":0},{"$f":"$F$40*(valuePL(F26,'Utility Functions'!$I$3:$I$4,'Utility Functions'!$J$3:$J$5))","v":0},{"$f":"$G$40*(valueE(G26,'Utility Functions'!$L$3,'Utility Functions'!$L$4,'Utility Functions'!$L$5,'Utility Functions'!$L$6))","v":1.4193548387096775E-2},{"$f":"$H$40*(valueE(H26,'Utility Functions'!$N$3,'Utility Functions'!$N$4,'Utility Functions'!$N$5,'Utility Functions'!$N$6))","v":4.383301707779886E-3},{"$f":"$I$40*valuePL(I26,'Utility Functions'!$O$3:$O$6,'Utility Functions'!$P$3:$P$6)","v":0},{"$f":"$J$40*valuePL(J26,'Utility Functions'!$Q$3:$Q$6,'Utility Functions'!$R$3:$R$6)","v":0},{"$f":"$K$40*(valuePL(K26,'Utility Functions'!$S$3:$S$7,'Utility Functions'!$T$3:$T$7))","v":0},{"$f":"$L$40*(valueE(L26,'Utility Functions'!$V$3,'Utility Functions'!$V$4,'Utility Functions'!$V$5,'Utility Functions'!$V$6))","v":0},{"$f":"$M$40*valuePL(M26,'Utility Functions'!$W$3:$W$6,'Utility Functions'!$X$3:$X$6)","v":0},{"$f":"$N$40*valueE(N26,'Utility Functions'!$Z$3,'Utility Functions'!$Z$4,'Utility Functions'!$Z$5,'Utility Functions'!$Z$6)","v":0.03},{"$f":"$O$40*valuePL(O26,'Utility Functions'!$AA$3:$AA$5,'Utility Functions'!$AB$3:$AB$5)","v":2.2499999999999999E-2},{"$f":"$P$40*valuePL(P26,'Utility Functions'!$AC$3:$AC$7,'Utility Functions'!$AD$3:$AD$7)","v":0.02},{"$f":"$Q$40*valuePL(Q26,'Utility Functions'!$AE$3:$AE$6,'Utility Functions'!$AF$3:$AF$6)","v":0.02},{"$f":"$R$40*valuePL(R26,'Utility Functions'!$AG$3:$AG$6,'Utility Functions'!$AH$3:$AH$6)","v":0.05},{"$f":"$S$40*valuePL(S26,'Utility Functions'!$AI$3:$AI$6,'Utility Functions'!$AJ$3:$AJ$6)","v":0.05},{"$f":"$T$40*valuePL(T26,'Utility Functions'!$AK$3:$AK$8,'Utility Functions'!$AL$3:$AL$8)","v":0},{"$f":"$U$40*valuePL(U26,'Utility Functions'!$AM$3:$AM$5,'Utility Functions'!$AN$3:$AN$5)","v":0},{"$f":"$V$40*valuePL(V26,'Utility Functions'!$AO$3:$AO$5,'Utility Functions'!$AP$3:$AP$5)","v":0.05},{"$f":"$W$40*valuePL(W26,'Utility Functions'!$AQ$3:$AQ$6,'Utility Functions'!$AR$3:$AR$6)","v":8.0000000000000002E-3},{"$f":"$X$40*valuePL(X26,'Utility Functions'!$AS$3:$AS$6,'Utility Functions'!$AT$3:$AT$6)","v":0.04},{"$f":"$Y$40*valuePL(Y26,'Utility Functions'!$AU$3:$AU$6,'Utility Functions'!$AV$3:$AV$6)","v":4.0000000000000008E-2},{"$f":"$Z$40*valuePL(Z26,'Utility Functions'!$AW$3:$AW$5,'Utility Functions'!$AX$3:$AX$5)","v":2.5000000000000001E-2},{"$f":"$AA$40*valuePL(AA26,'Utility Functions'!$AY$3:$AY$6,'Utility Functions'!$AZ$3:$AZ$6)","v":8.0000000000000002E-3},{"$f":"$AB$40*valuePL(AB26,'Utility Functions'!$BA$3:$BA$5,'Utility Functions'!$BB$3:$BB$5)","v":0.04},{"$f":"$AC$40*valuePL(AC26,'Utility Functions'!$BC$3:$BC$5,'Utility Functions'!$BD$3:$BD$5)","v":0.03},0.53254137243924626]
[26,{"$f":"$B$40*(valueE(B27,'Utility Functions'!$B$3,'Utility Functions'!$B$4,'Utility Functions'!$B$5,'Utility Functions'!$B$6))","v":2.8998845838620748E-2},{"$f":"$C$40*(valueE(C27,'Utility Functions'!$D$3,'Utility Functions'!$D$4,'Utility Functions'!$D$5,'Utility Functions'!$D$6))","v":2.542345105018548E-2},{"$f":"$D$40*(valuePL(D27,'Utility Functions'!$E$3:$E$5,'Utility Functions'!$F$3:$F$5))","v":0.03},{"$f":"$E$40*(valuePL(E27,'Utility Functions'!$G$3:$G$5,'Utility Functions'!$H$3:$H$5))","v":1.4999999999999999E-2},{"$f":"$F$40*(valuePL(F27,'Utility Functions'!$I$3:$I$4,'Utility Functions'!$J$3:$J$5))","v":0},{"$f":"$G$40*(valueE(G27,'Utility Functions'!$L$3,'Utility Functions'!$L$4,'Utility Functions'!$L$5,'Utility Functions'!$L$6))","v":0},{"$f":"$H$40*(valueE(H27,'Utility Functions'!$N$3,'Utility Functions'!$N$4,'Utility Functions'!$N$5,'Utility Functions'!$N$6))","v":0},{"$f":"$I$40*valuePL(I27,'Utility Functions'!$O$3:$O$6,'Utility Functions'!$P$3:$P$6)","v":0},{"$f":"$J$40*valuePL(J27,'Utility Functions'!$Q$3:$Q$6,'Utility Functions'!$R$3:$R$6)","v":0},{"$f":"$K$40*(valuePL(K27,'Utility Functions'!$S$3:$S$7,'Utility Functions'!$T$3:$T$7))","v":0},{"$f":"$L$40*(valueE(L27,'Utility Functions'!$V$3,'Utility Functions'!$V$4,'Utility Functions'!$V$5,'Utility Functions'!$V$6))","v":0},{"$f":"$M$40*valuePL(M27,'Utility Functions'!$W$3:$W$6,'Utility Functions'!$X$3:$X$6)","v":0},{"$f":"$N$40*valueE(N27,'Utility Functions'!$Z$3,'Utility Functions'!$Z$4,'Utility Functions'!$Z$5,'Utility Functions'!$Z$6)","v":0},{"$f":"$O$40*valuePL(O27,'Utility Functions'!$AA$3:$AA$5,'Utility Functions'!$AB$3:$AB$5)","v":0},{"$f":"$P$40*valuePL(P27,'Utility Functions'!$AC$3:$AC$7,'Utility Functions'!$AD$3:$AD$7)","v":0.03},{"$f":"$Q$40*valuePL(Q27,'Utility Functions'!$AE$3:$AE$6,'Utility Functions'!$AF$3:$AF$6)","v":0},{"$f":"$R$40*valuePL(R27,'Utility Functions'!$AG$3:$AG$6,'Utility Functions'!$AH$3:$AH$6)","v":0.05},{"$f":"$S$40*valuePL(S27,'Utility Functions'!$AI$3:$AI$6,'Utility Functions'!$AJ$3:$AJ$6)","v":0.05},{"$f":"$T$40*valuePL(T27,'Utility Functions'!$AK$3:$AK$8,'Utility Functions'!$AL$3:$AL$8)","v":2.4E-2},{"$f":"$U$40*valuePL(U27,'Utility Functions'!$AM$3:$AM$5,'Utility Functions'!$AN$3:$AN$5)","v":0},{"$f":"$V$40*valuePL(V27,'Utility Functions'!$AO$3:$AO$5,'Utility Functions'!$AP$3:$AP$5)","v":0.05},{"$f":"$W$40*valuePL(W27,'Utility Functions'!$AQ$3:$AQ$6,'Utility Functions'!$AR$3:$AR$6)","v":8.0000000000000002E-3},{"$f":"$X$40*valuePL(X27,'Utility Functions'!$AS$3:$AS$6,'Utility Functions'!$AT$3:$AT$6)","v":0},{"$f":"$Y$40*valuePL(Y27,'Utility Functions'!$AU$3:$AU$6,'Utility Functions'!$AV$3:$AV$6)","v":4.0000000000000008E-2},{"$f":"$Z$40*valuePL(Z27,'Utility Functions'!$AW$3:$AW$5,'Utility Functions'!$AX$3:$AX$5)","v":0},{"$f":"$AA$40*valuePL(AA27,'Utility Functions'!$AY$3:$AY$6,'Utility Functions'!$AZ$3:$AZ$6)","v":8.0000000000000002E-3},{"$f":"$AB$40*valuePL(AB27,'Utility Functions'!$BA$3:$BA$5,'Utility Functions'!$BB$3:$BB$5)","v":0.04},{"$f":"$AC$40*valuePL(AC27,'Utility Functions'!$BC$3:$BC$5,'Utility Functions'!$BD$3:$BD$5)","v":0.03},0.42942229688880618]
[27,{"$f":"$B$40*(valueE(B28,'Utility Functions'!$B$3,'Utility Functions'!$B$4,'Utility Functions'!$B$5,'Utility Functions'!$B$6))","v":0},{"$f":"$C$40*(valueE(C28,'Utility Functions'!$D$3,'Utility Functions'!$D$4,'Utility Functions'!$D$5,'Utility Functions'!$D$6))","v":1.3942790146123618E-2},{"$f":"$D$40*(valuePL(D28,'Utility Functions'!$E$3:$E$5,'Utility Functions'!$F$3:$F$5))","v":0.03},{"$f":"$E$40*(valuePL(E28,'Utility Functions'!$G$3:$G$5,'Utility Functions'!$H$3:$H$5))","v":0},{"$f":"$F$40*(valuePL(F28,'Utility Functions'!$I$3:$I$4,'Utility Functions'!$J$3:$J$5))","v":0},{"$f":"$G$40*(valueE(G28,'Utility Functions'!$L$3,'Utility Functions'!$L$4,'Utility Functions'!$L$5,'Utility Functions'!$L$6))","v":0},{"$f":"$H$40*(valueE(H28,'Utility Functions'!$N$3,'Utility Functions'!$N$4,'Utility Functions'!$N$5,'Utility Functions'!$N$6))","v":0},{"$f":"$I$40*valuePL(I28,'Utility Functions'!$O$3:$O$6,'Utility Functions'!$P$3:$P$6)","v":0},{"$f":"$J$40*valuePL(J28,'Utility Functions'!$Q$3:$Q$6,'Utility Functions'!$R$3:$R$6)","v":0},{"$f":"$K$40*(valuePL(K28,'Utility Functions'!$S$3:$S$7,'Utility Functions'!$T$3:$T$7))","v":0.02},{"$f":"$L$40*(valueE(L28,'Utility Functions'!$V$3,'Utility Functions'!$V$4,'Utility Functions'!$V$5,'Utility Functions'!$V$6))","v":0},{"$f":"$M$40*valuePL(M28,'Utility Functions'!$W$3:$W$6,'Utility Functions'!$X$3:$X$6)","v":2E-3},{"$f":"$N$40*valueE(N28,'Utility Functions'!$Z$3,'Utility Functions'!$Z$4,'Utility Functions'!$Z$5,'Utility Functions'!$Z$6)","v":0},{"$f":"$O$40*valuePL(O28,'Utility Functions'!$AA$3:$AA$5,'Utility Functions'!$AB$3:$AB$5)","v":0},{"$f":"$P$40*valuePL(P28,'Utility Functions'!$AC$3:$AC$7,'Utility Functions'!$AD$3:$AD$7)","v":0.02},{"$f":"$Q$40*valuePL(Q28,'Utility Functions'!$AE$3:$AE$6,'Utility Functions'!$AF$3:$AF$6)","v":0.02},{"$f":"$R$40*valuePL(R28,'Utility Functions'!$AG$3:$AG$6,'Utility Functions'!$AH$3:$AH$6)","v":0.05},{"$f":"$S$40*valuePL(S28,'Utility Functions'!$AI$3:$AI$6,'Utility Functions'!$AJ$3:$AJ$6)","v":0.05},{"$f":"$T$40*valuePL(T28,'Utility Functions'!$AK$3:$AK$8,'Utility Functions'!$AL$3:$AL$8)","v":0.03},{"$f":"$U$40*valuePL(U28,'Utility Functions'!$AM$3:$AM$5,'Utility Functions'!$AN$3:$AN$5)","v":0},{"$f":"$V$40*valuePL(V28,'Utility Functions'!$AO$3:$AO$5,'Utility Functions'!$AP$3:$AP$5)","v":2.5000000000000001E-2},{"$f":"$W$40*valuePL(W28,'Utility Functions'!$AQ$3:$AQ$6,'Utility Functions'!$AR$3:$AR$6)","v":0.03},{"$f":"$X$40*valuePL(X28,'Utility Functions'!$AS$3:$AS$6,'Utility Functions'!$AT$3:$AT$6)","v":0.04},{"$f":"$Y$40*valuePL(Y28,'Utility Functions'!$AU$3:$AU$6,'Utility Functions'!$AV$3:$AV$6)","v":1.0000000000000002E-2},{"$f":"$Z$40*valuePL(Z28,'Utility Functions'!$AW$3:$AW$5,'Utility Functions'!$AX$3:$AX$5)","v":0},{"$f":"$AA$40*valuePL(AA28,'Utility Functions'!$AY$3:$AY$6,'Utility Functions'!$AZ$3:$AZ$6)","v":0},{"$f":"$AB$40*valuePL(AB28,'Utility Functions'!$BA$3:$BA$5,'Utility Functions'!$BB$3:$BB$5)","v":0},{"$f":"$AC$40*valuePL(AC28,'Utility Functions'!$BC$3:$BC$5,'Utility Functions'!$BD$3:$BD$5)","v":0},0.34094279014612355]
[{"$f":"A29","v":28},{"$f":"$B$40*(valueE(B29,'Utility Functions'!$B$3,'Utility Functions'!$B$4,'Utility Functions'!$B$5,'Utility Functions'!$B$6))","v":1.3535671425672068E-2},{"$f":"$C$40*(valueE(C29,'Utility Functions'!$D$3,'Utility Functions'!$D$4,'Utility Functions'!$D$5,'Utility Functions'!$D$6))","v":1.3942790146123618E-2},{"$f":"$D$40*(valuePL(D29,'Utility Functions'!$E$3:$E$5,'Utility Functions'!$F$3:$F$5))","v":0.03},{"$f":"$E$40*(valuePL(E29,'Utility Functions'!$G$3:$G$5,'Utility Functions'!$H$3:$H$5))","v":0},{"$f":"$F$40*(valuePL(F29,'Utility Functions'!$I$3:$I$4,'Utility Functions'!$J$3:$J$5))","v":0.04},{"$f":"$G$40*(valueE(G29,'Utility Functions'!$L$3,'Utility Functions'!$L$4,'Utility Functions'!$L$5,'Utility Functions'!$L$6))","v":0},{"$f":"$H$40*(valueE(H29,'Utility Functions'!$N$3,'Utility Functions'!$N$4,'Utility Functions'!$N$5,'Utility Functions'!$N$6))","v":0},{"$f":"$I$40*valuePL(I29,'Utility Functions'!$O$3:$O$6,'Utility Functions'!$P$3:$P$6)","v":0},{"$f":"$J$40*valuePL(J29,'Utility Functions'!$Q$3:$Q$6,'Utility Functions'!$R$3:$R$6)","v":0},{"$f":"$K$40*(valuePL(K29,'Utility Functions'!$S$3:$S$7,'Utility Functions'!$T$3:$T$7))","v":0},{"$f":"$L$40*(valueE(L29,'Utility Functions'!$V$3,'Utility Functions'!$V$4,'Utility Functions'!$V$5,'Utility Functions'!$V$6))","v":6.6666666666666662E-3},{"$f":"$M$40*valuePL(M29,'Utility Functions'!$W$3:$W$6,'Utility Functions'!$X$3:$X$6)","v":2E-3},{"$f":"$N$40*valueE(N29,'Utility Functions'!$Z$3,'Utility Functions'!$Z$4,'Utility Functions'!$Z$5,'Utility Functions'!$Z$6)","v":0},{"$f":"$O$40*valuePL(O29,'Utility Functions'!$AA$3:$AA$5,'Utility Functions'!$AB$3:$AB$5)","v":0},{"$f":"$P$40*valuePL(P29,'Utility Functions'!$AC$3:$AC$7,'Utility Functions'!$AD$3:$AD$7)","v":0.04},{"$f":"$Q$40*valuePL(Q29,'Utility Functions'!$AE$3:$AE$6,'Utility Functions'!$AF$3:$AF$6)","v":0},{"$f":"$R$40*valuePL(R29,'Utility Functions'!$AG$3:$AG$6,'Utility Functions'!$AH$3:$AH$6)","v":0.05},{"$f":"$S$40*valuePL(S29,'Utility Functions'!$AI$3:$AI$6,'Utility Functions'!$AJ$3:$AJ$6)","v":0.05},{"$f":"$T$40*valuePL(T29,'Utility Functions'!$AK$3:$AK$8,'Utility Functions'!$AL$3:$AL$8)","v":2.4E-2},{"$f":"$U$40*valuePL(U29,'Utility Functions'!$AM$3:$AM$5,'Utility Functions'!$AN$3:$AN$5)","v":0},{"$f":"$V$40*valuePL(V29,'Utility Functions'!$AO$3:$AO$5,'Utility Functions'!$AP$3:$AP$5)","v":0.05},{"$f":"$W$40*valuePL(W29,'Utility Functions'!$AQ$3:$AQ$6,'Utility Functions'!$AR$3:$AR$6)","v":0.04},{"$f":"$X$40*valuePL(X29,'Utility Functions'!$AS$3:$AS$6,'Utility Functions'!$AT$3:$AT$6)","v":0.04},{"$f":"$Y$40*valuePL(Y29,'Utility Functions'!$AU$3:$AU$6,'Utility Functions'!$AV$3:$AV$6)","v":1.0000000000000002E-2},{"$f":"$Z$40*valuePL(Z29,'Utility Functions'!$AW$3:$AW$5,'Utility Functions'!$AX$3:$AX$5)","v":0},{"$f":"$AA$40*valuePL(AA29,'Utility Functions'!$AY$3:$AY$6,'Utility Functions'!$AZ$3:$AZ$6)","v":3.5999999999999997E-2},{"$f":"$AB$40*valuePL(AB29,'Utility Functions'!$BA$3:$BA$5,'Utility Functions'!$BB$3:$BB$5)","v":0.04},{"$f":"$AC$40*valuePL(AC29,'Utility Functions'!$BC$3:$BC$5,'Utility Functions'!$BD$3:$BD$5)","v":7.4999999999999997E-3},0.49364512823846229]
[29,{"$f":"$B$40*(valueE(B30,'Utility Functions'!$B$3,'Utility Functions'!$B$4,'Utility Functions'!$B$5,'Utility Functions'!$B$6))","v":2.5041071294184137E-2},{"$f":"$C$40*(valueE(C30,'Utility Functions'!$D$3,'Utility Functions'!$D$4,'Utility Functions'!$D$5,'Utility Functions'!$D$6))","v":2.1405827917278249E-2},{"$f":"$D$40*(valuePL(D30,'Utility Functions'!$E$3:$E$5,'Utility Functions'!$F$3:$F$5))","v":0.03},{"$f":"$E$40*(valuePL(E30,'Utility Functions'!$G$3:$G$5,'Utility Functions'!$H$3:$H$5))","v":1.4999999999999999E-2},{"$f":"$F$40*(valuePL(F30,'Utility Functions'!$I$3:$I$4,'Utility Functions'!$J$3:$J$5))","v":0},{"$f":"$G$40*(valueE(G30,'Utility Functions'!$L$3,'Utility Functions'!$L$4,'Utility Functions'!$L$5,'Utility Functions'!$L$6))","v":0},{"$f":"$H$40*(valueE(H30,'Utility Functions'!$N$3,'Utility Functions'!$N$4,'Utility Functions'!$N$5,'Utility Functions'!$N$6))","v":0},{"$f":"$I$40*valuePL(I30,'Utility Functions'!$O$3:$O$6,'Utility Functions'!$P$3:$P$6)","v":1.8E-3},{"$f":"$J$40*valuePL(J30,'Utility Functions'!$Q$3:$Q$6,'Utility Functions'!$R$3:$R$6)","v":1.3454545454545455E-2},{"$f":"$K$40*(valuePL(K30,'Utility Functions'!$S$3:$S$7,'Utility Functions'!$T$3:$T$7))","v":0},{"$f":"$L$40*(valueE(L30,'Utility Functions'!$V$3,'Utility Functions'!$V$4,'Utility Functions'!$V$5,'Utility Functions'!$V$6))","v":0.02},{"$f":"$M$40*valuePL(M30,'Utility Functions'!$W$3:$W$6,'Utility Functions'!$X$3:$X$6)","v":1.3454545454545455E-2},{"$f":"$N$40*valueE(N30,'Utility Functions'!$Z$3,'Utility Functions'!$Z$4,'Utility Functions'!$Z$5,'Utility Functions'!$Z$6)","v":0},{"$f":"$O$40*valuePL(O30,'Utility Functions'!$AA$3:$AA$5,'Utility Functions'!$AB$3:$AB$5)","v":0},{"$f":"$P$40*valuePL(P30,'Utility Functions'!$AC$3:$AC$7,'Utility Functions'!$AD$3:$AD$7)","v":0.01},{"$f":"$Q$40*valuePL(Q30,'Utility Functions'!$AE$3:$AE$6,'Utility Functions'!$AF$3:$AF$6)","v":0},{"$f":"$R$40*valuePL(R30,'Utility Functions'!$AG$3:$AG$6,'Utility Functions'!$AH$3:$AH$6)","v":0.05},{"$f":"$S$40*valuePL(S30,'Utility Functions'!$AI$3:$AI$6,'Utility Functions'!$AJ$3:$AJ$6)","v":0.05},{"$f":"$T$40*valuePL(T30,'Utility Functions'!$AK$3:$AK$8,'Utility Functions'!$AL$3:$AL$8)","v":2.4E-2},{"$f":"$U$40*valuePL(U30,'Utility Functions'!$AM$3:$AM$5,'Utility Functions'!$AN$3:$AN$5)","v":0},{"$f":"$V$40*valuePL(V30,'Utility Functions'!$AO$3:$AO$5,'Utility Functions'!$AP$3:$AP$5)","v":0.05},{"$f":"$W$40*valuePL(W30,'Utility Functions'!$AQ$3:$AQ$6,'Utility Functions'!$AR$3:$AR$6)","v":8.0000000000000002E-3},{"$f":"$X$40*valuePL(X30,'Utility Functions'!$AS$3:$AS$6,'Utility Functions'!$AT$3:$AT$6)","v":0},{"$f":"$Y$40*valuePL(Y30,'Utility Functions'!$AU$3:$AU$6,'Utility Functions'!$AV$3:$AV$6)","v":4.0000000000000008E-2},{"$f":"$Z$40*valuePL(Z30,'Utility Functions'!$AW$3:$AW$5,'Utility Functions'!$AX$3:$AX$5)","v":2.5000000000000001E-2},{"$f":"$AA$40*valuePL(AA30,'Utility Functions'!$AY$3:$AY$6,'Utility Functions'!$AZ$3:$AZ$6)","v":8.0000000000000002E-3},{"$f":"$AB$40*valuePL(AB30,'Utility Functions'!$BA$3:$BA$5,'Utility Functions'!$BB$3:$BB$5)","v":0.01},{"$f":"$AC$40*valuePL(AC30,'Utility Functions'!$BC$3:$BC$5,'Utility Functions'!$BD$3:$BD$5)","v":0.03},0.4451559901205534]
[30,{"$f":"$B$40*(valueE(B31,'Utility Functions'!$B$3,'Utility Functions'!$B$4,'Utility Functions'!$B$5,'Utility Functions'!$B$6))","v":2.9959234351431094E-2},{"$f":"$C$40*(valueE(C31,'Utility Functions'!$D$3,'Utility Functions'!$D$4,'Utility Functions'!$D$5,'Utility Functions'!$D$6))","v":2.542345105018548E-2},{"$f":"$D$40*(valuePL(D31,'Utility Functions'!$E$3:$E$5,'Utility Functions'!$F$3:$F$5))","v":0.03},{"$f":"$E$40*(valuePL(E31,'Utility Functions'!$G$3:$G$5,'Utility Functions'!$H$3:$H$5))","v":0},{"$f":"$F$40*(valuePL(F31,'Utility Functions'!$I$3:$I$4,'Utility Functions'!$J$3:$J$5))","v":0},{"$f":"$G$40*(valueE(G31,'Utility Functions'!$L$3,'Utility Functions'!$L$4,'Utility Functions'!$L$5,'Utility Functions'!$L$6))","v":0},{"$f":"$H$40*(valueE(H31,'Utility Functions'!$N$3,'Utility Functions'!$N$4,'Utility Functions'!$N$5,'Utility Functions'!$N$6))","v":0},{"$f":"$I$40*valuePL(I31,'Utility Functions'!$O$3:$O$6,'Utility Functions'!$P$3:$P$6)","v":0},{"$f":"$J$40*valuePL(J31,'Utility Functions'!$Q$3:$Q$6,'Utility Functions'!$R$3:$R$6)","v":0},{"$f":"$K$40*(valuePL(K31,'Utility Functions'!$S$3:$S$7,'Utility Functions'!$T$3:$T$7))","v":0},{"$f":"$L$40*(valueE(L31,'Utility Functions'!$V$3,'Utility Functions'!$V$4,'Utility Functions'!$V$5,'Utility Functions'!$V$6))","v":6.6666666666666662E-3},{"$f":"$M$40*valuePL(M31,'Utility Functions'!$W$3:$W$6,'Utility Functions'!$X$3:$X$6)","v":8.0000000000000004E-4},{"$f":"$N$40*valueE(N31,'Utility Functions'!$Z$3,'Utility Functions'!$Z$4,'Utility Functions'!$Z$5,'Utility Functions'!$Z$6)","v":0},{"$f":"$O$40*valuePL(O31,'Utility Functions'!$AA$3:$AA$5,'Utility Functions'!$AB$3:$AB$5)","v":0},{"$f":"$P$40*valuePL(P31,'Utility Functions'!$AC$3:$AC$7,'Utility Functions'!$AD$3:$AD$7)","v":0},{"$f":"$Q$40*valuePL(Q31,'Utility Functions'!$AE$3:$AE$6,'Utility Functions'!$AF$3:$AF$6)","v":0},{"$f":"$R$40*valuePL(R31,'Utility Functions'!$AG$3:$AG$6,'Utility Functions'!$AH$3:$AH$6)","v":1.0000000000000002E-2},{"$f":"$S$40*valuePL(S31,'Utility Functions'!$AI$3:$AI$6,'Utility Functions'!$AJ$3:$AJ$6)","v":1.6500000000000001E-2},{"$f":"$T$40*valuePL(T31,'Utility Functions'!$AK$3:$AK$8,'Utility Functions'!$AL$3:$AL$8)","v":0},{"$f":"$U$40*valuePL(U31,'Utility Functions'!$AM$3:$AM$5,'Utility Functions'!$AN$3:$AN$5)","v":0},{"$f":"$V$40*valuePL(V31,'Utility Functions'!$AO$3:$AO$5,'Utility Functions'!$AP$3:$AP$5)","v":0},{"$f":"$W$40*valuePL(W31,'Utility Functions'!$AQ$3:$AQ$6,'Utility Functions'!$AR$3:$AR$6)","v":0.04},{"$f":"$X$40*valuePL(X31,'Utility Functions'!$AS$3:$AS$6,'Utility Functions'!$AT$3:$AT$6)","v":8.0000000000000002E-3},{"$f":"$Y$40*valuePL(Y31,'Utility Functions'!$AU$3:$AU$6,'Utility Functions'!$AV$3:$AV$6)","v":4.0000000000000008E-2},{"$f":"$Z$40*valuePL(Z31,'Utility Functions'!$AW$3:$AW$5,'Utility Functions'!$AX$3:$AX$5)","v":0},{"$f":"$AA$40*valuePL(AA31,'Utility Functions'!$AY$3:$AY$6,'Utility Functions'!$AZ$3:$AZ$6)","v":3.5999999999999997E-2},{"$f":"$AB$40*valuePL(AB31,'Utility Functions'!$BA$3:$BA$5,'Utility Functions'!$BB$3:$BB$5)","v":0.04},{"$f":"$AC$40*valuePL(AC31,'Utility Functions'!$BC$3:$BC$5,'Utility Functions'!$BD$3:$BD$5)","v":0},0.28334935206828327]
[31,{"$f":"$B$40*(valueE(B32,'Utility Functions'!$B$3,'Utility Functions'!$B$4,'Utility Functions'!$B$5,'Utility Functions'!$B$6))","v":1.6520156106900608E-2},{"$f":"$C$40*(valueE(C32,'Utility Functions'!$D$3,'Utility Functions'!$D$4,'Utility Functions'!$D$5,'Utility Functions'!$D$6))","v":2.542345105018548E-2},{"$f":"$D$40*(valuePL(D32,'Utility Functions'!$E$3:$E$5,'Utility Functions'!$F$3:$F$5))","v":1.4999999999999999E-2},{"$f":"$E$40*(valuePL(E32,'Utility Functions'!$G$3:$G$5,'Utility Functions'!$H$3:$H$5))","v":0},{"$f":"$F$40*(valuePL(F32,'Utility Functions'!$I$3:$I$4,'Utility Functions'!$J$3:$J$5))","v":0},{"$f":"$G$40*(valueE(G32,'Utility Functions'!$L$3,'Utility Functions'!$L$4,'Utility Functions'!$L$5,'Utility Functions'!$L$6))","v":0},{"$f":"$H$40*(valueE(H32,'Utility Functions'!$N$3,'Utility Functions'!$N$4,'Utility Functions'!$N$5,'Utility Functions'!$N$6))","v":0},{"$f":"$I$40*valuePL(I32,'Utility Functions'!$O$3:$O$6,'Utility Functions'!$P$3:$P$6)","v":2.2636363636363635E-2},{"$f":"$J$40*valuePL(J32,'Utility Functions'!$Q$3:$Q$6,'Utility Functions'!$R$3:$R$6)","v":1.6000000000000001E-3},{"$f":"$K$40*(valuePL(K32,'Utility Functions'!$S$3:$S$7,'Utility Functions'!$T$3:$T$7))","v":0},{"$f":"$L$40*(valueE(L32,'Utility Functions'!$V$3,'Utility Functions'!$V$4,'Utility Functions'!$V$5,'Utility Functions'!$V$6))","v":6.6666666666666662E-3},{"$f":"$M$40*valuePL(M32,'Utility Functions'!$W$3:$W$6,'Utility Functions'!$X$3:$X$6)","v":1.6000000000000001E-3},{"$f":"$N$40*valueE(N32,'Utility Functions'!$Z$3,'Utility Functions'!$Z$4,'Utility Functions'!$Z$5,'Utility Functions'!$Z$6)","v":0},{"$f":"$O$40*valuePL(O32,'Utility Functions'!$AA$3:$AA$5,'Utility Functions'!$AB$3:$AB$5)","v":0},{"$f":"$P$40*valuePL(P32,'Utility Functions'!$AC$3:$AC$7,'Utility Functions'!$AD$3:$AD$7)","v":0.02},{"$f":"$Q$40*valuePL(Q32,'Utility Functions'!$AE$3:$AE$6,'Utility Functions'!$AF$3:$AF$6)","v":0},{"$f":"$R$40*valuePL(R32,'Utility Functions'!$AG$3:$AG$6,'Utility Functions'!$AH$3:$AH$6)","v":0.05},{"$f":"$S$40*valuePL(S32,'Utility Functions'!$AI$3:$AI$6,'Utility Functions'!$AJ$3:$AJ$6)","v":3.3000000000000002E-2},{"$f":"$T$40*valuePL(T32,'Utility Functions'!$AK$3:$AK$8,'Utility Functions'!$AL$3:$AL$8)","v":1.7999999999999999E-2},{"$f":"$U$40*valuePL(U32,'Utility Functions'!$AM$3:$AM$5,'Utility Functions'!$AN$3:$AN$5)","v":0},{"$f":"$V$40*valuePL(V32,'Utility Functions'!$AO$3:$AO$5,'Utility Functions'!$AP$3:$AP$5)","v":2.5000000000000001E-2},{"$f":"$W$40*valuePL(W32,'Utility Functions'!$AQ$3:$AQ$6,'Utility Functions'!$AR$3:$AR$6)","v":0},{"$f":"$X$40*valuePL(X32,'Utility Functions'!$AS$3:$AS$6,'Utility Functions'!$AT$3:$AT$6)","v":8.0000000000000002E-3},{"$f":"$Y$40*valuePL(Y32,'Utility Functions'!$AU$3:$AU$6,'Utility Functions'!$AV$3:$AV$6)","v":1.0000000000000002E-2},{"$f":"$Z$40*valuePL(Z32,'Utility Functions'!$AW$3:$AW$5,'Utility Functions'!$AX$3:$AX$5)","v":0.05},{"$f":"$AA$40*valuePL(AA32,'Utility Functions'!$AY$3:$AY$6,'Utility Functions'!$AZ$3:$AZ$6)","v":3.5999999999999997E-2},{"$f":"$AB$40*valuePL(AB32,'Utility Functions'!$BA$3:$BA$5,'Utility Functions'!$BB$3:$BB$5)","v":0.01},{"$f":"$AC$40*valuePL(AC32,'Utility Functions'!$BC$3:$BC$5,'Utility Functions'!$BD$3:$BD$5)","v":7.4999999999999997E-3},0.35694663746011634]
[{"$f":"A33","v":32},{"$f":"$B$40*(valueE(B33,'Utility Functions'!$B$3,'Utility Functions'!$B$4,'Utility Functions'!$B$5,'Utility Functions'!$B$6))","v":1.896364549751255E-2},{"$f":"$C$40*(valueE(C33,'Utility Functions'!$D$3,'Utility Functions'!$D$4,'Utility Functions'!$D$5,'Utility Functions'!$D$6))","v":8.0518966871447988E-3},{"$f":"$D$40*(valuePL(D33,'Utility Functions'!$E$3:$E$5,'Utility Functions'!$F$3:$F$5))","v":0.03},{"$f":"$E$40*(valuePL(E33,'Utility Functions'!$G$3:$G$5,'Utility Functions'!$H$3:$H$5))","v":0.03},{"$f":"$F$40*(valuePL(F33,'Utility Functions'!$I$3:$I$4,'Utility Functions'!$J$3:$J$5))","v":0.04},{"$f":"$G$40*(valueE(G33,'Utility Functions'!$L$3,'Utility Functions'!$L$4,'Utility Functions'!$L$5,'Utility Functions'!$L$6))","v":4.8387096774193543E-4},{"$f":"$H$40*(valueE(H33,'Utility Functions'!$N$3,'Utility Functions'!$N$4,'Utility Functions'!$N$5,'Utility Functions'!$N$6))","v":1.4516129032258063E-3},{"$f":"$I$40*valuePL(I33,'Utility Functions'!$O$3:$O$6,'Utility Functions'!$P$3:$P$6)","v":1.0363636363636363E-2},{"$f":"$J$40*valuePL(J33,'Utility Functions'!$Q$3:$Q$6,'Utility Functions'!$R$3:$R$6)","v":0.02},{"$f":"$K$40*(valuePL(K33,'Utility Functions'!$S$3:$S$7,'Utility Functions'!$T$3:$T$7))","v":6.909090909090909E-3},{"$f":"$L$40*(valueE(L33,'Utility Functions'!$V$3,'Utility Functions'!$V$4,'Utility Functions'!$V$5,'Utility Functions'!$V$6))","v":0.02},{"$f":"$M$40*valuePL(M33,'Utility Functions'!$W$3:$W$6,'Utility Functions'!$X$3:$X$6)","v":0.02},{"$f":"$N$40*valueE(N33,'Utility Functions'!$Z$3,'Utility Functions'!$Z$4,'Utility Functions'!$Z$5,'Utility Functions'!$Z$6)","v":0},{"$f":"$O$40*valuePL(O33,'Utility Functions'!$AA$3:$AA$5,'Utility Functions'!$AB$3:$AB$5)","v":0},{"$f":"$P$40*valuePL(P33,'Utility Functions'!$AC$3:$AC$7,'Utility Functions'!$AD$3:$AD$7)","v":0.02},{"$f":"$Q$40*valuePL(Q33,'Utility Functions'!$AE$3:$AE$6,'Utility Functions'!$AF$3:$AF$6)","v":0.04},{"$f":"$R$40*valuePL(R33,'Utility Functions'!$AG$3:$AG$6,'Utility Functions'!$AH$3:$AH$6)","v":0.05},{"$f":"$S$40*valuePL(S33,'Utility Functions'!$AI$3:$AI$6,'Utility Functions'!$AJ$3:$AJ$6)","v":0},{"$f":"$T$40*valuePL(T33,'Utility Functions'!$AK$3:$AK$8,'Utility Functions'!$AL$3:$AL$8)","v":2.4E-2},{"$f":"$U$40*valuePL(U33,'Utility Functions'!$AM$3:$AM$5,'Utility Functions'!$AN$3:$AN$5)","v":0},{"$f":"$V$40*valuePL(V33,'Utility Functions'!$AO$3:$AO$5,'Utility Functions'!$AP$3:$AP$5)","v":0},{"$f":"$W$40*valuePL(W33,'Utility Functions'!$AQ$3:$AQ$6,'Utility Functions'!$AR$3:$AR$6)","v":0.03},{"$f":"$X$40*valuePL(X33,'Utility Functions'!$AS$3:$AS$6,'Utility Functions'!$AT$3:$AT$6)","v":8.0000000000000002E-3},{"$f":"$Y$40*valuePL(Y33,'Utility Functions'!$AU$3:$AU$6,'Utility Functions'!$AV$3:$AV$6)","v":4.0000000000000008E-2},{"$f":"$Z$40*valuePL(Z33,'Utility Functions'!$AW$3:$AW$5,'Utility Functions'!$AX$3:$AX$5)","v":2.5000000000000001E-2},{"$f":"$AA$40*valuePL(AA33,'Utility Functions'!$AY$3:$AY$6,'Utility Functions'!$AZ$3:$AZ$6)","v":0},{"$f":"$AB$40*valuePL(AB33,'Utility Functions'!$BA$3:$BA$5,'Utility Functions'!$BB$3:$BB$5)","v":0.04},{"$f":"$AC$40*valuePL(AC33,'Utility Functions'!$BC$3:$BC$5,'Utility Functions'!$BD$3:$BD$5)","v":7.4999999999999997E-3},0.49072375332835239]
[33,{"$f":"$B$40*(valueE(B34,'Utility Functions'!$B$3,'Utility Functions'!$B$4,'Utility Functions'!$B$5,'Utility Functions'!$B$6))","v":2.8175740811551258E-2},{"$f":"$C$40*(valueE(C34,'Utility Functions'!$D$3,'Utility Functions'!$D$4,'Utility Functions'!$D$5,'Utility Functions'!$D$6))","v":2.542345105018548E-2},{"$f":"$D$40*(valuePL(D34,'Utility Functions'!$E$3:$E$5,'Utility Functions'!$F$3:$F$5))","v":0.03},{"$f":"$E$40*(valuePL(E34,'Utility Functions'!$G$3:$G$5,'Utility Functions'!$H$3:$H$5))","v":1.4999999999999999E-2},{"$f":"$F$40*(valuePL(F34,'Utility Functions'!$I$3:$I$4,'Utility Functions'!$J$3:$J$5))","v":0},{"$f":"$G$40*(valueE(G34,'Utility Functions'!$L$3,'Utility Functions'!$L$4,'Utility Functions'!$L$5,'Utility Functions'!$L$6))","v":0},{"$f":"$H$40*(valueE(H34,'Utility Functions'!$N$3,'Utility Functions'!$N$4,'Utility Functions'!$N$5,'Utility Functions'!$N$6))","v":0},{"$f":"$I$40*valuePL(I34,'Utility Functions'!$O$3:$O$6,'Utility Functions'!$P$3:$P$6)","v":0},{"$f":"$J$40*valuePL(J34,'Utility Functions'!$Q$3:$Q$6,'Utility Functions'!$R$3:$R$6)","v":0},{"$f":"$K$40*(valuePL(K34,'Utility Functions'!$S$3:$S$7,'Utility Functions'!$T$3:$T$7))","v":0},{"$f":"$L$40*(valueE(L34,'Utility Functions'!$V$3,'Utility Functions'!$V$4,'Utility Functions'!$V$5,'Utility Functions'!$V$6))","v":0.01},{"$f":"$M$40*valuePL(M34,'Utility Functions'!$W$3:$W$6,'Utility Functions'!$X$3:$X$6)","v":0},{"$f":"$N$40*valueE(N34,'Utility Functions'!$Z$3,'Utility Functions'!$Z$4,'Utility Functions'!$Z$5,'Utility Functions'!$Z$6)","v":0},{"$f":"$O$40*valuePL(O34,'Utility Functions'!$AA$3:$AA$5,'Utility Functions'!$AB$3:$AB$5)","v":0},{"$f":"$P$40*valuePL(P34,'Utility Functions'!$AC$3:$AC$7,'Utility Functions'!$AD$3:$AD$7)","v":0.02},{"$f":"$Q$40*valuePL(Q34,'Utility Functions'!$AE$3:$AE$6,'Utility Functions'!$AF$3:$AF$6)","v":0},{"$f":"$R$40*valuePL(R34,'Utility Functions'!$AG$3:$AG$6,'Utility Functions'!$AH$3:$AH$6)","v":0.05},{"$f":"$S$40*valuePL(S34,'Utility Functions'!$AI$3:$AI$6,'Utility Functions'!$AJ$3:$AJ$6)","v":3.3000000000000002E-2},{"$f":"$T$40*valuePL(T34,'Utility Functions'!$AK$3:$AK$8,'Utility Functions'!$AL$3:$AL$8)","v":0},{"$f":"$U$40*valuePL(U34,'Utility Functions'!$AM$3:$AM$5,'Utility Functions'!$AN$3:$AN$5)","v":0},{"$f":"$V$40*valuePL(V34,'Utility Functions'!$AO$3:$AO$5,'Utility Functions'!$AP$3:$AP$5)","v":2.5000000000000001E-2},{"$f":"$W$40*valuePL(W34,'Utility Functions'!$AQ$3:$AQ$6,'Utility Functions'!$AR$3:$AR$6)","v":0.04},{"$f":"$X$40*valuePL(X34,'Utility Functions'!$AS$3:$AS$6,'Utility Functions'!$AT$3:$AT$6)","v":0},{"$f":"$Y$40*valuePL(Y34,'Utility Functions'!$AU$3:$AU$6,'Utility Functions'!$AV$3:$AV$6)","v":4.0000000000000008E-2},{"$f":"$Z$40*valuePL(Z34,'Utility Functions'!$AW$3:$AW$5,'Utility Functions'!$AX$3:$AX$5)","v":0.05},{"$f":"$AA$40*valuePL(AA34,'Utility Functions'!$AY$3:$AY$6,'Utility Functions'!$AZ$3:$AZ$6)","v":0.04},{"$f":"$AB$40*valuePL(AB34,'Utility Functions'!$BA$3:$BA$5,'Utility Functions'!$BB$3:$BB$5)","v":0},{"$f":"$AC$40*valuePL(AC34,'Utility Functions'!$BC$3:$BC$5,'Utility Functions'!$BD$3:$BD$5)","v":0},0.40659919186173665]
[34,{"$f":"$B$40*(valueE(B35,'Utility Functions'!$B$3,'Utility Functions'!$B$4,'Utility Functions'!$B$5,'Utility Functions'!$B$6))","v":0},{"$f":"$C$40*(valueE(C35,'Utility Functions'!$D$3,'Utility Functions'!$D$4,'Utility Functions'!$D$5,'Utility Functions'!$D$6))","v":0},{"$f":"$D$40*(valuePL(D35,'Utility Functions'!$E$3:$E$5,'Utility Functions'!$F$3:$F$5))","v":0},{"$f":"$E$40*(valuePL(E35,'Utility Functions'!$G$3:$G$5,'Utility Functions'!$H$3:$H$5))","v":0},{"$f":"$F$40*(valuePL(F35,'Utility Functions'!$I$3:$I$4,'Utility Functions'!$J$3:$J$5))","v":0},{"$f":"$G$40*(valueE(G35,'Utility Functions'!$L$3,'Utility Functions'!$L$4,'Utility Functions'!$L$5,'Utility Functions'!$L$6))","v":0},{"$f":"$H$40*(valueE(H35,'Utility Functions'!$N$3,'Utility Functions'!$N$4,'Utility Functions'!$N$5,'Utility Functions'!$N$6))","v":1.7077798861480075E-4},{"$f":"$I$40*valuePL(I35,'Utility Functions'!$O$3:$O$6,'Utility Functions'!$P$3:$P$6)","v":0.03},{"$f":"$J$40*valuePL(J35,'Utility Functions'!$Q$3:$Q$6,'Utility Functions'!$R$3:$R$6)","v":1.8363636363636363E-2},{"$f":"$K$40*(valuePL(K35,'Utility Functions'!$S$3:$S$7,'Utility Functions'!$T$3:$T$7))","v":0.02},{"$f":"$L$40*(valueE(L35,'Utility Functions'!$V$3,'Utility Functions'!$V$4,'Utility Functions'!$V$5,'Utility Functions'!$V$6))","v":0.02},{"$f":"$M$40*valuePL(M35,'Utility Functions'!$W$3:$W$6,'Utility Functions'!$X$3:$X$6)","v":1.8363636363636363E-2},{"$f":"$N$40*valueE(N35,'Utility Functions'!$Z$3,'Utility Functions'!$Z$4,'Utility Functions'!$Z$5,'Utility Functions'!$Z$6)","v":0},{"$f":"$O$40*valuePL(O35,'Utility Functions'!$AA$3:$AA$5,'Utility Functions'!$AB$3:$AB$5)","v":0},{"$f":"$P$40*valuePL(P35,'Utility Functions'!$AC$3:$AC$7,'Utility Functions'!$AD$3:$AD$7)","v":0.02},{"$f":"$Q$40*valuePL(Q35,'Utility Functions'!$AE$3:$AE$6,'Utility Functions'!$AF$3:$AF$6)","v":0},{"$f":"$R$40*valuePL(R35,'Utility Functions'!$AG$3:$AG$6,'Utility Functions'!$AH$3:$AH$6)","v":0.05},{"$f":"$S$40*valuePL(S35,'Utility Functions'!$AI$3:$AI$6,'Utility Functions'!$AJ$3:$AJ$6)","v":0.05},{"$f":"$T$40*valuePL(T35,'Utility Functions'!$AK$3:$AK$8,'Utility Functions'!$AL$3:$AL$8)","v":2.4E-2},{"$f":"$U$40*valuePL(U35,'Utility Functions'!$AM$3:$AM$5,'Utility Functions'!$AN$3:$AN$5)","v":0},{"$f":"$V$40*valuePL(V35,'Utility Functions'!$AO$3:$AO$5,'Utility Functions'!$AP$3:$AP$5)","v":0.05},{"$f":"$W$40*valuePL(W35,'Utility Functions'!$AQ$3:$AQ$6,'Utility Functions'!$AR$3:$AR$6)","v":0.04},{"$f":"$X$40*valuePL(X35,'Utility Functions'!$AS$3:$AS$6,'Utility Functions'!$AT$3:$AT$6)","v":0.04},{"$f":"$Y$40*valuePL(Y35,'Utility Functions'!$AU$3:$AU$6,'Utility Functions'!$AV$3:$AV$6)","v":0},{"$f":"$Z$40*valuePL(Z35,'Utility Functions'!$AW$3:$AW$5,'Utility Functions'!$AX$3:$AX$5)","v":0.05},{"$f":"$AA$40*valuePL(AA35,'Utility Functions'!$AY$3:$AY$6,'Utility Functions'!$AZ$3:$AZ$6)","v":3.5999999999999997E-2},{"$f":"$AB$40*valuePL(AB35,'Utility Functions'!$BA$3:$BA$5,'Utility Functions'!$BB$3:$BB$5)","v":0.01},{"$f":"$AC$40*valuePL(AC35,'Utility Functions'!$BC$3:$BC$5,'Utility Functions'!$BD$3:$BD$5)","v":0},0.47689805071588748]
[35,{"$f":"$B$40*(valueE(B36,'Utility Functions'!$B$3,'Utility Functions'!$B$4,'Utility Functions'!$B$5,'Utility Functions'!$B$6))","v":2.3943140737469053E-2},{"$f":"$C$40*(valueE(C36,'Utility Functions'!$D$3,'Utility Functions'!$D$4,'Utility Functions'!$D$5,'Utility Functions'!$D$6))","v":1.8281994940530583E-2},{"$f":"$D$40*(valuePL(D36,'Utility Functions'!$E$3:$E$5,'Utility Functions'!$F$3:$F$5))","v":1.4999999999999999E-2},{"$f":"$E$40*(valuePL(E36,'Utility Functions'!$G$3:$G$5,'Utility Functions'!$H$3:$H$5))","v":1.4999999999999999E-2},{"$f":"$F$40*(valuePL(F36,'Utility Functions'!$I$3:$I$4,'Utility Functions'!$J$3:$J$5))","v":0.04},{"$f":"$G$40*(valueE(G36,'Utility Functions'!$L$3,'Utility Functions'!$L$4,'Utility Functions'!$L$5,'Utility Functions'!$L$6))","v":0},{"$f":"$H$40*(valueE(H36,'Utility Functions'!$N$3,'Utility Functions'!$N$4,'Utility Functions'!$N$5,'Utility Functions'!$N$6))","v":0},{"$f":"$I$40*valuePL(I36,'Utility Functions'!$O$3:$O$6,'Utility Functions'!$P$3:$P$6)","v":0},{"$f":"$J$40*valuePL(J36,'Utility Functions'!$Q$3:$Q$6,'Utility Functions'!$R$3:$R$6)","v":0},{"$f":"$K$40*(valuePL(K36,'Utility Functions'!$S$3:$S$7,'Utility Functions'!$T$3:$T$7))","v":0.02},{"$f":"$L$40*(valueE(L36,'Utility Functions'!$V$3,'Utility Functions'!$V$4,'Utility Functions'!$V$5,'Utility Functions'!$V$6))","v":1.3333333333333332E-2},{"$f":"$M$40*valuePL(M36,'Utility Functions'!$W$3:$W$6,'Utility Functions'!$X$3:$X$6)","v":2E-3},{"$f":"$N$40*valueE(N36,'Utility Functions'!$Z$3,'Utility Functions'!$Z$4,'Utility Functions'!$Z$5,'Utility Functions'!$Z$6)","v":0.03},{"$f":"$O$40*valuePL(O36,'Utility Functions'!$AA$3:$AA$5,'Utility Functions'!$AB$3:$AB$5)","v":0},{"$f":"$P$40*valuePL(P36,'Utility Functions'!$AC$3:$AC$7,'Utility Functions'!$AD$3:$AD$7)","v":0},{"$f":"$Q$40*valuePL(Q36,'Utility Functions'!$AE$3:$AE$6,'Utility Functions'!$AF$3:$AF$6)","v":0},{"$f":"$R$40*valuePL(R36,'Utility Functions'!$AG$3:$AG$6,'Utility Functions'!$AH$3:$AH$6)","v":0.05},{"$f":"$S$40*valuePL(S36,'Utility Functions'!$AI$3:$AI$6,'Utility Functions'!$AJ$3:$AJ$6)","v":0.05},{"$f":"$T$40*valuePL(T36,'Utility Functions'!$AK$3:$AK$8,'Utility Functions'!$AL$3:$AL$8)","v":1.7999999999999999E-2},{"$f":"$U$40*valuePL(U36,'Utility Functions'!$AM$3:$AM$5,'Utility Functions'!$AN$3:$AN$5)","v":0},{"$f":"$V$40*valuePL(V36,'Utility Functions'!$AO$3:$AO$5,'Utility Functions'!$AP$3:$AP$5)","v":0.05},{"$f":"$W$40*valuePL(W36,'Utility Functions'!$AQ$3:$AQ$6,'Utility Functions'!$AR$3:$AR$6)","v":0.03},{"$f":"$X$40*valuePL(X36,'Utility Functions'!$AS$3:$AS$6,'Utility Functions'!$AT$3:$AT$6)","v":0},{"$f":"$Y$40*valuePL(Y36,'Utility Functions'!$AU$3:$AU$6,'Utility Functions'!$AV$3:$AV$6)","v":1.0000000000000002E-2},{"$f":"$Z$40*valuePL(Z36,'Utility Functions'!$AW$3:$AW$5,'Utility Functions'!$AX$3:$AX$5)","v":0.05},{"$f":"$AA$40*valuePL(AA36,'Utility Functions'!$AY$3:$AY$6,'Utility Functions'!$AZ$3:$AZ$6)","v":0},{"$f":"$AB$40*valuePL(AB36,'Utility Functions'!$BA$3:$BA$5,'Utility Functions'!$BB$3:$BB$5)","v":0.01},{"$f":"$AC$40*valuePL(AC36,'Utility Functions'!$BC$3:$BC$5,'Utility Functions'!$BD$3:$BD$5)","v":7.4999999999999997E-3},0.45305846901133295]
[null,{"$f":"B38","v":"manage_species"},{"$f":"C38","v":"manage_spatial"},"manage_uncertainty","manage_currentpractices","manage_adaptivemanagement","pop_a","pop_b","pop_spatialscope","pop_temporalscope","hab_quantity","hab_quality","hab_temporal","ecoprocess_spp","ecoprocess_uncertainty","datasharing","broaderimpacts","exisitingpriorities","partners","leverage","alignment","objhyp","response","targettaxa","surveydesign","stats","datamanagement","budget","timeline","total",null,"mgmt","status","ep","integration","rigor"]
[null,{"$f":"SUMPRODUCT($B$83:$B$117,B$43:B$77)","v":0.16747952050731552},0.12803836015707137,0.21,0.03,0.04,2.1129032258064517E-2,7.8842504743833006E-3,1.1072727272727272E-2,1.6000000000000001E-3,6.5818181818181817E-3,3.3333333333333333E-2,3.5999999999999999E-3,0.12,0.2475,0.18000000000000002,8.8000000000000009E-2,0.45,0.49949999999999994,0.19199999999999998,1.4999999999999999E-2,0.3,0.26600000000000001,0.24000000000000005,0.24000000000000005,0.24999999999999997,0.19600000000000004,0.28000000000000003,0.18,4.4047190421847136,null,{"$f":"SUM(B79:F79)","v":0.57551788066438692},{"$f":"SUM(G79:M79)","v":8.5201161520326599E-2},{"$f":"SUM(N79:O79)","v":0.36749999999999999},{"$f":"SUM(P79:U79)","v":1.4244999999999997},{"$f":"SUM(V79:AC79)","v":1.952}]
[]
[]
[null,"Decision variable","Benefit","Cost"]
[{"$f":"A2","v":1},0,{"$f":"AD43","v":0.62852931598576234},{"$f":"AD2","v":700000}]
[{"$f":"A3","v":2},0,{"$f":"AD44","v":0.53424877401727988},{"$f":"AD3","v":5400000}]
[3,0,0.45890624332907692,250000]
[4,0,0.37738087579326757,150000]
[5,0,0.37358983775406607,220000]
[6,1,0.21762541381415162,110000]
[7,0,0.55883167443779502,1000000]
[8,0,0.52659366793040296,5000000]
[9,1,0.45837563615750632,25000]
[10,0,0.42049999999999998,900000]
[11,0,0.48800366568914949,1500000]
[12,0,0.38158740731015961,100000]
[13,1,0.30547532344316031,250000]
[14,0,0.4311611991122532,500000]
[15,0,0.60971431784243146,800000]
[16,0,0.54339393939393943,2000000]
[17,0,0.40209196138985603,500000]
[{"$f":"A19","v":18},1,0.43942694497153706,300000]
[19,0,0.41549503742461386,750000]
[20,0,0.55885300951154004,1500000]
[21,1,0.42149999999999999,900000]
[22,1,0.44445113851992418,750000]
[23,0,0.37896452234436967,1000000]
[24,1,0.37890643564363613,150000]
[25,1,0.53254137243924626,250000]
[26,1,0.42942229688880618,500000]
[27,0,0.34094279014612355,1200000]
[28,1,0.49364512823846229,500000]
[{"$f":"A30","v":29},0,0.4451559901205534,2000000]
[30,1,0.28334935206828327,250000]
[31,0,0.35694663746011634,650000]
[32,0,0.49072375332835239,200000]
[{"$f":"A34","v":33},0,0.40659919186173665,400000]
[34,0,0.47689805071588748,900000]
[{"$f":"A36","v":35},0,0.45305846901133295,900000]
[null,null,{"$f":"SUMPRODUCT(B83:B117,C83:C117)","v":4.4047190421847136},{"$f":"SUMPRODUCT(B83:B117,D83:D117)","v":3985000}]
[]
[null,null,"Cost constraint",15000000]

{"sheet":"constraint_barplot","index":17,"n_rows":6,"n_cols":8,"rows_kept":6,"cut":false,"hidden":false,"merged":[]}
[]
["description","constraint.scenario","mgmt","status","ep","int","rigor"]
["cost <= 4 million",1,{"$f":"Constraint_Scenario_1!AF79","v":1.0413978234266421},{"$f":"Constraint_Scenario_1!AG79","v":0.23782641596227933},{"$f":"Constraint_Scenario_1!AH79","v":0.27749999999999997},{"$f":"Constraint_Scenario_1!AI79","v":1.7359999999999998},{"$f":"Constraint_Scenario_1!AJ79","v":2.9585000000000004},{"$f":"SUM(C3:G3)","v":6.2512242393889217}]
["cost <= 4 million and 11 FL",2,{"$f":"Constraint_Scenario_2!AF79","v":0.80151728428935198},{"$f":"Constraint_Scenario_2!AG79","v":0.22395482720947618},{"$f":"Constraint_Scenario_2!AH79","v":0.2475},{"$f":"Constraint_Scenario_2!AI79","v":1.5469999999999999},{"$f":"Constraint_Scenario_2!AJ79","v":2.2825000000000002},{"$f":"SUM(C4:G4)","v":5.1024721114988285}]
["cost <= 4 million and 2 seabird",3,{"$f":"Constraint_Scenario_3!AF79","v":1.0653358161761257},{"$f":"Constraint_Scenario_3!AG79","v":0.24782641596227933},{"$f":"Constraint_Scenario_3!AH79","v":0.23249999999999998},{"$f":"Constraint_Scenario_3!AI79","v":1.7289999999999999},{"$f":"Constraint_Scenario_3!AJ79","v":2.9520000000000004},6.2266622321384055]
["1,2, and 3",4,{"$f":"Constraint_Scenario_4!AF79","v":0.57551788066438692},{"$f":"Constraint_Scenario_4!AG79","v":8.5201161520326599E-2},{"$f":"Constraint_Scenario_4!AH79","v":0.36749999999999999},{"$f":"Constraint_Scenario_4!AI79","v":1.4244999999999997},{"$f":"Constraint_Scenario_4!AJ79","v":1.952},4.4047190421847127]

{"sheet":"Sens_Mgmt","index":18,"n_rows":35,"n_cols":37,"rows_kept":35,"cut":false,"hidden":false,"merged":[]}
["WEIGHTS",null,null,null,null,null,null,null,"MANAGEMENT"]
[null,"management","status","ecol_proc","integration","rigor","total",null,"manage_species","manage_spatial","manage_uncertainty","manage_currentpractices","manage_adaptivemanagement","pop_a","pop_b","pop_spatialscope","pop_temporalscope","hab_quantity","hab_quality","hab_temporal","ecoprocess_spp","ecoprocess_uncertainty","datasharing","broaderimpacts","exisitingpriorities","partners","leverage","alignment","objhyp","response","targettaxa","surveydesign","stats","datamanagement","budget","timeline"]
["Base case",0.16,0.14000000000000001,0.12,0.24,0.33999999999999997,{"$f":"SUM(B3:F3)","v":1},null,"Metric 1","Metric 2","Metric 3","Metric 4","Metric 5","Metric 6a","Metric 6b","Metric 7","Metric 8","Metric 9","Metric 10","Metric 11","Metric 12","Metric 13","Metric 14","Metric 15","Metric 16","Metric 17","Metric 18","Metric 19","Metric 20","Metric 21","Metric 22","Metric 23","Metric 24","Metric 25","Metric 26","Metric 27"]
["Weights",0.9,{"$f":"(1-B4)*(C3/SUM(C3:F3))","v":1.6666666666666666E-2},{"$f":"(1-B4)*(D3/SUM(C3:F3))","v":1.4285714285714282E-2},{"$f":"(1-B4)*(E3/SUM(C3:F3))","v":2.8571428571428564E-2},{"$f":"(1-B4)*(F3/SUM(C3:F3))","v":4.0476190476190471E-2},{"$f":"SUM(B4:F4)","v":1},"F. Obj. sum to 1",0.19820870600426765,0.18737160628911689,0.18975768026679279,0.18487218984594747,0.23978981759387516,0.10603827285919394,0.10603827285919394,0.17999876316471433,0.17539978707496579,0.15453456200081242,0.15839220012471103,0.1195981419164085,0.25,0.75,0.16473933293713175,0.18159432126129066,0.20786163779177183,0.18205601219260392,0.13251383660059851,0.13123485921660338,0.16016578765068418,0.11550698105183116,0.1235276954540751,0.15350454693417923,0.13300800593613818,0.10306092077825441,0.10929800483888977,0.10192805735594795]
[null,null,null,null,null,null,null,"New group weight",{"$f":"$B$4*I$4","v":0.1783878354038409},{"$f":"$B$4*J$4","v":0.16863444566020522},0.17078191224011352,0.16638497086135273,0.21581083583448765,{"$f":"$C$4*N$4","v":1.7673045476532324E-3},{"$f":"$C$4*O$4","v":1.7673045476532324E-3},2.9999793860785722E-3,2.923329784582763E-3,2.5755760333468734E-3,2.6398700020785169E-3,1.9933023652734748E-3,{"$f":"$D$4*U$4","v":3.5714285714285704E-3},{"$f":"$D$4*V$4","v":1.0714285714285711E-2},{"$f":"$E$4*W$4","v":4.7068380839180484E-3},{"$f":"$E$4*X$4","v":5.1884091788940174E-3},5.9389039369077646E-3,5.2016003483601105E-3,3.7861096171599566E-3,3.749567406188667E-3,{"$f":"$F$4*AC$4","v":6.4829009287181681E-3},{"$f":"$F$4*AD$4","v":4.6752825663836416E-3},4.9999305302839917E-3,6.2132792806691584E-3,5.3836573831294015E-3,4.1715134600722016E-3,4.42396686252649E-3,4.1256594644074164E-3,{"$f":"SUM(I5:AJ5)","v":1.0000000000000002}]
[null,null,null,null,null,null,null,null,0.03,0.03,0.03,0.03,0.04,1.4999999999999999E-2,1.4999999999999999E-2,0.03,0.02,0.02,0.02,0.02,0.03,0.09,0.04,0.04,0.05,0.05,0.03,0.03,0.05,0.04,0.04,0.05,0.05,0.04,0.04,0.03,{"$f":"SUM(I6:AJ6)","v":1.0000000000000004}]
[null,null,null,null,null,null,null,null,{"$f":"(1-J7)*(I6/SUM(I6,K6:AJ6))","v":2.9999999999999988E-2},0.03,{"$f":"(1-$J$7)*(K6/SUM($I$6,$K$6:$AJ$6))","v":2.9999999999999988E-2},{"$f":"(1-$J$7)*(L6/SUM($I$6,$K$6:$AJ$6))","v":2.9999999999999988E-2},3.9999999999999987E-2,1.4999999999999994E-2,1.4999999999999994E-2,2.9999999999999988E-2,1.9999999999999993E-2,1.9999999999999993E-2,1.9999999999999993E-2,1.9999999999999993E-2,2.9999999999999988E-2,8.9999999999999955E-2,3.9999999999999987E-2,3.9999999999999987E-2,4.9999999999999982E-2,4.9999999999999982E-2,2.9999999999999988E-2,2.9999999999999988E-2,4.9999999999999982E-2,3.9999999999999987E-2,3.9999999999999987E-2,4.9999999999999982E-2,4.9999999999999982E-2,3.9999999999999987E-2,3.9999999999999987E-2,2.9999999999999988E-2,{"$f":"SUM(I7:AJ7)","v":0.99999999999999978}]
["WEIGHTED UTILITY"]
["Portfolio",{"$f":"B2","v":"management"},{"$f":"C2","v":"status"},"ecol_proc","integration","rigor"]
["A",null,null,null,null,null,null,null,"manage_species","manage_spatial","manage_uncertainty","manage_currentpractices","manage_adaptivemanagement","pop_a","pop_b","pop_spatialscope","pop_temporalscope","hab_quantity","hab_quality","hab_temporal","ecoprocess_spp","ecoprocess_uncertainty","datasharing","broaderimpacts","exisitingpriorities","partners","leverage","alignment","objhyp","response","targettaxa","surveydesign","stats","datamanagement","budget","timeline"]
["B",null,null,null,null,null,null,null,"Metric 1","Metric 2","Metric 3","Metric 4","Metric 5","Metric 6a","Metric 6b","Metric 7","Metric 8","Metric 9","Metric 10","Metric 11","Metric 12","Metric 13","Metric 14","Metric 15","Metric 16","Metric 17","Metric 18","Metric 19","Metric 20","Metric 21","Metric 22","Metric 23","Metric 24","Metric 25","Metric 26","Metric 27"]
["C",null,null,null,null,null,null,null,0.03,0.03,0.03,0.03,0.04,1.4999999999999999E-2,1.4999999999999999E-2,0.03,0.02,0.02,0.02,0.02,0.03,0.09,0.04,0.04,0.05,0.05,0.03,0.03,0.05,0.04,0.04,0.05,0.05,0.04,0.04,0.03]
["D",null,null,null,null,null,null,null,{"$f":"(1-$M$13)*(I12/(SUM($I$12:$L$12,$N$12:$AJ$12)))","v":2.9999999999999985E-2},2.9999999999999985E-2,2.9999999999999985E-2,{"$f":"(1-$M$13)*(L12/(SUM($I$12:$L$12,$N$12:$AJ$12)))","v":2.9999999999999985E-2},0.04,{"$f":"(1-$M$13)*(N12/SUM($I$12:$L$12,$N$12:$AJ$12))","v":1.4999999999999993E-2},{"$f":"(1-$M$13)*(O12/SUM($I$12:$L$12,$N$12:$AJ$12))","v":1.4999999999999993E-2},2.9999999999999985E-2,1.999999999999999E-2,1.999999999999999E-2,1.999999999999999E-2,1.999999999999999E-2,2.9999999999999985E-2,8.9999999999999955E-2,3.999999999999998E-2,3.999999999999998E-2,4.9999999999999982E-2,4.9999999999999982E-2,2.9999999999999985E-2,2.9999999999999985E-2,4.9999999999999982E-2,3.999999999999998E-2,3.999999999999998E-2,4.9999999999999982E-2,4.9999999999999982E-2,3.999999999999998E-2,3.999999999999998E-2,2.9999999999999985E-2]
["E"]
[]
[null,null,null,null,null,null,null,"WEIGHTED UTILITY (\"New group weights\" in row 5)"]
[null,null,null,null,null,null,null,"Portfolio",{"$f":"I10","v":"manage_species"},{"$f":"J10","v":"manage_spatial"},"manage_uncertainty","manage_currentpractices","manage_adaptivemanagement","pop_a","pop_b","pop_spatialscope","pop_temporalscope","hab_quantity","hab_quality","hab_temporal","ecoprocess_spp","ecoprocess_uncertainty","datasharing","broaderimpacts","exisitingpriorities","partners","leverage","alignment","objhyp","response","targettaxa","surveydesign","stats","datamanagement","budget","timeline","total"]
[null,null,null,null,null,null,null,"A",{"$f":"Portfolio_A_Mgmt!B$82","v":0.48409032777467054},{"$f":"Portfolio_A_Mgmt!C$82","v":0.56193127070825544},{"$f":"Portfolio_A_Mgmt!D$82","v":0.59773669284039732},{"$f":"Portfolio_A_Mgmt!E$82","v":8.3192485430676366E-2},{"$f":"Portfolio_A_Mgmt!F$82","v":0},{"$f":"Portfolio_A_Mgmt!G$82","v":1.6722881741234887E-3},{"$f":"Portfolio_A_Mgmt!H$82","v":5.6674472211270643E-4},{"$f":"Portfolio_A_Mgmt!I$82","v":2.2636208094956498E-3},{"$f":"Portfolio_A_Mgmt!J$82","v":2.3386638276662105E-4},{"$f":"Portfolio_A_Mgmt!K$82","v":0},{"$f":"Portfolio_A_Mgmt!L$82","v":1.7599133347190113E-3},{"$f":"Portfolio_A_Mgmt!M$82","v":2.3919628383281698E-4},{"$f":"Portfolio_A_Mgmt!N$82","v":7.1428571428571409E-3},{"$f":"Portfolio_A_Mgmt!O$82","v":5.3571428571428555E-3},{"$f":"Portfolio_A_Mgmt!P$82","v":5.8835476048975602E-3},{"$f":"Portfolio_A_Mgmt!Q$82","v":8.3014546862304282E-3},{"$f":"Portfolio_A_Mgmt!R$82","v":2.4943396535012614E-2},{"$f":"Portfolio_A_Mgmt!S$82","v":2.0754385389956841E-2},{"$f":"Portfolio_A_Mgmt!T$82","v":8.3294411577519052E-3},{"$f":"Portfolio_A_Mgmt!U$82","v":9.3739185154716675E-4},{"$f":"Portfolio_A_Mgmt!V$82","v":1.9448702786154504E-2},{"$f":"Portfolio_A_Mgmt!W$82","v":1.0051857517724829E-2},{"$f":"Portfolio_A_Mgmt!X$82","v":1.2999819378738382E-2},{"$f":"Portfolio_A_Mgmt!Y$82","v":1.7397181985873644E-2},{"$f":"Portfolio_A_Mgmt!Z$82","v":1.6150972149388203E-2},{"$f":"Portfolio_A_Mgmt!AA$82","v":1.2931691726223823E-2},{"$f":"Portfolio_A_Mgmt!AB$82","v":1.5483884018842715E-2},{"$f":"Portfolio_A_Mgmt!AC$82","v":5.1570743305092703E-3},{"$f":"SUM(I18:AJ18)","v":1.9249572075799017}]
[null,null,null,null,null,null,null,"B",{"$f":"Portfolio_B_Mgmt!B$82","v":0.43371609154963175},{"$f":"Portfolio_B_Mgmt!C$82","v":0.28111788074110833},{"$f":"Portfolio_B_Mgmt!D$82","v":0.8539095612005676},{"$f":"Portfolio_B_Mgmt!E$82","v":0.16638497086135273},{"$f":"Portfolio_B_Mgmt!F$82","v":0},{"$f":"Portfolio_B_Mgmt!G$82","v":1.7673045476532324E-3},{"$f":"Portfolio_B_Mgmt!H$82","v":1.7673045476532324E-3},{"$f":"Portfolio_B_Mgmt!I$82","v":4.4017879355734684E-3},{"$f":"Portfolio_B_Mgmt!J$82","v":5.2619936122489741E-4},{"$f":"Portfolio_B_Mgmt!K$82","v":2.5755760333468734E-3},{"$f":"Portfolio_B_Mgmt!L$82","v":0},{"$f":"Portfolio_B_Mgmt!M$82","v":1.9933023652734749E-4},{"$f":"Portfolio_B_Mgmt!N$82","v":1.7857142857142852E-3},{"$f":"Portfolio_B_Mgmt!O$82","v":2.6785714285714277E-3},{"$f":"Portfolio_B_Mgmt!P$82","v":7.060257125877073E-3},{"$f":"Portfolio_B_Mgmt!Q$82","v":4.1507273431152141E-3},{"$f":"Portfolio_B_Mgmt!R$82","v":2.2567834960249503E-2},{"$f":"Portfolio_B_Mgmt!S$82","v":2.6008001741800554E-2},{"$f":"Portfolio_B_Mgmt!T$82","v":1.2115550774911861E-2},{"$f":"Portfolio_B_Mgmt!U$82","v":9.3739185154716675E-4},{"$f":"Portfolio_B_Mgmt!V$82","v":1.2965801857436336E-2},{"$f":"Portfolio_B_Mgmt!W$82","v":1.7532309623938657E-2},{"$f":"Portfolio_B_Mgmt!X$82","v":2.4999652651419957E-2},{"$f":"Portfolio_B_Mgmt!Y$82","v":1.366921441747215E-2},{"$f":"Portfolio_B_Mgmt!Z$82","v":5.3836573831294015E-3},{"$f":"Portfolio_B_Mgmt!AA$82","v":4.1715134600722016E-3},{"$f":"Portfolio_B_Mgmt!AB$82","v":1.769586745010596E-2},{"$f":"Portfolio_B_Mgmt!AC$82","v":7.219904062712979E-3},{"$f":"SUM(I19:AJ19)","v":1.927307977432714}]
[null,null,null,null,null,null,null,"C",{"$f":"Portfolio_C_Mgmt!B$82","v":0.48829515900116416},{"$f":"Portfolio_C_Mgmt!C$82","v":0.38858377438646113},{"$f":"Portfolio_C_Mgmt!D$82","v":0.25617286836017028},{"$f":"Portfolio_C_Mgmt!E$82","v":0.33276994172270546},{"$f":"Portfolio_C_Mgmt!F$82","v":0.21581083583448765},{"$f":"Portfolio_C_Mgmt!G$82","v":5.7009824117846206E-5},{"$f":"Portfolio_C_Mgmt!H$82","v":1.9115058674807256E-4},{"$f":"Portfolio_C_Mgmt!I$82","v":7.6254021486142623E-3},{"$f":"Portfolio_C_Mgmt!J$82","v":7.3349001867712956E-3},{"$f":"Portfolio_C_Mgmt!K$82","v":9.1222220235631091E-3},{"$f":"Portfolio_C_Mgmt!L$82","v":1.0999458341993821E-2},{"$f":"Portfolio_C_Mgmt!M$82","v":5.2007070803044295E-3},{"$f":"Portfolio_C_Mgmt!N$82","v":8.4821428571428548E-3},{"$f":"Portfolio_C_Mgmt!O$82","v":5.3571428571428555E-3},{"$f":"Portfolio_C_Mgmt!P$82","v":5.8835476048975602E-3},{"$f":"Portfolio_C_Mgmt!Q$82","v":0},{"$f":"Portfolio_C_Mgmt!R$82","v":2.9694519684538824E-2},{"$f":"Portfolio_C_Mgmt!S$82","v":2.4239457623358114E-2},{"$f":"Portfolio_C_Mgmt!T$82","v":6.8149973108879228E-3},{"$f":"Portfolio_C_Mgmt!U$82","v":3.749567406188667E-3},{"$f":"Portfolio_C_Mgmt!V$82","v":2.9173054179231758E-2},{"$f":"Portfolio_C_Mgmt!W$82","v":1.3792083570831743E-2},{"$f":"Portfolio_C_Mgmt!X$82","v":1.0999847166624784E-2},{"$f":"Portfolio_C_Mgmt!Y$82","v":1.8639837842007477E-2},{"$f":"Portfolio_C_Mgmt!Z$82","v":2.4226458224082308E-2},{"$f":"Portfolio_C_Mgmt!AA$82","v":1.5434599802267145E-2},{"$f":"Portfolio_C_Mgmt!AB$82","v":2.211983431263245E-3},{"$f":"Portfolio_C_Mgmt!AC$82","v":6.1884891966111251E-3},1.9270511582541781]
[null,null,null,null,null,null,null,"D",{"$f":"Portfolio_D_Mgmt!B$82","v":0.4081456450547486},{"$f":"Portfolio_D_Mgmt!C$82","v":0.34645108194703422},{"$f":"Portfolio_D_Mgmt!D$82","v":0.51234573672034056},{"$f":"Portfolio_D_Mgmt!E$82","v":8.3192485430676366E-2},{"$f":"Portfolio_D_Mgmt!F$82","v":0},{"$f":"Portfolio_D_Mgmt!G$82","v":0},{"$f":"Portfolio_D_Mgmt!H$82","v":7.0423900380868848E-5},{"$f":"Portfolio_D_Mgmt!I$82","v":2.5145281763313126E-3},{"$f":"Portfolio_D_Mgmt!J$82","v":2.3386638276662105E-4},{"$f":"Portfolio_D_Mgmt!K$82","v":8.4759865824688015E-4},{"$f":"Portfolio_D_Mgmt!L$82","v":3.9598050031177754E-3},{"$f":"Portfolio_D_Mgmt!M$82","v":7.9732094610938999E-5},{"$f":"Portfolio_D_Mgmt!N$82","v":8.9285714285714263E-3},{"$f":"Portfolio_D_Mgmt!O$82","v":8.0357142857142832E-3},{"$f":"Portfolio_D_Mgmt!P$82","v":4.7068380839180484E-3},{"$f":"Portfolio_D_Mgmt!Q$82","v":8.3014546862304282E-3},{"$f":"Portfolio_D_Mgmt!R$82","v":2.3755615747631059E-2},{"$f":"Portfolio_D_Mgmt!S$82","v":1.9037857274998005E-2},{"$f":"Portfolio_D_Mgmt!T$82","v":6.8149973108879219E-3},{"$f":"Portfolio_D_Mgmt!U$82","v":2.8121755546415004E-3},{"$f":"Portfolio_D_Mgmt!V$82","v":1.9448702786154504E-2},{"$f":"Portfolio_D_Mgmt!W$82","v":1.7532309623938657E-2},{"$f":"Portfolio_D_Mgmt!X$82","v":1.1999833272681582E-2},{"$f":"Portfolio_D_Mgmt!Y$82","v":2.1125149554275142E-2},{"$f":"Portfolio_D_Mgmt!Z$82","v":1.8842800840952904E-2},{"$f":"Portfolio_D_Mgmt!AA$82","v":9.5944809581660628E-3},{"$f":"Portfolio_D_Mgmt!AB$82","v":1.1059917156316225E-2},{"$f":"Portfolio_D_Mgmt!AC$82","v":6.1884891966111251E-3},1.5560258111299428]
[null,null,null,null,null,null,null,"E",{"$f":"Portfolio_E_Mgmt!B$82","v":0.55028056411723347},{"$f":"Portfolio_E_Mgmt!C$82","v":0.40718564888494213},{"$f":"Portfolio_E_Mgmt!D$82","v":0.59773669284039732},{"$f":"Portfolio_E_Mgmt!E$82","v":8.3192485430676366E-2},{"$f":"Portfolio_E_Mgmt!F$82","v":0},{"$f":"Portfolio_E_Mgmt!G$82","v":1.6722881741234887E-3},{"$f":"Portfolio_E_Mgmt!H$82","v":5.1644193612637149E-4},{"$f":"Portfolio_E_Mgmt!I$82","v":2.5636187481035068E-3},{"$f":"Portfolio_E_Mgmt!J$82","v":2.3174032474146994E-3},{"$f":"Portfolio_E_Mgmt!K$82","v":0},{"$f":"Portfolio_E_Mgmt!L$82","v":3.5198266694380226E-3},{"$f":"Portfolio_E_Mgmt!M$82","v":1.5004130531331246E-3},{"$f":"Portfolio_E_Mgmt!N$82","v":6.2499999999999986E-3},{"$f":"Portfolio_E_Mgmt!O$82","v":1.3392857142857139E-2},{"$f":"Portfolio_E_Mgmt!P$82","v":7.060257125877073E-3},{"$f":"Portfolio_E_Mgmt!Q$82","v":5.7072500967834195E-3},{"$f":"Portfolio_E_Mgmt!R$82","v":2.3755615747631059E-2},{"$f":"Portfolio_E_Mgmt!S$82","v":2.2470913504915677E-2},{"$f":"Portfolio_E_Mgmt!T$82","v":9.0866630811838947E-3},{"$f":"Portfolio_E_Mgmt!U$82","v":0},{"$f":"Portfolio_E_Mgmt!V$82","v":1.6207252321795422E-2},{"$f":"Portfolio_E_Mgmt!W$82","v":5.3765749513411875E-3},{"$f":"Portfolio_E_Mgmt!X$82","v":1.5999777696908773E-2},{"$f":"Portfolio_E_Mgmt!Y$82","v":1.7397181985873644E-2},{"$f":"Portfolio_E_Mgmt!Z$82","v":1.3459143457823505E-2},{"$f":"Portfolio_E_Mgmt!AA$82","v":6.2572701901083029E-3},{"$f":"Portfolio_E_Mgmt!AB$82","v":1.1059917156316225E-2},{"$f":"Portfolio_E_Mgmt!AC$82","v":1.4439808125425958E-2},1.8384058656864299]
[]
[]
[null,null,null,null,null,null,null,"SENSITIVITY"]
[null,null,null,null,null,null,null,"Portfolio",null,0,0.2,0.4,0.6,0.8,1]
[null,null,null,null,null,null,null,"A",{"$f":"AK18","v":1.9249572075799017},1.9800643082590221,1.9678182858858846,1.9555722635127468,1.9433262411396086,1.9310802187664708,1.9188341963933326]
[null,null,null,null,null,null,null,"B",{"$f":"AK19","v":1.927307977432714},1.9217947308005383,1.9230198967187995,1.9242450626370604,1.9254702285553222,1.9266953944735836,1.927920560391845]
[null,null,null,null,null,null,null,"C",1.9270511582541781,2.4541857894918926,2.3370447603279558,2.2199037311640195,2.1027627020000823,1.9856216728361462,1.8684806436722092]
[null,null,null,null,null,null,null,"D",1.5560258111299428,2.0589086197714335,1.9471568845177689,1.8354051492641044,1.7236534140104396,1.6119016787567757,1.5001499435031107]
[null,null,null,null,6,null,null,"E",1.8384058656864299,2.0001047441318054,1.9641716600328332,1.9282385759338612,1.8923054918348885,1.8563724077359161,1.8204393236369434]
[null,null,null,null,7]
[null,null,null,null,1]
[null,null,null,null,2]
[null,null,null,null,3]

{"sheet":"Sens_Status","index":19,"n_rows":35,"n_cols":37,"rows_kept":35,"cut":false,"hidden":false,"merged":[]}
["WEIGHTS",null,null,null,null,null,null,null,"STATUS"]
[null,"management","status","ecol_proc","integration","rigor","total",null,"manage_species","manage_spatial","manage_uncertainty","manage_currentpractices","manage_adaptivemanagement","pop_a","pop_b","pop_spatialscope","pop_temporalscope","hab_quantity","hab_quality","hab_temporal","ecoprocess_spp","ecoprocess_uncertainty","datasharing","broaderimpacts","exisitingpriorities","partners","leverage","alignment","objhyp","response","targettaxa","surveydesign","stats","datamanagement","budget","timeline"]
["Base case",0.16,0.14000000000000001,0.12,0.24,0.33999999999999997,{"$f":"SUM(B3:F3)","v":1},null,"Metric 1","Metric 2","Metric 3","Metric 4","Metric 5","Metric 6a","Metric 6b","Metric 7","Metric 8","Metric 9","Metric 10","Metric 11","Metric 12","Metric 13","Metric 14","Metric 15","Metric 16","Metric 17","Metric 18","Metric 19","Metric 20","Metric 21","Metric 22","Metric 23","Metric 24","Metric 25","Metric 26","Metric 27"]
["Weights",{"$f":"(1-$C$4)*(B3/SUM(B3,D3:F3))","v":0.16},0.14000000000000001,{"$f":"(1-$C$4)*(D3/SUM(B3,D3:F3))","v":0.12},{"$f":"(1-C4)*(E3/SUM(B3,D3:F3))","v":0.24},{"$f":"(1-C4)*(F3/SUM(B3,D3:F3))","v":0.33999999999999997},{"$f":"SUM(B4:F4)","v":1},"F. Obj. sum to 1",0.19820870600426765,0.18737160628911689,0.18975768026679279,0.18487218984594747,0.23978981759387516,0.10603827285919394,0.10603827285919394,0.17999876316471433,0.17539978707496579,0.15453456200081242,0.15839220012471103,0.1195981419164085,0.25,0.75,0.16473933293713175,0.18159432126129066,0.20786163779177183,0.18205601219260392,0.13251383660059851,0.13123485921660338,0.16016578765068418,0.11550698105183116,0.1235276954540751,0.15350454693417923,0.13300800593613818,0.10306092077825441,0.10929800483888977,0.10192805735594795]
[null,null,null,null,null,null,null,"New group weight",{"$f":"$B$4*I$4","v":3.1713392960682825E-2},{"$f":"$B$4*J$4","v":2.9979457006258703E-2},3.0361228842686848E-2,2.9579550375351597E-2,3.8366370815020027E-2,{"$f":"$C$4*N$4","v":1.4845358200287153E-2},{"$f":"$C$4*O$4","v":1.4845358200287153E-2},2.5199826843060009E-2,2.4555970190495213E-2,2.163483868011374E-2,2.2174908017459548E-2,1.6743739868297192E-2,{"$f":"$D$4*U$4","v":0.03},{"$f":"$D$4*V$4","v":0.09},{"$f":"$E$4*W$4","v":3.9537439904911618E-2},{"$f":"$E$4*X$4","v":4.3582637102709758E-2},4.9886793070025234E-2,4.3693442926224943E-2,3.1803320784143642E-2,3.149636621198481E-2,{"$f":"$F$4*AC$4","v":5.4456367801232614E-2},{"$f":"$F$4*AD$4","v":3.9272373557622593E-2},4.1999416454385534E-2,5.2191545957620933E-2,4.5222722018286976E-2,3.5040713064606495E-2,3.7161321645222518E-2,3.4655539501022299E-2,{"$f":"SUM(I5:AJ5)","v":0.99999999999999989}]
[null,null,null,null,null,null,null,null,0.03,0.03,0.03,0.03,0.04,1.4999999999999999E-2,1.4999999999999999E-2,0.03,0.02,0.02,0.02,0.02,0.03,0.09,0.04,0.04,0.05,0.05,0.03,0.03,0.05,0.04,0.04,0.05,0.05,0.04,0.04,0.03,{"$f":"SUM(I6:AJ6)","v":1.0000000000000004}]
[null,null,null,null,null,null,null,null,{"$f":"(1-J7)*(I6/SUM(I6,K6:AJ6))","v":2.9999999999999988E-2},0.03,{"$f":"(1-$J$7)*(K6/SUM($I$6,$K$6:$AJ$6))","v":2.9999999999999988E-2},{"$f":"(1-$J$7)*(L6/SUM($I$6,$K$6:$AJ$6))","v":2.9999999999999988E-2},3.9999999999999987E-2,1.4999999999999994E-2,1.4999999999999994E-2,2.9999999999999988E-2,1.9999999999999993E-2,1.9999999999999993E-2,1.9999999999999993E-2,1.9999999999999993E-2,2.9999999999999988E-2,8.9999999999999955E-2,3.9999999999999987E-2,3.9999999999999987E-2,4.9999999999999982E-2,4.9999999999999982E-2,2.9999999999999988E-2,2.9999999999999988E-2,4.9999999999999982E-2,3.9999999999999987E-2,3.9999999999999987E-2,4.9999999999999982E-2,4.9999999999999982E-2,3.9999999999999987E-2,3.9999999999999987E-2,2.9999999999999988E-2,{"$f":"SUM(I7:AJ7)","v":0.99999999999999978}]
["WEIGHTED UTILITY"]
["Portfolio",{"$f":"B2","v":"management"},{"$f":"C2","v":"status"},"ecol_proc","integration","rigor"]
["A"]
["B"]
["C"]
["D"]
["E"]
[]
[null,null,null,null,null,null,null,"WEIGHTED UTILITY (\"New group weights\"  in row 5)"]
[null,null,null,null,null,null,null,"Portfolio",{"$f":"I10","v":0},{"$f":"J10","v":0},0,0,0,0,0,0,0,0,0,0,0,0,0,0,0,0,0,0,0,0,0,0,0,0,0,0,"total"]
[null,null,null,null,null,null,null,"A",{"$f":"Portfolio_A_Status!B$82","v":8.6060502715496978E-2},{"$f":"Portfolio_A_Status!C$82","v":9.9898892570356515E-2},{"$f":"Portfolio_A_Status!D$82","v":0.10626430094940396},{"$f":"Portfolio_A_Status!E$82","v":1.4789775187675798E-2},{"$f":"Portfolio_A_Status!F$82","v":0},{"$f":"Portfolio_A_Status!G$82","v":1.4047220662637307E-2},{"$f":"Portfolio_A_Status!H$82","v":4.7606556657467337E-3},{"$f":"Portfolio_A_Status!I$82","v":1.9014414799763461E-2},{"$f":"Portfolio_A_Status!J$82","v":1.9644776152396171E-3},{"$f":"Portfolio_A_Status!K$82","v":0},{"$f":"Portfolio_A_Status!L$82","v":1.4783272011639698E-2},{"$f":"Portfolio_A_Status!M$82","v":2.0092487841956628E-3},{"$f":"Portfolio_A_Status!N$82","v":0.06},{"$f":"Portfolio_A_Status!O$82","v":4.4999999999999998E-2},{"$f":"Portfolio_A_Status!P$82","v":4.9421799881139525E-2},{"$f":"Portfolio_A_Status!Q$82","v":6.9732219364335615E-2},{"$f":"Portfolio_A_Status!R$82","v":0.209524530894106},{"$f":"Portfolio_A_Status!S$82","v":0.17433683727563754},{"$f":"Portfolio_A_Status!T$82","v":6.9967305725116016E-2},{"$f":"Portfolio_A_Status!U$82","v":7.8740915529962024E-3},{"$f":"Portfolio_A_Status!V$82","v":0.16336910340369784},{"$f":"Portfolio_A_Status!W$82","v":8.4435603148888566E-2},{"$f":"Portfolio_A_Status!X$82","v":0.10919848278140241},{"$f":"Portfolio_A_Status!Y$82","v":0.14613632868133863},{"$f":"Portfolio_A_Status!Z$82","v":0.13566816605486093},{"$f":"Portfolio_A_Status!AA$82","v":0.10862621050028012},{"$f":"Portfolio_A_Status!AB$82","v":0.13006462575827882},{"$f":"Portfolio_A_Status!AC$82","v":4.3319424376277872E-2},{"$f":"SUM(I18:AJ18)","v":1.9702674903605117}]
[null,null,null,null,null,null,null,"B",{"$f":"Portfolio_B_Status!B$82","v":7.7105082942156747E-2},{"$f":"Portfolio_B_Status!C$82","v":4.9976512131752582E-2},{"$f":"Portfolio_B_Status!D$82","v":0.15180614421343425},{"$f":"Portfolio_B_Status!E$82","v":2.9579550375351597E-2},{"$f":"Portfolio_B_Status!F$82","v":0},{"$f":"Portfolio_B_Status!G$82","v":1.4845358200287153E-2},{"$f":"Portfolio_B_Status!H$82","v":1.4845358200287153E-2},{"$f":"Portfolio_B_Status!I$82","v":3.6975018658817138E-2},{"$f":"Portfolio_B_Status!J$82","v":4.420074634289139E-3},{"$f":"Portfolio_B_Status!K$82","v":2.163483868011374E-2},{"$f":"Portfolio_B_Status!L$82","v":0},{"$f":"Portfolio_B_Status!M$82","v":1.6743739868297193E-3},{"$f":"Portfolio_B_Status!N$82","v":1.4999999999999999E-2},{"$f":"Portfolio_B_Status!O$82","v":2.2499999999999999E-2},{"$f":"Portfolio_B_Status!P$82","v":5.9306159857367424E-2},{"$f":"Portfolio_B_Status!Q$82","v":3.4866109682167808E-2},{"$f":"Portfolio_B_Status!R$82","v":0.18956981366609588},{"$f":"Portfolio_B_Status!S$82","v":0.21846721463112473},{"$f":"Portfolio_B_Status!T$82","v":0.10177062650925967},{"$f":"Portfolio_B_Status!U$82","v":7.8740915529962024E-3},{"$f":"Portfolio_B_Status!V$82","v":0.10891273560246523},{"$f":"Portfolio_B_Status!W$82","v":0.14727140084108473},{"$f":"Portfolio_B_Status!X$82","v":0.20999708227192768},{"$f":"Portfolio_B_Status!Y$82","v":0.11482140110676606},{"$f":"Portfolio_B_Status!Z$82","v":4.5222722018286976E-2},{"$f":"Portfolio_B_Status!AA$82","v":3.5040713064606495E-2},{"$f":"Portfolio_B_Status!AB$82","v":0.14864528658089007},{"$f":"Portfolio_B_Status!AC$82","v":6.0647194126789025E-2},{"$f":"SUM(I19:AJ19)","v":1.9227748635351471}]
[null,null,null,null,null,null,null,"C",{"$f":"Portfolio_C_Status!B$82","v":8.680802826687363E-2},{"$f":"Portfolio_C_Status!C$82","v":6.9081559890926417E-2},{"$f":"Portfolio_C_Status!D$82","v":4.5541843264030268E-2},{"$f":"Portfolio_C_Status!E$82","v":5.9159100750703193E-2},{"$f":"Portfolio_C_Status!F$82","v":3.8366370815020027E-2},{"$f":"Portfolio_C_Status!G$82","v":4.7888252258990812E-4},{"$f":"Portfolio_C_Status!H$82","v":1.6056649286838097E-3},{"$f":"Portfolio_C_Status!I$82","v":6.405337804835981E-2},{"$f":"Portfolio_C_Status!J$82","v":6.1613161568878895E-2},{"$f":"Portfolio_C_Status!K$82","v":7.6626664997930125E-2},{"$f":"Portfolio_C_Status!L$82","v":9.2395450072748117E-2},{"$f":"Portfolio_C_Status!M$82","v":4.3685939474557213E-2},{"$f":"Portfolio_C_Status!N$82","v":7.1249999999999994E-2},{"$f":"Portfolio_C_Status!O$82","v":4.4999999999999998E-2},{"$f":"Portfolio_C_Status!P$82","v":4.9421799881139525E-2},{"$f":"Portfolio_C_Status!Q$82","v":0},{"$f":"Portfolio_C_Status!R$82","v":0.24943396535012619},{"$f":"Portfolio_C_Status!S$82","v":0.20361144403620823},{"$f":"Portfolio_C_Status!T$82","v":5.7245977411458565E-2},{"$f":"Portfolio_C_Status!U$82","v":3.149636621198481E-2},{"$f":"Portfolio_C_Status!V$82","v":0.24505365510554677},{"$f":"Portfolio_C_Status!W$82","v":0.11585350199498666},{"$f":"Portfolio_C_Status!X$82","v":9.2398716199648179E-2},{"$f":"Portfolio_C_Status!Y$82","v":0.1565746378728628},{"$f":"Portfolio_C_Status!Z$82","v":0.20350224908229139},{"$f":"Portfolio_C_Status!AA$82","v":0.12965063833904403},{"$f":"Portfolio_C_Status!AB$82","v":1.8580660822611259E-2},{"$f":"Portfolio_C_Status!AC$82","v":5.1983309251533452E-2},2.3604729661607435]
[null,null,null,null,null,null,null,"D",{"$f":"Portfolio_D_Status!B$82","v":7.2559225787510853E-2},{"$f":"Portfolio_D_Status!C$82","v":6.1591303457250522E-2},{"$f":"Portfolio_D_Status!D$82","v":9.1083686528060537E-2},{"$f":"Portfolio_D_Status!E$82","v":1.4789775187675798E-2},{"$f":"Portfolio_D_Status!F$82","v":0},{"$f":"Portfolio_D_Status!G$82","v":0},{"$f":"Portfolio_D_Status!H$82","v":5.9156076319929834E-4},{"$f":"Portfolio_D_Status!I$82","v":2.1122036681183027E-2},{"$f":"Portfolio_D_Status!J$82","v":1.9644776152396171E-3},{"$f":"Portfolio_D_Status!K$82","v":7.1198287292737949E-3},{"$f":"Portfolio_D_Status!L$82","v":3.3262362026189318E-2},{"$f":"Portfolio_D_Status!M$82","v":6.6974959473188763E-4},{"$f":"Portfolio_D_Status!N$82","v":7.4999999999999997E-2},{"$f":"Portfolio_D_Status!O$82","v":6.7500000000000004E-2},{"$f":"Portfolio_D_Status!P$82","v":3.9537439904911618E-2},{"$f":"Portfolio_D_Status!Q$82","v":6.9732219364335615E-2},{"$f":"Portfolio_D_Status!R$82","v":0.19954717228010094},{"$f":"Portfolio_D_Status!S$82","v":0.1599180011099833},{"$f":"Portfolio_D_Status!T$82","v":5.7245977411458558E-2},{"$f":"Portfolio_D_Status!U$82","v":2.3622274658988605E-2},{"$f":"Portfolio_D_Status!V$82","v":0.16336910340369784},{"$f":"Portfolio_D_Status!W$82","v":0.14727140084108473},{"$f":"Portfolio_D_Status!X$82","v":0.10079859949052529},{"$f":"Portfolio_D_Status!Y$82","v":0.17745125625591118},{"$f":"Portfolio_D_Status!Z$82","v":0.15827952706400442},{"$f":"Portfolio_D_Status!AA$82","v":8.0593640048594928E-2},{"$f":"Portfolio_D_Status!AB$82","v":9.2903304113056293E-2},{"$f":"Portfolio_D_Status!AC$82","v":5.1983309251533452E-2},1.9695072315685014]
[null,null,null,null,null,null,null,"E",{"$f":"Portfolio_E_Status!B$82","v":9.7827655843063729E-2},{"$f":"Portfolio_E_Status!C$82","v":7.2388559801767477E-2},{"$f":"Portfolio_E_Status!D$82","v":0.10626430094940396},{"$f":"Portfolio_E_Status!E$82","v":1.4789775187675798E-2},{"$f":"Portfolio_E_Status!F$82","v":0},{"$f":"Portfolio_E_Status!G$82","v":1.4047220662637307E-2},{"$f":"Portfolio_E_Status!H$82","v":4.3381122634615207E-3},{"$f":"Portfolio_E_Status!I$82","v":2.1534397484069462E-2},{"$f":"Portfolio_E_Status!J$82","v":1.9466187278283479E-2},{"$f":"Portfolio_E_Status!K$82","v":0},{"$f":"Portfolio_E_Status!L$82","v":2.9566544023279396E-2},{"$f":"Portfolio_E_Status!M$82","v":1.260346964631825E-2},{"$f":"Portfolio_E_Status!N$82","v":5.2499999999999998E-2},{"$f":"Portfolio_E_Status!O$82","v":0.11249999999999999},{"$f":"Portfolio_E_Status!P$82","v":5.9306159857367424E-2},{"$f":"Portfolio_E_Status!Q$82","v":4.794090081298074E-2},{"$f":"Portfolio_E_Status!R$82","v":0.19954717228010094},{"$f":"Portfolio_E_Status!S$82","v":0.18875567344129177},{"$f":"Portfolio_E_Status!T$82","v":7.6327969881944735E-2},{"$f":"Portfolio_E_Status!U$82","v":0},{"$f":"Portfolio_E_Status!V$82","v":0.13614091950308155},{"$f":"Portfolio_E_Status!W$82","v":4.516322959126598E-2},{"$f":"Portfolio_E_Status!X$82","v":0.13439813265403372},{"$f":"Portfolio_E_Status!Y$82","v":0.14613632868133863},{"$f":"Portfolio_E_Status!Z$82","v":0.11305680504571744},{"$f":"Portfolio_E_Status!AA$82","v":5.2561069596909746E-2},{"$f":"Portfolio_E_Status!AB$82","v":9.2903304113056293E-2},{"$f":"Portfolio_E_Status!AC$82","v":0.12129438825357805},1.9713582768526277]
[]
[]
[null,null,null,null,null,null,null,"SENSITIVITY"]
[null,null,null,null,null,null,null,"Portfolio",null,0,0.2,0.4,0.6,0.8,1]
[null,null,null,null,null,null,null,"A",{"$f":"AK18","v":1.9702674903605117},2.2252188381642899,1.8610026270160356,1.4967864158677811,1.1325702047195263,0.76835399357127199,0.40413778242301768]
[null,null,null,null,null,null,null,"B",{"$f":"AK19","v":1.9227748635351471},2.126023071133166,1.8356684888502821,1.5453139065673973,1.2549593242845125,0.96460474200162782,0.67425015971874303]
[null,null,null,null,null,null,null,"C",2.3604729661607435,2.3488532843569714,2.3654528297909314,2.3820523752248906,2.3986519206588506,2.4152514660928102,2.4318510115267702]
[null,null,null,null,null,null,null,"D",1.9695072315685014,2.2148572280914935,1.8643572330586475,1.5138572380258017,1.163357242992956,0.81285724796010994,0.46235725292726387]
[null,null,null,null,6,null,null,"E",1.9713582768526277,2.1741887738309051,1.8844309210047945,1.5946730681786843,1.3049152153525734,1.0151573625264632,0.72539950970035272]
[null,null,null,null,7]
[null,null,null,null,1]
[null,null,null,null,2]
[null,null,null,null,3]

{"sheet":"Sens_EP","index":20,"n_rows":35,"n_cols":37,"rows_kept":35,"cut":false,"hidden":false,"merged":[]}
["WEIGHTS",null,null,null,null,null,null,null,"EP"]
[null,"management","status","ecol_proc","integration","rigor","total",null,"manage_species","manage_spatial","manage_uncertainty","manage_currentpractices","manage_adaptivemanagement","pop_a","pop_b","pop_spatialscope","pop_temporalscope","hab_quantity","hab_quality","hab_temporal","ecoprocess_spp","ecoprocess_uncertainty","datasharing","broaderimpacts","exisitingpriorities","partners","leverage","alignment","objhyp","response","targettaxa","surveydesign","stats","datamanagement","budget","timeline"]
["Base case",0.16,0.14000000000000001,0.12,0.24,0.33999999999999997,{"$f":"SUM(B3:F3)","v":1},null,"Metric 1","Metric 2","Metric 3","Metric 4","Metric 5","Metric 6a","Metric 6b","Metric 7","Metric 8","Metric 9","Metric 10","Metric 11","Metric 12","Metric 13","Metric 14","Metric 15","Metric 16","Metric 17","Metric 18","Metric 19","Metric 20","Metric 21","Metric 22","Metric 23","Metric 24","Metric 25","Metric 26","Metric 27"]
["Weights",{"$f":"(1-$D$4)*(B$3/SUM($B$3:$C$3,$E$3:$F$3))","v":9.0909090909090912E-2},{"$f":"(1-$D$4)*(C$3/SUM($B$3:$C$3,$E$3:$F$3))","v":7.9545454545454558E-2},0.5,{"$f":"(1-$D$4)*(E$3/SUM($B$3:$C$3,$E$3:$F$3))","v":0.13636363636363635},0.19318181818181818,{"$f":"SUM(B4:F4)","v":1},"F. Obj. sum to 1",0.19820870600426765,0.18737160628911689,0.18975768026679279,0.18487218984594747,0.23978981759387516,0.10603827285919394,0.10603827285919394,0.17999876316471433,0.17539978707496579,0.15453456200081242,0.15839220012471103,0.1195981419164085,0.25,0.75,0.16473933293713175,0.18159432126129066,0.20786163779177183,0.18205601219260392,0.13251383660059851,0.13123485921660338,0.16016578765068418,0.11550698105183116,0.1235276954540751,0.15350454693417923,0.13300800593613818,0.10306092077825441,0.10929800483888977,0.10192805735594795]
[null,null,null,null,null,null,null,"New group weight",{"$f":"$B$4*I$4","v":1.8018973273115243E-2},{"$f":"$B$4*J$4","v":1.7033782389919719E-2},1.7250698206072074E-2,1.6806562713267952E-2,2.1799074326715923E-2,{"$f":"$C$4*N$4","v":8.4348626137995195E-3},{"$f":"$C$4*O$4","v":8.4348626137995195E-3},1.4318083433556825E-2,1.3952255790054099E-2,1.2292521977337354E-2,1.2599379555374744E-2,9.5134885615324963E-3,{"$f":"$D$4*U$4","v":0.125},{"$f":"$D$4*V$4","v":0.375},{"$f":"$E$4*W$4","v":2.2464454491427054E-2},{"$f":"$E$4*X$4","v":2.4762861990175997E-2},2.8344768789787065E-2,2.4825819844445988E-2,1.807006862735434E-2,1.7895662620445913E-2,{"$f":"$F$4*AC$4","v":3.0941118068882171E-2},{"$f":"$F$4*AD$4","v":2.2313848612285563E-2},2.3863304803628145E-2,2.9654287475920985E-2,2.5694728419481238E-2,1.9909496059435511E-2,2.1114387298421886E-2,1.9690647443762671E-2,{"$f":"SUM(I5:AJ5)","v":1.0000000000000002}]
[null,null,null,null,null,null,null,null,0.03,0.03,0.03,0.03,0.04,1.4999999999999999E-2,1.4999999999999999E-2,0.03,0.02,0.02,0.02,0.02,0.03,0.09,0.04,0.04,0.05,0.05,0.03,0.03,0.05,0.04,0.04,0.05,0.05,0.04,0.04,0.03,{"$f":"SUM(I6:AJ6)","v":1.0000000000000004}]
[null,null,null,null,null,null,null,null,{"$f":"(1-J7)*(I6/SUM(I6,K6:AJ6))","v":2.9999999999999988E-2},0.03,{"$f":"(1-$J$7)*(K6/SUM($I$6,$K$6:$AJ$6))","v":2.9999999999999988E-2},{"$f":"(1-$J$7)*(L6/SUM($I$6,$K$6:$AJ$6))","v":2.9999999999999988E-2},3.9999999999999987E-2,1.4999999999999994E-2,1.4999999999999994E-2,2.9999999999999988E-2,1.9999999999999993E-2,1.9999999999999993E-2,1.9999999999999993E-2,1.9999999999999993E-2,2.9999999999999988E-2,8.9999999999999955E-2,3.9999999999999987E-2,3.9999999999999987E-2,4.9999999999999982E-2,4.9999999999999982E-2,2.9999999999999988E-2,2.9999999999999988E-2,4.9999999999999982E-2,3.9999999999999987E-2,3.9999999999999987E-2,4.9999999999999982E-2,4.9999999999999982E-2,3.9999999999999987E-2,3.9999999999999987E-2,2.9999999999999988E-2,{"$f":"SUM(I7:AJ7)","v":0.99999999999999978}]
["WEIGHTED UTILITY"]
["Portfolio",{"$f":"B2","v":"management"},{"$f":"C2","v":"status"},"ecol_proc","integration","rigor"]
["A"]
["B"]
["C"]
["D"]
["E"]
[]
[null,null,null,null,null,null,null,"WEIGHTED UTILITY"]
[null,null,null,null,null,null,null,"Portfolio",{"$f":"I2","v":"manage_species"},{"$f":"J2","v":"manage_spatial"},"manage_uncertainty","manage_currentpractices","manage_adaptivemanagement","pop_a","pop_b","pop_spatialscope","pop_temporalscope","hab_quantity","hab_quality","hab_temporal","ecoprocess_spp","ecoprocess_uncertainty","datasharing","broaderimpacts","exisitingpriorities","partners","leverage","alignment","objhyp","response","targettaxa","surveydesign","stats","datamanagement","budget","timeline","total"]
[null,null,null,null,null,null,null,"A",{"$f":"Portfolio_A_ep!B$82","v":4.8898012906532382E-2},{"$f":"Portfolio_A_ep!C$82","v":5.6760734414975297E-2},{"$f":"Portfolio_A_ep!D$82","v":6.0377443721252262E-2},{"$f":"Portfolio_A_ep!E$82","v":8.4032813566339761E-3},{"$f":"Portfolio_A_ep!F$82","v":0},{"$f":"Portfolio_A_ep!G$82","v":7.9813753764984702E-3},{"$f":"Portfolio_A_ep!H$82","v":2.7049179919015538E-3},{"$f":"Portfolio_A_ep!I$82","v":1.0803644772592876E-2},{"$f":"Portfolio_A_ep!J$82","v":1.116180463204328E-3},{"$f":"Portfolio_A_ep!K$82","v":0},{"$f":"Portfolio_A_ep!L$82","v":8.3995863702498279E-3},{"$f":"Portfolio_A_ep!M$82","v":1.1416186273838994E-3},{"$f":"Portfolio_A_ep!N$82","v":0.25},{"$f":"Portfolio_A_ep!O$82","v":0.1875},{"$f":"Portfolio_A_ep!P$82","v":2.8080568114283819E-2},{"$f":"Portfolio_A_ep!Q$82","v":3.96205791842816E-2},{"$f":"Portfolio_A_ep!R$82","v":0.11904802891710568},{"$f":"Portfolio_A_ep!S$82","v":9.9055021179339495E-2},{"$f":"Portfolio_A_ep!T$82","v":3.9754150980179551E-2},{"$f":"Portfolio_A_ep!U$82","v":4.4739156551114783E-3},{"$f":"Portfolio_A_ep!V$82","v":9.2823354206646516E-2},{"$f":"Portfolio_A_ep!W$82","v":4.7974774516413958E-2},{"$f":"Portfolio_A_ep!X$82","v":6.2044592489433191E-2},{"$f":"Portfolio_A_ep!Y$82","v":8.3032004932578771E-2},{"$f":"Portfolio_A_ep!Z$82","v":7.708418525844371E-2},{"$f":"Portfolio_A_ep!AA$82","v":6.1719437784250077E-2},{"$f":"Portfolio_A_ep!AB$82","v":7.3900355544476604E-2},{"$f":"Portfolio_A_ep!AC$82","v":2.4613309304703339E-2},{"$f":"SUM(I18:AJ18)","v":1.4973110740684725}]
[null,null,null,null,null,null,null,"B",{"$f":"Portfolio_B_ep!B$82","v":4.3809706217134523E-2},{"$f":"Portfolio_B_ep!C$82","v":2.8395745529404881E-2},{"$f":"Portfolio_B_ep!D$82","v":8.6253491030360369E-2},{"$f":"Portfolio_B_ep!E$82","v":1.6806562713267952E-2},{"$f":"Portfolio_B_ep!F$82","v":0},{"$f":"Portfolio_B_ep!G$82","v":8.4348626137995195E-3},{"$f":"Portfolio_B_ep!H$82","v":8.4348626137995195E-3},{"$f":"Portfolio_B_ep!I$82","v":2.1008533328873376E-2},{"$f":"Portfolio_B_ep!J$82","v":2.5114060422097382E-3},{"$f":"Portfolio_B_ep!K$82","v":1.2292521977337354E-2},{"$f":"Portfolio_B_ep!L$82","v":0},{"$f":"Portfolio_B_ep!M$82","v":9.5134885615324972E-4},{"$f":"Portfolio_B_ep!N$82","v":6.25E-2},{"$f":"Portfolio_B_ep!O$82","v":9.375E-2},{"$f":"Portfolio_B_ep!P$82","v":3.3696681737140577E-2},{"$f":"Portfolio_B_ep!Q$82","v":1.98102895921408E-2},{"$f":"Portfolio_B_ep!R$82","v":0.10771012140119084},{"$f":"Portfolio_B_ep!S$82","v":0.12412909922222994},{"$f":"Portfolio_B_ep!T$82","v":5.7824219607533894E-2},{"$f":"Portfolio_B_ep!U$82","v":4.4739156551114783E-3},{"$f":"Portfolio_B_ep!V$82","v":6.1882236137764342E-2},{"$f":"Portfolio_B_ep!W$82","v":8.3676932296070858E-2},{"$f":"Portfolio_B_ep!X$82","v":0.11931652401814072},{"$f":"Portfolio_B_ep!Y$82","v":6.5239432447026166E-2},{"$f":"Portfolio_B_ep!Z$82","v":2.5694728419481238E-2},{"$f":"Portfolio_B_ep!AA$82","v":1.9909496059435511E-2},{"$f":"Portfolio_B_ep!AB$82","v":8.4457549193687545E-2},{"$f":"Portfolio_B_ep!AC$82","v":3.4458633026584674E-2},{"$f":"SUM(I19:AJ19)","v":1.2274288997358791}]
[null,null,null,null,null,null,null,"C",{"$f":"Portfolio_C_ep!B$82","v":4.9322743333450929E-2},{"$f":"Portfolio_C_ep!C$82","v":3.9250886301662742E-2},{"$f":"Portfolio_C_ep!D$82","v":2.5876047309108113E-2},{"$f":"Portfolio_C_ep!E$82","v":3.3613125426535904E-2},{"$f":"Portfolio_C_ep!F$82","v":2.1799074326715923E-2},{"$f":"Portfolio_C_ep!G$82","v":2.7209234238062964E-4},{"$f":"Portfolio_C_ep!H$82","v":9.1230961857034646E-4},{"$f":"Portfolio_C_ep!I$82","v":3.6393964800204438E-2},{"$f":"Portfolio_C_ep!J$82","v":3.5007478164135734E-2},{"$f":"Portfolio_C_ep!K$82","v":4.3537877839733029E-2},{"$f":"Portfolio_C_ep!L$82","v":5.2497414814061436E-2},{"$f":"Portfolio_C_ep!M$82","v":2.4821556519634785E-2},{"$f":"Portfolio_C_ep!N$82","v":0.296875},{"$f":"Portfolio_C_ep!O$82","v":0.1875},{"$f":"Portfolio_C_ep!P$82","v":2.8080568114283819E-2},{"$f":"Portfolio_C_ep!Q$82","v":0},{"$f":"Portfolio_C_ep!R$82","v":0.14172384394893534},{"$f":"Portfolio_C_ep!S$82","v":0.1156883204751183},{"$f":"Portfolio_C_ep!T$82","v":3.2526123529237817E-2},{"$f":"Portfolio_C_ep!U$82","v":1.7895662620445913E-2},{"$f":"Portfolio_C_ep!V$82","v":0.13923503130996978},{"$f":"Portfolio_C_ep!W$82","v":6.5825853406242418E-2},{"$f":"Portfolio_C_ep!X$82","v":5.2499270567981926E-2},{"$f":"Portfolio_C_ep!Y$82","v":8.8962862427762954E-2},{"$f":"Portfolio_C_ep!Z$82","v":0.11562627788766557},{"$f":"Portfolio_C_ep!AA$82","v":7.366513541991139E-2},{"$f":"Portfolio_C_ep!AB$82","v":1.0557193649210943E-2},{"$f":"Portfolio_C_ep!AC$82","v":2.9535971165644007E-2},1.7595016853186041]
[null,null,null,null,null,null,null,"D",{"$f":"Portfolio_D_ep!B$82","v":4.1226832833812989E-2},{"$f":"Portfolio_D_ep!C$82","v":3.4995058782528711E-2},{"$f":"Portfolio_D_ep!D$82","v":5.1752094618216227E-2},{"$f":"Portfolio_D_ep!E$82","v":8.4032813566339761E-3},{"$f":"Portfolio_D_ep!F$82","v":0},{"$f":"Portfolio_D_ep!G$82","v":0},{"$f":"Portfolio_D_ep!H$82","v":3.3611406999960137E-4},{"$f":"Portfolio_D_ep!I$82","v":1.2001157205217631E-2},{"$f":"Portfolio_D_ep!J$82","v":1.116180463204328E-3},{"$f":"Portfolio_D_ep!K$82","v":4.0453572325419296E-3},{"$f":"Portfolio_D_ep!L$82","v":1.8899069333062117E-2},{"$f":"Portfolio_D_ep!M$82","v":3.8053954246129989E-4},{"$f":"Portfolio_D_ep!N$82","v":0.3125},{"$f":"Portfolio_D_ep!O$82","v":0.28125},{"$f":"Portfolio_D_ep!P$82","v":2.2464454491427054E-2},{"$f":"Portfolio_D_ep!Q$82","v":3.96205791842816E-2},{"$f":"Portfolio_D_ep!R$82","v":0.11337907515914826},{"$f":"Portfolio_D_ep!S$82","v":9.0862500630672319E-2},{"$f":"Portfolio_D_ep!T$82","v":3.252612352923781E-2},{"$f":"Portfolio_D_ep!U$82","v":1.3421746965334436E-2},{"$f":"Portfolio_D_ep!V$82","v":9.2823354206646516E-2},{"$f":"Portfolio_D_ep!W$82","v":8.3676932296070858E-2},{"$f":"Portfolio_D_ep!X$82","v":5.7271931528707555E-2},{"$f":"Portfolio_D_ep!Y$82","v":0.10082457741813136},{"$f":"Portfolio_D_ep!Z$82","v":8.9931549468184338E-2},{"$f":"Portfolio_D_ep!AA$82","v":4.5791840936701668E-2},{"$f":"Portfolio_D_ep!AB$82","v":5.2785968246054714E-2},{"$f":"Portfolio_D_ep!AC$82","v":2.9535971165644007E-2},1.6318222906639213]
[null,null,null,null,null,null,null,"E",{"$f":"Portfolio_E_ep!B$82","v":5.5583895365377126E-2},{"$f":"Portfolio_E_ep!C$82","v":4.1129863523731526E-2},{"$f":"Portfolio_E_ep!D$82","v":6.0377443721252262E-2},{"$f":"Portfolio_E_ep!E$82","v":8.4032813566339761E-3},{"$f":"Portfolio_E_ep!F$82","v":0},{"$f":"Portfolio_E_ep!G$82","v":7.9813753764984702E-3},{"$f":"Portfolio_E_ep!H$82","v":2.4648365133304101E-3},{"$f":"Portfolio_E_ep!I$82","v":1.2235453115948558E-2},{"$f":"Portfolio_E_ep!J$82","v":1.1060333680842886E-2},{"$f":"Portfolio_E_ep!K$82","v":0},{"$f":"Portfolio_E_ep!L$82","v":1.6799172740499656E-2},{"$f":"Portfolio_E_ep!M$82","v":7.1610622990444604E-3},{"$f":"Portfolio_E_ep!N$82","v":0.21875},{"$f":"Portfolio_E_ep!O$82","v":0.46875},{"$f":"Portfolio_E_ep!P$82","v":3.3696681737140577E-2},{"$f":"Portfolio_E_ep!Q$82","v":2.72391481891936E-2},{"$f":"Portfolio_E_ep!R$82","v":0.11337907515914826},{"$f":"Portfolio_E_ep!S$82","v":0.10724754172800667},{"$f":"Portfolio_E_ep!T$82","v":4.3368164705650414E-2},{"$f":"Portfolio_E_ep!U$82","v":0},{"$f":"Portfolio_E_ep!V$82","v":7.7352795172205432E-2},{"$f":"Portfolio_E_ep!W$82","v":2.5660925904128395E-2},{"$f":"Portfolio_E_ep!X$82","v":7.6362575371610064E-2},{"$f":"Portfolio_E_ep!Y$82","v":8.3032004932578771E-2},{"$f":"Portfolio_E_ep!Z$82","v":6.4236821048703097E-2},{"$f":"Portfolio_E_ep!AA$82","v":2.9864244089153266E-2},{"$f":"Portfolio_E_ep!AB$82","v":5.2785968246054714E-2},{"$f":"Portfolio_E_ep!AC$82","v":6.8917266053169349E-2},1.7138399300299021]
[]
[]
[null,null,null,null,null,null,null,"SENSITIVITY"]
[null,null,null,null,null,null,null,"Portfolio",null,0,0.2,0.4,0.6,0.8,1]
[null,null,null,null,null,null,null,"A",{"$f":"AK18","v":1.4973110740684725},2.1196221481369455,1.8706977185095561,1.6217732888821672,1.3728488592547776,1.1239244296273891,0.875]
[null,null,null,null,null,null,null,"B",{"$f":"AK19","v":1.2274288997358791},2.1423577994717582,1.7763862395774066,1.410414679683055,1.0444431197887034,0.67847155989435148,0.3125]
[null,null,null,null,null,null,null,"C",1.7595016853186041,2.5502533706372086,2.2339526965097667,1.9176520223823252,1.6013513482548838,1.2850506741274412,0.96875]
[null,null,null,null,null,null,null,"D",1.6318222906639213,2.0761445813278425,1.8984156650622743,1.7206867487967052,1.5429578325311371,1.3652289162655684,1.1875]
[null,null,null,null,6,null,null,"E",1.7138399300299021,2.0526798600598037,1.9171438880478431,1.7816079160358818,1.646071944023922,1.5105359720119611,1.375]
[null,null,null,null,7]
[null,null,null,null,1]
[null,null,null,null,2]
[null,null,null,null,3]

{"sheet":"Sens_Int","index":21,"n_rows":35,"n_cols":37,"rows_kept":35,"cut":false,"hidden":false,"merged":[]}
["WEIGHTS",null,null,null,null,null,null,null,"EP"]
[null,"management","status","ecol_proc","integration","rigor","total",null,"manage_species","manage_spatial","manage_uncertainty","manage_currentpractices","manage_adaptivemanagement","pop_a","pop_b","pop_spatialscope","pop_temporalscope","hab_quantity","hab_quality","hab_temporal","ecoprocess_spp","ecoprocess_uncertainty","datasharing","broaderimpacts","exisitingpriorities","partners","leverage","alignment","objhyp","response","targettaxa","surveydesign","stats","datamanagement","budget","timeline"]
["Base case",0.16,0.14000000000000001,0.12,0.24,0.33999999999999997,{"$f":"SUM(B3:F3)","v":1},null,"Metric 1","Metric 2","Metric 3","Metric 4","Metric 5","Metric 6a","Metric 6b","Metric 7","Metric 8","Metric 9","Metric 10","Metric 11","Metric 12","Metric 13","Metric 14","Metric 15","Metric 16","Metric 17","Metric 18","Metric 19","Metric 20","Metric 21","Metric 22","Metric 23","Metric 24","Metric 25","Metric 26","Metric 27"]
["Weights",{"$f":"(1-$E$4)*(B$3/SUM($B$3:$D$3,$F$3))","v":0.10526315789473684},{"$f":"(1-$E$4)*(C$3/SUM($B$3:$D$3,$F$3))","v":9.2105263157894746E-2},7.8947368421052627E-2,0.5,{"$f":"(1-$E$4)*(F3/SUM($B$3:$D$3,$F$3))","v":0.22368421052631576},{"$f":"SUM(B4:F4)","v":1},"F. Obj. sum to 1",0.19820870600426765,0.18737160628911689,0.18975768026679279,0.18487218984594747,0.23978981759387516,0.10603827285919394,0.10603827285919394,0.17999876316471433,0.17539978707496579,0.15453456200081242,0.15839220012471103,0.1195981419164085,0.25,0.75,0.16473933293713175,0.18159432126129066,0.20786163779177183,0.18205601219260392,0.13251383660059851,0.13123485921660338,0.16016578765068418,0.11550698105183116,0.1235276954540751,0.15350454693417923,0.13300800593613818,0.10306092077825441,0.10929800483888977,0.10192805735594795]
[null,null,null,null,null,null,null,"New group weight",{"$f":"$B$4*I$4","v":2.0864074316238698E-2},{"$f":"$B$4*J$4","v":1.9723326977801776E-2},1.9974492659662398E-2,1.9460230510099732E-2,2.5241033430934225E-2,{"$f":"$C$4*N$4","v":9.7666830265047064E-3},{"$f":"$C$4*O$4","v":9.7666830265047064E-3},1.6578833449381585E-2,1.6155243546378428E-2,1.4233446500074829E-2,1.4588755274644438E-2,1.1015618334406046E-2,{"$f":"$D$4*U$4","v":1.9736842105263157E-2},{"$f":"$D$4*V$4","v":5.921052631578947E-2},{"$f":"$E$4*W$4","v":8.2369666468565875E-2},{"$f":"$E$4*X$4","v":9.0797160630645329E-2},0.10393081889588592,9.1028006096301961E-2,6.6256918300299256E-2,6.5617429608301692E-2,{"$f":"$F$4*AC$4","v":3.5826557763968828E-2},{"$f":"$F$4*AD$4","v":2.5837087866856966E-2},2.7631195035779953E-2,3.4336543393171666E-2,2.9751790801504589E-2,2.305310070039901E-2,2.4448237924488497E-2,2.2799697040146252E-2,{"$f":"SUM(I5:AJ5)","v":0.99999999999999989}]
[null,null,null,null,null,null,null,null,0.03,0.03,0.03,0.03,0.04,1.4999999999999999E-2,1.4999999999999999E-2,0.03,0.02,0.02,0.02,0.02,0.03,0.09,0.04,0.04,0.05,0.05,0.03,0.03,0.05,0.04,0.04,0.05,0.05,0.04,0.04,0.03,{"$f":"SUM(I6:AJ6)","v":1.0000000000000004}]
[null,null,null,null,null,null,null,null,{"$f":"(1-J7)*(I6/SUM(I6,K6:AJ6))","v":2.9999999999999988E-2},0.03,{"$f":"(1-$J$7)*(K6/SUM($I$6,$K$6:$AJ$6))","v":2.9999999999999988E-2},{"$f":"(1-$J$7)*(L6/SUM($I$6,$K$6:$AJ$6))","v":2.9999999999999988E-2},3.9999999999999987E-2,1.4999999999999994E-2,1.4999999999999994E-2,2.9999999999999988E-2,1.9999999999999993E-2,1.9999999999999993E-2,1.9999999999999993E-2,1.9999999999999993E-2,2.9999999999999988E-2,8.9999999999999955E-2,3.9999999999999987E-2,3.9999999999999987E-2,4.9999999999999982E-2,4.9999999999999982E-2,2.9999999999999988E-2,2.9999999999999988E-2,4.9999999999999982E-2,3.9999999999999987E-2,3.9999999999999987E-2,4.9999999999999982E-2,4.9999999999999982E-2,3.9999999999999987E-2,3.9999999999999987E-2,2.9999999999999988E-2,{"$f":"SUM(I7:AJ7)","v":0.99999999999999978}]
["WEIGHTED UTILITY"]
["Portfolio",{"$f":"B2","v":"management"},{"$f":"C2","v":"status"},"ecol_proc","integration","rigor"]
["A"]
["B"]
["C"]
["D"]
["E"]
[]
[null,null,null,null,null,null,null,"WEIGHTED UTILITY"]
[null,null,null,null,null,null,null,"Portfolio",{"$f":"I2","v":"manage_species"},{"$f":"J2","v":"manage_spatial"},"manage_uncertainty","manage_currentpractices","manage_adaptivemanagement","pop_a","pop_b","pop_spatialscope","pop_temporalscope","hab_quantity","hab_quality","hab_temporal","ecoprocess_spp","ecoprocess_uncertainty","datasharing","broaderimpacts","exisitingpriorities","partners","leverage","alignment","objhyp","response","targettaxa","surveydesign","stats","datamanagement","budget","timeline","total"]
[null,null,null,null,null,null,null,"A",{"$f":"Portfolio_A_Int!B$82","v":5.6618751786511164E-2},{"$f":"Portfolio_A_Int!C$82","v":6.5722955638392436E-2},{"$f":"Portfolio_A_Int!D$82","v":6.9910724308818395E-2},{"$f":"Portfolio_A_Int!E$82","v":9.7301152550498659E-3},{"$f":"Portfolio_A_Int!F$82","v":0},{"$f":"Portfolio_A_Int!G$82","v":9.2415925412087548E-3},{"$f":"Portfolio_A_Int!H$82","v":3.1320103064123249E-3},{"$f":"Portfolio_A_Int!I$82","v":1.2509483420897013E-2},{"$f":"Portfolio_A_Int!J$82","v":1.2924194837102743E-3},{"$f":"Portfolio_A_Int!K$82","v":0},{"$f":"Portfolio_A_Int!L$82","v":9.7258368497629578E-3},{"$f":"Portfolio_A_Int!M$82","v":1.3218742001287254E-3},{"$f":"Portfolio_A_Int!N$82","v":3.9473684210526314E-2},{"$f":"Portfolio_A_Int!O$82","v":2.9605263157894735E-2},{"$f":"Portfolio_A_Int!P$82","v":0.10296208308570734},{"$f":"Portfolio_A_Int!Q$82","v":0.14527545700903252},{"$f":"Portfolio_A_Int!R$82","v":0.43650943936272085},{"$f":"Portfolio_A_Int!S$82","v":0.36320174432424485},{"$f":"Portfolio_A_Int!T$82","v":0.14576522026065838},{"$f":"Portfolio_A_Int!U$82","v":1.6404357402075423E-2},{"$f":"Portfolio_A_Int!V$82","v":0.10747967329190648},{"$f":"Portfolio_A_Int!W$82","v":5.5549738913742472E-2},{"$f":"Portfolio_A_Int!X$82","v":7.1841107093027892E-2},{"$f":"Portfolio_A_Int!Y$82","v":9.6142321500880673E-2},{"$f":"Portfolio_A_Int!Z$82","v":8.9255372404513769E-2},{"$f":"Portfolio_A_Int!AA$82","v":7.1464612171236924E-2},{"$f":"Portfolio_A_Int!AB$82","v":8.5568832735709741E-2},{"$f":"Portfolio_A_Int!AC$82","v":2.8499621300182815E-2},{"$f":"SUM(I18:AJ18)","v":2.1242042920149529}]
[null,null,null,null,null,null,null,"B",{"$f":"Portfolio_B_Int!B$82","v":5.0727028251418907E-2},{"$f":"Portfolio_B_Int!C$82","v":3.2879284297205644E-2},{"$f":"Portfolio_B_Int!D$82","v":9.9872463298311981E-2},{"$f":"Portfolio_B_Int!E$82","v":1.9460230510099732E-2},{"$f":"Portfolio_B_Int!F$82","v":0},{"$f":"Portfolio_B_Int!G$82","v":9.7666830265047064E-3},{"$f":"Portfolio_B_Int!H$82","v":9.7666830265047064E-3},{"$f":"Portfolio_B_Int!I$82","v":2.4325670170274434E-2},{"$f":"Portfolio_B_Int!J$82","v":2.9079438383481176E-3},{"$f":"Portfolio_B_Int!K$82","v":1.4233446500074829E-2},{"$f":"Portfolio_B_Int!L$82","v":0},{"$f":"Portfolio_B_Int!M$82","v":1.1015618334406045E-3},{"$f":"Portfolio_B_Int!N$82","v":9.8684210526315784E-3},{"$f":"Portfolio_B_Int!O$82","v":1.4802631578947368E-2},{"$f":"Portfolio_B_Int!P$82","v":0.12355449970284882},{"$f":"Portfolio_B_Int!Q$82","v":7.2637728504516261E-2},{"$f":"Portfolio_B_Int!R$82","v":0.39493711180436647},{"$f":"Portfolio_B_Int!S$82","v":0.45514003048150981},{"$f":"Portfolio_B_Int!T$82","v":0.21202213856095764},{"$f":"Portfolio_B_Int!U$82","v":1.6404357402075423E-2},{"$f":"Portfolio_B_Int!V$82","v":7.1653115527937655E-2},{"$f":"Portfolio_B_Int!W$82","v":9.6889079500713626E-2},{"$f":"Portfolio_B_Int!X$82","v":0.13815597517889977},{"$f":"Portfolio_B_Int!Y$82","v":7.5540395464977678E-2},{"$f":"Portfolio_B_Int!Z$82","v":2.9751790801504589E-2},{"$f":"Portfolio_B_Int!AA$82","v":2.305310070039901E-2},{"$f":"Portfolio_B_Int!AB$82","v":9.7792951697953989E-2},{"$f":"Portfolio_B_Int!AC$82","v":3.9899469820255939E-2},{"$f":"SUM(I19:AJ19)","v":2.1371437925326786}]
[null,null,null,null,null,null,null,"C",{"$f":"Portfolio_C_Int!B$82","v":5.711054491241685E-2},{"$f":"Portfolio_C_Int!C$82","v":4.5448394665083165E-2},{"$f":"Portfolio_C_Int!D$82","v":2.9961738989493596E-2},{"$f":"Portfolio_C_Int!E$82","v":3.8920461020199464E-2},{"$f":"Portfolio_C_Int!F$82","v":2.5241033430934225E-2},{"$f":"Portfolio_C_Int!G$82","v":3.1505429117757115E-4},{"$f":"Portfolio_C_Int!H$82","v":1.0563585057130327E-3},{"$f":"Portfolio_C_Int!I$82","v":4.2140380294973558E-2},{"$f":"Portfolio_C_Int!J$82","v":4.0534974716367689E-2},{"$f":"Portfolio_C_Int!K$82","v":5.0412279603901398E-2},{"$f":"Portfolio_C_Int!L$82","v":6.0786480311018493E-2},{"$f":"Portfolio_C_Int!M$82","v":2.8740749654313953E-2},{"$f":"Portfolio_C_Int!N$82","v":4.6875E-2},{"$f":"Portfolio_C_Int!O$82","v":2.9605263157894735E-2},{"$f":"Portfolio_C_Int!P$82","v":0.10296208308570734},{"$f":"Portfolio_C_Int!Q$82","v":0},{"$f":"Portfolio_C_Int!R$82","v":0.51965409447942956},{"$f":"Portfolio_C_Int!S$82","v":0.42419050840876715},{"$f":"Portfolio_C_Int!T$82","v":0.11926245294053868},{"$f":"Portfolio_C_Int!U$82","v":6.5617429608301692E-2},{"$f":"Portfolio_C_Int!V$82","v":0.16121950993785972},{"$f":"Portfolio_C_Int!W$82","v":7.6219409207228056E-2},{"$f":"Portfolio_C_Int!X$82","v":6.0788629078715899E-2},{"$f":"Portfolio_C_Int!Y$82","v":0.103009630179515},{"$f":"Portfolio_C_Int!Z$82","v":0.13388305860677066},{"$f":"Portfolio_C_Int!AA$82","v":8.5296472591476324E-2},{"$f":"Portfolio_C_Int!AB$82","v":1.2224118962244249E-2},{"$f":"Portfolio_C_Int!AC$82","v":3.4199545560219376E-2},2.395675656200261]
[null,null,null,null,null,null,null,"D",{"$f":"Portfolio_D_Int!B$82","v":4.7736332754941345E-2},{"$f":"Portfolio_D_Int!C$82","v":4.0520594379770077E-2},{"$f":"Portfolio_D_Int!D$82","v":5.9923477978987193E-2},{"$f":"Portfolio_D_Int!E$82","v":9.7301152550498659E-3},{"$f":"Portfolio_D_Int!F$82","v":0},{"$f":"Portfolio_D_Int!G$82","v":0},{"$f":"Portfolio_D_Int!H$82","v":3.8918471263111736E-4},{"$f":"Portfolio_D_Int!I$82","v":1.3896076763936203E-2},{"$f":"Portfolio_D_Int!J$82","v":1.2924194837102743E-3},{"$f":"Portfolio_D_Int!K$82","v":4.6840978482064442E-3},{"$f":"Portfolio_D_Int!L$82","v":2.1883132911966655E-2},{"$f":"Portfolio_D_Int!M$82","v":4.4062473337624182E-4},{"$f":"Portfolio_D_Int!N$82","v":4.9342105263157895E-2},{"$f":"Portfolio_D_Int!O$82","v":4.4407894736842105E-2},{"$f":"Portfolio_D_Int!P$82","v":8.2369666468565875E-2},{"$f":"Portfolio_D_Int!Q$82","v":0.14527545700903252},{"$f":"Portfolio_D_Int!R$82","v":0.41572327558354366},{"$f":"Portfolio_D_Int!S$82","v":0.33316250231246519},{"$f":"Portfolio_D_Int!T$82","v":0.11926245294053867},{"$f":"Portfolio_D_Int!U$82","v":4.9213072206226269E-2},{"$f":"Portfolio_D_Int!V$82","v":0.10747967329190648},{"$f":"Portfolio_D_Int!W$82","v":9.6889079500713626E-2},{"$f":"Portfolio_D_Int!X$82","v":6.6314868085871892E-2},{"$f":"Portfolio_D_Int!Y$82","v":0.11674424753678368},{"$f":"Portfolio_D_Int!Z$82","v":0.10413126780526606},{"$f":"Portfolio_D_Int!AA$82","v":5.3022131610917719E-2},{"$f":"Portfolio_D_Int!AB$82","v":6.1120594811221243E-2},{"$f":"Portfolio_D_Int!AC$82","v":3.4199545560219376E-2},2.0791538915458476]
[null,null,null,null,null,null,null,"E",{"$f":"Portfolio_E_Int!B$82","v":6.4360299896752446E-2},{"$f":"Portfolio_E_Int!C$82","v":4.7624052501162813E-2},{"$f":"Portfolio_E_Int!D$82","v":6.9910724308818395E-2},{"$f":"Portfolio_E_Int!E$82","v":9.7301152550498659E-3},{"$f":"Portfolio_E_Int!F$82","v":0},{"$f":"Portfolio_E_Int!G$82","v":9.2415925412087548E-3},{"$f":"Portfolio_E_Int!H$82","v":2.8540212259615273E-3},{"$f":"Portfolio_E_Int!I$82","v":1.4167366765835172E-2},{"$f":"Portfolio_E_Int!J$82","v":1.2806702156765446E-2},{"$f":"Portfolio_E_Int!K$82","v":0},{"$f":"Portfolio_E_Int!L$82","v":1.9451673699525916E-2},{"$f":"Portfolio_E_Int!M$82","v":8.2917563462620043E-3},{"$f":"Portfolio_E_Int!N$82","v":3.4539473684210523E-2},{"$f":"Portfolio_E_Int!O$82","v":7.4013157894736836E-2},{"$f":"Portfolio_E_Int!P$82","v":0.12355449970284882},{"$f":"Portfolio_E_Int!Q$82","v":9.9876876693709871E-2},{"$f":"Portfolio_E_Int!R$82","v":0.41572327558354366},{"$f":"Portfolio_E_Int!S$82","v":0.3932409863360245},{"$f":"Portfolio_E_Int!T$82","v":0.1590166039207182},{"$f":"Portfolio_E_Int!U$82","v":0},{"$f":"Portfolio_E_Int!V$82","v":8.9566394409922062E-2},{"$f":"Portfolio_E_Int!W$82","v":2.9712651046885509E-2},{"$f":"Portfolio_E_Int!X$82","v":8.8419824114495851E-2},{"$f":"Portfolio_E_Int!Y$82","v":9.6142321500880673E-2},{"$f":"Portfolio_E_Int!Z$82","v":7.4379477003761477E-2},{"$f":"Portfolio_E_Int!AA$82","v":3.4579651050598514E-2},{"$f":"Portfolio_E_Int!AB$82","v":6.1120594811221243E-2},{"$f":"Portfolio_E_Int!AC$82","v":7.9798939640511879E-2},2.1121230320914122]
[]
[]
[null,null,null,null,null,null,null,"SENSITIVITY"]
[null,null,null,null,null,null,null,"Portfolio",null,0,0.2,0.4,0.6,0.8,1]
[null,null,null,null,null,null,null,"A",{"$f":"AK18","v":2.1242042920149529},1.8281719811410273,1.9465849054905977,2.0649978298401677,2.1834107541897376,2.3018236785393094,2.4202366028888784]
[null,null,null,null,null,null,null,"B",{"$f":"AK19","v":2.1371437925326786},1.7248958521528099,1.8897950283047575,2.0546942044567049,2.2195933806086532,2.3844925567606006,2.5493917329125488]
[null,null,null,null,null,null,null,"C",2.395675656200261,2.3279781753550344,2.3550571676931251,2.3821361600312159,2.4092151523693071,2.4362941447073982,2.4633731370454885]
[null,null,null,null,null,null,null,"D",2.0791538915458476,1.8682949300509513,1.95263851464891,2.0369820992468681,2.1213256838448267,2.2056692684427861,2.2900128530407442]
[null,null,null,null,6,null,null,"E",2.1121230320914122,1.8414215797091336,1.949702160662045,2.0579827416149565,2.1662633225678682,2.2745439035207791,2.3828244844736899]
[null,null,null,null,7]
[null,null,null,null,1]
[null,null,null,null,2]
[null,null,null,null,3]

{"sheet":"Sens_Rigor","index":22,"n_rows":35,"n_cols":37,"rows_kept":35,"cut":false,"hidden":false,"merged":[]}
["WEIGHTS",null,null,null,null,null,null,null,"EP"]
[null,"management","status","ecol_proc","integration","rigor","total",null,"manage_species","manage_spatial","manage_uncertainty","manage_currentpractices","manage_adaptivemanagement","pop_a","pop_b","pop_spatialscope","pop_temporalscope","hab_quantity","hab_quality","hab_temporal","ecoprocess_spp","ecoprocess_uncertainty","datasharing","broaderimpacts","exisitingpriorities","partners","leverage","alignment","objhyp","response","targettaxa","surveydesign","stats","datamanagement","budget","timeline"]
["Base case",0.16,0.14000000000000001,0.12,0.24,0.33999999999999997,{"$f":"SUM(B3:F3)","v":1},null,"Metric 1","Metric 2","Metric 3","Metric 4","Metric 5","Metric 6a","Metric 6b","Metric 7","Metric 8","Metric 9","Metric 10","Metric 11","Metric 12","Metric 13","Metric 14","Metric 15","Metric 16","Metric 17","Metric 18","Metric 19","Metric 20","Metric 21","Metric 22","Metric 23","Metric 24","Metric 25","Metric 26","Metric 27"]
["Weights",{"$f":"(1-$F$4)*(B$3/SUM($B$3:$E$3))","v":0.12121212121212122},0.10606060606060606,9.0909090909090898E-2,{"$f":"(1-$F$4)*(E$3/SUM($B$3:$E$3))","v":0.1818181818181818},0.5,{"$f":"SUM(B4:F4)","v":1},"F. Obj. sum to 1",0.19820870600426765,0.18737160628911689,0.18975768026679279,0.18487218984594747,0.23978981759387516,0.10603827285919394,0.10603827285919394,0.17999876316471433,0.17539978707496579,0.15453456200081242,0.15839220012471103,0.1195981419164085,0.25,0.75,0.16473933293713175,0.18159432126129066,0.20786163779177183,0.18205601219260392,0.13251383660059851,0.13123485921660338,0.16016578765068418,0.11550698105183116,0.1235276954540751,0.15350454693417923,0.13300800593613818,0.10306092077825441,0.10929800483888977,0.10192805735594795]
[null,null,null,null,null,null,null,"New group weight",{"$f":"$B$4*I$4","v":2.4025297697486989E-2},{"$f":"$B$4*J$4","v":2.2711709853226292E-2},2.300093094142943E-2,2.2408750284357268E-2,2.9065432435621232E-2,{"$f":"$C$4*N$4","v":1.1246483485066024E-2},{"$f":"$C$4*O$4","v":1.1246483485066024E-2},1.9090777911409097E-2,1.8603007720072128E-2,1.639002930311647E-2,1.6799172740499656E-2,1.2684651415376658E-2,{"$f":"$D$4*U$4","v":2.2727272727272724E-2},{"$f":"$D$4*V$4","v":6.8181818181818177E-2},{"$f":"$E$4*W$4","v":2.9952605988569404E-2},{"$f":"$E$4*X$4","v":3.3017149320234661E-2},3.779302505304942E-2,3.3101093125927981E-2,2.4093424836472453E-2,2.3860883493927884E-2,{"$f":"$F$4*AC$4","v":8.0082893825342089E-2},{"$f":"$F$4*AD$4","v":5.775349052591558E-2},6.1763847727037552E-2,7.6752273467089613E-2,6.650400296806909E-2,5.1530460389127203E-2,5.4649002419444884E-2,5.0964028677973977E-2,{"$f":"SUM(I5:AJ5)","v":1}]
[null,null,null,null,null,null,null,null,0.03,0.03,0.03,0.03,0.04,1.4999999999999999E-2,1.4999999999999999E-2,0.03,0.02,0.02,0.02,0.02,0.03,0.09,0.04,0.04,0.05,0.05,0.03,0.03,0.05,0.04,0.04,0.05,0.05,0.04,0.04,0.03,{"$f":"SUM(I6:AJ6)","v":1.0000000000000004}]
[null,null,null,null,null,null,null,null,{"$f":"(1-J7)*(I6/SUM(I6,K6:AJ6))","v":2.9999999999999988E-2},0.03,{"$f":"(1-$J$7)*(K6/SUM($I$6,$K$6:$AJ$6))","v":2.9999999999999988E-2},{"$f":"(1-$J$7)*(L6/SUM($I$6,$K$6:$AJ$6))","v":2.9999999999999988E-2},3.9999999999999987E-2,1.4999999999999994E-2,1.4999999999999994E-2,2.9999999999999988E-2,1.9999999999999993E-2,1.9999999999999993E-2,1.9999999999999993E-2,1.9999999999999993E-2,2.9999999999999988E-2,8.9999999999999955E-2,3.9999999999999987E-2,3.9999999999999987E-2,4.9999999999999982E-2,4.9999999999999982E-2,2.9999999999999988E-2,2.9999999999999988E-2,4.9999999999999982E-2,3.9999999999999987E-2,3.9999999999999987E-2,4.9999999999999982E-2,4.9999999999999982E-2,3.9999999999999987E-2,3.9999999999999987E-2,2.9999999999999988E-2,{"$f":"SUM(I7:AJ7)","v":0.99999999999999978}]
["WEIGHTED UTILITY"]
["Portfolio",{"$f":"B2","v":"management"},{"$f":"C2","v":"status"},"ecol_proc","integration","rigor"]
["A"]
["B"]
["C"]
["D"]
["E"]
[]
[null,null,null,null,null,null,null,"WEIGHTED UTILITY"]
[null,null,null,null,null,null,null,"Portfolio",{"$f":"I2","v":"manage_species"},{"$f":"J2","v":"manage_spatial"},"manage_uncertainty","manage_currentpractices","manage_adaptivemanagement","pop_a","pop_b","pop_spatialscope","pop_temporalscope","hab_quantity","hab_quality","hab_temporal","ecoprocess_spp","ecoprocess_uncertainty","datasharing","broaderimpacts","exisitingpriorities","partners","leverage","alignment","objhyp","response","targettaxa","surveydesign","stats","datamanagement","budget","timeline","total"]
[null,null,null,null,null,null,null,"A",{"$f":"Portfolio_A_Rigor!B$82","v":6.5197350542043175E-2},{"$f":"Portfolio_A_Rigor!C$82","v":7.5680979219967054E-2},{"$f":"Portfolio_A_Rigor!D$82","v":8.0503258295003002E-2},{"$f":"Portfolio_A_Rigor!E$82","v":1.1204375142178634E-2},{"$f":"Portfolio_A_Rigor!F$82","v":0},{"$f":"Portfolio_A_Rigor!G$82","v":1.0641833835331292E-2},{"$f":"Portfolio_A_Rigor!H$82","v":3.606557322535404E-3},{"$f":"Portfolio_A_Rigor!I$82","v":1.4404859696790499E-2},{"$f":"Portfolio_A_Rigor!J$82","v":1.4882406176057704E-3},{"$f":"Portfolio_A_Rigor!K$82","v":0},{"$f":"Portfolio_A_Rigor!L$82","v":1.1199448493666437E-2},{"$f":"Portfolio_A_Rigor!M$82","v":1.5221581698451989E-3},{"$f":"Portfolio_A_Rigor!N$82","v":4.5454545454545449E-2},{"$f":"Portfolio_A_Rigor!O$82","v":3.4090909090909088E-2},{"$f":"Portfolio_A_Rigor!P$82","v":3.7440757485711754E-2},{"$f":"Portfolio_A_Rigor!Q$82","v":5.2827438912375457E-2},{"$f":"Portfolio_A_Rigor!R$82","v":0.15873070522280758},{"$f":"Portfolio_A_Rigor!S$82","v":0.13207336157245264},{"$f":"Portfolio_A_Rigor!T$82","v":5.3005534640239403E-2},{"$f":"Portfolio_A_Rigor!U$82","v":5.965220873481971E-3},{"$f":"Portfolio_A_Rigor!V$82","v":0.24024868147602627},{"$f":"Portfolio_A_Rigor!W$82","v":0.12417000463071849},{"$f":"Portfolio_A_Rigor!X$82","v":0.16058600409029766},{"$f":"Portfolio_A_Rigor!Y$82","v":0.21490636570785093},{"$f":"Portfolio_A_Rigor!Z$82","v":0.19951200890420728},{"$f":"Portfolio_A_Rigor!AA$82","v":0.15974442720629431},{"$f":"Portfolio_A_Rigor!AB$82","v":0.1912715084680571},{"$f":"Portfolio_A_Rigor!AC$82","v":6.3705035847467478E-2},{"$f":"SUM(I18:AJ18)","v":2.149181570918409}]
[null,null,null,null,null,null,null,"B",{"$f":"Portfolio_B_Rigor!B$82","v":5.8412941622846028E-2},{"$f":"Portfolio_B_Rigor!C$82","v":3.7860994039206508E-2},{"$f":"Portfolio_B_Rigor!D$82","v":0.11500465470714716},{"$f":"Portfolio_B_Rigor!E$82","v":2.2408750284357268E-2},{"$f":"Portfolio_B_Rigor!F$82","v":0},{"$f":"Portfolio_B_Rigor!G$82","v":1.1246483485066024E-2},{"$f":"Portfolio_B_Rigor!H$82","v":1.1246483485066024E-2},{"$f":"Portfolio_B_Rigor!I$82","v":2.8011377771831165E-2},{"$f":"Portfolio_B_Rigor!J$82","v":3.3485413896129834E-3},{"$f":"Portfolio_B_Rigor!K$82","v":1.639002930311647E-2},{"$f":"Portfolio_B_Rigor!L$82","v":0},{"$f":"Portfolio_B_Rigor!M$82","v":1.268465141537666E-3},{"$f":"Portfolio_B_Rigor!N$82","v":1.1363636363636362E-2},{"$f":"Portfolio_B_Rigor!O$82","v":1.7045454545454544E-2},{"$f":"Portfolio_B_Rigor!P$82","v":4.4928908982854107E-2},{"$f":"Portfolio_B_Rigor!Q$82","v":2.6413719456187729E-2},{"$f":"Portfolio_B_Rigor!R$82","v":0.14361349520158778},{"$f":"Portfolio_B_Rigor!S$82","v":0.16550546562963991},{"$f":"Portfolio_B_Rigor!T$82","v":7.7098959476711859E-2},{"$f":"Portfolio_B_Rigor!U$82","v":5.965220873481971E-3},{"$f":"Portfolio_B_Rigor!V$82","v":0.16016578765068418},{"$f":"Portfolio_B_Rigor!W$82","v":0.21657558947218342},{"$f":"Portfolio_B_Rigor!X$82","v":0.30881923863518779},{"$f":"Portfolio_B_Rigor!Y$82","v":0.16885500162759717},{"$f":"Portfolio_B_Rigor!Z$82","v":6.650400296806909E-2},{"$f":"Portfolio_B_Rigor!AA$82","v":5.1530460389127203E-2},{"$f":"Portfolio_B_Rigor!AB$82","v":0.21859600967777953},{"$f":"Portfolio_B_Rigor!AC$82","v":8.9187050186454453E-2},{"$f":"SUM(I19:AJ19)","v":2.0773667223664241}]
[null,null,null,null,null,null,null,"C",{"$f":"Portfolio_C_Rigor!B$82","v":6.5763657777934567E-2},{"$f":"Portfolio_C_Rigor!C$82","v":5.2334515068883654E-2},{"$f":"Portfolio_C_Rigor!D$82","v":3.4501396412144142E-2},{"$f":"Portfolio_C_Rigor!E$82","v":4.4817500568714537E-2},{"$f":"Portfolio_C_Rigor!F$82","v":2.9065432435621232E-2},{"$f":"Portfolio_C_Rigor!G$82","v":3.6278978984083946E-4},{"$f":"Portfolio_C_Rigor!H$82","v":1.2164128247604618E-3},{"$f":"Portfolio_C_Rigor!I$82","v":4.852528640027258E-2},{"$f":"Portfolio_C_Rigor!J$82","v":4.6676637552180975E-2},{"$f":"Portfolio_C_Rigor!K$82","v":5.80505037863107E-2},{"$f":"Portfolio_C_Rigor!L$82","v":6.9996553085415233E-2},{"$f":"Portfolio_C_Rigor!M$82","v":3.309540869284637E-2},{"$f":"Portfolio_C_Rigor!N$82","v":5.3977272727272721E-2},{"$f":"Portfolio_C_Rigor!O$82","v":3.4090909090909088E-2},{"$f":"Portfolio_C_Rigor!P$82","v":3.7440757485711754E-2},{"$f":"Portfolio_C_Rigor!Q$82","v":0},{"$f":"Portfolio_C_Rigor!R$82","v":0.18896512526524711},{"$f":"Portfolio_C_Rigor!S$82","v":0.1542510939668244},{"$f":"Portfolio_C_Rigor!T$82","v":4.3368164705650421E-2},{"$f":"Portfolio_C_Rigor!U$82","v":2.3860883493927884E-2},{"$f":"Portfolio_C_Rigor!V$82","v":0.36037302221403938},{"$f":"Portfolio_C_Rigor!W$82","v":0.17037279705145097},{"$f":"Portfolio_C_Rigor!X$82","v":0.13588046499948261},{"$f":"Portfolio_C_Rigor!Y$82","v":0.23025682040126882},{"$f":"Portfolio_C_Rigor!Z$82","v":0.29926801335631092},{"$f":"Portfolio_C_Rigor!AA$82","v":0.19066270343977063},{"$f":"Portfolio_C_Rigor!AB$82","v":2.7324501209722442E-2},{"$f":"Portfolio_C_Rigor!AC$82","v":7.6446043016960966E-2},2.510944666819475]
[null,null,null,null,null,null,null,"D",{"$f":"Portfolio_D_Rigor!B$82","v":5.4969110445083985E-2},{"$f":"Portfolio_D_Rigor!C$82","v":4.6660078376704946E-2},{"$f":"Portfolio_D_Rigor!D$82","v":6.9002792824288284E-2},{"$f":"Portfolio_D_Rigor!E$82","v":1.1204375142178634E-2},{"$f":"Portfolio_D_Rigor!F$82","v":0},{"$f":"Portfolio_D_Rigor!G$82","v":0},{"$f":"Portfolio_D_Rigor!H$82","v":4.4815209333280172E-4},{"$f":"Portfolio_D_Rigor!I$82","v":1.6001542940290173E-2},{"$f":"Portfolio_D_Rigor!J$82","v":1.4882406176057704E-3},{"$f":"Portfolio_D_Rigor!K$82","v":5.393809643389238E-3},{"$f":"Portfolio_D_Rigor!L$82","v":2.5198759110749484E-2},{"$f":"Portfolio_D_Rigor!M$82","v":5.0738605661506634E-4},{"$f":"Portfolio_D_Rigor!N$82","v":5.6818181818181809E-2},{"$f":"Portfolio_D_Rigor!O$82","v":5.1136363636363633E-2},{"$f":"Portfolio_D_Rigor!P$82","v":2.9952605988569404E-2},{"$f":"Portfolio_D_Rigor!Q$82","v":5.2827438912375457E-2},{"$f":"Portfolio_D_Rigor!R$82","v":0.15117210021219768},{"$f":"Portfolio_D_Rigor!S$82","v":0.12115000084089642},{"$f":"Portfolio_D_Rigor!T$82","v":4.3368164705650414E-2},{"$f":"Portfolio_D_Rigor!U$82","v":1.7895662620445913E-2},{"$f":"Portfolio_D_Rigor!V$82","v":0.24024868147602627},{"$f":"Portfolio_D_Rigor!W$82","v":0.21657558947218342},{"$f":"Portfolio_D_Rigor!X$82","v":0.14823323454489015},{"$f":"Portfolio_D_Rigor!Y$82","v":0.26095772978810472},{"$f":"Portfolio_D_Rigor!Z$82","v":0.23276401038824182},{"$f":"Portfolio_D_Rigor!AA$82","v":0.11852005889499256},{"$f":"Portfolio_D_Rigor!AB$82","v":0.1366225060486122},{"$f":"Portfolio_D_Rigor!AC$82","v":7.6446043016960966E-2},2.1855626196149314]
[null,null,null,null,null,null,null,"E",{"$f":"Portfolio_E_Rigor!B$82","v":7.4111860487169501E-2},{"$f":"Portfolio_E_Rigor!C$82","v":5.4839818031642035E-2},{"$f":"Portfolio_E_Rigor!D$82","v":8.0503258295003002E-2},{"$f":"Portfolio_E_Rigor!E$82","v":1.1204375142178634E-2},{"$f":"Portfolio_E_Rigor!F$82","v":0},{"$f":"Portfolio_E_Rigor!G$82","v":1.0641833835331292E-2},{"$f":"Portfolio_E_Rigor!H$82","v":3.2864486844405459E-3},{"$f":"Portfolio_E_Rigor!I$82","v":1.6313937487931411E-2},{"$f":"Portfolio_E_Rigor!J$82","v":1.4747111574457178E-2},{"$f":"Portfolio_E_Rigor!K$82","v":0},{"$f":"Portfolio_E_Rigor!L$82","v":2.2398896987332873E-2},{"$f":"Portfolio_E_Rigor!M$82","v":9.5480830653926121E-3},{"$f":"Portfolio_E_Rigor!N$82","v":3.9772727272727265E-2},{"$f":"Portfolio_E_Rigor!O$82","v":8.5227272727272721E-2},{"$f":"Portfolio_E_Rigor!P$82","v":4.4928908982854107E-2},{"$f":"Portfolio_E_Rigor!Q$82","v":3.631886425225813E-2},{"$f":"Portfolio_E_Rigor!R$82","v":0.15117210021219768},{"$f":"Portfolio_E_Rigor!S$82","v":0.14299672230400889},{"$f":"Portfolio_E_Rigor!T$82","v":5.782421960753388E-2},{"$f":"Portfolio_E_Rigor!U$82","v":0},{"$f":"Portfolio_E_Rigor!V$82","v":0.20020723456335521},{"$f":"Portfolio_E_Rigor!W$82","v":6.6416514104802912E-2},{"$f":"Portfolio_E_Rigor!X$82","v":0.19764431272652017},{"$f":"Portfolio_E_Rigor!Y$82","v":0.21490636570785093},{"$f":"Portfolio_E_Rigor!Z$82","v":0.16626000742017272},{"$f":"Portfolio_E_Rigor!AA$82","v":7.7295690583690804E-2},{"$f":"Portfolio_E_Rigor!AB$82","v":0.1366225060486122},{"$f":"Portfolio_E_Rigor!AC$82","v":0.17837410037290891},2.0935631704776458]
[]
[]
[null,null,null,null,null,null,null,"SENSITIVITY"]
[null,null,null,null,null,null,null,"Portfolio",null,0,0.2,0.4,0.6,0.8,1]
[null,null,null,null,null,null,null,"A",{"$f":"AK18","v":2.149181570918409},1.5900750691749796,1.8137176698723518,2.0373602705697236,2.2610028712670953,2.4846454719644675,2.7082880726618392]
[null,null,null,null,null,null,null,"B",{"$f":"AK19","v":2.0773667223664241},1.5942671635186831,1.7875069870577793,1.9807468105968762,2.1739866341359724,2.3672264576750695,2.5604662812141656]
[null,null,null,null,null,null,null,"C",2.510944666819475,2.0407206022609374,2.2288102280843529,2.4168998539077675,2.604989479731183,2.7930791055545985,2.9811687313780131]
[null,null,null,null,null,null,null,"D",2.1855626196149314,1.5103895319698384,1.7804587670278753,2.0505280020859127,2.3205972371439501,2.5906664722019874,2.8607357072600239]
[null,null,null,null,6,null,null,"E",2.0935631704776458,1.7116728778994637,1.8644289949307367,2.0171851119620094,2.1699412289932822,2.322697346024555,2.4754534630558278]
[null,null,null,null,7]
[null,null,null,null,1]
[null,null,null,null,2]
[null,null,null,null,3]

{"sheet":"Portfolio_A_Rigor","index":23,"n_rows":122,"n_cols":37,"rows_kept":122,"cut":false,"hidden":false,"merged":[]}
["Project","manage_species","manage_spatial","manage_uncertainty","manage_currentpractices","manage_adaptivemanagement","pop_a","pop_b","pop_spatialscope","pop_temporalscope","hab_quantity","hab_quality","hab_temporal","ecoprocess_spp","ecoprocess_uncertainty","datasharing","broaderimpacts","exisitingpriorities","partners","leverage","alignment","objhyp","response","targettaxa","surveydesign","stats","datamanagement","budget","timeline","cost"]
[1,9,6.25,2,2,0,186,1054,75,5,0,2,0,0,0,4,0,2,3,0,0,2,3,3,3,2,3,2,2,700000]
[2,3,28.2,1,0,0,0,0,0,0,0,2,0,4,1,0,0,3,3,0,0,2,3,3,3,2,3,2,2,5400000]
[3,8,28.2,2,0,0,0,0,0,0,0,2,0,5,1,0,2,0,0,0,1,2,3,3,3,2,1,2,2,250000]
[4,1,6.25,2,0,0,0,0,0,0,0,2,0,4,1,0,1,3,3,4,0,1,3,3,1,0,0,2,1,150000]
[5,4,3.1,2,0,0,0,0,50,2,0,2,0,0,0,0,1,3,3,4,1,0,3,3,2,0,0,2,1,220000]
[6,10,6.2E-2,2,0,0,0,0,10,2,0,2,0,0,0,0,1,0,3,3,0,0,0,3,0,0,0,2,1,110000]
[7,52,18.8,0,2,0,0,0,85,12,85,8,12,8,1,0,0,3,3,0,0,2,0,1,3,2,2,0,2,1000000]
[8,3,18.8,2,1,1,0,0,14,14,14,8,14,0,0,0,3,1,3,0,0,2,3,3,3,2,0,1,1,5000000]
[9,9,15.6,2,1,0,70,140,0,0,0,2,0,0,0,3,0,3,2,1,0,2,3,3,1,2,1,1,2,25000]
[10,0,0,0,0,0,0,0,0,0,0,2,0,6,2,1,2,3,2,2,0,0,2,3,3,1,1,0,2,900000]
[11,0,0,0,0,0,6,102,52,15,52,8,15,3,1,1,0,3,3,2,2,2,1,3,3,1,2,0,1,1500000]
[12,2,15.6,2,1,0,0,0,0,0,0,2,0,0,0,0,1,3,3,3,0,1,1,3,1,2,1,2,0,100000]
[13,0,0,0,0,0,0,12,39,2,39,8,2,7,1,1,0,3,3,0,0,1,0,1,0,2,1,1,1,250000]
[14,6,15.6,1,1,0,0,0,0,0,0,2,0,6,1,1,0,3,3,0,0,1,1,3,3,1,2,1,1,500000]
[15,23,12.5,2,1,1,0,0,23,3,23,8,3,1,2,2,0,2,3,3,2,0,3,1,1,2,3,2,1,800000]
[16,0,0,0,0,0,0,0,100,15,100,7,15,0,0,3,0,3,3,5,0,2,2,2,1,2,3,2,2,2000000]
[17,2,15.6,2,1,1,58,290,0,0,0,8,3,0,0,0,0,3,2,0,0,2,3,1,0,1,0,2,1,500000]
[18,0,0,0,0,0,0,30,0,0,0,2,0,8,1,1,3,3,3,5,1,2,2,1,2,1,2,1,0,300000]
[19,8,3.125,1,2,0,0,0,0,0,0,2,0,8,2,0,0,2,3,0,0,1,1,3,2,0,1,0,1,750000]
[20,9,15.6,1,2,0,0,435,76,10,76,6,10,8,2,1,0,3,3,3,2,1,0,0,1,2,1,0,1,1500000]
[21,0,0,0,0,0,0,0,0,0,0,2,0,8,2,0,1,3,3,5,1,0,2,3,1,0,3,1,2,900000]
[22,0,0,0,0,0,16,64,0,0,0,2,0,1,2,4,2,2,3,5,0,1,2,1,0,2,1,2,1,750000]
[23,9,18.8,2,0,0,0,0,0,0,0,2,0,0,0,3,0,3,3,5,0,2,1,2,1,1,1,0,1,1000000]
[24,5,6.25,2,0,0,0,0,0,0,0,2,0,0,0,0,0,3,3,5,0,0,3,1,3,2,1,0,2,150000]
[25,9,18.8,2,0,0,176,308,0,0,0,2,0,8,1,2,2,3,3,0,0,2,1,3,2,1,1,2,2,250000]
[26,17,18.8,2,1,0,0,0,0,0,0,2,0,0,0,3,0,3,3,4,0,2,1,0,2,0,1,2,2,500000]
[27,0,6.25,2,0,0,0,0,0,0,80,2,5,0,0,2,2,3,3,5,0,1,2,3,1,0,0,0,0,1200000]
[28,3,6.25,2,0,1,0,0,0,0,0,4,5,0,0,4,0,3,3,4,0,2,3,3,1,0,2,2,1,500000]
[29,9,12.5,2,1,0,0,0,15,12,15,8,12,0,0,1,0,3,3,4,0,2,1,0,2,1,1,1,2,2000000]
[30,33,18.8,2,0,0,0,0,0,0,0,4,2,0,0,0,0,1,1,0,0,0,3,1,2,0,2,2,0,250000]
[31,4,18.8,1,0,0,0,0,65,4,0,4,4,0,0,2,0,3,2,3,0,1,0,1,1,2,2,1,1,650000]
[32,5,3.125,2,2,1,6,102,40,16,40,8,16,0,0,2,3,3,0,4,0,0,2,1,2,1,0,2,1,200000]
[33,14,18.8,2,1,0,0,0,0,0,0,5,0,0,0,2,0,3,2,0,0,1,3,0,2,2,3,0,0,400000]
[34,0,0,0,0,0,0,12,100,15,100,8,15,0,0,2,0,3,3,4,0,2,3,3,0,2,2,1,0,900000]
[35,8,9.4,1,1,1,0,0,0,0,100,6,5,8,0,0,0,3,3,3,0,2,2,0,1,2,0,1,1,900000]
["CV",{"$f":"_xlfn.STDEV.S(B2:B36)/AVERAGE(B2:B36)","v":1.383842854444886},{"$f":"_xlfn.STDEV.S(C2:C36)/AVERAGE(C2:C36)","v":0.84395823753626376},{"$f":"_xlfn.STDEV.S(D2:D36)/AVERAGE(D2:D36)","v":0.65948586466528381},{"$f":"_xlfn.STDEV.S(E2:E36)/AVERAGE(E2:E36)","v":1.2933654230908831},2.2305806858480666,2.9881459898804135,2.7250501152884543,1.5394659205075842,1.5790297611729722,1.6828143944790142,0.63288342730791625,1.4346340567392073,1.2744250477591585,1.2909944487358058,1.043011114951035,1.4910544805781871,0.32582327651393111,0.30721159062514791,0.8219511329380369,2.1760730956581078,0.64975875258290616,0.58618247649425104,0.61083323417736113,0.63333947951472869,0.68629571860885286,0.76505300516434493,0.69428102652373402,0.60312027652595823]
["sd",{"$f":"_xlfn.STDEV.S(B2:B36)","v":10.477667326511279}]
["mean",{"$f":"AVERAGE(B2:B36)","v":7.5714285714285712}]
[null,{"$f":"B1","v":"manage_species"},{"$f":"C1","v":"manage_spatial"},"manage_uncertainty","manage_currentpractices","manage_adaptivemanagement","pop_a","pop_b","pop_spatialscope","pop_temporalscope","hab_quantity","hab_quality","hab_temporal","ecoprocess_spp","ecoprocess_uncertainty","datasharing","broaderimpacts","exisitingpriorities","partners","leverage","alignment","objhyp","response","targettaxa","surveydesign","stats","datamanagement","budget","timeline"]
[null,"Metric 1","Metric 2","Metric 3","Metric 4","Metric 5","Metric 6a","Metric 6b","Metric 7","Metric 8","Metric 9","Metric 10","Metric 11","Metric 12","Metric 13","Metric 14","Metric 15","Metric 16","Metric 17","Metric 18","Metric 19","Metric 20","Metric 21","Metric 22","Metric 23","Metric 24","Metric 25","Metric 26","Metric 27"]
["Weights",0.03,0.03,0.03,0.03,0.04,1.4999999999999999E-2,1.4999999999999999E-2,0.03,0.02,0.02,0.02,0.02,0.03,0.09,0.04,0.04,0.05,0.05,0.03,0.03,0.05,0.04,0.04,0.05,0.05,0.04,0.04,0.03]
[]
[null,"Unweighted"]
["Project",null,null,null,null,null,null,null,null,null,null,null,null,null,null,null,null,null,null,null,null,null,null,null,null,null,null,null,null,"Unweighted total",null,"Unweighted total","management","status","ecol_proc","integration","rigor"]
[{"$f":"A2","v":1},{"$f":"valueE(B2,'Utility Functions'!$B$3,'Utility Functions'!$B$4,'Utility Functions'!$B$5,'Utility Functions'!$B$6)","v":0.83470237647280454},{"$f":"valueE(C2,'Utility Functions'!$D$3,'Utility Functions'!$D$4,'Utility Functions'!$D$5,'Utility Functions'!$D$6)","v":0.46475967153745396},{"$f":"valuePL(D2,'Utility Functions'!$E$3:$E$5,'Utility Functions'!$F$3:$F$5)","v":1},{"$f":"valuePL(E2,'Utility Functions'!$G$3:$G$5,'Utility Functions'!$H$3:$H$5)","v":1},{"$f":"valuePL(F2,'Utility Functions'!$I$3:$I$4,'Utility Functions'!$J$3:$J$5)","v":0},{"$f":"valueE(G2,'Utility Functions'!$L$3,'Utility Functions'!$L$4,'Utility Functions'!$L$5,'Utility Functions'!$L$6)","v":1},{"$f":"valueE(H2,'Utility Functions'!$N$3,'Utility Functions'!$N$4,'Utility Functions'!$N$5,'Utility Functions'!$N$6)","v":1},{"$f":"valuePL(I2,'Utility Functions'!$O$3:$O$6,'Utility Functions'!$P$3:$P$6)","v":0.91818181818181821},{"$f":"valuePL(J2,'Utility Functions'!$Q$3:$Q$6,'Utility Functions'!$R$3:$R$6)","v":0.1},{"$f":"valuePL(K2,'Utility Functions'!$S$3:$S$7,'Utility Functions'!$T$3:$T$7)","v":0},{"$f":"valueE(L2,'Utility Functions'!$V$3,'Utility Functions'!$V$4,'Utility Functions'!$V$5,'Utility Functions'!$V$6)","v":0},{"$f":"valuePL(M2,'Utility Functions'!$W$3:$W$6,'Utility Functions'!$X$3:$X$6)","v":0},{"$f":"valueE(N2,'Utility Functions'!$Z$3,'Utility Functions'!$Z$4,'Utility Functions'!$Z$5,'Utility Functions'!$Z$6)","v":0},{"$f":"valuePL(O2,'Utility Functions'!$AA$3:$AA$5,'Utility Functions'!$AB$3:$AB$5)","v":0},{"$f":"valuePL(P2,'Utility Functions'!$AC$3:$AC$7,'Utility Functions'!$AD$3:$AD$7)","v":1},{"$f":"valuePL(Q2,'Utility Functions'!$AE$3:$AE$6,'Utility Functions'!$AF$3:$AF$6)","v":0},{"$f":"valuePL(R2,'Utility Functions'!$AG$3:$AG$6,'Utility Functions'!$AH$3:$AH$6)","v":0.8},{"$f":"valuePL(S2,'Utility Functions'!$AI$3:$AI$6,'Utility Functions'!$AJ$3:$AJ$6)","v":1},{"$f":"valuePL(T2,'Utility Functions'!$AK$3:$AK$8,'Utility Functions'!$AL$3:$AL$8)","v":0},{"$f":"valuePL(U2,'Utility Functions'!$AM$3:$AM$5,'Utility Functions'!$AN$3:$AN$5)","v":0},{"$f":"valuePL(V2,'Utility Functions'!$AO$3:$AO$5,'Utility Functions'!$AP$3:$AP$5)","v":1},{"$f":"valuePL(W2,'Utility Functions'!$AQ$3:$AQ$6,'Utility Functions'!$AR$3:$AR$6)","v":1},{"$f":"valuePL(X2,'Utility Functions'!$AS$3:$AS$6,'Utility Functions'!$AT$3:$AT$6)","v":1},{"$f":"valuePL(Y2,'Utility Functions'!$AU$3:$AU$6,'Utility Functions'!$AV$3:$AV$6)","v":1},{"$f":"valuePL(Z2,'Utility Functions'!$AW$3:$AW$5,'Utility Functions'!$AX$3:$AX$5)","v":1},{"$f":"valuePL(AA2,'Utility Functions'!$AY$3:$AY$6,'Utility Functions'!$AZ$3:$AZ$6)","v":1},{"$f":"valuePL(AB2,'Utility Functions'!$BA$3:$BA$5,'Utility Functions'!$BB$3:$BB$5)","v":1},{"$f":"valuePL(AC2,'Utility Functions'!$BC$3:$BC$5,'Utility Functions'!$BD$3:$BD$5)","v":1},{"$f":"SUM(B46:AC46)","v":17.117643866192076},null,{"$f":"SUM(AG46:AK46)","v":17.117643866192076},{"$f":"SUM(B46:F46)","v":3.2994620480102586},{"$f":"SUM(G46:M46)","v":3.0181818181818181},{"$f":"SUM(N46:O46)","v":0},{"$f":"SUM(P46:U46)","v":2.8},{"$f":"SUM(V46:AC46)","v":8}]
[2,{"$f":"valueE(B3,'Utility Functions'!$B$3,'Utility Functions'!$B$4,'Utility Functions'!$B$5,'Utility Functions'!$B$6)","v":0.4511890475224023},{"$f":"valueE(C3,'Utility Functions'!$D$3,'Utility Functions'!$D$4,'Utility Functions'!$D$5,'Utility Functions'!$D$6)","v":0.94043675305359531},{"$f":"valuePL(D3,'Utility Functions'!$E$3:$E$5,'Utility Functions'!$F$3:$F$5)","v":0.5},{"$f":"valuePL(E3,'Utility Functions'!$G$3:$G$5,'Utility Functions'!$H$3:$H$5)","v":0},{"$f":"valuePL(F3,'Utility Functions'!$I$3:$I$4,'Utility Functions'!$J$3:$J$5)","v":0},{"$f":"valueE(G3,'Utility Functions'!$L$3,'Utility Functions'!$L$4,'Utility Functions'!$L$5,'Utility Functions'!$L$6)","v":0},{"$f":"valueE(H3,'Utility Functions'!$N$3,'Utility Functions'!$N$4,'Utility Functions'!$N$5,'Utility Functions'!$N$6)","v":0},{"$f":"valuePL(I3,'Utility Functions'!$O$3:$O$6,'Utility Functions'!$P$3:$P$6)","v":0},{"$f":"valuePL(J3,'Utility Functions'!$Q$3:$Q$6,'Utility Functions'!$R$3:$R$6)","v":0},{"$f":"valuePL(K3,'Utility Functions'!$S$3:$S$7,'Utility Functions'!$T$3:$T$7)","v":0},{"$f":"valueE(L3,'Utility Functions'!$V$3,'Utility Functions'!$V$4,'Utility Functions'!$V$5,'Utility Functions'!$V$6)","v":0},{"$f":"valuePL(M3,'Utility Functions'!$W$3:$W$6,'Utility Functions'!$X$3:$X$6)","v":0},{"$f":"valueE(N3,'Utility Functions'!$Z$3,'Utility Functions'!$Z$4,'Utility Functions'!$Z$5,'Utility Functions'!$Z$6)","v":0.5},{"$f":"valuePL(O3,'Utility Functions'!$AA$3:$AA$5,'Utility Functions'!$AB$3:$AB$5)","v":0.25},{"$f":"valuePL(P3,'Utility Functions'!$AC$3:$AC$7,'Utility Functions'!$AD$3:$AD$7)","v":0},{"$f":"valuePL(Q3,'Utility Functions'!$AE$3:$AE$6,'Utility Functions'!$AF$3:$AF$6)","v":0},{"$f":"valuePL(R3,'Utility Functions'!$AG$3:$AG$6,'Utility Functions'!$AH$3:$AH$6)","v":1},{"$f":"valuePL(S3,'Utility Functions'!$AI$3:$AI$6,'Utility Functions'!$AJ$3:$AJ$6)","v":1},{"$f":"valuePL(T3,'Utility Functions'!$AK$3:$AK$8,'Utility Functions'!$AL$3:$AL$8)","v":0},{"$f":"valuePL(U3,'Utility Functions'!$AM$3:$AM$5,'Utility Functions'!$AN$3:$AN$5)","v":0},{"$f":"valuePL(V3,'Utility Functions'!$AO$3:$AO$5,'Utility Functions'!$AP$3:$AP$5)","v":1},{"$f":"valuePL(W3,'Utility Functions'!$AQ$3:$AQ$6,'Utility Functions'!$AR$3:$AR$6)","v":1},{"$f":"valuePL(X3,'Utility Functions'!$AS$3:$AS$6,'Utility Functions'!$AT$3:$AT$6)","v":1},{"$f":"valuePL(Y3,'Utility Functions'!$AU$3:$AU$6,'Utility Functions'!$AV$3:$AV$6)","v":1},{"$f":"valuePL(Z3,'Utility Functions'!$AW$3:$AW$5,'Utility Functions'!$AX$3:$AX$5)","v":1},{"$f":"valuePL(AA3,'Utility Functions'!$AY$3:$AY$6,'Utility Functions'!$AZ$3:$AZ$6)","v":1},{"$f":"valuePL(AB3,'Utility Functions'!$BA$3:$BA$5,'Utility Functions'!$BB$3:$BB$5)","v":1},{"$f":"valuePL(AC3,'Utility Functions'!$BC$3:$BC$5,'Utility Functions'!$BD$3:$BD$5)","v":1},{"$f":"SUM(B47:AC47)","v":12.641625800575998},null,{"$f":"SUM(AG47:AK47)","v":12.641625800575998},{"$f":"SUM(B47:F47)","v":1.8916258005759976},{"$f":"SUM(G47:M47)","v":0},{"$f":"SUM(N47:O47)","v":0.75},{"$f":"SUM(P47:U47)","v":2},{"$f":"SUM(V47:AC47)","v":8}]
[3,{"$f":"valueE(B4,'Utility Functions'!$B$3,'Utility Functions'!$B$4,'Utility Functions'!$B$5,'Utility Functions'!$B$6)","v":0.79810469124896843},{"$f":"valueE(C4,'Utility Functions'!$D$3,'Utility Functions'!$D$4,'Utility Functions'!$D$5,'Utility Functions'!$D$6)","v":0.94043675305359531},{"$f":"valuePL(D4,'Utility Functions'!$E$3:$E$5,'Utility Functions'!$F$3:$F$5)","v":1},{"$f":"valuePL(E4,'Utility Functions'!$G$3:$G$5,'Utility Functions'!$H$3:$H$5)","v":0},{"$f":"valuePL(F4,'Utility Functions'!$I$3:$I$4,'Utility Functions'!$J$3:$J$5)","v":0},{"$f":"valueE(G4,'Utility Functions'!$L$3,'Utility Functions'!$L$4,'Utility Functions'!$L$5,'Utility Functions'!$L$6)","v":0},{"$f":"valueE(H4,'Utility Functions'!$N$3,'Utility Functions'!$N$4,'Utility Functions'!$N$5,'Utility Functions'!$N$6)","v":0},{"$f":"valuePL(I4,'Utility Functions'!$O$3:$O$6,'Utility Functions'!$P$3:$P$6)","v":0},{"$f":"valuePL(J4,'Utility Functions'!$Q$3:$Q$6,'Utility Functions'!$R$3:$R$6)","v":0},{"$f":"valuePL(K4,'Utility Functions'!$S$3:$S$7,'Utility Functions'!$T$3:$T$7)","v":0},{"$f":"valueE(L4,'Utility Functions'!$V$3,'Utility Functions'!$V$4,'Utility Functions'!$V$5,'Utility Functions'!$V$6)","v":0},{"$f":"valuePL(M4,'Utility Functions'!$W$3:$W$6,'Utility Functions'!$X$3:$X$6)","v":0},{"$f":"valueE(N4,'Utility Functions'!$Z$3,'Utility Functions'!$Z$4,'Utility Functions'!$Z$5,'Utility Functions'!$Z$6)","v":0.625},{"$f":"valuePL(O4,'Utility Functions'!$AA$3:$AA$5,'Utility Functions'!$AB$3:$AB$5)","v":0.25},{"$f":"valuePL(P4,'Utility Functions'!$AC$3:$AC$7,'Utility Functions'!$AD$3:$AD$7)","v":0},{"$f":"valuePL(Q4,'Utility Functions'!$AE$3:$AE$6,'Utility Functions'!$AF$3:$AF$6)","v":0.5},{"$f":"valuePL(R4,'Utility Functions'!$AG$3:$AG$6,'Utility Functions'!$AH$3:$AH$6)","v":0},{"$f":"valuePL(S4,'Utility Functions'!$AI$3:$AI$6,'Utility Functions'!$AJ$3:$AJ$6)","v":0},{"$f":"valuePL(T4,'Utility Functions'!$AK$3:$AK$8,'Utility Functions'!$AL$3:$AL$8)","v":0},{"$f":"valuePL(U4,'Utility Functions'!$AM$3:$AM$5,'Utility Functions'!$AN$3:$AN$5)","v":0.25},{"$f":"valuePL(V4,'Utility Functions'!$AO$3:$AO$5,'Utility Functions'!$AP$3:$AP$5)","v":1},{"$f":"valuePL(W4,'Utility Functions'!$AQ$3:$AQ$6,'Utility Functions'!$AR$3:$AR$6)","v":1},{"$f":"valuePL(X4,'Utility Functions'!$AS$3:$AS$6,'Utility Functions'!$AT$3:$AT$6)","v":1},{"$f":"valuePL(Y4,'Utility Functions'!$AU$3:$AU$6,'Utility Functions'!$AV$3:$AV$6)","v":1},{"$f":"valuePL(Z4,'Utility Functions'!$AW$3:$AW$5,'Utility Functions'!$AX$3:$AX$5)","v":1},{"$f":"valuePL(AA4,'Utility Functions'!$AY$3:$AY$6,'Utility Functions'!$AZ$3:$AZ$6)","v":0.2},{"$f":"valuePL(AB4,'Utility Functions'!$BA$3:$BA$5,'Utility Functions'!$BB$3:$BB$5)","v":1},{"$f":"valuePL(AC4,'Utility Functions'!$BC$3:$BC$5,'Utility Functions'!$BD$3:$BD$5)","v":1},11.563541444302563,null,11.563541444302565,2.7385414443025637,0,0.875,0.75,7.2]
[4,{"$f":"valueE(B5,'Utility Functions'!$B$3,'Utility Functions'!$B$4,'Utility Functions'!$B$5,'Utility Functions'!$B$6)","v":0.1812695215714665},{"$f":"valueE(C5,'Utility Functions'!$D$3,'Utility Functions'!$D$4,'Utility Functions'!$D$5,'Utility Functions'!$D$6)","v":0.46475967153745396},{"$f":"valuePL(D5,'Utility Functions'!$E$3:$E$5,'Utility Functions'!$F$3:$F$5)","v":1},{"$f":"valuePL(E5,'Utility Functions'!$G$3:$G$5,'Utility Functions'!$H$3:$H$5)","v":0},{"$f":"valuePL(F5,'Utility Functions'!$I$3:$I$4,'Utility Functions'!$J$3:$J$5)","v":0},{"$f":"valueE(G5,'Utility Functions'!$L$3,'Utility Functions'!$L$4,'Utility Functions'!$L$5,'Utility Functions'!$L$6)","v":0},{"$f":"valueE(H5,'Utility Functions'!$N$3,'Utility Functions'!$N$4,'Utility Functions'!$N$5,'Utility Functions'!$N$6)","v":0},{"$f":"valuePL(I5,'Utility Functions'!$O$3:$O$6,'Utility Functions'!$P$3:$P$6)","v":0},{"$f":"valuePL(J5,'Utility Functions'!$Q$3:$Q$6,'Utility Functions'!$R$3:$R$6)","v":0},{"$f":"valuePL(K5,'Utility Functions'!$S$3:$S$7,'Utility Functions'!$T$3:$T$7)","v":0},{"$f":"valueE(L5,'Utility Functions'!$V$3,'Utility Functions'!$V$4,'Utility Functions'!$V$5,'Utility Functions'!$V$6)","v":0},{"$f":"valuePL(M5,'Utility Functions'!$W$3:$W$6,'Utility Functions'!$X$3:$X$6)","v":0},{"$f":"valueE(N5,'Utility Functions'!$Z$3,'Utility Functions'!$Z$4,'Utility Functions'!$Z$5,'Utility Functions'!$Z$6)","v":0.5},{"$f":"valuePL(O5,'Utility Functions'!$AA$3:$AA$5,'Utility Functions'!$AB$3:$AB$5)","v":0.25},{"$f":"valuePL(P5,'Utility Functions'!$AC$3:$AC$7,'Utility Functions'!$AD$3:$AD$7)","v":0},{"$f":"valuePL(Q5,'Utility Functions'!$AE$3:$AE$6,'Utility Functions'!$AF$3:$AF$6)","v":0.1},{"$f":"valuePL(R5,'Utility Functions'!$AG$3:$AG$6,'Utility Functions'!$AH$3:$AH$6)","v":1},{"$f":"valuePL(S5,'Utility Functions'!$AI$3:$AI$6,'Utility Functions'!$AJ$3:$AJ$6)","v":1},{"$f":"valuePL(T5,'Utility Functions'!$AK$3:$AK$8,'Utility Functions'!$AL$3:$AL$8)","v":0.8},{"$f":"valuePL(U5,'Utility Functions'!$AM$3:$AM$5,'Utility Functions'!$AN$3:$AN$5)","v":0},{"$f":"valuePL(V5,'Utility Functions'!$AO$3:$AO$5,'Utility Functions'!$AP$3:$AP$5)","v":0.5},{"$f":"valuePL(W5,'Utility Functions'!$AQ$3:$AQ$6,'Utility Functions'!$AR$3:$AR$6)","v":1},{"$f":"valuePL(X5,'Utility Functions'!$AS$3:$AS$6,'Utility Functions'!$AT$3:$AT$6)","v":1},{"$f":"valuePL(Y5,'Utility Functions'!$AU$3:$AU$6,'Utility Functions'!$AV$3:$AV$6)","v":0.2},{"$f":"valuePL(Z5,'Utility Functions'!$AW$3:$AW$5,'Utility Functions'!$AX$3:$AX$5)","v":0},{"$f":"valuePL(AA5,'Utility Functions'!$AY$3:$AY$6,'Utility Functions'!$AZ$3:$AZ$6)","v":0},{"$f":"valuePL(AB5,'Utility Functions'!$BA$3:$BA$5,'Utility Functions'!$BB$3:$BB$5)","v":1},{"$f":"valuePL(AC5,'Utility Functions'!$BC$3:$BC$5,'Utility Functions'!$BD$3:$BD$5)","v":0.25},9.2460291931089209,null,9.2460291931089209,1.6460291931089204,0,0.75,2.9000000000000004,3.95]
[5,{"$f":"valueE(B6,'Utility Functions'!$B$3,'Utility Functions'!$B$4,'Utility Functions'!$B$5,'Utility Functions'!$B$6)","v":0.55067187023002029},{"$f":"valueE(C6,'Utility Functions'!$D$3,'Utility Functions'!$D$4,'Utility Functions'!$D$5,'Utility Functions'!$D$6)","v":0.26656514581460788},{"$f":"valuePL(D6,'Utility Functions'!$E$3:$E$5,'Utility Functions'!$F$3:$F$5)","v":1},{"$f":"valuePL(E6,'Utility Functions'!$G$3:$G$5,'Utility Functions'!$H$3:$H$5)","v":0},{"$f":"valuePL(F6,'Utility Functions'!$I$3:$I$4,'Utility Functions'!$J$3:$J$5)","v":0},{"$f":"valueE(G6,'Utility Functions'!$L$3,'Utility Functions'!$L$4,'Utility Functions'!$L$5,'Utility Functions'!$L$6)","v":0},{"$f":"valueE(H6,'Utility Functions'!$N$3,'Utility Functions'!$N$4,'Utility Functions'!$N$5,'Utility Functions'!$N$6)","v":0},{"$f":"valuePL(I6,'Utility Functions'!$O$3:$O$6,'Utility Functions'!$P$3:$P$6)","v":0.50909090909090915},{"$f":"valuePL(J6,'Utility Functions'!$Q$3:$Q$6,'Utility Functions'!$R$3:$R$6)","v":0.04},{"$f":"valuePL(K6,'Utility Functions'!$S$3:$S$7,'Utility Functions'!$T$3:$T$7)","v":0},{"$f":"valueE(L6,'Utility Functions'!$V$3,'Utility Functions'!$V$4,'Utility Functions'!$V$5,'Utility Functions'!$V$6)","v":0},{"$f":"valuePL(M6,'Utility Functions'!$W$3:$W$6,'Utility Functions'!$X$3:$X$6)","v":0},{"$f":"valueE(N6,'Utility Functions'!$Z$3,'Utility Functions'!$Z$4,'Utility Functions'!$Z$5,'Utility Functions'!$Z$6)","v":0},{"$f":"valuePL(O6,'Utility Functions'!$AA$3:$AA$5,'Utility Functions'!$AB$3:$AB$5)","v":0},{"$f":"valuePL(P6,'Utility Functions'!$AC$3:$AC$7,'Utility Functions'!$AD$3:$AD$7)","v":0},{"$f":"valuePL(Q6,'Utility Functions'!$AE$3:$AE$6,'Utility Functions'!$AF$3:$AF$6)","v":0.1},{"$f":"valuePL(R6,'Utility Functions'!$AG$3:$AG$6,'Utility Functions'!$AH$3:$AH$6)","v":1},{"$f":"valuePL(S6,'Utility Functions'!$AI$3:$AI$6,'Utility Functions'!$AJ$3:$AJ$6)","v":1},{"$f":"valuePL(T6,'Utility Functions'!$AK$3:$AK$8,'Utility Functions'!$AL$3:$AL$8)","v":0.8},{"$f":"valuePL(U6,'Utility Functions'!$AM$3:$AM$5,'Utility Functions'!$AN$3:$AN$5)","v":0.25},{"$f":"valuePL(V6,'Utility Functions'!$AO$3:$AO$5,'Utility Functions'!$AP$3:$AP$5)","v":0},{"$f":"valuePL(W6,'Utility Functions'!$AQ$3:$AQ$6,'Utility Functions'!$AR$3:$AR$6)","v":1},{"$f":"valuePL(X6,'Utility Functions'!$AS$3:$AS$6,'Utility Functions'!$AT$3:$AT$6)","v":1},{"$f":"valuePL(Y6,'Utility Functions'!$AU$3:$AU$6,'Utility Functions'!$AV$3:$AV$6)","v":0.8},{"$f":"valuePL(Z6,'Utility Functions'!$AW$3:$AW$5,'Utility Functions'!$AX$3:$AX$5)","v":0},{"$f":"valuePL(AA6,'Utility Functions'!$AY$3:$AY$6,'Utility Functions'!$AZ$3:$AZ$6)","v":0},{"$f":"valuePL(AB6,'Utility Functions'!$BA$3:$BA$5,'Utility Functions'!$BB$3:$BB$5)","v":1},{"$f":"valuePL(AC6,'Utility Functions'!$BC$3:$BC$5,'Utility Functions'!$BD$3:$BD$5)","v":0.25},9.5663279251355373,null,9.5663279251355391,1.8172370160446283,0.54909090909090918,0,3.1500000000000004,4.05]
[6,{"$f":"valueE(B7,'Utility Functions'!$B$3,'Utility Functions'!$B$4,'Utility Functions'!$B$5,'Utility Functions'!$B$6)","v":0.86466602685702687},{"$f":"valueE(C7,'Utility Functions'!$D$3,'Utility Functions'!$D$4,'Utility Functions'!$D$5,'Utility Functions'!$D$6)","v":6.1811002813601471E-3},{"$f":"valuePL(D7,'Utility Functions'!$E$3:$E$5,'Utility Functions'!$F$3:$F$5)","v":1},{"$f":"valuePL(E7,'Utility Functions'!$G$3:$G$5,'Utility Functions'!$H$3:$H$5)","v":0},{"$f":"valuePL(F7,'Utility Functions'!$I$3:$I$4,'Utility Functions'!$J$3:$J$5)","v":0},{"$f":"valueE(G7,'Utility Functions'!$L$3,'Utility Functions'!$L$4,'Utility Functions'!$L$5,'Utility Functions'!$L$6)","v":0},{"$f":"valueE(H7,'Utility Functions'!$N$3,'Utility Functions'!$N$4,'Utility Functions'!$N$5,'Utility Functions'!$N$6)","v":0},{"$f":"valuePL(I7,'Utility Functions'!$O$3:$O$6,'Utility Functions'!$P$3:$P$6)","v":0.04},{"$f":"valuePL(J7,'Utility Functions'!$Q$3:$Q$6,'Utility Functions'!$R$3:$R$6)","v":0.04},{"$f":"valuePL(K7,'Utility Functions'!$S$3:$S$7,'Utility Functions'!$T$3:$T$7)","v":0},{"$f":"valueE(L7,'Utility Functions'!$V$3,'Utility Functions'!$V$4,'Utility Functions'!$V$5,'Utility Functions'!$V$6)","v":0},{"$f":"valuePL(M7,'Utility Functions'!$W$3:$W$6,'Utility Functions'!$X$3:$X$6)","v":0},{"$f":"valueE(N7,'Utility Functions'!$Z$3,'Utility Functions'!$Z$4,'Utility Functions'!$Z$5,'Utility Functions'!$Z$6)","v":0},{"$f":"valuePL(O7,'Utility Functions'!$AA$3:$AA$5,'Utility Functions'!$AB$3:$AB$5)","v":0},{"$f":"valuePL(P7,'Utility Functions'!$AC$3:$AC$7,'Utility Functions'!$AD$3:$AD$7)","v":0},{"$f":"valuePL(Q7,'Utility Functions'!$AE$3:$AE$6,'Utility Functions'!$AF$3:$AF$6)","v":0.1},{"$f":"valuePL(R7,'Utility Functions'!$AG$3:$AG$6,'Utility Functions'!$AH$3:$AH$6)","v":0},{"$f":"valuePL(S7,'Utility Functions'!$AI$3:$AI$6,'Utility Functions'!$AJ$3:$AJ$6)","v":1},{"$f":"valuePL(T7,'Utility Functions'!$AK$3:$AK$8,'Utility Functions'!$AL$3:$AL$8)","v":0.6},{"$f":"valuePL(U7,'Utility Functions'!$AM$3:$AM$5,'Utility Functions'!$AN$3:$AN$5)","v":0},{"$f":"valuePL(V7,'Utility Functions'!$AO$3:$AO$5,'Utility Functions'!$AP$3:$AP$5)","v":0},{"$f":"valuePL(W7,'Utility Functions'!$AQ$3:$AQ$6,'Utility Functions'!$AR$3:$AR$6)","v":0},{"$f":"valuePL(X7,'Utility Functions'!$AS$3:$AS$6,'Utility Functions'!$AT$3:$AT$6)","v":1},{"$f":"valuePL(Y7,'Utility Functions'!$AU$3:$AU$6,'Utility Functions'!$AV$3:$AV$6)","v":0},{"$f":"valuePL(Z7,'Utility Functions'!$AW$3:$AW$5,'Utility Functions'!$AX$3:$AX$5)","v":0},{"$f":"valuePL(AA7,'Utility Functions'!$AY$3:$AY$6,'Utility Functions'!$AZ$3:$AZ$6)","v":0},{"$f":"valuePL(AB7,'Utility Functions'!$BA$3:$BA$5,'Utility Functions'!$BB$3:$BB$5)","v":1},{"$f":"valuePL(AC7,'Utility Functions'!$BC$3:$BC$5,'Utility Functions'!$BD$3:$BD$5)","v":0.25},5.9008471271383875,null,5.9008471271383875,1.8708471271383869,0.08,0,1.7000000000000002,2.25]
[7,{"$f":"valueE(B8,'Utility Functions'!$B$3,'Utility Functions'!$B$4,'Utility Functions'!$B$5,'Utility Functions'!$B$6)","v":0.99997108261728973},{"$f":"valueE(C8,'Utility Functions'!$D$3,'Utility Functions'!$D$4,'Utility Functions'!$D$5,'Utility Functions'!$D$6)","v":0.84744836833951609},{"$f":"valuePL(D8,'Utility Functions'!$E$3:$E$5,'Utility Functions'!$F$3:$F$5)","v":0},{"$f":"valuePL(E8,'Utility Functions'!$G$3:$G$5,'Utility Functions'!$H$3:$H$5)","v":1},{"$f":"valuePL(F8,'Utility Functions'!$I$3:$I$4,'Utility Functions'!$J$3:$J$5)","v":0},{"$f":"valueE(G8,'Utility Functions'!$L$3,'Utility Functions'!$L$4,'Utility Functions'!$L$5,'Utility Functions'!$L$6)","v":0},{"$f":"valueE(H8,'Utility Functions'!$N$3,'Utility Functions'!$N$4,'Utility Functions'!$N$5,'Utility Functions'!$N$6)","v":0},{"$f":"valuePL(I8,'Utility Functions'!$O$3:$O$6,'Utility Functions'!$P$3:$P$6)","v":1},{"$f":"valuePL(J8,'Utility Functions'!$Q$3:$Q$6,'Utility Functions'!$R$3:$R$6)","v":0.67272727272727273},{"$f":"valuePL(K8,'Utility Functions'!$S$3:$S$7,'Utility Functions'!$T$3:$T$7)","v":1},{"$f":"valueE(L8,'Utility Functions'!$V$3,'Utility Functions'!$V$4,'Utility Functions'!$V$5,'Utility Functions'!$V$6)","v":1},{"$f":"valuePL(M8,'Utility Functions'!$W$3:$W$6,'Utility Functions'!$X$3:$X$6)","v":0.67272727272727273},{"$f":"valueE(N8,'Utility Functions'!$Z$3,'Utility Functions'!$Z$4,'Utility Functions'!$Z$5,'Utility Functions'!$Z$6)","v":1},{"$f":"valuePL(O8,'Utility Functions'!$AA$3:$AA$5,'Utility Functions'!$AB$3:$AB$5)","v":0.25},{"$f":"valuePL(P8,'Utility Functions'!$AC$3:$AC$7,'Utility Functions'!$AD$3:$AD$7)","v":0},{"$f":"valuePL(Q8,'Utility Functions'!$AE$3:$AE$6,'Utility Functions'!$AF$3:$AF$6)","v":0},{"$f":"valuePL(R8,'Utility Functions'!$AG$3:$AG$6,'Utility Functions'!$AH$3:$AH$6)","v":1},{"$f":"valuePL(S8,'Utility Functions'!$AI$3:$AI$6,'Utility Functions'!$AJ$3:$AJ$6)","v":1},{"$f":"valuePL(T8,'Utility Functions'!$AK$3:$AK$8,'Utility Functions'!$AL$3:$AL$8)","v":0},{"$f":"valuePL(U8,'Utility Functions'!$AM$3:$AM$5,'Utility Functions'!$AN$3:$AN$5)","v":0},{"$f":"valuePL(V8,'Utility Functions'!$AO$3:$AO$5,'Utility Functions'!$AP$3:$AP$5)","v":1},{"$f":"valuePL(W8,'Utility Functions'!$AQ$3:$AQ$6,'Utility Functions'!$AR$3:$AR$6)","v":0},{"$f":"valuePL(X8,'Utility Functions'!$AS$3:$AS$6,'Utility Functions'!$AT$3:$AT$6)","v":0.2},{"$f":"valuePL(Y8,'Utility Functions'!$AU$3:$AU$6,'Utility Functions'!$AV$3:$AV$6)","v":1},{"$f":"valuePL(Z8,'Utility Functions'!$AW$3:$AW$5,'Utility Functions'!$AX$3:$AX$5)","v":1},{"$f":"valuePL(AA8,'Utility Functions'!$AY$3:$AY$6,'Utility Functions'!$AZ$3:$AZ$6)","v":0.89999999999999991},{"$f":"valuePL(AB8,'Utility Functions'!$BA$3:$BA$5,'Utility Functions'!$BB$3:$BB$5)","v":0},{"$f":"valuePL(AC8,'Utility Functions'!$BC$3:$BC$5,'Utility Functions'!$BD$3:$BD$5)","v":1},15.54287399641135,null,15.54287399641135,2.8474194509568056,4.3454545454545457,1.25,2,5.0999999999999996]
[8,{"$f":"valueE(B9,'Utility Functions'!$B$3,'Utility Functions'!$B$4,'Utility Functions'!$B$5,'Utility Functions'!$B$6)","v":0.4511890475224023},{"$f":"valueE(C9,'Utility Functions'!$D$3,'Utility Functions'!$D$4,'Utility Functions'!$D$5,'Utility Functions'!$D$6)","v":0.84744836833951609},{"$f":"valuePL(D9,'Utility Functions'!$E$3:$E$5,'Utility Functions'!$F$3:$F$5)","v":1},{"$f":"valuePL(E9,'Utility Functions'!$G$3:$G$5,'Utility Functions'!$H$3:$H$5)","v":0.5},{"$f":"valuePL(F9,'Utility Functions'!$I$3:$I$4,'Utility Functions'!$J$3:$J$5)","v":1},{"$f":"valueE(G9,'Utility Functions'!$L$3,'Utility Functions'!$L$4,'Utility Functions'!$L$5,'Utility Functions'!$L$6)","v":0},{"$f":"valueE(H9,'Utility Functions'!$N$3,'Utility Functions'!$N$4,'Utility Functions'!$N$5,'Utility Functions'!$N$6)","v":0},{"$f":"valuePL(I9,'Utility Functions'!$O$3:$O$6,'Utility Functions'!$P$3:$P$6)","v":5.6000000000000008E-2},{"$f":"valuePL(J9,'Utility Functions'!$Q$3:$Q$6,'Utility Functions'!$R$3:$R$6)","v":0.83636363636363631},{"$f":"valuePL(K9,'Utility Functions'!$S$3:$S$7,'Utility Functions'!$T$3:$T$7)","v":0},{"$f":"valueE(L9,'Utility Functions'!$V$3,'Utility Functions'!$V$4,'Utility Functions'!$V$5,'Utility Functions'!$V$6)","v":1},{"$f":"valuePL(M9,'Utility Functions'!$W$3:$W$6,'Utility Functions'!$X$3:$X$6)","v":0.83636363636363631},{"$f":"valueE(N9,'Utility Functions'!$Z$3,'Utility Functions'!$Z$4,'Utility Functions'!$Z$5,'Utility Functions'!$Z$6)","v":0},{"$f":"valuePL(O9,'Utility Functions'!$AA$3:$AA$5,'Utility Functions'!$AB$3:$AB$5)","v":0},{"$f":"valuePL(P9,'Utility Functions'!$AC$3:$AC$7,'Utility Functions'!$AD$3:$AD$7)","v":0},{"$f":"valuePL(Q9,'Utility Functions'!$AE$3:$AE$6,'Utility Functions'!$AF$3:$AF$6)","v":1},{"$f":"valuePL(R9,'Utility Functions'!$AG$3:$AG$6,'Utility Functions'!$AH$3:$AH$6)","v":0.2},{"$f":"valuePL(S9,'Utility Functions'!$AI$3:$AI$6,'Utility Functions'!$AJ$3:$AJ$6)","v":1},{"$f":"valuePL(T9,'Utility Functions'!$AK$3:$AK$8,'Utility Functions'!$AL$3:$AL$8)","v":0},{"$f":"valuePL(U9,'Utility Functions'!$AM$3:$AM$5,'Utility Functions'!$AN$3:$AN$5)","v":0},{"$f":"valuePL(V9,'Utility Functions'!$AO$3:$AO$5,'Utility Functions'!$AP$3:$AP$5)","v":1},{"$f":"valuePL(W9,'Utility Functions'!$AQ$3:$AQ$6,'Utility Functions'!$AR$3:$AR$6)","v":1},{"$f":"valuePL(X9,'Utility Functions'!$AS$3:$AS$6,'Utility Functions'!$AT$3:$AT$6)","v":1},{"$f":"valuePL(Y9,'Utility Functions'!$AU$3:$AU$6,'Utility Functions'!$AV$3:$AV$6)","v":1},{"$f":"valuePL(Z9,'Utility Functions'!$AW$3:$AW$5,'Utility Functions'!$AX$3:$AX$5)","v":1},{"$f":"valuePL(AA9,'Utility Functions'!$AY$3:$AY$6,'Utility Functions'!$AZ$3:$AZ$6)","v":0},{"$f":"valuePL(AB9,'Utility Functions'!$BA$3:$BA$5,'Utility Functions'!$BB$3:$BB$5)","v":0.25},{"$f":"valuePL(AC9,'Utility Functions'!$BC$3:$BC$5,'Utility Functions'!$BD$3:$BD$5)","v":0.25},14.227364688589191,null,14.227364688589191,3.7986374158619185,2.7287272727272729,0,2.2000000000000002,5.5]
[9,{"$f":"valueE(B10,'Utility Functions'!$B$3,'Utility Functions'!$B$4,'Utility Functions'!$B$5,'Utility Functions'!$B$6)","v":0.83470237647280454},{"$f":"valueE(C10,'Utility Functions'!$D$3,'Utility Functions'!$D$4,'Utility Functions'!$D$5,'Utility Functions'!$D$6)","v":0.78989979019422951},{"$f":"valuePL(D10,'Utility Functions'!$E$3:$E$5,'Utility Functions'!$F$3:$F$5)","v":1},{"$f":"valuePL(E10,'Utility Functions'!$G$3:$G$5,'Utility Functions'!$H$3:$H$5)","v":0.5},{"$f":"valuePL(F10,'Utility Functions'!$I$3:$I$4,'Utility Functions'!$J$3:$J$5)","v":0},{"$f":"valueE(G10,'Utility Functions'!$L$3,'Utility Functions'!$L$4,'Utility Functions'!$L$5,'Utility Functions'!$L$6)","v":0.37634408602150538},{"$f":"valueE(H10,'Utility Functions'!$N$3,'Utility Functions'!$N$4,'Utility Functions'!$N$5,'Utility Functions'!$N$6)","v":0.13282732447817835},{"$f":"valuePL(I10,'Utility Functions'!$O$3:$O$6,'Utility Functions'!$P$3:$P$6)","v":0},{"$f":"valuePL(J10,'Utility Functions'!$Q$3:$Q$6,'Utility Functions'!$R$3:$R$6)","v":0},{"$f":"valuePL(K10,'Utility Functions'!$S$3:$S$7,'Utility Functions'!$T$3:$T$7)","v":0},{"$f":"valueE(L10,'Utility Functions'!$V$3,'Utility Functions'!$V$4,'Utility Functions'!$V$5,'Utility Functions'!$V$6)","v":0},{"$f":"valuePL(M10,'Utility Functions'!$W$3:$W$6,'Utility Functions'!$X$3:$X$6)","v":0},{"$f":"valueE(N10,'Utility Functions'!$Z$3,'Utility Functions'!$Z$4,'Utility Functions'!$Z$5,'Utility Functions'!$Z$6)","v":0},{"$f":"valuePL(O10,'Utility Functions'!$AA$3:$AA$5,'Utility Functions'!$AB$3:$AB$5)","v":0},{"$f":"valuePL(P10,'Utility Functions'!$AC$3:$AC$7,'Utility Functions'!$AD$3:$AD$7)","v":0.75},{"$f":"valuePL(Q10,'Utility Functions'!$AE$3:$AE$6,'Utility Functions'!$AF$3:$AF$6)","v":0},{"$f":"valuePL(R10,'Utility Functions'!$AG$3:$AG$6,'Utility Functions'!$AH$3:$AH$6)","v":1},{"$f":"valuePL(S10,'Utility Functions'!$AI$3:$AI$6,'Utility Functions'!$AJ$3:$AJ$6)","v":0.66},{"$f":"valuePL(T10,'Utility Functions'!$AK$3:$AK$8,'Utility Functions'!$AL$3:$AL$8)","v":0.2},{"$f":"valuePL(U10,'Utility Functions'!$AM$3:$AM$5,'Utility Functions'!$AN$3:$AN$5)","v":0},{"$f":"valuePL(V10,'Utility Functions'!$AO$3:$AO$5,'Utility Functions'!$AP$3:$AP$5)","v":1},{"$f":"valuePL(W10,'Utility Functions'!$AQ$3:$AQ$6,'Utility Functions'!$AR$3:$AR$6)","v":1},{"$f":"valuePL(X10,'Utility Functions'!$AS$3:$AS$6,'Utility Functions'!$AT$3:$AT$6)","v":1},{"$f":"valuePL(Y10,'Utility Functions'!$AU$3:$AU$6,'Utility Functions'!$AV$3:$AV$6)","v":0.2},{"$f":"valuePL(Z10,'Utility Functions'!$AW$3:$AW$5,'Utility Functions'!$AX$3:$AX$5)","v":1},{"$f":"valuePL(AA10,'Utility Functions'!$AY$3:$AY$6,'Utility Functions'!$AZ$3:$AZ$6)","v":0.2},{"$f":"valuePL(AB10,'Utility Functions'!$BA$3:$BA$5,'Utility Functions'!$BB$3:$BB$5)","v":0.25},{"$f":"valuePL(AC10,'Utility Functions'!$BC$3:$BC$5,'Utility Functions'!$BD$3:$BD$5)","v":1},11.893773577166716,null,11.893773577166719,3.1246021666670343,0.50917141049968373,0,2.6100000000000003,5.65]
[10,{"$f":"valueE(B11,'Utility Functions'!$B$3,'Utility Functions'!$B$4,'Utility Functions'!$B$5,'Utility Functions'!$B$6)","v":0},{"$f":"valueE(C11,'Utility Functions'!$D$3,'Utility Functions'!$D$4,'Utility Functions'!$D$5,'Utility Functions'!$D$6)","v":0},{"$f":"valuePL(D11,'Utility Functions'!$E$3:$E$5,'Utility Functions'!$F$3:$F$5)","v":0},{"$f":"valuePL(E11,'Utility Functions'!$G$3:$G$5,'Utility Functions'!$H$3:$H$5)","v":0},{"$f":"valuePL(F11,'Utility Functions'!$I$3:$I$4,'Utility Functions'!$J$3:$J$5)","v":0},{"$f":"valueE(G11,'Utility Functions'!$L$3,'Utility Functions'!$L$4,'Utility Functions'!$L$5,'Utility Functions'!$L$6)","v":0},{"$f":"valueE(H11,'Utility Functions'!$N$3,'Utility Functions'!$N$4,'Utility Functions'!$N$5,'Utility Functions'!$N$6)","v":0},{"$f":"valuePL(I11,'Utility Functions'!$O$3:$O$6,'Utility Functions'!$P$3:$P$6)","v":0},{"$f":"valuePL(J11,'Utility Functions'!$Q$3:$Q$6,'Utility Functions'!$R$3:$R$6)","v":0},{"$f":"valuePL(K11,'Utility Functions'!$S$3:$S$7,'Utility Functions'!$T$3:$T$7)","v":0},{"$f":"valueE(L11,'Utility Functions'!$V$3,'Utility Functions'!$V$4,'Utility Functions'!$V$5,'Utility Functions'!$V$6)","v":0},{"$f":"valuePL(M11,'Utility Functions'!$W$3:$W$6,'Utility Functions'!$X$3:$X$6)","v":0},{"$f":"valueE(N11,'Utility Functions'!$Z$3,'Utility Functions'!$Z$4,'Utility Functions'!$Z$5,'Utility Functions'!$Z$6)","v":0.75},{"$f":"valuePL(O11,'Utility Functions'!$AA$3:$AA$5,'Utility Functions'!$AB$3:$AB$5)","v":1},{"$f":"valuePL(P11,'Utility Functions'!$AC$3:$AC$7,'Utility Functions'!$AD$3:$AD$7)","v":0.25},{"$f":"valuePL(Q11,'Utility Functions'!$AE$3:$AE$6,'Utility Functions'!$AF$3:$AF$6)","v":0.5},{"$f":"valuePL(R11,'Utility Functions'!$AG$3:$AG$6,'Utility Functions'!$AH$3:$AH$6)","v":1},{"$f":"valuePL(S11,'Utility Functions'!$AI$3:$AI$6,'Utility Functions'!$AJ$3:$AJ$6)","v":0.66},{"$f":"valuePL(T11,'Utility Functions'!$AK$3:$AK$8,'Utility Functions'!$AL$3:$AL$8)","v":0.4},{"$f":"valuePL(U11,'Utility Functions'!$AM$3:$AM$5,'Utility Functions'!$AN$3:$AN$5)","v":0},{"$f":"valuePL(V11,'Utility Functions'!$AO$3:$AO$5,'Utility Functions'!$AP$3:$AP$5)","v":0},{"$f":"valuePL(W11,'Utility Functions'!$AQ$3:$AQ$6,'Utility Functions'!$AR$3:$AR$6)","v":0.75},{"$f":"valuePL(X11,'Utility Functions'!$AS$3:$AS$6,'Utility Functions'!$AT$3:$AT$6)","v":1},{"$f":"valuePL(Y11,'Utility Functions'!$AU$3:$AU$6,'Utility Functions'!$AV$3:$AV$6)","v":1},{"$f":"valuePL(Z11,'Utility Functions'!$AW$3:$AW$5,'Utility Functions'!$AX$3:$AX$5)","v":0.5},{"$f":"valuePL(AA11,'Utility Functions'!$AY$3:$AY$6,'Utility Functions'!$AZ$3:$AZ$6)","v":0.2},{"$f":"valuePL(AB11,'Utility Functions'!$BA$3:$BA$5,'Utility Functions'!$BB$3:$BB$5)","v":0},{"$f":"valuePL(AC11,'Utility Functions'!$BC$3:$BC$5,'Utility Functions'!$BD$3:$BD$5)","v":1},9.01,null,9.0100000000000016,0,0,1.75,2.81,4.45]
[11,{"$f":"valueE(B12,'Utility Functions'!$B$3,'Utility Functions'!$B$4,'Utility Functions'!$B$5,'Utility Functions'!$B$6)","v":0},{"$f":"valueE(C12,'Utility Functions'!$D$3,'Utility Functions'!$D$4,'Utility Functions'!$D$5,'Utility Functions'!$D$6)","v":0},{"$f":"valuePL(D12,'Utility Functions'!$E$3:$E$5,'Utility Functions'!$F$3:$F$5)","v":0},{"$f":"valuePL(E12,'Utility Functions'!$G$3:$G$5,'Utility Functions'!$H$3:$H$5)","v":0},{"$f":"valuePL(F12,'Utility Functions'!$I$3:$I$4,'Utility Functions'!$J$3:$J$5)","v":0},{"$f":"valueE(G12,'Utility Functions'!$L$3,'Utility Functions'!$L$4,'Utility Functions'!$L$5,'Utility Functions'!$L$6)","v":3.2258064516129031E-2},{"$f":"valueE(H12,'Utility Functions'!$N$3,'Utility Functions'!$N$4,'Utility Functions'!$N$5,'Utility Functions'!$N$6)","v":9.6774193548387094E-2},{"$f":"valuePL(I12,'Utility Functions'!$O$3:$O$6,'Utility Functions'!$P$3:$P$6)","v":0.54181818181818187},{"$f":"valuePL(J12,'Utility Functions'!$Q$3:$Q$6,'Utility Functions'!$R$3:$R$6)","v":0.91818181818181821},{"$f":"valuePL(K12,'Utility Functions'!$S$3:$S$7,'Utility Functions'!$T$3:$T$7)","v":0.54181818181818187},{"$f":"valueE(L12,'Utility Functions'!$V$3,'Utility Functions'!$V$4,'Utility Functions'!$V$5,'Utility Functions'!$V$6)","v":1},{"$f":"valuePL(M12,'Utility Functions'!$W$3:$W$6,'Utility Functions'!$X$3:$X$6)","v":0.91818181818181821},{"$f":"valueE(N12,'Utility Functions'!$Z$3,'Utility Functions'!$Z$4,'Utility Functions'!$Z$5,'Utility Functions'!$Z$6)","v":0.375},{"$f":"valuePL(O12,'Utility Functions'!$AA$3:$AA$5,'Utility Functions'!$AB$3:$AB$5)","v":0.25},{"$f":"valuePL(P12,'Utility Functions'!$AC$3:$AC$7,'Utility Functions'!$AD$3:$AD$7)","v":0.25},{"$f":"valuePL(Q12,'Utility Functions'!$AE$3:$AE$6,'Utility Functions'!$AF$3:$AF$6)","v":0},{"$f":"valuePL(R12,'Utility Functions'!$AG$3:$AG$6,'Utility Functions'!$AH$3:$AH$6)","v":1},{"$f":"valuePL(S12,'Utility Functions'!$AI$3:$AI$6,'Utility Functions'!$AJ$3:$AJ$6)","v":1},{"$f":"valuePL(T12,'Utility Functions'!$AK$3:$AK$8,'Utility Functions'!$AL$3:$AL$8)","v":0.4},{"$f":"valuePL(U12,'Utility Functions'!$AM$3:$AM$5,'Utility Functions'!$AN$3:$AN$5)","v":1},{"$f":"valuePL(V12,'Utility Functions'!$AO$3:$AO$5,'Utility Functions'!$AP$3:$AP$5)","v":1},{"$f":"valuePL(W12,'Utility Functions'!$AQ$3:$AQ$6,'Utility Functions'!$AR$3:$AR$6)","v":0.2},{"$f":"valuePL(X12,'Utility Functions'!$AS$3:$AS$6,'Utility Functions'!$AT$3:$AT$6)","v":1},{"$f":"valuePL(Y12,'Utility Functions'!$AU$3:$AU$6,'Utility Functions'!$AV$3:$AV$6)","v":1},{"$f":"valuePL(Z12,'Utility Functions'!$AW$3:$AW$5,'Utility Functions'!$AX$3:$AX$5)","v":0.5},{"$f":"valuePL(AA12,'Utility Functions'!$AY$3:$AY$6,'Utility Functions'!$AZ$3:$AZ$6)","v":0.89999999999999991},{"$f":"valuePL(AB12,'Utility Functions'!$BA$3:$BA$5,'Utility Functions'!$BB$3:$BB$5)","v":0},{"$f":"valuePL(AC12,'Utility Functions'!$BC$3:$BC$5,'Utility Functions'!$BD$3:$BD$5)","v":0.25},13.174032258064516,null,13.174032258064516,0,4.0490322580645159,0.625,3.65,4.8499999999999996]
[12,{"$f":"valueE(B13,'Utility Functions'!$B$3,'Utility Functions'!$B$4,'Utility Functions'!$B$5,'Utility Functions'!$B$6)","v":0.32968045347775865},{"$f":"valueE(C13,'Utility Functions'!$D$3,'Utility Functions'!$D$4,'Utility Functions'!$D$5,'Utility Functions'!$D$6)","v":0.78989979019422951},{"$f":"valuePL(D13,'Utility Functions'!$E$3:$E$5,'Utility Functions'!$F$3:$F$5)","v":1},{"$f":"valuePL(E13,'Utility Functions'!$G$3:$G$5,'Utility Functions'!$H$3:$H$5)","v":0.5},{"$f":"valuePL(F13,'Utility Functions'!$I$3:$I$4,'Utility Functions'!$J$3:$J$5)","v":0},{"$f":"valueE(G13,'Utility Functions'!$L$3,'Utility Functions'!$L$4,'Utility Functions'!$L$5,'Utility Functions'!$L$6)","v":0},{"$f":"valueE(H13,'Utility Functions'!$N$3,'Utility Functions'!$N$4,'Utility Functions'!$N$5,'Utility Functions'!$N$6)","v":0},{"$f":"valuePL(I13,'Utility Functions'!$O$3:$O$6,'Utility Functions'!$P$3:$P$6)","v":0},{"$f":"valuePL(J13,'Utility Functions'!$Q$3:$Q$6,'Utility Functions'!$R$3:$R$6)","v":0},{"$f":"valuePL(K13,'Utility Functions'!$S$3:$S$7,'Utility Functions'!$T$3:$T$7)","v":0},{"$f":"valueE(L13,'Utility Functions'!$V$3,'Utility Functions'!$V$4,'Utility Functions'!$V$5,'Utility Functions'!$V$6)","v":0},{"$f":"valuePL(M13,'Utility Functions'!$W$3:$W$6,'Utility Functions'!$X$3:$X$6)","v":0},{"$f":"valueE(N13,'Utility Functions'!$Z$3,'Utility Functions'!$Z$4,'Utility Functions'!$Z$5,'Utility Functions'!$Z$6)","v":0},{"$f":"valuePL(O13,'Utility Functions'!$AA$3:$AA$5,'Utility Functions'!$AB$3:$AB$5)","v":0},{"$f":"valuePL(P13,'Utility Functions'!$AC$3:$AC$7,'Utility Functions'!$AD$3:$AD$7)","v":0},{"$f":"valuePL(Q13,'Utility Functions'!$AE$3:$AE$6,'Utility Functions'!$AF$3:$AF$6)","v":0.1},{"$f":"valuePL(R13,'Utility Functions'!$AG$3:$AG$6,'Utility Functions'!$AH$3:$AH$6)","v":1},{"$f":"valuePL(S13,'Utility Functions'!$AI$3:$AI$6,'Utility Functions'!$AJ$3:$AJ$6)","v":1},{"$f":"valuePL(T13,'Utility Functions'!$AK$3:$AK$8,'Utility Functions'!$AL$3:$AL$8)","v":0.6},{"$f":"valuePL(U13,'Utility Functions'!$AM$3:$AM$5,'Utility Functions'!$AN$3:$AN$5)","v":0},{"$f":"valuePL(V13,'Utility Functions'!$AO$3:$AO$5,'Utility Functions'!$AP$3:$AP$5)","v":0.5},{"$f":"valuePL(W13,'Utility Functions'!$AQ$3:$AQ$6,'Utility Functions'!$AR$3:$AR$6)","v":0.2},{"$f":"valuePL(X13,'Utility Functions'!$AS$3:$AS$6,'Utility Functions'!$AT$3:$AT$6)","v":1},{"$f":"valuePL(Y13,'Utility Functions'!$AU$3:$AU$6,'Utility Functions'!$AV$3:$AV$6)","v":0.2},{"$f":"valuePL(Z13,'Utility Functions'!$AW$3:$AW$5,'Utility Functions'!$AX$3:$AX$5)","v":1},{"$f":"valuePL(AA13,'Utility Functions'!$AY$3:$AY$6,'Utility Functions'!$AZ$3:$AZ$6)","v":0.2},{"$f":"valuePL(AB13,'Utility Functions'!$BA$3:$BA$5,'Utility Functions'!$BB$3:$BB$5)","v":1},{"$f":"valuePL(AC13,'Utility Functions'!$BC$3:$BC$5,'Utility Functions'!$BD$3:$BD$5)","v":0},9.4195802436719873,null,9.4195802436719873,2.6195802436719884,0,0,2.7,4.0999999999999996]
[13,{"$f":"valueE(B14,'Utility Functions'!$B$3,'Utility Functions'!$B$4,'Utility Functions'!$B$5,'Utility Functions'!$B$6)","v":0},{"$f":"valueE(C14,'Utility Functions'!$D$3,'Utility Functions'!$D$4,'Utility Functions'!$D$5,'Utility Functions'!$D$6)","v":0},{"$f":"valuePL(D14,'Utility Functions'!$E$3:$E$5,'Utility Functions'!$F$3:$F$5)","v":0},{"$f":"valuePL(E14,'Utility Functions'!$G$3:$G$5,'Utility Functions'!$H$3:$H$5)","v":0},{"$f":"valuePL(F14,'Utility Functions'!$I$3:$I$4,'Utility Functions'!$J$3:$J$5)","v":0},{"$f":"valueE(G14,'Utility Functions'!$L$3,'Utility Functions'!$L$4,'Utility Functions'!$L$5,'Utility Functions'!$L$6)","v":0},{"$f":"valueE(H14,'Utility Functions'!$N$3,'Utility Functions'!$N$4,'Utility Functions'!$N$5,'Utility Functions'!$N$6)","v":1.1385199240986717E-2},{"$f":"valuePL(I14,'Utility Functions'!$O$3:$O$6,'Utility Functions'!$P$3:$P$6)","v":0.3290909090909091},{"$f":"valuePL(J14,'Utility Functions'!$Q$3:$Q$6,'Utility Functions'!$R$3:$R$6)","v":0.04},{"$f":"valuePL(K14,'Utility Functions'!$S$3:$S$7,'Utility Functions'!$T$3:$T$7)","v":0.3290909090909091},{"$f":"valueE(L14,'Utility Functions'!$V$3,'Utility Functions'!$V$4,'Utility Functions'!$V$5,'Utility Functions'!$V$6)","v":1},{"$f":"valuePL(M14,'Utility Functions'!$W$3:$W$6,'Utility Functions'!$X$3:$X$6)","v":0.04},{"$f":"valueE(N14,'Utility Functions'!$Z$3,'Utility Functions'!$Z$4,'Utility Functions'!$Z$5,'Utility Functions'!$Z$6)","v":0.875},{"$f":"valuePL(O14,'Utility Functions'!$AA$3:$AA$5,'Utility Functions'!$AB$3:$AB$5)","v":0.25},{"$f":"valuePL(P14,'Utility Functions'!$AC$3:$AC$7,'Utility Functions'!$AD$3:$AD$7)","v":0.25},{"$f":"valuePL(Q14,'Utility Functions'!$AE$3:$AE$6,'Utility Functions'!$AF$3:$AF$6)","v":0},{"$f":"valuePL(R14,'Utility Functions'!$AG$3:$AG$6,'Utility Functions'!$AH$3:$AH$6)","v":1},{"$f":"valuePL(S14,'Utility Functions'!$AI$3:$AI$6,'Utility Functions'!$AJ$3:$AJ$6)","v":1},{"$f":"valuePL(T14,'Utility Functions'!$AK$3:$AK$8,'Utility Functions'!$AL$3:$AL$8)","v":0},{"$f":"valuePL(U14,'Utility Functions'!$AM$3:$AM$5,'Utility Functions'!$AN$3:$AN$5)","v":0},{"$f":"valuePL(V14,'Utility Functions'!$AO$3:$AO$5,'Utility Functions'!$AP$3:$AP$5)","v":0.5},{"$f":"valuePL(W14,'Utility Functions'!$AQ$3:$AQ$6,'Utility Functions'!$AR$3:$AR$6)","v":0},{"$f":"valuePL(X14,'Utility Functions'!$AS$3:$AS$6,'Utility Functions'!$AT$3:$AT$6)","v":0.2},{"$f":"valuePL(Y14,'Utility Functions'!$AU$3:$AU$6,'Utility Functions'!$AV$3:$AV$6)","v":0},{"$f":"valuePL(Z14,'Utility Functions'!$AW$3:$AW$5,'Utility Functions'!$AX$3:$AX$5)","v":1},{"$f":"valuePL(AA14,'Utility Functions'!$AY$3:$AY$6,'Utility Functions'!$AZ$3:$AZ$6)","v":0.2},{"$f":"valuePL(AB14,'Utility Functions'!$BA$3:$BA$5,'Utility Functions'!$BB$3:$BB$5)","v":0.25},{"$f":"valuePL(AC14,'Utility Functions'!$BC$3:$BC$5,'Utility Functions'!$BD$3:$BD$5)","v":0.25},7.5245670174228056,null,7.5245670174228056,0,1.7495670174228048,1.125,2.25,2.4]
[14,{"$f":"valueE(B15,'Utility Functions'!$B$3,'Utility Functions'!$B$4,'Utility Functions'!$B$5,'Utility Functions'!$B$6)","v":0.69880684688087746},{"$f":"valueE(C15,'Utility Functions'!$D$3,'Utility Functions'!$D$4,'Utility Functions'!$D$5,'Utility Functions'!$D$6)","v":0.78989979019422951},{"$f":"valuePL(D15,'Utility Functions'!$E$3:$E$5,'Utility Functions'!$F$3:$F$5)","v":0.5},{"$f":"valuePL(E15,'Utility Functions'!$G$3:$G$5,'Utility Functions'!$H$3:$H$5)","v":0.5},{"$f":"valuePL(F15,'Utility Functions'!$I$3:$I$4,'Utility Functions'!$J$3:$J$5)","v":0},{"$f":"valueE(G15,'Utility Functions'!$L$3,'Utility Functions'!$L$4,'Utility Functions'!$L$5,'Utility Functions'!$L$6)","v":0},{"$f":"valueE(H15,'Utility Functions'!$N$3,'Utility Functions'!$N$4,'Utility Functions'!$N$5,'Utility Functions'!$N$6)","v":0},{"$f":"valuePL(I15,'Utility Functions'!$O$3:$O$6,'Utility Functions'!$P$3:$P$6)","v":0},{"$f":"valuePL(J15,'Utility Functions'!$Q$3:$Q$6,'Utility Functions'!$R$3:$R$6)","v":0},{"$f":"valuePL(K15,'Utility Functions'!$S$3:$S$7,'Utility Functions'!$T$3:$T$7)","v":0},{"$f":"valueE(L15,'Utility Functions'!$V$3,'Utility Functions'!$V$4,'Utility Functions'!$V$5,'Utility Functions'!$V$6)","v":0},{"$f":"valuePL(M15,'Utility Functions'!$W$3:$W$6,'Utility Functions'!$X$3:$X$6)","v":0},{"$f":"valueE(N15,'Utility Functions'!$Z$3,'Utility Functions'!$Z$4,'Utility Functions'!$Z$5,'Utility Functions'!$Z$6)","v":0.75},{"$f":"valuePL(O15,'Utility Functions'!$AA$3:$AA$5,'Utility Functions'!$AB$3:$AB$5)","v":0.25},{"$f":"valuePL(P15,'Utility Functions'!$AC$3:$AC$7,'Utility Functions'!$AD$3:$AD$7)","v":0.25},{"$f":"valuePL(Q15,'Utility Functions'!$AE$3:$AE$6,'Utility Functions'!$AF$3:$AF$6)","v":0},{"$f":"valuePL(R15,'Utility Functions'!$AG$3:$AG$6,'Utility Functions'!$AH$3:$AH$6)","v":1},{"$f":"valuePL(S15,'Utility Functions'!$AI$3:$AI$6,'Utility Functions'!$AJ$3:$AJ$6)","v":1},{"$f":"valuePL(T15,'Utility Functions'!$AK$3:$AK$8,'Utility Functions'!$AL$3:$AL$8)","v":0},{"$f":"valuePL(U15,'Utility Functions'!$AM$3:$AM$5,'Utility Functions'!$AN$3:$AN$5)","v":0},{"$f":"valuePL(V15,'Utility Functions'!$AO$3:$AO$5,'Utility Functions'!$AP$3:$AP$5)","v":0.5},{"$f":"valuePL(W15,'Utility Functions'!$AQ$3:$AQ$6,'Utility Functions'!$AR$3:$AR$6)","v":0.2},{"$f":"valuePL(X15,'Utility Functions'!$AS$3:$AS$6,'Utility Functions'!$AT$3:$AT$6)","v":1},{"$f":"valuePL(Y15,'Utility Functions'!$AU$3:$AU$6,'Utility Functions'!$AV$3:$AV$6)","v":1},{"$f":"valuePL(Z15,'Utility Functions'!$AW$3:$AW$5,'Utility Functions'!$AX$3:$AX$5)","v":0.5},{"$f":"valuePL(AA15,'Utility Functions'!$AY$3:$AY$6,'Utility Functions'!$AZ$3:$AZ$6)","v":0.89999999999999991},{"$f":"valuePL(AB15,'Utility Functions'!$BA$3:$BA$5,'Utility Functions'!$BB$3:$BB$5)","v":0.25},{"$f":"valuePL(AC15,'Utility Functions'!$BC$3:$BC$5,'Utility Functions'!$BD$3:$BD$5)","v":0.25},10.338706637075108,null,10.338706637075106,2.488706637075107,0,1,2.25,4.5999999999999996]
[15,{"$f":"valueE(B16,'Utility Functions'!$B$3,'Utility Functions'!$B$4,'Utility Functions'!$B$5,'Utility Functions'!$B$6)","v":0.98994966417177144},{"$f":"valueE(C16,'Utility Functions'!$D$3,'Utility Functions'!$D$4,'Utility Functions'!$D$5,'Utility Functions'!$D$6)","v":0.71352759724260828},{"$f":"valuePL(D16,'Utility Functions'!$E$3:$E$5,'Utility Functions'!$F$3:$F$5)","v":1},{"$f":"valuePL(E16,'Utility Functions'!$G$3:$G$5,'Utility Functions'!$H$3:$H$5)","v":0.5},{"$f":"valuePL(F16,'Utility Functions'!$I$3:$I$4,'Utility Functions'!$J$3:$J$5)","v":1},{"$f":"valueE(G16,'Utility Functions'!$L$3,'Utility Functions'!$L$4,'Utility Functions'!$L$5,'Utility Functions'!$L$6)","v":0},{"$f":"valueE(H16,'Utility Functions'!$N$3,'Utility Functions'!$N$4,'Utility Functions'!$N$5,'Utility Functions'!$N$6)","v":0},{"$f":"valuePL(I16,'Utility Functions'!$O$3:$O$6,'Utility Functions'!$P$3:$P$6)","v":9.2000000000000012E-2},{"$f":"valuePL(J16,'Utility Functions'!$Q$3:$Q$6,'Utility Functions'!$R$3:$R$6)","v":6.0000000000000012E-2},{"$f":"valuePL(K16,'Utility Functions'!$S$3:$S$7,'Utility Functions'!$T$3:$T$7)","v":6.0000000000000012E-2},{"$f":"valueE(L16,'Utility Functions'!$V$3,'Utility Functions'!$V$4,'Utility Functions'!$V$5,'Utility Functions'!$V$6)","v":1},{"$f":"valuePL(M16,'Utility Functions'!$W$3:$W$6,'Utility Functions'!$X$3:$X$6)","v":6.0000000000000012E-2},{"$f":"valueE(N16,'Utility Functions'!$Z$3,'Utility Functions'!$Z$4,'Utility Functions'!$Z$5,'Utility Functions'!$Z$6)","v":0.125},{"$f":"valuePL(O16,'Utility Functions'!$AA$3:$AA$5,'Utility Functions'!$AB$3:$AB$5)","v":1},{"$f":"valuePL(P16,'Utility Functions'!$AC$3:$AC$7,'Utility Functions'!$AD$3:$AD$7)","v":0.5},{"$f":"valuePL(Q16,'Utility Functions'!$AE$3:$AE$6,'Utility Functions'!$AF$3:$AF$6)","v":0},{"$f":"valuePL(R16,'Utility Functions'!$AG$3:$AG$6,'Utility Functions'!$AH$3:$AH$6)","v":0.8},{"$f":"valuePL(S16,'Utility Functions'!$AI$3:$AI$6,'Utility Functions'!$AJ$3:$AJ$6)","v":1},{"$f":"valuePL(T16,'Utility Functions'!$AK$3:$AK$8,'Utility Functions'!$AL$3:$AL$8)","v":0.6},{"$f":"valuePL(U16,'Utility Functions'!$AM$3:$AM$5,'Utility Functions'!$AN$3:$AN$5)","v":1},{"$f":"valuePL(V16,'Utility Functions'!$AO$3:$AO$5,'Utility Functions'!$AP$3:$AP$5)","v":0},{"$f":"valuePL(W16,'Utility Functions'!$AQ$3:$AQ$6,'Utility Functions'!$AR$3:$AR$6)","v":1},{"$f":"valuePL(X16,'Utility Functions'!$AS$3:$AS$6,'Utility Functions'!$AT$3:$AT$6)","v":0.2},{"$f":"valuePL(Y16,'Utility Functions'!$AU$3:$AU$6,'Utility Functions'!$AV$3:$AV$6)","v":0.2},{"$f":"valuePL(Z16,'Utility Functions'!$AW$3:$AW$5,'Utility Functions'!$AX$3:$AX$5)","v":1},{"$f":"valuePL(AA16,'Utility Functions'!$AY$3:$AY$6,'Utility Functions'!$AZ$3:$AZ$6)","v":1},{"$f":"valuePL(AB16,'Utility Functions'!$BA$3:$BA$5,'Utility Functions'!$BB$3:$BB$5)","v":1},{"$f":"valuePL(AC16,'Utility Functions'!$BC$3:$BC$5,'Utility Functions'!$BD$3:$BD$5)","v":0.25},15.150477261414375,null,15.15047726141438,4.2034772614143794,1.272,1.125,3.9,4.6500000000000004]
[16,{"$f":"valueE(B17,'Utility Functions'!$B$3,'Utility Functions'!$B$4,'Utility Functions'!$B$5,'Utility Functions'!$B$6)","v":0},{"$f":"valueE(C17,'Utility Functions'!$D$3,'Utility Functions'!$D$4,'Utility Functions'!$D$5,'Utility Functions'!$D$6)","v":0},{"$f":"valuePL(D17,'Utility Functions'!$E$3:$E$5,'Utility Functions'!$F$3:$F$5)","v":0},{"$f":"valuePL(E17,'Utility Functions'!$G$3:$G$5,'Utility Functions'!$H$3:$H$5)","v":0},{"$f":"valuePL(F17,'Utility Functions'!$I$3:$I$4,'Utility Functions'!$J$3:$J$5)","v":0},{"$f":"valueE(G17,'Utility Functions'!$L$3,'Utility Functions'!$L$4,'Utility Functions'!$L$5,'Utility Functions'!$L$6)","v":0},{"$f":"valueE(H17,'Utility Functions'!$N$3,'Utility Functions'!$N$4,'Utility Functions'!$N$5,'Utility Functions'!$N$6)","v":0},{"$f":"valuePL(I17,'Utility Functions'!$O$3:$O$6,'Utility Functions'!$P$3:$P$6)","v":1},{"$f":"valuePL(J17,'Utility Functions'!$Q$3:$Q$6,'Utility Functions'!$R$3:$R$6)","v":0.91818181818181821},{"$f":"valuePL(K17,'Utility Functions'!$S$3:$S$7,'Utility Functions'!$T$3:$T$7)","v":1},{"$f":"valueE(L17,'Utility Functions'!$V$3,'Utility Functions'!$V$4,'Utility Functions'!$V$5,'Utility Functions'!$V$6)","v":0.83333333333333337},{"$f":"valuePL(M17,'Utility Functions'!$W$3:$W$6,'Utility Functions'!$X$3:$X$6)","v":0.91818181818181821},{"$f":"valueE(N17,'Utility Functions'!$Z$3,'Utility Functions'!$Z$4,'Utility Functions'!$Z$5,'Utility Functions'!$Z$6)","v":0},{"$f":"valuePL(O17,'Utility Functions'!$AA$3:$AA$5,'Utility Functions'!$AB$3:$AB$5)","v":0},{"$f":"valuePL(P17,'Utility Functions'!$AC$3:$AC$7,'Utility Functions'!$AD$3:$AD$7)","v":0.75},{"$f":"valuePL(Q17,'Utility Functions'!$AE$3:$AE$6,'Utility Functions'!$AF$3:$AF$6)","v":0},{"$f":"valuePL(R17,'Utility Functions'!$AG$3:$AG$6,'Utility Functions'!$AH$3:$AH$6)","v":1},{"$f":"valuePL(S17,'Utility Functions'!$AI$3:$AI$6,'Utility Functions'!$AJ$3:$AJ$6)","v":1},{"$f":"valuePL(T17,'Utility Functions'!$AK$3:$AK$8,'Utility Functions'!$AL$3:$AL$8)","v":1},{"$f":"valuePL(U17,'Utility Functions'!$AM$3:$AM$5,'Utility Functions'!$AN$3:$AN$5)","v":0},{"$f":"valuePL(V17,'Utility Functions'!$AO$3:$AO$5,'Utility Functions'!$AP$3:$AP$5)","v":1},{"$f":"valuePL(W17,'Utility Functions'!$AQ$3:$AQ$6,'Utility Functions'!$AR$3:$AR$6)","v":0.75},{"$f":"valuePL(X17,'Utility Functions'!$AS$3:$AS$6,'Utility Functions'!$AT$3:$AT$6)","v":0.75},{"$f":"valuePL(Y17,'Utility Functions'!$AU$3:$AU$6,'Utility Functions'!$AV$3:$AV$6)","v":0.2},{"$f":"valuePL(Z17,'Utility Functions'!$AW$3:$AW$5,'Utility Functions'!$AX$3:$AX$5)","v":1},{"$f":"valuePL(AA17,'Utility Functions'!$AY$3:$AY$6,'Utility Functions'!$AZ$3:$AZ$6)","v":1},{"$f":"valuePL(AB17,'Utility Functions'!$BA$3:$BA$5,'Utility Functions'!$BB$3:$BB$5)","v":1},{"$f":"valuePL(AC17,'Utility Functions'!$BC$3:$BC$5,'Utility Functions'!$BD$3:$BD$5)","v":1},15.119696969696969,null,15.119696969696971,0,4.6696969696969699,0,3.75,6.7]
[17,{"$f":"valueE(B18,'Utility Functions'!$B$3,'Utility Functions'!$B$4,'Utility Functions'!$B$5,'Utility Functions'!$B$6)","v":0.32968045347775865},{"$f":"valueE(C18,'Utility Functions'!$D$3,'Utility Functions'!$D$4,'Utility Functions'!$D$5,'Utility Functions'!$D$6)","v":0.78989979019422951},{"$f":"valuePL(D18,'Utility Functions'!$E$3:$E$5,'Utility Functions'!$F$3:$F$5)","v":1},{"$f":"valuePL(E18,'Utility Functions'!$G$3:$G$5,'Utility Functions'!$H$3:$H$5)","v":0.5},{"$f":"valuePL(F18,'Utility Functions'!$I$3:$I$4,'Utility Functions'!$J$3:$J$5)","v":1},{"$f":"valueE(G18,'Utility Functions'!$L$3,'Utility Functions'!$L$4,'Utility Functions'!$L$5,'Utility Functions'!$L$6)","v":0.31182795698924731},{"$f":"valueE(H18,'Utility Functions'!$N$3,'Utility Functions'!$N$4,'Utility Functions'!$N$5,'Utility Functions'!$N$6)","v":0.27514231499051234},{"$f":"valuePL(I18,'Utility Functions'!$O$3:$O$6,'Utility Functions'!$P$3:$P$6)","v":0},{"$f":"valuePL(J18,'Utility Functions'!$Q$3:$Q$6,'Utility Functions'!$R$3:$R$6)","v":0},{"$f":"valuePL(K18,'Utility Functions'!$S$3:$S$7,'Utility Functions'!$T$3:$T$7)","v":0},{"$f":"valueE(L18,'Utility Functions'!$V$3,'Utility Functions'!$V$4,'Utility Functions'!$V$5,'Utility Functions'!$V$6)","v":1},{"$f":"valuePL(M18,'Utility Functions'!$W$3:$W$6,'Utility Functions'!$X$3:$X$6)","v":6.0000000000000012E-2},{"$f":"valueE(N18,'Utility Functions'!$Z$3,'Utility Functions'!$Z$4,'Utility Functions'!$Z$5,'Utility Functions'!$Z$6)","v":0},{"$f":"valuePL(O18,'Utility Functions'!$AA$3:$AA$5,'Utility Functions'!$AB$3:$AB$5)","v":0},{"$f":"valuePL(P18,'Utility Functions'!$AC$3:$AC$7,'Utility Functions'!$AD$3:$AD$7)","v":0},{"$f":"valuePL(Q18,'Utility Functions'!$AE$3:$AE$6,'Utility Functions'!$AF$3:$AF$6)","v":0},{"$f":"valuePL(R18,'Utility Functions'!$AG$3:$AG$6,'Utility Functions'!$AH$3:$AH$6)","v":1},{"$f":"valuePL(S18,'Utility Functions'!$AI$3:$AI$6,'Utility Functions'!$AJ$3:$AJ$6)","v":0.66},{"$f":"valuePL(T18,'Utility Functions'!$AK$3:$AK$8,'Utility Functions'!$AL$3:$AL$8)","v":0},{"$f":"valuePL(U18,'Utility Functions'!$AM$3:$AM$5,'Utility Functions'!$AN$3:$AN$5)","v":0},{"$f":"valuePL(V18,'Utility Functions'!$AO$3:$AO$5,'Utility Functions'!$AP$3:$AP$5)","v":1},{"$f":"valuePL(W18,'Utility Functions'!$AQ$3:$AQ$6,'Utility Functions'!$AR$3:$AR$6)","v":1},{"$f":"valuePL(X18,'Utility Functions'!$AS$3:$AS$6,'Utility Functions'!$AT$3:$AT$6)","v":0.2},{"$f":"valuePL(Y18,'Utility Functions'!$AU$3:$AU$6,'Utility Functions'!$AV$3:$AV$6)","v":0},{"$f":"valuePL(Z18,'Utility Functions'!$AW$3:$AW$5,'Utility Functions'!$AX$3:$AX$5)","v":0.5},{"$f":"valuePL(AA18,'Utility Functions'!$AY$3:$AY$6,'Utility Functions'!$AZ$3:$AZ$6)","v":0},{"$f":"valuePL(AB18,'Utility Functions'!$BA$3:$BA$5,'Utility Functions'!$BB$3:$BB$5)","v":1},{"$f":"valuePL(AC18,'Utility Functions'!$BC$3:$BC$5,'Utility Functions'!$BD$3:$BD$5)","v":0.25},10.876550515651747,null,10.876550515651747,3.6195802436719884,1.6469702719797596,0,1.6600000000000001,3.95]
[18,{"$f":"valueE(B19,'Utility Functions'!$B$3,'Utility Functions'!$B$4,'Utility Functions'!$B$5,'Utility Functions'!$B$6)","v":0},{"$f":"valueE(C19,'Utility Functions'!$D$3,'Utility Functions'!$D$4,'Utility Functions'!$D$5,'Utility Functions'!$D$6)","v":0},{"$f":"valuePL(D19,'Utility Functions'!$E$3:$E$5,'Utility Functions'!$F$3:$F$5)","v":0},{"$f":"valuePL(E19,'Utility Functions'!$G$3:$G$5,'Utility Functions'!$H$3:$H$5)","v":0},{"$f":"valuePL(F19,'Utility Functions'!$I$3:$I$4,'Utility Functions'!$J$3:$J$5)","v":0},{"$f":"valueE(G19,'Utility Functions'!$L$3,'Utility Functions'!$L$4,'Utility Functions'!$L$5,'Utility Functions'!$L$6)","v":0},{"$f":"valueE(H19,'Utility Functions'!$N$3,'Utility Functions'!$N$4,'Utility Functions'!$N$5,'Utility Functions'!$N$6)","v":2.8462998102466792E-2},{"$f":"valuePL(I19,'Utility Functions'!$O$3:$O$6,'Utility Functions'!$P$3:$P$6)","v":0},{"$f":"valuePL(J19,'Utility Functions'!$Q$3:$Q$6,'Utility Functions'!$R$3:$R$6)","v":0},{"$f":"valuePL(K19,'Utility Functions'!$S$3:$S$7,'Utility Functions'!$T$3:$T$7)","v":0},{"$f":"valueE(L19,'Utility Functions'!$V$3,'Utility Functions'!$V$4,'Utility Functions'!$V$5,'Utility Functions'!$V$6)","v":0},{"$f":"valuePL(M19,'Utility Functions'!$W$3:$W$6,'Utility Functions'!$X$3:$X$6)","v":0},{"$f":"valueE(N19,'Utility Functions'!$Z$3,'Utility Functions'!$Z$4,'Utility Functions'!$Z$5,'Utility Functions'!$Z$6)","v":1},{"$f":"valuePL(O19,'Utility Functions'!$AA$3:$AA$5,'Utility Functions'!$AB$3:$AB$5)","v":0.25},{"$f":"valuePL(P19,'Utility Functions'!$AC$3:$AC$7,'Utility Functions'!$AD$3:$AD$7)","v":0.25},{"$f":"valuePL(Q19,'Utility Functions'!$AE$3:$AE$6,'Utility Functions'!$AF$3:$AF$6)","v":1},{"$f":"valuePL(R19,'Utility Functions'!$AG$3:$AG$6,'Utility Functions'!$AH$3:$AH$6)","v":1},{"$f":"valuePL(S19,'Utility Functions'!$AI$3:$AI$6,'Utility Functions'!$AJ$3:$AJ$6)","v":1},{"$f":"valuePL(T19,'Utility Functions'!$AK$3:$AK$8,'Utility Functions'!$AL$3:$AL$8)","v":1},{"$f":"valuePL(U19,'Utility Functions'!$AM$3:$AM$5,'Utility Functions'!$AN$3:$AN$5)","v":0.25},{"$f":"valuePL(V19,'Utility Functions'!$AO$3:$AO$5,'Utility Functions'!$AP$3:$AP$5)","v":1},{"$f":"valuePL(W19,'Utility Functions'!$AQ$3:$AQ$6,'Utility Functions'!$AR$3:$AR$6)","v":0.75},{"$f":"valuePL(X19,'Utility Functions'!$AS$3:$AS$6,'Utility Functions'!$AT$3:$AT$6)","v":0.2},{"$f":"valuePL(Y19,'Utility Functions'!$AU$3:$AU$6,'Utility Functions'!$AV$3:$AV$6)","v":0.8},{"$f":"valuePL(Z19,'Utility Functions'!$AW$3:$AW$5,'Utility Functions'!$AX$3:$AX$5)","v":0.5},{"$f":"valuePL(AA19,'Utility Functions'!$AY$3:$AY$6,'Utility Functions'!$AZ$3:$AZ$6)","v":0.89999999999999991},{"$f":"valuePL(AB19,'Utility Functions'!$BA$3:$BA$5,'Utility Functions'!$BB$3:$BB$5)","v":0.25},{"$f":"valuePL(AC19,'Utility Functions'!$BC$3:$BC$5,'Utility Functions'!$BD$3:$BD$5)","v":0},10.178462998102468,null,10.178462998102468,0,2.8462998102466792E-2,1.25,4.5,4.4000000000000004]
[19,{"$f":"valueE(B20,'Utility Functions'!$B$3,'Utility Functions'!$B$4,'Utility Functions'!$B$5,'Utility Functions'!$B$6)","v":0.79810469124896843},{"$f":"valueE(C20,'Utility Functions'!$D$3,'Utility Functions'!$D$4,'Utility Functions'!$D$5,'Utility Functions'!$D$6)","v":0.26839655623815994},{"$f":"valuePL(D20,'Utility Functions'!$E$3:$E$5,'Utility Functions'!$F$3:$F$5)","v":0.5},{"$f":"valuePL(E20,'Utility Functions'!$G$3:$G$5,'Utility Functions'!$H$3:$H$5)","v":1},{"$f":"valuePL(F20,'Utility Functions'!$I$3:$I$4,'Utility Functions'!$J$3:$J$5)","v":0},{"$f":"valueE(G20,'Utility Functions'!$L$3,'Utility Functions'!$L$4,'Utility Functions'!$L$5,'Utility Functions'!$L$6)","v":0},{"$f":"valueE(H20,'Utility Functions'!$N$3,'Utility Functions'!$N$4,'Utility Functions'!$N$5,'Utility Functions'!$N$6)","v":0},{"$f":"valuePL(I20,'Utility Functions'!$O$3:$O$6,'Utility Functions'!$P$3:$P$6)","v":0},{"$f":"valuePL(J20,'Utility Functions'!$Q$3:$Q$6,'Utility Functions'!$R$3:$R$6)","v":0},{"$f":"valuePL(K20,'Utility Functions'!$S$3:$S$7,'Utility Functions'!$T$3:$T$7)","v":0},{"$f":"valueE(L20,'Utility Functions'!$V$3,'Utility Functions'!$V$4,'Utility Functions'!$V$5,'Utility Functions'!$V$6)","v":0},{"$f":"valuePL(M20,'Utility Functions'!$W$3:$W$6,'Utility Functions'!$X$3:$X$6)","v":0},{"$f":"valueE(N20,'Utility Functions'!$Z$3,'Utility Functions'!$Z$4,'Utility Functions'!$Z$5,'Utility Functions'!$Z$6)","v":1},{"$f":"valuePL(O20,'Utility Functions'!$AA$3:$AA$5,'Utility Functions'!$AB$3:$AB$5)","v":1},{"$f":"valuePL(P20,'Utility Functions'!$AC$3:$AC$7,'Utility Functions'!$AD$3:$AD$7)","v":0},{"$f":"valuePL(Q20,'Utility Functions'!$AE$3:$AE$6,'Utility Functions'!$AF$3:$AF$6)","v":0},{"$f":"valuePL(R20,'Utility Functions'!$AG$3:$AG$6,'Utility Functions'!$AH$3:$AH$6)","v":0.8},{"$f":"valuePL(S20,'Utility Functions'!$AI$3:$AI$6,'Utility Functions'!$AJ$3:$AJ$6)","v":1},{"$f":"valuePL(T20,'Utility Functions'!$AK$3:$AK$8,'Utility Functions'!$AL$3:$AL$8)","v":0},{"$f":"valuePL(U20,'Utility Functions'!$AM$3:$AM$5,'Utility Functions'!$AN$3:$AN$5)","v":0},{"$f":"valuePL(V20,'Utility Functions'!$AO$3:$AO$5,'Utility Functions'!$AP$3:$AP$5)","v":0.5},{"$f":"valuePL(W20,'Utility Functions'!$AQ$3:$AQ$6,'Utility Functions'!$AR$3:$AR$6)","v":0.2},{"$f":"valuePL(X20,'Utility Functions'!$AS$3:$AS$6,'Utility Functions'!$AT$3:$AT$6)","v":1},{"$f":"valuePL(Y20,'Utility Functions'!$AU$3:$AU$6,'Utility Functions'!$AV$3:$AV$6)","v":0.8},{"$f":"valuePL(Z20,'Utility Functions'!$AW$3:$AW$5,'Utility Functions'!$AX$3:$AX$5)","v":0},{"$f":"valuePL(AA20,'Utility Functions'!$AY$3:$AY$6,'Utility Functions'!$AZ$3:$AZ$6)","v":0.2},{"$f":"valuePL(AB20,'Utility Functions'!$BA$3:$BA$5,'Utility Functions'!$BB$3:$BB$5)","v":0},{"$f":"valuePL(AC20,'Utility Functions'!$BC$3:$BC$5,'Utility Functions'!$BD$3:$BD$5)","v":0.25},9.3165012474871283,null,9.3165012474871283,2.5665012474871283,0,2,1.8,2.95]
[20,{"$f":"valueE(B21,'Utility Functions'!$B$3,'Utility Functions'!$B$4,'Utility Functions'!$B$5,'Utility Functions'!$B$6)","v":0.83470237647280454},{"$f":"valueE(C21,'Utility Functions'!$D$3,'Utility Functions'!$D$4,'Utility Functions'!$D$5,'Utility Functions'!$D$6)","v":0.78989979019422951},{"$f":"valuePL(D21,'Utility Functions'!$E$3:$E$5,'Utility Functions'!$F$3:$F$5)","v":0.5},{"$f":"valuePL(E21,'Utility Functions'!$G$3:$G$5,'Utility Functions'!$H$3:$H$5)","v":1},{"$f":"valuePL(F21,'Utility Functions'!$I$3:$I$4,'Utility Functions'!$J$3:$J$5)","v":0},{"$f":"valueE(G21,'Utility Functions'!$L$3,'Utility Functions'!$L$4,'Utility Functions'!$L$5,'Utility Functions'!$L$6)","v":0},{"$f":"valueE(H21,'Utility Functions'!$N$3,'Utility Functions'!$N$4,'Utility Functions'!$N$5,'Utility Functions'!$N$6)","v":0.41271347248576851},{"$f":"valuePL(I21,'Utility Functions'!$O$3:$O$6,'Utility Functions'!$P$3:$P$6)","v":0.93454545454545446},{"$f":"valuePL(J21,'Utility Functions'!$Q$3:$Q$6,'Utility Functions'!$R$3:$R$6)","v":0.50909090909090915},{"$f":"valuePL(K21,'Utility Functions'!$S$3:$S$7,'Utility Functions'!$T$3:$T$7)","v":0.93454545454545446},{"$f":"valueE(L21,'Utility Functions'!$V$3,'Utility Functions'!$V$4,'Utility Functions'!$V$5,'Utility Functions'!$V$6)","v":0.66666666666666663},{"$f":"valuePL(M21,'Utility Functions'!$W$3:$W$6,'Utility Functions'!$X$3:$X$6)","v":0.50909090909090915},{"$f":"valueE(N21,'Utility Functions'!$Z$3,'Utility Functions'!$Z$4,'Utility Functions'!$Z$5,'Utility Functions'!$Z$6)","v":1},{"$f":"valuePL(O21,'Utility Functions'!$AA$3:$AA$5,'Utility Functions'!$AB$3:$AB$5)","v":1},{"$f":"valuePL(P21,'Utility Functions'!$AC$3:$AC$7,'Utility Functions'!$AD$3:$AD$7)","v":0.25},{"$f":"valuePL(Q21,'Utility Functions'!$AE$3:$AE$6,'Utility Functions'!$AF$3:$AF$6)","v":0},{"$f":"valuePL(R21,'Utility Functions'!$AG$3:$AG$6,'Utility Functions'!$AH$3:$AH$6)","v":1},{"$f":"valuePL(S21,'Utility Functions'!$AI$3:$AI$6,'Utility Functions'!$AJ$3:$AJ$6)","v":1},{"$f":"valuePL(T21,'Utility Functions'!$AK$3:$AK$8,'Utility Functions'!$AL$3:$AL$8)","v":0.6},{"$f":"valuePL(U21,'Utility Functions'!$AM$3:$AM$5,'Utility Functions'!$AN$3:$AN$5)","v":1},{"$f":"valuePL(V21,'Utility Functions'!$AO$3:$AO$5,'Utility Functions'!$AP$3:$AP$5)","v":0.5},{"$f":"valuePL(W21,'Utility Functions'!$AQ$3:$AQ$6,'Utility Functions'!$AR$3:$AR$6)","v":0},{"$f":"valuePL(X21,'Utility Functions'!$AS$3:$AS$6,'Utility Functions'!$AT$3:$AT$6)","v":0},{"$f":"valuePL(Y21,'Utility Functions'!$AU$3:$AU$6,'Utility Functions'!$AV$3:$AV$6)","v":0.2},{"$f":"valuePL(Z21,'Utility Functions'!$AW$3:$AW$5,'Utility Functions'!$AX$3:$AX$5)","v":1},{"$f":"valuePL(AA21,'Utility Functions'!$AY$3:$AY$6,'Utility Functions'!$AZ$3:$AZ$6)","v":0.2},{"$f":"valuePL(AB21,'Utility Functions'!$BA$3:$BA$5,'Utility Functions'!$BB$3:$BB$5)","v":0},{"$f":"valuePL(AC21,'Utility Functions'!$BC$3:$BC$5,'Utility Functions'!$BD$3:$BD$5)","v":0.25},15.091255033092194,null,15.091255033092196,3.1246021666670343,3.9666528664251626,2,3.85,2.15]
[21,{"$f":"valueE(B22,'Utility Functions'!$B$3,'Utility Functions'!$B$4,'Utility Functions'!$B$5,'Utility Functions'!$B$6)","v":0},{"$f":"valueE(C22,'Utility Functions'!$D$3,'Utility Functions'!$D$4,'Utility Functions'!$D$5,'Utility Functions'!$D$6)","v":0},{"$f":"valuePL(D22,'Utility Functions'!$E$3:$E$5,'Utility Functions'!$F$3:$F$5)","v":0},{"$f":"valuePL(E22,'Utility Functions'!$G$3:$G$5,'Utility Functions'!$H$3:$H$5)","v":0},{"$f":"valuePL(F22,'Utility Functions'!$I$3:$I$4,'Utility Functions'!$J$3:$J$5)","v":0},{"$f":"valueE(G22,'Utility Functions'!$L$3,'Utility Functions'!$L$4,'Utility Functions'!$L$5,'Utility Functions'!$L$6)","v":0},{"$f":"valueE(H22,'Utility Functions'!$N$3,'Utility Functions'!$N$4,'Utility Functions'!$N$5,'Utility Functions'!$N$6)","v":0},{"$f":"valuePL(I22,'Utility Functions'!$O$3:$O$6,'Utility Functions'!$P$3:$P$6)","v":0},{"$f":"valuePL(J22,'Utility Functions'!$Q$3:$Q$6,'Utility Functions'!$R$3:$R$6)","v":0},{"$f":"valuePL(K22,'Utility Functions'!$S$3:$S$7,'Utility Functions'!$T$3:$T$7)","v":0},{"$f":"valueE(L22,'Utility Functions'!$V$3,'Utility Functions'!$V$4,'Utility Functions'!$V$5,'Utility Functions'!$V$6)","v":0},{"$f":"valuePL(M22,'Utility Functions'!$W$3:$W$6,'Utility Functions'!$X$3:$X$6)","v":0},{"$f":"valueE(N22,'Utility Functions'!$Z$3,'Utility Functions'!$Z$4,'Utility Functions'!$Z$5,'Utility Functions'!$Z$6)","v":1},{"$f":"valuePL(O22,'Utility Functions'!$AA$3:$AA$5,'Utility Functions'!$AB$3:$AB$5)","v":1},{"$f":"valuePL(P22,'Utility Functions'!$AC$3:$AC$7,'Utility Functions'!$AD$3:$AD$7)","v":0},{"$f":"valuePL(Q22,'Utility Functions'!$AE$3:$AE$6,'Utility Functions'!$AF$3:$AF$6)","v":0.1},{"$f":"valuePL(R22,'Utility Functions'!$AG$3:$AG$6,'Utility Functions'!$AH$3:$AH$6)","v":1},{"$f":"valuePL(S22,'Utility Functions'!$AI$3:$AI$6,'Utility Functions'!$AJ$3:$AJ$6)","v":1},{"$f":"valuePL(T22,'Utility Functions'!$AK$3:$AK$8,'Utility Functions'!$AL$3:$AL$8)","v":1},{"$f":"valuePL(U22,'Utility Functions'!$AM$3:$AM$5,'Utility Functions'!$AN$3:$AN$5)","v":0.25},{"$f":"valuePL(V22,'Utility Functions'!$AO$3:$AO$5,'Utility Functions'!$AP$3:$AP$5)","v":0},{"$f":"valuePL(W22,'Utility Functions'!$AQ$3:$AQ$6,'Utility Functions'!$AR$3:$AR$6)","v":0.75},{"$f":"valuePL(X22,'Utility Functions'!$AS$3:$AS$6,'Utility Functions'!$AT$3:$AT$6)","v":1},{"$f":"valuePL(Y22,'Utility Functions'!$AU$3:$AU$6,'Utility Functions'!$AV$3:$AV$6)","v":0.2},{"$f":"valuePL(Z22,'Utility Functions'!$AW$3:$AW$5,'Utility Functions'!$AX$3:$AX$5)","v":0},{"$f":"valuePL(AA22,'Utility Functions'!$AY$3:$AY$6,'Utility Functions'!$AZ$3:$AZ$6)","v":1},{"$f":"valuePL(AB22,'Utility Functions'!$BA$3:$BA$5,'Utility Functions'!$BB$3:$BB$5)","v":0.25},{"$f":"valuePL(AC22,'Utility Functions'!$BC$3:$BC$5,'Utility Functions'!$BD$3:$BD$5)","v":1},9.5500000000000007,null,9.5500000000000007,0,0,2,3.35,4.2]
[22,{"$f":"valueE(B23,'Utility Functions'!$B$3,'Utility Functions'!$B$4,'Utility Functions'!$B$5,'Utility Functions'!$B$6)","v":0},{"$f":"valueE(C23,'Utility Functions'!$D$3,'Utility Functions'!$D$4,'Utility Functions'!$D$5,'Utility Functions'!$D$6)","v":0},{"$f":"valuePL(D23,'Utility Functions'!$E$3:$E$5,'Utility Functions'!$F$3:$F$5)","v":0},{"$f":"valuePL(E23,'Utility Functions'!$G$3:$G$5,'Utility Functions'!$H$3:$H$5)","v":0},{"$f":"valuePL(F23,'Utility Functions'!$I$3:$I$4,'Utility Functions'!$J$3:$J$5)","v":0},{"$f":"valueE(G23,'Utility Functions'!$L$3,'Utility Functions'!$L$4,'Utility Functions'!$L$5,'Utility Functions'!$L$6)","v":8.6021505376344093E-2},{"$f":"valueE(H23,'Utility Functions'!$N$3,'Utility Functions'!$N$4,'Utility Functions'!$N$5,'Utility Functions'!$N$6)","v":6.0721062618595827E-2},{"$f":"valuePL(I23,'Utility Functions'!$O$3:$O$6,'Utility Functions'!$P$3:$P$6)","v":0},{"$f":"valuePL(J23,'Utility Functions'!$Q$3:$Q$6,'Utility Functions'!$R$3:$R$6)","v":0},{"$f":"valuePL(K23,'Utility Functions'!$S$3:$S$7,'Utility Functions'!$T$3:$T$7)","v":0},{"$f":"valueE(L23,'Utility Functions'!$V$3,'Utility Functions'!$V$4,'Utility Functions'!$V$5,'Utility Functions'!$V$6)","v":0},{"$f":"valuePL(M23,'Utility Functions'!$W$3:$W$6,'Utility Functions'!$X$3:$X$6)","v":0},{"$f":"valueE(N23,'Utility Functions'!$Z$3,'Utility Functions'!$Z$4,'Utility Functions'!$Z$5,'Utility Functions'!$Z$6)","v":0.125},{"$f":"valuePL(O23,'Utility Functions'!$AA$3:$AA$5,'Utility Functions'!$AB$3:$AB$5)","v":1},{"$f":"valuePL(P23,'Utility Functions'!$AC$3:$AC$7,'Utility Functions'!$AD$3:$AD$7)","v":1},{"$f":"valuePL(Q23,'Utility Functions'!$AE$3:$AE$6,'Utility Functions'!$AF$3:$AF$6)","v":0.5},{"$f":"valuePL(R23,'Utility Functions'!$AG$3:$AG$6,'Utility Functions'!$AH$3:$AH$6)","v":0.8},{"$f":"valuePL(S23,'Utility Functions'!$AI$3:$AI$6,'Utility Functions'!$AJ$3:$AJ$6)","v":1},{"$f":"valuePL(T23,'Utility Functions'!$AK$3:$AK$8,'Utility Functions'!$AL$3:$AL$8)","v":1},{"$f":"valuePL(U23,'Utility Functions'!$AM$3:$AM$5,'Utility Functions'!$AN$3:$AN$5)","v":0},{"$f":"valuePL(V23,'Utility Functions'!$AO$3:$AO$5,'Utility Functions'!$AP$3:$AP$5)","v":0.5},{"$f":"valuePL(W23,'Utility Functions'!$AQ$3:$AQ$6,'Utility Functions'!$AR$3:$AR$6)","v":0.75},{"$f":"valuePL(X23,'Utility Functions'!$AS$3:$AS$6,'Utility Functions'!$AT$3:$AT$6)","v":0.2},{"$f":"valuePL(Y23,'Utility Functions'!$AU$3:$AU$6,'Utility Functions'!$AV$3:$AV$6)","v":0},{"$f":"valuePL(Z23,'Utility Functions'!$AW$3:$AW$5,'Utility Functions'!$AX$3:$AX$5)","v":1},{"$f":"valuePL(AA23,'Utility Functions'!$AY$3:$AY$6,'Utility Functions'!$AZ$3:$AZ$6)","v":0.2},{"$f":"valuePL(AB23,'Utility Functions'!$BA$3:$BA$5,'Utility Functions'!$BB$3:$BB$5)","v":1},{"$f":"valuePL(AC23,'Utility Functions'!$BC$3:$BC$5,'Utility Functions'!$BD$3:$BD$5)","v":0.25},9.471742567994939,null,9.4717425679949407,0,0.14674256799493993,1.125,4.3,3.9000000000000004]
[23,{"$f":"valueE(B24,'Utility Functions'!$B$3,'Utility Functions'!$B$4,'Utility Functions'!$B$5,'Utility Functions'!$B$6)","v":0.83470237647280454},{"$f":"valueE(C24,'Utility Functions'!$D$3,'Utility Functions'!$D$4,'Utility Functions'!$D$5,'Utility Functions'!$D$6)","v":0.84744836833951609},{"$f":"valuePL(D24,'Utility Functions'!$E$3:$E$5,'Utility Functions'!$F$3:$F$5)","v":1},{"$f":"valuePL(E24,'Utility Functions'!$G$3:$G$5,'Utility Functions'!$H$3:$H$5)","v":0},{"$f":"valuePL(F24,'Utility Functions'!$I$3:$I$4,'Utility Functions'!$J$3:$J$5)","v":0},{"$f":"valueE(G24,'Utility Functions'!$L$3,'Utility Functions'!$L$4,'Utility Functions'!$L$5,'Utility Functions'!$L$6)","v":0},{"$f":"valueE(H24,'Utility Functions'!$N$3,'Utility Functions'!$N$4,'Utility Functions'!$N$5,'Utility Functions'!$N$6)","v":0},{"$f":"valuePL(I24,'Utility Functions'!$O$3:$O$6,'Utility Functions'!$P$3:$P$6)","v":0},{"$f":"valuePL(J24,'Utility Functions'!$Q$3:$Q$6,'Utility Functions'!$R$3:$R$6)","v":0},{"$f":"valuePL(K24,'Utility Functions'!$S$3:$S$7,'Utility Functions'!$T$3:$T$7)","v":0},{"$f":"valueE(L24,'Utility Functions'!$V$3,'Utility Functions'!$V$4,'Utility Functions'!$V$5,'Utility Functions'!$V$6)","v":0},{"$f":"valuePL(M24,'Utility Functions'!$W$3:$W$6,'Utility Functions'!$X$3:$X$6)","v":0},{"$f":"valueE(N24,'Utility Functions'!$Z$3,'Utility Functions'!$Z$4,'Utility Functions'!$Z$5,'Utility Functions'!$Z$6)","v":0},{"$f":"valuePL(O24,'Utility Functions'!$AA$3:$AA$5,'Utility Functions'!$AB$3:$AB$5)","v":0},{"$f":"valuePL(P24,'Utility Functions'!$AC$3:$AC$7,'Utility Functions'!$AD$3:$AD$7)","v":0.75},{"$f":"valuePL(Q24,'Utility Functions'!$AE$3:$AE$6,'Utility Functions'!$AF$3:$AF$6)","v":0},{"$f":"valuePL(R24,'Utility Functions'!$AG$3:$AG$6,'Utility Functions'!$AH$3:$AH$6)","v":1},{"$f":"valuePL(S24,'Utility Functions'!$AI$3:$AI$6,'Utility Functions'!$AJ$3:$AJ$6)","v":1},{"$f":"valuePL(T24,'Utility Functions'!$AK$3:$AK$8,'Utility Functions'!$AL$3:$AL$8)","v":1},{"$f":"valuePL(U24,'Utility Functions'!$AM$3:$AM$5,'Utility Functions'!$AN$3:$AN$5)","v":0},{"$f":"valuePL(V24,'Utility Functions'!$AO$3:$AO$5,'Utility Functions'!$AP$3:$AP$5)","v":1},{"$f":"valuePL(W24,'Utility Functions'!$AQ$3:$AQ$6,'Utility Functions'!$AR$3:$AR$6)","v":0.2},{"$f":"valuePL(X24,'Utility Functions'!$AS$3:$AS$6,'Utility Functions'!$AT$3:$AT$6)","v":0.75},{"$f":"valuePL(Y24,'Utility Functions'!$AU$3:$AU$6,'Utility Functions'!$AV$3:$AV$6)","v":0.2},{"$f":"valuePL(Z24,'Utility Functions'!$AW$3:$AW$5,'Utility Functions'!$AX$3:$AX$5)","v":0.5},{"$f":"valuePL(AA24,'Utility Functions'!$AY$3:$AY$6,'Utility Functions'!$AZ$3:$AZ$6)","v":0.2},{"$f":"valuePL(AB24,'Utility Functions'!$BA$3:$BA$5,'Utility Functions'!$BB$3:$BB$5)","v":0},{"$f":"valuePL(AC24,'Utility Functions'!$BC$3:$BC$5,'Utility Functions'!$BD$3:$BD$5)","v":0.25},9.5321507448123199,null,9.5321507448123199,2.6821507448123207,0,0,3.75,3.1]
[24,{"$f":"valueE(B25,'Utility Functions'!$B$3,'Utility Functions'!$B$4,'Utility Functions'!$B$5,'Utility Functions'!$B$6)","v":0.63212151658375171},{"$f":"valueE(C25,'Utility Functions'!$D$3,'Utility Functions'!$D$4,'Utility Functions'!$D$5,'Utility Functions'!$D$6)","v":0.46475967153745396},{"$f":"valuePL(D25,'Utility Functions'!$E$3:$E$5,'Utility Functions'!$F$3:$F$5)","v":1},{"$f":"valuePL(E25,'Utility Functions'!$G$3:$G$5,'Utility Functions'!$H$3:$H$5)","v":0},{"$f":"valuePL(F25,'Utility Functions'!$I$3:$I$4,'Utility Functions'!$J$3:$J$5)","v":0},{"$f":"valueE(G25,'Utility Functions'!$L$3,'Utility Functions'!$L$4,'Utility Functions'!$L$5,'Utility Functions'!$L$6)","v":0},{"$f":"valueE(H25,'Utility Functions'!$N$3,'Utility Functions'!$N$4,'Utility Functions'!$N$5,'Utility Functions'!$N$6)","v":0},{"$f":"valuePL(I25,'Utility Functions'!$O$3:$O$6,'Utility Functions'!$P$3:$P$6)","v":0},{"$f":"valuePL(J25,'Utility Functions'!$Q$3:$Q$6,'Utility Functions'!$R$3:$R$6)","v":0},{"$f":"valuePL(K25,'Utility Functions'!$S$3:$S$7,'Utility Functions'!$T$3:$T$7)","v":0},{"$f":"valueE(L25,'Utility Functions'!$V$3,'Utility Functions'!$V$4,'Utility Functions'!$V$5,'Utility Functions'!$V$6)","v":0},{"$f":"valuePL(M25,'Utility Functions'!$W$3:$W$6,'Utility Functions'!$X$3:$X$6)","v":0},{"$f":"valueE(N25,'Utility Functions'!$Z$3,'Utility Functions'!$Z$4,'Utility Functions'!$Z$5,'Utility Functions'!$Z$6)","v":0},{"$f":"valuePL(O25,'Utility Functions'!$AA$3:$AA$5,'Utility Functions'!$AB$3:$AB$5)","v":0},{"$f":"valuePL(P25,'Utility Functions'!$AC$3:$AC$7,'Utility Functions'!$AD$3:$AD$7)","v":0},{"$f":"valuePL(Q25,'Utility Functions'!$AE$3:$AE$6,'Utility Functions'!$AF$3:$AF$6)","v":0},{"$f":"valuePL(R25,'Utility Functions'!$AG$3:$AG$6,'Utility Functions'!$AH$3:$AH$6)","v":1},{"$f":"valuePL(S25,'Utility Functions'!$AI$3:$AI$6,'Utility Functions'!$AJ$3:$AJ$6)","v":1},{"$f":"valuePL(T25,'Utility Functions'!$AK$3:$AK$8,'Utility Functions'!$AL$3:$AL$8)","v":1},{"$f":"valuePL(U25,'Utility Functions'!$AM$3:$AM$5,'Utility Functions'!$AN$3:$AN$5)","v":0},{"$f":"valuePL(V25,'Utility Functions'!$AO$3:$AO$5,'Utility Functions'!$AP$3:$AP$5)","v":0},{"$f":"valuePL(W25,'Utility Functions'!$AQ$3:$AQ$6,'Utility Functions'!$AR$3:$AR$6)","v":1},{"$f":"valuePL(X25,'Utility Functions'!$AS$3:$AS$6,'Utility Functions'!$AT$3:$AT$6)","v":0.2},{"$f":"valuePL(Y25,'Utility Functions'!$AU$3:$AU$6,'Utility Functions'!$AV$3:$AV$6)","v":1},{"$f":"valuePL(Z25,'Utility Functions'!$AW$3:$AW$5,'Utility Functions'!$AX$3:$AX$5)","v":1},{"$f":"valuePL(AA25,'Utility Functions'!$AY$3:$AY$6,'Utility Functions'!$AZ$3:$AZ$6)","v":0.2},{"$f":"valuePL(AB25,'Utility Functions'!$BA$3:$BA$5,'Utility Functions'!$BB$3:$BB$5)","v":0},{"$f":"valuePL(AC25,'Utility Functions'!$BC$3:$BC$5,'Utility Functions'!$BD$3:$BD$5)","v":1},9.4968811881212041,null,9.4968811881212059,2.0968811881212055,0,0,3,4.4000000000000004]
[25,{"$f":"valueE(B26,'Utility Functions'!$B$3,'Utility Functions'!$B$4,'Utility Functions'!$B$5,'Utility Functions'!$B$6)","v":0.83470237647280454},{"$f":"valueE(C26,'Utility Functions'!$D$3,'Utility Functions'!$D$4,'Utility Functions'!$D$5,'Utility Functions'!$D$6)","v":0.84744836833951609},{"$f":"valuePL(D26,'Utility Functions'!$E$3:$E$5,'Utility Functions'!$F$3:$F$5)","v":1},{"$f":"valuePL(E26,'Utility Functions'!$G$3:$G$5,'Utility Functions'!$H$3:$H$5)","v":0},{"$f":"valuePL(F26,'Utility Functions'!$I$3:$I$4,'Utility Functions'!$J$3:$J$5)","v":0},{"$f":"valueE(G26,'Utility Functions'!$L$3,'Utility Functions'!$L$4,'Utility Functions'!$L$5,'Utility Functions'!$L$6)","v":0.94623655913978499},{"$f":"valueE(H26,'Utility Functions'!$N$3,'Utility Functions'!$N$4,'Utility Functions'!$N$5,'Utility Functions'!$N$6)","v":0.29222011385199242},{"$f":"valuePL(I26,'Utility Functions'!$O$3:$O$6,'Utility Functions'!$P$3:$P$6)","v":0},{"$f":"valuePL(J26,'Utility Functions'!$Q$3:$Q$6,'Utility Functions'!$R$3:$R$6)","v":0},{"$f":"valuePL(K26,'Utility Functions'!$S$3:$S$7,'Utility Functions'!$T$3:$T$7)","v":0},{"$f":"valueE(L26,'Utility Functions'!$V$3,'Utility Functions'!$V$4,'Utility Functions'!$V$5,'Utility Functions'!$V$6)","v":0},{"$f":"valuePL(M26,'Utility Functions'!$W$3:$W$6,'Utility Functions'!$X$3:$X$6)","v":0},{"$f":"valueE(N26,'Utility Functions'!$Z$3,'Utility Functions'!$Z$4,'Utility Functions'!$Z$5,'Utility Functions'!$Z$6)","v":1},{"$f":"valuePL(O26,'Utility Functions'!$AA$3:$AA$5,'Utility Functions'!$AB$3:$AB$5)","v":0.25},{"$f":"valuePL(P26,'Utility Functions'!$AC$3:$AC$7,'Utility Functions'!$AD$3:$AD$7)","v":0.5},{"$f":"valuePL(Q26,'Utility Functions'!$AE$3:$AE$6,'Utility Functions'!$AF$3:$AF$6)","v":0.5},{"$f":"valuePL(R26,'Utility Functions'!$AG$3:$AG$6,'Utility Functions'!$AH$3:$AH$6)","v":1},{"$f":"valuePL(S26,'Utility Functions'!$AI$3:$AI$6,'Utility Functions'!$AJ$3:$AJ$6)","v":1},{"$f":"valuePL(T26,'Utility Functions'!$AK$3:$AK$8,'Utility Functions'!$AL$3:$AL$8)","v":0},{"$f":"valuePL(U26,'Utility Functions'!$AM$3:$AM$5,'Utility Functions'!$AN$3:$AN$5)","v":0},{"$f":"valuePL(V26,'Utility Functions'!$AO$3:$AO$5,'Utility Functions'!$AP$3:$AP$5)","v":1},{"$f":"valuePL(W26,'Utility Functions'!$AQ$3:$AQ$6,'Utility Functions'!$AR$3:$AR$6)","v":0.2},{"$f":"valuePL(X26,'Utility Functions'!$AS$3:$AS$6,'Utility Functions'!$AT$3:$AT$6)","v":1},{"$f":"valuePL(Y26,'Utility Functions'!$AU$3:$AU$6,'Utility Functions'!$AV$3:$AV$6)","v":0.8},{"$f":"valuePL(Z26,'Utility Functions'!$AW$3:$AW$5,'Utility Functions'!$AX$3:$AX$5)","v":0.5},{"$f":"valuePL(AA26,'Utility Functions'!$AY$3:$AY$6,'Utility Functions'!$AZ$3:$AZ$6)","v":0.2},{"$f":"valuePL(AB26,'Utility Functions'!$BA$3:$BA$5,'Utility Functions'!$BB$3:$BB$5)","v":1},{"$f":"valuePL(AC26,'Utility Functions'!$BC$3:$BC$5,'Utility Functions'!$BD$3:$BD$5)","v":1},13.870607417804099,null,13.870607417804099,2.6821507448123207,1.2384566729917774,1.25,3,5.7]
[26,{"$f":"valueE(B27,'Utility Functions'!$B$3,'Utility Functions'!$B$4,'Utility Functions'!$B$5,'Utility Functions'!$B$6)","v":0.96662819462069161},{"$f":"valueE(C27,'Utility Functions'!$D$3,'Utility Functions'!$D$4,'Utility Functions'!$D$5,'Utility Functions'!$D$6)","v":0.84744836833951609},{"$f":"valuePL(D27,'Utility Functions'!$E$3:$E$5,'Utility Functions'!$F$3:$F$5)","v":1},{"$f":"valuePL(E27,'Utility Functions'!$G$3:$G$5,'Utility Functions'!$H$3:$H$5)","v":0.5},{"$f":"valuePL(F27,'Utility Functions'!$I$3:$I$4,'Utility Functions'!$J$3:$J$5)","v":0},{"$f":"valueE(G27,'Utility Functions'!$L$3,'Utility Functions'!$L$4,'Utility Functions'!$L$5,'Utility Functions'!$L$6)","v":0},{"$f":"valueE(H27,'Utility Functions'!$N$3,'Utility Functions'!$N$4,'Utility Functions'!$N$5,'Utility Functions'!$N$6)","v":0},{"$f":"valuePL(I27,'Utility Functions'!$O$3:$O$6,'Utility Functions'!$P$3:$P$6)","v":0},{"$f":"valuePL(J27,'Utility Functions'!$Q$3:$Q$6,'Utility Functions'!$R$3:$R$6)","v":0},{"$f":"valuePL(K27,'Utility Functions'!$S$3:$S$7,'Utility Functions'!$T$3:$T$7)","v":0},{"$f":"valueE(L27,'Utility Functions'!$V$3,'Utility Functions'!$V$4,'Utility Functions'!$V$5,'Utility Functions'!$V$6)","v":0},{"$f":"valuePL(M27,'Utility Functions'!$W$3:$W$6,'Utility Functions'!$X$3:$X$6)","v":0},{"$f":"valueE(N27,'Utility Functions'!$Z$3,'Utility Functions'!$Z$4,'Utility Functions'!$Z$5,'Utility Functions'!$Z$6)","v":0},{"$f":"valuePL(O27,'Utility Functions'!$AA$3:$AA$5,'Utility Functions'!$AB$3:$AB$5)","v":0},{"$f":"valuePL(P27,'Utility Functions'!$AC$3:$AC$7,'Utility Functions'!$AD$3:$AD$7)","v":0.75},{"$f":"valuePL(Q27,'Utility Functions'!$AE$3:$AE$6,'Utility Functions'!$AF$3:$AF$6)","v":0},{"$f":"valuePL(R27,'Utility Functions'!$AG$3:$AG$6,'Utility Functions'!$AH$3:$AH$6)","v":1},{"$f":"valuePL(S27,'Utility Functions'!$AI$3:$AI$6,'Utility Functions'!$AJ$3:$AJ$6)","v":1},{"$f":"valuePL(T27,'Utility Functions'!$AK$3:$AK$8,'Utility Functions'!$AL$3:$AL$8)","v":0.8},{"$f":"valuePL(U27,'Utility Functions'!$AM$3:$AM$5,'Utility Functions'!$AN$3:$AN$5)","v":0},{"$f":"valuePL(V27,'Utility Functions'!$AO$3:$AO$5,'Utility Functions'!$AP$3:$AP$5)","v":1},{"$f":"valuePL(W27,'Utility Functions'!$AQ$3:$AQ$6,'Utility Functions'!$AR$3:$AR$6)","v":0.2},{"$f":"valuePL(X27,'Utility Functions'!$AS$3:$AS$6,'Utility Functions'!$AT$3:$AT$6)","v":0},{"$f":"valuePL(Y27,'Utility Functions'!$AU$3:$AU$6,'Utility Functions'!$AV$3:$AV$6)","v":0.8},{"$f":"valuePL(Z27,'Utility Functions'!$AW$3:$AW$5,'Utility Functions'!$AX$3:$AX$5)","v":0},{"$f":"valuePL(AA27,'Utility Functions'!$AY$3:$AY$6,'Utility Functions'!$AZ$3:$AZ$6)","v":0.2},{"$f":"valuePL(AB27,'Utility Functions'!$BA$3:$BA$5,'Utility Functions'!$BB$3:$BB$5)","v":1},{"$f":"valuePL(AC27,'Utility Functions'!$BC$3:$BC$5,'Utility Functions'!$BD$3:$BD$5)","v":1},11.064076562960208,null,11.064076562960206,3.3140765629602078,0,0,3.55,4.2]
[27,{"$f":"valueE(B28,'Utility Functions'!$B$3,'Utility Functions'!$B$4,'Utility Functions'!$B$5,'Utility Functions'!$B$6)","v":0},{"$f":"valueE(C28,'Utility Functions'!$D$3,'Utility Functions'!$D$4,'Utility Functions'!$D$5,'Utility Functions'!$D$6)","v":0.46475967153745396},{"$f":"valuePL(D28,'Utility Functions'!$E$3:$E$5,'Utility Functions'!$F$3:$F$5)","v":1},{"$f":"valuePL(E28,'Utility Functions'!$G$3:$G$5,'Utility Functions'!$H$3:$H$5)","v":0},{"$f":"valuePL(F28,'Utility Functions'!$I$3:$I$4,'Utility Functions'!$J$3:$J$5)","v":0},{"$f":"valueE(G28,'Utility Functions'!$L$3,'Utility Functions'!$L$4,'Utility Functions'!$L$5,'Utility Functions'!$L$6)","v":0},{"$f":"valueE(H28,'Utility Functions'!$N$3,'Utility Functions'!$N$4,'Utility Functions'!$N$5,'Utility Functions'!$N$6)","v":0},{"$f":"valuePL(I28,'Utility Functions'!$O$3:$O$6,'Utility Functions'!$P$3:$P$6)","v":0},{"$f":"valuePL(J28,'Utility Functions'!$Q$3:$Q$6,'Utility Functions'!$R$3:$R$6)","v":0},{"$f":"valuePL(K28,'Utility Functions'!$S$3:$S$7,'Utility Functions'!$T$3:$T$7)","v":1},{"$f":"valueE(L28,'Utility Functions'!$V$3,'Utility Functions'!$V$4,'Utility Functions'!$V$5,'Utility Functions'!$V$6)","v":0},{"$f":"valuePL(M28,'Utility Functions'!$W$3:$W$6,'Utility Functions'!$X$3:$X$6)","v":0.1},{"$f":"valueE(N28,'Utility Functions'!$Z$3,'Utility Functions'!$Z$4,'Utility Functions'!$Z$5,'Utility Functions'!$Z$6)","v":0},{"$f":"valuePL(O28,'Utility Functions'!$AA$3:$AA$5,'Utility Functions'!$AB$3:$AB$5)","v":0},{"$f":"valuePL(P28,'Utility Functions'!$AC$3:$AC$7,'Utility Functions'!$AD$3:$AD$7)","v":0.5},{"$f":"valuePL(Q28,'Utility Functions'!$AE$3:$AE$6,'Utility Functions'!$AF$3:$AF$6)","v":0.5},{"$f":"valuePL(R28,'Utility Functions'!$AG$3:$AG$6,'Utility Functions'!$AH$3:$AH$6)","v":1},{"$f":"valuePL(S28,'Utility Functions'!$AI$3:$AI$6,'Utility Functions'!$AJ$3:$AJ$6)","v":1},{"$f":"valuePL(T28,'Utility Functions'!$AK$3:$AK$8,'Utility Functions'!$AL$3:$AL$8)","v":1},{"$f":"valuePL(U28,'Utility Functions'!$AM$3:$AM$5,'Utility Functions'!$AN$3:$AN$5)","v":0},{"$f":"valuePL(V28,'Utility Functions'!$AO$3:$AO$5,'Utility Functions'!$AP$3:$AP$5)","v":0.5},{"$f":"valuePL(W28,'Utility Functions'!$AQ$3:$AQ$6,'Utility Functions'!$AR$3:$AR$6)","v":0.75},{"$f":"valuePL(X28,'Utility Functions'!$AS$3:$AS$6,'Utility Functions'!$AT$3:$AT$6)","v":1},{"$f":"valuePL(Y28,'Utility Functions'!$AU$3:$AU$6,'Utility Functions'!$AV$3:$AV$6)","v":0.2},{"$f":"valuePL(Z28,'Utility Functions'!$AW$3:$AW$5,'Utility Functions'!$AX$3:$AX$5)","v":0},{"$f":"valuePL(AA28,'Utility Functions'!$AY$3:$AY$6,'Utility Functions'!$AZ$3:$AZ$6)","v":0},{"$f":"valuePL(AB28,'Utility Functions'!$BA$3:$BA$5,'Utility Functions'!$BB$3:$BB$5)","v":0},{"$f":"valuePL(AC28,'Utility Functions'!$BC$3:$BC$5,'Utility Functions'!$BD$3:$BD$5)","v":0},9.0147596715374529,null,9.0147596715374547,1.464759671537454,1.1000000000000001,0,4,2.4500000000000002]
[28,{"$f":"valueE(B29,'Utility Functions'!$B$3,'Utility Functions'!$B$4,'Utility Functions'!$B$5,'Utility Functions'!$B$6)","v":0.4511890475224023},{"$f":"valueE(C29,'Utility Functions'!$D$3,'Utility Functions'!$D$4,'Utility Functions'!$D$5,'Utility Functions'!$D$6)","v":0.46475967153745396},{"$f":"valuePL(D29,'Utility Functions'!$E$3:$E$5,'Utility Functions'!$F$3:$F$5)","v":1},{"$f":"valuePL(E29,'Utility Functions'!$G$3:$G$5,'Utility Functions'!$H$3:$H$5)","v":0},{"$f":"valuePL(F29,'Utility Functions'!$I$3:$I$4,'Utility Functions'!$J$3:$J$5)","v":1},{"$f":"valueE(G29,'Utility Functions'!$L$3,'Utility Functions'!$L$4,'Utility Functions'!$L$5,'Utility Functions'!$L$6)","v":0},{"$f":"valueE(H29,'Utility Functions'!$N$3,'Utility Functions'!$N$4,'Utility Functions'!$N$5,'Utility Functions'!$N$6)","v":0},{"$f":"valuePL(I29,'Utility Functions'!$O$3:$O$6,'Utility Functions'!$P$3:$P$6)","v":0},{"$f":"valuePL(J29,'Utility Functions'!$Q$3:$Q$6,'Utility Functions'!$R$3:$R$6)","v":0},{"$f":"valuePL(K29,'Utility Functions'!$S$3:$S$7,'Utility Functions'!$T$3:$T$7)","v":0},{"$f":"valueE(L29,'Utility Functions'!$V$3,'Utility Functions'!$V$4,'Utility Functions'!$V$5,'Utility Functions'!$V$6)","v":0.33333333333333331},{"$f":"valuePL(M29,'Utility Functions'!$W$3:$W$6,'Utility Functions'!$X$3:$X$6)","v":0.1},{"$f":"valueE(N29,'Utility Functions'!$Z$3,'Utility Functions'!$Z$4,'Utility Functions'!$Z$5,'Utility Functions'!$Z$6)","v":0},{"$f":"valuePL(O29,'Utility Functions'!$AA$3:$AA$5,'Utility Functions'!$AB$3:$AB$5)","v":0},{"$f":"valuePL(P29,'Utility Functions'!$AC$3:$AC$7,'Utility Functions'!$AD$3:$AD$7)","v":1},{"$f":"valuePL(Q29,'Utility Functions'!$AE$3:$AE$6,'Utility Functions'!$AF$3:$AF$6)","v":0},{"$f":"valuePL(R29,'Utility Functions'!$AG$3:$AG$6,'Utility Functions'!$AH$3:$AH$6)","v":1},{"$f":"valuePL(S29,'Utility Functions'!$AI$3:$AI$6,'Utility Functions'!$AJ$3:$AJ$6)","v":1},{"$f":"valuePL(T29,'Utility Functions'!$AK$3:$AK$8,'Utility Functions'!$AL$3:$AL$8)","v":0.8},{"$f":"valuePL(U29,'Utility Functions'!$AM$3:$AM$5,'Utility Functions'!$AN$3:$AN$5)","v":0},{"$f":"valuePL(V29,'Utility Functions'!$AO$3:$AO$5,'Utility Functions'!$AP$3:$AP$5)","v":1},{"$f":"valuePL(W29,'Utility Functions'!$AQ$3:$AQ$6,'Utility Functions'!$AR$3:$AR$6)","v":1},{"$f":"valuePL(X29,'Utility Functions'!$AS$3:$AS$6,'Utility Functions'!$AT$3:$AT$6)","v":1},{"$f":"valuePL(Y29,'Utility Functions'!$AU$3:$AU$6,'Utility Functions'!$AV$3:$AV$6)","v":0.2},{"$f":"valuePL(Z29,'Utility Functions'!$AW$3:$AW$5,'Utility Functions'!$AX$3:$AX$5)","v":0},{"$f":"valuePL(AA29,'Utility Functions'!$AY$3:$AY$6,'Utility Functions'!$AZ$3:$AZ$6)","v":0.89999999999999991},{"$f":"valuePL(AB29,'Utility Functions'!$BA$3:$BA$5,'Utility Functions'!$BB$3:$BB$5)","v":1},{"$f":"valuePL(AC29,'Utility Functions'!$BC$3:$BC$5,'Utility Functions'!$BD$3:$BD$5)","v":0.25},12.499282052393189,null,12.499282052393189,2.9159487190598563,0.43333333333333335,0,3.8,5.35]
[29,{"$f":"valueE(B30,'Utility Functions'!$B$3,'Utility Functions'!$B$4,'Utility Functions'!$B$5,'Utility Functions'!$B$6)","v":0.83470237647280454},{"$f":"valueE(C30,'Utility Functions'!$D$3,'Utility Functions'!$D$4,'Utility Functions'!$D$5,'Utility Functions'!$D$6)","v":0.71352759724260828},{"$f":"valuePL(D30,'Utility Functions'!$E$3:$E$5,'Utility Functions'!$F$3:$F$5)","v":1},{"$f":"valuePL(E30,'Utility Functions'!$G$3:$G$5,'Utility Functions'!$H$3:$H$5)","v":0.5},{"$f":"valuePL(F30,'Utility Functions'!$I$3:$I$4,'Utility Functions'!$J$3:$J$5)","v":0},{"$f":"valueE(G30,'Utility Functions'!$L$3,'Utility Functions'!$L$4,'Utility Functions'!$L$5,'Utility Functions'!$L$6)","v":0},{"$f":"valueE(H30,'Utility Functions'!$N$3,'Utility Functions'!$N$4,'Utility Functions'!$N$5,'Utility Functions'!$N$6)","v":0},{"$f":"valuePL(I30,'Utility Functions'!$O$3:$O$6,'Utility Functions'!$P$3:$P$6)","v":0.06},{"$f":"valuePL(J30,'Utility Functions'!$Q$3:$Q$6,'Utility Functions'!$R$3:$R$6)","v":0.67272727272727273},{"$f":"valuePL(K30,'Utility Functions'!$S$3:$S$7,'Utility Functions'!$T$3:$T$7)","v":0},{"$f":"valueE(L30,'Utility Functions'!$V$3,'Utility Functions'!$V$4,'Utility Functions'!$V$5,'Utility Functions'!$V$6)","v":1},{"$f":"valuePL(M30,'Utility Functions'!$W$3:$W$6,'Utility Functions'!$X$3:$X$6)","v":0.67272727272727273},{"$f":"valueE(N30,'Utility Functions'!$Z$3,'Utility Functions'!$Z$4,'Utility Functions'!$Z$5,'Utility Functions'!$Z$6)","v":0},{"$f":"valuePL(O30,'Utility Functions'!$AA$3:$AA$5,'Utility Functions'!$AB$3:$AB$5)","v":0},{"$f":"valuePL(P30,'Utility Functions'!$AC$3:$AC$7,'Utility Functions'!$AD$3:$AD$7)","v":0.25},{"$f":"valuePL(Q30,'Utility Functions'!$AE$3:$AE$6,'Utility Functions'!$AF$3:$AF$6)","v":0},{"$f":"valuePL(R30,'Utility Functions'!$AG$3:$AG$6,'Utility Functions'!$AH$3:$AH$6)","v":1},{"$f":"valuePL(S30,'Utility Functions'!$AI$3:$AI$6,'Utility Functions'!$AJ$3:$AJ$6)","v":1},{"$f":"valuePL(T30,'Utility Functions'!$AK$3:$AK$8,'Utility Functions'!$AL$3:$AL$8)","v":0.8},{"$f":"valuePL(U30,'Utility Functions'!$AM$3:$AM$5,'Utility Functions'!$AN$3:$AN$5)","v":0},{"$f":"valuePL(V30,'Utility Functions'!$AO$3:$AO$5,'Utility Functions'!$AP$3:$AP$5)","v":1},{"$f":"valuePL(W30,'Utility Functions'!$AQ$3:$AQ$6,'Utility Functions'!$AR$3:$AR$6)","v":0.2},{"$f":"valuePL(X30,'Utility Functions'!$AS$3:$AS$6,'Utility Functions'!$AT$3:$AT$6)","v":0},{"$f":"valuePL(Y30,'Utility Functions'!$AU$3:$AU$6,'Utility Functions'!$AV$3:$AV$6)","v":0.8},{"$f":"valuePL(Z30,'Utility Functions'!$AW$3:$AW$5,'Utility Functions'!$AX$3:$AX$5)","v":0.5},{"$f":"valuePL(AA30,'Utility Functions'!$AY$3:$AY$6,'Utility Functions'!$AZ$3:$AZ$6)","v":0.2},{"$f":"valuePL(AB30,'Utility Functions'!$BA$3:$BA$5,'Utility Functions'!$BB$3:$BB$5)","v":0.25},{"$f":"valuePL(AC30,'Utility Functions'!$BC$3:$BC$5,'Utility Functions'!$BD$3:$BD$5)","v":1},12.453684519169958,null,12.453684519169958,3.0482299737154128,2.4054545454545453,0,3.05,3.95]
[30,{"$f":"valueE(B31,'Utility Functions'!$B$3,'Utility Functions'!$B$4,'Utility Functions'!$B$5,'Utility Functions'!$B$6)","v":0.99864114504770318},{"$f":"valueE(C31,'Utility Functions'!$D$3,'Utility Functions'!$D$4,'Utility Functions'!$D$5,'Utility Functions'!$D$6)","v":0.84744836833951609},{"$f":"valuePL(D31,'Utility Functions'!$E$3:$E$5,'Utility Functions'!$F$3:$F$5)","v":1},{"$f":"valuePL(E31,'Utility Functions'!$G$3:$G$5,'Utility Functions'!$H$3:$H$5)","v":0},{"$f":"valuePL(F31,'Utility Functions'!$I$3:$I$4,'Utility Functions'!$J$3:$J$5)","v":0},{"$f":"valueE(G31,'Utility Functions'!$L$3,'Utility Functions'!$L$4,'Utility Functions'!$L$5,'Utility Functions'!$L$6)","v":0},{"$f":"valueE(H31,'Utility Functions'!$N$3,'Utility Functions'!$N$4,'Utility Functions'!$N$5,'Utility Functions'!$N$6)","v":0},{"$f":"valuePL(I31,'Utility Functions'!$O$3:$O$6,'Utility Functions'!$P$3:$P$6)","v":0},{"$f":"valuePL(J31,'Utility Functions'!$Q$3:$Q$6,'Utility Functions'!$R$3:$R$6)","v":0},{"$f":"valuePL(K31,'Utility Functions'!$S$3:$S$7,'Utility Functions'!$T$3:$T$7)","v":0},{"$f":"valueE(L31,'Utility Functions'!$V$3,'Utility Functions'!$V$4,'Utility Functions'!$V$5,'Utility Functions'!$V$6)","v":0.33333333333333331},{"$f":"valuePL(M31,'Utility Functions'!$W$3:$W$6,'Utility Functions'!$X$3:$X$6)","v":0.04},{"$f":"valueE(N31,'Utility Functions'!$Z$3,'Utility Functions'!$Z$4,'Utility Functions'!$Z$5,'Utility Functions'!$Z$6)","v":0},{"$f":"valuePL(O31,'Utility Functions'!$AA$3:$AA$5,'Utility Functions'!$AB$3:$AB$5)","v":0},{"$f":"valuePL(P31,'Utility Functions'!$AC$3:$AC$7,'Utility Functions'!$AD$3:$AD$7)","v":0},{"$f":"valuePL(Q31,'Utility Functions'!$AE$3:$AE$6,'Utility Functions'!$AF$3:$AF$6)","v":0},{"$f":"valuePL(R31,'Utility Functions'!$AG$3:$AG$6,'Utility Functions'!$AH$3:$AH$6)","v":0.2},{"$f":"valuePL(S31,'Utility Functions'!$AI$3:$AI$6,'Utility Functions'!$AJ$3:$AJ$6)","v":0.33},{"$f":"valuePL(T31,'Utility Functions'!$AK$3:$AK$8,'Utility Functions'!$AL$3:$AL$8)","v":0},{"$f":"valuePL(U31,'Utility Functions'!$AM$3:$AM$5,'Utility Functions'!$AN$3:$AN$5)","v":0},{"$f":"valuePL(V31,'Utility Functions'!$AO$3:$AO$5,'Utility Functions'!$AP$3:$AP$5)","v":0},{"$f":"valuePL(W31,'Utility Functions'!$AQ$3:$AQ$6,'Utility Functions'!$AR$3:$AR$6)","v":1},{"$f":"valuePL(X31,'Utility Functions'!$AS$3:$AS$6,'Utility Functions'!$AT$3:$AT$6)","v":0.2},{"$f":"valuePL(Y31,'Utility Functions'!$AU$3:$AU$6,'Utility Functions'!$AV$3:$AV$6)","v":0.8},{"$f":"valuePL(Z31,'Utility Functions'!$AW$3:$AW$5,'Utility Functions'!$AX$3:$AX$5)","v":0},{"$f":"valuePL(AA31,'Utility Functions'!$AY$3:$AY$6,'Utility Functions'!$AZ$3:$AZ$6)","v":0.89999999999999991},{"$f":"valuePL(AB31,'Utility Functions'!$BA$3:$BA$5,'Utility Functions'!$BB$3:$BB$5)","v":1},{"$f":"valuePL(AC31,'Utility Functions'!$BC$3:$BC$5,'Utility Functions'!$BD$3:$BD$5)","v":0},7.6494228467205527,null,7.6494228467205527,2.846089513387219,0.37333333333333329,0,0.53,3.9]
[31,{"$f":"valueE(B32,'Utility Functions'!$B$3,'Utility Functions'!$B$4,'Utility Functions'!$B$5,'Utility Functions'!$B$6)","v":0.55067187023002029},{"$f":"valueE(C32,'Utility Functions'!$D$3,'Utility Functions'!$D$4,'Utility Functions'!$D$5,'Utility Functions'!$D$6)","v":0.84744836833951609},{"$f":"valuePL(D32,'Utility Functions'!$E$3:$E$5,'Utility Functions'!$F$3:$F$5)","v":0.5},{"$f":"valuePL(E32,'Utility Functions'!$G$3:$G$5,'Utility Functions'!$H$3:$H$5)","v":0},{"$f":"valuePL(F32,'Utility Functions'!$I$3:$I$4,'Utility Functions'!$J$3:$J$5)","v":0},{"$f":"valueE(G32,'Utility Functions'!$L$3,'Utility Functions'!$L$4,'Utility Functions'!$L$5,'Utility Functions'!$L$6)","v":0},{"$f":"valueE(H32,'Utility Functions'!$N$3,'Utility Functions'!$N$4,'Utility Functions'!$N$5,'Utility Functions'!$N$6)","v":0},{"$f":"valuePL(I32,'Utility Functions'!$O$3:$O$6,'Utility Functions'!$P$3:$P$6)","v":0.75454545454545452},{"$f":"valuePL(J32,'Utility Functions'!$Q$3:$Q$6,'Utility Functions'!$R$3:$R$6)","v":0.08},{"$f":"valuePL(K32,'Utility Functions'!$S$3:$S$7,'Utility Functions'!$T$3:$T$7)","v":0},{"$f":"valueE(L32,'Utility Functions'!$V$3,'Utility Functions'!$V$4,'Utility Functions'!$V$5,'Utility Functions'!$V$6)","v":0.33333333333333331},{"$f":"valuePL(M32,'Utility Functions'!$W$3:$W$6,'Utility Functions'!$X$3:$X$6)","v":0.08},{"$f":"valueE(N32,'Utility Functions'!$Z$3,'Utility Functions'!$Z$4,'Utility Functions'!$Z$5,'Utility Functions'!$Z$6)","v":0},{"$f":"valuePL(O32,'Utility Functions'!$AA$3:$AA$5,'Utility Functions'!$AB$3:$AB$5)","v":0},{"$f":"valuePL(P32,'Utility Functions'!$AC$3:$AC$7,'Utility Functions'!$AD$3:$AD$7)","v":0.5},{"$f":"valuePL(Q32,'Utility Functions'!$AE$3:$AE$6,'Utility Functions'!$AF$3:$AF$6)","v":0},{"$f":"valuePL(R32,'Utility Functions'!$AG$3:$AG$6,'Utility Functions'!$AH$3:$AH$6)","v":1},{"$f":"valuePL(S32,'Utility Functions'!$AI$3:$AI$6,'Utility Functions'!$AJ$3:$AJ$6)","v":0.66},{"$f":"valuePL(T32,'Utility Functions'!$AK$3:$AK$8,'Utility Functions'!$AL$3:$AL$8)","v":0.6},{"$f":"valuePL(U32,'Utility Functions'!$AM$3:$AM$5,'Utility Functions'!$AN$3:$AN$5)","v":0},{"$f":"valuePL(V32,'Utility Functions'!$AO$3:$AO$5,'Utility Functions'!$AP$3:$AP$5)","v":0.5},{"$f":"valuePL(W32,'Utility Functions'!$AQ$3:$AQ$6,'Utility Functions'!$AR$3:$AR$6)","v":0},{"$f":"valuePL(X32,'Utility Functions'!$AS$3:$AS$6,'Utility Functions'!$AT$3:$AT$6)","v":0.2},{"$f":"valuePL(Y32,'Utility Functions'!$AU$3:$AU$6,'Utility Functions'!$AV$3:$AV$6)","v":0.2},{"$f":"valuePL(Z32,'Utility Functions'!$AW$3:$AW$5,'Utility Functions'!$AX$3:$AX$5)","v":1},{"$f":"valuePL(AA32,'Utility Functions'!$AY$3:$AY$6,'Utility Functions'!$AZ$3:$AZ$6)","v":0.89999999999999991},{"$f":"valuePL(AB32,'Utility Functions'!$BA$3:$BA$5,'Utility Functions'!$BB$3:$BB$5)","v":0.25},{"$f":"valuePL(AC32,'Utility Functions'!$BC$3:$BC$5,'Utility Functions'!$BD$3:$BD$5)","v":0.25},9.2059990264483247,null,9.2059990264483247,1.8981202385695364,1.2478787878787878,0,2.7600000000000002,3.3]
[32,{"$f":"valueE(B33,'Utility Functions'!$B$3,'Utility Functions'!$B$4,'Utility Functions'!$B$5,'Utility Functions'!$B$6)","v":0.63212151658375171},{"$f":"valueE(C33,'Utility Functions'!$D$3,'Utility Functions'!$D$4,'Utility Functions'!$D$5,'Utility Functions'!$D$6)","v":0.26839655623815994},{"$f":"valuePL(D33,'Utility Functions'!$E$3:$E$5,'Utility Functions'!$F$3:$F$5)","v":1},{"$f":"valuePL(E33,'Utility Functions'!$G$3:$G$5,'Utility Functions'!$H$3:$H$5)","v":1},{"$f":"valuePL(F33,'Utility Functions'!$I$3:$I$4,'Utility Functions'!$J$3:$J$5)","v":1},{"$f":"valueE(G33,'Utility Functions'!$L$3,'Utility Functions'!$L$4,'Utility Functions'!$L$5,'Utility Functions'!$L$6)","v":3.2258064516129031E-2},{"$f":"valueE(H33,'Utility Functions'!$N$3,'Utility Functions'!$N$4,'Utility Functions'!$N$5,'Utility Functions'!$N$6)","v":9.6774193548387094E-2},{"$f":"valuePL(I33,'Utility Functions'!$O$3:$O$6,'Utility Functions'!$P$3:$P$6)","v":0.34545454545454546},{"$f":"valuePL(J33,'Utility Functions'!$Q$3:$Q$6,'Utility Functions'!$R$3:$R$6)","v":1},{"$f":"valuePL(K33,'Utility Functions'!$S$3:$S$7,'Utility Functions'!$T$3:$T$7)","v":0.34545454545454546},{"$f":"valueE(L33,'Utility Functions'!$V$3,'Utility Functions'!$V$4,'Utility Functions'!$V$5,'Utility Functions'!$V$6)","v":1},{"$f":"valuePL(M33,'Utility Functions'!$W$3:$W$6,'Utility Functions'!$X$3:$X$6)","v":1},{"$f":"valueE(N33,'Utility Functions'!$Z$3,'Utility Functions'!$Z$4,'Utility Functions'!$Z$5,'Utility Functions'!$Z$6)","v":0},{"$f":"valuePL(O33,'Utility Functions'!$AA$3:$AA$5,'Utility Functions'!$AB$3:$AB$5)","v":0},{"$f":"valuePL(P33,'Utility Functions'!$AC$3:$AC$7,'Utility Functions'!$AD$3:$AD$7)","v":0.5},{"$f":"valuePL(Q33,'Utility Functions'!$AE$3:$AE$6,'Utility Functions'!$AF$3:$AF$6)","v":1},{"$f":"valuePL(R33,'Utility Functions'!$AG$3:$AG$6,'Utility Functions'!$AH$3:$AH$6)","v":1},{"$f":"valuePL(S33,'Utility Functions'!$AI$3:$AI$6,'Utility Functions'!$AJ$3:$AJ$6)","v":0},{"$f":"valuePL(T33,'Utility Functions'!$AK$3:$AK$8,'Utility Functions'!$AL$3:$AL$8)","v":0.8},{"$f":"valuePL(U33,'Utility Functions'!$AM$3:$AM$5,'Utility Functions'!$AN$3:$AN$5)","v":0},{"$f":"valuePL(V33,'Utility Functions'!$AO$3:$AO$5,'Utility Functions'!$AP$3:$AP$5)","v":0},{"$f":"valuePL(W33,'Utility Functions'!$AQ$3:$AQ$6,'Utility Functions'!$AR$3:$AR$6)","v":0.75},{"$f":"valuePL(X33,'Utility Functions'!$AS$3:$AS$6,'Utility Functions'!$AT$3:$AT$6)","v":0.2},{"$f":"valuePL(Y33,'Utility Functions'!$AU$3:$AU$6,'Utility Functions'!$AV$3:$AV$6)","v":0.8},{"$f":"valuePL(Z33,'Utility Functions'!$AW$3:$AW$5,'Utility Functions'!$AX$3:$AX$5)","v":0.5},{"$f":"valuePL(AA33,'Utility Functions'!$AY$3:$AY$6,'Utility Functions'!$AZ$3:$AZ$6)","v":0},{"$f":"valuePL(AB33,'Utility Functions'!$BA$3:$BA$5,'Utility Functions'!$BB$3:$BB$5)","v":1},{"$f":"valuePL(AC33,'Utility Functions'!$BC$3:$BC$5,'Utility Functions'!$BD$3:$BD$5)","v":0.25},14.52045942179552,null,14.520459421795518,3.9005180728219115,3.8199413489736074,0,3.3,3.5]
[33,{"$f":"valueE(B34,'Utility Functions'!$B$3,'Utility Functions'!$B$4,'Utility Functions'!$B$5,'Utility Functions'!$B$6)","v":0.93919136038504192},{"$f":"valueE(C34,'Utility Functions'!$D$3,'Utility Functions'!$D$4,'Utility Functions'!$D$5,'Utility Functions'!$D$6)","v":0.84744836833951609},{"$f":"valuePL(D34,'Utility Functions'!$E$3:$E$5,'Utility Functions'!$F$3:$F$5)","v":1},{"$f":"valuePL(E34,'Utility Functions'!$G$3:$G$5,'Utility Functions'!$H$3:$H$5)","v":0.5},{"$f":"valuePL(F34,'Utility Functions'!$I$3:$I$4,'Utility Functions'!$J$3:$J$5)","v":0},{"$f":"valueE(G34,'Utility Functions'!$L$3,'Utility Functions'!$L$4,'Utility Functions'!$L$5,'Utility Functions'!$L$6)","v":0},{"$f":"valueE(H34,'Utility Functions'!$N$3,'Utility Functions'!$N$4,'Utility Functions'!$N$5,'Utility Functions'!$N$6)","v":0},{"$f":"valuePL(I34,'Utility Functions'!$O$3:$O$6,'Utility Functions'!$P$3:$P$6)","v":0},{"$f":"valuePL(J34,'Utility Functions'!$Q$3:$Q$6,'Utility Functions'!$R$3:$R$6)","v":0},{"$f":"valuePL(K34,'Utility Functions'!$S$3:$S$7,'Utility Functions'!$T$3:$T$7)","v":0},{"$f":"valueE(L34,'Utility Functions'!$V$3,'Utility Functions'!$V$4,'Utility Functions'!$V$5,'Utility Functions'!$V$6)","v":0.5},{"$f":"valuePL(M34,'Utility Functions'!$W$3:$W$6,'Utility Functions'!$X$3:$X$6)","v":0},{"$f":"valueE(N34,'Utility Functions'!$Z$3,'Utility Functions'!$Z$4,'Utility Functions'!$Z$5,'Utility Functions'!$Z$6)","v":0},{"$f":"valuePL(O34,'Utility Functions'!$AA$3:$AA$5,'Utility Functions'!$AB$3:$AB$5)","v":0},{"$f":"valuePL(P34,'Utility Functions'!$AC$3:$AC$7,'Utility Functions'!$AD$3:$AD$7)","v":0.5},{"$f":"valuePL(Q34,'Utility Functions'!$AE$3:$AE$6,'Utility Functions'!$AF$3:$AF$6)","v":0},{"$f":"valuePL(R34,'Utility Functions'!$AG$3:$AG$6,'Utility Functions'!$AH$3:$AH$6)","v":1},{"$f":"valuePL(S34,'Utility Functions'!$AI$3:$AI$6,'Utility Functions'!$AJ$3:$AJ$6)","v":0.66},{"$f":"valuePL(T34,'Utility Functions'!$AK$3:$AK$8,'Utility Functions'!$AL$3:$AL$8)","v":0},{"$f":"valuePL(U34,'Utility Functions'!$AM$3:$AM$5,'Utility Functions'!$AN$3:$AN$5)","v":0},{"$f":"valuePL(V34,'Utility Functions'!$AO$3:$AO$5,'Utility Functions'!$AP$3:$AP$5)","v":0.5},{"$f":"valuePL(W34,'Utility Functions'!$AQ$3:$AQ$6,'Utility Functions'!$AR$3:$AR$6)","v":1},{"$f":"valuePL(X34,'Utility Functions'!$AS$3:$AS$6,'Utility Functions'!$AT$3:$AT$6)","v":0},{"$f":"valuePL(Y34,'Utility Functions'!$AU$3:$AU$6,'Utility Functions'!$AV$3:$AV$6)","v":0.8},{"$f":"valuePL(Z34,'Utility Functions'!$AW$3:$AW$5,'Utility Functions'!$AX$3:$AX$5)","v":1},{"$f":"valuePL(AA34,'Utility Functions'!$AY$3:$AY$6,'Utility Functions'!$AZ$3:$AZ$6)","v":1},{"$f":"valuePL(AB34,'Utility Functions'!$BA$3:$BA$5,'Utility Functions'!$BB$3:$BB$5)","v":0},{"$f":"valuePL(AC34,'Utility Functions'!$BC$3:$BC$5,'Utility Functions'!$BD$3:$BD$5)","v":0},10.246639728724558,null,10.246639728724558,3.2866397287245581,0.5,0,2.16,4.3]
[34,{"$f":"valueE(B35,'Utility Functions'!$B$3,'Utility Functions'!$B$4,'Utility Functions'!$B$5,'Utility Functions'!$B$6)","v":0},{"$f":"valueE(C35,'Utility Functions'!$D$3,'Utility Functions'!$D$4,'Utility Functions'!$D$5,'Utility Functions'!$D$6)","v":0},{"$f":"valuePL(D35,'Utility Functions'!$E$3:$E$5,'Utility Functions'!$F$3:$F$5)","v":0},{"$f":"valuePL(E35,'Utility Functions'!$G$3:$G$5,'Utility Functions'!$H$3:$H$5)","v":0},{"$f":"valuePL(F35,'Utility Functions'!$I$3:$I$4,'Utility Functions'!$J$3:$J$5)","v":0},{"$f":"valueE(G35,'Utility Functions'!$L$3,'Utility Functions'!$L$4,'Utility Functions'!$L$5,'Utility Functions'!$L$6)","v":0},{"$f":"valueE(H35,'Utility Functions'!$N$3,'Utility Functions'!$N$4,'Utility Functions'!$N$5,'Utility Functions'!$N$6)","v":1.1385199240986717E-2},{"$f":"valuePL(I35,'Utility Functions'!$O$3:$O$6,'Utility Functions'!$P$3:$P$6)","v":1},{"$f":"valuePL(J35,'Utility Functions'!$Q$3:$Q$6,'Utility Functions'!$R$3:$R$6)","v":0.91818181818181821},{"$f":"valuePL(K35,'Utility Functions'!$S$3:$S$7,'Utility Functions'!$T$3:$T$7)","v":1},{"$f":"valueE(L35,'Utility Functions'!$V$3,'Utility Functions'!$V$4,'Utility Functions'!$V$5,'Utility Functions'!$V$6)","v":1},{"$f":"valuePL(M35,'Utility Functions'!$W$3:$W$6,'Utility Functions'!$X$3:$X$6)","v":0.91818181818181821},{"$f":"valueE(N35,'Utility Functions'!$Z$3,'Utility Functions'!$Z$4,'Utility Functions'!$Z$5,'Utility Functions'!$Z$6)","v":0},{"$f":"valuePL(O35,'Utility Functions'!$AA$3:$AA$5,'Utility Functions'!$AB$3:$AB$5)","v":0},{"$f":"valuePL(P35,'Utility Functions'!$AC$3:$AC$7,'Utility Functions'!$AD$3:$AD$7)","v":0.5},{"$f":"valuePL(Q35,'Utility Functions'!$AE$3:$AE$6,'Utility Functions'!$AF$3:$AF$6)","v":0},{"$f":"valuePL(R35,'Utility Functions'!$AG$3:$AG$6,'Utility Functions'!$AH$3:$AH$6)","v":1},{"$f":"valuePL(S35,'Utility Functions'!$AI$3:$AI$6,'Utility Functions'!$AJ$3:$AJ$6)","v":1},{"$f":"valuePL(T35,'Utility Functions'!$AK$3:$AK$8,'Utility Functions'!$AL$3:$AL$8)","v":0.8},{"$f":"valuePL(U35,'Utility Functions'!$AM$3:$AM$5,'Utility Functions'!$AN$3:$AN$5)","v":0},{"$f":"valuePL(V35,'Utility Functions'!$AO$3:$AO$5,'Utility Functions'!$AP$3:$AP$5)","v":1},{"$f":"valuePL(W35,'Utility Functions'!$AQ$3:$AQ$6,'Utility Functions'!$AR$3:$AR$6)","v":1},{"$f":"valuePL(X35,'Utility Functions'!$AS$3:$AS$6,'Utility Functions'!$AT$3:$AT$6)","v":1},{"$f":"valuePL(Y35,'Utility Functions'!$AU$3:$AU$6,'Utility Functions'!$AV$3:$AV$6)","v":0},{"$f":"valuePL(Z35,'Utility Functions'!$AW$3:$AW$5,'Utility Functions'!$AX$3:$AX$5)","v":1},{"$f":"valuePL(AA35,'Utility Functions'!$AY$3:$AY$6,'Utility Functions'!$AZ$3:$AZ$6)","v":0.89999999999999991},{"$f":"valuePL(AB35,'Utility Functions'!$BA$3:$BA$5,'Utility Functions'!$BB$3:$BB$5)","v":0.25},{"$f":"valuePL(AC35,'Utility Functions'!$BC$3:$BC$5,'Utility Functions'!$BD$3:$BD$5)","v":0},13.297748835604624,null,13.297748835604624,0,4.847748835604623,0,3.3,5.15]
[35,{"$f":"valueE(B36,'Utility Functions'!$B$3,'Utility Functions'!$B$4,'Utility Functions'!$B$5,'Utility Functions'!$B$6)","v":0.79810469124896843},{"$f":"valueE(C36,'Utility Functions'!$D$3,'Utility Functions'!$D$4,'Utility Functions'!$D$5,'Utility Functions'!$D$6)","v":0.60939983135101949},{"$f":"valuePL(D36,'Utility Functions'!$E$3:$E$5,'Utility Functions'!$F$3:$F$5)","v":0.5},{"$f":"valuePL(E36,'Utility Functions'!$G$3:$G$5,'Utility Functions'!$H$3:$H$5)","v":0.5},{"$f":"valuePL(F36,'Utility Functions'!$I$3:$I$4,'Utility Functions'!$J$3:$J$5)","v":1},{"$f":"valueE(G36,'Utility Functions'!$L$3,'Utility Functions'!$L$4,'Utility Functions'!$L$5,'Utility Functions'!$L$6)","v":0},{"$f":"valueE(H36,'Utility Functions'!$N$3,'Utility Functions'!$N$4,'Utility Functions'!$N$5,'Utility Functions'!$N$6)","v":0},{"$f":"valuePL(I36,'Utility Functions'!$O$3:$O$6,'Utility Functions'!$P$3:$P$6)","v":0},{"$f":"valuePL(J36,'Utility Functions'!$Q$3:$Q$6,'Utility Functions'!$R$3:$R$6)","v":0},{"$f":"valuePL(K36,'Utility Functions'!$S$3:$S$7,'Utility Functions'!$T$3:$T$7)","v":1},{"$f":"valueE(L36,'Utility Functions'!$V$3,'Utility Functions'!$V$4,'Utility Functions'!$V$5,'Utility Functions'!$V$6)","v":0.66666666666666663},{"$f":"valuePL(M36,'Utility Functions'!$W$3:$W$6,'Utility Functions'!$X$3:$X$6)","v":0.1},{"$f":"valueE(N36,'Utility Functions'!$Z$3,'Utility Functions'!$Z$4,'Utility Functions'!$Z$5,'Utility Functions'!$Z$6)","v":1},{"$f":"valuePL(O36,'Utility Functions'!$AA$3:$AA$5,'Utility Functions'!$AB$3:$AB$5)","v":0},{"$f":"valuePL(P36,'Utility Functions'!$AC$3:$AC$7,'Utility Functions'!$AD$3:$AD$7)","v":0},{"$f":"valuePL(Q36,'Utility Functions'!$AE$3:$AE$6,'Utility Functions'!$AF$3:$AF$6)","v":0},{"$f":"valuePL(R36,'Utility Functions'!$AG$3:$AG$6,'Utility Functions'!$AH$3:$AH$6)","v":1},{"$f":"valuePL(S36,'Utility Functions'!$AI$3:$AI$6,'Utility Functions'!$AJ$3:$AJ$6)","v":1},{"$f":"valuePL(T36,'Utility Functions'!$AK$3:$AK$8,'Utility Functions'!$AL$3:$AL$8)","v":0.6},{"$f":"valuePL(U36,'Utility Functions'!$AM$3:$AM$5,'Utility Functions'!$AN$3:$AN$5)","v":0},{"$f":"valuePL(V36,'Utility Functions'!$AO$3:$AO$5,'Utility Functions'!$AP$3:$AP$5)","v":1},{"$f":"valuePL(W36,'Utility Functions'!$AQ$3:$AQ$6,'Utility Functions'!$AR$3:$AR$6)","v":0.75},{"$f":"valuePL(X36,'Utility Functions'!$AS$3:$AS$6,'Utility Functions'!$AT$3:$AT$6)","v":0},{"$f":"valuePL(Y36,'Utility Functions'!$AU$3:$AU$6,'Utility Functions'!$AV$3:$AV$6)","v":0.2},{"$f":"valuePL(Z36,'Utility Functions'!$AW$3:$AW$5,'Utility Functions'!$AX$3:$AX$5)","v":1},{"$f":"valuePL(AA36,'Utility Functions'!$AY$3:$AY$6,'Utility Functions'!$AZ$3:$AZ$6)","v":0},{"$f":"valuePL(AB36,'Utility Functions'!$BA$3:$BA$5,'Utility Functions'!$BB$3:$BB$5)","v":0.25},{"$f":"valuePL(AC36,'Utility Functions'!$BC$3:$BC$5,'Utility Functions'!$BD$3:$BD$5)","v":0.25},12.224171189266654,null,12.224171189266656,3.407504522599988,1.7666666666666666,1,2.6,3.45]
["Unweighted",{"$f":"SUMPRODUCT(B46:B80,$B$85:$B$119)","v":2.7136958452282869},{"$f":"SUMPRODUCT(C46:C80,$B$85:$B$119)","v":3.3322448952127779},{"$f":"SUMPRODUCT(D46:D80,$B$85:$B$119)","v":3.5},0.5,0,0.94623655913978499,0.3206831119544592,0.75454545454545452,0.08,0,0.66666666666666663,0.12,2,{"$f":"SUMPRODUCT(O46:O80,$B$85:$B$119)","v":0.5},1.25,1.6,4.2,3.99,2.2000000000000002,0.25,3,2.15,2.6000000000000005,2.8000000000000003,3,3.0999999999999996,3.5,1.25,null,null,"Unweighted",{"$f":"SUMPRODUCT(AG46:AG80,$B$85:$B$119)","v":10.045940740441065},{"$f":"SUMPRODUCT(AH46:AH80,$B$85:$B$119)","v":2.8881317923063654},2.5,13.489999999999998,21.4]
["Weighted",{"$f":"B$81*Sens_Rigor!I$5","v":6.5197350542043175E-2},{"$f":"C$81*Sens_Rigor!J$5","v":7.5680979219967054E-2},{"$f":"D$81*Sens_Rigor!K$5","v":8.0503258295003002E-2},{"$f":"E$81*Sens_Rigor!L$5","v":1.1204375142178634E-2},{"$f":"F$81*Sens_Rigor!M$5","v":0},{"$f":"G$81*Sens_Rigor!N$5","v":1.0641833835331292E-2},{"$f":"H$81*Sens_Rigor!O$5","v":3.606557322535404E-3},{"$f":"I$81*Sens_Rigor!P$5","v":1.4404859696790499E-2},{"$f":"J$81*Sens_Rigor!Q$5","v":1.4882406176057704E-3},{"$f":"K$81*Sens_Rigor!R$5","v":0},{"$f":"L$81*Sens_Rigor!S$5","v":1.1199448493666437E-2},{"$f":"M$81*Sens_Rigor!T$5","v":1.5221581698451989E-3},{"$f":"N$81*Sens_Rigor!U$5","v":4.5454545454545449E-2},{"$f":"O$81*Sens_Rigor!V$5","v":3.4090909090909088E-2},{"$f":"P$81*Sens_Rigor!W$5","v":3.7440757485711754E-2},{"$f":"Q$81*Sens_Rigor!X$5","v":5.2827438912375457E-2},{"$f":"R$81*Sens_Rigor!Y$5","v":0.15873070522280758},{"$f":"S$81*Sens_Rigor!Z$5","v":0.13207336157245264},{"$f":"T$81*Sens_Rigor!AA$5","v":5.3005534640239403E-2},{"$f":"U$81*Sens_Rigor!AB$5","v":5.965220873481971E-3},{"$f":"V$81*Sens_Rigor!AC$5","v":0.24024868147602627},{"$f":"W$81*Sens_Rigor!AD$5","v":0.12417000463071849},{"$f":"X$81*Sens_Rigor!AE$5","v":0.16058600409029766},{"$f":"Y$81*Sens_Rigor!AF$5","v":0.21490636570785093},{"$f":"Z$81*Sens_Rigor!AG$5","v":0.19951200890420728},{"$f":"AA$81*Sens_Rigor!AH$5","v":0.15974442720629431},{"$f":"AB$81*Sens_Rigor!AI$5","v":0.1912715084680571},{"$f":"AC$81*Sens_Rigor!AJ$5","v":6.3705035847467478E-2},null,null,"Weighted for SA",{"$f":"AG81*#REF!","v":{"$error":"#REF!"}},{"$f":"AH81*#REF!","v":{"$error":"#REF!"}},{"$f":"AI81*#REF!","v":{"$error":"#REF!"}},{"$f":"AJ81*#REF!","v":{"$error":"#REF!"}},{"$f":"AK81*#REF!","v":{"$error":"#REF!"}}]
[]
[null,"Decision variable","Benefit","Cost"]
[{"$f":"A2","v":1},0,{"$f":"AD46","v":17.117643866192076},{"$f":"AD2","v":700000}]
[2,0,{"$f":"AD47","v":12.641625800575998},{"$f":"AD3","v":5400000}]
[3,0,11.563541444302563,250000]
[4,0,9.2460291931089209,150000]
[5,0,9.5663279251355373,220000]
[6,0,5.9008471271383875,110000]
[7,0,15.54287399641135,1000000]
[8,0,14.227364688589191,5000000]
[9,0,11.893773577166716,25000]
[10,0,9.01,900000]
[11,0,13.174032258064516,1500000]
[12,1,9.4195802436719873,100000]
[13,0,7.5245670174228056,250000]
[14,0,10.338706637075108,500000]
[15,0,15.150477261414375,800000]
[16,0,15.119696969696969,2000000]
[17,0,10.876550515651747,500000]
[18,1,10.178462998102468,300000]
[19,0,9.3165012474871283,750000]
[20,0,15.091255033092194,1500000]
[21,0,9.5500000000000007,900000]
[22,0,9.471742567994939,750000]
[23,0,9.5321507448123199,1000000]
[24,0,9.4968811881212041,150000]
[25,1,13.870607417804099,250000]
[26,0,11.064076562960208,500000]
[27,0,9.0147596715374529,1200000]
[28,0,12.499282052393189,500000]
[29,0,12.453684519169958,2000000]
[30,1,7.6494228467205527,250000]
[31,1,9.2059990264483247,650000]
[32,0,14.52045942179552,200000]
[33,0,10.246639728724558,400000]
[34,0,13.297748835604624,900000]
[35,0,12.224171189266654,900000]
[null,{"$f":"SUM(B85:B119)","v":5},{"$f":"SUMPRODUCT(C85:C119,B85:B119)","v":50.324072532747437},{"$f":"SUMPRODUCT(B85:B119,D85:D119)","v":1550000}]
[]
[null,null,"Cost constraint"]

{"sheet":"Portfolio_B_Rigor","index":24,"n_rows":122,"n_cols":37,"rows_kept":122,"cut":false,"hidden":false,"merged":[]}
["Project","manage_species","manage_spatial","manage_uncertainty","manage_currentpractices","manage_adaptivemanagement","pop_a","pop_b","pop_spatialscope","pop_temporalscope","hab_quantity","hab_quality","hab_temporal","ecoprocess_spp","ecoprocess_uncertainty","datasharing","broaderimpacts","exisitingpriorities","partners","leverage","alignment","objhyp","response","targettaxa","surveydesign","stats","datamanagement","budget","timeline","cost"]
[1,9,6.25,2,2,0,186,1054,75,5,0,2,0,0,0,4,0,2,3,0,0,2,3,3,3,2,3,2,2,700000]
[2,3,28.2,1,0,0,0,0,0,0,0,2,0,4,1,0,0,3,3,0,0,2,3,3,3,2,3,2,2,5400000]
[3,8,28.2,2,0,0,0,0,0,0,0,2,0,5,1,0,2,0,0,0,1,2,3,3,3,2,1,2,2,250000]
[4,1,6.25,2,0,0,0,0,0,0,0,2,0,4,1,0,1,3,3,4,0,1,3,3,1,0,0,2,1,150000]
[5,4,3.1,2,0,0,0,0,50,2,0,2,0,0,0,0,1,3,3,4,1,0,3,3,2,0,0,2,1,220000]
[6,10,6.2E-2,2,0,0,0,0,10,2,0,2,0,0,0,0,1,0,3,3,0,0,0,3,0,0,0,2,1,110000]
[7,52,18.8,0,2,0,0,0,85,12,85,8,12,8,1,0,0,3,3,0,0,2,0,1,3,2,2,0,2,1000000]
[8,3,18.8,2,1,1,0,0,14,14,14,8,14,0,0,0,3,1,3,0,0,2,3,3,3,2,0,1,1,5000000]
[9,9,15.6,2,1,0,70,140,0,0,0,2,0,0,0,3,0,3,2,1,0,2,3,3,1,2,1,1,2,25000]
[10,0,0,0,0,0,0,0,0,0,0,2,0,6,2,1,2,3,2,2,0,0,2,3,3,1,1,0,2,900000]
[11,0,0,0,0,0,6,102,52,15,52,8,15,3,1,1,0,3,3,2,2,2,1,3,3,1,2,0,1,1500000]
[12,2,15.6,2,1,0,0,0,0,0,0,2,0,0,0,0,1,3,3,3,0,1,1,3,1,2,1,2,0,100000]
[13,0,0,0,0,0,0,12,39,2,39,8,2,7,1,1,0,3,3,0,0,1,0,1,0,2,1,1,1,250000]
[14,6,15.6,1,1,0,0,0,0,0,0,2,0,6,1,1,0,3,3,0,0,1,1,3,3,1,2,1,1,500000]
[15,23,12.5,2,1,1,0,0,23,3,23,8,3,1,2,2,0,2,3,3,2,0,3,1,1,2,3,2,1,800000]
[16,0,0,0,0,0,0,0,100,15,100,7,15,0,0,3,0,3,3,5,0,2,2,2,1,2,3,2,2,2000000]
[17,2,15.6,2,1,1,58,290,0,0,0,8,3,0,0,0,0,3,2,0,0,2,3,1,0,1,0,2,1,500000]
[18,0,0,0,0,0,0,30,0,0,0,2,0,8,1,1,3,3,3,5,1,2,2,1,2,1,2,1,0,300000]
[19,8,3.125,1,2,0,0,0,0,0,0,2,0,8,2,0,0,2,3,0,0,1,1,3,2,0,1,0,1,750000]
[20,9,15.6,1,2,0,0,435,76,10,76,6,10,8,2,1,0,3,3,3,2,1,0,0,1,2,1,0,1,1500000]
[21,0,0,0,0,0,0,0,0,0,0,2,0,8,2,0,1,3,3,5,1,0,2,3,1,0,3,1,2,900000]
[22,0,0,0,0,0,16,64,0,0,0,2,0,1,2,4,2,2,3,5,0,1,2,1,0,2,1,2,1,750000]
[23,9,18.8,2,0,0,0,0,0,0,0,2,0,0,0,3,0,3,3,5,0,2,1,2,1,1,1,0,1,1000000]
[24,5,6.25,2,0,0,0,0,0,0,0,2,0,0,0,0,0,3,3,5,0,0,3,1,3,2,1,0,2,150000]
[25,9,18.8,2,0,0,176,308,0,0,0,2,0,8,1,2,2,3,3,0,0,2,1,3,2,1,1,2,2,250000]
[26,17,18.8,2,1,0,0,0,0,0,0,2,0,0,0,3,0,3,3,4,0,2,1,0,2,0,1,2,2,500000]
[27,0,6.25,2,0,0,0,0,0,0,80,2,5,0,0,2,2,3,3,5,0,1,2,3,1,0,0,0,0,1200000]
[28,3,6.25,2,0,1,0,0,0,0,0,4,5,0,0,4,0,3,3,4,0,2,3,3,1,0,2,2,1,500000]
[29,9,12.5,2,1,0,0,0,15,12,15,8,12,0,0,1,0,3,3,4,0,2,1,0,2,1,1,1,2,2000000]
[30,33,18.8,2,0,0,0,0,0,0,0,4,2,0,0,0,0,1,1,0,0,0,3,1,2,0,2,2,0,250000]
[31,4,18.8,1,0,0,0,0,65,4,0,4,4,0,0,2,0,3,2,3,0,1,0,1,1,2,2,1,1,650000]
[32,5,3.125,2,2,1,6,102,40,16,40,8,16,0,0,2,3,3,0,4,0,0,2,1,2,1,0,2,1,200000]
[33,14,18.8,2,1,0,0,0,0,0,0,5,0,0,0,2,0,3,2,0,0,1,3,0,2,2,3,0,0,400000]
[34,0,0,0,0,0,0,12,100,15,100,8,15,0,0,2,0,3,3,4,0,2,3,3,0,2,2,1,0,900000]
[35,8,9.4,1,1,1,0,0,0,0,100,6,5,8,0,0,0,3,3,3,0,2,2,0,1,2,0,1,1,900000]
["CV",{"$f":"_xlfn.STDEV.S(B2:B36)/AVERAGE(B2:B36)","v":1.383842854444886},{"$f":"_xlfn.STDEV.S(C2:C36)/AVERAGE(C2:C36)","v":0.84395823753626376},{"$f":"_xlfn.STDEV.S(D2:D36)/AVERAGE(D2:D36)","v":0.65948586466528381},{"$f":"_xlfn.STDEV.S(E2:E36)/AVERAGE(E2:E36)","v":1.2933654230908831},2.2305806858480666,2.9881459898804135,2.7250501152884543,1.5394659205075842,1.5790297611729722,1.6828143944790142,0.63288342730791625,1.4346340567392073,1.2744250477591585,1.2909944487358058,1.043011114951035,1.4910544805781871,0.32582327651393111,0.30721159062514791,0.8219511329380369,2.1760730956581078,0.64975875258290616,0.58618247649425104,0.61083323417736113,0.63333947951472869,0.68629571860885286,0.76505300516434493,0.69428102652373402,0.60312027652595823]
["sd",{"$f":"_xlfn.STDEV.S(B2:B36)","v":10.477667326511279}]
["mean",{"$f":"AVERAGE(B2:B36)","v":7.5714285714285712}]
[null,{"$f":"B1","v":"manage_species"},{"$f":"C1","v":"manage_spatial"},"manage_uncertainty","manage_currentpractices","manage_adaptivemanagement","pop_a","pop_b","pop_spatialscope","pop_temporalscope","hab_quantity","hab_quality","hab_temporal","ecoprocess_spp","ecoprocess_uncertainty","datasharing","broaderimpacts","exisitingpriorities","partners","leverage","alignment","objhyp","response","targettaxa","surveydesign","stats","datamanagement","budget","timeline"]
[null,"Metric 1","Metric 2","Metric 3","Metric 4","Metric 5","Metric 6a","Metric 6b","Metric 7","Metric 8","Metric 9","Metric 10","Metric 11","Metric 12","Metric 13","Metric 14","Metric 15","Metric 16","Metric 17","Metric 18","Metric 19","Metric 20","Metric 21","Metric 22","Metric 23","Metric 24","Metric 25","Metric 26","Metric 27"]
["Weights",0.03,0.03,0.03,0.03,0.04,1.4999999999999999E-2,1.4999999999999999E-2,0.03,0.02,0.02,0.02,0.02,0.03,0.09,0.04,0.04,0.05,0.05,0.03,0.03,0.05,0.04,0.04,0.05,0.05,0.04,0.04,0.03]
[]
[null,"Unweighted"]
["Project",null,null,null,null,null,null,null,null,null,null,null,null,null,null,null,null,null,null,null,null,null,null,null,null,null,null,null,null,"Unweighted total",null,"Unweighted total","management","status","ecol_proc","integration","rigor"]
[{"$f":"A2","v":1},{"$f":"valueE(B2,'Utility Functions'!$B$3,'Utility Functions'!$B$4,'Utility Functions'!$B$5,'Utility Functions'!$B$6)","v":0.83470237647280454},{"$f":"valueE(C2,'Utility Functions'!$D$3,'Utility Functions'!$D$4,'Utility Functions'!$D$5,'Utility Functions'!$D$6)","v":0.46475967153745396},{"$f":"valuePL(D2,'Utility Functions'!$E$3:$E$5,'Utility Functions'!$F$3:$F$5)","v":1},{"$f":"valuePL(E2,'Utility Functions'!$G$3:$G$5,'Utility Functions'!$H$3:$H$5)","v":1},{"$f":"valuePL(F2,'Utility Functions'!$I$3:$I$4,'Utility Functions'!$J$3:$J$5)","v":0},{"$f":"valueE(G2,'Utility Functions'!$L$3,'Utility Functions'!$L$4,'Utility Functions'!$L$5,'Utility Functions'!$L$6)","v":1},{"$f":"valueE(H2,'Utility Functions'!$N$3,'Utility Functions'!$N$4,'Utility Functions'!$N$5,'Utility Functions'!$N$6)","v":1},{"$f":"valuePL(I2,'Utility Functions'!$O$3:$O$6,'Utility Functions'!$P$3:$P$6)","v":0.91818181818181821},{"$f":"valuePL(J2,'Utility Functions'!$Q$3:$Q$6,'Utility Functions'!$R$3:$R$6)","v":0.1},{"$f":"valuePL(K2,'Utility Functions'!$S$3:$S$7,'Utility Functions'!$T$3:$T$7)","v":0},{"$f":"valueE(L2,'Utility Functions'!$V$3,'Utility Functions'!$V$4,'Utility Functions'!$V$5,'Utility Functions'!$V$6)","v":0},{"$f":"valuePL(M2,'Utility Functions'!$W$3:$W$6,'Utility Functions'!$X$3:$X$6)","v":0},{"$f":"valueE(N2,'Utility Functions'!$Z$3,'Utility Functions'!$Z$4,'Utility Functions'!$Z$5,'Utility Functions'!$Z$6)","v":0},{"$f":"valuePL(O2,'Utility Functions'!$AA$3:$AA$5,'Utility Functions'!$AB$3:$AB$5)","v":0},{"$f":"valuePL(P2,'Utility Functions'!$AC$3:$AC$7,'Utility Functions'!$AD$3:$AD$7)","v":1},{"$f":"valuePL(Q2,'Utility Functions'!$AE$3:$AE$6,'Utility Functions'!$AF$3:$AF$6)","v":0},{"$f":"valuePL(R2,'Utility Functions'!$AG$3:$AG$6,'Utility Functions'!$AH$3:$AH$6)","v":0.8},{"$f":"valuePL(S2,'Utility Functions'!$AI$3:$AI$6,'Utility Functions'!$AJ$3:$AJ$6)","v":1},{"$f":"valuePL(T2,'Utility Functions'!$AK$3:$AK$8,'Utility Functions'!$AL$3:$AL$8)","v":0},{"$f":"valuePL(U2,'Utility Functions'!$AM$3:$AM$5,'Utility Functions'!$AN$3:$AN$5)","v":0},{"$f":"valuePL(V2,'Utility Functions'!$AO$3:$AO$5,'Utility Functions'!$AP$3:$AP$5)","v":1},{"$f":"valuePL(W2,'Utility Functions'!$AQ$3:$AQ$6,'Utility Functions'!$AR$3:$AR$6)","v":1},{"$f":"valuePL(X2,'Utility Functions'!$AS$3:$AS$6,'Utility Functions'!$AT$3:$AT$6)","v":1},{"$f":"valuePL(Y2,'Utility Functions'!$AU$3:$AU$6,'Utility Functions'!$AV$3:$AV$6)","v":1},{"$f":"valuePL(Z2,'Utility Functions'!$AW$3:$AW$5,'Utility Functions'!$AX$3:$AX$5)","v":1},{"$f":"valuePL(AA2,'Utility Functions'!$AY$3:$AY$6,'Utility Functions'!$AZ$3:$AZ$6)","v":1},{"$f":"valuePL(AB2,'Utility Functions'!$BA$3:$BA$5,'Utility Functions'!$BB$3:$BB$5)","v":1},{"$f":"valuePL(AC2,'Utility Functions'!$BC$3:$BC$5,'Utility Functions'!$BD$3:$BD$5)","v":1},{"$f":"SUM(B46:AC46)","v":17.117643866192076},null,{"$f":"SUM(AG46:AK46)","v":17.117643866192076},{"$f":"SUM(B46:F46)","v":3.2994620480102586},{"$f":"SUM(G46:M46)","v":3.0181818181818181},{"$f":"SUM(N46:O46)","v":0},{"$f":"SUM(P46:U46)","v":2.8},{"$f":"SUM(V46:AC46)","v":8}]
[2,{"$f":"valueE(B3,'Utility Functions'!$B$3,'Utility Functions'!$B$4,'Utility Functions'!$B$5,'Utility Functions'!$B$6)","v":0.4511890475224023},{"$f":"valueE(C3,'Utility Functions'!$D$3,'Utility Functions'!$D$4,'Utility Functions'!$D$5,'Utility Functions'!$D$6)","v":0.94043675305359531},{"$f":"valuePL(D3,'Utility Functions'!$E$3:$E$5,'Utility Functions'!$F$3:$F$5)","v":0.5},{"$f":"valuePL(E3,'Utility Functions'!$G$3:$G$5,'Utility Functions'!$H$3:$H$5)","v":0},{"$f":"valuePL(F3,'Utility Functions'!$I$3:$I$4,'Utility Functions'!$J$3:$J$5)","v":0},{"$f":"valueE(G3,'Utility Functions'!$L$3,'Utility Functions'!$L$4,'Utility Functions'!$L$5,'Utility Functions'!$L$6)","v":0},{"$f":"valueE(H3,'Utility Functions'!$N$3,'Utility Functions'!$N$4,'Utility Functions'!$N$5,'Utility Functions'!$N$6)","v":0},{"$f":"valuePL(I3,'Utility Functions'!$O$3:$O$6,'Utility Functions'!$P$3:$P$6)","v":0},{"$f":"valuePL(J3,'Utility Functions'!$Q$3:$Q$6,'Utility Functions'!$R$3:$R$6)","v":0},{"$f":"valuePL(K3,'Utility Functions'!$S$3:$S$7,'Utility Functions'!$T$3:$T$7)","v":0},{"$f":"valueE(L3,'Utility Functions'!$V$3,'Utility Functions'!$V$4,'Utility Functions'!$V$5,'Utility Functions'!$V$6)","v":0},{"$f":"valuePL(M3,'Utility Functions'!$W$3:$W$6,'Utility Functions'!$X$3:$X$6)","v":0},{"$f":"valueE(N3,'Utility Functions'!$Z$3,'Utility Functions'!$Z$4,'Utility Functions'!$Z$5,'Utility Functions'!$Z$6)","v":0.5},{"$f":"valuePL(O3,'Utility Functions'!$AA$3:$AA$5,'Utility Functions'!$AB$3:$AB$5)","v":0.25},{"$f":"valuePL(P3,'Utility Functions'!$AC$3:$AC$7,'Utility Functions'!$AD$3:$AD$7)","v":0},{"$f":"valuePL(Q3,'Utility Functions'!$AE$3:$AE$6,'Utility Functions'!$AF$3:$AF$6)","v":0},{"$f":"valuePL(R3,'Utility Functions'!$AG$3:$AG$6,'Utility Functions'!$AH$3:$AH$6)","v":1},{"$f":"valuePL(S3,'Utility Functions'!$AI$3:$AI$6,'Utility Functions'!$AJ$3:$AJ$6)","v":1},{"$f":"valuePL(T3,'Utility Functions'!$AK$3:$AK$8,'Utility Functions'!$AL$3:$AL$8)","v":0},{"$f":"valuePL(U3,'Utility Functions'!$AM$3:$AM$5,'Utility Functions'!$AN$3:$AN$5)","v":0},{"$f":"valuePL(V3,'Utility Functions'!$AO$3:$AO$5,'Utility Functions'!$AP$3:$AP$5)","v":1},{"$f":"valuePL(W3,'Utility Functions'!$AQ$3:$AQ$6,'Utility Functions'!$AR$3:$AR$6)","v":1},{"$f":"valuePL(X3,'Utility Functions'!$AS$3:$AS$6,'Utility Functions'!$AT$3:$AT$6)","v":1},{"$f":"valuePL(Y3,'Utility Functions'!$AU$3:$AU$6,'Utility Functions'!$AV$3:$AV$6)","v":1},{"$f":"valuePL(Z3,'Utility Functions'!$AW$3:$AW$5,'Utility Functions'!$AX$3:$AX$5)","v":1},{"$f":"valuePL(AA3,'Utility Functions'!$AY$3:$AY$6,'Utility Functions'!$AZ$3:$AZ$6)","v":1},{"$f":"valuePL(AB3,'Utility Functions'!$BA$3:$BA$5,'Utility Functions'!$BB$3:$BB$5)","v":1},{"$f":"valuePL(AC3,'Utility Functions'!$BC$3:$BC$5,'Utility Functions'!$BD$3:$BD$5)","v":1},{"$f":"SUM(B47:AC47)","v":12.641625800575998},null,{"$f":"SUM(AG47:AK47)","v":12.641625800575998},{"$f":"SUM(B47:F47)","v":1.8916258005759976},{"$f":"SUM(G47:M47)","v":0},{"$f":"SUM(N47:O47)","v":0.75},{"$f":"SUM(P47:U47)","v":2},{"$f":"SUM(V47:AC47)","v":8}]
[3,{"$f":"valueE(B4,'Utility Functions'!$B$3,'Utility Functions'!$B$4,'Utility Functions'!$B$5,'Utility Functions'!$B$6)","v":0.79810469124896843},{"$f":"valueE(C4,'Utility Functions'!$D$3,'Utility Functions'!$D$4,'Utility Functions'!$D$5,'Utility Functions'!$D$6)","v":0.94043675305359531},{"$f":"valuePL(D4,'Utility Functions'!$E$3:$E$5,'Utility Functions'!$F$3:$F$5)","v":1},{"$f":"valuePL(E4,'Utility Functions'!$G$3:$G$5,'Utility Functions'!$H$3:$H$5)","v":0},{"$f":"valuePL(F4,'Utility Functions'!$I$3:$I$4,'Utility Functions'!$J$3:$J$5)","v":0},{"$f":"valueE(G4,'Utility Functions'!$L$3,'Utility Functions'!$L$4,'Utility Functions'!$L$5,'Utility Functions'!$L$6)","v":0},{"$f":"valueE(H4,'Utility Functions'!$N$3,'Utility Functions'!$N$4,'Utility Functions'!$N$5,'Utility Functions'!$N$6)","v":0},{"$f":"valuePL(I4,'Utility Functions'!$O$3:$O$6,'Utility Functions'!$P$3:$P$6)","v":0},{"$f":"valuePL(J4,'Utility Functions'!$Q$3:$Q$6,'Utility Functions'!$R$3:$R$6)","v":0},{"$f":"valuePL(K4,'Utility Functions'!$S$3:$S$7,'Utility Functions'!$T$3:$T$7)","v":0},{"$f":"valueE(L4,'Utility Functions'!$V$3,'Utility Functions'!$V$4,'Utility Functions'!$V$5,'Utility Functions'!$V$6)","v":0},{"$f":"valuePL(M4,'Utility Functions'!$W$3:$W$6,'Utility Functions'!$X$3:$X$6)","v":0},{"$f":"valueE(N4,'Utility Functions'!$Z$3,'Utility Functions'!$Z$4,'Utility Functions'!$Z$5,'Utility Functions'!$Z$6)","v":0.625},{"$f":"valuePL(O4,'Utility Functions'!$AA$3:$AA$5,'Utility Functions'!$AB$3:$AB$5)","v":0.25},{"$f":"valuePL(P4,'Utility Functions'!$AC$3:$AC$7,'Utility Functions'!$AD$3:$AD$7)","v":0},{"$f":"valuePL(Q4,'Utility Functions'!$AE$3:$AE$6,'Utility Functions'!$AF$3:$AF$6)","v":0.5},{"$f":"valuePL(R4,'Utility Functions'!$AG$3:$AG$6,'Utility Functions'!$AH$3:$AH$6)","v":0},{"$f":"valuePL(S4,'Utility Functions'!$AI$3:$AI$6,'Utility Functions'!$AJ$3:$AJ$6)","v":0},{"$f":"valuePL(T4,'Utility Functions'!$AK$3:$AK$8,'Utility Functions'!$AL$3:$AL$8)","v":0},{"$f":"valuePL(U4,'Utility Functions'!$AM$3:$AM$5,'Utility Functions'!$AN$3:$AN$5)","v":0.25},{"$f":"valuePL(V4,'Utility Functions'!$AO$3:$AO$5,'Utility Functions'!$AP$3:$AP$5)","v":1},{"$f":"valuePL(W4,'Utility Functions'!$AQ$3:$AQ$6,'Utility Functions'!$AR$3:$AR$6)","v":1},{"$f":"valuePL(X4,'Utility Functions'!$AS$3:$AS$6,'Utility Functions'!$AT$3:$AT$6)","v":1},{"$f":"valuePL(Y4,'Utility Functions'!$AU$3:$AU$6,'Utility Functions'!$AV$3:$AV$6)","v":1},{"$f":"valuePL(Z4,'Utility Functions'!$AW$3:$AW$5,'Utility Functions'!$AX$3:$AX$5)","v":1},{"$f":"valuePL(AA4,'Utility Functions'!$AY$3:$AY$6,'Utility Functions'!$AZ$3:$AZ$6)","v":0.2},{"$f":"valuePL(AB4,'Utility Functions'!$BA$3:$BA$5,'Utility Functions'!$BB$3:$BB$5)","v":1},{"$f":"valuePL(AC4,'Utility Functions'!$BC$3:$BC$5,'Utility Functions'!$BD$3:$BD$5)","v":1},11.563541444302563,null,11.563541444302565,2.7385414443025637,0,0.875,0.75,7.2]
[4,{"$f":"valueE(B5,'Utility Functions'!$B$3,'Utility Functions'!$B$4,'Utility Functions'!$B$5,'Utility Functions'!$B$6)","v":0.1812695215714665},{"$f":"valueE(C5,'Utility Functions'!$D$3,'Utility Functions'!$D$4,'Utility Functions'!$D$5,'Utility Functions'!$D$6)","v":0.46475967153745396},{"$f":"valuePL(D5,'Utility Functions'!$E$3:$E$5,'Utility Functions'!$F$3:$F$5)","v":1},{"$f":"valuePL(E5,'Utility Functions'!$G$3:$G$5,'Utility Functions'!$H$3:$H$5)","v":0},{"$f":"valuePL(F5,'Utility Functions'!$I$3:$I$4,'Utility Functions'!$J$3:$J$5)","v":0},{"$f":"valueE(G5,'Utility Functions'!$L$3,'Utility Functions'!$L$4,'Utility Functions'!$L$5,'Utility Functions'!$L$6)","v":0},{"$f":"valueE(H5,'Utility Functions'!$N$3,'Utility Functions'!$N$4,'Utility Functions'!$N$5,'Utility Functions'!$N$6)","v":0},{"$f":"valuePL(I5,'Utility Functions'!$O$3:$O$6,'Utility Functions'!$P$3:$P$6)","v":0},{"$f":"valuePL(J5,'Utility Functions'!$Q$3:$Q$6,'Utility Functions'!$R$3:$R$6)","v":0},{"$f":"valuePL(K5,'Utility Functions'!$S$3:$S$7,'Utility Functions'!$T$3:$T$7)","v":0},{"$f":"valueE(L5,'Utility Functions'!$V$3,'Utility Functions'!$V$4,'Utility Functions'!$V$5,'Utility Functions'!$V$6)","v":0},{"$f":"valuePL(M5,'Utility Functions'!$W$3:$W$6,'Utility Functions'!$X$3:$X$6)","v":0},{"$f":"valueE(N5,'Utility Functions'!$Z$3,'Utility Functions'!$Z$4,'Utility Functions'!$Z$5,'Utility Functions'!$Z$6)","v":0.5},{"$f":"valuePL(O5,'Utility Functions'!$AA$3:$AA$5,'Utility Functions'!$AB$3:$AB$5)","v":0.25},{"$f":"valuePL(P5,'Utility Functions'!$AC$3:$AC$7,'Utility Functions'!$AD$3:$AD$7)","v":0},{"$f":"valuePL(Q5,'Utility Functions'!$AE$3:$AE$6,'Utility Functions'!$AF$3:$AF$6)","v":0.1},{"$f":"valuePL(R5,'Utility Functions'!$AG$3:$AG$6,'Utility Functions'!$AH$3:$AH$6)","v":1},{"$f":"valuePL(S5,'Utility Functions'!$AI$3:$AI$6,'Utility Functions'!$AJ$3:$AJ$6)","v":1},{"$f":"valuePL(T5,'Utility Functions'!$AK$3:$AK$8,'Utility Functions'!$AL$3:$AL$8)","v":0.8},{"$f":"valuePL(U5,'Utility Functions'!$AM$3:$AM$5,'Utility Functions'!$AN$3:$AN$5)","v":0},{"$f":"valuePL(V5,'Utility Functions'!$AO$3:$AO$5,'Utility Functions'!$AP$3:$AP$5)","v":0.5},{"$f":"valuePL(W5,'Utility Functions'!$AQ$3:$AQ$6,'Utility Functions'!$AR$3:$AR$6)","v":1},{"$f":"valuePL(X5,'Utility Functions'!$AS$3:$AS$6,'Utility Functions'!$AT$3:$AT$6)","v":1},{"$f":"valuePL(Y5,'Utility Functions'!$AU$3:$AU$6,'Utility Functions'!$AV$3:$AV$6)","v":0.2},{"$f":"valuePL(Z5,'Utility Functions'!$AW$3:$AW$5,'Utility Functions'!$AX$3:$AX$5)","v":0},{"$f":"valuePL(AA5,'Utility Functions'!$AY$3:$AY$6,'Utility Functions'!$AZ$3:$AZ$6)","v":0},{"$f":"valuePL(AB5,'Utility Functions'!$BA$3:$BA$5,'Utility Functions'!$BB$3:$BB$5)","v":1},{"$f":"valuePL(AC5,'Utility Functions'!$BC$3:$BC$5,'Utility Functions'!$BD$3:$BD$5)","v":0.25},9.2460291931089209,null,9.2460291931089209,1.6460291931089204,0,0.75,2.9000000000000004,3.95]
[5,{"$f":"valueE(B6,'Utility Functions'!$B$3,'Utility Functions'!$B$4,'Utility Functions'!$B$5,'Utility Functions'!$B$6)","v":0.55067187023002029},{"$f":"valueE(C6,'Utility Functions'!$D$3,'Utility Functions'!$D$4,'Utility Functions'!$D$5,'Utility Functions'!$D$6)","v":0.26656514581460788},{"$f":"valuePL(D6,'Utility Functions'!$E$3:$E$5,'Utility Functions'!$F$3:$F$5)","v":1},{"$f":"valuePL(E6,'Utility Functions'!$G$3:$G$5,'Utility Functions'!$H$3:$H$5)","v":0},{"$f":"valuePL(F6,'Utility Functions'!$I$3:$I$4,'Utility Functions'!$J$3:$J$5)","v":0},{"$f":"valueE(G6,'Utility Functions'!$L$3,'Utility Functions'!$L$4,'Utility Functions'!$L$5,'Utility Functions'!$L$6)","v":0},{"$f":"valueE(H6,'Utility Functions'!$N$3,'Utility Functions'!$N$4,'Utility Functions'!$N$5,'Utility Functions'!$N$6)","v":0},{"$f":"valuePL(I6,'Utility Functions'!$O$3:$O$6,'Utility Functions'!$P$3:$P$6)","v":0.50909090909090915},{"$f":"valuePL(J6,'Utility Functions'!$Q$3:$Q$6,'Utility Functions'!$R$3:$R$6)","v":0.04},{"$f":"valuePL(K6,'Utility Functions'!$S$3:$S$7,'Utility Functions'!$T$3:$T$7)","v":0},{"$f":"valueE(L6,'Utility Functions'!$V$3,'Utility Functions'!$V$4,'Utility Functions'!$V$5,'Utility Functions'!$V$6)","v":0},{"$f":"valuePL(M6,'Utility Functions'!$W$3:$W$6,'Utility Functions'!$X$3:$X$6)","v":0},{"$f":"valueE(N6,'Utility Functions'!$Z$3,'Utility Functions'!$Z$4,'Utility Functions'!$Z$5,'Utility Functions'!$Z$6)","v":0},{"$f":"valuePL(O6,'Utility Functions'!$AA$3:$AA$5,'Utility Functions'!$AB$3:$AB$5)","v":0},{"$f":"valuePL(P6,'Utility Functions'!$AC$3:$AC$7,'Utility Functions'!$AD$3:$AD$7)","v":0},{"$f":"valuePL(Q6,'Utility Functions'!$AE$3:$AE$6,'Utility Functions'!$AF$3:$AF$6)","v":0.1},{"$f":"valuePL(R6,'Utility Functions'!$AG$3:$AG$6,'Utility Functions'!$AH$3:$AH$6)","v":1},{"$f":"valuePL(S6,'Utility Functions'!$AI$3:$AI$6,'Utility Functions'!$AJ$3:$AJ$6)","v":1},{"$f":"valuePL(T6,'Utility Functions'!$AK$3:$AK$8,'Utility Functions'!$AL$3:$AL$8)","v":0.8},{"$f":"valuePL(U6,'Utility Functions'!$AM$3:$AM$5,'Utility Functions'!$AN$3:$AN$5)","v":0.25},{"$f":"valuePL(V6,'Utility Functions'!$AO$3:$AO$5,'Utility Functions'!$AP$3:$AP$5)","v":0},{"$f":"valuePL(W6,'Utility Functions'!$AQ$3:$AQ$6,'Utility Functions'!$AR$3:$AR$6)","v":1},{"$f":"valuePL(X6,'Utility Functions'!$AS$3:$AS$6,'Utility Functions'!$AT$3:$AT$6)","v":1},{"$f":"valuePL(Y6,'Utility Functions'!$AU$3:$AU$6,'Utility Functions'!$AV$3:$AV$6)","v":0.8},{"$f":"valuePL(Z6,'Utility Functions'!$AW$3:$AW$5,'Utility Functions'!$AX$3:$AX$5)","v":0},{"$f":"valuePL(AA6,'Utility Functions'!$AY$3:$AY$6,'Utility Functions'!$AZ$3:$AZ$6)","v":0},{"$f":"valuePL(AB6,'Utility Functions'!$BA$3:$BA$5,'Utility Functions'!$BB$3:$BB$5)","v":1},{"$f":"valuePL(AC6,'Utility Functions'!$BC$3:$BC$5,'Utility Functions'!$BD$3:$BD$5)","v":0.25},9.5663279251355373,null,9.5663279251355391,1.8172370160446283,0.54909090909090918,0,3.1500000000000004,4.05]
[6,{"$f":"valueE(B7,'Utility Functions'!$B$3,'Utility Functions'!$B$4,'Utility Functions'!$B$5,'Utility Functions'!$B$6)","v":0.86466602685702687},{"$f":"valueE(C7,'Utility Functions'!$D$3,'Utility Functions'!$D$4,'Utility Functions'!$D$5,'Utility Functions'!$D$6)","v":6.1811002813601471E-3},{"$f":"valuePL(D7,'Utility Functions'!$E$3:$E$5,'Utility Functions'!$F$3:$F$5)","v":1},{"$f":"valuePL(E7,'Utility Functions'!$G$3:$G$5,'Utility Functions'!$H$3:$H$5)","v":0},{"$f":"valuePL(F7,'Utility Functions'!$I$3:$I$4,'Utility Functions'!$J$3:$J$5)","v":0},{"$f":"valueE(G7,'Utility Functions'!$L$3,'Utility Functions'!$L$4,'Utility Functions'!$L$5,'Utility Functions'!$L$6)","v":0},{"$f":"valueE(H7,'Utility Functions'!$N$3,'Utility Functions'!$N$4,'Utility Functions'!$N$5,'Utility Functions'!$N$6)","v":0},{"$f":"valuePL(I7,'Utility Functions'!$O$3:$O$6,'Utility Functions'!$P$3:$P$6)","v":0.04},{"$f":"valuePL(J7,'Utility Functions'!$Q$3:$Q$6,'Utility Functions'!$R$3:$R$6)","v":0.04},{"$f":"valuePL(K7,'Utility Functions'!$S$3:$S$7,'Utility Functions'!$T$3:$T$7)","v":0},{"$f":"valueE(L7,'Utility Functions'!$V$3,'Utility Functions'!$V$4,'Utility Functions'!$V$5,'Utility Functions'!$V$6)","v":0},{"$f":"valuePL(M7,'Utility Functions'!$W$3:$W$6,'Utility Functions'!$X$3:$X$6)","v":0},{"$f":"valueE(N7,'Utility Functions'!$Z$3,'Utility Functions'!$Z$4,'Utility Functions'!$Z$5,'Utility Functions'!$Z$6)","v":0},{"$f":"valuePL(O7,'Utility Functions'!$AA$3:$AA$5,'Utility Functions'!$AB$3:$AB$5)","v":0},{"$f":"valuePL(P7,'Utility Functions'!$AC$3:$AC$7,'Utility Functions'!$AD$3:$AD$7)","v":0},{"$f":"valuePL(Q7,'Utility Functions'!$AE$3:$AE$6,'Utility Functions'!$AF$3:$AF$6)","v":0.1},{"$f":"valuePL(R7,'Utility Functions'!$AG$3:$AG$6,'Utility Functions'!$AH$3:$AH$6)","v":0},{"$f":"valuePL(S7,'Utility Functions'!$AI$3:$AI$6,'Utility Functions'!$AJ$3:$AJ$6)","v":1},{"$f":"valuePL(T7,'Utility Functions'!$AK$3:$AK$8,'Utility Functions'!$AL$3:$AL$8)","v":0.6},{"$f":"valuePL(U7,'Utility Functions'!$AM$3:$AM$5,'Utility Functions'!$AN$3:$AN$5)","v":0},{"$f":"valuePL(V7,'Utility Functions'!$AO$3:$AO$5,'Utility Functions'!$AP$3:$AP$5)","v":0},{"$f":"valuePL(W7,'Utility Functions'!$AQ$3:$AQ$6,'Utility Functions'!$AR$3:$AR$6)","v":0},{"$f":"valuePL(X7,'Utility Functions'!$AS$3:$AS$6,'Utility Functions'!$AT$3:$AT$6)","v":1},{"$f":"valuePL(Y7,'Utility Functions'!$AU$3:$AU$6,'Utility Functions'!$AV$3:$AV$6)","v":0},{"$f":"valuePL(Z7,'Utility Functions'!$AW$3:$AW$5,'Utility Functions'!$AX$3:$AX$5)","v":0},{"$f":"valuePL(AA7,'Utility Functions'!$AY$3:$AY$6,'Utility Functions'!$AZ$3:$AZ$6)","v":0},{"$f":"valuePL(AB7,'Utility Functions'!$BA$3:$BA$5,'Utility Functions'!$BB$3:$BB$5)","v":1},{"$f":"valuePL(AC7,'Utility Functions'!$BC$3:$BC$5,'Utility Functions'!$BD$3:$BD$5)","v":0.25},5.9008471271383875,null,5.9008471271383875,1.8708471271383869,0.08,0,1.7000000000000002,2.25]
[7,{"$f":"valueE(B8,'Utility Functions'!$B$3,'Utility Functions'!$B$4,'Utility Functions'!$B$5,'Utility Functions'!$B$6)","v":0.99997108261728973},{"$f":"valueE(C8,'Utility Functions'!$D$3,'Utility Functions'!$D$4,'Utility Functions'!$D$5,'Utility Functions'!$D$6)","v":0.84744836833951609},{"$f":"valuePL(D8,'Utility Functions'!$E$3:$E$5,'Utility Functions'!$F$3:$F$5)","v":0},{"$f":"valuePL(E8,'Utility Functions'!$G$3:$G$5,'Utility Functions'!$H$3:$H$5)","v":1},{"$f":"valuePL(F8,'Utility Functions'!$I$3:$I$4,'Utility Functions'!$J$3:$J$5)","v":0},{"$f":"valueE(G8,'Utility Functions'!$L$3,'Utility Functions'!$L$4,'Utility Functions'!$L$5,'Utility Functions'!$L$6)","v":0},{"$f":"valueE(H8,'Utility Functions'!$N$3,'Utility Functions'!$N$4,'Utility Functions'!$N$5,'Utility Functions'!$N$6)","v":0},{"$f":"valuePL(I8,'Utility Functions'!$O$3:$O$6,'Utility Functions'!$P$3:$P$6)","v":1},{"$f":"valuePL(J8,'Utility Functions'!$Q$3:$Q$6,'Utility Functions'!$R$3:$R$6)","v":0.67272727272727273},{"$f":"valuePL(K8,'Utility Functions'!$S$3:$S$7,'Utility Functions'!$T$3:$T$7)","v":1},{"$f":"valueE(L8,'Utility Functions'!$V$3,'Utility Functions'!$V$4,'Utility Functions'!$V$5,'Utility Functions'!$V$6)","v":1},{"$f":"valuePL(M8,'Utility Functions'!$W$3:$W$6,'Utility Functions'!$X$3:$X$6)","v":0.67272727272727273},{"$f":"valueE(N8,'Utility Functions'!$Z$3,'Utility Functions'!$Z$4,'Utility Functions'!$Z$5,'Utility Functions'!$Z$6)","v":1},{"$f":"valuePL(O8,'Utility Functions'!$AA$3:$AA$5,'Utility Functions'!$AB$3:$AB$5)","v":0.25},{"$f":"valuePL(P8,'Utility Functions'!$AC$3:$AC$7,'Utility Functions'!$AD$3:$AD$7)","v":0},{"$f":"valuePL(Q8,'Utility Functions'!$AE$3:$AE$6,'Utility Functions'!$AF$3:$AF$6)","v":0},{"$f":"valuePL(R8,'Utility Functions'!$AG$3:$AG$6,'Utility Functions'!$AH$3:$AH$6)","v":1},{"$f":"valuePL(S8,'Utility Functions'!$AI$3:$AI$6,'Utility Functions'!$AJ$3:$AJ$6)","v":1},{"$f":"valuePL(T8,'Utility Functions'!$AK$3:$AK$8,'Utility Functions'!$AL$3:$AL$8)","v":0},{"$f":"valuePL(U8,'Utility Functions'!$AM$3:$AM$5,'Utility Functions'!$AN$3:$AN$5)","v":0},{"$f":"valuePL(V8,'Utility Functions'!$AO$3:$AO$5,'Utility Functions'!$AP$3:$AP$5)","v":1},{"$f":"valuePL(W8,'Utility Functions'!$AQ$3:$AQ$6,'Utility Functions'!$AR$3:$AR$6)","v":0},{"$f":"valuePL(X8,'Utility Functions'!$AS$3:$AS$6,'Utility Functions'!$AT$3:$AT$6)","v":0.2},{"$f":"valuePL(Y8,'Utility Functions'!$AU$3:$AU$6,'Utility Functions'!$AV$3:$AV$6)","v":1},{"$f":"valuePL(Z8,'Utility Functions'!$AW$3:$AW$5,'Utility Functions'!$AX$3:$AX$5)","v":1},{"$f":"valuePL(AA8,'Utility Functions'!$AY$3:$AY$6,'Utility Functions'!$AZ$3:$AZ$6)","v":0.89999999999999991},{"$f":"valuePL(AB8,'Utility Functions'!$BA$3:$BA$5,'Utility Functions'!$BB$3:$BB$5)","v":0},{"$f":"valuePL(AC8,'Utility Functions'!$BC$3:$BC$5,'Utility Functions'!$BD$3:$BD$5)","v":1},15.54287399641135,null,15.54287399641135,2.8474194509568056,4.3454545454545457,1.25,2,5.0999999999999996]
[8,{"$f":"valueE(B9,'Utility Functions'!$B$3,'Utility Functions'!$B$4,'Utility Functions'!$B$5,'Utility Functions'!$B$6)","v":0.4511890475224023},{"$f":"valueE(C9,'Utility Functions'!$D$3,'Utility Functions'!$D$4,'Utility Functions'!$D$5,'Utility Functions'!$D$6)","v":0.84744836833951609},{"$f":"valuePL(D9,'Utility Functions'!$E$3:$E$5,'Utility Functions'!$F$3:$F$5)","v":1},{"$f":"valuePL(E9,'Utility Functions'!$G$3:$G$5,'Utility Functions'!$H$3:$H$5)","v":0.5},{"$f":"valuePL(F9,'Utility Functions'!$I$3:$I$4,'Utility Functions'!$J$3:$J$5)","v":1},{"$f":"valueE(G9,'Utility Functions'!$L$3,'Utility Functions'!$L$4,'Utility Functions'!$L$5,'Utility Functions'!$L$6)","v":0},{"$f":"valueE(H9,'Utility Functions'!$N$3,'Utility Functions'!$N$4,'Utility Functions'!$N$5,'Utility Functions'!$N$6)","v":0},{"$f":"valuePL(I9,'Utility Functions'!$O$3:$O$6,'Utility Functions'!$P$3:$P$6)","v":5.6000000000000008E-2},{"$f":"valuePL(J9,'Utility Functions'!$Q$3:$Q$6,'Utility Functions'!$R$3:$R$6)","v":0.83636363636363631},{"$f":"valuePL(K9,'Utility Functions'!$S$3:$S$7,'Utility Functions'!$T$3:$T$7)","v":0},{"$f":"valueE(L9,'Utility Functions'!$V$3,'Utility Functions'!$V$4,'Utility Functions'!$V$5,'Utility Functions'!$V$6)","v":1},{"$f":"valuePL(M9,'Utility Functions'!$W$3:$W$6,'Utility Functions'!$X$3:$X$6)","v":0.83636363636363631},{"$f":"valueE(N9,'Utility Functions'!$Z$3,'Utility Functions'!$Z$4,'Utility Functions'!$Z$5,'Utility Functions'!$Z$6)","v":0},{"$f":"valuePL(O9,'Utility Functions'!$AA$3:$AA$5,'Utility Functions'!$AB$3:$AB$5)","v":0},{"$f":"valuePL(P9,'Utility Functions'!$AC$3:$AC$7,'Utility Functions'!$AD$3:$AD$7)","v":0},{"$f":"valuePL(Q9,'Utility Functions'!$AE$3:$AE$6,'Utility Functions'!$AF$3:$AF$6)","v":1},{"$f":"valuePL(R9,'Utility Functions'!$AG$3:$AG$6,'Utility Functions'!$AH$3:$AH$6)","v":0.2},{"$f":"valuePL(S9,'Utility Functions'!$AI$3:$AI$6,'Utility Functions'!$AJ$3:$AJ$6)","v":1},{"$f":"valuePL(T9,'Utility Functions'!$AK$3:$AK$8,'Utility Functions'!$AL$3:$AL$8)","v":0},{"$f":"valuePL(U9,'Utility Functions'!$AM$3:$AM$5,'Utility Functions'!$AN$3:$AN$5)","v":0},{"$f":"valuePL(V9,'Utility Functions'!$AO$3:$AO$5,'Utility Functions'!$AP$3:$AP$5)","v":1},{"$f":"valuePL(W9,'Utility Functions'!$AQ$3:$AQ$6,'Utility Functions'!$AR$3:$AR$6)","v":1},{"$f":"valuePL(X9,'Utility Functions'!$AS$3:$AS$6,'Utility Functions'!$AT$3:$AT$6)","v":1},{"$f":"valuePL(Y9,'Utility Functions'!$AU$3:$AU$6,'Utility Functions'!$AV$3:$AV$6)","v":1},{"$f":"valuePL(Z9,'Utility Functions'!$AW$3:$AW$5,'Utility Functions'!$AX$3:$AX$5)","v":1},{"$f":"valuePL(AA9,'Utility Functions'!$AY$3:$AY$6,'Utility Functions'!$AZ$3:$AZ$6)","v":0},{"$f":"valuePL(AB9,'Utility Functions'!$BA$3:$BA$5,'Utility Functions'!$BB$3:$BB$5)","v":0.25},{"$f":"valuePL(AC9,'Utility Functions'!$BC$3:$BC$5,'Utility Functions'!$BD$3:$BD$5)","v":0.25},14.227364688589191,null,14.227364688589191,3.7986374158619185,2.7287272727272729,0,2.2000000000000002,5.5]
[9,{"$f":"valueE(B10,'Utility Functions'!$B$3,'Utility Functions'!$B$4,'Utility Functions'!$B$5,'Utility Functions'!$B$6)","v":0.83470237647280454},{"$f":"valueE(C10,'Utility Functions'!$D$3,'Utility Functions'!$D$4,'Utility Functions'!$D$5,'Utility Functions'!$D$6)","v":0.78989979019422951},{"$f":"valuePL(D10,'Utility Functions'!$E$3:$E$5,'Utility Functions'!$F$3:$F$5)","v":1},{"$f":"valuePL(E10,'Utility Functions'!$G$3:$G$5,'Utility Functions'!$H$3:$H$5)","v":0.5},{"$f":"valuePL(F10,'Utility Functions'!$I$3:$I$4,'Utility Functions'!$J$3:$J$5)","v":0},{"$f":"valueE(G10,'Utility Functions'!$L$3,'Utility Functions'!$L$4,'Utility Functions'!$L$5,'Utility Functions'!$L$6)","v":0.37634408602150538},{"$f":"valueE(H10,'Utility Functions'!$N$3,'Utility Functions'!$N$4,'Utility Functions'!$N$5,'Utility Functions'!$N$6)","v":0.13282732447817835},{"$f":"valuePL(I10,'Utility Functions'!$O$3:$O$6,'Utility Functions'!$P$3:$P$6)","v":0},{"$f":"valuePL(J10,'Utility Functions'!$Q$3:$Q$6,'Utility Functions'!$R$3:$R$6)","v":0},{"$f":"valuePL(K10,'Utility Functions'!$S$3:$S$7,'Utility Functions'!$T$3:$T$7)","v":0},{"$f":"valueE(L10,'Utility Functions'!$V$3,'Utility Functions'!$V$4,'Utility Functions'!$V$5,'Utility Functions'!$V$6)","v":0},{"$f":"valuePL(M10,'Utility Functions'!$W$3:$W$6,'Utility Functions'!$X$3:$X$6)","v":0},{"$f":"valueE(N10,'Utility Functions'!$Z$3,'Utility Functions'!$Z$4,'Utility Functions'!$Z$5,'Utility Functions'!$Z$6)","v":0},{"$f":"valuePL(O10,'Utility Functions'!$AA$3:$AA$5,'Utility Functions'!$AB$3:$AB$5)","v":0},{"$f":"valuePL(P10,'Utility Functions'!$AC$3:$AC$7,'Utility Functions'!$AD$3:$AD$7)","v":0.75},{"$f":"valuePL(Q10,'Utility Functions'!$AE$3:$AE$6,'Utility Functions'!$AF$3:$AF$6)","v":0},{"$f":"valuePL(R10,'Utility Functions'!$AG$3:$AG$6,'Utility Functions'!$AH$3:$AH$6)","v":1},{"$f":"valuePL(S10,'Utility Functions'!$AI$3:$AI$6,'Utility Functions'!$AJ$3:$AJ$6)","v":0.66},{"$f":"valuePL(T10,'Utility Functions'!$AK$3:$AK$8,'Utility Functions'!$AL$3:$AL$8)","v":0.2},{"$f":"valuePL(U10,'Utility Functions'!$AM$3:$AM$5,'Utility Functions'!$AN$3:$AN$5)","v":0},{"$f":"valuePL(V10,'Utility Functions'!$AO$3:$AO$5,'Utility Functions'!$AP$3:$AP$5)","v":1},{"$f":"valuePL(W10,'Utility Functions'!$AQ$3:$AQ$6,'Utility Functions'!$AR$3:$AR$6)","v":1},{"$f":"valuePL(X10,'Utility Functions'!$AS$3:$AS$6,'Utility Functions'!$AT$3:$AT$6)","v":1},{"$f":"valuePL(Y10,'Utility Functions'!$AU$3:$AU$6,'Utility Functions'!$AV$3:$AV$6)","v":0.2},{"$f":"valuePL(Z10,'Utility Functions'!$AW$3:$AW$5,'Utility Functions'!$AX$3:$AX$5)","v":1},{"$f":"valuePL(AA10,'Utility Functions'!$AY$3:$AY$6,'Utility Functions'!$AZ$3:$AZ$6)","v":0.2},{"$f":"valuePL(AB10,'Utility Functions'!$BA$3:$BA$5,'Utility Functions'!$BB$3:$BB$5)","v":0.25},{"$f":"valuePL(AC10,'Utility Functions'!$BC$3:$BC$5,'Utility Functions'!$BD$3:$BD$5)","v":1},11.893773577166716,null,11.893773577166719,3.1246021666670343,0.50917141049968373,0,2.6100000000000003,5.65]
[10,{"$f":"valueE(B11,'Utility Functions'!$B$3,'Utility Functions'!$B$4,'Utility Functions'!$B$5,'Utility Functions'!$B$6)","v":0},{"$f":"valueE(C11,'Utility Functions'!$D$3,'Utility Functions'!$D$4,'Utility Functions'!$D$5,'Utility Functions'!$D$6)","v":0},{"$f":"valuePL(D11,'Utility Functions'!$E$3:$E$5,'Utility Functions'!$F$3:$F$5)","v":0},{"$f":"valuePL(E11,'Utility Functions'!$G$3:$G$5,'Utility Functions'!$H$3:$H$5)","v":0},{"$f":"valuePL(F11,'Utility Functions'!$I$3:$I$4,'Utility Functions'!$J$3:$J$5)","v":0},{"$f":"valueE(G11,'Utility Functions'!$L$3,'Utility Functions'!$L$4,'Utility Functions'!$L$5,'Utility Functions'!$L$6)","v":0},{"$f":"valueE(H11,'Utility Functions'!$N$3,'Utility Functions'!$N$4,'Utility Functions'!$N$5,'Utility Functions'!$N$6)","v":0},{"$f":"valuePL(I11,'Utility Functions'!$O$3:$O$6,'Utility Functions'!$P$3:$P$6)","v":0},{"$f":"valuePL(J11,'Utility Functions'!$Q$3:$Q$6,'Utility Functions'!$R$3:$R$6)","v":0},{"$f":"valuePL(K11,'Utility Functions'!$S$3:$S$7,'Utility Functions'!$T$3:$T$7)","v":0},{"$f":"valueE(L11,'Utility Functions'!$V$3,'Utility Functions'!$V$4,'Utility Functions'!$V$5,'Utility Functions'!$V$6)","v":0},{"$f":"valuePL(M11,'Utility Functions'!$W$3:$W$6,'Utility Functions'!$X$3:$X$6)","v":0},{"$f":"valueE(N11,'Utility Functions'!$Z$3,'Utility Functions'!$Z$4,'Utility Functions'!$Z$5,'Utility Functions'!$Z$6)","v":0.75},{"$f":"valuePL(O11,'Utility Functions'!$AA$3:$AA$5,'Utility Functions'!$AB$3:$AB$5)","v":1},{"$f":"valuePL(P11,'Utility Functions'!$AC$3:$AC$7,'Utility Functions'!$AD$3:$AD$7)","v":0.25},{"$f":"valuePL(Q11,'Utility Functions'!$AE$3:$AE$6,'Utility Functions'!$AF$3:$AF$6)","v":0.5},{"$f":"valuePL(R11,'Utility Functions'!$AG$3:$AG$6,'Utility Functions'!$AH$3:$AH$6)","v":1},{"$f":"valuePL(S11,'Utility Functions'!$AI$3:$AI$6,'Utility Functions'!$AJ$3:$AJ$6)","v":0.66},{"$f":"valuePL(T11,'Utility Functions'!$AK$3:$AK$8,'Utility Functions'!$AL$3:$AL$8)","v":0.4},{"$f":"valuePL(U11,'Utility Functions'!$AM$3:$AM$5,'Utility Functions'!$AN$3:$AN$5)","v":0},{"$f":"valuePL(V11,'Utility Functions'!$AO$3:$AO$5,'Utility Functions'!$AP$3:$AP$5)","v":0},{"$f":"valuePL(W11,'Utility Functions'!$AQ$3:$AQ$6,'Utility Functions'!$AR$3:$AR$6)","v":0.75},{"$f":"valuePL(X11,'Utility Functions'!$AS$3:$AS$6,'Utility Functions'!$AT$3:$AT$6)","v":1},{"$f":"valuePL(Y11,'Utility Functions'!$AU$3:$AU$6,'Utility Functions'!$AV$3:$AV$6)","v":1},{"$f":"valuePL(Z11,'Utility Functions'!$AW$3:$AW$5,'Utility Functions'!$AX$3:$AX$5)","v":0.5},{"$f":"valuePL(AA11,'Utility Functions'!$AY$3:$AY$6,'Utility Functions'!$AZ$3:$AZ$6)","v":0.2},{"$f":"valuePL(AB11,'Utility Functions'!$BA$3:$BA$5,'Utility Functions'!$BB$3:$BB$5)","v":0},{"$f":"valuePL(AC11,'Utility Functions'!$BC$3:$BC$5,'Utility Functions'!$BD$3:$BD$5)","v":1},9.01,null,9.0100000000000016,0,0,1.75,2.81,4.45]
[11,{"$f":"valueE(B12,'Utility Functions'!$B$3,'Utility Functions'!$B$4,'Utility Functions'!$B$5,'Utility Functions'!$B$6)","v":0},{"$f":"valueE(C12,'Utility Functions'!$D$3,'Utility Functions'!$D$4,'Utility Functions'!$D$5,'Utility Functions'!$D$6)","v":0},{"$f":"valuePL(D12,'Utility Functions'!$E$3:$E$5,'Utility Functions'!$F$3:$F$5)","v":0},{"$f":"valuePL(E12,'Utility Functions'!$G$3:$G$5,'Utility Functions'!$H$3:$H$5)","v":0},{"$f":"valuePL(F12,'Utility Functions'!$I$3:$I$4,'Utility Functions'!$J$3:$J$5)","v":0},{"$f":"valueE(G12,'Utility Functions'!$L$3,'Utility Functions'!$L$4,'Utility Functions'!$L$5,'Utility Functions'!$L$6)","v":3.2258064516129031E-2},{"$f":"valueE(H12,'Utility Functions'!$N$3,'Utility Functions'!$N$4,'Utility Functions'!$N$5,'Utility Functions'!$N$6)","v":9.6774193548387094E-2},{"$f":"valuePL(I12,'Utility Functions'!$O$3:$O$6,'Utility Functions'!$P$3:$P$6)","v":0.54181818181818187},{"$f":"valuePL(J12,'Utility Functions'!$Q$3:$Q$6,'Utility Functions'!$R$3:$R$6)","v":0.91818181818181821},{"$f":"valuePL(K12,'Utility Functions'!$S$3:$S$7,'Utility Functions'!$T$3:$T$7)","v":0.54181818181818187},{"$f":"valueE(L12,'Utility Functions'!$V$3,'Utility Functions'!$V$4,'Utility Functions'!$V$5,'Utility Functions'!$V$6)","v":1},{"$f":"valuePL(M12,'Utility Functions'!$W$3:$W$6,'Utility Functions'!$X$3:$X$6)","v":0.91818181818181821},{"$f":"valueE(N12,'Utility Functions'!$Z$3,'Utility Functions'!$Z$4,'Utility Functions'!$Z$5,'Utility Functions'!$Z$6)","v":0.375},{"$f":"valuePL(O12,'Utility Functions'!$AA$3:$AA$5,'Utility Functions'!$AB$3:$AB$5)","v":0.25},{"$f":"valuePL(P12,'Utility Functions'!$AC$3:$AC$7,'Utility Functions'!$AD$3:$AD$7)","v":0.25},{"$f":"valuePL(Q12,'Utility Functions'!$AE$3:$AE$6,'Utility Functions'!$AF$3:$AF$6)","v":0},{"$f":"valuePL(R12,'Utility Functions'!$AG$3:$AG$6,'Utility Functions'!$AH$3:$AH$6)","v":1},{"$f":"valuePL(S12,'Utility Functions'!$AI$3:$AI$6,'Utility Functions'!$AJ$3:$AJ$6)","v":1},{"$f":"valuePL(T12,'Utility Functions'!$AK$3:$AK$8,'Utility Functions'!$AL$3:$AL$8)","v":0.4},{"$f":"valuePL(U12,'Utility Functions'!$AM$3:$AM$5,'Utility Functions'!$AN$3:$AN$5)","v":1},{"$f":"valuePL(V12,'Utility Functions'!$AO$3:$AO$5,'Utility Functions'!$AP$3:$AP$5)","v":1},{"$f":"valuePL(W12,'Utility Functions'!$AQ$3:$AQ$6,'Utility Functions'!$AR$3:$AR$6)","v":0.2},{"$f":"valuePL(X12,'Utility Functions'!$AS$3:$AS$6,'Utility Functions'!$AT$3:$AT$6)","v":1},{"$f":"valuePL(Y12,'Utility Functions'!$AU$3:$AU$6,'Utility Functions'!$AV$3:$AV$6)","v":1},{"$f":"valuePL(Z12,'Utility Functions'!$AW$3:$AW$5,'Utility Functions'!$AX$3:$AX$5)","v":0.5},{"$f":"valuePL(AA12,'Utility Functions'!$AY$3:$AY$6,'Utility Functions'!$AZ$3:$AZ$6)","v":0.89999999999999991},{"$f":"valuePL(AB12,'Utility Functions'!$BA$3:$BA$5,'Utility Functions'!$BB$3:$BB$5)","v":0},{"$f":"valuePL(AC12,'Utility Functions'!$BC$3:$BC$5,'Utility Functions'!$BD$3:$BD$5)","v":0.25},13.174032258064516,null,13.174032258064516,0,4.0490322580645159,0.625,3.65,4.8499999999999996]
[12,{"$f":"valueE(B13,'Utility Functions'!$B$3,'Utility Functions'!$B$4,'Utility Functions'!$B$5,'Utility Functions'!$B$6)","v":0.32968045347775865},{"$f":"valueE(C13,'Utility Functions'!$D$3,'Utility Functions'!$D$4,'Utility Functions'!$D$5,'Utility Functions'!$D$6)","v":0.78989979019422951},{"$f":"valuePL(D13,'Utility Functions'!$E$3:$E$5,'Utility Functions'!$F$3:$F$5)","v":1},{"$f":"valuePL(E13,'Utility Functions'!$G$3:$G$5,'Utility Functions'!$H$3:$H$5)","v":0.5},{"$f":"valuePL(F13,'Utility Functions'!$I$3:$I$4,'Utility Functions'!$J$3:$J$5)","v":0},{"$f":"valueE(G13,'Utility Functions'!$L$3,'Utility Functions'!$L$4,'Utility Functions'!$L$5,'Utility Functions'!$L$6)","v":0},{"$f":"valueE(H13,'Utility Functions'!$N$3,'Utility Functions'!$N$4,'Utility Functions'!$N$5,'Utility Functions'!$N$6)","v":0},{"$f":"valuePL(I13,'Utility Functions'!$O$3:$O$6,'Utility Functions'!$P$3:$P$6)","v":0},{"$f":"valuePL(J13,'Utility Functions'!$Q$3:$Q$6,'Utility Functions'!$R$3:$R$6)","v":0},{"$f":"valuePL(K13,'Utility Functions'!$S$3:$S$7,'Utility Functions'!$T$3:$T$7)","v":0},{"$f":"valueE(L13,'Utility Functions'!$V$3,'Utility Functions'!$V$4,'Utility Functions'!$V$5,'Utility Functions'!$V$6)","v":0},{"$f":"valuePL(M13,'Utility Functions'!$W$3:$W$6,'Utility Functions'!$X$3:$X$6)","v":0},{"$f":"valueE(N13,'Utility Functions'!$Z$3,'Utility Functions'!$Z$4,'Utility Functions'!$Z$5,'Utility Functions'!$Z$6)","v":0},{"$f":"valuePL(O13,'Utility Functions'!$AA$3:$AA$5,'Utility Functions'!$AB$3:$AB$5)","v":0},{"$f":"valuePL(P13,'Utility Functions'!$AC$3:$AC$7,'Utility Functions'!$AD$3:$AD$7)","v":0},{"$f":"valuePL(Q13,'Utility Functions'!$AE$3:$AE$6,'Utility Functions'!$AF$3:$AF$6)","v":0.1},{"$f":"valuePL(R13,'Utility Functions'!$AG$3:$AG$6,'Utility Functions'!$AH$3:$AH$6)","v":1},{"$f":"valuePL(S13,'Utility Functions'!$AI$3:$AI$6,'Utility Functions'!$AJ$3:$AJ$6)","v":1},{"$f":"valuePL(T13,'Utility Functions'!$AK$3:$AK$8,'Utility Functions'!$AL$3:$AL$8)","v":0.6},{"$f":"valuePL(U13,'Utility Functions'!$AM$3:$AM$5,'Utility Functions'!$AN$3:$AN$5)","v":0},{"$f":"valuePL(V13,'Utility Functions'!$AO$3:$AO$5,'Utility Functions'!$AP$3:$AP$5)","v":0.5},{"$f":"valuePL(W13,'Utility Functions'!$AQ$3:$AQ$6,'Utility Functions'!$AR$3:$AR$6)","v":0.2},{"$f":"valuePL(X13,'Utility Functions'!$AS$3:$AS$6,'Utility Functions'!$AT$3:$AT$6)","v":1},{"$f":"valuePL(Y13,'Utility Functions'!$AU$3:$AU$6,'Utility Functions'!$AV$3:$AV$6)","v":0.2},{"$f":"valuePL(Z13,'Utility Functions'!$AW$3:$AW$5,'Utility Functions'!$AX$3:$AX$5)","v":1},{"$f":"valuePL(AA13,'Utility Functions'!$AY$3:$AY$6,'Utility Functions'!$AZ$3:$AZ$6)","v":0.2},{"$f":"valuePL(AB13,'Utility Functions'!$BA$3:$BA$5,'Utility Functions'!$BB$3:$BB$5)","v":1},{"$f":"valuePL(AC13,'Utility Functions'!$BC$3:$BC$5,'Utility Functions'!$BD$3:$BD$5)","v":0},9.4195802436719873,null,9.4195802436719873,2.6195802436719884,0,0,2.7,4.0999999999999996]
[13,{"$f":"valueE(B14,'Utility Functions'!$B$3,'Utility Functions'!$B$4,'Utility Functions'!$B$5,'Utility Functions'!$B$6)","v":0},{"$f":"valueE(C14,'Utility Functions'!$D$3,'Utility Functions'!$D$4,'Utility Functions'!$D$5,'Utility Functions'!$D$6)","v":0},{"$f":"valuePL(D14,'Utility Functions'!$E$3:$E$5,'Utility Functions'!$F$3:$F$5)","v":0},{"$f":"valuePL(E14,'Utility Functions'!$G$3:$G$5,'Utility Functions'!$H$3:$H$5)","v":0},{"$f":"valuePL(F14,'Utility Functions'!$I$3:$I$4,'Utility Functions'!$J$3:$J$5)","v":0},{"$f":"valueE(G14,'Utility Functions'!$L$3,'Utility Functions'!$L$4,'Utility Functions'!$L$5,'Utility Functions'!$L$6)","v":0},{"$f":"valueE(H14,'Utility Functions'!$N$3,'Utility Functions'!$N$4,'Utility Functions'!$N$5,'Utility Functions'!$N$6)","v":1.1385199240986717E-2},{"$f":"valuePL(I14,'Utility Functions'!$O$3:$O$6,'Utility Functions'!$P$3:$P$6)","v":0.3290909090909091},{"$f":"valuePL(J14,'Utility Functions'!$Q$3:$Q$6,'Utility Functions'!$R$3:$R$6)","v":0.04},{"$f":"valuePL(K14,'Utility Functions'!$S$3:$S$7,'Utility Functions'!$T$3:$T$7)","v":0.3290909090909091},{"$f":"valueE(L14,'Utility Functions'!$V$3,'Utility Functions'!$V$4,'Utility Functions'!$V$5,'Utility Functions'!$V$6)","v":1},{"$f":"valuePL(M14,'Utility Functions'!$W$3:$W$6,'Utility Functions'!$X$3:$X$6)","v":0.04},{"$f":"valueE(N14,'Utility Functions'!$Z$3,'Utility Functions'!$Z$4,'Utility Functions'!$Z$5,'Utility Functions'!$Z$6)","v":0.875},{"$f":"valuePL(O14,'Utility Functions'!$AA$3:$AA$5,'Utility Functions'!$AB$3:$AB$5)","v":0.25},{"$f":"valuePL(P14,'Utility Functions'!$AC$3:$AC$7,'Utility Functions'!$AD$3:$AD$7)","v":0.25},{"$f":"valuePL(Q14,'Utility Functions'!$AE$3:$AE$6,'Utility Functions'!$AF$3:$AF$6)","v":0},{"$f":"valuePL(R14,'Utility Functions'!$AG$3:$AG$6,'Utility Functions'!$AH$3:$AH$6)","v":1},{"$f":"valuePL(S14,'Utility Functions'!$AI$3:$AI$6,'Utility Functions'!$AJ$3:$AJ$6)","v":1},{"$f":"valuePL(T14,'Utility Functions'!$AK$3:$AK$8,'Utility Functions'!$AL$3:$AL$8)","v":0},{"$f":"valuePL(U14,'Utility Functions'!$AM$3:$AM$5,'Utility Functions'!$AN$3:$AN$5)","v":0},{"$f":"valuePL(V14,'Utility Functions'!$AO$3:$AO$5,'Utility Functions'!$AP$3:$AP$5)","v":0.5},{"$f":"valuePL(W14,'Utility Functions'!$AQ$3:$AQ$6,'Utility Functions'!$AR$3:$AR$6)","v":0},{"$f":"valuePL(X14,'Utility Functions'!$AS$3:$AS$6,'Utility Functions'!$AT$3:$AT$6)","v":0.2},{"$f":"valuePL(Y14,'Utility Functions'!$AU$3:$AU$6,'Utility Functions'!$AV$3:$AV$6)","v":0},{"$f":"valuePL(Z14,'Utility Functions'!$AW$3:$AW$5,'Utility Functions'!$AX$3:$AX$5)","v":1},{"$f":"valuePL(AA14,'Utility Functions'!$AY$3:$AY$6,'Utility Functions'!$AZ$3:$AZ$6)","v":0.2},{"$f":"valuePL(AB14,'Utility Functions'!$BA$3:$BA$5,'Utility Functions'!$BB$3:$BB$5)","v":0.25},{"$f":"valuePL(AC14,'Utility Functions'!$BC$3:$BC$5,'Utility Functions'!$BD$3:$BD$5)","v":0.25},7.5245670174228056,null,7.5245670174228056,0,1.7495670174228048,1.125,2.25,2.4]
[14,{"$f":"valueE(B15,'Utility Functions'!$B$3,'Utility Functions'!$B$4,'Utility Functions'!$B$5,'Utility Functions'!$B$6)","v":0.69880684688087746},{"$f":"valueE(C15,'Utility Functions'!$D$3,'Utility Functions'!$D$4,'Utility Functions'!$D$5,'Utility Functions'!$D$6)","v":0.78989979019422951},{"$f":"valuePL(D15,'Utility Functions'!$E$3:$E$5,'Utility Functions'!$F$3:$F$5)","v":0.5},{"$f":"valuePL(E15,'Utility Functions'!$G$3:$G$5,'Utility Functions'!$H$3:$H$5)","v":0.5},{"$f":"valuePL(F15,'Utility Functions'!$I$3:$I$4,'Utility Functions'!$J$3:$J$5)","v":0},{"$f":"valueE(G15,'Utility Functions'!$L$3,'Utility Functions'!$L$4,'Utility Functions'!$L$5,'Utility Functions'!$L$6)","v":0},{"$f":"valueE(H15,'Utility Functions'!$N$3,'Utility Functions'!$N$4,'Utility Functions'!$N$5,'Utility Functions'!$N$6)","v":0},{"$f":"valuePL(I15,'Utility Functions'!$O$3:$O$6,'Utility Functions'!$P$3:$P$6)","v":0},{"$f":"valuePL(J15,'Utility Functions'!$Q$3:$Q$6,'Utility Functions'!$R$3:$R$6)","v":0},{"$f":"valuePL(K15,'Utility Functions'!$S$3:$S$7,'Utility Functions'!$T$3:$T$7)","v":0},{"$f":"valueE(L15,'Utility Functions'!$V$3,'Utility Functions'!$V$4,'Utility Functions'!$V$5,'Utility Functions'!$V$6)","v":0},{"$f":"valuePL(M15,'Utility Functions'!$W$3:$W$6,'Utility Functions'!$X$3:$X$6)","v":0},{"$f":"valueE(N15,'Utility Functions'!$Z$3,'Utility Functions'!$Z$4,'Utility Functions'!$Z$5,'Utility Functions'!$Z$6)","v":0.75},{"$f":"valuePL(O15,'Utility Functions'!$AA$3:$AA$5,'Utility Functions'!$AB$3:$AB$5)","v":0.25},{"$f":"valuePL(P15,'Utility Functions'!$AC$3:$AC$7,'Utility Functions'!$AD$3:$AD$7)","v":0.25},{"$f":"valuePL(Q15,'Utility Functions'!$AE$3:$AE$6,'Utility Functions'!$AF$3:$AF$6)","v":0},{"$f":"valuePL(R15,'Utility Functions'!$AG$3:$AG$6,'Utility Functions'!$AH$3:$AH$6)","v":1},{"$f":"valuePL(S15,'Utility Functions'!$AI$3:$AI$6,'Utility Functions'!$AJ$3:$AJ$6)","v":1},{"$f":"valuePL(T15,'Utility Functions'!$AK$3:$AK$8,'Utility Functions'!$AL$3:$AL$8)","v":0},{"$f":"valuePL(U15,'Utility Functions'!$AM$3:$AM$5,'Utility Functions'!$AN$3:$AN$5)","v":0},{"$f":"valuePL(V15,'Utility Functions'!$AO$3:$AO$5,'Utility Functions'!$AP$3:$AP$5)","v":0.5},{"$f":"valuePL(W15,'Utility Functions'!$AQ$3:$AQ$6,'Utility Functions'!$AR$3:$AR$6)","v":0.2},{"$f":"valuePL(X15,'Utility Functions'!$AS$3:$AS$6,'Utility Functions'!$AT$3:$AT$6)","v":1},{"$f":"valuePL(Y15,'Utility Functions'!$AU$3:$AU$6,'Utility Functions'!$AV$3:$AV$6)","v":1},{"$f":"valuePL(Z15,'Utility Functions'!$AW$3:$AW$5,'Utility Functions'!$AX$3:$AX$5)","v":0.5},{"$f":"valuePL(AA15,'Utility Functions'!$AY$3:$AY$6,'Utility Functions'!$AZ$3:$AZ$6)","v":0.89999999999999991},{"$f":"valuePL(AB15,'Utility Functions'!$BA$3:$BA$5,'Utility Functions'!$BB$3:$BB$5)","v":0.25},{"$f":"valuePL(AC15,'Utility Functions'!$BC$3:$BC$5,'Utility Functions'!$BD$3:$BD$5)","v":0.25},10.338706637075108,null,10.338706637075106,2.488706637075107,0,1,2.25,4.5999999999999996]
[15,{"$f":"valueE(B16,'Utility Functions'!$B$3,'Utility Functions'!$B$4,'Utility Functions'!$B$5,'Utility Functions'!$B$6)","v":0.98994966417177144},{"$f":"valueE(C16,'Utility Functions'!$D$3,'Utility Functions'!$D$4,'Utility Functions'!$D$5,'Utility Functions'!$D$6)","v":0.71352759724260828},{"$f":"valuePL(D16,'Utility Functions'!$E$3:$E$5,'Utility Functions'!$F$3:$F$5)","v":1},{"$f":"valuePL(E16,'Utility Functions'!$G$3:$G$5,'Utility Functions'!$H$3:$H$5)","v":0.5},{"$f":"valuePL(F16,'Utility Functions'!$I$3:$I$4,'Utility Functions'!$J$3:$J$5)","v":1},{"$f":"valueE(G16,'Utility Functions'!$L$3,'Utility Functions'!$L$4,'Utility Functions'!$L$5,'Utility Functions'!$L$6)","v":0},{"$f":"valueE(H16,'Utility Functions'!$N$3,'Utility Functions'!$N$4,'Utility Functions'!$N$5,'Utility Functions'!$N$6)","v":0},{"$f":"valuePL(I16,'Utility Functions'!$O$3:$O$6,'Utility Functions'!$P$3:$P$6)","v":9.2000000000000012E-2},{"$f":"valuePL(J16,'Utility Functions'!$Q$3:$Q$6,'Utility Functions'!$R$3:$R$6)","v":6.0000000000000012E-2},{"$f":"valuePL(K16,'Utility Functions'!$S$3:$S$7,'Utility Functions'!$T$3:$T$7)","v":6.0000000000000012E-2},{"$f":"valueE(L16,'Utility Functions'!$V$3,'Utility Functions'!$V$4,'Utility Functions'!$V$5,'Utility Functions'!$V$6)","v":1},{"$f":"valuePL(M16,'Utility Functions'!$W$3:$W$6,'Utility Functions'!$X$3:$X$6)","v":6.0000000000000012E-2},{"$f":"valueE(N16,'Utility Functions'!$Z$3,'Utility Functions'!$Z$4,'Utility Functions'!$Z$5,'Utility Functions'!$Z$6)","v":0.125},{"$f":"valuePL(O16,'Utility Functions'!$AA$3:$AA$5,'Utility Functions'!$AB$3:$AB$5)","v":1},{"$f":"valuePL(P16,'Utility Functions'!$AC$3:$AC$7,'Utility Functions'!$AD$3:$AD$7)","v":0.5},{"$f":"valuePL(Q16,'Utility Functions'!$AE$3:$AE$6,'Utility Functions'!$AF$3:$AF$6)","v":0},{"$f":"valuePL(R16,'Utility Functions'!$AG$3:$AG$6,'Utility Functions'!$AH$3:$AH$6)","v":0.8},{"$f":"valuePL(S16,'Utility Functions'!$AI$3:$AI$6,'Utility Functions'!$AJ$3:$AJ$6)","v":1},{"$f":"valuePL(T16,'Utility Functions'!$AK$3:$AK$8,'Utility Functions'!$AL$3:$AL$8)","v":0.6},{"$f":"valuePL(U16,'Utility Functions'!$AM$3:$AM$5,'Utility Functions'!$AN$3:$AN$5)","v":1},{"$f":"valuePL(V16,'Utility Functions'!$AO$3:$AO$5,'Utility Functions'!$AP$3:$AP$5)","v":0},{"$f":"valuePL(W16,'Utility Functions'!$AQ$3:$AQ$6,'Utility Functions'!$AR$3:$AR$6)","v":1},{"$f":"valuePL(X16,'Utility Functions'!$AS$3:$AS$6,'Utility Functions'!$AT$3:$AT$6)","v":0.2},{"$f":"valuePL(Y16,'Utility Functions'!$AU$3:$AU$6,'Utility Functions'!$AV$3:$AV$6)","v":0.2},{"$f":"valuePL(Z16,'Utility Functions'!$AW$3:$AW$5,'Utility Functions'!$AX$3:$AX$5)","v":1},{"$f":"valuePL(AA16,'Utility Functions'!$AY$3:$AY$6,'Utility Functions'!$AZ$3:$AZ$6)","v":1},{"$f":"valuePL(AB16,'Utility Functions'!$BA$3:$BA$5,'Utility Functions'!$BB$3:$BB$5)","v":1},{"$f":"valuePL(AC16,'Utility Functions'!$BC$3:$BC$5,'Utility Functions'!$BD$3:$BD$5)","v":0.25},15.150477261414375,null,15.15047726141438,4.2034772614143794,1.272,1.125,3.9,4.6500000000000004]
[16,{"$f":"valueE(B17,'Utility Functions'!$B$3,'Utility Functions'!$B$4,'Utility Functions'!$B$5,'Utility Functions'!$B$6)","v":0},{"$f":"valueE(C17,'Utility Functions'!$D$3,'Utility Functions'!$D$4,'Utility Functions'!$D$5,'Utility Functions'!$D$6)","v":0},{"$f":"valuePL(D17,'Utility Functions'!$E$3:$E$5,'Utility Functions'!$F$3:$F$5)","v":0},{"$f":"valuePL(E17,'Utility Functions'!$G$3:$G$5,'Utility Functions'!$H$3:$H$5)","v":0},{"$f":"valuePL(F17,'Utility Functions'!$I$3:$I$4,'Utility Functions'!$J$3:$J$5)","v":0},{"$f":"valueE(G17,'Utility Functions'!$L$3,'Utility Functions'!$L$4,'Utility Functions'!$L$5,'Utility Functions'!$L$6)","v":0},{"$f":"valueE(H17,'Utility Functions'!$N$3,'Utility Functions'!$N$4,'Utility Functions'!$N$5,'Utility Functions'!$N$6)","v":0},{"$f":"valuePL(I17,'Utility Functions'!$O$3:$O$6,'Utility Functions'!$P$3:$P$6)","v":1},{"$f":"valuePL(J17,'Utility Functions'!$Q$3:$Q$6,'Utility Functions'!$R$3:$R$6)","v":0.91818181818181821},{"$f":"valuePL(K17,'Utility Functions'!$S$3:$S$7,'Utility Functions'!$T$3:$T$7)","v":1},{"$f":"valueE(L17,'Utility Functions'!$V$3,'Utility Functions'!$V$4,'Utility Functions'!$V$5,'Utility Functions'!$V$6)","v":0.83333333333333337},{"$f":"valuePL(M17,'Utility Functions'!$W$3:$W$6,'Utility Functions'!$X$3:$X$6)","v":0.91818181818181821},{"$f":"valueE(N17,'Utility Functions'!$Z$3,'Utility Functions'!$Z$4,'Utility Functions'!$Z$5,'Utility Functions'!$Z$6)","v":0},{"$f":"valuePL(O17,'Utility Functions'!$AA$3:$AA$5,'Utility Functions'!$AB$3:$AB$5)","v":0},{"$f":"valuePL(P17,'Utility Functions'!$AC$3:$AC$7,'Utility Functions'!$AD$3:$AD$7)","v":0.75},{"$f":"valuePL(Q17,'Utility Functions'!$AE$3:$AE$6,'Utility Functions'!$AF$3:$AF$6)","v":0},{"$f":"valuePL(R17,'Utility Functions'!$AG$3:$AG$6,'Utility Functions'!$AH$3:$AH$6)","v":1},{"$f":"valuePL(S17,'Utility Functions'!$AI$3:$AI$6,'Utility Functions'!$AJ$3:$AJ$6)","v":1},{"$f":"valuePL(T17,'Utility Functions'!$AK$3:$AK$8,'Utility Functions'!$AL$3:$AL$8)","v":1},{"$f":"valuePL(U17,'Utility Functions'!$AM$3:$AM$5,'Utility Functions'!$AN$3:$AN$5)","v":0},{"$f":"valuePL(V17,'Utility Functions'!$AO$3:$AO$5,'Utility Functions'!$AP$3:$AP$5)","v":1},{"$f":"valuePL(W17,'Utility Functions'!$AQ$3:$AQ$6,'Utility Functions'!$AR$3:$AR$6)","v":0.75},{"$f":"valuePL(X17,'Utility Functions'!$AS$3:$AS$6,'Utility Functions'!$AT$3:$AT$6)","v":0.75},{"$f":"valuePL(Y17,'Utility Functions'!$AU$3:$AU$6,'Utility Functions'!$AV$3:$AV$6)","v":0.2},{"$f":"valuePL(Z17,'Utility Functions'!$AW$3:$AW$5,'Utility Functions'!$AX$3:$AX$5)","v":1},{"$f":"valuePL(AA17,'Utility Functions'!$AY$3:$AY$6,'Utility Functions'!$AZ$3:$AZ$6)","v":1},{"$f":"valuePL(AB17,'Utility Functions'!$BA$3:$BA$5,'Utility Functions'!$BB$3:$BB$5)","v":1},{"$f":"valuePL(AC17,'Utility Functions'!$BC$3:$BC$5,'Utility Functions'!$BD$3:$BD$5)","v":1},15.119696969696969,null,15.119696969696971,0,4.6696969696969699,0,3.75,6.7]
[17,{"$f":"valueE(B18,'Utility Functions'!$B$3,'Utility Functions'!$B$4,'Utility Functions'!$B$5,'Utility Functions'!$B$6)","v":0.32968045347775865},{"$f":"valueE(C18,'Utility Functions'!$D$3,'Utility Functions'!$D$4,'Utility Functions'!$D$5,'Utility Functions'!$D$6)","v":0.78989979019422951},{"$f":"valuePL(D18,'Utility Functions'!$E$3:$E$5,'Utility Functions'!$F$3:$F$5)","v":1},{"$f":"valuePL(E18,'Utility Functions'!$G$3:$G$5,'Utility Functions'!$H$3:$H$5)","v":0.5},{"$f":"valuePL(F18,'Utility Functions'!$I$3:$I$4,'Utility Functions'!$J$3:$J$5)","v":1},{"$f":"valueE(G18,'Utility Functions'!$L$3,'Utility Functions'!$L$4,'Utility Functions'!$L$5,'Utility Functions'!$L$6)","v":0.31182795698924731},{"$f":"valueE(H18,'Utility Functions'!$N$3,'Utility Functions'!$N$4,'Utility Functions'!$N$5,'Utility Functions'!$N$6)","v":0.27514231499051234},{"$f":"valuePL(I18,'Utility Functions'!$O$3:$O$6,'Utility Functions'!$P$3:$P$6)","v":0},{"$f":"valuePL(J18,'Utility Functions'!$Q$3:$Q$6,'Utility Functions'!$R$3:$R$6)","v":0},{"$f":"valuePL(K18,'Utility Functions'!$S$3:$S$7,'Utility Functions'!$T$3:$T$7)","v":0},{"$f":"valueE(L18,'Utility Functions'!$V$3,'Utility Functions'!$V$4,'Utility Functions'!$V$5,'Utility Functions'!$V$6)","v":1},{"$f":"valuePL(M18,'Utility Functions'!$W$3:$W$6,'Utility Functions'!$X$3:$X$6)","v":6.0000000000000012E-2},{"$f":"valueE(N18,'Utility Functions'!$Z$3,'Utility Functions'!$Z$4,'Utility Functions'!$Z$5,'Utility Functions'!$Z$6)","v":0},{"$f":"valuePL(O18,'Utility Functions'!$AA$3:$AA$5,'Utility Functions'!$AB$3:$AB$5)","v":0},{"$f":"valuePL(P18,'Utility Functions'!$AC$3:$AC$7,'Utility Functions'!$AD$3:$AD$7)","v":0},{"$f":"valuePL(Q18,'Utility Functions'!$AE$3:$AE$6,'Utility Functions'!$AF$3:$AF$6)","v":0},{"$f":"valuePL(R18,'Utility Functions'!$AG$3:$AG$6,'Utility Functions'!$AH$3:$AH$6)","v":1},{"$f":"valuePL(S18,'Utility Functions'!$AI$3:$AI$6,'Utility Functions'!$AJ$3:$AJ$6)","v":0.66},{"$f":"valuePL(T18,'Utility Functions'!$AK$3:$AK$8,'Utility Functions'!$AL$3:$AL$8)","v":0},{"$f":"valuePL(U18,'Utility Functions'!$AM$3:$AM$5,'Utility Functions'!$AN$3:$AN$5)","v":0},{"$f":"valuePL(V18,'Utility Functions'!$AO$3:$AO$5,'Utility Functions'!$AP$3:$AP$5)","v":1},{"$f":"valuePL(W18,'Utility Functions'!$AQ$3:$AQ$6,'Utility Functions'!$AR$3:$AR$6)","v":1},{"$f":"valuePL(X18,'Utility Functions'!$AS$3:$AS$6,'Utility Functions'!$AT$3:$AT$6)","v":0.2},{"$f":"valuePL(Y18,'Utility Functions'!$AU$3:$AU$6,'Utility Functions'!$AV$3:$AV$6)","v":0},{"$f":"valuePL(Z18,'Utility Functions'!$AW$3:$AW$5,'Utility Functions'!$AX$3:$AX$5)","v":0.5},{"$f":"valuePL(AA18,'Utility Functions'!$AY$3:$AY$6,'Utility Functions'!$AZ$3:$AZ$6)","v":0},{"$f":"valuePL(AB18,'Utility Functions'!$BA$3:$BA$5,'Utility Functions'!$BB$3:$BB$5)","v":1},{"$f":"valuePL(AC18,'Utility Functions'!$BC$3:$BC$5,'Utility Functions'!$BD$3:$BD$5)","v":0.25},10.876550515651747,null,10.876550515651747,3.6195802436719884,1.6469702719797596,0,1.6600000000000001,3.95]
[18,{"$f":"valueE(B19,'Utility Functions'!$B$3,'Utility Functions'!$B$4,'Utility Functions'!$B$5,'Utility Functions'!$B$6)","v":0},{"$f":"valueE(C19,'Utility Functions'!$D$3,'Utility Functions'!$D$4,'Utility Functions'!$D$5,'Utility Functions'!$D$6)","v":0},{"$f":"valuePL(D19,'Utility Functions'!$E$3:$E$5,'Utility Functions'!$F$3:$F$5)","v":0},{"$f":"valuePL(E19,'Utility Functions'!$G$3:$G$5,'Utility Functions'!$H$3:$H$5)","v":0},{"$f":"valuePL(F19,'Utility Functions'!$I$3:$I$4,'Utility Functions'!$J$3:$J$5)","v":0},{"$f":"valueE(G19,'Utility Functions'!$L$3,'Utility Functions'!$L$4,'Utility Functions'!$L$5,'Utility Functions'!$L$6)","v":0},{"$f":"valueE(H19,'Utility Functions'!$N$3,'Utility Functions'!$N$4,'Utility Functions'!$N$5,'Utility Functions'!$N$6)","v":2.8462998102466792E-2},{"$f":"valuePL(I19,'Utility Functions'!$O$3:$O$6,'Utility Functions'!$P$3:$P$6)","v":0},{"$f":"valuePL(J19,'Utility Functions'!$Q$3:$Q$6,'Utility Functions'!$R$3:$R$6)","v":0},{"$f":"valuePL(K19,'Utility Functions'!$S$3:$S$7,'Utility Functions'!$T$3:$T$7)","v":0},{"$f":"valueE(L19,'Utility Functions'!$V$3,'Utility Functions'!$V$4,'Utility Functions'!$V$5,'Utility Functions'!$V$6)","v":0},{"$f":"valuePL(M19,'Utility Functions'!$W$3:$W$6,'Utility Functions'!$X$3:$X$6)","v":0},{"$f":"valueE(N19,'Utility Functions'!$Z$3,'Utility Functions'!$Z$4,'Utility Functions'!$Z$5,'Utility Functions'!$Z$6)","v":1},{"$f":"valuePL(O19,'Utility Functions'!$AA$3:$AA$5,'Utility Functions'!$AB$3:$AB$5)","v":0.25},{"$f":"valuePL(P19,'Utility Functions'!$AC$3:$AC$7,'Utility Functions'!$AD$3:$AD$7)","v":0.25},{"$f":"valuePL(Q19,'Utility Functions'!$AE$3:$AE$6,'Utility Functions'!$AF$3:$AF$6)","v":1},{"$f":"valuePL(R19,'Utility Functions'!$AG$3:$AG$6,'Utility Functions'!$AH$3:$AH$6)","v":1},{"$f":"valuePL(S19,'Utility Functions'!$AI$3:$AI$6,'Utility Functions'!$AJ$3:$AJ$6)","v":1},{"$f":"valuePL(T19,'Utility Functions'!$AK$3:$AK$8,'Utility Functions'!$AL$3:$AL$8)","v":1},{"$f":"valuePL(U19,'Utility Functions'!$AM$3:$AM$5,'Utility Functions'!$AN$3:$AN$5)","v":0.25},{"$f":"valuePL(V19,'Utility Functions'!$AO$3:$AO$5,'Utility Functions'!$AP$3:$AP$5)","v":1},{"$f":"valuePL(W19,'Utility Functions'!$AQ$3:$AQ$6,'Utility Functions'!$AR$3:$AR$6)","v":0.75},{"$f":"valuePL(X19,'Utility Functions'!$AS$3:$AS$6,'Utility Functions'!$AT$3:$AT$6)","v":0.2},{"$f":"valuePL(Y19,'Utility Functions'!$AU$3:$AU$6,'Utility Functions'!$AV$3:$AV$6)","v":0.8},{"$f":"valuePL(Z19,'Utility Functions'!$AW$3:$AW$5,'Utility Functions'!$AX$3:$AX$5)","v":0.5},{"$f":"valuePL(AA19,'Utility Functions'!$AY$3:$AY$6,'Utility Functions'!$AZ$3:$AZ$6)","v":0.89999999999999991},{"$f":"valuePL(AB19,'Utility Functions'!$BA$3:$BA$5,'Utility Functions'!$BB$3:$BB$5)","v":0.25},{"$f":"valuePL(AC19,'Utility Functions'!$BC$3:$BC$5,'Utility Functions'!$BD$3:$BD$5)","v":0},10.178462998102468,null,10.178462998102468,0,2.8462998102466792E-2,1.25,4.5,4.4000000000000004]
[19,{"$f":"valueE(B20,'Utility Functions'!$B$3,'Utility Functions'!$B$4,'Utility Functions'!$B$5,'Utility Functions'!$B$6)","v":0.79810469124896843},{"$f":"valueE(C20,'Utility Functions'!$D$3,'Utility Functions'!$D$4,'Utility Functions'!$D$5,'Utility Functions'!$D$6)","v":0.26839655623815994},{"$f":"valuePL(D20,'Utility Functions'!$E$3:$E$5,'Utility Functions'!$F$3:$F$5)","v":0.5},{"$f":"valuePL(E20,'Utility Functions'!$G$3:$G$5,'Utility Functions'!$H$3:$H$5)","v":1},{"$f":"valuePL(F20,'Utility Functions'!$I$3:$I$4,'Utility Functions'!$J$3:$J$5)","v":0},{"$f":"valueE(G20,'Utility Functions'!$L$3,'Utility Functions'!$L$4,'Utility Functions'!$L$5,'Utility Functions'!$L$6)","v":0},{"$f":"valueE(H20,'Utility Functions'!$N$3,'Utility Functions'!$N$4,'Utility Functions'!$N$5,'Utility Functions'!$N$6)","v":0},{"$f":"valuePL(I20,'Utility Functions'!$O$3:$O$6,'Utility Functions'!$P$3:$P$6)","v":0},{"$f":"valuePL(J20,'Utility Functions'!$Q$3:$Q$6,'Utility Functions'!$R$3:$R$6)","v":0},{"$f":"valuePL(K20,'Utility Functions'!$S$3:$S$7,'Utility Functions'!$T$3:$T$7)","v":0},{"$f":"valueE(L20,'Utility Functions'!$V$3,'Utility Functions'!$V$4,'Utility Functions'!$V$5,'Utility Functions'!$V$6)","v":0},{"$f":"valuePL(M20,'Utility Functions'!$W$3:$W$6,'Utility Functions'!$X$3:$X$6)","v":0},{"$f":"valueE(N20,'Utility Functions'!$Z$3,'Utility Functions'!$Z$4,'Utility Functions'!$Z$5,'Utility Functions'!$Z$6)","v":1},{"$f":"valuePL(O20,'Utility Functions'!$AA$3:$AA$5,'Utility Functions'!$AB$3:$AB$5)","v":1},{"$f":"valuePL(P20,'Utility Functions'!$AC$3:$AC$7,'Utility Functions'!$AD$3:$AD$7)","v":0},{"$f":"valuePL(Q20,'Utility Functions'!$AE$3:$AE$6,'Utility Functions'!$AF$3:$AF$6)","v":0},{"$f":"valuePL(R20,'Utility Functions'!$AG$3:$AG$6,'Utility Functions'!$AH$3:$AH$6)","v":0.8},{"$f":"valuePL(S20,'Utility Functions'!$AI$3:$AI$6,'Utility Functions'!$AJ$3:$AJ$6)","v":1},{"$f":"valuePL(T20,'Utility Functions'!$AK$3:$AK$8,'Utility Functions'!$AL$3:$AL$8)","v":0},{"$f":"valuePL(U20,'Utility Functions'!$AM$3:$AM$5,'Utility Functions'!$AN$3:$AN$5)","v":0},{"$f":"valuePL(V20,'Utility Functions'!$AO$3:$AO$5,'Utility Functions'!$AP$3:$AP$5)","v":0.5},{"$f":"valuePL(W20,'Utility Functions'!$AQ$3:$AQ$6,'Utility Functions'!$AR$3:$AR$6)","v":0.2},{"$f":"valuePL(X20,'Utility Functions'!$AS$3:$AS$6,'Utility Functions'!$AT$3:$AT$6)","v":1},{"$f":"valuePL(Y20,'Utility Functions'!$AU$3:$AU$6,'Utility Functions'!$AV$3:$AV$6)","v":0.8},{"$f":"valuePL(Z20,'Utility Functions'!$AW$3:$AW$5,'Utility Functions'!$AX$3:$AX$5)","v":0},{"$f":"valuePL(AA20,'Utility Functions'!$AY$3:$AY$6,'Utility Functions'!$AZ$3:$AZ$6)","v":0.2},{"$f":"valuePL(AB20,'Utility Functions'!$BA$3:$BA$5,'Utility Functions'!$BB$3:$BB$5)","v":0},{"$f":"valuePL(AC20,'Utility Functions'!$BC$3:$BC$5,'Utility Functions'!$BD$3:$BD$5)","v":0.25},9.3165012474871283,null,9.3165012474871283,2.5665012474871283,0,2,1.8,2.95]
[20,{"$f":"valueE(B21,'Utility Functions'!$B$3,'Utility Functions'!$B$4,'Utility Functions'!$B$5,'Utility Functions'!$B$6)","v":0.83470237647280454},{"$f":"valueE(C21,'Utility Functions'!$D$3,'Utility Functions'!$D$4,'Utility Functions'!$D$5,'Utility Functions'!$D$6)","v":0.78989979019422951},{"$f":"valuePL(D21,'Utility Functions'!$E$3:$E$5,'Utility Functions'!$F$3:$F$5)","v":0.5},{"$f":"valuePL(E21,'Utility Functions'!$G$3:$G$5,'Utility Functions'!$H$3:$H$5)","v":1},{"$f":"valuePL(F21,'Utility Functions'!$I$3:$I$4,'Utility Functions'!$J$3:$J$5)","v":0},{"$f":"valueE(G21,'Utility Functions'!$L$3,'Utility Functions'!$L$4,'Utility Functions'!$L$5,'Utility Functions'!$L$6)","v":0},{"$f":"valueE(H21,'Utility Functions'!$N$3,'Utility Functions'!$N$4,'Utility Functions'!$N$5,'Utility Functions'!$N$6)","v":0.41271347248576851},{"$f":"valuePL(I21,'Utility Functions'!$O$3:$O$6,'Utility Functions'!$P$3:$P$6)","v":0.93454545454545446},{"$f":"valuePL(J21,'Utility Functions'!$Q$3:$Q$6,'Utility Functions'!$R$3:$R$6)","v":0.50909090909090915},{"$f":"valuePL(K21,'Utility Functions'!$S$3:$S$7,'Utility Functions'!$T$3:$T$7)","v":0.93454545454545446},{"$f":"valueE(L21,'Utility Functions'!$V$3,'Utility Functions'!$V$4,'Utility Functions'!$V$5,'Utility Functions'!$V$6)","v":0.66666666666666663},{"$f":"valuePL(M21,'Utility Functions'!$W$3:$W$6,'Utility Functions'!$X$3:$X$6)","v":0.50909090909090915},{"$f":"valueE(N21,'Utility Functions'!$Z$3,'Utility Functions'!$Z$4,'Utility Functions'!$Z$5,'Utility Functions'!$Z$6)","v":1},{"$f":"valuePL(O21,'Utility Functions'!$AA$3:$AA$5,'Utility Functions'!$AB$3:$AB$5)","v":1},{"$f":"valuePL(P21,'Utility Functions'!$AC$3:$AC$7,'Utility Functions'!$AD$3:$AD$7)","v":0.25},{"$f":"valuePL(Q21,'Utility Functions'!$AE$3:$AE$6,'Utility Functions'!$AF$3:$AF$6)","v":0},{"$f":"valuePL(R21,'Utility Functions'!$AG$3:$AG$6,'Utility Functions'!$AH$3:$AH$6)","v":1},{"$f":"valuePL(S21,'Utility Functions'!$AI$3:$AI$6,'Utility Functions'!$AJ$3:$AJ$6)","v":1},{"$f":"valuePL(T21,'Utility Functions'!$AK$3:$AK$8,'Utility Functions'!$AL$3:$AL$8)","v":0.6},{"$f":"valuePL(U21,'Utility Functions'!$AM$3:$AM$5,'Utility Functions'!$AN$3:$AN$5)","v":1},{"$f":"valuePL(V21,'Utility Functions'!$AO$3:$AO$5,'Utility Functions'!$AP$3:$AP$5)","v":0.5},{"$f":"valuePL(W21,'Utility Functions'!$AQ$3:$AQ$6,'Utility Functions'!$AR$3:$AR$6)","v":0},{"$f":"valuePL(X21,'Utility Functions'!$AS$3:$AS$6,'Utility Functions'!$AT$3:$AT$6)","v":0},{"$f":"valuePL(Y21,'Utility Functions'!$AU$3:$AU$6,'Utility Functions'!$AV$3:$AV$6)","v":0.2},{"$f":"valuePL(Z21,'Utility Functions'!$AW$3:$AW$5,'Utility Functions'!$AX$3:$AX$5)","v":1},{"$f":"valuePL(AA21,'Utility Functions'!$AY$3:$AY$6,'Utility Functions'!$AZ$3:$AZ$6)","v":0.2},{"$f":"valuePL(AB21,'Utility Functions'!$BA$3:$BA$5,'Utility Functions'!$BB$3:$BB$5)","v":0},{"$f":"valuePL(AC21,'Utility Functions'!$BC$3:$BC$5,'Utility Functions'!$BD$3:$BD$5)","v":0.25},15.091255033092194,null,15.091255033092196,3.1246021666670343,3.9666528664251626,2,3.85,2.15]
[21,{"$f":"valueE(B22,'Utility Functions'!$B$3,'Utility Functions'!$B$4,'Utility Functions'!$B$5,'Utility Functions'!$B$6)","v":0},{"$f":"valueE(C22,'Utility Functions'!$D$3,'Utility Functions'!$D$4,'Utility Functions'!$D$5,'Utility Functions'!$D$6)","v":0},{"$f":"valuePL(D22,'Utility Functions'!$E$3:$E$5,'Utility Functions'!$F$3:$F$5)","v":0},{"$f":"valuePL(E22,'Utility Functions'!$G$3:$G$5,'Utility Functions'!$H$3:$H$5)","v":0},{"$f":"valuePL(F22,'Utility Functions'!$I$3:$I$4,'Utility Functions'!$J$3:$J$5)","v":0},{"$f":"valueE(G22,'Utility Functions'!$L$3,'Utility Functions'!$L$4,'Utility Functions'!$L$5,'Utility Functions'!$L$6)","v":0},{"$f":"valueE(H22,'Utility Functions'!$N$3,'Utility Functions'!$N$4,'Utility Functions'!$N$5,'Utility Functions'!$N$6)","v":0},{"$f":"valuePL(I22,'Utility Functions'!$O$3:$O$6,'Utility Functions'!$P$3:$P$6)","v":0},{"$f":"valuePL(J22,'Utility Functions'!$Q$3:$Q$6,'Utility Functions'!$R$3:$R$6)","v":0},{"$f":"valuePL(K22,'Utility Functions'!$S$3:$S$7,'Utility Functions'!$T$3:$T$7)","v":0},{"$f":"valueE(L22,'Utility Functions'!$V$3,'Utility Functions'!$V$4,'Utility Functions'!$V$5,'Utility Functions'!$V$6)","v":0},{"$f":"valuePL(M22,'Utility Functions'!$W$3:$W$6,'Utility Functions'!$X$3:$X$6)","v":0},{"$f":"valueE(N22,'Utility Functions'!$Z$3,'Utility Functions'!$Z$4,'Utility Functions'!$Z$5,'Utility Functions'!$Z$6)","v":1},{"$f":"valuePL(O22,'Utility Functions'!$AA$3:$AA$5,'Utility Functions'!$AB$3:$AB$5)","v":1},{"$f":"valuePL(P22,'Utility Functions'!$AC$3:$AC$7,'Utility Functions'!$AD$3:$AD$7)","v":0},{"$f":"valuePL(Q22,'Utility Functions'!$AE$3:$AE$6,'Utility Functions'!$AF$3:$AF$6)","v":0.1},{"$f":"valuePL(R22,'Utility Functions'!$AG$3:$AG$6,'Utility Functions'!$AH$3:$AH$6)","v":1},{"$f":"valuePL(S22,'Utility Functions'!$AI$3:$AI$6,'Utility Functions'!$AJ$3:$AJ$6)","v":1},{"$f":"valuePL(T22,'Utility Functions'!$AK$3:$AK$8,'Utility Functions'!$AL$3:$AL$8)","v":1},{"$f":"valuePL(U22,'Utility Functions'!$AM$3:$AM$5,'Utility Functions'!$AN$3:$AN$5)","v":0.25},{"$f":"valuePL(V22,'Utility Functions'!$AO$3:$AO$5,'Utility Functions'!$AP$3:$AP$5)","v":0},{"$f":"valuePL(W22,'Utility Functions'!$AQ$3:$AQ$6,'Utility Functions'!$AR$3:$AR$6)","v":0.75},{"$f":"valuePL(X22,'Utility Functions'!$AS$3:$AS$6,'Utility Functions'!$AT$3:$AT$6)","v":1},{"$f":"valuePL(Y22,'Utility Functions'!$AU$3:$AU$6,'Utility Functions'!$AV$3:$AV$6)","v":0.2},{"$f":"valuePL(Z22,'Utility Functions'!$AW$3:$AW$5,'Utility Functions'!$AX$3:$AX$5)","v":0},{"$f":"valuePL(AA22,'Utility Functions'!$AY$3:$AY$6,'Utility Functions'!$AZ$3:$AZ$6)","v":1},{"$f":"valuePL(AB22,'Utility Functions'!$BA$3:$BA$5,'Utility Functions'!$BB$3:$BB$5)","v":0.25},{"$f":"valuePL(AC22,'Utility Functions'!$BC$3:$BC$5,'Utility Functions'!$BD$3:$BD$5)","v":1},9.5500000000000007,null,9.5500000000000007,0,0,2,3.35,4.2]
[22,{"$f":"valueE(B23,'Utility Functions'!$B$3,'Utility Functions'!$B$4,'Utility Functions'!$B$5,'Utility Functions'!$B$6)","v":0},{"$f":"valueE(C23,'Utility Functions'!$D$3,'Utility Functions'!$D$4,'Utility Functions'!$D$5,'Utility Functions'!$D$6)","v":0},{"$f":"valuePL(D23,'Utility Functions'!$E$3:$E$5,'Utility Functions'!$F$3:$F$5)","v":0},{"$f":"valuePL(E23,'Utility Functions'!$G$3:$G$5,'Utility Functions'!$H$3:$H$5)","v":0},{"$f":"valuePL(F23,'Utility Functions'!$I$3:$I$4,'Utility Functions'!$J$3:$J$5)","v":0},{"$f":"valueE(G23,'Utility Functions'!$L$3,'Utility Functions'!$L$4,'Utility Functions'!$L$5,'Utility Functions'!$L$6)","v":8.6021505376344093E-2},{"$f":"valueE(H23,'Utility Functions'!$N$3,'Utility Functions'!$N$4,'Utility Functions'!$N$5,'Utility Functions'!$N$6)","v":6.0721062618595827E-2},{"$f":"valuePL(I23,'Utility Functions'!$O$3:$O$6,'Utility Functions'!$P$3:$P$6)","v":0},{"$f":"valuePL(J23,'Utility Functions'!$Q$3:$Q$6,'Utility Functions'!$R$3:$R$6)","v":0},{"$f":"valuePL(K23,'Utility Functions'!$S$3:$S$7,'Utility Functions'!$T$3:$T$7)","v":0},{"$f":"valueE(L23,'Utility Functions'!$V$3,'Utility Functions'!$V$4,'Utility Functions'!$V$5,'Utility Functions'!$V$6)","v":0},{"$f":"valuePL(M23,'Utility Functions'!$W$3:$W$6,'Utility Functions'!$X$3:$X$6)","v":0},{"$f":"valueE(N23,'Utility Functions'!$Z$3,'Utility Functions'!$Z$4,'Utility Functions'!$Z$5,'Utility Functions'!$Z$6)","v":0.125},{"$f":"valuePL(O23,'Utility Functions'!$AA$3:$AA$5,'Utility Functions'!$AB$3:$AB$5)","v":1},{"$f":"valuePL(P23,'Utility Functions'!$AC$3:$AC$7,'Utility Functions'!$AD$3:$AD$7)","v":1},{"$f":"valuePL(Q23,'Utility Functions'!$AE$3:$AE$6,'Utility Functions'!$AF$3:$AF$6)","v":0.5},{"$f":"valuePL(R23,'Utility Functions'!$AG$3:$AG$6,'Utility Functions'!$AH$3:$AH$6)","v":0.8},{"$f":"valuePL(S23,'Utility Functions'!$AI$3:$AI$6,'Utility Functions'!$AJ$3:$AJ$6)","v":1},{"$f":"valuePL(T23,'Utility Functions'!$AK$3:$AK$8,'Utility Functions'!$AL$3:$AL$8)","v":1},{"$f":"valuePL(U23,'Utility Functions'!$AM$3:$AM$5,'Utility Functions'!$AN$3:$AN$5)","v":0},{"$f":"valuePL(V23,'Utility Functions'!$AO$3:$AO$5,'Utility Functions'!$AP$3:$AP$5)","v":0.5},{"$f":"valuePL(W23,'Utility Functions'!$AQ$3:$AQ$6,'Utility Functions'!$AR$3:$AR$6)","v":0.75},{"$f":"valuePL(X23,'Utility Functions'!$AS$3:$AS$6,'Utility Functions'!$AT$3:$AT$6)","v":0.2},{"$f":"valuePL(Y23,'Utility Functions'!$AU$3:$AU$6,'Utility Functions'!$AV$3:$AV$6)","v":0},{"$f":"valuePL(Z23,'Utility Functions'!$AW$3:$AW$5,'Utility Functions'!$AX$3:$AX$5)","v":1},{"$f":"valuePL(AA23,'Utility Functions'!$AY$3:$AY$6,'Utility Functions'!$AZ$3:$AZ$6)","v":0.2},{"$f":"valuePL(AB23,'Utility Functions'!$BA$3:$BA$5,'Utility Functions'!$BB$3:$BB$5)","v":1},{"$f":"valuePL(AC23,'Utility Functions'!$BC$3:$BC$5,'Utility Functions'!$BD$3:$BD$5)","v":0.25},9.471742567994939,null,9.4717425679949407,0,0.14674256799493993,1.125,4.3,3.9000000000000004]
[23,{"$f":"valueE(B24,'Utility Functions'!$B$3,'Utility Functions'!$B$4,'Utility Functions'!$B$5,'Utility Functions'!$B$6)","v":0.83470237647280454},{"$f":"valueE(C24,'Utility Functions'!$D$3,'Utility Functions'!$D$4,'Utility Functions'!$D$5,'Utility Functions'!$D$6)","v":0.84744836833951609},{"$f":"valuePL(D24,'Utility Functions'!$E$3:$E$5,'Utility Functions'!$F$3:$F$5)","v":1},{"$f":"valuePL(E24,'Utility Functions'!$G$3:$G$5,'Utility Functions'!$H$3:$H$5)","v":0},{"$f":"valuePL(F24,'Utility Functions'!$I$3:$I$4,'Utility Functions'!$J$3:$J$5)","v":0},{"$f":"valueE(G24,'Utility Functions'!$L$3,'Utility Functions'!$L$4,'Utility Functions'!$L$5,'Utility Functions'!$L$6)","v":0},{"$f":"valueE(H24,'Utility Functions'!$N$3,'Utility Functions'!$N$4,'Utility Functions'!$N$5,'Utility Functions'!$N$6)","v":0},{"$f":"valuePL(I24,'Utility Functions'!$O$3:$O$6,'Utility Functions'!$P$3:$P$6)","v":0},{"$f":"valuePL(J24,'Utility Functions'!$Q$3:$Q$6,'Utility Functions'!$R$3:$R$6)","v":0},{"$f":"valuePL(K24,'Utility Functions'!$S$3:$S$7,'Utility Functions'!$T$3:$T$7)","v":0},{"$f":"valueE(L24,'Utility Functions'!$V$3,'Utility Functions'!$V$4,'Utility Functions'!$V$5,'Utility Functions'!$V$6)","v":0},{"$f":"valuePL(M24,'Utility Functions'!$W$3:$W$6,'Utility Functions'!$X$3:$X$6)","v":0},{"$f":"valueE(N24,'Utility Functions'!$Z$3,'Utility Functions'!$Z$4,'Utility Functions'!$Z$5,'Utility Functions'!$Z$6)","v":0},{"$f":"valuePL(O24,'Utility Functions'!$AA$3:$AA$5,'Utility Functions'!$AB$3:$AB$5)","v":0},{"$f":"valuePL(P24,'Utility Functions'!$AC$3:$AC$7,'Utility Functions'!$AD$3:$AD$7)","v":0.75},{"$f":"valuePL(Q24,'Utility Functions'!$AE$3:$AE$6,'Utility Functions'!$AF$3:$AF$6)","v":0},{"$f":"valuePL(R24,'Utility Functions'!$AG$3:$AG$6,'Utility Functions'!$AH$3:$AH$6)","v":1},{"$f":"valuePL(S24,'Utility Functions'!$AI$3:$AI$6,'Utility Functions'!$AJ$3:$AJ$6)","v":1},{"$f":"valuePL(T24,'Utility Functions'!$AK$3:$AK$8,'Utility Functions'!$AL$3:$AL$8)","v":1},{"$f":"valuePL(U24,'Utility Functions'!$AM$3:$AM$5,'Utility Functions'!$AN$3:$AN$5)","v":0},{"$f":"valuePL(V24,'Utility Functions'!$AO$3:$AO$5,'Utility Functions'!$AP$3:$AP$5)","v":1},{"$f":"valuePL(W24,'Utility Functions'!$AQ$3:$AQ$6,'Utility Functions'!$AR$3:$AR$6)","v":0.2},{"$f":"valuePL(X24,'Utility Functions'!$AS$3:$AS$6,'Utility Functions'!$AT$3:$AT$6)","v":0.75},{"$f":"valuePL(Y24,'Utility Functions'!$AU$3:$AU$6,'Utility Functions'!$AV$3:$AV$6)","v":0.2},{"$f":"valuePL(Z24,'Utility Functions'!$AW$3:$AW$5,'Utility Functions'!$AX$3:$AX$5)","v":0.5},{"$f":"valuePL(AA24,'Utility Functions'!$AY$3:$AY$6,'Utility Functions'!$AZ$3:$AZ$6)","v":0.2},{"$f":"valuePL(AB24,'Utility Functions'!$BA$3:$BA$5,'Utility Functions'!$BB$3:$BB$5)","v":0},{"$f":"valuePL(AC24,'Utility Functions'!$BC$3:$BC$5,'Utility Functions'!$BD$3:$BD$5)","v":0.25},9.5321507448123199,null,9.5321507448123199,2.6821507448123207,0,0,3.75,3.1]
[24,{"$f":"valueE(B25,'Utility Functions'!$B$3,'Utility Functions'!$B$4,'Utility Functions'!$B$5,'Utility Functions'!$B$6)","v":0.63212151658375171},{"$f":"valueE(C25,'Utility Functions'!$D$3,'Utility Functions'!$D$4,'Utility Functions'!$D$5,'Utility Functions'!$D$6)","v":0.46475967153745396},{"$f":"valuePL(D25,'Utility Functions'!$E$3:$E$5,'Utility Functions'!$F$3:$F$5)","v":1},{"$f":"valuePL(E25,'Utility Functions'!$G$3:$G$5,'Utility Functions'!$H$3:$H$5)","v":0},{"$f":"valuePL(F25,'Utility Functions'!$I$3:$I$4,'Utility Functions'!$J$3:$J$5)","v":0},{"$f":"valueE(G25,'Utility Functions'!$L$3,'Utility Functions'!$L$4,'Utility Functions'!$L$5,'Utility Functions'!$L$6)","v":0},{"$f":"valueE(H25,'Utility Functions'!$N$3,'Utility Functions'!$N$4,'Utility Functions'!$N$5,'Utility Functions'!$N$6)","v":0},{"$f":"valuePL(I25,'Utility Functions'!$O$3:$O$6,'Utility Functions'!$P$3:$P$6)","v":0},{"$f":"valuePL(J25,'Utility Functions'!$Q$3:$Q$6,'Utility Functions'!$R$3:$R$6)","v":0},{"$f":"valuePL(K25,'Utility Functions'!$S$3:$S$7,'Utility Functions'!$T$3:$T$7)","v":0},{"$f":"valueE(L25,'Utility Functions'!$V$3,'Utility Functions'!$V$4,'Utility Functions'!$V$5,'Utility Functions'!$V$6)","v":0},{"$f":"valuePL(M25,'Utility Functions'!$W$3:$W$6,'Utility Functions'!$X$3:$X$6)","v":0},{"$f":"valueE(N25,'Utility Functions'!$Z$3,'Utility Functions'!$Z$4,'Utility Functions'!$Z$5,'Utility Functions'!$Z$6)","v":0},{"$f":"valuePL(O25,'Utility Functions'!$AA$3:$AA$5,'Utility Functions'!$AB$3:$AB$5)","v":0},{"$f":"valuePL(P25,'Utility Functions'!$AC$3:$AC$7,'Utility Functions'!$AD$3:$AD$7)","v":0},{"$f":"valuePL(Q25,'Utility Functions'!$AE$3:$AE$6,'Utility Functions'!$AF$3:$AF$6)","v":0},{"$f":"valuePL(R25,'Utility Functions'!$AG$3:$AG$6,'Utility Functions'!$AH$3:$AH$6)","v":1},{"$f":"valuePL(S25,'Utility Functions'!$AI$3:$AI$6,'Utility Functions'!$AJ$3:$AJ$6)","v":1},{"$f":"valuePL(T25,'Utility Functions'!$AK$3:$AK$8,'Utility Functions'!$AL$3:$AL$8)","v":1},{"$f":"valuePL(U25,'Utility Functions'!$AM$3:$AM$5,'Utility Functions'!$AN$3:$AN$5)","v":0},{"$f":"valuePL(V25,'Utility Functions'!$AO$3:$AO$5,'Utility Functions'!$AP$3:$AP$5)","v":0},{"$f":"valuePL(W25,'Utility Functions'!$AQ$3:$AQ$6,'Utility Functions'!$AR$3:$AR$6)","v":1},{"$f":"valuePL(X25,'Utility Functions'!$AS$3:$AS$6,'Utility Functions'!$AT$3:$AT$6)","v":0.2},{"$f":"valuePL(Y25,'Utility Functions'!$AU$3:$AU$6,'Utility Functions'!$AV$3:$AV$6)","v":1},{"$f":"valuePL(Z25,'Utility Functions'!$AW$3:$AW$5,'Utility Functions'!$AX$3:$AX$5)","v":1},{"$f":"valuePL(AA25,'Utility Functions'!$AY$3:$AY$6,'Utility Functions'!$AZ$3:$AZ$6)","v":0.2},{"$f":"valuePL(AB25,'Utility Functions'!$BA$3:$BA$5,'Utility Functions'!$BB$3:$BB$5)","v":0},{"$f":"valuePL(AC25,'Utility Functions'!$BC$3:$BC$5,'Utility Functions'!$BD$3:$BD$5)","v":1},9.4968811881212041,null,9.4968811881212059,2.0968811881212055,0,0,3,4.4000000000000004]
[25,{"$f":"valueE(B26,'Utility Functions'!$B$3,'Utility Functions'!$B$4,'Utility Functions'!$B$5,'Utility Functions'!$B$6)","v":0.83470237647280454},{"$f":"valueE(C26,'Utility Functions'!$D$3,'Utility Functions'!$D$4,'Utility Functions'!$D$5,'Utility Functions'!$D$6)","v":0.84744836833951609},{"$f":"valuePL(D26,'Utility Functions'!$E$3:$E$5,'Utility Functions'!$F$3:$F$5)","v":1},{"$f":"valuePL(E26,'Utility Functions'!$G$3:$G$5,'Utility Functions'!$H$3:$H$5)","v":0},{"$f":"valuePL(F26,'Utility Functions'!$I$3:$I$4,'Utility Functions'!$J$3:$J$5)","v":0},{"$f":"valueE(G26,'Utility Functions'!$L$3,'Utility Functions'!$L$4,'Utility Functions'!$L$5,'Utility Functions'!$L$6)","v":0.94623655913978499},{"$f":"valueE(H26,'Utility Functions'!$N$3,'Utility Functions'!$N$4,'Utility Functions'!$N$5,'Utility Functions'!$N$6)","v":0.29222011385199242},{"$f":"valuePL(I26,'Utility Functions'!$O$3:$O$6,'Utility Functions'!$P$3:$P$6)","v":0},{"$f":"valuePL(J26,'Utility Functions'!$Q$3:$Q$6,'Utility Functions'!$R$3:$R$6)","v":0},{"$f":"valuePL(K26,'Utility Functions'!$S$3:$S$7,'Utility Functions'!$T$3:$T$7)","v":0},{"$f":"valueE(L26,'Utility Functions'!$V$3,'Utility Functions'!$V$4,'Utility Functions'!$V$5,'Utility Functions'!$V$6)","v":0},{"$f":"valuePL(M26,'Utility Functions'!$W$3:$W$6,'Utility Functions'!$X$3:$X$6)","v":0},{"$f":"valueE(N26,'Utility Functions'!$Z$3,'Utility Functions'!$Z$4,'Utility Functions'!$Z$5,'Utility Functions'!$Z$6)","v":1},{"$f":"valuePL(O26,'Utility Functions'!$AA$3:$AA$5,'Utility Functions'!$AB$3:$AB$5)","v":0.25},{"$f":"valuePL(P26,'Utility Functions'!$AC$3:$AC$7,'Utility Functions'!$AD$3:$AD$7)","v":0.5},{"$f":"valuePL(Q26,'Utility Functions'!$AE$3:$AE$6,'Utility Functions'!$AF$3:$AF$6)","v":0.5},{"$f":"valuePL(R26,'Utility Functions'!$AG$3:$AG$6,'Utility Functions'!$AH$3:$AH$6)","v":1},{"$f":"valuePL(S26,'Utility Functions'!$AI$3:$AI$6,'Utility Functions'!$AJ$3:$AJ$6)","v":1},{"$f":"valuePL(T26,'Utility Functions'!$AK$3:$AK$8,'Utility Functions'!$AL$3:$AL$8)","v":0},{"$f":"valuePL(U26,'Utility Functions'!$AM$3:$AM$5,'Utility Functions'!$AN$3:$AN$5)","v":0},{"$f":"valuePL(V26,'Utility Functions'!$AO$3:$AO$5,'Utility Functions'!$AP$3:$AP$5)","v":1},{"$f":"valuePL(W26,'Utility Functions'!$AQ$3:$AQ$6,'Utility Functions'!$AR$3:$AR$6)","v":0.2},{"$f":"valuePL(X26,'Utility Functions'!$AS$3:$AS$6,'Utility Functions'!$AT$3:$AT$6)","v":1},{"$f":"valuePL(Y26,'Utility Functions'!$AU$3:$AU$6,'Utility Functions'!$AV$3:$AV$6)","v":0.8},{"$f":"valuePL(Z26,'Utility Functions'!$AW$3:$AW$5,'Utility Functions'!$AX$3:$AX$5)","v":0.5},{"$f":"valuePL(AA26,'Utility Functions'!$AY$3:$AY$6,'Utility Functions'!$AZ$3:$AZ$6)","v":0.2},{"$f":"valuePL(AB26,'Utility Functions'!$BA$3:$BA$5,'Utility Functions'!$BB$3:$BB$5)","v":1},{"$f":"valuePL(AC26,'Utility Functions'!$BC$3:$BC$5,'Utility Functions'!$BD$3:$BD$5)","v":1},13.870607417804099,null,13.870607417804099,2.6821507448123207,1.2384566729917774,1.25,3,5.7]
[26,{"$f":"valueE(B27,'Utility Functions'!$B$3,'Utility Functions'!$B$4,'Utility Functions'!$B$5,'Utility Functions'!$B$6)","v":0.96662819462069161},{"$f":"valueE(C27,'Utility Functions'!$D$3,'Utility Functions'!$D$4,'Utility Functions'!$D$5,'Utility Functions'!$D$6)","v":0.84744836833951609},{"$f":"valuePL(D27,'Utility Functions'!$E$3:$E$5,'Utility Functions'!$F$3:$F$5)","v":1},{"$f":"valuePL(E27,'Utility Functions'!$G$3:$G$5,'Utility Functions'!$H$3:$H$5)","v":0.5},{"$f":"valuePL(F27,'Utility Functions'!$I$3:$I$4,'Utility Functions'!$J$3:$J$5)","v":0},{"$f":"valueE(G27,'Utility Functions'!$L$3,'Utility Functions'!$L$4,'Utility Functions'!$L$5,'Utility Functions'!$L$6)","v":0},{"$f":"valueE(H27,'Utility Functions'!$N$3,'Utility Functions'!$N$4,'Utility Functions'!$N$5,'Utility Functions'!$N$6)","v":0},{"$f":"valuePL(I27,'Utility Functions'!$O$3:$O$6,'Utility Functions'!$P$3:$P$6)","v":0},{"$f":"valuePL(J27,'Utility Functions'!$Q$3:$Q$6,'Utility Functions'!$R$3:$R$6)","v":0},{"$f":"valuePL(K27,'Utility Functions'!$S$3:$S$7,'Utility Functions'!$T$3:$T$7)","v":0},{"$f":"valueE(L27,'Utility Functions'!$V$3,'Utility Functions'!$V$4,'Utility Functions'!$V$5,'Utility Functions'!$V$6)","v":0},{"$f":"valuePL(M27,'Utility Functions'!$W$3:$W$6,'Utility Functions'!$X$3:$X$6)","v":0},{"$f":"valueE(N27,'Utility Functions'!$Z$3,'Utility Functions'!$Z$4,'Utility Functions'!$Z$5,'Utility Functions'!$Z$6)","v":0},{"$f":"valuePL(O27,'Utility Functions'!$AA$3:$AA$5,'Utility Functions'!$AB$3:$AB$5)","v":0},{"$f":"valuePL(P27,'Utility Functions'!$AC$3:$AC$7,'Utility Functions'!$AD$3:$AD$7)","v":0.75},{"$f":"valuePL(Q27,'Utility Functions'!$AE$3:$AE$6,'Utility Functions'!$AF$3:$AF$6)","v":0},{"$f":"valuePL(R27,'Utility Functions'!$AG$3:$AG$6,'Utility Functions'!$AH$3:$AH$6)","v":1},{"$f":"valuePL(S27,'Utility Functions'!$AI$3:$AI$6,'Utility Functions'!$AJ$3:$AJ$6)","v":1},{"$f":"valuePL(T27,'Utility Functions'!$AK$3:$AK$8,'Utility Functions'!$AL$3:$AL$8)","v":0.8},{"$f":"valuePL(U27,'Utility Functions'!$AM$3:$AM$5,'Utility Functions'!$AN$3:$AN$5)","v":0},{"$f":"valuePL(V27,'Utility Functions'!$AO$3:$AO$5,'Utility Functions'!$AP$3:$AP$5)","v":1},{"$f":"valuePL(W27,'Utility Functions'!$AQ$3:$AQ$6,'Utility Functions'!$AR$3:$AR$6)","v":0.2},{"$f":"valuePL(X27,'Utility Functions'!$AS$3:$AS$6,'Utility Functions'!$AT$3:$AT$6)","v":0},{"$f":"valuePL(Y27,'Utility Functions'!$AU$3:$AU$6,'Utility Functions'!$AV$3:$AV$6)","v":0.8},{"$f":"valuePL(Z27,'Utility Functions'!$AW$3:$AW$5,'Utility Functions'!$AX$3:$AX$5)","v":0},{"$f":"valuePL(AA27,'Utility Functions'!$AY$3:$AY$6,'Utility Functions'!$AZ$3:$AZ$6)","v":0.2},{"$f":"valuePL(AB27,'Utility Functions'!$BA$3:$BA$5,'Utility Functions'!$BB$3:$BB$5)","v":1},{"$f":"valuePL(AC27,'Utility Functions'!$BC$3:$BC$5,'Utility Functions'!$BD$3:$BD$5)","v":1},11.064076562960208,null,11.064076562960206,3.3140765629602078,0,0,3.55,4.2]
[27,{"$f":"valueE(B28,'Utility Functions'!$B$3,'Utility Functions'!$B$4,'Utility Functions'!$B$5,'Utility Functions'!$B$6)","v":0},{"$f":"valueE(C28,'Utility Functions'!$D$3,'Utility Functions'!$D$4,'Utility Functions'!$D$5,'Utility Functions'!$D$6)","v":0.46475967153745396},{"$f":"valuePL(D28,'Utility Functions'!$E$3:$E$5,'Utility Functions'!$F$3:$F$5)","v":1},{"$f":"valuePL(E28,'Utility Functions'!$G$3:$G$5,'Utility Functions'!$H$3:$H$5)","v":0},{"$f":"valuePL(F28,'Utility Functions'!$I$3:$I$4,'Utility Functions'!$J$3:$J$5)","v":0},{"$f":"valueE(G28,'Utility Functions'!$L$3,'Utility Functions'!$L$4,'Utility Functions'!$L$5,'Utility Functions'!$L$6)","v":0},{"$f":"valueE(H28,'Utility Functions'!$N$3,'Utility Functions'!$N$4,'Utility Functions'!$N$5,'Utility Functions'!$N$6)","v":0},{"$f":"valuePL(I28,'Utility Functions'!$O$3:$O$6,'Utility Functions'!$P$3:$P$6)","v":0},{"$f":"valuePL(J28,'Utility Functions'!$Q$3:$Q$6,'Utility Functions'!$R$3:$R$6)","v":0},{"$f":"valuePL(K28,'Utility Functions'!$S$3:$S$7,'Utility Functions'!$T$3:$T$7)","v":1},{"$f":"valueE(L28,'Utility Functions'!$V$3,'Utility Functions'!$V$4,'Utility Functions'!$V$5,'Utility Functions'!$V$6)","v":0},{"$f":"valuePL(M28,'Utility Functions'!$W$3:$W$6,'Utility Functions'!$X$3:$X$6)","v":0.1},{"$f":"valueE(N28,'Utility Functions'!$Z$3,'Utility Functions'!$Z$4,'Utility Functions'!$Z$5,'Utility Functions'!$Z$6)","v":0},{"$f":"valuePL(O28,'Utility Functions'!$AA$3:$AA$5,'Utility Functions'!$AB$3:$AB$5)","v":0},{"$f":"valuePL(P28,'Utility Functions'!$AC$3:$AC$7,'Utility Functions'!$AD$3:$AD$7)","v":0.5},{"$f":"valuePL(Q28,'Utility Functions'!$AE$3:$AE$6,'Utility Functions'!$AF$3:$AF$6)","v":0.5},{"$f":"valuePL(R28,'Utility Functions'!$AG$3:$AG$6,'Utility Functions'!$AH$3:$AH$6)","v":1},{"$f":"valuePL(S28,'Utility Functions'!$AI$3:$AI$6,'Utility Functions'!$AJ$3:$AJ$6)","v":1},{"$f":"valuePL(T28,'Utility Functions'!$AK$3:$AK$8,'Utility Functions'!$AL$3:$AL$8)","v":1},{"$f":"valuePL(U28,'Utility Functions'!$AM$3:$AM$5,'Utility Functions'!$AN$3:$AN$5)","v":0},{"$f":"valuePL(V28,'Utility Functions'!$AO$3:$AO$5,'Utility Functions'!$AP$3:$AP$5)","v":0.5},{"$f":"valuePL(W28,'Utility Functions'!$AQ$3:$AQ$6,'Utility Functions'!$AR$3:$AR$6)","v":0.75},{"$f":"valuePL(X28,'Utility Functions'!$AS$3:$AS$6,'Utility Functions'!$AT$3:$AT$6)","v":1},{"$f":"valuePL(Y28,'Utility Functions'!$AU$3:$AU$6,'Utility Functions'!$AV$3:$AV$6)","v":0.2},{"$f":"valuePL(Z28,'Utility Functions'!$AW$3:$AW$5,'Utility Functions'!$AX$3:$AX$5)","v":0},{"$f":"valuePL(AA28,'Utility Functions'!$AY$3:$AY$6,'Utility Functions'!$AZ$3:$AZ$6)","v":0},{"$f":"valuePL(AB28,'Utility Functions'!$BA$3:$BA$5,'Utility Functions'!$BB$3:$BB$5)","v":0},{"$f":"valuePL(AC28,'Utility Functions'!$BC$3:$BC$5,'Utility Functions'!$BD$3:$BD$5)","v":0},9.0147596715374529,null,9.0147596715374547,1.464759671537454,1.1000000000000001,0,4,2.4500000000000002]
[28,{"$f":"valueE(B29,'Utility Functions'!$B$3,'Utility Functions'!$B$4,'Utility Functions'!$B$5,'Utility Functions'!$B$6)","v":0.4511890475224023},{"$f":"valueE(C29,'Utility Functions'!$D$3,'Utility Functions'!$D$4,'Utility Functions'!$D$5,'Utility Functions'!$D$6)","v":0.46475967153745396},{"$f":"valuePL(D29,'Utility Functions'!$E$3:$E$5,'Utility Functions'!$F$3:$F$5)","v":1},{"$f":"valuePL(E29,'Utility Functions'!$G$3:$G$5,'Utility Functions'!$H$3:$H$5)","v":0},{"$f":"valuePL(F29,'Utility Functions'!$I$3:$I$4,'Utility Functions'!$J$3:$J$5)","v":1},{"$f":"valueE(G29,'Utility Functions'!$L$3,'Utility Functions'!$L$4,'Utility Functions'!$L$5,'Utility Functions'!$L$6)","v":0},{"$f":"valueE(H29,'Utility Functions'!$N$3,'Utility Functions'!$N$4,'Utility Functions'!$N$5,'Utility Functions'!$N$6)","v":0},{"$f":"valuePL(I29,'Utility Functions'!$O$3:$O$6,'Utility Functions'!$P$3:$P$6)","v":0},{"$f":"valuePL(J29,'Utility Functions'!$Q$3:$Q$6,'Utility Functions'!$R$3:$R$6)","v":0},{"$f":"valuePL(K29,'Utility Functions'!$S$3:$S$7,'Utility Functions'!$T$3:$T$7)","v":0},{"$f":"valueE(L29,'Utility Functions'!$V$3,'Utility Functions'!$V$4,'Utility Functions'!$V$5,'Utility Functions'!$V$6)","v":0.33333333333333331},{"$f":"valuePL(M29,'Utility Functions'!$W$3:$W$6,'Utility Functions'!$X$3:$X$6)","v":0.1},{"$f":"valueE(N29,'Utility Functions'!$Z$3,'Utility Functions'!$Z$4,'Utility Functions'!$Z$5,'Utility Functions'!$Z$6)","v":0},{"$f":"valuePL(O29,'Utility Functions'!$AA$3:$AA$5,'Utility Functions'!$AB$3:$AB$5)","v":0},{"$f":"valuePL(P29,'Utility Functions'!$AC$3:$AC$7,'Utility Functions'!$AD$3:$AD$7)","v":1},{"$f":"valuePL(Q29,'Utility Functions'!$AE$3:$AE$6,'Utility Functions'!$AF$3:$AF$6)","v":0},{"$f":"valuePL(R29,'Utility Functions'!$AG$3:$AG$6,'Utility Functions'!$AH$3:$AH$6)","v":1},{"$f":"valuePL(S29,'Utility Functions'!$AI$3:$AI$6,'Utility Functions'!$AJ$3:$AJ$6)","v":1},{"$f":"valuePL(T29,'Utility Functions'!$AK$3:$AK$8,'Utility Functions'!$AL$3:$AL$8)","v":0.8},{"$f":"valuePL(U29,'Utility Functions'!$AM$3:$AM$5,'Utility Functions'!$AN$3:$AN$5)","v":0},{"$f":"valuePL(V29,'Utility Functions'!$AO$3:$AO$5,'Utility Functions'!$AP$3:$AP$5)","v":1},{"$f":"valuePL(W29,'Utility Functions'!$AQ$3:$AQ$6,'Utility Functions'!$AR$3:$AR$6)","v":1},{"$f":"valuePL(X29,'Utility Functions'!$AS$3:$AS$6,'Utility Functions'!$AT$3:$AT$6)","v":1},{"$f":"valuePL(Y29,'Utility Functions'!$AU$3:$AU$6,'Utility Functions'!$AV$3:$AV$6)","v":0.2},{"$f":"valuePL(Z29,'Utility Functions'!$AW$3:$AW$5,'Utility Functions'!$AX$3:$AX$5)","v":0},{"$f":"valuePL(AA29,'Utility Functions'!$AY$3:$AY$6,'Utility Functions'!$AZ$3:$AZ$6)","v":0.89999999999999991},{"$f":"valuePL(AB29,'Utility Functions'!$BA$3:$BA$5,'Utility Functions'!$BB$3:$BB$5)","v":1},{"$f":"valuePL(AC29,'Utility Functions'!$BC$3:$BC$5,'Utility Functions'!$BD$3:$BD$5)","v":0.25},12.499282052393189,null,12.499282052393189,2.9159487190598563,0.43333333333333335,0,3.8,5.35]
[29,{"$f":"valueE(B30,'Utility Functions'!$B$3,'Utility Functions'!$B$4,'Utility Functions'!$B$5,'Utility Functions'!$B$6)","v":0.83470237647280454},{"$f":"valueE(C30,'Utility Functions'!$D$3,'Utility Functions'!$D$4,'Utility Functions'!$D$5,'Utility Functions'!$D$6)","v":0.71352759724260828},{"$f":"valuePL(D30,'Utility Functions'!$E$3:$E$5,'Utility Functions'!$F$3:$F$5)","v":1},{"$f":"valuePL(E30,'Utility Functions'!$G$3:$G$5,'Utility Functions'!$H$3:$H$5)","v":0.5},{"$f":"valuePL(F30,'Utility Functions'!$I$3:$I$4,'Utility Functions'!$J$3:$J$5)","v":0},{"$f":"valueE(G30,'Utility Functions'!$L$3,'Utility Functions'!$L$4,'Utility Functions'!$L$5,'Utility Functions'!$L$6)","v":0},{"$f":"valueE(H30,'Utility Functions'!$N$3,'Utility Functions'!$N$4,'Utility Functions'!$N$5,'Utility Functions'!$N$6)","v":0},{"$f":"valuePL(I30,'Utility Functions'!$O$3:$O$6,'Utility Functions'!$P$3:$P$6)","v":0.06},{"$f":"valuePL(J30,'Utility Functions'!$Q$3:$Q$6,'Utility Functions'!$R$3:$R$6)","v":0.67272727272727273},{"$f":"valuePL(K30,'Utility Functions'!$S$3:$S$7,'Utility Functions'!$T$3:$T$7)","v":0},{"$f":"valueE(L30,'Utility Functions'!$V$3,'Utility Functions'!$V$4,'Utility Functions'!$V$5,'Utility Functions'!$V$6)","v":1},{"$f":"valuePL(M30,'Utility Functions'!$W$3:$W$6,'Utility Functions'!$X$3:$X$6)","v":0.67272727272727273},{"$f":"valueE(N30,'Utility Functions'!$Z$3,'Utility Functions'!$Z$4,'Utility Functions'!$Z$5,'Utility Functions'!$Z$6)","v":0},{"$f":"valuePL(O30,'Utility Functions'!$AA$3:$AA$5,'Utility Functions'!$AB$3:$AB$5)","v":0},{"$f":"valuePL(P30,'Utility Functions'!$AC$3:$AC$7,'Utility Functions'!$AD$3:$AD$7)","v":0.25},{"$f":"valuePL(Q30,'Utility Functions'!$AE$3:$AE$6,'Utility Functions'!$AF$3:$AF$6)","v":0},{"$f":"valuePL(R30,'Utility Functions'!$AG$3:$AG$6,'Utility Functions'!$AH$3:$AH$6)","v":1},{"$f":"valuePL(S30,'Utility Functions'!$AI$3:$AI$6,'Utility Functions'!$AJ$3:$AJ$6)","v":1},{"$f":"valuePL(T30,'Utility Functions'!$AK$3:$AK$8,'Utility Functions'!$AL$3:$AL$8)","v":0.8},{"$f":"valuePL(U30,'Utility Functions'!$AM$3:$AM$5,'Utility Functions'!$AN$3:$AN$5)","v":0},{"$f":"valuePL(V30,'Utility Functions'!$AO$3:$AO$5,'Utility Functions'!$AP$3:$AP$5)","v":1},{"$f":"valuePL(W30,'Utility Functions'!$AQ$3:$AQ$6,'Utility Functions'!$AR$3:$AR$6)","v":0.2},{"$f":"valuePL(X30,'Utility Functions'!$AS$3:$AS$6,'Utility Functions'!$AT$3:$AT$6)","v":0},{"$f":"valuePL(Y30,'Utility Functions'!$AU$3:$AU$6,'Utility Functions'!$AV$3:$AV$6)","v":0.8},{"$f":"valuePL(Z30,'Utility Functions'!$AW$3:$AW$5,'Utility Functions'!$AX$3:$AX$5)","v":0.5},{"$f":"valuePL(AA30,'Utility Functions'!$AY$3:$AY$6,'Utility Functions'!$AZ$3:$AZ$6)","v":0.2},{"$f":"valuePL(AB30,'Utility Functions'!$BA$3:$BA$5,'Utility Functions'!$BB$3:$BB$5)","v":0.25},{"$f":"valuePL(AC30,'Utility Functions'!$BC$3:$BC$5,'Utility Functions'!$BD$3:$BD$5)","v":1},12.453684519169958,null,12.453684519169958,3.0482299737154128,2.4054545454545453,0,3.05,3.95]
[30,{"$f":"valueE(B31,'Utility Functions'!$B$3,'Utility Functions'!$B$4,'Utility Functions'!$B$5,'Utility Functions'!$B$6)","v":0.99864114504770318},{"$f":"valueE(C31,'Utility Functions'!$D$3,'Utility Functions'!$D$4,'Utility Functions'!$D$5,'Utility Functions'!$D$6)","v":0.84744836833951609},{"$f":"valuePL(D31,'Utility Functions'!$E$3:$E$5,'Utility Functions'!$F$3:$F$5)","v":1},{"$f":"valuePL(E31,'Utility Functions'!$G$3:$G$5,'Utility Functions'!$H$3:$H$5)","v":0},{"$f":"valuePL(F31,'Utility Functions'!$I$3:$I$4,'Utility Functions'!$J$3:$J$5)","v":0},{"$f":"valueE(G31,'Utility Functions'!$L$3,'Utility Functions'!$L$4,'Utility Functions'!$L$5,'Utility Functions'!$L$6)","v":0},{"$f":"valueE(H31,'Utility Functions'!$N$3,'Utility Functions'!$N$4,'Utility Functions'!$N$5,'Utility Functions'!$N$6)","v":0},{"$f":"valuePL(I31,'Utility Functions'!$O$3:$O$6,'Utility Functions'!$P$3:$P$6)","v":0},{"$f":"valuePL(J31,'Utility Functions'!$Q$3:$Q$6,'Utility Functions'!$R$3:$R$6)","v":0},{"$f":"valuePL(K31,'Utility Functions'!$S$3:$S$7,'Utility Functions'!$T$3:$T$7)","v":0},{"$f":"valueE(L31,'Utility Functions'!$V$3,'Utility Functions'!$V$4,'Utility Functions'!$V$5,'Utility Functions'!$V$6)","v":0.33333333333333331},{"$f":"valuePL(M31,'Utility Functions'!$W$3:$W$6,'Utility Functions'!$X$3:$X$6)","v":0.04},{"$f":"valueE(N31,'Utility Functions'!$Z$3,'Utility Functions'!$Z$4,'Utility Functions'!$Z$5,'Utility Functions'!$Z$6)","v":0},{"$f":"valuePL(O31,'Utility Functions'!$AA$3:$AA$5,'Utility Functions'!$AB$3:$AB$5)","v":0},{"$f":"valuePL(P31,'Utility Functions'!$AC$3:$AC$7,'Utility Functions'!$AD$3:$AD$7)","v":0},{"$f":"valuePL(Q31,'Utility Functions'!$AE$3:$AE$6,'Utility Functions'!$AF$3:$AF$6)","v":0},{"$f":"valuePL(R31,'Utility Functions'!$AG$3:$AG$6,'Utility Functions'!$AH$3:$AH$6)","v":0.2},{"$f":"valuePL(S31,'Utility Functions'!$AI$3:$AI$6,'Utility Functions'!$AJ$3:$AJ$6)","v":0.33},{"$f":"valuePL(T31,'Utility Functions'!$AK$3:$AK$8,'Utility Functions'!$AL$3:$AL$8)","v":0},{"$f":"valuePL(U31,'Utility Functions'!$AM$3:$AM$5,'Utility Functions'!$AN$3:$AN$5)","v":0},{"$f":"valuePL(V31,'Utility Functions'!$AO$3:$AO$5,'Utility Functions'!$AP$3:$AP$5)","v":0},{"$f":"valuePL(W31,'Utility Functions'!$AQ$3:$AQ$6,'Utility Functions'!$AR$3:$AR$6)","v":1},{"$f":"valuePL(X31,'Utility Functions'!$AS$3:$AS$6,'Utility Functions'!$AT$3:$AT$6)","v":0.2},{"$f":"valuePL(Y31,'Utility Functions'!$AU$3:$AU$6,'Utility Functions'!$AV$3:$AV$6)","v":0.8},{"$f":"valuePL(Z31,'Utility Functions'!$AW$3:$AW$5,'Utility Functions'!$AX$3:$AX$5)","v":0},{"$f":"valuePL(AA31,'Utility Functions'!$AY$3:$AY$6,'Utility Functions'!$AZ$3:$AZ$6)","v":0.89999999999999991},{"$f":"valuePL(AB31,'Utility Functions'!$BA$3:$BA$5,'Utility Functions'!$BB$3:$BB$5)","v":1},{"$f":"valuePL(AC31,'Utility Functions'!$BC$3:$BC$5,'Utility Functions'!$BD$3:$BD$5)","v":0},7.6494228467205527,null,7.6494228467205527,2.846089513387219,0.37333333333333329,0,0.53,3.9]
[31,{"$f":"valueE(B32,'Utility Functions'!$B$3,'Utility Functions'!$B$4,'Utility Functions'!$B$5,'Utility Functions'!$B$6)","v":0.55067187023002029},{"$f":"valueE(C32,'Utility Functions'!$D$3,'Utility Functions'!$D$4,'Utility Functions'!$D$5,'Utility Functions'!$D$6)","v":0.84744836833951609},{"$f":"valuePL(D32,'Utility Functions'!$E$3:$E$5,'Utility Functions'!$F$3:$F$5)","v":0.5},{"$f":"valuePL(E32,'Utility Functions'!$G$3:$G$5,'Utility Functions'!$H$3:$H$5)","v":0},{"$f":"valuePL(F32,'Utility Functions'!$I$3:$I$4,'Utility Functions'!$J$3:$J$5)","v":0},{"$f":"valueE(G32,'Utility Functions'!$L$3,'Utility Functions'!$L$4,'Utility Functions'!$L$5,'Utility Functions'!$L$6)","v":0},{"$f":"valueE(H32,'Utility Functions'!$N$3,'Utility Functions'!$N$4,'Utility Functions'!$N$5,'Utility Functions'!$N$6)","v":0},{"$f":"valuePL(I32,'Utility Functions'!$O$3:$O$6,'Utility Functions'!$P$3:$P$6)","v":0.75454545454545452},{"$f":"valuePL(J32,'Utility Functions'!$Q$3:$Q$6,'Utility Functions'!$R$3:$R$6)","v":0.08},{"$f":"valuePL(K32,'Utility Functions'!$S$3:$S$7,'Utility Functions'!$T$3:$T$7)","v":0},{"$f":"valueE(L32,'Utility Functions'!$V$3,'Utility Functions'!$V$4,'Utility Functions'!$V$5,'Utility Functions'!$V$6)","v":0.33333333333333331},{"$f":"valuePL(M32,'Utility Functions'!$W$3:$W$6,'Utility Functions'!$X$3:$X$6)","v":0.08},{"$f":"valueE(N32,'Utility Functions'!$Z$3,'Utility Functions'!$Z$4,'Utility Functions'!$Z$5,'Utility Functions'!$Z$6)","v":0},{"$f":"valuePL(O32,'Utility Functions'!$AA$3:$AA$5,'Utility Functions'!$AB$3:$AB$5)","v":0},{"$f":"valuePL(P32,'Utility Functions'!$AC$3:$AC$7,'Utility Functions'!$AD$3:$AD$7)","v":0.5},{"$f":"valuePL(Q32,'Utility Functions'!$AE$3:$AE$6,'Utility Functions'!$AF$3:$AF$6)","v":0},{"$f":"valuePL(R32,'Utility Functions'!$AG$3:$AG$6,'Utility Functions'!$AH$3:$AH$6)","v":1},{"$f":"valuePL(S32,'Utility Functions'!$AI$3:$AI$6,'Utility Functions'!$AJ$3:$AJ$6)","v":0.66},{"$f":"valuePL(T32,'Utility Functions'!$AK$3:$AK$8,'Utility Functions'!$AL$3:$AL$8)","v":0.6},{"$f":"valuePL(U32,'Utility Functions'!$AM$3:$AM$5,'Utility Functions'!$AN$3:$AN$5)","v":0},{"$f":"valuePL(V32,'Utility Functions'!$AO$3:$AO$5,'Utility Functions'!$AP$3:$AP$5)","v":0.5},{"$f":"valuePL(W32,'Utility Functions'!$AQ$3:$AQ$6,'Utility Functions'!$AR$3:$AR$6)","v":0},{"$f":"valuePL(X32,'Utility Functions'!$AS$3:$AS$6,'Utility Functions'!$AT$3:$AT$6)","v":0.2},{"$f":"valuePL(Y32,'Utility Functions'!$AU$3:$AU$6,'Utility Functions'!$AV$3:$AV$6)","v":0.2},{"$f":"valuePL(Z32,'Utility Functions'!$AW$3:$AW$5,'Utility Functions'!$AX$3:$AX$5)","v":1},{"$f":"valuePL(AA32,'Utility Functions'!$AY$3:$AY$6,'Utility Functions'!$AZ$3:$AZ$6)","v":0.89999999999999991},{"$f":"valuePL(AB32,'Utility Functions'!$BA$3:$BA$5,'Utility Functions'!$BB$3:$BB$5)","v":0.25},{"$f":"valuePL(AC32,'Utility Functions'!$BC$3:$BC$5,'Utility Functions'!$BD$3:$BD$5)","v":0.25},9.2059990264483247,null,9.2059990264483247,1.8981202385695364,1.2478787878787878,0,2.7600000000000002,3.3]
[32,{"$f":"valueE(B33,'Utility Functions'!$B$3,'Utility Functions'!$B$4,'Utility Functions'!$B$5,'Utility Functions'!$B$6)","v":0.63212151658375171},{"$f":"valueE(C33,'Utility Functions'!$D$3,'Utility Functions'!$D$4,'Utility Functions'!$D$5,'Utility Functions'!$D$6)","v":0.26839655623815994},{"$f":"valuePL(D33,'Utility Functions'!$E$3:$E$5,'Utility Functions'!$F$3:$F$5)","v":1},{"$f":"valuePL(E33,'Utility Functions'!$G$3:$G$5,'Utility Functions'!$H$3:$H$5)","v":1},{"$f":"valuePL(F33,'Utility Functions'!$I$3:$I$4,'Utility Functions'!$J$3:$J$5)","v":1},{"$f":"valueE(G33,'Utility Functions'!$L$3,'Utility Functions'!$L$4,'Utility Functions'!$L$5,'Utility Functions'!$L$6)","v":3.2258064516129031E-2},{"$f":"valueE(H33,'Utility Functions'!$N$3,'Utility Functions'!$N$4,'Utility Functions'!$N$5,'Utility Functions'!$N$6)","v":9.6774193548387094E-2},{"$f":"valuePL(I33,'Utility Functions'!$O$3:$O$6,'Utility Functions'!$P$3:$P$6)","v":0.34545454545454546},{"$f":"valuePL(J33,'Utility Functions'!$Q$3:$Q$6,'Utility Functions'!$R$3:$R$6)","v":1},{"$f":"valuePL(K33,'Utility Functions'!$S$3:$S$7,'Utility Functions'!$T$3:$T$7)","v":0.34545454545454546},{"$f":"valueE(L33,'Utility Functions'!$V$3,'Utility Functions'!$V$4,'Utility Functions'!$V$5,'Utility Functions'!$V$6)","v":1},{"$f":"valuePL(M33,'Utility Functions'!$W$3:$W$6,'Utility Functions'!$X$3:$X$6)","v":1},{"$f":"valueE(N33,'Utility Functions'!$Z$3,'Utility Functions'!$Z$4,'Utility Functions'!$Z$5,'Utility Functions'!$Z$6)","v":0},{"$f":"valuePL(O33,'Utility Functions'!$AA$3:$AA$5,'Utility Functions'!$AB$3:$AB$5)","v":0},{"$f":"valuePL(P33,'Utility Functions'!$AC$3:$AC$7,'Utility Functions'!$AD$3:$AD$7)","v":0.5},{"$f":"valuePL(Q33,'Utility Functions'!$AE$3:$AE$6,'Utility Functions'!$AF$3:$AF$6)","v":1},{"$f":"valuePL(R33,'Utility Functions'!$AG$3:$AG$6,'Utility Functions'!$AH$3:$AH$6)","v":1},{"$f":"valuePL(S33,'Utility Functions'!$AI$3:$AI$6,'Utility Functions'!$AJ$3:$AJ$6)","v":0},{"$f":"valuePL(T33,'Utility Functions'!$AK$3:$AK$8,'Utility Functions'!$AL$3:$AL$8)","v":0.8},{"$f":"valuePL(U33,'Utility Functions'!$AM$3:$AM$5,'Utility Functions'!$AN$3:$AN$5)","v":0},{"$f":"valuePL(V33,'Utility Functions'!$AO$3:$AO$5,'Utility Functions'!$AP$3:$AP$5)","v":0},{"$f":"valuePL(W33,'Utility Functions'!$AQ$3:$AQ$6,'Utility Functions'!$AR$3:$AR$6)","v":0.75},{"$f":"valuePL(X33,'Utility Functions'!$AS$3:$AS$6,'Utility Functions'!$AT$3:$AT$6)","v":0.2},{"$f":"valuePL(Y33,'Utility Functions'!$AU$3:$AU$6,'Utility Functions'!$AV$3:$AV$6)","v":0.8},{"$f":"valuePL(Z33,'Utility Functions'!$AW$3:$AW$5,'Utility Functions'!$AX$3:$AX$5)","v":0.5},{"$f":"valuePL(AA33,'Utility Functions'!$AY$3:$AY$6,'Utility Functions'!$AZ$3:$AZ$6)","v":0},{"$f":"valuePL(AB33,'Utility Functions'!$BA$3:$BA$5,'Utility Functions'!$BB$3:$BB$5)","v":1},{"$f":"valuePL(AC33,'Utility Functions'!$BC$3:$BC$5,'Utility Functions'!$BD$3:$BD$5)","v":0.25},14.52045942179552,null,14.520459421795518,3.9005180728219115,3.8199413489736074,0,3.3,3.5]
[33,{"$f":"valueE(B34,'Utility Functions'!$B$3,'Utility Functions'!$B$4,'Utility Functions'!$B$5,'Utility Functions'!$B$6)","v":0.93919136038504192},{"$f":"valueE(C34,'Utility Functions'!$D$3,'Utility Functions'!$D$4,'Utility Functions'!$D$5,'Utility Functions'!$D$6)","v":0.84744836833951609},{"$f":"valuePL(D34,'Utility Functions'!$E$3:$E$5,'Utility Functions'!$F$3:$F$5)","v":1},{"$f":"valuePL(E34,'Utility Functions'!$G$3:$G$5,'Utility Functions'!$H$3:$H$5)","v":0.5},{"$f":"valuePL(F34,'Utility Functions'!$I$3:$I$4,'Utility Functions'!$J$3:$J$5)","v":0},{"$f":"valueE(G34,'Utility Functions'!$L$3,'Utility Functions'!$L$4,'Utility Functions'!$L$5,'Utility Functions'!$L$6)","v":0},{"$f":"valueE(H34,'Utility Functions'!$N$3,'Utility Functions'!$N$4,'Utility Functions'!$N$5,'Utility Functions'!$N$6)","v":0},{"$f":"valuePL(I34,'Utility Functions'!$O$3:$O$6,'Utility Functions'!$P$3:$P$6)","v":0},{"$f":"valuePL(J34,'Utility Functions'!$Q$3:$Q$6,'Utility Functions'!$R$3:$R$6)","v":0},{"$f":"valuePL(K34,'Utility Functions'!$S$3:$S$7,'Utility Functions'!$T$3:$T$7)","v":0},{"$f":"valueE(L34,'Utility Functions'!$V$3,'Utility Functions'!$V$4,'Utility Functions'!$V$5,'Utility Functions'!$V$6)","v":0.5},{"$f":"valuePL(M34,'Utility Functions'!$W$3:$W$6,'Utility Functions'!$X$3:$X$6)","v":0},{"$f":"valueE(N34,'Utility Functions'!$Z$3,'Utility Functions'!$Z$4,'Utility Functions'!$Z$5,'Utility Functions'!$Z$6)","v":0},{"$f":"valuePL(O34,'Utility Functions'!$AA$3:$AA$5,'Utility Functions'!$AB$3:$AB$5)","v":0},{"$f":"valuePL(P34,'Utility Functions'!$AC$3:$AC$7,'Utility Functions'!$AD$3:$AD$7)","v":0.5},{"$f":"valuePL(Q34,'Utility Functions'!$AE$3:$AE$6,'Utility Functions'!$AF$3:$AF$6)","v":0},{"$f":"valuePL(R34,'Utility Functions'!$AG$3:$AG$6,'Utility Functions'!$AH$3:$AH$6)","v":1},{"$f":"valuePL(S34,'Utility Functions'!$AI$3:$AI$6,'Utility Functions'!$AJ$3:$AJ$6)","v":0.66},{"$f":"valuePL(T34,'Utility Functions'!$AK$3:$AK$8,'Utility Functions'!$AL$3:$AL$8)","v":0},{"$f":"valuePL(U34,'Utility Functions'!$AM$3:$AM$5,'Utility Functions'!$AN$3:$AN$5)","v":0},{"$f":"valuePL(V34,'Utility Functions'!$AO$3:$AO$5,'Utility Functions'!$AP$3:$AP$5)","v":0.5},{"$f":"valuePL(W34,'Utility Functions'!$AQ$3:$AQ$6,'Utility Functions'!$AR$3:$AR$6)","v":1},{"$f":"valuePL(X34,'Utility Functions'!$AS$3:$AS$6,'Utility Functions'!$AT$3:$AT$6)","v":0},{"$f":"valuePL(Y34,'Utility Functions'!$AU$3:$AU$6,'Utility Functions'!$AV$3:$AV$6)","v":0.8},{"$f":"valuePL(Z34,'Utility Functions'!$AW$3:$AW$5,'Utility Functions'!$AX$3:$AX$5)","v":1},{"$f":"valuePL(AA34,'Utility Functions'!$AY$3:$AY$6,'Utility Functions'!$AZ$3:$AZ$6)","v":1},{"$f":"valuePL(AB34,'Utility Functions'!$BA$3:$BA$5,'Utility Functions'!$BB$3:$BB$5)","v":0},{"$f":"valuePL(AC34,'Utility Functions'!$BC$3:$BC$5,'Utility Functions'!$BD$3:$BD$5)","v":0},10.246639728724558,null,10.246639728724558,3.2866397287245581,0.5,0,2.16,4.3]
[34,{"$f":"valueE(B35,'Utility Functions'!$B$3,'Utility Functions'!$B$4,'Utility Functions'!$B$5,'Utility Functions'!$B$6)","v":0},{"$f":"valueE(C35,'Utility Functions'!$D$3,'Utility Functions'!$D$4,'Utility Functions'!$D$5,'Utility Functions'!$D$6)","v":0},{"$f":"valuePL(D35,'Utility Functions'!$E$3:$E$5,'Utility Functions'!$F$3:$F$5)","v":0},{"$f":"valuePL(E35,'Utility Functions'!$G$3:$G$5,'Utility Functions'!$H$3:$H$5)","v":0},{"$f":"valuePL(F35,'Utility Functions'!$I$3:$I$4,'Utility Functions'!$J$3:$J$5)","v":0},{"$f":"valueE(G35,'Utility Functions'!$L$3,'Utility Functions'!$L$4,'Utility Functions'!$L$5,'Utility Functions'!$L$6)","v":0},{"$f":"valueE(H35,'Utility Functions'!$N$3,'Utility Functions'!$N$4,'Utility Functions'!$N$5,'Utility Functions'!$N$6)","v":1.1385199240986717E-2},{"$f":"valuePL(I35,'Utility Functions'!$O$3:$O$6,'Utility Functions'!$P$3:$P$6)","v":1},{"$f":"valuePL(J35,'Utility Functions'!$Q$3:$Q$6,'Utility Functions'!$R$3:$R$6)","v":0.91818181818181821},{"$f":"valuePL(K35,'Utility Functions'!$S$3:$S$7,'Utility Functions'!$T$3:$T$7)","v":1},{"$f":"valueE(L35,'Utility Functions'!$V$3,'Utility Functions'!$V$4,'Utility Functions'!$V$5,'Utility Functions'!$V$6)","v":1},{"$f":"valuePL(M35,'Utility Functions'!$W$3:$W$6,'Utility Functions'!$X$3:$X$6)","v":0.91818181818181821},{"$f":"valueE(N35,'Utility Functions'!$Z$3,'Utility Functions'!$Z$4,'Utility Functions'!$Z$5,'Utility Functions'!$Z$6)","v":0},{"$f":"valuePL(O35,'Utility Functions'!$AA$3:$AA$5,'Utility Functions'!$AB$3:$AB$5)","v":0},{"$f":"valuePL(P35,'Utility Functions'!$AC$3:$AC$7,'Utility Functions'!$AD$3:$AD$7)","v":0.5},{"$f":"valuePL(Q35,'Utility Functions'!$AE$3:$AE$6,'Utility Functions'!$AF$3:$AF$6)","v":0},{"$f":"valuePL(R35,'Utility Functions'!$AG$3:$AG$6,'Utility Functions'!$AH$3:$AH$6)","v":1},{"$f":"valuePL(S35,'Utility Functions'!$AI$3:$AI$6,'Utility Functions'!$AJ$3:$AJ$6)","v":1},{"$f":"valuePL(T35,'Utility Functions'!$AK$3:$AK$8,'Utility Functions'!$AL$3:$AL$8)","v":0.8},{"$f":"valuePL(U35,'Utility Functions'!$AM$3:$AM$5,'Utility Functions'!$AN$3:$AN$5)","v":0},{"$f":"valuePL(V35,'Utility Functions'!$AO$3:$AO$5,'Utility Functions'!$AP$3:$AP$5)","v":1},{"$f":"valuePL(W35,'Utility Functions'!$AQ$3:$AQ$6,'Utility Functions'!$AR$3:$AR$6)","v":1},{"$f":"valuePL(X35,'Utility Functions'!$AS$3:$AS$6,'Utility Functions'!$AT$3:$AT$6)","v":1},{"$f":"valuePL(Y35,'Utility Functions'!$AU$3:$AU$6,'Utility Functions'!$AV$3:$AV$6)","v":0},{"$f":"valuePL(Z35,'Utility Functions'!$AW$3:$AW$5,'Utility Functions'!$AX$3:$AX$5)","v":1},{"$f":"valuePL(AA35,'Utility Functions'!$AY$3:$AY$6,'Utility Functions'!$AZ$3:$AZ$6)","v":0.89999999999999991},{"$f":"valuePL(AB35,'Utility Functions'!$BA$3:$BA$5,'Utility Functions'!$BB$3:$BB$5)","v":0.25},{"$f":"valuePL(AC35,'Utility Functions'!$BC$3:$BC$5,'Utility Functions'!$BD$3:$BD$5)","v":0},13.297748835604624,null,13.297748835604624,0,4.847748835604623,0,3.3,5.15]
[35,{"$f":"valueE(B36,'Utility Functions'!$B$3,'Utility Functions'!$B$4,'Utility Functions'!$B$5,'Utility Functions'!$B$6)","v":0.79810469124896843},{"$f":"valueE(C36,'Utility Functions'!$D$3,'Utility Functions'!$D$4,'Utility Functions'!$D$5,'Utility Functions'!$D$6)","v":0.60939983135101949},{"$f":"valuePL(D36,'Utility Functions'!$E$3:$E$5,'Utility Functions'!$F$3:$F$5)","v":0.5},{"$f":"valuePL(E36,'Utility Functions'!$G$3:$G$5,'Utility Functions'!$H$3:$H$5)","v":0.5},{"$f":"valuePL(F36,'Utility Functions'!$I$3:$I$4,'Utility Functions'!$J$3:$J$5)","v":1},{"$f":"valueE(G36,'Utility Functions'!$L$3,'Utility Functions'!$L$4,'Utility Functions'!$L$5,'Utility Functions'!$L$6)","v":0},{"$f":"valueE(H36,'Utility Functions'!$N$3,'Utility Functions'!$N$4,'Utility Functions'!$N$5,'Utility Functions'!$N$6)","v":0},{"$f":"valuePL(I36,'Utility Functions'!$O$3:$O$6,'Utility Functions'!$P$3:$P$6)","v":0},{"$f":"valuePL(J36,'Utility Functions'!$Q$3:$Q$6,'Utility Functions'!$R$3:$R$6)","v":0},{"$f":"valuePL(K36,'Utility Functions'!$S$3:$S$7,'Utility Functions'!$T$3:$T$7)","v":1},{"$f":"valueE(L36,'Utility Functions'!$V$3,'Utility Functions'!$V$4,'Utility Functions'!$V$5,'Utility Functions'!$V$6)","v":0.66666666666666663},{"$f":"valuePL(M36,'Utility Functions'!$W$3:$W$6,'Utility Functions'!$X$3:$X$6)","v":0.1},{"$f":"valueE(N36,'Utility Functions'!$Z$3,'Utility Functions'!$Z$4,'Utility Functions'!$Z$5,'Utility Functions'!$Z$6)","v":1},{"$f":"valuePL(O36,'Utility Functions'!$AA$3:$AA$5,'Utility Functions'!$AB$3:$AB$5)","v":0},{"$f":"valuePL(P36,'Utility Functions'!$AC$3:$AC$7,'Utility Functions'!$AD$3:$AD$7)","v":0},{"$f":"valuePL(Q36,'Utility Functions'!$AE$3:$AE$6,'Utility Functions'!$AF$3:$AF$6)","v":0},{"$f":"valuePL(R36,'Utility Functions'!$AG$3:$AG$6,'Utility Functions'!$AH$3:$AH$6)","v":1},{"$f":"valuePL(S36,'Utility Functions'!$AI$3:$AI$6,'Utility Functions'!$AJ$3:$AJ$6)","v":1},{"$f":"valuePL(T36,'Utility Functions'!$AK$3:$AK$8,'Utility Functions'!$AL$3:$AL$8)","v":0.6},{"$f":"valuePL(U36,'Utility Functions'!$AM$3:$AM$5,'Utility Functions'!$AN$3:$AN$5)","v":0},{"$f":"valuePL(V36,'Utility Functions'!$AO$3:$AO$5,'Utility Functions'!$AP$3:$AP$5)","v":1},{"$f":"valuePL(W36,'Utility Functions'!$AQ$3:$AQ$6,'Utility Functions'!$AR$3:$AR$6)","v":0.75},{"$f":"valuePL(X36,'Utility Functions'!$AS$3:$AS$6,'Utility Functions'!$AT$3:$AT$6)","v":0},{"$f":"valuePL(Y36,'Utility Functions'!$AU$3:$AU$6,'Utility Functions'!$AV$3:$AV$6)","v":0.2},{"$f":"valuePL(Z36,'Utility Functions'!$AW$3:$AW$5,'Utility Functions'!$AX$3:$AX$5)","v":1},{"$f":"valuePL(AA36,'Utility Functions'!$AY$3:$AY$6,'Utility Functions'!$AZ$3:$AZ$6)","v":0},{"$f":"valuePL(AB36,'Utility Functions'!$BA$3:$BA$5,'Utility Functions'!$BB$3:$BB$5)","v":0.25},{"$f":"valuePL(AC36,'Utility Functions'!$BC$3:$BC$5,'Utility Functions'!$BD$3:$BD$5)","v":0.25},12.224171189266654,null,12.224171189266656,3.407504522599988,1.7666666666666666,1,2.6,3.45]
["Unweighted",{"$f":"SUMPRODUCT(B46:B80,$B$85:$B$119)","v":2.4313097951313183},{"$f":"SUMPRODUCT(C46:C80,$B$85:$B$119)","v":1.66702526070833},{"$f":"SUMPRODUCT(D46:D80,$B$85:$B$119)","v":5},1,0,1,1,1.4672727272727273,0.18000000000000002,1,0,0.1,0.5,0.25,1.5,0.8,3.8,5,3.2,0.25,2,3.75,5,2.2000000000000002,1,1,4,1.75,null,null,"Unweighted",{"$f":"SUMPRODUCT(AG46:AG80,$B$85:$B$119)","v":10.098335055839648},{"$f":"SUMPRODUCT(AH46:AH80,$B$85:$B$119)","v":4.747272727272728},0.75,14.55,20.7]
["Weighted",{"$f":"B$81*Sens_Rigor!I$5","v":5.8412941622846028E-2},{"$f":"C$81*Sens_Rigor!J$5","v":3.7860994039206508E-2},{"$f":"D$81*Sens_Rigor!K$5","v":0.11500465470714716},{"$f":"E$81*Sens_Rigor!L$5","v":2.2408750284357268E-2},{"$f":"F$81*Sens_Rigor!M$5","v":0},{"$f":"G$81*Sens_Rigor!N$5","v":1.1246483485066024E-2},{"$f":"H$81*Sens_Rigor!O$5","v":1.1246483485066024E-2},{"$f":"I$81*Sens_Rigor!P$5","v":2.8011377771831165E-2},{"$f":"J$81*Sens_Rigor!Q$5","v":3.3485413896129834E-3},{"$f":"K$81*Sens_Rigor!R$5","v":1.639002930311647E-2},{"$f":"L$81*Sens_Rigor!S$5","v":0},{"$f":"M$81*Sens_Rigor!T$5","v":1.268465141537666E-3},{"$f":"N$81*Sens_Rigor!U$5","v":1.1363636363636362E-2},{"$f":"O$81*Sens_Rigor!V$5","v":1.7045454545454544E-2},{"$f":"P$81*Sens_Rigor!W$5","v":4.4928908982854107E-2},{"$f":"Q$81*Sens_Rigor!X$5","v":2.6413719456187729E-2},{"$f":"R$81*Sens_Rigor!Y$5","v":0.14361349520158778},{"$f":"S$81*Sens_Rigor!Z$5","v":0.16550546562963991},{"$f":"T$81*Sens_Rigor!AA$5","v":7.7098959476711859E-2},{"$f":"U$81*Sens_Rigor!AB$5","v":5.965220873481971E-3},{"$f":"V$81*Sens_Rigor!AC$5","v":0.16016578765068418},{"$f":"W$81*Sens_Rigor!AD$5","v":0.21657558947218342},{"$f":"X$81*Sens_Rigor!AE$5","v":0.30881923863518779},{"$f":"Y$81*Sens_Rigor!AF$5","v":0.16885500162759717},{"$f":"Z$81*Sens_Rigor!AG$5","v":6.650400296806909E-2},{"$f":"AA$81*Sens_Rigor!AH$5","v":5.1530460389127203E-2},{"$f":"AB$81*Sens_Rigor!AI$5","v":0.21859600967777953},{"$f":"AC$81*Sens_Rigor!AJ$5","v":8.9187050186454453E-2},null,null,"Weighted for SA",{"$f":"AG81*#REF!","v":{"$error":"#REF!"}},{"$f":"AH81*#REF!","v":{"$error":"#REF!"}},{"$f":"AI81*#REF!","v":{"$error":"#REF!"}},{"$f":"AJ81*#REF!","v":{"$error":"#REF!"}},{"$f":"AK81*#REF!","v":{"$error":"#REF!"}}]
[]
[null,"Decision variable","Benefit","Cost"]
[{"$f":"A2","v":1},1,{"$f":"AD46","v":17.117643866192076},{"$f":"AD2","v":700000}]
[2,0,{"$f":"AD47","v":12.641625800575998},{"$f":"AD3","v":5400000}]
[3,0,11.563541444302563,250000]
[4,1,9.2460291931089209,150000]
[5,1,9.5663279251355373,220000]
[6,1,5.9008471271383875,110000]
[7,0,15.54287399641135,1000000]
[8,0,14.227364688589191,5000000]
[9,0,11.893773577166716,25000]
[10,0,9.01,900000]
[11,0,13.174032258064516,1500000]
[12,0,9.4195802436719873,100000]
[13,0,7.5245670174228056,250000]
[14,0,10.338706637075108,500000]
[15,0,15.150477261414375,800000]
[16,0,15.119696969696969,2000000]
[17,0,10.876550515651747,500000]
[18,0,10.178462998102468,300000]
[19,0,9.3165012474871283,750000]
[20,0,15.091255033092194,1500000]
[21,0,9.5500000000000007,900000]
[22,0,9.471742567994939,750000]
[23,0,9.5321507448123199,1000000]
[24,0,9.4968811881212041,150000]
[25,0,13.870607417804099,250000]
[26,0,11.064076562960208,500000]
[27,1,9.0147596715374529,1200000]
[28,0,12.499282052393189,500000]
[29,0,12.453684519169958,2000000]
[30,0,7.6494228467205527,250000]
[31,0,9.2059990264483247,650000]
[32,0,14.52045942179552,200000]
[33,0,10.246639728724558,400000]
[34,0,13.297748835604624,900000]
[35,0,12.224171189266654,900000]
[null,{"$f":"SUM(B85:B119)","v":5},{"$f":"SUMPRODUCT(C85:C119,B85:B119)","v":50.845607783112378},{"$f":"SUMPRODUCT(B85:B119,D85:D119)","v":2380000}]
[]
[null,null,"Cost constraint",15000000]

{"sheet":"Portfolio_C_Rigor","index":25,"n_rows":122,"n_cols":37,"rows_kept":122,"cut":false,"hidden":false,"merged":[]}
["Project","manage_species","manage_spatial","manage_uncertainty","manage_currentpractices","manage_adaptivemanagement","pop_a","pop_b","pop_spatialscope","pop_temporalscope","hab_quantity","hab_quality","hab_temporal","ecoprocess_spp","ecoprocess_uncertainty","datasharing","broaderimpacts","exisitingpriorities","partners","leverage","alignment","objhyp","response","targettaxa","surveydesign","stats","datamanagement","budget","timeline","cost"]
[1,9,6.25,2,2,0,186,1054,75,5,0,2,0,0,0,4,0,2,3,0,0,2,3,3,3,2,3,2,2,700000]
[2,3,28.2,1,0,0,0,0,0,0,0,2,0,4,1,0,0,3,3,0,0,2,3,3,3,2,3,2,2,5400000]
[3,8,28.2,2,0,0,0,0,0,0,0,2,0,5,1,0,2,0,0,0,1,2,3,3,3,2,1,2,2,250000]
[4,1,6.25,2,0,0,0,0,0,0,0,2,0,4,1,0,1,3,3,4,0,1,3,3,1,0,0,2,1,150000]
[5,4,3.1,2,0,0,0,0,50,2,0,2,0,0,0,0,1,3,3,4,1,0,3,3,2,0,0,2,1,220000]
[6,10,6.2E-2,2,0,0,0,0,10,2,0,2,0,0,0,0,1,0,3,3,0,0,0,3,0,0,0,2,1,110000]
[7,52,18.8,0,2,0,0,0,85,12,85,8,12,8,1,0,0,3,3,0,0,2,0,1,3,2,2,0,2,1000000]
[8,3,18.8,2,1,1,0,0,14,14,14,8,14,0,0,0,3,1,3,0,0,2,3,3,3,2,0,1,1,5000000]
[9,9,15.6,2,1,0,70,140,0,0,0,2,0,0,0,3,0,3,2,1,0,2,3,3,1,2,1,1,2,25000]
[10,0,0,0,0,0,0,0,0,0,0,2,0,6,2,1,2,3,2,2,0,0,2,3,3,1,1,0,2,900000]
[11,0,0,0,0,0,6,102,52,15,52,8,15,3,1,1,0,3,3,2,2,2,1,3,3,1,2,0,1,1500000]
[12,2,15.6,2,1,0,0,0,0,0,0,2,0,0,0,0,1,3,3,3,0,1,1,3,1,2,1,2,0,100000]
[13,0,0,0,0,0,0,12,39,2,39,8,2,7,1,1,0,3,3,0,0,1,0,1,0,2,1,1,1,250000]
[14,6,15.6,1,1,0,0,0,0,0,0,2,0,6,1,1,0,3,3,0,0,1,1,3,3,1,2,1,1,500000]
[15,23,12.5,2,1,1,0,0,23,3,23,8,3,1,2,2,0,2,3,3,2,0,3,1,1,2,3,2,1,800000]
[16,0,0,0,0,0,0,0,100,15,100,7,15,0,0,3,0,3,3,5,0,2,2,2,1,2,3,2,2,2000000]
[17,2,15.6,2,1,1,58,290,0,0,0,8,3,0,0,0,0,3,2,0,0,2,3,1,0,1,0,2,1,500000]
[18,0,0,0,0,0,0,30,0,0,0,2,0,8,1,1,3,3,3,5,1,2,2,1,2,1,2,1,0,300000]
[19,8,3.125,1,2,0,0,0,0,0,0,2,0,8,2,0,0,2,3,0,0,1,1,3,2,0,1,0,1,750000]
[20,9,15.6,1,2,0,0,435,76,10,76,6,10,8,2,1,0,3,3,3,2,1,0,0,1,2,1,0,1,1500000]
[21,0,0,0,0,0,0,0,0,0,0,2,0,8,2,0,1,3,3,5,1,0,2,3,1,0,3,1,2,900000]
[22,0,0,0,0,0,16,64,0,0,0,2,0,1,2,4,2,2,3,5,0,1,2,1,0,2,1,2,1,750000]
[23,9,18.8,2,0,0,0,0,0,0,0,2,0,0,0,3,0,3,3,5,0,2,1,2,1,1,1,0,1,1000000]
[24,5,6.25,2,0,0,0,0,0,0,0,2,0,0,0,0,0,3,3,5,0,0,3,1,3,2,1,0,2,150000]
[25,9,18.8,2,0,0,176,308,0,0,0,2,0,8,1,2,2,3,3,0,0,2,1,3,2,1,1,2,2,250000]
[26,17,18.8,2,1,0,0,0,0,0,0,2,0,0,0,3,0,3,3,4,0,2,1,0,2,0,1,2,2,500000]
[27,0,6.25,2,0,0,0,0,0,0,80,2,5,0,0,2,2,3,3,5,0,1,2,3,1,0,0,0,0,1200000]
[28,3,6.25,2,0,1,0,0,0,0,0,4,5,0,0,4,0,3,3,4,0,2,3,3,1,0,2,2,1,500000]
[29,9,12.5,2,1,0,0,0,15,12,15,8,12,0,0,1,0,3,3,4,0,2,1,0,2,1,1,1,2,2000000]
[30,33,18.8,2,0,0,0,0,0,0,0,4,2,0,0,0,0,1,1,0,0,0,3,1,2,0,2,2,0,250000]
[31,4,18.8,1,0,0,0,0,65,4,0,4,4,0,0,2,0,3,2,3,0,1,0,1,1,2,2,1,1,650000]
[32,5,3.125,2,2,1,6,102,40,16,40,8,16,0,0,2,3,3,0,4,0,0,2,1,2,1,0,2,1,200000]
[33,14,18.8,2,1,0,0,0,0,0,0,5,0,0,0,2,0,3,2,0,0,1,3,0,2,2,3,0,0,400000]
[34,0,0,0,0,0,0,12,100,15,100,8,15,0,0,2,0,3,3,4,0,2,3,3,0,2,2,1,0,900000]
[35,8,9.4,1,1,1,0,0,0,0,100,6,5,8,0,0,0,3,3,3,0,2,2,0,1,2,0,1,1,900000]
["CV",{"$f":"_xlfn.STDEV.S(B2:B36)/AVERAGE(B2:B36)","v":1.383842854444886},{"$f":"_xlfn.STDEV.S(C2:C36)/AVERAGE(C2:C36)","v":0.84395823753626376},{"$f":"_xlfn.STDEV.S(D2:D36)/AVERAGE(D2:D36)","v":0.65948586466528381},{"$f":"_xlfn.STDEV.S(E2:E36)/AVERAGE(E2:E36)","v":1.2933654230908831},2.2305806858480666,2.9881459898804135,2.7250501152884543,1.5394659205075842,1.5790297611729722,1.6828143944790142,0.63288342730791625,1.4346340567392073,1.2744250477591585,1.2909944487358058,1.043011114951035,1.4910544805781871,0.32582327651393111,0.30721159062514791,0.8219511329380369,2.1760730956581078,0.64975875258290616,0.58618247649425104,0.61083323417736113,0.63333947951472869,0.68629571860885286,0.76505300516434493,0.69428102652373402,0.60312027652595823]
["sd",{"$f":"_xlfn.STDEV.S(B2:B36)","v":10.477667326511279}]
["mean",{"$f":"AVERAGE(B2:B36)","v":7.5714285714285712}]
[null,{"$f":"B1","v":"manage_species"},{"$f":"C1","v":"manage_spatial"},"manage_uncertainty","manage_currentpractices","manage_adaptivemanagement","pop_a","pop_b","pop_spatialscope","pop_temporalscope","hab_quantity","hab_quality","hab_temporal","ecoprocess_spp","ecoprocess_uncertainty","datasharing","broaderimpacts","exisitingpriorities","partners","leverage","alignment","objhyp","response","targettaxa","surveydesign","stats","datamanagement","budget","timeline"]
[null,"Metric 1","Metric 2","Metric 3","Metric 4","Metric 5","Metric 6a","Metric 6b","Metric 7","Metric 8","Metric 9","Metric 10","Metric 11","Metric 12","Metric 13","Metric 14","Metric 15","Metric 16","Metric 17","Metric 18","Metric 19","Metric 20","Metric 21","Metric 22","Metric 23","Metric 24","Metric 25","Metric 26","Metric 27"]
["Weights",0.03,0.03,0.03,0.03,0.04,1.4999999999999999E-2,1.4999999999999999E-2,0.03,0.02,0.02,0.02,0.02,0.03,0.09,0.04,0.04,0.05,0.05,0.03,0.03,0.05,0.04,0.04,0.05,0.05,0.04,0.04,0.03]
[]
[null,"Unweighted"]
["Project",null,null,null,null,null,null,null,null,null,null,null,null,null,null,null,null,null,null,null,null,null,null,null,null,null,null,null,null,"Unweighted total",null,"Unweighted total","management","status","ecol_proc","integration","rigor"]
[{"$f":"A2","v":1},{"$f":"valueE(B2,'Utility Functions'!$B$3,'Utility Functions'!$B$4,'Utility Functions'!$B$5,'Utility Functions'!$B$6)","v":0.83470237647280454},{"$f":"valueE(C2,'Utility Functions'!$D$3,'Utility Functions'!$D$4,'Utility Functions'!$D$5,'Utility Functions'!$D$6)","v":0.46475967153745396},{"$f":"valuePL(D2,'Utility Functions'!$E$3:$E$5,'Utility Functions'!$F$3:$F$5)","v":1},{"$f":"valuePL(E2,'Utility Functions'!$G$3:$G$5,'Utility Functions'!$H$3:$H$5)","v":1},{"$f":"valuePL(F2,'Utility Functions'!$I$3:$I$4,'Utility Functions'!$J$3:$J$5)","v":0},{"$f":"valueE(G2,'Utility Functions'!$L$3,'Utility Functions'!$L$4,'Utility Functions'!$L$5,'Utility Functions'!$L$6)","v":1},{"$f":"valueE(H2,'Utility Functions'!$N$3,'Utility Functions'!$N$4,'Utility Functions'!$N$5,'Utility Functions'!$N$6)","v":1},{"$f":"valuePL(I2,'Utility Functions'!$O$3:$O$6,'Utility Functions'!$P$3:$P$6)","v":0.91818181818181821},{"$f":"valuePL(J2,'Utility Functions'!$Q$3:$Q$6,'Utility Functions'!$R$3:$R$6)","v":0.1},{"$f":"valuePL(K2,'Utility Functions'!$S$3:$S$7,'Utility Functions'!$T$3:$T$7)","v":0},{"$f":"valueE(L2,'Utility Functions'!$V$3,'Utility Functions'!$V$4,'Utility Functions'!$V$5,'Utility Functions'!$V$6)","v":0},{"$f":"valuePL(M2,'Utility Functions'!$W$3:$W$6,'Utility Functions'!$X$3:$X$6)","v":0},{"$f":"valueE(N2,'Utility Functions'!$Z$3,'Utility Functions'!$Z$4,'Utility Functions'!$Z$5,'Utility Functions'!$Z$6)","v":0},{"$f":"valuePL(O2,'Utility Functions'!$AA$3:$AA$5,'Utility Functions'!$AB$3:$AB$5)","v":0},{"$f":"valuePL(P2,'Utility Functions'!$AC$3:$AC$7,'Utility Functions'!$AD$3:$AD$7)","v":1},{"$f":"valuePL(Q2,'Utility Functions'!$AE$3:$AE$6,'Utility Functions'!$AF$3:$AF$6)","v":0},{"$f":"valuePL(R2,'Utility Functions'!$AG$3:$AG$6,'Utility Functions'!$AH$3:$AH$6)","v":0.8},{"$f":"valuePL(S2,'Utility Functions'!$AI$3:$AI$6,'Utility Functions'!$AJ$3:$AJ$6)","v":1},{"$f":"valuePL(T2,'Utility Functions'!$AK$3:$AK$8,'Utility Functions'!$AL$3:$AL$8)","v":0},{"$f":"valuePL(U2,'Utility Functions'!$AM$3:$AM$5,'Utility Functions'!$AN$3:$AN$5)","v":0},{"$f":"valuePL(V2,'Utility Functions'!$AO$3:$AO$5,'Utility Functions'!$AP$3:$AP$5)","v":1},{"$f":"valuePL(W2,'Utility Functions'!$AQ$3:$AQ$6,'Utility Functions'!$AR$3:$AR$6)","v":1},{"$f":"valuePL(X2,'Utility Functions'!$AS$3:$AS$6,'Utility Functions'!$AT$3:$AT$6)","v":1},{"$f":"valuePL(Y2,'Utility Functions'!$AU$3:$AU$6,'Utility Functions'!$AV$3:$AV$6)","v":1},{"$f":"valuePL(Z2,'Utility Functions'!$AW$3:$AW$5,'Utility Functions'!$AX$3:$AX$5)","v":1},{"$f":"valuePL(AA2,'Utility Functions'!$AY$3:$AY$6,'Utility Functions'!$AZ$3:$AZ$6)","v":1},{"$f":"valuePL(AB2,'Utility Functions'!$BA$3:$BA$5,'Utility Functions'!$BB$3:$BB$5)","v":1},{"$f":"valuePL(AC2,'Utility Functions'!$BC$3:$BC$5,'Utility Functions'!$BD$3:$BD$5)","v":1},{"$f":"SUM(B46:AC46)","v":17.117643866192076},null,{"$f":"SUM(AG46:AK46)","v":17.117643866192076},{"$f":"SUM(B46:F46)","v":3.2994620480102586},{"$f":"SUM(G46:M46)","v":3.0181818181818181},{"$f":"SUM(N46:O46)","v":0},{"$f":"SUM(P46:U46)","v":2.8},{"$f":"SUM(V46:AC46)","v":8}]
[2,{"$f":"valueE(B3,'Utility Functions'!$B$3,'Utility Functions'!$B$4,'Utility Functions'!$B$5,'Utility Functions'!$B$6)","v":0.4511890475224023},{"$f":"valueE(C3,'Utility Functions'!$D$3,'Utility Functions'!$D$4,'Utility Functions'!$D$5,'Utility Functions'!$D$6)","v":0.94043675305359531},{"$f":"valuePL(D3,'Utility Functions'!$E$3:$E$5,'Utility Functions'!$F$3:$F$5)","v":0.5},{"$f":"valuePL(E3,'Utility Functions'!$G$3:$G$5,'Utility Functions'!$H$3:$H$5)","v":0},{"$f":"valuePL(F3,'Utility Functions'!$I$3:$I$4,'Utility Functions'!$J$3:$J$5)","v":0},{"$f":"valueE(G3,'Utility Functions'!$L$3,'Utility Functions'!$L$4,'Utility Functions'!$L$5,'Utility Functions'!$L$6)","v":0},{"$f":"valueE(H3,'Utility Functions'!$N$3,'Utility Functions'!$N$4,'Utility Functions'!$N$5,'Utility Functions'!$N$6)","v":0},{"$f":"valuePL(I3,'Utility Functions'!$O$3:$O$6,'Utility Functions'!$P$3:$P$6)","v":0},{"$f":"valuePL(J3,'Utility Functions'!$Q$3:$Q$6,'Utility Functions'!$R$3:$R$6)","v":0},{"$f":"valuePL(K3,'Utility Functions'!$S$3:$S$7,'Utility Functions'!$T$3:$T$7)","v":0},{"$f":"valueE(L3,'Utility Functions'!$V$3,'Utility Functions'!$V$4,'Utility Functions'!$V$5,'Utility Functions'!$V$6)","v":0},{"$f":"valuePL(M3,'Utility Functions'!$W$3:$W$6,'Utility Functions'!$X$3:$X$6)","v":0},{"$f":"valueE(N3,'Utility Functions'!$Z$3,'Utility Functions'!$Z$4,'Utility Functions'!$Z$5,'Utility Functions'!$Z$6)","v":0.5},{"$f":"valuePL(O3,'Utility Functions'!$AA$3:$AA$5,'Utility Functions'!$AB$3:$AB$5)","v":0.25},{"$f":"valuePL(P3,'Utility Functions'!$AC$3:$AC$7,'Utility Functions'!$AD$3:$AD$7)","v":0},{"$f":"valuePL(Q3,'Utility Functions'!$AE$3:$AE$6,'Utility Functions'!$AF$3:$AF$6)","v":0},{"$f":"valuePL(R3,'Utility Functions'!$AG$3:$AG$6,'Utility Functions'!$AH$3:$AH$6)","v":1},{"$f":"valuePL(S3,'Utility Functions'!$AI$3:$AI$6,'Utility Functions'!$AJ$3:$AJ$6)","v":1},{"$f":"valuePL(T3,'Utility Functions'!$AK$3:$AK$8,'Utility Functions'!$AL$3:$AL$8)","v":0},{"$f":"valuePL(U3,'Utility Functions'!$AM$3:$AM$5,'Utility Functions'!$AN$3:$AN$5)","v":0},{"$f":"valuePL(V3,'Utility Functions'!$AO$3:$AO$5,'Utility Functions'!$AP$3:$AP$5)","v":1},{"$f":"valuePL(W3,'Utility Functions'!$AQ$3:$AQ$6,'Utility Functions'!$AR$3:$AR$6)","v":1},{"$f":"valuePL(X3,'Utility Functions'!$AS$3:$AS$6,'Utility Functions'!$AT$3:$AT$6)","v":1},{"$f":"valuePL(Y3,'Utility Functions'!$AU$3:$AU$6,'Utility Functions'!$AV$3:$AV$6)","v":1},{"$f":"valuePL(Z3,'Utility Functions'!$AW$3:$AW$5,'Utility Functions'!$AX$3:$AX$5)","v":1},{"$f":"valuePL(AA3,'Utility Functions'!$AY$3:$AY$6,'Utility Functions'!$AZ$3:$AZ$6)","v":1},{"$f":"valuePL(AB3,'Utility Functions'!$BA$3:$BA$5,'Utility Functions'!$BB$3:$BB$5)","v":1},{"$f":"valuePL(AC3,'Utility Functions'!$BC$3:$BC$5,'Utility Functions'!$BD$3:$BD$5)","v":1},{"$f":"SUM(B47:AC47)","v":12.641625800575998},null,{"$f":"SUM(AG47:AK47)","v":12.641625800575998},{"$f":"SUM(B47:F47)","v":1.8916258005759976},{"$f":"SUM(G47:M47)","v":0},{"$f":"SUM(N47:O47)","v":0.75},{"$f":"SUM(P47:U47)","v":2},{"$f":"SUM(V47:AC47)","v":8}]
[3,{"$f":"valueE(B4,'Utility Functions'!$B$3,'Utility Functions'!$B$4,'Utility Functions'!$B$5,'Utility Functions'!$B$6)","v":0.79810469124896843},{"$f":"valueE(C4,'Utility Functions'!$D$3,'Utility Functions'!$D$4,'Utility Functions'!$D$5,'Utility Functions'!$D$6)","v":0.94043675305359531},{"$f":"valuePL(D4,'Utility Functions'!$E$3:$E$5,'Utility Functions'!$F$3:$F$5)","v":1},{"$f":"valuePL(E4,'Utility Functions'!$G$3:$G$5,'Utility Functions'!$H$3:$H$5)","v":0},{"$f":"valuePL(F4,'Utility Functions'!$I$3:$I$4,'Utility Functions'!$J$3:$J$5)","v":0},{"$f":"valueE(G4,'Utility Functions'!$L$3,'Utility Functions'!$L$4,'Utility Functions'!$L$5,'Utility Functions'!$L$6)","v":0},{"$f":"valueE(H4,'Utility Functions'!$N$3,'Utility Functions'!$N$4,'Utility Functions'!$N$5,'Utility Functions'!$N$6)","v":0},{"$f":"valuePL(I4,'Utility Functions'!$O$3:$O$6,'Utility Functions'!$P$3:$P$6)","v":0},{"$f":"valuePL(J4,'Utility Functions'!$Q$3:$Q$6,'Utility Functions'!$R$3:$R$6)","v":0},{"$f":"valuePL(K4,'Utility Functions'!$S$3:$S$7,'Utility Functions'!$T$3:$T$7)","v":0},{"$f":"valueE(L4,'Utility Functions'!$V$3,'Utility Functions'!$V$4,'Utility Functions'!$V$5,'Utility Functions'!$V$6)","v":0},{"$f":"valuePL(M4,'Utility Functions'!$W$3:$W$6,'Utility Functions'!$X$3:$X$6)","v":0},{"$f":"valueE(N4,'Utility Functions'!$Z$3,'Utility Functions'!$Z$4,'Utility Functions'!$Z$5,'Utility Functions'!$Z$6)","v":0.625},{"$f":"valuePL(O4,'Utility Functions'!$AA$3:$AA$5,'Utility Functions'!$AB$3:$AB$5)","v":0.25},{"$f":"valuePL(P4,'Utility Functions'!$AC$3:$AC$7,'Utility Functions'!$AD$3:$AD$7)","v":0},{"$f":"valuePL(Q4,'Utility Functions'!$AE$3:$AE$6,'Utility Functions'!$AF$3:$AF$6)","v":0.5},{"$f":"valuePL(R4,'Utility Functions'!$AG$3:$AG$6,'Utility Functions'!$AH$3:$AH$6)","v":0},{"$f":"valuePL(S4,'Utility Functions'!$AI$3:$AI$6,'Utility Functions'!$AJ$3:$AJ$6)","v":0},{"$f":"valuePL(T4,'Utility Functions'!$AK$3:$AK$8,'Utility Functions'!$AL$3:$AL$8)","v":0},{"$f":"valuePL(U4,'Utility Functions'!$AM$3:$AM$5,'Utility Functions'!$AN$3:$AN$5)","v":0.25},{"$f":"valuePL(V4,'Utility Functions'!$AO$3:$AO$5,'Utility Functions'!$AP$3:$AP$5)","v":1},{"$f":"valuePL(W4,'Utility Functions'!$AQ$3:$AQ$6,'Utility Functions'!$AR$3:$AR$6)","v":1},{"$f":"valuePL(X4,'Utility Functions'!$AS$3:$AS$6,'Utility Functions'!$AT$3:$AT$6)","v":1},{"$f":"valuePL(Y4,'Utility Functions'!$AU$3:$AU$6,'Utility Functions'!$AV$3:$AV$6)","v":1},{"$f":"valuePL(Z4,'Utility Functions'!$AW$3:$AW$5,'Utility Functions'!$AX$3:$AX$5)","v":1},{"$f":"valuePL(AA4,'Utility Functions'!$AY$3:$AY$6,'Utility Functions'!$AZ$3:$AZ$6)","v":0.2},{"$f":"valuePL(AB4,'Utility Functions'!$BA$3:$BA$5,'Utility Functions'!$BB$3:$BB$5)","v":1},{"$f":"valuePL(AC4,'Utility Functions'!$BC$3:$BC$5,'Utility Functions'!$BD$3:$BD$5)","v":1},11.563541444302563,null,11.563541444302565,2.7385414443025637,0,0.875,0.75,7.2]
[4,{"$f":"valueE(B5,'Utility Functions'!$B$3,'Utility Functions'!$B$4,'Utility Functions'!$B$5,'Utility Functions'!$B$6)","v":0.1812695215714665},{"$f":"valueE(C5,'Utility Functions'!$D$3,'Utility Functions'!$D$4,'Utility Functions'!$D$5,'Utility Functions'!$D$6)","v":0.46475967153745396},{"$f":"valuePL(D5,'Utility Functions'!$E$3:$E$5,'Utility Functions'!$F$3:$F$5)","v":1},{"$f":"valuePL(E5,'Utility Functions'!$G$3:$G$5,'Utility Functions'!$H$3:$H$5)","v":0},{"$f":"valuePL(F5,'Utility Functions'!$I$3:$I$4,'Utility Functions'!$J$3:$J$5)","v":0},{"$f":"valueE(G5,'Utility Functions'!$L$3,'Utility Functions'!$L$4,'Utility Functions'!$L$5,'Utility Functions'!$L$6)","v":0},{"$f":"valueE(H5,'Utility Functions'!$N$3,'Utility Functions'!$N$4,'Utility Functions'!$N$5,'Utility Functions'!$N$6)","v":0},{"$f":"valuePL(I5,'Utility Functions'!$O$3:$O$6,'Utility Functions'!$P$3:$P$6)","v":0},{"$f":"valuePL(J5,'Utility Functions'!$Q$3:$Q$6,'Utility Functions'!$R$3:$R$6)","v":0},{"$f":"valuePL(K5,'Utility Functions'!$S$3:$S$7,'Utility Functions'!$T$3:$T$7)","v":0},{"$f":"valueE(L5,'Utility Functions'!$V$3,'Utility Functions'!$V$4,'Utility Functions'!$V$5,'Utility Functions'!$V$6)","v":0},{"$f":"valuePL(M5,'Utility Functions'!$W$3:$W$6,'Utility Functions'!$X$3:$X$6)","v":0},{"$f":"valueE(N5,'Utility Functions'!$Z$3,'Utility Functions'!$Z$4,'Utility Functions'!$Z$5,'Utility Functions'!$Z$6)","v":0.5},{"$f":"valuePL(O5,'Utility Functions'!$AA$3:$AA$5,'Utility Functions'!$AB$3:$AB$5)","v":0.25},{"$f":"valuePL(P5,'Utility Functions'!$AC$3:$AC$7,'Utility Functions'!$AD$3:$AD$7)","v":0},{"$f":"valuePL(Q5,'Utility Functions'!$AE$3:$AE$6,'Utility Functions'!$AF$3:$AF$6)","v":0.1},{"$f":"valuePL(R5,'Utility Functions'!$AG$3:$AG$6,'Utility Functions'!$AH$3:$AH$6)","v":1},{"$f":"valuePL(S5,'Utility Functions'!$AI$3:$AI$6,'Utility Functions'!$AJ$3:$AJ$6)","v":1},{"$f":"valuePL(T5,'Utility Functions'!$AK$3:$AK$8,'Utility Functions'!$AL$3:$AL$8)","v":0.8},{"$f":"valuePL(U5,'Utility Functions'!$AM$3:$AM$5,'Utility Functions'!$AN$3:$AN$5)","v":0},{"$f":"valuePL(V5,'Utility Functions'!$AO$3:$AO$5,'Utility Functions'!$AP$3:$AP$5)","v":0.5},{"$f":"valuePL(W5,'Utility Functions'!$AQ$3:$AQ$6,'Utility Functions'!$AR$3:$AR$6)","v":1},{"$f":"valuePL(X5,'Utility Functions'!$AS$3:$AS$6,'Utility Functions'!$AT$3:$AT$6)","v":1},{"$f":"valuePL(Y5,'Utility Functions'!$AU$3:$AU$6,'Utility Functions'!$AV$3:$AV$6)","v":0.2},{"$f":"valuePL(Z5,'Utility Functions'!$AW$3:$AW$5,'Utility Functions'!$AX$3:$AX$5)","v":0},{"$f":"valuePL(AA5,'Utility Functions'!$AY$3:$AY$6,'Utility Functions'!$AZ$3:$AZ$6)","v":0},{"$f":"valuePL(AB5,'Utility Functions'!$BA$3:$BA$5,'Utility Functions'!$BB$3:$BB$5)","v":1},{"$f":"valuePL(AC5,'Utility Functions'!$BC$3:$BC$5,'Utility Functions'!$BD$3:$BD$5)","v":0.25},9.2460291931089209,null,9.2460291931089209,1.6460291931089204,0,0.75,2.9000000000000004,3.95]
[5,{"$f":"valueE(B6,'Utility Functions'!$B$3,'Utility Functions'!$B$4,'Utility Functions'!$B$5,'Utility Functions'!$B$6)","v":0.55067187023002029},{"$f":"valueE(C6,'Utility Functions'!$D$3,'Utility Functions'!$D$4,'Utility Functions'!$D$5,'Utility Functions'!$D$6)","v":0.26656514581460788},{"$f":"valuePL(D6,'Utility Functions'!$E$3:$E$5,'Utility Functions'!$F$3:$F$5)","v":1},{"$f":"valuePL(E6,'Utility Functions'!$G$3:$G$5,'Utility Functions'!$H$3:$H$5)","v":0},{"$f":"valuePL(F6,'Utility Functions'!$I$3:$I$4,'Utility Functions'!$J$3:$J$5)","v":0},{"$f":"valueE(G6,'Utility Functions'!$L$3,'Utility Functions'!$L$4,'Utility Functions'!$L$5,'Utility Functions'!$L$6)","v":0},{"$f":"valueE(H6,'Utility Functions'!$N$3,'Utility Functions'!$N$4,'Utility Functions'!$N$5,'Utility Functions'!$N$6)","v":0},{"$f":"valuePL(I6,'Utility Functions'!$O$3:$O$6,'Utility Functions'!$P$3:$P$6)","v":0.50909090909090915},{"$f":"valuePL(J6,'Utility Functions'!$Q$3:$Q$6,'Utility Functions'!$R$3:$R$6)","v":0.04},{"$f":"valuePL(K6,'Utility Functions'!$S$3:$S$7,'Utility Functions'!$T$3:$T$7)","v":0},{"$f":"valueE(L6,'Utility Functions'!$V$3,'Utility Functions'!$V$4,'Utility Functions'!$V$5,'Utility Functions'!$V$6)","v":0},{"$f":"valuePL(M6,'Utility Functions'!$W$3:$W$6,'Utility Functions'!$X$3:$X$6)","v":0},{"$f":"valueE(N6,'Utility Functions'!$Z$3,'Utility Functions'!$Z$4,'Utility Functions'!$Z$5,'Utility Functions'!$Z$6)","v":0},{"$f":"valuePL(O6,'Utility Functions'!$AA$3:$AA$5,'Utility Functions'!$AB$3:$AB$5)","v":0},{"$f":"valuePL(P6,'Utility Functions'!$AC$3:$AC$7,'Utility Functions'!$AD$3:$AD$7)","v":0},{"$f":"valuePL(Q6,'Utility Functions'!$AE$3:$AE$6,'Utility Functions'!$AF$3:$AF$6)","v":0.1},{"$f":"valuePL(R6,'Utility Functions'!$AG$3:$AG$6,'Utility Functions'!$AH$3:$AH$6)","v":1},{"$f":"valuePL(S6,'Utility Functions'!$AI$3:$AI$6,'Utility Functions'!$AJ$3:$AJ$6)","v":1},{"$f":"valuePL(T6,'Utility Functions'!$AK$3:$AK$8,'Utility Functions'!$AL$3:$AL$8)","v":0.8},{"$f":"valuePL(U6,'Utility Functions'!$AM$3:$AM$5,'Utility Functions'!$AN$3:$AN$5)","v":0.25},{"$f":"valuePL(V6,'Utility Functions'!$AO$3:$AO$5,'Utility Functions'!$AP$3:$AP$5)","v":0},{"$f":"valuePL(W6,'Utility Functions'!$AQ$3:$AQ$6,'Utility Functions'!$AR$3:$AR$6)","v":1},{"$f":"valuePL(X6,'Utility Functions'!$AS$3:$AS$6,'Utility Functions'!$AT$3:$AT$6)","v":1},{"$f":"valuePL(Y6,'Utility Functions'!$AU$3:$AU$6,'Utility Functions'!$AV$3:$AV$6)","v":0.8},{"$f":"valuePL(Z6,'Utility Functions'!$AW$3:$AW$5,'Utility Functions'!$AX$3:$AX$5)","v":0},{"$f":"valuePL(AA6,'Utility Functions'!$AY$3:$AY$6,'Utility Functions'!$AZ$3:$AZ$6)","v":0},{"$f":"valuePL(AB6,'Utility Functions'!$BA$3:$BA$5,'Utility Functions'!$BB$3:$BB$5)","v":1},{"$f":"valuePL(AC6,'Utility Functions'!$BC$3:$BC$5,'Utility Functions'!$BD$3:$BD$5)","v":0.25},9.5663279251355373,null,9.5663279251355391,1.8172370160446283,0.54909090909090918,0,3.1500000000000004,4.05]
[6,{"$f":"valueE(B7,'Utility Functions'!$B$3,'Utility Functions'!$B$4,'Utility Functions'!$B$5,'Utility Functions'!$B$6)","v":0.86466602685702687},{"$f":"valueE(C7,'Utility Functions'!$D$3,'Utility Functions'!$D$4,'Utility Functions'!$D$5,'Utility Functions'!$D$6)","v":6.1811002813601471E-3},{"$f":"valuePL(D7,'Utility Functions'!$E$3:$E$5,'Utility Functions'!$F$3:$F$5)","v":1},{"$f":"valuePL(E7,'Utility Functions'!$G$3:$G$5,'Utility Functions'!$H$3:$H$5)","v":0},{"$f":"valuePL(F7,'Utility Functions'!$I$3:$I$4,'Utility Functions'!$J$3:$J$5)","v":0},{"$f":"valueE(G7,'Utility Functions'!$L$3,'Utility Functions'!$L$4,'Utility Functions'!$L$5,'Utility Functions'!$L$6)","v":0},{"$f":"valueE(H7,'Utility Functions'!$N$3,'Utility Functions'!$N$4,'Utility Functions'!$N$5,'Utility Functions'!$N$6)","v":0},{"$f":"valuePL(I7,'Utility Functions'!$O$3:$O$6,'Utility Functions'!$P$3:$P$6)","v":0.04},{"$f":"valuePL(J7,'Utility Functions'!$Q$3:$Q$6,'Utility Functions'!$R$3:$R$6)","v":0.04},{"$f":"valuePL(K7,'Utility Functions'!$S$3:$S$7,'Utility Functions'!$T$3:$T$7)","v":0},{"$f":"valueE(L7,'Utility Functions'!$V$3,'Utility Functions'!$V$4,'Utility Functions'!$V$5,'Utility Functions'!$V$6)","v":0},{"$f":"valuePL(M7,'Utility Functions'!$W$3:$W$6,'Utility Functions'!$X$3:$X$6)","v":0},{"$f":"valueE(N7,'Utility Functions'!$Z$3,'Utility Functions'!$Z$4,'Utility Functions'!$Z$5,'Utility Functions'!$Z$6)","v":0},{"$f":"valuePL(O7,'Utility Functions'!$AA$3:$AA$5,'Utility Functions'!$AB$3:$AB$5)","v":0},{"$f":"valuePL(P7,'Utility Functions'!$AC$3:$AC$7,'Utility Functions'!$AD$3:$AD$7)","v":0},{"$f":"valuePL(Q7,'Utility Functions'!$AE$3:$AE$6,'Utility Functions'!$AF$3:$AF$6)","v":0.1},{"$f":"valuePL(R7,'Utility Functions'!$AG$3:$AG$6,'Utility Functions'!$AH$3:$AH$6)","v":0},{"$f":"valuePL(S7,'Utility Functions'!$AI$3:$AI$6,'Utility Functions'!$AJ$3:$AJ$6)","v":1},{"$f":"valuePL(T7,'Utility Functions'!$AK$3:$AK$8,'Utility Functions'!$AL$3:$AL$8)","v":0.6},{"$f":"valuePL(U7,'Utility Functions'!$AM$3:$AM$5,'Utility Functions'!$AN$3:$AN$5)","v":0},{"$f":"valuePL(V7,'Utility Functions'!$AO$3:$AO$5,'Utility Functions'!$AP$3:$AP$5)","v":0},{"$f":"valuePL(W7,'Utility Functions'!$AQ$3:$AQ$6,'Utility Functions'!$AR$3:$AR$6)","v":0},{"$f":"valuePL(X7,'Utility Functions'!$AS$3:$AS$6,'Utility Functions'!$AT$3:$AT$6)","v":1},{"$f":"valuePL(Y7,'Utility Functions'!$AU$3:$AU$6,'Utility Functions'!$AV$3:$AV$6)","v":0},{"$f":"valuePL(Z7,'Utility Functions'!$AW$3:$AW$5,'Utility Functions'!$AX$3:$AX$5)","v":0},{"$f":"valuePL(AA7,'Utility Functions'!$AY$3:$AY$6,'Utility Functions'!$AZ$3:$AZ$6)","v":0},{"$f":"valuePL(AB7,'Utility Functions'!$BA$3:$BA$5,'Utility Functions'!$BB$3:$BB$5)","v":1},{"$f":"valuePL(AC7,'Utility Functions'!$BC$3:$BC$5,'Utility Functions'!$BD$3:$BD$5)","v":0.25},5.9008471271383875,null,5.9008471271383875,1.8708471271383869,0.08,0,1.7000000000000002,2.25]
[7,{"$f":"valueE(B8,'Utility Functions'!$B$3,'Utility Functions'!$B$4,'Utility Functions'!$B$5,'Utility Functions'!$B$6)","v":0.99997108261728973},{"$f":"valueE(C8,'Utility Functions'!$D$3,'Utility Functions'!$D$4,'Utility Functions'!$D$5,'Utility Functions'!$D$6)","v":0.84744836833951609},{"$f":"valuePL(D8,'Utility Functions'!$E$3:$E$5,'Utility Functions'!$F$3:$F$5)","v":0},{"$f":"valuePL(E8,'Utility Functions'!$G$3:$G$5,'Utility Functions'!$H$3:$H$5)","v":1},{"$f":"valuePL(F8,'Utility Functions'!$I$3:$I$4,'Utility Functions'!$J$3:$J$5)","v":0},{"$f":"valueE(G8,'Utility Functions'!$L$3,'Utility Functions'!$L$4,'Utility Functions'!$L$5,'Utility Functions'!$L$6)","v":0},{"$f":"valueE(H8,'Utility Functions'!$N$3,'Utility Functions'!$N$4,'Utility Functions'!$N$5,'Utility Functions'!$N$6)","v":0},{"$f":"valuePL(I8,'Utility Functions'!$O$3:$O$6,'Utility Functions'!$P$3:$P$6)","v":1},{"$f":"valuePL(J8,'Utility Functions'!$Q$3:$Q$6,'Utility Functions'!$R$3:$R$6)","v":0.67272727272727273},{"$f":"valuePL(K8,'Utility Functions'!$S$3:$S$7,'Utility Functions'!$T$3:$T$7)","v":1},{"$f":"valueE(L8,'Utility Functions'!$V$3,'Utility Functions'!$V$4,'Utility Functions'!$V$5,'Utility Functions'!$V$6)","v":1},{"$f":"valuePL(M8,'Utility Functions'!$W$3:$W$6,'Utility Functions'!$X$3:$X$6)","v":0.67272727272727273},{"$f":"valueE(N8,'Utility Functions'!$Z$3,'Utility Functions'!$Z$4,'Utility Functions'!$Z$5,'Utility Functions'!$Z$6)","v":1},{"$f":"valuePL(O8,'Utility Functions'!$AA$3:$AA$5,'Utility Functions'!$AB$3:$AB$5)","v":0.25},{"$f":"valuePL(P8,'Utility Functions'!$AC$3:$AC$7,'Utility Functions'!$AD$3:$AD$7)","v":0},{"$f":"valuePL(Q8,'Utility Functions'!$AE$3:$AE$6,'Utility Functions'!$AF$3:$AF$6)","v":0},{"$f":"valuePL(R8,'Utility Functions'!$AG$3:$AG$6,'Utility Functions'!$AH$3:$AH$6)","v":1},{"$f":"valuePL(S8,'Utility Functions'!$AI$3:$AI$6,'Utility Functions'!$AJ$3:$AJ$6)","v":1},{"$f":"valuePL(T8,'Utility Functions'!$AK$3:$AK$8,'Utility Functions'!$AL$3:$AL$8)","v":0},{"$f":"valuePL(U8,'Utility Functions'!$AM$3:$AM$5,'Utility Functions'!$AN$3:$AN$5)","v":0},{"$f":"valuePL(V8,'Utility Functions'!$AO$3:$AO$5,'Utility Functions'!$AP$3:$AP$5)","v":1},{"$f":"valuePL(W8,'Utility Functions'!$AQ$3:$AQ$6,'Utility Functions'!$AR$3:$AR$6)","v":0},{"$f":"valuePL(X8,'Utility Functions'!$AS$3:$AS$6,'Utility Functions'!$AT$3:$AT$6)","v":0.2},{"$f":"valuePL(Y8,'Utility Functions'!$AU$3:$AU$6,'Utility Functions'!$AV$3:$AV$6)","v":1},{"$f":"valuePL(Z8,'Utility Functions'!$AW$3:$AW$5,'Utility Functions'!$AX$3:$AX$5)","v":1},{"$f":"valuePL(AA8,'Utility Functions'!$AY$3:$AY$6,'Utility Functions'!$AZ$3:$AZ$6)","v":0.89999999999999991},{"$f":"valuePL(AB8,'Utility Functions'!$BA$3:$BA$5,'Utility Functions'!$BB$3:$BB$5)","v":0},{"$f":"valuePL(AC8,'Utility Functions'!$BC$3:$BC$5,'Utility Functions'!$BD$3:$BD$5)","v":1},15.54287399641135,null,15.54287399641135,2.8474194509568056,4.3454545454545457,1.25,2,5.0999999999999996]
[8,{"$f":"valueE(B9,'Utility Functions'!$B$3,'Utility Functions'!$B$4,'Utility Functions'!$B$5,'Utility Functions'!$B$6)","v":0.4511890475224023},{"$f":"valueE(C9,'Utility Functions'!$D$3,'Utility Functions'!$D$4,'Utility Functions'!$D$5,'Utility Functions'!$D$6)","v":0.84744836833951609},{"$f":"valuePL(D9,'Utility Functions'!$E$3:$E$5,'Utility Functions'!$F$3:$F$5)","v":1},{"$f":"valuePL(E9,'Utility Functions'!$G$3:$G$5,'Utility Functions'!$H$3:$H$5)","v":0.5},{"$f":"valuePL(F9,'Utility Functions'!$I$3:$I$4,'Utility Functions'!$J$3:$J$5)","v":1},{"$f":"valueE(G9,'Utility Functions'!$L$3,'Utility Functions'!$L$4,'Utility Functions'!$L$5,'Utility Functions'!$L$6)","v":0},{"$f":"valueE(H9,'Utility Functions'!$N$3,'Utility Functions'!$N$4,'Utility Functions'!$N$5,'Utility Functions'!$N$6)","v":0},{"$f":"valuePL(I9,'Utility Functions'!$O$3:$O$6,'Utility Functions'!$P$3:$P$6)","v":5.6000000000000008E-2},{"$f":"valuePL(J9,'Utility Functions'!$Q$3:$Q$6,'Utility Functions'!$R$3:$R$6)","v":0.83636363636363631},{"$f":"valuePL(K9,'Utility Functions'!$S$3:$S$7,'Utility Functions'!$T$3:$T$7)","v":0},{"$f":"valueE(L9,'Utility Functions'!$V$3,'Utility Functions'!$V$4,'Utility Functions'!$V$5,'Utility Functions'!$V$6)","v":1},{"$f":"valuePL(M9,'Utility Functions'!$W$3:$W$6,'Utility Functions'!$X$3:$X$6)","v":0.83636363636363631},{"$f":"valueE(N9,'Utility Functions'!$Z$3,'Utility Functions'!$Z$4,'Utility Functions'!$Z$5,'Utility Functions'!$Z$6)","v":0},{"$f":"valuePL(O9,'Utility Functions'!$AA$3:$AA$5,'Utility Functions'!$AB$3:$AB$5)","v":0},{"$f":"valuePL(P9,'Utility Functions'!$AC$3:$AC$7,'Utility Functions'!$AD$3:$AD$7)","v":0},{"$f":"valuePL(Q9,'Utility Functions'!$AE$3:$AE$6,'Utility Functions'!$AF$3:$AF$6)","v":1},{"$f":"valuePL(R9,'Utility Functions'!$AG$3:$AG$6,'Utility Functions'!$AH$3:$AH$6)","v":0.2},{"$f":"valuePL(S9,'Utility Functions'!$AI$3:$AI$6,'Utility Functions'!$AJ$3:$AJ$6)","v":1},{"$f":"valuePL(T9,'Utility Functions'!$AK$3:$AK$8,'Utility Functions'!$AL$3:$AL$8)","v":0},{"$f":"valuePL(U9,'Utility Functions'!$AM$3:$AM$5,'Utility Functions'!$AN$3:$AN$5)","v":0},{"$f":"valuePL(V9,'Utility Functions'!$AO$3:$AO$5,'Utility Functions'!$AP$3:$AP$5)","v":1},{"$f":"valuePL(W9,'Utility Functions'!$AQ$3:$AQ$6,'Utility Functions'!$AR$3:$AR$6)","v":1},{"$f":"valuePL(X9,'Utility Functions'!$AS$3:$AS$6,'Utility Functions'!$AT$3:$AT$6)","v":1},{"$f":"valuePL(Y9,'Utility Functions'!$AU$3:$AU$6,'Utility Functions'!$AV$3:$AV$6)","v":1},{"$f":"valuePL(Z9,'Utility Functions'!$AW$3:$AW$5,'Utility Functions'!$AX$3:$AX$5)","v":1},{"$f":"valuePL(AA9,'Utility Functions'!$AY$3:$AY$6,'Utility Functions'!$AZ$3:$AZ$6)","v":0},{"$f":"valuePL(AB9,'Utility Functions'!$BA$3:$BA$5,'Utility Functions'!$BB$3:$BB$5)","v":0.25},{"$f":"valuePL(AC9,'Utility Functions'!$BC$3:$BC$5,'Utility Functions'!$BD$3:$BD$5)","v":0.25},14.227364688589191,null,14.227364688589191,3.7986374158619185,2.7287272727272729,0,2.2000000000000002,5.5]
[9,{"$f":"valueE(B10,'Utility Functions'!$B$3,'Utility Functions'!$B$4,'Utility Functions'!$B$5,'Utility Functions'!$B$6)","v":0.83470237647280454},{"$f":"valueE(C10,'Utility Functions'!$D$3,'Utility Functions'!$D$4,'Utility Functions'!$D$5,'Utility Functions'!$D$6)","v":0.78989979019422951},{"$f":"valuePL(D10,'Utility Functions'!$E$3:$E$5,'Utility Functions'!$F$3:$F$5)","v":1},{"$f":"valuePL(E10,'Utility Functions'!$G$3:$G$5,'Utility Functions'!$H$3:$H$5)","v":0.5},{"$f":"valuePL(F10,'Utility Functions'!$I$3:$I$4,'Utility Functions'!$J$3:$J$5)","v":0},{"$f":"valueE(G10,'Utility Functions'!$L$3,'Utility Functions'!$L$4,'Utility Functions'!$L$5,'Utility Functions'!$L$6)","v":0.37634408602150538},{"$f":"valueE(H10,'Utility Functions'!$N$3,'Utility Functions'!$N$4,'Utility Functions'!$N$5,'Utility Functions'!$N$6)","v":0.13282732447817835},{"$f":"valuePL(I10,'Utility Functions'!$O$3:$O$6,'Utility Functions'!$P$3:$P$6)","v":0},{"$f":"valuePL(J10,'Utility Functions'!$Q$3:$Q$6,'Utility Functions'!$R$3:$R$6)","v":0},{"$f":"valuePL(K10,'Utility Functions'!$S$3:$S$7,'Utility Functions'!$T$3:$T$7)","v":0},{"$f":"valueE(L10,'Utility Functions'!$V$3,'Utility Functions'!$V$4,'Utility Functions'!$V$5,'Utility Functions'!$V$6)","v":0},{"$f":"valuePL(M10,'Utility Functions'!$W$3:$W$6,'Utility Functions'!$X$3:$X$6)","v":0},{"$f":"valueE(N10,'Utility Functions'!$Z$3,'Utility Functions'!$Z$4,'Utility Functions'!$Z$5,'Utility Functions'!$Z$6)","v":0},{"$f":"valuePL(O10,'Utility Functions'!$AA$3:$AA$5,'Utility Functions'!$AB$3:$AB$5)","v":0},{"$f":"valuePL(P10,'Utility Functions'!$AC$3:$AC$7,'Utility Functions'!$AD$3:$AD$7)","v":0.75},{"$f":"valuePL(Q10,'Utility Functions'!$AE$3:$AE$6,'Utility Functions'!$AF$3:$AF$6)","v":0},{"$f":"valuePL(R10,'Utility Functions'!$AG$3:$AG$6,'Utility Functions'!$AH$3:$AH$6)","v":1},{"$f":"valuePL(S10,'Utility Functions'!$AI$3:$AI$6,'Utility Functions'!$AJ$3:$AJ$6)","v":0.66},{"$f":"valuePL(T10,'Utility Functions'!$AK$3:$AK$8,'Utility Functions'!$AL$3:$AL$8)","v":0.2},{"$f":"valuePL(U10,'Utility Functions'!$AM$3:$AM$5,'Utility Functions'!$AN$3:$AN$5)","v":0},{"$f":"valuePL(V10,'Utility Functions'!$AO$3:$AO$5,'Utility Functions'!$AP$3:$AP$5)","v":1},{"$f":"valuePL(W10,'Utility Functions'!$AQ$3:$AQ$6,'Utility Functions'!$AR$3:$AR$6)","v":1},{"$f":"valuePL(X10,'Utility Functions'!$AS$3:$AS$6,'Utility Functions'!$AT$3:$AT$6)","v":1},{"$f":"valuePL(Y10,'Utility Functions'!$AU$3:$AU$6,'Utility Functions'!$AV$3:$AV$6)","v":0.2},{"$f":"valuePL(Z10,'Utility Functions'!$AW$3:$AW$5,'Utility Functions'!$AX$3:$AX$5)","v":1},{"$f":"valuePL(AA10,'Utility Functions'!$AY$3:$AY$6,'Utility Functions'!$AZ$3:$AZ$6)","v":0.2},{"$f":"valuePL(AB10,'Utility Functions'!$BA$3:$BA$5,'Utility Functions'!$BB$3:$BB$5)","v":0.25},{"$f":"valuePL(AC10,'Utility Functions'!$BC$3:$BC$5,'Utility Functions'!$BD$3:$BD$5)","v":1},11.893773577166716,null,11.893773577166719,3.1246021666670343,0.50917141049968373,0,2.6100000000000003,5.65]
[10,{"$f":"valueE(B11,'Utility Functions'!$B$3,'Utility Functions'!$B$4,'Utility Functions'!$B$5,'Utility Functions'!$B$6)","v":0},{"$f":"valueE(C11,'Utility Functions'!$D$3,'Utility Functions'!$D$4,'Utility Functions'!$D$5,'Utility Functions'!$D$6)","v":0},{"$f":"valuePL(D11,'Utility Functions'!$E$3:$E$5,'Utility Functions'!$F$3:$F$5)","v":0},{"$f":"valuePL(E11,'Utility Functions'!$G$3:$G$5,'Utility Functions'!$H$3:$H$5)","v":0},{"$f":"valuePL(F11,'Utility Functions'!$I$3:$I$4,'Utility Functions'!$J$3:$J$5)","v":0},{"$f":"valueE(G11,'Utility Functions'!$L$3,'Utility Functions'!$L$4,'Utility Functions'!$L$5,'Utility Functions'!$L$6)","v":0},{"$f":"valueE(H11,'Utility Functions'!$N$3,'Utility Functions'!$N$4,'Utility Functions'!$N$5,'Utility Functions'!$N$6)","v":0},{"$f":"valuePL(I11,'Utility Functions'!$O$3:$O$6,'Utility Functions'!$P$3:$P$6)","v":0},{"$f":"valuePL(J11,'Utility Functions'!$Q$3:$Q$6,'Utility Functions'!$R$3:$R$6)","v":0},{"$f":"valuePL(K11,'Utility Functions'!$S$3:$S$7,'Utility Functions'!$T$3:$T$7)","v":0},{"$f":"valueE(L11,'Utility Functions'!$V$3,'Utility Functions'!$V$4,'Utility Functions'!$V$5,'Utility Functions'!$V$6)","v":0},{"$f":"valuePL(M11,'Utility Functions'!$W$3:$W$6,'Utility Functions'!$X$3:$X$6)","v":0},{"$f":"valueE(N11,'Utility Functions'!$Z$3,'Utility Functions'!$Z$4,'Utility Functions'!$Z$5,'Utility Functions'!$Z$6)","v":0.75},{"$f":"valuePL(O11,'Utility Functions'!$AA$3:$AA$5,'Utility Functions'!$AB$3:$AB$5)","v":1},{"$f":"valuePL(P11,'Utility Functions'!$AC$3:$AC$7,'Utility Functions'!$AD$3:$AD$7)","v":0.25},{"$f":"valuePL(Q11,'Utility Functions'!$AE$3:$AE$6,'Utility Functions'!$AF$3:$AF$6)","v":0.5},{"$f":"valuePL(R11,'Utility Functions'!$AG$3:$AG$6,'Utility Functions'!$AH$3:$AH$6)","v":1},{"$f":"valuePL(S11,'Utility Functions'!$AI$3:$AI$6,'Utility Functions'!$AJ$3:$AJ$6)","v":0.66},{"$f":"valuePL(T11,'Utility Functions'!$AK$3:$AK$8,'Utility Functions'!$AL$3:$AL$8)","v":0.4},{"$f":"valuePL(U11,'Utility Functions'!$AM$3:$AM$5,'Utility Functions'!$AN$3:$AN$5)","v":0},{"$f":"valuePL(V11,'Utility Functions'!$AO$3:$AO$5,'Utility Functions'!$AP$3:$AP$5)","v":0},{"$f":"valuePL(W11,'Utility Functions'!$AQ$3:$AQ$6,'Utility Functions'!$AR$3:$AR$6)","v":0.75},{"$f":"valuePL(X11,'Utility Functions'!$AS$3:$AS$6,'Utility Functions'!$AT$3:$AT$6)","v":1},{"$f":"valuePL(Y11,'Utility Functions'!$AU$3:$AU$6,'Utility Functions'!$AV$3:$AV$6)","v":1},{"$f":"valuePL(Z11,'Utility Functions'!$AW$3:$AW$5,'Utility Functions'!$AX$3:$AX$5)","v":0.5},{"$f":"valuePL(AA11,'Utility Functions'!$AY$3:$AY$6,'Utility Functions'!$AZ$3:$AZ$6)","v":0.2},{"$f":"valuePL(AB11,'Utility Functions'!$BA$3:$BA$5,'Utility Functions'!$BB$3:$BB$5)","v":0},{"$f":"valuePL(AC11,'Utility Functions'!$BC$3:$BC$5,'Utility Functions'!$BD$3:$BD$5)","v":1},9.01,null,9.0100000000000016,0,0,1.75,2.81,4.45]
[11,{"$f":"valueE(B12,'Utility Functions'!$B$3,'Utility Functions'!$B$4,'Utility Functions'!$B$5,'Utility Functions'!$B$6)","v":0},{"$f":"valueE(C12,'Utility Functions'!$D$3,'Utility Functions'!$D$4,'Utility Functions'!$D$5,'Utility Functions'!$D$6)","v":0},{"$f":"valuePL(D12,'Utility Functions'!$E$3:$E$5,'Utility Functions'!$F$3:$F$5)","v":0},{"$f":"valuePL(E12,'Utility Functions'!$G$3:$G$5,'Utility Functions'!$H$3:$H$5)","v":0},{"$f":"valuePL(F12,'Utility Functions'!$I$3:$I$4,'Utility Functions'!$J$3:$J$5)","v":0},{"$f":"valueE(G12,'Utility Functions'!$L$3,'Utility Functions'!$L$4,'Utility Functions'!$L$5,'Utility Functions'!$L$6)","v":3.2258064516129031E-2},{"$f":"valueE(H12,'Utility Functions'!$N$3,'Utility Functions'!$N$4,'Utility Functions'!$N$5,'Utility Functions'!$N$6)","v":9.6774193548387094E-2},{"$f":"valuePL(I12,'Utility Functions'!$O$3:$O$6,'Utility Functions'!$P$3:$P$6)","v":0.54181818181818187},{"$f":"valuePL(J12,'Utility Functions'!$Q$3:$Q$6,'Utility Functions'!$R$3:$R$6)","v":0.91818181818181821},{"$f":"valuePL(K12,'Utility Functions'!$S$3:$S$7,'Utility Functions'!$T$3:$T$7)","v":0.54181818181818187},{"$f":"valueE(L12,'Utility Functions'!$V$3,'Utility Functions'!$V$4,'Utility Functions'!$V$5,'Utility Functions'!$V$6)","v":1},{"$f":"valuePL(M12,'Utility Functions'!$W$3:$W$6,'Utility Functions'!$X$3:$X$6)","v":0.91818181818181821},{"$f":"valueE(N12,'Utility Functions'!$Z$3,'Utility Functions'!$Z$4,'Utility Functions'!$Z$5,'Utility Functions'!$Z$6)","v":0.375},{"$f":"valuePL(O12,'Utility Functions'!$AA$3:$AA$5,'Utility Functions'!$AB$3:$AB$5)","v":0.25},{"$f":"valuePL(P12,'Utility Functions'!$AC$3:$AC$7,'Utility Functions'!$AD$3:$AD$7)","v":0.25},{"$f":"valuePL(Q12,'Utility Functions'!$AE$3:$AE$6,'Utility Functions'!$AF$3:$AF$6)","v":0},{"$f":"valuePL(R12,'Utility Functions'!$AG$3:$AG$6,'Utility Functions'!$AH$3:$AH$6)","v":1},{"$f":"valuePL(S12,'Utility Functions'!$AI$3:$AI$6,'Utility Functions'!$AJ$3:$AJ$6)","v":1},{"$f":"valuePL(T12,'Utility Functions'!$AK$3:$AK$8,'Utility Functions'!$AL$3:$AL$8)","v":0.4},{"$f":"valuePL(U12,'Utility Functions'!$AM$3:$AM$5,'Utility Functions'!$AN$3:$AN$5)","v":1},{"$f":"valuePL(V12,'Utility Functions'!$AO$3:$AO$5,'Utility Functions'!$AP$3:$AP$5)","v":1},{"$f":"valuePL(W12,'Utility Functions'!$AQ$3:$AQ$6,'Utility Functions'!$AR$3:$AR$6)","v":0.2},{"$f":"valuePL(X12,'Utility Functions'!$AS$3:$AS$6,'Utility Functions'!$AT$3:$AT$6)","v":1},{"$f":"valuePL(Y12,'Utility Functions'!$AU$3:$AU$6,'Utility Functions'!$AV$3:$AV$6)","v":1},{"$f":"valuePL(Z12,'Utility Functions'!$AW$3:$AW$5,'Utility Functions'!$AX$3:$AX$5)","v":0.5},{"$f":"valuePL(AA12,'Utility Functions'!$AY$3:$AY$6,'Utility Functions'!$AZ$3:$AZ$6)","v":0.89999999999999991},{"$f":"valuePL(AB12,'Utility Functions'!$BA$3:$BA$5,'Utility Functions'!$BB$3:$BB$5)","v":0},{"$f":"valuePL(AC12,'Utility Functions'!$BC$3:$BC$5,'Utility Functions'!$BD$3:$BD$5)","v":0.25},13.174032258064516,null,13.174032258064516,0,4.0490322580645159,0.625,3.65,4.8499999999999996]
[12,{"$f":"valueE(B13,'Utility Functions'!$B$3,'Utility Functions'!$B$4,'Utility Functions'!$B$5,'Utility Functions'!$B$6)","v":0.32968045347775865},{"$f":"valueE(C13,'Utility Functions'!$D$3,'Utility Functions'!$D$4,'Utility Functions'!$D$5,'Utility Functions'!$D$6)","v":0.78989979019422951},{"$f":"valuePL(D13,'Utility Functions'!$E$3:$E$5,'Utility Functions'!$F$3:$F$5)","v":1},{"$f":"valuePL(E13,'Utility Functions'!$G$3:$G$5,'Utility Functions'!$H$3:$H$5)","v":0.5},{"$f":"valuePL(F13,'Utility Functions'!$I$3:$I$4,'Utility Functions'!$J$3:$J$5)","v":0},{"$f":"valueE(G13,'Utility Functions'!$L$3,'Utility Functions'!$L$4,'Utility Functions'!$L$5,'Utility Functions'!$L$6)","v":0},{"$f":"valueE(H13,'Utility Functions'!$N$3,'Utility Functions'!$N$4,'Utility Functions'!$N$5,'Utility Functions'!$N$6)","v":0},{"$f":"valuePL(I13,'Utility Functions'!$O$3:$O$6,'Utility Functions'!$P$3:$P$6)","v":0},{"$f":"valuePL(J13,'Utility Functions'!$Q$3:$Q$6,'Utility Functions'!$R$3:$R$6)","v":0},{"$f":"valuePL(K13,'Utility Functions'!$S$3:$S$7,'Utility Functions'!$T$3:$T$7)","v":0},{"$f":"valueE(L13,'Utility Functions'!$V$3,'Utility Functions'!$V$4,'Utility Functions'!$V$5,'Utility Functions'!$V$6)","v":0},{"$f":"valuePL(M13,'Utility Functions'!$W$3:$W$6,'Utility Functions'!$X$3:$X$6)","v":0},{"$f":"valueE(N13,'Utility Functions'!$Z$3,'Utility Functions'!$Z$4,'Utility Functions'!$Z$5,'Utility Functions'!$Z$6)","v":0},{"$f":"valuePL(O13,'Utility Functions'!$AA$3:$AA$5,'Utility Functions'!$AB$3:$AB$5)","v":0},{"$f":"valuePL(P13,'Utility Functions'!$AC$3:$AC$7,'Utility Functions'!$AD$3:$AD$7)","v":0},{"$f":"valuePL(Q13,'Utility Functions'!$AE$3:$AE$6,'Utility Functions'!$AF$3:$AF$6)","v":0.1},{"$f":"valuePL(R13,'Utility Functions'!$AG$3:$AG$6,'Utility Functions'!$AH$3:$AH$6)","v":1},{"$f":"valuePL(S13,'Utility Functions'!$AI$3:$AI$6,'Utility Functions'!$AJ$3:$AJ$6)","v":1},{"$f":"valuePL(T13,'Utility Functions'!$AK$3:$AK$8,'Utility Functions'!$AL$3:$AL$8)","v":0.6},{"$f":"valuePL(U13,'Utility Functions'!$AM$3:$AM$5,'Utility Functions'!$AN$3:$AN$5)","v":0},{"$f":"valuePL(V13,'Utility Functions'!$AO$3:$AO$5,'Utility Functions'!$AP$3:$AP$5)","v":0.5},{"$f":"valuePL(W13,'Utility Functions'!$AQ$3:$AQ$6,'Utility Functions'!$AR$3:$AR$6)","v":0.2},{"$f":"valuePL(X13,'Utility Functions'!$AS$3:$AS$6,'Utility Functions'!$AT$3:$AT$6)","v":1},{"$f":"valuePL(Y13,'Utility Functions'!$AU$3:$AU$6,'Utility Functions'!$AV$3:$AV$6)","v":0.2},{"$f":"valuePL(Z13,'Utility Functions'!$AW$3:$AW$5,'Utility Functions'!$AX$3:$AX$5)","v":1},{"$f":"valuePL(AA13,'Utility Functions'!$AY$3:$AY$6,'Utility Functions'!$AZ$3:$AZ$6)","v":0.2},{"$f":"valuePL(AB13,'Utility Functions'!$BA$3:$BA$5,'Utility Functions'!$BB$3:$BB$5)","v":1},{"$f":"valuePL(AC13,'Utility Functions'!$BC$3:$BC$5,'Utility Functions'!$BD$3:$BD$5)","v":0},9.4195802436719873,null,9.4195802436719873,2.6195802436719884,0,0,2.7,4.0999999999999996]
[13,{"$f":"valueE(B14,'Utility Functions'!$B$3,'Utility Functions'!$B$4,'Utility Functions'!$B$5,'Utility Functions'!$B$6)","v":0},{"$f":"valueE(C14,'Utility Functions'!$D$3,'Utility Functions'!$D$4,'Utility Functions'!$D$5,'Utility Functions'!$D$6)","v":0},{"$f":"valuePL(D14,'Utility Functions'!$E$3:$E$5,'Utility Functions'!$F$3:$F$5)","v":0},{"$f":"valuePL(E14,'Utility Functions'!$G$3:$G$5,'Utility Functions'!$H$3:$H$5)","v":0},{"$f":"valuePL(F14,'Utility Functions'!$I$3:$I$4,'Utility Functions'!$J$3:$J$5)","v":0},{"$f":"valueE(G14,'Utility Functions'!$L$3,'Utility Functions'!$L$4,'Utility Functions'!$L$5,'Utility Functions'!$L$6)","v":0},{"$f":"valueE(H14,'Utility Functions'!$N$3,'Utility Functions'!$N$4,'Utility Functions'!$N$5,'Utility Functions'!$N$6)","v":1.1385199240986717E-2},{"$f":"valuePL(I14,'Utility Functions'!$O$3:$O$6,'Utility Functions'!$P$3:$P$6)","v":0.3290909090909091},{"$f":"valuePL(J14,'Utility Functions'!$Q$3:$Q$6,'Utility Functions'!$R$3:$R$6)","v":0.04},{"$f":"valuePL(K14,'Utility Functions'!$S$3:$S$7,'Utility Functions'!$T$3:$T$7)","v":0.3290909090909091},{"$f":"valueE(L14,'Utility Functions'!$V$3,'Utility Functions'!$V$4,'Utility Functions'!$V$5,'Utility Functions'!$V$6)","v":1},{"$f":"valuePL(M14,'Utility Functions'!$W$3:$W$6,'Utility Functions'!$X$3:$X$6)","v":0.04},{"$f":"valueE(N14,'Utility Functions'!$Z$3,'Utility Functions'!$Z$4,'Utility Functions'!$Z$5,'Utility Functions'!$Z$6)","v":0.875},{"$f":"valuePL(O14,'Utility Functions'!$AA$3:$AA$5,'Utility Functions'!$AB$3:$AB$5)","v":0.25},{"$f":"valuePL(P14,'Utility Functions'!$AC$3:$AC$7,'Utility Functions'!$AD$3:$AD$7)","v":0.25},{"$f":"valuePL(Q14,'Utility Functions'!$AE$3:$AE$6,'Utility Functions'!$AF$3:$AF$6)","v":0},{"$f":"valuePL(R14,'Utility Functions'!$AG$3:$AG$6,'Utility Functions'!$AH$3:$AH$6)","v":1},{"$f":"valuePL(S14,'Utility Functions'!$AI$3:$AI$6,'Utility Functions'!$AJ$3:$AJ$6)","v":1},{"$f":"valuePL(T14,'Utility Functions'!$AK$3:$AK$8,'Utility Functions'!$AL$3:$AL$8)","v":0},{"$f":"valuePL(U14,'Utility Functions'!$AM$3:$AM$5,'Utility Functions'!$AN$3:$AN$5)","v":0},{"$f":"valuePL(V14,'Utility Functions'!$AO$3:$AO$5,'Utility Functions'!$AP$3:$AP$5)","v":0.5},{"$f":"valuePL(W14,'Utility Functions'!$AQ$3:$AQ$6,'Utility Functions'!$AR$3:$AR$6)","v":0},{"$f":"valuePL(X14,'Utility Functions'!$AS$3:$AS$6,'Utility Functions'!$AT$3:$AT$6)","v":0.2},{"$f":"valuePL(Y14,'Utility Functions'!$AU$3:$AU$6,'Utility Functions'!$AV$3:$AV$6)","v":0},{"$f":"valuePL(Z14,'Utility Functions'!$AW$3:$AW$5,'Utility Functions'!$AX$3:$AX$5)","v":1},{"$f":"valuePL(AA14,'Utility Functions'!$AY$3:$AY$6,'Utility Functions'!$AZ$3:$AZ$6)","v":0.2},{"$f":"valuePL(AB14,'Utility Functions'!$BA$3:$BA$5,'Utility Functions'!$BB$3:$BB$5)","v":0.25},{"$f":"valuePL(AC14,'Utility Functions'!$BC$3:$BC$5,'Utility Functions'!$BD$3:$BD$5)","v":0.25},7.5245670174228056,null,7.5245670174228056,0,1.7495670174228048,1.125,2.25,2.4]
[14,{"$f":"valueE(B15,'Utility Functions'!$B$3,'Utility Functions'!$B$4,'Utility Functions'!$B$5,'Utility Functions'!$B$6)","v":0.69880684688087746},{"$f":"valueE(C15,'Utility Functions'!$D$3,'Utility Functions'!$D$4,'Utility Functions'!$D$5,'Utility Functions'!$D$6)","v":0.78989979019422951},{"$f":"valuePL(D15,'Utility Functions'!$E$3:$E$5,'Utility Functions'!$F$3:$F$5)","v":0.5},{"$f":"valuePL(E15,'Utility Functions'!$G$3:$G$5,'Utility Functions'!$H$3:$H$5)","v":0.5},{"$f":"valuePL(F15,'Utility Functions'!$I$3:$I$4,'Utility Functions'!$J$3:$J$5)","v":0},{"$f":"valueE(G15,'Utility Functions'!$L$3,'Utility Functions'!$L$4,'Utility Functions'!$L$5,'Utility Functions'!$L$6)","v":0},{"$f":"valueE(H15,'Utility Functions'!$N$3,'Utility Functions'!$N$4,'Utility Functions'!$N$5,'Utility Functions'!$N$6)","v":0},{"$f":"valuePL(I15,'Utility Functions'!$O$3:$O$6,'Utility Functions'!$P$3:$P$6)","v":0},{"$f":"valuePL(J15,'Utility Functions'!$Q$3:$Q$6,'Utility Functions'!$R$3:$R$6)","v":0},{"$f":"valuePL(K15,'Utility Functions'!$S$3:$S$7,'Utility Functions'!$T$3:$T$7)","v":0},{"$f":"valueE(L15,'Utility Functions'!$V$3,'Utility Functions'!$V$4,'Utility Functions'!$V$5,'Utility Functions'!$V$6)","v":0},{"$f":"valuePL(M15,'Utility Functions'!$W$3:$W$6,'Utility Functions'!$X$3:$X$6)","v":0},{"$f":"valueE(N15,'Utility Functions'!$Z$3,'Utility Functions'!$Z$4,'Utility Functions'!$Z$5,'Utility Functions'!$Z$6)","v":0.75},{"$f":"valuePL(O15,'Utility Functions'!$AA$3:$AA$5,'Utility Functions'!$AB$3:$AB$5)","v":0.25},{"$f":"valuePL(P15,'Utility Functions'!$AC$3:$AC$7,'Utility Functions'!$AD$3:$AD$7)","v":0.25},{"$f":"valuePL(Q15,'Utility Functions'!$AE$3:$AE$6,'Utility Functions'!$AF$3:$AF$6)","v":0},{"$f":"valuePL(R15,'Utility Functions'!$AG$3:$AG$6,'Utility Functions'!$AH$3:$AH$6)","v":1},{"$f":"valuePL(S15,'Utility Functions'!$AI$3:$AI$6,'Utility Functions'!$AJ$3:$AJ$6)","v":1},{"$f":"valuePL(T15,'Utility Functions'!$AK$3:$AK$8,'Utility Functions'!$AL$3:$AL$8)","v":0},{"$f":"valuePL(U15,'Utility Functions'!$AM$3:$AM$5,'Utility Functions'!$AN$3:$AN$5)","v":0},{"$f":"valuePL(V15,'Utility Functions'!$AO$3:$AO$5,'Utility Functions'!$AP$3:$AP$5)","v":0.5},{"$f":"valuePL(W15,'Utility Functions'!$AQ$3:$AQ$6,'Utility Functions'!$AR$3:$AR$6)","v":0.2},{"$f":"valuePL(X15,'Utility Functions'!$AS$3:$AS$6,'Utility Functions'!$AT$3:$AT$6)","v":1},{"$f":"valuePL(Y15,'Utility Functions'!$AU$3:$AU$6,'Utility Functions'!$AV$3:$AV$6)","v":1},{"$f":"valuePL(Z15,'Utility Functions'!$AW$3:$AW$5,'Utility Functions'!$AX$3:$AX$5)","v":0.5},{"$f":"valuePL(AA15,'Utility Functions'!$AY$3:$AY$6,'Utility Functions'!$AZ$3:$AZ$6)","v":0.89999999999999991},{"$f":"valuePL(AB15,'Utility Functions'!$BA$3:$BA$5,'Utility Functions'!$BB$3:$BB$5)","v":0.25},{"$f":"valuePL(AC15,'Utility Functions'!$BC$3:$BC$5,'Utility Functions'!$BD$3:$BD$5)","v":0.25},10.338706637075108,null,10.338706637075106,2.488706637075107,0,1,2.25,4.5999999999999996]
[15,{"$f":"valueE(B16,'Utility Functions'!$B$3,'Utility Functions'!$B$4,'Utility Functions'!$B$5,'Utility Functions'!$B$6)","v":0.98994966417177144},{"$f":"valueE(C16,'Utility Functions'!$D$3,'Utility Functions'!$D$4,'Utility Functions'!$D$5,'Utility Functions'!$D$6)","v":0.71352759724260828},{"$f":"valuePL(D16,'Utility Functions'!$E$3:$E$5,'Utility Functions'!$F$3:$F$5)","v":1},{"$f":"valuePL(E16,'Utility Functions'!$G$3:$G$5,'Utility Functions'!$H$3:$H$5)","v":0.5},{"$f":"valuePL(F16,'Utility Functions'!$I$3:$I$4,'Utility Functions'!$J$3:$J$5)","v":1},{"$f":"valueE(G16,'Utility Functions'!$L$3,'Utility Functions'!$L$4,'Utility Functions'!$L$5,'Utility Functions'!$L$6)","v":0},{"$f":"valueE(H16,'Utility Functions'!$N$3,'Utility Functions'!$N$4,'Utility Functions'!$N$5,'Utility Functions'!$N$6)","v":0},{"$f":"valuePL(I16,'Utility Functions'!$O$3:$O$6,'Utility Functions'!$P$3:$P$6)","v":9.2000000000000012E-2},{"$f":"valuePL(J16,'Utility Functions'!$Q$3:$Q$6,'Utility Functions'!$R$3:$R$6)","v":6.0000000000000012E-2},{"$f":"valuePL(K16,'Utility Functions'!$S$3:$S$7,'Utility Functions'!$T$3:$T$7)","v":6.0000000000000012E-2},{"$f":"valueE(L16,'Utility Functions'!$V$3,'Utility Functions'!$V$4,'Utility Functions'!$V$5,'Utility Functions'!$V$6)","v":1},{"$f":"valuePL(M16,'Utility Functions'!$W$3:$W$6,'Utility Functions'!$X$3:$X$6)","v":6.0000000000000012E-2},{"$f":"valueE(N16,'Utility Functions'!$Z$3,'Utility Functions'!$Z$4,'Utility Functions'!$Z$5,'Utility Functions'!$Z$6)","v":0.125},{"$f":"valuePL(O16,'Utility Functions'!$AA$3:$AA$5,'Utility Functions'!$AB$3:$AB$5)","v":1},{"$f":"valuePL(P16,'Utility Functions'!$AC$3:$AC$7,'Utility Functions'!$AD$3:$AD$7)","v":0.5},{"$f":"valuePL(Q16,'Utility Functions'!$AE$3:$AE$6,'Utility Functions'!$AF$3:$AF$6)","v":0},{"$f":"valuePL(R16,'Utility Functions'!$AG$3:$AG$6,'Utility Functions'!$AH$3:$AH$6)","v":0.8},{"$f":"valuePL(S16,'Utility Functions'!$AI$3:$AI$6,'Utility Functions'!$AJ$3:$AJ$6)","v":1},{"$f":"valuePL(T16,'Utility Functions'!$AK$3:$AK$8,'Utility Functions'!$AL$3:$AL$8)","v":0.6},{"$f":"valuePL(U16,'Utility Functions'!$AM$3:$AM$5,'Utility Functions'!$AN$3:$AN$5)","v":1},{"$f":"valuePL(V16,'Utility Functions'!$AO$3:$AO$5,'Utility Functions'!$AP$3:$AP$5)","v":0},{"$f":"valuePL(W16,'Utility Functions'!$AQ$3:$AQ$6,'Utility Functions'!$AR$3:$AR$6)","v":1},{"$f":"valuePL(X16,'Utility Functions'!$AS$3:$AS$6,'Utility Functions'!$AT$3:$AT$6)","v":0.2},{"$f":"valuePL(Y16,'Utility Functions'!$AU$3:$AU$6,'Utility Functions'!$AV$3:$AV$6)","v":0.2},{"$f":"valuePL(Z16,'Utility Functions'!$AW$3:$AW$5,'Utility Functions'!$AX$3:$AX$5)","v":1},{"$f":"valuePL(AA16,'Utility Functions'!$AY$3:$AY$6,'Utility Functions'!$AZ$3:$AZ$6)","v":1},{"$f":"valuePL(AB16,'Utility Functions'!$BA$3:$BA$5,'Utility Functions'!$BB$3:$BB$5)","v":1},{"$f":"valuePL(AC16,'Utility Functions'!$BC$3:$BC$5,'Utility Functions'!$BD$3:$BD$5)","v":0.25},15.150477261414375,null,15.15047726141438,4.2034772614143794,1.272,1.125,3.9,4.6500000000000004]
[16,{"$f":"valueE(B17,'Utility Functions'!$B$3,'Utility Functions'!$B$4,'Utility Functions'!$B$5,'Utility Functions'!$B$6)","v":0},{"$f":"valueE(C17,'Utility Functions'!$D$3,'Utility Functions'!$D$4,'Utility Functions'!$D$5,'Utility Functions'!$D$6)","v":0},{"$f":"valuePL(D17,'Utility Functions'!$E$3:$E$5,'Utility Functions'!$F$3:$F$5)","v":0},{"$f":"valuePL(E17,'Utility Functions'!$G$3:$G$5,'Utility Functions'!$H$3:$H$5)","v":0},{"$f":"valuePL(F17,'Utility Functions'!$I$3:$I$4,'Utility Functions'!$J$3:$J$5)","v":0},{"$f":"valueE(G17,'Utility Functions'!$L$3,'Utility Functions'!$L$4,'Utility Functions'!$L$5,'Utility Functions'!$L$6)","v":0},{"$f":"valueE(H17,'Utility Functions'!$N$3,'Utility Functions'!$N$4,'Utility Functions'!$N$5,'Utility Functions'!$N$6)","v":0},{"$f":"valuePL(I17,'Utility Functions'!$O$3:$O$6,'Utility Functions'!$P$3:$P$6)","v":1},{"$f":"valuePL(J17,'Utility Functions'!$Q$3:$Q$6,'Utility Functions'!$R$3:$R$6)","v":0.91818181818181821},{"$f":"valuePL(K17,'Utility Functions'!$S$3:$S$7,'Utility Functions'!$T$3:$T$7)","v":1},{"$f":"valueE(L17,'Utility Functions'!$V$3,'Utility Functions'!$V$4,'Utility Functions'!$V$5,'Utility Functions'!$V$6)","v":0.83333333333333337},{"$f":"valuePL(M17,'Utility Functions'!$W$3:$W$6,'Utility Functions'!$X$3:$X$6)","v":0.91818181818181821},{"$f":"valueE(N17,'Utility Functions'!$Z$3,'Utility Functions'!$Z$4,'Utility Functions'!$Z$5,'Utility Functions'!$Z$6)","v":0},{"$f":"valuePL(O17,'Utility Functions'!$AA$3:$AA$5,'Utility Functions'!$AB$3:$AB$5)","v":0},{"$f":"valuePL(P17,'Utility Functions'!$AC$3:$AC$7,'Utility Functions'!$AD$3:$AD$7)","v":0.75},{"$f":"valuePL(Q17,'Utility Functions'!$AE$3:$AE$6,'Utility Functions'!$AF$3:$AF$6)","v":0},{"$f":"valuePL(R17,'Utility Functions'!$AG$3:$AG$6,'Utility Functions'!$AH$3:$AH$6)","v":1},{"$f":"valuePL(S17,'Utility Functions'!$AI$3:$AI$6,'Utility Functions'!$AJ$3:$AJ$6)","v":1},{"$f":"valuePL(T17,'Utility Functions'!$AK$3:$AK$8,'Utility Functions'!$AL$3:$AL$8)","v":1},{"$f":"valuePL(U17,'Utility Functions'!$AM$3:$AM$5,'Utility Functions'!$AN$3:$AN$5)","v":0},{"$f":"valuePL(V17,'Utility Functions'!$AO$3:$AO$5,'Utility Functions'!$AP$3:$AP$5)","v":1},{"$f":"valuePL(W17,'Utility Functions'!$AQ$3:$AQ$6,'Utility Functions'!$AR$3:$AR$6)","v":0.75},{"$f":"valuePL(X17,'Utility Functions'!$AS$3:$AS$6,'Utility Functions'!$AT$3:$AT$6)","v":0.75},{"$f":"valuePL(Y17,'Utility Functions'!$AU$3:$AU$6,'Utility Functions'!$AV$3:$AV$6)","v":0.2},{"$f":"valuePL(Z17,'Utility Functions'!$AW$3:$AW$5,'Utility Functions'!$AX$3:$AX$5)","v":1},{"$f":"valuePL(AA17,'Utility Functions'!$AY$3:$AY$6,'Utility Functions'!$AZ$3:$AZ$6)","v":1},{"$f":"valuePL(AB17,'Utility Functions'!$BA$3:$BA$5,'Utility Functions'!$BB$3:$BB$5)","v":1},{"$f":"valuePL(AC17,'Utility Functions'!$BC$3:$BC$5,'Utility Functions'!$BD$3:$BD$5)","v":1},15.119696969696969,null,15.119696969696971,0,4.6696969696969699,0,3.75,6.7]
[17,{"$f":"valueE(B18,'Utility Functions'!$B$3,'Utility Functions'!$B$4,'Utility Functions'!$B$5,'Utility Functions'!$B$6)","v":0.32968045347775865},{"$f":"valueE(C18,'Utility Functions'!$D$3,'Utility Functions'!$D$4,'Utility Functions'!$D$5,'Utility Functions'!$D$6)","v":0.78989979019422951},{"$f":"valuePL(D18,'Utility Functions'!$E$3:$E$5,'Utility Functions'!$F$3:$F$5)","v":1},{"$f":"valuePL(E18,'Utility Functions'!$G$3:$G$5,'Utility Functions'!$H$3:$H$5)","v":0.5},{"$f":"valuePL(F18,'Utility Functions'!$I$3:$I$4,'Utility Functions'!$J$3:$J$5)","v":1},{"$f":"valueE(G18,'Utility Functions'!$L$3,'Utility Functions'!$L$4,'Utility Functions'!$L$5,'Utility Functions'!$L$6)","v":0.31182795698924731},{"$f":"valueE(H18,'Utility Functions'!$N$3,'Utility Functions'!$N$4,'Utility Functions'!$N$5,'Utility Functions'!$N$6)","v":0.27514231499051234},{"$f":"valuePL(I18,'Utility Functions'!$O$3:$O$6,'Utility Functions'!$P$3:$P$6)","v":0},{"$f":"valuePL(J18,'Utility Functions'!$Q$3:$Q$6,'Utility Functions'!$R$3:$R$6)","v":0},{"$f":"valuePL(K18,'Utility Functions'!$S$3:$S$7,'Utility Functions'!$T$3:$T$7)","v":0},{"$f":"valueE(L18,'Utility Functions'!$V$3,'Utility Functions'!$V$4,'Utility Functions'!$V$5,'Utility Functions'!$V$6)","v":1},{"$f":"valuePL(M18,'Utility Functions'!$W$3:$W$6,'Utility Functions'!$X$3:$X$6)","v":6.0000000000000012E-2},{"$f":"valueE(N18,'Utility Functions'!$Z$3,'Utility Functions'!$Z$4,'Utility Functions'!$Z$5,'Utility Functions'!$Z$6)","v":0},{"$f":"valuePL(O18,'Utility Functions'!$AA$3:$AA$5,'Utility Functions'!$AB$3:$AB$5)","v":0},{"$f":"valuePL(P18,'Utility Functions'!$AC$3:$AC$7,'Utility Functions'!$AD$3:$AD$7)","v":0},{"$f":"valuePL(Q18,'Utility Functions'!$AE$3:$AE$6,'Utility Functions'!$AF$3:$AF$6)","v":0},{"$f":"valuePL(R18,'Utility Functions'!$AG$3:$AG$6,'Utility Functions'!$AH$3:$AH$6)","v":1},{"$f":"valuePL(S18,'Utility Functions'!$AI$3:$AI$6,'Utility Functions'!$AJ$3:$AJ$6)","v":0.66},{"$f":"valuePL(T18,'Utility Functions'!$AK$3:$AK$8,'Utility Functions'!$AL$3:$AL$8)","v":0},{"$f":"valuePL(U18,'Utility Functions'!$AM$3:$AM$5,'Utility Functions'!$AN$3:$AN$5)","v":0},{"$f":"valuePL(V18,'Utility Functions'!$AO$3:$AO$5,'Utility Functions'!$AP$3:$AP$5)","v":1},{"$f":"valuePL(W18,'Utility Functions'!$AQ$3:$AQ$6,'Utility Functions'!$AR$3:$AR$6)","v":1},{"$f":"valuePL(X18,'Utility Functions'!$AS$3:$AS$6,'Utility Functions'!$AT$3:$AT$6)","v":0.2},{"$f":"valuePL(Y18,'Utility Functions'!$AU$3:$AU$6,'Utility Functions'!$AV$3:$AV$6)","v":0},{"$f":"valuePL(Z18,'Utility Functions'!$AW$3:$AW$5,'Utility Functions'!$AX$3:$AX$5)","v":0.5},{"$f":"valuePL(AA18,'Utility Functions'!$AY$3:$AY$6,'Utility Functions'!$AZ$3:$AZ$6)","v":0},{"$f":"valuePL(AB18,'Utility Functions'!$BA$3:$BA$5,'Utility Functions'!$BB$3:$BB$5)","v":1},{"$f":"valuePL(AC18,'Utility Functions'!$BC$3:$BC$5,'Utility Functions'!$BD$3:$BD$5)","v":0.25},10.876550515651747,null,10.876550515651747,3.6195802436719884,1.6469702719797596,0,1.6600000000000001,3.95]
[18,{"$f":"valueE(B19,'Utility Functions'!$B$3,'Utility Functions'!$B$4,'Utility Functions'!$B$5,'Utility Functions'!$B$6)","v":0},{"$f":"valueE(C19,'Utility Functions'!$D$3,'Utility Functions'!$D$4,'Utility Functions'!$D$5,'Utility Functions'!$D$6)","v":0},{"$f":"valuePL(D19,'Utility Functions'!$E$3:$E$5,'Utility Functions'!$F$3:$F$5)","v":0},{"$f":"valuePL(E19,'Utility Functions'!$G$3:$G$5,'Utility Functions'!$H$3:$H$5)","v":0},{"$f":"valuePL(F19,'Utility Functions'!$I$3:$I$4,'Utility Functions'!$J$3:$J$5)","v":0},{"$f":"valueE(G19,'Utility Functions'!$L$3,'Utility Functions'!$L$4,'Utility Functions'!$L$5,'Utility Functions'!$L$6)","v":0},{"$f":"valueE(H19,'Utility Functions'!$N$3,'Utility Functions'!$N$4,'Utility Functions'!$N$5,'Utility Functions'!$N$6)","v":2.8462998102466792E-2},{"$f":"valuePL(I19,'Utility Functions'!$O$3:$O$6,'Utility Functions'!$P$3:$P$6)","v":0},{"$f":"valuePL(J19,'Utility Functions'!$Q$3:$Q$6,'Utility Functions'!$R$3:$R$6)","v":0},{"$f":"valuePL(K19,'Utility Functions'!$S$3:$S$7,'Utility Functions'!$T$3:$T$7)","v":0},{"$f":"valueE(L19,'Utility Functions'!$V$3,'Utility Functions'!$V$4,'Utility Functions'!$V$5,'Utility Functions'!$V$6)","v":0},{"$f":"valuePL(M19,'Utility Functions'!$W$3:$W$6,'Utility Functions'!$X$3:$X$6)","v":0},{"$f":"valueE(N19,'Utility Functions'!$Z$3,'Utility Functions'!$Z$4,'Utility Functions'!$Z$5,'Utility Functions'!$Z$6)","v":1},{"$f":"valuePL(O19,'Utility Functions'!$AA$3:$AA$5,'Utility Functions'!$AB$3:$AB$5)","v":0.25},{"$f":"valuePL(P19,'Utility Functions'!$AC$3:$AC$7,'Utility Functions'!$AD$3:$AD$7)","v":0.25},{"$f":"valuePL(Q19,'Utility Functions'!$AE$3:$AE$6,'Utility Functions'!$AF$3:$AF$6)","v":1},{"$f":"valuePL(R19,'Utility Functions'!$AG$3:$AG$6,'Utility Functions'!$AH$3:$AH$6)","v":1},{"$f":"valuePL(S19,'Utility Functions'!$AI$3:$AI$6,'Utility Functions'!$AJ$3:$AJ$6)","v":1},{"$f":"valuePL(T19,'Utility Functions'!$AK$3:$AK$8,'Utility Functions'!$AL$3:$AL$8)","v":1},{"$f":"valuePL(U19,'Utility Functions'!$AM$3:$AM$5,'Utility Functions'!$AN$3:$AN$5)","v":0.25},{"$f":"valuePL(V19,'Utility Functions'!$AO$3:$AO$5,'Utility Functions'!$AP$3:$AP$5)","v":1},{"$f":"valuePL(W19,'Utility Functions'!$AQ$3:$AQ$6,'Utility Functions'!$AR$3:$AR$6)","v":0.75},{"$f":"valuePL(X19,'Utility Functions'!$AS$3:$AS$6,'Utility Functions'!$AT$3:$AT$6)","v":0.2},{"$f":"valuePL(Y19,'Utility Functions'!$AU$3:$AU$6,'Utility Functions'!$AV$3:$AV$6)","v":0.8},{"$f":"valuePL(Z19,'Utility Functions'!$AW$3:$AW$5,'Utility Functions'!$AX$3:$AX$5)","v":0.5},{"$f":"valuePL(AA19,'Utility Functions'!$AY$3:$AY$6,'Utility Functions'!$AZ$3:$AZ$6)","v":0.89999999999999991},{"$f":"valuePL(AB19,'Utility Functions'!$BA$3:$BA$5,'Utility Functions'!$BB$3:$BB$5)","v":0.25},{"$f":"valuePL(AC19,'Utility Functions'!$BC$3:$BC$5,'Utility Functions'!$BD$3:$BD$5)","v":0},10.178462998102468,null,10.178462998102468,0,2.8462998102466792E-2,1.25,4.5,4.4000000000000004]
[19,{"$f":"valueE(B20,'Utility Functions'!$B$3,'Utility Functions'!$B$4,'Utility Functions'!$B$5,'Utility Functions'!$B$6)","v":0.79810469124896843},{"$f":"valueE(C20,'Utility Functions'!$D$3,'Utility Functions'!$D$4,'Utility Functions'!$D$5,'Utility Functions'!$D$6)","v":0.26839655623815994},{"$f":"valuePL(D20,'Utility Functions'!$E$3:$E$5,'Utility Functions'!$F$3:$F$5)","v":0.5},{"$f":"valuePL(E20,'Utility Functions'!$G$3:$G$5,'Utility Functions'!$H$3:$H$5)","v":1},{"$f":"valuePL(F20,'Utility Functions'!$I$3:$I$4,'Utility Functions'!$J$3:$J$5)","v":0},{"$f":"valueE(G20,'Utility Functions'!$L$3,'Utility Functions'!$L$4,'Utility Functions'!$L$5,'Utility Functions'!$L$6)","v":0},{"$f":"valueE(H20,'Utility Functions'!$N$3,'Utility Functions'!$N$4,'Utility Functions'!$N$5,'Utility Functions'!$N$6)","v":0},{"$f":"valuePL(I20,'Utility Functions'!$O$3:$O$6,'Utility Functions'!$P$3:$P$6)","v":0},{"$f":"valuePL(J20,'Utility Functions'!$Q$3:$Q$6,'Utility Functions'!$R$3:$R$6)","v":0},{"$f":"valuePL(K20,'Utility Functions'!$S$3:$S$7,'Utility Functions'!$T$3:$T$7)","v":0},{"$f":"valueE(L20,'Utility Functions'!$V$3,'Utility Functions'!$V$4,'Utility Functions'!$V$5,'Utility Functions'!$V$6)","v":0},{"$f":"valuePL(M20,'Utility Functions'!$W$3:$W$6,'Utility Functions'!$X$3:$X$6)","v":0},{"$f":"valueE(N20,'Utility Functions'!$Z$3,'Utility Functions'!$Z$4,'Utility Functions'!$Z$5,'Utility Functions'!$Z$6)","v":1},{"$f":"valuePL(O20,'Utility Functions'!$AA$3:$AA$5,'Utility Functions'!$AB$3:$AB$5)","v":1},{"$f":"valuePL(P20,'Utility Functions'!$AC$3:$AC$7,'Utility Functions'!$AD$3:$AD$7)","v":0},{"$f":"valuePL(Q20,'Utility Functions'!$AE$3:$AE$6,'Utility Functions'!$AF$3:$AF$6)","v":0},{"$f":"valuePL(R20,'Utility Functions'!$AG$3:$AG$6,'Utility Functions'!$AH$3:$AH$6)","v":0.8},{"$f":"valuePL(S20,'Utility Functions'!$AI$3:$AI$6,'Utility Functions'!$AJ$3:$AJ$6)","v":1},{"$f":"valuePL(T20,'Utility Functions'!$AK$3:$AK$8,'Utility Functions'!$AL$3:$AL$8)","v":0},{"$f":"valuePL(U20,'Utility Functions'!$AM$3:$AM$5,'Utility Functions'!$AN$3:$AN$5)","v":0},{"$f":"valuePL(V20,'Utility Functions'!$AO$3:$AO$5,'Utility Functions'!$AP$3:$AP$5)","v":0.5},{"$f":"valuePL(W20,'Utility Functions'!$AQ$3:$AQ$6,'Utility Functions'!$AR$3:$AR$6)","v":0.2},{"$f":"valuePL(X20,'Utility Functions'!$AS$3:$AS$6,'Utility Functions'!$AT$3:$AT$6)","v":1},{"$f":"valuePL(Y20,'Utility Functions'!$AU$3:$AU$6,'Utility Functions'!$AV$3:$AV$6)","v":0.8},{"$f":"valuePL(Z20,'Utility Functions'!$AW$3:$AW$5,'Utility Functions'!$AX$3:$AX$5)","v":0},{"$f":"valuePL(AA20,'Utility Functions'!$AY$3:$AY$6,'Utility Functions'!$AZ$3:$AZ$6)","v":0.2},{"$f":"valuePL(AB20,'Utility Functions'!$BA$3:$BA$5,'Utility Functions'!$BB$3:$BB$5)","v":0},{"$f":"valuePL(AC20,'Utility Functions'!$BC$3:$BC$5,'Utility Functions'!$BD$3:$BD$5)","v":0.25},9.3165012474871283,null,9.3165012474871283,2.5665012474871283,0,2,1.8,2.95]
[20,{"$f":"valueE(B21,'Utility Functions'!$B$3,'Utility Functions'!$B$4,'Utility Functions'!$B$5,'Utility Functions'!$B$6)","v":0.83470237647280454},{"$f":"valueE(C21,'Utility Functions'!$D$3,'Utility Functions'!$D$4,'Utility Functions'!$D$5,'Utility Functions'!$D$6)","v":0.78989979019422951},{"$f":"valuePL(D21,'Utility Functions'!$E$3:$E$5,'Utility Functions'!$F$3:$F$5)","v":0.5},{"$f":"valuePL(E21,'Utility Functions'!$G$3:$G$5,'Utility Functions'!$H$3:$H$5)","v":1},{"$f":"valuePL(F21,'Utility Functions'!$I$3:$I$4,'Utility Functions'!$J$3:$J$5)","v":0},{"$f":"valueE(G21,'Utility Functions'!$L$3,'Utility Functions'!$L$4,'Utility Functions'!$L$5,'Utility Functions'!$L$6)","v":0},{"$f":"valueE(H21,'Utility Functions'!$N$3,'Utility Functions'!$N$4,'Utility Functions'!$N$5,'Utility Functions'!$N$6)","v":0.41271347248576851},{"$f":"valuePL(I21,'Utility Functions'!$O$3:$O$6,'Utility Functions'!$P$3:$P$6)","v":0.93454545454545446},{"$f":"valuePL(J21,'Utility Functions'!$Q$3:$Q$6,'Utility Functions'!$R$3:$R$6)","v":0.50909090909090915},{"$f":"valuePL(K21,'Utility Functions'!$S$3:$S$7,'Utility Functions'!$T$3:$T$7)","v":0.93454545454545446},{"$f":"valueE(L21,'Utility Functions'!$V$3,'Utility Functions'!$V$4,'Utility Functions'!$V$5,'Utility Functions'!$V$6)","v":0.66666666666666663},{"$f":"valuePL(M21,'Utility Functions'!$W$3:$W$6,'Utility Functions'!$X$3:$X$6)","v":0.50909090909090915},{"$f":"valueE(N21,'Utility Functions'!$Z$3,'Utility Functions'!$Z$4,'Utility Functions'!$Z$5,'Utility Functions'!$Z$6)","v":1},{"$f":"valuePL(O21,'Utility Functions'!$AA$3:$AA$5,'Utility Functions'!$AB$3:$AB$5)","v":1},{"$f":"valuePL(P21,'Utility Functions'!$AC$3:$AC$7,'Utility Functions'!$AD$3:$AD$7)","v":0.25},{"$f":"valuePL(Q21,'Utility Functions'!$AE$3:$AE$6,'Utility Functions'!$AF$3:$AF$6)","v":0},{"$f":"valuePL(R21,'Utility Functions'!$AG$3:$AG$6,'Utility Functions'!$AH$3:$AH$6)","v":1},{"$f":"valuePL(S21,'Utility Functions'!$AI$3:$AI$6,'Utility Functions'!$AJ$3:$AJ$6)","v":1},{"$f":"valuePL(T21,'Utility Functions'!$AK$3:$AK$8,'Utility Functions'!$AL$3:$AL$8)","v":0.6},{"$f":"valuePL(U21,'Utility Functions'!$AM$3:$AM$5,'Utility Functions'!$AN$3:$AN$5)","v":1},{"$f":"valuePL(V21,'Utility Functions'!$AO$3:$AO$5,'Utility Functions'!$AP$3:$AP$5)","v":0.5},{"$f":"valuePL(W21,'Utility Functions'!$AQ$3:$AQ$6,'Utility Functions'!$AR$3:$AR$6)","v":0},{"$f":"valuePL(X21,'Utility Functions'!$AS$3:$AS$6,'Utility Functions'!$AT$3:$AT$6)","v":0},{"$f":"valuePL(Y21,'Utility Functions'!$AU$3:$AU$6,'Utility Functions'!$AV$3:$AV$6)","v":0.2},{"$f":"valuePL(Z21,'Utility Functions'!$AW$3:$AW$5,'Utility Functions'!$AX$3:$AX$5)","v":1},{"$f":"valuePL(AA21,'Utility Functions'!$AY$3:$AY$6,'Utility Functions'!$AZ$3:$AZ$6)","v":0.2},{"$f":"valuePL(AB21,'Utility Functions'!$BA$3:$BA$5,'Utility Functions'!$BB$3:$BB$5)","v":0},{"$f":"valuePL(AC21,'Utility Functions'!$BC$3:$BC$5,'Utility Functions'!$BD$3:$BD$5)","v":0.25},15.091255033092194,null,15.091255033092196,3.1246021666670343,3.9666528664251626,2,3.85,2.15]
[21,{"$f":"valueE(B22,'Utility Functions'!$B$3,'Utility Functions'!$B$4,'Utility Functions'!$B$5,'Utility Functions'!$B$6)","v":0},{"$f":"valueE(C22,'Utility Functions'!$D$3,'Utility Functions'!$D$4,'Utility Functions'!$D$5,'Utility Functions'!$D$6)","v":0},{"$f":"valuePL(D22,'Utility Functions'!$E$3:$E$5,'Utility Functions'!$F$3:$F$5)","v":0},{"$f":"valuePL(E22,'Utility Functions'!$G$3:$G$5,'Utility Functions'!$H$3:$H$5)","v":0},{"$f":"valuePL(F22,'Utility Functions'!$I$3:$I$4,'Utility Functions'!$J$3:$J$5)","v":0},{"$f":"valueE(G22,'Utility Functions'!$L$3,'Utility Functions'!$L$4,'Utility Functions'!$L$5,'Utility Functions'!$L$6)","v":0},{"$f":"valueE(H22,'Utility Functions'!$N$3,'Utility Functions'!$N$4,'Utility Functions'!$N$5,'Utility Functions'!$N$6)","v":0},{"$f":"valuePL(I22,'Utility Functions'!$O$3:$O$6,'Utility Functions'!$P$3:$P$6)","v":0},{"$f":"valuePL(J22,'Utility Functions'!$Q$3:$Q$6,'Utility Functions'!$R$3:$R$6)","v":0},{"$f":"valuePL(K22,'Utility Functions'!$S$3:$S$7,'Utility Functions'!$T$3:$T$7)","v":0},{"$f":"valueE(L22,'Utility Functions'!$V$3,'Utility Functions'!$V$4,'Utility Functions'!$V$5,'Utility Functions'!$V$6)","v":0},{"$f":"valuePL(M22,'Utility Functions'!$W$3:$W$6,'Utility Functions'!$X$3:$X$6)","v":0},{"$f":"valueE(N22,'Utility Functions'!$Z$3,'Utility Functions'!$Z$4,'Utility Functions'!$Z$5,'Utility Functions'!$Z$6)","v":1},{"$f":"valuePL(O22,'Utility Functions'!$AA$3:$AA$5,'Utility Functions'!$AB$3:$AB$5)","v":1},{"$f":"valuePL(P22,'Utility Functions'!$AC$3:$AC$7,'Utility Functions'!$AD$3:$AD$7)","v":0},{"$f":"valuePL(Q22,'Utility Functions'!$AE$3:$AE$6,'Utility Functions'!$AF$3:$AF$6)","v":0.1},{"$f":"valuePL(R22,'Utility Functions'!$AG$3:$AG$6,'Utility Functions'!$AH$3:$AH$6)","v":1},{"$f":"valuePL(S22,'Utility Functions'!$AI$3:$AI$6,'Utility Functions'!$AJ$3:$AJ$6)","v":1},{"$f":"valuePL(T22,'Utility Functions'!$AK$3:$AK$8,'Utility Functions'!$AL$3:$AL$8)","v":1},{"$f":"valuePL(U22,'Utility Functions'!$AM$3:$AM$5,'Utility Functions'!$AN$3:$AN$5)","v":0.25},{"$f":"valuePL(V22,'Utility Functions'!$AO$3:$AO$5,'Utility Functions'!$AP$3:$AP$5)","v":0},{"$f":"valuePL(W22,'Utility Functions'!$AQ$3:$AQ$6,'Utility Functions'!$AR$3:$AR$6)","v":0.75},{"$f":"valuePL(X22,'Utility Functions'!$AS$3:$AS$6,'Utility Functions'!$AT$3:$AT$6)","v":1},{"$f":"valuePL(Y22,'Utility Functions'!$AU$3:$AU$6,'Utility Functions'!$AV$3:$AV$6)","v":0.2},{"$f":"valuePL(Z22,'Utility Functions'!$AW$3:$AW$5,'Utility Functions'!$AX$3:$AX$5)","v":0},{"$f":"valuePL(AA22,'Utility Functions'!$AY$3:$AY$6,'Utility Functions'!$AZ$3:$AZ$6)","v":1},{"$f":"valuePL(AB22,'Utility Functions'!$BA$3:$BA$5,'Utility Functions'!$BB$3:$BB$5)","v":0.25},{"$f":"valuePL(AC22,'Utility Functions'!$BC$3:$BC$5,'Utility Functions'!$BD$3:$BD$5)","v":1},9.5500000000000007,null,9.5500000000000007,0,0,2,3.35,4.2]
[22,{"$f":"valueE(B23,'Utility Functions'!$B$3,'Utility Functions'!$B$4,'Utility Functions'!$B$5,'Utility Functions'!$B$6)","v":0},{"$f":"valueE(C23,'Utility Functions'!$D$3,'Utility Functions'!$D$4,'Utility Functions'!$D$5,'Utility Functions'!$D$6)","v":0},{"$f":"valuePL(D23,'Utility Functions'!$E$3:$E$5,'Utility Functions'!$F$3:$F$5)","v":0},{"$f":"valuePL(E23,'Utility Functions'!$G$3:$G$5,'Utility Functions'!$H$3:$H$5)","v":0},{"$f":"valuePL(F23,'Utility Functions'!$I$3:$I$4,'Utility Functions'!$J$3:$J$5)","v":0},{"$f":"valueE(G23,'Utility Functions'!$L$3,'Utility Functions'!$L$4,'Utility Functions'!$L$5,'Utility Functions'!$L$6)","v":8.6021505376344093E-2},{"$f":"valueE(H23,'Utility Functions'!$N$3,'Utility Functions'!$N$4,'Utility Functions'!$N$5,'Utility Functions'!$N$6)","v":6.0721062618595827E-2},{"$f":"valuePL(I23,'Utility Functions'!$O$3:$O$6,'Utility Functions'!$P$3:$P$6)","v":0},{"$f":"valuePL(J23,'Utility Functions'!$Q$3:$Q$6,'Utility Functions'!$R$3:$R$6)","v":0},{"$f":"valuePL(K23,'Utility Functions'!$S$3:$S$7,'Utility Functions'!$T$3:$T$7)","v":0},{"$f":"valueE(L23,'Utility Functions'!$V$3,'Utility Functions'!$V$4,'Utility Functions'!$V$5,'Utility Functions'!$V$6)","v":0},{"$f":"valuePL(M23,'Utility Functions'!$W$3:$W$6,'Utility Functions'!$X$3:$X$6)","v":0},{"$f":"valueE(N23,'Utility Functions'!$Z$3,'Utility Functions'!$Z$4,'Utility Functions'!$Z$5,'Utility Functions'!$Z$6)","v":0.125},{"$f":"valuePL(O23,'Utility Functions'!$AA$3:$AA$5,'Utility Functions'!$AB$3:$AB$5)","v":1},{"$f":"valuePL(P23,'Utility Functions'!$AC$3:$AC$7,'Utility Functions'!$AD$3:$AD$7)","v":1},{"$f":"valuePL(Q23,'Utility Functions'!$AE$3:$AE$6,'Utility Functions'!$AF$3:$AF$6)","v":0.5},{"$f":"valuePL(R23,'Utility Functions'!$AG$3:$AG$6,'Utility Functions'!$AH$3:$AH$6)","v":0.8},{"$f":"valuePL(S23,'Utility Functions'!$AI$3:$AI$6,'Utility Functions'!$AJ$3:$AJ$6)","v":1},{"$f":"valuePL(T23,'Utility Functions'!$AK$3:$AK$8,'Utility Functions'!$AL$3:$AL$8)","v":1},{"$f":"valuePL(U23,'Utility Functions'!$AM$3:$AM$5,'Utility Functions'!$AN$3:$AN$5)","v":0},{"$f":"valuePL(V23,'Utility Functions'!$AO$3:$AO$5,'Utility Functions'!$AP$3:$AP$5)","v":0.5},{"$f":"valuePL(W23,'Utility Functions'!$AQ$3:$AQ$6,'Utility Functions'!$AR$3:$AR$6)","v":0.75},{"$f":"valuePL(X23,'Utility Functions'!$AS$3:$AS$6,'Utility Functions'!$AT$3:$AT$6)","v":0.2},{"$f":"valuePL(Y23,'Utility Functions'!$AU$3:$AU$6,'Utility Functions'!$AV$3:$AV$6)","v":0},{"$f":"valuePL(Z23,'Utility Functions'!$AW$3:$AW$5,'Utility Functions'!$AX$3:$AX$5)","v":1},{"$f":"valuePL(AA23,'Utility Functions'!$AY$3:$AY$6,'Utility Functions'!$AZ$3:$AZ$6)","v":0.2},{"$f":"valuePL(AB23,'Utility Functions'!$BA$3:$BA$5,'Utility Functions'!$BB$3:$BB$5)","v":1},{"$f":"valuePL(AC23,'Utility Functions'!$BC$3:$BC$5,'Utility Functions'!$BD$3:$BD$5)","v":0.25},9.471742567994939,null,9.4717425679949407,0,0.14674256799493993,1.125,4.3,3.9000000000000004]
[23,{"$f":"valueE(B24,'Utility Functions'!$B$3,'Utility Functions'!$B$4,'Utility Functions'!$B$5,'Utility Functions'!$B$6)","v":0.83470237647280454},{"$f":"valueE(C24,'Utility Functions'!$D$3,'Utility Functions'!$D$4,'Utility Functions'!$D$5,'Utility Functions'!$D$6)","v":0.84744836833951609},{"$f":"valuePL(D24,'Utility Functions'!$E$3:$E$5,'Utility Functions'!$F$3:$F$5)","v":1},{"$f":"valuePL(E24,'Utility Functions'!$G$3:$G$5,'Utility Functions'!$H$3:$H$5)","v":0},{"$f":"valuePL(F24,'Utility Functions'!$I$3:$I$4,'Utility Functions'!$J$3:$J$5)","v":0},{"$f":"valueE(G24,'Utility Functions'!$L$3,'Utility Functions'!$L$4,'Utility Functions'!$L$5,'Utility Functions'!$L$6)","v":0},{"$f":"valueE(H24,'Utility Functions'!$N$3,'Utility Functions'!$N$4,'Utility Functions'!$N$5,'Utility Functions'!$N$6)","v":0},{"$f":"valuePL(I24,'Utility Functions'!$O$3:$O$6,'Utility Functions'!$P$3:$P$6)","v":0},{"$f":"valuePL(J24,'Utility Functions'!$Q$3:$Q$6,'Utility Functions'!$R$3:$R$6)","v":0},{"$f":"valuePL(K24,'Utility Functions'!$S$3:$S$7,'Utility Functions'!$T$3:$T$7)","v":0},{"$f":"valueE(L24,'Utility Functions'!$V$3,'Utility Functions'!$V$4,'Utility Functions'!$V$5,'Utility Functions'!$V$6)","v":0},{"$f":"valuePL(M24,'Utility Functions'!$W$3:$W$6,'Utility Functions'!$X$3:$X$6)","v":0},{"$f":"valueE(N24,'Utility Functions'!$Z$3,'Utility Functions'!$Z$4,'Utility Functions'!$Z$5,'Utility Functions'!$Z$6)","v":0},{"$f":"valuePL(O24,'Utility Functions'!$AA$3:$AA$5,'Utility Functions'!$AB$3:$AB$5)","v":0},{"$f":"valuePL(P24,'Utility Functions'!$AC$3:$AC$7,'Utility Functions'!$AD$3:$AD$7)","v":0.75},{"$f":"valuePL(Q24,'Utility Functions'!$AE$3:$AE$6,'Utility Functions'!$AF$3:$AF$6)","v":0},{"$f":"valuePL(R24,'Utility Functions'!$AG$3:$AG$6,'Utility Functions'!$AH$3:$AH$6)","v":1},{"$f":"valuePL(S24,'Utility Functions'!$AI$3:$AI$6,'Utility Functions'!$AJ$3:$AJ$6)","v":1},{"$f":"valuePL(T24,'Utility Functions'!$AK$3:$AK$8,'Utility Functions'!$AL$3:$AL$8)","v":1},{"$f":"valuePL(U24,'Utility Functions'!$AM$3:$AM$5,'Utility Functions'!$AN$3:$AN$5)","v":0},{"$f":"valuePL(V24,'Utility Functions'!$AO$3:$AO$5,'Utility Functions'!$AP$3:$AP$5)","v":1},{"$f":"valuePL(W24,'Utility Functions'!$AQ$3:$AQ$6,'Utility Functions'!$AR$3:$AR$6)","v":0.2},{"$f":"valuePL(X24,'Utility Functions'!$AS$3:$AS$6,'Utility Functions'!$AT$3:$AT$6)","v":0.75},{"$f":"valuePL(Y24,'Utility Functions'!$AU$3:$AU$6,'Utility Functions'!$AV$3:$AV$6)","v":0.2},{"$f":"valuePL(Z24,'Utility Functions'!$AW$3:$AW$5,'Utility Functions'!$AX$3:$AX$5)","v":0.5},{"$f":"valuePL(AA24,'Utility Functions'!$AY$3:$AY$6,'Utility Functions'!$AZ$3:$AZ$6)","v":0.2},{"$f":"valuePL(AB24,'Utility Functions'!$BA$3:$BA$5,'Utility Functions'!$BB$3:$BB$5)","v":0},{"$f":"valuePL(AC24,'Utility Functions'!$BC$3:$BC$5,'Utility Functions'!$BD$3:$BD$5)","v":0.25},9.5321507448123199,null,9.5321507448123199,2.6821507448123207,0,0,3.75,3.1]
[24,{"$f":"valueE(B25,'Utility Functions'!$B$3,'Utility Functions'!$B$4,'Utility Functions'!$B$5,'Utility Functions'!$B$6)","v":0.63212151658375171},{"$f":"valueE(C25,'Utility Functions'!$D$3,'Utility Functions'!$D$4,'Utility Functions'!$D$5,'Utility Functions'!$D$6)","v":0.46475967153745396},{"$f":"valuePL(D25,'Utility Functions'!$E$3:$E$5,'Utility Functions'!$F$3:$F$5)","v":1},{"$f":"valuePL(E25,'Utility Functions'!$G$3:$G$5,'Utility Functions'!$H$3:$H$5)","v":0},{"$f":"valuePL(F25,'Utility Functions'!$I$3:$I$4,'Utility Functions'!$J$3:$J$5)","v":0},{"$f":"valueE(G25,'Utility Functions'!$L$3,'Utility Functions'!$L$4,'Utility Functions'!$L$5,'Utility Functions'!$L$6)","v":0},{"$f":"valueE(H25,'Utility Functions'!$N$3,'Utility Functions'!$N$4,'Utility Functions'!$N$5,'Utility Functions'!$N$6)","v":0},{"$f":"valuePL(I25,'Utility Functions'!$O$3:$O$6,'Utility Functions'!$P$3:$P$6)","v":0},{"$f":"valuePL(J25,'Utility Functions'!$Q$3:$Q$6,'Utility Functions'!$R$3:$R$6)","v":0},{"$f":"valuePL(K25,'Utility Functions'!$S$3:$S$7,'Utility Functions'!$T$3:$T$7)","v":0},{"$f":"valueE(L25,'Utility Functions'!$V$3,'Utility Functions'!$V$4,'Utility Functions'!$V$5,'Utility Functions'!$V$6)","v":0},{"$f":"valuePL(M25,'Utility Functions'!$W$3:$W$6,'Utility Functions'!$X$3:$X$6)","v":0},{"$f":"valueE(N25,'Utility Functions'!$Z$3,'Utility Functions'!$Z$4,'Utility Functions'!$Z$5,'Utility Functions'!$Z$6)","v":0},{"$f":"valuePL(O25,'Utility Functions'!$AA$3:$AA$5,'Utility Functions'!$AB$3:$AB$5)","v":0},{"$f":"valuePL(P25,'Utility Functions'!$AC$3:$AC$7,'Utility Functions'!$AD$3:$AD$7)","v":0},{"$f":"valuePL(Q25,'Utility Functions'!$AE$3:$AE$6,'Utility Functions'!$AF$3:$AF$6)","v":0},{"$f":"valuePL(R25,'Utility Functions'!$AG$3:$AG$6,'Utility Functions'!$AH$3:$AH$6)","v":1},{"$f":"valuePL(S25,'Utility Functions'!$AI$3:$AI$6,'Utility Functions'!$AJ$3:$AJ$6)","v":1},{"$f":"valuePL(T25,'Utility Functions'!$AK$3:$AK$8,'Utility Functions'!$AL$3:$AL$8)","v":1},{"$f":"valuePL(U25,'Utility Functions'!$AM$3:$AM$5,'Utility Functions'!$AN$3:$AN$5)","v":0},{"$f":"valuePL(V25,'Utility Functions'!$AO$3:$AO$5,'Utility Functions'!$AP$3:$AP$5)","v":0},{"$f":"valuePL(W25,'Utility Functions'!$AQ$3:$AQ$6,'Utility Functions'!$AR$3:$AR$6)","v":1},{"$f":"valuePL(X25,'Utility Functions'!$AS$3:$AS$6,'Utility Functions'!$AT$3:$AT$6)","v":0.2},{"$f":"valuePL(Y25,'Utility Functions'!$AU$3:$AU$6,'Utility Functions'!$AV$3:$AV$6)","v":1},{"$f":"valuePL(Z25,'Utility Functions'!$AW$3:$AW$5,'Utility Functions'!$AX$3:$AX$5)","v":1},{"$f":"valuePL(AA25,'Utility Functions'!$AY$3:$AY$6,'Utility Functions'!$AZ$3:$AZ$6)","v":0.2},{"$f":"valuePL(AB25,'Utility Functions'!$BA$3:$BA$5,'Utility Functions'!$BB$3:$BB$5)","v":0},{"$f":"valuePL(AC25,'Utility Functions'!$BC$3:$BC$5,'Utility Functions'!$BD$3:$BD$5)","v":1},9.4968811881212041,null,9.4968811881212059,2.0968811881212055,0,0,3,4.4000000000000004]
[25,{"$f":"valueE(B26,'Utility Functions'!$B$3,'Utility Functions'!$B$4,'Utility Functions'!$B$5,'Utility Functions'!$B$6)","v":0.83470237647280454},{"$f":"valueE(C26,'Utility Functions'!$D$3,'Utility Functions'!$D$4,'Utility Functions'!$D$5,'Utility Functions'!$D$6)","v":0.84744836833951609},{"$f":"valuePL(D26,'Utility Functions'!$E$3:$E$5,'Utility Functions'!$F$3:$F$5)","v":1},{"$f":"valuePL(E26,'Utility Functions'!$G$3:$G$5,'Utility Functions'!$H$3:$H$5)","v":0},{"$f":"valuePL(F26,'Utility Functions'!$I$3:$I$4,'Utility Functions'!$J$3:$J$5)","v":0},{"$f":"valueE(G26,'Utility Functions'!$L$3,'Utility Functions'!$L$4,'Utility Functions'!$L$5,'Utility Functions'!$L$6)","v":0.94623655913978499},{"$f":"valueE(H26,'Utility Functions'!$N$3,'Utility Functions'!$N$4,'Utility Functions'!$N$5,'Utility Functions'!$N$6)","v":0.29222011385199242},{"$f":"valuePL(I26,'Utility Functions'!$O$3:$O$6,'Utility Functions'!$P$3:$P$6)","v":0},{"$f":"valuePL(J26,'Utility Functions'!$Q$3:$Q$6,'Utility Functions'!$R$3:$R$6)","v":0},{"$f":"valuePL(K26,'Utility Functions'!$S$3:$S$7,'Utility Functions'!$T$3:$T$7)","v":0},{"$f":"valueE(L26,'Utility Functions'!$V$3,'Utility Functions'!$V$4,'Utility Functions'!$V$5,'Utility Functions'!$V$6)","v":0},{"$f":"valuePL(M26,'Utility Functions'!$W$3:$W$6,'Utility Functions'!$X$3:$X$6)","v":0},{"$f":"valueE(N26,'Utility Functions'!$Z$3,'Utility Functions'!$Z$4,'Utility Functions'!$Z$5,'Utility Functions'!$Z$6)","v":1},{"$f":"valuePL(O26,'Utility Functions'!$AA$3:$AA$5,'Utility Functions'!$AB$3:$AB$5)","v":0.25},{"$f":"valuePL(P26,'Utility Functions'!$AC$3:$AC$7,'Utility Functions'!$AD$3:$AD$7)","v":0.5},{"$f":"valuePL(Q26,'Utility Functions'!$AE$3:$AE$6,'Utility Functions'!$AF$3:$AF$6)","v":0.5},{"$f":"valuePL(R26,'Utility Functions'!$AG$3:$AG$6,'Utility Functions'!$AH$3:$AH$6)","v":1},{"$f":"valuePL(S26,'Utility Functions'!$AI$3:$AI$6,'Utility Functions'!$AJ$3:$AJ$6)","v":1},{"$f":"valuePL(T26,'Utility Functions'!$AK$3:$AK$8,'Utility Functions'!$AL$3:$AL$8)","v":0},{"$f":"valuePL(U26,'Utility Functions'!$AM$3:$AM$5,'Utility Functions'!$AN$3:$AN$5)","v":0},{"$f":"valuePL(V26,'Utility Functions'!$AO$3:$AO$5,'Utility Functions'!$AP$3:$AP$5)","v":1},{"$f":"valuePL(W26,'Utility Functions'!$AQ$3:$AQ$6,'Utility Functions'!$AR$3:$AR$6)","v":0.2},{"$f":"valuePL(X26,'Utility Functions'!$AS$3:$AS$6,'Utility Functions'!$AT$3:$AT$6)","v":1},{"$f":"valuePL(Y26,'Utility Functions'!$AU$3:$AU$6,'Utility Functions'!$AV$3:$AV$6)","v":0.8},{"$f":"valuePL(Z26,'Utility Functions'!$AW$3:$AW$5,'Utility Functions'!$AX$3:$AX$5)","v":0.5},{"$f":"valuePL(AA26,'Utility Functions'!$AY$3:$AY$6,'Utility Functions'!$AZ$3:$AZ$6)","v":0.2},{"$f":"valuePL(AB26,'Utility Functions'!$BA$3:$BA$5,'Utility Functions'!$BB$3:$BB$5)","v":1},{"$f":"valuePL(AC26,'Utility Functions'!$BC$3:$BC$5,'Utility Functions'!$BD$3:$BD$5)","v":1},13.870607417804099,null,13.870607417804099,2.6821507448123207,1.2384566729917774,1.25,3,5.7]
[26,{"$f":"valueE(B27,'Utility Functions'!$B$3,'Utility Functions'!$B$4,'Utility Functions'!$B$5,'Utility Functions'!$B$6)","v":0.96662819462069161},{"$f":"valueE(C27,'Utility Functions'!$D$3,'Utility Functions'!$D$4,'Utility Functions'!$D$5,'Utility Functions'!$D$6)","v":0.84744836833951609},{"$f":"valuePL(D27,'Utility Functions'!$E$3:$E$5,'Utility Functions'!$F$3:$F$5)","v":1},{"$f":"valuePL(E27,'Utility Functions'!$G$3:$G$5,'Utility Functions'!$H$3:$H$5)","v":0.5},{"$f":"valuePL(F27,'Utility Functions'!$I$3:$I$4,'Utility Functions'!$J$3:$J$5)","v":0},{"$f":"valueE(G27,'Utility Functions'!$L$3,'Utility Functions'!$L$4,'Utility Functions'!$L$5,'Utility Functions'!$L$6)","v":0},{"$f":"valueE(H27,'Utility Functions'!$N$3,'Utility Functions'!$N$4,'Utility Functions'!$N$5,'Utility Functions'!$N$6)","v":0},{"$f":"valuePL(I27,'Utility Functions'!$O$3:$O$6,'Utility Functions'!$P$3:$P$6)","v":0},{"$f":"valuePL(J27,'Utility Functions'!$Q$3:$Q$6,'Utility Functions'!$R$3:$R$6)","v":0},{"$f":"valuePL(K27,'Utility Functions'!$S$3:$S$7,'Utility Functions'!$T$3:$T$7)","v":0},{"$f":"valueE(L27,'Utility Functions'!$V$3,'Utility Functions'!$V$4,'Utility Functions'!$V$5,'Utility Functions'!$V$6)","v":0},{"$f":"valuePL(M27,'Utility Functions'!$W$3:$W$6,'Utility Functions'!$X$3:$X$6)","v":0},{"$f":"valueE(N27,'Utility Functions'!$Z$3,'Utility Functions'!$Z$4,'Utility Functions'!$Z$5,'Utility Functions'!$Z$6)","v":0},{"$f":"valuePL(O27,'Utility Functions'!$AA$3:$AA$5,'Utility Functions'!$AB$3:$AB$5)","v":0},{"$f":"valuePL(P27,'Utility Functions'!$AC$3:$AC$7,'Utility Functions'!$AD$3:$AD$7)","v":0.75},{"$f":"valuePL(Q27,'Utility Functions'!$AE$3:$AE$6,'Utility Functions'!$AF$3:$AF$6)","v":0},{"$f":"valuePL(R27,'Utility Functions'!$AG$3:$AG$6,'Utility Functions'!$AH$3:$AH$6)","v":1},{"$f":"valuePL(S27,'Utility Functions'!$AI$3:$AI$6,'Utility Functions'!$AJ$3:$AJ$6)","v":1},{"$f":"valuePL(T27,'Utility Functions'!$AK$3:$AK$8,'Utility Functions'!$AL$3:$AL$8)","v":0.8},{"$f":"valuePL(U27,'Utility Functions'!$AM$3:$AM$5,'Utility Functions'!$AN$3:$AN$5)","v":0},{"$f":"valuePL(V27,'Utility Functions'!$AO$3:$AO$5,'Utility Functions'!$AP$3:$AP$5)","v":1},{"$f":"valuePL(W27,'Utility Functions'!$AQ$3:$AQ$6,'Utility Functions'!$AR$3:$AR$6)","v":0.2},{"$f":"valuePL(X27,'Utility Functions'!$AS$3:$AS$6,'Utility Functions'!$AT$3:$AT$6)","v":0},{"$f":"valuePL(Y27,'Utility Functions'!$AU$3:$AU$6,'Utility Functions'!$AV$3:$AV$6)","v":0.8},{"$f":"valuePL(Z27,'Utility Functions'!$AW$3:$AW$5,'Utility Functions'!$AX$3:$AX$5)","v":0},{"$f":"valuePL(AA27,'Utility Functions'!$AY$3:$AY$6,'Utility Functions'!$AZ$3:$AZ$6)","v":0.2},{"$f":"valuePL(AB27,'Utility Functions'!$BA$3:$BA$5,'Utility Functions'!$BB$3:$BB$5)","v":1},{"$f":"valuePL(AC27,'Utility Functions'!$BC$3:$BC$5,'Utility Functions'!$BD$3:$BD$5)","v":1},11.064076562960208,null,11.064076562960206,3.3140765629602078,0,0,3.55,4.2]
[27,{"$f":"valueE(B28,'Utility Functions'!$B$3,'Utility Functions'!$B$4,'Utility Functions'!$B$5,'Utility Functions'!$B$6)","v":0},{"$f":"valueE(C28,'Utility Functions'!$D$3,'Utility Functions'!$D$4,'Utility Functions'!$D$5,'Utility Functions'!$D$6)","v":0.46475967153745396},{"$f":"valuePL(D28,'Utility Functions'!$E$3:$E$5,'Utility Functions'!$F$3:$F$5)","v":1},{"$f":"valuePL(E28,'Utility Functions'!$G$3:$G$5,'Utility Functions'!$H$3:$H$5)","v":0},{"$f":"valuePL(F28,'Utility Functions'!$I$3:$I$4,'Utility Functions'!$J$3:$J$5)","v":0},{"$f":"valueE(G28,'Utility Functions'!$L$3,'Utility Functions'!$L$4,'Utility Functions'!$L$5,'Utility Functions'!$L$6)","v":0},{"$f":"valueE(H28,'Utility Functions'!$N$3,'Utility Functions'!$N$4,'Utility Functions'!$N$5,'Utility Functions'!$N$6)","v":0},{"$f":"valuePL(I28,'Utility Functions'!$O$3:$O$6,'Utility Functions'!$P$3:$P$6)","v":0},{"$f":"valuePL(J28,'Utility Functions'!$Q$3:$Q$6,'Utility Functions'!$R$3:$R$6)","v":0},{"$f":"valuePL(K28,'Utility Functions'!$S$3:$S$7,'Utility Functions'!$T$3:$T$7)","v":1},{"$f":"valueE(L28,'Utility Functions'!$V$3,'Utility Functions'!$V$4,'Utility Functions'!$V$5,'Utility Functions'!$V$6)","v":0},{"$f":"valuePL(M28,'Utility Functions'!$W$3:$W$6,'Utility Functions'!$X$3:$X$6)","v":0.1},{"$f":"valueE(N28,'Utility Functions'!$Z$3,'Utility Functions'!$Z$4,'Utility Functions'!$Z$5,'Utility Functions'!$Z$6)","v":0},{"$f":"valuePL(O28,'Utility Functions'!$AA$3:$AA$5,'Utility Functions'!$AB$3:$AB$5)","v":0},{"$f":"valuePL(P28,'Utility Functions'!$AC$3:$AC$7,'Utility Functions'!$AD$3:$AD$7)","v":0.5},{"$f":"valuePL(Q28,'Utility Functions'!$AE$3:$AE$6,'Utility Functions'!$AF$3:$AF$6)","v":0.5},{"$f":"valuePL(R28,'Utility Functions'!$AG$3:$AG$6,'Utility Functions'!$AH$3:$AH$6)","v":1},{"$f":"valuePL(S28,'Utility Functions'!$AI$3:$AI$6,'Utility Functions'!$AJ$3:$AJ$6)","v":1},{"$f":"valuePL(T28,'Utility Functions'!$AK$3:$AK$8,'Utility Functions'!$AL$3:$AL$8)","v":1},{"$f":"valuePL(U28,'Utility Functions'!$AM$3:$AM$5,'Utility Functions'!$AN$3:$AN$5)","v":0},{"$f":"valuePL(V28,'Utility Functions'!$AO$3:$AO$5,'Utility Functions'!$AP$3:$AP$5)","v":0.5},{"$f":"valuePL(W28,'Utility Functions'!$AQ$3:$AQ$6,'Utility Functions'!$AR$3:$AR$6)","v":0.75},{"$f":"valuePL(X28,'Utility Functions'!$AS$3:$AS$6,'Utility Functions'!$AT$3:$AT$6)","v":1},{"$f":"valuePL(Y28,'Utility Functions'!$AU$3:$AU$6,'Utility Functions'!$AV$3:$AV$6)","v":0.2},{"$f":"valuePL(Z28,'Utility Functions'!$AW$3:$AW$5,'Utility Functions'!$AX$3:$AX$5)","v":0},{"$f":"valuePL(AA28,'Utility Functions'!$AY$3:$AY$6,'Utility Functions'!$AZ$3:$AZ$6)","v":0},{"$f":"valuePL(AB28,'Utility Functions'!$BA$3:$BA$5,'Utility Functions'!$BB$3:$BB$5)","v":0},{"$f":"valuePL(AC28,'Utility Functions'!$BC$3:$BC$5,'Utility Functions'!$BD$3:$BD$5)","v":0},9.0147596715374529,null,9.0147596715374547,1.464759671537454,1.1000000000000001,0,4,2.4500000000000002]
[28,{"$f":"valueE(B29,'Utility Functions'!$B$3,'Utility Functions'!$B$4,'Utility Functions'!$B$5,'Utility Functions'!$B$6)","v":0.4511890475224023},{"$f":"valueE(C29,'Utility Functions'!$D$3,'Utility Functions'!$D$4,'Utility Functions'!$D$5,'Utility Functions'!$D$6)","v":0.46475967153745396},{"$f":"valuePL(D29,'Utility Functions'!$E$3:$E$5,'Utility Functions'!$F$3:$F$5)","v":1},{"$f":"valuePL(E29,'Utility Functions'!$G$3:$G$5,'Utility Functions'!$H$3:$H$5)","v":0},{"$f":"valuePL(F29,'Utility Functions'!$I$3:$I$4,'Utility Functions'!$J$3:$J$5)","v":1},{"$f":"valueE(G29,'Utility Functions'!$L$3,'Utility Functions'!$L$4,'Utility Functions'!$L$5,'Utility Functions'!$L$6)","v":0},{"$f":"valueE(H29,'Utility Functions'!$N$3,'Utility Functions'!$N$4,'Utility Functions'!$N$5,'Utility Functions'!$N$6)","v":0},{"$f":"valuePL(I29,'Utility Functions'!$O$3:$O$6,'Utility Functions'!$P$3:$P$6)","v":0},{"$f":"valuePL(J29,'Utility Functions'!$Q$3:$Q$6,'Utility Functions'!$R$3:$R$6)","v":0},{"$f":"valuePL(K29,'Utility Functions'!$S$3:$S$7,'Utility Functions'!$T$3:$T$7)","v":0},{"$f":"valueE(L29,'Utility Functions'!$V$3,'Utility Functions'!$V$4,'Utility Functions'!$V$5,'Utility Functions'!$V$6)","v":0.33333333333333331},{"$f":"valuePL(M29,'Utility Functions'!$W$3:$W$6,'Utility Functions'!$X$3:$X$6)","v":0.1},{"$f":"valueE(N29,'Utility Functions'!$Z$3,'Utility Functions'!$Z$4,'Utility Functions'!$Z$5,'Utility Functions'!$Z$6)","v":0},{"$f":"valuePL(O29,'Utility Functions'!$AA$3:$AA$5,'Utility Functions'!$AB$3:$AB$5)","v":0},{"$f":"valuePL(P29,'Utility Functions'!$AC$3:$AC$7,'Utility Functions'!$AD$3:$AD$7)","v":1},{"$f":"valuePL(Q29,'Utility Functions'!$AE$3:$AE$6,'Utility Functions'!$AF$3:$AF$6)","v":0},{"$f":"valuePL(R29,'Utility Functions'!$AG$3:$AG$6,'Utility Functions'!$AH$3:$AH$6)","v":1},{"$f":"valuePL(S29,'Utility Functions'!$AI$3:$AI$6,'Utility Functions'!$AJ$3:$AJ$6)","v":1},{"$f":"valuePL(T29,'Utility Functions'!$AK$3:$AK$8,'Utility Functions'!$AL$3:$AL$8)","v":0.8},{"$f":"valuePL(U29,'Utility Functions'!$AM$3:$AM$5,'Utility Functions'!$AN$3:$AN$5)","v":0},{"$f":"valuePL(V29,'Utility Functions'!$AO$3:$AO$5,'Utility Functions'!$AP$3:$AP$5)","v":1},{"$f":"valuePL(W29,'Utility Functions'!$AQ$3:$AQ$6,'Utility Functions'!$AR$3:$AR$6)","v":1},{"$f":"valuePL(X29,'Utility Functions'!$AS$3:$AS$6,'Utility Functions'!$AT$3:$AT$6)","v":1},{"$f":"valuePL(Y29,'Utility Functions'!$AU$3:$AU$6,'Utility Functions'!$AV$3:$AV$6)","v":0.2},{"$f":"valuePL(Z29,'Utility Functions'!$AW$3:$AW$5,'Utility Functions'!$AX$3:$AX$5)","v":0},{"$f":"valuePL(AA29,'Utility Functions'!$AY$3:$AY$6,'Utility Functions'!$AZ$3:$AZ$6)","v":0.89999999999999991},{"$f":"valuePL(AB29,'Utility Functions'!$BA$3:$BA$5,'Utility Functions'!$BB$3:$BB$5)","v":1},{"$f":"valuePL(AC29,'Utility Functions'!$BC$3:$BC$5,'Utility Functions'!$BD$3:$BD$5)","v":0.25},12.499282052393189,null,12.499282052393189,2.9159487190598563,0.43333333333333335,0,3.8,5.35]
[29,{"$f":"valueE(B30,'Utility Functions'!$B$3,'Utility Functions'!$B$4,'Utility Functions'!$B$5,'Utility Functions'!$B$6)","v":0.83470237647280454},{"$f":"valueE(C30,'Utility Functions'!$D$3,'Utility Functions'!$D$4,'Utility Functions'!$D$5,'Utility Functions'!$D$6)","v":0.71352759724260828},{"$f":"valuePL(D30,'Utility Functions'!$E$3:$E$5,'Utility Functions'!$F$3:$F$5)","v":1},{"$f":"valuePL(E30,'Utility Functions'!$G$3:$G$5,'Utility Functions'!$H$3:$H$5)","v":0.5},{"$f":"valuePL(F30,'Utility Functions'!$I$3:$I$4,'Utility Functions'!$J$3:$J$5)","v":0},{"$f":"valueE(G30,'Utility Functions'!$L$3,'Utility Functions'!$L$4,'Utility Functions'!$L$5,'Utility Functions'!$L$6)","v":0},{"$f":"valueE(H30,'Utility Functions'!$N$3,'Utility Functions'!$N$4,'Utility Functions'!$N$5,'Utility Functions'!$N$6)","v":0},{"$f":"valuePL(I30,'Utility Functions'!$O$3:$O$6,'Utility Functions'!$P$3:$P$6)","v":0.06},{"$f":"valuePL(J30,'Utility Functions'!$Q$3:$Q$6,'Utility Functions'!$R$3:$R$6)","v":0.67272727272727273},{"$f":"valuePL(K30,'Utility Functions'!$S$3:$S$7,'Utility Functions'!$T$3:$T$7)","v":0},{"$f":"valueE(L30,'Utility Functions'!$V$3,'Utility Functions'!$V$4,'Utility Functions'!$V$5,'Utility Functions'!$V$6)","v":1},{"$f":"valuePL(M30,'Utility Functions'!$W$3:$W$6,'Utility Functions'!$X$3:$X$6)","v":0.67272727272727273},{"$f":"valueE(N30,'Utility Functions'!$Z$3,'Utility Functions'!$Z$4,'Utility Functions'!$Z$5,'Utility Functions'!$Z$6)","v":0},{"$f":"valuePL(O30,'Utility Functions'!$AA$3:$AA$5,'Utility Functions'!$AB$3:$AB$5)","v":0},{"$f":"valuePL(P30,'Utility Functions'!$AC$3:$AC$7,'Utility Functions'!$AD$3:$AD$7)","v":0.25},{"$f":"valuePL(Q30,'Utility Functions'!$AE$3:$AE$6,'Utility Functions'!$AF$3:$AF$6)","v":0},{"$f":"valuePL(R30,'Utility Functions'!$AG$3:$AG$6,'Utility Functions'!$AH$3:$AH$6)","v":1},{"$f":"valuePL(S30,'Utility Functions'!$AI$3:$AI$6,'Utility Functions'!$AJ$3:$AJ$6)","v":1},{"$f":"valuePL(T30,'Utility Functions'!$AK$3:$AK$8,'Utility Functions'!$AL$3:$AL$8)","v":0.8},{"$f":"valuePL(U30,'Utility Functions'!$AM$3:$AM$5,'Utility Functions'!$AN$3:$AN$5)","v":0},{"$f":"valuePL(V30,'Utility Functions'!$AO$3:$AO$5,'Utility Functions'!$AP$3:$AP$5)","v":1},{"$f":"valuePL(W30,'Utility Functions'!$AQ$3:$AQ$6,'Utility Functions'!$AR$3:$AR$6)","v":0.2},{"$f":"valuePL(X30,'Utility Functions'!$AS$3:$AS$6,'Utility Functions'!$AT$3:$AT$6)","v":0},{"$f":"valuePL(Y30,'Utility Functions'!$AU$3:$AU$6,'Utility Functions'!$AV$3:$AV$6)","v":0.8},{"$f":"valuePL(Z30,'Utility Functions'!$AW$3:$AW$5,'Utility Functions'!$AX$3:$AX$5)","v":0.5},{"$f":"valuePL(AA30,'Utility Functions'!$AY$3:$AY$6,'Utility Functions'!$AZ$3:$AZ$6)","v":0.2},{"$f":"valuePL(AB30,'Utility Functions'!$BA$3:$BA$5,'Utility Functions'!$BB$3:$BB$5)","v":0.25},{"$f":"valuePL(AC30,'Utility Functions'!$BC$3:$BC$5,'Utility Functions'!$BD$3:$BD$5)","v":1},12.453684519169958,null,12.453684519169958,3.0482299737154128,2.4054545454545453,0,3.05,3.95]
[30,{"$f":"valueE(B31,'Utility Functions'!$B$3,'Utility Functions'!$B$4,'Utility Functions'!$B$5,'Utility Functions'!$B$6)","v":0.99864114504770318},{"$f":"valueE(C31,'Utility Functions'!$D$3,'Utility Functions'!$D$4,'Utility Functions'!$D$5,'Utility Functions'!$D$6)","v":0.84744836833951609},{"$f":"valuePL(D31,'Utility Functions'!$E$3:$E$5,'Utility Functions'!$F$3:$F$5)","v":1},{"$f":"valuePL(E31,'Utility Functions'!$G$3:$G$5,'Utility Functions'!$H$3:$H$5)","v":0},{"$f":"valuePL(F31,'Utility Functions'!$I$3:$I$4,'Utility Functions'!$J$3:$J$5)","v":0},{"$f":"valueE(G31,'Utility Functions'!$L$3,'Utility Functions'!$L$4,'Utility Functions'!$L$5,'Utility Functions'!$L$6)","v":0},{"$f":"valueE(H31,'Utility Functions'!$N$3,'Utility Functions'!$N$4,'Utility Functions'!$N$5,'Utility Functions'!$N$6)","v":0},{"$f":"valuePL(I31,'Utility Functions'!$O$3:$O$6,'Utility Functions'!$P$3:$P$6)","v":0},{"$f":"valuePL(J31,'Utility Functions'!$Q$3:$Q$6,'Utility Functions'!$R$3:$R$6)","v":0},{"$f":"valuePL(K31,'Utility Functions'!$S$3:$S$7,'Utility Functions'!$T$3:$T$7)","v":0},{"$f":"valueE(L31,'Utility Functions'!$V$3,'Utility Functions'!$V$4,'Utility Functions'!$V$5,'Utility Functions'!$V$6)","v":0.33333333333333331},{"$f":"valuePL(M31,'Utility Functions'!$W$3:$W$6,'Utility Functions'!$X$3:$X$6)","v":0.04},{"$f":"valueE(N31,'Utility Functions'!$Z$3,'Utility Functions'!$Z$4,'Utility Functions'!$Z$5,'Utility Functions'!$Z$6)","v":0},{"$f":"valuePL(O31,'Utility Functions'!$AA$3:$AA$5,'Utility Functions'!$AB$3:$AB$5)","v":0},{"$f":"valuePL(P31,'Utility Functions'!$AC$3:$AC$7,'Utility Functions'!$AD$3:$AD$7)","v":0},{"$f":"valuePL(Q31,'Utility Functions'!$AE$3:$AE$6,'Utility Functions'!$AF$3:$AF$6)","v":0},{"$f":"valuePL(R31,'Utility Functions'!$AG$3:$AG$6,'Utility Functions'!$AH$3:$AH$6)","v":0.2},{"$f":"valuePL(S31,'Utility Functions'!$AI$3:$AI$6,'Utility Functions'!$AJ$3:$AJ$6)","v":0.33},{"$f":"valuePL(T31,'Utility Functions'!$AK$3:$AK$8,'Utility Functions'!$AL$3:$AL$8)","v":0},{"$f":"valuePL(U31,'Utility Functions'!$AM$3:$AM$5,'Utility Functions'!$AN$3:$AN$5)","v":0},{"$f":"valuePL(V31,'Utility Functions'!$AO$3:$AO$5,'Utility Functions'!$AP$3:$AP$5)","v":0},{"$f":"valuePL(W31,'Utility Functions'!$AQ$3:$AQ$6,'Utility Functions'!$AR$3:$AR$6)","v":1},{"$f":"valuePL(X31,'Utility Functions'!$AS$3:$AS$6,'Utility Functions'!$AT$3:$AT$6)","v":0.2},{"$f":"valuePL(Y31,'Utility Functions'!$AU$3:$AU$6,'Utility Functions'!$AV$3:$AV$6)","v":0.8},{"$f":"valuePL(Z31,'Utility Functions'!$AW$3:$AW$5,'Utility Functions'!$AX$3:$AX$5)","v":0},{"$f":"valuePL(AA31,'Utility Functions'!$AY$3:$AY$6,'Utility Functions'!$AZ$3:$AZ$6)","v":0.89999999999999991},{"$f":"valuePL(AB31,'Utility Functions'!$BA$3:$BA$5,'Utility Functions'!$BB$3:$BB$5)","v":1},{"$f":"valuePL(AC31,'Utility Functions'!$BC$3:$BC$5,'Utility Functions'!$BD$3:$BD$5)","v":0},7.6494228467205527,null,7.6494228467205527,2.846089513387219,0.37333333333333329,0,0.53,3.9]
[31,{"$f":"valueE(B32,'Utility Functions'!$B$3,'Utility Functions'!$B$4,'Utility Functions'!$B$5,'Utility Functions'!$B$6)","v":0.55067187023002029},{"$f":"valueE(C32,'Utility Functions'!$D$3,'Utility Functions'!$D$4,'Utility Functions'!$D$5,'Utility Functions'!$D$6)","v":0.84744836833951609},{"$f":"valuePL(D32,'Utility Functions'!$E$3:$E$5,'Utility Functions'!$F$3:$F$5)","v":0.5},{"$f":"valuePL(E32,'Utility Functions'!$G$3:$G$5,'Utility Functions'!$H$3:$H$5)","v":0},{"$f":"valuePL(F32,'Utility Functions'!$I$3:$I$4,'Utility Functions'!$J$3:$J$5)","v":0},{"$f":"valueE(G32,'Utility Functions'!$L$3,'Utility Functions'!$L$4,'Utility Functions'!$L$5,'Utility Functions'!$L$6)","v":0},{"$f":"valueE(H32,'Utility Functions'!$N$3,'Utility Functions'!$N$4,'Utility Functions'!$N$5,'Utility Functions'!$N$6)","v":0},{"$f":"valuePL(I32,'Utility Functions'!$O$3:$O$6,'Utility Functions'!$P$3:$P$6)","v":0.75454545454545452},{"$f":"valuePL(J32,'Utility Functions'!$Q$3:$Q$6,'Utility Functions'!$R$3:$R$6)","v":0.08},{"$f":"valuePL(K32,'Utility Functions'!$S$3:$S$7,'Utility Functions'!$T$3:$T$7)","v":0},{"$f":"valueE(L32,'Utility Functions'!$V$3,'Utility Functions'!$V$4,'Utility Functions'!$V$5,'Utility Functions'!$V$6)","v":0.33333333333333331},{"$f":"valuePL(M32,'Utility Functions'!$W$3:$W$6,'Utility Functions'!$X$3:$X$6)","v":0.08},{"$f":"valueE(N32,'Utility Functions'!$Z$3,'Utility Functions'!$Z$4,'Utility Functions'!$Z$5,'Utility Functions'!$Z$6)","v":0},{"$f":"valuePL(O32,'Utility Functions'!$AA$3:$AA$5,'Utility Functions'!$AB$3:$AB$5)","v":0},{"$f":"valuePL(P32,'Utility Functions'!$AC$3:$AC$7,'Utility Functions'!$AD$3:$AD$7)","v":0.5},{"$f":"valuePL(Q32,'Utility Functions'!$AE$3:$AE$6,'Utility Functions'!$AF$3:$AF$6)","v":0},{"$f":"valuePL(R32,'Utility Functions'!$AG$3:$AG$6,'Utility Functions'!$AH$3:$AH$6)","v":1},{"$f":"valuePL(S32,'Utility Functions'!$AI$3:$AI$6,'Utility Functions'!$AJ$3:$AJ$6)","v":0.66},{"$f":"valuePL(T32,'Utility Functions'!$AK$3:$AK$8,'Utility Functions'!$AL$3:$AL$8)","v":0.6},{"$f":"valuePL(U32,'Utility Functions'!$AM$3:$AM$5,'Utility Functions'!$AN$3:$AN$5)","v":0},{"$f":"valuePL(V32,'Utility Functions'!$AO$3:$AO$5,'Utility Functions'!$AP$3:$AP$5)","v":0.5},{"$f":"valuePL(W32,'Utility Functions'!$AQ$3:$AQ$6,'Utility Functions'!$AR$3:$AR$6)","v":0},{"$f":"valuePL(X32,'Utility Functions'!$AS$3:$AS$6,'Utility Functions'!$AT$3:$AT$6)","v":0.2},{"$f":"valuePL(Y32,'Utility Functions'!$AU$3:$AU$6,'Utility Functions'!$AV$3:$AV$6)","v":0.2},{"$f":"valuePL(Z32,'Utility Functions'!$AW$3:$AW$5,'Utility Functions'!$AX$3:$AX$5)","v":1},{"$f":"valuePL(AA32,'Utility Functions'!$AY$3:$AY$6,'Utility Functions'!$AZ$3:$AZ$6)","v":0.89999999999999991},{"$f":"valuePL(AB32,'Utility Functions'!$BA$3:$BA$5,'Utility Functions'!$BB$3:$BB$5)","v":0.25},{"$f":"valuePL(AC32,'Utility Functions'!$BC$3:$BC$5,'Utility Functions'!$BD$3:$BD$5)","v":0.25},9.2059990264483247,null,9.2059990264483247,1.8981202385695364,1.2478787878787878,0,2.7600000000000002,3.3]
[32,{"$f":"valueE(B33,'Utility Functions'!$B$3,'Utility Functions'!$B$4,'Utility Functions'!$B$5,'Utility Functions'!$B$6)","v":0.63212151658375171},{"$f":"valueE(C33,'Utility Functions'!$D$3,'Utility Functions'!$D$4,'Utility Functions'!$D$5,'Utility Functions'!$D$6)","v":0.26839655623815994},{"$f":"valuePL(D33,'Utility Functions'!$E$3:$E$5,'Utility Functions'!$F$3:$F$5)","v":1},{"$f":"valuePL(E33,'Utility Functions'!$G$3:$G$5,'Utility Functions'!$H$3:$H$5)","v":1},{"$f":"valuePL(F33,'Utility Functions'!$I$3:$I$4,'Utility Functions'!$J$3:$J$5)","v":1},{"$f":"valueE(G33,'Utility Functions'!$L$3,'Utility Functions'!$L$4,'Utility Functions'!$L$5,'Utility Functions'!$L$6)","v":3.2258064516129031E-2},{"$f":"valueE(H33,'Utility Functions'!$N$3,'Utility Functions'!$N$4,'Utility Functions'!$N$5,'Utility Functions'!$N$6)","v":9.6774193548387094E-2},{"$f":"valuePL(I33,'Utility Functions'!$O$3:$O$6,'Utility Functions'!$P$3:$P$6)","v":0.34545454545454546},{"$f":"valuePL(J33,'Utility Functions'!$Q$3:$Q$6,'Utility Functions'!$R$3:$R$6)","v":1},{"$f":"valuePL(K33,'Utility Functions'!$S$3:$S$7,'Utility Functions'!$T$3:$T$7)","v":0.34545454545454546},{"$f":"valueE(L33,'Utility Functions'!$V$3,'Utility Functions'!$V$4,'Utility Functions'!$V$5,'Utility Functions'!$V$6)","v":1},{"$f":"valuePL(M33,'Utility Functions'!$W$3:$W$6,'Utility Functions'!$X$3:$X$6)","v":1},{"$f":"valueE(N33,'Utility Functions'!$Z$3,'Utility Functions'!$Z$4,'Utility Functions'!$Z$5,'Utility Functions'!$Z$6)","v":0},{"$f":"valuePL(O33,'Utility Functions'!$AA$3:$AA$5,'Utility Functions'!$AB$3:$AB$5)","v":0},{"$f":"valuePL(P33,'Utility Functions'!$AC$3:$AC$7,'Utility Functions'!$AD$3:$AD$7)","v":0.5},{"$f":"valuePL(Q33,'Utility Functions'!$AE$3:$AE$6,'Utility Functions'!$AF$3:$AF$6)","v":1},{"$f":"valuePL(R33,'Utility Functions'!$AG$3:$AG$6,'Utility Functions'!$AH$3:$AH$6)","v":1},{"$f":"valuePL(S33,'Utility Functions'!$AI$3:$AI$6,'Utility Functions'!$AJ$3:$AJ$6)","v":0},{"$f":"valuePL(T33,'Utility Functions'!$AK$3:$AK$8,'Utility Functions'!$AL$3:$AL$8)","v":0.8},{"$f":"valuePL(U33,'Utility Functions'!$AM$3:$AM$5,'Utility Functions'!$AN$3:$AN$5)","v":0},{"$f":"valuePL(V33,'Utility Functions'!$AO$3:$AO$5,'Utility Functions'!$AP$3:$AP$5)","v":0},{"$f":"valuePL(W33,'Utility Functions'!$AQ$3:$AQ$6,'Utility Functions'!$AR$3:$AR$6)","v":0.75},{"$f":"valuePL(X33,'Utility Functions'!$AS$3:$AS$6,'Utility Functions'!$AT$3:$AT$6)","v":0.2},{"$f":"valuePL(Y33,'Utility Functions'!$AU$3:$AU$6,'Utility Functions'!$AV$3:$AV$6)","v":0.8},{"$f":"valuePL(Z33,'Utility Functions'!$AW$3:$AW$5,'Utility Functions'!$AX$3:$AX$5)","v":0.5},{"$f":"valuePL(AA33,'Utility Functions'!$AY$3:$AY$6,'Utility Functions'!$AZ$3:$AZ$6)","v":0},{"$f":"valuePL(AB33,'Utility Functions'!$BA$3:$BA$5,'Utility Functions'!$BB$3:$BB$5)","v":1},{"$f":"valuePL(AC33,'Utility Functions'!$BC$3:$BC$5,'Utility Functions'!$BD$3:$BD$5)","v":0.25},14.52045942179552,null,14.520459421795518,3.9005180728219115,3.8199413489736074,0,3.3,3.5]
[33,{"$f":"valueE(B34,'Utility Functions'!$B$3,'Utility Functions'!$B$4,'Utility Functions'!$B$5,'Utility Functions'!$B$6)","v":0.93919136038504192},{"$f":"valueE(C34,'Utility Functions'!$D$3,'Utility Functions'!$D$4,'Utility Functions'!$D$5,'Utility Functions'!$D$6)","v":0.84744836833951609},{"$f":"valuePL(D34,'Utility Functions'!$E$3:$E$5,'Utility Functions'!$F$3:$F$5)","v":1},{"$f":"valuePL(E34,'Utility Functions'!$G$3:$G$5,'Utility Functions'!$H$3:$H$5)","v":0.5},{"$f":"valuePL(F34,'Utility Functions'!$I$3:$I$4,'Utility Functions'!$J$3:$J$5)","v":0},{"$f":"valueE(G34,'Utility Functions'!$L$3,'Utility Functions'!$L$4,'Utility Functions'!$L$5,'Utility Functions'!$L$6)","v":0},{"$f":"valueE(H34,'Utility Functions'!$N$3,'Utility Functions'!$N$4,'Utility Functions'!$N$5,'Utility Functions'!$N$6)","v":0},{"$f":"valuePL(I34,'Utility Functions'!$O$3:$O$6,'Utility Functions'!$P$3:$P$6)","v":0},{"$f":"valuePL(J34,'Utility Functions'!$Q$3:$Q$6,'Utility Functions'!$R$3:$R$6)","v":0},{"$f":"valuePL(K34,'Utility Functions'!$S$3:$S$7,'Utility Functions'!$T$3:$T$7)","v":0},{"$f":"valueE(L34,'Utility Functions'!$V$3,'Utility Functions'!$V$4,'Utility Functions'!$V$5,'Utility Functions'!$V$6)","v":0.5},{"$f":"valuePL(M34,'Utility Functions'!$W$3:$W$6,'Utility Functions'!$X$3:$X$6)","v":0},{"$f":"valueE(N34,'Utility Functions'!$Z$3,'Utility Functions'!$Z$4,'Utility Functions'!$Z$5,'Utility Functions'!$Z$6)","v":0},{"$f":"valuePL(O34,'Utility Functions'!$AA$3:$AA$5,'Utility Functions'!$AB$3:$AB$5)","v":0},{"$f":"valuePL(P34,'Utility Functions'!$AC$3:$AC$7,'Utility Functions'!$AD$3:$AD$7)","v":0.5},{"$f":"valuePL(Q34,'Utility Functions'!$AE$3:$AE$6,'Utility Functions'!$AF$3:$AF$6)","v":0},{"$f":"valuePL(R34,'Utility Functions'!$AG$3:$AG$6,'Utility Functions'!$AH$3:$AH$6)","v":1},{"$f":"valuePL(S34,'Utility Functions'!$AI$3:$AI$6,'Utility Functions'!$AJ$3:$AJ$6)","v":0.66},{"$f":"valuePL(T34,'Utility Functions'!$AK$3:$AK$8,'Utility Functions'!$AL$3:$AL$8)","v":0},{"$f":"valuePL(U34,'Utility Functions'!$AM$3:$AM$5,'Utility Functions'!$AN$3:$AN$5)","v":0},{"$f":"valuePL(V34,'Utility Functions'!$AO$3:$AO$5,'Utility Functions'!$AP$3:$AP$5)","v":0.5},{"$f":"valuePL(W34,'Utility Functions'!$AQ$3:$AQ$6,'Utility Functions'!$AR$3:$AR$6)","v":1},{"$f":"valuePL(X34,'Utility Functions'!$AS$3:$AS$6,'Utility Functions'!$AT$3:$AT$6)","v":0},{"$f":"valuePL(Y34,'Utility Functions'!$AU$3:$AU$6,'Utility Functions'!$AV$3:$AV$6)","v":0.8},{"$f":"valuePL(Z34,'Utility Functions'!$AW$3:$AW$5,'Utility Functions'!$AX$3:$AX$5)","v":1},{"$f":"valuePL(AA34,'Utility Functions'!$AY$3:$AY$6,'Utility Functions'!$AZ$3:$AZ$6)","v":1},{"$f":"valuePL(AB34,'Utility Functions'!$BA$3:$BA$5,'Utility Functions'!$BB$3:$BB$5)","v":0},{"$f":"valuePL(AC34,'Utility Functions'!$BC$3:$BC$5,'Utility Functions'!$BD$3:$BD$5)","v":0},10.246639728724558,null,10.246639728724558,3.2866397287245581,0.5,0,2.16,4.3]
[34,{"$f":"valueE(B35,'Utility Functions'!$B$3,'Utility Functions'!$B$4,'Utility Functions'!$B$5,'Utility Functions'!$B$6)","v":0},{"$f":"valueE(C35,'Utility Functions'!$D$3,'Utility Functions'!$D$4,'Utility Functions'!$D$5,'Utility Functions'!$D$6)","v":0},{"$f":"valuePL(D35,'Utility Functions'!$E$3:$E$5,'Utility Functions'!$F$3:$F$5)","v":0},{"$f":"valuePL(E35,'Utility Functions'!$G$3:$G$5,'Utility Functions'!$H$3:$H$5)","v":0},{"$f":"valuePL(F35,'Utility Functions'!$I$3:$I$4,'Utility Functions'!$J$3:$J$5)","v":0},{"$f":"valueE(G35,'Utility Functions'!$L$3,'Utility Functions'!$L$4,'Utility Functions'!$L$5,'Utility Functions'!$L$6)","v":0},{"$f":"valueE(H35,'Utility Functions'!$N$3,'Utility Functions'!$N$4,'Utility Functions'!$N$5,'Utility Functions'!$N$6)","v":1.1385199240986717E-2},{"$f":"valuePL(I35,'Utility Functions'!$O$3:$O$6,'Utility Functions'!$P$3:$P$6)","v":1},{"$f":"valuePL(J35,'Utility Functions'!$Q$3:$Q$6,'Utility Functions'!$R$3:$R$6)","v":0.91818181818181821},{"$f":"valuePL(K35,'Utility Functions'!$S$3:$S$7,'Utility Functions'!$T$3:$T$7)","v":1},{"$f":"valueE(L35,'Utility Functions'!$V$3,'Utility Functions'!$V$4,'Utility Functions'!$V$5,'Utility Functions'!$V$6)","v":1},{"$f":"valuePL(M35,'Utility Functions'!$W$3:$W$6,'Utility Functions'!$X$3:$X$6)","v":0.91818181818181821},{"$f":"valueE(N35,'Utility Functions'!$Z$3,'Utility Functions'!$Z$4,'Utility Functions'!$Z$5,'Utility Functions'!$Z$6)","v":0},{"$f":"valuePL(O35,'Utility Functions'!$AA$3:$AA$5,'Utility Functions'!$AB$3:$AB$5)","v":0},{"$f":"valuePL(P35,'Utility Functions'!$AC$3:$AC$7,'Utility Functions'!$AD$3:$AD$7)","v":0.5},{"$f":"valuePL(Q35,'Utility Functions'!$AE$3:$AE$6,'Utility Functions'!$AF$3:$AF$6)","v":0},{"$f":"valuePL(R35,'Utility Functions'!$AG$3:$AG$6,'Utility Functions'!$AH$3:$AH$6)","v":1},{"$f":"valuePL(S35,'Utility Functions'!$AI$3:$AI$6,'Utility Functions'!$AJ$3:$AJ$6)","v":1},{"$f":"valuePL(T35,'Utility Functions'!$AK$3:$AK$8,'Utility Functions'!$AL$3:$AL$8)","v":0.8},{"$f":"valuePL(U35,'Utility Functions'!$AM$3:$AM$5,'Utility Functions'!$AN$3:$AN$5)","v":0},{"$f":"valuePL(V35,'Utility Functions'!$AO$3:$AO$5,'Utility Functions'!$AP$3:$AP$5)","v":1},{"$f":"valuePL(W35,'Utility Functions'!$AQ$3:$AQ$6,'Utility Functions'!$AR$3:$AR$6)","v":1},{"$f":"valuePL(X35,'Utility Functions'!$AS$3:$AS$6,'Utility Functions'!$AT$3:$AT$6)","v":1},{"$f":"valuePL(Y35,'Utility Functions'!$AU$3:$AU$6,'Utility Functions'!$AV$3:$AV$6)","v":0},{"$f":"valuePL(Z35,'Utility Functions'!$AW$3:$AW$5,'Utility Functions'!$AX$3:$AX$5)","v":1},{"$f":"valuePL(AA35,'Utility Functions'!$AY$3:$AY$6,'Utility Functions'!$AZ$3:$AZ$6)","v":0.89999999999999991},{"$f":"valuePL(AB35,'Utility Functions'!$BA$3:$BA$5,'Utility Functions'!$BB$3:$BB$5)","v":0.25},{"$f":"valuePL(AC35,'Utility Functions'!$BC$3:$BC$5,'Utility Functions'!$BD$3:$BD$5)","v":0},13.297748835604624,null,13.297748835604624,0,4.847748835604623,0,3.3,5.15]
[35,{"$f":"valueE(B36,'Utility Functions'!$B$3,'Utility Functions'!$B$4,'Utility Functions'!$B$5,'Utility Functions'!$B$6)","v":0.79810469124896843},{"$f":"valueE(C36,'Utility Functions'!$D$3,'Utility Functions'!$D$4,'Utility Functions'!$D$5,'Utility Functions'!$D$6)","v":0.60939983135101949},{"$f":"valuePL(D36,'Utility Functions'!$E$3:$E$5,'Utility Functions'!$F$3:$F$5)","v":0.5},{"$f":"valuePL(E36,'Utility Functions'!$G$3:$G$5,'Utility Functions'!$H$3:$H$5)","v":0.5},{"$f":"valuePL(F36,'Utility Functions'!$I$3:$I$4,'Utility Functions'!$J$3:$J$5)","v":1},{"$f":"valueE(G36,'Utility Functions'!$L$3,'Utility Functions'!$L$4,'Utility Functions'!$L$5,'Utility Functions'!$L$6)","v":0},{"$f":"valueE(H36,'Utility Functions'!$N$3,'Utility Functions'!$N$4,'Utility Functions'!$N$5,'Utility Functions'!$N$6)","v":0},{"$f":"valuePL(I36,'Utility Functions'!$O$3:$O$6,'Utility Functions'!$P$3:$P$6)","v":0},{"$f":"valuePL(J36,'Utility Functions'!$Q$3:$Q$6,'Utility Functions'!$R$3:$R$6)","v":0},{"$f":"valuePL(K36,'Utility Functions'!$S$3:$S$7,'Utility Functions'!$T$3:$T$7)","v":1},{"$f":"valueE(L36,'Utility Functions'!$V$3,'Utility Functions'!$V$4,'Utility Functions'!$V$5,'Utility Functions'!$V$6)","v":0.66666666666666663},{"$f":"valuePL(M36,'Utility Functions'!$W$3:$W$6,'Utility Functions'!$X$3:$X$6)","v":0.1},{"$f":"valueE(N36,'Utility Functions'!$Z$3,'Utility Functions'!$Z$4,'Utility Functions'!$Z$5,'Utility Functions'!$Z$6)","v":1},{"$f":"valuePL(O36,'Utility Functions'!$AA$3:$AA$5,'Utility Functions'!$AB$3:$AB$5)","v":0},{"$f":"valuePL(P36,'Utility Functions'!$AC$3:$AC$7,'Utility Functions'!$AD$3:$AD$7)","v":0},{"$f":"valuePL(Q36,'Utility Functions'!$AE$3:$AE$6,'Utility Functions'!$AF$3:$AF$6)","v":0},{"$f":"valuePL(R36,'Utility Functions'!$AG$3:$AG$6,'Utility Functions'!$AH$3:$AH$6)","v":1},{"$f":"valuePL(S36,'Utility Functions'!$AI$3:$AI$6,'Utility Functions'!$AJ$3:$AJ$6)","v":1},{"$f":"valuePL(T36,'Utility Functions'!$AK$3:$AK$8,'Utility Functions'!$AL$3:$AL$8)","v":0.6},{"$f":"valuePL(U36,'Utility Functions'!$AM$3:$AM$5,'Utility Functions'!$AN$3:$AN$5)","v":0},{"$f":"valuePL(V36,'Utility Functions'!$AO$3:$AO$5,'Utility Functions'!$AP$3:$AP$5)","v":1},{"$f":"valuePL(W36,'Utility Functions'!$AQ$3:$AQ$6,'Utility Functions'!$AR$3:$AR$6)","v":0.75},{"$f":"valuePL(X36,'Utility Functions'!$AS$3:$AS$6,'Utility Functions'!$AT$3:$AT$6)","v":0},{"$f":"valuePL(Y36,'Utility Functions'!$AU$3:$AU$6,'Utility Functions'!$AV$3:$AV$6)","v":0.2},{"$f":"valuePL(Z36,'Utility Functions'!$AW$3:$AW$5,'Utility Functions'!$AX$3:$AX$5)","v":1},{"$f":"valuePL(AA36,'Utility Functions'!$AY$3:$AY$6,'Utility Functions'!$AZ$3:$AZ$6)","v":0},{"$f":"valuePL(AB36,'Utility Functions'!$BA$3:$BA$5,'Utility Functions'!$BB$3:$BB$5)","v":0.25},{"$f":"valuePL(AC36,'Utility Functions'!$BC$3:$BC$5,'Utility Functions'!$BD$3:$BD$5)","v":0.25},12.224171189266654,null,12.224171189266656,3.407504522599988,1.7666666666666666,1,2.6,3.45]
["Unweighted",{"$f":"SUMPRODUCT(B46:B80,$B$85:$B$119)","v":2.7372671342513},{"$f":"SUMPRODUCT(C46:C80,$B$85:$B$119)","v":2.3042965680300518},{"$f":"SUMPRODUCT(D46:D80,$B$85:$B$119)","v":1.5},2,1,3.2258064516129031E-2,0.10815939278937381,2.541818181818182,2.5090909090909088,3.541818181818182,4.166666666666667,2.6090909090909089,2.375,0.5,1.25,0,5,4.66,1.8000000000000003,1,4.5,2.95,2.2000000000000002,3,4.5,3.6999999999999997,0.5,1.5,null,null,"Unweighted",{"$f":"SUMPRODUCT(AG46:AG80,$B$85:$B$119)","v":9.5415637022813513},{"$f":"SUMPRODUCT(AH46:AH80,$B$85:$B$119)","v":15.50890230579035},2.875,13.709999999999999,22.849999999999998]
["Weighted",{"$f":"B$81*Sens_Rigor!I$5","v":6.5763657777934567E-2},{"$f":"C$81*Sens_Rigor!J$5","v":5.2334515068883654E-2},{"$f":"D$81*Sens_Rigor!K$5","v":3.4501396412144142E-2},{"$f":"E$81*Sens_Rigor!L$5","v":4.4817500568714537E-2},{"$f":"F$81*Sens_Rigor!M$5","v":2.9065432435621232E-2},{"$f":"G$81*Sens_Rigor!N$5","v":3.6278978984083946E-4},{"$f":"H$81*Sens_Rigor!O$5","v":1.2164128247604618E-3},{"$f":"I$81*Sens_Rigor!P$5","v":4.852528640027258E-2},{"$f":"J$81*Sens_Rigor!Q$5","v":4.6676637552180975E-2},{"$f":"K$81*Sens_Rigor!R$5","v":5.80505037863107E-2},{"$f":"L$81*Sens_Rigor!S$5","v":6.9996553085415233E-2},{"$f":"M$81*Sens_Rigor!T$5","v":3.309540869284637E-2},{"$f":"N$81*Sens_Rigor!U$5","v":5.3977272727272721E-2},{"$f":"O$81*Sens_Rigor!V$5","v":3.4090909090909088E-2},{"$f":"P$81*Sens_Rigor!W$5","v":3.7440757485711754E-2},{"$f":"Q$81*Sens_Rigor!X$5","v":0},{"$f":"R$81*Sens_Rigor!Y$5","v":0.18896512526524711},{"$f":"S$81*Sens_Rigor!Z$5","v":0.1542510939668244},{"$f":"T$81*Sens_Rigor!AA$5","v":4.3368164705650421E-2},{"$f":"U$81*Sens_Rigor!AB$5","v":2.3860883493927884E-2},{"$f":"V$81*Sens_Rigor!AC$5","v":0.36037302221403938},{"$f":"W$81*Sens_Rigor!AD$5","v":0.17037279705145097},{"$f":"X$81*Sens_Rigor!AE$5","v":0.13588046499948261},{"$f":"Y$81*Sens_Rigor!AF$5","v":0.23025682040126882},{"$f":"Z$81*Sens_Rigor!AG$5","v":0.29926801335631092},{"$f":"AA$81*Sens_Rigor!AH$5","v":0.19066270343977063},{"$f":"AB$81*Sens_Rigor!AI$5","v":2.7324501209722442E-2},{"$f":"AC$81*Sens_Rigor!AJ$5","v":7.6446043016960966E-2},null,null,"Weighted for SA",{"$f":"AG81*#REF!","v":{"$error":"#REF!"}},{"$f":"AH81*#REF!","v":{"$error":"#REF!"}},{"$f":"AI81*#REF!","v":{"$error":"#REF!"}},{"$f":"AJ81*#REF!","v":{"$error":"#REF!"}},{"$f":"AK81*#REF!","v":{"$error":"#REF!"}}]
[]
[null,"Decision variable","Benefit","Cost"]
[{"$f":"A2","v":1},0,{"$f":"AD46","v":17.117643866192076},{"$f":"AD2","v":700000}]
[2,0,{"$f":"AD47","v":12.641625800575998},{"$f":"AD3","v":5400000}]
[3,0,11.563541444302563,250000]
[4,0,9.2460291931089209,150000]
[5,0,9.5663279251355373,220000]
[6,0,5.9008471271383875,110000]
[7,1,15.54287399641135,1000000]
[8,0,14.227364688589191,5000000]
[9,0,11.893773577166716,25000]
[10,0,9.01,900000]
[11,1,13.174032258064516,1500000]
[12,0,9.4195802436719873,100000]
[13,0,7.5245670174228056,250000]
[14,0,10.338706637075108,500000]
[15,0,15.150477261414375,800000]
[16,0,15.119696969696969,2000000]
[17,0,10.876550515651747,500000]
[18,0,10.178462998102468,300000]
[19,0,9.3165012474871283,750000]
[20,0,15.091255033092194,1500000]
[21,0,9.5500000000000007,900000]
[22,0,9.471742567994939,750000]
[23,0,9.5321507448123199,1000000]
[24,0,9.4968811881212041,150000]
[25,0,13.870607417804099,250000]
[26,0,11.064076562960208,500000]
[27,0,9.0147596715374529,1200000]
[28,0,12.499282052393189,500000]
[29,0,12.453684519169958,2000000]
[30,0,7.6494228467205527,250000]
[31,0,9.2059990264483247,650000]
[32,0,14.52045942179552,200000]
[33,1,10.246639728724558,400000]
[34,1,13.297748835604624,900000]
[35,1,12.224171189266654,900000]
[null,{"$f":"SUM(B85:B119)","v":5},{"$f":"SUMPRODUCT(C85:C119,B85:B119)","v":64.485466008071697},{"$f":"SUMPRODUCT(B85:B119,D85:D119)","v":4700000}]
[]
[null,null,"Cost constraint",15000000]

{"sheet":"Portfolio_D_Rigor","index":26,"n_rows":122,"n_cols":37,"rows_kept":122,"cut":false,"hidden":false,"merged":[]}
["Project","manage_species","manage_spatial","manage_uncertainty","manage_currentpractices","manage_adaptivemanagement","pop_a","pop_b","pop_spatialscope","pop_temporalscope","hab_quantity","hab_quality","hab_temporal","ecoprocess_spp","ecoprocess_uncertainty","datasharing","broaderimpacts","exisitingpriorities","partners","leverage","alignment","objhyp","response","targettaxa","surveydesign","stats","datamanagement","budget","timeline","cost"]
[1,9,6.25,2,2,0,186,1054,75,5,0,2,0,0,0,4,0,2,3,0,0,2,3,3,3,2,3,2,2,700000]
[2,3,28.2,1,0,0,0,0,0,0,0,2,0,4,1,0,0,3,3,0,0,2,3,3,3,2,3,2,2,5400000]
[3,8,28.2,2,0,0,0,0,0,0,0,2,0,5,1,0,2,0,0,0,1,2,3,3,3,2,1,2,2,250000]
[4,1,6.25,2,0,0,0,0,0,0,0,2,0,4,1,0,1,3,3,4,0,1,3,3,1,0,0,2,1,150000]
[5,4,3.1,2,0,0,0,0,50,2,0,2,0,0,0,0,1,3,3,4,1,0,3,3,2,0,0,2,1,220000]
[6,10,6.2E-2,2,0,0,0,0,10,2,0,2,0,0,0,0,1,0,3,3,0,0,0,3,0,0,0,2,1,110000]
[7,52,18.8,0,2,0,0,0,85,12,85,8,12,8,1,0,0,3,3,0,0,2,0,1,3,2,2,0,2,1000000]
[8,3,18.8,2,1,1,0,0,14,14,14,8,14,0,0,0,3,1,3,0,0,2,3,3,3,2,0,1,1,5000000]
[9,9,15.6,2,1,0,70,140,0,0,0,2,0,0,0,3,0,3,2,1,0,2,3,3,1,2,1,1,2,25000]
[10,0,0,0,0,0,0,0,0,0,0,2,0,6,2,1,2,3,2,2,0,0,2,3,3,1,1,0,2,900000]
[11,0,0,0,0,0,6,102,52,15,52,8,15,3,1,1,0,3,3,2,2,2,1,3,3,1,2,0,1,1500000]
[12,2,15.6,2,1,0,0,0,0,0,0,2,0,0,0,0,1,3,3,3,0,1,1,3,1,2,1,2,0,100000]
[13,0,0,0,0,0,0,12,39,2,39,8,2,7,1,1,0,3,3,0,0,1,0,1,0,2,1,1,1,250000]
[14,6,15.6,1,1,0,0,0,0,0,0,2,0,6,1,1,0,3,3,0,0,1,1,3,3,1,2,1,1,500000]
[15,23,12.5,2,1,1,0,0,23,3,23,8,3,1,2,2,0,2,3,3,2,0,3,1,1,2,3,2,1,800000]
[16,0,0,0,0,0,0,0,100,15,100,7,15,0,0,3,0,3,3,5,0,2,2,2,1,2,3,2,2,2000000]
[17,2,15.6,2,1,1,58,290,0,0,0,8,3,0,0,0,0,3,2,0,0,2,3,1,0,1,0,2,1,500000]
[18,0,0,0,0,0,0,30,0,0,0,2,0,8,1,1,3,3,3,5,1,2,2,1,2,1,2,1,0,300000]
[19,8,3.125,1,2,0,0,0,0,0,0,2,0,8,2,0,0,2,3,0,0,1,1,3,2,0,1,0,1,750000]
[20,9,15.6,1,2,0,0,435,76,10,76,6,10,8,2,1,0,3,3,3,2,1,0,0,1,2,1,0,1,1500000]
[21,0,0,0,0,0,0,0,0,0,0,2,0,8,2,0,1,3,3,5,1,0,2,3,1,0,3,1,2,900000]
[22,0,0,0,0,0,16,64,0,0,0,2,0,1,2,4,2,2,3,5,0,1,2,1,0,2,1,2,1,750000]
[23,9,18.8,2,0,0,0,0,0,0,0,2,0,0,0,3,0,3,3,5,0,2,1,2,1,1,1,0,1,1000000]
[24,5,6.25,2,0,0,0,0,0,0,0,2,0,0,0,0,0,3,3,5,0,0,3,1,3,2,1,0,2,150000]
[25,9,18.8,2,0,0,176,308,0,0,0,2,0,8,1,2,2,3,3,0,0,2,1,3,2,1,1,2,2,250000]
[26,17,18.8,2,1,0,0,0,0,0,0,2,0,0,0,3,0,3,3,4,0,2,1,0,2,0,1,2,2,500000]
[27,0,6.25,2,0,0,0,0,0,0,80,2,5,0,0,2,2,3,3,5,0,1,2,3,1,0,0,0,0,1200000]
[28,3,6.25,2,0,1,0,0,0,0,0,4,5,0,0,4,0,3,3,4,0,2,3,3,1,0,2,2,1,500000]
[29,9,12.5,2,1,0,0,0,15,12,15,8,12,0,0,1,0,3,3,4,0,2,1,0,2,1,1,1,2,2000000]
[30,33,18.8,2,0,0,0,0,0,0,0,4,2,0,0,0,0,1,1,0,0,0,3,1,2,0,2,2,0,250000]
[31,4,18.8,1,0,0,0,0,65,4,0,4,4,0,0,2,0,3,2,3,0,1,0,1,1,2,2,1,1,650000]
[32,5,3.125,2,2,1,6,102,40,16,40,8,16,0,0,2,3,3,0,4,0,0,2,1,2,1,0,2,1,200000]
[33,14,18.8,2,1,0,0,0,0,0,0,5,0,0,0,2,0,3,2,0,0,1,3,0,2,2,3,0,0,400000]
[34,0,0,0,0,0,0,12,100,15,100,8,15,0,0,2,0,3,3,4,0,2,3,3,0,2,2,1,0,900000]
[35,8,9.4,1,1,1,0,0,0,0,100,6,5,8,0,0,0,3,3,3,0,2,2,0,1,2,0,1,1,900000]
["CV",{"$f":"_xlfn.STDEV.S(B2:B36)/AVERAGE(B2:B36)","v":1.383842854444886},{"$f":"_xlfn.STDEV.S(C2:C36)/AVERAGE(C2:C36)","v":0.84395823753626376},{"$f":"_xlfn.STDEV.S(D2:D36)/AVERAGE(D2:D36)","v":0.65948586466528381},{"$f":"_xlfn.STDEV.S(E2:E36)/AVERAGE(E2:E36)","v":1.2933654230908831},2.2305806858480666,2.9881459898804135,2.7250501152884543,1.5394659205075842,1.5790297611729722,1.6828143944790142,0.63288342730791625,1.4346340567392073,1.2744250477591585,1.2909944487358058,1.043011114951035,1.4910544805781871,0.32582327651393111,0.30721159062514791,0.8219511329380369,2.1760730956581078,0.64975875258290616,0.58618247649425104,0.61083323417736113,0.63333947951472869,0.68629571860885286,0.76505300516434493,0.69428102652373402,0.60312027652595823]
["sd",{"$f":"_xlfn.STDEV.S(B2:B36)","v":10.477667326511279}]
["mean",{"$f":"AVERAGE(B2:B36)","v":7.5714285714285712}]
[null,{"$f":"B1","v":"manage_species"},{"$f":"C1","v":"manage_spatial"},"manage_uncertainty","manage_currentpractices","manage_adaptivemanagement","pop_a","pop_b","pop_spatialscope","pop_temporalscope","hab_quantity","hab_quality","hab_temporal","ecoprocess_spp","ecoprocess_uncertainty","datasharing","broaderimpacts","exisitingpriorities","partners","leverage","alignment","objhyp","response","targettaxa","surveydesign","stats","datamanagement","budget","timeline"]
[null,"Metric 1","Metric 2","Metric 3","Metric 4","Metric 5","Metric 6a","Metric 6b","Metric 7","Metric 8","Metric 9","Metric 10","Metric 11","Metric 12","Metric 13","Metric 14","Metric 15","Metric 16","Metric 17","Metric 18","Metric 19","Metric 20","Metric 21","Metric 22","Metric 23","Metric 24","Metric 25","Metric 26","Metric 27"]
["Weights",0.03,0.03,0.03,0.03,0.04,1.4999999999999999E-2,1.4999999999999999E-2,0.03,0.02,0.02,0.02,0.02,0.03,0.09,0.04,0.04,0.05,0.05,0.03,0.03,0.05,0.04,0.04,0.05,0.05,0.04,0.04,0.03]
[]
[null,"Unweighted"]
["Project",null,null,null,null,null,null,null,null,null,null,null,null,null,null,null,null,null,null,null,null,null,null,null,null,null,null,null,null,"Unweighted total",null,"Unweighted total","management","status","ecol_proc","integration","rigor"]
[{"$f":"A2","v":1},{"$f":"valueE(B2,'Utility Functions'!$B$3,'Utility Functions'!$B$4,'Utility Functions'!$B$5,'Utility Functions'!$B$6)","v":0.83470237647280454},{"$f":"valueE(C2,'Utility Functions'!$D$3,'Utility Functions'!$D$4,'Utility Functions'!$D$5,'Utility Functions'!$D$6)","v":0.46475967153745396},{"$f":"valuePL(D2,'Utility Functions'!$E$3:$E$5,'Utility Functions'!$F$3:$F$5)","v":1},{"$f":"valuePL(E2,'Utility Functions'!$G$3:$G$5,'Utility Functions'!$H$3:$H$5)","v":1},{"$f":"valuePL(F2,'Utility Functions'!$I$3:$I$4,'Utility Functions'!$J$3:$J$5)","v":0},{"$f":"valueE(G2,'Utility Functions'!$L$3,'Utility Functions'!$L$4,'Utility Functions'!$L$5,'Utility Functions'!$L$6)","v":1},{"$f":"valueE(H2,'Utility Functions'!$N$3,'Utility Functions'!$N$4,'Utility Functions'!$N$5,'Utility Functions'!$N$6)","v":1},{"$f":"valuePL(I2,'Utility Functions'!$O$3:$O$6,'Utility Functions'!$P$3:$P$6)","v":0.91818181818181821},{"$f":"valuePL(J2,'Utility Functions'!$Q$3:$Q$6,'Utility Functions'!$R$3:$R$6)","v":0.1},{"$f":"valuePL(K2,'Utility Functions'!$S$3:$S$7,'Utility Functions'!$T$3:$T$7)","v":0},{"$f":"valueE(L2,'Utility Functions'!$V$3,'Utility Functions'!$V$4,'Utility Functions'!$V$5,'Utility Functions'!$V$6)","v":0},{"$f":"valuePL(M2,'Utility Functions'!$W$3:$W$6,'Utility Functions'!$X$3:$X$6)","v":0},{"$f":"valueE(N2,'Utility Functions'!$Z$3,'Utility Functions'!$Z$4,'Utility Functions'!$Z$5,'Utility Functions'!$Z$6)","v":0},{"$f":"valuePL(O2,'Utility Functions'!$AA$3:$AA$5,'Utility Functions'!$AB$3:$AB$5)","v":0},{"$f":"valuePL(P2,'Utility Functions'!$AC$3:$AC$7,'Utility Functions'!$AD$3:$AD$7)","v":1},{"$f":"valuePL(Q2,'Utility Functions'!$AE$3:$AE$6,'Utility Functions'!$AF$3:$AF$6)","v":0},{"$f":"valuePL(R2,'Utility Functions'!$AG$3:$AG$6,'Utility Functions'!$AH$3:$AH$6)","v":0.8},{"$f":"valuePL(S2,'Utility Functions'!$AI$3:$AI$6,'Utility Functions'!$AJ$3:$AJ$6)","v":1},{"$f":"valuePL(T2,'Utility Functions'!$AK$3:$AK$8,'Utility Functions'!$AL$3:$AL$8)","v":0},{"$f":"valuePL(U2,'Utility Functions'!$AM$3:$AM$5,'Utility Functions'!$AN$3:$AN$5)","v":0},{"$f":"valuePL(V2,'Utility Functions'!$AO$3:$AO$5,'Utility Functions'!$AP$3:$AP$5)","v":1},{"$f":"valuePL(W2,'Utility Functions'!$AQ$3:$AQ$6,'Utility Functions'!$AR$3:$AR$6)","v":1},{"$f":"valuePL(X2,'Utility Functions'!$AS$3:$AS$6,'Utility Functions'!$AT$3:$AT$6)","v":1},{"$f":"valuePL(Y2,'Utility Functions'!$AU$3:$AU$6,'Utility Functions'!$AV$3:$AV$6)","v":1},{"$f":"valuePL(Z2,'Utility Functions'!$AW$3:$AW$5,'Utility Functions'!$AX$3:$AX$5)","v":1},{"$f":"valuePL(AA2,'Utility Functions'!$AY$3:$AY$6,'Utility Functions'!$AZ$3:$AZ$6)","v":1},{"$f":"valuePL(AB2,'Utility Functions'!$BA$3:$BA$5,'Utility Functions'!$BB$3:$BB$5)","v":1},{"$f":"valuePL(AC2,'Utility Functions'!$BC$3:$BC$5,'Utility Functions'!$BD$3:$BD$5)","v":1},{"$f":"SUM(B46:AC46)","v":17.117643866192076},null,{"$f":"SUM(AG46:AK46)","v":17.117643866192076},{"$f":"SUM(B46:F46)","v":3.2994620480102586},{"$f":"SUM(G46:M46)","v":3.0181818181818181},{"$f":"SUM(N46:O46)","v":0},{"$f":"SUM(P46:U46)","v":2.8},{"$f":"SUM(V46:AC46)","v":8}]
[2,{"$f":"valueE(B3,'Utility Functions'!$B$3,'Utility Functions'!$B$4,'Utility Functions'!$B$5,'Utility Functions'!$B$6)","v":0.4511890475224023},{"$f":"valueE(C3,'Utility Functions'!$D$3,'Utility Functions'!$D$4,'Utility Functions'!$D$5,'Utility Functions'!$D$6)","v":0.94043675305359531},{"$f":"valuePL(D3,'Utility Functions'!$E$3:$E$5,'Utility Functions'!$F$3:$F$5)","v":0.5},{"$f":"valuePL(E3,'Utility Functions'!$G$3:$G$5,'Utility Functions'!$H$3:$H$5)","v":0},{"$f":"valuePL(F3,'Utility Functions'!$I$3:$I$4,'Utility Functions'!$J$3:$J$5)","v":0},{"$f":"valueE(G3,'Utility Functions'!$L$3,'Utility Functions'!$L$4,'Utility Functions'!$L$5,'Utility Functions'!$L$6)","v":0},{"$f":"valueE(H3,'Utility Functions'!$N$3,'Utility Functions'!$N$4,'Utility Functions'!$N$5,'Utility Functions'!$N$6)","v":0},{"$f":"valuePL(I3,'Utility Functions'!$O$3:$O$6,'Utility Functions'!$P$3:$P$6)","v":0},{"$f":"valuePL(J3,'Utility Functions'!$Q$3:$Q$6,'Utility Functions'!$R$3:$R$6)","v":0},{"$f":"valuePL(K3,'Utility Functions'!$S$3:$S$7,'Utility Functions'!$T$3:$T$7)","v":0},{"$f":"valueE(L3,'Utility Functions'!$V$3,'Utility Functions'!$V$4,'Utility Functions'!$V$5,'Utility Functions'!$V$6)","v":0},{"$f":"valuePL(M3,'Utility Functions'!$W$3:$W$6,'Utility Functions'!$X$3:$X$6)","v":0},{"$f":"valueE(N3,'Utility Functions'!$Z$3,'Utility Functions'!$Z$4,'Utility Functions'!$Z$5,'Utility Functions'!$Z$6)","v":0.5},{"$f":"valuePL(O3,'Utility Functions'!$AA$3:$AA$5,'Utility Functions'!$AB$3:$AB$5)","v":0.25},{"$f":"valuePL(P3,'Utility Functions'!$AC$3:$AC$7,'Utility Functions'!$AD$3:$AD$7)","v":0},{"$f":"valuePL(Q3,'Utility Functions'!$AE$3:$AE$6,'Utility Functions'!$AF$3:$AF$6)","v":0},{"$f":"valuePL(R3,'Utility Functions'!$AG$3:$AG$6,'Utility Functions'!$AH$3:$AH$6)","v":1},{"$f":"valuePL(S3,'Utility Functions'!$AI$3:$AI$6,'Utility Functions'!$AJ$3:$AJ$6)","v":1},{"$f":"valuePL(T3,'Utility Functions'!$AK$3:$AK$8,'Utility Functions'!$AL$3:$AL$8)","v":0},{"$f":"valuePL(U3,'Utility Functions'!$AM$3:$AM$5,'Utility Functions'!$AN$3:$AN$5)","v":0},{"$f":"valuePL(V3,'Utility Functions'!$AO$3:$AO$5,'Utility Functions'!$AP$3:$AP$5)","v":1},{"$f":"valuePL(W3,'Utility Functions'!$AQ$3:$AQ$6,'Utility Functions'!$AR$3:$AR$6)","v":1},{"$f":"valuePL(X3,'Utility Functions'!$AS$3:$AS$6,'Utility Functions'!$AT$3:$AT$6)","v":1},{"$f":"valuePL(Y3,'Utility Functions'!$AU$3:$AU$6,'Utility Functions'!$AV$3:$AV$6)","v":1},{"$f":"valuePL(Z3,'Utility Functions'!$AW$3:$AW$5,'Utility Functions'!$AX$3:$AX$5)","v":1},{"$f":"valuePL(AA3,'Utility Functions'!$AY$3:$AY$6,'Utility Functions'!$AZ$3:$AZ$6)","v":1},{"$f":"valuePL(AB3,'Utility Functions'!$BA$3:$BA$5,'Utility Functions'!$BB$3:$BB$5)","v":1},{"$f":"valuePL(AC3,'Utility Functions'!$BC$3:$BC$5,'Utility Functions'!$BD$3:$BD$5)","v":1},{"$f":"SUM(B47:AC47)","v":12.641625800575998},null,{"$f":"SUM(AG47:AK47)","v":12.641625800575998},{"$f":"SUM(B47:F47)","v":1.8916258005759976},{"$f":"SUM(G47:M47)","v":0},{"$f":"SUM(N47:O47)","v":0.75},{"$f":"SUM(P47:U47)","v":2},{"$f":"SUM(V47:AC47)","v":8}]
[3,{"$f":"valueE(B4,'Utility Functions'!$B$3,'Utility Functions'!$B$4,'Utility Functions'!$B$5,'Utility Functions'!$B$6)","v":0.79810469124896843},{"$f":"valueE(C4,'Utility Functions'!$D$3,'Utility Functions'!$D$4,'Utility Functions'!$D$5,'Utility Functions'!$D$6)","v":0.94043675305359531},{"$f":"valuePL(D4,'Utility Functions'!$E$3:$E$5,'Utility Functions'!$F$3:$F$5)","v":1},{"$f":"valuePL(E4,'Utility Functions'!$G$3:$G$5,'Utility Functions'!$H$3:$H$5)","v":0},{"$f":"valuePL(F4,'Utility Functions'!$I$3:$I$4,'Utility Functions'!$J$3:$J$5)","v":0},{"$f":"valueE(G4,'Utility Functions'!$L$3,'Utility Functions'!$L$4,'Utility Functions'!$L$5,'Utility Functions'!$L$6)","v":0},{"$f":"valueE(H4,'Utility Functions'!$N$3,'Utility Functions'!$N$4,'Utility Functions'!$N$5,'Utility Functions'!$N$6)","v":0},{"$f":"valuePL(I4,'Utility Functions'!$O$3:$O$6,'Utility Functions'!$P$3:$P$6)","v":0},{"$f":"valuePL(J4,'Utility Functions'!$Q$3:$Q$6,'Utility Functions'!$R$3:$R$6)","v":0},{"$f":"valuePL(K4,'Utility Functions'!$S$3:$S$7,'Utility Functions'!$T$3:$T$7)","v":0},{"$f":"valueE(L4,'Utility Functions'!$V$3,'Utility Functions'!$V$4,'Utility Functions'!$V$5,'Utility Functions'!$V$6)","v":0},{"$f":"valuePL(M4,'Utility Functions'!$W$3:$W$6,'Utility Functions'!$X$3:$X$6)","v":0},{"$f":"valueE(N4,'Utility Functions'!$Z$3,'Utility Functions'!$Z$4,'Utility Functions'!$Z$5,'Utility Functions'!$Z$6)","v":0.625},{"$f":"valuePL(O4,'Utility Functions'!$AA$3:$AA$5,'Utility Functions'!$AB$3:$AB$5)","v":0.25},{"$f":"valuePL(P4,'Utility Functions'!$AC$3:$AC$7,'Utility Functions'!$AD$3:$AD$7)","v":0},{"$f":"valuePL(Q4,'Utility Functions'!$AE$3:$AE$6,'Utility Functions'!$AF$3:$AF$6)","v":0.5},{"$f":"valuePL(R4,'Utility Functions'!$AG$3:$AG$6,'Utility Functions'!$AH$3:$AH$6)","v":0},{"$f":"valuePL(S4,'Utility Functions'!$AI$3:$AI$6,'Utility Functions'!$AJ$3:$AJ$6)","v":0},{"$f":"valuePL(T4,'Utility Functions'!$AK$3:$AK$8,'Utility Functions'!$AL$3:$AL$8)","v":0},{"$f":"valuePL(U4,'Utility Functions'!$AM$3:$AM$5,'Utility Functions'!$AN$3:$AN$5)","v":0.25},{"$f":"valuePL(V4,'Utility Functions'!$AO$3:$AO$5,'Utility Functions'!$AP$3:$AP$5)","v":1},{"$f":"valuePL(W4,'Utility Functions'!$AQ$3:$AQ$6,'Utility Functions'!$AR$3:$AR$6)","v":1},{"$f":"valuePL(X4,'Utility Functions'!$AS$3:$AS$6,'Utility Functions'!$AT$3:$AT$6)","v":1},{"$f":"valuePL(Y4,'Utility Functions'!$AU$3:$AU$6,'Utility Functions'!$AV$3:$AV$6)","v":1},{"$f":"valuePL(Z4,'Utility Functions'!$AW$3:$AW$5,'Utility Functions'!$AX$3:$AX$5)","v":1},{"$f":"valuePL(AA4,'Utility Functions'!$AY$3:$AY$6,'Utility Functions'!$AZ$3:$AZ$6)","v":0.2},{"$f":"valuePL(AB4,'Utility Functions'!$BA$3:$BA$5,'Utility Functions'!$BB$3:$BB$5)","v":1},{"$f":"valuePL(AC4,'Utility Functions'!$BC$3:$BC$5,'Utility Functions'!$BD$3:$BD$5)","v":1},11.563541444302563,null,11.563541444302565,2.7385414443025637,0,0.875,0.75,7.2]
[4,{"$f":"valueE(B5,'Utility Functions'!$B$3,'Utility Functions'!$B$4,'Utility Functions'!$B$5,'Utility Functions'!$B$6)","v":0.1812695215714665},{"$f":"valueE(C5,'Utility Functions'!$D$3,'Utility Functions'!$D$4,'Utility Functions'!$D$5,'Utility Functions'!$D$6)","v":0.46475967153745396},{"$f":"valuePL(D5,'Utility Functions'!$E$3:$E$5,'Utility Functions'!$F$3:$F$5)","v":1},{"$f":"valuePL(E5,'Utility Functions'!$G$3:$G$5,'Utility Functions'!$H$3:$H$5)","v":0},{"$f":"valuePL(F5,'Utility Functions'!$I$3:$I$4,'Utility Functions'!$J$3:$J$5)","v":0},{"$f":"valueE(G5,'Utility Functions'!$L$3,'Utility Functions'!$L$4,'Utility Functions'!$L$5,'Utility Functions'!$L$6)","v":0},{"$f":"valueE(H5,'Utility Functions'!$N$3,'Utility Functions'!$N$4,'Utility Functions'!$N$5,'Utility Functions'!$N$6)","v":0},{"$f":"valuePL(I5,'Utility Functions'!$O$3:$O$6,'Utility Functions'!$P$3:$P$6)","v":0},{"$f":"valuePL(J5,'Utility Functions'!$Q$3:$Q$6,'Utility Functions'!$R$3:$R$6)","v":0},{"$f":"valuePL(K5,'Utility Functions'!$S$3:$S$7,'Utility Functions'!$T$3:$T$7)","v":0},{"$f":"valueE(L5,'Utility Functions'!$V$3,'Utility Functions'!$V$4,'Utility Functions'!$V$5,'Utility Functions'!$V$6)","v":0},{"$f":"valuePL(M5,'Utility Functions'!$W$3:$W$6,'Utility Functions'!$X$3:$X$6)","v":0},{"$f":"valueE(N5,'Utility Functions'!$Z$3,'Utility Functions'!$Z$4,'Utility Functions'!$Z$5,'Utility Functions'!$Z$6)","v":0.5},{"$f":"valuePL(O5,'Utility Functions'!$AA$3:$AA$5,'Utility Functions'!$AB$3:$AB$5)","v":0.25},{"$f":"valuePL(P5,'Utility Functions'!$AC$3:$AC$7,'Utility Functions'!$AD$3:$AD$7)","v":0},{"$f":"valuePL(Q5,'Utility Functions'!$AE$3:$AE$6,'Utility Functions'!$AF$3:$AF$6)","v":0.1},{"$f":"valuePL(R5,'Utility Functions'!$AG$3:$AG$6,'Utility Functions'!$AH$3:$AH$6)","v":1},{"$f":"valuePL(S5,'Utility Functions'!$AI$3:$AI$6,'Utility Functions'!$AJ$3:$AJ$6)","v":1},{"$f":"valuePL(T5,'Utility Functions'!$AK$3:$AK$8,'Utility Functions'!$AL$3:$AL$8)","v":0.8},{"$f":"valuePL(U5,'Utility Functions'!$AM$3:$AM$5,'Utility Functions'!$AN$3:$AN$5)","v":0},{"$f":"valuePL(V5,'Utility Functions'!$AO$3:$AO$5,'Utility Functions'!$AP$3:$AP$5)","v":0.5},{"$f":"valuePL(W5,'Utility Functions'!$AQ$3:$AQ$6,'Utility Functions'!$AR$3:$AR$6)","v":1},{"$f":"valuePL(X5,'Utility Functions'!$AS$3:$AS$6,'Utility Functions'!$AT$3:$AT$6)","v":1},{"$f":"valuePL(Y5,'Utility Functions'!$AU$3:$AU$6,'Utility Functions'!$AV$3:$AV$6)","v":0.2},{"$f":"valuePL(Z5,'Utility Functions'!$AW$3:$AW$5,'Utility Functions'!$AX$3:$AX$5)","v":0},{"$f":"valuePL(AA5,'Utility Functions'!$AY$3:$AY$6,'Utility Functions'!$AZ$3:$AZ$6)","v":0},{"$f":"valuePL(AB5,'Utility Functions'!$BA$3:$BA$5,'Utility Functions'!$BB$3:$BB$5)","v":1},{"$f":"valuePL(AC5,'Utility Functions'!$BC$3:$BC$5,'Utility Functions'!$BD$3:$BD$5)","v":0.25},9.2460291931089209,null,9.2460291931089209,1.6460291931089204,0,0.75,2.9000000000000004,3.95]
[5,{"$f":"valueE(B6,'Utility Functions'!$B$3,'Utility Functions'!$B$4,'Utility Functions'!$B$5,'Utility Functions'!$B$6)","v":0.55067187023002029},{"$f":"valueE(C6,'Utility Functions'!$D$3,'Utility Functions'!$D$4,'Utility Functions'!$D$5,'Utility Functions'!$D$6)","v":0.26656514581460788},{"$f":"valuePL(D6,'Utility Functions'!$E$3:$E$5,'Utility Functions'!$F$3:$F$5)","v":1},{"$f":"valuePL(E6,'Utility Functions'!$G$3:$G$5,'Utility Functions'!$H$3:$H$5)","v":0},{"$f":"valuePL(F6,'Utility Functions'!$I$3:$I$4,'Utility Functions'!$J$3:$J$5)","v":0},{"$f":"valueE(G6,'Utility Functions'!$L$3,'Utility Functions'!$L$4,'Utility Functions'!$L$5,'Utility Functions'!$L$6)","v":0},{"$f":"valueE(H6,'Utility Functions'!$N$3,'Utility Functions'!$N$4,'Utility Functions'!$N$5,'Utility Functions'!$N$6)","v":0},{"$f":"valuePL(I6,'Utility Functions'!$O$3:$O$6,'Utility Functions'!$P$3:$P$6)","v":0.50909090909090915},{"$f":"valuePL(J6,'Utility Functions'!$Q$3:$Q$6,'Utility Functions'!$R$3:$R$6)","v":0.04},{"$f":"valuePL(K6,'Utility Functions'!$S$3:$S$7,'Utility Functions'!$T$3:$T$7)","v":0},{"$f":"valueE(L6,'Utility Functions'!$V$3,'Utility Functions'!$V$4,'Utility Functions'!$V$5,'Utility Functions'!$V$6)","v":0},{"$f":"valuePL(M6,'Utility Functions'!$W$3:$W$6,'Utility Functions'!$X$3:$X$6)","v":0},{"$f":"valueE(N6,'Utility Functions'!$Z$3,'Utility Functions'!$Z$4,'Utility Functions'!$Z$5,'Utility Functions'!$Z$6)","v":0},{"$f":"valuePL(O6,'Utility Functions'!$AA$3:$AA$5,'Utility Functions'!$AB$3:$AB$5)","v":0},{"$f":"valuePL(P6,'Utility Functions'!$AC$3:$AC$7,'Utility Functions'!$AD$3:$AD$7)","v":0},{"$f":"valuePL(Q6,'Utility Functions'!$AE$3:$AE$6,'Utility Functions'!$AF$3:$AF$6)","v":0.1},{"$f":"valuePL(R6,'Utility Functions'!$AG$3:$AG$6,'Utility Functions'!$AH$3:$AH$6)","v":1},{"$f":"valuePL(S6,'Utility Functions'!$AI$3:$AI$6,'Utility Functions'!$AJ$3:$AJ$6)","v":1},{"$f":"valuePL(T6,'Utility Functions'!$AK$3:$AK$8,'Utility Functions'!$AL$3:$AL$8)","v":0.8},{"$f":"valuePL(U6,'Utility Functions'!$AM$3:$AM$5,'Utility Functions'!$AN$3:$AN$5)","v":0.25},{"$f":"valuePL(V6,'Utility Functions'!$AO$3:$AO$5,'Utility Functions'!$AP$3:$AP$5)","v":0},{"$f":"valuePL(W6,'Utility Functions'!$AQ$3:$AQ$6,'Utility Functions'!$AR$3:$AR$6)","v":1},{"$f":"valuePL(X6,'Utility Functions'!$AS$3:$AS$6,'Utility Functions'!$AT$3:$AT$6)","v":1},{"$f":"valuePL(Y6,'Utility Functions'!$AU$3:$AU$6,'Utility Functions'!$AV$3:$AV$6)","v":0.8},{"$f":"valuePL(Z6,'Utility Functions'!$AW$3:$AW$5,'Utility Functions'!$AX$3:$AX$5)","v":0},{"$f":"valuePL(AA6,'Utility Functions'!$AY$3:$AY$6,'Utility Functions'!$AZ$3:$AZ$6)","v":0},{"$f":"valuePL(AB6,'Utility Functions'!$BA$3:$BA$5,'Utility Functions'!$BB$3:$BB$5)","v":1},{"$f":"valuePL(AC6,'Utility Functions'!$BC$3:$BC$5,'Utility Functions'!$BD$3:$BD$5)","v":0.25},9.5663279251355373,null,9.5663279251355391,1.8172370160446283,0.54909090909090918,0,3.1500000000000004,4.05]
[6,{"$f":"valueE(B7,'Utility Functions'!$B$3,'Utility Functions'!$B$4,'Utility Functions'!$B$5,'Utility Functions'!$B$6)","v":0.86466602685702687},{"$f":"valueE(C7,'Utility Functions'!$D$3,'Utility Functions'!$D$4,'Utility Functions'!$D$5,'Utility Functions'!$D$6)","v":6.1811002813601471E-3},{"$f":"valuePL(D7,'Utility Functions'!$E$3:$E$5,'Utility Functions'!$F$3:$F$5)","v":1},{"$f":"valuePL(E7,'Utility Functions'!$G$3:$G$5,'Utility Functions'!$H$3:$H$5)","v":0},{"$f":"valuePL(F7,'Utility Functions'!$I$3:$I$4,'Utility Functions'!$J$3:$J$5)","v":0},{"$f":"valueE(G7,'Utility Functions'!$L$3,'Utility Functions'!$L$4,'Utility Functions'!$L$5,'Utility Functions'!$L$6)","v":0},{"$f":"valueE(H7,'Utility Functions'!$N$3,'Utility Functions'!$N$4,'Utility Functions'!$N$5,'Utility Functions'!$N$6)","v":0},{"$f":"valuePL(I7,'Utility Functions'!$O$3:$O$6,'Utility Functions'!$P$3:$P$6)","v":0.04},{"$f":"valuePL(J7,'Utility Functions'!$Q$3:$Q$6,'Utility Functions'!$R$3:$R$6)","v":0.04},{"$f":"valuePL(K7,'Utility Functions'!$S$3:$S$7,'Utility Functions'!$T$3:$T$7)","v":0},{"$f":"valueE(L7,'Utility Functions'!$V$3,'Utility Functions'!$V$4,'Utility Functions'!$V$5,'Utility Functions'!$V$6)","v":0},{"$f":"valuePL(M7,'Utility Functions'!$W$3:$W$6,'Utility Functions'!$X$3:$X$6)","v":0},{"$f":"valueE(N7,'Utility Functions'!$Z$3,'Utility Functions'!$Z$4,'Utility Functions'!$Z$5,'Utility Functions'!$Z$6)","v":0},{"$f":"valuePL(O7,'Utility Functions'!$AA$3:$AA$5,'Utility Functions'!$AB$3:$AB$5)","v":0},{"$f":"valuePL(P7,'Utility Functions'!$AC$3:$AC$7,'Utility Functions'!$AD$3:$AD$7)","v":0},{"$f":"valuePL(Q7,'Utility Functions'!$AE$3:$AE$6,'Utility Functions'!$AF$3:$AF$6)","v":0.1},{"$f":"valuePL(R7,'Utility Functions'!$AG$3:$AG$6,'Utility Functions'!$AH$3:$AH$6)","v":0},{"$f":"valuePL(S7,'Utility Functions'!$AI$3:$AI$6,'Utility Functions'!$AJ$3:$AJ$6)","v":1},{"$f":"valuePL(T7,'Utility Functions'!$AK$3:$AK$8,'Utility Functions'!$AL$3:$AL$8)","v":0.6},{"$f":"valuePL(U7,'Utility Functions'!$AM$3:$AM$5,'Utility Functions'!$AN$3:$AN$5)","v":0},{"$f":"valuePL(V7,'Utility Functions'!$AO$3:$AO$5,'Utility Functions'!$AP$3:$AP$5)","v":0},{"$f":"valuePL(W7,'Utility Functions'!$AQ$3:$AQ$6,'Utility Functions'!$AR$3:$AR$6)","v":0},{"$f":"valuePL(X7,'Utility Functions'!$AS$3:$AS$6,'Utility Functions'!$AT$3:$AT$6)","v":1},{"$f":"valuePL(Y7,'Utility Functions'!$AU$3:$AU$6,'Utility Functions'!$AV$3:$AV$6)","v":0},{"$f":"valuePL(Z7,'Utility Functions'!$AW$3:$AW$5,'Utility Functions'!$AX$3:$AX$5)","v":0},{"$f":"valuePL(AA7,'Utility Functions'!$AY$3:$AY$6,'Utility Functions'!$AZ$3:$AZ$6)","v":0},{"$f":"valuePL(AB7,'Utility Functions'!$BA$3:$BA$5,'Utility Functions'!$BB$3:$BB$5)","v":1},{"$f":"valuePL(AC7,'Utility Functions'!$BC$3:$BC$5,'Utility Functions'!$BD$3:$BD$5)","v":0.25},5.9008471271383875,null,5.9008471271383875,1.8708471271383869,0.08,0,1.7000000000000002,2.25]
[7,{"$f":"valueE(B8,'Utility Functions'!$B$3,'Utility Functions'!$B$4,'Utility Functions'!$B$5,'Utility Functions'!$B$6)","v":0.99997108261728973},{"$f":"valueE(C8,'Utility Functions'!$D$3,'Utility Functions'!$D$4,'Utility Functions'!$D$5,'Utility Functions'!$D$6)","v":0.84744836833951609},{"$f":"valuePL(D8,'Utility Functions'!$E$3:$E$5,'Utility Functions'!$F$3:$F$5)","v":0},{"$f":"valuePL(E8,'Utility Functions'!$G$3:$G$5,'Utility Functions'!$H$3:$H$5)","v":1},{"$f":"valuePL(F8,'Utility Functions'!$I$3:$I$4,'Utility Functions'!$J$3:$J$5)","v":0},{"$f":"valueE(G8,'Utility Functions'!$L$3,'Utility Functions'!$L$4,'Utility Functions'!$L$5,'Utility Functions'!$L$6)","v":0},{"$f":"valueE(H8,'Utility Functions'!$N$3,'Utility Functions'!$N$4,'Utility Functions'!$N$5,'Utility Functions'!$N$6)","v":0},{"$f":"valuePL(I8,'Utility Functions'!$O$3:$O$6,'Utility Functions'!$P$3:$P$6)","v":1},{"$f":"valuePL(J8,'Utility Functions'!$Q$3:$Q$6,'Utility Functions'!$R$3:$R$6)","v":0.67272727272727273},{"$f":"valuePL(K8,'Utility Functions'!$S$3:$S$7,'Utility Functions'!$T$3:$T$7)","v":1},{"$f":"valueE(L8,'Utility Functions'!$V$3,'Utility Functions'!$V$4,'Utility Functions'!$V$5,'Utility Functions'!$V$6)","v":1},{"$f":"valuePL(M8,'Utility Functions'!$W$3:$W$6,'Utility Functions'!$X$3:$X$6)","v":0.67272727272727273},{"$f":"valueE(N8,'Utility Functions'!$Z$3,'Utility Functions'!$Z$4,'Utility Functions'!$Z$5,'Utility Functions'!$Z$6)","v":1},{"$f":"valuePL(O8,'Utility Functions'!$AA$3:$AA$5,'Utility Functions'!$AB$3:$AB$5)","v":0.25},{"$f":"valuePL(P8,'Utility Functions'!$AC$3:$AC$7,'Utility Functions'!$AD$3:$AD$7)","v":0},{"$f":"valuePL(Q8,'Utility Functions'!$AE$3:$AE$6,'Utility Functions'!$AF$3:$AF$6)","v":0},{"$f":"valuePL(R8,'Utility Functions'!$AG$3:$AG$6,'Utility Functions'!$AH$3:$AH$6)","v":1},{"$f":"valuePL(S8,'Utility Functions'!$AI$3:$AI$6,'Utility Functions'!$AJ$3:$AJ$6)","v":1},{"$f":"valuePL(T8,'Utility Functions'!$AK$3:$AK$8,'Utility Functions'!$AL$3:$AL$8)","v":0},{"$f":"valuePL(U8,'Utility Functions'!$AM$3:$AM$5,'Utility Functions'!$AN$3:$AN$5)","v":0},{"$f":"valuePL(V8,'Utility Functions'!$AO$3:$AO$5,'Utility Functions'!$AP$3:$AP$5)","v":1},{"$f":"valuePL(W8,'Utility Functions'!$AQ$3:$AQ$6,'Utility Functions'!$AR$3:$AR$6)","v":0},{"$f":"valuePL(X8,'Utility Functions'!$AS$3:$AS$6,'Utility Functions'!$AT$3:$AT$6)","v":0.2},{"$f":"valuePL(Y8,'Utility Functions'!$AU$3:$AU$6,'Utility Functions'!$AV$3:$AV$6)","v":1},{"$f":"valuePL(Z8,'Utility Functions'!$AW$3:$AW$5,'Utility Functions'!$AX$3:$AX$5)","v":1},{"$f":"valuePL(AA8,'Utility Functions'!$AY$3:$AY$6,'Utility Functions'!$AZ$3:$AZ$6)","v":0.89999999999999991},{"$f":"valuePL(AB8,'Utility Functions'!$BA$3:$BA$5,'Utility Functions'!$BB$3:$BB$5)","v":0},{"$f":"valuePL(AC8,'Utility Functions'!$BC$3:$BC$5,'Utility Functions'!$BD$3:$BD$5)","v":1},15.54287399641135,null,15.54287399641135,2.8474194509568056,4.3454545454545457,1.25,2,5.0999999999999996]
[8,{"$f":"valueE(B9,'Utility Functions'!$B$3,'Utility Functions'!$B$4,'Utility Functions'!$B$5,'Utility Functions'!$B$6)","v":0.4511890475224023},{"$f":"valueE(C9,'Utility Functions'!$D$3,'Utility Functions'!$D$4,'Utility Functions'!$D$5,'Utility Functions'!$D$6)","v":0.84744836833951609},{"$f":"valuePL(D9,'Utility Functions'!$E$3:$E$5,'Utility Functions'!$F$3:$F$5)","v":1},{"$f":"valuePL(E9,'Utility Functions'!$G$3:$G$5,'Utility Functions'!$H$3:$H$5)","v":0.5},{"$f":"valuePL(F9,'Utility Functions'!$I$3:$I$4,'Utility Functions'!$J$3:$J$5)","v":1},{"$f":"valueE(G9,'Utility Functions'!$L$3,'Utility Functions'!$L$4,'Utility Functions'!$L$5,'Utility Functions'!$L$6)","v":0},{"$f":"valueE(H9,'Utility Functions'!$N$3,'Utility Functions'!$N$4,'Utility Functions'!$N$5,'Utility Functions'!$N$6)","v":0},{"$f":"valuePL(I9,'Utility Functions'!$O$3:$O$6,'Utility Functions'!$P$3:$P$6)","v":5.6000000000000008E-2},{"$f":"valuePL(J9,'Utility Functions'!$Q$3:$Q$6,'Utility Functions'!$R$3:$R$6)","v":0.83636363636363631},{"$f":"valuePL(K9,'Utility Functions'!$S$3:$S$7,'Utility Functions'!$T$3:$T$7)","v":0},{"$f":"valueE(L9,'Utility Functions'!$V$3,'Utility Functions'!$V$4,'Utility Functions'!$V$5,'Utility Functions'!$V$6)","v":1},{"$f":"valuePL(M9,'Utility Functions'!$W$3:$W$6,'Utility Functions'!$X$3:$X$6)","v":0.83636363636363631},{"$f":"valueE(N9,'Utility Functions'!$Z$3,'Utility Functions'!$Z$4,'Utility Functions'!$Z$5,'Utility Functions'!$Z$6)","v":0},{"$f":"valuePL(O9,'Utility Functions'!$AA$3:$AA$5,'Utility Functions'!$AB$3:$AB$5)","v":0},{"$f":"valuePL(P9,'Utility Functions'!$AC$3:$AC$7,'Utility Functions'!$AD$3:$AD$7)","v":0},{"$f":"valuePL(Q9,'Utility Functions'!$AE$3:$AE$6,'Utility Functions'!$AF$3:$AF$6)","v":1},{"$f":"valuePL(R9,'Utility Functions'!$AG$3:$AG$6,'Utility Functions'!$AH$3:$AH$6)","v":0.2},{"$f":"valuePL(S9,'Utility Functions'!$AI$3:$AI$6,'Utility Functions'!$AJ$3:$AJ$6)","v":1},{"$f":"valuePL(T9,'Utility Functions'!$AK$3:$AK$8,'Utility Functions'!$AL$3:$AL$8)","v":0},{"$f":"valuePL(U9,'Utility Functions'!$AM$3:$AM$5,'Utility Functions'!$AN$3:$AN$5)","v":0},{"$f":"valuePL(V9,'Utility Functions'!$AO$3:$AO$5,'Utility Functions'!$AP$3:$AP$5)","v":1},{"$f":"valuePL(W9,'Utility Functions'!$AQ$3:$AQ$6,'Utility Functions'!$AR$3:$AR$6)","v":1},{"$f":"valuePL(X9,'Utility Functions'!$AS$3:$AS$6,'Utility Functions'!$AT$3:$AT$6)","v":1},{"$f":"valuePL(Y9,'Utility Functions'!$AU$3:$AU$6,'Utility Functions'!$AV$3:$AV$6)","v":1},{"$f":"valuePL(Z9,'Utility Functions'!$AW$3:$AW$5,'Utility Functions'!$AX$3:$AX$5)","v":1},{"$f":"valuePL(AA9,'Utility Functions'!$AY$3:$AY$6,'Utility Functions'!$AZ$3:$AZ$6)","v":0},{"$f":"valuePL(AB9,'Utility Functions'!$BA$3:$BA$5,'Utility Functions'!$BB$3:$BB$5)","v":0.25},{"$f":"valuePL(AC9,'Utility Functions'!$BC$3:$BC$5,'Utility Functions'!$BD$3:$BD$5)","v":0.25},14.227364688589191,null,14.227364688589191,3.7986374158619185,2.7287272727272729,0,2.2000000000000002,5.5]
[9,{"$f":"valueE(B10,'Utility Functions'!$B$3,'Utility Functions'!$B$4,'Utility Functions'!$B$5,'Utility Functions'!$B$6)","v":0.83470237647280454},{"$f":"valueE(C10,'Utility Functions'!$D$3,'Utility Functions'!$D$4,'Utility Functions'!$D$5,'Utility Functions'!$D$6)","v":0.78989979019422951},{"$f":"valuePL(D10,'Utility Functions'!$E$3:$E$5,'Utility Functions'!$F$3:$F$5)","v":1},{"$f":"valuePL(E10,'Utility Functions'!$G$3:$G$5,'Utility Functions'!$H$3:$H$5)","v":0.5},{"$f":"valuePL(F10,'Utility Functions'!$I$3:$I$4,'Utility Functions'!$J$3:$J$5)","v":0},{"$f":"valueE(G10,'Utility Functions'!$L$3,'Utility Functions'!$L$4,'Utility Functions'!$L$5,'Utility Functions'!$L$6)","v":0.37634408602150538},{"$f":"valueE(H10,'Utility Functions'!$N$3,'Utility Functions'!$N$4,'Utility Functions'!$N$5,'Utility Functions'!$N$6)","v":0.13282732447817835},{"$f":"valuePL(I10,'Utility Functions'!$O$3:$O$6,'Utility Functions'!$P$3:$P$6)","v":0},{"$f":"valuePL(J10,'Utility Functions'!$Q$3:$Q$6,'Utility Functions'!$R$3:$R$6)","v":0},{"$f":"valuePL(K10,'Utility Functions'!$S$3:$S$7,'Utility Functions'!$T$3:$T$7)","v":0},{"$f":"valueE(L10,'Utility Functions'!$V$3,'Utility Functions'!$V$4,'Utility Functions'!$V$5,'Utility Functions'!$V$6)","v":0},{"$f":"valuePL(M10,'Utility Functions'!$W$3:$W$6,'Utility Functions'!$X$3:$X$6)","v":0},{"$f":"valueE(N10,'Utility Functions'!$Z$3,'Utility Functions'!$Z$4,'Utility Functions'!$Z$5,'Utility Functions'!$Z$6)","v":0},{"$f":"valuePL(O10,'Utility Functions'!$AA$3:$AA$5,'Utility Functions'!$AB$3:$AB$5)","v":0},{"$f":"valuePL(P10,'Utility Functions'!$AC$3:$AC$7,'Utility Functions'!$AD$3:$AD$7)","v":0.75},{"$f":"valuePL(Q10,'Utility Functions'!$AE$3:$AE$6,'Utility Functions'!$AF$3:$AF$6)","v":0},{"$f":"valuePL(R10,'Utility Functions'!$AG$3:$AG$6,'Utility Functions'!$AH$3:$AH$6)","v":1},{"$f":"valuePL(S10,'Utility Functions'!$AI$3:$AI$6,'Utility Functions'!$AJ$3:$AJ$6)","v":0.66},{"$f":"valuePL(T10,'Utility Functions'!$AK$3:$AK$8,'Utility Functions'!$AL$3:$AL$8)","v":0.2},{"$f":"valuePL(U10,'Utility Functions'!$AM$3:$AM$5,'Utility Functions'!$AN$3:$AN$5)","v":0},{"$f":"valuePL(V10,'Utility Functions'!$AO$3:$AO$5,'Utility Functions'!$AP$3:$AP$5)","v":1},{"$f":"valuePL(W10,'Utility Functions'!$AQ$3:$AQ$6,'Utility Functions'!$AR$3:$AR$6)","v":1},{"$f":"valuePL(X10,'Utility Functions'!$AS$3:$AS$6,'Utility Functions'!$AT$3:$AT$6)","v":1},{"$f":"valuePL(Y10,'Utility Functions'!$AU$3:$AU$6,'Utility Functions'!$AV$3:$AV$6)","v":0.2},{"$f":"valuePL(Z10,'Utility Functions'!$AW$3:$AW$5,'Utility Functions'!$AX$3:$AX$5)","v":1},{"$f":"valuePL(AA10,'Utility Functions'!$AY$3:$AY$6,'Utility Functions'!$AZ$3:$AZ$6)","v":0.2},{"$f":"valuePL(AB10,'Utility Functions'!$BA$3:$BA$5,'Utility Functions'!$BB$3:$BB$5)","v":0.25},{"$f":"valuePL(AC10,'Utility Functions'!$BC$3:$BC$5,'Utility Functions'!$BD$3:$BD$5)","v":1},11.893773577166716,null,11.893773577166719,3.1246021666670343,0.50917141049968373,0,2.6100000000000003,5.65]
[10,{"$f":"valueE(B11,'Utility Functions'!$B$3,'Utility Functions'!$B$4,'Utility Functions'!$B$5,'Utility Functions'!$B$6)","v":0},{"$f":"valueE(C11,'Utility Functions'!$D$3,'Utility Functions'!$D$4,'Utility Functions'!$D$5,'Utility Functions'!$D$6)","v":0},{"$f":"valuePL(D11,'Utility Functions'!$E$3:$E$5,'Utility Functions'!$F$3:$F$5)","v":0},{"$f":"valuePL(E11,'Utility Functions'!$G$3:$G$5,'Utility Functions'!$H$3:$H$5)","v":0},{"$f":"valuePL(F11,'Utility Functions'!$I$3:$I$4,'Utility Functions'!$J$3:$J$5)","v":0},{"$f":"valueE(G11,'Utility Functions'!$L$3,'Utility Functions'!$L$4,'Utility Functions'!$L$5,'Utility Functions'!$L$6)","v":0},{"$f":"valueE(H11,'Utility Functions'!$N$3,'Utility Functions'!$N$4,'Utility Functions'!$N$5,'Utility Functions'!$N$6)","v":0},{"$f":"valuePL(I11,'Utility Functions'!$O$3:$O$6,'Utility Functions'!$P$3:$P$6)","v":0},{"$f":"valuePL(J11,'Utility Functions'!$Q$3:$Q$6,'Utility Functions'!$R$3:$R$6)","v":0},{"$f":"valuePL(K11,'Utility Functions'!$S$3:$S$7,'Utility Functions'!$T$3:$T$7)","v":0},{"$f":"valueE(L11,'Utility Functions'!$V$3,'Utility Functions'!$V$4,'Utility Functions'!$V$5,'Utility Functions'!$V$6)","v":0},{"$f":"valuePL(M11,'Utility Functions'!$W$3:$W$6,'Utility Functions'!$X$3:$X$6)","v":0},{"$f":"valueE(N11,'Utility Functions'!$Z$3,'Utility Functions'!$Z$4,'Utility Functions'!$Z$5,'Utility Functions'!$Z$6)","v":0.75},{"$f":"valuePL(O11,'Utility Functions'!$AA$3:$AA$5,'Utility Functions'!$AB$3:$AB$5)","v":1},{"$f":"valuePL(P11,'Utility Functions'!$AC$3:$AC$7,'Utility Functions'!$AD$3:$AD$7)","v":0.25},{"$f":"valuePL(Q11,'Utility Functions'!$AE$3:$AE$6,'Utility Functions'!$AF$3:$AF$6)","v":0.5},{"$f":"valuePL(R11,'Utility Functions'!$AG$3:$AG$6,'Utility Functions'!$AH$3:$AH$6)","v":1},{"$f":"valuePL(S11,'Utility Functions'!$AI$3:$AI$6,'Utility Functions'!$AJ$3:$AJ$6)","v":0.66},{"$f":"valuePL(T11,'Utility Functions'!$AK$3:$AK$8,'Utility Functions'!$AL$3:$AL$8)","v":0.4},{"$f":"valuePL(U11,'Utility Functions'!$AM$3:$AM$5,'Utility Functions'!$AN$3:$AN$5)","v":0},{"$f":"valuePL(V11,'Utility Functions'!$AO$3:$AO$5,'Utility Functions'!$AP$3:$AP$5)","v":0},{"$f":"valuePL(W11,'Utility Functions'!$AQ$3:$AQ$6,'Utility Functions'!$AR$3:$AR$6)","v":0.75},{"$f":"valuePL(X11,'Utility Functions'!$AS$3:$AS$6,'Utility Functions'!$AT$3:$AT$6)","v":1},{"$f":"valuePL(Y11,'Utility Functions'!$AU$3:$AU$6,'Utility Functions'!$AV$3:$AV$6)","v":1},{"$f":"valuePL(Z11,'Utility Functions'!$AW$3:$AW$5,'Utility Functions'!$AX$3:$AX$5)","v":0.5},{"$f":"valuePL(AA11,'Utility Functions'!$AY$3:$AY$6,'Utility Functions'!$AZ$3:$AZ$6)","v":0.2},{"$f":"valuePL(AB11,'Utility Functions'!$BA$3:$BA$5,'Utility Functions'!$BB$3:$BB$5)","v":0},{"$f":"valuePL(AC11,'Utility Functions'!$BC$3:$BC$5,'Utility Functions'!$BD$3:$BD$5)","v":1},9.01,null,9.0100000000000016,0,0,1.75,2.81,4.45]
[11,{"$f":"valueE(B12,'Utility Functions'!$B$3,'Utility Functions'!$B$4,'Utility Functions'!$B$5,'Utility Functions'!$B$6)","v":0},{"$f":"valueE(C12,'Utility Functions'!$D$3,'Utility Functions'!$D$4,'Utility Functions'!$D$5,'Utility Functions'!$D$6)","v":0},{"$f":"valuePL(D12,'Utility Functions'!$E$3:$E$5,'Utility Functions'!$F$3:$F$5)","v":0},{"$f":"valuePL(E12,'Utility Functions'!$G$3:$G$5,'Utility Functions'!$H$3:$H$5)","v":0},{"$f":"valuePL(F12,'Utility Functions'!$I$3:$I$4,'Utility Functions'!$J$3:$J$5)","v":0},{"$f":"valueE(G12,'Utility Functions'!$L$3,'Utility Functions'!$L$4,'Utility Functions'!$L$5,'Utility Functions'!$L$6)","v":3.2258064516129031E-2},{"$f":"valueE(H12,'Utility Functions'!$N$3,'Utility Functions'!$N$4,'Utility Functions'!$N$5,'Utility Functions'!$N$6)","v":9.6774193548387094E-2},{"$f":"valuePL(I12,'Utility Functions'!$O$3:$O$6,'Utility Functions'!$P$3:$P$6)","v":0.54181818181818187},{"$f":"valuePL(J12,'Utility Functions'!$Q$3:$Q$6,'Utility Functions'!$R$3:$R$6)","v":0.91818181818181821},{"$f":"valuePL(K12,'Utility Functions'!$S$3:$S$7,'Utility Functions'!$T$3:$T$7)","v":0.54181818181818187},{"$f":"valueE(L12,'Utility Functions'!$V$3,'Utility Functions'!$V$4,'Utility Functions'!$V$5,'Utility Functions'!$V$6)","v":1},{"$f":"valuePL(M12,'Utility Functions'!$W$3:$W$6,'Utility Functions'!$X$3:$X$6)","v":0.91818181818181821},{"$f":"valueE(N12,'Utility Functions'!$Z$3,'Utility Functions'!$Z$4,'Utility Functions'!$Z$5,'Utility Functions'!$Z$6)","v":0.375},{"$f":"valuePL(O12,'Utility Functions'!$AA$3:$AA$5,'Utility Functions'!$AB$3:$AB$5)","v":0.25},{"$f":"valuePL(P12,'Utility Functions'!$AC$3:$AC$7,'Utility Functions'!$AD$3:$AD$7)","v":0.25},{"$f":"valuePL(Q12,'Utility Functions'!$AE$3:$AE$6,'Utility Functions'!$AF$3:$AF$6)","v":0},{"$f":"valuePL(R12,'Utility Functions'!$AG$3:$AG$6,'Utility Functions'!$AH$3:$AH$6)","v":1},{"$f":"valuePL(S12,'Utility Functions'!$AI$3:$AI$6,'Utility Functions'!$AJ$3:$AJ$6)","v":1},{"$f":"valuePL(T12,'Utility Functions'!$AK$3:$AK$8,'Utility Functions'!$AL$3:$AL$8)","v":0.4},{"$f":"valuePL(U12,'Utility Functions'!$AM$3:$AM$5,'Utility Functions'!$AN$3:$AN$5)","v":1},{"$f":"valuePL(V12,'Utility Functions'!$AO$3:$AO$5,'Utility Functions'!$AP$3:$AP$5)","v":1},{"$f":"valuePL(W12,'Utility Functions'!$AQ$3:$AQ$6,'Utility Functions'!$AR$3:$AR$6)","v":0.2},{"$f":"valuePL(X12,'Utility Functions'!$AS$3:$AS$6,'Utility Functions'!$AT$3:$AT$6)","v":1},{"$f":"valuePL(Y12,'Utility Functions'!$AU$3:$AU$6,'Utility Functions'!$AV$3:$AV$6)","v":1},{"$f":"valuePL(Z12,'Utility Functions'!$AW$3:$AW$5,'Utility Functions'!$AX$3:$AX$5)","v":0.5},{"$f":"valuePL(AA12,'Utility Functions'!$AY$3:$AY$6,'Utility Functions'!$AZ$3:$AZ$6)","v":0.89999999999999991},{"$f":"valuePL(AB12,'Utility Functions'!$BA$3:$BA$5,'Utility Functions'!$BB$3:$BB$5)","v":0},{"$f":"valuePL(AC12,'Utility Functions'!$BC$3:$BC$5,'Utility Functions'!$BD$3:$BD$5)","v":0.25},13.174032258064516,null,13.174032258064516,0,4.0490322580645159,0.625,3.65,4.8499999999999996]
[12,{"$f":"valueE(B13,'Utility Functions'!$B$3,'Utility Functions'!$B$4,'Utility Functions'!$B$5,'Utility Functions'!$B$6)","v":0.32968045347775865},{"$f":"valueE(C13,'Utility Functions'!$D$3,'Utility Functions'!$D$4,'Utility Functions'!$D$5,'Utility Functions'!$D$6)","v":0.78989979019422951},{"$f":"valuePL(D13,'Utility Functions'!$E$3:$E$5,'Utility Functions'!$F$3:$F$5)","v":1},{"$f":"valuePL(E13,'Utility Functions'!$G$3:$G$5,'Utility Functions'!$H$3:$H$5)","v":0.5},{"$f":"valuePL(F13,'Utility Functions'!$I$3:$I$4,'Utility Functions'!$J$3:$J$5)","v":0},{"$f":"valueE(G13,'Utility Functions'!$L$3,'Utility Functions'!$L$4,'Utility Functions'!$L$5,'Utility Functions'!$L$6)","v":0},{"$f":"valueE(H13,'Utility Functions'!$N$3,'Utility Functions'!$N$4,'Utility Functions'!$N$5,'Utility Functions'!$N$6)","v":0},{"$f":"valuePL(I13,'Utility Functions'!$O$3:$O$6,'Utility Functions'!$P$3:$P$6)","v":0},{"$f":"valuePL(J13,'Utility Functions'!$Q$3:$Q$6,'Utility Functions'!$R$3:$R$6)","v":0},{"$f":"valuePL(K13,'Utility Functions'!$S$3:$S$7,'Utility Functions'!$T$3:$T$7)","v":0},{"$f":"valueE(L13,'Utility Functions'!$V$3,'Utility Functions'!$V$4,'Utility Functions'!$V$5,'Utility Functions'!$V$6)","v":0},{"$f":"valuePL(M13,'Utility Functions'!$W$3:$W$6,'Utility Functions'!$X$3:$X$6)","v":0},{"$f":"valueE(N13,'Utility Functions'!$Z$3,'Utility Functions'!$Z$4,'Utility Functions'!$Z$5,'Utility Functions'!$Z$6)","v":0},{"$f":"valuePL(O13,'Utility Functions'!$AA$3:$AA$5,'Utility Functions'!$AB$3:$AB$5)","v":0},{"$f":"valuePL(P13,'Utility Functions'!$AC$3:$AC$7,'Utility Functions'!$AD$3:$AD$7)","v":0},{"$f":"valuePL(Q13,'Utility Functions'!$AE$3:$AE$6,'Utility Functions'!$AF$3:$AF$6)","v":0.1},{"$f":"valuePL(R13,'Utility Functions'!$AG$3:$AG$6,'Utility Functions'!$AH$3:$AH$6)","v":1},{"$f":"valuePL(S13,'Utility Functions'!$AI$3:$AI$6,'Utility Functions'!$AJ$3:$AJ$6)","v":1},{"$f":"valuePL(T13,'Utility Functions'!$AK$3:$AK$8,'Utility Functions'!$AL$3:$AL$8)","v":0.6},{"$f":"valuePL(U13,'Utility Functions'!$AM$3:$AM$5,'Utility Functions'!$AN$3:$AN$5)","v":0},{"$f":"valuePL(V13,'Utility Functions'!$AO$3:$AO$5,'Utility Functions'!$AP$3:$AP$5)","v":0.5},{"$f":"valuePL(W13,'Utility Functions'!$AQ$3:$AQ$6,'Utility Functions'!$AR$3:$AR$6)","v":0.2},{"$f":"valuePL(X13,'Utility Functions'!$AS$3:$AS$6,'Utility Functions'!$AT$3:$AT$6)","v":1},{"$f":"valuePL(Y13,'Utility Functions'!$AU$3:$AU$6,'Utility Functions'!$AV$3:$AV$6)","v":0.2},{"$f":"valuePL(Z13,'Utility Functions'!$AW$3:$AW$5,'Utility Functions'!$AX$3:$AX$5)","v":1},{"$f":"valuePL(AA13,'Utility Functions'!$AY$3:$AY$6,'Utility Functions'!$AZ$3:$AZ$6)","v":0.2},{"$f":"valuePL(AB13,'Utility Functions'!$BA$3:$BA$5,'Utility Functions'!$BB$3:$BB$5)","v":1},{"$f":"valuePL(AC13,'Utility Functions'!$BC$3:$BC$5,'Utility Functions'!$BD$3:$BD$5)","v":0},9.4195802436719873,null,9.4195802436719873,2.6195802436719884,0,0,2.7,4.0999999999999996]
[13,{"$f":"valueE(B14,'Utility Functions'!$B$3,'Utility Functions'!$B$4,'Utility Functions'!$B$5,'Utility Functions'!$B$6)","v":0},{"$f":"valueE(C14,'Utility Functions'!$D$3,'Utility Functions'!$D$4,'Utility Functions'!$D$5,'Utility Functions'!$D$6)","v":0},{"$f":"valuePL(D14,'Utility Functions'!$E$3:$E$5,'Utility Functions'!$F$3:$F$5)","v":0},{"$f":"valuePL(E14,'Utility Functions'!$G$3:$G$5,'Utility Functions'!$H$3:$H$5)","v":0},{"$f":"valuePL(F14,'Utility Functions'!$I$3:$I$4,'Utility Functions'!$J$3:$J$5)","v":0},{"$f":"valueE(G14,'Utility Functions'!$L$3,'Utility Functions'!$L$4,'Utility Functions'!$L$5,'Utility Functions'!$L$6)","v":0},{"$f":"valueE(H14,'Utility Functions'!$N$3,'Utility Functions'!$N$4,'Utility Functions'!$N$5,'Utility Functions'!$N$6)","v":1.1385199240986717E-2},{"$f":"valuePL(I14,'Utility Functions'!$O$3:$O$6,'Utility Functions'!$P$3:$P$6)","v":0.3290909090909091},{"$f":"valuePL(J14,'Utility Functions'!$Q$3:$Q$6,'Utility Functions'!$R$3:$R$6)","v":0.04},{"$f":"valuePL(K14,'Utility Functions'!$S$3:$S$7,'Utility Functions'!$T$3:$T$7)","v":0.3290909090909091},{"$f":"valueE(L14,'Utility Functions'!$V$3,'Utility Functions'!$V$4,'Utility Functions'!$V$5,'Utility Functions'!$V$6)","v":1},{"$f":"valuePL(M14,'Utility Functions'!$W$3:$W$6,'Utility Functions'!$X$3:$X$6)","v":0.04},{"$f":"valueE(N14,'Utility Functions'!$Z$3,'Utility Functions'!$Z$4,'Utility Functions'!$Z$5,'Utility Functions'!$Z$6)","v":0.875},{"$f":"valuePL(O14,'Utility Functions'!$AA$3:$AA$5,'Utility Functions'!$AB$3:$AB$5)","v":0.25},{"$f":"valuePL(P14,'Utility Functions'!$AC$3:$AC$7,'Utility Functions'!$AD$3:$AD$7)","v":0.25},{"$f":"valuePL(Q14,'Utility Functions'!$AE$3:$AE$6,'Utility Functions'!$AF$3:$AF$6)","v":0},{"$f":"valuePL(R14,'Utility Functions'!$AG$3:$AG$6,'Utility Functions'!$AH$3:$AH$6)","v":1},{"$f":"valuePL(S14,'Utility Functions'!$AI$3:$AI$6,'Utility Functions'!$AJ$3:$AJ$6)","v":1},{"$f":"valuePL(T14,'Utility Functions'!$AK$3:$AK$8,'Utility Functions'!$AL$3:$AL$8)","v":0},{"$f":"valuePL(U14,'Utility Functions'!$AM$3:$AM$5,'Utility Functions'!$AN$3:$AN$5)","v":0},{"$f":"valuePL(V14,'Utility Functions'!$AO$3:$AO$5,'Utility Functions'!$AP$3:$AP$5)","v":0.5},{"$f":"valuePL(W14,'Utility Functions'!$AQ$3:$AQ$6,'Utility Functions'!$AR$3:$AR$6)","v":0},{"$f":"valuePL(X14,'Utility Functions'!$AS$3:$AS$6,'Utility Functions'!$AT$3:$AT$6)","v":0.2},{"$f":"valuePL(Y14,'Utility Functions'!$AU$3:$AU$6,'Utility Functions'!$AV$3:$AV$6)","v":0},{"$f":"valuePL(Z14,'Utility Functions'!$AW$3:$AW$5,'Utility Functions'!$AX$3:$AX$5)","v":1},{"$f":"valuePL(AA14,'Utility Functions'!$AY$3:$AY$6,'Utility Functions'!$AZ$3:$AZ$6)","v":0.2},{"$f":"valuePL(AB14,'Utility Functions'!$BA$3:$BA$5,'Utility Functions'!$BB$3:$BB$5)","v":0.25},{"$f":"valuePL(AC14,'Utility Functions'!$BC$3:$BC$5,'Utility Functions'!$BD$3:$BD$5)","v":0.25},7.5245670174228056,null,7.5245670174228056,0,1.7495670174228048,1.125,2.25,2.4]
[14,{"$f":"valueE(B15,'Utility Functions'!$B$3,'Utility Functions'!$B$4,'Utility Functions'!$B$5,'Utility Functions'!$B$6)","v":0.69880684688087746},{"$f":"valueE(C15,'Utility Functions'!$D$3,'Utility Functions'!$D$4,'Utility Functions'!$D$5,'Utility Functions'!$D$6)","v":0.78989979019422951},{"$f":"valuePL(D15,'Utility Functions'!$E$3:$E$5,'Utility Functions'!$F$3:$F$5)","v":0.5},{"$f":"valuePL(E15,'Utility Functions'!$G$3:$G$5,'Utility Functions'!$H$3:$H$5)","v":0.5},{"$f":"valuePL(F15,'Utility Functions'!$I$3:$I$4,'Utility Functions'!$J$3:$J$5)","v":0},{"$f":"valueE(G15,'Utility Functions'!$L$3,'Utility Functions'!$L$4,'Utility Functions'!$L$5,'Utility Functions'!$L$6)","v":0},{"$f":"valueE(H15,'Utility Functions'!$N$3,'Utility Functions'!$N$4,'Utility Functions'!$N$5,'Utility Functions'!$N$6)","v":0},{"$f":"valuePL(I15,'Utility Functions'!$O$3:$O$6,'Utility Functions'!$P$3:$P$6)","v":0},{"$f":"valuePL(J15,'Utility Functions'!$Q$3:$Q$6,'Utility Functions'!$R$3:$R$6)","v":0},{"$f":"valuePL(K15,'Utility Functions'!$S$3:$S$7,'Utility Functions'!$T$3:$T$7)","v":0},{"$f":"valueE(L15,'Utility Functions'!$V$3,'Utility Functions'!$V$4,'Utility Functions'!$V$5,'Utility Functions'!$V$6)","v":0},{"$f":"valuePL(M15,'Utility Functions'!$W$3:$W$6,'Utility Functions'!$X$3:$X$6)","v":0},{"$f":"valueE(N15,'Utility Functions'!$Z$3,'Utility Functions'!$Z$4,'Utility Functions'!$Z$5,'Utility Functions'!$Z$6)","v":0.75},{"$f":"valuePL(O15,'Utility Functions'!$AA$3:$AA$5,'Utility Functions'!$AB$3:$AB$5)","v":0.25},{"$f":"valuePL(P15,'Utility Functions'!$AC$3:$AC$7,'Utility Functions'!$AD$3:$AD$7)","v":0.25},{"$f":"valuePL(Q15,'Utility Functions'!$AE$3:$AE$6,'Utility Functions'!$AF$3:$AF$6)","v":0},{"$f":"valuePL(R15,'Utility Functions'!$AG$3:$AG$6,'Utility Functions'!$AH$3:$AH$6)","v":1},{"$f":"valuePL(S15,'Utility Functions'!$AI$3:$AI$6,'Utility Functions'!$AJ$3:$AJ$6)","v":1},{"$f":"valuePL(T15,'Utility Functions'!$AK$3:$AK$8,'Utility Functions'!$AL$3:$AL$8)","v":0},{"$f":"valuePL(U15,'Utility Functions'!$AM$3:$AM$5,'Utility Functions'!$AN$3:$AN$5)","v":0},{"$f":"valuePL(V15,'Utility Functions'!$AO$3:$AO$5,'Utility Functions'!$AP$3:$AP$5)","v":0.5},{"$f":"valuePL(W15,'Utility Functions'!$AQ$3:$AQ$6,'Utility Functions'!$AR$3:$AR$6)","v":0.2},{"$f":"valuePL(X15,'Utility Functions'!$AS$3:$AS$6,'Utility Functions'!$AT$3:$AT$6)","v":1},{"$f":"valuePL(Y15,'Utility Functions'!$AU$3:$AU$6,'Utility Functions'!$AV$3:$AV$6)","v":1},{"$f":"valuePL(Z15,'Utility Functions'!$AW$3:$AW$5,'Utility Functions'!$AX$3:$AX$5)","v":0.5},{"$f":"valuePL(AA15,'Utility Functions'!$AY$3:$AY$6,'Utility Functions'!$AZ$3:$AZ$6)","v":0.89999999999999991},{"$f":"valuePL(AB15,'Utility Functions'!$BA$3:$BA$5,'Utility Functions'!$BB$3:$BB$5)","v":0.25},{"$f":"valuePL(AC15,'Utility Functions'!$BC$3:$BC$5,'Utility Functions'!$BD$3:$BD$5)","v":0.25},10.338706637075108,null,10.338706637075106,2.488706637075107,0,1,2.25,4.5999999999999996]
[15,{"$f":"valueE(B16,'Utility Functions'!$B$3,'Utility Functions'!$B$4,'Utility Functions'!$B$5,'Utility Functions'!$B$6)","v":0.98994966417177144},{"$f":"valueE(C16,'Utility Functions'!$D$3,'Utility Functions'!$D$4,'Utility Functions'!$D$5,'Utility Functions'!$D$6)","v":0.71352759724260828},{"$f":"valuePL(D16,'Utility Functions'!$E$3:$E$5,'Utility Functions'!$F$3:$F$5)","v":1},{"$f":"valuePL(E16,'Utility Functions'!$G$3:$G$5,'Utility Functions'!$H$3:$H$5)","v":0.5},{"$f":"valuePL(F16,'Utility Functions'!$I$3:$I$4,'Utility Functions'!$J$3:$J$5)","v":1},{"$f":"valueE(G16,'Utility Functions'!$L$3,'Utility Functions'!$L$4,'Utility Functions'!$L$5,'Utility Functions'!$L$6)","v":0},{"$f":"valueE(H16,'Utility Functions'!$N$3,'Utility Functions'!$N$4,'Utility Functions'!$N$5,'Utility Functions'!$N$6)","v":0},{"$f":"valuePL(I16,'Utility Functions'!$O$3:$O$6,'Utility Functions'!$P$3:$P$6)","v":9.2000000000000012E-2},{"$f":"valuePL(J16,'Utility Functions'!$Q$3:$Q$6,'Utility Functions'!$R$3:$R$6)","v":6.0000000000000012E-2},{"$f":"valuePL(K16,'Utility Functions'!$S$3:$S$7,'Utility Functions'!$T$3:$T$7)","v":6.0000000000000012E-2},{"$f":"valueE(L16,'Utility Functions'!$V$3,'Utility Functions'!$V$4,'Utility Functions'!$V$5,'Utility Functions'!$V$6)","v":1},{"$f":"valuePL(M16,'Utility Functions'!$W$3:$W$6,'Utility Functions'!$X$3:$X$6)","v":6.0000000000000012E-2},{"$f":"valueE(N16,'Utility Functions'!$Z$3,'Utility Functions'!$Z$4,'Utility Functions'!$Z$5,'Utility Functions'!$Z$6)","v":0.125},{"$f":"valuePL(O16,'Utility Functions'!$AA$3:$AA$5,'Utility Functions'!$AB$3:$AB$5)","v":1},{"$f":"valuePL(P16,'Utility Functions'!$AC$3:$AC$7,'Utility Functions'!$AD$3:$AD$7)","v":0.5},{"$f":"valuePL(Q16,'Utility Functions'!$AE$3:$AE$6,'Utility Functions'!$AF$3:$AF$6)","v":0},{"$f":"valuePL(R16,'Utility Functions'!$AG$3:$AG$6,'Utility Functions'!$AH$3:$AH$6)","v":0.8},{"$f":"valuePL(S16,'Utility Functions'!$AI$3:$AI$6,'Utility Functions'!$AJ$3:$AJ$6)","v":1},{"$f":"valuePL(T16,'Utility Functions'!$AK$3:$AK$8,'Utility Functions'!$AL$3:$AL$8)","v":0.6},{"$f":"valuePL(U16,'Utility Functions'!$AM$3:$AM$5,'Utility Functions'!$AN$3:$AN$5)","v":1},{"$f":"valuePL(V16,'Utility Functions'!$AO$3:$AO$5,'Utility Functions'!$AP$3:$AP$5)","v":0},{"$f":"valuePL(W16,'Utility Functions'!$AQ$3:$AQ$6,'Utility Functions'!$AR$3:$AR$6)","v":1},{"$f":"valuePL(X16,'Utility Functions'!$AS$3:$AS$6,'Utility Functions'!$AT$3:$AT$6)","v":0.2},{"$f":"valuePL(Y16,'Utility Functions'!$AU$3:$AU$6,'Utility Functions'!$AV$3:$AV$6)","v":0.2},{"$f":"valuePL(Z16,'Utility Functions'!$AW$3:$AW$5,'Utility Functions'!$AX$3:$AX$5)","v":1},{"$f":"valuePL(AA16,'Utility Functions'!$AY$3:$AY$6,'Utility Functions'!$AZ$3:$AZ$6)","v":1},{"$f":"valuePL(AB16,'Utility Functions'!$BA$3:$BA$5,'Utility Functions'!$BB$3:$BB$5)","v":1},{"$f":"valuePL(AC16,'Utility Functions'!$BC$3:$BC$5,'Utility Functions'!$BD$3:$BD$5)","v":0.25},15.150477261414375,null,15.15047726141438,4.2034772614143794,1.272,1.125,3.9,4.6500000000000004]
[16,{"$f":"valueE(B17,'Utility Functions'!$B$3,'Utility Functions'!$B$4,'Utility Functions'!$B$5,'Utility Functions'!$B$6)","v":0},{"$f":"valueE(C17,'Utility Functions'!$D$3,'Utility Functions'!$D$4,'Utility Functions'!$D$5,'Utility Functions'!$D$6)","v":0},{"$f":"valuePL(D17,'Utility Functions'!$E$3:$E$5,'Utility Functions'!$F$3:$F$5)","v":0},{"$f":"valuePL(E17,'Utility Functions'!$G$3:$G$5,'Utility Functions'!$H$3:$H$5)","v":0},{"$f":"valuePL(F17,'Utility Functions'!$I$3:$I$4,'Utility Functions'!$J$3:$J$5)","v":0},{"$f":"valueE(G17,'Utility Functions'!$L$3,'Utility Functions'!$L$4,'Utility Functions'!$L$5,'Utility Functions'!$L$6)","v":0},{"$f":"valueE(H17,'Utility Functions'!$N$3,'Utility Functions'!$N$4,'Utility Functions'!$N$5,'Utility Functions'!$N$6)","v":0},{"$f":"valuePL(I17,'Utility Functions'!$O$3:$O$6,'Utility Functions'!$P$3:$P$6)","v":1},{"$f":"valuePL(J17,'Utility Functions'!$Q$3:$Q$6,'Utility Functions'!$R$3:$R$6)","v":0.91818181818181821},{"$f":"valuePL(K17,'Utility Functions'!$S$3:$S$7,'Utility Functions'!$T$3:$T$7)","v":1},{"$f":"valueE(L17,'Utility Functions'!$V$3,'Utility Functions'!$V$4,'Utility Functions'!$V$5,'Utility Functions'!$V$6)","v":0.83333333333333337},{"$f":"valuePL(M17,'Utility Functions'!$W$3:$W$6,'Utility Functions'!$X$3:$X$6)","v":0.91818181818181821},{"$f":"valueE(N17,'Utility Functions'!$Z$3,'Utility Functions'!$Z$4,'Utility Functions'!$Z$5,'Utility Functions'!$Z$6)","v":0},{"$f":"valuePL(O17,'Utility Functions'!$AA$3:$AA$5,'Utility Functions'!$AB$3:$AB$5)","v":0},{"$f":"valuePL(P17,'Utility Functions'!$AC$3:$AC$7,'Utility Functions'!$AD$3:$AD$7)","v":0.75},{"$f":"valuePL(Q17,'Utility Functions'!$AE$3:$AE$6,'Utility Functions'!$AF$3:$AF$6)","v":0},{"$f":"valuePL(R17,'Utility Functions'!$AG$3:$AG$6,'Utility Functions'!$AH$3:$AH$6)","v":1},{"$f":"valuePL(S17,'Utility Functions'!$AI$3:$AI$6,'Utility Functions'!$AJ$3:$AJ$6)","v":1},{"$f":"valuePL(T17,'Utility Functions'!$AK$3:$AK$8,'Utility Functions'!$AL$3:$AL$8)","v":1},{"$f":"valuePL(U17,'Utility Functions'!$AM$3:$AM$5,'Utility Functions'!$AN$3:$AN$5)","v":0},{"$f":"valuePL(V17,'Utility Functions'!$AO$3:$AO$5,'Utility Functions'!$AP$3:$AP$5)","v":1},{"$f":"valuePL(W17,'Utility Functions'!$AQ$3:$AQ$6,'Utility Functions'!$AR$3:$AR$6)","v":0.75},{"$f":"valuePL(X17,'Utility Functions'!$AS$3:$AS$6,'Utility Functions'!$AT$3:$AT$6)","v":0.75},{"$f":"valuePL(Y17,'Utility Functions'!$AU$3:$AU$6,'Utility Functions'!$AV$3:$AV$6)","v":0.2},{"$f":"valuePL(Z17,'Utility Functions'!$AW$3:$AW$5,'Utility Functions'!$AX$3:$AX$5)","v":1},{"$f":"valuePL(AA17,'Utility Functions'!$AY$3:$AY$6,'Utility Functions'!$AZ$3:$AZ$6)","v":1},{"$f":"valuePL(AB17,'Utility Functions'!$BA$3:$BA$5,'Utility Functions'!$BB$3:$BB$5)","v":1},{"$f":"valuePL(AC17,'Utility Functions'!$BC$3:$BC$5,'Utility Functions'!$BD$3:$BD$5)","v":1},15.119696969696969,null,15.119696969696971,0,4.6696969696969699,0,3.75,6.7]
[17,{"$f":"valueE(B18,'Utility Functions'!$B$3,'Utility Functions'!$B$4,'Utility Functions'!$B$5,'Utility Functions'!$B$6)","v":0.32968045347775865},{"$f":"valueE(C18,'Utility Functions'!$D$3,'Utility Functions'!$D$4,'Utility Functions'!$D$5,'Utility Functions'!$D$6)","v":0.78989979019422951},{"$f":"valuePL(D18,'Utility Functions'!$E$3:$E$5,'Utility Functions'!$F$3:$F$5)","v":1},{"$f":"valuePL(E18,'Utility Functions'!$G$3:$G$5,'Utility Functions'!$H$3:$H$5)","v":0.5},{"$f":"valuePL(F18,'Utility Functions'!$I$3:$I$4,'Utility Functions'!$J$3:$J$5)","v":1},{"$f":"valueE(G18,'Utility Functions'!$L$3,'Utility Functions'!$L$4,'Utility Functions'!$L$5,'Utility Functions'!$L$6)","v":0.31182795698924731},{"$f":"valueE(H18,'Utility Functions'!$N$3,'Utility Functions'!$N$4,'Utility Functions'!$N$5,'Utility Functions'!$N$6)","v":0.27514231499051234},{"$f":"valuePL(I18,'Utility Functions'!$O$3:$O$6,'Utility Functions'!$P$3:$P$6)","v":0},{"$f":"valuePL(J18,'Utility Functions'!$Q$3:$Q$6,'Utility Functions'!$R$3:$R$6)","v":0},{"$f":"valuePL(K18,'Utility Functions'!$S$3:$S$7,'Utility Functions'!$T$3:$T$7)","v":0},{"$f":"valueE(L18,'Utility Functions'!$V$3,'Utility Functions'!$V$4,'Utility Functions'!$V$5,'Utility Functions'!$V$6)","v":1},{"$f":"valuePL(M18,'Utility Functions'!$W$3:$W$6,'Utility Functions'!$X$3:$X$6)","v":6.0000000000000012E-2},{"$f":"valueE(N18,'Utility Functions'!$Z$3,'Utility Functions'!$Z$4,'Utility Functions'!$Z$5,'Utility Functions'!$Z$6)","v":0},{"$f":"valuePL(O18,'Utility Functions'!$AA$3:$AA$5,'Utility Functions'!$AB$3:$AB$5)","v":0},{"$f":"valuePL(P18,'Utility Functions'!$AC$3:$AC$7,'Utility Functions'!$AD$3:$AD$7)","v":0},{"$f":"valuePL(Q18,'Utility Functions'!$AE$3:$AE$6,'Utility Functions'!$AF$3:$AF$6)","v":0},{"$f":"valuePL(R18,'Utility Functions'!$AG$3:$AG$6,'Utility Functions'!$AH$3:$AH$6)","v":1},{"$f":"valuePL(S18,'Utility Functions'!$AI$3:$AI$6,'Utility Functions'!$AJ$3:$AJ$6)","v":0.66},{"$f":"valuePL(T18,'Utility Functions'!$AK$3:$AK$8,'Utility Functions'!$AL$3:$AL$8)","v":0},{"$f":"valuePL(U18,'Utility Functions'!$AM$3:$AM$5,'Utility Functions'!$AN$3:$AN$5)","v":0},{"$f":"valuePL(V18,'Utility Functions'!$AO$3:$AO$5,'Utility Functions'!$AP$3:$AP$5)","v":1},{"$f":"valuePL(W18,'Utility Functions'!$AQ$3:$AQ$6,'Utility Functions'!$AR$3:$AR$6)","v":1},{"$f":"valuePL(X18,'Utility Functions'!$AS$3:$AS$6,'Utility Functions'!$AT$3:$AT$6)","v":0.2},{"$f":"valuePL(Y18,'Utility Functions'!$AU$3:$AU$6,'Utility Functions'!$AV$3:$AV$6)","v":0},{"$f":"valuePL(Z18,'Utility Functions'!$AW$3:$AW$5,'Utility Functions'!$AX$3:$AX$5)","v":0.5},{"$f":"valuePL(AA18,'Utility Functions'!$AY$3:$AY$6,'Utility Functions'!$AZ$3:$AZ$6)","v":0},{"$f":"valuePL(AB18,'Utility Functions'!$BA$3:$BA$5,'Utility Functions'!$BB$3:$BB$5)","v":1},{"$f":"valuePL(AC18,'Utility Functions'!$BC$3:$BC$5,'Utility Functions'!$BD$3:$BD$5)","v":0.25},10.876550515651747,null,10.876550515651747,3.6195802436719884,1.6469702719797596,0,1.6600000000000001,3.95]
[18,{"$f":"valueE(B19,'Utility Functions'!$B$3,'Utility Functions'!$B$4,'Utility Functions'!$B$5,'Utility Functions'!$B$6)","v":0},{"$f":"valueE(C19,'Utility Functions'!$D$3,'Utility Functions'!$D$4,'Utility Functions'!$D$5,'Utility Functions'!$D$6)","v":0},{"$f":"valuePL(D19,'Utility Functions'!$E$3:$E$5,'Utility Functions'!$F$3:$F$5)","v":0},{"$f":"valuePL(E19,'Utility Functions'!$G$3:$G$5,'Utility Functions'!$H$3:$H$5)","v":0},{"$f":"valuePL(F19,'Utility Functions'!$I$3:$I$4,'Utility Functions'!$J$3:$J$5)","v":0},{"$f":"valueE(G19,'Utility Functions'!$L$3,'Utility Functions'!$L$4,'Utility Functions'!$L$5,'Utility Functions'!$L$6)","v":0},{"$f":"valueE(H19,'Utility Functions'!$N$3,'Utility Functions'!$N$4,'Utility Functions'!$N$5,'Utility Functions'!$N$6)","v":2.8462998102466792E-2},{"$f":"valuePL(I19,'Utility Functions'!$O$3:$O$6,'Utility Functions'!$P$3:$P$6)","v":0},{"$f":"valuePL(J19,'Utility Functions'!$Q$3:$Q$6,'Utility Functions'!$R$3:$R$6)","v":0},{"$f":"valuePL(K19,'Utility Functions'!$S$3:$S$7,'Utility Functions'!$T$3:$T$7)","v":0},{"$f":"valueE(L19,'Utility Functions'!$V$3,'Utility Functions'!$V$4,'Utility Functions'!$V$5,'Utility Functions'!$V$6)","v":0},{"$f":"valuePL(M19,'Utility Functions'!$W$3:$W$6,'Utility Functions'!$X$3:$X$6)","v":0},{"$f":"valueE(N19,'Utility Functions'!$Z$3,'Utility Functions'!$Z$4,'Utility Functions'!$Z$5,'Utility Functions'!$Z$6)","v":1},{"$f":"valuePL(O19,'Utility Functions'!$AA$3:$AA$5,'Utility Functions'!$AB$3:$AB$5)","v":0.25},{"$f":"valuePL(P19,'Utility Functions'!$AC$3:$AC$7,'Utility Functions'!$AD$3:$AD$7)","v":0.25},{"$f":"valuePL(Q19,'Utility Functions'!$AE$3:$AE$6,'Utility Functions'!$AF$3:$AF$6)","v":1},{"$f":"valuePL(R19,'Utility Functions'!$AG$3:$AG$6,'Utility Functions'!$AH$3:$AH$6)","v":1},{"$f":"valuePL(S19,'Utility Functions'!$AI$3:$AI$6,'Utility Functions'!$AJ$3:$AJ$6)","v":1},{"$f":"valuePL(T19,'Utility Functions'!$AK$3:$AK$8,'Utility Functions'!$AL$3:$AL$8)","v":1},{"$f":"valuePL(U19,'Utility Functions'!$AM$3:$AM$5,'Utility Functions'!$AN$3:$AN$5)","v":0.25},{"$f":"valuePL(V19,'Utility Functions'!$AO$3:$AO$5,'Utility Functions'!$AP$3:$AP$5)","v":1},{"$f":"valuePL(W19,'Utility Functions'!$AQ$3:$AQ$6,'Utility Functions'!$AR$3:$AR$6)","v":0.75},{"$f":"valuePL(X19,'Utility Functions'!$AS$3:$AS$6,'Utility Functions'!$AT$3:$AT$6)","v":0.2},{"$f":"valuePL(Y19,'Utility Functions'!$AU$3:$AU$6,'Utility Functions'!$AV$3:$AV$6)","v":0.8},{"$f":"valuePL(Z19,'Utility Functions'!$AW$3:$AW$5,'Utility Functions'!$AX$3:$AX$5)","v":0.5},{"$f":"valuePL(AA19,'Utility Functions'!$AY$3:$AY$6,'Utility Functions'!$AZ$3:$AZ$6)","v":0.89999999999999991},{"$f":"valuePL(AB19,'Utility Functions'!$BA$3:$BA$5,'Utility Functions'!$BB$3:$BB$5)","v":0.25},{"$f":"valuePL(AC19,'Utility Functions'!$BC$3:$BC$5,'Utility Functions'!$BD$3:$BD$5)","v":0},10.178462998102468,null,10.178462998102468,0,2.8462998102466792E-2,1.25,4.5,4.4000000000000004]
[19,{"$f":"valueE(B20,'Utility Functions'!$B$3,'Utility Functions'!$B$4,'Utility Functions'!$B$5,'Utility Functions'!$B$6)","v":0.79810469124896843},{"$f":"valueE(C20,'Utility Functions'!$D$3,'Utility Functions'!$D$4,'Utility Functions'!$D$5,'Utility Functions'!$D$6)","v":0.26839655623815994},{"$f":"valuePL(D20,'Utility Functions'!$E$3:$E$5,'Utility Functions'!$F$3:$F$5)","v":0.5},{"$f":"valuePL(E20,'Utility Functions'!$G$3:$G$5,'Utility Functions'!$H$3:$H$5)","v":1},{"$f":"valuePL(F20,'Utility Functions'!$I$3:$I$4,'Utility Functions'!$J$3:$J$5)","v":0},{"$f":"valueE(G20,'Utility Functions'!$L$3,'Utility Functions'!$L$4,'Utility Functions'!$L$5,'Utility Functions'!$L$6)","v":0},{"$f":"valueE(H20,'Utility Functions'!$N$3,'Utility Functions'!$N$4,'Utility Functions'!$N$5,'Utility Functions'!$N$6)","v":0},{"$f":"valuePL(I20,'Utility Functions'!$O$3:$O$6,'Utility Functions'!$P$3:$P$6)","v":0},{"$f":"valuePL(J20,'Utility Functions'!$Q$3:$Q$6,'Utility Functions'!$R$3:$R$6)","v":0},{"$f":"valuePL(K20,'Utility Functions'!$S$3:$S$7,'Utility Functions'!$T$3:$T$7)","v":0},{"$f":"valueE(L20,'Utility Functions'!$V$3,'Utility Functions'!$V$4,'Utility Functions'!$V$5,'Utility Functions'!$V$6)","v":0},{"$f":"valuePL(M20,'Utility Functions'!$W$3:$W$6,'Utility Functions'!$X$3:$X$6)","v":0},{"$f":"valueE(N20,'Utility Functions'!$Z$3,'Utility Functions'!$Z$4,'Utility Functions'!$Z$5,'Utility Functions'!$Z$6)","v":1},{"$f":"valuePL(O20,'Utility Functions'!$AA$3:$AA$5,'Utility Functions'!$AB$3:$AB$5)","v":1},{"$f":"valuePL(P20,'Utility Functions'!$AC$3:$AC$7,'Utility Functions'!$AD$3:$AD$7)","v":0},{"$f":"valuePL(Q20,'Utility Functions'!$AE$3:$AE$6,'Utility Functions'!$AF$3:$AF$6)","v":0},{"$f":"valuePL(R20,'Utility Functions'!$AG$3:$AG$6,'Utility Functions'!$AH$3:$AH$6)","v":0.8},{"$f":"valuePL(S20,'Utility Functions'!$AI$3:$AI$6,'Utility Functions'!$AJ$3:$AJ$6)","v":1},{"$f":"valuePL(T20,'Utility Functions'!$AK$3:$AK$8,'Utility Functions'!$AL$3:$AL$8)","v":0},{"$f":"valuePL(U20,'Utility Functions'!$AM$3:$AM$5,'Utility Functions'!$AN$3:$AN$5)","v":0},{"$f":"valuePL(V20,'Utility Functions'!$AO$3:$AO$5,'Utility Functions'!$AP$3:$AP$5)","v":0.5},{"$f":"valuePL(W20,'Utility Functions'!$AQ$3:$AQ$6,'Utility Functions'!$AR$3:$AR$6)","v":0.2},{"$f":"valuePL(X20,'Utility Functions'!$AS$3:$AS$6,'Utility Functions'!$AT$3:$AT$6)","v":1},{"$f":"valuePL(Y20,'Utility Functions'!$AU$3:$AU$6,'Utility Functions'!$AV$3:$AV$6)","v":0.8},{"$f":"valuePL(Z20,'Utility Functions'!$AW$3:$AW$5,'Utility Functions'!$AX$3:$AX$5)","v":0},{"$f":"valuePL(AA20,'Utility Functions'!$AY$3:$AY$6,'Utility Functions'!$AZ$3:$AZ$6)","v":0.2},{"$f":"valuePL(AB20,'Utility Functions'!$BA$3:$BA$5,'Utility Functions'!$BB$3:$BB$5)","v":0},{"$f":"valuePL(AC20,'Utility Functions'!$BC$3:$BC$5,'Utility Functions'!$BD$3:$BD$5)","v":0.25},9.3165012474871283,null,9.3165012474871283,2.5665012474871283,0,2,1.8,2.95]
[20,{"$f":"valueE(B21,'Utility Functions'!$B$3,'Utility Functions'!$B$4,'Utility Functions'!$B$5,'Utility Functions'!$B$6)","v":0.83470237647280454},{"$f":"valueE(C21,'Utility Functions'!$D$3,'Utility Functions'!$D$4,'Utility Functions'!$D$5,'Utility Functions'!$D$6)","v":0.78989979019422951},{"$f":"valuePL(D21,'Utility Functions'!$E$3:$E$5,'Utility Functions'!$F$3:$F$5)","v":0.5},{"$f":"valuePL(E21,'Utility Functions'!$G$3:$G$5,'Utility Functions'!$H$3:$H$5)","v":1},{"$f":"valuePL(F21,'Utility Functions'!$I$3:$I$4,'Utility Functions'!$J$3:$J$5)","v":0},{"$f":"valueE(G21,'Utility Functions'!$L$3,'Utility Functions'!$L$4,'Utility Functions'!$L$5,'Utility Functions'!$L$6)","v":0},{"$f":"valueE(H21,'Utility Functions'!$N$3,'Utility Functions'!$N$4,'Utility Functions'!$N$5,'Utility Functions'!$N$6)","v":0.41271347248576851},{"$f":"valuePL(I21,'Utility Functions'!$O$3:$O$6,'Utility Functions'!$P$3:$P$6)","v":0.93454545454545446},{"$f":"valuePL(J21,'Utility Functions'!$Q$3:$Q$6,'Utility Functions'!$R$3:$R$6)","v":0.50909090909090915},{"$f":"valuePL(K21,'Utility Functions'!$S$3:$S$7,'Utility Functions'!$T$3:$T$7)","v":0.93454545454545446},{"$f":"valueE(L21,'Utility Functions'!$V$3,'Utility Functions'!$V$4,'Utility Functions'!$V$5,'Utility Functions'!$V$6)","v":0.66666666666666663},{"$f":"valuePL(M21,'Utility Functions'!$W$3:$W$6,'Utility Functions'!$X$3:$X$6)","v":0.50909090909090915},{"$f":"valueE(N21,'Utility Functions'!$Z$3,'Utility Functions'!$Z$4,'Utility Functions'!$Z$5,'Utility Functions'!$Z$6)","v":1},{"$f":"valuePL(O21,'Utility Functions'!$AA$3:$AA$5,'Utility Functions'!$AB$3:$AB$5)","v":1},{"$f":"valuePL(P21,'Utility Functions'!$AC$3:$AC$7,'Utility Functions'!$AD$3:$AD$7)","v":0.25},{"$f":"valuePL(Q21,'Utility Functions'!$AE$3:$AE$6,'Utility Functions'!$AF$3:$AF$6)","v":0},{"$f":"valuePL(R21,'Utility Functions'!$AG$3:$AG$6,'Utility Functions'!$AH$3:$AH$6)","v":1},{"$f":"valuePL(S21,'Utility Functions'!$AI$3:$AI$6,'Utility Functions'!$AJ$3:$AJ$6)","v":1},{"$f":"valuePL(T21,'Utility Functions'!$AK$3:$AK$8,'Utility Functions'!$AL$3:$AL$8)","v":0.6},{"$f":"valuePL(U21,'Utility Functions'!$AM$3:$AM$5,'Utility Functions'!$AN$3:$AN$5)","v":1},{"$f":"valuePL(V21,'Utility Functions'!$AO$3:$AO$5,'Utility Functions'!$AP$3:$AP$5)","v":0.5},{"$f":"valuePL(W21,'Utility Functions'!$AQ$3:$AQ$6,'Utility Functions'!$AR$3:$AR$6)","v":0},{"$f":"valuePL(X21,'Utility Functions'!$AS$3:$AS$6,'Utility Functions'!$AT$3:$AT$6)","v":0},{"$f":"valuePL(Y21,'Utility Functions'!$AU$3:$AU$6,'Utility Functions'!$AV$3:$AV$6)","v":0.2},{"$f":"valuePL(Z21,'Utility Functions'!$AW$3:$AW$5,'Utility Functions'!$AX$3:$AX$5)","v":1},{"$f":"valuePL(AA21,'Utility Functions'!$AY$3:$AY$6,'Utility Functions'!$AZ$3:$AZ$6)","v":0.2},{"$f":"valuePL(AB21,'Utility Functions'!$BA$3:$BA$5,'Utility Functions'!$BB$3:$BB$5)","v":0},{"$f":"valuePL(AC21,'Utility Functions'!$BC$3:$BC$5,'Utility Functions'!$BD$3:$BD$5)","v":0.25},15.091255033092194,null,15.091255033092196,3.1246021666670343,3.9666528664251626,2,3.85,2.15]
[21,{"$f":"valueE(B22,'Utility Functions'!$B$3,'Utility Functions'!$B$4,'Utility Functions'!$B$5,'Utility Functions'!$B$6)","v":0},{"$f":"valueE(C22,'Utility Functions'!$D$3,'Utility Functions'!$D$4,'Utility Functions'!$D$5,'Utility Functions'!$D$6)","v":0},{"$f":"valuePL(D22,'Utility Functions'!$E$3:$E$5,'Utility Functions'!$F$3:$F$5)","v":0},{"$f":"valuePL(E22,'Utility Functions'!$G$3:$G$5,'Utility Functions'!$H$3:$H$5)","v":0},{"$f":"valuePL(F22,'Utility Functions'!$I$3:$I$4,'Utility Functions'!$J$3:$J$5)","v":0},{"$f":"valueE(G22,'Utility Functions'!$L$3,'Utility Functions'!$L$4,'Utility Functions'!$L$5,'Utility Functions'!$L$6)","v":0},{"$f":"valueE(H22,'Utility Functions'!$N$3,'Utility Functions'!$N$4,'Utility Functions'!$N$5,'Utility Functions'!$N$6)","v":0},{"$f":"valuePL(I22,'Utility Functions'!$O$3:$O$6,'Utility Functions'!$P$3:$P$6)","v":0},{"$f":"valuePL(J22,'Utility Functions'!$Q$3:$Q$6,'Utility Functions'!$R$3:$R$6)","v":0},{"$f":"valuePL(K22,'Utility Functions'!$S$3:$S$7,'Utility Functions'!$T$3:$T$7)","v":0},{"$f":"valueE(L22,'Utility Functions'!$V$3,'Utility Functions'!$V$4,'Utility Functions'!$V$5,'Utility Functions'!$V$6)","v":0},{"$f":"valuePL(M22,'Utility Functions'!$W$3:$W$6,'Utility Functions'!$X$3:$X$6)","v":0},{"$f":"valueE(N22,'Utility Functions'!$Z$3,'Utility Functions'!$Z$4,'Utility Functions'!$Z$5,'Utility Functions'!$Z$6)","v":1},{"$f":"valuePL(O22,'Utility Functions'!$AA$3:$AA$5,'Utility Functions'!$AB$3:$AB$5)","v":1},{"$f":"valuePL(P22,'Utility Functions'!$AC$3:$AC$7,'Utility Functions'!$AD$3:$AD$7)","v":0},{"$f":"valuePL(Q22,'Utility Functions'!$AE$3:$AE$6,'Utility Functions'!$AF$3:$AF$6)","v":0.1},{"$f":"valuePL(R22,'Utility Functions'!$AG$3:$AG$6,'Utility Functions'!$AH$3:$AH$6)","v":1},{"$f":"valuePL(S22,'Utility Functions'!$AI$3:$AI$6,'Utility Functions'!$AJ$3:$AJ$6)","v":1},{"$f":"valuePL(T22,'Utility Functions'!$AK$3:$AK$8,'Utility Functions'!$AL$3:$AL$8)","v":1},{"$f":"valuePL(U22,'Utility Functions'!$AM$3:$AM$5,'Utility Functions'!$AN$3:$AN$5)","v":0.25},{"$f":"valuePL(V22,'Utility Functions'!$AO$3:$AO$5,'Utility Functions'!$AP$3:$AP$5)","v":0},{"$f":"valuePL(W22,'Utility Functions'!$AQ$3:$AQ$6,'Utility Functions'!$AR$3:$AR$6)","v":0.75},{"$f":"valuePL(X22,'Utility Functions'!$AS$3:$AS$6,'Utility Functions'!$AT$3:$AT$6)","v":1},{"$f":"valuePL(Y22,'Utility Functions'!$AU$3:$AU$6,'Utility Functions'!$AV$3:$AV$6)","v":0.2},{"$f":"valuePL(Z22,'Utility Functions'!$AW$3:$AW$5,'Utility Functions'!$AX$3:$AX$5)","v":0},{"$f":"valuePL(AA22,'Utility Functions'!$AY$3:$AY$6,'Utility Functions'!$AZ$3:$AZ$6)","v":1},{"$f":"valuePL(AB22,'Utility Functions'!$BA$3:$BA$5,'Utility Functions'!$BB$3:$BB$5)","v":0.25},{"$f":"valuePL(AC22,'Utility Functions'!$BC$3:$BC$5,'Utility Functions'!$BD$3:$BD$5)","v":1},9.5500000000000007,null,9.5500000000000007,0,0,2,3.35,4.2]
[22,{"$f":"valueE(B23,'Utility Functions'!$B$3,'Utility Functions'!$B$4,'Utility Functions'!$B$5,'Utility Functions'!$B$6)","v":0},{"$f":"valueE(C23,'Utility Functions'!$D$3,'Utility Functions'!$D$4,'Utility Functions'!$D$5,'Utility Functions'!$D$6)","v":0},{"$f":"valuePL(D23,'Utility Functions'!$E$3:$E$5,'Utility Functions'!$F$3:$F$5)","v":0},{"$f":"valuePL(E23,'Utility Functions'!$G$3:$G$5,'Utility Functions'!$H$3:$H$5)","v":0},{"$f":"valuePL(F23,'Utility Functions'!$I$3:$I$4,'Utility Functions'!$J$3:$J$5)","v":0},{"$f":"valueE(G23,'Utility Functions'!$L$3,'Utility Functions'!$L$4,'Utility Functions'!$L$5,'Utility Functions'!$L$6)","v":8.6021505376344093E-2},{"$f":"valueE(H23,'Utility Functions'!$N$3,'Utility Functions'!$N$4,'Utility Functions'!$N$5,'Utility Functions'!$N$6)","v":6.0721062618595827E-2},{"$f":"valuePL(I23,'Utility Functions'!$O$3:$O$6,'Utility Functions'!$P$3:$P$6)","v":0},{"$f":"valuePL(J23,'Utility Functions'!$Q$3:$Q$6,'Utility Functions'!$R$3:$R$6)","v":0},{"$f":"valuePL(K23,'Utility Functions'!$S$3:$S$7,'Utility Functions'!$T$3:$T$7)","v":0},{"$f":"valueE(L23,'Utility Functions'!$V$3,'Utility Functions'!$V$4,'Utility Functions'!$V$5,'Utility Functions'!$V$6)","v":0},{"$f":"valuePL(M23,'Utility Functions'!$W$3:$W$6,'Utility Functions'!$X$3:$X$6)","v":0},{"$f":"valueE(N23,'Utility Functions'!$Z$3,'Utility Functions'!$Z$4,'Utility Functions'!$Z$5,'Utility Functions'!$Z$6)","v":0.125},{"$f":"valuePL(O23,'Utility Functions'!$AA$3:$AA$5,'Utility Functions'!$AB$3:$AB$5)","v":1},{"$f":"valuePL(P23,'Utility Functions'!$AC$3:$AC$7,'Utility Functions'!$AD$3:$AD$7)","v":1},{"$f":"valuePL(Q23,'Utility Functions'!$AE$3:$AE$6,'Utility Functions'!$AF$3:$AF$6)","v":0.5},{"$f":"valuePL(R23,'Utility Functions'!$AG$3:$AG$6,'Utility Functions'!$AH$3:$AH$6)","v":0.8},{"$f":"valuePL(S23,'Utility Functions'!$AI$3:$AI$6,'Utility Functions'!$AJ$3:$AJ$6)","v":1},{"$f":"valuePL(T23,'Utility Functions'!$AK$3:$AK$8,'Utility Functions'!$AL$3:$AL$8)","v":1},{"$f":"valuePL(U23,'Utility Functions'!$AM$3:$AM$5,'Utility Functions'!$AN$3:$AN$5)","v":0},{"$f":"valuePL(V23,'Utility Functions'!$AO$3:$AO$5,'Utility Functions'!$AP$3:$AP$5)","v":0.5},{"$f":"valuePL(W23,'Utility Functions'!$AQ$3:$AQ$6,'Utility Functions'!$AR$3:$AR$6)","v":0.75},{"$f":"valuePL(X23,'Utility Functions'!$AS$3:$AS$6,'Utility Functions'!$AT$3:$AT$6)","v":0.2},{"$f":"valuePL(Y23,'Utility Functions'!$AU$3:$AU$6,'Utility Functions'!$AV$3:$AV$6)","v":0},{"$f":"valuePL(Z23,'Utility Functions'!$AW$3:$AW$5,'Utility Functions'!$AX$3:$AX$5)","v":1},{"$f":"valuePL(AA23,'Utility Functions'!$AY$3:$AY$6,'Utility Functions'!$AZ$3:$AZ$6)","v":0.2},{"$f":"valuePL(AB23,'Utility Functions'!$BA$3:$BA$5,'Utility Functions'!$BB$3:$BB$5)","v":1},{"$f":"valuePL(AC23,'Utility Functions'!$BC$3:$BC$5,'Utility Functions'!$BD$3:$BD$5)","v":0.25},9.471742567994939,null,9.4717425679949407,0,0.14674256799493993,1.125,4.3,3.9000000000000004]
[23,{"$f":"valueE(B24,'Utility Functions'!$B$3,'Utility Functions'!$B$4,'Utility Functions'!$B$5,'Utility Functions'!$B$6)","v":0.83470237647280454},{"$f":"valueE(C24,'Utility Functions'!$D$3,'Utility Functions'!$D$4,'Utility Functions'!$D$5,'Utility Functions'!$D$6)","v":0.84744836833951609},{"$f":"valuePL(D24,'Utility Functions'!$E$3:$E$5,'Utility Functions'!$F$3:$F$5)","v":1},{"$f":"valuePL(E24,'Utility Functions'!$G$3:$G$5,'Utility Functions'!$H$3:$H$5)","v":0},{"$f":"valuePL(F24,'Utility Functions'!$I$3:$I$4,'Utility Functions'!$J$3:$J$5)","v":0},{"$f":"valueE(G24,'Utility Functions'!$L$3,'Utility Functions'!$L$4,'Utility Functions'!$L$5,'Utility Functions'!$L$6)","v":0},{"$f":"valueE(H24,'Utility Functions'!$N$3,'Utility Functions'!$N$4,'Utility Functions'!$N$5,'Utility Functions'!$N$6)","v":0},{"$f":"valuePL(I24,'Utility Functions'!$O$3:$O$6,'Utility Functions'!$P$3:$P$6)","v":0},{"$f":"valuePL(J24,'Utility Functions'!$Q$3:$Q$6,'Utility Functions'!$R$3:$R$6)","v":0},{"$f":"valuePL(K24,'Utility Functions'!$S$3:$S$7,'Utility Functions'!$T$3:$T$7)","v":0},{"$f":"valueE(L24,'Utility Functions'!$V$3,'Utility Functions'!$V$4,'Utility Functions'!$V$5,'Utility Functions'!$V$6)","v":0},{"$f":"valuePL(M24,'Utility Functions'!$W$3:$W$6,'Utility Functions'!$X$3:$X$6)","v":0},{"$f":"valueE(N24,'Utility Functions'!$Z$3,'Utility Functions'!$Z$4,'Utility Functions'!$Z$5,'Utility Functions'!$Z$6)","v":0},{"$f":"valuePL(O24,'Utility Functions'!$AA$3:$AA$5,'Utility Functions'!$AB$3:$AB$5)","v":0},{"$f":"valuePL(P24,'Utility Functions'!$AC$3:$AC$7,'Utility Functions'!$AD$3:$AD$7)","v":0.75},{"$f":"valuePL(Q24,'Utility Functions'!$AE$3:$AE$6,'Utility Functions'!$AF$3:$AF$6)","v":0},{"$f":"valuePL(R24,'Utility Functions'!$AG$3:$AG$6,'Utility Functions'!$AH$3:$AH$6)","v":1},{"$f":"valuePL(S24,'Utility Functions'!$AI$3:$AI$6,'Utility Functions'!$AJ$3:$AJ$6)","v":1},{"$f":"valuePL(T24,'Utility Functions'!$AK$3:$AK$8,'Utility Functions'!$AL$3:$AL$8)","v":1},{"$f":"valuePL(U24,'Utility Functions'!$AM$3:$AM$5,'Utility Functions'!$AN$3:$AN$5)","v":0},{"$f":"valuePL(V24,'Utility Functions'!$AO$3:$AO$5,'Utility Functions'!$AP$3:$AP$5)","v":1},{"$f":"valuePL(W24,'Utility Functions'!$AQ$3:$AQ$6,'Utility Functions'!$AR$3:$AR$6)","v":0.2},{"$f":"valuePL(X24,'Utility Functions'!$AS$3:$AS$6,'Utility Functions'!$AT$3:$AT$6)","v":0.75},{"$f":"valuePL(Y24,'Utility Functions'!$AU$3:$AU$6,'Utility Functions'!$AV$3:$AV$6)","v":0.2},{"$f":"valuePL(Z24,'Utility Functions'!$AW$3:$AW$5,'Utility Functions'!$AX$3:$AX$5)","v":0.5},{"$f":"valuePL(AA24,'Utility Functions'!$AY$3:$AY$6,'Utility Functions'!$AZ$3:$AZ$6)","v":0.2},{"$f":"valuePL(AB24,'Utility Functions'!$BA$3:$BA$5,'Utility Functions'!$BB$3:$BB$5)","v":0},{"$f":"valuePL(AC24,'Utility Functions'!$BC$3:$BC$5,'Utility Functions'!$BD$3:$BD$5)","v":0.25},9.5321507448123199,null,9.5321507448123199,2.6821507448123207,0,0,3.75,3.1]
[24,{"$f":"valueE(B25,'Utility Functions'!$B$3,'Utility Functions'!$B$4,'Utility Functions'!$B$5,'Utility Functions'!$B$6)","v":0.63212151658375171},{"$f":"valueE(C25,'Utility Functions'!$D$3,'Utility Functions'!$D$4,'Utility Functions'!$D$5,'Utility Functions'!$D$6)","v":0.46475967153745396},{"$f":"valuePL(D25,'Utility Functions'!$E$3:$E$5,'Utility Functions'!$F$3:$F$5)","v":1},{"$f":"valuePL(E25,'Utility Functions'!$G$3:$G$5,'Utility Functions'!$H$3:$H$5)","v":0},{"$f":"valuePL(F25,'Utility Functions'!$I$3:$I$4,'Utility Functions'!$J$3:$J$5)","v":0},{"$f":"valueE(G25,'Utility Functions'!$L$3,'Utility Functions'!$L$4,'Utility Functions'!$L$5,'Utility Functions'!$L$6)","v":0},{"$f":"valueE(H25,'Utility Functions'!$N$3,'Utility Functions'!$N$4,'Utility Functions'!$N$5,'Utility Functions'!$N$6)","v":0},{"$f":"valuePL(I25,'Utility Functions'!$O$3:$O$6,'Utility Functions'!$P$3:$P$6)","v":0},{"$f":"valuePL(J25,'Utility Functions'!$Q$3:$Q$6,'Utility Functions'!$R$3:$R$6)","v":0},{"$f":"valuePL(K25,'Utility Functions'!$S$3:$S$7,'Utility Functions'!$T$3:$T$7)","v":0},{"$f":"valueE(L25,'Utility Functions'!$V$3,'Utility Functions'!$V$4,'Utility Functions'!$V$5,'Utility Functions'!$V$6)","v":0},{"$f":"valuePL(M25,'Utility Functions'!$W$3:$W$6,'Utility Functions'!$X$3:$X$6)","v":0},{"$f":"valueE(N25,'Utility Functions'!$Z$3,'Utility Functions'!$Z$4,'Utility Functions'!$Z$5,'Utility Functions'!$Z$6)","v":0},{"$f":"valuePL(O25,'Utility Functions'!$AA$3:$AA$5,'Utility Functions'!$AB$3:$AB$5)","v":0},{"$f":"valuePL(P25,'Utility Functions'!$AC$3:$AC$7,'Utility Functions'!$AD$3:$AD$7)","v":0},{"$f":"valuePL(Q25,'Utility Functions'!$AE$3:$AE$6,'Utility Functions'!$AF$3:$AF$6)","v":0},{"$f":"valuePL(R25,'Utility Functions'!$AG$3:$AG$6,'Utility Functions'!$AH$3:$AH$6)","v":1},{"$f":"valuePL(S25,'Utility Functions'!$AI$3:$AI$6,'Utility Functions'!$AJ$3:$AJ$6)","v":1},{"$f":"valuePL(T25,'Utility Functions'!$AK$3:$AK$8,'Utility Functions'!$AL$3:$AL$8)","v":1},{"$f":"valuePL(U25,'Utility Functions'!$AM$3:$AM$5,'Utility Functions'!$AN$3:$AN$5)","v":0},{"$f":"valuePL(V25,'Utility Functions'!$AO$3:$AO$5,'Utility Functions'!$AP$3:$AP$5)","v":0},{"$f":"valuePL(W25,'Utility Functions'!$AQ$3:$AQ$6,'Utility Functions'!$AR$3:$AR$6)","v":1},{"$f":"valuePL(X25,'Utility Functions'!$AS$3:$AS$6,'Utility Functions'!$AT$3:$AT$6)","v":0.2},{"$f":"valuePL(Y25,'Utility Functions'!$AU$3:$AU$6,'Utility Functions'!$AV$3:$AV$6)","v":1},{"$f":"valuePL(Z25,'Utility Functions'!$AW$3:$AW$5,'Utility Functions'!$AX$3:$AX$5)","v":1},{"$f":"valuePL(AA25,'Utility Functions'!$AY$3:$AY$6,'Utility Functions'!$AZ$3:$AZ$6)","v":0.2},{"$f":"valuePL(AB25,'Utility Functions'!$BA$3:$BA$5,'Utility Functions'!$BB$3:$BB$5)","v":0},{"$f":"valuePL(AC25,'Utility Functions'!$BC$3:$BC$5,'Utility Functions'!$BD$3:$BD$5)","v":1},9.4968811881212041,null,9.4968811881212059,2.0968811881212055,0,0,3,4.4000000000000004]
[25,{"$f":"valueE(B26,'Utility Functions'!$B$3,'Utility Functions'!$B$4,'Utility Functions'!$B$5,'Utility Functions'!$B$6)","v":0.83470237647280454},{"$f":"valueE(C26,'Utility Functions'!$D$3,'Utility Functions'!$D$4,'Utility Functions'!$D$5,'Utility Functions'!$D$6)","v":0.84744836833951609},{"$f":"valuePL(D26,'Utility Functions'!$E$3:$E$5,'Utility Functions'!$F$3:$F$5)","v":1},{"$f":"valuePL(E26,'Utility Functions'!$G$3:$G$5,'Utility Functions'!$H$3:$H$5)","v":0},{"$f":"valuePL(F26,'Utility Functions'!$I$3:$I$4,'Utility Functions'!$J$3:$J$5)","v":0},{"$f":"valueE(G26,'Utility Functions'!$L$3,'Utility Functions'!$L$4,'Utility Functions'!$L$5,'Utility Functions'!$L$6)","v":0.94623655913978499},{"$f":"valueE(H26,'Utility Functions'!$N$3,'Utility Functions'!$N$4,'Utility Functions'!$N$5,'Utility Functions'!$N$6)","v":0.29222011385199242},{"$f":"valuePL(I26,'Utility Functions'!$O$3:$O$6,'Utility Functions'!$P$3:$P$6)","v":0},{"$f":"valuePL(J26,'Utility Functions'!$Q$3:$Q$6,'Utility Functions'!$R$3:$R$6)","v":0},{"$f":"valuePL(K26,'Utility Functions'!$S$3:$S$7,'Utility Functions'!$T$3:$T$7)","v":0},{"$f":"valueE(L26,'Utility Functions'!$V$3,'Utility Functions'!$V$4,'Utility Functions'!$V$5,'Utility Functions'!$V$6)","v":0},{"$f":"valuePL(M26,'Utility Functions'!$W$3:$W$6,'Utility Functions'!$X$3:$X$6)","v":0},{"$f":"valueE(N26,'Utility Functions'!$Z$3,'Utility Functions'!$Z$4,'Utility Functions'!$Z$5,'Utility Functions'!$Z$6)","v":1},{"$f":"valuePL(O26,'Utility Functions'!$AA$3:$AA$5,'Utility Functions'!$AB$3:$AB$5)","v":0.25},{"$f":"valuePL(P26,'Utility Functions'!$AC$3:$AC$7,'Utility Functions'!$AD$3:$AD$7)","v":0.5},{"$f":"valuePL(Q26,'Utility Functions'!$AE$3:$AE$6,'Utility Functions'!$AF$3:$AF$6)","v":0.5},{"$f":"valuePL(R26,'Utility Functions'!$AG$3:$AG$6,'Utility Functions'!$AH$3:$AH$6)","v":1},{"$f":"valuePL(S26,'Utility Functions'!$AI$3:$AI$6,'Utility Functions'!$AJ$3:$AJ$6)","v":1},{"$f":"valuePL(T26,'Utility Functions'!$AK$3:$AK$8,'Utility Functions'!$AL$3:$AL$8)","v":0},{"$f":"valuePL(U26,'Utility Functions'!$AM$3:$AM$5,'Utility Functions'!$AN$3:$AN$5)","v":0},{"$f":"valuePL(V26,'Utility Functions'!$AO$3:$AO$5,'Utility Functions'!$AP$3:$AP$5)","v":1},{"$f":"valuePL(W26,'Utility Functions'!$AQ$3:$AQ$6,'Utility Functions'!$AR$3:$AR$6)","v":0.2},{"$f":"valuePL(X26,'Utility Functions'!$AS$3:$AS$6,'Utility Functions'!$AT$3:$AT$6)","v":1},{"$f":"valuePL(Y26,'Utility Functions'!$AU$3:$AU$6,'Utility Functions'!$AV$3:$AV$6)","v":0.8},{"$f":"valuePL(Z26,'Utility Functions'!$AW$3:$AW$5,'Utility Functions'!$AX$3:$AX$5)","v":0.5},{"$f":"valuePL(AA26,'Utility Functions'!$AY$3:$AY$6,'Utility Functions'!$AZ$3:$AZ$6)","v":0.2},{"$f":"valuePL(AB26,'Utility Functions'!$BA$3:$BA$5,'Utility Functions'!$BB$3:$BB$5)","v":1},{"$f":"valuePL(AC26,'Utility Functions'!$BC$3:$BC$5,'Utility Functions'!$BD$3:$BD$5)","v":1},13.870607417804099,null,13.870607417804099,2.6821507448123207,1.2384566729917774,1.25,3,5.7]
[26,{"$f":"valueE(B27,'Utility Functions'!$B$3,'Utility Functions'!$B$4,'Utility Functions'!$B$5,'Utility Functions'!$B$6)","v":0.96662819462069161},{"$f":"valueE(C27,'Utility Functions'!$D$3,'Utility Functions'!$D$4,'Utility Functions'!$D$5,'Utility Functions'!$D$6)","v":0.84744836833951609},{"$f":"valuePL(D27,'Utility Functions'!$E$3:$E$5,'Utility Functions'!$F$3:$F$5)","v":1},{"$f":"valuePL(E27,'Utility Functions'!$G$3:$G$5,'Utility Functions'!$H$3:$H$5)","v":0.5},{"$f":"valuePL(F27,'Utility Functions'!$I$3:$I$4,'Utility Functions'!$J$3:$J$5)","v":0},{"$f":"valueE(G27,'Utility Functions'!$L$3,'Utility Functions'!$L$4,'Utility Functions'!$L$5,'Utility Functions'!$L$6)","v":0},{"$f":"valueE(H27,'Utility Functions'!$N$3,'Utility Functions'!$N$4,'Utility Functions'!$N$5,'Utility Functions'!$N$6)","v":0},{"$f":"valuePL(I27,'Utility Functions'!$O$3:$O$6,'Utility Functions'!$P$3:$P$6)","v":0},{"$f":"valuePL(J27,'Utility Functions'!$Q$3:$Q$6,'Utility Functions'!$R$3:$R$6)","v":0},{"$f":"valuePL(K27,'Utility Functions'!$S$3:$S$7,'Utility Functions'!$T$3:$T$7)","v":0},{"$f":"valueE(L27,'Utility Functions'!$V$3,'Utility Functions'!$V$4,'Utility Functions'!$V$5,'Utility Functions'!$V$6)","v":0},{"$f":"valuePL(M27,'Utility Functions'!$W$3:$W$6,'Utility Functions'!$X$3:$X$6)","v":0},{"$f":"valueE(N27,'Utility Functions'!$Z$3,'Utility Functions'!$Z$4,'Utility Functions'!$Z$5,'Utility Functions'!$Z$6)","v":0},{"$f":"valuePL(O27,'Utility Functions'!$AA$3:$AA$5,'Utility Functions'!$AB$3:$AB$5)","v":0},{"$f":"valuePL(P27,'Utility Functions'!$AC$3:$AC$7,'Utility Functions'!$AD$3:$AD$7)","v":0.75},{"$f":"valuePL(Q27,'Utility Functions'!$AE$3:$AE$6,'Utility Functions'!$AF$3:$AF$6)","v":0},{"$f":"valuePL(R27,'Utility Functions'!$AG$3:$AG$6,'Utility Functions'!$AH$3:$AH$6)","v":1},{"$f":"valuePL(S27,'Utility Functions'!$AI$3:$AI$6,'Utility Functions'!$AJ$3:$AJ$6)","v":1},{"$f":"valuePL(T27,'Utility Functions'!$AK$3:$AK$8,'Utility Functions'!$AL$3:$AL$8)","v":0.8},{"$f":"valuePL(U27,'Utility Functions'!$AM$3:$AM$5,'Utility Functions'!$AN$3:$AN$5)","v":0},{"$f":"valuePL(V27,'Utility Functions'!$AO$3:$AO$5,'Utility Functions'!$AP$3:$AP$5)","v":1},{"$f":"valuePL(W27,'Utility Functions'!$AQ$3:$AQ$6,'Utility Functions'!$AR$3:$AR$6)","v":0.2},{"$f":"valuePL(X27,'Utility Functions'!$AS$3:$AS$6,'Utility Functions'!$AT$3:$AT$6)","v":0},{"$f":"valuePL(Y27,'Utility Functions'!$AU$3:$AU$6,'Utility Functions'!$AV$3:$AV$6)","v":0.8},{"$f":"valuePL(Z27,'Utility Functions'!$AW$3:$AW$5,'Utility Functions'!$AX$3:$AX$5)","v":0},{"$f":"valuePL(AA27,'Utility Functions'!$AY$3:$AY$6,'Utility Functions'!$AZ$3:$AZ$6)","v":0.2},{"$f":"valuePL(AB27,'Utility Functions'!$BA$3:$BA$5,'Utility Functions'!$BB$3:$BB$5)","v":1},{"$f":"valuePL(AC27,'Utility Functions'!$BC$3:$BC$5,'Utility Functions'!$BD$3:$BD$5)","v":1},11.064076562960208,null,11.064076562960206,3.3140765629602078,0,0,3.55,4.2]
[27,{"$f":"valueE(B28,'Utility Functions'!$B$3,'Utility Functions'!$B$4,'Utility Functions'!$B$5,'Utility Functions'!$B$6)","v":0},{"$f":"valueE(C28,'Utility Functions'!$D$3,'Utility Functions'!$D$4,'Utility Functions'!$D$5,'Utility Functions'!$D$6)","v":0.46475967153745396},{"$f":"valuePL(D28,'Utility Functions'!$E$3:$E$5,'Utility Functions'!$F$3:$F$5)","v":1},{"$f":"valuePL(E28,'Utility Functions'!$G$3:$G$5,'Utility Functions'!$H$3:$H$5)","v":0},{"$f":"valuePL(F28,'Utility Functions'!$I$3:$I$4,'Utility Functions'!$J$3:$J$5)","v":0},{"$f":"valueE(G28,'Utility Functions'!$L$3,'Utility Functions'!$L$4,'Utility Functions'!$L$5,'Utility Functions'!$L$6)","v":0},{"$f":"valueE(H28,'Utility Functions'!$N$3,'Utility Functions'!$N$4,'Utility Functions'!$N$5,'Utility Functions'!$N$6)","v":0},{"$f":"valuePL(I28,'Utility Functions'!$O$3:$O$6,'Utility Functions'!$P$3:$P$6)","v":0},{"$f":"valuePL(J28,'Utility Functions'!$Q$3:$Q$6,'Utility Functions'!$R$3:$R$6)","v":0},{"$f":"valuePL(K28,'Utility Functions'!$S$3:$S$7,'Utility Functions'!$T$3:$T$7)","v":1},{"$f":"valueE(L28,'Utility Functions'!$V$3,'Utility Functions'!$V$4,'Utility Functions'!$V$5,'Utility Functions'!$V$6)","v":0},{"$f":"valuePL(M28,'Utility Functions'!$W$3:$W$6,'Utility Functions'!$X$3:$X$6)","v":0.1},{"$f":"valueE(N28,'Utility Functions'!$Z$3,'Utility Functions'!$Z$4,'Utility Functions'!$Z$5,'Utility Functions'!$Z$6)","v":0},{"$f":"valuePL(O28,'Utility Functions'!$AA$3:$AA$5,'Utility Functions'!$AB$3:$AB$5)","v":0},{"$f":"valuePL(P28,'Utility Functions'!$AC$3:$AC$7,'Utility Functions'!$AD$3:$AD$7)","v":0.5},{"$f":"valuePL(Q28,'Utility Functions'!$AE$3:$AE$6,'Utility Functions'!$AF$3:$AF$6)","v":0.5},{"$f":"valuePL(R28,'Utility Functions'!$AG$3:$AG$6,'Utility Functions'!$AH$3:$AH$6)","v":1},{"$f":"valuePL(S28,'Utility Functions'!$AI$3:$AI$6,'Utility Functions'!$AJ$3:$AJ$6)","v":1},{"$f":"valuePL(T28,'Utility Functions'!$AK$3:$AK$8,'Utility Functions'!$AL$3:$AL$8)","v":1},{"$f":"valuePL(U28,'Utility Functions'!$AM$3:$AM$5,'Utility Functions'!$AN$3:$AN$5)","v":0},{"$f":"valuePL(V28,'Utility Functions'!$AO$3:$AO$5,'Utility Functions'!$AP$3:$AP$5)","v":0.5},{"$f":"valuePL(W28,'Utility Functions'!$AQ$3:$AQ$6,'Utility Functions'!$AR$3:$AR$6)","v":0.75},{"$f":"valuePL(X28,'Utility Functions'!$AS$3:$AS$6,'Utility Functions'!$AT$3:$AT$6)","v":1},{"$f":"valuePL(Y28,'Utility Functions'!$AU$3:$AU$6,'Utility Functions'!$AV$3:$AV$6)","v":0.2},{"$f":"valuePL(Z28,'Utility Functions'!$AW$3:$AW$5,'Utility Functions'!$AX$3:$AX$5)","v":0},{"$f":"valuePL(AA28,'Utility Functions'!$AY$3:$AY$6,'Utility Functions'!$AZ$3:$AZ$6)","v":0},{"$f":"valuePL(AB28,'Utility Functions'!$BA$3:$BA$5,'Utility Functions'!$BB$3:$BB$5)","v":0},{"$f":"valuePL(AC28,'Utility Functions'!$BC$3:$BC$5,'Utility Functions'!$BD$3:$BD$5)","v":0},9.0147596715374529,null,9.0147596715374547,1.464759671537454,1.1000000000000001,0,4,2.4500000000000002]
[28,{"$f":"valueE(B29,'Utility Functions'!$B$3,'Utility Functions'!$B$4,'Utility Functions'!$B$5,'Utility Functions'!$B$6)","v":0.4511890475224023},{"$f":"valueE(C29,'Utility Functions'!$D$3,'Utility Functions'!$D$4,'Utility Functions'!$D$5,'Utility Functions'!$D$6)","v":0.46475967153745396},{"$f":"valuePL(D29,'Utility Functions'!$E$3:$E$5,'Utility Functions'!$F$3:$F$5)","v":1},{"$f":"valuePL(E29,'Utility Functions'!$G$3:$G$5,'Utility Functions'!$H$3:$H$5)","v":0},{"$f":"valuePL(F29,'Utility Functions'!$I$3:$I$4,'Utility Functions'!$J$3:$J$5)","v":1},{"$f":"valueE(G29,'Utility Functions'!$L$3,'Utility Functions'!$L$4,'Utility Functions'!$L$5,'Utility Functions'!$L$6)","v":0},{"$f":"valueE(H29,'Utility Functions'!$N$3,'Utility Functions'!$N$4,'Utility Functions'!$N$5,'Utility Functions'!$N$6)","v":0},{"$f":"valuePL(I29,'Utility Functions'!$O$3:$O$6,'Utility Functions'!$P$3:$P$6)","v":0},{"$f":"valuePL(J29,'Utility Functions'!$Q$3:$Q$6,'Utility Functions'!$R$3:$R$6)","v":0},{"$f":"valuePL(K29,'Utility Functions'!$S$3:$S$7,'Utility Functions'!$T$3:$T$7)","v":0},{"$f":"valueE(L29,'Utility Functions'!$V$3,'Utility Functions'!$V$4,'Utility Functions'!$V$5,'Utility Functions'!$V$6)","v":0.33333333333333331},{"$f":"valuePL(M29,'Utility Functions'!$W$3:$W$6,'Utility Functions'!$X$3:$X$6)","v":0.1},{"$f":"valueE(N29,'Utility Functions'!$Z$3,'Utility Functions'!$Z$4,'Utility Functions'!$Z$5,'Utility Functions'!$Z$6)","v":0},{"$f":"valuePL(O29,'Utility Functions'!$AA$3:$AA$5,'Utility Functions'!$AB$3:$AB$5)","v":0},{"$f":"valuePL(P29,'Utility Functions'!$AC$3:$AC$7,'Utility Functions'!$AD$3:$AD$7)","v":1},{"$f":"valuePL(Q29,'Utility Functions'!$AE$3:$AE$6,'Utility Functions'!$AF$3:$AF$6)","v":0},{"$f":"valuePL(R29,'Utility Functions'!$AG$3:$AG$6,'Utility Functions'!$AH$3:$AH$6)","v":1},{"$f":"valuePL(S29,'Utility Functions'!$AI$3:$AI$6,'Utility Functions'!$AJ$3:$AJ$6)","v":1},{"$f":"valuePL(T29,'Utility Functions'!$AK$3:$AK$8,'Utility Functions'!$AL$3:$AL$8)","v":0.8},{"$f":"valuePL(U29,'Utility Functions'!$AM$3:$AM$5,'Utility Functions'!$AN$3:$AN$5)","v":0},{"$f":"valuePL(V29,'Utility Functions'!$AO$3:$AO$5,'Utility Functions'!$AP$3:$AP$5)","v":1},{"$f":"valuePL(W29,'Utility Functions'!$AQ$3:$AQ$6,'Utility Functions'!$AR$3:$AR$6)","v":1},{"$f":"valuePL(X29,'Utility Functions'!$AS$3:$AS$6,'Utility Functions'!$AT$3:$AT$6)","v":1},{"$f":"valuePL(Y29,'Utility Functions'!$AU$3:$AU$6,'Utility Functions'!$AV$3:$AV$6)","v":0.2},{"$f":"valuePL(Z29,'Utility Functions'!$AW$3:$AW$5,'Utility Functions'!$AX$3:$AX$5)","v":0},{"$f":"valuePL(AA29,'Utility Functions'!$AY$3:$AY$6,'Utility Functions'!$AZ$3:$AZ$6)","v":0.89999999999999991},{"$f":"valuePL(AB29,'Utility Functions'!$BA$3:$BA$5,'Utility Functions'!$BB$3:$BB$5)","v":1},{"$f":"valuePL(AC29,'Utility Functions'!$BC$3:$BC$5,'Utility Functions'!$BD$3:$BD$5)","v":0.25},12.499282052393189,null,12.499282052393189,2.9159487190598563,0.43333333333333335,0,3.8,5.35]
[29,{"$f":"valueE(B30,'Utility Functions'!$B$3,'Utility Functions'!$B$4,'Utility Functions'!$B$5,'Utility Functions'!$B$6)","v":0.83470237647280454},{"$f":"valueE(C30,'Utility Functions'!$D$3,'Utility Functions'!$D$4,'Utility Functions'!$D$5,'Utility Functions'!$D$6)","v":0.71352759724260828},{"$f":"valuePL(D30,'Utility Functions'!$E$3:$E$5,'Utility Functions'!$F$3:$F$5)","v":1},{"$f":"valuePL(E30,'Utility Functions'!$G$3:$G$5,'Utility Functions'!$H$3:$H$5)","v":0.5},{"$f":"valuePL(F30,'Utility Functions'!$I$3:$I$4,'Utility Functions'!$J$3:$J$5)","v":0},{"$f":"valueE(G30,'Utility Functions'!$L$3,'Utility Functions'!$L$4,'Utility Functions'!$L$5,'Utility Functions'!$L$6)","v":0},{"$f":"valueE(H30,'Utility Functions'!$N$3,'Utility Functions'!$N$4,'Utility Functions'!$N$5,'Utility Functions'!$N$6)","v":0},{"$f":"valuePL(I30,'Utility Functions'!$O$3:$O$6,'Utility Functions'!$P$3:$P$6)","v":0.06},{"$f":"valuePL(J30,'Utility Functions'!$Q$3:$Q$6,'Utility Functions'!$R$3:$R$6)","v":0.67272727272727273},{"$f":"valuePL(K30,'Utility Functions'!$S$3:$S$7,'Utility Functions'!$T$3:$T$7)","v":0},{"$f":"valueE(L30,'Utility Functions'!$V$3,'Utility Functions'!$V$4,'Utility Functions'!$V$5,'Utility Functions'!$V$6)","v":1},{"$f":"valuePL(M30,'Utility Functions'!$W$3:$W$6,'Utility Functions'!$X$3:$X$6)","v":0.67272727272727273},{"$f":"valueE(N30,'Utility Functions'!$Z$3,'Utility Functions'!$Z$4,'Utility Functions'!$Z$5,'Utility Functions'!$Z$6)","v":0},{"$f":"valuePL(O30,'Utility Functions'!$AA$3:$AA$5,'Utility Functions'!$AB$3:$AB$5)","v":0},{"$f":"valuePL(P30,'Utility Functions'!$AC$3:$AC$7,'Utility Functions'!$AD$3:$AD$7)","v":0.25},{"$f":"valuePL(Q30,'Utility Functions'!$AE$3:$AE$6,'Utility Functions'!$AF$3:$AF$6)","v":0},{"$f":"valuePL(R30,'Utility Functions'!$AG$3:$AG$6,'Utility Functions'!$AH$3:$AH$6)","v":1},{"$f":"valuePL(S30,'Utility Functions'!$AI$3:$AI$6,'Utility Functions'!$AJ$3:$AJ$6)","v":1},{"$f":"valuePL(T30,'Utility Functions'!$AK$3:$AK$8,'Utility Functions'!$AL$3:$AL$8)","v":0.8},{"$f":"valuePL(U30,'Utility Functions'!$AM$3:$AM$5,'Utility Functions'!$AN$3:$AN$5)","v":0},{"$f":"valuePL(V30,'Utility Functions'!$AO$3:$AO$5,'Utility Functions'!$AP$3:$AP$5)","v":1},{"$f":"valuePL(W30,'Utility Functions'!$AQ$3:$AQ$6,'Utility Functions'!$AR$3:$AR$6)","v":0.2},{"$f":"valuePL(X30,'Utility Functions'!$AS$3:$AS$6,'Utility Functions'!$AT$3:$AT$6)","v":0},{"$f":"valuePL(Y30,'Utility Functions'!$AU$3:$AU$6,'Utility Functions'!$AV$3:$AV$6)","v":0.8},{"$f":"valuePL(Z30,'Utility Functions'!$AW$3:$AW$5,'Utility Functions'!$AX$3:$AX$5)","v":0.5},{"$f":"valuePL(AA30,'Utility Functions'!$AY$3:$AY$6,'Utility Functions'!$AZ$3:$AZ$6)","v":0.2},{"$f":"valuePL(AB30,'Utility Functions'!$BA$3:$BA$5,'Utility Functions'!$BB$3:$BB$5)","v":0.25},{"$f":"valuePL(AC30,'Utility Functions'!$BC$3:$BC$5,'Utility Functions'!$BD$3:$BD$5)","v":1},12.453684519169958,null,12.453684519169958,3.0482299737154128,2.4054545454545453,0,3.05,3.95]
[30,{"$f":"valueE(B31,'Utility Functions'!$B$3,'Utility Functions'!$B$4,'Utility Functions'!$B$5,'Utility Functions'!$B$6)","v":0.99864114504770318},{"$f":"valueE(C31,'Utility Functions'!$D$3,'Utility Functions'!$D$4,'Utility Functions'!$D$5,'Utility Functions'!$D$6)","v":0.84744836833951609},{"$f":"valuePL(D31,'Utility Functions'!$E$3:$E$5,'Utility Functions'!$F$3:$F$5)","v":1},{"$f":"valuePL(E31,'Utility Functions'!$G$3:$G$5,'Utility Functions'!$H$3:$H$5)","v":0},{"$f":"valuePL(F31,'Utility Functions'!$I$3:$I$4,'Utility Functions'!$J$3:$J$5)","v":0},{"$f":"valueE(G31,'Utility Functions'!$L$3,'Utility Functions'!$L$4,'Utility Functions'!$L$5,'Utility Functions'!$L$6)","v":0},{"$f":"valueE(H31,'Utility Functions'!$N$3,'Utility Functions'!$N$4,'Utility Functions'!$N$5,'Utility Functions'!$N$6)","v":0},{"$f":"valuePL(I31,'Utility Functions'!$O$3:$O$6,'Utility Functions'!$P$3:$P$6)","v":0},{"$f":"valuePL(J31,'Utility Functions'!$Q$3:$Q$6,'Utility Functions'!$R$3:$R$6)","v":0},{"$f":"valuePL(K31,'Utility Functions'!$S$3:$S$7,'Utility Functions'!$T$3:$T$7)","v":0},{"$f":"valueE(L31,'Utility Functions'!$V$3,'Utility Functions'!$V$4,'Utility Functions'!$V$5,'Utility Functions'!$V$6)","v":0.33333333333333331},{"$f":"valuePL(M31,'Utility Functions'!$W$3:$W$6,'Utility Functions'!$X$3:$X$6)","v":0.04},{"$f":"valueE(N31,'Utility Functions'!$Z$3,'Utility Functions'!$Z$4,'Utility Functions'!$Z$5,'Utility Functions'!$Z$6)","v":0},{"$f":"valuePL(O31,'Utility Functions'!$AA$3:$AA$5,'Utility Functions'!$AB$3:$AB$5)","v":0},{"$f":"valuePL(P31,'Utility Functions'!$AC$3:$AC$7,'Utility Functions'!$AD$3:$AD$7)","v":0},{"$f":"valuePL(Q31,'Utility Functions'!$AE$3:$AE$6,'Utility Functions'!$AF$3:$AF$6)","v":0},{"$f":"valuePL(R31,'Utility Functions'!$AG$3:$AG$6,'Utility Functions'!$AH$3:$AH$6)","v":0.2},{"$f":"valuePL(S31,'Utility Functions'!$AI$3:$AI$6,'Utility Functions'!$AJ$3:$AJ$6)","v":0.33},{"$f":"valuePL(T31,'Utility Functions'!$AK$3:$AK$8,'Utility Functions'!$AL$3:$AL$8)","v":0},{"$f":"valuePL(U31,'Utility Functions'!$AM$3:$AM$5,'Utility Functions'!$AN$3:$AN$5)","v":0},{"$f":"valuePL(V31,'Utility Functions'!$AO$3:$AO$5,'Utility Functions'!$AP$3:$AP$5)","v":0},{"$f":"valuePL(W31,'Utility Functions'!$AQ$3:$AQ$6,'Utility Functions'!$AR$3:$AR$6)","v":1},{"$f":"valuePL(X31,'Utility Functions'!$AS$3:$AS$6,'Utility Functions'!$AT$3:$AT$6)","v":0.2},{"$f":"valuePL(Y31,'Utility Functions'!$AU$3:$AU$6,'Utility Functions'!$AV$3:$AV$6)","v":0.8},{"$f":"valuePL(Z31,'Utility Functions'!$AW$3:$AW$5,'Utility Functions'!$AX$3:$AX$5)","v":0},{"$f":"valuePL(AA31,'Utility Functions'!$AY$3:$AY$6,'Utility Functions'!$AZ$3:$AZ$6)","v":0.89999999999999991},{"$f":"valuePL(AB31,'Utility Functions'!$BA$3:$BA$5,'Utility Functions'!$BB$3:$BB$5)","v":1},{"$f":"valuePL(AC31,'Utility Functions'!$BC$3:$BC$5,'Utility Functions'!$BD$3:$BD$5)","v":0},7.6494228467205527,null,7.6494228467205527,2.846089513387219,0.37333333333333329,0,0.53,3.9]
[31,{"$f":"valueE(B32,'Utility Functions'!$B$3,'Utility Functions'!$B$4,'Utility Functions'!$B$5,'Utility Functions'!$B$6)","v":0.55067187023002029},{"$f":"valueE(C32,'Utility Functions'!$D$3,'Utility Functions'!$D$4,'Utility Functions'!$D$5,'Utility Functions'!$D$6)","v":0.84744836833951609},{"$f":"valuePL(D32,'Utility Functions'!$E$3:$E$5,'Utility Functions'!$F$3:$F$5)","v":0.5},{"$f":"valuePL(E32,'Utility Functions'!$G$3:$G$5,'Utility Functions'!$H$3:$H$5)","v":0},{"$f":"valuePL(F32,'Utility Functions'!$I$3:$I$4,'Utility Functions'!$J$3:$J$5)","v":0},{"$f":"valueE(G32,'Utility Functions'!$L$3,'Utility Functions'!$L$4,'Utility Functions'!$L$5,'Utility Functions'!$L$6)","v":0},{"$f":"valueE(H32,'Utility Functions'!$N$3,'Utility Functions'!$N$4,'Utility Functions'!$N$5,'Utility Functions'!$N$6)","v":0},{"$f":"valuePL(I32,'Utility Functions'!$O$3:$O$6,'Utility Functions'!$P$3:$P$6)","v":0.75454545454545452},{"$f":"valuePL(J32,'Utility Functions'!$Q$3:$Q$6,'Utility Functions'!$R$3:$R$6)","v":0.08},{"$f":"valuePL(K32,'Utility Functions'!$S$3:$S$7,'Utility Functions'!$T$3:$T$7)","v":0},{"$f":"valueE(L32,'Utility Functions'!$V$3,'Utility Functions'!$V$4,'Utility Functions'!$V$5,'Utility Functions'!$V$6)","v":0.33333333333333331},{"$f":"valuePL(M32,'Utility Functions'!$W$3:$W$6,'Utility Functions'!$X$3:$X$6)","v":0.08},{"$f":"valueE(N32,'Utility Functions'!$Z$3,'Utility Functions'!$Z$4,'Utility Functions'!$Z$5,'Utility Functions'!$Z$6)","v":0},{"$f":"valuePL(O32,'Utility Functions'!$AA$3:$AA$5,'Utility Functions'!$AB$3:$AB$5)","v":0},{"$f":"valuePL(P32,'Utility Functions'!$AC$3:$AC$7,'Utility Functions'!$AD$3:$AD$7)","v":0.5},{"$f":"valuePL(Q32,'Utility Functions'!$AE$3:$AE$6,'Utility Functions'!$AF$3:$AF$6)","v":0},{"$f":"valuePL(R32,'Utility Functions'!$AG$3:$AG$6,'Utility Functions'!$AH$3:$AH$6)","v":1},{"$f":"valuePL(S32,'Utility Functions'!$AI$3:$AI$6,'Utility Functions'!$AJ$3:$AJ$6)","v":0.66},{"$f":"valuePL(T32,'Utility Functions'!$AK$3:$AK$8,'Utility Functions'!$AL$3:$AL$8)","v":0.6},{"$f":"valuePL(U32,'Utility Functions'!$AM$3:$AM$5,'Utility Functions'!$AN$3:$AN$5)","v":0},{"$f":"valuePL(V32,'Utility Functions'!$AO$3:$AO$5,'Utility Functions'!$AP$3:$AP$5)","v":0.5},{"$f":"valuePL(W32,'Utility Functions'!$AQ$3:$AQ$6,'Utility Functions'!$AR$3:$AR$6)","v":0},{"$f":"valuePL(X32,'Utility Functions'!$AS$3:$AS$6,'Utility Functions'!$AT$3:$AT$6)","v":0.2},{"$f":"valuePL(Y32,'Utility Functions'!$AU$3:$AU$6,'Utility Functions'!$AV$3:$AV$6)","v":0.2},{"$f":"valuePL(Z32,'Utility Functions'!$AW$3:$AW$5,'Utility Functions'!$AX$3:$AX$5)","v":1},{"$f":"valuePL(AA32,'Utility Functions'!$AY$3:$AY$6,'Utility Functions'!$AZ$3:$AZ$6)","v":0.89999999999999991},{"$f":"valuePL(AB32,'Utility Functions'!$BA$3:$BA$5,'Utility Functions'!$BB$3:$BB$5)","v":0.25},{"$f":"valuePL(AC32,'Utility Functions'!$BC$3:$BC$5,'Utility Functions'!$BD$3:$BD$5)","v":0.25},9.2059990264483247,null,9.2059990264483247,1.8981202385695364,1.2478787878787878,0,2.7600000000000002,3.3]
[32,{"$f":"valueE(B33,'Utility Functions'!$B$3,'Utility Functions'!$B$4,'Utility Functions'!$B$5,'Utility Functions'!$B$6)","v":0.63212151658375171},{"$f":"valueE(C33,'Utility Functions'!$D$3,'Utility Functions'!$D$4,'Utility Functions'!$D$5,'Utility Functions'!$D$6)","v":0.26839655623815994},{"$f":"valuePL(D33,'Utility Functions'!$E$3:$E$5,'Utility Functions'!$F$3:$F$5)","v":1},{"$f":"valuePL(E33,'Utility Functions'!$G$3:$G$5,'Utility Functions'!$H$3:$H$5)","v":1},{"$f":"valuePL(F33,'Utility Functions'!$I$3:$I$4,'Utility Functions'!$J$3:$J$5)","v":1},{"$f":"valueE(G33,'Utility Functions'!$L$3,'Utility Functions'!$L$4,'Utility Functions'!$L$5,'Utility Functions'!$L$6)","v":3.2258064516129031E-2},{"$f":"valueE(H33,'Utility Functions'!$N$3,'Utility Functions'!$N$4,'Utility Functions'!$N$5,'Utility Functions'!$N$6)","v":9.6774193548387094E-2},{"$f":"valuePL(I33,'Utility Functions'!$O$3:$O$6,'Utility Functions'!$P$3:$P$6)","v":0.34545454545454546},{"$f":"valuePL(J33,'Utility Functions'!$Q$3:$Q$6,'Utility Functions'!$R$3:$R$6)","v":1},{"$f":"valuePL(K33,'Utility Functions'!$S$3:$S$7,'Utility Functions'!$T$3:$T$7)","v":0.34545454545454546},{"$f":"valueE(L33,'Utility Functions'!$V$3,'Utility Functions'!$V$4,'Utility Functions'!$V$5,'Utility Functions'!$V$6)","v":1},{"$f":"valuePL(M33,'Utility Functions'!$W$3:$W$6,'Utility Functions'!$X$3:$X$6)","v":1},{"$f":"valueE(N33,'Utility Functions'!$Z$3,'Utility Functions'!$Z$4,'Utility Functions'!$Z$5,'Utility Functions'!$Z$6)","v":0},{"$f":"valuePL(O33,'Utility Functions'!$AA$3:$AA$5,'Utility Functions'!$AB$3:$AB$5)","v":0},{"$f":"valuePL(P33,'Utility Functions'!$AC$3:$AC$7,'Utility Functions'!$AD$3:$AD$7)","v":0.5},{"$f":"valuePL(Q33,'Utility Functions'!$AE$3:$AE$6,'Utility Functions'!$AF$3:$AF$6)","v":1},{"$f":"valuePL(R33,'Utility Functions'!$AG$3:$AG$6,'Utility Functions'!$AH$3:$AH$6)","v":1},{"$f":"valuePL(S33,'Utility Functions'!$AI$3:$AI$6,'Utility Functions'!$AJ$3:$AJ$6)","v":0},{"$f":"valuePL(T33,'Utility Functions'!$AK$3:$AK$8,'Utility Functions'!$AL$3:$AL$8)","v":0.8},{"$f":"valuePL(U33,'Utility Functions'!$AM$3:$AM$5,'Utility Functions'!$AN$3:$AN$5)","v":0},{"$f":"valuePL(V33,'Utility Functions'!$AO$3:$AO$5,'Utility Functions'!$AP$3:$AP$5)","v":0},{"$f":"valuePL(W33,'Utility Functions'!$AQ$3:$AQ$6,'Utility Functions'!$AR$3:$AR$6)","v":0.75},{"$f":"valuePL(X33,'Utility Functions'!$AS$3:$AS$6,'Utility Functions'!$AT$3:$AT$6)","v":0.2},{"$f":"valuePL(Y33,'Utility Functions'!$AU$3:$AU$6,'Utility Functions'!$AV$3:$AV$6)","v":0.8},{"$f":"valuePL(Z33,'Utility Functions'!$AW$3:$AW$5,'Utility Functions'!$AX$3:$AX$5)","v":0.5},{"$f":"valuePL(AA33,'Utility Functions'!$AY$3:$AY$6,'Utility Functions'!$AZ$3:$AZ$6)","v":0},{"$f":"valuePL(AB33,'Utility Functions'!$BA$3:$BA$5,'Utility Functions'!$BB$3:$BB$5)","v":1},{"$f":"valuePL(AC33,'Utility Functions'!$BC$3:$BC$5,'Utility Functions'!$BD$3:$BD$5)","v":0.25},14.52045942179552,null,14.520459421795518,3.9005180728219115,3.8199413489736074,0,3.3,3.5]
[33,{"$f":"valueE(B34,'Utility Functions'!$B$3,'Utility Functions'!$B$4,'Utility Functions'!$B$5,'Utility Functions'!$B$6)","v":0.93919136038504192},{"$f":"valueE(C34,'Utility Functions'!$D$3,'Utility Functions'!$D$4,'Utility Functions'!$D$5,'Utility Functions'!$D$6)","v":0.84744836833951609},{"$f":"valuePL(D34,'Utility Functions'!$E$3:$E$5,'Utility Functions'!$F$3:$F$5)","v":1},{"$f":"valuePL(E34,'Utility Functions'!$G$3:$G$5,'Utility Functions'!$H$3:$H$5)","v":0.5},{"$f":"valuePL(F34,'Utility Functions'!$I$3:$I$4,'Utility Functions'!$J$3:$J$5)","v":0},{"$f":"valueE(G34,'Utility Functions'!$L$3,'Utility Functions'!$L$4,'Utility Functions'!$L$5,'Utility Functions'!$L$6)","v":0},{"$f":"valueE(H34,'Utility Functions'!$N$3,'Utility Functions'!$N$4,'Utility Functions'!$N$5,'Utility Functions'!$N$6)","v":0},{"$f":"valuePL(I34,'Utility Functions'!$O$3:$O$6,'Utility Functions'!$P$3:$P$6)","v":0},{"$f":"valuePL(J34,'Utility Functions'!$Q$3:$Q$6,'Utility Functions'!$R$3:$R$6)","v":0},{"$f":"valuePL(K34,'Utility Functions'!$S$3:$S$7,'Utility Functions'!$T$3:$T$7)","v":0},{"$f":"valueE(L34,'Utility Functions'!$V$3,'Utility Functions'!$V$4,'Utility Functions'!$V$5,'Utility Functions'!$V$6)","v":0.5},{"$f":"valuePL(M34,'Utility Functions'!$W$3:$W$6,'Utility Functions'!$X$3:$X$6)","v":0},{"$f":"valueE(N34,'Utility Functions'!$Z$3,'Utility Functions'!$Z$4,'Utility Functions'!$Z$5,'Utility Functions'!$Z$6)","v":0},{"$f":"valuePL(O34,'Utility Functions'!$AA$3:$AA$5,'Utility Functions'!$AB$3:$AB$5)","v":0},{"$f":"valuePL(P34,'Utility Functions'!$AC$3:$AC$7,'Utility Functions'!$AD$3:$AD$7)","v":0.5},{"$f":"valuePL(Q34,'Utility Functions'!$AE$3:$AE$6,'Utility Functions'!$AF$3:$AF$6)","v":0},{"$f":"valuePL(R34,'Utility Functions'!$AG$3:$AG$6,'Utility Functions'!$AH$3:$AH$6)","v":1},{"$f":"valuePL(S34,'Utility Functions'!$AI$3:$AI$6,'Utility Functions'!$AJ$3:$AJ$6)","v":0.66},{"$f":"valuePL(T34,'Utility Functions'!$AK$3:$AK$8,'Utility Functions'!$AL$3:$AL$8)","v":0},{"$f":"valuePL(U34,'Utility Functions'!$AM$3:$AM$5,'Utility Functions'!$AN$3:$AN$5)","v":0},{"$f":"valuePL(V34,'Utility Functions'!$AO$3:$AO$5,'Utility Functions'!$AP$3:$AP$5)","v":0.5},{"$f":"valuePL(W34,'Utility Functions'!$AQ$3:$AQ$6,'Utility Functions'!$AR$3:$AR$6)","v":1},{"$f":"valuePL(X34,'Utility Functions'!$AS$3:$AS$6,'Utility Functions'!$AT$3:$AT$6)","v":0},{"$f":"valuePL(Y34,'Utility Functions'!$AU$3:$AU$6,'Utility Functions'!$AV$3:$AV$6)","v":0.8},{"$f":"valuePL(Z34,'Utility Functions'!$AW$3:$AW$5,'Utility Functions'!$AX$3:$AX$5)","v":1},{"$f":"valuePL(AA34,'Utility Functions'!$AY$3:$AY$6,'Utility Functions'!$AZ$3:$AZ$6)","v":1},{"$f":"valuePL(AB34,'Utility Functions'!$BA$3:$BA$5,'Utility Functions'!$BB$3:$BB$5)","v":0},{"$f":"valuePL(AC34,'Utility Functions'!$BC$3:$BC$5,'Utility Functions'!$BD$3:$BD$5)","v":0},10.246639728724558,null,10.246639728724558,3.2866397287245581,0.5,0,2.16,4.3]
[34,{"$f":"valueE(B35,'Utility Functions'!$B$3,'Utility Functions'!$B$4,'Utility Functions'!$B$5,'Utility Functions'!$B$6)","v":0},{"$f":"valueE(C35,'Utility Functions'!$D$3,'Utility Functions'!$D$4,'Utility Functions'!$D$5,'Utility Functions'!$D$6)","v":0},{"$f":"valuePL(D35,'Utility Functions'!$E$3:$E$5,'Utility Functions'!$F$3:$F$5)","v":0},{"$f":"valuePL(E35,'Utility Functions'!$G$3:$G$5,'Utility Functions'!$H$3:$H$5)","v":0},{"$f":"valuePL(F35,'Utility Functions'!$I$3:$I$4,'Utility Functions'!$J$3:$J$5)","v":0},{"$f":"valueE(G35,'Utility Functions'!$L$3,'Utility Functions'!$L$4,'Utility Functions'!$L$5,'Utility Functions'!$L$6)","v":0},{"$f":"valueE(H35,'Utility Functions'!$N$3,'Utility Functions'!$N$4,'Utility Functions'!$N$5,'Utility Functions'!$N$6)","v":1.1385199240986717E-2},{"$f":"valuePL(I35,'Utility Functions'!$O$3:$O$6,'Utility Functions'!$P$3:$P$6)","v":1},{"$f":"valuePL(J35,'Utility Functions'!$Q$3:$Q$6,'Utility Functions'!$R$3:$R$6)","v":0.91818181818181821},{"$f":"valuePL(K35,'Utility Functions'!$S$3:$S$7,'Utility Functions'!$T$3:$T$7)","v":1},{"$f":"valueE(L35,'Utility Functions'!$V$3,'Utility Functions'!$V$4,'Utility Functions'!$V$5,'Utility Functions'!$V$6)","v":1},{"$f":"valuePL(M35,'Utility Functions'!$W$3:$W$6,'Utility Functions'!$X$3:$X$6)","v":0.91818181818181821},{"$f":"valueE(N35,'Utility Functions'!$Z$3,'Utility Functions'!$Z$4,'Utility Functions'!$Z$5,'Utility Functions'!$Z$6)","v":0},{"$f":"valuePL(O35,'Utility Functions'!$AA$3:$AA$5,'Utility Functions'!$AB$3:$AB$5)","v":0},{"$f":"valuePL(P35,'Utility Functions'!$AC$3:$AC$7,'Utility Functions'!$AD$3:$AD$7)","v":0.5},{"$f":"valuePL(Q35,'Utility Functions'!$AE$3:$AE$6,'Utility Functions'!$AF$3:$AF$6)","v":0},{"$f":"valuePL(R35,'Utility Functions'!$AG$3:$AG$6,'Utility Functions'!$AH$3:$AH$6)","v":1},{"$f":"valuePL(S35,'Utility Functions'!$AI$3:$AI$6,'Utility Functions'!$AJ$3:$AJ$6)","v":1},{"$f":"valuePL(T35,'Utility Functions'!$AK$3:$AK$8,'Utility Functions'!$AL$3:$AL$8)","v":0.8},{"$f":"valuePL(U35,'Utility Functions'!$AM$3:$AM$5,'Utility Functions'!$AN$3:$AN$5)","v":0},{"$f":"valuePL(V35,'Utility Functions'!$AO$3:$AO$5,'Utility Functions'!$AP$3:$AP$5)","v":1},{"$f":"valuePL(W35,'Utility Functions'!$AQ$3:$AQ$6,'Utility Functions'!$AR$3:$AR$6)","v":1},{"$f":"valuePL(X35,'Utility Functions'!$AS$3:$AS$6,'Utility Functions'!$AT$3:$AT$6)","v":1},{"$f":"valuePL(Y35,'Utility Functions'!$AU$3:$AU$6,'Utility Functions'!$AV$3:$AV$6)","v":0},{"$f":"valuePL(Z35,'Utility Functions'!$AW$3:$AW$5,'Utility Functions'!$AX$3:$AX$5)","v":1},{"$f":"valuePL(AA35,'Utility Functions'!$AY$3:$AY$6,'Utility Functions'!$AZ$3:$AZ$6)","v":0.89999999999999991},{"$f":"valuePL(AB35,'Utility Functions'!$BA$3:$BA$5,'Utility Functions'!$BB$3:$BB$5)","v":0.25},{"$f":"valuePL(AC35,'Utility Functions'!$BC$3:$BC$5,'Utility Functions'!$BD$3:$BD$5)","v":0},13.297748835604624,null,13.297748835604624,0,4.847748835604623,0,3.3,5.15]
[35,{"$f":"valueE(B36,'Utility Functions'!$B$3,'Utility Functions'!$B$4,'Utility Functions'!$B$5,'Utility Functions'!$B$6)","v":0.79810469124896843},{"$f":"valueE(C36,'Utility Functions'!$D$3,'Utility Functions'!$D$4,'Utility Functions'!$D$5,'Utility Functions'!$D$6)","v":0.60939983135101949},{"$f":"valuePL(D36,'Utility Functions'!$E$3:$E$5,'Utility Functions'!$F$3:$F$5)","v":0.5},{"$f":"valuePL(E36,'Utility Functions'!$G$3:$G$5,'Utility Functions'!$H$3:$H$5)","v":0.5},{"$f":"valuePL(F36,'Utility Functions'!$I$3:$I$4,'Utility Functions'!$J$3:$J$5)","v":1},{"$f":"valueE(G36,'Utility Functions'!$L$3,'Utility Functions'!$L$4,'Utility Functions'!$L$5,'Utility Functions'!$L$6)","v":0},{"$f":"valueE(H36,'Utility Functions'!$N$3,'Utility Functions'!$N$4,'Utility Functions'!$N$5,'Utility Functions'!$N$6)","v":0},{"$f":"valuePL(I36,'Utility Functions'!$O$3:$O$6,'Utility Functions'!$P$3:$P$6)","v":0},{"$f":"valuePL(J36,'Utility Functions'!$Q$3:$Q$6,'Utility Functions'!$R$3:$R$6)","v":0},{"$f":"valuePL(K36,'Utility Functions'!$S$3:$S$7,'Utility Functions'!$T$3:$T$7)","v":1},{"$f":"valueE(L36,'Utility Functions'!$V$3,'Utility Functions'!$V$4,'Utility Functions'!$V$5,'Utility Functions'!$V$6)","v":0.66666666666666663},{"$f":"valuePL(M36,'Utility Functions'!$W$3:$W$6,'Utility Functions'!$X$3:$X$6)","v":0.1},{"$f":"valueE(N36,'Utility Functions'!$Z$3,'Utility Functions'!$Z$4,'Utility Functions'!$Z$5,'Utility Functions'!$Z$6)","v":1},{"$f":"valuePL(O36,'Utility Functions'!$AA$3:$AA$5,'Utility Functions'!$AB$3:$AB$5)","v":0},{"$f":"valuePL(P36,'Utility Functions'!$AC$3:$AC$7,'Utility Functions'!$AD$3:$AD$7)","v":0},{"$f":"valuePL(Q36,'Utility Functions'!$AE$3:$AE$6,'Utility Functions'!$AF$3:$AF$6)","v":0},{"$f":"valuePL(R36,'Utility Functions'!$AG$3:$AG$6,'Utility Functions'!$AH$3:$AH$6)","v":1},{"$f":"valuePL(S36,'Utility Functions'!$AI$3:$AI$6,'Utility Functions'!$AJ$3:$AJ$6)","v":1},{"$f":"valuePL(T36,'Utility Functions'!$AK$3:$AK$8,'Utility Functions'!$AL$3:$AL$8)","v":0.6},{"$f":"valuePL(U36,'Utility Functions'!$AM$3:$AM$5,'Utility Functions'!$AN$3:$AN$5)","v":0},{"$f":"valuePL(V36,'Utility Functions'!$AO$3:$AO$5,'Utility Functions'!$AP$3:$AP$5)","v":1},{"$f":"valuePL(W36,'Utility Functions'!$AQ$3:$AQ$6,'Utility Functions'!$AR$3:$AR$6)","v":0.75},{"$f":"valuePL(X36,'Utility Functions'!$AS$3:$AS$6,'Utility Functions'!$AT$3:$AT$6)","v":0},{"$f":"valuePL(Y36,'Utility Functions'!$AU$3:$AU$6,'Utility Functions'!$AV$3:$AV$6)","v":0.2},{"$f":"valuePL(Z36,'Utility Functions'!$AW$3:$AW$5,'Utility Functions'!$AX$3:$AX$5)","v":1},{"$f":"valuePL(AA36,'Utility Functions'!$AY$3:$AY$6,'Utility Functions'!$AZ$3:$AZ$6)","v":0},{"$f":"valuePL(AB36,'Utility Functions'!$BA$3:$BA$5,'Utility Functions'!$BB$3:$BB$5)","v":0.25},{"$f":"valuePL(AC36,'Utility Functions'!$BC$3:$BC$5,'Utility Functions'!$BD$3:$BD$5)","v":0.25},12.224171189266654,null,12.224171189266656,3.407504522599988,1.7666666666666666,1,2.6,3.45]
["Unweighted",{"$f":"SUMPRODUCT(B46:B80,$B$85:$B$119)","v":2.2879679218640305},{"$f":"SUMPRODUCT(C46:C80,$B$85:$B$119)","v":2.0544502672077192},{"$f":"SUMPRODUCT(D46:D80,$B$85:$B$119)","v":3},0.5,0,0,3.9848197343453511E-2,0.83818181818181825,0.08,0.3290909090909091,1.5,0.04,2.5,0.75,1,1.6,4,3.66,1.8,0.75,3,3.75,2.4000000000000004,3.4000000000000004,3.5,2.2999999999999998,2.5,1.5,null,null,"Unweighted",{"$f":"SUMPRODUCT(AG46:AG80,$B$85:$B$119)","v":7.8424181890717497},{"$f":"SUMPRODUCT(AH46:AH80,$B$85:$B$119)","v":2.8271209246161808},3.25,12.81,22.35]
["Weighted",{"$f":"B$81*Sens_Rigor!I$5","v":5.4969110445083985E-2},{"$f":"C$81*Sens_Rigor!J$5","v":4.6660078376704946E-2},{"$f":"D$81*Sens_Rigor!K$5","v":6.9002792824288284E-2},{"$f":"E$81*Sens_Rigor!L$5","v":1.1204375142178634E-2},{"$f":"F$81*Sens_Rigor!M$5","v":0},{"$f":"G$81*Sens_Rigor!N$5","v":0},{"$f":"H$81*Sens_Rigor!O$5","v":4.4815209333280172E-4},{"$f":"I$81*Sens_Rigor!P$5","v":1.6001542940290173E-2},{"$f":"J$81*Sens_Rigor!Q$5","v":1.4882406176057704E-3},{"$f":"K$81*Sens_Rigor!R$5","v":5.393809643389238E-3},{"$f":"L$81*Sens_Rigor!S$5","v":2.5198759110749484E-2},{"$f":"M$81*Sens_Rigor!T$5","v":5.0738605661506634E-4},{"$f":"N$81*Sens_Rigor!U$5","v":5.6818181818181809E-2},{"$f":"O$81*Sens_Rigor!V$5","v":5.1136363636363633E-2},{"$f":"P$81*Sens_Rigor!W$5","v":2.9952605988569404E-2},{"$f":"Q$81*Sens_Rigor!X$5","v":5.2827438912375457E-2},{"$f":"R$81*Sens_Rigor!Y$5","v":0.15117210021219768},{"$f":"S$81*Sens_Rigor!Z$5","v":0.12115000084089642},{"$f":"T$81*Sens_Rigor!AA$5","v":4.3368164705650414E-2},{"$f":"U$81*Sens_Rigor!AB$5","v":1.7895662620445913E-2},{"$f":"V$81*Sens_Rigor!AC$5","v":0.24024868147602627},{"$f":"W$81*Sens_Rigor!AD$5","v":0.21657558947218342},{"$f":"X$81*Sens_Rigor!AE$5","v":0.14823323454489015},{"$f":"Y$81*Sens_Rigor!AF$5","v":0.26095772978810472},{"$f":"Z$81*Sens_Rigor!AG$5","v":0.23276401038824182},{"$f":"AA$81*Sens_Rigor!AH$5","v":0.11852005889499256},{"$f":"AB$81*Sens_Rigor!AI$5","v":0.1366225060486122},{"$f":"AC$81*Sens_Rigor!AJ$5","v":7.6446043016960966E-2},null,null,"Weighted for SA",{"$f":"AG81*#REF!","v":{"$error":"#REF!"}},{"$f":"AH81*#REF!","v":{"$error":"#REF!"}},{"$f":"AI81*#REF!","v":{"$error":"#REF!"}},{"$f":"AJ81*#REF!","v":{"$error":"#REF!"}},{"$f":"AK81*#REF!","v":{"$error":"#REF!"}}]
[]
[null,"Decision variable","Benefit","Cost"]
[{"$f":"A2","v":1},0,{"$f":"AD46","v":17.117643866192076},{"$f":"AD2","v":700000}]
[2,0,{"$f":"AD47","v":12.641625800575998},{"$f":"AD3","v":5400000}]
[3,1,11.563541444302563,250000]
[4,0,9.2460291931089209,150000]
[5,1,9.5663279251355373,220000]
[6,0,5.9008471271383875,110000]
[7,0,15.54287399641135,1000000]
[8,0,14.227364688589191,5000000]
[9,0,11.893773577166716,25000]
[10,0,9.01,900000]
[11,0,13.174032258064516,1500000]
[12,0,9.4195802436719873,100000]
[13,1,7.5245670174228056,250000]
[14,0,10.338706637075108,500000]
[15,0,15.150477261414375,800000]
[16,0,15.119696969696969,2000000]
[17,0,10.876550515651747,500000]
[18,1,10.178462998102468,300000]
[19,0,9.3165012474871283,750000]
[20,0,15.091255033092194,1500000]
[21,0,9.5500000000000007,900000]
[22,0,9.471742567994939,750000]
[23,0,9.5321507448123199,1000000]
[24,0,9.4968811881212041,150000]
[25,0,13.870607417804099,250000]
[26,0,11.064076562960208,500000]
[27,0,9.0147596715374529,1200000]
[28,0,12.499282052393189,500000]
[29,0,12.453684519169958,2000000]
[30,0,7.6494228467205527,250000]
[31,0,9.2059990264483247,650000]
[32,0,14.52045942179552,200000]
[33,1,10.246639728724558,400000]
[34,0,13.297748835604624,900000]
[35,0,12.224171189266654,900000]
[null,{"$f":"SUM(B85:B119)","v":5},{"$f":"SUMPRODUCT(C85:C119,B85:B119)","v":49.079539113687936},{"$f":"SUMPRODUCT(B85:B119,D85:D119)","v":1420000}]
[]
[null,null,"Cost constraint",15000000]

{"sheet":"Portfolio_E_Rigor","index":27,"n_rows":122,"n_cols":37,"rows_kept":122,"cut":false,"hidden":false,"merged":[]}
["Project","manage_species","manage_spatial","manage_uncertainty","manage_currentpractices","manage_adaptivemanagement","pop_a","pop_b","pop_spatialscope","pop_temporalscope","hab_quantity","hab_quality","hab_temporal","ecoprocess_spp","ecoprocess_uncertainty","datasharing","broaderimpacts","exisitingpriorities","partners","leverage","alignment","objhyp","response","targettaxa","surveydesign","stats","datamanagement","budget","timeline","cost"]
[1,9,6.25,2,2,0,186,1054,75,5,0,2,0,0,0,4,0,2,3,0,0,2,3,3,3,2,3,2,2,700000]
[2,3,28.2,1,0,0,0,0,0,0,0,2,0,4,1,0,0,3,3,0,0,2,3,3,3,2,3,2,2,5400000]
[3,8,28.2,2,0,0,0,0,0,0,0,2,0,5,1,0,2,0,0,0,1,2,3,3,3,2,1,2,2,250000]
[4,1,6.25,2,0,0,0,0,0,0,0,2,0,4,1,0,1,3,3,4,0,1,3,3,1,0,0,2,1,150000]
[5,4,3.1,2,0,0,0,0,50,2,0,2,0,0,0,0,1,3,3,4,1,0,3,3,2,0,0,2,1,220000]
[6,10,6.2E-2,2,0,0,0,0,10,2,0,2,0,0,0,0,1,0,3,3,0,0,0,3,0,0,0,2,1,110000]
[7,52,18.8,0,2,0,0,0,85,12,85,8,12,8,1,0,0,3,3,0,0,2,0,1,3,2,2,0,2,1000000]
[8,3,18.8,2,1,1,0,0,14,14,14,8,14,0,0,0,3,1,3,0,0,2,3,3,3,2,0,1,1,5000000]
[9,9,15.6,2,1,0,70,140,0,0,0,2,0,0,0,3,0,3,2,1,0,2,3,3,1,2,1,1,2,25000]
[10,0,0,0,0,0,0,0,0,0,0,2,0,6,2,1,2,3,2,2,0,0,2,3,3,1,1,0,2,900000]
[11,0,0,0,0,0,6,102,52,15,52,8,15,3,1,1,0,3,3,2,2,2,1,3,3,1,2,0,1,1500000]
[12,2,15.6,2,1,0,0,0,0,0,0,2,0,0,0,0,1,3,3,3,0,1,1,3,1,2,1,2,0,100000]
[13,0,0,0,0,0,0,12,39,2,39,8,2,7,1,1,0,3,3,0,0,1,0,1,0,2,1,1,1,250000]
[14,6,15.6,1,1,0,0,0,0,0,0,2,0,6,1,1,0,3,3,0,0,1,1,3,3,1,2,1,1,500000]
[15,23,12.5,2,1,1,0,0,23,3,23,8,3,1,2,2,0,2,3,3,2,0,3,1,1,2,3,2,1,800000]
[16,0,0,0,0,0,0,0,100,15,100,7,15,0,0,3,0,3,3,5,0,2,2,2,1,2,3,2,2,2000000]
[17,2,15.6,2,1,1,58,290,0,0,0,8,3,0,0,0,0,3,2,0,0,2,3,1,0,1,0,2,1,500000]
[18,0,0,0,0,0,0,30,0,0,0,2,0,8,1,1,3,3,3,5,1,2,2,1,2,1,2,1,0,300000]
[19,8,3.125,1,2,0,0,0,0,0,0,2,0,8,2,0,0,2,3,0,0,1,1,3,2,0,1,0,1,750000]
[20,9,15.6,1,2,0,0,435,76,10,76,6,10,8,2,1,0,3,3,3,2,1,0,0,1,2,1,0,1,1500000]
[21,0,0,0,0,0,0,0,0,0,0,2,0,8,2,0,1,3,3,5,1,0,2,3,1,0,3,1,2,900000]
[22,0,0,0,0,0,16,64,0,0,0,2,0,1,2,4,2,2,3,5,0,1,2,1,0,2,1,2,1,750000]
[23,9,18.8,2,0,0,0,0,0,0,0,2,0,0,0,3,0,3,3,5,0,2,1,2,1,1,1,0,1,1000000]
[24,5,6.25,2,0,0,0,0,0,0,0,2,0,0,0,0,0,3,3,5,0,0,3,1,3,2,1,0,2,150000]
[25,9,18.8,2,0,0,176,308,0,0,0,2,0,8,1,2,2,3,3,0,0,2,1,3,2,1,1,2,2,250000]
[26,17,18.8,2,1,0,0,0,0,0,0,2,0,0,0,3,0,3,3,4,0,2,1,0,2,0,1,2,2,500000]
[27,0,6.25,2,0,0,0,0,0,0,80,2,5,0,0,2,2,3,3,5,0,1,2,3,1,0,0,0,0,1200000]
[28,3,6.25,2,0,1,0,0,0,0,0,4,5,0,0,4,0,3,3,4,0,2,3,3,1,0,2,2,1,500000]
[29,9,12.5,2,1,0,0,0,15,12,15,8,12,0,0,1,0,3,3,4,0,2,1,0,2,1,1,1,2,2000000]
[30,33,18.8,2,0,0,0,0,0,0,0,4,2,0,0,0,0,1,1,0,0,0,3,1,2,0,2,2,0,250000]
[31,4,18.8,1,0,0,0,0,65,4,0,4,4,0,0,2,0,3,2,3,0,1,0,1,1,2,2,1,1,650000]
[32,5,3.125,2,2,1,6,102,40,16,40,8,16,0,0,2,3,3,0,4,0,0,2,1,2,1,0,2,1,200000]
[33,14,18.8,2,1,0,0,0,0,0,0,5,0,0,0,2,0,3,2,0,0,1,3,0,2,2,3,0,0,400000]
[34,0,0,0,0,0,0,12,100,15,100,8,15,0,0,2,0,3,3,4,0,2,3,3,0,2,2,1,0,900000]
[35,8,9.4,1,1,1,0,0,0,0,100,6,5,8,0,0,0,3,3,3,0,2,2,0,1,2,0,1,1,900000]
["CV",{"$f":"_xlfn.STDEV.S(B2:B36)/AVERAGE(B2:B36)","v":1.383842854444886},{"$f":"_xlfn.STDEV.S(C2:C36)/AVERAGE(C2:C36)","v":0.84395823753626376},{"$f":"_xlfn.STDEV.S(D2:D36)/AVERAGE(D2:D36)","v":0.65948586466528381},{"$f":"_xlfn.STDEV.S(E2:E36)/AVERAGE(E2:E36)","v":1.2933654230908831},2.2305806858480666,2.9881459898804135,2.7250501152884543,1.5394659205075842,1.5790297611729722,1.6828143944790142,0.63288342730791625,1.4346340567392073,1.2744250477591585,1.2909944487358058,1.043011114951035,1.4910544805781871,0.32582327651393111,0.30721159062514791,0.8219511329380369,2.1760730956581078,0.64975875258290616,0.58618247649425104,0.61083323417736113,0.63333947951472869,0.68629571860885286,0.76505300516434493,0.69428102652373402,0.60312027652595823]
["sd",{"$f":"_xlfn.STDEV.S(B2:B36)","v":10.477667326511279}]
["mean",{"$f":"AVERAGE(B2:B36)","v":7.5714285714285712}]
[null,{"$f":"B1","v":"manage_species"},{"$f":"C1","v":"manage_spatial"},"manage_uncertainty","manage_currentpractices","manage_adaptivemanagement","pop_a","pop_b","pop_spatialscope","pop_temporalscope","hab_quantity","hab_quality","hab_temporal","ecoprocess_spp","ecoprocess_uncertainty","datasharing","broaderimpacts","exisitingpriorities","partners","leverage","alignment","objhyp","response","targettaxa","surveydesign","stats","datamanagement","budget","timeline"]
[null,"Metric 1","Metric 2","Metric 3","Metric 4","Metric 5","Metric 6a","Metric 6b","Metric 7","Metric 8","Metric 9","Metric 10","Metric 11","Metric 12","Metric 13","Metric 14","Metric 15","Metric 16","Metric 17","Metric 18","Metric 19","Metric 20","Metric 21","Metric 22","Metric 23","Metric 24","Metric 25","Metric 26","Metric 27"]
["Weights",0.03,0.03,0.03,0.03,0.04,1.4999999999999999E-2,1.4999999999999999E-2,0.03,0.02,0.02,0.02,0.02,0.03,0.09,0.04,0.04,0.05,0.05,0.03,0.03,0.05,0.04,0.04,0.05,0.05,0.04,0.04,0.03]
[]
[null,"Unweighted"]
["Project",null,null,null,null,null,null,null,null,null,null,null,null,null,null,null,null,null,null,null,null,null,null,null,null,null,null,null,null,"Unweighted total",null,"Unweighted total","management","status","ecol_proc","integration","rigor"]
[{"$f":"A2","v":1},{"$f":"valueE(B2,'Utility Functions'!$B$3,'Utility Functions'!$B$4,'Utility Functions'!$B$5,'Utility Functions'!$B$6)","v":0.83470237647280454},{"$f":"valueE(C2,'Utility Functions'!$D$3,'Utility Functions'!$D$4,'Utility Functions'!$D$5,'Utility Functions'!$D$6)","v":0.46475967153745396},{"$f":"valuePL(D2,'Utility Functions'!$E$3:$E$5,'Utility Functions'!$F$3:$F$5)","v":1},{"$f":"valuePL(E2,'Utility Functions'!$G$3:$G$5,'Utility Functions'!$H$3:$H$5)","v":1},{"$f":"valuePL(F2,'Utility Functions'!$I$3:$I$4,'Utility Functions'!$J$3:$J$5)","v":0},{"$f":"valueE(G2,'Utility Functions'!$L$3,'Utility Functions'!$L$4,'Utility Functions'!$L$5,'Utility Functions'!$L$6)","v":1},{"$f":"valueE(H2,'Utility Functions'!$N$3,'Utility Functions'!$N$4,'Utility Functions'!$N$5,'Utility Functions'!$N$6)","v":1},{"$f":"valuePL(I2,'Utility Functions'!$O$3:$O$6,'Utility Functions'!$P$3:$P$6)","v":0.91818181818181821},{"$f":"valuePL(J2,'Utility Functions'!$Q$3:$Q$6,'Utility Functions'!$R$3:$R$6)","v":0.1},{"$f":"valuePL(K2,'Utility Functions'!$S$3:$S$7,'Utility Functions'!$T$3:$T$7)","v":0},{"$f":"valueE(L2,'Utility Functions'!$V$3,'Utility Functions'!$V$4,'Utility Functions'!$V$5,'Utility Functions'!$V$6)","v":0},{"$f":"valuePL(M2,'Utility Functions'!$W$3:$W$6,'Utility Functions'!$X$3:$X$6)","v":0},{"$f":"valueE(N2,'Utility Functions'!$Z$3,'Utility Functions'!$Z$4,'Utility Functions'!$Z$5,'Utility Functions'!$Z$6)","v":0},{"$f":"valuePL(O2,'Utility Functions'!$AA$3:$AA$5,'Utility Functions'!$AB$3:$AB$5)","v":0},{"$f":"valuePL(P2,'Utility Functions'!$AC$3:$AC$7,'Utility Functions'!$AD$3:$AD$7)","v":1},{"$f":"valuePL(Q2,'Utility Functions'!$AE$3:$AE$6,'Utility Functions'!$AF$3:$AF$6)","v":0},{"$f":"valuePL(R2,'Utility Functions'!$AG$3:$AG$6,'Utility Functions'!$AH$3:$AH$6)","v":0.8},{"$f":"valuePL(S2,'Utility Functions'!$AI$3:$AI$6,'Utility Functions'!$AJ$3:$AJ$6)","v":1},{"$f":"valuePL(T2,'Utility Functions'!$AK$3:$AK$8,'Utility Functions'!$AL$3:$AL$8)","v":0},{"$f":"valuePL(U2,'Utility Functions'!$AM$3:$AM$5,'Utility Functions'!$AN$3:$AN$5)","v":0},{"$f":"valuePL(V2,'Utility Functions'!$AO$3:$AO$5,'Utility Functions'!$AP$3:$AP$5)","v":1},{"$f":"valuePL(W2,'Utility Functions'!$AQ$3:$AQ$6,'Utility Functions'!$AR$3:$AR$6)","v":1},{"$f":"valuePL(X2,'Utility Functions'!$AS$3:$AS$6,'Utility Functions'!$AT$3:$AT$6)","v":1},{"$f":"valuePL(Y2,'Utility Functions'!$AU$3:$AU$6,'Utility Functions'!$AV$3:$AV$6)","v":1},{"$f":"valuePL(Z2,'Utility Functions'!$AW$3:$AW$5,'Utility Functions'!$AX$3:$AX$5)","v":1},{"$f":"valuePL(AA2,'Utility Functions'!$AY$3:$AY$6,'Utility Functions'!$AZ$3:$AZ$6)","v":1},{"$f":"valuePL(AB2,'Utility Functions'!$BA$3:$BA$5,'Utility Functions'!$BB$3:$BB$5)","v":1},{"$f":"valuePL(AC2,'Utility Functions'!$BC$3:$BC$5,'Utility Functions'!$BD$3:$BD$5)","v":1},{"$f":"SUM(B46:AC46)","v":17.117643866192076},null,{"$f":"SUM(AG46:AK46)","v":17.117643866192076},{"$f":"SUM(B46:F46)","v":3.2994620480102586},{"$f":"SUM(G46:M46)","v":3.0181818181818181},{"$f":"SUM(N46:O46)","v":0},{"$f":"SUM(P46:U46)","v":2.8},{"$f":"SUM(V46:AC46)","v":8}]
[2,{"$f":"valueE(B3,'Utility Functions'!$B$3,'Utility Functions'!$B$4,'Utility Functions'!$B$5,'Utility Functions'!$B$6)","v":0.4511890475224023},{"$f":"valueE(C3,'Utility Functions'!$D$3,'Utility Functions'!$D$4,'Utility Functions'!$D$5,'Utility Functions'!$D$6)","v":0.94043675305359531},{"$f":"valuePL(D3,'Utility Functions'!$E$3:$E$5,'Utility Functions'!$F$3:$F$5)","v":0.5},{"$f":"valuePL(E3,'Utility Functions'!$G$3:$G$5,'Utility Functions'!$H$3:$H$5)","v":0},{"$f":"valuePL(F3,'Utility Functions'!$I$3:$I$4,'Utility Functions'!$J$3:$J$5)","v":0},{"$f":"valueE(G3,'Utility Functions'!$L$3,'Utility Functions'!$L$4,'Utility Functions'!$L$5,'Utility Functions'!$L$6)","v":0},{"$f":"valueE(H3,'Utility Functions'!$N$3,'Utility Functions'!$N$4,'Utility Functions'!$N$5,'Utility Functions'!$N$6)","v":0},{"$f":"valuePL(I3,'Utility Functions'!$O$3:$O$6,'Utility Functions'!$P$3:$P$6)","v":0},{"$f":"valuePL(J3,'Utility Functions'!$Q$3:$Q$6,'Utility Functions'!$R$3:$R$6)","v":0},{"$f":"valuePL(K3,'Utility Functions'!$S$3:$S$7,'Utility Functions'!$T$3:$T$7)","v":0},{"$f":"valueE(L3,'Utility Functions'!$V$3,'Utility Functions'!$V$4,'Utility Functions'!$V$5,'Utility Functions'!$V$6)","v":0},{"$f":"valuePL(M3,'Utility Functions'!$W$3:$W$6,'Utility Functions'!$X$3:$X$6)","v":0},{"$f":"valueE(N3,'Utility Functions'!$Z$3,'Utility Functions'!$Z$4,'Utility Functions'!$Z$5,'Utility Functions'!$Z$6)","v":0.5},{"$f":"valuePL(O3,'Utility Functions'!$AA$3:$AA$5,'Utility Functions'!$AB$3:$AB$5)","v":0.25},{"$f":"valuePL(P3,'Utility Functions'!$AC$3:$AC$7,'Utility Functions'!$AD$3:$AD$7)","v":0},{"$f":"valuePL(Q3,'Utility Functions'!$AE$3:$AE$6,'Utility Functions'!$AF$3:$AF$6)","v":0},{"$f":"valuePL(R3,'Utility Functions'!$AG$3:$AG$6,'Utility Functions'!$AH$3:$AH$6)","v":1},{"$f":"valuePL(S3,'Utility Functions'!$AI$3:$AI$6,'Utility Functions'!$AJ$3:$AJ$6)","v":1},{"$f":"valuePL(T3,'Utility Functions'!$AK$3:$AK$8,'Utility Functions'!$AL$3:$AL$8)","v":0},{"$f":"valuePL(U3,'Utility Functions'!$AM$3:$AM$5,'Utility Functions'!$AN$3:$AN$5)","v":0},{"$f":"valuePL(V3,'Utility Functions'!$AO$3:$AO$5,'Utility Functions'!$AP$3:$AP$5)","v":1},{"$f":"valuePL(W3,'Utility Functions'!$AQ$3:$AQ$6,'Utility Functions'!$AR$3:$AR$6)","v":1},{"$f":"valuePL(X3,'Utility Functions'!$AS$3:$AS$6,'Utility Functions'!$AT$3:$AT$6)","v":1},{"$f":"valuePL(Y3,'Utility Functions'!$AU$3:$AU$6,'Utility Functions'!$AV$3:$AV$6)","v":1},{"$f":"valuePL(Z3,'Utility Functions'!$AW$3:$AW$5,'Utility Functions'!$AX$3:$AX$5)","v":1},{"$f":"valuePL(AA3,'Utility Functions'!$AY$3:$AY$6,'Utility Functions'!$AZ$3:$AZ$6)","v":1},{"$f":"valuePL(AB3,'Utility Functions'!$BA$3:$BA$5,'Utility Functions'!$BB$3:$BB$5)","v":1},{"$f":"valuePL(AC3,'Utility Functions'!$BC$3:$BC$5,'Utility Functions'!$BD$3:$BD$5)","v":1},{"$f":"SUM(B47:AC47)","v":12.641625800575998},null,{"$f":"SUM(AG47:AK47)","v":12.641625800575998},{"$f":"SUM(B47:F47)","v":1.8916258005759976},{"$f":"SUM(G47:M47)","v":0},{"$f":"SUM(N47:O47)","v":0.75},{"$f":"SUM(P47:U47)","v":2},{"$f":"SUM(V47:AC47)","v":8}]
[3,{"$f":"valueE(B4,'Utility Functions'!$B$3,'Utility Functions'!$B$4,'Utility Functions'!$B$5,'Utility Functions'!$B$6)","v":0.79810469124896843},{"$f":"valueE(C4,'Utility Functions'!$D$3,'Utility Functions'!$D$4,'Utility Functions'!$D$5,'Utility Functions'!$D$6)","v":0.94043675305359531},{"$f":"valuePL(D4,'Utility Functions'!$E$3:$E$5,'Utility Functions'!$F$3:$F$5)","v":1},{"$f":"valuePL(E4,'Utility Functions'!$G$3:$G$5,'Utility Functions'!$H$3:$H$5)","v":0},{"$f":"valuePL(F4,'Utility Functions'!$I$3:$I$4,'Utility Functions'!$J$3:$J$5)","v":0},{"$f":"valueE(G4,'Utility Functions'!$L$3,'Utility Functions'!$L$4,'Utility Functions'!$L$5,'Utility Functions'!$L$6)","v":0},{"$f":"valueE(H4,'Utility Functions'!$N$3,'Utility Functions'!$N$4,'Utility Functions'!$N$5,'Utility Functions'!$N$6)","v":0},{"$f":"valuePL(I4,'Utility Functions'!$O$3:$O$6,'Utility Functions'!$P$3:$P$6)","v":0},{"$f":"valuePL(J4,'Utility Functions'!$Q$3:$Q$6,'Utility Functions'!$R$3:$R$6)","v":0},{"$f":"valuePL(K4,'Utility Functions'!$S$3:$S$7,'Utility Functions'!$T$3:$T$7)","v":0},{"$f":"valueE(L4,'Utility Functions'!$V$3,'Utility Functions'!$V$4,'Utility Functions'!$V$5,'Utility Functions'!$V$6)","v":0},{"$f":"valuePL(M4,'Utility Functions'!$W$3:$W$6,'Utility Functions'!$X$3:$X$6)","v":0},{"$f":"valueE(N4,'Utility Functions'!$Z$3,'Utility Functions'!$Z$4,'Utility Functions'!$Z$5,'Utility Functions'!$Z$6)","v":0.625},{"$f":"valuePL(O4,'Utility Functions'!$AA$3:$AA$5,'Utility Functions'!$AB$3:$AB$5)","v":0.25},{"$f":"valuePL(P4,'Utility Functions'!$AC$3:$AC$7,'Utility Functions'!$AD$3:$AD$7)","v":0},{"$f":"valuePL(Q4,'Utility Functions'!$AE$3:$AE$6,'Utility Functions'!$AF$3:$AF$6)","v":0.5},{"$f":"valuePL(R4,'Utility Functions'!$AG$3:$AG$6,'Utility Functions'!$AH$3:$AH$6)","v":0},{"$f":"valuePL(S4,'Utility Functions'!$AI$3:$AI$6,'Utility Functions'!$AJ$3:$AJ$6)","v":0},{"$f":"valuePL(T4,'Utility Functions'!$AK$3:$AK$8,'Utility Functions'!$AL$3:$AL$8)","v":0},{"$f":"valuePL(U4,'Utility Functions'!$AM$3:$AM$5,'Utility Functions'!$AN$3:$AN$5)","v":0.25},{"$f":"valuePL(V4,'Utility Functions'!$AO$3:$AO$5,'Utility Functions'!$AP$3:$AP$5)","v":1},{"$f":"valuePL(W4,'Utility Functions'!$AQ$3:$AQ$6,'Utility Functions'!$AR$3:$AR$6)","v":1},{"$f":"valuePL(X4,'Utility Functions'!$AS$3:$AS$6,'Utility Functions'!$AT$3:$AT$6)","v":1},{"$f":"valuePL(Y4,'Utility Functions'!$AU$3:$AU$6,'Utility Functions'!$AV$3:$AV$6)","v":1},{"$f":"valuePL(Z4,'Utility Functions'!$AW$3:$AW$5,'Utility Functions'!$AX$3:$AX$5)","v":1},{"$f":"valuePL(AA4,'Utility Functions'!$AY$3:$AY$6,'Utility Functions'!$AZ$3:$AZ$6)","v":0.2},{"$f":"valuePL(AB4,'Utility Functions'!$BA$3:$BA$5,'Utility Functions'!$BB$3:$BB$5)","v":1},{"$f":"valuePL(AC4,'Utility Functions'!$BC$3:$BC$5,'Utility Functions'!$BD$3:$BD$5)","v":1},11.563541444302563,null,11.563541444302565,2.7385414443025637,0,0.875,0.75,7.2]
[4,{"$f":"valueE(B5,'Utility Functions'!$B$3,'Utility Functions'!$B$4,'Utility Functions'!$B$5,'Utility Functions'!$B$6)","v":0.1812695215714665},{"$f":"valueE(C5,'Utility Functions'!$D$3,'Utility Functions'!$D$4,'Utility Functions'!$D$5,'Utility Functions'!$D$6)","v":0.46475967153745396},{"$f":"valuePL(D5,'Utility Functions'!$E$3:$E$5,'Utility Functions'!$F$3:$F$5)","v":1},{"$f":"valuePL(E5,'Utility Functions'!$G$3:$G$5,'Utility Functions'!$H$3:$H$5)","v":0},{"$f":"valuePL(F5,'Utility Functions'!$I$3:$I$4,'Utility Functions'!$J$3:$J$5)","v":0},{"$f":"valueE(G5,'Utility Functions'!$L$3,'Utility Functions'!$L$4,'Utility Functions'!$L$5,'Utility Functions'!$L$6)","v":0},{"$f":"valueE(H5,'Utility Functions'!$N$3,'Utility Functions'!$N$4,'Utility Functions'!$N$5,'Utility Functions'!$N$6)","v":0},{"$f":"valuePL(I5,'Utility Functions'!$O$3:$O$6,'Utility Functions'!$P$3:$P$6)","v":0},{"$f":"valuePL(J5,'Utility Functions'!$Q$3:$Q$6,'Utility Functions'!$R$3:$R$6)","v":0},{"$f":"valuePL(K5,'Utility Functions'!$S$3:$S$7,'Utility Functions'!$T$3:$T$7)","v":0},{"$f":"valueE(L5,'Utility Functions'!$V$3,'Utility Functions'!$V$4,'Utility Functions'!$V$5,'Utility Functions'!$V$6)","v":0},{"$f":"valuePL(M5,'Utility Functions'!$W$3:$W$6,'Utility Functions'!$X$3:$X$6)","v":0},{"$f":"valueE(N5,'Utility Functions'!$Z$3,'Utility Functions'!$Z$4,'Utility Functions'!$Z$5,'Utility Functions'!$Z$6)","v":0.5},{"$f":"valuePL(O5,'Utility Functions'!$AA$3:$AA$5,'Utility Functions'!$AB$3:$AB$5)","v":0.25},{"$f":"valuePL(P5,'Utility Functions'!$AC$3:$AC$7,'Utility Functions'!$AD$3:$AD$7)","v":0},{"$f":"valuePL(Q5,'Utility Functions'!$AE$3:$AE$6,'Utility Functions'!$AF$3:$AF$6)","v":0.1},{"$f":"valuePL(R5,'Utility Functions'!$AG$3:$AG$6,'Utility Functions'!$AH$3:$AH$6)","v":1},{"$f":"valuePL(S5,'Utility Functions'!$AI$3:$AI$6,'Utility Functions'!$AJ$3:$AJ$6)","v":1},{"$f":"valuePL(T5,'Utility Functions'!$AK$3:$AK$8,'Utility Functions'!$AL$3:$AL$8)","v":0.8},{"$f":"valuePL(U5,'Utility Functions'!$AM$3:$AM$5,'Utility Functions'!$AN$3:$AN$5)","v":0},{"$f":"valuePL(V5,'Utility Functions'!$AO$3:$AO$5,'Utility Functions'!$AP$3:$AP$5)","v":0.5},{"$f":"valuePL(W5,'Utility Functions'!$AQ$3:$AQ$6,'Utility Functions'!$AR$3:$AR$6)","v":1},{"$f":"valuePL(X5,'Utility Functions'!$AS$3:$AS$6,'Utility Functions'!$AT$3:$AT$6)","v":1},{"$f":"valuePL(Y5,'Utility Functions'!$AU$3:$AU$6,'Utility Functions'!$AV$3:$AV$6)","v":0.2},{"$f":"valuePL(Z5,'Utility Functions'!$AW$3:$AW$5,'Utility Functions'!$AX$3:$AX$5)","v":0},{"$f":"valuePL(AA5,'Utility Functions'!$AY$3:$AY$6,'Utility Functions'!$AZ$3:$AZ$6)","v":0},{"$f":"valuePL(AB5,'Utility Functions'!$BA$3:$BA$5,'Utility Functions'!$BB$3:$BB$5)","v":1},{"$f":"valuePL(AC5,'Utility Functions'!$BC$3:$BC$5,'Utility Functions'!$BD$3:$BD$5)","v":0.25},9.2460291931089209,null,9.2460291931089209,1.6460291931089204,0,0.75,2.9000000000000004,3.95]
[5,{"$f":"valueE(B6,'Utility Functions'!$B$3,'Utility Functions'!$B$4,'Utility Functions'!$B$5,'Utility Functions'!$B$6)","v":0.55067187023002029},{"$f":"valueE(C6,'Utility Functions'!$D$3,'Utility Functions'!$D$4,'Utility Functions'!$D$5,'Utility Functions'!$D$6)","v":0.26656514581460788},{"$f":"valuePL(D6,'Utility Functions'!$E$3:$E$5,'Utility Functions'!$F$3:$F$5)","v":1},{"$f":"valuePL(E6,'Utility Functions'!$G$3:$G$5,'Utility Functions'!$H$3:$H$5)","v":0},{"$f":"valuePL(F6,'Utility Functions'!$I$3:$I$4,'Utility Functions'!$J$3:$J$5)","v":0},{"$f":"valueE(G6,'Utility Functions'!$L$3,'Utility Functions'!$L$4,'Utility Functions'!$L$5,'Utility Functions'!$L$6)","v":0},{"$f":"valueE(H6,'Utility Functions'!$N$3,'Utility Functions'!$N$4,'Utility Functions'!$N$5,'Utility Functions'!$N$6)","v":0},{"$f":"valuePL(I6,'Utility Functions'!$O$3:$O$6,'Utility Functions'!$P$3:$P$6)","v":0.50909090909090915},{"$f":"valuePL(J6,'Utility Functions'!$Q$3:$Q$6,'Utility Functions'!$R$3:$R$6)","v":0.04},{"$f":"valuePL(K6,'Utility Functions'!$S$3:$S$7,'Utility Functions'!$T$3:$T$7)","v":0},{"$f":"valueE(L6,'Utility Functions'!$V$3,'Utility Functions'!$V$4,'Utility Functions'!$V$5,'Utility Functions'!$V$6)","v":0},{"$f":"valuePL(M6,'Utility Functions'!$W$3:$W$6,'Utility Functions'!$X$3:$X$6)","v":0},{"$f":"valueE(N6,'Utility Functions'!$Z$3,'Utility Functions'!$Z$4,'Utility Functions'!$Z$5,'Utility Functions'!$Z$6)","v":0},{"$f":"valuePL(O6,'Utility Functions'!$AA$3:$AA$5,'Utility Functions'!$AB$3:$AB$5)","v":0},{"$f":"valuePL(P6,'Utility Functions'!$AC$3:$AC$7,'Utility Functions'!$AD$3:$AD$7)","v":0},{"$f":"valuePL(Q6,'Utility Functions'!$AE$3:$AE$6,'Utility Functions'!$AF$3:$AF$6)","v":0.1},{"$f":"valuePL(R6,'Utility Functions'!$AG$3:$AG$6,'Utility Functions'!$AH$3:$AH$6)","v":1},{"$f":"valuePL(S6,'Utility Functions'!$AI$3:$AI$6,'Utility Functions'!$AJ$3:$AJ$6)","v":1},{"$f":"valuePL(T6,'Utility Functions'!$AK$3:$AK$8,'Utility Functions'!$AL$3:$AL$8)","v":0.8},{"$f":"valuePL(U6,'Utility Functions'!$AM$3:$AM$5,'Utility Functions'!$AN$3:$AN$5)","v":0.25},{"$f":"valuePL(V6,'Utility Functions'!$AO$3:$AO$5,'Utility Functions'!$AP$3:$AP$5)","v":0},{"$f":"valuePL(W6,'Utility Functions'!$AQ$3:$AQ$6,'Utility Functions'!$AR$3:$AR$6)","v":1},{"$f":"valuePL(X6,'Utility Functions'!$AS$3:$AS$6,'Utility Functions'!$AT$3:$AT$6)","v":1},{"$f":"valuePL(Y6,'Utility Functions'!$AU$3:$AU$6,'Utility Functions'!$AV$3:$AV$6)","v":0.8},{"$f":"valuePL(Z6,'Utility Functions'!$AW$3:$AW$5,'Utility Functions'!$AX$3:$AX$5)","v":0},{"$f":"valuePL(AA6,'Utility Functions'!$AY$3:$AY$6,'Utility Functions'!$AZ$3:$AZ$6)","v":0},{"$f":"valuePL(AB6,'Utility Functions'!$BA$3:$BA$5,'Utility Functions'!$BB$3:$BB$5)","v":1},{"$f":"valuePL(AC6,'Utility Functions'!$BC$3:$BC$5,'Utility Functions'!$BD$3:$BD$5)","v":0.25},9.5663279251355373,null,9.5663279251355391,1.8172370160446283,0.54909090909090918,0,3.1500000000000004,4.05]
[6,{"$f":"valueE(B7,'Utility Functions'!$B$3,'Utility Functions'!$B$4,'Utility Functions'!$B$5,'Utility Functions'!$B$6)","v":0.86466602685702687},{"$f":"valueE(C7,'Utility Functions'!$D$3,'Utility Functions'!$D$4,'Utility Functions'!$D$5,'Utility Functions'!$D$6)","v":6.1811002813601471E-3},{"$f":"valuePL(D7,'Utility Functions'!$E$3:$E$5,'Utility Functions'!$F$3:$F$5)","v":1},{"$f":"valuePL(E7,'Utility Functions'!$G$3:$G$5,'Utility Functions'!$H$3:$H$5)","v":0},{"$f":"valuePL(F7,'Utility Functions'!$I$3:$I$4,'Utility Functions'!$J$3:$J$5)","v":0},{"$f":"valueE(G7,'Utility Functions'!$L$3,'Utility Functions'!$L$4,'Utility Functions'!$L$5,'Utility Functions'!$L$6)","v":0},{"$f":"valueE(H7,'Utility Functions'!$N$3,'Utility Functions'!$N$4,'Utility Functions'!$N$5,'Utility Functions'!$N$6)","v":0},{"$f":"valuePL(I7,'Utility Functions'!$O$3:$O$6,'Utility Functions'!$P$3:$P$6)","v":0.04},{"$f":"valuePL(J7,'Utility Functions'!$Q$3:$Q$6,'Utility Functions'!$R$3:$R$6)","v":0.04},{"$f":"valuePL(K7,'Utility Functions'!$S$3:$S$7,'Utility Functions'!$T$3:$T$7)","v":0},{"$f":"valueE(L7,'Utility Functions'!$V$3,'Utility Functions'!$V$4,'Utility Functions'!$V$5,'Utility Functions'!$V$6)","v":0},{"$f":"valuePL(M7,'Utility Functions'!$W$3:$W$6,'Utility Functions'!$X$3:$X$6)","v":0},{"$f":"valueE(N7,'Utility Functions'!$Z$3,'Utility Functions'!$Z$4,'Utility Functions'!$Z$5,'Utility Functions'!$Z$6)","v":0},{"$f":"valuePL(O7,'Utility Functions'!$AA$3:$AA$5,'Utility Functions'!$AB$3:$AB$5)","v":0},{"$f":"valuePL(P7,'Utility Functions'!$AC$3:$AC$7,'Utility Functions'!$AD$3:$AD$7)","v":0},{"$f":"valuePL(Q7,'Utility Functions'!$AE$3:$AE$6,'Utility Functions'!$AF$3:$AF$6)","v":0.1},{"$f":"valuePL(R7,'Utility Functions'!$AG$3:$AG$6,'Utility Functions'!$AH$3:$AH$6)","v":0},{"$f":"valuePL(S7,'Utility Functions'!$AI$3:$AI$6,'Utility Functions'!$AJ$3:$AJ$6)","v":1},{"$f":"valuePL(T7,'Utility Functions'!$AK$3:$AK$8,'Utility Functions'!$AL$3:$AL$8)","v":0.6},{"$f":"valuePL(U7,'Utility Functions'!$AM$3:$AM$5,'Utility Functions'!$AN$3:$AN$5)","v":0},{"$f":"valuePL(V7,'Utility Functions'!$AO$3:$AO$5,'Utility Functions'!$AP$3:$AP$5)","v":0},{"$f":"valuePL(W7,'Utility Functions'!$AQ$3:$AQ$6,'Utility Functions'!$AR$3:$AR$6)","v":0},{"$f":"valuePL(X7,'Utility Functions'!$AS$3:$AS$6,'Utility Functions'!$AT$3:$AT$6)","v":1},{"$f":"valuePL(Y7,'Utility Functions'!$AU$3:$AU$6,'Utility Functions'!$AV$3:$AV$6)","v":0},{"$f":"valuePL(Z7,'Utility Functions'!$AW$3:$AW$5,'Utility Functions'!$AX$3:$AX$5)","v":0},{"$f":"valuePL(AA7,'Utility Functions'!$AY$3:$AY$6,'Utility Functions'!$AZ$3:$AZ$6)","v":0},{"$f":"valuePL(AB7,'Utility Functions'!$BA$3:$BA$5,'Utility Functions'!$BB$3:$BB$5)","v":1},{"$f":"valuePL(AC7,'Utility Functions'!$BC$3:$BC$5,'Utility Functions'!$BD$3:$BD$5)","v":0.25},5.9008471271383875,null,5.9008471271383875,1.8708471271383869,0.08,0,1.7000000000000002,2.25]
[7,{"$f":"valueE(B8,'Utility Functions'!$B$3,'Utility Functions'!$B$4,'Utility Functions'!$B$5,'Utility Functions'!$B$6)","v":0.99997108261728973},{"$f":"valueE(C8,'Utility Functions'!$D$3,'Utility Functions'!$D$4,'Utility Functions'!$D$5,'Utility Functions'!$D$6)","v":0.84744836833951609},{"$f":"valuePL(D8,'Utility Functions'!$E$3:$E$5,'Utility Functions'!$F$3:$F$5)","v":0},{"$f":"valuePL(E8,'Utility Functions'!$G$3:$G$5,'Utility Functions'!$H$3:$H$5)","v":1},{"$f":"valuePL(F8,'Utility Functions'!$I$3:$I$4,'Utility Functions'!$J$3:$J$5)","v":0},{"$f":"valueE(G8,'Utility Functions'!$L$3,'Utility Functions'!$L$4,'Utility Functions'!$L$5,'Utility Functions'!$L$6)","v":0},{"$f":"valueE(H8,'Utility Functions'!$N$3,'Utility Functions'!$N$4,'Utility Functions'!$N$5,'Utility Functions'!$N$6)","v":0},{"$f":"valuePL(I8,'Utility Functions'!$O$3:$O$6,'Utility Functions'!$P$3:$P$6)","v":1},{"$f":"valuePL(J8,'Utility Functions'!$Q$3:$Q$6,'Utility Functions'!$R$3:$R$6)","v":0.67272727272727273},{"$f":"valuePL(K8,'Utility Functions'!$S$3:$S$7,'Utility Functions'!$T$3:$T$7)","v":1},{"$f":"valueE(L8,'Utility Functions'!$V$3,'Utility Functions'!$V$4,'Utility Functions'!$V$5,'Utility Functions'!$V$6)","v":1},{"$f":"valuePL(M8,'Utility Functions'!$W$3:$W$6,'Utility Functions'!$X$3:$X$6)","v":0.67272727272727273},{"$f":"valueE(N8,'Utility Functions'!$Z$3,'Utility Functions'!$Z$4,'Utility Functions'!$Z$5,'Utility Functions'!$Z$6)","v":1},{"$f":"valuePL(O8,'Utility Functions'!$AA$3:$AA$5,'Utility Functions'!$AB$3:$AB$5)","v":0.25},{"$f":"valuePL(P8,'Utility Functions'!$AC$3:$AC$7,'Utility Functions'!$AD$3:$AD$7)","v":0},{"$f":"valuePL(Q8,'Utility Functions'!$AE$3:$AE$6,'Utility Functions'!$AF$3:$AF$6)","v":0},{"$f":"valuePL(R8,'Utility Functions'!$AG$3:$AG$6,'Utility Functions'!$AH$3:$AH$6)","v":1},{"$f":"valuePL(S8,'Utility Functions'!$AI$3:$AI$6,'Utility Functions'!$AJ$3:$AJ$6)","v":1},{"$f":"valuePL(T8,'Utility Functions'!$AK$3:$AK$8,'Utility Functions'!$AL$3:$AL$8)","v":0},{"$f":"valuePL(U8,'Utility Functions'!$AM$3:$AM$5,'Utility Functions'!$AN$3:$AN$5)","v":0},{"$f":"valuePL(V8,'Utility Functions'!$AO$3:$AO$5,'Utility Functions'!$AP$3:$AP$5)","v":1},{"$f":"valuePL(W8,'Utility Functions'!$AQ$3:$AQ$6,'Utility Functions'!$AR$3:$AR$6)","v":0},{"$f":"valuePL(X8,'Utility Functions'!$AS$3:$AS$6,'Utility Functions'!$AT$3:$AT$6)","v":0.2},{"$f":"valuePL(Y8,'Utility Functions'!$AU$3:$AU$6,'Utility Functions'!$AV$3:$AV$6)","v":1},{"$f":"valuePL(Z8,'Utility Functions'!$AW$3:$AW$5,'Utility Functions'!$AX$3:$AX$5)","v":1},{"$f":"valuePL(AA8,'Utility Functions'!$AY$3:$AY$6,'Utility Functions'!$AZ$3:$AZ$6)","v":0.89999999999999991},{"$f":"valuePL(AB8,'Utility Functions'!$BA$3:$BA$5,'Utility Functions'!$BB$3:$BB$5)","v":0},{"$f":"valuePL(AC8,'Utility Functions'!$BC$3:$BC$5,'Utility Functions'!$BD$3:$BD$5)","v":1},15.54287399641135,null,15.54287399641135,2.8474194509568056,4.3454545454545457,1.25,2,5.0999999999999996]
[8,{"$f":"valueE(B9,'Utility Functions'!$B$3,'Utility Functions'!$B$4,'Utility Functions'!$B$5,'Utility Functions'!$B$6)","v":0.4511890475224023},{"$f":"valueE(C9,'Utility Functions'!$D$3,'Utility Functions'!$D$4,'Utility Functions'!$D$5,'Utility Functions'!$D$6)","v":0.84744836833951609},{"$f":"valuePL(D9,'Utility Functions'!$E$3:$E$5,'Utility Functions'!$F$3:$F$5)","v":1},{"$f":"valuePL(E9,'Utility Functions'!$G$3:$G$5,'Utility Functions'!$H$3:$H$5)","v":0.5},{"$f":"valuePL(F9,'Utility Functions'!$I$3:$I$4,'Utility Functions'!$J$3:$J$5)","v":1},{"$f":"valueE(G9,'Utility Functions'!$L$3,'Utility Functions'!$L$4,'Utility Functions'!$L$5,'Utility Functions'!$L$6)","v":0},{"$f":"valueE(H9,'Utility Functions'!$N$3,'Utility Functions'!$N$4,'Utility Functions'!$N$5,'Utility Functions'!$N$6)","v":0},{"$f":"valuePL(I9,'Utility Functions'!$O$3:$O$6,'Utility Functions'!$P$3:$P$6)","v":5.6000000000000008E-2},{"$f":"valuePL(J9,'Utility Functions'!$Q$3:$Q$6,'Utility Functions'!$R$3:$R$6)","v":0.83636363636363631},{"$f":"valuePL(K9,'Utility Functions'!$S$3:$S$7,'Utility Functions'!$T$3:$T$7)","v":0},{"$f":"valueE(L9,'Utility Functions'!$V$3,'Utility Functions'!$V$4,'Utility Functions'!$V$5,'Utility Functions'!$V$6)","v":1},{"$f":"valuePL(M9,'Utility Functions'!$W$3:$W$6,'Utility Functions'!$X$3:$X$6)","v":0.83636363636363631},{"$f":"valueE(N9,'Utility Functions'!$Z$3,'Utility Functions'!$Z$4,'Utility Functions'!$Z$5,'Utility Functions'!$Z$6)","v":0},{"$f":"valuePL(O9,'Utility Functions'!$AA$3:$AA$5,'Utility Functions'!$AB$3:$AB$5)","v":0},{"$f":"valuePL(P9,'Utility Functions'!$AC$3:$AC$7,'Utility Functions'!$AD$3:$AD$7)","v":0},{"$f":"valuePL(Q9,'Utility Functions'!$AE$3:$AE$6,'Utility Functions'!$AF$3:$AF$6)","v":1},{"$f":"valuePL(R9,'Utility Functions'!$AG$3:$AG$6,'Utility Functions'!$AH$3:$AH$6)","v":0.2},{"$f":"valuePL(S9,'Utility Functions'!$AI$3:$AI$6,'Utility Functions'!$AJ$3:$AJ$6)","v":1},{"$f":"valuePL(T9,'Utility Functions'!$AK$3:$AK$8,'Utility Functions'!$AL$3:$AL$8)","v":0},{"$f":"valuePL(U9,'Utility Functions'!$AM$3:$AM$5,'Utility Functions'!$AN$3:$AN$5)","v":0},{"$f":"valuePL(V9,'Utility Functions'!$AO$3:$AO$5,'Utility Functions'!$AP$3:$AP$5)","v":1},{"$f":"valuePL(W9,'Utility Functions'!$AQ$3:$AQ$6,'Utility Functions'!$AR$3:$AR$6)","v":1},{"$f":"valuePL(X9,'Utility Functions'!$AS$3:$AS$6,'Utility Functions'!$AT$3:$AT$6)","v":1},{"$f":"valuePL(Y9,'Utility Functions'!$AU$3:$AU$6,'Utility Functions'!$AV$3:$AV$6)","v":1},{"$f":"valuePL(Z9,'Utility Functions'!$AW$3:$AW$5,'Utility Functions'!$AX$3:$AX$5)","v":1},{"$f":"valuePL(AA9,'Utility Functions'!$AY$3:$AY$6,'Utility Functions'!$AZ$3:$AZ$6)","v":0},{"$f":"valuePL(AB9,'Utility Functions'!$BA$3:$BA$5,'Utility Functions'!$BB$3:$BB$5)","v":0.25},{"$f":"valuePL(AC9,'Utility Functions'!$BC$3:$BC$5,'Utility Functions'!$BD$3:$BD$5)","v":0.25},14.227364688589191,null,14.227364688589191,3.7986374158619185,2.7287272727272729,0,2.2000000000000002,5.5]
[9,{"$f":"valueE(B10,'Utility Functions'!$B$3,'Utility Functions'!$B$4,'Utility Functions'!$B$5,'Utility Functions'!$B$6)","v":0.83470237647280454},{"$f":"valueE(C10,'Utility Functions'!$D$3,'Utility Functions'!$D$4,'Utility Functions'!$D$5,'Utility Functions'!$D$6)","v":0.78989979019422951},{"$f":"valuePL(D10,'Utility Functions'!$E$3:$E$5,'Utility Functions'!$F$3:$F$5)","v":1},{"$f":"valuePL(E10,'Utility Functions'!$G$3:$G$5,'Utility Functions'!$H$3:$H$5)","v":0.5},{"$f":"valuePL(F10,'Utility Functions'!$I$3:$I$4,'Utility Functions'!$J$3:$J$5)","v":0},{"$f":"valueE(G10,'Utility Functions'!$L$3,'Utility Functions'!$L$4,'Utility Functions'!$L$5,'Utility Functions'!$L$6)","v":0.37634408602150538},{"$f":"valueE(H10,'Utility Functions'!$N$3,'Utility Functions'!$N$4,'Utility Functions'!$N$5,'Utility Functions'!$N$6)","v":0.13282732447817835},{"$f":"valuePL(I10,'Utility Functions'!$O$3:$O$6,'Utility Functions'!$P$3:$P$6)","v":0},{"$f":"valuePL(J10,'Utility Functions'!$Q$3:$Q$6,'Utility Functions'!$R$3:$R$6)","v":0},{"$f":"valuePL(K10,'Utility Functions'!$S$3:$S$7,'Utility Functions'!$T$3:$T$7)","v":0},{"$f":"valueE(L10,'Utility Functions'!$V$3,'Utility Functions'!$V$4,'Utility Functions'!$V$5,'Utility Functions'!$V$6)","v":0},{"$f":"valuePL(M10,'Utility Functions'!$W$3:$W$6,'Utility Functions'!$X$3:$X$6)","v":0},{"$f":"valueE(N10,'Utility Functions'!$Z$3,'Utility Functions'!$Z$4,'Utility Functions'!$Z$5,'Utility Functions'!$Z$6)","v":0},{"$f":"valuePL(O10,'Utility Functions'!$AA$3:$AA$5,'Utility Functions'!$AB$3:$AB$5)","v":0},{"$f":"valuePL(P10,'Utility Functions'!$AC$3:$AC$7,'Utility Functions'!$AD$3:$AD$7)","v":0.75},{"$f":"valuePL(Q10,'Utility Functions'!$AE$3:$AE$6,'Utility Functions'!$AF$3:$AF$6)","v":0},{"$f":"valuePL(R10,'Utility Functions'!$AG$3:$AG$6,'Utility Functions'!$AH$3:$AH$6)","v":1},{"$f":"valuePL(S10,'Utility Functions'!$AI$3:$AI$6,'Utility Functions'!$AJ$3:$AJ$6)","v":0.66},{"$f":"valuePL(T10,'Utility Functions'!$AK$3:$AK$8,'Utility Functions'!$AL$3:$AL$8)","v":0.2},{"$f":"valuePL(U10,'Utility Functions'!$AM$3:$AM$5,'Utility Functions'!$AN$3:$AN$5)","v":0},{"$f":"valuePL(V10,'Utility Functions'!$AO$3:$AO$5,'Utility Functions'!$AP$3:$AP$5)","v":1},{"$f":"valuePL(W10,'Utility Functions'!$AQ$3:$AQ$6,'Utility Functions'!$AR$3:$AR$6)","v":1},{"$f":"valuePL(X10,'Utility Functions'!$AS$3:$AS$6,'Utility Functions'!$AT$3:$AT$6)","v":1},{"$f":"valuePL(Y10,'Utility Functions'!$AU$3:$AU$6,'Utility Functions'!$AV$3:$AV$6)","v":0.2},{"$f":"valuePL(Z10,'Utility Functions'!$AW$3:$AW$5,'Utility Functions'!$AX$3:$AX$5)","v":1},{"$f":"valuePL(AA10,'Utility Functions'!$AY$3:$AY$6,'Utility Functions'!$AZ$3:$AZ$6)","v":0.2},{"$f":"valuePL(AB10,'Utility Functions'!$BA$3:$BA$5,'Utility Functions'!$BB$3:$BB$5)","v":0.25},{"$f":"valuePL(AC10,'Utility Functions'!$BC$3:$BC$5,'Utility Functions'!$BD$3:$BD$5)","v":1},11.893773577166716,null,11.893773577166719,3.1246021666670343,0.50917141049968373,0,2.6100000000000003,5.65]
[10,{"$f":"valueE(B11,'Utility Functions'!$B$3,'Utility Functions'!$B$4,'Utility Functions'!$B$5,'Utility Functions'!$B$6)","v":0},{"$f":"valueE(C11,'Utility Functions'!$D$3,'Utility Functions'!$D$4,'Utility Functions'!$D$5,'Utility Functions'!$D$6)","v":0},{"$f":"valuePL(D11,'Utility Functions'!$E$3:$E$5,'Utility Functions'!$F$3:$F$5)","v":0},{"$f":"valuePL(E11,'Utility Functions'!$G$3:$G$5,'Utility Functions'!$H$3:$H$5)","v":0},{"$f":"valuePL(F11,'Utility Functions'!$I$3:$I$4,'Utility Functions'!$J$3:$J$5)","v":0},{"$f":"valueE(G11,'Utility Functions'!$L$3,'Utility Functions'!$L$4,'Utility Functions'!$L$5,'Utility Functions'!$L$6)","v":0},{"$f":"valueE(H11,'Utility Functions'!$N$3,'Utility Functions'!$N$4,'Utility Functions'!$N$5,'Utility Functions'!$N$6)","v":0},{"$f":"valuePL(I11,'Utility Functions'!$O$3:$O$6,'Utility Functions'!$P$3:$P$6)","v":0},{"$f":"valuePL(J11,'Utility Functions'!$Q$3:$Q$6,'Utility Functions'!$R$3:$R$6)","v":0},{"$f":"valuePL(K11,'Utility Functions'!$S$3:$S$7,'Utility Functions'!$T$3:$T$7)","v":0},{"$f":"valueE(L11,'Utility Functions'!$V$3,'Utility Functions'!$V$4,'Utility Functions'!$V$5,'Utility Functions'!$V$6)","v":0},{"$f":"valuePL(M11,'Utility Functions'!$W$3:$W$6,'Utility Functions'!$X$3:$X$6)","v":0},{"$f":"valueE(N11,'Utility Functions'!$Z$3,'Utility Functions'!$Z$4,'Utility Functions'!$Z$5,'Utility Functions'!$Z$6)","v":0.75},{"$f":"valuePL(O11,'Utility Functions'!$AA$3:$AA$5,'Utility Functions'!$AB$3:$AB$5)","v":1},{"$f":"valuePL(P11,'Utility Functions'!$AC$3:$AC$7,'Utility Functions'!$AD$3:$AD$7)","v":0.25},{"$f":"valuePL(Q11,'Utility Functions'!$AE$3:$AE$6,'Utility Functions'!$AF$3:$AF$6)","v":0.5},{"$f":"valuePL(R11,'Utility Functions'!$AG$3:$AG$6,'Utility Functions'!$AH$3:$AH$6)","v":1},{"$f":"valuePL(S11,'Utility Functions'!$AI$3:$AI$6,'Utility Functions'!$AJ$3:$AJ$6)","v":0.66},{"$f":"valuePL(T11,'Utility Functions'!$AK$3:$AK$8,'Utility Functions'!$AL$3:$AL$8)","v":0.4},{"$f":"valuePL(U11,'Utility Functions'!$AM$3:$AM$5,'Utility Functions'!$AN$3:$AN$5)","v":0},{"$f":"valuePL(V11,'Utility Functions'!$AO$3:$AO$5,'Utility Functions'!$AP$3:$AP$5)","v":0},{"$f":"valuePL(W11,'Utility Functions'!$AQ$3:$AQ$6,'Utility Functions'!$AR$3:$AR$6)","v":0.75},{"$f":"valuePL(X11,'Utility Functions'!$AS$3:$AS$6,'Utility Functions'!$AT$3:$AT$6)","v":1},{"$f":"valuePL(Y11,'Utility Functions'!$AU$3:$AU$6,'Utility Functions'!$AV$3:$AV$6)","v":1},{"$f":"valuePL(Z11,'Utility Functions'!$AW$3:$AW$5,'Utility Functions'!$AX$3:$AX$5)","v":0.5},{"$f":"valuePL(AA11,'Utility Functions'!$AY$3:$AY$6,'Utility Functions'!$AZ$3:$AZ$6)","v":0.2},{"$f":"valuePL(AB11,'Utility Functions'!$BA$3:$BA$5,'Utility Functions'!$BB$3:$BB$5)","v":0},{"$f":"valuePL(AC11,'Utility Functions'!$BC$3:$BC$5,'Utility Functions'!$BD$3:$BD$5)","v":1},9.01,null,9.0100000000000016,0,0,1.75,2.81,4.45]
[11,{"$f":"valueE(B12,'Utility Functions'!$B$3,'Utility Functions'!$B$4,'Utility Functions'!$B$5,'Utility Functions'!$B$6)","v":0},{"$f":"valueE(C12,'Utility Functions'!$D$3,'Utility Functions'!$D$4,'Utility Functions'!$D$5,'Utility Functions'!$D$6)","v":0},{"$f":"valuePL(D12,'Utility Functions'!$E$3:$E$5,'Utility Functions'!$F$3:$F$5)","v":0},{"$f":"valuePL(E12,'Utility Functions'!$G$3:$G$5,'Utility Functions'!$H$3:$H$5)","v":0},{"$f":"valuePL(F12,'Utility Functions'!$I$3:$I$4,'Utility Functions'!$J$3:$J$5)","v":0},{"$f":"valueE(G12,'Utility Functions'!$L$3,'Utility Functions'!$L$4,'Utility Functions'!$L$5,'Utility Functions'!$L$6)","v":3.2258064516129031E-2},{"$f":"valueE(H12,'Utility Functions'!$N$3,'Utility Functions'!$N$4,'Utility Functions'!$N$5,'Utility Functions'!$N$6)","v":9.6774193548387094E-2},{"$f":"valuePL(I12,'Utility Functions'!$O$3:$O$6,'Utility Functions'!$P$3:$P$6)","v":0.54181818181818187},{"$f":"valuePL(J12,'Utility Functions'!$Q$3:$Q$6,'Utility Functions'!$R$3:$R$6)","v":0.91818181818181821},{"$f":"valuePL(K12,'Utility Functions'!$S$3:$S$7,'Utility Functions'!$T$3:$T$7)","v":0.54181818181818187},{"$f":"valueE(L12,'Utility Functions'!$V$3,'Utility Functions'!$V$4,'Utility Functions'!$V$5,'Utility Functions'!$V$6)","v":1},{"$f":"valuePL(M12,'Utility Functions'!$W$3:$W$6,'Utility Functions'!$X$3:$X$6)","v":0.91818181818181821},{"$f":"valueE(N12,'Utility Functions'!$Z$3,'Utility Functions'!$Z$4,'Utility Functions'!$Z$5,'Utility Functions'!$Z$6)","v":0.375},{"$f":"valuePL(O12,'Utility Functions'!$AA$3:$AA$5,'Utility Functions'!$AB$3:$AB$5)","v":0.25},{"$f":"valuePL(P12,'Utility Functions'!$AC$3:$AC$7,'Utility Functions'!$AD$3:$AD$7)","v":0.25},{"$f":"valuePL(Q12,'Utility Functions'!$AE$3:$AE$6,'Utility Functions'!$AF$3:$AF$6)","v":0},{"$f":"valuePL(R12,'Utility Functions'!$AG$3:$AG$6,'Utility Functions'!$AH$3:$AH$6)","v":1},{"$f":"valuePL(S12,'Utility Functions'!$AI$3:$AI$6,'Utility Functions'!$AJ$3:$AJ$6)","v":1},{"$f":"valuePL(T12,'Utility Functions'!$AK$3:$AK$8,'Utility Functions'!$AL$3:$AL$8)","v":0.4},{"$f":"valuePL(U12,'Utility Functions'!$AM$3:$AM$5,'Utility Functions'!$AN$3:$AN$5)","v":1},{"$f":"valuePL(V12,'Utility Functions'!$AO$3:$AO$5,'Utility Functions'!$AP$3:$AP$5)","v":1},{"$f":"valuePL(W12,'Utility Functions'!$AQ$3:$AQ$6,'Utility Functions'!$AR$3:$AR$6)","v":0.2},{"$f":"valuePL(X12,'Utility Functions'!$AS$3:$AS$6,'Utility Functions'!$AT$3:$AT$6)","v":1},{"$f":"valuePL(Y12,'Utility Functions'!$AU$3:$AU$6,'Utility Functions'!$AV$3:$AV$6)","v":1},{"$f":"valuePL(Z12,'Utility Functions'!$AW$3:$AW$5,'Utility Functions'!$AX$3:$AX$5)","v":0.5},{"$f":"valuePL(AA12,'Utility Functions'!$AY$3:$AY$6,'Utility Functions'!$AZ$3:$AZ$6)","v":0.89999999999999991},{"$f":"valuePL(AB12,'Utility Functions'!$BA$3:$BA$5,'Utility Functions'!$BB$3:$BB$5)","v":0},{"$f":"valuePL(AC12,'Utility Functions'!$BC$3:$BC$5,'Utility Functions'!$BD$3:$BD$5)","v":0.25},13.174032258064516,null,13.174032258064516,0,4.0490322580645159,0.625,3.65,4.8499999999999996]
[12,{"$f":"valueE(B13,'Utility Functions'!$B$3,'Utility Functions'!$B$4,'Utility Functions'!$B$5,'Utility Functions'!$B$6)","v":0.32968045347775865},{"$f":"valueE(C13,'Utility Functions'!$D$3,'Utility Functions'!$D$4,'Utility Functions'!$D$5,'Utility Functions'!$D$6)","v":0.78989979019422951},{"$f":"valuePL(D13,'Utility Functions'!$E$3:$E$5,'Utility Functions'!$F$3:$F$5)","v":1},{"$f":"valuePL(E13,'Utility Functions'!$G$3:$G$5,'Utility Functions'!$H$3:$H$5)","v":0.5},{"$f":"valuePL(F13,'Utility Functions'!$I$3:$I$4,'Utility Functions'!$J$3:$J$5)","v":0},{"$f":"valueE(G13,'Utility Functions'!$L$3,'Utility Functions'!$L$4,'Utility Functions'!$L$5,'Utility Functions'!$L$6)","v":0},{"$f":"valueE(H13,'Utility Functions'!$N$3,'Utility Functions'!$N$4,'Utility Functions'!$N$5,'Utility Functions'!$N$6)","v":0},{"$f":"valuePL(I13,'Utility Functions'!$O$3:$O$6,'Utility Functions'!$P$3:$P$6)","v":0},{"$f":"valuePL(J13,'Utility Functions'!$Q$3:$Q$6,'Utility Functions'!$R$3:$R$6)","v":0},{"$f":"valuePL(K13,'Utility Functions'!$S$3:$S$7,'Utility Functions'!$T$3:$T$7)","v":0},{"$f":"valueE(L13,'Utility Functions'!$V$3,'Utility Functions'!$V$4,'Utility Functions'!$V$5,'Utility Functions'!$V$6)","v":0},{"$f":"valuePL(M13,'Utility Functions'!$W$3:$W$6,'Utility Functions'!$X$3:$X$6)","v":0},{"$f":"valueE(N13,'Utility Functions'!$Z$3,'Utility Functions'!$Z$4,'Utility Functions'!$Z$5,'Utility Functions'!$Z$6)","v":0},{"$f":"valuePL(O13,'Utility Functions'!$AA$3:$AA$5,'Utility Functions'!$AB$3:$AB$5)","v":0},{"$f":"valuePL(P13,'Utility Functions'!$AC$3:$AC$7,'Utility Functions'!$AD$3:$AD$7)","v":0},{"$f":"valuePL(Q13,'Utility Functions'!$AE$3:$AE$6,'Utility Functions'!$AF$3:$AF$6)","v":0.1},{"$f":"valuePL(R13,'Utility Functions'!$AG$3:$AG$6,'Utility Functions'!$AH$3:$AH$6)","v":1},{"$f":"valuePL(S13,'Utility Functions'!$AI$3:$AI$6,'Utility Functions'!$AJ$3:$AJ$6)","v":1},{"$f":"valuePL(T13,'Utility Functions'!$AK$3:$AK$8,'Utility Functions'!$AL$3:$AL$8)","v":0.6},{"$f":"valuePL(U13,'Utility Functions'!$AM$3:$AM$5,'Utility Functions'!$AN$3:$AN$5)","v":0},{"$f":"valuePL(V13,'Utility Functions'!$AO$3:$AO$5,'Utility Functions'!$AP$3:$AP$5)","v":0.5},{"$f":"valuePL(W13,'Utility Functions'!$AQ$3:$AQ$6,'Utility Functions'!$AR$3:$AR$6)","v":0.2},{"$f":"valuePL(X13,'Utility Functions'!$AS$3:$AS$6,'Utility Functions'!$AT$3:$AT$6)","v":1},{"$f":"valuePL(Y13,'Utility Functions'!$AU$3:$AU$6,'Utility Functions'!$AV$3:$AV$6)","v":0.2},{"$f":"valuePL(Z13,'Utility Functions'!$AW$3:$AW$5,'Utility Functions'!$AX$3:$AX$5)","v":1},{"$f":"valuePL(AA13,'Utility Functions'!$AY$3:$AY$6,'Utility Functions'!$AZ$3:$AZ$6)","v":0.2},{"$f":"valuePL(AB13,'Utility Functions'!$BA$3:$BA$5,'Utility Functions'!$BB$3:$BB$5)","v":1},{"$f":"valuePL(AC13,'Utility Functions'!$BC$3:$BC$5,'Utility Functions'!$BD$3:$BD$5)","v":0},9.4195802436719873,null,9.4195802436719873,2.6195802436719884,0,0,2.7,4.0999999999999996]
[13,{"$f":"valueE(B14,'Utility Functions'!$B$3,'Utility Functions'!$B$4,'Utility Functions'!$B$5,'Utility Functions'!$B$6)","v":0},{"$f":"valueE(C14,'Utility Functions'!$D$3,'Utility Functions'!$D$4,'Utility Functions'!$D$5,'Utility Functions'!$D$6)","v":0},{"$f":"valuePL(D14,'Utility Functions'!$E$3:$E$5,'Utility Functions'!$F$3:$F$5)","v":0},{"$f":"valuePL(E14,'Utility Functions'!$G$3:$G$5,'Utility Functions'!$H$3:$H$5)","v":0},{"$f":"valuePL(F14,'Utility Functions'!$I$3:$I$4,'Utility Functions'!$J$3:$J$5)","v":0},{"$f":"valueE(G14,'Utility Functions'!$L$3,'Utility Functions'!$L$4,'Utility Functions'!$L$5,'Utility Functions'!$L$6)","v":0},{"$f":"valueE(H14,'Utility Functions'!$N$3,'Utility Functions'!$N$4,'Utility Functions'!$N$5,'Utility Functions'!$N$6)","v":1.1385199240986717E-2},{"$f":"valuePL(I14,'Utility Functions'!$O$3:$O$6,'Utility Functions'!$P$3:$P$6)","v":0.3290909090909091},{"$f":"valuePL(J14,'Utility Functions'!$Q$3:$Q$6,'Utility Functions'!$R$3:$R$6)","v":0.04},{"$f":"valuePL(K14,'Utility Functions'!$S$3:$S$7,'Utility Functions'!$T$3:$T$7)","v":0.3290909090909091},{"$f":"valueE(L14,'Utility Functions'!$V$3,'Utility Functions'!$V$4,'Utility Functions'!$V$5,'Utility Functions'!$V$6)","v":1},{"$f":"valuePL(M14,'Utility Functions'!$W$3:$W$6,'Utility Functions'!$X$3:$X$6)","v":0.04},{"$f":"valueE(N14,'Utility Functions'!$Z$3,'Utility Functions'!$Z$4,'Utility Functions'!$Z$5,'Utility Functions'!$Z$6)","v":0.875},{"$f":"valuePL(O14,'Utility Functions'!$AA$3:$AA$5,'Utility Functions'!$AB$3:$AB$5)","v":0.25},{"$f":"valuePL(P14,'Utility Functions'!$AC$3:$AC$7,'Utility Functions'!$AD$3:$AD$7)","v":0.25},{"$f":"valuePL(Q14,'Utility Functions'!$AE$3:$AE$6,'Utility Functions'!$AF$3:$AF$6)","v":0},{"$f":"valuePL(R14,'Utility Functions'!$AG$3:$AG$6,'Utility Functions'!$AH$3:$AH$6)","v":1},{"$f":"valuePL(S14,'Utility Functions'!$AI$3:$AI$6,'Utility Functions'!$AJ$3:$AJ$6)","v":1},{"$f":"valuePL(T14,'Utility Functions'!$AK$3:$AK$8,'Utility Functions'!$AL$3:$AL$8)","v":0},{"$f":"valuePL(U14,'Utility Functions'!$AM$3:$AM$5,'Utility Functions'!$AN$3:$AN$5)","v":0},{"$f":"valuePL(V14,'Utility Functions'!$AO$3:$AO$5,'Utility Functions'!$AP$3:$AP$5)","v":0.5},{"$f":"valuePL(W14,'Utility Functions'!$AQ$3:$AQ$6,'Utility Functions'!$AR$3:$AR$6)","v":0},{"$f":"valuePL(X14,'Utility Functions'!$AS$3:$AS$6,'Utility Functions'!$AT$3:$AT$6)","v":0.2},{"$f":"valuePL(Y14,'Utility Functions'!$AU$3:$AU$6,'Utility Functions'!$AV$3:$AV$6)","v":0},{"$f":"valuePL(Z14,'Utility Functions'!$AW$3:$AW$5,'Utility Functions'!$AX$3:$AX$5)","v":1},{"$f":"valuePL(AA14,'Utility Functions'!$AY$3:$AY$6,'Utility Functions'!$AZ$3:$AZ$6)","v":0.2},{"$f":"valuePL(AB14,'Utility Functions'!$BA$3:$BA$5,'Utility Functions'!$BB$3:$BB$5)","v":0.25},{"$f":"valuePL(AC14,'Utility Functions'!$BC$3:$BC$5,'Utility Functions'!$BD$3:$BD$5)","v":0.25},7.5245670174228056,null,7.5245670174228056,0,1.7495670174228048,1.125,2.25,2.4]
[14,{"$f":"valueE(B15,'Utility Functions'!$B$3,'Utility Functions'!$B$4,'Utility Functions'!$B$5,'Utility Functions'!$B$6)","v":0.69880684688087746},{"$f":"valueE(C15,'Utility Functions'!$D$3,'Utility Functions'!$D$4,'Utility Functions'!$D$5,'Utility Functions'!$D$6)","v":0.78989979019422951},{"$f":"valuePL(D15,'Utility Functions'!$E$3:$E$5,'Utility Functions'!$F$3:$F$5)","v":0.5},{"$f":"valuePL(E15,'Utility Functions'!$G$3:$G$5,'Utility Functions'!$H$3:$H$5)","v":0.5},{"$f":"valuePL(F15,'Utility Functions'!$I$3:$I$4,'Utility Functions'!$J$3:$J$5)","v":0},{"$f":"valueE(G15,'Utility Functions'!$L$3,'Utility Functions'!$L$4,'Utility Functions'!$L$5,'Utility Functions'!$L$6)","v":0},{"$f":"valueE(H15,'Utility Functions'!$N$3,'Utility Functions'!$N$4,'Utility Functions'!$N$5,'Utility Functions'!$N$6)","v":0},{"$f":"valuePL(I15,'Utility Functions'!$O$3:$O$6,'Utility Functions'!$P$3:$P$6)","v":0},{"$f":"valuePL(J15,'Utility Functions'!$Q$3:$Q$6,'Utility Functions'!$R$3:$R$6)","v":0},{"$f":"valuePL(K15,'Utility Functions'!$S$3:$S$7,'Utility Functions'!$T$3:$T$7)","v":0},{"$f":"valueE(L15,'Utility Functions'!$V$3,'Utility Functions'!$V$4,'Utility Functions'!$V$5,'Utility Functions'!$V$6)","v":0},{"$f":"valuePL(M15,'Utility Functions'!$W$3:$W$6,'Utility Functions'!$X$3:$X$6)","v":0},{"$f":"valueE(N15,'Utility Functions'!$Z$3,'Utility Functions'!$Z$4,'Utility Functions'!$Z$5,'Utility Functions'!$Z$6)","v":0.75},{"$f":"valuePL(O15,'Utility Functions'!$AA$3:$AA$5,'Utility Functions'!$AB$3:$AB$5)","v":0.25},{"$f":"valuePL(P15,'Utility Functions'!$AC$3:$AC$7,'Utility Functions'!$AD$3:$AD$7)","v":0.25},{"$f":"valuePL(Q15,'Utility Functions'!$AE$3:$AE$6,'Utility Functions'!$AF$3:$AF$6)","v":0},{"$f":"valuePL(R15,'Utility Functions'!$AG$3:$AG$6,'Utility Functions'!$AH$3:$AH$6)","v":1},{"$f":"valuePL(S15,'Utility Functions'!$AI$3:$AI$6,'Utility Functions'!$AJ$3:$AJ$6)","v":1},{"$f":"valuePL(T15,'Utility Functions'!$AK$3:$AK$8,'Utility Functions'!$AL$3:$AL$8)","v":0},{"$f":"valuePL(U15,'Utility Functions'!$AM$3:$AM$5,'Utility Functions'!$AN$3:$AN$5)","v":0},{"$f":"valuePL(V15,'Utility Functions'!$AO$3:$AO$5,'Utility Functions'!$AP$3:$AP$5)","v":0.5},{"$f":"valuePL(W15,'Utility Functions'!$AQ$3:$AQ$6,'Utility Functions'!$AR$3:$AR$6)","v":0.2},{"$f":"valuePL(X15,'Utility Functions'!$AS$3:$AS$6,'Utility Functions'!$AT$3:$AT$6)","v":1},{"$f":"valuePL(Y15,'Utility Functions'!$AU$3:$AU$6,'Utility Functions'!$AV$3:$AV$6)","v":1},{"$f":"valuePL(Z15,'Utility Functions'!$AW$3:$AW$5,'Utility Functions'!$AX$3:$AX$5)","v":0.5},{"$f":"valuePL(AA15,'Utility Functions'!$AY$3:$AY$6,'Utility Functions'!$AZ$3:$AZ$6)","v":0.89999999999999991},{"$f":"valuePL(AB15,'Utility Functions'!$BA$3:$BA$5,'Utility Functions'!$BB$3:$BB$5)","v":0.25},{"$f":"valuePL(AC15,'Utility Functions'!$BC$3:$BC$5,'Utility Functions'!$BD$3:$BD$5)","v":0.25},10.338706637075108,null,10.338706637075106,2.488706637075107,0,1,2.25,4.5999999999999996]
[15,{"$f":"valueE(B16,'Utility Functions'!$B$3,'Utility Functions'!$B$4,'Utility Functions'!$B$5,'Utility Functions'!$B$6)","v":0.98994966417177144},{"$f":"valueE(C16,'Utility Functions'!$D$3,'Utility Functions'!$D$4,'Utility Functions'!$D$5,'Utility Functions'!$D$6)","v":0.71352759724260828},{"$f":"valuePL(D16,'Utility Functions'!$E$3:$E$5,'Utility Functions'!$F$3:$F$5)","v":1},{"$f":"valuePL(E16,'Utility Functions'!$G$3:$G$5,'Utility Functions'!$H$3:$H$5)","v":0.5},{"$f":"valuePL(F16,'Utility Functions'!$I$3:$I$4,'Utility Functions'!$J$3:$J$5)","v":1},{"$f":"valueE(G16,'Utility Functions'!$L$3,'Utility Functions'!$L$4,'Utility Functions'!$L$5,'Utility Functions'!$L$6)","v":0},{"$f":"valueE(H16,'Utility Functions'!$N$3,'Utility Functions'!$N$4,'Utility Functions'!$N$5,'Utility Functions'!$N$6)","v":0},{"$f":"valuePL(I16,'Utility Functions'!$O$3:$O$6,'Utility Functions'!$P$3:$P$6)","v":9.2000000000000012E-2},{"$f":"valuePL(J16,'Utility Functions'!$Q$3:$Q$6,'Utility Functions'!$R$3:$R$6)","v":6.0000000000000012E-2},{"$f":"valuePL(K16,'Utility Functions'!$S$3:$S$7,'Utility Functions'!$T$3:$T$7)","v":6.0000000000000012E-2},{"$f":"valueE(L16,'Utility Functions'!$V$3,'Utility Functions'!$V$4,'Utility Functions'!$V$5,'Utility Functions'!$V$6)","v":1},{"$f":"valuePL(M16,'Utility Functions'!$W$3:$W$6,'Utility Functions'!$X$3:$X$6)","v":6.0000000000000012E-2},{"$f":"valueE(N16,'Utility Functions'!$Z$3,'Utility Functions'!$Z$4,'Utility Functions'!$Z$5,'Utility Functions'!$Z$6)","v":0.125},{"$f":"valuePL(O16,'Utility Functions'!$AA$3:$AA$5,'Utility Functions'!$AB$3:$AB$5)","v":1},{"$f":"valuePL(P16,'Utility Functions'!$AC$3:$AC$7,'Utility Functions'!$AD$3:$AD$7)","v":0.5},{"$f":"valuePL(Q16,'Utility Functions'!$AE$3:$AE$6,'Utility Functions'!$AF$3:$AF$6)","v":0},{"$f":"valuePL(R16,'Utility Functions'!$AG$3:$AG$6,'Utility Functions'!$AH$3:$AH$6)","v":0.8},{"$f":"valuePL(S16,'Utility Functions'!$AI$3:$AI$6,'Utility Functions'!$AJ$3:$AJ$6)","v":1},{"$f":"valuePL(T16,'Utility Functions'!$AK$3:$AK$8,'Utility Functions'!$AL$3:$AL$8)","v":0.6},{"$f":"valuePL(U16,'Utility Functions'!$AM$3:$AM$5,'Utility Functions'!$AN$3:$AN$5)","v":1},{"$f":"valuePL(V16,'Utility Functions'!$AO$3:$AO$5,'Utility Functions'!$AP$3:$AP$5)","v":0},{"$f":"valuePL(W16,'Utility Functions'!$AQ$3:$AQ$6,'Utility Functions'!$AR$3:$AR$6)","v":1},{"$f":"valuePL(X16,'Utility Functions'!$AS$3:$AS$6,'Utility Functions'!$AT$3:$AT$6)","v":0.2},{"$f":"valuePL(Y16,'Utility Functions'!$AU$3:$AU$6,'Utility Functions'!$AV$3:$AV$6)","v":0.2},{"$f":"valuePL(Z16,'Utility Functions'!$AW$3:$AW$5,'Utility Functions'!$AX$3:$AX$5)","v":1},{"$f":"valuePL(AA16,'Utility Functions'!$AY$3:$AY$6,'Utility Functions'!$AZ$3:$AZ$6)","v":1},{"$f":"valuePL(AB16,'Utility Functions'!$BA$3:$BA$5,'Utility Functions'!$BB$3:$BB$5)","v":1},{"$f":"valuePL(AC16,'Utility Functions'!$BC$3:$BC$5,'Utility Functions'!$BD$3:$BD$5)","v":0.25},15.150477261414375,null,15.15047726141438,4.2034772614143794,1.272,1.125,3.9,4.6500000000000004]
[16,{"$f":"valueE(B17,'Utility Functions'!$B$3,'Utility Functions'!$B$4,'Utility Functions'!$B$5,'Utility Functions'!$B$6)","v":0},{"$f":"valueE(C17,'Utility Functions'!$D$3,'Utility Functions'!$D$4,'Utility Functions'!$D$5,'Utility Functions'!$D$6)","v":0},{"$f":"valuePL(D17,'Utility Functions'!$E$3:$E$5,'Utility Functions'!$F$3:$F$5)","v":0},{"$f":"valuePL(E17,'Utility Functions'!$G$3:$G$5,'Utility Functions'!$H$3:$H$5)","v":0},{"$f":"valuePL(F17,'Utility Functions'!$I$3:$I$4,'Utility Functions'!$J$3:$J$5)","v":0},{"$f":"valueE(G17,'Utility Functions'!$L$3,'Utility Functions'!$L$4,'Utility Functions'!$L$5,'Utility Functions'!$L$6)","v":0},{"$f":"valueE(H17,'Utility Functions'!$N$3,'Utility Functions'!$N$4,'Utility Functions'!$N$5,'Utility Functions'!$N$6)","v":0},{"$f":"valuePL(I17,'Utility Functions'!$O$3:$O$6,'Utility Functions'!$P$3:$P$6)","v":1},{"$f":"valuePL(J17,'Utility Functions'!$Q$3:$Q$6,'Utility Functions'!$R$3:$R$6)","v":0.91818181818181821},{"$f":"valuePL(K17,'Utility Functions'!$S$3:$S$7,'Utility Functions'!$T$3:$T$7)","v":1},{"$f":"valueE(L17,'Utility Functions'!$V$3,'Utility Functions'!$V$4,'Utility Functions'!$V$5,'Utility Functions'!$V$6)","v":0.83333333333333337},{"$f":"valuePL(M17,'Utility Functions'!$W$3:$W$6,'Utility Functions'!$X$3:$X$6)","v":0.91818181818181821},{"$f":"valueE(N17,'Utility Functions'!$Z$3,'Utility Functions'!$Z$4,'Utility Functions'!$Z$5,'Utility Functions'!$Z$6)","v":0},{"$f":"valuePL(O17,'Utility Functions'!$AA$3:$AA$5,'Utility Functions'!$AB$3:$AB$5)","v":0},{"$f":"valuePL(P17,'Utility Functions'!$AC$3:$AC$7,'Utility Functions'!$AD$3:$AD$7)","v":0.75},{"$f":"valuePL(Q17,'Utility Functions'!$AE$3:$AE$6,'Utility Functions'!$AF$3:$AF$6)","v":0},{"$f":"valuePL(R17,'Utility Functions'!$AG$3:$AG$6,'Utility Functions'!$AH$3:$AH$6)","v":1},{"$f":"valuePL(S17,'Utility Functions'!$AI$3:$AI$6,'Utility Functions'!$AJ$3:$AJ$6)","v":1},{"$f":"valuePL(T17,'Utility Functions'!$AK$3:$AK$8,'Utility Functions'!$AL$3:$AL$8)","v":1},{"$f":"valuePL(U17,'Utility Functions'!$AM$3:$AM$5,'Utility Functions'!$AN$3:$AN$5)","v":0},{"$f":"valuePL(V17,'Utility Functions'!$AO$3:$AO$5,'Utility Functions'!$AP$3:$AP$5)","v":1},{"$f":"valuePL(W17,'Utility Functions'!$AQ$3:$AQ$6,'Utility Functions'!$AR$3:$AR$6)","v":0.75},{"$f":"valuePL(X17,'Utility Functions'!$AS$3:$AS$6,'Utility Functions'!$AT$3:$AT$6)","v":0.75},{"$f":"valuePL(Y17,'Utility Functions'!$AU$3:$AU$6,'Utility Functions'!$AV$3:$AV$6)","v":0.2},{"$f":"valuePL(Z17,'Utility Functions'!$AW$3:$AW$5,'Utility Functions'!$AX$3:$AX$5)","v":1},{"$f":"valuePL(AA17,'Utility Functions'!$AY$3:$AY$6,'Utility Functions'!$AZ$3:$AZ$6)","v":1},{"$f":"valuePL(AB17,'Utility Functions'!$BA$3:$BA$5,'Utility Functions'!$BB$3:$BB$5)","v":1},{"$f":"valuePL(AC17,'Utility Functions'!$BC$3:$BC$5,'Utility Functions'!$BD$3:$BD$5)","v":1},15.119696969696969,null,15.119696969696971,0,4.6696969696969699,0,3.75,6.7]
[17,{"$f":"valueE(B18,'Utility Functions'!$B$3,'Utility Functions'!$B$4,'Utility Functions'!$B$5,'Utility Functions'!$B$6)","v":0.32968045347775865},{"$f":"valueE(C18,'Utility Functions'!$D$3,'Utility Functions'!$D$4,'Utility Functions'!$D$5,'Utility Functions'!$D$6)","v":0.78989979019422951},{"$f":"valuePL(D18,'Utility Functions'!$E$3:$E$5,'Utility Functions'!$F$3:$F$5)","v":1},{"$f":"valuePL(E18,'Utility Functions'!$G$3:$G$5,'Utility Functions'!$H$3:$H$5)","v":0.5},{"$f":"valuePL(F18,'Utility Functions'!$I$3:$I$4,'Utility Functions'!$J$3:$J$5)","v":1},{"$f":"valueE(G18,'Utility Functions'!$L$3,'Utility Functions'!$L$4,'Utility Functions'!$L$5,'Utility Functions'!$L$6)","v":0.31182795698924731},{"$f":"valueE(H18,'Utility Functions'!$N$3,'Utility Functions'!$N$4,'Utility Functions'!$N$5,'Utility Functions'!$N$6)","v":0.27514231499051234},{"$f":"valuePL(I18,'Utility Functions'!$O$3:$O$6,'Utility Functions'!$P$3:$P$6)","v":0},{"$f":"valuePL(J18,'Utility Functions'!$Q$3:$Q$6,'Utility Functions'!$R$3:$R$6)","v":0},{"$f":"valuePL(K18,'Utility Functions'!$S$3:$S$7,'Utility Functions'!$T$3:$T$7)","v":0},{"$f":"valueE(L18,'Utility Functions'!$V$3,'Utility Functions'!$V$4,'Utility Functions'!$V$5,'Utility Functions'!$V$6)","v":1},{"$f":"valuePL(M18,'Utility Functions'!$W$3:$W$6,'Utility Functions'!$X$3:$X$6)","v":6.0000000000000012E-2},{"$f":"valueE(N18,'Utility Functions'!$Z$3,'Utility Functions'!$Z$4,'Utility Functions'!$Z$5,'Utility Functions'!$Z$6)","v":0},{"$f":"valuePL(O18,'Utility Functions'!$AA$3:$AA$5,'Utility Functions'!$AB$3:$AB$5)","v":0},{"$f":"valuePL(P18,'Utility Functions'!$AC$3:$AC$7,'Utility Functions'!$AD$3:$AD$7)","v":0},{"$f":"valuePL(Q18,'Utility Functions'!$AE$3:$AE$6,'Utility Functions'!$AF$3:$AF$6)","v":0},{"$f":"valuePL(R18,'Utility Functions'!$AG$3:$AG$6,'Utility Functions'!$AH$3:$AH$6)","v":1},{"$f":"valuePL(S18,'Utility Functions'!$AI$3:$AI$6,'Utility Functions'!$AJ$3:$AJ$6)","v":0.66},{"$f":"valuePL(T18,'Utility Functions'!$AK$3:$AK$8,'Utility Functions'!$AL$3:$AL$8)","v":0},{"$f":"valuePL(U18,'Utility Functions'!$AM$3:$AM$5,'Utility Functions'!$AN$3:$AN$5)","v":0},{"$f":"valuePL(V18,'Utility Functions'!$AO$3:$AO$5,'Utility Functions'!$AP$3:$AP$5)","v":1},{"$f":"valuePL(W18,'Utility Functions'!$AQ$3:$AQ$6,'Utility Functions'!$AR$3:$AR$6)","v":1},{"$f":"valuePL(X18,'Utility Functions'!$AS$3:$AS$6,'Utility Functions'!$AT$3:$AT$6)","v":0.2},{"$f":"valuePL(Y18,'Utility Functions'!$AU$3:$AU$6,'Utility Functions'!$AV$3:$AV$6)","v":0},{"$f":"valuePL(Z18,'Utility Functions'!$AW$3:$AW$5,'Utility Functions'!$AX$3:$AX$5)","v":0.5},{"$f":"valuePL(AA18,'Utility Functions'!$AY$3:$AY$6,'Utility Functions'!$AZ$3:$AZ$6)","v":0},{"$f":"valuePL(AB18,'Utility Functions'!$BA$3:$BA$5,'Utility Functions'!$BB$3:$BB$5)","v":1},{"$f":"valuePL(AC18,'Utility Functions'!$BC$3:$BC$5,'Utility Functions'!$BD$3:$BD$5)","v":0.25},10.876550515651747,null,10.876550515651747,3.6195802436719884,1.6469702719797596,0,1.6600000000000001,3.95]
[18,{"$f":"valueE(B19,'Utility Functions'!$B$3,'Utility Functions'!$B$4,'Utility Functions'!$B$5,'Utility Functions'!$B$6)","v":0},{"$f":"valueE(C19,'Utility Functions'!$D$3,'Utility Functions'!$D$4,'Utility Functions'!$D$5,'Utility Functions'!$D$6)","v":0},{"$f":"valuePL(D19,'Utility Functions'!$E$3:$E$5,'Utility Functions'!$F$3:$F$5)","v":0},{"$f":"valuePL(E19,'Utility Functions'!$G$3:$G$5,'Utility Functions'!$H$3:$H$5)","v":0},{"$f":"valuePL(F19,'Utility Functions'!$I$3:$I$4,'Utility Functions'!$J$3:$J$5)","v":0},{"$f":"valueE(G19,'Utility Functions'!$L$3,'Utility Functions'!$L$4,'Utility Functions'!$L$5,'Utility Functions'!$L$6)","v":0},{"$f":"valueE(H19,'Utility Functions'!$N$3,'Utility Functions'!$N$4,'Utility Functions'!$N$5,'Utility Functions'!$N$6)","v":2.8462998102466792E-2},{"$f":"valuePL(I19,'Utility Functions'!$O$3:$O$6,'Utility Functions'!$P$3:$P$6)","v":0},{"$f":"valuePL(J19,'Utility Functions'!$Q$3:$Q$6,'Utility Functions'!$R$3:$R$6)","v":0},{"$f":"valuePL(K19,'Utility Functions'!$S$3:$S$7,'Utility Functions'!$T$3:$T$7)","v":0},{"$f":"valueE(L19,'Utility Functions'!$V$3,'Utility Functions'!$V$4,'Utility Functions'!$V$5,'Utility Functions'!$V$6)","v":0},{"$f":"valuePL(M19,'Utility Functions'!$W$3:$W$6,'Utility Functions'!$X$3:$X$6)","v":0},{"$f":"valueE(N19,'Utility Functions'!$Z$3,'Utility Functions'!$Z$4,'Utility Functions'!$Z$5,'Utility Functions'!$Z$6)","v":1},{"$f":"valuePL(O19,'Utility Functions'!$AA$3:$AA$5,'Utility Functions'!$AB$3:$AB$5)","v":0.25},{"$f":"valuePL(P19,'Utility Functions'!$AC$3:$AC$7,'Utility Functions'!$AD$3:$AD$7)","v":0.25},{"$f":"valuePL(Q19,'Utility Functions'!$AE$3:$AE$6,'Utility Functions'!$AF$3:$AF$6)","v":1},{"$f":"valuePL(R19,'Utility Functions'!$AG$3:$AG$6,'Utility Functions'!$AH$3:$AH$6)","v":1},{"$f":"valuePL(S19,'Utility Functions'!$AI$3:$AI$6,'Utility Functions'!$AJ$3:$AJ$6)","v":1},{"$f":"valuePL(T19,'Utility Functions'!$AK$3:$AK$8,'Utility Functions'!$AL$3:$AL$8)","v":1},{"$f":"valuePL(U19,'Utility Functions'!$AM$3:$AM$5,'Utility Functions'!$AN$3:$AN$5)","v":0.25},{"$f":"valuePL(V19,'Utility Functions'!$AO$3:$AO$5,'Utility Functions'!$AP$3:$AP$5)","v":1},{"$f":"valuePL(W19,'Utility Functions'!$AQ$3:$AQ$6,'Utility Functions'!$AR$3:$AR$6)","v":0.75},{"$f":"valuePL(X19,'Utility Functions'!$AS$3:$AS$6,'Utility Functions'!$AT$3:$AT$6)","v":0.2},{"$f":"valuePL(Y19,'Utility Functions'!$AU$3:$AU$6,'Utility Functions'!$AV$3:$AV$6)","v":0.8},{"$f":"valuePL(Z19,'Utility Functions'!$AW$3:$AW$5,'Utility Functions'!$AX$3:$AX$5)","v":0.5},{"$f":"valuePL(AA19,'Utility Functions'!$AY$3:$AY$6,'Utility Functions'!$AZ$3:$AZ$6)","v":0.89999999999999991},{"$f":"valuePL(AB19,'Utility Functions'!$BA$3:$BA$5,'Utility Functions'!$BB$3:$BB$5)","v":0.25},{"$f":"valuePL(AC19,'Utility Functions'!$BC$3:$BC$5,'Utility Functions'!$BD$3:$BD$5)","v":0},10.178462998102468,null,10.178462998102468,0,2.8462998102466792E-2,1.25,4.5,4.4000000000000004]
[19,{"$f":"valueE(B20,'Utility Functions'!$B$3,'Utility Functions'!$B$4,'Utility Functions'!$B$5,'Utility Functions'!$B$6)","v":0.79810469124896843},{"$f":"valueE(C20,'Utility Functions'!$D$3,'Utility Functions'!$D$4,'Utility Functions'!$D$5,'Utility Functions'!$D$6)","v":0.26839655623815994},{"$f":"valuePL(D20,'Utility Functions'!$E$3:$E$5,'Utility Functions'!$F$3:$F$5)","v":0.5},{"$f":"valuePL(E20,'Utility Functions'!$G$3:$G$5,'Utility Functions'!$H$3:$H$5)","v":1},{"$f":"valuePL(F20,'Utility Functions'!$I$3:$I$4,'Utility Functions'!$J$3:$J$5)","v":0},{"$f":"valueE(G20,'Utility Functions'!$L$3,'Utility Functions'!$L$4,'Utility Functions'!$L$5,'Utility Functions'!$L$6)","v":0},{"$f":"valueE(H20,'Utility Functions'!$N$3,'Utility Functions'!$N$4,'Utility Functions'!$N$5,'Utility Functions'!$N$6)","v":0},{"$f":"valuePL(I20,'Utility Functions'!$O$3:$O$6,'Utility Functions'!$P$3:$P$6)","v":0},{"$f":"valuePL(J20,'Utility Functions'!$Q$3:$Q$6,'Utility Functions'!$R$3:$R$6)","v":0},{"$f":"valuePL(K20,'Utility Functions'!$S$3:$S$7,'Utility Functions'!$T$3:$T$7)","v":0},{"$f":"valueE(L20,'Utility Functions'!$V$3,'Utility Functions'!$V$4,'Utility Functions'!$V$5,'Utility Functions'!$V$6)","v":0},{"$f":"valuePL(M20,'Utility Functions'!$W$3:$W$6,'Utility Functions'!$X$3:$X$6)","v":0},{"$f":"valueE(N20,'Utility Functions'!$Z$3,'Utility Functions'!$Z$4,'Utility Functions'!$Z$5,'Utility Functions'!$Z$6)","v":1},{"$f":"valuePL(O20,'Utility Functions'!$AA$3:$AA$5,'Utility Functions'!$AB$3:$AB$5)","v":1},{"$f":"valuePL(P20,'Utility Functions'!$AC$3:$AC$7,'Utility Functions'!$AD$3:$AD$7)","v":0},{"$f":"valuePL(Q20,'Utility Functions'!$AE$3:$AE$6,'Utility Functions'!$AF$3:$AF$6)","v":0},{"$f":"valuePL(R20,'Utility Functions'!$AG$3:$AG$6,'Utility Functions'!$AH$3:$AH$6)","v":0.8},{"$f":"valuePL(S20,'Utility Functions'!$AI$3:$AI$6,'Utility Functions'!$AJ$3:$AJ$6)","v":1},{"$f":"valuePL(T20,'Utility Functions'!$AK$3:$AK$8,'Utility Functions'!$AL$3:$AL$8)","v":0},{"$f":"valuePL(U20,'Utility Functions'!$AM$3:$AM$5,'Utility Functions'!$AN$3:$AN$5)","v":0},{"$f":"valuePL(V20,'Utility Functions'!$AO$3:$AO$5,'Utility Functions'!$AP$3:$AP$5)","v":0.5},{"$f":"valuePL(W20,'Utility Functions'!$AQ$3:$AQ$6,'Utility Functions'!$AR$3:$AR$6)","v":0.2},{"$f":"valuePL(X20,'Utility Functions'!$AS$3:$AS$6,'Utility Functions'!$AT$3:$AT$6)","v":1},{"$f":"valuePL(Y20,'Utility Functions'!$AU$3:$AU$6,'Utility Functions'!$AV$3:$AV$6)","v":0.8},{"$f":"valuePL(Z20,'Utility Functions'!$AW$3:$AW$5,'Utility Functions'!$AX$3:$AX$5)","v":0},{"$f":"valuePL(AA20,'Utility Functions'!$AY$3:$AY$6,'Utility Functions'!$AZ$3:$AZ$6)","v":0.2},{"$f":"valuePL(AB20,'Utility Functions'!$BA$3:$BA$5,'Utility Functions'!$BB$3:$BB$5)","v":0},{"$f":"valuePL(AC20,'Utility Functions'!$BC$3:$BC$5,'Utility Functions'!$BD$3:$BD$5)","v":0.25},9.3165012474871283,null,9.3165012474871283,2.5665012474871283,0,2,1.8,2.95]
[20,{"$f":"valueE(B21,'Utility Functions'!$B$3,'Utility Functions'!$B$4,'Utility Functions'!$B$5,'Utility Functions'!$B$6)","v":0.83470237647280454},{"$f":"valueE(C21,'Utility Functions'!$D$3,'Utility Functions'!$D$4,'Utility Functions'!$D$5,'Utility Functions'!$D$6)","v":0.78989979019422951},{"$f":"valuePL(D21,'Utility Functions'!$E$3:$E$5,'Utility Functions'!$F$3:$F$5)","v":0.5},{"$f":"valuePL(E21,'Utility Functions'!$G$3:$G$5,'Utility Functions'!$H$3:$H$5)","v":1},{"$f":"valuePL(F21,'Utility Functions'!$I$3:$I$4,'Utility Functions'!$J$3:$J$5)","v":0},{"$f":"valueE(G21,'Utility Functions'!$L$3,'Utility Functions'!$L$4,'Utility Functions'!$L$5,'Utility Functions'!$L$6)","v":0},{"$f":"valueE(H21,'Utility Functions'!$N$3,'Utility Functions'!$N$4,'Utility Functions'!$N$5,'Utility Functions'!$N$6)","v":0.41271347248576851},{"$f":"valuePL(I21,'Utility Functions'!$O$3:$O$6,'Utility Functions'!$P$3:$P$6)","v":0.93454545454545446},{"$f":"valuePL(J21,'Utility Functions'!$Q$3:$Q$6,'Utility Functions'!$R$3:$R$6)","v":0.50909090909090915},{"$f":"valuePL(K21,'Utility Functions'!$S$3:$S$7,'Utility Functions'!$T$3:$T$7)","v":0.93454545454545446},{"$f":"valueE(L21,'Utility Functions'!$V$3,'Utility Functions'!$V$4,'Utility Functions'!$V$5,'Utility Functions'!$V$6)","v":0.66666666666666663},{"$f":"valuePL(M21,'Utility Functions'!$W$3:$W$6,'Utility Functions'!$X$3:$X$6)","v":0.50909090909090915},{"$f":"valueE(N21,'Utility Functions'!$Z$3,'Utility Functions'!$Z$4,'Utility Functions'!$Z$5,'Utility Functions'!$Z$6)","v":1},{"$f":"valuePL(O21,'Utility Functions'!$AA$3:$AA$5,'Utility Functions'!$AB$3:$AB$5)","v":1},{"$f":"valuePL(P21,'Utility Functions'!$AC$3:$AC$7,'Utility Functions'!$AD$3:$AD$7)","v":0.25},{"$f":"valuePL(Q21,'Utility Functions'!$AE$3:$AE$6,'Utility Functions'!$AF$3:$AF$6)","v":0},{"$f":"valuePL(R21,'Utility Functions'!$AG$3:$AG$6,'Utility Functions'!$AH$3:$AH$6)","v":1},{"$f":"valuePL(S21,'Utility Functions'!$AI$3:$AI$6,'Utility Functions'!$AJ$3:$AJ$6)","v":1},{"$f":"valuePL(T21,'Utility Functions'!$AK$3:$AK$8,'Utility Functions'!$AL$3:$AL$8)","v":0.6},{"$f":"valuePL(U21,'Utility Functions'!$AM$3:$AM$5,'Utility Functions'!$AN$3:$AN$5)","v":1},{"$f":"valuePL(V21,'Utility Functions'!$AO$3:$AO$5,'Utility Functions'!$AP$3:$AP$5)","v":0.5},{"$f":"valuePL(W21,'Utility Functions'!$AQ$3:$AQ$6,'Utility Functions'!$AR$3:$AR$6)","v":0},{"$f":"valuePL(X21,'Utility Functions'!$AS$3:$AS$6,'Utility Functions'!$AT$3:$AT$6)","v":0},{"$f":"valuePL(Y21,'Utility Functions'!$AU$3:$AU$6,'Utility Functions'!$AV$3:$AV$6)","v":0.2},{"$f":"valuePL(Z21,'Utility Functions'!$AW$3:$AW$5,'Utility Functions'!$AX$3:$AX$5)","v":1},{"$f":"valuePL(AA21,'Utility Functions'!$AY$3:$AY$6,'Utility Functions'!$AZ$3:$AZ$6)","v":0.2},{"$f":"valuePL(AB21,'Utility Functions'!$BA$3:$BA$5,'Utility Functions'!$BB$3:$BB$5)","v":0},{"$f":"valuePL(AC21,'Utility Functions'!$BC$3:$BC$5,'Utility Functions'!$BD$3:$BD$5)","v":0.25},15.091255033092194,null,15.091255033092196,3.1246021666670343,3.9666528664251626,2,3.85,2.15]
[21,{"$f":"valueE(B22,'Utility Functions'!$B$3,'Utility Functions'!$B$4,'Utility Functions'!$B$5,'Utility Functions'!$B$6)","v":0},{"$f":"valueE(C22,'Utility Functions'!$D$3,'Utility Functions'!$D$4,'Utility Functions'!$D$5,'Utility Functions'!$D$6)","v":0},{"$f":"valuePL(D22,'Utility Functions'!$E$3:$E$5,'Utility Functions'!$F$3:$F$5)","v":0},{"$f":"valuePL(E22,'Utility Functions'!$G$3:$G$5,'Utility Functions'!$H$3:$H$5)","v":0},{"$f":"valuePL(F22,'Utility Functions'!$I$3:$I$4,'Utility Functions'!$J$3:$J$5)","v":0},{"$f":"valueE(G22,'Utility Functions'!$L$3,'Utility Functions'!$L$4,'Utility Functions'!$L$5,'Utility Functions'!$L$6)","v":0},{"$f":"valueE(H22,'Utility Functions'!$N$3,'Utility Functions'!$N$4,'Utility Functions'!$N$5,'Utility Functions'!$N$6)","v":0},{"$f":"valuePL(I22,'Utility Functions'!$O$3:$O$6,'Utility Functions'!$P$3:$P$6)","v":0},{"$f":"valuePL(J22,'Utility Functions'!$Q$3:$Q$6,'Utility Functions'!$R$3:$R$6)","v":0},{"$f":"valuePL(K22,'Utility Functions'!$S$3:$S$7,'Utility Functions'!$T$3:$T$7)","v":0},{"$f":"valueE(L22,'Utility Functions'!$V$3,'Utility Functions'!$V$4,'Utility Functions'!$V$5,'Utility Functions'!$V$6)","v":0},{"$f":"valuePL(M22,'Utility Functions'!$W$3:$W$6,'Utility Functions'!$X$3:$X$6)","v":0},{"$f":"valueE(N22,'Utility Functions'!$Z$3,'Utility Functions'!$Z$4,'Utility Functions'!$Z$5,'Utility Functions'!$Z$6)","v":1},{"$f":"valuePL(O22,'Utility Functions'!$AA$3:$AA$5,'Utility Functions'!$AB$3:$AB$5)","v":1},{"$f":"valuePL(P22,'Utility Functions'!$AC$3:$AC$7,'Utility Functions'!$AD$3:$AD$7)","v":0},{"$f":"valuePL(Q22,'Utility Functions'!$AE$3:$AE$6,'Utility Functions'!$AF$3:$AF$6)","v":0.1},{"$f":"valuePL(R22,'Utility Functions'!$AG$3:$AG$6,'Utility Functions'!$AH$3:$AH$6)","v":1},{"$f":"valuePL(S22,'Utility Functions'!$AI$3:$AI$6,'Utility Functions'!$AJ$3:$AJ$6)","v":1},{"$f":"valuePL(T22,'Utility Functions'!$AK$3:$AK$8,'Utility Functions'!$AL$3:$AL$8)","v":1},{"$f":"valuePL(U22,'Utility Functions'!$AM$3:$AM$5,'Utility Functions'!$AN$3:$AN$5)","v":0.25},{"$f":"valuePL(V22,'Utility Functions'!$AO$3:$AO$5,'Utility Functions'!$AP$3:$AP$5)","v":0},{"$f":"valuePL(W22,'Utility Functions'!$AQ$3:$AQ$6,'Utility Functions'!$AR$3:$AR$6)","v":0.75},{"$f":"valuePL(X22,'Utility Functions'!$AS$3:$AS$6,'Utility Functions'!$AT$3:$AT$6)","v":1},{"$f":"valuePL(Y22,'Utility Functions'!$AU$3:$AU$6,'Utility Functions'!$AV$3:$AV$6)","v":0.2},{"$f":"valuePL(Z22,'Utility Functions'!$AW$3:$AW$5,'Utility Functions'!$AX$3:$AX$5)","v":0},{"$f":"valuePL(AA22,'Utility Functions'!$AY$3:$AY$6,'Utility Functions'!$AZ$3:$AZ$6)","v":1},{"$f":"valuePL(AB22,'Utility Functions'!$BA$3:$BA$5,'Utility Functions'!$BB$3:$BB$5)","v":0.25},{"$f":"valuePL(AC22,'Utility Functions'!$BC$3:$BC$5,'Utility Functions'!$BD$3:$BD$5)","v":1},9.5500000000000007,null,9.5500000000000007,0,0,2,3.35,4.2]
[22,{"$f":"valueE(B23,'Utility Functions'!$B$3,'Utility Functions'!$B$4,'Utility Functions'!$B$5,'Utility Functions'!$B$6)","v":0},{"$f":"valueE(C23,'Utility Functions'!$D$3,'Utility Functions'!$D$4,'Utility Functions'!$D$5,'Utility Functions'!$D$6)","v":0},{"$f":"valuePL(D23,'Utility Functions'!$E$3:$E$5,'Utility Functions'!$F$3:$F$5)","v":0},{"$f":"valuePL(E23,'Utility Functions'!$G$3:$G$5,'Utility Functions'!$H$3:$H$5)","v":0},{"$f":"valuePL(F23,'Utility Functions'!$I$3:$I$4,'Utility Functions'!$J$3:$J$5)","v":0},{"$f":"valueE(G23,'Utility Functions'!$L$3,'Utility Functions'!$L$4,'Utility Functions'!$L$5,'Utility Functions'!$L$6)","v":8.6021505376344093E-2},{"$f":"valueE(H23,'Utility Functions'!$N$3,'Utility Functions'!$N$4,'Utility Functions'!$N$5,'Utility Functions'!$N$6)","v":6.0721062618595827E-2},{"$f":"valuePL(I23,'Utility Functions'!$O$3:$O$6,'Utility Functions'!$P$3:$P$6)","v":0},{"$f":"valuePL(J23,'Utility Functions'!$Q$3:$Q$6,'Utility Functions'!$R$3:$R$6)","v":0},{"$f":"valuePL(K23,'Utility Functions'!$S$3:$S$7,'Utility Functions'!$T$3:$T$7)","v":0},{"$f":"valueE(L23,'Utility Functions'!$V$3,'Utility Functions'!$V$4,'Utility Functions'!$V$5,'Utility Functions'!$V$6)","v":0},{"$f":"valuePL(M23,'Utility Functions'!$W$3:$W$6,'Utility Functions'!$X$3:$X$6)","v":0},{"$f":"valueE(N23,'Utility Functions'!$Z$3,'Utility Functions'!$Z$4,'Utility Functions'!$Z$5,'Utility Functions'!$Z$6)","v":0.125},{"$f":"valuePL(O23,'Utility Functions'!$AA$3:$AA$5,'Utility Functions'!$AB$3:$AB$5)","v":1},{"$f":"valuePL(P23,'Utility Functions'!$AC$3:$AC$7,'Utility Functions'!$AD$3:$AD$7)","v":1},{"$f":"valuePL(Q23,'Utility Functions'!$AE$3:$AE$6,'Utility Functions'!$AF$3:$AF$6)","v":0.5},{"$f":"valuePL(R23,'Utility Functions'!$AG$3:$AG$6,'Utility Functions'!$AH$3:$AH$6)","v":0.8},{"$f":"valuePL(S23,'Utility Functions'!$AI$3:$AI$6,'Utility Functions'!$AJ$3:$AJ$6)","v":1},{"$f":"valuePL(T23,'Utility Functions'!$AK$3:$AK$8,'Utility Functions'!$AL$3:$AL$8)","v":1},{"$f":"valuePL(U23,'Utility Functions'!$AM$3:$AM$5,'Utility Functions'!$AN$3:$AN$5)","v":0},{"$f":"valuePL(V23,'Utility Functions'!$AO$3:$AO$5,'Utility Functions'!$AP$3:$AP$5)","v":0.5},{"$f":"valuePL(W23,'Utility Functions'!$AQ$3:$AQ$6,'Utility Functions'!$AR$3:$AR$6)","v":0.75},{"$f":"valuePL(X23,'Utility Functions'!$AS$3:$AS$6,'Utility Functions'!$AT$3:$AT$6)","v":0.2},{"$f":"valuePL(Y23,'Utility Functions'!$AU$3:$AU$6,'Utility Functions'!$AV$3:$AV$6)","v":0},{"$f":"valuePL(Z23,'Utility Functions'!$AW$3:$AW$5,'Utility Functions'!$AX$3:$AX$5)","v":1},{"$f":"valuePL(AA23,'Utility Functions'!$AY$3:$AY$6,'Utility Functions'!$AZ$3:$AZ$6)","v":0.2},{"$f":"valuePL(AB23,'Utility Functions'!$BA$3:$BA$5,'Utility Functions'!$BB$3:$BB$5)","v":1},{"$f":"valuePL(AC23,'Utility Functions'!$BC$3:$BC$5,'Utility Functions'!$BD$3:$BD$5)","v":0.25},9.471742567994939,null,9.4717425679949407,0,0.14674256799493993,1.125,4.3,3.9000000000000004]
[23,{"$f":"valueE(B24,'Utility Functions'!$B$3,'Utility Functions'!$B$4,'Utility Functions'!$B$5,'Utility Functions'!$B$6)","v":0.83470237647280454},{"$f":"valueE(C24,'Utility Functions'!$D$3,'Utility Functions'!$D$4,'Utility Functions'!$D$5,'Utility Functions'!$D$6)","v":0.84744836833951609},{"$f":"valuePL(D24,'Utility Functions'!$E$3:$E$5,'Utility Functions'!$F$3:$F$5)","v":1},{"$f":"valuePL(E24,'Utility Functions'!$G$3:$G$5,'Utility Functions'!$H$3:$H$5)","v":0},{"$f":"valuePL(F24,'Utility Functions'!$I$3:$I$4,'Utility Functions'!$J$3:$J$5)","v":0},{"$f":"valueE(G24,'Utility Functions'!$L$3,'Utility Functions'!$L$4,'Utility Functions'!$L$5,'Utility Functions'!$L$6)","v":0},{"$f":"valueE(H24,'Utility Functions'!$N$3,'Utility Functions'!$N$4,'Utility Functions'!$N$5,'Utility Functions'!$N$6)","v":0},{"$f":"valuePL(I24,'Utility Functions'!$O$3:$O$6,'Utility Functions'!$P$3:$P$6)","v":0},{"$f":"valuePL(J24,'Utility Functions'!$Q$3:$Q$6,'Utility Functions'!$R$3:$R$6)","v":0},{"$f":"valuePL(K24,'Utility Functions'!$S$3:$S$7,'Utility Functions'!$T$3:$T$7)","v":0},{"$f":"valueE(L24,'Utility Functions'!$V$3,'Utility Functions'!$V$4,'Utility Functions'!$V$5,'Utility Functions'!$V$6)","v":0},{"$f":"valuePL(M24,'Utility Functions'!$W$3:$W$6,'Utility Functions'!$X$3:$X$6)","v":0},{"$f":"valueE(N24,'Utility Functions'!$Z$3,'Utility Functions'!$Z$4,'Utility Functions'!$Z$5,'Utility Functions'!$Z$6)","v":0},{"$f":"valuePL(O24,'Utility Functions'!$AA$3:$AA$5,'Utility Functions'!$AB$3:$AB$5)","v":0},{"$f":"valuePL(P24,'Utility Functions'!$AC$3:$AC$7,'Utility Functions'!$AD$3:$AD$7)","v":0.75},{"$f":"valuePL(Q24,'Utility Functions'!$AE$3:$AE$6,'Utility Functions'!$AF$3:$AF$6)","v":0},{"$f":"valuePL(R24,'Utility Functions'!$AG$3:$AG$6,'Utility Functions'!$AH$3:$AH$6)","v":1},{"$f":"valuePL(S24,'Utility Functions'!$AI$3:$AI$6,'Utility Functions'!$AJ$3:$AJ$6)","v":1},{"$f":"valuePL(T24,'Utility Functions'!$AK$3:$AK$8,'Utility Functions'!$AL$3:$AL$8)","v":1},{"$f":"valuePL(U24,'Utility Functions'!$AM$3:$AM$5,'Utility Functions'!$AN$3:$AN$5)","v":0},{"$f":"valuePL(V24,'Utility Functions'!$AO$3:$AO$5,'Utility Functions'!$AP$3:$AP$5)","v":1},{"$f":"valuePL(W24,'Utility Functions'!$AQ$3:$AQ$6,'Utility Functions'!$AR$3:$AR$6)","v":0.2},{"$f":"valuePL(X24,'Utility Functions'!$AS$3:$AS$6,'Utility Functions'!$AT$3:$AT$6)","v":0.75},{"$f":"valuePL(Y24,'Utility Functions'!$AU$3:$AU$6,'Utility Functions'!$AV$3:$AV$6)","v":0.2},{"$f":"valuePL(Z24,'Utility Functions'!$AW$3:$AW$5,'Utility Functions'!$AX$3:$AX$5)","v":0.5},{"$f":"valuePL(AA24,'Utility Functions'!$AY$3:$AY$6,'Utility Functions'!$AZ$3:$AZ$6)","v":0.2},{"$f":"valuePL(AB24,'Utility Functions'!$BA$3:$BA$5,'Utility Functions'!$BB$3:$BB$5)","v":0},{"$f":"valuePL(AC24,'Utility Functions'!$BC$3:$BC$5,'Utility Functions'!$BD$3:$BD$5)","v":0.25},9.5321507448123199,null,9.5321507448123199,2.6821507448123207,0,0,3.75,3.1]
[24,{"$f":"valueE(B25,'Utility Functions'!$B$3,'Utility Functions'!$B$4,'Utility Functions'!$B$5,'Utility Functions'!$B$6)","v":0.63212151658375171},{"$f":"valueE(C25,'Utility Functions'!$D$3,'Utility Functions'!$D$4,'Utility Functions'!$D$5,'Utility Functions'!$D$6)","v":0.46475967153745396},{"$f":"valuePL(D25,'Utility Functions'!$E$3:$E$5,'Utility Functions'!$F$3:$F$5)","v":1},{"$f":"valuePL(E25,'Utility Functions'!$G$3:$G$5,'Utility Functions'!$H$3:$H$5)","v":0},{"$f":"valuePL(F25,'Utility Functions'!$I$3:$I$4,'Utility Functions'!$J$3:$J$5)","v":0},{"$f":"valueE(G25,'Utility Functions'!$L$3,'Utility Functions'!$L$4,'Utility Functions'!$L$5,'Utility Functions'!$L$6)","v":0},{"$f":"valueE(H25,'Utility Functions'!$N$3,'Utility Functions'!$N$4,'Utility Functions'!$N$5,'Utility Functions'!$N$6)","v":0},{"$f":"valuePL(I25,'Utility Functions'!$O$3:$O$6,'Utility Functions'!$P$3:$P$6)","v":0},{"$f":"valuePL(J25,'Utility Functions'!$Q$3:$Q$6,'Utility Functions'!$R$3:$R$6)","v":0},{"$f":"valuePL(K25,'Utility Functions'!$S$3:$S$7,'Utility Functions'!$T$3:$T$7)","v":0},{"$f":"valueE(L25,'Utility Functions'!$V$3,'Utility Functions'!$V$4,'Utility Functions'!$V$5,'Utility Functions'!$V$6)","v":0},{"$f":"valuePL(M25,'Utility Functions'!$W$3:$W$6,'Utility Functions'!$X$3:$X$6)","v":0},{"$f":"valueE(N25,'Utility Functions'!$Z$3,'Utility Functions'!$Z$4,'Utility Functions'!$Z$5,'Utility Functions'!$Z$6)","v":0},{"$f":"valuePL(O25,'Utility Functions'!$AA$3:$AA$5,'Utility Functions'!$AB$3:$AB$5)","v":0},{"$f":"valuePL(P25,'Utility Functions'!$AC$3:$AC$7,'Utility Functions'!$AD$3:$AD$7)","v":0},{"$f":"valuePL(Q25,'Utility Functions'!$AE$3:$AE$6,'Utility Functions'!$AF$3:$AF$6)","v":0},{"$f":"valuePL(R25,'Utility Functions'!$AG$3:$AG$6,'Utility Functions'!$AH$3:$AH$6)","v":1},{"$f":"valuePL(S25,'Utility Functions'!$AI$3:$AI$6,'Utility Functions'!$AJ$3:$AJ$6)","v":1},{"$f":"valuePL(T25,'Utility Functions'!$AK$3:$AK$8,'Utility Functions'!$AL$3:$AL$8)","v":1},{"$f":"valuePL(U25,'Utility Functions'!$AM$3:$AM$5,'Utility Functions'!$AN$3:$AN$5)","v":0},{"$f":"valuePL(V25,'Utility Functions'!$AO$3:$AO$5,'Utility Functions'!$AP$3:$AP$5)","v":0},{"$f":"valuePL(W25,'Utility Functions'!$AQ$3:$AQ$6,'Utility Functions'!$AR$3:$AR$6)","v":1},{"$f":"valuePL(X25,'Utility Functions'!$AS$3:$AS$6,'Utility Functions'!$AT$3:$AT$6)","v":0.2},{"$f":"valuePL(Y25,'Utility Functions'!$AU$3:$AU$6,'Utility Functions'!$AV$3:$AV$6)","v":1},{"$f":"valuePL(Z25,'Utility Functions'!$AW$3:$AW$5,'Utility Functions'!$AX$3:$AX$5)","v":1},{"$f":"valuePL(AA25,'Utility Functions'!$AY$3:$AY$6,'Utility Functions'!$AZ$3:$AZ$6)","v":0.2},{"$f":"valuePL(AB25,'Utility Functions'!$BA$3:$BA$5,'Utility Functions'!$BB$3:$BB$5)","v":0},{"$f":"valuePL(AC25,'Utility Functions'!$BC$3:$BC$5,'Utility Functions'!$BD$3:$BD$5)","v":1},9.4968811881212041,null,9.4968811881212059,2.0968811881212055,0,0,3,4.4000000000000004]
[25,{"$f":"valueE(B26,'Utility Functions'!$B$3,'Utility Functions'!$B$4,'Utility Functions'!$B$5,'Utility Functions'!$B$6)","v":0.83470237647280454},{"$f":"valueE(C26,'Utility Functions'!$D$3,'Utility Functions'!$D$4,'Utility Functions'!$D$5,'Utility Functions'!$D$6)","v":0.84744836833951609},{"$f":"valuePL(D26,'Utility Functions'!$E$3:$E$5,'Utility Functions'!$F$3:$F$5)","v":1},{"$f":"valuePL(E26,'Utility Functions'!$G$3:$G$5,'Utility Functions'!$H$3:$H$5)","v":0},{"$f":"valuePL(F26,'Utility Functions'!$I$3:$I$4,'Utility Functions'!$J$3:$J$5)","v":0},{"$f":"valueE(G26,'Utility Functions'!$L$3,'Utility Functions'!$L$4,'Utility Functions'!$L$5,'Utility Functions'!$L$6)","v":0.94623655913978499},{"$f":"valueE(H26,'Utility Functions'!$N$3,'Utility Functions'!$N$4,'Utility Functions'!$N$5,'Utility Functions'!$N$6)","v":0.29222011385199242},{"$f":"valuePL(I26,'Utility Functions'!$O$3:$O$6,'Utility Functions'!$P$3:$P$6)","v":0},{"$f":"valuePL(J26,'Utility Functions'!$Q$3:$Q$6,'Utility Functions'!$R$3:$R$6)","v":0},{"$f":"valuePL(K26,'Utility Functions'!$S$3:$S$7,'Utility Functions'!$T$3:$T$7)","v":0},{"$f":"valueE(L26,'Utility Functions'!$V$3,'Utility Functions'!$V$4,'Utility Functions'!$V$5,'Utility Functions'!$V$6)","v":0},{"$f":"valuePL(M26,'Utility Functions'!$W$3:$W$6,'Utility Functions'!$X$3:$X$6)","v":0},{"$f":"valueE(N26,'Utility Functions'!$Z$3,'Utility Functions'!$Z$4,'Utility Functions'!$Z$5,'Utility Functions'!$Z$6)","v":1},{"$f":"valuePL(O26,'Utility Functions'!$AA$3:$AA$5,'Utility Functions'!$AB$3:$AB$5)","v":0.25},{"$f":"valuePL(P26,'Utility Functions'!$AC$3:$AC$7,'Utility Functions'!$AD$3:$AD$7)","v":0.5},{"$f":"valuePL(Q26,'Utility Functions'!$AE$3:$AE$6,'Utility Functions'!$AF$3:$AF$6)","v":0.5},{"$f":"valuePL(R26,'Utility Functions'!$AG$3:$AG$6,'Utility Functions'!$AH$3:$AH$6)","v":1},{"$f":"valuePL(S26,'Utility Functions'!$AI$3:$AI$6,'Utility Functions'!$AJ$3:$AJ$6)","v":1},{"$f":"valuePL(T26,'Utility Functions'!$AK$3:$AK$8,'Utility Functions'!$AL$3:$AL$8)","v":0},{"$f":"valuePL(U26,'Utility Functions'!$AM$3:$AM$5,'Utility Functions'!$AN$3:$AN$5)","v":0},{"$f":"valuePL(V26,'Utility Functions'!$AO$3:$AO$5,'Utility Functions'!$AP$3:$AP$5)","v":1},{"$f":"valuePL(W26,'Utility Functions'!$AQ$3:$AQ$6,'Utility Functions'!$AR$3:$AR$6)","v":0.2},{"$f":"valuePL(X26,'Utility Functions'!$AS$3:$AS$6,'Utility Functions'!$AT$3:$AT$6)","v":1},{"$f":"valuePL(Y26,'Utility Functions'!$AU$3:$AU$6,'Utility Functions'!$AV$3:$AV$6)","v":0.8},{"$f":"valuePL(Z26,'Utility Functions'!$AW$3:$AW$5,'Utility Functions'!$AX$3:$AX$5)","v":0.5},{"$f":"valuePL(AA26,'Utility Functions'!$AY$3:$AY$6,'Utility Functions'!$AZ$3:$AZ$6)","v":0.2},{"$f":"valuePL(AB26,'Utility Functions'!$BA$3:$BA$5,'Utility Functions'!$BB$3:$BB$5)","v":1},{"$f":"valuePL(AC26,'Utility Functions'!$BC$3:$BC$5,'Utility Functions'!$BD$3:$BD$5)","v":1},13.870607417804099,null,13.870607417804099,2.6821507448123207,1.2384566729917774,1.25,3,5.7]
[26,{"$f":"valueE(B27,'Utility Functions'!$B$3,'Utility Functions'!$B$4,'Utility Functions'!$B$5,'Utility Functions'!$B$6)","v":0.96662819462069161},{"$f":"valueE(C27,'Utility Functions'!$D$3,'Utility Functions'!$D$4,'Utility Functions'!$D$5,'Utility Functions'!$D$6)","v":0.84744836833951609},{"$f":"valuePL(D27,'Utility Functions'!$E$3:$E$5,'Utility Functions'!$F$3:$F$5)","v":1},{"$f":"valuePL(E27,'Utility Functions'!$G$3:$G$5,'Utility Functions'!$H$3:$H$5)","v":0.5},{"$f":"valuePL(F27,'Utility Functions'!$I$3:$I$4,'Utility Functions'!$J$3:$J$5)","v":0},{"$f":"valueE(G27,'Utility Functions'!$L$3,'Utility Functions'!$L$4,'Utility Functions'!$L$5,'Utility Functions'!$L$6)","v":0},{"$f":"valueE(H27,'Utility Functions'!$N$3,'Utility Functions'!$N$4,'Utility Functions'!$N$5,'Utility Functions'!$N$6)","v":0},{"$f":"valuePL(I27,'Utility Functions'!$O$3:$O$6,'Utility Functions'!$P$3:$P$6)","v":0},{"$f":"valuePL(J27,'Utility Functions'!$Q$3:$Q$6,'Utility Functions'!$R$3:$R$6)","v":0},{"$f":"valuePL(K27,'Utility Functions'!$S$3:$S$7,'Utility Functions'!$T$3:$T$7)","v":0},{"$f":"valueE(L27,'Utility Functions'!$V$3,'Utility Functions'!$V$4,'Utility Functions'!$V$5,'Utility Functions'!$V$6)","v":0},{"$f":"valuePL(M27,'Utility Functions'!$W$3:$W$6,'Utility Functions'!$X$3:$X$6)","v":0},{"$f":"valueE(N27,'Utility Functions'!$Z$3,'Utility Functions'!$Z$4,'Utility Functions'!$Z$5,'Utility Functions'!$Z$6)","v":0},{"$f":"valuePL(O27,'Utility Functions'!$AA$3:$AA$5,'Utility Functions'!$AB$3:$AB$5)","v":0},{"$f":"valuePL(P27,'Utility Functions'!$AC$3:$AC$7,'Utility Functions'!$AD$3:$AD$7)","v":0.75},{"$f":"valuePL(Q27,'Utility Functions'!$AE$3:$AE$6,'Utility Functions'!$AF$3:$AF$6)","v":0},{"$f":"valuePL(R27,'Utility Functions'!$AG$3:$AG$6,'Utility Functions'!$AH$3:$AH$6)","v":1},{"$f":"valuePL(S27,'Utility Functions'!$AI$3:$AI$6,'Utility Functions'!$AJ$3:$AJ$6)","v":1},{"$f":"valuePL(T27,'Utility Functions'!$AK$3:$AK$8,'Utility Functions'!$AL$3:$AL$8)","v":0.8},{"$f":"valuePL(U27,'Utility Functions'!$AM$3:$AM$5,'Utility Functions'!$AN$3:$AN$5)","v":0},{"$f":"valuePL(V27,'Utility Functions'!$AO$3:$AO$5,'Utility Functions'!$AP$3:$AP$5)","v":1},{"$f":"valuePL(W27,'Utility Functions'!$AQ$3:$AQ$6,'Utility Functions'!$AR$3:$AR$6)","v":0.2},{"$f":"valuePL(X27,'Utility Functions'!$AS$3:$AS$6,'Utility Functions'!$AT$3:$AT$6)","v":0},{"$f":"valuePL(Y27,'Utility Functions'!$AU$3:$AU$6,'Utility Functions'!$AV$3:$AV$6)","v":0.8},{"$f":"valuePL(Z27,'Utility Functions'!$AW$3:$AW$5,'Utility Functions'!$AX$3:$AX$5)","v":0},{"$f":"valuePL(AA27,'Utility Functions'!$AY$3:$AY$6,'Utility Functions'!$AZ$3:$AZ$6)","v":0.2},{"$f":"valuePL(AB27,'Utility Functions'!$BA$3:$BA$5,'Utility Functions'!$BB$3:$BB$5)","v":1},{"$f":"valuePL(AC27,'Utility Functions'!$BC$3:$BC$5,'Utility Functions'!$BD$3:$BD$5)","v":1},11.064076562960208,null,11.064076562960206,3.3140765629602078,0,0,3.55,4.2]
[27,{"$f":"valueE(B28,'Utility Functions'!$B$3,'Utility Functions'!$B$4,'Utility Functions'!$B$5,'Utility Functions'!$B$6)","v":0},{"$f":"valueE(C28,'Utility Functions'!$D$3,'Utility Functions'!$D$4,'Utility Functions'!$D$5,'Utility Functions'!$D$6)","v":0.46475967153745396},{"$f":"valuePL(D28,'Utility Functions'!$E$3:$E$5,'Utility Functions'!$F$3:$F$5)","v":1},{"$f":"valuePL(E28,'Utility Functions'!$G$3:$G$5,'Utility Functions'!$H$3:$H$5)","v":0},{"$f":"valuePL(F28,'Utility Functions'!$I$3:$I$4,'Utility Functions'!$J$3:$J$5)","v":0},{"$f":"valueE(G28,'Utility Functions'!$L$3,'Utility Functions'!$L$4,'Utility Functions'!$L$5,'Utility Functions'!$L$6)","v":0},{"$f":"valueE(H28,'Utility Functions'!$N$3,'Utility Functions'!$N$4,'Utility Functions'!$N$5,'Utility Functions'!$N$6)","v":0},{"$f":"valuePL(I28,'Utility Functions'!$O$3:$O$6,'Utility Functions'!$P$3:$P$6)","v":0},{"$f":"valuePL(J28,'Utility Functions'!$Q$3:$Q$6,'Utility Functions'!$R$3:$R$6)","v":0},{"$f":"valuePL(K28,'Utility Functions'!$S$3:$S$7,'Utility Functions'!$T$3:$T$7)","v":1},{"$f":"valueE(L28,'Utility Functions'!$V$3,'Utility Functions'!$V$4,'Utility Functions'!$V$5,'Utility Functions'!$V$6)","v":0},{"$f":"valuePL(M28,'Utility Functions'!$W$3:$W$6,'Utility Functions'!$X$3:$X$6)","v":0.1},{"$f":"valueE(N28,'Utility Functions'!$Z$3,'Utility Functions'!$Z$4,'Utility Functions'!$Z$5,'Utility Functions'!$Z$6)","v":0},{"$f":"valuePL(O28,'Utility Functions'!$AA$3:$AA$5,'Utility Functions'!$AB$3:$AB$5)","v":0},{"$f":"valuePL(P28,'Utility Functions'!$AC$3:$AC$7,'Utility Functions'!$AD$3:$AD$7)","v":0.5},{"$f":"valuePL(Q28,'Utility Functions'!$AE$3:$AE$6,'Utility Functions'!$AF$3:$AF$6)","v":0.5},{"$f":"valuePL(R28,'Utility Functions'!$AG$3:$AG$6,'Utility Functions'!$AH$3:$AH$6)","v":1},{"$f":"valuePL(S28,'Utility Functions'!$AI$3:$AI$6,'Utility Functions'!$AJ$3:$AJ$6)","v":1},{"$f":"valuePL(T28,'Utility Functions'!$AK$3:$AK$8,'Utility Functions'!$AL$3:$AL$8)","v":1},{"$f":"valuePL(U28,'Utility Functions'!$AM$3:$AM$5,'Utility Functions'!$AN$3:$AN$5)","v":0},{"$f":"valuePL(V28,'Utility Functions'!$AO$3:$AO$5,'Utility Functions'!$AP$3:$AP$5)","v":0.5},{"$f":"valuePL(W28,'Utility Functions'!$AQ$3:$AQ$6,'Utility Functions'!$AR$3:$AR$6)","v":0.75},{"$f":"valuePL(X28,'Utility Functions'!$AS$3:$AS$6,'Utility Functions'!$AT$3:$AT$6)","v":1},{"$f":"valuePL(Y28,'Utility Functions'!$AU$3:$AU$6,'Utility Functions'!$AV$3:$AV$6)","v":0.2},{"$f":"valuePL(Z28,'Utility Functions'!$AW$3:$AW$5,'Utility Functions'!$AX$3:$AX$5)","v":0},{"$f":"valuePL(AA28,'Utility Functions'!$AY$3:$AY$6,'Utility Functions'!$AZ$3:$AZ$6)","v":0},{"$f":"valuePL(AB28,'Utility Functions'!$BA$3:$BA$5,'Utility Functions'!$BB$3:$BB$5)","v":0},{"$f":"valuePL(AC28,'Utility Functions'!$BC$3:$BC$5,'Utility Functions'!$BD$3:$BD$5)","v":0},9.0147596715374529,null,9.0147596715374547,1.464759671537454,1.1000000000000001,0,4,2.4500000000000002]
[28,{"$f":"valueE(B29,'Utility Functions'!$B$3,'Utility Functions'!$B$4,'Utility Functions'!$B$5,'Utility Functions'!$B$6)","v":0.4511890475224023},{"$f":"valueE(C29,'Utility Functions'!$D$3,'Utility Functions'!$D$4,'Utility Functions'!$D$5,'Utility Functions'!$D$6)","v":0.46475967153745396},{"$f":"valuePL(D29,'Utility Functions'!$E$3:$E$5,'Utility Functions'!$F$3:$F$5)","v":1},{"$f":"valuePL(E29,'Utility Functions'!$G$3:$G$5,'Utility Functions'!$H$3:$H$5)","v":0},{"$f":"valuePL(F29,'Utility Functions'!$I$3:$I$4,'Utility Functions'!$J$3:$J$5)","v":1},{"$f":"valueE(G29,'Utility Functions'!$L$3,'Utility Functions'!$L$4,'Utility Functions'!$L$5,'Utility Functions'!$L$6)","v":0},{"$f":"valueE(H29,'Utility Functions'!$N$3,'Utility Functions'!$N$4,'Utility Functions'!$N$5,'Utility Functions'!$N$6)","v":0},{"$f":"valuePL(I29,'Utility Functions'!$O$3:$O$6,'Utility Functions'!$P$3:$P$6)","v":0},{"$f":"valuePL(J29,'Utility Functions'!$Q$3:$Q$6,'Utility Functions'!$R$3:$R$6)","v":0},{"$f":"valuePL(K29,'Utility Functions'!$S$3:$S$7,'Utility Functions'!$T$3:$T$7)","v":0},{"$f":"valueE(L29,'Utility Functions'!$V$3,'Utility Functions'!$V$4,'Utility Functions'!$V$5,'Utility Functions'!$V$6)","v":0.33333333333333331},{"$f":"valuePL(M29,'Utility Functions'!$W$3:$W$6,'Utility Functions'!$X$3:$X$6)","v":0.1},{"$f":"valueE(N29,'Utility Functions'!$Z$3,'Utility Functions'!$Z$4,'Utility Functions'!$Z$5,'Utility Functions'!$Z$6)","v":0},{"$f":"valuePL(O29,'Utility Functions'!$AA$3:$AA$5,'Utility Functions'!$AB$3:$AB$5)","v":0},{"$f":"valuePL(P29,'Utility Functions'!$AC$3:$AC$7,'Utility Functions'!$AD$3:$AD$7)","v":1},{"$f":"valuePL(Q29,'Utility Functions'!$AE$3:$AE$6,'Utility Functions'!$AF$3:$AF$6)","v":0},{"$f":"valuePL(R29,'Utility Functions'!$AG$3:$AG$6,'Utility Functions'!$AH$3:$AH$6)","v":1},{"$f":"valuePL(S29,'Utility Functions'!$AI$3:$AI$6,'Utility Functions'!$AJ$3:$AJ$6)","v":1},{"$f":"valuePL(T29,'Utility Functions'!$AK$3:$AK$8,'Utility Functions'!$AL$3:$AL$8)","v":0.8},{"$f":"valuePL(U29,'Utility Functions'!$AM$3:$AM$5,'Utility Functions'!$AN$3:$AN$5)","v":0},{"$f":"valuePL(V29,'Utility Functions'!$AO$3:$AO$5,'Utility Functions'!$AP$3:$AP$5)","v":1},{"$f":"valuePL(W29,'Utility Functions'!$AQ$3:$AQ$6,'Utility Functions'!$AR$3:$AR$6)","v":1},{"$f":"valuePL(X29,'Utility Functions'!$AS$3:$AS$6,'Utility Functions'!$AT$3:$AT$6)","v":1},{"$f":"valuePL(Y29,'Utility Functions'!$AU$3:$AU$6,'Utility Functions'!$AV$3:$AV$6)","v":0.2},{"$f":"valuePL(Z29,'Utility Functions'!$AW$3:$AW$5,'Utility Functions'!$AX$3:$AX$5)","v":0},{"$f":"valuePL(AA29,'Utility Functions'!$AY$3:$AY$6,'Utility Functions'!$AZ$3:$AZ$6)","v":0.89999999999999991},{"$f":"valuePL(AB29,'Utility Functions'!$BA$3:$BA$5,'Utility Functions'!$BB$3:$BB$5)","v":1},{"$f":"valuePL(AC29,'Utility Functions'!$BC$3:$BC$5,'Utility Functions'!$BD$3:$BD$5)","v":0.25},12.499282052393189,null,12.499282052393189,2.9159487190598563,0.43333333333333335,0,3.8,5.35]
[29,{"$f":"valueE(B30,'Utility Functions'!$B$3,'Utility Functions'!$B$4,'Utility Functions'!$B$5,'Utility Functions'!$B$6)","v":0.83470237647280454},{"$f":"valueE(C30,'Utility Functions'!$D$3,'Utility Functions'!$D$4,'Utility Functions'!$D$5,'Utility Functions'!$D$6)","v":0.71352759724260828},{"$f":"valuePL(D30,'Utility Functions'!$E$3:$E$5,'Utility Functions'!$F$3:$F$5)","v":1},{"$f":"valuePL(E30,'Utility Functions'!$G$3:$G$5,'Utility Functions'!$H$3:$H$5)","v":0.5},{"$f":"valuePL(F30,'Utility Functions'!$I$3:$I$4,'Utility Functions'!$J$3:$J$5)","v":0},{"$f":"valueE(G30,'Utility Functions'!$L$3,'Utility Functions'!$L$4,'Utility Functions'!$L$5,'Utility Functions'!$L$6)","v":0},{"$f":"valueE(H30,'Utility Functions'!$N$3,'Utility Functions'!$N$4,'Utility Functions'!$N$5,'Utility Functions'!$N$6)","v":0},{"$f":"valuePL(I30,'Utility Functions'!$O$3:$O$6,'Utility Functions'!$P$3:$P$6)","v":0.06},{"$f":"valuePL(J30,'Utility Functions'!$Q$3:$Q$6,'Utility Functions'!$R$3:$R$6)","v":0.67272727272727273},{"$f":"valuePL(K30,'Utility Functions'!$S$3:$S$7,'Utility Functions'!$T$3:$T$7)","v":0},{"$f":"valueE(L30,'Utility Functions'!$V$3,'Utility Functions'!$V$4,'Utility Functions'!$V$5,'Utility Functions'!$V$6)","v":1},{"$f":"valuePL(M30,'Utility Functions'!$W$3:$W$6,'Utility Functions'!$X$3:$X$6)","v":0.67272727272727273},{"$f":"valueE(N30,'Utility Functions'!$Z$3,'Utility Functions'!$Z$4,'Utility Functions'!$Z$5,'Utility Functions'!$Z$6)","v":0},{"$f":"valuePL(O30,'Utility Functions'!$AA$3:$AA$5,'Utility Functions'!$AB$3:$AB$5)","v":0},{"$f":"valuePL(P30,'Utility Functions'!$AC$3:$AC$7,'Utility Functions'!$AD$3:$AD$7)","v":0.25},{"$f":"valuePL(Q30,'Utility Functions'!$AE$3:$AE$6,'Utility Functions'!$AF$3:$AF$6)","v":0},{"$f":"valuePL(R30,'Utility Functions'!$AG$3:$AG$6,'Utility Functions'!$AH$3:$AH$6)","v":1},{"$f":"valuePL(S30,'Utility Functions'!$AI$3:$AI$6,'Utility Functions'!$AJ$3:$AJ$6)","v":1},{"$f":"valuePL(T30,'Utility Functions'!$AK$3:$AK$8,'Utility Functions'!$AL$3:$AL$8)","v":0.8},{"$f":"valuePL(U30,'Utility Functions'!$AM$3:$AM$5,'Utility Functions'!$AN$3:$AN$5)","v":0},{"$f":"valuePL(V30,'Utility Functions'!$AO$3:$AO$5,'Utility Functions'!$AP$3:$AP$5)","v":1},{"$f":"valuePL(W30,'Utility Functions'!$AQ$3:$AQ$6,'Utility Functions'!$AR$3:$AR$6)","v":0.2},{"$f":"valuePL(X30,'Utility Functions'!$AS$3:$AS$6,'Utility Functions'!$AT$3:$AT$6)","v":0},{"$f":"valuePL(Y30,'Utility Functions'!$AU$3:$AU$6,'Utility Functions'!$AV$3:$AV$6)","v":0.8},{"$f":"valuePL(Z30,'Utility Functions'!$AW$3:$AW$5,'Utility Functions'!$AX$3:$AX$5)","v":0.5},{"$f":"valuePL(AA30,'Utility Functions'!$AY$3:$AY$6,'Utility Functions'!$AZ$3:$AZ$6)","v":0.2},{"$f":"valuePL(AB30,'Utility Functions'!$BA$3:$BA$5,'Utility Functions'!$BB$3:$BB$5)","v":0.25},{"$f":"valuePL(AC30,'Utility Functions'!$BC$3:$BC$5,'Utility Functions'!$BD$3:$BD$5)","v":1},12.453684519169958,null,12.453684519169958,3.0482299737154128,2.4054545454545453,0,3.05,3.95]
[30,{"$f":"valueE(B31,'Utility Functions'!$B$3,'Utility Functions'!$B$4,'Utility Functions'!$B$5,'Utility Functions'!$B$6)","v":0.99864114504770318},{"$f":"valueE(C31,'Utility Functions'!$D$3,'Utility Functions'!$D$4,'Utility Functions'!$D$5,'Utility Functions'!$D$6)","v":0.84744836833951609},{"$f":"valuePL(D31,'Utility Functions'!$E$3:$E$5,'Utility Functions'!$F$3:$F$5)","v":1},{"$f":"valuePL(E31,'Utility Functions'!$G$3:$G$5,'Utility Functions'!$H$3:$H$5)","v":0},{"$f":"valuePL(F31,'Utility Functions'!$I$3:$I$4,'Utility Functions'!$J$3:$J$5)","v":0},{"$f":"valueE(G31,'Utility Functions'!$L$3,'Utility Functions'!$L$4,'Utility Functions'!$L$5,'Utility Functions'!$L$6)","v":0},{"$f":"valueE(H31,'Utility Functions'!$N$3,'Utility Functions'!$N$4,'Utility Functions'!$N$5,'Utility Functions'!$N$6)","v":0},{"$f":"valuePL(I31,'Utility Functions'!$O$3:$O$6,'Utility Functions'!$P$3:$P$6)","v":0},{"$f":"valuePL(J31,'Utility Functions'!$Q$3:$Q$6,'Utility Functions'!$R$3:$R$6)","v":0},{"$f":"valuePL(K31,'Utility Functions'!$S$3:$S$7,'Utility Functions'!$T$3:$T$7)","v":0},{"$f":"valueE(L31,'Utility Functions'!$V$3,'Utility Functions'!$V$4,'Utility Functions'!$V$5,'Utility Functions'!$V$6)","v":0.33333333333333331},{"$f":"valuePL(M31,'Utility Functions'!$W$3:$W$6,'Utility Functions'!$X$3:$X$6)","v":0.04},{"$f":"valueE(N31,'Utility Functions'!$Z$3,'Utility Functions'!$Z$4,'Utility Functions'!$Z$5,'Utility Functions'!$Z$6)","v":0},{"$f":"valuePL(O31,'Utility Functions'!$AA$3:$AA$5,'Utility Functions'!$AB$3:$AB$5)","v":0},{"$f":"valuePL(P31,'Utility Functions'!$AC$3:$AC$7,'Utility Functions'!$AD$3:$AD$7)","v":0},{"$f":"valuePL(Q31,'Utility Functions'!$AE$3:$AE$6,'Utility Functions'!$AF$3:$AF$6)","v":0},{"$f":"valuePL(R31,'Utility Functions'!$AG$3:$AG$6,'Utility Functions'!$AH$3:$AH$6)","v":0.2},{"$f":"valuePL(S31,'Utility Functions'!$AI$3:$AI$6,'Utility Functions'!$AJ$3:$AJ$6)","v":0.33},{"$f":"valuePL(T31,'Utility Functions'!$AK$3:$AK$8,'Utility Functions'!$AL$3:$AL$8)","v":0},{"$f":"valuePL(U31,'Utility Functions'!$AM$3:$AM$5,'Utility Functions'!$AN$3:$AN$5)","v":0},{"$f":"valuePL(V31,'Utility Functions'!$AO$3:$AO$5,'Utility Functions'!$AP$3:$AP$5)","v":0},{"$f":"valuePL(W31,'Utility Functions'!$AQ$3:$AQ$6,'Utility Functions'!$AR$3:$AR$6)","v":1},{"$f":"valuePL(X31,'Utility Functions'!$AS$3:$AS$6,'Utility Functions'!$AT$3:$AT$6)","v":0.2},{"$f":"valuePL(Y31,'Utility Functions'!$AU$3:$AU$6,'Utility Functions'!$AV$3:$AV$6)","v":0.8},{"$f":"valuePL(Z31,'Utility Functions'!$AW$3:$AW$5,'Utility Functions'!$AX$3:$AX$5)","v":0},{"$f":"valuePL(AA31,'Utility Functions'!$AY$3:$AY$6,'Utility Functions'!$AZ$3:$AZ$6)","v":0.89999999999999991},{"$f":"valuePL(AB31,'Utility Functions'!$BA$3:$BA$5,'Utility Functions'!$BB$3:$BB$5)","v":1},{"$f":"valuePL(AC31,'Utility Functions'!$BC$3:$BC$5,'Utility Functions'!$BD$3:$BD$5)","v":0},7.6494228467205527,null,7.6494228467205527,2.846089513387219,0.37333333333333329,0,0.53,3.9]
[31,{"$f":"valueE(B32,'Utility Functions'!$B$3,'Utility Functions'!$B$4,'Utility Functions'!$B$5,'Utility Functions'!$B$6)","v":0.55067187023002029},{"$f":"valueE(C32,'Utility Functions'!$D$3,'Utility Functions'!$D$4,'Utility Functions'!$D$5,'Utility Functions'!$D$6)","v":0.84744836833951609},{"$f":"valuePL(D32,'Utility Functions'!$E$3:$E$5,'Utility Functions'!$F$3:$F$5)","v":0.5},{"$f":"valuePL(E32,'Utility Functions'!$G$3:$G$5,'Utility Functions'!$H$3:$H$5)","v":0},{"$f":"valuePL(F32,'Utility Functions'!$I$3:$I$4,'Utility Functions'!$J$3:$J$5)","v":0},{"$f":"valueE(G32,'Utility Functions'!$L$3,'Utility Functions'!$L$4,'Utility Functions'!$L$5,'Utility Functions'!$L$6)","v":0},{"$f":"valueE(H32,'Utility Functions'!$N$3,'Utility Functions'!$N$4,'Utility Functions'!$N$5,'Utility Functions'!$N$6)","v":0},{"$f":"valuePL(I32,'Utility Functions'!$O$3:$O$6,'Utility Functions'!$P$3:$P$6)","v":0.75454545454545452},{"$f":"valuePL(J32,'Utility Functions'!$Q$3:$Q$6,'Utility Functions'!$R$3:$R$6)","v":0.08},{"$f":"valuePL(K32,'Utility Functions'!$S$3:$S$7,'Utility Functions'!$T$3:$T$7)","v":0},{"$f":"valueE(L32,'Utility Functions'!$V$3,'Utility Functions'!$V$4,'Utility Functions'!$V$5,'Utility Functions'!$V$6)","v":0.33333333333333331},{"$f":"valuePL(M32,'Utility Functions'!$W$3:$W$6,'Utility Functions'!$X$3:$X$6)","v":0.08},{"$f":"valueE(N32,'Utility Functions'!$Z$3,'Utility Functions'!$Z$4,'Utility Functions'!$Z$5,'Utility Functions'!$Z$6)","v":0},{"$f":"valuePL(O32,'Utility Functions'!$AA$3:$AA$5,'Utility Functions'!$AB$3:$AB$5)","v":0},{"$f":"valuePL(P32,'Utility Functions'!$AC$3:$AC$7,'Utility Functions'!$AD$3:$AD$7)","v":0.5},{"$f":"valuePL(Q32,'Utility Functions'!$AE$3:$AE$6,'Utility Functions'!$AF$3:$AF$6)","v":0},{"$f":"valuePL(R32,'Utility Functions'!$AG$3:$AG$6,'Utility Functions'!$AH$3:$AH$6)","v":1},{"$f":"valuePL(S32,'Utility Functions'!$AI$3:$AI$6,'Utility Functions'!$AJ$3:$AJ$6)","v":0.66},{"$f":"valuePL(T32,'Utility Functions'!$AK$3:$AK$8,'Utility Functions'!$AL$3:$AL$8)","v":0.6},{"$f":"valuePL(U32,'Utility Functions'!$AM$3:$AM$5,'Utility Functions'!$AN$3:$AN$5)","v":0},{"$f":"valuePL(V32,'Utility Functions'!$AO$3:$AO$5,'Utility Functions'!$AP$3:$AP$5)","v":0.5},{"$f":"valuePL(W32,'Utility Functions'!$AQ$3:$AQ$6,'Utility Functions'!$AR$3:$AR$6)","v":0},{"$f":"valuePL(X32,'Utility Functions'!$AS$3:$AS$6,'Utility Functions'!$AT$3:$AT$6)","v":0.2},{"$f":"valuePL(Y32,'Utility Functions'!$AU$3:$AU$6,'Utility Functions'!$AV$3:$AV$6)","v":0.2},{"$f":"valuePL(Z32,'Utility Functions'!$AW$3:$AW$5,'Utility Functions'!$AX$3:$AX$5)","v":1},{"$f":"valuePL(AA32,'Utility Functions'!$AY$3:$AY$6,'Utility Functions'!$AZ$3:$AZ$6)","v":0.89999999999999991},{"$f":"valuePL(AB32,'Utility Functions'!$BA$3:$BA$5,'Utility Functions'!$BB$3:$BB$5)","v":0.25},{"$f":"valuePL(AC32,'Utility Functions'!$BC$3:$BC$5,'Utility Functions'!$BD$3:$BD$5)","v":0.25},9.2059990264483247,null,9.2059990264483247,1.8981202385695364,1.2478787878787878,0,2.7600000000000002,3.3]
[32,{"$f":"valueE(B33,'Utility Functions'!$B$3,'Utility Functions'!$B$4,'Utility Functions'!$B$5,'Utility Functions'!$B$6)","v":0.63212151658375171},{"$f":"valueE(C33,'Utility Functions'!$D$3,'Utility Functions'!$D$4,'Utility Functions'!$D$5,'Utility Functions'!$D$6)","v":0.26839655623815994},{"$f":"valuePL(D33,'Utility Functions'!$E$3:$E$5,'Utility Functions'!$F$3:$F$5)","v":1},{"$f":"valuePL(E33,'Utility Functions'!$G$3:$G$5,'Utility Functions'!$H$3:$H$5)","v":1},{"$f":"valuePL(F33,'Utility Functions'!$I$3:$I$4,'Utility Functions'!$J$3:$J$5)","v":1},{"$f":"valueE(G33,'Utility Functions'!$L$3,'Utility Functions'!$L$4,'Utility Functions'!$L$5,'Utility Functions'!$L$6)","v":3.2258064516129031E-2},{"$f":"valueE(H33,'Utility Functions'!$N$3,'Utility Functions'!$N$4,'Utility Functions'!$N$5,'Utility Functions'!$N$6)","v":9.6774193548387094E-2},{"$f":"valuePL(I33,'Utility Functions'!$O$3:$O$6,'Utility Functions'!$P$3:$P$6)","v":0.34545454545454546},{"$f":"valuePL(J33,'Utility Functions'!$Q$3:$Q$6,'Utility Functions'!$R$3:$R$6)","v":1},{"$f":"valuePL(K33,'Utility Functions'!$S$3:$S$7,'Utility Functions'!$T$3:$T$7)","v":0.34545454545454546},{"$f":"valueE(L33,'Utility Functions'!$V$3,'Utility Functions'!$V$4,'Utility Functions'!$V$5,'Utility Functions'!$V$6)","v":1},{"$f":"valuePL(M33,'Utility Functions'!$W$3:$W$6,'Utility Functions'!$X$3:$X$6)","v":1},{"$f":"valueE(N33,'Utility Functions'!$Z$3,'Utility Functions'!$Z$4,'Utility Functions'!$Z$5,'Utility Functions'!$Z$6)","v":0},{"$f":"valuePL(O33,'Utility Functions'!$AA$3:$AA$5,'Utility Functions'!$AB$3:$AB$5)","v":0},{"$f":"valuePL(P33,'Utility Functions'!$AC$3:$AC$7,'Utility Functions'!$AD$3:$AD$7)","v":0.5},{"$f":"valuePL(Q33,'Utility Functions'!$AE$3:$AE$6,'Utility Functions'!$AF$3:$AF$6)","v":1},{"$f":"valuePL(R33,'Utility Functions'!$AG$3:$AG$6,'Utility Functions'!$AH$3:$AH$6)","v":1},{"$f":"valuePL(S33,'Utility Functions'!$AI$3:$AI$6,'Utility Functions'!$AJ$3:$AJ$6)","v":0},{"$f":"valuePL(T33,'Utility Functions'!$AK$3:$AK$8,'Utility Functions'!$AL$3:$AL$8)","v":0.8},{"$f":"valuePL(U33,'Utility Functions'!$AM$3:$AM$5,'Utility Functions'!$AN$3:$AN$5)","v":0},{"$f":"valuePL(V33,'Utility Functions'!$AO$3:$AO$5,'Utility Functions'!$AP$3:$AP$5)","v":0},{"$f":"valuePL(W33,'Utility Functions'!$AQ$3:$AQ$6,'Utility Functions'!$AR$3:$AR$6)","v":0.75},{"$f":"valuePL(X33,'Utility Functions'!$AS$3:$AS$6,'Utility Functions'!$AT$3:$AT$6)","v":0.2},{"$f":"valuePL(Y33,'Utility Functions'!$AU$3:$AU$6,'Utility Functions'!$AV$3:$AV$6)","v":0.8},{"$f":"valuePL(Z33,'Utility Functions'!$AW$3:$AW$5,'Utility Functions'!$AX$3:$AX$5)","v":0.5},{"$f":"valuePL(AA33,'Utility Functions'!$AY$3:$AY$6,'Utility Functions'!$AZ$3:$AZ$6)","v":0},{"$f":"valuePL(AB33,'Utility Functions'!$BA$3:$BA$5,'Utility Functions'!$BB$3:$BB$5)","v":1},{"$f":"valuePL(AC33,'Utility Functions'!$BC$3:$BC$5,'Utility Functions'!$BD$3:$BD$5)","v":0.25},14.52045942179552,null,14.520459421795518,3.9005180728219115,3.8199413489736074,0,3.3,3.5]
[33,{"$f":"valueE(B34,'Utility Functions'!$B$3,'Utility Functions'!$B$4,'Utility Functions'!$B$5,'Utility Functions'!$B$6)","v":0.93919136038504192},{"$f":"valueE(C34,'Utility Functions'!$D$3,'Utility Functions'!$D$4,'Utility Functions'!$D$5,'Utility Functions'!$D$6)","v":0.84744836833951609},{"$f":"valuePL(D34,'Utility Functions'!$E$3:$E$5,'Utility Functions'!$F$3:$F$5)","v":1},{"$f":"valuePL(E34,'Utility Functions'!$G$3:$G$5,'Utility Functions'!$H$3:$H$5)","v":0.5},{"$f":"valuePL(F34,'Utility Functions'!$I$3:$I$4,'Utility Functions'!$J$3:$J$5)","v":0},{"$f":"valueE(G34,'Utility Functions'!$L$3,'Utility Functions'!$L$4,'Utility Functions'!$L$5,'Utility Functions'!$L$6)","v":0},{"$f":"valueE(H34,'Utility Functions'!$N$3,'Utility Functions'!$N$4,'Utility Functions'!$N$5,'Utility Functions'!$N$6)","v":0},{"$f":"valuePL(I34,'Utility Functions'!$O$3:$O$6,'Utility Functions'!$P$3:$P$6)","v":0},{"$f":"valuePL(J34,'Utility Functions'!$Q$3:$Q$6,'Utility Functions'!$R$3:$R$6)","v":0},{"$f":"valuePL(K34,'Utility Functions'!$S$3:$S$7,'Utility Functions'!$T$3:$T$7)","v":0},{"$f":"valueE(L34,'Utility Functions'!$V$3,'Utility Functions'!$V$4,'Utility Functions'!$V$5,'Utility Functions'!$V$6)","v":0.5},{"$f":"valuePL(M34,'Utility Functions'!$W$3:$W$6,'Utility Functions'!$X$3:$X$6)","v":0},{"$f":"valueE(N34,'Utility Functions'!$Z$3,'Utility Functions'!$Z$4,'Utility Functions'!$Z$5,'Utility Functions'!$Z$6)","v":0},{"$f":"valuePL(O34,'Utility Functions'!$AA$3:$AA$5,'Utility Functions'!$AB$3:$AB$5)","v":0},{"$f":"valuePL(P34,'Utility Functions'!$AC$3:$AC$7,'Utility Functions'!$AD$3:$AD$7)","v":0.5},{"$f":"valuePL(Q34,'Utility Functions'!$AE$3:$AE$6,'Utility Functions'!$AF$3:$AF$6)","v":0},{"$f":"valuePL(R34,'Utility Functions'!$AG$3:$AG$6,'Utility Functions'!$AH$3:$AH$6)","v":1},{"$f":"valuePL(S34,'Utility Functions'!$AI$3:$AI$6,'Utility Functions'!$AJ$3:$AJ$6)","v":0.66},{"$f":"valuePL(T34,'Utility Functions'!$AK$3:$AK$8,'Utility Functions'!$AL$3:$AL$8)","v":0},{"$f":"valuePL(U34,'Utility Functions'!$AM$3:$AM$5,'Utility Functions'!$AN$3:$AN$5)","v":0},{"$f":"valuePL(V34,'Utility Functions'!$AO$3:$AO$5,'Utility Functions'!$AP$3:$AP$5)","v":0.5},{"$f":"valuePL(W34,'Utility Functions'!$AQ$3:$AQ$6,'Utility Functions'!$AR$3:$AR$6)","v":1},{"$f":"valuePL(X34,'Utility Functions'!$AS$3:$AS$6,'Utility Functions'!$AT$3:$AT$6)","v":0},{"$f":"valuePL(Y34,'Utility Functions'!$AU$3:$AU$6,'Utility Functions'!$AV$3:$AV$6)","v":0.8},{"$f":"valuePL(Z34,'Utility Functions'!$AW$3:$AW$5,'Utility Functions'!$AX$3:$AX$5)","v":1},{"$f":"valuePL(AA34,'Utility Functions'!$AY$3:$AY$6,'Utility Functions'!$AZ$3:$AZ$6)","v":1},{"$f":"valuePL(AB34,'Utility Functions'!$BA$3:$BA$5,'Utility Functions'!$BB$3:$BB$5)","v":0},{"$f":"valuePL(AC34,'Utility Functions'!$BC$3:$BC$5,'Utility Functions'!$BD$3:$BD$5)","v":0},10.246639728724558,null,10.246639728724558,3.2866397287245581,0.5,0,2.16,4.3]
[34,{"$f":"valueE(B35,'Utility Functions'!$B$3,'Utility Functions'!$B$4,'Utility Functions'!$B$5,'Utility Functions'!$B$6)","v":0},{"$f":"valueE(C35,'Utility Functions'!$D$3,'Utility Functions'!$D$4,'Utility Functions'!$D$5,'Utility Functions'!$D$6)","v":0},{"$f":"valuePL(D35,'Utility Functions'!$E$3:$E$5,'Utility Functions'!$F$3:$F$5)","v":0},{"$f":"valuePL(E35,'Utility Functions'!$G$3:$G$5,'Utility Functions'!$H$3:$H$5)","v":0},{"$f":"valuePL(F35,'Utility Functions'!$I$3:$I$4,'Utility Functions'!$J$3:$J$5)","v":0},{"$f":"valueE(G35,'Utility Functions'!$L$3,'Utility Functions'!$L$4,'Utility Functions'!$L$5,'Utility Functions'!$L$6)","v":0},{"$f":"valueE(H35,'Utility Functions'!$N$3,'Utility Functions'!$N$4,'Utility Functions'!$N$5,'Utility Functions'!$N$6)","v":1.1385199240986717E-2},{"$f":"valuePL(I35,'Utility Functions'!$O$3:$O$6,'Utility Functions'!$P$3:$P$6)","v":1},{"$f":"valuePL(J35,'Utility Functions'!$Q$3:$Q$6,'Utility Functions'!$R$3:$R$6)","v":0.91818181818181821},{"$f":"valuePL(K35,'Utility Functions'!$S$3:$S$7,'Utility Functions'!$T$3:$T$7)","v":1},{"$f":"valueE(L35,'Utility Functions'!$V$3,'Utility Functions'!$V$4,'Utility Functions'!$V$5,'Utility Functions'!$V$6)","v":1},{"$f":"valuePL(M35,'Utility Functions'!$W$3:$W$6,'Utility Functions'!$X$3:$X$6)","v":0.91818181818181821},{"$f":"valueE(N35,'Utility Functions'!$Z$3,'Utility Functions'!$Z$4,'Utility Functions'!$Z$5,'Utility Functions'!$Z$6)","v":0},{"$f":"valuePL(O35,'Utility Functions'!$AA$3:$AA$5,'Utility Functions'!$AB$3:$AB$5)","v":0},{"$f":"valuePL(P35,'Utility Functions'!$AC$3:$AC$7,'Utility Functions'!$AD$3:$AD$7)","v":0.5},{"$f":"valuePL(Q35,'Utility Functions'!$AE$3:$AE$6,'Utility Functions'!$AF$3:$AF$6)","v":0},{"$f":"valuePL(R35,'Utility Functions'!$AG$3:$AG$6,'Utility Functions'!$AH$3:$AH$6)","v":1},{"$f":"valuePL(S35,'Utility Functions'!$AI$3:$AI$6,'Utility Functions'!$AJ$3:$AJ$6)","v":1},{"$f":"valuePL(T35,'Utility Functions'!$AK$3:$AK$8,'Utility Functions'!$AL$3:$AL$8)","v":0.8},{"$f":"valuePL(U35,'Utility Functions'!$AM$3:$AM$5,'Utility Functions'!$AN$3:$AN$5)","v":0},{"$f":"valuePL(V35,'Utility Functions'!$AO$3:$AO$5,'Utility Functions'!$AP$3:$AP$5)","v":1},{"$f":"valuePL(W35,'Utility Functions'!$AQ$3:$AQ$6,'Utility Functions'!$AR$3:$AR$6)","v":1},{"$f":"valuePL(X35,'Utility Functions'!$AS$3:$AS$6,'Utility Functions'!$AT$3:$AT$6)","v":1},{"$f":"valuePL(Y35,'Utility Functions'!$AU$3:$AU$6,'Utility Functions'!$AV$3:$AV$6)","v":0},{"$f":"valuePL(Z35,'Utility Functions'!$AW$3:$AW$5,'Utility Functions'!$AX$3:$AX$5)","v":1},{"$f":"valuePL(AA35,'Utility Functions'!$AY$3:$AY$6,'Utility Functions'!$AZ$3:$AZ$6)","v":0.89999999999999991},{"$f":"valuePL(AB35,'Utility Functions'!$BA$3:$BA$5,'Utility Functions'!$BB$3:$BB$5)","v":0.25},{"$f":"valuePL(AC35,'Utility Functions'!$BC$3:$BC$5,'Utility Functions'!$BD$3:$BD$5)","v":0},13.297748835604624,null,13.297748835604624,0,4.847748835604623,0,3.3,5.15]
[35,{"$f":"valueE(B36,'Utility Functions'!$B$3,'Utility Functions'!$B$4,'Utility Functions'!$B$5,'Utility Functions'!$B$6)","v":0.79810469124896843},{"$f":"valueE(C36,'Utility Functions'!$D$3,'Utility Functions'!$D$4,'Utility Functions'!$D$5,'Utility Functions'!$D$6)","v":0.60939983135101949},{"$f":"valuePL(D36,'Utility Functions'!$E$3:$E$5,'Utility Functions'!$F$3:$F$5)","v":0.5},{"$f":"valuePL(E36,'Utility Functions'!$G$3:$G$5,'Utility Functions'!$H$3:$H$5)","v":0.5},{"$f":"valuePL(F36,'Utility Functions'!$I$3:$I$4,'Utility Functions'!$J$3:$J$5)","v":1},{"$f":"valueE(G36,'Utility Functions'!$L$3,'Utility Functions'!$L$4,'Utility Functions'!$L$5,'Utility Functions'!$L$6)","v":0},{"$f":"valueE(H36,'Utility Functions'!$N$3,'Utility Functions'!$N$4,'Utility Functions'!$N$5,'Utility Functions'!$N$6)","v":0},{"$f":"valuePL(I36,'Utility Functions'!$O$3:$O$6,'Utility Functions'!$P$3:$P$6)","v":0},{"$f":"valuePL(J36,'Utility Functions'!$Q$3:$Q$6,'Utility Functions'!$R$3:$R$6)","v":0},{"$f":"valuePL(K36,'Utility Functions'!$S$3:$S$7,'Utility Functions'!$T$3:$T$7)","v":1},{"$f":"valueE(L36,'Utility Functions'!$V$3,'Utility Functions'!$V$4,'Utility Functions'!$V$5,'Utility Functions'!$V$6)","v":0.66666666666666663},{"$f":"valuePL(M36,'Utility Functions'!$W$3:$W$6,'Utility Functions'!$X$3:$X$6)","v":0.1},{"$f":"valueE(N36,'Utility Functions'!$Z$3,'Utility Functions'!$Z$4,'Utility Functions'!$Z$5,'Utility Functions'!$Z$6)","v":1},{"$f":"valuePL(O36,'Utility Functions'!$AA$3:$AA$5,'Utility Functions'!$AB$3:$AB$5)","v":0},{"$f":"valuePL(P36,'Utility Functions'!$AC$3:$AC$7,'Utility Functions'!$AD$3:$AD$7)","v":0},{"$f":"valuePL(Q36,'Utility Functions'!$AE$3:$AE$6,'Utility Functions'!$AF$3:$AF$6)","v":0},{"$f":"valuePL(R36,'Utility Functions'!$AG$3:$AG$6,'Utility Functions'!$AH$3:$AH$6)","v":1},{"$f":"valuePL(S36,'Utility Functions'!$AI$3:$AI$6,'Utility Functions'!$AJ$3:$AJ$6)","v":1},{"$f":"valuePL(T36,'Utility Functions'!$AK$3:$AK$8,'Utility Functions'!$AL$3:$AL$8)","v":0.6},{"$f":"valuePL(U36,'Utility Functions'!$AM$3:$AM$5,'Utility Functions'!$AN$3:$AN$5)","v":0},{"$f":"valuePL(V36,'Utility Functions'!$AO$3:$AO$5,'Utility Functions'!$AP$3:$AP$5)","v":1},{"$f":"valuePL(W36,'Utility Functions'!$AQ$3:$AQ$6,'Utility Functions'!$AR$3:$AR$6)","v":0.75},{"$f":"valuePL(X36,'Utility Functions'!$AS$3:$AS$6,'Utility Functions'!$AT$3:$AT$6)","v":0},{"$f":"valuePL(Y36,'Utility Functions'!$AU$3:$AU$6,'Utility Functions'!$AV$3:$AV$6)","v":0.2},{"$f":"valuePL(Z36,'Utility Functions'!$AW$3:$AW$5,'Utility Functions'!$AX$3:$AX$5)","v":1},{"$f":"valuePL(AA36,'Utility Functions'!$AY$3:$AY$6,'Utility Functions'!$AZ$3:$AZ$6)","v":0},{"$f":"valuePL(AB36,'Utility Functions'!$BA$3:$BA$5,'Utility Functions'!$BB$3:$BB$5)","v":0.25},{"$f":"valuePL(AC36,'Utility Functions'!$BC$3:$BC$5,'Utility Functions'!$BD$3:$BD$5)","v":0.25},12.224171189266654,null,12.224171189266656,3.407504522599988,1.7666666666666666,1,2.6,3.45]
["Unweighted",{"$f":"SUMPRODUCT(B46:B80,$B$85:$B$119)","v":3.0847426500326565},{"$f":"SUMPRODUCT(C46:C80,$B$85:$B$119)","v":2.4146054342030006},{"$f":"SUMPRODUCT(D46:D80,$B$85:$B$119)","v":3.5},0.5,0,0.94623655913978499,0.29222011385199242,0.8545454545454545,0.79272727272727272,0,1.3333333333333333,0.75272727272727269,1.75,1.25,1.5,1.1000000000000001,4,4.32,2.4,0,2.5,1.1499999999999999,3.2,2.8000000000000003,2.5,1.5,2.5,3.5,null,null,"Unweighted",{"$f":"SUMPRODUCT(AG46:AG80,$B$85:$B$119)","v":9.4993480842356561},{"$f":"SUMPRODUCT(AH46:AH80,$B$85:$B$119)","v":4.9717900063251106},3,13.319999999999999,19.650000000000002]
["Weighted",{"$f":"B$81*Sens_Rigor!I$5","v":7.4111860487169501E-2},{"$f":"C$81*Sens_Rigor!J$5","v":5.4839818031642035E-2},{"$f":"D$81*Sens_Rigor!K$5","v":8.0503258295003002E-2},{"$f":"E$81*Sens_Rigor!L$5","v":1.1204375142178634E-2},{"$f":"F$81*Sens_Rigor!M$5","v":0},{"$f":"G$81*Sens_Rigor!N$5","v":1.0641833835331292E-2},{"$f":"H$81*Sens_Rigor!O$5","v":3.2864486844405459E-3},{"$f":"I$81*Sens_Rigor!P$5","v":1.6313937487931411E-2},{"$f":"J$81*Sens_Rigor!Q$5","v":1.4747111574457178E-2},{"$f":"K$81*Sens_Rigor!R$5","v":0},{"$f":"L$81*Sens_Rigor!S$5","v":2.2398896987332873E-2},{"$f":"M$81*Sens_Rigor!T$5","v":9.5480830653926121E-3},{"$f":"N$81*Sens_Rigor!U$5","v":3.9772727272727265E-2},{"$f":"O$81*Sens_Rigor!V$5","v":8.5227272727272721E-2},{"$f":"P$81*Sens_Rigor!W$5","v":4.4928908982854107E-2},{"$f":"Q$81*Sens_Rigor!X$5","v":3.631886425225813E-2},{"$f":"R$81*Sens_Rigor!Y$5","v":0.15117210021219768},{"$f":"S$81*Sens_Rigor!Z$5","v":0.14299672230400889},{"$f":"T$81*Sens_Rigor!AA$5","v":5.782421960753388E-2},{"$f":"U$81*Sens_Rigor!AB$5","v":0},{"$f":"V$81*Sens_Rigor!AC$5","v":0.20020723456335521},{"$f":"W$81*Sens_Rigor!AD$5","v":6.6416514104802912E-2},{"$f":"X$81*Sens_Rigor!AE$5","v":0.19764431272652017},{"$f":"Y$81*Sens_Rigor!AF$5","v":0.21490636570785093},{"$f":"Z$81*Sens_Rigor!AG$5","v":0.16626000742017272},{"$f":"AA$81*Sens_Rigor!AH$5","v":7.7295690583690804E-2},{"$f":"AB$81*Sens_Rigor!AI$5","v":0.1366225060486122},{"$f":"AC$81*Sens_Rigor!AJ$5","v":0.17837410037290891},null,null,"Weighted for SA",{"$f":"AG81*#REF!","v":{"$error":"#REF!"}},{"$f":"AH81*#REF!","v":{"$error":"#REF!"}},{"$f":"AI81*#REF!","v":{"$error":"#REF!"}},{"$f":"AJ81*#REF!","v":{"$error":"#REF!"}},{"$f":"AK81*#REF!","v":{"$error":"#REF!"}}]
[]
[null,"Decision variable","Benefit","Cost"]
[{"$f":"A2","v":1},0,{"$f":"AD46","v":17.117643866192076},{"$f":"AD2","v":700000}]
[2,0,{"$f":"AD47","v":12.641625800575998},{"$f":"AD3","v":5400000}]
[3,0,11.563541444302563,250000]
[4,0,9.2460291931089209,150000]
[5,0,9.5663279251355373,220000]
[6,1,5.9008471271383875,110000]
[7,0,15.54287399641135,1000000]
[8,0,14.227364688589191,5000000]
[9,0,11.893773577166716,25000]
[10,1,9.01,900000]
[11,0,13.174032258064516,1500000]
[12,0,9.4195802436719873,100000]
[13,0,7.5245670174228056,250000]
[14,0,10.338706637075108,500000]
[15,0,15.150477261414375,800000]
[16,0,15.119696969696969,2000000]
[17,0,10.876550515651747,500000]
[18,0,10.178462998102468,300000]
[19,0,9.3165012474871283,750000]
[20,0,15.091255033092194,1500000]
[21,0,9.5500000000000007,900000]
[22,0,9.471742567994939,750000]
[23,0,9.5321507448123199,1000000]
[24,0,9.4968811881212041,150000]
[25,1,13.870607417804099,250000]
[26,0,11.064076562960208,500000]
[27,0,9.0147596715374529,1200000]
[28,0,12.499282052393189,500000]
[29,1,12.453684519169958,2000000]
[30,0,7.6494228467205527,250000]
[31,1,9.2059990264483247,650000]
[32,0,14.52045942179552,200000]
[33,0,10.246639728724558,400000]
[34,0,13.297748835604624,900000]
[35,0,12.224171189266654,900000]
[null,{"$f":"SUM(B85:B119)","v":5},{"$f":"SUMPRODUCT(C85:C119,B85:B119)","v":50.44113809056077},{"$f":"SUMPRODUCT(B85:B119,D85:D119)","v":3910000}]
[]
[null,null,"Cost constraint",15000000]

{"sheet":"Portfolio_A_Int","index":28,"n_rows":122,"n_cols":37,"rows_kept":122,"cut":false,"hidden":false,"merged":[]}
["Project","manage_species","manage_spatial","manage_uncertainty","manage_currentpractices","manage_adaptivemanagement","pop_a","pop_b","pop_spatialscope","pop_temporalscope","hab_quantity","hab_quality","hab_temporal","ecoprocess_spp","ecoprocess_uncertainty","datasharing","broaderimpacts","exisitingpriorities","partners","leverage","alignment","objhyp","response","targettaxa","surveydesign","stats","datamanagement","budget","timeline","cost"]
[1,9,6.25,2,2,0,186,1054,75,5,0,2,0,0,0,4,0,2,3,0,0,2,3,3,3,2,3,2,2,700000]
[2,3,28.2,1,0,0,0,0,0,0,0,2,0,4,1,0,0,3,3,0,0,2,3,3,3,2,3,2,2,5400000]
[3,8,28.2,2,0,0,0,0,0,0,0,2,0,5,1,0,2,0,0,0,1,2,3,3,3,2,1,2,2,250000]
[4,1,6.25,2,0,0,0,0,0,0,0,2,0,4,1,0,1,3,3,4,0,1,3,3,1,0,0,2,1,150000]
[5,4,3.1,2,0,0,0,0,50,2,0,2,0,0,0,0,1,3,3,4,1,0,3,3,2,0,0,2,1,220000]
[6,10,6.2E-2,2,0,0,0,0,10,2,0,2,0,0,0,0,1,0,3,3,0,0,0,3,0,0,0,2,1,110000]
[7,52,18.8,0,2,0,0,0,85,12,85,8,12,8,1,0,0,3,3,0,0,2,0,1,3,2,2,0,2,1000000]
[8,3,18.8,2,1,1,0,0,14,14,14,8,14,0,0,0,3,1,3,0,0,2,3,3,3,2,0,1,1,5000000]
[9,9,15.6,2,1,0,70,140,0,0,0,2,0,0,0,3,0,3,2,1,0,2,3,3,1,2,1,1,2,25000]
[10,0,0,0,0,0,0,0,0,0,0,2,0,6,2,1,2,3,2,2,0,0,2,3,3,1,1,0,2,900000]
[11,0,0,0,0,0,6,102,52,15,52,8,15,3,1,1,0,3,3,2,2,2,1,3,3,1,2,0,1,1500000]
[12,2,15.6,2,1,0,0,0,0,0,0,2,0,0,0,0,1,3,3,3,0,1,1,3,1,2,1,2,0,100000]
[13,0,0,0,0,0,0,12,39,2,39,8,2,7,1,1,0,3,3,0,0,1,0,1,0,2,1,1,1,250000]
[14,6,15.6,1,1,0,0,0,0,0,0,2,0,6,1,1,0,3,3,0,0,1,1,3,3,1,2,1,1,500000]
[15,23,12.5,2,1,1,0,0,23,3,23,8,3,1,2,2,0,2,3,3,2,0,3,1,1,2,3,2,1,800000]
[16,0,0,0,0,0,0,0,100,15,100,7,15,0,0,3,0,3,3,5,0,2,2,2,1,2,3,2,2,2000000]
[17,2,15.6,2,1,1,58,290,0,0,0,8,3,0,0,0,0,3,2,0,0,2,3,1,0,1,0,2,1,500000]
[18,0,0,0,0,0,0,30,0,0,0,2,0,8,1,1,3,3,3,5,1,2,2,1,2,1,2,1,0,300000]
[19,8,3.125,1,2,0,0,0,0,0,0,2,0,8,2,0,0,2,3,0,0,1,1,3,2,0,1,0,1,750000]
[20,9,15.6,1,2,0,0,435,76,10,76,6,10,8,2,1,0,3,3,3,2,1,0,0,1,2,1,0,1,1500000]
[21,0,0,0,0,0,0,0,0,0,0,2,0,8,2,0,1,3,3,5,1,0,2,3,1,0,3,1,2,900000]
[22,0,0,0,0,0,16,64,0,0,0,2,0,1,2,4,2,2,3,5,0,1,2,1,0,2,1,2,1,750000]
[23,9,18.8,2,0,0,0,0,0,0,0,2,0,0,0,3,0,3,3,5,0,2,1,2,1,1,1,0,1,1000000]
[24,5,6.25,2,0,0,0,0,0,0,0,2,0,0,0,0,0,3,3,5,0,0,3,1,3,2,1,0,2,150000]
[25,9,18.8,2,0,0,176,308,0,0,0,2,0,8,1,2,2,3,3,0,0,2,1,3,2,1,1,2,2,250000]
[26,17,18.8,2,1,0,0,0,0,0,0,2,0,0,0,3,0,3,3,4,0,2,1,0,2,0,1,2,2,500000]
[27,0,6.25,2,0,0,0,0,0,0,80,2,5,0,0,2,2,3,3,5,0,1,2,3,1,0,0,0,0,1200000]
[28,3,6.25,2,0,1,0,0,0,0,0,4,5,0,0,4,0,3,3,4,0,2,3,3,1,0,2,2,1,500000]
[29,9,12.5,2,1,0,0,0,15,12,15,8,12,0,0,1,0,3,3,4,0,2,1,0,2,1,1,1,2,2000000]
[30,33,18.8,2,0,0,0,0,0,0,0,4,2,0,0,0,0,1,1,0,0,0,3,1,2,0,2,2,0,250000]
[31,4,18.8,1,0,0,0,0,65,4,0,4,4,0,0,2,0,3,2,3,0,1,0,1,1,2,2,1,1,650000]
[32,5,3.125,2,2,1,6,102,40,16,40,8,16,0,0,2,3,3,0,4,0,0,2,1,2,1,0,2,1,200000]
[33,14,18.8,2,1,0,0,0,0,0,0,5,0,0,0,2,0,3,2,0,0,1,3,0,2,2,3,0,0,400000]
[34,0,0,0,0,0,0,12,100,15,100,8,15,0,0,2,0,3,3,4,0,2,3,3,0,2,2,1,0,900000]
[35,8,9.4,1,1,1,0,0,0,0,100,6,5,8,0,0,0,3,3,3,0,2,2,0,1,2,0,1,1,900000]
["CV",{"$f":"_xlfn.STDEV.S(B2:B36)/AVERAGE(B2:B36)","v":1.383842854444886},{"$f":"_xlfn.STDEV.S(C2:C36)/AVERAGE(C2:C36)","v":0.84395823753626376},{"$f":"_xlfn.STDEV.S(D2:D36)/AVERAGE(D2:D36)","v":0.65948586466528381},{"$f":"_xlfn.STDEV.S(E2:E36)/AVERAGE(E2:E36)","v":1.2933654230908831},2.2305806858480666,2.9881459898804135,2.7250501152884543,1.5394659205075842,1.5790297611729722,1.6828143944790142,0.63288342730791625,1.4346340567392073,1.2744250477591585,1.2909944487358058,1.043011114951035,1.4910544805781871,0.32582327651393111,0.30721159062514791,0.8219511329380369,2.1760730956581078,0.64975875258290616,0.58618247649425104,0.61083323417736113,0.63333947951472869,0.68629571860885286,0.76505300516434493,0.69428102652373402,0.60312027652595823]
["sd",{"$f":"_xlfn.STDEV.S(B2:B36)","v":10.477667326511279}]
["mean",{"$f":"AVERAGE(B2:B36)","v":7.5714285714285712}]
[null,{"$f":"B1","v":"manage_species"},{"$f":"C1","v":"manage_spatial"},"manage_uncertainty","manage_currentpractices","manage_adaptivemanagement","pop_a","pop_b","pop_spatialscope","pop_temporalscope","hab_quantity","hab_quality","hab_temporal","ecoprocess_spp","ecoprocess_uncertainty","datasharing","broaderimpacts","exisitingpriorities","partners","leverage","alignment","objhyp","response","targettaxa","surveydesign","stats","datamanagement","budget","timeline"]
[null,"Metric 1","Metric 2","Metric 3","Metric 4","Metric 5","Metric 6a","Metric 6b","Metric 7","Metric 8","Metric 9","Metric 10","Metric 11","Metric 12","Metric 13","Metric 14","Metric 15","Metric 16","Metric 17","Metric 18","Metric 19","Metric 20","Metric 21","Metric 22","Metric 23","Metric 24","Metric 25","Metric 26","Metric 27"]
["Weights",0.03,0.03,0.03,0.03,0.04,1.4999999999999999E-2,1.4999999999999999E-2,0.03,0.02,0.02,0.02,0.02,0.03,0.09,0.04,0.04,0.05,0.05,0.03,0.03,0.05,0.04,0.04,0.05,0.05,0.04,0.04,0.03]
[]
[null,"Unweighted"]
["Project",null,null,null,null,null,null,null,null,null,null,null,null,null,null,null,null,null,null,null,null,null,null,null,null,null,null,null,null,"Unweighted total",null,"Unweighted total","management","status","ecol_proc","integration","rigor"]
[{"$f":"A2","v":1},{"$f":"valueE(B2,'Utility Functions'!$B$3,'Utility Functions'!$B$4,'Utility Functions'!$B$5,'Utility Functions'!$B$6)","v":0.83470237647280454},{"$f":"valueE(C2,'Utility Functions'!$D$3,'Utility Functions'!$D$4,'Utility Functions'!$D$5,'Utility Functions'!$D$6)","v":0.46475967153745396},{"$f":"valuePL(D2,'Utility Functions'!$E$3:$E$5,'Utility Functions'!$F$3:$F$5)","v":1},{"$f":"valuePL(E2,'Utility Functions'!$G$3:$G$5,'Utility Functions'!$H$3:$H$5)","v":1},{"$f":"valuePL(F2,'Utility Functions'!$I$3:$I$4,'Utility Functions'!$J$3:$J$5)","v":0},{"$f":"valueE(G2,'Utility Functions'!$L$3,'Utility Functions'!$L$4,'Utility Functions'!$L$5,'Utility Functions'!$L$6)","v":1},{"$f":"valueE(H2,'Utility Functions'!$N$3,'Utility Functions'!$N$4,'Utility Functions'!$N$5,'Utility Functions'!$N$6)","v":1},{"$f":"valuePL(I2,'Utility Functions'!$O$3:$O$6,'Utility Functions'!$P$3:$P$6)","v":0.91818181818181821},{"$f":"valuePL(J2,'Utility Functions'!$Q$3:$Q$6,'Utility Functions'!$R$3:$R$6)","v":0.1},{"$f":"valuePL(K2,'Utility Functions'!$S$3:$S$7,'Utility Functions'!$T$3:$T$7)","v":0},{"$f":"valueE(L2,'Utility Functions'!$V$3,'Utility Functions'!$V$4,'Utility Functions'!$V$5,'Utility Functions'!$V$6)","v":0},{"$f":"valuePL(M2,'Utility Functions'!$W$3:$W$6,'Utility Functions'!$X$3:$X$6)","v":0},{"$f":"valueE(N2,'Utility Functions'!$Z$3,'Utility Functions'!$Z$4,'Utility Functions'!$Z$5,'Utility Functions'!$Z$6)","v":0},{"$f":"valuePL(O2,'Utility Functions'!$AA$3:$AA$5,'Utility Functions'!$AB$3:$AB$5)","v":0},{"$f":"valuePL(P2,'Utility Functions'!$AC$3:$AC$7,'Utility Functions'!$AD$3:$AD$7)","v":1},{"$f":"valuePL(Q2,'Utility Functions'!$AE$3:$AE$6,'Utility Functions'!$AF$3:$AF$6)","v":0},{"$f":"valuePL(R2,'Utility Functions'!$AG$3:$AG$6,'Utility Functions'!$AH$3:$AH$6)","v":0.8},{"$f":"valuePL(S2,'Utility Functions'!$AI$3:$AI$6,'Utility Functions'!$AJ$3:$AJ$6)","v":1},{"$f":"valuePL(T2,'Utility Functions'!$AK$3:$AK$8,'Utility Functions'!$AL$3:$AL$8)","v":0},{"$f":"valuePL(U2,'Utility Functions'!$AM$3:$AM$5,'Utility Functions'!$AN$3:$AN$5)","v":0},{"$f":"valuePL(V2,'Utility Functions'!$AO$3:$AO$5,'Utility Functions'!$AP$3:$AP$5)","v":1},{"$f":"valuePL(W2,'Utility Functions'!$AQ$3:$AQ$6,'Utility Functions'!$AR$3:$AR$6)","v":1},{"$f":"valuePL(X2,'Utility Functions'!$AS$3:$AS$6,'Utility Functions'!$AT$3:$AT$6)","v":1},{"$f":"valuePL(Y2,'Utility Functions'!$AU$3:$AU$6,'Utility Functions'!$AV$3:$AV$6)","v":1},{"$f":"valuePL(Z2,'Utility Functions'!$AW$3:$AW$5,'Utility Functions'!$AX$3:$AX$5)","v":1},{"$f":"valuePL(AA2,'Utility Functions'!$AY$3:$AY$6,'Utility Functions'!$AZ$3:$AZ$6)","v":1},{"$f":"valuePL(AB2,'Utility Functions'!$BA$3:$BA$5,'Utility Functions'!$BB$3:$BB$5)","v":1},{"$f":"valuePL(AC2,'Utility Functions'!$BC$3:$BC$5,'Utility Functions'!$BD$3:$BD$5)","v":1},{"$f":"SUM(B46:AC46)","v":17.117643866192076},null,{"$f":"SUM(AG46:AK46)","v":17.117643866192076},{"$f":"SUM(B46:F46)","v":3.2994620480102586},{"$f":"SUM(G46:M46)","v":3.0181818181818181},{"$f":"SUM(N46:O46)","v":0},{"$f":"SUM(P46:U46)","v":2.8},{"$f":"SUM(V46:AC46)","v":8}]
[2,{"$f":"valueE(B3,'Utility Functions'!$B$3,'Utility Functions'!$B$4,'Utility Functions'!$B$5,'Utility Functions'!$B$6)","v":0.4511890475224023},{"$f":"valueE(C3,'Utility Functions'!$D$3,'Utility Functions'!$D$4,'Utility Functions'!$D$5,'Utility Functions'!$D$6)","v":0.94043675305359531},{"$f":"valuePL(D3,'Utility Functions'!$E$3:$E$5,'Utility Functions'!$F$3:$F$5)","v":0.5},{"$f":"valuePL(E3,'Utility Functions'!$G$3:$G$5,'Utility Functions'!$H$3:$H$5)","v":0},{"$f":"valuePL(F3,'Utility Functions'!$I$3:$I$4,'Utility Functions'!$J$3:$J$5)","v":0},{"$f":"valueE(G3,'Utility Functions'!$L$3,'Utility Functions'!$L$4,'Utility Functions'!$L$5,'Utility Functions'!$L$6)","v":0},{"$f":"valueE(H3,'Utility Functions'!$N$3,'Utility Functions'!$N$4,'Utility Functions'!$N$5,'Utility Functions'!$N$6)","v":0},{"$f":"valuePL(I3,'Utility Functions'!$O$3:$O$6,'Utility Functions'!$P$3:$P$6)","v":0},{"$f":"valuePL(J3,'Utility Functions'!$Q$3:$Q$6,'Utility Functions'!$R$3:$R$6)","v":0},{"$f":"valuePL(K3,'Utility Functions'!$S$3:$S$7,'Utility Functions'!$T$3:$T$7)","v":0},{"$f":"valueE(L3,'Utility Functions'!$V$3,'Utility Functions'!$V$4,'Utility Functions'!$V$5,'Utility Functions'!$V$6)","v":0},{"$f":"valuePL(M3,'Utility Functions'!$W$3:$W$6,'Utility Functions'!$X$3:$X$6)","v":0},{"$f":"valueE(N3,'Utility Functions'!$Z$3,'Utility Functions'!$Z$4,'Utility Functions'!$Z$5,'Utility Functions'!$Z$6)","v":0.5},{"$f":"valuePL(O3,'Utility Functions'!$AA$3:$AA$5,'Utility Functions'!$AB$3:$AB$5)","v":0.25},{"$f":"valuePL(P3,'Utility Functions'!$AC$3:$AC$7,'Utility Functions'!$AD$3:$AD$7)","v":0},{"$f":"valuePL(Q3,'Utility Functions'!$AE$3:$AE$6,'Utility Functions'!$AF$3:$AF$6)","v":0},{"$f":"valuePL(R3,'Utility Functions'!$AG$3:$AG$6,'Utility Functions'!$AH$3:$AH$6)","v":1},{"$f":"valuePL(S3,'Utility Functions'!$AI$3:$AI$6,'Utility Functions'!$AJ$3:$AJ$6)","v":1},{"$f":"valuePL(T3,'Utility Functions'!$AK$3:$AK$8,'Utility Functions'!$AL$3:$AL$8)","v":0},{"$f":"valuePL(U3,'Utility Functions'!$AM$3:$AM$5,'Utility Functions'!$AN$3:$AN$5)","v":0},{"$f":"valuePL(V3,'Utility Functions'!$AO$3:$AO$5,'Utility Functions'!$AP$3:$AP$5)","v":1},{"$f":"valuePL(W3,'Utility Functions'!$AQ$3:$AQ$6,'Utility Functions'!$AR$3:$AR$6)","v":1},{"$f":"valuePL(X3,'Utility Functions'!$AS$3:$AS$6,'Utility Functions'!$AT$3:$AT$6)","v":1},{"$f":"valuePL(Y3,'Utility Functions'!$AU$3:$AU$6,'Utility Functions'!$AV$3:$AV$6)","v":1},{"$f":"valuePL(Z3,'Utility Functions'!$AW$3:$AW$5,'Utility Functions'!$AX$3:$AX$5)","v":1},{"$f":"valuePL(AA3,'Utility Functions'!$AY$3:$AY$6,'Utility Functions'!$AZ$3:$AZ$6)","v":1},{"$f":"valuePL(AB3,'Utility Functions'!$BA$3:$BA$5,'Utility Functions'!$BB$3:$BB$5)","v":1},{"$f":"valuePL(AC3,'Utility Functions'!$BC$3:$BC$5,'Utility Functions'!$BD$3:$BD$5)","v":1},{"$f":"SUM(B47:AC47)","v":12.641625800575998},null,{"$f":"SUM(AG47:AK47)","v":12.641625800575998},{"$f":"SUM(B47:F47)","v":1.8916258005759976},{"$f":"SUM(G47:M47)","v":0},{"$f":"SUM(N47:O47)","v":0.75},{"$f":"SUM(P47:U47)","v":2},{"$f":"SUM(V47:AC47)","v":8}]
[3,{"$f":"valueE(B4,'Utility Functions'!$B$3,'Utility Functions'!$B$4,'Utility Functions'!$B$5,'Utility Functions'!$B$6)","v":0.79810469124896843},{"$f":"valueE(C4,'Utility Functions'!$D$3,'Utility Functions'!$D$4,'Utility Functions'!$D$5,'Utility Functions'!$D$6)","v":0.94043675305359531},{"$f":"valuePL(D4,'Utility Functions'!$E$3:$E$5,'Utility Functions'!$F$3:$F$5)","v":1},{"$f":"valuePL(E4,'Utility Functions'!$G$3:$G$5,'Utility Functions'!$H$3:$H$5)","v":0},{"$f":"valuePL(F4,'Utility Functions'!$I$3:$I$4,'Utility Functions'!$J$3:$J$5)","v":0},{"$f":"valueE(G4,'Utility Functions'!$L$3,'Utility Functions'!$L$4,'Utility Functions'!$L$5,'Utility Functions'!$L$6)","v":0},{"$f":"valueE(H4,'Utility Functions'!$N$3,'Utility Functions'!$N$4,'Utility Functions'!$N$5,'Utility Functions'!$N$6)","v":0},{"$f":"valuePL(I4,'Utility Functions'!$O$3:$O$6,'Utility Functions'!$P$3:$P$6)","v":0},{"$f":"valuePL(J4,'Utility Functions'!$Q$3:$Q$6,'Utility Functions'!$R$3:$R$6)","v":0},{"$f":"valuePL(K4,'Utility Functions'!$S$3:$S$7,'Utility Functions'!$T$3:$T$7)","v":0},{"$f":"valueE(L4,'Utility Functions'!$V$3,'Utility Functions'!$V$4,'Utility Functions'!$V$5,'Utility Functions'!$V$6)","v":0},{"$f":"valuePL(M4,'Utility Functions'!$W$3:$W$6,'Utility Functions'!$X$3:$X$6)","v":0},{"$f":"valueE(N4,'Utility Functions'!$Z$3,'Utility Functions'!$Z$4,'Utility Functions'!$Z$5,'Utility Functions'!$Z$6)","v":0.625},{"$f":"valuePL(O4,'Utility Functions'!$AA$3:$AA$5,'Utility Functions'!$AB$3:$AB$5)","v":0.25},{"$f":"valuePL(P4,'Utility Functions'!$AC$3:$AC$7,'Utility Functions'!$AD$3:$AD$7)","v":0},{"$f":"valuePL(Q4,'Utility Functions'!$AE$3:$AE$6,'Utility Functions'!$AF$3:$AF$6)","v":0.5},{"$f":"valuePL(R4,'Utility Functions'!$AG$3:$AG$6,'Utility Functions'!$AH$3:$AH$6)","v":0},{"$f":"valuePL(S4,'Utility Functions'!$AI$3:$AI$6,'Utility Functions'!$AJ$3:$AJ$6)","v":0},{"$f":"valuePL(T4,'Utility Functions'!$AK$3:$AK$8,'Utility Functions'!$AL$3:$AL$8)","v":0},{"$f":"valuePL(U4,'Utility Functions'!$AM$3:$AM$5,'Utility Functions'!$AN$3:$AN$5)","v":0.25},{"$f":"valuePL(V4,'Utility Functions'!$AO$3:$AO$5,'Utility Functions'!$AP$3:$AP$5)","v":1},{"$f":"valuePL(W4,'Utility Functions'!$AQ$3:$AQ$6,'Utility Functions'!$AR$3:$AR$6)","v":1},{"$f":"valuePL(X4,'Utility Functions'!$AS$3:$AS$6,'Utility Functions'!$AT$3:$AT$6)","v":1},{"$f":"valuePL(Y4,'Utility Functions'!$AU$3:$AU$6,'Utility Functions'!$AV$3:$AV$6)","v":1},{"$f":"valuePL(Z4,'Utility Functions'!$AW$3:$AW$5,'Utility Functions'!$AX$3:$AX$5)","v":1},{"$f":"valuePL(AA4,'Utility Functions'!$AY$3:$AY$6,'Utility Functions'!$AZ$3:$AZ$6)","v":0.2},{"$f":"valuePL(AB4,'Utility Functions'!$BA$3:$BA$5,'Utility Functions'!$BB$3:$BB$5)","v":1},{"$f":"valuePL(AC4,'Utility Functions'!$BC$3:$BC$5,'Utility Functions'!$BD$3:$BD$5)","v":1},11.563541444302563,null,11.563541444302565,2.7385414443025637,0,0.875,0.75,7.2]
[4,{"$f":"valueE(B5,'Utility Functions'!$B$3,'Utility Functions'!$B$4,'Utility Functions'!$B$5,'Utility Functions'!$B$6)","v":0.1812695215714665},{"$f":"valueE(C5,'Utility Functions'!$D$3,'Utility Functions'!$D$4,'Utility Functions'!$D$5,'Utility Functions'!$D$6)","v":0.46475967153745396},{"$f":"valuePL(D5,'Utility Functions'!$E$3:$E$5,'Utility Functions'!$F$3:$F$5)","v":1},{"$f":"valuePL(E5,'Utility Functions'!$G$3:$G$5,'Utility Functions'!$H$3:$H$5)","v":0},{"$f":"valuePL(F5,'Utility Functions'!$I$3:$I$4,'Utility Functions'!$J$3:$J$5)","v":0},{"$f":"valueE(G5,'Utility Functions'!$L$3,'Utility Functions'!$L$4,'Utility Functions'!$L$5,'Utility Functions'!$L$6)","v":0},{"$f":"valueE(H5,'Utility Functions'!$N$3,'Utility Functions'!$N$4,'Utility Functions'!$N$5,'Utility Functions'!$N$6)","v":0},{"$f":"valuePL(I5,'Utility Functions'!$O$3:$O$6,'Utility Functions'!$P$3:$P$6)","v":0},{"$f":"valuePL(J5,'Utility Functions'!$Q$3:$Q$6,'Utility Functions'!$R$3:$R$6)","v":0},{"$f":"valuePL(K5,'Utility Functions'!$S$3:$S$7,'Utility Functions'!$T$3:$T$7)","v":0},{"$f":"valueE(L5,'Utility Functions'!$V$3,'Utility Functions'!$V$4,'Utility Functions'!$V$5,'Utility Functions'!$V$6)","v":0},{"$f":"valuePL(M5,'Utility Functions'!$W$3:$W$6,'Utility Functions'!$X$3:$X$6)","v":0},{"$f":"valueE(N5,'Utility Functions'!$Z$3,'Utility Functions'!$Z$4,'Utility Functions'!$Z$5,'Utility Functions'!$Z$6)","v":0.5},{"$f":"valuePL(O5,'Utility Functions'!$AA$3:$AA$5,'Utility Functions'!$AB$3:$AB$5)","v":0.25},{"$f":"valuePL(P5,'Utility Functions'!$AC$3:$AC$7,'Utility Functions'!$AD$3:$AD$7)","v":0},{"$f":"valuePL(Q5,'Utility Functions'!$AE$3:$AE$6,'Utility Functions'!$AF$3:$AF$6)","v":0.1},{"$f":"valuePL(R5,'Utility Functions'!$AG$3:$AG$6,'Utility Functions'!$AH$3:$AH$6)","v":1},{"$f":"valuePL(S5,'Utility Functions'!$AI$3:$AI$6,'Utility Functions'!$AJ$3:$AJ$6)","v":1},{"$f":"valuePL(T5,'Utility Functions'!$AK$3:$AK$8,'Utility Functions'!$AL$3:$AL$8)","v":0.8},{"$f":"valuePL(U5,'Utility Functions'!$AM$3:$AM$5,'Utility Functions'!$AN$3:$AN$5)","v":0},{"$f":"valuePL(V5,'Utility Functions'!$AO$3:$AO$5,'Utility Functions'!$AP$3:$AP$5)","v":0.5},{"$f":"valuePL(W5,'Utility Functions'!$AQ$3:$AQ$6,'Utility Functions'!$AR$3:$AR$6)","v":1},{"$f":"valuePL(X5,'Utility Functions'!$AS$3:$AS$6,'Utility Functions'!$AT$3:$AT$6)","v":1},{"$f":"valuePL(Y5,'Utility Functions'!$AU$3:$AU$6,'Utility Functions'!$AV$3:$AV$6)","v":0.2},{"$f":"valuePL(Z5,'Utility Functions'!$AW$3:$AW$5,'Utility Functions'!$AX$3:$AX$5)","v":0},{"$f":"valuePL(AA5,'Utility Functions'!$AY$3:$AY$6,'Utility Functions'!$AZ$3:$AZ$6)","v":0},{"$f":"valuePL(AB5,'Utility Functions'!$BA$3:$BA$5,'Utility Functions'!$BB$3:$BB$5)","v":1},{"$f":"valuePL(AC5,'Utility Functions'!$BC$3:$BC$5,'Utility Functions'!$BD$3:$BD$5)","v":0.25},9.2460291931089209,null,9.2460291931089209,1.6460291931089204,0,0.75,2.9000000000000004,3.95]
[5,{"$f":"valueE(B6,'Utility Functions'!$B$3,'Utility Functions'!$B$4,'Utility Functions'!$B$5,'Utility Functions'!$B$6)","v":0.55067187023002029},{"$f":"valueE(C6,'Utility Functions'!$D$3,'Utility Functions'!$D$4,'Utility Functions'!$D$5,'Utility Functions'!$D$6)","v":0.26656514581460788},{"$f":"valuePL(D6,'Utility Functions'!$E$3:$E$5,'Utility Functions'!$F$3:$F$5)","v":1},{"$f":"valuePL(E6,'Utility Functions'!$G$3:$G$5,'Utility Functions'!$H$3:$H$5)","v":0},{"$f":"valuePL(F6,'Utility Functions'!$I$3:$I$4,'Utility Functions'!$J$3:$J$5)","v":0},{"$f":"valueE(G6,'Utility Functions'!$L$3,'Utility Functions'!$L$4,'Utility Functions'!$L$5,'Utility Functions'!$L$6)","v":0},{"$f":"valueE(H6,'Utility Functions'!$N$3,'Utility Functions'!$N$4,'Utility Functions'!$N$5,'Utility Functions'!$N$6)","v":0},{"$f":"valuePL(I6,'Utility Functions'!$O$3:$O$6,'Utility Functions'!$P$3:$P$6)","v":0.50909090909090915},{"$f":"valuePL(J6,'Utility Functions'!$Q$3:$Q$6,'Utility Functions'!$R$3:$R$6)","v":0.04},{"$f":"valuePL(K6,'Utility Functions'!$S$3:$S$7,'Utility Functions'!$T$3:$T$7)","v":0},{"$f":"valueE(L6,'Utility Functions'!$V$3,'Utility Functions'!$V$4,'Utility Functions'!$V$5,'Utility Functions'!$V$6)","v":0},{"$f":"valuePL(M6,'Utility Functions'!$W$3:$W$6,'Utility Functions'!$X$3:$X$6)","v":0},{"$f":"valueE(N6,'Utility Functions'!$Z$3,'Utility Functions'!$Z$4,'Utility Functions'!$Z$5,'Utility Functions'!$Z$6)","v":0},{"$f":"valuePL(O6,'Utility Functions'!$AA$3:$AA$5,'Utility Functions'!$AB$3:$AB$5)","v":0},{"$f":"valuePL(P6,'Utility Functions'!$AC$3:$AC$7,'Utility Functions'!$AD$3:$AD$7)","v":0},{"$f":"valuePL(Q6,'Utility Functions'!$AE$3:$AE$6,'Utility Functions'!$AF$3:$AF$6)","v":0.1},{"$f":"valuePL(R6,'Utility Functions'!$AG$3:$AG$6,'Utility Functions'!$AH$3:$AH$6)","v":1},{"$f":"valuePL(S6,'Utility Functions'!$AI$3:$AI$6,'Utility Functions'!$AJ$3:$AJ$6)","v":1},{"$f":"valuePL(T6,'Utility Functions'!$AK$3:$AK$8,'Utility Functions'!$AL$3:$AL$8)","v":0.8},{"$f":"valuePL(U6,'Utility Functions'!$AM$3:$AM$5,'Utility Functions'!$AN$3:$AN$5)","v":0.25},{"$f":"valuePL(V6,'Utility Functions'!$AO$3:$AO$5,'Utility Functions'!$AP$3:$AP$5)","v":0},{"$f":"valuePL(W6,'Utility Functions'!$AQ$3:$AQ$6,'Utility Functions'!$AR$3:$AR$6)","v":1},{"$f":"valuePL(X6,'Utility Functions'!$AS$3:$AS$6,'Utility Functions'!$AT$3:$AT$6)","v":1},{"$f":"valuePL(Y6,'Utility Functions'!$AU$3:$AU$6,'Utility Functions'!$AV$3:$AV$6)","v":0.8},{"$f":"valuePL(Z6,'Utility Functions'!$AW$3:$AW$5,'Utility Functions'!$AX$3:$AX$5)","v":0},{"$f":"valuePL(AA6,'Utility Functions'!$AY$3:$AY$6,'Utility Functions'!$AZ$3:$AZ$6)","v":0},{"$f":"valuePL(AB6,'Utility Functions'!$BA$3:$BA$5,'Utility Functions'!$BB$3:$BB$5)","v":1},{"$f":"valuePL(AC6,'Utility Functions'!$BC$3:$BC$5,'Utility Functions'!$BD$3:$BD$5)","v":0.25},9.5663279251355373,null,9.5663279251355391,1.8172370160446283,0.54909090909090918,0,3.1500000000000004,4.05]
[6,{"$f":"valueE(B7,'Utility Functions'!$B$3,'Utility Functions'!$B$4,'Utility Functions'!$B$5,'Utility Functions'!$B$6)","v":0.86466602685702687},{"$f":"valueE(C7,'Utility Functions'!$D$3,'Utility Functions'!$D$4,'Utility Functions'!$D$5,'Utility Functions'!$D$6)","v":6.1811002813601471E-3},{"$f":"valuePL(D7,'Utility Functions'!$E$3:$E$5,'Utility Functions'!$F$3:$F$5)","v":1},{"$f":"valuePL(E7,'Utility Functions'!$G$3:$G$5,'Utility Functions'!$H$3:$H$5)","v":0},{"$f":"valuePL(F7,'Utility Functions'!$I$3:$I$4,'Utility Functions'!$J$3:$J$5)","v":0},{"$f":"valueE(G7,'Utility Functions'!$L$3,'Utility Functions'!$L$4,'Utility Functions'!$L$5,'Utility Functions'!$L$6)","v":0},{"$f":"valueE(H7,'Utility Functions'!$N$3,'Utility Functions'!$N$4,'Utility Functions'!$N$5,'Utility Functions'!$N$6)","v":0},{"$f":"valuePL(I7,'Utility Functions'!$O$3:$O$6,'Utility Functions'!$P$3:$P$6)","v":0.04},{"$f":"valuePL(J7,'Utility Functions'!$Q$3:$Q$6,'Utility Functions'!$R$3:$R$6)","v":0.04},{"$f":"valuePL(K7,'Utility Functions'!$S$3:$S$7,'Utility Functions'!$T$3:$T$7)","v":0},{"$f":"valueE(L7,'Utility Functions'!$V$3,'Utility Functions'!$V$4,'Utility Functions'!$V$5,'Utility Functions'!$V$6)","v":0},{"$f":"valuePL(M7,'Utility Functions'!$W$3:$W$6,'Utility Functions'!$X$3:$X$6)","v":0},{"$f":"valueE(N7,'Utility Functions'!$Z$3,'Utility Functions'!$Z$4,'Utility Functions'!$Z$5,'Utility Functions'!$Z$6)","v":0},{"$f":"valuePL(O7,'Utility Functions'!$AA$3:$AA$5,'Utility Functions'!$AB$3:$AB$5)","v":0},{"$f":"valuePL(P7,'Utility Functions'!$AC$3:$AC$7,'Utility Functions'!$AD$3:$AD$7)","v":0},{"$f":"valuePL(Q7,'Utility Functions'!$AE$3:$AE$6,'Utility Functions'!$AF$3:$AF$6)","v":0.1},{"$f":"valuePL(R7,'Utility Functions'!$AG$3:$AG$6,'Utility Functions'!$AH$3:$AH$6)","v":0},{"$f":"valuePL(S7,'Utility Functions'!$AI$3:$AI$6,'Utility Functions'!$AJ$3:$AJ$6)","v":1},{"$f":"valuePL(T7,'Utility Functions'!$AK$3:$AK$8,'Utility Functions'!$AL$3:$AL$8)","v":0.6},{"$f":"valuePL(U7,'Utility Functions'!$AM$3:$AM$5,'Utility Functions'!$AN$3:$AN$5)","v":0},{"$f":"valuePL(V7,'Utility Functions'!$AO$3:$AO$5,'Utility Functions'!$AP$3:$AP$5)","v":0},{"$f":"valuePL(W7,'Utility Functions'!$AQ$3:$AQ$6,'Utility Functions'!$AR$3:$AR$6)","v":0},{"$f":"valuePL(X7,'Utility Functions'!$AS$3:$AS$6,'Utility Functions'!$AT$3:$AT$6)","v":1},{"$f":"valuePL(Y7,'Utility Functions'!$AU$3:$AU$6,'Utility Functions'!$AV$3:$AV$6)","v":0},{"$f":"valuePL(Z7,'Utility Functions'!$AW$3:$AW$5,'Utility Functions'!$AX$3:$AX$5)","v":0},{"$f":"valuePL(AA7,'Utility Functions'!$AY$3:$AY$6,'Utility Functions'!$AZ$3:$AZ$6)","v":0},{"$f":"valuePL(AB7,'Utility Functions'!$BA$3:$BA$5,'Utility Functions'!$BB$3:$BB$5)","v":1},{"$f":"valuePL(AC7,'Utility Functions'!$BC$3:$BC$5,'Utility Functions'!$BD$3:$BD$5)","v":0.25},5.9008471271383875,null,5.9008471271383875,1.8708471271383869,0.08,0,1.7000000000000002,2.25]
[7,{"$f":"valueE(B8,'Utility Functions'!$B$3,'Utility Functions'!$B$4,'Utility Functions'!$B$5,'Utility Functions'!$B$6)","v":0.99997108261728973},{"$f":"valueE(C8,'Utility Functions'!$D$3,'Utility Functions'!$D$4,'Utility Functions'!$D$5,'Utility Functions'!$D$6)","v":0.84744836833951609},{"$f":"valuePL(D8,'Utility Functions'!$E$3:$E$5,'Utility Functions'!$F$3:$F$5)","v":0},{"$f":"valuePL(E8,'Utility Functions'!$G$3:$G$5,'Utility Functions'!$H$3:$H$5)","v":1},{"$f":"valuePL(F8,'Utility Functions'!$I$3:$I$4,'Utility Functions'!$J$3:$J$5)","v":0},{"$f":"valueE(G8,'Utility Functions'!$L$3,'Utility Functions'!$L$4,'Utility Functions'!$L$5,'Utility Functions'!$L$6)","v":0},{"$f":"valueE(H8,'Utility Functions'!$N$3,'Utility Functions'!$N$4,'Utility Functions'!$N$5,'Utility Functions'!$N$6)","v":0},{"$f":"valuePL(I8,'Utility Functions'!$O$3:$O$6,'Utility Functions'!$P$3:$P$6)","v":1},{"$f":"valuePL(J8,'Utility Functions'!$Q$3:$Q$6,'Utility Functions'!$R$3:$R$6)","v":0.67272727272727273},{"$f":"valuePL(K8,'Utility Functions'!$S$3:$S$7,'Utility Functions'!$T$3:$T$7)","v":1},{"$f":"valueE(L8,'Utility Functions'!$V$3,'Utility Functions'!$V$4,'Utility Functions'!$V$5,'Utility Functions'!$V$6)","v":1},{"$f":"valuePL(M8,'Utility Functions'!$W$3:$W$6,'Utility Functions'!$X$3:$X$6)","v":0.67272727272727273},{"$f":"valueE(N8,'Utility Functions'!$Z$3,'Utility Functions'!$Z$4,'Utility Functions'!$Z$5,'Utility Functions'!$Z$6)","v":1},{"$f":"valuePL(O8,'Utility Functions'!$AA$3:$AA$5,'Utility Functions'!$AB$3:$AB$5)","v":0.25},{"$f":"valuePL(P8,'Utility Functions'!$AC$3:$AC$7,'Utility Functions'!$AD$3:$AD$7)","v":0},{"$f":"valuePL(Q8,'Utility Functions'!$AE$3:$AE$6,'Utility Functions'!$AF$3:$AF$6)","v":0},{"$f":"valuePL(R8,'Utility Functions'!$AG$3:$AG$6,'Utility Functions'!$AH$3:$AH$6)","v":1},{"$f":"valuePL(S8,'Utility Functions'!$AI$3:$AI$6,'Utility Functions'!$AJ$3:$AJ$6)","v":1},{"$f":"valuePL(T8,'Utility Functions'!$AK$3:$AK$8,'Utility Functions'!$AL$3:$AL$8)","v":0},{"$f":"valuePL(U8,'Utility Functions'!$AM$3:$AM$5,'Utility Functions'!$AN$3:$AN$5)","v":0},{"$f":"valuePL(V8,'Utility Functions'!$AO$3:$AO$5,'Utility Functions'!$AP$3:$AP$5)","v":1},{"$f":"valuePL(W8,'Utility Functions'!$AQ$3:$AQ$6,'Utility Functions'!$AR$3:$AR$6)","v":0},{"$f":"valuePL(X8,'Utility Functions'!$AS$3:$AS$6,'Utility Functions'!$AT$3:$AT$6)","v":0.2},{"$f":"valuePL(Y8,'Utility Functions'!$AU$3:$AU$6,'Utility Functions'!$AV$3:$AV$6)","v":1},{"$f":"valuePL(Z8,'Utility Functions'!$AW$3:$AW$5,'Utility Functions'!$AX$3:$AX$5)","v":1},{"$f":"valuePL(AA8,'Utility Functions'!$AY$3:$AY$6,'Utility Functions'!$AZ$3:$AZ$6)","v":0.89999999999999991},{"$f":"valuePL(AB8,'Utility Functions'!$BA$3:$BA$5,'Utility Functions'!$BB$3:$BB$5)","v":0},{"$f":"valuePL(AC8,'Utility Functions'!$BC$3:$BC$5,'Utility Functions'!$BD$3:$BD$5)","v":1},15.54287399641135,null,15.54287399641135,2.8474194509568056,4.3454545454545457,1.25,2,5.0999999999999996]
[8,{"$f":"valueE(B9,'Utility Functions'!$B$3,'Utility Functions'!$B$4,'Utility Functions'!$B$5,'Utility Functions'!$B$6)","v":0.4511890475224023},{"$f":"valueE(C9,'Utility Functions'!$D$3,'Utility Functions'!$D$4,'Utility Functions'!$D$5,'Utility Functions'!$D$6)","v":0.84744836833951609},{"$f":"valuePL(D9,'Utility Functions'!$E$3:$E$5,'Utility Functions'!$F$3:$F$5)","v":1},{"$f":"valuePL(E9,'Utility Functions'!$G$3:$G$5,'Utility Functions'!$H$3:$H$5)","v":0.5},{"$f":"valuePL(F9,'Utility Functions'!$I$3:$I$4,'Utility Functions'!$J$3:$J$5)","v":1},{"$f":"valueE(G9,'Utility Functions'!$L$3,'Utility Functions'!$L$4,'Utility Functions'!$L$5,'Utility Functions'!$L$6)","v":0},{"$f":"valueE(H9,'Utility Functions'!$N$3,'Utility Functions'!$N$4,'Utility Functions'!$N$5,'Utility Functions'!$N$6)","v":0},{"$f":"valuePL(I9,'Utility Functions'!$O$3:$O$6,'Utility Functions'!$P$3:$P$6)","v":5.6000000000000008E-2},{"$f":"valuePL(J9,'Utility Functions'!$Q$3:$Q$6,'Utility Functions'!$R$3:$R$6)","v":0.83636363636363631},{"$f":"valuePL(K9,'Utility Functions'!$S$3:$S$7,'Utility Functions'!$T$3:$T$7)","v":0},{"$f":"valueE(L9,'Utility Functions'!$V$3,'Utility Functions'!$V$4,'Utility Functions'!$V$5,'Utility Functions'!$V$6)","v":1},{"$f":"valuePL(M9,'Utility Functions'!$W$3:$W$6,'Utility Functions'!$X$3:$X$6)","v":0.83636363636363631},{"$f":"valueE(N9,'Utility Functions'!$Z$3,'Utility Functions'!$Z$4,'Utility Functions'!$Z$5,'Utility Functions'!$Z$6)","v":0},{"$f":"valuePL(O9,'Utility Functions'!$AA$3:$AA$5,'Utility Functions'!$AB$3:$AB$5)","v":0},{"$f":"valuePL(P9,'Utility Functions'!$AC$3:$AC$7,'Utility Functions'!$AD$3:$AD$7)","v":0},{"$f":"valuePL(Q9,'Utility Functions'!$AE$3:$AE$6,'Utility Functions'!$AF$3:$AF$6)","v":1},{"$f":"valuePL(R9,'Utility Functions'!$AG$3:$AG$6,'Utility Functions'!$AH$3:$AH$6)","v":0.2},{"$f":"valuePL(S9,'Utility Functions'!$AI$3:$AI$6,'Utility Functions'!$AJ$3:$AJ$6)","v":1},{"$f":"valuePL(T9,'Utility Functions'!$AK$3:$AK$8,'Utility Functions'!$AL$3:$AL$8)","v":0},{"$f":"valuePL(U9,'Utility Functions'!$AM$3:$AM$5,'Utility Functions'!$AN$3:$AN$5)","v":0},{"$f":"valuePL(V9,'Utility Functions'!$AO$3:$AO$5,'Utility Functions'!$AP$3:$AP$5)","v":1},{"$f":"valuePL(W9,'Utility Functions'!$AQ$3:$AQ$6,'Utility Functions'!$AR$3:$AR$6)","v":1},{"$f":"valuePL(X9,'Utility Functions'!$AS$3:$AS$6,'Utility Functions'!$AT$3:$AT$6)","v":1},{"$f":"valuePL(Y9,'Utility Functions'!$AU$3:$AU$6,'Utility Functions'!$AV$3:$AV$6)","v":1},{"$f":"valuePL(Z9,'Utility Functions'!$AW$3:$AW$5,'Utility Functions'!$AX$3:$AX$5)","v":1},{"$f":"valuePL(AA9,'Utility Functions'!$AY$3:$AY$6,'Utility Functions'!$AZ$3:$AZ$6)","v":0},{"$f":"valuePL(AB9,'Utility Functions'!$BA$3:$BA$5,'Utility Functions'!$BB$3:$BB$5)","v":0.25},{"$f":"valuePL(AC9,'Utility Functions'!$BC$3:$BC$5,'Utility Functions'!$BD$3:$BD$5)","v":0.25},14.227364688589191,null,14.227364688589191,3.7986374158619185,2.7287272727272729,0,2.2000000000000002,5.5]
[9,{"$f":"valueE(B10,'Utility Functions'!$B$3,'Utility Functions'!$B$4,'Utility Functions'!$B$5,'Utility Functions'!$B$6)","v":0.83470237647280454},{"$f":"valueE(C10,'Utility Functions'!$D$3,'Utility Functions'!$D$4,'Utility Functions'!$D$5,'Utility Functions'!$D$6)","v":0.78989979019422951},{"$f":"valuePL(D10,'Utility Functions'!$E$3:$E$5,'Utility Functions'!$F$3:$F$5)","v":1},{"$f":"valuePL(E10,'Utility Functions'!$G$3:$G$5,'Utility Functions'!$H$3:$H$5)","v":0.5},{"$f":"valuePL(F10,'Utility Functions'!$I$3:$I$4,'Utility Functions'!$J$3:$J$5)","v":0},{"$f":"valueE(G10,'Utility Functions'!$L$3,'Utility Functions'!$L$4,'Utility Functions'!$L$5,'Utility Functions'!$L$6)","v":0.37634408602150538},{"$f":"valueE(H10,'Utility Functions'!$N$3,'Utility Functions'!$N$4,'Utility Functions'!$N$5,'Utility Functions'!$N$6)","v":0.13282732447817835},{"$f":"valuePL(I10,'Utility Functions'!$O$3:$O$6,'Utility Functions'!$P$3:$P$6)","v":0},{"$f":"valuePL(J10,'Utility Functions'!$Q$3:$Q$6,'Utility Functions'!$R$3:$R$6)","v":0},{"$f":"valuePL(K10,'Utility Functions'!$S$3:$S$7,'Utility Functions'!$T$3:$T$7)","v":0},{"$f":"valueE(L10,'Utility Functions'!$V$3,'Utility Functions'!$V$4,'Utility Functions'!$V$5,'Utility Functions'!$V$6)","v":0},{"$f":"valuePL(M10,'Utility Functions'!$W$3:$W$6,'Utility Functions'!$X$3:$X$6)","v":0},{"$f":"valueE(N10,'Utility Functions'!$Z$3,'Utility Functions'!$Z$4,'Utility Functions'!$Z$5,'Utility Functions'!$Z$6)","v":0},{"$f":"valuePL(O10,'Utility Functions'!$AA$3:$AA$5,'Utility Functions'!$AB$3:$AB$5)","v":0},{"$f":"valuePL(P10,'Utility Functions'!$AC$3:$AC$7,'Utility Functions'!$AD$3:$AD$7)","v":0.75},{"$f":"valuePL(Q10,'Utility Functions'!$AE$3:$AE$6,'Utility Functions'!$AF$3:$AF$6)","v":0},{"$f":"valuePL(R10,'Utility Functions'!$AG$3:$AG$6,'Utility Functions'!$AH$3:$AH$6)","v":1},{"$f":"valuePL(S10,'Utility Functions'!$AI$3:$AI$6,'Utility Functions'!$AJ$3:$AJ$6)","v":0.66},{"$f":"valuePL(T10,'Utility Functions'!$AK$3:$AK$8,'Utility Functions'!$AL$3:$AL$8)","v":0.2},{"$f":"valuePL(U10,'Utility Functions'!$AM$3:$AM$5,'Utility Functions'!$AN$3:$AN$5)","v":0},{"$f":"valuePL(V10,'Utility Functions'!$AO$3:$AO$5,'Utility Functions'!$AP$3:$AP$5)","v":1},{"$f":"valuePL(W10,'Utility Functions'!$AQ$3:$AQ$6,'Utility Functions'!$AR$3:$AR$6)","v":1},{"$f":"valuePL(X10,'Utility Functions'!$AS$3:$AS$6,'Utility Functions'!$AT$3:$AT$6)","v":1},{"$f":"valuePL(Y10,'Utility Functions'!$AU$3:$AU$6,'Utility Functions'!$AV$3:$AV$6)","v":0.2},{"$f":"valuePL(Z10,'Utility Functions'!$AW$3:$AW$5,'Utility Functions'!$AX$3:$AX$5)","v":1},{"$f":"valuePL(AA10,'Utility Functions'!$AY$3:$AY$6,'Utility Functions'!$AZ$3:$AZ$6)","v":0.2},{"$f":"valuePL(AB10,'Utility Functions'!$BA$3:$BA$5,'Utility Functions'!$BB$3:$BB$5)","v":0.25},{"$f":"valuePL(AC10,'Utility Functions'!$BC$3:$BC$5,'Utility Functions'!$BD$3:$BD$5)","v":1},11.893773577166716,null,11.893773577166719,3.1246021666670343,0.50917141049968373,0,2.6100000000000003,5.65]
[10,{"$f":"valueE(B11,'Utility Functions'!$B$3,'Utility Functions'!$B$4,'Utility Functions'!$B$5,'Utility Functions'!$B$6)","v":0},{"$f":"valueE(C11,'Utility Functions'!$D$3,'Utility Functions'!$D$4,'Utility Functions'!$D$5,'Utility Functions'!$D$6)","v":0},{"$f":"valuePL(D11,'Utility Functions'!$E$3:$E$5,'Utility Functions'!$F$3:$F$5)","v":0},{"$f":"valuePL(E11,'Utility Functions'!$G$3:$G$5,'Utility Functions'!$H$3:$H$5)","v":0},{"$f":"valuePL(F11,'Utility Functions'!$I$3:$I$4,'Utility Functions'!$J$3:$J$5)","v":0},{"$f":"valueE(G11,'Utility Functions'!$L$3,'Utility Functions'!$L$4,'Utility Functions'!$L$5,'Utility Functions'!$L$6)","v":0},{"$f":"valueE(H11,'Utility Functions'!$N$3,'Utility Functions'!$N$4,'Utility Functions'!$N$5,'Utility Functions'!$N$6)","v":0},{"$f":"valuePL(I11,'Utility Functions'!$O$3:$O$6,'Utility Functions'!$P$3:$P$6)","v":0},{"$f":"valuePL(J11,'Utility Functions'!$Q$3:$Q$6,'Utility Functions'!$R$3:$R$6)","v":0},{"$f":"valuePL(K11,'Utility Functions'!$S$3:$S$7,'Utility Functions'!$T$3:$T$7)","v":0},{"$f":"valueE(L11,'Utility Functions'!$V$3,'Utility Functions'!$V$4,'Utility Functions'!$V$5,'Utility Functions'!$V$6)","v":0},{"$f":"valuePL(M11,'Utility Functions'!$W$3:$W$6,'Utility Functions'!$X$3:$X$6)","v":0},{"$f":"valueE(N11,'Utility Functions'!$Z$3,'Utility Functions'!$Z$4,'Utility Functions'!$Z$5,'Utility Functions'!$Z$6)","v":0.75},{"$f":"valuePL(O11,'Utility Functions'!$AA$3:$AA$5,'Utility Functions'!$AB$3:$AB$5)","v":1},{"$f":"valuePL(P11,'Utility Functions'!$AC$3:$AC$7,'Utility Functions'!$AD$3:$AD$7)","v":0.25},{"$f":"valuePL(Q11,'Utility Functions'!$AE$3:$AE$6,'Utility Functions'!$AF$3:$AF$6)","v":0.5},{"$f":"valuePL(R11,'Utility Functions'!$AG$3:$AG$6,'Utility Functions'!$AH$3:$AH$6)","v":1},{"$f":"valuePL(S11,'Utility Functions'!$AI$3:$AI$6,'Utility Functions'!$AJ$3:$AJ$6)","v":0.66},{"$f":"valuePL(T11,'Utility Functions'!$AK$3:$AK$8,'Utility Functions'!$AL$3:$AL$8)","v":0.4},{"$f":"valuePL(U11,'Utility Functions'!$AM$3:$AM$5,'Utility Functions'!$AN$3:$AN$5)","v":0},{"$f":"valuePL(V11,'Utility Functions'!$AO$3:$AO$5,'Utility Functions'!$AP$3:$AP$5)","v":0},{"$f":"valuePL(W11,'Utility Functions'!$AQ$3:$AQ$6,'Utility Functions'!$AR$3:$AR$6)","v":0.75},{"$f":"valuePL(X11,'Utility Functions'!$AS$3:$AS$6,'Utility Functions'!$AT$3:$AT$6)","v":1},{"$f":"valuePL(Y11,'Utility Functions'!$AU$3:$AU$6,'Utility Functions'!$AV$3:$AV$6)","v":1},{"$f":"valuePL(Z11,'Utility Functions'!$AW$3:$AW$5,'Utility Functions'!$AX$3:$AX$5)","v":0.5},{"$f":"valuePL(AA11,'Utility Functions'!$AY$3:$AY$6,'Utility Functions'!$AZ$3:$AZ$6)","v":0.2},{"$f":"valuePL(AB11,'Utility Functions'!$BA$3:$BA$5,'Utility Functions'!$BB$3:$BB$5)","v":0},{"$f":"valuePL(AC11,'Utility Functions'!$BC$3:$BC$5,'Utility Functions'!$BD$3:$BD$5)","v":1},9.01,null,9.0100000000000016,0,0,1.75,2.81,4.45]
[11,{"$f":"valueE(B12,'Utility Functions'!$B$3,'Utility Functions'!$B$4,'Utility Functions'!$B$5,'Utility Functions'!$B$6)","v":0},{"$f":"valueE(C12,'Utility Functions'!$D$3,'Utility Functions'!$D$4,'Utility Functions'!$D$5,'Utility Functions'!$D$6)","v":0},{"$f":"valuePL(D12,'Utility Functions'!$E$3:$E$5,'Utility Functions'!$F$3:$F$5)","v":0},{"$f":"valuePL(E12,'Utility Functions'!$G$3:$G$5,'Utility Functions'!$H$3:$H$5)","v":0},{"$f":"valuePL(F12,'Utility Functions'!$I$3:$I$4,'Utility Functions'!$J$3:$J$5)","v":0},{"$f":"valueE(G12,'Utility Functions'!$L$3,'Utility Functions'!$L$4,'Utility Functions'!$L$5,'Utility Functions'!$L$6)","v":3.2258064516129031E-2},{"$f":"valueE(H12,'Utility Functions'!$N$3,'Utility Functions'!$N$4,'Utility Functions'!$N$5,'Utility Functions'!$N$6)","v":9.6774193548387094E-2},{"$f":"valuePL(I12,'Utility Functions'!$O$3:$O$6,'Utility Functions'!$P$3:$P$6)","v":0.54181818181818187},{"$f":"valuePL(J12,'Utility Functions'!$Q$3:$Q$6,'Utility Functions'!$R$3:$R$6)","v":0.91818181818181821},{"$f":"valuePL(K12,'Utility Functions'!$S$3:$S$7,'Utility Functions'!$T$3:$T$7)","v":0.54181818181818187},{"$f":"valueE(L12,'Utility Functions'!$V$3,'Utility Functions'!$V$4,'Utility Functions'!$V$5,'Utility Functions'!$V$6)","v":1},{"$f":"valuePL(M12,'Utility Functions'!$W$3:$W$6,'Utility Functions'!$X$3:$X$6)","v":0.91818181818181821},{"$f":"valueE(N12,'Utility Functions'!$Z$3,'Utility Functions'!$Z$4,'Utility Functions'!$Z$5,'Utility Functions'!$Z$6)","v":0.375},{"$f":"valuePL(O12,'Utility Functions'!$AA$3:$AA$5,'Utility Functions'!$AB$3:$AB$5)","v":0.25},{"$f":"valuePL(P12,'Utility Functions'!$AC$3:$AC$7,'Utility Functions'!$AD$3:$AD$7)","v":0.25},{"$f":"valuePL(Q12,'Utility Functions'!$AE$3:$AE$6,'Utility Functions'!$AF$3:$AF$6)","v":0},{"$f":"valuePL(R12,'Utility Functions'!$AG$3:$AG$6,'Utility Functions'!$AH$3:$AH$6)","v":1},{"$f":"valuePL(S12,'Utility Functions'!$AI$3:$AI$6,'Utility Functions'!$AJ$3:$AJ$6)","v":1},{"$f":"valuePL(T12,'Utility Functions'!$AK$3:$AK$8,'Utility Functions'!$AL$3:$AL$8)","v":0.4},{"$f":"valuePL(U12,'Utility Functions'!$AM$3:$AM$5,'Utility Functions'!$AN$3:$AN$5)","v":1},{"$f":"valuePL(V12,'Utility Functions'!$AO$3:$AO$5,'Utility Functions'!$AP$3:$AP$5)","v":1},{"$f":"valuePL(W12,'Utility Functions'!$AQ$3:$AQ$6,'Utility Functions'!$AR$3:$AR$6)","v":0.2},{"$f":"valuePL(X12,'Utility Functions'!$AS$3:$AS$6,'Utility Functions'!$AT$3:$AT$6)","v":1},{"$f":"valuePL(Y12,'Utility Functions'!$AU$3:$AU$6,'Utility Functions'!$AV$3:$AV$6)","v":1},{"$f":"valuePL(Z12,'Utility Functions'!$AW$3:$AW$5,'Utility Functions'!$AX$3:$AX$5)","v":0.5},{"$f":"valuePL(AA12,'Utility Functions'!$AY$3:$AY$6,'Utility Functions'!$AZ$3:$AZ$6)","v":0.89999999999999991},{"$f":"valuePL(AB12,'Utility Functions'!$BA$3:$BA$5,'Utility Functions'!$BB$3:$BB$5)","v":0},{"$f":"valuePL(AC12,'Utility Functions'!$BC$3:$BC$5,'Utility Functions'!$BD$3:$BD$5)","v":0.25},13.174032258064516,null,13.174032258064516,0,4.0490322580645159,0.625,3.65,4.8499999999999996]
[12,{"$f":"valueE(B13,'Utility Functions'!$B$3,'Utility Functions'!$B$4,'Utility Functions'!$B$5,'Utility Functions'!$B$6)","v":0.32968045347775865},{"$f":"valueE(C13,'Utility Functions'!$D$3,'Utility Functions'!$D$4,'Utility Functions'!$D$5,'Utility Functions'!$D$6)","v":0.78989979019422951},{"$f":"valuePL(D13,'Utility Functions'!$E$3:$E$5,'Utility Functions'!$F$3:$F$5)","v":1},{"$f":"valuePL(E13,'Utility Functions'!$G$3:$G$5,'Utility Functions'!$H$3:$H$5)","v":0.5},{"$f":"valuePL(F13,'Utility Functions'!$I$3:$I$4,'Utility Functions'!$J$3:$J$5)","v":0},{"$f":"valueE(G13,'Utility Functions'!$L$3,'Utility Functions'!$L$4,'Utility Functions'!$L$5,'Utility Functions'!$L$6)","v":0},{"$f":"valueE(H13,'Utility Functions'!$N$3,'Utility Functions'!$N$4,'Utility Functions'!$N$5,'Utility Functions'!$N$6)","v":0},{"$f":"valuePL(I13,'Utility Functions'!$O$3:$O$6,'Utility Functions'!$P$3:$P$6)","v":0},{"$f":"valuePL(J13,'Utility Functions'!$Q$3:$Q$6,'Utility Functions'!$R$3:$R$6)","v":0},{"$f":"valuePL(K13,'Utility Functions'!$S$3:$S$7,'Utility Functions'!$T$3:$T$7)","v":0},{"$f":"valueE(L13,'Utility Functions'!$V$3,'Utility Functions'!$V$4,'Utility Functions'!$V$5,'Utility Functions'!$V$6)","v":0},{"$f":"valuePL(M13,'Utility Functions'!$W$3:$W$6,'Utility Functions'!$X$3:$X$6)","v":0},{"$f":"valueE(N13,'Utility Functions'!$Z$3,'Utility Functions'!$Z$4,'Utility Functions'!$Z$5,'Utility Functions'!$Z$6)","v":0},{"$f":"valuePL(O13,'Utility Functions'!$AA$3:$AA$5,'Utility Functions'!$AB$3:$AB$5)","v":0},{"$f":"valuePL(P13,'Utility Functions'!$AC$3:$AC$7,'Utility Functions'!$AD$3:$AD$7)","v":0},{"$f":"valuePL(Q13,'Utility Functions'!$AE$3:$AE$6,'Utility Functions'!$AF$3:$AF$6)","v":0.1},{"$f":"valuePL(R13,'Utility Functions'!$AG$3:$AG$6,'Utility Functions'!$AH$3:$AH$6)","v":1},{"$f":"valuePL(S13,'Utility Functions'!$AI$3:$AI$6,'Utility Functions'!$AJ$3:$AJ$6)","v":1},{"$f":"valuePL(T13,'Utility Functions'!$AK$3:$AK$8,'Utility Functions'!$AL$3:$AL$8)","v":0.6},{"$f":"valuePL(U13,'Utility Functions'!$AM$3:$AM$5,'Utility Functions'!$AN$3:$AN$5)","v":0},{"$f":"valuePL(V13,'Utility Functions'!$AO$3:$AO$5,'Utility Functions'!$AP$3:$AP$5)","v":0.5},{"$f":"valuePL(W13,'Utility Functions'!$AQ$3:$AQ$6,'Utility Functions'!$AR$3:$AR$6)","v":0.2},{"$f":"valuePL(X13,'Utility Functions'!$AS$3:$AS$6,'Utility Functions'!$AT$3:$AT$6)","v":1},{"$f":"valuePL(Y13,'Utility Functions'!$AU$3:$AU$6,'Utility Functions'!$AV$3:$AV$6)","v":0.2},{"$f":"valuePL(Z13,'Utility Functions'!$AW$3:$AW$5,'Utility Functions'!$AX$3:$AX$5)","v":1},{"$f":"valuePL(AA13,'Utility Functions'!$AY$3:$AY$6,'Utility Functions'!$AZ$3:$AZ$6)","v":0.2},{"$f":"valuePL(AB13,'Utility Functions'!$BA$3:$BA$5,'Utility Functions'!$BB$3:$BB$5)","v":1},{"$f":"valuePL(AC13,'Utility Functions'!$BC$3:$BC$5,'Utility Functions'!$BD$3:$BD$5)","v":0},9.4195802436719873,null,9.4195802436719873,2.6195802436719884,0,0,2.7,4.0999999999999996]
[13,{"$f":"valueE(B14,'Utility Functions'!$B$3,'Utility Functions'!$B$4,'Utility Functions'!$B$5,'Utility Functions'!$B$6)","v":0},{"$f":"valueE(C14,'Utility Functions'!$D$3,'Utility Functions'!$D$4,'Utility Functions'!$D$5,'Utility Functions'!$D$6)","v":0},{"$f":"valuePL(D14,'Utility Functions'!$E$3:$E$5,'Utility Functions'!$F$3:$F$5)","v":0},{"$f":"valuePL(E14,'Utility Functions'!$G$3:$G$5,'Utility Functions'!$H$3:$H$5)","v":0},{"$f":"valuePL(F14,'Utility Functions'!$I$3:$I$4,'Utility Functions'!$J$3:$J$5)","v":0},{"$f":"valueE(G14,'Utility Functions'!$L$3,'Utility Functions'!$L$4,'Utility Functions'!$L$5,'Utility Functions'!$L$6)","v":0},{"$f":"valueE(H14,'Utility Functions'!$N$3,'Utility Functions'!$N$4,'Utility Functions'!$N$5,'Utility Functions'!$N$6)","v":1.1385199240986717E-2},{"$f":"valuePL(I14,'Utility Functions'!$O$3:$O$6,'Utility Functions'!$P$3:$P$6)","v":0.3290909090909091},{"$f":"valuePL(J14,'Utility Functions'!$Q$3:$Q$6,'Utility Functions'!$R$3:$R$6)","v":0.04},{"$f":"valuePL(K14,'Utility Functions'!$S$3:$S$7,'Utility Functions'!$T$3:$T$7)","v":0.3290909090909091},{"$f":"valueE(L14,'Utility Functions'!$V$3,'Utility Functions'!$V$4,'Utility Functions'!$V$5,'Utility Functions'!$V$6)","v":1},{"$f":"valuePL(M14,'Utility Functions'!$W$3:$W$6,'Utility Functions'!$X$3:$X$6)","v":0.04},{"$f":"valueE(N14,'Utility Functions'!$Z$3,'Utility Functions'!$Z$4,'Utility Functions'!$Z$5,'Utility Functions'!$Z$6)","v":0.875},{"$f":"valuePL(O14,'Utility Functions'!$AA$3:$AA$5,'Utility Functions'!$AB$3:$AB$5)","v":0.25},{"$f":"valuePL(P14,'Utility Functions'!$AC$3:$AC$7,'Utility Functions'!$AD$3:$AD$7)","v":0.25},{"$f":"valuePL(Q14,'Utility Functions'!$AE$3:$AE$6,'Utility Functions'!$AF$3:$AF$6)","v":0},{"$f":"valuePL(R14,'Utility Functions'!$AG$3:$AG$6,'Utility Functions'!$AH$3:$AH$6)","v":1},{"$f":"valuePL(S14,'Utility Functions'!$AI$3:$AI$6,'Utility Functions'!$AJ$3:$AJ$6)","v":1},{"$f":"valuePL(T14,'Utility Functions'!$AK$3:$AK$8,'Utility Functions'!$AL$3:$AL$8)","v":0},{"$f":"valuePL(U14,'Utility Functions'!$AM$3:$AM$5,'Utility Functions'!$AN$3:$AN$5)","v":0},{"$f":"valuePL(V14,'Utility Functions'!$AO$3:$AO$5,'Utility Functions'!$AP$3:$AP$5)","v":0.5},{"$f":"valuePL(W14,'Utility Functions'!$AQ$3:$AQ$6,'Utility Functions'!$AR$3:$AR$6)","v":0},{"$f":"valuePL(X14,'Utility Functions'!$AS$3:$AS$6,'Utility Functions'!$AT$3:$AT$6)","v":0.2},{"$f":"valuePL(Y14,'Utility Functions'!$AU$3:$AU$6,'Utility Functions'!$AV$3:$AV$6)","v":0},{"$f":"valuePL(Z14,'Utility Functions'!$AW$3:$AW$5,'Utility Functions'!$AX$3:$AX$5)","v":1},{"$f":"valuePL(AA14,'Utility Functions'!$AY$3:$AY$6,'Utility Functions'!$AZ$3:$AZ$6)","v":0.2},{"$f":"valuePL(AB14,'Utility Functions'!$BA$3:$BA$5,'Utility Functions'!$BB$3:$BB$5)","v":0.25},{"$f":"valuePL(AC14,'Utility Functions'!$BC$3:$BC$5,'Utility Functions'!$BD$3:$BD$5)","v":0.25},7.5245670174228056,null,7.5245670174228056,0,1.7495670174228048,1.125,2.25,2.4]
[14,{"$f":"valueE(B15,'Utility Functions'!$B$3,'Utility Functions'!$B$4,'Utility Functions'!$B$5,'Utility Functions'!$B$6)","v":0.69880684688087746},{"$f":"valueE(C15,'Utility Functions'!$D$3,'Utility Functions'!$D$4,'Utility Functions'!$D$5,'Utility Functions'!$D$6)","v":0.78989979019422951},{"$f":"valuePL(D15,'Utility Functions'!$E$3:$E$5,'Utility Functions'!$F$3:$F$5)","v":0.5},{"$f":"valuePL(E15,'Utility Functions'!$G$3:$G$5,'Utility Functions'!$H$3:$H$5)","v":0.5},{"$f":"valuePL(F15,'Utility Functions'!$I$3:$I$4,'Utility Functions'!$J$3:$J$5)","v":0},{"$f":"valueE(G15,'Utility Functions'!$L$3,'Utility Functions'!$L$4,'Utility Functions'!$L$5,'Utility Functions'!$L$6)","v":0},{"$f":"valueE(H15,'Utility Functions'!$N$3,'Utility Functions'!$N$4,'Utility Functions'!$N$5,'Utility Functions'!$N$6)","v":0},{"$f":"valuePL(I15,'Utility Functions'!$O$3:$O$6,'Utility Functions'!$P$3:$P$6)","v":0},{"$f":"valuePL(J15,'Utility Functions'!$Q$3:$Q$6,'Utility Functions'!$R$3:$R$6)","v":0},{"$f":"valuePL(K15,'Utility Functions'!$S$3:$S$7,'Utility Functions'!$T$3:$T$7)","v":0},{"$f":"valueE(L15,'Utility Functions'!$V$3,'Utility Functions'!$V$4,'Utility Functions'!$V$5,'Utility Functions'!$V$6)","v":0},{"$f":"valuePL(M15,'Utility Functions'!$W$3:$W$6,'Utility Functions'!$X$3:$X$6)","v":0},{"$f":"valueE(N15,'Utility Functions'!$Z$3,'Utility Functions'!$Z$4,'Utility Functions'!$Z$5,'Utility Functions'!$Z$6)","v":0.75},{"$f":"valuePL(O15,'Utility Functions'!$AA$3:$AA$5,'Utility Functions'!$AB$3:$AB$5)","v":0.25},{"$f":"valuePL(P15,'Utility Functions'!$AC$3:$AC$7,'Utility Functions'!$AD$3:$AD$7)","v":0.25},{"$f":"valuePL(Q15,'Utility Functions'!$AE$3:$AE$6,'Utility Functions'!$AF$3:$AF$6)","v":0},{"$f":"valuePL(R15,'Utility Functions'!$AG$3:$AG$6,'Utility Functions'!$AH$3:$AH$6)","v":1},{"$f":"valuePL(S15,'Utility Functions'!$AI$3:$AI$6,'Utility Functions'!$AJ$3:$AJ$6)","v":1},{"$f":"valuePL(T15,'Utility Functions'!$AK$3:$AK$8,'Utility Functions'!$AL$3:$AL$8)","v":0},{"$f":"valuePL(U15,'Utility Functions'!$AM$3:$AM$5,'Utility Functions'!$AN$3:$AN$5)","v":0},{"$f":"valuePL(V15,'Utility Functions'!$AO$3:$AO$5,'Utility Functions'!$AP$3:$AP$5)","v":0.5},{"$f":"valuePL(W15,'Utility Functions'!$AQ$3:$AQ$6,'Utility Functions'!$AR$3:$AR$6)","v":0.2},{"$f":"valuePL(X15,'Utility Functions'!$AS$3:$AS$6,'Utility Functions'!$AT$3:$AT$6)","v":1},{"$f":"valuePL(Y15,'Utility Functions'!$AU$3:$AU$6,'Utility Functions'!$AV$3:$AV$6)","v":1},{"$f":"valuePL(Z15,'Utility Functions'!$AW$3:$AW$5,'Utility Functions'!$AX$3:$AX$5)","v":0.5},{"$f":"valuePL(AA15,'Utility Functions'!$AY$3:$AY$6,'Utility Functions'!$AZ$3:$AZ$6)","v":0.89999999999999991},{"$f":"valuePL(AB15,'Utility Functions'!$BA$3:$BA$5,'Utility Functions'!$BB$3:$BB$5)","v":0.25},{"$f":"valuePL(AC15,'Utility Functions'!$BC$3:$BC$5,'Utility Functions'!$BD$3:$BD$5)","v":0.25},10.338706637075108,null,10.338706637075106,2.488706637075107,0,1,2.25,4.5999999999999996]
[15,{"$f":"valueE(B16,'Utility Functions'!$B$3,'Utility Functions'!$B$4,'Utility Functions'!$B$5,'Utility Functions'!$B$6)","v":0.98994966417177144},{"$f":"valueE(C16,'Utility Functions'!$D$3,'Utility Functions'!$D$4,'Utility Functions'!$D$5,'Utility Functions'!$D$6)","v":0.71352759724260828},{"$f":"valuePL(D16,'Utility Functions'!$E$3:$E$5,'Utility Functions'!$F$3:$F$5)","v":1},{"$f":"valuePL(E16,'Utility Functions'!$G$3:$G$5,'Utility Functions'!$H$3:$H$5)","v":0.5},{"$f":"valuePL(F16,'Utility Functions'!$I$3:$I$4,'Utility Functions'!$J$3:$J$5)","v":1},{"$f":"valueE(G16,'Utility Functions'!$L$3,'Utility Functions'!$L$4,'Utility Functions'!$L$5,'Utility Functions'!$L$6)","v":0},{"$f":"valueE(H16,'Utility Functions'!$N$3,'Utility Functions'!$N$4,'Utility Functions'!$N$5,'Utility Functions'!$N$6)","v":0},{"$f":"valuePL(I16,'Utility Functions'!$O$3:$O$6,'Utility Functions'!$P$3:$P$6)","v":9.2000000000000012E-2},{"$f":"valuePL(J16,'Utility Functions'!$Q$3:$Q$6,'Utility Functions'!$R$3:$R$6)","v":6.0000000000000012E-2},{"$f":"valuePL(K16,'Utility Functions'!$S$3:$S$7,'Utility Functions'!$T$3:$T$7)","v":6.0000000000000012E-2},{"$f":"valueE(L16,'Utility Functions'!$V$3,'Utility Functions'!$V$4,'Utility Functions'!$V$5,'Utility Functions'!$V$6)","v":1},{"$f":"valuePL(M16,'Utility Functions'!$W$3:$W$6,'Utility Functions'!$X$3:$X$6)","v":6.0000000000000012E-2},{"$f":"valueE(N16,'Utility Functions'!$Z$3,'Utility Functions'!$Z$4,'Utility Functions'!$Z$5,'Utility Functions'!$Z$6)","v":0.125},{"$f":"valuePL(O16,'Utility Functions'!$AA$3:$AA$5,'Utility Functions'!$AB$3:$AB$5)","v":1},{"$f":"valuePL(P16,'Utility Functions'!$AC$3:$AC$7,'Utility Functions'!$AD$3:$AD$7)","v":0.5},{"$f":"valuePL(Q16,'Utility Functions'!$AE$3:$AE$6,'Utility Functions'!$AF$3:$AF$6)","v":0},{"$f":"valuePL(R16,'Utility Functions'!$AG$3:$AG$6,'Utility Functions'!$AH$3:$AH$6)","v":0.8},{"$f":"valuePL(S16,'Utility Functions'!$AI$3:$AI$6,'Utility Functions'!$AJ$3:$AJ$6)","v":1},{"$f":"valuePL(T16,'Utility Functions'!$AK$3:$AK$8,'Utility Functions'!$AL$3:$AL$8)","v":0.6},{"$f":"valuePL(U16,'Utility Functions'!$AM$3:$AM$5,'Utility Functions'!$AN$3:$AN$5)","v":1},{"$f":"valuePL(V16,'Utility Functions'!$AO$3:$AO$5,'Utility Functions'!$AP$3:$AP$5)","v":0},{"$f":"valuePL(W16,'Utility Functions'!$AQ$3:$AQ$6,'Utility Functions'!$AR$3:$AR$6)","v":1},{"$f":"valuePL(X16,'Utility Functions'!$AS$3:$AS$6,'Utility Functions'!$AT$3:$AT$6)","v":0.2},{"$f":"valuePL(Y16,'Utility Functions'!$AU$3:$AU$6,'Utility Functions'!$AV$3:$AV$6)","v":0.2},{"$f":"valuePL(Z16,'Utility Functions'!$AW$3:$AW$5,'Utility Functions'!$AX$3:$AX$5)","v":1},{"$f":"valuePL(AA16,'Utility Functions'!$AY$3:$AY$6,'Utility Functions'!$AZ$3:$AZ$6)","v":1},{"$f":"valuePL(AB16,'Utility Functions'!$BA$3:$BA$5,'Utility Functions'!$BB$3:$BB$5)","v":1},{"$f":"valuePL(AC16,'Utility Functions'!$BC$3:$BC$5,'Utility Functions'!$BD$3:$BD$5)","v":0.25},15.150477261414375,null,15.15047726141438,4.2034772614143794,1.272,1.125,3.9,4.6500000000000004]
[16,{"$f":"valueE(B17,'Utility Functions'!$B$3,'Utility Functions'!$B$4,'Utility Functions'!$B$5,'Utility Functions'!$B$6)","v":0},{"$f":"valueE(C17,'Utility Functions'!$D$3,'Utility Functions'!$D$4,'Utility Functions'!$D$5,'Utility Functions'!$D$6)","v":0},{"$f":"valuePL(D17,'Utility Functions'!$E$3:$E$5,'Utility Functions'!$F$3:$F$5)","v":0},{"$f":"valuePL(E17,'Utility Functions'!$G$3:$G$5,'Utility Functions'!$H$3:$H$5)","v":0},{"$f":"valuePL(F17,'Utility Functions'!$I$3:$I$4,'Utility Functions'!$J$3:$J$5)","v":0},{"$f":"valueE(G17,'Utility Functions'!$L$3,'Utility Functions'!$L$4,'Utility Functions'!$L$5,'Utility Functions'!$L$6)","v":0},{"$f":"valueE(H17,'Utility Functions'!$N$3,'Utility Functions'!$N$4,'Utility Functions'!$N$5,'Utility Functions'!$N$6)","v":0},{"$f":"valuePL(I17,'Utility Functions'!$O$3:$O$6,'Utility Functions'!$P$3:$P$6)","v":1},{"$f":"valuePL(J17,'Utility Functions'!$Q$3:$Q$6,'Utility Functions'!$R$3:$R$6)","v":0.91818181818181821},{"$f":"valuePL(K17,'Utility Functions'!$S$3:$S$7,'Utility Functions'!$T$3:$T$7)","v":1},{"$f":"valueE(L17,'Utility Functions'!$V$3,'Utility Functions'!$V$4,'Utility Functions'!$V$5,'Utility Functions'!$V$6)","v":0.83333333333333337},{"$f":"valuePL(M17,'Utility Functions'!$W$3:$W$6,'Utility Functions'!$X$3:$X$6)","v":0.91818181818181821},{"$f":"valueE(N17,'Utility Functions'!$Z$3,'Utility Functions'!$Z$4,'Utility Functions'!$Z$5,'Utility Functions'!$Z$6)","v":0},{"$f":"valuePL(O17,'Utility Functions'!$AA$3:$AA$5,'Utility Functions'!$AB$3:$AB$5)","v":0},{"$f":"valuePL(P17,'Utility Functions'!$AC$3:$AC$7,'Utility Functions'!$AD$3:$AD$7)","v":0.75},{"$f":"valuePL(Q17,'Utility Functions'!$AE$3:$AE$6,'Utility Functions'!$AF$3:$AF$6)","v":0},{"$f":"valuePL(R17,'Utility Functions'!$AG$3:$AG$6,'Utility Functions'!$AH$3:$AH$6)","v":1},{"$f":"valuePL(S17,'Utility Functions'!$AI$3:$AI$6,'Utility Functions'!$AJ$3:$AJ$6)","v":1},{"$f":"valuePL(T17,'Utility Functions'!$AK$3:$AK$8,'Utility Functions'!$AL$3:$AL$8)","v":1},{"$f":"valuePL(U17,'Utility Functions'!$AM$3:$AM$5,'Utility Functions'!$AN$3:$AN$5)","v":0},{"$f":"valuePL(V17,'Utility Functions'!$AO$3:$AO$5,'Utility Functions'!$AP$3:$AP$5)","v":1},{"$f":"valuePL(W17,'Utility Functions'!$AQ$3:$AQ$6,'Utility Functions'!$AR$3:$AR$6)","v":0.75},{"$f":"valuePL(X17,'Utility Functions'!$AS$3:$AS$6,'Utility Functions'!$AT$3:$AT$6)","v":0.75},{"$f":"valuePL(Y17,'Utility Functions'!$AU$3:$AU$6,'Utility Functions'!$AV$3:$AV$6)","v":0.2},{"$f":"valuePL(Z17,'Utility Functions'!$AW$3:$AW$5,'Utility Functions'!$AX$3:$AX$5)","v":1},{"$f":"valuePL(AA17,'Utility Functions'!$AY$3:$AY$6,'Utility Functions'!$AZ$3:$AZ$6)","v":1},{"$f":"valuePL(AB17,'Utility Functions'!$BA$3:$BA$5,'Utility Functions'!$BB$3:$BB$5)","v":1},{"$f":"valuePL(AC17,'Utility Functions'!$BC$3:$BC$5,'Utility Functions'!$BD$3:$BD$5)","v":1},15.119696969696969,null,15.119696969696971,0,4.6696969696969699,0,3.75,6.7]
[17,{"$f":"valueE(B18,'Utility Functions'!$B$3,'Utility Functions'!$B$4,'Utility Functions'!$B$5,'Utility Functions'!$B$6)","v":0.32968045347775865},{"$f":"valueE(C18,'Utility Functions'!$D$3,'Utility Functions'!$D$4,'Utility Functions'!$D$5,'Utility Functions'!$D$6)","v":0.78989979019422951},{"$f":"valuePL(D18,'Utility Functions'!$E$3:$E$5,'Utility Functions'!$F$3:$F$5)","v":1},{"$f":"valuePL(E18,'Utility Functions'!$G$3:$G$5,'Utility Functions'!$H$3:$H$5)","v":0.5},{"$f":"valuePL(F18,'Utility Functions'!$I$3:$I$4,'Utility Functions'!$J$3:$J$5)","v":1},{"$f":"valueE(G18,'Utility Functions'!$L$3,'Utility Functions'!$L$4,'Utility Functions'!$L$5,'Utility Functions'!$L$6)","v":0.31182795698924731},{"$f":"valueE(H18,'Utility Functions'!$N$3,'Utility Functions'!$N$4,'Utility Functions'!$N$5,'Utility Functions'!$N$6)","v":0.27514231499051234},{"$f":"valuePL(I18,'Utility Functions'!$O$3:$O$6,'Utility Functions'!$P$3:$P$6)","v":0},{"$f":"valuePL(J18,'Utility Functions'!$Q$3:$Q$6,'Utility Functions'!$R$3:$R$6)","v":0},{"$f":"valuePL(K18,'Utility Functions'!$S$3:$S$7,'Utility Functions'!$T$3:$T$7)","v":0},{"$f":"valueE(L18,'Utility Functions'!$V$3,'Utility Functions'!$V$4,'Utility Functions'!$V$5,'Utility Functions'!$V$6)","v":1},{"$f":"valuePL(M18,'Utility Functions'!$W$3:$W$6,'Utility Functions'!$X$3:$X$6)","v":6.0000000000000012E-2},{"$f":"valueE(N18,'Utility Functions'!$Z$3,'Utility Functions'!$Z$4,'Utility Functions'!$Z$5,'Utility Functions'!$Z$6)","v":0},{"$f":"valuePL(O18,'Utility Functions'!$AA$3:$AA$5,'Utility Functions'!$AB$3:$AB$5)","v":0},{"$f":"valuePL(P18,'Utility Functions'!$AC$3:$AC$7,'Utility Functions'!$AD$3:$AD$7)","v":0},{"$f":"valuePL(Q18,'Utility Functions'!$AE$3:$AE$6,'Utility Functions'!$AF$3:$AF$6)","v":0},{"$f":"valuePL(R18,'Utility Functions'!$AG$3:$AG$6,'Utility Functions'!$AH$3:$AH$6)","v":1},{"$f":"valuePL(S18,'Utility Functions'!$AI$3:$AI$6,'Utility Functions'!$AJ$3:$AJ$6)","v":0.66},{"$f":"valuePL(T18,'Utility Functions'!$AK$3:$AK$8,'Utility Functions'!$AL$3:$AL$8)","v":0},{"$f":"valuePL(U18,'Utility Functions'!$AM$3:$AM$5,'Utility Functions'!$AN$3:$AN$5)","v":0},{"$f":"valuePL(V18,'Utility Functions'!$AO$3:$AO$5,'Utility Functions'!$AP$3:$AP$5)","v":1},{"$f":"valuePL(W18,'Utility Functions'!$AQ$3:$AQ$6,'Utility Functions'!$AR$3:$AR$6)","v":1},{"$f":"valuePL(X18,'Utility Functions'!$AS$3:$AS$6,'Utility Functions'!$AT$3:$AT$6)","v":0.2},{"$f":"valuePL(Y18,'Utility Functions'!$AU$3:$AU$6,'Utility Functions'!$AV$3:$AV$6)","v":0},{"$f":"valuePL(Z18,'Utility Functions'!$AW$3:$AW$5,'Utility Functions'!$AX$3:$AX$5)","v":0.5},{"$f":"valuePL(AA18,'Utility Functions'!$AY$3:$AY$6,'Utility Functions'!$AZ$3:$AZ$6)","v":0},{"$f":"valuePL(AB18,'Utility Functions'!$BA$3:$BA$5,'Utility Functions'!$BB$3:$BB$5)","v":1},{"$f":"valuePL(AC18,'Utility Functions'!$BC$3:$BC$5,'Utility Functions'!$BD$3:$BD$5)","v":0.25},10.876550515651747,null,10.876550515651747,3.6195802436719884,1.6469702719797596,0,1.6600000000000001,3.95]
[18,{"$f":"valueE(B19,'Utility Functions'!$B$3,'Utility Functions'!$B$4,'Utility Functions'!$B$5,'Utility Functions'!$B$6)","v":0},{"$f":"valueE(C19,'Utility Functions'!$D$3,'Utility Functions'!$D$4,'Utility Functions'!$D$5,'Utility Functions'!$D$6)","v":0},{"$f":"valuePL(D19,'Utility Functions'!$E$3:$E$5,'Utility Functions'!$F$3:$F$5)","v":0},{"$f":"valuePL(E19,'Utility Functions'!$G$3:$G$5,'Utility Functions'!$H$3:$H$5)","v":0},{"$f":"valuePL(F19,'Utility Functions'!$I$3:$I$4,'Utility Functions'!$J$3:$J$5)","v":0},{"$f":"valueE(G19,'Utility Functions'!$L$3,'Utility Functions'!$L$4,'Utility Functions'!$L$5,'Utility Functions'!$L$6)","v":0},{"$f":"valueE(H19,'Utility Functions'!$N$3,'Utility Functions'!$N$4,'Utility Functions'!$N$5,'Utility Functions'!$N$6)","v":2.8462998102466792E-2},{"$f":"valuePL(I19,'Utility Functions'!$O$3:$O$6,'Utility Functions'!$P$3:$P$6)","v":0},{"$f":"valuePL(J19,'Utility Functions'!$Q$3:$Q$6,'Utility Functions'!$R$3:$R$6)","v":0},{"$f":"valuePL(K19,'Utility Functions'!$S$3:$S$7,'Utility Functions'!$T$3:$T$7)","v":0},{"$f":"valueE(L19,'Utility Functions'!$V$3,'Utility Functions'!$V$4,'Utility Functions'!$V$5,'Utility Functions'!$V$6)","v":0},{"$f":"valuePL(M19,'Utility Functions'!$W$3:$W$6,'Utility Functions'!$X$3:$X$6)","v":0},{"$f":"valueE(N19,'Utility Functions'!$Z$3,'Utility Functions'!$Z$4,'Utility Functions'!$Z$5,'Utility Functions'!$Z$6)","v":1},{"$f":"valuePL(O19,'Utility Functions'!$AA$3:$AA$5,'Utility Functions'!$AB$3:$AB$5)","v":0.25},{"$f":"valuePL(P19,'Utility Functions'!$AC$3:$AC$7,'Utility Functions'!$AD$3:$AD$7)","v":0.25},{"$f":"valuePL(Q19,'Utility Functions'!$AE$3:$AE$6,'Utility Functions'!$AF$3:$AF$6)","v":1},{"$f":"valuePL(R19,'Utility Functions'!$AG$3:$AG$6,'Utility Functions'!$AH$3:$AH$6)","v":1},{"$f":"valuePL(S19,'Utility Functions'!$AI$3:$AI$6,'Utility Functions'!$AJ$3:$AJ$6)","v":1},{"$f":"valuePL(T19,'Utility Functions'!$AK$3:$AK$8,'Utility Functions'!$AL$3:$AL$8)","v":1},{"$f":"valuePL(U19,'Utility Functions'!$AM$3:$AM$5,'Utility Functions'!$AN$3:$AN$5)","v":0.25},{"$f":"valuePL(V19,'Utility Functions'!$AO$3:$AO$5,'Utility Functions'!$AP$3:$AP$5)","v":1},{"$f":"valuePL(W19,'Utility Functions'!$AQ$3:$AQ$6,'Utility Functions'!$AR$3:$AR$6)","v":0.75},{"$f":"valuePL(X19,'Utility Functions'!$AS$3:$AS$6,'Utility Functions'!$AT$3:$AT$6)","v":0.2},{"$f":"valuePL(Y19,'Utility Functions'!$AU$3:$AU$6,'Utility Functions'!$AV$3:$AV$6)","v":0.8},{"$f":"valuePL(Z19,'Utility Functions'!$AW$3:$AW$5,'Utility Functions'!$AX$3:$AX$5)","v":0.5},{"$f":"valuePL(AA19,'Utility Functions'!$AY$3:$AY$6,'Utility Functions'!$AZ$3:$AZ$6)","v":0.89999999999999991},{"$f":"valuePL(AB19,'Utility Functions'!$BA$3:$BA$5,'Utility Functions'!$BB$3:$BB$5)","v":0.25},{"$f":"valuePL(AC19,'Utility Functions'!$BC$3:$BC$5,'Utility Functions'!$BD$3:$BD$5)","v":0},10.178462998102468,null,10.178462998102468,0,2.8462998102466792E-2,1.25,4.5,4.4000000000000004]
[19,{"$f":"valueE(B20,'Utility Functions'!$B$3,'Utility Functions'!$B$4,'Utility Functions'!$B$5,'Utility Functions'!$B$6)","v":0.79810469124896843},{"$f":"valueE(C20,'Utility Functions'!$D$3,'Utility Functions'!$D$4,'Utility Functions'!$D$5,'Utility Functions'!$D$6)","v":0.26839655623815994},{"$f":"valuePL(D20,'Utility Functions'!$E$3:$E$5,'Utility Functions'!$F$3:$F$5)","v":0.5},{"$f":"valuePL(E20,'Utility Functions'!$G$3:$G$5,'Utility Functions'!$H$3:$H$5)","v":1},{"$f":"valuePL(F20,'Utility Functions'!$I$3:$I$4,'Utility Functions'!$J$3:$J$5)","v":0},{"$f":"valueE(G20,'Utility Functions'!$L$3,'Utility Functions'!$L$4,'Utility Functions'!$L$5,'Utility Functions'!$L$6)","v":0},{"$f":"valueE(H20,'Utility Functions'!$N$3,'Utility Functions'!$N$4,'Utility Functions'!$N$5,'Utility Functions'!$N$6)","v":0},{"$f":"valuePL(I20,'Utility Functions'!$O$3:$O$6,'Utility Functions'!$P$3:$P$6)","v":0},{"$f":"valuePL(J20,'Utility Functions'!$Q$3:$Q$6,'Utility Functions'!$R$3:$R$6)","v":0},{"$f":"valuePL(K20,'Utility Functions'!$S$3:$S$7,'Utility Functions'!$T$3:$T$7)","v":0},{"$f":"valueE(L20,'Utility Functions'!$V$3,'Utility Functions'!$V$4,'Utility Functions'!$V$5,'Utility Functions'!$V$6)","v":0},{"$f":"valuePL(M20,'Utility Functions'!$W$3:$W$6,'Utility Functions'!$X$3:$X$6)","v":0},{"$f":"valueE(N20,'Utility Functions'!$Z$3,'Utility Functions'!$Z$4,'Utility Functions'!$Z$5,'Utility Functions'!$Z$6)","v":1},{"$f":"valuePL(O20,'Utility Functions'!$AA$3:$AA$5,'Utility Functions'!$AB$3:$AB$5)","v":1},{"$f":"valuePL(P20,'Utility Functions'!$AC$3:$AC$7,'Utility Functions'!$AD$3:$AD$7)","v":0},{"$f":"valuePL(Q20,'Utility Functions'!$AE$3:$AE$6,'Utility Functions'!$AF$3:$AF$6)","v":0},{"$f":"valuePL(R20,'Utility Functions'!$AG$3:$AG$6,'Utility Functions'!$AH$3:$AH$6)","v":0.8},{"$f":"valuePL(S20,'Utility Functions'!$AI$3:$AI$6,'Utility Functions'!$AJ$3:$AJ$6)","v":1},{"$f":"valuePL(T20,'Utility Functions'!$AK$3:$AK$8,'Utility Functions'!$AL$3:$AL$8)","v":0},{"$f":"valuePL(U20,'Utility Functions'!$AM$3:$AM$5,'Utility Functions'!$AN$3:$AN$5)","v":0},{"$f":"valuePL(V20,'Utility Functions'!$AO$3:$AO$5,'Utility Functions'!$AP$3:$AP$5)","v":0.5},{"$f":"valuePL(W20,'Utility Functions'!$AQ$3:$AQ$6,'Utility Functions'!$AR$3:$AR$6)","v":0.2},{"$f":"valuePL(X20,'Utility Functions'!$AS$3:$AS$6,'Utility Functions'!$AT$3:$AT$6)","v":1},{"$f":"valuePL(Y20,'Utility Functions'!$AU$3:$AU$6,'Utility Functions'!$AV$3:$AV$6)","v":0.8},{"$f":"valuePL(Z20,'Utility Functions'!$AW$3:$AW$5,'Utility Functions'!$AX$3:$AX$5)","v":0},{"$f":"valuePL(AA20,'Utility Functions'!$AY$3:$AY$6,'Utility Functions'!$AZ$3:$AZ$6)","v":0.2},{"$f":"valuePL(AB20,'Utility Functions'!$BA$3:$BA$5,'Utility Functions'!$BB$3:$BB$5)","v":0},{"$f":"valuePL(AC20,'Utility Functions'!$BC$3:$BC$5,'Utility Functions'!$BD$3:$BD$5)","v":0.25},9.3165012474871283,null,9.3165012474871283,2.5665012474871283,0,2,1.8,2.95]
[20,{"$f":"valueE(B21,'Utility Functions'!$B$3,'Utility Functions'!$B$4,'Utility Functions'!$B$5,'Utility Functions'!$B$6)","v":0.83470237647280454},{"$f":"valueE(C21,'Utility Functions'!$D$3,'Utility Functions'!$D$4,'Utility Functions'!$D$5,'Utility Functions'!$D$6)","v":0.78989979019422951},{"$f":"valuePL(D21,'Utility Functions'!$E$3:$E$5,'Utility Functions'!$F$3:$F$5)","v":0.5},{"$f":"valuePL(E21,'Utility Functions'!$G$3:$G$5,'Utility Functions'!$H$3:$H$5)","v":1},{"$f":"valuePL(F21,'Utility Functions'!$I$3:$I$4,'Utility Functions'!$J$3:$J$5)","v":0},{"$f":"valueE(G21,'Utility Functions'!$L$3,'Utility Functions'!$L$4,'Utility Functions'!$L$5,'Utility Functions'!$L$6)","v":0},{"$f":"valueE(H21,'Utility Functions'!$N$3,'Utility Functions'!$N$4,'Utility Functions'!$N$5,'Utility Functions'!$N$6)","v":0.41271347248576851},{"$f":"valuePL(I21,'Utility Functions'!$O$3:$O$6,'Utility Functions'!$P$3:$P$6)","v":0.93454545454545446},{"$f":"valuePL(J21,'Utility Functions'!$Q$3:$Q$6,'Utility Functions'!$R$3:$R$6)","v":0.50909090909090915},{"$f":"valuePL(K21,'Utility Functions'!$S$3:$S$7,'Utility Functions'!$T$3:$T$7)","v":0.93454545454545446},{"$f":"valueE(L21,'Utility Functions'!$V$3,'Utility Functions'!$V$4,'Utility Functions'!$V$5,'Utility Functions'!$V$6)","v":0.66666666666666663},{"$f":"valuePL(M21,'Utility Functions'!$W$3:$W$6,'Utility Functions'!$X$3:$X$6)","v":0.50909090909090915},{"$f":"valueE(N21,'Utility Functions'!$Z$3,'Utility Functions'!$Z$4,'Utility Functions'!$Z$5,'Utility Functions'!$Z$6)","v":1},{"$f":"valuePL(O21,'Utility Functions'!$AA$3:$AA$5,'Utility Functions'!$AB$3:$AB$5)","v":1},{"$f":"valuePL(P21,'Utility Functions'!$AC$3:$AC$7,'Utility Functions'!$AD$3:$AD$7)","v":0.25},{"$f":"valuePL(Q21,'Utility Functions'!$AE$3:$AE$6,'Utility Functions'!$AF$3:$AF$6)","v":0},{"$f":"valuePL(R21,'Utility Functions'!$AG$3:$AG$6,'Utility Functions'!$AH$3:$AH$6)","v":1},{"$f":"valuePL(S21,'Utility Functions'!$AI$3:$AI$6,'Utility Functions'!$AJ$3:$AJ$6)","v":1},{"$f":"valuePL(T21,'Utility Functions'!$AK$3:$AK$8,'Utility Functions'!$AL$3:$AL$8)","v":0.6},{"$f":"valuePL(U21,'Utility Functions'!$AM$3:$AM$5,'Utility Functions'!$AN$3:$AN$5)","v":1},{"$f":"valuePL(V21,'Utility Functions'!$AO$3:$AO$5,'Utility Functions'!$AP$3:$AP$5)","v":0.5},{"$f":"valuePL(W21,'Utility Functions'!$AQ$3:$AQ$6,'Utility Functions'!$AR$3:$AR$6)","v":0},{"$f":"valuePL(X21,'Utility Functions'!$AS$3:$AS$6,'Utility Functions'!$AT$3:$AT$6)","v":0},{"$f":"valuePL(Y21,'Utility Functions'!$AU$3:$AU$6,'Utility Functions'!$AV$3:$AV$6)","v":0.2},{"$f":"valuePL(Z21,'Utility Functions'!$AW$3:$AW$5,'Utility Functions'!$AX$3:$AX$5)","v":1},{"$f":"valuePL(AA21,'Utility Functions'!$AY$3:$AY$6,'Utility Functions'!$AZ$3:$AZ$6)","v":0.2},{"$f":"valuePL(AB21,'Utility Functions'!$BA$3:$BA$5,'Utility Functions'!$BB$3:$BB$5)","v":0},{"$f":"valuePL(AC21,'Utility Functions'!$BC$3:$BC$5,'Utility Functions'!$BD$3:$BD$5)","v":0.25},15.091255033092194,null,15.091255033092196,3.1246021666670343,3.9666528664251626,2,3.85,2.15]
[21,{"$f":"valueE(B22,'Utility Functions'!$B$3,'Utility Functions'!$B$4,'Utility Functions'!$B$5,'Utility Functions'!$B$6)","v":0},{"$f":"valueE(C22,'Utility Functions'!$D$3,'Utility Functions'!$D$4,'Utility Functions'!$D$5,'Utility Functions'!$D$6)","v":0},{"$f":"valuePL(D22,'Utility Functions'!$E$3:$E$5,'Utility Functions'!$F$3:$F$5)","v":0},{"$f":"valuePL(E22,'Utility Functions'!$G$3:$G$5,'Utility Functions'!$H$3:$H$5)","v":0},{"$f":"valuePL(F22,'Utility Functions'!$I$3:$I$4,'Utility Functions'!$J$3:$J$5)","v":0},{"$f":"valueE(G22,'Utility Functions'!$L$3,'Utility Functions'!$L$4,'Utility Functions'!$L$5,'Utility Functions'!$L$6)","v":0},{"$f":"valueE(H22,'Utility Functions'!$N$3,'Utility Functions'!$N$4,'Utility Functions'!$N$5,'Utility Functions'!$N$6)","v":0},{"$f":"valuePL(I22,'Utility Functions'!$O$3:$O$6,'Utility Functions'!$P$3:$P$6)","v":0},{"$f":"valuePL(J22,'Utility Functions'!$Q$3:$Q$6,'Utility Functions'!$R$3:$R$6)","v":0},{"$f":"valuePL(K22,'Utility Functions'!$S$3:$S$7,'Utility Functions'!$T$3:$T$7)","v":0},{"$f":"valueE(L22,'Utility Functions'!$V$3,'Utility Functions'!$V$4,'Utility Functions'!$V$5,'Utility Functions'!$V$6)","v":0},{"$f":"valuePL(M22,'Utility Functions'!$W$3:$W$6,'Utility Functions'!$X$3:$X$6)","v":0},{"$f":"valueE(N22,'Utility Functions'!$Z$3,'Utility Functions'!$Z$4,'Utility Functions'!$Z$5,'Utility Functions'!$Z$6)","v":1},{"$f":"valuePL(O22,'Utility Functions'!$AA$3:$AA$5,'Utility Functions'!$AB$3:$AB$5)","v":1},{"$f":"valuePL(P22,'Utility Functions'!$AC$3:$AC$7,'Utility Functions'!$AD$3:$AD$7)","v":0},{"$f":"valuePL(Q22,'Utility Functions'!$AE$3:$AE$6,'Utility Functions'!$AF$3:$AF$6)","v":0.1},{"$f":"valuePL(R22,'Utility Functions'!$AG$3:$AG$6,'Utility Functions'!$AH$3:$AH$6)","v":1},{"$f":"valuePL(S22,'Utility Functions'!$AI$3:$AI$6,'Utility Functions'!$AJ$3:$AJ$6)","v":1},{"$f":"valuePL(T22,'Utility Functions'!$AK$3:$AK$8,'Utility Functions'!$AL$3:$AL$8)","v":1},{"$f":"valuePL(U22,'Utility Functions'!$AM$3:$AM$5,'Utility Functions'!$AN$3:$AN$5)","v":0.25},{"$f":"valuePL(V22,'Utility Functions'!$AO$3:$AO$5,'Utility Functions'!$AP$3:$AP$5)","v":0},{"$f":"valuePL(W22,'Utility Functions'!$AQ$3:$AQ$6,'Utility Functions'!$AR$3:$AR$6)","v":0.75},{"$f":"valuePL(X22,'Utility Functions'!$AS$3:$AS$6,'Utility Functions'!$AT$3:$AT$6)","v":1},{"$f":"valuePL(Y22,'Utility Functions'!$AU$3:$AU$6,'Utility Functions'!$AV$3:$AV$6)","v":0.2},{"$f":"valuePL(Z22,'Utility Functions'!$AW$3:$AW$5,'Utility Functions'!$AX$3:$AX$5)","v":0},{"$f":"valuePL(AA22,'Utility Functions'!$AY$3:$AY$6,'Utility Functions'!$AZ$3:$AZ$6)","v":1},{"$f":"valuePL(AB22,'Utility Functions'!$BA$3:$BA$5,'Utility Functions'!$BB$3:$BB$5)","v":0.25},{"$f":"valuePL(AC22,'Utility Functions'!$BC$3:$BC$5,'Utility Functions'!$BD$3:$BD$5)","v":1},9.5500000000000007,null,9.5500000000000007,0,0,2,3.35,4.2]
[22,{"$f":"valueE(B23,'Utility Functions'!$B$3,'Utility Functions'!$B$4,'Utility Functions'!$B$5,'Utility Functions'!$B$6)","v":0},{"$f":"valueE(C23,'Utility Functions'!$D$3,'Utility Functions'!$D$4,'Utility Functions'!$D$5,'Utility Functions'!$D$6)","v":0},{"$f":"valuePL(D23,'Utility Functions'!$E$3:$E$5,'Utility Functions'!$F$3:$F$5)","v":0},{"$f":"valuePL(E23,'Utility Functions'!$G$3:$G$5,'Utility Functions'!$H$3:$H$5)","v":0},{"$f":"valuePL(F23,'Utility Functions'!$I$3:$I$4,'Utility Functions'!$J$3:$J$5)","v":0},{"$f":"valueE(G23,'Utility Functions'!$L$3,'Utility Functions'!$L$4,'Utility Functions'!$L$5,'Utility Functions'!$L$6)","v":8.6021505376344093E-2},{"$f":"valueE(H23,'Utility Functions'!$N$3,'Utility Functions'!$N$4,'Utility Functions'!$N$5,'Utility Functions'!$N$6)","v":6.0721062618595827E-2},{"$f":"valuePL(I23,'Utility Functions'!$O$3:$O$6,'Utility Functions'!$P$3:$P$6)","v":0},{"$f":"valuePL(J23,'Utility Functions'!$Q$3:$Q$6,'Utility Functions'!$R$3:$R$6)","v":0},{"$f":"valuePL(K23,'Utility Functions'!$S$3:$S$7,'Utility Functions'!$T$3:$T$7)","v":0},{"$f":"valueE(L23,'Utility Functions'!$V$3,'Utility Functions'!$V$4,'Utility Functions'!$V$5,'Utility Functions'!$V$6)","v":0},{"$f":"valuePL(M23,'Utility Functions'!$W$3:$W$6,'Utility Functions'!$X$3:$X$6)","v":0},{"$f":"valueE(N23,'Utility Functions'!$Z$3,'Utility Functions'!$Z$4,'Utility Functions'!$Z$5,'Utility Functions'!$Z$6)","v":0.125},{"$f":"valuePL(O23,'Utility Functions'!$AA$3:$AA$5,'Utility Functions'!$AB$3:$AB$5)","v":1},{"$f":"valuePL(P23,'Utility Functions'!$AC$3:$AC$7,'Utility Functions'!$AD$3:$AD$7)","v":1},{"$f":"valuePL(Q23,'Utility Functions'!$AE$3:$AE$6,'Utility Functions'!$AF$3:$AF$6)","v":0.5},{"$f":"valuePL(R23,'Utility Functions'!$AG$3:$AG$6,'Utility Functions'!$AH$3:$AH$6)","v":0.8},{"$f":"valuePL(S23,'Utility Functions'!$AI$3:$AI$6,'Utility Functions'!$AJ$3:$AJ$6)","v":1},{"$f":"valuePL(T23,'Utility Functions'!$AK$3:$AK$8,'Utility Functions'!$AL$3:$AL$8)","v":1},{"$f":"valuePL(U23,'Utility Functions'!$AM$3:$AM$5,'Utility Functions'!$AN$3:$AN$5)","v":0},{"$f":"valuePL(V23,'Utility Functions'!$AO$3:$AO$5,'Utility Functions'!$AP$3:$AP$5)","v":0.5},{"$f":"valuePL(W23,'Utility Functions'!$AQ$3:$AQ$6,'Utility Functions'!$AR$3:$AR$6)","v":0.75},{"$f":"valuePL(X23,'Utility Functions'!$AS$3:$AS$6,'Utility Functions'!$AT$3:$AT$6)","v":0.2},{"$f":"valuePL(Y23,'Utility Functions'!$AU$3:$AU$6,'Utility Functions'!$AV$3:$AV$6)","v":0},{"$f":"valuePL(Z23,'Utility Functions'!$AW$3:$AW$5,'Utility Functions'!$AX$3:$AX$5)","v":1},{"$f":"valuePL(AA23,'Utility Functions'!$AY$3:$AY$6,'Utility Functions'!$AZ$3:$AZ$6)","v":0.2},{"$f":"valuePL(AB23,'Utility Functions'!$BA$3:$BA$5,'Utility Functions'!$BB$3:$BB$5)","v":1},{"$f":"valuePL(AC23,'Utility Functions'!$BC$3:$BC$5,'Utility Functions'!$BD$3:$BD$5)","v":0.25},9.471742567994939,null,9.4717425679949407,0,0.14674256799493993,1.125,4.3,3.9000000000000004]
[23,{"$f":"valueE(B24,'Utility Functions'!$B$3,'Utility Functions'!$B$4,'Utility Functions'!$B$5,'Utility Functions'!$B$6)","v":0.83470237647280454},{"$f":"valueE(C24,'Utility Functions'!$D$3,'Utility Functions'!$D$4,'Utility Functions'!$D$5,'Utility Functions'!$D$6)","v":0.84744836833951609},{"$f":"valuePL(D24,'Utility Functions'!$E$3:$E$5,'Utility Functions'!$F$3:$F$5)","v":1},{"$f":"valuePL(E24,'Utility Functions'!$G$3:$G$5,'Utility Functions'!$H$3:$H$5)","v":0},{"$f":"valuePL(F24,'Utility Functions'!$I$3:$I$4,'Utility Functions'!$J$3:$J$5)","v":0},{"$f":"valueE(G24,'Utility Functions'!$L$3,'Utility Functions'!$L$4,'Utility Functions'!$L$5,'Utility Functions'!$L$6)","v":0},{"$f":"valueE(H24,'Utility Functions'!$N$3,'Utility Functions'!$N$4,'Utility Functions'!$N$5,'Utility Functions'!$N$6)","v":0},{"$f":"valuePL(I24,'Utility Functions'!$O$3:$O$6,'Utility Functions'!$P$3:$P$6)","v":0},{"$f":"valuePL(J24,'Utility Functions'!$Q$3:$Q$6,'Utility Functions'!$R$3:$R$6)","v":0},{"$f":"valuePL(K24,'Utility Functions'!$S$3:$S$7,'Utility Functions'!$T$3:$T$7)","v":0},{"$f":"valueE(L24,'Utility Functions'!$V$3,'Utility Functions'!$V$4,'Utility Functions'!$V$5,'Utility Functions'!$V$6)","v":0},{"$f":"valuePL(M24,'Utility Functions'!$W$3:$W$6,'Utility Functions'!$X$3:$X$6)","v":0},{"$f":"valueE(N24,'Utility Functions'!$Z$3,'Utility Functions'!$Z$4,'Utility Functions'!$Z$5,'Utility Functions'!$Z$6)","v":0},{"$f":"valuePL(O24,'Utility Functions'!$AA$3:$AA$5,'Utility Functions'!$AB$3:$AB$5)","v":0},{"$f":"valuePL(P24,'Utility Functions'!$AC$3:$AC$7,'Utility Functions'!$AD$3:$AD$7)","v":0.75},{"$f":"valuePL(Q24,'Utility Functions'!$AE$3:$AE$6,'Utility Functions'!$AF$3:$AF$6)","v":0},{"$f":"valuePL(R24,'Utility Functions'!$AG$3:$AG$6,'Utility Functions'!$AH$3:$AH$6)","v":1},{"$f":"valuePL(S24,'Utility Functions'!$AI$3:$AI$6,'Utility Functions'!$AJ$3:$AJ$6)","v":1},{"$f":"valuePL(T24,'Utility Functions'!$AK$3:$AK$8,'Utility Functions'!$AL$3:$AL$8)","v":1},{"$f":"valuePL(U24,'Utility Functions'!$AM$3:$AM$5,'Utility Functions'!$AN$3:$AN$5)","v":0},{"$f":"valuePL(V24,'Utility Functions'!$AO$3:$AO$5,'Utility Functions'!$AP$3:$AP$5)","v":1},{"$f":"valuePL(W24,'Utility Functions'!$AQ$3:$AQ$6,'Utility Functions'!$AR$3:$AR$6)","v":0.2},{"$f":"valuePL(X24,'Utility Functions'!$AS$3:$AS$6,'Utility Functions'!$AT$3:$AT$6)","v":0.75},{"$f":"valuePL(Y24,'Utility Functions'!$AU$3:$AU$6,'Utility Functions'!$AV$3:$AV$6)","v":0.2},{"$f":"valuePL(Z24,'Utility Functions'!$AW$3:$AW$5,'Utility Functions'!$AX$3:$AX$5)","v":0.5},{"$f":"valuePL(AA24,'Utility Functions'!$AY$3:$AY$6,'Utility Functions'!$AZ$3:$AZ$6)","v":0.2},{"$f":"valuePL(AB24,'Utility Functions'!$BA$3:$BA$5,'Utility Functions'!$BB$3:$BB$5)","v":0},{"$f":"valuePL(AC24,'Utility Functions'!$BC$3:$BC$5,'Utility Functions'!$BD$3:$BD$5)","v":0.25},9.5321507448123199,null,9.5321507448123199,2.6821507448123207,0,0,3.75,3.1]
[24,{"$f":"valueE(B25,'Utility Functions'!$B$3,'Utility Functions'!$B$4,'Utility Functions'!$B$5,'Utility Functions'!$B$6)","v":0.63212151658375171},{"$f":"valueE(C25,'Utility Functions'!$D$3,'Utility Functions'!$D$4,'Utility Functions'!$D$5,'Utility Functions'!$D$6)","v":0.46475967153745396},{"$f":"valuePL(D25,'Utility Functions'!$E$3:$E$5,'Utility Functions'!$F$3:$F$5)","v":1},{"$f":"valuePL(E25,'Utility Functions'!$G$3:$G$5,'Utility Functions'!$H$3:$H$5)","v":0},{"$f":"valuePL(F25,'Utility Functions'!$I$3:$I$4,'Utility Functions'!$J$3:$J$5)","v":0},{"$f":"valueE(G25,'Utility Functions'!$L$3,'Utility Functions'!$L$4,'Utility Functions'!$L$5,'Utility Functions'!$L$6)","v":0},{"$f":"valueE(H25,'Utility Functions'!$N$3,'Utility Functions'!$N$4,'Utility Functions'!$N$5,'Utility Functions'!$N$6)","v":0},{"$f":"valuePL(I25,'Utility Functions'!$O$3:$O$6,'Utility Functions'!$P$3:$P$6)","v":0},{"$f":"valuePL(J25,'Utility Functions'!$Q$3:$Q$6,'Utility Functions'!$R$3:$R$6)","v":0},{"$f":"valuePL(K25,'Utility Functions'!$S$3:$S$7,'Utility Functions'!$T$3:$T$7)","v":0},{"$f":"valueE(L25,'Utility Functions'!$V$3,'Utility Functions'!$V$4,'Utility Functions'!$V$5,'Utility Functions'!$V$6)","v":0},{"$f":"valuePL(M25,'Utility Functions'!$W$3:$W$6,'Utility Functions'!$X$3:$X$6)","v":0},{"$f":"valueE(N25,'Utility Functions'!$Z$3,'Utility Functions'!$Z$4,'Utility Functions'!$Z$5,'Utility Functions'!$Z$6)","v":0},{"$f":"valuePL(O25,'Utility Functions'!$AA$3:$AA$5,'Utility Functions'!$AB$3:$AB$5)","v":0},{"$f":"valuePL(P25,'Utility Functions'!$AC$3:$AC$7,'Utility Functions'!$AD$3:$AD$7)","v":0},{"$f":"valuePL(Q25,'Utility Functions'!$AE$3:$AE$6,'Utility Functions'!$AF$3:$AF$6)","v":0},{"$f":"valuePL(R25,'Utility Functions'!$AG$3:$AG$6,'Utility Functions'!$AH$3:$AH$6)","v":1},{"$f":"valuePL(S25,'Utility Functions'!$AI$3:$AI$6,'Utility Functions'!$AJ$3:$AJ$6)","v":1},{"$f":"valuePL(T25,'Utility Functions'!$AK$3:$AK$8,'Utility Functions'!$AL$3:$AL$8)","v":1},{"$f":"valuePL(U25,'Utility Functions'!$AM$3:$AM$5,'Utility Functions'!$AN$3:$AN$5)","v":0},{"$f":"valuePL(V25,'Utility Functions'!$AO$3:$AO$5,'Utility Functions'!$AP$3:$AP$5)","v":0},{"$f":"valuePL(W25,'Utility Functions'!$AQ$3:$AQ$6,'Utility Functions'!$AR$3:$AR$6)","v":1},{"$f":"valuePL(X25,'Utility Functions'!$AS$3:$AS$6,'Utility Functions'!$AT$3:$AT$6)","v":0.2},{"$f":"valuePL(Y25,'Utility Functions'!$AU$3:$AU$6,'Utility Functions'!$AV$3:$AV$6)","v":1},{"$f":"valuePL(Z25,'Utility Functions'!$AW$3:$AW$5,'Utility Functions'!$AX$3:$AX$5)","v":1},{"$f":"valuePL(AA25,'Utility Functions'!$AY$3:$AY$6,'Utility Functions'!$AZ$3:$AZ$6)","v":0.2},{"$f":"valuePL(AB25,'Utility Functions'!$BA$3:$BA$5,'Utility Functions'!$BB$3:$BB$5)","v":0},{"$f":"valuePL(AC25,'Utility Functions'!$BC$3:$BC$5,'Utility Functions'!$BD$3:$BD$5)","v":1},9.4968811881212041,null,9.4968811881212059,2.0968811881212055,0,0,3,4.4000000000000004]
[25,{"$f":"valueE(B26,'Utility Functions'!$B$3,'Utility Functions'!$B$4,'Utility Functions'!$B$5,'Utility Functions'!$B$6)","v":0.83470237647280454},{"$f":"valueE(C26,'Utility Functions'!$D$3,'Utility Functions'!$D$4,'Utility Functions'!$D$5,'Utility Functions'!$D$6)","v":0.84744836833951609},{"$f":"valuePL(D26,'Utility Functions'!$E$3:$E$5,'Utility Functions'!$F$3:$F$5)","v":1},{"$f":"valuePL(E26,'Utility Functions'!$G$3:$G$5,'Utility Functions'!$H$3:$H$5)","v":0},{"$f":"valuePL(F26,'Utility Functions'!$I$3:$I$4,'Utility Functions'!$J$3:$J$5)","v":0},{"$f":"valueE(G26,'Utility Functions'!$L$3,'Utility Functions'!$L$4,'Utility Functions'!$L$5,'Utility Functions'!$L$6)","v":0.94623655913978499},{"$f":"valueE(H26,'Utility Functions'!$N$3,'Utility Functions'!$N$4,'Utility Functions'!$N$5,'Utility Functions'!$N$6)","v":0.29222011385199242},{"$f":"valuePL(I26,'Utility Functions'!$O$3:$O$6,'Utility Functions'!$P$3:$P$6)","v":0},{"$f":"valuePL(J26,'Utility Functions'!$Q$3:$Q$6,'Utility Functions'!$R$3:$R$6)","v":0},{"$f":"valuePL(K26,'Utility Functions'!$S$3:$S$7,'Utility Functions'!$T$3:$T$7)","v":0},{"$f":"valueE(L26,'Utility Functions'!$V$3,'Utility Functions'!$V$4,'Utility Functions'!$V$5,'Utility Functions'!$V$6)","v":0},{"$f":"valuePL(M26,'Utility Functions'!$W$3:$W$6,'Utility Functions'!$X$3:$X$6)","v":0},{"$f":"valueE(N26,'Utility Functions'!$Z$3,'Utility Functions'!$Z$4,'Utility Functions'!$Z$5,'Utility Functions'!$Z$6)","v":1},{"$f":"valuePL(O26,'Utility Functions'!$AA$3:$AA$5,'Utility Functions'!$AB$3:$AB$5)","v":0.25},{"$f":"valuePL(P26,'Utility Functions'!$AC$3:$AC$7,'Utility Functions'!$AD$3:$AD$7)","v":0.5},{"$f":"valuePL(Q26,'Utility Functions'!$AE$3:$AE$6,'Utility Functions'!$AF$3:$AF$6)","v":0.5},{"$f":"valuePL(R26,'Utility Functions'!$AG$3:$AG$6,'Utility Functions'!$AH$3:$AH$6)","v":1},{"$f":"valuePL(S26,'Utility Functions'!$AI$3:$AI$6,'Utility Functions'!$AJ$3:$AJ$6)","v":1},{"$f":"valuePL(T26,'Utility Functions'!$AK$3:$AK$8,'Utility Functions'!$AL$3:$AL$8)","v":0},{"$f":"valuePL(U26,'Utility Functions'!$AM$3:$AM$5,'Utility Functions'!$AN$3:$AN$5)","v":0},{"$f":"valuePL(V26,'Utility Functions'!$AO$3:$AO$5,'Utility Functions'!$AP$3:$AP$5)","v":1},{"$f":"valuePL(W26,'Utility Functions'!$AQ$3:$AQ$6,'Utility Functions'!$AR$3:$AR$6)","v":0.2},{"$f":"valuePL(X26,'Utility Functions'!$AS$3:$AS$6,'Utility Functions'!$AT$3:$AT$6)","v":1},{"$f":"valuePL(Y26,'Utility Functions'!$AU$3:$AU$6,'Utility Functions'!$AV$3:$AV$6)","v":0.8},{"$f":"valuePL(Z26,'Utility Functions'!$AW$3:$AW$5,'Utility Functions'!$AX$3:$AX$5)","v":0.5},{"$f":"valuePL(AA26,'Utility Functions'!$AY$3:$AY$6,'Utility Functions'!$AZ$3:$AZ$6)","v":0.2},{"$f":"valuePL(AB26,'Utility Functions'!$BA$3:$BA$5,'Utility Functions'!$BB$3:$BB$5)","v":1},{"$f":"valuePL(AC26,'Utility Functions'!$BC$3:$BC$5,'Utility Functions'!$BD$3:$BD$5)","v":1},13.870607417804099,null,13.870607417804099,2.6821507448123207,1.2384566729917774,1.25,3,5.7]
[26,{"$f":"valueE(B27,'Utility Functions'!$B$3,'Utility Functions'!$B$4,'Utility Functions'!$B$5,'Utility Functions'!$B$6)","v":0.96662819462069161},{"$f":"valueE(C27,'Utility Functions'!$D$3,'Utility Functions'!$D$4,'Utility Functions'!$D$5,'Utility Functions'!$D$6)","v":0.84744836833951609},{"$f":"valuePL(D27,'Utility Functions'!$E$3:$E$5,'Utility Functions'!$F$3:$F$5)","v":1},{"$f":"valuePL(E27,'Utility Functions'!$G$3:$G$5,'Utility Functions'!$H$3:$H$5)","v":0.5},{"$f":"valuePL(F27,'Utility Functions'!$I$3:$I$4,'Utility Functions'!$J$3:$J$5)","v":0},{"$f":"valueE(G27,'Utility Functions'!$L$3,'Utility Functions'!$L$4,'Utility Functions'!$L$5,'Utility Functions'!$L$6)","v":0},{"$f":"valueE(H27,'Utility Functions'!$N$3,'Utility Functions'!$N$4,'Utility Functions'!$N$5,'Utility Functions'!$N$6)","v":0},{"$f":"valuePL(I27,'Utility Functions'!$O$3:$O$6,'Utility Functions'!$P$3:$P$6)","v":0},{"$f":"valuePL(J27,'Utility Functions'!$Q$3:$Q$6,'Utility Functions'!$R$3:$R$6)","v":0},{"$f":"valuePL(K27,'Utility Functions'!$S$3:$S$7,'Utility Functions'!$T$3:$T$7)","v":0},{"$f":"valueE(L27,'Utility Functions'!$V$3,'Utility Functions'!$V$4,'Utility Functions'!$V$5,'Utility Functions'!$V$6)","v":0},{"$f":"valuePL(M27,'Utility Functions'!$W$3:$W$6,'Utility Functions'!$X$3:$X$6)","v":0},{"$f":"valueE(N27,'Utility Functions'!$Z$3,'Utility Functions'!$Z$4,'Utility Functions'!$Z$5,'Utility Functions'!$Z$6)","v":0},{"$f":"valuePL(O27,'Utility Functions'!$AA$3:$AA$5,'Utility Functions'!$AB$3:$AB$5)","v":0},{"$f":"valuePL(P27,'Utility Functions'!$AC$3:$AC$7,'Utility Functions'!$AD$3:$AD$7)","v":0.75},{"$f":"valuePL(Q27,'Utility Functions'!$AE$3:$AE$6,'Utility Functions'!$AF$3:$AF$6)","v":0},{"$f":"valuePL(R27,'Utility Functions'!$AG$3:$AG$6,'Utility Functions'!$AH$3:$AH$6)","v":1},{"$f":"valuePL(S27,'Utility Functions'!$AI$3:$AI$6,'Utility Functions'!$AJ$3:$AJ$6)","v":1},{"$f":"valuePL(T27,'Utility Functions'!$AK$3:$AK$8,'Utility Functions'!$AL$3:$AL$8)","v":0.8},{"$f":"valuePL(U27,'Utility Functions'!$AM$3:$AM$5,'Utility Functions'!$AN$3:$AN$5)","v":0},{"$f":"valuePL(V27,'Utility Functions'!$AO$3:$AO$5,'Utility Functions'!$AP$3:$AP$5)","v":1},{"$f":"valuePL(W27,'Utility Functions'!$AQ$3:$AQ$6,'Utility Functions'!$AR$3:$AR$6)","v":0.2},{"$f":"valuePL(X27,'Utility Functions'!$AS$3:$AS$6,'Utility Functions'!$AT$3:$AT$6)","v":0},{"$f":"valuePL(Y27,'Utility Functions'!$AU$3:$AU$6,'Utility Functions'!$AV$3:$AV$6)","v":0.8},{"$f":"valuePL(Z27,'Utility Functions'!$AW$3:$AW$5,'Utility Functions'!$AX$3:$AX$5)","v":0},{"$f":"valuePL(AA27,'Utility Functions'!$AY$3:$AY$6,'Utility Functions'!$AZ$3:$AZ$6)","v":0.2},{"$f":"valuePL(AB27,'Utility Functions'!$BA$3:$BA$5,'Utility Functions'!$BB$3:$BB$5)","v":1},{"$f":"valuePL(AC27,'Utility Functions'!$BC$3:$BC$5,'Utility Functions'!$BD$3:$BD$5)","v":1},11.064076562960208,null,11.064076562960206,3.3140765629602078,0,0,3.55,4.2]
[27,{"$f":"valueE(B28,'Utility Functions'!$B$3,'Utility Functions'!$B$4,'Utility Functions'!$B$5,'Utility Functions'!$B$6)","v":0},{"$f":"valueE(C28,'Utility Functions'!$D$3,'Utility Functions'!$D$4,'Utility Functions'!$D$5,'Utility Functions'!$D$6)","v":0.46475967153745396},{"$f":"valuePL(D28,'Utility Functions'!$E$3:$E$5,'Utility Functions'!$F$3:$F$5)","v":1},{"$f":"valuePL(E28,'Utility Functions'!$G$3:$G$5,'Utility Functions'!$H$3:$H$5)","v":0},{"$f":"valuePL(F28,'Utility Functions'!$I$3:$I$4,'Utility Functions'!$J$3:$J$5)","v":0},{"$f":"valueE(G28,'Utility Functions'!$L$3,'Utility Functions'!$L$4,'Utility Functions'!$L$5,'Utility Functions'!$L$6)","v":0},{"$f":"valueE(H28,'Utility Functions'!$N$3,'Utility Functions'!$N$4,'Utility Functions'!$N$5,'Utility Functions'!$N$6)","v":0},{"$f":"valuePL(I28,'Utility Functions'!$O$3:$O$6,'Utility Functions'!$P$3:$P$6)","v":0},{"$f":"valuePL(J28,'Utility Functions'!$Q$3:$Q$6,'Utility Functions'!$R$3:$R$6)","v":0},{"$f":"valuePL(K28,'Utility Functions'!$S$3:$S$7,'Utility Functions'!$T$3:$T$7)","v":1},{"$f":"valueE(L28,'Utility Functions'!$V$3,'Utility Functions'!$V$4,'Utility Functions'!$V$5,'Utility Functions'!$V$6)","v":0},{"$f":"valuePL(M28,'Utility Functions'!$W$3:$W$6,'Utility Functions'!$X$3:$X$6)","v":0.1},{"$f":"valueE(N28,'Utility Functions'!$Z$3,'Utility Functions'!$Z$4,'Utility Functions'!$Z$5,'Utility Functions'!$Z$6)","v":0},{"$f":"valuePL(O28,'Utility Functions'!$AA$3:$AA$5,'Utility Functions'!$AB$3:$AB$5)","v":0},{"$f":"valuePL(P28,'Utility Functions'!$AC$3:$AC$7,'Utility Functions'!$AD$3:$AD$7)","v":0.5},{"$f":"valuePL(Q28,'Utility Functions'!$AE$3:$AE$6,'Utility Functions'!$AF$3:$AF$6)","v":0.5},{"$f":"valuePL(R28,'Utility Functions'!$AG$3:$AG$6,'Utility Functions'!$AH$3:$AH$6)","v":1},{"$f":"valuePL(S28,'Utility Functions'!$AI$3:$AI$6,'Utility Functions'!$AJ$3:$AJ$6)","v":1},{"$f":"valuePL(T28,'Utility Functions'!$AK$3:$AK$8,'Utility Functions'!$AL$3:$AL$8)","v":1},{"$f":"valuePL(U28,'Utility Functions'!$AM$3:$AM$5,'Utility Functions'!$AN$3:$AN$5)","v":0},{"$f":"valuePL(V28,'Utility Functions'!$AO$3:$AO$5,'Utility Functions'!$AP$3:$AP$5)","v":0.5},{"$f":"valuePL(W28,'Utility Functions'!$AQ$3:$AQ$6,'Utility Functions'!$AR$3:$AR$6)","v":0.75},{"$f":"valuePL(X28,'Utility Functions'!$AS$3:$AS$6,'Utility Functions'!$AT$3:$AT$6)","v":1},{"$f":"valuePL(Y28,'Utility Functions'!$AU$3:$AU$6,'Utility Functions'!$AV$3:$AV$6)","v":0.2},{"$f":"valuePL(Z28,'Utility Functions'!$AW$3:$AW$5,'Utility Functions'!$AX$3:$AX$5)","v":0},{"$f":"valuePL(AA28,'Utility Functions'!$AY$3:$AY$6,'Utility Functions'!$AZ$3:$AZ$6)","v":0},{"$f":"valuePL(AB28,'Utility Functions'!$BA$3:$BA$5,'Utility Functions'!$BB$3:$BB$5)","v":0},{"$f":"valuePL(AC28,'Utility Functions'!$BC$3:$BC$5,'Utility Functions'!$BD$3:$BD$5)","v":0},9.0147596715374529,null,9.0147596715374547,1.464759671537454,1.1000000000000001,0,4,2.4500000000000002]
[28,{"$f":"valueE(B29,'Utility Functions'!$B$3,'Utility Functions'!$B$4,'Utility Functions'!$B$5,'Utility Functions'!$B$6)","v":0.4511890475224023},{"$f":"valueE(C29,'Utility Functions'!$D$3,'Utility Functions'!$D$4,'Utility Functions'!$D$5,'Utility Functions'!$D$6)","v":0.46475967153745396},{"$f":"valuePL(D29,'Utility Functions'!$E$3:$E$5,'Utility Functions'!$F$3:$F$5)","v":1},{"$f":"valuePL(E29,'Utility Functions'!$G$3:$G$5,'Utility Functions'!$H$3:$H$5)","v":0},{"$f":"valuePL(F29,'Utility Functions'!$I$3:$I$4,'Utility Functions'!$J$3:$J$5)","v":1},{"$f":"valueE(G29,'Utility Functions'!$L$3,'Utility Functions'!$L$4,'Utility Functions'!$L$5,'Utility Functions'!$L$6)","v":0},{"$f":"valueE(H29,'Utility Functions'!$N$3,'Utility Functions'!$N$4,'Utility Functions'!$N$5,'Utility Functions'!$N$6)","v":0},{"$f":"valuePL(I29,'Utility Functions'!$O$3:$O$6,'Utility Functions'!$P$3:$P$6)","v":0},{"$f":"valuePL(J29,'Utility Functions'!$Q$3:$Q$6,'Utility Functions'!$R$3:$R$6)","v":0},{"$f":"valuePL(K29,'Utility Functions'!$S$3:$S$7,'Utility Functions'!$T$3:$T$7)","v":0},{"$f":"valueE(L29,'Utility Functions'!$V$3,'Utility Functions'!$V$4,'Utility Functions'!$V$5,'Utility Functions'!$V$6)","v":0.33333333333333331},{"$f":"valuePL(M29,'Utility Functions'!$W$3:$W$6,'Utility Functions'!$X$3:$X$6)","v":0.1},{"$f":"valueE(N29,'Utility Functions'!$Z$3,'Utility Functions'!$Z$4,'Utility Functions'!$Z$5,'Utility Functions'!$Z$6)","v":0},{"$f":"valuePL(O29,'Utility Functions'!$AA$3:$AA$5,'Utility Functions'!$AB$3:$AB$5)","v":0},{"$f":"valuePL(P29,'Utility Functions'!$AC$3:$AC$7,'Utility Functions'!$AD$3:$AD$7)","v":1},{"$f":"valuePL(Q29,'Utility Functions'!$AE$3:$AE$6,'Utility Functions'!$AF$3:$AF$6)","v":0},{"$f":"valuePL(R29,'Utility Functions'!$AG$3:$AG$6,'Utility Functions'!$AH$3:$AH$6)","v":1},{"$f":"valuePL(S29,'Utility Functions'!$AI$3:$AI$6,'Utility Functions'!$AJ$3:$AJ$6)","v":1},{"$f":"valuePL(T29,'Utility Functions'!$AK$3:$AK$8,'Utility Functions'!$AL$3:$AL$8)","v":0.8},{"$f":"valuePL(U29,'Utility Functions'!$AM$3:$AM$5,'Utility Functions'!$AN$3:$AN$5)","v":0},{"$f":"valuePL(V29,'Utility Functions'!$AO$3:$AO$5,'Utility Functions'!$AP$3:$AP$5)","v":1},{"$f":"valuePL(W29,'Utility Functions'!$AQ$3:$AQ$6,'Utility Functions'!$AR$3:$AR$6)","v":1},{"$f":"valuePL(X29,'Utility Functions'!$AS$3:$AS$6,'Utility Functions'!$AT$3:$AT$6)","v":1},{"$f":"valuePL(Y29,'Utility Functions'!$AU$3:$AU$6,'Utility Functions'!$AV$3:$AV$6)","v":0.2},{"$f":"valuePL(Z29,'Utility Functions'!$AW$3:$AW$5,'Utility Functions'!$AX$3:$AX$5)","v":0},{"$f":"valuePL(AA29,'Utility Functions'!$AY$3:$AY$6,'Utility Functions'!$AZ$3:$AZ$6)","v":0.89999999999999991},{"$f":"valuePL(AB29,'Utility Functions'!$BA$3:$BA$5,'Utility Functions'!$BB$3:$BB$5)","v":1},{"$f":"valuePL(AC29,'Utility Functions'!$BC$3:$BC$5,'Utility Functions'!$BD$3:$BD$5)","v":0.25},12.499282052393189,null,12.499282052393189,2.9159487190598563,0.43333333333333335,0,3.8,5.35]
[29,{"$f":"valueE(B30,'Utility Functions'!$B$3,'Utility Functions'!$B$4,'Utility Functions'!$B$5,'Utility Functions'!$B$6)","v":0.83470237647280454},{"$f":"valueE(C30,'Utility Functions'!$D$3,'Utility Functions'!$D$4,'Utility Functions'!$D$5,'Utility Functions'!$D$6)","v":0.71352759724260828},{"$f":"valuePL(D30,'Utility Functions'!$E$3:$E$5,'Utility Functions'!$F$3:$F$5)","v":1},{"$f":"valuePL(E30,'Utility Functions'!$G$3:$G$5,'Utility Functions'!$H$3:$H$5)","v":0.5},{"$f":"valuePL(F30,'Utility Functions'!$I$3:$I$4,'Utility Functions'!$J$3:$J$5)","v":0},{"$f":"valueE(G30,'Utility Functions'!$L$3,'Utility Functions'!$L$4,'Utility Functions'!$L$5,'Utility Functions'!$L$6)","v":0},{"$f":"valueE(H30,'Utility Functions'!$N$3,'Utility Functions'!$N$4,'Utility Functions'!$N$5,'Utility Functions'!$N$6)","v":0},{"$f":"valuePL(I30,'Utility Functions'!$O$3:$O$6,'Utility Functions'!$P$3:$P$6)","v":0.06},{"$f":"valuePL(J30,'Utility Functions'!$Q$3:$Q$6,'Utility Functions'!$R$3:$R$6)","v":0.67272727272727273},{"$f":"valuePL(K30,'Utility Functions'!$S$3:$S$7,'Utility Functions'!$T$3:$T$7)","v":0},{"$f":"valueE(L30,'Utility Functions'!$V$3,'Utility Functions'!$V$4,'Utility Functions'!$V$5,'Utility Functions'!$V$6)","v":1},{"$f":"valuePL(M30,'Utility Functions'!$W$3:$W$6,'Utility Functions'!$X$3:$X$6)","v":0.67272727272727273},{"$f":"valueE(N30,'Utility Functions'!$Z$3,'Utility Functions'!$Z$4,'Utility Functions'!$Z$5,'Utility Functions'!$Z$6)","v":0},{"$f":"valuePL(O30,'Utility Functions'!$AA$3:$AA$5,'Utility Functions'!$AB$3:$AB$5)","v":0},{"$f":"valuePL(P30,'Utility Functions'!$AC$3:$AC$7,'Utility Functions'!$AD$3:$AD$7)","v":0.25},{"$f":"valuePL(Q30,'Utility Functions'!$AE$3:$AE$6,'Utility Functions'!$AF$3:$AF$6)","v":0},{"$f":"valuePL(R30,'Utility Functions'!$AG$3:$AG$6,'Utility Functions'!$AH$3:$AH$6)","v":1},{"$f":"valuePL(S30,'Utility Functions'!$AI$3:$AI$6,'Utility Functions'!$AJ$3:$AJ$6)","v":1},{"$f":"valuePL(T30,'Utility Functions'!$AK$3:$AK$8,'Utility Functions'!$AL$3:$AL$8)","v":0.8},{"$f":"valuePL(U30,'Utility Functions'!$AM$3:$AM$5,'Utility Functions'!$AN$3:$AN$5)","v":0},{"$f":"valuePL(V30,'Utility Functions'!$AO$3:$AO$5,'Utility Functions'!$AP$3:$AP$5)","v":1},{"$f":"valuePL(W30,'Utility Functions'!$AQ$3:$AQ$6,'Utility Functions'!$AR$3:$AR$6)","v":0.2},{"$f":"valuePL(X30,'Utility Functions'!$AS$3:$AS$6,'Utility Functions'!$AT$3:$AT$6)","v":0},{"$f":"valuePL(Y30,'Utility Functions'!$AU$3:$AU$6,'Utility Functions'!$AV$3:$AV$6)","v":0.8},{"$f":"valuePL(Z30,'Utility Functions'!$AW$3:$AW$5,'Utility Functions'!$AX$3:$AX$5)","v":0.5},{"$f":"valuePL(AA30,'Utility Functions'!$AY$3:$AY$6,'Utility Functions'!$AZ$3:$AZ$6)","v":0.2},{"$f":"valuePL(AB30,'Utility Functions'!$BA$3:$BA$5,'Utility Functions'!$BB$3:$BB$5)","v":0.25},{"$f":"valuePL(AC30,'Utility Functions'!$BC$3:$BC$5,'Utility Functions'!$BD$3:$BD$5)","v":1},12.453684519169958,null,12.453684519169958,3.0482299737154128,2.4054545454545453,0,3.05,3.95]
[30,{"$f":"valueE(B31,'Utility Functions'!$B$3,'Utility Functions'!$B$4,'Utility Functions'!$B$5,'Utility Functions'!$B$6)","v":0.99864114504770318},{"$f":"valueE(C31,'Utility Functions'!$D$3,'Utility Functions'!$D$4,'Utility Functions'!$D$5,'Utility Functions'!$D$6)","v":0.84744836833951609},{"$f":"valuePL(D31,'Utility Functions'!$E$3:$E$5,'Utility Functions'!$F$3:$F$5)","v":1},{"$f":"valuePL(E31,'Utility Functions'!$G$3:$G$5,'Utility Functions'!$H$3:$H$5)","v":0},{"$f":"valuePL(F31,'Utility Functions'!$I$3:$I$4,'Utility Functions'!$J$3:$J$5)","v":0},{"$f":"valueE(G31,'Utility Functions'!$L$3,'Utility Functions'!$L$4,'Utility Functions'!$L$5,'Utility Functions'!$L$6)","v":0},{"$f":"valueE(H31,'Utility Functions'!$N$3,'Utility Functions'!$N$4,'Utility Functions'!$N$5,'Utility Functions'!$N$6)","v":0},{"$f":"valuePL(I31,'Utility Functions'!$O$3:$O$6,'Utility Functions'!$P$3:$P$6)","v":0},{"$f":"valuePL(J31,'Utility Functions'!$Q$3:$Q$6,'Utility Functions'!$R$3:$R$6)","v":0},{"$f":"valuePL(K31,'Utility Functions'!$S$3:$S$7,'Utility Functions'!$T$3:$T$7)","v":0},{"$f":"valueE(L31,'Utility Functions'!$V$3,'Utility Functions'!$V$4,'Utility Functions'!$V$5,'Utility Functions'!$V$6)","v":0.33333333333333331},{"$f":"valuePL(M31,'Utility Functions'!$W$3:$W$6,'Utility Functions'!$X$3:$X$6)","v":0.04},{"$f":"valueE(N31,'Utility Functions'!$Z$3,'Utility Functions'!$Z$4,'Utility Functions'!$Z$5,'Utility Functions'!$Z$6)","v":0},{"$f":"valuePL(O31,'Utility Functions'!$AA$3:$AA$5,'Utility Functions'!$AB$3:$AB$5)","v":0},{"$f":"valuePL(P31,'Utility Functions'!$AC$3:$AC$7,'Utility Functions'!$AD$3:$AD$7)","v":0},{"$f":"valuePL(Q31,'Utility Functions'!$AE$3:$AE$6,'Utility Functions'!$AF$3:$AF$6)","v":0},{"$f":"valuePL(R31,'Utility Functions'!$AG$3:$AG$6,'Utility Functions'!$AH$3:$AH$6)","v":0.2},{"$f":"valuePL(S31,'Utility Functions'!$AI$3:$AI$6,'Utility Functions'!$AJ$3:$AJ$6)","v":0.33},{"$f":"valuePL(T31,'Utility Functions'!$AK$3:$AK$8,'Utility Functions'!$AL$3:$AL$8)","v":0},{"$f":"valuePL(U31,'Utility Functions'!$AM$3:$AM$5,'Utility Functions'!$AN$3:$AN$5)","v":0},{"$f":"valuePL(V31,'Utility Functions'!$AO$3:$AO$5,'Utility Functions'!$AP$3:$AP$5)","v":0},{"$f":"valuePL(W31,'Utility Functions'!$AQ$3:$AQ$6,'Utility Functions'!$AR$3:$AR$6)","v":1},{"$f":"valuePL(X31,'Utility Functions'!$AS$3:$AS$6,'Utility Functions'!$AT$3:$AT$6)","v":0.2},{"$f":"valuePL(Y31,'Utility Functions'!$AU$3:$AU$6,'Utility Functions'!$AV$3:$AV$6)","v":0.8},{"$f":"valuePL(Z31,'Utility Functions'!$AW$3:$AW$5,'Utility Functions'!$AX$3:$AX$5)","v":0},{"$f":"valuePL(AA31,'Utility Functions'!$AY$3:$AY$6,'Utility Functions'!$AZ$3:$AZ$6)","v":0.89999999999999991},{"$f":"valuePL(AB31,'Utility Functions'!$BA$3:$BA$5,'Utility Functions'!$BB$3:$BB$5)","v":1},{"$f":"valuePL(AC31,'Utility Functions'!$BC$3:$BC$5,'Utility Functions'!$BD$3:$BD$5)","v":0},7.6494228467205527,null,7.6494228467205527,2.846089513387219,0.37333333333333329,0,0.53,3.9]
[31,{"$f":"valueE(B32,'Utility Functions'!$B$3,'Utility Functions'!$B$4,'Utility Functions'!$B$5,'Utility Functions'!$B$6)","v":0.55067187023002029},{"$f":"valueE(C32,'Utility Functions'!$D$3,'Utility Functions'!$D$4,'Utility Functions'!$D$5,'Utility Functions'!$D$6)","v":0.84744836833951609},{"$f":"valuePL(D32,'Utility Functions'!$E$3:$E$5,'Utility Functions'!$F$3:$F$5)","v":0.5},{"$f":"valuePL(E32,'Utility Functions'!$G$3:$G$5,'Utility Functions'!$H$3:$H$5)","v":0},{"$f":"valuePL(F32,'Utility Functions'!$I$3:$I$4,'Utility Functions'!$J$3:$J$5)","v":0},{"$f":"valueE(G32,'Utility Functions'!$L$3,'Utility Functions'!$L$4,'Utility Functions'!$L$5,'Utility Functions'!$L$6)","v":0},{"$f":"valueE(H32,'Utility Functions'!$N$3,'Utility Functions'!$N$4,'Utility Functions'!$N$5,'Utility Functions'!$N$6)","v":0},{"$f":"valuePL(I32,'Utility Functions'!$O$3:$O$6,'Utility Functions'!$P$3:$P$6)","v":0.75454545454545452},{"$f":"valuePL(J32,'Utility Functions'!$Q$3:$Q$6,'Utility Functions'!$R$3:$R$6)","v":0.08},{"$f":"valuePL(K32,'Utility Functions'!$S$3:$S$7,'Utility Functions'!$T$3:$T$7)","v":0},{"$f":"valueE(L32,'Utility Functions'!$V$3,'Utility Functions'!$V$4,'Utility Functions'!$V$5,'Utility Functions'!$V$6)","v":0.33333333333333331},{"$f":"valuePL(M32,'Utility Functions'!$W$3:$W$6,'Utility Functions'!$X$3:$X$6)","v":0.08},{"$f":"valueE(N32,'Utility Functions'!$Z$3,'Utility Functions'!$Z$4,'Utility Functions'!$Z$5,'Utility Functions'!$Z$6)","v":0},{"$f":"valuePL(O32,'Utility Functions'!$AA$3:$AA$5,'Utility Functions'!$AB$3:$AB$5)","v":0},{"$f":"valuePL(P32,'Utility Functions'!$AC$3:$AC$7,'Utility Functions'!$AD$3:$AD$7)","v":0.5},{"$f":"valuePL(Q32,'Utility Functions'!$AE$3:$AE$6,'Utility Functions'!$AF$3:$AF$6)","v":0},{"$f":"valuePL(R32,'Utility Functions'!$AG$3:$AG$6,'Utility Functions'!$AH$3:$AH$6)","v":1},{"$f":"valuePL(S32,'Utility Functions'!$AI$3:$AI$6,'Utility Functions'!$AJ$3:$AJ$6)","v":0.66},{"$f":"valuePL(T32,'Utility Functions'!$AK$3:$AK$8,'Utility Functions'!$AL$3:$AL$8)","v":0.6},{"$f":"valuePL(U32,'Utility Functions'!$AM$3:$AM$5,'Utility Functions'!$AN$3:$AN$5)","v":0},{"$f":"valuePL(V32,'Utility Functions'!$AO$3:$AO$5,'Utility Functions'!$AP$3:$AP$5)","v":0.5},{"$f":"valuePL(W32,'Utility Functions'!$AQ$3:$AQ$6,'Utility Functions'!$AR$3:$AR$6)","v":0},{"$f":"valuePL(X32,'Utility Functions'!$AS$3:$AS$6,'Utility Functions'!$AT$3:$AT$6)","v":0.2},{"$f":"valuePL(Y32,'Utility Functions'!$AU$3:$AU$6,'Utility Functions'!$AV$3:$AV$6)","v":0.2},{"$f":"valuePL(Z32,'Utility Functions'!$AW$3:$AW$5,'Utility Functions'!$AX$3:$AX$5)","v":1},{"$f":"valuePL(AA32,'Utility Functions'!$AY$3:$AY$6,'Utility Functions'!$AZ$3:$AZ$6)","v":0.89999999999999991},{"$f":"valuePL(AB32,'Utility Functions'!$BA$3:$BA$5,'Utility Functions'!$BB$3:$BB$5)","v":0.25},{"$f":"valuePL(AC32,'Utility Functions'!$BC$3:$BC$5,'Utility Functions'!$BD$3:$BD$5)","v":0.25},9.2059990264483247,null,9.2059990264483247,1.8981202385695364,1.2478787878787878,0,2.7600000000000002,3.3]
[32,{"$f":"valueE(B33,'Utility Functions'!$B$3,'Utility Functions'!$B$4,'Utility Functions'!$B$5,'Utility Functions'!$B$6)","v":0.63212151658375171},{"$f":"valueE(C33,'Utility Functions'!$D$3,'Utility Functions'!$D$4,'Utility Functions'!$D$5,'Utility Functions'!$D$6)","v":0.26839655623815994},{"$f":"valuePL(D33,'Utility Functions'!$E$3:$E$5,'Utility Functions'!$F$3:$F$5)","v":1},{"$f":"valuePL(E33,'Utility Functions'!$G$3:$G$5,'Utility Functions'!$H$3:$H$5)","v":1},{"$f":"valuePL(F33,'Utility Functions'!$I$3:$I$4,'Utility Functions'!$J$3:$J$5)","v":1},{"$f":"valueE(G33,'Utility Functions'!$L$3,'Utility Functions'!$L$4,'Utility Functions'!$L$5,'Utility Functions'!$L$6)","v":3.2258064516129031E-2},{"$f":"valueE(H33,'Utility Functions'!$N$3,'Utility Functions'!$N$4,'Utility Functions'!$N$5,'Utility Functions'!$N$6)","v":9.6774193548387094E-2},{"$f":"valuePL(I33,'Utility Functions'!$O$3:$O$6,'Utility Functions'!$P$3:$P$6)","v":0.34545454545454546},{"$f":"valuePL(J33,'Utility Functions'!$Q$3:$Q$6,'Utility Functions'!$R$3:$R$6)","v":1},{"$f":"valuePL(K33,'Utility Functions'!$S$3:$S$7,'Utility Functions'!$T$3:$T$7)","v":0.34545454545454546},{"$f":"valueE(L33,'Utility Functions'!$V$3,'Utility Functions'!$V$4,'Utility Functions'!$V$5,'Utility Functions'!$V$6)","v":1},{"$f":"valuePL(M33,'Utility Functions'!$W$3:$W$6,'Utility Functions'!$X$3:$X$6)","v":1},{"$f":"valueE(N33,'Utility Functions'!$Z$3,'Utility Functions'!$Z$4,'Utility Functions'!$Z$5,'Utility Functions'!$Z$6)","v":0},{"$f":"valuePL(O33,'Utility Functions'!$AA$3:$AA$5,'Utility Functions'!$AB$3:$AB$5)","v":0},{"$f":"valuePL(P33,'Utility Functions'!$AC$3:$AC$7,'Utility Functions'!$AD$3:$AD$7)","v":0.5},{"$f":"valuePL(Q33,'Utility Functions'!$AE$3:$AE$6,'Utility Functions'!$AF$3:$AF$6)","v":1},{"$f":"valuePL(R33,'Utility Functions'!$AG$3:$AG$6,'Utility Functions'!$AH$3:$AH$6)","v":1},{"$f":"valuePL(S33,'Utility Functions'!$AI$3:$AI$6,'Utility Functions'!$AJ$3:$AJ$6)","v":0},{"$f":"valuePL(T33,'Utility Functions'!$AK$3:$AK$8,'Utility Functions'!$AL$3:$AL$8)","v":0.8},{"$f":"valuePL(U33,'Utility Functions'!$AM$3:$AM$5,'Utility Functions'!$AN$3:$AN$5)","v":0},{"$f":"valuePL(V33,'Utility Functions'!$AO$3:$AO$5,'Utility Functions'!$AP$3:$AP$5)","v":0},{"$f":"valuePL(W33,'Utility Functions'!$AQ$3:$AQ$6,'Utility Functions'!$AR$3:$AR$6)","v":0.75},{"$f":"valuePL(X33,'Utility Functions'!$AS$3:$AS$6,'Utility Functions'!$AT$3:$AT$6)","v":0.2},{"$f":"valuePL(Y33,'Utility Functions'!$AU$3:$AU$6,'Utility Functions'!$AV$3:$AV$6)","v":0.8},{"$f":"valuePL(Z33,'Utility Functions'!$AW$3:$AW$5,'Utility Functions'!$AX$3:$AX$5)","v":0.5},{"$f":"valuePL(AA33,'Utility Functions'!$AY$3:$AY$6,'Utility Functions'!$AZ$3:$AZ$6)","v":0},{"$f":"valuePL(AB33,'Utility Functions'!$BA$3:$BA$5,'Utility Functions'!$BB$3:$BB$5)","v":1},{"$f":"valuePL(AC33,'Utility Functions'!$BC$3:$BC$5,'Utility Functions'!$BD$3:$BD$5)","v":0.25},14.52045942179552,null,14.520459421795518,3.9005180728219115,3.8199413489736074,0,3.3,3.5]
[33,{"$f":"valueE(B34,'Utility Functions'!$B$3,'Utility Functions'!$B$4,'Utility Functions'!$B$5,'Utility Functions'!$B$6)","v":0.93919136038504192},{"$f":"valueE(C34,'Utility Functions'!$D$3,'Utility Functions'!$D$4,'Utility Functions'!$D$5,'Utility Functions'!$D$6)","v":0.84744836833951609},{"$f":"valuePL(D34,'Utility Functions'!$E$3:$E$5,'Utility Functions'!$F$3:$F$5)","v":1},{"$f":"valuePL(E34,'Utility Functions'!$G$3:$G$5,'Utility Functions'!$H$3:$H$5)","v":0.5},{"$f":"valuePL(F34,'Utility Functions'!$I$3:$I$4,'Utility Functions'!$J$3:$J$5)","v":0},{"$f":"valueE(G34,'Utility Functions'!$L$3,'Utility Functions'!$L$4,'Utility Functions'!$L$5,'Utility Functions'!$L$6)","v":0},{"$f":"valueE(H34,'Utility Functions'!$N$3,'Utility Functions'!$N$4,'Utility Functions'!$N$5,'Utility Functions'!$N$6)","v":0},{"$f":"valuePL(I34,'Utility Functions'!$O$3:$O$6,'Utility Functions'!$P$3:$P$6)","v":0},{"$f":"valuePL(J34,'Utility Functions'!$Q$3:$Q$6,'Utility Functions'!$R$3:$R$6)","v":0},{"$f":"valuePL(K34,'Utility Functions'!$S$3:$S$7,'Utility Functions'!$T$3:$T$7)","v":0},{"$f":"valueE(L34,'Utility Functions'!$V$3,'Utility Functions'!$V$4,'Utility Functions'!$V$5,'Utility Functions'!$V$6)","v":0.5},{"$f":"valuePL(M34,'Utility Functions'!$W$3:$W$6,'Utility Functions'!$X$3:$X$6)","v":0},{"$f":"valueE(N34,'Utility Functions'!$Z$3,'Utility Functions'!$Z$4,'Utility Functions'!$Z$5,'Utility Functions'!$Z$6)","v":0},{"$f":"valuePL(O34,'Utility Functions'!$AA$3:$AA$5,'Utility Functions'!$AB$3:$AB$5)","v":0},{"$f":"valuePL(P34,'Utility Functions'!$AC$3:$AC$7,'Utility Functions'!$AD$3:$AD$7)","v":0.5},{"$f":"valuePL(Q34,'Utility Functions'!$AE$3:$AE$6,'Utility Functions'!$AF$3:$AF$6)","v":0},{"$f":"valuePL(R34,'Utility Functions'!$AG$3:$AG$6,'Utility Functions'!$AH$3:$AH$6)","v":1},{"$f":"valuePL(S34,'Utility Functions'!$AI$3:$AI$6,'Utility Functions'!$AJ$3:$AJ$6)","v":0.66},{"$f":"valuePL(T34,'Utility Functions'!$AK$3:$AK$8,'Utility Functions'!$AL$3:$AL$8)","v":0},{"$f":"valuePL(U34,'Utility Functions'!$AM$3:$AM$5,'Utility Functions'!$AN$3:$AN$5)","v":0},{"$f":"valuePL(V34,'Utility Functions'!$AO$3:$AO$5,'Utility Functions'!$AP$3:$AP$5)","v":0.5},{"$f":"valuePL(W34,'Utility Functions'!$AQ$3:$AQ$6,'Utility Functions'!$AR$3:$AR$6)","v":1},{"$f":"valuePL(X34,'Utility Functions'!$AS$3:$AS$6,'Utility Functions'!$AT$3:$AT$6)","v":0},{"$f":"valuePL(Y34,'Utility Functions'!$AU$3:$AU$6,'Utility Functions'!$AV$3:$AV$6)","v":0.8},{"$f":"valuePL(Z34,'Utility Functions'!$AW$3:$AW$5,'Utility Functions'!$AX$3:$AX$5)","v":1},{"$f":"valuePL(AA34,'Utility Functions'!$AY$3:$AY$6,'Utility Functions'!$AZ$3:$AZ$6)","v":1},{"$f":"valuePL(AB34,'Utility Functions'!$BA$3:$BA$5,'Utility Functions'!$BB$3:$BB$5)","v":0},{"$f":"valuePL(AC34,'Utility Functions'!$BC$3:$BC$5,'Utility Functions'!$BD$3:$BD$5)","v":0},10.246639728724558,null,10.246639728724558,3.2866397287245581,0.5,0,2.16,4.3]
[34,{"$f":"valueE(B35,'Utility Functions'!$B$3,'Utility Functions'!$B$4,'Utility Functions'!$B$5,'Utility Functions'!$B$6)","v":0},{"$f":"valueE(C35,'Utility Functions'!$D$3,'Utility Functions'!$D$4,'Utility Functions'!$D$5,'Utility Functions'!$D$6)","v":0},{"$f":"valuePL(D35,'Utility Functions'!$E$3:$E$5,'Utility Functions'!$F$3:$F$5)","v":0},{"$f":"valuePL(E35,'Utility Functions'!$G$3:$G$5,'Utility Functions'!$H$3:$H$5)","v":0},{"$f":"valuePL(F35,'Utility Functions'!$I$3:$I$4,'Utility Functions'!$J$3:$J$5)","v":0},{"$f":"valueE(G35,'Utility Functions'!$L$3,'Utility Functions'!$L$4,'Utility Functions'!$L$5,'Utility Functions'!$L$6)","v":0},{"$f":"valueE(H35,'Utility Functions'!$N$3,'Utility Functions'!$N$4,'Utility Functions'!$N$5,'Utility Functions'!$N$6)","v":1.1385199240986717E-2},{"$f":"valuePL(I35,'Utility Functions'!$O$3:$O$6,'Utility Functions'!$P$3:$P$6)","v":1},{"$f":"valuePL(J35,'Utility Functions'!$Q$3:$Q$6,'Utility Functions'!$R$3:$R$6)","v":0.91818181818181821},{"$f":"valuePL(K35,'Utility Functions'!$S$3:$S$7,'Utility Functions'!$T$3:$T$7)","v":1},{"$f":"valueE(L35,'Utility Functions'!$V$3,'Utility Functions'!$V$4,'Utility Functions'!$V$5,'Utility Functions'!$V$6)","v":1},{"$f":"valuePL(M35,'Utility Functions'!$W$3:$W$6,'Utility Functions'!$X$3:$X$6)","v":0.91818181818181821},{"$f":"valueE(N35,'Utility Functions'!$Z$3,'Utility Functions'!$Z$4,'Utility Functions'!$Z$5,'Utility Functions'!$Z$6)","v":0},{"$f":"valuePL(O35,'Utility Functions'!$AA$3:$AA$5,'Utility Functions'!$AB$3:$AB$5)","v":0},{"$f":"valuePL(P35,'Utility Functions'!$AC$3:$AC$7,'Utility Functions'!$AD$3:$AD$7)","v":0.5},{"$f":"valuePL(Q35,'Utility Functions'!$AE$3:$AE$6,'Utility Functions'!$AF$3:$AF$6)","v":0},{"$f":"valuePL(R35,'Utility Functions'!$AG$3:$AG$6,'Utility Functions'!$AH$3:$AH$6)","v":1},{"$f":"valuePL(S35,'Utility Functions'!$AI$3:$AI$6,'Utility Functions'!$AJ$3:$AJ$6)","v":1},{"$f":"valuePL(T35,'Utility Functions'!$AK$3:$AK$8,'Utility Functions'!$AL$3:$AL$8)","v":0.8},{"$f":"valuePL(U35,'Utility Functions'!$AM$3:$AM$5,'Utility Functions'!$AN$3:$AN$5)","v":0},{"$f":"valuePL(V35,'Utility Functions'!$AO$3:$AO$5,'Utility Functions'!$AP$3:$AP$5)","v":1},{"$f":"valuePL(W35,'Utility Functions'!$AQ$3:$AQ$6,'Utility Functions'!$AR$3:$AR$6)","v":1},{"$f":"valuePL(X35,'Utility Functions'!$AS$3:$AS$6,'Utility Functions'!$AT$3:$AT$6)","v":1},{"$f":"valuePL(Y35,'Utility Functions'!$AU$3:$AU$6,'Utility Functions'!$AV$3:$AV$6)","v":0},{"$f":"valuePL(Z35,'Utility Functions'!$AW$3:$AW$5,'Utility Functions'!$AX$3:$AX$5)","v":1},{"$f":"valuePL(AA35,'Utility Functions'!$AY$3:$AY$6,'Utility Functions'!$AZ$3:$AZ$6)","v":0.89999999999999991},{"$f":"valuePL(AB35,'Utility Functions'!$BA$3:$BA$5,'Utility Functions'!$BB$3:$BB$5)","v":0.25},{"$f":"valuePL(AC35,'Utility Functions'!$BC$3:$BC$5,'Utility Functions'!$BD$3:$BD$5)","v":0},13.297748835604624,null,13.297748835604624,0,4.847748835604623,0,3.3,5.15]
[35,{"$f":"valueE(B36,'Utility Functions'!$B$3,'Utility Functions'!$B$4,'Utility Functions'!$B$5,'Utility Functions'!$B$6)","v":0.79810469124896843},{"$f":"valueE(C36,'Utility Functions'!$D$3,'Utility Functions'!$D$4,'Utility Functions'!$D$5,'Utility Functions'!$D$6)","v":0.60939983135101949},{"$f":"valuePL(D36,'Utility Functions'!$E$3:$E$5,'Utility Functions'!$F$3:$F$5)","v":0.5},{"$f":"valuePL(E36,'Utility Functions'!$G$3:$G$5,'Utility Functions'!$H$3:$H$5)","v":0.5},{"$f":"valuePL(F36,'Utility Functions'!$I$3:$I$4,'Utility Functions'!$J$3:$J$5)","v":1},{"$f":"valueE(G36,'Utility Functions'!$L$3,'Utility Functions'!$L$4,'Utility Functions'!$L$5,'Utility Functions'!$L$6)","v":0},{"$f":"valueE(H36,'Utility Functions'!$N$3,'Utility Functions'!$N$4,'Utility Functions'!$N$5,'Utility Functions'!$N$6)","v":0},{"$f":"valuePL(I36,'Utility Functions'!$O$3:$O$6,'Utility Functions'!$P$3:$P$6)","v":0},{"$f":"valuePL(J36,'Utility Functions'!$Q$3:$Q$6,'Utility Functions'!$R$3:$R$6)","v":0},{"$f":"valuePL(K36,'Utility Functions'!$S$3:$S$7,'Utility Functions'!$T$3:$T$7)","v":1},{"$f":"valueE(L36,'Utility Functions'!$V$3,'Utility Functions'!$V$4,'Utility Functions'!$V$5,'Utility Functions'!$V$6)","v":0.66666666666666663},{"$f":"valuePL(M36,'Utility Functions'!$W$3:$W$6,'Utility Functions'!$X$3:$X$6)","v":0.1},{"$f":"valueE(N36,'Utility Functions'!$Z$3,'Utility Functions'!$Z$4,'Utility Functions'!$Z$5,'Utility Functions'!$Z$6)","v":1},{"$f":"valuePL(O36,'Utility Functions'!$AA$3:$AA$5,'Utility Functions'!$AB$3:$AB$5)","v":0},{"$f":"valuePL(P36,'Utility Functions'!$AC$3:$AC$7,'Utility Functions'!$AD$3:$AD$7)","v":0},{"$f":"valuePL(Q36,'Utility Functions'!$AE$3:$AE$6,'Utility Functions'!$AF$3:$AF$6)","v":0},{"$f":"valuePL(R36,'Utility Functions'!$AG$3:$AG$6,'Utility Functions'!$AH$3:$AH$6)","v":1},{"$f":"valuePL(S36,'Utility Functions'!$AI$3:$AI$6,'Utility Functions'!$AJ$3:$AJ$6)","v":1},{"$f":"valuePL(T36,'Utility Functions'!$AK$3:$AK$8,'Utility Functions'!$AL$3:$AL$8)","v":0.6},{"$f":"valuePL(U36,'Utility Functions'!$AM$3:$AM$5,'Utility Functions'!$AN$3:$AN$5)","v":0},{"$f":"valuePL(V36,'Utility Functions'!$AO$3:$AO$5,'Utility Functions'!$AP$3:$AP$5)","v":1},{"$f":"valuePL(W36,'Utility Functions'!$AQ$3:$AQ$6,'Utility Functions'!$AR$3:$AR$6)","v":0.75},{"$f":"valuePL(X36,'Utility Functions'!$AS$3:$AS$6,'Utility Functions'!$AT$3:$AT$6)","v":0},{"$f":"valuePL(Y36,'Utility Functions'!$AU$3:$AU$6,'Utility Functions'!$AV$3:$AV$6)","v":0.2},{"$f":"valuePL(Z36,'Utility Functions'!$AW$3:$AW$5,'Utility Functions'!$AX$3:$AX$5)","v":1},{"$f":"valuePL(AA36,'Utility Functions'!$AY$3:$AY$6,'Utility Functions'!$AZ$3:$AZ$6)","v":0},{"$f":"valuePL(AB36,'Utility Functions'!$BA$3:$BA$5,'Utility Functions'!$BB$3:$BB$5)","v":0.25},{"$f":"valuePL(AC36,'Utility Functions'!$BC$3:$BC$5,'Utility Functions'!$BD$3:$BD$5)","v":0.25},12.224171189266654,null,12.224171189266656,3.407504522599988,1.7666666666666666,1,2.6,3.45]
["Unweighted",{"$f":"SUMPRODUCT(B46:B80,$B$85:$B$119)","v":2.7136958452282869},{"$f":"SUMPRODUCT(C46:C80,$B$85:$B$119)","v":3.3322448952127779},{"$f":"SUMPRODUCT(D46:D80,$B$85:$B$119)","v":3.5},0.5,0,0.94623655913978499,0.3206831119544592,0.75454545454545452,0.08,0,0.66666666666666663,0.12,2,{"$f":"SUMPRODUCT(O46:O80,$B$85:$B$119)","v":0.5},1.25,1.6,4.2,3.99,2.2000000000000002,0.25,3,2.15,2.6000000000000005,2.8000000000000003,3,3.0999999999999996,3.5,1.25,null,null,"Unweighted",{"$f":"SUMPRODUCT(AG46:AG80,$B$85:$B$119)","v":10.045940740441065},{"$f":"SUMPRODUCT(AH46:AH80,$B$85:$B$119)","v":2.8881317923063654},2.5,13.489999999999998,21.4]
["Weighted",{"$f":"B$81*Sens_Int!I$5","v":5.6618751786511164E-2},{"$f":"C$81*Sens_Int!J$5","v":6.5722955638392436E-2},{"$f":"D$81*Sens_Int!K$5","v":6.9910724308818395E-2},{"$f":"E$81*Sens_Int!L$5","v":9.7301152550498659E-3},{"$f":"F$81*Sens_Int!M$5","v":0},{"$f":"G$81*Sens_Int!N$5","v":9.2415925412087548E-3},{"$f":"H$81*Sens_Int!O$5","v":3.1320103064123249E-3},{"$f":"I$81*Sens_Int!P$5","v":1.2509483420897013E-2},{"$f":"J$81*Sens_Int!Q$5","v":1.2924194837102743E-3},{"$f":"K$81*Sens_Int!R$5","v":0},{"$f":"L$81*Sens_Int!S$5","v":9.7258368497629578E-3},{"$f":"M$81*Sens_Int!T$5","v":1.3218742001287254E-3},{"$f":"N$81*Sens_Int!U$5","v":3.9473684210526314E-2},{"$f":"O$81*Sens_Int!V$5","v":2.9605263157894735E-2},{"$f":"P$81*Sens_Int!W$5","v":0.10296208308570734},{"$f":"Q$81*Sens_Int!X$5","v":0.14527545700903252},{"$f":"R$81*Sens_Int!Y$5","v":0.43650943936272085},{"$f":"S$81*Sens_Int!Z$5","v":0.36320174432424485},{"$f":"T$81*Sens_Int!AA$5","v":0.14576522026065838},{"$f":"U$81*Sens_Int!AB$5","v":1.6404357402075423E-2},{"$f":"V$81*Sens_Int!AC$5","v":0.10747967329190648},{"$f":"W$81*Sens_Int!AD$5","v":5.5549738913742472E-2},{"$f":"X$81*Sens_Int!AE$5","v":7.1841107093027892E-2},{"$f":"Y$81*Sens_Int!AF$5","v":9.6142321500880673E-2},{"$f":"Z$81*Sens_Int!AG$5","v":8.9255372404513769E-2},{"$f":"AA$81*Sens_Int!AH$5","v":7.1464612171236924E-2},{"$f":"AB$81*Sens_Int!AI$5","v":8.5568832735709741E-2},{"$f":"AC$81*Sens_Int!AJ$5","v":2.8499621300182815E-2},null,null,"Weighted for SA",{"$f":"AG81*#REF!","v":{"$error":"#REF!"}},{"$f":"AH81*#REF!","v":{"$error":"#REF!"}},{"$f":"AI81*#REF!","v":{"$error":"#REF!"}},{"$f":"AJ81*#REF!","v":{"$error":"#REF!"}},{"$f":"AK81*#REF!","v":{"$error":"#REF!"}}]
[]
[null,"Decision variable","Benefit","Cost"]
[{"$f":"A2","v":1},0,{"$f":"AD46","v":17.117643866192076},{"$f":"AD2","v":700000}]
[2,0,{"$f":"AD47","v":12.641625800575998},{"$f":"AD3","v":5400000}]
[3,0,11.563541444302563,250000]
[4,0,9.2460291931089209,150000]
[5,0,9.5663279251355373,220000]
[6,0,5.9008471271383875,110000]
[7,0,15.54287399641135,1000000]
[8,0,14.227364688589191,5000000]
[9,0,11.893773577166716,25000]
[10,0,9.01,900000]
[11,0,13.174032258064516,1500000]
[12,1,9.4195802436719873,100000]
[13,0,7.5245670174228056,250000]
[14,0,10.338706637075108,500000]
[15,0,15.150477261414375,800000]
[16,0,15.119696969696969,2000000]
[17,0,10.876550515651747,500000]
[18,1,10.178462998102468,300000]
[19,0,9.3165012474871283,750000]
[20,0,15.091255033092194,1500000]
[21,0,9.5500000000000007,900000]
[22,0,9.471742567994939,750000]
[23,0,9.5321507448123199,1000000]
[24,0,9.4968811881212041,150000]
[25,1,13.870607417804099,250000]
[26,0,11.064076562960208,500000]
[27,0,9.0147596715374529,1200000]
[28,0,12.499282052393189,500000]
[29,0,12.453684519169958,2000000]
[30,1,7.6494228467205527,250000]
[31,1,9.2059990264483247,650000]
[32,0,14.52045942179552,200000]
[33,0,10.246639728724558,400000]
[34,0,13.297748835604624,900000]
[35,0,12.224171189266654,900000]
[null,{"$f":"SUM(B85:B119)","v":5},{"$f":"SUMPRODUCT(C85:C119,B85:B119)","v":50.324072532747437},{"$f":"SUMPRODUCT(B85:B119,D85:D119)","v":1550000}]
[]
[null,null,"Cost constraint"]

{"sheet":"Portfolio_B_Int","index":29,"n_rows":122,"n_cols":37,"rows_kept":122,"cut":false,"hidden":false,"merged":[]}
["Project","manage_species","manage_spatial","manage_uncertainty","manage_currentpractices","manage_adaptivemanagement","pop_a","pop_b","pop_spatialscope","pop_temporalscope","hab_quantity","hab_quality","hab_temporal","ecoprocess_spp","ecoprocess_uncertainty","datasharing","broaderimpacts","exisitingpriorities","partners","leverage","alignment","objhyp","response","targettaxa","surveydesign","stats","datamanagement","budget","timeline","cost"]
[1,9,6.25,2,2,0,186,1054,75,5,0,2,0,0,0,4,0,2,3,0,0,2,3,3,3,2,3,2,2,700000]
[2,3,28.2,1,0,0,0,0,0,0,0,2,0,4,1,0,0,3,3,0,0,2,3,3,3,2,3,2,2,5400000]
[3,8,28.2,2,0,0,0,0,0,0,0,2,0,5,1,0,2,0,0,0,1,2,3,3,3,2,1,2,2,250000]
[4,1,6.25,2,0,0,0,0,0,0,0,2,0,4,1,0,1,3,3,4,0,1,3,3,1,0,0,2,1,150000]
[5,4,3.1,2,0,0,0,0,50,2,0,2,0,0,0,0,1,3,3,4,1,0,3,3,2,0,0,2,1,220000]
[6,10,6.2E-2,2,0,0,0,0,10,2,0,2,0,0,0,0,1,0,3,3,0,0,0,3,0,0,0,2,1,110000]
[7,52,18.8,0,2,0,0,0,85,12,85,8,12,8,1,0,0,3,3,0,0,2,0,1,3,2,2,0,2,1000000]
[8,3,18.8,2,1,1,0,0,14,14,14,8,14,0,0,0,3,1,3,0,0,2,3,3,3,2,0,1,1,5000000]
[9,9,15.6,2,1,0,70,140,0,0,0,2,0,0,0,3,0,3,2,1,0,2,3,3,1,2,1,1,2,25000]
[10,0,0,0,0,0,0,0,0,0,0,2,0,6,2,1,2,3,2,2,0,0,2,3,3,1,1,0,2,900000]
[11,0,0,0,0,0,6,102,52,15,52,8,15,3,1,1,0,3,3,2,2,2,1,3,3,1,2,0,1,1500000]
[12,2,15.6,2,1,0,0,0,0,0,0,2,0,0,0,0,1,3,3,3,0,1,1,3,1,2,1,2,0,100000]
[13,0,0,0,0,0,0,12,39,2,39,8,2,7,1,1,0,3,3,0,0,1,0,1,0,2,1,1,1,250000]
[14,6,15.6,1,1,0,0,0,0,0,0,2,0,6,1,1,0,3,3,0,0,1,1,3,3,1,2,1,1,500000]
[15,23,12.5,2,1,1,0,0,23,3,23,8,3,1,2,2,0,2,3,3,2,0,3,1,1,2,3,2,1,800000]
[16,0,0,0,0,0,0,0,100,15,100,7,15,0,0,3,0,3,3,5,0,2,2,2,1,2,3,2,2,2000000]
[17,2,15.6,2,1,1,58,290,0,0,0,8,3,0,0,0,0,3,2,0,0,2,3,1,0,1,0,2,1,500000]
[18,0,0,0,0,0,0,30,0,0,0,2,0,8,1,1,3,3,3,5,1,2,2,1,2,1,2,1,0,300000]
[19,8,3.125,1,2,0,0,0,0,0,0,2,0,8,2,0,0,2,3,0,0,1,1,3,2,0,1,0,1,750000]
[20,9,15.6,1,2,0,0,435,76,10,76,6,10,8,2,1,0,3,3,3,2,1,0,0,1,2,1,0,1,1500000]
[21,0,0,0,0,0,0,0,0,0,0,2,0,8,2,0,1,3,3,5,1,0,2,3,1,0,3,1,2,900000]
[22,0,0,0,0,0,16,64,0,0,0,2,0,1,2,4,2,2,3,5,0,1,2,1,0,2,1,2,1,750000]
[23,9,18.8,2,0,0,0,0,0,0,0,2,0,0,0,3,0,3,3,5,0,2,1,2,1,1,1,0,1,1000000]
[24,5,6.25,2,0,0,0,0,0,0,0,2,0,0,0,0,0,3,3,5,0,0,3,1,3,2,1,0,2,150000]
[25,9,18.8,2,0,0,176,308,0,0,0,2,0,8,1,2,2,3,3,0,0,2,1,3,2,1,1,2,2,250000]
[26,17,18.8,2,1,0,0,0,0,0,0,2,0,0,0,3,0,3,3,4,0,2,1,0,2,0,1,2,2,500000]
[27,0,6.25,2,0,0,0,0,0,0,80,2,5,0,0,2,2,3,3,5,0,1,2,3,1,0,0,0,0,1200000]
[28,3,6.25,2,0,1,0,0,0,0,0,4,5,0,0,4,0,3,3,4,0,2,3,3,1,0,2,2,1,500000]
[29,9,12.5,2,1,0,0,0,15,12,15,8,12,0,0,1,0,3,3,4,0,2,1,0,2,1,1,1,2,2000000]
[30,33,18.8,2,0,0,0,0,0,0,0,4,2,0,0,0,0,1,1,0,0,0,3,1,2,0,2,2,0,250000]
[31,4,18.8,1,0,0,0,0,65,4,0,4,4,0,0,2,0,3,2,3,0,1,0,1,1,2,2,1,1,650000]
[32,5,3.125,2,2,1,6,102,40,16,40,8,16,0,0,2,3,3,0,4,0,0,2,1,2,1,0,2,1,200000]
[33,14,18.8,2,1,0,0,0,0,0,0,5,0,0,0,2,0,3,2,0,0,1,3,0,2,2,3,0,0,400000]
[34,0,0,0,0,0,0,12,100,15,100,8,15,0,0,2,0,3,3,4,0,2,3,3,0,2,2,1,0,900000]
[35,8,9.4,1,1,1,0,0,0,0,100,6,5,8,0,0,0,3,3,3,0,2,2,0,1,2,0,1,1,900000]
["CV",{"$f":"_xlfn.STDEV.S(B2:B36)/AVERAGE(B2:B36)","v":1.383842854444886},{"$f":"_xlfn.STDEV.S(C2:C36)/AVERAGE(C2:C36)","v":0.84395823753626376},{"$f":"_xlfn.STDEV.S(D2:D36)/AVERAGE(D2:D36)","v":0.65948586466528381},{"$f":"_xlfn.STDEV.S(E2:E36)/AVERAGE(E2:E36)","v":1.2933654230908831},2.2305806858480666,2.9881459898804135,2.7250501152884543,1.5394659205075842,1.5790297611729722,1.6828143944790142,0.63288342730791625,1.4346340567392073,1.2744250477591585,1.2909944487358058,1.043011114951035,1.4910544805781871,0.32582327651393111,0.30721159062514791,0.8219511329380369,2.1760730956581078,0.64975875258290616,0.58618247649425104,0.61083323417736113,0.63333947951472869,0.68629571860885286,0.76505300516434493,0.69428102652373402,0.60312027652595823]
["sd",{"$f":"_xlfn.STDEV.S(B2:B36)","v":10.477667326511279}]
["mean",{"$f":"AVERAGE(B2:B36)","v":7.5714285714285712}]
[null,{"$f":"B1","v":"manage_species"},{"$f":"C1","v":"manage_spatial"},"manage_uncertainty","manage_currentpractices","manage_adaptivemanagement","pop_a","pop_b","pop_spatialscope","pop_temporalscope","hab_quantity","hab_quality","hab_temporal","ecoprocess_spp","ecoprocess_uncertainty","datasharing","broaderimpacts","exisitingpriorities","partners","leverage","alignment","objhyp","response","targettaxa","surveydesign","stats","datamanagement","budget","timeline"]
[null,"Metric 1","Metric 2","Metric 3","Metric 4","Metric 5","Metric 6a","Metric 6b","Metric 7","Metric 8","Metric 9","Metric 10","Metric 11","Metric 12","Metric 13","Metric 14","Metric 15","Metric 16","Metric 17","Metric 18","Metric 19","Metric 20","Metric 21","Metric 22","Metric 23","Metric 24","Metric 25","Metric 26","Metric 27"]
["Weights",0.03,0.03,0.03,0.03,0.04,1.4999999999999999E-2,1.4999999999999999E-2,0.03,0.02,0.02,0.02,0.02,0.03,0.09,0.04,0.04,0.05,0.05,0.03,0.03,0.05,0.04,0.04,0.05,0.05,0.04,0.04,0.03]
[]
[null,"Unweighted"]
["Project",null,null,null,null,null,null,null,null,null,null,null,null,null,null,null,null,null,null,null,null,null,null,null,null,null,null,null,null,"Unweighted total",null,"Unweighted total","management","status","ecol_proc","integration","rigor"]
[{"$f":"A2","v":1},{"$f":"valueE(B2,'Utility Functions'!$B$3,'Utility Functions'!$B$4,'Utility Functions'!$B$5,'Utility Functions'!$B$6)","v":0.83470237647280454},{"$f":"valueE(C2,'Utility Functions'!$D$3,'Utility Functions'!$D$4,'Utility Functions'!$D$5,'Utility Functions'!$D$6)","v":0.46475967153745396},{"$f":"valuePL(D2,'Utility Functions'!$E$3:$E$5,'Utility Functions'!$F$3:$F$5)","v":1},{"$f":"valuePL(E2,'Utility Functions'!$G$3:$G$5,'Utility Functions'!$H$3:$H$5)","v":1},{"$f":"valuePL(F2,'Utility Functions'!$I$3:$I$4,'Utility Functions'!$J$3:$J$5)","v":0},{"$f":"valueE(G2,'Utility Functions'!$L$3,'Utility Functions'!$L$4,'Utility Functions'!$L$5,'Utility Functions'!$L$6)","v":1},{"$f":"valueE(H2,'Utility Functions'!$N$3,'Utility Functions'!$N$4,'Utility Functions'!$N$5,'Utility Functions'!$N$6)","v":1},{"$f":"valuePL(I2,'Utility Functions'!$O$3:$O$6,'Utility Functions'!$P$3:$P$6)","v":0.91818181818181821},{"$f":"valuePL(J2,'Utility Functions'!$Q$3:$Q$6,'Utility Functions'!$R$3:$R$6)","v":0.1},{"$f":"valuePL(K2,'Utility Functions'!$S$3:$S$7,'Utility Functions'!$T$3:$T$7)","v":0},{"$f":"valueE(L2,'Utility Functions'!$V$3,'Utility Functions'!$V$4,'Utility Functions'!$V$5,'Utility Functions'!$V$6)","v":0},{"$f":"valuePL(M2,'Utility Functions'!$W$3:$W$6,'Utility Functions'!$X$3:$X$6)","v":0},{"$f":"valueE(N2,'Utility Functions'!$Z$3,'Utility Functions'!$Z$4,'Utility Functions'!$Z$5,'Utility Functions'!$Z$6)","v":0},{"$f":"valuePL(O2,'Utility Functions'!$AA$3:$AA$5,'Utility Functions'!$AB$3:$AB$5)","v":0},{"$f":"valuePL(P2,'Utility Functions'!$AC$3:$AC$7,'Utility Functions'!$AD$3:$AD$7)","v":1},{"$f":"valuePL(Q2,'Utility Functions'!$AE$3:$AE$6,'Utility Functions'!$AF$3:$AF$6)","v":0},{"$f":"valuePL(R2,'Utility Functions'!$AG$3:$AG$6,'Utility Functions'!$AH$3:$AH$6)","v":0.8},{"$f":"valuePL(S2,'Utility Functions'!$AI$3:$AI$6,'Utility Functions'!$AJ$3:$AJ$6)","v":1},{"$f":"valuePL(T2,'Utility Functions'!$AK$3:$AK$8,'Utility Functions'!$AL$3:$AL$8)","v":0},{"$f":"valuePL(U2,'Utility Functions'!$AM$3:$AM$5,'Utility Functions'!$AN$3:$AN$5)","v":0},{"$f":"valuePL(V2,'Utility Functions'!$AO$3:$AO$5,'Utility Functions'!$AP$3:$AP$5)","v":1},{"$f":"valuePL(W2,'Utility Functions'!$AQ$3:$AQ$6,'Utility Functions'!$AR$3:$AR$6)","v":1},{"$f":"valuePL(X2,'Utility Functions'!$AS$3:$AS$6,'Utility Functions'!$AT$3:$AT$6)","v":1},{"$f":"valuePL(Y2,'Utility Functions'!$AU$3:$AU$6,'Utility Functions'!$AV$3:$AV$6)","v":1},{"$f":"valuePL(Z2,'Utility Functions'!$AW$3:$AW$5,'Utility Functions'!$AX$3:$AX$5)","v":1},{"$f":"valuePL(AA2,'Utility Functions'!$AY$3:$AY$6,'Utility Functions'!$AZ$3:$AZ$6)","v":1},{"$f":"valuePL(AB2,'Utility Functions'!$BA$3:$BA$5,'Utility Functions'!$BB$3:$BB$5)","v":1},{"$f":"valuePL(AC2,'Utility Functions'!$BC$3:$BC$5,'Utility Functions'!$BD$3:$BD$5)","v":1},{"$f":"SUM(B46:AC46)","v":17.117643866192076},null,{"$f":"SUM(AG46:AK46)","v":17.117643866192076},{"$f":"SUM(B46:F46)","v":3.2994620480102586},{"$f":"SUM(G46:M46)","v":3.0181818181818181},{"$f":"SUM(N46:O46)","v":0},{"$f":"SUM(P46:U46)","v":2.8},{"$f":"SUM(V46:AC46)","v":8}]
[2,{"$f":"valueE(B3,'Utility Functions'!$B$3,'Utility Functions'!$B$4,'Utility Functions'!$B$5,'Utility Functions'!$B$6)","v":0.4511890475224023},{"$f":"valueE(C3,'Utility Functions'!$D$3,'Utility Functions'!$D$4,'Utility Functions'!$D$5,'Utility Functions'!$D$6)","v":0.94043675305359531},{"$f":"valuePL(D3,'Utility Functions'!$E$3:$E$5,'Utility Functions'!$F$3:$F$5)","v":0.5},{"$f":"valuePL(E3,'Utility Functions'!$G$3:$G$5,'Utility Functions'!$H$3:$H$5)","v":0},{"$f":"valuePL(F3,'Utility Functions'!$I$3:$I$4,'Utility Functions'!$J$3:$J$5)","v":0},{"$f":"valueE(G3,'Utility Functions'!$L$3,'Utility Functions'!$L$4,'Utility Functions'!$L$5,'Utility Functions'!$L$6)","v":0},{"$f":"valueE(H3,'Utility Functions'!$N$3,'Utility Functions'!$N$4,'Utility Functions'!$N$5,'Utility Functions'!$N$6)","v":0},{"$f":"valuePL(I3,'Utility Functions'!$O$3:$O$6,'Utility Functions'!$P$3:$P$6)","v":0},{"$f":"valuePL(J3,'Utility Functions'!$Q$3:$Q$6,'Utility Functions'!$R$3:$R$6)","v":0},{"$f":"valuePL(K3,'Utility Functions'!$S$3:$S$7,'Utility Functions'!$T$3:$T$7)","v":0},{"$f":"valueE(L3,'Utility Functions'!$V$3,'Utility Functions'!$V$4,'Utility Functions'!$V$5,'Utility Functions'!$V$6)","v":0},{"$f":"valuePL(M3,'Utility Functions'!$W$3:$W$6,'Utility Functions'!$X$3:$X$6)","v":0},{"$f":"valueE(N3,'Utility Functions'!$Z$3,'Utility Functions'!$Z$4,'Utility Functions'!$Z$5,'Utility Functions'!$Z$6)","v":0.5},{"$f":"valuePL(O3,'Utility Functions'!$AA$3:$AA$5,'Utility Functions'!$AB$3:$AB$5)","v":0.25},{"$f":"valuePL(P3,'Utility Functions'!$AC$3:$AC$7,'Utility Functions'!$AD$3:$AD$7)","v":0},{"$f":"valuePL(Q3,'Utility Functions'!$AE$3:$AE$6,'Utility Functions'!$AF$3:$AF$6)","v":0},{"$f":"valuePL(R3,'Utility Functions'!$AG$3:$AG$6,'Utility Functions'!$AH$3:$AH$6)","v":1},{"$f":"valuePL(S3,'Utility Functions'!$AI$3:$AI$6,'Utility Functions'!$AJ$3:$AJ$6)","v":1},{"$f":"valuePL(T3,'Utility Functions'!$AK$3:$AK$8,'Utility Functions'!$AL$3:$AL$8)","v":0},{"$f":"valuePL(U3,'Utility Functions'!$AM$3:$AM$5,'Utility Functions'!$AN$3:$AN$5)","v":0},{"$f":"valuePL(V3,'Utility Functions'!$AO$3:$AO$5,'Utility Functions'!$AP$3:$AP$5)","v":1},{"$f":"valuePL(W3,'Utility Functions'!$AQ$3:$AQ$6,'Utility Functions'!$AR$3:$AR$6)","v":1},{"$f":"valuePL(X3,'Utility Functions'!$AS$3:$AS$6,'Utility Functions'!$AT$3:$AT$6)","v":1},{"$f":"valuePL(Y3,'Utility Functions'!$AU$3:$AU$6,'Utility Functions'!$AV$3:$AV$6)","v":1},{"$f":"valuePL(Z3,'Utility Functions'!$AW$3:$AW$5,'Utility Functions'!$AX$3:$AX$5)","v":1},{"$f":"valuePL(AA3,'Utility Functions'!$AY$3:$AY$6,'Utility Functions'!$AZ$3:$AZ$6)","v":1},{"$f":"valuePL(AB3,'Utility Functions'!$BA$3:$BA$5,'Utility Functions'!$BB$3:$BB$5)","v":1},{"$f":"valuePL(AC3,'Utility Functions'!$BC$3:$BC$5,'Utility Functions'!$BD$3:$BD$5)","v":1},{"$f":"SUM(B47:AC47)","v":12.641625800575998},null,{"$f":"SUM(AG47:AK47)","v":12.641625800575998},{"$f":"SUM(B47:F47)","v":1.8916258005759976},{"$f":"SUM(G47:M47)","v":0},{"$f":"SUM(N47:O47)","v":0.75},{"$f":"SUM(P47:U47)","v":2},{"$f":"SUM(V47:AC47)","v":8}]
[3,{"$f":"valueE(B4,'Utility Functions'!$B$3,'Utility Functions'!$B$4,'Utility Functions'!$B$5,'Utility Functions'!$B$6)","v":0.79810469124896843},{"$f":"valueE(C4,'Utility Functions'!$D$3,'Utility Functions'!$D$4,'Utility Functions'!$D$5,'Utility Functions'!$D$6)","v":0.94043675305359531},{"$f":"valuePL(D4,'Utility Functions'!$E$3:$E$5,'Utility Functions'!$F$3:$F$5)","v":1},{"$f":"valuePL(E4,'Utility Functions'!$G$3:$G$5,'Utility Functions'!$H$3:$H$5)","v":0},{"$f":"valuePL(F4,'Utility Functions'!$I$3:$I$4,'Utility Functions'!$J$3:$J$5)","v":0},{"$f":"valueE(G4,'Utility Functions'!$L$3,'Utility Functions'!$L$4,'Utility Functions'!$L$5,'Utility Functions'!$L$6)","v":0},{"$f":"valueE(H4,'Utility Functions'!$N$3,'Utility Functions'!$N$4,'Utility Functions'!$N$5,'Utility Functions'!$N$6)","v":0},{"$f":"valuePL(I4,'Utility Functions'!$O$3:$O$6,'Utility Functions'!$P$3:$P$6)","v":0},{"$f":"valuePL(J4,'Utility Functions'!$Q$3:$Q$6,'Utility Functions'!$R$3:$R$6)","v":0},{"$f":"valuePL(K4,'Utility Functions'!$S$3:$S$7,'Utility Functions'!$T$3:$T$7)","v":0},{"$f":"valueE(L4,'Utility Functions'!$V$3,'Utility Functions'!$V$4,'Utility Functions'!$V$5,'Utility Functions'!$V$6)","v":0},{"$f":"valuePL(M4,'Utility Functions'!$W$3:$W$6,'Utility Functions'!$X$3:$X$6)","v":0},{"$f":"valueE(N4,'Utility Functions'!$Z$3,'Utility Functions'!$Z$4,'Utility Functions'!$Z$5,'Utility Functions'!$Z$6)","v":0.625},{"$f":"valuePL(O4,'Utility Functions'!$AA$3:$AA$5,'Utility Functions'!$AB$3:$AB$5)","v":0.25},{"$f":"valuePL(P4,'Utility Functions'!$AC$3:$AC$7,'Utility Functions'!$AD$3:$AD$7)","v":0},{"$f":"valuePL(Q4,'Utility Functions'!$AE$3:$AE$6,'Utility Functions'!$AF$3:$AF$6)","v":0.5},{"$f":"valuePL(R4,'Utility Functions'!$AG$3:$AG$6,'Utility Functions'!$AH$3:$AH$6)","v":0},{"$f":"valuePL(S4,'Utility Functions'!$AI$3:$AI$6,'Utility Functions'!$AJ$3:$AJ$6)","v":0},{"$f":"valuePL(T4,'Utility Functions'!$AK$3:$AK$8,'Utility Functions'!$AL$3:$AL$8)","v":0},{"$f":"valuePL(U4,'Utility Functions'!$AM$3:$AM$5,'Utility Functions'!$AN$3:$AN$5)","v":0.25},{"$f":"valuePL(V4,'Utility Functions'!$AO$3:$AO$5,'Utility Functions'!$AP$3:$AP$5)","v":1},{"$f":"valuePL(W4,'Utility Functions'!$AQ$3:$AQ$6,'Utility Functions'!$AR$3:$AR$6)","v":1},{"$f":"valuePL(X4,'Utility Functions'!$AS$3:$AS$6,'Utility Functions'!$AT$3:$AT$6)","v":1},{"$f":"valuePL(Y4,'Utility Functions'!$AU$3:$AU$6,'Utility Functions'!$AV$3:$AV$6)","v":1},{"$f":"valuePL(Z4,'Utility Functions'!$AW$3:$AW$5,'Utility Functions'!$AX$3:$AX$5)","v":1},{"$f":"valuePL(AA4,'Utility Functions'!$AY$3:$AY$6,'Utility Functions'!$AZ$3:$AZ$6)","v":0.2},{"$f":"valuePL(AB4,'Utility Functions'!$BA$3:$BA$5,'Utility Functions'!$BB$3:$BB$5)","v":1},{"$f":"valuePL(AC4,'Utility Functions'!$BC$3:$BC$5,'Utility Functions'!$BD$3:$BD$5)","v":1},11.563541444302563,null,11.563541444302565,2.7385414443025637,0,0.875,0.75,7.2]
[4,{"$f":"valueE(B5,'Utility Functions'!$B$3,'Utility Functions'!$B$4,'Utility Functions'!$B$5,'Utility Functions'!$B$6)","v":0.1812695215714665},{"$f":"valueE(C5,'Utility Functions'!$D$3,'Utility Functions'!$D$4,'Utility Functions'!$D$5,'Utility Functions'!$D$6)","v":0.46475967153745396},{"$f":"valuePL(D5,'Utility Functions'!$E$3:$E$5,'Utility Functions'!$F$3:$F$5)","v":1},{"$f":"valuePL(E5,'Utility Functions'!$G$3:$G$5,'Utility Functions'!$H$3:$H$5)","v":0},{"$f":"valuePL(F5,'Utility Functions'!$I$3:$I$4,'Utility Functions'!$J$3:$J$5)","v":0},{"$f":"valueE(G5,'Utility Functions'!$L$3,'Utility Functions'!$L$4,'Utility Functions'!$L$5,'Utility Functions'!$L$6)","v":0},{"$f":"valueE(H5,'Utility Functions'!$N$3,'Utility Functions'!$N$4,'Utility Functions'!$N$5,'Utility Functions'!$N$6)","v":0},{"$f":"valuePL(I5,'Utility Functions'!$O$3:$O$6,'Utility Functions'!$P$3:$P$6)","v":0},{"$f":"valuePL(J5,'Utility Functions'!$Q$3:$Q$6,'Utility Functions'!$R$3:$R$6)","v":0},{"$f":"valuePL(K5,'Utility Functions'!$S$3:$S$7,'Utility Functions'!$T$3:$T$7)","v":0},{"$f":"valueE(L5,'Utility Functions'!$V$3,'Utility Functions'!$V$4,'Utility Functions'!$V$5,'Utility Functions'!$V$6)","v":0},{"$f":"valuePL(M5,'Utility Functions'!$W$3:$W$6,'Utility Functions'!$X$3:$X$6)","v":0},{"$f":"valueE(N5,'Utility Functions'!$Z$3,'Utility Functions'!$Z$4,'Utility Functions'!$Z$5,'Utility Functions'!$Z$6)","v":0.5},{"$f":"valuePL(O5,'Utility Functions'!$AA$3:$AA$5,'Utility Functions'!$AB$3:$AB$5)","v":0.25},{"$f":"valuePL(P5,'Utility Functions'!$AC$3:$AC$7,'Utility Functions'!$AD$3:$AD$7)","v":0},{"$f":"valuePL(Q5,'Utility Functions'!$AE$3:$AE$6,'Utility Functions'!$AF$3:$AF$6)","v":0.1},{"$f":"valuePL(R5,'Utility Functions'!$AG$3:$AG$6,'Utility Functions'!$AH$3:$AH$6)","v":1},{"$f":"valuePL(S5,'Utility Functions'!$AI$3:$AI$6,'Utility Functions'!$AJ$3:$AJ$6)","v":1},{"$f":"valuePL(T5,'Utility Functions'!$AK$3:$AK$8,'Utility Functions'!$AL$3:$AL$8)","v":0.8},{"$f":"valuePL(U5,'Utility Functions'!$AM$3:$AM$5,'Utility Functions'!$AN$3:$AN$5)","v":0},{"$f":"valuePL(V5,'Utility Functions'!$AO$3:$AO$5,'Utility Functions'!$AP$3:$AP$5)","v":0.5},{"$f":"valuePL(W5,'Utility Functions'!$AQ$3:$AQ$6,'Utility Functions'!$AR$3:$AR$6)","v":1},{"$f":"valuePL(X5,'Utility Functions'!$AS$3:$AS$6,'Utility Functions'!$AT$3:$AT$6)","v":1},{"$f":"valuePL(Y5,'Utility Functions'!$AU$3:$AU$6,'Utility Functions'!$AV$3:$AV$6)","v":0.2},{"$f":"valuePL(Z5,'Utility Functions'!$AW$3:$AW$5,'Utility Functions'!$AX$3:$AX$5)","v":0},{"$f":"valuePL(AA5,'Utility Functions'!$AY$3:$AY$6,'Utility Functions'!$AZ$3:$AZ$6)","v":0},{"$f":"valuePL(AB5,'Utility Functions'!$BA$3:$BA$5,'Utility Functions'!$BB$3:$BB$5)","v":1},{"$f":"valuePL(AC5,'Utility Functions'!$BC$3:$BC$5,'Utility Functions'!$BD$3:$BD$5)","v":0.25},9.2460291931089209,null,9.2460291931089209,1.6460291931089204,0,0.75,2.9000000000000004,3.95]
[5,{"$f":"valueE(B6,'Utility Functions'!$B$3,'Utility Functions'!$B$4,'Utility Functions'!$B$5,'Utility Functions'!$B$6)","v":0.55067187023002029},{"$f":"valueE(C6,'Utility Functions'!$D$3,'Utility Functions'!$D$4,'Utility Functions'!$D$5,'Utility Functions'!$D$6)","v":0.26656514581460788},{"$f":"valuePL(D6,'Utility Functions'!$E$3:$E$5,'Utility Functions'!$F$3:$F$5)","v":1},{"$f":"valuePL(E6,'Utility Functions'!$G$3:$G$5,'Utility Functions'!$H$3:$H$5)","v":0},{"$f":"valuePL(F6,'Utility Functions'!$I$3:$I$4,'Utility Functions'!$J$3:$J$5)","v":0},{"$f":"valueE(G6,'Utility Functions'!$L$3,'Utility Functions'!$L$4,'Utility Functions'!$L$5,'Utility Functions'!$L$6)","v":0},{"$f":"valueE(H6,'Utility Functions'!$N$3,'Utility Functions'!$N$4,'Utility Functions'!$N$5,'Utility Functions'!$N$6)","v":0},{"$f":"valuePL(I6,'Utility Functions'!$O$3:$O$6,'Utility Functions'!$P$3:$P$6)","v":0.50909090909090915},{"$f":"valuePL(J6,'Utility Functions'!$Q$3:$Q$6,'Utility Functions'!$R$3:$R$6)","v":0.04},{"$f":"valuePL(K6,'Utility Functions'!$S$3:$S$7,'Utility Functions'!$T$3:$T$7)","v":0},{"$f":"valueE(L6,'Utility Functions'!$V$3,'Utility Functions'!$V$4,'Utility Functions'!$V$5,'Utility Functions'!$V$6)","v":0},{"$f":"valuePL(M6,'Utility Functions'!$W$3:$W$6,'Utility Functions'!$X$3:$X$6)","v":0},{"$f":"valueE(N6,'Utility Functions'!$Z$3,'Utility Functions'!$Z$4,'Utility Functions'!$Z$5,'Utility Functions'!$Z$6)","v":0},{"$f":"valuePL(O6,'Utility Functions'!$AA$3:$AA$5,'Utility Functions'!$AB$3:$AB$5)","v":0},{"$f":"valuePL(P6,'Utility Functions'!$AC$3:$AC$7,'Utility Functions'!$AD$3:$AD$7)","v":0},{"$f":"valuePL(Q6,'Utility Functions'!$AE$3:$AE$6,'Utility Functions'!$AF$3:$AF$6)","v":0.1},{"$f":"valuePL(R6,'Utility Functions'!$AG$3:$AG$6,'Utility Functions'!$AH$3:$AH$6)","v":1},{"$f":"valuePL(S6,'Utility Functions'!$AI$3:$AI$6,'Utility Functions'!$AJ$3:$AJ$6)","v":1},{"$f":"valuePL(T6,'Utility Functions'!$AK$3:$AK$8,'Utility Functions'!$AL$3:$AL$8)","v":0.8},{"$f":"valuePL(U6,'Utility Functions'!$AM$3:$AM$5,'Utility Functions'!$AN$3:$AN$5)","v":0.25},{"$f":"valuePL(V6,'Utility Functions'!$AO$3:$AO$5,'Utility Functions'!$AP$3:$AP$5)","v":0},{"$f":"valuePL(W6,'Utility Functions'!$AQ$3:$AQ$6,'Utility Functions'!$AR$3:$AR$6)","v":1},{"$f":"valuePL(X6,'Utility Functions'!$AS$3:$AS$6,'Utility Functions'!$AT$3:$AT$6)","v":1},{"$f":"valuePL(Y6,'Utility Functions'!$AU$3:$AU$6,'Utility Functions'!$AV$3:$AV$6)","v":0.8},{"$f":"valuePL(Z6,'Utility Functions'!$AW$3:$AW$5,'Utility Functions'!$AX$3:$AX$5)","v":0},{"$f":"valuePL(AA6,'Utility Functions'!$AY$3:$AY$6,'Utility Functions'!$AZ$3:$AZ$6)","v":0},{"$f":"valuePL(AB6,'Utility Functions'!$BA$3:$BA$5,'Utility Functions'!$BB$3:$BB$5)","v":1},{"$f":"valuePL(AC6,'Utility Functions'!$BC$3:$BC$5,'Utility Functions'!$BD$3:$BD$5)","v":0.25},9.5663279251355373,null,9.5663279251355391,1.8172370160446283,0.54909090909090918,0,3.1500000000000004,4.05]
[6,{"$f":"valueE(B7,'Utility Functions'!$B$3,'Utility Functions'!$B$4,'Utility Functions'!$B$5,'Utility Functions'!$B$6)","v":0.86466602685702687},{"$f":"valueE(C7,'Utility Functions'!$D$3,'Utility Functions'!$D$4,'Utility Functions'!$D$5,'Utility Functions'!$D$6)","v":6.1811002813601471E-3},{"$f":"valuePL(D7,'Utility Functions'!$E$3:$E$5,'Utility Functions'!$F$3:$F$5)","v":1},{"$f":"valuePL(E7,'Utility Functions'!$G$3:$G$5,'Utility Functions'!$H$3:$H$5)","v":0},{"$f":"valuePL(F7,'Utility Functions'!$I$3:$I$4,'Utility Functions'!$J$3:$J$5)","v":0},{"$f":"valueE(G7,'Utility Functions'!$L$3,'Utility Functions'!$L$4,'Utility Functions'!$L$5,'Utility Functions'!$L$6)","v":0},{"$f":"valueE(H7,'Utility Functions'!$N$3,'Utility Functions'!$N$4,'Utility Functions'!$N$5,'Utility Functions'!$N$6)","v":0},{"$f":"valuePL(I7,'Utility Functions'!$O$3:$O$6,'Utility Functions'!$P$3:$P$6)","v":0.04},{"$f":"valuePL(J7,'Utility Functions'!$Q$3:$Q$6,'Utility Functions'!$R$3:$R$6)","v":0.04},{"$f":"valuePL(K7,'Utility Functions'!$S$3:$S$7,'Utility Functions'!$T$3:$T$7)","v":0},{"$f":"valueE(L7,'Utility Functions'!$V$3,'Utility Functions'!$V$4,'Utility Functions'!$V$5,'Utility Functions'!$V$6)","v":0},{"$f":"valuePL(M7,'Utility Functions'!$W$3:$W$6,'Utility Functions'!$X$3:$X$6)","v":0},{"$f":"valueE(N7,'Utility Functions'!$Z$3,'Utility Functions'!$Z$4,'Utility Functions'!$Z$5,'Utility Functions'!$Z$6)","v":0},{"$f":"valuePL(O7,'Utility Functions'!$AA$3:$AA$5,'Utility Functions'!$AB$3:$AB$5)","v":0},{"$f":"valuePL(P7,'Utility Functions'!$AC$3:$AC$7,'Utility Functions'!$AD$3:$AD$7)","v":0},{"$f":"valuePL(Q7,'Utility Functions'!$AE$3:$AE$6,'Utility Functions'!$AF$3:$AF$6)","v":0.1},{"$f":"valuePL(R7,'Utility Functions'!$AG$3:$AG$6,'Utility Functions'!$AH$3:$AH$6)","v":0},{"$f":"valuePL(S7,'Utility Functions'!$AI$3:$AI$6,'Utility Functions'!$AJ$3:$AJ$6)","v":1},{"$f":"valuePL(T7,'Utility Functions'!$AK$3:$AK$8,'Utility Functions'!$AL$3:$AL$8)","v":0.6},{"$f":"valuePL(U7,'Utility Functions'!$AM$3:$AM$5,'Utility Functions'!$AN$3:$AN$5)","v":0},{"$f":"valuePL(V7,'Utility Functions'!$AO$3:$AO$5,'Utility Functions'!$AP$3:$AP$5)","v":0},{"$f":"valuePL(W7,'Utility Functions'!$AQ$3:$AQ$6,'Utility Functions'!$AR$3:$AR$6)","v":0},{"$f":"valuePL(X7,'Utility Functions'!$AS$3:$AS$6,'Utility Functions'!$AT$3:$AT$6)","v":1},{"$f":"valuePL(Y7,'Utility Functions'!$AU$3:$AU$6,'Utility Functions'!$AV$3:$AV$6)","v":0},{"$f":"valuePL(Z7,'Utility Functions'!$AW$3:$AW$5,'Utility Functions'!$AX$3:$AX$5)","v":0},{"$f":"valuePL(AA7,'Utility Functions'!$AY$3:$AY$6,'Utility Functions'!$AZ$3:$AZ$6)","v":0},{"$f":"valuePL(AB7,'Utility Functions'!$BA$3:$BA$5,'Utility Functions'!$BB$3:$BB$5)","v":1},{"$f":"valuePL(AC7,'Utility Functions'!$BC$3:$BC$5,'Utility Functions'!$BD$3:$BD$5)","v":0.25},5.9008471271383875,null,5.9008471271383875,1.8708471271383869,0.08,0,1.7000000000000002,2.25]
[7,{"$f":"valueE(B8,'Utility Functions'!$B$3,'Utility Functions'!$B$4,'Utility Functions'!$B$5,'Utility Functions'!$B$6)","v":0.99997108261728973},{"$f":"valueE(C8,'Utility Functions'!$D$3,'Utility Functions'!$D$4,'Utility Functions'!$D$5,'Utility Functions'!$D$6)","v":0.84744836833951609},{"$f":"valuePL(D8,'Utility Functions'!$E$3:$E$5,'Utility Functions'!$F$3:$F$5)","v":0},{"$f":"valuePL(E8,'Utility Functions'!$G$3:$G$5,'Utility Functions'!$H$3:$H$5)","v":1},{"$f":"valuePL(F8,'Utility Functions'!$I$3:$I$4,'Utility Functions'!$J$3:$J$5)","v":0},{"$f":"valueE(G8,'Utility Functions'!$L$3,'Utility Functions'!$L$4,'Utility Functions'!$L$5,'Utility Functions'!$L$6)","v":0},{"$f":"valueE(H8,'Utility Functions'!$N$3,'Utility Functions'!$N$4,'Utility Functions'!$N$5,'Utility Functions'!$N$6)","v":0},{"$f":"valuePL(I8,'Utility Functions'!$O$3:$O$6,'Utility Functions'!$P$3:$P$6)","v":1},{"$f":"valuePL(J8,'Utility Functions'!$Q$3:$Q$6,'Utility Functions'!$R$3:$R$6)","v":0.67272727272727273},{"$f":"valuePL(K8,'Utility Functions'!$S$3:$S$7,'Utility Functions'!$T$3:$T$7)","v":1},{"$f":"valueE(L8,'Utility Functions'!$V$3,'Utility Functions'!$V$4,'Utility Functions'!$V$5,'Utility Functions'!$V$6)","v":1},{"$f":"valuePL(M8,'Utility Functions'!$W$3:$W$6,'Utility Functions'!$X$3:$X$6)","v":0.67272727272727273},{"$f":"valueE(N8,'Utility Functions'!$Z$3,'Utility Functions'!$Z$4,'Utility Functions'!$Z$5,'Utility Functions'!$Z$6)","v":1},{"$f":"valuePL(O8,'Utility Functions'!$AA$3:$AA$5,'Utility Functions'!$AB$3:$AB$5)","v":0.25},{"$f":"valuePL(P8,'Utility Functions'!$AC$3:$AC$7,'Utility Functions'!$AD$3:$AD$7)","v":0},{"$f":"valuePL(Q8,'Utility Functions'!$AE$3:$AE$6,'Utility Functions'!$AF$3:$AF$6)","v":0},{"$f":"valuePL(R8,'Utility Functions'!$AG$3:$AG$6,'Utility Functions'!$AH$3:$AH$6)","v":1},{"$f":"valuePL(S8,'Utility Functions'!$AI$3:$AI$6,'Utility Functions'!$AJ$3:$AJ$6)","v":1},{"$f":"valuePL(T8,'Utility Functions'!$AK$3:$AK$8,'Utility Functions'!$AL$3:$AL$8)","v":0},{"$f":"valuePL(U8,'Utility Functions'!$AM$3:$AM$5,'Utility Functions'!$AN$3:$AN$5)","v":0},{"$f":"valuePL(V8,'Utility Functions'!$AO$3:$AO$5,'Utility Functions'!$AP$3:$AP$5)","v":1},{"$f":"valuePL(W8,'Utility Functions'!$AQ$3:$AQ$6,'Utility Functions'!$AR$3:$AR$6)","v":0},{"$f":"valuePL(X8,'Utility Functions'!$AS$3:$AS$6,'Utility Functions'!$AT$3:$AT$6)","v":0.2},{"$f":"valuePL(Y8,'Utility Functions'!$AU$3:$AU$6,'Utility Functions'!$AV$3:$AV$6)","v":1},{"$f":"valuePL(Z8,'Utility Functions'!$AW$3:$AW$5,'Utility Functions'!$AX$3:$AX$5)","v":1},{"$f":"valuePL(AA8,'Utility Functions'!$AY$3:$AY$6,'Utility Functions'!$AZ$3:$AZ$6)","v":0.89999999999999991},{"$f":"valuePL(AB8,'Utility Functions'!$BA$3:$BA$5,'Utility Functions'!$BB$3:$BB$5)","v":0},{"$f":"valuePL(AC8,'Utility Functions'!$BC$3:$BC$5,'Utility Functions'!$BD$3:$BD$5)","v":1},15.54287399641135,null,15.54287399641135,2.8474194509568056,4.3454545454545457,1.25,2,5.0999999999999996]
[8,{"$f":"valueE(B9,'Utility Functions'!$B$3,'Utility Functions'!$B$4,'Utility Functions'!$B$5,'Utility Functions'!$B$6)","v":0.4511890475224023},{"$f":"valueE(C9,'Utility Functions'!$D$3,'Utility Functions'!$D$4,'Utility Functions'!$D$5,'Utility Functions'!$D$6)","v":0.84744836833951609},{"$f":"valuePL(D9,'Utility Functions'!$E$3:$E$5,'Utility Functions'!$F$3:$F$5)","v":1},{"$f":"valuePL(E9,'Utility Functions'!$G$3:$G$5,'Utility Functions'!$H$3:$H$5)","v":0.5},{"$f":"valuePL(F9,'Utility Functions'!$I$3:$I$4,'Utility Functions'!$J$3:$J$5)","v":1},{"$f":"valueE(G9,'Utility Functions'!$L$3,'Utility Functions'!$L$4,'Utility Functions'!$L$5,'Utility Functions'!$L$6)","v":0},{"$f":"valueE(H9,'Utility Functions'!$N$3,'Utility Functions'!$N$4,'Utility Functions'!$N$5,'Utility Functions'!$N$6)","v":0},{"$f":"valuePL(I9,'Utility Functions'!$O$3:$O$6,'Utility Functions'!$P$3:$P$6)","v":5.6000000000000008E-2},{"$f":"valuePL(J9,'Utility Functions'!$Q$3:$Q$6,'Utility Functions'!$R$3:$R$6)","v":0.83636363636363631},{"$f":"valuePL(K9,'Utility Functions'!$S$3:$S$7,'Utility Functions'!$T$3:$T$7)","v":0},{"$f":"valueE(L9,'Utility Functions'!$V$3,'Utility Functions'!$V$4,'Utility Functions'!$V$5,'Utility Functions'!$V$6)","v":1},{"$f":"valuePL(M9,'Utility Functions'!$W$3:$W$6,'Utility Functions'!$X$3:$X$6)","v":0.83636363636363631},{"$f":"valueE(N9,'Utility Functions'!$Z$3,'Utility Functions'!$Z$4,'Utility Functions'!$Z$5,'Utility Functions'!$Z$6)","v":0},{"$f":"valuePL(O9,'Utility Functions'!$AA$3:$AA$5,'Utility Functions'!$AB$3:$AB$5)","v":0},{"$f":"valuePL(P9,'Utility Functions'!$AC$3:$AC$7,'Utility Functions'!$AD$3:$AD$7)","v":0},{"$f":"valuePL(Q9,'Utility Functions'!$AE$3:$AE$6,'Utility Functions'!$AF$3:$AF$6)","v":1},{"$f":"valuePL(R9,'Utility Functions'!$AG$3:$AG$6,'Utility Functions'!$AH$3:$AH$6)","v":0.2},{"$f":"valuePL(S9,'Utility Functions'!$AI$3:$AI$6,'Utility Functions'!$AJ$3:$AJ$6)","v":1},{"$f":"valuePL(T9,'Utility Functions'!$AK$3:$AK$8,'Utility Functions'!$AL$3:$AL$8)","v":0},{"$f":"valuePL(U9,'Utility Functions'!$AM$3:$AM$5,'Utility Functions'!$AN$3:$AN$5)","v":0},{"$f":"valuePL(V9,'Utility Functions'!$AO$3:$AO$5,'Utility Functions'!$AP$3:$AP$5)","v":1},{"$f":"valuePL(W9,'Utility Functions'!$AQ$3:$AQ$6,'Utility Functions'!$AR$3:$AR$6)","v":1},{"$f":"valuePL(X9,'Utility Functions'!$AS$3:$AS$6,'Utility Functions'!$AT$3:$AT$6)","v":1},{"$f":"valuePL(Y9,'Utility Functions'!$AU$3:$AU$6,'Utility Functions'!$AV$3:$AV$6)","v":1},{"$f":"valuePL(Z9,'Utility Functions'!$AW$3:$AW$5,'Utility Functions'!$AX$3:$AX$5)","v":1},{"$f":"valuePL(AA9,'Utility Functions'!$AY$3:$AY$6,'Utility Functions'!$AZ$3:$AZ$6)","v":0},{"$f":"valuePL(AB9,'Utility Functions'!$BA$3:$BA$5,'Utility Functions'!$BB$3:$BB$5)","v":0.25},{"$f":"valuePL(AC9,'Utility Functions'!$BC$3:$BC$5,'Utility Functions'!$BD$3:$BD$5)","v":0.25},14.227364688589191,null,14.227364688589191,3.7986374158619185,2.7287272727272729,0,2.2000000000000002,5.5]
[9,{"$f":"valueE(B10,'Utility Functions'!$B$3,'Utility Functions'!$B$4,'Utility Functions'!$B$5,'Utility Functions'!$B$6)","v":0.83470237647280454},{"$f":"valueE(C10,'Utility Functions'!$D$3,'Utility Functions'!$D$4,'Utility Functions'!$D$5,'Utility Functions'!$D$6)","v":0.78989979019422951},{"$f":"valuePL(D10,'Utility Functions'!$E$3:$E$5,'Utility Functions'!$F$3:$F$5)","v":1},{"$f":"valuePL(E10,'Utility Functions'!$G$3:$G$5,'Utility Functions'!$H$3:$H$5)","v":0.5},{"$f":"valuePL(F10,'Utility Functions'!$I$3:$I$4,'Utility Functions'!$J$3:$J$5)","v":0},{"$f":"valueE(G10,'Utility Functions'!$L$3,'Utility Functions'!$L$4,'Utility Functions'!$L$5,'Utility Functions'!$L$6)","v":0.37634408602150538},{"$f":"valueE(H10,'Utility Functions'!$N$3,'Utility Functions'!$N$4,'Utility Functions'!$N$5,'Utility Functions'!$N$6)","v":0.13282732447817835},{"$f":"valuePL(I10,'Utility Functions'!$O$3:$O$6,'Utility Functions'!$P$3:$P$6)","v":0},{"$f":"valuePL(J10,'Utility Functions'!$Q$3:$Q$6,'Utility Functions'!$R$3:$R$6)","v":0},{"$f":"valuePL(K10,'Utility Functions'!$S$3:$S$7,'Utility Functions'!$T$3:$T$7)","v":0},{"$f":"valueE(L10,'Utility Functions'!$V$3,'Utility Functions'!$V$4,'Utility Functions'!$V$5,'Utility Functions'!$V$6)","v":0},{"$f":"valuePL(M10,'Utility Functions'!$W$3:$W$6,'Utility Functions'!$X$3:$X$6)","v":0},{"$f":"valueE(N10,'Utility Functions'!$Z$3,'Utility Functions'!$Z$4,'Utility Functions'!$Z$5,'Utility Functions'!$Z$6)","v":0},{"$f":"valuePL(O10,'Utility Functions'!$AA$3:$AA$5,'Utility Functions'!$AB$3:$AB$5)","v":0},{"$f":"valuePL(P10,'Utility Functions'!$AC$3:$AC$7,'Utility Functions'!$AD$3:$AD$7)","v":0.75},{"$f":"valuePL(Q10,'Utility Functions'!$AE$3:$AE$6,'Utility Functions'!$AF$3:$AF$6)","v":0},{"$f":"valuePL(R10,'Utility Functions'!$AG$3:$AG$6,'Utility Functions'!$AH$3:$AH$6)","v":1},{"$f":"valuePL(S10,'Utility Functions'!$AI$3:$AI$6,'Utility Functions'!$AJ$3:$AJ$6)","v":0.66},{"$f":"valuePL(T10,'Utility Functions'!$AK$3:$AK$8,'Utility Functions'!$AL$3:$AL$8)","v":0.2},{"$f":"valuePL(U10,'Utility Functions'!$AM$3:$AM$5,'Utility Functions'!$AN$3:$AN$5)","v":0},{"$f":"valuePL(V10,'Utility Functions'!$AO$3:$AO$5,'Utility Functions'!$AP$3:$AP$5)","v":1},{"$f":"valuePL(W10,'Utility Functions'!$AQ$3:$AQ$6,'Utility Functions'!$AR$3:$AR$6)","v":1},{"$f":"valuePL(X10,'Utility Functions'!$AS$3:$AS$6,'Utility Functions'!$AT$3:$AT$6)","v":1},{"$f":"valuePL(Y10,'Utility Functions'!$AU$3:$AU$6,'Utility Functions'!$AV$3:$AV$6)","v":0.2},{"$f":"valuePL(Z10,'Utility Functions'!$AW$3:$AW$5,'Utility Functions'!$AX$3:$AX$5)","v":1},{"$f":"valuePL(AA10,'Utility Functions'!$AY$3:$AY$6,'Utility Functions'!$AZ$3:$AZ$6)","v":0.2},{"$f":"valuePL(AB10,'Utility Functions'!$BA$3:$BA$5,'Utility Functions'!$BB$3:$BB$5)","v":0.25},{"$f":"valuePL(AC10,'Utility Functions'!$BC$3:$BC$5,'Utility Functions'!$BD$3:$BD$5)","v":1},11.893773577166716,null,11.893773577166719,3.1246021666670343,0.50917141049968373,0,2.6100000000000003,5.65]
[10,{"$f":"valueE(B11,'Utility Functions'!$B$3,'Utility Functions'!$B$4,'Utility Functions'!$B$5,'Utility Functions'!$B$6)","v":0},{"$f":"valueE(C11,'Utility Functions'!$D$3,'Utility Functions'!$D$4,'Utility Functions'!$D$5,'Utility Functions'!$D$6)","v":0},{"$f":"valuePL(D11,'Utility Functions'!$E$3:$E$5,'Utility Functions'!$F$3:$F$5)","v":0},{"$f":"valuePL(E11,'Utility Functions'!$G$3:$G$5,'Utility Functions'!$H$3:$H$5)","v":0},{"$f":"valuePL(F11,'Utility Functions'!$I$3:$I$4,'Utility Functions'!$J$3:$J$5)","v":0},{"$f":"valueE(G11,'Utility Functions'!$L$3,'Utility Functions'!$L$4,'Utility Functions'!$L$5,'Utility Functions'!$L$6)","v":0},{"$f":"valueE(H11,'Utility Functions'!$N$3,'Utility Functions'!$N$4,'Utility Functions'!$N$5,'Utility Functions'!$N$6)","v":0},{"$f":"valuePL(I11,'Utility Functions'!$O$3:$O$6,'Utility Functions'!$P$3:$P$6)","v":0},{"$f":"valuePL(J11,'Utility Functions'!$Q$3:$Q$6,'Utility Functions'!$R$3:$R$6)","v":0},{"$f":"valuePL(K11,'Utility Functions'!$S$3:$S$7,'Utility Functions'!$T$3:$T$7)","v":0},{"$f":"valueE(L11,'Utility Functions'!$V$3,'Utility Functions'!$V$4,'Utility Functions'!$V$5,'Utility Functions'!$V$6)","v":0},{"$f":"valuePL(M11,'Utility Functions'!$W$3:$W$6,'Utility Functions'!$X$3:$X$6)","v":0},{"$f":"valueE(N11,'Utility Functions'!$Z$3,'Utility Functions'!$Z$4,'Utility Functions'!$Z$5,'Utility Functions'!$Z$6)","v":0.75},{"$f":"valuePL(O11,'Utility Functions'!$AA$3:$AA$5,'Utility Functions'!$AB$3:$AB$5)","v":1},{"$f":"valuePL(P11,'Utility Functions'!$AC$3:$AC$7,'Utility Functions'!$AD$3:$AD$7)","v":0.25},{"$f":"valuePL(Q11,'Utility Functions'!$AE$3:$AE$6,'Utility Functions'!$AF$3:$AF$6)","v":0.5},{"$f":"valuePL(R11,'Utility Functions'!$AG$3:$AG$6,'Utility Functions'!$AH$3:$AH$6)","v":1},{"$f":"valuePL(S11,'Utility Functions'!$AI$3:$AI$6,'Utility Functions'!$AJ$3:$AJ$6)","v":0.66},{"$f":"valuePL(T11,'Utility Functions'!$AK$3:$AK$8,'Utility Functions'!$AL$3:$AL$8)","v":0.4},{"$f":"valuePL(U11,'Utility Functions'!$AM$3:$AM$5,'Utility Functions'!$AN$3:$AN$5)","v":0},{"$f":"valuePL(V11,'Utility Functions'!$AO$3:$AO$5,'Utility Functions'!$AP$3:$AP$5)","v":0},{"$f":"valuePL(W11,'Utility Functions'!$AQ$3:$AQ$6,'Utility Functions'!$AR$3:$AR$6)","v":0.75},{"$f":"valuePL(X11,'Utility Functions'!$AS$3:$AS$6,'Utility Functions'!$AT$3:$AT$6)","v":1},{"$f":"valuePL(Y11,'Utility Functions'!$AU$3:$AU$6,'Utility Functions'!$AV$3:$AV$6)","v":1},{"$f":"valuePL(Z11,'Utility Functions'!$AW$3:$AW$5,'Utility Functions'!$AX$3:$AX$5)","v":0.5},{"$f":"valuePL(AA11,'Utility Functions'!$AY$3:$AY$6,'Utility Functions'!$AZ$3:$AZ$6)","v":0.2},{"$f":"valuePL(AB11,'Utility Functions'!$BA$3:$BA$5,'Utility Functions'!$BB$3:$BB$5)","v":0},{"$f":"valuePL(AC11,'Utility Functions'!$BC$3:$BC$5,'Utility Functions'!$BD$3:$BD$5)","v":1},9.01,null,9.0100000000000016,0,0,1.75,2.81,4.45]
[11,{"$f":"valueE(B12,'Utility Functions'!$B$3,'Utility Functions'!$B$4,'Utility Functions'!$B$5,'Utility Functions'!$B$6)","v":0},{"$f":"valueE(C12,'Utility Functions'!$D$3,'Utility Functions'!$D$4,'Utility Functions'!$D$5,'Utility Functions'!$D$6)","v":0},{"$f":"valuePL(D12,'Utility Functions'!$E$3:$E$5,'Utility Functions'!$F$3:$F$5)","v":0},{"$f":"valuePL(E12,'Utility Functions'!$G$3:$G$5,'Utility Functions'!$H$3:$H$5)","v":0},{"$f":"valuePL(F12,'Utility Functions'!$I$3:$I$4,'Utility Functions'!$J$3:$J$5)","v":0},{"$f":"valueE(G12,'Utility Functions'!$L$3,'Utility Functions'!$L$4,'Utility Functions'!$L$5,'Utility Functions'!$L$6)","v":3.2258064516129031E-2},{"$f":"valueE(H12,'Utility Functions'!$N$3,'Utility Functions'!$N$4,'Utility Functions'!$N$5,'Utility Functions'!$N$6)","v":9.6774193548387094E-2},{"$f":"valuePL(I12,'Utility Functions'!$O$3:$O$6,'Utility Functions'!$P$3:$P$6)","v":0.54181818181818187},{"$f":"valuePL(J12,'Utility Functions'!$Q$3:$Q$6,'Utility Functions'!$R$3:$R$6)","v":0.91818181818181821},{"$f":"valuePL(K12,'Utility Functions'!$S$3:$S$7,'Utility Functions'!$T$3:$T$7)","v":0.54181818181818187},{"$f":"valueE(L12,'Utility Functions'!$V$3,'Utility Functions'!$V$4,'Utility Functions'!$V$5,'Utility Functions'!$V$6)","v":1},{"$f":"valuePL(M12,'Utility Functions'!$W$3:$W$6,'Utility Functions'!$X$3:$X$6)","v":0.91818181818181821},{"$f":"valueE(N12,'Utility Functions'!$Z$3,'Utility Functions'!$Z$4,'Utility Functions'!$Z$5,'Utility Functions'!$Z$6)","v":0.375},{"$f":"valuePL(O12,'Utility Functions'!$AA$3:$AA$5,'Utility Functions'!$AB$3:$AB$5)","v":0.25},{"$f":"valuePL(P12,'Utility Functions'!$AC$3:$AC$7,'Utility Functions'!$AD$3:$AD$7)","v":0.25},{"$f":"valuePL(Q12,'Utility Functions'!$AE$3:$AE$6,'Utility Functions'!$AF$3:$AF$6)","v":0},{"$f":"valuePL(R12,'Utility Functions'!$AG$3:$AG$6,'Utility Functions'!$AH$3:$AH$6)","v":1},{"$f":"valuePL(S12,'Utility Functions'!$AI$3:$AI$6,'Utility Functions'!$AJ$3:$AJ$6)","v":1},{"$f":"valuePL(T12,'Utility Functions'!$AK$3:$AK$8,'Utility Functions'!$AL$3:$AL$8)","v":0.4},{"$f":"valuePL(U12,'Utility Functions'!$AM$3:$AM$5,'Utility Functions'!$AN$3:$AN$5)","v":1},{"$f":"valuePL(V12,'Utility Functions'!$AO$3:$AO$5,'Utility Functions'!$AP$3:$AP$5)","v":1},{"$f":"valuePL(W12,'Utility Functions'!$AQ$3:$AQ$6,'Utility Functions'!$AR$3:$AR$6)","v":0.2},{"$f":"valuePL(X12,'Utility Functions'!$AS$3:$AS$6,'Utility Functions'!$AT$3:$AT$6)","v":1},{"$f":"valuePL(Y12,'Utility Functions'!$AU$3:$AU$6,'Utility Functions'!$AV$3:$AV$6)","v":1},{"$f":"valuePL(Z12,'Utility Functions'!$AW$3:$AW$5,'Utility Functions'!$AX$3:$AX$5)","v":0.5},{"$f":"valuePL(AA12,'Utility Functions'!$AY$3:$AY$6,'Utility Functions'!$AZ$3:$AZ$6)","v":0.89999999999999991},{"$f":"valuePL(AB12,'Utility Functions'!$BA$3:$BA$5,'Utility Functions'!$BB$3:$BB$5)","v":0},{"$f":"valuePL(AC12,'Utility Functions'!$BC$3:$BC$5,'Utility Functions'!$BD$3:$BD$5)","v":0.25},13.174032258064516,null,13.174032258064516,0,4.0490322580645159,0.625,3.65,4.8499999999999996]
[12,{"$f":"valueE(B13,'Utility Functions'!$B$3,'Utility Functions'!$B$4,'Utility Functions'!$B$5,'Utility Functions'!$B$6)","v":0.32968045347775865},{"$f":"valueE(C13,'Utility Functions'!$D$3,'Utility Functions'!$D$4,'Utility Functions'!$D$5,'Utility Functions'!$D$6)","v":0.78989979019422951},{"$f":"valuePL(D13,'Utility Functions'!$E$3:$E$5,'Utility Functions'!$F$3:$F$5)","v":1},{"$f":"valuePL(E13,'Utility Functions'!$G$3:$G$5,'Utility Functions'!$H$3:$H$5)","v":0.5},{"$f":"valuePL(F13,'Utility Functions'!$I$3:$I$4,'Utility Functions'!$J$3:$J$5)","v":0},{"$f":"valueE(G13,'Utility Functions'!$L$3,'Utility Functions'!$L$4,'Utility Functions'!$L$5,'Utility Functions'!$L$6)","v":0},{"$f":"valueE(H13,'Utility Functions'!$N$3,'Utility Functions'!$N$4,'Utility Functions'!$N$5,'Utility Functions'!$N$6)","v":0},{"$f":"valuePL(I13,'Utility Functions'!$O$3:$O$6,'Utility Functions'!$P$3:$P$6)","v":0},{"$f":"valuePL(J13,'Utility Functions'!$Q$3:$Q$6,'Utility Functions'!$R$3:$R$6)","v":0},{"$f":"valuePL(K13,'Utility Functions'!$S$3:$S$7,'Utility Functions'!$T$3:$T$7)","v":0},{"$f":"valueE(L13,'Utility Functions'!$V$3,'Utility Functions'!$V$4,'Utility Functions'!$V$5,'Utility Functions'!$V$6)","v":0},{"$f":"valuePL(M13,'Utility Functions'!$W$3:$W$6,'Utility Functions'!$X$3:$X$6)","v":0},{"$f":"valueE(N13,'Utility Functions'!$Z$3,'Utility Functions'!$Z$4,'Utility Functions'!$Z$5,'Utility Functions'!$Z$6)","v":0},{"$f":"valuePL(O13,'Utility Functions'!$AA$3:$AA$5,'Utility Functions'!$AB$3:$AB$5)","v":0},{"$f":"valuePL(P13,'Utility Functions'!$AC$3:$AC$7,'Utility Functions'!$AD$3:$AD$7)","v":0},{"$f":"valuePL(Q13,'Utility Functions'!$AE$3:$AE$6,'Utility Functions'!$AF$3:$AF$6)","v":0.1},{"$f":"valuePL(R13,'Utility Functions'!$AG$3:$AG$6,'Utility Functions'!$AH$3:$AH$6)","v":1},{"$f":"valuePL(S13,'Utility Functions'!$AI$3:$AI$6,'Utility Functions'!$AJ$3:$AJ$6)","v":1},{"$f":"valuePL(T13,'Utility Functions'!$AK$3:$AK$8,'Utility Functions'!$AL$3:$AL$8)","v":0.6},{"$f":"valuePL(U13,'Utility Functions'!$AM$3:$AM$5,'Utility Functions'!$AN$3:$AN$5)","v":0},{"$f":"valuePL(V13,'Utility Functions'!$AO$3:$AO$5,'Utility Functions'!$AP$3:$AP$5)","v":0.5},{"$f":"valuePL(W13,'Utility Functions'!$AQ$3:$AQ$6,'Utility Functions'!$AR$3:$AR$6)","v":0.2},{"$f":"valuePL(X13,'Utility Functions'!$AS$3:$AS$6,'Utility Functions'!$AT$3:$AT$6)","v":1},{"$f":"valuePL(Y13,'Utility Functions'!$AU$3:$AU$6,'Utility Functions'!$AV$3:$AV$6)","v":0.2},{"$f":"valuePL(Z13,'Utility Functions'!$AW$3:$AW$5,'Utility Functions'!$AX$3:$AX$5)","v":1},{"$f":"valuePL(AA13,'Utility Functions'!$AY$3:$AY$6,'Utility Functions'!$AZ$3:$AZ$6)","v":0.2},{"$f":"valuePL(AB13,'Utility Functions'!$BA$3:$BA$5,'Utility Functions'!$BB$3:$BB$5)","v":1},{"$f":"valuePL(AC13,'Utility Functions'!$BC$3:$BC$5,'Utility Functions'!$BD$3:$BD$5)","v":0},9.4195802436719873,null,9.4195802436719873,2.6195802436719884,0,0,2.7,4.0999999999999996]
[13,{"$f":"valueE(B14,'Utility Functions'!$B$3,'Utility Functions'!$B$4,'Utility Functions'!$B$5,'Utility Functions'!$B$6)","v":0},{"$f":"valueE(C14,'Utility Functions'!$D$3,'Utility Functions'!$D$4,'Utility Functions'!$D$5,'Utility Functions'!$D$6)","v":0},{"$f":"valuePL(D14,'Utility Functions'!$E$3:$E$5,'Utility Functions'!$F$3:$F$5)","v":0},{"$f":"valuePL(E14,'Utility Functions'!$G$3:$G$5,'Utility Functions'!$H$3:$H$5)","v":0},{"$f":"valuePL(F14,'Utility Functions'!$I$3:$I$4,'Utility Functions'!$J$3:$J$5)","v":0},{"$f":"valueE(G14,'Utility Functions'!$L$3,'Utility Functions'!$L$4,'Utility Functions'!$L$5,'Utility Functions'!$L$6)","v":0},{"$f":"valueE(H14,'Utility Functions'!$N$3,'Utility Functions'!$N$4,'Utility Functions'!$N$5,'Utility Functions'!$N$6)","v":1.1385199240986717E-2},{"$f":"valuePL(I14,'Utility Functions'!$O$3:$O$6,'Utility Functions'!$P$3:$P$6)","v":0.3290909090909091},{"$f":"valuePL(J14,'Utility Functions'!$Q$3:$Q$6,'Utility Functions'!$R$3:$R$6)","v":0.04},{"$f":"valuePL(K14,'Utility Functions'!$S$3:$S$7,'Utility Functions'!$T$3:$T$7)","v":0.3290909090909091},{"$f":"valueE(L14,'Utility Functions'!$V$3,'Utility Functions'!$V$4,'Utility Functions'!$V$5,'Utility Functions'!$V$6)","v":1},{"$f":"valuePL(M14,'Utility Functions'!$W$3:$W$6,'Utility Functions'!$X$3:$X$6)","v":0.04},{"$f":"valueE(N14,'Utility Functions'!$Z$3,'Utility Functions'!$Z$4,'Utility Functions'!$Z$5,'Utility Functions'!$Z$6)","v":0.875},{"$f":"valuePL(O14,'Utility Functions'!$AA$3:$AA$5,'Utility Functions'!$AB$3:$AB$5)","v":0.25},{"$f":"valuePL(P14,'Utility Functions'!$AC$3:$AC$7,'Utility Functions'!$AD$3:$AD$7)","v":0.25},{"$f":"valuePL(Q14,'Utility Functions'!$AE$3:$AE$6,'Utility Functions'!$AF$3:$AF$6)","v":0},{"$f":"valuePL(R14,'Utility Functions'!$AG$3:$AG$6,'Utility Functions'!$AH$3:$AH$6)","v":1},{"$f":"valuePL(S14,'Utility Functions'!$AI$3:$AI$6,'Utility Functions'!$AJ$3:$AJ$6)","v":1},{"$f":"valuePL(T14,'Utility Functions'!$AK$3:$AK$8,'Utility Functions'!$AL$3:$AL$8)","v":0},{"$f":"valuePL(U14,'Utility Functions'!$AM$3:$AM$5,'Utility Functions'!$AN$3:$AN$5)","v":0},{"$f":"valuePL(V14,'Utility Functions'!$AO$3:$AO$5,'Utility Functions'!$AP$3:$AP$5)","v":0.5},{"$f":"valuePL(W14,'Utility Functions'!$AQ$3:$AQ$6,'Utility Functions'!$AR$3:$AR$6)","v":0},{"$f":"valuePL(X14,'Utility Functions'!$AS$3:$AS$6,'Utility Functions'!$AT$3:$AT$6)","v":0.2},{"$f":"valuePL(Y14,'Utility Functions'!$AU$3:$AU$6,'Utility Functions'!$AV$3:$AV$6)","v":0},{"$f":"valuePL(Z14,'Utility Functions'!$AW$3:$AW$5,'Utility Functions'!$AX$3:$AX$5)","v":1},{"$f":"valuePL(AA14,'Utility Functions'!$AY$3:$AY$6,'Utility Functions'!$AZ$3:$AZ$6)","v":0.2},{"$f":"valuePL(AB14,'Utility Functions'!$BA$3:$BA$5,'Utility Functions'!$BB$3:$BB$5)","v":0.25},{"$f":"valuePL(AC14,'Utility Functions'!$BC$3:$BC$5,'Utility Functions'!$BD$3:$BD$5)","v":0.25},7.5245670174228056,null,7.5245670174228056,0,1.7495670174228048,1.125,2.25,2.4]
[14,{"$f":"valueE(B15,'Utility Functions'!$B$3,'Utility Functions'!$B$4,'Utility Functions'!$B$5,'Utility Functions'!$B$6)","v":0.69880684688087746},{"$f":"valueE(C15,'Utility Functions'!$D$3,'Utility Functions'!$D$4,'Utility Functions'!$D$5,'Utility Functions'!$D$6)","v":0.78989979019422951},{"$f":"valuePL(D15,'Utility Functions'!$E$3:$E$5,'Utility Functions'!$F$3:$F$5)","v":0.5},{"$f":"valuePL(E15,'Utility Functions'!$G$3:$G$5,'Utility Functions'!$H$3:$H$5)","v":0.5},{"$f":"valuePL(F15,'Utility Functions'!$I$3:$I$4,'Utility Functions'!$J$3:$J$5)","v":0},{"$f":"valueE(G15,'Utility Functions'!$L$3,'Utility Functions'!$L$4,'Utility Functions'!$L$5,'Utility Functions'!$L$6)","v":0},{"$f":"valueE(H15,'Utility Functions'!$N$3,'Utility Functions'!$N$4,'Utility Functions'!$N$5,'Utility Functions'!$N$6)","v":0},{"$f":"valuePL(I15,'Utility Functions'!$O$3:$O$6,'Utility Functions'!$P$3:$P$6)","v":0},{"$f":"valuePL(J15,'Utility Functions'!$Q$3:$Q$6,'Utility Functions'!$R$3:$R$6)","v":0},{"$f":"valuePL(K15,'Utility Functions'!$S$3:$S$7,'Utility Functions'!$T$3:$T$7)","v":0},{"$f":"valueE(L15,'Utility Functions'!$V$3,'Utility Functions'!$V$4,'Utility Functions'!$V$5,'Utility Functions'!$V$6)","v":0},{"$f":"valuePL(M15,'Utility Functions'!$W$3:$W$6,'Utility Functions'!$X$3:$X$6)","v":0},{"$f":"valueE(N15,'Utility Functions'!$Z$3,'Utility Functions'!$Z$4,'Utility Functions'!$Z$5,'Utility Functions'!$Z$6)","v":0.75},{"$f":"valuePL(O15,'Utility Functions'!$AA$3:$AA$5,'Utility Functions'!$AB$3:$AB$5)","v":0.25},{"$f":"valuePL(P15,'Utility Functions'!$AC$3:$AC$7,'Utility Functions'!$AD$3:$AD$7)","v":0.25},{"$f":"valuePL(Q15,'Utility Functions'!$AE$3:$AE$6,'Utility Functions'!$AF$3:$AF$6)","v":0},{"$f":"valuePL(R15,'Utility Functions'!$AG$3:$AG$6,'Utility Functions'!$AH$3:$AH$6)","v":1},{"$f":"valuePL(S15,'Utility Functions'!$AI$3:$AI$6,'Utility Functions'!$AJ$3:$AJ$6)","v":1},{"$f":"valuePL(T15,'Utility Functions'!$AK$3:$AK$8,'Utility Functions'!$AL$3:$AL$8)","v":0},{"$f":"valuePL(U15,'Utility Functions'!$AM$3:$AM$5,'Utility Functions'!$AN$3:$AN$5)","v":0},{"$f":"valuePL(V15,'Utility Functions'!$AO$3:$AO$5,'Utility Functions'!$AP$3:$AP$5)","v":0.5},{"$f":"valuePL(W15,'Utility Functions'!$AQ$3:$AQ$6,'Utility Functions'!$AR$3:$AR$6)","v":0.2},{"$f":"valuePL(X15,'Utility Functions'!$AS$3:$AS$6,'Utility Functions'!$AT$3:$AT$6)","v":1},{"$f":"valuePL(Y15,'Utility Functions'!$AU$3:$AU$6,'Utility Functions'!$AV$3:$AV$6)","v":1},{"$f":"valuePL(Z15,'Utility Functions'!$AW$3:$AW$5,'Utility Functions'!$AX$3:$AX$5)","v":0.5},{"$f":"valuePL(AA15,'Utility Functions'!$AY$3:$AY$6,'Utility Functions'!$AZ$3:$AZ$6)","v":0.89999999999999991},{"$f":"valuePL(AB15,'Utility Functions'!$BA$3:$BA$5,'Utility Functions'!$BB$3:$BB$5)","v":0.25},{"$f":"valuePL(AC15,'Utility Functions'!$BC$3:$BC$5,'Utility Functions'!$BD$3:$BD$5)","v":0.25},10.338706637075108,null,10.338706637075106,2.488706637075107,0,1,2.25,4.5999999999999996]
[15,{"$f":"valueE(B16,'Utility Functions'!$B$3,'Utility Functions'!$B$4,'Utility Functions'!$B$5,'Utility Functions'!$B$6)","v":0.98994966417177144},{"$f":"valueE(C16,'Utility Functions'!$D$3,'Utility Functions'!$D$4,'Utility Functions'!$D$5,'Utility Functions'!$D$6)","v":0.71352759724260828},{"$f":"valuePL(D16,'Utility Functions'!$E$3:$E$5,'Utility Functions'!$F$3:$F$5)","v":1},{"$f":"valuePL(E16,'Utility Functions'!$G$3:$G$5,'Utility Functions'!$H$3:$H$5)","v":0.5},{"$f":"valuePL(F16,'Utility Functions'!$I$3:$I$4,'Utility Functions'!$J$3:$J$5)","v":1},{"$f":"valueE(G16,'Utility Functions'!$L$3,'Utility Functions'!$L$4,'Utility Functions'!$L$5,'Utility Functions'!$L$6)","v":0},{"$f":"valueE(H16,'Utility Functions'!$N$3,'Utility Functions'!$N$4,'Utility Functions'!$N$5,'Utility Functions'!$N$6)","v":0},{"$f":"valuePL(I16,'Utility Functions'!$O$3:$O$6,'Utility Functions'!$P$3:$P$6)","v":9.2000000000000012E-2},{"$f":"valuePL(J16,'Utility Functions'!$Q$3:$Q$6,'Utility Functions'!$R$3:$R$6)","v":6.0000000000000012E-2},{"$f":"valuePL(K16,'Utility Functions'!$S$3:$S$7,'Utility Functions'!$T$3:$T$7)","v":6.0000000000000012E-2},{"$f":"valueE(L16,'Utility Functions'!$V$3,'Utility Functions'!$V$4,'Utility Functions'!$V$5,'Utility Functions'!$V$6)","v":1},{"$f":"valuePL(M16,'Utility Functions'!$W$3:$W$6,'Utility Functions'!$X$3:$X$6)","v":6.0000000000000012E-2},{"$f":"valueE(N16,'Utility Functions'!$Z$3,'Utility Functions'!$Z$4,'Utility Functions'!$Z$5,'Utility Functions'!$Z$6)","v":0.125},{"$f":"valuePL(O16,'Utility Functions'!$AA$3:$AA$5,'Utility Functions'!$AB$3:$AB$5)","v":1},{"$f":"valuePL(P16,'Utility Functions'!$AC$3:$AC$7,'Utility Functions'!$AD$3:$AD$7)","v":0.5},{"$f":"valuePL(Q16,'Utility Functions'!$AE$3:$AE$6,'Utility Functions'!$AF$3:$AF$6)","v":0},{"$f":"valuePL(R16,'Utility Functions'!$AG$3:$AG$6,'Utility Functions'!$AH$3:$AH$6)","v":0.8},{"$f":"valuePL(S16,'Utility Functions'!$AI$3:$AI$6,'Utility Functions'!$AJ$3:$AJ$6)","v":1},{"$f":"valuePL(T16,'Utility Functions'!$AK$3:$AK$8,'Utility Functions'!$AL$3:$AL$8)","v":0.6},{"$f":"valuePL(U16,'Utility Functions'!$AM$3:$AM$5,'Utility Functions'!$AN$3:$AN$5)","v":1},{"$f":"valuePL(V16,'Utility Functions'!$AO$3:$AO$5,'Utility Functions'!$AP$3:$AP$5)","v":0},{"$f":"valuePL(W16,'Utility Functions'!$AQ$3:$AQ$6,'Utility Functions'!$AR$3:$AR$6)","v":1},{"$f":"valuePL(X16,'Utility Functions'!$AS$3:$AS$6,'Utility Functions'!$AT$3:$AT$6)","v":0.2},{"$f":"valuePL(Y16,'Utility Functions'!$AU$3:$AU$6,'Utility Functions'!$AV$3:$AV$6)","v":0.2},{"$f":"valuePL(Z16,'Utility Functions'!$AW$3:$AW$5,'Utility Functions'!$AX$3:$AX$5)","v":1},{"$f":"valuePL(AA16,'Utility Functions'!$AY$3:$AY$6,'Utility Functions'!$AZ$3:$AZ$6)","v":1},{"$f":"valuePL(AB16,'Utility Functions'!$BA$3:$BA$5,'Utility Functions'!$BB$3:$BB$5)","v":1},{"$f":"valuePL(AC16,'Utility Functions'!$BC$3:$BC$5,'Utility Functions'!$BD$3:$BD$5)","v":0.25},15.150477261414375,null,15.15047726141438,4.2034772614143794,1.272,1.125,3.9,4.6500000000000004]
[16,{"$f":"valueE(B17,'Utility Functions'!$B$3,'Utility Functions'!$B$4,'Utility Functions'!$B$5,'Utility Functions'!$B$6)","v":0},{"$f":"valueE(C17,'Utility Functions'!$D$3,'Utility Functions'!$D$4,'Utility Functions'!$D$5,'Utility Functions'!$D$6)","v":0},{"$f":"valuePL(D17,'Utility Functions'!$E$3:$E$5,'Utility Functions'!$F$3:$F$5)","v":0},{"$f":"valuePL(E17,'Utility Functions'!$G$3:$G$5,'Utility Functions'!$H$3:$H$5)","v":0},{"$f":"valuePL(F17,'Utility Functions'!$I$3:$I$4,'Utility Functions'!$J$3:$J$5)","v":0},{"$f":"valueE(G17,'Utility Functions'!$L$3,'Utility Functions'!$L$4,'Utility Functions'!$L$5,'Utility Functions'!$L$6)","v":0},{"$f":"valueE(H17,'Utility Functions'!$N$3,'Utility Functions'!$N$4,'Utility Functions'!$N$5,'Utility Functions'!$N$6)","v":0},{"$f":"valuePL(I17,'Utility Functions'!$O$3:$O$6,'Utility Functions'!$P$3:$P$6)","v":1},{"$f":"valuePL(J17,'Utility Functions'!$Q$3:$Q$6,'Utility Functions'!$R$3:$R$6)","v":0.91818181818181821},{"$f":"valuePL(K17,'Utility Functions'!$S$3:$S$7,'Utility Functions'!$T$3:$T$7)","v":1},{"$f":"valueE(L17,'Utility Functions'!$V$3,'Utility Functions'!$V$4,'Utility Functions'!$V$5,'Utility Functions'!$V$6)","v":0.83333333333333337},{"$f":"valuePL(M17,'Utility Functions'!$W$3:$W$6,'Utility Functions'!$X$3:$X$6)","v":0.91818181818181821},{"$f":"valueE(N17,'Utility Functions'!$Z$3,'Utility Functions'!$Z$4,'Utility Functions'!$Z$5,'Utility Functions'!$Z$6)","v":0},{"$f":"valuePL(O17,'Utility Functions'!$AA$3:$AA$5,'Utility Functions'!$AB$3:$AB$5)","v":0},{"$f":"valuePL(P17,'Utility Functions'!$AC$3:$AC$7,'Utility Functions'!$AD$3:$AD$7)","v":0.75},{"$f":"valuePL(Q17,'Utility Functions'!$AE$3:$AE$6,'Utility Functions'!$AF$3:$AF$6)","v":0},{"$f":"valuePL(R17,'Utility Functions'!$AG$3:$AG$6,'Utility Functions'!$AH$3:$AH$6)","v":1},{"$f":"valuePL(S17,'Utility Functions'!$AI$3:$AI$6,'Utility Functions'!$AJ$3:$AJ$6)","v":1},{"$f":"valuePL(T17,'Utility Functions'!$AK$3:$AK$8,'Utility Functions'!$AL$3:$AL$8)","v":1},{"$f":"valuePL(U17,'Utility Functions'!$AM$3:$AM$5,'Utility Functions'!$AN$3:$AN$5)","v":0},{"$f":"valuePL(V17,'Utility Functions'!$AO$3:$AO$5,'Utility Functions'!$AP$3:$AP$5)","v":1},{"$f":"valuePL(W17,'Utility Functions'!$AQ$3:$AQ$6,'Utility Functions'!$AR$3:$AR$6)","v":0.75},{"$f":"valuePL(X17,'Utility Functions'!$AS$3:$AS$6,'Utility Functions'!$AT$3:$AT$6)","v":0.75},{"$f":"valuePL(Y17,'Utility Functions'!$AU$3:$AU$6,'Utility Functions'!$AV$3:$AV$6)","v":0.2},{"$f":"valuePL(Z17,'Utility Functions'!$AW$3:$AW$5,'Utility Functions'!$AX$3:$AX$5)","v":1},{"$f":"valuePL(AA17,'Utility Functions'!$AY$3:$AY$6,'Utility Functions'!$AZ$3:$AZ$6)","v":1},{"$f":"valuePL(AB17,'Utility Functions'!$BA$3:$BA$5,'Utility Functions'!$BB$3:$BB$5)","v":1},{"$f":"valuePL(AC17,'Utility Functions'!$BC$3:$BC$5,'Utility Functions'!$BD$3:$BD$5)","v":1},15.119696969696969,null,15.119696969696971,0,4.6696969696969699,0,3.75,6.7]
[17,{"$f":"valueE(B18,'Utility Functions'!$B$3,'Utility Functions'!$B$4,'Utility Functions'!$B$5,'Utility Functions'!$B$6)","v":0.32968045347775865},{"$f":"valueE(C18,'Utility Functions'!$D$3,'Utility Functions'!$D$4,'Utility Functions'!$D$5,'Utility Functions'!$D$6)","v":0.78989979019422951},{"$f":"valuePL(D18,'Utility Functions'!$E$3:$E$5,'Utility Functions'!$F$3:$F$5)","v":1},{"$f":"valuePL(E18,'Utility Functions'!$G$3:$G$5,'Utility Functions'!$H$3:$H$5)","v":0.5},{"$f":"valuePL(F18,'Utility Functions'!$I$3:$I$4,'Utility Functions'!$J$3:$J$5)","v":1},{"$f":"valueE(G18,'Utility Functions'!$L$3,'Utility Functions'!$L$4,'Utility Functions'!$L$5,'Utility Functions'!$L$6)","v":0.31182795698924731},{"$f":"valueE(H18,'Utility Functions'!$N$3,'Utility Functions'!$N$4,'Utility Functions'!$N$5,'Utility Functions'!$N$6)","v":0.27514231499051234},{"$f":"valuePL(I18,'Utility Functions'!$O$3:$O$6,'Utility Functions'!$P$3:$P$6)","v":0},{"$f":"valuePL(J18,'Utility Functions'!$Q$3:$Q$6,'Utility Functions'!$R$3:$R$6)","v":0},{"$f":"valuePL(K18,'Utility Functions'!$S$3:$S$7,'Utility Functions'!$T$3:$T$7)","v":0},{"$f":"valueE(L18,'Utility Functions'!$V$3,'Utility Functions'!$V$4,'Utility Functions'!$V$5,'Utility Functions'!$V$6)","v":1},{"$f":"valuePL(M18,'Utility Functions'!$W$3:$W$6,'Utility Functions'!$X$3:$X$6)","v":6.0000000000000012E-2},{"$f":"valueE(N18,'Utility Functions'!$Z$3,'Utility Functions'!$Z$4,'Utility Functions'!$Z$5,'Utility Functions'!$Z$6)","v":0},{"$f":"valuePL(O18,'Utility Functions'!$AA$3:$AA$5,'Utility Functions'!$AB$3:$AB$5)","v":0},{"$f":"valuePL(P18,'Utility Functions'!$AC$3:$AC$7,'Utility Functions'!$AD$3:$AD$7)","v":0},{"$f":"valuePL(Q18,'Utility Functions'!$AE$3:$AE$6,'Utility Functions'!$AF$3:$AF$6)","v":0},{"$f":"valuePL(R18,'Utility Functions'!$AG$3:$AG$6,'Utility Functions'!$AH$3:$AH$6)","v":1},{"$f":"valuePL(S18,'Utility Functions'!$AI$3:$AI$6,'Utility Functions'!$AJ$3:$AJ$6)","v":0.66},{"$f":"valuePL(T18,'Utility Functions'!$AK$3:$AK$8,'Utility Functions'!$AL$3:$AL$8)","v":0},{"$f":"valuePL(U18,'Utility Functions'!$AM$3:$AM$5,'Utility Functions'!$AN$3:$AN$5)","v":0},{"$f":"valuePL(V18,'Utility Functions'!$AO$3:$AO$5,'Utility Functions'!$AP$3:$AP$5)","v":1},{"$f":"valuePL(W18,'Utility Functions'!$AQ$3:$AQ$6,'Utility Functions'!$AR$3:$AR$6)","v":1},{"$f":"valuePL(X18,'Utility Functions'!$AS$3:$AS$6,'Utility Functions'!$AT$3:$AT$6)","v":0.2},{"$f":"valuePL(Y18,'Utility Functions'!$AU$3:$AU$6,'Utility Functions'!$AV$3:$AV$6)","v":0},{"$f":"valuePL(Z18,'Utility Functions'!$AW$3:$AW$5,'Utility Functions'!$AX$3:$AX$5)","v":0.5},{"$f":"valuePL(AA18,'Utility Functions'!$AY$3:$AY$6,'Utility Functions'!$AZ$3:$AZ$6)","v":0},{"$f":"valuePL(AB18,'Utility Functions'!$BA$3:$BA$5,'Utility Functions'!$BB$3:$BB$5)","v":1},{"$f":"valuePL(AC18,'Utility Functions'!$BC$3:$BC$5,'Utility Functions'!$BD$3:$BD$5)","v":0.25},10.876550515651747,null,10.876550515651747,3.6195802436719884,1.6469702719797596,0,1.6600000000000001,3.95]
[18,{"$f":"valueE(B19,'Utility Functions'!$B$3,'Utility Functions'!$B$4,'Utility Functions'!$B$5,'Utility Functions'!$B$6)","v":0},{"$f":"valueE(C19,'Utility Functions'!$D$3,'Utility Functions'!$D$4,'Utility Functions'!$D$5,'Utility Functions'!$D$6)","v":0},{"$f":"valuePL(D19,'Utility Functions'!$E$3:$E$5,'Utility Functions'!$F$3:$F$5)","v":0},{"$f":"valuePL(E19,'Utility Functions'!$G$3:$G$5,'Utility Functions'!$H$3:$H$5)","v":0},{"$f":"valuePL(F19,'Utility Functions'!$I$3:$I$4,'Utility Functions'!$J$3:$J$5)","v":0},{"$f":"valueE(G19,'Utility Functions'!$L$3,'Utility Functions'!$L$4,'Utility Functions'!$L$5,'Utility Functions'!$L$6)","v":0},{"$f":"valueE(H19,'Utility Functions'!$N$3,'Utility Functions'!$N$4,'Utility Functions'!$N$5,'Utility Functions'!$N$6)","v":2.8462998102466792E-2},{"$f":"valuePL(I19,'Utility Functions'!$O$3:$O$6,'Utility Functions'!$P$3:$P$6)","v":0},{"$f":"valuePL(J19,'Utility Functions'!$Q$3:$Q$6,'Utility Functions'!$R$3:$R$6)","v":0},{"$f":"valuePL(K19,'Utility Functions'!$S$3:$S$7,'Utility Functions'!$T$3:$T$7)","v":0},{"$f":"valueE(L19,'Utility Functions'!$V$3,'Utility Functions'!$V$4,'Utility Functions'!$V$5,'Utility Functions'!$V$6)","v":0},{"$f":"valuePL(M19,'Utility Functions'!$W$3:$W$6,'Utility Functions'!$X$3:$X$6)","v":0},{"$f":"valueE(N19,'Utility Functions'!$Z$3,'Utility Functions'!$Z$4,'Utility Functions'!$Z$5,'Utility Functions'!$Z$6)","v":1},{"$f":"valuePL(O19,'Utility Functions'!$AA$3:$AA$5,'Utility Functions'!$AB$3:$AB$5)","v":0.25},{"$f":"valuePL(P19,'Utility Functions'!$AC$3:$AC$7,'Utility Functions'!$AD$3:$AD$7)","v":0.25},{"$f":"valuePL(Q19,'Utility Functions'!$AE$3:$AE$6,'Utility Functions'!$AF$3:$AF$6)","v":1},{"$f":"valuePL(R19,'Utility Functions'!$AG$3:$AG$6,'Utility Functions'!$AH$3:$AH$6)","v":1},{"$f":"valuePL(S19,'Utility Functions'!$AI$3:$AI$6,'Utility Functions'!$AJ$3:$AJ$6)","v":1},{"$f":"valuePL(T19,'Utility Functions'!$AK$3:$AK$8,'Utility Functions'!$AL$3:$AL$8)","v":1},{"$f":"valuePL(U19,'Utility Functions'!$AM$3:$AM$5,'Utility Functions'!$AN$3:$AN$5)","v":0.25},{"$f":"valuePL(V19,'Utility Functions'!$AO$3:$AO$5,'Utility Functions'!$AP$3:$AP$5)","v":1},{"$f":"valuePL(W19,'Utility Functions'!$AQ$3:$AQ$6,'Utility Functions'!$AR$3:$AR$6)","v":0.75},{"$f":"valuePL(X19,'Utility Functions'!$AS$3:$AS$6,'Utility Functions'!$AT$3:$AT$6)","v":0.2},{"$f":"valuePL(Y19,'Utility Functions'!$AU$3:$AU$6,'Utility Functions'!$AV$3:$AV$6)","v":0.8},{"$f":"valuePL(Z19,'Utility Functions'!$AW$3:$AW$5,'Utility Functions'!$AX$3:$AX$5)","v":0.5},{"$f":"valuePL(AA19,'Utility Functions'!$AY$3:$AY$6,'Utility Functions'!$AZ$3:$AZ$6)","v":0.89999999999999991},{"$f":"valuePL(AB19,'Utility Functions'!$BA$3:$BA$5,'Utility Functions'!$BB$3:$BB$5)","v":0.25},{"$f":"valuePL(AC19,'Utility Functions'!$BC$3:$BC$5,'Utility Functions'!$BD$3:$BD$5)","v":0},10.178462998102468,null,10.178462998102468,0,2.8462998102466792E-2,1.25,4.5,4.4000000000000004]
[19,{"$f":"valueE(B20,'Utility Functions'!$B$3,'Utility Functions'!$B$4,'Utility Functions'!$B$5,'Utility Functions'!$B$6)","v":0.79810469124896843},{"$f":"valueE(C20,'Utility Functions'!$D$3,'Utility Functions'!$D$4,'Utility Functions'!$D$5,'Utility Functions'!$D$6)","v":0.26839655623815994},{"$f":"valuePL(D20,'Utility Functions'!$E$3:$E$5,'Utility Functions'!$F$3:$F$5)","v":0.5},{"$f":"valuePL(E20,'Utility Functions'!$G$3:$G$5,'Utility Functions'!$H$3:$H$5)","v":1},{"$f":"valuePL(F20,'Utility Functions'!$I$3:$I$4,'Utility Functions'!$J$3:$J$5)","v":0},{"$f":"valueE(G20,'Utility Functions'!$L$3,'Utility Functions'!$L$4,'Utility Functions'!$L$5,'Utility Functions'!$L$6)","v":0},{"$f":"valueE(H20,'Utility Functions'!$N$3,'Utility Functions'!$N$4,'Utility Functions'!$N$5,'Utility Functions'!$N$6)","v":0},{"$f":"valuePL(I20,'Utility Functions'!$O$3:$O$6,'Utility Functions'!$P$3:$P$6)","v":0},{"$f":"valuePL(J20,'Utility Functions'!$Q$3:$Q$6,'Utility Functions'!$R$3:$R$6)","v":0},{"$f":"valuePL(K20,'Utility Functions'!$S$3:$S$7,'Utility Functions'!$T$3:$T$7)","v":0},{"$f":"valueE(L20,'Utility Functions'!$V$3,'Utility Functions'!$V$4,'Utility Functions'!$V$5,'Utility Functions'!$V$6)","v":0},{"$f":"valuePL(M20,'Utility Functions'!$W$3:$W$6,'Utility Functions'!$X$3:$X$6)","v":0},{"$f":"valueE(N20,'Utility Functions'!$Z$3,'Utility Functions'!$Z$4,'Utility Functions'!$Z$5,'Utility Functions'!$Z$6)","v":1},{"$f":"valuePL(O20,'Utility Functions'!$AA$3:$AA$5,'Utility Functions'!$AB$3:$AB$5)","v":1},{"$f":"valuePL(P20,'Utility Functions'!$AC$3:$AC$7,'Utility Functions'!$AD$3:$AD$7)","v":0},{"$f":"valuePL(Q20,'Utility Functions'!$AE$3:$AE$6,'Utility Functions'!$AF$3:$AF$6)","v":0},{"$f":"valuePL(R20,'Utility Functions'!$AG$3:$AG$6,'Utility Functions'!$AH$3:$AH$6)","v":0.8},{"$f":"valuePL(S20,'Utility Functions'!$AI$3:$AI$6,'Utility Functions'!$AJ$3:$AJ$6)","v":1},{"$f":"valuePL(T20,'Utility Functions'!$AK$3:$AK$8,'Utility Functions'!$AL$3:$AL$8)","v":0},{"$f":"valuePL(U20,'Utility Functions'!$AM$3:$AM$5,'Utility Functions'!$AN$3:$AN$5)","v":0},{"$f":"valuePL(V20,'Utility Functions'!$AO$3:$AO$5,'Utility Functions'!$AP$3:$AP$5)","v":0.5},{"$f":"valuePL(W20,'Utility Functions'!$AQ$3:$AQ$6,'Utility Functions'!$AR$3:$AR$6)","v":0.2},{"$f":"valuePL(X20,'Utility Functions'!$AS$3:$AS$6,'Utility Functions'!$AT$3:$AT$6)","v":1},{"$f":"valuePL(Y20,'Utility Functions'!$AU$3:$AU$6,'Utility Functions'!$AV$3:$AV$6)","v":0.8},{"$f":"valuePL(Z20,'Utility Functions'!$AW$3:$AW$5,'Utility Functions'!$AX$3:$AX$5)","v":0},{"$f":"valuePL(AA20,'Utility Functions'!$AY$3:$AY$6,'Utility Functions'!$AZ$3:$AZ$6)","v":0.2},{"$f":"valuePL(AB20,'Utility Functions'!$BA$3:$BA$5,'Utility Functions'!$BB$3:$BB$5)","v":0},{"$f":"valuePL(AC20,'Utility Functions'!$BC$3:$BC$5,'Utility Functions'!$BD$3:$BD$5)","v":0.25},9.3165012474871283,null,9.3165012474871283,2.5665012474871283,0,2,1.8,2.95]
[20,{"$f":"valueE(B21,'Utility Functions'!$B$3,'Utility Functions'!$B$4,'Utility Functions'!$B$5,'Utility Functions'!$B$6)","v":0.83470237647280454},{"$f":"valueE(C21,'Utility Functions'!$D$3,'Utility Functions'!$D$4,'Utility Functions'!$D$5,'Utility Functions'!$D$6)","v":0.78989979019422951},{"$f":"valuePL(D21,'Utility Functions'!$E$3:$E$5,'Utility Functions'!$F$3:$F$5)","v":0.5},{"$f":"valuePL(E21,'Utility Functions'!$G$3:$G$5,'Utility Functions'!$H$3:$H$5)","v":1},{"$f":"valuePL(F21,'Utility Functions'!$I$3:$I$4,'Utility Functions'!$J$3:$J$5)","v":0},{"$f":"valueE(G21,'Utility Functions'!$L$3,'Utility Functions'!$L$4,'Utility Functions'!$L$5,'Utility Functions'!$L$6)","v":0},{"$f":"valueE(H21,'Utility Functions'!$N$3,'Utility Functions'!$N$4,'Utility Functions'!$N$5,'Utility Functions'!$N$6)","v":0.41271347248576851},{"$f":"valuePL(I21,'Utility Functions'!$O$3:$O$6,'Utility Functions'!$P$3:$P$6)","v":0.93454545454545446},{"$f":"valuePL(J21,'Utility Functions'!$Q$3:$Q$6,'Utility Functions'!$R$3:$R$6)","v":0.50909090909090915},{"$f":"valuePL(K21,'Utility Functions'!$S$3:$S$7,'Utility Functions'!$T$3:$T$7)","v":0.93454545454545446},{"$f":"valueE(L21,'Utility Functions'!$V$3,'Utility Functions'!$V$4,'Utility Functions'!$V$5,'Utility Functions'!$V$6)","v":0.66666666666666663},{"$f":"valuePL(M21,'Utility Functions'!$W$3:$W$6,'Utility Functions'!$X$3:$X$6)","v":0.50909090909090915},{"$f":"valueE(N21,'Utility Functions'!$Z$3,'Utility Functions'!$Z$4,'Utility Functions'!$Z$5,'Utility Functions'!$Z$6)","v":1},{"$f":"valuePL(O21,'Utility Functions'!$AA$3:$AA$5,'Utility Functions'!$AB$3:$AB$5)","v":1},{"$f":"valuePL(P21,'Utility Functions'!$AC$3:$AC$7,'Utility Functions'!$AD$3:$AD$7)","v":0.25},{"$f":"valuePL(Q21,'Utility Functions'!$AE$3:$AE$6,'Utility Functions'!$AF$3:$AF$6)","v":0},{"$f":"valuePL(R21,'Utility Functions'!$AG$3:$AG$6,'Utility Functions'!$AH$3:$AH$6)","v":1},{"$f":"valuePL(S21,'Utility Functions'!$AI$3:$AI$6,'Utility Functions'!$AJ$3:$AJ$6)","v":1},{"$f":"valuePL(T21,'Utility Functions'!$AK$3:$AK$8,'Utility Functions'!$AL$3:$AL$8)","v":0.6},{"$f":"valuePL(U21,'Utility Functions'!$AM$3:$AM$5,'Utility Functions'!$AN$3:$AN$5)","v":1},{"$f":"valuePL(V21,'Utility Functions'!$AO$3:$AO$5,'Utility Functions'!$AP$3:$AP$5)","v":0.5},{"$f":"valuePL(W21,'Utility Functions'!$AQ$3:$AQ$6,'Utility Functions'!$AR$3:$AR$6)","v":0},{"$f":"valuePL(X21,'Utility Functions'!$AS$3:$AS$6,'Utility Functions'!$AT$3:$AT$6)","v":0},{"$f":"valuePL(Y21,'Utility Functions'!$AU$3:$AU$6,'Utility Functions'!$AV$3:$AV$6)","v":0.2},{"$f":"valuePL(Z21,'Utility Functions'!$AW$3:$AW$5,'Utility Functions'!$AX$3:$AX$5)","v":1},{"$f":"valuePL(AA21,'Utility Functions'!$AY$3:$AY$6,'Utility Functions'!$AZ$3:$AZ$6)","v":0.2},{"$f":"valuePL(AB21,'Utility Functions'!$BA$3:$BA$5,'Utility Functions'!$BB$3:$BB$5)","v":0},{"$f":"valuePL(AC21,'Utility Functions'!$BC$3:$BC$5,'Utility Functions'!$BD$3:$BD$5)","v":0.25},15.091255033092194,null,15.091255033092196,3.1246021666670343,3.9666528664251626,2,3.85,2.15]
[21,{"$f":"valueE(B22,'Utility Functions'!$B$3,'Utility Functions'!$B$4,'Utility Functions'!$B$5,'Utility Functions'!$B$6)","v":0},{"$f":"valueE(C22,'Utility Functions'!$D$3,'Utility Functions'!$D$4,'Utility Functions'!$D$5,'Utility Functions'!$D$6)","v":0},{"$f":"valuePL(D22,'Utility Functions'!$E$3:$E$5,'Utility Functions'!$F$3:$F$5)","v":0},{"$f":"valuePL(E22,'Utility Functions'!$G$3:$G$5,'Utility Functions'!$H$3:$H$5)","v":0},{"$f":"valuePL(F22,'Utility Functions'!$I$3:$I$4,'Utility Functions'!$J$3:$J$5)","v":0},{"$f":"valueE(G22,'Utility Functions'!$L$3,'Utility Functions'!$L$4,'Utility Functions'!$L$5,'Utility Functions'!$L$6)","v":0},{"$f":"valueE(H22,'Utility Functions'!$N$3,'Utility Functions'!$N$4,'Utility Functions'!$N$5,'Utility Functions'!$N$6)","v":0},{"$f":"valuePL(I22,'Utility Functions'!$O$3:$O$6,'Utility Functions'!$P$3:$P$6)","v":0},{"$f":"valuePL(J22,'Utility Functions'!$Q$3:$Q$6,'Utility Functions'!$R$3:$R$6)","v":0},{"$f":"valuePL(K22,'Utility Functions'!$S$3:$S$7,'Utility Functions'!$T$3:$T$7)","v":0},{"$f":"valueE(L22,'Utility Functions'!$V$3,'Utility Functions'!$V$4,'Utility Functions'!$V$5,'Utility Functions'!$V$6)","v":0},{"$f":"valuePL(M22,'Utility Functions'!$W$3:$W$6,'Utility Functions'!$X$3:$X$6)","v":0},{"$f":"valueE(N22,'Utility Functions'!$Z$3,'Utility Functions'!$Z$4,'Utility Functions'!$Z$5,'Utility Functions'!$Z$6)","v":1},{"$f":"valuePL(O22,'Utility Functions'!$AA$3:$AA$5,'Utility Functions'!$AB$3:$AB$5)","v":1},{"$f":"valuePL(P22,'Utility Functions'!$AC$3:$AC$7,'Utility Functions'!$AD$3:$AD$7)","v":0},{"$f":"valuePL(Q22,'Utility Functions'!$AE$3:$AE$6,'Utility Functions'!$AF$3:$AF$6)","v":0.1},{"$f":"valuePL(R22,'Utility Functions'!$AG$3:$AG$6,'Utility Functions'!$AH$3:$AH$6)","v":1},{"$f":"valuePL(S22,'Utility Functions'!$AI$3:$AI$6,'Utility Functions'!$AJ$3:$AJ$6)","v":1},{"$f":"valuePL(T22,'Utility Functions'!$AK$3:$AK$8,'Utility Functions'!$AL$3:$AL$8)","v":1},{"$f":"valuePL(U22,'Utility Functions'!$AM$3:$AM$5,'Utility Functions'!$AN$3:$AN$5)","v":0.25},{"$f":"valuePL(V22,'Utility Functions'!$AO$3:$AO$5,'Utility Functions'!$AP$3:$AP$5)","v":0},{"$f":"valuePL(W22,'Utility Functions'!$AQ$3:$AQ$6,'Utility Functions'!$AR$3:$AR$6)","v":0.75},{"$f":"valuePL(X22,'Utility Functions'!$AS$3:$AS$6,'Utility Functions'!$AT$3:$AT$6)","v":1},{"$f":"valuePL(Y22,'Utility Functions'!$AU$3:$AU$6,'Utility Functions'!$AV$3:$AV$6)","v":0.2},{"$f":"valuePL(Z22,'Utility Functions'!$AW$3:$AW$5,'Utility Functions'!$AX$3:$AX$5)","v":0},{"$f":"valuePL(AA22,'Utility Functions'!$AY$3:$AY$6,'Utility Functions'!$AZ$3:$AZ$6)","v":1},{"$f":"valuePL(AB22,'Utility Functions'!$BA$3:$BA$5,'Utility Functions'!$BB$3:$BB$5)","v":0.25},{"$f":"valuePL(AC22,'Utility Functions'!$BC$3:$BC$5,'Utility Functions'!$BD$3:$BD$5)","v":1},9.5500000000000007,null,9.5500000000000007,0,0,2,3.35,4.2]
[22,{"$f":"valueE(B23,'Utility Functions'!$B$3,'Utility Functions'!$B$4,'Utility Functions'!$B$5,'Utility Functions'!$B$6)","v":0},{"$f":"valueE(C23,'Utility Functions'!$D$3,'Utility Functions'!$D$4,'Utility Functions'!$D$5,'Utility Functions'!$D$6)","v":0},{"$f":"valuePL(D23,'Utility Functions'!$E$3:$E$5,'Utility Functions'!$F$3:$F$5)","v":0},{"$f":"valuePL(E23,'Utility Functions'!$G$3:$G$5,'Utility Functions'!$H$3:$H$5)","v":0},{"$f":"valuePL(F23,'Utility Functions'!$I$3:$I$4,'Utility Functions'!$J$3:$J$5)","v":0},{"$f":"valueE(G23,'Utility Functions'!$L$3,'Utility Functions'!$L$4,'Utility Functions'!$L$5,'Utility Functions'!$L$6)","v":8.6021505376344093E-2},{"$f":"valueE(H23,'Utility Functions'!$N$3,'Utility Functions'!$N$4,'Utility Functions'!$N$5,'Utility Functions'!$N$6)","v":6.0721062618595827E-2},{"$f":"valuePL(I23,'Utility Functions'!$O$3:$O$6,'Utility Functions'!$P$3:$P$6)","v":0},{"$f":"valuePL(J23,'Utility Functions'!$Q$3:$Q$6,'Utility Functions'!$R$3:$R$6)","v":0},{"$f":"valuePL(K23,'Utility Functions'!$S$3:$S$7,'Utility Functions'!$T$3:$T$7)","v":0},{"$f":"valueE(L23,'Utility Functions'!$V$3,'Utility Functions'!$V$4,'Utility Functions'!$V$5,'Utility Functions'!$V$6)","v":0},{"$f":"valuePL(M23,'Utility Functions'!$W$3:$W$6,'Utility Functions'!$X$3:$X$6)","v":0},{"$f":"valueE(N23,'Utility Functions'!$Z$3,'Utility Functions'!$Z$4,'Utility Functions'!$Z$5,'Utility Functions'!$Z$6)","v":0.125},{"$f":"valuePL(O23,'Utility Functions'!$AA$3:$AA$5,'Utility Functions'!$AB$3:$AB$5)","v":1},{"$f":"valuePL(P23,'Utility Functions'!$AC$3:$AC$7,'Utility Functions'!$AD$3:$AD$7)","v":1},{"$f":"valuePL(Q23,'Utility Functions'!$AE$3:$AE$6,'Utility Functions'!$AF$3:$AF$6)","v":0.5},{"$f":"valuePL(R23,'Utility Functions'!$AG$3:$AG$6,'Utility Functions'!$AH$3:$AH$6)","v":0.8},{"$f":"valuePL(S23,'Utility Functions'!$AI$3:$AI$6,'Utility Functions'!$AJ$3:$AJ$6)","v":1},{"$f":"valuePL(T23,'Utility Functions'!$AK$3:$AK$8,'Utility Functions'!$AL$3:$AL$8)","v":1},{"$f":"valuePL(U23,'Utility Functions'!$AM$3:$AM$5,'Utility Functions'!$AN$3:$AN$5)","v":0},{"$f":"valuePL(V23,'Utility Functions'!$AO$3:$AO$5,'Utility Functions'!$AP$3:$AP$5)","v":0.5},{"$f":"valuePL(W23,'Utility Functions'!$AQ$3:$AQ$6,'Utility Functions'!$AR$3:$AR$6)","v":0.75},{"$f":"valuePL(X23,'Utility Functions'!$AS$3:$AS$6,'Utility Functions'!$AT$3:$AT$6)","v":0.2},{"$f":"valuePL(Y23,'Utility Functions'!$AU$3:$AU$6,'Utility Functions'!$AV$3:$AV$6)","v":0},{"$f":"valuePL(Z23,'Utility Functions'!$AW$3:$AW$5,'Utility Functions'!$AX$3:$AX$5)","v":1},{"$f":"valuePL(AA23,'Utility Functions'!$AY$3:$AY$6,'Utility Functions'!$AZ$3:$AZ$6)","v":0.2},{"$f":"valuePL(AB23,'Utility Functions'!$BA$3:$BA$5,'Utility Functions'!$BB$3:$BB$5)","v":1},{"$f":"valuePL(AC23,'Utility Functions'!$BC$3:$BC$5,'Utility Functions'!$BD$3:$BD$5)","v":0.25},9.471742567994939,null,9.4717425679949407,0,0.14674256799493993,1.125,4.3,3.9000000000000004]
[23,{"$f":"valueE(B24,'Utility Functions'!$B$3,'Utility Functions'!$B$4,'Utility Functions'!$B$5,'Utility Functions'!$B$6)","v":0.83470237647280454},{"$f":"valueE(C24,'Utility Functions'!$D$3,'Utility Functions'!$D$4,'Utility Functions'!$D$5,'Utility Functions'!$D$6)","v":0.84744836833951609},{"$f":"valuePL(D24,'Utility Functions'!$E$3:$E$5,'Utility Functions'!$F$3:$F$5)","v":1},{"$f":"valuePL(E24,'Utility Functions'!$G$3:$G$5,'Utility Functions'!$H$3:$H$5)","v":0},{"$f":"valuePL(F24,'Utility Functions'!$I$3:$I$4,'Utility Functions'!$J$3:$J$5)","v":0},{"$f":"valueE(G24,'Utility Functions'!$L$3,'Utility Functions'!$L$4,'Utility Functions'!$L$5,'Utility Functions'!$L$6)","v":0},{"$f":"valueE(H24,'Utility Functions'!$N$3,'Utility Functions'!$N$4,'Utility Functions'!$N$5,'Utility Functions'!$N$6)","v":0},{"$f":"valuePL(I24,'Utility Functions'!$O$3:$O$6,'Utility Functions'!$P$3:$P$6)","v":0},{"$f":"valuePL(J24,'Utility Functions'!$Q$3:$Q$6,'Utility Functions'!$R$3:$R$6)","v":0},{"$f":"valuePL(K24,'Utility Functions'!$S$3:$S$7,'Utility Functions'!$T$3:$T$7)","v":0},{"$f":"valueE(L24,'Utility Functions'!$V$3,'Utility Functions'!$V$4,'Utility Functions'!$V$5,'Utility Functions'!$V$6)","v":0},{"$f":"valuePL(M24,'Utility Functions'!$W$3:$W$6,'Utility Functions'!$X$3:$X$6)","v":0},{"$f":"valueE(N24,'Utility Functions'!$Z$3,'Utility Functions'!$Z$4,'Utility Functions'!$Z$5,'Utility Functions'!$Z$6)","v":0},{"$f":"valuePL(O24,'Utility Functions'!$AA$3:$AA$5,'Utility Functions'!$AB$3:$AB$5)","v":0},{"$f":"valuePL(P24,'Utility Functions'!$AC$3:$AC$7,'Utility Functions'!$AD$3:$AD$7)","v":0.75},{"$f":"valuePL(Q24,'Utility Functions'!$AE$3:$AE$6,'Utility Functions'!$AF$3:$AF$6)","v":0},{"$f":"valuePL(R24,'Utility Functions'!$AG$3:$AG$6,'Utility Functions'!$AH$3:$AH$6)","v":1},{"$f":"valuePL(S24,'Utility Functions'!$AI$3:$AI$6,'Utility Functions'!$AJ$3:$AJ$6)","v":1},{"$f":"valuePL(T24,'Utility Functions'!$AK$3:$AK$8,'Utility Functions'!$AL$3:$AL$8)","v":1},{"$f":"valuePL(U24,'Utility Functions'!$AM$3:$AM$5,'Utility Functions'!$AN$3:$AN$5)","v":0},{"$f":"valuePL(V24,'Utility Functions'!$AO$3:$AO$5,'Utility Functions'!$AP$3:$AP$5)","v":1},{"$f":"valuePL(W24,'Utility Functions'!$AQ$3:$AQ$6,'Utility Functions'!$AR$3:$AR$6)","v":0.2},{"$f":"valuePL(X24,'Utility Functions'!$AS$3:$AS$6,'Utility Functions'!$AT$3:$AT$6)","v":0.75},{"$f":"valuePL(Y24,'Utility Functions'!$AU$3:$AU$6,'Utility Functions'!$AV$3:$AV$6)","v":0.2},{"$f":"valuePL(Z24,'Utility Functions'!$AW$3:$AW$5,'Utility Functions'!$AX$3:$AX$5)","v":0.5},{"$f":"valuePL(AA24,'Utility Functions'!$AY$3:$AY$6,'Utility Functions'!$AZ$3:$AZ$6)","v":0.2},{"$f":"valuePL(AB24,'Utility Functions'!$BA$3:$BA$5,'Utility Functions'!$BB$3:$BB$5)","v":0},{"$f":"valuePL(AC24,'Utility Functions'!$BC$3:$BC$5,'Utility Functions'!$BD$3:$BD$5)","v":0.25},9.5321507448123199,null,9.5321507448123199,2.6821507448123207,0,0,3.75,3.1]
[24,{"$f":"valueE(B25,'Utility Functions'!$B$3,'Utility Functions'!$B$4,'Utility Functions'!$B$5,'Utility Functions'!$B$6)","v":0.63212151658375171},{"$f":"valueE(C25,'Utility Functions'!$D$3,'Utility Functions'!$D$4,'Utility Functions'!$D$5,'Utility Functions'!$D$6)","v":0.46475967153745396},{"$f":"valuePL(D25,'Utility Functions'!$E$3:$E$5,'Utility Functions'!$F$3:$F$5)","v":1},{"$f":"valuePL(E25,'Utility Functions'!$G$3:$G$5,'Utility Functions'!$H$3:$H$5)","v":0},{"$f":"valuePL(F25,'Utility Functions'!$I$3:$I$4,'Utility Functions'!$J$3:$J$5)","v":0},{"$f":"valueE(G25,'Utility Functions'!$L$3,'Utility Functions'!$L$4,'Utility Functions'!$L$5,'Utility Functions'!$L$6)","v":0},{"$f":"valueE(H25,'Utility Functions'!$N$3,'Utility Functions'!$N$4,'Utility Functions'!$N$5,'Utility Functions'!$N$6)","v":0},{"$f":"valuePL(I25,'Utility Functions'!$O$3:$O$6,'Utility Functions'!$P$3:$P$6)","v":0},{"$f":"valuePL(J25,'Utility Functions'!$Q$3:$Q$6,'Utility Functions'!$R$3:$R$6)","v":0},{"$f":"valuePL(K25,'Utility Functions'!$S$3:$S$7,'Utility Functions'!$T$3:$T$7)","v":0},{"$f":"valueE(L25,'Utility Functions'!$V$3,'Utility Functions'!$V$4,'Utility Functions'!$V$5,'Utility Functions'!$V$6)","v":0},{"$f":"valuePL(M25,'Utility Functions'!$W$3:$W$6,'Utility Functions'!$X$3:$X$6)","v":0},{"$f":"valueE(N25,'Utility Functions'!$Z$3,'Utility Functions'!$Z$4,'Utility Functions'!$Z$5,'Utility Functions'!$Z$6)","v":0},{"$f":"valuePL(O25,'Utility Functions'!$AA$3:$AA$5,'Utility Functions'!$AB$3:$AB$5)","v":0},{"$f":"valuePL(P25,'Utility Functions'!$AC$3:$AC$7,'Utility Functions'!$AD$3:$AD$7)","v":0},{"$f":"valuePL(Q25,'Utility Functions'!$AE$3:$AE$6,'Utility Functions'!$AF$3:$AF$6)","v":0},{"$f":"valuePL(R25,'Utility Functions'!$AG$3:$AG$6,'Utility Functions'!$AH$3:$AH$6)","v":1},{"$f":"valuePL(S25,'Utility Functions'!$AI$3:$AI$6,'Utility Functions'!$AJ$3:$AJ$6)","v":1},{"$f":"valuePL(T25,'Utility Functions'!$AK$3:$AK$8,'Utility Functions'!$AL$3:$AL$8)","v":1},{"$f":"valuePL(U25,'Utility Functions'!$AM$3:$AM$5,'Utility Functions'!$AN$3:$AN$5)","v":0},{"$f":"valuePL(V25,'Utility Functions'!$AO$3:$AO$5,'Utility Functions'!$AP$3:$AP$5)","v":0},{"$f":"valuePL(W25,'Utility Functions'!$AQ$3:$AQ$6,'Utility Functions'!$AR$3:$AR$6)","v":1},{"$f":"valuePL(X25,'Utility Functions'!$AS$3:$AS$6,'Utility Functions'!$AT$3:$AT$6)","v":0.2},{"$f":"valuePL(Y25,'Utility Functions'!$AU$3:$AU$6,'Utility Functions'!$AV$3:$AV$6)","v":1},{"$f":"valuePL(Z25,'Utility Functions'!$AW$3:$AW$5,'Utility Functions'!$AX$3:$AX$5)","v":1},{"$f":"valuePL(AA25,'Utility Functions'!$AY$3:$AY$6,'Utility Functions'!$AZ$3:$AZ$6)","v":0.2},{"$f":"valuePL(AB25,'Utility Functions'!$BA$3:$BA$5,'Utility Functions'!$BB$3:$BB$5)","v":0},{"$f":"valuePL(AC25,'Utility Functions'!$BC$3:$BC$5,'Utility Functions'!$BD$3:$BD$5)","v":1},9.4968811881212041,null,9.4968811881212059,2.0968811881212055,0,0,3,4.4000000000000004]
[25,{"$f":"valueE(B26,'Utility Functions'!$B$3,'Utility Functions'!$B$4,'Utility Functions'!$B$5,'Utility Functions'!$B$6)","v":0.83470237647280454},{"$f":"valueE(C26,'Utility Functions'!$D$3,'Utility Functions'!$D$4,'Utility Functions'!$D$5,'Utility Functions'!$D$6)","v":0.84744836833951609},{"$f":"valuePL(D26,'Utility Functions'!$E$3:$E$5,'Utility Functions'!$F$3:$F$5)","v":1},{"$f":"valuePL(E26,'Utility Functions'!$G$3:$G$5,'Utility Functions'!$H$3:$H$5)","v":0},{"$f":"valuePL(F26,'Utility Functions'!$I$3:$I$4,'Utility Functions'!$J$3:$J$5)","v":0},{"$f":"valueE(G26,'Utility Functions'!$L$3,'Utility Functions'!$L$4,'Utility Functions'!$L$5,'Utility Functions'!$L$6)","v":0.94623655913978499},{"$f":"valueE(H26,'Utility Functions'!$N$3,'Utility Functions'!$N$4,'Utility Functions'!$N$5,'Utility Functions'!$N$6)","v":0.29222011385199242},{"$f":"valuePL(I26,'Utility Functions'!$O$3:$O$6,'Utility Functions'!$P$3:$P$6)","v":0},{"$f":"valuePL(J26,'Utility Functions'!$Q$3:$Q$6,'Utility Functions'!$R$3:$R$6)","v":0},{"$f":"valuePL(K26,'Utility Functions'!$S$3:$S$7,'Utility Functions'!$T$3:$T$7)","v":0},{"$f":"valueE(L26,'Utility Functions'!$V$3,'Utility Functions'!$V$4,'Utility Functions'!$V$5,'Utility Functions'!$V$6)","v":0},{"$f":"valuePL(M26,'Utility Functions'!$W$3:$W$6,'Utility Functions'!$X$3:$X$6)","v":0},{"$f":"valueE(N26,'Utility Functions'!$Z$3,'Utility Functions'!$Z$4,'Utility Functions'!$Z$5,'Utility Functions'!$Z$6)","v":1},{"$f":"valuePL(O26,'Utility Functions'!$AA$3:$AA$5,'Utility Functions'!$AB$3:$AB$5)","v":0.25},{"$f":"valuePL(P26,'Utility Functions'!$AC$3:$AC$7,'Utility Functions'!$AD$3:$AD$7)","v":0.5},{"$f":"valuePL(Q26,'Utility Functions'!$AE$3:$AE$6,'Utility Functions'!$AF$3:$AF$6)","v":0.5},{"$f":"valuePL(R26,'Utility Functions'!$AG$3:$AG$6,'Utility Functions'!$AH$3:$AH$6)","v":1},{"$f":"valuePL(S26,'Utility Functions'!$AI$3:$AI$6,'Utility Functions'!$AJ$3:$AJ$6)","v":1},{"$f":"valuePL(T26,'Utility Functions'!$AK$3:$AK$8,'Utility Functions'!$AL$3:$AL$8)","v":0},{"$f":"valuePL(U26,'Utility Functions'!$AM$3:$AM$5,'Utility Functions'!$AN$3:$AN$5)","v":0},{"$f":"valuePL(V26,'Utility Functions'!$AO$3:$AO$5,'Utility Functions'!$AP$3:$AP$5)","v":1},{"$f":"valuePL(W26,'Utility Functions'!$AQ$3:$AQ$6,'Utility Functions'!$AR$3:$AR$6)","v":0.2},{"$f":"valuePL(X26,'Utility Functions'!$AS$3:$AS$6,'Utility Functions'!$AT$3:$AT$6)","v":1},{"$f":"valuePL(Y26,'Utility Functions'!$AU$3:$AU$6,'Utility Functions'!$AV$3:$AV$6)","v":0.8},{"$f":"valuePL(Z26,'Utility Functions'!$AW$3:$AW$5,'Utility Functions'!$AX$3:$AX$5)","v":0.5},{"$f":"valuePL(AA26,'Utility Functions'!$AY$3:$AY$6,'Utility Functions'!$AZ$3:$AZ$6)","v":0.2},{"$f":"valuePL(AB26,'Utility Functions'!$BA$3:$BA$5,'Utility Functions'!$BB$3:$BB$5)","v":1},{"$f":"valuePL(AC26,'Utility Functions'!$BC$3:$BC$5,'Utility Functions'!$BD$3:$BD$5)","v":1},13.870607417804099,null,13.870607417804099,2.6821507448123207,1.2384566729917774,1.25,3,5.7]
[26,{"$f":"valueE(B27,'Utility Functions'!$B$3,'Utility Functions'!$B$4,'Utility Functions'!$B$5,'Utility Functions'!$B$6)","v":0.96662819462069161},{"$f":"valueE(C27,'Utility Functions'!$D$3,'Utility Functions'!$D$4,'Utility Functions'!$D$5,'Utility Functions'!$D$6)","v":0.84744836833951609},{"$f":"valuePL(D27,'Utility Functions'!$E$3:$E$5,'Utility Functions'!$F$3:$F$5)","v":1},{"$f":"valuePL(E27,'Utility Functions'!$G$3:$G$5,'Utility Functions'!$H$3:$H$5)","v":0.5},{"$f":"valuePL(F27,'Utility Functions'!$I$3:$I$4,'Utility Functions'!$J$3:$J$5)","v":0},{"$f":"valueE(G27,'Utility Functions'!$L$3,'Utility Functions'!$L$4,'Utility Functions'!$L$5,'Utility Functions'!$L$6)","v":0},{"$f":"valueE(H27,'Utility Functions'!$N$3,'Utility Functions'!$N$4,'Utility Functions'!$N$5,'Utility Functions'!$N$6)","v":0},{"$f":"valuePL(I27,'Utility Functions'!$O$3:$O$6,'Utility Functions'!$P$3:$P$6)","v":0},{"$f":"valuePL(J27,'Utility Functions'!$Q$3:$Q$6,'Utility Functions'!$R$3:$R$6)","v":0},{"$f":"valuePL(K27,'Utility Functions'!$S$3:$S$7,'Utility Functions'!$T$3:$T$7)","v":0},{"$f":"valueE(L27,'Utility Functions'!$V$3,'Utility Functions'!$V$4,'Utility Functions'!$V$5,'Utility Functions'!$V$6)","v":0},{"$f":"valuePL(M27,'Utility Functions'!$W$3:$W$6,'Utility Functions'!$X$3:$X$6)","v":0},{"$f":"valueE(N27,'Utility Functions'!$Z$3,'Utility Functions'!$Z$4,'Utility Functions'!$Z$5,'Utility Functions'!$Z$6)","v":0},{"$f":"valuePL(O27,'Utility Functions'!$AA$3:$AA$5,'Utility Functions'!$AB$3:$AB$5)","v":0},{"$f":"valuePL(P27,'Utility Functions'!$AC$3:$AC$7,'Utility Functions'!$AD$3:$AD$7)","v":0.75},{"$f":"valuePL(Q27,'Utility Functions'!$AE$3:$AE$6,'Utility Functions'!$AF$3:$AF$6)","v":0},{"$f":"valuePL(R27,'Utility Functions'!$AG$3:$AG$6,'Utility Functions'!$AH$3:$AH$6)","v":1},{"$f":"valuePL(S27,'Utility Functions'!$AI$3:$AI$6,'Utility Functions'!$AJ$3:$AJ$6)","v":1},{"$f":"valuePL(T27,'Utility Functions'!$AK$3:$AK$8,'Utility Functions'!$AL$3:$AL$8)","v":0.8},{"$f":"valuePL(U27,'Utility Functions'!$AM$3:$AM$5,'Utility Functions'!$AN$3:$AN$5)","v":0},{"$f":"valuePL(V27,'Utility Functions'!$AO$3:$AO$5,'Utility Functions'!$AP$3:$AP$5)","v":1},{"$f":"valuePL(W27,'Utility Functions'!$AQ$3:$AQ$6,'Utility Functions'!$AR$3:$AR$6)","v":0.2},{"$f":"valuePL(X27,'Utility Functions'!$AS$3:$AS$6,'Utility Functions'!$AT$3:$AT$6)","v":0},{"$f":"valuePL(Y27,'Utility Functions'!$AU$3:$AU$6,'Utility Functions'!$AV$3:$AV$6)","v":0.8},{"$f":"valuePL(Z27,'Utility Functions'!$AW$3:$AW$5,'Utility Functions'!$AX$3:$AX$5)","v":0},{"$f":"valuePL(AA27,'Utility Functions'!$AY$3:$AY$6,'Utility Functions'!$AZ$3:$AZ$6)","v":0.2},{"$f":"valuePL(AB27,'Utility Functions'!$BA$3:$BA$5,'Utility Functions'!$BB$3:$BB$5)","v":1},{"$f":"valuePL(AC27,'Utility Functions'!$BC$3:$BC$5,'Utility Functions'!$BD$3:$BD$5)","v":1},11.064076562960208,null,11.064076562960206,3.3140765629602078,0,0,3.55,4.2]
[27,{"$f":"valueE(B28,'Utility Functions'!$B$3,'Utility Functions'!$B$4,'Utility Functions'!$B$5,'Utility Functions'!$B$6)","v":0},{"$f":"valueE(C28,'Utility Functions'!$D$3,'Utility Functions'!$D$4,'Utility Functions'!$D$5,'Utility Functions'!$D$6)","v":0.46475967153745396},{"$f":"valuePL(D28,'Utility Functions'!$E$3:$E$5,'Utility Functions'!$F$3:$F$5)","v":1},{"$f":"valuePL(E28,'Utility Functions'!$G$3:$G$5,'Utility Functions'!$H$3:$H$5)","v":0},{"$f":"valuePL(F28,'Utility Functions'!$I$3:$I$4,'Utility Functions'!$J$3:$J$5)","v":0},{"$f":"valueE(G28,'Utility Functions'!$L$3,'Utility Functions'!$L$4,'Utility Functions'!$L$5,'Utility Functions'!$L$6)","v":0},{"$f":"valueE(H28,'Utility Functions'!$N$3,'Utility Functions'!$N$4,'Utility Functions'!$N$5,'Utility Functions'!$N$6)","v":0},{"$f":"valuePL(I28,'Utility Functions'!$O$3:$O$6,'Utility Functions'!$P$3:$P$6)","v":0},{"$f":"valuePL(J28,'Utility Functions'!$Q$3:$Q$6,'Utility Functions'!$R$3:$R$6)","v":0},{"$f":"valuePL(K28,'Utility Functions'!$S$3:$S$7,'Utility Functions'!$T$3:$T$7)","v":1},{"$f":"valueE(L28,'Utility Functions'!$V$3,'Utility Functions'!$V$4,'Utility Functions'!$V$5,'Utility Functions'!$V$6)","v":0},{"$f":"valuePL(M28,'Utility Functions'!$W$3:$W$6,'Utility Functions'!$X$3:$X$6)","v":0.1},{"$f":"valueE(N28,'Utility Functions'!$Z$3,'Utility Functions'!$Z$4,'Utility Functions'!$Z$5,'Utility Functions'!$Z$6)","v":0},{"$f":"valuePL(O28,'Utility Functions'!$AA$3:$AA$5,'Utility Functions'!$AB$3:$AB$5)","v":0},{"$f":"valuePL(P28,'Utility Functions'!$AC$3:$AC$7,'Utility Functions'!$AD$3:$AD$7)","v":0.5},{"$f":"valuePL(Q28,'Utility Functions'!$AE$3:$AE$6,'Utility Functions'!$AF$3:$AF$6)","v":0.5},{"$f":"valuePL(R28,'Utility Functions'!$AG$3:$AG$6,'Utility Functions'!$AH$3:$AH$6)","v":1},{"$f":"valuePL(S28,'Utility Functions'!$AI$3:$AI$6,'Utility Functions'!$AJ$3:$AJ$6)","v":1},{"$f":"valuePL(T28,'Utility Functions'!$AK$3:$AK$8,'Utility Functions'!$AL$3:$AL$8)","v":1},{"$f":"valuePL(U28,'Utility Functions'!$AM$3:$AM$5,'Utility Functions'!$AN$3:$AN$5)","v":0},{"$f":"valuePL(V28,'Utility Functions'!$AO$3:$AO$5,'Utility Functions'!$AP$3:$AP$5)","v":0.5},{"$f":"valuePL(W28,'Utility Functions'!$AQ$3:$AQ$6,'Utility Functions'!$AR$3:$AR$6)","v":0.75},{"$f":"valuePL(X28,'Utility Functions'!$AS$3:$AS$6,'Utility Functions'!$AT$3:$AT$6)","v":1},{"$f":"valuePL(Y28,'Utility Functions'!$AU$3:$AU$6,'Utility Functions'!$AV$3:$AV$6)","v":0.2},{"$f":"valuePL(Z28,'Utility Functions'!$AW$3:$AW$5,'Utility Functions'!$AX$3:$AX$5)","v":0},{"$f":"valuePL(AA28,'Utility Functions'!$AY$3:$AY$6,'Utility Functions'!$AZ$3:$AZ$6)","v":0},{"$f":"valuePL(AB28,'Utility Functions'!$BA$3:$BA$5,'Utility Functions'!$BB$3:$BB$5)","v":0},{"$f":"valuePL(AC28,'Utility Functions'!$BC$3:$BC$5,'Utility Functions'!$BD$3:$BD$5)","v":0},9.0147596715374529,null,9.0147596715374547,1.464759671537454,1.1000000000000001,0,4,2.4500000000000002]
[28,{"$f":"valueE(B29,'Utility Functions'!$B$3,'Utility Functions'!$B$4,'Utility Functions'!$B$5,'Utility Functions'!$B$6)","v":0.4511890475224023},{"$f":"valueE(C29,'Utility Functions'!$D$3,'Utility Functions'!$D$4,'Utility Functions'!$D$5,'Utility Functions'!$D$6)","v":0.46475967153745396},{"$f":"valuePL(D29,'Utility Functions'!$E$3:$E$5,'Utility Functions'!$F$3:$F$5)","v":1},{"$f":"valuePL(E29,'Utility Functions'!$G$3:$G$5,'Utility Functions'!$H$3:$H$5)","v":0},{"$f":"valuePL(F29,'Utility Functions'!$I$3:$I$4,'Utility Functions'!$J$3:$J$5)","v":1},{"$f":"valueE(G29,'Utility Functions'!$L$3,'Utility Functions'!$L$4,'Utility Functions'!$L$5,'Utility Functions'!$L$6)","v":0},{"$f":"valueE(H29,'Utility Functions'!$N$3,'Utility Functions'!$N$4,'Utility Functions'!$N$5,'Utility Functions'!$N$6)","v":0},{"$f":"valuePL(I29,'Utility Functions'!$O$3:$O$6,'Utility Functions'!$P$3:$P$6)","v":0},{"$f":"valuePL(J29,'Utility Functions'!$Q$3:$Q$6,'Utility Functions'!$R$3:$R$6)","v":0},{"$f":"valuePL(K29,'Utility Functions'!$S$3:$S$7,'Utility Functions'!$T$3:$T$7)","v":0},{"$f":"valueE(L29,'Utility Functions'!$V$3,'Utility Functions'!$V$4,'Utility Functions'!$V$5,'Utility Functions'!$V$6)","v":0.33333333333333331},{"$f":"valuePL(M29,'Utility Functions'!$W$3:$W$6,'Utility Functions'!$X$3:$X$6)","v":0.1},{"$f":"valueE(N29,'Utility Functions'!$Z$3,'Utility Functions'!$Z$4,'Utility Functions'!$Z$5,'Utility Functions'!$Z$6)","v":0},{"$f":"valuePL(O29,'Utility Functions'!$AA$3:$AA$5,'Utility Functions'!$AB$3:$AB$5)","v":0},{"$f":"valuePL(P29,'Utility Functions'!$AC$3:$AC$7,'Utility Functions'!$AD$3:$AD$7)","v":1},{"$f":"valuePL(Q29,'Utility Functions'!$AE$3:$AE$6,'Utility Functions'!$AF$3:$AF$6)","v":0},{"$f":"valuePL(R29,'Utility Functions'!$AG$3:$AG$6,'Utility Functions'!$AH$3:$AH$6)","v":1},{"$f":"valuePL(S29,'Utility Functions'!$AI$3:$AI$6,'Utility Functions'!$AJ$3:$AJ$6)","v":1},{"$f":"valuePL(T29,'Utility Functions'!$AK$3:$AK$8,'Utility Functions'!$AL$3:$AL$8)","v":0.8},{"$f":"valuePL(U29,'Utility Functions'!$AM$3:$AM$5,'Utility Functions'!$AN$3:$AN$5)","v":0},{"$f":"valuePL(V29,'Utility Functions'!$AO$3:$AO$5,'Utility Functions'!$AP$3:$AP$5)","v":1},{"$f":"valuePL(W29,'Utility Functions'!$AQ$3:$AQ$6,'Utility Functions'!$AR$3:$AR$6)","v":1},{"$f":"valuePL(X29,'Utility Functions'!$AS$3:$AS$6,'Utility Functions'!$AT$3:$AT$6)","v":1},{"$f":"valuePL(Y29,'Utility Functions'!$AU$3:$AU$6,'Utility Functions'!$AV$3:$AV$6)","v":0.2},{"$f":"valuePL(Z29,'Utility Functions'!$AW$3:$AW$5,'Utility Functions'!$AX$3:$AX$5)","v":0},{"$f":"valuePL(AA29,'Utility Functions'!$AY$3:$AY$6,'Utility Functions'!$AZ$3:$AZ$6)","v":0.89999999999999991},{"$f":"valuePL(AB29,'Utility Functions'!$BA$3:$BA$5,'Utility Functions'!$BB$3:$BB$5)","v":1},{"$f":"valuePL(AC29,'Utility Functions'!$BC$3:$BC$5,'Utility Functions'!$BD$3:$BD$5)","v":0.25},12.499282052393189,null,12.499282052393189,2.9159487190598563,0.43333333333333335,0,3.8,5.35]
[29,{"$f":"valueE(B30,'Utility Functions'!$B$3,'Utility Functions'!$B$4,'Utility Functions'!$B$5,'Utility Functions'!$B$6)","v":0.83470237647280454},{"$f":"valueE(C30,'Utility Functions'!$D$3,'Utility Functions'!$D$4,'Utility Functions'!$D$5,'Utility Functions'!$D$6)","v":0.71352759724260828},{"$f":"valuePL(D30,'Utility Functions'!$E$3:$E$5,'Utility Functions'!$F$3:$F$5)","v":1},{"$f":"valuePL(E30,'Utility Functions'!$G$3:$G$5,'Utility Functions'!$H$3:$H$5)","v":0.5},{"$f":"valuePL(F30,'Utility Functions'!$I$3:$I$4,'Utility Functions'!$J$3:$J$5)","v":0},{"$f":"valueE(G30,'Utility Functions'!$L$3,'Utility Functions'!$L$4,'Utility Functions'!$L$5,'Utility Functions'!$L$6)","v":0},{"$f":"valueE(H30,'Utility Functions'!$N$3,'Utility Functions'!$N$4,'Utility Functions'!$N$5,'Utility Functions'!$N$6)","v":0},{"$f":"valuePL(I30,'Utility Functions'!$O$3:$O$6,'Utility Functions'!$P$3:$P$6)","v":0.06},{"$f":"valuePL(J30,'Utility Functions'!$Q$3:$Q$6,'Utility Functions'!$R$3:$R$6)","v":0.67272727272727273},{"$f":"valuePL(K30,'Utility Functions'!$S$3:$S$7,'Utility Functions'!$T$3:$T$7)","v":0},{"$f":"valueE(L30,'Utility Functions'!$V$3,'Utility Functions'!$V$4,'Utility Functions'!$V$5,'Utility Functions'!$V$6)","v":1},{"$f":"valuePL(M30,'Utility Functions'!$W$3:$W$6,'Utility Functions'!$X$3:$X$6)","v":0.67272727272727273},{"$f":"valueE(N30,'Utility Functions'!$Z$3,'Utility Functions'!$Z$4,'Utility Functions'!$Z$5,'Utility Functions'!$Z$6)","v":0},{"$f":"valuePL(O30,'Utility Functions'!$AA$3:$AA$5,'Utility Functions'!$AB$3:$AB$5)","v":0},{"$f":"valuePL(P30,'Utility Functions'!$AC$3:$AC$7,'Utility Functions'!$AD$3:$AD$7)","v":0.25},{"$f":"valuePL(Q30,'Utility Functions'!$AE$3:$AE$6,'Utility Functions'!$AF$3:$AF$6)","v":0},{"$f":"valuePL(R30,'Utility Functions'!$AG$3:$AG$6,'Utility Functions'!$AH$3:$AH$6)","v":1},{"$f":"valuePL(S30,'Utility Functions'!$AI$3:$AI$6,'Utility Functions'!$AJ$3:$AJ$6)","v":1},{"$f":"valuePL(T30,'Utility Functions'!$AK$3:$AK$8,'Utility Functions'!$AL$3:$AL$8)","v":0.8},{"$f":"valuePL(U30,'Utility Functions'!$AM$3:$AM$5,'Utility Functions'!$AN$3:$AN$5)","v":0},{"$f":"valuePL(V30,'Utility Functions'!$AO$3:$AO$5,'Utility Functions'!$AP$3:$AP$5)","v":1},{"$f":"valuePL(W30,'Utility Functions'!$AQ$3:$AQ$6,'Utility Functions'!$AR$3:$AR$6)","v":0.2},{"$f":"valuePL(X30,'Utility Functions'!$AS$3:$AS$6,'Utility Functions'!$AT$3:$AT$6)","v":0},{"$f":"valuePL(Y30,'Utility Functions'!$AU$3:$AU$6,'Utility Functions'!$AV$3:$AV$6)","v":0.8},{"$f":"valuePL(Z30,'Utility Functions'!$AW$3:$AW$5,'Utility Functions'!$AX$3:$AX$5)","v":0.5},{"$f":"valuePL(AA30,'Utility Functions'!$AY$3:$AY$6,'Utility Functions'!$AZ$3:$AZ$6)","v":0.2},{"$f":"valuePL(AB30,'Utility Functions'!$BA$3:$BA$5,'Utility Functions'!$BB$3:$BB$5)","v":0.25},{"$f":"valuePL(AC30,'Utility Functions'!$BC$3:$BC$5,'Utility Functions'!$BD$3:$BD$5)","v":1},12.453684519169958,null,12.453684519169958,3.0482299737154128,2.4054545454545453,0,3.05,3.95]
[30,{"$f":"valueE(B31,'Utility Functions'!$B$3,'Utility Functions'!$B$4,'Utility Functions'!$B$5,'Utility Functions'!$B$6)","v":0.99864114504770318},{"$f":"valueE(C31,'Utility Functions'!$D$3,'Utility Functions'!$D$4,'Utility Functions'!$D$5,'Utility Functions'!$D$6)","v":0.84744836833951609},{"$f":"valuePL(D31,'Utility Functions'!$E$3:$E$5,'Utility Functions'!$F$3:$F$5)","v":1},{"$f":"valuePL(E31,'Utility Functions'!$G$3:$G$5,'Utility Functions'!$H$3:$H$5)","v":0},{"$f":"valuePL(F31,'Utility Functions'!$I$3:$I$4,'Utility Functions'!$J$3:$J$5)","v":0},{"$f":"valueE(G31,'Utility Functions'!$L$3,'Utility Functions'!$L$4,'Utility Functions'!$L$5,'Utility Functions'!$L$6)","v":0},{"$f":"valueE(H31,'Utility Functions'!$N$3,'Utility Functions'!$N$4,'Utility Functions'!$N$5,'Utility Functions'!$N$6)","v":0},{"$f":"valuePL(I31,'Utility Functions'!$O$3:$O$6,'Utility Functions'!$P$3:$P$6)","v":0},{"$f":"valuePL(J31,'Utility Functions'!$Q$3:$Q$6,'Utility Functions'!$R$3:$R$6)","v":0},{"$f":"valuePL(K31,'Utility Functions'!$S$3:$S$7,'Utility Functions'!$T$3:$T$7)","v":0},{"$f":"valueE(L31,'Utility Functions'!$V$3,'Utility Functions'!$V$4,'Utility Functions'!$V$5,'Utility Functions'!$V$6)","v":0.33333333333333331},{"$f":"valuePL(M31,'Utility Functions'!$W$3:$W$6,'Utility Functions'!$X$3:$X$6)","v":0.04},{"$f":"valueE(N31,'Utility Functions'!$Z$3,'Utility Functions'!$Z$4,'Utility Functions'!$Z$5,'Utility Functions'!$Z$6)","v":0},{"$f":"valuePL(O31,'Utility Functions'!$AA$3:$AA$5,'Utility Functions'!$AB$3:$AB$5)","v":0},{"$f":"valuePL(P31,'Utility Functions'!$AC$3:$AC$7,'Utility Functions'!$AD$3:$AD$7)","v":0},{"$f":"valuePL(Q31,'Utility Functions'!$AE$3:$AE$6,'Utility Functions'!$AF$3:$AF$6)","v":0},{"$f":"valuePL(R31,'Utility Functions'!$AG$3:$AG$6,'Utility Functions'!$AH$3:$AH$6)","v":0.2},{"$f":"valuePL(S31,'Utility Functions'!$AI$3:$AI$6,'Utility Functions'!$AJ$3:$AJ$6)","v":0.33},{"$f":"valuePL(T31,'Utility Functions'!$AK$3:$AK$8,'Utility Functions'!$AL$3:$AL$8)","v":0},{"$f":"valuePL(U31,'Utility Functions'!$AM$3:$AM$5,'Utility Functions'!$AN$3:$AN$5)","v":0},{"$f":"valuePL(V31,'Utility Functions'!$AO$3:$AO$5,'Utility Functions'!$AP$3:$AP$5)","v":0},{"$f":"valuePL(W31,'Utility Functions'!$AQ$3:$AQ$6,'Utility Functions'!$AR$3:$AR$6)","v":1},{"$f":"valuePL(X31,'Utility Functions'!$AS$3:$AS$6,'Utility Functions'!$AT$3:$AT$6)","v":0.2},{"$f":"valuePL(Y31,'Utility Functions'!$AU$3:$AU$6,'Utility Functions'!$AV$3:$AV$6)","v":0.8},{"$f":"valuePL(Z31,'Utility Functions'!$AW$3:$AW$5,'Utility Functions'!$AX$3:$AX$5)","v":0},{"$f":"valuePL(AA31,'Utility Functions'!$AY$3:$AY$6,'Utility Functions'!$AZ$3:$AZ$6)","v":0.89999999999999991},{"$f":"valuePL(AB31,'Utility Functions'!$BA$3:$BA$5,'Utility Functions'!$BB$3:$BB$5)","v":1},{"$f":"valuePL(AC31,'Utility Functions'!$BC$3:$BC$5,'Utility Functions'!$BD$3:$BD$5)","v":0},7.6494228467205527,null,7.6494228467205527,2.846089513387219,0.37333333333333329,0,0.53,3.9]
[31,{"$f":"valueE(B32,'Utility Functions'!$B$3,'Utility Functions'!$B$4,'Utility Functions'!$B$5,'Utility Functions'!$B$6)","v":0.55067187023002029},{"$f":"valueE(C32,'Utility Functions'!$D$3,'Utility Functions'!$D$4,'Utility Functions'!$D$5,'Utility Functions'!$D$6)","v":0.84744836833951609},{"$f":"valuePL(D32,'Utility Functions'!$E$3:$E$5,'Utility Functions'!$F$3:$F$5)","v":0.5},{"$f":"valuePL(E32,'Utility Functions'!$G$3:$G$5,'Utility Functions'!$H$3:$H$5)","v":0},{"$f":"valuePL(F32,'Utility Functions'!$I$3:$I$4,'Utility Functions'!$J$3:$J$5)","v":0},{"$f":"valueE(G32,'Utility Functions'!$L$3,'Utility Functions'!$L$4,'Utility Functions'!$L$5,'Utility Functions'!$L$6)","v":0},{"$f":"valueE(H32,'Utility Functions'!$N$3,'Utility Functions'!$N$4,'Utility Functions'!$N$5,'Utility Functions'!$N$6)","v":0},{"$f":"valuePL(I32,'Utility Functions'!$O$3:$O$6,'Utility Functions'!$P$3:$P$6)","v":0.75454545454545452},{"$f":"valuePL(J32,'Utility Functions'!$Q$3:$Q$6,'Utility Functions'!$R$3:$R$6)","v":0.08},{"$f":"valuePL(K32,'Utility Functions'!$S$3:$S$7,'Utility Functions'!$T$3:$T$7)","v":0},{"$f":"valueE(L32,'Utility Functions'!$V$3,'Utility Functions'!$V$4,'Utility Functions'!$V$5,'Utility Functions'!$V$6)","v":0.33333333333333331},{"$f":"valuePL(M32,'Utility Functions'!$W$3:$W$6,'Utility Functions'!$X$3:$X$6)","v":0.08},{"$f":"valueE(N32,'Utility Functions'!$Z$3,'Utility Functions'!$Z$4,'Utility Functions'!$Z$5,'Utility Functions'!$Z$6)","v":0},{"$f":"valuePL(O32,'Utility Functions'!$AA$3:$AA$5,'Utility Functions'!$AB$3:$AB$5)","v":0},{"$f":"valuePL(P32,'Utility Functions'!$AC$3:$AC$7,'Utility Functions'!$AD$3:$AD$7)","v":0.5},{"$f":"valuePL(Q32,'Utility Functions'!$AE$3:$AE$6,'Utility Functions'!$AF$3:$AF$6)","v":0},{"$f":"valuePL(R32,'Utility Functions'!$AG$3:$AG$6,'Utility Functions'!$AH$3:$AH$6)","v":1},{"$f":"valuePL(S32,'Utility Functions'!$AI$3:$AI$6,'Utility Functions'!$AJ$3:$AJ$6)","v":0.66},{"$f":"valuePL(T32,'Utility Functions'!$AK$3:$AK$8,'Utility Functions'!$AL$3:$AL$8)","v":0.6},{"$f":"valuePL(U32,'Utility Functions'!$AM$3:$AM$5,'Utility Functions'!$AN$3:$AN$5)","v":0},{"$f":"valuePL(V32,'Utility Functions'!$AO$3:$AO$5,'Utility Functions'!$AP$3:$AP$5)","v":0.5},{"$f":"valuePL(W32,'Utility Functions'!$AQ$3:$AQ$6,'Utility Functions'!$AR$3:$AR$6)","v":0},{"$f":"valuePL(X32,'Utility Functions'!$AS$3:$AS$6,'Utility Functions'!$AT$3:$AT$6)","v":0.2},{"$f":"valuePL(Y32,'Utility Functions'!$AU$3:$AU$6,'Utility Functions'!$AV$3:$AV$6)","v":0.2},{"$f":"valuePL(Z32,'Utility Functions'!$AW$3:$AW$5,'Utility Functions'!$AX$3:$AX$5)","v":1},{"$f":"valuePL(AA32,'Utility Functions'!$AY$3:$AY$6,'Utility Functions'!$AZ$3:$AZ$6)","v":0.89999999999999991},{"$f":"valuePL(AB32,'Utility Functions'!$BA$3:$BA$5,'Utility Functions'!$BB$3:$BB$5)","v":0.25},{"$f":"valuePL(AC32,'Utility Functions'!$BC$3:$BC$5,'Utility Functions'!$BD$3:$BD$5)","v":0.25},9.2059990264483247,null,9.2059990264483247,1.8981202385695364,1.2478787878787878,0,2.7600000000000002,3.3]
[32,{"$f":"valueE(B33,'Utility Functions'!$B$3,'Utility Functions'!$B$4,'Utility Functions'!$B$5,'Utility Functions'!$B$6)","v":0.63212151658375171},{"$f":"valueE(C33,'Utility Functions'!$D$3,'Utility Functions'!$D$4,'Utility Functions'!$D$5,'Utility Functions'!$D$6)","v":0.26839655623815994},{"$f":"valuePL(D33,'Utility Functions'!$E$3:$E$5,'Utility Functions'!$F$3:$F$5)","v":1},{"$f":"valuePL(E33,'Utility Functions'!$G$3:$G$5,'Utility Functions'!$H$3:$H$5)","v":1},{"$f":"valuePL(F33,'Utility Functions'!$I$3:$I$4,'Utility Functions'!$J$3:$J$5)","v":1},{"$f":"valueE(G33,'Utility Functions'!$L$3,'Utility Functions'!$L$4,'Utility Functions'!$L$5,'Utility Functions'!$L$6)","v":3.2258064516129031E-2},{"$f":"valueE(H33,'Utility Functions'!$N$3,'Utility Functions'!$N$4,'Utility Functions'!$N$5,'Utility Functions'!$N$6)","v":9.6774193548387094E-2},{"$f":"valuePL(I33,'Utility Functions'!$O$3:$O$6,'Utility Functions'!$P$3:$P$6)","v":0.34545454545454546},{"$f":"valuePL(J33,'Utility Functions'!$Q$3:$Q$6,'Utility Functions'!$R$3:$R$6)","v":1},{"$f":"valuePL(K33,'Utility Functions'!$S$3:$S$7,'Utility Functions'!$T$3:$T$7)","v":0.34545454545454546},{"$f":"valueE(L33,'Utility Functions'!$V$3,'Utility Functions'!$V$4,'Utility Functions'!$V$5,'Utility Functions'!$V$6)","v":1},{"$f":"valuePL(M33,'Utility Functions'!$W$3:$W$6,'Utility Functions'!$X$3:$X$6)","v":1},{"$f":"valueE(N33,'Utility Functions'!$Z$3,'Utility Functions'!$Z$4,'Utility Functions'!$Z$5,'Utility Functions'!$Z$6)","v":0},{"$f":"valuePL(O33,'Utility Functions'!$AA$3:$AA$5,'Utility Functions'!$AB$3:$AB$5)","v":0},{"$f":"valuePL(P33,'Utility Functions'!$AC$3:$AC$7,'Utility Functions'!$AD$3:$AD$7)","v":0.5},{"$f":"valuePL(Q33,'Utility Functions'!$AE$3:$AE$6,'Utility Functions'!$AF$3:$AF$6)","v":1},{"$f":"valuePL(R33,'Utility Functions'!$AG$3:$AG$6,'Utility Functions'!$AH$3:$AH$6)","v":1},{"$f":"valuePL(S33,'Utility Functions'!$AI$3:$AI$6,'Utility Functions'!$AJ$3:$AJ$6)","v":0},{"$f":"valuePL(T33,'Utility Functions'!$AK$3:$AK$8,'Utility Functions'!$AL$3:$AL$8)","v":0.8},{"$f":"valuePL(U33,'Utility Functions'!$AM$3:$AM$5,'Utility Functions'!$AN$3:$AN$5)","v":0},{"$f":"valuePL(V33,'Utility Functions'!$AO$3:$AO$5,'Utility Functions'!$AP$3:$AP$5)","v":0},{"$f":"valuePL(W33,'Utility Functions'!$AQ$3:$AQ$6,'Utility Functions'!$AR$3:$AR$6)","v":0.75},{"$f":"valuePL(X33,'Utility Functions'!$AS$3:$AS$6,'Utility Functions'!$AT$3:$AT$6)","v":0.2},{"$f":"valuePL(Y33,'Utility Functions'!$AU$3:$AU$6,'Utility Functions'!$AV$3:$AV$6)","v":0.8},{"$f":"valuePL(Z33,'Utility Functions'!$AW$3:$AW$5,'Utility Functions'!$AX$3:$AX$5)","v":0.5},{"$f":"valuePL(AA33,'Utility Functions'!$AY$3:$AY$6,'Utility Functions'!$AZ$3:$AZ$6)","v":0},{"$f":"valuePL(AB33,'Utility Functions'!$BA$3:$BA$5,'Utility Functions'!$BB$3:$BB$5)","v":1},{"$f":"valuePL(AC33,'Utility Functions'!$BC$3:$BC$5,'Utility Functions'!$BD$3:$BD$5)","v":0.25},14.52045942179552,null,14.520459421795518,3.9005180728219115,3.8199413489736074,0,3.3,3.5]
[33,{"$f":"valueE(B34,'Utility Functions'!$B$3,'Utility Functions'!$B$4,'Utility Functions'!$B$5,'Utility Functions'!$B$6)","v":0.93919136038504192},{"$f":"valueE(C34,'Utility Functions'!$D$3,'Utility Functions'!$D$4,'Utility Functions'!$D$5,'Utility Functions'!$D$6)","v":0.84744836833951609},{"$f":"valuePL(D34,'Utility Functions'!$E$3:$E$5,'Utility Functions'!$F$3:$F$5)","v":1},{"$f":"valuePL(E34,'Utility Functions'!$G$3:$G$5,'Utility Functions'!$H$3:$H$5)","v":0.5},{"$f":"valuePL(F34,'Utility Functions'!$I$3:$I$4,'Utility Functions'!$J$3:$J$5)","v":0},{"$f":"valueE(G34,'Utility Functions'!$L$3,'Utility Functions'!$L$4,'Utility Functions'!$L$5,'Utility Functions'!$L$6)","v":0},{"$f":"valueE(H34,'Utility Functions'!$N$3,'Utility Functions'!$N$4,'Utility Functions'!$N$5,'Utility Functions'!$N$6)","v":0},{"$f":"valuePL(I34,'Utility Functions'!$O$3:$O$6,'Utility Functions'!$P$3:$P$6)","v":0},{"$f":"valuePL(J34,'Utility Functions'!$Q$3:$Q$6,'Utility Functions'!$R$3:$R$6)","v":0},{"$f":"valuePL(K34,'Utility Functions'!$S$3:$S$7,'Utility Functions'!$T$3:$T$7)","v":0},{"$f":"valueE(L34,'Utility Functions'!$V$3,'Utility Functions'!$V$4,'Utility Functions'!$V$5,'Utility Functions'!$V$6)","v":0.5},{"$f":"valuePL(M34,'Utility Functions'!$W$3:$W$6,'Utility Functions'!$X$3:$X$6)","v":0},{"$f":"valueE(N34,'Utility Functions'!$Z$3,'Utility Functions'!$Z$4,'Utility Functions'!$Z$5,'Utility Functions'!$Z$6)","v":0},{"$f":"valuePL(O34,'Utility Functions'!$AA$3:$AA$5,'Utility Functions'!$AB$3:$AB$5)","v":0},{"$f":"valuePL(P34,'Utility Functions'!$AC$3:$AC$7,'Utility Functions'!$AD$3:$AD$7)","v":0.5},{"$f":"valuePL(Q34,'Utility Functions'!$AE$3:$AE$6,'Utility Functions'!$AF$3:$AF$6)","v":0},{"$f":"valuePL(R34,'Utility Functions'!$AG$3:$AG$6,'Utility Functions'!$AH$3:$AH$6)","v":1},{"$f":"valuePL(S34,'Utility Functions'!$AI$3:$AI$6,'Utility Functions'!$AJ$3:$AJ$6)","v":0.66},{"$f":"valuePL(T34,'Utility Functions'!$AK$3:$AK$8,'Utility Functions'!$AL$3:$AL$8)","v":0},{"$f":"valuePL(U34,'Utility Functions'!$AM$3:$AM$5,'Utility Functions'!$AN$3:$AN$5)","v":0},{"$f":"valuePL(V34,'Utility Functions'!$AO$3:$AO$5,'Utility Functions'!$AP$3:$AP$5)","v":0.5},{"$f":"valuePL(W34,'Utility Functions'!$AQ$3:$AQ$6,'Utility Functions'!$AR$3:$AR$6)","v":1},{"$f":"valuePL(X34,'Utility Functions'!$AS$3:$AS$6,'Utility Functions'!$AT$3:$AT$6)","v":0},{"$f":"valuePL(Y34,'Utility Functions'!$AU$3:$AU$6,'Utility Functions'!$AV$3:$AV$6)","v":0.8},{"$f":"valuePL(Z34,'Utility Functions'!$AW$3:$AW$5,'Utility Functions'!$AX$3:$AX$5)","v":1},{"$f":"valuePL(AA34,'Utility Functions'!$AY$3:$AY$6,'Utility Functions'!$AZ$3:$AZ$6)","v":1},{"$f":"valuePL(AB34,'Utility Functions'!$BA$3:$BA$5,'Utility Functions'!$BB$3:$BB$5)","v":0},{"$f":"valuePL(AC34,'Utility Functions'!$BC$3:$BC$5,'Utility Functions'!$BD$3:$BD$5)","v":0},10.246639728724558,null,10.246639728724558,3.2866397287245581,0.5,0,2.16,4.3]
[34,{"$f":"valueE(B35,'Utility Functions'!$B$3,'Utility Functions'!$B$4,'Utility Functions'!$B$5,'Utility Functions'!$B$6)","v":0},{"$f":"valueE(C35,'Utility Functions'!$D$3,'Utility Functions'!$D$4,'Utility Functions'!$D$5,'Utility Functions'!$D$6)","v":0},{"$f":"valuePL(D35,'Utility Functions'!$E$3:$E$5,'Utility Functions'!$F$3:$F$5)","v":0},{"$f":"valuePL(E35,'Utility Functions'!$G$3:$G$5,'Utility Functions'!$H$3:$H$5)","v":0},{"$f":"valuePL(F35,'Utility Functions'!$I$3:$I$4,'Utility Functions'!$J$3:$J$5)","v":0},{"$f":"valueE(G35,'Utility Functions'!$L$3,'Utility Functions'!$L$4,'Utility Functions'!$L$5,'Utility Functions'!$L$6)","v":0},{"$f":"valueE(H35,'Utility Functions'!$N$3,'Utility Functions'!$N$4,'Utility Functions'!$N$5,'Utility Functions'!$N$6)","v":1.1385199240986717E-2},{"$f":"valuePL(I35,'Utility Functions'!$O$3:$O$6,'Utility Functions'!$P$3:$P$6)","v":1},{"$f":"valuePL(J35,'Utility Functions'!$Q$3:$Q$6,'Utility Functions'!$R$3:$R$6)","v":0.91818181818181821},{"$f":"valuePL(K35,'Utility Functions'!$S$3:$S$7,'Utility Functions'!$T$3:$T$7)","v":1},{"$f":"valueE(L35,'Utility Functions'!$V$3,'Utility Functions'!$V$4,'Utility Functions'!$V$5,'Utility Functions'!$V$6)","v":1},{"$f":"valuePL(M35,'Utility Functions'!$W$3:$W$6,'Utility Functions'!$X$3:$X$6)","v":0.91818181818181821},{"$f":"valueE(N35,'Utility Functions'!$Z$3,'Utility Functions'!$Z$4,'Utility Functions'!$Z$5,'Utility Functions'!$Z$6)","v":0},{"$f":"valuePL(O35,'Utility Functions'!$AA$3:$AA$5,'Utility Functions'!$AB$3:$AB$5)","v":0},{"$f":"valuePL(P35,'Utility Functions'!$AC$3:$AC$7,'Utility Functions'!$AD$3:$AD$7)","v":0.5},{"$f":"valuePL(Q35,'Utility Functions'!$AE$3:$AE$6,'Utility Functions'!$AF$3:$AF$6)","v":0},{"$f":"valuePL(R35,'Utility Functions'!$AG$3:$AG$6,'Utility Functions'!$AH$3:$AH$6)","v":1},{"$f":"valuePL(S35,'Utility Functions'!$AI$3:$AI$6,'Utility Functions'!$AJ$3:$AJ$6)","v":1},{"$f":"valuePL(T35,'Utility Functions'!$AK$3:$AK$8,'Utility Functions'!$AL$3:$AL$8)","v":0.8},{"$f":"valuePL(U35,'Utility Functions'!$AM$3:$AM$5,'Utility Functions'!$AN$3:$AN$5)","v":0},{"$f":"valuePL(V35,'Utility Functions'!$AO$3:$AO$5,'Utility Functions'!$AP$3:$AP$5)","v":1},{"$f":"valuePL(W35,'Utility Functions'!$AQ$3:$AQ$6,'Utility Functions'!$AR$3:$AR$6)","v":1},{"$f":"valuePL(X35,'Utility Functions'!$AS$3:$AS$6,'Utility Functions'!$AT$3:$AT$6)","v":1},{"$f":"valuePL(Y35,'Utility Functions'!$AU$3:$AU$6,'Utility Functions'!$AV$3:$AV$6)","v":0},{"$f":"valuePL(Z35,'Utility Functions'!$AW$3:$AW$5,'Utility Functions'!$AX$3:$AX$5)","v":1},{"$f":"valuePL(AA35,'Utility Functions'!$AY$3:$AY$6,'Utility Functions'!$AZ$3:$AZ$6)","v":0.89999999999999991},{"$f":"valuePL(AB35,'Utility Functions'!$BA$3:$BA$5,'Utility Functions'!$BB$3:$BB$5)","v":0.25},{"$f":"valuePL(AC35,'Utility Functions'!$BC$3:$BC$5,'Utility Functions'!$BD$3:$BD$5)","v":0},13.297748835604624,null,13.297748835604624,0,4.847748835604623,0,3.3,5.15]
[35,{"$f":"valueE(B36,'Utility Functions'!$B$3,'Utility Functions'!$B$4,'Utility Functions'!$B$5,'Utility Functions'!$B$6)","v":0.79810469124896843},{"$f":"valueE(C36,'Utility Functions'!$D$3,'Utility Functions'!$D$4,'Utility Functions'!$D$5,'Utility Functions'!$D$6)","v":0.60939983135101949},{"$f":"valuePL(D36,'Utility Functions'!$E$3:$E$5,'Utility Functions'!$F$3:$F$5)","v":0.5},{"$f":"valuePL(E36,'Utility Functions'!$G$3:$G$5,'Utility Functions'!$H$3:$H$5)","v":0.5},{"$f":"valuePL(F36,'Utility Functions'!$I$3:$I$4,'Utility Functions'!$J$3:$J$5)","v":1},{"$f":"valueE(G36,'Utility Functions'!$L$3,'Utility Functions'!$L$4,'Utility Functions'!$L$5,'Utility Functions'!$L$6)","v":0},{"$f":"valueE(H36,'Utility Functions'!$N$3,'Utility Functions'!$N$4,'Utility Functions'!$N$5,'Utility Functions'!$N$6)","v":0},{"$f":"valuePL(I36,'Utility Functions'!$O$3:$O$6,'Utility Functions'!$P$3:$P$6)","v":0},{"$f":"valuePL(J36,'Utility Functions'!$Q$3:$Q$6,'Utility Functions'!$R$3:$R$6)","v":0},{"$f":"valuePL(K36,'Utility Functions'!$S$3:$S$7,'Utility Functions'!$T$3:$T$7)","v":1},{"$f":"valueE(L36,'Utility Functions'!$V$3,'Utility Functions'!$V$4,'Utility Functions'!$V$5,'Utility Functions'!$V$6)","v":0.66666666666666663},{"$f":"valuePL(M36,'Utility Functions'!$W$3:$W$6,'Utility Functions'!$X$3:$X$6)","v":0.1},{"$f":"valueE(N36,'Utility Functions'!$Z$3,'Utility Functions'!$Z$4,'Utility Functions'!$Z$5,'Utility Functions'!$Z$6)","v":1},{"$f":"valuePL(O36,'Utility Functions'!$AA$3:$AA$5,'Utility Functions'!$AB$3:$AB$5)","v":0},{"$f":"valuePL(P36,'Utility Functions'!$AC$3:$AC$7,'Utility Functions'!$AD$3:$AD$7)","v":0},{"$f":"valuePL(Q36,'Utility Functions'!$AE$3:$AE$6,'Utility Functions'!$AF$3:$AF$6)","v":0},{"$f":"valuePL(R36,'Utility Functions'!$AG$3:$AG$6,'Utility Functions'!$AH$3:$AH$6)","v":1},{"$f":"valuePL(S36,'Utility Functions'!$AI$3:$AI$6,'Utility Functions'!$AJ$3:$AJ$6)","v":1},{"$f":"valuePL(T36,'Utility Functions'!$AK$3:$AK$8,'Utility Functions'!$AL$3:$AL$8)","v":0.6},{"$f":"valuePL(U36,'Utility Functions'!$AM$3:$AM$5,'Utility Functions'!$AN$3:$AN$5)","v":0},{"$f":"valuePL(V36,'Utility Functions'!$AO$3:$AO$5,'Utility Functions'!$AP$3:$AP$5)","v":1},{"$f":"valuePL(W36,'Utility Functions'!$AQ$3:$AQ$6,'Utility Functions'!$AR$3:$AR$6)","v":0.75},{"$f":"valuePL(X36,'Utility Functions'!$AS$3:$AS$6,'Utility Functions'!$AT$3:$AT$6)","v":0},{"$f":"valuePL(Y36,'Utility Functions'!$AU$3:$AU$6,'Utility Functions'!$AV$3:$AV$6)","v":0.2},{"$f":"valuePL(Z36,'Utility Functions'!$AW$3:$AW$5,'Utility Functions'!$AX$3:$AX$5)","v":1},{"$f":"valuePL(AA36,'Utility Functions'!$AY$3:$AY$6,'Utility Functions'!$AZ$3:$AZ$6)","v":0},{"$f":"valuePL(AB36,'Utility Functions'!$BA$3:$BA$5,'Utility Functions'!$BB$3:$BB$5)","v":0.25},{"$f":"valuePL(AC36,'Utility Functions'!$BC$3:$BC$5,'Utility Functions'!$BD$3:$BD$5)","v":0.25},12.224171189266654,null,12.224171189266656,3.407504522599988,1.7666666666666666,1,2.6,3.45]
["Unweighted",{"$f":"SUMPRODUCT(B46:B80,$B$85:$B$119)","v":2.4313097951313183},{"$f":"SUMPRODUCT(C46:C80,$B$85:$B$119)","v":1.66702526070833},{"$f":"SUMPRODUCT(D46:D80,$B$85:$B$119)","v":5},1,0,1,1,1.4672727272727273,0.18000000000000002,1,0,0.1,0.5,0.25,1.5,0.8,3.8,5,3.2,0.25,2,3.75,5,2.2000000000000002,1,1,4,1.75,null,null,"Unweighted",{"$f":"SUMPRODUCT(AG46:AG80,$B$85:$B$119)","v":10.098335055839648},{"$f":"SUMPRODUCT(AH46:AH80,$B$85:$B$119)","v":4.747272727272728},0.75,14.55,20.7]
["Weighted",{"$f":"B$81*Sens_Int!I$5","v":5.0727028251418907E-2},{"$f":"C$81*Sens_Int!J$5","v":3.2879284297205644E-2},{"$f":"D$81*Sens_Int!K$5","v":9.9872463298311981E-2},{"$f":"E$81*Sens_Int!L$5","v":1.9460230510099732E-2},{"$f":"F$81*Sens_Int!M$5","v":0},{"$f":"G$81*Sens_Int!N$5","v":9.7666830265047064E-3},{"$f":"H$81*Sens_Int!O$5","v":9.7666830265047064E-3},{"$f":"I$81*Sens_Int!P$5","v":2.4325670170274434E-2},{"$f":"J$81*Sens_Int!Q$5","v":2.9079438383481176E-3},{"$f":"K$81*Sens_Int!R$5","v":1.4233446500074829E-2},{"$f":"L$81*Sens_Int!S$5","v":0},{"$f":"M$81*Sens_Int!T$5","v":1.1015618334406045E-3},{"$f":"N$81*Sens_Int!U$5","v":9.8684210526315784E-3},{"$f":"O$81*Sens_Int!V$5","v":1.4802631578947368E-2},{"$f":"P$81*Sens_Int!W$5","v":0.12355449970284882},{"$f":"Q$81*Sens_Int!X$5","v":7.2637728504516261E-2},{"$f":"R$81*Sens_Int!Y$5","v":0.39493711180436647},{"$f":"S$81*Sens_Int!Z$5","v":0.45514003048150981},{"$f":"T$81*Sens_Int!AA$5","v":0.21202213856095764},{"$f":"U$81*Sens_Int!AB$5","v":1.6404357402075423E-2},{"$f":"V$81*Sens_Int!AC$5","v":7.1653115527937655E-2},{"$f":"W$81*Sens_Int!AD$5","v":9.6889079500713626E-2},{"$f":"X$81*Sens_Int!AE$5","v":0.13815597517889977},{"$f":"Y$81*Sens_Int!AF$5","v":7.5540395464977678E-2},{"$f":"Z$81*Sens_Int!AG$5","v":2.9751790801504589E-2},{"$f":"AA$81*Sens_Int!AH$5","v":2.305310070039901E-2},{"$f":"AB$81*Sens_Int!AI$5","v":9.7792951697953989E-2},{"$f":"AC$81*Sens_Int!AJ$5","v":3.9899469820255939E-2},null,null,"Weighted for SA",{"$f":"AG81*#REF!","v":{"$error":"#REF!"}},{"$f":"AH81*#REF!","v":{"$error":"#REF!"}},{"$f":"AI81*#REF!","v":{"$error":"#REF!"}},{"$f":"AJ81*#REF!","v":{"$error":"#REF!"}},{"$f":"AK81*#REF!","v":{"$error":"#REF!"}}]
[]
[null,"Decision variable","Benefit","Cost"]
[{"$f":"A2","v":1},1,{"$f":"AD46","v":17.117643866192076},{"$f":"AD2","v":700000}]
[2,0,{"$f":"AD47","v":12.641625800575998},{"$f":"AD3","v":5400000}]
[3,0,11.563541444302563,250000]
[4,1,9.2460291931089209,150000]
[5,1,9.5663279251355373,220000]
[6,1,5.9008471271383875,110000]
[7,0,15.54287399641135,1000000]
[8,0,14.227364688589191,5000000]
[9,0,11.893773577166716,25000]
[10,0,9.01,900000]
[11,0,13.174032258064516,1500000]
[12,0,9.4195802436719873,100000]
[13,0,7.5245670174228056,250000]
[14,0,10.338706637075108,500000]
[15,0,15.150477261414375,800000]
[16,0,15.119696969696969,2000000]
[17,0,10.876550515651747,500000]
[18,0,10.178462998102468,300000]
[19,0,9.3165012474871283,750000]
[20,0,15.091255033092194,1500000]
[21,0,9.5500000000000007,900000]
[22,0,9.471742567994939,750000]
[23,0,9.5321507448123199,1000000]
[24,0,9.4968811881212041,150000]
[25,0,13.870607417804099,250000]
[26,0,11.064076562960208,500000]
[27,1,9.0147596715374529,1200000]
[28,0,12.499282052393189,500000]
[29,0,12.453684519169958,2000000]
[30,0,7.6494228467205527,250000]
[31,0,9.2059990264483247,650000]
[32,0,14.52045942179552,200000]
[33,0,10.246639728724558,400000]
[34,0,13.297748835604624,900000]
[35,0,12.224171189266654,900000]
[null,{"$f":"SUM(B85:B119)","v":5},{"$f":"SUMPRODUCT(C85:C119,B85:B119)","v":50.845607783112378},{"$f":"SUMPRODUCT(B85:B119,D85:D119)","v":2380000}]
[]
[null,null,"Cost constraint",15000000]

{"sheet":"Portfolio_C_Int","index":30,"n_rows":122,"n_cols":37,"rows_kept":122,"cut":false,"hidden":false,"merged":[]}
["Project","manage_species","manage_spatial","manage_uncertainty","manage_currentpractices","manage_adaptivemanagement","pop_a","pop_b","pop_spatialscope","pop_temporalscope","hab_quantity","hab_quality","hab_temporal","ecoprocess_spp","ecoprocess_uncertainty","datasharing","broaderimpacts","exisitingpriorities","partners","leverage","alignment","objhyp","response","targettaxa","surveydesign","stats","datamanagement","budget","timeline","cost"]
[1,9,6.25,2,2,0,186,1054,75,5,0,2,0,0,0,4,0,2,3,0,0,2,3,3,3,2,3,2,2,700000]
[2,3,28.2,1,0,0,0,0,0,0,0,2,0,4,1,0,0,3,3,0,0,2,3,3,3,2,3,2,2,5400000]
[3,8,28.2,2,0,0,0,0,0,0,0,2,0,5,1,0,2,0,0,0,1,2,3,3,3,2,1,2,2,250000]
[4,1,6.25,2,0,0,0,0,0,0,0,2,0,4,1,0,1,3,3,4,0,1,3,3,1,0,0,2,1,150000]
[5,4,3.1,2,0,0,0,0,50,2,0,2,0,0,0,0,1,3,3,4,1,0,3,3,2,0,0,2,1,220000]
[6,10,6.2E-2,2,0,0,0,0,10,2,0,2,0,0,0,0,1,0,3,3,0,0,0,3,0,0,0,2,1,110000]
[7,52,18.8,0,2,0,0,0,85,12,85,8,12,8,1,0,0,3,3,0,0,2,0,1,3,2,2,0,2,1000000]
[8,3,18.8,2,1,1,0,0,14,14,14,8,14,0,0,0,3,1,3,0,0,2,3,3,3,2,0,1,1,5000000]
[9,9,15.6,2,1,0,70,140,0,0,0,2,0,0,0,3,0,3,2,1,0,2,3,3,1,2,1,1,2,25000]
[10,0,0,0,0,0,0,0,0,0,0,2,0,6,2,1,2,3,2,2,0,0,2,3,3,1,1,0,2,900000]
[11,0,0,0,0,0,6,102,52,15,52,8,15,3,1,1,0,3,3,2,2,2,1,3,3,1,2,0,1,1500000]
[12,2,15.6,2,1,0,0,0,0,0,0,2,0,0,0,0,1,3,3,3,0,1,1,3,1,2,1,2,0,100000]
[13,0,0,0,0,0,0,12,39,2,39,8,2,7,1,1,0,3,3,0,0,1,0,1,0,2,1,1,1,250000]
[14,6,15.6,1,1,0,0,0,0,0,0,2,0,6,1,1,0,3,3,0,0,1,1,3,3,1,2,1,1,500000]
[15,23,12.5,2,1,1,0,0,23,3,23,8,3,1,2,2,0,2,3,3,2,0,3,1,1,2,3,2,1,800000]
[16,0,0,0,0,0,0,0,100,15,100,7,15,0,0,3,0,3,3,5,0,2,2,2,1,2,3,2,2,2000000]
[17,2,15.6,2,1,1,58,290,0,0,0,8,3,0,0,0,0,3,2,0,0,2,3,1,0,1,0,2,1,500000]
[18,0,0,0,0,0,0,30,0,0,0,2,0,8,1,1,3,3,3,5,1,2,2,1,2,1,2,1,0,300000]
[19,8,3.125,1,2,0,0,0,0,0,0,2,0,8,2,0,0,2,3,0,0,1,1,3,2,0,1,0,1,750000]
[20,9,15.6,1,2,0,0,435,76,10,76,6,10,8,2,1,0,3,3,3,2,1,0,0,1,2,1,0,1,1500000]
[21,0,0,0,0,0,0,0,0,0,0,2,0,8,2,0,1,3,3,5,1,0,2,3,1,0,3,1,2,900000]
[22,0,0,0,0,0,16,64,0,0,0,2,0,1,2,4,2,2,3,5,0,1,2,1,0,2,1,2,1,750000]
[23,9,18.8,2,0,0,0,0,0,0,0,2,0,0,0,3,0,3,3,5,0,2,1,2,1,1,1,0,1,1000000]
[24,5,6.25,2,0,0,0,0,0,0,0,2,0,0,0,0,0,3,3,5,0,0,3,1,3,2,1,0,2,150000]
[25,9,18.8,2,0,0,176,308,0,0,0,2,0,8,1,2,2,3,3,0,0,2,1,3,2,1,1,2,2,250000]
[26,17,18.8,2,1,0,0,0,0,0,0,2,0,0,0,3,0,3,3,4,0,2,1,0,2,0,1,2,2,500000]
[27,0,6.25,2,0,0,0,0,0,0,80,2,5,0,0,2,2,3,3,5,0,1,2,3,1,0,0,0,0,1200000]
[28,3,6.25,2,0,1,0,0,0,0,0,4,5,0,0,4,0,3,3,4,0,2,3,3,1,0,2,2,1,500000]
[29,9,12.5,2,1,0,0,0,15,12,15,8,12,0,0,1,0,3,3,4,0,2,1,0,2,1,1,1,2,2000000]
[30,33,18.8,2,0,0,0,0,0,0,0,4,2,0,0,0,0,1,1,0,0,0,3,1,2,0,2,2,0,250000]
[31,4,18.8,1,0,0,0,0,65,4,0,4,4,0,0,2,0,3,2,3,0,1,0,1,1,2,2,1,1,650000]
[32,5,3.125,2,2,1,6,102,40,16,40,8,16,0,0,2,3,3,0,4,0,0,2,1,2,1,0,2,1,200000]
[33,14,18.8,2,1,0,0,0,0,0,0,5,0,0,0,2,0,3,2,0,0,1,3,0,2,2,3,0,0,400000]
[34,0,0,0,0,0,0,12,100,15,100,8,15,0,0,2,0,3,3,4,0,2,3,3,0,2,2,1,0,900000]
[35,8,9.4,1,1,1,0,0,0,0,100,6,5,8,0,0,0,3,3,3,0,2,2,0,1,2,0,1,1,900000]
["CV",{"$f":"_xlfn.STDEV.S(B2:B36)/AVERAGE(B2:B36)","v":1.383842854444886},{"$f":"_xlfn.STDEV.S(C2:C36)/AVERAGE(C2:C36)","v":0.84395823753626376},{"$f":"_xlfn.STDEV.S(D2:D36)/AVERAGE(D2:D36)","v":0.65948586466528381},{"$f":"_xlfn.STDEV.S(E2:E36)/AVERAGE(E2:E36)","v":1.2933654230908831},2.2305806858480666,2.9881459898804135,2.7250501152884543,1.5394659205075842,1.5790297611729722,1.6828143944790142,0.63288342730791625,1.4346340567392073,1.2744250477591585,1.2909944487358058,1.043011114951035,1.4910544805781871,0.32582327651393111,0.30721159062514791,0.8219511329380369,2.1760730956581078,0.64975875258290616,0.58618247649425104,0.61083323417736113,0.63333947951472869,0.68629571860885286,0.76505300516434493,0.69428102652373402,0.60312027652595823]
["sd",{"$f":"_xlfn.STDEV.S(B2:B36)","v":10.477667326511279}]
["mean",{"$f":"AVERAGE(B2:B36)","v":7.5714285714285712}]
[null,{"$f":"B1","v":"manage_species"},{"$f":"C1","v":"manage_spatial"},"manage_uncertainty","manage_currentpractices","manage_adaptivemanagement","pop_a","pop_b","pop_spatialscope","pop_temporalscope","hab_quantity","hab_quality","hab_temporal","ecoprocess_spp","ecoprocess_uncertainty","datasharing","broaderimpacts","exisitingpriorities","partners","leverage","alignment","objhyp","response","targettaxa","surveydesign","stats","datamanagement","budget","timeline"]
[null,"Metric 1","Metric 2","Metric 3","Metric 4","Metric 5","Metric 6a","Metric 6b","Metric 7","Metric 8","Metric 9","Metric 10","Metric 11","Metric 12","Metric 13","Metric 14","Metric 15","Metric 16","Metric 17","Metric 18","Metric 19","Metric 20","Metric 21","Metric 22","Metric 23","Metric 24","Metric 25","Metric 26","Metric 27"]
["Weights",0.03,0.03,0.03,0.03,0.04,1.4999999999999999E-2,1.4999999999999999E-2,0.03,0.02,0.02,0.02,0.02,0.03,0.09,0.04,0.04,0.05,0.05,0.03,0.03,0.05,0.04,0.04,0.05,0.05,0.04,0.04,0.03]
[]
[null,"Unweighted"]
["Project",null,null,null,null,null,null,null,null,null,null,null,null,null,null,null,null,null,null,null,null,null,null,null,null,null,null,null,null,"Unweighted total",null,"Unweighted total","management","status","ecol_proc","integration","rigor"]
[{"$f":"A2","v":1},{"$f":"valueE(B2,'Utility Functions'!$B$3,'Utility Functions'!$B$4,'Utility Functions'!$B$5,'Utility Functions'!$B$6)","v":0.83470237647280454},{"$f":"valueE(C2,'Utility Functions'!$D$3,'Utility Functions'!$D$4,'Utility Functions'!$D$5,'Utility Functions'!$D$6)","v":0.46475967153745396},{"$f":"valuePL(D2,'Utility Functions'!$E$3:$E$5,'Utility Functions'!$F$3:$F$5)","v":1},{"$f":"valuePL(E2,'Utility Functions'!$G$3:$G$5,'Utility Functions'!$H$3:$H$5)","v":1},{"$f":"valuePL(F2,'Utility Functions'!$I$3:$I$4,'Utility Functions'!$J$3:$J$5)","v":0},{"$f":"valueE(G2,'Utility Functions'!$L$3,'Utility Functions'!$L$4,'Utility Functions'!$L$5,'Utility Functions'!$L$6)","v":1},{"$f":"valueE(H2,'Utility Functions'!$N$3,'Utility Functions'!$N$4,'Utility Functions'!$N$5,'Utility Functions'!$N$6)","v":1},{"$f":"valuePL(I2,'Utility Functions'!$O$3:$O$6,'Utility Functions'!$P$3:$P$6)","v":0.91818181818181821},{"$f":"valuePL(J2,'Utility Functions'!$Q$3:$Q$6,'Utility Functions'!$R$3:$R$6)","v":0.1},{"$f":"valuePL(K2,'Utility Functions'!$S$3:$S$7,'Utility Functions'!$T$3:$T$7)","v":0},{"$f":"valueE(L2,'Utility Functions'!$V$3,'Utility Functions'!$V$4,'Utility Functions'!$V$5,'Utility Functions'!$V$6)","v":0},{"$f":"valuePL(M2,'Utility Functions'!$W$3:$W$6,'Utility Functions'!$X$3:$X$6)","v":0},{"$f":"valueE(N2,'Utility Functions'!$Z$3,'Utility Functions'!$Z$4,'Utility Functions'!$Z$5,'Utility Functions'!$Z$6)","v":0},{"$f":"valuePL(O2,'Utility Functions'!$AA$3:$AA$5,'Utility Functions'!$AB$3:$AB$5)","v":0},{"$f":"valuePL(P2,'Utility Functions'!$AC$3:$AC$7,'Utility Functions'!$AD$3:$AD$7)","v":1},{"$f":"valuePL(Q2,'Utility Functions'!$AE$3:$AE$6,'Utility Functions'!$AF$3:$AF$6)","v":0},{"$f":"valuePL(R2,'Utility Functions'!$AG$3:$AG$6,'Utility Functions'!$AH$3:$AH$6)","v":0.8},{"$f":"valuePL(S2,'Utility Functions'!$AI$3:$AI$6,'Utility Functions'!$AJ$3:$AJ$6)","v":1},{"$f":"valuePL(T2,'Utility Functions'!$AK$3:$AK$8,'Utility Functions'!$AL$3:$AL$8)","v":0},{"$f":"valuePL(U2,'Utility Functions'!$AM$3:$AM$5,'Utility Functions'!$AN$3:$AN$5)","v":0},{"$f":"valuePL(V2,'Utility Functions'!$AO$3:$AO$5,'Utility Functions'!$AP$3:$AP$5)","v":1},{"$f":"valuePL(W2,'Utility Functions'!$AQ$3:$AQ$6,'Utility Functions'!$AR$3:$AR$6)","v":1},{"$f":"valuePL(X2,'Utility Functions'!$AS$3:$AS$6,'Utility Functions'!$AT$3:$AT$6)","v":1},{"$f":"valuePL(Y2,'Utility Functions'!$AU$3:$AU$6,'Utility Functions'!$AV$3:$AV$6)","v":1},{"$f":"valuePL(Z2,'Utility Functions'!$AW$3:$AW$5,'Utility Functions'!$AX$3:$AX$5)","v":1},{"$f":"valuePL(AA2,'Utility Functions'!$AY$3:$AY$6,'Utility Functions'!$AZ$3:$AZ$6)","v":1},{"$f":"valuePL(AB2,'Utility Functions'!$BA$3:$BA$5,'Utility Functions'!$BB$3:$BB$5)","v":1},{"$f":"valuePL(AC2,'Utility Functions'!$BC$3:$BC$5,'Utility Functions'!$BD$3:$BD$5)","v":1},{"$f":"SUM(B46:AC46)","v":17.117643866192076},null,{"$f":"SUM(AG46:AK46)","v":17.117643866192076},{"$f":"SUM(B46:F46)","v":3.2994620480102586},{"$f":"SUM(G46:M46)","v":3.0181818181818181},{"$f":"SUM(N46:O46)","v":0},{"$f":"SUM(P46:U46)","v":2.8},{"$f":"SUM(V46:AC46)","v":8}]
[2,{"$f":"valueE(B3,'Utility Functions'!$B$3,'Utility Functions'!$B$4,'Utility Functions'!$B$5,'Utility Functions'!$B$6)","v":0.4511890475224023},{"$f":"valueE(C3,'Utility Functions'!$D$3,'Utility Functions'!$D$4,'Utility Functions'!$D$5,'Utility Functions'!$D$6)","v":0.94043675305359531},{"$f":"valuePL(D3,'Utility Functions'!$E$3:$E$5,'Utility Functions'!$F$3:$F$5)","v":0.5},{"$f":"valuePL(E3,'Utility Functions'!$G$3:$G$5,'Utility Functions'!$H$3:$H$5)","v":0},{"$f":"valuePL(F3,'Utility Functions'!$I$3:$I$4,'Utility Functions'!$J$3:$J$5)","v":0},{"$f":"valueE(G3,'Utility Functions'!$L$3,'Utility Functions'!$L$4,'Utility Functions'!$L$5,'Utility Functions'!$L$6)","v":0},{"$f":"valueE(H3,'Utility Functions'!$N$3,'Utility Functions'!$N$4,'Utility Functions'!$N$5,'Utility Functions'!$N$6)","v":0},{"$f":"valuePL(I3,'Utility Functions'!$O$3:$O$6,'Utility Functions'!$P$3:$P$6)","v":0},{"$f":"valuePL(J3,'Utility Functions'!$Q$3:$Q$6,'Utility Functions'!$R$3:$R$6)","v":0},{"$f":"valuePL(K3,'Utility Functions'!$S$3:$S$7,'Utility Functions'!$T$3:$T$7)","v":0},{"$f":"valueE(L3,'Utility Functions'!$V$3,'Utility Functions'!$V$4,'Utility Functions'!$V$5,'Utility Functions'!$V$6)","v":0},{"$f":"valuePL(M3,'Utility Functions'!$W$3:$W$6,'Utility Functions'!$X$3:$X$6)","v":0},{"$f":"valueE(N3,'Utility Functions'!$Z$3,'Utility Functions'!$Z$4,'Utility Functions'!$Z$5,'Utility Functions'!$Z$6)","v":0.5},{"$f":"valuePL(O3,'Utility Functions'!$AA$3:$AA$5,'Utility Functions'!$AB$3:$AB$5)","v":0.25},{"$f":"valuePL(P3,'Utility Functions'!$AC$3:$AC$7,'Utility Functions'!$AD$3:$AD$7)","v":0},{"$f":"valuePL(Q3,'Utility Functions'!$AE$3:$AE$6,'Utility Functions'!$AF$3:$AF$6)","v":0},{"$f":"valuePL(R3,'Utility Functions'!$AG$3:$AG$6,'Utility Functions'!$AH$3:$AH$6)","v":1},{"$f":"valuePL(S3,'Utility Functions'!$AI$3:$AI$6,'Utility Functions'!$AJ$3:$AJ$6)","v":1},{"$f":"valuePL(T3,'Utility Functions'!$AK$3:$AK$8,'Utility Functions'!$AL$3:$AL$8)","v":0},{"$f":"valuePL(U3,'Utility Functions'!$AM$3:$AM$5,'Utility Functions'!$AN$3:$AN$5)","v":0},{"$f":"valuePL(V3,'Utility Functions'!$AO$3:$AO$5,'Utility Functions'!$AP$3:$AP$5)","v":1},{"$f":"valuePL(W3,'Utility Functions'!$AQ$3:$AQ$6,'Utility Functions'!$AR$3:$AR$6)","v":1},{"$f":"valuePL(X3,'Utility Functions'!$AS$3:$AS$6,'Utility Functions'!$AT$3:$AT$6)","v":1},{"$f":"valuePL(Y3,'Utility Functions'!$AU$3:$AU$6,'Utility Functions'!$AV$3:$AV$6)","v":1},{"$f":"valuePL(Z3,'Utility Functions'!$AW$3:$AW$5,'Utility Functions'!$AX$3:$AX$5)","v":1},{"$f":"valuePL(AA3,'Utility Functions'!$AY$3:$AY$6,'Utility Functions'!$AZ$3:$AZ$6)","v":1},{"$f":"valuePL(AB3,'Utility Functions'!$BA$3:$BA$5,'Utility Functions'!$BB$3:$BB$5)","v":1},{"$f":"valuePL(AC3,'Utility Functions'!$BC$3:$BC$5,'Utility Functions'!$BD$3:$BD$5)","v":1},{"$f":"SUM(B47:AC47)","v":12.641625800575998},null,{"$f":"SUM(AG47:AK47)","v":12.641625800575998},{"$f":"SUM(B47:F47)","v":1.8916258005759976},{"$f":"SUM(G47:M47)","v":0},{"$f":"SUM(N47:O47)","v":0.75},{"$f":"SUM(P47:U47)","v":2},{"$f":"SUM(V47:AC47)","v":8}]
[3,{"$f":"valueE(B4,'Utility Functions'!$B$3,'Utility Functions'!$B$4,'Utility Functions'!$B$5,'Utility Functions'!$B$6)","v":0.79810469124896843},{"$f":"valueE(C4,'Utility Functions'!$D$3,'Utility Functions'!$D$4,'Utility Functions'!$D$5,'Utility Functions'!$D$6)","v":0.94043675305359531},{"$f":"valuePL(D4,'Utility Functions'!$E$3:$E$5,'Utility Functions'!$F$3:$F$5)","v":1},{"$f":"valuePL(E4,'Utility Functions'!$G$3:$G$5,'Utility Functions'!$H$3:$H$5)","v":0},{"$f":"valuePL(F4,'Utility Functions'!$I$3:$I$4,'Utility Functions'!$J$3:$J$5)","v":0},{"$f":"valueE(G4,'Utility Functions'!$L$3,'Utility Functions'!$L$4,'Utility Functions'!$L$5,'Utility Functions'!$L$6)","v":0},{"$f":"valueE(H4,'Utility Functions'!$N$3,'Utility Functions'!$N$4,'Utility Functions'!$N$5,'Utility Functions'!$N$6)","v":0},{"$f":"valuePL(I4,'Utility Functions'!$O$3:$O$6,'Utility Functions'!$P$3:$P$6)","v":0},{"$f":"valuePL(J4,'Utility Functions'!$Q$3:$Q$6,'Utility Functions'!$R$3:$R$6)","v":0},{"$f":"valuePL(K4,'Utility Functions'!$S$3:$S$7,'Utility Functions'!$T$3:$T$7)","v":0},{"$f":"valueE(L4,'Utility Functions'!$V$3,'Utility Functions'!$V$4,'Utility Functions'!$V$5,'Utility Functions'!$V$6)","v":0},{"$f":"valuePL(M4,'Utility Functions'!$W$3:$W$6,'Utility Functions'!$X$3:$X$6)","v":0},{"$f":"valueE(N4,'Utility Functions'!$Z$3,'Utility Functions'!$Z$4,'Utility Functions'!$Z$5,'Utility Functions'!$Z$6)","v":0.625},{"$f":"valuePL(O4,'Utility Functions'!$AA$3:$AA$5,'Utility Functions'!$AB$3:$AB$5)","v":0.25},{"$f":"valuePL(P4,'Utility Functions'!$AC$3:$AC$7,'Utility Functions'!$AD$3:$AD$7)","v":0},{"$f":"valuePL(Q4,'Utility Functions'!$AE$3:$AE$6,'Utility Functions'!$AF$3:$AF$6)","v":0.5},{"$f":"valuePL(R4,'Utility Functions'!$AG$3:$AG$6,'Utility Functions'!$AH$3:$AH$6)","v":0},{"$f":"valuePL(S4,'Utility Functions'!$AI$3:$AI$6,'Utility Functions'!$AJ$3:$AJ$6)","v":0},{"$f":"valuePL(T4,'Utility Functions'!$AK$3:$AK$8,'Utility Functions'!$AL$3:$AL$8)","v":0},{"$f":"valuePL(U4,'Utility Functions'!$AM$3:$AM$5,'Utility Functions'!$AN$3:$AN$5)","v":0.25},{"$f":"valuePL(V4,'Utility Functions'!$AO$3:$AO$5,'Utility Functions'!$AP$3:$AP$5)","v":1},{"$f":"valuePL(W4,'Utility Functions'!$AQ$3:$AQ$6,'Utility Functions'!$AR$3:$AR$6)","v":1},{"$f":"valuePL(X4,'Utility Functions'!$AS$3:$AS$6,'Utility Functions'!$AT$3:$AT$6)","v":1},{"$f":"valuePL(Y4,'Utility Functions'!$AU$3:$AU$6,'Utility Functions'!$AV$3:$AV$6)","v":1},{"$f":"valuePL(Z4,'Utility Functions'!$AW$3:$AW$5,'Utility Functions'!$AX$3:$AX$5)","v":1},{"$f":"valuePL(AA4,'Utility Functions'!$AY$3:$AY$6,'Utility Functions'!$AZ$3:$AZ$6)","v":0.2},{"$f":"valuePL(AB4,'Utility Functions'!$BA$3:$BA$5,'Utility Functions'!$BB$3:$BB$5)","v":1},{"$f":"valuePL(AC4,'Utility Functions'!$BC$3:$BC$5,'Utility Functions'!$BD$3:$BD$5)","v":1},11.563541444302563,null,11.563541444302565,2.7385414443025637,0,0.875,0.75,7.2]
[4,{"$f":"valueE(B5,'Utility Functions'!$B$3,'Utility Functions'!$B$4,'Utility Functions'!$B$5,'Utility Functions'!$B$6)","v":0.1812695215714665},{"$f":"valueE(C5,'Utility Functions'!$D$3,'Utility Functions'!$D$4,'Utility Functions'!$D$5,'Utility Functions'!$D$6)","v":0.46475967153745396},{"$f":"valuePL(D5,'Utility Functions'!$E$3:$E$5,'Utility Functions'!$F$3:$F$5)","v":1},{"$f":"valuePL(E5,'Utility Functions'!$G$3:$G$5,'Utility Functions'!$H$3:$H$5)","v":0},{"$f":"valuePL(F5,'Utility Functions'!$I$3:$I$4,'Utility Functions'!$J$3:$J$5)","v":0},{"$f":"valueE(G5,'Utility Functions'!$L$3,'Utility Functions'!$L$4,'Utility Functions'!$L$5,'Utility Functions'!$L$6)","v":0},{"$f":"valueE(H5,'Utility Functions'!$N$3,'Utility Functions'!$N$4,'Utility Functions'!$N$5,'Utility Functions'!$N$6)","v":0},{"$f":"valuePL(I5,'Utility Functions'!$O$3:$O$6,'Utility Functions'!$P$3:$P$6)","v":0},{"$f":"valuePL(J5,'Utility Functions'!$Q$3:$Q$6,'Utility Functions'!$R$3:$R$6)","v":0},{"$f":"valuePL(K5,'Utility Functions'!$S$3:$S$7,'Utility Functions'!$T$3:$T$7)","v":0},{"$f":"valueE(L5,'Utility Functions'!$V$3,'Utility Functions'!$V$4,'Utility Functions'!$V$5,'Utility Functions'!$V$6)","v":0},{"$f":"valuePL(M5,'Utility Functions'!$W$3:$W$6,'Utility Functions'!$X$3:$X$6)","v":0},{"$f":"valueE(N5,'Utility Functions'!$Z$3,'Utility Functions'!$Z$4,'Utility Functions'!$Z$5,'Utility Functions'!$Z$6)","v":0.5},{"$f":"valuePL(O5,'Utility Functions'!$AA$3:$AA$5,'Utility Functions'!$AB$3:$AB$5)","v":0.25},{"$f":"valuePL(P5,'Utility Functions'!$AC$3:$AC$7,'Utility Functions'!$AD$3:$AD$7)","v":0},{"$f":"valuePL(Q5,'Utility Functions'!$AE$3:$AE$6,'Utility Functions'!$AF$3:$AF$6)","v":0.1},{"$f":"valuePL(R5,'Utility Functions'!$AG$3:$AG$6,'Utility Functions'!$AH$3:$AH$6)","v":1},{"$f":"valuePL(S5,'Utility Functions'!$AI$3:$AI$6,'Utility Functions'!$AJ$3:$AJ$6)","v":1},{"$f":"valuePL(T5,'Utility Functions'!$AK$3:$AK$8,'Utility Functions'!$AL$3:$AL$8)","v":0.8},{"$f":"valuePL(U5,'Utility Functions'!$AM$3:$AM$5,'Utility Functions'!$AN$3:$AN$5)","v":0},{"$f":"valuePL(V5,'Utility Functions'!$AO$3:$AO$5,'Utility Functions'!$AP$3:$AP$5)","v":0.5},{"$f":"valuePL(W5,'Utility Functions'!$AQ$3:$AQ$6,'Utility Functions'!$AR$3:$AR$6)","v":1},{"$f":"valuePL(X5,'Utility Functions'!$AS$3:$AS$6,'Utility Functions'!$AT$3:$AT$6)","v":1},{"$f":"valuePL(Y5,'Utility Functions'!$AU$3:$AU$6,'Utility Functions'!$AV$3:$AV$6)","v":0.2},{"$f":"valuePL(Z5,'Utility Functions'!$AW$3:$AW$5,'Utility Functions'!$AX$3:$AX$5)","v":0},{"$f":"valuePL(AA5,'Utility Functions'!$AY$3:$AY$6,'Utility Functions'!$AZ$3:$AZ$6)","v":0},{"$f":"valuePL(AB5,'Utility Functions'!$BA$3:$BA$5,'Utility Functions'!$BB$3:$BB$5)","v":1},{"$f":"valuePL(AC5,'Utility Functions'!$BC$3:$BC$5,'Utility Functions'!$BD$3:$BD$5)","v":0.25},9.2460291931089209,null,9.2460291931089209,1.6460291931089204,0,0.75,2.9000000000000004,3.95]
[5,{"$f":"valueE(B6,'Utility Functions'!$B$3,'Utility Functions'!$B$4,'Utility Functions'!$B$5,'Utility Functions'!$B$6)","v":0.55067187023002029},{"$f":"valueE(C6,'Utility Functions'!$D$3,'Utility Functions'!$D$4,'Utility Functions'!$D$5,'Utility Functions'!$D$6)","v":0.26656514581460788},{"$f":"valuePL(D6,'Utility Functions'!$E$3:$E$5,'Utility Functions'!$F$3:$F$5)","v":1},{"$f":"valuePL(E6,'Utility Functions'!$G$3:$G$5,'Utility Functions'!$H$3:$H$5)","v":0},{"$f":"valuePL(F6,'Utility Functions'!$I$3:$I$4,'Utility Functions'!$J$3:$J$5)","v":0},{"$f":"valueE(G6,'Utility Functions'!$L$3,'Utility Functions'!$L$4,'Utility Functions'!$L$5,'Utility Functions'!$L$6)","v":0},{"$f":"valueE(H6,'Utility Functions'!$N$3,'Utility Functions'!$N$4,'Utility Functions'!$N$5,'Utility Functions'!$N$6)","v":0},{"$f":"valuePL(I6,'Utility Functions'!$O$3:$O$6,'Utility Functions'!$P$3:$P$6)","v":0.50909090909090915},{"$f":"valuePL(J6,'Utility Functions'!$Q$3:$Q$6,'Utility Functions'!$R$3:$R$6)","v":0.04},{"$f":"valuePL(K6,'Utility Functions'!$S$3:$S$7,'Utility Functions'!$T$3:$T$7)","v":0},{"$f":"valueE(L6,'Utility Functions'!$V$3,'Utility Functions'!$V$4,'Utility Functions'!$V$5,'Utility Functions'!$V$6)","v":0},{"$f":"valuePL(M6,'Utility Functions'!$W$3:$W$6,'Utility Functions'!$X$3:$X$6)","v":0},{"$f":"valueE(N6,'Utility Functions'!$Z$3,'Utility Functions'!$Z$4,'Utility Functions'!$Z$5,'Utility Functions'!$Z$6)","v":0},{"$f":"valuePL(O6,'Utility Functions'!$AA$3:$AA$5,'Utility Functions'!$AB$3:$AB$5)","v":0},{"$f":"valuePL(P6,'Utility Functions'!$AC$3:$AC$7,'Utility Functions'!$AD$3:$AD$7)","v":0},{"$f":"valuePL(Q6,'Utility Functions'!$AE$3:$AE$6,'Utility Functions'!$AF$3:$AF$6)","v":0.1},{"$f":"valuePL(R6,'Utility Functions'!$AG$3:$AG$6,'Utility Functions'!$AH$3:$AH$6)","v":1},{"$f":"valuePL(S6,'Utility Functions'!$AI$3:$AI$6,'Utility Functions'!$AJ$3:$AJ$6)","v":1},{"$f":"valuePL(T6,'Utility Functions'!$AK$3:$AK$8,'Utility Functions'!$AL$3:$AL$8)","v":0.8},{"$f":"valuePL(U6,'Utility Functions'!$AM$3:$AM$5,'Utility Functions'!$AN$3:$AN$5)","v":0.25},{"$f":"valuePL(V6,'Utility Functions'!$AO$3:$AO$5,'Utility Functions'!$AP$3:$AP$5)","v":0},{"$f":"valuePL(W6,'Utility Functions'!$AQ$3:$AQ$6,'Utility Functions'!$AR$3:$AR$6)","v":1},{"$f":"valuePL(X6,'Utility Functions'!$AS$3:$AS$6,'Utility Functions'!$AT$3:$AT$6)","v":1},{"$f":"valuePL(Y6,'Utility Functions'!$AU$3:$AU$6,'Utility Functions'!$AV$3:$AV$6)","v":0.8},{"$f":"valuePL(Z6,'Utility Functions'!$AW$3:$AW$5,'Utility Functions'!$AX$3:$AX$5)","v":0},{"$f":"valuePL(AA6,'Utility Functions'!$AY$3:$AY$6,'Utility Functions'!$AZ$3:$AZ$6)","v":0},{"$f":"valuePL(AB6,'Utility Functions'!$BA$3:$BA$5,'Utility Functions'!$BB$3:$BB$5)","v":1},{"$f":"valuePL(AC6,'Utility Functions'!$BC$3:$BC$5,'Utility Functions'!$BD$3:$BD$5)","v":0.25},9.5663279251355373,null,9.5663279251355391,1.8172370160446283,0.54909090909090918,0,3.1500000000000004,4.05]
[6,{"$f":"valueE(B7,'Utility Functions'!$B$3,'Utility Functions'!$B$4,'Utility Functions'!$B$5,'Utility Functions'!$B$6)","v":0.86466602685702687},{"$f":"valueE(C7,'Utility Functions'!$D$3,'Utility Functions'!$D$4,'Utility Functions'!$D$5,'Utility Functions'!$D$6)","v":6.1811002813601471E-3},{"$f":"valuePL(D7,'Utility Functions'!$E$3:$E$5,'Utility Functions'!$F$3:$F$5)","v":1},{"$f":"valuePL(E7,'Utility Functions'!$G$3:$G$5,'Utility Functions'!$H$3:$H$5)","v":0},{"$f":"valuePL(F7,'Utility Functions'!$I$3:$I$4,'Utility Functions'!$J$3:$J$5)","v":0},{"$f":"valueE(G7,'Utility Functions'!$L$3,'Utility Functions'!$L$4,'Utility Functions'!$L$5,'Utility Functions'!$L$6)","v":0},{"$f":"valueE(H7,'Utility Functions'!$N$3,'Utility Functions'!$N$4,'Utility Functions'!$N$5,'Utility Functions'!$N$6)","v":0},{"$f":"valuePL(I7,'Utility Functions'!$O$3:$O$6,'Utility Functions'!$P$3:$P$6)","v":0.04},{"$f":"valuePL(J7,'Utility Functions'!$Q$3:$Q$6,'Utility Functions'!$R$3:$R$6)","v":0.04},{"$f":"valuePL(K7,'Utility Functions'!$S$3:$S$7,'Utility Functions'!$T$3:$T$7)","v":0},{"$f":"valueE(L7,'Utility Functions'!$V$3,'Utility Functions'!$V$4,'Utility Functions'!$V$5,'Utility Functions'!$V$6)","v":0},{"$f":"valuePL(M7,'Utility Functions'!$W$3:$W$6,'Utility Functions'!$X$3:$X$6)","v":0},{"$f":"valueE(N7,'Utility Functions'!$Z$3,'Utility Functions'!$Z$4,'Utility Functions'!$Z$5,'Utility Functions'!$Z$6)","v":0},{"$f":"valuePL(O7,'Utility Functions'!$AA$3:$AA$5,'Utility Functions'!$AB$3:$AB$5)","v":0},{"$f":"valuePL(P7,'Utility Functions'!$AC$3:$AC$7,'Utility Functions'!$AD$3:$AD$7)","v":0},{"$f":"valuePL(Q7,'Utility Functions'!$AE$3:$AE$6,'Utility Functions'!$AF$3:$AF$6)","v":0.1},{"$f":"valuePL(R7,'Utility Functions'!$AG$3:$AG$6,'Utility Functions'!$AH$3:$AH$6)","v":0},{"$f":"valuePL(S7,'Utility Functions'!$AI$3:$AI$6,'Utility Functions'!$AJ$3:$AJ$6)","v":1},{"$f":"valuePL(T7,'Utility Functions'!$AK$3:$AK$8,'Utility Functions'!$AL$3:$AL$8)","v":0.6},{"$f":"valuePL(U7,'Utility Functions'!$AM$3:$AM$5,'Utility Functions'!$AN$3:$AN$5)","v":0},{"$f":"valuePL(V7,'Utility Functions'!$AO$3:$AO$5,'Utility Functions'!$AP$3:$AP$5)","v":0},{"$f":"valuePL(W7,'Utility Functions'!$AQ$3:$AQ$6,'Utility Functions'!$AR$3:$AR$6)","v":0},{"$f":"valuePL(X7,'Utility Functions'!$AS$3:$AS$6,'Utility Functions'!$AT$3:$AT$6)","v":1},{"$f":"valuePL(Y7,'Utility Functions'!$AU$3:$AU$6,'Utility Functions'!$AV$3:$AV$6)","v":0},{"$f":"valuePL(Z7,'Utility Functions'!$AW$3:$AW$5,'Utility Functions'!$AX$3:$AX$5)","v":0},{"$f":"valuePL(AA7,'Utility Functions'!$AY$3:$AY$6,'Utility Functions'!$AZ$3:$AZ$6)","v":0},{"$f":"valuePL(AB7,'Utility Functions'!$BA$3:$BA$5,'Utility Functions'!$BB$3:$BB$5)","v":1},{"$f":"valuePL(AC7,'Utility Functions'!$BC$3:$BC$5,'Utility Functions'!$BD$3:$BD$5)","v":0.25},5.9008471271383875,null,5.9008471271383875,1.8708471271383869,0.08,0,1.7000000000000002,2.25]
[7,{"$f":"valueE(B8,'Utility Functions'!$B$3,'Utility Functions'!$B$4,'Utility Functions'!$B$5,'Utility Functions'!$B$6)","v":0.99997108261728973},{"$f":"valueE(C8,'Utility Functions'!$D$3,'Utility Functions'!$D$4,'Utility Functions'!$D$5,'Utility Functions'!$D$6)","v":0.84744836833951609},{"$f":"valuePL(D8,'Utility Functions'!$E$3:$E$5,'Utility Functions'!$F$3:$F$5)","v":0},{"$f":"valuePL(E8,'Utility Functions'!$G$3:$G$5,'Utility Functions'!$H$3:$H$5)","v":1},{"$f":"valuePL(F8,'Utility Functions'!$I$3:$I$4,'Utility Functions'!$J$3:$J$5)","v":0},{"$f":"valueE(G8,'Utility Functions'!$L$3,'Utility Functions'!$L$4,'Utility Functions'!$L$5,'Utility Functions'!$L$6)","v":0},{"$f":"valueE(H8,'Utility Functions'!$N$3,'Utility Functions'!$N$4,'Utility Functions'!$N$5,'Utility Functions'!$N$6)","v":0},{"$f":"valuePL(I8,'Utility Functions'!$O$3:$O$6,'Utility Functions'!$P$3:$P$6)","v":1},{"$f":"valuePL(J8,'Utility Functions'!$Q$3:$Q$6,'Utility Functions'!$R$3:$R$6)","v":0.67272727272727273},{"$f":"valuePL(K8,'Utility Functions'!$S$3:$S$7,'Utility Functions'!$T$3:$T$7)","v":1},{"$f":"valueE(L8,'Utility Functions'!$V$3,'Utility Functions'!$V$4,'Utility Functions'!$V$5,'Utility Functions'!$V$6)","v":1},{"$f":"valuePL(M8,'Utility Functions'!$W$3:$W$6,'Utility Functions'!$X$3:$X$6)","v":0.67272727272727273},{"$f":"valueE(N8,'Utility Functions'!$Z$3,'Utility Functions'!$Z$4,'Utility Functions'!$Z$5,'Utility Functions'!$Z$6)","v":1},{"$f":"valuePL(O8,'Utility Functions'!$AA$3:$AA$5,'Utility Functions'!$AB$3:$AB$5)","v":0.25},{"$f":"valuePL(P8,'Utility Functions'!$AC$3:$AC$7,'Utility Functions'!$AD$3:$AD$7)","v":0},{"$f":"valuePL(Q8,'Utility Functions'!$AE$3:$AE$6,'Utility Functions'!$AF$3:$AF$6)","v":0},{"$f":"valuePL(R8,'Utility Functions'!$AG$3:$AG$6,'Utility Functions'!$AH$3:$AH$6)","v":1},{"$f":"valuePL(S8,'Utility Functions'!$AI$3:$AI$6,'Utility Functions'!$AJ$3:$AJ$6)","v":1},{"$f":"valuePL(T8,'Utility Functions'!$AK$3:$AK$8,'Utility Functions'!$AL$3:$AL$8)","v":0},{"$f":"valuePL(U8,'Utility Functions'!$AM$3:$AM$5,'Utility Functions'!$AN$3:$AN$5)","v":0},{"$f":"valuePL(V8,'Utility Functions'!$AO$3:$AO$5,'Utility Functions'!$AP$3:$AP$5)","v":1},{"$f":"valuePL(W8,'Utility Functions'!$AQ$3:$AQ$6,'Utility Functions'!$AR$3:$AR$6)","v":0},{"$f":"valuePL(X8,'Utility Functions'!$AS$3:$AS$6,'Utility Functions'!$AT$3:$AT$6)","v":0.2},{"$f":"valuePL(Y8,'Utility Functions'!$AU$3:$AU$6,'Utility Functions'!$AV$3:$AV$6)","v":1},{"$f":"valuePL(Z8,'Utility Functions'!$AW$3:$AW$5,'Utility Functions'!$AX$3:$AX$5)","v":1},{"$f":"valuePL(AA8,'Utility Functions'!$AY$3:$AY$6,'Utility Functions'!$AZ$3:$AZ$6)","v":0.89999999999999991},{"$f":"valuePL(AB8,'Utility Functions'!$BA$3:$BA$5,'Utility Functions'!$BB$3:$BB$5)","v":0},{"$f":"valuePL(AC8,'Utility Functions'!$BC$3:$BC$5,'Utility Functions'!$BD$3:$BD$5)","v":1},15.54287399641135,null,15.54287399641135,2.8474194509568056,4.3454545454545457,1.25,2,5.0999999999999996]
[8,{"$f":"valueE(B9,'Utility Functions'!$B$3,'Utility Functions'!$B$4,'Utility Functions'!$B$5,'Utility Functions'!$B$6)","v":0.4511890475224023},{"$f":"valueE(C9,'Utility Functions'!$D$3,'Utility Functions'!$D$4,'Utility Functions'!$D$5,'Utility Functions'!$D$6)","v":0.84744836833951609},{"$f":"valuePL(D9,'Utility Functions'!$E$3:$E$5,'Utility Functions'!$F$3:$F$5)","v":1},{"$f":"valuePL(E9,'Utility Functions'!$G$3:$G$5,'Utility Functions'!$H$3:$H$5)","v":0.5},{"$f":"valuePL(F9,'Utility Functions'!$I$3:$I$4,'Utility Functions'!$J$3:$J$5)","v":1},{"$f":"valueE(G9,'Utility Functions'!$L$3,'Utility Functions'!$L$4,'Utility Functions'!$L$5,'Utility Functions'!$L$6)","v":0},{"$f":"valueE(H9,'Utility Functions'!$N$3,'Utility Functions'!$N$4,'Utility Functions'!$N$5,'Utility Functions'!$N$6)","v":0},{"$f":"valuePL(I9,'Utility Functions'!$O$3:$O$6,'Utility Functions'!$P$3:$P$6)","v":5.6000000000000008E-2},{"$f":"valuePL(J9,'Utility Functions'!$Q$3:$Q$6,'Utility Functions'!$R$3:$R$6)","v":0.83636363636363631},{"$f":"valuePL(K9,'Utility Functions'!$S$3:$S$7,'Utility Functions'!$T$3:$T$7)","v":0},{"$f":"valueE(L9,'Utility Functions'!$V$3,'Utility Functions'!$V$4,'Utility Functions'!$V$5,'Utility Functions'!$V$6)","v":1},{"$f":"valuePL(M9,'Utility Functions'!$W$3:$W$6,'Utility Functions'!$X$3:$X$6)","v":0.83636363636363631},{"$f":"valueE(N9,'Utility Functions'!$Z$3,'Utility Functions'!$Z$4,'Utility Functions'!$Z$5,'Utility Functions'!$Z$6)","v":0},{"$f":"valuePL(O9,'Utility Functions'!$AA$3:$AA$5,'Utility Functions'!$AB$3:$AB$5)","v":0},{"$f":"valuePL(P9,'Utility Functions'!$AC$3:$AC$7,'Utility Functions'!$AD$3:$AD$7)","v":0},{"$f":"valuePL(Q9,'Utility Functions'!$AE$3:$AE$6,'Utility Functions'!$AF$3:$AF$6)","v":1},{"$f":"valuePL(R9,'Utility Functions'!$AG$3:$AG$6,'Utility Functions'!$AH$3:$AH$6)","v":0.2},{"$f":"valuePL(S9,'Utility Functions'!$AI$3:$AI$6,'Utility Functions'!$AJ$3:$AJ$6)","v":1},{"$f":"valuePL(T9,'Utility Functions'!$AK$3:$AK$8,'Utility Functions'!$AL$3:$AL$8)","v":0},{"$f":"valuePL(U9,'Utility Functions'!$AM$3:$AM$5,'Utility Functions'!$AN$3:$AN$5)","v":0},{"$f":"valuePL(V9,'Utility Functions'!$AO$3:$AO$5,'Utility Functions'!$AP$3:$AP$5)","v":1},{"$f":"valuePL(W9,'Utility Functions'!$AQ$3:$AQ$6,'Utility Functions'!$AR$3:$AR$6)","v":1},{"$f":"valuePL(X9,'Utility Functions'!$AS$3:$AS$6,'Utility Functions'!$AT$3:$AT$6)","v":1},{"$f":"valuePL(Y9,'Utility Functions'!$AU$3:$AU$6,'Utility Functions'!$AV$3:$AV$6)","v":1},{"$f":"valuePL(Z9,'Utility Functions'!$AW$3:$AW$5,'Utility Functions'!$AX$3:$AX$5)","v":1},{"$f":"valuePL(AA9,'Utility Functions'!$AY$3:$AY$6,'Utility Functions'!$AZ$3:$AZ$6)","v":0},{"$f":"valuePL(AB9,'Utility Functions'!$BA$3:$BA$5,'Utility Functions'!$BB$3:$BB$5)","v":0.25},{"$f":"valuePL(AC9,'Utility Functions'!$BC$3:$BC$5,'Utility Functions'!$BD$3:$BD$5)","v":0.25},14.227364688589191,null,14.227364688589191,3.7986374158619185,2.7287272727272729,0,2.2000000000000002,5.5]
[9,{"$f":"valueE(B10,'Utility Functions'!$B$3,'Utility Functions'!$B$4,'Utility Functions'!$B$5,'Utility Functions'!$B$6)","v":0.83470237647280454},{"$f":"valueE(C10,'Utility Functions'!$D$3,'Utility Functions'!$D$4,'Utility Functions'!$D$5,'Utility Functions'!$D$6)","v":0.78989979019422951},{"$f":"valuePL(D10,'Utility Functions'!$E$3:$E$5,'Utility Functions'!$F$3:$F$5)","v":1},{"$f":"valuePL(E10,'Utility Functions'!$G$3:$G$5,'Utility Functions'!$H$3:$H$5)","v":0.5},{"$f":"valuePL(F10,'Utility Functions'!$I$3:$I$4,'Utility Functions'!$J$3:$J$5)","v":0},{"$f":"valueE(G10,'Utility Functions'!$L$3,'Utility Functions'!$L$4,'Utility Functions'!$L$5,'Utility Functions'!$L$6)","v":0.37634408602150538},{"$f":"valueE(H10,'Utility Functions'!$N$3,'Utility Functions'!$N$4,'Utility Functions'!$N$5,'Utility Functions'!$N$6)","v":0.13282732447817835},{"$f":"valuePL(I10,'Utility Functions'!$O$3:$O$6,'Utility Functions'!$P$3:$P$6)","v":0},{"$f":"valuePL(J10,'Utility Functions'!$Q$3:$Q$6,'Utility Functions'!$R$3:$R$6)","v":0},{"$f":"valuePL(K10,'Utility Functions'!$S$3:$S$7,'Utility Functions'!$T$3:$T$7)","v":0},{"$f":"valueE(L10,'Utility Functions'!$V$3,'Utility Functions'!$V$4,'Utility Functions'!$V$5,'Utility Functions'!$V$6)","v":0},{"$f":"valuePL(M10,'Utility Functions'!$W$3:$W$6,'Utility Functions'!$X$3:$X$6)","v":0},{"$f":"valueE(N10,'Utility Functions'!$Z$3,'Utility Functions'!$Z$4,'Utility Functions'!$Z$5,'Utility Functions'!$Z$6)","v":0},{"$f":"valuePL(O10,'Utility Functions'!$AA$3:$AA$5,'Utility Functions'!$AB$3:$AB$5)","v":0},{"$f":"valuePL(P10,'Utility Functions'!$AC$3:$AC$7,'Utility Functions'!$AD$3:$AD$7)","v":0.75},{"$f":"valuePL(Q10,'Utility Functions'!$AE$3:$AE$6,'Utility Functions'!$AF$3:$AF$6)","v":0},{"$f":"valuePL(R10,'Utility Functions'!$AG$3:$AG$6,'Utility Functions'!$AH$3:$AH$6)","v":1},{"$f":"valuePL(S10,'Utility Functions'!$AI$3:$AI$6,'Utility Functions'!$AJ$3:$AJ$6)","v":0.66},{"$f":"valuePL(T10,'Utility Functions'!$AK$3:$AK$8,'Utility Functions'!$AL$3:$AL$8)","v":0.2},{"$f":"valuePL(U10,'Utility Functions'!$AM$3:$AM$5,'Utility Functions'!$AN$3:$AN$5)","v":0},{"$f":"valuePL(V10,'Utility Functions'!$AO$3:$AO$5,'Utility Functions'!$AP$3:$AP$5)","v":1},{"$f":"valuePL(W10,'Utility Functions'!$AQ$3:$AQ$6,'Utility Functions'!$AR$3:$AR$6)","v":1},{"$f":"valuePL(X10,'Utility Functions'!$AS$3:$AS$6,'Utility Functions'!$AT$3:$AT$6)","v":1},{"$f":"valuePL(Y10,'Utility Functions'!$AU$3:$AU$6,'Utility Functions'!$AV$3:$AV$6)","v":0.2},{"$f":"valuePL(Z10,'Utility Functions'!$AW$3:$AW$5,'Utility Functions'!$AX$3:$AX$5)","v":1},{"$f":"valuePL(AA10,'Utility Functions'!$AY$3:$AY$6,'Utility Functions'!$AZ$3:$AZ$6)","v":0.2},{"$f":"valuePL(AB10,'Utility Functions'!$BA$3:$BA$5,'Utility Functions'!$BB$3:$BB$5)","v":0.25},{"$f":"valuePL(AC10,'Utility Functions'!$BC$3:$BC$5,'Utility Functions'!$BD$3:$BD$5)","v":1},11.893773577166716,null,11.893773577166719,3.1246021666670343,0.50917141049968373,0,2.6100000000000003,5.65]
[10,{"$f":"valueE(B11,'Utility Functions'!$B$3,'Utility Functions'!$B$4,'Utility Functions'!$B$5,'Utility Functions'!$B$6)","v":0},{"$f":"valueE(C11,'Utility Functions'!$D$3,'Utility Functions'!$D$4,'Utility Functions'!$D$5,'Utility Functions'!$D$6)","v":0},{"$f":"valuePL(D11,'Utility Functions'!$E$3:$E$5,'Utility Functions'!$F$3:$F$5)","v":0},{"$f":"valuePL(E11,'Utility Functions'!$G$3:$G$5,'Utility Functions'!$H$3:$H$5)","v":0},{"$f":"valuePL(F11,'Utility Functions'!$I$3:$I$4,'Utility Functions'!$J$3:$J$5)","v":0},{"$f":"valueE(G11,'Utility Functions'!$L$3,'Utility Functions'!$L$4,'Utility Functions'!$L$5,'Utility Functions'!$L$6)","v":0},{"$f":"valueE(H11,'Utility Functions'!$N$3,'Utility Functions'!$N$4,'Utility Functions'!$N$5,'Utility Functions'!$N$6)","v":0},{"$f":"valuePL(I11,'Utility Functions'!$O$3:$O$6,'Utility Functions'!$P$3:$P$6)","v":0},{"$f":"valuePL(J11,'Utility Functions'!$Q$3:$Q$6,'Utility Functions'!$R$3:$R$6)","v":0},{"$f":"valuePL(K11,'Utility Functions'!$S$3:$S$7,'Utility Functions'!$T$3:$T$7)","v":0},{"$f":"valueE(L11,'Utility Functions'!$V$3,'Utility Functions'!$V$4,'Utility Functions'!$V$5,'Utility Functions'!$V$6)","v":0},{"$f":"valuePL(M11,'Utility Functions'!$W$3:$W$6,'Utility Functions'!$X$3:$X$6)","v":0},{"$f":"valueE(N11,'Utility Functions'!$Z$3,'Utility Functions'!$Z$4,'Utility Functions'!$Z$5,'Utility Functions'!$Z$6)","v":0.75},{"$f":"valuePL(O11,'Utility Functions'!$AA$3:$AA$5,'Utility Functions'!$AB$3:$AB$5)","v":1},{"$f":"valuePL(P11,'Utility Functions'!$AC$3:$AC$7,'Utility Functions'!$AD$3:$AD$7)","v":0.25},{"$f":"valuePL(Q11,'Utility Functions'!$AE$3:$AE$6,'Utility Functions'!$AF$3:$AF$6)","v":0.5},{"$f":"valuePL(R11,'Utility Functions'!$AG$3:$AG$6,'Utility Functions'!$AH$3:$AH$6)","v":1},{"$f":"valuePL(S11,'Utility Functions'!$AI$3:$AI$6,'Utility Functions'!$AJ$3:$AJ$6)","v":0.66},{"$f":"valuePL(T11,'Utility Functions'!$AK$3:$AK$8,'Utility Functions'!$AL$3:$AL$8)","v":0.4},{"$f":"valuePL(U11,'Utility Functions'!$AM$3:$AM$5,'Utility Functions'!$AN$3:$AN$5)","v":0},{"$f":"valuePL(V11,'Utility Functions'!$AO$3:$AO$5,'Utility Functions'!$AP$3:$AP$5)","v":0},{"$f":"valuePL(W11,'Utility Functions'!$AQ$3:$AQ$6,'Utility Functions'!$AR$3:$AR$6)","v":0.75},{"$f":"valuePL(X11,'Utility Functions'!$AS$3:$AS$6,'Utility Functions'!$AT$3:$AT$6)","v":1},{"$f":"valuePL(Y11,'Utility Functions'!$AU$3:$AU$6,'Utility Functions'!$AV$3:$AV$6)","v":1},{"$f":"valuePL(Z11,'Utility Functions'!$AW$3:$AW$5,'Utility Functions'!$AX$3:$AX$5)","v":0.5},{"$f":"valuePL(AA11,'Utility Functions'!$AY$3:$AY$6,'Utility Functions'!$AZ$3:$AZ$6)","v":0.2},{"$f":"valuePL(AB11,'Utility Functions'!$BA$3:$BA$5,'Utility Functions'!$BB$3:$BB$5)","v":0},{"$f":"valuePL(AC11,'Utility Functions'!$BC$3:$BC$5,'Utility Functions'!$BD$3:$BD$5)","v":1},9.01,null,9.0100000000000016,0,0,1.75,2.81,4.45]
[11,{"$f":"valueE(B12,'Utility Functions'!$B$3,'Utility Functions'!$B$4,'Utility Functions'!$B$5,'Utility Functions'!$B$6)","v":0},{"$f":"valueE(C12,'Utility Functions'!$D$3,'Utility Functions'!$D$4,'Utility Functions'!$D$5,'Utility Functions'!$D$6)","v":0},{"$f":"valuePL(D12,'Utility Functions'!$E$3:$E$5,'Utility Functions'!$F$3:$F$5)","v":0},{"$f":"valuePL(E12,'Utility Functions'!$G$3:$G$5,'Utility Functions'!$H$3:$H$5)","v":0},{"$f":"valuePL(F12,'Utility Functions'!$I$3:$I$4,'Utility Functions'!$J$3:$J$5)","v":0},{"$f":"valueE(G12,'Utility Functions'!$L$3,'Utility Functions'!$L$4,'Utility Functions'!$L$5,'Utility Functions'!$L$6)","v":3.2258064516129031E-2},{"$f":"valueE(H12,'Utility Functions'!$N$3,'Utility Functions'!$N$4,'Utility Functions'!$N$5,'Utility Functions'!$N$6)","v":9.6774193548387094E-2},{"$f":"valuePL(I12,'Utility Functions'!$O$3:$O$6,'Utility Functions'!$P$3:$P$6)","v":0.54181818181818187},{"$f":"valuePL(J12,'Utility Functions'!$Q$3:$Q$6,'Utility Functions'!$R$3:$R$6)","v":0.91818181818181821},{"$f":"valuePL(K12,'Utility Functions'!$S$3:$S$7,'Utility Functions'!$T$3:$T$7)","v":0.54181818181818187},{"$f":"valueE(L12,'Utility Functions'!$V$3,'Utility Functions'!$V$4,'Utility Functions'!$V$5,'Utility Functions'!$V$6)","v":1},{"$f":"valuePL(M12,'Utility Functions'!$W$3:$W$6,'Utility Functions'!$X$3:$X$6)","v":0.91818181818181821},{"$f":"valueE(N12,'Utility Functions'!$Z$3,'Utility Functions'!$Z$4,'Utility Functions'!$Z$5,'Utility Functions'!$Z$6)","v":0.375},{"$f":"valuePL(O12,'Utility Functions'!$AA$3:$AA$5,'Utility Functions'!$AB$3:$AB$5)","v":0.25},{"$f":"valuePL(P12,'Utility Functions'!$AC$3:$AC$7,'Utility Functions'!$AD$3:$AD$7)","v":0.25},{"$f":"valuePL(Q12,'Utility Functions'!$AE$3:$AE$6,'Utility Functions'!$AF$3:$AF$6)","v":0},{"$f":"valuePL(R12,'Utility Functions'!$AG$3:$AG$6,'Utility Functions'!$AH$3:$AH$6)","v":1},{"$f":"valuePL(S12,'Utility Functions'!$AI$3:$AI$6,'Utility Functions'!$AJ$3:$AJ$6)","v":1},{"$f":"valuePL(T12,'Utility Functions'!$AK$3:$AK$8,'Utility Functions'!$AL$3:$AL$8)","v":0.4},{"$f":"valuePL(U12,'Utility Functions'!$AM$3:$AM$5,'Utility Functions'!$AN$3:$AN$5)","v":1},{"$f":"valuePL(V12,'Utility Functions'!$AO$3:$AO$5,'Utility Functions'!$AP$3:$AP$5)","v":1},{"$f":"valuePL(W12,'Utility Functions'!$AQ$3:$AQ$6,'Utility Functions'!$AR$3:$AR$6)","v":0.2},{"$f":"valuePL(X12,'Utility Functions'!$AS$3:$AS$6,'Utility Functions'!$AT$3:$AT$6)","v":1},{"$f":"valuePL(Y12,'Utility Functions'!$AU$3:$AU$6,'Utility Functions'!$AV$3:$AV$6)","v":1},{"$f":"valuePL(Z12,'Utility Functions'!$AW$3:$AW$5,'Utility Functions'!$AX$3:$AX$5)","v":0.5},{"$f":"valuePL(AA12,'Utility Functions'!$AY$3:$AY$6,'Utility Functions'!$AZ$3:$AZ$6)","v":0.89999999999999991},{"$f":"valuePL(AB12,'Utility Functions'!$BA$3:$BA$5,'Utility Functions'!$BB$3:$BB$5)","v":0},{"$f":"valuePL(AC12,'Utility Functions'!$BC$3:$BC$5,'Utility Functions'!$BD$3:$BD$5)","v":0.25},13.174032258064516,null,13.174032258064516,0,4.0490322580645159,0.625,3.65,4.8499999999999996]
[12,{"$f":"valueE(B13,'Utility Functions'!$B$3,'Utility Functions'!$B$4,'Utility Functions'!$B$5,'Utility Functions'!$B$6)","v":0.32968045347775865},{"$f":"valueE(C13,'Utility Functions'!$D$3,'Utility Functions'!$D$4,'Utility Functions'!$D$5,'Utility Functions'!$D$6)","v":0.78989979019422951},{"$f":"valuePL(D13,'Utility Functions'!$E$3:$E$5,'Utility Functions'!$F$3:$F$5)","v":1},{"$f":"valuePL(E13,'Utility Functions'!$G$3:$G$5,'Utility Functions'!$H$3:$H$5)","v":0.5},{"$f":"valuePL(F13,'Utility Functions'!$I$3:$I$4,'Utility Functions'!$J$3:$J$5)","v":0},{"$f":"valueE(G13,'Utility Functions'!$L$3,'Utility Functions'!$L$4,'Utility Functions'!$L$5,'Utility Functions'!$L$6)","v":0},{"$f":"valueE(H13,'Utility Functions'!$N$3,'Utility Functions'!$N$4,'Utility Functions'!$N$5,'Utility Functions'!$N$6)","v":0},{"$f":"valuePL(I13,'Utility Functions'!$O$3:$O$6,'Utility Functions'!$P$3:$P$6)","v":0},{"$f":"valuePL(J13,'Utility Functions'!$Q$3:$Q$6,'Utility Functions'!$R$3:$R$6)","v":0},{"$f":"valuePL(K13,'Utility Functions'!$S$3:$S$7,'Utility Functions'!$T$3:$T$7)","v":0},{"$f":"valueE(L13,'Utility Functions'!$V$3,'Utility Functions'!$V$4,'Utility Functions'!$V$5,'Utility Functions'!$V$6)","v":0},{"$f":"valuePL(M13,'Utility Functions'!$W$3:$W$6,'Utility Functions'!$X$3:$X$6)","v":0},{"$f":"valueE(N13,'Utility Functions'!$Z$3,'Utility Functions'!$Z$4,'Utility Functions'!$Z$5,'Utility Functions'!$Z$6)","v":0},{"$f":"valuePL(O13,'Utility Functions'!$AA$3:$AA$5,'Utility Functions'!$AB$3:$AB$5)","v":0},{"$f":"valuePL(P13,'Utility Functions'!$AC$3:$AC$7,'Utility Functions'!$AD$3:$AD$7)","v":0},{"$f":"valuePL(Q13,'Utility Functions'!$AE$3:$AE$6,'Utility Functions'!$AF$3:$AF$6)","v":0.1},{"$f":"valuePL(R13,'Utility Functions'!$AG$3:$AG$6,'Utility Functions'!$AH$3:$AH$6)","v":1},{"$f":"valuePL(S13,'Utility Functions'!$AI$3:$AI$6,'Utility Functions'!$AJ$3:$AJ$6)","v":1},{"$f":"valuePL(T13,'Utility Functions'!$AK$3:$AK$8,'Utility Functions'!$AL$3:$AL$8)","v":0.6},{"$f":"valuePL(U13,'Utility Functions'!$AM$3:$AM$5,'Utility Functions'!$AN$3:$AN$5)","v":0},{"$f":"valuePL(V13,'Utility Functions'!$AO$3:$AO$5,'Utility Functions'!$AP$3:$AP$5)","v":0.5},{"$f":"valuePL(W13,'Utility Functions'!$AQ$3:$AQ$6,'Utility Functions'!$AR$3:$AR$6)","v":0.2},{"$f":"valuePL(X13,'Utility Functions'!$AS$3:$AS$6,'Utility Functions'!$AT$3:$AT$6)","v":1},{"$f":"valuePL(Y13,'Utility Functions'!$AU$3:$AU$6,'Utility Functions'!$AV$3:$AV$6)","v":0.2},{"$f":"valuePL(Z13,'Utility Functions'!$AW$3:$AW$5,'Utility Functions'!$AX$3:$AX$5)","v":1},{"$f":"valuePL(AA13,'Utility Functions'!$AY$3:$AY$6,'Utility Functions'!$AZ$3:$AZ$6)","v":0.2},{"$f":"valuePL(AB13,'Utility Functions'!$BA$3:$BA$5,'Utility Functions'!$BB$3:$BB$5)","v":1},{"$f":"valuePL(AC13,'Utility Functions'!$BC$3:$BC$5,'Utility Functions'!$BD$3:$BD$5)","v":0},9.4195802436719873,null,9.4195802436719873,2.6195802436719884,0,0,2.7,4.0999999999999996]
[13,{"$f":"valueE(B14,'Utility Functions'!$B$3,'Utility Functions'!$B$4,'Utility Functions'!$B$5,'Utility Functions'!$B$6)","v":0},{"$f":"valueE(C14,'Utility Functions'!$D$3,'Utility Functions'!$D$4,'Utility Functions'!$D$5,'Utility Functions'!$D$6)","v":0},{"$f":"valuePL(D14,'Utility Functions'!$E$3:$E$5,'Utility Functions'!$F$3:$F$5)","v":0},{"$f":"valuePL(E14,'Utility Functions'!$G$3:$G$5,'Utility Functions'!$H$3:$H$5)","v":0},{"$f":"valuePL(F14,'Utility Functions'!$I$3:$I$4,'Utility Functions'!$J$3:$J$5)","v":0},{"$f":"valueE(G14,'Utility Functions'!$L$3,'Utility Functions'!$L$4,'Utility Functions'!$L$5,'Utility Functions'!$L$6)","v":0},{"$f":"valueE(H14,'Utility Functions'!$N$3,'Utility Functions'!$N$4,'Utility Functions'!$N$5,'Utility Functions'!$N$6)","v":1.1385199240986717E-2},{"$f":"valuePL(I14,'Utility Functions'!$O$3:$O$6,'Utility Functions'!$P$3:$P$6)","v":0.3290909090909091},{"$f":"valuePL(J14,'Utility Functions'!$Q$3:$Q$6,'Utility Functions'!$R$3:$R$6)","v":0.04},{"$f":"valuePL(K14,'Utility Functions'!$S$3:$S$7,'Utility Functions'!$T$3:$T$7)","v":0.3290909090909091},{"$f":"valueE(L14,'Utility Functions'!$V$3,'Utility Functions'!$V$4,'Utility Functions'!$V$5,'Utility Functions'!$V$6)","v":1},{"$f":"valuePL(M14,'Utility Functions'!$W$3:$W$6,'Utility Functions'!$X$3:$X$6)","v":0.04},{"$f":"valueE(N14,'Utility Functions'!$Z$3,'Utility Functions'!$Z$4,'Utility Functions'!$Z$5,'Utility Functions'!$Z$6)","v":0.875},{"$f":"valuePL(O14,'Utility Functions'!$AA$3:$AA$5,'Utility Functions'!$AB$3:$AB$5)","v":0.25},{"$f":"valuePL(P14,'Utility Functions'!$AC$3:$AC$7,'Utility Functions'!$AD$3:$AD$7)","v":0.25},{"$f":"valuePL(Q14,'Utility Functions'!$AE$3:$AE$6,'Utility Functions'!$AF$3:$AF$6)","v":0},{"$f":"valuePL(R14,'Utility Functions'!$AG$3:$AG$6,'Utility Functions'!$AH$3:$AH$6)","v":1},{"$f":"valuePL(S14,'Utility Functions'!$AI$3:$AI$6,'Utility Functions'!$AJ$3:$AJ$6)","v":1},{"$f":"valuePL(T14,'Utility Functions'!$AK$3:$AK$8,'Utility Functions'!$AL$3:$AL$8)","v":0},{"$f":"valuePL(U14,'Utility Functions'!$AM$3:$AM$5,'Utility Functions'!$AN$3:$AN$5)","v":0},{"$f":"valuePL(V14,'Utility Functions'!$AO$3:$AO$5,'Utility Functions'!$AP$3:$AP$5)","v":0.5},{"$f":"valuePL(W14,'Utility Functions'!$AQ$3:$AQ$6,'Utility Functions'!$AR$3:$AR$6)","v":0},{"$f":"valuePL(X14,'Utility Functions'!$AS$3:$AS$6,'Utility Functions'!$AT$3:$AT$6)","v":0.2},{"$f":"valuePL(Y14,'Utility Functions'!$AU$3:$AU$6,'Utility Functions'!$AV$3:$AV$6)","v":0},{"$f":"valuePL(Z14,'Utility Functions'!$AW$3:$AW$5,'Utility Functions'!$AX$3:$AX$5)","v":1},{"$f":"valuePL(AA14,'Utility Functions'!$AY$3:$AY$6,'Utility Functions'!$AZ$3:$AZ$6)","v":0.2},{"$f":"valuePL(AB14,'Utility Functions'!$BA$3:$BA$5,'Utility Functions'!$BB$3:$BB$5)","v":0.25},{"$f":"valuePL(AC14,'Utility Functions'!$BC$3:$BC$5,'Utility Functions'!$BD$3:$BD$5)","v":0.25},7.5245670174228056,null,7.5245670174228056,0,1.7495670174228048,1.125,2.25,2.4]
[14,{"$f":"valueE(B15,'Utility Functions'!$B$3,'Utility Functions'!$B$4,'Utility Functions'!$B$5,'Utility Functions'!$B$6)","v":0.69880684688087746},{"$f":"valueE(C15,'Utility Functions'!$D$3,'Utility Functions'!$D$4,'Utility Functions'!$D$5,'Utility Functions'!$D$6)","v":0.78989979019422951},{"$f":"valuePL(D15,'Utility Functions'!$E$3:$E$5,'Utility Functions'!$F$3:$F$5)","v":0.5},{"$f":"valuePL(E15,'Utility Functions'!$G$3:$G$5,'Utility Functions'!$H$3:$H$5)","v":0.5},{"$f":"valuePL(F15,'Utility Functions'!$I$3:$I$4,'Utility Functions'!$J$3:$J$5)","v":0},{"$f":"valueE(G15,'Utility Functions'!$L$3,'Utility Functions'!$L$4,'Utility Functions'!$L$5,'Utility Functions'!$L$6)","v":0},{"$f":"valueE(H15,'Utility Functions'!$N$3,'Utility Functions'!$N$4,'Utility Functions'!$N$5,'Utility Functions'!$N$6)","v":0},{"$f":"valuePL(I15,'Utility Functions'!$O$3:$O$6,'Utility Functions'!$P$3:$P$6)","v":0},{"$f":"valuePL(J15,'Utility Functions'!$Q$3:$Q$6,'Utility Functions'!$R$3:$R$6)","v":0},{"$f":"valuePL(K15,'Utility Functions'!$S$3:$S$7,'Utility Functions'!$T$3:$T$7)","v":0},{"$f":"valueE(L15,'Utility Functions'!$V$3,'Utility Functions'!$V$4,'Utility Functions'!$V$5,'Utility Functions'!$V$6)","v":0},{"$f":"valuePL(M15,'Utility Functions'!$W$3:$W$6,'Utility Functions'!$X$3:$X$6)","v":0},{"$f":"valueE(N15,'Utility Functions'!$Z$3,'Utility Functions'!$Z$4,'Utility Functions'!$Z$5,'Utility Functions'!$Z$6)","v":0.75},{"$f":"valuePL(O15,'Utility Functions'!$AA$3:$AA$5,'Utility Functions'!$AB$3:$AB$5)","v":0.25},{"$f":"valuePL(P15,'Utility Functions'!$AC$3:$AC$7,'Utility Functions'!$AD$3:$AD$7)","v":0.25},{"$f":"valuePL(Q15,'Utility Functions'!$AE$3:$AE$6,'Utility Functions'!$AF$3:$AF$6)","v":0},{"$f":"valuePL(R15,'Utility Functions'!$AG$3:$AG$6,'Utility Functions'!$AH$3:$AH$6)","v":1},{"$f":"valuePL(S15,'Utility Functions'!$AI$3:$AI$6,'Utility Functions'!$AJ$3:$AJ$6)","v":1},{"$f":"valuePL(T15,'Utility Functions'!$AK$3:$AK$8,'Utility Functions'!$AL$3:$AL$8)","v":0},{"$f":"valuePL(U15,'Utility Functions'!$AM$3:$AM$5,'Utility Functions'!$AN$3:$AN$5)","v":0},{"$f":"valuePL(V15,'Utility Functions'!$AO$3:$AO$5,'Utility Functions'!$AP$3:$AP$5)","v":0.5},{"$f":"valuePL(W15,'Utility Functions'!$AQ$3:$AQ$6,'Utility Functions'!$AR$3:$AR$6)","v":0.2},{"$f":"valuePL(X15,'Utility Functions'!$AS$3:$AS$6,'Utility Functions'!$AT$3:$AT$6)","v":1},{"$f":"valuePL(Y15,'Utility Functions'!$AU$3:$AU$6,'Utility Functions'!$AV$3:$AV$6)","v":1},{"$f":"valuePL(Z15,'Utility Functions'!$AW$3:$AW$5,'Utility Functions'!$AX$3:$AX$5)","v":0.5},{"$f":"valuePL(AA15,'Utility Functions'!$AY$3:$AY$6,'Utility Functions'!$AZ$3:$AZ$6)","v":0.89999999999999991},{"$f":"valuePL(AB15,'Utility Functions'!$BA$3:$BA$5,'Utility Functions'!$BB$3:$BB$5)","v":0.25},{"$f":"valuePL(AC15,'Utility Functions'!$BC$3:$BC$5,'Utility Functions'!$BD$3:$BD$5)","v":0.25},10.338706637075108,null,10.338706637075106,2.488706637075107,0,1,2.25,4.5999999999999996]
[15,{"$f":"valueE(B16,'Utility Functions'!$B$3,'Utility Functions'!$B$4,'Utility Functions'!$B$5,'Utility Functions'!$B$6)","v":0.98994966417177144},{"$f":"valueE(C16,'Utility Functions'!$D$3,'Utility Functions'!$D$4,'Utility Functions'!$D$5,'Utility Functions'!$D$6)","v":0.71352759724260828},{"$f":"valuePL(D16,'Utility Functions'!$E$3:$E$5,'Utility Functions'!$F$3:$F$5)","v":1},{"$f":"valuePL(E16,'Utility Functions'!$G$3:$G$5,'Utility Functions'!$H$3:$H$5)","v":0.5},{"$f":"valuePL(F16,'Utility Functions'!$I$3:$I$4,'Utility Functions'!$J$3:$J$5)","v":1},{"$f":"valueE(G16,'Utility Functions'!$L$3,'Utility Functions'!$L$4,'Utility Functions'!$L$5,'Utility Functions'!$L$6)","v":0},{"$f":"valueE(H16,'Utility Functions'!$N$3,'Utility Functions'!$N$4,'Utility Functions'!$N$5,'Utility Functions'!$N$6)","v":0},{"$f":"valuePL(I16,'Utility Functions'!$O$3:$O$6,'Utility Functions'!$P$3:$P$6)","v":9.2000000000000012E-2},{"$f":"valuePL(J16,'Utility Functions'!$Q$3:$Q$6,'Utility Functions'!$R$3:$R$6)","v":6.0000000000000012E-2},{"$f":"valuePL(K16,'Utility Functions'!$S$3:$S$7,'Utility Functions'!$T$3:$T$7)","v":6.0000000000000012E-2},{"$f":"valueE(L16,'Utility Functions'!$V$3,'Utility Functions'!$V$4,'Utility Functions'!$V$5,'Utility Functions'!$V$6)","v":1},{"$f":"valuePL(M16,'Utility Functions'!$W$3:$W$6,'Utility Functions'!$X$3:$X$6)","v":6.0000000000000012E-2},{"$f":"valueE(N16,'Utility Functions'!$Z$3,'Utility Functions'!$Z$4,'Utility Functions'!$Z$5,'Utility Functions'!$Z$6)","v":0.125},{"$f":"valuePL(O16,'Utility Functions'!$AA$3:$AA$5,'Utility Functions'!$AB$3:$AB$5)","v":1},{"$f":"valuePL(P16,'Utility Functions'!$AC$3:$AC$7,'Utility Functions'!$AD$3:$AD$7)","v":0.5},{"$f":"valuePL(Q16,'Utility Functions'!$AE$3:$AE$6,'Utility Functions'!$AF$3:$AF$6)","v":0},{"$f":"valuePL(R16,'Utility Functions'!$AG$3:$AG$6,'Utility Functions'!$AH$3:$AH$6)","v":0.8},{"$f":"valuePL(S16,'Utility Functions'!$AI$3:$AI$6,'Utility Functions'!$AJ$3:$AJ$6)","v":1},{"$f":"valuePL(T16,'Utility Functions'!$AK$3:$AK$8,'Utility Functions'!$AL$3:$AL$8)","v":0.6},{"$f":"valuePL(U16,'Utility Functions'!$AM$3:$AM$5,'Utility Functions'!$AN$3:$AN$5)","v":1},{"$f":"valuePL(V16,'Utility Functions'!$AO$3:$AO$5,'Utility Functions'!$AP$3:$AP$5)","v":0},{"$f":"valuePL(W16,'Utility Functions'!$AQ$3:$AQ$6,'Utility Functions'!$AR$3:$AR$6)","v":1},{"$f":"valuePL(X16,'Utility Functions'!$AS$3:$AS$6,'Utility Functions'!$AT$3:$AT$6)","v":0.2},{"$f":"valuePL(Y16,'Utility Functions'!$AU$3:$AU$6,'Utility Functions'!$AV$3:$AV$6)","v":0.2},{"$f":"valuePL(Z16,'Utility Functions'!$AW$3:$AW$5,'Utility Functions'!$AX$3:$AX$5)","v":1},{"$f":"valuePL(AA16,'Utility Functions'!$AY$3:$AY$6,'Utility Functions'!$AZ$3:$AZ$6)","v":1},{"$f":"valuePL(AB16,'Utility Functions'!$BA$3:$BA$5,'Utility Functions'!$BB$3:$BB$5)","v":1},{"$f":"valuePL(AC16,'Utility Functions'!$BC$3:$BC$5,'Utility Functions'!$BD$3:$BD$5)","v":0.25},15.150477261414375,null,15.15047726141438,4.2034772614143794,1.272,1.125,3.9,4.6500000000000004]
[16,{"$f":"valueE(B17,'Utility Functions'!$B$3,'Utility Functions'!$B$4,'Utility Functions'!$B$5,'Utility Functions'!$B$6)","v":0},{"$f":"valueE(C17,'Utility Functions'!$D$3,'Utility Functions'!$D$4,'Utility Functions'!$D$5,'Utility Functions'!$D$6)","v":0},{"$f":"valuePL(D17,'Utility Functions'!$E$3:$E$5,'Utility Functions'!$F$3:$F$5)","v":0},{"$f":"valuePL(E17,'Utility Functions'!$G$3:$G$5,'Utility Functions'!$H$3:$H$5)","v":0},{"$f":"valuePL(F17,'Utility Functions'!$I$3:$I$4,'Utility Functions'!$J$3:$J$5)","v":0},{"$f":"valueE(G17,'Utility Functions'!$L$3,'Utility Functions'!$L$4,'Utility Functions'!$L$5,'Utility Functions'!$L$6)","v":0},{"$f":"valueE(H17,'Utility Functions'!$N$3,'Utility Functions'!$N$4,'Utility Functions'!$N$5,'Utility Functions'!$N$6)","v":0},{"$f":"valuePL(I17,'Utility Functions'!$O$3:$O$6,'Utility Functions'!$P$3:$P$6)","v":1},{"$f":"valuePL(J17,'Utility Functions'!$Q$3:$Q$6,'Utility Functions'!$R$3:$R$6)","v":0.91818181818181821},{"$f":"valuePL(K17,'Utility Functions'!$S$3:$S$7,'Utility Functions'!$T$3:$T$7)","v":1},{"$f":"valueE(L17,'Utility Functions'!$V$3,'Utility Functions'!$V$4,'Utility Functions'!$V$5,'Utility Functions'!$V$6)","v":0.83333333333333337},{"$f":"valuePL(M17,'Utility Functions'!$W$3:$W$6,'Utility Functions'!$X$3:$X$6)","v":0.91818181818181821},{"$f":"valueE(N17,'Utility Functions'!$Z$3,'Utility Functions'!$Z$4,'Utility Functions'!$Z$5,'Utility Functions'!$Z$6)","v":0},{"$f":"valuePL(O17,'Utility Functions'!$AA$3:$AA$5,'Utility Functions'!$AB$3:$AB$5)","v":0},{"$f":"valuePL(P17,'Utility Functions'!$AC$3:$AC$7,'Utility Functions'!$AD$3:$AD$7)","v":0.75},{"$f":"valuePL(Q17,'Utility Functions'!$AE$3:$AE$6,'Utility Functions'!$AF$3:$AF$6)","v":0},{"$f":"valuePL(R17,'Utility Functions'!$AG$3:$AG$6,'Utility Functions'!$AH$3:$AH$6)","v":1},{"$f":"valuePL(S17,'Utility Functions'!$AI$3:$AI$6,'Utility Functions'!$AJ$3:$AJ$6)","v":1},{"$f":"valuePL(T17,'Utility Functions'!$AK$3:$AK$8,'Utility Functions'!$AL$3:$AL$8)","v":1},{"$f":"valuePL(U17,'Utility Functions'!$AM$3:$AM$5,'Utility Functions'!$AN$3:$AN$5)","v":0},{"$f":"valuePL(V17,'Utility Functions'!$AO$3:$AO$5,'Utility Functions'!$AP$3:$AP$5)","v":1},{"$f":"valuePL(W17,'Utility Functions'!$AQ$3:$AQ$6,'Utility Functions'!$AR$3:$AR$6)","v":0.75},{"$f":"valuePL(X17,'Utility Functions'!$AS$3:$AS$6,'Utility Functions'!$AT$3:$AT$6)","v":0.75},{"$f":"valuePL(Y17,'Utility Functions'!$AU$3:$AU$6,'Utility Functions'!$AV$3:$AV$6)","v":0.2},{"$f":"valuePL(Z17,'Utility Functions'!$AW$3:$AW$5,'Utility Functions'!$AX$3:$AX$5)","v":1},{"$f":"valuePL(AA17,'Utility Functions'!$AY$3:$AY$6,'Utility Functions'!$AZ$3:$AZ$6)","v":1},{"$f":"valuePL(AB17,'Utility Functions'!$BA$3:$BA$5,'Utility Functions'!$BB$3:$BB$5)","v":1},{"$f":"valuePL(AC17,'Utility Functions'!$BC$3:$BC$5,'Utility Functions'!$BD$3:$BD$5)","v":1},15.119696969696969,null,15.119696969696971,0,4.6696969696969699,0,3.75,6.7]
[17,{"$f":"valueE(B18,'Utility Functions'!$B$3,'Utility Functions'!$B$4,'Utility Functions'!$B$5,'Utility Functions'!$B$6)","v":0.32968045347775865},{"$f":"valueE(C18,'Utility Functions'!$D$3,'Utility Functions'!$D$4,'Utility Functions'!$D$5,'Utility Functions'!$D$6)","v":0.78989979019422951},{"$f":"valuePL(D18,'Utility Functions'!$E$3:$E$5,'Utility Functions'!$F$3:$F$5)","v":1},{"$f":"valuePL(E18,'Utility Functions'!$G$3:$G$5,'Utility Functions'!$H$3:$H$5)","v":0.5},{"$f":"valuePL(F18,'Utility Functions'!$I$3:$I$4,'Utility Functions'!$J$3:$J$5)","v":1},{"$f":"valueE(G18,'Utility Functions'!$L$3,'Utility Functions'!$L$4,'Utility Functions'!$L$5,'Utility Functions'!$L$6)","v":0.31182795698924731},{"$f":"valueE(H18,'Utility Functions'!$N$3,'Utility Functions'!$N$4,'Utility Functions'!$N$5,'Utility Functions'!$N$6)","v":0.27514231499051234},{"$f":"valuePL(I18,'Utility Functions'!$O$3:$O$6,'Utility Functions'!$P$3:$P$6)","v":0},{"$f":"valuePL(J18,'Utility Functions'!$Q$3:$Q$6,'Utility Functions'!$R$3:$R$6)","v":0},{"$f":"valuePL(K18,'Utility Functions'!$S$3:$S$7,'Utility Functions'!$T$3:$T$7)","v":0},{"$f":"valueE(L18,'Utility Functions'!$V$3,'Utility Functions'!$V$4,'Utility Functions'!$V$5,'Utility Functions'!$V$6)","v":1},{"$f":"valuePL(M18,'Utility Functions'!$W$3:$W$6,'Utility Functions'!$X$3:$X$6)","v":6.0000000000000012E-2},{"$f":"valueE(N18,'Utility Functions'!$Z$3,'Utility Functions'!$Z$4,'Utility Functions'!$Z$5,'Utility Functions'!$Z$6)","v":0},{"$f":"valuePL(O18,'Utility Functions'!$AA$3:$AA$5,'Utility Functions'!$AB$3:$AB$5)","v":0},{"$f":"valuePL(P18,'Utility Functions'!$AC$3:$AC$7,'Utility Functions'!$AD$3:$AD$7)","v":0},{"$f":"valuePL(Q18,'Utility Functions'!$AE$3:$AE$6,'Utility Functions'!$AF$3:$AF$6)","v":0},{"$f":"valuePL(R18,'Utility Functions'!$AG$3:$AG$6,'Utility Functions'!$AH$3:$AH$6)","v":1},{"$f":"valuePL(S18,'Utility Functions'!$AI$3:$AI$6,'Utility Functions'!$AJ$3:$AJ$6)","v":0.66},{"$f":"valuePL(T18,'Utility Functions'!$AK$3:$AK$8,'Utility Functions'!$AL$3:$AL$8)","v":0},{"$f":"valuePL(U18,'Utility Functions'!$AM$3:$AM$5,'Utility Functions'!$AN$3:$AN$5)","v":0},{"$f":"valuePL(V18,'Utility Functions'!$AO$3:$AO$5,'Utility Functions'!$AP$3:$AP$5)","v":1},{"$f":"valuePL(W18,'Utility Functions'!$AQ$3:$AQ$6,'Utility Functions'!$AR$3:$AR$6)","v":1},{"$f":"valuePL(X18,'Utility Functions'!$AS$3:$AS$6,'Utility Functions'!$AT$3:$AT$6)","v":0.2},{"$f":"valuePL(Y18,'Utility Functions'!$AU$3:$AU$6,'Utility Functions'!$AV$3:$AV$6)","v":0},{"$f":"valuePL(Z18,'Utility Functions'!$AW$3:$AW$5,'Utility Functions'!$AX$3:$AX$5)","v":0.5},{"$f":"valuePL(AA18,'Utility Functions'!$AY$3:$AY$6,'Utility Functions'!$AZ$3:$AZ$6)","v":0},{"$f":"valuePL(AB18,'Utility Functions'!$BA$3:$BA$5,'Utility Functions'!$BB$3:$BB$5)","v":1},{"$f":"valuePL(AC18,'Utility Functions'!$BC$3:$BC$5,'Utility Functions'!$BD$3:$BD$5)","v":0.25},10.876550515651747,null,10.876550515651747,3.6195802436719884,1.6469702719797596,0,1.6600000000000001,3.95]
[18,{"$f":"valueE(B19,'Utility Functions'!$B$3,'Utility Functions'!$B$4,'Utility Functions'!$B$5,'Utility Functions'!$B$6)","v":0},{"$f":"valueE(C19,'Utility Functions'!$D$3,'Utility Functions'!$D$4,'Utility Functions'!$D$5,'Utility Functions'!$D$6)","v":0},{"$f":"valuePL(D19,'Utility Functions'!$E$3:$E$5,'Utility Functions'!$F$3:$F$5)","v":0},{"$f":"valuePL(E19,'Utility Functions'!$G$3:$G$5,'Utility Functions'!$H$3:$H$5)","v":0},{"$f":"valuePL(F19,'Utility Functions'!$I$3:$I$4,'Utility Functions'!$J$3:$J$5)","v":0},{"$f":"valueE(G19,'Utility Functions'!$L$3,'Utility Functions'!$L$4,'Utility Functions'!$L$5,'Utility Functions'!$L$6)","v":0},{"$f":"valueE(H19,'Utility Functions'!$N$3,'Utility Functions'!$N$4,'Utility Functions'!$N$5,'Utility Functions'!$N$6)","v":2.8462998102466792E-2},{"$f":"valuePL(I19,'Utility Functions'!$O$3:$O$6,'Utility Functions'!$P$3:$P$6)","v":0},{"$f":"valuePL(J19,'Utility Functions'!$Q$3:$Q$6,'Utility Functions'!$R$3:$R$6)","v":0},{"$f":"valuePL(K19,'Utility Functions'!$S$3:$S$7,'Utility Functions'!$T$3:$T$7)","v":0},{"$f":"valueE(L19,'Utility Functions'!$V$3,'Utility Functions'!$V$4,'Utility Functions'!$V$5,'Utility Functions'!$V$6)","v":0},{"$f":"valuePL(M19,'Utility Functions'!$W$3:$W$6,'Utility Functions'!$X$3:$X$6)","v":0},{"$f":"valueE(N19,'Utility Functions'!$Z$3,'Utility Functions'!$Z$4,'Utility Functions'!$Z$5,'Utility Functions'!$Z$6)","v":1},{"$f":"valuePL(O19,'Utility Functions'!$AA$3:$AA$5,'Utility Functions'!$AB$3:$AB$5)","v":0.25},{"$f":"valuePL(P19,'Utility Functions'!$AC$3:$AC$7,'Utility Functions'!$AD$3:$AD$7)","v":0.25},{"$f":"valuePL(Q19,'Utility Functions'!$AE$3:$AE$6,'Utility Functions'!$AF$3:$AF$6)","v":1},{"$f":"valuePL(R19,'Utility Functions'!$AG$3:$AG$6,'Utility Functions'!$AH$3:$AH$6)","v":1},{"$f":"valuePL(S19,'Utility Functions'!$AI$3:$AI$6,'Utility Functions'!$AJ$3:$AJ$6)","v":1},{"$f":"valuePL(T19,'Utility Functions'!$AK$3:$AK$8,'Utility Functions'!$AL$3:$AL$8)","v":1},{"$f":"valuePL(U19,'Utility Functions'!$AM$3:$AM$5,'Utility Functions'!$AN$3:$AN$5)","v":0.25},{"$f":"valuePL(V19,'Utility Functions'!$AO$3:$AO$5,'Utility Functions'!$AP$3:$AP$5)","v":1},{"$f":"valuePL(W19,'Utility Functions'!$AQ$3:$AQ$6,'Utility Functions'!$AR$3:$AR$6)","v":0.75},{"$f":"valuePL(X19,'Utility Functions'!$AS$3:$AS$6,'Utility Functions'!$AT$3:$AT$6)","v":0.2},{"$f":"valuePL(Y19,'Utility Functions'!$AU$3:$AU$6,'Utility Functions'!$AV$3:$AV$6)","v":0.8},{"$f":"valuePL(Z19,'Utility Functions'!$AW$3:$AW$5,'Utility Functions'!$AX$3:$AX$5)","v":0.5},{"$f":"valuePL(AA19,'Utility Functions'!$AY$3:$AY$6,'Utility Functions'!$AZ$3:$AZ$6)","v":0.89999999999999991},{"$f":"valuePL(AB19,'Utility Functions'!$BA$3:$BA$5,'Utility Functions'!$BB$3:$BB$5)","v":0.25},{"$f":"valuePL(AC19,'Utility Functions'!$BC$3:$BC$5,'Utility Functions'!$BD$3:$BD$5)","v":0},10.178462998102468,null,10.178462998102468,0,2.8462998102466792E-2,1.25,4.5,4.4000000000000004]
[19,{"$f":"valueE(B20,'Utility Functions'!$B$3,'Utility Functions'!$B$4,'Utility Functions'!$B$5,'Utility Functions'!$B$6)","v":0.79810469124896843},{"$f":"valueE(C20,'Utility Functions'!$D$3,'Utility Functions'!$D$4,'Utility Functions'!$D$5,'Utility Functions'!$D$6)","v":0.26839655623815994},{"$f":"valuePL(D20,'Utility Functions'!$E$3:$E$5,'Utility Functions'!$F$3:$F$5)","v":0.5},{"$f":"valuePL(E20,'Utility Functions'!$G$3:$G$5,'Utility Functions'!$H$3:$H$5)","v":1},{"$f":"valuePL(F20,'Utility Functions'!$I$3:$I$4,'Utility Functions'!$J$3:$J$5)","v":0},{"$f":"valueE(G20,'Utility Functions'!$L$3,'Utility Functions'!$L$4,'Utility Functions'!$L$5,'Utility Functions'!$L$6)","v":0},{"$f":"valueE(H20,'Utility Functions'!$N$3,'Utility Functions'!$N$4,'Utility Functions'!$N$5,'Utility Functions'!$N$6)","v":0},{"$f":"valuePL(I20,'Utility Functions'!$O$3:$O$6,'Utility Functions'!$P$3:$P$6)","v":0},{"$f":"valuePL(J20,'Utility Functions'!$Q$3:$Q$6,'Utility Functions'!$R$3:$R$6)","v":0},{"$f":"valuePL(K20,'Utility Functions'!$S$3:$S$7,'Utility Functions'!$T$3:$T$7)","v":0},{"$f":"valueE(L20,'Utility Functions'!$V$3,'Utility Functions'!$V$4,'Utility Functions'!$V$5,'Utility Functions'!$V$6)","v":0},{"$f":"valuePL(M20,'Utility Functions'!$W$3:$W$6,'Utility Functions'!$X$3:$X$6)","v":0},{"$f":"valueE(N20,'Utility Functions'!$Z$3,'Utility Functions'!$Z$4,'Utility Functions'!$Z$5,'Utility Functions'!$Z$6)","v":1},{"$f":"valuePL(O20,'Utility Functions'!$AA$3:$AA$5,'Utility Functions'!$AB$3:$AB$5)","v":1},{"$f":"valuePL(P20,'Utility Functions'!$AC$3:$AC$7,'Utility Functions'!$AD$3:$AD$7)","v":0},{"$f":"valuePL(Q20,'Utility Functions'!$AE$3:$AE$6,'Utility Functions'!$AF$3:$AF$6)","v":0},{"$f":"valuePL(R20,'Utility Functions'!$AG$3:$AG$6,'Utility Functions'!$AH$3:$AH$6)","v":0.8},{"$f":"valuePL(S20,'Utility Functions'!$AI$3:$AI$6,'Utility Functions'!$AJ$3:$AJ$6)","v":1},{"$f":"valuePL(T20,'Utility Functions'!$AK$3:$AK$8,'Utility Functions'!$AL$3:$AL$8)","v":0},{"$f":"valuePL(U20,'Utility Functions'!$AM$3:$AM$5,'Utility Functions'!$AN$3:$AN$5)","v":0},{"$f":"valuePL(V20,'Utility Functions'!$AO$3:$AO$5,'Utility Functions'!$AP$3:$AP$5)","v":0.5},{"$f":"valuePL(W20,'Utility Functions'!$AQ$3:$AQ$6,'Utility Functions'!$AR$3:$AR$6)","v":0.2},{"$f":"valuePL(X20,'Utility Functions'!$AS$3:$AS$6,'Utility Functions'!$AT$3:$AT$6)","v":1},{"$f":"valuePL(Y20,'Utility Functions'!$AU$3:$AU$6,'Utility Functions'!$AV$3:$AV$6)","v":0.8},{"$f":"valuePL(Z20,'Utility Functions'!$AW$3:$AW$5,'Utility Functions'!$AX$3:$AX$5)","v":0},{"$f":"valuePL(AA20,'Utility Functions'!$AY$3:$AY$6,'Utility Functions'!$AZ$3:$AZ$6)","v":0.2},{"$f":"valuePL(AB20,'Utility Functions'!$BA$3:$BA$5,'Utility Functions'!$BB$3:$BB$5)","v":0},{"$f":"valuePL(AC20,'Utility Functions'!$BC$3:$BC$5,'Utility Functions'!$BD$3:$BD$5)","v":0.25},9.3165012474871283,null,9.3165012474871283,2.5665012474871283,0,2,1.8,2.95]
[20,{"$f":"valueE(B21,'Utility Functions'!$B$3,'Utility Functions'!$B$4,'Utility Functions'!$B$5,'Utility Functions'!$B$6)","v":0.83470237647280454},{"$f":"valueE(C21,'Utility Functions'!$D$3,'Utility Functions'!$D$4,'Utility Functions'!$D$5,'Utility Functions'!$D$6)","v":0.78989979019422951},{"$f":"valuePL(D21,'Utility Functions'!$E$3:$E$5,'Utility Functions'!$F$3:$F$5)","v":0.5},{"$f":"valuePL(E21,'Utility Functions'!$G$3:$G$5,'Utility Functions'!$H$3:$H$5)","v":1},{"$f":"valuePL(F21,'Utility Functions'!$I$3:$I$4,'Utility Functions'!$J$3:$J$5)","v":0},{"$f":"valueE(G21,'Utility Functions'!$L$3,'Utility Functions'!$L$4,'Utility Functions'!$L$5,'Utility Functions'!$L$6)","v":0},{"$f":"valueE(H21,'Utility Functions'!$N$3,'Utility Functions'!$N$4,'Utility Functions'!$N$5,'Utility Functions'!$N$6)","v":0.41271347248576851},{"$f":"valuePL(I21,'Utility Functions'!$O$3:$O$6,'Utility Functions'!$P$3:$P$6)","v":0.93454545454545446},{"$f":"valuePL(J21,'Utility Functions'!$Q$3:$Q$6,'Utility Functions'!$R$3:$R$6)","v":0.50909090909090915},{"$f":"valuePL(K21,'Utility Functions'!$S$3:$S$7,'Utility Functions'!$T$3:$T$7)","v":0.93454545454545446},{"$f":"valueE(L21,'Utility Functions'!$V$3,'Utility Functions'!$V$4,'Utility Functions'!$V$5,'Utility Functions'!$V$6)","v":0.66666666666666663},{"$f":"valuePL(M21,'Utility Functions'!$W$3:$W$6,'Utility Functions'!$X$3:$X$6)","v":0.50909090909090915},{"$f":"valueE(N21,'Utility Functions'!$Z$3,'Utility Functions'!$Z$4,'Utility Functions'!$Z$5,'Utility Functions'!$Z$6)","v":1},{"$f":"valuePL(O21,'Utility Functions'!$AA$3:$AA$5,'Utility Functions'!$AB$3:$AB$5)","v":1},{"$f":"valuePL(P21,'Utility Functions'!$AC$3:$AC$7,'Utility Functions'!$AD$3:$AD$7)","v":0.25},{"$f":"valuePL(Q21,'Utility Functions'!$AE$3:$AE$6,'Utility Functions'!$AF$3:$AF$6)","v":0},{"$f":"valuePL(R21,'Utility Functions'!$AG$3:$AG$6,'Utility Functions'!$AH$3:$AH$6)","v":1},{"$f":"valuePL(S21,'Utility Functions'!$AI$3:$AI$6,'Utility Functions'!$AJ$3:$AJ$6)","v":1},{"$f":"valuePL(T21,'Utility Functions'!$AK$3:$AK$8,'Utility Functions'!$AL$3:$AL$8)","v":0.6},{"$f":"valuePL(U21,'Utility Functions'!$AM$3:$AM$5,'Utility Functions'!$AN$3:$AN$5)","v":1},{"$f":"valuePL(V21,'Utility Functions'!$AO$3:$AO$5,'Utility Functions'!$AP$3:$AP$5)","v":0.5},{"$f":"valuePL(W21,'Utility Functions'!$AQ$3:$AQ$6,'Utility Functions'!$AR$3:$AR$6)","v":0},{"$f":"valuePL(X21,'Utility Functions'!$AS$3:$AS$6,'Utility Functions'!$AT$3:$AT$6)","v":0},{"$f":"valuePL(Y21,'Utility Functions'!$AU$3:$AU$6,'Utility Functions'!$AV$3:$AV$6)","v":0.2},{"$f":"valuePL(Z21,'Utility Functions'!$AW$3:$AW$5,'Utility Functions'!$AX$3:$AX$5)","v":1},{"$f":"valuePL(AA21,'Utility Functions'!$AY$3:$AY$6,'Utility Functions'!$AZ$3:$AZ$6)","v":0.2},{"$f":"valuePL(AB21,'Utility Functions'!$BA$3:$BA$5,'Utility Functions'!$BB$3:$BB$5)","v":0},{"$f":"valuePL(AC21,'Utility Functions'!$BC$3:$BC$5,'Utility Functions'!$BD$3:$BD$5)","v":0.25},15.091255033092194,null,15.091255033092196,3.1246021666670343,3.9666528664251626,2,3.85,2.15]
[21,{"$f":"valueE(B22,'Utility Functions'!$B$3,'Utility Functions'!$B$4,'Utility Functions'!$B$5,'Utility Functions'!$B$6)","v":0},{"$f":"valueE(C22,'Utility Functions'!$D$3,'Utility Functions'!$D$4,'Utility Functions'!$D$5,'Utility Functions'!$D$6)","v":0},{"$f":"valuePL(D22,'Utility Functions'!$E$3:$E$5,'Utility Functions'!$F$3:$F$5)","v":0},{"$f":"valuePL(E22,'Utility Functions'!$G$3:$G$5,'Utility Functions'!$H$3:$H$5)","v":0},{"$f":"valuePL(F22,'Utility Functions'!$I$3:$I$4,'Utility Functions'!$J$3:$J$5)","v":0},{"$f":"valueE(G22,'Utility Functions'!$L$3,'Utility Functions'!$L$4,'Utility Functions'!$L$5,'Utility Functions'!$L$6)","v":0},{"$f":"valueE(H22,'Utility Functions'!$N$3,'Utility Functions'!$N$4,'Utility Functions'!$N$5,'Utility Functions'!$N$6)","v":0},{"$f":"valuePL(I22,'Utility Functions'!$O$3:$O$6,'Utility Functions'!$P$3:$P$6)","v":0},{"$f":"valuePL(J22,'Utility Functions'!$Q$3:$Q$6,'Utility Functions'!$R$3:$R$6)","v":0},{"$f":"valuePL(K22,'Utility Functions'!$S$3:$S$7,'Utility Functions'!$T$3:$T$7)","v":0},{"$f":"valueE(L22,'Utility Functions'!$V$3,'Utility Functions'!$V$4,'Utility Functions'!$V$5,'Utility Functions'!$V$6)","v":0},{"$f":"valuePL(M22,'Utility Functions'!$W$3:$W$6,'Utility Functions'!$X$3:$X$6)","v":0},{"$f":"valueE(N22,'Utility Functions'!$Z$3,'Utility Functions'!$Z$4,'Utility Functions'!$Z$5,'Utility Functions'!$Z$6)","v":1},{"$f":"valuePL(O22,'Utility Functions'!$AA$3:$AA$5,'Utility Functions'!$AB$3:$AB$5)","v":1},{"$f":"valuePL(P22,'Utility Functions'!$AC$3:$AC$7,'Utility Functions'!$AD$3:$AD$7)","v":0},{"$f":"valuePL(Q22,'Utility Functions'!$AE$3:$AE$6,'Utility Functions'!$AF$3:$AF$6)","v":0.1},{"$f":"valuePL(R22,'Utility Functions'!$AG$3:$AG$6,'Utility Functions'!$AH$3:$AH$6)","v":1},{"$f":"valuePL(S22,'Utility Functions'!$AI$3:$AI$6,'Utility Functions'!$AJ$3:$AJ$6)","v":1},{"$f":"valuePL(T22,'Utility Functions'!$AK$3:$AK$8,'Utility Functions'!$AL$3:$AL$8)","v":1},{"$f":"valuePL(U22,'Utility Functions'!$AM$3:$AM$5,'Utility Functions'!$AN$3:$AN$5)","v":0.25},{"$f":"valuePL(V22,'Utility Functions'!$AO$3:$AO$5,'Utility Functions'!$AP$3:$AP$5)","v":0},{"$f":"valuePL(W22,'Utility Functions'!$AQ$3:$AQ$6,'Utility Functions'!$AR$3:$AR$6)","v":0.75},{"$f":"valuePL(X22,'Utility Functions'!$AS$3:$AS$6,'Utility Functions'!$AT$3:$AT$6)","v":1},{"$f":"valuePL(Y22,'Utility Functions'!$AU$3:$AU$6,'Utility Functions'!$AV$3:$AV$6)","v":0.2},{"$f":"valuePL(Z22,'Utility Functions'!$AW$3:$AW$5,'Utility Functions'!$AX$3:$AX$5)","v":0},{"$f":"valuePL(AA22,'Utility Functions'!$AY$3:$AY$6,'Utility Functions'!$AZ$3:$AZ$6)","v":1},{"$f":"valuePL(AB22,'Utility Functions'!$BA$3:$BA$5,'Utility Functions'!$BB$3:$BB$5)","v":0.25},{"$f":"valuePL(AC22,'Utility Functions'!$BC$3:$BC$5,'Utility Functions'!$BD$3:$BD$5)","v":1},9.5500000000000007,null,9.5500000000000007,0,0,2,3.35,4.2]
[22,{"$f":"valueE(B23,'Utility Functions'!$B$3,'Utility Functions'!$B$4,'Utility Functions'!$B$5,'Utility Functions'!$B$6)","v":0},{"$f":"valueE(C23,'Utility Functions'!$D$3,'Utility Functions'!$D$4,'Utility Functions'!$D$5,'Utility Functions'!$D$6)","v":0},{"$f":"valuePL(D23,'Utility Functions'!$E$3:$E$5,'Utility Functions'!$F$3:$F$5)","v":0},{"$f":"valuePL(E23,'Utility Functions'!$G$3:$G$5,'Utility Functions'!$H$3:$H$5)","v":0},{"$f":"valuePL(F23,'Utility Functions'!$I$3:$I$4,'Utility Functions'!$J$3:$J$5)","v":0},{"$f":"valueE(G23,'Utility Functions'!$L$3,'Utility Functions'!$L$4,'Utility Functions'!$L$5,'Utility Functions'!$L$6)","v":8.6021505376344093E-2},{"$f":"valueE(H23,'Utility Functions'!$N$3,'Utility Functions'!$N$4,'Utility Functions'!$N$5,'Utility Functions'!$N$6)","v":6.0721062618595827E-2},{"$f":"valuePL(I23,'Utility Functions'!$O$3:$O$6,'Utility Functions'!$P$3:$P$6)","v":0},{"$f":"valuePL(J23,'Utility Functions'!$Q$3:$Q$6,'Utility Functions'!$R$3:$R$6)","v":0},{"$f":"valuePL(K23,'Utility Functions'!$S$3:$S$7,'Utility Functions'!$T$3:$T$7)","v":0},{"$f":"valueE(L23,'Utility Functions'!$V$3,'Utility Functions'!$V$4,'Utility Functions'!$V$5,'Utility Functions'!$V$6)","v":0},{"$f":"valuePL(M23,'Utility Functions'!$W$3:$W$6,'Utility Functions'!$X$3:$X$6)","v":0},{"$f":"valueE(N23,'Utility Functions'!$Z$3,'Utility Functions'!$Z$4,'Utility Functions'!$Z$5,'Utility Functions'!$Z$6)","v":0.125},{"$f":"valuePL(O23,'Utility Functions'!$AA$3:$AA$5,'Utility Functions'!$AB$3:$AB$5)","v":1},{"$f":"valuePL(P23,'Utility Functions'!$AC$3:$AC$7,'Utility Functions'!$AD$3:$AD$7)","v":1},{"$f":"valuePL(Q23,'Utility Functions'!$AE$3:$AE$6,'Utility Functions'!$AF$3:$AF$6)","v":0.5},{"$f":"valuePL(R23,'Utility Functions'!$AG$3:$AG$6,'Utility Functions'!$AH$3:$AH$6)","v":0.8},{"$f":"valuePL(S23,'Utility Functions'!$AI$3:$AI$6,'Utility Functions'!$AJ$3:$AJ$6)","v":1},{"$f":"valuePL(T23,'Utility Functions'!$AK$3:$AK$8,'Utility Functions'!$AL$3:$AL$8)","v":1},{"$f":"valuePL(U23,'Utility Functions'!$AM$3:$AM$5,'Utility Functions'!$AN$3:$AN$5)","v":0},{"$f":"valuePL(V23,'Utility Functions'!$AO$3:$AO$5,'Utility Functions'!$AP$3:$AP$5)","v":0.5},{"$f":"valuePL(W23,'Utility Functions'!$AQ$3:$AQ$6,'Utility Functions'!$AR$3:$AR$6)","v":0.75},{"$f":"valuePL(X23,'Utility Functions'!$AS$3:$AS$6,'Utility Functions'!$AT$3:$AT$6)","v":0.2},{"$f":"valuePL(Y23,'Utility Functions'!$AU$3:$AU$6,'Utility Functions'!$AV$3:$AV$6)","v":0},{"$f":"valuePL(Z23,'Utility Functions'!$AW$3:$AW$5,'Utility Functions'!$AX$3:$AX$5)","v":1},{"$f":"valuePL(AA23,'Utility Functions'!$AY$3:$AY$6,'Utility Functions'!$AZ$3:$AZ$6)","v":0.2},{"$f":"valuePL(AB23,'Utility Functions'!$BA$3:$BA$5,'Utility Functions'!$BB$3:$BB$5)","v":1},{"$f":"valuePL(AC23,'Utility Functions'!$BC$3:$BC$5,'Utility Functions'!$BD$3:$BD$5)","v":0.25},9.471742567994939,null,9.4717425679949407,0,0.14674256799493993,1.125,4.3,3.9000000000000004]
[23,{"$f":"valueE(B24,'Utility Functions'!$B$3,'Utility Functions'!$B$4,'Utility Functions'!$B$5,'Utility Functions'!$B$6)","v":0.83470237647280454},{"$f":"valueE(C24,'Utility Functions'!$D$3,'Utility Functions'!$D$4,'Utility Functions'!$D$5,'Utility Functions'!$D$6)","v":0.84744836833951609},{"$f":"valuePL(D24,'Utility Functions'!$E$3:$E$5,'Utility Functions'!$F$3:$F$5)","v":1},{"$f":"valuePL(E24,'Utility Functions'!$G$3:$G$5,'Utility Functions'!$H$3:$H$5)","v":0},{"$f":"valuePL(F24,'Utility Functions'!$I$3:$I$4,'Utility Functions'!$J$3:$J$5)","v":0},{"$f":"valueE(G24,'Utility Functions'!$L$3,'Utility Functions'!$L$4,'Utility Functions'!$L$5,'Utility Functions'!$L$6)","v":0},{"$f":"valueE(H24,'Utility Functions'!$N$3,'Utility Functions'!$N$4,'Utility Functions'!$N$5,'Utility Functions'!$N$6)","v":0},{"$f":"valuePL(I24,'Utility Functions'!$O$3:$O$6,'Utility Functions'!$P$3:$P$6)","v":0},{"$f":"valuePL(J24,'Utility Functions'!$Q$3:$Q$6,'Utility Functions'!$R$3:$R$6)","v":0},{"$f":"valuePL(K24,'Utility Functions'!$S$3:$S$7,'Utility Functions'!$T$3:$T$7)","v":0},{"$f":"valueE(L24,'Utility Functions'!$V$3,'Utility Functions'!$V$4,'Utility Functions'!$V$5,'Utility Functions'!$V$6)","v":0},{"$f":"valuePL(M24,'Utility Functions'!$W$3:$W$6,'Utility Functions'!$X$3:$X$6)","v":0},{"$f":"valueE(N24,'Utility Functions'!$Z$3,'Utility Functions'!$Z$4,'Utility Functions'!$Z$5,'Utility Functions'!$Z$6)","v":0},{"$f":"valuePL(O24,'Utility Functions'!$AA$3:$AA$5,'Utility Functions'!$AB$3:$AB$5)","v":0},{"$f":"valuePL(P24,'Utility Functions'!$AC$3:$AC$7,'Utility Functions'!$AD$3:$AD$7)","v":0.75},{"$f":"valuePL(Q24,'Utility Functions'!$AE$3:$AE$6,'Utility Functions'!$AF$3:$AF$6)","v":0},{"$f":"valuePL(R24,'Utility Functions'!$AG$3:$AG$6,'Utility Functions'!$AH$3:$AH$6)","v":1},{"$f":"valuePL(S24,'Utility Functions'!$AI$3:$AI$6,'Utility Functions'!$AJ$3:$AJ$6)","v":1},{"$f":"valuePL(T24,'Utility Functions'!$AK$3:$AK$8,'Utility Functions'!$AL$3:$AL$8)","v":1},{"$f":"valuePL(U24,'Utility Functions'!$AM$3:$AM$5,'Utility Functions'!$AN$3:$AN$5)","v":0},{"$f":"valuePL(V24,'Utility Functions'!$AO$3:$AO$5,'Utility Functions'!$AP$3:$AP$5)","v":1},{"$f":"valuePL(W24,'Utility Functions'!$AQ$3:$AQ$6,'Utility Functions'!$AR$3:$AR$6)","v":0.2},{"$f":"valuePL(X24,'Utility Functions'!$AS$3:$AS$6,'Utility Functions'!$AT$3:$AT$6)","v":0.75},{"$f":"valuePL(Y24,'Utility Functions'!$AU$3:$AU$6,'Utility Functions'!$AV$3:$AV$6)","v":0.2},{"$f":"valuePL(Z24,'Utility Functions'!$AW$3:$AW$5,'Utility Functions'!$AX$3:$AX$5)","v":0.5},{"$f":"valuePL(AA24,'Utility Functions'!$AY$3:$AY$6,'Utility Functions'!$AZ$3:$AZ$6)","v":0.2},{"$f":"valuePL(AB24,'Utility Functions'!$BA$3:$BA$5,'Utility Functions'!$BB$3:$BB$5)","v":0},{"$f":"valuePL(AC24,'Utility Functions'!$BC$3:$BC$5,'Utility Functions'!$BD$3:$BD$5)","v":0.25},9.5321507448123199,null,9.5321507448123199,2.6821507448123207,0,0,3.75,3.1]
[24,{"$f":"valueE(B25,'Utility Functions'!$B$3,'Utility Functions'!$B$4,'Utility Functions'!$B$5,'Utility Functions'!$B$6)","v":0.63212151658375171},{"$f":"valueE(C25,'Utility Functions'!$D$3,'Utility Functions'!$D$4,'Utility Functions'!$D$5,'Utility Functions'!$D$6)","v":0.46475967153745396},{"$f":"valuePL(D25,'Utility Functions'!$E$3:$E$5,'Utility Functions'!$F$3:$F$5)","v":1},{"$f":"valuePL(E25,'Utility Functions'!$G$3:$G$5,'Utility Functions'!$H$3:$H$5)","v":0},{"$f":"valuePL(F25,'Utility Functions'!$I$3:$I$4,'Utility Functions'!$J$3:$J$5)","v":0},{"$f":"valueE(G25,'Utility Functions'!$L$3,'Utility Functions'!$L$4,'Utility Functions'!$L$5,'Utility Functions'!$L$6)","v":0},{"$f":"valueE(H25,'Utility Functions'!$N$3,'Utility Functions'!$N$4,'Utility Functions'!$N$5,'Utility Functions'!$N$6)","v":0},{"$f":"valuePL(I25,'Utility Functions'!$O$3:$O$6,'Utility Functions'!$P$3:$P$6)","v":0},{"$f":"valuePL(J25,'Utility Functions'!$Q$3:$Q$6,'Utility Functions'!$R$3:$R$6)","v":0},{"$f":"valuePL(K25,'Utility Functions'!$S$3:$S$7,'Utility Functions'!$T$3:$T$7)","v":0},{"$f":"valueE(L25,'Utility Functions'!$V$3,'Utility Functions'!$V$4,'Utility Functions'!$V$5,'Utility Functions'!$V$6)","v":0},{"$f":"valuePL(M25,'Utility Functions'!$W$3:$W$6,'Utility Functions'!$X$3:$X$6)","v":0},{"$f":"valueE(N25,'Utility Functions'!$Z$3,'Utility Functions'!$Z$4,'Utility Functions'!$Z$5,'Utility Functions'!$Z$6)","v":0},{"$f":"valuePL(O25,'Utility Functions'!$AA$3:$AA$5,'Utility Functions'!$AB$3:$AB$5)","v":0},{"$f":"valuePL(P25,'Utility Functions'!$AC$3:$AC$7,'Utility Functions'!$AD$3:$AD$7)","v":0},{"$f":"valuePL(Q25,'Utility Functions'!$AE$3:$AE$6,'Utility Functions'!$AF$3:$AF$6)","v":0},{"$f":"valuePL(R25,'Utility Functions'!$AG$3:$AG$6,'Utility Functions'!$AH$3:$AH$6)","v":1},{"$f":"valuePL(S25,'Utility Functions'!$AI$3:$AI$6,'Utility Functions'!$AJ$3:$AJ$6)","v":1},{"$f":"valuePL(T25,'Utility Functions'!$AK$3:$AK$8,'Utility Functions'!$AL$3:$AL$8)","v":1},{"$f":"valuePL(U25,'Utility Functions'!$AM$3:$AM$5,'Utility Functions'!$AN$3:$AN$5)","v":0},{"$f":"valuePL(V25,'Utility Functions'!$AO$3:$AO$5,'Utility Functions'!$AP$3:$AP$5)","v":0},{"$f":"valuePL(W25,'Utility Functions'!$AQ$3:$AQ$6,'Utility Functions'!$AR$3:$AR$6)","v":1},{"$f":"valuePL(X25,'Utility Functions'!$AS$3:$AS$6,'Utility Functions'!$AT$3:$AT$6)","v":0.2},{"$f":"valuePL(Y25,'Utility Functions'!$AU$3:$AU$6,'Utility Functions'!$AV$3:$AV$6)","v":1},{"$f":"valuePL(Z25,'Utility Functions'!$AW$3:$AW$5,'Utility Functions'!$AX$3:$AX$5)","v":1},{"$f":"valuePL(AA25,'Utility Functions'!$AY$3:$AY$6,'Utility Functions'!$AZ$3:$AZ$6)","v":0.2},{"$f":"valuePL(AB25,'Utility Functions'!$BA$3:$BA$5,'Utility Functions'!$BB$3:$BB$5)","v":0},{"$f":"valuePL(AC25,'Utility Functions'!$BC$3:$BC$5,'Utility Functions'!$BD$3:$BD$5)","v":1},9.4968811881212041,null,9.4968811881212059,2.0968811881212055,0,0,3,4.4000000000000004]
[25,{"$f":"valueE(B26,'Utility Functions'!$B$3,'Utility Functions'!$B$4,'Utility Functions'!$B$5,'Utility Functions'!$B$6)","v":0.83470237647280454},{"$f":"valueE(C26,'Utility Functions'!$D$3,'Utility Functions'!$D$4,'Utility Functions'!$D$5,'Utility Functions'!$D$6)","v":0.84744836833951609},{"$f":"valuePL(D26,'Utility Functions'!$E$3:$E$5,'Utility Functions'!$F$3:$F$5)","v":1},{"$f":"valuePL(E26,'Utility Functions'!$G$3:$G$5,'Utility Functions'!$H$3:$H$5)","v":0},{"$f":"valuePL(F26,'Utility Functions'!$I$3:$I$4,'Utility Functions'!$J$3:$J$5)","v":0},{"$f":"valueE(G26,'Utility Functions'!$L$3,'Utility Functions'!$L$4,'Utility Functions'!$L$5,'Utility Functions'!$L$6)","v":0.94623655913978499},{"$f":"valueE(H26,'Utility Functions'!$N$3,'Utility Functions'!$N$4,'Utility Functions'!$N$5,'Utility Functions'!$N$6)","v":0.29222011385199242},{"$f":"valuePL(I26,'Utility Functions'!$O$3:$O$6,'Utility Functions'!$P$3:$P$6)","v":0},{"$f":"valuePL(J26,'Utility Functions'!$Q$3:$Q$6,'Utility Functions'!$R$3:$R$6)","v":0},{"$f":"valuePL(K26,'Utility Functions'!$S$3:$S$7,'Utility Functions'!$T$3:$T$7)","v":0},{"$f":"valueE(L26,'Utility Functions'!$V$3,'Utility Functions'!$V$4,'Utility Functions'!$V$5,'Utility Functions'!$V$6)","v":0},{"$f":"valuePL(M26,'Utility Functions'!$W$3:$W$6,'Utility Functions'!$X$3:$X$6)","v":0},{"$f":"valueE(N26,'Utility Functions'!$Z$3,'Utility Functions'!$Z$4,'Utility Functions'!$Z$5,'Utility Functions'!$Z$6)","v":1},{"$f":"valuePL(O26,'Utility Functions'!$AA$3:$AA$5,'Utility Functions'!$AB$3:$AB$5)","v":0.25},{"$f":"valuePL(P26,'Utility Functions'!$AC$3:$AC$7,'Utility Functions'!$AD$3:$AD$7)","v":0.5},{"$f":"valuePL(Q26,'Utility Functions'!$AE$3:$AE$6,'Utility Functions'!$AF$3:$AF$6)","v":0.5},{"$f":"valuePL(R26,'Utility Functions'!$AG$3:$AG$6,'Utility Functions'!$AH$3:$AH$6)","v":1},{"$f":"valuePL(S26,'Utility Functions'!$AI$3:$AI$6,'Utility Functions'!$AJ$3:$AJ$6)","v":1},{"$f":"valuePL(T26,'Utility Functions'!$AK$3:$AK$8,'Utility Functions'!$AL$3:$AL$8)","v":0},{"$f":"valuePL(U26,'Utility Functions'!$AM$3:$AM$5,'Utility Functions'!$AN$3:$AN$5)","v":0},{"$f":"valuePL(V26,'Utility Functions'!$AO$3:$AO$5,'Utility Functions'!$AP$3:$AP$5)","v":1},{"$f":"valuePL(W26,'Utility Functions'!$AQ$3:$AQ$6,'Utility Functions'!$AR$3:$AR$6)","v":0.2},{"$f":"valuePL(X26,'Utility Functions'!$AS$3:$AS$6,'Utility Functions'!$AT$3:$AT$6)","v":1},{"$f":"valuePL(Y26,'Utility Functions'!$AU$3:$AU$6,'Utility Functions'!$AV$3:$AV$6)","v":0.8},{"$f":"valuePL(Z26,'Utility Functions'!$AW$3:$AW$5,'Utility Functions'!$AX$3:$AX$5)","v":0.5},{"$f":"valuePL(AA26,'Utility Functions'!$AY$3:$AY$6,'Utility Functions'!$AZ$3:$AZ$6)","v":0.2},{"$f":"valuePL(AB26,'Utility Functions'!$BA$3:$BA$5,'Utility Functions'!$BB$3:$BB$5)","v":1},{"$f":"valuePL(AC26,'Utility Functions'!$BC$3:$BC$5,'Utility Functions'!$BD$3:$BD$5)","v":1},13.870607417804099,null,13.870607417804099,2.6821507448123207,1.2384566729917774,1.25,3,5.7]
[26,{"$f":"valueE(B27,'Utility Functions'!$B$3,'Utility Functions'!$B$4,'Utility Functions'!$B$5,'Utility Functions'!$B$6)","v":0.96662819462069161},{"$f":"valueE(C27,'Utility Functions'!$D$3,'Utility Functions'!$D$4,'Utility Functions'!$D$5,'Utility Functions'!$D$6)","v":0.84744836833951609},{"$f":"valuePL(D27,'Utility Functions'!$E$3:$E$5,'Utility Functions'!$F$3:$F$5)","v":1},{"$f":"valuePL(E27,'Utility Functions'!$G$3:$G$5,'Utility Functions'!$H$3:$H$5)","v":0.5},{"$f":"valuePL(F27,'Utility Functions'!$I$3:$I$4,'Utility Functions'!$J$3:$J$5)","v":0},{"$f":"valueE(G27,'Utility Functions'!$L$3,'Utility Functions'!$L$4,'Utility Functions'!$L$5,'Utility Functions'!$L$6)","v":0},{"$f":"valueE(H27,'Utility Functions'!$N$3,'Utility Functions'!$N$4,'Utility Functions'!$N$5,'Utility Functions'!$N$6)","v":0},{"$f":"valuePL(I27,'Utility Functions'!$O$3:$O$6,'Utility Functions'!$P$3:$P$6)","v":0},{"$f":"valuePL(J27,'Utility Functions'!$Q$3:$Q$6,'Utility Functions'!$R$3:$R$6)","v":0},{"$f":"valuePL(K27,'Utility Functions'!$S$3:$S$7,'Utility Functions'!$T$3:$T$7)","v":0},{"$f":"valueE(L27,'Utility Functions'!$V$3,'Utility Functions'!$V$4,'Utility Functions'!$V$5,'Utility Functions'!$V$6)","v":0},{"$f":"valuePL(M27,'Utility Functions'!$W$3:$W$6,'Utility Functions'!$X$3:$X$6)","v":0},{"$f":"valueE(N27,'Utility Functions'!$Z$3,'Utility Functions'!$Z$4,'Utility Functions'!$Z$5,'Utility Functions'!$Z$6)","v":0},{"$f":"valuePL(O27,'Utility Functions'!$AA$3:$AA$5,'Utility Functions'!$AB$3:$AB$5)","v":0},{"$f":"valuePL(P27,'Utility Functions'!$AC$3:$AC$7,'Utility Functions'!$AD$3:$AD$7)","v":0.75},{"$f":"valuePL(Q27,'Utility Functions'!$AE$3:$AE$6,'Utility Functions'!$AF$3:$AF$6)","v":0},{"$f":"valuePL(R27,'Utility Functions'!$AG$3:$AG$6,'Utility Functions'!$AH$3:$AH$6)","v":1},{"$f":"valuePL(S27,'Utility Functions'!$AI$3:$AI$6,'Utility Functions'!$AJ$3:$AJ$6)","v":1},{"$f":"valuePL(T27,'Utility Functions'!$AK$3:$AK$8,'Utility Functions'!$AL$3:$AL$8)","v":0.8},{"$f":"valuePL(U27,'Utility Functions'!$AM$3:$AM$5,'Utility Functions'!$AN$3:$AN$5)","v":0},{"$f":"valuePL(V27,'Utility Functions'!$AO$3:$AO$5,'Utility Functions'!$AP$3:$AP$5)","v":1},{"$f":"valuePL(W27,'Utility Functions'!$AQ$3:$AQ$6,'Utility Functions'!$AR$3:$AR$6)","v":0.2},{"$f":"valuePL(X27,'Utility Functions'!$AS$3:$AS$6,'Utility Functions'!$AT$3:$AT$6)","v":0},{"$f":"valuePL(Y27,'Utility Functions'!$AU$3:$AU$6,'Utility Functions'!$AV$3:$AV$6)","v":0.8},{"$f":"valuePL(Z27,'Utility Functions'!$AW$3:$AW$5,'Utility Functions'!$AX$3:$AX$5)","v":0},{"$f":"valuePL(AA27,'Utility Functions'!$AY$3:$AY$6,'Utility Functions'!$AZ$3:$AZ$6)","v":0.2},{"$f":"valuePL(AB27,'Utility Functions'!$BA$3:$BA$5,'Utility Functions'!$BB$3:$BB$5)","v":1},{"$f":"valuePL(AC27,'Utility Functions'!$BC$3:$BC$5,'Utility Functions'!$BD$3:$BD$5)","v":1},11.064076562960208,null,11.064076562960206,3.3140765629602078,0,0,3.55,4.2]
[27,{"$f":"valueE(B28,'Utility Functions'!$B$3,'Utility Functions'!$B$4,'Utility Functions'!$B$5,'Utility Functions'!$B$6)","v":0},{"$f":"valueE(C28,'Utility Functions'!$D$3,'Utility Functions'!$D$4,'Utility Functions'!$D$5,'Utility Functions'!$D$6)","v":0.46475967153745396},{"$f":"valuePL(D28,'Utility Functions'!$E$3:$E$5,'Utility Functions'!$F$3:$F$5)","v":1},{"$f":"valuePL(E28,'Utility Functions'!$G$3:$G$5,'Utility Functions'!$H$3:$H$5)","v":0},{"$f":"valuePL(F28,'Utility Functions'!$I$3:$I$4,'Utility Functions'!$J$3:$J$5)","v":0},{"$f":"valueE(G28,'Utility Functions'!$L$3,'Utility Functions'!$L$4,'Utility Functions'!$L$5,'Utility Functions'!$L$6)","v":0},{"$f":"valueE(H28,'Utility Functions'!$N$3,'Utility Functions'!$N$4,'Utility Functions'!$N$5,'Utility Functions'!$N$6)","v":0},{"$f":"valuePL(I28,'Utility Functions'!$O$3:$O$6,'Utility Functions'!$P$3:$P$6)","v":0},{"$f":"valuePL(J28,'Utility Functions'!$Q$3:$Q$6,'Utility Functions'!$R$3:$R$6)","v":0},{"$f":"valuePL(K28,'Utility Functions'!$S$3:$S$7,'Utility Functions'!$T$3:$T$7)","v":1},{"$f":"valueE(L28,'Utility Functions'!$V$3,'Utility Functions'!$V$4,'Utility Functions'!$V$5,'Utility Functions'!$V$6)","v":0},{"$f":"valuePL(M28,'Utility Functions'!$W$3:$W$6,'Utility Functions'!$X$3:$X$6)","v":0.1},{"$f":"valueE(N28,'Utility Functions'!$Z$3,'Utility Functions'!$Z$4,'Utility Functions'!$Z$5,'Utility Functions'!$Z$6)","v":0},{"$f":"valuePL(O28,'Utility Functions'!$AA$3:$AA$5,'Utility Functions'!$AB$3:$AB$5)","v":0},{"$f":"valuePL(P28,'Utility Functions'!$AC$3:$AC$7,'Utility Functions'!$AD$3:$AD$7)","v":0.5},{"$f":"valuePL(Q28,'Utility Functions'!$AE$3:$AE$6,'Utility Functions'!$AF$3:$AF$6)","v":0.5},{"$f":"valuePL(R28,'Utility Functions'!$AG$3:$AG$6,'Utility Functions'!$AH$3:$AH$6)","v":1},{"$f":"valuePL(S28,'Utility Functions'!$AI$3:$AI$6,'Utility Functions'!$AJ$3:$AJ$6)","v":1},{"$f":"valuePL(T28,'Utility Functions'!$AK$3:$AK$8,'Utility Functions'!$AL$3:$AL$8)","v":1},{"$f":"valuePL(U28,'Utility Functions'!$AM$3:$AM$5,'Utility Functions'!$AN$3:$AN$5)","v":0},{"$f":"valuePL(V28,'Utility Functions'!$AO$3:$AO$5,'Utility Functions'!$AP$3:$AP$5)","v":0.5},{"$f":"valuePL(W28,'Utility Functions'!$AQ$3:$AQ$6,'Utility Functions'!$AR$3:$AR$6)","v":0.75},{"$f":"valuePL(X28,'Utility Functions'!$AS$3:$AS$6,'Utility Functions'!$AT$3:$AT$6)","v":1},{"$f":"valuePL(Y28,'Utility Functions'!$AU$3:$AU$6,'Utility Functions'!$AV$3:$AV$6)","v":0.2},{"$f":"valuePL(Z28,'Utility Functions'!$AW$3:$AW$5,'Utility Functions'!$AX$3:$AX$5)","v":0},{"$f":"valuePL(AA28,'Utility Functions'!$AY$3:$AY$6,'Utility Functions'!$AZ$3:$AZ$6)","v":0},{"$f":"valuePL(AB28,'Utility Functions'!$BA$3:$BA$5,'Utility Functions'!$BB$3:$BB$5)","v":0},{"$f":"valuePL(AC28,'Utility Functions'!$BC$3:$BC$5,'Utility Functions'!$BD$3:$BD$5)","v":0},9.0147596715374529,null,9.0147596715374547,1.464759671537454,1.1000000000000001,0,4,2.4500000000000002]
[28,{"$f":"valueE(B29,'Utility Functions'!$B$3,'Utility Functions'!$B$4,'Utility Functions'!$B$5,'Utility Functions'!$B$6)","v":0.4511890475224023},{"$f":"valueE(C29,'Utility Functions'!$D$3,'Utility Functions'!$D$4,'Utility Functions'!$D$5,'Utility Functions'!$D$6)","v":0.46475967153745396},{"$f":"valuePL(D29,'Utility Functions'!$E$3:$E$5,'Utility Functions'!$F$3:$F$5)","v":1},{"$f":"valuePL(E29,'Utility Functions'!$G$3:$G$5,'Utility Functions'!$H$3:$H$5)","v":0},{"$f":"valuePL(F29,'Utility Functions'!$I$3:$I$4,'Utility Functions'!$J$3:$J$5)","v":1},{"$f":"valueE(G29,'Utility Functions'!$L$3,'Utility Functions'!$L$4,'Utility Functions'!$L$5,'Utility Functions'!$L$6)","v":0},{"$f":"valueE(H29,'Utility Functions'!$N$3,'Utility Functions'!$N$4,'Utility Functions'!$N$5,'Utility Functions'!$N$6)","v":0},{"$f":"valuePL(I29,'Utility Functions'!$O$3:$O$6,'Utility Functions'!$P$3:$P$6)","v":0},{"$f":"valuePL(J29,'Utility Functions'!$Q$3:$Q$6,'Utility Functions'!$R$3:$R$6)","v":0},{"$f":"valuePL(K29,'Utility Functions'!$S$3:$S$7,'Utility Functions'!$T$3:$T$7)","v":0},{"$f":"valueE(L29,'Utility Functions'!$V$3,'Utility Functions'!$V$4,'Utility Functions'!$V$5,'Utility Functions'!$V$6)","v":0.33333333333333331},{"$f":"valuePL(M29,'Utility Functions'!$W$3:$W$6,'Utility Functions'!$X$3:$X$6)","v":0.1},{"$f":"valueE(N29,'Utility Functions'!$Z$3,'Utility Functions'!$Z$4,'Utility Functions'!$Z$5,'Utility Functions'!$Z$6)","v":0},{"$f":"valuePL(O29,'Utility Functions'!$AA$3:$AA$5,'Utility Functions'!$AB$3:$AB$5)","v":0},{"$f":"valuePL(P29,'Utility Functions'!$AC$3:$AC$7,'Utility Functions'!$AD$3:$AD$7)","v":1},{"$f":"valuePL(Q29,'Utility Functions'!$AE$3:$AE$6,'Utility Functions'!$AF$3:$AF$6)","v":0},{"$f":"valuePL(R29,'Utility Functions'!$AG$3:$AG$6,'Utility Functions'!$AH$3:$AH$6)","v":1},{"$f":"valuePL(S29,'Utility Functions'!$AI$3:$AI$6,'Utility Functions'!$AJ$3:$AJ$6)","v":1},{"$f":"valuePL(T29,'Utility Functions'!$AK$3:$AK$8,'Utility Functions'!$AL$3:$AL$8)","v":0.8},{"$f":"valuePL(U29,'Utility Functions'!$AM$3:$AM$5,'Utility Functions'!$AN$3:$AN$5)","v":0},{"$f":"valuePL(V29,'Utility Functions'!$AO$3:$AO$5,'Utility Functions'!$AP$3:$AP$5)","v":1},{"$f":"valuePL(W29,'Utility Functions'!$AQ$3:$AQ$6,'Utility Functions'!$AR$3:$AR$6)","v":1},{"$f":"valuePL(X29,'Utility Functions'!$AS$3:$AS$6,'Utility Functions'!$AT$3:$AT$6)","v":1},{"$f":"valuePL(Y29,'Utility Functions'!$AU$3:$AU$6,'Utility Functions'!$AV$3:$AV$6)","v":0.2},{"$f":"valuePL(Z29,'Utility Functions'!$AW$3:$AW$5,'Utility Functions'!$AX$3:$AX$5)","v":0},{"$f":"valuePL(AA29,'Utility Functions'!$AY$3:$AY$6,'Utility Functions'!$AZ$3:$AZ$6)","v":0.89999999999999991},{"$f":"valuePL(AB29,'Utility Functions'!$BA$3:$BA$5,'Utility Functions'!$BB$3:$BB$5)","v":1},{"$f":"valuePL(AC29,'Utility Functions'!$BC$3:$BC$5,'Utility Functions'!$BD$3:$BD$5)","v":0.25},12.499282052393189,null,12.499282052393189,2.9159487190598563,0.43333333333333335,0,3.8,5.35]
[29,{"$f":"valueE(B30,'Utility Functions'!$B$3,'Utility Functions'!$B$4,'Utility Functions'!$B$5,'Utility Functions'!$B$6)","v":0.83470237647280454},{"$f":"valueE(C30,'Utility Functions'!$D$3,'Utility Functions'!$D$4,'Utility Functions'!$D$5,'Utility Functions'!$D$6)","v":0.71352759724260828},{"$f":"valuePL(D30,'Utility Functions'!$E$3:$E$5,'Utility Functions'!$F$3:$F$5)","v":1},{"$f":"valuePL(E30,'Utility Functions'!$G$3:$G$5,'Utility Functions'!$H$3:$H$5)","v":0.5},{"$f":"valuePL(F30,'Utility Functions'!$I$3:$I$4,'Utility Functions'!$J$3:$J$5)","v":0},{"$f":"valueE(G30,'Utility Functions'!$L$3,'Utility Functions'!$L$4,'Utility Functions'!$L$5,'Utility Functions'!$L$6)","v":0},{"$f":"valueE(H30,'Utility Functions'!$N$3,'Utility Functions'!$N$4,'Utility Functions'!$N$5,'Utility Functions'!$N$6)","v":0},{"$f":"valuePL(I30,'Utility Functions'!$O$3:$O$6,'Utility Functions'!$P$3:$P$6)","v":0.06},{"$f":"valuePL(J30,'Utility Functions'!$Q$3:$Q$6,'Utility Functions'!$R$3:$R$6)","v":0.67272727272727273},{"$f":"valuePL(K30,'Utility Functions'!$S$3:$S$7,'Utility Functions'!$T$3:$T$7)","v":0},{"$f":"valueE(L30,'Utility Functions'!$V$3,'Utility Functions'!$V$4,'Utility Functions'!$V$5,'Utility Functions'!$V$6)","v":1},{"$f":"valuePL(M30,'Utility Functions'!$W$3:$W$6,'Utility Functions'!$X$3:$X$6)","v":0.67272727272727273},{"$f":"valueE(N30,'Utility Functions'!$Z$3,'Utility Functions'!$Z$4,'Utility Functions'!$Z$5,'Utility Functions'!$Z$6)","v":0},{"$f":"valuePL(O30,'Utility Functions'!$AA$3:$AA$5,'Utility Functions'!$AB$3:$AB$5)","v":0},{"$f":"valuePL(P30,'Utility Functions'!$AC$3:$AC$7,'Utility Functions'!$AD$3:$AD$7)","v":0.25},{"$f":"valuePL(Q30,'Utility Functions'!$AE$3:$AE$6,'Utility Functions'!$AF$3:$AF$6)","v":0},{"$f":"valuePL(R30,'Utility Functions'!$AG$3:$AG$6,'Utility Functions'!$AH$3:$AH$6)","v":1},{"$f":"valuePL(S30,'Utility Functions'!$AI$3:$AI$6,'Utility Functions'!$AJ$3:$AJ$6)","v":1},{"$f":"valuePL(T30,'Utility Functions'!$AK$3:$AK$8,'Utility Functions'!$AL$3:$AL$8)","v":0.8},{"$f":"valuePL(U30,'Utility Functions'!$AM$3:$AM$5,'Utility Functions'!$AN$3:$AN$5)","v":0},{"$f":"valuePL(V30,'Utility Functions'!$AO$3:$AO$5,'Utility Functions'!$AP$3:$AP$5)","v":1},{"$f":"valuePL(W30,'Utility Functions'!$AQ$3:$AQ$6,'Utility Functions'!$AR$3:$AR$6)","v":0.2},{"$f":"valuePL(X30,'Utility Functions'!$AS$3:$AS$6,'Utility Functions'!$AT$3:$AT$6)","v":0},{"$f":"valuePL(Y30,'Utility Functions'!$AU$3:$AU$6,'Utility Functions'!$AV$3:$AV$6)","v":0.8},{"$f":"valuePL(Z30,'Utility Functions'!$AW$3:$AW$5,'Utility Functions'!$AX$3:$AX$5)","v":0.5},{"$f":"valuePL(AA30,'Utility Functions'!$AY$3:$AY$6,'Utility Functions'!$AZ$3:$AZ$6)","v":0.2},{"$f":"valuePL(AB30,'Utility Functions'!$BA$3:$BA$5,'Utility Functions'!$BB$3:$BB$5)","v":0.25},{"$f":"valuePL(AC30,'Utility Functions'!$BC$3:$BC$5,'Utility Functions'!$BD$3:$BD$5)","v":1},12.453684519169958,null,12.453684519169958,3.0482299737154128,2.4054545454545453,0,3.05,3.95]
[30,{"$f":"valueE(B31,'Utility Functions'!$B$3,'Utility Functions'!$B$4,'Utility Functions'!$B$5,'Utility Functions'!$B$6)","v":0.99864114504770318},{"$f":"valueE(C31,'Utility Functions'!$D$3,'Utility Functions'!$D$4,'Utility Functions'!$D$5,'Utility Functions'!$D$6)","v":0.84744836833951609},{"$f":"valuePL(D31,'Utility Functions'!$E$3:$E$5,'Utility Functions'!$F$3:$F$5)","v":1},{"$f":"valuePL(E31,'Utility Functions'!$G$3:$G$5,'Utility Functions'!$H$3:$H$5)","v":0},{"$f":"valuePL(F31,'Utility Functions'!$I$3:$I$4,'Utility Functions'!$J$3:$J$5)","v":0},{"$f":"valueE(G31,'Utility Functions'!$L$3,'Utility Functions'!$L$4,'Utility Functions'!$L$5,'Utility Functions'!$L$6)","v":0},{"$f":"valueE(H31,'Utility Functions'!$N$3,'Utility Functions'!$N$4,'Utility Functions'!$N$5,'Utility Functions'!$N$6)","v":0},{"$f":"valuePL(I31,'Utility Functions'!$O$3:$O$6,'Utility Functions'!$P$3:$P$6)","v":0},{"$f":"valuePL(J31,'Utility Functions'!$Q$3:$Q$6,'Utility Functions'!$R$3:$R$6)","v":0},{"$f":"valuePL(K31,'Utility Functions'!$S$3:$S$7,'Utility Functions'!$T$3:$T$7)","v":0},{"$f":"valueE(L31,'Utility Functions'!$V$3,'Utility Functions'!$V$4,'Utility Functions'!$V$5,'Utility Functions'!$V$6)","v":0.33333333333333331},{"$f":"valuePL(M31,'Utility Functions'!$W$3:$W$6,'Utility Functions'!$X$3:$X$6)","v":0.04},{"$f":"valueE(N31,'Utility Functions'!$Z$3,'Utility Functions'!$Z$4,'Utility Functions'!$Z$5,'Utility Functions'!$Z$6)","v":0},{"$f":"valuePL(O31,'Utility Functions'!$AA$3:$AA$5,'Utility Functions'!$AB$3:$AB$5)","v":0},{"$f":"valuePL(P31,'Utility Functions'!$AC$3:$AC$7,'Utility Functions'!$AD$3:$AD$7)","v":0},{"$f":"valuePL(Q31,'Utility Functions'!$AE$3:$AE$6,'Utility Functions'!$AF$3:$AF$6)","v":0},{"$f":"valuePL(R31,'Utility Functions'!$AG$3:$AG$6,'Utility Functions'!$AH$3:$AH$6)","v":0.2},{"$f":"valuePL(S31,'Utility Functions'!$AI$3:$AI$6,'Utility Functions'!$AJ$3:$AJ$6)","v":0.33},{"$f":"valuePL(T31,'Utility Functions'!$AK$3:$AK$8,'Utility Functions'!$AL$3:$AL$8)","v":0},{"$f":"valuePL(U31,'Utility Functions'!$AM$3:$AM$5,'Utility Functions'!$AN$3:$AN$5)","v":0},{"$f":"valuePL(V31,'Utility Functions'!$AO$3:$AO$5,'Utility Functions'!$AP$3:$AP$5)","v":0},{"$f":"valuePL(W31,'Utility Functions'!$AQ$3:$AQ$6,'Utility Functions'!$AR$3:$AR$6)","v":1},{"$f":"valuePL(X31,'Utility Functions'!$AS$3:$AS$6,'Utility Functions'!$AT$3:$AT$6)","v":0.2},{"$f":"valuePL(Y31,'Utility Functions'!$AU$3:$AU$6,'Utility Functions'!$AV$3:$AV$6)","v":0.8},{"$f":"valuePL(Z31,'Utility Functions'!$AW$3:$AW$5,'Utility Functions'!$AX$3:$AX$5)","v":0},{"$f":"valuePL(AA31,'Utility Functions'!$AY$3:$AY$6,'Utility Functions'!$AZ$3:$AZ$6)","v":0.89999999999999991},{"$f":"valuePL(AB31,'Utility Functions'!$BA$3:$BA$5,'Utility Functions'!$BB$3:$BB$5)","v":1},{"$f":"valuePL(AC31,'Utility Functions'!$BC$3:$BC$5,'Utility Functions'!$BD$3:$BD$5)","v":0},7.6494228467205527,null,7.6494228467205527,2.846089513387219,0.37333333333333329,0,0.53,3.9]
[31,{"$f":"valueE(B32,'Utility Functions'!$B$3,'Utility Functions'!$B$4,'Utility Functions'!$B$5,'Utility Functions'!$B$6)","v":0.55067187023002029},{"$f":"valueE(C32,'Utility Functions'!$D$3,'Utility Functions'!$D$4,'Utility Functions'!$D$5,'Utility Functions'!$D$6)","v":0.84744836833951609},{"$f":"valuePL(D32,'Utility Functions'!$E$3:$E$5,'Utility Functions'!$F$3:$F$5)","v":0.5},{"$f":"valuePL(E32,'Utility Functions'!$G$3:$G$5,'Utility Functions'!$H$3:$H$5)","v":0},{"$f":"valuePL(F32,'Utility Functions'!$I$3:$I$4,'Utility Functions'!$J$3:$J$5)","v":0},{"$f":"valueE(G32,'Utility Functions'!$L$3,'Utility Functions'!$L$4,'Utility Functions'!$L$5,'Utility Functions'!$L$6)","v":0},{"$f":"valueE(H32,'Utility Functions'!$N$3,'Utility Functions'!$N$4,'Utility Functions'!$N$5,'Utility Functions'!$N$6)","v":0},{"$f":"valuePL(I32,'Utility Functions'!$O$3:$O$6,'Utility Functions'!$P$3:$P$6)","v":0.75454545454545452},{"$f":"valuePL(J32,'Utility Functions'!$Q$3:$Q$6,'Utility Functions'!$R$3:$R$6)","v":0.08},{"$f":"valuePL(K32,'Utility Functions'!$S$3:$S$7,'Utility Functions'!$T$3:$T$7)","v":0},{"$f":"valueE(L32,'Utility Functions'!$V$3,'Utility Functions'!$V$4,'Utility Functions'!$V$5,'Utility Functions'!$V$6)","v":0.33333333333333331},{"$f":"valuePL(M32,'Utility Functions'!$W$3:$W$6,'Utility Functions'!$X$3:$X$6)","v":0.08},{"$f":"valueE(N32,'Utility Functions'!$Z$3,'Utility Functions'!$Z$4,'Utility Functions'!$Z$5,'Utility Functions'!$Z$6)","v":0},{"$f":"valuePL(O32,'Utility Functions'!$AA$3:$AA$5,'Utility Functions'!$AB$3:$AB$5)","v":0},{"$f":"valuePL(P32,'Utility Functions'!$AC$3:$AC$7,'Utility Functions'!$AD$3:$AD$7)","v":0.5},{"$f":"valuePL(Q32,'Utility Functions'!$AE$3:$AE$6,'Utility Functions'!$AF$3:$AF$6)","v":0},{"$f":"valuePL(R32,'Utility Functions'!$AG$3:$AG$6,'Utility Functions'!$AH$3:$AH$6)","v":1},{"$f":"valuePL(S32,'Utility Functions'!$AI$3:$AI$6,'Utility Functions'!$AJ$3:$AJ$6)","v":0.66},{"$f":"valuePL(T32,'Utility Functions'!$AK$3:$AK$8,'Utility Functions'!$AL$3:$AL$8)","v":0.6},{"$f":"valuePL(U32,'Utility Functions'!$AM$3:$AM$5,'Utility Functions'!$AN$3:$AN$5)","v":0},{"$f":"valuePL(V32,'Utility Functions'!$AO$3:$AO$5,'Utility Functions'!$AP$3:$AP$5)","v":0.5},{"$f":"valuePL(W32,'Utility Functions'!$AQ$3:$AQ$6,'Utility Functions'!$AR$3:$AR$6)","v":0},{"$f":"valuePL(X32,'Utility Functions'!$AS$3:$AS$6,'Utility Functions'!$AT$3:$AT$6)","v":0.2},{"$f":"valuePL(Y32,'Utility Functions'!$AU$3:$AU$6,'Utility Functions'!$AV$3:$AV$6)","v":0.2},{"$f":"valuePL(Z32,'Utility Functions'!$AW$3:$AW$5,'Utility Functions'!$AX$3:$AX$5)","v":1},{"$f":"valuePL(AA32,'Utility Functions'!$AY$3:$AY$6,'Utility Functions'!$AZ$3:$AZ$6)","v":0.89999999999999991},{"$f":"valuePL(AB32,'Utility Functions'!$BA$3:$BA$5,'Utility Functions'!$BB$3:$BB$5)","v":0.25},{"$f":"valuePL(AC32,'Utility Functions'!$BC$3:$BC$5,'Utility Functions'!$BD$3:$BD$5)","v":0.25},9.2059990264483247,null,9.2059990264483247,1.8981202385695364,1.2478787878787878,0,2.7600000000000002,3.3]
[32,{"$f":"valueE(B33,'Utility Functions'!$B$3,'Utility Functions'!$B$4,'Utility Functions'!$B$5,'Utility Functions'!$B$6)","v":0.63212151658375171},{"$f":"valueE(C33,'Utility Functions'!$D$3,'Utility Functions'!$D$4,'Utility Functions'!$D$5,'Utility Functions'!$D$6)","v":0.26839655623815994},{"$f":"valuePL(D33,'Utility Functions'!$E$3:$E$5,'Utility Functions'!$F$3:$F$5)","v":1},{"$f":"valuePL(E33,'Utility Functions'!$G$3:$G$5,'Utility Functions'!$H$3:$H$5)","v":1},{"$f":"valuePL(F33,'Utility Functions'!$I$3:$I$4,'Utility Functions'!$J$3:$J$5)","v":1},{"$f":"valueE(G33,'Utility Functions'!$L$3,'Utility Functions'!$L$4,'Utility Functions'!$L$5,'Utility Functions'!$L$6)","v":3.2258064516129031E-2},{"$f":"valueE(H33,'Utility Functions'!$N$3,'Utility Functions'!$N$4,'Utility Functions'!$N$5,'Utility Functions'!$N$6)","v":9.6774193548387094E-2},{"$f":"valuePL(I33,'Utility Functions'!$O$3:$O$6,'Utility Functions'!$P$3:$P$6)","v":0.34545454545454546},{"$f":"valuePL(J33,'Utility Functions'!$Q$3:$Q$6,'Utility Functions'!$R$3:$R$6)","v":1},{"$f":"valuePL(K33,'Utility Functions'!$S$3:$S$7,'Utility Functions'!$T$3:$T$7)","v":0.34545454545454546},{"$f":"valueE(L33,'Utility Functions'!$V$3,'Utility Functions'!$V$4,'Utility Functions'!$V$5,'Utility Functions'!$V$6)","v":1},{"$f":"valuePL(M33,'Utility Functions'!$W$3:$W$6,'Utility Functions'!$X$3:$X$6)","v":1},{"$f":"valueE(N33,'Utility Functions'!$Z$3,'Utility Functions'!$Z$4,'Utility Functions'!$Z$5,'Utility Functions'!$Z$6)","v":0},{"$f":"valuePL(O33,'Utility Functions'!$AA$3:$AA$5,'Utility Functions'!$AB$3:$AB$5)","v":0},{"$f":"valuePL(P33,'Utility Functions'!$AC$3:$AC$7,'Utility Functions'!$AD$3:$AD$7)","v":0.5},{"$f":"valuePL(Q33,'Utility Functions'!$AE$3:$AE$6,'Utility Functions'!$AF$3:$AF$6)","v":1},{"$f":"valuePL(R33,'Utility Functions'!$AG$3:$AG$6,'Utility Functions'!$AH$3:$AH$6)","v":1},{"$f":"valuePL(S33,'Utility Functions'!$AI$3:$AI$6,'Utility Functions'!$AJ$3:$AJ$6)","v":0},{"$f":"valuePL(T33,'Utility Functions'!$AK$3:$AK$8,'Utility Functions'!$AL$3:$AL$8)","v":0.8},{"$f":"valuePL(U33,'Utility Functions'!$AM$3:$AM$5,'Utility Functions'!$AN$3:$AN$5)","v":0},{"$f":"valuePL(V33,'Utility Functions'!$AO$3:$AO$5,'Utility Functions'!$AP$3:$AP$5)","v":0},{"$f":"valuePL(W33,'Utility Functions'!$AQ$3:$AQ$6,'Utility Functions'!$AR$3:$AR$6)","v":0.75},{"$f":"valuePL(X33,'Utility Functions'!$AS$3:$AS$6,'Utility Functions'!$AT$3:$AT$6)","v":0.2},{"$f":"valuePL(Y33,'Utility Functions'!$AU$3:$AU$6,'Utility Functions'!$AV$3:$AV$6)","v":0.8},{"$f":"valuePL(Z33,'Utility Functions'!$AW$3:$AW$5,'Utility Functions'!$AX$3:$AX$5)","v":0.5},{"$f":"valuePL(AA33,'Utility Functions'!$AY$3:$AY$6,'Utility Functions'!$AZ$3:$AZ$6)","v":0},{"$f":"valuePL(AB33,'Utility Functions'!$BA$3:$BA$5,'Utility Functions'!$BB$3:$BB$5)","v":1},{"$f":"valuePL(AC33,'Utility Functions'!$BC$3:$BC$5,'Utility Functions'!$BD$3:$BD$5)","v":0.25},14.52045942179552,null,14.520459421795518,3.9005180728219115,3.8199413489736074,0,3.3,3.5]
[33,{"$f":"valueE(B34,'Utility Functions'!$B$3,'Utility Functions'!$B$4,'Utility Functions'!$B$5,'Utility Functions'!$B$6)","v":0.93919136038504192},{"$f":"valueE(C34,'Utility Functions'!$D$3,'Utility Functions'!$D$4,'Utility Functions'!$D$5,'Utility Functions'!$D$6)","v":0.84744836833951609},{"$f":"valuePL(D34,'Utility Functions'!$E$3:$E$5,'Utility Functions'!$F$3:$F$5)","v":1},{"$f":"valuePL(E34,'Utility Functions'!$G$3:$G$5,'Utility Functions'!$H$3:$H$5)","v":0.5},{"$f":"valuePL(F34,'Utility Functions'!$I$3:$I$4,'Utility Functions'!$J$3:$J$5)","v":0},{"$f":"valueE(G34,'Utility Functions'!$L$3,'Utility Functions'!$L$4,'Utility Functions'!$L$5,'Utility Functions'!$L$6)","v":0},{"$f":"valueE(H34,'Utility Functions'!$N$3,'Utility Functions'!$N$4,'Utility Functions'!$N$5,'Utility Functions'!$N$6)","v":0},{"$f":"valuePL(I34,'Utility Functions'!$O$3:$O$6,'Utility Functions'!$P$3:$P$6)","v":0},{"$f":"valuePL(J34,'Utility Functions'!$Q$3:$Q$6,'Utility Functions'!$R$3:$R$6)","v":0},{"$f":"valuePL(K34,'Utility Functions'!$S$3:$S$7,'Utility Functions'!$T$3:$T$7)","v":0},{"$f":"valueE(L34,'Utility Functions'!$V$3,'Utility Functions'!$V$4,'Utility Functions'!$V$5,'Utility Functions'!$V$6)","v":0.5},{"$f":"valuePL(M34,'Utility Functions'!$W$3:$W$6,'Utility Functions'!$X$3:$X$6)","v":0},{"$f":"valueE(N34,'Utility Functions'!$Z$3,'Utility Functions'!$Z$4,'Utility Functions'!$Z$5,'Utility Functions'!$Z$6)","v":0},{"$f":"valuePL(O34,'Utility Functions'!$AA$3:$AA$5,'Utility Functions'!$AB$3:$AB$5)","v":0},{"$f":"valuePL(P34,'Utility Functions'!$AC$3:$AC$7,'Utility Functions'!$AD$3:$AD$7)","v":0.5},{"$f":"valuePL(Q34,'Utility Functions'!$AE$3:$AE$6,'Utility Functions'!$AF$3:$AF$6)","v":0},{"$f":"valuePL(R34,'Utility Functions'!$AG$3:$AG$6,'Utility Functions'!$AH$3:$AH$6)","v":1},{"$f":"valuePL(S34,'Utility Functions'!$AI$3:$AI$6,'Utility Functions'!$AJ$3:$AJ$6)","v":0.66},{"$f":"valuePL(T34,'Utility Functions'!$AK$3:$AK$8,'Utility Functions'!$AL$3:$AL$8)","v":0},{"$f":"valuePL(U34,'Utility Functions'!$AM$3:$AM$5,'Utility Functions'!$AN$3:$AN$5)","v":0},{"$f":"valuePL(V34,'Utility Functions'!$AO$3:$AO$5,'Utility Functions'!$AP$3:$AP$5)","v":0.5},{"$f":"valuePL(W34,'Utility Functions'!$AQ$3:$AQ$6,'Utility Functions'!$AR$3:$AR$6)","v":1},{"$f":"valuePL(X34,'Utility Functions'!$AS$3:$AS$6,'Utility Functions'!$AT$3:$AT$6)","v":0},{"$f":"valuePL(Y34,'Utility Functions'!$AU$3:$AU$6,'Utility Functions'!$AV$3:$AV$6)","v":0.8},{"$f":"valuePL(Z34,'Utility Functions'!$AW$3:$AW$5,'Utility Functions'!$AX$3:$AX$5)","v":1},{"$f":"valuePL(AA34,'Utility Functions'!$AY$3:$AY$6,'Utility Functions'!$AZ$3:$AZ$6)","v":1},{"$f":"valuePL(AB34,'Utility Functions'!$BA$3:$BA$5,'Utility Functions'!$BB$3:$BB$5)","v":0},{"$f":"valuePL(AC34,'Utility Functions'!$BC$3:$BC$5,'Utility Functions'!$BD$3:$BD$5)","v":0},10.246639728724558,null,10.246639728724558,3.2866397287245581,0.5,0,2.16,4.3]
[34,{"$f":"valueE(B35,'Utility Functions'!$B$3,'Utility Functions'!$B$4,'Utility Functions'!$B$5,'Utility Functions'!$B$6)","v":0},{"$f":"valueE(C35,'Utility Functions'!$D$3,'Utility Functions'!$D$4,'Utility Functions'!$D$5,'Utility Functions'!$D$6)","v":0},{"$f":"valuePL(D35,'Utility Functions'!$E$3:$E$5,'Utility Functions'!$F$3:$F$5)","v":0},{"$f":"valuePL(E35,'Utility Functions'!$G$3:$G$5,'Utility Functions'!$H$3:$H$5)","v":0},{"$f":"valuePL(F35,'Utility Functions'!$I$3:$I$4,'Utility Functions'!$J$3:$J$5)","v":0},{"$f":"valueE(G35,'Utility Functions'!$L$3,'Utility Functions'!$L$4,'Utility Functions'!$L$5,'Utility Functions'!$L$6)","v":0},{"$f":"valueE(H35,'Utility Functions'!$N$3,'Utility Functions'!$N$4,'Utility Functions'!$N$5,'Utility Functions'!$N$6)","v":1.1385199240986717E-2},{"$f":"valuePL(I35,'Utility Functions'!$O$3:$O$6,'Utility Functions'!$P$3:$P$6)","v":1},{"$f":"valuePL(J35,'Utility Functions'!$Q$3:$Q$6,'Utility Functions'!$R$3:$R$6)","v":0.91818181818181821},{"$f":"valuePL(K35,'Utility Functions'!$S$3:$S$7,'Utility Functions'!$T$3:$T$7)","v":1},{"$f":"valueE(L35,'Utility Functions'!$V$3,'Utility Functions'!$V$4,'Utility Functions'!$V$5,'Utility Functions'!$V$6)","v":1},{"$f":"valuePL(M35,'Utility Functions'!$W$3:$W$6,'Utility Functions'!$X$3:$X$6)","v":0.91818181818181821},{"$f":"valueE(N35,'Utility Functions'!$Z$3,'Utility Functions'!$Z$4,'Utility Functions'!$Z$5,'Utility Functions'!$Z$6)","v":0},{"$f":"valuePL(O35,'Utility Functions'!$AA$3:$AA$5,'Utility Functions'!$AB$3:$AB$5)","v":0},{"$f":"valuePL(P35,'Utility Functions'!$AC$3:$AC$7,'Utility Functions'!$AD$3:$AD$7)","v":0.5},{"$f":"valuePL(Q35,'Utility Functions'!$AE$3:$AE$6,'Utility Functions'!$AF$3:$AF$6)","v":0},{"$f":"valuePL(R35,'Utility Functions'!$AG$3:$AG$6,'Utility Functions'!$AH$3:$AH$6)","v":1},{"$f":"valuePL(S35,'Utility Functions'!$AI$3:$AI$6,'Utility Functions'!$AJ$3:$AJ$6)","v":1},{"$f":"valuePL(T35,'Utility Functions'!$AK$3:$AK$8,'Utility Functions'!$AL$3:$AL$8)","v":0.8},{"$f":"valuePL(U35,'Utility Functions'!$AM$3:$AM$5,'Utility Functions'!$AN$3:$AN$5)","v":0},{"$f":"valuePL(V35,'Utility Functions'!$AO$3:$AO$5,'Utility Functions'!$AP$3:$AP$5)","v":1},{"$f":"valuePL(W35,'Utility Functions'!$AQ$3:$AQ$6,'Utility Functions'!$AR$3:$AR$6)","v":1},{"$f":"valuePL(X35,'Utility Functions'!$AS$3:$AS$6,'Utility Functions'!$AT$3:$AT$6)","v":1},{"$f":"valuePL(Y35,'Utility Functions'!$AU$3:$AU$6,'Utility Functions'!$AV$3:$AV$6)","v":0},{"$f":"valuePL(Z35,'Utility Functions'!$AW$3:$AW$5,'Utility Functions'!$AX$3:$AX$5)","v":1},{"$f":"valuePL(AA35,'Utility Functions'!$AY$3:$AY$6,'Utility Functions'!$AZ$3:$AZ$6)","v":0.89999999999999991},{"$f":"valuePL(AB35,'Utility Functions'!$BA$3:$BA$5,'Utility Functions'!$BB$3:$BB$5)","v":0.25},{"$f":"valuePL(AC35,'Utility Functions'!$BC$3:$BC$5,'Utility Functions'!$BD$3:$BD$5)","v":0},13.297748835604624,null,13.297748835604624,0,4.847748835604623,0,3.3,5.15]
[35,{"$f":"valueE(B36,'Utility Functions'!$B$3,'Utility Functions'!$B$4,'Utility Functions'!$B$5,'Utility Functions'!$B$6)","v":0.79810469124896843},{"$f":"valueE(C36,'Utility Functions'!$D$3,'Utility Functions'!$D$4,'Utility Functions'!$D$5,'Utility Functions'!$D$6)","v":0.60939983135101949},{"$f":"valuePL(D36,'Utility Functions'!$E$3:$E$5,'Utility Functions'!$F$3:$F$5)","v":0.5},{"$f":"valuePL(E36,'Utility Functions'!$G$3:$G$5,'Utility Functions'!$H$3:$H$5)","v":0.5},{"$f":"valuePL(F36,'Utility Functions'!$I$3:$I$4,'Utility Functions'!$J$3:$J$5)","v":1},{"$f":"valueE(G36,'Utility Functions'!$L$3,'Utility Functions'!$L$4,'Utility Functions'!$L$5,'Utility Functions'!$L$6)","v":0},{"$f":"valueE(H36,'Utility Functions'!$N$3,'Utility Functions'!$N$4,'Utility Functions'!$N$5,'Utility Functions'!$N$6)","v":0},{"$f":"valuePL(I36,'Utility Functions'!$O$3:$O$6,'Utility Functions'!$P$3:$P$6)","v":0},{"$f":"valuePL(J36,'Utility Functions'!$Q$3:$Q$6,'Utility Functions'!$R$3:$R$6)","v":0},{"$f":"valuePL(K36,'Utility Functions'!$S$3:$S$7,'Utility Functions'!$T$3:$T$7)","v":1},{"$f":"valueE(L36,'Utility Functions'!$V$3,'Utility Functions'!$V$4,'Utility Functions'!$V$5,'Utility Functions'!$V$6)","v":0.66666666666666663},{"$f":"valuePL(M36,'Utility Functions'!$W$3:$W$6,'Utility Functions'!$X$3:$X$6)","v":0.1},{"$f":"valueE(N36,'Utility Functions'!$Z$3,'Utility Functions'!$Z$4,'Utility Functions'!$Z$5,'Utility Functions'!$Z$6)","v":1},{"$f":"valuePL(O36,'Utility Functions'!$AA$3:$AA$5,'Utility Functions'!$AB$3:$AB$5)","v":0},{"$f":"valuePL(P36,'Utility Functions'!$AC$3:$AC$7,'Utility Functions'!$AD$3:$AD$7)","v":0},{"$f":"valuePL(Q36,'Utility Functions'!$AE$3:$AE$6,'Utility Functions'!$AF$3:$AF$6)","v":0},{"$f":"valuePL(R36,'Utility Functions'!$AG$3:$AG$6,'Utility Functions'!$AH$3:$AH$6)","v":1},{"$f":"valuePL(S36,'Utility Functions'!$AI$3:$AI$6,'Utility Functions'!$AJ$3:$AJ$6)","v":1},{"$f":"valuePL(T36,'Utility Functions'!$AK$3:$AK$8,'Utility Functions'!$AL$3:$AL$8)","v":0.6},{"$f":"valuePL(U36,'Utility Functions'!$AM$3:$AM$5,'Utility Functions'!$AN$3:$AN$5)","v":0},{"$f":"valuePL(V36,'Utility Functions'!$AO$3:$AO$5,'Utility Functions'!$AP$3:$AP$5)","v":1},{"$f":"valuePL(W36,'Utility Functions'!$AQ$3:$AQ$6,'Utility Functions'!$AR$3:$AR$6)","v":0.75},{"$f":"valuePL(X36,'Utility Functions'!$AS$3:$AS$6,'Utility Functions'!$AT$3:$AT$6)","v":0},{"$f":"valuePL(Y36,'Utility Functions'!$AU$3:$AU$6,'Utility Functions'!$AV$3:$AV$6)","v":0.2},{"$f":"valuePL(Z36,'Utility Functions'!$AW$3:$AW$5,'Utility Functions'!$AX$3:$AX$5)","v":1},{"$f":"valuePL(AA36,'Utility Functions'!$AY$3:$AY$6,'Utility Functions'!$AZ$3:$AZ$6)","v":0},{"$f":"valuePL(AB36,'Utility Functions'!$BA$3:$BA$5,'Utility Functions'!$BB$3:$BB$5)","v":0.25},{"$f":"valuePL(AC36,'Utility Functions'!$BC$3:$BC$5,'Utility Functions'!$BD$3:$BD$5)","v":0.25},12.224171189266654,null,12.224171189266656,3.407504522599988,1.7666666666666666,1,2.6,3.45]
["Unweighted",{"$f":"SUMPRODUCT(B46:B80,$B$85:$B$119)","v":2.7372671342513},{"$f":"SUMPRODUCT(C46:C80,$B$85:$B$119)","v":2.3042965680300518},{"$f":"SUMPRODUCT(D46:D80,$B$85:$B$119)","v":1.5},2,1,3.2258064516129031E-2,0.10815939278937381,2.541818181818182,2.5090909090909088,3.541818181818182,4.166666666666667,2.6090909090909089,2.375,0.5,1.25,0,5,4.66,1.8000000000000003,1,4.5,2.95,2.2000000000000002,3,4.5,3.6999999999999997,0.5,1.5,null,null,"Unweighted",{"$f":"SUMPRODUCT(AG46:AG80,$B$85:$B$119)","v":9.5415637022813513},{"$f":"SUMPRODUCT(AH46:AH80,$B$85:$B$119)","v":15.50890230579035},2.875,13.709999999999999,22.849999999999998]
["Weighted",{"$f":"B$81*Sens_Int!I$5","v":5.711054491241685E-2},{"$f":"C$81*Sens_Int!J$5","v":4.5448394665083165E-2},{"$f":"D$81*Sens_Int!K$5","v":2.9961738989493596E-2},{"$f":"E$81*Sens_Int!L$5","v":3.8920461020199464E-2},{"$f":"F$81*Sens_Int!M$5","v":2.5241033430934225E-2},{"$f":"G$81*Sens_Int!N$5","v":3.1505429117757115E-4},{"$f":"H$81*Sens_Int!O$5","v":1.0563585057130327E-3},{"$f":"I$81*Sens_Int!P$5","v":4.2140380294973558E-2},{"$f":"J$81*Sens_Int!Q$5","v":4.0534974716367689E-2},{"$f":"K$81*Sens_Int!R$5","v":5.0412279603901398E-2},{"$f":"L$81*Sens_Int!S$5","v":6.0786480311018493E-2},{"$f":"M$81*Sens_Int!T$5","v":2.8740749654313953E-2},{"$f":"N$81*Sens_Int!U$5","v":4.6875E-2},{"$f":"O$81*Sens_Int!V$5","v":2.9605263157894735E-2},{"$f":"P$81*Sens_Int!W$5","v":0.10296208308570734},{"$f":"Q$81*Sens_Int!X$5","v":0},{"$f":"R$81*Sens_Int!Y$5","v":0.51965409447942956},{"$f":"S$81*Sens_Int!Z$5","v":0.42419050840876715},{"$f":"T$81*Sens_Int!AA$5","v":0.11926245294053868},{"$f":"U$81*Sens_Int!AB$5","v":6.5617429608301692E-2},{"$f":"V$81*Sens_Int!AC$5","v":0.16121950993785972},{"$f":"W$81*Sens_Int!AD$5","v":7.6219409207228056E-2},{"$f":"X$81*Sens_Int!AE$5","v":6.0788629078715899E-2},{"$f":"Y$81*Sens_Int!AF$5","v":0.103009630179515},{"$f":"Z$81*Sens_Int!AG$5","v":0.13388305860677066},{"$f":"AA$81*Sens_Int!AH$5","v":8.5296472591476324E-2},{"$f":"AB$81*Sens_Int!AI$5","v":1.2224118962244249E-2},{"$f":"AC$81*Sens_Int!AJ$5","v":3.4199545560219376E-2},null,null,"Weighted for SA",{"$f":"AG81*#REF!","v":{"$error":"#REF!"}},{"$f":"AH81*#REF!","v":{"$error":"#REF!"}},{"$f":"AI81*#REF!","v":{"$error":"#REF!"}},{"$f":"AJ81*#REF!","v":{"$error":"#REF!"}},{"$f":"AK81*#REF!","v":{"$error":"#REF!"}}]
[]
[null,"Decision variable","Benefit","Cost"]
[{"$f":"A2","v":1},0,{"$f":"AD46","v":17.117643866192076},{"$f":"AD2","v":700000}]
[2,0,{"$f":"AD47","v":12.641625800575998},{"$f":"AD3","v":5400000}]
[3,0,11.563541444302563,250000]
[4,0,9.2460291931089209,150000]
[5,0,9.5663279251355373,220000]
[6,0,5.9008471271383875,110000]
[7,1,15.54287399641135,1000000]
[8,0,14.227364688589191,5000000]
[9,0,11.893773577166716,25000]
[10,0,9.01,900000]
[11,1,13.174032258064516,1500000]
[12,0,9.4195802436719873,100000]
[13,0,7.5245670174228056,250000]
[14,0,10.338706637075108,500000]
[15,0,15.150477261414375,800000]
[16,0,15.119696969696969,2000000]
[17,0,10.876550515651747,500000]
[18,0,10.178462998102468,300000]
[19,0,9.3165012474871283,750000]
[20,0,15.091255033092194,1500000]
[21,0,9.5500000000000007,900000]
[22,0,9.471742567994939,750000]
[23,0,9.5321507448123199,1000000]
[24,0,9.4968811881212041,150000]
[25,0,13.870607417804099,250000]
[26,0,11.064076562960208,500000]
[27,0,9.0147596715374529,1200000]
[28,0,12.499282052393189,500000]
[29,0,12.453684519169958,2000000]
[30,0,7.6494228467205527,250000]
[31,0,9.2059990264483247,650000]
[32,0,14.52045942179552,200000]
[33,1,10.246639728724558,400000]
[34,1,13.297748835604624,900000]
[35,1,12.224171189266654,900000]
[null,{"$f":"SUM(B85:B119)","v":5},{"$f":"SUMPRODUCT(C85:C119,B85:B119)","v":64.485466008071697},{"$f":"SUMPRODUCT(B85:B119,D85:D119)","v":4700000}]
[]
[null,null,"Cost constraint",15000000]

{"sheet":"Portfolio_D_Int","index":31,"n_rows":122,"n_cols":37,"rows_kept":122,"cut":false,"hidden":false,"merged":[]}
["Project","manage_species","manage_spatial","manage_uncertainty","manage_currentpractices","manage_adaptivemanagement","pop_a","pop_b","pop_spatialscope","pop_temporalscope","hab_quantity","hab_quality","hab_temporal","ecoprocess_spp","ecoprocess_uncertainty","datasharing","broaderimpacts","exisitingpriorities","partners","leverage","alignment","objhyp","response","targettaxa","surveydesign","stats","datamanagement","budget","timeline","cost"]
[1,9,6.25,2,2,0,186,1054,75,5,0,2,0,0,0,4,0,2,3,0,0,2,3,3,3,2,3,2,2,700000]
[2,3,28.2,1,0,0,0,0,0,0,0,2,0,4,1,0,0,3,3,0,0,2,3,3,3,2,3,2,2,5400000]
[3,8,28.2,2,0,0,0,0,0,0,0,2,0,5,1,0,2,0,0,0,1,2,3,3,3,2,1,2,2,250000]
[4,1,6.25,2,0,0,0,0,0,0,0,2,0,4,1,0,1,3,3,4,0,1,3,3,1,0,0,2,1,150000]
[5,4,3.1,2,0,0,0,0,50,2,0,2,0,0,0,0,1,3,3,4,1,0,3,3,2,0,0,2,1,220000]
[6,10,6.2E-2,2,0,0,0,0,10,2,0,2,0,0,0,0,1,0,3,3,0,0,0,3,0,0,0,2,1,110000]
[7,52,18.8,0,2,0,0,0,85,12,85,8,12,8,1,0,0,3,3,0,0,2,0,1,3,2,2,0,2,1000000]
[8,3,18.8,2,1,1,0,0,14,14,14,8,14,0,0,0,3,1,3,0,0,2,3,3,3,2,0,1,1,5000000]
[9,9,15.6,2,1,0,70,140,0,0,0,2,0,0,0,3,0,3,2,1,0,2,3,3,1,2,1,1,2,25000]
[10,0,0,0,0,0,0,0,0,0,0,2,0,6,2,1,2,3,2,2,0,0,2,3,3,1,1,0,2,900000]
[11,0,0,0,0,0,6,102,52,15,52,8,15,3,1,1,0,3,3,2,2,2,1,3,3,1,2,0,1,1500000]
[12,2,15.6,2,1,0,0,0,0,0,0,2,0,0,0,0,1,3,3,3,0,1,1,3,1,2,1,2,0,100000]
[13,0,0,0,0,0,0,12,39,2,39,8,2,7,1,1,0,3,3,0,0,1,0,1,0,2,1,1,1,250000]
[14,6,15.6,1,1,0,0,0,0,0,0,2,0,6,1,1,0,3,3,0,0,1,1,3,3,1,2,1,1,500000]
[15,23,12.5,2,1,1,0,0,23,3,23,8,3,1,2,2,0,2,3,3,2,0,3,1,1,2,3,2,1,800000]
[16,0,0,0,0,0,0,0,100,15,100,7,15,0,0,3,0,3,3,5,0,2,2,2,1,2,3,2,2,2000000]
[17,2,15.6,2,1,1,58,290,0,0,0,8,3,0,0,0,0,3,2,0,0,2,3,1,0,1,0,2,1,500000]
[18,0,0,0,0,0,0,30,0,0,0,2,0,8,1,1,3,3,3,5,1,2,2,1,2,1,2,1,0,300000]
[19,8,3.125,1,2,0,0,0,0,0,0,2,0,8,2,0,0,2,3,0,0,1,1,3,2,0,1,0,1,750000]
[20,9,15.6,1,2,0,0,435,76,10,76,6,10,8,2,1,0,3,3,3,2,1,0,0,1,2,1,0,1,1500000]
[21,0,0,0,0,0,0,0,0,0,0,2,0,8,2,0,1,3,3,5,1,0,2,3,1,0,3,1,2,900000]
[22,0,0,0,0,0,16,64,0,0,0,2,0,1,2,4,2,2,3,5,0,1,2,1,0,2,1,2,1,750000]
[23,9,18.8,2,0,0,0,0,0,0,0,2,0,0,0,3,0,3,3,5,0,2,1,2,1,1,1,0,1,1000000]
[24,5,6.25,2,0,0,0,0,0,0,0,2,0,0,0,0,0,3,3,5,0,0,3,1,3,2,1,0,2,150000]
[25,9,18.8,2,0,0,176,308,0,0,0,2,0,8,1,2,2,3,3,0,0,2,1,3,2,1,1,2,2,250000]
[26,17,18.8,2,1,0,0,0,0,0,0,2,0,0,0,3,0,3,3,4,0,2,1,0,2,0,1,2,2,500000]
[27,0,6.25,2,0,0,0,0,0,0,80,2,5,0,0,2,2,3,3,5,0,1,2,3,1,0,0,0,0,1200000]
[28,3,6.25,2,0,1,0,0,0,0,0,4,5,0,0,4,0,3,3,4,0,2,3,3,1,0,2,2,1,500000]
[29,9,12.5,2,1,0,0,0,15,12,15,8,12,0,0,1,0,3,3,4,0,2,1,0,2,1,1,1,2,2000000]
[30,33,18.8,2,0,0,0,0,0,0,0,4,2,0,0,0,0,1,1,0,0,0,3,1,2,0,2,2,0,250000]
[31,4,18.8,1,0,0,0,0,65,4,0,4,4,0,0,2,0,3,2,3,0,1,0,1,1,2,2,1,1,650000]
[32,5,3.125,2,2,1,6,102,40,16,40,8,16,0,0,2,3,3,0,4,0,0,2,1,2,1,0,2,1,200000]
[33,14,18.8,2,1,0,0,0,0,0,0,5,0,0,0,2,0,3,2,0,0,1,3,0,2,2,3,0,0,400000]
[34,0,0,0,0,0,0,12,100,15,100,8,15,0,0,2,0,3,3,4,0,2,3,3,0,2,2,1,0,900000]
[35,8,9.4,1,1,1,0,0,0,0,100,6,5,8,0,0,0,3,3,3,0,2,2,0,1,2,0,1,1,900000]
["CV",{"$f":"_xlfn.STDEV.S(B2:B36)/AVERAGE(B2:B36)","v":1.383842854444886},{"$f":"_xlfn.STDEV.S(C2:C36)/AVERAGE(C2:C36)","v":0.84395823753626376},{"$f":"_xlfn.STDEV.S(D2:D36)/AVERAGE(D2:D36)","v":0.65948586466528381},{"$f":"_xlfn.STDEV.S(E2:E36)/AVERAGE(E2:E36)","v":1.2933654230908831},2.2305806858480666,2.9881459898804135,2.7250501152884543,1.5394659205075842,1.5790297611729722,1.6828143944790142,0.63288342730791625,1.4346340567392073,1.2744250477591585,1.2909944487358058,1.043011114951035,1.4910544805781871,0.32582327651393111,0.30721159062514791,0.8219511329380369,2.1760730956581078,0.64975875258290616,0.58618247649425104,0.61083323417736113,0.63333947951472869,0.68629571860885286,0.76505300516434493,0.69428102652373402,0.60312027652595823]
["sd",{"$f":"_xlfn.STDEV.S(B2:B36)","v":10.477667326511279}]
["mean",{"$f":"AVERAGE(B2:B36)","v":7.5714285714285712}]
[null,{"$f":"B1","v":"manage_species"},{"$f":"C1","v":"manage_spatial"},"manage_uncertainty","manage_currentpractices","manage_adaptivemanagement","pop_a","pop_b","pop_spatialscope","pop_temporalscope","hab_quantity","hab_quality","hab_temporal","ecoprocess_spp","ecoprocess_uncertainty","datasharing","broaderimpacts","exisitingpriorities","partners","leverage","alignment","objhyp","response","targettaxa","surveydesign","stats","datamanagement","budget","timeline"]
[null,"Metric 1","Metric 2","Metric 3","Metric 4","Metric 5","Metric 6a","Metric 6b","Metric 7","Metric 8","Metric 9","Metric 10","Metric 11","Metric 12","Metric 13","Metric 14","Metric 15","Metric 16","Metric 17","Metric 18","Metric 19","Metric 20","Metric 21","Metric 22","Metric 23","Metric 24","Metric 25","Metric 26","Metric 27"]
["Weights",0.03,0.03,0.03,0.03,0.04,1.4999999999999999E-2,1.4999999999999999E-2,0.03,0.02,0.02,0.02,0.02,0.03,0.09,0.04,0.04,0.05,0.05,0.03,0.03,0.05,0.04,0.04,0.05,0.05,0.04,0.04,0.03]
[]
[null,"Unweighted"]
["Project",null,null,null,null,null,null,null,null,null,null,null,null,null,null,null,null,null,null,null,null,null,null,null,null,null,null,null,null,"Unweighted total",null,"Unweighted total","management","status","ecol_proc","integration","rigor"]
[{"$f":"A2","v":1},{"$f":"valueE(B2,'Utility Functions'!$B$3,'Utility Functions'!$B$4,'Utility Functions'!$B$5,'Utility Functions'!$B$6)","v":0.83470237647280454},{"$f":"valueE(C2,'Utility Functions'!$D$3,'Utility Functions'!$D$4,'Utility Functions'!$D$5,'Utility Functions'!$D$6)","v":0.46475967153745396},{"$f":"valuePL(D2,'Utility Functions'!$E$3:$E$5,'Utility Functions'!$F$3:$F$5)","v":1},{"$f":"valuePL(E2,'Utility Functions'!$G$3:$G$5,'Utility Functions'!$H$3:$H$5)","v":1},{"$f":"valuePL(F2,'Utility Functions'!$I$3:$I$4,'Utility Functions'!$J$3:$J$5)","v":0},{"$f":"valueE(G2,'Utility Functions'!$L$3,'Utility Functions'!$L$4,'Utility Functions'!$L$5,'Utility Functions'!$L$6)","v":1},{"$f":"valueE(H2,'Utility Functions'!$N$3,'Utility Functions'!$N$4,'Utility Functions'!$N$5,'Utility Functions'!$N$6)","v":1},{"$f":"valuePL(I2,'Utility Functions'!$O$3:$O$6,'Utility Functions'!$P$3:$P$6)","v":0.91818181818181821},{"$f":"valuePL(J2,'Utility Functions'!$Q$3:$Q$6,'Utility Functions'!$R$3:$R$6)","v":0.1},{"$f":"valuePL(K2,'Utility Functions'!$S$3:$S$7,'Utility Functions'!$T$3:$T$7)","v":0},{"$f":"valueE(L2,'Utility Functions'!$V$3,'Utility Functions'!$V$4,'Utility Functions'!$V$5,'Utility Functions'!$V$6)","v":0},{"$f":"valuePL(M2,'Utility Functions'!$W$3:$W$6,'Utility Functions'!$X$3:$X$6)","v":0},{"$f":"valueE(N2,'Utility Functions'!$Z$3,'Utility Functions'!$Z$4,'Utility Functions'!$Z$5,'Utility Functions'!$Z$6)","v":0},{"$f":"valuePL(O2,'Utility Functions'!$AA$3:$AA$5,'Utility Functions'!$AB$3:$AB$5)","v":0},{"$f":"valuePL(P2,'Utility Functions'!$AC$3:$AC$7,'Utility Functions'!$AD$3:$AD$7)","v":1},{"$f":"valuePL(Q2,'Utility Functions'!$AE$3:$AE$6,'Utility Functions'!$AF$3:$AF$6)","v":0},{"$f":"valuePL(R2,'Utility Functions'!$AG$3:$AG$6,'Utility Functions'!$AH$3:$AH$6)","v":0.8},{"$f":"valuePL(S2,'Utility Functions'!$AI$3:$AI$6,'Utility Functions'!$AJ$3:$AJ$6)","v":1},{"$f":"valuePL(T2,'Utility Functions'!$AK$3:$AK$8,'Utility Functions'!$AL$3:$AL$8)","v":0},{"$f":"valuePL(U2,'Utility Functions'!$AM$3:$AM$5,'Utility Functions'!$AN$3:$AN$5)","v":0},{"$f":"valuePL(V2,'Utility Functions'!$AO$3:$AO$5,'Utility Functions'!$AP$3:$AP$5)","v":1},{"$f":"valuePL(W2,'Utility Functions'!$AQ$3:$AQ$6,'Utility Functions'!$AR$3:$AR$6)","v":1},{"$f":"valuePL(X2,'Utility Functions'!$AS$3:$AS$6,'Utility Functions'!$AT$3:$AT$6)","v":1},{"$f":"valuePL(Y2,'Utility Functions'!$AU$3:$AU$6,'Utility Functions'!$AV$3:$AV$6)","v":1},{"$f":"valuePL(Z2,'Utility Functions'!$AW$3:$AW$5,'Utility Functions'!$AX$3:$AX$5)","v":1},{"$f":"valuePL(AA2,'Utility Functions'!$AY$3:$AY$6,'Utility Functions'!$AZ$3:$AZ$6)","v":1},{"$f":"valuePL(AB2,'Utility Functions'!$BA$3:$BA$5,'Utility Functions'!$BB$3:$BB$5)","v":1},{"$f":"valuePL(AC2,'Utility Functions'!$BC$3:$BC$5,'Utility Functions'!$BD$3:$BD$5)","v":1},{"$f":"SUM(B46:AC46)","v":17.117643866192076},null,{"$f":"SUM(AG46:AK46)","v":17.117643866192076},{"$f":"SUM(B46:F46)","v":3.2994620480102586},{"$f":"SUM(G46:M46)","v":3.0181818181818181},{"$f":"SUM(N46:O46)","v":0},{"$f":"SUM(P46:U46)","v":2.8},{"$f":"SUM(V46:AC46)","v":8}]
[2,{"$f":"valueE(B3,'Utility Functions'!$B$3,'Utility Functions'!$B$4,'Utility Functions'!$B$5,'Utility Functions'!$B$6)","v":0.4511890475224023},{"$f":"valueE(C3,'Utility Functions'!$D$3,'Utility Functions'!$D$4,'Utility Functions'!$D$5,'Utility Functions'!$D$6)","v":0.94043675305359531},{"$f":"valuePL(D3,'Utility Functions'!$E$3:$E$5,'Utility Functions'!$F$3:$F$5)","v":0.5},{"$f":"valuePL(E3,'Utility Functions'!$G$3:$G$5,'Utility Functions'!$H$3:$H$5)","v":0},{"$f":"valuePL(F3,'Utility Functions'!$I$3:$I$4,'Utility Functions'!$J$3:$J$5)","v":0},{"$f":"valueE(G3,'Utility Functions'!$L$3,'Utility Functions'!$L$4,'Utility Functions'!$L$5,'Utility Functions'!$L$6)","v":0},{"$f":"valueE(H3,'Utility Functions'!$N$3,'Utility Functions'!$N$4,'Utility Functions'!$N$5,'Utility Functions'!$N$6)","v":0},{"$f":"valuePL(I3,'Utility Functions'!$O$3:$O$6,'Utility Functions'!$P$3:$P$6)","v":0},{"$f":"valuePL(J3,'Utility Functions'!$Q$3:$Q$6,'Utility Functions'!$R$3:$R$6)","v":0},{"$f":"valuePL(K3,'Utility Functions'!$S$3:$S$7,'Utility Functions'!$T$3:$T$7)","v":0},{"$f":"valueE(L3,'Utility Functions'!$V$3,'Utility Functions'!$V$4,'Utility Functions'!$V$5,'Utility Functions'!$V$6)","v":0},{"$f":"valuePL(M3,'Utility Functions'!$W$3:$W$6,'Utility Functions'!$X$3:$X$6)","v":0},{"$f":"valueE(N3,'Utility Functions'!$Z$3,'Utility Functions'!$Z$4,'Utility Functions'!$Z$5,'Utility Functions'!$Z$6)","v":0.5},{"$f":"valuePL(O3,'Utility Functions'!$AA$3:$AA$5,'Utility Functions'!$AB$3:$AB$5)","v":0.25},{"$f":"valuePL(P3,'Utility Functions'!$AC$3:$AC$7,'Utility Functions'!$AD$3:$AD$7)","v":0},{"$f":"valuePL(Q3,'Utility Functions'!$AE$3:$AE$6,'Utility Functions'!$AF$3:$AF$6)","v":0},{"$f":"valuePL(R3,'Utility Functions'!$AG$3:$AG$6,'Utility Functions'!$AH$3:$AH$6)","v":1},{"$f":"valuePL(S3,'Utility Functions'!$AI$3:$AI$6,'Utility Functions'!$AJ$3:$AJ$6)","v":1},{"$f":"valuePL(T3,'Utility Functions'!$AK$3:$AK$8,'Utility Functions'!$AL$3:$AL$8)","v":0},{"$f":"valuePL(U3,'Utility Functions'!$AM$3:$AM$5,'Utility Functions'!$AN$3:$AN$5)","v":0},{"$f":"valuePL(V3,'Utility Functions'!$AO$3:$AO$5,'Utility Functions'!$AP$3:$AP$5)","v":1},{"$f":"valuePL(W3,'Utility Functions'!$AQ$3:$AQ$6,'Utility Functions'!$AR$3:$AR$6)","v":1},{"$f":"valuePL(X3,'Utility Functions'!$AS$3:$AS$6,'Utility Functions'!$AT$3:$AT$6)","v":1},{"$f":"valuePL(Y3,'Utility Functions'!$AU$3:$AU$6,'Utility Functions'!$AV$3:$AV$6)","v":1},{"$f":"valuePL(Z3,'Utility Functions'!$AW$3:$AW$5,'Utility Functions'!$AX$3:$AX$5)","v":1},{"$f":"valuePL(AA3,'Utility Functions'!$AY$3:$AY$6,'Utility Functions'!$AZ$3:$AZ$6)","v":1},{"$f":"valuePL(AB3,'Utility Functions'!$BA$3:$BA$5,'Utility Functions'!$BB$3:$BB$5)","v":1},{"$f":"valuePL(AC3,'Utility Functions'!$BC$3:$BC$5,'Utility Functions'!$BD$3:$BD$5)","v":1},{"$f":"SUM(B47:AC47)","v":12.641625800575998},null,{"$f":"SUM(AG47:AK47)","v":12.641625800575998},{"$f":"SUM(B47:F47)","v":1.8916258005759976},{"$f":"SUM(G47:M47)","v":0},{"$f":"SUM(N47:O47)","v":0.75},{"$f":"SUM(P47:U47)","v":2},{"$f":"SUM(V47:AC47)","v":8}]
[3,{"$f":"valueE(B4,'Utility Functions'!$B$3,'Utility Functions'!$B$4,'Utility Functions'!$B$5,'Utility Functions'!$B$6)","v":0.79810469124896843},{"$f":"valueE(C4,'Utility Functions'!$D$3,'Utility Functions'!$D$4,'Utility Functions'!$D$5,'Utility Functions'!$D$6)","v":0.94043675305359531},{"$f":"valuePL(D4,'Utility Functions'!$E$3:$E$5,'Utility Functions'!$F$3:$F$5)","v":1},{"$f":"valuePL(E4,'Utility Functions'!$G$3:$G$5,'Utility Functions'!$H$3:$H$5)","v":0},{"$f":"valuePL(F4,'Utility Functions'!$I$3:$I$4,'Utility Functions'!$J$3:$J$5)","v":0},{"$f":"valueE(G4,'Utility Functions'!$L$3,'Utility Functions'!$L$4,'Utility Functions'!$L$5,'Utility Functions'!$L$6)","v":0},{"$f":"valueE(H4,'Utility Functions'!$N$3,'Utility Functions'!$N$4,'Utility Functions'!$N$5,'Utility Functions'!$N$6)","v":0},{"$f":"valuePL(I4,'Utility Functions'!$O$3:$O$6,'Utility Functions'!$P$3:$P$6)","v":0},{"$f":"valuePL(J4,'Utility Functions'!$Q$3:$Q$6,'Utility Functions'!$R$3:$R$6)","v":0},{"$f":"valuePL(K4,'Utility Functions'!$S$3:$S$7,'Utility Functions'!$T$3:$T$7)","v":0},{"$f":"valueE(L4,'Utility Functions'!$V$3,'Utility Functions'!$V$4,'Utility Functions'!$V$5,'Utility Functions'!$V$6)","v":0},{"$f":"valuePL(M4,'Utility Functions'!$W$3:$W$6,'Utility Functions'!$X$3:$X$6)","v":0},{"$f":"valueE(N4,'Utility Functions'!$Z$3,'Utility Functions'!$Z$4,'Utility Functions'!$Z$5,'Utility Functions'!$Z$6)","v":0.625},{"$f":"valuePL(O4,'Utility Functions'!$AA$3:$AA$5,'Utility Functions'!$AB$3:$AB$5)","v":0.25},{"$f":"valuePL(P4,'Utility Functions'!$AC$3:$AC$7,'Utility Functions'!$AD$3:$AD$7)","v":0},{"$f":"valuePL(Q4,'Utility Functions'!$AE$3:$AE$6,'Utility Functions'!$AF$3:$AF$6)","v":0.5},{"$f":"valuePL(R4,'Utility Functions'!$AG$3:$AG$6,'Utility Functions'!$AH$3:$AH$6)","v":0},{"$f":"valuePL(S4,'Utility Functions'!$AI$3:$AI$6,'Utility Functions'!$AJ$3:$AJ$6)","v":0},{"$f":"valuePL(T4,'Utility Functions'!$AK$3:$AK$8,'Utility Functions'!$AL$3:$AL$8)","v":0},{"$f":"valuePL(U4,'Utility Functions'!$AM$3:$AM$5,'Utility Functions'!$AN$3:$AN$5)","v":0.25},{"$f":"valuePL(V4,'Utility Functions'!$AO$3:$AO$5,'Utility Functions'!$AP$3:$AP$5)","v":1},{"$f":"valuePL(W4,'Utility Functions'!$AQ$3:$AQ$6,'Utility Functions'!$AR$3:$AR$6)","v":1},{"$f":"valuePL(X4,'Utility Functions'!$AS$3:$AS$6,'Utility Functions'!$AT$3:$AT$6)","v":1},{"$f":"valuePL(Y4,'Utility Functions'!$AU$3:$AU$6,'Utility Functions'!$AV$3:$AV$6)","v":1},{"$f":"valuePL(Z4,'Utility Functions'!$AW$3:$AW$5,'Utility Functions'!$AX$3:$AX$5)","v":1},{"$f":"valuePL(AA4,'Utility Functions'!$AY$3:$AY$6,'Utility Functions'!$AZ$3:$AZ$6)","v":0.2},{"$f":"valuePL(AB4,'Utility Functions'!$BA$3:$BA$5,'Utility Functions'!$BB$3:$BB$5)","v":1},{"$f":"valuePL(AC4,'Utility Functions'!$BC$3:$BC$5,'Utility Functions'!$BD$3:$BD$5)","v":1},11.563541444302563,null,11.563541444302565,2.7385414443025637,0,0.875,0.75,7.2]
[4,{"$f":"valueE(B5,'Utility Functions'!$B$3,'Utility Functions'!$B$4,'Utility Functions'!$B$5,'Utility Functions'!$B$6)","v":0.1812695215714665},{"$f":"valueE(C5,'Utility Functions'!$D$3,'Utility Functions'!$D$4,'Utility Functions'!$D$5,'Utility Functions'!$D$6)","v":0.46475967153745396},{"$f":"valuePL(D5,'Utility Functions'!$E$3:$E$5,'Utility Functions'!$F$3:$F$5)","v":1},{"$f":"valuePL(E5,'Utility Functions'!$G$3:$G$5,'Utility Functions'!$H$3:$H$5)","v":0},{"$f":"valuePL(F5,'Utility Functions'!$I$3:$I$4,'Utility Functions'!$J$3:$J$5)","v":0},{"$f":"valueE(G5,'Utility Functions'!$L$3,'Utility Functions'!$L$4,'Utility Functions'!$L$5,'Utility Functions'!$L$6)","v":0},{"$f":"valueE(H5,'Utility Functions'!$N$3,'Utility Functions'!$N$4,'Utility Functions'!$N$5,'Utility Functions'!$N$6)","v":0},{"$f":"valuePL(I5,'Utility Functions'!$O$3:$O$6,'Utility Functions'!$P$3:$P$6)","v":0},{"$f":"valuePL(J5,'Utility Functions'!$Q$3:$Q$6,'Utility Functions'!$R$3:$R$6)","v":0},{"$f":"valuePL(K5,'Utility Functions'!$S$3:$S$7,'Utility Functions'!$T$3:$T$7)","v":0},{"$f":"valueE(L5,'Utility Functions'!$V$3,'Utility Functions'!$V$4,'Utility Functions'!$V$5,'Utility Functions'!$V$6)","v":0},{"$f":"valuePL(M5,'Utility Functions'!$W$3:$W$6,'Utility Functions'!$X$3:$X$6)","v":0},{"$f":"valueE(N5,'Utility Functions'!$Z$3,'Utility Functions'!$Z$4,'Utility Functions'!$Z$5,'Utility Functions'!$Z$6)","v":0.5},{"$f":"valuePL(O5,'Utility Functions'!$AA$3:$AA$5,'Utility Functions'!$AB$3:$AB$5)","v":0.25},{"$f":"valuePL(P5,'Utility Functions'!$AC$3:$AC$7,'Utility Functions'!$AD$3:$AD$7)","v":0},{"$f":"valuePL(Q5,'Utility Functions'!$AE$3:$AE$6,'Utility Functions'!$AF$3:$AF$6)","v":0.1},{"$f":"valuePL(R5,'Utility Functions'!$AG$3:$AG$6,'Utility Functions'!$AH$3:$AH$6)","v":1},{"$f":"valuePL(S5,'Utility Functions'!$AI$3:$AI$6,'Utility Functions'!$AJ$3:$AJ$6)","v":1},{"$f":"valuePL(T5,'Utility Functions'!$AK$3:$AK$8,'Utility Functions'!$AL$3:$AL$8)","v":0.8},{"$f":"valuePL(U5,'Utility Functions'!$AM$3:$AM$5,'Utility Functions'!$AN$3:$AN$5)","v":0},{"$f":"valuePL(V5,'Utility Functions'!$AO$3:$AO$5,'Utility Functions'!$AP$3:$AP$5)","v":0.5},{"$f":"valuePL(W5,'Utility Functions'!$AQ$3:$AQ$6,'Utility Functions'!$AR$3:$AR$6)","v":1},{"$f":"valuePL(X5,'Utility Functions'!$AS$3:$AS$6,'Utility Functions'!$AT$3:$AT$6)","v":1},{"$f":"valuePL(Y5,'Utility Functions'!$AU$3:$AU$6,'Utility Functions'!$AV$3:$AV$6)","v":0.2},{"$f":"valuePL(Z5,'Utility Functions'!$AW$3:$AW$5,'Utility Functions'!$AX$3:$AX$5)","v":0},{"$f":"valuePL(AA5,'Utility Functions'!$AY$3:$AY$6,'Utility Functions'!$AZ$3:$AZ$6)","v":0},{"$f":"valuePL(AB5,'Utility Functions'!$BA$3:$BA$5,'Utility Functions'!$BB$3:$BB$5)","v":1},{"$f":"valuePL(AC5,'Utility Functions'!$BC$3:$BC$5,'Utility Functions'!$BD$3:$BD$5)","v":0.25},9.2460291931089209,null,9.2460291931089209,1.6460291931089204,0,0.75,2.9000000000000004,3.95]
[5,{"$f":"valueE(B6,'Utility Functions'!$B$3,'Utility Functions'!$B$4,'Utility Functions'!$B$5,'Utility Functions'!$B$6)","v":0.55067187023002029},{"$f":"valueE(C6,'Utility Functions'!$D$3,'Utility Functions'!$D$4,'Utility Functions'!$D$5,'Utility Functions'!$D$6)","v":0.26656514581460788},{"$f":"valuePL(D6,'Utility Functions'!$E$3:$E$5,'Utility Functions'!$F$3:$F$5)","v":1},{"$f":"valuePL(E6,'Utility Functions'!$G$3:$G$5,'Utility Functions'!$H$3:$H$5)","v":0},{"$f":"valuePL(F6,'Utility Functions'!$I$3:$I$4,'Utility Functions'!$J$3:$J$5)","v":0},{"$f":"valueE(G6,'Utility Functions'!$L$3,'Utility Functions'!$L$4,'Utility Functions'!$L$5,'Utility Functions'!$L$6)","v":0},{"$f":"valueE(H6,'Utility Functions'!$N$3,'Utility Functions'!$N$4,'Utility Functions'!$N$5,'Utility Functions'!$N$6)","v":0},{"$f":"valuePL(I6,'Utility Functions'!$O$3:$O$6,'Utility Functions'!$P$3:$P$6)","v":0.50909090909090915},{"$f":"valuePL(J6,'Utility Functions'!$Q$3:$Q$6,'Utility Functions'!$R$3:$R$6)","v":0.04},{"$f":"valuePL(K6,'Utility Functions'!$S$3:$S$7,'Utility Functions'!$T$3:$T$7)","v":0},{"$f":"valueE(L6,'Utility Functions'!$V$3,'Utility Functions'!$V$4,'Utility Functions'!$V$5,'Utility Functions'!$V$6)","v":0},{"$f":"valuePL(M6,'Utility Functions'!$W$3:$W$6,'Utility Functions'!$X$3:$X$6)","v":0},{"$f":"valueE(N6,'Utility Functions'!$Z$3,'Utility Functions'!$Z$4,'Utility Functions'!$Z$5,'Utility Functions'!$Z$6)","v":0},{"$f":"valuePL(O6,'Utility Functions'!$AA$3:$AA$5,'Utility Functions'!$AB$3:$AB$5)","v":0},{"$f":"valuePL(P6,'Utility Functions'!$AC$3:$AC$7,'Utility Functions'!$AD$3:$AD$7)","v":0},{"$f":"valuePL(Q6,'Utility Functions'!$AE$3:$AE$6,'Utility Functions'!$AF$3:$AF$6)","v":0.1},{"$f":"valuePL(R6,'Utility Functions'!$AG$3:$AG$6,'Utility Functions'!$AH$3:$AH$6)","v":1},{"$f":"valuePL(S6,'Utility Functions'!$AI$3:$AI$6,'Utility Functions'!$AJ$3:$AJ$6)","v":1},{"$f":"valuePL(T6,'Utility Functions'!$AK$3:$AK$8,'Utility Functions'!$AL$3:$AL$8)","v":0.8},{"$f":"valuePL(U6,'Utility Functions'!$AM$3:$AM$5,'Utility Functions'!$AN$3:$AN$5)","v":0.25},{"$f":"valuePL(V6,'Utility Functions'!$AO$3:$AO$5,'Utility Functions'!$AP$3:$AP$5)","v":0},{"$f":"valuePL(W6,'Utility Functions'!$AQ$3:$AQ$6,'Utility Functions'!$AR$3:$AR$6)","v":1},{"$f":"valuePL(X6,'Utility Functions'!$AS$3:$AS$6,'Utility Functions'!$AT$3:$AT$6)","v":1},{"$f":"valuePL(Y6,'Utility Functions'!$AU$3:$AU$6,'Utility Functions'!$AV$3:$AV$6)","v":0.8},{"$f":"valuePL(Z6,'Utility Functions'!$AW$3:$AW$5,'Utility Functions'!$AX$3:$AX$5)","v":0},{"$f":"valuePL(AA6,'Utility Functions'!$AY$3:$AY$6,'Utility Functions'!$AZ$3:$AZ$6)","v":0},{"$f":"valuePL(AB6,'Utility Functions'!$BA$3:$BA$5,'Utility Functions'!$BB$3:$BB$5)","v":1},{"$f":"valuePL(AC6,'Utility Functions'!$BC$3:$BC$5,'Utility Functions'!$BD$3:$BD$5)","v":0.25},9.5663279251355373,null,9.5663279251355391,1.8172370160446283,0.54909090909090918,0,3.1500000000000004,4.05]
[6,{"$f":"valueE(B7,'Utility Functions'!$B$3,'Utility Functions'!$B$4,'Utility Functions'!$B$5,'Utility Functions'!$B$6)","v":0.86466602685702687},{"$f":"valueE(C7,'Utility Functions'!$D$3,'Utility Functions'!$D$4,'Utility Functions'!$D$5,'Utility Functions'!$D$6)","v":6.1811002813601471E-3},{"$f":"valuePL(D7,'Utility Functions'!$E$3:$E$5,'Utility Functions'!$F$3:$F$5)","v":1},{"$f":"valuePL(E7,'Utility Functions'!$G$3:$G$5,'Utility Functions'!$H$3:$H$5)","v":0},{"$f":"valuePL(F7,'Utility Functions'!$I$3:$I$4,'Utility Functions'!$J$3:$J$5)","v":0},{"$f":"valueE(G7,'Utility Functions'!$L$3,'Utility Functions'!$L$4,'Utility Functions'!$L$5,'Utility Functions'!$L$6)","v":0},{"$f":"valueE(H7,'Utility Functions'!$N$3,'Utility Functions'!$N$4,'Utility Functions'!$N$5,'Utility Functions'!$N$6)","v":0},{"$f":"valuePL(I7,'Utility Functions'!$O$3:$O$6,'Utility Functions'!$P$3:$P$6)","v":0.04},{"$f":"valuePL(J7,'Utility Functions'!$Q$3:$Q$6,'Utility Functions'!$R$3:$R$6)","v":0.04},{"$f":"valuePL(K7,'Utility Functions'!$S$3:$S$7,'Utility Functions'!$T$3:$T$7)","v":0},{"$f":"valueE(L7,'Utility Functions'!$V$3,'Utility Functions'!$V$4,'Utility Functions'!$V$5,'Utility Functions'!$V$6)","v":0},{"$f":"valuePL(M7,'Utility Functions'!$W$3:$W$6,'Utility Functions'!$X$3:$X$6)","v":0},{"$f":"valueE(N7,'Utility Functions'!$Z$3,'Utility Functions'!$Z$4,'Utility Functions'!$Z$5,'Utility Functions'!$Z$6)","v":0},{"$f":"valuePL(O7,'Utility Functions'!$AA$3:$AA$5,'Utility Functions'!$AB$3:$AB$5)","v":0},{"$f":"valuePL(P7,'Utility Functions'!$AC$3:$AC$7,'Utility Functions'!$AD$3:$AD$7)","v":0},{"$f":"valuePL(Q7,'Utility Functions'!$AE$3:$AE$6,'Utility Functions'!$AF$3:$AF$6)","v":0.1},{"$f":"valuePL(R7,'Utility Functions'!$AG$3:$AG$6,'Utility Functions'!$AH$3:$AH$6)","v":0},{"$f":"valuePL(S7,'Utility Functions'!$AI$3:$AI$6,'Utility Functions'!$AJ$3:$AJ$6)","v":1},{"$f":"valuePL(T7,'Utility Functions'!$AK$3:$AK$8,'Utility Functions'!$AL$3:$AL$8)","v":0.6},{"$f":"valuePL(U7,'Utility Functions'!$AM$3:$AM$5,'Utility Functions'!$AN$3:$AN$5)","v":0},{"$f":"valuePL(V7,'Utility Functions'!$AO$3:$AO$5,'Utility Functions'!$AP$3:$AP$5)","v":0},{"$f":"valuePL(W7,'Utility Functions'!$AQ$3:$AQ$6,'Utility Functions'!$AR$3:$AR$6)","v":0},{"$f":"valuePL(X7,'Utility Functions'!$AS$3:$AS$6,'Utility Functions'!$AT$3:$AT$6)","v":1},{"$f":"valuePL(Y7,'Utility Functions'!$AU$3:$AU$6,'Utility Functions'!$AV$3:$AV$6)","v":0},{"$f":"valuePL(Z7,'Utility Functions'!$AW$3:$AW$5,'Utility Functions'!$AX$3:$AX$5)","v":0},{"$f":"valuePL(AA7,'Utility Functions'!$AY$3:$AY$6,'Utility Functions'!$AZ$3:$AZ$6)","v":0},{"$f":"valuePL(AB7,'Utility Functions'!$BA$3:$BA$5,'Utility Functions'!$BB$3:$BB$5)","v":1},{"$f":"valuePL(AC7,'Utility Functions'!$BC$3:$BC$5,'Utility Functions'!$BD$3:$BD$5)","v":0.25},5.9008471271383875,null,5.9008471271383875,1.8708471271383869,0.08,0,1.7000000000000002,2.25]
[7,{"$f":"valueE(B8,'Utility Functions'!$B$3,'Utility Functions'!$B$4,'Utility Functions'!$B$5,'Utility Functions'!$B$6)","v":0.99997108261728973},{"$f":"valueE(C8,'Utility Functions'!$D$3,'Utility Functions'!$D$4,'Utility Functions'!$D$5,'Utility Functions'!$D$6)","v":0.84744836833951609},{"$f":"valuePL(D8,'Utility Functions'!$E$3:$E$5,'Utility Functions'!$F$3:$F$5)","v":0},{"$f":"valuePL(E8,'Utility Functions'!$G$3:$G$5,'Utility Functions'!$H$3:$H$5)","v":1},{"$f":"valuePL(F8,'Utility Functions'!$I$3:$I$4,'Utility Functions'!$J$3:$J$5)","v":0},{"$f":"valueE(G8,'Utility Functions'!$L$3,'Utility Functions'!$L$4,'Utility Functions'!$L$5,'Utility Functions'!$L$6)","v":0},{"$f":"valueE(H8,'Utility Functions'!$N$3,'Utility Functions'!$N$4,'Utility Functions'!$N$5,'Utility Functions'!$N$6)","v":0},{"$f":"valuePL(I8,'Utility Functions'!$O$3:$O$6,'Utility Functions'!$P$3:$P$6)","v":1},{"$f":"valuePL(J8,'Utility Functions'!$Q$3:$Q$6,'Utility Functions'!$R$3:$R$6)","v":0.67272727272727273},{"$f":"valuePL(K8,'Utility Functions'!$S$3:$S$7,'Utility Functions'!$T$3:$T$7)","v":1},{"$f":"valueE(L8,'Utility Functions'!$V$3,'Utility Functions'!$V$4,'Utility Functions'!$V$5,'Utility Functions'!$V$6)","v":1},{"$f":"valuePL(M8,'Utility Functions'!$W$3:$W$6,'Utility Functions'!$X$3:$X$6)","v":0.67272727272727273},{"$f":"valueE(N8,'Utility Functions'!$Z$3,'Utility Functions'!$Z$4,'Utility Functions'!$Z$5,'Utility Functions'!$Z$6)","v":1},{"$f":"valuePL(O8,'Utility Functions'!$AA$3:$AA$5,'Utility Functions'!$AB$3:$AB$5)","v":0.25},{"$f":"valuePL(P8,'Utility Functions'!$AC$3:$AC$7,'Utility Functions'!$AD$3:$AD$7)","v":0},{"$f":"valuePL(Q8,'Utility Functions'!$AE$3:$AE$6,'Utility Functions'!$AF$3:$AF$6)","v":0},{"$f":"valuePL(R8,'Utility Functions'!$AG$3:$AG$6,'Utility Functions'!$AH$3:$AH$6)","v":1},{"$f":"valuePL(S8,'Utility Functions'!$AI$3:$AI$6,'Utility Functions'!$AJ$3:$AJ$6)","v":1},{"$f":"valuePL(T8,'Utility Functions'!$AK$3:$AK$8,'Utility Functions'!$AL$3:$AL$8)","v":0},{"$f":"valuePL(U8,'Utility Functions'!$AM$3:$AM$5,'Utility Functions'!$AN$3:$AN$5)","v":0},{"$f":"valuePL(V8,'Utility Functions'!$AO$3:$AO$5,'Utility Functions'!$AP$3:$AP$5)","v":1},{"$f":"valuePL(W8,'Utility Functions'!$AQ$3:$AQ$6,'Utility Functions'!$AR$3:$AR$6)","v":0},{"$f":"valuePL(X8,'Utility Functions'!$AS$3:$AS$6,'Utility Functions'!$AT$3:$AT$6)","v":0.2},{"$f":"valuePL(Y8,'Utility Functions'!$AU$3:$AU$6,'Utility Functions'!$AV$3:$AV$6)","v":1},{"$f":"valuePL(Z8,'Utility Functions'!$AW$3:$AW$5,'Utility Functions'!$AX$3:$AX$5)","v":1},{"$f":"valuePL(AA8,'Utility Functions'!$AY$3:$AY$6,'Utility Functions'!$AZ$3:$AZ$6)","v":0.89999999999999991},{"$f":"valuePL(AB8,'Utility Functions'!$BA$3:$BA$5,'Utility Functions'!$BB$3:$BB$5)","v":0},{"$f":"valuePL(AC8,'Utility Functions'!$BC$3:$BC$5,'Utility Functions'!$BD$3:$BD$5)","v":1},15.54287399641135,null,15.54287399641135,2.8474194509568056,4.3454545454545457,1.25,2,5.0999999999999996]
[8,{"$f":"valueE(B9,'Utility Functions'!$B$3,'Utility Functions'!$B$4,'Utility Functions'!$B$5,'Utility Functions'!$B$6)","v":0.4511890475224023},{"$f":"valueE(C9,'Utility Functions'!$D$3,'Utility Functions'!$D$4,'Utility Functions'!$D$5,'Utility Functions'!$D$6)","v":0.84744836833951609},{"$f":"valuePL(D9,'Utility Functions'!$E$3:$E$5,'Utility Functions'!$F$3:$F$5)","v":1},{"$f":"valuePL(E9,'Utility Functions'!$G$3:$G$5,'Utility Functions'!$H$3:$H$5)","v":0.5},{"$f":"valuePL(F9,'Utility Functions'!$I$3:$I$4,'Utility Functions'!$J$3:$J$5)","v":1},{"$f":"valueE(G9,'Utility Functions'!$L$3,'Utility Functions'!$L$4,'Utility Functions'!$L$5,'Utility Functions'!$L$6)","v":0},{"$f":"valueE(H9,'Utility Functions'!$N$3,'Utility Functions'!$N$4,'Utility Functions'!$N$5,'Utility Functions'!$N$6)","v":0},{"$f":"valuePL(I9,'Utility Functions'!$O$3:$O$6,'Utility Functions'!$P$3:$P$6)","v":5.6000000000000008E-2},{"$f":"valuePL(J9,'Utility Functions'!$Q$3:$Q$6,'Utility Functions'!$R$3:$R$6)","v":0.83636363636363631},{"$f":"valuePL(K9,'Utility Functions'!$S$3:$S$7,'Utility Functions'!$T$3:$T$7)","v":0},{"$f":"valueE(L9,'Utility Functions'!$V$3,'Utility Functions'!$V$4,'Utility Functions'!$V$5,'Utility Functions'!$V$6)","v":1},{"$f":"valuePL(M9,'Utility Functions'!$W$3:$W$6,'Utility Functions'!$X$3:$X$6)","v":0.83636363636363631},{"$f":"valueE(N9,'Utility Functions'!$Z$3,'Utility Functions'!$Z$4,'Utility Functions'!$Z$5,'Utility Functions'!$Z$6)","v":0},{"$f":"valuePL(O9,'Utility Functions'!$AA$3:$AA$5,'Utility Functions'!$AB$3:$AB$5)","v":0},{"$f":"valuePL(P9,'Utility Functions'!$AC$3:$AC$7,'Utility Functions'!$AD$3:$AD$7)","v":0},{"$f":"valuePL(Q9,'Utility Functions'!$AE$3:$AE$6,'Utility Functions'!$AF$3:$AF$6)","v":1},{"$f":"valuePL(R9,'Utility Functions'!$AG$3:$AG$6,'Utility Functions'!$AH$3:$AH$6)","v":0.2},{"$f":"valuePL(S9,'Utility Functions'!$AI$3:$AI$6,'Utility Functions'!$AJ$3:$AJ$6)","v":1},{"$f":"valuePL(T9,'Utility Functions'!$AK$3:$AK$8,'Utility Functions'!$AL$3:$AL$8)","v":0},{"$f":"valuePL(U9,'Utility Functions'!$AM$3:$AM$5,'Utility Functions'!$AN$3:$AN$5)","v":0},{"$f":"valuePL(V9,'Utility Functions'!$AO$3:$AO$5,'Utility Functions'!$AP$3:$AP$5)","v":1},{"$f":"valuePL(W9,'Utility Functions'!$AQ$3:$AQ$6,'Utility Functions'!$AR$3:$AR$6)","v":1},{"$f":"valuePL(X9,'Utility Functions'!$AS$3:$AS$6,'Utility Functions'!$AT$3:$AT$6)","v":1},{"$f":"valuePL(Y9,'Utility Functions'!$AU$3:$AU$6,'Utility Functions'!$AV$3:$AV$6)","v":1},{"$f":"valuePL(Z9,'Utility Functions'!$AW$3:$AW$5,'Utility Functions'!$AX$3:$AX$5)","v":1},{"$f":"valuePL(AA9,'Utility Functions'!$AY$3:$AY$6,'Utility Functions'!$AZ$3:$AZ$6)","v":0},{"$f":"valuePL(AB9,'Utility Functions'!$BA$3:$BA$5,'Utility Functions'!$BB$3:$BB$5)","v":0.25},{"$f":"valuePL(AC9,'Utility Functions'!$BC$3:$BC$5,'Utility Functions'!$BD$3:$BD$5)","v":0.25},14.227364688589191,null,14.227364688589191,3.7986374158619185,2.7287272727272729,0,2.2000000000000002,5.5]
[9,{"$f":"valueE(B10,'Utility Functions'!$B$3,'Utility Functions'!$B$4,'Utility Functions'!$B$5,'Utility Functions'!$B$6)","v":0.83470237647280454},{"$f":"valueE(C10,'Utility Functions'!$D$3,'Utility Functions'!$D$4,'Utility Functions'!$D$5,'Utility Functions'!$D$6)","v":0.78989979019422951},{"$f":"valuePL(D10,'Utility Functions'!$E$3:$E$5,'Utility Functions'!$F$3:$F$5)","v":1},{"$f":"valuePL(E10,'Utility Functions'!$G$3:$G$5,'Utility Functions'!$H$3:$H$5)","v":0.5},{"$f":"valuePL(F10,'Utility Functions'!$I$3:$I$4,'Utility Functions'!$J$3:$J$5)","v":0},{"$f":"valueE(G10,'Utility Functions'!$L$3,'Utility Functions'!$L$4,'Utility Functions'!$L$5,'Utility Functions'!$L$6)","v":0.37634408602150538},{"$f":"valueE(H10,'Utility Functions'!$N$3,'Utility Functions'!$N$4,'Utility Functions'!$N$5,'Utility Functions'!$N$6)","v":0.13282732447817835},{"$f":"valuePL(I10,'Utility Functions'!$O$3:$O$6,'Utility Functions'!$P$3:$P$6)","v":0},{"$f":"valuePL(J10,'Utility Functions'!$Q$3:$Q$6,'Utility Functions'!$R$3:$R$6)","v":0},{"$f":"valuePL(K10,'Utility Functions'!$S$3:$S$7,'Utility Functions'!$T$3:$T$7)","v":0},{"$f":"valueE(L10,'Utility Functions'!$V$3,'Utility Functions'!$V$4,'Utility Functions'!$V$5,'Utility Functions'!$V$6)","v":0},{"$f":"valuePL(M10,'Utility Functions'!$W$3:$W$6,'Utility Functions'!$X$3:$X$6)","v":0},{"$f":"valueE(N10,'Utility Functions'!$Z$3,'Utility Functions'!$Z$4,'Utility Functions'!$Z$5,'Utility Functions'!$Z$6)","v":0},{"$f":"valuePL(O10,'Utility Functions'!$AA$3:$AA$5,'Utility Functions'!$AB$3:$AB$5)","v":0},{"$f":"valuePL(P10,'Utility Functions'!$AC$3:$AC$7,'Utility Functions'!$AD$3:$AD$7)","v":0.75},{"$f":"valuePL(Q10,'Utility Functions'!$AE$3:$AE$6,'Utility Functions'!$AF$3:$AF$6)","v":0},{"$f":"valuePL(R10,'Utility Functions'!$AG$3:$AG$6,'Utility Functions'!$AH$3:$AH$6)","v":1},{"$f":"valuePL(S10,'Utility Functions'!$AI$3:$AI$6,'Utility Functions'!$AJ$3:$AJ$6)","v":0.66},{"$f":"valuePL(T10,'Utility Functions'!$AK$3:$AK$8,'Utility Functions'!$AL$3:$AL$8)","v":0.2},{"$f":"valuePL(U10,'Utility Functions'!$AM$3:$AM$5,'Utility Functions'!$AN$3:$AN$5)","v":0},{"$f":"valuePL(V10,'Utility Functions'!$AO$3:$AO$5,'Utility Functions'!$AP$3:$AP$5)","v":1},{"$f":"valuePL(W10,'Utility Functions'!$AQ$3:$AQ$6,'Utility Functions'!$AR$3:$AR$6)","v":1},{"$f":"valuePL(X10,'Utility Functions'!$AS$3:$AS$6,'Utility Functions'!$AT$3:$AT$6)","v":1},{"$f":"valuePL(Y10,'Utility Functions'!$AU$3:$AU$6,'Utility Functions'!$AV$3:$AV$6)","v":0.2},{"$f":"valuePL(Z10,'Utility Functions'!$AW$3:$AW$5,'Utility Functions'!$AX$3:$AX$5)","v":1},{"$f":"valuePL(AA10,'Utility Functions'!$AY$3:$AY$6,'Utility Functions'!$AZ$3:$AZ$6)","v":0.2},{"$f":"valuePL(AB10,'Utility Functions'!$BA$3:$BA$5,'Utility Functions'!$BB$3:$BB$5)","v":0.25},{"$f":"valuePL(AC10,'Utility Functions'!$BC$3:$BC$5,'Utility Functions'!$BD$3:$BD$5)","v":1},11.893773577166716,null,11.893773577166719,3.1246021666670343,0.50917141049968373,0,2.6100000000000003,5.65]
[10,{"$f":"valueE(B11,'Utility Functions'!$B$3,'Utility Functions'!$B$4,'Utility Functions'!$B$5,'Utility Functions'!$B$6)","v":0},{"$f":"valueE(C11,'Utility Functions'!$D$3,'Utility Functions'!$D$4,'Utility Functions'!$D$5,'Utility Functions'!$D$6)","v":0},{"$f":"valuePL(D11,'Utility Functions'!$E$3:$E$5,'Utility Functions'!$F$3:$F$5)","v":0},{"$f":"valuePL(E11,'Utility Functions'!$G$3:$G$5,'Utility Functions'!$H$3:$H$5)","v":0},{"$f":"valuePL(F11,'Utility Functions'!$I$3:$I$4,'Utility Functions'!$J$3:$J$5)","v":0},{"$f":"valueE(G11,'Utility Functions'!$L$3,'Utility Functions'!$L$4,'Utility Functions'!$L$5,'Utility Functions'!$L$6)","v":0},{"$f":"valueE(H11,'Utility Functions'!$N$3,'Utility Functions'!$N$4,'Utility Functions'!$N$5,'Utility Functions'!$N$6)","v":0},{"$f":"valuePL(I11,'Utility Functions'!$O$3:$O$6,'Utility Functions'!$P$3:$P$6)","v":0},{"$f":"valuePL(J11,'Utility Functions'!$Q$3:$Q$6,'Utility Functions'!$R$3:$R$6)","v":0},{"$f":"valuePL(K11,'Utility Functions'!$S$3:$S$7,'Utility Functions'!$T$3:$T$7)","v":0},{"$f":"valueE(L11,'Utility Functions'!$V$3,'Utility Functions'!$V$4,'Utility Functions'!$V$5,'Utility Functions'!$V$6)","v":0},{"$f":"valuePL(M11,'Utility Functions'!$W$3:$W$6,'Utility Functions'!$X$3:$X$6)","v":0},{"$f":"valueE(N11,'Utility Functions'!$Z$3,'Utility Functions'!$Z$4,'Utility Functions'!$Z$5,'Utility Functions'!$Z$6)","v":0.75},{"$f":"valuePL(O11,'Utility Functions'!$AA$3:$AA$5,'Utility Functions'!$AB$3:$AB$5)","v":1},{"$f":"valuePL(P11,'Utility Functions'!$AC$3:$AC$7,'Utility Functions'!$AD$3:$AD$7)","v":0.25},{"$f":"valuePL(Q11,'Utility Functions'!$AE$3:$AE$6,'Utility Functions'!$AF$3:$AF$6)","v":0.5},{"$f":"valuePL(R11,'Utility Functions'!$AG$3:$AG$6,'Utility Functions'!$AH$3:$AH$6)","v":1},{"$f":"valuePL(S11,'Utility Functions'!$AI$3:$AI$6,'Utility Functions'!$AJ$3:$AJ$6)","v":0.66},{"$f":"valuePL(T11,'Utility Functions'!$AK$3:$AK$8,'Utility Functions'!$AL$3:$AL$8)","v":0.4},{"$f":"valuePL(U11,'Utility Functions'!$AM$3:$AM$5,'Utility Functions'!$AN$3:$AN$5)","v":0},{"$f":"valuePL(V11,'Utility Functions'!$AO$3:$AO$5,'Utility Functions'!$AP$3:$AP$5)","v":0},{"$f":"valuePL(W11,'Utility Functions'!$AQ$3:$AQ$6,'Utility Functions'!$AR$3:$AR$6)","v":0.75},{"$f":"valuePL(X11,'Utility Functions'!$AS$3:$AS$6,'Utility Functions'!$AT$3:$AT$6)","v":1},{"$f":"valuePL(Y11,'Utility Functions'!$AU$3:$AU$6,'Utility Functions'!$AV$3:$AV$6)","v":1},{"$f":"valuePL(Z11,'Utility Functions'!$AW$3:$AW$5,'Utility Functions'!$AX$3:$AX$5)","v":0.5},{"$f":"valuePL(AA11,'Utility Functions'!$AY$3:$AY$6,'Utility Functions'!$AZ$3:$AZ$6)","v":0.2},{"$f":"valuePL(AB11,'Utility Functions'!$BA$3:$BA$5,'Utility Functions'!$BB$3:$BB$5)","v":0},{"$f":"valuePL(AC11,'Utility Functions'!$BC$3:$BC$5,'Utility Functions'!$BD$3:$BD$5)","v":1},9.01,null,9.0100000000000016,0,0,1.75,2.81,4.45]
[11,{"$f":"valueE(B12,'Utility Functions'!$B$3,'Utility Functions'!$B$4,'Utility Functions'!$B$5,'Utility Functions'!$B$6)","v":0},{"$f":"valueE(C12,'Utility Functions'!$D$3,'Utility Functions'!$D$4,'Utility Functions'!$D$5,'Utility Functions'!$D$6)","v":0},{"$f":"valuePL(D12,'Utility Functions'!$E$3:$E$5,'Utility Functions'!$F$3:$F$5)","v":0},{"$f":"valuePL(E12,'Utility Functions'!$G$3:$G$5,'Utility Functions'!$H$3:$H$5)","v":0},{"$f":"valuePL(F12,'Utility Functions'!$I$3:$I$4,'Utility Functions'!$J$3:$J$5)","v":0},{"$f":"valueE(G12,'Utility Functions'!$L$3,'Utility Functions'!$L$4,'Utility Functions'!$L$5,'Utility Functions'!$L$6)","v":3.2258064516129031E-2},{"$f":"valueE(H12,'Utility Functions'!$N$3,'Utility Functions'!$N$4,'Utility Functions'!$N$5,'Utility Functions'!$N$6)","v":9.6774193548387094E-2},{"$f":"valuePL(I12,'Utility Functions'!$O$3:$O$6,'Utility Functions'!$P$3:$P$6)","v":0.54181818181818187},{"$f":"valuePL(J12,'Utility Functions'!$Q$3:$Q$6,'Utility Functions'!$R$3:$R$6)","v":0.91818181818181821},{"$f":"valuePL(K12,'Utility Functions'!$S$3:$S$7,'Utility Functions'!$T$3:$T$7)","v":0.54181818181818187},{"$f":"valueE(L12,'Utility Functions'!$V$3,'Utility Functions'!$V$4,'Utility Functions'!$V$5,'Utility Functions'!$V$6)","v":1},{"$f":"valuePL(M12,'Utility Functions'!$W$3:$W$6,'Utility Functions'!$X$3:$X$6)","v":0.91818181818181821},{"$f":"valueE(N12,'Utility Functions'!$Z$3,'Utility Functions'!$Z$4,'Utility Functions'!$Z$5,'Utility Functions'!$Z$6)","v":0.375},{"$f":"valuePL(O12,'Utility Functions'!$AA$3:$AA$5,'Utility Functions'!$AB$3:$AB$5)","v":0.25},{"$f":"valuePL(P12,'Utility Functions'!$AC$3:$AC$7,'Utility Functions'!$AD$3:$AD$7)","v":0.25},{"$f":"valuePL(Q12,'Utility Functions'!$AE$3:$AE$6,'Utility Functions'!$AF$3:$AF$6)","v":0},{"$f":"valuePL(R12,'Utility Functions'!$AG$3:$AG$6,'Utility Functions'!$AH$3:$AH$6)","v":1},{"$f":"valuePL(S12,'Utility Functions'!$AI$3:$AI$6,'Utility Functions'!$AJ$3:$AJ$6)","v":1},{"$f":"valuePL(T12,'Utility Functions'!$AK$3:$AK$8,'Utility Functions'!$AL$3:$AL$8)","v":0.4},{"$f":"valuePL(U12,'Utility Functions'!$AM$3:$AM$5,'Utility Functions'!$AN$3:$AN$5)","v":1},{"$f":"valuePL(V12,'Utility Functions'!$AO$3:$AO$5,'Utility Functions'!$AP$3:$AP$5)","v":1},{"$f":"valuePL(W12,'Utility Functions'!$AQ$3:$AQ$6,'Utility Functions'!$AR$3:$AR$6)","v":0.2},{"$f":"valuePL(X12,'Utility Functions'!$AS$3:$AS$6,'Utility Functions'!$AT$3:$AT$6)","v":1},{"$f":"valuePL(Y12,'Utility Functions'!$AU$3:$AU$6,'Utility Functions'!$AV$3:$AV$6)","v":1},{"$f":"valuePL(Z12,'Utility Functions'!$AW$3:$AW$5,'Utility Functions'!$AX$3:$AX$5)","v":0.5},{"$f":"valuePL(AA12,'Utility Functions'!$AY$3:$AY$6,'Utility Functions'!$AZ$3:$AZ$6)","v":0.89999999999999991},{"$f":"valuePL(AB12,'Utility Functions'!$BA$3:$BA$5,'Utility Functions'!$BB$3:$BB$5)","v":0},{"$f":"valuePL(AC12,'Utility Functions'!$BC$3:$BC$5,'Utility Functions'!$BD$3:$BD$5)","v":0.25},13.174032258064516,null,13.174032258064516,0,4.0490322580645159,0.625,3.65,4.8499999999999996]
[12,{"$f":"valueE(B13,'Utility Functions'!$B$3,'Utility Functions'!$B$4,'Utility Functions'!$B$5,'Utility Functions'!$B$6)","v":0.32968045347775865},{"$f":"valueE(C13,'Utility Functions'!$D$3,'Utility Functions'!$D$4,'Utility Functions'!$D$5,'Utility Functions'!$D$6)","v":0.78989979019422951},{"$f":"valuePL(D13,'Utility Functions'!$E$3:$E$5,'Utility Functions'!$F$3:$F$5)","v":1},{"$f":"valuePL(E13,'Utility Functions'!$G$3:$G$5,'Utility Functions'!$H$3:$H$5)","v":0.5},{"$f":"valuePL(F13,'Utility Functions'!$I$3:$I$4,'Utility Functions'!$J$3:$J$5)","v":0},{"$f":"valueE(G13,'Utility Functions'!$L$3,'Utility Functions'!$L$4,'Utility Functions'!$L$5,'Utility Functions'!$L$6)","v":0},{"$f":"valueE(H13,'Utility Functions'!$N$3,'Utility Functions'!$N$4,'Utility Functions'!$N$5,'Utility Functions'!$N$6)","v":0},{"$f":"valuePL(I13,'Utility Functions'!$O$3:$O$6,'Utility Functions'!$P$3:$P$6)","v":0},{"$f":"valuePL(J13,'Utility Functions'!$Q$3:$Q$6,'Utility Functions'!$R$3:$R$6)","v":0},{"$f":"valuePL(K13,'Utility Functions'!$S$3:$S$7,'Utility Functions'!$T$3:$T$7)","v":0},{"$f":"valueE(L13,'Utility Functions'!$V$3,'Utility Functions'!$V$4,'Utility Functions'!$V$5,'Utility Functions'!$V$6)","v":0},{"$f":"valuePL(M13,'Utility Functions'!$W$3:$W$6,'Utility Functions'!$X$3:$X$6)","v":0},{"$f":"valueE(N13,'Utility Functions'!$Z$3,'Utility Functions'!$Z$4,'Utility Functions'!$Z$5,'Utility Functions'!$Z$6)","v":0},{"$f":"valuePL(O13,'Utility Functions'!$AA$3:$AA$5,'Utility Functions'!$AB$3:$AB$5)","v":0},{"$f":"valuePL(P13,'Utility Functions'!$AC$3:$AC$7,'Utility Functions'!$AD$3:$AD$7)","v":0},{"$f":"valuePL(Q13,'Utility Functions'!$AE$3:$AE$6,'Utility Functions'!$AF$3:$AF$6)","v":0.1},{"$f":"valuePL(R13,'Utility Functions'!$AG$3:$AG$6,'Utility Functions'!$AH$3:$AH$6)","v":1},{"$f":"valuePL(S13,'Utility Functions'!$AI$3:$AI$6,'Utility Functions'!$AJ$3:$AJ$6)","v":1},{"$f":"valuePL(T13,'Utility Functions'!$AK$3:$AK$8,'Utility Functions'!$AL$3:$AL$8)","v":0.6},{"$f":"valuePL(U13,'Utility Functions'!$AM$3:$AM$5,'Utility Functions'!$AN$3:$AN$5)","v":0},{"$f":"valuePL(V13,'Utility Functions'!$AO$3:$AO$5,'Utility Functions'!$AP$3:$AP$5)","v":0.5},{"$f":"valuePL(W13,'Utility Functions'!$AQ$3:$AQ$6,'Utility Functions'!$AR$3:$AR$6)","v":0.2},{"$f":"valuePL(X13,'Utility Functions'!$AS$3:$AS$6,'Utility Functions'!$AT$3:$AT$6)","v":1},{"$f":"valuePL(Y13,'Utility Functions'!$AU$3:$AU$6,'Utility Functions'!$AV$3:$AV$6)","v":0.2},{"$f":"valuePL(Z13,'Utility Functions'!$AW$3:$AW$5,'Utility Functions'!$AX$3:$AX$5)","v":1},{"$f":"valuePL(AA13,'Utility Functions'!$AY$3:$AY$6,'Utility Functions'!$AZ$3:$AZ$6)","v":0.2},{"$f":"valuePL(AB13,'Utility Functions'!$BA$3:$BA$5,'Utility Functions'!$BB$3:$BB$5)","v":1},{"$f":"valuePL(AC13,'Utility Functions'!$BC$3:$BC$5,'Utility Functions'!$BD$3:$BD$5)","v":0},9.4195802436719873,null,9.4195802436719873,2.6195802436719884,0,0,2.7,4.0999999999999996]
[13,{"$f":"valueE(B14,'Utility Functions'!$B$3,'Utility Functions'!$B$4,'Utility Functions'!$B$5,'Utility Functions'!$B$6)","v":0},{"$f":"valueE(C14,'Utility Functions'!$D$3,'Utility Functions'!$D$4,'Utility Functions'!$D$5,'Utility Functions'!$D$6)","v":0},{"$f":"valuePL(D14,'Utility Functions'!$E$3:$E$5,'Utility Functions'!$F$3:$F$5)","v":0},{"$f":"valuePL(E14,'Utility Functions'!$G$3:$G$5,'Utility Functions'!$H$3:$H$5)","v":0},{"$f":"valuePL(F14,'Utility Functions'!$I$3:$I$4,'Utility Functions'!$J$3:$J$5)","v":0},{"$f":"valueE(G14,'Utility Functions'!$L$3,'Utility Functions'!$L$4,'Utility Functions'!$L$5,'Utility Functions'!$L$6)","v":0},{"$f":"valueE(H14,'Utility Functions'!$N$3,'Utility Functions'!$N$4,'Utility Functions'!$N$5,'Utility Functions'!$N$6)","v":1.1385199240986717E-2},{"$f":"valuePL(I14,'Utility Functions'!$O$3:$O$6,'Utility Functions'!$P$3:$P$6)","v":0.3290909090909091},{"$f":"valuePL(J14,'Utility Functions'!$Q$3:$Q$6,'Utility Functions'!$R$3:$R$6)","v":0.04},{"$f":"valuePL(K14,'Utility Functions'!$S$3:$S$7,'Utility Functions'!$T$3:$T$7)","v":0.3290909090909091},{"$f":"valueE(L14,'Utility Functions'!$V$3,'Utility Functions'!$V$4,'Utility Functions'!$V$5,'Utility Functions'!$V$6)","v":1},{"$f":"valuePL(M14,'Utility Functions'!$W$3:$W$6,'Utility Functions'!$X$3:$X$6)","v":0.04},{"$f":"valueE(N14,'Utility Functions'!$Z$3,'Utility Functions'!$Z$4,'Utility Functions'!$Z$5,'Utility Functions'!$Z$6)","v":0.875},{"$f":"valuePL(O14,'Utility Functions'!$AA$3:$AA$5,'Utility Functions'!$AB$3:$AB$5)","v":0.25},{"$f":"valuePL(P14,'Utility Functions'!$AC$3:$AC$7,'Utility Functions'!$AD$3:$AD$7)","v":0.25},{"$f":"valuePL(Q14,'Utility Functions'!$AE$3:$AE$6,'Utility Functions'!$AF$3:$AF$6)","v":0},{"$f":"valuePL(R14,'Utility Functions'!$AG$3:$AG$6,'Utility Functions'!$AH$3:$AH$6)","v":1},{"$f":"valuePL(S14,'Utility Functions'!$AI$3:$AI$6,'Utility Functions'!$AJ$3:$AJ$6)","v":1},{"$f":"valuePL(T14,'Utility Functions'!$AK$3:$AK$8,'Utility Functions'!$AL$3:$AL$8)","v":0},{"$f":"valuePL(U14,'Utility Functions'!$AM$3:$AM$5,'Utility Functions'!$AN$3:$AN$5)","v":0},{"$f":"valuePL(V14,'Utility Functions'!$AO$3:$AO$5,'Utility Functions'!$AP$3:$AP$5)","v":0.5},{"$f":"valuePL(W14,'Utility Functions'!$AQ$3:$AQ$6,'Utility Functions'!$AR$3:$AR$6)","v":0},{"$f":"valuePL(X14,'Utility Functions'!$AS$3:$AS$6,'Utility Functions'!$AT$3:$AT$6)","v":0.2},{"$f":"valuePL(Y14,'Utility Functions'!$AU$3:$AU$6,'Utility Functions'!$AV$3:$AV$6)","v":0},{"$f":"valuePL(Z14,'Utility Functions'!$AW$3:$AW$5,'Utility Functions'!$AX$3:$AX$5)","v":1},{"$f":"valuePL(AA14,'Utility Functions'!$AY$3:$AY$6,'Utility Functions'!$AZ$3:$AZ$6)","v":0.2},{"$f":"valuePL(AB14,'Utility Functions'!$BA$3:$BA$5,'Utility Functions'!$BB$3:$BB$5)","v":0.25},{"$f":"valuePL(AC14,'Utility Functions'!$BC$3:$BC$5,'Utility Functions'!$BD$3:$BD$5)","v":0.25},7.5245670174228056,null,7.5245670174228056,0,1.7495670174228048,1.125,2.25,2.4]
[14,{"$f":"valueE(B15,'Utility Functions'!$B$3,'Utility Functions'!$B$4,'Utility Functions'!$B$5,'Utility Functions'!$B$6)","v":0.69880684688087746},{"$f":"valueE(C15,'Utility Functions'!$D$3,'Utility Functions'!$D$4,'Utility Functions'!$D$5,'Utility Functions'!$D$6)","v":0.78989979019422951},{"$f":"valuePL(D15,'Utility Functions'!$E$3:$E$5,'Utility Functions'!$F$3:$F$5)","v":0.5},{"$f":"valuePL(E15,'Utility Functions'!$G$3:$G$5,'Utility Functions'!$H$3:$H$5)","v":0.5},{"$f":"valuePL(F15,'Utility Functions'!$I$3:$I$4,'Utility Functions'!$J$3:$J$5)","v":0},{"$f":"valueE(G15,'Utility Functions'!$L$3,'Utility Functions'!$L$4,'Utility Functions'!$L$5,'Utility Functions'!$L$6)","v":0},{"$f":"valueE(H15,'Utility Functions'!$N$3,'Utility Functions'!$N$4,'Utility Functions'!$N$5,'Utility Functions'!$N$6)","v":0},{"$f":"valuePL(I15,'Utility Functions'!$O$3:$O$6,'Utility Functions'!$P$3:$P$6)","v":0},{"$f":"valuePL(J15,'Utility Functions'!$Q$3:$Q$6,'Utility Functions'!$R$3:$R$6)","v":0},{"$f":"valuePL(K15,'Utility Functions'!$S$3:$S$7,'Utility Functions'!$T$3:$T$7)","v":0},{"$f":"valueE(L15,'Utility Functions'!$V$3,'Utility Functions'!$V$4,'Utility Functions'!$V$5,'Utility Functions'!$V$6)","v":0},{"$f":"valuePL(M15,'Utility Functions'!$W$3:$W$6,'Utility Functions'!$X$3:$X$6)","v":0},{"$f":"valueE(N15,'Utility Functions'!$Z$3,'Utility Functions'!$Z$4,'Utility Functions'!$Z$5,'Utility Functions'!$Z$6)","v":0.75},{"$f":"valuePL(O15,'Utility Functions'!$AA$3:$AA$5,'Utility Functions'!$AB$3:$AB$5)","v":0.25},{"$f":"valuePL(P15,'Utility Functions'!$AC$3:$AC$7,'Utility Functions'!$AD$3:$AD$7)","v":0.25},{"$f":"valuePL(Q15,'Utility Functions'!$AE$3:$AE$6,'Utility Functions'!$AF$3:$AF$6)","v":0},{"$f":"valuePL(R15,'Utility Functions'!$AG$3:$AG$6,'Utility Functions'!$AH$3:$AH$6)","v":1},{"$f":"valuePL(S15,'Utility Functions'!$AI$3:$AI$6,'Utility Functions'!$AJ$3:$AJ$6)","v":1},{"$f":"valuePL(T15,'Utility Functions'!$AK$3:$AK$8,'Utility Functions'!$AL$3:$AL$8)","v":0},{"$f":"valuePL(U15,'Utility Functions'!$AM$3:$AM$5,'Utility Functions'!$AN$3:$AN$5)","v":0},{"$f":"valuePL(V15,'Utility Functions'!$AO$3:$AO$5,'Utility Functions'!$AP$3:$AP$5)","v":0.5},{"$f":"valuePL(W15,'Utility Functions'!$AQ$3:$AQ$6,'Utility Functions'!$AR$3:$AR$6)","v":0.2},{"$f":"valuePL(X15,'Utility Functions'!$AS$3:$AS$6,'Utility Functions'!$AT$3:$AT$6)","v":1},{"$f":"valuePL(Y15,'Utility Functions'!$AU$3:$AU$6,'Utility Functions'!$AV$3:$AV$6)","v":1},{"$f":"valuePL(Z15,'Utility Functions'!$AW$3:$AW$5,'Utility Functions'!$AX$3:$AX$5)","v":0.5},{"$f":"valuePL(AA15,'Utility Functions'!$AY$3:$AY$6,'Utility Functions'!$AZ$3:$AZ$6)","v":0.89999999999999991},{"$f":"valuePL(AB15,'Utility Functions'!$BA$3:$BA$5,'Utility Functions'!$BB$3:$BB$5)","v":0.25},{"$f":"valuePL(AC15,'Utility Functions'!$BC$3:$BC$5,'Utility Functions'!$BD$3:$BD$5)","v":0.25},10.338706637075108,null,10.338706637075106,2.488706637075107,0,1,2.25,4.5999999999999996]
[15,{"$f":"valueE(B16,'Utility Functions'!$B$3,'Utility Functions'!$B$4,'Utility Functions'!$B$5,'Utility Functions'!$B$6)","v":0.98994966417177144},{"$f":"valueE(C16,'Utility Functions'!$D$3,'Utility Functions'!$D$4,'Utility Functions'!$D$5,'Utility Functions'!$D$6)","v":0.71352759724260828},{"$f":"valuePL(D16,'Utility Functions'!$E$3:$E$5,'Utility Functions'!$F$3:$F$5)","v":1},{"$f":"valuePL(E16,'Utility Functions'!$G$3:$G$5,'Utility Functions'!$H$3:$H$5)","v":0.5},{"$f":"valuePL(F16,'Utility Functions'!$I$3:$I$4,'Utility Functions'!$J$3:$J$5)","v":1},{"$f":"valueE(G16,'Utility Functions'!$L$3,'Utility Functions'!$L$4,'Utility Functions'!$L$5,'Utility Functions'!$L$6)","v":0},{"$f":"valueE(H16,'Utility Functions'!$N$3,'Utility Functions'!$N$4,'Utility Functions'!$N$5,'Utility Functions'!$N$6)","v":0},{"$f":"valuePL(I16,'Utility Functions'!$O$3:$O$6,'Utility Functions'!$P$3:$P$6)","v":9.2000000000000012E-2},{"$f":"valuePL(J16,'Utility Functions'!$Q$3:$Q$6,'Utility Functions'!$R$3:$R$6)","v":6.0000000000000012E-2},{"$f":"valuePL(K16,'Utility Functions'!$S$3:$S$7,'Utility Functions'!$T$3:$T$7)","v":6.0000000000000012E-2},{"$f":"valueE(L16,'Utility Functions'!$V$3,'Utility Functions'!$V$4,'Utility Functions'!$V$5,'Utility Functions'!$V$6)","v":1},{"$f":"valuePL(M16,'Utility Functions'!$W$3:$W$6,'Utility Functions'!$X$3:$X$6)","v":6.0000000000000012E-2},{"$f":"valueE(N16,'Utility Functions'!$Z$3,'Utility Functions'!$Z$4,'Utility Functions'!$Z$5,'Utility Functions'!$Z$6)","v":0.125},{"$f":"valuePL(O16,'Utility Functions'!$AA$3:$AA$5,'Utility Functions'!$AB$3:$AB$5)","v":1},{"$f":"valuePL(P16,'Utility Functions'!$AC$3:$AC$7,'Utility Functions'!$AD$3:$AD$7)","v":0.5},{"$f":"valuePL(Q16,'Utility Functions'!$AE$3:$AE$6,'Utility Functions'!$AF$3:$AF$6)","v":0},{"$f":"valuePL(R16,'Utility Functions'!$AG$3:$AG$6,'Utility Functions'!$AH$3:$AH$6)","v":0.8},{"$f":"valuePL(S16,'Utility Functions'!$AI$3:$AI$6,'Utility Functions'!$AJ$3:$AJ$6)","v":1},{"$f":"valuePL(T16,'Utility Functions'!$AK$3:$AK$8,'Utility Functions'!$AL$3:$AL$8)","v":0.6},{"$f":"valuePL(U16,'Utility Functions'!$AM$3:$AM$5,'Utility Functions'!$AN$3:$AN$5)","v":1},{"$f":"valuePL(V16,'Utility Functions'!$AO$3:$AO$5,'Utility Functions'!$AP$3:$AP$5)","v":0},{"$f":"valuePL(W16,'Utility Functions'!$AQ$3:$AQ$6,'Utility Functions'!$AR$3:$AR$6)","v":1},{"$f":"valuePL(X16,'Utility Functions'!$AS$3:$AS$6,'Utility Functions'!$AT$3:$AT$6)","v":0.2},{"$f":"valuePL(Y16,'Utility Functions'!$AU$3:$AU$6,'Utility Functions'!$AV$3:$AV$6)","v":0.2},{"$f":"valuePL(Z16,'Utility Functions'!$AW$3:$AW$5,'Utility Functions'!$AX$3:$AX$5)","v":1},{"$f":"valuePL(AA16,'Utility Functions'!$AY$3:$AY$6,'Utility Functions'!$AZ$3:$AZ$6)","v":1},{"$f":"valuePL(AB16,'Utility Functions'!$BA$3:$BA$5,'Utility Functions'!$BB$3:$BB$5)","v":1},{"$f":"valuePL(AC16,'Utility Functions'!$BC$3:$BC$5,'Utility Functions'!$BD$3:$BD$5)","v":0.25},15.150477261414375,null,15.15047726141438,4.2034772614143794,1.272,1.125,3.9,4.6500000000000004]
[16,{"$f":"valueE(B17,'Utility Functions'!$B$3,'Utility Functions'!$B$4,'Utility Functions'!$B$5,'Utility Functions'!$B$6)","v":0},{"$f":"valueE(C17,'Utility Functions'!$D$3,'Utility Functions'!$D$4,'Utility Functions'!$D$5,'Utility Functions'!$D$6)","v":0},{"$f":"valuePL(D17,'Utility Functions'!$E$3:$E$5,'Utility Functions'!$F$3:$F$5)","v":0},{"$f":"valuePL(E17,'Utility Functions'!$G$3:$G$5,'Utility Functions'!$H$3:$H$5)","v":0},{"$f":"valuePL(F17,'Utility Functions'!$I$3:$I$4,'Utility Functions'!$J$3:$J$5)","v":0},{"$f":"valueE(G17,'Utility Functions'!$L$3,'Utility Functions'!$L$4,'Utility Functions'!$L$5,'Utility Functions'!$L$6)","v":0},{"$f":"valueE(H17,'Utility Functions'!$N$3,'Utility Functions'!$N$4,'Utility Functions'!$N$5,'Utility Functions'!$N$6)","v":0},{"$f":"valuePL(I17,'Utility Functions'!$O$3:$O$6,'Utility Functions'!$P$3:$P$6)","v":1},{"$f":"valuePL(J17,'Utility Functions'!$Q$3:$Q$6,'Utility Functions'!$R$3:$R$6)","v":0.91818181818181821},{"$f":"valuePL(K17,'Utility Functions'!$S$3:$S$7,'Utility Functions'!$T$3:$T$7)","v":1},{"$f":"valueE(L17,'Utility Functions'!$V$3,'Utility Functions'!$V$4,'Utility Functions'!$V$5,'Utility Functions'!$V$6)","v":0.83333333333333337},{"$f":"valuePL(M17,'Utility Functions'!$W$3:$W$6,'Utility Functions'!$X$3:$X$6)","v":0.91818181818181821},{"$f":"valueE(N17,'Utility Functions'!$Z$3,'Utility Functions'!$Z$4,'Utility Functions'!$Z$5,'Utility Functions'!$Z$6)","v":0},{"$f":"valuePL(O17,'Utility Functions'!$AA$3:$AA$5,'Utility Functions'!$AB$3:$AB$5)","v":0},{"$f":"valuePL(P17,'Utility Functions'!$AC$3:$AC$7,'Utility Functions'!$AD$3:$AD$7)","v":0.75},{"$f":"valuePL(Q17,'Utility Functions'!$AE$3:$AE$6,'Utility Functions'!$AF$3:$AF$6)","v":0},{"$f":"valuePL(R17,'Utility Functions'!$AG$3:$AG$6,'Utility Functions'!$AH$3:$AH$6)","v":1},{"$f":"valuePL(S17,'Utility Functions'!$AI$3:$AI$6,'Utility Functions'!$AJ$3:$AJ$6)","v":1},{"$f":"valuePL(T17,'Utility Functions'!$AK$3:$AK$8,'Utility Functions'!$AL$3:$AL$8)","v":1},{"$f":"valuePL(U17,'Utility Functions'!$AM$3:$AM$5,'Utility Functions'!$AN$3:$AN$5)","v":0},{"$f":"valuePL(V17,'Utility Functions'!$AO$3:$AO$5,'Utility Functions'!$AP$3:$AP$5)","v":1},{"$f":"valuePL(W17,'Utility Functions'!$AQ$3:$AQ$6,'Utility Functions'!$AR$3:$AR$6)","v":0.75},{"$f":"valuePL(X17,'Utility Functions'!$AS$3:$AS$6,'Utility Functions'!$AT$3:$AT$6)","v":0.75},{"$f":"valuePL(Y17,'Utility Functions'!$AU$3:$AU$6,'Utility Functions'!$AV$3:$AV$6)","v":0.2},{"$f":"valuePL(Z17,'Utility Functions'!$AW$3:$AW$5,'Utility Functions'!$AX$3:$AX$5)","v":1},{"$f":"valuePL(AA17,'Utility Functions'!$AY$3:$AY$6,'Utility Functions'!$AZ$3:$AZ$6)","v":1},{"$f":"valuePL(AB17,'Utility Functions'!$BA$3:$BA$5,'Utility Functions'!$BB$3:$BB$5)","v":1},{"$f":"valuePL(AC17,'Utility Functions'!$BC$3:$BC$5,'Utility Functions'!$BD$3:$BD$5)","v":1},15.119696969696969,null,15.119696969696971,0,4.6696969696969699,0,3.75,6.7]
[17,{"$f":"valueE(B18,'Utility Functions'!$B$3,'Utility Functions'!$B$4,'Utility Functions'!$B$5,'Utility Functions'!$B$6)","v":0.32968045347775865},{"$f":"valueE(C18,'Utility Functions'!$D$3,'Utility Functions'!$D$4,'Utility Functions'!$D$5,'Utility Functions'!$D$6)","v":0.78989979019422951},{"$f":"valuePL(D18,'Utility Functions'!$E$3:$E$5,'Utility Functions'!$F$3:$F$5)","v":1},{"$f":"valuePL(E18,'Utility Functions'!$G$3:$G$5,'Utility Functions'!$H$3:$H$5)","v":0.5},{"$f":"valuePL(F18,'Utility Functions'!$I$3:$I$4,'Utility Functions'!$J$3:$J$5)","v":1},{"$f":"valueE(G18,'Utility Functions'!$L$3,'Utility Functions'!$L$4,'Utility Functions'!$L$5,'Utility Functions'!$L$6)","v":0.31182795698924731},{"$f":"valueE(H18,'Utility Functions'!$N$3,'Utility Functions'!$N$4,'Utility Functions'!$N$5,'Utility Functions'!$N$6)","v":0.27514231499051234},{"$f":"valuePL(I18,'Utility Functions'!$O$3:$O$6,'Utility Functions'!$P$3:$P$6)","v":0},{"$f":"valuePL(J18,'Utility Functions'!$Q$3:$Q$6,'Utility Functions'!$R$3:$R$6)","v":0},{"$f":"valuePL(K18,'Utility Functions'!$S$3:$S$7,'Utility Functions'!$T$3:$T$7)","v":0},{"$f":"valueE(L18,'Utility Functions'!$V$3,'Utility Functions'!$V$4,'Utility Functions'!$V$5,'Utility Functions'!$V$6)","v":1},{"$f":"valuePL(M18,'Utility Functions'!$W$3:$W$6,'Utility Functions'!$X$3:$X$6)","v":6.0000000000000012E-2},{"$f":"valueE(N18,'Utility Functions'!$Z$3,'Utility Functions'!$Z$4,'Utility Functions'!$Z$5,'Utility Functions'!$Z$6)","v":0},{"$f":"valuePL(O18,'Utility Functions'!$AA$3:$AA$5,'Utility Functions'!$AB$3:$AB$5)","v":0},{"$f":"valuePL(P18,'Utility Functions'!$AC$3:$AC$7,'Utility Functions'!$AD$3:$AD$7)","v":0},{"$f":"valuePL(Q18,'Utility Functions'!$AE$3:$AE$6,'Utility Functions'!$AF$3:$AF$6)","v":0},{"$f":"valuePL(R18,'Utility Functions'!$AG$3:$AG$6,'Utility Functions'!$AH$3:$AH$6)","v":1},{"$f":"valuePL(S18,'Utility Functions'!$AI$3:$AI$6,'Utility Functions'!$AJ$3:$AJ$6)","v":0.66},{"$f":"valuePL(T18,'Utility Functions'!$AK$3:$AK$8,'Utility Functions'!$AL$3:$AL$8)","v":0},{"$f":"valuePL(U18,'Utility Functions'!$AM$3:$AM$5,'Utility Functions'!$AN$3:$AN$5)","v":0},{"$f":"valuePL(V18,'Utility Functions'!$AO$3:$AO$5,'Utility Functions'!$AP$3:$AP$5)","v":1},{"$f":"valuePL(W18,'Utility Functions'!$AQ$3:$AQ$6,'Utility Functions'!$AR$3:$AR$6)","v":1},{"$f":"valuePL(X18,'Utility Functions'!$AS$3:$AS$6,'Utility Functions'!$AT$3:$AT$6)","v":0.2},{"$f":"valuePL(Y18,'Utility Functions'!$AU$3:$AU$6,'Utility Functions'!$AV$3:$AV$6)","v":0},{"$f":"valuePL(Z18,'Utility Functions'!$AW$3:$AW$5,'Utility Functions'!$AX$3:$AX$5)","v":0.5},{"$f":"valuePL(AA18,'Utility Functions'!$AY$3:$AY$6,'Utility Functions'!$AZ$3:$AZ$6)","v":0},{"$f":"valuePL(AB18,'Utility Functions'!$BA$3:$BA$5,'Utility Functions'!$BB$3:$BB$5)","v":1},{"$f":"valuePL(AC18,'Utility Functions'!$BC$3:$BC$5,'Utility Functions'!$BD$3:$BD$5)","v":0.25},10.876550515651747,null,10.876550515651747,3.6195802436719884,1.6469702719797596,0,1.6600000000000001,3.95]
[18,{"$f":"valueE(B19,'Utility Functions'!$B$3,'Utility Functions'!$B$4,'Utility Functions'!$B$5,'Utility Functions'!$B$6)","v":0},{"$f":"valueE(C19,'Utility Functions'!$D$3,'Utility Functions'!$D$4,'Utility Functions'!$D$5,'Utility Functions'!$D$6)","v":0},{"$f":"valuePL(D19,'Utility Functions'!$E$3:$E$5,'Utility Functions'!$F$3:$F$5)","v":0},{"$f":"valuePL(E19,'Utility Functions'!$G$3:$G$5,'Utility Functions'!$H$3:$H$5)","v":0},{"$f":"valuePL(F19,'Utility Functions'!$I$3:$I$4,'Utility Functions'!$J$3:$J$5)","v":0},{"$f":"valueE(G19,'Utility Functions'!$L$3,'Utility Functions'!$L$4,'Utility Functions'!$L$5,'Utility Functions'!$L$6)","v":0},{"$f":"valueE(H19,'Utility Functions'!$N$3,'Utility Functions'!$N$4,'Utility Functions'!$N$5,'Utility Functions'!$N$6)","v":2.8462998102466792E-2},{"$f":"valuePL(I19,'Utility Functions'!$O$3:$O$6,'Utility Functions'!$P$3:$P$6)","v":0},{"$f":"valuePL(J19,'Utility Functions'!$Q$3:$Q$6,'Utility Functions'!$R$3:$R$6)","v":0},{"$f":"valuePL(K19,'Utility Functions'!$S$3:$S$7,'Utility Functions'!$T$3:$T$7)","v":0},{"$f":"valueE(L19,'Utility Functions'!$V$3,'Utility Functions'!$V$4,'Utility Functions'!$V$5,'Utility Functions'!$V$6)","v":0},{"$f":"valuePL(M19,'Utility Functions'!$W$3:$W$6,'Utility Functions'!$X$3:$X$6)","v":0},{"$f":"valueE(N19,'Utility Functions'!$Z$3,'Utility Functions'!$Z$4,'Utility Functions'!$Z$5,'Utility Functions'!$Z$6)","v":1},{"$f":"valuePL(O19,'Utility Functions'!$AA$3:$AA$5,'Utility Functions'!$AB$3:$AB$5)","v":0.25},{"$f":"valuePL(P19,'Utility Functions'!$AC$3:$AC$7,'Utility Functions'!$AD$3:$AD$7)","v":0.25},{"$f":"valuePL(Q19,'Utility Functions'!$AE$3:$AE$6,'Utility Functions'!$AF$3:$AF$6)","v":1},{"$f":"valuePL(R19,'Utility Functions'!$AG$3:$AG$6,'Utility Functions'!$AH$3:$AH$6)","v":1},{"$f":"valuePL(S19,'Utility Functions'!$AI$3:$AI$6,'Utility Functions'!$AJ$3:$AJ$6)","v":1},{"$f":"valuePL(T19,'Utility Functions'!$AK$3:$AK$8,'Utility Functions'!$AL$3:$AL$8)","v":1},{"$f":"valuePL(U19,'Utility Functions'!$AM$3:$AM$5,'Utility Functions'!$AN$3:$AN$5)","v":0.25},{"$f":"valuePL(V19,'Utility Functions'!$AO$3:$AO$5,'Utility Functions'!$AP$3:$AP$5)","v":1},{"$f":"valuePL(W19,'Utility Functions'!$AQ$3:$AQ$6,'Utility Functions'!$AR$3:$AR$6)","v":0.75},{"$f":"valuePL(X19,'Utility Functions'!$AS$3:$AS$6,'Utility Functions'!$AT$3:$AT$6)","v":0.2},{"$f":"valuePL(Y19,'Utility Functions'!$AU$3:$AU$6,'Utility Functions'!$AV$3:$AV$6)","v":0.8},{"$f":"valuePL(Z19,'Utility Functions'!$AW$3:$AW$5,'Utility Functions'!$AX$3:$AX$5)","v":0.5},{"$f":"valuePL(AA19,'Utility Functions'!$AY$3:$AY$6,'Utility Functions'!$AZ$3:$AZ$6)","v":0.89999999999999991},{"$f":"valuePL(AB19,'Utility Functions'!$BA$3:$BA$5,'Utility Functions'!$BB$3:$BB$5)","v":0.25},{"$f":"valuePL(AC19,'Utility Functions'!$BC$3:$BC$5,'Utility Functions'!$BD$3:$BD$5)","v":0},10.178462998102468,null,10.178462998102468,0,2.8462998102466792E-2,1.25,4.5,4.4000000000000004]
[19,{"$f":"valueE(B20,'Utility Functions'!$B$3,'Utility Functions'!$B$4,'Utility Functions'!$B$5,'Utility Functions'!$B$6)","v":0.79810469124896843},{"$f":"valueE(C20,'Utility Functions'!$D$3,'Utility Functions'!$D$4,'Utility Functions'!$D$5,'Utility Functions'!$D$6)","v":0.26839655623815994},{"$f":"valuePL(D20,'Utility Functions'!$E$3:$E$5,'Utility Functions'!$F$3:$F$5)","v":0.5},{"$f":"valuePL(E20,'Utility Functions'!$G$3:$G$5,'Utility Functions'!$H$3:$H$5)","v":1},{"$f":"valuePL(F20,'Utility Functions'!$I$3:$I$4,'Utility Functions'!$J$3:$J$5)","v":0},{"$f":"valueE(G20,'Utility Functions'!$L$3,'Utility Functions'!$L$4,'Utility Functions'!$L$5,'Utility Functions'!$L$6)","v":0},{"$f":"valueE(H20,'Utility Functions'!$N$3,'Utility Functions'!$N$4,'Utility Functions'!$N$5,'Utility Functions'!$N$6)","v":0},{"$f":"valuePL(I20,'Utility Functions'!$O$3:$O$6,'Utility Functions'!$P$3:$P$6)","v":0},{"$f":"valuePL(J20,'Utility Functions'!$Q$3:$Q$6,'Utility Functions'!$R$3:$R$6)","v":0},{"$f":"valuePL(K20,'Utility Functions'!$S$3:$S$7,'Utility Functions'!$T$3:$T$7)","v":0},{"$f":"valueE(L20,'Utility Functions'!$V$3,'Utility Functions'!$V$4,'Utility Functions'!$V$5,'Utility Functions'!$V$6)","v":0},{"$f":"valuePL(M20,'Utility Functions'!$W$3:$W$6,'Utility Functions'!$X$3:$X$6)","v":0},{"$f":"valueE(N20,'Utility Functions'!$Z$3,'Utility Functions'!$Z$4,'Utility Functions'!$Z$5,'Utility Functions'!$Z$6)","v":1},{"$f":"valuePL(O20,'Utility Functions'!$AA$3:$AA$5,'Utility Functions'!$AB$3:$AB$5)","v":1},{"$f":"valuePL(P20,'Utility Functions'!$AC$3:$AC$7,'Utility Functions'!$AD$3:$AD$7)","v":0},{"$f":"valuePL(Q20,'Utility Functions'!$AE$3:$AE$6,'Utility Functions'!$AF$3:$AF$6)","v":0},{"$f":"valuePL(R20,'Utility Functions'!$AG$3:$AG$6,'Utility Functions'!$AH$3:$AH$6)","v":0.8},{"$f":"valuePL(S20,'Utility Functions'!$AI$3:$AI$6,'Utility Functions'!$AJ$3:$AJ$6)","v":1},{"$f":"valuePL(T20,'Utility Functions'!$AK$3:$AK$8,'Utility Functions'!$AL$3:$AL$8)","v":0},{"$f":"valuePL(U20,'Utility Functions'!$AM$3:$AM$5,'Utility Functions'!$AN$3:$AN$5)","v":0},{"$f":"valuePL(V20,'Utility Functions'!$AO$3:$AO$5,'Utility Functions'!$AP$3:$AP$5)","v":0.5},{"$f":"valuePL(W20,'Utility Functions'!$AQ$3:$AQ$6,'Utility Functions'!$AR$3:$AR$6)","v":0.2},{"$f":"valuePL(X20,'Utility Functions'!$AS$3:$AS$6,'Utility Functions'!$AT$3:$AT$6)","v":1},{"$f":"valuePL(Y20,'Utility Functions'!$AU$3:$AU$6,'Utility Functions'!$AV$3:$AV$6)","v":0.8},{"$f":"valuePL(Z20,'Utility Functions'!$AW$3:$AW$5,'Utility Functions'!$AX$3:$AX$5)","v":0},{"$f":"valuePL(AA20,'Utility Functions'!$AY$3:$AY$6,'Utility Functions'!$AZ$3:$AZ$6)","v":0.2},{"$f":"valuePL(AB20,'Utility Functions'!$BA$3:$BA$5,'Utility Functions'!$BB$3:$BB$5)","v":0},{"$f":"valuePL(AC20,'Utility Functions'!$BC$3:$BC$5,'Utility Functions'!$BD$3:$BD$5)","v":0.25},9.3165012474871283,null,9.3165012474871283,2.5665012474871283,0,2,1.8,2.95]
[20,{"$f":"valueE(B21,'Utility Functions'!$B$3,'Utility Functions'!$B$4,'Utility Functions'!$B$5,'Utility Functions'!$B$6)","v":0.83470237647280454},{"$f":"valueE(C21,'Utility Functions'!$D$3,'Utility Functions'!$D$4,'Utility Functions'!$D$5,'Utility Functions'!$D$6)","v":0.78989979019422951},{"$f":"valuePL(D21,'Utility Functions'!$E$3:$E$5,'Utility Functions'!$F$3:$F$5)","v":0.5},{"$f":"valuePL(E21,'Utility Functions'!$G$3:$G$5,'Utility Functions'!$H$3:$H$5)","v":1},{"$f":"valuePL(F21,'Utility Functions'!$I$3:$I$4,'Utility Functions'!$J$3:$J$5)","v":0},{"$f":"valueE(G21,'Utility Functions'!$L$3,'Utility Functions'!$L$4,'Utility Functions'!$L$5,'Utility Functions'!$L$6)","v":0},{"$f":"valueE(H21,'Utility Functions'!$N$3,'Utility Functions'!$N$4,'Utility Functions'!$N$5,'Utility Functions'!$N$6)","v":0.41271347248576851},{"$f":"valuePL(I21,'Utility Functions'!$O$3:$O$6,'Utility Functions'!$P$3:$P$6)","v":0.93454545454545446},{"$f":"valuePL(J21,'Utility Functions'!$Q$3:$Q$6,'Utility Functions'!$R$3:$R$6)","v":0.50909090909090915},{"$f":"valuePL(K21,'Utility Functions'!$S$3:$S$7,'Utility Functions'!$T$3:$T$7)","v":0.93454545454545446},{"$f":"valueE(L21,'Utility Functions'!$V$3,'Utility Functions'!$V$4,'Utility Functions'!$V$5,'Utility Functions'!$V$6)","v":0.66666666666666663},{"$f":"valuePL(M21,'Utility Functions'!$W$3:$W$6,'Utility Functions'!$X$3:$X$6)","v":0.50909090909090915},{"$f":"valueE(N21,'Utility Functions'!$Z$3,'Utility Functions'!$Z$4,'Utility Functions'!$Z$5,'Utility Functions'!$Z$6)","v":1},{"$f":"valuePL(O21,'Utility Functions'!$AA$3:$AA$5,'Utility Functions'!$AB$3:$AB$5)","v":1},{"$f":"valuePL(P21,'Utility Functions'!$AC$3:$AC$7,'Utility Functions'!$AD$3:$AD$7)","v":0.25},{"$f":"valuePL(Q21,'Utility Functions'!$AE$3:$AE$6,'Utility Functions'!$AF$3:$AF$6)","v":0},{"$f":"valuePL(R21,'Utility Functions'!$AG$3:$AG$6,'Utility Functions'!$AH$3:$AH$6)","v":1},{"$f":"valuePL(S21,'Utility Functions'!$AI$3:$AI$6,'Utility Functions'!$AJ$3:$AJ$6)","v":1},{"$f":"valuePL(T21,'Utility Functions'!$AK$3:$AK$8,'Utility Functions'!$AL$3:$AL$8)","v":0.6},{"$f":"valuePL(U21,'Utility Functions'!$AM$3:$AM$5,'Utility Functions'!$AN$3:$AN$5)","v":1},{"$f":"valuePL(V21,'Utility Functions'!$AO$3:$AO$5,'Utility Functions'!$AP$3:$AP$5)","v":0.5},{"$f":"valuePL(W21,'Utility Functions'!$AQ$3:$AQ$6,'Utility Functions'!$AR$3:$AR$6)","v":0},{"$f":"valuePL(X21,'Utility Functions'!$AS$3:$AS$6,'Utility Functions'!$AT$3:$AT$6)","v":0},{"$f":"valuePL(Y21,'Utility Functions'!$AU$3:$AU$6,'Utility Functions'!$AV$3:$AV$6)","v":0.2},{"$f":"valuePL(Z21,'Utility Functions'!$AW$3:$AW$5,'Utility Functions'!$AX$3:$AX$5)","v":1},{"$f":"valuePL(AA21,'Utility Functions'!$AY$3:$AY$6,'Utility Functions'!$AZ$3:$AZ$6)","v":0.2},{"$f":"valuePL(AB21,'Utility Functions'!$BA$3:$BA$5,'Utility Functions'!$BB$3:$BB$5)","v":0},{"$f":"valuePL(AC21,'Utility Functions'!$BC$3:$BC$5,'Utility Functions'!$BD$3:$BD$5)","v":0.25},15.091255033092194,null,15.091255033092196,3.1246021666670343,3.9666528664251626,2,3.85,2.15]
[21,{"$f":"valueE(B22,'Utility Functions'!$B$3,'Utility Functions'!$B$4,'Utility Functions'!$B$5,'Utility Functions'!$B$6)","v":0},{"$f":"valueE(C22,'Utility Functions'!$D$3,'Utility Functions'!$D$4,'Utility Functions'!$D$5,'Utility Functions'!$D$6)","v":0},{"$f":"valuePL(D22,'Utility Functions'!$E$3:$E$5,'Utility Functions'!$F$3:$F$5)","v":0},{"$f":"valuePL(E22,'Utility Functions'!$G$3:$G$5,'Utility Functions'!$H$3:$H$5)","v":0},{"$f":"valuePL(F22,'Utility Functions'!$I$3:$I$4,'Utility Functions'!$J$3:$J$5)","v":0},{"$f":"valueE(G22,'Utility Functions'!$L$3,'Utility Functions'!$L$4,'Utility Functions'!$L$5,'Utility Functions'!$L$6)","v":0},{"$f":"valueE(H22,'Utility Functions'!$N$3,'Utility Functions'!$N$4,'Utility Functions'!$N$5,'Utility Functions'!$N$6)","v":0},{"$f":"valuePL(I22,'Utility Functions'!$O$3:$O$6,'Utility Functions'!$P$3:$P$6)","v":0},{"$f":"valuePL(J22,'Utility Functions'!$Q$3:$Q$6,'Utility Functions'!$R$3:$R$6)","v":0},{"$f":"valuePL(K22,'Utility Functions'!$S$3:$S$7,'Utility Functions'!$T$3:$T$7)","v":0},{"$f":"valueE(L22,'Utility Functions'!$V$3,'Utility Functions'!$V$4,'Utility Functions'!$V$5,'Utility Functions'!$V$6)","v":0},{"$f":"valuePL(M22,'Utility Functions'!$W$3:$W$6,'Utility Functions'!$X$3:$X$6)","v":0},{"$f":"valueE(N22,'Utility Functions'!$Z$3,'Utility Functions'!$Z$4,'Utility Functions'!$Z$5,'Utility Functions'!$Z$6)","v":1},{"$f":"valuePL(O22,'Utility Functions'!$AA$3:$AA$5,'Utility Functions'!$AB$3:$AB$5)","v":1},{"$f":"valuePL(P22,'Utility Functions'!$AC$3:$AC$7,'Utility Functions'!$AD$3:$AD$7)","v":0},{"$f":"valuePL(Q22,'Utility Functions'!$AE$3:$AE$6,'Utility Functions'!$AF$3:$AF$6)","v":0.1},{"$f":"valuePL(R22,'Utility Functions'!$AG$3:$AG$6,'Utility Functions'!$AH$3:$AH$6)","v":1},{"$f":"valuePL(S22,'Utility Functions'!$AI$3:$AI$6,'Utility Functions'!$AJ$3:$AJ$6)","v":1},{"$f":"valuePL(T22,'Utility Functions'!$AK$3:$AK$8,'Utility Functions'!$AL$3:$AL$8)","v":1},{"$f":"valuePL(U22,'Utility Functions'!$AM$3:$AM$5,'Utility Functions'!$AN$3:$AN$5)","v":0.25},{"$f":"valuePL(V22,'Utility Functions'!$AO$3:$AO$5,'Utility Functions'!$AP$3:$AP$5)","v":0},{"$f":"valuePL(W22,'Utility Functions'!$AQ$3:$AQ$6,'Utility Functions'!$AR$3:$AR$6)","v":0.75},{"$f":"valuePL(X22,'Utility Functions'!$AS$3:$AS$6,'Utility Functions'!$AT$3:$AT$6)","v":1},{"$f":"valuePL(Y22,'Utility Functions'!$AU$3:$AU$6,'Utility Functions'!$AV$3:$AV$6)","v":0.2},{"$f":"valuePL(Z22,'Utility Functions'!$AW$3:$AW$5,'Utility Functions'!$AX$3:$AX$5)","v":0},{"$f":"valuePL(AA22,'Utility Functions'!$AY$3:$AY$6,'Utility Functions'!$AZ$3:$AZ$6)","v":1},{"$f":"valuePL(AB22,'Utility Functions'!$BA$3:$BA$5,'Utility Functions'!$BB$3:$BB$5)","v":0.25},{"$f":"valuePL(AC22,'Utility Functions'!$BC$3:$BC$5,'Utility Functions'!$BD$3:$BD$5)","v":1},9.5500000000000007,null,9.5500000000000007,0,0,2,3.35,4.2]
[22,{"$f":"valueE(B23,'Utility Functions'!$B$3,'Utility Functions'!$B$4,'Utility Functions'!$B$5,'Utility Functions'!$B$6)","v":0},{"$f":"valueE(C23,'Utility Functions'!$D$3,'Utility Functions'!$D$4,'Utility Functions'!$D$5,'Utility Functions'!$D$6)","v":0},{"$f":"valuePL(D23,'Utility Functions'!$E$3:$E$5,'Utility Functions'!$F$3:$F$5)","v":0},{"$f":"valuePL(E23,'Utility Functions'!$G$3:$G$5,'Utility Functions'!$H$3:$H$5)","v":0},{"$f":"valuePL(F23,'Utility Functions'!$I$3:$I$4,'Utility Functions'!$J$3:$J$5)","v":0},{"$f":"valueE(G23,'Utility Functions'!$L$3,'Utility Functions'!$L$4,'Utility Functions'!$L$5,'Utility Functions'!$L$6)","v":8.6021505376344093E-2},{"$f":"valueE(H23,'Utility Functions'!$N$3,'Utility Functions'!$N$4,'Utility Functions'!$N$5,'Utility Functions'!$N$6)","v":6.0721062618595827E-2},{"$f":"valuePL(I23,'Utility Functions'!$O$3:$O$6,'Utility Functions'!$P$3:$P$6)","v":0},{"$f":"valuePL(J23,'Utility Functions'!$Q$3:$Q$6,'Utility Functions'!$R$3:$R$6)","v":0},{"$f":"valuePL(K23,'Utility Functions'!$S$3:$S$7,'Utility Functions'!$T$3:$T$7)","v":0},{"$f":"valueE(L23,'Utility Functions'!$V$3,'Utility Functions'!$V$4,'Utility Functions'!$V$5,'Utility Functions'!$V$6)","v":0},{"$f":"valuePL(M23,'Utility Functions'!$W$3:$W$6,'Utility Functions'!$X$3:$X$6)","v":0},{"$f":"valueE(N23,'Utility Functions'!$Z$3,'Utility Functions'!$Z$4,'Utility Functions'!$Z$5,'Utility Functions'!$Z$6)","v":0.125},{"$f":"valuePL(O23,'Utility Functions'!$AA$3:$AA$5,'Utility Functions'!$AB$3:$AB$5)","v":1},{"$f":"valuePL(P23,'Utility Functions'!$AC$3:$AC$7,'Utility Functions'!$AD$3:$AD$7)","v":1},{"$f":"valuePL(Q23,'Utility Functions'!$AE$3:$AE$6,'Utility Functions'!$AF$3:$AF$6)","v":0.5},{"$f":"valuePL(R23,'Utility Functions'!$AG$3:$AG$6,'Utility Functions'!$AH$3:$AH$6)","v":0.8},{"$f":"valuePL(S23,'Utility Functions'!$AI$3:$AI$6,'Utility Functions'!$AJ$3:$AJ$6)","v":1},{"$f":"valuePL(T23,'Utility Functions'!$AK$3:$AK$8,'Utility Functions'!$AL$3:$AL$8)","v":1},{"$f":"valuePL(U23,'Utility Functions'!$AM$3:$AM$5,'Utility Functions'!$AN$3:$AN$5)","v":0},{"$f":"valuePL(V23,'Utility Functions'!$AO$3:$AO$5,'Utility Functions'!$AP$3:$AP$5)","v":0.5},{"$f":"valuePL(W23,'Utility Functions'!$AQ$3:$AQ$6,'Utility Functions'!$AR$3:$AR$6)","v":0.75},{"$f":"valuePL(X23,'Utility Functions'!$AS$3:$AS$6,'Utility Functions'!$AT$3:$AT$6)","v":0.2},{"$f":"valuePL(Y23,'Utility Functions'!$AU$3:$AU$6,'Utility Functions'!$AV$3:$AV$6)","v":0},{"$f":"valuePL(Z23,'Utility Functions'!$AW$3:$AW$5,'Utility Functions'!$AX$3:$AX$5)","v":1},{"$f":"valuePL(AA23,'Utility Functions'!$AY$3:$AY$6,'Utility Functions'!$AZ$3:$AZ$6)","v":0.2},{"$f":"valuePL(AB23,'Utility Functions'!$BA$3:$BA$5,'Utility Functions'!$BB$3:$BB$5)","v":1},{"$f":"valuePL(AC23,'Utility Functions'!$BC$3:$BC$5,'Utility Functions'!$BD$3:$BD$5)","v":0.25},9.471742567994939,null,9.4717425679949407,0,0.14674256799493993,1.125,4.3,3.9000000000000004]
[23,{"$f":"valueE(B24,'Utility Functions'!$B$3,'Utility Functions'!$B$4,'Utility Functions'!$B$5,'Utility Functions'!$B$6)","v":0.83470237647280454},{"$f":"valueE(C24,'Utility Functions'!$D$3,'Utility Functions'!$D$4,'Utility Functions'!$D$5,'Utility Functions'!$D$6)","v":0.84744836833951609},{"$f":"valuePL(D24,'Utility Functions'!$E$3:$E$5,'Utility Functions'!$F$3:$F$5)","v":1},{"$f":"valuePL(E24,'Utility Functions'!$G$3:$G$5,'Utility Functions'!$H$3:$H$5)","v":0},{"$f":"valuePL(F24,'Utility Functions'!$I$3:$I$4,'Utility Functions'!$J$3:$J$5)","v":0},{"$f":"valueE(G24,'Utility Functions'!$L$3,'Utility Functions'!$L$4,'Utility Functions'!$L$5,'Utility Functions'!$L$6)","v":0},{"$f":"valueE(H24,'Utility Functions'!$N$3,'Utility Functions'!$N$4,'Utility Functions'!$N$5,'Utility Functions'!$N$6)","v":0},{"$f":"valuePL(I24,'Utility Functions'!$O$3:$O$6,'Utility Functions'!$P$3:$P$6)","v":0},{"$f":"valuePL(J24,'Utility Functions'!$Q$3:$Q$6,'Utility Functions'!$R$3:$R$6)","v":0},{"$f":"valuePL(K24,'Utility Functions'!$S$3:$S$7,'Utility Functions'!$T$3:$T$7)","v":0},{"$f":"valueE(L24,'Utility Functions'!$V$3,'Utility Functions'!$V$4,'Utility Functions'!$V$5,'Utility Functions'!$V$6)","v":0},{"$f":"valuePL(M24,'Utility Functions'!$W$3:$W$6,'Utility Functions'!$X$3:$X$6)","v":0},{"$f":"valueE(N24,'Utility Functions'!$Z$3,'Utility Functions'!$Z$4,'Utility Functions'!$Z$5,'Utility Functions'!$Z$6)","v":0},{"$f":"valuePL(O24,'Utility Functions'!$AA$3:$AA$5,'Utility Functions'!$AB$3:$AB$5)","v":0},{"$f":"valuePL(P24,'Utility Functions'!$AC$3:$AC$7,'Utility Functions'!$AD$3:$AD$7)","v":0.75},{"$f":"valuePL(Q24,'Utility Functions'!$AE$3:$AE$6,'Utility Functions'!$AF$3:$AF$6)","v":0},{"$f":"valuePL(R24,'Utility Functions'!$AG$3:$AG$6,'Utility Functions'!$AH$3:$AH$6)","v":1},{"$f":"valuePL(S24,'Utility Functions'!$AI$3:$AI$6,'Utility Functions'!$AJ$3:$AJ$6)","v":1},{"$f":"valuePL(T24,'Utility Functions'!$AK$3:$AK$8,'Utility Functions'!$AL$3:$AL$8)","v":1},{"$f":"valuePL(U24,'Utility Functions'!$AM$3:$AM$5,'Utility Functions'!$AN$3:$AN$5)","v":0},{"$f":"valuePL(V24,'Utility Functions'!$AO$3:$AO$5,'Utility Functions'!$AP$3:$AP$5)","v":1},{"$f":"valuePL(W24,'Utility Functions'!$AQ$3:$AQ$6,'Utility Functions'!$AR$3:$AR$6)","v":0.2},{"$f":"valuePL(X24,'Utility Functions'!$AS$3:$AS$6,'Utility Functions'!$AT$3:$AT$6)","v":0.75},{"$f":"valuePL(Y24,'Utility Functions'!$AU$3:$AU$6,'Utility Functions'!$AV$3:$AV$6)","v":0.2},{"$f":"valuePL(Z24,'Utility Functions'!$AW$3:$AW$5,'Utility Functions'!$AX$3:$AX$5)","v":0.5},{"$f":"valuePL(AA24,'Utility Functions'!$AY$3:$AY$6,'Utility Functions'!$AZ$3:$AZ$6)","v":0.2},{"$f":"valuePL(AB24,'Utility Functions'!$BA$3:$BA$5,'Utility Functions'!$BB$3:$BB$5)","v":0},{"$f":"valuePL(AC24,'Utility Functions'!$BC$3:$BC$5,'Utility Functions'!$BD$3:$BD$5)","v":0.25},9.5321507448123199,null,9.5321507448123199,2.6821507448123207,0,0,3.75,3.1]
[24,{"$f":"valueE(B25,'Utility Functions'!$B$3,'Utility Functions'!$B$4,'Utility Functions'!$B$5,'Utility Functions'!$B$6)","v":0.63212151658375171},{"$f":"valueE(C25,'Utility Functions'!$D$3,'Utility Functions'!$D$4,'Utility Functions'!$D$5,'Utility Functions'!$D$6)","v":0.46475967153745396},{"$f":"valuePL(D25,'Utility Functions'!$E$3:$E$5,'Utility Functions'!$F$3:$F$5)","v":1},{"$f":"valuePL(E25,'Utility Functions'!$G$3:$G$5,'Utility Functions'!$H$3:$H$5)","v":0},{"$f":"valuePL(F25,'Utility Functions'!$I$3:$I$4,'Utility Functions'!$J$3:$J$5)","v":0},{"$f":"valueE(G25,'Utility Functions'!$L$3,'Utility Functions'!$L$4,'Utility Functions'!$L$5,'Utility Functions'!$L$6)","v":0},{"$f":"valueE(H25,'Utility Functions'!$N$3,'Utility Functions'!$N$4,'Utility Functions'!$N$5,'Utility Functions'!$N$6)","v":0},{"$f":"valuePL(I25,'Utility Functions'!$O$3:$O$6,'Utility Functions'!$P$3:$P$6)","v":0},{"$f":"valuePL(J25,'Utility Functions'!$Q$3:$Q$6,'Utility Functions'!$R$3:$R$6)","v":0},{"$f":"valuePL(K25,'Utility Functions'!$S$3:$S$7,'Utility Functions'!$T$3:$T$7)","v":0},{"$f":"valueE(L25,'Utility Functions'!$V$3,'Utility Functions'!$V$4,'Utility Functions'!$V$5,'Utility Functions'!$V$6)","v":0},{"$f":"valuePL(M25,'Utility Functions'!$W$3:$W$6,'Utility Functions'!$X$3:$X$6)","v":0},{"$f":"valueE(N25,'Utility Functions'!$Z$3,'Utility Functions'!$Z$4,'Utility Functions'!$Z$5,'Utility Functions'!$Z$6)","v":0},{"$f":"valuePL(O25,'Utility Functions'!$AA$3:$AA$5,'Utility Functions'!$AB$3:$AB$5)","v":0},{"$f":"valuePL(P25,'Utility Functions'!$AC$3:$AC$7,'Utility Functions'!$AD$3:$AD$7)","v":0},{"$f":"valuePL(Q25,'Utility Functions'!$AE$3:$AE$6,'Utility Functions'!$AF$3:$AF$6)","v":0},{"$f":"valuePL(R25,'Utility Functions'!$AG$3:$AG$6,'Utility Functions'!$AH$3:$AH$6)","v":1},{"$f":"valuePL(S25,'Utility Functions'!$AI$3:$AI$6,'Utility Functions'!$AJ$3:$AJ$6)","v":1},{"$f":"valuePL(T25,'Utility Functions'!$AK$3:$AK$8,'Utility Functions'!$AL$3:$AL$8)","v":1},{"$f":"valuePL(U25,'Utility Functions'!$AM$3:$AM$5,'Utility Functions'!$AN$3:$AN$5)","v":0},{"$f":"valuePL(V25,'Utility Functions'!$AO$3:$AO$5,'Utility Functions'!$AP$3:$AP$5)","v":0},{"$f":"valuePL(W25,'Utility Functions'!$AQ$3:$AQ$6,'Utility Functions'!$AR$3:$AR$6)","v":1},{"$f":"valuePL(X25,'Utility Functions'!$AS$3:$AS$6,'Utility Functions'!$AT$3:$AT$6)","v":0.2},{"$f":"valuePL(Y25,'Utility Functions'!$AU$3:$AU$6,'Utility Functions'!$AV$3:$AV$6)","v":1},{"$f":"valuePL(Z25,'Utility Functions'!$AW$3:$AW$5,'Utility Functions'!$AX$3:$AX$5)","v":1},{"$f":"valuePL(AA25,'Utility Functions'!$AY$3:$AY$6,'Utility Functions'!$AZ$3:$AZ$6)","v":0.2},{"$f":"valuePL(AB25,'Utility Functions'!$BA$3:$BA$5,'Utility Functions'!$BB$3:$BB$5)","v":0},{"$f":"valuePL(AC25,'Utility Functions'!$BC$3:$BC$5,'Utility Functions'!$BD$3:$BD$5)","v":1},9.4968811881212041,null,9.4968811881212059,2.0968811881212055,0,0,3,4.4000000000000004]
[25,{"$f":"valueE(B26,'Utility Functions'!$B$3,'Utility Functions'!$B$4,'Utility Functions'!$B$5,'Utility Functions'!$B$6)","v":0.83470237647280454},{"$f":"valueE(C26,'Utility Functions'!$D$3,'Utility Functions'!$D$4,'Utility Functions'!$D$5,'Utility Functions'!$D$6)","v":0.84744836833951609},{"$f":"valuePL(D26,'Utility Functions'!$E$3:$E$5,'Utility Functions'!$F$3:$F$5)","v":1},{"$f":"valuePL(E26,'Utility Functions'!$G$3:$G$5,'Utility Functions'!$H$3:$H$5)","v":0},{"$f":"valuePL(F26,'Utility Functions'!$I$3:$I$4,'Utility Functions'!$J$3:$J$5)","v":0},{"$f":"valueE(G26,'Utility Functions'!$L$3,'Utility Functions'!$L$4,'Utility Functions'!$L$5,'Utility Functions'!$L$6)","v":0.94623655913978499},{"$f":"valueE(H26,'Utility Functions'!$N$3,'Utility Functions'!$N$4,'Utility Functions'!$N$5,'Utility Functions'!$N$6)","v":0.29222011385199242},{"$f":"valuePL(I26,'Utility Functions'!$O$3:$O$6,'Utility Functions'!$P$3:$P$6)","v":0},{"$f":"valuePL(J26,'Utility Functions'!$Q$3:$Q$6,'Utility Functions'!$R$3:$R$6)","v":0},{"$f":"valuePL(K26,'Utility Functions'!$S$3:$S$7,'Utility Functions'!$T$3:$T$7)","v":0},{"$f":"valueE(L26,'Utility Functions'!$V$3,'Utility Functions'!$V$4,'Utility Functions'!$V$5,'Utility Functions'!$V$6)","v":0},{"$f":"valuePL(M26,'Utility Functions'!$W$3:$W$6,'Utility Functions'!$X$3:$X$6)","v":0},{"$f":"valueE(N26,'Utility Functions'!$Z$3,'Utility Functions'!$Z$4,'Utility Functions'!$Z$5,'Utility Functions'!$Z$6)","v":1},{"$f":"valuePL(O26,'Utility Functions'!$AA$3:$AA$5,'Utility Functions'!$AB$3:$AB$5)","v":0.25},{"$f":"valuePL(P26,'Utility Functions'!$AC$3:$AC$7,'Utility Functions'!$AD$3:$AD$7)","v":0.5},{"$f":"valuePL(Q26,'Utility Functions'!$AE$3:$AE$6,'Utility Functions'!$AF$3:$AF$6)","v":0.5},{"$f":"valuePL(R26,'Utility Functions'!$AG$3:$AG$6,'Utility Functions'!$AH$3:$AH$6)","v":1},{"$f":"valuePL(S26,'Utility Functions'!$AI$3:$AI$6,'Utility Functions'!$AJ$3:$AJ$6)","v":1},{"$f":"valuePL(T26,'Utility Functions'!$AK$3:$AK$8,'Utility Functions'!$AL$3:$AL$8)","v":0},{"$f":"valuePL(U26,'Utility Functions'!$AM$3:$AM$5,'Utility Functions'!$AN$3:$AN$5)","v":0},{"$f":"valuePL(V26,'Utility Functions'!$AO$3:$AO$5,'Utility Functions'!$AP$3:$AP$5)","v":1},{"$f":"valuePL(W26,'Utility Functions'!$AQ$3:$AQ$6,'Utility Functions'!$AR$3:$AR$6)","v":0.2},{"$f":"valuePL(X26,'Utility Functions'!$AS$3:$AS$6,'Utility Functions'!$AT$3:$AT$6)","v":1},{"$f":"valuePL(Y26,'Utility Functions'!$AU$3:$AU$6,'Utility Functions'!$AV$3:$AV$6)","v":0.8},{"$f":"valuePL(Z26,'Utility Functions'!$AW$3:$AW$5,'Utility Functions'!$AX$3:$AX$5)","v":0.5},{"$f":"valuePL(AA26,'Utility Functions'!$AY$3:$AY$6,'Utility Functions'!$AZ$3:$AZ$6)","v":0.2},{"$f":"valuePL(AB26,'Utility Functions'!$BA$3:$BA$5,'Utility Functions'!$BB$3:$BB$5)","v":1},{"$f":"valuePL(AC26,'Utility Functions'!$BC$3:$BC$5,'Utility Functions'!$BD$3:$BD$5)","v":1},13.870607417804099,null,13.870607417804099,2.6821507448123207,1.2384566729917774,1.25,3,5.7]
[26,{"$f":"valueE(B27,'Utility Functions'!$B$3,'Utility Functions'!$B$4,'Utility Functions'!$B$5,'Utility Functions'!$B$6)","v":0.96662819462069161},{"$f":"valueE(C27,'Utility Functions'!$D$3,'Utility Functions'!$D$4,'Utility Functions'!$D$5,'Utility Functions'!$D$6)","v":0.84744836833951609},{"$f":"valuePL(D27,'Utility Functions'!$E$3:$E$5,'Utility Functions'!$F$3:$F$5)","v":1},{"$f":"valuePL(E27,'Utility Functions'!$G$3:$G$5,'Utility Functions'!$H$3:$H$5)","v":0.5},{"$f":"valuePL(F27,'Utility Functions'!$I$3:$I$4,'Utility Functions'!$J$3:$J$5)","v":0},{"$f":"valueE(G27,'Utility Functions'!$L$3,'Utility Functions'!$L$4,'Utility Functions'!$L$5,'Utility Functions'!$L$6)","v":0},{"$f":"valueE(H27,'Utility Functions'!$N$3,'Utility Functions'!$N$4,'Utility Functions'!$N$5,'Utility Functions'!$N$6)","v":0},{"$f":"valuePL(I27,'Utility Functions'!$O$3:$O$6,'Utility Functions'!$P$3:$P$6)","v":0},{"$f":"valuePL(J27,'Utility Functions'!$Q$3:$Q$6,'Utility Functions'!$R$3:$R$6)","v":0},{"$f":"valuePL(K27,'Utility Functions'!$S$3:$S$7,'Utility Functions'!$T$3:$T$7)","v":0},{"$f":"valueE(L27,'Utility Functions'!$V$3,'Utility Functions'!$V$4,'Utility Functions'!$V$5,'Utility Functions'!$V$6)","v":0},{"$f":"valuePL(M27,'Utility Functions'!$W$3:$W$6,'Utility Functions'!$X$3:$X$6)","v":0},{"$f":"valueE(N27,'Utility Functions'!$Z$3,'Utility Functions'!$Z$4,'Utility Functions'!$Z$5,'Utility Functions'!$Z$6)","v":0},{"$f":"valuePL(O27,'Utility Functions'!$AA$3:$AA$5,'Utility Functions'!$AB$3:$AB$5)","v":0},{"$f":"valuePL(P27,'Utility Functions'!$AC$3:$AC$7,'Utility Functions'!$AD$3:$AD$7)","v":0.75},{"$f":"valuePL(Q27,'Utility Functions'!$AE$3:$AE$6,'Utility Functions'!$AF$3:$AF$6)","v":0},{"$f":"valuePL(R27,'Utility Functions'!$AG$3:$AG$6,'Utility Functions'!$AH$3:$AH$6)","v":1},{"$f":"valuePL(S27,'Utility Functions'!$AI$3:$AI$6,'Utility Functions'!$AJ$3:$AJ$6)","v":1},{"$f":"valuePL(T27,'Utility Functions'!$AK$3:$AK$8,'Utility Functions'!$AL$3:$AL$8)","v":0.8},{"$f":"valuePL(U27,'Utility Functions'!$AM$3:$AM$5,'Utility Functions'!$AN$3:$AN$5)","v":0},{"$f":"valuePL(V27,'Utility Functions'!$AO$3:$AO$5,'Utility Functions'!$AP$3:$AP$5)","v":1},{"$f":"valuePL(W27,'Utility Functions'!$AQ$3:$AQ$6,'Utility Functions'!$AR$3:$AR$6)","v":0.2},{"$f":"valuePL(X27,'Utility Functions'!$AS$3:$AS$6,'Utility Functions'!$AT$3:$AT$6)","v":0},{"$f":"valuePL(Y27,'Utility Functions'!$AU$3:$AU$6,'Utility Functions'!$AV$3:$AV$6)","v":0.8},{"$f":"valuePL(Z27,'Utility Functions'!$AW$3:$AW$5,'Utility Functions'!$AX$3:$AX$5)","v":0},{"$f":"valuePL(AA27,'Utility Functions'!$AY$3:$AY$6,'Utility Functions'!$AZ$3:$AZ$6)","v":0.2},{"$f":"valuePL(AB27,'Utility Functions'!$BA$3:$BA$5,'Utility Functions'!$BB$3:$BB$5)","v":1},{"$f":"valuePL(AC27,'Utility Functions'!$BC$3:$BC$5,'Utility Functions'!$BD$3:$BD$5)","v":1},11.064076562960208,null,11.064076562960206,3.3140765629602078,0,0,3.55,4.2]
[27,{"$f":"valueE(B28,'Utility Functions'!$B$3,'Utility Functions'!$B$4,'Utility Functions'!$B$5,'Utility Functions'!$B$6)","v":0},{"$f":"valueE(C28,'Utility Functions'!$D$3,'Utility Functions'!$D$4,'Utility Functions'!$D$5,'Utility Functions'!$D$6)","v":0.46475967153745396},{"$f":"valuePL(D28,'Utility Functions'!$E$3:$E$5,'Utility Functions'!$F$3:$F$5)","v":1},{"$f":"valuePL(E28,'Utility Functions'!$G$3:$G$5,'Utility Functions'!$H$3:$H$5)","v":0},{"$f":"valuePL(F28,'Utility Functions'!$I$3:$I$4,'Utility Functions'!$J$3:$J$5)","v":0},{"$f":"valueE(G28,'Utility Functions'!$L$3,'Utility Functions'!$L$4,'Utility Functions'!$L$5,'Utility Functions'!$L$6)","v":0},{"$f":"valueE(H28,'Utility Functions'!$N$3,'Utility Functions'!$N$4,'Utility Functions'!$N$5,'Utility Functions'!$N$6)","v":0},{"$f":"valuePL(I28,'Utility Functions'!$O$3:$O$6,'Utility Functions'!$P$3:$P$6)","v":0},{"$f":"valuePL(J28,'Utility Functions'!$Q$3:$Q$6,'Utility Functions'!$R$3:$R$6)","v":0},{"$f":"valuePL(K28,'Utility Functions'!$S$3:$S$7,'Utility Functions'!$T$3:$T$7)","v":1},{"$f":"valueE(L28,'Utility Functions'!$V$3,'Utility Functions'!$V$4,'Utility Functions'!$V$5,'Utility Functions'!$V$6)","v":0},{"$f":"valuePL(M28,'Utility Functions'!$W$3:$W$6,'Utility Functions'!$X$3:$X$6)","v":0.1},{"$f":"valueE(N28,'Utility Functions'!$Z$3,'Utility Functions'!$Z$4,'Utility Functions'!$Z$5,'Utility Functions'!$Z$6)","v":0},{"$f":"valuePL(O28,'Utility Functions'!$AA$3:$AA$5,'Utility Functions'!$AB$3:$AB$5)","v":0},{"$f":"valuePL(P28,'Utility Functions'!$AC$3:$AC$7,'Utility Functions'!$AD$3:$AD$7)","v":0.5},{"$f":"valuePL(Q28,'Utility Functions'!$AE$3:$AE$6,'Utility Functions'!$AF$3:$AF$6)","v":0.5},{"$f":"valuePL(R28,'Utility Functions'!$AG$3:$AG$6,'Utility Functions'!$AH$3:$AH$6)","v":1},{"$f":"valuePL(S28,'Utility Functions'!$AI$3:$AI$6,'Utility Functions'!$AJ$3:$AJ$6)","v":1},{"$f":"valuePL(T28,'Utility Functions'!$AK$3:$AK$8,'Utility Functions'!$AL$3:$AL$8)","v":1},{"$f":"valuePL(U28,'Utility Functions'!$AM$3:$AM$5,'Utility Functions'!$AN$3:$AN$5)","v":0},{"$f":"valuePL(V28,'Utility Functions'!$AO$3:$AO$5,'Utility Functions'!$AP$3:$AP$5)","v":0.5},{"$f":"valuePL(W28,'Utility Functions'!$AQ$3:$AQ$6,'Utility Functions'!$AR$3:$AR$6)","v":0.75},{"$f":"valuePL(X28,'Utility Functions'!$AS$3:$AS$6,'Utility Functions'!$AT$3:$AT$6)","v":1},{"$f":"valuePL(Y28,'Utility Functions'!$AU$3:$AU$6,'Utility Functions'!$AV$3:$AV$6)","v":0.2},{"$f":"valuePL(Z28,'Utility Functions'!$AW$3:$AW$5,'Utility Functions'!$AX$3:$AX$5)","v":0},{"$f":"valuePL(AA28,'Utility Functions'!$AY$3:$AY$6,'Utility Functions'!$AZ$3:$AZ$6)","v":0},{"$f":"valuePL(AB28,'Utility Functions'!$BA$3:$BA$5,'Utility Functions'!$BB$3:$BB$5)","v":0},{"$f":"valuePL(AC28,'Utility Functions'!$BC$3:$BC$5,'Utility Functions'!$BD$3:$BD$5)","v":0},9.0147596715374529,null,9.0147596715374547,1.464759671537454,1.1000000000000001,0,4,2.4500000000000002]
[28,{"$f":"valueE(B29,'Utility Functions'!$B$3,'Utility Functions'!$B$4,'Utility Functions'!$B$5,'Utility Functions'!$B$6)","v":0.4511890475224023},{"$f":"valueE(C29,'Utility Functions'!$D$3,'Utility Functions'!$D$4,'Utility Functions'!$D$5,'Utility Functions'!$D$6)","v":0.46475967153745396},{"$f":"valuePL(D29,'Utility Functions'!$E$3:$E$5,'Utility Functions'!$F$3:$F$5)","v":1},{"$f":"valuePL(E29,'Utility Functions'!$G$3:$G$5,'Utility Functions'!$H$3:$H$5)","v":0},{"$f":"valuePL(F29,'Utility Functions'!$I$3:$I$4,'Utility Functions'!$J$3:$J$5)","v":1},{"$f":"valueE(G29,'Utility Functions'!$L$3,'Utility Functions'!$L$4,'Utility Functions'!$L$5,'Utility Functions'!$L$6)","v":0},{"$f":"valueE(H29,'Utility Functions'!$N$3,'Utility Functions'!$N$4,'Utility Functions'!$N$5,'Utility Functions'!$N$6)","v":0},{"$f":"valuePL(I29,'Utility Functions'!$O$3:$O$6,'Utility Functions'!$P$3:$P$6)","v":0},{"$f":"valuePL(J29,'Utility Functions'!$Q$3:$Q$6,'Utility Functions'!$R$3:$R$6)","v":0},{"$f":"valuePL(K29,'Utility Functions'!$S$3:$S$7,'Utility Functions'!$T$3:$T$7)","v":0},{"$f":"valueE(L29,'Utility Functions'!$V$3,'Utility Functions'!$V$4,'Utility Functions'!$V$5,'Utility Functions'!$V$6)","v":0.33333333333333331},{"$f":"valuePL(M29,'Utility Functions'!$W$3:$W$6,'Utility Functions'!$X$3:$X$6)","v":0.1},{"$f":"valueE(N29,'Utility Functions'!$Z$3,'Utility Functions'!$Z$4,'Utility Functions'!$Z$5,'Utility Functions'!$Z$6)","v":0},{"$f":"valuePL(O29,'Utility Functions'!$AA$3:$AA$5,'Utility Functions'!$AB$3:$AB$5)","v":0},{"$f":"valuePL(P29,'Utility Functions'!$AC$3:$AC$7,'Utility Functions'!$AD$3:$AD$7)","v":1},{"$f":"valuePL(Q29,'Utility Functions'!$AE$3:$AE$6,'Utility Functions'!$AF$3:$AF$6)","v":0},{"$f":"valuePL(R29,'Utility Functions'!$AG$3:$AG$6,'Utility Functions'!$AH$3:$AH$6)","v":1},{"$f":"valuePL(S29,'Utility Functions'!$AI$3:$AI$6,'Utility Functions'!$AJ$3:$AJ$6)","v":1},{"$f":"valuePL(T29,'Utility Functions'!$AK$3:$AK$8,'Utility Functions'!$AL$3:$AL$8)","v":0.8},{"$f":"valuePL(U29,'Utility Functions'!$AM$3:$AM$5,'Utility Functions'!$AN$3:$AN$5)","v":0},{"$f":"valuePL(V29,'Utility Functions'!$AO$3:$AO$5,'Utility Functions'!$AP$3:$AP$5)","v":1},{"$f":"valuePL(W29,'Utility Functions'!$AQ$3:$AQ$6,'Utility Functions'!$AR$3:$AR$6)","v":1},{"$f":"valuePL(X29,'Utility Functions'!$AS$3:$AS$6,'Utility Functions'!$AT$3:$AT$6)","v":1},{"$f":"valuePL(Y29,'Utility Functions'!$AU$3:$AU$6,'Utility Functions'!$AV$3:$AV$6)","v":0.2},{"$f":"valuePL(Z29,'Utility Functions'!$AW$3:$AW$5,'Utility Functions'!$AX$3:$AX$5)","v":0},{"$f":"valuePL(AA29,'Utility Functions'!$AY$3:$AY$6,'Utility Functions'!$AZ$3:$AZ$6)","v":0.89999999999999991},{"$f":"valuePL(AB29,'Utility Functions'!$BA$3:$BA$5,'Utility Functions'!$BB$3:$BB$5)","v":1},{"$f":"valuePL(AC29,'Utility Functions'!$BC$3:$BC$5,'Utility Functions'!$BD$3:$BD$5)","v":0.25},12.499282052393189,null,12.499282052393189,2.9159487190598563,0.43333333333333335,0,3.8,5.35]
[29,{"$f":"valueE(B30,'Utility Functions'!$B$3,'Utility Functions'!$B$4,'Utility Functions'!$B$5,'Utility Functions'!$B$6)","v":0.83470237647280454},{"$f":"valueE(C30,'Utility Functions'!$D$3,'Utility Functions'!$D$4,'Utility Functions'!$D$5,'Utility Functions'!$D$6)","v":0.71352759724260828},{"$f":"valuePL(D30,'Utility Functions'!$E$3:$E$5,'Utility Functions'!$F$3:$F$5)","v":1},{"$f":"valuePL(E30,'Utility Functions'!$G$3:$G$5,'Utility Functions'!$H$3:$H$5)","v":0.5},{"$f":"valuePL(F30,'Utility Functions'!$I$3:$I$4,'Utility Functions'!$J$3:$J$5)","v":0},{"$f":"valueE(G30,'Utility Functions'!$L$3,'Utility Functions'!$L$4,'Utility Functions'!$L$5,'Utility Functions'!$L$6)","v":0},{"$f":"valueE(H30,'Utility Functions'!$N$3,'Utility Functions'!$N$4,'Utility Functions'!$N$5,'Utility Functions'!$N$6)","v":0},{"$f":"valuePL(I30,'Utility Functions'!$O$3:$O$6,'Utility Functions'!$P$3:$P$6)","v":0.06},{"$f":"valuePL(J30,'Utility Functions'!$Q$3:$Q$6,'Utility Functions'!$R$3:$R$6)","v":0.67272727272727273},{"$f":"valuePL(K30,'Utility Functions'!$S$3:$S$7,'Utility Functions'!$T$3:$T$7)","v":0},{"$f":"valueE(L30,'Utility Functions'!$V$3,'Utility Functions'!$V$4,'Utility Functions'!$V$5,'Utility Functions'!$V$6)","v":1},{"$f":"valuePL(M30,'Utility Functions'!$W$3:$W$6,'Utility Functions'!$X$3:$X$6)","v":0.67272727272727273},{"$f":"valueE(N30,'Utility Functions'!$Z$3,'Utility Functions'!$Z$4,'Utility Functions'!$Z$5,'Utility Functions'!$Z$6)","v":0},{"$f":"valuePL(O30,'Utility Functions'!$AA$3:$AA$5,'Utility Functions'!$AB$3:$AB$5)","v":0},{"$f":"valuePL(P30,'Utility Functions'!$AC$3:$AC$7,'Utility Functions'!$AD$3:$AD$7)","v":0.25},{"$f":"valuePL(Q30,'Utility Functions'!$AE$3:$AE$6,'Utility Functions'!$AF$3:$AF$6)","v":0},{"$f":"valuePL(R30,'Utility Functions'!$AG$3:$AG$6,'Utility Functions'!$AH$3:$AH$6)","v":1},{"$f":"valuePL(S30,'Utility Functions'!$AI$3:$AI$6,'Utility Functions'!$AJ$3:$AJ$6)","v":1},{"$f":"valuePL(T30,'Utility Functions'!$AK$3:$AK$8,'Utility Functions'!$AL$3:$AL$8)","v":0.8},{"$f":"valuePL(U30,'Utility Functions'!$AM$3:$AM$5,'Utility Functions'!$AN$3:$AN$5)","v":0},{"$f":"valuePL(V30,'Utility Functions'!$AO$3:$AO$5,'Utility Functions'!$AP$3:$AP$5)","v":1},{"$f":"valuePL(W30,'Utility Functions'!$AQ$3:$AQ$6,'Utility Functions'!$AR$3:$AR$6)","v":0.2},{"$f":"valuePL(X30,'Utility Functions'!$AS$3:$AS$6,'Utility Functions'!$AT$3:$AT$6)","v":0},{"$f":"valuePL(Y30,'Utility Functions'!$AU$3:$AU$6,'Utility Functions'!$AV$3:$AV$6)","v":0.8},{"$f":"valuePL(Z30,'Utility Functions'!$AW$3:$AW$5,'Utility Functions'!$AX$3:$AX$5)","v":0.5},{"$f":"valuePL(AA30,'Utility Functions'!$AY$3:$AY$6,'Utility Functions'!$AZ$3:$AZ$6)","v":0.2},{"$f":"valuePL(AB30,'Utility Functions'!$BA$3:$BA$5,'Utility Functions'!$BB$3:$BB$5)","v":0.25},{"$f":"valuePL(AC30,'Utility Functions'!$BC$3:$BC$5,'Utility Functions'!$BD$3:$BD$5)","v":1},12.453684519169958,null,12.453684519169958,3.0482299737154128,2.4054545454545453,0,3.05,3.95]
[30,{"$f":"valueE(B31,'Utility Functions'!$B$3,'Utility Functions'!$B$4,'Utility Functions'!$B$5,'Utility Functions'!$B$6)","v":0.99864114504770318},{"$f":"valueE(C31,'Utility Functions'!$D$3,'Utility Functions'!$D$4,'Utility Functions'!$D$5,'Utility Functions'!$D$6)","v":0.84744836833951609},{"$f":"valuePL(D31,'Utility Functions'!$E$3:$E$5,'Utility Functions'!$F$3:$F$5)","v":1},{"$f":"valuePL(E31,'Utility Functions'!$G$3:$G$5,'Utility Functions'!$H$3:$H$5)","v":0},{"$f":"valuePL(F31,'Utility Functions'!$I$3:$I$4,'Utility Functions'!$J$3:$J$5)","v":0},{"$f":"valueE(G31,'Utility Functions'!$L$3,'Utility Functions'!$L$4,'Utility Functions'!$L$5,'Utility Functions'!$L$6)","v":0},{"$f":"valueE(H31,'Utility Functions'!$N$3,'Utility Functions'!$N$4,'Utility Functions'!$N$5,'Utility Functions'!$N$6)","v":0},{"$f":"valuePL(I31,'Utility Functions'!$O$3:$O$6,'Utility Functions'!$P$3:$P$6)","v":0},{"$f":"valuePL(J31,'Utility Functions'!$Q$3:$Q$6,'Utility Functions'!$R$3:$R$6)","v":0},{"$f":"valuePL(K31,'Utility Functions'!$S$3:$S$7,'Utility Functions'!$T$3:$T$7)","v":0},{"$f":"valueE(L31,'Utility Functions'!$V$3,'Utility Functions'!$V$4,'Utility Functions'!$V$5,'Utility Functions'!$V$6)","v":0.33333333333333331},{"$f":"valuePL(M31,'Utility Functions'!$W$3:$W$6,'Utility Functions'!$X$3:$X$6)","v":0.04},{"$f":"valueE(N31,'Utility Functions'!$Z$3,'Utility Functions'!$Z$4,'Utility Functions'!$Z$5,'Utility Functions'!$Z$6)","v":0},{"$f":"valuePL(O31,'Utility Functions'!$AA$3:$AA$5,'Utility Functions'!$AB$3:$AB$5)","v":0},{"$f":"valuePL(P31,'Utility Functions'!$AC$3:$AC$7,'Utility Functions'!$AD$3:$AD$7)","v":0},{"$f":"valuePL(Q31,'Utility Functions'!$AE$3:$AE$6,'Utility Functions'!$AF$3:$AF$6)","v":0},{"$f":"valuePL(R31,'Utility Functions'!$AG$3:$AG$6,'Utility Functions'!$AH$3:$AH$6)","v":0.2},{"$f":"valuePL(S31,'Utility Functions'!$AI$3:$AI$6,'Utility Functions'!$AJ$3:$AJ$6)","v":0.33},{"$f":"valuePL(T31,'Utility Functions'!$AK$3:$AK$8,'Utility Functions'!$AL$3:$AL$8)","v":0},{"$f":"valuePL(U31,'Utility Functions'!$AM$3:$AM$5,'Utility Functions'!$AN$3:$AN$5)","v":0},{"$f":"valuePL(V31,'Utility Functions'!$AO$3:$AO$5,'Utility Functions'!$AP$3:$AP$5)","v":0},{"$f":"valuePL(W31,'Utility Functions'!$AQ$3:$AQ$6,'Utility Functions'!$AR$3:$AR$6)","v":1},{"$f":"valuePL(X31,'Utility Functions'!$AS$3:$AS$6,'Utility Functions'!$AT$3:$AT$6)","v":0.2},{"$f":"valuePL(Y31,'Utility Functions'!$AU$3:$AU$6,'Utility Functions'!$AV$3:$AV$6)","v":0.8},{"$f":"valuePL(Z31,'Utility Functions'!$AW$3:$AW$5,'Utility Functions'!$AX$3:$AX$5)","v":0},{"$f":"valuePL(AA31,'Utility Functions'!$AY$3:$AY$6,'Utility Functions'!$AZ$3:$AZ$6)","v":0.89999999999999991},{"$f":"valuePL(AB31,'Utility Functions'!$BA$3:$BA$5,'Utility Functions'!$BB$3:$BB$5)","v":1},{"$f":"valuePL(AC31,'Utility Functions'!$BC$3:$BC$5,'Utility Functions'!$BD$3:$BD$5)","v":0},7.6494228467205527,null,7.6494228467205527,2.846089513387219,0.37333333333333329,0,0.53,3.9]
[31,{"$f":"valueE(B32,'Utility Functions'!$B$3,'Utility Functions'!$B$4,'Utility Functions'!$B$5,'Utility Functions'!$B$6)","v":0.55067187023002029},{"$f":"valueE(C32,'Utility Functions'!$D$3,'Utility Functions'!$D$4,'Utility Functions'!$D$5,'Utility Functions'!$D$6)","v":0.84744836833951609},{"$f":"valuePL(D32,'Utility Functions'!$E$3:$E$5,'Utility Functions'!$F$3:$F$5)","v":0.5},{"$f":"valuePL(E32,'Utility Functions'!$G$3:$G$5,'Utility Functions'!$H$3:$H$5)","v":0},{"$f":"valuePL(F32,'Utility Functions'!$I$3:$I$4,'Utility Functions'!$J$3:$J$5)","v":0},{"$f":"valueE(G32,'Utility Functions'!$L$3,'Utility Functions'!$L$4,'Utility Functions'!$L$5,'Utility Functions'!$L$6)","v":0},{"$f":"valueE(H32,'Utility Functions'!$N$3,'Utility Functions'!$N$4,'Utility Functions'!$N$5,'Utility Functions'!$N$6)","v":0},{"$f":"valuePL(I32,'Utility Functions'!$O$3:$O$6,'Utility Functions'!$P$3:$P$6)","v":0.75454545454545452},{"$f":"valuePL(J32,'Utility Functions'!$Q$3:$Q$6,'Utility Functions'!$R$3:$R$6)","v":0.08},{"$f":"valuePL(K32,'Utility Functions'!$S$3:$S$7,'Utility Functions'!$T$3:$T$7)","v":0},{"$f":"valueE(L32,'Utility Functions'!$V$3,'Utility Functions'!$V$4,'Utility Functions'!$V$5,'Utility Functions'!$V$6)","v":0.33333333333333331},{"$f":"valuePL(M32,'Utility Functions'!$W$3:$W$6,'Utility Functions'!$X$3:$X$6)","v":0.08},{"$f":"valueE(N32,'Utility Functions'!$Z$3,'Utility Functions'!$Z$4,'Utility Functions'!$Z$5,'Utility Functions'!$Z$6)","v":0},{"$f":"valuePL(O32,'Utility Functions'!$AA$3:$AA$5,'Utility Functions'!$AB$3:$AB$5)","v":0},{"$f":"valuePL(P32,'Utility Functions'!$AC$3:$AC$7,'Utility Functions'!$AD$3:$AD$7)","v":0.5},{"$f":"valuePL(Q32,'Utility Functions'!$AE$3:$AE$6,'Utility Functions'!$AF$3:$AF$6)","v":0},{"$f":"valuePL(R32,'Utility Functions'!$AG$3:$AG$6,'Utility Functions'!$AH$3:$AH$6)","v":1},{"$f":"valuePL(S32,'Utility Functions'!$AI$3:$AI$6,'Utility Functions'!$AJ$3:$AJ$6)","v":0.66},{"$f":"valuePL(T32,'Utility Functions'!$AK$3:$AK$8,'Utility Functions'!$AL$3:$AL$8)","v":0.6},{"$f":"valuePL(U32,'Utility Functions'!$AM$3:$AM$5,'Utility Functions'!$AN$3:$AN$5)","v":0},{"$f":"valuePL(V32,'Utility Functions'!$AO$3:$AO$5,'Utility Functions'!$AP$3:$AP$5)","v":0.5},{"$f":"valuePL(W32,'Utility Functions'!$AQ$3:$AQ$6,'Utility Functions'!$AR$3:$AR$6)","v":0},{"$f":"valuePL(X32,'Utility Functions'!$AS$3:$AS$6,'Utility Functions'!$AT$3:$AT$6)","v":0.2},{"$f":"valuePL(Y32,'Utility Functions'!$AU$3:$AU$6,'Utility Functions'!$AV$3:$AV$6)","v":0.2},{"$f":"valuePL(Z32,'Utility Functions'!$AW$3:$AW$5,'Utility Functions'!$AX$3:$AX$5)","v":1},{"$f":"valuePL(AA32,'Utility Functions'!$AY$3:$AY$6,'Utility Functions'!$AZ$3:$AZ$6)","v":0.89999999999999991},{"$f":"valuePL(AB32,'Utility Functions'!$BA$3:$BA$5,'Utility Functions'!$BB$3:$BB$5)","v":0.25},{"$f":"valuePL(AC32,'Utility Functions'!$BC$3:$BC$5,'Utility Functions'!$BD$3:$BD$5)","v":0.25},9.2059990264483247,null,9.2059990264483247,1.8981202385695364,1.2478787878787878,0,2.7600000000000002,3.3]
[32,{"$f":"valueE(B33,'Utility Functions'!$B$3,'Utility Functions'!$B$4,'Utility Functions'!$B$5,'Utility Functions'!$B$6)","v":0.63212151658375171},{"$f":"valueE(C33,'Utility Functions'!$D$3,'Utility Functions'!$D$4,'Utility Functions'!$D$5,'Utility Functions'!$D$6)","v":0.26839655623815994},{"$f":"valuePL(D33,'Utility Functions'!$E$3:$E$5,'Utility Functions'!$F$3:$F$5)","v":1},{"$f":"valuePL(E33,'Utility Functions'!$G$3:$G$5,'Utility Functions'!$H$3:$H$5)","v":1},{"$f":"valuePL(F33,'Utility Functions'!$I$3:$I$4,'Utility Functions'!$J$3:$J$5)","v":1},{"$f":"valueE(G33,'Utility Functions'!$L$3,'Utility Functions'!$L$4,'Utility Functions'!$L$5,'Utility Functions'!$L$6)","v":3.2258064516129031E-2},{"$f":"valueE(H33,'Utility Functions'!$N$3,'Utility Functions'!$N$4,'Utility Functions'!$N$5,'Utility Functions'!$N$6)","v":9.6774193548387094E-2},{"$f":"valuePL(I33,'Utility Functions'!$O$3:$O$6,'Utility Functions'!$P$3:$P$6)","v":0.34545454545454546},{"$f":"valuePL(J33,'Utility Functions'!$Q$3:$Q$6,'Utility Functions'!$R$3:$R$6)","v":1},{"$f":"valuePL(K33,'Utility Functions'!$S$3:$S$7,'Utility Functions'!$T$3:$T$7)","v":0.34545454545454546},{"$f":"valueE(L33,'Utility Functions'!$V$3,'Utility Functions'!$V$4,'Utility Functions'!$V$5,'Utility Functions'!$V$6)","v":1},{"$f":"valuePL(M33,'Utility Functions'!$W$3:$W$6,'Utility Functions'!$X$3:$X$6)","v":1},{"$f":"valueE(N33,'Utility Functions'!$Z$3,'Utility Functions'!$Z$4,'Utility Functions'!$Z$5,'Utility Functions'!$Z$6)","v":0},{"$f":"valuePL(O33,'Utility Functions'!$AA$3:$AA$5,'Utility Functions'!$AB$3:$AB$5)","v":0},{"$f":"valuePL(P33,'Utility Functions'!$AC$3:$AC$7,'Utility Functions'!$AD$3:$AD$7)","v":0.5},{"$f":"valuePL(Q33,'Utility Functions'!$AE$3:$AE$6,'Utility Functions'!$AF$3:$AF$6)","v":1},{"$f":"valuePL(R33,'Utility Functions'!$AG$3:$AG$6,'Utility Functions'!$AH$3:$AH$6)","v":1},{"$f":"valuePL(S33,'Utility Functions'!$AI$3:$AI$6,'Utility Functions'!$AJ$3:$AJ$6)","v":0},{"$f":"valuePL(T33,'Utility Functions'!$AK$3:$AK$8,'Utility Functions'!$AL$3:$AL$8)","v":0.8},{"$f":"valuePL(U33,'Utility Functions'!$AM$3:$AM$5,'Utility Functions'!$AN$3:$AN$5)","v":0},{"$f":"valuePL(V33,'Utility Functions'!$AO$3:$AO$5,'Utility Functions'!$AP$3:$AP$5)","v":0},{"$f":"valuePL(W33,'Utility Functions'!$AQ$3:$AQ$6,'Utility Functions'!$AR$3:$AR$6)","v":0.75},{"$f":"valuePL(X33,'Utility Functions'!$AS$3:$AS$6,'Utility Functions'!$AT$3:$AT$6)","v":0.2},{"$f":"valuePL(Y33,'Utility Functions'!$AU$3:$AU$6,'Utility Functions'!$AV$3:$AV$6)","v":0.8},{"$f":"valuePL(Z33,'Utility Functions'!$AW$3:$AW$5,'Utility Functions'!$AX$3:$AX$5)","v":0.5},{"$f":"valuePL(AA33,'Utility Functions'!$AY$3:$AY$6,'Utility Functions'!$AZ$3:$AZ$6)","v":0},{"$f":"valuePL(AB33,'Utility Functions'!$BA$3:$BA$5,'Utility Functions'!$BB$3:$BB$5)","v":1},{"$f":"valuePL(AC33,'Utility Functions'!$BC$3:$BC$5,'Utility Functions'!$BD$3:$BD$5)","v":0.25},14.52045942179552,null,14.520459421795518,3.9005180728219115,3.8199413489736074,0,3.3,3.5]
[33,{"$f":"valueE(B34,'Utility Functions'!$B$3,'Utility Functions'!$B$4,'Utility Functions'!$B$5,'Utility Functions'!$B$6)","v":0.93919136038504192},{"$f":"valueE(C34,'Utility Functions'!$D$3,'Utility Functions'!$D$4,'Utility Functions'!$D$5,'Utility Functions'!$D$6)","v":0.84744836833951609},{"$f":"valuePL(D34,'Utility Functions'!$E$3:$E$5,'Utility Functions'!$F$3:$F$5)","v":1},{"$f":"valuePL(E34,'Utility Functions'!$G$3:$G$5,'Utility Functions'!$H$3:$H$5)","v":0.5},{"$f":"valuePL(F34,'Utility Functions'!$I$3:$I$4,'Utility Functions'!$J$3:$J$5)","v":0},{"$f":"valueE(G34,'Utility Functions'!$L$3,'Utility Functions'!$L$4,'Utility Functions'!$L$5,'Utility Functions'!$L$6)","v":0},{"$f":"valueE(H34,'Utility Functions'!$N$3,'Utility Functions'!$N$4,'Utility Functions'!$N$5,'Utility Functions'!$N$6)","v":0},{"$f":"valuePL(I34,'Utility Functions'!$O$3:$O$6,'Utility Functions'!$P$3:$P$6)","v":0},{"$f":"valuePL(J34,'Utility Functions'!$Q$3:$Q$6,'Utility Functions'!$R$3:$R$6)","v":0},{"$f":"valuePL(K34,'Utility Functions'!$S$3:$S$7,'Utility Functions'!$T$3:$T$7)","v":0},{"$f":"valueE(L34,'Utility Functions'!$V$3,'Utility Functions'!$V$4,'Utility Functions'!$V$5,'Utility Functions'!$V$6)","v":0.5},{"$f":"valuePL(M34,'Utility Functions'!$W$3:$W$6,'Utility Functions'!$X$3:$X$6)","v":0},{"$f":"valueE(N34,'Utility Functions'!$Z$3,'Utility Functions'!$Z$4,'Utility Functions'!$Z$5,'Utility Functions'!$Z$6)","v":0},{"$f":"valuePL(O34,'Utility Functions'!$AA$3:$AA$5,'Utility Functions'!$AB$3:$AB$5)","v":0},{"$f":"valuePL(P34,'Utility Functions'!$AC$3:$AC$7,'Utility Functions'!$AD$3:$AD$7)","v":0.5},{"$f":"valuePL(Q34,'Utility Functions'!$AE$3:$AE$6,'Utility Functions'!$AF$3:$AF$6)","v":0},{"$f":"valuePL(R34,'Utility Functions'!$AG$3:$AG$6,'Utility Functions'!$AH$3:$AH$6)","v":1},{"$f":"valuePL(S34,'Utility Functions'!$AI$3:$AI$6,'Utility Functions'!$AJ$3:$AJ$6)","v":0.66},{"$f":"valuePL(T34,'Utility Functions'!$AK$3:$AK$8,'Utility Functions'!$AL$3:$AL$8)","v":0},{"$f":"valuePL(U34,'Utility Functions'!$AM$3:$AM$5,'Utility Functions'!$AN$3:$AN$5)","v":0},{"$f":"valuePL(V34,'Utility Functions'!$AO$3:$AO$5,'Utility Functions'!$AP$3:$AP$5)","v":0.5},{"$f":"valuePL(W34,'Utility Functions'!$AQ$3:$AQ$6,'Utility Functions'!$AR$3:$AR$6)","v":1},{"$f":"valuePL(X34,'Utility Functions'!$AS$3:$AS$6,'Utility Functions'!$AT$3:$AT$6)","v":0},{"$f":"valuePL(Y34,'Utility Functions'!$AU$3:$AU$6,'Utility Functions'!$AV$3:$AV$6)","v":0.8},{"$f":"valuePL(Z34,'Utility Functions'!$AW$3:$AW$5,'Utility Functions'!$AX$3:$AX$5)","v":1},{"$f":"valuePL(AA34,'Utility Functions'!$AY$3:$AY$6,'Utility Functions'!$AZ$3:$AZ$6)","v":1},{"$f":"valuePL(AB34,'Utility Functions'!$BA$3:$BA$5,'Utility Functions'!$BB$3:$BB$5)","v":0},{"$f":"valuePL(AC34,'Utility Functions'!$BC$3:$BC$5,'Utility Functions'!$BD$3:$BD$5)","v":0},10.246639728724558,null,10.246639728724558,3.2866397287245581,0.5,0,2.16,4.3]
[34,{"$f":"valueE(B35,'Utility Functions'!$B$3,'Utility Functions'!$B$4,'Utility Functions'!$B$5,'Utility Functions'!$B$6)","v":0},{"$f":"valueE(C35,'Utility Functions'!$D$3,'Utility Functions'!$D$4,'Utility Functions'!$D$5,'Utility Functions'!$D$6)","v":0},{"$f":"valuePL(D35,'Utility Functions'!$E$3:$E$5,'Utility Functions'!$F$3:$F$5)","v":0},{"$f":"valuePL(E35,'Utility Functions'!$G$3:$G$5,'Utility Functions'!$H$3:$H$5)","v":0},{"$f":"valuePL(F35,'Utility Functions'!$I$3:$I$4,'Utility Functions'!$J$3:$J$5)","v":0},{"$f":"valueE(G35,'Utility Functions'!$L$3,'Utility Functions'!$L$4,'Utility Functions'!$L$5,'Utility Functions'!$L$6)","v":0},{"$f":"valueE(H35,'Utility Functions'!$N$3,'Utility Functions'!$N$4,'Utility Functions'!$N$5,'Utility Functions'!$N$6)","v":1.1385199240986717E-2},{"$f":"valuePL(I35,'Utility Functions'!$O$3:$O$6,'Utility Functions'!$P$3:$P$6)","v":1},{"$f":"valuePL(J35,'Utility Functions'!$Q$3:$Q$6,'Utility Functions'!$R$3:$R$6)","v":0.91818181818181821},{"$f":"valuePL(K35,'Utility Functions'!$S$3:$S$7,'Utility Functions'!$T$3:$T$7)","v":1},{"$f":"valueE(L35,'Utility Functions'!$V$3,'Utility Functions'!$V$4,'Utility Functions'!$V$5,'Utility Functions'!$V$6)","v":1},{"$f":"valuePL(M35,'Utility Functions'!$W$3:$W$6,'Utility Functions'!$X$3:$X$6)","v":0.91818181818181821},{"$f":"valueE(N35,'Utility Functions'!$Z$3,'Utility Functions'!$Z$4,'Utility Functions'!$Z$5,'Utility Functions'!$Z$6)","v":0},{"$f":"valuePL(O35,'Utility Functions'!$AA$3:$AA$5,'Utility Functions'!$AB$3:$AB$5)","v":0},{"$f":"valuePL(P35,'Utility Functions'!$AC$3:$AC$7,'Utility Functions'!$AD$3:$AD$7)","v":0.5},{"$f":"valuePL(Q35,'Utility Functions'!$AE$3:$AE$6,'Utility Functions'!$AF$3:$AF$6)","v":0},{"$f":"valuePL(R35,'Utility Functions'!$AG$3:$AG$6,'Utility Functions'!$AH$3:$AH$6)","v":1},{"$f":"valuePL(S35,'Utility Functions'!$AI$3:$AI$6,'Utility Functions'!$AJ$3:$AJ$6)","v":1},{"$f":"valuePL(T35,'Utility Functions'!$AK$3:$AK$8,'Utility Functions'!$AL$3:$AL$8)","v":0.8},{"$f":"valuePL(U35,'Utility Functions'!$AM$3:$AM$5,'Utility Functions'!$AN$3:$AN$5)","v":0},{"$f":"valuePL(V35,'Utility Functions'!$AO$3:$AO$5,'Utility Functions'!$AP$3:$AP$5)","v":1},{"$f":"valuePL(W35,'Utility Functions'!$AQ$3:$AQ$6,'Utility Functions'!$AR$3:$AR$6)","v":1},{"$f":"valuePL(X35,'Utility Functions'!$AS$3:$AS$6,'Utility Functions'!$AT$3:$AT$6)","v":1},{"$f":"valuePL(Y35,'Utility Functions'!$AU$3:$AU$6,'Utility Functions'!$AV$3:$AV$6)","v":0},{"$f":"valuePL(Z35,'Utility Functions'!$AW$3:$AW$5,'Utility Functions'!$AX$3:$AX$5)","v":1},{"$f":"valuePL(AA35,'Utility Functions'!$AY$3:$AY$6,'Utility Functions'!$AZ$3:$AZ$6)","v":0.89999999999999991},{"$f":"valuePL(AB35,'Utility Functions'!$BA$3:$BA$5,'Utility Functions'!$BB$3:$BB$5)","v":0.25},{"$f":"valuePL(AC35,'Utility Functions'!$BC$3:$BC$5,'Utility Functions'!$BD$3:$BD$5)","v":0},13.297748835604624,null,13.297748835604624,0,4.847748835604623,0,3.3,5.15]
[35,{"$f":"valueE(B36,'Utility Functions'!$B$3,'Utility Functions'!$B$4,'Utility Functions'!$B$5,'Utility Functions'!$B$6)","v":0.79810469124896843},{"$f":"valueE(C36,'Utility Functions'!$D$3,'Utility Functions'!$D$4,'Utility Functions'!$D$5,'Utility Functions'!$D$6)","v":0.60939983135101949},{"$f":"valuePL(D36,'Utility Functions'!$E$3:$E$5,'Utility Functions'!$F$3:$F$5)","v":0.5},{"$f":"valuePL(E36,'Utility Functions'!$G$3:$G$5,'Utility Functions'!$H$3:$H$5)","v":0.5},{"$f":"valuePL(F36,'Utility Functions'!$I$3:$I$4,'Utility Functions'!$J$3:$J$5)","v":1},{"$f":"valueE(G36,'Utility Functions'!$L$3,'Utility Functions'!$L$4,'Utility Functions'!$L$5,'Utility Functions'!$L$6)","v":0},{"$f":"valueE(H36,'Utility Functions'!$N$3,'Utility Functions'!$N$4,'Utility Functions'!$N$5,'Utility Functions'!$N$6)","v":0},{"$f":"valuePL(I36,'Utility Functions'!$O$3:$O$6,'Utility Functions'!$P$3:$P$6)","v":0},{"$f":"valuePL(J36,'Utility Functions'!$Q$3:$Q$6,'Utility Functions'!$R$3:$R$6)","v":0},{"$f":"valuePL(K36,'Utility Functions'!$S$3:$S$7,'Utility Functions'!$T$3:$T$7)","v":1},{"$f":"valueE(L36,'Utility Functions'!$V$3,'Utility Functions'!$V$4,'Utility Functions'!$V$5,'Utility Functions'!$V$6)","v":0.66666666666666663},{"$f":"valuePL(M36,'Utility Functions'!$W$3:$W$6,'Utility Functions'!$X$3:$X$6)","v":0.1},{"$f":"valueE(N36,'Utility Functions'!$Z$3,'Utility Functions'!$Z$4,'Utility Functions'!$Z$5,'Utility Functions'!$Z$6)","v":1},{"$f":"valuePL(O36,'Utility Functions'!$AA$3:$AA$5,'Utility Functions'!$AB$3:$AB$5)","v":0},{"$f":"valuePL(P36,'Utility Functions'!$AC$3:$AC$7,'Utility Functions'!$AD$3:$AD$7)","v":0},{"$f":"valuePL(Q36,'Utility Functions'!$AE$3:$AE$6,'Utility Functions'!$AF$3:$AF$6)","v":0},{"$f":"valuePL(R36,'Utility Functions'!$AG$3:$AG$6,'Utility Functions'!$AH$3:$AH$6)","v":1},{"$f":"valuePL(S36,'Utility Functions'!$AI$3:$AI$6,'Utility Functions'!$AJ$3:$AJ$6)","v":1},{"$f":"valuePL(T36,'Utility Functions'!$AK$3:$AK$8,'Utility Functions'!$AL$3:$AL$8)","v":0.6},{"$f":"valuePL(U36,'Utility Functions'!$AM$3:$AM$5,'Utility Functions'!$AN$3:$AN$5)","v":0},{"$f":"valuePL(V36,'Utility Functions'!$AO$3:$AO$5,'Utility Functions'!$AP$3:$AP$5)","v":1},{"$f":"valuePL(W36,'Utility Functions'!$AQ$3:$AQ$6,'Utility Functions'!$AR$3:$AR$6)","v":0.75},{"$f":"valuePL(X36,'Utility Functions'!$AS$3:$AS$6,'Utility Functions'!$AT$3:$AT$6)","v":0},{"$f":"valuePL(Y36,'Utility Functions'!$AU$3:$AU$6,'Utility Functions'!$AV$3:$AV$6)","v":0.2},{"$f":"valuePL(Z36,'Utility Functions'!$AW$3:$AW$5,'Utility Functions'!$AX$3:$AX$5)","v":1},{"$f":"valuePL(AA36,'Utility Functions'!$AY$3:$AY$6,'Utility Functions'!$AZ$3:$AZ$6)","v":0},{"$f":"valuePL(AB36,'Utility Functions'!$BA$3:$BA$5,'Utility Functions'!$BB$3:$BB$5)","v":0.25},{"$f":"valuePL(AC36,'Utility Functions'!$BC$3:$BC$5,'Utility Functions'!$BD$3:$BD$5)","v":0.25},12.224171189266654,null,12.224171189266656,3.407504522599988,1.7666666666666666,1,2.6,3.45]
["Unweighted",{"$f":"SUMPRODUCT(B46:B80,$B$85:$B$119)","v":2.2879679218640305},{"$f":"SUMPRODUCT(C46:C80,$B$85:$B$119)","v":2.0544502672077192},{"$f":"SUMPRODUCT(D46:D80,$B$85:$B$119)","v":3},0.5,0,0,3.9848197343453511E-2,0.83818181818181825,0.08,0.3290909090909091,1.5,0.04,2.5,0.75,1,1.6,4,3.66,1.8,0.75,3,3.75,2.4000000000000004,3.4000000000000004,3.5,2.2999999999999998,2.5,1.5,null,null,"Unweighted",{"$f":"SUMPRODUCT(AG46:AG80,$B$85:$B$119)","v":7.8424181890717497},{"$f":"SUMPRODUCT(AH46:AH80,$B$85:$B$119)","v":2.8271209246161808},3.25,12.81,22.35]
["Weighted",{"$f":"B$81*Sens_Int!I$5","v":4.7736332754941345E-2},{"$f":"C$81*Sens_Int!J$5","v":4.0520594379770077E-2},{"$f":"D$81*Sens_Int!K$5","v":5.9923477978987193E-2},{"$f":"E$81*Sens_Int!L$5","v":9.7301152550498659E-3},{"$f":"F$81*Sens_Int!M$5","v":0},{"$f":"G$81*Sens_Int!N$5","v":0},{"$f":"H$81*Sens_Int!O$5","v":3.8918471263111736E-4},{"$f":"I$81*Sens_Int!P$5","v":1.3896076763936203E-2},{"$f":"J$81*Sens_Int!Q$5","v":1.2924194837102743E-3},{"$f":"K$81*Sens_Int!R$5","v":4.6840978482064442E-3},{"$f":"L$81*Sens_Int!S$5","v":2.1883132911966655E-2},{"$f":"M$81*Sens_Int!T$5","v":4.4062473337624182E-4},{"$f":"N$81*Sens_Int!U$5","v":4.9342105263157895E-2},{"$f":"O$81*Sens_Int!V$5","v":4.4407894736842105E-2},{"$f":"P$81*Sens_Int!W$5","v":8.2369666468565875E-2},{"$f":"Q$81*Sens_Int!X$5","v":0.14527545700903252},{"$f":"R$81*Sens_Int!Y$5","v":0.41572327558354366},{"$f":"S$81*Sens_Int!Z$5","v":0.33316250231246519},{"$f":"T$81*Sens_Int!AA$5","v":0.11926245294053867},{"$f":"U$81*Sens_Int!AB$5","v":4.9213072206226269E-2},{"$f":"V$81*Sens_Int!AC$5","v":0.10747967329190648},{"$f":"W$81*Sens_Int!AD$5","v":9.6889079500713626E-2},{"$f":"X$81*Sens_Int!AE$5","v":6.6314868085871892E-2},{"$f":"Y$81*Sens_Int!AF$5","v":0.11674424753678368},{"$f":"Z$81*Sens_Int!AG$5","v":0.10413126780526606},{"$f":"AA$81*Sens_Int!AH$5","v":5.3022131610917719E-2},{"$f":"AB$81*Sens_Int!AI$5","v":6.1120594811221243E-2},{"$f":"AC$81*Sens_Int!AJ$5","v":3.4199545560219376E-2},null,null,"Weighted for SA",{"$f":"AG81*#REF!","v":{"$error":"#REF!"}},{"$f":"AH81*#REF!","v":{"$error":"#REF!"}},{"$f":"AI81*#REF!","v":{"$error":"#REF!"}},{"$f":"AJ81*#REF!","v":{"$error":"#REF!"}},{"$f":"AK81*#REF!","v":{"$error":"#REF!"}}]
[]
[null,"Decision variable","Benefit","Cost"]
[{"$f":"A2","v":1},0,{"$f":"AD46","v":17.117643866192076},{"$f":"AD2","v":700000}]
[2,0,{"$f":"AD47","v":12.641625800575998},{"$f":"AD3","v":5400000}]
[3,1,11.563541444302563,250000]
[4,0,9.2460291931089209,150000]
[5,1,9.5663279251355373,220000]
[6,0,5.9008471271383875,110000]
[7,0,15.54287399641135,1000000]
[8,0,14.227364688589191,5000000]
[9,0,11.893773577166716,25000]
[10,0,9.01,900000]
[11,0,13.174032258064516,1500000]
[12,0,9.4195802436719873,100000]
[13,1,7.5245670174228056,250000]
[14,0,10.338706637075108,500000]
[15,0,15.150477261414375,800000]
[16,0,15.119696969696969,2000000]
[17,0,10.876550515651747,500000]
[18,1,10.178462998102468,300000]
[19,0,9.3165012474871283,750000]
[20,0,15.091255033092194,1500000]
[21,0,9.5500000000000007,900000]
[22,0,9.471742567994939,750000]
[23,0,9.5321507448123199,1000000]
[24,0,9.4968811881212041,150000]
[25,0,13.870607417804099,250000]
[26,0,11.064076562960208,500000]
[27,0,9.0147596715374529,1200000]
[28,0,12.499282052393189,500000]
[29,0,12.453684519169958,2000000]
[30,0,7.6494228467205527,250000]
[31,0,9.2059990264483247,650000]
[32,0,14.52045942179552,200000]
[33,1,10.246639728724558,400000]
[34,0,13.297748835604624,900000]
[35,0,12.224171189266654,900000]
[null,{"$f":"SUM(B85:B119)","v":5},{"$f":"SUMPRODUCT(C85:C119,B85:B119)","v":49.079539113687936},{"$f":"SUMPRODUCT(B85:B119,D85:D119)","v":1420000}]
[]
[null,null,"Cost constraint",15000000]

{"sheet":"Portfolio_E_Int","index":32,"n_rows":122,"n_cols":37,"rows_kept":122,"cut":false,"hidden":false,"merged":[]}
["Project","manage_species","manage_spatial","manage_uncertainty","manage_currentpractices","manage_adaptivemanagement","pop_a","pop_b","pop_spatialscope","pop_temporalscope","hab_quantity","hab_quality","hab_temporal","ecoprocess_spp","ecoprocess_uncertainty","datasharing","broaderimpacts","exisitingpriorities","partners","leverage","alignment","objhyp","response","targettaxa","surveydesign","stats","datamanagement","budget","timeline","cost"]
[1,9,6.25,2,2,0,186,1054,75,5,0,2,0,0,0,4,0,2,3,0,0,2,3,3,3,2,3,2,2,700000]
[2,3,28.2,1,0,0,0,0,0,0,0,2,0,4,1,0,0,3,3,0,0,2,3,3,3,2,3,2,2,5400000]
[3,8,28.2,2,0,0,0,0,0,0,0,2,0,5,1,0,2,0,0,0,1,2,3,3,3,2,1,2,2,250000]
[4,1,6.25,2,0,0,0,0,0,0,0,2,0,4,1,0,1,3,3,4,0,1,3,3,1,0,0,2,1,150000]
[5,4,3.1,2,0,0,0,0,50,2,0,2,0,0,0,0,1,3,3,4,1,0,3,3,2,0,0,2,1,220000]
[6,10,6.2E-2,2,0,0,0,0,10,2,0,2,0,0,0,0,1,0,3,3,0,0,0,3,0,0,0,2,1,110000]
[7,52,18.8,0,2,0,0,0,85,12,85,8,12,8,1,0,0,3,3,0,0,2,0,1,3,2,2,0,2,1000000]
[8,3,18.8,2,1,1,0,0,14,14,14,8,14,0,0,0,3,1,3,0,0,2,3,3,3,2,0,1,1,5000000]
[9,9,15.6,2,1,0,70,140,0,0,0,2,0,0,0,3,0,3,2,1,0,2,3,3,1,2,1,1,2,25000]
[10,0,0,0,0,0,0,0,0,0,0,2,0,6,2,1,2,3,2,2,0,0,2,3,3,1,1,0,2,900000]
[11,0,0,0,0,0,6,102,52,15,52,8,15,3,1,1,0,3,3,2,2,2,1,3,3,1,2,0,1,1500000]
[12,2,15.6,2,1,0,0,0,0,0,0,2,0,0,0,0,1,3,3,3,0,1,1,3,1,2,1,2,0,100000]
[13,0,0,0,0,0,0,12,39,2,39,8,2,7,1,1,0,3,3,0,0,1,0,1,0,2,1,1,1,250000]
[14,6,15.6,1,1,0,0,0,0,0,0,2,0,6,1,1,0,3,3,0,0,1,1,3,3,1,2,1,1,500000]
[15,23,12.5,2,1,1,0,0,23,3,23,8,3,1,2,2,0,2,3,3,2,0,3,1,1,2,3,2,1,800000]
[16,0,0,0,0,0,0,0,100,15,100,7,15,0,0,3,0,3,3,5,0,2,2,2,1,2,3,2,2,2000000]
[17,2,15.6,2,1,1,58,290,0,0,0,8,3,0,0,0,0,3,2,0,0,2,3,1,0,1,0,2,1,500000]
[18,0,0,0,0,0,0,30,0,0,0,2,0,8,1,1,3,3,3,5,1,2,2,1,2,1,2,1,0,300000]
[19,8,3.125,1,2,0,0,0,0,0,0,2,0,8,2,0,0,2,3,0,0,1,1,3,2,0,1,0,1,750000]
[20,9,15.6,1,2,0,0,435,76,10,76,6,10,8,2,1,0,3,3,3,2,1,0,0,1,2,1,0,1,1500000]
[21,0,0,0,0,0,0,0,0,0,0,2,0,8,2,0,1,3,3,5,1,0,2,3,1,0,3,1,2,900000]
[22,0,0,0,0,0,16,64,0,0,0,2,0,1,2,4,2,2,3,5,0,1,2,1,0,2,1,2,1,750000]
[23,9,18.8,2,0,0,0,0,0,0,0,2,0,0,0,3,0,3,3,5,0,2,1,2,1,1,1,0,1,1000000]
[24,5,6.25,2,0,0,0,0,0,0,0,2,0,0,0,0,0,3,3,5,0,0,3,1,3,2,1,0,2,150000]
[25,9,18.8,2,0,0,176,308,0,0,0,2,0,8,1,2,2,3,3,0,0,2,1,3,2,1,1,2,2,250000]
[26,17,18.8,2,1,0,0,0,0,0,0,2,0,0,0,3,0,3,3,4,0,2,1,0,2,0,1,2,2,500000]
[27,0,6.25,2,0,0,0,0,0,0,80,2,5,0,0,2,2,3,3,5,0,1,2,3,1,0,0,0,0,1200000]
[28,3,6.25,2,0,1,0,0,0,0,0,4,5,0,0,4,0,3,3,4,0,2,3,3,1,0,2,2,1,500000]
[29,9,12.5,2,1,0,0,0,15,12,15,8,12,0,0,1,0,3,3,4,0,2,1,0,2,1,1,1,2,2000000]
[30,33,18.8,2,0,0,0,0,0,0,0,4,2,0,0,0,0,1,1,0,0,0,3,1,2,0,2,2,0,250000]
[31,4,18.8,1,0,0,0,0,65,4,0,4,4,0,0,2,0,3,2,3,0,1,0,1,1,2,2,1,1,650000]
[32,5,3.125,2,2,1,6,102,40,16,40,8,16,0,0,2,3,3,0,4,0,0,2,1,2,1,0,2,1,200000]
[33,14,18.8,2,1,0,0,0,0,0,0,5,0,0,0,2,0,3,2,0,0,1,3,0,2,2,3,0,0,400000]
[34,0,0,0,0,0,0,12,100,15,100,8,15,0,0,2,0,3,3,4,0,2,3,3,0,2,2,1,0,900000]
[35,8,9.4,1,1,1,0,0,0,0,100,6,5,8,0,0,0,3,3,3,0,2,2,0,1,2,0,1,1,900000]
["CV",{"$f":"_xlfn.STDEV.S(B2:B36)/AVERAGE(B2:B36)","v":1.383842854444886},{"$f":"_xlfn.STDEV.S(C2:C36)/AVERAGE(C2:C36)","v":0.84395823753626376},{"$f":"_xlfn.STDEV.S(D2:D36)/AVERAGE(D2:D36)","v":0.65948586466528381},{"$f":"_xlfn.STDEV.S(E2:E36)/AVERAGE(E2:E36)","v":1.2933654230908831},2.2305806858480666,2.9881459898804135,2.7250501152884543,1.5394659205075842,1.5790297611729722,1.6828143944790142,0.63288342730791625,1.4346340567392073,1.2744250477591585,1.2909944487358058,1.043011114951035,1.4910544805781871,0.32582327651393111,0.30721159062514791,0.8219511329380369,2.1760730956581078,0.64975875258290616,0.58618247649425104,0.61083323417736113,0.63333947951472869,0.68629571860885286,0.76505300516434493,0.69428102652373402,0.60312027652595823]
["sd",{"$f":"_xlfn.STDEV.S(B2:B36)","v":10.477667326511279}]
["mean",{"$f":"AVERAGE(B2:B36)","v":7.5714285714285712}]
[null,{"$f":"B1","v":"manage_species"},{"$f":"C1","v":"manage_spatial"},"manage_uncertainty","manage_currentpractices","manage_adaptivemanagement","pop_a","pop_b","pop_spatialscope","pop_temporalscope","hab_quantity","hab_quality","hab_temporal","ecoprocess_spp","ecoprocess_uncertainty","datasharing","broaderimpacts","exisitingpriorities","partners","leverage","alignment","objhyp","response","targettaxa","surveydesign","stats","datamanagement","budget","timeline"]
[null,"Metric 1","Metric 2","Metric 3","Metric 4","Metric 5","Metric 6a","Metric 6b","Metric 7","Metric 8","Metric 9","Metric 10","Metric 11","Metric 12","Metric 13","Metric 14","Metric 15","Metric 16","Metric 17","Metric 18","Metric 19","Metric 20","Metric 21","Metric 22","Metric 23","Metric 24","Metric 25","Metric 26","Metric 27"]
["Weights",0.03,0.03,0.03,0.03,0.04,1.4999999999999999E-2,1.4999999999999999E-2,0.03,0.02,0.02,0.02,0.02,0.03,0.09,0.04,0.04,0.05,0.05,0.03,0.03,0.05,0.04,0.04,0.05,0.05,0.04,0.04,0.03]
[]
[null,"Unweighted"]
["Project",null,null,null,null,null,null,null,null,null,null,null,null,null,null,null,null,null,null,null,null,null,null,null,null,null,null,null,null,"Unweighted total",null,"Unweighted total","management","status","ecol_proc","integration","rigor"]
[{"$f":"A2","v":1},{"$f":"valueE(B2,'Utility Functions'!$B$3,'Utility Functions'!$B$4,'Utility Functions'!$B$5,'Utility Functions'!$B$6)","v":0.83470237647280454},{"$f":"valueE(C2,'Utility Functions'!$D$3,'Utility Functions'!$D$4,'Utility Functions'!$D$5,'Utility Functions'!$D$6)","v":0.46475967153745396},{"$f":"valuePL(D2,'Utility Functions'!$E$3:$E$5,'Utility Functions'!$F$3:$F$5)","v":1},{"$f":"valuePL(E2,'Utility Functions'!$G$3:$G$5,'Utility Functions'!$H$3:$H$5)","v":1},{"$f":"valuePL(F2,'Utility Functions'!$I$3:$I$4,'Utility Functions'!$J$3:$J$5)","v":0},{"$f":"valueE(G2,'Utility Functions'!$L$3,'Utility Functions'!$L$4,'Utility Functions'!$L$5,'Utility Functions'!$L$6)","v":1},{"$f":"valueE(H2,'Utility Functions'!$N$3,'Utility Functions'!$N$4,'Utility Functions'!$N$5,'Utility Functions'!$N$6)","v":1},{"$f":"valuePL(I2,'Utility Functions'!$O$3:$O$6,'Utility Functions'!$P$3:$P$6)","v":0.91818181818181821},{"$f":"valuePL(J2,'Utility Functions'!$Q$3:$Q$6,'Utility Functions'!$R$3:$R$6)","v":0.1},{"$f":"valuePL(K2,'Utility Functions'!$S$3:$S$7,'Utility Functions'!$T$3:$T$7)","v":0},{"$f":"valueE(L2,'Utility Functions'!$V$3,'Utility Functions'!$V$4,'Utility Functions'!$V$5,'Utility Functions'!$V$6)","v":0},{"$f":"valuePL(M2,'Utility Functions'!$W$3:$W$6,'Utility Functions'!$X$3:$X$6)","v":0},{"$f":"valueE(N2,'Utility Functions'!$Z$3,'Utility Functions'!$Z$4,'Utility Functions'!$Z$5,'Utility Functions'!$Z$6)","v":0},{"$f":"valuePL(O2,'Utility Functions'!$AA$3:$AA$5,'Utility Functions'!$AB$3:$AB$5)","v":0},{"$f":"valuePL(P2,'Utility Functions'!$AC$3:$AC$7,'Utility Functions'!$AD$3:$AD$7)","v":1},{"$f":"valuePL(Q2,'Utility Functions'!$AE$3:$AE$6,'Utility Functions'!$AF$3:$AF$6)","v":0},{"$f":"valuePL(R2,'Utility Functions'!$AG$3:$AG$6,'Utility Functions'!$AH$3:$AH$6)","v":0.8},{"$f":"valuePL(S2,'Utility Functions'!$AI$3:$AI$6,'Utility Functions'!$AJ$3:$AJ$6)","v":1},{"$f":"valuePL(T2,'Utility Functions'!$AK$3:$AK$8,'Utility Functions'!$AL$3:$AL$8)","v":0},{"$f":"valuePL(U2,'Utility Functions'!$AM$3:$AM$5,'Utility Functions'!$AN$3:$AN$5)","v":0},{"$f":"valuePL(V2,'Utility Functions'!$AO$3:$AO$5,'Utility Functions'!$AP$3:$AP$5)","v":1},{"$f":"valuePL(W2,'Utility Functions'!$AQ$3:$AQ$6,'Utility Functions'!$AR$3:$AR$6)","v":1},{"$f":"valuePL(X2,'Utility Functions'!$AS$3:$AS$6,'Utility Functions'!$AT$3:$AT$6)","v":1},{"$f":"valuePL(Y2,'Utility Functions'!$AU$3:$AU$6,'Utility Functions'!$AV$3:$AV$6)","v":1},{"$f":"valuePL(Z2,'Utility Functions'!$AW$3:$AW$5,'Utility Functions'!$AX$3:$AX$5)","v":1},{"$f":"valuePL(AA2,'Utility Functions'!$AY$3:$AY$6,'Utility Functions'!$AZ$3:$AZ$6)","v":1},{"$f":"valuePL(AB2,'Utility Functions'!$BA$3:$BA$5,'Utility Functions'!$BB$3:$BB$5)","v":1},{"$f":"valuePL(AC2,'Utility Functions'!$BC$3:$BC$5,'Utility Functions'!$BD$3:$BD$5)","v":1},{"$f":"SUM(B46:AC46)","v":17.117643866192076},null,{"$f":"SUM(AG46:AK46)","v":17.117643866192076},{"$f":"SUM(B46:F46)","v":3.2994620480102586},{"$f":"SUM(G46:M46)","v":3.0181818181818181},{"$f":"SUM(N46:O46)","v":0},{"$f":"SUM(P46:U46)","v":2.8},{"$f":"SUM(V46:AC46)","v":8}]
[2,{"$f":"valueE(B3,'Utility Functions'!$B$3,'Utility Functions'!$B$4,'Utility Functions'!$B$5,'Utility Functions'!$B$6)","v":0.4511890475224023},{"$f":"valueE(C3,'Utility Functions'!$D$3,'Utility Functions'!$D$4,'Utility Functions'!$D$5,'Utility Functions'!$D$6)","v":0.94043675305359531},{"$f":"valuePL(D3,'Utility Functions'!$E$3:$E$5,'Utility Functions'!$F$3:$F$5)","v":0.5},{"$f":"valuePL(E3,'Utility Functions'!$G$3:$G$5,'Utility Functions'!$H$3:$H$5)","v":0},{"$f":"valuePL(F3,'Utility Functions'!$I$3:$I$4,'Utility Functions'!$J$3:$J$5)","v":0},{"$f":"valueE(G3,'Utility Functions'!$L$3,'Utility Functions'!$L$4,'Utility Functions'!$L$5,'Utility Functions'!$L$6)","v":0},{"$f":"valueE(H3,'Utility Functions'!$N$3,'Utility Functions'!$N$4,'Utility Functions'!$N$5,'Utility Functions'!$N$6)","v":0},{"$f":"valuePL(I3,'Utility Functions'!$O$3:$O$6,'Utility Functions'!$P$3:$P$6)","v":0},{"$f":"valuePL(J3,'Utility Functions'!$Q$3:$Q$6,'Utility Functions'!$R$3:$R$6)","v":0},{"$f":"valuePL(K3,'Utility Functions'!$S$3:$S$7,'Utility Functions'!$T$3:$T$7)","v":0},{"$f":"valueE(L3,'Utility Functions'!$V$3,'Utility Functions'!$V$4,'Utility Functions'!$V$5,'Utility Functions'!$V$6)","v":0},{"$f":"valuePL(M3,'Utility Functions'!$W$3:$W$6,'Utility Functions'!$X$3:$X$6)","v":0},{"$f":"valueE(N3,'Utility Functions'!$Z$3,'Utility Functions'!$Z$4,'Utility Functions'!$Z$5,'Utility Functions'!$Z$6)","v":0.5},{"$f":"valuePL(O3,'Utility Functions'!$AA$3:$AA$5,'Utility Functions'!$AB$3:$AB$5)","v":0.25},{"$f":"valuePL(P3,'Utility Functions'!$AC$3:$AC$7,'Utility Functions'!$AD$3:$AD$7)","v":0},{"$f":"valuePL(Q3,'Utility Functions'!$AE$3:$AE$6,'Utility Functions'!$AF$3:$AF$6)","v":0},{"$f":"valuePL(R3,'Utility Functions'!$AG$3:$AG$6,'Utility Functions'!$AH$3:$AH$6)","v":1},{"$f":"valuePL(S3,'Utility Functions'!$AI$3:$AI$6,'Utility Functions'!$AJ$3:$AJ$6)","v":1},{"$f":"valuePL(T3,'Utility Functions'!$AK$3:$AK$8,'Utility Functions'!$AL$3:$AL$8)","v":0},{"$f":"valuePL(U3,'Utility Functions'!$AM$3:$AM$5,'Utility Functions'!$AN$3:$AN$5)","v":0},{"$f":"valuePL(V3,'Utility Functions'!$AO$3:$AO$5,'Utility Functions'!$AP$3:$AP$5)","v":1},{"$f":"valuePL(W3,'Utility Functions'!$AQ$3:$AQ$6,'Utility Functions'!$AR$3:$AR$6)","v":1},{"$f":"valuePL(X3,'Utility Functions'!$AS$3:$AS$6,'Utility Functions'!$AT$3:$AT$6)","v":1},{"$f":"valuePL(Y3,'Utility Functions'!$AU$3:$AU$6,'Utility Functions'!$AV$3:$AV$6)","v":1},{"$f":"valuePL(Z3,'Utility Functions'!$AW$3:$AW$5,'Utility Functions'!$AX$3:$AX$5)","v":1},{"$f":"valuePL(AA3,'Utility Functions'!$AY$3:$AY$6,'Utility Functions'!$AZ$3:$AZ$6)","v":1},{"$f":"valuePL(AB3,'Utility Functions'!$BA$3:$BA$5,'Utility Functions'!$BB$3:$BB$5)","v":1},{"$f":"valuePL(AC3,'Utility Functions'!$BC$3:$BC$5,'Utility Functions'!$BD$3:$BD$5)","v":1},{"$f":"SUM(B47:AC47)","v":12.641625800575998},null,{"$f":"SUM(AG47:AK47)","v":12.641625800575998},{"$f":"SUM(B47:F47)","v":1.8916258005759976},{"$f":"SUM(G47:M47)","v":0},{"$f":"SUM(N47:O47)","v":0.75},{"$f":"SUM(P47:U47)","v":2},{"$f":"SUM(V47:AC47)","v":8}]
[3,{"$f":"valueE(B4,'Utility Functions'!$B$3,'Utility Functions'!$B$4,'Utility Functions'!$B$5,'Utility Functions'!$B$6)","v":0.79810469124896843},{"$f":"valueE(C4,'Utility Functions'!$D$3,'Utility Functions'!$D$4,'Utility Functions'!$D$5,'Utility Functions'!$D$6)","v":0.94043675305359531},{"$f":"valuePL(D4,'Utility Functions'!$E$3:$E$5,'Utility Functions'!$F$3:$F$5)","v":1},{"$f":"valuePL(E4,'Utility Functions'!$G$3:$G$5,'Utility Functions'!$H$3:$H$5)","v":0},{"$f":"valuePL(F4,'Utility Functions'!$I$3:$I$4,'Utility Functions'!$J$3:$J$5)","v":0},{"$f":"valueE(G4,'Utility Functions'!$L$3,'Utility Functions'!$L$4,'Utility Functions'!$L$5,'Utility Functions'!$L$6)","v":0},{"$f":"valueE(H4,'Utility Functions'!$N$3,'Utility Functions'!$N$4,'Utility Functions'!$N$5,'Utility Functions'!$N$6)","v":0},{"$f":"valuePL(I4,'Utility Functions'!$O$3:$O$6,'Utility Functions'!$P$3:$P$6)","v":0},{"$f":"valuePL(J4,'Utility Functions'!$Q$3:$Q$6,'Utility Functions'!$R$3:$R$6)","v":0},{"$f":"valuePL(K4,'Utility Functions'!$S$3:$S$7,'Utility Functions'!$T$3:$T$7)","v":0},{"$f":"valueE(L4,'Utility Functions'!$V$3,'Utility Functions'!$V$4,'Utility Functions'!$V$5,'Utility Functions'!$V$6)","v":0},{"$f":"valuePL(M4,'Utility Functions'!$W$3:$W$6,'Utility Functions'!$X$3:$X$6)","v":0},{"$f":"valueE(N4,'Utility Functions'!$Z$3,'Utility Functions'!$Z$4,'Utility Functions'!$Z$5,'Utility Functions'!$Z$6)","v":0.625},{"$f":"valuePL(O4,'Utility Functions'!$AA$3:$AA$5,'Utility Functions'!$AB$3:$AB$5)","v":0.25},{"$f":"valuePL(P4,'Utility Functions'!$AC$3:$AC$7,'Utility Functions'!$AD$3:$AD$7)","v":0},{"$f":"valuePL(Q4,'Utility Functions'!$AE$3:$AE$6,'Utility Functions'!$AF$3:$AF$6)","v":0.5},{"$f":"valuePL(R4,'Utility Functions'!$AG$3:$AG$6,'Utility Functions'!$AH$3:$AH$6)","v":0},{"$f":"valuePL(S4,'Utility Functions'!$AI$3:$AI$6,'Utility Functions'!$AJ$3:$AJ$6)","v":0},{"$f":"valuePL(T4,'Utility Functions'!$AK$3:$AK$8,'Utility Functions'!$AL$3:$AL$8)","v":0},{"$f":"valuePL(U4,'Utility Functions'!$AM$3:$AM$5,'Utility Functions'!$AN$3:$AN$5)","v":0.25},{"$f":"valuePL(V4,'Utility Functions'!$AO$3:$AO$5,'Utility Functions'!$AP$3:$AP$5)","v":1},{"$f":"valuePL(W4,'Utility Functions'!$AQ$3:$AQ$6,'Utility Functions'!$AR$3:$AR$6)","v":1},{"$f":"valuePL(X4,'Utility Functions'!$AS$3:$AS$6,'Utility Functions'!$AT$3:$AT$6)","v":1},{"$f":"valuePL(Y4,'Utility Functions'!$AU$3:$AU$6,'Utility Functions'!$AV$3:$AV$6)","v":1},{"$f":"valuePL(Z4,'Utility Functions'!$AW$3:$AW$5,'Utility Functions'!$AX$3:$AX$5)","v":1},{"$f":"valuePL(AA4,'Utility Functions'!$AY$3:$AY$6,'Utility Functions'!$AZ$3:$AZ$6)","v":0.2},{"$f":"valuePL(AB4,'Utility Functions'!$BA$3:$BA$5,'Utility Functions'!$BB$3:$BB$5)","v":1},{"$f":"valuePL(AC4,'Utility Functions'!$BC$3:$BC$5,'Utility Functions'!$BD$3:$BD$5)","v":1},11.563541444302563,null,11.563541444302565,2.7385414443025637,0,0.875,0.75,7.2]
[4,{"$f":"valueE(B5,'Utility Functions'!$B$3,'Utility Functions'!$B$4,'Utility Functions'!$B$5,'Utility Functions'!$B$6)","v":0.1812695215714665},{"$f":"valueE(C5,'Utility Functions'!$D$3,'Utility Functions'!$D$4,'Utility Functions'!$D$5,'Utility Functions'!$D$6)","v":0.46475967153745396},{"$f":"valuePL(D5,'Utility Functions'!$E$3:$E$5,'Utility Functions'!$F$3:$F$5)","v":1},{"$f":"valuePL(E5,'Utility Functions'!$G$3:$G$5,'Utility Functions'!$H$3:$H$5)","v":0},{"$f":"valuePL(F5,'Utility Functions'!$I$3:$I$4,'Utility Functions'!$J$3:$J$5)","v":0},{"$f":"valueE(G5,'Utility Functions'!$L$3,'Utility Functions'!$L$4,'Utility Functions'!$L$5,'Utility Functions'!$L$6)","v":0},{"$f":"valueE(H5,'Utility Functions'!$N$3,'Utility Functions'!$N$4,'Utility Functions'!$N$5,'Utility Functions'!$N$6)","v":0},{"$f":"valuePL(I5,'Utility Functions'!$O$3:$O$6,'Utility Functions'!$P$3:$P$6)","v":0},{"$f":"valuePL(J5,'Utility Functions'!$Q$3:$Q$6,'Utility Functions'!$R$3:$R$6)","v":0},{"$f":"valuePL(K5,'Utility Functions'!$S$3:$S$7,'Utility Functions'!$T$3:$T$7)","v":0},{"$f":"valueE(L5,'Utility Functions'!$V$3,'Utility Functions'!$V$4,'Utility Functions'!$V$5,'Utility Functions'!$V$6)","v":0},{"$f":"valuePL(M5,'Utility Functions'!$W$3:$W$6,'Utility Functions'!$X$3:$X$6)","v":0},{"$f":"valueE(N5,'Utility Functions'!$Z$3,'Utility Functions'!$Z$4,'Utility Functions'!$Z$5,'Utility Functions'!$Z$6)","v":0.5},{"$f":"valuePL(O5,'Utility Functions'!$AA$3:$AA$5,'Utility Functions'!$AB$3:$AB$5)","v":0.25},{"$f":"valuePL(P5,'Utility Functions'!$AC$3:$AC$7,'Utility Functions'!$AD$3:$AD$7)","v":0},{"$f":"valuePL(Q5,'Utility Functions'!$AE$3:$AE$6,'Utility Functions'!$AF$3:$AF$6)","v":0.1},{"$f":"valuePL(R5,'Utility Functions'!$AG$3:$AG$6,'Utility Functions'!$AH$3:$AH$6)","v":1},{"$f":"valuePL(S5,'Utility Functions'!$AI$3:$AI$6,'Utility Functions'!$AJ$3:$AJ$6)","v":1},{"$f":"valuePL(T5,'Utility Functions'!$AK$3:$AK$8,'Utility Functions'!$AL$3:$AL$8)","v":0.8},{"$f":"valuePL(U5,'Utility Functions'!$AM$3:$AM$5,'Utility Functions'!$AN$3:$AN$5)","v":0},{"$f":"valuePL(V5,'Utility Functions'!$AO$3:$AO$5,'Utility Functions'!$AP$3:$AP$5)","v":0.5},{"$f":"valuePL(W5,'Utility Functions'!$AQ$3:$AQ$6,'Utility Functions'!$AR$3:$AR$6)","v":1},{"$f":"valuePL(X5,'Utility Functions'!$AS$3:$AS$6,'Utility Functions'!$AT$3:$AT$6)","v":1},{"$f":"valuePL(Y5,'Utility Functions'!$AU$3:$AU$6,'Utility Functions'!$AV$3:$AV$6)","v":0.2},{"$f":"valuePL(Z5,'Utility Functions'!$AW$3:$AW$5,'Utility Functions'!$AX$3:$AX$5)","v":0},{"$f":"valuePL(AA5,'Utility Functions'!$AY$3:$AY$6,'Utility Functions'!$AZ$3:$AZ$6)","v":0},{"$f":"valuePL(AB5,'Utility Functions'!$BA$3:$BA$5,'Utility Functions'!$BB$3:$BB$5)","v":1},{"$f":"valuePL(AC5,'Utility Functions'!$BC$3:$BC$5,'Utility Functions'!$BD$3:$BD$5)","v":0.25},9.2460291931089209,null,9.2460291931089209,1.6460291931089204,0,0.75,2.9000000000000004,3.95]
[5,{"$f":"valueE(B6,'Utility Functions'!$B$3,'Utility Functions'!$B$4,'Utility Functions'!$B$5,'Utility Functions'!$B$6)","v":0.55067187023002029},{"$f":"valueE(C6,'Utility Functions'!$D$3,'Utility Functions'!$D$4,'Utility Functions'!$D$5,'Utility Functions'!$D$6)","v":0.26656514581460788},{"$f":"valuePL(D6,'Utility Functions'!$E$3:$E$5,'Utility Functions'!$F$3:$F$5)","v":1},{"$f":"valuePL(E6,'Utility Functions'!$G$3:$G$5,'Utility Functions'!$H$3:$H$5)","v":0},{"$f":"valuePL(F6,'Utility Functions'!$I$3:$I$4,'Utility Functions'!$J$3:$J$5)","v":0},{"$f":"valueE(G6,'Utility Functions'!$L$3,'Utility Functions'!$L$4,'Utility Functions'!$L$5,'Utility Functions'!$L$6)","v":0},{"$f":"valueE(H6,'Utility Functions'!$N$3,'Utility Functions'!$N$4,'Utility Functions'!$N$5,'Utility Functions'!$N$6)","v":0},{"$f":"valuePL(I6,'Utility Functions'!$O$3:$O$6,'Utility Functions'!$P$3:$P$6)","v":0.50909090909090915},{"$f":"valuePL(J6,'Utility Functions'!$Q$3:$Q$6,'Utility Functions'!$R$3:$R$6)","v":0.04},{"$f":"valuePL(K6,'Utility Functions'!$S$3:$S$7,'Utility Functions'!$T$3:$T$7)","v":0},{"$f":"valueE(L6,'Utility Functions'!$V$3,'Utility Functions'!$V$4,'Utility Functions'!$V$5,'Utility Functions'!$V$6)","v":0},{"$f":"valuePL(M6,'Utility Functions'!$W$3:$W$6,'Utility Functions'!$X$3:$X$6)","v":0},{"$f":"valueE(N6,'Utility Functions'!$Z$3,'Utility Functions'!$Z$4,'Utility Functions'!$Z$5,'Utility Functions'!$Z$6)","v":0},{"$f":"valuePL(O6,'Utility Functions'!$AA$3:$AA$5,'Utility Functions'!$AB$3:$AB$5)","v":0},{"$f":"valuePL(P6,'Utility Functions'!$AC$3:$AC$7,'Utility Functions'!$AD$3:$AD$7)","v":0},{"$f":"valuePL(Q6,'Utility Functions'!$AE$3:$AE$6,'Utility Functions'!$AF$3:$AF$6)","v":0.1},{"$f":"valuePL(R6,'Utility Functions'!$AG$3:$AG$6,'Utility Functions'!$AH$3:$AH$6)","v":1},{"$f":"valuePL(S6,'Utility Functions'!$AI$3:$AI$6,'Utility Functions'!$AJ$3:$AJ$6)","v":1},{"$f":"valuePL(T6,'Utility Functions'!$AK$3:$AK$8,'Utility Functions'!$AL$3:$AL$8)","v":0.8},{"$f":"valuePL(U6,'Utility Functions'!$AM$3:$AM$5,'Utility Functions'!$AN$3:$AN$5)","v":0.25},{"$f":"valuePL(V6,'Utility Functions'!$AO$3:$AO$5,'Utility Functions'!$AP$3:$AP$5)","v":0},{"$f":"valuePL(W6,'Utility Functions'!$AQ$3:$AQ$6,'Utility Functions'!$AR$3:$AR$6)","v":1},{"$f":"valuePL(X6,'Utility Functions'!$AS$3:$AS$6,'Utility Functions'!$AT$3:$AT$6)","v":1},{"$f":"valuePL(Y6,'Utility Functions'!$AU$3:$AU$6,'Utility Functions'!$AV$3:$AV$6)","v":0.8},{"$f":"valuePL(Z6,'Utility Functions'!$AW$3:$AW$5,'Utility Functions'!$AX$3:$AX$5)","v":0},{"$f":"valuePL(AA6,'Utility Functions'!$AY$3:$AY$6,'Utility Functions'!$AZ$3:$AZ$6)","v":0},{"$f":"valuePL(AB6,'Utility Functions'!$BA$3:$BA$5,'Utility Functions'!$BB$3:$BB$5)","v":1},{"$f":"valuePL(AC6,'Utility Functions'!$BC$3:$BC$5,'Utility Functions'!$BD$3:$BD$5)","v":0.25},9.5663279251355373,null,9.5663279251355391,1.8172370160446283,0.54909090909090918,0,3.1500000000000004,4.05]
[6,{"$f":"valueE(B7,'Utility Functions'!$B$3,'Utility Functions'!$B$4,'Utility Functions'!$B$5,'Utility Functions'!$B$6)","v":0.86466602685702687},{"$f":"valueE(C7,'Utility Functions'!$D$3,'Utility Functions'!$D$4,'Utility Functions'!$D$5,'Utility Functions'!$D$6)","v":6.1811002813601471E-3},{"$f":"valuePL(D7,'Utility Functions'!$E$3:$E$5,'Utility Functions'!$F$3:$F$5)","v":1},{"$f":"valuePL(E7,'Utility Functions'!$G$3:$G$5,'Utility Functions'!$H$3:$H$5)","v":0},{"$f":"valuePL(F7,'Utility Functions'!$I$3:$I$4,'Utility Functions'!$J$3:$J$5)","v":0},{"$f":"valueE(G7,'Utility Functions'!$L$3,'Utility Functions'!$L$4,'Utility Functions'!$L$5,'Utility Functions'!$L$6)","v":0},{"$f":"valueE(H7,'Utility Functions'!$N$3,'Utility Functions'!$N$4,'Utility Functions'!$N$5,'Utility Functions'!$N$6)","v":0},{"$f":"valuePL(I7,'Utility Functions'!$O$3:$O$6,'Utility Functions'!$P$3:$P$6)","v":0.04},{"$f":"valuePL(J7,'Utility Functions'!$Q$3:$Q$6,'Utility Functions'!$R$3:$R$6)","v":0.04},{"$f":"valuePL(K7,'Utility Functions'!$S$3:$S$7,'Utility Functions'!$T$3:$T$7)","v":0},{"$f":"valueE(L7,'Utility Functions'!$V$3,'Utility Functions'!$V$4,'Utility Functions'!$V$5,'Utility Functions'!$V$6)","v":0},{"$f":"valuePL(M7,'Utility Functions'!$W$3:$W$6,'Utility Functions'!$X$3:$X$6)","v":0},{"$f":"valueE(N7,'Utility Functions'!$Z$3,'Utility Functions'!$Z$4,'Utility Functions'!$Z$5,'Utility Functions'!$Z$6)","v":0},{"$f":"valuePL(O7,'Utility Functions'!$AA$3:$AA$5,'Utility Functions'!$AB$3:$AB$5)","v":0},{"$f":"valuePL(P7,'Utility Functions'!$AC$3:$AC$7,'Utility Functions'!$AD$3:$AD$7)","v":0},{"$f":"valuePL(Q7,'Utility Functions'!$AE$3:$AE$6,'Utility Functions'!$AF$3:$AF$6)","v":0.1},{"$f":"valuePL(R7,'Utility Functions'!$AG$3:$AG$6,'Utility Functions'!$AH$3:$AH$6)","v":0},{"$f":"valuePL(S7,'Utility Functions'!$AI$3:$AI$6,'Utility Functions'!$AJ$3:$AJ$6)","v":1},{"$f":"valuePL(T7,'Utility Functions'!$AK$3:$AK$8,'Utility Functions'!$AL$3:$AL$8)","v":0.6},{"$f":"valuePL(U7,'Utility Functions'!$AM$3:$AM$5,'Utility Functions'!$AN$3:$AN$5)","v":0},{"$f":"valuePL(V7,'Utility Functions'!$AO$3:$AO$5,'Utility Functions'!$AP$3:$AP$5)","v":0},{"$f":"valuePL(W7,'Utility Functions'!$AQ$3:$AQ$6,'Utility Functions'!$AR$3:$AR$6)","v":0},{"$f":"valuePL(X7,'Utility Functions'!$AS$3:$AS$6,'Utility Functions'!$AT$3:$AT$6)","v":1},{"$f":"valuePL(Y7,'Utility Functions'!$AU$3:$AU$6,'Utility Functions'!$AV$3:$AV$6)","v":0},{"$f":"valuePL(Z7,'Utility Functions'!$AW$3:$AW$5,'Utility Functions'!$AX$3:$AX$5)","v":0},{"$f":"valuePL(AA7,'Utility Functions'!$AY$3:$AY$6,'Utility Functions'!$AZ$3:$AZ$6)","v":0},{"$f":"valuePL(AB7,'Utility Functions'!$BA$3:$BA$5,'Utility Functions'!$BB$3:$BB$5)","v":1},{"$f":"valuePL(AC7,'Utility Functions'!$BC$3:$BC$5,'Utility Functions'!$BD$3:$BD$5)","v":0.25},5.9008471271383875,null,5.9008471271383875,1.8708471271383869,0.08,0,1.7000000000000002,2.25]
[7,{"$f":"valueE(B8,'Utility Functions'!$B$3,'Utility Functions'!$B$4,'Utility Functions'!$B$5,'Utility Functions'!$B$6)","v":0.99997108261728973},{"$f":"valueE(C8,'Utility Functions'!$D$3,'Utility Functions'!$D$4,'Utility Functions'!$D$5,'Utility Functions'!$D$6)","v":0.84744836833951609},{"$f":"valuePL(D8,'Utility Functions'!$E$3:$E$5,'Utility Functions'!$F$3:$F$5)","v":0},{"$f":"valuePL(E8,'Utility Functions'!$G$3:$G$5,'Utility Functions'!$H$3:$H$5)","v":1},{"$f":"valuePL(F8,'Utility Functions'!$I$3:$I$4,'Utility Functions'!$J$3:$J$5)","v":0},{"$f":"valueE(G8,'Utility Functions'!$L$3,'Utility Functions'!$L$4,'Utility Functions'!$L$5,'Utility Functions'!$L$6)","v":0},{"$f":"valueE(H8,'Utility Functions'!$N$3,'Utility Functions'!$N$4,'Utility Functions'!$N$5,'Utility Functions'!$N$6)","v":0},{"$f":"valuePL(I8,'Utility Functions'!$O$3:$O$6,'Utility Functions'!$P$3:$P$6)","v":1},{"$f":"valuePL(J8,'Utility Functions'!$Q$3:$Q$6,'Utility Functions'!$R$3:$R$6)","v":0.67272727272727273},{"$f":"valuePL(K8,'Utility Functions'!$S$3:$S$7,'Utility Functions'!$T$3:$T$7)","v":1},{"$f":"valueE(L8,'Utility Functions'!$V$3,'Utility Functions'!$V$4,'Utility Functions'!$V$5,'Utility Functions'!$V$6)","v":1},{"$f":"valuePL(M8,'Utility Functions'!$W$3:$W$6,'Utility Functions'!$X$3:$X$6)","v":0.67272727272727273},{"$f":"valueE(N8,'Utility Functions'!$Z$3,'Utility Functions'!$Z$4,'Utility Functions'!$Z$5,'Utility Functions'!$Z$6)","v":1},{"$f":"valuePL(O8,'Utility Functions'!$AA$3:$AA$5,'Utility Functions'!$AB$3:$AB$5)","v":0.25},{"$f":"valuePL(P8,'Utility Functions'!$AC$3:$AC$7,'Utility Functions'!$AD$3:$AD$7)","v":0},{"$f":"valuePL(Q8,'Utility Functions'!$AE$3:$AE$6,'Utility Functions'!$AF$3:$AF$6)","v":0},{"$f":"valuePL(R8,'Utility Functions'!$AG$3:$AG$6,'Utility Functions'!$AH$3:$AH$6)","v":1},{"$f":"valuePL(S8,'Utility Functions'!$AI$3:$AI$6,'Utility Functions'!$AJ$3:$AJ$6)","v":1},{"$f":"valuePL(T8,'Utility Functions'!$AK$3:$AK$8,'Utility Functions'!$AL$3:$AL$8)","v":0},{"$f":"valuePL(U8,'Utility Functions'!$AM$3:$AM$5,'Utility Functions'!$AN$3:$AN$5)","v":0},{"$f":"valuePL(V8,'Utility Functions'!$AO$3:$AO$5,'Utility Functions'!$AP$3:$AP$5)","v":1},{"$f":"valuePL(W8,'Utility Functions'!$AQ$3:$AQ$6,'Utility Functions'!$AR$3:$AR$6)","v":0},{"$f":"valuePL(X8,'Utility Functions'!$AS$3:$AS$6,'Utility Functions'!$AT$3:$AT$6)","v":0.2},{"$f":"valuePL(Y8,'Utility Functions'!$AU$3:$AU$6,'Utility Functions'!$AV$3:$AV$6)","v":1},{"$f":"valuePL(Z8,'Utility Functions'!$AW$3:$AW$5,'Utility Functions'!$AX$3:$AX$5)","v":1},{"$f":"valuePL(AA8,'Utility Functions'!$AY$3:$AY$6,'Utility Functions'!$AZ$3:$AZ$6)","v":0.89999999999999991},{"$f":"valuePL(AB8,'Utility Functions'!$BA$3:$BA$5,'Utility Functions'!$BB$3:$BB$5)","v":0},{"$f":"valuePL(AC8,'Utility Functions'!$BC$3:$BC$5,'Utility Functions'!$BD$3:$BD$5)","v":1},15.54287399641135,null,15.54287399641135,2.8474194509568056,4.3454545454545457,1.25,2,5.0999999999999996]
[8,{"$f":"valueE(B9,'Utility Functions'!$B$3,'Utility Functions'!$B$4,'Utility Functions'!$B$5,'Utility Functions'!$B$6)","v":0.4511890475224023},{"$f":"valueE(C9,'Utility Functions'!$D$3,'Utility Functions'!$D$4,'Utility Functions'!$D$5,'Utility Functions'!$D$6)","v":0.84744836833951609},{"$f":"valuePL(D9,'Utility Functions'!$E$3:$E$5,'Utility Functions'!$F$3:$F$5)","v":1},{"$f":"valuePL(E9,'Utility Functions'!$G$3:$G$5,'Utility Functions'!$H$3:$H$5)","v":0.5},{"$f":"valuePL(F9,'Utility Functions'!$I$3:$I$4,'Utility Functions'!$J$3:$J$5)","v":1},{"$f":"valueE(G9,'Utility Functions'!$L$3,'Utility Functions'!$L$4,'Utility Functions'!$L$5,'Utility Functions'!$L$6)","v":0},{"$f":"valueE(H9,'Utility Functions'!$N$3,'Utility Functions'!$N$4,'Utility Functions'!$N$5,'Utility Functions'!$N$6)","v":0},{"$f":"valuePL(I9,'Utility Functions'!$O$3:$O$6,'Utility Functions'!$P$3:$P$6)","v":5.6000000000000008E-2},{"$f":"valuePL(J9,'Utility Functions'!$Q$3:$Q$6,'Utility Functions'!$R$3:$R$6)","v":0.83636363636363631},{"$f":"valuePL(K9,'Utility Functions'!$S$3:$S$7,'Utility Functions'!$T$3:$T$7)","v":0},{"$f":"valueE(L9,'Utility Functions'!$V$3,'Utility Functions'!$V$4,'Utility Functions'!$V$5,'Utility Functions'!$V$6)","v":1},{"$f":"valuePL(M9,'Utility Functions'!$W$3:$W$6,'Utility Functions'!$X$3:$X$6)","v":0.83636363636363631},{"$f":"valueE(N9,'Utility Functions'!$Z$3,'Utility Functions'!$Z$4,'Utility Functions'!$Z$5,'Utility Functions'!$Z$6)","v":0},{"$f":"valuePL(O9,'Utility Functions'!$AA$3:$AA$5,'Utility Functions'!$AB$3:$AB$5)","v":0},{"$f":"valuePL(P9,'Utility Functions'!$AC$3:$AC$7,'Utility Functions'!$AD$3:$AD$7)","v":0},{"$f":"valuePL(Q9,'Utility Functions'!$AE$3:$AE$6,'Utility Functions'!$AF$3:$AF$6)","v":1},{"$f":"valuePL(R9,'Utility Functions'!$AG$3:$AG$6,'Utility Functions'!$AH$3:$AH$6)","v":0.2},{"$f":"valuePL(S9,'Utility Functions'!$AI$3:$AI$6,'Utility Functions'!$AJ$3:$AJ$6)","v":1},{"$f":"valuePL(T9,'Utility Functions'!$AK$3:$AK$8,'Utility Functions'!$AL$3:$AL$8)","v":0},{"$f":"valuePL(U9,'Utility Functions'!$AM$3:$AM$5,'Utility Functions'!$AN$3:$AN$5)","v":0},{"$f":"valuePL(V9,'Utility Functions'!$AO$3:$AO$5,'Utility Functions'!$AP$3:$AP$5)","v":1},{"$f":"valuePL(W9,'Utility Functions'!$AQ$3:$AQ$6,'Utility Functions'!$AR$3:$AR$6)","v":1},{"$f":"valuePL(X9,'Utility Functions'!$AS$3:$AS$6,'Utility Functions'!$AT$3:$AT$6)","v":1},{"$f":"valuePL(Y9,'Utility Functions'!$AU$3:$AU$6,'Utility Functions'!$AV$3:$AV$6)","v":1},{"$f":"valuePL(Z9,'Utility Functions'!$AW$3:$AW$5,'Utility Functions'!$AX$3:$AX$5)","v":1},{"$f":"valuePL(AA9,'Utility Functions'!$AY$3:$AY$6,'Utility Functions'!$AZ$3:$AZ$6)","v":0},{"$f":"valuePL(AB9,'Utility Functions'!$BA$3:$BA$5,'Utility Functions'!$BB$3:$BB$5)","v":0.25},{"$f":"valuePL(AC9,'Utility Functions'!$BC$3:$BC$5,'Utility Functions'!$BD$3:$BD$5)","v":0.25},14.227364688589191,null,14.227364688589191,3.7986374158619185,2.7287272727272729,0,2.2000000000000002,5.5]
[9,{"$f":"valueE(B10,'Utility Functions'!$B$3,'Utility Functions'!$B$4,'Utility Functions'!$B$5,'Utility Functions'!$B$6)","v":0.83470237647280454},{"$f":"valueE(C10,'Utility Functions'!$D$3,'Utility Functions'!$D$4,'Utility Functions'!$D$5,'Utility Functions'!$D$6)","v":0.78989979019422951},{"$f":"valuePL(D10,'Utility Functions'!$E$3:$E$5,'Utility Functions'!$F$3:$F$5)","v":1},{"$f":"valuePL(E10,'Utility Functions'!$G$3:$G$5,'Utility Functions'!$H$3:$H$5)","v":0.5},{"$f":"valuePL(F10,'Utility Functions'!$I$3:$I$4,'Utility Functions'!$J$3:$J$5)","v":0},{"$f":"valueE(G10,'Utility Functions'!$L$3,'Utility Functions'!$L$4,'Utility Functions'!$L$5,'Utility Functions'!$L$6)","v":0.37634408602150538},{"$f":"valueE(H10,'Utility Functions'!$N$3,'Utility Functions'!$N$4,'Utility Functions'!$N$5,'Utility Functions'!$N$6)","v":0.13282732447817835},{"$f":"valuePL(I10,'Utility Functions'!$O$3:$O$6,'Utility Functions'!$P$3:$P$6)","v":0},{"$f":"valuePL(J10,'Utility Functions'!$Q$3:$Q$6,'Utility Functions'!$R$3:$R$6)","v":0},{"$f":"valuePL(K10,'Utility Functions'!$S$3:$S$7,'Utility Functions'!$T$3:$T$7)","v":0},{"$f":"valueE(L10,'Utility Functions'!$V$3,'Utility Functions'!$V$4,'Utility Functions'!$V$5,'Utility Functions'!$V$6)","v":0},{"$f":"valuePL(M10,'Utility Functions'!$W$3:$W$6,'Utility Functions'!$X$3:$X$6)","v":0},{"$f":"valueE(N10,'Utility Functions'!$Z$3,'Utility Functions'!$Z$4,'Utility Functions'!$Z$5,'Utility Functions'!$Z$6)","v":0},{"$f":"valuePL(O10,'Utility Functions'!$AA$3:$AA$5,'Utility Functions'!$AB$3:$AB$5)","v":0},{"$f":"valuePL(P10,'Utility Functions'!$AC$3:$AC$7,'Utility Functions'!$AD$3:$AD$7)","v":0.75},{"$f":"valuePL(Q10,'Utility Functions'!$AE$3:$AE$6,'Utility Functions'!$AF$3:$AF$6)","v":0},{"$f":"valuePL(R10,'Utility Functions'!$AG$3:$AG$6,'Utility Functions'!$AH$3:$AH$6)","v":1},{"$f":"valuePL(S10,'Utility Functions'!$AI$3:$AI$6,'Utility Functions'!$AJ$3:$AJ$6)","v":0.66},{"$f":"valuePL(T10,'Utility Functions'!$AK$3:$AK$8,'Utility Functions'!$AL$3:$AL$8)","v":0.2},{"$f":"valuePL(U10,'Utility Functions'!$AM$3:$AM$5,'Utility Functions'!$AN$3:$AN$5)","v":0},{"$f":"valuePL(V10,'Utility Functions'!$AO$3:$AO$5,'Utility Functions'!$AP$3:$AP$5)","v":1},{"$f":"valuePL(W10,'Utility Functions'!$AQ$3:$AQ$6,'Utility Functions'!$AR$3:$AR$6)","v":1},{"$f":"valuePL(X10,'Utility Functions'!$AS$3:$AS$6,'Utility Functions'!$AT$3:$AT$6)","v":1},{"$f":"valuePL(Y10,'Utility Functions'!$AU$3:$AU$6,'Utility Functions'!$AV$3:$AV$6)","v":0.2},{"$f":"valuePL(Z10,'Utility Functions'!$AW$3:$AW$5,'Utility Functions'!$AX$3:$AX$5)","v":1},{"$f":"valuePL(AA10,'Utility Functions'!$AY$3:$AY$6,'Utility Functions'!$AZ$3:$AZ$6)","v":0.2},{"$f":"valuePL(AB10,'Utility Functions'!$BA$3:$BA$5,'Utility Functions'!$BB$3:$BB$5)","v":0.25},{"$f":"valuePL(AC10,'Utility Functions'!$BC$3:$BC$5,'Utility Functions'!$BD$3:$BD$5)","v":1},11.893773577166716,null,11.893773577166719,3.1246021666670343,0.50917141049968373,0,2.6100000000000003,5.65]
[10,{"$f":"valueE(B11,'Utility Functions'!$B$3,'Utility Functions'!$B$4,'Utility Functions'!$B$5,'Utility Functions'!$B$6)","v":0},{"$f":"valueE(C11,'Utility Functions'!$D$3,'Utility Functions'!$D$4,'Utility Functions'!$D$5,'Utility Functions'!$D$6)","v":0},{"$f":"valuePL(D11,'Utility Functions'!$E$3:$E$5,'Utility Functions'!$F$3:$F$5)","v":0},{"$f":"valuePL(E11,'Utility Functions'!$G$3:$G$5,'Utility Functions'!$H$3:$H$5)","v":0},{"$f":"valuePL(F11,'Utility Functions'!$I$3:$I$4,'Utility Functions'!$J$3:$J$5)","v":0},{"$f":"valueE(G11,'Utility Functions'!$L$3,'Utility Functions'!$L$4,'Utility Functions'!$L$5,'Utility Functions'!$L$6)","v":0},{"$f":"valueE(H11,'Utility Functions'!$N$3,'Utility Functions'!$N$4,'Utility Functions'!$N$5,'Utility Functions'!$N$6)","v":0},{"$f":"valuePL(I11,'Utility Functions'!$O$3:$O$6,'Utility Functions'!$P$3:$P$6)","v":0},{"$f":"valuePL(J11,'Utility Functions'!$Q$3:$Q$6,'Utility Functions'!$R$3:$R$6)","v":0},{"$f":"valuePL(K11,'Utility Functions'!$S$3:$S$7,'Utility Functions'!$T$3:$T$7)","v":0},{"$f":"valueE(L11,'Utility Functions'!$V$3,'Utility Functions'!$V$4,'Utility Functions'!$V$5,'Utility Functions'!$V$6)","v":0},{"$f":"valuePL(M11,'Utility Functions'!$W$3:$W$6,'Utility Functions'!$X$3:$X$6)","v":0},{"$f":"valueE(N11,'Utility Functions'!$Z$3,'Utility Functions'!$Z$4,'Utility Functions'!$Z$5,'Utility Functions'!$Z$6)","v":0.75},{"$f":"valuePL(O11,'Utility Functions'!$AA$3:$AA$5,'Utility Functions'!$AB$3:$AB$5)","v":1},{"$f":"valuePL(P11,'Utility Functions'!$AC$3:$AC$7,'Utility Functions'!$AD$3:$AD$7)","v":0.25},{"$f":"valuePL(Q11,'Utility Functions'!$AE$3:$AE$6,'Utility Functions'!$AF$3:$AF$6)","v":0.5},{"$f":"valuePL(R11,'Utility Functions'!$AG$3:$AG$6,'Utility Functions'!$AH$3:$AH$6)","v":1},{"$f":"valuePL(S11,'Utility Functions'!$AI$3:$AI$6,'Utility Functions'!$AJ$3:$AJ$6)","v":0.66},{"$f":"valuePL(T11,'Utility Functions'!$AK$3:$AK$8,'Utility Functions'!$AL$3:$AL$8)","v":0.4},{"$f":"valuePL(U11,'Utility Functions'!$AM$3:$AM$5,'Utility Functions'!$AN$3:$AN$5)","v":0},{"$f":"valuePL(V11,'Utility Functions'!$AO$3:$AO$5,'Utility Functions'!$AP$3:$AP$5)","v":0},{"$f":"valuePL(W11,'Utility Functions'!$AQ$3:$AQ$6,'Utility Functions'!$AR$3:$AR$6)","v":0.75},{"$f":"valuePL(X11,'Utility Functions'!$AS$3:$AS$6,'Utility Functions'!$AT$3:$AT$6)","v":1},{"$f":"valuePL(Y11,'Utility Functions'!$AU$3:$AU$6,'Utility Functions'!$AV$3:$AV$6)","v":1},{"$f":"valuePL(Z11,'Utility Functions'!$AW$3:$AW$5,'Utility Functions'!$AX$3:$AX$5)","v":0.5},{"$f":"valuePL(AA11,'Utility Functions'!$AY$3:$AY$6,'Utility Functions'!$AZ$3:$AZ$6)","v":0.2},{"$f":"valuePL(AB11,'Utility Functions'!$BA$3:$BA$5,'Utility Functions'!$BB$3:$BB$5)","v":0},{"$f":"valuePL(AC11,'Utility Functions'!$BC$3:$BC$5,'Utility Functions'!$BD$3:$BD$5)","v":1},9.01,null,9.0100000000000016,0,0,1.75,2.81,4.45]
[11,{"$f":"valueE(B12,'Utility Functions'!$B$3,'Utility Functions'!$B$4,'Utility Functions'!$B$5,'Utility Functions'!$B$6)","v":0},{"$f":"valueE(C12,'Utility Functions'!$D$3,'Utility Functions'!$D$4,'Utility Functions'!$D$5,'Utility Functions'!$D$6)","v":0},{"$f":"valuePL(D12,'Utility Functions'!$E$3:$E$5,'Utility Functions'!$F$3:$F$5)","v":0},{"$f":"valuePL(E12,'Utility Functions'!$G$3:$G$5,'Utility Functions'!$H$3:$H$5)","v":0},{"$f":"valuePL(F12,'Utility Functions'!$I$3:$I$4,'Utility Functions'!$J$3:$J$5)","v":0},{"$f":"valueE(G12,'Utility Functions'!$L$3,'Utility Functions'!$L$4,'Utility Functions'!$L$5,'Utility Functions'!$L$6)","v":3.2258064516129031E-2},{"$f":"valueE(H12,'Utility Functions'!$N$3,'Utility Functions'!$N$4,'Utility Functions'!$N$5,'Utility Functions'!$N$6)","v":9.6774193548387094E-2},{"$f":"valuePL(I12,'Utility Functions'!$O$3:$O$6,'Utility Functions'!$P$3:$P$6)","v":0.54181818181818187},{"$f":"valuePL(J12,'Utility Functions'!$Q$3:$Q$6,'Utility Functions'!$R$3:$R$6)","v":0.91818181818181821},{"$f":"valuePL(K12,'Utility Functions'!$S$3:$S$7,'Utility Functions'!$T$3:$T$7)","v":0.54181818181818187},{"$f":"valueE(L12,'Utility Functions'!$V$3,'Utility Functions'!$V$4,'Utility Functions'!$V$5,'Utility Functions'!$V$6)","v":1},{"$f":"valuePL(M12,'Utility Functions'!$W$3:$W$6,'Utility Functions'!$X$3:$X$6)","v":0.91818181818181821},{"$f":"valueE(N12,'Utility Functions'!$Z$3,'Utility Functions'!$Z$4,'Utility Functions'!$Z$5,'Utility Functions'!$Z$6)","v":0.375},{"$f":"valuePL(O12,'Utility Functions'!$AA$3:$AA$5,'Utility Functions'!$AB$3:$AB$5)","v":0.25},{"$f":"valuePL(P12,'Utility Functions'!$AC$3:$AC$7,'Utility Functions'!$AD$3:$AD$7)","v":0.25},{"$f":"valuePL(Q12,'Utility Functions'!$AE$3:$AE$6,'Utility Functions'!$AF$3:$AF$6)","v":0},{"$f":"valuePL(R12,'Utility Functions'!$AG$3:$AG$6,'Utility Functions'!$AH$3:$AH$6)","v":1},{"$f":"valuePL(S12,'Utility Functions'!$AI$3:$AI$6,'Utility Functions'!$AJ$3:$AJ$6)","v":1},{"$f":"valuePL(T12,'Utility Functions'!$AK$3:$AK$8,'Utility Functions'!$AL$3:$AL$8)","v":0.4},{"$f":"valuePL(U12,'Utility Functions'!$AM$3:$AM$5,'Utility Functions'!$AN$3:$AN$5)","v":1},{"$f":"valuePL(V12,'Utility Functions'!$AO$3:$AO$5,'Utility Functions'!$AP$3:$AP$5)","v":1},{"$f":"valuePL(W12,'Utility Functions'!$AQ$3:$AQ$6,'Utility Functions'!$AR$3:$AR$6)","v":0.2},{"$f":"valuePL(X12,'Utility Functions'!$AS$3:$AS$6,'Utility Functions'!$AT$3:$AT$6)","v":1},{"$f":"valuePL(Y12,'Utility Functions'!$AU$3:$AU$6,'Utility Functions'!$AV$3:$AV$6)","v":1},{"$f":"valuePL(Z12,'Utility Functions'!$AW$3:$AW$5,'Utility Functions'!$AX$3:$AX$5)","v":0.5},{"$f":"valuePL(AA12,'Utility Functions'!$AY$3:$AY$6,'Utility Functions'!$AZ$3:$AZ$6)","v":0.89999999999999991},{"$f":"valuePL(AB12,'Utility Functions'!$BA$3:$BA$5,'Utility Functions'!$BB$3:$BB$5)","v":0},{"$f":"valuePL(AC12,'Utility Functions'!$BC$3:$BC$5,'Utility Functions'!$BD$3:$BD$5)","v":0.25},13.174032258064516,null,13.174032258064516,0,4.0490322580645159,0.625,3.65,4.8499999999999996]
[12,{"$f":"valueE(B13,'Utility Functions'!$B$3,'Utility Functions'!$B$4,'Utility Functions'!$B$5,'Utility Functions'!$B$6)","v":0.32968045347775865},{"$f":"valueE(C13,'Utility Functions'!$D$3,'Utility Functions'!$D$4,'Utility Functions'!$D$5,'Utility Functions'!$D$6)","v":0.78989979019422951},{"$f":"valuePL(D13,'Utility Functions'!$E$3:$E$5,'Utility Functions'!$F$3:$F$5)","v":1},{"$f":"valuePL(E13,'Utility Functions'!$G$3:$G$5,'Utility Functions'!$H$3:$H$5)","v":0.5},{"$f":"valuePL(F13,'Utility Functions'!$I$3:$I$4,'Utility Functions'!$J$3:$J$5)","v":0},{"$f":"valueE(G13,'Utility Functions'!$L$3,'Utility Functions'!$L$4,'Utility Functions'!$L$5,'Utility Functions'!$L$6)","v":0},{"$f":"valueE(H13,'Utility Functions'!$N$3,'Utility Functions'!$N$4,'Utility Functions'!$N$5,'Utility Functions'!$N$6)","v":0},{"$f":"valuePL(I13,'Utility Functions'!$O$3:$O$6,'Utility Functions'!$P$3:$P$6)","v":0},{"$f":"valuePL(J13,'Utility Functions'!$Q$3:$Q$6,'Utility Functions'!$R$3:$R$6)","v":0},{"$f":"valuePL(K13,'Utility Functions'!$S$3:$S$7,'Utility Functions'!$T$3:$T$7)","v":0},{"$f":"valueE(L13,'Utility Functions'!$V$3,'Utility Functions'!$V$4,'Utility Functions'!$V$5,'Utility Functions'!$V$6)","v":0},{"$f":"valuePL(M13,'Utility Functions'!$W$3:$W$6,'Utility Functions'!$X$3:$X$6)","v":0},{"$f":"valueE(N13,'Utility Functions'!$Z$3,'Utility Functions'!$Z$4,'Utility Functions'!$Z$5,'Utility Functions'!$Z$6)","v":0},{"$f":"valuePL(O13,'Utility Functions'!$AA$3:$AA$5,'Utility Functions'!$AB$3:$AB$5)","v":0},{"$f":"valuePL(P13,'Utility Functions'!$AC$3:$AC$7,'Utility Functions'!$AD$3:$AD$7)","v":0},{"$f":"valuePL(Q13,'Utility Functions'!$AE$3:$AE$6,'Utility Functions'!$AF$3:$AF$6)","v":0.1},{"$f":"valuePL(R13,'Utility Functions'!$AG$3:$AG$6,'Utility Functions'!$AH$3:$AH$6)","v":1},{"$f":"valuePL(S13,'Utility Functions'!$AI$3:$AI$6,'Utility Functions'!$AJ$3:$AJ$6)","v":1},{"$f":"valuePL(T13,'Utility Functions'!$AK$3:$AK$8,'Utility Functions'!$AL$3:$AL$8)","v":0.6},{"$f":"valuePL(U13,'Utility Functions'!$AM$3:$AM$5,'Utility Functions'!$AN$3:$AN$5)","v":0},{"$f":"valuePL(V13,'Utility Functions'!$AO$3:$AO$5,'Utility Functions'!$AP$3:$AP$5)","v":0.5},{"$f":"valuePL(W13,'Utility Functions'!$AQ$3:$AQ$6,'Utility Functions'!$AR$3:$AR$6)","v":0.2},{"$f":"valuePL(X13,'Utility Functions'!$AS$3:$AS$6,'Utility Functions'!$AT$3:$AT$6)","v":1},{"$f":"valuePL(Y13,'Utility Functions'!$AU$3:$AU$6,'Utility Functions'!$AV$3:$AV$6)","v":0.2},{"$f":"valuePL(Z13,'Utility Functions'!$AW$3:$AW$5,'Utility Functions'!$AX$3:$AX$5)","v":1},{"$f":"valuePL(AA13,'Utility Functions'!$AY$3:$AY$6,'Utility Functions'!$AZ$3:$AZ$6)","v":0.2},{"$f":"valuePL(AB13,'Utility Functions'!$BA$3:$BA$5,'Utility Functions'!$BB$3:$BB$5)","v":1},{"$f":"valuePL(AC13,'Utility Functions'!$BC$3:$BC$5,'Utility Functions'!$BD$3:$BD$5)","v":0},9.4195802436719873,null,9.4195802436719873,2.6195802436719884,0,0,2.7,4.0999999999999996]
[13,{"$f":"valueE(B14,'Utility Functions'!$B$3,'Utility Functions'!$B$4,'Utility Functions'!$B$5,'Utility Functions'!$B$6)","v":0},{"$f":"valueE(C14,'Utility Functions'!$D$3,'Utility Functions'!$D$4,'Utility Functions'!$D$5,'Utility Functions'!$D$6)","v":0},{"$f":"valuePL(D14,'Utility Functions'!$E$3:$E$5,'Utility Functions'!$F$3:$F$5)","v":0},{"$f":"valuePL(E14,'Utility Functions'!$G$3:$G$5,'Utility Functions'!$H$3:$H$5)","v":0},{"$f":"valuePL(F14,'Utility Functions'!$I$3:$I$4,'Utility Functions'!$J$3:$J$5)","v":0},{"$f":"valueE(G14,'Utility Functions'!$L$3,'Utility Functions'!$L$4,'Utility Functions'!$L$5,'Utility Functions'!$L$6)","v":0},{"$f":"valueE(H14,'Utility Functions'!$N$3,'Utility Functions'!$N$4,'Utility Functions'!$N$5,'Utility Functions'!$N$6)","v":1.1385199240986717E-2},{"$f":"valuePL(I14,'Utility Functions'!$O$3:$O$6,'Utility Functions'!$P$3:$P$6)","v":0.3290909090909091},{"$f":"valuePL(J14,'Utility Functions'!$Q$3:$Q$6,'Utility Functions'!$R$3:$R$6)","v":0.04},{"$f":"valuePL(K14,'Utility Functions'!$S$3:$S$7,'Utility Functions'!$T$3:$T$7)","v":0.3290909090909091},{"$f":"valueE(L14,'Utility Functions'!$V$3,'Utility Functions'!$V$4,'Utility Functions'!$V$5,'Utility Functions'!$V$6)","v":1},{"$f":"valuePL(M14,'Utility Functions'!$W$3:$W$6,'Utility Functions'!$X$3:$X$6)","v":0.04},{"$f":"valueE(N14,'Utility Functions'!$Z$3,'Utility Functions'!$Z$4,'Utility Functions'!$Z$5,'Utility Functions'!$Z$6)","v":0.875},{"$f":"valuePL(O14,'Utility Functions'!$AA$3:$AA$5,'Utility Functions'!$AB$3:$AB$5)","v":0.25},{"$f":"valuePL(P14,'Utility Functions'!$AC$3:$AC$7,'Utility Functions'!$AD$3:$AD$7)","v":0.25},{"$f":"valuePL(Q14,'Utility Functions'!$AE$3:$AE$6,'Utility Functions'!$AF$3:$AF$6)","v":0},{"$f":"valuePL(R14,'Utility Functions'!$AG$3:$AG$6,'Utility Functions'!$AH$3:$AH$6)","v":1},{"$f":"valuePL(S14,'Utility Functions'!$AI$3:$AI$6,'Utility Functions'!$AJ$3:$AJ$6)","v":1},{"$f":"valuePL(T14,'Utility Functions'!$AK$3:$AK$8,'Utility Functions'!$AL$3:$AL$8)","v":0},{"$f":"valuePL(U14,'Utility Functions'!$AM$3:$AM$5,'Utility Functions'!$AN$3:$AN$5)","v":0},{"$f":"valuePL(V14,'Utility Functions'!$AO$3:$AO$5,'Utility Functions'!$AP$3:$AP$5)","v":0.5},{"$f":"valuePL(W14,'Utility Functions'!$AQ$3:$AQ$6,'Utility Functions'!$AR$3:$AR$6)","v":0},{"$f":"valuePL(X14,'Utility Functions'!$AS$3:$AS$6,'Utility Functions'!$AT$3:$AT$6)","v":0.2},{"$f":"valuePL(Y14,'Utility Functions'!$AU$3:$AU$6,'Utility Functions'!$AV$3:$AV$6)","v":0},{"$f":"valuePL(Z14,'Utility Functions'!$AW$3:$AW$5,'Utility Functions'!$AX$3:$AX$5)","v":1},{"$f":"valuePL(AA14,'Utility Functions'!$AY$3:$AY$6,'Utility Functions'!$AZ$3:$AZ$6)","v":0.2},{"$f":"valuePL(AB14,'Utility Functions'!$BA$3:$BA$5,'Utility Functions'!$BB$3:$BB$5)","v":0.25},{"$f":"valuePL(AC14,'Utility Functions'!$BC$3:$BC$5,'Utility Functions'!$BD$3:$BD$5)","v":0.25},7.5245670174228056,null,7.5245670174228056,0,1.7495670174228048,1.125,2.25,2.4]
[14,{"$f":"valueE(B15,'Utility Functions'!$B$3,'Utility Functions'!$B$4,'Utility Functions'!$B$5,'Utility Functions'!$B$6)","v":0.69880684688087746},{"$f":"valueE(C15,'Utility Functions'!$D$3,'Utility Functions'!$D$4,'Utility Functions'!$D$5,'Utility Functions'!$D$6)","v":0.78989979019422951},{"$f":"valuePL(D15,'Utility Functions'!$E$3:$E$5,'Utility Functions'!$F$3:$F$5)","v":0.5},{"$f":"valuePL(E15,'Utility Functions'!$G$3:$G$5,'Utility Functions'!$H$3:$H$5)","v":0.5},{"$f":"valuePL(F15,'Utility Functions'!$I$3:$I$4,'Utility Functions'!$J$3:$J$5)","v":0},{"$f":"valueE(G15,'Utility Functions'!$L$3,'Utility Functions'!$L$4,'Utility Functions'!$L$5,'Utility Functions'!$L$6)","v":0},{"$f":"valueE(H15,'Utility Functions'!$N$3,'Utility Functions'!$N$4,'Utility Functions'!$N$5,'Utility Functions'!$N$6)","v":0},{"$f":"valuePL(I15,'Utility Functions'!$O$3:$O$6,'Utility Functions'!$P$3:$P$6)","v":0},{"$f":"valuePL(J15,'Utility Functions'!$Q$3:$Q$6,'Utility Functions'!$R$3:$R$6)","v":0},{"$f":"valuePL(K15,'Utility Functions'!$S$3:$S$7,'Utility Functions'!$T$3:$T$7)","v":0},{"$f":"valueE(L15,'Utility Functions'!$V$3,'Utility Functions'!$V$4,'Utility Functions'!$V$5,'Utility Functions'!$V$6)","v":0},{"$f":"valuePL(M15,'Utility Functions'!$W$3:$W$6,'Utility Functions'!$X$3:$X$6)","v":0},{"$f":"valueE(N15,'Utility Functions'!$Z$3,'Utility Functions'!$Z$4,'Utility Functions'!$Z$5,'Utility Functions'!$Z$6)","v":0.75},{"$f":"valuePL(O15,'Utility Functions'!$AA$3:$AA$5,'Utility Functions'!$AB$3:$AB$5)","v":0.25},{"$f":"valuePL(P15,'Utility Functions'!$AC$3:$AC$7,'Utility Functions'!$AD$3:$AD$7)","v":0.25},{"$f":"valuePL(Q15,'Utility Functions'!$AE$3:$AE$6,'Utility Functions'!$AF$3:$AF$6)","v":0},{"$f":"valuePL(R15,'Utility Functions'!$AG$3:$AG$6,'Utility Functions'!$AH$3:$AH$6)","v":1},{"$f":"valuePL(S15,'Utility Functions'!$AI$3:$AI$6,'Utility Functions'!$AJ$3:$AJ$6)","v":1},{"$f":"valuePL(T15,'Utility Functions'!$AK$3:$AK$8,'Utility Functions'!$AL$3:$AL$8)","v":0},{"$f":"valuePL(U15,'Utility Functions'!$AM$3:$AM$5,'Utility Functions'!$AN$3:$AN$5)","v":0},{"$f":"valuePL(V15,'Utility Functions'!$AO$3:$AO$5,'Utility Functions'!$AP$3:$AP$5)","v":0.5},{"$f":"valuePL(W15,'Utility Functions'!$AQ$3:$AQ$6,'Utility Functions'!$AR$3:$AR$6)","v":0.2},{"$f":"valuePL(X15,'Utility Functions'!$AS$3:$AS$6,'Utility Functions'!$AT$3:$AT$6)","v":1},{"$f":"valuePL(Y15,'Utility Functions'!$AU$3:$AU$6,'Utility Functions'!$AV$3:$AV$6)","v":1},{"$f":"valuePL(Z15,'Utility Functions'!$AW$3:$AW$5,'Utility Functions'!$AX$3:$AX$5)","v":0.5},{"$f":"valuePL(AA15,'Utility Functions'!$AY$3:$AY$6,'Utility Functions'!$AZ$3:$AZ$6)","v":0.89999999999999991},{"$f":"valuePL(AB15,'Utility Functions'!$BA$3:$BA$5,'Utility Functions'!$BB$3:$BB$5)","v":0.25},{"$f":"valuePL(AC15,'Utility Functions'!$BC$3:$BC$5,'Utility Functions'!$BD$3:$BD$5)","v":0.25},10.338706637075108,null,10.338706637075106,2.488706637075107,0,1,2.25,4.5999999999999996]
[15,{"$f":"valueE(B16,'Utility Functions'!$B$3,'Utility Functions'!$B$4,'Utility Functions'!$B$5,'Utility Functions'!$B$6)","v":0.98994966417177144},{"$f":"valueE(C16,'Utility Functions'!$D$3,'Utility Functions'!$D$4,'Utility Functions'!$D$5,'Utility Functions'!$D$6)","v":0.71352759724260828},{"$f":"valuePL(D16,'Utility Functions'!$E$3:$E$5,'Utility Functions'!$F$3:$F$5)","v":1},{"$f":"valuePL(E16,'Utility Functions'!$G$3:$G$5,'Utility Functions'!$H$3:$H$5)","v":0.5},{"$f":"valuePL(F16,'Utility Functions'!$I$3:$I$4,'Utility Functions'!$J$3:$J$5)","v":1},{"$f":"valueE(G16,'Utility Functions'!$L$3,'Utility Functions'!$L$4,'Utility Functions'!$L$5,'Utility Functions'!$L$6)","v":0},{"$f":"valueE(H16,'Utility Functions'!$N$3,'Utility Functions'!$N$4,'Utility Functions'!$N$5,'Utility Functions'!$N$6)","v":0},{"$f":"valuePL(I16,'Utility Functions'!$O$3:$O$6,'Utility Functions'!$P$3:$P$6)","v":9.2000000000000012E-2},{"$f":"valuePL(J16,'Utility Functions'!$Q$3:$Q$6,'Utility Functions'!$R$3:$R$6)","v":6.0000000000000012E-2},{"$f":"valuePL(K16,'Utility Functions'!$S$3:$S$7,'Utility Functions'!$T$3:$T$7)","v":6.0000000000000012E-2},{"$f":"valueE(L16,'Utility Functions'!$V$3,'Utility Functions'!$V$4,'Utility Functions'!$V$5,'Utility Functions'!$V$6)","v":1},{"$f":"valuePL(M16,'Utility Functions'!$W$3:$W$6,'Utility Functions'!$X$3:$X$6)","v":6.0000000000000012E-2},{"$f":"valueE(N16,'Utility Functions'!$Z$3,'Utility Functions'!$Z$4,'Utility Functions'!$Z$5,'Utility Functions'!$Z$6)","v":0.125},{"$f":"valuePL(O16,'Utility Functions'!$AA$3:$AA$5,'Utility Functions'!$AB$3:$AB$5)","v":1},{"$f":"valuePL(P16,'Utility Functions'!$AC$3:$AC$7,'Utility Functions'!$AD$3:$AD$7)","v":0.5},{"$f":"valuePL(Q16,'Utility Functions'!$AE$3:$AE$6,'Utility Functions'!$AF$3:$AF$6)","v":0},{"$f":"valuePL(R16,'Utility Functions'!$AG$3:$AG$6,'Utility Functions'!$AH$3:$AH$6)","v":0.8},{"$f":"valuePL(S16,'Utility Functions'!$AI$3:$AI$6,'Utility Functions'!$AJ$3:$AJ$6)","v":1},{"$f":"valuePL(T16,'Utility Functions'!$AK$3:$AK$8,'Utility Functions'!$AL$3:$AL$8)","v":0.6},{"$f":"valuePL(U16,'Utility Functions'!$AM$3:$AM$5,'Utility Functions'!$AN$3:$AN$5)","v":1},{"$f":"valuePL(V16,'Utility Functions'!$AO$3:$AO$5,'Utility Functions'!$AP$3:$AP$5)","v":0},{"$f":"valuePL(W16,'Utility Functions'!$AQ$3:$AQ$6,'Utility Functions'!$AR$3:$AR$6)","v":1},{"$f":"valuePL(X16,'Utility Functions'!$AS$3:$AS$6,'Utility Functions'!$AT$3:$AT$6)","v":0.2},{"$f":"valuePL(Y16,'Utility Functions'!$AU$3:$AU$6,'Utility Functions'!$AV$3:$AV$6)","v":0.2},{"$f":"valuePL(Z16,'Utility Functions'!$AW$3:$AW$5,'Utility Functions'!$AX$3:$AX$5)","v":1},{"$f":"valuePL(AA16,'Utility Functions'!$AY$3:$AY$6,'Utility Functions'!$AZ$3:$AZ$6)","v":1},{"$f":"valuePL(AB16,'Utility Functions'!$BA$3:$BA$5,'Utility Functions'!$BB$3:$BB$5)","v":1},{"$f":"valuePL(AC16,'Utility Functions'!$BC$3:$BC$5,'Utility Functions'!$BD$3:$BD$5)","v":0.25},15.150477261414375,null,15.15047726141438,4.2034772614143794,1.272,1.125,3.9,4.6500000000000004]
[16,{"$f":"valueE(B17,'Utility Functions'!$B$3,'Utility Functions'!$B$4,'Utility Functions'!$B$5,'Utility Functions'!$B$6)","v":0},{"$f":"valueE(C17,'Utility Functions'!$D$3,'Utility Functions'!$D$4,'Utility Functions'!$D$5,'Utility Functions'!$D$6)","v":0},{"$f":"valuePL(D17,'Utility Functions'!$E$3:$E$5,'Utility Functions'!$F$3:$F$5)","v":0},{"$f":"valuePL(E17,'Utility Functions'!$G$3:$G$5,'Utility Functions'!$H$3:$H$5)","v":0},{"$f":"valuePL(F17,'Utility Functions'!$I$3:$I$4,'Utility Functions'!$J$3:$J$5)","v":0},{"$f":"valueE(G17,'Utility Functions'!$L$3,'Utility Functions'!$L$4,'Utility Functions'!$L$5,'Utility Functions'!$L$6)","v":0},{"$f":"valueE(H17,'Utility Functions'!$N$3,'Utility Functions'!$N$4,'Utility Functions'!$N$5,'Utility Functions'!$N$6)","v":0},{"$f":"valuePL(I17,'Utility Functions'!$O$3:$O$6,'Utility Functions'!$P$3:$P$6)","v":1},{"$f":"valuePL(J17,'Utility Functions'!$Q$3:$Q$6,'Utility Functions'!$R$3:$R$6)","v":0.91818181818181821},{"$f":"valuePL(K17,'Utility Functions'!$S$3:$S$7,'Utility Functions'!$T$3:$T$7)","v":1},{"$f":"valueE(L17,'Utility Functions'!$V$3,'Utility Functions'!$V$4,'Utility Functions'!$V$5,'Utility Functions'!$V$6)","v":0.83333333333333337},{"$f":"valuePL(M17,'Utility Functions'!$W$3:$W$6,'Utility Functions'!$X$3:$X$6)","v":0.91818181818181821},{"$f":"valueE(N17,'Utility Functions'!$Z$3,'Utility Functions'!$Z$4,'Utility Functions'!$Z$5,'Utility Functions'!$Z$6)","v":0},{"$f":"valuePL(O17,'Utility Functions'!$AA$3:$AA$5,'Utility Functions'!$AB$3:$AB$5)","v":0},{"$f":"valuePL(P17,'Utility Functions'!$AC$3:$AC$7,'Utility Functions'!$AD$3:$AD$7)","v":0.75},{"$f":"valuePL(Q17,'Utility Functions'!$AE$3:$AE$6,'Utility Functions'!$AF$3:$AF$6)","v":0},{"$f":"valuePL(R17,'Utility Functions'!$AG$3:$AG$6,'Utility Functions'!$AH$3:$AH$6)","v":1},{"$f":"valuePL(S17,'Utility Functions'!$AI$3:$AI$6,'Utility Functions'!$AJ$3:$AJ$6)","v":1},{"$f":"valuePL(T17,'Utility Functions'!$AK$3:$AK$8,'Utility Functions'!$AL$3:$AL$8)","v":1},{"$f":"valuePL(U17,'Utility Functions'!$AM$3:$AM$5,'Utility Functions'!$AN$3:$AN$5)","v":0},{"$f":"valuePL(V17,'Utility Functions'!$AO$3:$AO$5,'Utility Functions'!$AP$3:$AP$5)","v":1},{"$f":"valuePL(W17,'Utility Functions'!$AQ$3:$AQ$6,'Utility Functions'!$AR$3:$AR$6)","v":0.75},{"$f":"valuePL(X17,'Utility Functions'!$AS$3:$AS$6,'Utility Functions'!$AT$3:$AT$6)","v":0.75},{"$f":"valuePL(Y17,'Utility Functions'!$AU$3:$AU$6,'Utility Functions'!$AV$3:$AV$6)","v":0.2},{"$f":"valuePL(Z17,'Utility Functions'!$AW$3:$AW$5,'Utility Functions'!$AX$3:$AX$5)","v":1},{"$f":"valuePL(AA17,'Utility Functions'!$AY$3:$AY$6,'Utility Functions'!$AZ$3:$AZ$6)","v":1},{"$f":"valuePL(AB17,'Utility Functions'!$BA$3:$BA$5,'Utility Functions'!$BB$3:$BB$5)","v":1},{"$f":"valuePL(AC17,'Utility Functions'!$BC$3:$BC$5,'Utility Functions'!$BD$3:$BD$5)","v":1},15.119696969696969,null,15.119696969696971,0,4.6696969696969699,0,3.75,6.7]
[17,{"$f":"valueE(B18,'Utility Functions'!$B$3,'Utility Functions'!$B$4,'Utility Functions'!$B$5,'Utility Functions'!$B$6)","v":0.32968045347775865},{"$f":"valueE(C18,'Utility Functions'!$D$3,'Utility Functions'!$D$4,'Utility Functions'!$D$5,'Utility Functions'!$D$6)","v":0.78989979019422951},{"$f":"valuePL(D18,'Utility Functions'!$E$3:$E$5,'Utility Functions'!$F$3:$F$5)","v":1},{"$f":"valuePL(E18,'Utility Functions'!$G$3:$G$5,'Utility Functions'!$H$3:$H$5)","v":0.5},{"$f":"valuePL(F18,'Utility Functions'!$I$3:$I$4,'Utility Functions'!$J$3:$J$5)","v":1},{"$f":"valueE(G18,'Utility Functions'!$L$3,'Utility Functions'!$L$4,'Utility Functions'!$L$5,'Utility Functions'!$L$6)","v":0.31182795698924731},{"$f":"valueE(H18,'Utility Functions'!$N$3,'Utility Functions'!$N$4,'Utility Functions'!$N$5,'Utility Functions'!$N$6)","v":0.27514231499051234},{"$f":"valuePL(I18,'Utility Functions'!$O$3:$O$6,'Utility Functions'!$P$3:$P$6)","v":0},{"$f":"valuePL(J18,'Utility Functions'!$Q$3:$Q$6,'Utility Functions'!$R$3:$R$6)","v":0},{"$f":"valuePL(K18,'Utility Functions'!$S$3:$S$7,'Utility Functions'!$T$3:$T$7)","v":0},{"$f":"valueE(L18,'Utility Functions'!$V$3,'Utility Functions'!$V$4,'Utility Functions'!$V$5,'Utility Functions'!$V$6)","v":1},{"$f":"valuePL(M18,'Utility Functions'!$W$3:$W$6,'Utility Functions'!$X$3:$X$6)","v":6.0000000000000012E-2},{"$f":"valueE(N18,'Utility Functions'!$Z$3,'Utility Functions'!$Z$4,'Utility Functions'!$Z$5,'Utility Functions'!$Z$6)","v":0},{"$f":"valuePL(O18,'Utility Functions'!$AA$3:$AA$5,'Utility Functions'!$AB$3:$AB$5)","v":0},{"$f":"valuePL(P18,'Utility Functions'!$AC$3:$AC$7,'Utility Functions'!$AD$3:$AD$7)","v":0},{"$f":"valuePL(Q18,'Utility Functions'!$AE$3:$AE$6,'Utility Functions'!$AF$3:$AF$6)","v":0},{"$f":"valuePL(R18,'Utility Functions'!$AG$3:$AG$6,'Utility Functions'!$AH$3:$AH$6)","v":1},{"$f":"valuePL(S18,'Utility Functions'!$AI$3:$AI$6,'Utility Functions'!$AJ$3:$AJ$6)","v":0.66},{"$f":"valuePL(T18,'Utility Functions'!$AK$3:$AK$8,'Utility Functions'!$AL$3:$AL$8)","v":0},{"$f":"valuePL(U18,'Utility Functions'!$AM$3:$AM$5,'Utility Functions'!$AN$3:$AN$5)","v":0},{"$f":"valuePL(V18,'Utility Functions'!$AO$3:$AO$5,'Utility Functions'!$AP$3:$AP$5)","v":1},{"$f":"valuePL(W18,'Utility Functions'!$AQ$3:$AQ$6,'Utility Functions'!$AR$3:$AR$6)","v":1},{"$f":"valuePL(X18,'Utility Functions'!$AS$3:$AS$6,'Utility Functions'!$AT$3:$AT$6)","v":0.2},{"$f":"valuePL(Y18,'Utility Functions'!$AU$3:$AU$6,'Utility Functions'!$AV$3:$AV$6)","v":0},{"$f":"valuePL(Z18,'Utility Functions'!$AW$3:$AW$5,'Utility Functions'!$AX$3:$AX$5)","v":0.5},{"$f":"valuePL(AA18,'Utility Functions'!$AY$3:$AY$6,'Utility Functions'!$AZ$3:$AZ$6)","v":0},{"$f":"valuePL(AB18,'Utility Functions'!$BA$3:$BA$5,'Utility Functions'!$BB$3:$BB$5)","v":1},{"$f":"valuePL(AC18,'Utility Functions'!$BC$3:$BC$5,'Utility Functions'!$BD$3:$BD$5)","v":0.25},10.876550515651747,null,10.876550515651747,3.6195802436719884,1.6469702719797596,0,1.6600000000000001,3.95]
[18,{"$f":"valueE(B19,'Utility Functions'!$B$3,'Utility Functions'!$B$4,'Utility Functions'!$B$5,'Utility Functions'!$B$6)","v":0},{"$f":"valueE(C19,'Utility Functions'!$D$3,'Utility Functions'!$D$4,'Utility Functions'!$D$5,'Utility Functions'!$D$6)","v":0},{"$f":"valuePL(D19,'Utility Functions'!$E$3:$E$5,'Utility Functions'!$F$3:$F$5)","v":0},{"$f":"valuePL(E19,'Utility Functions'!$G$3:$G$5,'Utility Functions'!$H$3:$H$5)","v":0},{"$f":"valuePL(F19,'Utility Functions'!$I$3:$I$4,'Utility Functions'!$J$3:$J$5)","v":0},{"$f":"valueE(G19,'Utility Functions'!$L$3,'Utility Functions'!$L$4,'Utility Functions'!$L$5,'Utility Functions'!$L$6)","v":0},{"$f":"valueE(H19,'Utility Functions'!$N$3,'Utility Functions'!$N$4,'Utility Functions'!$N$5,'Utility Functions'!$N$6)","v":2.8462998102466792E-2},{"$f":"valuePL(I19,'Utility Functions'!$O$3:$O$6,'Utility Functions'!$P$3:$P$6)","v":0},{"$f":"valuePL(J19,'Utility Functions'!$Q$3:$Q$6,'Utility Functions'!$R$3:$R$6)","v":0},{"$f":"valuePL(K19,'Utility Functions'!$S$3:$S$7,'Utility Functions'!$T$3:$T$7)","v":0},{"$f":"valueE(L19,'Utility Functions'!$V$3,'Utility Functions'!$V$4,'Utility Functions'!$V$5,'Utility Functions'!$V$6)","v":0},{"$f":"valuePL(M19,'Utility Functions'!$W$3:$W$6,'Utility Functions'!$X$3:$X$6)","v":0},{"$f":"valueE(N19,'Utility Functions'!$Z$3,'Utility Functions'!$Z$4,'Utility Functions'!$Z$5,'Utility Functions'!$Z$6)","v":1},{"$f":"valuePL(O19,'Utility Functions'!$AA$3:$AA$5,'Utility Functions'!$AB$3:$AB$5)","v":0.25},{"$f":"valuePL(P19,'Utility Functions'!$AC$3:$AC$7,'Utility Functions'!$AD$3:$AD$7)","v":0.25},{"$f":"valuePL(Q19,'Utility Functions'!$AE$3:$AE$6,'Utility Functions'!$AF$3:$AF$6)","v":1},{"$f":"valuePL(R19,'Utility Functions'!$AG$3:$AG$6,'Utility Functions'!$AH$3:$AH$6)","v":1},{"$f":"valuePL(S19,'Utility Functions'!$AI$3:$AI$6,'Utility Functions'!$AJ$3:$AJ$6)","v":1},{"$f":"valuePL(T19,'Utility Functions'!$AK$3:$AK$8,'Utility Functions'!$AL$3:$AL$8)","v":1},{"$f":"valuePL(U19,'Utility Functions'!$AM$3:$AM$5,'Utility Functions'!$AN$3:$AN$5)","v":0.25},{"$f":"valuePL(V19,'Utility Functions'!$AO$3:$AO$5,'Utility Functions'!$AP$3:$AP$5)","v":1},{"$f":"valuePL(W19,'Utility Functions'!$AQ$3:$AQ$6,'Utility Functions'!$AR$3:$AR$6)","v":0.75},{"$f":"valuePL(X19,'Utility Functions'!$AS$3:$AS$6,'Utility Functions'!$AT$3:$AT$6)","v":0.2},{"$f":"valuePL(Y19,'Utility Functions'!$AU$3:$AU$6,'Utility Functions'!$AV$3:$AV$6)","v":0.8},{"$f":"valuePL(Z19,'Utility Functions'!$AW$3:$AW$5,'Utility Functions'!$AX$3:$AX$5)","v":0.5},{"$f":"valuePL(AA19,'Utility Functions'!$AY$3:$AY$6,'Utility Functions'!$AZ$3:$AZ$6)","v":0.89999999999999991},{"$f":"valuePL(AB19,'Utility Functions'!$BA$3:$BA$5,'Utility Functions'!$BB$3:$BB$5)","v":0.25},{"$f":"valuePL(AC19,'Utility Functions'!$BC$3:$BC$5,'Utility Functions'!$BD$3:$BD$5)","v":0},10.178462998102468,null,10.178462998102468,0,2.8462998102466792E-2,1.25,4.5,4.4000000000000004]
[19,{"$f":"valueE(B20,'Utility Functions'!$B$3,'Utility Functions'!$B$4,'Utility Functions'!$B$5,'Utility Functions'!$B$6)","v":0.79810469124896843},{"$f":"valueE(C20,'Utility Functions'!$D$3,'Utility Functions'!$D$4,'Utility Functions'!$D$5,'Utility Functions'!$D$6)","v":0.26839655623815994},{"$f":"valuePL(D20,'Utility Functions'!$E$3:$E$5,'Utility Functions'!$F$3:$F$5)","v":0.5},{"$f":"valuePL(E20,'Utility Functions'!$G$3:$G$5,'Utility Functions'!$H$3:$H$5)","v":1},{"$f":"valuePL(F20,'Utility Functions'!$I$3:$I$4,'Utility Functions'!$J$3:$J$5)","v":0},{"$f":"valueE(G20,'Utility Functions'!$L$3,'Utility Functions'!$L$4,'Utility Functions'!$L$5,'Utility Functions'!$L$6)","v":0},{"$f":"valueE(H20,'Utility Functions'!$N$3,'Utility Functions'!$N$4,'Utility Functions'!$N$5,'Utility Functions'!$N$6)","v":0},{"$f":"valuePL(I20,'Utility Functions'!$O$3:$O$6,'Utility Functions'!$P$3:$P$6)","v":0},{"$f":"valuePL(J20,'Utility Functions'!$Q$3:$Q$6,'Utility Functions'!$R$3:$R$6)","v":0},{"$f":"valuePL(K20,'Utility Functions'!$S$3:$S$7,'Utility Functions'!$T$3:$T$7)","v":0},{"$f":"valueE(L20,'Utility Functions'!$V$3,'Utility Functions'!$V$4,'Utility Functions'!$V$5,'Utility Functions'!$V$6)","v":0},{"$f":"valuePL(M20,'Utility Functions'!$W$3:$W$6,'Utility Functions'!$X$3:$X$6)","v":0},{"$f":"valueE(N20,'Utility Functions'!$Z$3,'Utility Functions'!$Z$4,'Utility Functions'!$Z$5,'Utility Functions'!$Z$6)","v":1},{"$f":"valuePL(O20,'Utility Functions'!$AA$3:$AA$5,'Utility Functions'!$AB$3:$AB$5)","v":1},{"$f":"valuePL(P20,'Utility Functions'!$AC$3:$AC$7,'Utility Functions'!$AD$3:$AD$7)","v":0},{"$f":"valuePL(Q20,'Utility Functions'!$AE$3:$AE$6,'Utility Functions'!$AF$3:$AF$6)","v":0},{"$f":"valuePL(R20,'Utility Functions'!$AG$3:$AG$6,'Utility Functions'!$AH$3:$AH$6)","v":0.8},{"$f":"valuePL(S20,'Utility Functions'!$AI$3:$AI$6,'Utility Functions'!$AJ$3:$AJ$6)","v":1},{"$f":"valuePL(T20,'Utility Functions'!$AK$3:$AK$8,'Utility Functions'!$AL$3:$AL$8)","v":0},{"$f":"valuePL(U20,'Utility Functions'!$AM$3:$AM$5,'Utility Functions'!$AN$3:$AN$5)","v":0},{"$f":"valuePL(V20,'Utility Functions'!$AO$3:$AO$5,'Utility Functions'!$AP$3:$AP$5)","v":0.5},{"$f":"valuePL(W20,'Utility Functions'!$AQ$3:$AQ$6,'Utility Functions'!$AR$3:$AR$6)","v":0.2},{"$f":"valuePL(X20,'Utility Functions'!$AS$3:$AS$6,'Utility Functions'!$AT$3:$AT$6)","v":1},{"$f":"valuePL(Y20,'Utility Functions'!$AU$3:$AU$6,'Utility Functions'!$AV$3:$AV$6)","v":0.8},{"$f":"valuePL(Z20,'Utility Functions'!$AW$3:$AW$5,'Utility Functions'!$AX$3:$AX$5)","v":0},{"$f":"valuePL(AA20,'Utility Functions'!$AY$3:$AY$6,'Utility Functions'!$AZ$3:$AZ$6)","v":0.2},{"$f":"valuePL(AB20,'Utility Functions'!$BA$3:$BA$5,'Utility Functions'!$BB$3:$BB$5)","v":0},{"$f":"valuePL(AC20,'Utility Functions'!$BC$3:$BC$5,'Utility Functions'!$BD$3:$BD$5)","v":0.25},9.3165012474871283,null,9.3165012474871283,2.5665012474871283,0,2,1.8,2.95]
[20,{"$f":"valueE(B21,'Utility Functions'!$B$3,'Utility Functions'!$B$4,'Utility Functions'!$B$5,'Utility Functions'!$B$6)","v":0.83470237647280454},{"$f":"valueE(C21,'Utility Functions'!$D$3,'Utility Functions'!$D$4,'Utility Functions'!$D$5,'Utility Functions'!$D$6)","v":0.78989979019422951},{"$f":"valuePL(D21,'Utility Functions'!$E$3:$E$5,'Utility Functions'!$F$3:$F$5)","v":0.5},{"$f":"valuePL(E21,'Utility Functions'!$G$3:$G$5,'Utility Functions'!$H$3:$H$5)","v":1},{"$f":"valuePL(F21,'Utility Functions'!$I$3:$I$4,'Utility Functions'!$J$3:$J$5)","v":0},{"$f":"valueE(G21,'Utility Functions'!$L$3,'Utility Functions'!$L$4,'Utility Functions'!$L$5,'Utility Functions'!$L$6)","v":0},{"$f":"valueE(H21,'Utility Functions'!$N$3,'Utility Functions'!$N$4,'Utility Functions'!$N$5,'Utility Functions'!$N$6)","v":0.41271347248576851},{"$f":"valuePL(I21,'Utility Functions'!$O$3:$O$6,'Utility Functions'!$P$3:$P$6)","v":0.93454545454545446},{"$f":"valuePL(J21,'Utility Functions'!$Q$3:$Q$6,'Utility Functions'!$R$3:$R$6)","v":0.50909090909090915},{"$f":"valuePL(K21,'Utility Functions'!$S$3:$S$7,'Utility Functions'!$T$3:$T$7)","v":0.93454545454545446},{"$f":"valueE(L21,'Utility Functions'!$V$3,'Utility Functions'!$V$4,'Utility Functions'!$V$5,'Utility Functions'!$V$6)","v":0.66666666666666663},{"$f":"valuePL(M21,'Utility Functions'!$W$3:$W$6,'Utility Functions'!$X$3:$X$6)","v":0.50909090909090915},{"$f":"valueE(N21,'Utility Functions'!$Z$3,'Utility Functions'!$Z$4,'Utility Functions'!$Z$5,'Utility Functions'!$Z$6)","v":1},{"$f":"valuePL(O21,'Utility Functions'!$AA$3:$AA$5,'Utility Functions'!$AB$3:$AB$5)","v":1},{"$f":"valuePL(P21,'Utility Functions'!$AC$3:$AC$7,'Utility Functions'!$AD$3:$AD$7)","v":0.25},{"$f":"valuePL(Q21,'Utility Functions'!$AE$3:$AE$6,'Utility Functions'!$AF$3:$AF$6)","v":0},{"$f":"valuePL(R21,'Utility Functions'!$AG$3:$AG$6,'Utility Functions'!$AH$3:$AH$6)","v":1},{"$f":"valuePL(S21,'Utility Functions'!$AI$3:$AI$6,'Utility Functions'!$AJ$3:$AJ$6)","v":1},{"$f":"valuePL(T21,'Utility Functions'!$AK$3:$AK$8,'Utility Functions'!$AL$3:$AL$8)","v":0.6},{"$f":"valuePL(U21,'Utility Functions'!$AM$3:$AM$5,'Utility Functions'!$AN$3:$AN$5)","v":1},{"$f":"valuePL(V21,'Utility Functions'!$AO$3:$AO$5,'Utility Functions'!$AP$3:$AP$5)","v":0.5},{"$f":"valuePL(W21,'Utility Functions'!$AQ$3:$AQ$6,'Utility Functions'!$AR$3:$AR$6)","v":0},{"$f":"valuePL(X21,'Utility Functions'!$AS$3:$AS$6,'Utility Functions'!$AT$3:$AT$6)","v":0},{"$f":"valuePL(Y21,'Utility Functions'!$AU$3:$AU$6,'Utility Functions'!$AV$3:$AV$6)","v":0.2},{"$f":"valuePL(Z21,'Utility Functions'!$AW$3:$AW$5,'Utility Functions'!$AX$3:$AX$5)","v":1},{"$f":"valuePL(AA21,'Utility Functions'!$AY$3:$AY$6,'Utility Functions'!$AZ$3:$AZ$6)","v":0.2},{"$f":"valuePL(AB21,'Utility Functions'!$BA$3:$BA$5,'Utility Functions'!$BB$3:$BB$5)","v":0},{"$f":"valuePL(AC21,'Utility Functions'!$BC$3:$BC$5,'Utility Functions'!$BD$3:$BD$5)","v":0.25},15.091255033092194,null,15.091255033092196,3.1246021666670343,3.9666528664251626,2,3.85,2.15]
[21,{"$f":"valueE(B22,'Utility Functions'!$B$3,'Utility Functions'!$B$4,'Utility Functions'!$B$5,'Utility Functions'!$B$6)","v":0},{"$f":"valueE(C22,'Utility Functions'!$D$3,'Utility Functions'!$D$4,'Utility Functions'!$D$5,'Utility Functions'!$D$6)","v":0},{"$f":"valuePL(D22,'Utility Functions'!$E$3:$E$5,'Utility Functions'!$F$3:$F$5)","v":0},{"$f":"valuePL(E22,'Utility Functions'!$G$3:$G$5,'Utility Functions'!$H$3:$H$5)","v":0},{"$f":"valuePL(F22,'Utility Functions'!$I$3:$I$4,'Utility Functions'!$J$3:$J$5)","v":0},{"$f":"valueE(G22,'Utility Functions'!$L$3,'Utility Functions'!$L$4,'Utility Functions'!$L$5,'Utility Functions'!$L$6)","v":0},{"$f":"valueE(H22,'Utility Functions'!$N$3,'Utility Functions'!$N$4,'Utility Functions'!$N$5,'Utility Functions'!$N$6)","v":0},{"$f":"valuePL(I22,'Utility Functions'!$O$3:$O$6,'Utility Functions'!$P$3:$P$6)","v":0},{"$f":"valuePL(J22,'Utility Functions'!$Q$3:$Q$6,'Utility Functions'!$R$3:$R$6)","v":0},{"$f":"valuePL(K22,'Utility Functions'!$S$3:$S$7,'Utility Functions'!$T$3:$T$7)","v":0},{"$f":"valueE(L22,'Utility Functions'!$V$3,'Utility Functions'!$V$4,'Utility Functions'!$V$5,'Utility Functions'!$V$6)","v":0},{"$f":"valuePL(M22,'Utility Functions'!$W$3:$W$6,'Utility Functions'!$X$3:$X$6)","v":0},{"$f":"valueE(N22,'Utility Functions'!$Z$3,'Utility Functions'!$Z$4,'Utility Functions'!$Z$5,'Utility Functions'!$Z$6)","v":1},{"$f":"valuePL(O22,'Utility Functions'!$AA$3:$AA$5,'Utility Functions'!$AB$3:$AB$5)","v":1},{"$f":"valuePL(P22,'Utility Functions'!$AC$3:$AC$7,'Utility Functions'!$AD$3:$AD$7)","v":0},{"$f":"valuePL(Q22,'Utility Functions'!$AE$3:$AE$6,'Utility Functions'!$AF$3:$AF$6)","v":0.1},{"$f":"valuePL(R22,'Utility Functions'!$AG$3:$AG$6,'Utility Functions'!$AH$3:$AH$6)","v":1},{"$f":"valuePL(S22,'Utility Functions'!$AI$3:$AI$6,'Utility Functions'!$AJ$3:$AJ$6)","v":1},{"$f":"valuePL(T22,'Utility Functions'!$AK$3:$AK$8,'Utility Functions'!$AL$3:$AL$8)","v":1},{"$f":"valuePL(U22,'Utility Functions'!$AM$3:$AM$5,'Utility Functions'!$AN$3:$AN$5)","v":0.25},{"$f":"valuePL(V22,'Utility Functions'!$AO$3:$AO$5,'Utility Functions'!$AP$3:$AP$5)","v":0},{"$f":"valuePL(W22,'Utility Functions'!$AQ$3:$AQ$6,'Utility Functions'!$AR$3:$AR$6)","v":0.75},{"$f":"valuePL(X22,'Utility Functions'!$AS$3:$AS$6,'Utility Functions'!$AT$3:$AT$6)","v":1},{"$f":"valuePL(Y22,'Utility Functions'!$AU$3:$AU$6,'Utility Functions'!$AV$3:$AV$6)","v":0.2},{"$f":"valuePL(Z22,'Utility Functions'!$AW$3:$AW$5,'Utility Functions'!$AX$3:$AX$5)","v":0},{"$f":"valuePL(AA22,'Utility Functions'!$AY$3:$AY$6,'Utility Functions'!$AZ$3:$AZ$6)","v":1},{"$f":"valuePL(AB22,'Utility Functions'!$BA$3:$BA$5,'Utility Functions'!$BB$3:$BB$5)","v":0.25},{"$f":"valuePL(AC22,'Utility Functions'!$BC$3:$BC$5,'Utility Functions'!$BD$3:$BD$5)","v":1},9.5500000000000007,null,9.5500000000000007,0,0,2,3.35,4.2]
[22,{"$f":"valueE(B23,'Utility Functions'!$B$3,'Utility Functions'!$B$4,'Utility Functions'!$B$5,'Utility Functions'!$B$6)","v":0},{"$f":"valueE(C23,'Utility Functions'!$D$3,'Utility Functions'!$D$4,'Utility Functions'!$D$5,'Utility Functions'!$D$6)","v":0},{"$f":"valuePL(D23,'Utility Functions'!$E$3:$E$5,'Utility Functions'!$F$3:$F$5)","v":0},{"$f":"valuePL(E23,'Utility Functions'!$G$3:$G$5,'Utility Functions'!$H$3:$H$5)","v":0},{"$f":"valuePL(F23,'Utility Functions'!$I$3:$I$4,'Utility Functions'!$J$3:$J$5)","v":0},{"$f":"valueE(G23,'Utility Functions'!$L$3,'Utility Functions'!$L$4,'Utility Functions'!$L$5,'Utility Functions'!$L$6)","v":8.6021505376344093E-2},{"$f":"valueE(H23,'Utility Functions'!$N$3,'Utility Functions'!$N$4,'Utility Functions'!$N$5,'Utility Functions'!$N$6)","v":6.0721062618595827E-2},{"$f":"valuePL(I23,'Utility Functions'!$O$3:$O$6,'Utility Functions'!$P$3:$P$6)","v":0},{"$f":"valuePL(J23,'Utility Functions'!$Q$3:$Q$6,'Utility Functions'!$R$3:$R$6)","v":0},{"$f":"valuePL(K23,'Utility Functions'!$S$3:$S$7,'Utility Functions'!$T$3:$T$7)","v":0},{"$f":"valueE(L23,'Utility Functions'!$V$3,'Utility Functions'!$V$4,'Utility Functions'!$V$5,'Utility Functions'!$V$6)","v":0},{"$f":"valuePL(M23,'Utility Functions'!$W$3:$W$6,'Utility Functions'!$X$3:$X$6)","v":0},{"$f":"valueE(N23,'Utility Functions'!$Z$3,'Utility Functions'!$Z$4,'Utility Functions'!$Z$5,'Utility Functions'!$Z$6)","v":0.125},{"$f":"valuePL(O23,'Utility Functions'!$AA$3:$AA$5,'Utility Functions'!$AB$3:$AB$5)","v":1},{"$f":"valuePL(P23,'Utility Functions'!$AC$3:$AC$7,'Utility Functions'!$AD$3:$AD$7)","v":1},{"$f":"valuePL(Q23,'Utility Functions'!$AE$3:$AE$6,'Utility Functions'!$AF$3:$AF$6)","v":0.5},{"$f":"valuePL(R23,'Utility Functions'!$AG$3:$AG$6,'Utility Functions'!$AH$3:$AH$6)","v":0.8},{"$f":"valuePL(S23,'Utility Functions'!$AI$3:$AI$6,'Utility Functions'!$AJ$3:$AJ$6)","v":1},{"$f":"valuePL(T23,'Utility Functions'!$AK$3:$AK$8,'Utility Functions'!$AL$3:$AL$8)","v":1},{"$f":"valuePL(U23,'Utility Functions'!$AM$3:$AM$5,'Utility Functions'!$AN$3:$AN$5)","v":0},{"$f":"valuePL(V23,'Utility Functions'!$AO$3:$AO$5,'Utility Functions'!$AP$3:$AP$5)","v":0.5},{"$f":"valuePL(W23,'Utility Functions'!$AQ$3:$AQ$6,'Utility Functions'!$AR$3:$AR$6)","v":0.75},{"$f":"valuePL(X23,'Utility Functions'!$AS$3:$AS$6,'Utility Functions'!$AT$3:$AT$6)","v":0.2},{"$f":"valuePL(Y23,'Utility Functions'!$AU$3:$AU$6,'Utility Functions'!$AV$3:$AV$6)","v":0},{"$f":"valuePL(Z23,'Utility Functions'!$AW$3:$AW$5,'Utility Functions'!$AX$3:$AX$5)","v":1},{"$f":"valuePL(AA23,'Utility Functions'!$AY$3:$AY$6,'Utility Functions'!$AZ$3:$AZ$6)","v":0.2},{"$f":"valuePL(AB23,'Utility Functions'!$BA$3:$BA$5,'Utility Functions'!$BB$3:$BB$5)","v":1},{"$f":"valuePL(AC23,'Utility Functions'!$BC$3:$BC$5,'Utility Functions'!$BD$3:$BD$5)","v":0.25},9.471742567994939,null,9.4717425679949407,0,0.14674256799493993,1.125,4.3,3.9000000000000004]
[23,{"$f":"valueE(B24,'Utility Functions'!$B$3,'Utility Functions'!$B$4,'Utility Functions'!$B$5,'Utility Functions'!$B$6)","v":0.83470237647280454},{"$f":"valueE(C24,'Utility Functions'!$D$3,'Utility Functions'!$D$4,'Utility Functions'!$D$5,'Utility Functions'!$D$6)","v":0.84744836833951609},{"$f":"valuePL(D24,'Utility Functions'!$E$3:$E$5,'Utility Functions'!$F$3:$F$5)","v":1},{"$f":"valuePL(E24,'Utility Functions'!$G$3:$G$5,'Utility Functions'!$H$3:$H$5)","v":0},{"$f":"valuePL(F24,'Utility Functions'!$I$3:$I$4,'Utility Functions'!$J$3:$J$5)","v":0},{"$f":"valueE(G24,'Utility Functions'!$L$3,'Utility Functions'!$L$4,'Utility Functions'!$L$5,'Utility Functions'!$L$6)","v":0},{"$f":"valueE(H24,'Utility Functions'!$N$3,'Utility Functions'!$N$4,'Utility Functions'!$N$5,'Utility Functions'!$N$6)","v":0},{"$f":"valuePL(I24,'Utility Functions'!$O$3:$O$6,'Utility Functions'!$P$3:$P$6)","v":0},{"$f":"valuePL(J24,'Utility Functions'!$Q$3:$Q$6,'Utility Functions'!$R$3:$R$6)","v":0},{"$f":"valuePL(K24,'Utility Functions'!$S$3:$S$7,'Utility Functions'!$T$3:$T$7)","v":0},{"$f":"valueE(L24,'Utility Functions'!$V$3,'Utility Functions'!$V$4,'Utility Functions'!$V$5,'Utility Functions'!$V$6)","v":0},{"$f":"valuePL(M24,'Utility Functions'!$W$3:$W$6,'Utility Functions'!$X$3:$X$6)","v":0},{"$f":"valueE(N24,'Utility Functions'!$Z$3,'Utility Functions'!$Z$4,'Utility Functions'!$Z$5,'Utility Functions'!$Z$6)","v":0},{"$f":"valuePL(O24,'Utility Functions'!$AA$3:$AA$5,'Utility Functions'!$AB$3:$AB$5)","v":0},{"$f":"valuePL(P24,'Utility Functions'!$AC$3:$AC$7,'Utility Functions'!$AD$3:$AD$7)","v":0.75},{"$f":"valuePL(Q24,'Utility Functions'!$AE$3:$AE$6,'Utility Functions'!$AF$3:$AF$6)","v":0},{"$f":"valuePL(R24,'Utility Functions'!$AG$3:$AG$6,'Utility Functions'!$AH$3:$AH$6)","v":1},{"$f":"valuePL(S24,'Utility Functions'!$AI$3:$AI$6,'Utility Functions'!$AJ$3:$AJ$6)","v":1},{"$f":"valuePL(T24,'Utility Functions'!$AK$3:$AK$8,'Utility Functions'!$AL$3:$AL$8)","v":1},{"$f":"valuePL(U24,'Utility Functions'!$AM$3:$AM$5,'Utility Functions'!$AN$3:$AN$5)","v":0},{"$f":"valuePL(V24,'Utility Functions'!$AO$3:$AO$5,'Utility Functions'!$AP$3:$AP$5)","v":1},{"$f":"valuePL(W24,'Utility Functions'!$AQ$3:$AQ$6,'Utility Functions'!$AR$3:$AR$6)","v":0.2},{"$f":"valuePL(X24,'Utility Functions'!$AS$3:$AS$6,'Utility Functions'!$AT$3:$AT$6)","v":0.75},{"$f":"valuePL(Y24,'Utility Functions'!$AU$3:$AU$6,'Utility Functions'!$AV$3:$AV$6)","v":0.2},{"$f":"valuePL(Z24,'Utility Functions'!$AW$3:$AW$5,'Utility Functions'!$AX$3:$AX$5)","v":0.5},{"$f":"valuePL(AA24,'Utility Functions'!$AY$3:$AY$6,'Utility Functions'!$AZ$3:$AZ$6)","v":0.2},{"$f":"valuePL(AB24,'Utility Functions'!$BA$3:$BA$5,'Utility Functions'!$BB$3:$BB$5)","v":0},{"$f":"valuePL(AC24,'Utility Functions'!$BC$3:$BC$5,'Utility Functions'!$BD$3:$BD$5)","v":0.25},9.5321507448123199,null,9.5321507448123199,2.6821507448123207,0,0,3.75,3.1]
[24,{"$f":"valueE(B25,'Utility Functions'!$B$3,'Utility Functions'!$B$4,'Utility Functions'!$B$5,'Utility Functions'!$B$6)","v":0.63212151658375171},{"$f":"valueE(C25,'Utility Functions'!$D$3,'Utility Functions'!$D$4,'Utility Functions'!$D$5,'Utility Functions'!$D$6)","v":0.46475967153745396},{"$f":"valuePL(D25,'Utility Functions'!$E$3:$E$5,'Utility Functions'!$F$3:$F$5)","v":1},{"$f":"valuePL(E25,'Utility Functions'!$G$3:$G$5,'Utility Functions'!$H$3:$H$5)","v":0},{"$f":"valuePL(F25,'Utility Functions'!$I$3:$I$4,'Utility Functions'!$J$3:$J$5)","v":0},{"$f":"valueE(G25,'Utility Functions'!$L$3,'Utility Functions'!$L$4,'Utility Functions'!$L$5,'Utility Functions'!$L$6)","v":0},{"$f":"valueE(H25,'Utility Functions'!$N$3,'Utility Functions'!$N$4,'Utility Functions'!$N$5,'Utility Functions'!$N$6)","v":0},{"$f":"valuePL(I25,'Utility Functions'!$O$3:$O$6,'Utility Functions'!$P$3:$P$6)","v":0},{"$f":"valuePL(J25,'Utility Functions'!$Q$3:$Q$6,'Utility Functions'!$R$3:$R$6)","v":0},{"$f":"valuePL(K25,'Utility Functions'!$S$3:$S$7,'Utility Functions'!$T$3:$T$7)","v":0},{"$f":"valueE(L25,'Utility Functions'!$V$3,'Utility Functions'!$V$4,'Utility Functions'!$V$5,'Utility Functions'!$V$6)","v":0},{"$f":"valuePL(M25,'Utility Functions'!$W$3:$W$6,'Utility Functions'!$X$3:$X$6)","v":0},{"$f":"valueE(N25,'Utility Functions'!$Z$3,'Utility Functions'!$Z$4,'Utility Functions'!$Z$5,'Utility Functions'!$Z$6)","v":0},{"$f":"valuePL(O25,'Utility Functions'!$AA$3:$AA$5,'Utility Functions'!$AB$3:$AB$5)","v":0},{"$f":"valuePL(P25,'Utility Functions'!$AC$3:$AC$7,'Utility Functions'!$AD$3:$AD$7)","v":0},{"$f":"valuePL(Q25,'Utility Functions'!$AE$3:$AE$6,'Utility Functions'!$AF$3:$AF$6)","v":0},{"$f":"valuePL(R25,'Utility Functions'!$AG$3:$AG$6,'Utility Functions'!$AH$3:$AH$6)","v":1},{"$f":"valuePL(S25,'Utility Functions'!$AI$3:$AI$6,'Utility Functions'!$AJ$3:$AJ$6)","v":1},{"$f":"valuePL(T25,'Utility Functions'!$AK$3:$AK$8,'Utility Functions'!$AL$3:$AL$8)","v":1},{"$f":"valuePL(U25,'Utility Functions'!$AM$3:$AM$5,'Utility Functions'!$AN$3:$AN$5)","v":0},{"$f":"valuePL(V25,'Utility Functions'!$AO$3:$AO$5,'Utility Functions'!$AP$3:$AP$5)","v":0},{"$f":"valuePL(W25,'Utility Functions'!$AQ$3:$AQ$6,'Utility Functions'!$AR$3:$AR$6)","v":1},{"$f":"valuePL(X25,'Utility Functions'!$AS$3:$AS$6,'Utility Functions'!$AT$3:$AT$6)","v":0.2},{"$f":"valuePL(Y25,'Utility Functions'!$AU$3:$AU$6,'Utility Functions'!$AV$3:$AV$6)","v":1},{"$f":"valuePL(Z25,'Utility Functions'!$AW$3:$AW$5,'Utility Functions'!$AX$3:$AX$5)","v":1},{"$f":"valuePL(AA25,'Utility Functions'!$AY$3:$AY$6,'Utility Functions'!$AZ$3:$AZ$6)","v":0.2},{"$f":"valuePL(AB25,'Utility Functions'!$BA$3:$BA$5,'Utility Functions'!$BB$3:$BB$5)","v":0},{"$f":"valuePL(AC25,'Utility Functions'!$BC$3:$BC$5,'Utility Functions'!$BD$3:$BD$5)","v":1},9.4968811881212041,null,9.4968811881212059,2.0968811881212055,0,0,3,4.4000000000000004]
[25,{"$f":"valueE(B26,'Utility Functions'!$B$3,'Utility Functions'!$B$4,'Utility Functions'!$B$5,'Utility Functions'!$B$6)","v":0.83470237647280454},{"$f":"valueE(C26,'Utility Functions'!$D$3,'Utility Functions'!$D$4,'Utility Functions'!$D$5,'Utility Functions'!$D$6)","v":0.84744836833951609},{"$f":"valuePL(D26,'Utility Functions'!$E$3:$E$5,'Utility Functions'!$F$3:$F$5)","v":1},{"$f":"valuePL(E26,'Utility Functions'!$G$3:$G$5,'Utility Functions'!$H$3:$H$5)","v":0},{"$f":"valuePL(F26,'Utility Functions'!$I$3:$I$4,'Utility Functions'!$J$3:$J$5)","v":0},{"$f":"valueE(G26,'Utility Functions'!$L$3,'Utility Functions'!$L$4,'Utility Functions'!$L$5,'Utility Functions'!$L$6)","v":0.94623655913978499},{"$f":"valueE(H26,'Utility Functions'!$N$3,'Utility Functions'!$N$4,'Utility Functions'!$N$5,'Utility Functions'!$N$6)","v":0.29222011385199242},{"$f":"valuePL(I26,'Utility Functions'!$O$3:$O$6,'Utility Functions'!$P$3:$P$6)","v":0},{"$f":"valuePL(J26,'Utility Functions'!$Q$3:$Q$6,'Utility Functions'!$R$3:$R$6)","v":0},{"$f":"valuePL(K26,'Utility Functions'!$S$3:$S$7,'Utility Functions'!$T$3:$T$7)","v":0},{"$f":"valueE(L26,'Utility Functions'!$V$3,'Utility Functions'!$V$4,'Utility Functions'!$V$5,'Utility Functions'!$V$6)","v":0},{"$f":"valuePL(M26,'Utility Functions'!$W$3:$W$6,'Utility Functions'!$X$3:$X$6)","v":0},{"$f":"valueE(N26,'Utility Functions'!$Z$3,'Utility Functions'!$Z$4,'Utility Functions'!$Z$5,'Utility Functions'!$Z$6)","v":1},{"$f":"valuePL(O26,'Utility Functions'!$AA$3:$AA$5,'Utility Functions'!$AB$3:$AB$5)","v":0.25},{"$f":"valuePL(P26,'Utility Functions'!$AC$3:$AC$7,'Utility Functions'!$AD$3:$AD$7)","v":0.5},{"$f":"valuePL(Q26,'Utility Functions'!$AE$3:$AE$6,'Utility Functions'!$AF$3:$AF$6)","v":0.5},{"$f":"valuePL(R26,'Utility Functions'!$AG$3:$AG$6,'Utility Functions'!$AH$3:$AH$6)","v":1},{"$f":"valuePL(S26,'Utility Functions'!$AI$3:$AI$6,'Utility Functions'!$AJ$3:$AJ$6)","v":1},{"$f":"valuePL(T26,'Utility Functions'!$AK$3:$AK$8,'Utility Functions'!$AL$3:$AL$8)","v":0},{"$f":"valuePL(U26,'Utility Functions'!$AM$3:$AM$5,'Utility Functions'!$AN$3:$AN$5)","v":0},{"$f":"valuePL(V26,'Utility Functions'!$AO$3:$AO$5,'Utility Functions'!$AP$3:$AP$5)","v":1},{"$f":"valuePL(W26,'Utility Functions'!$AQ$3:$AQ$6,'Utility Functions'!$AR$3:$AR$6)","v":0.2},{"$f":"valuePL(X26,'Utility Functions'!$AS$3:$AS$6,'Utility Functions'!$AT$3:$AT$6)","v":1},{"$f":"valuePL(Y26,'Utility Functions'!$AU$3:$AU$6,'Utility Functions'!$AV$3:$AV$6)","v":0.8},{"$f":"valuePL(Z26,'Utility Functions'!$AW$3:$AW$5,'Utility Functions'!$AX$3:$AX$5)","v":0.5},{"$f":"valuePL(AA26,'Utility Functions'!$AY$3:$AY$6,'Utility Functions'!$AZ$3:$AZ$6)","v":0.2},{"$f":"valuePL(AB26,'Utility Functions'!$BA$3:$BA$5,'Utility Functions'!$BB$3:$BB$5)","v":1},{"$f":"valuePL(AC26,'Utility Functions'!$BC$3:$BC$5,'Utility Functions'!$BD$3:$BD$5)","v":1},13.870607417804099,null,13.870607417804099,2.6821507448123207,1.2384566729917774,1.25,3,5.7]
[26,{"$f":"valueE(B27,'Utility Functions'!$B$3,'Utility Functions'!$B$4,'Utility Functions'!$B$5,'Utility Functions'!$B$6)","v":0.96662819462069161},{"$f":"valueE(C27,'Utility Functions'!$D$3,'Utility Functions'!$D$4,'Utility Functions'!$D$5,'Utility Functions'!$D$6)","v":0.84744836833951609},{"$f":"valuePL(D27,'Utility Functions'!$E$3:$E$5,'Utility Functions'!$F$3:$F$5)","v":1},{"$f":"valuePL(E27,'Utility Functions'!$G$3:$G$5,'Utility Functions'!$H$3:$H$5)","v":0.5},{"$f":"valuePL(F27,'Utility Functions'!$I$3:$I$4,'Utility Functions'!$J$3:$J$5)","v":0},{"$f":"valueE(G27,'Utility Functions'!$L$3,'Utility Functions'!$L$4,'Utility Functions'!$L$5,'Utility Functions'!$L$6)","v":0},{"$f":"valueE(H27,'Utility Functions'!$N$3,'Utility Functions'!$N$4,'Utility Functions'!$N$5,'Utility Functions'!$N$6)","v":0},{"$f":"valuePL(I27,'Utility Functions'!$O$3:$O$6,'Utility Functions'!$P$3:$P$6)","v":0},{"$f":"valuePL(J27,'Utility Functions'!$Q$3:$Q$6,'Utility Functions'!$R$3:$R$6)","v":0},{"$f":"valuePL(K27,'Utility Functions'!$S$3:$S$7,'Utility Functions'!$T$3:$T$7)","v":0},{"$f":"valueE(L27,'Utility Functions'!$V$3,'Utility Functions'!$V$4,'Utility Functions'!$V$5,'Utility Functions'!$V$6)","v":0},{"$f":"valuePL(M27,'Utility Functions'!$W$3:$W$6,'Utility Functions'!$X$3:$X$6)","v":0},{"$f":"valueE(N27,'Utility Functions'!$Z$3,'Utility Functions'!$Z$4,'Utility Functions'!$Z$5,'Utility Functions'!$Z$6)","v":0},{"$f":"valuePL(O27,'Utility Functions'!$AA$3:$AA$5,'Utility Functions'!$AB$3:$AB$5)","v":0},{"$f":"valuePL(P27,'Utility Functions'!$AC$3:$AC$7,'Utility Functions'!$AD$3:$AD$7)","v":0.75},{"$f":"valuePL(Q27,'Utility Functions'!$AE$3:$AE$6,'Utility Functions'!$AF$3:$AF$6)","v":0},{"$f":"valuePL(R27,'Utility Functions'!$AG$3:$AG$6,'Utility Functions'!$AH$3:$AH$6)","v":1},{"$f":"valuePL(S27,'Utility Functions'!$AI$3:$AI$6,'Utility Functions'!$AJ$3:$AJ$6)","v":1},{"$f":"valuePL(T27,'Utility Functions'!$AK$3:$AK$8,'Utility Functions'!$AL$3:$AL$8)","v":0.8},{"$f":"valuePL(U27,'Utility Functions'!$AM$3:$AM$5,'Utility Functions'!$AN$3:$AN$5)","v":0},{"$f":"valuePL(V27,'Utility Functions'!$AO$3:$AO$5,'Utility Functions'!$AP$3:$AP$5)","v":1},{"$f":"valuePL(W27,'Utility Functions'!$AQ$3:$AQ$6,'Utility Functions'!$AR$3:$AR$6)","v":0.2},{"$f":"valuePL(X27,'Utility Functions'!$AS$3:$AS$6,'Utility Functions'!$AT$3:$AT$6)","v":0},{"$f":"valuePL(Y27,'Utility Functions'!$AU$3:$AU$6,'Utility Functions'!$AV$3:$AV$6)","v":0.8},{"$f":"valuePL(Z27,'Utility Functions'!$AW$3:$AW$5,'Utility Functions'!$AX$3:$AX$5)","v":0},{"$f":"valuePL(AA27,'Utility Functions'!$AY$3:$AY$6,'Utility Functions'!$AZ$3:$AZ$6)","v":0.2},{"$f":"valuePL(AB27,'Utility Functions'!$BA$3:$BA$5,'Utility Functions'!$BB$3:$BB$5)","v":1},{"$f":"valuePL(AC27,'Utility Functions'!$BC$3:$BC$5,'Utility Functions'!$BD$3:$BD$5)","v":1},11.064076562960208,null,11.064076562960206,3.3140765629602078,0,0,3.55,4.2]
[27,{"$f":"valueE(B28,'Utility Functions'!$B$3,'Utility Functions'!$B$4,'Utility Functions'!$B$5,'Utility Functions'!$B$6)","v":0},{"$f":"valueE(C28,'Utility Functions'!$D$3,'Utility Functions'!$D$4,'Utility Functions'!$D$5,'Utility Functions'!$D$6)","v":0.46475967153745396},{"$f":"valuePL(D28,'Utility Functions'!$E$3:$E$5,'Utility Functions'!$F$3:$F$5)","v":1},{"$f":"valuePL(E28,'Utility Functions'!$G$3:$G$5,'Utility Functions'!$H$3:$H$5)","v":0},{"$f":"valuePL(F28,'Utility Functions'!$I$3:$I$4,'Utility Functions'!$J$3:$J$5)","v":0},{"$f":"valueE(G28,'Utility Functions'!$L$3,'Utility Functions'!$L$4,'Utility Functions'!$L$5,'Utility Functions'!$L$6)","v":0},{"$f":"valueE(H28,'Utility Functions'!$N$3,'Utility Functions'!$N$4,'Utility Functions'!$N$5,'Utility Functions'!$N$6)","v":0},{"$f":"valuePL(I28,'Utility Functions'!$O$3:$O$6,'Utility Functions'!$P$3:$P$6)","v":0},{"$f":"valuePL(J28,'Utility Functions'!$Q$3:$Q$6,'Utility Functions'!$R$3:$R$6)","v":0},{"$f":"valuePL(K28,'Utility Functions'!$S$3:$S$7,'Utility Functions'!$T$3:$T$7)","v":1},{"$f":"valueE(L28,'Utility Functions'!$V$3,'Utility Functions'!$V$4,'Utility Functions'!$V$5,'Utility Functions'!$V$6)","v":0},{"$f":"valuePL(M28,'Utility Functions'!$W$3:$W$6,'Utility Functions'!$X$3:$X$6)","v":0.1},{"$f":"valueE(N28,'Utility Functions'!$Z$3,'Utility Functions'!$Z$4,'Utility Functions'!$Z$5,'Utility Functions'!$Z$6)","v":0},{"$f":"valuePL(O28,'Utility Functions'!$AA$3:$AA$5,'Utility Functions'!$AB$3:$AB$5)","v":0},{"$f":"valuePL(P28,'Utility Functions'!$AC$3:$AC$7,'Utility Functions'!$AD$3:$AD$7)","v":0.5},{"$f":"valuePL(Q28,'Utility Functions'!$AE$3:$AE$6,'Utility Functions'!$AF$3:$AF$6)","v":0.5},{"$f":"valuePL(R28,'Utility Functions'!$AG$3:$AG$6,'Utility Functions'!$AH$3:$AH$6)","v":1},{"$f":"valuePL(S28,'Utility Functions'!$AI$3:$AI$6,'Utility Functions'!$AJ$3:$AJ$6)","v":1},{"$f":"valuePL(T28,'Utility Functions'!$AK$3:$AK$8,'Utility Functions'!$AL$3:$AL$8)","v":1},{"$f":"valuePL(U28,'Utility Functions'!$AM$3:$AM$5,'Utility Functions'!$AN$3:$AN$5)","v":0},{"$f":"valuePL(V28,'Utility Functions'!$AO$3:$AO$5,'Utility Functions'!$AP$3:$AP$5)","v":0.5},{"$f":"valuePL(W28,'Utility Functions'!$AQ$3:$AQ$6,'Utility Functions'!$AR$3:$AR$6)","v":0.75},{"$f":"valuePL(X28,'Utility Functions'!$AS$3:$AS$6,'Utility Functions'!$AT$3:$AT$6)","v":1},{"$f":"valuePL(Y28,'Utility Functions'!$AU$3:$AU$6,'Utility Functions'!$AV$3:$AV$6)","v":0.2},{"$f":"valuePL(Z28,'Utility Functions'!$AW$3:$AW$5,'Utility Functions'!$AX$3:$AX$5)","v":0},{"$f":"valuePL(AA28,'Utility Functions'!$AY$3:$AY$6,'Utility Functions'!$AZ$3:$AZ$6)","v":0},{"$f":"valuePL(AB28,'Utility Functions'!$BA$3:$BA$5,'Utility Functions'!$BB$3:$BB$5)","v":0},{"$f":"valuePL(AC28,'Utility Functions'!$BC$3:$BC$5,'Utility Functions'!$BD$3:$BD$5)","v":0},9.0147596715374529,null,9.0147596715374547,1.464759671537454,1.1000000000000001,0,4,2.4500000000000002]
[28,{"$f":"valueE(B29,'Utility Functions'!$B$3,'Utility Functions'!$B$4,'Utility Functions'!$B$5,'Utility Functions'!$B$6)","v":0.4511890475224023},{"$f":"valueE(C29,'Utility Functions'!$D$3,'Utility Functions'!$D$4,'Utility Functions'!$D$5,'Utility Functions'!$D$6)","v":0.46475967153745396},{"$f":"valuePL(D29,'Utility Functions'!$E$3:$E$5,'Utility Functions'!$F$3:$F$5)","v":1},{"$f":"valuePL(E29,'Utility Functions'!$G$3:$G$5,'Utility Functions'!$H$3:$H$5)","v":0},{"$f":"valuePL(F29,'Utility Functions'!$I$3:$I$4,'Utility Functions'!$J$3:$J$5)","v":1},{"$f":"valueE(G29,'Utility Functions'!$L$3,'Utility Functions'!$L$4,'Utility Functions'!$L$5,'Utility Functions'!$L$6)","v":0},{"$f":"valueE(H29,'Utility Functions'!$N$3,'Utility Functions'!$N$4,'Utility Functions'!$N$5,'Utility Functions'!$N$6)","v":0},{"$f":"valuePL(I29,'Utility Functions'!$O$3:$O$6,'Utility Functions'!$P$3:$P$6)","v":0},{"$f":"valuePL(J29,'Utility Functions'!$Q$3:$Q$6,'Utility Functions'!$R$3:$R$6)","v":0},{"$f":"valuePL(K29,'Utility Functions'!$S$3:$S$7,'Utility Functions'!$T$3:$T$7)","v":0},{"$f":"valueE(L29,'Utility Functions'!$V$3,'Utility Functions'!$V$4,'Utility Functions'!$V$5,'Utility Functions'!$V$6)","v":0.33333333333333331},{"$f":"valuePL(M29,'Utility Functions'!$W$3:$W$6,'Utility Functions'!$X$3:$X$6)","v":0.1},{"$f":"valueE(N29,'Utility Functions'!$Z$3,'Utility Functions'!$Z$4,'Utility Functions'!$Z$5,'Utility Functions'!$Z$6)","v":0},{"$f":"valuePL(O29,'Utility Functions'!$AA$3:$AA$5,'Utility Functions'!$AB$3:$AB$5)","v":0},{"$f":"valuePL(P29,'Utility Functions'!$AC$3:$AC$7,'Utility Functions'!$AD$3:$AD$7)","v":1},{"$f":"valuePL(Q29,'Utility Functions'!$AE$3:$AE$6,'Utility Functions'!$AF$3:$AF$6)","v":0},{"$f":"valuePL(R29,'Utility Functions'!$AG$3:$AG$6,'Utility Functions'!$AH$3:$AH$6)","v":1},{"$f":"valuePL(S29,'Utility Functions'!$AI$3:$AI$6,'Utility Functions'!$AJ$3:$AJ$6)","v":1},{"$f":"valuePL(T29,'Utility Functions'!$AK$3:$AK$8,'Utility Functions'!$AL$3:$AL$8)","v":0.8},{"$f":"valuePL(U29,'Utility Functions'!$AM$3:$AM$5,'Utility Functions'!$AN$3:$AN$5)","v":0},{"$f":"valuePL(V29,'Utility Functions'!$AO$3:$AO$5,'Utility Functions'!$AP$3:$AP$5)","v":1},{"$f":"valuePL(W29,'Utility Functions'!$AQ$3:$AQ$6,'Utility Functions'!$AR$3:$AR$6)","v":1},{"$f":"valuePL(X29,'Utility Functions'!$AS$3:$AS$6,'Utility Functions'!$AT$3:$AT$6)","v":1},{"$f":"valuePL(Y29,'Utility Functions'!$AU$3:$AU$6,'Utility Functions'!$AV$3:$AV$6)","v":0.2},{"$f":"valuePL(Z29,'Utility Functions'!$AW$3:$AW$5,'Utility Functions'!$AX$3:$AX$5)","v":0},{"$f":"valuePL(AA29,'Utility Functions'!$AY$3:$AY$6,'Utility Functions'!$AZ$3:$AZ$6)","v":0.89999999999999991},{"$f":"valuePL(AB29,'Utility Functions'!$BA$3:$BA$5,'Utility Functions'!$BB$3:$BB$5)","v":1},{"$f":"valuePL(AC29,'Utility Functions'!$BC$3:$BC$5,'Utility Functions'!$BD$3:$BD$5)","v":0.25},12.499282052393189,null,12.499282052393189,2.9159487190598563,0.43333333333333335,0,3.8,5.35]
[29,{"$f":"valueE(B30,'Utility Functions'!$B$3,'Utility Functions'!$B$4,'Utility Functions'!$B$5,'Utility Functions'!$B$6)","v":0.83470237647280454},{"$f":"valueE(C30,'Utility Functions'!$D$3,'Utility Functions'!$D$4,'Utility Functions'!$D$5,'Utility Functions'!$D$6)","v":0.71352759724260828},{"$f":"valuePL(D30,'Utility Functions'!$E$3:$E$5,'Utility Functions'!$F$3:$F$5)","v":1},{"$f":"valuePL(E30,'Utility Functions'!$G$3:$G$5,'Utility Functions'!$H$3:$H$5)","v":0.5},{"$f":"valuePL(F30,'Utility Functions'!$I$3:$I$4,'Utility Functions'!$J$3:$J$5)","v":0},{"$f":"valueE(G30,'Utility Functions'!$L$3,'Utility Functions'!$L$4,'Utility Functions'!$L$5,'Utility Functions'!$L$6)","v":0},{"$f":"valueE(H30,'Utility Functions'!$N$3,'Utility Functions'!$N$4,'Utility Functions'!$N$5,'Utility Functions'!$N$6)","v":0},{"$f":"valuePL(I30,'Utility Functions'!$O$3:$O$6,'Utility Functions'!$P$3:$P$6)","v":0.06},{"$f":"valuePL(J30,'Utility Functions'!$Q$3:$Q$6,'Utility Functions'!$R$3:$R$6)","v":0.67272727272727273},{"$f":"valuePL(K30,'Utility Functions'!$S$3:$S$7,'Utility Functions'!$T$3:$T$7)","v":0},{"$f":"valueE(L30,'Utility Functions'!$V$3,'Utility Functions'!$V$4,'Utility Functions'!$V$5,'Utility Functions'!$V$6)","v":1},{"$f":"valuePL(M30,'Utility Functions'!$W$3:$W$6,'Utility Functions'!$X$3:$X$6)","v":0.67272727272727273},{"$f":"valueE(N30,'Utility Functions'!$Z$3,'Utility Functions'!$Z$4,'Utility Functions'!$Z$5,'Utility Functions'!$Z$6)","v":0},{"$f":"valuePL(O30,'Utility Functions'!$AA$3:$AA$5,'Utility Functions'!$AB$3:$AB$5)","v":0},{"$f":"valuePL(P30,'Utility Functions'!$AC$3:$AC$7,'Utility Functions'!$AD$3:$AD$7)","v":0.25},{"$f":"valuePL(Q30,'Utility Functions'!$AE$3:$AE$6,'Utility Functions'!$AF$3:$AF$6)","v":0},{"$f":"valuePL(R30,'Utility Functions'!$AG$3:$AG$6,'Utility Functions'!$AH$3:$AH$6)","v":1},{"$f":"valuePL(S30,'Utility Functions'!$AI$3:$AI$6,'Utility Functions'!$AJ$3:$AJ$6)","v":1},{"$f":"valuePL(T30,'Utility Functions'!$AK$3:$AK$8,'Utility Functions'!$AL$3:$AL$8)","v":0.8},{"$f":"valuePL(U30,'Utility Functions'!$AM$3:$AM$5,'Utility Functions'!$AN$3:$AN$5)","v":0},{"$f":"valuePL(V30,'Utility Functions'!$AO$3:$AO$5,'Utility Functions'!$AP$3:$AP$5)","v":1},{"$f":"valuePL(W30,'Utility Functions'!$AQ$3:$AQ$6,'Utility Functions'!$AR$3:$AR$6)","v":0.2},{"$f":"valuePL(X30,'Utility Functions'!$AS$3:$AS$6,'Utility Functions'!$AT$3:$AT$6)","v":0},{"$f":"valuePL(Y30,'Utility Functions'!$AU$3:$AU$6,'Utility Functions'!$AV$3:$AV$6)","v":0.8},{"$f":"valuePL(Z30,'Utility Functions'!$AW$3:$AW$5,'Utility Functions'!$AX$3:$AX$5)","v":0.5},{"$f":"valuePL(AA30,'Utility Functions'!$AY$3:$AY$6,'Utility Functions'!$AZ$3:$AZ$6)","v":0.2},{"$f":"valuePL(AB30,'Utility Functions'!$BA$3:$BA$5,'Utility Functions'!$BB$3:$BB$5)","v":0.25},{"$f":"valuePL(AC30,'Utility Functions'!$BC$3:$BC$5,'Utility Functions'!$BD$3:$BD$5)","v":1},12.453684519169958,null,12.453684519169958,3.0482299737154128,2.4054545454545453,0,3.05,3.95]
[30,{"$f":"valueE(B31,'Utility Functions'!$B$3,'Utility Functions'!$B$4,'Utility Functions'!$B$5,'Utility Functions'!$B$6)","v":0.99864114504770318},{"$f":"valueE(C31,'Utility Functions'!$D$3,'Utility Functions'!$D$4,'Utility Functions'!$D$5,'Utility Functions'!$D$6)","v":0.84744836833951609},{"$f":"valuePL(D31,'Utility Functions'!$E$3:$E$5,'Utility Functions'!$F$3:$F$5)","v":1},{"$f":"valuePL(E31,'Utility Functions'!$G$3:$G$5,'Utility Functions'!$H$3:$H$5)","v":0},{"$f":"valuePL(F31,'Utility Functions'!$I$3:$I$4,'Utility Functions'!$J$3:$J$5)","v":0},{"$f":"valueE(G31,'Utility Functions'!$L$3,'Utility Functions'!$L$4,'Utility Functions'!$L$5,'Utility Functions'!$L$6)","v":0},{"$f":"valueE(H31,'Utility Functions'!$N$3,'Utility Functions'!$N$4,'Utility Functions'!$N$5,'Utility Functions'!$N$6)","v":0},{"$f":"valuePL(I31,'Utility Functions'!$O$3:$O$6,'Utility Functions'!$P$3:$P$6)","v":0},{"$f":"valuePL(J31,'Utility Functions'!$Q$3:$Q$6,'Utility Functions'!$R$3:$R$6)","v":0},{"$f":"valuePL(K31,'Utility Functions'!$S$3:$S$7,'Utility Functions'!$T$3:$T$7)","v":0},{"$f":"valueE(L31,'Utility Functions'!$V$3,'Utility Functions'!$V$4,'Utility Functions'!$V$5,'Utility Functions'!$V$6)","v":0.33333333333333331},{"$f":"valuePL(M31,'Utility Functions'!$W$3:$W$6,'Utility Functions'!$X$3:$X$6)","v":0.04},{"$f":"valueE(N31,'Utility Functions'!$Z$3,'Utility Functions'!$Z$4,'Utility Functions'!$Z$5,'Utility Functions'!$Z$6)","v":0},{"$f":"valuePL(O31,'Utility Functions'!$AA$3:$AA$5,'Utility Functions'!$AB$3:$AB$5)","v":0},{"$f":"valuePL(P31,'Utility Functions'!$AC$3:$AC$7,'Utility Functions'!$AD$3:$AD$7)","v":0},{"$f":"valuePL(Q31,'Utility Functions'!$AE$3:$AE$6,'Utility Functions'!$AF$3:$AF$6)","v":0},{"$f":"valuePL(R31,'Utility Functions'!$AG$3:$AG$6,'Utility Functions'!$AH$3:$AH$6)","v":0.2},{"$f":"valuePL(S31,'Utility Functions'!$AI$3:$AI$6,'Utility Functions'!$AJ$3:$AJ$6)","v":0.33},{"$f":"valuePL(T31,'Utility Functions'!$AK$3:$AK$8,'Utility Functions'!$AL$3:$AL$8)","v":0},{"$f":"valuePL(U31,'Utility Functions'!$AM$3:$AM$5,'Utility Functions'!$AN$3:$AN$5)","v":0},{"$f":"valuePL(V31,'Utility Functions'!$AO$3:$AO$5,'Utility Functions'!$AP$3:$AP$5)","v":0},{"$f":"valuePL(W31,'Utility Functions'!$AQ$3:$AQ$6,'Utility Functions'!$AR$3:$AR$6)","v":1},{"$f":"valuePL(X31,'Utility Functions'!$AS$3:$AS$6,'Utility Functions'!$AT$3:$AT$6)","v":0.2},{"$f":"valuePL(Y31,'Utility Functions'!$AU$3:$AU$6,'Utility Functions'!$AV$3:$AV$6)","v":0.8},{"$f":"valuePL(Z31,'Utility Functions'!$AW$3:$AW$5,'Utility Functions'!$AX$3:$AX$5)","v":0},{"$f":"valuePL(AA31,'Utility Functions'!$AY$3:$AY$6,'Utility Functions'!$AZ$3:$AZ$6)","v":0.89999999999999991},{"$f":"valuePL(AB31,'Utility Functions'!$BA$3:$BA$5,'Utility Functions'!$BB$3:$BB$5)","v":1},{"$f":"valuePL(AC31,'Utility Functions'!$BC$3:$BC$5,'Utility Functions'!$BD$3:$BD$5)","v":0},7.6494228467205527,null,7.6494228467205527,2.846089513387219,0.37333333333333329,0,0.53,3.9]
[31,{"$f":"valueE(B32,'Utility Functions'!$B$3,'Utility Functions'!$B$4,'Utility Functions'!$B$5,'Utility Functions'!$B$6)","v":0.55067187023002029},{"$f":"valueE(C32,'Utility Functions'!$D$3,'Utility Functions'!$D$4,'Utility Functions'!$D$5,'Utility Functions'!$D$6)","v":0.84744836833951609},{"$f":"valuePL(D32,'Utility Functions'!$E$3:$E$5,'Utility Functions'!$F$3:$F$5)","v":0.5},{"$f":"valuePL(E32,'Utility Functions'!$G$3:$G$5,'Utility Functions'!$H$3:$H$5)","v":0},{"$f":"valuePL(F32,'Utility Functions'!$I$3:$I$4,'Utility Functions'!$J$3:$J$5)","v":0},{"$f":"valueE(G32,'Utility Functions'!$L$3,'Utility Functions'!$L$4,'Utility Functions'!$L$5,'Utility Functions'!$L$6)","v":0},{"$f":"valueE(H32,'Utility Functions'!$N$3,'Utility Functions'!$N$4,'Utility Functions'!$N$5,'Utility Functions'!$N$6)","v":0},{"$f":"valuePL(I32,'Utility Functions'!$O$3:$O$6,'Utility Functions'!$P$3:$P$6)","v":0.75454545454545452},{"$f":"valuePL(J32,'Utility Functions'!$Q$3:$Q$6,'Utility Functions'!$R$3:$R$6)","v":0.08},{"$f":"valuePL(K32,'Utility Functions'!$S$3:$S$7,'Utility Functions'!$T$3:$T$7)","v":0},{"$f":"valueE(L32,'Utility Functions'!$V$3,'Utility Functions'!$V$4,'Utility Functions'!$V$5,'Utility Functions'!$V$6)","v":0.33333333333333331},{"$f":"valuePL(M32,'Utility Functions'!$W$3:$W$6,'Utility Functions'!$X$3:$X$6)","v":0.08},{"$f":"valueE(N32,'Utility Functions'!$Z$3,'Utility Functions'!$Z$4,'Utility Functions'!$Z$5,'Utility Functions'!$Z$6)","v":0},{"$f":"valuePL(O32,'Utility Functions'!$AA$3:$AA$5,'Utility Functions'!$AB$3:$AB$5)","v":0},{"$f":"valuePL(P32,'Utility Functions'!$AC$3:$AC$7,'Utility Functions'!$AD$3:$AD$7)","v":0.5},{"$f":"valuePL(Q32,'Utility Functions'!$AE$3:$AE$6,'Utility Functions'!$AF$3:$AF$6)","v":0},{"$f":"valuePL(R32,'Utility Functions'!$AG$3:$AG$6,'Utility Functions'!$AH$3:$AH$6)","v":1},{"$f":"valuePL(S32,'Utility Functions'!$AI$3:$AI$6,'Utility Functions'!$AJ$3:$AJ$6)","v":0.66},{"$f":"valuePL(T32,'Utility Functions'!$AK$3:$AK$8,'Utility Functions'!$AL$3:$AL$8)","v":0.6},{"$f":"valuePL(U32,'Utility Functions'!$AM$3:$AM$5,'Utility Functions'!$AN$3:$AN$5)","v":0},{"$f":"valuePL(V32,'Utility Functions'!$AO$3:$AO$5,'Utility Functions'!$AP$3:$AP$5)","v":0.5},{"$f":"valuePL(W32,'Utility Functions'!$AQ$3:$AQ$6,'Utility Functions'!$AR$3:$AR$6)","v":0},{"$f":"valuePL(X32,'Utility Functions'!$AS$3:$AS$6,'Utility Functions'!$AT$3:$AT$6)","v":0.2},{"$f":"valuePL(Y32,'Utility Functions'!$AU$3:$AU$6,'Utility Functions'!$AV$3:$AV$6)","v":0.2},{"$f":"valuePL(Z32,'Utility Functions'!$AW$3:$AW$5,'Utility Functions'!$AX$3:$AX$5)","v":1},{"$f":"valuePL(AA32,'Utility Functions'!$AY$3:$AY$6,'Utility Functions'!$AZ$3:$AZ$6)","v":0.89999999999999991},{"$f":"valuePL(AB32,'Utility Functions'!$BA$3:$BA$5,'Utility Functions'!$BB$3:$BB$5)","v":0.25},{"$f":"valuePL(AC32,'Utility Functions'!$BC$3:$BC$5,'Utility Functions'!$BD$3:$BD$5)","v":0.25},9.2059990264483247,null,9.2059990264483247,1.8981202385695364,1.2478787878787878,0,2.7600000000000002,3.3]
[32,{"$f":"valueE(B33,'Utility Functions'!$B$3,'Utility Functions'!$B$4,'Utility Functions'!$B$5,'Utility Functions'!$B$6)","v":0.63212151658375171},{"$f":"valueE(C33,'Utility Functions'!$D$3,'Utility Functions'!$D$4,'Utility Functions'!$D$5,'Utility Functions'!$D$6)","v":0.26839655623815994},{"$f":"valuePL(D33,'Utility Functions'!$E$3:$E$5,'Utility Functions'!$F$3:$F$5)","v":1},{"$f":"valuePL(E33,'Utility Functions'!$G$3:$G$5,'Utility Functions'!$H$3:$H$5)","v":1},{"$f":"valuePL(F33,'Utility Functions'!$I$3:$I$4,'Utility Functions'!$J$3:$J$5)","v":1},{"$f":"valueE(G33,'Utility Functions'!$L$3,'Utility Functions'!$L$4,'Utility Functions'!$L$5,'Utility Functions'!$L$6)","v":3.2258064516129031E-2},{"$f":"valueE(H33,'Utility Functions'!$N$3,'Utility Functions'!$N$4,'Utility Functions'!$N$5,'Utility Functions'!$N$6)","v":9.6774193548387094E-2},{"$f":"valuePL(I33,'Utility Functions'!$O$3:$O$6,'Utility Functions'!$P$3:$P$6)","v":0.34545454545454546},{"$f":"valuePL(J33,'Utility Functions'!$Q$3:$Q$6,'Utility Functions'!$R$3:$R$6)","v":1},{"$f":"valuePL(K33,'Utility Functions'!$S$3:$S$7,'Utility Functions'!$T$3:$T$7)","v":0.34545454545454546},{"$f":"valueE(L33,'Utility Functions'!$V$3,'Utility Functions'!$V$4,'Utility Functions'!$V$5,'Utility Functions'!$V$6)","v":1},{"$f":"valuePL(M33,'Utility Functions'!$W$3:$W$6,'Utility Functions'!$X$3:$X$6)","v":1},{"$f":"valueE(N33,'Utility Functions'!$Z$3,'Utility Functions'!$Z$4,'Utility Functions'!$Z$5,'Utility Functions'!$Z$6)","v":0},{"$f":"valuePL(O33,'Utility Functions'!$AA$3:$AA$5,'Utility Functions'!$AB$3:$AB$5)","v":0},{"$f":"valuePL(P33,'Utility Functions'!$AC$3:$AC$7,'Utility Functions'!$AD$3:$AD$7)","v":0.5},{"$f":"valuePL(Q33,'Utility Functions'!$AE$3:$AE$6,'Utility Functions'!$AF$3:$AF$6)","v":1},{"$f":"valuePL(R33,'Utility Functions'!$AG$3:$AG$6,'Utility Functions'!$AH$3:$AH$6)","v":1},{"$f":"valuePL(S33,'Utility Functions'!$AI$3:$AI$6,'Utility Functions'!$AJ$3:$AJ$6)","v":0},{"$f":"valuePL(T33,'Utility Functions'!$AK$3:$AK$8,'Utility Functions'!$AL$3:$AL$8)","v":0.8},{"$f":"valuePL(U33,'Utility Functions'!$AM$3:$AM$5,'Utility Functions'!$AN$3:$AN$5)","v":0},{"$f":"valuePL(V33,'Utility Functions'!$AO$3:$AO$5,'Utility Functions'!$AP$3:$AP$5)","v":0},{"$f":"valuePL(W33,'Utility Functions'!$AQ$3:$AQ$6,'Utility Functions'!$AR$3:$AR$6)","v":0.75},{"$f":"valuePL(X33,'Utility Functions'!$AS$3:$AS$6,'Utility Functions'!$AT$3:$AT$6)","v":0.2},{"$f":"valuePL(Y33,'Utility Functions'!$AU$3:$AU$6,'Utility Functions'!$AV$3:$AV$6)","v":0.8},{"$f":"valuePL(Z33,'Utility Functions'!$AW$3:$AW$5,'Utility Functions'!$AX$3:$AX$5)","v":0.5},{"$f":"valuePL(AA33,'Utility Functions'!$AY$3:$AY$6,'Utility Functions'!$AZ$3:$AZ$6)","v":0},{"$f":"valuePL(AB33,'Utility Functions'!$BA$3:$BA$5,'Utility Functions'!$BB$3:$BB$5)","v":1},{"$f":"valuePL(AC33,'Utility Functions'!$BC$3:$BC$5,'Utility Functions'!$BD$3:$BD$5)","v":0.25},14.52045942179552,null,14.520459421795518,3.9005180728219115,3.8199413489736074,0,3.3,3.5]
[33,{"$f":"valueE(B34,'Utility Functions'!$B$3,'Utility Functions'!$B$4,'Utility Functions'!$B$5,'Utility Functions'!$B$6)","v":0.93919136038504192},{"$f":"valueE(C34,'Utility Functions'!$D$3,'Utility Functions'!$D$4,'Utility Functions'!$D$5,'Utility Functions'!$D$6)","v":0.84744836833951609},{"$f":"valuePL(D34,'Utility Functions'!$E$3:$E$5,'Utility Functions'!$F$3:$F$5)","v":1},{"$f":"valuePL(E34,'Utility Functions'!$G$3:$G$5,'Utility Functions'!$H$3:$H$5)","v":0.5},{"$f":"valuePL(F34,'Utility Functions'!$I$3:$I$4,'Utility Functions'!$J$3:$J$5)","v":0},{"$f":"valueE(G34,'Utility Functions'!$L$3,'Utility Functions'!$L$4,'Utility Functions'!$L$5,'Utility Functions'!$L$6)","v":0},{"$f":"valueE(H34,'Utility Functions'!$N$3,'Utility Functions'!$N$4,'Utility Functions'!$N$5,'Utility Functions'!$N$6)","v":0},{"$f":"valuePL(I34,'Utility Functions'!$O$3:$O$6,'Utility Functions'!$P$3:$P$6)","v":0},{"$f":"valuePL(J34,'Utility Functions'!$Q$3:$Q$6,'Utility Functions'!$R$3:$R$6)","v":0},{"$f":"valuePL(K34,'Utility Functions'!$S$3:$S$7,'Utility Functions'!$T$3:$T$7)","v":0},{"$f":"valueE(L34,'Utility Functions'!$V$3,'Utility Functions'!$V$4,'Utility Functions'!$V$5,'Utility Functions'!$V$6)","v":0.5},{"$f":"valuePL(M34,'Utility Functions'!$W$3:$W$6,'Utility Functions'!$X$3:$X$6)","v":0},{"$f":"valueE(N34,'Utility Functions'!$Z$3,'Utility Functions'!$Z$4,'Utility Functions'!$Z$5,'Utility Functions'!$Z$6)","v":0},{"$f":"valuePL(O34,'Utility Functions'!$AA$3:$AA$5,'Utility Functions'!$AB$3:$AB$5)","v":0},{"$f":"valuePL(P34,'Utility Functions'!$AC$3:$AC$7,'Utility Functions'!$AD$3:$AD$7)","v":0.5},{"$f":"valuePL(Q34,'Utility Functions'!$AE$3:$AE$6,'Utility Functions'!$AF$3:$AF$6)","v":0},{"$f":"valuePL(R34,'Utility Functions'!$AG$3:$AG$6,'Utility Functions'!$AH$3:$AH$6)","v":1},{"$f":"valuePL(S34,'Utility Functions'!$AI$3:$AI$6,'Utility Functions'!$AJ$3:$AJ$6)","v":0.66},{"$f":"valuePL(T34,'Utility Functions'!$AK$3:$AK$8,'Utility Functions'!$AL$3:$AL$8)","v":0},{"$f":"valuePL(U34,'Utility Functions'!$AM$3:$AM$5,'Utility Functions'!$AN$3:$AN$5)","v":0},{"$f":"valuePL(V34,'Utility Functions'!$AO$3:$AO$5,'Utility Functions'!$AP$3:$AP$5)","v":0.5},{"$f":"valuePL(W34,'Utility Functions'!$AQ$3:$AQ$6,'Utility Functions'!$AR$3:$AR$6)","v":1},{"$f":"valuePL(X34,'Utility Functions'!$AS$3:$AS$6,'Utility Functions'!$AT$3:$AT$6)","v":0},{"$f":"valuePL(Y34,'Utility Functions'!$AU$3:$AU$6,'Utility Functions'!$AV$3:$AV$6)","v":0.8},{"$f":"valuePL(Z34,'Utility Functions'!$AW$3:$AW$5,'Utility Functions'!$AX$3:$AX$5)","v":1},{"$f":"valuePL(AA34,'Utility Functions'!$AY$3:$AY$6,'Utility Functions'!$AZ$3:$AZ$6)","v":1},{"$f":"valuePL(AB34,'Utility Functions'!$BA$3:$BA$5,'Utility Functions'!$BB$3:$BB$5)","v":0},{"$f":"valuePL(AC34,'Utility Functions'!$BC$3:$BC$5,'Utility Functions'!$BD$3:$BD$5)","v":0},10.246639728724558,null,10.246639728724558,3.2866397287245581,0.5,0,2.16,4.3]
[34,{"$f":"valueE(B35,'Utility Functions'!$B$3,'Utility Functions'!$B$4,'Utility Functions'!$B$5,'Utility Functions'!$B$6)","v":0},{"$f":"valueE(C35,'Utility Functions'!$D$3,'Utility Functions'!$D$4,'Utility Functions'!$D$5,'Utility Functions'!$D$6)","v":0},{"$f":"valuePL(D35,'Utility Functions'!$E$3:$E$5,'Utility Functions'!$F$3:$F$5)","v":0},{"$f":"valuePL(E35,'Utility Functions'!$G$3:$G$5,'Utility Functions'!$H$3:$H$5)","v":0},{"$f":"valuePL(F35,'Utility Functions'!$I$3:$I$4,'Utility Functions'!$J$3:$J$5)","v":0},{"$f":"valueE(G35,'Utility Functions'!$L$3,'Utility Functions'!$L$4,'Utility Functions'!$L$5,'Utility Functions'!$L$6)","v":0},{"$f":"valueE(H35,'Utility Functions'!$N$3,'Utility Functions'!$N$4,'Utility Functions'!$N$5,'Utility Functions'!$N$6)","v":1.1385199240986717E-2},{"$f":"valuePL(I35,'Utility Functions'!$O$3:$O$6,'Utility Functions'!$P$3:$P$6)","v":1},{"$f":"valuePL(J35,'Utility Functions'!$Q$3:$Q$6,'Utility Functions'!$R$3:$R$6)","v":0.91818181818181821},{"$f":"valuePL(K35,'Utility Functions'!$S$3:$S$7,'Utility Functions'!$T$3:$T$7)","v":1},{"$f":"valueE(L35,'Utility Functions'!$V$3,'Utility Functions'!$V$4,'Utility Functions'!$V$5,'Utility Functions'!$V$6)","v":1},{"$f":"valuePL(M35,'Utility Functions'!$W$3:$W$6,'Utility Functions'!$X$3:$X$6)","v":0.91818181818181821},{"$f":"valueE(N35,'Utility Functions'!$Z$3,'Utility Functions'!$Z$4,'Utility Functions'!$Z$5,'Utility Functions'!$Z$6)","v":0},{"$f":"valuePL(O35,'Utility Functions'!$AA$3:$AA$5,'Utility Functions'!$AB$3:$AB$5)","v":0},{"$f":"valuePL(P35,'Utility Functions'!$AC$3:$AC$7,'Utility Functions'!$AD$3:$AD$7)","v":0.5},{"$f":"valuePL(Q35,'Utility Functions'!$AE$3:$AE$6,'Utility Functions'!$AF$3:$AF$6)","v":0},{"$f":"valuePL(R35,'Utility Functions'!$AG$3:$AG$6,'Utility Functions'!$AH$3:$AH$6)","v":1},{"$f":"valuePL(S35,'Utility Functions'!$AI$3:$AI$6,'Utility Functions'!$AJ$3:$AJ$6)","v":1},{"$f":"valuePL(T35,'Utility Functions'!$AK$3:$AK$8,'Utility Functions'!$AL$3:$AL$8)","v":0.8},{"$f":"valuePL(U35,'Utility Functions'!$AM$3:$AM$5,'Utility Functions'!$AN$3:$AN$5)","v":0},{"$f":"valuePL(V35,'Utility Functions'!$AO$3:$AO$5,'Utility Functions'!$AP$3:$AP$5)","v":1},{"$f":"valuePL(W35,'Utility Functions'!$AQ$3:$AQ$6,'Utility Functions'!$AR$3:$AR$6)","v":1},{"$f":"valuePL(X35,'Utility Functions'!$AS$3:$AS$6,'Utility Functions'!$AT$3:$AT$6)","v":1},{"$f":"valuePL(Y35,'Utility Functions'!$AU$3:$AU$6,'Utility Functions'!$AV$3:$AV$6)","v":0},{"$f":"valuePL(Z35,'Utility Functions'!$AW$3:$AW$5,'Utility Functions'!$AX$3:$AX$5)","v":1},{"$f":"valuePL(AA35,'Utility Functions'!$AY$3:$AY$6,'Utility Functions'!$AZ$3:$AZ$6)","v":0.89999999999999991},{"$f":"valuePL(AB35,'Utility Functions'!$BA$3:$BA$5,'Utility Functions'!$BB$3:$BB$5)","v":0.25},{"$f":"valuePL(AC35,'Utility Functions'!$BC$3:$BC$5,'Utility Functions'!$BD$3:$BD$5)","v":0},13.297748835604624,null,13.297748835604624,0,4.847748835604623,0,3.3,5.15]
[35,{"$f":"valueE(B36,'Utility Functions'!$B$3,'Utility Functions'!$B$4,'Utility Functions'!$B$5,'Utility Functions'!$B$6)","v":0.79810469124896843},{"$f":"valueE(C36,'Utility Functions'!$D$3,'Utility Functions'!$D$4,'Utility Functions'!$D$5,'Utility Functions'!$D$6)","v":0.60939983135101949},{"$f":"valuePL(D36,'Utility Functions'!$E$3:$E$5,'Utility Functions'!$F$3:$F$5)","v":0.5},{"$f":"valuePL(E36,'Utility Functions'!$G$3:$G$5,'Utility Functions'!$H$3:$H$5)","v":0.5},{"$f":"valuePL(F36,'Utility Functions'!$I$3:$I$4,'Utility Functions'!$J$3:$J$5)","v":1},{"$f":"valueE(G36,'Utility Functions'!$L$3,'Utility Functions'!$L$4,'Utility Functions'!$L$5,'Utility Functions'!$L$6)","v":0},{"$f":"valueE(H36,'Utility Functions'!$N$3,'Utility Functions'!$N$4,'Utility Functions'!$N$5,'Utility Functions'!$N$6)","v":0},{"$f":"valuePL(I36,'Utility Functions'!$O$3:$O$6,'Utility Functions'!$P$3:$P$6)","v":0},{"$f":"valuePL(J36,'Utility Functions'!$Q$3:$Q$6,'Utility Functions'!$R$3:$R$6)","v":0},{"$f":"valuePL(K36,'Utility Functions'!$S$3:$S$7,'Utility Functions'!$T$3:$T$7)","v":1},{"$f":"valueE(L36,'Utility Functions'!$V$3,'Utility Functions'!$V$4,'Utility Functions'!$V$5,'Utility Functions'!$V$6)","v":0.66666666666666663},{"$f":"valuePL(M36,'Utility Functions'!$W$3:$W$6,'Utility Functions'!$X$3:$X$6)","v":0.1},{"$f":"valueE(N36,'Utility Functions'!$Z$3,'Utility Functions'!$Z$4,'Utility Functions'!$Z$5,'Utility Functions'!$Z$6)","v":1},{"$f":"valuePL(O36,'Utility Functions'!$AA$3:$AA$5,'Utility Functions'!$AB$3:$AB$5)","v":0},{"$f":"valuePL(P36,'Utility Functions'!$AC$3:$AC$7,'Utility Functions'!$AD$3:$AD$7)","v":0},{"$f":"valuePL(Q36,'Utility Functions'!$AE$3:$AE$6,'Utility Functions'!$AF$3:$AF$6)","v":0},{"$f":"valuePL(R36,'Utility Functions'!$AG$3:$AG$6,'Utility Functions'!$AH$3:$AH$6)","v":1},{"$f":"valuePL(S36,'Utility Functions'!$AI$3:$AI$6,'Utility Functions'!$AJ$3:$AJ$6)","v":1},{"$f":"valuePL(T36,'Utility Functions'!$AK$3:$AK$8,'Utility Functions'!$AL$3:$AL$8)","v":0.6},{"$f":"valuePL(U36,'Utility Functions'!$AM$3:$AM$5,'Utility Functions'!$AN$3:$AN$5)","v":0},{"$f":"valuePL(V36,'Utility Functions'!$AO$3:$AO$5,'Utility Functions'!$AP$3:$AP$5)","v":1},{"$f":"valuePL(W36,'Utility Functions'!$AQ$3:$AQ$6,'Utility Functions'!$AR$3:$AR$6)","v":0.75},{"$f":"valuePL(X36,'Utility Functions'!$AS$3:$AS$6,'Utility Functions'!$AT$3:$AT$6)","v":0},{"$f":"valuePL(Y36,'Utility Functions'!$AU$3:$AU$6,'Utility Functions'!$AV$3:$AV$6)","v":0.2},{"$f":"valuePL(Z36,'Utility Functions'!$AW$3:$AW$5,'Utility Functions'!$AX$3:$AX$5)","v":1},{"$f":"valuePL(AA36,'Utility Functions'!$AY$3:$AY$6,'Utility Functions'!$AZ$3:$AZ$6)","v":0},{"$f":"valuePL(AB36,'Utility Functions'!$BA$3:$BA$5,'Utility Functions'!$BB$3:$BB$5)","v":0.25},{"$f":"valuePL(AC36,'Utility Functions'!$BC$3:$BC$5,'Utility Functions'!$BD$3:$BD$5)","v":0.25},12.224171189266654,null,12.224171189266656,3.407504522599988,1.7666666666666666,1,2.6,3.45]
["Unweighted",{"$f":"SUMPRODUCT(B46:B80,$B$85:$B$119)","v":3.0847426500326565},{"$f":"SUMPRODUCT(C46:C80,$B$85:$B$119)","v":2.4146054342030006},{"$f":"SUMPRODUCT(D46:D80,$B$85:$B$119)","v":3.5},0.5,0,0.94623655913978499,0.29222011385199242,0.8545454545454545,0.79272727272727272,0,1.3333333333333333,0.75272727272727269,1.75,1.25,1.5,1.1000000000000001,4,4.32,2.4,0,2.5,1.1499999999999999,3.2,2.8000000000000003,2.5,1.5,2.5,3.5,null,null,"Unweighted",{"$f":"SUMPRODUCT(AG46:AG80,$B$85:$B$119)","v":9.4993480842356561},{"$f":"SUMPRODUCT(AH46:AH80,$B$85:$B$119)","v":4.9717900063251106},3,13.319999999999999,19.650000000000002]
["Weighted",{"$f":"B$81*Sens_Int!I$5","v":6.4360299896752446E-2},{"$f":"C$81*Sens_Int!J$5","v":4.7624052501162813E-2},{"$f":"D$81*Sens_Int!K$5","v":6.9910724308818395E-2},{"$f":"E$81*Sens_Int!L$5","v":9.7301152550498659E-3},{"$f":"F$81*Sens_Int!M$5","v":0},{"$f":"G$81*Sens_Int!N$5","v":9.2415925412087548E-3},{"$f":"H$81*Sens_Int!O$5","v":2.8540212259615273E-3},{"$f":"I$81*Sens_Int!P$5","v":1.4167366765835172E-2},{"$f":"J$81*Sens_Int!Q$5","v":1.2806702156765446E-2},{"$f":"K$81*Sens_Int!R$5","v":0},{"$f":"L$81*Sens_Int!S$5","v":1.9451673699525916E-2},{"$f":"M$81*Sens_Int!T$5","v":8.2917563462620043E-3},{"$f":"N$81*Sens_Int!U$5","v":3.4539473684210523E-2},{"$f":"O$81*Sens_Int!V$5","v":7.4013157894736836E-2},{"$f":"P$81*Sens_Int!W$5","v":0.12355449970284882},{"$f":"Q$81*Sens_Int!X$5","v":9.9876876693709871E-2},{"$f":"R$81*Sens_Int!Y$5","v":0.41572327558354366},{"$f":"S$81*Sens_Int!Z$5","v":0.3932409863360245},{"$f":"T$81*Sens_Int!AA$5","v":0.1590166039207182},{"$f":"U$81*Sens_Int!AB$5","v":0},{"$f":"V$81*Sens_Int!AC$5","v":8.9566394409922062E-2},{"$f":"W$81*Sens_Int!AD$5","v":2.9712651046885509E-2},{"$f":"X$81*Sens_Int!AE$5","v":8.8419824114495851E-2},{"$f":"Y$81*Sens_Int!AF$5","v":9.6142321500880673E-2},{"$f":"Z$81*Sens_Int!AG$5","v":7.4379477003761477E-2},{"$f":"AA$81*Sens_Int!AH$5","v":3.4579651050598514E-2},{"$f":"AB$81*Sens_Int!AI$5","v":6.1120594811221243E-2},{"$f":"AC$81*Sens_Int!AJ$5","v":7.9798939640511879E-2},null,null,"Weighted for SA",{"$f":"AG81*#REF!","v":{"$error":"#REF!"}},{"$f":"AH81*#REF!","v":{"$error":"#REF!"}},{"$f":"AI81*#REF!","v":{"$error":"#REF!"}},{"$f":"AJ81*#REF!","v":{"$error":"#REF!"}},{"$f":"AK81*#REF!","v":{"$error":"#REF!"}}]
[]
[null,"Decision variable","Benefit","Cost"]
[{"$f":"A2","v":1},0,{"$f":"AD46","v":17.117643866192076},{"$f":"AD2","v":700000}]
[2,0,{"$f":"AD47","v":12.641625800575998},{"$f":"AD3","v":5400000}]
[3,0,11.563541444302563,250000]
[4,0,9.2460291931089209,150000]
[5,0,9.5663279251355373,220000]
[6,1,5.9008471271383875,110000]
[7,0,15.54287399641135,1000000]
[8,0,14.227364688589191,5000000]
[9,0,11.893773577166716,25000]
[10,1,9.01,900000]
[11,0,13.174032258064516,1500000]
[12,0,9.4195802436719873,100000]
[13,0,7.5245670174228056,250000]
[14,0,10.338706637075108,500000]
[15,0,15.150477261414375,800000]
[16,0,15.119696969696969,2000000]
[17,0,10.876550515651747,500000]
[18,0,10.178462998102468,300000]
[19,0,9.3165012474871283,750000]
[20,0,15.091255033092194,1500000]
[21,0,9.5500000000000007,900000]
[22,0,9.471742567994939,750000]
[23,0,9.5321507448123199,1000000]
[24,0,9.4968811881212041,150000]
[25,1,13.870607417804099,250000]
[26,0,11.064076562960208,500000]
[27,0,9.0147596715374529,1200000]
[28,0,12.499282052393189,500000]
[29,1,12.453684519169958,2000000]
[30,0,7.6494228467205527,250000]
[31,1,9.2059990264483247,650000]
[32,0,14.52045942179552,200000]
[33,0,10.246639728724558,400000]
[34,0,13.297748835604624,900000]
[35,0,12.224171189266654,900000]
[null,{"$f":"SUM(B85:B119)","v":5},{"$f":"SUMPRODUCT(C85:C119,B85:B119)","v":50.44113809056077},{"$f":"SUMPRODUCT(B85:B119,D85:D119)","v":3910000}]
[]
[null,null,"Cost constraint",15000000]

{"sheet":"Portfolio_A_ep","index":33,"n_rows":122,"n_cols":37,"rows_kept":122,"cut":false,"hidden":false,"merged":[]}
["Project","manage_species","manage_spatial","manage_uncertainty","manage_currentpractices","manage_adaptivemanagement","pop_a","pop_b","pop_spatialscope","pop_temporalscope","hab_quantity","hab_quality","hab_temporal","ecoprocess_spp","ecoprocess_uncertainty","datasharing","broaderimpacts","exisitingpriorities","partners","leverage","alignment","objhyp","response","targettaxa","surveydesign","stats","datamanagement","budget","timeline","cost"]
[1,9,6.25,2,2,0,186,1054,75,5,0,2,0,0,0,4,0,2,3,0,0,2,3,3,3,2,3,2,2,700000]
[2,3,28.2,1,0,0,0,0,0,0,0,2,0,4,1,0,0,3,3,0,0,2,3,3,3,2,3,2,2,5400000]
[3,8,28.2,2,0,0,0,0,0,0,0,2,0,5,1,0,2,0,0,0,1,2,3,3,3,2,1,2,2,250000]
[4,1,6.25,2,0,0,0,0,0,0,0,2,0,4,1,0,1,3,3,4,0,1,3,3,1,0,0,2,1,150000]
[5,4,3.1,2,0,0,0,0,50,2,0,2,0,0,0,0,1,3,3,4,1,0,3,3,2,0,0,2,1,220000]
[6,10,6.2E-2,2,0,0,0,0,10,2,0,2,0,0,0,0,1,0,3,3,0,0,0,3,0,0,0,2,1,110000]
[7,52,18.8,0,2,0,0,0,85,12,85,8,12,8,1,0,0,3,3,0,0,2,0,1,3,2,2,0,2,1000000]
[8,3,18.8,2,1,1,0,0,14,14,14,8,14,0,0,0,3,1,3,0,0,2,3,3,3,2,0,1,1,5000000]
[9,9,15.6,2,1,0,70,140,0,0,0,2,0,0,0,3,0,3,2,1,0,2,3,3,1,2,1,1,2,25000]
[10,0,0,0,0,0,0,0,0,0,0,2,0,6,2,1,2,3,2,2,0,0,2,3,3,1,1,0,2,900000]
[11,0,0,0,0,0,6,102,52,15,52,8,15,3,1,1,0,3,3,2,2,2,1,3,3,1,2,0,1,1500000]
[12,2,15.6,2,1,0,0,0,0,0,0,2,0,0,0,0,1,3,3,3,0,1,1,3,1,2,1,2,0,100000]
[13,0,0,0,0,0,0,12,39,2,39,8,2,7,1,1,0,3,3,0,0,1,0,1,0,2,1,1,1,250000]
[14,6,15.6,1,1,0,0,0,0,0,0,2,0,6,1,1,0,3,3,0,0,1,1,3,3,1,2,1,1,500000]
[15,23,12.5,2,1,1,0,0,23,3,23,8,3,1,2,2,0,2,3,3,2,0,3,1,1,2,3,2,1,800000]
[16,0,0,0,0,0,0,0,100,15,100,7,15,0,0,3,0,3,3,5,0,2,2,2,1,2,3,2,2,2000000]
[17,2,15.6,2,1,1,58,290,0,0,0,8,3,0,0,0,0,3,2,0,0,2,3,1,0,1,0,2,1,500000]
[18,0,0,0,0,0,0,30,0,0,0,2,0,8,1,1,3,3,3,5,1,2,2,1,2,1,2,1,0,300000]
[19,8,3.125,1,2,0,0,0,0,0,0,2,0,8,2,0,0,2,3,0,0,1,1,3,2,0,1,0,1,750000]
[20,9,15.6,1,2,0,0,435,76,10,76,6,10,8,2,1,0,3,3,3,2,1,0,0,1,2,1,0,1,1500000]
[21,0,0,0,0,0,0,0,0,0,0,2,0,8,2,0,1,3,3,5,1,0,2,3,1,0,3,1,2,900000]
[22,0,0,0,0,0,16,64,0,0,0,2,0,1,2,4,2,2,3,5,0,1,2,1,0,2,1,2,1,750000]
[23,9,18.8,2,0,0,0,0,0,0,0,2,0,0,0,3,0,3,3,5,0,2,1,2,1,1,1,0,1,1000000]
[24,5,6.25,2,0,0,0,0,0,0,0,2,0,0,0,0,0,3,3,5,0,0,3,1,3,2,1,0,2,150000]
[25,9,18.8,2,0,0,176,308,0,0,0,2,0,8,1,2,2,3,3,0,0,2,1,3,2,1,1,2,2,250000]
[26,17,18.8,2,1,0,0,0,0,0,0,2,0,0,0,3,0,3,3,4,0,2,1,0,2,0,1,2,2,500000]
[27,0,6.25,2,0,0,0,0,0,0,80,2,5,0,0,2,2,3,3,5,0,1,2,3,1,0,0,0,0,1200000]
[28,3,6.25,2,0,1,0,0,0,0,0,4,5,0,0,4,0,3,3,4,0,2,3,3,1,0,2,2,1,500000]
[29,9,12.5,2,1,0,0,0,15,12,15,8,12,0,0,1,0,3,3,4,0,2,1,0,2,1,1,1,2,2000000]
[30,33,18.8,2,0,0,0,0,0,0,0,4,2,0,0,0,0,1,1,0,0,0,3,1,2,0,2,2,0,250000]
[31,4,18.8,1,0,0,0,0,65,4,0,4,4,0,0,2,0,3,2,3,0,1,0,1,1,2,2,1,1,650000]
[32,5,3.125,2,2,1,6,102,40,16,40,8,16,0,0,2,3,3,0,4,0,0,2,1,2,1,0,2,1,200000]
[33,14,18.8,2,1,0,0,0,0,0,0,5,0,0,0,2,0,3,2,0,0,1,3,0,2,2,3,0,0,400000]
[34,0,0,0,0,0,0,12,100,15,100,8,15,0,0,2,0,3,3,4,0,2,3,3,0,2,2,1,0,900000]
[35,8,9.4,1,1,1,0,0,0,0,100,6,5,8,0,0,0,3,3,3,0,2,2,0,1,2,0,1,1,900000]
["CV",{"$f":"_xlfn.STDEV.S(B2:B36)/AVERAGE(B2:B36)","v":1.383842854444886},{"$f":"_xlfn.STDEV.S(C2:C36)/AVERAGE(C2:C36)","v":0.84395823753626376},{"$f":"_xlfn.STDEV.S(D2:D36)/AVERAGE(D2:D36)","v":0.65948586466528381},{"$f":"_xlfn.STDEV.S(E2:E36)/AVERAGE(E2:E36)","v":1.2933654230908831},2.2305806858480666,2.9881459898804135,2.7250501152884543,1.5394659205075842,1.5790297611729722,1.6828143944790142,0.63288342730791625,1.4346340567392073,1.2744250477591585,1.2909944487358058,1.043011114951035,1.4910544805781871,0.32582327651393111,0.30721159062514791,0.8219511329380369,2.1760730956581078,0.64975875258290616,0.58618247649425104,0.61083323417736113,0.63333947951472869,0.68629571860885286,0.76505300516434493,0.69428102652373402,0.60312027652595823]
["sd",{"$f":"_xlfn.STDEV.S(B2:B36)","v":10.477667326511279}]
["mean",{"$f":"AVERAGE(B2:B36)","v":7.5714285714285712}]
[null,{"$f":"B1","v":"manage_species"},{"$f":"C1","v":"manage_spatial"},"manage_uncertainty","manage_currentpractices","manage_adaptivemanagement","pop_a","pop_b","pop_spatialscope","pop_temporalscope","hab_quantity","hab_quality","hab_temporal","ecoprocess_spp","ecoprocess_uncertainty","datasharing","broaderimpacts","exisitingpriorities","partners","leverage","alignment","objhyp","response","targettaxa","surveydesign","stats","datamanagement","budget","timeline"]
[null,"Metric 1","Metric 2","Metric 3","Metric 4","Metric 5","Metric 6a","Metric 6b","Metric 7","Metric 8","Metric 9","Metric 10","Metric 11","Metric 12","Metric 13","Metric 14","Metric 15","Metric 16","Metric 17","Metric 18","Metric 19","Metric 20","Metric 21","Metric 22","Metric 23","Metric 24","Metric 25","Metric 26","Metric 27"]
["Weights",0.03,0.03,0.03,0.03,0.04,1.4999999999999999E-2,1.4999999999999999E-2,0.03,0.02,0.02,0.02,0.02,0.03,0.09,0.04,0.04,0.05,0.05,0.03,0.03,0.05,0.04,0.04,0.05,0.05,0.04,0.04,0.03]
[]
[null,"Unweighted"]
["Project",null,null,null,null,null,null,null,null,null,null,null,null,null,null,null,null,null,null,null,null,null,null,null,null,null,null,null,null,"Unweighted total",null,"Unweighted total","management","status","ecol_proc","integration","rigor"]
[{"$f":"A2","v":1},{"$f":"valueE(B2,'Utility Functions'!$B$3,'Utility Functions'!$B$4,'Utility Functions'!$B$5,'Utility Functions'!$B$6)","v":0.83470237647280454},{"$f":"valueE(C2,'Utility Functions'!$D$3,'Utility Functions'!$D$4,'Utility Functions'!$D$5,'Utility Functions'!$D$6)","v":0.46475967153745396},{"$f":"valuePL(D2,'Utility Functions'!$E$3:$E$5,'Utility Functions'!$F$3:$F$5)","v":1},{"$f":"valuePL(E2,'Utility Functions'!$G$3:$G$5,'Utility Functions'!$H$3:$H$5)","v":1},{"$f":"valuePL(F2,'Utility Functions'!$I$3:$I$4,'Utility Functions'!$J$3:$J$5)","v":0},{"$f":"valueE(G2,'Utility Functions'!$L$3,'Utility Functions'!$L$4,'Utility Functions'!$L$5,'Utility Functions'!$L$6)","v":1},{"$f":"valueE(H2,'Utility Functions'!$N$3,'Utility Functions'!$N$4,'Utility Functions'!$N$5,'Utility Functions'!$N$6)","v":1},{"$f":"valuePL(I2,'Utility Functions'!$O$3:$O$6,'Utility Functions'!$P$3:$P$6)","v":0.91818181818181821},{"$f":"valuePL(J2,'Utility Functions'!$Q$3:$Q$6,'Utility Functions'!$R$3:$R$6)","v":0.1},{"$f":"valuePL(K2,'Utility Functions'!$S$3:$S$7,'Utility Functions'!$T$3:$T$7)","v":0},{"$f":"valueE(L2,'Utility Functions'!$V$3,'Utility Functions'!$V$4,'Utility Functions'!$V$5,'Utility Functions'!$V$6)","v":0},{"$f":"valuePL(M2,'Utility Functions'!$W$3:$W$6,'Utility Functions'!$X$3:$X$6)","v":0},{"$f":"valueE(N2,'Utility Functions'!$Z$3,'Utility Functions'!$Z$4,'Utility Functions'!$Z$5,'Utility Functions'!$Z$6)","v":0},{"$f":"valuePL(O2,'Utility Functions'!$AA$3:$AA$5,'Utility Functions'!$AB$3:$AB$5)","v":0},{"$f":"valuePL(P2,'Utility Functions'!$AC$3:$AC$7,'Utility Functions'!$AD$3:$AD$7)","v":1},{"$f":"valuePL(Q2,'Utility Functions'!$AE$3:$AE$6,'Utility Functions'!$AF$3:$AF$6)","v":0},{"$f":"valuePL(R2,'Utility Functions'!$AG$3:$AG$6,'Utility Functions'!$AH$3:$AH$6)","v":0.8},{"$f":"valuePL(S2,'Utility Functions'!$AI$3:$AI$6,'Utility Functions'!$AJ$3:$AJ$6)","v":1},{"$f":"valuePL(T2,'Utility Functions'!$AK$3:$AK$8,'Utility Functions'!$AL$3:$AL$8)","v":0},{"$f":"valuePL(U2,'Utility Functions'!$AM$3:$AM$5,'Utility Functions'!$AN$3:$AN$5)","v":0},{"$f":"valuePL(V2,'Utility Functions'!$AO$3:$AO$5,'Utility Functions'!$AP$3:$AP$5)","v":1},{"$f":"valuePL(W2,'Utility Functions'!$AQ$3:$AQ$6,'Utility Functions'!$AR$3:$AR$6)","v":1},{"$f":"valuePL(X2,'Utility Functions'!$AS$3:$AS$6,'Utility Functions'!$AT$3:$AT$6)","v":1},{"$f":"valuePL(Y2,'Utility Functions'!$AU$3:$AU$6,'Utility Functions'!$AV$3:$AV$6)","v":1},{"$f":"valuePL(Z2,'Utility Functions'!$AW$3:$AW$5,'Utility Functions'!$AX$3:$AX$5)","v":1},{"$f":"valuePL(AA2,'Utility Functions'!$AY$3:$AY$6,'Utility Functions'!$AZ$3:$AZ$6)","v":1},{"$f":"valuePL(AB2,'Utility Functions'!$BA$3:$BA$5,'Utility Functions'!$BB$3:$BB$5)","v":1},{"$f":"valuePL(AC2,'Utility Functions'!$BC$3:$BC$5,'Utility Functions'!$BD$3:$BD$5)","v":1},{"$f":"SUM(B46:AC46)","v":17.117643866192076},null,{"$f":"SUM(AG46:AK46)","v":17.117643866192076},{"$f":"SUM(B46:F46)","v":3.2994620480102586},{"$f":"SUM(G46:M46)","v":3.0181818181818181},{"$f":"SUM(N46:O46)","v":0},{"$f":"SUM(P46:U46)","v":2.8},{"$f":"SUM(V46:AC46)","v":8}]
[2,{"$f":"valueE(B3,'Utility Functions'!$B$3,'Utility Functions'!$B$4,'Utility Functions'!$B$5,'Utility Functions'!$B$6)","v":0.4511890475224023},{"$f":"valueE(C3,'Utility Functions'!$D$3,'Utility Functions'!$D$4,'Utility Functions'!$D$5,'Utility Functions'!$D$6)","v":0.94043675305359531},{"$f":"valuePL(D3,'Utility Functions'!$E$3:$E$5,'Utility Functions'!$F$3:$F$5)","v":0.5},{"$f":"valuePL(E3,'Utility Functions'!$G$3:$G$5,'Utility Functions'!$H$3:$H$5)","v":0},{"$f":"valuePL(F3,'Utility Functions'!$I$3:$I$4,'Utility Functions'!$J$3:$J$5)","v":0},{"$f":"valueE(G3,'Utility Functions'!$L$3,'Utility Functions'!$L$4,'Utility Functions'!$L$5,'Utility Functions'!$L$6)","v":0},{"$f":"valueE(H3,'Utility Functions'!$N$3,'Utility Functions'!$N$4,'Utility Functions'!$N$5,'Utility Functions'!$N$6)","v":0},{"$f":"valuePL(I3,'Utility Functions'!$O$3:$O$6,'Utility Functions'!$P$3:$P$6)","v":0},{"$f":"valuePL(J3,'Utility Functions'!$Q$3:$Q$6,'Utility Functions'!$R$3:$R$6)","v":0},{"$f":"valuePL(K3,'Utility Functions'!$S$3:$S$7,'Utility Functions'!$T$3:$T$7)","v":0},{"$f":"valueE(L3,'Utility Functions'!$V$3,'Utility Functions'!$V$4,'Utility Functions'!$V$5,'Utility Functions'!$V$6)","v":0},{"$f":"valuePL(M3,'Utility Functions'!$W$3:$W$6,'Utility Functions'!$X$3:$X$6)","v":0},{"$f":"valueE(N3,'Utility Functions'!$Z$3,'Utility Functions'!$Z$4,'Utility Functions'!$Z$5,'Utility Functions'!$Z$6)","v":0.5},{"$f":"valuePL(O3,'Utility Functions'!$AA$3:$AA$5,'Utility Functions'!$AB$3:$AB$5)","v":0.25},{"$f":"valuePL(P3,'Utility Functions'!$AC$3:$AC$7,'Utility Functions'!$AD$3:$AD$7)","v":0},{"$f":"valuePL(Q3,'Utility Functions'!$AE$3:$AE$6,'Utility Functions'!$AF$3:$AF$6)","v":0},{"$f":"valuePL(R3,'Utility Functions'!$AG$3:$AG$6,'Utility Functions'!$AH$3:$AH$6)","v":1},{"$f":"valuePL(S3,'Utility Functions'!$AI$3:$AI$6,'Utility Functions'!$AJ$3:$AJ$6)","v":1},{"$f":"valuePL(T3,'Utility Functions'!$AK$3:$AK$8,'Utility Functions'!$AL$3:$AL$8)","v":0},{"$f":"valuePL(U3,'Utility Functions'!$AM$3:$AM$5,'Utility Functions'!$AN$3:$AN$5)","v":0},{"$f":"valuePL(V3,'Utility Functions'!$AO$3:$AO$5,'Utility Functions'!$AP$3:$AP$5)","v":1},{"$f":"valuePL(W3,'Utility Functions'!$AQ$3:$AQ$6,'Utility Functions'!$AR$3:$AR$6)","v":1},{"$f":"valuePL(X3,'Utility Functions'!$AS$3:$AS$6,'Utility Functions'!$AT$3:$AT$6)","v":1},{"$f":"valuePL(Y3,'Utility Functions'!$AU$3:$AU$6,'Utility Functions'!$AV$3:$AV$6)","v":1},{"$f":"valuePL(Z3,'Utility Functions'!$AW$3:$AW$5,'Utility Functions'!$AX$3:$AX$5)","v":1},{"$f":"valuePL(AA3,'Utility Functions'!$AY$3:$AY$6,'Utility Functions'!$AZ$3:$AZ$6)","v":1},{"$f":"valuePL(AB3,'Utility Functions'!$BA$3:$BA$5,'Utility Functions'!$BB$3:$BB$5)","v":1},{"$f":"valuePL(AC3,'Utility Functions'!$BC$3:$BC$5,'Utility Functions'!$BD$3:$BD$5)","v":1},{"$f":"SUM(B47:AC47)","v":12.641625800575998},null,{"$f":"SUM(AG47:AK47)","v":12.641625800575998},{"$f":"SUM(B47:F47)","v":1.8916258005759976},{"$f":"SUM(G47:M47)","v":0},{"$f":"SUM(N47:O47)","v":0.75},{"$f":"SUM(P47:U47)","v":2},{"$f":"SUM(V47:AC47)","v":8}]
[3,{"$f":"valueE(B4,'Utility Functions'!$B$3,'Utility Functions'!$B$4,'Utility Functions'!$B$5,'Utility Functions'!$B$6)","v":0.79810469124896843},{"$f":"valueE(C4,'Utility Functions'!$D$3,'Utility Functions'!$D$4,'Utility Functions'!$D$5,'Utility Functions'!$D$6)","v":0.94043675305359531},{"$f":"valuePL(D4,'Utility Functions'!$E$3:$E$5,'Utility Functions'!$F$3:$F$5)","v":1},{"$f":"valuePL(E4,'Utility Functions'!$G$3:$G$5,'Utility Functions'!$H$3:$H$5)","v":0},{"$f":"valuePL(F4,'Utility Functions'!$I$3:$I$4,'Utility Functions'!$J$3:$J$5)","v":0},{"$f":"valueE(G4,'Utility Functions'!$L$3,'Utility Functions'!$L$4,'Utility Functions'!$L$5,'Utility Functions'!$L$6)","v":0},{"$f":"valueE(H4,'Utility Functions'!$N$3,'Utility Functions'!$N$4,'Utility Functions'!$N$5,'Utility Functions'!$N$6)","v":0},{"$f":"valuePL(I4,'Utility Functions'!$O$3:$O$6,'Utility Functions'!$P$3:$P$6)","v":0},{"$f":"valuePL(J4,'Utility Functions'!$Q$3:$Q$6,'Utility Functions'!$R$3:$R$6)","v":0},{"$f":"valuePL(K4,'Utility Functions'!$S$3:$S$7,'Utility Functions'!$T$3:$T$7)","v":0},{"$f":"valueE(L4,'Utility Functions'!$V$3,'Utility Functions'!$V$4,'Utility Functions'!$V$5,'Utility Functions'!$V$6)","v":0},{"$f":"valuePL(M4,'Utility Functions'!$W$3:$W$6,'Utility Functions'!$X$3:$X$6)","v":0},{"$f":"valueE(N4,'Utility Functions'!$Z$3,'Utility Functions'!$Z$4,'Utility Functions'!$Z$5,'Utility Functions'!$Z$6)","v":0.625},{"$f":"valuePL(O4,'Utility Functions'!$AA$3:$AA$5,'Utility Functions'!$AB$3:$AB$5)","v":0.25},{"$f":"valuePL(P4,'Utility Functions'!$AC$3:$AC$7,'Utility Functions'!$AD$3:$AD$7)","v":0},{"$f":"valuePL(Q4,'Utility Functions'!$AE$3:$AE$6,'Utility Functions'!$AF$3:$AF$6)","v":0.5},{"$f":"valuePL(R4,'Utility Functions'!$AG$3:$AG$6,'Utility Functions'!$AH$3:$AH$6)","v":0},{"$f":"valuePL(S4,'Utility Functions'!$AI$3:$AI$6,'Utility Functions'!$AJ$3:$AJ$6)","v":0},{"$f":"valuePL(T4,'Utility Functions'!$AK$3:$AK$8,'Utility Functions'!$AL$3:$AL$8)","v":0},{"$f":"valuePL(U4,'Utility Functions'!$AM$3:$AM$5,'Utility Functions'!$AN$3:$AN$5)","v":0.25},{"$f":"valuePL(V4,'Utility Functions'!$AO$3:$AO$5,'Utility Functions'!$AP$3:$AP$5)","v":1},{"$f":"valuePL(W4,'Utility Functions'!$AQ$3:$AQ$6,'Utility Functions'!$AR$3:$AR$6)","v":1},{"$f":"valuePL(X4,'Utility Functions'!$AS$3:$AS$6,'Utility Functions'!$AT$3:$AT$6)","v":1},{"$f":"valuePL(Y4,'Utility Functions'!$AU$3:$AU$6,'Utility Functions'!$AV$3:$AV$6)","v":1},{"$f":"valuePL(Z4,'Utility Functions'!$AW$3:$AW$5,'Utility Functions'!$AX$3:$AX$5)","v":1},{"$f":"valuePL(AA4,'Utility Functions'!$AY$3:$AY$6,'Utility Functions'!$AZ$3:$AZ$6)","v":0.2},{"$f":"valuePL(AB4,'Utility Functions'!$BA$3:$BA$5,'Utility Functions'!$BB$3:$BB$5)","v":1},{"$f":"valuePL(AC4,'Utility Functions'!$BC$3:$BC$5,'Utility Functions'!$BD$3:$BD$5)","v":1},11.563541444302563,null,11.563541444302565,2.7385414443025637,0,0.875,0.75,7.2]
[4,{"$f":"valueE(B5,'Utility Functions'!$B$3,'Utility Functions'!$B$4,'Utility Functions'!$B$5,'Utility Functions'!$B$6)","v":0.1812695215714665},{"$f":"valueE(C5,'Utility Functions'!$D$3,'Utility Functions'!$D$4,'Utility Functions'!$D$5,'Utility Functions'!$D$6)","v":0.46475967153745396},{"$f":"valuePL(D5,'Utility Functions'!$E$3:$E$5,'Utility Functions'!$F$3:$F$5)","v":1},{"$f":"valuePL(E5,'Utility Functions'!$G$3:$G$5,'Utility Functions'!$H$3:$H$5)","v":0},{"$f":"valuePL(F5,'Utility Functions'!$I$3:$I$4,'Utility Functions'!$J$3:$J$5)","v":0},{"$f":"valueE(G5,'Utility Functions'!$L$3,'Utility Functions'!$L$4,'Utility Functions'!$L$5,'Utility Functions'!$L$6)","v":0},{"$f":"valueE(H5,'Utility Functions'!$N$3,'Utility Functions'!$N$4,'Utility Functions'!$N$5,'Utility Functions'!$N$6)","v":0},{"$f":"valuePL(I5,'Utility Functions'!$O$3:$O$6,'Utility Functions'!$P$3:$P$6)","v":0},{"$f":"valuePL(J5,'Utility Functions'!$Q$3:$Q$6,'Utility Functions'!$R$3:$R$6)","v":0},{"$f":"valuePL(K5,'Utility Functions'!$S$3:$S$7,'Utility Functions'!$T$3:$T$7)","v":0},{"$f":"valueE(L5,'Utility Functions'!$V$3,'Utility Functions'!$V$4,'Utility Functions'!$V$5,'Utility Functions'!$V$6)","v":0},{"$f":"valuePL(M5,'Utility Functions'!$W$3:$W$6,'Utility Functions'!$X$3:$X$6)","v":0},{"$f":"valueE(N5,'Utility Functions'!$Z$3,'Utility Functions'!$Z$4,'Utility Functions'!$Z$5,'Utility Functions'!$Z$6)","v":0.5},{"$f":"valuePL(O5,'Utility Functions'!$AA$3:$AA$5,'Utility Functions'!$AB$3:$AB$5)","v":0.25},{"$f":"valuePL(P5,'Utility Functions'!$AC$3:$AC$7,'Utility Functions'!$AD$3:$AD$7)","v":0},{"$f":"valuePL(Q5,'Utility Functions'!$AE$3:$AE$6,'Utility Functions'!$AF$3:$AF$6)","v":0.1},{"$f":"valuePL(R5,'Utility Functions'!$AG$3:$AG$6,'Utility Functions'!$AH$3:$AH$6)","v":1},{"$f":"valuePL(S5,'Utility Functions'!$AI$3:$AI$6,'Utility Functions'!$AJ$3:$AJ$6)","v":1},{"$f":"valuePL(T5,'Utility Functions'!$AK$3:$AK$8,'Utility Functions'!$AL$3:$AL$8)","v":0.8},{"$f":"valuePL(U5,'Utility Functions'!$AM$3:$AM$5,'Utility Functions'!$AN$3:$AN$5)","v":0},{"$f":"valuePL(V5,'Utility Functions'!$AO$3:$AO$5,'Utility Functions'!$AP$3:$AP$5)","v":0.5},{"$f":"valuePL(W5,'Utility Functions'!$AQ$3:$AQ$6,'Utility Functions'!$AR$3:$AR$6)","v":1},{"$f":"valuePL(X5,'Utility Functions'!$AS$3:$AS$6,'Utility Functions'!$AT$3:$AT$6)","v":1},{"$f":"valuePL(Y5,'Utility Functions'!$AU$3:$AU$6,'Utility Functions'!$AV$3:$AV$6)","v":0.2},{"$f":"valuePL(Z5,'Utility Functions'!$AW$3:$AW$5,'Utility Functions'!$AX$3:$AX$5)","v":0},{"$f":"valuePL(AA5,'Utility Functions'!$AY$3:$AY$6,'Utility Functions'!$AZ$3:$AZ$6)","v":0},{"$f":"valuePL(AB5,'Utility Functions'!$BA$3:$BA$5,'Utility Functions'!$BB$3:$BB$5)","v":1},{"$f":"valuePL(AC5,'Utility Functions'!$BC$3:$BC$5,'Utility Functions'!$BD$3:$BD$5)","v":0.25},9.2460291931089209,null,9.2460291931089209,1.6460291931089204,0,0.75,2.9000000000000004,3.95]
[5,{"$f":"valueE(B6,'Utility Functions'!$B$3,'Utility Functions'!$B$4,'Utility Functions'!$B$5,'Utility Functions'!$B$6)","v":0.55067187023002029},{"$f":"valueE(C6,'Utility Functions'!$D$3,'Utility Functions'!$D$4,'Utility Functions'!$D$5,'Utility Functions'!$D$6)","v":0.26656514581460788},{"$f":"valuePL(D6,'Utility Functions'!$E$3:$E$5,'Utility Functions'!$F$3:$F$5)","v":1},{"$f":"valuePL(E6,'Utility Functions'!$G$3:$G$5,'Utility Functions'!$H$3:$H$5)","v":0},{"$f":"valuePL(F6,'Utility Functions'!$I$3:$I$4,'Utility Functions'!$J$3:$J$5)","v":0},{"$f":"valueE(G6,'Utility Functions'!$L$3,'Utility Functions'!$L$4,'Utility Functions'!$L$5,'Utility Functions'!$L$6)","v":0},{"$f":"valueE(H6,'Utility Functions'!$N$3,'Utility Functions'!$N$4,'Utility Functions'!$N$5,'Utility Functions'!$N$6)","v":0},{"$f":"valuePL(I6,'Utility Functions'!$O$3:$O$6,'Utility Functions'!$P$3:$P$6)","v":0.50909090909090915},{"$f":"valuePL(J6,'Utility Functions'!$Q$3:$Q$6,'Utility Functions'!$R$3:$R$6)","v":0.04},{"$f":"valuePL(K6,'Utility Functions'!$S$3:$S$7,'Utility Functions'!$T$3:$T$7)","v":0},{"$f":"valueE(L6,'Utility Functions'!$V$3,'Utility Functions'!$V$4,'Utility Functions'!$V$5,'Utility Functions'!$V$6)","v":0},{"$f":"valuePL(M6,'Utility Functions'!$W$3:$W$6,'Utility Functions'!$X$3:$X$6)","v":0},{"$f":"valueE(N6,'Utility Functions'!$Z$3,'Utility Functions'!$Z$4,'Utility Functions'!$Z$5,'Utility Functions'!$Z$6)","v":0},{"$f":"valuePL(O6,'Utility Functions'!$AA$3:$AA$5,'Utility Functions'!$AB$3:$AB$5)","v":0},{"$f":"valuePL(P6,'Utility Functions'!$AC$3:$AC$7,'Utility Functions'!$AD$3:$AD$7)","v":0},{"$f":"valuePL(Q6,'Utility Functions'!$AE$3:$AE$6,'Utility Functions'!$AF$3:$AF$6)","v":0.1},{"$f":"valuePL(R6,'Utility Functions'!$AG$3:$AG$6,'Utility Functions'!$AH$3:$AH$6)","v":1},{"$f":"valuePL(S6,'Utility Functions'!$AI$3:$AI$6,'Utility Functions'!$AJ$3:$AJ$6)","v":1},{"$f":"valuePL(T6,'Utility Functions'!$AK$3:$AK$8,'Utility Functions'!$AL$3:$AL$8)","v":0.8},{"$f":"valuePL(U6,'Utility Functions'!$AM$3:$AM$5,'Utility Functions'!$AN$3:$AN$5)","v":0.25},{"$f":"valuePL(V6,'Utility Functions'!$AO$3:$AO$5,'Utility Functions'!$AP$3:$AP$5)","v":0},{"$f":"valuePL(W6,'Utility Functions'!$AQ$3:$AQ$6,'Utility Functions'!$AR$3:$AR$6)","v":1},{"$f":"valuePL(X6,'Utility Functions'!$AS$3:$AS$6,'Utility Functions'!$AT$3:$AT$6)","v":1},{"$f":"valuePL(Y6,'Utility Functions'!$AU$3:$AU$6,'Utility Functions'!$AV$3:$AV$6)","v":0.8},{"$f":"valuePL(Z6,'Utility Functions'!$AW$3:$AW$5,'Utility Functions'!$AX$3:$AX$5)","v":0},{"$f":"valuePL(AA6,'Utility Functions'!$AY$3:$AY$6,'Utility Functions'!$AZ$3:$AZ$6)","v":0},{"$f":"valuePL(AB6,'Utility Functions'!$BA$3:$BA$5,'Utility Functions'!$BB$3:$BB$5)","v":1},{"$f":"valuePL(AC6,'Utility Functions'!$BC$3:$BC$5,'Utility Functions'!$BD$3:$BD$5)","v":0.25},9.5663279251355373,null,9.5663279251355391,1.8172370160446283,0.54909090909090918,0,3.1500000000000004,4.05]
[6,{"$f":"valueE(B7,'Utility Functions'!$B$3,'Utility Functions'!$B$4,'Utility Functions'!$B$5,'Utility Functions'!$B$6)","v":0.86466602685702687},{"$f":"valueE(C7,'Utility Functions'!$D$3,'Utility Functions'!$D$4,'Utility Functions'!$D$5,'Utility Functions'!$D$6)","v":6.1811002813601471E-3},{"$f":"valuePL(D7,'Utility Functions'!$E$3:$E$5,'Utility Functions'!$F$3:$F$5)","v":1},{"$f":"valuePL(E7,'Utility Functions'!$G$3:$G$5,'Utility Functions'!$H$3:$H$5)","v":0},{"$f":"valuePL(F7,'Utility Functions'!$I$3:$I$4,'Utility Functions'!$J$3:$J$5)","v":0},{"$f":"valueE(G7,'Utility Functions'!$L$3,'Utility Functions'!$L$4,'Utility Functions'!$L$5,'Utility Functions'!$L$6)","v":0},{"$f":"valueE(H7,'Utility Functions'!$N$3,'Utility Functions'!$N$4,'Utility Functions'!$N$5,'Utility Functions'!$N$6)","v":0},{"$f":"valuePL(I7,'Utility Functions'!$O$3:$O$6,'Utility Functions'!$P$3:$P$6)","v":0.04},{"$f":"valuePL(J7,'Utility Functions'!$Q$3:$Q$6,'Utility Functions'!$R$3:$R$6)","v":0.04},{"$f":"valuePL(K7,'Utility Functions'!$S$3:$S$7,'Utility Functions'!$T$3:$T$7)","v":0},{"$f":"valueE(L7,'Utility Functions'!$V$3,'Utility Functions'!$V$4,'Utility Functions'!$V$5,'Utility Functions'!$V$6)","v":0},{"$f":"valuePL(M7,'Utility Functions'!$W$3:$W$6,'Utility Functions'!$X$3:$X$6)","v":0},{"$f":"valueE(N7,'Utility Functions'!$Z$3,'Utility Functions'!$Z$4,'Utility Functions'!$Z$5,'Utility Functions'!$Z$6)","v":0},{"$f":"valuePL(O7,'Utility Functions'!$AA$3:$AA$5,'Utility Functions'!$AB$3:$AB$5)","v":0},{"$f":"valuePL(P7,'Utility Functions'!$AC$3:$AC$7,'Utility Functions'!$AD$3:$AD$7)","v":0},{"$f":"valuePL(Q7,'Utility Functions'!$AE$3:$AE$6,'Utility Functions'!$AF$3:$AF$6)","v":0.1},{"$f":"valuePL(R7,'Utility Functions'!$AG$3:$AG$6,'Utility Functions'!$AH$3:$AH$6)","v":0},{"$f":"valuePL(S7,'Utility Functions'!$AI$3:$AI$6,'Utility Functions'!$AJ$3:$AJ$6)","v":1},{"$f":"valuePL(T7,'Utility Functions'!$AK$3:$AK$8,'Utility Functions'!$AL$3:$AL$8)","v":0.6},{"$f":"valuePL(U7,'Utility Functions'!$AM$3:$AM$5,'Utility Functions'!$AN$3:$AN$5)","v":0},{"$f":"valuePL(V7,'Utility Functions'!$AO$3:$AO$5,'Utility Functions'!$AP$3:$AP$5)","v":0},{"$f":"valuePL(W7,'Utility Functions'!$AQ$3:$AQ$6,'Utility Functions'!$AR$3:$AR$6)","v":0},{"$f":"valuePL(X7,'Utility Functions'!$AS$3:$AS$6,'Utility Functions'!$AT$3:$AT$6)","v":1},{"$f":"valuePL(Y7,'Utility Functions'!$AU$3:$AU$6,'Utility Functions'!$AV$3:$AV$6)","v":0},{"$f":"valuePL(Z7,'Utility Functions'!$AW$3:$AW$5,'Utility Functions'!$AX$3:$AX$5)","v":0},{"$f":"valuePL(AA7,'Utility Functions'!$AY$3:$AY$6,'Utility Functions'!$AZ$3:$AZ$6)","v":0},{"$f":"valuePL(AB7,'Utility Functions'!$BA$3:$BA$5,'Utility Functions'!$BB$3:$BB$5)","v":1},{"$f":"valuePL(AC7,'Utility Functions'!$BC$3:$BC$5,'Utility Functions'!$BD$3:$BD$5)","v":0.25},5.9008471271383875,null,5.9008471271383875,1.8708471271383869,0.08,0,1.7000000000000002,2.25]
[7,{"$f":"valueE(B8,'Utility Functions'!$B$3,'Utility Functions'!$B$4,'Utility Functions'!$B$5,'Utility Functions'!$B$6)","v":0.99997108261728973},{"$f":"valueE(C8,'Utility Functions'!$D$3,'Utility Functions'!$D$4,'Utility Functions'!$D$5,'Utility Functions'!$D$6)","v":0.84744836833951609},{"$f":"valuePL(D8,'Utility Functions'!$E$3:$E$5,'Utility Functions'!$F$3:$F$5)","v":0},{"$f":"valuePL(E8,'Utility Functions'!$G$3:$G$5,'Utility Functions'!$H$3:$H$5)","v":1},{"$f":"valuePL(F8,'Utility Functions'!$I$3:$I$4,'Utility Functions'!$J$3:$J$5)","v":0},{"$f":"valueE(G8,'Utility Functions'!$L$3,'Utility Functions'!$L$4,'Utility Functions'!$L$5,'Utility Functions'!$L$6)","v":0},{"$f":"valueE(H8,'Utility Functions'!$N$3,'Utility Functions'!$N$4,'Utility Functions'!$N$5,'Utility Functions'!$N$6)","v":0},{"$f":"valuePL(I8,'Utility Functions'!$O$3:$O$6,'Utility Functions'!$P$3:$P$6)","v":1},{"$f":"valuePL(J8,'Utility Functions'!$Q$3:$Q$6,'Utility Functions'!$R$3:$R$6)","v":0.67272727272727273},{"$f":"valuePL(K8,'Utility Functions'!$S$3:$S$7,'Utility Functions'!$T$3:$T$7)","v":1},{"$f":"valueE(L8,'Utility Functions'!$V$3,'Utility Functions'!$V$4,'Utility Functions'!$V$5,'Utility Functions'!$V$6)","v":1},{"$f":"valuePL(M8,'Utility Functions'!$W$3:$W$6,'Utility Functions'!$X$3:$X$6)","v":0.67272727272727273},{"$f":"valueE(N8,'Utility Functions'!$Z$3,'Utility Functions'!$Z$4,'Utility Functions'!$Z$5,'Utility Functions'!$Z$6)","v":1},{"$f":"valuePL(O8,'Utility Functions'!$AA$3:$AA$5,'Utility Functions'!$AB$3:$AB$5)","v":0.25},{"$f":"valuePL(P8,'Utility Functions'!$AC$3:$AC$7,'Utility Functions'!$AD$3:$AD$7)","v":0},{"$f":"valuePL(Q8,'Utility Functions'!$AE$3:$AE$6,'Utility Functions'!$AF$3:$AF$6)","v":0},{"$f":"valuePL(R8,'Utility Functions'!$AG$3:$AG$6,'Utility Functions'!$AH$3:$AH$6)","v":1},{"$f":"valuePL(S8,'Utility Functions'!$AI$3:$AI$6,'Utility Functions'!$AJ$3:$AJ$6)","v":1},{"$f":"valuePL(T8,'Utility Functions'!$AK$3:$AK$8,'Utility Functions'!$AL$3:$AL$8)","v":0},{"$f":"valuePL(U8,'Utility Functions'!$AM$3:$AM$5,'Utility Functions'!$AN$3:$AN$5)","v":0},{"$f":"valuePL(V8,'Utility Functions'!$AO$3:$AO$5,'Utility Functions'!$AP$3:$AP$5)","v":1},{"$f":"valuePL(W8,'Utility Functions'!$AQ$3:$AQ$6,'Utility Functions'!$AR$3:$AR$6)","v":0},{"$f":"valuePL(X8,'Utility Functions'!$AS$3:$AS$6,'Utility Functions'!$AT$3:$AT$6)","v":0.2},{"$f":"valuePL(Y8,'Utility Functions'!$AU$3:$AU$6,'Utility Functions'!$AV$3:$AV$6)","v":1},{"$f":"valuePL(Z8,'Utility Functions'!$AW$3:$AW$5,'Utility Functions'!$AX$3:$AX$5)","v":1},{"$f":"valuePL(AA8,'Utility Functions'!$AY$3:$AY$6,'Utility Functions'!$AZ$3:$AZ$6)","v":0.89999999999999991},{"$f":"valuePL(AB8,'Utility Functions'!$BA$3:$BA$5,'Utility Functions'!$BB$3:$BB$5)","v":0},{"$f":"valuePL(AC8,'Utility Functions'!$BC$3:$BC$5,'Utility Functions'!$BD$3:$BD$5)","v":1},15.54287399641135,null,15.54287399641135,2.8474194509568056,4.3454545454545457,1.25,2,5.0999999999999996]
[8,{"$f":"valueE(B9,'Utility Functions'!$B$3,'Utility Functions'!$B$4,'Utility Functions'!$B$5,'Utility Functions'!$B$6)","v":0.4511890475224023},{"$f":"valueE(C9,'Utility Functions'!$D$3,'Utility Functions'!$D$4,'Utility Functions'!$D$5,'Utility Functions'!$D$6)","v":0.84744836833951609},{"$f":"valuePL(D9,'Utility Functions'!$E$3:$E$5,'Utility Functions'!$F$3:$F$5)","v":1},{"$f":"valuePL(E9,'Utility Functions'!$G$3:$G$5,'Utility Functions'!$H$3:$H$5)","v":0.5},{"$f":"valuePL(F9,'Utility Functions'!$I$3:$I$4,'Utility Functions'!$J$3:$J$5)","v":1},{"$f":"valueE(G9,'Utility Functions'!$L$3,'Utility Functions'!$L$4,'Utility Functions'!$L$5,'Utility Functions'!$L$6)","v":0},{"$f":"valueE(H9,'Utility Functions'!$N$3,'Utility Functions'!$N$4,'Utility Functions'!$N$5,'Utility Functions'!$N$6)","v":0},{"$f":"valuePL(I9,'Utility Functions'!$O$3:$O$6,'Utility Functions'!$P$3:$P$6)","v":5.6000000000000008E-2},{"$f":"valuePL(J9,'Utility Functions'!$Q$3:$Q$6,'Utility Functions'!$R$3:$R$6)","v":0.83636363636363631},{"$f":"valuePL(K9,'Utility Functions'!$S$3:$S$7,'Utility Functions'!$T$3:$T$7)","v":0},{"$f":"valueE(L9,'Utility Functions'!$V$3,'Utility Functions'!$V$4,'Utility Functions'!$V$5,'Utility Functions'!$V$6)","v":1},{"$f":"valuePL(M9,'Utility Functions'!$W$3:$W$6,'Utility Functions'!$X$3:$X$6)","v":0.83636363636363631},{"$f":"valueE(N9,'Utility Functions'!$Z$3,'Utility Functions'!$Z$4,'Utility Functions'!$Z$5,'Utility Functions'!$Z$6)","v":0},{"$f":"valuePL(O9,'Utility Functions'!$AA$3:$AA$5,'Utility Functions'!$AB$3:$AB$5)","v":0},{"$f":"valuePL(P9,'Utility Functions'!$AC$3:$AC$7,'Utility Functions'!$AD$3:$AD$7)","v":0},{"$f":"valuePL(Q9,'Utility Functions'!$AE$3:$AE$6,'Utility Functions'!$AF$3:$AF$6)","v":1},{"$f":"valuePL(R9,'Utility Functions'!$AG$3:$AG$6,'Utility Functions'!$AH$3:$AH$6)","v":0.2},{"$f":"valuePL(S9,'Utility Functions'!$AI$3:$AI$6,'Utility Functions'!$AJ$3:$AJ$6)","v":1},{"$f":"valuePL(T9,'Utility Functions'!$AK$3:$AK$8,'Utility Functions'!$AL$3:$AL$8)","v":0},{"$f":"valuePL(U9,'Utility Functions'!$AM$3:$AM$5,'Utility Functions'!$AN$3:$AN$5)","v":0},{"$f":"valuePL(V9,'Utility Functions'!$AO$3:$AO$5,'Utility Functions'!$AP$3:$AP$5)","v":1},{"$f":"valuePL(W9,'Utility Functions'!$AQ$3:$AQ$6,'Utility Functions'!$AR$3:$AR$6)","v":1},{"$f":"valuePL(X9,'Utility Functions'!$AS$3:$AS$6,'Utility Functions'!$AT$3:$AT$6)","v":1},{"$f":"valuePL(Y9,'Utility Functions'!$AU$3:$AU$6,'Utility Functions'!$AV$3:$AV$6)","v":1},{"$f":"valuePL(Z9,'Utility Functions'!$AW$3:$AW$5,'Utility Functions'!$AX$3:$AX$5)","v":1},{"$f":"valuePL(AA9,'Utility Functions'!$AY$3:$AY$6,'Utility Functions'!$AZ$3:$AZ$6)","v":0},{"$f":"valuePL(AB9,'Utility Functions'!$BA$3:$BA$5,'Utility Functions'!$BB$3:$BB$5)","v":0.25},{"$f":"valuePL(AC9,'Utility Functions'!$BC$3:$BC$5,'Utility Functions'!$BD$3:$BD$5)","v":0.25},14.227364688589191,null,14.227364688589191,3.7986374158619185,2.7287272727272729,0,2.2000000000000002,5.5]
[9,{"$f":"valueE(B10,'Utility Functions'!$B$3,'Utility Functions'!$B$4,'Utility Functions'!$B$5,'Utility Functions'!$B$6)","v":0.83470237647280454},{"$f":"valueE(C10,'Utility Functions'!$D$3,'Utility Functions'!$D$4,'Utility Functions'!$D$5,'Utility Functions'!$D$6)","v":0.78989979019422951},{"$f":"valuePL(D10,'Utility Functions'!$E$3:$E$5,'Utility Functions'!$F$3:$F$5)","v":1},{"$f":"valuePL(E10,'Utility Functions'!$G$3:$G$5,'Utility Functions'!$H$3:$H$5)","v":0.5},{"$f":"valuePL(F10,'Utility Functions'!$I$3:$I$4,'Utility Functions'!$J$3:$J$5)","v":0},{"$f":"valueE(G10,'Utility Functions'!$L$3,'Utility Functions'!$L$4,'Utility Functions'!$L$5,'Utility Functions'!$L$6)","v":0.37634408602150538},{"$f":"valueE(H10,'Utility Functions'!$N$3,'Utility Functions'!$N$4,'Utility Functions'!$N$5,'Utility Functions'!$N$6)","v":0.13282732447817835},{"$f":"valuePL(I10,'Utility Functions'!$O$3:$O$6,'Utility Functions'!$P$3:$P$6)","v":0},{"$f":"valuePL(J10,'Utility Functions'!$Q$3:$Q$6,'Utility Functions'!$R$3:$R$6)","v":0},{"$f":"valuePL(K10,'Utility Functions'!$S$3:$S$7,'Utility Functions'!$T$3:$T$7)","v":0},{"$f":"valueE(L10,'Utility Functions'!$V$3,'Utility Functions'!$V$4,'Utility Functions'!$V$5,'Utility Functions'!$V$6)","v":0},{"$f":"valuePL(M10,'Utility Functions'!$W$3:$W$6,'Utility Functions'!$X$3:$X$6)","v":0},{"$f":"valueE(N10,'Utility Functions'!$Z$3,'Utility Functions'!$Z$4,'Utility Functions'!$Z$5,'Utility Functions'!$Z$6)","v":0},{"$f":"valuePL(O10,'Utility Functions'!$AA$3:$AA$5,'Utility Functions'!$AB$3:$AB$5)","v":0},{"$f":"valuePL(P10,'Utility Functions'!$AC$3:$AC$7,'Utility Functions'!$AD$3:$AD$7)","v":0.75},{"$f":"valuePL(Q10,'Utility Functions'!$AE$3:$AE$6,'Utility Functions'!$AF$3:$AF$6)","v":0},{"$f":"valuePL(R10,'Utility Functions'!$AG$3:$AG$6,'Utility Functions'!$AH$3:$AH$6)","v":1},{"$f":"valuePL(S10,'Utility Functions'!$AI$3:$AI$6,'Utility Functions'!$AJ$3:$AJ$6)","v":0.66},{"$f":"valuePL(T10,'Utility Functions'!$AK$3:$AK$8,'Utility Functions'!$AL$3:$AL$8)","v":0.2},{"$f":"valuePL(U10,'Utility Functions'!$AM$3:$AM$5,'Utility Functions'!$AN$3:$AN$5)","v":0},{"$f":"valuePL(V10,'Utility Functions'!$AO$3:$AO$5,'Utility Functions'!$AP$3:$AP$5)","v":1},{"$f":"valuePL(W10,'Utility Functions'!$AQ$3:$AQ$6,'Utility Functions'!$AR$3:$AR$6)","v":1},{"$f":"valuePL(X10,'Utility Functions'!$AS$3:$AS$6,'Utility Functions'!$AT$3:$AT$6)","v":1},{"$f":"valuePL(Y10,'Utility Functions'!$AU$3:$AU$6,'Utility Functions'!$AV$3:$AV$6)","v":0.2},{"$f":"valuePL(Z10,'Utility Functions'!$AW$3:$AW$5,'Utility Functions'!$AX$3:$AX$5)","v":1},{"$f":"valuePL(AA10,'Utility Functions'!$AY$3:$AY$6,'Utility Functions'!$AZ$3:$AZ$6)","v":0.2},{"$f":"valuePL(AB10,'Utility Functions'!$BA$3:$BA$5,'Utility Functions'!$BB$3:$BB$5)","v":0.25},{"$f":"valuePL(AC10,'Utility Functions'!$BC$3:$BC$5,'Utility Functions'!$BD$3:$BD$5)","v":1},11.893773577166716,null,11.893773577166719,3.1246021666670343,0.50917141049968373,0,2.6100000000000003,5.65]
[10,{"$f":"valueE(B11,'Utility Functions'!$B$3,'Utility Functions'!$B$4,'Utility Functions'!$B$5,'Utility Functions'!$B$6)","v":0},{"$f":"valueE(C11,'Utility Functions'!$D$3,'Utility Functions'!$D$4,'Utility Functions'!$D$5,'Utility Functions'!$D$6)","v":0},{"$f":"valuePL(D11,'Utility Functions'!$E$3:$E$5,'Utility Functions'!$F$3:$F$5)","v":0},{"$f":"valuePL(E11,'Utility Functions'!$G$3:$G$5,'Utility Functions'!$H$3:$H$5)","v":0},{"$f":"valuePL(F11,'Utility Functions'!$I$3:$I$4,'Utility Functions'!$J$3:$J$5)","v":0},{"$f":"valueE(G11,'Utility Functions'!$L$3,'Utility Functions'!$L$4,'Utility Functions'!$L$5,'Utility Functions'!$L$6)","v":0},{"$f":"valueE(H11,'Utility Functions'!$N$3,'Utility Functions'!$N$4,'Utility Functions'!$N$5,'Utility Functions'!$N$6)","v":0},{"$f":"valuePL(I11,'Utility Functions'!$O$3:$O$6,'Utility Functions'!$P$3:$P$6)","v":0},{"$f":"valuePL(J11,'Utility Functions'!$Q$3:$Q$6,'Utility Functions'!$R$3:$R$6)","v":0},{"$f":"valuePL(K11,'Utility Functions'!$S$3:$S$7,'Utility Functions'!$T$3:$T$7)","v":0},{"$f":"valueE(L11,'Utility Functions'!$V$3,'Utility Functions'!$V$4,'Utility Functions'!$V$5,'Utility Functions'!$V$6)","v":0},{"$f":"valuePL(M11,'Utility Functions'!$W$3:$W$6,'Utility Functions'!$X$3:$X$6)","v":0},{"$f":"valueE(N11,'Utility Functions'!$Z$3,'Utility Functions'!$Z$4,'Utility Functions'!$Z$5,'Utility Functions'!$Z$6)","v":0.75},{"$f":"valuePL(O11,'Utility Functions'!$AA$3:$AA$5,'Utility Functions'!$AB$3:$AB$5)","v":1},{"$f":"valuePL(P11,'Utility Functions'!$AC$3:$AC$7,'Utility Functions'!$AD$3:$AD$7)","v":0.25},{"$f":"valuePL(Q11,'Utility Functions'!$AE$3:$AE$6,'Utility Functions'!$AF$3:$AF$6)","v":0.5},{"$f":"valuePL(R11,'Utility Functions'!$AG$3:$AG$6,'Utility Functions'!$AH$3:$AH$6)","v":1},{"$f":"valuePL(S11,'Utility Functions'!$AI$3:$AI$6,'Utility Functions'!$AJ$3:$AJ$6)","v":0.66},{"$f":"valuePL(T11,'Utility Functions'!$AK$3:$AK$8,'Utility Functions'!$AL$3:$AL$8)","v":0.4},{"$f":"valuePL(U11,'Utility Functions'!$AM$3:$AM$5,'Utility Functions'!$AN$3:$AN$5)","v":0},{"$f":"valuePL(V11,'Utility Functions'!$AO$3:$AO$5,'Utility Functions'!$AP$3:$AP$5)","v":0},{"$f":"valuePL(W11,'Utility Functions'!$AQ$3:$AQ$6,'Utility Functions'!$AR$3:$AR$6)","v":0.75},{"$f":"valuePL(X11,'Utility Functions'!$AS$3:$AS$6,'Utility Functions'!$AT$3:$AT$6)","v":1},{"$f":"valuePL(Y11,'Utility Functions'!$AU$3:$AU$6,'Utility Functions'!$AV$3:$AV$6)","v":1},{"$f":"valuePL(Z11,'Utility Functions'!$AW$3:$AW$5,'Utility Functions'!$AX$3:$AX$5)","v":0.5},{"$f":"valuePL(AA11,'Utility Functions'!$AY$3:$AY$6,'Utility Functions'!$AZ$3:$AZ$6)","v":0.2},{"$f":"valuePL(AB11,'Utility Functions'!$BA$3:$BA$5,'Utility Functions'!$BB$3:$BB$5)","v":0},{"$f":"valuePL(AC11,'Utility Functions'!$BC$3:$BC$5,'Utility Functions'!$BD$3:$BD$5)","v":1},9.01,null,9.0100000000000016,0,0,1.75,2.81,4.45]
[11,{"$f":"valueE(B12,'Utility Functions'!$B$3,'Utility Functions'!$B$4,'Utility Functions'!$B$5,'Utility Functions'!$B$6)","v":0},{"$f":"valueE(C12,'Utility Functions'!$D$3,'Utility Functions'!$D$4,'Utility Functions'!$D$5,'Utility Functions'!$D$6)","v":0},{"$f":"valuePL(D12,'Utility Functions'!$E$3:$E$5,'Utility Functions'!$F$3:$F$5)","v":0},{"$f":"valuePL(E12,'Utility Functions'!$G$3:$G$5,'Utility Functions'!$H$3:$H$5)","v":0},{"$f":"valuePL(F12,'Utility Functions'!$I$3:$I$4,'Utility Functions'!$J$3:$J$5)","v":0},{"$f":"valueE(G12,'Utility Functions'!$L$3,'Utility Functions'!$L$4,'Utility Functions'!$L$5,'Utility Functions'!$L$6)","v":3.2258064516129031E-2},{"$f":"valueE(H12,'Utility Functions'!$N$3,'Utility Functions'!$N$4,'Utility Functions'!$N$5,'Utility Functions'!$N$6)","v":9.6774193548387094E-2},{"$f":"valuePL(I12,'Utility Functions'!$O$3:$O$6,'Utility Functions'!$P$3:$P$6)","v":0.54181818181818187},{"$f":"valuePL(J12,'Utility Functions'!$Q$3:$Q$6,'Utility Functions'!$R$3:$R$6)","v":0.91818181818181821},{"$f":"valuePL(K12,'Utility Functions'!$S$3:$S$7,'Utility Functions'!$T$3:$T$7)","v":0.54181818181818187},{"$f":"valueE(L12,'Utility Functions'!$V$3,'Utility Functions'!$V$4,'Utility Functions'!$V$5,'Utility Functions'!$V$6)","v":1},{"$f":"valuePL(M12,'Utility Functions'!$W$3:$W$6,'Utility Functions'!$X$3:$X$6)","v":0.91818181818181821},{"$f":"valueE(N12,'Utility Functions'!$Z$3,'Utility Functions'!$Z$4,'Utility Functions'!$Z$5,'Utility Functions'!$Z$6)","v":0.375},{"$f":"valuePL(O12,'Utility Functions'!$AA$3:$AA$5,'Utility Functions'!$AB$3:$AB$5)","v":0.25},{"$f":"valuePL(P12,'Utility Functions'!$AC$3:$AC$7,'Utility Functions'!$AD$3:$AD$7)","v":0.25},{"$f":"valuePL(Q12,'Utility Functions'!$AE$3:$AE$6,'Utility Functions'!$AF$3:$AF$6)","v":0},{"$f":"valuePL(R12,'Utility Functions'!$AG$3:$AG$6,'Utility Functions'!$AH$3:$AH$6)","v":1},{"$f":"valuePL(S12,'Utility Functions'!$AI$3:$AI$6,'Utility Functions'!$AJ$3:$AJ$6)","v":1},{"$f":"valuePL(T12,'Utility Functions'!$AK$3:$AK$8,'Utility Functions'!$AL$3:$AL$8)","v":0.4},{"$f":"valuePL(U12,'Utility Functions'!$AM$3:$AM$5,'Utility Functions'!$AN$3:$AN$5)","v":1},{"$f":"valuePL(V12,'Utility Functions'!$AO$3:$AO$5,'Utility Functions'!$AP$3:$AP$5)","v":1},{"$f":"valuePL(W12,'Utility Functions'!$AQ$3:$AQ$6,'Utility Functions'!$AR$3:$AR$6)","v":0.2},{"$f":"valuePL(X12,'Utility Functions'!$AS$3:$AS$6,'Utility Functions'!$AT$3:$AT$6)","v":1},{"$f":"valuePL(Y12,'Utility Functions'!$AU$3:$AU$6,'Utility Functions'!$AV$3:$AV$6)","v":1},{"$f":"valuePL(Z12,'Utility Functions'!$AW$3:$AW$5,'Utility Functions'!$AX$3:$AX$5)","v":0.5},{"$f":"valuePL(AA12,'Utility Functions'!$AY$3:$AY$6,'Utility Functions'!$AZ$3:$AZ$6)","v":0.89999999999999991},{"$f":"valuePL(AB12,'Utility Functions'!$BA$3:$BA$5,'Utility Functions'!$BB$3:$BB$5)","v":0},{"$f":"valuePL(AC12,'Utility Functions'!$BC$3:$BC$5,'Utility Functions'!$BD$3:$BD$5)","v":0.25},13.174032258064516,null,13.174032258064516,0,4.0490322580645159,0.625,3.65,4.8499999999999996]
[12,{"$f":"valueE(B13,'Utility Functions'!$B$3,'Utility Functions'!$B$4,'Utility Functions'!$B$5,'Utility Functions'!$B$6)","v":0.32968045347775865},{"$f":"valueE(C13,'Utility Functions'!$D$3,'Utility Functions'!$D$4,'Utility Functions'!$D$5,'Utility Functions'!$D$6)","v":0.78989979019422951},{"$f":"valuePL(D13,'Utility Functions'!$E$3:$E$5,'Utility Functions'!$F$3:$F$5)","v":1},{"$f":"valuePL(E13,'Utility Functions'!$G$3:$G$5,'Utility Functions'!$H$3:$H$5)","v":0.5},{"$f":"valuePL(F13,'Utility Functions'!$I$3:$I$4,'Utility Functions'!$J$3:$J$5)","v":0},{"$f":"valueE(G13,'Utility Functions'!$L$3,'Utility Functions'!$L$4,'Utility Functions'!$L$5,'Utility Functions'!$L$6)","v":0},{"$f":"valueE(H13,'Utility Functions'!$N$3,'Utility Functions'!$N$4,'Utility Functions'!$N$5,'Utility Functions'!$N$6)","v":0},{"$f":"valuePL(I13,'Utility Functions'!$O$3:$O$6,'Utility Functions'!$P$3:$P$6)","v":0},{"$f":"valuePL(J13,'Utility Functions'!$Q$3:$Q$6,'Utility Functions'!$R$3:$R$6)","v":0},{"$f":"valuePL(K13,'Utility Functions'!$S$3:$S$7,'Utility Functions'!$T$3:$T$7)","v":0},{"$f":"valueE(L13,'Utility Functions'!$V$3,'Utility Functions'!$V$4,'Utility Functions'!$V$5,'Utility Functions'!$V$6)","v":0},{"$f":"valuePL(M13,'Utility Functions'!$W$3:$W$6,'Utility Functions'!$X$3:$X$6)","v":0},{"$f":"valueE(N13,'Utility Functions'!$Z$3,'Utility Functions'!$Z$4,'Utility Functions'!$Z$5,'Utility Functions'!$Z$6)","v":0},{"$f":"valuePL(O13,'Utility Functions'!$AA$3:$AA$5,'Utility Functions'!$AB$3:$AB$5)","v":0},{"$f":"valuePL(P13,'Utility Functions'!$AC$3:$AC$7,'Utility Functions'!$AD$3:$AD$7)","v":0},{"$f":"valuePL(Q13,'Utility Functions'!$AE$3:$AE$6,'Utility Functions'!$AF$3:$AF$6)","v":0.1},{"$f":"valuePL(R13,'Utility Functions'!$AG$3:$AG$6,'Utility Functions'!$AH$3:$AH$6)","v":1},{"$f":"valuePL(S13,'Utility Functions'!$AI$3:$AI$6,'Utility Functions'!$AJ$3:$AJ$6)","v":1},{"$f":"valuePL(T13,'Utility Functions'!$AK$3:$AK$8,'Utility Functions'!$AL$3:$AL$8)","v":0.6},{"$f":"valuePL(U13,'Utility Functions'!$AM$3:$AM$5,'Utility Functions'!$AN$3:$AN$5)","v":0},{"$f":"valuePL(V13,'Utility Functions'!$AO$3:$AO$5,'Utility Functions'!$AP$3:$AP$5)","v":0.5},{"$f":"valuePL(W13,'Utility Functions'!$AQ$3:$AQ$6,'Utility Functions'!$AR$3:$AR$6)","v":0.2},{"$f":"valuePL(X13,'Utility Functions'!$AS$3:$AS$6,'Utility Functions'!$AT$3:$AT$6)","v":1},{"$f":"valuePL(Y13,'Utility Functions'!$AU$3:$AU$6,'Utility Functions'!$AV$3:$AV$6)","v":0.2},{"$f":"valuePL(Z13,'Utility Functions'!$AW$3:$AW$5,'Utility Functions'!$AX$3:$AX$5)","v":1},{"$f":"valuePL(AA13,'Utility Functions'!$AY$3:$AY$6,'Utility Functions'!$AZ$3:$AZ$6)","v":0.2},{"$f":"valuePL(AB13,'Utility Functions'!$BA$3:$BA$5,'Utility Functions'!$BB$3:$BB$5)","v":1},{"$f":"valuePL(AC13,'Utility Functions'!$BC$3:$BC$5,'Utility Functions'!$BD$3:$BD$5)","v":0},9.4195802436719873,null,9.4195802436719873,2.6195802436719884,0,0,2.7,4.0999999999999996]
[13,{"$f":"valueE(B14,'Utility Functions'!$B$3,'Utility Functions'!$B$4,'Utility Functions'!$B$5,'Utility Functions'!$B$6)","v":0},{"$f":"valueE(C14,'Utility Functions'!$D$3,'Utility Functions'!$D$4,'Utility Functions'!$D$5,'Utility Functions'!$D$6)","v":0},{"$f":"valuePL(D14,'Utility Functions'!$E$3:$E$5,'Utility Functions'!$F$3:$F$5)","v":0},{"$f":"valuePL(E14,'Utility Functions'!$G$3:$G$5,'Utility Functions'!$H$3:$H$5)","v":0},{"$f":"valuePL(F14,'Utility Functions'!$I$3:$I$4,'Utility Functions'!$J$3:$J$5)","v":0},{"$f":"valueE(G14,'Utility Functions'!$L$3,'Utility Functions'!$L$4,'Utility Functions'!$L$5,'Utility Functions'!$L$6)","v":0},{"$f":"valueE(H14,'Utility Functions'!$N$3,'Utility Functions'!$N$4,'Utility Functions'!$N$5,'Utility Functions'!$N$6)","v":1.1385199240986717E-2},{"$f":"valuePL(I14,'Utility Functions'!$O$3:$O$6,'Utility Functions'!$P$3:$P$6)","v":0.3290909090909091},{"$f":"valuePL(J14,'Utility Functions'!$Q$3:$Q$6,'Utility Functions'!$R$3:$R$6)","v":0.04},{"$f":"valuePL(K14,'Utility Functions'!$S$3:$S$7,'Utility Functions'!$T$3:$T$7)","v":0.3290909090909091},{"$f":"valueE(L14,'Utility Functions'!$V$3,'Utility Functions'!$V$4,'Utility Functions'!$V$5,'Utility Functions'!$V$6)","v":1},{"$f":"valuePL(M14,'Utility Functions'!$W$3:$W$6,'Utility Functions'!$X$3:$X$6)","v":0.04},{"$f":"valueE(N14,'Utility Functions'!$Z$3,'Utility Functions'!$Z$4,'Utility Functions'!$Z$5,'Utility Functions'!$Z$6)","v":0.875},{"$f":"valuePL(O14,'Utility Functions'!$AA$3:$AA$5,'Utility Functions'!$AB$3:$AB$5)","v":0.25},{"$f":"valuePL(P14,'Utility Functions'!$AC$3:$AC$7,'Utility Functions'!$AD$3:$AD$7)","v":0.25},{"$f":"valuePL(Q14,'Utility Functions'!$AE$3:$AE$6,'Utility Functions'!$AF$3:$AF$6)","v":0},{"$f":"valuePL(R14,'Utility Functions'!$AG$3:$AG$6,'Utility Functions'!$AH$3:$AH$6)","v":1},{"$f":"valuePL(S14,'Utility Functions'!$AI$3:$AI$6,'Utility Functions'!$AJ$3:$AJ$6)","v":1},{"$f":"valuePL(T14,'Utility Functions'!$AK$3:$AK$8,'Utility Functions'!$AL$3:$AL$8)","v":0},{"$f":"valuePL(U14,'Utility Functions'!$AM$3:$AM$5,'Utility Functions'!$AN$3:$AN$5)","v":0},{"$f":"valuePL(V14,'Utility Functions'!$AO$3:$AO$5,'Utility Functions'!$AP$3:$AP$5)","v":0.5},{"$f":"valuePL(W14,'Utility Functions'!$AQ$3:$AQ$6,'Utility Functions'!$AR$3:$AR$6)","v":0},{"$f":"valuePL(X14,'Utility Functions'!$AS$3:$AS$6,'Utility Functions'!$AT$3:$AT$6)","v":0.2},{"$f":"valuePL(Y14,'Utility Functions'!$AU$3:$AU$6,'Utility Functions'!$AV$3:$AV$6)","v":0},{"$f":"valuePL(Z14,'Utility Functions'!$AW$3:$AW$5,'Utility Functions'!$AX$3:$AX$5)","v":1},{"$f":"valuePL(AA14,'Utility Functions'!$AY$3:$AY$6,'Utility Functions'!$AZ$3:$AZ$6)","v":0.2},{"$f":"valuePL(AB14,'Utility Functions'!$BA$3:$BA$5,'Utility Functions'!$BB$3:$BB$5)","v":0.25},{"$f":"valuePL(AC14,'Utility Functions'!$BC$3:$BC$5,'Utility Functions'!$BD$3:$BD$5)","v":0.25},7.5245670174228056,null,7.5245670174228056,0,1.7495670174228048,1.125,2.25,2.4]
[14,{"$f":"valueE(B15,'Utility Functions'!$B$3,'Utility Functions'!$B$4,'Utility Functions'!$B$5,'Utility Functions'!$B$6)","v":0.69880684688087746},{"$f":"valueE(C15,'Utility Functions'!$D$3,'Utility Functions'!$D$4,'Utility Functions'!$D$5,'Utility Functions'!$D$6)","v":0.78989979019422951},{"$f":"valuePL(D15,'Utility Functions'!$E$3:$E$5,'Utility Functions'!$F$3:$F$5)","v":0.5},{"$f":"valuePL(E15,'Utility Functions'!$G$3:$G$5,'Utility Functions'!$H$3:$H$5)","v":0.5},{"$f":"valuePL(F15,'Utility Functions'!$I$3:$I$4,'Utility Functions'!$J$3:$J$5)","v":0},{"$f":"valueE(G15,'Utility Functions'!$L$3,'Utility Functions'!$L$4,'Utility Functions'!$L$5,'Utility Functions'!$L$6)","v":0},{"$f":"valueE(H15,'Utility Functions'!$N$3,'Utility Functions'!$N$4,'Utility Functions'!$N$5,'Utility Functions'!$N$6)","v":0},{"$f":"valuePL(I15,'Utility Functions'!$O$3:$O$6,'Utility Functions'!$P$3:$P$6)","v":0},{"$f":"valuePL(J15,'Utility Functions'!$Q$3:$Q$6,'Utility Functions'!$R$3:$R$6)","v":0},{"$f":"valuePL(K15,'Utility Functions'!$S$3:$S$7,'Utility Functions'!$T$3:$T$7)","v":0},{"$f":"valueE(L15,'Utility Functions'!$V$3,'Utility Functions'!$V$4,'Utility Functions'!$V$5,'Utility Functions'!$V$6)","v":0},{"$f":"valuePL(M15,'Utility Functions'!$W$3:$W$6,'Utility Functions'!$X$3:$X$6)","v":0},{"$f":"valueE(N15,'Utility Functions'!$Z$3,'Utility Functions'!$Z$4,'Utility Functions'!$Z$5,'Utility Functions'!$Z$6)","v":0.75},{"$f":"valuePL(O15,'Utility Functions'!$AA$3:$AA$5,'Utility Functions'!$AB$3:$AB$5)","v":0.25},{"$f":"valuePL(P15,'Utility Functions'!$AC$3:$AC$7,'Utility Functions'!$AD$3:$AD$7)","v":0.25},{"$f":"valuePL(Q15,'Utility Functions'!$AE$3:$AE$6,'Utility Functions'!$AF$3:$AF$6)","v":0},{"$f":"valuePL(R15,'Utility Functions'!$AG$3:$AG$6,'Utility Functions'!$AH$3:$AH$6)","v":1},{"$f":"valuePL(S15,'Utility Functions'!$AI$3:$AI$6,'Utility Functions'!$AJ$3:$AJ$6)","v":1},{"$f":"valuePL(T15,'Utility Functions'!$AK$3:$AK$8,'Utility Functions'!$AL$3:$AL$8)","v":0},{"$f":"valuePL(U15,'Utility Functions'!$AM$3:$AM$5,'Utility Functions'!$AN$3:$AN$5)","v":0},{"$f":"valuePL(V15,'Utility Functions'!$AO$3:$AO$5,'Utility Functions'!$AP$3:$AP$5)","v":0.5},{"$f":"valuePL(W15,'Utility Functions'!$AQ$3:$AQ$6,'Utility Functions'!$AR$3:$AR$6)","v":0.2},{"$f":"valuePL(X15,'Utility Functions'!$AS$3:$AS$6,'Utility Functions'!$AT$3:$AT$6)","v":1},{"$f":"valuePL(Y15,'Utility Functions'!$AU$3:$AU$6,'Utility Functions'!$AV$3:$AV$6)","v":1},{"$f":"valuePL(Z15,'Utility Functions'!$AW$3:$AW$5,'Utility Functions'!$AX$3:$AX$5)","v":0.5},{"$f":"valuePL(AA15,'Utility Functions'!$AY$3:$AY$6,'Utility Functions'!$AZ$3:$AZ$6)","v":0.89999999999999991},{"$f":"valuePL(AB15,'Utility Functions'!$BA$3:$BA$5,'Utility Functions'!$BB$3:$BB$5)","v":0.25},{"$f":"valuePL(AC15,'Utility Functions'!$BC$3:$BC$5,'Utility Functions'!$BD$3:$BD$5)","v":0.25},10.338706637075108,null,10.338706637075106,2.488706637075107,0,1,2.25,4.5999999999999996]
[15,{"$f":"valueE(B16,'Utility Functions'!$B$3,'Utility Functions'!$B$4,'Utility Functions'!$B$5,'Utility Functions'!$B$6)","v":0.98994966417177144},{"$f":"valueE(C16,'Utility Functions'!$D$3,'Utility Functions'!$D$4,'Utility Functions'!$D$5,'Utility Functions'!$D$6)","v":0.71352759724260828},{"$f":"valuePL(D16,'Utility Functions'!$E$3:$E$5,'Utility Functions'!$F$3:$F$5)","v":1},{"$f":"valuePL(E16,'Utility Functions'!$G$3:$G$5,'Utility Functions'!$H$3:$H$5)","v":0.5},{"$f":"valuePL(F16,'Utility Functions'!$I$3:$I$4,'Utility Functions'!$J$3:$J$5)","v":1},{"$f":"valueE(G16,'Utility Functions'!$L$3,'Utility Functions'!$L$4,'Utility Functions'!$L$5,'Utility Functions'!$L$6)","v":0},{"$f":"valueE(H16,'Utility Functions'!$N$3,'Utility Functions'!$N$4,'Utility Functions'!$N$5,'Utility Functions'!$N$6)","v":0},{"$f":"valuePL(I16,'Utility Functions'!$O$3:$O$6,'Utility Functions'!$P$3:$P$6)","v":9.2000000000000012E-2},{"$f":"valuePL(J16,'Utility Functions'!$Q$3:$Q$6,'Utility Functions'!$R$3:$R$6)","v":6.0000000000000012E-2},{"$f":"valuePL(K16,'Utility Functions'!$S$3:$S$7,'Utility Functions'!$T$3:$T$7)","v":6.0000000000000012E-2},{"$f":"valueE(L16,'Utility Functions'!$V$3,'Utility Functions'!$V$4,'Utility Functions'!$V$5,'Utility Functions'!$V$6)","v":1},{"$f":"valuePL(M16,'Utility Functions'!$W$3:$W$6,'Utility Functions'!$X$3:$X$6)","v":6.0000000000000012E-2},{"$f":"valueE(N16,'Utility Functions'!$Z$3,'Utility Functions'!$Z$4,'Utility Functions'!$Z$5,'Utility Functions'!$Z$6)","v":0.125},{"$f":"valuePL(O16,'Utility Functions'!$AA$3:$AA$5,'Utility Functions'!$AB$3:$AB$5)","v":1},{"$f":"valuePL(P16,'Utility Functions'!$AC$3:$AC$7,'Utility Functions'!$AD$3:$AD$7)","v":0.5},{"$f":"valuePL(Q16,'Utility Functions'!$AE$3:$AE$6,'Utility Functions'!$AF$3:$AF$6)","v":0},{"$f":"valuePL(R16,'Utility Functions'!$AG$3:$AG$6,'Utility Functions'!$AH$3:$AH$6)","v":0.8},{"$f":"valuePL(S16,'Utility Functions'!$AI$3:$AI$6,'Utility Functions'!$AJ$3:$AJ$6)","v":1},{"$f":"valuePL(T16,'Utility Functions'!$AK$3:$AK$8,'Utility Functions'!$AL$3:$AL$8)","v":0.6},{"$f":"valuePL(U16,'Utility Functions'!$AM$3:$AM$5,'Utility Functions'!$AN$3:$AN$5)","v":1},{"$f":"valuePL(V16,'Utility Functions'!$AO$3:$AO$5,'Utility Functions'!$AP$3:$AP$5)","v":0},{"$f":"valuePL(W16,'Utility Functions'!$AQ$3:$AQ$6,'Utility Functions'!$AR$3:$AR$6)","v":1},{"$f":"valuePL(X16,'Utility Functions'!$AS$3:$AS$6,'Utility Functions'!$AT$3:$AT$6)","v":0.2},{"$f":"valuePL(Y16,'Utility Functions'!$AU$3:$AU$6,'Utility Functions'!$AV$3:$AV$6)","v":0.2},{"$f":"valuePL(Z16,'Utility Functions'!$AW$3:$AW$5,'Utility Functions'!$AX$3:$AX$5)","v":1},{"$f":"valuePL(AA16,'Utility Functions'!$AY$3:$AY$6,'Utility Functions'!$AZ$3:$AZ$6)","v":1},{"$f":"valuePL(AB16,'Utility Functions'!$BA$3:$BA$5,'Utility Functions'!$BB$3:$BB$5)","v":1},{"$f":"valuePL(AC16,'Utility Functions'!$BC$3:$BC$5,'Utility Functions'!$BD$3:$BD$5)","v":0.25},15.150477261414375,null,15.15047726141438,4.2034772614143794,1.272,1.125,3.9,4.6500000000000004]
[16,{"$f":"valueE(B17,'Utility Functions'!$B$3,'Utility Functions'!$B$4,'Utility Functions'!$B$5,'Utility Functions'!$B$6)","v":0},{"$f":"valueE(C17,'Utility Functions'!$D$3,'Utility Functions'!$D$4,'Utility Functions'!$D$5,'Utility Functions'!$D$6)","v":0},{"$f":"valuePL(D17,'Utility Functions'!$E$3:$E$5,'Utility Functions'!$F$3:$F$5)","v":0},{"$f":"valuePL(E17,'Utility Functions'!$G$3:$G$5,'Utility Functions'!$H$3:$H$5)","v":0},{"$f":"valuePL(F17,'Utility Functions'!$I$3:$I$4,'Utility Functions'!$J$3:$J$5)","v":0},{"$f":"valueE(G17,'Utility Functions'!$L$3,'Utility Functions'!$L$4,'Utility Functions'!$L$5,'Utility Functions'!$L$6)","v":0},{"$f":"valueE(H17,'Utility Functions'!$N$3,'Utility Functions'!$N$4,'Utility Functions'!$N$5,'Utility Functions'!$N$6)","v":0},{"$f":"valuePL(I17,'Utility Functions'!$O$3:$O$6,'Utility Functions'!$P$3:$P$6)","v":1},{"$f":"valuePL(J17,'Utility Functions'!$Q$3:$Q$6,'Utility Functions'!$R$3:$R$6)","v":0.91818181818181821},{"$f":"valuePL(K17,'Utility Functions'!$S$3:$S$7,'Utility Functions'!$T$3:$T$7)","v":1},{"$f":"valueE(L17,'Utility Functions'!$V$3,'Utility Functions'!$V$4,'Utility Functions'!$V$5,'Utility Functions'!$V$6)","v":0.83333333333333337},{"$f":"valuePL(M17,'Utility Functions'!$W$3:$W$6,'Utility Functions'!$X$3:$X$6)","v":0.91818181818181821},{"$f":"valueE(N17,'Utility Functions'!$Z$3,'Utility Functions'!$Z$4,'Utility Functions'!$Z$5,'Utility Functions'!$Z$6)","v":0},{"$f":"valuePL(O17,'Utility Functions'!$AA$3:$AA$5,'Utility Functions'!$AB$3:$AB$5)","v":0},{"$f":"valuePL(P17,'Utility Functions'!$AC$3:$AC$7,'Utility Functions'!$AD$3:$AD$7)","v":0.75},{"$f":"valuePL(Q17,'Utility Functions'!$AE$3:$AE$6,'Utility Functions'!$AF$3:$AF$6)","v":0},{"$f":"valuePL(R17,'Utility Functions'!$AG$3:$AG$6,'Utility Functions'!$AH$3:$AH$6)","v":1},{"$f":"valuePL(S17,'Utility Functions'!$AI$3:$AI$6,'Utility Functions'!$AJ$3:$AJ$6)","v":1},{"$f":"valuePL(T17,'Utility Functions'!$AK$3:$AK$8,'Utility Functions'!$AL$3:$AL$8)","v":1},{"$f":"valuePL(U17,'Utility Functions'!$AM$3:$AM$5,'Utility Functions'!$AN$3:$AN$5)","v":0},{"$f":"valuePL(V17,'Utility Functions'!$AO$3:$AO$5,'Utility Functions'!$AP$3:$AP$5)","v":1},{"$f":"valuePL(W17,'Utility Functions'!$AQ$3:$AQ$6,'Utility Functions'!$AR$3:$AR$6)","v":0.75},{"$f":"valuePL(X17,'Utility Functions'!$AS$3:$AS$6,'Utility Functions'!$AT$3:$AT$6)","v":0.75},{"$f":"valuePL(Y17,'Utility Functions'!$AU$3:$AU$6,'Utility Functions'!$AV$3:$AV$6)","v":0.2},{"$f":"valuePL(Z17,'Utility Functions'!$AW$3:$AW$5,'Utility Functions'!$AX$3:$AX$5)","v":1},{"$f":"valuePL(AA17,'Utility Functions'!$AY$3:$AY$6,'Utility Functions'!$AZ$3:$AZ$6)","v":1},{"$f":"valuePL(AB17,'Utility Functions'!$BA$3:$BA$5,'Utility Functions'!$BB$3:$BB$5)","v":1},{"$f":"valuePL(AC17,'Utility Functions'!$BC$3:$BC$5,'Utility Functions'!$BD$3:$BD$5)","v":1},15.119696969696969,null,15.119696969696971,0,4.6696969696969699,0,3.75,6.7]
[17,{"$f":"valueE(B18,'Utility Functions'!$B$3,'Utility Functions'!$B$4,'Utility Functions'!$B$5,'Utility Functions'!$B$6)","v":0.32968045347775865},{"$f":"valueE(C18,'Utility Functions'!$D$3,'Utility Functions'!$D$4,'Utility Functions'!$D$5,'Utility Functions'!$D$6)","v":0.78989979019422951},{"$f":"valuePL(D18,'Utility Functions'!$E$3:$E$5,'Utility Functions'!$F$3:$F$5)","v":1},{"$f":"valuePL(E18,'Utility Functions'!$G$3:$G$5,'Utility Functions'!$H$3:$H$5)","v":0.5},{"$f":"valuePL(F18,'Utility Functions'!$I$3:$I$4,'Utility Functions'!$J$3:$J$5)","v":1},{"$f":"valueE(G18,'Utility Functions'!$L$3,'Utility Functions'!$L$4,'Utility Functions'!$L$5,'Utility Functions'!$L$6)","v":0.31182795698924731},{"$f":"valueE(H18,'Utility Functions'!$N$3,'Utility Functions'!$N$4,'Utility Functions'!$N$5,'Utility Functions'!$N$6)","v":0.27514231499051234},{"$f":"valuePL(I18,'Utility Functions'!$O$3:$O$6,'Utility Functions'!$P$3:$P$6)","v":0},{"$f":"valuePL(J18,'Utility Functions'!$Q$3:$Q$6,'Utility Functions'!$R$3:$R$6)","v":0},{"$f":"valuePL(K18,'Utility Functions'!$S$3:$S$7,'Utility Functions'!$T$3:$T$7)","v":0},{"$f":"valueE(L18,'Utility Functions'!$V$3,'Utility Functions'!$V$4,'Utility Functions'!$V$5,'Utility Functions'!$V$6)","v":1},{"$f":"valuePL(M18,'Utility Functions'!$W$3:$W$6,'Utility Functions'!$X$3:$X$6)","v":6.0000000000000012E-2},{"$f":"valueE(N18,'Utility Functions'!$Z$3,'Utility Functions'!$Z$4,'Utility Functions'!$Z$5,'Utility Functions'!$Z$6)","v":0},{"$f":"valuePL(O18,'Utility Functions'!$AA$3:$AA$5,'Utility Functions'!$AB$3:$AB$5)","v":0},{"$f":"valuePL(P18,'Utility Functions'!$AC$3:$AC$7,'Utility Functions'!$AD$3:$AD$7)","v":0},{"$f":"valuePL(Q18,'Utility Functions'!$AE$3:$AE$6,'Utility Functions'!$AF$3:$AF$6)","v":0},{"$f":"valuePL(R18,'Utility Functions'!$AG$3:$AG$6,'Utility Functions'!$AH$3:$AH$6)","v":1},{"$f":"valuePL(S18,'Utility Functions'!$AI$3:$AI$6,'Utility Functions'!$AJ$3:$AJ$6)","v":0.66},{"$f":"valuePL(T18,'Utility Functions'!$AK$3:$AK$8,'Utility Functions'!$AL$3:$AL$8)","v":0},{"$f":"valuePL(U18,'Utility Functions'!$AM$3:$AM$5,'Utility Functions'!$AN$3:$AN$5)","v":0},{"$f":"valuePL(V18,'Utility Functions'!$AO$3:$AO$5,'Utility Functions'!$AP$3:$AP$5)","v":1},{"$f":"valuePL(W18,'Utility Functions'!$AQ$3:$AQ$6,'Utility Functions'!$AR$3:$AR$6)","v":1},{"$f":"valuePL(X18,'Utility Functions'!$AS$3:$AS$6,'Utility Functions'!$AT$3:$AT$6)","v":0.2},{"$f":"valuePL(Y18,'Utility Functions'!$AU$3:$AU$6,'Utility Functions'!$AV$3:$AV$6)","v":0},{"$f":"valuePL(Z18,'Utility Functions'!$AW$3:$AW$5,'Utility Functions'!$AX$3:$AX$5)","v":0.5},{"$f":"valuePL(AA18,'Utility Functions'!$AY$3:$AY$6,'Utility Functions'!$AZ$3:$AZ$6)","v":0},{"$f":"valuePL(AB18,'Utility Functions'!$BA$3:$BA$5,'Utility Functions'!$BB$3:$BB$5)","v":1},{"$f":"valuePL(AC18,'Utility Functions'!$BC$3:$BC$5,'Utility Functions'!$BD$3:$BD$5)","v":0.25},10.876550515651747,null,10.876550515651747,3.6195802436719884,1.6469702719797596,0,1.6600000000000001,3.95]
[18,{"$f":"valueE(B19,'Utility Functions'!$B$3,'Utility Functions'!$B$4,'Utility Functions'!$B$5,'Utility Functions'!$B$6)","v":0},{"$f":"valueE(C19,'Utility Functions'!$D$3,'Utility Functions'!$D$4,'Utility Functions'!$D$5,'Utility Functions'!$D$6)","v":0},{"$f":"valuePL(D19,'Utility Functions'!$E$3:$E$5,'Utility Functions'!$F$3:$F$5)","v":0},{"$f":"valuePL(E19,'Utility Functions'!$G$3:$G$5,'Utility Functions'!$H$3:$H$5)","v":0},{"$f":"valuePL(F19,'Utility Functions'!$I$3:$I$4,'Utility Functions'!$J$3:$J$5)","v":0},{"$f":"valueE(G19,'Utility Functions'!$L$3,'Utility Functions'!$L$4,'Utility Functions'!$L$5,'Utility Functions'!$L$6)","v":0},{"$f":"valueE(H19,'Utility Functions'!$N$3,'Utility Functions'!$N$4,'Utility Functions'!$N$5,'Utility Functions'!$N$6)","v":2.8462998102466792E-2},{"$f":"valuePL(I19,'Utility Functions'!$O$3:$O$6,'Utility Functions'!$P$3:$P$6)","v":0},{"$f":"valuePL(J19,'Utility Functions'!$Q$3:$Q$6,'Utility Functions'!$R$3:$R$6)","v":0},{"$f":"valuePL(K19,'Utility Functions'!$S$3:$S$7,'Utility Functions'!$T$3:$T$7)","v":0},{"$f":"valueE(L19,'Utility Functions'!$V$3,'Utility Functions'!$V$4,'Utility Functions'!$V$5,'Utility Functions'!$V$6)","v":0},{"$f":"valuePL(M19,'Utility Functions'!$W$3:$W$6,'Utility Functions'!$X$3:$X$6)","v":0},{"$f":"valueE(N19,'Utility Functions'!$Z$3,'Utility Functions'!$Z$4,'Utility Functions'!$Z$5,'Utility Functions'!$Z$6)","v":1},{"$f":"valuePL(O19,'Utility Functions'!$AA$3:$AA$5,'Utility Functions'!$AB$3:$AB$5)","v":0.25},{"$f":"valuePL(P19,'Utility Functions'!$AC$3:$AC$7,'Utility Functions'!$AD$3:$AD$7)","v":0.25},{"$f":"valuePL(Q19,'Utility Functions'!$AE$3:$AE$6,'Utility Functions'!$AF$3:$AF$6)","v":1},{"$f":"valuePL(R19,'Utility Functions'!$AG$3:$AG$6,'Utility Functions'!$AH$3:$AH$6)","v":1},{"$f":"valuePL(S19,'Utility Functions'!$AI$3:$AI$6,'Utility Functions'!$AJ$3:$AJ$6)","v":1},{"$f":"valuePL(T19,'Utility Functions'!$AK$3:$AK$8,'Utility Functions'!$AL$3:$AL$8)","v":1},{"$f":"valuePL(U19,'Utility Functions'!$AM$3:$AM$5,'Utility Functions'!$AN$3:$AN$5)","v":0.25},{"$f":"valuePL(V19,'Utility Functions'!$AO$3:$AO$5,'Utility Functions'!$AP$3:$AP$5)","v":1},{"$f":"valuePL(W19,'Utility Functions'!$AQ$3:$AQ$6,'Utility Functions'!$AR$3:$AR$6)","v":0.75},{"$f":"valuePL(X19,'Utility Functions'!$AS$3:$AS$6,'Utility Functions'!$AT$3:$AT$6)","v":0.2},{"$f":"valuePL(Y19,'Utility Functions'!$AU$3:$AU$6,'Utility Functions'!$AV$3:$AV$6)","v":0.8},{"$f":"valuePL(Z19,'Utility Functions'!$AW$3:$AW$5,'Utility Functions'!$AX$3:$AX$5)","v":0.5},{"$f":"valuePL(AA19,'Utility Functions'!$AY$3:$AY$6,'Utility Functions'!$AZ$3:$AZ$6)","v":0.89999999999999991},{"$f":"valuePL(AB19,'Utility Functions'!$BA$3:$BA$5,'Utility Functions'!$BB$3:$BB$5)","v":0.25},{"$f":"valuePL(AC19,'Utility Functions'!$BC$3:$BC$5,'Utility Functions'!$BD$3:$BD$5)","v":0},10.178462998102468,null,10.178462998102468,0,2.8462998102466792E-2,1.25,4.5,4.4000000000000004]
[19,{"$f":"valueE(B20,'Utility Functions'!$B$3,'Utility Functions'!$B$4,'Utility Functions'!$B$5,'Utility Functions'!$B$6)","v":0.79810469124896843},{"$f":"valueE(C20,'Utility Functions'!$D$3,'Utility Functions'!$D$4,'Utility Functions'!$D$5,'Utility Functions'!$D$6)","v":0.26839655623815994},{"$f":"valuePL(D20,'Utility Functions'!$E$3:$E$5,'Utility Functions'!$F$3:$F$5)","v":0.5},{"$f":"valuePL(E20,'Utility Functions'!$G$3:$G$5,'Utility Functions'!$H$3:$H$5)","v":1},{"$f":"valuePL(F20,'Utility Functions'!$I$3:$I$4,'Utility Functions'!$J$3:$J$5)","v":0},{"$f":"valueE(G20,'Utility Functions'!$L$3,'Utility Functions'!$L$4,'Utility Functions'!$L$5,'Utility Functions'!$L$6)","v":0},{"$f":"valueE(H20,'Utility Functions'!$N$3,'Utility Functions'!$N$4,'Utility Functions'!$N$5,'Utility Functions'!$N$6)","v":0},{"$f":"valuePL(I20,'Utility Functions'!$O$3:$O$6,'Utility Functions'!$P$3:$P$6)","v":0},{"$f":"valuePL(J20,'Utility Functions'!$Q$3:$Q$6,'Utility Functions'!$R$3:$R$6)","v":0},{"$f":"valuePL(K20,'Utility Functions'!$S$3:$S$7,'Utility Functions'!$T$3:$T$7)","v":0},{"$f":"valueE(L20,'Utility Functions'!$V$3,'Utility Functions'!$V$4,'Utility Functions'!$V$5,'Utility Functions'!$V$6)","v":0},{"$f":"valuePL(M20,'Utility Functions'!$W$3:$W$6,'Utility Functions'!$X$3:$X$6)","v":0},{"$f":"valueE(N20,'Utility Functions'!$Z$3,'Utility Functions'!$Z$4,'Utility Functions'!$Z$5,'Utility Functions'!$Z$6)","v":1},{"$f":"valuePL(O20,'Utility Functions'!$AA$3:$AA$5,'Utility Functions'!$AB$3:$AB$5)","v":1},{"$f":"valuePL(P20,'Utility Functions'!$AC$3:$AC$7,'Utility Functions'!$AD$3:$AD$7)","v":0},{"$f":"valuePL(Q20,'Utility Functions'!$AE$3:$AE$6,'Utility Functions'!$AF$3:$AF$6)","v":0},{"$f":"valuePL(R20,'Utility Functions'!$AG$3:$AG$6,'Utility Functions'!$AH$3:$AH$6)","v":0.8},{"$f":"valuePL(S20,'Utility Functions'!$AI$3:$AI$6,'Utility Functions'!$AJ$3:$AJ$6)","v":1},{"$f":"valuePL(T20,'Utility Functions'!$AK$3:$AK$8,'Utility Functions'!$AL$3:$AL$8)","v":0},{"$f":"valuePL(U20,'Utility Functions'!$AM$3:$AM$5,'Utility Functions'!$AN$3:$AN$5)","v":0},{"$f":"valuePL(V20,'Utility Functions'!$AO$3:$AO$5,'Utility Functions'!$AP$3:$AP$5)","v":0.5},{"$f":"valuePL(W20,'Utility Functions'!$AQ$3:$AQ$6,'Utility Functions'!$AR$3:$AR$6)","v":0.2},{"$f":"valuePL(X20,'Utility Functions'!$AS$3:$AS$6,'Utility Functions'!$AT$3:$AT$6)","v":1},{"$f":"valuePL(Y20,'Utility Functions'!$AU$3:$AU$6,'Utility Functions'!$AV$3:$AV$6)","v":0.8},{"$f":"valuePL(Z20,'Utility Functions'!$AW$3:$AW$5,'Utility Functions'!$AX$3:$AX$5)","v":0},{"$f":"valuePL(AA20,'Utility Functions'!$AY$3:$AY$6,'Utility Functions'!$AZ$3:$AZ$6)","v":0.2},{"$f":"valuePL(AB20,'Utility Functions'!$BA$3:$BA$5,'Utility Functions'!$BB$3:$BB$5)","v":0},{"$f":"valuePL(AC20,'Utility Functions'!$BC$3:$BC$5,'Utility Functions'!$BD$3:$BD$5)","v":0.25},9.3165012474871283,null,9.3165012474871283,2.5665012474871283,0,2,1.8,2.95]
[20,{"$f":"valueE(B21,'Utility Functions'!$B$3,'Utility Functions'!$B$4,'Utility Functions'!$B$5,'Utility Functions'!$B$6)","v":0.83470237647280454},{"$f":"valueE(C21,'Utility Functions'!$D$3,'Utility Functions'!$D$4,'Utility Functions'!$D$5,'Utility Functions'!$D$6)","v":0.78989979019422951},{"$f":"valuePL(D21,'Utility Functions'!$E$3:$E$5,'Utility Functions'!$F$3:$F$5)","v":0.5},{"$f":"valuePL(E21,'Utility Functions'!$G$3:$G$5,'Utility Functions'!$H$3:$H$5)","v":1},{"$f":"valuePL(F21,'Utility Functions'!$I$3:$I$4,'Utility Functions'!$J$3:$J$5)","v":0},{"$f":"valueE(G21,'Utility Functions'!$L$3,'Utility Functions'!$L$4,'Utility Functions'!$L$5,'Utility Functions'!$L$6)","v":0},{"$f":"valueE(H21,'Utility Functions'!$N$3,'Utility Functions'!$N$4,'Utility Functions'!$N$5,'Utility Functions'!$N$6)","v":0.41271347248576851},{"$f":"valuePL(I21,'Utility Functions'!$O$3:$O$6,'Utility Functions'!$P$3:$P$6)","v":0.93454545454545446},{"$f":"valuePL(J21,'Utility Functions'!$Q$3:$Q$6,'Utility Functions'!$R$3:$R$6)","v":0.50909090909090915},{"$f":"valuePL(K21,'Utility Functions'!$S$3:$S$7,'Utility Functions'!$T$3:$T$7)","v":0.93454545454545446},{"$f":"valueE(L21,'Utility Functions'!$V$3,'Utility Functions'!$V$4,'Utility Functions'!$V$5,'Utility Functions'!$V$6)","v":0.66666666666666663},{"$f":"valuePL(M21,'Utility Functions'!$W$3:$W$6,'Utility Functions'!$X$3:$X$6)","v":0.50909090909090915},{"$f":"valueE(N21,'Utility Functions'!$Z$3,'Utility Functions'!$Z$4,'Utility Functions'!$Z$5,'Utility Functions'!$Z$6)","v":1},{"$f":"valuePL(O21,'Utility Functions'!$AA$3:$AA$5,'Utility Functions'!$AB$3:$AB$5)","v":1},{"$f":"valuePL(P21,'Utility Functions'!$AC$3:$AC$7,'Utility Functions'!$AD$3:$AD$7)","v":0.25},{"$f":"valuePL(Q21,'Utility Functions'!$AE$3:$AE$6,'Utility Functions'!$AF$3:$AF$6)","v":0},{"$f":"valuePL(R21,'Utility Functions'!$AG$3:$AG$6,'Utility Functions'!$AH$3:$AH$6)","v":1},{"$f":"valuePL(S21,'Utility Functions'!$AI$3:$AI$6,'Utility Functions'!$AJ$3:$AJ$6)","v":1},{"$f":"valuePL(T21,'Utility Functions'!$AK$3:$AK$8,'Utility Functions'!$AL$3:$AL$8)","v":0.6},{"$f":"valuePL(U21,'Utility Functions'!$AM$3:$AM$5,'Utility Functions'!$AN$3:$AN$5)","v":1},{"$f":"valuePL(V21,'Utility Functions'!$AO$3:$AO$5,'Utility Functions'!$AP$3:$AP$5)","v":0.5},{"$f":"valuePL(W21,'Utility Functions'!$AQ$3:$AQ$6,'Utility Functions'!$AR$3:$AR$6)","v":0},{"$f":"valuePL(X21,'Utility Functions'!$AS$3:$AS$6,'Utility Functions'!$AT$3:$AT$6)","v":0},{"$f":"valuePL(Y21,'Utility Functions'!$AU$3:$AU$6,'Utility Functions'!$AV$3:$AV$6)","v":0.2},{"$f":"valuePL(Z21,'Utility Functions'!$AW$3:$AW$5,'Utility Functions'!$AX$3:$AX$5)","v":1},{"$f":"valuePL(AA21,'Utility Functions'!$AY$3:$AY$6,'Utility Functions'!$AZ$3:$AZ$6)","v":0.2},{"$f":"valuePL(AB21,'Utility Functions'!$BA$3:$BA$5,'Utility Functions'!$BB$3:$BB$5)","v":0},{"$f":"valuePL(AC21,'Utility Functions'!$BC$3:$BC$5,'Utility Functions'!$BD$3:$BD$5)","v":0.25},15.091255033092194,null,15.091255033092196,3.1246021666670343,3.9666528664251626,2,3.85,2.15]
[21,{"$f":"valueE(B22,'Utility Functions'!$B$3,'Utility Functions'!$B$4,'Utility Functions'!$B$5,'Utility Functions'!$B$6)","v":0},{"$f":"valueE(C22,'Utility Functions'!$D$3,'Utility Functions'!$D$4,'Utility Functions'!$D$5,'Utility Functions'!$D$6)","v":0},{"$f":"valuePL(D22,'Utility Functions'!$E$3:$E$5,'Utility Functions'!$F$3:$F$5)","v":0},{"$f":"valuePL(E22,'Utility Functions'!$G$3:$G$5,'Utility Functions'!$H$3:$H$5)","v":0},{"$f":"valuePL(F22,'Utility Functions'!$I$3:$I$4,'Utility Functions'!$J$3:$J$5)","v":0},{"$f":"valueE(G22,'Utility Functions'!$L$3,'Utility Functions'!$L$4,'Utility Functions'!$L$5,'Utility Functions'!$L$6)","v":0},{"$f":"valueE(H22,'Utility Functions'!$N$3,'Utility Functions'!$N$4,'Utility Functions'!$N$5,'Utility Functions'!$N$6)","v":0},{"$f":"valuePL(I22,'Utility Functions'!$O$3:$O$6,'Utility Functions'!$P$3:$P$6)","v":0},{"$f":"valuePL(J22,'Utility Functions'!$Q$3:$Q$6,'Utility Functions'!$R$3:$R$6)","v":0},{"$f":"valuePL(K22,'Utility Functions'!$S$3:$S$7,'Utility Functions'!$T$3:$T$7)","v":0},{"$f":"valueE(L22,'Utility Functions'!$V$3,'Utility Functions'!$V$4,'Utility Functions'!$V$5,'Utility Functions'!$V$6)","v":0},{"$f":"valuePL(M22,'Utility Functions'!$W$3:$W$6,'Utility Functions'!$X$3:$X$6)","v":0},{"$f":"valueE(N22,'Utility Functions'!$Z$3,'Utility Functions'!$Z$4,'Utility Functions'!$Z$5,'Utility Functions'!$Z$6)","v":1},{"$f":"valuePL(O22,'Utility Functions'!$AA$3:$AA$5,'Utility Functions'!$AB$3:$AB$5)","v":1},{"$f":"valuePL(P22,'Utility Functions'!$AC$3:$AC$7,'Utility Functions'!$AD$3:$AD$7)","v":0},{"$f":"valuePL(Q22,'Utility Functions'!$AE$3:$AE$6,'Utility Functions'!$AF$3:$AF$6)","v":0.1},{"$f":"valuePL(R22,'Utility Functions'!$AG$3:$AG$6,'Utility Functions'!$AH$3:$AH$6)","v":1},{"$f":"valuePL(S22,'Utility Functions'!$AI$3:$AI$6,'Utility Functions'!$AJ$3:$AJ$6)","v":1},{"$f":"valuePL(T22,'Utility Functions'!$AK$3:$AK$8,'Utility Functions'!$AL$3:$AL$8)","v":1},{"$f":"valuePL(U22,'Utility Functions'!$AM$3:$AM$5,'Utility Functions'!$AN$3:$AN$5)","v":0.25},{"$f":"valuePL(V22,'Utility Functions'!$AO$3:$AO$5,'Utility Functions'!$AP$3:$AP$5)","v":0},{"$f":"valuePL(W22,'Utility Functions'!$AQ$3:$AQ$6,'Utility Functions'!$AR$3:$AR$6)","v":0.75},{"$f":"valuePL(X22,'Utility Functions'!$AS$3:$AS$6,'Utility Functions'!$AT$3:$AT$6)","v":1},{"$f":"valuePL(Y22,'Utility Functions'!$AU$3:$AU$6,'Utility Functions'!$AV$3:$AV$6)","v":0.2},{"$f":"valuePL(Z22,'Utility Functions'!$AW$3:$AW$5,'Utility Functions'!$AX$3:$AX$5)","v":0},{"$f":"valuePL(AA22,'Utility Functions'!$AY$3:$AY$6,'Utility Functions'!$AZ$3:$AZ$6)","v":1},{"$f":"valuePL(AB22,'Utility Functions'!$BA$3:$BA$5,'Utility Functions'!$BB$3:$BB$5)","v":0.25},{"$f":"valuePL(AC22,'Utility Functions'!$BC$3:$BC$5,'Utility Functions'!$BD$3:$BD$5)","v":1},9.5500000000000007,null,9.5500000000000007,0,0,2,3.35,4.2]
[22,{"$f":"valueE(B23,'Utility Functions'!$B$3,'Utility Functions'!$B$4,'Utility Functions'!$B$5,'Utility Functions'!$B$6)","v":0},{"$f":"valueE(C23,'Utility Functions'!$D$3,'Utility Functions'!$D$4,'Utility Functions'!$D$5,'Utility Functions'!$D$6)","v":0},{"$f":"valuePL(D23,'Utility Functions'!$E$3:$E$5,'Utility Functions'!$F$3:$F$5)","v":0},{"$f":"valuePL(E23,'Utility Functions'!$G$3:$G$5,'Utility Functions'!$H$3:$H$5)","v":0},{"$f":"valuePL(F23,'Utility Functions'!$I$3:$I$4,'Utility Functions'!$J$3:$J$5)","v":0},{"$f":"valueE(G23,'Utility Functions'!$L$3,'Utility Functions'!$L$4,'Utility Functions'!$L$5,'Utility Functions'!$L$6)","v":8.6021505376344093E-2},{"$f":"valueE(H23,'Utility Functions'!$N$3,'Utility Functions'!$N$4,'Utility Functions'!$N$5,'Utility Functions'!$N$6)","v":6.0721062618595827E-2},{"$f":"valuePL(I23,'Utility Functions'!$O$3:$O$6,'Utility Functions'!$P$3:$P$6)","v":0},{"$f":"valuePL(J23,'Utility Functions'!$Q$3:$Q$6,'Utility Functions'!$R$3:$R$6)","v":0},{"$f":"valuePL(K23,'Utility Functions'!$S$3:$S$7,'Utility Functions'!$T$3:$T$7)","v":0},{"$f":"valueE(L23,'Utility Functions'!$V$3,'Utility Functions'!$V$4,'Utility Functions'!$V$5,'Utility Functions'!$V$6)","v":0},{"$f":"valuePL(M23,'Utility Functions'!$W$3:$W$6,'Utility Functions'!$X$3:$X$6)","v":0},{"$f":"valueE(N23,'Utility Functions'!$Z$3,'Utility Functions'!$Z$4,'Utility Functions'!$Z$5,'Utility Functions'!$Z$6)","v":0.125},{"$f":"valuePL(O23,'Utility Functions'!$AA$3:$AA$5,'Utility Functions'!$AB$3:$AB$5)","v":1},{"$f":"valuePL(P23,'Utility Functions'!$AC$3:$AC$7,'Utility Functions'!$AD$3:$AD$7)","v":1},{"$f":"valuePL(Q23,'Utility Functions'!$AE$3:$AE$6,'Utility Functions'!$AF$3:$AF$6)","v":0.5},{"$f":"valuePL(R23,'Utility Functions'!$AG$3:$AG$6,'Utility Functions'!$AH$3:$AH$6)","v":0.8},{"$f":"valuePL(S23,'Utility Functions'!$AI$3:$AI$6,'Utility Functions'!$AJ$3:$AJ$6)","v":1},{"$f":"valuePL(T23,'Utility Functions'!$AK$3:$AK$8,'Utility Functions'!$AL$3:$AL$8)","v":1},{"$f":"valuePL(U23,'Utility Functions'!$AM$3:$AM$5,'Utility Functions'!$AN$3:$AN$5)","v":0},{"$f":"valuePL(V23,'Utility Functions'!$AO$3:$AO$5,'Utility Functions'!$AP$3:$AP$5)","v":0.5},{"$f":"valuePL(W23,'Utility Functions'!$AQ$3:$AQ$6,'Utility Functions'!$AR$3:$AR$6)","v":0.75},{"$f":"valuePL(X23,'Utility Functions'!$AS$3:$AS$6,'Utility Functions'!$AT$3:$AT$6)","v":0.2},{"$f":"valuePL(Y23,'Utility Functions'!$AU$3:$AU$6,'Utility Functions'!$AV$3:$AV$6)","v":0},{"$f":"valuePL(Z23,'Utility Functions'!$AW$3:$AW$5,'Utility Functions'!$AX$3:$AX$5)","v":1},{"$f":"valuePL(AA23,'Utility Functions'!$AY$3:$AY$6,'Utility Functions'!$AZ$3:$AZ$6)","v":0.2},{"$f":"valuePL(AB23,'Utility Functions'!$BA$3:$BA$5,'Utility Functions'!$BB$3:$BB$5)","v":1},{"$f":"valuePL(AC23,'Utility Functions'!$BC$3:$BC$5,'Utility Functions'!$BD$3:$BD$5)","v":0.25},9.471742567994939,null,9.4717425679949407,0,0.14674256799493993,1.125,4.3,3.9000000000000004]
[23,{"$f":"valueE(B24,'Utility Functions'!$B$3,'Utility Functions'!$B$4,'Utility Functions'!$B$5,'Utility Functions'!$B$6)","v":0.83470237647280454},{"$f":"valueE(C24,'Utility Functions'!$D$3,'Utility Functions'!$D$4,'Utility Functions'!$D$5,'Utility Functions'!$D$6)","v":0.84744836833951609},{"$f":"valuePL(D24,'Utility Functions'!$E$3:$E$5,'Utility Functions'!$F$3:$F$5)","v":1},{"$f":"valuePL(E24,'Utility Functions'!$G$3:$G$5,'Utility Functions'!$H$3:$H$5)","v":0},{"$f":"valuePL(F24,'Utility Functions'!$I$3:$I$4,'Utility Functions'!$J$3:$J$5)","v":0},{"$f":"valueE(G24,'Utility Functions'!$L$3,'Utility Functions'!$L$4,'Utility Functions'!$L$5,'Utility Functions'!$L$6)","v":0},{"$f":"valueE(H24,'Utility Functions'!$N$3,'Utility Functions'!$N$4,'Utility Functions'!$N$5,'Utility Functions'!$N$6)","v":0},{"$f":"valuePL(I24,'Utility Functions'!$O$3:$O$6,'Utility Functions'!$P$3:$P$6)","v":0},{"$f":"valuePL(J24,'Utility Functions'!$Q$3:$Q$6,'Utility Functions'!$R$3:$R$6)","v":0},{"$f":"valuePL(K24,'Utility Functions'!$S$3:$S$7,'Utility Functions'!$T$3:$T$7)","v":0},{"$f":"valueE(L24,'Utility Functions'!$V$3,'Utility Functions'!$V$4,'Utility Functions'!$V$5,'Utility Functions'!$V$6)","v":0},{"$f":"valuePL(M24,'Utility Functions'!$W$3:$W$6,'Utility Functions'!$X$3:$X$6)","v":0},{"$f":"valueE(N24,'Utility Functions'!$Z$3,'Utility Functions'!$Z$4,'Utility Functions'!$Z$5,'Utility Functions'!$Z$6)","v":0},{"$f":"valuePL(O24,'Utility Functions'!$AA$3:$AA$5,'Utility Functions'!$AB$3:$AB$5)","v":0},{"$f":"valuePL(P24,'Utility Functions'!$AC$3:$AC$7,'Utility Functions'!$AD$3:$AD$7)","v":0.75},{"$f":"valuePL(Q24,'Utility Functions'!$AE$3:$AE$6,'Utility Functions'!$AF$3:$AF$6)","v":0},{"$f":"valuePL(R24,'Utility Functions'!$AG$3:$AG$6,'Utility Functions'!$AH$3:$AH$6)","v":1},{"$f":"valuePL(S24,'Utility Functions'!$AI$3:$AI$6,'Utility Functions'!$AJ$3:$AJ$6)","v":1},{"$f":"valuePL(T24,'Utility Functions'!$AK$3:$AK$8,'Utility Functions'!$AL$3:$AL$8)","v":1},{"$f":"valuePL(U24,'Utility Functions'!$AM$3:$AM$5,'Utility Functions'!$AN$3:$AN$5)","v":0},{"$f":"valuePL(V24,'Utility Functions'!$AO$3:$AO$5,'Utility Functions'!$AP$3:$AP$5)","v":1},{"$f":"valuePL(W24,'Utility Functions'!$AQ$3:$AQ$6,'Utility Functions'!$AR$3:$AR$6)","v":0.2},{"$f":"valuePL(X24,'Utility Functions'!$AS$3:$AS$6,'Utility Functions'!$AT$3:$AT$6)","v":0.75},{"$f":"valuePL(Y24,'Utility Functions'!$AU$3:$AU$6,'Utility Functions'!$AV$3:$AV$6)","v":0.2},{"$f":"valuePL(Z24,'Utility Functions'!$AW$3:$AW$5,'Utility Functions'!$AX$3:$AX$5)","v":0.5},{"$f":"valuePL(AA24,'Utility Functions'!$AY$3:$AY$6,'Utility Functions'!$AZ$3:$AZ$6)","v":0.2},{"$f":"valuePL(AB24,'Utility Functions'!$BA$3:$BA$5,'Utility Functions'!$BB$3:$BB$5)","v":0},{"$f":"valuePL(AC24,'Utility Functions'!$BC$3:$BC$5,'Utility Functions'!$BD$3:$BD$5)","v":0.25},9.5321507448123199,null,9.5321507448123199,2.6821507448123207,0,0,3.75,3.1]
[24,{"$f":"valueE(B25,'Utility Functions'!$B$3,'Utility Functions'!$B$4,'Utility Functions'!$B$5,'Utility Functions'!$B$6)","v":0.63212151658375171},{"$f":"valueE(C25,'Utility Functions'!$D$3,'Utility Functions'!$D$4,'Utility Functions'!$D$5,'Utility Functions'!$D$6)","v":0.46475967153745396},{"$f":"valuePL(D25,'Utility Functions'!$E$3:$E$5,'Utility Functions'!$F$3:$F$5)","v":1},{"$f":"valuePL(E25,'Utility Functions'!$G$3:$G$5,'Utility Functions'!$H$3:$H$5)","v":0},{"$f":"valuePL(F25,'Utility Functions'!$I$3:$I$4,'Utility Functions'!$J$3:$J$5)","v":0},{"$f":"valueE(G25,'Utility Functions'!$L$3,'Utility Functions'!$L$4,'Utility Functions'!$L$5,'Utility Functions'!$L$6)","v":0},{"$f":"valueE(H25,'Utility Functions'!$N$3,'Utility Functions'!$N$4,'Utility Functions'!$N$5,'Utility Functions'!$N$6)","v":0},{"$f":"valuePL(I25,'Utility Functions'!$O$3:$O$6,'Utility Functions'!$P$3:$P$6)","v":0},{"$f":"valuePL(J25,'Utility Functions'!$Q$3:$Q$6,'Utility Functions'!$R$3:$R$6)","v":0},{"$f":"valuePL(K25,'Utility Functions'!$S$3:$S$7,'Utility Functions'!$T$3:$T$7)","v":0},{"$f":"valueE(L25,'Utility Functions'!$V$3,'Utility Functions'!$V$4,'Utility Functions'!$V$5,'Utility Functions'!$V$6)","v":0},{"$f":"valuePL(M25,'Utility Functions'!$W$3:$W$6,'Utility Functions'!$X$3:$X$6)","v":0},{"$f":"valueE(N25,'Utility Functions'!$Z$3,'Utility Functions'!$Z$4,'Utility Functions'!$Z$5,'Utility Functions'!$Z$6)","v":0},{"$f":"valuePL(O25,'Utility Functions'!$AA$3:$AA$5,'Utility Functions'!$AB$3:$AB$5)","v":0},{"$f":"valuePL(P25,'Utility Functions'!$AC$3:$AC$7,'Utility Functions'!$AD$3:$AD$7)","v":0},{"$f":"valuePL(Q25,'Utility Functions'!$AE$3:$AE$6,'Utility Functions'!$AF$3:$AF$6)","v":0},{"$f":"valuePL(R25,'Utility Functions'!$AG$3:$AG$6,'Utility Functions'!$AH$3:$AH$6)","v":1},{"$f":"valuePL(S25,'Utility Functions'!$AI$3:$AI$6,'Utility Functions'!$AJ$3:$AJ$6)","v":1},{"$f":"valuePL(T25,'Utility Functions'!$AK$3:$AK$8,'Utility Functions'!$AL$3:$AL$8)","v":1},{"$f":"valuePL(U25,'Utility Functions'!$AM$3:$AM$5,'Utility Functions'!$AN$3:$AN$5)","v":0},{"$f":"valuePL(V25,'Utility Functions'!$AO$3:$AO$5,'Utility Functions'!$AP$3:$AP$5)","v":0},{"$f":"valuePL(W25,'Utility Functions'!$AQ$3:$AQ$6,'Utility Functions'!$AR$3:$AR$6)","v":1},{"$f":"valuePL(X25,'Utility Functions'!$AS$3:$AS$6,'Utility Functions'!$AT$3:$AT$6)","v":0.2},{"$f":"valuePL(Y25,'Utility Functions'!$AU$3:$AU$6,'Utility Functions'!$AV$3:$AV$6)","v":1},{"$f":"valuePL(Z25,'Utility Functions'!$AW$3:$AW$5,'Utility Functions'!$AX$3:$AX$5)","v":1},{"$f":"valuePL(AA25,'Utility Functions'!$AY$3:$AY$6,'Utility Functions'!$AZ$3:$AZ$6)","v":0.2},{"$f":"valuePL(AB25,'Utility Functions'!$BA$3:$BA$5,'Utility Functions'!$BB$3:$BB$5)","v":0},{"$f":"valuePL(AC25,'Utility Functions'!$BC$3:$BC$5,'Utility Functions'!$BD$3:$BD$5)","v":1},9.4968811881212041,null,9.4968811881212059,2.0968811881212055,0,0,3,4.4000000000000004]
[25,{"$f":"valueE(B26,'Utility Functions'!$B$3,'Utility Functions'!$B$4,'Utility Functions'!$B$5,'Utility Functions'!$B$6)","v":0.83470237647280454},{"$f":"valueE(C26,'Utility Functions'!$D$3,'Utility Functions'!$D$4,'Utility Functions'!$D$5,'Utility Functions'!$D$6)","v":0.84744836833951609},{"$f":"valuePL(D26,'Utility Functions'!$E$3:$E$5,'Utility Functions'!$F$3:$F$5)","v":1},{"$f":"valuePL(E26,'Utility Functions'!$G$3:$G$5,'Utility Functions'!$H$3:$H$5)","v":0},{"$f":"valuePL(F26,'Utility Functions'!$I$3:$I$4,'Utility Functions'!$J$3:$J$5)","v":0},{"$f":"valueE(G26,'Utility Functions'!$L$3,'Utility Functions'!$L$4,'Utility Functions'!$L$5,'Utility Functions'!$L$6)","v":0.94623655913978499},{"$f":"valueE(H26,'Utility Functions'!$N$3,'Utility Functions'!$N$4,'Utility Functions'!$N$5,'Utility Functions'!$N$6)","v":0.29222011385199242},{"$f":"valuePL(I26,'Utility Functions'!$O$3:$O$6,'Utility Functions'!$P$3:$P$6)","v":0},{"$f":"valuePL(J26,'Utility Functions'!$Q$3:$Q$6,'Utility Functions'!$R$3:$R$6)","v":0},{"$f":"valuePL(K26,'Utility Functions'!$S$3:$S$7,'Utility Functions'!$T$3:$T$7)","v":0},{"$f":"valueE(L26,'Utility Functions'!$V$3,'Utility Functions'!$V$4,'Utility Functions'!$V$5,'Utility Functions'!$V$6)","v":0},{"$f":"valuePL(M26,'Utility Functions'!$W$3:$W$6,'Utility Functions'!$X$3:$X$6)","v":0},{"$f":"valueE(N26,'Utility Functions'!$Z$3,'Utility Functions'!$Z$4,'Utility Functions'!$Z$5,'Utility Functions'!$Z$6)","v":1},{"$f":"valuePL(O26,'Utility Functions'!$AA$3:$AA$5,'Utility Functions'!$AB$3:$AB$5)","v":0.25},{"$f":"valuePL(P26,'Utility Functions'!$AC$3:$AC$7,'Utility Functions'!$AD$3:$AD$7)","v":0.5},{"$f":"valuePL(Q26,'Utility Functions'!$AE$3:$AE$6,'Utility Functions'!$AF$3:$AF$6)","v":0.5},{"$f":"valuePL(R26,'Utility Functions'!$AG$3:$AG$6,'Utility Functions'!$AH$3:$AH$6)","v":1},{"$f":"valuePL(S26,'Utility Functions'!$AI$3:$AI$6,'Utility Functions'!$AJ$3:$AJ$6)","v":1},{"$f":"valuePL(T26,'Utility Functions'!$AK$3:$AK$8,'Utility Functions'!$AL$3:$AL$8)","v":0},{"$f":"valuePL(U26,'Utility Functions'!$AM$3:$AM$5,'Utility Functions'!$AN$3:$AN$5)","v":0},{"$f":"valuePL(V26,'Utility Functions'!$AO$3:$AO$5,'Utility Functions'!$AP$3:$AP$5)","v":1},{"$f":"valuePL(W26,'Utility Functions'!$AQ$3:$AQ$6,'Utility Functions'!$AR$3:$AR$6)","v":0.2},{"$f":"valuePL(X26,'Utility Functions'!$AS$3:$AS$6,'Utility Functions'!$AT$3:$AT$6)","v":1},{"$f":"valuePL(Y26,'Utility Functions'!$AU$3:$AU$6,'Utility Functions'!$AV$3:$AV$6)","v":0.8},{"$f":"valuePL(Z26,'Utility Functions'!$AW$3:$AW$5,'Utility Functions'!$AX$3:$AX$5)","v":0.5},{"$f":"valuePL(AA26,'Utility Functions'!$AY$3:$AY$6,'Utility Functions'!$AZ$3:$AZ$6)","v":0.2},{"$f":"valuePL(AB26,'Utility Functions'!$BA$3:$BA$5,'Utility Functions'!$BB$3:$BB$5)","v":1},{"$f":"valuePL(AC26,'Utility Functions'!$BC$3:$BC$5,'Utility Functions'!$BD$3:$BD$5)","v":1},13.870607417804099,null,13.870607417804099,2.6821507448123207,1.2384566729917774,1.25,3,5.7]
[26,{"$f":"valueE(B27,'Utility Functions'!$B$3,'Utility Functions'!$B$4,'Utility Functions'!$B$5,'Utility Functions'!$B$6)","v":0.96662819462069161},{"$f":"valueE(C27,'Utility Functions'!$D$3,'Utility Functions'!$D$4,'Utility Functions'!$D$5,'Utility Functions'!$D$6)","v":0.84744836833951609},{"$f":"valuePL(D27,'Utility Functions'!$E$3:$E$5,'Utility Functions'!$F$3:$F$5)","v":1},{"$f":"valuePL(E27,'Utility Functions'!$G$3:$G$5,'Utility Functions'!$H$3:$H$5)","v":0.5},{"$f":"valuePL(F27,'Utility Functions'!$I$3:$I$4,'Utility Functions'!$J$3:$J$5)","v":0},{"$f":"valueE(G27,'Utility Functions'!$L$3,'Utility Functions'!$L$4,'Utility Functions'!$L$5,'Utility Functions'!$L$6)","v":0},{"$f":"valueE(H27,'Utility Functions'!$N$3,'Utility Functions'!$N$4,'Utility Functions'!$N$5,'Utility Functions'!$N$6)","v":0},{"$f":"valuePL(I27,'Utility Functions'!$O$3:$O$6,'Utility Functions'!$P$3:$P$6)","v":0},{"$f":"valuePL(J27,'Utility Functions'!$Q$3:$Q$6,'Utility Functions'!$R$3:$R$6)","v":0},{"$f":"valuePL(K27,'Utility Functions'!$S$3:$S$7,'Utility Functions'!$T$3:$T$7)","v":0},{"$f":"valueE(L27,'Utility Functions'!$V$3,'Utility Functions'!$V$4,'Utility Functions'!$V$5,'Utility Functions'!$V$6)","v":0},{"$f":"valuePL(M27,'Utility Functions'!$W$3:$W$6,'Utility Functions'!$X$3:$X$6)","v":0},{"$f":"valueE(N27,'Utility Functions'!$Z$3,'Utility Functions'!$Z$4,'Utility Functions'!$Z$5,'Utility Functions'!$Z$6)","v":0},{"$f":"valuePL(O27,'Utility Functions'!$AA$3:$AA$5,'Utility Functions'!$AB$3:$AB$5)","v":0},{"$f":"valuePL(P27,'Utility Functions'!$AC$3:$AC$7,'Utility Functions'!$AD$3:$AD$7)","v":0.75},{"$f":"valuePL(Q27,'Utility Functions'!$AE$3:$AE$6,'Utility Functions'!$AF$3:$AF$6)","v":0},{"$f":"valuePL(R27,'Utility Functions'!$AG$3:$AG$6,'Utility Functions'!$AH$3:$AH$6)","v":1},{"$f":"valuePL(S27,'Utility Functions'!$AI$3:$AI$6,'Utility Functions'!$AJ$3:$AJ$6)","v":1},{"$f":"valuePL(T27,'Utility Functions'!$AK$3:$AK$8,'Utility Functions'!$AL$3:$AL$8)","v":0.8},{"$f":"valuePL(U27,'Utility Functions'!$AM$3:$AM$5,'Utility Functions'!$AN$3:$AN$5)","v":0},{"$f":"valuePL(V27,'Utility Functions'!$AO$3:$AO$5,'Utility Functions'!$AP$3:$AP$5)","v":1},{"$f":"valuePL(W27,'Utility Functions'!$AQ$3:$AQ$6,'Utility Functions'!$AR$3:$AR$6)","v":0.2},{"$f":"valuePL(X27,'Utility Functions'!$AS$3:$AS$6,'Utility Functions'!$AT$3:$AT$6)","v":0},{"$f":"valuePL(Y27,'Utility Functions'!$AU$3:$AU$6,'Utility Functions'!$AV$3:$AV$6)","v":0.8},{"$f":"valuePL(Z27,'Utility Functions'!$AW$3:$AW$5,'Utility Functions'!$AX$3:$AX$5)","v":0},{"$f":"valuePL(AA27,'Utility Functions'!$AY$3:$AY$6,'Utility Functions'!$AZ$3:$AZ$6)","v":0.2},{"$f":"valuePL(AB27,'Utility Functions'!$BA$3:$BA$5,'Utility Functions'!$BB$3:$BB$5)","v":1},{"$f":"valuePL(AC27,'Utility Functions'!$BC$3:$BC$5,'Utility Functions'!$BD$3:$BD$5)","v":1},11.064076562960208,null,11.064076562960206,3.3140765629602078,0,0,3.55,4.2]
[27,{"$f":"valueE(B28,'Utility Functions'!$B$3,'Utility Functions'!$B$4,'Utility Functions'!$B$5,'Utility Functions'!$B$6)","v":0},{"$f":"valueE(C28,'Utility Functions'!$D$3,'Utility Functions'!$D$4,'Utility Functions'!$D$5,'Utility Functions'!$D$6)","v":0.46475967153745396},{"$f":"valuePL(D28,'Utility Functions'!$E$3:$E$5,'Utility Functions'!$F$3:$F$5)","v":1},{"$f":"valuePL(E28,'Utility Functions'!$G$3:$G$5,'Utility Functions'!$H$3:$H$5)","v":0},{"$f":"valuePL(F28,'Utility Functions'!$I$3:$I$4,'Utility Functions'!$J$3:$J$5)","v":0},{"$f":"valueE(G28,'Utility Functions'!$L$3,'Utility Functions'!$L$4,'Utility Functions'!$L$5,'Utility Functions'!$L$6)","v":0},{"$f":"valueE(H28,'Utility Functions'!$N$3,'Utility Functions'!$N$4,'Utility Functions'!$N$5,'Utility Functions'!$N$6)","v":0},{"$f":"valuePL(I28,'Utility Functions'!$O$3:$O$6,'Utility Functions'!$P$3:$P$6)","v":0},{"$f":"valuePL(J28,'Utility Functions'!$Q$3:$Q$6,'Utility Functions'!$R$3:$R$6)","v":0},{"$f":"valuePL(K28,'Utility Functions'!$S$3:$S$7,'Utility Functions'!$T$3:$T$7)","v":1},{"$f":"valueE(L28,'Utility Functions'!$V$3,'Utility Functions'!$V$4,'Utility Functions'!$V$5,'Utility Functions'!$V$6)","v":0},{"$f":"valuePL(M28,'Utility Functions'!$W$3:$W$6,'Utility Functions'!$X$3:$X$6)","v":0.1},{"$f":"valueE(N28,'Utility Functions'!$Z$3,'Utility Functions'!$Z$4,'Utility Functions'!$Z$5,'Utility Functions'!$Z$6)","v":0},{"$f":"valuePL(O28,'Utility Functions'!$AA$3:$AA$5,'Utility Functions'!$AB$3:$AB$5)","v":0},{"$f":"valuePL(P28,'Utility Functions'!$AC$3:$AC$7,'Utility Functions'!$AD$3:$AD$7)","v":0.5},{"$f":"valuePL(Q28,'Utility Functions'!$AE$3:$AE$6,'Utility Functions'!$AF$3:$AF$6)","v":0.5},{"$f":"valuePL(R28,'Utility Functions'!$AG$3:$AG$6,'Utility Functions'!$AH$3:$AH$6)","v":1},{"$f":"valuePL(S28,'Utility Functions'!$AI$3:$AI$6,'Utility Functions'!$AJ$3:$AJ$6)","v":1},{"$f":"valuePL(T28,'Utility Functions'!$AK$3:$AK$8,'Utility Functions'!$AL$3:$AL$8)","v":1},{"$f":"valuePL(U28,'Utility Functions'!$AM$3:$AM$5,'Utility Functions'!$AN$3:$AN$5)","v":0},{"$f":"valuePL(V28,'Utility Functions'!$AO$3:$AO$5,'Utility Functions'!$AP$3:$AP$5)","v":0.5},{"$f":"valuePL(W28,'Utility Functions'!$AQ$3:$AQ$6,'Utility Functions'!$AR$3:$AR$6)","v":0.75},{"$f":"valuePL(X28,'Utility Functions'!$AS$3:$AS$6,'Utility Functions'!$AT$3:$AT$6)","v":1},{"$f":"valuePL(Y28,'Utility Functions'!$AU$3:$AU$6,'Utility Functions'!$AV$3:$AV$6)","v":0.2},{"$f":"valuePL(Z28,'Utility Functions'!$AW$3:$AW$5,'Utility Functions'!$AX$3:$AX$5)","v":0},{"$f":"valuePL(AA28,'Utility Functions'!$AY$3:$AY$6,'Utility Functions'!$AZ$3:$AZ$6)","v":0},{"$f":"valuePL(AB28,'Utility Functions'!$BA$3:$BA$5,'Utility Functions'!$BB$3:$BB$5)","v":0},{"$f":"valuePL(AC28,'Utility Functions'!$BC$3:$BC$5,'Utility Functions'!$BD$3:$BD$5)","v":0},9.0147596715374529,null,9.0147596715374547,1.464759671537454,1.1000000000000001,0,4,2.4500000000000002]
[28,{"$f":"valueE(B29,'Utility Functions'!$B$3,'Utility Functions'!$B$4,'Utility Functions'!$B$5,'Utility Functions'!$B$6)","v":0.4511890475224023},{"$f":"valueE(C29,'Utility Functions'!$D$3,'Utility Functions'!$D$4,'Utility Functions'!$D$5,'Utility Functions'!$D$6)","v":0.46475967153745396},{"$f":"valuePL(D29,'Utility Functions'!$E$3:$E$5,'Utility Functions'!$F$3:$F$5)","v":1},{"$f":"valuePL(E29,'Utility Functions'!$G$3:$G$5,'Utility Functions'!$H$3:$H$5)","v":0},{"$f":"valuePL(F29,'Utility Functions'!$I$3:$I$4,'Utility Functions'!$J$3:$J$5)","v":1},{"$f":"valueE(G29,'Utility Functions'!$L$3,'Utility Functions'!$L$4,'Utility Functions'!$L$5,'Utility Functions'!$L$6)","v":0},{"$f":"valueE(H29,'Utility Functions'!$N$3,'Utility Functions'!$N$4,'Utility Functions'!$N$5,'Utility Functions'!$N$6)","v":0},{"$f":"valuePL(I29,'Utility Functions'!$O$3:$O$6,'Utility Functions'!$P$3:$P$6)","v":0},{"$f":"valuePL(J29,'Utility Functions'!$Q$3:$Q$6,'Utility Functions'!$R$3:$R$6)","v":0},{"$f":"valuePL(K29,'Utility Functions'!$S$3:$S$7,'Utility Functions'!$T$3:$T$7)","v":0},{"$f":"valueE(L29,'Utility Functions'!$V$3,'Utility Functions'!$V$4,'Utility Functions'!$V$5,'Utility Functions'!$V$6)","v":0.33333333333333331},{"$f":"valuePL(M29,'Utility Functions'!$W$3:$W$6,'Utility Functions'!$X$3:$X$6)","v":0.1},{"$f":"valueE(N29,'Utility Functions'!$Z$3,'Utility Functions'!$Z$4,'Utility Functions'!$Z$5,'Utility Functions'!$Z$6)","v":0},{"$f":"valuePL(O29,'Utility Functions'!$AA$3:$AA$5,'Utility Functions'!$AB$3:$AB$5)","v":0},{"$f":"valuePL(P29,'Utility Functions'!$AC$3:$AC$7,'Utility Functions'!$AD$3:$AD$7)","v":1},{"$f":"valuePL(Q29,'Utility Functions'!$AE$3:$AE$6,'Utility Functions'!$AF$3:$AF$6)","v":0},{"$f":"valuePL(R29,'Utility Functions'!$AG$3:$AG$6,'Utility Functions'!$AH$3:$AH$6)","v":1},{"$f":"valuePL(S29,'Utility Functions'!$AI$3:$AI$6,'Utility Functions'!$AJ$3:$AJ$6)","v":1},{"$f":"valuePL(T29,'Utility Functions'!$AK$3:$AK$8,'Utility Functions'!$AL$3:$AL$8)","v":0.8},{"$f":"valuePL(U29,'Utility Functions'!$AM$3:$AM$5,'Utility Functions'!$AN$3:$AN$5)","v":0},{"$f":"valuePL(V29,'Utility Functions'!$AO$3:$AO$5,'Utility Functions'!$AP$3:$AP$5)","v":1},{"$f":"valuePL(W29,'Utility Functions'!$AQ$3:$AQ$6,'Utility Functions'!$AR$3:$AR$6)","v":1},{"$f":"valuePL(X29,'Utility Functions'!$AS$3:$AS$6,'Utility Functions'!$AT$3:$AT$6)","v":1},{"$f":"valuePL(Y29,'Utility Functions'!$AU$3:$AU$6,'Utility Functions'!$AV$3:$AV$6)","v":0.2},{"$f":"valuePL(Z29,'Utility Functions'!$AW$3:$AW$5,'Utility Functions'!$AX$3:$AX$5)","v":0},{"$f":"valuePL(AA29,'Utility Functions'!$AY$3:$AY$6,'Utility Functions'!$AZ$3:$AZ$6)","v":0.89999999999999991},{"$f":"valuePL(AB29,'Utility Functions'!$BA$3:$BA$5,'Utility Functions'!$BB$3:$BB$5)","v":1},{"$f":"valuePL(AC29,'Utility Functions'!$BC$3:$BC$5,'Utility Functions'!$BD$3:$BD$5)","v":0.25},12.499282052393189,null,12.499282052393189,2.9159487190598563,0.43333333333333335,0,3.8,5.35]
[29,{"$f":"valueE(B30,'Utility Functions'!$B$3,'Utility Functions'!$B$4,'Utility Functions'!$B$5,'Utility Functions'!$B$6)","v":0.83470237647280454},{"$f":"valueE(C30,'Utility Functions'!$D$3,'Utility Functions'!$D$4,'Utility Functions'!$D$5,'Utility Functions'!$D$6)","v":0.71352759724260828},{"$f":"valuePL(D30,'Utility Functions'!$E$3:$E$5,'Utility Functions'!$F$3:$F$5)","v":1},{"$f":"valuePL(E30,'Utility Functions'!$G$3:$G$5,'Utility Functions'!$H$3:$H$5)","v":0.5},{"$f":"valuePL(F30,'Utility Functions'!$I$3:$I$4,'Utility Functions'!$J$3:$J$5)","v":0},{"$f":"valueE(G30,'Utility Functions'!$L$3,'Utility Functions'!$L$4,'Utility Functions'!$L$5,'Utility Functions'!$L$6)","v":0},{"$f":"valueE(H30,'Utility Functions'!$N$3,'Utility Functions'!$N$4,'Utility Functions'!$N$5,'Utility Functions'!$N$6)","v":0},{"$f":"valuePL(I30,'Utility Functions'!$O$3:$O$6,'Utility Functions'!$P$3:$P$6)","v":0.06},{"$f":"valuePL(J30,'Utility Functions'!$Q$3:$Q$6,'Utility Functions'!$R$3:$R$6)","v":0.67272727272727273},{"$f":"valuePL(K30,'Utility Functions'!$S$3:$S$7,'Utility Functions'!$T$3:$T$7)","v":0},{"$f":"valueE(L30,'Utility Functions'!$V$3,'Utility Functions'!$V$4,'Utility Functions'!$V$5,'Utility Functions'!$V$6)","v":1},{"$f":"valuePL(M30,'Utility Functions'!$W$3:$W$6,'Utility Functions'!$X$3:$X$6)","v":0.67272727272727273},{"$f":"valueE(N30,'Utility Functions'!$Z$3,'Utility Functions'!$Z$4,'Utility Functions'!$Z$5,'Utility Functions'!$Z$6)","v":0},{"$f":"valuePL(O30,'Utility Functions'!$AA$3:$AA$5,'Utility Functions'!$AB$3:$AB$5)","v":0},{"$f":"valuePL(P30,'Utility Functions'!$AC$3:$AC$7,'Utility Functions'!$AD$3:$AD$7)","v":0.25},{"$f":"valuePL(Q30,'Utility Functions'!$AE$3:$AE$6,'Utility Functions'!$AF$3:$AF$6)","v":0},{"$f":"valuePL(R30,'Utility Functions'!$AG$3:$AG$6,'Utility Functions'!$AH$3:$AH$6)","v":1},{"$f":"valuePL(S30,'Utility Functions'!$AI$3:$AI$6,'Utility Functions'!$AJ$3:$AJ$6)","v":1},{"$f":"valuePL(T30,'Utility Functions'!$AK$3:$AK$8,'Utility Functions'!$AL$3:$AL$8)","v":0.8},{"$f":"valuePL(U30,'Utility Functions'!$AM$3:$AM$5,'Utility Functions'!$AN$3:$AN$5)","v":0},{"$f":"valuePL(V30,'Utility Functions'!$AO$3:$AO$5,'Utility Functions'!$AP$3:$AP$5)","v":1},{"$f":"valuePL(W30,'Utility Functions'!$AQ$3:$AQ$6,'Utility Functions'!$AR$3:$AR$6)","v":0.2},{"$f":"valuePL(X30,'Utility Functions'!$AS$3:$AS$6,'Utility Functions'!$AT$3:$AT$6)","v":0},{"$f":"valuePL(Y30,'Utility Functions'!$AU$3:$AU$6,'Utility Functions'!$AV$3:$AV$6)","v":0.8},{"$f":"valuePL(Z30,'Utility Functions'!$AW$3:$AW$5,'Utility Functions'!$AX$3:$AX$5)","v":0.5},{"$f":"valuePL(AA30,'Utility Functions'!$AY$3:$AY$6,'Utility Functions'!$AZ$3:$AZ$6)","v":0.2},{"$f":"valuePL(AB30,'Utility Functions'!$BA$3:$BA$5,'Utility Functions'!$BB$3:$BB$5)","v":0.25},{"$f":"valuePL(AC30,'Utility Functions'!$BC$3:$BC$5,'Utility Functions'!$BD$3:$BD$5)","v":1},12.453684519169958,null,12.453684519169958,3.0482299737154128,2.4054545454545453,0,3.05,3.95]
[30,{"$f":"valueE(B31,'Utility Functions'!$B$3,'Utility Functions'!$B$4,'Utility Functions'!$B$5,'Utility Functions'!$B$6)","v":0.99864114504770318},{"$f":"valueE(C31,'Utility Functions'!$D$3,'Utility Functions'!$D$4,'Utility Functions'!$D$5,'Utility Functions'!$D$6)","v":0.84744836833951609},{"$f":"valuePL(D31,'Utility Functions'!$E$3:$E$5,'Utility Functions'!$F$3:$F$5)","v":1},{"$f":"valuePL(E31,'Utility Functions'!$G$3:$G$5,'Utility Functions'!$H$3:$H$5)","v":0},{"$f":"valuePL(F31,'Utility Functions'!$I$3:$I$4,'Utility Functions'!$J$3:$J$5)","v":0},{"$f":"valueE(G31,'Utility Functions'!$L$3,'Utility Functions'!$L$4,'Utility Functions'!$L$5,'Utility Functions'!$L$6)","v":0},{"$f":"valueE(H31,'Utility Functions'!$N$3,'Utility Functions'!$N$4,'Utility Functions'!$N$5,'Utility Functions'!$N$6)","v":0},{"$f":"valuePL(I31,'Utility Functions'!$O$3:$O$6,'Utility Functions'!$P$3:$P$6)","v":0},{"$f":"valuePL(J31,'Utility Functions'!$Q$3:$Q$6,'Utility Functions'!$R$3:$R$6)","v":0},{"$f":"valuePL(K31,'Utility Functions'!$S$3:$S$7,'Utility Functions'!$T$3:$T$7)","v":0},{"$f":"valueE(L31,'Utility Functions'!$V$3,'Utility Functions'!$V$4,'Utility Functions'!$V$5,'Utility Functions'!$V$6)","v":0.33333333333333331},{"$f":"valuePL(M31,'Utility Functions'!$W$3:$W$6,'Utility Functions'!$X$3:$X$6)","v":0.04},{"$f":"valueE(N31,'Utility Functions'!$Z$3,'Utility Functions'!$Z$4,'Utility Functions'!$Z$5,'Utility Functions'!$Z$6)","v":0},{"$f":"valuePL(O31,'Utility Functions'!$AA$3:$AA$5,'Utility Functions'!$AB$3:$AB$5)","v":0},{"$f":"valuePL(P31,'Utility Functions'!$AC$3:$AC$7,'Utility Functions'!$AD$3:$AD$7)","v":0},{"$f":"valuePL(Q31,'Utility Functions'!$AE$3:$AE$6,'Utility Functions'!$AF$3:$AF$6)","v":0},{"$f":"valuePL(R31,'Utility Functions'!$AG$3:$AG$6,'Utility Functions'!$AH$3:$AH$6)","v":0.2},{"$f":"valuePL(S31,'Utility Functions'!$AI$3:$AI$6,'Utility Functions'!$AJ$3:$AJ$6)","v":0.33},{"$f":"valuePL(T31,'Utility Functions'!$AK$3:$AK$8,'Utility Functions'!$AL$3:$AL$8)","v":0},{"$f":"valuePL(U31,'Utility Functions'!$AM$3:$AM$5,'Utility Functions'!$AN$3:$AN$5)","v":0},{"$f":"valuePL(V31,'Utility Functions'!$AO$3:$AO$5,'Utility Functions'!$AP$3:$AP$5)","v":0},{"$f":"valuePL(W31,'Utility Functions'!$AQ$3:$AQ$6,'Utility Functions'!$AR$3:$AR$6)","v":1},{"$f":"valuePL(X31,'Utility Functions'!$AS$3:$AS$6,'Utility Functions'!$AT$3:$AT$6)","v":0.2},{"$f":"valuePL(Y31,'Utility Functions'!$AU$3:$AU$6,'Utility Functions'!$AV$3:$AV$6)","v":0.8},{"$f":"valuePL(Z31,'Utility Functions'!$AW$3:$AW$5,'Utility Functions'!$AX$3:$AX$5)","v":0},{"$f":"valuePL(AA31,'Utility Functions'!$AY$3:$AY$6,'Utility Functions'!$AZ$3:$AZ$6)","v":0.89999999999999991},{"$f":"valuePL(AB31,'Utility Functions'!$BA$3:$BA$5,'Utility Functions'!$BB$3:$BB$5)","v":1},{"$f":"valuePL(AC31,'Utility Functions'!$BC$3:$BC$5,'Utility Functions'!$BD$3:$BD$5)","v":0},7.6494228467205527,null,7.6494228467205527,2.846089513387219,0.37333333333333329,0,0.53,3.9]
[31,{"$f":"valueE(B32,'Utility Functions'!$B$3,'Utility Functions'!$B$4,'Utility Functions'!$B$5,'Utility Functions'!$B$6)","v":0.55067187023002029},{"$f":"valueE(C32,'Utility Functions'!$D$3,'Utility Functions'!$D$4,'Utility Functions'!$D$5,'Utility Functions'!$D$6)","v":0.84744836833951609},{"$f":"valuePL(D32,'Utility Functions'!$E$3:$E$5,'Utility Functions'!$F$3:$F$5)","v":0.5},{"$f":"valuePL(E32,'Utility Functions'!$G$3:$G$5,'Utility Functions'!$H$3:$H$5)","v":0},{"$f":"valuePL(F32,'Utility Functions'!$I$3:$I$4,'Utility Functions'!$J$3:$J$5)","v":0},{"$f":"valueE(G32,'Utility Functions'!$L$3,'Utility Functions'!$L$4,'Utility Functions'!$L$5,'Utility Functions'!$L$6)","v":0},{"$f":"valueE(H32,'Utility Functions'!$N$3,'Utility Functions'!$N$4,'Utility Functions'!$N$5,'Utility Functions'!$N$6)","v":0},{"$f":"valuePL(I32,'Utility Functions'!$O$3:$O$6,'Utility Functions'!$P$3:$P$6)","v":0.75454545454545452},{"$f":"valuePL(J32,'Utility Functions'!$Q$3:$Q$6,'Utility Functions'!$R$3:$R$6)","v":0.08},{"$f":"valuePL(K32,'Utility Functions'!$S$3:$S$7,'Utility Functions'!$T$3:$T$7)","v":0},{"$f":"valueE(L32,'Utility Functions'!$V$3,'Utility Functions'!$V$4,'Utility Functions'!$V$5,'Utility Functions'!$V$6)","v":0.33333333333333331},{"$f":"valuePL(M32,'Utility Functions'!$W$3:$W$6,'Utility Functions'!$X$3:$X$6)","v":0.08},{"$f":"valueE(N32,'Utility Functions'!$Z$3,'Utility Functions'!$Z$4,'Utility Functions'!$Z$5,'Utility Functions'!$Z$6)","v":0},{"$f":"valuePL(O32,'Utility Functions'!$AA$3:$AA$5,'Utility Functions'!$AB$3:$AB$5)","v":0},{"$f":"valuePL(P32,'Utility Functions'!$AC$3:$AC$7,'Utility Functions'!$AD$3:$AD$7)","v":0.5},{"$f":"valuePL(Q32,'Utility Functions'!$AE$3:$AE$6,'Utility Functions'!$AF$3:$AF$6)","v":0},{"$f":"valuePL(R32,'Utility Functions'!$AG$3:$AG$6,'Utility Functions'!$AH$3:$AH$6)","v":1},{"$f":"valuePL(S32,'Utility Functions'!$AI$3:$AI$6,'Utility Functions'!$AJ$3:$AJ$6)","v":0.66},{"$f":"valuePL(T32,'Utility Functions'!$AK$3:$AK$8,'Utility Functions'!$AL$3:$AL$8)","v":0.6},{"$f":"valuePL(U32,'Utility Functions'!$AM$3:$AM$5,'Utility Functions'!$AN$3:$AN$5)","v":0},{"$f":"valuePL(V32,'Utility Functions'!$AO$3:$AO$5,'Utility Functions'!$AP$3:$AP$5)","v":0.5},{"$f":"valuePL(W32,'Utility Functions'!$AQ$3:$AQ$6,'Utility Functions'!$AR$3:$AR$6)","v":0},{"$f":"valuePL(X32,'Utility Functions'!$AS$3:$AS$6,'Utility Functions'!$AT$3:$AT$6)","v":0.2},{"$f":"valuePL(Y32,'Utility Functions'!$AU$3:$AU$6,'Utility Functions'!$AV$3:$AV$6)","v":0.2},{"$f":"valuePL(Z32,'Utility Functions'!$AW$3:$AW$5,'Utility Functions'!$AX$3:$AX$5)","v":1},{"$f":"valuePL(AA32,'Utility Functions'!$AY$3:$AY$6,'Utility Functions'!$AZ$3:$AZ$6)","v":0.89999999999999991},{"$f":"valuePL(AB32,'Utility Functions'!$BA$3:$BA$5,'Utility Functions'!$BB$3:$BB$5)","v":0.25},{"$f":"valuePL(AC32,'Utility Functions'!$BC$3:$BC$5,'Utility Functions'!$BD$3:$BD$5)","v":0.25},9.2059990264483247,null,9.2059990264483247,1.8981202385695364,1.2478787878787878,0,2.7600000000000002,3.3]
[32,{"$f":"valueE(B33,'Utility Functions'!$B$3,'Utility Functions'!$B$4,'Utility Functions'!$B$5,'Utility Functions'!$B$6)","v":0.63212151658375171},{"$f":"valueE(C33,'Utility Functions'!$D$3,'Utility Functions'!$D$4,'Utility Functions'!$D$5,'Utility Functions'!$D$6)","v":0.26839655623815994},{"$f":"valuePL(D33,'Utility Functions'!$E$3:$E$5,'Utility Functions'!$F$3:$F$5)","v":1},{"$f":"valuePL(E33,'Utility Functions'!$G$3:$G$5,'Utility Functions'!$H$3:$H$5)","v":1},{"$f":"valuePL(F33,'Utility Functions'!$I$3:$I$4,'Utility Functions'!$J$3:$J$5)","v":1},{"$f":"valueE(G33,'Utility Functions'!$L$3,'Utility Functions'!$L$4,'Utility Functions'!$L$5,'Utility Functions'!$L$6)","v":3.2258064516129031E-2},{"$f":"valueE(H33,'Utility Functions'!$N$3,'Utility Functions'!$N$4,'Utility Functions'!$N$5,'Utility Functions'!$N$6)","v":9.6774193548387094E-2},{"$f":"valuePL(I33,'Utility Functions'!$O$3:$O$6,'Utility Functions'!$P$3:$P$6)","v":0.34545454545454546},{"$f":"valuePL(J33,'Utility Functions'!$Q$3:$Q$6,'Utility Functions'!$R$3:$R$6)","v":1},{"$f":"valuePL(K33,'Utility Functions'!$S$3:$S$7,'Utility Functions'!$T$3:$T$7)","v":0.34545454545454546},{"$f":"valueE(L33,'Utility Functions'!$V$3,'Utility Functions'!$V$4,'Utility Functions'!$V$5,'Utility Functions'!$V$6)","v":1},{"$f":"valuePL(M33,'Utility Functions'!$W$3:$W$6,'Utility Functions'!$X$3:$X$6)","v":1},{"$f":"valueE(N33,'Utility Functions'!$Z$3,'Utility Functions'!$Z$4,'Utility Functions'!$Z$5,'Utility Functions'!$Z$6)","v":0},{"$f":"valuePL(O33,'Utility Functions'!$AA$3:$AA$5,'Utility Functions'!$AB$3:$AB$5)","v":0},{"$f":"valuePL(P33,'Utility Functions'!$AC$3:$AC$7,'Utility Functions'!$AD$3:$AD$7)","v":0.5},{"$f":"valuePL(Q33,'Utility Functions'!$AE$3:$AE$6,'Utility Functions'!$AF$3:$AF$6)","v":1},{"$f":"valuePL(R33,'Utility Functions'!$AG$3:$AG$6,'Utility Functions'!$AH$3:$AH$6)","v":1},{"$f":"valuePL(S33,'Utility Functions'!$AI$3:$AI$6,'Utility Functions'!$AJ$3:$AJ$6)","v":0},{"$f":"valuePL(T33,'Utility Functions'!$AK$3:$AK$8,'Utility Functions'!$AL$3:$AL$8)","v":0.8},{"$f":"valuePL(U33,'Utility Functions'!$AM$3:$AM$5,'Utility Functions'!$AN$3:$AN$5)","v":0},{"$f":"valuePL(V33,'Utility Functions'!$AO$3:$AO$5,'Utility Functions'!$AP$3:$AP$5)","v":0},{"$f":"valuePL(W33,'Utility Functions'!$AQ$3:$AQ$6,'Utility Functions'!$AR$3:$AR$6)","v":0.75},{"$f":"valuePL(X33,'Utility Functions'!$AS$3:$AS$6,'Utility Functions'!$AT$3:$AT$6)","v":0.2},{"$f":"valuePL(Y33,'Utility Functions'!$AU$3:$AU$6,'Utility Functions'!$AV$3:$AV$6)","v":0.8},{"$f":"valuePL(Z33,'Utility Functions'!$AW$3:$AW$5,'Utility Functions'!$AX$3:$AX$5)","v":0.5},{"$f":"valuePL(AA33,'Utility Functions'!$AY$3:$AY$6,'Utility Functions'!$AZ$3:$AZ$6)","v":0},{"$f":"valuePL(AB33,'Utility Functions'!$BA$3:$BA$5,'Utility Functions'!$BB$3:$BB$5)","v":1},{"$f":"valuePL(AC33,'Utility Functions'!$BC$3:$BC$5,'Utility Functions'!$BD$3:$BD$5)","v":0.25},14.52045942179552,null,14.520459421795518,3.9005180728219115,3.8199413489736074,0,3.3,3.5]
[33,{"$f":"valueE(B34,'Utility Functions'!$B$3,'Utility Functions'!$B$4,'Utility Functions'!$B$5,'Utility Functions'!$B$6)","v":0.93919136038504192},{"$f":"valueE(C34,'Utility Functions'!$D$3,'Utility Functions'!$D$4,'Utility Functions'!$D$5,'Utility Functions'!$D$6)","v":0.84744836833951609},{"$f":"valuePL(D34,'Utility Functions'!$E$3:$E$5,'Utility Functions'!$F$3:$F$5)","v":1},{"$f":"valuePL(E34,'Utility Functions'!$G$3:$G$5,'Utility Functions'!$H$3:$H$5)","v":0.5},{"$f":"valuePL(F34,'Utility Functions'!$I$3:$I$4,'Utility Functions'!$J$3:$J$5)","v":0},{"$f":"valueE(G34,'Utility Functions'!$L$3,'Utility Functions'!$L$4,'Utility Functions'!$L$5,'Utility Functions'!$L$6)","v":0},{"$f":"valueE(H34,'Utility Functions'!$N$3,'Utility Functions'!$N$4,'Utility Functions'!$N$5,'Utility Functions'!$N$6)","v":0},{"$f":"valuePL(I34,'Utility Functions'!$O$3:$O$6,'Utility Functions'!$P$3:$P$6)","v":0},{"$f":"valuePL(J34,'Utility Functions'!$Q$3:$Q$6,'Utility Functions'!$R$3:$R$6)","v":0},{"$f":"valuePL(K34,'Utility Functions'!$S$3:$S$7,'Utility Functions'!$T$3:$T$7)","v":0},{"$f":"valueE(L34,'Utility Functions'!$V$3,'Utility Functions'!$V$4,'Utility Functions'!$V$5,'Utility Functions'!$V$6)","v":0.5},{"$f":"valuePL(M34,'Utility Functions'!$W$3:$W$6,'Utility Functions'!$X$3:$X$6)","v":0},{"$f":"valueE(N34,'Utility Functions'!$Z$3,'Utility Functions'!$Z$4,'Utility Functions'!$Z$5,'Utility Functions'!$Z$6)","v":0},{"$f":"valuePL(O34,'Utility Functions'!$AA$3:$AA$5,'Utility Functions'!$AB$3:$AB$5)","v":0},{"$f":"valuePL(P34,'Utility Functions'!$AC$3:$AC$7,'Utility Functions'!$AD$3:$AD$7)","v":0.5},{"$f":"valuePL(Q34,'Utility Functions'!$AE$3:$AE$6,'Utility Functions'!$AF$3:$AF$6)","v":0},{"$f":"valuePL(R34,'Utility Functions'!$AG$3:$AG$6,'Utility Functions'!$AH$3:$AH$6)","v":1},{"$f":"valuePL(S34,'Utility Functions'!$AI$3:$AI$6,'Utility Functions'!$AJ$3:$AJ$6)","v":0.66},{"$f":"valuePL(T34,'Utility Functions'!$AK$3:$AK$8,'Utility Functions'!$AL$3:$AL$8)","v":0},{"$f":"valuePL(U34,'Utility Functions'!$AM$3:$AM$5,'Utility Functions'!$AN$3:$AN$5)","v":0},{"$f":"valuePL(V34,'Utility Functions'!$AO$3:$AO$5,'Utility Functions'!$AP$3:$AP$5)","v":0.5},{"$f":"valuePL(W34,'Utility Functions'!$AQ$3:$AQ$6,'Utility Functions'!$AR$3:$AR$6)","v":1},{"$f":"valuePL(X34,'Utility Functions'!$AS$3:$AS$6,'Utility Functions'!$AT$3:$AT$6)","v":0},{"$f":"valuePL(Y34,'Utility Functions'!$AU$3:$AU$6,'Utility Functions'!$AV$3:$AV$6)","v":0.8},{"$f":"valuePL(Z34,'Utility Functions'!$AW$3:$AW$5,'Utility Functions'!$AX$3:$AX$5)","v":1},{"$f":"valuePL(AA34,'Utility Functions'!$AY$3:$AY$6,'Utility Functions'!$AZ$3:$AZ$6)","v":1},{"$f":"valuePL(AB34,'Utility Functions'!$BA$3:$BA$5,'Utility Functions'!$BB$3:$BB$5)","v":0},{"$f":"valuePL(AC34,'Utility Functions'!$BC$3:$BC$5,'Utility Functions'!$BD$3:$BD$5)","v":0},10.246639728724558,null,10.246639728724558,3.2866397287245581,0.5,0,2.16,4.3]
[34,{"$f":"valueE(B35,'Utility Functions'!$B$3,'Utility Functions'!$B$4,'Utility Functions'!$B$5,'Utility Functions'!$B$6)","v":0},{"$f":"valueE(C35,'Utility Functions'!$D$3,'Utility Functions'!$D$4,'Utility Functions'!$D$5,'Utility Functions'!$D$6)","v":0},{"$f":"valuePL(D35,'Utility Functions'!$E$3:$E$5,'Utility Functions'!$F$3:$F$5)","v":0},{"$f":"valuePL(E35,'Utility Functions'!$G$3:$G$5,'Utility Functions'!$H$3:$H$5)","v":0},{"$f":"valuePL(F35,'Utility Functions'!$I$3:$I$4,'Utility Functions'!$J$3:$J$5)","v":0},{"$f":"valueE(G35,'Utility Functions'!$L$3,'Utility Functions'!$L$4,'Utility Functions'!$L$5,'Utility Functions'!$L$6)","v":0},{"$f":"valueE(H35,'Utility Functions'!$N$3,'Utility Functions'!$N$4,'Utility Functions'!$N$5,'Utility Functions'!$N$6)","v":1.1385199240986717E-2},{"$f":"valuePL(I35,'Utility Functions'!$O$3:$O$6,'Utility Functions'!$P$3:$P$6)","v":1},{"$f":"valuePL(J35,'Utility Functions'!$Q$3:$Q$6,'Utility Functions'!$R$3:$R$6)","v":0.91818181818181821},{"$f":"valuePL(K35,'Utility Functions'!$S$3:$S$7,'Utility Functions'!$T$3:$T$7)","v":1},{"$f":"valueE(L35,'Utility Functions'!$V$3,'Utility Functions'!$V$4,'Utility Functions'!$V$5,'Utility Functions'!$V$6)","v":1},{"$f":"valuePL(M35,'Utility Functions'!$W$3:$W$6,'Utility Functions'!$X$3:$X$6)","v":0.91818181818181821},{"$f":"valueE(N35,'Utility Functions'!$Z$3,'Utility Functions'!$Z$4,'Utility Functions'!$Z$5,'Utility Functions'!$Z$6)","v":0},{"$f":"valuePL(O35,'Utility Functions'!$AA$3:$AA$5,'Utility Functions'!$AB$3:$AB$5)","v":0},{"$f":"valuePL(P35,'Utility Functions'!$AC$3:$AC$7,'Utility Functions'!$AD$3:$AD$7)","v":0.5},{"$f":"valuePL(Q35,'Utility Functions'!$AE$3:$AE$6,'Utility Functions'!$AF$3:$AF$6)","v":0},{"$f":"valuePL(R35,'Utility Functions'!$AG$3:$AG$6,'Utility Functions'!$AH$3:$AH$6)","v":1},{"$f":"valuePL(S35,'Utility Functions'!$AI$3:$AI$6,'Utility Functions'!$AJ$3:$AJ$6)","v":1},{"$f":"valuePL(T35,'Utility Functions'!$AK$3:$AK$8,'Utility Functions'!$AL$3:$AL$8)","v":0.8},{"$f":"valuePL(U35,'Utility Functions'!$AM$3:$AM$5,'Utility Functions'!$AN$3:$AN$5)","v":0},{"$f":"valuePL(V35,'Utility Functions'!$AO$3:$AO$5,'Utility Functions'!$AP$3:$AP$5)","v":1},{"$f":"valuePL(W35,'Utility Functions'!$AQ$3:$AQ$6,'Utility Functions'!$AR$3:$AR$6)","v":1},{"$f":"valuePL(X35,'Utility Functions'!$AS$3:$AS$6,'Utility Functions'!$AT$3:$AT$6)","v":1},{"$f":"valuePL(Y35,'Utility Functions'!$AU$3:$AU$6,'Utility Functions'!$AV$3:$AV$6)","v":0},{"$f":"valuePL(Z35,'Utility Functions'!$AW$3:$AW$5,'Utility Functions'!$AX$3:$AX$5)","v":1},{"$f":"valuePL(AA35,'Utility Functions'!$AY$3:$AY$6,'Utility Functions'!$AZ$3:$AZ$6)","v":0.89999999999999991},{"$f":"valuePL(AB35,'Utility Functions'!$BA$3:$BA$5,'Utility Functions'!$BB$3:$BB$5)","v":0.25},{"$f":"valuePL(AC35,'Utility Functions'!$BC$3:$BC$5,'Utility Functions'!$BD$3:$BD$5)","v":0},13.297748835604624,null,13.297748835604624,0,4.847748835604623,0,3.3,5.15]
[35,{"$f":"valueE(B36,'Utility Functions'!$B$3,'Utility Functions'!$B$4,'Utility Functions'!$B$5,'Utility Functions'!$B$6)","v":0.79810469124896843},{"$f":"valueE(C36,'Utility Functions'!$D$3,'Utility Functions'!$D$4,'Utility Functions'!$D$5,'Utility Functions'!$D$6)","v":0.60939983135101949},{"$f":"valuePL(D36,'Utility Functions'!$E$3:$E$5,'Utility Functions'!$F$3:$F$5)","v":0.5},{"$f":"valuePL(E36,'Utility Functions'!$G$3:$G$5,'Utility Functions'!$H$3:$H$5)","v":0.5},{"$f":"valuePL(F36,'Utility Functions'!$I$3:$I$4,'Utility Functions'!$J$3:$J$5)","v":1},{"$f":"valueE(G36,'Utility Functions'!$L$3,'Utility Functions'!$L$4,'Utility Functions'!$L$5,'Utility Functions'!$L$6)","v":0},{"$f":"valueE(H36,'Utility Functions'!$N$3,'Utility Functions'!$N$4,'Utility Functions'!$N$5,'Utility Functions'!$N$6)","v":0},{"$f":"valuePL(I36,'Utility Functions'!$O$3:$O$6,'Utility Functions'!$P$3:$P$6)","v":0},{"$f":"valuePL(J36,'Utility Functions'!$Q$3:$Q$6,'Utility Functions'!$R$3:$R$6)","v":0},{"$f":"valuePL(K36,'Utility Functions'!$S$3:$S$7,'Utility Functions'!$T$3:$T$7)","v":1},{"$f":"valueE(L36,'Utility Functions'!$V$3,'Utility Functions'!$V$4,'Utility Functions'!$V$5,'Utility Functions'!$V$6)","v":0.66666666666666663},{"$f":"valuePL(M36,'Utility Functions'!$W$3:$W$6,'Utility Functions'!$X$3:$X$6)","v":0.1},{"$f":"valueE(N36,'Utility Functions'!$Z$3,'Utility Functions'!$Z$4,'Utility Functions'!$Z$5,'Utility Functions'!$Z$6)","v":1},{"$f":"valuePL(O36,'Utility Functions'!$AA$3:$AA$5,'Utility Functions'!$AB$3:$AB$5)","v":0},{"$f":"valuePL(P36,'Utility Functions'!$AC$3:$AC$7,'Utility Functions'!$AD$3:$AD$7)","v":0},{"$f":"valuePL(Q36,'Utility Functions'!$AE$3:$AE$6,'Utility Functions'!$AF$3:$AF$6)","v":0},{"$f":"valuePL(R36,'Utility Functions'!$AG$3:$AG$6,'Utility Functions'!$AH$3:$AH$6)","v":1},{"$f":"valuePL(S36,'Utility Functions'!$AI$3:$AI$6,'Utility Functions'!$AJ$3:$AJ$6)","v":1},{"$f":"valuePL(T36,'Utility Functions'!$AK$3:$AK$8,'Utility Functions'!$AL$3:$AL$8)","v":0.6},{"$f":"valuePL(U36,'Utility Functions'!$AM$3:$AM$5,'Utility Functions'!$AN$3:$AN$5)","v":0},{"$f":"valuePL(V36,'Utility Functions'!$AO$3:$AO$5,'Utility Functions'!$AP$3:$AP$5)","v":1},{"$f":"valuePL(W36,'Utility Functions'!$AQ$3:$AQ$6,'Utility Functions'!$AR$3:$AR$6)","v":0.75},{"$f":"valuePL(X36,'Utility Functions'!$AS$3:$AS$6,'Utility Functions'!$AT$3:$AT$6)","v":0},{"$f":"valuePL(Y36,'Utility Functions'!$AU$3:$AU$6,'Utility Functions'!$AV$3:$AV$6)","v":0.2},{"$f":"valuePL(Z36,'Utility Functions'!$AW$3:$AW$5,'Utility Functions'!$AX$3:$AX$5)","v":1},{"$f":"valuePL(AA36,'Utility Functions'!$AY$3:$AY$6,'Utility Functions'!$AZ$3:$AZ$6)","v":0},{"$f":"valuePL(AB36,'Utility Functions'!$BA$3:$BA$5,'Utility Functions'!$BB$3:$BB$5)","v":0.25},{"$f":"valuePL(AC36,'Utility Functions'!$BC$3:$BC$5,'Utility Functions'!$BD$3:$BD$5)","v":0.25},12.224171189266654,null,12.224171189266656,3.407504522599988,1.7666666666666666,1,2.6,3.45]
["Unweighted",{"$f":"SUMPRODUCT(B46:B80,$B$85:$B$119)","v":2.7136958452282869},{"$f":"SUMPRODUCT(C46:C80,$B$85:$B$119)","v":3.3322448952127779},{"$f":"SUMPRODUCT(D46:D80,$B$85:$B$119)","v":3.5},0.5,0,0.94623655913978499,0.3206831119544592,0.75454545454545452,0.08,0,0.66666666666666663,0.12,2,{"$f":"SUMPRODUCT(O46:O80,$B$85:$B$119)","v":0.5},1.25,1.6,4.2,3.99,2.2000000000000002,0.25,3,2.15,2.6000000000000005,2.8000000000000003,3,3.0999999999999996,3.5,1.25,null,null,"Unweighted",{"$f":"SUMPRODUCT(AG46:AG80,$B$85:$B$119)","v":10.045940740441065},{"$f":"SUMPRODUCT(AH46:AH80,$B$85:$B$119)","v":2.8881317923063654},2.5,13.489999999999998,21.4]
["Weighted",{"$f":"B$81*Sens_EP!I$5","v":4.8898012906532382E-2},{"$f":"C$81*Sens_EP!J$5","v":5.6760734414975297E-2},{"$f":"D$81*Sens_EP!K$5","v":6.0377443721252262E-2},{"$f":"E$81*Sens_EP!L$5","v":8.4032813566339761E-3},{"$f":"F$81*Sens_EP!M$5","v":0},{"$f":"G$81*Sens_EP!N$5","v":7.9813753764984702E-3},{"$f":"H$81*Sens_EP!O$5","v":2.7049179919015538E-3},{"$f":"I$81*Sens_EP!P$5","v":1.0803644772592876E-2},{"$f":"J$81*Sens_EP!Q$5","v":1.116180463204328E-3},{"$f":"K$81*Sens_EP!R$5","v":0},{"$f":"L$81*Sens_EP!S$5","v":8.3995863702498279E-3},{"$f":"M$81*Sens_EP!T$5","v":1.1416186273838994E-3},{"$f":"N$81*Sens_EP!U$5","v":0.25},{"$f":"O$81*Sens_EP!V$5","v":0.1875},{"$f":"P$81*Sens_EP!W$5","v":2.8080568114283819E-2},{"$f":"Q$81*Sens_EP!X$5","v":3.96205791842816E-2},{"$f":"R$81*Sens_EP!Y$5","v":0.11904802891710568},{"$f":"S$81*Sens_EP!Z$5","v":9.9055021179339495E-2},{"$f":"T$81*Sens_EP!AA$5","v":3.9754150980179551E-2},{"$f":"U$81*Sens_EP!AB$5","v":4.4739156551114783E-3},{"$f":"V$81*Sens_EP!AC$5","v":9.2823354206646516E-2},{"$f":"W$81*Sens_EP!AD$5","v":4.7974774516413958E-2},{"$f":"X$81*Sens_EP!AE$5","v":6.2044592489433191E-2},{"$f":"Y$81*Sens_EP!AF$5","v":8.3032004932578771E-2},{"$f":"Z$81*Sens_EP!AG$5","v":7.708418525844371E-2},{"$f":"AA$81*Sens_EP!AH$5","v":6.1719437784250077E-2},{"$f":"AB$81*Sens_EP!AI$5","v":7.3900355544476604E-2},{"$f":"AC$81*Sens_EP!AJ$5","v":2.4613309304703339E-2},null,null,"Weighted for SA",{"$f":"AG81*#REF!","v":{"$error":"#REF!"}},{"$f":"AH81*#REF!","v":{"$error":"#REF!"}},{"$f":"AI81*#REF!","v":{"$error":"#REF!"}},{"$f":"AJ81*#REF!","v":{"$error":"#REF!"}},{"$f":"AK81*#REF!","v":{"$error":"#REF!"}}]
[]
[null,"Decision variable","Benefit","Cost"]
[{"$f":"A2","v":1},0,{"$f":"AD46","v":17.117643866192076},{"$f":"AD2","v":700000}]
[2,0,{"$f":"AD47","v":12.641625800575998},{"$f":"AD3","v":5400000}]
[3,0,11.563541444302563,250000]
[4,0,9.2460291931089209,150000]
[5,0,9.5663279251355373,220000]
[6,0,5.9008471271383875,110000]
[7,0,15.54287399641135,1000000]
[8,0,14.227364688589191,5000000]
[9,0,11.893773577166716,25000]
[10,0,9.01,900000]
[11,0,13.174032258064516,1500000]
[12,1,9.4195802436719873,100000]
[13,0,7.5245670174228056,250000]
[14,0,10.338706637075108,500000]
[15,0,15.150477261414375,800000]
[16,0,15.119696969696969,2000000]
[17,0,10.876550515651747,500000]
[18,1,10.178462998102468,300000]
[19,0,9.3165012474871283,750000]
[20,0,15.091255033092194,1500000]
[21,0,9.5500000000000007,900000]
[22,0,9.471742567994939,750000]
[23,0,9.5321507448123199,1000000]
[24,0,9.4968811881212041,150000]
[25,1,13.870607417804099,250000]
[26,0,11.064076562960208,500000]
[27,0,9.0147596715374529,1200000]
[28,0,12.499282052393189,500000]
[29,0,12.453684519169958,2000000]
[30,1,7.6494228467205527,250000]
[31,1,9.2059990264483247,650000]
[32,0,14.52045942179552,200000]
[33,0,10.246639728724558,400000]
[34,0,13.297748835604624,900000]
[35,0,12.224171189266654,900000]
[null,{"$f":"SUM(B85:B119)","v":5},{"$f":"SUMPRODUCT(C85:C119,B85:B119)","v":50.324072532747437},{"$f":"SUMPRODUCT(B85:B119,D85:D119)","v":1550000}]
[]
[null,null,"Cost constraint"]

{"sheet":"Portfolio_B_ep","index":34,"n_rows":122,"n_cols":37,"rows_kept":122,"cut":false,"hidden":false,"merged":[]}
["Project","manage_species","manage_spatial","manage_uncertainty","manage_currentpractices","manage_adaptivemanagement","pop_a","pop_b","pop_spatialscope","pop_temporalscope","hab_quantity","hab_quality","hab_temporal","ecoprocess_spp","ecoprocess_uncertainty","datasharing","broaderimpacts","exisitingpriorities","partners","leverage","alignment","objhyp","response","targettaxa","surveydesign","stats","datamanagement","budget","timeline","cost"]
[1,9,6.25,2,2,0,186,1054,75,5,0,2,0,0,0,4,0,2,3,0,0,2,3,3,3,2,3,2,2,700000]
[2,3,28.2,1,0,0,0,0,0,0,0,2,0,4,1,0,0,3,3,0,0,2,3,3,3,2,3,2,2,5400000]
[3,8,28.2,2,0,0,0,0,0,0,0,2,0,5,1,0,2,0,0,0,1,2,3,3,3,2,1,2,2,250000]
[4,1,6.25,2,0,0,0,0,0,0,0,2,0,4,1,0,1,3,3,4,0,1,3,3,1,0,0,2,1,150000]
[5,4,3.1,2,0,0,0,0,50,2,0,2,0,0,0,0,1,3,3,4,1,0,3,3,2,0,0,2,1,220000]
[6,10,6.2E-2,2,0,0,0,0,10,2,0,2,0,0,0,0,1,0,3,3,0,0,0,3,0,0,0,2,1,110000]
[7,52,18.8,0,2,0,0,0,85,12,85,8,12,8,1,0,0,3,3,0,0,2,0,1,3,2,2,0,2,1000000]
[8,3,18.8,2,1,1,0,0,14,14,14,8,14,0,0,0,3,1,3,0,0,2,3,3,3,2,0,1,1,5000000]
[9,9,15.6,2,1,0,70,140,0,0,0,2,0,0,0,3,0,3,2,1,0,2,3,3,1,2,1,1,2,25000]
[10,0,0,0,0,0,0,0,0,0,0,2,0,6,2,1,2,3,2,2,0,0,2,3,3,1,1,0,2,900000]
[11,0,0,0,0,0,6,102,52,15,52,8,15,3,1,1,0,3,3,2,2,2,1,3,3,1,2,0,1,1500000]
[12,2,15.6,2,1,0,0,0,0,0,0,2,0,0,0,0,1,3,3,3,0,1,1,3,1,2,1,2,0,100000]
[13,0,0,0,0,0,0,12,39,2,39,8,2,7,1,1,0,3,3,0,0,1,0,1,0,2,1,1,1,250000]
[14,6,15.6,1,1,0,0,0,0,0,0,2,0,6,1,1,0,3,3,0,0,1,1,3,3,1,2,1,1,500000]
[15,23,12.5,2,1,1,0,0,23,3,23,8,3,1,2,2,0,2,3,3,2,0,3,1,1,2,3,2,1,800000]
[16,0,0,0,0,0,0,0,100,15,100,7,15,0,0,3,0,3,3,5,0,2,2,2,1,2,3,2,2,2000000]
[17,2,15.6,2,1,1,58,290,0,0,0,8,3,0,0,0,0,3,2,0,0,2,3,1,0,1,0,2,1,500000]
[18,0,0,0,0,0,0,30,0,0,0,2,0,8,1,1,3,3,3,5,1,2,2,1,2,1,2,1,0,300000]
[19,8,3.125,1,2,0,0,0,0,0,0,2,0,8,2,0,0,2,3,0,0,1,1,3,2,0,1,0,1,750000]
[20,9,15.6,1,2,0,0,435,76,10,76,6,10,8,2,1,0,3,3,3,2,1,0,0,1,2,1,0,1,1500000]
[21,0,0,0,0,0,0,0,0,0,0,2,0,8,2,0,1,3,3,5,1,0,2,3,1,0,3,1,2,900000]
[22,0,0,0,0,0,16,64,0,0,0,2,0,1,2,4,2,2,3,5,0,1,2,1,0,2,1,2,1,750000]
[23,9,18.8,2,0,0,0,0,0,0,0,2,0,0,0,3,0,3,3,5,0,2,1,2,1,1,1,0,1,1000000]
[24,5,6.25,2,0,0,0,0,0,0,0,2,0,0,0,0,0,3,3,5,0,0,3,1,3,2,1,0,2,150000]
[25,9,18.8,2,0,0,176,308,0,0,0,2,0,8,1,2,2,3,3,0,0,2,1,3,2,1,1,2,2,250000]
[26,17,18.8,2,1,0,0,0,0,0,0,2,0,0,0,3,0,3,3,4,0,2,1,0,2,0,1,2,2,500000]
[27,0,6.25,2,0,0,0,0,0,0,80,2,5,0,0,2,2,3,3,5,0,1,2,3,1,0,0,0,0,1200000]
[28,3,6.25,2,0,1,0,0,0,0,0,4,5,0,0,4,0,3,3,4,0,2,3,3,1,0,2,2,1,500000]
[29,9,12.5,2,1,0,0,0,15,12,15,8,12,0,0,1,0,3,3,4,0,2,1,0,2,1,1,1,2,2000000]
[30,33,18.8,2,0,0,0,0,0,0,0,4,2,0,0,0,0,1,1,0,0,0,3,1,2,0,2,2,0,250000]
[31,4,18.8,1,0,0,0,0,65,4,0,4,4,0,0,2,0,3,2,3,0,1,0,1,1,2,2,1,1,650000]
[32,5,3.125,2,2,1,6,102,40,16,40,8,16,0,0,2,3,3,0,4,0,0,2,1,2,1,0,2,1,200000]
[33,14,18.8,2,1,0,0,0,0,0,0,5,0,0,0,2,0,3,2,0,0,1,3,0,2,2,3,0,0,400000]
[34,0,0,0,0,0,0,12,100,15,100,8,15,0,0,2,0,3,3,4,0,2,3,3,0,2,2,1,0,900000]
[35,8,9.4,1,1,1,0,0,0,0,100,6,5,8,0,0,0,3,3,3,0,2,2,0,1,2,0,1,1,900000]
["CV",{"$f":"_xlfn.STDEV.S(B2:B36)/AVERAGE(B2:B36)","v":1.383842854444886},{"$f":"_xlfn.STDEV.S(C2:C36)/AVERAGE(C2:C36)","v":0.84395823753626376},{"$f":"_xlfn.STDEV.S(D2:D36)/AVERAGE(D2:D36)","v":0.65948586466528381},{"$f":"_xlfn.STDEV.S(E2:E36)/AVERAGE(E2:E36)","v":1.2933654230908831},2.2305806858480666,2.9881459898804135,2.7250501152884543,1.5394659205075842,1.5790297611729722,1.6828143944790142,0.63288342730791625,1.4346340567392073,1.2744250477591585,1.2909944487358058,1.043011114951035,1.4910544805781871,0.32582327651393111,0.30721159062514791,0.8219511329380369,2.1760730956581078,0.64975875258290616,0.58618247649425104,0.61083323417736113,0.63333947951472869,0.68629571860885286,0.76505300516434493,0.69428102652373402,0.60312027652595823]
["sd",{"$f":"_xlfn.STDEV.S(B2:B36)","v":10.477667326511279}]
["mean",{"$f":"AVERAGE(B2:B36)","v":7.5714285714285712}]
[null,{"$f":"B1","v":"manage_species"},{"$f":"C1","v":"manage_spatial"},"manage_uncertainty","manage_currentpractices","manage_adaptivemanagement","pop_a","pop_b","pop_spatialscope","pop_temporalscope","hab_quantity","hab_quality","hab_temporal","ecoprocess_spp","ecoprocess_uncertainty","datasharing","broaderimpacts","exisitingpriorities","partners","leverage","alignment","objhyp","response","targettaxa","surveydesign","stats","datamanagement","budget","timeline"]
[null,"Metric 1","Metric 2","Metric 3","Metric 4","Metric 5","Metric 6a","Metric 6b","Metric 7","Metric 8","Metric 9","Metric 10","Metric 11","Metric 12","Metric 13","Metric 14","Metric 15","Metric 16","Metric 17","Metric 18","Metric 19","Metric 20","Metric 21","Metric 22","Metric 23","Metric 24","Metric 25","Metric 26","Metric 27"]
["Weights",0.03,0.03,0.03,0.03,0.04,1.4999999999999999E-2,1.4999999999999999E-2,0.03,0.02,0.02,0.02,0.02,0.03,0.09,0.04,0.04,0.05,0.05,0.03,0.03,0.05,0.04,0.04,0.05,0.05,0.04,0.04,0.03]
[]
[null,"Unweighted"]
["Project",null,null,null,null,null,null,null,null,null,null,null,null,null,null,null,null,null,null,null,null,null,null,null,null,null,null,null,null,"Unweighted total",null,"Unweighted total","management","status","ecol_proc","integration","rigor"]
[{"$f":"A2","v":1},{"$f":"valueE(B2,'Utility Functions'!$B$3,'Utility Functions'!$B$4,'Utility Functions'!$B$5,'Utility Functions'!$B$6)","v":0.83470237647280454},{"$f":"valueE(C2,'Utility Functions'!$D$3,'Utility Functions'!$D$4,'Utility Functions'!$D$5,'Utility Functions'!$D$6)","v":0.46475967153745396},{"$f":"valuePL(D2,'Utility Functions'!$E$3:$E$5,'Utility Functions'!$F$3:$F$5)","v":1},{"$f":"valuePL(E2,'Utility Functions'!$G$3:$G$5,'Utility Functions'!$H$3:$H$5)","v":1},{"$f":"valuePL(F2,'Utility Functions'!$I$3:$I$4,'Utility Functions'!$J$3:$J$5)","v":0},{"$f":"valueE(G2,'Utility Functions'!$L$3,'Utility Functions'!$L$4,'Utility Functions'!$L$5,'Utility Functions'!$L$6)","v":1},{"$f":"valueE(H2,'Utility Functions'!$N$3,'Utility Functions'!$N$4,'Utility Functions'!$N$5,'Utility Functions'!$N$6)","v":1},{"$f":"valuePL(I2,'Utility Functions'!$O$3:$O$6,'Utility Functions'!$P$3:$P$6)","v":0.91818181818181821},{"$f":"valuePL(J2,'Utility Functions'!$Q$3:$Q$6,'Utility Functions'!$R$3:$R$6)","v":0.1},{"$f":"valuePL(K2,'Utility Functions'!$S$3:$S$7,'Utility Functions'!$T$3:$T$7)","v":0},{"$f":"valueE(L2,'Utility Functions'!$V$3,'Utility Functions'!$V$4,'Utility Functions'!$V$5,'Utility Functions'!$V$6)","v":0},{"$f":"valuePL(M2,'Utility Functions'!$W$3:$W$6,'Utility Functions'!$X$3:$X$6)","v":0},{"$f":"valueE(N2,'Utility Functions'!$Z$3,'Utility Functions'!$Z$4,'Utility Functions'!$Z$5,'Utility Functions'!$Z$6)","v":0},{"$f":"valuePL(O2,'Utility Functions'!$AA$3:$AA$5,'Utility Functions'!$AB$3:$AB$5)","v":0},{"$f":"valuePL(P2,'Utility Functions'!$AC$3:$AC$7,'Utility Functions'!$AD$3:$AD$7)","v":1},{"$f":"valuePL(Q2,'Utility Functions'!$AE$3:$AE$6,'Utility Functions'!$AF$3:$AF$6)","v":0},{"$f":"valuePL(R2,'Utility Functions'!$AG$3:$AG$6,'Utility Functions'!$AH$3:$AH$6)","v":0.8},{"$f":"valuePL(S2,'Utility Functions'!$AI$3:$AI$6,'Utility Functions'!$AJ$3:$AJ$6)","v":1},{"$f":"valuePL(T2,'Utility Functions'!$AK$3:$AK$8,'Utility Functions'!$AL$3:$AL$8)","v":0},{"$f":"valuePL(U2,'Utility Functions'!$AM$3:$AM$5,'Utility Functions'!$AN$3:$AN$5)","v":0},{"$f":"valuePL(V2,'Utility Functions'!$AO$3:$AO$5,'Utility Functions'!$AP$3:$AP$5)","v":1},{"$f":"valuePL(W2,'Utility Functions'!$AQ$3:$AQ$6,'Utility Functions'!$AR$3:$AR$6)","v":1},{"$f":"valuePL(X2,'Utility Functions'!$AS$3:$AS$6,'Utility Functions'!$AT$3:$AT$6)","v":1},{"$f":"valuePL(Y2,'Utility Functions'!$AU$3:$AU$6,'Utility Functions'!$AV$3:$AV$6)","v":1},{"$f":"valuePL(Z2,'Utility Functions'!$AW$3:$AW$5,'Utility Functions'!$AX$3:$AX$5)","v":1},{"$f":"valuePL(AA2,'Utility Functions'!$AY$3:$AY$6,'Utility Functions'!$AZ$3:$AZ$6)","v":1},{"$f":"valuePL(AB2,'Utility Functions'!$BA$3:$BA$5,'Utility Functions'!$BB$3:$BB$5)","v":1},{"$f":"valuePL(AC2,'Utility Functions'!$BC$3:$BC$5,'Utility Functions'!$BD$3:$BD$5)","v":1},{"$f":"SUM(B46:AC46)","v":17.117643866192076},null,{"$f":"SUM(AG46:AK46)","v":17.117643866192076},{"$f":"SUM(B46:F46)","v":3.2994620480102586},{"$f":"SUM(G46:M46)","v":3.0181818181818181},{"$f":"SUM(N46:O46)","v":0},{"$f":"SUM(P46:U46)","v":2.8},{"$f":"SUM(V46:AC46)","v":8}]
[2,{"$f":"valueE(B3,'Utility Functions'!$B$3,'Utility Functions'!$B$4,'Utility Functions'!$B$5,'Utility Functions'!$B$6)","v":0.4511890475224023},{"$f":"valueE(C3,'Utility Functions'!$D$3,'Utility Functions'!$D$4,'Utility Functions'!$D$5,'Utility Functions'!$D$6)","v":0.94043675305359531},{"$f":"valuePL(D3,'Utility Functions'!$E$3:$E$5,'Utility Functions'!$F$3:$F$5)","v":0.5},{"$f":"valuePL(E3,'Utility Functions'!$G$3:$G$5,'Utility Functions'!$H$3:$H$5)","v":0},{"$f":"valuePL(F3,'Utility Functions'!$I$3:$I$4,'Utility Functions'!$J$3:$J$5)","v":0},{"$f":"valueE(G3,'Utility Functions'!$L$3,'Utility Functions'!$L$4,'Utility Functions'!$L$5,'Utility Functions'!$L$6)","v":0},{"$f":"valueE(H3,'Utility Functions'!$N$3,'Utility Functions'!$N$4,'Utility Functions'!$N$5,'Utility Functions'!$N$6)","v":0},{"$f":"valuePL(I3,'Utility Functions'!$O$3:$O$6,'Utility Functions'!$P$3:$P$6)","v":0},{"$f":"valuePL(J3,'Utility Functions'!$Q$3:$Q$6,'Utility Functions'!$R$3:$R$6)","v":0},{"$f":"valuePL(K3,'Utility Functions'!$S$3:$S$7,'Utility Functions'!$T$3:$T$7)","v":0},{"$f":"valueE(L3,'Utility Functions'!$V$3,'Utility Functions'!$V$4,'Utility Functions'!$V$5,'Utility Functions'!$V$6)","v":0},{"$f":"valuePL(M3,'Utility Functions'!$W$3:$W$6,'Utility Functions'!$X$3:$X$6)","v":0},{"$f":"valueE(N3,'Utility Functions'!$Z$3,'Utility Functions'!$Z$4,'Utility Functions'!$Z$5,'Utility Functions'!$Z$6)","v":0.5},{"$f":"valuePL(O3,'Utility Functions'!$AA$3:$AA$5,'Utility Functions'!$AB$3:$AB$5)","v":0.25},{"$f":"valuePL(P3,'Utility Functions'!$AC$3:$AC$7,'Utility Functions'!$AD$3:$AD$7)","v":0},{"$f":"valuePL(Q3,'Utility Functions'!$AE$3:$AE$6,'Utility Functions'!$AF$3:$AF$6)","v":0},{"$f":"valuePL(R3,'Utility Functions'!$AG$3:$AG$6,'Utility Functions'!$AH$3:$AH$6)","v":1},{"$f":"valuePL(S3,'Utility Functions'!$AI$3:$AI$6,'Utility Functions'!$AJ$3:$AJ$6)","v":1},{"$f":"valuePL(T3,'Utility Functions'!$AK$3:$AK$8,'Utility Functions'!$AL$3:$AL$8)","v":0},{"$f":"valuePL(U3,'Utility Functions'!$AM$3:$AM$5,'Utility Functions'!$AN$3:$AN$5)","v":0},{"$f":"valuePL(V3,'Utility Functions'!$AO$3:$AO$5,'Utility Functions'!$AP$3:$AP$5)","v":1},{"$f":"valuePL(W3,'Utility Functions'!$AQ$3:$AQ$6,'Utility Functions'!$AR$3:$AR$6)","v":1},{"$f":"valuePL(X3,'Utility Functions'!$AS$3:$AS$6,'Utility Functions'!$AT$3:$AT$6)","v":1},{"$f":"valuePL(Y3,'Utility Functions'!$AU$3:$AU$6,'Utility Functions'!$AV$3:$AV$6)","v":1},{"$f":"valuePL(Z3,'Utility Functions'!$AW$3:$AW$5,'Utility Functions'!$AX$3:$AX$5)","v":1},{"$f":"valuePL(AA3,'Utility Functions'!$AY$3:$AY$6,'Utility Functions'!$AZ$3:$AZ$6)","v":1},{"$f":"valuePL(AB3,'Utility Functions'!$BA$3:$BA$5,'Utility Functions'!$BB$3:$BB$5)","v":1},{"$f":"valuePL(AC3,'Utility Functions'!$BC$3:$BC$5,'Utility Functions'!$BD$3:$BD$5)","v":1},{"$f":"SUM(B47:AC47)","v":12.641625800575998},null,{"$f":"SUM(AG47:AK47)","v":12.641625800575998},{"$f":"SUM(B47:F47)","v":1.8916258005759976},{"$f":"SUM(G47:M47)","v":0},{"$f":"SUM(N47:O47)","v":0.75},{"$f":"SUM(P47:U47)","v":2},{"$f":"SUM(V47:AC47)","v":8}]
[3,{"$f":"valueE(B4,'Utility Functions'!$B$3,'Utility Functions'!$B$4,'Utility Functions'!$B$5,'Utility Functions'!$B$6)","v":0.79810469124896843},{"$f":"valueE(C4,'Utility Functions'!$D$3,'Utility Functions'!$D$4,'Utility Functions'!$D$5,'Utility Functions'!$D$6)","v":0.94043675305359531},{"$f":"valuePL(D4,'Utility Functions'!$E$3:$E$5,'Utility Functions'!$F$3:$F$5)","v":1},{"$f":"valuePL(E4,'Utility Functions'!$G$3:$G$5,'Utility Functions'!$H$3:$H$5)","v":0},{"$f":"valuePL(F4,'Utility Functions'!$I$3:$I$4,'Utility Functions'!$J$3:$J$5)","v":0},{"$f":"valueE(G4,'Utility Functions'!$L$3,'Utility Functions'!$L$4,'Utility Functions'!$L$5,'Utility Functions'!$L$6)","v":0},{"$f":"valueE(H4,'Utility Functions'!$N$3,'Utility Functions'!$N$4,'Utility Functions'!$N$5,'Utility Functions'!$N$6)","v":0},{"$f":"valuePL(I4,'Utility Functions'!$O$3:$O$6,'Utility Functions'!$P$3:$P$6)","v":0},{"$f":"valuePL(J4,'Utility Functions'!$Q$3:$Q$6,'Utility Functions'!$R$3:$R$6)","v":0},{"$f":"valuePL(K4,'Utility Functions'!$S$3:$S$7,'Utility Functions'!$T$3:$T$7)","v":0},{"$f":"valueE(L4,'Utility Functions'!$V$3,'Utility Functions'!$V$4,'Utility Functions'!$V$5,'Utility Functions'!$V$6)","v":0},{"$f":"valuePL(M4,'Utility Functions'!$W$3:$W$6,'Utility Functions'!$X$3:$X$6)","v":0},{"$f":"valueE(N4,'Utility Functions'!$Z$3,'Utility Functions'!$Z$4,'Utility Functions'!$Z$5,'Utility Functions'!$Z$6)","v":0.625},{"$f":"valuePL(O4,'Utility Functions'!$AA$3:$AA$5,'Utility Functions'!$AB$3:$AB$5)","v":0.25},{"$f":"valuePL(P4,'Utility Functions'!$AC$3:$AC$7,'Utility Functions'!$AD$3:$AD$7)","v":0},{"$f":"valuePL(Q4,'Utility Functions'!$AE$3:$AE$6,'Utility Functions'!$AF$3:$AF$6)","v":0.5},{"$f":"valuePL(R4,'Utility Functions'!$AG$3:$AG$6,'Utility Functions'!$AH$3:$AH$6)","v":0},{"$f":"valuePL(S4,'Utility Functions'!$AI$3:$AI$6,'Utility Functions'!$AJ$3:$AJ$6)","v":0},{"$f":"valuePL(T4,'Utility Functions'!$AK$3:$AK$8,'Utility Functions'!$AL$3:$AL$8)","v":0},{"$f":"valuePL(U4,'Utility Functions'!$AM$3:$AM$5,'Utility Functions'!$AN$3:$AN$5)","v":0.25},{"$f":"valuePL(V4,'Utility Functions'!$AO$3:$AO$5,'Utility Functions'!$AP$3:$AP$5)","v":1},{"$f":"valuePL(W4,'Utility Functions'!$AQ$3:$AQ$6,'Utility Functions'!$AR$3:$AR$6)","v":1},{"$f":"valuePL(X4,'Utility Functions'!$AS$3:$AS$6,'Utility Functions'!$AT$3:$AT$6)","v":1},{"$f":"valuePL(Y4,'Utility Functions'!$AU$3:$AU$6,'Utility Functions'!$AV$3:$AV$6)","v":1},{"$f":"valuePL(Z4,'Utility Functions'!$AW$3:$AW$5,'Utility Functions'!$AX$3:$AX$5)","v":1},{"$f":"valuePL(AA4,'Utility Functions'!$AY$3:$AY$6,'Utility Functions'!$AZ$3:$AZ$6)","v":0.2},{"$f":"valuePL(AB4,'Utility Functions'!$BA$3:$BA$5,'Utility Functions'!$BB$3:$BB$5)","v":1},{"$f":"valuePL(AC4,'Utility Functions'!$BC$3:$BC$5,'Utility Functions'!$BD$3:$BD$5)","v":1},11.563541444302563,null,11.563541444302565,2.7385414443025637,0,0.875,0.75,7.2]
[4,{"$f":"valueE(B5,'Utility Functions'!$B$3,'Utility Functions'!$B$4,'Utility Functions'!$B$5,'Utility Functions'!$B$6)","v":0.1812695215714665},{"$f":"valueE(C5,'Utility Functions'!$D$3,'Utility Functions'!$D$4,'Utility Functions'!$D$5,'Utility Functions'!$D$6)","v":0.46475967153745396},{"$f":"valuePL(D5,'Utility Functions'!$E$3:$E$5,'Utility Functions'!$F$3:$F$5)","v":1},{"$f":"valuePL(E5,'Utility Functions'!$G$3:$G$5,'Utility Functions'!$H$3:$H$5)","v":0},{"$f":"valuePL(F5,'Utility Functions'!$I$3:$I$4,'Utility Functions'!$J$3:$J$5)","v":0},{"$f":"valueE(G5,'Utility Functions'!$L$3,'Utility Functions'!$L$4,'Utility Functions'!$L$5,'Utility Functions'!$L$6)","v":0},{"$f":"valueE(H5,'Utility Functions'!$N$3,'Utility Functions'!$N$4,'Utility Functions'!$N$5,'Utility Functions'!$N$6)","v":0},{"$f":"valuePL(I5,'Utility Functions'!$O$3:$O$6,'Utility Functions'!$P$3:$P$6)","v":0},{"$f":"valuePL(J5,'Utility Functions'!$Q$3:$Q$6,'Utility Functions'!$R$3:$R$6)","v":0},{"$f":"valuePL(K5,'Utility Functions'!$S$3:$S$7,'Utility Functions'!$T$3:$T$7)","v":0},{"$f":"valueE(L5,'Utility Functions'!$V$3,'Utility Functions'!$V$4,'Utility Functions'!$V$5,'Utility Functions'!$V$6)","v":0},{"$f":"valuePL(M5,'Utility Functions'!$W$3:$W$6,'Utility Functions'!$X$3:$X$6)","v":0},{"$f":"valueE(N5,'Utility Functions'!$Z$3,'Utility Functions'!$Z$4,'Utility Functions'!$Z$5,'Utility Functions'!$Z$6)","v":0.5},{"$f":"valuePL(O5,'Utility Functions'!$AA$3:$AA$5,'Utility Functions'!$AB$3:$AB$5)","v":0.25},{"$f":"valuePL(P5,'Utility Functions'!$AC$3:$AC$7,'Utility Functions'!$AD$3:$AD$7)","v":0},{"$f":"valuePL(Q5,'Utility Functions'!$AE$3:$AE$6,'Utility Functions'!$AF$3:$AF$6)","v":0.1},{"$f":"valuePL(R5,'Utility Functions'!$AG$3:$AG$6,'Utility Functions'!$AH$3:$AH$6)","v":1},{"$f":"valuePL(S5,'Utility Functions'!$AI$3:$AI$6,'Utility Functions'!$AJ$3:$AJ$6)","v":1},{"$f":"valuePL(T5,'Utility Functions'!$AK$3:$AK$8,'Utility Functions'!$AL$3:$AL$8)","v":0.8},{"$f":"valuePL(U5,'Utility Functions'!$AM$3:$AM$5,'Utility Functions'!$AN$3:$AN$5)","v":0},{"$f":"valuePL(V5,'Utility Functions'!$AO$3:$AO$5,'Utility Functions'!$AP$3:$AP$5)","v":0.5},{"$f":"valuePL(W5,'Utility Functions'!$AQ$3:$AQ$6,'Utility Functions'!$AR$3:$AR$6)","v":1},{"$f":"valuePL(X5,'Utility Functions'!$AS$3:$AS$6,'Utility Functions'!$AT$3:$AT$6)","v":1},{"$f":"valuePL(Y5,'Utility Functions'!$AU$3:$AU$6,'Utility Functions'!$AV$3:$AV$6)","v":0.2},{"$f":"valuePL(Z5,'Utility Functions'!$AW$3:$AW$5,'Utility Functions'!$AX$3:$AX$5)","v":0},{"$f":"valuePL(AA5,'Utility Functions'!$AY$3:$AY$6,'Utility Functions'!$AZ$3:$AZ$6)","v":0},{"$f":"valuePL(AB5,'Utility Functions'!$BA$3:$BA$5,'Utility Functions'!$BB$3:$BB$5)","v":1},{"$f":"valuePL(AC5,'Utility Functions'!$BC$3:$BC$5,'Utility Functions'!$BD$3:$BD$5)","v":0.25},9.2460291931089209,null,9.2460291931089209,1.6460291931089204,0,0.75,2.9000000000000004,3.95]
[5,{"$f":"valueE(B6,'Utility Functions'!$B$3,'Utility Functions'!$B$4,'Utility Functions'!$B$5,'Utility Functions'!$B$6)","v":0.55067187023002029},{"$f":"valueE(C6,'Utility Functions'!$D$3,'Utility Functions'!$D$4,'Utility Functions'!$D$5,'Utility Functions'!$D$6)","v":0.26656514581460788},{"$f":"valuePL(D6,'Utility Functions'!$E$3:$E$5,'Utility Functions'!$F$3:$F$5)","v":1},{"$f":"valuePL(E6,'Utility Functions'!$G$3:$G$5,'Utility Functions'!$H$3:$H$5)","v":0},{"$f":"valuePL(F6,'Utility Functions'!$I$3:$I$4,'Utility Functions'!$J$3:$J$5)","v":0},{"$f":"valueE(G6,'Utility Functions'!$L$3,'Utility Functions'!$L$4,'Utility Functions'!$L$5,'Utility Functions'!$L$6)","v":0},{"$f":"valueE(H6,'Utility Functions'!$N$3,'Utility Functions'!$N$4,'Utility Functions'!$N$5,'Utility Functions'!$N$6)","v":0},{"$f":"valuePL(I6,'Utility Functions'!$O$3:$O$6,'Utility Functions'!$P$3:$P$6)","v":0.50909090909090915},{"$f":"valuePL(J6,'Utility Functions'!$Q$3:$Q$6,'Utility Functions'!$R$3:$R$6)","v":0.04},{"$f":"valuePL(K6,'Utility Functions'!$S$3:$S$7,'Utility Functions'!$T$3:$T$7)","v":0},{"$f":"valueE(L6,'Utility Functions'!$V$3,'Utility Functions'!$V$4,'Utility Functions'!$V$5,'Utility Functions'!$V$6)","v":0},{"$f":"valuePL(M6,'Utility Functions'!$W$3:$W$6,'Utility Functions'!$X$3:$X$6)","v":0},{"$f":"valueE(N6,'Utility Functions'!$Z$3,'Utility Functions'!$Z$4,'Utility Functions'!$Z$5,'Utility Functions'!$Z$6)","v":0},{"$f":"valuePL(O6,'Utility Functions'!$AA$3:$AA$5,'Utility Functions'!$AB$3:$AB$5)","v":0},{"$f":"valuePL(P6,'Utility Functions'!$AC$3:$AC$7,'Utility Functions'!$AD$3:$AD$7)","v":0},{"$f":"valuePL(Q6,'Utility Functions'!$AE$3:$AE$6,'Utility Functions'!$AF$3:$AF$6)","v":0.1},{"$f":"valuePL(R6,'Utility Functions'!$AG$3:$AG$6,'Utility Functions'!$AH$3:$AH$6)","v":1},{"$f":"valuePL(S6,'Utility Functions'!$AI$3:$AI$6,'Utility Functions'!$AJ$3:$AJ$6)","v":1},{"$f":"valuePL(T6,'Utility Functions'!$AK$3:$AK$8,'Utility Functions'!$AL$3:$AL$8)","v":0.8},{"$f":"valuePL(U6,'Utility Functions'!$AM$3:$AM$5,'Utility Functions'!$AN$3:$AN$5)","v":0.25},{"$f":"valuePL(V6,'Utility Functions'!$AO$3:$AO$5,'Utility Functions'!$AP$3:$AP$5)","v":0},{"$f":"valuePL(W6,'Utility Functions'!$AQ$3:$AQ$6,'Utility Functions'!$AR$3:$AR$6)","v":1},{"$f":"valuePL(X6,'Utility Functions'!$AS$3:$AS$6,'Utility Functions'!$AT$3:$AT$6)","v":1},{"$f":"valuePL(Y6,'Utility Functions'!$AU$3:$AU$6,'Utility Functions'!$AV$3:$AV$6)","v":0.8},{"$f":"valuePL(Z6,'Utility Functions'!$AW$3:$AW$5,'Utility Functions'!$AX$3:$AX$5)","v":0},{"$f":"valuePL(AA6,'Utility Functions'!$AY$3:$AY$6,'Utility Functions'!$AZ$3:$AZ$6)","v":0},{"$f":"valuePL(AB6,'Utility Functions'!$BA$3:$BA$5,'Utility Functions'!$BB$3:$BB$5)","v":1},{"$f":"valuePL(AC6,'Utility Functions'!$BC$3:$BC$5,'Utility Functions'!$BD$3:$BD$5)","v":0.25},9.5663279251355373,null,9.5663279251355391,1.8172370160446283,0.54909090909090918,0,3.1500000000000004,4.05]
[6,{"$f":"valueE(B7,'Utility Functions'!$B$3,'Utility Functions'!$B$4,'Utility Functions'!$B$5,'Utility Functions'!$B$6)","v":0.86466602685702687},{"$f":"valueE(C7,'Utility Functions'!$D$3,'Utility Functions'!$D$4,'Utility Functions'!$D$5,'Utility Functions'!$D$6)","v":6.1811002813601471E-3},{"$f":"valuePL(D7,'Utility Functions'!$E$3:$E$5,'Utility Functions'!$F$3:$F$5)","v":1},{"$f":"valuePL(E7,'Utility Functions'!$G$3:$G$5,'Utility Functions'!$H$3:$H$5)","v":0},{"$f":"valuePL(F7,'Utility Functions'!$I$3:$I$4,'Utility Functions'!$J$3:$J$5)","v":0},{"$f":"valueE(G7,'Utility Functions'!$L$3,'Utility Functions'!$L$4,'Utility Functions'!$L$5,'Utility Functions'!$L$6)","v":0},{"$f":"valueE(H7,'Utility Functions'!$N$3,'Utility Functions'!$N$4,'Utility Functions'!$N$5,'Utility Functions'!$N$6)","v":0},{"$f":"valuePL(I7,'Utility Functions'!$O$3:$O$6,'Utility Functions'!$P$3:$P$6)","v":0.04},{"$f":"valuePL(J7,'Utility Functions'!$Q$3:$Q$6,'Utility Functions'!$R$3:$R$6)","v":0.04},{"$f":"valuePL(K7,'Utility Functions'!$S$3:$S$7,'Utility Functions'!$T$3:$T$7)","v":0},{"$f":"valueE(L7,'Utility Functions'!$V$3,'Utility Functions'!$V$4,'Utility Functions'!$V$5,'Utility Functions'!$V$6)","v":0},{"$f":"valuePL(M7,'Utility Functions'!$W$3:$W$6,'Utility Functions'!$X$3:$X$6)","v":0},{"$f":"valueE(N7,'Utility Functions'!$Z$3,'Utility Functions'!$Z$4,'Utility Functions'!$Z$5,'Utility Functions'!$Z$6)","v":0},{"$f":"valuePL(O7,'Utility Functions'!$AA$3:$AA$5,'Utility Functions'!$AB$3:$AB$5)","v":0},{"$f":"valuePL(P7,'Utility Functions'!$AC$3:$AC$7,'Utility Functions'!$AD$3:$AD$7)","v":0},{"$f":"valuePL(Q7,'Utility Functions'!$AE$3:$AE$6,'Utility Functions'!$AF$3:$AF$6)","v":0.1},{"$f":"valuePL(R7,'Utility Functions'!$AG$3:$AG$6,'Utility Functions'!$AH$3:$AH$6)","v":0},{"$f":"valuePL(S7,'Utility Functions'!$AI$3:$AI$6,'Utility Functions'!$AJ$3:$AJ$6)","v":1},{"$f":"valuePL(T7,'Utility Functions'!$AK$3:$AK$8,'Utility Functions'!$AL$3:$AL$8)","v":0.6},{"$f":"valuePL(U7,'Utility Functions'!$AM$3:$AM$5,'Utility Functions'!$AN$3:$AN$5)","v":0},{"$f":"valuePL(V7,'Utility Functions'!$AO$3:$AO$5,'Utility Functions'!$AP$3:$AP$5)","v":0},{"$f":"valuePL(W7,'Utility Functions'!$AQ$3:$AQ$6,'Utility Functions'!$AR$3:$AR$6)","v":0},{"$f":"valuePL(X7,'Utility Functions'!$AS$3:$AS$6,'Utility Functions'!$AT$3:$AT$6)","v":1},{"$f":"valuePL(Y7,'Utility Functions'!$AU$3:$AU$6,'Utility Functions'!$AV$3:$AV$6)","v":0},{"$f":"valuePL(Z7,'Utility Functions'!$AW$3:$AW$5,'Utility Functions'!$AX$3:$AX$5)","v":0},{"$f":"valuePL(AA7,'Utility Functions'!$AY$3:$AY$6,'Utility Functions'!$AZ$3:$AZ$6)","v":0},{"$f":"valuePL(AB7,'Utility Functions'!$BA$3:$BA$5,'Utility Functions'!$BB$3:$BB$5)","v":1},{"$f":"valuePL(AC7,'Utility Functions'!$BC$3:$BC$5,'Utility Functions'!$BD$3:$BD$5)","v":0.25},5.9008471271383875,null,5.9008471271383875,1.8708471271383869,0.08,0,1.7000000000000002,2.25]
[7,{"$f":"valueE(B8,'Utility Functions'!$B$3,'Utility Functions'!$B$4,'Utility Functions'!$B$5,'Utility Functions'!$B$6)","v":0.99997108261728973},{"$f":"valueE(C8,'Utility Functions'!$D$3,'Utility Functions'!$D$4,'Utility Functions'!$D$5,'Utility Functions'!$D$6)","v":0.84744836833951609},{"$f":"valuePL(D8,'Utility Functions'!$E$3:$E$5,'Utility Functions'!$F$3:$F$5)","v":0},{"$f":"valuePL(E8,'Utility Functions'!$G$3:$G$5,'Utility Functions'!$H$3:$H$5)","v":1},{"$f":"valuePL(F8,'Utility Functions'!$I$3:$I$4,'Utility Functions'!$J$3:$J$5)","v":0},{"$f":"valueE(G8,'Utility Functions'!$L$3,'Utility Functions'!$L$4,'Utility Functions'!$L$5,'Utility Functions'!$L$6)","v":0},{"$f":"valueE(H8,'Utility Functions'!$N$3,'Utility Functions'!$N$4,'Utility Functions'!$N$5,'Utility Functions'!$N$6)","v":0},{"$f":"valuePL(I8,'Utility Functions'!$O$3:$O$6,'Utility Functions'!$P$3:$P$6)","v":1},{"$f":"valuePL(J8,'Utility Functions'!$Q$3:$Q$6,'Utility Functions'!$R$3:$R$6)","v":0.67272727272727273},{"$f":"valuePL(K8,'Utility Functions'!$S$3:$S$7,'Utility Functions'!$T$3:$T$7)","v":1},{"$f":"valueE(L8,'Utility Functions'!$V$3,'Utility Functions'!$V$4,'Utility Functions'!$V$5,'Utility Functions'!$V$6)","v":1},{"$f":"valuePL(M8,'Utility Functions'!$W$3:$W$6,'Utility Functions'!$X$3:$X$6)","v":0.67272727272727273},{"$f":"valueE(N8,'Utility Functions'!$Z$3,'Utility Functions'!$Z$4,'Utility Functions'!$Z$5,'Utility Functions'!$Z$6)","v":1},{"$f":"valuePL(O8,'Utility Functions'!$AA$3:$AA$5,'Utility Functions'!$AB$3:$AB$5)","v":0.25},{"$f":"valuePL(P8,'Utility Functions'!$AC$3:$AC$7,'Utility Functions'!$AD$3:$AD$7)","v":0},{"$f":"valuePL(Q8,'Utility Functions'!$AE$3:$AE$6,'Utility Functions'!$AF$3:$AF$6)","v":0},{"$f":"valuePL(R8,'Utility Functions'!$AG$3:$AG$6,'Utility Functions'!$AH$3:$AH$6)","v":1},{"$f":"valuePL(S8,'Utility Functions'!$AI$3:$AI$6,'Utility Functions'!$AJ$3:$AJ$6)","v":1},{"$f":"valuePL(T8,'Utility Functions'!$AK$3:$AK$8,'Utility Functions'!$AL$3:$AL$8)","v":0},{"$f":"valuePL(U8,'Utility Functions'!$AM$3:$AM$5,'Utility Functions'!$AN$3:$AN$5)","v":0},{"$f":"valuePL(V8,'Utility Functions'!$AO$3:$AO$5,'Utility Functions'!$AP$3:$AP$5)","v":1},{"$f":"valuePL(W8,'Utility Functions'!$AQ$3:$AQ$6,'Utility Functions'!$AR$3:$AR$6)","v":0},{"$f":"valuePL(X8,'Utility Functions'!$AS$3:$AS$6,'Utility Functions'!$AT$3:$AT$6)","v":0.2},{"$f":"valuePL(Y8,'Utility Functions'!$AU$3:$AU$6,'Utility Functions'!$AV$3:$AV$6)","v":1},{"$f":"valuePL(Z8,'Utility Functions'!$AW$3:$AW$5,'Utility Functions'!$AX$3:$AX$5)","v":1},{"$f":"valuePL(AA8,'Utility Functions'!$AY$3:$AY$6,'Utility Functions'!$AZ$3:$AZ$6)","v":0.89999999999999991},{"$f":"valuePL(AB8,'Utility Functions'!$BA$3:$BA$5,'Utility Functions'!$BB$3:$BB$5)","v":0},{"$f":"valuePL(AC8,'Utility Functions'!$BC$3:$BC$5,'Utility Functions'!$BD$3:$BD$5)","v":1},15.54287399641135,null,15.54287399641135,2.8474194509568056,4.3454545454545457,1.25,2,5.0999999999999996]
[8,{"$f":"valueE(B9,'Utility Functions'!$B$3,'Utility Functions'!$B$4,'Utility Functions'!$B$5,'Utility Functions'!$B$6)","v":0.4511890475224023},{"$f":"valueE(C9,'Utility Functions'!$D$3,'Utility Functions'!$D$4,'Utility Functions'!$D$5,'Utility Functions'!$D$6)","v":0.84744836833951609},{"$f":"valuePL(D9,'Utility Functions'!$E$3:$E$5,'Utility Functions'!$F$3:$F$5)","v":1},{"$f":"valuePL(E9,'Utility Functions'!$G$3:$G$5,'Utility Functions'!$H$3:$H$5)","v":0.5},{"$f":"valuePL(F9,'Utility Functions'!$I$3:$I$4,'Utility Functions'!$J$3:$J$5)","v":1},{"$f":"valueE(G9,'Utility Functions'!$L$3,'Utility Functions'!$L$4,'Utility Functions'!$L$5,'Utility Functions'!$L$6)","v":0},{"$f":"valueE(H9,'Utility Functions'!$N$3,'Utility Functions'!$N$4,'Utility Functions'!$N$5,'Utility Functions'!$N$6)","v":0},{"$f":"valuePL(I9,'Utility Functions'!$O$3:$O$6,'Utility Functions'!$P$3:$P$6)","v":5.6000000000000008E-2},{"$f":"valuePL(J9,'Utility Functions'!$Q$3:$Q$6,'Utility Functions'!$R$3:$R$6)","v":0.83636363636363631},{"$f":"valuePL(K9,'Utility Functions'!$S$3:$S$7,'Utility Functions'!$T$3:$T$7)","v":0},{"$f":"valueE(L9,'Utility Functions'!$V$3,'Utility Functions'!$V$4,'Utility Functions'!$V$5,'Utility Functions'!$V$6)","v":1},{"$f":"valuePL(M9,'Utility Functions'!$W$3:$W$6,'Utility Functions'!$X$3:$X$6)","v":0.83636363636363631},{"$f":"valueE(N9,'Utility Functions'!$Z$3,'Utility Functions'!$Z$4,'Utility Functions'!$Z$5,'Utility Functions'!$Z$6)","v":0},{"$f":"valuePL(O9,'Utility Functions'!$AA$3:$AA$5,'Utility Functions'!$AB$3:$AB$5)","v":0},{"$f":"valuePL(P9,'Utility Functions'!$AC$3:$AC$7,'Utility Functions'!$AD$3:$AD$7)","v":0},{"$f":"valuePL(Q9,'Utility Functions'!$AE$3:$AE$6,'Utility Functions'!$AF$3:$AF$6)","v":1},{"$f":"valuePL(R9,'Utility Functions'!$AG$3:$AG$6,'Utility Functions'!$AH$3:$AH$6)","v":0.2},{"$f":"valuePL(S9,'Utility Functions'!$AI$3:$AI$6,'Utility Functions'!$AJ$3:$AJ$6)","v":1},{"$f":"valuePL(T9,'Utility Functions'!$AK$3:$AK$8,'Utility Functions'!$AL$3:$AL$8)","v":0},{"$f":"valuePL(U9,'Utility Functions'!$AM$3:$AM$5,'Utility Functions'!$AN$3:$AN$5)","v":0},{"$f":"valuePL(V9,'Utility Functions'!$AO$3:$AO$5,'Utility Functions'!$AP$3:$AP$5)","v":1},{"$f":"valuePL(W9,'Utility Functions'!$AQ$3:$AQ$6,'Utility Functions'!$AR$3:$AR$6)","v":1},{"$f":"valuePL(X9,'Utility Functions'!$AS$3:$AS$6,'Utility Functions'!$AT$3:$AT$6)","v":1},{"$f":"valuePL(Y9,'Utility Functions'!$AU$3:$AU$6,'Utility Functions'!$AV$3:$AV$6)","v":1},{"$f":"valuePL(Z9,'Utility Functions'!$AW$3:$AW$5,'Utility Functions'!$AX$3:$AX$5)","v":1},{"$f":"valuePL(AA9,'Utility Functions'!$AY$3:$AY$6,'Utility Functions'!$AZ$3:$AZ$6)","v":0},{"$f":"valuePL(AB9,'Utility Functions'!$BA$3:$BA$5,'Utility Functions'!$BB$3:$BB$5)","v":0.25},{"$f":"valuePL(AC9,'Utility Functions'!$BC$3:$BC$5,'Utility Functions'!$BD$3:$BD$5)","v":0.25},14.227364688589191,null,14.227364688589191,3.7986374158619185,2.7287272727272729,0,2.2000000000000002,5.5]
[9,{"$f":"valueE(B10,'Utility Functions'!$B$3,'Utility Functions'!$B$4,'Utility Functions'!$B$5,'Utility Functions'!$B$6)","v":0.83470237647280454},{"$f":"valueE(C10,'Utility Functions'!$D$3,'Utility Functions'!$D$4,'Utility Functions'!$D$5,'Utility Functions'!$D$6)","v":0.78989979019422951},{"$f":"valuePL(D10,'Utility Functions'!$E$3:$E$5,'Utility Functions'!$F$3:$F$5)","v":1},{"$f":"valuePL(E10,'Utility Functions'!$G$3:$G$5,'Utility Functions'!$H$3:$H$5)","v":0.5},{"$f":"valuePL(F10,'Utility Functions'!$I$3:$I$4,'Utility Functions'!$J$3:$J$5)","v":0},{"$f":"valueE(G10,'Utility Functions'!$L$3,'Utility Functions'!$L$4,'Utility Functions'!$L$5,'Utility Functions'!$L$6)","v":0.37634408602150538},{"$f":"valueE(H10,'Utility Functions'!$N$3,'Utility Functions'!$N$4,'Utility Functions'!$N$5,'Utility Functions'!$N$6)","v":0.13282732447817835},{"$f":"valuePL(I10,'Utility Functions'!$O$3:$O$6,'Utility Functions'!$P$3:$P$6)","v":0},{"$f":"valuePL(J10,'Utility Functions'!$Q$3:$Q$6,'Utility Functions'!$R$3:$R$6)","v":0},{"$f":"valuePL(K10,'Utility Functions'!$S$3:$S$7,'Utility Functions'!$T$3:$T$7)","v":0},{"$f":"valueE(L10,'Utility Functions'!$V$3,'Utility Functions'!$V$4,'Utility Functions'!$V$5,'Utility Functions'!$V$6)","v":0},{"$f":"valuePL(M10,'Utility Functions'!$W$3:$W$6,'Utility Functions'!$X$3:$X$6)","v":0},{"$f":"valueE(N10,'Utility Functions'!$Z$3,'Utility Functions'!$Z$4,'Utility Functions'!$Z$5,'Utility Functions'!$Z$6)","v":0},{"$f":"valuePL(O10,'Utility Functions'!$AA$3:$AA$5,'Utility Functions'!$AB$3:$AB$5)","v":0},{"$f":"valuePL(P10,'Utility Functions'!$AC$3:$AC$7,'Utility Functions'!$AD$3:$AD$7)","v":0.75},{"$f":"valuePL(Q10,'Utility Functions'!$AE$3:$AE$6,'Utility Functions'!$AF$3:$AF$6)","v":0},{"$f":"valuePL(R10,'Utility Functions'!$AG$3:$AG$6,'Utility Functions'!$AH$3:$AH$6)","v":1},{"$f":"valuePL(S10,'Utility Functions'!$AI$3:$AI$6,'Utility Functions'!$AJ$3:$AJ$6)","v":0.66},{"$f":"valuePL(T10,'Utility Functions'!$AK$3:$AK$8,'Utility Functions'!$AL$3:$AL$8)","v":0.2},{"$f":"valuePL(U10,'Utility Functions'!$AM$3:$AM$5,'Utility Functions'!$AN$3:$AN$5)","v":0},{"$f":"valuePL(V10,'Utility Functions'!$AO$3:$AO$5,'Utility Functions'!$AP$3:$AP$5)","v":1},{"$f":"valuePL(W10,'Utility Functions'!$AQ$3:$AQ$6,'Utility Functions'!$AR$3:$AR$6)","v":1},{"$f":"valuePL(X10,'Utility Functions'!$AS$3:$AS$6,'Utility Functions'!$AT$3:$AT$6)","v":1},{"$f":"valuePL(Y10,'Utility Functions'!$AU$3:$AU$6,'Utility Functions'!$AV$3:$AV$6)","v":0.2},{"$f":"valuePL(Z10,'Utility Functions'!$AW$3:$AW$5,'Utility Functions'!$AX$3:$AX$5)","v":1},{"$f":"valuePL(AA10,'Utility Functions'!$AY$3:$AY$6,'Utility Functions'!$AZ$3:$AZ$6)","v":0.2},{"$f":"valuePL(AB10,'Utility Functions'!$BA$3:$BA$5,'Utility Functions'!$BB$3:$BB$5)","v":0.25},{"$f":"valuePL(AC10,'Utility Functions'!$BC$3:$BC$5,'Utility Functions'!$BD$3:$BD$5)","v":1},11.893773577166716,null,11.893773577166719,3.1246021666670343,0.50917141049968373,0,2.6100000000000003,5.65]
[10,{"$f":"valueE(B11,'Utility Functions'!$B$3,'Utility Functions'!$B$4,'Utility Functions'!$B$5,'Utility Functions'!$B$6)","v":0},{"$f":"valueE(C11,'Utility Functions'!$D$3,'Utility Functions'!$D$4,'Utility Functions'!$D$5,'Utility Functions'!$D$6)","v":0},{"$f":"valuePL(D11,'Utility Functions'!$E$3:$E$5,'Utility Functions'!$F$3:$F$5)","v":0},{"$f":"valuePL(E11,'Utility Functions'!$G$3:$G$5,'Utility Functions'!$H$3:$H$5)","v":0},{"$f":"valuePL(F11,'Utility Functions'!$I$3:$I$4,'Utility Functions'!$J$3:$J$5)","v":0},{"$f":"valueE(G11,'Utility Functions'!$L$3,'Utility Functions'!$L$4,'Utility Functions'!$L$5,'Utility Functions'!$L$6)","v":0},{"$f":"valueE(H11,'Utility Functions'!$N$3,'Utility Functions'!$N$4,'Utility Functions'!$N$5,'Utility Functions'!$N$6)","v":0},{"$f":"valuePL(I11,'Utility Functions'!$O$3:$O$6,'Utility Functions'!$P$3:$P$6)","v":0},{"$f":"valuePL(J11,'Utility Functions'!$Q$3:$Q$6,'Utility Functions'!$R$3:$R$6)","v":0},{"$f":"valuePL(K11,'Utility Functions'!$S$3:$S$7,'Utility Functions'!$T$3:$T$7)","v":0},{"$f":"valueE(L11,'Utility Functions'!$V$3,'Utility Functions'!$V$4,'Utility Functions'!$V$5,'Utility Functions'!$V$6)","v":0},{"$f":"valuePL(M11,'Utility Functions'!$W$3:$W$6,'Utility Functions'!$X$3:$X$6)","v":0},{"$f":"valueE(N11,'Utility Functions'!$Z$3,'Utility Functions'!$Z$4,'Utility Functions'!$Z$5,'Utility Functions'!$Z$6)","v":0.75},{"$f":"valuePL(O11,'Utility Functions'!$AA$3:$AA$5,'Utility Functions'!$AB$3:$AB$5)","v":1},{"$f":"valuePL(P11,'Utility Functions'!$AC$3:$AC$7,'Utility Functions'!$AD$3:$AD$7)","v":0.25},{"$f":"valuePL(Q11,'Utility Functions'!$AE$3:$AE$6,'Utility Functions'!$AF$3:$AF$6)","v":0.5},{"$f":"valuePL(R11,'Utility Functions'!$AG$3:$AG$6,'Utility Functions'!$AH$3:$AH$6)","v":1},{"$f":"valuePL(S11,'Utility Functions'!$AI$3:$AI$6,'Utility Functions'!$AJ$3:$AJ$6)","v":0.66},{"$f":"valuePL(T11,'Utility Functions'!$AK$3:$AK$8,'Utility Functions'!$AL$3:$AL$8)","v":0.4},{"$f":"valuePL(U11,'Utility Functions'!$AM$3:$AM$5,'Utility Functions'!$AN$3:$AN$5)","v":0},{"$f":"valuePL(V11,'Utility Functions'!$AO$3:$AO$5,'Utility Functions'!$AP$3:$AP$5)","v":0},{"$f":"valuePL(W11,'Utility Functions'!$AQ$3:$AQ$6,'Utility Functions'!$AR$3:$AR$6)","v":0.75},{"$f":"valuePL(X11,'Utility Functions'!$AS$3:$AS$6,'Utility Functions'!$AT$3:$AT$6)","v":1},{"$f":"valuePL(Y11,'Utility Functions'!$AU$3:$AU$6,'Utility Functions'!$AV$3:$AV$6)","v":1},{"$f":"valuePL(Z11,'Utility Functions'!$AW$3:$AW$5,'Utility Functions'!$AX$3:$AX$5)","v":0.5},{"$f":"valuePL(AA11,'Utility Functions'!$AY$3:$AY$6,'Utility Functions'!$AZ$3:$AZ$6)","v":0.2},{"$f":"valuePL(AB11,'Utility Functions'!$BA$3:$BA$5,'Utility Functions'!$BB$3:$BB$5)","v":0},{"$f":"valuePL(AC11,'Utility Functions'!$BC$3:$BC$5,'Utility Functions'!$BD$3:$BD$5)","v":1},9.01,null,9.0100000000000016,0,0,1.75,2.81,4.45]
[11,{"$f":"valueE(B12,'Utility Functions'!$B$3,'Utility Functions'!$B$4,'Utility Functions'!$B$5,'Utility Functions'!$B$6)","v":0},{"$f":"valueE(C12,'Utility Functions'!$D$3,'Utility Functions'!$D$4,'Utility Functions'!$D$5,'Utility Functions'!$D$6)","v":0},{"$f":"valuePL(D12,'Utility Functions'!$E$3:$E$5,'Utility Functions'!$F$3:$F$5)","v":0},{"$f":"valuePL(E12,'Utility Functions'!$G$3:$G$5,'Utility Functions'!$H$3:$H$5)","v":0},{"$f":"valuePL(F12,'Utility Functions'!$I$3:$I$4,'Utility Functions'!$J$3:$J$5)","v":0},{"$f":"valueE(G12,'Utility Functions'!$L$3,'Utility Functions'!$L$4,'Utility Functions'!$L$5,'Utility Functions'!$L$6)","v":3.2258064516129031E-2},{"$f":"valueE(H12,'Utility Functions'!$N$3,'Utility Functions'!$N$4,'Utility Functions'!$N$5,'Utility Functions'!$N$6)","v":9.6774193548387094E-2},{"$f":"valuePL(I12,'Utility Functions'!$O$3:$O$6,'Utility Functions'!$P$3:$P$6)","v":0.54181818181818187},{"$f":"valuePL(J12,'Utility Functions'!$Q$3:$Q$6,'Utility Functions'!$R$3:$R$6)","v":0.91818181818181821},{"$f":"valuePL(K12,'Utility Functions'!$S$3:$S$7,'Utility Functions'!$T$3:$T$7)","v":0.54181818181818187},{"$f":"valueE(L12,'Utility Functions'!$V$3,'Utility Functions'!$V$4,'Utility Functions'!$V$5,'Utility Functions'!$V$6)","v":1},{"$f":"valuePL(M12,'Utility Functions'!$W$3:$W$6,'Utility Functions'!$X$3:$X$6)","v":0.91818181818181821},{"$f":"valueE(N12,'Utility Functions'!$Z$3,'Utility Functions'!$Z$4,'Utility Functions'!$Z$5,'Utility Functions'!$Z$6)","v":0.375},{"$f":"valuePL(O12,'Utility Functions'!$AA$3:$AA$5,'Utility Functions'!$AB$3:$AB$5)","v":0.25},{"$f":"valuePL(P12,'Utility Functions'!$AC$3:$AC$7,'Utility Functions'!$AD$3:$AD$7)","v":0.25},{"$f":"valuePL(Q12,'Utility Functions'!$AE$3:$AE$6,'Utility Functions'!$AF$3:$AF$6)","v":0},{"$f":"valuePL(R12,'Utility Functions'!$AG$3:$AG$6,'Utility Functions'!$AH$3:$AH$6)","v":1},{"$f":"valuePL(S12,'Utility Functions'!$AI$3:$AI$6,'Utility Functions'!$AJ$3:$AJ$6)","v":1},{"$f":"valuePL(T12,'Utility Functions'!$AK$3:$AK$8,'Utility Functions'!$AL$3:$AL$8)","v":0.4},{"$f":"valuePL(U12,'Utility Functions'!$AM$3:$AM$5,'Utility Functions'!$AN$3:$AN$5)","v":1},{"$f":"valuePL(V12,'Utility Functions'!$AO$3:$AO$5,'Utility Functions'!$AP$3:$AP$5)","v":1},{"$f":"valuePL(W12,'Utility Functions'!$AQ$3:$AQ$6,'Utility Functions'!$AR$3:$AR$6)","v":0.2},{"$f":"valuePL(X12,'Utility Functions'!$AS$3:$AS$6,'Utility Functions'!$AT$3:$AT$6)","v":1},{"$f":"valuePL(Y12,'Utility Functions'!$AU$3:$AU$6,'Utility Functions'!$AV$3:$AV$6)","v":1},{"$f":"valuePL(Z12,'Utility Functions'!$AW$3:$AW$5,'Utility Functions'!$AX$3:$AX$5)","v":0.5},{"$f":"valuePL(AA12,'Utility Functions'!$AY$3:$AY$6,'Utility Functions'!$AZ$3:$AZ$6)","v":0.89999999999999991},{"$f":"valuePL(AB12,'Utility Functions'!$BA$3:$BA$5,'Utility Functions'!$BB$3:$BB$5)","v":0},{"$f":"valuePL(AC12,'Utility Functions'!$BC$3:$BC$5,'Utility Functions'!$BD$3:$BD$5)","v":0.25},13.174032258064516,null,13.174032258064516,0,4.0490322580645159,0.625,3.65,4.8499999999999996]
[12,{"$f":"valueE(B13,'Utility Functions'!$B$3,'Utility Functions'!$B$4,'Utility Functions'!$B$5,'Utility Functions'!$B$6)","v":0.32968045347775865},{"$f":"valueE(C13,'Utility Functions'!$D$3,'Utility Functions'!$D$4,'Utility Functions'!$D$5,'Utility Functions'!$D$6)","v":0.78989979019422951},{"$f":"valuePL(D13,'Utility Functions'!$E$3:$E$5,'Utility Functions'!$F$3:$F$5)","v":1},{"$f":"valuePL(E13,'Utility Functions'!$G$3:$G$5,'Utility Functions'!$H$3:$H$5)","v":0.5},{"$f":"valuePL(F13,'Utility Functions'!$I$3:$I$4,'Utility Functions'!$J$3:$J$5)","v":0},{"$f":"valueE(G13,'Utility Functions'!$L$3,'Utility Functions'!$L$4,'Utility Functions'!$L$5,'Utility Functions'!$L$6)","v":0},{"$f":"valueE(H13,'Utility Functions'!$N$3,'Utility Functions'!$N$4,'Utility Functions'!$N$5,'Utility Functions'!$N$6)","v":0},{"$f":"valuePL(I13,'Utility Functions'!$O$3:$O$6,'Utility Functions'!$P$3:$P$6)","v":0},{"$f":"valuePL(J13,'Utility Functions'!$Q$3:$Q$6,'Utility Functions'!$R$3:$R$6)","v":0},{"$f":"valuePL(K13,'Utility Functions'!$S$3:$S$7,'Utility Functions'!$T$3:$T$7)","v":0},{"$f":"valueE(L13,'Utility Functions'!$V$3,'Utility Functions'!$V$4,'Utility Functions'!$V$5,'Utility Functions'!$V$6)","v":0},{"$f":"valuePL(M13,'Utility Functions'!$W$3:$W$6,'Utility Functions'!$X$3:$X$6)","v":0},{"$f":"valueE(N13,'Utility Functions'!$Z$3,'Utility Functions'!$Z$4,'Utility Functions'!$Z$5,'Utility Functions'!$Z$6)","v":0},{"$f":"valuePL(O13,'Utility Functions'!$AA$3:$AA$5,'Utility Functions'!$AB$3:$AB$5)","v":0},{"$f":"valuePL(P13,'Utility Functions'!$AC$3:$AC$7,'Utility Functions'!$AD$3:$AD$7)","v":0},{"$f":"valuePL(Q13,'Utility Functions'!$AE$3:$AE$6,'Utility Functions'!$AF$3:$AF$6)","v":0.1},{"$f":"valuePL(R13,'Utility Functions'!$AG$3:$AG$6,'Utility Functions'!$AH$3:$AH$6)","v":1},{"$f":"valuePL(S13,'Utility Functions'!$AI$3:$AI$6,'Utility Functions'!$AJ$3:$AJ$6)","v":1},{"$f":"valuePL(T13,'Utility Functions'!$AK$3:$AK$8,'Utility Functions'!$AL$3:$AL$8)","v":0.6},{"$f":"valuePL(U13,'Utility Functions'!$AM$3:$AM$5,'Utility Functions'!$AN$3:$AN$5)","v":0},{"$f":"valuePL(V13,'Utility Functions'!$AO$3:$AO$5,'Utility Functions'!$AP$3:$AP$5)","v":0.5},{"$f":"valuePL(W13,'Utility Functions'!$AQ$3:$AQ$6,'Utility Functions'!$AR$3:$AR$6)","v":0.2},{"$f":"valuePL(X13,'Utility Functions'!$AS$3:$AS$6,'Utility Functions'!$AT$3:$AT$6)","v":1},{"$f":"valuePL(Y13,'Utility Functions'!$AU$3:$AU$6,'Utility Functions'!$AV$3:$AV$6)","v":0.2},{"$f":"valuePL(Z13,'Utility Functions'!$AW$3:$AW$5,'Utility Functions'!$AX$3:$AX$5)","v":1},{"$f":"valuePL(AA13,'Utility Functions'!$AY$3:$AY$6,'Utility Functions'!$AZ$3:$AZ$6)","v":0.2},{"$f":"valuePL(AB13,'Utility Functions'!$BA$3:$BA$5,'Utility Functions'!$BB$3:$BB$5)","v":1},{"$f":"valuePL(AC13,'Utility Functions'!$BC$3:$BC$5,'Utility Functions'!$BD$3:$BD$5)","v":0},9.4195802436719873,null,9.4195802436719873,2.6195802436719884,0,0,2.7,4.0999999999999996]
[13,{"$f":"valueE(B14,'Utility Functions'!$B$3,'Utility Functions'!$B$4,'Utility Functions'!$B$5,'Utility Functions'!$B$6)","v":0},{"$f":"valueE(C14,'Utility Functions'!$D$3,'Utility Functions'!$D$4,'Utility Functions'!$D$5,'Utility Functions'!$D$6)","v":0},{"$f":"valuePL(D14,'Utility Functions'!$E$3:$E$5,'Utility Functions'!$F$3:$F$5)","v":0},{"$f":"valuePL(E14,'Utility Functions'!$G$3:$G$5,'Utility Functions'!$H$3:$H$5)","v":0},{"$f":"valuePL(F14,'Utility Functions'!$I$3:$I$4,'Utility Functions'!$J$3:$J$5)","v":0},{"$f":"valueE(G14,'Utility Functions'!$L$3,'Utility Functions'!$L$4,'Utility Functions'!$L$5,'Utility Functions'!$L$6)","v":0},{"$f":"valueE(H14,'Utility Functions'!$N$3,'Utility Functions'!$N$4,'Utility Functions'!$N$5,'Utility Functions'!$N$6)","v":1.1385199240986717E-2},{"$f":"valuePL(I14,'Utility Functions'!$O$3:$O$6,'Utility Functions'!$P$3:$P$6)","v":0.3290909090909091},{"$f":"valuePL(J14,'Utility Functions'!$Q$3:$Q$6,'Utility Functions'!$R$3:$R$6)","v":0.04},{"$f":"valuePL(K14,'Utility Functions'!$S$3:$S$7,'Utility Functions'!$T$3:$T$7)","v":0.3290909090909091},{"$f":"valueE(L14,'Utility Functions'!$V$3,'Utility Functions'!$V$4,'Utility Functions'!$V$5,'Utility Functions'!$V$6)","v":1},{"$f":"valuePL(M14,'Utility Functions'!$W$3:$W$6,'Utility Functions'!$X$3:$X$6)","v":0.04},{"$f":"valueE(N14,'Utility Functions'!$Z$3,'Utility Functions'!$Z$4,'Utility Functions'!$Z$5,'Utility Functions'!$Z$6)","v":0.875},{"$f":"valuePL(O14,'Utility Functions'!$AA$3:$AA$5,'Utility Functions'!$AB$3:$AB$5)","v":0.25},{"$f":"valuePL(P14,'Utility Functions'!$AC$3:$AC$7,'Utility Functions'!$AD$3:$AD$7)","v":0.25},{"$f":"valuePL(Q14,'Utility Functions'!$AE$3:$AE$6,'Utility Functions'!$AF$3:$AF$6)","v":0},{"$f":"valuePL(R14,'Utility Functions'!$AG$3:$AG$6,'Utility Functions'!$AH$3:$AH$6)","v":1},{"$f":"valuePL(S14,'Utility Functions'!$AI$3:$AI$6,'Utility Functions'!$AJ$3:$AJ$6)","v":1},{"$f":"valuePL(T14,'Utility Functions'!$AK$3:$AK$8,'Utility Functions'!$AL$3:$AL$8)","v":0},{"$f":"valuePL(U14,'Utility Functions'!$AM$3:$AM$5,'Utility Functions'!$AN$3:$AN$5)","v":0},{"$f":"valuePL(V14,'Utility Functions'!$AO$3:$AO$5,'Utility Functions'!$AP$3:$AP$5)","v":0.5},{"$f":"valuePL(W14,'Utility Functions'!$AQ$3:$AQ$6,'Utility Functions'!$AR$3:$AR$6)","v":0},{"$f":"valuePL(X14,'Utility Functions'!$AS$3:$AS$6,'Utility Functions'!$AT$3:$AT$6)","v":0.2},{"$f":"valuePL(Y14,'Utility Functions'!$AU$3:$AU$6,'Utility Functions'!$AV$3:$AV$6)","v":0},{"$f":"valuePL(Z14,'Utility Functions'!$AW$3:$AW$5,'Utility Functions'!$AX$3:$AX$5)","v":1},{"$f":"valuePL(AA14,'Utility Functions'!$AY$3:$AY$6,'Utility Functions'!$AZ$3:$AZ$6)","v":0.2},{"$f":"valuePL(AB14,'Utility Functions'!$BA$3:$BA$5,'Utility Functions'!$BB$3:$BB$5)","v":0.25},{"$f":"valuePL(AC14,'Utility Functions'!$BC$3:$BC$5,'Utility Functions'!$BD$3:$BD$5)","v":0.25},7.5245670174228056,null,7.5245670174228056,0,1.7495670174228048,1.125,2.25,2.4]
[14,{"$f":"valueE(B15,'Utility Functions'!$B$3,'Utility Functions'!$B$4,'Utility Functions'!$B$5,'Utility Functions'!$B$6)","v":0.69880684688087746},{"$f":"valueE(C15,'Utility Functions'!$D$3,'Utility Functions'!$D$4,'Utility Functions'!$D$5,'Utility Functions'!$D$6)","v":0.78989979019422951},{"$f":"valuePL(D15,'Utility Functions'!$E$3:$E$5,'Utility Functions'!$F$3:$F$5)","v":0.5},{"$f":"valuePL(E15,'Utility Functions'!$G$3:$G$5,'Utility Functions'!$H$3:$H$5)","v":0.5},{"$f":"valuePL(F15,'Utility Functions'!$I$3:$I$4,'Utility Functions'!$J$3:$J$5)","v":0},{"$f":"valueE(G15,'Utility Functions'!$L$3,'Utility Functions'!$L$4,'Utility Functions'!$L$5,'Utility Functions'!$L$6)","v":0},{"$f":"valueE(H15,'Utility Functions'!$N$3,'Utility Functions'!$N$4,'Utility Functions'!$N$5,'Utility Functions'!$N$6)","v":0},{"$f":"valuePL(I15,'Utility Functions'!$O$3:$O$6,'Utility Functions'!$P$3:$P$6)","v":0},{"$f":"valuePL(J15,'Utility Functions'!$Q$3:$Q$6,'Utility Functions'!$R$3:$R$6)","v":0},{"$f":"valuePL(K15,'Utility Functions'!$S$3:$S$7,'Utility Functions'!$T$3:$T$7)","v":0},{"$f":"valueE(L15,'Utility Functions'!$V$3,'Utility Functions'!$V$4,'Utility Functions'!$V$5,'Utility Functions'!$V$6)","v":0},{"$f":"valuePL(M15,'Utility Functions'!$W$3:$W$6,'Utility Functions'!$X$3:$X$6)","v":0},{"$f":"valueE(N15,'Utility Functions'!$Z$3,'Utility Functions'!$Z$4,'Utility Functions'!$Z$5,'Utility Functions'!$Z$6)","v":0.75},{"$f":"valuePL(O15,'Utility Functions'!$AA$3:$AA$5,'Utility Functions'!$AB$3:$AB$5)","v":0.25},{"$f":"valuePL(P15,'Utility Functions'!$AC$3:$AC$7,'Utility Functions'!$AD$3:$AD$7)","v":0.25},{"$f":"valuePL(Q15,'Utility Functions'!$AE$3:$AE$6,'Utility Functions'!$AF$3:$AF$6)","v":0},{"$f":"valuePL(R15,'Utility Functions'!$AG$3:$AG$6,'Utility Functions'!$AH$3:$AH$6)","v":1},{"$f":"valuePL(S15,'Utility Functions'!$AI$3:$AI$6,'Utility Functions'!$AJ$3:$AJ$6)","v":1},{"$f":"valuePL(T15,'Utility Functions'!$AK$3:$AK$8,'Utility Functions'!$AL$3:$AL$8)","v":0},{"$f":"valuePL(U15,'Utility Functions'!$AM$3:$AM$5,'Utility Functions'!$AN$3:$AN$5)","v":0},{"$f":"valuePL(V15,'Utility Functions'!$AO$3:$AO$5,'Utility Functions'!$AP$3:$AP$5)","v":0.5},{"$f":"valuePL(W15,'Utility Functions'!$AQ$3:$AQ$6,'Utility Functions'!$AR$3:$AR$6)","v":0.2},{"$f":"valuePL(X15,'Utility Functions'!$AS$3:$AS$6,'Utility Functions'!$AT$3:$AT$6)","v":1},{"$f":"valuePL(Y15,'Utility Functions'!$AU$3:$AU$6,'Utility Functions'!$AV$3:$AV$6)","v":1},{"$f":"valuePL(Z15,'Utility Functions'!$AW$3:$AW$5,'Utility Functions'!$AX$3:$AX$5)","v":0.5},{"$f":"valuePL(AA15,'Utility Functions'!$AY$3:$AY$6,'Utility Functions'!$AZ$3:$AZ$6)","v":0.89999999999999991},{"$f":"valuePL(AB15,'Utility Functions'!$BA$3:$BA$5,'Utility Functions'!$BB$3:$BB$5)","v":0.25},{"$f":"valuePL(AC15,'Utility Functions'!$BC$3:$BC$5,'Utility Functions'!$BD$3:$BD$5)","v":0.25},10.338706637075108,null,10.338706637075106,2.488706637075107,0,1,2.25,4.5999999999999996]
[15,{"$f":"valueE(B16,'Utility Functions'!$B$3,'Utility Functions'!$B$4,'Utility Functions'!$B$5,'Utility Functions'!$B$6)","v":0.98994966417177144},{"$f":"valueE(C16,'Utility Functions'!$D$3,'Utility Functions'!$D$4,'Utility Functions'!$D$5,'Utility Functions'!$D$6)","v":0.71352759724260828},{"$f":"valuePL(D16,'Utility Functions'!$E$3:$E$5,'Utility Functions'!$F$3:$F$5)","v":1},{"$f":"valuePL(E16,'Utility Functions'!$G$3:$G$5,'Utility Functions'!$H$3:$H$5)","v":0.5},{"$f":"valuePL(F16,'Utility Functions'!$I$3:$I$4,'Utility Functions'!$J$3:$J$5)","v":1},{"$f":"valueE(G16,'Utility Functions'!$L$3,'Utility Functions'!$L$4,'Utility Functions'!$L$5,'Utility Functions'!$L$6)","v":0},{"$f":"valueE(H16,'Utility Functions'!$N$3,'Utility Functions'!$N$4,'Utility Functions'!$N$5,'Utility Functions'!$N$6)","v":0},{"$f":"valuePL(I16,'Utility Functions'!$O$3:$O$6,'Utility Functions'!$P$3:$P$6)","v":9.2000000000000012E-2},{"$f":"valuePL(J16,'Utility Functions'!$Q$3:$Q$6,'Utility Functions'!$R$3:$R$6)","v":6.0000000000000012E-2},{"$f":"valuePL(K16,'Utility Functions'!$S$3:$S$7,'Utility Functions'!$T$3:$T$7)","v":6.0000000000000012E-2},{"$f":"valueE(L16,'Utility Functions'!$V$3,'Utility Functions'!$V$4,'Utility Functions'!$V$5,'Utility Functions'!$V$6)","v":1},{"$f":"valuePL(M16,'Utility Functions'!$W$3:$W$6,'Utility Functions'!$X$3:$X$6)","v":6.0000000000000012E-2},{"$f":"valueE(N16,'Utility Functions'!$Z$3,'Utility Functions'!$Z$4,'Utility Functions'!$Z$5,'Utility Functions'!$Z$6)","v":0.125},{"$f":"valuePL(O16,'Utility Functions'!$AA$3:$AA$5,'Utility Functions'!$AB$3:$AB$5)","v":1},{"$f":"valuePL(P16,'Utility Functions'!$AC$3:$AC$7,'Utility Functions'!$AD$3:$AD$7)","v":0.5},{"$f":"valuePL(Q16,'Utility Functions'!$AE$3:$AE$6,'Utility Functions'!$AF$3:$AF$6)","v":0},{"$f":"valuePL(R16,'Utility Functions'!$AG$3:$AG$6,'Utility Functions'!$AH$3:$AH$6)","v":0.8},{"$f":"valuePL(S16,'Utility Functions'!$AI$3:$AI$6,'Utility Functions'!$AJ$3:$AJ$6)","v":1},{"$f":"valuePL(T16,'Utility Functions'!$AK$3:$AK$8,'Utility Functions'!$AL$3:$AL$8)","v":0.6},{"$f":"valuePL(U16,'Utility Functions'!$AM$3:$AM$5,'Utility Functions'!$AN$3:$AN$5)","v":1},{"$f":"valuePL(V16,'Utility Functions'!$AO$3:$AO$5,'Utility Functions'!$AP$3:$AP$5)","v":0},{"$f":"valuePL(W16,'Utility Functions'!$AQ$3:$AQ$6,'Utility Functions'!$AR$3:$AR$6)","v":1},{"$f":"valuePL(X16,'Utility Functions'!$AS$3:$AS$6,'Utility Functions'!$AT$3:$AT$6)","v":0.2},{"$f":"valuePL(Y16,'Utility Functions'!$AU$3:$AU$6,'Utility Functions'!$AV$3:$AV$6)","v":0.2},{"$f":"valuePL(Z16,'Utility Functions'!$AW$3:$AW$5,'Utility Functions'!$AX$3:$AX$5)","v":1},{"$f":"valuePL(AA16,'Utility Functions'!$AY$3:$AY$6,'Utility Functions'!$AZ$3:$AZ$6)","v":1},{"$f":"valuePL(AB16,'Utility Functions'!$BA$3:$BA$5,'Utility Functions'!$BB$3:$BB$5)","v":1},{"$f":"valuePL(AC16,'Utility Functions'!$BC$3:$BC$5,'Utility Functions'!$BD$3:$BD$5)","v":0.25},15.150477261414375,null,15.15047726141438,4.2034772614143794,1.272,1.125,3.9,4.6500000000000004]
[16,{"$f":"valueE(B17,'Utility Functions'!$B$3,'Utility Functions'!$B$4,'Utility Functions'!$B$5,'Utility Functions'!$B$6)","v":0},{"$f":"valueE(C17,'Utility Functions'!$D$3,'Utility Functions'!$D$4,'Utility Functions'!$D$5,'Utility Functions'!$D$6)","v":0},{"$f":"valuePL(D17,'Utility Functions'!$E$3:$E$5,'Utility Functions'!$F$3:$F$5)","v":0},{"$f":"valuePL(E17,'Utility Functions'!$G$3:$G$5,'Utility Functions'!$H$3:$H$5)","v":0},{"$f":"valuePL(F17,'Utility Functions'!$I$3:$I$4,'Utility Functions'!$J$3:$J$5)","v":0},{"$f":"valueE(G17,'Utility Functions'!$L$3,'Utility Functions'!$L$4,'Utility Functions'!$L$5,'Utility Functions'!$L$6)","v":0},{"$f":"valueE(H17,'Utility Functions'!$N$3,'Utility Functions'!$N$4,'Utility Functions'!$N$5,'Utility Functions'!$N$6)","v":0},{"$f":"valuePL(I17,'Utility Functions'!$O$3:$O$6,'Utility Functions'!$P$3:$P$6)","v":1},{"$f":"valuePL(J17,'Utility Functions'!$Q$3:$Q$6,'Utility Functions'!$R$3:$R$6)","v":0.91818181818181821},{"$f":"valuePL(K17,'Utility Functions'!$S$3:$S$7,'Utility Functions'!$T$3:$T$7)","v":1},{"$f":"valueE(L17,'Utility Functions'!$V$3,'Utility Functions'!$V$4,'Utility Functions'!$V$5,'Utility Functions'!$V$6)","v":0.83333333333333337},{"$f":"valuePL(M17,'Utility Functions'!$W$3:$W$6,'Utility Functions'!$X$3:$X$6)","v":0.91818181818181821},{"$f":"valueE(N17,'Utility Functions'!$Z$3,'Utility Functions'!$Z$4,'Utility Functions'!$Z$5,'Utility Functions'!$Z$6)","v":0},{"$f":"valuePL(O17,'Utility Functions'!$AA$3:$AA$5,'Utility Functions'!$AB$3:$AB$5)","v":0},{"$f":"valuePL(P17,'Utility Functions'!$AC$3:$AC$7,'Utility Functions'!$AD$3:$AD$7)","v":0.75},{"$f":"valuePL(Q17,'Utility Functions'!$AE$3:$AE$6,'Utility Functions'!$AF$3:$AF$6)","v":0},{"$f":"valuePL(R17,'Utility Functions'!$AG$3:$AG$6,'Utility Functions'!$AH$3:$AH$6)","v":1},{"$f":"valuePL(S17,'Utility Functions'!$AI$3:$AI$6,'Utility Functions'!$AJ$3:$AJ$6)","v":1},{"$f":"valuePL(T17,'Utility Functions'!$AK$3:$AK$8,'Utility Functions'!$AL$3:$AL$8)","v":1},{"$f":"valuePL(U17,'Utility Functions'!$AM$3:$AM$5,'Utility Functions'!$AN$3:$AN$5)","v":0},{"$f":"valuePL(V17,'Utility Functions'!$AO$3:$AO$5,'Utility Functions'!$AP$3:$AP$5)","v":1},{"$f":"valuePL(W17,'Utility Functions'!$AQ$3:$AQ$6,'Utility Functions'!$AR$3:$AR$6)","v":0.75},{"$f":"valuePL(X17,'Utility Functions'!$AS$3:$AS$6,'Utility Functions'!$AT$3:$AT$6)","v":0.75},{"$f":"valuePL(Y17,'Utility Functions'!$AU$3:$AU$6,'Utility Functions'!$AV$3:$AV$6)","v":0.2},{"$f":"valuePL(Z17,'Utility Functions'!$AW$3:$AW$5,'Utility Functions'!$AX$3:$AX$5)","v":1},{"$f":"valuePL(AA17,'Utility Functions'!$AY$3:$AY$6,'Utility Functions'!$AZ$3:$AZ$6)","v":1},{"$f":"valuePL(AB17,'Utility Functions'!$BA$3:$BA$5,'Utility Functions'!$BB$3:$BB$5)","v":1},{"$f":"valuePL(AC17,'Utility Functions'!$BC$3:$BC$5,'Utility Functions'!$BD$3:$BD$5)","v":1},15.119696969696969,null,15.119696969696971,0,4.6696969696969699,0,3.75,6.7]
[17,{"$f":"valueE(B18,'Utility Functions'!$B$3,'Utility Functions'!$B$4,'Utility Functions'!$B$5,'Utility Functions'!$B$6)","v":0.32968045347775865},{"$f":"valueE(C18,'Utility Functions'!$D$3,'Utility Functions'!$D$4,'Utility Functions'!$D$5,'Utility Functions'!$D$6)","v":0.78989979019422951},{"$f":"valuePL(D18,'Utility Functions'!$E$3:$E$5,'Utility Functions'!$F$3:$F$5)","v":1},{"$f":"valuePL(E18,'Utility Functions'!$G$3:$G$5,'Utility Functions'!$H$3:$H$5)","v":0.5},{"$f":"valuePL(F18,'Utility Functions'!$I$3:$I$4,'Utility Functions'!$J$3:$J$5)","v":1},{"$f":"valueE(G18,'Utility Functions'!$L$3,'Utility Functions'!$L$4,'Utility Functions'!$L$5,'Utility Functions'!$L$6)","v":0.31182795698924731},{"$f":"valueE(H18,'Utility Functions'!$N$3,'Utility Functions'!$N$4,'Utility Functions'!$N$5,'Utility Functions'!$N$6)","v":0.27514231499051234},{"$f":"valuePL(I18,'Utility Functions'!$O$3:$O$6,'Utility Functions'!$P$3:$P$6)","v":0},{"$f":"valuePL(J18,'Utility Functions'!$Q$3:$Q$6,'Utility Functions'!$R$3:$R$6)","v":0},{"$f":"valuePL(K18,'Utility Functions'!$S$3:$S$7,'Utility Functions'!$T$3:$T$7)","v":0},{"$f":"valueE(L18,'Utility Functions'!$V$3,'Utility Functions'!$V$4,'Utility Functions'!$V$5,'Utility Functions'!$V$6)","v":1},{"$f":"valuePL(M18,'Utility Functions'!$W$3:$W$6,'Utility Functions'!$X$3:$X$6)","v":6.0000000000000012E-2},{"$f":"valueE(N18,'Utility Functions'!$Z$3,'Utility Functions'!$Z$4,'Utility Functions'!$Z$5,'Utility Functions'!$Z$6)","v":0},{"$f":"valuePL(O18,'Utility Functions'!$AA$3:$AA$5,'Utility Functions'!$AB$3:$AB$5)","v":0},{"$f":"valuePL(P18,'Utility Functions'!$AC$3:$AC$7,'Utility Functions'!$AD$3:$AD$7)","v":0},{"$f":"valuePL(Q18,'Utility Functions'!$AE$3:$AE$6,'Utility Functions'!$AF$3:$AF$6)","v":0},{"$f":"valuePL(R18,'Utility Functions'!$AG$3:$AG$6,'Utility Functions'!$AH$3:$AH$6)","v":1},{"$f":"valuePL(S18,'Utility Functions'!$AI$3:$AI$6,'Utility Functions'!$AJ$3:$AJ$6)","v":0.66},{"$f":"valuePL(T18,'Utility Functions'!$AK$3:$AK$8,'Utility Functions'!$AL$3:$AL$8)","v":0},{"$f":"valuePL(U18,'Utility Functions'!$AM$3:$AM$5,'Utility Functions'!$AN$3:$AN$5)","v":0},{"$f":"valuePL(V18,'Utility Functions'!$AO$3:$AO$5,'Utility Functions'!$AP$3:$AP$5)","v":1},{"$f":"valuePL(W18,'Utility Functions'!$AQ$3:$AQ$6,'Utility Functions'!$AR$3:$AR$6)","v":1},{"$f":"valuePL(X18,'Utility Functions'!$AS$3:$AS$6,'Utility Functions'!$AT$3:$AT$6)","v":0.2},{"$f":"valuePL(Y18,'Utility Functions'!$AU$3:$AU$6,'Utility Functions'!$AV$3:$AV$6)","v":0},{"$f":"valuePL(Z18,'Utility Functions'!$AW$3:$AW$5,'Utility Functions'!$AX$3:$AX$5)","v":0.5},{"$f":"valuePL(AA18,'Utility Functions'!$AY$3:$AY$6,'Utility Functions'!$AZ$3:$AZ$6)","v":0},{"$f":"valuePL(AB18,'Utility Functions'!$BA$3:$BA$5,'Utility Functions'!$BB$3:$BB$5)","v":1},{"$f":"valuePL(AC18,'Utility Functions'!$BC$3:$BC$5,'Utility Functions'!$BD$3:$BD$5)","v":0.25},10.876550515651747,null,10.876550515651747,3.6195802436719884,1.6469702719797596,0,1.6600000000000001,3.95]
[18,{"$f":"valueE(B19,'Utility Functions'!$B$3,'Utility Functions'!$B$4,'Utility Functions'!$B$5,'Utility Functions'!$B$6)","v":0},{"$f":"valueE(C19,'Utility Functions'!$D$3,'Utility Functions'!$D$4,'Utility Functions'!$D$5,'Utility Functions'!$D$6)","v":0},{"$f":"valuePL(D19,'Utility Functions'!$E$3:$E$5,'Utility Functions'!$F$3:$F$5)","v":0},{"$f":"valuePL(E19,'Utility Functions'!$G$3:$G$5,'Utility Functions'!$H$3:$H$5)","v":0},{"$f":"valuePL(F19,'Utility Functions'!$I$3:$I$4,'Utility Functions'!$J$3:$J$5)","v":0},{"$f":"valueE(G19,'Utility Functions'!$L$3,'Utility Functions'!$L$4,'Utility Functions'!$L$5,'Utility Functions'!$L$6)","v":0},{"$f":"valueE(H19,'Utility Functions'!$N$3,'Utility Functions'!$N$4,'Utility Functions'!$N$5,'Utility Functions'!$N$6)","v":2.8462998102466792E-2},{"$f":"valuePL(I19,'Utility Functions'!$O$3:$O$6,'Utility Functions'!$P$3:$P$6)","v":0},{"$f":"valuePL(J19,'Utility Functions'!$Q$3:$Q$6,'Utility Functions'!$R$3:$R$6)","v":0},{"$f":"valuePL(K19,'Utility Functions'!$S$3:$S$7,'Utility Functions'!$T$3:$T$7)","v":0},{"$f":"valueE(L19,'Utility Functions'!$V$3,'Utility Functions'!$V$4,'Utility Functions'!$V$5,'Utility Functions'!$V$6)","v":0},{"$f":"valuePL(M19,'Utility Functions'!$W$3:$W$6,'Utility Functions'!$X$3:$X$6)","v":0},{"$f":"valueE(N19,'Utility Functions'!$Z$3,'Utility Functions'!$Z$4,'Utility Functions'!$Z$5,'Utility Functions'!$Z$6)","v":1},{"$f":"valuePL(O19,'Utility Functions'!$AA$3:$AA$5,'Utility Functions'!$AB$3:$AB$5)","v":0.25},{"$f":"valuePL(P19,'Utility Functions'!$AC$3:$AC$7,'Utility Functions'!$AD$3:$AD$7)","v":0.25},{"$f":"valuePL(Q19,'Utility Functions'!$AE$3:$AE$6,'Utility Functions'!$AF$3:$AF$6)","v":1},{"$f":"valuePL(R19,'Utility Functions'!$AG$3:$AG$6,'Utility Functions'!$AH$3:$AH$6)","v":1},{"$f":"valuePL(S19,'Utility Functions'!$AI$3:$AI$6,'Utility Functions'!$AJ$3:$AJ$6)","v":1},{"$f":"valuePL(T19,'Utility Functions'!$AK$3:$AK$8,'Utility Functions'!$AL$3:$AL$8)","v":1},{"$f":"valuePL(U19,'Utility Functions'!$AM$3:$AM$5,'Utility Functions'!$AN$3:$AN$5)","v":0.25},{"$f":"valuePL(V19,'Utility Functions'!$AO$3:$AO$5,'Utility Functions'!$AP$3:$AP$5)","v":1},{"$f":"valuePL(W19,'Utility Functions'!$AQ$3:$AQ$6,'Utility Functions'!$AR$3:$AR$6)","v":0.75},{"$f":"valuePL(X19,'Utility Functions'!$AS$3:$AS$6,'Utility Functions'!$AT$3:$AT$6)","v":0.2},{"$f":"valuePL(Y19,'Utility Functions'!$AU$3:$AU$6,'Utility Functions'!$AV$3:$AV$6)","v":0.8},{"$f":"valuePL(Z19,'Utility Functions'!$AW$3:$AW$5,'Utility Functions'!$AX$3:$AX$5)","v":0.5},{"$f":"valuePL(AA19,'Utility Functions'!$AY$3:$AY$6,'Utility Functions'!$AZ$3:$AZ$6)","v":0.89999999999999991},{"$f":"valuePL(AB19,'Utility Functions'!$BA$3:$BA$5,'Utility Functions'!$BB$3:$BB$5)","v":0.25},{"$f":"valuePL(AC19,'Utility Functions'!$BC$3:$BC$5,'Utility Functions'!$BD$3:$BD$5)","v":0},10.178462998102468,null,10.178462998102468,0,2.8462998102466792E-2,1.25,4.5,4.4000000000000004]
[19,{"$f":"valueE(B20,'Utility Functions'!$B$3,'Utility Functions'!$B$4,'Utility Functions'!$B$5,'Utility Functions'!$B$6)","v":0.79810469124896843},{"$f":"valueE(C20,'Utility Functions'!$D$3,'Utility Functions'!$D$4,'Utility Functions'!$D$5,'Utility Functions'!$D$6)","v":0.26839655623815994},{"$f":"valuePL(D20,'Utility Functions'!$E$3:$E$5,'Utility Functions'!$F$3:$F$5)","v":0.5},{"$f":"valuePL(E20,'Utility Functions'!$G$3:$G$5,'Utility Functions'!$H$3:$H$5)","v":1},{"$f":"valuePL(F20,'Utility Functions'!$I$3:$I$4,'Utility Functions'!$J$3:$J$5)","v":0},{"$f":"valueE(G20,'Utility Functions'!$L$3,'Utility Functions'!$L$4,'Utility Functions'!$L$5,'Utility Functions'!$L$6)","v":0},{"$f":"valueE(H20,'Utility Functions'!$N$3,'Utility Functions'!$N$4,'Utility Functions'!$N$5,'Utility Functions'!$N$6)","v":0},{"$f":"valuePL(I20,'Utility Functions'!$O$3:$O$6,'Utility Functions'!$P$3:$P$6)","v":0},{"$f":"valuePL(J20,'Utility Functions'!$Q$3:$Q$6,'Utility Functions'!$R$3:$R$6)","v":0},{"$f":"valuePL(K20,'Utility Functions'!$S$3:$S$7,'Utility Functions'!$T$3:$T$7)","v":0},{"$f":"valueE(L20,'Utility Functions'!$V$3,'Utility Functions'!$V$4,'Utility Functions'!$V$5,'Utility Functions'!$V$6)","v":0},{"$f":"valuePL(M20,'Utility Functions'!$W$3:$W$6,'Utility Functions'!$X$3:$X$6)","v":0},{"$f":"valueE(N20,'Utility Functions'!$Z$3,'Utility Functions'!$Z$4,'Utility Functions'!$Z$5,'Utility Functions'!$Z$6)","v":1},{"$f":"valuePL(O20,'Utility Functions'!$AA$3:$AA$5,'Utility Functions'!$AB$3:$AB$5)","v":1},{"$f":"valuePL(P20,'Utility Functions'!$AC$3:$AC$7,'Utility Functions'!$AD$3:$AD$7)","v":0},{"$f":"valuePL(Q20,'Utility Functions'!$AE$3:$AE$6,'Utility Functions'!$AF$3:$AF$6)","v":0},{"$f":"valuePL(R20,'Utility Functions'!$AG$3:$AG$6,'Utility Functions'!$AH$3:$AH$6)","v":0.8},{"$f":"valuePL(S20,'Utility Functions'!$AI$3:$AI$6,'Utility Functions'!$AJ$3:$AJ$6)","v":1},{"$f":"valuePL(T20,'Utility Functions'!$AK$3:$AK$8,'Utility Functions'!$AL$3:$AL$8)","v":0},{"$f":"valuePL(U20,'Utility Functions'!$AM$3:$AM$5,'Utility Functions'!$AN$3:$AN$5)","v":0},{"$f":"valuePL(V20,'Utility Functions'!$AO$3:$AO$5,'Utility Functions'!$AP$3:$AP$5)","v":0.5},{"$f":"valuePL(W20,'Utility Functions'!$AQ$3:$AQ$6,'Utility Functions'!$AR$3:$AR$6)","v":0.2},{"$f":"valuePL(X20,'Utility Functions'!$AS$3:$AS$6,'Utility Functions'!$AT$3:$AT$6)","v":1},{"$f":"valuePL(Y20,'Utility Functions'!$AU$3:$AU$6,'Utility Functions'!$AV$3:$AV$6)","v":0.8},{"$f":"valuePL(Z20,'Utility Functions'!$AW$3:$AW$5,'Utility Functions'!$AX$3:$AX$5)","v":0},{"$f":"valuePL(AA20,'Utility Functions'!$AY$3:$AY$6,'Utility Functions'!$AZ$3:$AZ$6)","v":0.2},{"$f":"valuePL(AB20,'Utility Functions'!$BA$3:$BA$5,'Utility Functions'!$BB$3:$BB$5)","v":0},{"$f":"valuePL(AC20,'Utility Functions'!$BC$3:$BC$5,'Utility Functions'!$BD$3:$BD$5)","v":0.25},9.3165012474871283,null,9.3165012474871283,2.5665012474871283,0,2,1.8,2.95]
[20,{"$f":"valueE(B21,'Utility Functions'!$B$3,'Utility Functions'!$B$4,'Utility Functions'!$B$5,'Utility Functions'!$B$6)","v":0.83470237647280454},{"$f":"valueE(C21,'Utility Functions'!$D$3,'Utility Functions'!$D$4,'Utility Functions'!$D$5,'Utility Functions'!$D$6)","v":0.78989979019422951},{"$f":"valuePL(D21,'Utility Functions'!$E$3:$E$5,'Utility Functions'!$F$3:$F$5)","v":0.5},{"$f":"valuePL(E21,'Utility Functions'!$G$3:$G$5,'Utility Functions'!$H$3:$H$5)","v":1},{"$f":"valuePL(F21,'Utility Functions'!$I$3:$I$4,'Utility Functions'!$J$3:$J$5)","v":0},{"$f":"valueE(G21,'Utility Functions'!$L$3,'Utility Functions'!$L$4,'Utility Functions'!$L$5,'Utility Functions'!$L$6)","v":0},{"$f":"valueE(H21,'Utility Functions'!$N$3,'Utility Functions'!$N$4,'Utility Functions'!$N$5,'Utility Functions'!$N$6)","v":0.41271347248576851},{"$f":"valuePL(I21,'Utility Functions'!$O$3:$O$6,'Utility Functions'!$P$3:$P$6)","v":0.93454545454545446},{"$f":"valuePL(J21,'Utility Functions'!$Q$3:$Q$6,'Utility Functions'!$R$3:$R$6)","v":0.50909090909090915},{"$f":"valuePL(K21,'Utility Functions'!$S$3:$S$7,'Utility Functions'!$T$3:$T$7)","v":0.93454545454545446},{"$f":"valueE(L21,'Utility Functions'!$V$3,'Utility Functions'!$V$4,'Utility Functions'!$V$5,'Utility Functions'!$V$6)","v":0.66666666666666663},{"$f":"valuePL(M21,'Utility Functions'!$W$3:$W$6,'Utility Functions'!$X$3:$X$6)","v":0.50909090909090915},{"$f":"valueE(N21,'Utility Functions'!$Z$3,'Utility Functions'!$Z$4,'Utility Functions'!$Z$5,'Utility Functions'!$Z$6)","v":1},{"$f":"valuePL(O21,'Utility Functions'!$AA$3:$AA$5,'Utility Functions'!$AB$3:$AB$5)","v":1},{"$f":"valuePL(P21,'Utility Functions'!$AC$3:$AC$7,'Utility Functions'!$AD$3:$AD$7)","v":0.25},{"$f":"valuePL(Q21,'Utility Functions'!$AE$3:$AE$6,'Utility Functions'!$AF$3:$AF$6)","v":0},{"$f":"valuePL(R21,'Utility Functions'!$AG$3:$AG$6,'Utility Functions'!$AH$3:$AH$6)","v":1},{"$f":"valuePL(S21,'Utility Functions'!$AI$3:$AI$6,'Utility Functions'!$AJ$3:$AJ$6)","v":1},{"$f":"valuePL(T21,'Utility Functions'!$AK$3:$AK$8,'Utility Functions'!$AL$3:$AL$8)","v":0.6},{"$f":"valuePL(U21,'Utility Functions'!$AM$3:$AM$5,'Utility Functions'!$AN$3:$AN$5)","v":1},{"$f":"valuePL(V21,'Utility Functions'!$AO$3:$AO$5,'Utility Functions'!$AP$3:$AP$5)","v":0.5},{"$f":"valuePL(W21,'Utility Functions'!$AQ$3:$AQ$6,'Utility Functions'!$AR$3:$AR$6)","v":0},{"$f":"valuePL(X21,'Utility Functions'!$AS$3:$AS$6,'Utility Functions'!$AT$3:$AT$6)","v":0},{"$f":"valuePL(Y21,'Utility Functions'!$AU$3:$AU$6,'Utility Functions'!$AV$3:$AV$6)","v":0.2},{"$f":"valuePL(Z21,'Utility Functions'!$AW$3:$AW$5,'Utility Functions'!$AX$3:$AX$5)","v":1},{"$f":"valuePL(AA21,'Utility Functions'!$AY$3:$AY$6,'Utility Functions'!$AZ$3:$AZ$6)","v":0.2},{"$f":"valuePL(AB21,'Utility Functions'!$BA$3:$BA$5,'Utility Functions'!$BB$3:$BB$5)","v":0},{"$f":"valuePL(AC21,'Utility Functions'!$BC$3:$BC$5,'Utility Functions'!$BD$3:$BD$5)","v":0.25},15.091255033092194,null,15.091255033092196,3.1246021666670343,3.9666528664251626,2,3.85,2.15]
[21,{"$f":"valueE(B22,'Utility Functions'!$B$3,'Utility Functions'!$B$4,'Utility Functions'!$B$5,'Utility Functions'!$B$6)","v":0},{"$f":"valueE(C22,'Utility Functions'!$D$3,'Utility Functions'!$D$4,'Utility Functions'!$D$5,'Utility Functions'!$D$6)","v":0},{"$f":"valuePL(D22,'Utility Functions'!$E$3:$E$5,'Utility Functions'!$F$3:$F$5)","v":0},{"$f":"valuePL(E22,'Utility Functions'!$G$3:$G$5,'Utility Functions'!$H$3:$H$5)","v":0},{"$f":"valuePL(F22,'Utility Functions'!$I$3:$I$4,'Utility Functions'!$J$3:$J$5)","v":0},{"$f":"valueE(G22,'Utility Functions'!$L$3,'Utility Functions'!$L$4,'Utility Functions'!$L$5,'Utility Functions'!$L$6)","v":0},{"$f":"valueE(H22,'Utility Functions'!$N$3,'Utility Functions'!$N$4,'Utility Functions'!$N$5,'Utility Functions'!$N$6)","v":0},{"$f":"valuePL(I22,'Utility Functions'!$O$3:$O$6,'Utility Functions'!$P$3:$P$6)","v":0},{"$f":"valuePL(J22,'Utility Functions'!$Q$3:$Q$6,'Utility Functions'!$R$3:$R$6)","v":0},{"$f":"valuePL(K22,'Utility Functions'!$S$3:$S$7,'Utility Functions'!$T$3:$T$7)","v":0},{"$f":"valueE(L22,'Utility Functions'!$V$3,'Utility Functions'!$V$4,'Utility Functions'!$V$5,'Utility Functions'!$V$6)","v":0},{"$f":"valuePL(M22,'Utility Functions'!$W$3:$W$6,'Utility Functions'!$X$3:$X$6)","v":0},{"$f":"valueE(N22,'Utility Functions'!$Z$3,'Utility Functions'!$Z$4,'Utility Functions'!$Z$5,'Utility Functions'!$Z$6)","v":1},{"$f":"valuePL(O22,'Utility Functions'!$AA$3:$AA$5,'Utility Functions'!$AB$3:$AB$5)","v":1},{"$f":"valuePL(P22,'Utility Functions'!$AC$3:$AC$7,'Utility Functions'!$AD$3:$AD$7)","v":0},{"$f":"valuePL(Q22,'Utility Functions'!$AE$3:$AE$6,'Utility Functions'!$AF$3:$AF$6)","v":0.1},{"$f":"valuePL(R22,'Utility Functions'!$AG$3:$AG$6,'Utility Functions'!$AH$3:$AH$6)","v":1},{"$f":"valuePL(S22,'Utility Functions'!$AI$3:$AI$6,'Utility Functions'!$AJ$3:$AJ$6)","v":1},{"$f":"valuePL(T22,'Utility Functions'!$AK$3:$AK$8,'Utility Functions'!$AL$3:$AL$8)","v":1},{"$f":"valuePL(U22,'Utility Functions'!$AM$3:$AM$5,'Utility Functions'!$AN$3:$AN$5)","v":0.25},{"$f":"valuePL(V22,'Utility Functions'!$AO$3:$AO$5,'Utility Functions'!$AP$3:$AP$5)","v":0},{"$f":"valuePL(W22,'Utility Functions'!$AQ$3:$AQ$6,'Utility Functions'!$AR$3:$AR$6)","v":0.75},{"$f":"valuePL(X22,'Utility Functions'!$AS$3:$AS$6,'Utility Functions'!$AT$3:$AT$6)","v":1},{"$f":"valuePL(Y22,'Utility Functions'!$AU$3:$AU$6,'Utility Functions'!$AV$3:$AV$6)","v":0.2},{"$f":"valuePL(Z22,'Utility Functions'!$AW$3:$AW$5,'Utility Functions'!$AX$3:$AX$5)","v":0},{"$f":"valuePL(AA22,'Utility Functions'!$AY$3:$AY$6,'Utility Functions'!$AZ$3:$AZ$6)","v":1},{"$f":"valuePL(AB22,'Utility Functions'!$BA$3:$BA$5,'Utility Functions'!$BB$3:$BB$5)","v":0.25},{"$f":"valuePL(AC22,'Utility Functions'!$BC$3:$BC$5,'Utility Functions'!$BD$3:$BD$5)","v":1},9.5500000000000007,null,9.5500000000000007,0,0,2,3.35,4.2]
[22,{"$f":"valueE(B23,'Utility Functions'!$B$3,'Utility Functions'!$B$4,'Utility Functions'!$B$5,'Utility Functions'!$B$6)","v":0},{"$f":"valueE(C23,'Utility Functions'!$D$3,'Utility Functions'!$D$4,'Utility Functions'!$D$5,'Utility Functions'!$D$6)","v":0},{"$f":"valuePL(D23,'Utility Functions'!$E$3:$E$5,'Utility Functions'!$F$3:$F$5)","v":0},{"$f":"valuePL(E23,'Utility Functions'!$G$3:$G$5,'Utility Functions'!$H$3:$H$5)","v":0},{"$f":"valuePL(F23,'Utility Functions'!$I$3:$I$4,'Utility Functions'!$J$3:$J$5)","v":0},{"$f":"valueE(G23,'Utility Functions'!$L$3,'Utility Functions'!$L$4,'Utility Functions'!$L$5,'Utility Functions'!$L$6)","v":8.6021505376344093E-2},{"$f":"valueE(H23,'Utility Functions'!$N$3,'Utility Functions'!$N$4,'Utility Functions'!$N$5,'Utility Functions'!$N$6)","v":6.0721062618595827E-2},{"$f":"valuePL(I23,'Utility Functions'!$O$3:$O$6,'Utility Functions'!$P$3:$P$6)","v":0},{"$f":"valuePL(J23,'Utility Functions'!$Q$3:$Q$6,'Utility Functions'!$R$3:$R$6)","v":0},{"$f":"valuePL(K23,'Utility Functions'!$S$3:$S$7,'Utility Functions'!$T$3:$T$7)","v":0},{"$f":"valueE(L23,'Utility Functions'!$V$3,'Utility Functions'!$V$4,'Utility Functions'!$V$5,'Utility Functions'!$V$6)","v":0},{"$f":"valuePL(M23,'Utility Functions'!$W$3:$W$6,'Utility Functions'!$X$3:$X$6)","v":0},{"$f":"valueE(N23,'Utility Functions'!$Z$3,'Utility Functions'!$Z$4,'Utility Functions'!$Z$5,'Utility Functions'!$Z$6)","v":0.125},{"$f":"valuePL(O23,'Utility Functions'!$AA$3:$AA$5,'Utility Functions'!$AB$3:$AB$5)","v":1},{"$f":"valuePL(P23,'Utility Functions'!$AC$3:$AC$7,'Utility Functions'!$AD$3:$AD$7)","v":1},{"$f":"valuePL(Q23,'Utility Functions'!$AE$3:$AE$6,'Utility Functions'!$AF$3:$AF$6)","v":0.5},{"$f":"valuePL(R23,'Utility Functions'!$AG$3:$AG$6,'Utility Functions'!$AH$3:$AH$6)","v":0.8},{"$f":"valuePL(S23,'Utility Functions'!$AI$3:$AI$6,'Utility Functions'!$AJ$3:$AJ$6)","v":1},{"$f":"valuePL(T23,'Utility Functions'!$AK$3:$AK$8,'Utility Functions'!$AL$3:$AL$8)","v":1},{"$f":"valuePL(U23,'Utility Functions'!$AM$3:$AM$5,'Utility Functions'!$AN$3:$AN$5)","v":0},{"$f":"valuePL(V23,'Utility Functions'!$AO$3:$AO$5,'Utility Functions'!$AP$3:$AP$5)","v":0.5},{"$f":"valuePL(W23,'Utility Functions'!$AQ$3:$AQ$6,'Utility Functions'!$AR$3:$AR$6)","v":0.75},{"$f":"valuePL(X23,'Utility Functions'!$AS$3:$AS$6,'Utility Functions'!$AT$3:$AT$6)","v":0.2},{"$f":"valuePL(Y23,'Utility Functions'!$AU$3:$AU$6,'Utility Functions'!$AV$3:$AV$6)","v":0},{"$f":"valuePL(Z23,'Utility Functions'!$AW$3:$AW$5,'Utility Functions'!$AX$3:$AX$5)","v":1},{"$f":"valuePL(AA23,'Utility Functions'!$AY$3:$AY$6,'Utility Functions'!$AZ$3:$AZ$6)","v":0.2},{"$f":"valuePL(AB23,'Utility Functions'!$BA$3:$BA$5,'Utility Functions'!$BB$3:$BB$5)","v":1},{"$f":"valuePL(AC23,'Utility Functions'!$BC$3:$BC$5,'Utility Functions'!$BD$3:$BD$5)","v":0.25},9.471742567994939,null,9.4717425679949407,0,0.14674256799493993,1.125,4.3,3.9000000000000004]
[23,{"$f":"valueE(B24,'Utility Functions'!$B$3,'Utility Functions'!$B$4,'Utility Functions'!$B$5,'Utility Functions'!$B$6)","v":0.83470237647280454},{"$f":"valueE(C24,'Utility Functions'!$D$3,'Utility Functions'!$D$4,'Utility Functions'!$D$5,'Utility Functions'!$D$6)","v":0.84744836833951609},{"$f":"valuePL(D24,'Utility Functions'!$E$3:$E$5,'Utility Functions'!$F$3:$F$5)","v":1},{"$f":"valuePL(E24,'Utility Functions'!$G$3:$G$5,'Utility Functions'!$H$3:$H$5)","v":0},{"$f":"valuePL(F24,'Utility Functions'!$I$3:$I$4,'Utility Functions'!$J$3:$J$5)","v":0},{"$f":"valueE(G24,'Utility Functions'!$L$3,'Utility Functions'!$L$4,'Utility Functions'!$L$5,'Utility Functions'!$L$6)","v":0},{"$f":"valueE(H24,'Utility Functions'!$N$3,'Utility Functions'!$N$4,'Utility Functions'!$N$5,'Utility Functions'!$N$6)","v":0},{"$f":"valuePL(I24,'Utility Functions'!$O$3:$O$6,'Utility Functions'!$P$3:$P$6)","v":0},{"$f":"valuePL(J24,'Utility Functions'!$Q$3:$Q$6,'Utility Functions'!$R$3:$R$6)","v":0},{"$f":"valuePL(K24,'Utility Functions'!$S$3:$S$7,'Utility Functions'!$T$3:$T$7)","v":0},{"$f":"valueE(L24,'Utility Functions'!$V$3,'Utility Functions'!$V$4,'Utility Functions'!$V$5,'Utility Functions'!$V$6)","v":0},{"$f":"valuePL(M24,'Utility Functions'!$W$3:$W$6,'Utility Functions'!$X$3:$X$6)","v":0},{"$f":"valueE(N24,'Utility Functions'!$Z$3,'Utility Functions'!$Z$4,'Utility Functions'!$Z$5,'Utility Functions'!$Z$6)","v":0},{"$f":"valuePL(O24,'Utility Functions'!$AA$3:$AA$5,'Utility Functions'!$AB$3:$AB$5)","v":0},{"$f":"valuePL(P24,'Utility Functions'!$AC$3:$AC$7,'Utility Functions'!$AD$3:$AD$7)","v":0.75},{"$f":"valuePL(Q24,'Utility Functions'!$AE$3:$AE$6,'Utility Functions'!$AF$3:$AF$6)","v":0},{"$f":"valuePL(R24,'Utility Functions'!$AG$3:$AG$6,'Utility Functions'!$AH$3:$AH$6)","v":1},{"$f":"valuePL(S24,'Utility Functions'!$AI$3:$AI$6,'Utility Functions'!$AJ$3:$AJ$6)","v":1},{"$f":"valuePL(T24,'Utility Functions'!$AK$3:$AK$8,'Utility Functions'!$AL$3:$AL$8)","v":1},{"$f":"valuePL(U24,'Utility Functions'!$AM$3:$AM$5,'Utility Functions'!$AN$3:$AN$5)","v":0},{"$f":"valuePL(V24,'Utility Functions'!$AO$3:$AO$5,'Utility Functions'!$AP$3:$AP$5)","v":1},{"$f":"valuePL(W24,'Utility Functions'!$AQ$3:$AQ$6,'Utility Functions'!$AR$3:$AR$6)","v":0.2},{"$f":"valuePL(X24,'Utility Functions'!$AS$3:$AS$6,'Utility Functions'!$AT$3:$AT$6)","v":0.75},{"$f":"valuePL(Y24,'Utility Functions'!$AU$3:$AU$6,'Utility Functions'!$AV$3:$AV$6)","v":0.2},{"$f":"valuePL(Z24,'Utility Functions'!$AW$3:$AW$5,'Utility Functions'!$AX$3:$AX$5)","v":0.5},{"$f":"valuePL(AA24,'Utility Functions'!$AY$3:$AY$6,'Utility Functions'!$AZ$3:$AZ$6)","v":0.2},{"$f":"valuePL(AB24,'Utility Functions'!$BA$3:$BA$5,'Utility Functions'!$BB$3:$BB$5)","v":0},{"$f":"valuePL(AC24,'Utility Functions'!$BC$3:$BC$5,'Utility Functions'!$BD$3:$BD$5)","v":0.25},9.5321507448123199,null,9.5321507448123199,2.6821507448123207,0,0,3.75,3.1]
[24,{"$f":"valueE(B25,'Utility Functions'!$B$3,'Utility Functions'!$B$4,'Utility Functions'!$B$5,'Utility Functions'!$B$6)","v":0.63212151658375171},{"$f":"valueE(C25,'Utility Functions'!$D$3,'Utility Functions'!$D$4,'Utility Functions'!$D$5,'Utility Functions'!$D$6)","v":0.46475967153745396},{"$f":"valuePL(D25,'Utility Functions'!$E$3:$E$5,'Utility Functions'!$F$3:$F$5)","v":1},{"$f":"valuePL(E25,'Utility Functions'!$G$3:$G$5,'Utility Functions'!$H$3:$H$5)","v":0},{"$f":"valuePL(F25,'Utility Functions'!$I$3:$I$4,'Utility Functions'!$J$3:$J$5)","v":0},{"$f":"valueE(G25,'Utility Functions'!$L$3,'Utility Functions'!$L$4,'Utility Functions'!$L$5,'Utility Functions'!$L$6)","v":0},{"$f":"valueE(H25,'Utility Functions'!$N$3,'Utility Functions'!$N$4,'Utility Functions'!$N$5,'Utility Functions'!$N$6)","v":0},{"$f":"valuePL(I25,'Utility Functions'!$O$3:$O$6,'Utility Functions'!$P$3:$P$6)","v":0},{"$f":"valuePL(J25,'Utility Functions'!$Q$3:$Q$6,'Utility Functions'!$R$3:$R$6)","v":0},{"$f":"valuePL(K25,'Utility Functions'!$S$3:$S$7,'Utility Functions'!$T$3:$T$7)","v":0},{"$f":"valueE(L25,'Utility Functions'!$V$3,'Utility Functions'!$V$4,'Utility Functions'!$V$5,'Utility Functions'!$V$6)","v":0},{"$f":"valuePL(M25,'Utility Functions'!$W$3:$W$6,'Utility Functions'!$X$3:$X$6)","v":0},{"$f":"valueE(N25,'Utility Functions'!$Z$3,'Utility Functions'!$Z$4,'Utility Functions'!$Z$5,'Utility Functions'!$Z$6)","v":0},{"$f":"valuePL(O25,'Utility Functions'!$AA$3:$AA$5,'Utility Functions'!$AB$3:$AB$5)","v":0},{"$f":"valuePL(P25,'Utility Functions'!$AC$3:$AC$7,'Utility Functions'!$AD$3:$AD$7)","v":0},{"$f":"valuePL(Q25,'Utility Functions'!$AE$3:$AE$6,'Utility Functions'!$AF$3:$AF$6)","v":0},{"$f":"valuePL(R25,'Utility Functions'!$AG$3:$AG$6,'Utility Functions'!$AH$3:$AH$6)","v":1},{"$f":"valuePL(S25,'Utility Functions'!$AI$3:$AI$6,'Utility Functions'!$AJ$3:$AJ$6)","v":1},{"$f":"valuePL(T25,'Utility Functions'!$AK$3:$AK$8,'Utility Functions'!$AL$3:$AL$8)","v":1},{"$f":"valuePL(U25,'Utility Functions'!$AM$3:$AM$5,'Utility Functions'!$AN$3:$AN$5)","v":0},{"$f":"valuePL(V25,'Utility Functions'!$AO$3:$AO$5,'Utility Functions'!$AP$3:$AP$5)","v":0},{"$f":"valuePL(W25,'Utility Functions'!$AQ$3:$AQ$6,'Utility Functions'!$AR$3:$AR$6)","v":1},{"$f":"valuePL(X25,'Utility Functions'!$AS$3:$AS$6,'Utility Functions'!$AT$3:$AT$6)","v":0.2},{"$f":"valuePL(Y25,'Utility Functions'!$AU$3:$AU$6,'Utility Functions'!$AV$3:$AV$6)","v":1},{"$f":"valuePL(Z25,'Utility Functions'!$AW$3:$AW$5,'Utility Functions'!$AX$3:$AX$5)","v":1},{"$f":"valuePL(AA25,'Utility Functions'!$AY$3:$AY$6,'Utility Functions'!$AZ$3:$AZ$6)","v":0.2},{"$f":"valuePL(AB25,'Utility Functions'!$BA$3:$BA$5,'Utility Functions'!$BB$3:$BB$5)","v":0},{"$f":"valuePL(AC25,'Utility Functions'!$BC$3:$BC$5,'Utility Functions'!$BD$3:$BD$5)","v":1},9.4968811881212041,null,9.4968811881212059,2.0968811881212055,0,0,3,4.4000000000000004]
[25,{"$f":"valueE(B26,'Utility Functions'!$B$3,'Utility Functions'!$B$4,'Utility Functions'!$B$5,'Utility Functions'!$B$6)","v":0.83470237647280454},{"$f":"valueE(C26,'Utility Functions'!$D$3,'Utility Functions'!$D$4,'Utility Functions'!$D$5,'Utility Functions'!$D$6)","v":0.84744836833951609},{"$f":"valuePL(D26,'Utility Functions'!$E$3:$E$5,'Utility Functions'!$F$3:$F$5)","v":1},{"$f":"valuePL(E26,'Utility Functions'!$G$3:$G$5,'Utility Functions'!$H$3:$H$5)","v":0},{"$f":"valuePL(F26,'Utility Functions'!$I$3:$I$4,'Utility Functions'!$J$3:$J$5)","v":0},{"$f":"valueE(G26,'Utility Functions'!$L$3,'Utility Functions'!$L$4,'Utility Functions'!$L$5,'Utility Functions'!$L$6)","v":0.94623655913978499},{"$f":"valueE(H26,'Utility Functions'!$N$3,'Utility Functions'!$N$4,'Utility Functions'!$N$5,'Utility Functions'!$N$6)","v":0.29222011385199242},{"$f":"valuePL(I26,'Utility Functions'!$O$3:$O$6,'Utility Functions'!$P$3:$P$6)","v":0},{"$f":"valuePL(J26,'Utility Functions'!$Q$3:$Q$6,'Utility Functions'!$R$3:$R$6)","v":0},{"$f":"valuePL(K26,'Utility Functions'!$S$3:$S$7,'Utility Functions'!$T$3:$T$7)","v":0},{"$f":"valueE(L26,'Utility Functions'!$V$3,'Utility Functions'!$V$4,'Utility Functions'!$V$5,'Utility Functions'!$V$6)","v":0},{"$f":"valuePL(M26,'Utility Functions'!$W$3:$W$6,'Utility Functions'!$X$3:$X$6)","v":0},{"$f":"valueE(N26,'Utility Functions'!$Z$3,'Utility Functions'!$Z$4,'Utility Functions'!$Z$5,'Utility Functions'!$Z$6)","v":1},{"$f":"valuePL(O26,'Utility Functions'!$AA$3:$AA$5,'Utility Functions'!$AB$3:$AB$5)","v":0.25},{"$f":"valuePL(P26,'Utility Functions'!$AC$3:$AC$7,'Utility Functions'!$AD$3:$AD$7)","v":0.5},{"$f":"valuePL(Q26,'Utility Functions'!$AE$3:$AE$6,'Utility Functions'!$AF$3:$AF$6)","v":0.5},{"$f":"valuePL(R26,'Utility Functions'!$AG$3:$AG$6,'Utility Functions'!$AH$3:$AH$6)","v":1},{"$f":"valuePL(S26,'Utility Functions'!$AI$3:$AI$6,'Utility Functions'!$AJ$3:$AJ$6)","v":1},{"$f":"valuePL(T26,'Utility Functions'!$AK$3:$AK$8,'Utility Functions'!$AL$3:$AL$8)","v":0},{"$f":"valuePL(U26,'Utility Functions'!$AM$3:$AM$5,'Utility Functions'!$AN$3:$AN$5)","v":0},{"$f":"valuePL(V26,'Utility Functions'!$AO$3:$AO$5,'Utility Functions'!$AP$3:$AP$5)","v":1},{"$f":"valuePL(W26,'Utility Functions'!$AQ$3:$AQ$6,'Utility Functions'!$AR$3:$AR$6)","v":0.2},{"$f":"valuePL(X26,'Utility Functions'!$AS$3:$AS$6,'Utility Functions'!$AT$3:$AT$6)","v":1},{"$f":"valuePL(Y26,'Utility Functions'!$AU$3:$AU$6,'Utility Functions'!$AV$3:$AV$6)","v":0.8},{"$f":"valuePL(Z26,'Utility Functions'!$AW$3:$AW$5,'Utility Functions'!$AX$3:$AX$5)","v":0.5},{"$f":"valuePL(AA26,'Utility Functions'!$AY$3:$AY$6,'Utility Functions'!$AZ$3:$AZ$6)","v":0.2},{"$f":"valuePL(AB26,'Utility Functions'!$BA$3:$BA$5,'Utility Functions'!$BB$3:$BB$5)","v":1},{"$f":"valuePL(AC26,'Utility Functions'!$BC$3:$BC$5,'Utility Functions'!$BD$3:$BD$5)","v":1},13.870607417804099,null,13.870607417804099,2.6821507448123207,1.2384566729917774,1.25,3,5.7]
[26,{"$f":"valueE(B27,'Utility Functions'!$B$3,'Utility Functions'!$B$4,'Utility Functions'!$B$5,'Utility Functions'!$B$6)","v":0.96662819462069161},{"$f":"valueE(C27,'Utility Functions'!$D$3,'Utility Functions'!$D$4,'Utility Functions'!$D$5,'Utility Functions'!$D$6)","v":0.84744836833951609},{"$f":"valuePL(D27,'Utility Functions'!$E$3:$E$5,'Utility Functions'!$F$3:$F$5)","v":1},{"$f":"valuePL(E27,'Utility Functions'!$G$3:$G$5,'Utility Functions'!$H$3:$H$5)","v":0.5},{"$f":"valuePL(F27,'Utility Functions'!$I$3:$I$4,'Utility Functions'!$J$3:$J$5)","v":0},{"$f":"valueE(G27,'Utility Functions'!$L$3,'Utility Functions'!$L$4,'Utility Functions'!$L$5,'Utility Functions'!$L$6)","v":0},{"$f":"valueE(H27,'Utility Functions'!$N$3,'Utility Functions'!$N$4,'Utility Functions'!$N$5,'Utility Functions'!$N$6)","v":0},{"$f":"valuePL(I27,'Utility Functions'!$O$3:$O$6,'Utility Functions'!$P$3:$P$6)","v":0},{"$f":"valuePL(J27,'Utility Functions'!$Q$3:$Q$6,'Utility Functions'!$R$3:$R$6)","v":0},{"$f":"valuePL(K27,'Utility Functions'!$S$3:$S$7,'Utility Functions'!$T$3:$T$7)","v":0},{"$f":"valueE(L27,'Utility Functions'!$V$3,'Utility Functions'!$V$4,'Utility Functions'!$V$5,'Utility Functions'!$V$6)","v":0},{"$f":"valuePL(M27,'Utility Functions'!$W$3:$W$6,'Utility Functions'!$X$3:$X$6)","v":0},{"$f":"valueE(N27,'Utility Functions'!$Z$3,'Utility Functions'!$Z$4,'Utility Functions'!$Z$5,'Utility Functions'!$Z$6)","v":0},{"$f":"valuePL(O27,'Utility Functions'!$AA$3:$AA$5,'Utility Functions'!$AB$3:$AB$5)","v":0},{"$f":"valuePL(P27,'Utility Functions'!$AC$3:$AC$7,'Utility Functions'!$AD$3:$AD$7)","v":0.75},{"$f":"valuePL(Q27,'Utility Functions'!$AE$3:$AE$6,'Utility Functions'!$AF$3:$AF$6)","v":0},{"$f":"valuePL(R27,'Utility Functions'!$AG$3:$AG$6,'Utility Functions'!$AH$3:$AH$6)","v":1},{"$f":"valuePL(S27,'Utility Functions'!$AI$3:$AI$6,'Utility Functions'!$AJ$3:$AJ$6)","v":1},{"$f":"valuePL(T27,'Utility Functions'!$AK$3:$AK$8,'Utility Functions'!$AL$3:$AL$8)","v":0.8},{"$f":"valuePL(U27,'Utility Functions'!$AM$3:$AM$5,'Utility Functions'!$AN$3:$AN$5)","v":0},{"$f":"valuePL(V27,'Utility Functions'!$AO$3:$AO$5,'Utility Functions'!$AP$3:$AP$5)","v":1},{"$f":"valuePL(W27,'Utility Functions'!$AQ$3:$AQ$6,'Utility Functions'!$AR$3:$AR$6)","v":0.2},{"$f":"valuePL(X27,'Utility Functions'!$AS$3:$AS$6,'Utility Functions'!$AT$3:$AT$6)","v":0},{"$f":"valuePL(Y27,'Utility Functions'!$AU$3:$AU$6,'Utility Functions'!$AV$3:$AV$6)","v":0.8},{"$f":"valuePL(Z27,'Utility Functions'!$AW$3:$AW$5,'Utility Functions'!$AX$3:$AX$5)","v":0},{"$f":"valuePL(AA27,'Utility Functions'!$AY$3:$AY$6,'Utility Functions'!$AZ$3:$AZ$6)","v":0.2},{"$f":"valuePL(AB27,'Utility Functions'!$BA$3:$BA$5,'Utility Functions'!$BB$3:$BB$5)","v":1},{"$f":"valuePL(AC27,'Utility Functions'!$BC$3:$BC$5,'Utility Functions'!$BD$3:$BD$5)","v":1},11.064076562960208,null,11.064076562960206,3.3140765629602078,0,0,3.55,4.2]
[27,{"$f":"valueE(B28,'Utility Functions'!$B$3,'Utility Functions'!$B$4,'Utility Functions'!$B$5,'Utility Functions'!$B$6)","v":0},{"$f":"valueE(C28,'Utility Functions'!$D$3,'Utility Functions'!$D$4,'Utility Functions'!$D$5,'Utility Functions'!$D$6)","v":0.46475967153745396},{"$f":"valuePL(D28,'Utility Functions'!$E$3:$E$5,'Utility Functions'!$F$3:$F$5)","v":1},{"$f":"valuePL(E28,'Utility Functions'!$G$3:$G$5,'Utility Functions'!$H$3:$H$5)","v":0},{"$f":"valuePL(F28,'Utility Functions'!$I$3:$I$4,'Utility Functions'!$J$3:$J$5)","v":0},{"$f":"valueE(G28,'Utility Functions'!$L$3,'Utility Functions'!$L$4,'Utility Functions'!$L$5,'Utility Functions'!$L$6)","v":0},{"$f":"valueE(H28,'Utility Functions'!$N$3,'Utility Functions'!$N$4,'Utility Functions'!$N$5,'Utility Functions'!$N$6)","v":0},{"$f":"valuePL(I28,'Utility Functions'!$O$3:$O$6,'Utility Functions'!$P$3:$P$6)","v":0},{"$f":"valuePL(J28,'Utility Functions'!$Q$3:$Q$6,'Utility Functions'!$R$3:$R$6)","v":0},{"$f":"valuePL(K28,'Utility Functions'!$S$3:$S$7,'Utility Functions'!$T$3:$T$7)","v":1},{"$f":"valueE(L28,'Utility Functions'!$V$3,'Utility Functions'!$V$4,'Utility Functions'!$V$5,'Utility Functions'!$V$6)","v":0},{"$f":"valuePL(M28,'Utility Functions'!$W$3:$W$6,'Utility Functions'!$X$3:$X$6)","v":0.1},{"$f":"valueE(N28,'Utility Functions'!$Z$3,'Utility Functions'!$Z$4,'Utility Functions'!$Z$5,'Utility Functions'!$Z$6)","v":0},{"$f":"valuePL(O28,'Utility Functions'!$AA$3:$AA$5,'Utility Functions'!$AB$3:$AB$5)","v":0},{"$f":"valuePL(P28,'Utility Functions'!$AC$3:$AC$7,'Utility Functions'!$AD$3:$AD$7)","v":0.5},{"$f":"valuePL(Q28,'Utility Functions'!$AE$3:$AE$6,'Utility Functions'!$AF$3:$AF$6)","v":0.5},{"$f":"valuePL(R28,'Utility Functions'!$AG$3:$AG$6,'Utility Functions'!$AH$3:$AH$6)","v":1},{"$f":"valuePL(S28,'Utility Functions'!$AI$3:$AI$6,'Utility Functions'!$AJ$3:$AJ$6)","v":1},{"$f":"valuePL(T28,'Utility Functions'!$AK$3:$AK$8,'Utility Functions'!$AL$3:$AL$8)","v":1},{"$f":"valuePL(U28,'Utility Functions'!$AM$3:$AM$5,'Utility Functions'!$AN$3:$AN$5)","v":0},{"$f":"valuePL(V28,'Utility Functions'!$AO$3:$AO$5,'Utility Functions'!$AP$3:$AP$5)","v":0.5},{"$f":"valuePL(W28,'Utility Functions'!$AQ$3:$AQ$6,'Utility Functions'!$AR$3:$AR$6)","v":0.75},{"$f":"valuePL(X28,'Utility Functions'!$AS$3:$AS$6,'Utility Functions'!$AT$3:$AT$6)","v":1},{"$f":"valuePL(Y28,'Utility Functions'!$AU$3:$AU$6,'Utility Functions'!$AV$3:$AV$6)","v":0.2},{"$f":"valuePL(Z28,'Utility Functions'!$AW$3:$AW$5,'Utility Functions'!$AX$3:$AX$5)","v":0},{"$f":"valuePL(AA28,'Utility Functions'!$AY$3:$AY$6,'Utility Functions'!$AZ$3:$AZ$6)","v":0},{"$f":"valuePL(AB28,'Utility Functions'!$BA$3:$BA$5,'Utility Functions'!$BB$3:$BB$5)","v":0},{"$f":"valuePL(AC28,'Utility Functions'!$BC$3:$BC$5,'Utility Functions'!$BD$3:$BD$5)","v":0},9.0147596715374529,null,9.0147596715374547,1.464759671537454,1.1000000000000001,0,4,2.4500000000000002]
[28,{"$f":"valueE(B29,'Utility Functions'!$B$3,'Utility Functions'!$B$4,'Utility Functions'!$B$5,'Utility Functions'!$B$6)","v":0.4511890475224023},{"$f":"valueE(C29,'Utility Functions'!$D$3,'Utility Functions'!$D$4,'Utility Functions'!$D$5,'Utility Functions'!$D$6)","v":0.46475967153745396},{"$f":"valuePL(D29,'Utility Functions'!$E$3:$E$5,'Utility Functions'!$F$3:$F$5)","v":1},{"$f":"valuePL(E29,'Utility Functions'!$G$3:$G$5,'Utility Functions'!$H$3:$H$5)","v":0},{"$f":"valuePL(F29,'Utility Functions'!$I$3:$I$4,'Utility Functions'!$J$3:$J$5)","v":1},{"$f":"valueE(G29,'Utility Functions'!$L$3,'Utility Functions'!$L$4,'Utility Functions'!$L$5,'Utility Functions'!$L$6)","v":0},{"$f":"valueE(H29,'Utility Functions'!$N$3,'Utility Functions'!$N$4,'Utility Functions'!$N$5,'Utility Functions'!$N$6)","v":0},{"$f":"valuePL(I29,'Utility Functions'!$O$3:$O$6,'Utility Functions'!$P$3:$P$6)","v":0},{"$f":"valuePL(J29,'Utility Functions'!$Q$3:$Q$6,'Utility Functions'!$R$3:$R$6)","v":0},{"$f":"valuePL(K29,'Utility Functions'!$S$3:$S$7,'Utility Functions'!$T$3:$T$7)","v":0},{"$f":"valueE(L29,'Utility Functions'!$V$3,'Utility Functions'!$V$4,'Utility Functions'!$V$5,'Utility Functions'!$V$6)","v":0.33333333333333331},{"$f":"valuePL(M29,'Utility Functions'!$W$3:$W$6,'Utility Functions'!$X$3:$X$6)","v":0.1},{"$f":"valueE(N29,'Utility Functions'!$Z$3,'Utility Functions'!$Z$4,'Utility Functions'!$Z$5,'Utility Functions'!$Z$6)","v":0},{"$f":"valuePL(O29,'Utility Functions'!$AA$3:$AA$5,'Utility Functions'!$AB$3:$AB$5)","v":0},{"$f":"valuePL(P29,'Utility Functions'!$AC$3:$AC$7,'Utility Functions'!$AD$3:$AD$7)","v":1},{"$f":"valuePL(Q29,'Utility Functions'!$AE$3:$AE$6,'Utility Functions'!$AF$3:$AF$6)","v":0},{"$f":"valuePL(R29,'Utility Functions'!$AG$3:$AG$6,'Utility Functions'!$AH$3:$AH$6)","v":1},{"$f":"valuePL(S29,'Utility Functions'!$AI$3:$AI$6,'Utility Functions'!$AJ$3:$AJ$6)","v":1},{"$f":"valuePL(T29,'Utility Functions'!$AK$3:$AK$8,'Utility Functions'!$AL$3:$AL$8)","v":0.8},{"$f":"valuePL(U29,'Utility Functions'!$AM$3:$AM$5,'Utility Functions'!$AN$3:$AN$5)","v":0},{"$f":"valuePL(V29,'Utility Functions'!$AO$3:$AO$5,'Utility Functions'!$AP$3:$AP$5)","v":1},{"$f":"valuePL(W29,'Utility Functions'!$AQ$3:$AQ$6,'Utility Functions'!$AR$3:$AR$6)","v":1},{"$f":"valuePL(X29,'Utility Functions'!$AS$3:$AS$6,'Utility Functions'!$AT$3:$AT$6)","v":1},{"$f":"valuePL(Y29,'Utility Functions'!$AU$3:$AU$6,'Utility Functions'!$AV$3:$AV$6)","v":0.2},{"$f":"valuePL(Z29,'Utility Functions'!$AW$3:$AW$5,'Utility Functions'!$AX$3:$AX$5)","v":0},{"$f":"valuePL(AA29,'Utility Functions'!$AY$3:$AY$6,'Utility Functions'!$AZ$3:$AZ$6)","v":0.89999999999999991},{"$f":"valuePL(AB29,'Utility Functions'!$BA$3:$BA$5,'Utility Functions'!$BB$3:$BB$5)","v":1},{"$f":"valuePL(AC29,'Utility Functions'!$BC$3:$BC$5,'Utility Functions'!$BD$3:$BD$5)","v":0.25},12.499282052393189,null,12.499282052393189,2.9159487190598563,0.43333333333333335,0,3.8,5.35]
[29,{"$f":"valueE(B30,'Utility Functions'!$B$3,'Utility Functions'!$B$4,'Utility Functions'!$B$5,'Utility Functions'!$B$6)","v":0.83470237647280454},{"$f":"valueE(C30,'Utility Functions'!$D$3,'Utility Functions'!$D$4,'Utility Functions'!$D$5,'Utility Functions'!$D$6)","v":0.71352759724260828},{"$f":"valuePL(D30,'Utility Functions'!$E$3:$E$5,'Utility Functions'!$F$3:$F$5)","v":1},{"$f":"valuePL(E30,'Utility Functions'!$G$3:$G$5,'Utility Functions'!$H$3:$H$5)","v":0.5},{"$f":"valuePL(F30,'Utility Functions'!$I$3:$I$4,'Utility Functions'!$J$3:$J$5)","v":0},{"$f":"valueE(G30,'Utility Functions'!$L$3,'Utility Functions'!$L$4,'Utility Functions'!$L$5,'Utility Functions'!$L$6)","v":0},{"$f":"valueE(H30,'Utility Functions'!$N$3,'Utility Functions'!$N$4,'Utility Functions'!$N$5,'Utility Functions'!$N$6)","v":0},{"$f":"valuePL(I30,'Utility Functions'!$O$3:$O$6,'Utility Functions'!$P$3:$P$6)","v":0.06},{"$f":"valuePL(J30,'Utility Functions'!$Q$3:$Q$6,'Utility Functions'!$R$3:$R$6)","v":0.67272727272727273},{"$f":"valuePL(K30,'Utility Functions'!$S$3:$S$7,'Utility Functions'!$T$3:$T$7)","v":0},{"$f":"valueE(L30,'Utility Functions'!$V$3,'Utility Functions'!$V$4,'Utility Functions'!$V$5,'Utility Functions'!$V$6)","v":1},{"$f":"valuePL(M30,'Utility Functions'!$W$3:$W$6,'Utility Functions'!$X$3:$X$6)","v":0.67272727272727273},{"$f":"valueE(N30,'Utility Functions'!$Z$3,'Utility Functions'!$Z$4,'Utility Functions'!$Z$5,'Utility Functions'!$Z$6)","v":0},{"$f":"valuePL(O30,'Utility Functions'!$AA$3:$AA$5,'Utility Functions'!$AB$3:$AB$5)","v":0},{"$f":"valuePL(P30,'Utility Functions'!$AC$3:$AC$7,'Utility Functions'!$AD$3:$AD$7)","v":0.25},{"$f":"valuePL(Q30,'Utility Functions'!$AE$3:$AE$6,'Utility Functions'!$AF$3:$AF$6)","v":0},{"$f":"valuePL(R30,'Utility Functions'!$AG$3:$AG$6,'Utility Functions'!$AH$3:$AH$6)","v":1},{"$f":"valuePL(S30,'Utility Functions'!$AI$3:$AI$6,'Utility Functions'!$AJ$3:$AJ$6)","v":1},{"$f":"valuePL(T30,'Utility Functions'!$AK$3:$AK$8,'Utility Functions'!$AL$3:$AL$8)","v":0.8},{"$f":"valuePL(U30,'Utility Functions'!$AM$3:$AM$5,'Utility Functions'!$AN$3:$AN$5)","v":0},{"$f":"valuePL(V30,'Utility Functions'!$AO$3:$AO$5,'Utility Functions'!$AP$3:$AP$5)","v":1},{"$f":"valuePL(W30,'Utility Functions'!$AQ$3:$AQ$6,'Utility Functions'!$AR$3:$AR$6)","v":0.2},{"$f":"valuePL(X30,'Utility Functions'!$AS$3:$AS$6,'Utility Functions'!$AT$3:$AT$6)","v":0},{"$f":"valuePL(Y30,'Utility Functions'!$AU$3:$AU$6,'Utility Functions'!$AV$3:$AV$6)","v":0.8},{"$f":"valuePL(Z30,'Utility Functions'!$AW$3:$AW$5,'Utility Functions'!$AX$3:$AX$5)","v":0.5},{"$f":"valuePL(AA30,'Utility Functions'!$AY$3:$AY$6,'Utility Functions'!$AZ$3:$AZ$6)","v":0.2},{"$f":"valuePL(AB30,'Utility Functions'!$BA$3:$BA$5,'Utility Functions'!$BB$3:$BB$5)","v":0.25},{"$f":"valuePL(AC30,'Utility Functions'!$BC$3:$BC$5,'Utility Functions'!$BD$3:$BD$5)","v":1},12.453684519169958,null,12.453684519169958,3.0482299737154128,2.4054545454545453,0,3.05,3.95]
[30,{"$f":"valueE(B31,'Utility Functions'!$B$3,'Utility Functions'!$B$4,'Utility Functions'!$B$5,'Utility Functions'!$B$6)","v":0.99864114504770318},{"$f":"valueE(C31,'Utility Functions'!$D$3,'Utility Functions'!$D$4,'Utility Functions'!$D$5,'Utility Functions'!$D$6)","v":0.84744836833951609},{"$f":"valuePL(D31,'Utility Functions'!$E$3:$E$5,'Utility Functions'!$F$3:$F$5)","v":1},{"$f":"valuePL(E31,'Utility Functions'!$G$3:$G$5,'Utility Functions'!$H$3:$H$5)","v":0},{"$f":"valuePL(F31,'Utility Functions'!$I$3:$I$4,'Utility Functions'!$J$3:$J$5)","v":0},{"$f":"valueE(G31,'Utility Functions'!$L$3,'Utility Functions'!$L$4,'Utility Functions'!$L$5,'Utility Functions'!$L$6)","v":0},{"$f":"valueE(H31,'Utility Functions'!$N$3,'Utility Functions'!$N$4,'Utility Functions'!$N$5,'Utility Functions'!$N$6)","v":0},{"$f":"valuePL(I31,'Utility Functions'!$O$3:$O$6,'Utility Functions'!$P$3:$P$6)","v":0},{"$f":"valuePL(J31,'Utility Functions'!$Q$3:$Q$6,'Utility Functions'!$R$3:$R$6)","v":0},{"$f":"valuePL(K31,'Utility Functions'!$S$3:$S$7,'Utility Functions'!$T$3:$T$7)","v":0},{"$f":"valueE(L31,'Utility Functions'!$V$3,'Utility Functions'!$V$4,'Utility Functions'!$V$5,'Utility Functions'!$V$6)","v":0.33333333333333331},{"$f":"valuePL(M31,'Utility Functions'!$W$3:$W$6,'Utility Functions'!$X$3:$X$6)","v":0.04},{"$f":"valueE(N31,'Utility Functions'!$Z$3,'Utility Functions'!$Z$4,'Utility Functions'!$Z$5,'Utility Functions'!$Z$6)","v":0},{"$f":"valuePL(O31,'Utility Functions'!$AA$3:$AA$5,'Utility Functions'!$AB$3:$AB$5)","v":0},{"$f":"valuePL(P31,'Utility Functions'!$AC$3:$AC$7,'Utility Functions'!$AD$3:$AD$7)","v":0},{"$f":"valuePL(Q31,'Utility Functions'!$AE$3:$AE$6,'Utility Functions'!$AF$3:$AF$6)","v":0},{"$f":"valuePL(R31,'Utility Functions'!$AG$3:$AG$6,'Utility Functions'!$AH$3:$AH$6)","v":0.2},{"$f":"valuePL(S31,'Utility Functions'!$AI$3:$AI$6,'Utility Functions'!$AJ$3:$AJ$6)","v":0.33},{"$f":"valuePL(T31,'Utility Functions'!$AK$3:$AK$8,'Utility Functions'!$AL$3:$AL$8)","v":0},{"$f":"valuePL(U31,'Utility Functions'!$AM$3:$AM$5,'Utility Functions'!$AN$3:$AN$5)","v":0},{"$f":"valuePL(V31,'Utility Functions'!$AO$3:$AO$5,'Utility Functions'!$AP$3:$AP$5)","v":0},{"$f":"valuePL(W31,'Utility Functions'!$AQ$3:$AQ$6,'Utility Functions'!$AR$3:$AR$6)","v":1},{"$f":"valuePL(X31,'Utility Functions'!$AS$3:$AS$6,'Utility Functions'!$AT$3:$AT$6)","v":0.2},{"$f":"valuePL(Y31,'Utility Functions'!$AU$3:$AU$6,'Utility Functions'!$AV$3:$AV$6)","v":0.8},{"$f":"valuePL(Z31,'Utility Functions'!$AW$3:$AW$5,'Utility Functions'!$AX$3:$AX$5)","v":0},{"$f":"valuePL(AA31,'Utility Functions'!$AY$3:$AY$6,'Utility Functions'!$AZ$3:$AZ$6)","v":0.89999999999999991},{"$f":"valuePL(AB31,'Utility Functions'!$BA$3:$BA$5,'Utility Functions'!$BB$3:$BB$5)","v":1},{"$f":"valuePL(AC31,'Utility Functions'!$BC$3:$BC$5,'Utility Functions'!$BD$3:$BD$5)","v":0},7.6494228467205527,null,7.6494228467205527,2.846089513387219,0.37333333333333329,0,0.53,3.9]
[31,{"$f":"valueE(B32,'Utility Functions'!$B$3,'Utility Functions'!$B$4,'Utility Functions'!$B$5,'Utility Functions'!$B$6)","v":0.55067187023002029},{"$f":"valueE(C32,'Utility Functions'!$D$3,'Utility Functions'!$D$4,'Utility Functions'!$D$5,'Utility Functions'!$D$6)","v":0.84744836833951609},{"$f":"valuePL(D32,'Utility Functions'!$E$3:$E$5,'Utility Functions'!$F$3:$F$5)","v":0.5},{"$f":"valuePL(E32,'Utility Functions'!$G$3:$G$5,'Utility Functions'!$H$3:$H$5)","v":0},{"$f":"valuePL(F32,'Utility Functions'!$I$3:$I$4,'Utility Functions'!$J$3:$J$5)","v":0},{"$f":"valueE(G32,'Utility Functions'!$L$3,'Utility Functions'!$L$4,'Utility Functions'!$L$5,'Utility Functions'!$L$6)","v":0},{"$f":"valueE(H32,'Utility Functions'!$N$3,'Utility Functions'!$N$4,'Utility Functions'!$N$5,'Utility Functions'!$N$6)","v":0},{"$f":"valuePL(I32,'Utility Functions'!$O$3:$O$6,'Utility Functions'!$P$3:$P$6)","v":0.75454545454545452},{"$f":"valuePL(J32,'Utility Functions'!$Q$3:$Q$6,'Utility Functions'!$R$3:$R$6)","v":0.08},{"$f":"valuePL(K32,'Utility Functions'!$S$3:$S$7,'Utility Functions'!$T$3:$T$7)","v":0},{"$f":"valueE(L32,'Utility Functions'!$V$3,'Utility Functions'!$V$4,'Utility Functions'!$V$5,'Utility Functions'!$V$6)","v":0.33333333333333331},{"$f":"valuePL(M32,'Utility Functions'!$W$3:$W$6,'Utility Functions'!$X$3:$X$6)","v":0.08},{"$f":"valueE(N32,'Utility Functions'!$Z$3,'Utility Functions'!$Z$4,'Utility Functions'!$Z$5,'Utility Functions'!$Z$6)","v":0},{"$f":"valuePL(O32,'Utility Functions'!$AA$3:$AA$5,'Utility Functions'!$AB$3:$AB$5)","v":0},{"$f":"valuePL(P32,'Utility Functions'!$AC$3:$AC$7,'Utility Functions'!$AD$3:$AD$7)","v":0.5},{"$f":"valuePL(Q32,'Utility Functions'!$AE$3:$AE$6,'Utility Functions'!$AF$3:$AF$6)","v":0},{"$f":"valuePL(R32,'Utility Functions'!$AG$3:$AG$6,'Utility Functions'!$AH$3:$AH$6)","v":1},{"$f":"valuePL(S32,'Utility Functions'!$AI$3:$AI$6,'Utility Functions'!$AJ$3:$AJ$6)","v":0.66},{"$f":"valuePL(T32,'Utility Functions'!$AK$3:$AK$8,'Utility Functions'!$AL$3:$AL$8)","v":0.6},{"$f":"valuePL(U32,'Utility Functions'!$AM$3:$AM$5,'Utility Functions'!$AN$3:$AN$5)","v":0},{"$f":"valuePL(V32,'Utility Functions'!$AO$3:$AO$5,'Utility Functions'!$AP$3:$AP$5)","v":0.5},{"$f":"valuePL(W32,'Utility Functions'!$AQ$3:$AQ$6,'Utility Functions'!$AR$3:$AR$6)","v":0},{"$f":"valuePL(X32,'Utility Functions'!$AS$3:$AS$6,'Utility Functions'!$AT$3:$AT$6)","v":0.2},{"$f":"valuePL(Y32,'Utility Functions'!$AU$3:$AU$6,'Utility Functions'!$AV$3:$AV$6)","v":0.2},{"$f":"valuePL(Z32,'Utility Functions'!$AW$3:$AW$5,'Utility Functions'!$AX$3:$AX$5)","v":1},{"$f":"valuePL(AA32,'Utility Functions'!$AY$3:$AY$6,'Utility Functions'!$AZ$3:$AZ$6)","v":0.89999999999999991},{"$f":"valuePL(AB32,'Utility Functions'!$BA$3:$BA$5,'Utility Functions'!$BB$3:$BB$5)","v":0.25},{"$f":"valuePL(AC32,'Utility Functions'!$BC$3:$BC$5,'Utility Functions'!$BD$3:$BD$5)","v":0.25},9.2059990264483247,null,9.2059990264483247,1.8981202385695364,1.2478787878787878,0,2.7600000000000002,3.3]
[32,{"$f":"valueE(B33,'Utility Functions'!$B$3,'Utility Functions'!$B$4,'Utility Functions'!$B$5,'Utility Functions'!$B$6)","v":0.63212151658375171},{"$f":"valueE(C33,'Utility Functions'!$D$3,'Utility Functions'!$D$4,'Utility Functions'!$D$5,'Utility Functions'!$D$6)","v":0.26839655623815994},{"$f":"valuePL(D33,'Utility Functions'!$E$3:$E$5,'Utility Functions'!$F$3:$F$5)","v":1},{"$f":"valuePL(E33,'Utility Functions'!$G$3:$G$5,'Utility Functions'!$H$3:$H$5)","v":1},{"$f":"valuePL(F33,'Utility Functions'!$I$3:$I$4,'Utility Functions'!$J$3:$J$5)","v":1},{"$f":"valueE(G33,'Utility Functions'!$L$3,'Utility Functions'!$L$4,'Utility Functions'!$L$5,'Utility Functions'!$L$6)","v":3.2258064516129031E-2},{"$f":"valueE(H33,'Utility Functions'!$N$3,'Utility Functions'!$N$4,'Utility Functions'!$N$5,'Utility Functions'!$N$6)","v":9.6774193548387094E-2},{"$f":"valuePL(I33,'Utility Functions'!$O$3:$O$6,'Utility Functions'!$P$3:$P$6)","v":0.34545454545454546},{"$f":"valuePL(J33,'Utility Functions'!$Q$3:$Q$6,'Utility Functions'!$R$3:$R$6)","v":1},{"$f":"valuePL(K33,'Utility Functions'!$S$3:$S$7,'Utility Functions'!$T$3:$T$7)","v":0.34545454545454546},{"$f":"valueE(L33,'Utility Functions'!$V$3,'Utility Functions'!$V$4,'Utility Functions'!$V$5,'Utility Functions'!$V$6)","v":1},{"$f":"valuePL(M33,'Utility Functions'!$W$3:$W$6,'Utility Functions'!$X$3:$X$6)","v":1},{"$f":"valueE(N33,'Utility Functions'!$Z$3,'Utility Functions'!$Z$4,'Utility Functions'!$Z$5,'Utility Functions'!$Z$6)","v":0},{"$f":"valuePL(O33,'Utility Functions'!$AA$3:$AA$5,'Utility Functions'!$AB$3:$AB$5)","v":0},{"$f":"valuePL(P33,'Utility Functions'!$AC$3:$AC$7,'Utility Functions'!$AD$3:$AD$7)","v":0.5},{"$f":"valuePL(Q33,'Utility Functions'!$AE$3:$AE$6,'Utility Functions'!$AF$3:$AF$6)","v":1},{"$f":"valuePL(R33,'Utility Functions'!$AG$3:$AG$6,'Utility Functions'!$AH$3:$AH$6)","v":1},{"$f":"valuePL(S33,'Utility Functions'!$AI$3:$AI$6,'Utility Functions'!$AJ$3:$AJ$6)","v":0},{"$f":"valuePL(T33,'Utility Functions'!$AK$3:$AK$8,'Utility Functions'!$AL$3:$AL$8)","v":0.8},{"$f":"valuePL(U33,'Utility Functions'!$AM$3:$AM$5,'Utility Functions'!$AN$3:$AN$5)","v":0},{"$f":"valuePL(V33,'Utility Functions'!$AO$3:$AO$5,'Utility Functions'!$AP$3:$AP$5)","v":0},{"$f":"valuePL(W33,'Utility Functions'!$AQ$3:$AQ$6,'Utility Functions'!$AR$3:$AR$6)","v":0.75},{"$f":"valuePL(X33,'Utility Functions'!$AS$3:$AS$6,'Utility Functions'!$AT$3:$AT$6)","v":0.2},{"$f":"valuePL(Y33,'Utility Functions'!$AU$3:$AU$6,'Utility Functions'!$AV$3:$AV$6)","v":0.8},{"$f":"valuePL(Z33,'Utility Functions'!$AW$3:$AW$5,'Utility Functions'!$AX$3:$AX$5)","v":0.5},{"$f":"valuePL(AA33,'Utility Functions'!$AY$3:$AY$6,'Utility Functions'!$AZ$3:$AZ$6)","v":0},{"$f":"valuePL(AB33,'Utility Functions'!$BA$3:$BA$5,'Utility Functions'!$BB$3:$BB$5)","v":1},{"$f":"valuePL(AC33,'Utility Functions'!$BC$3:$BC$5,'Utility Functions'!$BD$3:$BD$5)","v":0.25},14.52045942179552,null,14.520459421795518,3.9005180728219115,3.8199413489736074,0,3.3,3.5]
[33,{"$f":"valueE(B34,'Utility Functions'!$B$3,'Utility Functions'!$B$4,'Utility Functions'!$B$5,'Utility Functions'!$B$6)","v":0.93919136038504192},{"$f":"valueE(C34,'Utility Functions'!$D$3,'Utility Functions'!$D$4,'Utility Functions'!$D$5,'Utility Functions'!$D$6)","v":0.84744836833951609},{"$f":"valuePL(D34,'Utility Functions'!$E$3:$E$5,'Utility Functions'!$F$3:$F$5)","v":1},{"$f":"valuePL(E34,'Utility Functions'!$G$3:$G$5,'Utility Functions'!$H$3:$H$5)","v":0.5},{"$f":"valuePL(F34,'Utility Functions'!$I$3:$I$4,'Utility Functions'!$J$3:$J$5)","v":0},{"$f":"valueE(G34,'Utility Functions'!$L$3,'Utility Functions'!$L$4,'Utility Functions'!$L$5,'Utility Functions'!$L$6)","v":0},{"$f":"valueE(H34,'Utility Functions'!$N$3,'Utility Functions'!$N$4,'Utility Functions'!$N$5,'Utility Functions'!$N$6)","v":0},{"$f":"valuePL(I34,'Utility Functions'!$O$3:$O$6,'Utility Functions'!$P$3:$P$6)","v":0},{"$f":"valuePL(J34,'Utility Functions'!$Q$3:$Q$6,'Utility Functions'!$R$3:$R$6)","v":0},{"$f":"valuePL(K34,'Utility Functions'!$S$3:$S$7,'Utility Functions'!$T$3:$T$7)","v":0},{"$f":"valueE(L34,'Utility Functions'!$V$3,'Utility Functions'!$V$4,'Utility Functions'!$V$5,'Utility Functions'!$V$6)","v":0.5},{"$f":"valuePL(M34,'Utility Functions'!$W$3:$W$6,'Utility Functions'!$X$3:$X$6)","v":0},{"$f":"valueE(N34,'Utility Functions'!$Z$3,'Utility Functions'!$Z$4,'Utility Functions'!$Z$5,'Utility Functions'!$Z$6)","v":0},{"$f":"valuePL(O34,'Utility Functions'!$AA$3:$AA$5,'Utility Functions'!$AB$3:$AB$5)","v":0},{"$f":"valuePL(P34,'Utility Functions'!$AC$3:$AC$7,'Utility Functions'!$AD$3:$AD$7)","v":0.5},{"$f":"valuePL(Q34,'Utility Functions'!$AE$3:$AE$6,'Utility Functions'!$AF$3:$AF$6)","v":0},{"$f":"valuePL(R34,'Utility Functions'!$AG$3:$AG$6,'Utility Functions'!$AH$3:$AH$6)","v":1},{"$f":"valuePL(S34,'Utility Functions'!$AI$3:$AI$6,'Utility Functions'!$AJ$3:$AJ$6)","v":0.66},{"$f":"valuePL(T34,'Utility Functions'!$AK$3:$AK$8,'Utility Functions'!$AL$3:$AL$8)","v":0},{"$f":"valuePL(U34,'Utility Functions'!$AM$3:$AM$5,'Utility Functions'!$AN$3:$AN$5)","v":0},{"$f":"valuePL(V34,'Utility Functions'!$AO$3:$AO$5,'Utility Functions'!$AP$3:$AP$5)","v":0.5},{"$f":"valuePL(W34,'Utility Functions'!$AQ$3:$AQ$6,'Utility Functions'!$AR$3:$AR$6)","v":1},{"$f":"valuePL(X34,'Utility Functions'!$AS$3:$AS$6,'Utility Functions'!$AT$3:$AT$6)","v":0},{"$f":"valuePL(Y34,'Utility Functions'!$AU$3:$AU$6,'Utility Functions'!$AV$3:$AV$6)","v":0.8},{"$f":"valuePL(Z34,'Utility Functions'!$AW$3:$AW$5,'Utility Functions'!$AX$3:$AX$5)","v":1},{"$f":"valuePL(AA34,'Utility Functions'!$AY$3:$AY$6,'Utility Functions'!$AZ$3:$AZ$6)","v":1},{"$f":"valuePL(AB34,'Utility Functions'!$BA$3:$BA$5,'Utility Functions'!$BB$3:$BB$5)","v":0},{"$f":"valuePL(AC34,'Utility Functions'!$BC$3:$BC$5,'Utility Functions'!$BD$3:$BD$5)","v":0},10.246639728724558,null,10.246639728724558,3.2866397287245581,0.5,0,2.16,4.3]
[34,{"$f":"valueE(B35,'Utility Functions'!$B$3,'Utility Functions'!$B$4,'Utility Functions'!$B$5,'Utility Functions'!$B$6)","v":0},{"$f":"valueE(C35,'Utility Functions'!$D$3,'Utility Functions'!$D$4,'Utility Functions'!$D$5,'Utility Functions'!$D$6)","v":0},{"$f":"valuePL(D35,'Utility Functions'!$E$3:$E$5,'Utility Functions'!$F$3:$F$5)","v":0},{"$f":"valuePL(E35,'Utility Functions'!$G$3:$G$5,'Utility Functions'!$H$3:$H$5)","v":0},{"$f":"valuePL(F35,'Utility Functions'!$I$3:$I$4,'Utility Functions'!$J$3:$J$5)","v":0},{"$f":"valueE(G35,'Utility Functions'!$L$3,'Utility Functions'!$L$4,'Utility Functions'!$L$5,'Utility Functions'!$L$6)","v":0},{"$f":"valueE(H35,'Utility Functions'!$N$3,'Utility Functions'!$N$4,'Utility Functions'!$N$5,'Utility Functions'!$N$6)","v":1.1385199240986717E-2},{"$f":"valuePL(I35,'Utility Functions'!$O$3:$O$6,'Utility Functions'!$P$3:$P$6)","v":1},{"$f":"valuePL(J35,'Utility Functions'!$Q$3:$Q$6,'Utility Functions'!$R$3:$R$6)","v":0.91818181818181821},{"$f":"valuePL(K35,'Utility Functions'!$S$3:$S$7,'Utility Functions'!$T$3:$T$7)","v":1},{"$f":"valueE(L35,'Utility Functions'!$V$3,'Utility Functions'!$V$4,'Utility Functions'!$V$5,'Utility Functions'!$V$6)","v":1},{"$f":"valuePL(M35,'Utility Functions'!$W$3:$W$6,'Utility Functions'!$X$3:$X$6)","v":0.91818181818181821},{"$f":"valueE(N35,'Utility Functions'!$Z$3,'Utility Functions'!$Z$4,'Utility Functions'!$Z$5,'Utility Functions'!$Z$6)","v":0},{"$f":"valuePL(O35,'Utility Functions'!$AA$3:$AA$5,'Utility Functions'!$AB$3:$AB$5)","v":0},{"$f":"valuePL(P35,'Utility Functions'!$AC$3:$AC$7,'Utility Functions'!$AD$3:$AD$7)","v":0.5},{"$f":"valuePL(Q35,'Utility Functions'!$AE$3:$AE$6,'Utility Functions'!$AF$3:$AF$6)","v":0},{"$f":"valuePL(R35,'Utility Functions'!$AG$3:$AG$6,'Utility Functions'!$AH$3:$AH$6)","v":1},{"$f":"valuePL(S35,'Utility Functions'!$AI$3:$AI$6,'Utility Functions'!$AJ$3:$AJ$6)","v":1},{"$f":"valuePL(T35,'Utility Functions'!$AK$3:$AK$8,'Utility Functions'!$AL$3:$AL$8)","v":0.8},{"$f":"valuePL(U35,'Utility Functions'!$AM$3:$AM$5,'Utility Functions'!$AN$3:$AN$5)","v":0},{"$f":"valuePL(V35,'Utility Functions'!$AO$3:$AO$5,'Utility Functions'!$AP$3:$AP$5)","v":1},{"$f":"valuePL(W35,'Utility Functions'!$AQ$3:$AQ$6,'Utility Functions'!$AR$3:$AR$6)","v":1},{"$f":"valuePL(X35,'Utility Functions'!$AS$3:$AS$6,'Utility Functions'!$AT$3:$AT$6)","v":1},{"$f":"valuePL(Y35,'Utility Functions'!$AU$3:$AU$6,'Utility Functions'!$AV$3:$AV$6)","v":0},{"$f":"valuePL(Z35,'Utility Functions'!$AW$3:$AW$5,'Utility Functions'!$AX$3:$AX$5)","v":1},{"$f":"valuePL(AA35,'Utility Functions'!$AY$3:$AY$6,'Utility Functions'!$AZ$3:$AZ$6)","v":0.89999999999999991},{"$f":"valuePL(AB35,'Utility Functions'!$BA$3:$BA$5,'Utility Functions'!$BB$3:$BB$5)","v":0.25},{"$f":"valuePL(AC35,'Utility Functions'!$BC$3:$BC$5,'Utility Functions'!$BD$3:$BD$5)","v":0},13.297748835604624,null,13.297748835604624,0,4.847748835604623,0,3.3,5.15]
[35,{"$f":"valueE(B36,'Utility Functions'!$B$3,'Utility Functions'!$B$4,'Utility Functions'!$B$5,'Utility Functions'!$B$6)","v":0.79810469124896843},{"$f":"valueE(C36,'Utility Functions'!$D$3,'Utility Functions'!$D$4,'Utility Functions'!$D$5,'Utility Functions'!$D$6)","v":0.60939983135101949},{"$f":"valuePL(D36,'Utility Functions'!$E$3:$E$5,'Utility Functions'!$F$3:$F$5)","v":0.5},{"$f":"valuePL(E36,'Utility Functions'!$G$3:$G$5,'Utility Functions'!$H$3:$H$5)","v":0.5},{"$f":"valuePL(F36,'Utility Functions'!$I$3:$I$4,'Utility Functions'!$J$3:$J$5)","v":1},{"$f":"valueE(G36,'Utility Functions'!$L$3,'Utility Functions'!$L$4,'Utility Functions'!$L$5,'Utility Functions'!$L$6)","v":0},{"$f":"valueE(H36,'Utility Functions'!$N$3,'Utility Functions'!$N$4,'Utility Functions'!$N$5,'Utility Functions'!$N$6)","v":0},{"$f":"valuePL(I36,'Utility Functions'!$O$3:$O$6,'Utility Functions'!$P$3:$P$6)","v":0},{"$f":"valuePL(J36,'Utility Functions'!$Q$3:$Q$6,'Utility Functions'!$R$3:$R$6)","v":0},{"$f":"valuePL(K36,'Utility Functions'!$S$3:$S$7,'Utility Functions'!$T$3:$T$7)","v":1},{"$f":"valueE(L36,'Utility Functions'!$V$3,'Utility Functions'!$V$4,'Utility Functions'!$V$5,'Utility Functions'!$V$6)","v":0.66666666666666663},{"$f":"valuePL(M36,'Utility Functions'!$W$3:$W$6,'Utility Functions'!$X$3:$X$6)","v":0.1},{"$f":"valueE(N36,'Utility Functions'!$Z$3,'Utility Functions'!$Z$4,'Utility Functions'!$Z$5,'Utility Functions'!$Z$6)","v":1},{"$f":"valuePL(O36,'Utility Functions'!$AA$3:$AA$5,'Utility Functions'!$AB$3:$AB$5)","v":0},{"$f":"valuePL(P36,'Utility Functions'!$AC$3:$AC$7,'Utility Functions'!$AD$3:$AD$7)","v":0},{"$f":"valuePL(Q36,'Utility Functions'!$AE$3:$AE$6,'Utility Functions'!$AF$3:$AF$6)","v":0},{"$f":"valuePL(R36,'Utility Functions'!$AG$3:$AG$6,'Utility Functions'!$AH$3:$AH$6)","v":1},{"$f":"valuePL(S36,'Utility Functions'!$AI$3:$AI$6,'Utility Functions'!$AJ$3:$AJ$6)","v":1},{"$f":"valuePL(T36,'Utility Functions'!$AK$3:$AK$8,'Utility Functions'!$AL$3:$AL$8)","v":0.6},{"$f":"valuePL(U36,'Utility Functions'!$AM$3:$AM$5,'Utility Functions'!$AN$3:$AN$5)","v":0},{"$f":"valuePL(V36,'Utility Functions'!$AO$3:$AO$5,'Utility Functions'!$AP$3:$AP$5)","v":1},{"$f":"valuePL(W36,'Utility Functions'!$AQ$3:$AQ$6,'Utility Functions'!$AR$3:$AR$6)","v":0.75},{"$f":"valuePL(X36,'Utility Functions'!$AS$3:$AS$6,'Utility Functions'!$AT$3:$AT$6)","v":0},{"$f":"valuePL(Y36,'Utility Functions'!$AU$3:$AU$6,'Utility Functions'!$AV$3:$AV$6)","v":0.2},{"$f":"valuePL(Z36,'Utility Functions'!$AW$3:$AW$5,'Utility Functions'!$AX$3:$AX$5)","v":1},{"$f":"valuePL(AA36,'Utility Functions'!$AY$3:$AY$6,'Utility Functions'!$AZ$3:$AZ$6)","v":0},{"$f":"valuePL(AB36,'Utility Functions'!$BA$3:$BA$5,'Utility Functions'!$BB$3:$BB$5)","v":0.25},{"$f":"valuePL(AC36,'Utility Functions'!$BC$3:$BC$5,'Utility Functions'!$BD$3:$BD$5)","v":0.25},12.224171189266654,null,12.224171189266656,3.407504522599988,1.7666666666666666,1,2.6,3.45]
["Unweighted",{"$f":"SUMPRODUCT(B46:B80,$B$85:$B$119)","v":2.4313097951313183},{"$f":"SUMPRODUCT(C46:C80,$B$85:$B$119)","v":1.66702526070833},{"$f":"SUMPRODUCT(D46:D80,$B$85:$B$119)","v":5},1,0,1,1,1.4672727272727273,0.18000000000000002,1,0,0.1,0.5,0.25,1.5,0.8,3.8,5,3.2,0.25,2,3.75,5,2.2000000000000002,1,1,4,1.75,null,null,"Unweighted",{"$f":"SUMPRODUCT(AG46:AG80,$B$85:$B$119)","v":10.098335055839648},{"$f":"SUMPRODUCT(AH46:AH80,$B$85:$B$119)","v":4.747272727272728},0.75,14.55,20.7]
["Weighted",{"$f":"B$81*Sens_EP!I$5","v":4.3809706217134523E-2},{"$f":"C$81*Sens_EP!J$5","v":2.8395745529404881E-2},{"$f":"D$81*Sens_EP!K$5","v":8.6253491030360369E-2},{"$f":"E$81*Sens_EP!L$5","v":1.6806562713267952E-2},{"$f":"F$81*Sens_EP!M$5","v":0},{"$f":"G$81*Sens_EP!N$5","v":8.4348626137995195E-3},{"$f":"H$81*Sens_EP!O$5","v":8.4348626137995195E-3},{"$f":"I$81*Sens_EP!P$5","v":2.1008533328873376E-2},{"$f":"J$81*Sens_EP!Q$5","v":2.5114060422097382E-3},{"$f":"K$81*Sens_EP!R$5","v":1.2292521977337354E-2},{"$f":"L$81*Sens_EP!S$5","v":0},{"$f":"M$81*Sens_EP!T$5","v":9.5134885615324972E-4},{"$f":"N$81*Sens_EP!U$5","v":6.25E-2},{"$f":"O$81*Sens_EP!V$5","v":9.375E-2},{"$f":"P$81*Sens_EP!W$5","v":3.3696681737140577E-2},{"$f":"Q$81*Sens_EP!X$5","v":1.98102895921408E-2},{"$f":"R$81*Sens_EP!Y$5","v":0.10771012140119084},{"$f":"S$81*Sens_EP!Z$5","v":0.12412909922222994},{"$f":"T$81*Sens_EP!AA$5","v":5.7824219607533894E-2},{"$f":"U$81*Sens_EP!AB$5","v":4.4739156551114783E-3},{"$f":"V$81*Sens_EP!AC$5","v":6.1882236137764342E-2},{"$f":"W$81*Sens_EP!AD$5","v":8.3676932296070858E-2},{"$f":"X$81*Sens_EP!AE$5","v":0.11931652401814072},{"$f":"Y$81*Sens_EP!AF$5","v":6.5239432447026166E-2},{"$f":"Z$81*Sens_EP!AG$5","v":2.5694728419481238E-2},{"$f":"AA$81*Sens_EP!AH$5","v":1.9909496059435511E-2},{"$f":"AB$81*Sens_EP!AI$5","v":8.4457549193687545E-2},{"$f":"AC$81*Sens_EP!AJ$5","v":3.4458633026584674E-2},null,null,"Weighted for SA",{"$f":"AG81*#REF!","v":{"$error":"#REF!"}},{"$f":"AH81*#REF!","v":{"$error":"#REF!"}},{"$f":"AI81*#REF!","v":{"$error":"#REF!"}},{"$f":"AJ81*#REF!","v":{"$error":"#REF!"}},{"$f":"AK81*#REF!","v":{"$error":"#REF!"}}]
[]
[null,"Decision variable","Benefit","Cost"]
[{"$f":"A2","v":1},1,{"$f":"AD46","v":17.117643866192076},{"$f":"AD2","v":700000}]
[2,0,{"$f":"AD47","v":12.641625800575998},{"$f":"AD3","v":5400000}]
[3,0,11.563541444302563,250000]
[4,1,9.2460291931089209,150000]
[5,1,9.5663279251355373,220000]
[6,1,5.9008471271383875,110000]
[7,0,15.54287399641135,1000000]
[8,0,14.227364688589191,5000000]
[9,0,11.893773577166716,25000]
[10,0,9.01,900000]
[11,0,13.174032258064516,1500000]
[12,0,9.4195802436719873,100000]
[13,0,7.5245670174228056,250000]
[14,0,10.338706637075108,500000]
[15,0,15.150477261414375,800000]
[16,0,15.119696969696969,2000000]
[17,0,10.876550515651747,500000]
[18,0,10.178462998102468,300000]
[19,0,9.3165012474871283,750000]
[20,0,15.091255033092194,1500000]
[21,0,9.5500000000000007,900000]
[22,0,9.471742567994939,750000]
[23,0,9.5321507448123199,1000000]
[24,0,9.4968811881212041,150000]
[25,0,13.870607417804099,250000]
[26,0,11.064076562960208,500000]
[27,1,9.0147596715374529,1200000]
[28,0,12.499282052393189,500000]
[29,0,12.453684519169958,2000000]
[30,0,7.6494228467205527,250000]
[31,0,9.2059990264483247,650000]
[32,0,14.52045942179552,200000]
[33,0,10.246639728724558,400000]
[34,0,13.297748835604624,900000]
[35,0,12.224171189266654,900000]
[null,{"$f":"SUM(B85:B119)","v":5},{"$f":"SUMPRODUCT(C85:C119,B85:B119)","v":50.845607783112378},{"$f":"SUMPRODUCT(B85:B119,D85:D119)","v":2380000}]
[]
[null,null,"Cost constraint",15000000]

{"sheet":"Portfolio_C_ep","index":35,"n_rows":122,"n_cols":37,"rows_kept":122,"cut":false,"hidden":false,"merged":[]}
["Project","manage_species","manage_spatial","manage_uncertainty","manage_currentpractices","manage_adaptivemanagement","pop_a","pop_b","pop_spatialscope","pop_temporalscope","hab_quantity","hab_quality","hab_temporal","ecoprocess_spp","ecoprocess_uncertainty","datasharing","broaderimpacts","exisitingpriorities","partners","leverage","alignment","objhyp","response","targettaxa","surveydesign","stats","datamanagement","budget","timeline","cost"]
[1,9,6.25,2,2,0,186,1054,75,5,0,2,0,0,0,4,0,2,3,0,0,2,3,3,3,2,3,2,2,700000]
[2,3,28.2,1,0,0,0,0,0,0,0,2,0,4,1,0,0,3,3,0,0,2,3,3,3,2,3,2,2,5400000]
[3,8,28.2,2,0,0,0,0,0,0,0,2,0,5,1,0,2,0,0,0,1,2,3,3,3,2,1,2,2,250000]
[4,1,6.25,2,0,0,0,0,0,0,0,2,0,4,1,0,1,3,3,4,0,1,3,3,1,0,0,2,1,150000]
[5,4,3.1,2,0,0,0,0,50,2,0,2,0,0,0,0,1,3,3,4,1,0,3,3,2,0,0,2,1,220000]
[6,10,6.2E-2,2,0,0,0,0,10,2,0,2,0,0,0,0,1,0,3,3,0,0,0,3,0,0,0,2,1,110000]
[7,52,18.8,0,2,0,0,0,85,12,85,8,12,8,1,0,0,3,3,0,0,2,0,1,3,2,2,0,2,1000000]
[8,3,18.8,2,1,1,0,0,14,14,14,8,14,0,0,0,3,1,3,0,0,2,3,3,3,2,0,1,1,5000000]
[9,9,15.6,2,1,0,70,140,0,0,0,2,0,0,0,3,0,3,2,1,0,2,3,3,1,2,1,1,2,25000]
[10,0,0,0,0,0,0,0,0,0,0,2,0,6,2,1,2,3,2,2,0,0,2,3,3,1,1,0,2,900000]
[11,0,0,0,0,0,6,102,52,15,52,8,15,3,1,1,0,3,3,2,2,2,1,3,3,1,2,0,1,1500000]
[12,2,15.6,2,1,0,0,0,0,0,0,2,0,0,0,0,1,3,3,3,0,1,1,3,1,2,1,2,0,100000]
[13,0,0,0,0,0,0,12,39,2,39,8,2,7,1,1,0,3,3,0,0,1,0,1,0,2,1,1,1,250000]
[14,6,15.6,1,1,0,0,0,0,0,0,2,0,6,1,1,0,3,3,0,0,1,1,3,3,1,2,1,1,500000]
[15,23,12.5,2,1,1,0,0,23,3,23,8,3,1,2,2,0,2,3,3,2,0,3,1,1,2,3,2,1,800000]
[16,0,0,0,0,0,0,0,100,15,100,7,15,0,0,3,0,3,3,5,0,2,2,2,1,2,3,2,2,2000000]
[17,2,15.6,2,1,1,58,290,0,0,0,8,3,0,0,0,0,3,2,0,0,2,3,1,0,1,0,2,1,500000]
[18,0,0,0,0,0,0,30,0,0,0,2,0,8,1,1,3,3,3,5,1,2,2,1,2,1,2,1,0,300000]
[19,8,3.125,1,2,0,0,0,0,0,0,2,0,8,2,0,0,2,3,0,0,1,1,3,2,0,1,0,1,750000]
[20,9,15.6,1,2,0,0,435,76,10,76,6,10,8,2,1,0,3,3,3,2,1,0,0,1,2,1,0,1,1500000]
[21,0,0,0,0,0,0,0,0,0,0,2,0,8,2,0,1,3,3,5,1,0,2,3,1,0,3,1,2,900000]
[22,0,0,0,0,0,16,64,0,0,0,2,0,1,2,4,2,2,3,5,0,1,2,1,0,2,1,2,1,750000]
[23,9,18.8,2,0,0,0,0,0,0,0,2,0,0,0,3,0,3,3,5,0,2,1,2,1,1,1,0,1,1000000]
[24,5,6.25,2,0,0,0,0,0,0,0,2,0,0,0,0,0,3,3,5,0,0,3,1,3,2,1,0,2,150000]
[25,9,18.8,2,0,0,176,308,0,0,0,2,0,8,1,2,2,3,3,0,0,2,1,3,2,1,1,2,2,250000]
[26,17,18.8,2,1,0,0,0,0,0,0,2,0,0,0,3,0,3,3,4,0,2,1,0,2,0,1,2,2,500000]
[27,0,6.25,2,0,0,0,0,0,0,80,2,5,0,0,2,2,3,3,5,0,1,2,3,1,0,0,0,0,1200000]
[28,3,6.25,2,0,1,0,0,0,0,0,4,5,0,0,4,0,3,3,4,0,2,3,3,1,0,2,2,1,500000]
[29,9,12.5,2,1,0,0,0,15,12,15,8,12,0,0,1,0,3,3,4,0,2,1,0,2,1,1,1,2,2000000]
[30,33,18.8,2,0,0,0,0,0,0,0,4,2,0,0,0,0,1,1,0,0,0,3,1,2,0,2,2,0,250000]
[31,4,18.8,1,0,0,0,0,65,4,0,4,4,0,0,2,0,3,2,3,0,1,0,1,1,2,2,1,1,650000]
[32,5,3.125,2,2,1,6,102,40,16,40,8,16,0,0,2,3,3,0,4,0,0,2,1,2,1,0,2,1,200000]
[33,14,18.8,2,1,0,0,0,0,0,0,5,0,0,0,2,0,3,2,0,0,1,3,0,2,2,3,0,0,400000]
[34,0,0,0,0,0,0,12,100,15,100,8,15,0,0,2,0,3,3,4,0,2,3,3,0,2,2,1,0,900000]
[35,8,9.4,1,1,1,0,0,0,0,100,6,5,8,0,0,0,3,3,3,0,2,2,0,1,2,0,1,1,900000]
["CV",{"$f":"_xlfn.STDEV.S(B2:B36)/AVERAGE(B2:B36)","v":1.383842854444886},{"$f":"_xlfn.STDEV.S(C2:C36)/AVERAGE(C2:C36)","v":0.84395823753626376},{"$f":"_xlfn.STDEV.S(D2:D36)/AVERAGE(D2:D36)","v":0.65948586466528381},{"$f":"_xlfn.STDEV.S(E2:E36)/AVERAGE(E2:E36)","v":1.2933654230908831},2.2305806858480666,2.9881459898804135,2.7250501152884543,1.5394659205075842,1.5790297611729722,1.6828143944790142,0.63288342730791625,1.4346340567392073,1.2744250477591585,1.2909944487358058,1.043011114951035,1.4910544805781871,0.32582327651393111,0.30721159062514791,0.8219511329380369,2.1760730956581078,0.64975875258290616,0.58618247649425104,0.61083323417736113,0.63333947951472869,0.68629571860885286,0.76505300516434493,0.69428102652373402,0.60312027652595823]
["sd",{"$f":"_xlfn.STDEV.S(B2:B36)","v":10.477667326511279}]
["mean",{"$f":"AVERAGE(B2:B36)","v":7.5714285714285712}]
[null,{"$f":"B1","v":"manage_species"},{"$f":"C1","v":"manage_spatial"},"manage_uncertainty","manage_currentpractices","manage_adaptivemanagement","pop_a","pop_b","pop_spatialscope","pop_temporalscope","hab_quantity","hab_quality","hab_temporal","ecoprocess_spp","ecoprocess_uncertainty","datasharing","broaderimpacts","exisitingpriorities","partners","leverage","alignment","objhyp","response","targettaxa","surveydesign","stats","datamanagement","budget","timeline"]
[null,"Metric 1","Metric 2","Metric 3","Metric 4","Metric 5","Metric 6a","Metric 6b","Metric 7","Metric 8","Metric 9","Metric 10","Metric 11","Metric 12","Metric 13","Metric 14","Metric 15","Metric 16","Metric 17","Metric 18","Metric 19","Metric 20","Metric 21","Metric 22","Metric 23","Metric 24","Metric 25","Metric 26","Metric 27"]
["Weights",0.03,0.03,0.03,0.03,0.04,1.4999999999999999E-2,1.4999999999999999E-2,0.03,0.02,0.02,0.02,0.02,0.03,0.09,0.04,0.04,0.05,0.05,0.03,0.03,0.05,0.04,0.04,0.05,0.05,0.04,0.04,0.03]
[]
[null,"Unweighted"]
["Project",null,null,null,null,null,null,null,null,null,null,null,null,null,null,null,null,null,null,null,null,null,null,null,null,null,null,null,null,"Unweighted total",null,"Unweighted total","management","status","ecol_proc","integration","rigor"]
[{"$f":"A2","v":1},{"$f":"valueE(B2,'Utility Functions'!$B$3,'Utility Functions'!$B$4,'Utility Functions'!$B$5,'Utility Functions'!$B$6)","v":0.83470237647280454},{"$f":"valueE(C2,'Utility Functions'!$D$3,'Utility Functions'!$D$4,'Utility Functions'!$D$5,'Utility Functions'!$D$6)","v":0.46475967153745396},{"$f":"valuePL(D2,'Utility Functions'!$E$3:$E$5,'Utility Functions'!$F$3:$F$5)","v":1},{"$f":"valuePL(E2,'Utility Functions'!$G$3:$G$5,'Utility Functions'!$H$3:$H$5)","v":1},{"$f":"valuePL(F2,'Utility Functions'!$I$3:$I$4,'Utility Functions'!$J$3:$J$5)","v":0},{"$f":"valueE(G2,'Utility Functions'!$L$3,'Utility Functions'!$L$4,'Utility Functions'!$L$5,'Utility Functions'!$L$6)","v":1},{"$f":"valueE(H2,'Utility Functions'!$N$3,'Utility Functions'!$N$4,'Utility Functions'!$N$5,'Utility Functions'!$N$6)","v":1},{"$f":"valuePL(I2,'Utility Functions'!$O$3:$O$6,'Utility Functions'!$P$3:$P$6)","v":0.91818181818181821},{"$f":"valuePL(J2,'Utility Functions'!$Q$3:$Q$6,'Utility Functions'!$R$3:$R$6)","v":0.1},{"$f":"valuePL(K2,'Utility Functions'!$S$3:$S$7,'Utility Functions'!$T$3:$T$7)","v":0},{"$f":"valueE(L2,'Utility Functions'!$V$3,'Utility Functions'!$V$4,'Utility Functions'!$V$5,'Utility Functions'!$V$6)","v":0},{"$f":"valuePL(M2,'Utility Functions'!$W$3:$W$6,'Utility Functions'!$X$3:$X$6)","v":0},{"$f":"valueE(N2,'Utility Functions'!$Z$3,'Utility Functions'!$Z$4,'Utility Functions'!$Z$5,'Utility Functions'!$Z$6)","v":0},{"$f":"valuePL(O2,'Utility Functions'!$AA$3:$AA$5,'Utility Functions'!$AB$3:$AB$5)","v":0},{"$f":"valuePL(P2,'Utility Functions'!$AC$3:$AC$7,'Utility Functions'!$AD$3:$AD$7)","v":1},{"$f":"valuePL(Q2,'Utility Functions'!$AE$3:$AE$6,'Utility Functions'!$AF$3:$AF$6)","v":0},{"$f":"valuePL(R2,'Utility Functions'!$AG$3:$AG$6,'Utility Functions'!$AH$3:$AH$6)","v":0.8},{"$f":"valuePL(S2,'Utility Functions'!$AI$3:$AI$6,'Utility Functions'!$AJ$3:$AJ$6)","v":1},{"$f":"valuePL(T2,'Utility Functions'!$AK$3:$AK$8,'Utility Functions'!$AL$3:$AL$8)","v":0},{"$f":"valuePL(U2,'Utility Functions'!$AM$3:$AM$5,'Utility Functions'!$AN$3:$AN$5)","v":0},{"$f":"valuePL(V2,'Utility Functions'!$AO$3:$AO$5,'Utility Functions'!$AP$3:$AP$5)","v":1},{"$f":"valuePL(W2,'Utility Functions'!$AQ$3:$AQ$6,'Utility Functions'!$AR$3:$AR$6)","v":1},{"$f":"valuePL(X2,'Utility Functions'!$AS$3:$AS$6,'Utility Functions'!$AT$3:$AT$6)","v":1},{"$f":"valuePL(Y2,'Utility Functions'!$AU$3:$AU$6,'Utility Functions'!$AV$3:$AV$6)","v":1},{"$f":"valuePL(Z2,'Utility Functions'!$AW$3:$AW$5,'Utility Functions'!$AX$3:$AX$5)","v":1},{"$f":"valuePL(AA2,'Utility Functions'!$AY$3:$AY$6,'Utility Functions'!$AZ$3:$AZ$6)","v":1},{"$f":"valuePL(AB2,'Utility Functions'!$BA$3:$BA$5,'Utility Functions'!$BB$3:$BB$5)","v":1},{"$f":"valuePL(AC2,'Utility Functions'!$BC$3:$BC$5,'Utility Functions'!$BD$3:$BD$5)","v":1},{"$f":"SUM(B46:AC46)","v":17.117643866192076},null,{"$f":"SUM(AG46:AK46)","v":17.117643866192076},{"$f":"SUM(B46:F46)","v":3.2994620480102586},{"$f":"SUM(G46:M46)","v":3.0181818181818181},{"$f":"SUM(N46:O46)","v":0},{"$f":"SUM(P46:U46)","v":2.8},{"$f":"SUM(V46:AC46)","v":8}]
[2,{"$f":"valueE(B3,'Utility Functions'!$B$3,'Utility Functions'!$B$4,'Utility Functions'!$B$5,'Utility Functions'!$B$6)","v":0.4511890475224023},{"$f":"valueE(C3,'Utility Functions'!$D$3,'Utility Functions'!$D$4,'Utility Functions'!$D$5,'Utility Functions'!$D$6)","v":0.94043675305359531},{"$f":"valuePL(D3,'Utility Functions'!$E$3:$E$5,'Utility Functions'!$F$3:$F$5)","v":0.5},{"$f":"valuePL(E3,'Utility Functions'!$G$3:$G$5,'Utility Functions'!$H$3:$H$5)","v":0},{"$f":"valuePL(F3,'Utility Functions'!$I$3:$I$4,'Utility Functions'!$J$3:$J$5)","v":0},{"$f":"valueE(G3,'Utility Functions'!$L$3,'Utility Functions'!$L$4,'Utility Functions'!$L$5,'Utility Functions'!$L$6)","v":0},{"$f":"valueE(H3,'Utility Functions'!$N$3,'Utility Functions'!$N$4,'Utility Functions'!$N$5,'Utility Functions'!$N$6)","v":0},{"$f":"valuePL(I3,'Utility Functions'!$O$3:$O$6,'Utility Functions'!$P$3:$P$6)","v":0},{"$f":"valuePL(J3,'Utility Functions'!$Q$3:$Q$6,'Utility Functions'!$R$3:$R$6)","v":0},{"$f":"valuePL(K3,'Utility Functions'!$S$3:$S$7,'Utility Functions'!$T$3:$T$7)","v":0},{"$f":"valueE(L3,'Utility Functions'!$V$3,'Utility Functions'!$V$4,'Utility Functions'!$V$5,'Utility Functions'!$V$6)","v":0},{"$f":"valuePL(M3,'Utility Functions'!$W$3:$W$6,'Utility Functions'!$X$3:$X$6)","v":0},{"$f":"valueE(N3,'Utility Functions'!$Z$3,'Utility Functions'!$Z$4,'Utility Functions'!$Z$5,'Utility Functions'!$Z$6)","v":0.5},{"$f":"valuePL(O3,'Utility Functions'!$AA$3:$AA$5,'Utility Functions'!$AB$3:$AB$5)","v":0.25},{"$f":"valuePL(P3,'Utility Functions'!$AC$3:$AC$7,'Utility Functions'!$AD$3:$AD$7)","v":0},{"$f":"valuePL(Q3,'Utility Functions'!$AE$3:$AE$6,'Utility Functions'!$AF$3:$AF$6)","v":0},{"$f":"valuePL(R3,'Utility Functions'!$AG$3:$AG$6,'Utility Functions'!$AH$3:$AH$6)","v":1},{"$f":"valuePL(S3,'Utility Functions'!$AI$3:$AI$6,'Utility Functions'!$AJ$3:$AJ$6)","v":1},{"$f":"valuePL(T3,'Utility Functions'!$AK$3:$AK$8,'Utility Functions'!$AL$3:$AL$8)","v":0},{"$f":"valuePL(U3,'Utility Functions'!$AM$3:$AM$5,'Utility Functions'!$AN$3:$AN$5)","v":0},{"$f":"valuePL(V3,'Utility Functions'!$AO$3:$AO$5,'Utility Functions'!$AP$3:$AP$5)","v":1},{"$f":"valuePL(W3,'Utility Functions'!$AQ$3:$AQ$6,'Utility Functions'!$AR$3:$AR$6)","v":1},{"$f":"valuePL(X3,'Utility Functions'!$AS$3:$AS$6,'Utility Functions'!$AT$3:$AT$6)","v":1},{"$f":"valuePL(Y3,'Utility Functions'!$AU$3:$AU$6,'Utility Functions'!$AV$3:$AV$6)","v":1},{"$f":"valuePL(Z3,'Utility Functions'!$AW$3:$AW$5,'Utility Functions'!$AX$3:$AX$5)","v":1},{"$f":"valuePL(AA3,'Utility Functions'!$AY$3:$AY$6,'Utility Functions'!$AZ$3:$AZ$6)","v":1},{"$f":"valuePL(AB3,'Utility Functions'!$BA$3:$BA$5,'Utility Functions'!$BB$3:$BB$5)","v":1},{"$f":"valuePL(AC3,'Utility Functions'!$BC$3:$BC$5,'Utility Functions'!$BD$3:$BD$5)","v":1},{"$f":"SUM(B47:AC47)","v":12.641625800575998},null,{"$f":"SUM(AG47:AK47)","v":12.641625800575998},{"$f":"SUM(B47:F47)","v":1.8916258005759976},{"$f":"SUM(G47:M47)","v":0},{"$f":"SUM(N47:O47)","v":0.75},{"$f":"SUM(P47:U47)","v":2},{"$f":"SUM(V47:AC47)","v":8}]
[3,{"$f":"valueE(B4,'Utility Functions'!$B$3,'Utility Functions'!$B$4,'Utility Functions'!$B$5,'Utility Functions'!$B$6)","v":0.79810469124896843},{"$f":"valueE(C4,'Utility Functions'!$D$3,'Utility Functions'!$D$4,'Utility Functions'!$D$5,'Utility Functions'!$D$6)","v":0.94043675305359531},{"$f":"valuePL(D4,'Utility Functions'!$E$3:$E$5,'Utility Functions'!$F$3:$F$5)","v":1},{"$f":"valuePL(E4,'Utility Functions'!$G$3:$G$5,'Utility Functions'!$H$3:$H$5)","v":0},{"$f":"valuePL(F4,'Utility Functions'!$I$3:$I$4,'Utility Functions'!$J$3:$J$5)","v":0},{"$f":"valueE(G4,'Utility Functions'!$L$3,'Utility Functions'!$L$4,'Utility Functions'!$L$5,'Utility Functions'!$L$6)","v":0},{"$f":"valueE(H4,'Utility Functions'!$N$3,'Utility Functions'!$N$4,'Utility Functions'!$N$5,'Utility Functions'!$N$6)","v":0},{"$f":"valuePL(I4,'Utility Functions'!$O$3:$O$6,'Utility Functions'!$P$3:$P$6)","v":0},{"$f":"valuePL(J4,'Utility Functions'!$Q$3:$Q$6,'Utility Functions'!$R$3:$R$6)","v":0},{"$f":"valuePL(K4,'Utility Functions'!$S$3:$S$7,'Utility Functions'!$T$3:$T$7)","v":0},{"$f":"valueE(L4,'Utility Functions'!$V$3,'Utility Functions'!$V$4,'Utility Functions'!$V$5,'Utility Functions'!$V$6)","v":0},{"$f":"valuePL(M4,'Utility Functions'!$W$3:$W$6,'Utility Functions'!$X$3:$X$6)","v":0},{"$f":"valueE(N4,'Utility Functions'!$Z$3,'Utility Functions'!$Z$4,'Utility Functions'!$Z$5,'Utility Functions'!$Z$6)","v":0.625},{"$f":"valuePL(O4,'Utility Functions'!$AA$3:$AA$5,'Utility Functions'!$AB$3:$AB$5)","v":0.25},{"$f":"valuePL(P4,'Utility Functions'!$AC$3:$AC$7,'Utility Functions'!$AD$3:$AD$7)","v":0},{"$f":"valuePL(Q4,'Utility Functions'!$AE$3:$AE$6,'Utility Functions'!$AF$3:$AF$6)","v":0.5},{"$f":"valuePL(R4,'Utility Functions'!$AG$3:$AG$6,'Utility Functions'!$AH$3:$AH$6)","v":0},{"$f":"valuePL(S4,'Utility Functions'!$AI$3:$AI$6,'Utility Functions'!$AJ$3:$AJ$6)","v":0},{"$f":"valuePL(T4,'Utility Functions'!$AK$3:$AK$8,'Utility Functions'!$AL$3:$AL$8)","v":0},{"$f":"valuePL(U4,'Utility Functions'!$AM$3:$AM$5,'Utility Functions'!$AN$3:$AN$5)","v":0.25},{"$f":"valuePL(V4,'Utility Functions'!$AO$3:$AO$5,'Utility Functions'!$AP$3:$AP$5)","v":1},{"$f":"valuePL(W4,'Utility Functions'!$AQ$3:$AQ$6,'Utility Functions'!$AR$3:$AR$6)","v":1},{"$f":"valuePL(X4,'Utility Functions'!$AS$3:$AS$6,'Utility Functions'!$AT$3:$AT$6)","v":1},{"$f":"valuePL(Y4,'Utility Functions'!$AU$3:$AU$6,'Utility Functions'!$AV$3:$AV$6)","v":1},{"$f":"valuePL(Z4,'Utility Functions'!$AW$3:$AW$5,'Utility Functions'!$AX$3:$AX$5)","v":1},{"$f":"valuePL(AA4,'Utility Functions'!$AY$3:$AY$6,'Utility Functions'!$AZ$3:$AZ$6)","v":0.2},{"$f":"valuePL(AB4,'Utility Functions'!$BA$3:$BA$5,'Utility Functions'!$BB$3:$BB$5)","v":1},{"$f":"valuePL(AC4,'Utility Functions'!$BC$3:$BC$5,'Utility Functions'!$BD$3:$BD$5)","v":1},11.563541444302563,null,11.563541444302565,2.7385414443025637,0,0.875,0.75,7.2]
[4,{"$f":"valueE(B5,'Utility Functions'!$B$3,'Utility Functions'!$B$4,'Utility Functions'!$B$5,'Utility Functions'!$B$6)","v":0.1812695215714665},{"$f":"valueE(C5,'Utility Functions'!$D$3,'Utility Functions'!$D$4,'Utility Functions'!$D$5,'Utility Functions'!$D$6)","v":0.46475967153745396},{"$f":"valuePL(D5,'Utility Functions'!$E$3:$E$5,'Utility Functions'!$F$3:$F$5)","v":1},{"$f":"valuePL(E5,'Utility Functions'!$G$3:$G$5,'Utility Functions'!$H$3:$H$5)","v":0},{"$f":"valuePL(F5,'Utility Functions'!$I$3:$I$4,'Utility Functions'!$J$3:$J$5)","v":0},{"$f":"valueE(G5,'Utility Functions'!$L$3,'Utility Functions'!$L$4,'Utility Functions'!$L$5,'Utility Functions'!$L$6)","v":0},{"$f":"valueE(H5,'Utility Functions'!$N$3,'Utility Functions'!$N$4,'Utility Functions'!$N$5,'Utility Functions'!$N$6)","v":0},{"$f":"valuePL(I5,'Utility Functions'!$O$3:$O$6,'Utility Functions'!$P$3:$P$6)","v":0},{"$f":"valuePL(J5,'Utility Functions'!$Q$3:$Q$6,'Utility Functions'!$R$3:$R$6)","v":0},{"$f":"valuePL(K5,'Utility Functions'!$S$3:$S$7,'Utility Functions'!$T$3:$T$7)","v":0},{"$f":"valueE(L5,'Utility Functions'!$V$3,'Utility Functions'!$V$4,'Utility Functions'!$V$5,'Utility Functions'!$V$6)","v":0},{"$f":"valuePL(M5,'Utility Functions'!$W$3:$W$6,'Utility Functions'!$X$3:$X$6)","v":0},{"$f":"valueE(N5,'Utility Functions'!$Z$3,'Utility Functions'!$Z$4,'Utility Functions'!$Z$5,'Utility Functions'!$Z$6)","v":0.5},{"$f":"valuePL(O5,'Utility Functions'!$AA$3:$AA$5,'Utility Functions'!$AB$3:$AB$5)","v":0.25},{"$f":"valuePL(P5,'Utility Functions'!$AC$3:$AC$7,'Utility Functions'!$AD$3:$AD$7)","v":0},{"$f":"valuePL(Q5,'Utility Functions'!$AE$3:$AE$6,'Utility Functions'!$AF$3:$AF$6)","v":0.1},{"$f":"valuePL(R5,'Utility Functions'!$AG$3:$AG$6,'Utility Functions'!$AH$3:$AH$6)","v":1},{"$f":"valuePL(S5,'Utility Functions'!$AI$3:$AI$6,'Utility Functions'!$AJ$3:$AJ$6)","v":1},{"$f":"valuePL(T5,'Utility Functions'!$AK$3:$AK$8,'Utility Functions'!$AL$3:$AL$8)","v":0.8},{"$f":"valuePL(U5,'Utility Functions'!$AM$3:$AM$5,'Utility Functions'!$AN$3:$AN$5)","v":0},{"$f":"valuePL(V5,'Utility Functions'!$AO$3:$AO$5,'Utility Functions'!$AP$3:$AP$5)","v":0.5},{"$f":"valuePL(W5,'Utility Functions'!$AQ$3:$AQ$6,'Utility Functions'!$AR$3:$AR$6)","v":1},{"$f":"valuePL(X5,'Utility Functions'!$AS$3:$AS$6,'Utility Functions'!$AT$3:$AT$6)","v":1},{"$f":"valuePL(Y5,'Utility Functions'!$AU$3:$AU$6,'Utility Functions'!$AV$3:$AV$6)","v":0.2},{"$f":"valuePL(Z5,'Utility Functions'!$AW$3:$AW$5,'Utility Functions'!$AX$3:$AX$5)","v":0},{"$f":"valuePL(AA5,'Utility Functions'!$AY$3:$AY$6,'Utility Functions'!$AZ$3:$AZ$6)","v":0},{"$f":"valuePL(AB5,'Utility Functions'!$BA$3:$BA$5,'Utility Functions'!$BB$3:$BB$5)","v":1},{"$f":"valuePL(AC5,'Utility Functions'!$BC$3:$BC$5,'Utility Functions'!$BD$3:$BD$5)","v":0.25},9.2460291931089209,null,9.2460291931089209,1.6460291931089204,0,0.75,2.9000000000000004,3.95]
[5,{"$f":"valueE(B6,'Utility Functions'!$B$3,'Utility Functions'!$B$4,'Utility Functions'!$B$5,'Utility Functions'!$B$6)","v":0.55067187023002029},{"$f":"valueE(C6,'Utility Functions'!$D$3,'Utility Functions'!$D$4,'Utility Functions'!$D$5,'Utility Functions'!$D$6)","v":0.26656514581460788},{"$f":"valuePL(D6,'Utility Functions'!$E$3:$E$5,'Utility Functions'!$F$3:$F$5)","v":1},{"$f":"valuePL(E6,'Utility Functions'!$G$3:$G$5,'Utility Functions'!$H$3:$H$5)","v":0},{"$f":"valuePL(F6,'Utility Functions'!$I$3:$I$4,'Utility Functions'!$J$3:$J$5)","v":0},{"$f":"valueE(G6,'Utility Functions'!$L$3,'Utility Functions'!$L$4,'Utility Functions'!$L$5,'Utility Functions'!$L$6)","v":0},{"$f":"valueE(H6,'Utility Functions'!$N$3,'Utility Functions'!$N$4,'Utility Functions'!$N$5,'Utility Functions'!$N$6)","v":0},{"$f":"valuePL(I6,'Utility Functions'!$O$3:$O$6,'Utility Functions'!$P$3:$P$6)","v":0.50909090909090915},{"$f":"valuePL(J6,'Utility Functions'!$Q$3:$Q$6,'Utility Functions'!$R$3:$R$6)","v":0.04},{"$f":"valuePL(K6,'Utility Functions'!$S$3:$S$7,'Utility Functions'!$T$3:$T$7)","v":0},{"$f":"valueE(L6,'Utility Functions'!$V$3,'Utility Functions'!$V$4,'Utility Functions'!$V$5,'Utility Functions'!$V$6)","v":0},{"$f":"valuePL(M6,'Utility Functions'!$W$3:$W$6,'Utility Functions'!$X$3:$X$6)","v":0},{"$f":"valueE(N6,'Utility Functions'!$Z$3,'Utility Functions'!$Z$4,'Utility Functions'!$Z$5,'Utility Functions'!$Z$6)","v":0},{"$f":"valuePL(O6,'Utility Functions'!$AA$3:$AA$5,'Utility Functions'!$AB$3:$AB$5)","v":0},{"$f":"valuePL(P6,'Utility Functions'!$AC$3:$AC$7,'Utility Functions'!$AD$3:$AD$7)","v":0},{"$f":"valuePL(Q6,'Utility Functions'!$AE$3:$AE$6,'Utility Functions'!$AF$3:$AF$6)","v":0.1},{"$f":"valuePL(R6,'Utility Functions'!$AG$3:$AG$6,'Utility Functions'!$AH$3:$AH$6)","v":1},{"$f":"valuePL(S6,'Utility Functions'!$AI$3:$AI$6,'Utility Functions'!$AJ$3:$AJ$6)","v":1},{"$f":"valuePL(T6,'Utility Functions'!$AK$3:$AK$8,'Utility Functions'!$AL$3:$AL$8)","v":0.8},{"$f":"valuePL(U6,'Utility Functions'!$AM$3:$AM$5,'Utility Functions'!$AN$3:$AN$5)","v":0.25},{"$f":"valuePL(V6,'Utility Functions'!$AO$3:$AO$5,'Utility Functions'!$AP$3:$AP$5)","v":0},{"$f":"valuePL(W6,'Utility Functions'!$AQ$3:$AQ$6,'Utility Functions'!$AR$3:$AR$6)","v":1},{"$f":"valuePL(X6,'Utility Functions'!$AS$3:$AS$6,'Utility Functions'!$AT$3:$AT$6)","v":1},{"$f":"valuePL(Y6,'Utility Functions'!$AU$3:$AU$6,'Utility Functions'!$AV$3:$AV$6)","v":0.8},{"$f":"valuePL(Z6,'Utility Functions'!$AW$3:$AW$5,'Utility Functions'!$AX$3:$AX$5)","v":0},{"$f":"valuePL(AA6,'Utility Functions'!$AY$3:$AY$6,'Utility Functions'!$AZ$3:$AZ$6)","v":0},{"$f":"valuePL(AB6,'Utility Functions'!$BA$3:$BA$5,'Utility Functions'!$BB$3:$BB$5)","v":1},{"$f":"valuePL(AC6,'Utility Functions'!$BC$3:$BC$5,'Utility Functions'!$BD$3:$BD$5)","v":0.25},9.5663279251355373,null,9.5663279251355391,1.8172370160446283,0.54909090909090918,0,3.1500000000000004,4.05]
[6,{"$f":"valueE(B7,'Utility Functions'!$B$3,'Utility Functions'!$B$4,'Utility Functions'!$B$5,'Utility Functions'!$B$6)","v":0.86466602685702687},{"$f":"valueE(C7,'Utility Functions'!$D$3,'Utility Functions'!$D$4,'Utility Functions'!$D$5,'Utility Functions'!$D$6)","v":6.1811002813601471E-3},{"$f":"valuePL(D7,'Utility Functions'!$E$3:$E$5,'Utility Functions'!$F$3:$F$5)","v":1},{"$f":"valuePL(E7,'Utility Functions'!$G$3:$G$5,'Utility Functions'!$H$3:$H$5)","v":0},{"$f":"valuePL(F7,'Utility Functions'!$I$3:$I$4,'Utility Functions'!$J$3:$J$5)","v":0},{"$f":"valueE(G7,'Utility Functions'!$L$3,'Utility Functions'!$L$4,'Utility Functions'!$L$5,'Utility Functions'!$L$6)","v":0},{"$f":"valueE(H7,'Utility Functions'!$N$3,'Utility Functions'!$N$4,'Utility Functions'!$N$5,'Utility Functions'!$N$6)","v":0},{"$f":"valuePL(I7,'Utility Functions'!$O$3:$O$6,'Utility Functions'!$P$3:$P$6)","v":0.04},{"$f":"valuePL(J7,'Utility Functions'!$Q$3:$Q$6,'Utility Functions'!$R$3:$R$6)","v":0.04},{"$f":"valuePL(K7,'Utility Functions'!$S$3:$S$7,'Utility Functions'!$T$3:$T$7)","v":0},{"$f":"valueE(L7,'Utility Functions'!$V$3,'Utility Functions'!$V$4,'Utility Functions'!$V$5,'Utility Functions'!$V$6)","v":0},{"$f":"valuePL(M7,'Utility Functions'!$W$3:$W$6,'Utility Functions'!$X$3:$X$6)","v":0},{"$f":"valueE(N7,'Utility Functions'!$Z$3,'Utility Functions'!$Z$4,'Utility Functions'!$Z$5,'Utility Functions'!$Z$6)","v":0},{"$f":"valuePL(O7,'Utility Functions'!$AA$3:$AA$5,'Utility Functions'!$AB$3:$AB$5)","v":0},{"$f":"valuePL(P7,'Utility Functions'!$AC$3:$AC$7,'Utility Functions'!$AD$3:$AD$7)","v":0},{"$f":"valuePL(Q7,'Utility Functions'!$AE$3:$AE$6,'Utility Functions'!$AF$3:$AF$6)","v":0.1},{"$f":"valuePL(R7,'Utility Functions'!$AG$3:$AG$6,'Utility Functions'!$AH$3:$AH$6)","v":0},{"$f":"valuePL(S7,'Utility Functions'!$AI$3:$AI$6,'Utility Functions'!$AJ$3:$AJ$6)","v":1},{"$f":"valuePL(T7,'Utility Functions'!$AK$3:$AK$8,'Utility Functions'!$AL$3:$AL$8)","v":0.6},{"$f":"valuePL(U7,'Utility Functions'!$AM$3:$AM$5,'Utility Functions'!$AN$3:$AN$5)","v":0},{"$f":"valuePL(V7,'Utility Functions'!$AO$3:$AO$5,'Utility Functions'!$AP$3:$AP$5)","v":0},{"$f":"valuePL(W7,'Utility Functions'!$AQ$3:$AQ$6,'Utility Functions'!$AR$3:$AR$6)","v":0},{"$f":"valuePL(X7,'Utility Functions'!$AS$3:$AS$6,'Utility Functions'!$AT$3:$AT$6)","v":1},{"$f":"valuePL(Y7,'Utility Functions'!$AU$3:$AU$6,'Utility Functions'!$AV$3:$AV$6)","v":0},{"$f":"valuePL(Z7,'Utility Functions'!$AW$3:$AW$5,'Utility Functions'!$AX$3:$AX$5)","v":0},{"$f":"valuePL(AA7,'Utility Functions'!$AY$3:$AY$6,'Utility Functions'!$AZ$3:$AZ$6)","v":0},{"$f":"valuePL(AB7,'Utility Functions'!$BA$3:$BA$5,'Utility Functions'!$BB$3:$BB$5)","v":1},{"$f":"valuePL(AC7,'Utility Functions'!$BC$3:$BC$5,'Utility Functions'!$BD$3:$BD$5)","v":0.25},5.9008471271383875,null,5.9008471271383875,1.8708471271383869,0.08,0,1.7000000000000002,2.25]
[7,{"$f":"valueE(B8,'Utility Functions'!$B$3,'Utility Functions'!$B$4,'Utility Functions'!$B$5,'Utility Functions'!$B$6)","v":0.99997108261728973},{"$f":"valueE(C8,'Utility Functions'!$D$3,'Utility Functions'!$D$4,'Utility Functions'!$D$5,'Utility Functions'!$D$6)","v":0.84744836833951609},{"$f":"valuePL(D8,'Utility Functions'!$E$3:$E$5,'Utility Functions'!$F$3:$F$5)","v":0},{"$f":"valuePL(E8,'Utility Functions'!$G$3:$G$5,'Utility Functions'!$H$3:$H$5)","v":1},{"$f":"valuePL(F8,'Utility Functions'!$I$3:$I$4,'Utility Functions'!$J$3:$J$5)","v":0},{"$f":"valueE(G8,'Utility Functions'!$L$3,'Utility Functions'!$L$4,'Utility Functions'!$L$5,'Utility Functions'!$L$6)","v":0},{"$f":"valueE(H8,'Utility Functions'!$N$3,'Utility Functions'!$N$4,'Utility Functions'!$N$5,'Utility Functions'!$N$6)","v":0},{"$f":"valuePL(I8,'Utility Functions'!$O$3:$O$6,'Utility Functions'!$P$3:$P$6)","v":1},{"$f":"valuePL(J8,'Utility Functions'!$Q$3:$Q$6,'Utility Functions'!$R$3:$R$6)","v":0.67272727272727273},{"$f":"valuePL(K8,'Utility Functions'!$S$3:$S$7,'Utility Functions'!$T$3:$T$7)","v":1},{"$f":"valueE(L8,'Utility Functions'!$V$3,'Utility Functions'!$V$4,'Utility Functions'!$V$5,'Utility Functions'!$V$6)","v":1},{"$f":"valuePL(M8,'Utility Functions'!$W$3:$W$6,'Utility Functions'!$X$3:$X$6)","v":0.67272727272727273},{"$f":"valueE(N8,'Utility Functions'!$Z$3,'Utility Functions'!$Z$4,'Utility Functions'!$Z$5,'Utility Functions'!$Z$6)","v":1},{"$f":"valuePL(O8,'Utility Functions'!$AA$3:$AA$5,'Utility Functions'!$AB$3:$AB$5)","v":0.25},{"$f":"valuePL(P8,'Utility Functions'!$AC$3:$AC$7,'Utility Functions'!$AD$3:$AD$7)","v":0},{"$f":"valuePL(Q8,'Utility Functions'!$AE$3:$AE$6,'Utility Functions'!$AF$3:$AF$6)","v":0},{"$f":"valuePL(R8,'Utility Functions'!$AG$3:$AG$6,'Utility Functions'!$AH$3:$AH$6)","v":1},{"$f":"valuePL(S8,'Utility Functions'!$AI$3:$AI$6,'Utility Functions'!$AJ$3:$AJ$6)","v":1},{"$f":"valuePL(T8,'Utility Functions'!$AK$3:$AK$8,'Utility Functions'!$AL$3:$AL$8)","v":0},{"$f":"valuePL(U8,'Utility Functions'!$AM$3:$AM$5,'Utility Functions'!$AN$3:$AN$5)","v":0},{"$f":"valuePL(V8,'Utility Functions'!$AO$3:$AO$5,'Utility Functions'!$AP$3:$AP$5)","v":1},{"$f":"valuePL(W8,'Utility Functions'!$AQ$3:$AQ$6,'Utility Functions'!$AR$3:$AR$6)","v":0},{"$f":"valuePL(X8,'Utility Functions'!$AS$3:$AS$6,'Utility Functions'!$AT$3:$AT$6)","v":0.2},{"$f":"valuePL(Y8,'Utility Functions'!$AU$3:$AU$6,'Utility Functions'!$AV$3:$AV$6)","v":1},{"$f":"valuePL(Z8,'Utility Functions'!$AW$3:$AW$5,'Utility Functions'!$AX$3:$AX$5)","v":1},{"$f":"valuePL(AA8,'Utility Functions'!$AY$3:$AY$6,'Utility Functions'!$AZ$3:$AZ$6)","v":0.89999999999999991},{"$f":"valuePL(AB8,'Utility Functions'!$BA$3:$BA$5,'Utility Functions'!$BB$3:$BB$5)","v":0},{"$f":"valuePL(AC8,'Utility Functions'!$BC$3:$BC$5,'Utility Functions'!$BD$3:$BD$5)","v":1},15.54287399641135,null,15.54287399641135,2.8474194509568056,4.3454545454545457,1.25,2,5.0999999999999996]
[8,{"$f":"valueE(B9,'Utility Functions'!$B$3,'Utility Functions'!$B$4,'Utility Functions'!$B$5,'Utility Functions'!$B$6)","v":0.4511890475224023},{"$f":"valueE(C9,'Utility Functions'!$D$3,'Utility Functions'!$D$4,'Utility Functions'!$D$5,'Utility Functions'!$D$6)","v":0.84744836833951609},{"$f":"valuePL(D9,'Utility Functions'!$E$3:$E$5,'Utility Functions'!$F$3:$F$5)","v":1},{"$f":"valuePL(E9,'Utility Functions'!$G$3:$G$5,'Utility Functions'!$H$3:$H$5)","v":0.5},{"$f":"valuePL(F9,'Utility Functions'!$I$3:$I$4,'Utility Functions'!$J$3:$J$5)","v":1},{"$f":"valueE(G9,'Utility Functions'!$L$3,'Utility Functions'!$L$4,'Utility Functions'!$L$5,'Utility Functions'!$L$6)","v":0},{"$f":"valueE(H9,'Utility Functions'!$N$3,'Utility Functions'!$N$4,'Utility Functions'!$N$5,'Utility Functions'!$N$6)","v":0},{"$f":"valuePL(I9,'Utility Functions'!$O$3:$O$6,'Utility Functions'!$P$3:$P$6)","v":5.6000000000000008E-2},{"$f":"valuePL(J9,'Utility Functions'!$Q$3:$Q$6,'Utility Functions'!$R$3:$R$6)","v":0.83636363636363631},{"$f":"valuePL(K9,'Utility Functions'!$S$3:$S$7,'Utility Functions'!$T$3:$T$7)","v":0},{"$f":"valueE(L9,'Utility Functions'!$V$3,'Utility Functions'!$V$4,'Utility Functions'!$V$5,'Utility Functions'!$V$6)","v":1},{"$f":"valuePL(M9,'Utility Functions'!$W$3:$W$6,'Utility Functions'!$X$3:$X$6)","v":0.83636363636363631},{"$f":"valueE(N9,'Utility Functions'!$Z$3,'Utility Functions'!$Z$4,'Utility Functions'!$Z$5,'Utility Functions'!$Z$6)","v":0},{"$f":"valuePL(O9,'Utility Functions'!$AA$3:$AA$5,'Utility Functions'!$AB$3:$AB$5)","v":0},{"$f":"valuePL(P9,'Utility Functions'!$AC$3:$AC$7,'Utility Functions'!$AD$3:$AD$7)","v":0},{"$f":"valuePL(Q9,'Utility Functions'!$AE$3:$AE$6,'Utility Functions'!$AF$3:$AF$6)","v":1},{"$f":"valuePL(R9,'Utility Functions'!$AG$3:$AG$6,'Utility Functions'!$AH$3:$AH$6)","v":0.2},{"$f":"valuePL(S9,'Utility Functions'!$AI$3:$AI$6,'Utility Functions'!$AJ$3:$AJ$6)","v":1},{"$f":"valuePL(T9,'Utility Functions'!$AK$3:$AK$8,'Utility Functions'!$AL$3:$AL$8)","v":0},{"$f":"valuePL(U9,'Utility Functions'!$AM$3:$AM$5,'Utility Functions'!$AN$3:$AN$5)","v":0},{"$f":"valuePL(V9,'Utility Functions'!$AO$3:$AO$5,'Utility Functions'!$AP$3:$AP$5)","v":1},{"$f":"valuePL(W9,'Utility Functions'!$AQ$3:$AQ$6,'Utility Functions'!$AR$3:$AR$6)","v":1},{"$f":"valuePL(X9,'Utility Functions'!$AS$3:$AS$6,'Utility Functions'!$AT$3:$AT$6)","v":1},{"$f":"valuePL(Y9,'Utility Functions'!$AU$3:$AU$6,'Utility Functions'!$AV$3:$AV$6)","v":1},{"$f":"valuePL(Z9,'Utility Functions'!$AW$3:$AW$5,'Utility Functions'!$AX$3:$AX$5)","v":1},{"$f":"valuePL(AA9,'Utility Functions'!$AY$3:$AY$6,'Utility Functions'!$AZ$3:$AZ$6)","v":0},{"$f":"valuePL(AB9,'Utility Functions'!$BA$3:$BA$5,'Utility Functions'!$BB$3:$BB$5)","v":0.25},{"$f":"valuePL(AC9,'Utility Functions'!$BC$3:$BC$5,'Utility Functions'!$BD$3:$BD$5)","v":0.25},14.227364688589191,null,14.227364688589191,3.7986374158619185,2.7287272727272729,0,2.2000000000000002,5.5]
[9,{"$f":"valueE(B10,'Utility Functions'!$B$3,'Utility Functions'!$B$4,'Utility Functions'!$B$5,'Utility Functions'!$B$6)","v":0.83470237647280454},{"$f":"valueE(C10,'Utility Functions'!$D$3,'Utility Functions'!$D$4,'Utility Functions'!$D$5,'Utility Functions'!$D$6)","v":0.78989979019422951},{"$f":"valuePL(D10,'Utility Functions'!$E$3:$E$5,'Utility Functions'!$F$3:$F$5)","v":1},{"$f":"valuePL(E10,'Utility Functions'!$G$3:$G$5,'Utility Functions'!$H$3:$H$5)","v":0.5},{"$f":"valuePL(F10,'Utility Functions'!$I$3:$I$4,'Utility Functions'!$J$3:$J$5)","v":0},{"$f":"valueE(G10,'Utility Functions'!$L$3,'Utility Functions'!$L$4,'Utility Functions'!$L$5,'Utility Functions'!$L$6)","v":0.37634408602150538},{"$f":"valueE(H10,'Utility Functions'!$N$3,'Utility Functions'!$N$4,'Utility Functions'!$N$5,'Utility Functions'!$N$6)","v":0.13282732447817835},{"$f":"valuePL(I10,'Utility Functions'!$O$3:$O$6,'Utility Functions'!$P$3:$P$6)","v":0},{"$f":"valuePL(J10,'Utility Functions'!$Q$3:$Q$6,'Utility Functions'!$R$3:$R$6)","v":0},{"$f":"valuePL(K10,'Utility Functions'!$S$3:$S$7,'Utility Functions'!$T$3:$T$7)","v":0},{"$f":"valueE(L10,'Utility Functions'!$V$3,'Utility Functions'!$V$4,'Utility Functions'!$V$5,'Utility Functions'!$V$6)","v":0},{"$f":"valuePL(M10,'Utility Functions'!$W$3:$W$6,'Utility Functions'!$X$3:$X$6)","v":0},{"$f":"valueE(N10,'Utility Functions'!$Z$3,'Utility Functions'!$Z$4,'Utility Functions'!$Z$5,'Utility Functions'!$Z$6)","v":0},{"$f":"valuePL(O10,'Utility Functions'!$AA$3:$AA$5,'Utility Functions'!$AB$3:$AB$5)","v":0},{"$f":"valuePL(P10,'Utility Functions'!$AC$3:$AC$7,'Utility Functions'!$AD$3:$AD$7)","v":0.75},{"$f":"valuePL(Q10,'Utility Functions'!$AE$3:$AE$6,'Utility Functions'!$AF$3:$AF$6)","v":0},{"$f":"valuePL(R10,'Utility Functions'!$AG$3:$AG$6,'Utility Functions'!$AH$3:$AH$6)","v":1},{"$f":"valuePL(S10,'Utility Functions'!$AI$3:$AI$6,'Utility Functions'!$AJ$3:$AJ$6)","v":0.66},{"$f":"valuePL(T10,'Utility Functions'!$AK$3:$AK$8,'Utility Functions'!$AL$3:$AL$8)","v":0.2},{"$f":"valuePL(U10,'Utility Functions'!$AM$3:$AM$5,'Utility Functions'!$AN$3:$AN$5)","v":0},{"$f":"valuePL(V10,'Utility Functions'!$AO$3:$AO$5,'Utility Functions'!$AP$3:$AP$5)","v":1},{"$f":"valuePL(W10,'Utility Functions'!$AQ$3:$AQ$6,'Utility Functions'!$AR$3:$AR$6)","v":1},{"$f":"valuePL(X10,'Utility Functions'!$AS$3:$AS$6,'Utility Functions'!$AT$3:$AT$6)","v":1},{"$f":"valuePL(Y10,'Utility Functions'!$AU$3:$AU$6,'Utility Functions'!$AV$3:$AV$6)","v":0.2},{"$f":"valuePL(Z10,'Utility Functions'!$AW$3:$AW$5,'Utility Functions'!$AX$3:$AX$5)","v":1},{"$f":"valuePL(AA10,'Utility Functions'!$AY$3:$AY$6,'Utility Functions'!$AZ$3:$AZ$6)","v":0.2},{"$f":"valuePL(AB10,'Utility Functions'!$BA$3:$BA$5,'Utility Functions'!$BB$3:$BB$5)","v":0.25},{"$f":"valuePL(AC10,'Utility Functions'!$BC$3:$BC$5,'Utility Functions'!$BD$3:$BD$5)","v":1},11.893773577166716,null,11.893773577166719,3.1246021666670343,0.50917141049968373,0,2.6100000000000003,5.65]
[10,{"$f":"valueE(B11,'Utility Functions'!$B$3,'Utility Functions'!$B$4,'Utility Functions'!$B$5,'Utility Functions'!$B$6)","v":0},{"$f":"valueE(C11,'Utility Functions'!$D$3,'Utility Functions'!$D$4,'Utility Functions'!$D$5,'Utility Functions'!$D$6)","v":0},{"$f":"valuePL(D11,'Utility Functions'!$E$3:$E$5,'Utility Functions'!$F$3:$F$5)","v":0},{"$f":"valuePL(E11,'Utility Functions'!$G$3:$G$5,'Utility Functions'!$H$3:$H$5)","v":0},{"$f":"valuePL(F11,'Utility Functions'!$I$3:$I$4,'Utility Functions'!$J$3:$J$5)","v":0},{"$f":"valueE(G11,'Utility Functions'!$L$3,'Utility Functions'!$L$4,'Utility Functions'!$L$5,'Utility Functions'!$L$6)","v":0},{"$f":"valueE(H11,'Utility Functions'!$N$3,'Utility Functions'!$N$4,'Utility Functions'!$N$5,'Utility Functions'!$N$6)","v":0},{"$f":"valuePL(I11,'Utility Functions'!$O$3:$O$6,'Utility Functions'!$P$3:$P$6)","v":0},{"$f":"valuePL(J11,'Utility Functions'!$Q$3:$Q$6,'Utility Functions'!$R$3:$R$6)","v":0},{"$f":"valuePL(K11,'Utility Functions'!$S$3:$S$7,'Utility Functions'!$T$3:$T$7)","v":0},{"$f":"valueE(L11,'Utility Functions'!$V$3,'Utility Functions'!$V$4,'Utility Functions'!$V$5,'Utility Functions'!$V$6)","v":0},{"$f":"valuePL(M11,'Utility Functions'!$W$3:$W$6,'Utility Functions'!$X$3:$X$6)","v":0},{"$f":"valueE(N11,'Utility Functions'!$Z$3,'Utility Functions'!$Z$4,'Utility Functions'!$Z$5,'Utility Functions'!$Z$6)","v":0.75},{"$f":"valuePL(O11,'Utility Functions'!$AA$3:$AA$5,'Utility Functions'!$AB$3:$AB$5)","v":1},{"$f":"valuePL(P11,'Utility Functions'!$AC$3:$AC$7,'Utility Functions'!$AD$3:$AD$7)","v":0.25},{"$f":"valuePL(Q11,'Utility Functions'!$AE$3:$AE$6,'Utility Functions'!$AF$3:$AF$6)","v":0.5},{"$f":"valuePL(R11,'Utility Functions'!$AG$3:$AG$6,'Utility Functions'!$AH$3:$AH$6)","v":1},{"$f":"valuePL(S11,'Utility Functions'!$AI$3:$AI$6,'Utility Functions'!$AJ$3:$AJ$6)","v":0.66},{"$f":"valuePL(T11,'Utility Functions'!$AK$3:$AK$8,'Utility Functions'!$AL$3:$AL$8)","v":0.4},{"$f":"valuePL(U11,'Utility Functions'!$AM$3:$AM$5,'Utility Functions'!$AN$3:$AN$5)","v":0},{"$f":"valuePL(V11,'Utility Functions'!$AO$3:$AO$5,'Utility Functions'!$AP$3:$AP$5)","v":0},{"$f":"valuePL(W11,'Utility Functions'!$AQ$3:$AQ$6,'Utility Functions'!$AR$3:$AR$6)","v":0.75},{"$f":"valuePL(X11,'Utility Functions'!$AS$3:$AS$6,'Utility Functions'!$AT$3:$AT$6)","v":1},{"$f":"valuePL(Y11,'Utility Functions'!$AU$3:$AU$6,'Utility Functions'!$AV$3:$AV$6)","v":1},{"$f":"valuePL(Z11,'Utility Functions'!$AW$3:$AW$5,'Utility Functions'!$AX$3:$AX$5)","v":0.5},{"$f":"valuePL(AA11,'Utility Functions'!$AY$3:$AY$6,'Utility Functions'!$AZ$3:$AZ$6)","v":0.2},{"$f":"valuePL(AB11,'Utility Functions'!$BA$3:$BA$5,'Utility Functions'!$BB$3:$BB$5)","v":0},{"$f":"valuePL(AC11,'Utility Functions'!$BC$3:$BC$5,'Utility Functions'!$BD$3:$BD$5)","v":1},9.01,null,9.0100000000000016,0,0,1.75,2.81,4.45]
[11,{"$f":"valueE(B12,'Utility Functions'!$B$3,'Utility Functions'!$B$4,'Utility Functions'!$B$5,'Utility Functions'!$B$6)","v":0},{"$f":"valueE(C12,'Utility Functions'!$D$3,'Utility Functions'!$D$4,'Utility Functions'!$D$5,'Utility Functions'!$D$6)","v":0},{"$f":"valuePL(D12,'Utility Functions'!$E$3:$E$5,'Utility Functions'!$F$3:$F$5)","v":0},{"$f":"valuePL(E12,'Utility Functions'!$G$3:$G$5,'Utility Functions'!$H$3:$H$5)","v":0},{"$f":"valuePL(F12,'Utility Functions'!$I$3:$I$4,'Utility Functions'!$J$3:$J$5)","v":0},{"$f":"valueE(G12,'Utility Functions'!$L$3,'Utility Functions'!$L$4,'Utility Functions'!$L$5,'Utility Functions'!$L$6)","v":3.2258064516129031E-2},{"$f":"valueE(H12,'Utility Functions'!$N$3,'Utility Functions'!$N$4,'Utility Functions'!$N$5,'Utility Functions'!$N$6)","v":9.6774193548387094E-2},{"$f":"valuePL(I12,'Utility Functions'!$O$3:$O$6,'Utility Functions'!$P$3:$P$6)","v":0.54181818181818187},{"$f":"valuePL(J12,'Utility Functions'!$Q$3:$Q$6,'Utility Functions'!$R$3:$R$6)","v":0.91818181818181821},{"$f":"valuePL(K12,'Utility Functions'!$S$3:$S$7,'Utility Functions'!$T$3:$T$7)","v":0.54181818181818187},{"$f":"valueE(L12,'Utility Functions'!$V$3,'Utility Functions'!$V$4,'Utility Functions'!$V$5,'Utility Functions'!$V$6)","v":1},{"$f":"valuePL(M12,'Utility Functions'!$W$3:$W$6,'Utility Functions'!$X$3:$X$6)","v":0.91818181818181821},{"$f":"valueE(N12,'Utility Functions'!$Z$3,'Utility Functions'!$Z$4,'Utility Functions'!$Z$5,'Utility Functions'!$Z$6)","v":0.375},{"$f":"valuePL(O12,'Utility Functions'!$AA$3:$AA$5,'Utility Functions'!$AB$3:$AB$5)","v":0.25},{"$f":"valuePL(P12,'Utility Functions'!$AC$3:$AC$7,'Utility Functions'!$AD$3:$AD$7)","v":0.25},{"$f":"valuePL(Q12,'Utility Functions'!$AE$3:$AE$6,'Utility Functions'!$AF$3:$AF$6)","v":0},{"$f":"valuePL(R12,'Utility Functions'!$AG$3:$AG$6,'Utility Functions'!$AH$3:$AH$6)","v":1},{"$f":"valuePL(S12,'Utility Functions'!$AI$3:$AI$6,'Utility Functions'!$AJ$3:$AJ$6)","v":1},{"$f":"valuePL(T12,'Utility Functions'!$AK$3:$AK$8,'Utility Functions'!$AL$3:$AL$8)","v":0.4},{"$f":"valuePL(U12,'Utility Functions'!$AM$3:$AM$5,'Utility Functions'!$AN$3:$AN$5)","v":1},{"$f":"valuePL(V12,'Utility Functions'!$AO$3:$AO$5,'Utility Functions'!$AP$3:$AP$5)","v":1},{"$f":"valuePL(W12,'Utility Functions'!$AQ$3:$AQ$6,'Utility Functions'!$AR$3:$AR$6)","v":0.2},{"$f":"valuePL(X12,'Utility Functions'!$AS$3:$AS$6,'Utility Functions'!$AT$3:$AT$6)","v":1},{"$f":"valuePL(Y12,'Utility Functions'!$AU$3:$AU$6,'Utility Functions'!$AV$3:$AV$6)","v":1},{"$f":"valuePL(Z12,'Utility Functions'!$AW$3:$AW$5,'Utility Functions'!$AX$3:$AX$5)","v":0.5},{"$f":"valuePL(AA12,'Utility Functions'!$AY$3:$AY$6,'Utility Functions'!$AZ$3:$AZ$6)","v":0.89999999999999991},{"$f":"valuePL(AB12,'Utility Functions'!$BA$3:$BA$5,'Utility Functions'!$BB$3:$BB$5)","v":0},{"$f":"valuePL(AC12,'Utility Functions'!$BC$3:$BC$5,'Utility Functions'!$BD$3:$BD$5)","v":0.25},13.174032258064516,null,13.174032258064516,0,4.0490322580645159,0.625,3.65,4.8499999999999996]
[12,{"$f":"valueE(B13,'Utility Functions'!$B$3,'Utility Functions'!$B$4,'Utility Functions'!$B$5,'Utility Functions'!$B$6)","v":0.32968045347775865},{"$f":"valueE(C13,'Utility Functions'!$D$3,'Utility Functions'!$D$4,'Utility Functions'!$D$5,'Utility Functions'!$D$6)","v":0.78989979019422951},{"$f":"valuePL(D13,'Utility Functions'!$E$3:$E$5,'Utility Functions'!$F$3:$F$5)","v":1},{"$f":"valuePL(E13,'Utility Functions'!$G$3:$G$5,'Utility Functions'!$H$3:$H$5)","v":0.5},{"$f":"valuePL(F13,'Utility Functions'!$I$3:$I$4,'Utility Functions'!$J$3:$J$5)","v":0},{"$f":"valueE(G13,'Utility Functions'!$L$3,'Utility Functions'!$L$4,'Utility Functions'!$L$5,'Utility Functions'!$L$6)","v":0},{"$f":"valueE(H13,'Utility Functions'!$N$3,'Utility Functions'!$N$4,'Utility Functions'!$N$5,'Utility Functions'!$N$6)","v":0},{"$f":"valuePL(I13,'Utility Functions'!$O$3:$O$6,'Utility Functions'!$P$3:$P$6)","v":0},{"$f":"valuePL(J13,'Utility Functions'!$Q$3:$Q$6,'Utility Functions'!$R$3:$R$6)","v":0},{"$f":"valuePL(K13,'Utility Functions'!$S$3:$S$7,'Utility Functions'!$T$3:$T$7)","v":0},{"$f":"valueE(L13,'Utility Functions'!$V$3,'Utility Functions'!$V$4,'Utility Functions'!$V$5,'Utility Functions'!$V$6)","v":0},{"$f":"valuePL(M13,'Utility Functions'!$W$3:$W$6,'Utility Functions'!$X$3:$X$6)","v":0},{"$f":"valueE(N13,'Utility Functions'!$Z$3,'Utility Functions'!$Z$4,'Utility Functions'!$Z$5,'Utility Functions'!$Z$6)","v":0},{"$f":"valuePL(O13,'Utility Functions'!$AA$3:$AA$5,'Utility Functions'!$AB$3:$AB$5)","v":0},{"$f":"valuePL(P13,'Utility Functions'!$AC$3:$AC$7,'Utility Functions'!$AD$3:$AD$7)","v":0},{"$f":"valuePL(Q13,'Utility Functions'!$AE$3:$AE$6,'Utility Functions'!$AF$3:$AF$6)","v":0.1},{"$f":"valuePL(R13,'Utility Functions'!$AG$3:$AG$6,'Utility Functions'!$AH$3:$AH$6)","v":1},{"$f":"valuePL(S13,'Utility Functions'!$AI$3:$AI$6,'Utility Functions'!$AJ$3:$AJ$6)","v":1},{"$f":"valuePL(T13,'Utility Functions'!$AK$3:$AK$8,'Utility Functions'!$AL$3:$AL$8)","v":0.6},{"$f":"valuePL(U13,'Utility Functions'!$AM$3:$AM$5,'Utility Functions'!$AN$3:$AN$5)","v":0},{"$f":"valuePL(V13,'Utility Functions'!$AO$3:$AO$5,'Utility Functions'!$AP$3:$AP$5)","v":0.5},{"$f":"valuePL(W13,'Utility Functions'!$AQ$3:$AQ$6,'Utility Functions'!$AR$3:$AR$6)","v":0.2},{"$f":"valuePL(X13,'Utility Functions'!$AS$3:$AS$6,'Utility Functions'!$AT$3:$AT$6)","v":1},{"$f":"valuePL(Y13,'Utility Functions'!$AU$3:$AU$6,'Utility Functions'!$AV$3:$AV$6)","v":0.2},{"$f":"valuePL(Z13,'Utility Functions'!$AW$3:$AW$5,'Utility Functions'!$AX$3:$AX$5)","v":1},{"$f":"valuePL(AA13,'Utility Functions'!$AY$3:$AY$6,'Utility Functions'!$AZ$3:$AZ$6)","v":0.2},{"$f":"valuePL(AB13,'Utility Functions'!$BA$3:$BA$5,'Utility Functions'!$BB$3:$BB$5)","v":1},{"$f":"valuePL(AC13,'Utility Functions'!$BC$3:$BC$5,'Utility Functions'!$BD$3:$BD$5)","v":0},9.4195802436719873,null,9.4195802436719873,2.6195802436719884,0,0,2.7,4.0999999999999996]
[13,{"$f":"valueE(B14,'Utility Functions'!$B$3,'Utility Functions'!$B$4,'Utility Functions'!$B$5,'Utility Functions'!$B$6)","v":0},{"$f":"valueE(C14,'Utility Functions'!$D$3,'Utility Functions'!$D$4,'Utility Functions'!$D$5,'Utility Functions'!$D$6)","v":0},{"$f":"valuePL(D14,'Utility Functions'!$E$3:$E$5,'Utility Functions'!$F$3:$F$5)","v":0},{"$f":"valuePL(E14,'Utility Functions'!$G$3:$G$5,'Utility Functions'!$H$3:$H$5)","v":0},{"$f":"valuePL(F14,'Utility Functions'!$I$3:$I$4,'Utility Functions'!$J$3:$J$5)","v":0},{"$f":"valueE(G14,'Utility Functions'!$L$3,'Utility Functions'!$L$4,'Utility Functions'!$L$5,'Utility Functions'!$L$6)","v":0},{"$f":"valueE(H14,'Utility Functions'!$N$3,'Utility Functions'!$N$4,'Utility Functions'!$N$5,'Utility Functions'!$N$6)","v":1.1385199240986717E-2},{"$f":"valuePL(I14,'Utility Functions'!$O$3:$O$6,'Utility Functions'!$P$3:$P$6)","v":0.3290909090909091},{"$f":"valuePL(J14,'Utility Functions'!$Q$3:$Q$6,'Utility Functions'!$R$3:$R$6)","v":0.04},{"$f":"valuePL(K14,'Utility Functions'!$S$3:$S$7,'Utility Functions'!$T$3:$T$7)","v":0.3290909090909091},{"$f":"valueE(L14,'Utility Functions'!$V$3,'Utility Functions'!$V$4,'Utility Functions'!$V$5,'Utility Functions'!$V$6)","v":1},{"$f":"valuePL(M14,'Utility Functions'!$W$3:$W$6,'Utility Functions'!$X$3:$X$6)","v":0.04},{"$f":"valueE(N14,'Utility Functions'!$Z$3,'Utility Functions'!$Z$4,'Utility Functions'!$Z$5,'Utility Functions'!$Z$6)","v":0.875},{"$f":"valuePL(O14,'Utility Functions'!$AA$3:$AA$5,'Utility Functions'!$AB$3:$AB$5)","v":0.25},{"$f":"valuePL(P14,'Utility Functions'!$AC$3:$AC$7,'Utility Functions'!$AD$3:$AD$7)","v":0.25},{"$f":"valuePL(Q14,'Utility Functions'!$AE$3:$AE$6,'Utility Functions'!$AF$3:$AF$6)","v":0},{"$f":"valuePL(R14,'Utility Functions'!$AG$3:$AG$6,'Utility Functions'!$AH$3:$AH$6)","v":1},{"$f":"valuePL(S14,'Utility Functions'!$AI$3:$AI$6,'Utility Functions'!$AJ$3:$AJ$6)","v":1},{"$f":"valuePL(T14,'Utility Functions'!$AK$3:$AK$8,'Utility Functions'!$AL$3:$AL$8)","v":0},{"$f":"valuePL(U14,'Utility Functions'!$AM$3:$AM$5,'Utility Functions'!$AN$3:$AN$5)","v":0},{"$f":"valuePL(V14,'Utility Functions'!$AO$3:$AO$5,'Utility Functions'!$AP$3:$AP$5)","v":0.5},{"$f":"valuePL(W14,'Utility Functions'!$AQ$3:$AQ$6,'Utility Functions'!$AR$3:$AR$6)","v":0},{"$f":"valuePL(X14,'Utility Functions'!$AS$3:$AS$6,'Utility Functions'!$AT$3:$AT$6)","v":0.2},{"$f":"valuePL(Y14,'Utility Functions'!$AU$3:$AU$6,'Utility Functions'!$AV$3:$AV$6)","v":0},{"$f":"valuePL(Z14,'Utility Functions'!$AW$3:$AW$5,'Utility Functions'!$AX$3:$AX$5)","v":1},{"$f":"valuePL(AA14,'Utility Functions'!$AY$3:$AY$6,'Utility Functions'!$AZ$3:$AZ$6)","v":0.2},{"$f":"valuePL(AB14,'Utility Functions'!$BA$3:$BA$5,'Utility Functions'!$BB$3:$BB$5)","v":0.25},{"$f":"valuePL(AC14,'Utility Functions'!$BC$3:$BC$5,'Utility Functions'!$BD$3:$BD$5)","v":0.25},7.5245670174228056,null,7.5245670174228056,0,1.7495670174228048,1.125,2.25,2.4]
[14,{"$f":"valueE(B15,'Utility Functions'!$B$3,'Utility Functions'!$B$4,'Utility Functions'!$B$5,'Utility Functions'!$B$6)","v":0.69880684688087746},{"$f":"valueE(C15,'Utility Functions'!$D$3,'Utility Functions'!$D$4,'Utility Functions'!$D$5,'Utility Functions'!$D$6)","v":0.78989979019422951},{"$f":"valuePL(D15,'Utility Functions'!$E$3:$E$5,'Utility Functions'!$F$3:$F$5)","v":0.5},{"$f":"valuePL(E15,'Utility Functions'!$G$3:$G$5,'Utility Functions'!$H$3:$H$5)","v":0.5},{"$f":"valuePL(F15,'Utility Functions'!$I$3:$I$4,'Utility Functions'!$J$3:$J$5)","v":0},{"$f":"valueE(G15,'Utility Functions'!$L$3,'Utility Functions'!$L$4,'Utility Functions'!$L$5,'Utility Functions'!$L$6)","v":0},{"$f":"valueE(H15,'Utility Functions'!$N$3,'Utility Functions'!$N$4,'Utility Functions'!$N$5,'Utility Functions'!$N$6)","v":0},{"$f":"valuePL(I15,'Utility Functions'!$O$3:$O$6,'Utility Functions'!$P$3:$P$6)","v":0},{"$f":"valuePL(J15,'Utility Functions'!$Q$3:$Q$6,'Utility Functions'!$R$3:$R$6)","v":0},{"$f":"valuePL(K15,'Utility Functions'!$S$3:$S$7,'Utility Functions'!$T$3:$T$7)","v":0},{"$f":"valueE(L15,'Utility Functions'!$V$3,'Utility Functions'!$V$4,'Utility Functions'!$V$5,'Utility Functions'!$V$6)","v":0},{"$f":"valuePL(M15,'Utility Functions'!$W$3:$W$6,'Utility Functions'!$X$3:$X$6)","v":0},{"$f":"valueE(N15,'Utility Functions'!$Z$3,'Utility Functions'!$Z$4,'Utility Functions'!$Z$5,'Utility Functions'!$Z$6)","v":0.75},{"$f":"valuePL(O15,'Utility Functions'!$AA$3:$AA$5,'Utility Functions'!$AB$3:$AB$5)","v":0.25},{"$f":"valuePL(P15,'Utility Functions'!$AC$3:$AC$7,'Utility Functions'!$AD$3:$AD$7)","v":0.25},{"$f":"valuePL(Q15,'Utility Functions'!$AE$3:$AE$6,'Utility Functions'!$AF$3:$AF$6)","v":0},{"$f":"valuePL(R15,'Utility Functions'!$AG$3:$AG$6,'Utility Functions'!$AH$3:$AH$6)","v":1},{"$f":"valuePL(S15,'Utility Functions'!$AI$3:$AI$6,'Utility Functions'!$AJ$3:$AJ$6)","v":1},{"$f":"valuePL(T15,'Utility Functions'!$AK$3:$AK$8,'Utility Functions'!$AL$3:$AL$8)","v":0},{"$f":"valuePL(U15,'Utility Functions'!$AM$3:$AM$5,'Utility Functions'!$AN$3:$AN$5)","v":0},{"$f":"valuePL(V15,'Utility Functions'!$AO$3:$AO$5,'Utility Functions'!$AP$3:$AP$5)","v":0.5},{"$f":"valuePL(W15,'Utility Functions'!$AQ$3:$AQ$6,'Utility Functions'!$AR$3:$AR$6)","v":0.2},{"$f":"valuePL(X15,'Utility Functions'!$AS$3:$AS$6,'Utility Functions'!$AT$3:$AT$6)","v":1},{"$f":"valuePL(Y15,'Utility Functions'!$AU$3:$AU$6,'Utility Functions'!$AV$3:$AV$6)","v":1},{"$f":"valuePL(Z15,'Utility Functions'!$AW$3:$AW$5,'Utility Functions'!$AX$3:$AX$5)","v":0.5},{"$f":"valuePL(AA15,'Utility Functions'!$AY$3:$AY$6,'Utility Functions'!$AZ$3:$AZ$6)","v":0.89999999999999991},{"$f":"valuePL(AB15,'Utility Functions'!$BA$3:$BA$5,'Utility Functions'!$BB$3:$BB$5)","v":0.25},{"$f":"valuePL(AC15,'Utility Functions'!$BC$3:$BC$5,'Utility Functions'!$BD$3:$BD$5)","v":0.25},10.338706637075108,null,10.338706637075106,2.488706637075107,0,1,2.25,4.5999999999999996]
[15,{"$f":"valueE(B16,'Utility Functions'!$B$3,'Utility Functions'!$B$4,'Utility Functions'!$B$5,'Utility Functions'!$B$6)","v":0.98994966417177144},{"$f":"valueE(C16,'Utility Functions'!$D$3,'Utility Functions'!$D$4,'Utility Functions'!$D$5,'Utility Functions'!$D$6)","v":0.71352759724260828},{"$f":"valuePL(D16,'Utility Functions'!$E$3:$E$5,'Utility Functions'!$F$3:$F$5)","v":1},{"$f":"valuePL(E16,'Utility Functions'!$G$3:$G$5,'Utility Functions'!$H$3:$H$5)","v":0.5},{"$f":"valuePL(F16,'Utility Functions'!$I$3:$I$4,'Utility Functions'!$J$3:$J$5)","v":1},{"$f":"valueE(G16,'Utility Functions'!$L$3,'Utility Functions'!$L$4,'Utility Functions'!$L$5,'Utility Functions'!$L$6)","v":0},{"$f":"valueE(H16,'Utility Functions'!$N$3,'Utility Functions'!$N$4,'Utility Functions'!$N$5,'Utility Functions'!$N$6)","v":0},{"$f":"valuePL(I16,'Utility Functions'!$O$3:$O$6,'Utility Functions'!$P$3:$P$6)","v":9.2000000000000012E-2},{"$f":"valuePL(J16,'Utility Functions'!$Q$3:$Q$6,'Utility Functions'!$R$3:$R$6)","v":6.0000000000000012E-2},{"$f":"valuePL(K16,'Utility Functions'!$S$3:$S$7,'Utility Functions'!$T$3:$T$7)","v":6.0000000000000012E-2},{"$f":"valueE(L16,'Utility Functions'!$V$3,'Utility Functions'!$V$4,'Utility Functions'!$V$5,'Utility Functions'!$V$6)","v":1},{"$f":"valuePL(M16,'Utility Functions'!$W$3:$W$6,'Utility Functions'!$X$3:$X$6)","v":6.0000000000000012E-2},{"$f":"valueE(N16,'Utility Functions'!$Z$3,'Utility Functions'!$Z$4,'Utility Functions'!$Z$5,'Utility Functions'!$Z$6)","v":0.125},{"$f":"valuePL(O16,'Utility Functions'!$AA$3:$AA$5,'Utility Functions'!$AB$3:$AB$5)","v":1},{"$f":"valuePL(P16,'Utility Functions'!$AC$3:$AC$7,'Utility Functions'!$AD$3:$AD$7)","v":0.5},{"$f":"valuePL(Q16,'Utility Functions'!$AE$3:$AE$6,'Utility Functions'!$AF$3:$AF$6)","v":0},{"$f":"valuePL(R16,'Utility Functions'!$AG$3:$AG$6,'Utility Functions'!$AH$3:$AH$6)","v":0.8},{"$f":"valuePL(S16,'Utility Functions'!$AI$3:$AI$6,'Utility Functions'!$AJ$3:$AJ$6)","v":1},{"$f":"valuePL(T16,'Utility Functions'!$AK$3:$AK$8,'Utility Functions'!$AL$3:$AL$8)","v":0.6},{"$f":"valuePL(U16,'Utility Functions'!$AM$3:$AM$5,'Utility Functions'!$AN$3:$AN$5)","v":1},{"$f":"valuePL(V16,'Utility Functions'!$AO$3:$AO$5,'Utility Functions'!$AP$3:$AP$5)","v":0},{"$f":"valuePL(W16,'Utility Functions'!$AQ$3:$AQ$6,'Utility Functions'!$AR$3:$AR$6)","v":1},{"$f":"valuePL(X16,'Utility Functions'!$AS$3:$AS$6,'Utility Functions'!$AT$3:$AT$6)","v":0.2},{"$f":"valuePL(Y16,'Utility Functions'!$AU$3:$AU$6,'Utility Functions'!$AV$3:$AV$6)","v":0.2},{"$f":"valuePL(Z16,'Utility Functions'!$AW$3:$AW$5,'Utility Functions'!$AX$3:$AX$5)","v":1},{"$f":"valuePL(AA16,'Utility Functions'!$AY$3:$AY$6,'Utility Functions'!$AZ$3:$AZ$6)","v":1},{"$f":"valuePL(AB16,'Utility Functions'!$BA$3:$BA$5,'Utility Functions'!$BB$3:$BB$5)","v":1},{"$f":"valuePL(AC16,'Utility Functions'!$BC$3:$BC$5,'Utility Functions'!$BD$3:$BD$5)","v":0.25},15.150477261414375,null,15.15047726141438,4.2034772614143794,1.272,1.125,3.9,4.6500000000000004]
[16,{"$f":"valueE(B17,'Utility Functions'!$B$3,'Utility Functions'!$B$4,'Utility Functions'!$B$5,'Utility Functions'!$B$6)","v":0},{"$f":"valueE(C17,'Utility Functions'!$D$3,'Utility Functions'!$D$4,'Utility Functions'!$D$5,'Utility Functions'!$D$6)","v":0},{"$f":"valuePL(D17,'Utility Functions'!$E$3:$E$5,'Utility Functions'!$F$3:$F$5)","v":0},{"$f":"valuePL(E17,'Utility Functions'!$G$3:$G$5,'Utility Functions'!$H$3:$H$5)","v":0},{"$f":"valuePL(F17,'Utility Functions'!$I$3:$I$4,'Utility Functions'!$J$3:$J$5)","v":0},{"$f":"valueE(G17,'Utility Functions'!$L$3,'Utility Functions'!$L$4,'Utility Functions'!$L$5,'Utility Functions'!$L$6)","v":0},{"$f":"valueE(H17,'Utility Functions'!$N$3,'Utility Functions'!$N$4,'Utility Functions'!$N$5,'Utility Functions'!$N$6)","v":0},{"$f":"valuePL(I17,'Utility Functions'!$O$3:$O$6,'Utility Functions'!$P$3:$P$6)","v":1},{"$f":"valuePL(J17,'Utility Functions'!$Q$3:$Q$6,'Utility Functions'!$R$3:$R$6)","v":0.91818181818181821},{"$f":"valuePL(K17,'Utility Functions'!$S$3:$S$7,'Utility Functions'!$T$3:$T$7)","v":1},{"$f":"valueE(L17,'Utility Functions'!$V$3,'Utility Functions'!$V$4,'Utility Functions'!$V$5,'Utility Functions'!$V$6)","v":0.83333333333333337},{"$f":"valuePL(M17,'Utility Functions'!$W$3:$W$6,'Utility Functions'!$X$3:$X$6)","v":0.91818181818181821},{"$f":"valueE(N17,'Utility Functions'!$Z$3,'Utility Functions'!$Z$4,'Utility Functions'!$Z$5,'Utility Functions'!$Z$6)","v":0},{"$f":"valuePL(O17,'Utility Functions'!$AA$3:$AA$5,'Utility Functions'!$AB$3:$AB$5)","v":0},{"$f":"valuePL(P17,'Utility Functions'!$AC$3:$AC$7,'Utility Functions'!$AD$3:$AD$7)","v":0.75},{"$f":"valuePL(Q17,'Utility Functions'!$AE$3:$AE$6,'Utility Functions'!$AF$3:$AF$6)","v":0},{"$f":"valuePL(R17,'Utility Functions'!$AG$3:$AG$6,'Utility Functions'!$AH$3:$AH$6)","v":1},{"$f":"valuePL(S17,'Utility Functions'!$AI$3:$AI$6,'Utility Functions'!$AJ$3:$AJ$6)","v":1},{"$f":"valuePL(T17,'Utility Functions'!$AK$3:$AK$8,'Utility Functions'!$AL$3:$AL$8)","v":1},{"$f":"valuePL(U17,'Utility Functions'!$AM$3:$AM$5,'Utility Functions'!$AN$3:$AN$5)","v":0},{"$f":"valuePL(V17,'Utility Functions'!$AO$3:$AO$5,'Utility Functions'!$AP$3:$AP$5)","v":1},{"$f":"valuePL(W17,'Utility Functions'!$AQ$3:$AQ$6,'Utility Functions'!$AR$3:$AR$6)","v":0.75},{"$f":"valuePL(X17,'Utility Functions'!$AS$3:$AS$6,'Utility Functions'!$AT$3:$AT$6)","v":0.75},{"$f":"valuePL(Y17,'Utility Functions'!$AU$3:$AU$6,'Utility Functions'!$AV$3:$AV$6)","v":0.2},{"$f":"valuePL(Z17,'Utility Functions'!$AW$3:$AW$5,'Utility Functions'!$AX$3:$AX$5)","v":1},{"$f":"valuePL(AA17,'Utility Functions'!$AY$3:$AY$6,'Utility Functions'!$AZ$3:$AZ$6)","v":1},{"$f":"valuePL(AB17,'Utility Functions'!$BA$3:$BA$5,'Utility Functions'!$BB$3:$BB$5)","v":1},{"$f":"valuePL(AC17,'Utility Functions'!$BC$3:$BC$5,'Utility Functions'!$BD$3:$BD$5)","v":1},15.119696969696969,null,15.119696969696971,0,4.6696969696969699,0,3.75,6.7]
[17,{"$f":"valueE(B18,'Utility Functions'!$B$3,'Utility Functions'!$B$4,'Utility Functions'!$B$5,'Utility Functions'!$B$6)","v":0.32968045347775865},{"$f":"valueE(C18,'Utility Functions'!$D$3,'Utility Functions'!$D$4,'Utility Functions'!$D$5,'Utility Functions'!$D$6)","v":0.78989979019422951},{"$f":"valuePL(D18,'Utility Functions'!$E$3:$E$5,'Utility Functions'!$F$3:$F$5)","v":1},{"$f":"valuePL(E18,'Utility Functions'!$G$3:$G$5,'Utility Functions'!$H$3:$H$5)","v":0.5},{"$f":"valuePL(F18,'Utility Functions'!$I$3:$I$4,'Utility Functions'!$J$3:$J$5)","v":1},{"$f":"valueE(G18,'Utility Functions'!$L$3,'Utility Functions'!$L$4,'Utility Functions'!$L$5,'Utility Functions'!$L$6)","v":0.31182795698924731},{"$f":"valueE(H18,'Utility Functions'!$N$3,'Utility Functions'!$N$4,'Utility Functions'!$N$5,'Utility Functions'!$N$6)","v":0.27514231499051234},{"$f":"valuePL(I18,'Utility Functions'!$O$3:$O$6,'Utility Functions'!$P$3:$P$6)","v":0},{"$f":"valuePL(J18,'Utility Functions'!$Q$3:$Q$6,'Utility Functions'!$R$3:$R$6)","v":0},{"$f":"valuePL(K18,'Utility Functions'!$S$3:$S$7,'Utility Functions'!$T$3:$T$7)","v":0},{"$f":"valueE(L18,'Utility Functions'!$V$3,'Utility Functions'!$V$4,'Utility Functions'!$V$5,'Utility Functions'!$V$6)","v":1},{"$f":"valuePL(M18,'Utility Functions'!$W$3:$W$6,'Utility Functions'!$X$3:$X$6)","v":6.0000000000000012E-2},{"$f":"valueE(N18,'Utility Functions'!$Z$3,'Utility Functions'!$Z$4,'Utility Functions'!$Z$5,'Utility Functions'!$Z$6)","v":0},{"$f":"valuePL(O18,'Utility Functions'!$AA$3:$AA$5,'Utility Functions'!$AB$3:$AB$5)","v":0},{"$f":"valuePL(P18,'Utility Functions'!$AC$3:$AC$7,'Utility Functions'!$AD$3:$AD$7)","v":0},{"$f":"valuePL(Q18,'Utility Functions'!$AE$3:$AE$6,'Utility Functions'!$AF$3:$AF$6)","v":0},{"$f":"valuePL(R18,'Utility Functions'!$AG$3:$AG$6,'Utility Functions'!$AH$3:$AH$6)","v":1},{"$f":"valuePL(S18,'Utility Functions'!$AI$3:$AI$6,'Utility Functions'!$AJ$3:$AJ$6)","v":0.66},{"$f":"valuePL(T18,'Utility Functions'!$AK$3:$AK$8,'Utility Functions'!$AL$3:$AL$8)","v":0},{"$f":"valuePL(U18,'Utility Functions'!$AM$3:$AM$5,'Utility Functions'!$AN$3:$AN$5)","v":0},{"$f":"valuePL(V18,'Utility Functions'!$AO$3:$AO$5,'Utility Functions'!$AP$3:$AP$5)","v":1},{"$f":"valuePL(W18,'Utility Functions'!$AQ$3:$AQ$6,'Utility Functions'!$AR$3:$AR$6)","v":1},{"$f":"valuePL(X18,'Utility Functions'!$AS$3:$AS$6,'Utility Functions'!$AT$3:$AT$6)","v":0.2},{"$f":"valuePL(Y18,'Utility Functions'!$AU$3:$AU$6,'Utility Functions'!$AV$3:$AV$6)","v":0},{"$f":"valuePL(Z18,'Utility Functions'!$AW$3:$AW$5,'Utility Functions'!$AX$3:$AX$5)","v":0.5},{"$f":"valuePL(AA18,'Utility Functions'!$AY$3:$AY$6,'Utility Functions'!$AZ$3:$AZ$6)","v":0},{"$f":"valuePL(AB18,'Utility Functions'!$BA$3:$BA$5,'Utility Functions'!$BB$3:$BB$5)","v":1},{"$f":"valuePL(AC18,'Utility Functions'!$BC$3:$BC$5,'Utility Functions'!$BD$3:$BD$5)","v":0.25},10.876550515651747,null,10.876550515651747,3.6195802436719884,1.6469702719797596,0,1.6600000000000001,3.95]
[18,{"$f":"valueE(B19,'Utility Functions'!$B$3,'Utility Functions'!$B$4,'Utility Functions'!$B$5,'Utility Functions'!$B$6)","v":0},{"$f":"valueE(C19,'Utility Functions'!$D$3,'Utility Functions'!$D$4,'Utility Functions'!$D$5,'Utility Functions'!$D$6)","v":0},{"$f":"valuePL(D19,'Utility Functions'!$E$3:$E$5,'Utility Functions'!$F$3:$F$5)","v":0},{"$f":"valuePL(E19,'Utility Functions'!$G$3:$G$5,'Utility Functions'!$H$3:$H$5)","v":0},{"$f":"valuePL(F19,'Utility Functions'!$I$3:$I$4,'Utility Functions'!$J$3:$J$5)","v":0},{"$f":"valueE(G19,'Utility Functions'!$L$3,'Utility Functions'!$L$4,'Utility Functions'!$L$5,'Utility Functions'!$L$6)","v":0},{"$f":"valueE(H19,'Utility Functions'!$N$3,'Utility Functions'!$N$4,'Utility Functions'!$N$5,'Utility Functions'!$N$6)","v":2.8462998102466792E-2},{"$f":"valuePL(I19,'Utility Functions'!$O$3:$O$6,'Utility Functions'!$P$3:$P$6)","v":0},{"$f":"valuePL(J19,'Utility Functions'!$Q$3:$Q$6,'Utility Functions'!$R$3:$R$6)","v":0},{"$f":"valuePL(K19,'Utility Functions'!$S$3:$S$7,'Utility Functions'!$T$3:$T$7)","v":0},{"$f":"valueE(L19,'Utility Functions'!$V$3,'Utility Functions'!$V$4,'Utility Functions'!$V$5,'Utility Functions'!$V$6)","v":0},{"$f":"valuePL(M19,'Utility Functions'!$W$3:$W$6,'Utility Functions'!$X$3:$X$6)","v":0},{"$f":"valueE(N19,'Utility Functions'!$Z$3,'Utility Functions'!$Z$4,'Utility Functions'!$Z$5,'Utility Functions'!$Z$6)","v":1},{"$f":"valuePL(O19,'Utility Functions'!$AA$3:$AA$5,'Utility Functions'!$AB$3:$AB$5)","v":0.25},{"$f":"valuePL(P19,'Utility Functions'!$AC$3:$AC$7,'Utility Functions'!$AD$3:$AD$7)","v":0.25},{"$f":"valuePL(Q19,'Utility Functions'!$AE$3:$AE$6,'Utility Functions'!$AF$3:$AF$6)","v":1},{"$f":"valuePL(R19,'Utility Functions'!$AG$3:$AG$6,'Utility Functions'!$AH$3:$AH$6)","v":1},{"$f":"valuePL(S19,'Utility Functions'!$AI$3:$AI$6,'Utility Functions'!$AJ$3:$AJ$6)","v":1},{"$f":"valuePL(T19,'Utility Functions'!$AK$3:$AK$8,'Utility Functions'!$AL$3:$AL$8)","v":1},{"$f":"valuePL(U19,'Utility Functions'!$AM$3:$AM$5,'Utility Functions'!$AN$3:$AN$5)","v":0.25},{"$f":"valuePL(V19,'Utility Functions'!$AO$3:$AO$5,'Utility Functions'!$AP$3:$AP$5)","v":1},{"$f":"valuePL(W19,'Utility Functions'!$AQ$3:$AQ$6,'Utility Functions'!$AR$3:$AR$6)","v":0.75},{"$f":"valuePL(X19,'Utility Functions'!$AS$3:$AS$6,'Utility Functions'!$AT$3:$AT$6)","v":0.2},{"$f":"valuePL(Y19,'Utility Functions'!$AU$3:$AU$6,'Utility Functions'!$AV$3:$AV$6)","v":0.8},{"$f":"valuePL(Z19,'Utility Functions'!$AW$3:$AW$5,'Utility Functions'!$AX$3:$AX$5)","v":0.5},{"$f":"valuePL(AA19,'Utility Functions'!$AY$3:$AY$6,'Utility Functions'!$AZ$3:$AZ$6)","v":0.89999999999999991},{"$f":"valuePL(AB19,'Utility Functions'!$BA$3:$BA$5,'Utility Functions'!$BB$3:$BB$5)","v":0.25},{"$f":"valuePL(AC19,'Utility Functions'!$BC$3:$BC$5,'Utility Functions'!$BD$3:$BD$5)","v":0},10.178462998102468,null,10.178462998102468,0,2.8462998102466792E-2,1.25,4.5,4.4000000000000004]
[19,{"$f":"valueE(B20,'Utility Functions'!$B$3,'Utility Functions'!$B$4,'Utility Functions'!$B$5,'Utility Functions'!$B$6)","v":0.79810469124896843},{"$f":"valueE(C20,'Utility Functions'!$D$3,'Utility Functions'!$D$4,'Utility Functions'!$D$5,'Utility Functions'!$D$6)","v":0.26839655623815994},{"$f":"valuePL(D20,'Utility Functions'!$E$3:$E$5,'Utility Functions'!$F$3:$F$5)","v":0.5},{"$f":"valuePL(E20,'Utility Functions'!$G$3:$G$5,'Utility Functions'!$H$3:$H$5)","v":1},{"$f":"valuePL(F20,'Utility Functions'!$I$3:$I$4,'Utility Functions'!$J$3:$J$5)","v":0},{"$f":"valueE(G20,'Utility Functions'!$L$3,'Utility Functions'!$L$4,'Utility Functions'!$L$5,'Utility Functions'!$L$6)","v":0},{"$f":"valueE(H20,'Utility Functions'!$N$3,'Utility Functions'!$N$4,'Utility Functions'!$N$5,'Utility Functions'!$N$6)","v":0},{"$f":"valuePL(I20,'Utility Functions'!$O$3:$O$6,'Utility Functions'!$P$3:$P$6)","v":0},{"$f":"valuePL(J20,'Utility Functions'!$Q$3:$Q$6,'Utility Functions'!$R$3:$R$6)","v":0},{"$f":"valuePL(K20,'Utility Functions'!$S$3:$S$7,'Utility Functions'!$T$3:$T$7)","v":0},{"$f":"valueE(L20,'Utility Functions'!$V$3,'Utility Functions'!$V$4,'Utility Functions'!$V$5,'Utility Functions'!$V$6)","v":0},{"$f":"valuePL(M20,'Utility Functions'!$W$3:$W$6,'Utility Functions'!$X$3:$X$6)","v":0},{"$f":"valueE(N20,'Utility Functions'!$Z$3,'Utility Functions'!$Z$4,'Utility Functions'!$Z$5,'Utility Functions'!$Z$6)","v":1},{"$f":"valuePL(O20,'Utility Functions'!$AA$3:$AA$5,'Utility Functions'!$AB$3:$AB$5)","v":1},{"$f":"valuePL(P20,'Utility Functions'!$AC$3:$AC$7,'Utility Functions'!$AD$3:$AD$7)","v":0},{"$f":"valuePL(Q20,'Utility Functions'!$AE$3:$AE$6,'Utility Functions'!$AF$3:$AF$6)","v":0},{"$f":"valuePL(R20,'Utility Functions'!$AG$3:$AG$6,'Utility Functions'!$AH$3:$AH$6)","v":0.8},{"$f":"valuePL(S20,'Utility Functions'!$AI$3:$AI$6,'Utility Functions'!$AJ$3:$AJ$6)","v":1},{"$f":"valuePL(T20,'Utility Functions'!$AK$3:$AK$8,'Utility Functions'!$AL$3:$AL$8)","v":0},{"$f":"valuePL(U20,'Utility Functions'!$AM$3:$AM$5,'Utility Functions'!$AN$3:$AN$5)","v":0},{"$f":"valuePL(V20,'Utility Functions'!$AO$3:$AO$5,'Utility Functions'!$AP$3:$AP$5)","v":0.5},{"$f":"valuePL(W20,'Utility Functions'!$AQ$3:$AQ$6,'Utility Functions'!$AR$3:$AR$6)","v":0.2},{"$f":"valuePL(X20,'Utility Functions'!$AS$3:$AS$6,'Utility Functions'!$AT$3:$AT$6)","v":1},{"$f":"valuePL(Y20,'Utility Functions'!$AU$3:$AU$6,'Utility Functions'!$AV$3:$AV$6)","v":0.8},{"$f":"valuePL(Z20,'Utility Functions'!$AW$3:$AW$5,'Utility Functions'!$AX$3:$AX$5)","v":0},{"$f":"valuePL(AA20,'Utility Functions'!$AY$3:$AY$6,'Utility Functions'!$AZ$3:$AZ$6)","v":0.2},{"$f":"valuePL(AB20,'Utility Functions'!$BA$3:$BA$5,'Utility Functions'!$BB$3:$BB$5)","v":0},{"$f":"valuePL(AC20,'Utility Functions'!$BC$3:$BC$5,'Utility Functions'!$BD$3:$BD$5)","v":0.25},9.3165012474871283,null,9.3165012474871283,2.5665012474871283,0,2,1.8,2.95]
[20,{"$f":"valueE(B21,'Utility Functions'!$B$3,'Utility Functions'!$B$4,'Utility Functions'!$B$5,'Utility Functions'!$B$6)","v":0.83470237647280454},{"$f":"valueE(C21,'Utility Functions'!$D$3,'Utility Functions'!$D$4,'Utility Functions'!$D$5,'Utility Functions'!$D$6)","v":0.78989979019422951},{"$f":"valuePL(D21,'Utility Functions'!$E$3:$E$5,'Utility Functions'!$F$3:$F$5)","v":0.5},{"$f":"valuePL(E21,'Utility Functions'!$G$3:$G$5,'Utility Functions'!$H$3:$H$5)","v":1},{"$f":"valuePL(F21,'Utility Functions'!$I$3:$I$4,'Utility Functions'!$J$3:$J$5)","v":0},{"$f":"valueE(G21,'Utility Functions'!$L$3,'Utility Functions'!$L$4,'Utility Functions'!$L$5,'Utility Functions'!$L$6)","v":0},{"$f":"valueE(H21,'Utility Functions'!$N$3,'Utility Functions'!$N$4,'Utility Functions'!$N$5,'Utility Functions'!$N$6)","v":0.41271347248576851},{"$f":"valuePL(I21,'Utility Functions'!$O$3:$O$6,'Utility Functions'!$P$3:$P$6)","v":0.93454545454545446},{"$f":"valuePL(J21,'Utility Functions'!$Q$3:$Q$6,'Utility Functions'!$R$3:$R$6)","v":0.50909090909090915},{"$f":"valuePL(K21,'Utility Functions'!$S$3:$S$7,'Utility Functions'!$T$3:$T$7)","v":0.93454545454545446},{"$f":"valueE(L21,'Utility Functions'!$V$3,'Utility Functions'!$V$4,'Utility Functions'!$V$5,'Utility Functions'!$V$6)","v":0.66666666666666663},{"$f":"valuePL(M21,'Utility Functions'!$W$3:$W$6,'Utility Functions'!$X$3:$X$6)","v":0.50909090909090915},{"$f":"valueE(N21,'Utility Functions'!$Z$3,'Utility Functions'!$Z$4,'Utility Functions'!$Z$5,'Utility Functions'!$Z$6)","v":1},{"$f":"valuePL(O21,'Utility Functions'!$AA$3:$AA$5,'Utility Functions'!$AB$3:$AB$5)","v":1},{"$f":"valuePL(P21,'Utility Functions'!$AC$3:$AC$7,'Utility Functions'!$AD$3:$AD$7)","v":0.25},{"$f":"valuePL(Q21,'Utility Functions'!$AE$3:$AE$6,'Utility Functions'!$AF$3:$AF$6)","v":0},{"$f":"valuePL(R21,'Utility Functions'!$AG$3:$AG$6,'Utility Functions'!$AH$3:$AH$6)","v":1},{"$f":"valuePL(S21,'Utility Functions'!$AI$3:$AI$6,'Utility Functions'!$AJ$3:$AJ$6)","v":1},{"$f":"valuePL(T21,'Utility Functions'!$AK$3:$AK$8,'Utility Functions'!$AL$3:$AL$8)","v":0.6},{"$f":"valuePL(U21,'Utility Functions'!$AM$3:$AM$5,'Utility Functions'!$AN$3:$AN$5)","v":1},{"$f":"valuePL(V21,'Utility Functions'!$AO$3:$AO$5,'Utility Functions'!$AP$3:$AP$5)","v":0.5},{"$f":"valuePL(W21,'Utility Functions'!$AQ$3:$AQ$6,'Utility Functions'!$AR$3:$AR$6)","v":0},{"$f":"valuePL(X21,'Utility Functions'!$AS$3:$AS$6,'Utility Functions'!$AT$3:$AT$6)","v":0},{"$f":"valuePL(Y21,'Utility Functions'!$AU$3:$AU$6,'Utility Functions'!$AV$3:$AV$6)","v":0.2},{"$f":"valuePL(Z21,'Utility Functions'!$AW$3:$AW$5,'Utility Functions'!$AX$3:$AX$5)","v":1},{"$f":"valuePL(AA21,'Utility Functions'!$AY$3:$AY$6,'Utility Functions'!$AZ$3:$AZ$6)","v":0.2},{"$f":"valuePL(AB21,'Utility Functions'!$BA$3:$BA$5,'Utility Functions'!$BB$3:$BB$5)","v":0},{"$f":"valuePL(AC21,'Utility Functions'!$BC$3:$BC$5,'Utility Functions'!$BD$3:$BD$5)","v":0.25},15.091255033092194,null,15.091255033092196,3.1246021666670343,3.9666528664251626,2,3.85,2.15]
[21,{"$f":"valueE(B22,'Utility Functions'!$B$3,'Utility Functions'!$B$4,'Utility Functions'!$B$5,'Utility Functions'!$B$6)","v":0},{"$f":"valueE(C22,'Utility Functions'!$D$3,'Utility Functions'!$D$4,'Utility Functions'!$D$5,'Utility Functions'!$D$6)","v":0},{"$f":"valuePL(D22,'Utility Functions'!$E$3:$E$5,'Utility Functions'!$F$3:$F$5)","v":0},{"$f":"valuePL(E22,'Utility Functions'!$G$3:$G$5,'Utility Functions'!$H$3:$H$5)","v":0},{"$f":"valuePL(F22,'Utility Functions'!$I$3:$I$4,'Utility Functions'!$J$3:$J$5)","v":0},{"$f":"valueE(G22,'Utility Functions'!$L$3,'Utility Functions'!$L$4,'Utility Functions'!$L$5,'Utility Functions'!$L$6)","v":0},{"$f":"valueE(H22,'Utility Functions'!$N$3,'Utility Functions'!$N$4,'Utility Functions'!$N$5,'Utility Functions'!$N$6)","v":0},{"$f":"valuePL(I22,'Utility Functions'!$O$3:$O$6,'Utility Functions'!$P$3:$P$6)","v":0},{"$f":"valuePL(J22,'Utility Functions'!$Q$3:$Q$6,'Utility Functions'!$R$3:$R$6)","v":0},{"$f":"valuePL(K22,'Utility Functions'!$S$3:$S$7,'Utility Functions'!$T$3:$T$7)","v":0},{"$f":"valueE(L22,'Utility Functions'!$V$3,'Utility Functions'!$V$4,'Utility Functions'!$V$5,'Utility Functions'!$V$6)","v":0},{"$f":"valuePL(M22,'Utility Functions'!$W$3:$W$6,'Utility Functions'!$X$3:$X$6)","v":0},{"$f":"valueE(N22,'Utility Functions'!$Z$3,'Utility Functions'!$Z$4,'Utility Functions'!$Z$5,'Utility Functions'!$Z$6)","v":1},{"$f":"valuePL(O22,'Utility Functions'!$AA$3:$AA$5,'Utility Functions'!$AB$3:$AB$5)","v":1},{"$f":"valuePL(P22,'Utility Functions'!$AC$3:$AC$7,'Utility Functions'!$AD$3:$AD$7)","v":0},{"$f":"valuePL(Q22,'Utility Functions'!$AE$3:$AE$6,'Utility Functions'!$AF$3:$AF$6)","v":0.1},{"$f":"valuePL(R22,'Utility Functions'!$AG$3:$AG$6,'Utility Functions'!$AH$3:$AH$6)","v":1},{"$f":"valuePL(S22,'Utility Functions'!$AI$3:$AI$6,'Utility Functions'!$AJ$3:$AJ$6)","v":1},{"$f":"valuePL(T22,'Utility Functions'!$AK$3:$AK$8,'Utility Functions'!$AL$3:$AL$8)","v":1},{"$f":"valuePL(U22,'Utility Functions'!$AM$3:$AM$5,'Utility Functions'!$AN$3:$AN$5)","v":0.25},{"$f":"valuePL(V22,'Utility Functions'!$AO$3:$AO$5,'Utility Functions'!$AP$3:$AP$5)","v":0},{"$f":"valuePL(W22,'Utility Functions'!$AQ$3:$AQ$6,'Utility Functions'!$AR$3:$AR$6)","v":0.75},{"$f":"valuePL(X22,'Utility Functions'!$AS$3:$AS$6,'Utility Functions'!$AT$3:$AT$6)","v":1},{"$f":"valuePL(Y22,'Utility Functions'!$AU$3:$AU$6,'Utility Functions'!$AV$3:$AV$6)","v":0.2},{"$f":"valuePL(Z22,'Utility Functions'!$AW$3:$AW$5,'Utility Functions'!$AX$3:$AX$5)","v":0},{"$f":"valuePL(AA22,'Utility Functions'!$AY$3:$AY$6,'Utility Functions'!$AZ$3:$AZ$6)","v":1},{"$f":"valuePL(AB22,'Utility Functions'!$BA$3:$BA$5,'Utility Functions'!$BB$3:$BB$5)","v":0.25},{"$f":"valuePL(AC22,'Utility Functions'!$BC$3:$BC$5,'Utility Functions'!$BD$3:$BD$5)","v":1},9.5500000000000007,null,9.5500000000000007,0,0,2,3.35,4.2]
[22,{"$f":"valueE(B23,'Utility Functions'!$B$3,'Utility Functions'!$B$4,'Utility Functions'!$B$5,'Utility Functions'!$B$6)","v":0},{"$f":"valueE(C23,'Utility Functions'!$D$3,'Utility Functions'!$D$4,'Utility Functions'!$D$5,'Utility Functions'!$D$6)","v":0},{"$f":"valuePL(D23,'Utility Functions'!$E$3:$E$5,'Utility Functions'!$F$3:$F$5)","v":0},{"$f":"valuePL(E23,'Utility Functions'!$G$3:$G$5,'Utility Functions'!$H$3:$H$5)","v":0},{"$f":"valuePL(F23,'Utility Functions'!$I$3:$I$4,'Utility Functions'!$J$3:$J$5)","v":0},{"$f":"valueE(G23,'Utility Functions'!$L$3,'Utility Functions'!$L$4,'Utility Functions'!$L$5,'Utility Functions'!$L$6)","v":8.6021505376344093E-2},{"$f":"valueE(H23,'Utility Functions'!$N$3,'Utility Functions'!$N$4,'Utility Functions'!$N$5,'Utility Functions'!$N$6)","v":6.0721062618595827E-2},{"$f":"valuePL(I23,'Utility Functions'!$O$3:$O$6,'Utility Functions'!$P$3:$P$6)","v":0},{"$f":"valuePL(J23,'Utility Functions'!$Q$3:$Q$6,'Utility Functions'!$R$3:$R$6)","v":0},{"$f":"valuePL(K23,'Utility Functions'!$S$3:$S$7,'Utility Functions'!$T$3:$T$7)","v":0},{"$f":"valueE(L23,'Utility Functions'!$V$3,'Utility Functions'!$V$4,'Utility Functions'!$V$5,'Utility Functions'!$V$6)","v":0},{"$f":"valuePL(M23,'Utility Functions'!$W$3:$W$6,'Utility Functions'!$X$3:$X$6)","v":0},{"$f":"valueE(N23,'Utility Functions'!$Z$3,'Utility Functions'!$Z$4,'Utility Functions'!$Z$5,'Utility Functions'!$Z$6)","v":0.125},{"$f":"valuePL(O23,'Utility Functions'!$AA$3:$AA$5,'Utility Functions'!$AB$3:$AB$5)","v":1},{"$f":"valuePL(P23,'Utility Functions'!$AC$3:$AC$7,'Utility Functions'!$AD$3:$AD$7)","v":1},{"$f":"valuePL(Q23,'Utility Functions'!$AE$3:$AE$6,'Utility Functions'!$AF$3:$AF$6)","v":0.5},{"$f":"valuePL(R23,'Utility Functions'!$AG$3:$AG$6,'Utility Functions'!$AH$3:$AH$6)","v":0.8},{"$f":"valuePL(S23,'Utility Functions'!$AI$3:$AI$6,'Utility Functions'!$AJ$3:$AJ$6)","v":1},{"$f":"valuePL(T23,'Utility Functions'!$AK$3:$AK$8,'Utility Functions'!$AL$3:$AL$8)","v":1},{"$f":"valuePL(U23,'Utility Functions'!$AM$3:$AM$5,'Utility Functions'!$AN$3:$AN$5)","v":0},{"$f":"valuePL(V23,'Utility Functions'!$AO$3:$AO$5,'Utility Functions'!$AP$3:$AP$5)","v":0.5},{"$f":"valuePL(W23,'Utility Functions'!$AQ$3:$AQ$6,'Utility Functions'!$AR$3:$AR$6)","v":0.75},{"$f":"valuePL(X23,'Utility Functions'!$AS$3:$AS$6,'Utility Functions'!$AT$3:$AT$6)","v":0.2},{"$f":"valuePL(Y23,'Utility Functions'!$AU$3:$AU$6,'Utility Functions'!$AV$3:$AV$6)","v":0},{"$f":"valuePL(Z23,'Utility Functions'!$AW$3:$AW$5,'Utility Functions'!$AX$3:$AX$5)","v":1},{"$f":"valuePL(AA23,'Utility Functions'!$AY$3:$AY$6,'Utility Functions'!$AZ$3:$AZ$6)","v":0.2},{"$f":"valuePL(AB23,'Utility Functions'!$BA$3:$BA$5,'Utility Functions'!$BB$3:$BB$5)","v":1},{"$f":"valuePL(AC23,'Utility Functions'!$BC$3:$BC$5,'Utility Functions'!$BD$3:$BD$5)","v":0.25},9.471742567994939,null,9.4717425679949407,0,0.14674256799493993,1.125,4.3,3.9000000000000004]
[23,{"$f":"valueE(B24,'Utility Functions'!$B$3,'Utility Functions'!$B$4,'Utility Functions'!$B$5,'Utility Functions'!$B$6)","v":0.83470237647280454},{"$f":"valueE(C24,'Utility Functions'!$D$3,'Utility Functions'!$D$4,'Utility Functions'!$D$5,'Utility Functions'!$D$6)","v":0.84744836833951609},{"$f":"valuePL(D24,'Utility Functions'!$E$3:$E$5,'Utility Functions'!$F$3:$F$5)","v":1},{"$f":"valuePL(E24,'Utility Functions'!$G$3:$G$5,'Utility Functions'!$H$3:$H$5)","v":0},{"$f":"valuePL(F24,'Utility Functions'!$I$3:$I$4,'Utility Functions'!$J$3:$J$5)","v":0},{"$f":"valueE(G24,'Utility Functions'!$L$3,'Utility Functions'!$L$4,'Utility Functions'!$L$5,'Utility Functions'!$L$6)","v":0},{"$f":"valueE(H24,'Utility Functions'!$N$3,'Utility Functions'!$N$4,'Utility Functions'!$N$5,'Utility Functions'!$N$6)","v":0},{"$f":"valuePL(I24,'Utility Functions'!$O$3:$O$6,'Utility Functions'!$P$3:$P$6)","v":0},{"$f":"valuePL(J24,'Utility Functions'!$Q$3:$Q$6,'Utility Functions'!$R$3:$R$6)","v":0},{"$f":"valuePL(K24,'Utility Functions'!$S$3:$S$7,'Utility Functions'!$T$3:$T$7)","v":0},{"$f":"valueE(L24,'Utility Functions'!$V$3,'Utility Functions'!$V$4,'Utility Functions'!$V$5,'Utility Functions'!$V$6)","v":0},{"$f":"valuePL(M24,'Utility Functions'!$W$3:$W$6,'Utility Functions'!$X$3:$X$6)","v":0},{"$f":"valueE(N24,'Utility Functions'!$Z$3,'Utility Functions'!$Z$4,'Utility Functions'!$Z$5,'Utility Functions'!$Z$6)","v":0},{"$f":"valuePL(O24,'Utility Functions'!$AA$3:$AA$5,'Utility Functions'!$AB$3:$AB$5)","v":0},{"$f":"valuePL(P24,'Utility Functions'!$AC$3:$AC$7,'Utility Functions'!$AD$3:$AD$7)","v":0.75},{"$f":"valuePL(Q24,'Utility Functions'!$AE$3:$AE$6,'Utility Functions'!$AF$3:$AF$6)","v":0},{"$f":"valuePL(R24,'Utility Functions'!$AG$3:$AG$6,'Utility Functions'!$AH$3:$AH$6)","v":1},{"$f":"valuePL(S24,'Utility Functions'!$AI$3:$AI$6,'Utility Functions'!$AJ$3:$AJ$6)","v":1},{"$f":"valuePL(T24,'Utility Functions'!$AK$3:$AK$8,'Utility Functions'!$AL$3:$AL$8)","v":1},{"$f":"valuePL(U24,'Utility Functions'!$AM$3:$AM$5,'Utility Functions'!$AN$3:$AN$5)","v":0},{"$f":"valuePL(V24,'Utility Functions'!$AO$3:$AO$5,'Utility Functions'!$AP$3:$AP$5)","v":1},{"$f":"valuePL(W24,'Utility Functions'!$AQ$3:$AQ$6,'Utility Functions'!$AR$3:$AR$6)","v":0.2},{"$f":"valuePL(X24,'Utility Functions'!$AS$3:$AS$6,'Utility Functions'!$AT$3:$AT$6)","v":0.75},{"$f":"valuePL(Y24,'Utility Functions'!$AU$3:$AU$6,'Utility Functions'!$AV$3:$AV$6)","v":0.2},{"$f":"valuePL(Z24,'Utility Functions'!$AW$3:$AW$5,'Utility Functions'!$AX$3:$AX$5)","v":0.5},{"$f":"valuePL(AA24,'Utility Functions'!$AY$3:$AY$6,'Utility Functions'!$AZ$3:$AZ$6)","v":0.2},{"$f":"valuePL(AB24,'Utility Functions'!$BA$3:$BA$5,'Utility Functions'!$BB$3:$BB$5)","v":0},{"$f":"valuePL(AC24,'Utility Functions'!$BC$3:$BC$5,'Utility Functions'!$BD$3:$BD$5)","v":0.25},9.5321507448123199,null,9.5321507448123199,2.6821507448123207,0,0,3.75,3.1]
[24,{"$f":"valueE(B25,'Utility Functions'!$B$3,'Utility Functions'!$B$4,'Utility Functions'!$B$5,'Utility Functions'!$B$6)","v":0.63212151658375171},{"$f":"valueE(C25,'Utility Functions'!$D$3,'Utility Functions'!$D$4,'Utility Functions'!$D$5,'Utility Functions'!$D$6)","v":0.46475967153745396},{"$f":"valuePL(D25,'Utility Functions'!$E$3:$E$5,'Utility Functions'!$F$3:$F$5)","v":1},{"$f":"valuePL(E25,'Utility Functions'!$G$3:$G$5,'Utility Functions'!$H$3:$H$5)","v":0},{"$f":"valuePL(F25,'Utility Functions'!$I$3:$I$4,'Utility Functions'!$J$3:$J$5)","v":0},{"$f":"valueE(G25,'Utility Functions'!$L$3,'Utility Functions'!$L$4,'Utility Functions'!$L$5,'Utility Functions'!$L$6)","v":0},{"$f":"valueE(H25,'Utility Functions'!$N$3,'Utility Functions'!$N$4,'Utility Functions'!$N$5,'Utility Functions'!$N$6)","v":0},{"$f":"valuePL(I25,'Utility Functions'!$O$3:$O$6,'Utility Functions'!$P$3:$P$6)","v":0},{"$f":"valuePL(J25,'Utility Functions'!$Q$3:$Q$6,'Utility Functions'!$R$3:$R$6)","v":0},{"$f":"valuePL(K25,'Utility Functions'!$S$3:$S$7,'Utility Functions'!$T$3:$T$7)","v":0},{"$f":"valueE(L25,'Utility Functions'!$V$3,'Utility Functions'!$V$4,'Utility Functions'!$V$5,'Utility Functions'!$V$6)","v":0},{"$f":"valuePL(M25,'Utility Functions'!$W$3:$W$6,'Utility Functions'!$X$3:$X$6)","v":0},{"$f":"valueE(N25,'Utility Functions'!$Z$3,'Utility Functions'!$Z$4,'Utility Functions'!$Z$5,'Utility Functions'!$Z$6)","v":0},{"$f":"valuePL(O25,'Utility Functions'!$AA$3:$AA$5,'Utility Functions'!$AB$3:$AB$5)","v":0},{"$f":"valuePL(P25,'Utility Functions'!$AC$3:$AC$7,'Utility Functions'!$AD$3:$AD$7)","v":0},{"$f":"valuePL(Q25,'Utility Functions'!$AE$3:$AE$6,'Utility Functions'!$AF$3:$AF$6)","v":0},{"$f":"valuePL(R25,'Utility Functions'!$AG$3:$AG$6,'Utility Functions'!$AH$3:$AH$6)","v":1},{"$f":"valuePL(S25,'Utility Functions'!$AI$3:$AI$6,'Utility Functions'!$AJ$3:$AJ$6)","v":1},{"$f":"valuePL(T25,'Utility Functions'!$AK$3:$AK$8,'Utility Functions'!$AL$3:$AL$8)","v":1},{"$f":"valuePL(U25,'Utility Functions'!$AM$3:$AM$5,'Utility Functions'!$AN$3:$AN$5)","v":0},{"$f":"valuePL(V25,'Utility Functions'!$AO$3:$AO$5,'Utility Functions'!$AP$3:$AP$5)","v":0},{"$f":"valuePL(W25,'Utility Functions'!$AQ$3:$AQ$6,'Utility Functions'!$AR$3:$AR$6)","v":1},{"$f":"valuePL(X25,'Utility Functions'!$AS$3:$AS$6,'Utility Functions'!$AT$3:$AT$6)","v":0.2},{"$f":"valuePL(Y25,'Utility Functions'!$AU$3:$AU$6,'Utility Functions'!$AV$3:$AV$6)","v":1},{"$f":"valuePL(Z25,'Utility Functions'!$AW$3:$AW$5,'Utility Functions'!$AX$3:$AX$5)","v":1},{"$f":"valuePL(AA25,'Utility Functions'!$AY$3:$AY$6,'Utility Functions'!$AZ$3:$AZ$6)","v":0.2},{"$f":"valuePL(AB25,'Utility Functions'!$BA$3:$BA$5,'Utility Functions'!$BB$3:$BB$5)","v":0},{"$f":"valuePL(AC25,'Utility Functions'!$BC$3:$BC$5,'Utility Functions'!$BD$3:$BD$5)","v":1},9.4968811881212041,null,9.4968811881212059,2.0968811881212055,0,0,3,4.4000000000000004]
[25,{"$f":"valueE(B26,'Utility Functions'!$B$3,'Utility Functions'!$B$4,'Utility Functions'!$B$5,'Utility Functions'!$B$6)","v":0.83470237647280454},{"$f":"valueE(C26,'Utility Functions'!$D$3,'Utility Functions'!$D$4,'Utility Functions'!$D$5,'Utility Functions'!$D$6)","v":0.84744836833951609},{"$f":"valuePL(D26,'Utility Functions'!$E$3:$E$5,'Utility Functions'!$F$3:$F$5)","v":1},{"$f":"valuePL(E26,'Utility Functions'!$G$3:$G$5,'Utility Functions'!$H$3:$H$5)","v":0},{"$f":"valuePL(F26,'Utility Functions'!$I$3:$I$4,'Utility Functions'!$J$3:$J$5)","v":0},{"$f":"valueE(G26,'Utility Functions'!$L$3,'Utility Functions'!$L$4,'Utility Functions'!$L$5,'Utility Functions'!$L$6)","v":0.94623655913978499},{"$f":"valueE(H26,'Utility Functions'!$N$3,'Utility Functions'!$N$4,'Utility Functions'!$N$5,'Utility Functions'!$N$6)","v":0.29222011385199242},{"$f":"valuePL(I26,'Utility Functions'!$O$3:$O$6,'Utility Functions'!$P$3:$P$6)","v":0},{"$f":"valuePL(J26,'Utility Functions'!$Q$3:$Q$6,'Utility Functions'!$R$3:$R$6)","v":0},{"$f":"valuePL(K26,'Utility Functions'!$S$3:$S$7,'Utility Functions'!$T$3:$T$7)","v":0},{"$f":"valueE(L26,'Utility Functions'!$V$3,'Utility Functions'!$V$4,'Utility Functions'!$V$5,'Utility Functions'!$V$6)","v":0},{"$f":"valuePL(M26,'Utility Functions'!$W$3:$W$6,'Utility Functions'!$X$3:$X$6)","v":0},{"$f":"valueE(N26,'Utility Functions'!$Z$3,'Utility Functions'!$Z$4,'Utility Functions'!$Z$5,'Utility Functions'!$Z$6)","v":1},{"$f":"valuePL(O26,'Utility Functions'!$AA$3:$AA$5,'Utility Functions'!$AB$3:$AB$5)","v":0.25},{"$f":"valuePL(P26,'Utility Functions'!$AC$3:$AC$7,'Utility Functions'!$AD$3:$AD$7)","v":0.5},{"$f":"valuePL(Q26,'Utility Functions'!$AE$3:$AE$6,'Utility Functions'!$AF$3:$AF$6)","v":0.5},{"$f":"valuePL(R26,'Utility Functions'!$AG$3:$AG$6,'Utility Functions'!$AH$3:$AH$6)","v":1},{"$f":"valuePL(S26,'Utility Functions'!$AI$3:$AI$6,'Utility Functions'!$AJ$3:$AJ$6)","v":1},{"$f":"valuePL(T26,'Utility Functions'!$AK$3:$AK$8,'Utility Functions'!$AL$3:$AL$8)","v":0},{"$f":"valuePL(U26,'Utility Functions'!$AM$3:$AM$5,'Utility Functions'!$AN$3:$AN$5)","v":0},{"$f":"valuePL(V26,'Utility Functions'!$AO$3:$AO$5,'Utility Functions'!$AP$3:$AP$5)","v":1},{"$f":"valuePL(W26,'Utility Functions'!$AQ$3:$AQ$6,'Utility Functions'!$AR$3:$AR$6)","v":0.2},{"$f":"valuePL(X26,'Utility Functions'!$AS$3:$AS$6,'Utility Functions'!$AT$3:$AT$6)","v":1},{"$f":"valuePL(Y26,'Utility Functions'!$AU$3:$AU$6,'Utility Functions'!$AV$3:$AV$6)","v":0.8},{"$f":"valuePL(Z26,'Utility Functions'!$AW$3:$AW$5,'Utility Functions'!$AX$3:$AX$5)","v":0.5},{"$f":"valuePL(AA26,'Utility Functions'!$AY$3:$AY$6,'Utility Functions'!$AZ$3:$AZ$6)","v":0.2},{"$f":"valuePL(AB26,'Utility Functions'!$BA$3:$BA$5,'Utility Functions'!$BB$3:$BB$5)","v":1},{"$f":"valuePL(AC26,'Utility Functions'!$BC$3:$BC$5,'Utility Functions'!$BD$3:$BD$5)","v":1},13.870607417804099,null,13.870607417804099,2.6821507448123207,1.2384566729917774,1.25,3,5.7]
[26,{"$f":"valueE(B27,'Utility Functions'!$B$3,'Utility Functions'!$B$4,'Utility Functions'!$B$5,'Utility Functions'!$B$6)","v":0.96662819462069161},{"$f":"valueE(C27,'Utility Functions'!$D$3,'Utility Functions'!$D$4,'Utility Functions'!$D$5,'Utility Functions'!$D$6)","v":0.84744836833951609},{"$f":"valuePL(D27,'Utility Functions'!$E$3:$E$5,'Utility Functions'!$F$3:$F$5)","v":1},{"$f":"valuePL(E27,'Utility Functions'!$G$3:$G$5,'Utility Functions'!$H$3:$H$5)","v":0.5},{"$f":"valuePL(F27,'Utility Functions'!$I$3:$I$4,'Utility Functions'!$J$3:$J$5)","v":0},{"$f":"valueE(G27,'Utility Functions'!$L$3,'Utility Functions'!$L$4,'Utility Functions'!$L$5,'Utility Functions'!$L$6)","v":0},{"$f":"valueE(H27,'Utility Functions'!$N$3,'Utility Functions'!$N$4,'Utility Functions'!$N$5,'Utility Functions'!$N$6)","v":0},{"$f":"valuePL(I27,'Utility Functions'!$O$3:$O$6,'Utility Functions'!$P$3:$P$6)","v":0},{"$f":"valuePL(J27,'Utility Functions'!$Q$3:$Q$6,'Utility Functions'!$R$3:$R$6)","v":0},{"$f":"valuePL(K27,'Utility Functions'!$S$3:$S$7,'Utility Functions'!$T$3:$T$7)","v":0},{"$f":"valueE(L27,'Utility Functions'!$V$3,'Utility Functions'!$V$4,'Utility Functions'!$V$5,'Utility Functions'!$V$6)","v":0},{"$f":"valuePL(M27,'Utility Functions'!$W$3:$W$6,'Utility Functions'!$X$3:$X$6)","v":0},{"$f":"valueE(N27,'Utility Functions'!$Z$3,'Utility Functions'!$Z$4,'Utility Functions'!$Z$5,'Utility Functions'!$Z$6)","v":0},{"$f":"valuePL(O27,'Utility Functions'!$AA$3:$AA$5,'Utility Functions'!$AB$3:$AB$5)","v":0},{"$f":"valuePL(P27,'Utility Functions'!$AC$3:$AC$7,'Utility Functions'!$AD$3:$AD$7)","v":0.75},{"$f":"valuePL(Q27,'Utility Functions'!$AE$3:$AE$6,'Utility Functions'!$AF$3:$AF$6)","v":0},{"$f":"valuePL(R27,'Utility Functions'!$AG$3:$AG$6,'Utility Functions'!$AH$3:$AH$6)","v":1},{"$f":"valuePL(S27,'Utility Functions'!$AI$3:$AI$6,'Utility Functions'!$AJ$3:$AJ$6)","v":1},{"$f":"valuePL(T27,'Utility Functions'!$AK$3:$AK$8,'Utility Functions'!$AL$3:$AL$8)","v":0.8},{"$f":"valuePL(U27,'Utility Functions'!$AM$3:$AM$5,'Utility Functions'!$AN$3:$AN$5)","v":0},{"$f":"valuePL(V27,'Utility Functions'!$AO$3:$AO$5,'Utility Functions'!$AP$3:$AP$5)","v":1},{"$f":"valuePL(W27,'Utility Functions'!$AQ$3:$AQ$6,'Utility Functions'!$AR$3:$AR$6)","v":0.2},{"$f":"valuePL(X27,'Utility Functions'!$AS$3:$AS$6,'Utility Functions'!$AT$3:$AT$6)","v":0},{"$f":"valuePL(Y27,'Utility Functions'!$AU$3:$AU$6,'Utility Functions'!$AV$3:$AV$6)","v":0.8},{"$f":"valuePL(Z27,'Utility Functions'!$AW$3:$AW$5,'Utility Functions'!$AX$3:$AX$5)","v":0},{"$f":"valuePL(AA27,'Utility Functions'!$AY$3:$AY$6,'Utility Functions'!$AZ$3:$AZ$6)","v":0.2},{"$f":"valuePL(AB27,'Utility Functions'!$BA$3:$BA$5,'Utility Functions'!$BB$3:$BB$5)","v":1},{"$f":"valuePL(AC27,'Utility Functions'!$BC$3:$BC$5,'Utility Functions'!$BD$3:$BD$5)","v":1},11.064076562960208,null,11.064076562960206,3.3140765629602078,0,0,3.55,4.2]
[27,{"$f":"valueE(B28,'Utility Functions'!$B$3,'Utility Functions'!$B$4,'Utility Functions'!$B$5,'Utility Functions'!$B$6)","v":0},{"$f":"valueE(C28,'Utility Functions'!$D$3,'Utility Functions'!$D$4,'Utility Functions'!$D$5,'Utility Functions'!$D$6)","v":0.46475967153745396},{"$f":"valuePL(D28,'Utility Functions'!$E$3:$E$5,'Utility Functions'!$F$3:$F$5)","v":1},{"$f":"valuePL(E28,'Utility Functions'!$G$3:$G$5,'Utility Functions'!$H$3:$H$5)","v":0},{"$f":"valuePL(F28,'Utility Functions'!$I$3:$I$4,'Utility Functions'!$J$3:$J$5)","v":0},{"$f":"valueE(G28,'Utility Functions'!$L$3,'Utility Functions'!$L$4,'Utility Functions'!$L$5,'Utility Functions'!$L$6)","v":0},{"$f":"valueE(H28,'Utility Functions'!$N$3,'Utility Functions'!$N$4,'Utility Functions'!$N$5,'Utility Functions'!$N$6)","v":0},{"$f":"valuePL(I28,'Utility Functions'!$O$3:$O$6,'Utility Functions'!$P$3:$P$6)","v":0},{"$f":"valuePL(J28,'Utility Functions'!$Q$3:$Q$6,'Utility Functions'!$R$3:$R$6)","v":0},{"$f":"valuePL(K28,'Utility Functions'!$S$3:$S$7,'Utility Functions'!$T$3:$T$7)","v":1},{"$f":"valueE(L28,'Utility Functions'!$V$3,'Utility Functions'!$V$4,'Utility Functions'!$V$5,'Utility Functions'!$V$6)","v":0},{"$f":"valuePL(M28,'Utility Functions'!$W$3:$W$6,'Utility Functions'!$X$3:$X$6)","v":0.1},{"$f":"valueE(N28,'Utility Functions'!$Z$3,'Utility Functions'!$Z$4,'Utility Functions'!$Z$5,'Utility Functions'!$Z$6)","v":0},{"$f":"valuePL(O28,'Utility Functions'!$AA$3:$AA$5,'Utility Functions'!$AB$3:$AB$5)","v":0},{"$f":"valuePL(P28,'Utility Functions'!$AC$3:$AC$7,'Utility Functions'!$AD$3:$AD$7)","v":0.5},{"$f":"valuePL(Q28,'Utility Functions'!$AE$3:$AE$6,'Utility Functions'!$AF$3:$AF$6)","v":0.5},{"$f":"valuePL(R28,'Utility Functions'!$AG$3:$AG$6,'Utility Functions'!$AH$3:$AH$6)","v":1},{"$f":"valuePL(S28,'Utility Functions'!$AI$3:$AI$6,'Utility Functions'!$AJ$3:$AJ$6)","v":1},{"$f":"valuePL(T28,'Utility Functions'!$AK$3:$AK$8,'Utility Functions'!$AL$3:$AL$8)","v":1},{"$f":"valuePL(U28,'Utility Functions'!$AM$3:$AM$5,'Utility Functions'!$AN$3:$AN$5)","v":0},{"$f":"valuePL(V28,'Utility Functions'!$AO$3:$AO$5,'Utility Functions'!$AP$3:$AP$5)","v":0.5},{"$f":"valuePL(W28,'Utility Functions'!$AQ$3:$AQ$6,'Utility Functions'!$AR$3:$AR$6)","v":0.75},{"$f":"valuePL(X28,'Utility Functions'!$AS$3:$AS$6,'Utility Functions'!$AT$3:$AT$6)","v":1},{"$f":"valuePL(Y28,'Utility Functions'!$AU$3:$AU$6,'Utility Functions'!$AV$3:$AV$6)","v":0.2},{"$f":"valuePL(Z28,'Utility Functions'!$AW$3:$AW$5,'Utility Functions'!$AX$3:$AX$5)","v":0},{"$f":"valuePL(AA28,'Utility Functions'!$AY$3:$AY$6,'Utility Functions'!$AZ$3:$AZ$6)","v":0},{"$f":"valuePL(AB28,'Utility Functions'!$BA$3:$BA$5,'Utility Functions'!$BB$3:$BB$5)","v":0},{"$f":"valuePL(AC28,'Utility Functions'!$BC$3:$BC$5,'Utility Functions'!$BD$3:$BD$5)","v":0},9.0147596715374529,null,9.0147596715374547,1.464759671537454,1.1000000000000001,0,4,2.4500000000000002]
[28,{"$f":"valueE(B29,'Utility Functions'!$B$3,'Utility Functions'!$B$4,'Utility Functions'!$B$5,'Utility Functions'!$B$6)","v":0.4511890475224023},{"$f":"valueE(C29,'Utility Functions'!$D$3,'Utility Functions'!$D$4,'Utility Functions'!$D$5,'Utility Functions'!$D$6)","v":0.46475967153745396},{"$f":"valuePL(D29,'Utility Functions'!$E$3:$E$5,'Utility Functions'!$F$3:$F$5)","v":1},{"$f":"valuePL(E29,'Utility Functions'!$G$3:$G$5,'Utility Functions'!$H$3:$H$5)","v":0},{"$f":"valuePL(F29,'Utility Functions'!$I$3:$I$4,'Utility Functions'!$J$3:$J$5)","v":1},{"$f":"valueE(G29,'Utility Functions'!$L$3,'Utility Functions'!$L$4,'Utility Functions'!$L$5,'Utility Functions'!$L$6)","v":0},{"$f":"valueE(H29,'Utility Functions'!$N$3,'Utility Functions'!$N$4,'Utility Functions'!$N$5,'Utility Functions'!$N$6)","v":0},{"$f":"valuePL(I29,'Utility Functions'!$O$3:$O$6,'Utility Functions'!$P$3:$P$6)","v":0},{"$f":"valuePL(J29,'Utility Functions'!$Q$3:$Q$6,'Utility Functions'!$R$3:$R$6)","v":0},{"$f":"valuePL(K29,'Utility Functions'!$S$3:$S$7,'Utility Functions'!$T$3:$T$7)","v":0},{"$f":"valueE(L29,'Utility Functions'!$V$3,'Utility Functions'!$V$4,'Utility Functions'!$V$5,'Utility Functions'!$V$6)","v":0.33333333333333331},{"$f":"valuePL(M29,'Utility Functions'!$W$3:$W$6,'Utility Functions'!$X$3:$X$6)","v":0.1},{"$f":"valueE(N29,'Utility Functions'!$Z$3,'Utility Functions'!$Z$4,'Utility Functions'!$Z$5,'Utility Functions'!$Z$6)","v":0},{"$f":"valuePL(O29,'Utility Functions'!$AA$3:$AA$5,'Utility Functions'!$AB$3:$AB$5)","v":0},{"$f":"valuePL(P29,'Utility Functions'!$AC$3:$AC$7,'Utility Functions'!$AD$3:$AD$7)","v":1},{"$f":"valuePL(Q29,'Utility Functions'!$AE$3:$AE$6,'Utility Functions'!$AF$3:$AF$6)","v":0},{"$f":"valuePL(R29,'Utility Functions'!$AG$3:$AG$6,'Utility Functions'!$AH$3:$AH$6)","v":1},{"$f":"valuePL(S29,'Utility Functions'!$AI$3:$AI$6,'Utility Functions'!$AJ$3:$AJ$6)","v":1},{"$f":"valuePL(T29,'Utility Functions'!$AK$3:$AK$8,'Utility Functions'!$AL$3:$AL$8)","v":0.8},{"$f":"valuePL(U29,'Utility Functions'!$AM$3:$AM$5,'Utility Functions'!$AN$3:$AN$5)","v":0},{"$f":"valuePL(V29,'Utility Functions'!$AO$3:$AO$5,'Utility Functions'!$AP$3:$AP$5)","v":1},{"$f":"valuePL(W29,'Utility Functions'!$AQ$3:$AQ$6,'Utility Functions'!$AR$3:$AR$6)","v":1},{"$f":"valuePL(X29,'Utility Functions'!$AS$3:$AS$6,'Utility Functions'!$AT$3:$AT$6)","v":1},{"$f":"valuePL(Y29,'Utility Functions'!$AU$3:$AU$6,'Utility Functions'!$AV$3:$AV$6)","v":0.2},{"$f":"valuePL(Z29,'Utility Functions'!$AW$3:$AW$5,'Utility Functions'!$AX$3:$AX$5)","v":0},{"$f":"valuePL(AA29,'Utility Functions'!$AY$3:$AY$6,'Utility Functions'!$AZ$3:$AZ$6)","v":0.89999999999999991},{"$f":"valuePL(AB29,'Utility Functions'!$BA$3:$BA$5,'Utility Functions'!$BB$3:$BB$5)","v":1},{"$f":"valuePL(AC29,'Utility Functions'!$BC$3:$BC$5,'Utility Functions'!$BD$3:$BD$5)","v":0.25},12.499282052393189,null,12.499282052393189,2.9159487190598563,0.43333333333333335,0,3.8,5.35]
[29,{"$f":"valueE(B30,'Utility Functions'!$B$3,'Utility Functions'!$B$4,'Utility Functions'!$B$5,'Utility Functions'!$B$6)","v":0.83470237647280454},{"$f":"valueE(C30,'Utility Functions'!$D$3,'Utility Functions'!$D$4,'Utility Functions'!$D$5,'Utility Functions'!$D$6)","v":0.71352759724260828},{"$f":"valuePL(D30,'Utility Functions'!$E$3:$E$5,'Utility Functions'!$F$3:$F$5)","v":1},{"$f":"valuePL(E30,'Utility Functions'!$G$3:$G$5,'Utility Functions'!$H$3:$H$5)","v":0.5},{"$f":"valuePL(F30,'Utility Functions'!$I$3:$I$4,'Utility Functions'!$J$3:$J$5)","v":0},{"$f":"valueE(G30,'Utility Functions'!$L$3,'Utility Functions'!$L$4,'Utility Functions'!$L$5,'Utility Functions'!$L$6)","v":0},{"$f":"valueE(H30,'Utility Functions'!$N$3,'Utility Functions'!$N$4,'Utility Functions'!$N$5,'Utility Functions'!$N$6)","v":0},{"$f":"valuePL(I30,'Utility Functions'!$O$3:$O$6,'Utility Functions'!$P$3:$P$6)","v":0.06},{"$f":"valuePL(J30,'Utility Functions'!$Q$3:$Q$6,'Utility Functions'!$R$3:$R$6)","v":0.67272727272727273},{"$f":"valuePL(K30,'Utility Functions'!$S$3:$S$7,'Utility Functions'!$T$3:$T$7)","v":0},{"$f":"valueE(L30,'Utility Functions'!$V$3,'Utility Functions'!$V$4,'Utility Functions'!$V$5,'Utility Functions'!$V$6)","v":1},{"$f":"valuePL(M30,'Utility Functions'!$W$3:$W$6,'Utility Functions'!$X$3:$X$6)","v":0.67272727272727273},{"$f":"valueE(N30,'Utility Functions'!$Z$3,'Utility Functions'!$Z$4,'Utility Functions'!$Z$5,'Utility Functions'!$Z$6)","v":0},{"$f":"valuePL(O30,'Utility Functions'!$AA$3:$AA$5,'Utility Functions'!$AB$3:$AB$5)","v":0},{"$f":"valuePL(P30,'Utility Functions'!$AC$3:$AC$7,'Utility Functions'!$AD$3:$AD$7)","v":0.25},{"$f":"valuePL(Q30,'Utility Functions'!$AE$3:$AE$6,'Utility Functions'!$AF$3:$AF$6)","v":0},{"$f":"valuePL(R30,'Utility Functions'!$AG$3:$AG$6,'Utility Functions'!$AH$3:$AH$6)","v":1},{"$f":"valuePL(S30,'Utility Functions'!$AI$3:$AI$6,'Utility Functions'!$AJ$3:$AJ$6)","v":1},{"$f":"valuePL(T30,'Utility Functions'!$AK$3:$AK$8,'Utility Functions'!$AL$3:$AL$8)","v":0.8},{"$f":"valuePL(U30,'Utility Functions'!$AM$3:$AM$5,'Utility Functions'!$AN$3:$AN$5)","v":0},{"$f":"valuePL(V30,'Utility Functions'!$AO$3:$AO$5,'Utility Functions'!$AP$3:$AP$5)","v":1},{"$f":"valuePL(W30,'Utility Functions'!$AQ$3:$AQ$6,'Utility Functions'!$AR$3:$AR$6)","v":0.2},{"$f":"valuePL(X30,'Utility Functions'!$AS$3:$AS$6,'Utility Functions'!$AT$3:$AT$6)","v":0},{"$f":"valuePL(Y30,'Utility Functions'!$AU$3:$AU$6,'Utility Functions'!$AV$3:$AV$6)","v":0.8},{"$f":"valuePL(Z30,'Utility Functions'!$AW$3:$AW$5,'Utility Functions'!$AX$3:$AX$5)","v":0.5},{"$f":"valuePL(AA30,'Utility Functions'!$AY$3:$AY$6,'Utility Functions'!$AZ$3:$AZ$6)","v":0.2},{"$f":"valuePL(AB30,'Utility Functions'!$BA$3:$BA$5,'Utility Functions'!$BB$3:$BB$5)","v":0.25},{"$f":"valuePL(AC30,'Utility Functions'!$BC$3:$BC$5,'Utility Functions'!$BD$3:$BD$5)","v":1},12.453684519169958,null,12.453684519169958,3.0482299737154128,2.4054545454545453,0,3.05,3.95]
[30,{"$f":"valueE(B31,'Utility Functions'!$B$3,'Utility Functions'!$B$4,'Utility Functions'!$B$5,'Utility Functions'!$B$6)","v":0.99864114504770318},{"$f":"valueE(C31,'Utility Functions'!$D$3,'Utility Functions'!$D$4,'Utility Functions'!$D$5,'Utility Functions'!$D$6)","v":0.84744836833951609},{"$f":"valuePL(D31,'Utility Functions'!$E$3:$E$5,'Utility Functions'!$F$3:$F$5)","v":1},{"$f":"valuePL(E31,'Utility Functions'!$G$3:$G$5,'Utility Functions'!$H$3:$H$5)","v":0},{"$f":"valuePL(F31,'Utility Functions'!$I$3:$I$4,'Utility Functions'!$J$3:$J$5)","v":0},{"$f":"valueE(G31,'Utility Functions'!$L$3,'Utility Functions'!$L$4,'Utility Functions'!$L$5,'Utility Functions'!$L$6)","v":0},{"$f":"valueE(H31,'Utility Functions'!$N$3,'Utility Functions'!$N$4,'Utility Functions'!$N$5,'Utility Functions'!$N$6)","v":0},{"$f":"valuePL(I31,'Utility Functions'!$O$3:$O$6,'Utility Functions'!$P$3:$P$6)","v":0},{"$f":"valuePL(J31,'Utility Functions'!$Q$3:$Q$6,'Utility Functions'!$R$3:$R$6)","v":0},{"$f":"valuePL(K31,'Utility Functions'!$S$3:$S$7,'Utility Functions'!$T$3:$T$7)","v":0},{"$f":"valueE(L31,'Utility Functions'!$V$3,'Utility Functions'!$V$4,'Utility Functions'!$V$5,'Utility Functions'!$V$6)","v":0.33333333333333331},{"$f":"valuePL(M31,'Utility Functions'!$W$3:$W$6,'Utility Functions'!$X$3:$X$6)","v":0.04},{"$f":"valueE(N31,'Utility Functions'!$Z$3,'Utility Functions'!$Z$4,'Utility Functions'!$Z$5,'Utility Functions'!$Z$6)","v":0},{"$f":"valuePL(O31,'Utility Functions'!$AA$3:$AA$5,'Utility Functions'!$AB$3:$AB$5)","v":0},{"$f":"valuePL(P31,'Utility Functions'!$AC$3:$AC$7,'Utility Functions'!$AD$3:$AD$7)","v":0},{"$f":"valuePL(Q31,'Utility Functions'!$AE$3:$AE$6,'Utility Functions'!$AF$3:$AF$6)","v":0},{"$f":"valuePL(R31,'Utility Functions'!$AG$3:$AG$6,'Utility Functions'!$AH$3:$AH$6)","v":0.2},{"$f":"valuePL(S31,'Utility Functions'!$AI$3:$AI$6,'Utility Functions'!$AJ$3:$AJ$6)","v":0.33},{"$f":"valuePL(T31,'Utility Functions'!$AK$3:$AK$8,'Utility Functions'!$AL$3:$AL$8)","v":0},{"$f":"valuePL(U31,'Utility Functions'!$AM$3:$AM$5,'Utility Functions'!$AN$3:$AN$5)","v":0},{"$f":"valuePL(V31,'Utility Functions'!$AO$3:$AO$5,'Utility Functions'!$AP$3:$AP$5)","v":0},{"$f":"valuePL(W31,'Utility Functions'!$AQ$3:$AQ$6,'Utility Functions'!$AR$3:$AR$6)","v":1},{"$f":"valuePL(X31,'Utility Functions'!$AS$3:$AS$6,'Utility Functions'!$AT$3:$AT$6)","v":0.2},{"$f":"valuePL(Y31,'Utility Functions'!$AU$3:$AU$6,'Utility Functions'!$AV$3:$AV$6)","v":0.8},{"$f":"valuePL(Z31,'Utility Functions'!$AW$3:$AW$5,'Utility Functions'!$AX$3:$AX$5)","v":0},{"$f":"valuePL(AA31,'Utility Functions'!$AY$3:$AY$6,'Utility Functions'!$AZ$3:$AZ$6)","v":0.89999999999999991},{"$f":"valuePL(AB31,'Utility Functions'!$BA$3:$BA$5,'Utility Functions'!$BB$3:$BB$5)","v":1},{"$f":"valuePL(AC31,'Utility Functions'!$BC$3:$BC$5,'Utility Functions'!$BD$3:$BD$5)","v":0},7.6494228467205527,null,7.6494228467205527,2.846089513387219,0.37333333333333329,0,0.53,3.9]
[31,{"$f":"valueE(B32,'Utility Functions'!$B$3,'Utility Functions'!$B$4,'Utility Functions'!$B$5,'Utility Functions'!$B$6)","v":0.55067187023002029},{"$f":"valueE(C32,'Utility Functions'!$D$3,'Utility Functions'!$D$4,'Utility Functions'!$D$5,'Utility Functions'!$D$6)","v":0.84744836833951609},{"$f":"valuePL(D32,'Utility Functions'!$E$3:$E$5,'Utility Functions'!$F$3:$F$5)","v":0.5},{"$f":"valuePL(E32,'Utility Functions'!$G$3:$G$5,'Utility Functions'!$H$3:$H$5)","v":0},{"$f":"valuePL(F32,'Utility Functions'!$I$3:$I$4,'Utility Functions'!$J$3:$J$5)","v":0},{"$f":"valueE(G32,'Utility Functions'!$L$3,'Utility Functions'!$L$4,'Utility Functions'!$L$5,'Utility Functions'!$L$6)","v":0},{"$f":"valueE(H32,'Utility Functions'!$N$3,'Utility Functions'!$N$4,'Utility Functions'!$N$5,'Utility Functions'!$N$6)","v":0},{"$f":"valuePL(I32,'Utility Functions'!$O$3:$O$6,'Utility Functions'!$P$3:$P$6)","v":0.75454545454545452},{"$f":"valuePL(J32,'Utility Functions'!$Q$3:$Q$6,'Utility Functions'!$R$3:$R$6)","v":0.08},{"$f":"valuePL(K32,'Utility Functions'!$S$3:$S$7,'Utility Functions'!$T$3:$T$7)","v":0},{"$f":"valueE(L32,'Utility Functions'!$V$3,'Utility Functions'!$V$4,'Utility Functions'!$V$5,'Utility Functions'!$V$6)","v":0.33333333333333331},{"$f":"valuePL(M32,'Utility Functions'!$W$3:$W$6,'Utility Functions'!$X$3:$X$6)","v":0.08},{"$f":"valueE(N32,'Utility Functions'!$Z$3,'Utility Functions'!$Z$4,'Utility Functions'!$Z$5,'Utility Functions'!$Z$6)","v":0},{"$f":"valuePL(O32,'Utility Functions'!$AA$3:$AA$5,'Utility Functions'!$AB$3:$AB$5)","v":0},{"$f":"valuePL(P32,'Utility Functions'!$AC$3:$AC$7,'Utility Functions'!$AD$3:$AD$7)","v":0.5},{"$f":"valuePL(Q32,'Utility Functions'!$AE$3:$AE$6,'Utility Functions'!$AF$3:$AF$6)","v":0},{"$f":"valuePL(R32,'Utility Functions'!$AG$3:$AG$6,'Utility Functions'!$AH$3:$AH$6)","v":1},{"$f":"valuePL(S32,'Utility Functions'!$AI$3:$AI$6,'Utility Functions'!$AJ$3:$AJ$6)","v":0.66},{"$f":"valuePL(T32,'Utility Functions'!$AK$3:$AK$8,'Utility Functions'!$AL$3:$AL$8)","v":0.6},{"$f":"valuePL(U32,'Utility Functions'!$AM$3:$AM$5,'Utility Functions'!$AN$3:$AN$5)","v":0},{"$f":"valuePL(V32,'Utility Functions'!$AO$3:$AO$5,'Utility Functions'!$AP$3:$AP$5)","v":0.5},{"$f":"valuePL(W32,'Utility Functions'!$AQ$3:$AQ$6,'Utility Functions'!$AR$3:$AR$6)","v":0},{"$f":"valuePL(X32,'Utility Functions'!$AS$3:$AS$6,'Utility Functions'!$AT$3:$AT$6)","v":0.2},{"$f":"valuePL(Y32,'Utility Functions'!$AU$3:$AU$6,'Utility Functions'!$AV$3:$AV$6)","v":0.2},{"$f":"valuePL(Z32,'Utility Functions'!$AW$3:$AW$5,'Utility Functions'!$AX$3:$AX$5)","v":1},{"$f":"valuePL(AA32,'Utility Functions'!$AY$3:$AY$6,'Utility Functions'!$AZ$3:$AZ$6)","v":0.89999999999999991},{"$f":"valuePL(AB32,'Utility Functions'!$BA$3:$BA$5,'Utility Functions'!$BB$3:$BB$5)","v":0.25},{"$f":"valuePL(AC32,'Utility Functions'!$BC$3:$BC$5,'Utility Functions'!$BD$3:$BD$5)","v":0.25},9.2059990264483247,null,9.2059990264483247,1.8981202385695364,1.2478787878787878,0,2.7600000000000002,3.3]
[32,{"$f":"valueE(B33,'Utility Functions'!$B$3,'Utility Functions'!$B$4,'Utility Functions'!$B$5,'Utility Functions'!$B$6)","v":0.63212151658375171},{"$f":"valueE(C33,'Utility Functions'!$D$3,'Utility Functions'!$D$4,'Utility Functions'!$D$5,'Utility Functions'!$D$6)","v":0.26839655623815994},{"$f":"valuePL(D33,'Utility Functions'!$E$3:$E$5,'Utility Functions'!$F$3:$F$5)","v":1},{"$f":"valuePL(E33,'Utility Functions'!$G$3:$G$5,'Utility Functions'!$H$3:$H$5)","v":1},{"$f":"valuePL(F33,'Utility Functions'!$I$3:$I$4,'Utility Functions'!$J$3:$J$5)","v":1},{"$f":"valueE(G33,'Utility Functions'!$L$3,'Utility Functions'!$L$4,'Utility Functions'!$L$5,'Utility Functions'!$L$6)","v":3.2258064516129031E-2},{"$f":"valueE(H33,'Utility Functions'!$N$3,'Utility Functions'!$N$4,'Utility Functions'!$N$5,'Utility Functions'!$N$6)","v":9.6774193548387094E-2},{"$f":"valuePL(I33,'Utility Functions'!$O$3:$O$6,'Utility Functions'!$P$3:$P$6)","v":0.34545454545454546},{"$f":"valuePL(J33,'Utility Functions'!$Q$3:$Q$6,'Utility Functions'!$R$3:$R$6)","v":1},{"$f":"valuePL(K33,'Utility Functions'!$S$3:$S$7,'Utility Functions'!$T$3:$T$7)","v":0.34545454545454546},{"$f":"valueE(L33,'Utility Functions'!$V$3,'Utility Functions'!$V$4,'Utility Functions'!$V$5,'Utility Functions'!$V$6)","v":1},{"$f":"valuePL(M33,'Utility Functions'!$W$3:$W$6,'Utility Functions'!$X$3:$X$6)","v":1},{"$f":"valueE(N33,'Utility Functions'!$Z$3,'Utility Functions'!$Z$4,'Utility Functions'!$Z$5,'Utility Functions'!$Z$6)","v":0},{"$f":"valuePL(O33,'Utility Functions'!$AA$3:$AA$5,'Utility Functions'!$AB$3:$AB$5)","v":0},{"$f":"valuePL(P33,'Utility Functions'!$AC$3:$AC$7,'Utility Functions'!$AD$3:$AD$7)","v":0.5},{"$f":"valuePL(Q33,'Utility Functions'!$AE$3:$AE$6,'Utility Functions'!$AF$3:$AF$6)","v":1},{"$f":"valuePL(R33,'Utility Functions'!$AG$3:$AG$6,'Utility Functions'!$AH$3:$AH$6)","v":1},{"$f":"valuePL(S33,'Utility Functions'!$AI$3:$AI$6,'Utility Functions'!$AJ$3:$AJ$6)","v":0},{"$f":"valuePL(T33,'Utility Functions'!$AK$3:$AK$8,'Utility Functions'!$AL$3:$AL$8)","v":0.8},{"$f":"valuePL(U33,'Utility Functions'!$AM$3:$AM$5,'Utility Functions'!$AN$3:$AN$5)","v":0},{"$f":"valuePL(V33,'Utility Functions'!$AO$3:$AO$5,'Utility Functions'!$AP$3:$AP$5)","v":0},{"$f":"valuePL(W33,'Utility Functions'!$AQ$3:$AQ$6,'Utility Functions'!$AR$3:$AR$6)","v":0.75},{"$f":"valuePL(X33,'Utility Functions'!$AS$3:$AS$6,'Utility Functions'!$AT$3:$AT$6)","v":0.2},{"$f":"valuePL(Y33,'Utility Functions'!$AU$3:$AU$6,'Utility Functions'!$AV$3:$AV$6)","v":0.8},{"$f":"valuePL(Z33,'Utility Functions'!$AW$3:$AW$5,'Utility Functions'!$AX$3:$AX$5)","v":0.5},{"$f":"valuePL(AA33,'Utility Functions'!$AY$3:$AY$6,'Utility Functions'!$AZ$3:$AZ$6)","v":0},{"$f":"valuePL(AB33,'Utility Functions'!$BA$3:$BA$5,'Utility Functions'!$BB$3:$BB$5)","v":1},{"$f":"valuePL(AC33,'Utility Functions'!$BC$3:$BC$5,'Utility Functions'!$BD$3:$BD$5)","v":0.25},14.52045942179552,null,14.520459421795518,3.9005180728219115,3.8199413489736074,0,3.3,3.5]
[33,{"$f":"valueE(B34,'Utility Functions'!$B$3,'Utility Functions'!$B$4,'Utility Functions'!$B$5,'Utility Functions'!$B$6)","v":0.93919136038504192},{"$f":"valueE(C34,'Utility Functions'!$D$3,'Utility Functions'!$D$4,'Utility Functions'!$D$5,'Utility Functions'!$D$6)","v":0.84744836833951609},{"$f":"valuePL(D34,'Utility Functions'!$E$3:$E$5,'Utility Functions'!$F$3:$F$5)","v":1},{"$f":"valuePL(E34,'Utility Functions'!$G$3:$G$5,'Utility Functions'!$H$3:$H$5)","v":0.5},{"$f":"valuePL(F34,'Utility Functions'!$I$3:$I$4,'Utility Functions'!$J$3:$J$5)","v":0},{"$f":"valueE(G34,'Utility Functions'!$L$3,'Utility Functions'!$L$4,'Utility Functions'!$L$5,'Utility Functions'!$L$6)","v":0},{"$f":"valueE(H34,'Utility Functions'!$N$3,'Utility Functions'!$N$4,'Utility Functions'!$N$5,'Utility Functions'!$N$6)","v":0},{"$f":"valuePL(I34,'Utility Functions'!$O$3:$O$6,'Utility Functions'!$P$3:$P$6)","v":0},{"$f":"valuePL(J34,'Utility Functions'!$Q$3:$Q$6,'Utility Functions'!$R$3:$R$6)","v":0},{"$f":"valuePL(K34,'Utility Functions'!$S$3:$S$7,'Utility Functions'!$T$3:$T$7)","v":0},{"$f":"valueE(L34,'Utility Functions'!$V$3,'Utility Functions'!$V$4,'Utility Functions'!$V$5,'Utility Functions'!$V$6)","v":0.5},{"$f":"valuePL(M34,'Utility Functions'!$W$3:$W$6,'Utility Functions'!$X$3:$X$6)","v":0},{"$f":"valueE(N34,'Utility Functions'!$Z$3,'Utility Functions'!$Z$4,'Utility Functions'!$Z$5,'Utility Functions'!$Z$6)","v":0},{"$f":"valuePL(O34,'Utility Functions'!$AA$3:$AA$5,'Utility Functions'!$AB$3:$AB$5)","v":0},{"$f":"valuePL(P34,'Utility Functions'!$AC$3:$AC$7,'Utility Functions'!$AD$3:$AD$7)","v":0.5},{"$f":"valuePL(Q34,'Utility Functions'!$AE$3:$AE$6,'Utility Functions'!$AF$3:$AF$6)","v":0},{"$f":"valuePL(R34,'Utility Functions'!$AG$3:$AG$6,'Utility Functions'!$AH$3:$AH$6)","v":1},{"$f":"valuePL(S34,'Utility Functions'!$AI$3:$AI$6,'Utility Functions'!$AJ$3:$AJ$6)","v":0.66},{"$f":"valuePL(T34,'Utility Functions'!$AK$3:$AK$8,'Utility Functions'!$AL$3:$AL$8)","v":0},{"$f":"valuePL(U34,'Utility Functions'!$AM$3:$AM$5,'Utility Functions'!$AN$3:$AN$5)","v":0},{"$f":"valuePL(V34,'Utility Functions'!$AO$3:$AO$5,'Utility Functions'!$AP$3:$AP$5)","v":0.5},{"$f":"valuePL(W34,'Utility Functions'!$AQ$3:$AQ$6,'Utility Functions'!$AR$3:$AR$6)","v":1},{"$f":"valuePL(X34,'Utility Functions'!$AS$3:$AS$6,'Utility Functions'!$AT$3:$AT$6)","v":0},{"$f":"valuePL(Y34,'Utility Functions'!$AU$3:$AU$6,'Utility Functions'!$AV$3:$AV$6)","v":0.8},{"$f":"valuePL(Z34,'Utility Functions'!$AW$3:$AW$5,'Utility Functions'!$AX$3:$AX$5)","v":1},{"$f":"valuePL(AA34,'Utility Functions'!$AY$3:$AY$6,'Utility Functions'!$AZ$3:$AZ$6)","v":1},{"$f":"valuePL(AB34,'Utility Functions'!$BA$3:$BA$5,'Utility Functions'!$BB$3:$BB$5)","v":0},{"$f":"valuePL(AC34,'Utility Functions'!$BC$3:$BC$5,'Utility Functions'!$BD$3:$BD$5)","v":0},10.246639728724558,null,10.246639728724558,3.2866397287245581,0.5,0,2.16,4.3]
[34,{"$f":"valueE(B35,'Utility Functions'!$B$3,'Utility Functions'!$B$4,'Utility Functions'!$B$5,'Utility Functions'!$B$6)","v":0},{"$f":"valueE(C35,'Utility Functions'!$D$3,'Utility Functions'!$D$4,'Utility Functions'!$D$5,'Utility Functions'!$D$6)","v":0},{"$f":"valuePL(D35,'Utility Functions'!$E$3:$E$5,'Utility Functions'!$F$3:$F$5)","v":0},{"$f":"valuePL(E35,'Utility Functions'!$G$3:$G$5,'Utility Functions'!$H$3:$H$5)","v":0},{"$f":"valuePL(F35,'Utility Functions'!$I$3:$I$4,'Utility Functions'!$J$3:$J$5)","v":0},{"$f":"valueE(G35,'Utility Functions'!$L$3,'Utility Functions'!$L$4,'Utility Functions'!$L$5,'Utility Functions'!$L$6)","v":0},{"$f":"valueE(H35,'Utility Functions'!$N$3,'Utility Functions'!$N$4,'Utility Functions'!$N$5,'Utility Functions'!$N$6)","v":1.1385199240986717E-2},{"$f":"valuePL(I35,'Utility Functions'!$O$3:$O$6,'Utility Functions'!$P$3:$P$6)","v":1},{"$f":"valuePL(J35,'Utility Functions'!$Q$3:$Q$6,'Utility Functions'!$R$3:$R$6)","v":0.91818181818181821},{"$f":"valuePL(K35,'Utility Functions'!$S$3:$S$7,'Utility Functions'!$T$3:$T$7)","v":1},{"$f":"valueE(L35,'Utility Functions'!$V$3,'Utility Functions'!$V$4,'Utility Functions'!$V$5,'Utility Functions'!$V$6)","v":1},{"$f":"valuePL(M35,'Utility Functions'!$W$3:$W$6,'Utility Functions'!$X$3:$X$6)","v":0.91818181818181821},{"$f":"valueE(N35,'Utility Functions'!$Z$3,'Utility Functions'!$Z$4,'Utility Functions'!$Z$5,'Utility Functions'!$Z$6)","v":0},{"$f":"valuePL(O35,'Utility Functions'!$AA$3:$AA$5,'Utility Functions'!$AB$3:$AB$5)","v":0},{"$f":"valuePL(P35,'Utility Functions'!$AC$3:$AC$7,'Utility Functions'!$AD$3:$AD$7)","v":0.5},{"$f":"valuePL(Q35,'Utility Functions'!$AE$3:$AE$6,'Utility Functions'!$AF$3:$AF$6)","v":0},{"$f":"valuePL(R35,'Utility Functions'!$AG$3:$AG$6,'Utility Functions'!$AH$3:$AH$6)","v":1},{"$f":"valuePL(S35,'Utility Functions'!$AI$3:$AI$6,'Utility Functions'!$AJ$3:$AJ$6)","v":1},{"$f":"valuePL(T35,'Utility Functions'!$AK$3:$AK$8,'Utility Functions'!$AL$3:$AL$8)","v":0.8},{"$f":"valuePL(U35,'Utility Functions'!$AM$3:$AM$5,'Utility Functions'!$AN$3:$AN$5)","v":0},{"$f":"valuePL(V35,'Utility Functions'!$AO$3:$AO$5,'Utility Functions'!$AP$3:$AP$5)","v":1},{"$f":"valuePL(W35,'Utility Functions'!$AQ$3:$AQ$6,'Utility Functions'!$AR$3:$AR$6)","v":1},{"$f":"valuePL(X35,'Utility Functions'!$AS$3:$AS$6,'Utility Functions'!$AT$3:$AT$6)","v":1},{"$f":"valuePL(Y35,'Utility Functions'!$AU$3:$AU$6,'Utility Functions'!$AV$3:$AV$6)","v":0},{"$f":"valuePL(Z35,'Utility Functions'!$AW$3:$AW$5,'Utility Functions'!$AX$3:$AX$5)","v":1},{"$f":"valuePL(AA35,'Utility Functions'!$AY$3:$AY$6,'Utility Functions'!$AZ$3:$AZ$6)","v":0.89999999999999991},{"$f":"valuePL(AB35,'Utility Functions'!$BA$3:$BA$5,'Utility Functions'!$BB$3:$BB$5)","v":0.25},{"$f":"valuePL(AC35,'Utility Functions'!$BC$3:$BC$5,'Utility Functions'!$BD$3:$BD$5)","v":0},13.297748835604624,null,13.297748835604624,0,4.847748835604623,0,3.3,5.15]
[35,{"$f":"valueE(B36,'Utility Functions'!$B$3,'Utility Functions'!$B$4,'Utility Functions'!$B$5,'Utility Functions'!$B$6)","v":0.79810469124896843},{"$f":"valueE(C36,'Utility Functions'!$D$3,'Utility Functions'!$D$4,'Utility Functions'!$D$5,'Utility Functions'!$D$6)","v":0.60939983135101949},{"$f":"valuePL(D36,'Utility Functions'!$E$3:$E$5,'Utility Functions'!$F$3:$F$5)","v":0.5},{"$f":"valuePL(E36,'Utility Functions'!$G$3:$G$5,'Utility Functions'!$H$3:$H$5)","v":0.5},{"$f":"valuePL(F36,'Utility Functions'!$I$3:$I$4,'Utility Functions'!$J$3:$J$5)","v":1},{"$f":"valueE(G36,'Utility Functions'!$L$3,'Utility Functions'!$L$4,'Utility Functions'!$L$5,'Utility Functions'!$L$6)","v":0},{"$f":"valueE(H36,'Utility Functions'!$N$3,'Utility Functions'!$N$4,'Utility Functions'!$N$5,'Utility Functions'!$N$6)","v":0},{"$f":"valuePL(I36,'Utility Functions'!$O$3:$O$6,'Utility Functions'!$P$3:$P$6)","v":0},{"$f":"valuePL(J36,'Utility Functions'!$Q$3:$Q$6,'Utility Functions'!$R$3:$R$6)","v":0},{"$f":"valuePL(K36,'Utility Functions'!$S$3:$S$7,'Utility Functions'!$T$3:$T$7)","v":1},{"$f":"valueE(L36,'Utility Functions'!$V$3,'Utility Functions'!$V$4,'Utility Functions'!$V$5,'Utility Functions'!$V$6)","v":0.66666666666666663},{"$f":"valuePL(M36,'Utility Functions'!$W$3:$W$6,'Utility Functions'!$X$3:$X$6)","v":0.1},{"$f":"valueE(N36,'Utility Functions'!$Z$3,'Utility Functions'!$Z$4,'Utility Functions'!$Z$5,'Utility Functions'!$Z$6)","v":1},{"$f":"valuePL(O36,'Utility Functions'!$AA$3:$AA$5,'Utility Functions'!$AB$3:$AB$5)","v":0},{"$f":"valuePL(P36,'Utility Functions'!$AC$3:$AC$7,'Utility Functions'!$AD$3:$AD$7)","v":0},{"$f":"valuePL(Q36,'Utility Functions'!$AE$3:$AE$6,'Utility Functions'!$AF$3:$AF$6)","v":0},{"$f":"valuePL(R36,'Utility Functions'!$AG$3:$AG$6,'Utility Functions'!$AH$3:$AH$6)","v":1},{"$f":"valuePL(S36,'Utility Functions'!$AI$3:$AI$6,'Utility Functions'!$AJ$3:$AJ$6)","v":1},{"$f":"valuePL(T36,'Utility Functions'!$AK$3:$AK$8,'Utility Functions'!$AL$3:$AL$8)","v":0.6},{"$f":"valuePL(U36,'Utility Functions'!$AM$3:$AM$5,'Utility Functions'!$AN$3:$AN$5)","v":0},{"$f":"valuePL(V36,'Utility Functions'!$AO$3:$AO$5,'Utility Functions'!$AP$3:$AP$5)","v":1},{"$f":"valuePL(W36,'Utility Functions'!$AQ$3:$AQ$6,'Utility Functions'!$AR$3:$AR$6)","v":0.75},{"$f":"valuePL(X36,'Utility Functions'!$AS$3:$AS$6,'Utility Functions'!$AT$3:$AT$6)","v":0},{"$f":"valuePL(Y36,'Utility Functions'!$AU$3:$AU$6,'Utility Functions'!$AV$3:$AV$6)","v":0.2},{"$f":"valuePL(Z36,'Utility Functions'!$AW$3:$AW$5,'Utility Functions'!$AX$3:$AX$5)","v":1},{"$f":"valuePL(AA36,'Utility Functions'!$AY$3:$AY$6,'Utility Functions'!$AZ$3:$AZ$6)","v":0},{"$f":"valuePL(AB36,'Utility Functions'!$BA$3:$BA$5,'Utility Functions'!$BB$3:$BB$5)","v":0.25},{"$f":"valuePL(AC36,'Utility Functions'!$BC$3:$BC$5,'Utility Functions'!$BD$3:$BD$5)","v":0.25},12.224171189266654,null,12.224171189266656,3.407504522599988,1.7666666666666666,1,2.6,3.45]
["Unweighted",{"$f":"SUMPRODUCT(B46:B80,$B$85:$B$119)","v":2.7372671342513},{"$f":"SUMPRODUCT(C46:C80,$B$85:$B$119)","v":2.3042965680300518},{"$f":"SUMPRODUCT(D46:D80,$B$85:$B$119)","v":1.5},2,1,3.2258064516129031E-2,0.10815939278937381,2.541818181818182,2.5090909090909088,3.541818181818182,4.166666666666667,2.6090909090909089,2.375,0.5,1.25,0,5,4.66,1.8000000000000003,1,4.5,2.95,2.2000000000000002,3,4.5,3.6999999999999997,0.5,1.5,null,null,"Unweighted",{"$f":"SUMPRODUCT(AG46:AG80,$B$85:$B$119)","v":9.5415637022813513},{"$f":"SUMPRODUCT(AH46:AH80,$B$85:$B$119)","v":15.50890230579035},2.875,13.709999999999999,22.849999999999998]
["Weighted",{"$f":"B$81*Sens_EP!I$5","v":4.9322743333450929E-2},{"$f":"C$81*Sens_EP!J$5","v":3.9250886301662742E-2},{"$f":"D$81*Sens_EP!K$5","v":2.5876047309108113E-2},{"$f":"E$81*Sens_EP!L$5","v":3.3613125426535904E-2},{"$f":"F$81*Sens_EP!M$5","v":2.1799074326715923E-2},{"$f":"G$81*Sens_EP!N$5","v":2.7209234238062964E-4},{"$f":"H$81*Sens_EP!O$5","v":9.1230961857034646E-4},{"$f":"I$81*Sens_EP!P$5","v":3.6393964800204438E-2},{"$f":"J$81*Sens_EP!Q$5","v":3.5007478164135734E-2},{"$f":"K$81*Sens_EP!R$5","v":4.3537877839733029E-2},{"$f":"L$81*Sens_EP!S$5","v":5.2497414814061436E-2},{"$f":"M$81*Sens_EP!T$5","v":2.4821556519634785E-2},{"$f":"N$81*Sens_EP!U$5","v":0.296875},{"$f":"O$81*Sens_EP!V$5","v":0.1875},{"$f":"P$81*Sens_EP!W$5","v":2.8080568114283819E-2},{"$f":"Q$81*Sens_EP!X$5","v":0},{"$f":"R$81*Sens_EP!Y$5","v":0.14172384394893534},{"$f":"S$81*Sens_EP!Z$5","v":0.1156883204751183},{"$f":"T$81*Sens_EP!AA$5","v":3.2526123529237817E-2},{"$f":"U$81*Sens_EP!AB$5","v":1.7895662620445913E-2},{"$f":"V$81*Sens_EP!AC$5","v":0.13923503130996978},{"$f":"W$81*Sens_EP!AD$5","v":6.5825853406242418E-2},{"$f":"X$81*Sens_EP!AE$5","v":5.2499270567981926E-2},{"$f":"Y$81*Sens_EP!AF$5","v":8.8962862427762954E-2},{"$f":"Z$81*Sens_EP!AG$5","v":0.11562627788766557},{"$f":"AA$81*Sens_EP!AH$5","v":7.366513541991139E-2},{"$f":"AB$81*Sens_EP!AI$5","v":1.0557193649210943E-2},{"$f":"AC$81*Sens_EP!AJ$5","v":2.9535971165644007E-2},null,null,"Weighted for SA",{"$f":"AG81*#REF!","v":{"$error":"#REF!"}},{"$f":"AH81*#REF!","v":{"$error":"#REF!"}},{"$f":"AI81*#REF!","v":{"$error":"#REF!"}},{"$f":"AJ81*#REF!","v":{"$error":"#REF!"}},{"$f":"AK81*#REF!","v":{"$error":"#REF!"}}]
[]
[null,"Decision variable","Benefit","Cost"]
[{"$f":"A2","v":1},0,{"$f":"AD46","v":17.117643866192076},{"$f":"AD2","v":700000}]
[2,0,{"$f":"AD47","v":12.641625800575998},{"$f":"AD3","v":5400000}]
[3,0,11.563541444302563,250000]
[4,0,9.2460291931089209,150000]
[5,0,9.5663279251355373,220000]
[6,0,5.9008471271383875,110000]
[7,1,15.54287399641135,1000000]
[8,0,14.227364688589191,5000000]
[9,0,11.893773577166716,25000]
[10,0,9.01,900000]
[11,1,13.174032258064516,1500000]
[12,0,9.4195802436719873,100000]
[13,0,7.5245670174228056,250000]
[14,0,10.338706637075108,500000]
[15,0,15.150477261414375,800000]
[16,0,15.119696969696969,2000000]
[17,0,10.876550515651747,500000]
[18,0,10.178462998102468,300000]
[19,0,9.3165012474871283,750000]
[20,0,15.091255033092194,1500000]
[21,0,9.5500000000000007,900000]
[22,0,9.471742567994939,750000]
[23,0,9.5321507448123199,1000000]
[24,0,9.4968811881212041,150000]
[25,0,13.870607417804099,250000]
[26,0,11.064076562960208,500000]
[27,0,9.0147596715374529,1200000]
[28,0,12.499282052393189,500000]
[29,0,12.453684519169958,2000000]
[30,0,7.6494228467205527,250000]
[31,0,9.2059990264483247,650000]
[32,0,14.52045942179552,200000]
[33,1,10.246639728724558,400000]
[34,1,13.297748835604624,900000]
[35,1,12.224171189266654,900000]
[null,{"$f":"SUM(B85:B119)","v":5},{"$f":"SUMPRODUCT(C85:C119,B85:B119)","v":64.485466008071697},{"$f":"SUMPRODUCT(B85:B119,D85:D119)","v":4700000}]
[]
[null,null,"Cost constraint",15000000]

{"sheet":"Portfolio_D_ep","index":36,"n_rows":122,"n_cols":37,"rows_kept":122,"cut":false,"hidden":false,"merged":[]}
["Project","manage_species","manage_spatial","manage_uncertainty","manage_currentpractices","manage_adaptivemanagement","pop_a","pop_b","pop_spatialscope","pop_temporalscope","hab_quantity","hab_quality","hab_temporal","ecoprocess_spp","ecoprocess_uncertainty","datasharing","broaderimpacts","exisitingpriorities","partners","leverage","alignment","objhyp","response","targettaxa","surveydesign","stats","datamanagement","budget","timeline","cost"]
[1,9,6.25,2,2,0,186,1054,75,5,0,2,0,0,0,4,0,2,3,0,0,2,3,3,3,2,3,2,2,700000]
[2,3,28.2,1,0,0,0,0,0,0,0,2,0,4,1,0,0,3,3,0,0,2,3,3,3,2,3,2,2,5400000]
[3,8,28.2,2,0,0,0,0,0,0,0,2,0,5,1,0,2,0,0,0,1,2,3,3,3,2,1,2,2,250000]
[4,1,6.25,2,0,0,0,0,0,0,0,2,0,4,1,0,1,3,3,4,0,1,3,3,1,0,0,2,1,150000]
[5,4,3.1,2,0,0,0,0,50,2,0,2,0,0,0,0,1,3,3,4,1,0,3,3,2,0,0,2,1,220000]
[6,10,6.2E-2,2,0,0,0,0,10,2,0,2,0,0,0,0,1,0,3,3,0,0,0,3,0,0,0,2,1,110000]
[7,52,18.8,0,2,0,0,0,85,12,85,8,12,8,1,0,0,3,3,0,0,2,0,1,3,2,2,0,2,1000000]
[8,3,18.8,2,1,1,0,0,14,14,14,8,14,0,0,0,3,1,3,0,0,2,3,3,3,2,0,1,1,5000000]
[9,9,15.6,2,1,0,70,140,0,0,0,2,0,0,0,3,0,3,2,1,0,2,3,3,1,2,1,1,2,25000]
[10,0,0,0,0,0,0,0,0,0,0,2,0,6,2,1,2,3,2,2,0,0,2,3,3,1,1,0,2,900000]
[11,0,0,0,0,0,6,102,52,15,52,8,15,3,1,1,0,3,3,2,2,2,1,3,3,1,2,0,1,1500000]
[12,2,15.6,2,1,0,0,0,0,0,0,2,0,0,0,0,1,3,3,3,0,1,1,3,1,2,1,2,0,100000]
[13,0,0,0,0,0,0,12,39,2,39,8,2,7,1,1,0,3,3,0,0,1,0,1,0,2,1,1,1,250000]
[14,6,15.6,1,1,0,0,0,0,0,0,2,0,6,1,1,0,3,3,0,0,1,1,3,3,1,2,1,1,500000]
[15,23,12.5,2,1,1,0,0,23,3,23,8,3,1,2,2,0,2,3,3,2,0,3,1,1,2,3,2,1,800000]
[16,0,0,0,0,0,0,0,100,15,100,7,15,0,0,3,0,3,3,5,0,2,2,2,1,2,3,2,2,2000000]
[17,2,15.6,2,1,1,58,290,0,0,0,8,3,0,0,0,0,3,2,0,0,2,3,1,0,1,0,2,1,500000]
[18,0,0,0,0,0,0,30,0,0,0,2,0,8,1,1,3,3,3,5,1,2,2,1,2,1,2,1,0,300000]
[19,8,3.125,1,2,0,0,0,0,0,0,2,0,8,2,0,0,2,3,0,0,1,1,3,2,0,1,0,1,750000]
[20,9,15.6,1,2,0,0,435,76,10,76,6,10,8,2,1,0,3,3,3,2,1,0,0,1,2,1,0,1,1500000]
[21,0,0,0,0,0,0,0,0,0,0,2,0,8,2,0,1,3,3,5,1,0,2,3,1,0,3,1,2,900000]
[22,0,0,0,0,0,16,64,0,0,0,2,0,1,2,4,2,2,3,5,0,1,2,1,0,2,1,2,1,750000]
[23,9,18.8,2,0,0,0,0,0,0,0,2,0,0,0,3,0,3,3,5,0,2,1,2,1,1,1,0,1,1000000]
[24,5,6.25,2,0,0,0,0,0,0,0,2,0,0,0,0,0,3,3,5,0,0,3,1,3,2,1,0,2,150000]
[25,9,18.8,2,0,0,176,308,0,0,0,2,0,8,1,2,2,3,3,0,0,2,1,3,2,1,1,2,2,250000]
[26,17,18.8,2,1,0,0,0,0,0,0,2,0,0,0,3,0,3,3,4,0,2,1,0,2,0,1,2,2,500000]
[27,0,6.25,2,0,0,0,0,0,0,80,2,5,0,0,2,2,3,3,5,0,1,2,3,1,0,0,0,0,1200000]
[28,3,6.25,2,0,1,0,0,0,0,0,4,5,0,0,4,0,3,3,4,0,2,3,3,1,0,2,2,1,500000]
[29,9,12.5,2,1,0,0,0,15,12,15,8,12,0,0,1,0,3,3,4,0,2,1,0,2,1,1,1,2,2000000]
[30,33,18.8,2,0,0,0,0,0,0,0,4,2,0,0,0,0,1,1,0,0,0,3,1,2,0,2,2,0,250000]
[31,4,18.8,1,0,0,0,0,65,4,0,4,4,0,0,2,0,3,2,3,0,1,0,1,1,2,2,1,1,650000]
[32,5,3.125,2,2,1,6,102,40,16,40,8,16,0,0,2,3,3,0,4,0,0,2,1,2,1,0,2,1,200000]
[33,14,18.8,2,1,0,0,0,0,0,0,5,0,0,0,2,0,3,2,0,0,1,3,0,2,2,3,0,0,400000]
[34,0,0,0,0,0,0,12,100,15,100,8,15,0,0,2,0,3,3,4,0,2,3,3,0,2,2,1,0,900000]
[35,8,9.4,1,1,1,0,0,0,0,100,6,5,8,0,0,0,3,3,3,0,2,2,0,1,2,0,1,1,900000]
["CV",{"$f":"_xlfn.STDEV.S(B2:B36)/AVERAGE(B2:B36)","v":1.383842854444886},{"$f":"_xlfn.STDEV.S(C2:C36)/AVERAGE(C2:C36)","v":0.84395823753626376},{"$f":"_xlfn.STDEV.S(D2:D36)/AVERAGE(D2:D36)","v":0.65948586466528381},{"$f":"_xlfn.STDEV.S(E2:E36)/AVERAGE(E2:E36)","v":1.2933654230908831},2.2305806858480666,2.9881459898804135,2.7250501152884543,1.5394659205075842,1.5790297611729722,1.6828143944790142,0.63288342730791625,1.4346340567392073,1.2744250477591585,1.2909944487358058,1.043011114951035,1.4910544805781871,0.32582327651393111,0.30721159062514791,0.8219511329380369,2.1760730956581078,0.64975875258290616,0.58618247649425104,0.61083323417736113,0.63333947951472869,0.68629571860885286,0.76505300516434493,0.69428102652373402,0.60312027652595823]
["sd",{"$f":"_xlfn.STDEV.S(B2:B36)","v":10.477667326511279}]
["mean",{"$f":"AVERAGE(B2:B36)","v":7.5714285714285712}]
[null,{"$f":"B1","v":"manage_species"},{"$f":"C1","v":"manage_spatial"},"manage_uncertainty","manage_currentpractices","manage_adaptivemanagement","pop_a","pop_b","pop_spatialscope","pop_temporalscope","hab_quantity","hab_quality","hab_temporal","ecoprocess_spp","ecoprocess_uncertainty","datasharing","broaderimpacts","exisitingpriorities","partners","leverage","alignment","objhyp","response","targettaxa","surveydesign","stats","datamanagement","budget","timeline"]
[null,"Metric 1","Metric 2","Metric 3","Metric 4","Metric 5","Metric 6a","Metric 6b","Metric 7","Metric 8","Metric 9","Metric 10","Metric 11","Metric 12","Metric 13","Metric 14","Metric 15","Metric 16","Metric 17","Metric 18","Metric 19","Metric 20","Metric 21","Metric 22","Metric 23","Metric 24","Metric 25","Metric 26","Metric 27"]
["Weights",0.03,0.03,0.03,0.03,0.04,1.4999999999999999E-2,1.4999999999999999E-2,0.03,0.02,0.02,0.02,0.02,0.03,0.09,0.04,0.04,0.05,0.05,0.03,0.03,0.05,0.04,0.04,0.05,0.05,0.04,0.04,0.03]
[]
[null,"Unweighted"]
["Project",null,null,null,null,null,null,null,null,null,null,null,null,null,null,null,null,null,null,null,null,null,null,null,null,null,null,null,null,"Unweighted total",null,"Unweighted total","management","status","ecol_proc","integration","rigor"]
[{"$f":"A2","v":1},{"$f":"valueE(B2,'Utility Functions'!$B$3,'Utility Functions'!$B$4,'Utility Functions'!$B$5,'Utility Functions'!$B$6)","v":0.83470237647280454},{"$f":"valueE(C2,'Utility Functions'!$D$3,'Utility Functions'!$D$4,'Utility Functions'!$D$5,'Utility Functions'!$D$6)","v":0.46475967153745396},{"$f":"valuePL(D2,'Utility Functions'!$E$3:$E$5,'Utility Functions'!$F$3:$F$5)","v":1},{"$f":"valuePL(E2,'Utility Functions'!$G$3:$G$5,'Utility Functions'!$H$3:$H$5)","v":1},{"$f":"valuePL(F2,'Utility Functions'!$I$3:$I$4,'Utility Functions'!$J$3:$J$5)","v":0},{"$f":"valueE(G2,'Utility Functions'!$L$3,'Utility Functions'!$L$4,'Utility Functions'!$L$5,'Utility Functions'!$L$6)","v":1},{"$f":"valueE(H2,'Utility Functions'!$N$3,'Utility Functions'!$N$4,'Utility Functions'!$N$5,'Utility Functions'!$N$6)","v":1},{"$f":"valuePL(I2,'Utility Functions'!$O$3:$O$6,'Utility Functions'!$P$3:$P$6)","v":0.91818181818181821},{"$f":"valuePL(J2,'Utility Functions'!$Q$3:$Q$6,'Utility Functions'!$R$3:$R$6)","v":0.1},{"$f":"valuePL(K2,'Utility Functions'!$S$3:$S$7,'Utility Functions'!$T$3:$T$7)","v":0},{"$f":"valueE(L2,'Utility Functions'!$V$3,'Utility Functions'!$V$4,'Utility Functions'!$V$5,'Utility Functions'!$V$6)","v":0},{"$f":"valuePL(M2,'Utility Functions'!$W$3:$W$6,'Utility Functions'!$X$3:$X$6)","v":0},{"$f":"valueE(N2,'Utility Functions'!$Z$3,'Utility Functions'!$Z$4,'Utility Functions'!$Z$5,'Utility Functions'!$Z$6)","v":0},{"$f":"valuePL(O2,'Utility Functions'!$AA$3:$AA$5,'Utility Functions'!$AB$3:$AB$5)","v":0},{"$f":"valuePL(P2,'Utility Functions'!$AC$3:$AC$7,'Utility Functions'!$AD$3:$AD$7)","v":1},{"$f":"valuePL(Q2,'Utility Functions'!$AE$3:$AE$6,'Utility Functions'!$AF$3:$AF$6)","v":0},{"$f":"valuePL(R2,'Utility Functions'!$AG$3:$AG$6,'Utility Functions'!$AH$3:$AH$6)","v":0.8},{"$f":"valuePL(S2,'Utility Functions'!$AI$3:$AI$6,'Utility Functions'!$AJ$3:$AJ$6)","v":1},{"$f":"valuePL(T2,'Utility Functions'!$AK$3:$AK$8,'Utility Functions'!$AL$3:$AL$8)","v":0},{"$f":"valuePL(U2,'Utility Functions'!$AM$3:$AM$5,'Utility Functions'!$AN$3:$AN$5)","v":0},{"$f":"valuePL(V2,'Utility Functions'!$AO$3:$AO$5,'Utility Functions'!$AP$3:$AP$5)","v":1},{"$f":"valuePL(W2,'Utility Functions'!$AQ$3:$AQ$6,'Utility Functions'!$AR$3:$AR$6)","v":1},{"$f":"valuePL(X2,'Utility Functions'!$AS$3:$AS$6,'Utility Functions'!$AT$3:$AT$6)","v":1},{"$f":"valuePL(Y2,'Utility Functions'!$AU$3:$AU$6,'Utility Functions'!$AV$3:$AV$6)","v":1},{"$f":"valuePL(Z2,'Utility Functions'!$AW$3:$AW$5,'Utility Functions'!$AX$3:$AX$5)","v":1},{"$f":"valuePL(AA2,'Utility Functions'!$AY$3:$AY$6,'Utility Functions'!$AZ$3:$AZ$6)","v":1},{"$f":"valuePL(AB2,'Utility Functions'!$BA$3:$BA$5,'Utility Functions'!$BB$3:$BB$5)","v":1},{"$f":"valuePL(AC2,'Utility Functions'!$BC$3:$BC$5,'Utility Functions'!$BD$3:$BD$5)","v":1},{"$f":"SUM(B46:AC46)","v":17.117643866192076},null,{"$f":"SUM(AG46:AK46)","v":17.117643866192076},{"$f":"SUM(B46:F46)","v":3.2994620480102586},{"$f":"SUM(G46:M46)","v":3.0181818181818181},{"$f":"SUM(N46:O46)","v":0},{"$f":"SUM(P46:U46)","v":2.8},{"$f":"SUM(V46:AC46)","v":8}]
[2,{"$f":"valueE(B3,'Utility Functions'!$B$3,'Utility Functions'!$B$4,'Utility Functions'!$B$5,'Utility Functions'!$B$6)","v":0.4511890475224023},{"$f":"valueE(C3,'Utility Functions'!$D$3,'Utility Functions'!$D$4,'Utility Functions'!$D$5,'Utility Functions'!$D$6)","v":0.94043675305359531},{"$f":"valuePL(D3,'Utility Functions'!$E$3:$E$5,'Utility Functions'!$F$3:$F$5)","v":0.5},{"$f":"valuePL(E3,'Utility Functions'!$G$3:$G$5,'Utility Functions'!$H$3:$H$5)","v":0},{"$f":"valuePL(F3,'Utility Functions'!$I$3:$I$4,'Utility Functions'!$J$3:$J$5)","v":0},{"$f":"valueE(G3,'Utility Functions'!$L$3,'Utility Functions'!$L$4,'Utility Functions'!$L$5,'Utility Functions'!$L$6)","v":0},{"$f":"valueE(H3,'Utility Functions'!$N$3,'Utility Functions'!$N$4,'Utility Functions'!$N$5,'Utility Functions'!$N$6)","v":0},{"$f":"valuePL(I3,'Utility Functions'!$O$3:$O$6,'Utility Functions'!$P$3:$P$6)","v":0},{"$f":"valuePL(J3,'Utility Functions'!$Q$3:$Q$6,'Utility Functions'!$R$3:$R$6)","v":0},{"$f":"valuePL(K3,'Utility Functions'!$S$3:$S$7,'Utility Functions'!$T$3:$T$7)","v":0},{"$f":"valueE(L3,'Utility Functions'!$V$3,'Utility Functions'!$V$4,'Utility Functions'!$V$5,'Utility Functions'!$V$6)","v":0},{"$f":"valuePL(M3,'Utility Functions'!$W$3:$W$6,'Utility Functions'!$X$3:$X$6)","v":0},{"$f":"valueE(N3,'Utility Functions'!$Z$3,'Utility Functions'!$Z$4,'Utility Functions'!$Z$5,'Utility Functions'!$Z$6)","v":0.5},{"$f":"valuePL(O3,'Utility Functions'!$AA$3:$AA$5,'Utility Functions'!$AB$3:$AB$5)","v":0.25},{"$f":"valuePL(P3,'Utility Functions'!$AC$3:$AC$7,'Utility Functions'!$AD$3:$AD$7)","v":0},{"$f":"valuePL(Q3,'Utility Functions'!$AE$3:$AE$6,'Utility Functions'!$AF$3:$AF$6)","v":0},{"$f":"valuePL(R3,'Utility Functions'!$AG$3:$AG$6,'Utility Functions'!$AH$3:$AH$6)","v":1},{"$f":"valuePL(S3,'Utility Functions'!$AI$3:$AI$6,'Utility Functions'!$AJ$3:$AJ$6)","v":1},{"$f":"valuePL(T3,'Utility Functions'!$AK$3:$AK$8,'Utility Functions'!$AL$3:$AL$8)","v":0},{"$f":"valuePL(U3,'Utility Functions'!$AM$3:$AM$5,'Utility Functions'!$AN$3:$AN$5)","v":0},{"$f":"valuePL(V3,'Utility Functions'!$AO$3:$AO$5,'Utility Functions'!$AP$3:$AP$5)","v":1},{"$f":"valuePL(W3,'Utility Functions'!$AQ$3:$AQ$6,'Utility Functions'!$AR$3:$AR$6)","v":1},{"$f":"valuePL(X3,'Utility Functions'!$AS$3:$AS$6,'Utility Functions'!$AT$3:$AT$6)","v":1},{"$f":"valuePL(Y3,'Utility Functions'!$AU$3:$AU$6,'Utility Functions'!$AV$3:$AV$6)","v":1},{"$f":"valuePL(Z3,'Utility Functions'!$AW$3:$AW$5,'Utility Functions'!$AX$3:$AX$5)","v":1},{"$f":"valuePL(AA3,'Utility Functions'!$AY$3:$AY$6,'Utility Functions'!$AZ$3:$AZ$6)","v":1},{"$f":"valuePL(AB3,'Utility Functions'!$BA$3:$BA$5,'Utility Functions'!$BB$3:$BB$5)","v":1},{"$f":"valuePL(AC3,'Utility Functions'!$BC$3:$BC$5,'Utility Functions'!$BD$3:$BD$5)","v":1},{"$f":"SUM(B47:AC47)","v":12.641625800575998},null,{"$f":"SUM(AG47:AK47)","v":12.641625800575998},{"$f":"SUM(B47:F47)","v":1.8916258005759976},{"$f":"SUM(G47:M47)","v":0},{"$f":"SUM(N47:O47)","v":0.75},{"$f":"SUM(P47:U47)","v":2},{"$f":"SUM(V47:AC47)","v":8}]
[3,{"$f":"valueE(B4,'Utility Functions'!$B$3,'Utility Functions'!$B$4,'Utility Functions'!$B$5,'Utility Functions'!$B$6)","v":0.79810469124896843},{"$f":"valueE(C4,'Utility Functions'!$D$3,'Utility Functions'!$D$4,'Utility Functions'!$D$5,'Utility Functions'!$D$6)","v":0.94043675305359531},{"$f":"valuePL(D4,'Utility Functions'!$E$3:$E$5,'Utility Functions'!$F$3:$F$5)","v":1},{"$f":"valuePL(E4,'Utility Functions'!$G$3:$G$5,'Utility Functions'!$H$3:$H$5)","v":0},{"$f":"valuePL(F4,'Utility Functions'!$I$3:$I$4,'Utility Functions'!$J$3:$J$5)","v":0},{"$f":"valueE(G4,'Utility Functions'!$L$3,'Utility Functions'!$L$4,'Utility Functions'!$L$5,'Utility Functions'!$L$6)","v":0},{"$f":"valueE(H4,'Utility Functions'!$N$3,'Utility Functions'!$N$4,'Utility Functions'!$N$5,'Utility Functions'!$N$6)","v":0},{"$f":"valuePL(I4,'Utility Functions'!$O$3:$O$6,'Utility Functions'!$P$3:$P$6)","v":0},{"$f":"valuePL(J4,'Utility Functions'!$Q$3:$Q$6,'Utility Functions'!$R$3:$R$6)","v":0},{"$f":"valuePL(K4,'Utility Functions'!$S$3:$S$7,'Utility Functions'!$T$3:$T$7)","v":0},{"$f":"valueE(L4,'Utility Functions'!$V$3,'Utility Functions'!$V$4,'Utility Functions'!$V$5,'Utility Functions'!$V$6)","v":0},{"$f":"valuePL(M4,'Utility Functions'!$W$3:$W$6,'Utility Functions'!$X$3:$X$6)","v":0},{"$f":"valueE(N4,'Utility Functions'!$Z$3,'Utility Functions'!$Z$4,'Utility Functions'!$Z$5,'Utility Functions'!$Z$6)","v":0.625},{"$f":"valuePL(O4,'Utility Functions'!$AA$3:$AA$5,'Utility Functions'!$AB$3:$AB$5)","v":0.25},{"$f":"valuePL(P4,'Utility Functions'!$AC$3:$AC$7,'Utility Functions'!$AD$3:$AD$7)","v":0},{"$f":"valuePL(Q4,'Utility Functions'!$AE$3:$AE$6,'Utility Functions'!$AF$3:$AF$6)","v":0.5},{"$f":"valuePL(R4,'Utility Functions'!$AG$3:$AG$6,'Utility Functions'!$AH$3:$AH$6)","v":0},{"$f":"valuePL(S4,'Utility Functions'!$AI$3:$AI$6,'Utility Functions'!$AJ$3:$AJ$6)","v":0},{"$f":"valuePL(T4,'Utility Functions'!$AK$3:$AK$8,'Utility Functions'!$AL$3:$AL$8)","v":0},{"$f":"valuePL(U4,'Utility Functions'!$AM$3:$AM$5,'Utility Functions'!$AN$3:$AN$5)","v":0.25},{"$f":"valuePL(V4,'Utility Functions'!$AO$3:$AO$5,'Utility Functions'!$AP$3:$AP$5)","v":1},{"$f":"valuePL(W4,'Utility Functions'!$AQ$3:$AQ$6,'Utility Functions'!$AR$3:$AR$6)","v":1},{"$f":"valuePL(X4,'Utility Functions'!$AS$3:$AS$6,'Utility Functions'!$AT$3:$AT$6)","v":1},{"$f":"valuePL(Y4,'Utility Functions'!$AU$3:$AU$6,'Utility Functions'!$AV$3:$AV$6)","v":1},{"$f":"valuePL(Z4,'Utility Functions'!$AW$3:$AW$5,'Utility Functions'!$AX$3:$AX$5)","v":1},{"$f":"valuePL(AA4,'Utility Functions'!$AY$3:$AY$6,'Utility Functions'!$AZ$3:$AZ$6)","v":0.2},{"$f":"valuePL(AB4,'Utility Functions'!$BA$3:$BA$5,'Utility Functions'!$BB$3:$BB$5)","v":1},{"$f":"valuePL(AC4,'Utility Functions'!$BC$3:$BC$5,'Utility Functions'!$BD$3:$BD$5)","v":1},11.563541444302563,null,11.563541444302565,2.7385414443025637,0,0.875,0.75,7.2]
[4,{"$f":"valueE(B5,'Utility Functions'!$B$3,'Utility Functions'!$B$4,'Utility Functions'!$B$5,'Utility Functions'!$B$6)","v":0.1812695215714665},{"$f":"valueE(C5,'Utility Functions'!$D$3,'Utility Functions'!$D$4,'Utility Functions'!$D$5,'Utility Functions'!$D$6)","v":0.46475967153745396},{"$f":"valuePL(D5,'Utility Functions'!$E$3:$E$5,'Utility Functions'!$F$3:$F$5)","v":1},{"$f":"valuePL(E5,'Utility Functions'!$G$3:$G$5,'Utility Functions'!$H$3:$H$5)","v":0},{"$f":"valuePL(F5,'Utility Functions'!$I$3:$I$4,'Utility Functions'!$J$3:$J$5)","v":0},{"$f":"valueE(G5,'Utility Functions'!$L$3,'Utility Functions'!$L$4,'Utility Functions'!$L$5,'Utility Functions'!$L$6)","v":0},{"$f":"valueE(H5,'Utility Functions'!$N$3,'Utility Functions'!$N$4,'Utility Functions'!$N$5,'Utility Functions'!$N$6)","v":0},{"$f":"valuePL(I5,'Utility Functions'!$O$3:$O$6,'Utility Functions'!$P$3:$P$6)","v":0},{"$f":"valuePL(J5,'Utility Functions'!$Q$3:$Q$6,'Utility Functions'!$R$3:$R$6)","v":0},{"$f":"valuePL(K5,'Utility Functions'!$S$3:$S$7,'Utility Functions'!$T$3:$T$7)","v":0},{"$f":"valueE(L5,'Utility Functions'!$V$3,'Utility Functions'!$V$4,'Utility Functions'!$V$5,'Utility Functions'!$V$6)","v":0},{"$f":"valuePL(M5,'Utility Functions'!$W$3:$W$6,'Utility Functions'!$X$3:$X$6)","v":0},{"$f":"valueE(N5,'Utility Functions'!$Z$3,'Utility Functions'!$Z$4,'Utility Functions'!$Z$5,'Utility Functions'!$Z$6)","v":0.5},{"$f":"valuePL(O5,'Utility Functions'!$AA$3:$AA$5,'Utility Functions'!$AB$3:$AB$5)","v":0.25},{"$f":"valuePL(P5,'Utility Functions'!$AC$3:$AC$7,'Utility Functions'!$AD$3:$AD$7)","v":0},{"$f":"valuePL(Q5,'Utility Functions'!$AE$3:$AE$6,'Utility Functions'!$AF$3:$AF$6)","v":0.1},{"$f":"valuePL(R5,'Utility Functions'!$AG$3:$AG$6,'Utility Functions'!$AH$3:$AH$6)","v":1},{"$f":"valuePL(S5,'Utility Functions'!$AI$3:$AI$6,'Utility Functions'!$AJ$3:$AJ$6)","v":1},{"$f":"valuePL(T5,'Utility Functions'!$AK$3:$AK$8,'Utility Functions'!$AL$3:$AL$8)","v":0.8},{"$f":"valuePL(U5,'Utility Functions'!$AM$3:$AM$5,'Utility Functions'!$AN$3:$AN$5)","v":0},{"$f":"valuePL(V5,'Utility Functions'!$AO$3:$AO$5,'Utility Functions'!$AP$3:$AP$5)","v":0.5},{"$f":"valuePL(W5,'Utility Functions'!$AQ$3:$AQ$6,'Utility Functions'!$AR$3:$AR$6)","v":1},{"$f":"valuePL(X5,'Utility Functions'!$AS$3:$AS$6,'Utility Functions'!$AT$3:$AT$6)","v":1},{"$f":"valuePL(Y5,'Utility Functions'!$AU$3:$AU$6,'Utility Functions'!$AV$3:$AV$6)","v":0.2},{"$f":"valuePL(Z5,'Utility Functions'!$AW$3:$AW$5,'Utility Functions'!$AX$3:$AX$5)","v":0},{"$f":"valuePL(AA5,'Utility Functions'!$AY$3:$AY$6,'Utility Functions'!$AZ$3:$AZ$6)","v":0},{"$f":"valuePL(AB5,'Utility Functions'!$BA$3:$BA$5,'Utility Functions'!$BB$3:$BB$5)","v":1},{"$f":"valuePL(AC5,'Utility Functions'!$BC$3:$BC$5,'Utility Functions'!$BD$3:$BD$5)","v":0.25},9.2460291931089209,null,9.2460291931089209,1.6460291931089204,0,0.75,2.9000000000000004,3.95]
[5,{"$f":"valueE(B6,'Utility Functions'!$B$3,'Utility Functions'!$B$4,'Utility Functions'!$B$5,'Utility Functions'!$B$6)","v":0.55067187023002029},{"$f":"valueE(C6,'Utility Functions'!$D$3,'Utility Functions'!$D$4,'Utility Functions'!$D$5,'Utility Functions'!$D$6)","v":0.26656514581460788},{"$f":"valuePL(D6,'Utility Functions'!$E$3:$E$5,'Utility Functions'!$F$3:$F$5)","v":1},{"$f":"valuePL(E6,'Utility Functions'!$G$3:$G$5,'Utility Functions'!$H$3:$H$5)","v":0},{"$f":"valuePL(F6,'Utility Functions'!$I$3:$I$4,'Utility Functions'!$J$3:$J$5)","v":0},{"$f":"valueE(G6,'Utility Functions'!$L$3,'Utility Functions'!$L$4,'Utility Functions'!$L$5,'Utility Functions'!$L$6)","v":0},{"$f":"valueE(H6,'Utility Functions'!$N$3,'Utility Functions'!$N$4,'Utility Functions'!$N$5,'Utility Functions'!$N$6)","v":0},{"$f":"valuePL(I6,'Utility Functions'!$O$3:$O$6,'Utility Functions'!$P$3:$P$6)","v":0.50909090909090915},{"$f":"valuePL(J6,'Utility Functions'!$Q$3:$Q$6,'Utility Functions'!$R$3:$R$6)","v":0.04},{"$f":"valuePL(K6,'Utility Functions'!$S$3:$S$7,'Utility Functions'!$T$3:$T$7)","v":0},{"$f":"valueE(L6,'Utility Functions'!$V$3,'Utility Functions'!$V$4,'Utility Functions'!$V$5,'Utility Functions'!$V$6)","v":0},{"$f":"valuePL(M6,'Utility Functions'!$W$3:$W$6,'Utility Functions'!$X$3:$X$6)","v":0},{"$f":"valueE(N6,'Utility Functions'!$Z$3,'Utility Functions'!$Z$4,'Utility Functions'!$Z$5,'Utility Functions'!$Z$6)","v":0},{"$f":"valuePL(O6,'Utility Functions'!$AA$3:$AA$5,'Utility Functions'!$AB$3:$AB$5)","v":0},{"$f":"valuePL(P6,'Utility Functions'!$AC$3:$AC$7,'Utility Functions'!$AD$3:$AD$7)","v":0},{"$f":"valuePL(Q6,'Utility Functions'!$AE$3:$AE$6,'Utility Functions'!$AF$3:$AF$6)","v":0.1},{"$f":"valuePL(R6,'Utility Functions'!$AG$3:$AG$6,'Utility Functions'!$AH$3:$AH$6)","v":1},{"$f":"valuePL(S6,'Utility Functions'!$AI$3:$AI$6,'Utility Functions'!$AJ$3:$AJ$6)","v":1},{"$f":"valuePL(T6,'Utility Functions'!$AK$3:$AK$8,'Utility Functions'!$AL$3:$AL$8)","v":0.8},{"$f":"valuePL(U6,'Utility Functions'!$AM$3:$AM$5,'Utility Functions'!$AN$3:$AN$5)","v":0.25},{"$f":"valuePL(V6,'Utility Functions'!$AO$3:$AO$5,'Utility Functions'!$AP$3:$AP$5)","v":0},{"$f":"valuePL(W6,'Utility Functions'!$AQ$3:$AQ$6,'Utility Functions'!$AR$3:$AR$6)","v":1},{"$f":"valuePL(X6,'Utility Functions'!$AS$3:$AS$6,'Utility Functions'!$AT$3:$AT$6)","v":1},{"$f":"valuePL(Y6,'Utility Functions'!$AU$3:$AU$6,'Utility Functions'!$AV$3:$AV$6)","v":0.8},{"$f":"valuePL(Z6,'Utility Functions'!$AW$3:$AW$5,'Utility Functions'!$AX$3:$AX$5)","v":0},{"$f":"valuePL(AA6,'Utility Functions'!$AY$3:$AY$6,'Utility Functions'!$AZ$3:$AZ$6)","v":0},{"$f":"valuePL(AB6,'Utility Functions'!$BA$3:$BA$5,'Utility Functions'!$BB$3:$BB$5)","v":1},{"$f":"valuePL(AC6,'Utility Functions'!$BC$3:$BC$5,'Utility Functions'!$BD$3:$BD$5)","v":0.25},9.5663279251355373,null,9.5663279251355391,1.8172370160446283,0.54909090909090918,0,3.1500000000000004,4.05]
[6,{"$f":"valueE(B7,'Utility Functions'!$B$3,'Utility Functions'!$B$4,'Utility Functions'!$B$5,'Utility Functions'!$B$6)","v":0.86466602685702687},{"$f":"valueE(C7,'Utility Functions'!$D$3,'Utility Functions'!$D$4,'Utility Functions'!$D$5,'Utility Functions'!$D$6)","v":6.1811002813601471E-3},{"$f":"valuePL(D7,'Utility Functions'!$E$3:$E$5,'Utility Functions'!$F$3:$F$5)","v":1},{"$f":"valuePL(E7,'Utility Functions'!$G$3:$G$5,'Utility Functions'!$H$3:$H$5)","v":0},{"$f":"valuePL(F7,'Utility Functions'!$I$3:$I$4,'Utility Functions'!$J$3:$J$5)","v":0},{"$f":"valueE(G7,'Utility Functions'!$L$3,'Utility Functions'!$L$4,'Utility Functions'!$L$5,'Utility Functions'!$L$6)","v":0},{"$f":"valueE(H7,'Utility Functions'!$N$3,'Utility Functions'!$N$4,'Utility Functions'!$N$5,'Utility Functions'!$N$6)","v":0},{"$f":"valuePL(I7,'Utility Functions'!$O$3:$O$6,'Utility Functions'!$P$3:$P$6)","v":0.04},{"$f":"valuePL(J7,'Utility Functions'!$Q$3:$Q$6,'Utility Functions'!$R$3:$R$6)","v":0.04},{"$f":"valuePL(K7,'Utility Functions'!$S$3:$S$7,'Utility Functions'!$T$3:$T$7)","v":0},{"$f":"valueE(L7,'Utility Functions'!$V$3,'Utility Functions'!$V$4,'Utility Functions'!$V$5,'Utility Functions'!$V$6)","v":0},{"$f":"valuePL(M7,'Utility Functions'!$W$3:$W$6,'Utility Functions'!$X$3:$X$6)","v":0},{"$f":"valueE(N7,'Utility Functions'!$Z$3,'Utility Functions'!$Z$4,'Utility Functions'!$Z$5,'Utility Functions'!$Z$6)","v":0},{"$f":"valuePL(O7,'Utility Functions'!$AA$3:$AA$5,'Utility Functions'!$AB$3:$AB$5)","v":0},{"$f":"valuePL(P7,'Utility Functions'!$AC$3:$AC$7,'Utility Functions'!$AD$3:$AD$7)","v":0},{"$f":"valuePL(Q7,'Utility Functions'!$AE$3:$AE$6,'Utility Functions'!$AF$3:$AF$6)","v":0.1},{"$f":"valuePL(R7,'Utility Functions'!$AG$3:$AG$6,'Utility Functions'!$AH$3:$AH$6)","v":0},{"$f":"valuePL(S7,'Utility Functions'!$AI$3:$AI$6,'Utility Functions'!$AJ$3:$AJ$6)","v":1},{"$f":"valuePL(T7,'Utility Functions'!$AK$3:$AK$8,'Utility Functions'!$AL$3:$AL$8)","v":0.6},{"$f":"valuePL(U7,'Utility Functions'!$AM$3:$AM$5,'Utility Functions'!$AN$3:$AN$5)","v":0},{"$f":"valuePL(V7,'Utility Functions'!$AO$3:$AO$5,'Utility Functions'!$AP$3:$AP$5)","v":0},{"$f":"valuePL(W7,'Utility Functions'!$AQ$3:$AQ$6,'Utility Functions'!$AR$3:$AR$6)","v":0},{"$f":"valuePL(X7,'Utility Functions'!$AS$3:$AS$6,'Utility Functions'!$AT$3:$AT$6)","v":1},{"$f":"valuePL(Y7,'Utility Functions'!$AU$3:$AU$6,'Utility Functions'!$AV$3:$AV$6)","v":0},{"$f":"valuePL(Z7,'Utility Functions'!$AW$3:$AW$5,'Utility Functions'!$AX$3:$AX$5)","v":0},{"$f":"valuePL(AA7,'Utility Functions'!$AY$3:$AY$6,'Utility Functions'!$AZ$3:$AZ$6)","v":0},{"$f":"valuePL(AB7,'Utility Functions'!$BA$3:$BA$5,'Utility Functions'!$BB$3:$BB$5)","v":1},{"$f":"valuePL(AC7,'Utility Functions'!$BC$3:$BC$5,'Utility Functions'!$BD$3:$BD$5)","v":0.25},5.9008471271383875,null,5.9008471271383875,1.8708471271383869,0.08,0,1.7000000000000002,2.25]
[7,{"$f":"valueE(B8,'Utility Functions'!$B$3,'Utility Functions'!$B$4,'Utility Functions'!$B$5,'Utility Functions'!$B$6)","v":0.99997108261728973},{"$f":"valueE(C8,'Utility Functions'!$D$3,'Utility Functions'!$D$4,'Utility Functions'!$D$5,'Utility Functions'!$D$6)","v":0.84744836833951609},{"$f":"valuePL(D8,'Utility Functions'!$E$3:$E$5,'Utility Functions'!$F$3:$F$5)","v":0},{"$f":"valuePL(E8,'Utility Functions'!$G$3:$G$5,'Utility Functions'!$H$3:$H$5)","v":1},{"$f":"valuePL(F8,'Utility Functions'!$I$3:$I$4,'Utility Functions'!$J$3:$J$5)","v":0},{"$f":"valueE(G8,'Utility Functions'!$L$3,'Utility Functions'!$L$4,'Utility Functions'!$L$5,'Utility Functions'!$L$6)","v":0},{"$f":"valueE(H8,'Utility Functions'!$N$3,'Utility Functions'!$N$4,'Utility Functions'!$N$5,'Utility Functions'!$N$6)","v":0},{"$f":"valuePL(I8,'Utility Functions'!$O$3:$O$6,'Utility Functions'!$P$3:$P$6)","v":1},{"$f":"valuePL(J8,'Utility Functions'!$Q$3:$Q$6,'Utility Functions'!$R$3:$R$6)","v":0.67272727272727273},{"$f":"valuePL(K8,'Utility Functions'!$S$3:$S$7,'Utility Functions'!$T$3:$T$7)","v":1},{"$f":"valueE(L8,'Utility Functions'!$V$3,'Utility Functions'!$V$4,'Utility Functions'!$V$5,'Utility Functions'!$V$6)","v":1},{"$f":"valuePL(M8,'Utility Functions'!$W$3:$W$6,'Utility Functions'!$X$3:$X$6)","v":0.67272727272727273},{"$f":"valueE(N8,'Utility Functions'!$Z$3,'Utility Functions'!$Z$4,'Utility Functions'!$Z$5,'Utility Functions'!$Z$6)","v":1},{"$f":"valuePL(O8,'Utility Functions'!$AA$3:$AA$5,'Utility Functions'!$AB$3:$AB$5)","v":0.25},{"$f":"valuePL(P8,'Utility Functions'!$AC$3:$AC$7,'Utility Functions'!$AD$3:$AD$7)","v":0},{"$f":"valuePL(Q8,'Utility Functions'!$AE$3:$AE$6,'Utility Functions'!$AF$3:$AF$6)","v":0},{"$f":"valuePL(R8,'Utility Functions'!$AG$3:$AG$6,'Utility Functions'!$AH$3:$AH$6)","v":1},{"$f":"valuePL(S8,'Utility Functions'!$AI$3:$AI$6,'Utility Functions'!$AJ$3:$AJ$6)","v":1},{"$f":"valuePL(T8,'Utility Functions'!$AK$3:$AK$8,'Utility Functions'!$AL$3:$AL$8)","v":0},{"$f":"valuePL(U8,'Utility Functions'!$AM$3:$AM$5,'Utility Functions'!$AN$3:$AN$5)","v":0},{"$f":"valuePL(V8,'Utility Functions'!$AO$3:$AO$5,'Utility Functions'!$AP$3:$AP$5)","v":1},{"$f":"valuePL(W8,'Utility Functions'!$AQ$3:$AQ$6,'Utility Functions'!$AR$3:$AR$6)","v":0},{"$f":"valuePL(X8,'Utility Functions'!$AS$3:$AS$6,'Utility Functions'!$AT$3:$AT$6)","v":0.2},{"$f":"valuePL(Y8,'Utility Functions'!$AU$3:$AU$6,'Utility Functions'!$AV$3:$AV$6)","v":1},{"$f":"valuePL(Z8,'Utility Functions'!$AW$3:$AW$5,'Utility Functions'!$AX$3:$AX$5)","v":1},{"$f":"valuePL(AA8,'Utility Functions'!$AY$3:$AY$6,'Utility Functions'!$AZ$3:$AZ$6)","v":0.89999999999999991},{"$f":"valuePL(AB8,'Utility Functions'!$BA$3:$BA$5,'Utility Functions'!$BB$3:$BB$5)","v":0},{"$f":"valuePL(AC8,'Utility Functions'!$BC$3:$BC$5,'Utility Functions'!$BD$3:$BD$5)","v":1},15.54287399641135,null,15.54287399641135,2.8474194509568056,4.3454545454545457,1.25,2,5.0999999999999996]
[8,{"$f":"valueE(B9,'Utility Functions'!$B$3,'Utility Functions'!$B$4,'Utility Functions'!$B$5,'Utility Functions'!$B$6)","v":0.4511890475224023},{"$f":"valueE(C9,'Utility Functions'!$D$3,'Utility Functions'!$D$4,'Utility Functions'!$D$5,'Utility Functions'!$D$6)","v":0.84744836833951609},{"$f":"valuePL(D9,'Utility Functions'!$E$3:$E$5,'Utility Functions'!$F$3:$F$5)","v":1},{"$f":"valuePL(E9,'Utility Functions'!$G$3:$G$5,'Utility Functions'!$H$3:$H$5)","v":0.5},{"$f":"valuePL(F9,'Utility Functions'!$I$3:$I$4,'Utility Functions'!$J$3:$J$5)","v":1},{"$f":"valueE(G9,'Utility Functions'!$L$3,'Utility Functions'!$L$4,'Utility Functions'!$L$5,'Utility Functions'!$L$6)","v":0},{"$f":"valueE(H9,'Utility Functions'!$N$3,'Utility Functions'!$N$4,'Utility Functions'!$N$5,'Utility Functions'!$N$6)","v":0},{"$f":"valuePL(I9,'Utility Functions'!$O$3:$O$6,'Utility Functions'!$P$3:$P$6)","v":5.6000000000000008E-2},{"$f":"valuePL(J9,'Utility Functions'!$Q$3:$Q$6,'Utility Functions'!$R$3:$R$6)","v":0.83636363636363631},{"$f":"valuePL(K9,'Utility Functions'!$S$3:$S$7,'Utility Functions'!$T$3:$T$7)","v":0},{"$f":"valueE(L9,'Utility Functions'!$V$3,'Utility Functions'!$V$4,'Utility Functions'!$V$5,'Utility Functions'!$V$6)","v":1},{"$f":"valuePL(M9,'Utility Functions'!$W$3:$W$6,'Utility Functions'!$X$3:$X$6)","v":0.83636363636363631},{"$f":"valueE(N9,'Utility Functions'!$Z$3,'Utility Functions'!$Z$4,'Utility Functions'!$Z$5,'Utility Functions'!$Z$6)","v":0},{"$f":"valuePL(O9,'Utility Functions'!$AA$3:$AA$5,'Utility Functions'!$AB$3:$AB$5)","v":0},{"$f":"valuePL(P9,'Utility Functions'!$AC$3:$AC$7,'Utility Functions'!$AD$3:$AD$7)","v":0},{"$f":"valuePL(Q9,'Utility Functions'!$AE$3:$AE$6,'Utility Functions'!$AF$3:$AF$6)","v":1},{"$f":"valuePL(R9,'Utility Functions'!$AG$3:$AG$6,'Utility Functions'!$AH$3:$AH$6)","v":0.2},{"$f":"valuePL(S9,'Utility Functions'!$AI$3:$AI$6,'Utility Functions'!$AJ$3:$AJ$6)","v":1},{"$f":"valuePL(T9,'Utility Functions'!$AK$3:$AK$8,'Utility Functions'!$AL$3:$AL$8)","v":0},{"$f":"valuePL(U9,'Utility Functions'!$AM$3:$AM$5,'Utility Functions'!$AN$3:$AN$5)","v":0},{"$f":"valuePL(V9,'Utility Functions'!$AO$3:$AO$5,'Utility Functions'!$AP$3:$AP$5)","v":1},{"$f":"valuePL(W9,'Utility Functions'!$AQ$3:$AQ$6,'Utility Functions'!$AR$3:$AR$6)","v":1},{"$f":"valuePL(X9,'Utility Functions'!$AS$3:$AS$6,'Utility Functions'!$AT$3:$AT$6)","v":1},{"$f":"valuePL(Y9,'Utility Functions'!$AU$3:$AU$6,'Utility Functions'!$AV$3:$AV$6)","v":1},{"$f":"valuePL(Z9,'Utility Functions'!$AW$3:$AW$5,'Utility Functions'!$AX$3:$AX$5)","v":1},{"$f":"valuePL(AA9,'Utility Functions'!$AY$3:$AY$6,'Utility Functions'!$AZ$3:$AZ$6)","v":0},{"$f":"valuePL(AB9,'Utility Functions'!$BA$3:$BA$5,'Utility Functions'!$BB$3:$BB$5)","v":0.25},{"$f":"valuePL(AC9,'Utility Functions'!$BC$3:$BC$5,'Utility Functions'!$BD$3:$BD$5)","v":0.25},14.227364688589191,null,14.227364688589191,3.7986374158619185,2.7287272727272729,0,2.2000000000000002,5.5]
[9,{"$f":"valueE(B10,'Utility Functions'!$B$3,'Utility Functions'!$B$4,'Utility Functions'!$B$5,'Utility Functions'!$B$6)","v":0.83470237647280454},{"$f":"valueE(C10,'Utility Functions'!$D$3,'Utility Functions'!$D$4,'Utility Functions'!$D$5,'Utility Functions'!$D$6)","v":0.78989979019422951},{"$f":"valuePL(D10,'Utility Functions'!$E$3:$E$5,'Utility Functions'!$F$3:$F$5)","v":1},{"$f":"valuePL(E10,'Utility Functions'!$G$3:$G$5,'Utility Functions'!$H$3:$H$5)","v":0.5},{"$f":"valuePL(F10,'Utility Functions'!$I$3:$I$4,'Utility Functions'!$J$3:$J$5)","v":0},{"$f":"valueE(G10,'Utility Functions'!$L$3,'Utility Functions'!$L$4,'Utility Functions'!$L$5,'Utility Functions'!$L$6)","v":0.37634408602150538},{"$f":"valueE(H10,'Utility Functions'!$N$3,'Utility Functions'!$N$4,'Utility Functions'!$N$5,'Utility Functions'!$N$6)","v":0.13282732447817835},{"$f":"valuePL(I10,'Utility Functions'!$O$3:$O$6,'Utility Functions'!$P$3:$P$6)","v":0},{"$f":"valuePL(J10,'Utility Functions'!$Q$3:$Q$6,'Utility Functions'!$R$3:$R$6)","v":0},{"$f":"valuePL(K10,'Utility Functions'!$S$3:$S$7,'Utility Functions'!$T$3:$T$7)","v":0},{"$f":"valueE(L10,'Utility Functions'!$V$3,'Utility Functions'!$V$4,'Utility Functions'!$V$5,'Utility Functions'!$V$6)","v":0},{"$f":"valuePL(M10,'Utility Functions'!$W$3:$W$6,'Utility Functions'!$X$3:$X$6)","v":0},{"$f":"valueE(N10,'Utility Functions'!$Z$3,'Utility Functions'!$Z$4,'Utility Functions'!$Z$5,'Utility Functions'!$Z$6)","v":0},{"$f":"valuePL(O10,'Utility Functions'!$AA$3:$AA$5,'Utility Functions'!$AB$3:$AB$5)","v":0},{"$f":"valuePL(P10,'Utility Functions'!$AC$3:$AC$7,'Utility Functions'!$AD$3:$AD$7)","v":0.75},{"$f":"valuePL(Q10,'Utility Functions'!$AE$3:$AE$6,'Utility Functions'!$AF$3:$AF$6)","v":0},{"$f":"valuePL(R10,'Utility Functions'!$AG$3:$AG$6,'Utility Functions'!$AH$3:$AH$6)","v":1},{"$f":"valuePL(S10,'Utility Functions'!$AI$3:$AI$6,'Utility Functions'!$AJ$3:$AJ$6)","v":0.66},{"$f":"valuePL(T10,'Utility Functions'!$AK$3:$AK$8,'Utility Functions'!$AL$3:$AL$8)","v":0.2},{"$f":"valuePL(U10,'Utility Functions'!$AM$3:$AM$5,'Utility Functions'!$AN$3:$AN$5)","v":0},{"$f":"valuePL(V10,'Utility Functions'!$AO$3:$AO$5,'Utility Functions'!$AP$3:$AP$5)","v":1},{"$f":"valuePL(W10,'Utility Functions'!$AQ$3:$AQ$6,'Utility Functions'!$AR$3:$AR$6)","v":1},{"$f":"valuePL(X10,'Utility Functions'!$AS$3:$AS$6,'Utility Functions'!$AT$3:$AT$6)","v":1},{"$f":"valuePL(Y10,'Utility Functions'!$AU$3:$AU$6,'Utility Functions'!$AV$3:$AV$6)","v":0.2},{"$f":"valuePL(Z10,'Utility Functions'!$AW$3:$AW$5,'Utility Functions'!$AX$3:$AX$5)","v":1},{"$f":"valuePL(AA10,'Utility Functions'!$AY$3:$AY$6,'Utility Functions'!$AZ$3:$AZ$6)","v":0.2},{"$f":"valuePL(AB10,'Utility Functions'!$BA$3:$BA$5,'Utility Functions'!$BB$3:$BB$5)","v":0.25},{"$f":"valuePL(AC10,'Utility Functions'!$BC$3:$BC$5,'Utility Functions'!$BD$3:$BD$5)","v":1},11.893773577166716,null,11.893773577166719,3.1246021666670343,0.50917141049968373,0,2.6100000000000003,5.65]
[10,{"$f":"valueE(B11,'Utility Functions'!$B$3,'Utility Functions'!$B$4,'Utility Functions'!$B$5,'Utility Functions'!$B$6)","v":0},{"$f":"valueE(C11,'Utility Functions'!$D$3,'Utility Functions'!$D$4,'Utility Functions'!$D$5,'Utility Functions'!$D$6)","v":0},{"$f":"valuePL(D11,'Utility Functions'!$E$3:$E$5,'Utility Functions'!$F$3:$F$5)","v":0},{"$f":"valuePL(E11,'Utility Functions'!$G$3:$G$5,'Utility Functions'!$H$3:$H$5)","v":0},{"$f":"valuePL(F11,'Utility Functions'!$I$3:$I$4,'Utility Functions'!$J$3:$J$5)","v":0},{"$f":"valueE(G11,'Utility Functions'!$L$3,'Utility Functions'!$L$4,'Utility Functions'!$L$5,'Utility Functions'!$L$6)","v":0},{"$f":"valueE(H11,'Utility Functions'!$N$3,'Utility Functions'!$N$4,'Utility Functions'!$N$5,'Utility Functions'!$N$6)","v":0},{"$f":"valuePL(I11,'Utility Functions'!$O$3:$O$6,'Utility Functions'!$P$3:$P$6)","v":0},{"$f":"valuePL(J11,'Utility Functions'!$Q$3:$Q$6,'Utility Functions'!$R$3:$R$6)","v":0},{"$f":"valuePL(K11,'Utility Functions'!$S$3:$S$7,'Utility Functions'!$T$3:$T$7)","v":0},{"$f":"valueE(L11,'Utility Functions'!$V$3,'Utility Functions'!$V$4,'Utility Functions'!$V$5,'Utility Functions'!$V$6)","v":0},{"$f":"valuePL(M11,'Utility Functions'!$W$3:$W$6,'Utility Functions'!$X$3:$X$6)","v":0},{"$f":"valueE(N11,'Utility Functions'!$Z$3,'Utility Functions'!$Z$4,'Utility Functions'!$Z$5,'Utility Functions'!$Z$6)","v":0.75},{"$f":"valuePL(O11,'Utility Functions'!$AA$3:$AA$5,'Utility Functions'!$AB$3:$AB$5)","v":1},{"$f":"valuePL(P11,'Utility Functions'!$AC$3:$AC$7,'Utility Functions'!$AD$3:$AD$7)","v":0.25},{"$f":"valuePL(Q11,'Utility Functions'!$AE$3:$AE$6,'Utility Functions'!$AF$3:$AF$6)","v":0.5},{"$f":"valuePL(R11,'Utility Functions'!$AG$3:$AG$6,'Utility Functions'!$AH$3:$AH$6)","v":1},{"$f":"valuePL(S11,'Utility Functions'!$AI$3:$AI$6,'Utility Functions'!$AJ$3:$AJ$6)","v":0.66},{"$f":"valuePL(T11,'Utility Functions'!$AK$3:$AK$8,'Utility Functions'!$AL$3:$AL$8)","v":0.4},{"$f":"valuePL(U11,'Utility Functions'!$AM$3:$AM$5,'Utility Functions'!$AN$3:$AN$5)","v":0},{"$f":"valuePL(V11,'Utility Functions'!$AO$3:$AO$5,'Utility Functions'!$AP$3:$AP$5)","v":0},{"$f":"valuePL(W11,'Utility Functions'!$AQ$3:$AQ$6,'Utility Functions'!$AR$3:$AR$6)","v":0.75},{"$f":"valuePL(X11,'Utility Functions'!$AS$3:$AS$6,'Utility Functions'!$AT$3:$AT$6)","v":1},{"$f":"valuePL(Y11,'Utility Functions'!$AU$3:$AU$6,'Utility Functions'!$AV$3:$AV$6)","v":1},{"$f":"valuePL(Z11,'Utility Functions'!$AW$3:$AW$5,'Utility Functions'!$AX$3:$AX$5)","v":0.5},{"$f":"valuePL(AA11,'Utility Functions'!$AY$3:$AY$6,'Utility Functions'!$AZ$3:$AZ$6)","v":0.2},{"$f":"valuePL(AB11,'Utility Functions'!$BA$3:$BA$5,'Utility Functions'!$BB$3:$BB$5)","v":0},{"$f":"valuePL(AC11,'Utility Functions'!$BC$3:$BC$5,'Utility Functions'!$BD$3:$BD$5)","v":1},9.01,null,9.0100000000000016,0,0,1.75,2.81,4.45]
[11,{"$f":"valueE(B12,'Utility Functions'!$B$3,'Utility Functions'!$B$4,'Utility Functions'!$B$5,'Utility Functions'!$B$6)","v":0},{"$f":"valueE(C12,'Utility Functions'!$D$3,'Utility Functions'!$D$4,'Utility Functions'!$D$5,'Utility Functions'!$D$6)","v":0},{"$f":"valuePL(D12,'Utility Functions'!$E$3:$E$5,'Utility Functions'!$F$3:$F$5)","v":0},{"$f":"valuePL(E12,'Utility Functions'!$G$3:$G$5,'Utility Functions'!$H$3:$H$5)","v":0},{"$f":"valuePL(F12,'Utility Functions'!$I$3:$I$4,'Utility Functions'!$J$3:$J$5)","v":0},{"$f":"valueE(G12,'Utility Functions'!$L$3,'Utility Functions'!$L$4,'Utility Functions'!$L$5,'Utility Functions'!$L$6)","v":3.2258064516129031E-2},{"$f":"valueE(H12,'Utility Functions'!$N$3,'Utility Functions'!$N$4,'Utility Functions'!$N$5,'Utility Functions'!$N$6)","v":9.6774193548387094E-2},{"$f":"valuePL(I12,'Utility Functions'!$O$3:$O$6,'Utility Functions'!$P$3:$P$6)","v":0.54181818181818187},{"$f":"valuePL(J12,'Utility Functions'!$Q$3:$Q$6,'Utility Functions'!$R$3:$R$6)","v":0.91818181818181821},{"$f":"valuePL(K12,'Utility Functions'!$S$3:$S$7,'Utility Functions'!$T$3:$T$7)","v":0.54181818181818187},{"$f":"valueE(L12,'Utility Functions'!$V$3,'Utility Functions'!$V$4,'Utility Functions'!$V$5,'Utility Functions'!$V$6)","v":1},{"$f":"valuePL(M12,'Utility Functions'!$W$3:$W$6,'Utility Functions'!$X$3:$X$6)","v":0.91818181818181821},{"$f":"valueE(N12,'Utility Functions'!$Z$3,'Utility Functions'!$Z$4,'Utility Functions'!$Z$5,'Utility Functions'!$Z$6)","v":0.375},{"$f":"valuePL(O12,'Utility Functions'!$AA$3:$AA$5,'Utility Functions'!$AB$3:$AB$5)","v":0.25},{"$f":"valuePL(P12,'Utility Functions'!$AC$3:$AC$7,'Utility Functions'!$AD$3:$AD$7)","v":0.25},{"$f":"valuePL(Q12,'Utility Functions'!$AE$3:$AE$6,'Utility Functions'!$AF$3:$AF$6)","v":0},{"$f":"valuePL(R12,'Utility Functions'!$AG$3:$AG$6,'Utility Functions'!$AH$3:$AH$6)","v":1},{"$f":"valuePL(S12,'Utility Functions'!$AI$3:$AI$6,'Utility Functions'!$AJ$3:$AJ$6)","v":1},{"$f":"valuePL(T12,'Utility Functions'!$AK$3:$AK$8,'Utility Functions'!$AL$3:$AL$8)","v":0.4},{"$f":"valuePL(U12,'Utility Functions'!$AM$3:$AM$5,'Utility Functions'!$AN$3:$AN$5)","v":1},{"$f":"valuePL(V12,'Utility Functions'!$AO$3:$AO$5,'Utility Functions'!$AP$3:$AP$5)","v":1},{"$f":"valuePL(W12,'Utility Functions'!$AQ$3:$AQ$6,'Utility Functions'!$AR$3:$AR$6)","v":0.2},{"$f":"valuePL(X12,'Utility Functions'!$AS$3:$AS$6,'Utility Functions'!$AT$3:$AT$6)","v":1},{"$f":"valuePL(Y12,'Utility Functions'!$AU$3:$AU$6,'Utility Functions'!$AV$3:$AV$6)","v":1},{"$f":"valuePL(Z12,'Utility Functions'!$AW$3:$AW$5,'Utility Functions'!$AX$3:$AX$5)","v":0.5},{"$f":"valuePL(AA12,'Utility Functions'!$AY$3:$AY$6,'Utility Functions'!$AZ$3:$AZ$6)","v":0.89999999999999991},{"$f":"valuePL(AB12,'Utility Functions'!$BA$3:$BA$5,'Utility Functions'!$BB$3:$BB$5)","v":0},{"$f":"valuePL(AC12,'Utility Functions'!$BC$3:$BC$5,'Utility Functions'!$BD$3:$BD$5)","v":0.25},13.174032258064516,null,13.174032258064516,0,4.0490322580645159,0.625,3.65,4.8499999999999996]
[12,{"$f":"valueE(B13,'Utility Functions'!$B$3,'Utility Functions'!$B$4,'Utility Functions'!$B$5,'Utility Functions'!$B$6)","v":0.32968045347775865},{"$f":"valueE(C13,'Utility Functions'!$D$3,'Utility Functions'!$D$4,'Utility Functions'!$D$5,'Utility Functions'!$D$6)","v":0.78989979019422951},{"$f":"valuePL(D13,'Utility Functions'!$E$3:$E$5,'Utility Functions'!$F$3:$F$5)","v":1},{"$f":"valuePL(E13,'Utility Functions'!$G$3:$G$5,'Utility Functions'!$H$3:$H$5)","v":0.5},{"$f":"valuePL(F13,'Utility Functions'!$I$3:$I$4,'Utility Functions'!$J$3:$J$5)","v":0},{"$f":"valueE(G13,'Utility Functions'!$L$3,'Utility Functions'!$L$4,'Utility Functions'!$L$5,'Utility Functions'!$L$6)","v":0},{"$f":"valueE(H13,'Utility Functions'!$N$3,'Utility Functions'!$N$4,'Utility Functions'!$N$5,'Utility Functions'!$N$6)","v":0},{"$f":"valuePL(I13,'Utility Functions'!$O$3:$O$6,'Utility Functions'!$P$3:$P$6)","v":0},{"$f":"valuePL(J13,'Utility Functions'!$Q$3:$Q$6,'Utility Functions'!$R$3:$R$6)","v":0},{"$f":"valuePL(K13,'Utility Functions'!$S$3:$S$7,'Utility Functions'!$T$3:$T$7)","v":0},{"$f":"valueE(L13,'Utility Functions'!$V$3,'Utility Functions'!$V$4,'Utility Functions'!$V$5,'Utility Functions'!$V$6)","v":0},{"$f":"valuePL(M13,'Utility Functions'!$W$3:$W$6,'Utility Functions'!$X$3:$X$6)","v":0},{"$f":"valueE(N13,'Utility Functions'!$Z$3,'Utility Functions'!$Z$4,'Utility Functions'!$Z$5,'Utility Functions'!$Z$6)","v":0},{"$f":"valuePL(O13,'Utility Functions'!$AA$3:$AA$5,'Utility Functions'!$AB$3:$AB$5)","v":0},{"$f":"valuePL(P13,'Utility Functions'!$AC$3:$AC$7,'Utility Functions'!$AD$3:$AD$7)","v":0},{"$f":"valuePL(Q13,'Utility Functions'!$AE$3:$AE$6,'Utility Functions'!$AF$3:$AF$6)","v":0.1},{"$f":"valuePL(R13,'Utility Functions'!$AG$3:$AG$6,'Utility Functions'!$AH$3:$AH$6)","v":1},{"$f":"valuePL(S13,'Utility Functions'!$AI$3:$AI$6,'Utility Functions'!$AJ$3:$AJ$6)","v":1},{"$f":"valuePL(T13,'Utility Functions'!$AK$3:$AK$8,'Utility Functions'!$AL$3:$AL$8)","v":0.6},{"$f":"valuePL(U13,'Utility Functions'!$AM$3:$AM$5,'Utility Functions'!$AN$3:$AN$5)","v":0},{"$f":"valuePL(V13,'Utility Functions'!$AO$3:$AO$5,'Utility Functions'!$AP$3:$AP$5)","v":0.5},{"$f":"valuePL(W13,'Utility Functions'!$AQ$3:$AQ$6,'Utility Functions'!$AR$3:$AR$6)","v":0.2},{"$f":"valuePL(X13,'Utility Functions'!$AS$3:$AS$6,'Utility Functions'!$AT$3:$AT$6)","v":1},{"$f":"valuePL(Y13,'Utility Functions'!$AU$3:$AU$6,'Utility Functions'!$AV$3:$AV$6)","v":0.2},{"$f":"valuePL(Z13,'Utility Functions'!$AW$3:$AW$5,'Utility Functions'!$AX$3:$AX$5)","v":1},{"$f":"valuePL(AA13,'Utility Functions'!$AY$3:$AY$6,'Utility Functions'!$AZ$3:$AZ$6)","v":0.2},{"$f":"valuePL(AB13,'Utility Functions'!$BA$3:$BA$5,'Utility Functions'!$BB$3:$BB$5)","v":1},{"$f":"valuePL(AC13,'Utility Functions'!$BC$3:$BC$5,'Utility Functions'!$BD$3:$BD$5)","v":0},9.4195802436719873,null,9.4195802436719873,2.6195802436719884,0,0,2.7,4.0999999999999996]
[13,{"$f":"valueE(B14,'Utility Functions'!$B$3,'Utility Functions'!$B$4,'Utility Functions'!$B$5,'Utility Functions'!$B$6)","v":0},{"$f":"valueE(C14,'Utility Functions'!$D$3,'Utility Functions'!$D$4,'Utility Functions'!$D$5,'Utility Functions'!$D$6)","v":0},{"$f":"valuePL(D14,'Utility Functions'!$E$3:$E$5,'Utility Functions'!$F$3:$F$5)","v":0},{"$f":"valuePL(E14,'Utility Functions'!$G$3:$G$5,'Utility Functions'!$H$3:$H$5)","v":0},{"$f":"valuePL(F14,'Utility Functions'!$I$3:$I$4,'Utility Functions'!$J$3:$J$5)","v":0},{"$f":"valueE(G14,'Utility Functions'!$L$3,'Utility Functions'!$L$4,'Utility Functions'!$L$5,'Utility Functions'!$L$6)","v":0},{"$f":"valueE(H14,'Utility Functions'!$N$3,'Utility Functions'!$N$4,'Utility Functions'!$N$5,'Utility Functions'!$N$6)","v":1.1385199240986717E-2},{"$f":"valuePL(I14,'Utility Functions'!$O$3:$O$6,'Utility Functions'!$P$3:$P$6)","v":0.3290909090909091},{"$f":"valuePL(J14,'Utility Functions'!$Q$3:$Q$6,'Utility Functions'!$R$3:$R$6)","v":0.04},{"$f":"valuePL(K14,'Utility Functions'!$S$3:$S$7,'Utility Functions'!$T$3:$T$7)","v":0.3290909090909091},{"$f":"valueE(L14,'Utility Functions'!$V$3,'Utility Functions'!$V$4,'Utility Functions'!$V$5,'Utility Functions'!$V$6)","v":1},{"$f":"valuePL(M14,'Utility Functions'!$W$3:$W$6,'Utility Functions'!$X$3:$X$6)","v":0.04},{"$f":"valueE(N14,'Utility Functions'!$Z$3,'Utility Functions'!$Z$4,'Utility Functions'!$Z$5,'Utility Functions'!$Z$6)","v":0.875},{"$f":"valuePL(O14,'Utility Functions'!$AA$3:$AA$5,'Utility Functions'!$AB$3:$AB$5)","v":0.25},{"$f":"valuePL(P14,'Utility Functions'!$AC$3:$AC$7,'Utility Functions'!$AD$3:$AD$7)","v":0.25},{"$f":"valuePL(Q14,'Utility Functions'!$AE$3:$AE$6,'Utility Functions'!$AF$3:$AF$6)","v":0},{"$f":"valuePL(R14,'Utility Functions'!$AG$3:$AG$6,'Utility Functions'!$AH$3:$AH$6)","v":1},{"$f":"valuePL(S14,'Utility Functions'!$AI$3:$AI$6,'Utility Functions'!$AJ$3:$AJ$6)","v":1},{"$f":"valuePL(T14,'Utility Functions'!$AK$3:$AK$8,'Utility Functions'!$AL$3:$AL$8)","v":0},{"$f":"valuePL(U14,'Utility Functions'!$AM$3:$AM$5,'Utility Functions'!$AN$3:$AN$5)","v":0},{"$f":"valuePL(V14,'Utility Functions'!$AO$3:$AO$5,'Utility Functions'!$AP$3:$AP$5)","v":0.5},{"$f":"valuePL(W14,'Utility Functions'!$AQ$3:$AQ$6,'Utility Functions'!$AR$3:$AR$6)","v":0},{"$f":"valuePL(X14,'Utility Functions'!$AS$3:$AS$6,'Utility Functions'!$AT$3:$AT$6)","v":0.2},{"$f":"valuePL(Y14,'Utility Functions'!$AU$3:$AU$6,'Utility Functions'!$AV$3:$AV$6)","v":0},{"$f":"valuePL(Z14,'Utility Functions'!$AW$3:$AW$5,'Utility Functions'!$AX$3:$AX$5)","v":1},{"$f":"valuePL(AA14,'Utility Functions'!$AY$3:$AY$6,'Utility Functions'!$AZ$3:$AZ$6)","v":0.2},{"$f":"valuePL(AB14,'Utility Functions'!$BA$3:$BA$5,'Utility Functions'!$BB$3:$BB$5)","v":0.25},{"$f":"valuePL(AC14,'Utility Functions'!$BC$3:$BC$5,'Utility Functions'!$BD$3:$BD$5)","v":0.25},7.5245670174228056,null,7.5245670174228056,0,1.7495670174228048,1.125,2.25,2.4]
[14,{"$f":"valueE(B15,'Utility Functions'!$B$3,'Utility Functions'!$B$4,'Utility Functions'!$B$5,'Utility Functions'!$B$6)","v":0.69880684688087746},{"$f":"valueE(C15,'Utility Functions'!$D$3,'Utility Functions'!$D$4,'Utility Functions'!$D$5,'Utility Functions'!$D$6)","v":0.78989979019422951},{"$f":"valuePL(D15,'Utility Functions'!$E$3:$E$5,'Utility Functions'!$F$3:$F$5)","v":0.5},{"$f":"valuePL(E15,'Utility Functions'!$G$3:$G$5,'Utility Functions'!$H$3:$H$5)","v":0.5},{"$f":"valuePL(F15,'Utility Functions'!$I$3:$I$4,'Utility Functions'!$J$3:$J$5)","v":0},{"$f":"valueE(G15,'Utility Functions'!$L$3,'Utility Functions'!$L$4,'Utility Functions'!$L$5,'Utility Functions'!$L$6)","v":0},{"$f":"valueE(H15,'Utility Functions'!$N$3,'Utility Functions'!$N$4,'Utility Functions'!$N$5,'Utility Functions'!$N$6)","v":0},{"$f":"valuePL(I15,'Utility Functions'!$O$3:$O$6,'Utility Functions'!$P$3:$P$6)","v":0},{"$f":"valuePL(J15,'Utility Functions'!$Q$3:$Q$6,'Utility Functions'!$R$3:$R$6)","v":0},{"$f":"valuePL(K15,'Utility Functions'!$S$3:$S$7,'Utility Functions'!$T$3:$T$7)","v":0},{"$f":"valueE(L15,'Utility Functions'!$V$3,'Utility Functions'!$V$4,'Utility Functions'!$V$5,'Utility Functions'!$V$6)","v":0},{"$f":"valuePL(M15,'Utility Functions'!$W$3:$W$6,'Utility Functions'!$X$3:$X$6)","v":0},{"$f":"valueE(N15,'Utility Functions'!$Z$3,'Utility Functions'!$Z$4,'Utility Functions'!$Z$5,'Utility Functions'!$Z$6)","v":0.75},{"$f":"valuePL(O15,'Utility Functions'!$AA$3:$AA$5,'Utility Functions'!$AB$3:$AB$5)","v":0.25},{"$f":"valuePL(P15,'Utility Functions'!$AC$3:$AC$7,'Utility Functions'!$AD$3:$AD$7)","v":0.25},{"$f":"valuePL(Q15,'Utility Functions'!$AE$3:$AE$6,'Utility Functions'!$AF$3:$AF$6)","v":0},{"$f":"valuePL(R15,'Utility Functions'!$AG$3:$AG$6,'Utility Functions'!$AH$3:$AH$6)","v":1},{"$f":"valuePL(S15,'Utility Functions'!$AI$3:$AI$6,'Utility Functions'!$AJ$3:$AJ$6)","v":1},{"$f":"valuePL(T15,'Utility Functions'!$AK$3:$AK$8,'Utility Functions'!$AL$3:$AL$8)","v":0},{"$f":"valuePL(U15,'Utility Functions'!$AM$3:$AM$5,'Utility Functions'!$AN$3:$AN$5)","v":0},{"$f":"valuePL(V15,'Utility Functions'!$AO$3:$AO$5,'Utility Functions'!$AP$3:$AP$5)","v":0.5},{"$f":"valuePL(W15,'Utility Functions'!$AQ$3:$AQ$6,'Utility Functions'!$AR$3:$AR$6)","v":0.2},{"$f":"valuePL(X15,'Utility Functions'!$AS$3:$AS$6,'Utility Functions'!$AT$3:$AT$6)","v":1},{"$f":"valuePL(Y15,'Utility Functions'!$AU$3:$AU$6,'Utility Functions'!$AV$3:$AV$6)","v":1},{"$f":"valuePL(Z15,'Utility Functions'!$AW$3:$AW$5,'Utility Functions'!$AX$3:$AX$5)","v":0.5},{"$f":"valuePL(AA15,'Utility Functions'!$AY$3:$AY$6,'Utility Functions'!$AZ$3:$AZ$6)","v":0.89999999999999991},{"$f":"valuePL(AB15,'Utility Functions'!$BA$3:$BA$5,'Utility Functions'!$BB$3:$BB$5)","v":0.25},{"$f":"valuePL(AC15,'Utility Functions'!$BC$3:$BC$5,'Utility Functions'!$BD$3:$BD$5)","v":0.25},10.338706637075108,null,10.338706637075106,2.488706637075107,0,1,2.25,4.5999999999999996]
[15,{"$f":"valueE(B16,'Utility Functions'!$B$3,'Utility Functions'!$B$4,'Utility Functions'!$B$5,'Utility Functions'!$B$6)","v":0.98994966417177144},{"$f":"valueE(C16,'Utility Functions'!$D$3,'Utility Functions'!$D$4,'Utility Functions'!$D$5,'Utility Functions'!$D$6)","v":0.71352759724260828},{"$f":"valuePL(D16,'Utility Functions'!$E$3:$E$5,'Utility Functions'!$F$3:$F$5)","v":1},{"$f":"valuePL(E16,'Utility Functions'!$G$3:$G$5,'Utility Functions'!$H$3:$H$5)","v":0.5},{"$f":"valuePL(F16,'Utility Functions'!$I$3:$I$4,'Utility Functions'!$J$3:$J$5)","v":1},{"$f":"valueE(G16,'Utility Functions'!$L$3,'Utility Functions'!$L$4,'Utility Functions'!$L$5,'Utility Functions'!$L$6)","v":0},{"$f":"valueE(H16,'Utility Functions'!$N$3,'Utility Functions'!$N$4,'Utility Functions'!$N$5,'Utility Functions'!$N$6)","v":0},{"$f":"valuePL(I16,'Utility Functions'!$O$3:$O$6,'Utility Functions'!$P$3:$P$6)","v":9.2000000000000012E-2},{"$f":"valuePL(J16,'Utility Functions'!$Q$3:$Q$6,'Utility Functions'!$R$3:$R$6)","v":6.0000000000000012E-2},{"$f":"valuePL(K16,'Utility Functions'!$S$3:$S$7,'Utility Functions'!$T$3:$T$7)","v":6.0000000000000012E-2},{"$f":"valueE(L16,'Utility Functions'!$V$3,'Utility Functions'!$V$4,'Utility Functions'!$V$5,'Utility Functions'!$V$6)","v":1},{"$f":"valuePL(M16,'Utility Functions'!$W$3:$W$6,'Utility Functions'!$X$3:$X$6)","v":6.0000000000000012E-2},{"$f":"valueE(N16,'Utility Functions'!$Z$3,'Utility Functions'!$Z$4,'Utility Functions'!$Z$5,'Utility Functions'!$Z$6)","v":0.125},{"$f":"valuePL(O16,'Utility Functions'!$AA$3:$AA$5,'Utility Functions'!$AB$3:$AB$5)","v":1},{"$f":"valuePL(P16,'Utility Functions'!$AC$3:$AC$7,'Utility Functions'!$AD$3:$AD$7)","v":0.5},{"$f":"valuePL(Q16,'Utility Functions'!$AE$3:$AE$6,'Utility Functions'!$AF$3:$AF$6)","v":0},{"$f":"valuePL(R16,'Utility Functions'!$AG$3:$AG$6,'Utility Functions'!$AH$3:$AH$6)","v":0.8},{"$f":"valuePL(S16,'Utility Functions'!$AI$3:$AI$6,'Utility Functions'!$AJ$3:$AJ$6)","v":1},{"$f":"valuePL(T16,'Utility Functions'!$AK$3:$AK$8,'Utility Functions'!$AL$3:$AL$8)","v":0.6},{"$f":"valuePL(U16,'Utility Functions'!$AM$3:$AM$5,'Utility Functions'!$AN$3:$AN$5)","v":1},{"$f":"valuePL(V16,'Utility Functions'!$AO$3:$AO$5,'Utility Functions'!$AP$3:$AP$5)","v":0},{"$f":"valuePL(W16,'Utility Functions'!$AQ$3:$AQ$6,'Utility Functions'!$AR$3:$AR$6)","v":1},{"$f":"valuePL(X16,'Utility Functions'!$AS$3:$AS$6,'Utility Functions'!$AT$3:$AT$6)","v":0.2},{"$f":"valuePL(Y16,'Utility Functions'!$AU$3:$AU$6,'Utility Functions'!$AV$3:$AV$6)","v":0.2},{"$f":"valuePL(Z16,'Utility Functions'!$AW$3:$AW$5,'Utility Functions'!$AX$3:$AX$5)","v":1},{"$f":"valuePL(AA16,'Utility Functions'!$AY$3:$AY$6,'Utility Functions'!$AZ$3:$AZ$6)","v":1},{"$f":"valuePL(AB16,'Utility Functions'!$BA$3:$BA$5,'Utility Functions'!$BB$3:$BB$5)","v":1},{"$f":"valuePL(AC16,'Utility Functions'!$BC$3:$BC$5,'Utility Functions'!$BD$3:$BD$5)","v":0.25},15.150477261414375,null,15.15047726141438,4.2034772614143794,1.272,1.125,3.9,4.6500000000000004]
[16,{"$f":"valueE(B17,'Utility Functions'!$B$3,'Utility Functions'!$B$4,'Utility Functions'!$B$5,'Utility Functions'!$B$6)","v":0},{"$f":"valueE(C17,'Utility Functions'!$D$3,'Utility Functions'!$D$4,'Utility Functions'!$D$5,'Utility Functions'!$D$6)","v":0},{"$f":"valuePL(D17,'Utility Functions'!$E$3:$E$5,'Utility Functions'!$F$3:$F$5)","v":0},{"$f":"valuePL(E17,'Utility Functions'!$G$3:$G$5,'Utility Functions'!$H$3:$H$5)","v":0},{"$f":"valuePL(F17,'Utility Functions'!$I$3:$I$4,'Utility Functions'!$J$3:$J$5)","v":0},{"$f":"valueE(G17,'Utility Functions'!$L$3,'Utility Functions'!$L$4,'Utility Functions'!$L$5,'Utility Functions'!$L$6)","v":0},{"$f":"valueE(H17,'Utility Functions'!$N$3,'Utility Functions'!$N$4,'Utility Functions'!$N$5,'Utility Functions'!$N$6)","v":0},{"$f":"valuePL(I17,'Utility Functions'!$O$3:$O$6,'Utility Functions'!$P$3:$P$6)","v":1},{"$f":"valuePL(J17,'Utility Functions'!$Q$3:$Q$6,'Utility Functions'!$R$3:$R$6)","v":0.91818181818181821},{"$f":"valuePL(K17,'Utility Functions'!$S$3:$S$7,'Utility Functions'!$T$3:$T$7)","v":1},{"$f":"valueE(L17,'Utility Functions'!$V$3,'Utility Functions'!$V$4,'Utility Functions'!$V$5,'Utility Functions'!$V$6)","v":0.83333333333333337},{"$f":"valuePL(M17,'Utility Functions'!$W$3:$W$6,'Utility Functions'!$X$3:$X$6)","v":0.91818181818181821},{"$f":"valueE(N17,'Utility Functions'!$Z$3,'Utility Functions'!$Z$4,'Utility Functions'!$Z$5,'Utility Functions'!$Z$6)","v":0},{"$f":"valuePL(O17,'Utility Functions'!$AA$3:$AA$5,'Utility Functions'!$AB$3:$AB$5)","v":0},{"$f":"valuePL(P17,'Utility Functions'!$AC$3:$AC$7,'Utility Functions'!$AD$3:$AD$7)","v":0.75},{"$f":"valuePL(Q17,'Utility Functions'!$AE$3:$AE$6,'Utility Functions'!$AF$3:$AF$6)","v":0},{"$f":"valuePL(R17,'Utility Functions'!$AG$3:$AG$6,'Utility Functions'!$AH$3:$AH$6)","v":1},{"$f":"valuePL(S17,'Utility Functions'!$AI$3:$AI$6,'Utility Functions'!$AJ$3:$AJ$6)","v":1},{"$f":"valuePL(T17,'Utility Functions'!$AK$3:$AK$8,'Utility Functions'!$AL$3:$AL$8)","v":1},{"$f":"valuePL(U17,'Utility Functions'!$AM$3:$AM$5,'Utility Functions'!$AN$3:$AN$5)","v":0},{"$f":"valuePL(V17,'Utility Functions'!$AO$3:$AO$5,'Utility Functions'!$AP$3:$AP$5)","v":1},{"$f":"valuePL(W17,'Utility Functions'!$AQ$3:$AQ$6,'Utility Functions'!$AR$3:$AR$6)","v":0.75},{"$f":"valuePL(X17,'Utility Functions'!$AS$3:$AS$6,'Utility Functions'!$AT$3:$AT$6)","v":0.75},{"$f":"valuePL(Y17,'Utility Functions'!$AU$3:$AU$6,'Utility Functions'!$AV$3:$AV$6)","v":0.2},{"$f":"valuePL(Z17,'Utility Functions'!$AW$3:$AW$5,'Utility Functions'!$AX$3:$AX$5)","v":1},{"$f":"valuePL(AA17,'Utility Functions'!$AY$3:$AY$6,'Utility Functions'!$AZ$3:$AZ$6)","v":1},{"$f":"valuePL(AB17,'Utility Functions'!$BA$3:$BA$5,'Utility Functions'!$BB$3:$BB$5)","v":1},{"$f":"valuePL(AC17,'Utility Functions'!$BC$3:$BC$5,'Utility Functions'!$BD$3:$BD$5)","v":1},15.119696969696969,null,15.119696969696971,0,4.6696969696969699,0,3.75,6.7]
[17,{"$f":"valueE(B18,'Utility Functions'!$B$3,'Utility Functions'!$B$4,'Utility Functions'!$B$5,'Utility Functions'!$B$6)","v":0.32968045347775865},{"$f":"valueE(C18,'Utility Functions'!$D$3,'Utility Functions'!$D$4,'Utility Functions'!$D$5,'Utility Functions'!$D$6)","v":0.78989979019422951},{"$f":"valuePL(D18,'Utility Functions'!$E$3:$E$5,'Utility Functions'!$F$3:$F$5)","v":1},{"$f":"valuePL(E18,'Utility Functions'!$G$3:$G$5,'Utility Functions'!$H$3:$H$5)","v":0.5},{"$f":"valuePL(F18,'Utility Functions'!$I$3:$I$4,'Utility Functions'!$J$3:$J$5)","v":1},{"$f":"valueE(G18,'Utility Functions'!$L$3,'Utility Functions'!$L$4,'Utility Functions'!$L$5,'Utility Functions'!$L$6)","v":0.31182795698924731},{"$f":"valueE(H18,'Utility Functions'!$N$3,'Utility Functions'!$N$4,'Utility Functions'!$N$5,'Utility Functions'!$N$6)","v":0.27514231499051234},{"$f":"valuePL(I18,'Utility Functions'!$O$3:$O$6,'Utility Functions'!$P$3:$P$6)","v":0},{"$f":"valuePL(J18,'Utility Functions'!$Q$3:$Q$6,'Utility Functions'!$R$3:$R$6)","v":0},{"$f":"valuePL(K18,'Utility Functions'!$S$3:$S$7,'Utility Functions'!$T$3:$T$7)","v":0},{"$f":"valueE(L18,'Utility Functions'!$V$3,'Utility Functions'!$V$4,'Utility Functions'!$V$5,'Utility Functions'!$V$6)","v":1},{"$f":"valuePL(M18,'Utility Functions'!$W$3:$W$6,'Utility Functions'!$X$3:$X$6)","v":6.0000000000000012E-2},{"$f":"valueE(N18,'Utility Functions'!$Z$3,'Utility Functions'!$Z$4,'Utility Functions'!$Z$5,'Utility Functions'!$Z$6)","v":0},{"$f":"valuePL(O18,'Utility Functions'!$AA$3:$AA$5,'Utility Functions'!$AB$3:$AB$5)","v":0},{"$f":"valuePL(P18,'Utility Functions'!$AC$3:$AC$7,'Utility Functions'!$AD$3:$AD$7)","v":0},{"$f":"valuePL(Q18,'Utility Functions'!$AE$3:$AE$6,'Utility Functions'!$AF$3:$AF$6)","v":0},{"$f":"valuePL(R18,'Utility Functions'!$AG$3:$AG$6,'Utility Functions'!$AH$3:$AH$6)","v":1},{"$f":"valuePL(S18,'Utility Functions'!$AI$3:$AI$6,'Utility Functions'!$AJ$3:$AJ$6)","v":0.66},{"$f":"valuePL(T18,'Utility Functions'!$AK$3:$AK$8,'Utility Functions'!$AL$3:$AL$8)","v":0},{"$f":"valuePL(U18,'Utility Functions'!$AM$3:$AM$5,'Utility Functions'!$AN$3:$AN$5)","v":0},{"$f":"valuePL(V18,'Utility Functions'!$AO$3:$AO$5,'Utility Functions'!$AP$3:$AP$5)","v":1},{"$f":"valuePL(W18,'Utility Functions'!$AQ$3:$AQ$6,'Utility Functions'!$AR$3:$AR$6)","v":1},{"$f":"valuePL(X18,'Utility Functions'!$AS$3:$AS$6,'Utility Functions'!$AT$3:$AT$6)","v":0.2},{"$f":"valuePL(Y18,'Utility Functions'!$AU$3:$AU$6,'Utility Functions'!$AV$3:$AV$6)","v":0},{"$f":"valuePL(Z18,'Utility Functions'!$AW$3:$AW$5,'Utility Functions'!$AX$3:$AX$5)","v":0.5},{"$f":"valuePL(AA18,'Utility Functions'!$AY$3:$AY$6,'Utility Functions'!$AZ$3:$AZ$6)","v":0},{"$f":"valuePL(AB18,'Utility Functions'!$BA$3:$BA$5,'Utility Functions'!$BB$3:$BB$5)","v":1},{"$f":"valuePL(AC18,'Utility Functions'!$BC$3:$BC$5,'Utility Functions'!$BD$3:$BD$5)","v":0.25},10.876550515651747,null,10.876550515651747,3.6195802436719884,1.6469702719797596,0,1.6600000000000001,3.95]
[18,{"$f":"valueE(B19,'Utility Functions'!$B$3,'Utility Functions'!$B$4,'Utility Functions'!$B$5,'Utility Functions'!$B$6)","v":0},{"$f":"valueE(C19,'Utility Functions'!$D$3,'Utility Functions'!$D$4,'Utility Functions'!$D$5,'Utility Functions'!$D$6)","v":0},{"$f":"valuePL(D19,'Utility Functions'!$E$3:$E$5,'Utility Functions'!$F$3:$F$5)","v":0},{"$f":"valuePL(E19,'Utility Functions'!$G$3:$G$5,'Utility Functions'!$H$3:$H$5)","v":0},{"$f":"valuePL(F19,'Utility Functions'!$I$3:$I$4,'Utility Functions'!$J$3:$J$5)","v":0},{"$f":"valueE(G19,'Utility Functions'!$L$3,'Utility Functions'!$L$4,'Utility Functions'!$L$5,'Utility Functions'!$L$6)","v":0},{"$f":"valueE(H19,'Utility Functions'!$N$3,'Utility Functions'!$N$4,'Utility Functions'!$N$5,'Utility Functions'!$N$6)","v":2.8462998102466792E-2},{"$f":"valuePL(I19,'Utility Functions'!$O$3:$O$6,'Utility Functions'!$P$3:$P$6)","v":0},{"$f":"valuePL(J19,'Utility Functions'!$Q$3:$Q$6,'Utility Functions'!$R$3:$R$6)","v":0},{"$f":"valuePL(K19,'Utility Functions'!$S$3:$S$7,'Utility Functions'!$T$3:$T$7)","v":0},{"$f":"valueE(L19,'Utility Functions'!$V$3,'Utility Functions'!$V$4,'Utility Functions'!$V$5,'Utility Functions'!$V$6)","v":0},{"$f":"valuePL(M19,'Utility Functions'!$W$3:$W$6,'Utility Functions'!$X$3:$X$6)","v":0},{"$f":"valueE(N19,'Utility Functions'!$Z$3,'Utility Functions'!$Z$4,'Utility Functions'!$Z$5,'Utility Functions'!$Z$6)","v":1},{"$f":"valuePL(O19,'Utility Functions'!$AA$3:$AA$5,'Utility Functions'!$AB$3:$AB$5)","v":0.25},{"$f":"valuePL(P19,'Utility Functions'!$AC$3:$AC$7,'Utility Functions'!$AD$3:$AD$7)","v":0.25},{"$f":"valuePL(Q19,'Utility Functions'!$AE$3:$AE$6,'Utility Functions'!$AF$3:$AF$6)","v":1},{"$f":"valuePL(R19,'Utility Functions'!$AG$3:$AG$6,'Utility Functions'!$AH$3:$AH$6)","v":1},{"$f":"valuePL(S19,'Utility Functions'!$AI$3:$AI$6,'Utility Functions'!$AJ$3:$AJ$6)","v":1},{"$f":"valuePL(T19,'Utility Functions'!$AK$3:$AK$8,'Utility Functions'!$AL$3:$AL$8)","v":1},{"$f":"valuePL(U19,'Utility Functions'!$AM$3:$AM$5,'Utility Functions'!$AN$3:$AN$5)","v":0.25},{"$f":"valuePL(V19,'Utility Functions'!$AO$3:$AO$5,'Utility Functions'!$AP$3:$AP$5)","v":1},{"$f":"valuePL(W19,'Utility Functions'!$AQ$3:$AQ$6,'Utility Functions'!$AR$3:$AR$6)","v":0.75},{"$f":"valuePL(X19,'Utility Functions'!$AS$3:$AS$6,'Utility Functions'!$AT$3:$AT$6)","v":0.2},{"$f":"valuePL(Y19,'Utility Functions'!$AU$3:$AU$6,'Utility Functions'!$AV$3:$AV$6)","v":0.8},{"$f":"valuePL(Z19,'Utility Functions'!$AW$3:$AW$5,'Utility Functions'!$AX$3:$AX$5)","v":0.5},{"$f":"valuePL(AA19,'Utility Functions'!$AY$3:$AY$6,'Utility Functions'!$AZ$3:$AZ$6)","v":0.89999999999999991},{"$f":"valuePL(AB19,'Utility Functions'!$BA$3:$BA$5,'Utility Functions'!$BB$3:$BB$5)","v":0.25},{"$f":"valuePL(AC19,'Utility Functions'!$BC$3:$BC$5,'Utility Functions'!$BD$3:$BD$5)","v":0},10.178462998102468,null,10.178462998102468,0,2.8462998102466792E-2,1.25,4.5,4.4000000000000004]
[19,{"$f":"valueE(B20,'Utility Functions'!$B$3,'Utility Functions'!$B$4,'Utility Functions'!$B$5,'Utility Functions'!$B$6)","v":0.79810469124896843},{"$f":"valueE(C20,'Utility Functions'!$D$3,'Utility Functions'!$D$4,'Utility Functions'!$D$5,'Utility Functions'!$D$6)","v":0.26839655623815994},{"$f":"valuePL(D20,'Utility Functions'!$E$3:$E$5,'Utility Functions'!$F$3:$F$5)","v":0.5},{"$f":"valuePL(E20,'Utility Functions'!$G$3:$G$5,'Utility Functions'!$H$3:$H$5)","v":1},{"$f":"valuePL(F20,'Utility Functions'!$I$3:$I$4,'Utility Functions'!$J$3:$J$5)","v":0},{"$f":"valueE(G20,'Utility Functions'!$L$3,'Utility Functions'!$L$4,'Utility Functions'!$L$5,'Utility Functions'!$L$6)","v":0},{"$f":"valueE(H20,'Utility Functions'!$N$3,'Utility Functions'!$N$4,'Utility Functions'!$N$5,'Utility Functions'!$N$6)","v":0},{"$f":"valuePL(I20,'Utility Functions'!$O$3:$O$6,'Utility Functions'!$P$3:$P$6)","v":0},{"$f":"valuePL(J20,'Utility Functions'!$Q$3:$Q$6,'Utility Functions'!$R$3:$R$6)","v":0},{"$f":"valuePL(K20,'Utility Functions'!$S$3:$S$7,'Utility Functions'!$T$3:$T$7)","v":0},{"$f":"valueE(L20,'Utility Functions'!$V$3,'Utility Functions'!$V$4,'Utility Functions'!$V$5,'Utility Functions'!$V$6)","v":0},{"$f":"valuePL(M20,'Utility Functions'!$W$3:$W$6,'Utility Functions'!$X$3:$X$6)","v":0},{"$f":"valueE(N20,'Utility Functions'!$Z$3,'Utility Functions'!$Z$4,'Utility Functions'!$Z$5,'Utility Functions'!$Z$6)","v":1},{"$f":"valuePL(O20,'Utility Functions'!$AA$3:$AA$5,'Utility Functions'!$AB$3:$AB$5)","v":1},{"$f":"valuePL(P20,'Utility Functions'!$AC$3:$AC$7,'Utility Functions'!$AD$3:$AD$7)","v":0},{"$f":"valuePL(Q20,'Utility Functions'!$AE$3:$AE$6,'Utility Functions'!$AF$3:$AF$6)","v":0},{"$f":"valuePL(R20,'Utility Functions'!$AG$3:$AG$6,'Utility Functions'!$AH$3:$AH$6)","v":0.8},{"$f":"valuePL(S20,'Utility Functions'!$AI$3:$AI$6,'Utility Functions'!$AJ$3:$AJ$6)","v":1},{"$f":"valuePL(T20,'Utility Functions'!$AK$3:$AK$8,'Utility Functions'!$AL$3:$AL$8)","v":0},{"$f":"valuePL(U20,'Utility Functions'!$AM$3:$AM$5,'Utility Functions'!$AN$3:$AN$5)","v":0},{"$f":"valuePL(V20,'Utility Functions'!$AO$3:$AO$5,'Utility Functions'!$AP$3:$AP$5)","v":0.5},{"$f":"valuePL(W20,'Utility Functions'!$AQ$3:$AQ$6,'Utility Functions'!$AR$3:$AR$6)","v":0.2},{"$f":"valuePL(X20,'Utility Functions'!$AS$3:$AS$6,'Utility Functions'!$AT$3:$AT$6)","v":1},{"$f":"valuePL(Y20,'Utility Functions'!$AU$3:$AU$6,'Utility Functions'!$AV$3:$AV$6)","v":0.8},{"$f":"valuePL(Z20,'Utility Functions'!$AW$3:$AW$5,'Utility Functions'!$AX$3:$AX$5)","v":0},{"$f":"valuePL(AA20,'Utility Functions'!$AY$3:$AY$6,'Utility Functions'!$AZ$3:$AZ$6)","v":0.2},{"$f":"valuePL(AB20,'Utility Functions'!$BA$3:$BA$5,'Utility Functions'!$BB$3:$BB$5)","v":0},{"$f":"valuePL(AC20,'Utility Functions'!$BC$3:$BC$5,'Utility Functions'!$BD$3:$BD$5)","v":0.25},9.3165012474871283,null,9.3165012474871283,2.5665012474871283,0,2,1.8,2.95]
[20,{"$f":"valueE(B21,'Utility Functions'!$B$3,'Utility Functions'!$B$4,'Utility Functions'!$B$5,'Utility Functions'!$B$6)","v":0.83470237647280454},{"$f":"valueE(C21,'Utility Functions'!$D$3,'Utility Functions'!$D$4,'Utility Functions'!$D$5,'Utility Functions'!$D$6)","v":0.78989979019422951},{"$f":"valuePL(D21,'Utility Functions'!$E$3:$E$5,'Utility Functions'!$F$3:$F$5)","v":0.5},{"$f":"valuePL(E21,'Utility Functions'!$G$3:$G$5,'Utility Functions'!$H$3:$H$5)","v":1},{"$f":"valuePL(F21,'Utility Functions'!$I$3:$I$4,'Utility Functions'!$J$3:$J$5)","v":0},{"$f":"valueE(G21,'Utility Functions'!$L$3,'Utility Functions'!$L$4,'Utility Functions'!$L$5,'Utility Functions'!$L$6)","v":0},{"$f":"valueE(H21,'Utility Functions'!$N$3,'Utility Functions'!$N$4,'Utility Functions'!$N$5,'Utility Functions'!$N$6)","v":0.41271347248576851},{"$f":"valuePL(I21,'Utility Functions'!$O$3:$O$6,'Utility Functions'!$P$3:$P$6)","v":0.93454545454545446},{"$f":"valuePL(J21,'Utility Functions'!$Q$3:$Q$6,'Utility Functions'!$R$3:$R$6)","v":0.50909090909090915},{"$f":"valuePL(K21,'Utility Functions'!$S$3:$S$7,'Utility Functions'!$T$3:$T$7)","v":0.93454545454545446},{"$f":"valueE(L21,'Utility Functions'!$V$3,'Utility Functions'!$V$4,'Utility Functions'!$V$5,'Utility Functions'!$V$6)","v":0.66666666666666663},{"$f":"valuePL(M21,'Utility Functions'!$W$3:$W$6,'Utility Functions'!$X$3:$X$6)","v":0.50909090909090915},{"$f":"valueE(N21,'Utility Functions'!$Z$3,'Utility Functions'!$Z$4,'Utility Functions'!$Z$5,'Utility Functions'!$Z$6)","v":1},{"$f":"valuePL(O21,'Utility Functions'!$AA$3:$AA$5,'Utility Functions'!$AB$3:$AB$5)","v":1},{"$f":"valuePL(P21,'Utility Functions'!$AC$3:$AC$7,'Utility Functions'!$AD$3:$AD$7)","v":0.25},{"$f":"valuePL(Q21,'Utility Functions'!$AE$3:$AE$6,'Utility Functions'!$AF$3:$AF$6)","v":0},{"$f":"valuePL(R21,'Utility Functions'!$AG$3:$AG$6,'Utility Functions'!$AH$3:$AH$6)","v":1},{"$f":"valuePL(S21,'Utility Functions'!$AI$3:$AI$6,'Utility Functions'!$AJ$3:$AJ$6)","v":1},{"$f":"valuePL(T21,'Utility Functions'!$AK$3:$AK$8,'Utility Functions'!$AL$3:$AL$8)","v":0.6},{"$f":"valuePL(U21,'Utility Functions'!$AM$3:$AM$5,'Utility Functions'!$AN$3:$AN$5)","v":1},{"$f":"valuePL(V21,'Utility Functions'!$AO$3:$AO$5,'Utility Functions'!$AP$3:$AP$5)","v":0.5},{"$f":"valuePL(W21,'Utility Functions'!$AQ$3:$AQ$6,'Utility Functions'!$AR$3:$AR$6)","v":0},{"$f":"valuePL(X21,'Utility Functions'!$AS$3:$AS$6,'Utility Functions'!$AT$3:$AT$6)","v":0},{"$f":"valuePL(Y21,'Utility Functions'!$AU$3:$AU$6,'Utility Functions'!$AV$3:$AV$6)","v":0.2},{"$f":"valuePL(Z21,'Utility Functions'!$AW$3:$AW$5,'Utility Functions'!$AX$3:$AX$5)","v":1},{"$f":"valuePL(AA21,'Utility Functions'!$AY$3:$AY$6,'Utility Functions'!$AZ$3:$AZ$6)","v":0.2},{"$f":"valuePL(AB21,'Utility Functions'!$BA$3:$BA$5,'Utility Functions'!$BB$3:$BB$5)","v":0},{"$f":"valuePL(AC21,'Utility Functions'!$BC$3:$BC$5,'Utility Functions'!$BD$3:$BD$5)","v":0.25},15.091255033092194,null,15.091255033092196,3.1246021666670343,3.9666528664251626,2,3.85,2.15]
[21,{"$f":"valueE(B22,'Utility Functions'!$B$3,'Utility Functions'!$B$4,'Utility Functions'!$B$5,'Utility Functions'!$B$6)","v":0},{"$f":"valueE(C22,'Utility Functions'!$D$3,'Utility Functions'!$D$4,'Utility Functions'!$D$5,'Utility Functions'!$D$6)","v":0},{"$f":"valuePL(D22,'Utility Functions'!$E$3:$E$5,'Utility Functions'!$F$3:$F$5)","v":0},{"$f":"valuePL(E22,'Utility Functions'!$G$3:$G$5,'Utility Functions'!$H$3:$H$5)","v":0},{"$f":"valuePL(F22,'Utility Functions'!$I$3:$I$4,'Utility Functions'!$J$3:$J$5)","v":0},{"$f":"valueE(G22,'Utility Functions'!$L$3,'Utility Functions'!$L$4,'Utility Functions'!$L$5,'Utility Functions'!$L$6)","v":0},{"$f":"valueE(H22,'Utility Functions'!$N$3,'Utility Functions'!$N$4,'Utility Functions'!$N$5,'Utility Functions'!$N$6)","v":0},{"$f":"valuePL(I22,'Utility Functions'!$O$3:$O$6,'Utility Functions'!$P$3:$P$6)","v":0},{"$f":"valuePL(J22,'Utility Functions'!$Q$3:$Q$6,'Utility Functions'!$R$3:$R$6)","v":0},{"$f":"valuePL(K22,'Utility Functions'!$S$3:$S$7,'Utility Functions'!$T$3:$T$7)","v":0},{"$f":"valueE(L22,'Utility Functions'!$V$3,'Utility Functions'!$V$4,'Utility Functions'!$V$5,'Utility Functions'!$V$6)","v":0},{"$f":"valuePL(M22,'Utility Functions'!$W$3:$W$6,'Utility Functions'!$X$3:$X$6)","v":0},{"$f":"valueE(N22,'Utility Functions'!$Z$3,'Utility Functions'!$Z$4,'Utility Functions'!$Z$5,'Utility Functions'!$Z$6)","v":1},{"$f":"valuePL(O22,'Utility Functions'!$AA$3:$AA$5,'Utility Functions'!$AB$3:$AB$5)","v":1},{"$f":"valuePL(P22,'Utility Functions'!$AC$3:$AC$7,'Utility Functions'!$AD$3:$AD$7)","v":0},{"$f":"valuePL(Q22,'Utility Functions'!$AE$3:$AE$6,'Utility Functions'!$AF$3:$AF$6)","v":0.1},{"$f":"valuePL(R22,'Utility Functions'!$AG$3:$AG$6,'Utility Functions'!$AH$3:$AH$6)","v":1},{"$f":"valuePL(S22,'Utility Functions'!$AI$3:$AI$6,'Utility Functions'!$AJ$3:$AJ$6)","v":1},{"$f":"valuePL(T22,'Utility Functions'!$AK$3:$AK$8,'Utility Functions'!$AL$3:$AL$8)","v":1},{"$f":"valuePL(U22,'Utility Functions'!$AM$3:$AM$5,'Utility Functions'!$AN$3:$AN$5)","v":0.25},{"$f":"valuePL(V22,'Utility Functions'!$AO$3:$AO$5,'Utility Functions'!$AP$3:$AP$5)","v":0},{"$f":"valuePL(W22,'Utility Functions'!$AQ$3:$AQ$6,'Utility Functions'!$AR$3:$AR$6)","v":0.75},{"$f":"valuePL(X22,'Utility Functions'!$AS$3:$AS$6,'Utility Functions'!$AT$3:$AT$6)","v":1},{"$f":"valuePL(Y22,'Utility Functions'!$AU$3:$AU$6,'Utility Functions'!$AV$3:$AV$6)","v":0.2},{"$f":"valuePL(Z22,'Utility Functions'!$AW$3:$AW$5,'Utility Functions'!$AX$3:$AX$5)","v":0},{"$f":"valuePL(AA22,'Utility Functions'!$AY$3:$AY$6,'Utility Functions'!$AZ$3:$AZ$6)","v":1},{"$f":"valuePL(AB22,'Utility Functions'!$BA$3:$BA$5,'Utility Functions'!$BB$3:$BB$5)","v":0.25},{"$f":"valuePL(AC22,'Utility Functions'!$BC$3:$BC$5,'Utility Functions'!$BD$3:$BD$5)","v":1},9.5500000000000007,null,9.5500000000000007,0,0,2,3.35,4.2]
[22,{"$f":"valueE(B23,'Utility Functions'!$B$3,'Utility Functions'!$B$4,'Utility Functions'!$B$5,'Utility Functions'!$B$6)","v":0},{"$f":"valueE(C23,'Utility Functions'!$D$3,'Utility Functions'!$D$4,'Utility Functions'!$D$5,'Utility Functions'!$D$6)","v":0},{"$f":"valuePL(D23,'Utility Functions'!$E$3:$E$5,'Utility Functions'!$F$3:$F$5)","v":0},{"$f":"valuePL(E23,'Utility Functions'!$G$3:$G$5,'Utility Functions'!$H$3:$H$5)","v":0},{"$f":"valuePL(F23,'Utility Functions'!$I$3:$I$4,'Utility Functions'!$J$3:$J$5)","v":0},{"$f":"valueE(G23,'Utility Functions'!$L$3,'Utility Functions'!$L$4,'Utility Functions'!$L$5,'Utility Functions'!$L$6)","v":8.6021505376344093E-2},{"$f":"valueE(H23,'Utility Functions'!$N$3,'Utility Functions'!$N$4,'Utility Functions'!$N$5,'Utility Functions'!$N$6)","v":6.0721062618595827E-2},{"$f":"valuePL(I23,'Utility Functions'!$O$3:$O$6,'Utility Functions'!$P$3:$P$6)","v":0},{"$f":"valuePL(J23,'Utility Functions'!$Q$3:$Q$6,'Utility Functions'!$R$3:$R$6)","v":0},{"$f":"valuePL(K23,'Utility Functions'!$S$3:$S$7,'Utility Functions'!$T$3:$T$7)","v":0},{"$f":"valueE(L23,'Utility Functions'!$V$3,'Utility Functions'!$V$4,'Utility Functions'!$V$5,'Utility Functions'!$V$6)","v":0},{"$f":"valuePL(M23,'Utility Functions'!$W$3:$W$6,'Utility Functions'!$X$3:$X$6)","v":0},{"$f":"valueE(N23,'Utility Functions'!$Z$3,'Utility Functions'!$Z$4,'Utility Functions'!$Z$5,'Utility Functions'!$Z$6)","v":0.125},{"$f":"valuePL(O23,'Utility Functions'!$AA$3:$AA$5,'Utility Functions'!$AB$3:$AB$5)","v":1},{"$f":"valuePL(P23,'Utility Functions'!$AC$3:$AC$7,'Utility Functions'!$AD$3:$AD$7)","v":1},{"$f":"valuePL(Q23,'Utility Functions'!$AE$3:$AE$6,'Utility Functions'!$AF$3:$AF$6)","v":0.5},{"$f":"valuePL(R23,'Utility Functions'!$AG$3:$AG$6,'Utility Functions'!$AH$3:$AH$6)","v":0.8},{"$f":"valuePL(S23,'Utility Functions'!$AI$3:$AI$6,'Utility Functions'!$AJ$3:$AJ$6)","v":1},{"$f":"valuePL(T23,'Utility Functions'!$AK$3:$AK$8,'Utility Functions'!$AL$3:$AL$8)","v":1},{"$f":"valuePL(U23,'Utility Functions'!$AM$3:$AM$5,'Utility Functions'!$AN$3:$AN$5)","v":0},{"$f":"valuePL(V23,'Utility Functions'!$AO$3:$AO$5,'Utility Functions'!$AP$3:$AP$5)","v":0.5},{"$f":"valuePL(W23,'Utility Functions'!$AQ$3:$AQ$6,'Utility Functions'!$AR$3:$AR$6)","v":0.75},{"$f":"valuePL(X23,'Utility Functions'!$AS$3:$AS$6,'Utility Functions'!$AT$3:$AT$6)","v":0.2},{"$f":"valuePL(Y23,'Utility Functions'!$AU$3:$AU$6,'Utility Functions'!$AV$3:$AV$6)","v":0},{"$f":"valuePL(Z23,'Utility Functions'!$AW$3:$AW$5,'Utility Functions'!$AX$3:$AX$5)","v":1},{"$f":"valuePL(AA23,'Utility Functions'!$AY$3:$AY$6,'Utility Functions'!$AZ$3:$AZ$6)","v":0.2},{"$f":"valuePL(AB23,'Utility Functions'!$BA$3:$BA$5,'Utility Functions'!$BB$3:$BB$5)","v":1},{"$f":"valuePL(AC23,'Utility Functions'!$BC$3:$BC$5,'Utility Functions'!$BD$3:$BD$5)","v":0.25},9.471742567994939,null,9.4717425679949407,0,0.14674256799493993,1.125,4.3,3.9000000000000004]
[23,{"$f":"valueE(B24,'Utility Functions'!$B$3,'Utility Functions'!$B$4,'Utility Functions'!$B$5,'Utility Functions'!$B$6)","v":0.83470237647280454},{"$f":"valueE(C24,'Utility Functions'!$D$3,'Utility Functions'!$D$4,'Utility Functions'!$D$5,'Utility Functions'!$D$6)","v":0.84744836833951609},{"$f":"valuePL(D24,'Utility Functions'!$E$3:$E$5,'Utility Functions'!$F$3:$F$5)","v":1},{"$f":"valuePL(E24,'Utility Functions'!$G$3:$G$5,'Utility Functions'!$H$3:$H$5)","v":0},{"$f":"valuePL(F24,'Utility Functions'!$I$3:$I$4,'Utility Functions'!$J$3:$J$5)","v":0},{"$f":"valueE(G24,'Utility Functions'!$L$3,'Utility Functions'!$L$4,'Utility Functions'!$L$5,'Utility Functions'!$L$6)","v":0},{"$f":"valueE(H24,'Utility Functions'!$N$3,'Utility Functions'!$N$4,'Utility Functions'!$N$5,'Utility Functions'!$N$6)","v":0},{"$f":"valuePL(I24,'Utility Functions'!$O$3:$O$6,'Utility Functions'!$P$3:$P$6)","v":0},{"$f":"valuePL(J24,'Utility Functions'!$Q$3:$Q$6,'Utility Functions'!$R$3:$R$6)","v":0},{"$f":"valuePL(K24,'Utility Functions'!$S$3:$S$7,'Utility Functions'!$T$3:$T$7)","v":0},{"$f":"valueE(L24,'Utility Functions'!$V$3,'Utility Functions'!$V$4,'Utility Functions'!$V$5,'Utility Functions'!$V$6)","v":0},{"$f":"valuePL(M24,'Utility Functions'!$W$3:$W$6,'Utility Functions'!$X$3:$X$6)","v":0},{"$f":"valueE(N24,'Utility Functions'!$Z$3,'Utility Functions'!$Z$4,'Utility Functions'!$Z$5,'Utility Functions'!$Z$6)","v":0},{"$f":"valuePL(O24,'Utility Functions'!$AA$3:$AA$5,'Utility Functions'!$AB$3:$AB$5)","v":0},{"$f":"valuePL(P24,'Utility Functions'!$AC$3:$AC$7,'Utility Functions'!$AD$3:$AD$7)","v":0.75},{"$f":"valuePL(Q24,'Utility Functions'!$AE$3:$AE$6,'Utility Functions'!$AF$3:$AF$6)","v":0},{"$f":"valuePL(R24,'Utility Functions'!$AG$3:$AG$6,'Utility Functions'!$AH$3:$AH$6)","v":1},{"$f":"valuePL(S24,'Utility Functions'!$AI$3:$AI$6,'Utility Functions'!$AJ$3:$AJ$6)","v":1},{"$f":"valuePL(T24,'Utility Functions'!$AK$3:$AK$8,'Utility Functions'!$AL$3:$AL$8)","v":1},{"$f":"valuePL(U24,'Utility Functions'!$AM$3:$AM$5,'Utility Functions'!$AN$3:$AN$5)","v":0},{"$f":"valuePL(V24,'Utility Functions'!$AO$3:$AO$5,'Utility Functions'!$AP$3:$AP$5)","v":1},{"$f":"valuePL(W24,'Utility Functions'!$AQ$3:$AQ$6,'Utility Functions'!$AR$3:$AR$6)","v":0.2},{"$f":"valuePL(X24,'Utility Functions'!$AS$3:$AS$6,'Utility Functions'!$AT$3:$AT$6)","v":0.75},{"$f":"valuePL(Y24,'Utility Functions'!$AU$3:$AU$6,'Utility Functions'!$AV$3:$AV$6)","v":0.2},{"$f":"valuePL(Z24,'Utility Functions'!$AW$3:$AW$5,'Utility Functions'!$AX$3:$AX$5)","v":0.5},{"$f":"valuePL(AA24,'Utility Functions'!$AY$3:$AY$6,'Utility Functions'!$AZ$3:$AZ$6)","v":0.2},{"$f":"valuePL(AB24,'Utility Functions'!$BA$3:$BA$5,'Utility Functions'!$BB$3:$BB$5)","v":0},{"$f":"valuePL(AC24,'Utility Functions'!$BC$3:$BC$5,'Utility Functions'!$BD$3:$BD$5)","v":0.25},9.5321507448123199,null,9.5321507448123199,2.6821507448123207,0,0,3.75,3.1]
[24,{"$f":"valueE(B25,'Utility Functions'!$B$3,'Utility Functions'!$B$4,'Utility Functions'!$B$5,'Utility Functions'!$B$6)","v":0.63212151658375171},{"$f":"valueE(C25,'Utility Functions'!$D$3,'Utility Functions'!$D$4,'Utility Functions'!$D$5,'Utility Functions'!$D$6)","v":0.46475967153745396},{"$f":"valuePL(D25,'Utility Functions'!$E$3:$E$5,'Utility Functions'!$F$3:$F$5)","v":1},{"$f":"valuePL(E25,'Utility Functions'!$G$3:$G$5,'Utility Functions'!$H$3:$H$5)","v":0},{"$f":"valuePL(F25,'Utility Functions'!$I$3:$I$4,'Utility Functions'!$J$3:$J$5)","v":0},{"$f":"valueE(G25,'Utility Functions'!$L$3,'Utility Functions'!$L$4,'Utility Functions'!$L$5,'Utility Functions'!$L$6)","v":0},{"$f":"valueE(H25,'Utility Functions'!$N$3,'Utility Functions'!$N$4,'Utility Functions'!$N$5,'Utility Functions'!$N$6)","v":0},{"$f":"valuePL(I25,'Utility Functions'!$O$3:$O$6,'Utility Functions'!$P$3:$P$6)","v":0},{"$f":"valuePL(J25,'Utility Functions'!$Q$3:$Q$6,'Utility Functions'!$R$3:$R$6)","v":0},{"$f":"valuePL(K25,'Utility Functions'!$S$3:$S$7,'Utility Functions'!$T$3:$T$7)","v":0},{"$f":"valueE(L25,'Utility Functions'!$V$3,'Utility Functions'!$V$4,'Utility Functions'!$V$5,'Utility Functions'!$V$6)","v":0},{"$f":"valuePL(M25,'Utility Functions'!$W$3:$W$6,'Utility Functions'!$X$3:$X$6)","v":0},{"$f":"valueE(N25,'Utility Functions'!$Z$3,'Utility Functions'!$Z$4,'Utility Functions'!$Z$5,'Utility Functions'!$Z$6)","v":0},{"$f":"valuePL(O25,'Utility Functions'!$AA$3:$AA$5,'Utility Functions'!$AB$3:$AB$5)","v":0},{"$f":"valuePL(P25,'Utility Functions'!$AC$3:$AC$7,'Utility Functions'!$AD$3:$AD$7)","v":0},{"$f":"valuePL(Q25,'Utility Functions'!$AE$3:$AE$6,'Utility Functions'!$AF$3:$AF$6)","v":0},{"$f":"valuePL(R25,'Utility Functions'!$AG$3:$AG$6,'Utility Functions'!$AH$3:$AH$6)","v":1},{"$f":"valuePL(S25,'Utility Functions'!$AI$3:$AI$6,'Utility Functions'!$AJ$3:$AJ$6)","v":1},{"$f":"valuePL(T25,'Utility Functions'!$AK$3:$AK$8,'Utility Functions'!$AL$3:$AL$8)","v":1},{"$f":"valuePL(U25,'Utility Functions'!$AM$3:$AM$5,'Utility Functions'!$AN$3:$AN$5)","v":0},{"$f":"valuePL(V25,'Utility Functions'!$AO$3:$AO$5,'Utility Functions'!$AP$3:$AP$5)","v":0},{"$f":"valuePL(W25,'Utility Functions'!$AQ$3:$AQ$6,'Utility Functions'!$AR$3:$AR$6)","v":1},{"$f":"valuePL(X25,'Utility Functions'!$AS$3:$AS$6,'Utility Functions'!$AT$3:$AT$6)","v":0.2},{"$f":"valuePL(Y25,'Utility Functions'!$AU$3:$AU$6,'Utility Functions'!$AV$3:$AV$6)","v":1},{"$f":"valuePL(Z25,'Utility Functions'!$AW$3:$AW$5,'Utility Functions'!$AX$3:$AX$5)","v":1},{"$f":"valuePL(AA25,'Utility Functions'!$AY$3:$AY$6,'Utility Functions'!$AZ$3:$AZ$6)","v":0.2},{"$f":"valuePL(AB25,'Utility Functions'!$BA$3:$BA$5,'Utility Functions'!$BB$3:$BB$5)","v":0},{"$f":"valuePL(AC25,'Utility Functions'!$BC$3:$BC$5,'Utility Functions'!$BD$3:$BD$5)","v":1},9.4968811881212041,null,9.4968811881212059,2.0968811881212055,0,0,3,4.4000000000000004]
[25,{"$f":"valueE(B26,'Utility Functions'!$B$3,'Utility Functions'!$B$4,'Utility Functions'!$B$5,'Utility Functions'!$B$6)","v":0.83470237647280454},{"$f":"valueE(C26,'Utility Functions'!$D$3,'Utility Functions'!$D$4,'Utility Functions'!$D$5,'Utility Functions'!$D$6)","v":0.84744836833951609},{"$f":"valuePL(D26,'Utility Functions'!$E$3:$E$5,'Utility Functions'!$F$3:$F$5)","v":1},{"$f":"valuePL(E26,'Utility Functions'!$G$3:$G$5,'Utility Functions'!$H$3:$H$5)","v":0},{"$f":"valuePL(F26,'Utility Functions'!$I$3:$I$4,'Utility Functions'!$J$3:$J$5)","v":0},{"$f":"valueE(G26,'Utility Functions'!$L$3,'Utility Functions'!$L$4,'Utility Functions'!$L$5,'Utility Functions'!$L$6)","v":0.94623655913978499},{"$f":"valueE(H26,'Utility Functions'!$N$3,'Utility Functions'!$N$4,'Utility Functions'!$N$5,'Utility Functions'!$N$6)","v":0.29222011385199242},{"$f":"valuePL(I26,'Utility Functions'!$O$3:$O$6,'Utility Functions'!$P$3:$P$6)","v":0},{"$f":"valuePL(J26,'Utility Functions'!$Q$3:$Q$6,'Utility Functions'!$R$3:$R$6)","v":0},{"$f":"valuePL(K26,'Utility Functions'!$S$3:$S$7,'Utility Functions'!$T$3:$T$7)","v":0},{"$f":"valueE(L26,'Utility Functions'!$V$3,'Utility Functions'!$V$4,'Utility Functions'!$V$5,'Utility Functions'!$V$6)","v":0},{"$f":"valuePL(M26,'Utility Functions'!$W$3:$W$6,'Utility Functions'!$X$3:$X$6)","v":0},{"$f":"valueE(N26,'Utility Functions'!$Z$3,'Utility Functions'!$Z$4,'Utility Functions'!$Z$5,'Utility Functions'!$Z$6)","v":1},{"$f":"valuePL(O26,'Utility Functions'!$AA$3:$AA$5,'Utility Functions'!$AB$3:$AB$5)","v":0.25},{"$f":"valuePL(P26,'Utility Functions'!$AC$3:$AC$7,'Utility Functions'!$AD$3:$AD$7)","v":0.5},{"$f":"valuePL(Q26,'Utility Functions'!$AE$3:$AE$6,'Utility Functions'!$AF$3:$AF$6)","v":0.5},{"$f":"valuePL(R26,'Utility Functions'!$AG$3:$AG$6,'Utility Functions'!$AH$3:$AH$6)","v":1},{"$f":"valuePL(S26,'Utility Functions'!$AI$3:$AI$6,'Utility Functions'!$AJ$3:$AJ$6)","v":1},{"$f":"valuePL(T26,'Utility Functions'!$AK$3:$AK$8,'Utility Functions'!$AL$3:$AL$8)","v":0},{"$f":"valuePL(U26,'Utility Functions'!$AM$3:$AM$5,'Utility Functions'!$AN$3:$AN$5)","v":0},{"$f":"valuePL(V26,'Utility Functions'!$AO$3:$AO$5,'Utility Functions'!$AP$3:$AP$5)","v":1},{"$f":"valuePL(W26,'Utility Functions'!$AQ$3:$AQ$6,'Utility Functions'!$AR$3:$AR$6)","v":0.2},{"$f":"valuePL(X26,'Utility Functions'!$AS$3:$AS$6,'Utility Functions'!$AT$3:$AT$6)","v":1},{"$f":"valuePL(Y26,'Utility Functions'!$AU$3:$AU$6,'Utility Functions'!$AV$3:$AV$6)","v":0.8},{"$f":"valuePL(Z26,'Utility Functions'!$AW$3:$AW$5,'Utility Functions'!$AX$3:$AX$5)","v":0.5},{"$f":"valuePL(AA26,'Utility Functions'!$AY$3:$AY$6,'Utility Functions'!$AZ$3:$AZ$6)","v":0.2},{"$f":"valuePL(AB26,'Utility Functions'!$BA$3:$BA$5,'Utility Functions'!$BB$3:$BB$5)","v":1},{"$f":"valuePL(AC26,'Utility Functions'!$BC$3:$BC$5,'Utility Functions'!$BD$3:$BD$5)","v":1},13.870607417804099,null,13.870607417804099,2.6821507448123207,1.2384566729917774,1.25,3,5.7]
[26,{"$f":"valueE(B27,'Utility Functions'!$B$3,'Utility Functions'!$B$4,'Utility Functions'!$B$5,'Utility Functions'!$B$6)","v":0.96662819462069161},{"$f":"valueE(C27,'Utility Functions'!$D$3,'Utility Functions'!$D$4,'Utility Functions'!$D$5,'Utility Functions'!$D$6)","v":0.84744836833951609},{"$f":"valuePL(D27,'Utility Functions'!$E$3:$E$5,'Utility Functions'!$F$3:$F$5)","v":1},{"$f":"valuePL(E27,'Utility Functions'!$G$3:$G$5,'Utility Functions'!$H$3:$H$5)","v":0.5},{"$f":"valuePL(F27,'Utility Functions'!$I$3:$I$4,'Utility Functions'!$J$3:$J$5)","v":0},{"$f":"valueE(G27,'Utility Functions'!$L$3,'Utility Functions'!$L$4,'Utility Functions'!$L$5,'Utility Functions'!$L$6)","v":0},{"$f":"valueE(H27,'Utility Functions'!$N$3,'Utility Functions'!$N$4,'Utility Functions'!$N$5,'Utility Functions'!$N$6)","v":0},{"$f":"valuePL(I27,'Utility Functions'!$O$3:$O$6,'Utility Functions'!$P$3:$P$6)","v":0},{"$f":"valuePL(J27,'Utility Functions'!$Q$3:$Q$6,'Utility Functions'!$R$3:$R$6)","v":0},{"$f":"valuePL(K27,'Utility Functions'!$S$3:$S$7,'Utility Functions'!$T$3:$T$7)","v":0},{"$f":"valueE(L27,'Utility Functions'!$V$3,'Utility Functions'!$V$4,'Utility Functions'!$V$5,'Utility Functions'!$V$6)","v":0},{"$f":"valuePL(M27,'Utility Functions'!$W$3:$W$6,'Utility Functions'!$X$3:$X$6)","v":0},{"$f":"valueE(N27,'Utility Functions'!$Z$3,'Utility Functions'!$Z$4,'Utility Functions'!$Z$5,'Utility Functions'!$Z$6)","v":0},{"$f":"valuePL(O27,'Utility Functions'!$AA$3:$AA$5,'Utility Functions'!$AB$3:$AB$5)","v":0},{"$f":"valuePL(P27,'Utility Functions'!$AC$3:$AC$7,'Utility Functions'!$AD$3:$AD$7)","v":0.75},{"$f":"valuePL(Q27,'Utility Functions'!$AE$3:$AE$6,'Utility Functions'!$AF$3:$AF$6)","v":0},{"$f":"valuePL(R27,'Utility Functions'!$AG$3:$AG$6,'Utility Functions'!$AH$3:$AH$6)","v":1},{"$f":"valuePL(S27,'Utility Functions'!$AI$3:$AI$6,'Utility Functions'!$AJ$3:$AJ$6)","v":1},{"$f":"valuePL(T27,'Utility Functions'!$AK$3:$AK$8,'Utility Functions'!$AL$3:$AL$8)","v":0.8},{"$f":"valuePL(U27,'Utility Functions'!$AM$3:$AM$5,'Utility Functions'!$AN$3:$AN$5)","v":0},{"$f":"valuePL(V27,'Utility Functions'!$AO$3:$AO$5,'Utility Functions'!$AP$3:$AP$5)","v":1},{"$f":"valuePL(W27,'Utility Functions'!$AQ$3:$AQ$6,'Utility Functions'!$AR$3:$AR$6)","v":0.2},{"$f":"valuePL(X27,'Utility Functions'!$AS$3:$AS$6,'Utility Functions'!$AT$3:$AT$6)","v":0},{"$f":"valuePL(Y27,'Utility Functions'!$AU$3:$AU$6,'Utility Functions'!$AV$3:$AV$6)","v":0.8},{"$f":"valuePL(Z27,'Utility Functions'!$AW$3:$AW$5,'Utility Functions'!$AX$3:$AX$5)","v":0},{"$f":"valuePL(AA27,'Utility Functions'!$AY$3:$AY$6,'Utility Functions'!$AZ$3:$AZ$6)","v":0.2},{"$f":"valuePL(AB27,'Utility Functions'!$BA$3:$BA$5,'Utility Functions'!$BB$3:$BB$5)","v":1},{"$f":"valuePL(AC27,'Utility Functions'!$BC$3:$BC$5,'Utility Functions'!$BD$3:$BD$5)","v":1},11.064076562960208,null,11.064076562960206,3.3140765629602078,0,0,3.55,4.2]
[27,{"$f":"valueE(B28,'Utility Functions'!$B$3,'Utility Functions'!$B$4,'Utility Functions'!$B$5,'Utility Functions'!$B$6)","v":0},{"$f":"valueE(C28,'Utility Functions'!$D$3,'Utility Functions'!$D$4,'Utility Functions'!$D$5,'Utility Functions'!$D$6)","v":0.46475967153745396},{"$f":"valuePL(D28,'Utility Functions'!$E$3:$E$5,'Utility Functions'!$F$3:$F$5)","v":1},{"$f":"valuePL(E28,'Utility Functions'!$G$3:$G$5,'Utility Functions'!$H$3:$H$5)","v":0},{"$f":"valuePL(F28,'Utility Functions'!$I$3:$I$4,'Utility Functions'!$J$3:$J$5)","v":0},{"$f":"valueE(G28,'Utility Functions'!$L$3,'Utility Functions'!$L$4,'Utility Functions'!$L$5,'Utility Functions'!$L$6)","v":0},{"$f":"valueE(H28,'Utility Functions'!$N$3,'Utility Functions'!$N$4,'Utility Functions'!$N$5,'Utility Functions'!$N$6)","v":0},{"$f":"valuePL(I28,'Utility Functions'!$O$3:$O$6,'Utility Functions'!$P$3:$P$6)","v":0},{"$f":"valuePL(J28,'Utility Functions'!$Q$3:$Q$6,'Utility Functions'!$R$3:$R$6)","v":0},{"$f":"valuePL(K28,'Utility Functions'!$S$3:$S$7,'Utility Functions'!$T$3:$T$7)","v":1},{"$f":"valueE(L28,'Utility Functions'!$V$3,'Utility Functions'!$V$4,'Utility Functions'!$V$5,'Utility Functions'!$V$6)","v":0},{"$f":"valuePL(M28,'Utility Functions'!$W$3:$W$6,'Utility Functions'!$X$3:$X$6)","v":0.1},{"$f":"valueE(N28,'Utility Functions'!$Z$3,'Utility Functions'!$Z$4,'Utility Functions'!$Z$5,'Utility Functions'!$Z$6)","v":0},{"$f":"valuePL(O28,'Utility Functions'!$AA$3:$AA$5,'Utility Functions'!$AB$3:$AB$5)","v":0},{"$f":"valuePL(P28,'Utility Functions'!$AC$3:$AC$7,'Utility Functions'!$AD$3:$AD$7)","v":0.5},{"$f":"valuePL(Q28,'Utility Functions'!$AE$3:$AE$6,'Utility Functions'!$AF$3:$AF$6)","v":0.5},{"$f":"valuePL(R28,'Utility Functions'!$AG$3:$AG$6,'Utility Functions'!$AH$3:$AH$6)","v":1},{"$f":"valuePL(S28,'Utility Functions'!$AI$3:$AI$6,'Utility Functions'!$AJ$3:$AJ$6)","v":1},{"$f":"valuePL(T28,'Utility Functions'!$AK$3:$AK$8,'Utility Functions'!$AL$3:$AL$8)","v":1},{"$f":"valuePL(U28,'Utility Functions'!$AM$3:$AM$5,'Utility Functions'!$AN$3:$AN$5)","v":0},{"$f":"valuePL(V28,'Utility Functions'!$AO$3:$AO$5,'Utility Functions'!$AP$3:$AP$5)","v":0.5},{"$f":"valuePL(W28,'Utility Functions'!$AQ$3:$AQ$6,'Utility Functions'!$AR$3:$AR$6)","v":0.75},{"$f":"valuePL(X28,'Utility Functions'!$AS$3:$AS$6,'Utility Functions'!$AT$3:$AT$6)","v":1},{"$f":"valuePL(Y28,'Utility Functions'!$AU$3:$AU$6,'Utility Functions'!$AV$3:$AV$6)","v":0.2},{"$f":"valuePL(Z28,'Utility Functions'!$AW$3:$AW$5,'Utility Functions'!$AX$3:$AX$5)","v":0},{"$f":"valuePL(AA28,'Utility Functions'!$AY$3:$AY$6,'Utility Functions'!$AZ$3:$AZ$6)","v":0},{"$f":"valuePL(AB28,'Utility Functions'!$BA$3:$BA$5,'Utility Functions'!$BB$3:$BB$5)","v":0},{"$f":"valuePL(AC28,'Utility Functions'!$BC$3:$BC$5,'Utility Functions'!$BD$3:$BD$5)","v":0},9.0147596715374529,null,9.0147596715374547,1.464759671537454,1.1000000000000001,0,4,2.4500000000000002]
[28,{"$f":"valueE(B29,'Utility Functions'!$B$3,'Utility Functions'!$B$4,'Utility Functions'!$B$5,'Utility Functions'!$B$6)","v":0.4511890475224023},{"$f":"valueE(C29,'Utility Functions'!$D$3,'Utility Functions'!$D$4,'Utility Functions'!$D$5,'Utility Functions'!$D$6)","v":0.46475967153745396},{"$f":"valuePL(D29,'Utility Functions'!$E$3:$E$5,'Utility Functions'!$F$3:$F$5)","v":1},{"$f":"valuePL(E29,'Utility Functions'!$G$3:$G$5,'Utility Functions'!$H$3:$H$5)","v":0},{"$f":"valuePL(F29,'Utility Functions'!$I$3:$I$4,'Utility Functions'!$J$3:$J$5)","v":1},{"$f":"valueE(G29,'Utility Functions'!$L$3,'Utility Functions'!$L$4,'Utility Functions'!$L$5,'Utility Functions'!$L$6)","v":0},{"$f":"valueE(H29,'Utility Functions'!$N$3,'Utility Functions'!$N$4,'Utility Functions'!$N$5,'Utility Functions'!$N$6)","v":0},{"$f":"valuePL(I29,'Utility Functions'!$O$3:$O$6,'Utility Functions'!$P$3:$P$6)","v":0},{"$f":"valuePL(J29,'Utility Functions'!$Q$3:$Q$6,'Utility Functions'!$R$3:$R$6)","v":0},{"$f":"valuePL(K29,'Utility Functions'!$S$3:$S$7,'Utility Functions'!$T$3:$T$7)","v":0},{"$f":"valueE(L29,'Utility Functions'!$V$3,'Utility Functions'!$V$4,'Utility Functions'!$V$5,'Utility Functions'!$V$6)","v":0.33333333333333331},{"$f":"valuePL(M29,'Utility Functions'!$W$3:$W$6,'Utility Functions'!$X$3:$X$6)","v":0.1},{"$f":"valueE(N29,'Utility Functions'!$Z$3,'Utility Functions'!$Z$4,'Utility Functions'!$Z$5,'Utility Functions'!$Z$6)","v":0},{"$f":"valuePL(O29,'Utility Functions'!$AA$3:$AA$5,'Utility Functions'!$AB$3:$AB$5)","v":0},{"$f":"valuePL(P29,'Utility Functions'!$AC$3:$AC$7,'Utility Functions'!$AD$3:$AD$7)","v":1},{"$f":"valuePL(Q29,'Utility Functions'!$AE$3:$AE$6,'Utility Functions'!$AF$3:$AF$6)","v":0},{"$f":"valuePL(R29,'Utility Functions'!$AG$3:$AG$6,'Utility Functions'!$AH$3:$AH$6)","v":1},{"$f":"valuePL(S29,'Utility Functions'!$AI$3:$AI$6,'Utility Functions'!$AJ$3:$AJ$6)","v":1},{"$f":"valuePL(T29,'Utility Functions'!$AK$3:$AK$8,'Utility Functions'!$AL$3:$AL$8)","v":0.8},{"$f":"valuePL(U29,'Utility Functions'!$AM$3:$AM$5,'Utility Functions'!$AN$3:$AN$5)","v":0},{"$f":"valuePL(V29,'Utility Functions'!$AO$3:$AO$5,'Utility Functions'!$AP$3:$AP$5)","v":1},{"$f":"valuePL(W29,'Utility Functions'!$AQ$3:$AQ$6,'Utility Functions'!$AR$3:$AR$6)","v":1},{"$f":"valuePL(X29,'Utility Functions'!$AS$3:$AS$6,'Utility Functions'!$AT$3:$AT$6)","v":1},{"$f":"valuePL(Y29,'Utility Functions'!$AU$3:$AU$6,'Utility Functions'!$AV$3:$AV$6)","v":0.2},{"$f":"valuePL(Z29,'Utility Functions'!$AW$3:$AW$5,'Utility Functions'!$AX$3:$AX$5)","v":0},{"$f":"valuePL(AA29,'Utility Functions'!$AY$3:$AY$6,'Utility Functions'!$AZ$3:$AZ$6)","v":0.89999999999999991},{"$f":"valuePL(AB29,'Utility Functions'!$BA$3:$BA$5,'Utility Functions'!$BB$3:$BB$5)","v":1},{"$f":"valuePL(AC29,'Utility Functions'!$BC$3:$BC$5,'Utility Functions'!$BD$3:$BD$5)","v":0.25},12.499282052393189,null,12.499282052393189,2.9159487190598563,0.43333333333333335,0,3.8,5.35]
[29,{"$f":"valueE(B30,'Utility Functions'!$B$3,'Utility Functions'!$B$4,'Utility Functions'!$B$5,'Utility Functions'!$B$6)","v":0.83470237647280454},{"$f":"valueE(C30,'Utility Functions'!$D$3,'Utility Functions'!$D$4,'Utility Functions'!$D$5,'Utility Functions'!$D$6)","v":0.71352759724260828},{"$f":"valuePL(D30,'Utility Functions'!$E$3:$E$5,'Utility Functions'!$F$3:$F$5)","v":1},{"$f":"valuePL(E30,'Utility Functions'!$G$3:$G$5,'Utility Functions'!$H$3:$H$5)","v":0.5},{"$f":"valuePL(F30,'Utility Functions'!$I$3:$I$4,'Utility Functions'!$J$3:$J$5)","v":0},{"$f":"valueE(G30,'Utility Functions'!$L$3,'Utility Functions'!$L$4,'Utility Functions'!$L$5,'Utility Functions'!$L$6)","v":0},{"$f":"valueE(H30,'Utility Functions'!$N$3,'Utility Functions'!$N$4,'Utility Functions'!$N$5,'Utility Functions'!$N$6)","v":0},{"$f":"valuePL(I30,'Utility Functions'!$O$3:$O$6,'Utility Functions'!$P$3:$P$6)","v":0.06},{"$f":"valuePL(J30,'Utility Functions'!$Q$3:$Q$6,'Utility Functions'!$R$3:$R$6)","v":0.67272727272727273},{"$f":"valuePL(K30,'Utility Functions'!$S$3:$S$7,'Utility Functions'!$T$3:$T$7)","v":0},{"$f":"valueE(L30,'Utility Functions'!$V$3,'Utility Functions'!$V$4,'Utility Functions'!$V$5,'Utility Functions'!$V$6)","v":1},{"$f":"valuePL(M30,'Utility Functions'!$W$3:$W$6,'Utility Functions'!$X$3:$X$6)","v":0.67272727272727273},{"$f":"valueE(N30,'Utility Functions'!$Z$3,'Utility Functions'!$Z$4,'Utility Functions'!$Z$5,'Utility Functions'!$Z$6)","v":0},{"$f":"valuePL(O30,'Utility Functions'!$AA$3:$AA$5,'Utility Functions'!$AB$3:$AB$5)","v":0},{"$f":"valuePL(P30,'Utility Functions'!$AC$3:$AC$7,'Utility Functions'!$AD$3:$AD$7)","v":0.25},{"$f":"valuePL(Q30,'Utility Functions'!$AE$3:$AE$6,'Utility Functions'!$AF$3:$AF$6)","v":0},{"$f":"valuePL(R30,'Utility Functions'!$AG$3:$AG$6,'Utility Functions'!$AH$3:$AH$6)","v":1},{"$f":"valuePL(S30,'Utility Functions'!$AI$3:$AI$6,'Utility Functions'!$AJ$3:$AJ$6)","v":1},{"$f":"valuePL(T30,'Utility Functions'!$AK$3:$AK$8,'Utility Functions'!$AL$3:$AL$8)","v":0.8},{"$f":"valuePL(U30,'Utility Functions'!$AM$3:$AM$5,'Utility Functions'!$AN$3:$AN$5)","v":0},{"$f":"valuePL(V30,'Utility Functions'!$AO$3:$AO$5,'Utility Functions'!$AP$3:$AP$5)","v":1},{"$f":"valuePL(W30,'Utility Functions'!$AQ$3:$AQ$6,'Utility Functions'!$AR$3:$AR$6)","v":0.2},{"$f":"valuePL(X30,'Utility Functions'!$AS$3:$AS$6,'Utility Functions'!$AT$3:$AT$6)","v":0},{"$f":"valuePL(Y30,'Utility Functions'!$AU$3:$AU$6,'Utility Functions'!$AV$3:$AV$6)","v":0.8},{"$f":"valuePL(Z30,'Utility Functions'!$AW$3:$AW$5,'Utility Functions'!$AX$3:$AX$5)","v":0.5},{"$f":"valuePL(AA30,'Utility Functions'!$AY$3:$AY$6,'Utility Functions'!$AZ$3:$AZ$6)","v":0.2},{"$f":"valuePL(AB30,'Utility Functions'!$BA$3:$BA$5,'Utility Functions'!$BB$3:$BB$5)","v":0.25},{"$f":"valuePL(AC30,'Utility Functions'!$BC$3:$BC$5,'Utility Functions'!$BD$3:$BD$5)","v":1},12.453684519169958,null,12.453684519169958,3.0482299737154128,2.4054545454545453,0,3.05,3.95]
[30,{"$f":"valueE(B31,'Utility Functions'!$B$3,'Utility Functions'!$B$4,'Utility Functions'!$B$5,'Utility Functions'!$B$6)","v":0.99864114504770318},{"$f":"valueE(C31,'Utility Functions'!$D$3,'Utility Functions'!$D$4,'Utility Functions'!$D$5,'Utility Functions'!$D$6)","v":0.84744836833951609},{"$f":"valuePL(D31,'Utility Functions'!$E$3:$E$5,'Utility Functions'!$F$3:$F$5)","v":1},{"$f":"valuePL(E31,'Utility Functions'!$G$3:$G$5,'Utility Functions'!$H$3:$H$5)","v":0},{"$f":"valuePL(F31,'Utility Functions'!$I$3:$I$4,'Utility Functions'!$J$3:$J$5)","v":0},{"$f":"valueE(G31,'Utility Functions'!$L$3,'Utility Functions'!$L$4,'Utility Functions'!$L$5,'Utility Functions'!$L$6)","v":0},{"$f":"valueE(H31,'Utility Functions'!$N$3,'Utility Functions'!$N$4,'Utility Functions'!$N$5,'Utility Functions'!$N$6)","v":0},{"$f":"valuePL(I31,'Utility Functions'!$O$3:$O$6,'Utility Functions'!$P$3:$P$6)","v":0},{"$f":"valuePL(J31,'Utility Functions'!$Q$3:$Q$6,'Utility Functions'!$R$3:$R$6)","v":0},{"$f":"valuePL(K31,'Utility Functions'!$S$3:$S$7,'Utility Functions'!$T$3:$T$7)","v":0},{"$f":"valueE(L31,'Utility Functions'!$V$3,'Utility Functions'!$V$4,'Utility Functions'!$V$5,'Utility Functions'!$V$6)","v":0.33333333333333331},{"$f":"valuePL(M31,'Utility Functions'!$W$3:$W$6,'Utility Functions'!$X$3:$X$6)","v":0.04},{"$f":"valueE(N31,'Utility Functions'!$Z$3,'Utility Functions'!$Z$4,'Utility Functions'!$Z$5,'Utility Functions'!$Z$6)","v":0},{"$f":"valuePL(O31,'Utility Functions'!$AA$3:$AA$5,'Utility Functions'!$AB$3:$AB$5)","v":0},{"$f":"valuePL(P31,'Utility Functions'!$AC$3:$AC$7,'Utility Functions'!$AD$3:$AD$7)","v":0},{"$f":"valuePL(Q31,'Utility Functions'!$AE$3:$AE$6,'Utility Functions'!$AF$3:$AF$6)","v":0},{"$f":"valuePL(R31,'Utility Functions'!$AG$3:$AG$6,'Utility Functions'!$AH$3:$AH$6)","v":0.2},{"$f":"valuePL(S31,'Utility Functions'!$AI$3:$AI$6,'Utility Functions'!$AJ$3:$AJ$6)","v":0.33},{"$f":"valuePL(T31,'Utility Functions'!$AK$3:$AK$8,'Utility Functions'!$AL$3:$AL$8)","v":0},{"$f":"valuePL(U31,'Utility Functions'!$AM$3:$AM$5,'Utility Functions'!$AN$3:$AN$5)","v":0},{"$f":"valuePL(V31,'Utility Functions'!$AO$3:$AO$5,'Utility Functions'!$AP$3:$AP$5)","v":0},{"$f":"valuePL(W31,'Utility Functions'!$AQ$3:$AQ$6,'Utility Functions'!$AR$3:$AR$6)","v":1},{"$f":"valuePL(X31,'Utility Functions'!$AS$3:$AS$6,'Utility Functions'!$AT$3:$AT$6)","v":0.2},{"$f":"valuePL(Y31,'Utility Functions'!$AU$3:$AU$6,'Utility Functions'!$AV$3:$AV$6)","v":0.8},{"$f":"valuePL(Z31,'Utility Functions'!$AW$3:$AW$5,'Utility Functions'!$AX$3:$AX$5)","v":0},{"$f":"valuePL(AA31,'Utility Functions'!$AY$3:$AY$6,'Utility Functions'!$AZ$3:$AZ$6)","v":0.89999999999999991},{"$f":"valuePL(AB31,'Utility Functions'!$BA$3:$BA$5,'Utility Functions'!$BB$3:$BB$5)","v":1},{"$f":"valuePL(AC31,'Utility Functions'!$BC$3:$BC$5,'Utility Functions'!$BD$3:$BD$5)","v":0},7.6494228467205527,null,7.6494228467205527,2.846089513387219,0.37333333333333329,0,0.53,3.9]
[31,{"$f":"valueE(B32,'Utility Functions'!$B$3,'Utility Functions'!$B$4,'Utility Functions'!$B$5,'Utility Functions'!$B$6)","v":0.55067187023002029},{"$f":"valueE(C32,'Utility Functions'!$D$3,'Utility Functions'!$D$4,'Utility Functions'!$D$5,'Utility Functions'!$D$6)","v":0.84744836833951609},{"$f":"valuePL(D32,'Utility Functions'!$E$3:$E$5,'Utility Functions'!$F$3:$F$5)","v":0.5},{"$f":"valuePL(E32,'Utility Functions'!$G$3:$G$5,'Utility Functions'!$H$3:$H$5)","v":0},{"$f":"valuePL(F32,'Utility Functions'!$I$3:$I$4,'Utility Functions'!$J$3:$J$5)","v":0},{"$f":"valueE(G32,'Utility Functions'!$L$3,'Utility Functions'!$L$4,'Utility Functions'!$L$5,'Utility Functions'!$L$6)","v":0},{"$f":"valueE(H32,'Utility Functions'!$N$3,'Utility Functions'!$N$4,'Utility Functions'!$N$5,'Utility Functions'!$N$6)","v":0},{"$f":"valuePL(I32,'Utility Functions'!$O$3:$O$6,'Utility Functions'!$P$3:$P$6)","v":0.75454545454545452},{"$f":"valuePL(J32,'Utility Functions'!$Q$3:$Q$6,'Utility Functions'!$R$3:$R$6)","v":0.08},{"$f":"valuePL(K32,'Utility Functions'!$S$3:$S$7,'Utility Functions'!$T$3:$T$7)","v":0},{"$f":"valueE(L32,'Utility Functions'!$V$3,'Utility Functions'!$V$4,'Utility Functions'!$V$5,'Utility Functions'!$V$6)","v":0.33333333333333331},{"$f":"valuePL(M32,'Utility Functions'!$W$3:$W$6,'Utility Functions'!$X$3:$X$6)","v":0.08},{"$f":"valueE(N32,'Utility Functions'!$Z$3,'Utility Functions'!$Z$4,'Utility Functions'!$Z$5,'Utility Functions'!$Z$6)","v":0},{"$f":"valuePL(O32,'Utility Functions'!$AA$3:$AA$5,'Utility Functions'!$AB$3:$AB$5)","v":0},{"$f":"valuePL(P32,'Utility Functions'!$AC$3:$AC$7,'Utility Functions'!$AD$3:$AD$7)","v":0.5},{"$f":"valuePL(Q32,'Utility Functions'!$AE$3:$AE$6,'Utility Functions'!$AF$3:$AF$6)","v":0},{"$f":"valuePL(R32,'Utility Functions'!$AG$3:$AG$6,'Utility Functions'!$AH$3:$AH$6)","v":1},{"$f":"valuePL(S32,'Utility Functions'!$AI$3:$AI$6,'Utility Functions'!$AJ$3:$AJ$6)","v":0.66},{"$f":"valuePL(T32,'Utility Functions'!$AK$3:$AK$8,'Utility Functions'!$AL$3:$AL$8)","v":0.6},{"$f":"valuePL(U32,'Utility Functions'!$AM$3:$AM$5,'Utility Functions'!$AN$3:$AN$5)","v":0},{"$f":"valuePL(V32,'Utility Functions'!$AO$3:$AO$5,'Utility Functions'!$AP$3:$AP$5)","v":0.5},{"$f":"valuePL(W32,'Utility Functions'!$AQ$3:$AQ$6,'Utility Functions'!$AR$3:$AR$6)","v":0},{"$f":"valuePL(X32,'Utility Functions'!$AS$3:$AS$6,'Utility Functions'!$AT$3:$AT$6)","v":0.2},{"$f":"valuePL(Y32,'Utility Functions'!$AU$3:$AU$6,'Utility Functions'!$AV$3:$AV$6)","v":0.2},{"$f":"valuePL(Z32,'Utility Functions'!$AW$3:$AW$5,'Utility Functions'!$AX$3:$AX$5)","v":1},{"$f":"valuePL(AA32,'Utility Functions'!$AY$3:$AY$6,'Utility Functions'!$AZ$3:$AZ$6)","v":0.89999999999999991},{"$f":"valuePL(AB32,'Utility Functions'!$BA$3:$BA$5,'Utility Functions'!$BB$3:$BB$5)","v":0.25},{"$f":"valuePL(AC32,'Utility Functions'!$BC$3:$BC$5,'Utility Functions'!$BD$3:$BD$5)","v":0.25},9.2059990264483247,null,9.2059990264483247,1.8981202385695364,1.2478787878787878,0,2.7600000000000002,3.3]
[32,{"$f":"valueE(B33,'Utility Functions'!$B$3,'Utility Functions'!$B$4,'Utility Functions'!$B$5,'Utility Functions'!$B$6)","v":0.63212151658375171},{"$f":"valueE(C33,'Utility Functions'!$D$3,'Utility Functions'!$D$4,'Utility Functions'!$D$5,'Utility Functions'!$D$6)","v":0.26839655623815994},{"$f":"valuePL(D33,'Utility Functions'!$E$3:$E$5,'Utility Functions'!$F$3:$F$5)","v":1},{"$f":"valuePL(E33,'Utility Functions'!$G$3:$G$5,'Utility Functions'!$H$3:$H$5)","v":1},{"$f":"valuePL(F33,'Utility Functions'!$I$3:$I$4,'Utility Functions'!$J$3:$J$5)","v":1},{"$f":"valueE(G33,'Utility Functions'!$L$3,'Utility Functions'!$L$4,'Utility Functions'!$L$5,'Utility Functions'!$L$6)","v":3.2258064516129031E-2},{"$f":"valueE(H33,'Utility Functions'!$N$3,'Utility Functions'!$N$4,'Utility Functions'!$N$5,'Utility Functions'!$N$6)","v":9.6774193548387094E-2},{"$f":"valuePL(I33,'Utility Functions'!$O$3:$O$6,'Utility Functions'!$P$3:$P$6)","v":0.34545454545454546},{"$f":"valuePL(J33,'Utility Functions'!$Q$3:$Q$6,'Utility Functions'!$R$3:$R$6)","v":1},{"$f":"valuePL(K33,'Utility Functions'!$S$3:$S$7,'Utility Functions'!$T$3:$T$7)","v":0.34545454545454546},{"$f":"valueE(L33,'Utility Functions'!$V$3,'Utility Functions'!$V$4,'Utility Functions'!$V$5,'Utility Functions'!$V$6)","v":1},{"$f":"valuePL(M33,'Utility Functions'!$W$3:$W$6,'Utility Functions'!$X$3:$X$6)","v":1},{"$f":"valueE(N33,'Utility Functions'!$Z$3,'Utility Functions'!$Z$4,'Utility Functions'!$Z$5,'Utility Functions'!$Z$6)","v":0},{"$f":"valuePL(O33,'Utility Functions'!$AA$3:$AA$5,'Utility Functions'!$AB$3:$AB$5)","v":0},{"$f":"valuePL(P33,'Utility Functions'!$AC$3:$AC$7,'Utility Functions'!$AD$3:$AD$7)","v":0.5},{"$f":"valuePL(Q33,'Utility Functions'!$AE$3:$AE$6,'Utility Functions'!$AF$3:$AF$6)","v":1},{"$f":"valuePL(R33,'Utility Functions'!$AG$3:$AG$6,'Utility Functions'!$AH$3:$AH$6)","v":1},{"$f":"valuePL(S33,'Utility Functions'!$AI$3:$AI$6,'Utility Functions'!$AJ$3:$AJ$6)","v":0},{"$f":"valuePL(T33,'Utility Functions'!$AK$3:$AK$8,'Utility Functions'!$AL$3:$AL$8)","v":0.8},{"$f":"valuePL(U33,'Utility Functions'!$AM$3:$AM$5,'Utility Functions'!$AN$3:$AN$5)","v":0},{"$f":"valuePL(V33,'Utility Functions'!$AO$3:$AO$5,'Utility Functions'!$AP$3:$AP$5)","v":0},{"$f":"valuePL(W33,'Utility Functions'!$AQ$3:$AQ$6,'Utility Functions'!$AR$3:$AR$6)","v":0.75},{"$f":"valuePL(X33,'Utility Functions'!$AS$3:$AS$6,'Utility Functions'!$AT$3:$AT$6)","v":0.2},{"$f":"valuePL(Y33,'Utility Functions'!$AU$3:$AU$6,'Utility Functions'!$AV$3:$AV$6)","v":0.8},{"$f":"valuePL(Z33,'Utility Functions'!$AW$3:$AW$5,'Utility Functions'!$AX$3:$AX$5)","v":0.5},{"$f":"valuePL(AA33,'Utility Functions'!$AY$3:$AY$6,'Utility Functions'!$AZ$3:$AZ$6)","v":0},{"$f":"valuePL(AB33,'Utility Functions'!$BA$3:$BA$5,'Utility Functions'!$BB$3:$BB$5)","v":1},{"$f":"valuePL(AC33,'Utility Functions'!$BC$3:$BC$5,'Utility Functions'!$BD$3:$BD$5)","v":0.25},14.52045942179552,null,14.520459421795518,3.9005180728219115,3.8199413489736074,0,3.3,3.5]
[33,{"$f":"valueE(B34,'Utility Functions'!$B$3,'Utility Functions'!$B$4,'Utility Functions'!$B$5,'Utility Functions'!$B$6)","v":0.93919136038504192},{"$f":"valueE(C34,'Utility Functions'!$D$3,'Utility Functions'!$D$4,'Utility Functions'!$D$5,'Utility Functions'!$D$6)","v":0.84744836833951609},{"$f":"valuePL(D34,'Utility Functions'!$E$3:$E$5,'Utility Functions'!$F$3:$F$5)","v":1},{"$f":"valuePL(E34,'Utility Functions'!$G$3:$G$5,'Utility Functions'!$H$3:$H$5)","v":0.5},{"$f":"valuePL(F34,'Utility Functions'!$I$3:$I$4,'Utility Functions'!$J$3:$J$5)","v":0},{"$f":"valueE(G34,'Utility Functions'!$L$3,'Utility Functions'!$L$4,'Utility Functions'!$L$5,'Utility Functions'!$L$6)","v":0},{"$f":"valueE(H34,'Utility Functions'!$N$3,'Utility Functions'!$N$4,'Utility Functions'!$N$5,'Utility Functions'!$N$6)","v":0},{"$f":"valuePL(I34,'Utility Functions'!$O$3:$O$6,'Utility Functions'!$P$3:$P$6)","v":0},{"$f":"valuePL(J34,'Utility Functions'!$Q$3:$Q$6,'Utility Functions'!$R$3:$R$6)","v":0},{"$f":"valuePL(K34,'Utility Functions'!$S$3:$S$7,'Utility Functions'!$T$3:$T$7)","v":0},{"$f":"valueE(L34,'Utility Functions'!$V$3,'Utility Functions'!$V$4,'Utility Functions'!$V$5,'Utility Functions'!$V$6)","v":0.5},{"$f":"valuePL(M34,'Utility Functions'!$W$3:$W$6,'Utility Functions'!$X$3:$X$6)","v":0},{"$f":"valueE(N34,'Utility Functions'!$Z$3,'Utility Functions'!$Z$4,'Utility Functions'!$Z$5,'Utility Functions'!$Z$6)","v":0},{"$f":"valuePL(O34,'Utility Functions'!$AA$3:$AA$5,'Utility Functions'!$AB$3:$AB$5)","v":0},{"$f":"valuePL(P34,'Utility Functions'!$AC$3:$AC$7,'Utility Functions'!$AD$3:$AD$7)","v":0.5},{"$f":"valuePL(Q34,'Utility Functions'!$AE$3:$AE$6,'Utility Functions'!$AF$3:$AF$6)","v":0},{"$f":"valuePL(R34,'Utility Functions'!$AG$3:$AG$6,'Utility Functions'!$AH$3:$AH$6)","v":1},{"$f":"valuePL(S34,'Utility Functions'!$AI$3:$AI$6,'Utility Functions'!$AJ$3:$AJ$6)","v":0.66},{"$f":"valuePL(T34,'Utility Functions'!$AK$3:$AK$8,'Utility Functions'!$AL$3:$AL$8)","v":0},{"$f":"valuePL(U34,'Utility Functions'!$AM$3:$AM$5,'Utility Functions'!$AN$3:$AN$5)","v":0},{"$f":"valuePL(V34,'Utility Functions'!$AO$3:$AO$5,'Utility Functions'!$AP$3:$AP$5)","v":0.5},{"$f":"valuePL(W34,'Utility Functions'!$AQ$3:$AQ$6,'Utility Functions'!$AR$3:$AR$6)","v":1},{"$f":"valuePL(X34,'Utility Functions'!$AS$3:$AS$6,'Utility Functions'!$AT$3:$AT$6)","v":0},{"$f":"valuePL(Y34,'Utility Functions'!$AU$3:$AU$6,'Utility Functions'!$AV$3:$AV$6)","v":0.8},{"$f":"valuePL(Z34,'Utility Functions'!$AW$3:$AW$5,'Utility Functions'!$AX$3:$AX$5)","v":1},{"$f":"valuePL(AA34,'Utility Functions'!$AY$3:$AY$6,'Utility Functions'!$AZ$3:$AZ$6)","v":1},{"$f":"valuePL(AB34,'Utility Functions'!$BA$3:$BA$5,'Utility Functions'!$BB$3:$BB$5)","v":0},{"$f":"valuePL(AC34,'Utility Functions'!$BC$3:$BC$5,'Utility Functions'!$BD$3:$BD$5)","v":0},10.246639728724558,null,10.246639728724558,3.2866397287245581,0.5,0,2.16,4.3]
[34,{"$f":"valueE(B35,'Utility Functions'!$B$3,'Utility Functions'!$B$4,'Utility Functions'!$B$5,'Utility Functions'!$B$6)","v":0},{"$f":"valueE(C35,'Utility Functions'!$D$3,'Utility Functions'!$D$4,'Utility Functions'!$D$5,'Utility Functions'!$D$6)","v":0},{"$f":"valuePL(D35,'Utility Functions'!$E$3:$E$5,'Utility Functions'!$F$3:$F$5)","v":0},{"$f":"valuePL(E35,'Utility Functions'!$G$3:$G$5,'Utility Functions'!$H$3:$H$5)","v":0},{"$f":"valuePL(F35,'Utility Functions'!$I$3:$I$4,'Utility Functions'!$J$3:$J$5)","v":0},{"$f":"valueE(G35,'Utility Functions'!$L$3,'Utility Functions'!$L$4,'Utility Functions'!$L$5,'Utility Functions'!$L$6)","v":0},{"$f":"valueE(H35,'Utility Functions'!$N$3,'Utility Functions'!$N$4,'Utility Functions'!$N$5,'Utility Functions'!$N$6)","v":1.1385199240986717E-2},{"$f":"valuePL(I35,'Utility Functions'!$O$3:$O$6,'Utility Functions'!$P$3:$P$6)","v":1},{"$f":"valuePL(J35,'Utility Functions'!$Q$3:$Q$6,'Utility Functions'!$R$3:$R$6)","v":0.91818181818181821},{"$f":"valuePL(K35,'Utility Functions'!$S$3:$S$7,'Utility Functions'!$T$3:$T$7)","v":1},{"$f":"valueE(L35,'Utility Functions'!$V$3,'Utility Functions'!$V$4,'Utility Functions'!$V$5,'Utility Functions'!$V$6)","v":1},{"$f":"valuePL(M35,'Utility Functions'!$W$3:$W$6,'Utility Functions'!$X$3:$X$6)","v":0.91818181818181821},{"$f":"valueE(N35,'Utility Functions'!$Z$3,'Utility Functions'!$Z$4,'Utility Functions'!$Z$5,'Utility Functions'!$Z$6)","v":0},{"$f":"valuePL(O35,'Utility Functions'!$AA$3:$AA$5,'Utility Functions'!$AB$3:$AB$5)","v":0},{"$f":"valuePL(P35,'Utility Functions'!$AC$3:$AC$7,'Utility Functions'!$AD$3:$AD$7)","v":0.5},{"$f":"valuePL(Q35,'Utility Functions'!$AE$3:$AE$6,'Utility Functions'!$AF$3:$AF$6)","v":0},{"$f":"valuePL(R35,'Utility Functions'!$AG$3:$AG$6,'Utility Functions'!$AH$3:$AH$6)","v":1},{"$f":"valuePL(S35,'Utility Functions'!$AI$3:$AI$6,'Utility Functions'!$AJ$3:$AJ$6)","v":1},{"$f":"valuePL(T35,'Utility Functions'!$AK$3:$AK$8,'Utility Functions'!$AL$3:$AL$8)","v":0.8},{"$f":"valuePL(U35,'Utility Functions'!$AM$3:$AM$5,'Utility Functions'!$AN$3:$AN$5)","v":0},{"$f":"valuePL(V35,'Utility Functions'!$AO$3:$AO$5,'Utility Functions'!$AP$3:$AP$5)","v":1},{"$f":"valuePL(W35,'Utility Functions'!$AQ$3:$AQ$6,'Utility Functions'!$AR$3:$AR$6)","v":1},{"$f":"valuePL(X35,'Utility Functions'!$AS$3:$AS$6,'Utility Functions'!$AT$3:$AT$6)","v":1},{"$f":"valuePL(Y35,'Utility Functions'!$AU$3:$AU$6,'Utility Functions'!$AV$3:$AV$6)","v":0},{"$f":"valuePL(Z35,'Utility Functions'!$AW$3:$AW$5,'Utility Functions'!$AX$3:$AX$5)","v":1},{"$f":"valuePL(AA35,'Utility Functions'!$AY$3:$AY$6,'Utility Functions'!$AZ$3:$AZ$6)","v":0.89999999999999991},{"$f":"valuePL(AB35,'Utility Functions'!$BA$3:$BA$5,'Utility Functions'!$BB$3:$BB$5)","v":0.25},{"$f":"valuePL(AC35,'Utility Functions'!$BC$3:$BC$5,'Utility Functions'!$BD$3:$BD$5)","v":0},13.297748835604624,null,13.297748835604624,0,4.847748835604623,0,3.3,5.15]
[35,{"$f":"valueE(B36,'Utility Functions'!$B$3,'Utility Functions'!$B$4,'Utility Functions'!$B$5,'Utility Functions'!$B$6)","v":0.79810469124896843},{"$f":"valueE(C36,'Utility Functions'!$D$3,'Utility Functions'!$D$4,'Utility Functions'!$D$5,'Utility Functions'!$D$6)","v":0.60939983135101949},{"$f":"valuePL(D36,'Utility Functions'!$E$3:$E$5,'Utility Functions'!$F$3:$F$5)","v":0.5},{"$f":"valuePL(E36,'Utility Functions'!$G$3:$G$5,'Utility Functions'!$H$3:$H$5)","v":0.5},{"$f":"valuePL(F36,'Utility Functions'!$I$3:$I$4,'Utility Functions'!$J$3:$J$5)","v":1},{"$f":"valueE(G36,'Utility Functions'!$L$3,'Utility Functions'!$L$4,'Utility Functions'!$L$5,'Utility Functions'!$L$6)","v":0},{"$f":"valueE(H36,'Utility Functions'!$N$3,'Utility Functions'!$N$4,'Utility Functions'!$N$5,'Utility Functions'!$N$6)","v":0},{"$f":"valuePL(I36,'Utility Functions'!$O$3:$O$6,'Utility Functions'!$P$3:$P$6)","v":0},{"$f":"valuePL(J36,'Utility Functions'!$Q$3:$Q$6,'Utility Functions'!$R$3:$R$6)","v":0},{"$f":"valuePL(K36,'Utility Functions'!$S$3:$S$7,'Utility Functions'!$T$3:$T$7)","v":1},{"$f":"valueE(L36,'Utility Functions'!$V$3,'Utility Functions'!$V$4,'Utility Functions'!$V$5,'Utility Functions'!$V$6)","v":0.66666666666666663},{"$f":"valuePL(M36,'Utility Functions'!$W$3:$W$6,'Utility Functions'!$X$3:$X$6)","v":0.1},{"$f":"valueE(N36,'Utility Functions'!$Z$3,'Utility Functions'!$Z$4,'Utility Functions'!$Z$5,'Utility Functions'!$Z$6)","v":1},{"$f":"valuePL(O36,'Utility Functions'!$AA$3:$AA$5,'Utility Functions'!$AB$3:$AB$5)","v":0},{"$f":"valuePL(P36,'Utility Functions'!$AC$3:$AC$7,'Utility Functions'!$AD$3:$AD$7)","v":0},{"$f":"valuePL(Q36,'Utility Functions'!$AE$3:$AE$6,'Utility Functions'!$AF$3:$AF$6)","v":0},{"$f":"valuePL(R36,'Utility Functions'!$AG$3:$AG$6,'Utility Functions'!$AH$3:$AH$6)","v":1},{"$f":"valuePL(S36,'Utility Functions'!$AI$3:$AI$6,'Utility Functions'!$AJ$3:$AJ$6)","v":1},{"$f":"valuePL(T36,'Utility Functions'!$AK$3:$AK$8,'Utility Functions'!$AL$3:$AL$8)","v":0.6},{"$f":"valuePL(U36,'Utility Functions'!$AM$3:$AM$5,'Utility Functions'!$AN$3:$AN$5)","v":0},{"$f":"valuePL(V36,'Utility Functions'!$AO$3:$AO$5,'Utility Functions'!$AP$3:$AP$5)","v":1},{"$f":"valuePL(W36,'Utility Functions'!$AQ$3:$AQ$6,'Utility Functions'!$AR$3:$AR$6)","v":0.75},{"$f":"valuePL(X36,'Utility Functions'!$AS$3:$AS$6,'Utility Functions'!$AT$3:$AT$6)","v":0},{"$f":"valuePL(Y36,'Utility Functions'!$AU$3:$AU$6,'Utility Functions'!$AV$3:$AV$6)","v":0.2},{"$f":"valuePL(Z36,'Utility Functions'!$AW$3:$AW$5,'Utility Functions'!$AX$3:$AX$5)","v":1},{"$f":"valuePL(AA36,'Utility Functions'!$AY$3:$AY$6,'Utility Functions'!$AZ$3:$AZ$6)","v":0},{"$f":"valuePL(AB36,'Utility Functions'!$BA$3:$BA$5,'Utility Functions'!$BB$3:$BB$5)","v":0.25},{"$f":"valuePL(AC36,'Utility Functions'!$BC$3:$BC$5,'Utility Functions'!$BD$3:$BD$5)","v":0.25},12.224171189266654,null,12.224171189266656,3.407504522599988,1.7666666666666666,1,2.6,3.45]
["Unweighted",{"$f":"SUMPRODUCT(B46:B80,$B$85:$B$119)","v":2.2879679218640305},{"$f":"SUMPRODUCT(C46:C80,$B$85:$B$119)","v":2.0544502672077192},{"$f":"SUMPRODUCT(D46:D80,$B$85:$B$119)","v":3},0.5,0,0,3.9848197343453511E-2,0.83818181818181825,0.08,0.3290909090909091,1.5,0.04,2.5,0.75,1,1.6,4,3.66,1.8,0.75,3,3.75,2.4000000000000004,3.4000000000000004,3.5,2.2999999999999998,2.5,1.5,null,null,"Unweighted",{"$f":"SUMPRODUCT(AG46:AG80,$B$85:$B$119)","v":7.8424181890717497},{"$f":"SUMPRODUCT(AH46:AH80,$B$85:$B$119)","v":2.8271209246161808},3.25,12.81,22.35]
["Weighted",{"$f":"B$81*Sens_EP!I$5","v":4.1226832833812989E-2},{"$f":"C$81*Sens_EP!J$5","v":3.4995058782528711E-2},{"$f":"D$81*Sens_EP!K$5","v":5.1752094618216227E-2},{"$f":"E$81*Sens_EP!L$5","v":8.4032813566339761E-3},{"$f":"F$81*Sens_EP!M$5","v":0},{"$f":"G$81*Sens_EP!N$5","v":0},{"$f":"H$81*Sens_EP!O$5","v":3.3611406999960137E-4},{"$f":"I$81*Sens_EP!P$5","v":1.2001157205217631E-2},{"$f":"J$81*Sens_EP!Q$5","v":1.116180463204328E-3},{"$f":"K$81*Sens_EP!R$5","v":4.0453572325419296E-3},{"$f":"L$81*Sens_EP!S$5","v":1.8899069333062117E-2},{"$f":"M$81*Sens_EP!T$5","v":3.8053954246129989E-4},{"$f":"N$81*Sens_EP!U$5","v":0.3125},{"$f":"O$81*Sens_EP!V$5","v":0.28125},{"$f":"P$81*Sens_EP!W$5","v":2.2464454491427054E-2},{"$f":"Q$81*Sens_EP!X$5","v":3.96205791842816E-2},{"$f":"R$81*Sens_EP!Y$5","v":0.11337907515914826},{"$f":"S$81*Sens_EP!Z$5","v":9.0862500630672319E-2},{"$f":"T$81*Sens_EP!AA$5","v":3.252612352923781E-2},{"$f":"U$81*Sens_EP!AB$5","v":1.3421746965334436E-2},{"$f":"V$81*Sens_EP!AC$5","v":9.2823354206646516E-2},{"$f":"W$81*Sens_EP!AD$5","v":8.3676932296070858E-2},{"$f":"X$81*Sens_EP!AE$5","v":5.7271931528707555E-2},{"$f":"Y$81*Sens_EP!AF$5","v":0.10082457741813136},{"$f":"Z$81*Sens_EP!AG$5","v":8.9931549468184338E-2},{"$f":"AA$81*Sens_EP!AH$5","v":4.5791840936701668E-2},{"$f":"AB$81*Sens_EP!AI$5","v":5.2785968246054714E-2},{"$f":"AC$81*Sens_EP!AJ$5","v":2.9535971165644007E-2},null,null,"Weighted for SA",{"$f":"AG81*#REF!","v":{"$error":"#REF!"}},{"$f":"AH81*#REF!","v":{"$error":"#REF!"}},{"$f":"AI81*#REF!","v":{"$error":"#REF!"}},{"$f":"AJ81*#REF!","v":{"$error":"#REF!"}},{"$f":"AK81*#REF!","v":{"$error":"#REF!"}}]
[]
[null,"Decision variable","Benefit","Cost"]
[{"$f":"A2","v":1},0,{"$f":"AD46","v":17.117643866192076},{"$f":"AD2","v":700000}]
[2,0,{"$f":"AD47","v":12.641625800575998},{"$f":"AD3","v":5400000}]
[3,1,11.563541444302563,250000]
[4,0,9.2460291931089209,150000]
[5,1,9.5663279251355373,220000]
[6,0,5.9008471271383875,110000]
[7,0,15.54287399641135,1000000]
[8,0,14.227364688589191,5000000]
[9,0,11.893773577166716,25000]
[10,0,9.01,900000]
[11,0,13.174032258064516,1500000]
[12,0,9.4195802436719873,100000]
[13,1,7.5245670174228056,250000]
[14,0,10.338706637075108,500000]
[15,0,15.150477261414375,800000]
[16,0,15.119696969696969,2000000]
[17,0,10.876550515651747,500000]
[18,1,10.178462998102468,300000]
[19,0,9.3165012474871283,750000]
[20,0,15.091255033092194,1500000]
[21,0,9.5500000000000007,900000]
[22,0,9.471742567994939,750000]
[23,0,9.5321507448123199,1000000]
[24,0,9.4968811881212041,150000]
[25,0,13.870607417804099,250000]
[26,0,11.064076562960208,500000]
[27,0,9.0147596715374529,1200000]
[28,0,12.499282052393189,500000]
[29,0,12.453684519169958,2000000]
[30,0,7.6494228467205527,250000]
[31,0,9.2059990264483247,650000]
[32,0,14.52045942179552,200000]
[33,1,10.246639728724558,400000]
[34,0,13.297748835604624,900000]
[35,0,12.224171189266654,900000]
[null,{"$f":"SUM(B85:B119)","v":5},{"$f":"SUMPRODUCT(C85:C119,B85:B119)","v":49.079539113687936},{"$f":"SUMPRODUCT(B85:B119,D85:D119)","v":1420000}]
[]
[null,null,"Cost constraint",15000000]

{"sheet":"Portfolio_E_ep","index":37,"n_rows":122,"n_cols":37,"rows_kept":122,"cut":false,"hidden":false,"merged":[]}
["Project","manage_species","manage_spatial","manage_uncertainty","manage_currentpractices","manage_adaptivemanagement","pop_a","pop_b","pop_spatialscope","pop_temporalscope","hab_quantity","hab_quality","hab_temporal","ecoprocess_spp","ecoprocess_uncertainty","datasharing","broaderimpacts","exisitingpriorities","partners","leverage","alignment","objhyp","response","targettaxa","surveydesign","stats","datamanagement","budget","timeline","cost"]
[1,9,6.25,2,2,0,186,1054,75,5,0,2,0,0,0,4,0,2,3,0,0,2,3,3,3,2,3,2,2,700000]
[2,3,28.2,1,0,0,0,0,0,0,0,2,0,4,1,0,0,3,3,0,0,2,3,3,3,2,3,2,2,5400000]
[3,8,28.2,2,0,0,0,0,0,0,0,2,0,5,1,0,2,0,0,0,1,2,3,3,3,2,1,2,2,250000]
[4,1,6.25,2,0,0,0,0,0,0,0,2,0,4,1,0,1,3,3,4,0,1,3,3,1,0,0,2,1,150000]
[5,4,3.1,2,0,0,0,0,50,2,0,2,0,0,0,0,1,3,3,4,1,0,3,3,2,0,0,2,1,220000]
[6,10,6.2E-2,2,0,0,0,0,10,2,0,2,0,0,0,0,1,0,3,3,0,0,0,3,0,0,0,2,1,110000]
[7,52,18.8,0,2,0,0,0,85,12,85,8,12,8,1,0,0,3,3,0,0,2,0,1,3,2,2,0,2,1000000]
[8,3,18.8,2,1,1,0,0,14,14,14,8,14,0,0,0,3,1,3,0,0,2,3,3,3,2,0,1,1,5000000]
[9,9,15.6,2,1,0,70,140,0,0,0,2,0,0,0,3,0,3,2,1,0,2,3,3,1,2,1,1,2,25000]
[10,0,0,0,0,0,0,0,0,0,0,2,0,6,2,1,2,3,2,2,0,0,2,3,3,1,1,0,2,900000]
[11,0,0,0,0,0,6,102,52,15,52,8,15,3,1,1,0,3,3,2,2,2,1,3,3,1,2,0,1,1500000]
[12,2,15.6,2,1,0,0,0,0,0,0,2,0,0,0,0,1,3,3,3,0,1,1,3,1,2,1,2,0,100000]
[13,0,0,0,0,0,0,12,39,2,39,8,2,7,1,1,0,3,3,0,0,1,0,1,0,2,1,1,1,250000]
[14,6,15.6,1,1,0,0,0,0,0,0,2,0,6,1,1,0,3,3,0,0,1,1,3,3,1,2,1,1,500000]
[15,23,12.5,2,1,1,0,0,23,3,23,8,3,1,2,2,0,2,3,3,2,0,3,1,1,2,3,2,1,800000]
[16,0,0,0,0,0,0,0,100,15,100,7,15,0,0,3,0,3,3,5,0,2,2,2,1,2,3,2,2,2000000]
[17,2,15.6,2,1,1,58,290,0,0,0,8,3,0,0,0,0,3,2,0,0,2,3,1,0,1,0,2,1,500000]
[18,0,0,0,0,0,0,30,0,0,0,2,0,8,1,1,3,3,3,5,1,2,2,1,2,1,2,1,0,300000]
[19,8,3.125,1,2,0,0,0,0,0,0,2,0,8,2,0,0,2,3,0,0,1,1,3,2,0,1,0,1,750000]
[20,9,15.6,1,2,0,0,435,76,10,76,6,10,8,2,1,0,3,3,3,2,1,0,0,1,2,1,0,1,1500000]
[21,0,0,0,0,0,0,0,0,0,0,2,0,8,2,0,1,3,3,5,1,0,2,3,1,0,3,1,2,900000]
[22,0,0,0,0,0,16,64,0,0,0,2,0,1,2,4,2,2,3,5,0,1,2,1,0,2,1,2,1,750000]
[23,9,18.8,2,0,0,0,0,0,0,0,2,0,0,0,3,0,3,3,5,0,2,1,2,1,1,1,0,1,1000000]
[24,5,6.25,2,0,0,0,0,0,0,0,2,0,0,0,0,0,3,3,5,0,0,3,1,3,2,1,0,2,150000]
[25,9,18.8,2,0,0,176,308,0,0,0,2,0,8,1,2,2,3,3,0,0,2,1,3,2,1,1,2,2,250000]
[26,17,18.8,2,1,0,0,0,0,0,0,2,0,0,0,3,0,3,3,4,0,2,1,0,2,0,1,2,2,500000]
[27,0,6.25,2,0,0,0,0,0,0,80,2,5,0,0,2,2,3,3,5,0,1,2,3,1,0,0,0,0,1200000]
[28,3,6.25,2,0,1,0,0,0,0,0,4,5,0,0,4,0,3,3,4,0,2,3,3,1,0,2,2,1,500000]
[29,9,12.5,2,1,0,0,0,15,12,15,8,12,0,0,1,0,3,3,4,0,2,1,0,2,1,1,1,2,2000000]
[30,33,18.8,2,0,0,0,0,0,0,0,4,2,0,0,0,0,1,1,0,0,0,3,1,2,0,2,2,0,250000]
[31,4,18.8,1,0,0,0,0,65,4,0,4,4,0,0,2,0,3,2,3,0,1,0,1,1,2,2,1,1,650000]
[32,5,3.125,2,2,1,6,102,40,16,40,8,16,0,0,2,3,3,0,4,0,0,2,1,2,1,0,2,1,200000]
[33,14,18.8,2,1,0,0,0,0,0,0,5,0,0,0,2,0,3,2,0,0,1,3,0,2,2,3,0,0,400000]
[34,0,0,0,0,0,0,12,100,15,100,8,15,0,0,2,0,3,3,4,0,2,3,3,0,2,2,1,0,900000]
[35,8,9.4,1,1,1,0,0,0,0,100,6,5,8,0,0,0,3,3,3,0,2,2,0,1,2,0,1,1,900000]
["CV",{"$f":"_xlfn.STDEV.S(B2:B36)/AVERAGE(B2:B36)","v":1.383842854444886},{"$f":"_xlfn.STDEV.S(C2:C36)/AVERAGE(C2:C36)","v":0.84395823753626376},{"$f":"_xlfn.STDEV.S(D2:D36)/AVERAGE(D2:D36)","v":0.65948586466528381},{"$f":"_xlfn.STDEV.S(E2:E36)/AVERAGE(E2:E36)","v":1.2933654230908831},2.2305806858480666,2.9881459898804135,2.7250501152884543,1.5394659205075842,1.5790297611729722,1.6828143944790142,0.63288342730791625,1.4346340567392073,1.2744250477591585,1.2909944487358058,1.043011114951035,1.4910544805781871,0.32582327651393111,0.30721159062514791,0.8219511329380369,2.1760730956581078,0.64975875258290616,0.58618247649425104,0.61083323417736113,0.63333947951472869,0.68629571860885286,0.76505300516434493,0.69428102652373402,0.60312027652595823]
["sd",{"$f":"_xlfn.STDEV.S(B2:B36)","v":10.477667326511279}]
["mean",{"$f":"AVERAGE(B2:B36)","v":7.5714285714285712}]
[null,{"$f":"B1","v":"manage_species"},{"$f":"C1","v":"manage_spatial"},"manage_uncertainty","manage_currentpractices","manage_adaptivemanagement","pop_a","pop_b","pop_spatialscope","pop_temporalscope","hab_quantity","hab_quality","hab_temporal","ecoprocess_spp","ecoprocess_uncertainty","datasharing","broaderimpacts","exisitingpriorities","partners","leverage","alignment","objhyp","response","targettaxa","surveydesign","stats","datamanagement","budget","timeline"]
[null,"Metric 1","Metric 2","Metric 3","Metric 4","Metric 5","Metric 6a","Metric 6b","Metric 7","Metric 8","Metric 9","Metric 10","Metric 11","Metric 12","Metric 13","Metric 14","Metric 15","Metric 16","Metric 17","Metric 18","Metric 19","Metric 20","Metric 21","Metric 22","Metric 23","Metric 24","Metric 25","Metric 26","Metric 27"]
["Weights",0.03,0.03,0.03,0.03,0.04,1.4999999999999999E-2,1.4999999999999999E-2,0.03,0.02,0.02,0.02,0.02,0.03,0.09,0.04,0.04,0.05,0.05,0.03,0.03,0.05,0.04,0.04,0.05,0.05,0.04,0.04,0.03]
[]
[null,"Unweighted"]
["Project",null,null,null,null,null,null,null,null,null,null,null,null,null,null,null,null,null,null,null,null,null,null,null,null,null,null,null,null,"Unweighted total",null,"Unweighted total","management","status","ecol_proc","integration","rigor"]
[{"$f":"A2","v":1},{"$f":"valueE(B2,'Utility Functions'!$B$3,'Utility Functions'!$B$4,'Utility Functions'!$B$5,'Utility Functions'!$B$6)","v":0.83470237647280454},{"$f":"valueE(C2,'Utility Functions'!$D$3,'Utility Functions'!$D$4,'Utility Functions'!$D$5,'Utility Functions'!$D$6)","v":0.46475967153745396},{"$f":"valuePL(D2,'Utility Functions'!$E$3:$E$5,'Utility Functions'!$F$3:$F$5)","v":1},{"$f":"valuePL(E2,'Utility Functions'!$G$3:$G$5,'Utility Functions'!$H$3:$H$5)","v":1},{"$f":"valuePL(F2,'Utility Functions'!$I$3:$I$4,'Utility Functions'!$J$3:$J$5)","v":0},{"$f":"valueE(G2,'Utility Functions'!$L$3,'Utility Functions'!$L$4,'Utility Functions'!$L$5,'Utility Functions'!$L$6)","v":1},{"$f":"valueE(H2,'Utility Functions'!$N$3,'Utility Functions'!$N$4,'Utility Functions'!$N$5,'Utility Functions'!$N$6)","v":1},{"$f":"valuePL(I2,'Utility Functions'!$O$3:$O$6,'Utility Functions'!$P$3:$P$6)","v":0.91818181818181821},{"$f":"valuePL(J2,'Utility Functions'!$Q$3:$Q$6,'Utility Functions'!$R$3:$R$6)","v":0.1},{"$f":"valuePL(K2,'Utility Functions'!$S$3:$S$7,'Utility Functions'!$T$3:$T$7)","v":0},{"$f":"valueE(L2,'Utility Functions'!$V$3,'Utility Functions'!$V$4,'Utility Functions'!$V$5,'Utility Functions'!$V$6)","v":0},{"$f":"valuePL(M2,'Utility Functions'!$W$3:$W$6,'Utility Functions'!$X$3:$X$6)","v":0},{"$f":"valueE(N2,'Utility Functions'!$Z$3,'Utility Functions'!$Z$4,'Utility Functions'!$Z$5,'Utility Functions'!$Z$6)","v":0},{"$f":"valuePL(O2,'Utility Functions'!$AA$3:$AA$5,'Utility Functions'!$AB$3:$AB$5)","v":0},{"$f":"valuePL(P2,'Utility Functions'!$AC$3:$AC$7,'Utility Functions'!$AD$3:$AD$7)","v":1},{"$f":"valuePL(Q2,'Utility Functions'!$AE$3:$AE$6,'Utility Functions'!$AF$3:$AF$6)","v":0},{"$f":"valuePL(R2,'Utility Functions'!$AG$3:$AG$6,'Utility Functions'!$AH$3:$AH$6)","v":0.8},{"$f":"valuePL(S2,'Utility Functions'!$AI$3:$AI$6,'Utility Functions'!$AJ$3:$AJ$6)","v":1},{"$f":"valuePL(T2,'Utility Functions'!$AK$3:$AK$8,'Utility Functions'!$AL$3:$AL$8)","v":0},{"$f":"valuePL(U2,'Utility Functions'!$AM$3:$AM$5,'Utility Functions'!$AN$3:$AN$5)","v":0},{"$f":"valuePL(V2,'Utility Functions'!$AO$3:$AO$5,'Utility Functions'!$AP$3:$AP$5)","v":1},{"$f":"valuePL(W2,'Utility Functions'!$AQ$3:$AQ$6,'Utility Functions'!$AR$3:$AR$6)","v":1},{"$f":"valuePL(X2,'Utility Functions'!$AS$3:$AS$6,'Utility Functions'!$AT$3:$AT$6)","v":1},{"$f":"valuePL(Y2,'Utility Functions'!$AU$3:$AU$6,'Utility Functions'!$AV$3:$AV$6)","v":1},{"$f":"valuePL(Z2,'Utility Functions'!$AW$3:$AW$5,'Utility Functions'!$AX$3:$AX$5)","v":1},{"$f":"valuePL(AA2,'Utility Functions'!$AY$3:$AY$6,'Utility Functions'!$AZ$3:$AZ$6)","v":1},{"$f":"valuePL(AB2,'Utility Functions'!$BA$3:$BA$5,'Utility Functions'!$BB$3:$BB$5)","v":1},{"$f":"valuePL(AC2,'Utility Functions'!$BC$3:$BC$5,'Utility Functions'!$BD$3:$BD$5)","v":1},{"$f":"SUM(B46:AC46)","v":17.117643866192076},null,{"$f":"SUM(AG46:AK46)","v":17.117643866192076},{"$f":"SUM(B46:F46)","v":3.2994620480102586},{"$f":"SUM(G46:M46)","v":3.0181818181818181},{"$f":"SUM(N46:O46)","v":0},{"$f":"SUM(P46:U46)","v":2.8},{"$f":"SUM(V46:AC46)","v":8}]
[2,{"$f":"valueE(B3,'Utility Functions'!$B$3,'Utility Functions'!$B$4,'Utility Functions'!$B$5,'Utility Functions'!$B$6)","v":0.4511890475224023},{"$f":"valueE(C3,'Utility Functions'!$D$3,'Utility Functions'!$D$4,'Utility Functions'!$D$5,'Utility Functions'!$D$6)","v":0.94043675305359531},{"$f":"valuePL(D3,'Utility Functions'!$E$3:$E$5,'Utility Functions'!$F$3:$F$5)","v":0.5},{"$f":"valuePL(E3,'Utility Functions'!$G$3:$G$5,'Utility Functions'!$H$3:$H$5)","v":0},{"$f":"valuePL(F3,'Utility Functions'!$I$3:$I$4,'Utility Functions'!$J$3:$J$5)","v":0},{"$f":"valueE(G3,'Utility Functions'!$L$3,'Utility Functions'!$L$4,'Utility Functions'!$L$5,'Utility Functions'!$L$6)","v":0},{"$f":"valueE(H3,'Utility Functions'!$N$3,'Utility Functions'!$N$4,'Utility Functions'!$N$5,'Utility Functions'!$N$6)","v":0},{"$f":"valuePL(I3,'Utility Functions'!$O$3:$O$6,'Utility Functions'!$P$3:$P$6)","v":0},{"$f":"valuePL(J3,'Utility Functions'!$Q$3:$Q$6,'Utility Functions'!$R$3:$R$6)","v":0},{"$f":"valuePL(K3,'Utility Functions'!$S$3:$S$7,'Utility Functions'!$T$3:$T$7)","v":0},{"$f":"valueE(L3,'Utility Functions'!$V$3,'Utility Functions'!$V$4,'Utility Functions'!$V$5,'Utility Functions'!$V$6)","v":0},{"$f":"valuePL(M3,'Utility Functions'!$W$3:$W$6,'Utility Functions'!$X$3:$X$6)","v":0},{"$f":"valueE(N3,'Utility Functions'!$Z$3,'Utility Functions'!$Z$4,'Utility Functions'!$Z$5,'Utility Functions'!$Z$6)","v":0.5},{"$f":"valuePL(O3,'Utility Functions'!$AA$3:$AA$5,'Utility Functions'!$AB$3:$AB$5)","v":0.25},{"$f":"valuePL(P3,'Utility Functions'!$AC$3:$AC$7,'Utility Functions'!$AD$3:$AD$7)","v":0},{"$f":"valuePL(Q3,'Utility Functions'!$AE$3:$AE$6,'Utility Functions'!$AF$3:$AF$6)","v":0},{"$f":"valuePL(R3,'Utility Functions'!$AG$3:$AG$6,'Utility Functions'!$AH$3:$AH$6)","v":1},{"$f":"valuePL(S3,'Utility Functions'!$AI$3:$AI$6,'Utility Functions'!$AJ$3:$AJ$6)","v":1},{"$f":"valuePL(T3,'Utility Functions'!$AK$3:$AK$8,'Utility Functions'!$AL$3:$AL$8)","v":0},{"$f":"valuePL(U3,'Utility Functions'!$AM$3:$AM$5,'Utility Functions'!$AN$3:$AN$5)","v":0},{"$f":"valuePL(V3,'Utility Functions'!$AO$3:$AO$5,'Utility Functions'!$AP$3:$AP$5)","v":1},{"$f":"valuePL(W3,'Utility Functions'!$AQ$3:$AQ$6,'Utility Functions'!$AR$3:$AR$6)","v":1},{"$f":"valuePL(X3,'Utility Functions'!$AS$3:$AS$6,'Utility Functions'!$AT$3:$AT$6)","v":1},{"$f":"valuePL(Y3,'Utility Functions'!$AU$3:$AU$6,'Utility Functions'!$AV$3:$AV$6)","v":1},{"$f":"valuePL(Z3,'Utility Functions'!$AW$3:$AW$5,'Utility Functions'!$AX$3:$AX$5)","v":1},{"$f":"valuePL(AA3,'Utility Functions'!$AY$3:$AY$6,'Utility Functions'!$AZ$3:$AZ$6)","v":1},{"$f":"valuePL(AB3,'Utility Functions'!$BA$3:$BA$5,'Utility Functions'!$BB$3:$BB$5)","v":1},{"$f":"valuePL(AC3,'Utility Functions'!$BC$3:$BC$5,'Utility Functions'!$BD$3:$BD$5)","v":1},{"$f":"SUM(B47:AC47)","v":12.641625800575998},null,{"$f":"SUM(AG47:AK47)","v":12.641625800575998},{"$f":"SUM(B47:F47)","v":1.8916258005759976},{"$f":"SUM(G47:M47)","v":0},{"$f":"SUM(N47:O47)","v":0.75},{"$f":"SUM(P47:U47)","v":2},{"$f":"SUM(V47:AC47)","v":8}]
[3,{"$f":"valueE(B4,'Utility Functions'!$B$3,'Utility Functions'!$B$4,'Utility Functions'!$B$5,'Utility Functions'!$B$6)","v":0.79810469124896843},{"$f":"valueE(C4,'Utility Functions'!$D$3,'Utility Functions'!$D$4,'Utility Functions'!$D$5,'Utility Functions'!$D$6)","v":0.94043675305359531},{"$f":"valuePL(D4,'Utility Functions'!$E$3:$E$5,'Utility Functions'!$F$3:$F$5)","v":1},{"$f":"valuePL(E4,'Utility Functions'!$G$3:$G$5,'Utility Functions'!$H$3:$H$5)","v":0},{"$f":"valuePL(F4,'Utility Functions'!$I$3:$I$4,'Utility Functions'!$J$3:$J$5)","v":0},{"$f":"valueE(G4,'Utility Functions'!$L$3,'Utility Functions'!$L$4,'Utility Functions'!$L$5,'Utility Functions'!$L$6)","v":0},{"$f":"valueE(H4,'Utility Functions'!$N$3,'Utility Functions'!$N$4,'Utility Functions'!$N$5,'Utility Functions'!$N$6)","v":0},{"$f":"valuePL(I4,'Utility Functions'!$O$3:$O$6,'Utility Functions'!$P$3:$P$6)","v":0},{"$f":"valuePL(J4,'Utility Functions'!$Q$3:$Q$6,'Utility Functions'!$R$3:$R$6)","v":0},{"$f":"valuePL(K4,'Utility Functions'!$S$3:$S$7,'Utility Functions'!$T$3:$T$7)","v":0},{"$f":"valueE(L4,'Utility Functions'!$V$3,'Utility Functions'!$V$4,'Utility Functions'!$V$5,'Utility Functions'!$V$6)","v":0},{"$f":"valuePL(M4,'Utility Functions'!$W$3:$W$6,'Utility Functions'!$X$3:$X$6)","v":0},{"$f":"valueE(N4,'Utility Functions'!$Z$3,'Utility Functions'!$Z$4,'Utility Functions'!$Z$5,'Utility Functions'!$Z$6)","v":0.625},{"$f":"valuePL(O4,'Utility Functions'!$AA$3:$AA$5,'Utility Functions'!$AB$3:$AB$5)","v":0.25},{"$f":"valuePL(P4,'Utility Functions'!$AC$3:$AC$7,'Utility Functions'!$AD$3:$AD$7)","v":0},{"$f":"valuePL(Q4,'Utility Functions'!$AE$3:$AE$6,'Utility Functions'!$AF$3:$AF$6)","v":0.5},{"$f":"valuePL(R4,'Utility Functions'!$AG$3:$AG$6,'Utility Functions'!$AH$3:$AH$6)","v":0},{"$f":"valuePL(S4,'Utility Functions'!$AI$3:$AI$6,'Utility Functions'!$AJ$3:$AJ$6)","v":0},{"$f":"valuePL(T4,'Utility Functions'!$AK$3:$AK$8,'Utility Functions'!$AL$3:$AL$8)","v":0},{"$f":"valuePL(U4,'Utility Functions'!$AM$3:$AM$5,'Utility Functions'!$AN$3:$AN$5)","v":0.25},{"$f":"valuePL(V4,'Utility Functions'!$AO$3:$AO$5,'Utility Functions'!$AP$3:$AP$5)","v":1},{"$f":"valuePL(W4,'Utility Functions'!$AQ$3:$AQ$6,'Utility Functions'!$AR$3:$AR$6)","v":1},{"$f":"valuePL(X4,'Utility Functions'!$AS$3:$AS$6,'Utility Functions'!$AT$3:$AT$6)","v":1},{"$f":"valuePL(Y4,'Utility Functions'!$AU$3:$AU$6,'Utility Functions'!$AV$3:$AV$6)","v":1},{"$f":"valuePL(Z4,'Utility Functions'!$AW$3:$AW$5,'Utility Functions'!$AX$3:$AX$5)","v":1},{"$f":"valuePL(AA4,'Utility Functions'!$AY$3:$AY$6,'Utility Functions'!$AZ$3:$AZ$6)","v":0.2},{"$f":"valuePL(AB4,'Utility Functions'!$BA$3:$BA$5,'Utility Functions'!$BB$3:$BB$5)","v":1},{"$f":"valuePL(AC4,'Utility Functions'!$BC$3:$BC$5,'Utility Functions'!$BD$3:$BD$5)","v":1},11.563541444302563,null,11.563541444302565,2.7385414443025637,0,0.875,0.75,7.2]
[4,{"$f":"valueE(B5,'Utility Functions'!$B$3,'Utility Functions'!$B$4,'Utility Functions'!$B$5,'Utility Functions'!$B$6)","v":0.1812695215714665},{"$f":"valueE(C5,'Utility Functions'!$D$3,'Utility Functions'!$D$4,'Utility Functions'!$D$5,'Utility Functions'!$D$6)","v":0.46475967153745396},{"$f":"valuePL(D5,'Utility Functions'!$E$3:$E$5,'Utility Functions'!$F$3:$F$5)","v":1},{"$f":"valuePL(E5,'Utility Functions'!$G$3:$G$5,'Utility Functions'!$H$3:$H$5)","v":0},{"$f":"valuePL(F5,'Utility Functions'!$I$3:$I$4,'Utility Functions'!$J$3:$J$5)","v":0},{"$f":"valueE(G5,'Utility Functions'!$L$3,'Utility Functions'!$L$4,'Utility Functions'!$L$5,'Utility Functions'!$L$6)","v":0},{"$f":"valueE(H5,'Utility Functions'!$N$3,'Utility Functions'!$N$4,'Utility Functions'!$N$5,'Utility Functions'!$N$6)","v":0},{"$f":"valuePL(I5,'Utility Functions'!$O$3:$O$6,'Utility Functions'!$P$3:$P$6)","v":0},{"$f":"valuePL(J5,'Utility Functions'!$Q$3:$Q$6,'Utility Functions'!$R$3:$R$6)","v":0},{"$f":"valuePL(K5,'Utility Functions'!$S$3:$S$7,'Utility Functions'!$T$3:$T$7)","v":0},{"$f":"valueE(L5,'Utility Functions'!$V$3,'Utility Functions'!$V$4,'Utility Functions'!$V$5,'Utility Functions'!$V$6)","v":0},{"$f":"valuePL(M5,'Utility Functions'!$W$3:$W$6,'Utility Functions'!$X$3:$X$6)","v":0},{"$f":"valueE(N5,'Utility Functions'!$Z$3,'Utility Functions'!$Z$4,'Utility Functions'!$Z$5,'Utility Functions'!$Z$6)","v":0.5},{"$f":"valuePL(O5,'Utility Functions'!$AA$3:$AA$5,'Utility Functions'!$AB$3:$AB$5)","v":0.25},{"$f":"valuePL(P5,'Utility Functions'!$AC$3:$AC$7,'Utility Functions'!$AD$3:$AD$7)","v":0},{"$f":"valuePL(Q5,'Utility Functions'!$AE$3:$AE$6,'Utility Functions'!$AF$3:$AF$6)","v":0.1},{"$f":"valuePL(R5,'Utility Functions'!$AG$3:$AG$6,'Utility Functions'!$AH$3:$AH$6)","v":1},{"$f":"valuePL(S5,'Utility Functions'!$AI$3:$AI$6,'Utility Functions'!$AJ$3:$AJ$6)","v":1},{"$f":"valuePL(T5,'Utility Functions'!$AK$3:$AK$8,'Utility Functions'!$AL$3:$AL$8)","v":0.8},{"$f":"valuePL(U5,'Utility Functions'!$AM$3:$AM$5,'Utility Functions'!$AN$3:$AN$5)","v":0},{"$f":"valuePL(V5,'Utility Functions'!$AO$3:$AO$5,'Utility Functions'!$AP$3:$AP$5)","v":0.5},{"$f":"valuePL(W5,'Utility Functions'!$AQ$3:$AQ$6,'Utility Functions'!$AR$3:$AR$6)","v":1},{"$f":"valuePL(X5,'Utility Functions'!$AS$3:$AS$6,'Utility Functions'!$AT$3:$AT$6)","v":1},{"$f":"valuePL(Y5,'Utility Functions'!$AU$3:$AU$6,'Utility Functions'!$AV$3:$AV$6)","v":0.2},{"$f":"valuePL(Z5,'Utility Functions'!$AW$3:$AW$5,'Utility Functions'!$AX$3:$AX$5)","v":0},{"$f":"valuePL(AA5,'Utility Functions'!$AY$3:$AY$6,'Utility Functions'!$AZ$3:$AZ$6)","v":0},{"$f":"valuePL(AB5,'Utility Functions'!$BA$3:$BA$5,'Utility Functions'!$BB$3:$BB$5)","v":1},{"$f":"valuePL(AC5,'Utility Functions'!$BC$3:$BC$5,'Utility Functions'!$BD$3:$BD$5)","v":0.25},9.2460291931089209,null,9.2460291931089209,1.6460291931089204,0,0.75,2.9000000000000004,3.95]
[5,{"$f":"valueE(B6,'Utility Functions'!$B$3,'Utility Functions'!$B$4,'Utility Functions'!$B$5,'Utility Functions'!$B$6)","v":0.55067187023002029},{"$f":"valueE(C6,'Utility Functions'!$D$3,'Utility Functions'!$D$4,'Utility Functions'!$D$5,'Utility Functions'!$D$6)","v":0.26656514581460788},{"$f":"valuePL(D6,'Utility Functions'!$E$3:$E$5,'Utility Functions'!$F$3:$F$5)","v":1},{"$f":"valuePL(E6,'Utility Functions'!$G$3:$G$5,'Utility Functions'!$H$3:$H$5)","v":0},{"$f":"valuePL(F6,'Utility Functions'!$I$3:$I$4,'Utility Functions'!$J$3:$J$5)","v":0},{"$f":"valueE(G6,'Utility Functions'!$L$3,'Utility Functions'!$L$4,'Utility Functions'!$L$5,'Utility Functions'!$L$6)","v":0},{"$f":"valueE(H6,'Utility Functions'!$N$3,'Utility Functions'!$N$4,'Utility Functions'!$N$5,'Utility Functions'!$N$6)","v":0},{"$f":"valuePL(I6,'Utility Functions'!$O$3:$O$6,'Utility Functions'!$P$3:$P$6)","v":0.50909090909090915},{"$f":"valuePL(J6,'Utility Functions'!$Q$3:$Q$6,'Utility Functions'!$R$3:$R$6)","v":0.04},{"$f":"valuePL(K6,'Utility Functions'!$S$3:$S$7,'Utility Functions'!$T$3:$T$7)","v":0},{"$f":"valueE(L6,'Utility Functions'!$V$3,'Utility Functions'!$V$4,'Utility Functions'!$V$5,'Utility Functions'!$V$6)","v":0},{"$f":"valuePL(M6,'Utility Functions'!$W$3:$W$6,'Utility Functions'!$X$3:$X$6)","v":0},{"$f":"valueE(N6,'Utility Functions'!$Z$3,'Utility Functions'!$Z$4,'Utility Functions'!$Z$5,'Utility Functions'!$Z$6)","v":0},{"$f":"valuePL(O6,'Utility Functions'!$AA$3:$AA$5,'Utility Functions'!$AB$3:$AB$5)","v":0},{"$f":"valuePL(P6,'Utility Functions'!$AC$3:$AC$7,'Utility Functions'!$AD$3:$AD$7)","v":0},{"$f":"valuePL(Q6,'Utility Functions'!$AE$3:$AE$6,'Utility Functions'!$AF$3:$AF$6)","v":0.1},{"$f":"valuePL(R6,'Utility Functions'!$AG$3:$AG$6,'Utility Functions'!$AH$3:$AH$6)","v":1},{"$f":"valuePL(S6,'Utility Functions'!$AI$3:$AI$6,'Utility Functions'!$AJ$3:$AJ$6)","v":1},{"$f":"valuePL(T6,'Utility Functions'!$AK$3:$AK$8,'Utility Functions'!$AL$3:$AL$8)","v":0.8},{"$f":"valuePL(U6,'Utility Functions'!$AM$3:$AM$5,'Utility Functions'!$AN$3:$AN$5)","v":0.25},{"$f":"valuePL(V6,'Utility Functions'!$AO$3:$AO$5,'Utility Functions'!$AP$3:$AP$5)","v":0},{"$f":"valuePL(W6,'Utility Functions'!$AQ$3:$AQ$6,'Utility Functions'!$AR$3:$AR$6)","v":1},{"$f":"valuePL(X6,'Utility Functions'!$AS$3:$AS$6,'Utility Functions'!$AT$3:$AT$6)","v":1},{"$f":"valuePL(Y6,'Utility Functions'!$AU$3:$AU$6,'Utility Functions'!$AV$3:$AV$6)","v":0.8},{"$f":"valuePL(Z6,'Utility Functions'!$AW$3:$AW$5,'Utility Functions'!$AX$3:$AX$5)","v":0},{"$f":"valuePL(AA6,'Utility Functions'!$AY$3:$AY$6,'Utility Functions'!$AZ$3:$AZ$6)","v":0},{"$f":"valuePL(AB6,'Utility Functions'!$BA$3:$BA$5,'Utility Functions'!$BB$3:$BB$5)","v":1},{"$f":"valuePL(AC6,'Utility Functions'!$BC$3:$BC$5,'Utility Functions'!$BD$3:$BD$5)","v":0.25},9.5663279251355373,null,9.5663279251355391,1.8172370160446283,0.54909090909090918,0,3.1500000000000004,4.05]
[6,{"$f":"valueE(B7,'Utility Functions'!$B$3,'Utility Functions'!$B$4,'Utility Functions'!$B$5,'Utility Functions'!$B$6)","v":0.86466602685702687},{"$f":"valueE(C7,'Utility Functions'!$D$3,'Utility Functions'!$D$4,'Utility Functions'!$D$5,'Utility Functions'!$D$6)","v":6.1811002813601471E-3},{"$f":"valuePL(D7,'Utility Functions'!$E$3:$E$5,'Utility Functions'!$F$3:$F$5)","v":1},{"$f":"valuePL(E7,'Utility Functions'!$G$3:$G$5,'Utility Functions'!$H$3:$H$5)","v":0},{"$f":"valuePL(F7,'Utility Functions'!$I$3:$I$4,'Utility Functions'!$J$3:$J$5)","v":0},{"$f":"valueE(G7,'Utility Functions'!$L$3,'Utility Functions'!$L$4,'Utility Functions'!$L$5,'Utility Functions'!$L$6)","v":0},{"$f":"valueE(H7,'Utility Functions'!$N$3,'Utility Functions'!$N$4,'Utility Functions'!$N$5,'Utility Functions'!$N$6)","v":0},{"$f":"valuePL(I7,'Utility Functions'!$O$3:$O$6,'Utility Functions'!$P$3:$P$6)","v":0.04},{"$f":"valuePL(J7,'Utility Functions'!$Q$3:$Q$6,'Utility Functions'!$R$3:$R$6)","v":0.04},{"$f":"valuePL(K7,'Utility Functions'!$S$3:$S$7,'Utility Functions'!$T$3:$T$7)","v":0},{"$f":"valueE(L7,'Utility Functions'!$V$3,'Utility Functions'!$V$4,'Utility Functions'!$V$5,'Utility Functions'!$V$6)","v":0},{"$f":"valuePL(M7,'Utility Functions'!$W$3:$W$6,'Utility Functions'!$X$3:$X$6)","v":0},{"$f":"valueE(N7,'Utility Functions'!$Z$3,'Utility Functions'!$Z$4,'Utility Functions'!$Z$5,'Utility Functions'!$Z$6)","v":0},{"$f":"valuePL(O7,'Utility Functions'!$AA$3:$AA$5,'Utility Functions'!$AB$3:$AB$5)","v":0},{"$f":"valuePL(P7,'Utility Functions'!$AC$3:$AC$7,'Utility Functions'!$AD$3:$AD$7)","v":0},{"$f":"valuePL(Q7,'Utility Functions'!$AE$3:$AE$6,'Utility Functions'!$AF$3:$AF$6)","v":0.1},{"$f":"valuePL(R7,'Utility Functions'!$AG$3:$AG$6,'Utility Functions'!$AH$3:$AH$6)","v":0},{"$f":"valuePL(S7,'Utility Functions'!$AI$3:$AI$6,'Utility Functions'!$AJ$3:$AJ$6)","v":1},{"$f":"valuePL(T7,'Utility Functions'!$AK$3:$AK$8,'Utility Functions'!$AL$3:$AL$8)","v":0.6},{"$f":"valuePL(U7,'Utility Functions'!$AM$3:$AM$5,'Utility Functions'!$AN$3:$AN$5)","v":0},{"$f":"valuePL(V7,'Utility Functions'!$AO$3:$AO$5,'Utility Functions'!$AP$3:$AP$5)","v":0},{"$f":"valuePL(W7,'Utility Functions'!$AQ$3:$AQ$6,'Utility Functions'!$AR$3:$AR$6)","v":0},{"$f":"valuePL(X7,'Utility Functions'!$AS$3:$AS$6,'Utility Functions'!$AT$3:$AT$6)","v":1},{"$f":"valuePL(Y7,'Utility Functions'!$AU$3:$AU$6,'Utility Functions'!$AV$3:$AV$6)","v":0},{"$f":"valuePL(Z7,'Utility Functions'!$AW$3:$AW$5,'Utility Functions'!$AX$3:$AX$5)","v":0},{"$f":"valuePL(AA7,'Utility Functions'!$AY$3:$AY$6,'Utility Functions'!$AZ$3:$AZ$6)","v":0},{"$f":"valuePL(AB7,'Utility Functions'!$BA$3:$BA$5,'Utility Functions'!$BB$3:$BB$5)","v":1},{"$f":"valuePL(AC7,'Utility Functions'!$BC$3:$BC$5,'Utility Functions'!$BD$3:$BD$5)","v":0.25},5.9008471271383875,null,5.9008471271383875,1.8708471271383869,0.08,0,1.7000000000000002,2.25]
[7,{"$f":"valueE(B8,'Utility Functions'!$B$3,'Utility Functions'!$B$4,'Utility Functions'!$B$5,'Utility Functions'!$B$6)","v":0.99997108261728973},{"$f":"valueE(C8,'Utility Functions'!$D$3,'Utility Functions'!$D$4,'Utility Functions'!$D$5,'Utility Functions'!$D$6)","v":0.84744836833951609},{"$f":"valuePL(D8,'Utility Functions'!$E$3:$E$5,'Utility Functions'!$F$3:$F$5)","v":0},{"$f":"valuePL(E8,'Utility Functions'!$G$3:$G$5,'Utility Functions'!$H$3:$H$5)","v":1},{"$f":"valuePL(F8,'Utility Functions'!$I$3:$I$4,'Utility Functions'!$J$3:$J$5)","v":0},{"$f":"valueE(G8,'Utility Functions'!$L$3,'Utility Functions'!$L$4,'Utility Functions'!$L$5,'Utility Functions'!$L$6)","v":0},{"$f":"valueE(H8,'Utility Functions'!$N$3,'Utility Functions'!$N$4,'Utility Functions'!$N$5,'Utility Functions'!$N$6)","v":0},{"$f":"valuePL(I8,'Utility Functions'!$O$3:$O$6,'Utility Functions'!$P$3:$P$6)","v":1},{"$f":"valuePL(J8,'Utility Functions'!$Q$3:$Q$6,'Utility Functions'!$R$3:$R$6)","v":0.67272727272727273},{"$f":"valuePL(K8,'Utility Functions'!$S$3:$S$7,'Utility Functions'!$T$3:$T$7)","v":1},{"$f":"valueE(L8,'Utility Functions'!$V$3,'Utility Functions'!$V$4,'Utility Functions'!$V$5,'Utility Functions'!$V$6)","v":1},{"$f":"valuePL(M8,'Utility Functions'!$W$3:$W$6,'Utility Functions'!$X$3:$X$6)","v":0.67272727272727273},{"$f":"valueE(N8,'Utility Functions'!$Z$3,'Utility Functions'!$Z$4,'Utility Functions'!$Z$5,'Utility Functions'!$Z$6)","v":1},{"$f":"valuePL(O8,'Utility Functions'!$AA$3:$AA$5,'Utility Functions'!$AB$3:$AB$5)","v":0.25},{"$f":"valuePL(P8,'Utility Functions'!$AC$3:$AC$7,'Utility Functions'!$AD$3:$AD$7)","v":0},{"$f":"valuePL(Q8,'Utility Functions'!$AE$3:$AE$6,'Utility Functions'!$AF$3:$AF$6)","v":0},{"$f":"valuePL(R8,'Utility Functions'!$AG$3:$AG$6,'Utility Functions'!$AH$3:$AH$6)","v":1},{"$f":"valuePL(S8,'Utility Functions'!$AI$3:$AI$6,'Utility Functions'!$AJ$3:$AJ$6)","v":1},{"$f":"valuePL(T8,'Utility Functions'!$AK$3:$AK$8,'Utility Functions'!$AL$3:$AL$8)","v":0},{"$f":"valuePL(U8,'Utility Functions'!$AM$3:$AM$5,'Utility Functions'!$AN$3:$AN$5)","v":0},{"$f":"valuePL(V8,'Utility Functions'!$AO$3:$AO$5,'Utility Functions'!$AP$3:$AP$5)","v":1},{"$f":"valuePL(W8,'Utility Functions'!$AQ$3:$AQ$6,'Utility Functions'!$AR$3:$AR$6)","v":0},{"$f":"valuePL(X8,'Utility Functions'!$AS$3:$AS$6,'Utility Functions'!$AT$3:$AT$6)","v":0.2},{"$f":"valuePL(Y8,'Utility Functions'!$AU$3:$AU$6,'Utility Functions'!$AV$3:$AV$6)","v":1},{"$f":"valuePL(Z8,'Utility Functions'!$AW$3:$AW$5,'Utility Functions'!$AX$3:$AX$5)","v":1},{"$f":"valuePL(AA8,'Utility Functions'!$AY$3:$AY$6,'Utility Functions'!$AZ$3:$AZ$6)","v":0.89999999999999991},{"$f":"valuePL(AB8,'Utility Functions'!$BA$3:$BA$5,'Utility Functions'!$BB$3:$BB$5)","v":0},{"$f":"valuePL(AC8,'Utility Functions'!$BC$3:$BC$5,'Utility Functions'!$BD$3:$BD$5)","v":1},15.54287399641135,null,15.54287399641135,2.8474194509568056,4.3454545454545457,1.25,2,5.0999999999999996]
[8,{"$f":"valueE(B9,'Utility Functions'!$B$3,'Utility Functions'!$B$4,'Utility Functions'!$B$5,'Utility Functions'!$B$6)","v":0.4511890475224023},{"$f":"valueE(C9,'Utility Functions'!$D$3,'Utility Functions'!$D$4,'Utility Functions'!$D$5,'Utility Functions'!$D$6)","v":0.84744836833951609},{"$f":"valuePL(D9,'Utility Functions'!$E$3:$E$5,'Utility Functions'!$F$3:$F$5)","v":1},{"$f":"valuePL(E9,'Utility Functions'!$G$3:$G$5,'Utility Functions'!$H$3:$H$5)","v":0.5},{"$f":"valuePL(F9,'Utility Functions'!$I$3:$I$4,'Utility Functions'!$J$3:$J$5)","v":1},{"$f":"valueE(G9,'Utility Functions'!$L$3,'Utility Functions'!$L$4,'Utility Functions'!$L$5,'Utility Functions'!$L$6)","v":0},{"$f":"valueE(H9,'Utility Functions'!$N$3,'Utility Functions'!$N$4,'Utility Functions'!$N$5,'Utility Functions'!$N$6)","v":0},{"$f":"valuePL(I9,'Utility Functions'!$O$3:$O$6,'Utility Functions'!$P$3:$P$6)","v":5.6000000000000008E-2},{"$f":"valuePL(J9,'Utility Functions'!$Q$3:$Q$6,'Utility Functions'!$R$3:$R$6)","v":0.83636363636363631},{"$f":"valuePL(K9,'Utility Functions'!$S$3:$S$7,'Utility Functions'!$T$3:$T$7)","v":0},{"$f":"valueE(L9,'Utility Functions'!$V$3,'Utility Functions'!$V$4,'Utility Functions'!$V$5,'Utility Functions'!$V$6)","v":1},{"$f":"valuePL(M9,'Utility Functions'!$W$3:$W$6,'Utility Functions'!$X$3:$X$6)","v":0.83636363636363631},{"$f":"valueE(N9,'Utility Functions'!$Z$3,'Utility Functions'!$Z$4,'Utility Functions'!$Z$5,'Utility Functions'!$Z$6)","v":0},{"$f":"valuePL(O9,'Utility Functions'!$AA$3:$AA$5,'Utility Functions'!$AB$3:$AB$5)","v":0},{"$f":"valuePL(P9,'Utility Functions'!$AC$3:$AC$7,'Utility Functions'!$AD$3:$AD$7)","v":0},{"$f":"valuePL(Q9,'Utility Functions'!$AE$3:$AE$6,'Utility Functions'!$AF$3:$AF$6)","v":1},{"$f":"valuePL(R9,'Utility Functions'!$AG$3:$AG$6,'Utility Functions'!$AH$3:$AH$6)","v":0.2},{"$f":"valuePL(S9,'Utility Functions'!$AI$3:$AI$6,'Utility Functions'!$AJ$3:$AJ$6)","v":1},{"$f":"valuePL(T9,'Utility Functions'!$AK$3:$AK$8,'Utility Functions'!$AL$3:$AL$8)","v":0},{"$f":"valuePL(U9,'Utility Functions'!$AM$3:$AM$5,'Utility Functions'!$AN$3:$AN$5)","v":0},{"$f":"valuePL(V9,'Utility Functions'!$AO$3:$AO$5,'Utility Functions'!$AP$3:$AP$5)","v":1},{"$f":"valuePL(W9,'Utility Functions'!$AQ$3:$AQ$6,'Utility Functions'!$AR$3:$AR$6)","v":1},{"$f":"valuePL(X9,'Utility Functions'!$AS$3:$AS$6,'Utility Functions'!$AT$3:$AT$6)","v":1},{"$f":"valuePL(Y9,'Utility Functions'!$AU$3:$AU$6,'Utility Functions'!$AV$3:$AV$6)","v":1},{"$f":"valuePL(Z9,'Utility Functions'!$AW$3:$AW$5,'Utility Functions'!$AX$3:$AX$5)","v":1},{"$f":"valuePL(AA9,'Utility Functions'!$AY$3:$AY$6,'Utility Functions'!$AZ$3:$AZ$6)","v":0},{"$f":"valuePL(AB9,'Utility Functions'!$BA$3:$BA$5,'Utility Functions'!$BB$3:$BB$5)","v":0.25},{"$f":"valuePL(AC9,'Utility Functions'!$BC$3:$BC$5,'Utility Functions'!$BD$3:$BD$5)","v":0.25},14.227364688589191,null,14.227364688589191,3.7986374158619185,2.7287272727272729,0,2.2000000000000002,5.5]
[9,{"$f":"valueE(B10,'Utility Functions'!$B$3,'Utility Functions'!$B$4,'Utility Functions'!$B$5,'Utility Functions'!$B$6)","v":0.83470237647280454},{"$f":"valueE(C10,'Utility Functions'!$D$3,'Utility Functions'!$D$4,'Utility Functions'!$D$5,'Utility Functions'!$D$6)","v":0.78989979019422951},{"$f":"valuePL(D10,'Utility Functions'!$E$3:$E$5,'Utility Functions'!$F$3:$F$5)","v":1},{"$f":"valuePL(E10,'Utility Functions'!$G$3:$G$5,'Utility Functions'!$H$3:$H$5)","v":0.5},{"$f":"valuePL(F10,'Utility Functions'!$I$3:$I$4,'Utility Functions'!$J$3:$J$5)","v":0},{"$f":"valueE(G10,'Utility Functions'!$L$3,'Utility Functions'!$L$4,'Utility Functions'!$L$5,'Utility Functions'!$L$6)","v":0.37634408602150538},{"$f":"valueE(H10,'Utility Functions'!$N$3,'Utility Functions'!$N$4,'Utility Functions'!$N$5,'Utility Functions'!$N$6)","v":0.13282732447817835},{"$f":"valuePL(I10,'Utility Functions'!$O$3:$O$6,'Utility Functions'!$P$3:$P$6)","v":0},{"$f":"valuePL(J10,'Utility Functions'!$Q$3:$Q$6,'Utility Functions'!$R$3:$R$6)","v":0},{"$f":"valuePL(K10,'Utility Functions'!$S$3:$S$7,'Utility Functions'!$T$3:$T$7)","v":0},{"$f":"valueE(L10,'Utility Functions'!$V$3,'Utility Functions'!$V$4,'Utility Functions'!$V$5,'Utility Functions'!$V$6)","v":0},{"$f":"valuePL(M10,'Utility Functions'!$W$3:$W$6,'Utility Functions'!$X$3:$X$6)","v":0},{"$f":"valueE(N10,'Utility Functions'!$Z$3,'Utility Functions'!$Z$4,'Utility Functions'!$Z$5,'Utility Functions'!$Z$6)","v":0},{"$f":"valuePL(O10,'Utility Functions'!$AA$3:$AA$5,'Utility Functions'!$AB$3:$AB$5)","v":0},{"$f":"valuePL(P10,'Utility Functions'!$AC$3:$AC$7,'Utility Functions'!$AD$3:$AD$7)","v":0.75},{"$f":"valuePL(Q10,'Utility Functions'!$AE$3:$AE$6,'Utility Functions'!$AF$3:$AF$6)","v":0},{"$f":"valuePL(R10,'Utility Functions'!$AG$3:$AG$6,'Utility Functions'!$AH$3:$AH$6)","v":1},{"$f":"valuePL(S10,'Utility Functions'!$AI$3:$AI$6,'Utility Functions'!$AJ$3:$AJ$6)","v":0.66},{"$f":"valuePL(T10,'Utility Functions'!$AK$3:$AK$8,'Utility Functions'!$AL$3:$AL$8)","v":0.2},{"$f":"valuePL(U10,'Utility Functions'!$AM$3:$AM$5,'Utility Functions'!$AN$3:$AN$5)","v":0},{"$f":"valuePL(V10,'Utility Functions'!$AO$3:$AO$5,'Utility Functions'!$AP$3:$AP$5)","v":1},{"$f":"valuePL(W10,'Utility Functions'!$AQ$3:$AQ$6,'Utility Functions'!$AR$3:$AR$6)","v":1},{"$f":"valuePL(X10,'Utility Functions'!$AS$3:$AS$6,'Utility Functions'!$AT$3:$AT$6)","v":1},{"$f":"valuePL(Y10,'Utility Functions'!$AU$3:$AU$6,'Utility Functions'!$AV$3:$AV$6)","v":0.2},{"$f":"valuePL(Z10,'Utility Functions'!$AW$3:$AW$5,'Utility Functions'!$AX$3:$AX$5)","v":1},{"$f":"valuePL(AA10,'Utility Functions'!$AY$3:$AY$6,'Utility Functions'!$AZ$3:$AZ$6)","v":0.2},{"$f":"valuePL(AB10,'Utility Functions'!$BA$3:$BA$5,'Utility Functions'!$BB$3:$BB$5)","v":0.25},{"$f":"valuePL(AC10,'Utility Functions'!$BC$3:$BC$5,'Utility Functions'!$BD$3:$BD$5)","v":1},11.893773577166716,null,11.893773577166719,3.1246021666670343,0.50917141049968373,0,2.6100000000000003,5.65]
[10,{"$f":"valueE(B11,'Utility Functions'!$B$3,'Utility Functions'!$B$4,'Utility Functions'!$B$5,'Utility Functions'!$B$6)","v":0},{"$f":"valueE(C11,'Utility Functions'!$D$3,'Utility Functions'!$D$4,'Utility Functions'!$D$5,'Utility Functions'!$D$6)","v":0},{"$f":"valuePL(D11,'Utility Functions'!$E$3:$E$5,'Utility Functions'!$F$3:$F$5)","v":0},{"$f":"valuePL(E11,'Utility Functions'!$G$3:$G$5,'Utility Functions'!$H$3:$H$5)","v":0},{"$f":"valuePL(F11,'Utility Functions'!$I$3:$I$4,'Utility Functions'!$J$3:$J$5)","v":0},{"$f":"valueE(G11,'Utility Functions'!$L$3,'Utility Functions'!$L$4,'Utility Functions'!$L$5,'Utility Functions'!$L$6)","v":0},{"$f":"valueE(H11,'Utility Functions'!$N$3,'Utility Functions'!$N$4,'Utility Functions'!$N$5,'Utility Functions'!$N$6)","v":0},{"$f":"valuePL(I11,'Utility Functions'!$O$3:$O$6,'Utility Functions'!$P$3:$P$6)","v":0},{"$f":"valuePL(J11,'Utility Functions'!$Q$3:$Q$6,'Utility Functions'!$R$3:$R$6)","v":0},{"$f":"valuePL(K11,'Utility Functions'!$S$3:$S$7,'Utility Functions'!$T$3:$T$7)","v":0},{"$f":"valueE(L11,'Utility Functions'!$V$3,'Utility Functions'!$V$4,'Utility Functions'!$V$5,'Utility Functions'!$V$6)","v":0},{"$f":"valuePL(M11,'Utility Functions'!$W$3:$W$6,'Utility Functions'!$X$3:$X$6)","v":0},{"$f":"valueE(N11,'Utility Functions'!$Z$3,'Utility Functions'!$Z$4,'Utility Functions'!$Z$5,'Utility Functions'!$Z$6)","v":0.75},{"$f":"valuePL(O11,'Utility Functions'!$AA$3:$AA$5,'Utility Functions'!$AB$3:$AB$5)","v":1},{"$f":"valuePL(P11,'Utility Functions'!$AC$3:$AC$7,'Utility Functions'!$AD$3:$AD$7)","v":0.25},{"$f":"valuePL(Q11,'Utility Functions'!$AE$3:$AE$6,'Utility Functions'!$AF$3:$AF$6)","v":0.5},{"$f":"valuePL(R11,'Utility Functions'!$AG$3:$AG$6,'Utility Functions'!$AH$3:$AH$6)","v":1},{"$f":"valuePL(S11,'Utility Functions'!$AI$3:$AI$6,'Utility Functions'!$AJ$3:$AJ$6)","v":0.66},{"$f":"valuePL(T11,'Utility Functions'!$AK$3:$AK$8,'Utility Functions'!$AL$3:$AL$8)","v":0.4},{"$f":"valuePL(U11,'Utility Functions'!$AM$3:$AM$5,'Utility Functions'!$AN$3:$AN$5)","v":0},{"$f":"valuePL(V11,'Utility Functions'!$AO$3:$AO$5,'Utility Functions'!$AP$3:$AP$5)","v":0},{"$f":"valuePL(W11,'Utility Functions'!$AQ$3:$AQ$6,'Utility Functions'!$AR$3:$AR$6)","v":0.75},{"$f":"valuePL(X11,'Utility Functions'!$AS$3:$AS$6,'Utility Functions'!$AT$3:$AT$6)","v":1},{"$f":"valuePL(Y11,'Utility Functions'!$AU$3:$AU$6,'Utility Functions'!$AV$3:$AV$6)","v":1},{"$f":"valuePL(Z11,'Utility Functions'!$AW$3:$AW$5,'Utility Functions'!$AX$3:$AX$5)","v":0.5},{"$f":"valuePL(AA11,'Utility Functions'!$AY$3:$AY$6,'Utility Functions'!$AZ$3:$AZ$6)","v":0.2},{"$f":"valuePL(AB11,'Utility Functions'!$BA$3:$BA$5,'Utility Functions'!$BB$3:$BB$5)","v":0},{"$f":"valuePL(AC11,'Utility Functions'!$BC$3:$BC$5,'Utility Functions'!$BD$3:$BD$5)","v":1},9.01,null,9.0100000000000016,0,0,1.75,2.81,4.45]
[11,{"$f":"valueE(B12,'Utility Functions'!$B$3,'Utility Functions'!$B$4,'Utility Functions'!$B$5,'Utility Functions'!$B$6)","v":0},{"$f":"valueE(C12,'Utility Functions'!$D$3,'Utility Functions'!$D$4,'Utility Functions'!$D$5,'Utility Functions'!$D$6)","v":0},{"$f":"valuePL(D12,'Utility Functions'!$E$3:$E$5,'Utility Functions'!$F$3:$F$5)","v":0},{"$f":"valuePL(E12,'Utility Functions'!$G$3:$G$5,'Utility Functions'!$H$3:$H$5)","v":0},{"$f":"valuePL(F12,'Utility Functions'!$I$3:$I$4,'Utility Functions'!$J$3:$J$5)","v":0},{"$f":"valueE(G12,'Utility Functions'!$L$3,'Utility Functions'!$L$4,'Utility Functions'!$L$5,'Utility Functions'!$L$6)","v":3.2258064516129031E-2},{"$f":"valueE(H12,'Utility Functions'!$N$3,'Utility Functions'!$N$4,'Utility Functions'!$N$5,'Utility Functions'!$N$6)","v":9.6774193548387094E-2},{"$f":"valuePL(I12,'Utility Functions'!$O$3:$O$6,'Utility Functions'!$P$3:$P$6)","v":0.54181818181818187},{"$f":"valuePL(J12,'Utility Functions'!$Q$3:$Q$6,'Utility Functions'!$R$3:$R$6)","v":0.91818181818181821},{"$f":"valuePL(K12,'Utility Functions'!$S$3:$S$7,'Utility Functions'!$T$3:$T$7)","v":0.54181818181818187},{"$f":"valueE(L12,'Utility Functions'!$V$3,'Utility Functions'!$V$4,'Utility Functions'!$V$5,'Utility Functions'!$V$6)","v":1},{"$f":"valuePL(M12,'Utility Functions'!$W$3:$W$6,'Utility Functions'!$X$3:$X$6)","v":0.91818181818181821},{"$f":"valueE(N12,'Utility Functions'!$Z$3,'Utility Functions'!$Z$4,'Utility Functions'!$Z$5,'Utility Functions'!$Z$6)","v":0.375},{"$f":"valuePL(O12,'Utility Functions'!$AA$3:$AA$5,'Utility Functions'!$AB$3:$AB$5)","v":0.25},{"$f":"valuePL(P12,'Utility Functions'!$AC$3:$AC$7,'Utility Functions'!$AD$3:$AD$7)","v":0.25},{"$f":"valuePL(Q12,'Utility Functions'!$AE$3:$AE$6,'Utility Functions'!$AF$3:$AF$6)","v":0},{"$f":"valuePL(R12,'Utility Functions'!$AG$3:$AG$6,'Utility Functions'!$AH$3:$AH$6)","v":1},{"$f":"valuePL(S12,'Utility Functions'!$AI$3:$AI$6,'Utility Functions'!$AJ$3:$AJ$6)","v":1},{"$f":"valuePL(T12,'Utility Functions'!$AK$3:$AK$8,'Utility Functions'!$AL$3:$AL$8)","v":0.4},{"$f":"valuePL(U12,'Utility Functions'!$AM$3:$AM$5,'Utility Functions'!$AN$3:$AN$5)","v":1},{"$f":"valuePL(V12,'Utility Functions'!$AO$3:$AO$5,'Utility Functions'!$AP$3:$AP$5)","v":1},{"$f":"valuePL(W12,'Utility Functions'!$AQ$3:$AQ$6,'Utility Functions'!$AR$3:$AR$6)","v":0.2},{"$f":"valuePL(X12,'Utility Functions'!$AS$3:$AS$6,'Utility Functions'!$AT$3:$AT$6)","v":1},{"$f":"valuePL(Y12,'Utility Functions'!$AU$3:$AU$6,'Utility Functions'!$AV$3:$AV$6)","v":1},{"$f":"valuePL(Z12,'Utility Functions'!$AW$3:$AW$5,'Utility Functions'!$AX$3:$AX$5)","v":0.5},{"$f":"valuePL(AA12,'Utility Functions'!$AY$3:$AY$6,'Utility Functions'!$AZ$3:$AZ$6)","v":0.89999999999999991},{"$f":"valuePL(AB12,'Utility Functions'!$BA$3:$BA$5,'Utility Functions'!$BB$3:$BB$5)","v":0},{"$f":"valuePL(AC12,'Utility Functions'!$BC$3:$BC$5,'Utility Functions'!$BD$3:$BD$5)","v":0.25},13.174032258064516,null,13.174032258064516,0,4.0490322580645159,0.625,3.65,4.8499999999999996]
[12,{"$f":"valueE(B13,'Utility Functions'!$B$3,'Utility Functions'!$B$4,'Utility Functions'!$B$5,'Utility Functions'!$B$6)","v":0.32968045347775865},{"$f":"valueE(C13,'Utility Functions'!$D$3,'Utility Functions'!$D$4,'Utility Functions'!$D$5,'Utility Functions'!$D$6)","v":0.78989979019422951},{"$f":"valuePL(D13,'Utility Functions'!$E$3:$E$5,'Utility Functions'!$F$3:$F$5)","v":1},{"$f":"valuePL(E13,'Utility Functions'!$G$3:$G$5,'Utility Functions'!$H$3:$H$5)","v":0.5},{"$f":"valuePL(F13,'Utility Functions'!$I$3:$I$4,'Utility Functions'!$J$3:$J$5)","v":0},{"$f":"valueE(G13,'Utility Functions'!$L$3,'Utility Functions'!$L$4,'Utility Functions'!$L$5,'Utility Functions'!$L$6)","v":0},{"$f":"valueE(H13,'Utility Functions'!$N$3,'Utility Functions'!$N$4,'Utility Functions'!$N$5,'Utility Functions'!$N$6)","v":0},{"$f":"valuePL(I13,'Utility Functions'!$O$3:$O$6,'Utility Functions'!$P$3:$P$6)","v":0},{"$f":"valuePL(J13,'Utility Functions'!$Q$3:$Q$6,'Utility Functions'!$R$3:$R$6)","v":0},{"$f":"valuePL(K13,'Utility Functions'!$S$3:$S$7,'Utility Functions'!$T$3:$T$7)","v":0},{"$f":"valueE(L13,'Utility Functions'!$V$3,'Utility Functions'!$V$4,'Utility Functions'!$V$5,'Utility Functions'!$V$6)","v":0},{"$f":"valuePL(M13,'Utility Functions'!$W$3:$W$6,'Utility Functions'!$X$3:$X$6)","v":0},{"$f":"valueE(N13,'Utility Functions'!$Z$3,'Utility Functions'!$Z$4,'Utility Functions'!$Z$5,'Utility Functions'!$Z$6)","v":0},{"$f":"valuePL(O13,'Utility Functions'!$AA$3:$AA$5,'Utility Functions'!$AB$3:$AB$5)","v":0},{"$f":"valuePL(P13,'Utility Functions'!$AC$3:$AC$7,'Utility Functions'!$AD$3:$AD$7)","v":0},{"$f":"valuePL(Q13,'Utility Functions'!$AE$3:$AE$6,'Utility Functions'!$AF$3:$AF$6)","v":0.1},{"$f":"valuePL(R13,'Utility Functions'!$AG$3:$AG$6,'Utility Functions'!$AH$3:$AH$6)","v":1},{"$f":"valuePL(S13,'Utility Functions'!$AI$3:$AI$6,'Utility Functions'!$AJ$3:$AJ$6)","v":1},{"$f":"valuePL(T13,'Utility Functions'!$AK$3:$AK$8,'Utility Functions'!$AL$3:$AL$8)","v":0.6},{"$f":"valuePL(U13,'Utility Functions'!$AM$3:$AM$5,'Utility Functions'!$AN$3:$AN$5)","v":0},{"$f":"valuePL(V13,'Utility Functions'!$AO$3:$AO$5,'Utility Functions'!$AP$3:$AP$5)","v":0.5},{"$f":"valuePL(W13,'Utility Functions'!$AQ$3:$AQ$6,'Utility Functions'!$AR$3:$AR$6)","v":0.2},{"$f":"valuePL(X13,'Utility Functions'!$AS$3:$AS$6,'Utility Functions'!$AT$3:$AT$6)","v":1},{"$f":"valuePL(Y13,'Utility Functions'!$AU$3:$AU$6,'Utility Functions'!$AV$3:$AV$6)","v":0.2},{"$f":"valuePL(Z13,'Utility Functions'!$AW$3:$AW$5,'Utility Functions'!$AX$3:$AX$5)","v":1},{"$f":"valuePL(AA13,'Utility Functions'!$AY$3:$AY$6,'Utility Functions'!$AZ$3:$AZ$6)","v":0.2},{"$f":"valuePL(AB13,'Utility Functions'!$BA$3:$BA$5,'Utility Functions'!$BB$3:$BB$5)","v":1},{"$f":"valuePL(AC13,'Utility Functions'!$BC$3:$BC$5,'Utility Functions'!$BD$3:$BD$5)","v":0},9.4195802436719873,null,9.4195802436719873,2.6195802436719884,0,0,2.7,4.0999999999999996]
[13,{"$f":"valueE(B14,'Utility Functions'!$B$3,'Utility Functions'!$B$4,'Utility Functions'!$B$5,'Utility Functions'!$B$6)","v":0},{"$f":"valueE(C14,'Utility Functions'!$D$3,'Utility Functions'!$D$4,'Utility Functions'!$D$5,'Utility Functions'!$D$6)","v":0},{"$f":"valuePL(D14,'Utility Functions'!$E$3:$E$5,'Utility Functions'!$F$3:$F$5)","v":0},{"$f":"valuePL(E14,'Utility Functions'!$G$3:$G$5,'Utility Functions'!$H$3:$H$5)","v":0},{"$f":"valuePL(F14,'Utility Functions'!$I$3:$I$4,'Utility Functions'!$J$3:$J$5)","v":0},{"$f":"valueE(G14,'Utility Functions'!$L$3,'Utility Functions'!$L$4,'Utility Functions'!$L$5,'Utility Functions'!$L$6)","v":0},{"$f":"valueE(H14,'Utility Functions'!$N$3,'Utility Functions'!$N$4,'Utility Functions'!$N$5,'Utility Functions'!$N$6)","v":1.1385199240986717E-2},{"$f":"valuePL(I14,'Utility Functions'!$O$3:$O$6,'Utility Functions'!$P$3:$P$6)","v":0.3290909090909091},{"$f":"valuePL(J14,'Utility Functions'!$Q$3:$Q$6,'Utility Functions'!$R$3:$R$6)","v":0.04},{"$f":"valuePL(K14,'Utility Functions'!$S$3:$S$7,'Utility Functions'!$T$3:$T$7)","v":0.3290909090909091},{"$f":"valueE(L14,'Utility Functions'!$V$3,'Utility Functions'!$V$4,'Utility Functions'!$V$5,'Utility Functions'!$V$6)","v":1},{"$f":"valuePL(M14,'Utility Functions'!$W$3:$W$6,'Utility Functions'!$X$3:$X$6)","v":0.04},{"$f":"valueE(N14,'Utility Functions'!$Z$3,'Utility Functions'!$Z$4,'Utility Functions'!$Z$5,'Utility Functions'!$Z$6)","v":0.875},{"$f":"valuePL(O14,'Utility Functions'!$AA$3:$AA$5,'Utility Functions'!$AB$3:$AB$5)","v":0.25},{"$f":"valuePL(P14,'Utility Functions'!$AC$3:$AC$7,'Utility Functions'!$AD$3:$AD$7)","v":0.25},{"$f":"valuePL(Q14,'Utility Functions'!$AE$3:$AE$6,'Utility Functions'!$AF$3:$AF$6)","v":0},{"$f":"valuePL(R14,'Utility Functions'!$AG$3:$AG$6,'Utility Functions'!$AH$3:$AH$6)","v":1},{"$f":"valuePL(S14,'Utility Functions'!$AI$3:$AI$6,'Utility Functions'!$AJ$3:$AJ$6)","v":1},{"$f":"valuePL(T14,'Utility Functions'!$AK$3:$AK$8,'Utility Functions'!$AL$3:$AL$8)","v":0},{"$f":"valuePL(U14,'Utility Functions'!$AM$3:$AM$5,'Utility Functions'!$AN$3:$AN$5)","v":0},{"$f":"valuePL(V14,'Utility Functions'!$AO$3:$AO$5,'Utility Functions'!$AP$3:$AP$5)","v":0.5},{"$f":"valuePL(W14,'Utility Functions'!$AQ$3:$AQ$6,'Utility Functions'!$AR$3:$AR$6)","v":0},{"$f":"valuePL(X14,'Utility Functions'!$AS$3:$AS$6,'Utility Functions'!$AT$3:$AT$6)","v":0.2},{"$f":"valuePL(Y14,'Utility Functions'!$AU$3:$AU$6,'Utility Functions'!$AV$3:$AV$6)","v":0},{"$f":"valuePL(Z14,'Utility Functions'!$AW$3:$AW$5,'Utility Functions'!$AX$3:$AX$5)","v":1},{"$f":"valuePL(AA14,'Utility Functions'!$AY$3:$AY$6,'Utility Functions'!$AZ$3:$AZ$6)","v":0.2},{"$f":"valuePL(AB14,'Utility Functions'!$BA$3:$BA$5,'Utility Functions'!$BB$3:$BB$5)","v":0.25},{"$f":"valuePL(AC14,'Utility Functions'!$BC$3:$BC$5,'Utility Functions'!$BD$3:$BD$5)","v":0.25},7.5245670174228056,null,7.5245670174228056,0,1.7495670174228048,1.125,2.25,2.4]
[14,{"$f":"valueE(B15,'Utility Functions'!$B$3,'Utility Functions'!$B$4,'Utility Functions'!$B$5,'Utility Functions'!$B$6)","v":0.69880684688087746},{"$f":"valueE(C15,'Utility Functions'!$D$3,'Utility Functions'!$D$4,'Utility Functions'!$D$5,'Utility Functions'!$D$6)","v":0.78989979019422951},{"$f":"valuePL(D15,'Utility Functions'!$E$3:$E$5,'Utility Functions'!$F$3:$F$5)","v":0.5},{"$f":"valuePL(E15,'Utility Functions'!$G$3:$G$5,'Utility Functions'!$H$3:$H$5)","v":0.5},{"$f":"valuePL(F15,'Utility Functions'!$I$3:$I$4,'Utility Functions'!$J$3:$J$5)","v":0},{"$f":"valueE(G15,'Utility Functions'!$L$3,'Utility Functions'!$L$4,'Utility Functions'!$L$5,'Utility Functions'!$L$6)","v":0},{"$f":"valueE(H15,'Utility Functions'!$N$3,'Utility Functions'!$N$4,'Utility Functions'!$N$5,'Utility Functions'!$N$6)","v":0},{"$f":"valuePL(I15,'Utility Functions'!$O$3:$O$6,'Utility Functions'!$P$3:$P$6)","v":0},{"$f":"valuePL(J15,'Utility Functions'!$Q$3:$Q$6,'Utility Functions'!$R$3:$R$6)","v":0},{"$f":"valuePL(K15,'Utility Functions'!$S$3:$S$7,'Utility Functions'!$T$3:$T$7)","v":0},{"$f":"valueE(L15,'Utility Functions'!$V$3,'Utility Functions'!$V$4,'Utility Functions'!$V$5,'Utility Functions'!$V$6)","v":0},{"$f":"valuePL(M15,'Utility Functions'!$W$3:$W$6,'Utility Functions'!$X$3:$X$6)","v":0},{"$f":"valueE(N15,'Utility Functions'!$Z$3,'Utility Functions'!$Z$4,'Utility Functions'!$Z$5,'Utility Functions'!$Z$6)","v":0.75},{"$f":"valuePL(O15,'Utility Functions'!$AA$3:$AA$5,'Utility Functions'!$AB$3:$AB$5)","v":0.25},{"$f":"valuePL(P15,'Utility Functions'!$AC$3:$AC$7,'Utility Functions'!$AD$3:$AD$7)","v":0.25},{"$f":"valuePL(Q15,'Utility Functions'!$AE$3:$AE$6,'Utility Functions'!$AF$3:$AF$6)","v":0},{"$f":"valuePL(R15,'Utility Functions'!$AG$3:$AG$6,'Utility Functions'!$AH$3:$AH$6)","v":1},{"$f":"valuePL(S15,'Utility Functions'!$AI$3:$AI$6,'Utility Functions'!$AJ$3:$AJ$6)","v":1},{"$f":"valuePL(T15,'Utility Functions'!$AK$3:$AK$8,'Utility Functions'!$AL$3:$AL$8)","v":0},{"$f":"valuePL(U15,'Utility Functions'!$AM$3:$AM$5,'Utility Functions'!$AN$3:$AN$5)","v":0},{"$f":"valuePL(V15,'Utility Functions'!$AO$3:$AO$5,'Utility Functions'!$AP$3:$AP$5)","v":0.5},{"$f":"valuePL(W15,'Utility Functions'!$AQ$3:$AQ$6,'Utility Functions'!$AR$3:$AR$6)","v":0.2},{"$f":"valuePL(X15,'Utility Functions'!$AS$3:$AS$6,'Utility Functions'!$AT$3:$AT$6)","v":1},{"$f":"valuePL(Y15,'Utility Functions'!$AU$3:$AU$6,'Utility Functions'!$AV$3:$AV$6)","v":1},{"$f":"valuePL(Z15,'Utility Functions'!$AW$3:$AW$5,'Utility Functions'!$AX$3:$AX$5)","v":0.5},{"$f":"valuePL(AA15,'Utility Functions'!$AY$3:$AY$6,'Utility Functions'!$AZ$3:$AZ$6)","v":0.89999999999999991},{"$f":"valuePL(AB15,'Utility Functions'!$BA$3:$BA$5,'Utility Functions'!$BB$3:$BB$5)","v":0.25},{"$f":"valuePL(AC15,'Utility Functions'!$BC$3:$BC$5,'Utility Functions'!$BD$3:$BD$5)","v":0.25},10.338706637075108,null,10.338706637075106,2.488706637075107,0,1,2.25,4.5999999999999996]
[15,{"$f":"valueE(B16,'Utility Functions'!$B$3,'Utility Functions'!$B$4,'Utility Functions'!$B$5,'Utility Functions'!$B$6)","v":0.98994966417177144},{"$f":"valueE(C16,'Utility Functions'!$D$3,'Utility Functions'!$D$4,'Utility Functions'!$D$5,'Utility Functions'!$D$6)","v":0.71352759724260828},{"$f":"valuePL(D16,'Utility Functions'!$E$3:$E$5,'Utility Functions'!$F$3:$F$5)","v":1},{"$f":"valuePL(E16,'Utility Functions'!$G$3:$G$5,'Utility Functions'!$H$3:$H$5)","v":0.5},{"$f":"valuePL(F16,'Utility Functions'!$I$3:$I$4,'Utility Functions'!$J$3:$J$5)","v":1},{"$f":"valueE(G16,'Utility Functions'!$L$3,'Utility Functions'!$L$4,'Utility Functions'!$L$5,'Utility Functions'!$L$6)","v":0},{"$f":"valueE(H16,'Utility Functions'!$N$3,'Utility Functions'!$N$4,'Utility Functions'!$N$5,'Utility Functions'!$N$6)","v":0},{"$f":"valuePL(I16,'Utility Functions'!$O$3:$O$6,'Utility Functions'!$P$3:$P$6)","v":9.2000000000000012E-2},{"$f":"valuePL(J16,'Utility Functions'!$Q$3:$Q$6,'Utility Functions'!$R$3:$R$6)","v":6.0000000000000012E-2},{"$f":"valuePL(K16,'Utility Functions'!$S$3:$S$7,'Utility Functions'!$T$3:$T$7)","v":6.0000000000000012E-2},{"$f":"valueE(L16,'Utility Functions'!$V$3,'Utility Functions'!$V$4,'Utility Functions'!$V$5,'Utility Functions'!$V$6)","v":1},{"$f":"valuePL(M16,'Utility Functions'!$W$3:$W$6,'Utility Functions'!$X$3:$X$6)","v":6.0000000000000012E-2},{"$f":"valueE(N16,'Utility Functions'!$Z$3,'Utility Functions'!$Z$4,'Utility Functions'!$Z$5,'Utility Functions'!$Z$6)","v":0.125},{"$f":"valuePL(O16,'Utility Functions'!$AA$3:$AA$5,'Utility Functions'!$AB$3:$AB$5)","v":1},{"$f":"valuePL(P16,'Utility Functions'!$AC$3:$AC$7,'Utility Functions'!$AD$3:$AD$7)","v":0.5},{"$f":"valuePL(Q16,'Utility Functions'!$AE$3:$AE$6,'Utility Functions'!$AF$3:$AF$6)","v":0},{"$f":"valuePL(R16,'Utility Functions'!$AG$3:$AG$6,'Utility Functions'!$AH$3:$AH$6)","v":0.8},{"$f":"valuePL(S16,'Utility Functions'!$AI$3:$AI$6,'Utility Functions'!$AJ$3:$AJ$6)","v":1},{"$f":"valuePL(T16,'Utility Functions'!$AK$3:$AK$8,'Utility Functions'!$AL$3:$AL$8)","v":0.6},{"$f":"valuePL(U16,'Utility Functions'!$AM$3:$AM$5,'Utility Functions'!$AN$3:$AN$5)","v":1},{"$f":"valuePL(V16,'Utility Functions'!$AO$3:$AO$5,'Utility Functions'!$AP$3:$AP$5)","v":0},{"$f":"valuePL(W16,'Utility Functions'!$AQ$3:$AQ$6,'Utility Functions'!$AR$3:$AR$6)","v":1},{"$f":"valuePL(X16,'Utility Functions'!$AS$3:$AS$6,'Utility Functions'!$AT$3:$AT$6)","v":0.2},{"$f":"valuePL(Y16,'Utility Functions'!$AU$3:$AU$6,'Utility Functions'!$AV$3:$AV$6)","v":0.2},{"$f":"valuePL(Z16,'Utility Functions'!$AW$3:$AW$5,'Utility Functions'!$AX$3:$AX$5)","v":1},{"$f":"valuePL(AA16,'Utility Functions'!$AY$3:$AY$6,'Utility Functions'!$AZ$3:$AZ$6)","v":1},{"$f":"valuePL(AB16,'Utility Functions'!$BA$3:$BA$5,'Utility Functions'!$BB$3:$BB$5)","v":1},{"$f":"valuePL(AC16,'Utility Functions'!$BC$3:$BC$5,'Utility Functions'!$BD$3:$BD$5)","v":0.25},15.150477261414375,null,15.15047726141438,4.2034772614143794,1.272,1.125,3.9,4.6500000000000004]
[16,{"$f":"valueE(B17,'Utility Functions'!$B$3,'Utility Functions'!$B$4,'Utility Functions'!$B$5,'Utility Functions'!$B$6)","v":0},{"$f":"valueE(C17,'Utility Functions'!$D$3,'Utility Functions'!$D$4,'Utility Functions'!$D$5,'Utility Functions'!$D$6)","v":0},{"$f":"valuePL(D17,'Utility Functions'!$E$3:$E$5,'Utility Functions'!$F$3:$F$5)","v":0},{"$f":"valuePL(E17,'Utility Functions'!$G$3:$G$5,'Utility Functions'!$H$3:$H$5)","v":0},{"$f":"valuePL(F17,'Utility Functions'!$I$3:$I$4,'Utility Functions'!$J$3:$J$5)","v":0},{"$f":"valueE(G17,'Utility Functions'!$L$3,'Utility Functions'!$L$4,'Utility Functions'!$L$5,'Utility Functions'!$L$6)","v":0},{"$f":"valueE(H17,'Utility Functions'!$N$3,'Utility Functions'!$N$4,'Utility Functions'!$N$5,'Utility Functions'!$N$6)","v":0},{"$f":"valuePL(I17,'Utility Functions'!$O$3:$O$6,'Utility Functions'!$P$3:$P$6)","v":1},{"$f":"valuePL(J17,'Utility Functions'!$Q$3:$Q$6,'Utility Functions'!$R$3:$R$6)","v":0.91818181818181821},{"$f":"valuePL(K17,'Utility Functions'!$S$3:$S$7,'Utility Functions'!$T$3:$T$7)","v":1},{"$f":"valueE(L17,'Utility Functions'!$V$3,'Utility Functions'!$V$4,'Utility Functions'!$V$5,'Utility Functions'!$V$6)","v":0.83333333333333337},{"$f":"valuePL(M17,'Utility Functions'!$W$3:$W$6,'Utility Functions'!$X$3:$X$6)","v":0.91818181818181821},{"$f":"valueE(N17,'Utility Functions'!$Z$3,'Utility Functions'!$Z$4,'Utility Functions'!$Z$5,'Utility Functions'!$Z$6)","v":0},{"$f":"valuePL(O17,'Utility Functions'!$AA$3:$AA$5,'Utility Functions'!$AB$3:$AB$5)","v":0},{"$f":"valuePL(P17,'Utility Functions'!$AC$3:$AC$7,'Utility Functions'!$AD$3:$AD$7)","v":0.75},{"$f":"valuePL(Q17,'Utility Functions'!$AE$3:$AE$6,'Utility Functions'!$AF$3:$AF$6)","v":0},{"$f":"valuePL(R17,'Utility Functions'!$AG$3:$AG$6,'Utility Functions'!$AH$3:$AH$6)","v":1},{"$f":"valuePL(S17,'Utility Functions'!$AI$3:$AI$6,'Utility Functions'!$AJ$3:$AJ$6)","v":1},{"$f":"valuePL(T17,'Utility Functions'!$AK$3:$AK$8,'Utility Functions'!$AL$3:$AL$8)","v":1},{"$f":"valuePL(U17,'Utility Functions'!$AM$3:$AM$5,'Utility Functions'!$AN$3:$AN$5)","v":0},{"$f":"valuePL(V17,'Utility Functions'!$AO$3:$AO$5,'Utility Functions'!$AP$3:$AP$5)","v":1},{"$f":"valuePL(W17,'Utility Functions'!$AQ$3:$AQ$6,'Utility Functions'!$AR$3:$AR$6)","v":0.75},{"$f":"valuePL(X17,'Utility Functions'!$AS$3:$AS$6,'Utility Functions'!$AT$3:$AT$6)","v":0.75},{"$f":"valuePL(Y17,'Utility Functions'!$AU$3:$AU$6,'Utility Functions'!$AV$3:$AV$6)","v":0.2},{"$f":"valuePL(Z17,'Utility Functions'!$AW$3:$AW$5,'Utility Functions'!$AX$3:$AX$5)","v":1},{"$f":"valuePL(AA17,'Utility Functions'!$AY$3:$AY$6,'Utility Functions'!$AZ$3:$AZ$6)","v":1},{"$f":"valuePL(AB17,'Utility Functions'!$BA$3:$BA$5,'Utility Functions'!$BB$3:$BB$5)","v":1},{"$f":"valuePL(AC17,'Utility Functions'!$BC$3:$BC$5,'Utility Functions'!$BD$3:$BD$5)","v":1},15.119696969696969,null,15.119696969696971,0,4.6696969696969699,0,3.75,6.7]
[17,{"$f":"valueE(B18,'Utility Functions'!$B$3,'Utility Functions'!$B$4,'Utility Functions'!$B$5,'Utility Functions'!$B$6)","v":0.32968045347775865},{"$f":"valueE(C18,'Utility Functions'!$D$3,'Utility Functions'!$D$4,'Utility Functions'!$D$5,'Utility Functions'!$D$6)","v":0.78989979019422951},{"$f":"valuePL(D18,'Utility Functions'!$E$3:$E$5,'Utility Functions'!$F$3:$F$5)","v":1},{"$f":"valuePL(E18,'Utility Functions'!$G$3:$G$5,'Utility Functions'!$H$3:$H$5)","v":0.5},{"$f":"valuePL(F18,'Utility Functions'!$I$3:$I$4,'Utility Functions'!$J$3:$J$5)","v":1},{"$f":"valueE(G18,'Utility Functions'!$L$3,'Utility Functions'!$L$4,'Utility Functions'!$L$5,'Utility Functions'!$L$6)","v":0.31182795698924731},{"$f":"valueE(H18,'Utility Functions'!$N$3,'Utility Functions'!$N$4,'Utility Functions'!$N$5,'Utility Functions'!$N$6)","v":0.27514231499051234},{"$f":"valuePL(I18,'Utility Functions'!$O$3:$O$6,'Utility Functions'!$P$3:$P$6)","v":0},{"$f":"valuePL(J18,'Utility Functions'!$Q$3:$Q$6,'Utility Functions'!$R$3:$R$6)","v":0},{"$f":"valuePL(K18,'Utility Functions'!$S$3:$S$7,'Utility Functions'!$T$3:$T$7)","v":0},{"$f":"valueE(L18,'Utility Functions'!$V$3,'Utility Functions'!$V$4,'Utility Functions'!$V$5,'Utility Functions'!$V$6)","v":1},{"$f":"valuePL(M18,'Utility Functions'!$W$3:$W$6,'Utility Functions'!$X$3:$X$6)","v":6.0000000000000012E-2},{"$f":"valueE(N18,'Utility Functions'!$Z$3,'Utility Functions'!$Z$4,'Utility Functions'!$Z$5,'Utility Functions'!$Z$6)","v":0},{"$f":"valuePL(O18,'Utility Functions'!$AA$3:$AA$5,'Utility Functions'!$AB$3:$AB$5)","v":0},{"$f":"valuePL(P18,'Utility Functions'!$AC$3:$AC$7,'Utility Functions'!$AD$3:$AD$7)","v":0},{"$f":"valuePL(Q18,'Utility Functions'!$AE$3:$AE$6,'Utility Functions'!$AF$3:$AF$6)","v":0},{"$f":"valuePL(R18,'Utility Functions'!$AG$3:$AG$6,'Utility Functions'!$AH$3:$AH$6)","v":1},{"$f":"valuePL(S18,'Utility Functions'!$AI$3:$AI$6,'Utility Functions'!$AJ$3:$AJ$6)","v":0.66},{"$f":"valuePL(T18,'Utility Functions'!$AK$3:$AK$8,'Utility Functions'!$AL$3:$AL$8)","v":0},{"$f":"valuePL(U18,'Utility Functions'!$AM$3:$AM$5,'Utility Functions'!$AN$3:$AN$5)","v":0},{"$f":"valuePL(V18,'Utility Functions'!$AO$3:$AO$5,'Utility Functions'!$AP$3:$AP$5)","v":1},{"$f":"valuePL(W18,'Utility Functions'!$AQ$3:$AQ$6,'Utility Functions'!$AR$3:$AR$6)","v":1},{"$f":"valuePL(X18,'Utility Functions'!$AS$3:$AS$6,'Utility Functions'!$AT$3:$AT$6)","v":0.2},{"$f":"valuePL(Y18,'Utility Functions'!$AU$3:$AU$6,'Utility Functions'!$AV$3:$AV$6)","v":0},{"$f":"valuePL(Z18,'Utility Functions'!$AW$3:$AW$5,'Utility Functions'!$AX$3:$AX$5)","v":0.5},{"$f":"valuePL(AA18,'Utility Functions'!$AY$3:$AY$6,'Utility Functions'!$AZ$3:$AZ$6)","v":0},{"$f":"valuePL(AB18,'Utility Functions'!$BA$3:$BA$5,'Utility Functions'!$BB$3:$BB$5)","v":1},{"$f":"valuePL(AC18,'Utility Functions'!$BC$3:$BC$5,'Utility Functions'!$BD$3:$BD$5)","v":0.25},10.876550515651747,null,10.876550515651747,3.6195802436719884,1.6469702719797596,0,1.6600000000000001,3.95]
[18,{"$f":"valueE(B19,'Utility Functions'!$B$3,'Utility Functions'!$B$4,'Utility Functions'!$B$5,'Utility Functions'!$B$6)","v":0},{"$f":"valueE(C19,'Utility Functions'!$D$3,'Utility Functions'!$D$4,'Utility Functions'!$D$5,'Utility Functions'!$D$6)","v":0},{"$f":"valuePL(D19,'Utility Functions'!$E$3:$E$5,'Utility Functions'!$F$3:$F$5)","v":0},{"$f":"valuePL(E19,'Utility Functions'!$G$3:$G$5,'Utility Functions'!$H$3:$H$5)","v":0},{"$f":"valuePL(F19,'Utility Functions'!$I$3:$I$4,'Utility Functions'!$J$3:$J$5)","v":0},{"$f":"valueE(G19,'Utility Functions'!$L$3,'Utility Functions'!$L$4,'Utility Functions'!$L$5,'Utility Functions'!$L$6)","v":0},{"$f":"valueE(H19,'Utility Functions'!$N$3,'Utility Functions'!$N$4,'Utility Functions'!$N$5,'Utility Functions'!$N$6)","v":2.8462998102466792E-2},{"$f":"valuePL(I19,'Utility Functions'!$O$3:$O$6,'Utility Functions'!$P$3:$P$6)","v":0},{"$f":"valuePL(J19,'Utility Functions'!$Q$3:$Q$6,'Utility Functions'!$R$3:$R$6)","v":0},{"$f":"valuePL(K19,'Utility Functions'!$S$3:$S$7,'Utility Functions'!$T$3:$T$7)","v":0},{"$f":"valueE(L19,'Utility Functions'!$V$3,'Utility Functions'!$V$4,'Utility Functions'!$V$5,'Utility Functions'!$V$6)","v":0},{"$f":"valuePL(M19,'Utility Functions'!$W$3:$W$6,'Utility Functions'!$X$3:$X$6)","v":0},{"$f":"valueE(N19,'Utility Functions'!$Z$3,'Utility Functions'!$Z$4,'Utility Functions'!$Z$5,'Utility Functions'!$Z$6)","v":1},{"$f":"valuePL(O19,'Utility Functions'!$AA$3:$AA$5,'Utility Functions'!$AB$3:$AB$5)","v":0.25},{"$f":"valuePL(P19,'Utility Functions'!$AC$3:$AC$7,'Utility Functions'!$AD$3:$AD$7)","v":0.25},{"$f":"valuePL(Q19,'Utility Functions'!$AE$3:$AE$6,'Utility Functions'!$AF$3:$AF$6)","v":1},{"$f":"valuePL(R19,'Utility Functions'!$AG$3:$AG$6,'Utility Functions'!$AH$3:$AH$6)","v":1},{"$f":"valuePL(S19,'Utility Functions'!$AI$3:$AI$6,'Utility Functions'!$AJ$3:$AJ$6)","v":1},{"$f":"valuePL(T19,'Utility Functions'!$AK$3:$AK$8,'Utility Functions'!$AL$3:$AL$8)","v":1},{"$f":"valuePL(U19,'Utility Functions'!$AM$3:$AM$5,'Utility Functions'!$AN$3:$AN$5)","v":0.25},{"$f":"valuePL(V19,'Utility Functions'!$AO$3:$AO$5,'Utility Functions'!$AP$3:$AP$5)","v":1},{"$f":"valuePL(W19,'Utility Functions'!$AQ$3:$AQ$6,'Utility Functions'!$AR$3:$AR$6)","v":0.75},{"$f":"valuePL(X19,'Utility Functions'!$AS$3:$AS$6,'Utility Functions'!$AT$3:$AT$6)","v":0.2},{"$f":"valuePL(Y19,'Utility Functions'!$AU$3:$AU$6,'Utility Functions'!$AV$3:$AV$6)","v":0.8},{"$f":"valuePL(Z19,'Utility Functions'!$AW$3:$AW$5,'Utility Functions'!$AX$3:$AX$5)","v":0.5},{"$f":"valuePL(AA19,'Utility Functions'!$AY$3:$AY$6,'Utility Functions'!$AZ$3:$AZ$6)","v":0.89999999999999991},{"$f":"valuePL(AB19,'Utility Functions'!$BA$3:$BA$5,'Utility Functions'!$BB$3:$BB$5)","v":0.25},{"$f":"valuePL(AC19,'Utility Functions'!$BC$3:$BC$5,'Utility Functions'!$BD$3:$BD$5)","v":0},10.178462998102468,null,10.178462998102468,0,2.8462998102466792E-2,1.25,4.5,4.4000000000000004]
[19,{"$f":"valueE(B20,'Utility Functions'!$B$3,'Utility Functions'!$B$4,'Utility Functions'!$B$5,'Utility Functions'!$B$6)","v":0.79810469124896843},{"$f":"valueE(C20,'Utility Functions'!$D$3,'Utility Functions'!$D$4,'Utility Functions'!$D$5,'Utility Functions'!$D$6)","v":0.26839655623815994},{"$f":"valuePL(D20,'Utility Functions'!$E$3:$E$5,'Utility Functions'!$F$3:$F$5)","v":0.5},{"$f":"valuePL(E20,'Utility Functions'!$G$3:$G$5,'Utility Functions'!$H$3:$H$5)","v":1},{"$f":"valuePL(F20,'Utility Functions'!$I$3:$I$4,'Utility Functions'!$J$3:$J$5)","v":0},{"$f":"valueE(G20,'Utility Functions'!$L$3,'Utility Functions'!$L$4,'Utility Functions'!$L$5,'Utility Functions'!$L$6)","v":0},{"$f":"valueE(H20,'Utility Functions'!$N$3,'Utility Functions'!$N$4,'Utility Functions'!$N$5,'Utility Functions'!$N$6)","v":0},{"$f":"valuePL(I20,'Utility Functions'!$O$3:$O$6,'Utility Functions'!$P$3:$P$6)","v":0},{"$f":"valuePL(J20,'Utility Functions'!$Q$3:$Q$6,'Utility Functions'!$R$3:$R$6)","v":0},{"$f":"valuePL(K20,'Utility Functions'!$S$3:$S$7,'Utility Functions'!$T$3:$T$7)","v":0},{"$f":"valueE(L20,'Utility Functions'!$V$3,'Utility Functions'!$V$4,'Utility Functions'!$V$5,'Utility Functions'!$V$6)","v":0},{"$f":"valuePL(M20,'Utility Functions'!$W$3:$W$6,'Utility Functions'!$X$3:$X$6)","v":0},{"$f":"valueE(N20,'Utility Functions'!$Z$3,'Utility Functions'!$Z$4,'Utility Functions'!$Z$5,'Utility Functions'!$Z$6)","v":1},{"$f":"valuePL(O20,'Utility Functions'!$AA$3:$AA$5,'Utility Functions'!$AB$3:$AB$5)","v":1},{"$f":"valuePL(P20,'Utility Functions'!$AC$3:$AC$7,'Utility Functions'!$AD$3:$AD$7)","v":0},{"$f":"valuePL(Q20,'Utility Functions'!$AE$3:$AE$6,'Utility Functions'!$AF$3:$AF$6)","v":0},{"$f":"valuePL(R20,'Utility Functions'!$AG$3:$AG$6,'Utility Functions'!$AH$3:$AH$6)","v":0.8},{"$f":"valuePL(S20,'Utility Functions'!$AI$3:$AI$6,'Utility Functions'!$AJ$3:$AJ$6)","v":1},{"$f":"valuePL(T20,'Utility Functions'!$AK$3:$AK$8,'Utility Functions'!$AL$3:$AL$8)","v":0},{"$f":"valuePL(U20,'Utility Functions'!$AM$3:$AM$5,'Utility Functions'!$AN$3:$AN$5)","v":0},{"$f":"valuePL(V20,'Utility Functions'!$AO$3:$AO$5,'Utility Functions'!$AP$3:$AP$5)","v":0.5},{"$f":"valuePL(W20,'Utility Functions'!$AQ$3:$AQ$6,'Utility Functions'!$AR$3:$AR$6)","v":0.2},{"$f":"valuePL(X20,'Utility Functions'!$AS$3:$AS$6,'Utility Functions'!$AT$3:$AT$6)","v":1},{"$f":"valuePL(Y20,'Utility Functions'!$AU$3:$AU$6,'Utility Functions'!$AV$3:$AV$6)","v":0.8},{"$f":"valuePL(Z20,'Utility Functions'!$AW$3:$AW$5,'Utility Functions'!$AX$3:$AX$5)","v":0},{"$f":"valuePL(AA20,'Utility Functions'!$AY$3:$AY$6,'Utility Functions'!$AZ$3:$AZ$6)","v":0.2},{"$f":"valuePL(AB20,'Utility Functions'!$BA$3:$BA$5,'Utility Functions'!$BB$3:$BB$5)","v":0},{"$f":"valuePL(AC20,'Utility Functions'!$BC$3:$BC$5,'Utility Functions'!$BD$3:$BD$5)","v":0.25},9.3165012474871283,null,9.3165012474871283,2.5665012474871283,0,2,1.8,2.95]
[20,{"$f":"valueE(B21,'Utility Functions'!$B$3,'Utility Functions'!$B$4,'Utility Functions'!$B$5,'Utility Functions'!$B$6)","v":0.83470237647280454},{"$f":"valueE(C21,'Utility Functions'!$D$3,'Utility Functions'!$D$4,'Utility Functions'!$D$5,'Utility Functions'!$D$6)","v":0.78989979019422951},{"$f":"valuePL(D21,'Utility Functions'!$E$3:$E$5,'Utility Functions'!$F$3:$F$5)","v":0.5},{"$f":"valuePL(E21,'Utility Functions'!$G$3:$G$5,'Utility Functions'!$H$3:$H$5)","v":1},{"$f":"valuePL(F21,'Utility Functions'!$I$3:$I$4,'Utility Functions'!$J$3:$J$5)","v":0},{"$f":"valueE(G21,'Utility Functions'!$L$3,'Utility Functions'!$L$4,'Utility Functions'!$L$5,'Utility Functions'!$L$6)","v":0},{"$f":"valueE(H21,'Utility Functions'!$N$3,'Utility Functions'!$N$4,'Utility Functions'!$N$5,'Utility Functions'!$N$6)","v":0.41271347248576851},{"$f":"valuePL(I21,'Utility Functions'!$O$3:$O$6,'Utility Functions'!$P$3:$P$6)","v":0.93454545454545446},{"$f":"valuePL(J21,'Utility Functions'!$Q$3:$Q$6,'Utility Functions'!$R$3:$R$6)","v":0.50909090909090915},{"$f":"valuePL(K21,'Utility Functions'!$S$3:$S$7,'Utility Functions'!$T$3:$T$7)","v":0.93454545454545446},{"$f":"valueE(L21,'Utility Functions'!$V$3,'Utility Functions'!$V$4,'Utility Functions'!$V$5,'Utility Functions'!$V$6)","v":0.66666666666666663},{"$f":"valuePL(M21,'Utility Functions'!$W$3:$W$6,'Utility Functions'!$X$3:$X$6)","v":0.50909090909090915},{"$f":"valueE(N21,'Utility Functions'!$Z$3,'Utility Functions'!$Z$4,'Utility Functions'!$Z$5,'Utility Functions'!$Z$6)","v":1},{"$f":"valuePL(O21,'Utility Functions'!$AA$3:$AA$5,'Utility Functions'!$AB$3:$AB$5)","v":1},{"$f":"valuePL(P21,'Utility Functions'!$AC$3:$AC$7,'Utility Functions'!$AD$3:$AD$7)","v":0.25},{"$f":"valuePL(Q21,'Utility Functions'!$AE$3:$AE$6,'Utility Functions'!$AF$3:$AF$6)","v":0},{"$f":"valuePL(R21,'Utility Functions'!$AG$3:$AG$6,'Utility Functions'!$AH$3:$AH$6)","v":1},{"$f":"valuePL(S21,'Utility Functions'!$AI$3:$AI$6,'Utility Functions'!$AJ$3:$AJ$6)","v":1},{"$f":"valuePL(T21,'Utility Functions'!$AK$3:$AK$8,'Utility Functions'!$AL$3:$AL$8)","v":0.6},{"$f":"valuePL(U21,'Utility Functions'!$AM$3:$AM$5,'Utility Functions'!$AN$3:$AN$5)","v":1},{"$f":"valuePL(V21,'Utility Functions'!$AO$3:$AO$5,'Utility Functions'!$AP$3:$AP$5)","v":0.5},{"$f":"valuePL(W21,'Utility Functions'!$AQ$3:$AQ$6,'Utility Functions'!$AR$3:$AR$6)","v":0},{"$f":"valuePL(X21,'Utility Functions'!$AS$3:$AS$6,'Utility Functions'!$AT$3:$AT$6)","v":0},{"$f":"valuePL(Y21,'Utility Functions'!$AU$3:$AU$6,'Utility Functions'!$AV$3:$AV$6)","v":0.2},{"$f":"valuePL(Z21,'Utility Functions'!$AW$3:$AW$5,'Utility Functions'!$AX$3:$AX$5)","v":1},{"$f":"valuePL(AA21,'Utility Functions'!$AY$3:$AY$6,'Utility Functions'!$AZ$3:$AZ$6)","v":0.2},{"$f":"valuePL(AB21,'Utility Functions'!$BA$3:$BA$5,'Utility Functions'!$BB$3:$BB$5)","v":0},{"$f":"valuePL(AC21,'Utility Functions'!$BC$3:$BC$5,'Utility Functions'!$BD$3:$BD$5)","v":0.25},15.091255033092194,null,15.091255033092196,3.1246021666670343,3.9666528664251626,2,3.85,2.15]
[21,{"$f":"valueE(B22,'Utility Functions'!$B$3,'Utility Functions'!$B$4,'Utility Functions'!$B$5,'Utility Functions'!$B$6)","v":0},{"$f":"valueE(C22,'Utility Functions'!$D$3,'Utility Functions'!$D$4,'Utility Functions'!$D$5,'Utility Functions'!$D$6)","v":0},{"$f":"valuePL(D22,'Utility Functions'!$E$3:$E$5,'Utility Functions'!$F$3:$F$5)","v":0},{"$f":"valuePL(E22,'Utility Functions'!$G$3:$G$5,'Utility Functions'!$H$3:$H$5)","v":0},{"$f":"valuePL(F22,'Utility Functions'!$I$3:$I$4,'Utility Functions'!$J$3:$J$5)","v":0},{"$f":"valueE(G22,'Utility Functions'!$L$3,'Utility Functions'!$L$4,'Utility Functions'!$L$5,'Utility Functions'!$L$6)","v":0},{"$f":"valueE(H22,'Utility Functions'!$N$3,'Utility Functions'!$N$4,'Utility Functions'!$N$5,'Utility Functions'!$N$6)","v":0},{"$f":"valuePL(I22,'Utility Functions'!$O$3:$O$6,'Utility Functions'!$P$3:$P$6)","v":0},{"$f":"valuePL(J22,'Utility Functions'!$Q$3:$Q$6,'Utility Functions'!$R$3:$R$6)","v":0},{"$f":"valuePL(K22,'Utility Functions'!$S$3:$S$7,'Utility Functions'!$T$3:$T$7)","v":0},{"$f":"valueE(L22,'Utility Functions'!$V$3,'Utility Functions'!$V$4,'Utility Functions'!$V$5,'Utility Functions'!$V$6)","v":0},{"$f":"valuePL(M22,'Utility Functions'!$W$3:$W$6,'Utility Functions'!$X$3:$X$6)","v":0},{"$f":"valueE(N22,'Utility Functions'!$Z$3,'Utility Functions'!$Z$4,'Utility Functions'!$Z$5,'Utility Functions'!$Z$6)","v":1},{"$f":"valuePL(O22,'Utility Functions'!$AA$3:$AA$5,'Utility Functions'!$AB$3:$AB$5)","v":1},{"$f":"valuePL(P22,'Utility Functions'!$AC$3:$AC$7,'Utility Functions'!$AD$3:$AD$7)","v":0},{"$f":"valuePL(Q22,'Utility Functions'!$AE$3:$AE$6,'Utility Functions'!$AF$3:$AF$6)","v":0.1},{"$f":"valuePL(R22,'Utility Functions'!$AG$3:$AG$6,'Utility Functions'!$AH$3:$AH$6)","v":1},{"$f":"valuePL(S22,'Utility Functions'!$AI$3:$AI$6,'Utility Functions'!$AJ$3:$AJ$6)","v":1},{"$f":"valuePL(T22,'Utility Functions'!$AK$3:$AK$8,'Utility Functions'!$AL$3:$AL$8)","v":1},{"$f":"valuePL(U22,'Utility Functions'!$AM$3:$AM$5,'Utility Functions'!$AN$3:$AN$5)","v":0.25},{"$f":"valuePL(V22,'Utility Functions'!$AO$3:$AO$5,'Utility Functions'!$AP$3:$AP$5)","v":0},{"$f":"valuePL(W22,'Utility Functions'!$AQ$3:$AQ$6,'Utility Functions'!$AR$3:$AR$6)","v":0.75},{"$f":"valuePL(X22,'Utility Functions'!$AS$3:$AS$6,'Utility Functions'!$AT$3:$AT$6)","v":1},{"$f":"valuePL(Y22,'Utility Functions'!$AU$3:$AU$6,'Utility Functions'!$AV$3:$AV$6)","v":0.2},{"$f":"valuePL(Z22,'Utility Functions'!$AW$3:$AW$5,'Utility Functions'!$AX$3:$AX$5)","v":0},{"$f":"valuePL(AA22,'Utility Functions'!$AY$3:$AY$6,'Utility Functions'!$AZ$3:$AZ$6)","v":1},{"$f":"valuePL(AB22,'Utility Functions'!$BA$3:$BA$5,'Utility Functions'!$BB$3:$BB$5)","v":0.25},{"$f":"valuePL(AC22,'Utility Functions'!$BC$3:$BC$5,'Utility Functions'!$BD$3:$BD$5)","v":1},9.5500000000000007,null,9.5500000000000007,0,0,2,3.35,4.2]
[22,{"$f":"valueE(B23,'Utility Functions'!$B$3,'Utility Functions'!$B$4,'Utility Functions'!$B$5,'Utility Functions'!$B$6)","v":0},{"$f":"valueE(C23,'Utility Functions'!$D$3,'Utility Functions'!$D$4,'Utility Functions'!$D$5,'Utility Functions'!$D$6)","v":0},{"$f":"valuePL(D23,'Utility Functions'!$E$3:$E$5,'Utility Functions'!$F$3:$F$5)","v":0},{"$f":"valuePL(E23,'Utility Functions'!$G$3:$G$5,'Utility Functions'!$H$3:$H$5)","v":0},{"$f":"valuePL(F23,'Utility Functions'!$I$3:$I$4,'Utility Functions'!$J$3:$J$5)","v":0},{"$f":"valueE(G23,'Utility Functions'!$L$3,'Utility Functions'!$L$4,'Utility Functions'!$L$5,'Utility Functions'!$L$6)","v":8.6021505376344093E-2},{"$f":"valueE(H23,'Utility Functions'!$N$3,'Utility Functions'!$N$4,'Utility Functions'!$N$5,'Utility Functions'!$N$6)","v":6.0721062618595827E-2},{"$f":"valuePL(I23,'Utility Functions'!$O$3:$O$6,'Utility Functions'!$P$3:$P$6)","v":0},{"$f":"valuePL(J23,'Utility Functions'!$Q$3:$Q$6,'Utility Functions'!$R$3:$R$6)","v":0},{"$f":"valuePL(K23,'Utility Functions'!$S$3:$S$7,'Utility Functions'!$T$3:$T$7)","v":0},{"$f":"valueE(L23,'Utility Functions'!$V$3,'Utility Functions'!$V$4,'Utility Functions'!$V$5,'Utility Functions'!$V$6)","v":0},{"$f":"valuePL(M23,'Utility Functions'!$W$3:$W$6,'Utility Functions'!$X$3:$X$6)","v":0},{"$f":"valueE(N23,'Utility Functions'!$Z$3,'Utility Functions'!$Z$4,'Utility Functions'!$Z$5,'Utility Functions'!$Z$6)","v":0.125},{"$f":"valuePL(O23,'Utility Functions'!$AA$3:$AA$5,'Utility Functions'!$AB$3:$AB$5)","v":1},{"$f":"valuePL(P23,'Utility Functions'!$AC$3:$AC$7,'Utility Functions'!$AD$3:$AD$7)","v":1},{"$f":"valuePL(Q23,'Utility Functions'!$AE$3:$AE$6,'Utility Functions'!$AF$3:$AF$6)","v":0.5},{"$f":"valuePL(R23,'Utility Functions'!$AG$3:$AG$6,'Utility Functions'!$AH$3:$AH$6)","v":0.8},{"$f":"valuePL(S23,'Utility Functions'!$AI$3:$AI$6,'Utility Functions'!$AJ$3:$AJ$6)","v":1},{"$f":"valuePL(T23,'Utility Functions'!$AK$3:$AK$8,'Utility Functions'!$AL$3:$AL$8)","v":1},{"$f":"valuePL(U23,'Utility Functions'!$AM$3:$AM$5,'Utility Functions'!$AN$3:$AN$5)","v":0},{"$f":"valuePL(V23,'Utility Functions'!$AO$3:$AO$5,'Utility Functions'!$AP$3:$AP$5)","v":0.5},{"$f":"valuePL(W23,'Utility Functions'!$AQ$3:$AQ$6,'Utility Functions'!$AR$3:$AR$6)","v":0.75},{"$f":"valuePL(X23,'Utility Functions'!$AS$3:$AS$6,'Utility Functions'!$AT$3:$AT$6)","v":0.2},{"$f":"valuePL(Y23,'Utility Functions'!$AU$3:$AU$6,'Utility Functions'!$AV$3:$AV$6)","v":0},{"$f":"valuePL(Z23,'Utility Functions'!$AW$3:$AW$5,'Utility Functions'!$AX$3:$AX$5)","v":1},{"$f":"valuePL(AA23,'Utility Functions'!$AY$3:$AY$6,'Utility Functions'!$AZ$3:$AZ$6)","v":0.2},{"$f":"valuePL(AB23,'Utility Functions'!$BA$3:$BA$5,'Utility Functions'!$BB$3:$BB$5)","v":1},{"$f":"valuePL(AC23,'Utility Functions'!$BC$3:$BC$5,'Utility Functions'!$BD$3:$BD$5)","v":0.25},9.471742567994939,null,9.4717425679949407,0,0.14674256799493993,1.125,4.3,3.9000000000000004]
[23,{"$f":"valueE(B24,'Utility Functions'!$B$3,'Utility Functions'!$B$4,'Utility Functions'!$B$5,'Utility Functions'!$B$6)","v":0.83470237647280454},{"$f":"valueE(C24,'Utility Functions'!$D$3,'Utility Functions'!$D$4,'Utility Functions'!$D$5,'Utility Functions'!$D$6)","v":0.84744836833951609},{"$f":"valuePL(D24,'Utility Functions'!$E$3:$E$5,'Utility Functions'!$F$3:$F$5)","v":1},{"$f":"valuePL(E24,'Utility Functions'!$G$3:$G$5,'Utility Functions'!$H$3:$H$5)","v":0},{"$f":"valuePL(F24,'Utility Functions'!$I$3:$I$4,'Utility Functions'!$J$3:$J$5)","v":0},{"$f":"valueE(G24,'Utility Functions'!$L$3,'Utility Functions'!$L$4,'Utility Functions'!$L$5,'Utility Functions'!$L$6)","v":0},{"$f":"valueE(H24,'Utility Functions'!$N$3,'Utility Functions'!$N$4,'Utility Functions'!$N$5,'Utility Functions'!$N$6)","v":0},{"$f":"valuePL(I24,'Utility Functions'!$O$3:$O$6,'Utility Functions'!$P$3:$P$6)","v":0},{"$f":"valuePL(J24,'Utility Functions'!$Q$3:$Q$6,'Utility Functions'!$R$3:$R$6)","v":0},{"$f":"valuePL(K24,'Utility Functions'!$S$3:$S$7,'Utility Functions'!$T$3:$T$7)","v":0},{"$f":"valueE(L24,'Utility Functions'!$V$3,'Utility Functions'!$V$4,'Utility Functions'!$V$5,'Utility Functions'!$V$6)","v":0},{"$f":"valuePL(M24,'Utility Functions'!$W$3:$W$6,'Utility Functions'!$X$3:$X$6)","v":0},{"$f":"valueE(N24,'Utility Functions'!$Z$3,'Utility Functions'!$Z$4,'Utility Functions'!$Z$5,'Utility Functions'!$Z$6)","v":0},{"$f":"valuePL(O24,'Utility Functions'!$AA$3:$AA$5,'Utility Functions'!$AB$3:$AB$5)","v":0},{"$f":"valuePL(P24,'Utility Functions'!$AC$3:$AC$7,'Utility Functions'!$AD$3:$AD$7)","v":0.75},{"$f":"valuePL(Q24,'Utility Functions'!$AE$3:$AE$6,'Utility Functions'!$AF$3:$AF$6)","v":0},{"$f":"valuePL(R24,'Utility Functions'!$AG$3:$AG$6,'Utility Functions'!$AH$3:$AH$6)","v":1},{"$f":"valuePL(S24,'Utility Functions'!$AI$3:$AI$6,'Utility Functions'!$AJ$3:$AJ$6)","v":1},{"$f":"valuePL(T24,'Utility Functions'!$AK$3:$AK$8,'Utility Functions'!$AL$3:$AL$8)","v":1},{"$f":"valuePL(U24,'Utility Functions'!$AM$3:$AM$5,'Utility Functions'!$AN$3:$AN$5)","v":0},{"$f":"valuePL(V24,'Utility Functions'!$AO$3:$AO$5,'Utility Functions'!$AP$3:$AP$5)","v":1},{"$f":"valuePL(W24,'Utility Functions'!$AQ$3:$AQ$6,'Utility Functions'!$AR$3:$AR$6)","v":0.2},{"$f":"valuePL(X24,'Utility Functions'!$AS$3:$AS$6,'Utility Functions'!$AT$3:$AT$6)","v":0.75},{"$f":"valuePL(Y24,'Utility Functions'!$AU$3:$AU$6,'Utility Functions'!$AV$3:$AV$6)","v":0.2},{"$f":"valuePL(Z24,'Utility Functions'!$AW$3:$AW$5,'Utility Functions'!$AX$3:$AX$5)","v":0.5},{"$f":"valuePL(AA24,'Utility Functions'!$AY$3:$AY$6,'Utility Functions'!$AZ$3:$AZ$6)","v":0.2},{"$f":"valuePL(AB24,'Utility Functions'!$BA$3:$BA$5,'Utility Functions'!$BB$3:$BB$5)","v":0},{"$f":"valuePL(AC24,'Utility Functions'!$BC$3:$BC$5,'Utility Functions'!$BD$3:$BD$5)","v":0.25},9.5321507448123199,null,9.5321507448123199,2.6821507448123207,0,0,3.75,3.1]
[24,{"$f":"valueE(B25,'Utility Functions'!$B$3,'Utility Functions'!$B$4,'Utility Functions'!$B$5,'Utility Functions'!$B$6)","v":0.63212151658375171},{"$f":"valueE(C25,'Utility Functions'!$D$3,'Utility Functions'!$D$4,'Utility Functions'!$D$5,'Utility Functions'!$D$6)","v":0.46475967153745396},{"$f":"valuePL(D25,'Utility Functions'!$E$3:$E$5,'Utility Functions'!$F$3:$F$5)","v":1},{"$f":"valuePL(E25,'Utility Functions'!$G$3:$G$5,'Utility Functions'!$H$3:$H$5)","v":0},{"$f":"valuePL(F25,'Utility Functions'!$I$3:$I$4,'Utility Functions'!$J$3:$J$5)","v":0},{"$f":"valueE(G25,'Utility Functions'!$L$3,'Utility Functions'!$L$4,'Utility Functions'!$L$5,'Utility Functions'!$L$6)","v":0},{"$f":"valueE(H25,'Utility Functions'!$N$3,'Utility Functions'!$N$4,'Utility Functions'!$N$5,'Utility Functions'!$N$6)","v":0},{"$f":"valuePL(I25,'Utility Functions'!$O$3:$O$6,'Utility Functions'!$P$3:$P$6)","v":0},{"$f":"valuePL(J25,'Utility Functions'!$Q$3:$Q$6,'Utility Functions'!$R$3:$R$6)","v":0},{"$f":"valuePL(K25,'Utility Functions'!$S$3:$S$7,'Utility Functions'!$T$3:$T$7)","v":0},{"$f":"valueE(L25,'Utility Functions'!$V$3,'Utility Functions'!$V$4,'Utility Functions'!$V$5,'Utility Functions'!$V$6)","v":0},{"$f":"valuePL(M25,'Utility Functions'!$W$3:$W$6,'Utility Functions'!$X$3:$X$6)","v":0},{"$f":"valueE(N25,'Utility Functions'!$Z$3,'Utility Functions'!$Z$4,'Utility Functions'!$Z$5,'Utility Functions'!$Z$6)","v":0},{"$f":"valuePL(O25,'Utility Functions'!$AA$3:$AA$5,'Utility Functions'!$AB$3:$AB$5)","v":0},{"$f":"valuePL(P25,'Utility Functions'!$AC$3:$AC$7,'Utility Functions'!$AD$3:$AD$7)","v":0},{"$f":"valuePL(Q25,'Utility Functions'!$AE$3:$AE$6,'Utility Functions'!$AF$3:$AF$6)","v":0},{"$f":"valuePL(R25,'Utility Functions'!$AG$3:$AG$6,'Utility Functions'!$AH$3:$AH$6)","v":1},{"$f":"valuePL(S25,'Utility Functions'!$AI$3:$AI$6,'Utility Functions'!$AJ$3:$AJ$6)","v":1},{"$f":"valuePL(T25,'Utility Functions'!$AK$3:$AK$8,'Utility Functions'!$AL$3:$AL$8)","v":1},{"$f":"valuePL(U25,'Utility Functions'!$AM$3:$AM$5,'Utility Functions'!$AN$3:$AN$5)","v":0},{"$f":"valuePL(V25,'Utility Functions'!$AO$3:$AO$5,'Utility Functions'!$AP$3:$AP$5)","v":0},{"$f":"valuePL(W25,'Utility Functions'!$AQ$3:$AQ$6,'Utility Functions'!$AR$3:$AR$6)","v":1},{"$f":"valuePL(X25,'Utility Functions'!$AS$3:$AS$6,'Utility Functions'!$AT$3:$AT$6)","v":0.2},{"$f":"valuePL(Y25,'Utility Functions'!$AU$3:$AU$6,'Utility Functions'!$AV$3:$AV$6)","v":1},{"$f":"valuePL(Z25,'Utility Functions'!$AW$3:$AW$5,'Utility Functions'!$AX$3:$AX$5)","v":1},{"$f":"valuePL(AA25,'Utility Functions'!$AY$3:$AY$6,'Utility Functions'!$AZ$3:$AZ$6)","v":0.2},{"$f":"valuePL(AB25,'Utility Functions'!$BA$3:$BA$5,'Utility Functions'!$BB$3:$BB$5)","v":0},{"$f":"valuePL(AC25,'Utility Functions'!$BC$3:$BC$5,'Utility Functions'!$BD$3:$BD$5)","v":1},9.4968811881212041,null,9.4968811881212059,2.0968811881212055,0,0,3,4.4000000000000004]
[25,{"$f":"valueE(B26,'Utility Functions'!$B$3,'Utility Functions'!$B$4,'Utility Functions'!$B$5,'Utility Functions'!$B$6)","v":0.83470237647280454},{"$f":"valueE(C26,'Utility Functions'!$D$3,'Utility Functions'!$D$4,'Utility Functions'!$D$5,'Utility Functions'!$D$6)","v":0.84744836833951609},{"$f":"valuePL(D26,'Utility Functions'!$E$3:$E$5,'Utility Functions'!$F$3:$F$5)","v":1},{"$f":"valuePL(E26,'Utility Functions'!$G$3:$G$5,'Utility Functions'!$H$3:$H$5)","v":0},{"$f":"valuePL(F26,'Utility Functions'!$I$3:$I$4,'Utility Functions'!$J$3:$J$5)","v":0},{"$f":"valueE(G26,'Utility Functions'!$L$3,'Utility Functions'!$L$4,'Utility Functions'!$L$5,'Utility Functions'!$L$6)","v":0.94623655913978499},{"$f":"valueE(H26,'Utility Functions'!$N$3,'Utility Functions'!$N$4,'Utility Functions'!$N$5,'Utility Functions'!$N$6)","v":0.29222011385199242},{"$f":"valuePL(I26,'Utility Functions'!$O$3:$O$6,'Utility Functions'!$P$3:$P$6)","v":0},{"$f":"valuePL(J26,'Utility Functions'!$Q$3:$Q$6,'Utility Functions'!$R$3:$R$6)","v":0},{"$f":"valuePL(K26,'Utility Functions'!$S$3:$S$7,'Utility Functions'!$T$3:$T$7)","v":0},{"$f":"valueE(L26,'Utility Functions'!$V$3,'Utility Functions'!$V$4,'Utility Functions'!$V$5,'Utility Functions'!$V$6)","v":0},{"$f":"valuePL(M26,'Utility Functions'!$W$3:$W$6,'Utility Functions'!$X$3:$X$6)","v":0},{"$f":"valueE(N26,'Utility Functions'!$Z$3,'Utility Functions'!$Z$4,'Utility Functions'!$Z$5,'Utility Functions'!$Z$6)","v":1},{"$f":"valuePL(O26,'Utility Functions'!$AA$3:$AA$5,'Utility Functions'!$AB$3:$AB$5)","v":0.25},{"$f":"valuePL(P26,'Utility Functions'!$AC$3:$AC$7,'Utility Functions'!$AD$3:$AD$7)","v":0.5},{"$f":"valuePL(Q26,'Utility Functions'!$AE$3:$AE$6,'Utility Functions'!$AF$3:$AF$6)","v":0.5},{"$f":"valuePL(R26,'Utility Functions'!$AG$3:$AG$6,'Utility Functions'!$AH$3:$AH$6)","v":1},{"$f":"valuePL(S26,'Utility Functions'!$AI$3:$AI$6,'Utility Functions'!$AJ$3:$AJ$6)","v":1},{"$f":"valuePL(T26,'Utility Functions'!$AK$3:$AK$8,'Utility Functions'!$AL$3:$AL$8)","v":0},{"$f":"valuePL(U26,'Utility Functions'!$AM$3:$AM$5,'Utility Functions'!$AN$3:$AN$5)","v":0},{"$f":"valuePL(V26,'Utility Functions'!$AO$3:$AO$5,'Utility Functions'!$AP$3:$AP$5)","v":1},{"$f":"valuePL(W26,'Utility Functions'!$AQ$3:$AQ$6,'Utility Functions'!$AR$3:$AR$6)","v":0.2},{"$f":"valuePL(X26,'Utility Functions'!$AS$3:$AS$6,'Utility Functions'!$AT$3:$AT$6)","v":1},{"$f":"valuePL(Y26,'Utility Functions'!$AU$3:$AU$6,'Utility Functions'!$AV$3:$AV$6)","v":0.8},{"$f":"valuePL(Z26,'Utility Functions'!$AW$3:$AW$5,'Utility Functions'!$AX$3:$AX$5)","v":0.5},{"$f":"valuePL(AA26,'Utility Functions'!$AY$3:$AY$6,'Utility Functions'!$AZ$3:$AZ$6)","v":0.2},{"$f":"valuePL(AB26,'Utility Functions'!$BA$3:$BA$5,'Utility Functions'!$BB$3:$BB$5)","v":1},{"$f":"valuePL(AC26,'Utility Functions'!$BC$3:$BC$5,'Utility Functions'!$BD$3:$BD$5)","v":1},13.870607417804099,null,13.870607417804099,2.6821507448123207,1.2384566729917774,1.25,3,5.7]
[26,{"$f":"valueE(B27,'Utility Functions'!$B$3,'Utility Functions'!$B$4,'Utility Functions'!$B$5,'Utility Functions'!$B$6)","v":0.96662819462069161},{"$f":"valueE(C27,'Utility Functions'!$D$3,'Utility Functions'!$D$4,'Utility Functions'!$D$5,'Utility Functions'!$D$6)","v":0.84744836833951609},{"$f":"valuePL(D27,'Utility Functions'!$E$3:$E$5,'Utility Functions'!$F$3:$F$5)","v":1},{"$f":"valuePL(E27,'Utility Functions'!$G$3:$G$5,'Utility Functions'!$H$3:$H$5)","v":0.5},{"$f":"valuePL(F27,'Utility Functions'!$I$3:$I$4,'Utility Functions'!$J$3:$J$5)","v":0},{"$f":"valueE(G27,'Utility Functions'!$L$3,'Utility Functions'!$L$4,'Utility Functions'!$L$5,'Utility Functions'!$L$6)","v":0},{"$f":"valueE(H27,'Utility Functions'!$N$3,'Utility Functions'!$N$4,'Utility Functions'!$N$5,'Utility Functions'!$N$6)","v":0},{"$f":"valuePL(I27,'Utility Functions'!$O$3:$O$6,'Utility Functions'!$P$3:$P$6)","v":0},{"$f":"valuePL(J27,'Utility Functions'!$Q$3:$Q$6,'Utility Functions'!$R$3:$R$6)","v":0},{"$f":"valuePL(K27,'Utility Functions'!$S$3:$S$7,'Utility Functions'!$T$3:$T$7)","v":0},{"$f":"valueE(L27,'Utility Functions'!$V$3,'Utility Functions'!$V$4,'Utility Functions'!$V$5,'Utility Functions'!$V$6)","v":0},{"$f":"valuePL(M27,'Utility Functions'!$W$3:$W$6,'Utility Functions'!$X$3:$X$6)","v":0},{"$f":"valueE(N27,'Utility Functions'!$Z$3,'Utility Functions'!$Z$4,'Utility Functions'!$Z$5,'Utility Functions'!$Z$6)","v":0},{"$f":"valuePL(O27,'Utility Functions'!$AA$3:$AA$5,'Utility Functions'!$AB$3:$AB$5)","v":0},{"$f":"valuePL(P27,'Utility Functions'!$AC$3:$AC$7,'Utility Functions'!$AD$3:$AD$7)","v":0.75},{"$f":"valuePL(Q27,'Utility Functions'!$AE$3:$AE$6,'Utility Functions'!$AF$3:$AF$6)","v":0},{"$f":"valuePL(R27,'Utility Functions'!$AG$3:$AG$6,'Utility Functions'!$AH$3:$AH$6)","v":1},{"$f":"valuePL(S27,'Utility Functions'!$AI$3:$AI$6,'Utility Functions'!$AJ$3:$AJ$6)","v":1},{"$f":"valuePL(T27,'Utility Functions'!$AK$3:$AK$8,'Utility Functions'!$AL$3:$AL$8)","v":0.8},{"$f":"valuePL(U27,'Utility Functions'!$AM$3:$AM$5,'Utility Functions'!$AN$3:$AN$5)","v":0},{"$f":"valuePL(V27,'Utility Functions'!$AO$3:$AO$5,'Utility Functions'!$AP$3:$AP$5)","v":1},{"$f":"valuePL(W27,'Utility Functions'!$AQ$3:$AQ$6,'Utility Functions'!$AR$3:$AR$6)","v":0.2},{"$f":"valuePL(X27,'Utility Functions'!$AS$3:$AS$6,'Utility Functions'!$AT$3:$AT$6)","v":0},{"$f":"valuePL(Y27,'Utility Functions'!$AU$3:$AU$6,'Utility Functions'!$AV$3:$AV$6)","v":0.8},{"$f":"valuePL(Z27,'Utility Functions'!$AW$3:$AW$5,'Utility Functions'!$AX$3:$AX$5)","v":0},{"$f":"valuePL(AA27,'Utility Functions'!$AY$3:$AY$6,'Utility Functions'!$AZ$3:$AZ$6)","v":0.2},{"$f":"valuePL(AB27,'Utility Functions'!$BA$3:$BA$5,'Utility Functions'!$BB$3:$BB$5)","v":1},{"$f":"valuePL(AC27,'Utility Functions'!$BC$3:$BC$5,'Utility Functions'!$BD$3:$BD$5)","v":1},11.064076562960208,null,11.064076562960206,3.3140765629602078,0,0,3.55,4.2]
[27,{"$f":"valueE(B28,'Utility Functions'!$B$3,'Utility Functions'!$B$4,'Utility Functions'!$B$5,'Utility Functions'!$B$6)","v":0},{"$f":"valueE(C28,'Utility Functions'!$D$3,'Utility Functions'!$D$4,'Utility Functions'!$D$5,'Utility Functions'!$D$6)","v":0.46475967153745396},{"$f":"valuePL(D28,'Utility Functions'!$E$3:$E$5,'Utility Functions'!$F$3:$F$5)","v":1},{"$f":"valuePL(E28,'Utility Functions'!$G$3:$G$5,'Utility Functions'!$H$3:$H$5)","v":0},{"$f":"valuePL(F28,'Utility Functions'!$I$3:$I$4,'Utility Functions'!$J$3:$J$5)","v":0},{"$f":"valueE(G28,'Utility Functions'!$L$3,'Utility Functions'!$L$4,'Utility Functions'!$L$5,'Utility Functions'!$L$6)","v":0},{"$f":"valueE(H28,'Utility Functions'!$N$3,'Utility Functions'!$N$4,'Utility Functions'!$N$5,'Utility Functions'!$N$6)","v":0},{"$f":"valuePL(I28,'Utility Functions'!$O$3:$O$6,'Utility Functions'!$P$3:$P$6)","v":0},{"$f":"valuePL(J28,'Utility Functions'!$Q$3:$Q$6,'Utility Functions'!$R$3:$R$6)","v":0},{"$f":"valuePL(K28,'Utility Functions'!$S$3:$S$7,'Utility Functions'!$T$3:$T$7)","v":1},{"$f":"valueE(L28,'Utility Functions'!$V$3,'Utility Functions'!$V$4,'Utility Functions'!$V$5,'Utility Functions'!$V$6)","v":0},{"$f":"valuePL(M28,'Utility Functions'!$W$3:$W$6,'Utility Functions'!$X$3:$X$6)","v":0.1},{"$f":"valueE(N28,'Utility Functions'!$Z$3,'Utility Functions'!$Z$4,'Utility Functions'!$Z$5,'Utility Functions'!$Z$6)","v":0},{"$f":"valuePL(O28,'Utility Functions'!$AA$3:$AA$5,'Utility Functions'!$AB$3:$AB$5)","v":0},{"$f":"valuePL(P28,'Utility Functions'!$AC$3:$AC$7,'Utility Functions'!$AD$3:$AD$7)","v":0.5},{"$f":"valuePL(Q28,'Utility Functions'!$AE$3:$AE$6,'Utility Functions'!$AF$3:$AF$6)","v":0.5},{"$f":"valuePL(R28,'Utility Functions'!$AG$3:$AG$6,'Utility Functions'!$AH$3:$AH$6)","v":1},{"$f":"valuePL(S28,'Utility Functions'!$AI$3:$AI$6,'Utility Functions'!$AJ$3:$AJ$6)","v":1},{"$f":"valuePL(T28,'Utility Functions'!$AK$3:$AK$8,'Utility Functions'!$AL$3:$AL$8)","v":1},{"$f":"valuePL(U28,'Utility Functions'!$AM$3:$AM$5,'Utility Functions'!$AN$3:$AN$5)","v":0},{"$f":"valuePL(V28,'Utility Functions'!$AO$3:$AO$5,'Utility Functions'!$AP$3:$AP$5)","v":0.5},{"$f":"valuePL(W28,'Utility Functions'!$AQ$3:$AQ$6,'Utility Functions'!$AR$3:$AR$6)","v":0.75},{"$f":"valuePL(X28,'Utility Functions'!$AS$3:$AS$6,'Utility Functions'!$AT$3:$AT$6)","v":1},{"$f":"valuePL(Y28,'Utility Functions'!$AU$3:$AU$6,'Utility Functions'!$AV$3:$AV$6)","v":0.2},{"$f":"valuePL(Z28,'Utility Functions'!$AW$3:$AW$5,'Utility Functions'!$AX$3:$AX$5)","v":0},{"$f":"valuePL(AA28,'Utility Functions'!$AY$3:$AY$6,'Utility Functions'!$AZ$3:$AZ$6)","v":0},{"$f":"valuePL(AB28,'Utility Functions'!$BA$3:$BA$5,'Utility Functions'!$BB$3:$BB$5)","v":0},{"$f":"valuePL(AC28,'Utility Functions'!$BC$3:$BC$5,'Utility Functions'!$BD$3:$BD$5)","v":0},9.0147596715374529,null,9.0147596715374547,1.464759671537454,1.1000000000000001,0,4,2.4500000000000002]
[28,{"$f":"valueE(B29,'Utility Functions'!$B$3,'Utility Functions'!$B$4,'Utility Functions'!$B$5,'Utility Functions'!$B$6)","v":0.4511890475224023},{"$f":"valueE(C29,'Utility Functions'!$D$3,'Utility Functions'!$D$4,'Utility Functions'!$D$5,'Utility Functions'!$D$6)","v":0.46475967153745396},{"$f":"valuePL(D29,'Utility Functions'!$E$3:$E$5,'Utility Functions'!$F$3:$F$5)","v":1},{"$f":"valuePL(E29,'Utility Functions'!$G$3:$G$5,'Utility Functions'!$H$3:$H$5)","v":0},{"$f":"valuePL(F29,'Utility Functions'!$I$3:$I$4,'Utility Functions'!$J$3:$J$5)","v":1},{"$f":"valueE(G29,'Utility Functions'!$L$3,'Utility Functions'!$L$4,'Utility Functions'!$L$5,'Utility Functions'!$L$6)","v":0},{"$f":"valueE(H29,'Utility Functions'!$N$3,'Utility Functions'!$N$4,'Utility Functions'!$N$5,'Utility Functions'!$N$6)","v":0},{"$f":"valuePL(I29,'Utility Functions'!$O$3:$O$6,'Utility Functions'!$P$3:$P$6)","v":0},{"$f":"valuePL(J29,'Utility Functions'!$Q$3:$Q$6,'Utility Functions'!$R$3:$R$6)","v":0},{"$f":"valuePL(K29,'Utility Functions'!$S$3:$S$7,'Utility Functions'!$T$3:$T$7)","v":0},{"$f":"valueE(L29,'Utility Functions'!$V$3,'Utility Functions'!$V$4,'Utility Functions'!$V$5,'Utility Functions'!$V$6)","v":0.33333333333333331},{"$f":"valuePL(M29,'Utility Functions'!$W$3:$W$6,'Utility Functions'!$X$3:$X$6)","v":0.1},{"$f":"valueE(N29,'Utility Functions'!$Z$3,'Utility Functions'!$Z$4,'Utility Functions'!$Z$5,'Utility Functions'!$Z$6)","v":0},{"$f":"valuePL(O29,'Utility Functions'!$AA$3:$AA$5,'Utility Functions'!$AB$3:$AB$5)","v":0},{"$f":"valuePL(P29,'Utility Functions'!$AC$3:$AC$7,'Utility Functions'!$AD$3:$AD$7)","v":1},{"$f":"valuePL(Q29,'Utility Functions'!$AE$3:$AE$6,'Utility Functions'!$AF$3:$AF$6)","v":0},{"$f":"valuePL(R29,'Utility Functions'!$AG$3:$AG$6,'Utility Functions'!$AH$3:$AH$6)","v":1},{"$f":"valuePL(S29,'Utility Functions'!$AI$3:$AI$6,'Utility Functions'!$AJ$3:$AJ$6)","v":1},{"$f":"valuePL(T29,'Utility Functions'!$AK$3:$AK$8,'Utility Functions'!$AL$3:$AL$8)","v":0.8},{"$f":"valuePL(U29,'Utility Functions'!$AM$3:$AM$5,'Utility Functions'!$AN$3:$AN$5)","v":0},{"$f":"valuePL(V29,'Utility Functions'!$AO$3:$AO$5,'Utility Functions'!$AP$3:$AP$5)","v":1},{"$f":"valuePL(W29,'Utility Functions'!$AQ$3:$AQ$6,'Utility Functions'!$AR$3:$AR$6)","v":1},{"$f":"valuePL(X29,'Utility Functions'!$AS$3:$AS$6,'Utility Functions'!$AT$3:$AT$6)","v":1},{"$f":"valuePL(Y29,'Utility Functions'!$AU$3:$AU$6,'Utility Functions'!$AV$3:$AV$6)","v":0.2},{"$f":"valuePL(Z29,'Utility Functions'!$AW$3:$AW$5,'Utility Functions'!$AX$3:$AX$5)","v":0},{"$f":"valuePL(AA29,'Utility Functions'!$AY$3:$AY$6,'Utility Functions'!$AZ$3:$AZ$6)","v":0.89999999999999991},{"$f":"valuePL(AB29,'Utility Functions'!$BA$3:$BA$5,'Utility Functions'!$BB$3:$BB$5)","v":1},{"$f":"valuePL(AC29,'Utility Functions'!$BC$3:$BC$5,'Utility Functions'!$BD$3:$BD$5)","v":0.25},12.499282052393189,null,12.499282052393189,2.9159487190598563,0.43333333333333335,0,3.8,5.35]
[29,{"$f":"valueE(B30,'Utility Functions'!$B$3,'Utility Functions'!$B$4,'Utility Functions'!$B$5,'Utility Functions'!$B$6)","v":0.83470237647280454},{"$f":"valueE(C30,'Utility Functions'!$D$3,'Utility Functions'!$D$4,'Utility Functions'!$D$5,'Utility Functions'!$D$6)","v":0.71352759724260828},{"$f":"valuePL(D30,'Utility Functions'!$E$3:$E$5,'Utility Functions'!$F$3:$F$5)","v":1},{"$f":"valuePL(E30,'Utility Functions'!$G$3:$G$5,'Utility Functions'!$H$3:$H$5)","v":0.5},{"$f":"valuePL(F30,'Utility Functions'!$I$3:$I$4,'Utility Functions'!$J$3:$J$5)","v":0},{"$f":"valueE(G30,'Utility Functions'!$L$3,'Utility Functions'!$L$4,'Utility Functions'!$L$5,'Utility Functions'!$L$6)","v":0},{"$f":"valueE(H30,'Utility Functions'!$N$3,'Utility Functions'!$N$4,'Utility Functions'!$N$5,'Utility Functions'!$N$6)","v":0},{"$f":"valuePL(I30,'Utility Functions'!$O$3:$O$6,'Utility Functions'!$P$3:$P$6)","v":0.06},{"$f":"valuePL(J30,'Utility Functions'!$Q$3:$Q$6,'Utility Functions'!$R$3:$R$6)","v":0.67272727272727273},{"$f":"valuePL(K30,'Utility Functions'!$S$3:$S$7,'Utility Functions'!$T$3:$T$7)","v":0},{"$f":"valueE(L30,'Utility Functions'!$V$3,'Utility Functions'!$V$4,'Utility Functions'!$V$5,'Utility Functions'!$V$6)","v":1},{"$f":"valuePL(M30,'Utility Functions'!$W$3:$W$6,'Utility Functions'!$X$3:$X$6)","v":0.67272727272727273},{"$f":"valueE(N30,'Utility Functions'!$Z$3,'Utility Functions'!$Z$4,'Utility Functions'!$Z$5,'Utility Functions'!$Z$6)","v":0},{"$f":"valuePL(O30,'Utility Functions'!$AA$3:$AA$5,'Utility Functions'!$AB$3:$AB$5)","v":0},{"$f":"valuePL(P30,'Utility Functions'!$AC$3:$AC$7,'Utility Functions'!$AD$3:$AD$7)","v":0.25},{"$f":"valuePL(Q30,'Utility Functions'!$AE$3:$AE$6,'Utility Functions'!$AF$3:$AF$6)","v":0},{"$f":"valuePL(R30,'Utility Functions'!$AG$3:$AG$6,'Utility Functions'!$AH$3:$AH$6)","v":1},{"$f":"valuePL(S30,'Utility Functions'!$AI$3:$AI$6,'Utility Functions'!$AJ$3:$AJ$6)","v":1},{"$f":"valuePL(T30,'Utility Functions'!$AK$3:$AK$8,'Utility Functions'!$AL$3:$AL$8)","v":0.8},{"$f":"valuePL(U30,'Utility Functions'!$AM$3:$AM$5,'Utility Functions'!$AN$3:$AN$5)","v":0},{"$f":"valuePL(V30,'Utility Functions'!$AO$3:$AO$5,'Utility Functions'!$AP$3:$AP$5)","v":1},{"$f":"valuePL(W30,'Utility Functions'!$AQ$3:$AQ$6,'Utility Functions'!$AR$3:$AR$6)","v":0.2},{"$f":"valuePL(X30,'Utility Functions'!$AS$3:$AS$6,'Utility Functions'!$AT$3:$AT$6)","v":0},{"$f":"valuePL(Y30,'Utility Functions'!$AU$3:$AU$6,'Utility Functions'!$AV$3:$AV$6)","v":0.8},{"$f":"valuePL(Z30,'Utility Functions'!$AW$3:$AW$5,'Utility Functions'!$AX$3:$AX$5)","v":0.5},{"$f":"valuePL(AA30,'Utility Functions'!$AY$3:$AY$6,'Utility Functions'!$AZ$3:$AZ$6)","v":0.2},{"$f":"valuePL(AB30,'Utility Functions'!$BA$3:$BA$5,'Utility Functions'!$BB$3:$BB$5)","v":0.25},{"$f":"valuePL(AC30,'Utility Functions'!$BC$3:$BC$5,'Utility Functions'!$BD$3:$BD$5)","v":1},12.453684519169958,null,12.453684519169958,3.0482299737154128,2.4054545454545453,0,3.05,3.95]
[30,{"$f":"valueE(B31,'Utility Functions'!$B$3,'Utility Functions'!$B$4,'Utility Functions'!$B$5,'Utility Functions'!$B$6)","v":0.99864114504770318},{"$f":"valueE(C31,'Utility Functions'!$D$3,'Utility Functions'!$D$4,'Utility Functions'!$D$5,'Utility Functions'!$D$6)","v":0.84744836833951609},{"$f":"valuePL(D31,'Utility Functions'!$E$3:$E$5,'Utility Functions'!$F$3:$F$5)","v":1},{"$f":"valuePL(E31,'Utility Functions'!$G$3:$G$5,'Utility Functions'!$H$3:$H$5)","v":0},{"$f":"valuePL(F31,'Utility Functions'!$I$3:$I$4,'Utility Functions'!$J$3:$J$5)","v":0},{"$f":"valueE(G31,'Utility Functions'!$L$3,'Utility Functions'!$L$4,'Utility Functions'!$L$5,'Utility Functions'!$L$6)","v":0},{"$f":"valueE(H31,'Utility Functions'!$N$3,'Utility Functions'!$N$4,'Utility Functions'!$N$5,'Utility Functions'!$N$6)","v":0},{"$f":"valuePL(I31,'Utility Functions'!$O$3:$O$6,'Utility Functions'!$P$3:$P$6)","v":0},{"$f":"valuePL(J31,'Utility Functions'!$Q$3:$Q$6,'Utility Functions'!$R$3:$R$6)","v":0},{"$f":"valuePL(K31,'Utility Functions'!$S$3:$S$7,'Utility Functions'!$T$3:$T$7)","v":0},{"$f":"valueE(L31,'Utility Functions'!$V$3,'Utility Functions'!$V$4,'Utility Functions'!$V$5,'Utility Functions'!$V$6)","v":0.33333333333333331},{"$f":"valuePL(M31,'Utility Functions'!$W$3:$W$6,'Utility Functions'!$X$3:$X$6)","v":0.04},{"$f":"valueE(N31,'Utility Functions'!$Z$3,'Utility Functions'!$Z$4,'Utility Functions'!$Z$5,'Utility Functions'!$Z$6)","v":0},{"$f":"valuePL(O31,'Utility Functions'!$AA$3:$AA$5,'Utility Functions'!$AB$3:$AB$5)","v":0},{"$f":"valuePL(P31,'Utility Functions'!$AC$3:$AC$7,'Utility Functions'!$AD$3:$AD$7)","v":0},{"$f":"valuePL(Q31,'Utility Functions'!$AE$3:$AE$6,'Utility Functions'!$AF$3:$AF$6)","v":0},{"$f":"valuePL(R31,'Utility Functions'!$AG$3:$AG$6,'Utility Functions'!$AH$3:$AH$6)","v":0.2},{"$f":"valuePL(S31,'Utility Functions'!$AI$3:$AI$6,'Utility Functions'!$AJ$3:$AJ$6)","v":0.33},{"$f":"valuePL(T31,'Utility Functions'!$AK$3:$AK$8,'Utility Functions'!$AL$3:$AL$8)","v":0},{"$f":"valuePL(U31,'Utility Functions'!$AM$3:$AM$5,'Utility Functions'!$AN$3:$AN$5)","v":0},{"$f":"valuePL(V31,'Utility Functions'!$AO$3:$AO$5,'Utility Functions'!$AP$3:$AP$5)","v":0},{"$f":"valuePL(W31,'Utility Functions'!$AQ$3:$AQ$6,'Utility Functions'!$AR$3:$AR$6)","v":1},{"$f":"valuePL(X31,'Utility Functions'!$AS$3:$AS$6,'Utility Functions'!$AT$3:$AT$6)","v":0.2},{"$f":"valuePL(Y31,'Utility Functions'!$AU$3:$AU$6,'Utility Functions'!$AV$3:$AV$6)","v":0.8},{"$f":"valuePL(Z31,'Utility Functions'!$AW$3:$AW$5,'Utility Functions'!$AX$3:$AX$5)","v":0},{"$f":"valuePL(AA31,'Utility Functions'!$AY$3:$AY$6,'Utility Functions'!$AZ$3:$AZ$6)","v":0.89999999999999991},{"$f":"valuePL(AB31,'Utility Functions'!$BA$3:$BA$5,'Utility Functions'!$BB$3:$BB$5)","v":1},{"$f":"valuePL(AC31,'Utility Functions'!$BC$3:$BC$5,'Utility Functions'!$BD$3:$BD$5)","v":0},7.6494228467205527,null,7.6494228467205527,2.846089513387219,0.37333333333333329,0,0.53,3.9]
[31,{"$f":"valueE(B32,'Utility Functions'!$B$3,'Utility Functions'!$B$4,'Utility Functions'!$B$5,'Utility Functions'!$B$6)","v":0.55067187023002029},{"$f":"valueE(C32,'Utility Functions'!$D$3,'Utility Functions'!$D$4,'Utility Functions'!$D$5,'Utility Functions'!$D$6)","v":0.84744836833951609},{"$f":"valuePL(D32,'Utility Functions'!$E$3:$E$5,'Utility Functions'!$F$3:$F$5)","v":0.5},{"$f":"valuePL(E32,'Utility Functions'!$G$3:$G$5,'Utility Functions'!$H$3:$H$5)","v":0},{"$f":"valuePL(F32,'Utility Functions'!$I$3:$I$4,'Utility Functions'!$J$3:$J$5)","v":0},{"$f":"valueE(G32,'Utility Functions'!$L$3,'Utility Functions'!$L$4,'Utility Functions'!$L$5,'Utility Functions'!$L$6)","v":0},{"$f":"valueE(H32,'Utility Functions'!$N$3,'Utility Functions'!$N$4,'Utility Functions'!$N$5,'Utility Functions'!$N$6)","v":0},{"$f":"valuePL(I32,'Utility Functions'!$O$3:$O$6,'Utility Functions'!$P$3:$P$6)","v":0.75454545454545452},{"$f":"valuePL(J32,'Utility Functions'!$Q$3:$Q$6,'Utility Functions'!$R$3:$R$6)","v":0.08},{"$f":"valuePL(K32,'Utility Functions'!$S$3:$S$7,'Utility Functions'!$T$3:$T$7)","v":0},{"$f":"valueE(L32,'Utility Functions'!$V$3,'Utility Functions'!$V$4,'Utility Functions'!$V$5,'Utility Functions'!$V$6)","v":0.33333333333333331},{"$f":"valuePL(M32,'Utility Functions'!$W$3:$W$6,'Utility Functions'!$X$3:$X$6)","v":0.08},{"$f":"valueE(N32,'Utility Functions'!$Z$3,'Utility Functions'!$Z$4,'Utility Functions'!$Z$5,'Utility Functions'!$Z$6)","v":0},{"$f":"valuePL(O32,'Utility Functions'!$AA$3:$AA$5,'Utility Functions'!$AB$3:$AB$5)","v":0},{"$f":"valuePL(P32,'Utility Functions'!$AC$3:$AC$7,'Utility Functions'!$AD$3:$AD$7)","v":0.5},{"$f":"valuePL(Q32,'Utility Functions'!$AE$3:$AE$6,'Utility Functions'!$AF$3:$AF$6)","v":0},{"$f":"valuePL(R32,'Utility Functions'!$AG$3:$AG$6,'Utility Functions'!$AH$3:$AH$6)","v":1},{"$f":"valuePL(S32,'Utility Functions'!$AI$3:$AI$6,'Utility Functions'!$AJ$3:$AJ$6)","v":0.66},{"$f":"valuePL(T32,'Utility Functions'!$AK$3:$AK$8,'Utility Functions'!$AL$3:$AL$8)","v":0.6},{"$f":"valuePL(U32,'Utility Functions'!$AM$3:$AM$5,'Utility Functions'!$AN$3:$AN$5)","v":0},{"$f":"valuePL(V32,'Utility Functions'!$AO$3:$AO$5,'Utility Functions'!$AP$3:$AP$5)","v":0.5},{"$f":"valuePL(W32,'Utility Functions'!$AQ$3:$AQ$6,'Utility Functions'!$AR$3:$AR$6)","v":0},{"$f":"valuePL(X32,'Utility Functions'!$AS$3:$AS$6,'Utility Functions'!$AT$3:$AT$6)","v":0.2},{"$f":"valuePL(Y32,'Utility Functions'!$AU$3:$AU$6,'Utility Functions'!$AV$3:$AV$6)","v":0.2},{"$f":"valuePL(Z32,'Utility Functions'!$AW$3:$AW$5,'Utility Functions'!$AX$3:$AX$5)","v":1},{"$f":"valuePL(AA32,'Utility Functions'!$AY$3:$AY$6,'Utility Functions'!$AZ$3:$AZ$6)","v":0.89999999999999991},{"$f":"valuePL(AB32,'Utility Functions'!$BA$3:$BA$5,'Utility Functions'!$BB$3:$BB$5)","v":0.25},{"$f":"valuePL(AC32,'Utility Functions'!$BC$3:$BC$5,'Utility Functions'!$BD$3:$BD$5)","v":0.25},9.2059990264483247,null,9.2059990264483247,1.8981202385695364,1.2478787878787878,0,2.7600000000000002,3.3]
[32,{"$f":"valueE(B33,'Utility Functions'!$B$3,'Utility Functions'!$B$4,'Utility Functions'!$B$5,'Utility Functions'!$B$6)","v":0.63212151658375171},{"$f":"valueE(C33,'Utility Functions'!$D$3,'Utility Functions'!$D$4,'Utility Functions'!$D$5,'Utility Functions'!$D$6)","v":0.26839655623815994},{"$f":"valuePL(D33,'Utility Functions'!$E$3:$E$5,'Utility Functions'!$F$3:$F$5)","v":1},{"$f":"valuePL(E33,'Utility Functions'!$G$3:$G$5,'Utility Functions'!$H$3:$H$5)","v":1},{"$f":"valuePL(F33,'Utility Functions'!$I$3:$I$4,'Utility Functions'!$J$3:$J$5)","v":1},{"$f":"valueE(G33,'Utility Functions'!$L$3,'Utility Functions'!$L$4,'Utility Functions'!$L$5,'Utility Functions'!$L$6)","v":3.2258064516129031E-2},{"$f":"valueE(H33,'Utility Functions'!$N$3,'Utility Functions'!$N$4,'Utility Functions'!$N$5,'Utility Functions'!$N$6)","v":9.6774193548387094E-2},{"$f":"valuePL(I33,'Utility Functions'!$O$3:$O$6,'Utility Functions'!$P$3:$P$6)","v":0.34545454545454546},{"$f":"valuePL(J33,'Utility Functions'!$Q$3:$Q$6,'Utility Functions'!$R$3:$R$6)","v":1},{"$f":"valuePL(K33,'Utility Functions'!$S$3:$S$7,'Utility Functions'!$T$3:$T$7)","v":0.34545454545454546},{"$f":"valueE(L33,'Utility Functions'!$V$3,'Utility Functions'!$V$4,'Utility Functions'!$V$5,'Utility Functions'!$V$6)","v":1},{"$f":"valuePL(M33,'Utility Functions'!$W$3:$W$6,'Utility Functions'!$X$3:$X$6)","v":1},{"$f":"valueE(N33,'Utility Functions'!$Z$3,'Utility Functions'!$Z$4,'Utility Functions'!$Z$5,'Utility Functions'!$Z$6)","v":0},{"$f":"valuePL(O33,'Utility Functions'!$AA$3:$AA$5,'Utility Functions'!$AB$3:$AB$5)","v":0},{"$f":"valuePL(P33,'Utility Functions'!$AC$3:$AC$7,'Utility Functions'!$AD$3:$AD$7)","v":0.5},{"$f":"valuePL(Q33,'Utility Functions'!$AE$3:$AE$6,'Utility Functions'!$AF$3:$AF$6)","v":1},{"$f":"valuePL(R33,'Utility Functions'!$AG$3:$AG$6,'Utility Functions'!$AH$3:$AH$6)","v":1},{"$f":"valuePL(S33,'Utility Functions'!$AI$3:$AI$6,'Utility Functions'!$AJ$3:$AJ$6)","v":0},{"$f":"valuePL(T33,'Utility Functions'!$AK$3:$AK$8,'Utility Functions'!$AL$3:$AL$8)","v":0.8},{"$f":"valuePL(U33,'Utility Functions'!$AM$3:$AM$5,'Utility Functions'!$AN$3:$AN$5)","v":0},{"$f":"valuePL(V33,'Utility Functions'!$AO$3:$AO$5,'Utility Functions'!$AP$3:$AP$5)","v":0},{"$f":"valuePL(W33,'Utility Functions'!$AQ$3:$AQ$6,'Utility Functions'!$AR$3:$AR$6)","v":0.75},{"$f":"valuePL(X33,'Utility Functions'!$AS$3:$AS$6,'Utility Functions'!$AT$3:$AT$6)","v":0.2},{"$f":"valuePL(Y33,'Utility Functions'!$AU$3:$AU$6,'Utility Functions'!$AV$3:$AV$6)","v":0.8},{"$f":"valuePL(Z33,'Utility Functions'!$AW$3:$AW$5,'Utility Functions'!$AX$3:$AX$5)","v":0.5},{"$f":"valuePL(AA33,'Utility Functions'!$AY$3:$AY$6,'Utility Functions'!$AZ$3:$AZ$6)","v":0},{"$f":"valuePL(AB33,'Utility Functions'!$BA$3:$BA$5,'Utility Functions'!$BB$3:$BB$5)","v":1},{"$f":"valuePL(AC33,'Utility Functions'!$BC$3:$BC$5,'Utility Functions'!$BD$3:$BD$5)","v":0.25},14.52045942179552,null,14.520459421795518,3.9005180728219115,3.8199413489736074,0,3.3,3.5]
[33,{"$f":"valueE(B34,'Utility Functions'!$B$3,'Utility Functions'!$B$4,'Utility Functions'!$B$5,'Utility Functions'!$B$6)","v":0.93919136038504192},{"$f":"valueE(C34,'Utility Functions'!$D$3,'Utility Functions'!$D$4,'Utility Functions'!$D$5,'Utility Functions'!$D$6)","v":0.84744836833951609},{"$f":"valuePL(D34,'Utility Functions'!$E$3:$E$5,'Utility Functions'!$F$3:$F$5)","v":1},{"$f":"valuePL(E34,'Utility Functions'!$G$3:$G$5,'Utility Functions'!$H$3:$H$5)","v":0.5},{"$f":"valuePL(F34,'Utility Functions'!$I$3:$I$4,'Utility Functions'!$J$3:$J$5)","v":0},{"$f":"valueE(G34,'Utility Functions'!$L$3,'Utility Functions'!$L$4,'Utility Functions'!$L$5,'Utility Functions'!$L$6)","v":0},{"$f":"valueE(H34,'Utility Functions'!$N$3,'Utility Functions'!$N$4,'Utility Functions'!$N$5,'Utility Functions'!$N$6)","v":0},{"$f":"valuePL(I34,'Utility Functions'!$O$3:$O$6,'Utility Functions'!$P$3:$P$6)","v":0},{"$f":"valuePL(J34,'Utility Functions'!$Q$3:$Q$6,'Utility Functions'!$R$3:$R$6)","v":0},{"$f":"valuePL(K34,'Utility Functions'!$S$3:$S$7,'Utility Functions'!$T$3:$T$7)","v":0},{"$f":"valueE(L34,'Utility Functions'!$V$3,'Utility Functions'!$V$4,'Utility Functions'!$V$5,'Utility Functions'!$V$6)","v":0.5},{"$f":"valuePL(M34,'Utility Functions'!$W$3:$W$6,'Utility Functions'!$X$3:$X$6)","v":0},{"$f":"valueE(N34,'Utility Functions'!$Z$3,'Utility Functions'!$Z$4,'Utility Functions'!$Z$5,'Utility Functions'!$Z$6)","v":0},{"$f":"valuePL(O34,'Utility Functions'!$AA$3:$AA$5,'Utility Functions'!$AB$3:$AB$5)","v":0},{"$f":"valuePL(P34,'Utility Functions'!$AC$3:$AC$7,'Utility Functions'!$AD$3:$AD$7)","v":0.5},{"$f":"valuePL(Q34,'Utility Functions'!$AE$3:$AE$6,'Utility Functions'!$AF$3:$AF$6)","v":0},{"$f":"valuePL(R34,'Utility Functions'!$AG$3:$AG$6,'Utility Functions'!$AH$3:$AH$6)","v":1},{"$f":"valuePL(S34,'Utility Functions'!$AI$3:$AI$6,'Utility Functions'!$AJ$3:$AJ$6)","v":0.66},{"$f":"valuePL(T34,'Utility Functions'!$AK$3:$AK$8,'Utility Functions'!$AL$3:$AL$8)","v":0},{"$f":"valuePL(U34,'Utility Functions'!$AM$3:$AM$5,'Utility Functions'!$AN$3:$AN$5)","v":0},{"$f":"valuePL(V34,'Utility Functions'!$AO$3:$AO$5,'Utility Functions'!$AP$3:$AP$5)","v":0.5},{"$f":"valuePL(W34,'Utility Functions'!$AQ$3:$AQ$6,'Utility Functions'!$AR$3:$AR$6)","v":1},{"$f":"valuePL(X34,'Utility Functions'!$AS$3:$AS$6,'Utility Functions'!$AT$3:$AT$6)","v":0},{"$f":"valuePL(Y34,'Utility Functions'!$AU$3:$AU$6,'Utility Functions'!$AV$3:$AV$6)","v":0.8},{"$f":"valuePL(Z34,'Utility Functions'!$AW$3:$AW$5,'Utility Functions'!$AX$3:$AX$5)","v":1},{"$f":"valuePL(AA34,'Utility Functions'!$AY$3:$AY$6,'Utility Functions'!$AZ$3:$AZ$6)","v":1},{"$f":"valuePL(AB34,'Utility Functions'!$BA$3:$BA$5,'Utility Functions'!$BB$3:$BB$5)","v":0},{"$f":"valuePL(AC34,'Utility Functions'!$BC$3:$BC$5,'Utility Functions'!$BD$3:$BD$5)","v":0},10.246639728724558,null,10.246639728724558,3.2866397287245581,0.5,0,2.16,4.3]
[34,{"$f":"valueE(B35,'Utility Functions'!$B$3,'Utility Functions'!$B$4,'Utility Functions'!$B$5,'Utility Functions'!$B$6)","v":0},{"$f":"valueE(C35,'Utility Functions'!$D$3,'Utility Functions'!$D$4,'Utility Functions'!$D$5,'Utility Functions'!$D$6)","v":0},{"$f":"valuePL(D35,'Utility Functions'!$E$3:$E$5,'Utility Functions'!$F$3:$F$5)","v":0},{"$f":"valuePL(E35,'Utility Functions'!$G$3:$G$5,'Utility Functions'!$H$3:$H$5)","v":0},{"$f":"valuePL(F35,'Utility Functions'!$I$3:$I$4,'Utility Functions'!$J$3:$J$5)","v":0},{"$f":"valueE(G35,'Utility Functions'!$L$3,'Utility Functions'!$L$4,'Utility Functions'!$L$5,'Utility Functions'!$L$6)","v":0},{"$f":"valueE(H35,'Utility Functions'!$N$3,'Utility Functions'!$N$4,'Utility Functions'!$N$5,'Utility Functions'!$N$6)","v":1.1385199240986717E-2},{"$f":"valuePL(I35,'Utility Functions'!$O$3:$O$6,'Utility Functions'!$P$3:$P$6)","v":1},{"$f":"valuePL(J35,'Utility Functions'!$Q$3:$Q$6,'Utility Functions'!$R$3:$R$6)","v":0.91818181818181821},{"$f":"valuePL(K35,'Utility Functions'!$S$3:$S$7,'Utility Functions'!$T$3:$T$7)","v":1},{"$f":"valueE(L35,'Utility Functions'!$V$3,'Utility Functions'!$V$4,'Utility Functions'!$V$5,'Utility Functions'!$V$6)","v":1},{"$f":"valuePL(M35,'Utility Functions'!$W$3:$W$6,'Utility Functions'!$X$3:$X$6)","v":0.91818181818181821},{"$f":"valueE(N35,'Utility Functions'!$Z$3,'Utility Functions'!$Z$4,'Utility Functions'!$Z$5,'Utility Functions'!$Z$6)","v":0},{"$f":"valuePL(O35,'Utility Functions'!$AA$3:$AA$5,'Utility Functions'!$AB$3:$AB$5)","v":0},{"$f":"valuePL(P35,'Utility Functions'!$AC$3:$AC$7,'Utility Functions'!$AD$3:$AD$7)","v":0.5},{"$f":"valuePL(Q35,'Utility Functions'!$AE$3:$AE$6,'Utility Functions'!$AF$3:$AF$6)","v":0},{"$f":"valuePL(R35,'Utility Functions'!$AG$3:$AG$6,'Utility Functions'!$AH$3:$AH$6)","v":1},{"$f":"valuePL(S35,'Utility Functions'!$AI$3:$AI$6,'Utility Functions'!$AJ$3:$AJ$6)","v":1},{"$f":"valuePL(T35,'Utility Functions'!$AK$3:$AK$8,'Utility Functions'!$AL$3:$AL$8)","v":0.8},{"$f":"valuePL(U35,'Utility Functions'!$AM$3:$AM$5,'Utility Functions'!$AN$3:$AN$5)","v":0},{"$f":"valuePL(V35,'Utility Functions'!$AO$3:$AO$5,'Utility Functions'!$AP$3:$AP$5)","v":1},{"$f":"valuePL(W35,'Utility Functions'!$AQ$3:$AQ$6,'Utility Functions'!$AR$3:$AR$6)","v":1},{"$f":"valuePL(X35,'Utility Functions'!$AS$3:$AS$6,'Utility Functions'!$AT$3:$AT$6)","v":1},{"$f":"valuePL(Y35,'Utility Functions'!$AU$3:$AU$6,'Utility Functions'!$AV$3:$AV$6)","v":0},{"$f":"valuePL(Z35,'Utility Functions'!$AW$3:$AW$5,'Utility Functions'!$AX$3:$AX$5)","v":1},{"$f":"valuePL(AA35,'Utility Functions'!$AY$3:$AY$6,'Utility Functions'!$AZ$3:$AZ$6)","v":0.89999999999999991},{"$f":"valuePL(AB35,'Utility Functions'!$BA$3:$BA$5,'Utility Functions'!$BB$3:$BB$5)","v":0.25},{"$f":"valuePL(AC35,'Utility Functions'!$BC$3:$BC$5,'Utility Functions'!$BD$3:$BD$5)","v":0},13.297748835604624,null,13.297748835604624,0,4.847748835604623,0,3.3,5.15]
[35,{"$f":"valueE(B36,'Utility Functions'!$B$3,'Utility Functions'!$B$4,'Utility Functions'!$B$5,'Utility Functions'!$B$6)","v":0.79810469124896843},{"$f":"valueE(C36,'Utility Functions'!$D$3,'Utility Functions'!$D$4,'Utility Functions'!$D$5,'Utility Functions'!$D$6)","v":0.60939983135101949},{"$f":"valuePL(D36,'Utility Functions'!$E$3:$E$5,'Utility Functions'!$F$3:$F$5)","v":0.5},{"$f":"valuePL(E36,'Utility Functions'!$G$3:$G$5,'Utility Functions'!$H$3:$H$5)","v":0.5},{"$f":"valuePL(F36,'Utility Functions'!$I$3:$I$4,'Utility Functions'!$J$3:$J$5)","v":1},{"$f":"valueE(G36,'Utility Functions'!$L$3,'Utility Functions'!$L$4,'Utility Functions'!$L$5,'Utility Functions'!$L$6)","v":0},{"$f":"valueE(H36,'Utility Functions'!$N$3,'Utility Functions'!$N$4,'Utility Functions'!$N$5,'Utility Functions'!$N$6)","v":0},{"$f":"valuePL(I36,'Utility Functions'!$O$3:$O$6,'Utility Functions'!$P$3:$P$6)","v":0},{"$f":"valuePL(J36,'Utility Functions'!$Q$3:$Q$6,'Utility Functions'!$R$3:$R$6)","v":0},{"$f":"valuePL(K36,'Utility Functions'!$S$3:$S$7,'Utility Functions'!$T$3:$T$7)","v":1},{"$f":"valueE(L36,'Utility Functions'!$V$3,'Utility Functions'!$V$4,'Utility Functions'!$V$5,'Utility Functions'!$V$6)","v":0.66666666666666663},{"$f":"valuePL(M36,'Utility Functions'!$W$3:$W$6,'Utility Functions'!$X$3:$X$6)","v":0.1},{"$f":"valueE(N36,'Utility Functions'!$Z$3,'Utility Functions'!$Z$4,'Utility Functions'!$Z$5,'Utility Functions'!$Z$6)","v":1},{"$f":"valuePL(O36,'Utility Functions'!$AA$3:$AA$5,'Utility Functions'!$AB$3:$AB$5)","v":0},{"$f":"valuePL(P36,'Utility Functions'!$AC$3:$AC$7,'Utility Functions'!$AD$3:$AD$7)","v":0},{"$f":"valuePL(Q36,'Utility Functions'!$AE$3:$AE$6,'Utility Functions'!$AF$3:$AF$6)","v":0},{"$f":"valuePL(R36,'Utility Functions'!$AG$3:$AG$6,'Utility Functions'!$AH$3:$AH$6)","v":1},{"$f":"valuePL(S36,'Utility Functions'!$AI$3:$AI$6,'Utility Functions'!$AJ$3:$AJ$6)","v":1},{"$f":"valuePL(T36,'Utility Functions'!$AK$3:$AK$8,'Utility Functions'!$AL$3:$AL$8)","v":0.6},{"$f":"valuePL(U36,'Utility Functions'!$AM$3:$AM$5,'Utility Functions'!$AN$3:$AN$5)","v":0},{"$f":"valuePL(V36,'Utility Functions'!$AO$3:$AO$5,'Utility Functions'!$AP$3:$AP$5)","v":1},{"$f":"valuePL(W36,'Utility Functions'!$AQ$3:$AQ$6,'Utility Functions'!$AR$3:$AR$6)","v":0.75},{"$f":"valuePL(X36,'Utility Functions'!$AS$3:$AS$6,'Utility Functions'!$AT$3:$AT$6)","v":0},{"$f":"valuePL(Y36,'Utility Functions'!$AU$3:$AU$6,'Utility Functions'!$AV$3:$AV$6)","v":0.2},{"$f":"valuePL(Z36,'Utility Functions'!$AW$3:$AW$5,'Utility Functions'!$AX$3:$AX$5)","v":1},{"$f":"valuePL(AA36,'Utility Functions'!$AY$3:$AY$6,'Utility Functions'!$AZ$3:$AZ$6)","v":0},{"$f":"valuePL(AB36,'Utility Functions'!$BA$3:$BA$5,'Utility Functions'!$BB$3:$BB$5)","v":0.25},{"$f":"valuePL(AC36,'Utility Functions'!$BC$3:$BC$5,'Utility Functions'!$BD$3:$BD$5)","v":0.25},12.224171189266654,null,12.224171189266656,3.407504522599988,1.7666666666666666,1,2.6,3.45]
["Unweighted",{"$f":"SUMPRODUCT(B46:B80,$B$85:$B$119)","v":3.0847426500326565},{"$f":"SUMPRODUCT(C46:C80,$B$85:$B$119)","v":2.4146054342030006},{"$f":"SUMPRODUCT(D46:D80,$B$85:$B$119)","v":3.5},0.5,0,0.94623655913978499,0.29222011385199242,0.8545454545454545,0.79272727272727272,0,1.3333333333333333,0.75272727272727269,1.75,1.25,1.5,1.1000000000000001,4,4.32,2.4,0,2.5,1.1499999999999999,3.2,2.8000000000000003,2.5,1.5,2.5,3.5,null,null,"Unweighted",{"$f":"SUMPRODUCT(AG46:AG80,$B$85:$B$119)","v":9.4993480842356561},{"$f":"SUMPRODUCT(AH46:AH80,$B$85:$B$119)","v":4.9717900063251106},3,13.319999999999999,19.650000000000002]
["Weighted",{"$f":"B$81*Sens_EP!I$5","v":5.5583895365377126E-2},{"$f":"C$81*Sens_EP!J$5","v":4.1129863523731526E-2},{"$f":"D$81*Sens_EP!K$5","v":6.0377443721252262E-2},{"$f":"E$81*Sens_EP!L$5","v":8.4032813566339761E-3},{"$f":"F$81*Sens_EP!M$5","v":0},{"$f":"G$81*Sens_EP!N$5","v":7.9813753764984702E-3},{"$f":"H$81*Sens_EP!O$5","v":2.4648365133304101E-3},{"$f":"I$81*Sens_EP!P$5","v":1.2235453115948558E-2},{"$f":"J$81*Sens_EP!Q$5","v":1.1060333680842886E-2},{"$f":"K$81*Sens_EP!R$5","v":0},{"$f":"L$81*Sens_EP!S$5","v":1.6799172740499656E-2},{"$f":"M$81*Sens_EP!T$5","v":7.1610622990444604E-3},{"$f":"N$81*Sens_EP!U$5","v":0.21875},{"$f":"O$81*Sens_EP!V$5","v":0.46875},{"$f":"P$81*Sens_EP!W$5","v":3.3696681737140577E-2},{"$f":"Q$81*Sens_EP!X$5","v":2.72391481891936E-2},{"$f":"R$81*Sens_EP!Y$5","v":0.11337907515914826},{"$f":"S$81*Sens_EP!Z$5","v":0.10724754172800667},{"$f":"T$81*Sens_EP!AA$5","v":4.3368164705650414E-2},{"$f":"U$81*Sens_EP!AB$5","v":0},{"$f":"V$81*Sens_EP!AC$5","v":7.7352795172205432E-2},{"$f":"W$81*Sens_EP!AD$5","v":2.5660925904128395E-2},{"$f":"X$81*Sens_EP!AE$5","v":7.6362575371610064E-2},{"$f":"Y$81*Sens_EP!AF$5","v":8.3032004932578771E-2},{"$f":"Z$81*Sens_EP!AG$5","v":6.4236821048703097E-2},{"$f":"AA$81*Sens_EP!AH$5","v":2.9864244089153266E-2},{"$f":"AB$81*Sens_EP!AI$5","v":5.2785968246054714E-2},{"$f":"AC$81*Sens_EP!AJ$5","v":6.8917266053169349E-2},null,null,"Weighted for SA",{"$f":"AG81*#REF!","v":{"$error":"#REF!"}},{"$f":"AH81*#REF!","v":{"$error":"#REF!"}},{"$f":"AI81*#REF!","v":{"$error":"#REF!"}},{"$f":"AJ81*#REF!","v":{"$error":"#REF!"}},{"$f":"AK81*#REF!","v":{"$error":"#REF!"}}]
[]
[null,"Decision variable","Benefit","Cost"]
[{"$f":"A2","v":1},0,{"$f":"AD46","v":17.117643866192076},{"$f":"AD2","v":700000}]
[2,0,{"$f":"AD47","v":12.641625800575998},{"$f":"AD3","v":5400000}]
[3,0,11.563541444302563,250000]
[4,0,9.2460291931089209,150000]
[5,0,9.5663279251355373,220000]
[6,1,5.9008471271383875,110000]
[7,0,15.54287399641135,1000000]
[8,0,14.227364688589191,5000000]
[9,0,11.893773577166716,25000]
[10,1,9.01,900000]
[11,0,13.174032258064516,1500000]
[12,0,9.4195802436719873,100000]
[13,0,7.5245670174228056,250000]
[14,0,10.338706637075108,500000]
[15,0,15.150477261414375,800000]
[16,0,15.119696969696969,2000000]
[17,0,10.876550515651747,500000]
[18,0,10.178462998102468,300000]
[19,0,9.3165012474871283,750000]
[20,0,15.091255033092194,1500000]
[21,0,9.5500000000000007,900000]
[22,0,9.471742567994939,750000]
[23,0,9.5321507448123199,1000000]
[24,0,9.4968811881212041,150000]
[25,1,13.870607417804099,250000]
[26,0,11.064076562960208,500000]
[27,0,9.0147596715374529,1200000]
[28,0,12.499282052393189,500000]
[29,1,12.453684519169958,2000000]
[30,0,7.6494228467205527,250000]
[31,1,9.2059990264483247,650000]
[32,0,14.52045942179552,200000]
[33,0,10.246639728724558,400000]
[34,0,13.297748835604624,900000]
[35,0,12.224171189266654,900000]
[null,{"$f":"SUM(B85:B119)","v":5},{"$f":"SUMPRODUCT(C85:C119,B85:B119)","v":50.44113809056077},{"$f":"SUMPRODUCT(B85:B119,D85:D119)","v":3910000}]
[]
[null,null,"Cost constraint",15000000]

{"sheet":"Portfolio_A_Mgmt","index":38,"n_rows":122,"n_cols":37,"rows_kept":122,"cut":false,"hidden":false,"merged":[]}
["Project","manage_species","manage_spatial","manage_uncertainty","manage_currentpractices","manage_adaptivemanagement","pop_a","pop_b","pop_spatialscope","pop_temporalscope","hab_quantity","hab_quality","hab_temporal","ecoprocess_spp","ecoprocess_uncertainty","datasharing","broaderimpacts","exisitingpriorities","partners","leverage","alignment","objhyp","response","targettaxa","surveydesign","stats","datamanagement","budget","timeline","cost"]
[1,9,6.25,2,2,0,186,1054,75,5,0,2,0,0,0,4,0,2,3,0,0,2,3,3,3,2,3,2,2,700000]
[2,3,28.2,1,0,0,0,0,0,0,0,2,0,4,1,0,0,3,3,0,0,2,3,3,3,2,3,2,2,5400000]
[3,8,28.2,2,0,0,0,0,0,0,0,2,0,5,1,0,2,0,0,0,1,2,3,3,3,2,1,2,2,250000]
[4,1,6.25,2,0,0,0,0,0,0,0,2,0,4,1,0,1,3,3,4,0,1,3,3,1,0,0,2,1,150000]
[5,4,3.1,2,0,0,0,0,50,2,0,2,0,0,0,0,1,3,3,4,1,0,3,3,2,0,0,2,1,220000]
[6,10,6.2E-2,2,0,0,0,0,10,2,0,2,0,0,0,0,1,0,3,3,0,0,0,3,0,0,0,2,1,110000]
[7,52,18.8,0,2,0,0,0,85,12,85,8,12,8,1,0,0,3,3,0,0,2,0,1,3,2,2,0,2,1000000]
[8,3,18.8,2,1,1,0,0,14,14,14,8,14,0,0,0,3,1,3,0,0,2,3,3,3,2,0,1,1,5000000]
[9,9,15.6,2,1,0,70,140,0,0,0,2,0,0,0,3,0,3,2,1,0,2,3,3,1,2,1,1,2,25000]
[10,0,0,0,0,0,0,0,0,0,0,2,0,6,2,1,2,3,2,2,0,0,2,3,3,1,1,0,2,900000]
[11,0,0,0,0,0,6,102,52,15,52,8,15,3,1,1,0,3,3,2,2,2,1,3,3,1,2,0,1,1500000]
[12,2,15.6,2,1,0,0,0,0,0,0,2,0,0,0,0,1,3,3,3,0,1,1,3,1,2,1,2,0,100000]
[13,0,0,0,0,0,0,12,39,2,39,8,2,7,1,1,0,3,3,0,0,1,0,1,0,2,1,1,1,250000]
[14,6,15.6,1,1,0,0,0,0,0,0,2,0,6,1,1,0,3,3,0,0,1,1,3,3,1,2,1,1,500000]
[15,23,12.5,2,1,1,0,0,23,3,23,8,3,1,2,2,0,2,3,3,2,0,3,1,1,2,3,2,1,800000]
[16,0,0,0,0,0,0,0,100,15,100,7,15,0,0,3,0,3,3,5,0,2,2,2,1,2,3,2,2,2000000]
[17,2,15.6,2,1,1,58,290,0,0,0,8,3,0,0,0,0,3,2,0,0,2,3,1,0,1,0,2,1,500000]
[18,0,0,0,0,0,0,30,0,0,0,2,0,8,1,1,3,3,3,5,1,2,2,1,2,1,2,1,0,300000]
[19,8,3.125,1,2,0,0,0,0,0,0,2,0,8,2,0,0,2,3,0,0,1,1,3,2,0,1,0,1,750000]
[20,9,15.6,1,2,0,0,435,76,10,76,6,10,8,2,1,0,3,3,3,2,1,0,0,1,2,1,0,1,1500000]
[21,0,0,0,0,0,0,0,0,0,0,2,0,8,2,0,1,3,3,5,1,0,2,3,1,0,3,1,2,900000]
[22,0,0,0,0,0,16,64,0,0,0,2,0,1,2,4,2,2,3,5,0,1,2,1,0,2,1,2,1,750000]
[23,9,18.8,2,0,0,0,0,0,0,0,2,0,0,0,3,0,3,3,5,0,2,1,2,1,1,1,0,1,1000000]
[24,5,6.25,2,0,0,0,0,0,0,0,2,0,0,0,0,0,3,3,5,0,0,3,1,3,2,1,0,2,150000]
[25,9,18.8,2,0,0,176,308,0,0,0,2,0,8,1,2,2,3,3,0,0,2,1,3,2,1,1,2,2,250000]
[26,17,18.8,2,1,0,0,0,0,0,0,2,0,0,0,3,0,3,3,4,0,2,1,0,2,0,1,2,2,500000]
[27,0,6.25,2,0,0,0,0,0,0,80,2,5,0,0,2,2,3,3,5,0,1,2,3,1,0,0,0,0,1200000]
[28,3,6.25,2,0,1,0,0,0,0,0,4,5,0,0,4,0,3,3,4,0,2,3,3,1,0,2,2,1,500000]
[29,9,12.5,2,1,0,0,0,15,12,15,8,12,0,0,1,0,3,3,4,0,2,1,0,2,1,1,1,2,2000000]
[30,33,18.8,2,0,0,0,0,0,0,0,4,2,0,0,0,0,1,1,0,0,0,3,1,2,0,2,2,0,250000]
[31,4,18.8,1,0,0,0,0,65,4,0,4,4,0,0,2,0,3,2,3,0,1,0,1,1,2,2,1,1,650000]
[32,5,3.125,2,2,1,6,102,40,16,40,8,16,0,0,2,3,3,0,4,0,0,2,1,2,1,0,2,1,200000]
[33,14,18.8,2,1,0,0,0,0,0,0,5,0,0,0,2,0,3,2,0,0,1,3,0,2,2,3,0,0,400000]
[34,0,0,0,0,0,0,12,100,15,100,8,15,0,0,2,0,3,3,4,0,2,3,3,0,2,2,1,0,900000]
[35,8,9.4,1,1,1,0,0,0,0,100,6,5,8,0,0,0,3,3,3,0,2,2,0,1,2,0,1,1,900000]
["CV",{"$f":"_xlfn.STDEV.S(B2:B36)/AVERAGE(B2:B36)","v":1.383842854444886},{"$f":"_xlfn.STDEV.S(C2:C36)/AVERAGE(C2:C36)","v":0.84395823753626376},{"$f":"_xlfn.STDEV.S(D2:D36)/AVERAGE(D2:D36)","v":0.65948586466528381},{"$f":"_xlfn.STDEV.S(E2:E36)/AVERAGE(E2:E36)","v":1.2933654230908831},2.2305806858480666,2.9881459898804135,2.7250501152884543,1.5394659205075842,1.5790297611729722,1.6828143944790142,0.63288342730791625,1.4346340567392073,1.2744250477591585,1.2909944487358058,1.043011114951035,1.4910544805781871,0.32582327651393111,0.30721159062514791,0.8219511329380369,2.1760730956581078,0.64975875258290616,0.58618247649425104,0.61083323417736113,0.63333947951472869,0.68629571860885286,0.76505300516434493,0.69428102652373402,0.60312027652595823]
["sd",{"$f":"_xlfn.STDEV.S(B2:B36)","v":10.477667326511279}]
["mean",{"$f":"AVERAGE(B2:B36)","v":7.5714285714285712}]
[null,{"$f":"B1","v":"manage_species"},{"$f":"C1","v":"manage_spatial"},"manage_uncertainty","manage_currentpractices","manage_adaptivemanagement","pop_a","pop_b","pop_spatialscope","pop_temporalscope","hab_quantity","hab_quality","hab_temporal","ecoprocess_spp","ecoprocess_uncertainty","datasharing","broaderimpacts","exisitingpriorities","partners","leverage","alignment","objhyp","response","targettaxa","surveydesign","stats","datamanagement","budget","timeline"]
[null,"Metric 1","Metric 2","Metric 3","Metric 4","Metric 5","Metric 6a","Metric 6b","Metric 7","Metric 8","Metric 9","Metric 10","Metric 11","Metric 12","Metric 13","Metric 14","Metric 15","Metric 16","Metric 17","Metric 18","Metric 19","Metric 20","Metric 21","Metric 22","Metric 23","Metric 24","Metric 25","Metric 26","Metric 27"]
["Weights",0.03,0.03,0.03,0.03,0.04,1.4999999999999999E-2,1.4999999999999999E-2,0.03,0.02,0.02,0.02,0.02,0.03,0.09,0.04,0.04,0.05,0.05,0.03,0.03,0.05,0.04,0.04,0.05,0.05,0.04,0.04,0.03]
[]
[null,"Unweighted"]
["Project",null,null,null,null,null,null,null,null,null,null,null,null,null,null,null,null,null,null,null,null,null,null,null,null,null,null,null,null,"Unweighted total",null,"Unweighted total","management","status","ecol_proc","integration","rigor"]
[{"$f":"A2","v":1},{"$f":"valueE(B2,'Utility Functions'!$B$3,'Utility Functions'!$B$4,'Utility Functions'!$B$5,'Utility Functions'!$B$6)","v":0.83470237647280454},{"$f":"valueE(C2,'Utility Functions'!$D$3,'Utility Functions'!$D$4,'Utility Functions'!$D$5,'Utility Functions'!$D$6)","v":0.46475967153745396},{"$f":"valuePL(D2,'Utility Functions'!$E$3:$E$5,'Utility Functions'!$F$3:$F$5)","v":1},{"$f":"valuePL(E2,'Utility Functions'!$G$3:$G$5,'Utility Functions'!$H$3:$H$5)","v":1},{"$f":"valuePL(F2,'Utility Functions'!$I$3:$I$4,'Utility Functions'!$J$3:$J$5)","v":0},{"$f":"valueE(G2,'Utility Functions'!$L$3,'Utility Functions'!$L$4,'Utility Functions'!$L$5,'Utility Functions'!$L$6)","v":1},{"$f":"valueE(H2,'Utility Functions'!$N$3,'Utility Functions'!$N$4,'Utility Functions'!$N$5,'Utility Functions'!$N$6)","v":1},{"$f":"valuePL(I2,'Utility Functions'!$O$3:$O$6,'Utility Functions'!$P$3:$P$6)","v":0.91818181818181821},{"$f":"valuePL(J2,'Utility Functions'!$Q$3:$Q$6,'Utility Functions'!$R$3:$R$6)","v":0.1},{"$f":"valuePL(K2,'Utility Functions'!$S$3:$S$7,'Utility Functions'!$T$3:$T$7)","v":0},{"$f":"valueE(L2,'Utility Functions'!$V$3,'Utility Functions'!$V$4,'Utility Functions'!$V$5,'Utility Functions'!$V$6)","v":0},{"$f":"valuePL(M2,'Utility Functions'!$W$3:$W$6,'Utility Functions'!$X$3:$X$6)","v":0},{"$f":"valueE(N2,'Utility Functions'!$Z$3,'Utility Functions'!$Z$4,'Utility Functions'!$Z$5,'Utility Functions'!$Z$6)","v":0},{"$f":"valuePL(O2,'Utility Functions'!$AA$3:$AA$5,'Utility Functions'!$AB$3:$AB$5)","v":0},{"$f":"valuePL(P2,'Utility Functions'!$AC$3:$AC$7,'Utility Functions'!$AD$3:$AD$7)","v":1},{"$f":"valuePL(Q2,'Utility Functions'!$AE$3:$AE$6,'Utility Functions'!$AF$3:$AF$6)","v":0},{"$f":"valuePL(R2,'Utility Functions'!$AG$3:$AG$6,'Utility Functions'!$AH$3:$AH$6)","v":0.8},{"$f":"valuePL(S2,'Utility Functions'!$AI$3:$AI$6,'Utility Functions'!$AJ$3:$AJ$6)","v":1},{"$f":"valuePL(T2,'Utility Functions'!$AK$3:$AK$8,'Utility Functions'!$AL$3:$AL$8)","v":0},{"$f":"valuePL(U2,'Utility Functions'!$AM$3:$AM$5,'Utility Functions'!$AN$3:$AN$5)","v":0},{"$f":"valuePL(V2,'Utility Functions'!$AO$3:$AO$5,'Utility Functions'!$AP$3:$AP$5)","v":1},{"$f":"valuePL(W2,'Utility Functions'!$AQ$3:$AQ$6,'Utility Functions'!$AR$3:$AR$6)","v":1},{"$f":"valuePL(X2,'Utility Functions'!$AS$3:$AS$6,'Utility Functions'!$AT$3:$AT$6)","v":1},{"$f":"valuePL(Y2,'Utility Functions'!$AU$3:$AU$6,'Utility Functions'!$AV$3:$AV$6)","v":1},{"$f":"valuePL(Z2,'Utility Functions'!$AW$3:$AW$5,'Utility Functions'!$AX$3:$AX$5)","v":1},{"$f":"valuePL(AA2,'Utility Functions'!$AY$3:$AY$6,'Utility Functions'!$AZ$3:$AZ$6)","v":1},{"$f":"valuePL(AB2,'Utility Functions'!$BA$3:$BA$5,'Utility Functions'!$BB$3:$BB$5)","v":1},{"$f":"valuePL(AC2,'Utility Functions'!$BC$3:$BC$5,'Utility Functions'!$BD$3:$BD$5)","v":1},{"$f":"SUM(B46:AC46)","v":17.117643866192076},null,{"$f":"SUM(AG46:AK46)","v":17.117643866192076},{"$f":"SUM(B46:F46)","v":3.2994620480102586},{"$f":"SUM(G46:M46)","v":3.0181818181818181},{"$f":"SUM(N46:O46)","v":0},{"$f":"SUM(P46:U46)","v":2.8},{"$f":"SUM(V46:AC46)","v":8}]
[2,{"$f":"valueE(B3,'Utility Functions'!$B$3,'Utility Functions'!$B$4,'Utility Functions'!$B$5,'Utility Functions'!$B$6)","v":0.4511890475224023},{"$f":"valueE(C3,'Utility Functions'!$D$3,'Utility Functions'!$D$4,'Utility Functions'!$D$5,'Utility Functions'!$D$6)","v":0.94043675305359531},{"$f":"valuePL(D3,'Utility Functions'!$E$3:$E$5,'Utility Functions'!$F$3:$F$5)","v":0.5},{"$f":"valuePL(E3,'Utility Functions'!$G$3:$G$5,'Utility Functions'!$H$3:$H$5)","v":0},{"$f":"valuePL(F3,'Utility Functions'!$I$3:$I$4,'Utility Functions'!$J$3:$J$5)","v":0},{"$f":"valueE(G3,'Utility Functions'!$L$3,'Utility Functions'!$L$4,'Utility Functions'!$L$5,'Utility Functions'!$L$6)","v":0},{"$f":"valueE(H3,'Utility Functions'!$N$3,'Utility Functions'!$N$4,'Utility Functions'!$N$5,'Utility Functions'!$N$6)","v":0},{"$f":"valuePL(I3,'Utility Functions'!$O$3:$O$6,'Utility Functions'!$P$3:$P$6)","v":0},{"$f":"valuePL(J3,'Utility Functions'!$Q$3:$Q$6,'Utility Functions'!$R$3:$R$6)","v":0},{"$f":"valuePL(K3,'Utility Functions'!$S$3:$S$7,'Utility Functions'!$T$3:$T$7)","v":0},{"$f":"valueE(L3,'Utility Functions'!$V$3,'Utility Functions'!$V$4,'Utility Functions'!$V$5,'Utility Functions'!$V$6)","v":0},{"$f":"valuePL(M3,'Utility Functions'!$W$3:$W$6,'Utility Functions'!$X$3:$X$6)","v":0},{"$f":"valueE(N3,'Utility Functions'!$Z$3,'Utility Functions'!$Z$4,'Utility Functions'!$Z$5,'Utility Functions'!$Z$6)","v":0.5},{"$f":"valuePL(O3,'Utility Functions'!$AA$3:$AA$5,'Utility Functions'!$AB$3:$AB$5)","v":0.25},{"$f":"valuePL(P3,'Utility Functions'!$AC$3:$AC$7,'Utility Functions'!$AD$3:$AD$7)","v":0},{"$f":"valuePL(Q3,'Utility Functions'!$AE$3:$AE$6,'Utility Functions'!$AF$3:$AF$6)","v":0},{"$f":"valuePL(R3,'Utility Functions'!$AG$3:$AG$6,'Utility Functions'!$AH$3:$AH$6)","v":1},{"$f":"valuePL(S3,'Utility Functions'!$AI$3:$AI$6,'Utility Functions'!$AJ$3:$AJ$6)","v":1},{"$f":"valuePL(T3,'Utility Functions'!$AK$3:$AK$8,'Utility Functions'!$AL$3:$AL$8)","v":0},{"$f":"valuePL(U3,'Utility Functions'!$AM$3:$AM$5,'Utility Functions'!$AN$3:$AN$5)","v":0},{"$f":"valuePL(V3,'Utility Functions'!$AO$3:$AO$5,'Utility Functions'!$AP$3:$AP$5)","v":1},{"$f":"valuePL(W3,'Utility Functions'!$AQ$3:$AQ$6,'Utility Functions'!$AR$3:$AR$6)","v":1},{"$f":"valuePL(X3,'Utility Functions'!$AS$3:$AS$6,'Utility Functions'!$AT$3:$AT$6)","v":1},{"$f":"valuePL(Y3,'Utility Functions'!$AU$3:$AU$6,'Utility Functions'!$AV$3:$AV$6)","v":1},{"$f":"valuePL(Z3,'Utility Functions'!$AW$3:$AW$5,'Utility Functions'!$AX$3:$AX$5)","v":1},{"$f":"valuePL(AA3,'Utility Functions'!$AY$3:$AY$6,'Utility Functions'!$AZ$3:$AZ$6)","v":1},{"$f":"valuePL(AB3,'Utility Functions'!$BA$3:$BA$5,'Utility Functions'!$BB$3:$BB$5)","v":1},{"$f":"valuePL(AC3,'Utility Functions'!$BC$3:$BC$5,'Utility Functions'!$BD$3:$BD$5)","v":1},{"$f":"SUM(B47:AC47)","v":12.641625800575998},null,{"$f":"SUM(AG47:AK47)","v":12.641625800575998},{"$f":"SUM(B47:F47)","v":1.8916258005759976},{"$f":"SUM(G47:M47)","v":0},{"$f":"SUM(N47:O47)","v":0.75},{"$f":"SUM(P47:U47)","v":2},{"$f":"SUM(V47:AC47)","v":8}]
[3,{"$f":"valueE(B4,'Utility Functions'!$B$3,'Utility Functions'!$B$4,'Utility Functions'!$B$5,'Utility Functions'!$B$6)","v":0.79810469124896843},{"$f":"valueE(C4,'Utility Functions'!$D$3,'Utility Functions'!$D$4,'Utility Functions'!$D$5,'Utility Functions'!$D$6)","v":0.94043675305359531},{"$f":"valuePL(D4,'Utility Functions'!$E$3:$E$5,'Utility Functions'!$F$3:$F$5)","v":1},{"$f":"valuePL(E4,'Utility Functions'!$G$3:$G$5,'Utility Functions'!$H$3:$H$5)","v":0},{"$f":"valuePL(F4,'Utility Functions'!$I$3:$I$4,'Utility Functions'!$J$3:$J$5)","v":0},{"$f":"valueE(G4,'Utility Functions'!$L$3,'Utility Functions'!$L$4,'Utility Functions'!$L$5,'Utility Functions'!$L$6)","v":0},{"$f":"valueE(H4,'Utility Functions'!$N$3,'Utility Functions'!$N$4,'Utility Functions'!$N$5,'Utility Functions'!$N$6)","v":0},{"$f":"valuePL(I4,'Utility Functions'!$O$3:$O$6,'Utility Functions'!$P$3:$P$6)","v":0},{"$f":"valuePL(J4,'Utility Functions'!$Q$3:$Q$6,'Utility Functions'!$R$3:$R$6)","v":0},{"$f":"valuePL(K4,'Utility Functions'!$S$3:$S$7,'Utility Functions'!$T$3:$T$7)","v":0},{"$f":"valueE(L4,'Utility Functions'!$V$3,'Utility Functions'!$V$4,'Utility Functions'!$V$5,'Utility Functions'!$V$6)","v":0},{"$f":"valuePL(M4,'Utility Functions'!$W$3:$W$6,'Utility Functions'!$X$3:$X$6)","v":0},{"$f":"valueE(N4,'Utility Functions'!$Z$3,'Utility Functions'!$Z$4,'Utility Functions'!$Z$5,'Utility Functions'!$Z$6)","v":0.625},{"$f":"valuePL(O4,'Utility Functions'!$AA$3:$AA$5,'Utility Functions'!$AB$3:$AB$5)","v":0.25},{"$f":"valuePL(P4,'Utility Functions'!$AC$3:$AC$7,'Utility Functions'!$AD$3:$AD$7)","v":0},{"$f":"valuePL(Q4,'Utility Functions'!$AE$3:$AE$6,'Utility Functions'!$AF$3:$AF$6)","v":0.5},{"$f":"valuePL(R4,'Utility Functions'!$AG$3:$AG$6,'Utility Functions'!$AH$3:$AH$6)","v":0},{"$f":"valuePL(S4,'Utility Functions'!$AI$3:$AI$6,'Utility Functions'!$AJ$3:$AJ$6)","v":0},{"$f":"valuePL(T4,'Utility Functions'!$AK$3:$AK$8,'Utility Functions'!$AL$3:$AL$8)","v":0},{"$f":"valuePL(U4,'Utility Functions'!$AM$3:$AM$5,'Utility Functions'!$AN$3:$AN$5)","v":0.25},{"$f":"valuePL(V4,'Utility Functions'!$AO$3:$AO$5,'Utility Functions'!$AP$3:$AP$5)","v":1},{"$f":"valuePL(W4,'Utility Functions'!$AQ$3:$AQ$6,'Utility Functions'!$AR$3:$AR$6)","v":1},{"$f":"valuePL(X4,'Utility Functions'!$AS$3:$AS$6,'Utility Functions'!$AT$3:$AT$6)","v":1},{"$f":"valuePL(Y4,'Utility Functions'!$AU$3:$AU$6,'Utility Functions'!$AV$3:$AV$6)","v":1},{"$f":"valuePL(Z4,'Utility Functions'!$AW$3:$AW$5,'Utility Functions'!$AX$3:$AX$5)","v":1},{"$f":"valuePL(AA4,'Utility Functions'!$AY$3:$AY$6,'Utility Functions'!$AZ$3:$AZ$6)","v":0.2},{"$f":"valuePL(AB4,'Utility Functions'!$BA$3:$BA$5,'Utility Functions'!$BB$3:$BB$5)","v":1},{"$f":"valuePL(AC4,'Utility Functions'!$BC$3:$BC$5,'Utility Functions'!$BD$3:$BD$5)","v":1},11.563541444302563,null,11.563541444302565,2.7385414443025637,0,0.875,0.75,7.2]
[4,{"$f":"valueE(B5,'Utility Functions'!$B$3,'Utility Functions'!$B$4,'Utility Functions'!$B$5,'Utility Functions'!$B$6)","v":0.1812695215714665},{"$f":"valueE(C5,'Utility Functions'!$D$3,'Utility Functions'!$D$4,'Utility Functions'!$D$5,'Utility Functions'!$D$6)","v":0.46475967153745396},{"$f":"valuePL(D5,'Utility Functions'!$E$3:$E$5,'Utility Functions'!$F$3:$F$5)","v":1},{"$f":"valuePL(E5,'Utility Functions'!$G$3:$G$5,'Utility Functions'!$H$3:$H$5)","v":0},{"$f":"valuePL(F5,'Utility Functions'!$I$3:$I$4,'Utility Functions'!$J$3:$J$5)","v":0},{"$f":"valueE(G5,'Utility Functions'!$L$3,'Utility Functions'!$L$4,'Utility Functions'!$L$5,'Utility Functions'!$L$6)","v":0},{"$f":"valueE(H5,'Utility Functions'!$N$3,'Utility Functions'!$N$4,'Utility Functions'!$N$5,'Utility Functions'!$N$6)","v":0},{"$f":"valuePL(I5,'Utility Functions'!$O$3:$O$6,'Utility Functions'!$P$3:$P$6)","v":0},{"$f":"valuePL(J5,'Utility Functions'!$Q$3:$Q$6,'Utility Functions'!$R$3:$R$6)","v":0},{"$f":"valuePL(K5,'Utility Functions'!$S$3:$S$7,'Utility Functions'!$T$3:$T$7)","v":0},{"$f":"valueE(L5,'Utility Functions'!$V$3,'Utility Functions'!$V$4,'Utility Functions'!$V$5,'Utility Functions'!$V$6)","v":0},{"$f":"valuePL(M5,'Utility Functions'!$W$3:$W$6,'Utility Functions'!$X$3:$X$6)","v":0},{"$f":"valueE(N5,'Utility Functions'!$Z$3,'Utility Functions'!$Z$4,'Utility Functions'!$Z$5,'Utility Functions'!$Z$6)","v":0.5},{"$f":"valuePL(O5,'Utility Functions'!$AA$3:$AA$5,'Utility Functions'!$AB$3:$AB$5)","v":0.25},{"$f":"valuePL(P5,'Utility Functions'!$AC$3:$AC$7,'Utility Functions'!$AD$3:$AD$7)","v":0},{"$f":"valuePL(Q5,'Utility Functions'!$AE$3:$AE$6,'Utility Functions'!$AF$3:$AF$6)","v":0.1},{"$f":"valuePL(R5,'Utility Functions'!$AG$3:$AG$6,'Utility Functions'!$AH$3:$AH$6)","v":1},{"$f":"valuePL(S5,'Utility Functions'!$AI$3:$AI$6,'Utility Functions'!$AJ$3:$AJ$6)","v":1},{"$f":"valuePL(T5,'Utility Functions'!$AK$3:$AK$8,'Utility Functions'!$AL$3:$AL$8)","v":0.8},{"$f":"valuePL(U5,'Utility Functions'!$AM$3:$AM$5,'Utility Functions'!$AN$3:$AN$5)","v":0},{"$f":"valuePL(V5,'Utility Functions'!$AO$3:$AO$5,'Utility Functions'!$AP$3:$AP$5)","v":0.5},{"$f":"valuePL(W5,'Utility Functions'!$AQ$3:$AQ$6,'Utility Functions'!$AR$3:$AR$6)","v":1},{"$f":"valuePL(X5,'Utility Functions'!$AS$3:$AS$6,'Utility Functions'!$AT$3:$AT$6)","v":1},{"$f":"valuePL(Y5,'Utility Functions'!$AU$3:$AU$6,'Utility Functions'!$AV$3:$AV$6)","v":0.2},{"$f":"valuePL(Z5,'Utility Functions'!$AW$3:$AW$5,'Utility Functions'!$AX$3:$AX$5)","v":0},{"$f":"valuePL(AA5,'Utility Functions'!$AY$3:$AY$6,'Utility Functions'!$AZ$3:$AZ$6)","v":0},{"$f":"valuePL(AB5,'Utility Functions'!$BA$3:$BA$5,'Utility Functions'!$BB$3:$BB$5)","v":1},{"$f":"valuePL(AC5,'Utility Functions'!$BC$3:$BC$5,'Utility Functions'!$BD$3:$BD$5)","v":0.25},9.2460291931089209,null,9.2460291931089209,1.6460291931089204,0,0.75,2.9000000000000004,3.95]
[5,{"$f":"valueE(B6,'Utility Functions'!$B$3,'Utility Functions'!$B$4,'Utility Functions'!$B$5,'Utility Functions'!$B$6)","v":0.55067187023002029},{"$f":"valueE(C6,'Utility Functions'!$D$3,'Utility Functions'!$D$4,'Utility Functions'!$D$5,'Utility Functions'!$D$6)","v":0.26656514581460788},{"$f":"valuePL(D6,'Utility Functions'!$E$3:$E$5,'Utility Functions'!$F$3:$F$5)","v":1},{"$f":"valuePL(E6,'Utility Functions'!$G$3:$G$5,'Utility Functions'!$H$3:$H$5)","v":0},{"$f":"valuePL(F6,'Utility Functions'!$I$3:$I$4,'Utility Functions'!$J$3:$J$5)","v":0},{"$f":"valueE(G6,'Utility Functions'!$L$3,'Utility Functions'!$L$4,'Utility Functions'!$L$5,'Utility Functions'!$L$6)","v":0},{"$f":"valueE(H6,'Utility Functions'!$N$3,'Utility Functions'!$N$4,'Utility Functions'!$N$5,'Utility Functions'!$N$6)","v":0},{"$f":"valuePL(I6,'Utility Functions'!$O$3:$O$6,'Utility Functions'!$P$3:$P$6)","v":0.50909090909090915},{"$f":"valuePL(J6,'Utility Functions'!$Q$3:$Q$6,'Utility Functions'!$R$3:$R$6)","v":0.04},{"$f":"valuePL(K6,'Utility Functions'!$S$3:$S$7,'Utility Functions'!$T$3:$T$7)","v":0},{"$f":"valueE(L6,'Utility Functions'!$V$3,'Utility Functions'!$V$4,'Utility Functions'!$V$5,'Utility Functions'!$V$6)","v":0},{"$f":"valuePL(M6,'Utility Functions'!$W$3:$W$6,'Utility Functions'!$X$3:$X$6)","v":0},{"$f":"valueE(N6,'Utility Functions'!$Z$3,'Utility Functions'!$Z$4,'Utility Functions'!$Z$5,'Utility Functions'!$Z$6)","v":0},{"$f":"valuePL(O6,'Utility Functions'!$AA$3:$AA$5,'Utility Functions'!$AB$3:$AB$5)","v":0},{"$f":"valuePL(P6,'Utility Functions'!$AC$3:$AC$7,'Utility Functions'!$AD$3:$AD$7)","v":0},{"$f":"valuePL(Q6,'Utility Functions'!$AE$3:$AE$6,'Utility Functions'!$AF$3:$AF$6)","v":0.1},{"$f":"valuePL(R6,'Utility Functions'!$AG$3:$AG$6,'Utility Functions'!$AH$3:$AH$6)","v":1},{"$f":"valuePL(S6,'Utility Functions'!$AI$3:$AI$6,'Utility Functions'!$AJ$3:$AJ$6)","v":1},{"$f":"valuePL(T6,'Utility Functions'!$AK$3:$AK$8,'Utility Functions'!$AL$3:$AL$8)","v":0.8},{"$f":"valuePL(U6,'Utility Functions'!$AM$3:$AM$5,'Utility Functions'!$AN$3:$AN$5)","v":0.25},{"$f":"valuePL(V6,'Utility Functions'!$AO$3:$AO$5,'Utility Functions'!$AP$3:$AP$5)","v":0},{"$f":"valuePL(W6,'Utility Functions'!$AQ$3:$AQ$6,'Utility Functions'!$AR$3:$AR$6)","v":1},{"$f":"valuePL(X6,'Utility Functions'!$AS$3:$AS$6,'Utility Functions'!$AT$3:$AT$6)","v":1},{"$f":"valuePL(Y6,'Utility Functions'!$AU$3:$AU$6,'Utility Functions'!$AV$3:$AV$6)","v":0.8},{"$f":"valuePL(Z6,'Utility Functions'!$AW$3:$AW$5,'Utility Functions'!$AX$3:$AX$5)","v":0},{"$f":"valuePL(AA6,'Utility Functions'!$AY$3:$AY$6,'Utility Functions'!$AZ$3:$AZ$6)","v":0},{"$f":"valuePL(AB6,'Utility Functions'!$BA$3:$BA$5,'Utility Functions'!$BB$3:$BB$5)","v":1},{"$f":"valuePL(AC6,'Utility Functions'!$BC$3:$BC$5,'Utility Functions'!$BD$3:$BD$5)","v":0.25},9.5663279251355373,null,9.5663279251355391,1.8172370160446283,0.54909090909090918,0,3.1500000000000004,4.05]
[6,{"$f":"valueE(B7,'Utility Functions'!$B$3,'Utility Functions'!$B$4,'Utility Functions'!$B$5,'Utility Functions'!$B$6)","v":0.86466602685702687},{"$f":"valueE(C7,'Utility Functions'!$D$3,'Utility Functions'!$D$4,'Utility Functions'!$D$5,'Utility Functions'!$D$6)","v":6.1811002813601471E-3},{"$f":"valuePL(D7,'Utility Functions'!$E$3:$E$5,'Utility Functions'!$F$3:$F$5)","v":1},{"$f":"valuePL(E7,'Utility Functions'!$G$3:$G$5,'Utility Functions'!$H$3:$H$5)","v":0},{"$f":"valuePL(F7,'Utility Functions'!$I$3:$I$4,'Utility Functions'!$J$3:$J$5)","v":0},{"$f":"valueE(G7,'Utility Functions'!$L$3,'Utility Functions'!$L$4,'Utility Functions'!$L$5,'Utility Functions'!$L$6)","v":0},{"$f":"valueE(H7,'Utility Functions'!$N$3,'Utility Functions'!$N$4,'Utility Functions'!$N$5,'Utility Functions'!$N$6)","v":0},{"$f":"valuePL(I7,'Utility Functions'!$O$3:$O$6,'Utility Functions'!$P$3:$P$6)","v":0.04},{"$f":"valuePL(J7,'Utility Functions'!$Q$3:$Q$6,'Utility Functions'!$R$3:$R$6)","v":0.04},{"$f":"valuePL(K7,'Utility Functions'!$S$3:$S$7,'Utility Functions'!$T$3:$T$7)","v":0},{"$f":"valueE(L7,'Utility Functions'!$V$3,'Utility Functions'!$V$4,'Utility Functions'!$V$5,'Utility Functions'!$V$6)","v":0},{"$f":"valuePL(M7,'Utility Functions'!$W$3:$W$6,'Utility Functions'!$X$3:$X$6)","v":0},{"$f":"valueE(N7,'Utility Functions'!$Z$3,'Utility Functions'!$Z$4,'Utility Functions'!$Z$5,'Utility Functions'!$Z$6)","v":0},{"$f":"valuePL(O7,'Utility Functions'!$AA$3:$AA$5,'Utility Functions'!$AB$3:$AB$5)","v":0},{"$f":"valuePL(P7,'Utility Functions'!$AC$3:$AC$7,'Utility Functions'!$AD$3:$AD$7)","v":0},{"$f":"valuePL(Q7,'Utility Functions'!$AE$3:$AE$6,'Utility Functions'!$AF$3:$AF$6)","v":0.1},{"$f":"valuePL(R7,'Utility Functions'!$AG$3:$AG$6,'Utility Functions'!$AH$3:$AH$6)","v":0},{"$f":"valuePL(S7,'Utility Functions'!$AI$3:$AI$6,'Utility Functions'!$AJ$3:$AJ$6)","v":1},{"$f":"valuePL(T7,'Utility Functions'!$AK$3:$AK$8,'Utility Functions'!$AL$3:$AL$8)","v":0.6},{"$f":"valuePL(U7,'Utility Functions'!$AM$3:$AM$5,'Utility Functions'!$AN$3:$AN$5)","v":0},{"$f":"valuePL(V7,'Utility Functions'!$AO$3:$AO$5,'Utility Functions'!$AP$3:$AP$5)","v":0},{"$f":"valuePL(W7,'Utility Functions'!$AQ$3:$AQ$6,'Utility Functions'!$AR$3:$AR$6)","v":0},{"$f":"valuePL(X7,'Utility Functions'!$AS$3:$AS$6,'Utility Functions'!$AT$3:$AT$6)","v":1},{"$f":"valuePL(Y7,'Utility Functions'!$AU$3:$AU$6,'Utility Functions'!$AV$3:$AV$6)","v":0},{"$f":"valuePL(Z7,'Utility Functions'!$AW$3:$AW$5,'Utility Functions'!$AX$3:$AX$5)","v":0},{"$f":"valuePL(AA7,'Utility Functions'!$AY$3:$AY$6,'Utility Functions'!$AZ$3:$AZ$6)","v":0},{"$f":"valuePL(AB7,'Utility Functions'!$BA$3:$BA$5,'Utility Functions'!$BB$3:$BB$5)","v":1},{"$f":"valuePL(AC7,'Utility Functions'!$BC$3:$BC$5,'Utility Functions'!$BD$3:$BD$5)","v":0.25},5.9008471271383875,null,5.9008471271383875,1.8708471271383869,0.08,0,1.7000000000000002,2.25]
[7,{"$f":"valueE(B8,'Utility Functions'!$B$3,'Utility Functions'!$B$4,'Utility Functions'!$B$5,'Utility Functions'!$B$6)","v":0.99997108261728973},{"$f":"valueE(C8,'Utility Functions'!$D$3,'Utility Functions'!$D$4,'Utility Functions'!$D$5,'Utility Functions'!$D$6)","v":0.84744836833951609},{"$f":"valuePL(D8,'Utility Functions'!$E$3:$E$5,'Utility Functions'!$F$3:$F$5)","v":0},{"$f":"valuePL(E8,'Utility Functions'!$G$3:$G$5,'Utility Functions'!$H$3:$H$5)","v":1},{"$f":"valuePL(F8,'Utility Functions'!$I$3:$I$4,'Utility Functions'!$J$3:$J$5)","v":0},{"$f":"valueE(G8,'Utility Functions'!$L$3,'Utility Functions'!$L$4,'Utility Functions'!$L$5,'Utility Functions'!$L$6)","v":0},{"$f":"valueE(H8,'Utility Functions'!$N$3,'Utility Functions'!$N$4,'Utility Functions'!$N$5,'Utility Functions'!$N$6)","v":0},{"$f":"valuePL(I8,'Utility Functions'!$O$3:$O$6,'Utility Functions'!$P$3:$P$6)","v":1},{"$f":"valuePL(J8,'Utility Functions'!$Q$3:$Q$6,'Utility Functions'!$R$3:$R$6)","v":0.67272727272727273},{"$f":"valuePL(K8,'Utility Functions'!$S$3:$S$7,'Utility Functions'!$T$3:$T$7)","v":1},{"$f":"valueE(L8,'Utility Functions'!$V$3,'Utility Functions'!$V$4,'Utility Functions'!$V$5,'Utility Functions'!$V$6)","v":1},{"$f":"valuePL(M8,'Utility Functions'!$W$3:$W$6,'Utility Functions'!$X$3:$X$6)","v":0.67272727272727273},{"$f":"valueE(N8,'Utility Functions'!$Z$3,'Utility Functions'!$Z$4,'Utility Functions'!$Z$5,'Utility Functions'!$Z$6)","v":1},{"$f":"valuePL(O8,'Utility Functions'!$AA$3:$AA$5,'Utility Functions'!$AB$3:$AB$5)","v":0.25},{"$f":"valuePL(P8,'Utility Functions'!$AC$3:$AC$7,'Utility Functions'!$AD$3:$AD$7)","v":0},{"$f":"valuePL(Q8,'Utility Functions'!$AE$3:$AE$6,'Utility Functions'!$AF$3:$AF$6)","v":0},{"$f":"valuePL(R8,'Utility Functions'!$AG$3:$AG$6,'Utility Functions'!$AH$3:$AH$6)","v":1},{"$f":"valuePL(S8,'Utility Functions'!$AI$3:$AI$6,'Utility Functions'!$AJ$3:$AJ$6)","v":1},{"$f":"valuePL(T8,'Utility Functions'!$AK$3:$AK$8,'Utility Functions'!$AL$3:$AL$8)","v":0},{"$f":"valuePL(U8,'Utility Functions'!$AM$3:$AM$5,'Utility Functions'!$AN$3:$AN$5)","v":0},{"$f":"valuePL(V8,'Utility Functions'!$AO$3:$AO$5,'Utility Functions'!$AP$3:$AP$5)","v":1},{"$f":"valuePL(W8,'Utility Functions'!$AQ$3:$AQ$6,'Utility Functions'!$AR$3:$AR$6)","v":0},{"$f":"valuePL(X8,'Utility Functions'!$AS$3:$AS$6,'Utility Functions'!$AT$3:$AT$6)","v":0.2},{"$f":"valuePL(Y8,'Utility Functions'!$AU$3:$AU$6,'Utility Functions'!$AV$3:$AV$6)","v":1},{"$f":"valuePL(Z8,'Utility Functions'!$AW$3:$AW$5,'Utility Functions'!$AX$3:$AX$5)","v":1},{"$f":"valuePL(AA8,'Utility Functions'!$AY$3:$AY$6,'Utility Functions'!$AZ$3:$AZ$6)","v":0.89999999999999991},{"$f":"valuePL(AB8,'Utility Functions'!$BA$3:$BA$5,'Utility Functions'!$BB$3:$BB$5)","v":0},{"$f":"valuePL(AC8,'Utility Functions'!$BC$3:$BC$5,'Utility Functions'!$BD$3:$BD$5)","v":1},15.54287399641135,null,15.54287399641135,2.8474194509568056,4.3454545454545457,1.25,2,5.0999999999999996]
[8,{"$f":"valueE(B9,'Utility Functions'!$B$3,'Utility Functions'!$B$4,'Utility Functions'!$B$5,'Utility Functions'!$B$6)","v":0.4511890475224023},{"$f":"valueE(C9,'Utility Functions'!$D$3,'Utility Functions'!$D$4,'Utility Functions'!$D$5,'Utility Functions'!$D$6)","v":0.84744836833951609},{"$f":"valuePL(D9,'Utility Functions'!$E$3:$E$5,'Utility Functions'!$F$3:$F$5)","v":1},{"$f":"valuePL(E9,'Utility Functions'!$G$3:$G$5,'Utility Functions'!$H$3:$H$5)","v":0.5},{"$f":"valuePL(F9,'Utility Functions'!$I$3:$I$4,'Utility Functions'!$J$3:$J$5)","v":1},{"$f":"valueE(G9,'Utility Functions'!$L$3,'Utility Functions'!$L$4,'Utility Functions'!$L$5,'Utility Functions'!$L$6)","v":0},{"$f":"valueE(H9,'Utility Functions'!$N$3,'Utility Functions'!$N$4,'Utility Functions'!$N$5,'Utility Functions'!$N$6)","v":0},{"$f":"valuePL(I9,'Utility Functions'!$O$3:$O$6,'Utility Functions'!$P$3:$P$6)","v":5.6000000000000008E-2},{"$f":"valuePL(J9,'Utility Functions'!$Q$3:$Q$6,'Utility Functions'!$R$3:$R$6)","v":0.83636363636363631},{"$f":"valuePL(K9,'Utility Functions'!$S$3:$S$7,'Utility Functions'!$T$3:$T$7)","v":0},{"$f":"valueE(L9,'Utility Functions'!$V$3,'Utility Functions'!$V$4,'Utility Functions'!$V$5,'Utility Functions'!$V$6)","v":1},{"$f":"valuePL(M9,'Utility Functions'!$W$3:$W$6,'Utility Functions'!$X$3:$X$6)","v":0.83636363636363631},{"$f":"valueE(N9,'Utility Functions'!$Z$3,'Utility Functions'!$Z$4,'Utility Functions'!$Z$5,'Utility Functions'!$Z$6)","v":0},{"$f":"valuePL(O9,'Utility Functions'!$AA$3:$AA$5,'Utility Functions'!$AB$3:$AB$5)","v":0},{"$f":"valuePL(P9,'Utility Functions'!$AC$3:$AC$7,'Utility Functions'!$AD$3:$AD$7)","v":0},{"$f":"valuePL(Q9,'Utility Functions'!$AE$3:$AE$6,'Utility Functions'!$AF$3:$AF$6)","v":1},{"$f":"valuePL(R9,'Utility Functions'!$AG$3:$AG$6,'Utility Functions'!$AH$3:$AH$6)","v":0.2},{"$f":"valuePL(S9,'Utility Functions'!$AI$3:$AI$6,'Utility Functions'!$AJ$3:$AJ$6)","v":1},{"$f":"valuePL(T9,'Utility Functions'!$AK$3:$AK$8,'Utility Functions'!$AL$3:$AL$8)","v":0},{"$f":"valuePL(U9,'Utility Functions'!$AM$3:$AM$5,'Utility Functions'!$AN$3:$AN$5)","v":0},{"$f":"valuePL(V9,'Utility Functions'!$AO$3:$AO$5,'Utility Functions'!$AP$3:$AP$5)","v":1},{"$f":"valuePL(W9,'Utility Functions'!$AQ$3:$AQ$6,'Utility Functions'!$AR$3:$AR$6)","v":1},{"$f":"valuePL(X9,'Utility Functions'!$AS$3:$AS$6,'Utility Functions'!$AT$3:$AT$6)","v":1},{"$f":"valuePL(Y9,'Utility Functions'!$AU$3:$AU$6,'Utility Functions'!$AV$3:$AV$6)","v":1},{"$f":"valuePL(Z9,'Utility Functions'!$AW$3:$AW$5,'Utility Functions'!$AX$3:$AX$5)","v":1},{"$f":"valuePL(AA9,'Utility Functions'!$AY$3:$AY$6,'Utility Functions'!$AZ$3:$AZ$6)","v":0},{"$f":"valuePL(AB9,'Utility Functions'!$BA$3:$BA$5,'Utility Functions'!$BB$3:$BB$5)","v":0.25},{"$f":"valuePL(AC9,'Utility Functions'!$BC$3:$BC$5,'Utility Functions'!$BD$3:$BD$5)","v":0.25},14.227364688589191,null,14.227364688589191,3.7986374158619185,2.7287272727272729,0,2.2000000000000002,5.5]
[9,{"$f":"valueE(B10,'Utility Functions'!$B$3,'Utility Functions'!$B$4,'Utility Functions'!$B$5,'Utility Functions'!$B$6)","v":0.83470237647280454},{"$f":"valueE(C10,'Utility Functions'!$D$3,'Utility Functions'!$D$4,'Utility Functions'!$D$5,'Utility Functions'!$D$6)","v":0.78989979019422951},{"$f":"valuePL(D10,'Utility Functions'!$E$3:$E$5,'Utility Functions'!$F$3:$F$5)","v":1},{"$f":"valuePL(E10,'Utility Functions'!$G$3:$G$5,'Utility Functions'!$H$3:$H$5)","v":0.5},{"$f":"valuePL(F10,'Utility Functions'!$I$3:$I$4,'Utility Functions'!$J$3:$J$5)","v":0},{"$f":"valueE(G10,'Utility Functions'!$L$3,'Utility Functions'!$L$4,'Utility Functions'!$L$5,'Utility Functions'!$L$6)","v":0.37634408602150538},{"$f":"valueE(H10,'Utility Functions'!$N$3,'Utility Functions'!$N$4,'Utility Functions'!$N$5,'Utility Functions'!$N$6)","v":0.13282732447817835},{"$f":"valuePL(I10,'Utility Functions'!$O$3:$O$6,'Utility Functions'!$P$3:$P$6)","v":0},{"$f":"valuePL(J10,'Utility Functions'!$Q$3:$Q$6,'Utility Functions'!$R$3:$R$6)","v":0},{"$f":"valuePL(K10,'Utility Functions'!$S$3:$S$7,'Utility Functions'!$T$3:$T$7)","v":0},{"$f":"valueE(L10,'Utility Functions'!$V$3,'Utility Functions'!$V$4,'Utility Functions'!$V$5,'Utility Functions'!$V$6)","v":0},{"$f":"valuePL(M10,'Utility Functions'!$W$3:$W$6,'Utility Functions'!$X$3:$X$6)","v":0},{"$f":"valueE(N10,'Utility Functions'!$Z$3,'Utility Functions'!$Z$4,'Utility Functions'!$Z$5,'Utility Functions'!$Z$6)","v":0},{"$f":"valuePL(O10,'Utility Functions'!$AA$3:$AA$5,'Utility Functions'!$AB$3:$AB$5)","v":0},{"$f":"valuePL(P10,'Utility Functions'!$AC$3:$AC$7,'Utility Functions'!$AD$3:$AD$7)","v":0.75},{"$f":"valuePL(Q10,'Utility Functions'!$AE$3:$AE$6,'Utility Functions'!$AF$3:$AF$6)","v":0},{"$f":"valuePL(R10,'Utility Functions'!$AG$3:$AG$6,'Utility Functions'!$AH$3:$AH$6)","v":1},{"$f":"valuePL(S10,'Utility Functions'!$AI$3:$AI$6,'Utility Functions'!$AJ$3:$AJ$6)","v":0.66},{"$f":"valuePL(T10,'Utility Functions'!$AK$3:$AK$8,'Utility Functions'!$AL$3:$AL$8)","v":0.2},{"$f":"valuePL(U10,'Utility Functions'!$AM$3:$AM$5,'Utility Functions'!$AN$3:$AN$5)","v":0},{"$f":"valuePL(V10,'Utility Functions'!$AO$3:$AO$5,'Utility Functions'!$AP$3:$AP$5)","v":1},{"$f":"valuePL(W10,'Utility Functions'!$AQ$3:$AQ$6,'Utility Functions'!$AR$3:$AR$6)","v":1},{"$f":"valuePL(X10,'Utility Functions'!$AS$3:$AS$6,'Utility Functions'!$AT$3:$AT$6)","v":1},{"$f":"valuePL(Y10,'Utility Functions'!$AU$3:$AU$6,'Utility Functions'!$AV$3:$AV$6)","v":0.2},{"$f":"valuePL(Z10,'Utility Functions'!$AW$3:$AW$5,'Utility Functions'!$AX$3:$AX$5)","v":1},{"$f":"valuePL(AA10,'Utility Functions'!$AY$3:$AY$6,'Utility Functions'!$AZ$3:$AZ$6)","v":0.2},{"$f":"valuePL(AB10,'Utility Functions'!$BA$3:$BA$5,'Utility Functions'!$BB$3:$BB$5)","v":0.25},{"$f":"valuePL(AC10,'Utility Functions'!$BC$3:$BC$5,'Utility Functions'!$BD$3:$BD$5)","v":1},11.893773577166716,null,11.893773577166719,3.1246021666670343,0.50917141049968373,0,2.6100000000000003,5.65]
[10,{"$f":"valueE(B11,'Utility Functions'!$B$3,'Utility Functions'!$B$4,'Utility Functions'!$B$5,'Utility Functions'!$B$6)","v":0},{"$f":"valueE(C11,'Utility Functions'!$D$3,'Utility Functions'!$D$4,'Utility Functions'!$D$5,'Utility Functions'!$D$6)","v":0},{"$f":"valuePL(D11,'Utility Functions'!$E$3:$E$5,'Utility Functions'!$F$3:$F$5)","v":0},{"$f":"valuePL(E11,'Utility Functions'!$G$3:$G$5,'Utility Functions'!$H$3:$H$5)","v":0},{"$f":"valuePL(F11,'Utility Functions'!$I$3:$I$4,'Utility Functions'!$J$3:$J$5)","v":0},{"$f":"valueE(G11,'Utility Functions'!$L$3,'Utility Functions'!$L$4,'Utility Functions'!$L$5,'Utility Functions'!$L$6)","v":0},{"$f":"valueE(H11,'Utility Functions'!$N$3,'Utility Functions'!$N$4,'Utility Functions'!$N$5,'Utility Functions'!$N$6)","v":0},{"$f":"valuePL(I11,'Utility Functions'!$O$3:$O$6,'Utility Functions'!$P$3:$P$6)","v":0},{"$f":"valuePL(J11,'Utility Functions'!$Q$3:$Q$6,'Utility Functions'!$R$3:$R$6)","v":0},{"$f":"valuePL(K11,'Utility Functions'!$S$3:$S$7,'Utility Functions'!$T$3:$T$7)","v":0},{"$f":"valueE(L11,'Utility Functions'!$V$3,'Utility Functions'!$V$4,'Utility Functions'!$V$5,'Utility Functions'!$V$6)","v":0},{"$f":"valuePL(M11,'Utility Functions'!$W$3:$W$6,'Utility Functions'!$X$3:$X$6)","v":0},{"$f":"valueE(N11,'Utility Functions'!$Z$3,'Utility Functions'!$Z$4,'Utility Functions'!$Z$5,'Utility Functions'!$Z$6)","v":0.75},{"$f":"valuePL(O11,'Utility Functions'!$AA$3:$AA$5,'Utility Functions'!$AB$3:$AB$5)","v":1},{"$f":"valuePL(P11,'Utility Functions'!$AC$3:$AC$7,'Utility Functions'!$AD$3:$AD$7)","v":0.25},{"$f":"valuePL(Q11,'Utility Functions'!$AE$3:$AE$6,'Utility Functions'!$AF$3:$AF$6)","v":0.5},{"$f":"valuePL(R11,'Utility Functions'!$AG$3:$AG$6,'Utility Functions'!$AH$3:$AH$6)","v":1},{"$f":"valuePL(S11,'Utility Functions'!$AI$3:$AI$6,'Utility Functions'!$AJ$3:$AJ$6)","v":0.66},{"$f":"valuePL(T11,'Utility Functions'!$AK$3:$AK$8,'Utility Functions'!$AL$3:$AL$8)","v":0.4},{"$f":"valuePL(U11,'Utility Functions'!$AM$3:$AM$5,'Utility Functions'!$AN$3:$AN$5)","v":0},{"$f":"valuePL(V11,'Utility Functions'!$AO$3:$AO$5,'Utility Functions'!$AP$3:$AP$5)","v":0},{"$f":"valuePL(W11,'Utility Functions'!$AQ$3:$AQ$6,'Utility Functions'!$AR$3:$AR$6)","v":0.75},{"$f":"valuePL(X11,'Utility Functions'!$AS$3:$AS$6,'Utility Functions'!$AT$3:$AT$6)","v":1},{"$f":"valuePL(Y11,'Utility Functions'!$AU$3:$AU$6,'Utility Functions'!$AV$3:$AV$6)","v":1},{"$f":"valuePL(Z11,'Utility Functions'!$AW$3:$AW$5,'Utility Functions'!$AX$3:$AX$5)","v":0.5},{"$f":"valuePL(AA11,'Utility Functions'!$AY$3:$AY$6,'Utility Functions'!$AZ$3:$AZ$6)","v":0.2},{"$f":"valuePL(AB11,'Utility Functions'!$BA$3:$BA$5,'Utility Functions'!$BB$3:$BB$5)","v":0},{"$f":"valuePL(AC11,'Utility Functions'!$BC$3:$BC$5,'Utility Functions'!$BD$3:$BD$5)","v":1},9.01,null,9.0100000000000016,0,0,1.75,2.81,4.45]
[11,{"$f":"valueE(B12,'Utility Functions'!$B$3,'Utility Functions'!$B$4,'Utility Functions'!$B$5,'Utility Functions'!$B$6)","v":0},{"$f":"valueE(C12,'Utility Functions'!$D$3,'Utility Functions'!$D$4,'Utility Functions'!$D$5,'Utility Functions'!$D$6)","v":0},{"$f":"valuePL(D12,'Utility Functions'!$E$3:$E$5,'Utility Functions'!$F$3:$F$5)","v":0},{"$f":"valuePL(E12,'Utility Functions'!$G$3:$G$5,'Utility Functions'!$H$3:$H$5)","v":0},{"$f":"valuePL(F12,'Utility Functions'!$I$3:$I$4,'Utility Functions'!$J$3:$J$5)","v":0},{"$f":"valueE(G12,'Utility Functions'!$L$3,'Utility Functions'!$L$4,'Utility Functions'!$L$5,'Utility Functions'!$L$6)","v":3.2258064516129031E-2},{"$f":"valueE(H12,'Utility Functions'!$N$3,'Utility Functions'!$N$4,'Utility Functions'!$N$5,'Utility Functions'!$N$6)","v":9.6774193548387094E-2},{"$f":"valuePL(I12,'Utility Functions'!$O$3:$O$6,'Utility Functions'!$P$3:$P$6)","v":0.54181818181818187},{"$f":"valuePL(J12,'Utility Functions'!$Q$3:$Q$6,'Utility Functions'!$R$3:$R$6)","v":0.91818181818181821},{"$f":"valuePL(K12,'Utility Functions'!$S$3:$S$7,'Utility Functions'!$T$3:$T$7)","v":0.54181818181818187},{"$f":"valueE(L12,'Utility Functions'!$V$3,'Utility Functions'!$V$4,'Utility Functions'!$V$5,'Utility Functions'!$V$6)","v":1},{"$f":"valuePL(M12,'Utility Functions'!$W$3:$W$6,'Utility Functions'!$X$3:$X$6)","v":0.91818181818181821},{"$f":"valueE(N12,'Utility Functions'!$Z$3,'Utility Functions'!$Z$4,'Utility Functions'!$Z$5,'Utility Functions'!$Z$6)","v":0.375},{"$f":"valuePL(O12,'Utility Functions'!$AA$3:$AA$5,'Utility Functions'!$AB$3:$AB$5)","v":0.25},{"$f":"valuePL(P12,'Utility Functions'!$AC$3:$AC$7,'Utility Functions'!$AD$3:$AD$7)","v":0.25},{"$f":"valuePL(Q12,'Utility Functions'!$AE$3:$AE$6,'Utility Functions'!$AF$3:$AF$6)","v":0},{"$f":"valuePL(R12,'Utility Functions'!$AG$3:$AG$6,'Utility Functions'!$AH$3:$AH$6)","v":1},{"$f":"valuePL(S12,'Utility Functions'!$AI$3:$AI$6,'Utility Functions'!$AJ$3:$AJ$6)","v":1},{"$f":"valuePL(T12,'Utility Functions'!$AK$3:$AK$8,'Utility Functions'!$AL$3:$AL$8)","v":0.4},{"$f":"valuePL(U12,'Utility Functions'!$AM$3:$AM$5,'Utility Functions'!$AN$3:$AN$5)","v":1},{"$f":"valuePL(V12,'Utility Functions'!$AO$3:$AO$5,'Utility Functions'!$AP$3:$AP$5)","v":1},{"$f":"valuePL(W12,'Utility Functions'!$AQ$3:$AQ$6,'Utility Functions'!$AR$3:$AR$6)","v":0.2},{"$f":"valuePL(X12,'Utility Functions'!$AS$3:$AS$6,'Utility Functions'!$AT$3:$AT$6)","v":1},{"$f":"valuePL(Y12,'Utility Functions'!$AU$3:$AU$6,'Utility Functions'!$AV$3:$AV$6)","v":1},{"$f":"valuePL(Z12,'Utility Functions'!$AW$3:$AW$5,'Utility Functions'!$AX$3:$AX$5)","v":0.5},{"$f":"valuePL(AA12,'Utility Functions'!$AY$3:$AY$6,'Utility Functions'!$AZ$3:$AZ$6)","v":0.89999999999999991},{"$f":"valuePL(AB12,'Utility Functions'!$BA$3:$BA$5,'Utility Functions'!$BB$3:$BB$5)","v":0},{"$f":"valuePL(AC12,'Utility Functions'!$BC$3:$BC$5,'Utility Functions'!$BD$3:$BD$5)","v":0.25},13.174032258064516,null,13.174032258064516,0,4.0490322580645159,0.625,3.65,4.8499999999999996]
[12,{"$f":"valueE(B13,'Utility Functions'!$B$3,'Utility Functions'!$B$4,'Utility Functions'!$B$5,'Utility Functions'!$B$6)","v":0.32968045347775865},{"$f":"valueE(C13,'Utility Functions'!$D$3,'Utility Functions'!$D$4,'Utility Functions'!$D$5,'Utility Functions'!$D$6)","v":0.78989979019422951},{"$f":"valuePL(D13,'Utility Functions'!$E$3:$E$5,'Utility Functions'!$F$3:$F$5)","v":1},{"$f":"valuePL(E13,'Utility Functions'!$G$3:$G$5,'Utility Functions'!$H$3:$H$5)","v":0.5},{"$f":"valuePL(F13,'Utility Functions'!$I$3:$I$4,'Utility Functions'!$J$3:$J$5)","v":0},{"$f":"valueE(G13,'Utility Functions'!$L$3,'Utility Functions'!$L$4,'Utility Functions'!$L$5,'Utility Functions'!$L$6)","v":0},{"$f":"valueE(H13,'Utility Functions'!$N$3,'Utility Functions'!$N$4,'Utility Functions'!$N$5,'Utility Functions'!$N$6)","v":0},{"$f":"valuePL(I13,'Utility Functions'!$O$3:$O$6,'Utility Functions'!$P$3:$P$6)","v":0},{"$f":"valuePL(J13,'Utility Functions'!$Q$3:$Q$6,'Utility Functions'!$R$3:$R$6)","v":0},{"$f":"valuePL(K13,'Utility Functions'!$S$3:$S$7,'Utility Functions'!$T$3:$T$7)","v":0},{"$f":"valueE(L13,'Utility Functions'!$V$3,'Utility Functions'!$V$4,'Utility Functions'!$V$5,'Utility Functions'!$V$6)","v":0},{"$f":"valuePL(M13,'Utility Functions'!$W$3:$W$6,'Utility Functions'!$X$3:$X$6)","v":0},{"$f":"valueE(N13,'Utility Functions'!$Z$3,'Utility Functions'!$Z$4,'Utility Functions'!$Z$5,'Utility Functions'!$Z$6)","v":0},{"$f":"valuePL(O13,'Utility Functions'!$AA$3:$AA$5,'Utility Functions'!$AB$3:$AB$5)","v":0},{"$f":"valuePL(P13,'Utility Functions'!$AC$3:$AC$7,'Utility Functions'!$AD$3:$AD$7)","v":0},{"$f":"valuePL(Q13,'Utility Functions'!$AE$3:$AE$6,'Utility Functions'!$AF$3:$AF$6)","v":0.1},{"$f":"valuePL(R13,'Utility Functions'!$AG$3:$AG$6,'Utility Functions'!$AH$3:$AH$6)","v":1},{"$f":"valuePL(S13,'Utility Functions'!$AI$3:$AI$6,'Utility Functions'!$AJ$3:$AJ$6)","v":1},{"$f":"valuePL(T13,'Utility Functions'!$AK$3:$AK$8,'Utility Functions'!$AL$3:$AL$8)","v":0.6},{"$f":"valuePL(U13,'Utility Functions'!$AM$3:$AM$5,'Utility Functions'!$AN$3:$AN$5)","v":0},{"$f":"valuePL(V13,'Utility Functions'!$AO$3:$AO$5,'Utility Functions'!$AP$3:$AP$5)","v":0.5},{"$f":"valuePL(W13,'Utility Functions'!$AQ$3:$AQ$6,'Utility Functions'!$AR$3:$AR$6)","v":0.2},{"$f":"valuePL(X13,'Utility Functions'!$AS$3:$AS$6,'Utility Functions'!$AT$3:$AT$6)","v":1},{"$f":"valuePL(Y13,'Utility Functions'!$AU$3:$AU$6,'Utility Functions'!$AV$3:$AV$6)","v":0.2},{"$f":"valuePL(Z13,'Utility Functions'!$AW$3:$AW$5,'Utility Functions'!$AX$3:$AX$5)","v":1},{"$f":"valuePL(AA13,'Utility Functions'!$AY$3:$AY$6,'Utility Functions'!$AZ$3:$AZ$6)","v":0.2},{"$f":"valuePL(AB13,'Utility Functions'!$BA$3:$BA$5,'Utility Functions'!$BB$3:$BB$5)","v":1},{"$f":"valuePL(AC13,'Utility Functions'!$BC$3:$BC$5,'Utility Functions'!$BD$3:$BD$5)","v":0},9.4195802436719873,null,9.4195802436719873,2.6195802436719884,0,0,2.7,4.0999999999999996]
[13,{"$f":"valueE(B14,'Utility Functions'!$B$3,'Utility Functions'!$B$4,'Utility Functions'!$B$5,'Utility Functions'!$B$6)","v":0},{"$f":"valueE(C14,'Utility Functions'!$D$3,'Utility Functions'!$D$4,'Utility Functions'!$D$5,'Utility Functions'!$D$6)","v":0},{"$f":"valuePL(D14,'Utility Functions'!$E$3:$E$5,'Utility Functions'!$F$3:$F$5)","v":0},{"$f":"valuePL(E14,'Utility Functions'!$G$3:$G$5,'Utility Functions'!$H$3:$H$5)","v":0},{"$f":"valuePL(F14,'Utility Functions'!$I$3:$I$4,'Utility Functions'!$J$3:$J$5)","v":0},{"$f":"valueE(G14,'Utility Functions'!$L$3,'Utility Functions'!$L$4,'Utility Functions'!$L$5,'Utility Functions'!$L$6)","v":0},{"$f":"valueE(H14,'Utility Functions'!$N$3,'Utility Functions'!$N$4,'Utility Functions'!$N$5,'Utility Functions'!$N$6)","v":1.1385199240986717E-2},{"$f":"valuePL(I14,'Utility Functions'!$O$3:$O$6,'Utility Functions'!$P$3:$P$6)","v":0.3290909090909091},{"$f":"valuePL(J14,'Utility Functions'!$Q$3:$Q$6,'Utility Functions'!$R$3:$R$6)","v":0.04},{"$f":"valuePL(K14,'Utility Functions'!$S$3:$S$7,'Utility Functions'!$T$3:$T$7)","v":0.3290909090909091},{"$f":"valueE(L14,'Utility Functions'!$V$3,'Utility Functions'!$V$4,'Utility Functions'!$V$5,'Utility Functions'!$V$6)","v":1},{"$f":"valuePL(M14,'Utility Functions'!$W$3:$W$6,'Utility Functions'!$X$3:$X$6)","v":0.04},{"$f":"valueE(N14,'Utility Functions'!$Z$3,'Utility Functions'!$Z$4,'Utility Functions'!$Z$5,'Utility Functions'!$Z$6)","v":0.875},{"$f":"valuePL(O14,'Utility Functions'!$AA$3:$AA$5,'Utility Functions'!$AB$3:$AB$5)","v":0.25},{"$f":"valuePL(P14,'Utility Functions'!$AC$3:$AC$7,'Utility Functions'!$AD$3:$AD$7)","v":0.25},{"$f":"valuePL(Q14,'Utility Functions'!$AE$3:$AE$6,'Utility Functions'!$AF$3:$AF$6)","v":0},{"$f":"valuePL(R14,'Utility Functions'!$AG$3:$AG$6,'Utility Functions'!$AH$3:$AH$6)","v":1},{"$f":"valuePL(S14,'Utility Functions'!$AI$3:$AI$6,'Utility Functions'!$AJ$3:$AJ$6)","v":1},{"$f":"valuePL(T14,'Utility Functions'!$AK$3:$AK$8,'Utility Functions'!$AL$3:$AL$8)","v":0},{"$f":"valuePL(U14,'Utility Functions'!$AM$3:$AM$5,'Utility Functions'!$AN$3:$AN$5)","v":0},{"$f":"valuePL(V14,'Utility Functions'!$AO$3:$AO$5,'Utility Functions'!$AP$3:$AP$5)","v":0.5},{"$f":"valuePL(W14,'Utility Functions'!$AQ$3:$AQ$6,'Utility Functions'!$AR$3:$AR$6)","v":0},{"$f":"valuePL(X14,'Utility Functions'!$AS$3:$AS$6,'Utility Functions'!$AT$3:$AT$6)","v":0.2},{"$f":"valuePL(Y14,'Utility Functions'!$AU$3:$AU$6,'Utility Functions'!$AV$3:$AV$6)","v":0},{"$f":"valuePL(Z14,'Utility Functions'!$AW$3:$AW$5,'Utility Functions'!$AX$3:$AX$5)","v":1},{"$f":"valuePL(AA14,'Utility Functions'!$AY$3:$AY$6,'Utility Functions'!$AZ$3:$AZ$6)","v":0.2},{"$f":"valuePL(AB14,'Utility Functions'!$BA$3:$BA$5,'Utility Functions'!$BB$3:$BB$5)","v":0.25},{"$f":"valuePL(AC14,'Utility Functions'!$BC$3:$BC$5,'Utility Functions'!$BD$3:$BD$5)","v":0.25},7.5245670174228056,null,7.5245670174228056,0,1.7495670174228048,1.125,2.25,2.4]
[14,{"$f":"valueE(B15,'Utility Functions'!$B$3,'Utility Functions'!$B$4,'Utility Functions'!$B$5,'Utility Functions'!$B$6)","v":0.69880684688087746},{"$f":"valueE(C15,'Utility Functions'!$D$3,'Utility Functions'!$D$4,'Utility Functions'!$D$5,'Utility Functions'!$D$6)","v":0.78989979019422951},{"$f":"valuePL(D15,'Utility Functions'!$E$3:$E$5,'Utility Functions'!$F$3:$F$5)","v":0.5},{"$f":"valuePL(E15,'Utility Functions'!$G$3:$G$5,'Utility Functions'!$H$3:$H$5)","v":0.5},{"$f":"valuePL(F15,'Utility Functions'!$I$3:$I$4,'Utility Functions'!$J$3:$J$5)","v":0},{"$f":"valueE(G15,'Utility Functions'!$L$3,'Utility Functions'!$L$4,'Utility Functions'!$L$5,'Utility Functions'!$L$6)","v":0},{"$f":"valueE(H15,'Utility Functions'!$N$3,'Utility Functions'!$N$4,'Utility Functions'!$N$5,'Utility Functions'!$N$6)","v":0},{"$f":"valuePL(I15,'Utility Functions'!$O$3:$O$6,'Utility Functions'!$P$3:$P$6)","v":0},{"$f":"valuePL(J15,'Utility Functions'!$Q$3:$Q$6,'Utility Functions'!$R$3:$R$6)","v":0},{"$f":"valuePL(K15,'Utility Functions'!$S$3:$S$7,'Utility Functions'!$T$3:$T$7)","v":0},{"$f":"valueE(L15,'Utility Functions'!$V$3,'Utility Functions'!$V$4,'Utility Functions'!$V$5,'Utility Functions'!$V$6)","v":0},{"$f":"valuePL(M15,'Utility Functions'!$W$3:$W$6,'Utility Functions'!$X$3:$X$6)","v":0},{"$f":"valueE(N15,'Utility Functions'!$Z$3,'Utility Functions'!$Z$4,'Utility Functions'!$Z$5,'Utility Functions'!$Z$6)","v":0.75},{"$f":"valuePL(O15,'Utility Functions'!$AA$3:$AA$5,'Utility Functions'!$AB$3:$AB$5)","v":0.25},{"$f":"valuePL(P15,'Utility Functions'!$AC$3:$AC$7,'Utility Functions'!$AD$3:$AD$7)","v":0.25},{"$f":"valuePL(Q15,'Utility Functions'!$AE$3:$AE$6,'Utility Functions'!$AF$3:$AF$6)","v":0},{"$f":"valuePL(R15,'Utility Functions'!$AG$3:$AG$6,'Utility Functions'!$AH$3:$AH$6)","v":1},{"$f":"valuePL(S15,'Utility Functions'!$AI$3:$AI$6,'Utility Functions'!$AJ$3:$AJ$6)","v":1},{"$f":"valuePL(T15,'Utility Functions'!$AK$3:$AK$8,'Utility Functions'!$AL$3:$AL$8)","v":0},{"$f":"valuePL(U15,'Utility Functions'!$AM$3:$AM$5,'Utility Functions'!$AN$3:$AN$5)","v":0},{"$f":"valuePL(V15,'Utility Functions'!$AO$3:$AO$5,'Utility Functions'!$AP$3:$AP$5)","v":0.5},{"$f":"valuePL(W15,'Utility Functions'!$AQ$3:$AQ$6,'Utility Functions'!$AR$3:$AR$6)","v":0.2},{"$f":"valuePL(X15,'Utility Functions'!$AS$3:$AS$6,'Utility Functions'!$AT$3:$AT$6)","v":1},{"$f":"valuePL(Y15,'Utility Functions'!$AU$3:$AU$6,'Utility Functions'!$AV$3:$AV$6)","v":1},{"$f":"valuePL(Z15,'Utility Functions'!$AW$3:$AW$5,'Utility Functions'!$AX$3:$AX$5)","v":0.5},{"$f":"valuePL(AA15,'Utility Functions'!$AY$3:$AY$6,'Utility Functions'!$AZ$3:$AZ$6)","v":0.89999999999999991},{"$f":"valuePL(AB15,'Utility Functions'!$BA$3:$BA$5,'Utility Functions'!$BB$3:$BB$5)","v":0.25},{"$f":"valuePL(AC15,'Utility Functions'!$BC$3:$BC$5,'Utility Functions'!$BD$3:$BD$5)","v":0.25},10.338706637075108,null,10.338706637075106,2.488706637075107,0,1,2.25,4.5999999999999996]
[15,{"$f":"valueE(B16,'Utility Functions'!$B$3,'Utility Functions'!$B$4,'Utility Functions'!$B$5,'Utility Functions'!$B$6)","v":0.98994966417177144},{"$f":"valueE(C16,'Utility Functions'!$D$3,'Utility Functions'!$D$4,'Utility Functions'!$D$5,'Utility Functions'!$D$6)","v":0.71352759724260828},{"$f":"valuePL(D16,'Utility Functions'!$E$3:$E$5,'Utility Functions'!$F$3:$F$5)","v":1},{"$f":"valuePL(E16,'Utility Functions'!$G$3:$G$5,'Utility Functions'!$H$3:$H$5)","v":0.5},{"$f":"valuePL(F16,'Utility Functions'!$I$3:$I$4,'Utility Functions'!$J$3:$J$5)","v":1},{"$f":"valueE(G16,'Utility Functions'!$L$3,'Utility Functions'!$L$4,'Utility Functions'!$L$5,'Utility Functions'!$L$6)","v":0},{"$f":"valueE(H16,'Utility Functions'!$N$3,'Utility Functions'!$N$4,'Utility Functions'!$N$5,'Utility Functions'!$N$6)","v":0},{"$f":"valuePL(I16,'Utility Functions'!$O$3:$O$6,'Utility Functions'!$P$3:$P$6)","v":9.2000000000000012E-2},{"$f":"valuePL(J16,'Utility Functions'!$Q$3:$Q$6,'Utility Functions'!$R$3:$R$6)","v":6.0000000000000012E-2},{"$f":"valuePL(K16,'Utility Functions'!$S$3:$S$7,'Utility Functions'!$T$3:$T$7)","v":6.0000000000000012E-2},{"$f":"valueE(L16,'Utility Functions'!$V$3,'Utility Functions'!$V$4,'Utility Functions'!$V$5,'Utility Functions'!$V$6)","v":1},{"$f":"valuePL(M16,'Utility Functions'!$W$3:$W$6,'Utility Functions'!$X$3:$X$6)","v":6.0000000000000012E-2},{"$f":"valueE(N16,'Utility Functions'!$Z$3,'Utility Functions'!$Z$4,'Utility Functions'!$Z$5,'Utility Functions'!$Z$6)","v":0.125},{"$f":"valuePL(O16,'Utility Functions'!$AA$3:$AA$5,'Utility Functions'!$AB$3:$AB$5)","v":1},{"$f":"valuePL(P16,'Utility Functions'!$AC$3:$AC$7,'Utility Functions'!$AD$3:$AD$7)","v":0.5},{"$f":"valuePL(Q16,'Utility Functions'!$AE$3:$AE$6,'Utility Functions'!$AF$3:$AF$6)","v":0},{"$f":"valuePL(R16,'Utility Functions'!$AG$3:$AG$6,'Utility Functions'!$AH$3:$AH$6)","v":0.8},{"$f":"valuePL(S16,'Utility Functions'!$AI$3:$AI$6,'Utility Functions'!$AJ$3:$AJ$6)","v":1},{"$f":"valuePL(T16,'Utility Functions'!$AK$3:$AK$8,'Utility Functions'!$AL$3:$AL$8)","v":0.6},{"$f":"valuePL(U16,'Utility Functions'!$AM$3:$AM$5,'Utility Functions'!$AN$3:$AN$5)","v":1},{"$f":"valuePL(V16,'Utility Functions'!$AO$3:$AO$5,'Utility Functions'!$AP$3:$AP$5)","v":0},{"$f":"valuePL(W16,'Utility Functions'!$AQ$3:$AQ$6,'Utility Functions'!$AR$3:$AR$6)","v":1},{"$f":"valuePL(X16,'Utility Functions'!$AS$3:$AS$6,'Utility Functions'!$AT$3:$AT$6)","v":0.2},{"$f":"valuePL(Y16,'Utility Functions'!$AU$3:$AU$6,'Utility Functions'!$AV$3:$AV$6)","v":0.2},{"$f":"valuePL(Z16,'Utility Functions'!$AW$3:$AW$5,'Utility Functions'!$AX$3:$AX$5)","v":1},{"$f":"valuePL(AA16,'Utility Functions'!$AY$3:$AY$6,'Utility Functions'!$AZ$3:$AZ$6)","v":1},{"$f":"valuePL(AB16,'Utility Functions'!$BA$3:$BA$5,'Utility Functions'!$BB$3:$BB$5)","v":1},{"$f":"valuePL(AC16,'Utility Functions'!$BC$3:$BC$5,'Utility Functions'!$BD$3:$BD$5)","v":0.25},15.150477261414375,null,15.15047726141438,4.2034772614143794,1.272,1.125,3.9,4.6500000000000004]
[16,{"$f":"valueE(B17,'Utility Functions'!$B$3,'Utility Functions'!$B$4,'Utility Functions'!$B$5,'Utility Functions'!$B$6)","v":0},{"$f":"valueE(C17,'Utility Functions'!$D$3,'Utility Functions'!$D$4,'Utility Functions'!$D$5,'Utility Functions'!$D$6)","v":0},{"$f":"valuePL(D17,'Utility Functions'!$E$3:$E$5,'Utility Functions'!$F$3:$F$5)","v":0},{"$f":"valuePL(E17,'Utility Functions'!$G$3:$G$5,'Utility Functions'!$H$3:$H$5)","v":0},{"$f":"valuePL(F17,'Utility Functions'!$I$3:$I$4,'Utility Functions'!$J$3:$J$5)","v":0},{"$f":"valueE(G17,'Utility Functions'!$L$3,'Utility Functions'!$L$4,'Utility Functions'!$L$5,'Utility Functions'!$L$6)","v":0},{"$f":"valueE(H17,'Utility Functions'!$N$3,'Utility Functions'!$N$4,'Utility Functions'!$N$5,'Utility Functions'!$N$6)","v":0},{"$f":"valuePL(I17,'Utility Functions'!$O$3:$O$6,'Utility Functions'!$P$3:$P$6)","v":1},{"$f":"valuePL(J17,'Utility Functions'!$Q$3:$Q$6,'Utility Functions'!$R$3:$R$6)","v":0.91818181818181821},{"$f":"valuePL(K17,'Utility Functions'!$S$3:$S$7,'Utility Functions'!$T$3:$T$7)","v":1},{"$f":"valueE(L17,'Utility Functions'!$V$3,'Utility Functions'!$V$4,'Utility Functions'!$V$5,'Utility Functions'!$V$6)","v":0.83333333333333337},{"$f":"valuePL(M17,'Utility Functions'!$W$3:$W$6,'Utility Functions'!$X$3:$X$6)","v":0.91818181818181821},{"$f":"valueE(N17,'Utility Functions'!$Z$3,'Utility Functions'!$Z$4,'Utility Functions'!$Z$5,'Utility Functions'!$Z$6)","v":0},{"$f":"valuePL(O17,'Utility Functions'!$AA$3:$AA$5,'Utility Functions'!$AB$3:$AB$5)","v":0},{"$f":"valuePL(P17,'Utility Functions'!$AC$3:$AC$7,'Utility Functions'!$AD$3:$AD$7)","v":0.75},{"$f":"valuePL(Q17,'Utility Functions'!$AE$3:$AE$6,'Utility Functions'!$AF$3:$AF$6)","v":0},{"$f":"valuePL(R17,'Utility Functions'!$AG$3:$AG$6,'Utility Functions'!$AH$3:$AH$6)","v":1},{"$f":"valuePL(S17,'Utility Functions'!$AI$3:$AI$6,'Utility Functions'!$AJ$3:$AJ$6)","v":1},{"$f":"valuePL(T17,'Utility Functions'!$AK$3:$AK$8,'Utility Functions'!$AL$3:$AL$8)","v":1},{"$f":"valuePL(U17,'Utility Functions'!$AM$3:$AM$5,'Utility Functions'!$AN$3:$AN$5)","v":0},{"$f":"valuePL(V17,'Utility Functions'!$AO$3:$AO$5,'Utility Functions'!$AP$3:$AP$5)","v":1},{"$f":"valuePL(W17,'Utility Functions'!$AQ$3:$AQ$6,'Utility Functions'!$AR$3:$AR$6)","v":0.75},{"$f":"valuePL(X17,'Utility Functions'!$AS$3:$AS$6,'Utility Functions'!$AT$3:$AT$6)","v":0.75},{"$f":"valuePL(Y17,'Utility Functions'!$AU$3:$AU$6,'Utility Functions'!$AV$3:$AV$6)","v":0.2},{"$f":"valuePL(Z17,'Utility Functions'!$AW$3:$AW$5,'Utility Functions'!$AX$3:$AX$5)","v":1},{"$f":"valuePL(AA17,'Utility Functions'!$AY$3:$AY$6,'Utility Functions'!$AZ$3:$AZ$6)","v":1},{"$f":"valuePL(AB17,'Utility Functions'!$BA$3:$BA$5,'Utility Functions'!$BB$3:$BB$5)","v":1},{"$f":"valuePL(AC17,'Utility Functions'!$BC$3:$BC$5,'Utility Functions'!$BD$3:$BD$5)","v":1},15.119696969696969,null,15.119696969696971,0,4.6696969696969699,0,3.75,6.7]
[17,{"$f":"valueE(B18,'Utility Functions'!$B$3,'Utility Functions'!$B$4,'Utility Functions'!$B$5,'Utility Functions'!$B$6)","v":0.32968045347775865},{"$f":"valueE(C18,'Utility Functions'!$D$3,'Utility Functions'!$D$4,'Utility Functions'!$D$5,'Utility Functions'!$D$6)","v":0.78989979019422951},{"$f":"valuePL(D18,'Utility Functions'!$E$3:$E$5,'Utility Functions'!$F$3:$F$5)","v":1},{"$f":"valuePL(E18,'Utility Functions'!$G$3:$G$5,'Utility Functions'!$H$3:$H$5)","v":0.5},{"$f":"valuePL(F18,'Utility Functions'!$I$3:$I$4,'Utility Functions'!$J$3:$J$5)","v":1},{"$f":"valueE(G18,'Utility Functions'!$L$3,'Utility Functions'!$L$4,'Utility Functions'!$L$5,'Utility Functions'!$L$6)","v":0.31182795698924731},{"$f":"valueE(H18,'Utility Functions'!$N$3,'Utility Functions'!$N$4,'Utility Functions'!$N$5,'Utility Functions'!$N$6)","v":0.27514231499051234},{"$f":"valuePL(I18,'Utility Functions'!$O$3:$O$6,'Utility Functions'!$P$3:$P$6)","v":0},{"$f":"valuePL(J18,'Utility Functions'!$Q$3:$Q$6,'Utility Functions'!$R$3:$R$6)","v":0},{"$f":"valuePL(K18,'Utility Functions'!$S$3:$S$7,'Utility Functions'!$T$3:$T$7)","v":0},{"$f":"valueE(L18,'Utility Functions'!$V$3,'Utility Functions'!$V$4,'Utility Functions'!$V$5,'Utility Functions'!$V$6)","v":1},{"$f":"valuePL(M18,'Utility Functions'!$W$3:$W$6,'Utility Functions'!$X$3:$X$6)","v":6.0000000000000012E-2},{"$f":"valueE(N18,'Utility Functions'!$Z$3,'Utility Functions'!$Z$4,'Utility Functions'!$Z$5,'Utility Functions'!$Z$6)","v":0},{"$f":"valuePL(O18,'Utility Functions'!$AA$3:$AA$5,'Utility Functions'!$AB$3:$AB$5)","v":0},{"$f":"valuePL(P18,'Utility Functions'!$AC$3:$AC$7,'Utility Functions'!$AD$3:$AD$7)","v":0},{"$f":"valuePL(Q18,'Utility Functions'!$AE$3:$AE$6,'Utility Functions'!$AF$3:$AF$6)","v":0},{"$f":"valuePL(R18,'Utility Functions'!$AG$3:$AG$6,'Utility Functions'!$AH$3:$AH$6)","v":1},{"$f":"valuePL(S18,'Utility Functions'!$AI$3:$AI$6,'Utility Functions'!$AJ$3:$AJ$6)","v":0.66},{"$f":"valuePL(T18,'Utility Functions'!$AK$3:$AK$8,'Utility Functions'!$AL$3:$AL$8)","v":0},{"$f":"valuePL(U18,'Utility Functions'!$AM$3:$AM$5,'Utility Functions'!$AN$3:$AN$5)","v":0},{"$f":"valuePL(V18,'Utility Functions'!$AO$3:$AO$5,'Utility Functions'!$AP$3:$AP$5)","v":1},{"$f":"valuePL(W18,'Utility Functions'!$AQ$3:$AQ$6,'Utility Functions'!$AR$3:$AR$6)","v":1},{"$f":"valuePL(X18,'Utility Functions'!$AS$3:$AS$6,'Utility Functions'!$AT$3:$AT$6)","v":0.2},{"$f":"valuePL(Y18,'Utility Functions'!$AU$3:$AU$6,'Utility Functions'!$AV$3:$AV$6)","v":0},{"$f":"valuePL(Z18,'Utility Functions'!$AW$3:$AW$5,'Utility Functions'!$AX$3:$AX$5)","v":0.5},{"$f":"valuePL(AA18,'Utility Functions'!$AY$3:$AY$6,'Utility Functions'!$AZ$3:$AZ$6)","v":0},{"$f":"valuePL(AB18,'Utility Functions'!$BA$3:$BA$5,'Utility Functions'!$BB$3:$BB$5)","v":1},{"$f":"valuePL(AC18,'Utility Functions'!$BC$3:$BC$5,'Utility Functions'!$BD$3:$BD$5)","v":0.25},10.876550515651747,null,10.876550515651747,3.6195802436719884,1.6469702719797596,0,1.6600000000000001,3.95]
[18,{"$f":"valueE(B19,'Utility Functions'!$B$3,'Utility Functions'!$B$4,'Utility Functions'!$B$5,'Utility Functions'!$B$6)","v":0},{"$f":"valueE(C19,'Utility Functions'!$D$3,'Utility Functions'!$D$4,'Utility Functions'!$D$5,'Utility Functions'!$D$6)","v":0},{"$f":"valuePL(D19,'Utility Functions'!$E$3:$E$5,'Utility Functions'!$F$3:$F$5)","v":0},{"$f":"valuePL(E19,'Utility Functions'!$G$3:$G$5,'Utility Functions'!$H$3:$H$5)","v":0},{"$f":"valuePL(F19,'Utility Functions'!$I$3:$I$4,'Utility Functions'!$J$3:$J$5)","v":0},{"$f":"valueE(G19,'Utility Functions'!$L$3,'Utility Functions'!$L$4,'Utility Functions'!$L$5,'Utility Functions'!$L$6)","v":0},{"$f":"valueE(H19,'Utility Functions'!$N$3,'Utility Functions'!$N$4,'Utility Functions'!$N$5,'Utility Functions'!$N$6)","v":2.8462998102466792E-2},{"$f":"valuePL(I19,'Utility Functions'!$O$3:$O$6,'Utility Functions'!$P$3:$P$6)","v":0},{"$f":"valuePL(J19,'Utility Functions'!$Q$3:$Q$6,'Utility Functions'!$R$3:$R$6)","v":0},{"$f":"valuePL(K19,'Utility Functions'!$S$3:$S$7,'Utility Functions'!$T$3:$T$7)","v":0},{"$f":"valueE(L19,'Utility Functions'!$V$3,'Utility Functions'!$V$4,'Utility Functions'!$V$5,'Utility Functions'!$V$6)","v":0},{"$f":"valuePL(M19,'Utility Functions'!$W$3:$W$6,'Utility Functions'!$X$3:$X$6)","v":0},{"$f":"valueE(N19,'Utility Functions'!$Z$3,'Utility Functions'!$Z$4,'Utility Functions'!$Z$5,'Utility Functions'!$Z$6)","v":1},{"$f":"valuePL(O19,'Utility Functions'!$AA$3:$AA$5,'Utility Functions'!$AB$3:$AB$5)","v":0.25},{"$f":"valuePL(P19,'Utility Functions'!$AC$3:$AC$7,'Utility Functions'!$AD$3:$AD$7)","v":0.25},{"$f":"valuePL(Q19,'Utility Functions'!$AE$3:$AE$6,'Utility Functions'!$AF$3:$AF$6)","v":1},{"$f":"valuePL(R19,'Utility Functions'!$AG$3:$AG$6,'Utility Functions'!$AH$3:$AH$6)","v":1},{"$f":"valuePL(S19,'Utility Functions'!$AI$3:$AI$6,'Utility Functions'!$AJ$3:$AJ$6)","v":1},{"$f":"valuePL(T19,'Utility Functions'!$AK$3:$AK$8,'Utility Functions'!$AL$3:$AL$8)","v":1},{"$f":"valuePL(U19,'Utility Functions'!$AM$3:$AM$5,'Utility Functions'!$AN$3:$AN$5)","v":0.25},{"$f":"valuePL(V19,'Utility Functions'!$AO$3:$AO$5,'Utility Functions'!$AP$3:$AP$5)","v":1},{"$f":"valuePL(W19,'Utility Functions'!$AQ$3:$AQ$6,'Utility Functions'!$AR$3:$AR$6)","v":0.75},{"$f":"valuePL(X19,'Utility Functions'!$AS$3:$AS$6,'Utility Functions'!$AT$3:$AT$6)","v":0.2},{"$f":"valuePL(Y19,'Utility Functions'!$AU$3:$AU$6,'Utility Functions'!$AV$3:$AV$6)","v":0.8},{"$f":"valuePL(Z19,'Utility Functions'!$AW$3:$AW$5,'Utility Functions'!$AX$3:$AX$5)","v":0.5},{"$f":"valuePL(AA19,'Utility Functions'!$AY$3:$AY$6,'Utility Functions'!$AZ$3:$AZ$6)","v":0.89999999999999991},{"$f":"valuePL(AB19,'Utility Functions'!$BA$3:$BA$5,'Utility Functions'!$BB$3:$BB$5)","v":0.25},{"$f":"valuePL(AC19,'Utility Functions'!$BC$3:$BC$5,'Utility Functions'!$BD$3:$BD$5)","v":0},10.178462998102468,null,10.178462998102468,0,2.8462998102466792E-2,1.25,4.5,4.4000000000000004]
[19,{"$f":"valueE(B20,'Utility Functions'!$B$3,'Utility Functions'!$B$4,'Utility Functions'!$B$5,'Utility Functions'!$B$6)","v":0.79810469124896843},{"$f":"valueE(C20,'Utility Functions'!$D$3,'Utility Functions'!$D$4,'Utility Functions'!$D$5,'Utility Functions'!$D$6)","v":0.26839655623815994},{"$f":"valuePL(D20,'Utility Functions'!$E$3:$E$5,'Utility Functions'!$F$3:$F$5)","v":0.5},{"$f":"valuePL(E20,'Utility Functions'!$G$3:$G$5,'Utility Functions'!$H$3:$H$5)","v":1},{"$f":"valuePL(F20,'Utility Functions'!$I$3:$I$4,'Utility Functions'!$J$3:$J$5)","v":0},{"$f":"valueE(G20,'Utility Functions'!$L$3,'Utility Functions'!$L$4,'Utility Functions'!$L$5,'Utility Functions'!$L$6)","v":0},{"$f":"valueE(H20,'Utility Functions'!$N$3,'Utility Functions'!$N$4,'Utility Functions'!$N$5,'Utility Functions'!$N$6)","v":0},{"$f":"valuePL(I20,'Utility Functions'!$O$3:$O$6,'Utility Functions'!$P$3:$P$6)","v":0},{"$f":"valuePL(J20,'Utility Functions'!$Q$3:$Q$6,'Utility Functions'!$R$3:$R$6)","v":0},{"$f":"valuePL(K20,'Utility Functions'!$S$3:$S$7,'Utility Functions'!$T$3:$T$7)","v":0},{"$f":"valueE(L20,'Utility Functions'!$V$3,'Utility Functions'!$V$4,'Utility Functions'!$V$5,'Utility Functions'!$V$6)","v":0},{"$f":"valuePL(M20,'Utility Functions'!$W$3:$W$6,'Utility Functions'!$X$3:$X$6)","v":0},{"$f":"valueE(N20,'Utility Functions'!$Z$3,'Utility Functions'!$Z$4,'Utility Functions'!$Z$5,'Utility Functions'!$Z$6)","v":1},{"$f":"valuePL(O20,'Utility Functions'!$AA$3:$AA$5,'Utility Functions'!$AB$3:$AB$5)","v":1},{"$f":"valuePL(P20,'Utility Functions'!$AC$3:$AC$7,'Utility Functions'!$AD$3:$AD$7)","v":0},{"$f":"valuePL(Q20,'Utility Functions'!$AE$3:$AE$6,'Utility Functions'!$AF$3:$AF$6)","v":0},{"$f":"valuePL(R20,'Utility Functions'!$AG$3:$AG$6,'Utility Functions'!$AH$3:$AH$6)","v":0.8},{"$f":"valuePL(S20,'Utility Functions'!$AI$3:$AI$6,'Utility Functions'!$AJ$3:$AJ$6)","v":1},{"$f":"valuePL(T20,'Utility Functions'!$AK$3:$AK$8,'Utility Functions'!$AL$3:$AL$8)","v":0},{"$f":"valuePL(U20,'Utility Functions'!$AM$3:$AM$5,'Utility Functions'!$AN$3:$AN$5)","v":0},{"$f":"valuePL(V20,'Utility Functions'!$AO$3:$AO$5,'Utility Functions'!$AP$3:$AP$5)","v":0.5},{"$f":"valuePL(W20,'Utility Functions'!$AQ$3:$AQ$6,'Utility Functions'!$AR$3:$AR$6)","v":0.2},{"$f":"valuePL(X20,'Utility Functions'!$AS$3:$AS$6,'Utility Functions'!$AT$3:$AT$6)","v":1},{"$f":"valuePL(Y20,'Utility Functions'!$AU$3:$AU$6,'Utility Functions'!$AV$3:$AV$6)","v":0.8},{"$f":"valuePL(Z20,'Utility Functions'!$AW$3:$AW$5,'Utility Functions'!$AX$3:$AX$5)","v":0},{"$f":"valuePL(AA20,'Utility Functions'!$AY$3:$AY$6,'Utility Functions'!$AZ$3:$AZ$6)","v":0.2},{"$f":"valuePL(AB20,'Utility Functions'!$BA$3:$BA$5,'Utility Functions'!$BB$3:$BB$5)","v":0},{"$f":"valuePL(AC20,'Utility Functions'!$BC$3:$BC$5,'Utility Functions'!$BD$3:$BD$5)","v":0.25},9.3165012474871283,null,9.3165012474871283,2.5665012474871283,0,2,1.8,2.95]
[20,{"$f":"valueE(B21,'Utility Functions'!$B$3,'Utility Functions'!$B$4,'Utility Functions'!$B$5,'Utility Functions'!$B$6)","v":0.83470237647280454},{"$f":"valueE(C21,'Utility Functions'!$D$3,'Utility Functions'!$D$4,'Utility Functions'!$D$5,'Utility Functions'!$D$6)","v":0.78989979019422951},{"$f":"valuePL(D21,'Utility Functions'!$E$3:$E$5,'Utility Functions'!$F$3:$F$5)","v":0.5},{"$f":"valuePL(E21,'Utility Functions'!$G$3:$G$5,'Utility Functions'!$H$3:$H$5)","v":1},{"$f":"valuePL(F21,'Utility Functions'!$I$3:$I$4,'Utility Functions'!$J$3:$J$5)","v":0},{"$f":"valueE(G21,'Utility Functions'!$L$3,'Utility Functions'!$L$4,'Utility Functions'!$L$5,'Utility Functions'!$L$6)","v":0},{"$f":"valueE(H21,'Utility Functions'!$N$3,'Utility Functions'!$N$4,'Utility Functions'!$N$5,'Utility Functions'!$N$6)","v":0.41271347248576851},{"$f":"valuePL(I21,'Utility Functions'!$O$3:$O$6,'Utility Functions'!$P$3:$P$6)","v":0.93454545454545446},{"$f":"valuePL(J21,'Utility Functions'!$Q$3:$Q$6,'Utility Functions'!$R$3:$R$6)","v":0.50909090909090915},{"$f":"valuePL(K21,'Utility Functions'!$S$3:$S$7,'Utility Functions'!$T$3:$T$7)","v":0.93454545454545446},{"$f":"valueE(L21,'Utility Functions'!$V$3,'Utility Functions'!$V$4,'Utility Functions'!$V$5,'Utility Functions'!$V$6)","v":0.66666666666666663},{"$f":"valuePL(M21,'Utility Functions'!$W$3:$W$6,'Utility Functions'!$X$3:$X$6)","v":0.50909090909090915},{"$f":"valueE(N21,'Utility Functions'!$Z$3,'Utility Functions'!$Z$4,'Utility Functions'!$Z$5,'Utility Functions'!$Z$6)","v":1},{"$f":"valuePL(O21,'Utility Functions'!$AA$3:$AA$5,'Utility Functions'!$AB$3:$AB$5)","v":1},{"$f":"valuePL(P21,'Utility Functions'!$AC$3:$AC$7,'Utility Functions'!$AD$3:$AD$7)","v":0.25},{"$f":"valuePL(Q21,'Utility Functions'!$AE$3:$AE$6,'Utility Functions'!$AF$3:$AF$6)","v":0},{"$f":"valuePL(R21,'Utility Functions'!$AG$3:$AG$6,'Utility Functions'!$AH$3:$AH$6)","v":1},{"$f":"valuePL(S21,'Utility Functions'!$AI$3:$AI$6,'Utility Functions'!$AJ$3:$AJ$6)","v":1},{"$f":"valuePL(T21,'Utility Functions'!$AK$3:$AK$8,'Utility Functions'!$AL$3:$AL$8)","v":0.6},{"$f":"valuePL(U21,'Utility Functions'!$AM$3:$AM$5,'Utility Functions'!$AN$3:$AN$5)","v":1},{"$f":"valuePL(V21,'Utility Functions'!$AO$3:$AO$5,'Utility Functions'!$AP$3:$AP$5)","v":0.5},{"$f":"valuePL(W21,'Utility Functions'!$AQ$3:$AQ$6,'Utility Functions'!$AR$3:$AR$6)","v":0},{"$f":"valuePL(X21,'Utility Functions'!$AS$3:$AS$6,'Utility Functions'!$AT$3:$AT$6)","v":0},{"$f":"valuePL(Y21,'Utility Functions'!$AU$3:$AU$6,'Utility Functions'!$AV$3:$AV$6)","v":0.2},{"$f":"valuePL(Z21,'Utility Functions'!$AW$3:$AW$5,'Utility Functions'!$AX$3:$AX$5)","v":1},{"$f":"valuePL(AA21,'Utility Functions'!$AY$3:$AY$6,'Utility Functions'!$AZ$3:$AZ$6)","v":0.2},{"$f":"valuePL(AB21,'Utility Functions'!$BA$3:$BA$5,'Utility Functions'!$BB$3:$BB$5)","v":0},{"$f":"valuePL(AC21,'Utility Functions'!$BC$3:$BC$5,'Utility Functions'!$BD$3:$BD$5)","v":0.25},15.091255033092194,null,15.091255033092196,3.1246021666670343,3.9666528664251626,2,3.85,2.15]
[21,{"$f":"valueE(B22,'Utility Functions'!$B$3,'Utility Functions'!$B$4,'Utility Functions'!$B$5,'Utility Functions'!$B$6)","v":0},{"$f":"valueE(C22,'Utility Functions'!$D$3,'Utility Functions'!$D$4,'Utility Functions'!$D$5,'Utility Functions'!$D$6)","v":0},{"$f":"valuePL(D22,'Utility Functions'!$E$3:$E$5,'Utility Functions'!$F$3:$F$5)","v":0},{"$f":"valuePL(E22,'Utility Functions'!$G$3:$G$5,'Utility Functions'!$H$3:$H$5)","v":0},{"$f":"valuePL(F22,'Utility Functions'!$I$3:$I$4,'Utility Functions'!$J$3:$J$5)","v":0},{"$f":"valueE(G22,'Utility Functions'!$L$3,'Utility Functions'!$L$4,'Utility Functions'!$L$5,'Utility Functions'!$L$6)","v":0},{"$f":"valueE(H22,'Utility Functions'!$N$3,'Utility Functions'!$N$4,'Utility Functions'!$N$5,'Utility Functions'!$N$6)","v":0},{"$f":"valuePL(I22,'Utility Functions'!$O$3:$O$6,'Utility Functions'!$P$3:$P$6)","v":0},{"$f":"valuePL(J22,'Utility Functions'!$Q$3:$Q$6,'Utility Functions'!$R$3:$R$6)","v":0},{"$f":"valuePL(K22,'Utility Functions'!$S$3:$S$7,'Utility Functions'!$T$3:$T$7)","v":0},{"$f":"valueE(L22,'Utility Functions'!$V$3,'Utility Functions'!$V$4,'Utility Functions'!$V$5,'Utility Functions'!$V$6)","v":0},{"$f":"valuePL(M22,'Utility Functions'!$W$3:$W$6,'Utility Functions'!$X$3:$X$6)","v":0},{"$f":"valueE(N22,'Utility Functions'!$Z$3,'Utility Functions'!$Z$4,'Utility Functions'!$Z$5,'Utility Functions'!$Z$6)","v":1},{"$f":"valuePL(O22,'Utility Functions'!$AA$3:$AA$5,'Utility Functions'!$AB$3:$AB$5)","v":1},{"$f":"valuePL(P22,'Utility Functions'!$AC$3:$AC$7,'Utility Functions'!$AD$3:$AD$7)","v":0},{"$f":"valuePL(Q22,'Utility Functions'!$AE$3:$AE$6,'Utility Functions'!$AF$3:$AF$6)","v":0.1},{"$f":"valuePL(R22,'Utility Functions'!$AG$3:$AG$6,'Utility Functions'!$AH$3:$AH$6)","v":1},{"$f":"valuePL(S22,'Utility Functions'!$AI$3:$AI$6,'Utility Functions'!$AJ$3:$AJ$6)","v":1},{"$f":"valuePL(T22,'Utility Functions'!$AK$3:$AK$8,'Utility Functions'!$AL$3:$AL$8)","v":1},{"$f":"valuePL(U22,'Utility Functions'!$AM$3:$AM$5,'Utility Functions'!$AN$3:$AN$5)","v":0.25},{"$f":"valuePL(V22,'Utility Functions'!$AO$3:$AO$5,'Utility Functions'!$AP$3:$AP$5)","v":0},{"$f":"valuePL(W22,'Utility Functions'!$AQ$3:$AQ$6,'Utility Functions'!$AR$3:$AR$6)","v":0.75},{"$f":"valuePL(X22,'Utility Functions'!$AS$3:$AS$6,'Utility Functions'!$AT$3:$AT$6)","v":1},{"$f":"valuePL(Y22,'Utility Functions'!$AU$3:$AU$6,'Utility Functions'!$AV$3:$AV$6)","v":0.2},{"$f":"valuePL(Z22,'Utility Functions'!$AW$3:$AW$5,'Utility Functions'!$AX$3:$AX$5)","v":0},{"$f":"valuePL(AA22,'Utility Functions'!$AY$3:$AY$6,'Utility Functions'!$AZ$3:$AZ$6)","v":1},{"$f":"valuePL(AB22,'Utility Functions'!$BA$3:$BA$5,'Utility Functions'!$BB$3:$BB$5)","v":0.25},{"$f":"valuePL(AC22,'Utility Functions'!$BC$3:$BC$5,'Utility Functions'!$BD$3:$BD$5)","v":1},9.5500000000000007,null,9.5500000000000007,0,0,2,3.35,4.2]
[22,{"$f":"valueE(B23,'Utility Functions'!$B$3,'Utility Functions'!$B$4,'Utility Functions'!$B$5,'Utility Functions'!$B$6)","v":0},{"$f":"valueE(C23,'Utility Functions'!$D$3,'Utility Functions'!$D$4,'Utility Functions'!$D$5,'Utility Functions'!$D$6)","v":0},{"$f":"valuePL(D23,'Utility Functions'!$E$3:$E$5,'Utility Functions'!$F$3:$F$5)","v":0},{"$f":"valuePL(E23,'Utility Functions'!$G$3:$G$5,'Utility Functions'!$H$3:$H$5)","v":0},{"$f":"valuePL(F23,'Utility Functions'!$I$3:$I$4,'Utility Functions'!$J$3:$J$5)","v":0},{"$f":"valueE(G23,'Utility Functions'!$L$3,'Utility Functions'!$L$4,'Utility Functions'!$L$5,'Utility Functions'!$L$6)","v":8.6021505376344093E-2},{"$f":"valueE(H23,'Utility Functions'!$N$3,'Utility Functions'!$N$4,'Utility Functions'!$N$5,'Utility Functions'!$N$6)","v":6.0721062618595827E-2},{"$f":"valuePL(I23,'Utility Functions'!$O$3:$O$6,'Utility Functions'!$P$3:$P$6)","v":0},{"$f":"valuePL(J23,'Utility Functions'!$Q$3:$Q$6,'Utility Functions'!$R$3:$R$6)","v":0},{"$f":"valuePL(K23,'Utility Functions'!$S$3:$S$7,'Utility Functions'!$T$3:$T$7)","v":0},{"$f":"valueE(L23,'Utility Functions'!$V$3,'Utility Functions'!$V$4,'Utility Functions'!$V$5,'Utility Functions'!$V$6)","v":0},{"$f":"valuePL(M23,'Utility Functions'!$W$3:$W$6,'Utility Functions'!$X$3:$X$6)","v":0},{"$f":"valueE(N23,'Utility Functions'!$Z$3,'Utility Functions'!$Z$4,'Utility Functions'!$Z$5,'Utility Functions'!$Z$6)","v":0.125},{"$f":"valuePL(O23,'Utility Functions'!$AA$3:$AA$5,'Utility Functions'!$AB$3:$AB$5)","v":1},{"$f":"valuePL(P23,'Utility Functions'!$AC$3:$AC$7,'Utility Functions'!$AD$3:$AD$7)","v":1},{"$f":"valuePL(Q23,'Utility Functions'!$AE$3:$AE$6,'Utility Functions'!$AF$3:$AF$6)","v":0.5},{"$f":"valuePL(R23,'Utility Functions'!$AG$3:$AG$6,'Utility Functions'!$AH$3:$AH$6)","v":0.8},{"$f":"valuePL(S23,'Utility Functions'!$AI$3:$AI$6,'Utility Functions'!$AJ$3:$AJ$6)","v":1},{"$f":"valuePL(T23,'Utility Functions'!$AK$3:$AK$8,'Utility Functions'!$AL$3:$AL$8)","v":1},{"$f":"valuePL(U23,'Utility Functions'!$AM$3:$AM$5,'Utility Functions'!$AN$3:$AN$5)","v":0},{"$f":"valuePL(V23,'Utility Functions'!$AO$3:$AO$5,'Utility Functions'!$AP$3:$AP$5)","v":0.5},{"$f":"valuePL(W23,'Utility Functions'!$AQ$3:$AQ$6,'Utility Functions'!$AR$3:$AR$6)","v":0.75},{"$f":"valuePL(X23,'Utility Functions'!$AS$3:$AS$6,'Utility Functions'!$AT$3:$AT$6)","v":0.2},{"$f":"valuePL(Y23,'Utility Functions'!$AU$3:$AU$6,'Utility Functions'!$AV$3:$AV$6)","v":0},{"$f":"valuePL(Z23,'Utility Functions'!$AW$3:$AW$5,'Utility Functions'!$AX$3:$AX$5)","v":1},{"$f":"valuePL(AA23,'Utility Functions'!$AY$3:$AY$6,'Utility Functions'!$AZ$3:$AZ$6)","v":0.2},{"$f":"valuePL(AB23,'Utility Functions'!$BA$3:$BA$5,'Utility Functions'!$BB$3:$BB$5)","v":1},{"$f":"valuePL(AC23,'Utility Functions'!$BC$3:$BC$5,'Utility Functions'!$BD$3:$BD$5)","v":0.25},9.471742567994939,null,9.4717425679949407,0,0.14674256799493993,1.125,4.3,3.9000000000000004]
[23,{"$f":"valueE(B24,'Utility Functions'!$B$3,'Utility Functions'!$B$4,'Utility Functions'!$B$5,'Utility Functions'!$B$6)","v":0.83470237647280454},{"$f":"valueE(C24,'Utility Functions'!$D$3,'Utility Functions'!$D$4,'Utility Functions'!$D$5,'Utility Functions'!$D$6)","v":0.84744836833951609},{"$f":"valuePL(D24,'Utility Functions'!$E$3:$E$5,'Utility Functions'!$F$3:$F$5)","v":1},{"$f":"valuePL(E24,'Utility Functions'!$G$3:$G$5,'Utility Functions'!$H$3:$H$5)","v":0},{"$f":"valuePL(F24,'Utility Functions'!$I$3:$I$4,'Utility Functions'!$J$3:$J$5)","v":0},{"$f":"valueE(G24,'Utility Functions'!$L$3,'Utility Functions'!$L$4,'Utility Functions'!$L$5,'Utility Functions'!$L$6)","v":0},{"$f":"valueE(H24,'Utility Functions'!$N$3,'Utility Functions'!$N$4,'Utility Functions'!$N$5,'Utility Functions'!$N$6)","v":0},{"$f":"valuePL(I24,'Utility Functions'!$O$3:$O$6,'Utility Functions'!$P$3:$P$6)","v":0},{"$f":"valuePL(J24,'Utility Functions'!$Q$3:$Q$6,'Utility Functions'!$R$3:$R$6)","v":0},{"$f":"valuePL(K24,'Utility Functions'!$S$3:$S$7,'Utility Functions'!$T$3:$T$7)","v":0},{"$f":"valueE(L24,'Utility Functions'!$V$3,'Utility Functions'!$V$4,'Utility Functions'!$V$5,'Utility Functions'!$V$6)","v":0},{"$f":"valuePL(M24,'Utility Functions'!$W$3:$W$6,'Utility Functions'!$X$3:$X$6)","v":0},{"$f":"valueE(N24,'Utility Functions'!$Z$3,'Utility Functions'!$Z$4,'Utility Functions'!$Z$5,'Utility Functions'!$Z$6)","v":0},{"$f":"valuePL(O24,'Utility Functions'!$AA$3:$AA$5,'Utility Functions'!$AB$3:$AB$5)","v":0},{"$f":"valuePL(P24,'Utility Functions'!$AC$3:$AC$7,'Utility Functions'!$AD$3:$AD$7)","v":0.75},{"$f":"valuePL(Q24,'Utility Functions'!$AE$3:$AE$6,'Utility Functions'!$AF$3:$AF$6)","v":0},{"$f":"valuePL(R24,'Utility Functions'!$AG$3:$AG$6,'Utility Functions'!$AH$3:$AH$6)","v":1},{"$f":"valuePL(S24,'Utility Functions'!$AI$3:$AI$6,'Utility Functions'!$AJ$3:$AJ$6)","v":1},{"$f":"valuePL(T24,'Utility Functions'!$AK$3:$AK$8,'Utility Functions'!$AL$3:$AL$8)","v":1},{"$f":"valuePL(U24,'Utility Functions'!$AM$3:$AM$5,'Utility Functions'!$AN$3:$AN$5)","v":0},{"$f":"valuePL(V24,'Utility Functions'!$AO$3:$AO$5,'Utility Functions'!$AP$3:$AP$5)","v":1},{"$f":"valuePL(W24,'Utility Functions'!$AQ$3:$AQ$6,'Utility Functions'!$AR$3:$AR$6)","v":0.2},{"$f":"valuePL(X24,'Utility Functions'!$AS$3:$AS$6,'Utility Functions'!$AT$3:$AT$6)","v":0.75},{"$f":"valuePL(Y24,'Utility Functions'!$AU$3:$AU$6,'Utility Functions'!$AV$3:$AV$6)","v":0.2},{"$f":"valuePL(Z24,'Utility Functions'!$AW$3:$AW$5,'Utility Functions'!$AX$3:$AX$5)","v":0.5},{"$f":"valuePL(AA24,'Utility Functions'!$AY$3:$AY$6,'Utility Functions'!$AZ$3:$AZ$6)","v":0.2},{"$f":"valuePL(AB24,'Utility Functions'!$BA$3:$BA$5,'Utility Functions'!$BB$3:$BB$5)","v":0},{"$f":"valuePL(AC24,'Utility Functions'!$BC$3:$BC$5,'Utility Functions'!$BD$3:$BD$5)","v":0.25},9.5321507448123199,null,9.5321507448123199,2.6821507448123207,0,0,3.75,3.1]
[24,{"$f":"valueE(B25,'Utility Functions'!$B$3,'Utility Functions'!$B$4,'Utility Functions'!$B$5,'Utility Functions'!$B$6)","v":0.63212151658375171},{"$f":"valueE(C25,'Utility Functions'!$D$3,'Utility Functions'!$D$4,'Utility Functions'!$D$5,'Utility Functions'!$D$6)","v":0.46475967153745396},{"$f":"valuePL(D25,'Utility Functions'!$E$3:$E$5,'Utility Functions'!$F$3:$F$5)","v":1},{"$f":"valuePL(E25,'Utility Functions'!$G$3:$G$5,'Utility Functions'!$H$3:$H$5)","v":0},{"$f":"valuePL(F25,'Utility Functions'!$I$3:$I$4,'Utility Functions'!$J$3:$J$5)","v":0},{"$f":"valueE(G25,'Utility Functions'!$L$3,'Utility Functions'!$L$4,'Utility Functions'!$L$5,'Utility Functions'!$L$6)","v":0},{"$f":"valueE(H25,'Utility Functions'!$N$3,'Utility Functions'!$N$4,'Utility Functions'!$N$5,'Utility Functions'!$N$6)","v":0},{"$f":"valuePL(I25,'Utility Functions'!$O$3:$O$6,'Utility Functions'!$P$3:$P$6)","v":0},{"$f":"valuePL(J25,'Utility Functions'!$Q$3:$Q$6,'Utility Functions'!$R$3:$R$6)","v":0},{"$f":"valuePL(K25,'Utility Functions'!$S$3:$S$7,'Utility Functions'!$T$3:$T$7)","v":0},{"$f":"valueE(L25,'Utility Functions'!$V$3,'Utility Functions'!$V$4,'Utility Functions'!$V$5,'Utility Functions'!$V$6)","v":0},{"$f":"valuePL(M25,'Utility Functions'!$W$3:$W$6,'Utility Functions'!$X$3:$X$6)","v":0},{"$f":"valueE(N25,'Utility Functions'!$Z$3,'Utility Functions'!$Z$4,'Utility Functions'!$Z$5,'Utility Functions'!$Z$6)","v":0},{"$f":"valuePL(O25,'Utility Functions'!$AA$3:$AA$5,'Utility Functions'!$AB$3:$AB$5)","v":0},{"$f":"valuePL(P25,'Utility Functions'!$AC$3:$AC$7,'Utility Functions'!$AD$3:$AD$7)","v":0},{"$f":"valuePL(Q25,'Utility Functions'!$AE$3:$AE$6,'Utility Functions'!$AF$3:$AF$6)","v":0},{"$f":"valuePL(R25,'Utility Functions'!$AG$3:$AG$6,'Utility Functions'!$AH$3:$AH$6)","v":1},{"$f":"valuePL(S25,'Utility Functions'!$AI$3:$AI$6,'Utility Functions'!$AJ$3:$AJ$6)","v":1},{"$f":"valuePL(T25,'Utility Functions'!$AK$3:$AK$8,'Utility Functions'!$AL$3:$AL$8)","v":1},{"$f":"valuePL(U25,'Utility Functions'!$AM$3:$AM$5,'Utility Functions'!$AN$3:$AN$5)","v":0},{"$f":"valuePL(V25,'Utility Functions'!$AO$3:$AO$5,'Utility Functions'!$AP$3:$AP$5)","v":0},{"$f":"valuePL(W25,'Utility Functions'!$AQ$3:$AQ$6,'Utility Functions'!$AR$3:$AR$6)","v":1},{"$f":"valuePL(X25,'Utility Functions'!$AS$3:$AS$6,'Utility Functions'!$AT$3:$AT$6)","v":0.2},{"$f":"valuePL(Y25,'Utility Functions'!$AU$3:$AU$6,'Utility Functions'!$AV$3:$AV$6)","v":1},{"$f":"valuePL(Z25,'Utility Functions'!$AW$3:$AW$5,'Utility Functions'!$AX$3:$AX$5)","v":1},{"$f":"valuePL(AA25,'Utility Functions'!$AY$3:$AY$6,'Utility Functions'!$AZ$3:$AZ$6)","v":0.2},{"$f":"valuePL(AB25,'Utility Functions'!$BA$3:$BA$5,'Utility Functions'!$BB$3:$BB$5)","v":0},{"$f":"valuePL(AC25,'Utility Functions'!$BC$3:$BC$5,'Utility Functions'!$BD$3:$BD$5)","v":1},9.4968811881212041,null,9.4968811881212059,2.0968811881212055,0,0,3,4.4000000000000004]
[25,{"$f":"valueE(B26,'Utility Functions'!$B$3,'Utility Functions'!$B$4,'Utility Functions'!$B$5,'Utility Functions'!$B$6)","v":0.83470237647280454},{"$f":"valueE(C26,'Utility Functions'!$D$3,'Utility Functions'!$D$4,'Utility Functions'!$D$5,'Utility Functions'!$D$6)","v":0.84744836833951609},{"$f":"valuePL(D26,'Utility Functions'!$E$3:$E$5,'Utility Functions'!$F$3:$F$5)","v":1},{"$f":"valuePL(E26,'Utility Functions'!$G$3:$G$5,'Utility Functions'!$H$3:$H$5)","v":0},{"$f":"valuePL(F26,'Utility Functions'!$I$3:$I$4,'Utility Functions'!$J$3:$J$5)","v":0},{"$f":"valueE(G26,'Utility Functions'!$L$3,'Utility Functions'!$L$4,'Utility Functions'!$L$5,'Utility Functions'!$L$6)","v":0.94623655913978499},{"$f":"valueE(H26,'Utility Functions'!$N$3,'Utility Functions'!$N$4,'Utility Functions'!$N$5,'Utility Functions'!$N$6)","v":0.29222011385199242},{"$f":"valuePL(I26,'Utility Functions'!$O$3:$O$6,'Utility Functions'!$P$3:$P$6)","v":0},{"$f":"valuePL(J26,'Utility Functions'!$Q$3:$Q$6,'Utility Functions'!$R$3:$R$6)","v":0},{"$f":"valuePL(K26,'Utility Functions'!$S$3:$S$7,'Utility Functions'!$T$3:$T$7)","v":0},{"$f":"valueE(L26,'Utility Functions'!$V$3,'Utility Functions'!$V$4,'Utility Functions'!$V$5,'Utility Functions'!$V$6)","v":0},{"$f":"valuePL(M26,'Utility Functions'!$W$3:$W$6,'Utility Functions'!$X$3:$X$6)","v":0},{"$f":"valueE(N26,'Utility Functions'!$Z$3,'Utility Functions'!$Z$4,'Utility Functions'!$Z$5,'Utility Functions'!$Z$6)","v":1},{"$f":"valuePL(O26,'Utility Functions'!$AA$3:$AA$5,'Utility Functions'!$AB$3:$AB$5)","v":0.25},{"$f":"valuePL(P26,'Utility Functions'!$AC$3:$AC$7,'Utility Functions'!$AD$3:$AD$7)","v":0.5},{"$f":"valuePL(Q26,'Utility Functions'!$AE$3:$AE$6,'Utility Functions'!$AF$3:$AF$6)","v":0.5},{"$f":"valuePL(R26,'Utility Functions'!$AG$3:$AG$6,'Utility Functions'!$AH$3:$AH$6)","v":1},{"$f":"valuePL(S26,'Utility Functions'!$AI$3:$AI$6,'Utility Functions'!$AJ$3:$AJ$6)","v":1},{"$f":"valuePL(T26,'Utility Functions'!$AK$3:$AK$8,'Utility Functions'!$AL$3:$AL$8)","v":0},{"$f":"valuePL(U26,'Utility Functions'!$AM$3:$AM$5,'Utility Functions'!$AN$3:$AN$5)","v":0},{"$f":"valuePL(V26,'Utility Functions'!$AO$3:$AO$5,'Utility Functions'!$AP$3:$AP$5)","v":1},{"$f":"valuePL(W26,'Utility Functions'!$AQ$3:$AQ$6,'Utility Functions'!$AR$3:$AR$6)","v":0.2},{"$f":"valuePL(X26,'Utility Functions'!$AS$3:$AS$6,'Utility Functions'!$AT$3:$AT$6)","v":1},{"$f":"valuePL(Y26,'Utility Functions'!$AU$3:$AU$6,'Utility Functions'!$AV$3:$AV$6)","v":0.8},{"$f":"valuePL(Z26,'Utility Functions'!$AW$3:$AW$5,'Utility Functions'!$AX$3:$AX$5)","v":0.5},{"$f":"valuePL(AA26,'Utility Functions'!$AY$3:$AY$6,'Utility Functions'!$AZ$3:$AZ$6)","v":0.2},{"$f":"valuePL(AB26,'Utility Functions'!$BA$3:$BA$5,'Utility Functions'!$BB$3:$BB$5)","v":1},{"$f":"valuePL(AC26,'Utility Functions'!$BC$3:$BC$5,'Utility Functions'!$BD$3:$BD$5)","v":1},13.870607417804099,null,13.870607417804099,2.6821507448123207,1.2384566729917774,1.25,3,5.7]
[26,{"$f":"valueE(B27,'Utility Functions'!$B$3,'Utility Functions'!$B$4,'Utility Functions'!$B$5,'Utility Functions'!$B$6)","v":0.96662819462069161},{"$f":"valueE(C27,'Utility Functions'!$D$3,'Utility Functions'!$D$4,'Utility Functions'!$D$5,'Utility Functions'!$D$6)","v":0.84744836833951609},{"$f":"valuePL(D27,'Utility Functions'!$E$3:$E$5,'Utility Functions'!$F$3:$F$5)","v":1},{"$f":"valuePL(E27,'Utility Functions'!$G$3:$G$5,'Utility Functions'!$H$3:$H$5)","v":0.5},{"$f":"valuePL(F27,'Utility Functions'!$I$3:$I$4,'Utility Functions'!$J$3:$J$5)","v":0},{"$f":"valueE(G27,'Utility Functions'!$L$3,'Utility Functions'!$L$4,'Utility Functions'!$L$5,'Utility Functions'!$L$6)","v":0},{"$f":"valueE(H27,'Utility Functions'!$N$3,'Utility Functions'!$N$4,'Utility Functions'!$N$5,'Utility Functions'!$N$6)","v":0},{"$f":"valuePL(I27,'Utility Functions'!$O$3:$O$6,'Utility Functions'!$P$3:$P$6)","v":0},{"$f":"valuePL(J27,'Utility Functions'!$Q$3:$Q$6,'Utility Functions'!$R$3:$R$6)","v":0},{"$f":"valuePL(K27,'Utility Functions'!$S$3:$S$7,'Utility Functions'!$T$3:$T$7)","v":0},{"$f":"valueE(L27,'Utility Functions'!$V$3,'Utility Functions'!$V$4,'Utility Functions'!$V$5,'Utility Functions'!$V$6)","v":0},{"$f":"valuePL(M27,'Utility Functions'!$W$3:$W$6,'Utility Functions'!$X$3:$X$6)","v":0},{"$f":"valueE(N27,'Utility Functions'!$Z$3,'Utility Functions'!$Z$4,'Utility Functions'!$Z$5,'Utility Functions'!$Z$6)","v":0},{"$f":"valuePL(O27,'Utility Functions'!$AA$3:$AA$5,'Utility Functions'!$AB$3:$AB$5)","v":0},{"$f":"valuePL(P27,'Utility Functions'!$AC$3:$AC$7,'Utility Functions'!$AD$3:$AD$7)","v":0.75},{"$f":"valuePL(Q27,'Utility Functions'!$AE$3:$AE$6,'Utility Functions'!$AF$3:$AF$6)","v":0},{"$f":"valuePL(R27,'Utility Functions'!$AG$3:$AG$6,'Utility Functions'!$AH$3:$AH$6)","v":1},{"$f":"valuePL(S27,'Utility Functions'!$AI$3:$AI$6,'Utility Functions'!$AJ$3:$AJ$6)","v":1},{"$f":"valuePL(T27,'Utility Functions'!$AK$3:$AK$8,'Utility Functions'!$AL$3:$AL$8)","v":0.8},{"$f":"valuePL(U27,'Utility Functions'!$AM$3:$AM$5,'Utility Functions'!$AN$3:$AN$5)","v":0},{"$f":"valuePL(V27,'Utility Functions'!$AO$3:$AO$5,'Utility Functions'!$AP$3:$AP$5)","v":1},{"$f":"valuePL(W27,'Utility Functions'!$AQ$3:$AQ$6,'Utility Functions'!$AR$3:$AR$6)","v":0.2},{"$f":"valuePL(X27,'Utility Functions'!$AS$3:$AS$6,'Utility Functions'!$AT$3:$AT$6)","v":0},{"$f":"valuePL(Y27,'Utility Functions'!$AU$3:$AU$6,'Utility Functions'!$AV$3:$AV$6)","v":0.8},{"$f":"valuePL(Z27,'Utility Functions'!$AW$3:$AW$5,'Utility Functions'!$AX$3:$AX$5)","v":0},{"$f":"valuePL(AA27,'Utility Functions'!$AY$3:$AY$6,'Utility Functions'!$AZ$3:$AZ$6)","v":0.2},{"$f":"valuePL(AB27,'Utility Functions'!$BA$3:$BA$5,'Utility Functions'!$BB$3:$BB$5)","v":1},{"$f":"valuePL(AC27,'Utility Functions'!$BC$3:$BC$5,'Utility Functions'!$BD$3:$BD$5)","v":1},11.064076562960208,null,11.064076562960206,3.3140765629602078,0,0,3.55,4.2]
[27,{"$f":"valueE(B28,'Utility Functions'!$B$3,'Utility Functions'!$B$4,'Utility Functions'!$B$5,'Utility Functions'!$B$6)","v":0},{"$f":"valueE(C28,'Utility Functions'!$D$3,'Utility Functions'!$D$4,'Utility Functions'!$D$5,'Utility Functions'!$D$6)","v":0.46475967153745396},{"$f":"valuePL(D28,'Utility Functions'!$E$3:$E$5,'Utility Functions'!$F$3:$F$5)","v":1},{"$f":"valuePL(E28,'Utility Functions'!$G$3:$G$5,'Utility Functions'!$H$3:$H$5)","v":0},{"$f":"valuePL(F28,'Utility Functions'!$I$3:$I$4,'Utility Functions'!$J$3:$J$5)","v":0},{"$f":"valueE(G28,'Utility Functions'!$L$3,'Utility Functions'!$L$4,'Utility Functions'!$L$5,'Utility Functions'!$L$6)","v":0},{"$f":"valueE(H28,'Utility Functions'!$N$3,'Utility Functions'!$N$4,'Utility Functions'!$N$5,'Utility Functions'!$N$6)","v":0},{"$f":"valuePL(I28,'Utility Functions'!$O$3:$O$6,'Utility Functions'!$P$3:$P$6)","v":0},{"$f":"valuePL(J28,'Utility Functions'!$Q$3:$Q$6,'Utility Functions'!$R$3:$R$6)","v":0},{"$f":"valuePL(K28,'Utility Functions'!$S$3:$S$7,'Utility Functions'!$T$3:$T$7)","v":1},{"$f":"valueE(L28,'Utility Functions'!$V$3,'Utility Functions'!$V$4,'Utility Functions'!$V$5,'Utility Functions'!$V$6)","v":0},{"$f":"valuePL(M28,'Utility Functions'!$W$3:$W$6,'Utility Functions'!$X$3:$X$6)","v":0.1},{"$f":"valueE(N28,'Utility Functions'!$Z$3,'Utility Functions'!$Z$4,'Utility Functions'!$Z$5,'Utility Functions'!$Z$6)","v":0},{"$f":"valuePL(O28,'Utility Functions'!$AA$3:$AA$5,'Utility Functions'!$AB$3:$AB$5)","v":0},{"$f":"valuePL(P28,'Utility Functions'!$AC$3:$AC$7,'Utility Functions'!$AD$3:$AD$7)","v":0.5},{"$f":"valuePL(Q28,'Utility Functions'!$AE$3:$AE$6,'Utility Functions'!$AF$3:$AF$6)","v":0.5},{"$f":"valuePL(R28,'Utility Functions'!$AG$3:$AG$6,'Utility Functions'!$AH$3:$AH$6)","v":1},{"$f":"valuePL(S28,'Utility Functions'!$AI$3:$AI$6,'Utility Functions'!$AJ$3:$AJ$6)","v":1},{"$f":"valuePL(T28,'Utility Functions'!$AK$3:$AK$8,'Utility Functions'!$AL$3:$AL$8)","v":1},{"$f":"valuePL(U28,'Utility Functions'!$AM$3:$AM$5,'Utility Functions'!$AN$3:$AN$5)","v":0},{"$f":"valuePL(V28,'Utility Functions'!$AO$3:$AO$5,'Utility Functions'!$AP$3:$AP$5)","v":0.5},{"$f":"valuePL(W28,'Utility Functions'!$AQ$3:$AQ$6,'Utility Functions'!$AR$3:$AR$6)","v":0.75},{"$f":"valuePL(X28,'Utility Functions'!$AS$3:$AS$6,'Utility Functions'!$AT$3:$AT$6)","v":1},{"$f":"valuePL(Y28,'Utility Functions'!$AU$3:$AU$6,'Utility Functions'!$AV$3:$AV$6)","v":0.2},{"$f":"valuePL(Z28,'Utility Functions'!$AW$3:$AW$5,'Utility Functions'!$AX$3:$AX$5)","v":0},{"$f":"valuePL(AA28,'Utility Functions'!$AY$3:$AY$6,'Utility Functions'!$AZ$3:$AZ$6)","v":0},{"$f":"valuePL(AB28,'Utility Functions'!$BA$3:$BA$5,'Utility Functions'!$BB$3:$BB$5)","v":0},{"$f":"valuePL(AC28,'Utility Functions'!$BC$3:$BC$5,'Utility Functions'!$BD$3:$BD$5)","v":0},9.0147596715374529,null,9.0147596715374547,1.464759671537454,1.1000000000000001,0,4,2.4500000000000002]
[28,{"$f":"valueE(B29,'Utility Functions'!$B$3,'Utility Functions'!$B$4,'Utility Functions'!$B$5,'Utility Functions'!$B$6)","v":0.4511890475224023},{"$f":"valueE(C29,'Utility Functions'!$D$3,'Utility Functions'!$D$4,'Utility Functions'!$D$5,'Utility Functions'!$D$6)","v":0.46475967153745396},{"$f":"valuePL(D29,'Utility Functions'!$E$3:$E$5,'Utility Functions'!$F$3:$F$5)","v":1},{"$f":"valuePL(E29,'Utility Functions'!$G$3:$G$5,'Utility Functions'!$H$3:$H$5)","v":0},{"$f":"valuePL(F29,'Utility Functions'!$I$3:$I$4,'Utility Functions'!$J$3:$J$5)","v":1},{"$f":"valueE(G29,'Utility Functions'!$L$3,'Utility Functions'!$L$4,'Utility Functions'!$L$5,'Utility Functions'!$L$6)","v":0},{"$f":"valueE(H29,'Utility Functions'!$N$3,'Utility Functions'!$N$4,'Utility Functions'!$N$5,'Utility Functions'!$N$6)","v":0},{"$f":"valuePL(I29,'Utility Functions'!$O$3:$O$6,'Utility Functions'!$P$3:$P$6)","v":0},{"$f":"valuePL(J29,'Utility Functions'!$Q$3:$Q$6,'Utility Functions'!$R$3:$R$6)","v":0},{"$f":"valuePL(K29,'Utility Functions'!$S$3:$S$7,'Utility Functions'!$T$3:$T$7)","v":0},{"$f":"valueE(L29,'Utility Functions'!$V$3,'Utility Functions'!$V$4,'Utility Functions'!$V$5,'Utility Functions'!$V$6)","v":0.33333333333333331},{"$f":"valuePL(M29,'Utility Functions'!$W$3:$W$6,'Utility Functions'!$X$3:$X$6)","v":0.1},{"$f":"valueE(N29,'Utility Functions'!$Z$3,'Utility Functions'!$Z$4,'Utility Functions'!$Z$5,'Utility Functions'!$Z$6)","v":0},{"$f":"valuePL(O29,'Utility Functions'!$AA$3:$AA$5,'Utility Functions'!$AB$3:$AB$5)","v":0},{"$f":"valuePL(P29,'Utility Functions'!$AC$3:$AC$7,'Utility Functions'!$AD$3:$AD$7)","v":1},{"$f":"valuePL(Q29,'Utility Functions'!$AE$3:$AE$6,'Utility Functions'!$AF$3:$AF$6)","v":0},{"$f":"valuePL(R29,'Utility Functions'!$AG$3:$AG$6,'Utility Functions'!$AH$3:$AH$6)","v":1},{"$f":"valuePL(S29,'Utility Functions'!$AI$3:$AI$6,'Utility Functions'!$AJ$3:$AJ$6)","v":1},{"$f":"valuePL(T29,'Utility Functions'!$AK$3:$AK$8,'Utility Functions'!$AL$3:$AL$8)","v":0.8},{"$f":"valuePL(U29,'Utility Functions'!$AM$3:$AM$5,'Utility Functions'!$AN$3:$AN$5)","v":0},{"$f":"valuePL(V29,'Utility Functions'!$AO$3:$AO$5,'Utility Functions'!$AP$3:$AP$5)","v":1},{"$f":"valuePL(W29,'Utility Functions'!$AQ$3:$AQ$6,'Utility Functions'!$AR$3:$AR$6)","v":1},{"$f":"valuePL(X29,'Utility Functions'!$AS$3:$AS$6,'Utility Functions'!$AT$3:$AT$6)","v":1},{"$f":"valuePL(Y29,'Utility Functions'!$AU$3:$AU$6,'Utility Functions'!$AV$3:$AV$6)","v":0.2},{"$f":"valuePL(Z29,'Utility Functions'!$AW$3:$AW$5,'Utility Functions'!$AX$3:$AX$5)","v":0},{"$f":"valuePL(AA29,'Utility Functions'!$AY$3:$AY$6,'Utility Functions'!$AZ$3:$AZ$6)","v":0.89999999999999991},{"$f":"valuePL(AB29,'Utility Functions'!$BA$3:$BA$5,'Utility Functions'!$BB$3:$BB$5)","v":1},{"$f":"valuePL(AC29,'Utility Functions'!$BC$3:$BC$5,'Utility Functions'!$BD$3:$BD$5)","v":0.25},12.499282052393189,null,12.499282052393189,2.9159487190598563,0.43333333333333335,0,3.8,5.35]
[29,{"$f":"valueE(B30,'Utility Functions'!$B$3,'Utility Functions'!$B$4,'Utility Functions'!$B$5,'Utility Functions'!$B$6)","v":0.83470237647280454},{"$f":"valueE(C30,'Utility Functions'!$D$3,'Utility Functions'!$D$4,'Utility Functions'!$D$5,'Utility Functions'!$D$6)","v":0.71352759724260828},{"$f":"valuePL(D30,'Utility Functions'!$E$3:$E$5,'Utility Functions'!$F$3:$F$5)","v":1},{"$f":"valuePL(E30,'Utility Functions'!$G$3:$G$5,'Utility Functions'!$H$3:$H$5)","v":0.5},{"$f":"valuePL(F30,'Utility Functions'!$I$3:$I$4,'Utility Functions'!$J$3:$J$5)","v":0},{"$f":"valueE(G30,'Utility Functions'!$L$3,'Utility Functions'!$L$4,'Utility Functions'!$L$5,'Utility Functions'!$L$6)","v":0},{"$f":"valueE(H30,'Utility Functions'!$N$3,'Utility Functions'!$N$4,'Utility Functions'!$N$5,'Utility Functions'!$N$6)","v":0},{"$f":"valuePL(I30,'Utility Functions'!$O$3:$O$6,'Utility Functions'!$P$3:$P$6)","v":0.06},{"$f":"valuePL(J30,'Utility Functions'!$Q$3:$Q$6,'Utility Functions'!$R$3:$R$6)","v":0.67272727272727273},{"$f":"valuePL(K30,'Utility Functions'!$S$3:$S$7,'Utility Functions'!$T$3:$T$7)","v":0},{"$f":"valueE(L30,'Utility Functions'!$V$3,'Utility Functions'!$V$4,'Utility Functions'!$V$5,'Utility Functions'!$V$6)","v":1},{"$f":"valuePL(M30,'Utility Functions'!$W$3:$W$6,'Utility Functions'!$X$3:$X$6)","v":0.67272727272727273},{"$f":"valueE(N30,'Utility Functions'!$Z$3,'Utility Functions'!$Z$4,'Utility Functions'!$Z$5,'Utility Functions'!$Z$6)","v":0},{"$f":"valuePL(O30,'Utility Functions'!$AA$3:$AA$5,'Utility Functions'!$AB$3:$AB$5)","v":0},{"$f":"valuePL(P30,'Utility Functions'!$AC$3:$AC$7,'Utility Functions'!$AD$3:$AD$7)","v":0.25},{"$f":"valuePL(Q30,'Utility Functions'!$AE$3:$AE$6,'Utility Functions'!$AF$3:$AF$6)","v":0},{"$f":"valuePL(R30,'Utility Functions'!$AG$3:$AG$6,'Utility Functions'!$AH$3:$AH$6)","v":1},{"$f":"valuePL(S30,'Utility Functions'!$AI$3:$AI$6,'Utility Functions'!$AJ$3:$AJ$6)","v":1},{"$f":"valuePL(T30,'Utility Functions'!$AK$3:$AK$8,'Utility Functions'!$AL$3:$AL$8)","v":0.8},{"$f":"valuePL(U30,'Utility Functions'!$AM$3:$AM$5,'Utility Functions'!$AN$3:$AN$5)","v":0},{"$f":"valuePL(V30,'Utility Functions'!$AO$3:$AO$5,'Utility Functions'!$AP$3:$AP$5)","v":1},{"$f":"valuePL(W30,'Utility Functions'!$AQ$3:$AQ$6,'Utility Functions'!$AR$3:$AR$6)","v":0.2},{"$f":"valuePL(X30,'Utility Functions'!$AS$3:$AS$6,'Utility Functions'!$AT$3:$AT$6)","v":0},{"$f":"valuePL(Y30,'Utility Functions'!$AU$3:$AU$6,'Utility Functions'!$AV$3:$AV$6)","v":0.8},{"$f":"valuePL(Z30,'Utility Functions'!$AW$3:$AW$5,'Utility Functions'!$AX$3:$AX$5)","v":0.5},{"$f":"valuePL(AA30,'Utility Functions'!$AY$3:$AY$6,'Utility Functions'!$AZ$3:$AZ$6)","v":0.2},{"$f":"valuePL(AB30,'Utility Functions'!$BA$3:$BA$5,'Utility Functions'!$BB$3:$BB$5)","v":0.25},{"$f":"valuePL(AC30,'Utility Functions'!$BC$3:$BC$5,'Utility Functions'!$BD$3:$BD$5)","v":1},12.453684519169958,null,12.453684519169958,3.0482299737154128,2.4054545454545453,0,3.05,3.95]
[30,{"$f":"valueE(B31,'Utility Functions'!$B$3,'Utility Functions'!$B$4,'Utility Functions'!$B$5,'Utility Functions'!$B$6)","v":0.99864114504770318},{"$f":"valueE(C31,'Utility Functions'!$D$3,'Utility Functions'!$D$4,'Utility Functions'!$D$5,'Utility Functions'!$D$6)","v":0.84744836833951609},{"$f":"valuePL(D31,'Utility Functions'!$E$3:$E$5,'Utility Functions'!$F$3:$F$5)","v":1},{"$f":"valuePL(E31,'Utility Functions'!$G$3:$G$5,'Utility Functions'!$H$3:$H$5)","v":0},{"$f":"valuePL(F31,'Utility Functions'!$I$3:$I$4,'Utility Functions'!$J$3:$J$5)","v":0},{"$f":"valueE(G31,'Utility Functions'!$L$3,'Utility Functions'!$L$4,'Utility Functions'!$L$5,'Utility Functions'!$L$6)","v":0},{"$f":"valueE(H31,'Utility Functions'!$N$3,'Utility Functions'!$N$4,'Utility Functions'!$N$5,'Utility Functions'!$N$6)","v":0},{"$f":"valuePL(I31,'Utility Functions'!$O$3:$O$6,'Utility Functions'!$P$3:$P$6)","v":0},{"$f":"valuePL(J31,'Utility Functions'!$Q$3:$Q$6,'Utility Functions'!$R$3:$R$6)","v":0},{"$f":"valuePL(K31,'Utility Functions'!$S$3:$S$7,'Utility Functions'!$T$3:$T$7)","v":0},{"$f":"valueE(L31,'Utility Functions'!$V$3,'Utility Functions'!$V$4,'Utility Functions'!$V$5,'Utility Functions'!$V$6)","v":0.33333333333333331},{"$f":"valuePL(M31,'Utility Functions'!$W$3:$W$6,'Utility Functions'!$X$3:$X$6)","v":0.04},{"$f":"valueE(N31,'Utility Functions'!$Z$3,'Utility Functions'!$Z$4,'Utility Functions'!$Z$5,'Utility Functions'!$Z$6)","v":0},{"$f":"valuePL(O31,'Utility Functions'!$AA$3:$AA$5,'Utility Functions'!$AB$3:$AB$5)","v":0},{"$f":"valuePL(P31,'Utility Functions'!$AC$3:$AC$7,'Utility Functions'!$AD$3:$AD$7)","v":0},{"$f":"valuePL(Q31,'Utility Functions'!$AE$3:$AE$6,'Utility Functions'!$AF$3:$AF$6)","v":0},{"$f":"valuePL(R31,'Utility Functions'!$AG$3:$AG$6,'Utility Functions'!$AH$3:$AH$6)","v":0.2},{"$f":"valuePL(S31,'Utility Functions'!$AI$3:$AI$6,'Utility Functions'!$AJ$3:$AJ$6)","v":0.33},{"$f":"valuePL(T31,'Utility Functions'!$AK$3:$AK$8,'Utility Functions'!$AL$3:$AL$8)","v":0},{"$f":"valuePL(U31,'Utility Functions'!$AM$3:$AM$5,'Utility Functions'!$AN$3:$AN$5)","v":0},{"$f":"valuePL(V31,'Utility Functions'!$AO$3:$AO$5,'Utility Functions'!$AP$3:$AP$5)","v":0},{"$f":"valuePL(W31,'Utility Functions'!$AQ$3:$AQ$6,'Utility Functions'!$AR$3:$AR$6)","v":1},{"$f":"valuePL(X31,'Utility Functions'!$AS$3:$AS$6,'Utility Functions'!$AT$3:$AT$6)","v":0.2},{"$f":"valuePL(Y31,'Utility Functions'!$AU$3:$AU$6,'Utility Functions'!$AV$3:$AV$6)","v":0.8},{"$f":"valuePL(Z31,'Utility Functions'!$AW$3:$AW$5,'Utility Functions'!$AX$3:$AX$5)","v":0},{"$f":"valuePL(AA31,'Utility Functions'!$AY$3:$AY$6,'Utility Functions'!$AZ$3:$AZ$6)","v":0.89999999999999991},{"$f":"valuePL(AB31,'Utility Functions'!$BA$3:$BA$5,'Utility Functions'!$BB$3:$BB$5)","v":1},{"$f":"valuePL(AC31,'Utility Functions'!$BC$3:$BC$5,'Utility Functions'!$BD$3:$BD$5)","v":0},7.6494228467205527,null,7.6494228467205527,2.846089513387219,0.37333333333333329,0,0.53,3.9]
[31,{"$f":"valueE(B32,'Utility Functions'!$B$3,'Utility Functions'!$B$4,'Utility Functions'!$B$5,'Utility Functions'!$B$6)","v":0.55067187023002029},{"$f":"valueE(C32,'Utility Functions'!$D$3,'Utility Functions'!$D$4,'Utility Functions'!$D$5,'Utility Functions'!$D$6)","v":0.84744836833951609},{"$f":"valuePL(D32,'Utility Functions'!$E$3:$E$5,'Utility Functions'!$F$3:$F$5)","v":0.5},{"$f":"valuePL(E32,'Utility Functions'!$G$3:$G$5,'Utility Functions'!$H$3:$H$5)","v":0},{"$f":"valuePL(F32,'Utility Functions'!$I$3:$I$4,'Utility Functions'!$J$3:$J$5)","v":0},{"$f":"valueE(G32,'Utility Functions'!$L$3,'Utility Functions'!$L$4,'Utility Functions'!$L$5,'Utility Functions'!$L$6)","v":0},{"$f":"valueE(H32,'Utility Functions'!$N$3,'Utility Functions'!$N$4,'Utility Functions'!$N$5,'Utility Functions'!$N$6)","v":0},{"$f":"valuePL(I32,'Utility Functions'!$O$3:$O$6,'Utility Functions'!$P$3:$P$6)","v":0.75454545454545452},{"$f":"valuePL(J32,'Utility Functions'!$Q$3:$Q$6,'Utility Functions'!$R$3:$R$6)","v":0.08},{"$f":"valuePL(K32,'Utility Functions'!$S$3:$S$7,'Utility Functions'!$T$3:$T$7)","v":0},{"$f":"valueE(L32,'Utility Functions'!$V$3,'Utility Functions'!$V$4,'Utility Functions'!$V$5,'Utility Functions'!$V$6)","v":0.33333333333333331},{"$f":"valuePL(M32,'Utility Functions'!$W$3:$W$6,'Utility Functions'!$X$3:$X$6)","v":0.08},{"$f":"valueE(N32,'Utility Functions'!$Z$3,'Utility Functions'!$Z$4,'Utility Functions'!$Z$5,'Utility Functions'!$Z$6)","v":0},{"$f":"valuePL(O32,'Utility Functions'!$AA$3:$AA$5,'Utility Functions'!$AB$3:$AB$5)","v":0},{"$f":"valuePL(P32,'Utility Functions'!$AC$3:$AC$7,'Utility Functions'!$AD$3:$AD$7)","v":0.5},{"$f":"valuePL(Q32,'Utility Functions'!$AE$3:$AE$6,'Utility Functions'!$AF$3:$AF$6)","v":0},{"$f":"valuePL(R32,'Utility Functions'!$AG$3:$AG$6,'Utility Functions'!$AH$3:$AH$6)","v":1},{"$f":"valuePL(S32,'Utility Functions'!$AI$3:$AI$6,'Utility Functions'!$AJ$3:$AJ$6)","v":0.66},{"$f":"valuePL(T32,'Utility Functions'!$AK$3:$AK$8,'Utility Functions'!$AL$3:$AL$8)","v":0.6},{"$f":"valuePL(U32,'Utility Functions'!$AM$3:$AM$5,'Utility Functions'!$AN$3:$AN$5)","v":0},{"$f":"valuePL(V32,'Utility Functions'!$AO$3:$AO$5,'Utility Functions'!$AP$3:$AP$5)","v":0.5},{"$f":"valuePL(W32,'Utility Functions'!$AQ$3:$AQ$6,'Utility Functions'!$AR$3:$AR$6)","v":0},{"$f":"valuePL(X32,'Utility Functions'!$AS$3:$AS$6,'Utility Functions'!$AT$3:$AT$6)","v":0.2},{"$f":"valuePL(Y32,'Utility Functions'!$AU$3:$AU$6,'Utility Functions'!$AV$3:$AV$6)","v":0.2},{"$f":"valuePL(Z32,'Utility Functions'!$AW$3:$AW$5,'Utility Functions'!$AX$3:$AX$5)","v":1},{"$f":"valuePL(AA32,'Utility Functions'!$AY$3:$AY$6,'Utility Functions'!$AZ$3:$AZ$6)","v":0.89999999999999991},{"$f":"valuePL(AB32,'Utility Functions'!$BA$3:$BA$5,'Utility Functions'!$BB$3:$BB$5)","v":0.25},{"$f":"valuePL(AC32,'Utility Functions'!$BC$3:$BC$5,'Utility Functions'!$BD$3:$BD$5)","v":0.25},9.2059990264483247,null,9.2059990264483247,1.8981202385695364,1.2478787878787878,0,2.7600000000000002,3.3]
[32,{"$f":"valueE(B33,'Utility Functions'!$B$3,'Utility Functions'!$B$4,'Utility Functions'!$B$5,'Utility Functions'!$B$6)","v":0.63212151658375171},{"$f":"valueE(C33,'Utility Functions'!$D$3,'Utility Functions'!$D$4,'Utility Functions'!$D$5,'Utility Functions'!$D$6)","v":0.26839655623815994},{"$f":"valuePL(D33,'Utility Functions'!$E$3:$E$5,'Utility Functions'!$F$3:$F$5)","v":1},{"$f":"valuePL(E33,'Utility Functions'!$G$3:$G$5,'Utility Functions'!$H$3:$H$5)","v":1},{"$f":"valuePL(F33,'Utility Functions'!$I$3:$I$4,'Utility Functions'!$J$3:$J$5)","v":1},{"$f":"valueE(G33,'Utility Functions'!$L$3,'Utility Functions'!$L$4,'Utility Functions'!$L$5,'Utility Functions'!$L$6)","v":3.2258064516129031E-2},{"$f":"valueE(H33,'Utility Functions'!$N$3,'Utility Functions'!$N$4,'Utility Functions'!$N$5,'Utility Functions'!$N$6)","v":9.6774193548387094E-2},{"$f":"valuePL(I33,'Utility Functions'!$O$3:$O$6,'Utility Functions'!$P$3:$P$6)","v":0.34545454545454546},{"$f":"valuePL(J33,'Utility Functions'!$Q$3:$Q$6,'Utility Functions'!$R$3:$R$6)","v":1},{"$f":"valuePL(K33,'Utility Functions'!$S$3:$S$7,'Utility Functions'!$T$3:$T$7)","v":0.34545454545454546},{"$f":"valueE(L33,'Utility Functions'!$V$3,'Utility Functions'!$V$4,'Utility Functions'!$V$5,'Utility Functions'!$V$6)","v":1},{"$f":"valuePL(M33,'Utility Functions'!$W$3:$W$6,'Utility Functions'!$X$3:$X$6)","v":1},{"$f":"valueE(N33,'Utility Functions'!$Z$3,'Utility Functions'!$Z$4,'Utility Functions'!$Z$5,'Utility Functions'!$Z$6)","v":0},{"$f":"valuePL(O33,'Utility Functions'!$AA$3:$AA$5,'Utility Functions'!$AB$3:$AB$5)","v":0},{"$f":"valuePL(P33,'Utility Functions'!$AC$3:$AC$7,'Utility Functions'!$AD$3:$AD$7)","v":0.5},{"$f":"valuePL(Q33,'Utility Functions'!$AE$3:$AE$6,'Utility Functions'!$AF$3:$AF$6)","v":1},{"$f":"valuePL(R33,'Utility Functions'!$AG$3:$AG$6,'Utility Functions'!$AH$3:$AH$6)","v":1},{"$f":"valuePL(S33,'Utility Functions'!$AI$3:$AI$6,'Utility Functions'!$AJ$3:$AJ$6)","v":0},{"$f":"valuePL(T33,'Utility Functions'!$AK$3:$AK$8,'Utility Functions'!$AL$3:$AL$8)","v":0.8},{"$f":"valuePL(U33,'Utility Functions'!$AM$3:$AM$5,'Utility Functions'!$AN$3:$AN$5)","v":0},{"$f":"valuePL(V33,'Utility Functions'!$AO$3:$AO$5,'Utility Functions'!$AP$3:$AP$5)","v":0},{"$f":"valuePL(W33,'Utility Functions'!$AQ$3:$AQ$6,'Utility Functions'!$AR$3:$AR$6)","v":0.75},{"$f":"valuePL(X33,'Utility Functions'!$AS$3:$AS$6,'Utility Functions'!$AT$3:$AT$6)","v":0.2},{"$f":"valuePL(Y33,'Utility Functions'!$AU$3:$AU$6,'Utility Functions'!$AV$3:$AV$6)","v":0.8},{"$f":"valuePL(Z33,'Utility Functions'!$AW$3:$AW$5,'Utility Functions'!$AX$3:$AX$5)","v":0.5},{"$f":"valuePL(AA33,'Utility Functions'!$AY$3:$AY$6,'Utility Functions'!$AZ$3:$AZ$6)","v":0},{"$f":"valuePL(AB33,'Utility Functions'!$BA$3:$BA$5,'Utility Functions'!$BB$3:$BB$5)","v":1},{"$f":"valuePL(AC33,'Utility Functions'!$BC$3:$BC$5,'Utility Functions'!$BD$3:$BD$5)","v":0.25},14.52045942179552,null,14.520459421795518,3.9005180728219115,3.8199413489736074,0,3.3,3.5]
[33,{"$f":"valueE(B34,'Utility Functions'!$B$3,'Utility Functions'!$B$4,'Utility Functions'!$B$5,'Utility Functions'!$B$6)","v":0.93919136038504192},{"$f":"valueE(C34,'Utility Functions'!$D$3,'Utility Functions'!$D$4,'Utility Functions'!$D$5,'Utility Functions'!$D$6)","v":0.84744836833951609},{"$f":"valuePL(D34,'Utility Functions'!$E$3:$E$5,'Utility Functions'!$F$3:$F$5)","v":1},{"$f":"valuePL(E34,'Utility Functions'!$G$3:$G$5,'Utility Functions'!$H$3:$H$5)","v":0.5},{"$f":"valuePL(F34,'Utility Functions'!$I$3:$I$4,'Utility Functions'!$J$3:$J$5)","v":0},{"$f":"valueE(G34,'Utility Functions'!$L$3,'Utility Functions'!$L$4,'Utility Functions'!$L$5,'Utility Functions'!$L$6)","v":0},{"$f":"valueE(H34,'Utility Functions'!$N$3,'Utility Functions'!$N$4,'Utility Functions'!$N$5,'Utility Functions'!$N$6)","v":0},{"$f":"valuePL(I34,'Utility Functions'!$O$3:$O$6,'Utility Functions'!$P$3:$P$6)","v":0},{"$f":"valuePL(J34,'Utility Functions'!$Q$3:$Q$6,'Utility Functions'!$R$3:$R$6)","v":0},{"$f":"valuePL(K34,'Utility Functions'!$S$3:$S$7,'Utility Functions'!$T$3:$T$7)","v":0},{"$f":"valueE(L34,'Utility Functions'!$V$3,'Utility Functions'!$V$4,'Utility Functions'!$V$5,'Utility Functions'!$V$6)","v":0.5},{"$f":"valuePL(M34,'Utility Functions'!$W$3:$W$6,'Utility Functions'!$X$3:$X$6)","v":0},{"$f":"valueE(N34,'Utility Functions'!$Z$3,'Utility Functions'!$Z$4,'Utility Functions'!$Z$5,'Utility Functions'!$Z$6)","v":0},{"$f":"valuePL(O34,'Utility Functions'!$AA$3:$AA$5,'Utility Functions'!$AB$3:$AB$5)","v":0},{"$f":"valuePL(P34,'Utility Functions'!$AC$3:$AC$7,'Utility Functions'!$AD$3:$AD$7)","v":0.5},{"$f":"valuePL(Q34,'Utility Functions'!$AE$3:$AE$6,'Utility Functions'!$AF$3:$AF$6)","v":0},{"$f":"valuePL(R34,'Utility Functions'!$AG$3:$AG$6,'Utility Functions'!$AH$3:$AH$6)","v":1},{"$f":"valuePL(S34,'Utility Functions'!$AI$3:$AI$6,'Utility Functions'!$AJ$3:$AJ$6)","v":0.66},{"$f":"valuePL(T34,'Utility Functions'!$AK$3:$AK$8,'Utility Functions'!$AL$3:$AL$8)","v":0},{"$f":"valuePL(U34,'Utility Functions'!$AM$3:$AM$5,'Utility Functions'!$AN$3:$AN$5)","v":0},{"$f":"valuePL(V34,'Utility Functions'!$AO$3:$AO$5,'Utility Functions'!$AP$3:$AP$5)","v":0.5},{"$f":"valuePL(W34,'Utility Functions'!$AQ$3:$AQ$6,'Utility Functions'!$AR$3:$AR$6)","v":1},{"$f":"valuePL(X34,'Utility Functions'!$AS$3:$AS$6,'Utility Functions'!$AT$3:$AT$6)","v":0},{"$f":"valuePL(Y34,'Utility Functions'!$AU$3:$AU$6,'Utility Functions'!$AV$3:$AV$6)","v":0.8},{"$f":"valuePL(Z34,'Utility Functions'!$AW$3:$AW$5,'Utility Functions'!$AX$3:$AX$5)","v":1},{"$f":"valuePL(AA34,'Utility Functions'!$AY$3:$AY$6,'Utility Functions'!$AZ$3:$AZ$6)","v":1},{"$f":"valuePL(AB34,'Utility Functions'!$BA$3:$BA$5,'Utility Functions'!$BB$3:$BB$5)","v":0},{"$f":"valuePL(AC34,'Utility Functions'!$BC$3:$BC$5,'Utility Functions'!$BD$3:$BD$5)","v":0},10.246639728724558,null,10.246639728724558,3.2866397287245581,0.5,0,2.16,4.3]
[34,{"$f":"valueE(B35,'Utility Functions'!$B$3,'Utility Functions'!$B$4,'Utility Functions'!$B$5,'Utility Functions'!$B$6)","v":0},{"$f":"valueE(C35,'Utility Functions'!$D$3,'Utility Functions'!$D$4,'Utility Functions'!$D$5,'Utility Functions'!$D$6)","v":0},{"$f":"valuePL(D35,'Utility Functions'!$E$3:$E$5,'Utility Functions'!$F$3:$F$5)","v":0},{"$f":"valuePL(E35,'Utility Functions'!$G$3:$G$5,'Utility Functions'!$H$3:$H$5)","v":0},{"$f":"valuePL(F35,'Utility Functions'!$I$3:$I$4,'Utility Functions'!$J$3:$J$5)","v":0},{"$f":"valueE(G35,'Utility Functions'!$L$3,'Utility Functions'!$L$4,'Utility Functions'!$L$5,'Utility Functions'!$L$6)","v":0},{"$f":"valueE(H35,'Utility Functions'!$N$3,'Utility Functions'!$N$4,'Utility Functions'!$N$5,'Utility Functions'!$N$6)","v":1.1385199240986717E-2},{"$f":"valuePL(I35,'Utility Functions'!$O$3:$O$6,'Utility Functions'!$P$3:$P$6)","v":1},{"$f":"valuePL(J35,'Utility Functions'!$Q$3:$Q$6,'Utility Functions'!$R$3:$R$6)","v":0.91818181818181821},{"$f":"valuePL(K35,'Utility Functions'!$S$3:$S$7,'Utility Functions'!$T$3:$T$7)","v":1},{"$f":"valueE(L35,'Utility Functions'!$V$3,'Utility Functions'!$V$4,'Utility Functions'!$V$5,'Utility Functions'!$V$6)","v":1},{"$f":"valuePL(M35,'Utility Functions'!$W$3:$W$6,'Utility Functions'!$X$3:$X$6)","v":0.91818181818181821},{"$f":"valueE(N35,'Utility Functions'!$Z$3,'Utility Functions'!$Z$4,'Utility Functions'!$Z$5,'Utility Functions'!$Z$6)","v":0},{"$f":"valuePL(O35,'Utility Functions'!$AA$3:$AA$5,'Utility Functions'!$AB$3:$AB$5)","v":0},{"$f":"valuePL(P35,'Utility Functions'!$AC$3:$AC$7,'Utility Functions'!$AD$3:$AD$7)","v":0.5},{"$f":"valuePL(Q35,'Utility Functions'!$AE$3:$AE$6,'Utility Functions'!$AF$3:$AF$6)","v":0},{"$f":"valuePL(R35,'Utility Functions'!$AG$3:$AG$6,'Utility Functions'!$AH$3:$AH$6)","v":1},{"$f":"valuePL(S35,'Utility Functions'!$AI$3:$AI$6,'Utility Functions'!$AJ$3:$AJ$6)","v":1},{"$f":"valuePL(T35,'Utility Functions'!$AK$3:$AK$8,'Utility Functions'!$AL$3:$AL$8)","v":0.8},{"$f":"valuePL(U35,'Utility Functions'!$AM$3:$AM$5,'Utility Functions'!$AN$3:$AN$5)","v":0},{"$f":"valuePL(V35,'Utility Functions'!$AO$3:$AO$5,'Utility Functions'!$AP$3:$AP$5)","v":1},{"$f":"valuePL(W35,'Utility Functions'!$AQ$3:$AQ$6,'Utility Functions'!$AR$3:$AR$6)","v":1},{"$f":"valuePL(X35,'Utility Functions'!$AS$3:$AS$6,'Utility Functions'!$AT$3:$AT$6)","v":1},{"$f":"valuePL(Y35,'Utility Functions'!$AU$3:$AU$6,'Utility Functions'!$AV$3:$AV$6)","v":0},{"$f":"valuePL(Z35,'Utility Functions'!$AW$3:$AW$5,'Utility Functions'!$AX$3:$AX$5)","v":1},{"$f":"valuePL(AA35,'Utility Functions'!$AY$3:$AY$6,'Utility Functions'!$AZ$3:$AZ$6)","v":0.89999999999999991},{"$f":"valuePL(AB35,'Utility Functions'!$BA$3:$BA$5,'Utility Functions'!$BB$3:$BB$5)","v":0.25},{"$f":"valuePL(AC35,'Utility Functions'!$BC$3:$BC$5,'Utility Functions'!$BD$3:$BD$5)","v":0},13.297748835604624,null,13.297748835604624,0,4.847748835604623,0,3.3,5.15]
[35,{"$f":"valueE(B36,'Utility Functions'!$B$3,'Utility Functions'!$B$4,'Utility Functions'!$B$5,'Utility Functions'!$B$6)","v":0.79810469124896843},{"$f":"valueE(C36,'Utility Functions'!$D$3,'Utility Functions'!$D$4,'Utility Functions'!$D$5,'Utility Functions'!$D$6)","v":0.60939983135101949},{"$f":"valuePL(D36,'Utility Functions'!$E$3:$E$5,'Utility Functions'!$F$3:$F$5)","v":0.5},{"$f":"valuePL(E36,'Utility Functions'!$G$3:$G$5,'Utility Functions'!$H$3:$H$5)","v":0.5},{"$f":"valuePL(F36,'Utility Functions'!$I$3:$I$4,'Utility Functions'!$J$3:$J$5)","v":1},{"$f":"valueE(G36,'Utility Functions'!$L$3,'Utility Functions'!$L$4,'Utility Functions'!$L$5,'Utility Functions'!$L$6)","v":0},{"$f":"valueE(H36,'Utility Functions'!$N$3,'Utility Functions'!$N$4,'Utility Functions'!$N$5,'Utility Functions'!$N$6)","v":0},{"$f":"valuePL(I36,'Utility Functions'!$O$3:$O$6,'Utility Functions'!$P$3:$P$6)","v":0},{"$f":"valuePL(J36,'Utility Functions'!$Q$3:$Q$6,'Utility Functions'!$R$3:$R$6)","v":0},{"$f":"valuePL(K36,'Utility Functions'!$S$3:$S$7,'Utility Functions'!$T$3:$T$7)","v":1},{"$f":"valueE(L36,'Utility Functions'!$V$3,'Utility Functions'!$V$4,'Utility Functions'!$V$5,'Utility Functions'!$V$6)","v":0.66666666666666663},{"$f":"valuePL(M36,'Utility Functions'!$W$3:$W$6,'Utility Functions'!$X$3:$X$6)","v":0.1},{"$f":"valueE(N36,'Utility Functions'!$Z$3,'Utility Functions'!$Z$4,'Utility Functions'!$Z$5,'Utility Functions'!$Z$6)","v":1},{"$f":"valuePL(O36,'Utility Functions'!$AA$3:$AA$5,'Utility Functions'!$AB$3:$AB$5)","v":0},{"$f":"valuePL(P36,'Utility Functions'!$AC$3:$AC$7,'Utility Functions'!$AD$3:$AD$7)","v":0},{"$f":"valuePL(Q36,'Utility Functions'!$AE$3:$AE$6,'Utility Functions'!$AF$3:$AF$6)","v":0},{"$f":"valuePL(R36,'Utility Functions'!$AG$3:$AG$6,'Utility Functions'!$AH$3:$AH$6)","v":1},{"$f":"valuePL(S36,'Utility Functions'!$AI$3:$AI$6,'Utility Functions'!$AJ$3:$AJ$6)","v":1},{"$f":"valuePL(T36,'Utility Functions'!$AK$3:$AK$8,'Utility Functions'!$AL$3:$AL$8)","v":0.6},{"$f":"valuePL(U36,'Utility Functions'!$AM$3:$AM$5,'Utility Functions'!$AN$3:$AN$5)","v":0},{"$f":"valuePL(V36,'Utility Functions'!$AO$3:$AO$5,'Utility Functions'!$AP$3:$AP$5)","v":1},{"$f":"valuePL(W36,'Utility Functions'!$AQ$3:$AQ$6,'Utility Functions'!$AR$3:$AR$6)","v":0.75},{"$f":"valuePL(X36,'Utility Functions'!$AS$3:$AS$6,'Utility Functions'!$AT$3:$AT$6)","v":0},{"$f":"valuePL(Y36,'Utility Functions'!$AU$3:$AU$6,'Utility Functions'!$AV$3:$AV$6)","v":0.2},{"$f":"valuePL(Z36,'Utility Functions'!$AW$3:$AW$5,'Utility Functions'!$AX$3:$AX$5)","v":1},{"$f":"valuePL(AA36,'Utility Functions'!$AY$3:$AY$6,'Utility Functions'!$AZ$3:$AZ$6)","v":0},{"$f":"valuePL(AB36,'Utility Functions'!$BA$3:$BA$5,'Utility Functions'!$BB$3:$BB$5)","v":0.25},{"$f":"valuePL(AC36,'Utility Functions'!$BC$3:$BC$5,'Utility Functions'!$BD$3:$BD$5)","v":0.25},12.224171189266654,null,12.224171189266656,3.407504522599988,1.7666666666666666,1,2.6,3.45]
["Unweighted",{"$f":"SUMPRODUCT(B46:B80,$B$85:$B$119)","v":2.7136958452282869},{"$f":"SUMPRODUCT(C46:C80,$B$85:$B$119)","v":3.3322448952127779},{"$f":"SUMPRODUCT(D46:D80,$B$85:$B$119)","v":3.5},0.5,0,0.94623655913978499,0.3206831119544592,0.75454545454545452,0.08,0,0.66666666666666663,0.12,2,{"$f":"SUMPRODUCT(O46:O80,$B$85:$B$119)","v":0.5},1.25,1.6,4.2,3.99,2.2000000000000002,0.25,3,2.15,2.6000000000000005,2.8000000000000003,3,3.0999999999999996,3.5,1.25,null,null,"Unweighted",{"$f":"SUMPRODUCT(AG46:AG80,$B$85:$B$119)","v":10.045940740441065},{"$f":"SUMPRODUCT(AH46:AH80,$B$85:$B$119)","v":2.8881317923063654},2.5,13.489999999999998,21.4]
["Weighted",{"$f":"B$81*Sens_Mgmt!I$5","v":0.48409032777467054},{"$f":"C$81*Sens_Mgmt!J$5","v":0.56193127070825544},{"$f":"D$81*Sens_Mgmt!K$5","v":0.59773669284039732},{"$f":"E$81*Sens_Mgmt!L$5","v":8.3192485430676366E-2},{"$f":"F$81*Sens_Mgmt!M$5","v":0},{"$f":"G$81*Sens_Mgmt!N$5","v":1.6722881741234887E-3},{"$f":"H$81*Sens_Mgmt!O$5","v":5.6674472211270643E-4},{"$f":"I$81*Sens_Mgmt!P$5","v":2.2636208094956498E-3},{"$f":"J$81*Sens_Mgmt!Q$5","v":2.3386638276662105E-4},{"$f":"K$81*Sens_Mgmt!R$5","v":0},{"$f":"L$81*Sens_Mgmt!S$5","v":1.7599133347190113E-3},{"$f":"M$81*Sens_Mgmt!T$5","v":2.3919628383281698E-4},{"$f":"N$81*Sens_Mgmt!U$5","v":7.1428571428571409E-3},{"$f":"O$81*Sens_Mgmt!V$5","v":5.3571428571428555E-3},{"$f":"P$81*Sens_Mgmt!W$5","v":5.8835476048975602E-3},{"$f":"Q$81*Sens_Mgmt!X$5","v":8.3014546862304282E-3},{"$f":"R$81*Sens_Mgmt!Y$5","v":2.4943396535012614E-2},{"$f":"S$81*Sens_Mgmt!Z$5","v":2.0754385389956841E-2},{"$f":"T$81*Sens_Mgmt!AA$5","v":8.3294411577519052E-3},{"$f":"U$81*Sens_Mgmt!AB$5","v":9.3739185154716675E-4},{"$f":"V$81*Sens_Mgmt!AC$5","v":1.9448702786154504E-2},{"$f":"W$81*Sens_Mgmt!AD$5","v":1.0051857517724829E-2},{"$f":"X$81*Sens_Mgmt!AE$5","v":1.2999819378738382E-2},{"$f":"Y$81*Sens_Mgmt!AF$5","v":1.7397181985873644E-2},{"$f":"Z$81*Sens_Mgmt!AG$5","v":1.6150972149388203E-2},{"$f":"AA$81*Sens_Mgmt!AH$5","v":1.2931691726223823E-2},{"$f":"AB$81*Sens_Mgmt!AI$5","v":1.5483884018842715E-2},{"$f":"AC$81*Sens_Mgmt!AJ$5","v":5.1570743305092703E-3},null,null,"Weighted for SA",{"$f":"AG81*#REF!","v":{"$error":"#REF!"}},{"$f":"AH81*#REF!","v":{"$error":"#REF!"}},{"$f":"AI81*#REF!","v":{"$error":"#REF!"}},{"$f":"AJ81*#REF!","v":{"$error":"#REF!"}},{"$f":"AK81*#REF!","v":{"$error":"#REF!"}}]
[]
[null,"Decision variable","Benefit","Cost"]
[{"$f":"A2","v":1},0,{"$f":"AD46","v":17.117643866192076},{"$f":"AD2","v":700000}]
[2,0,{"$f":"AD47","v":12.641625800575998},{"$f":"AD3","v":5400000}]
[3,0,11.563541444302563,250000]
[4,0,9.2460291931089209,150000]
[5,0,9.5663279251355373,220000]
[6,0,5.9008471271383875,110000]
[7,0,15.54287399641135,1000000]
[8,0,14.227364688589191,5000000]
[9,0,11.893773577166716,25000]
[10,0,9.01,900000]
[11,0,13.174032258064516,1500000]
[12,1,9.4195802436719873,100000]
[13,0,7.5245670174228056,250000]
[14,0,10.338706637075108,500000]
[15,0,15.150477261414375,800000]
[16,0,15.119696969696969,2000000]
[17,0,10.876550515651747,500000]
[18,1,10.178462998102468,300000]
[19,0,9.3165012474871283,750000]
[20,0,15.091255033092194,1500000]
[21,0,9.5500000000000007,900000]
[22,0,9.471742567994939,750000]
[23,0,9.5321507448123199,1000000]
[24,0,9.4968811881212041,150000]
[25,1,13.870607417804099,250000]
[26,0,11.064076562960208,500000]
[27,0,9.0147596715374529,1200000]
[28,0,12.499282052393189,500000]
[29,0,12.453684519169958,2000000]
[30,1,7.6494228467205527,250000]
[31,1,9.2059990264483247,650000]
[32,0,14.52045942179552,200000]
[33,0,10.246639728724558,400000]
[34,0,13.297748835604624,900000]
[35,0,12.224171189266654,900000]
[null,{"$f":"SUM(B85:B119)","v":5},{"$f":"SUMPRODUCT(C85:C119,B85:B119)","v":50.324072532747437},{"$f":"SUMPRODUCT(B85:B119,D85:D119)","v":1550000}]
[]
[null,null,"Cost constraint"]

{"sheet":"Portfolio_B_Mgmt","index":39,"n_rows":122,"n_cols":37,"rows_kept":122,"cut":false,"hidden":false,"merged":[]}
["Project","manage_species","manage_spatial","manage_uncertainty","manage_currentpractices","manage_adaptivemanagement","pop_a","pop_b","pop_spatialscope","pop_temporalscope","hab_quantity","hab_quality","hab_temporal","ecoprocess_spp","ecoprocess_uncertainty","datasharing","broaderimpacts","exisitingpriorities","partners","leverage","alignment","objhyp","response","targettaxa","surveydesign","stats","datamanagement","budget","timeline","cost"]
[1,9,6.25,2,2,0,186,1054,75,5,0,2,0,0,0,4,0,2,3,0,0,2,3,3,3,2,3,2,2,700000]
[2,3,28.2,1,0,0,0,0,0,0,0,2,0,4,1,0,0,3,3,0,0,2,3,3,3,2,3,2,2,5400000]
[3,8,28.2,2,0,0,0,0,0,0,0,2,0,5,1,0,2,0,0,0,1,2,3,3,3,2,1,2,2,250000]
[4,1,6.25,2,0,0,0,0,0,0,0,2,0,4,1,0,1,3,3,4,0,1,3,3,1,0,0,2,1,150000]
[5,4,3.1,2,0,0,0,0,50,2,0,2,0,0,0,0,1,3,3,4,1,0,3,3,2,0,0,2,1,220000]
[6,10,6.2E-2,2,0,0,0,0,10,2,0,2,0,0,0,0,1,0,3,3,0,0,0,3,0,0,0,2,1,110000]
[7,52,18.8,0,2,0,0,0,85,12,85,8,12,8,1,0,0,3,3,0,0,2,0,1,3,2,2,0,2,1000000]
[8,3,18.8,2,1,1,0,0,14,14,14,8,14,0,0,0,3,1,3,0,0,2,3,3,3,2,0,1,1,5000000]
[9,9,15.6,2,1,0,70,140,0,0,0,2,0,0,0,3,0,3,2,1,0,2,3,3,1,2,1,1,2,25000]
[10,0,0,0,0,0,0,0,0,0,0,2,0,6,2,1,2,3,2,2,0,0,2,3,3,1,1,0,2,900000]
[11,0,0,0,0,0,6,102,52,15,52,8,15,3,1,1,0,3,3,2,2,2,1,3,3,1,2,0,1,1500000]
[12,2,15.6,2,1,0,0,0,0,0,0,2,0,0,0,0,1,3,3,3,0,1,1,3,1,2,1,2,0,100000]
[13,0,0,0,0,0,0,12,39,2,39,8,2,7,1,1,0,3,3,0,0,1,0,1,0,2,1,1,1,250000]
[14,6,15.6,1,1,0,0,0,0,0,0,2,0,6,1,1,0,3,3,0,0,1,1,3,3,1,2,1,1,500000]
[15,23,12.5,2,1,1,0,0,23,3,23,8,3,1,2,2,0,2,3,3,2,0,3,1,1,2,3,2,1,800000]
[16,0,0,0,0,0,0,0,100,15,100,7,15,0,0,3,0,3,3,5,0,2,2,2,1,2,3,2,2,2000000]
[17,2,15.6,2,1,1,58,290,0,0,0,8,3,0,0,0,0,3,2,0,0,2,3,1,0,1,0,2,1,500000]
[18,0,0,0,0,0,0,30,0,0,0,2,0,8,1,1,3,3,3,5,1,2,2,1,2,1,2,1,0,300000]
[19,8,3.125,1,2,0,0,0,0,0,0,2,0,8,2,0,0,2,3,0,0,1,1,3,2,0,1,0,1,750000]
[20,9,15.6,1,2,0,0,435,76,10,76,6,10,8,2,1,0,3,3,3,2,1,0,0,1,2,1,0,1,1500000]
[21,0,0,0,0,0,0,0,0,0,0,2,0,8,2,0,1,3,3,5,1,0,2,3,1,0,3,1,2,900000]
[22,0,0,0,0,0,16,64,0,0,0,2,0,1,2,4,2,2,3,5,0,1,2,1,0,2,1,2,1,750000]
[23,9,18.8,2,0,0,0,0,0,0,0,2,0,0,0,3,0,3,3,5,0,2,1,2,1,1,1,0,1,1000000]
[24,5,6.25,2,0,0,0,0,0,0,0,2,0,0,0,0,0,3,3,5,0,0,3,1,3,2,1,0,2,150000]
[25,9,18.8,2,0,0,176,308,0,0,0,2,0,8,1,2,2,3,3,0,0,2,1,3,2,1,1,2,2,250000]
[26,17,18.8,2,1,0,0,0,0,0,0,2,0,0,0,3,0,3,3,4,0,2,1,0,2,0,1,2,2,500000]
[27,0,6.25,2,0,0,0,0,0,0,80,2,5,0,0,2,2,3,3,5,0,1,2,3,1,0,0,0,0,1200000]
[28,3,6.25,2,0,1,0,0,0,0,0,4,5,0,0,4,0,3,3,4,0,2,3,3,1,0,2,2,1,500000]
[29,9,12.5,2,1,0,0,0,15,12,15,8,12,0,0,1,0,3,3,4,0,2,1,0,2,1,1,1,2,2000000]
[30,33,18.8,2,0,0,0,0,0,0,0,4,2,0,0,0,0,1,1,0,0,0,3,1,2,0,2,2,0,250000]
[31,4,18.8,1,0,0,0,0,65,4,0,4,4,0,0,2,0,3,2,3,0,1,0,1,1,2,2,1,1,650000]
[32,5,3.125,2,2,1,6,102,40,16,40,8,16,0,0,2,3,3,0,4,0,0,2,1,2,1,0,2,1,200000]
[33,14,18.8,2,1,0,0,0,0,0,0,5,0,0,0,2,0,3,2,0,0,1,3,0,2,2,3,0,0,400000]
[34,0,0,0,0,0,0,12,100,15,100,8,15,0,0,2,0,3,3,4,0,2,3,3,0,2,2,1,0,900000]
[35,8,9.4,1,1,1,0,0,0,0,100,6,5,8,0,0,0,3,3,3,0,2,2,0,1,2,0,1,1,900000]
["CV",{"$f":"_xlfn.STDEV.S(B2:B36)/AVERAGE(B2:B36)","v":1.383842854444886},{"$f":"_xlfn.STDEV.S(C2:C36)/AVERAGE(C2:C36)","v":0.84395823753626376},{"$f":"_xlfn.STDEV.S(D2:D36)/AVERAGE(D2:D36)","v":0.65948586466528381},{"$f":"_xlfn.STDEV.S(E2:E36)/AVERAGE(E2:E36)","v":1.2933654230908831},2.2305806858480666,2.9881459898804135,2.7250501152884543,1.5394659205075842,1.5790297611729722,1.6828143944790142,0.63288342730791625,1.4346340567392073,1.2744250477591585,1.2909944487358058,1.043011114951035,1.4910544805781871,0.32582327651393111,0.30721159062514791,0.8219511329380369,2.1760730956581078,0.64975875258290616,0.58618247649425104,0.61083323417736113,0.63333947951472869,0.68629571860885286,0.76505300516434493,0.69428102652373402,0.60312027652595823]
["sd",{"$f":"_xlfn.STDEV.S(B2:B36)","v":10.477667326511279}]
["mean",{"$f":"AVERAGE(B2:B36)","v":7.5714285714285712}]
[null,{"$f":"B1","v":"manage_species"},{"$f":"C1","v":"manage_spatial"},"manage_uncertainty","manage_currentpractices","manage_adaptivemanagement","pop_a","pop_b","pop_spatialscope","pop_temporalscope","hab_quantity","hab_quality","hab_temporal","ecoprocess_spp","ecoprocess_uncertainty","datasharing","broaderimpacts","exisitingpriorities","partners","leverage","alignment","objhyp","response","targettaxa","surveydesign","stats","datamanagement","budget","timeline"]
[null,"Metric 1","Metric 2","Metric 3","Metric 4","Metric 5","Metric 6a","Metric 6b","Metric 7","Metric 8","Metric 9","Metric 10","Metric 11","Metric 12","Metric 13","Metric 14","Metric 15","Metric 16","Metric 17","Metric 18","Metric 19","Metric 20","Metric 21","Metric 22","Metric 23","Metric 24","Metric 25","Metric 26","Metric 27"]
["Weights",0.03,0.03,0.03,0.03,0.04,1.4999999999999999E-2,1.4999999999999999E-2,0.03,0.02,0.02,0.02,0.02,0.03,0.09,0.04,0.04,0.05,0.05,0.03,0.03,0.05,0.04,0.04,0.05,0.05,0.04,0.04,0.03]
[]
[null,"Unweighted"]
["Project",null,null,null,null,null,null,null,null,null,null,null,null,null,null,null,null,null,null,null,null,null,null,null,null,null,null,null,null,"Unweighted total",null,"Unweighted total","management","status","ecol_proc","integration","rigor"]
[{"$f":"A2","v":1},{"$f":"valueE(B2,'Utility Functions'!$B$3,'Utility Functions'!$B$4,'Utility Functions'!$B$5,'Utility Functions'!$B$6)","v":0.83470237647280454},{"$f":"valueE(C2,'Utility Functions'!$D$3,'Utility Functions'!$D$4,'Utility Functions'!$D$5,'Utility Functions'!$D$6)","v":0.46475967153745396},{"$f":"valuePL(D2,'Utility Functions'!$E$3:$E$5,'Utility Functions'!$F$3:$F$5)","v":1},{"$f":"valuePL(E2,'Utility Functions'!$G$3:$G$5,'Utility Functions'!$H$3:$H$5)","v":1},{"$f":"valuePL(F2,'Utility Functions'!$I$3:$I$4,'Utility Functions'!$J$3:$J$5)","v":0},{"$f":"valueE(G2,'Utility Functions'!$L$3,'Utility Functions'!$L$4,'Utility Functions'!$L$5,'Utility Functions'!$L$6)","v":1},{"$f":"valueE(H2,'Utility Functions'!$N$3,'Utility Functions'!$N$4,'Utility Functions'!$N$5,'Utility Functions'!$N$6)","v":1},{"$f":"valuePL(I2,'Utility Functions'!$O$3:$O$6,'Utility Functions'!$P$3:$P$6)","v":0.91818181818181821},{"$f":"valuePL(J2,'Utility Functions'!$Q$3:$Q$6,'Utility Functions'!$R$3:$R$6)","v":0.1},{"$f":"valuePL(K2,'Utility Functions'!$S$3:$S$7,'Utility Functions'!$T$3:$T$7)","v":0},{"$f":"valueE(L2,'Utility Functions'!$V$3,'Utility Functions'!$V$4,'Utility Functions'!$V$5,'Utility Functions'!$V$6)","v":0},{"$f":"valuePL(M2,'Utility Functions'!$W$3:$W$6,'Utility Functions'!$X$3:$X$6)","v":0},{"$f":"valueE(N2,'Utility Functions'!$Z$3,'Utility Functions'!$Z$4,'Utility Functions'!$Z$5,'Utility Functions'!$Z$6)","v":0},{"$f":"valuePL(O2,'Utility Functions'!$AA$3:$AA$5,'Utility Functions'!$AB$3:$AB$5)","v":0},{"$f":"valuePL(P2,'Utility Functions'!$AC$3:$AC$7,'Utility Functions'!$AD$3:$AD$7)","v":1},{"$f":"valuePL(Q2,'Utility Functions'!$AE$3:$AE$6,'Utility Functions'!$AF$3:$AF$6)","v":0},{"$f":"valuePL(R2,'Utility Functions'!$AG$3:$AG$6,'Utility Functions'!$AH$3:$AH$6)","v":0.8},{"$f":"valuePL(S2,'Utility Functions'!$AI$3:$AI$6,'Utility Functions'!$AJ$3:$AJ$6)","v":1},{"$f":"valuePL(T2,'Utility Functions'!$AK$3:$AK$8,'Utility Functions'!$AL$3:$AL$8)","v":0},{"$f":"valuePL(U2,'Utility Functions'!$AM$3:$AM$5,'Utility Functions'!$AN$3:$AN$5)","v":0},{"$f":"valuePL(V2,'Utility Functions'!$AO$3:$AO$5,'Utility Functions'!$AP$3:$AP$5)","v":1},{"$f":"valuePL(W2,'Utility Functions'!$AQ$3:$AQ$6,'Utility Functions'!$AR$3:$AR$6)","v":1},{"$f":"valuePL(X2,'Utility Functions'!$AS$3:$AS$6,'Utility Functions'!$AT$3:$AT$6)","v":1},{"$f":"valuePL(Y2,'Utility Functions'!$AU$3:$AU$6,'Utility Functions'!$AV$3:$AV$6)","v":1},{"$f":"valuePL(Z2,'Utility Functions'!$AW$3:$AW$5,'Utility Functions'!$AX$3:$AX$5)","v":1},{"$f":"valuePL(AA2,'Utility Functions'!$AY$3:$AY$6,'Utility Functions'!$AZ$3:$AZ$6)","v":1},{"$f":"valuePL(AB2,'Utility Functions'!$BA$3:$BA$5,'Utility Functions'!$BB$3:$BB$5)","v":1},{"$f":"valuePL(AC2,'Utility Functions'!$BC$3:$BC$5,'Utility Functions'!$BD$3:$BD$5)","v":1},{"$f":"SUM(B46:AC46)","v":17.117643866192076},null,{"$f":"SUM(AG46:AK46)","v":17.117643866192076},{"$f":"SUM(B46:F46)","v":3.2994620480102586},{"$f":"SUM(G46:M46)","v":3.0181818181818181},{"$f":"SUM(N46:O46)","v":0},{"$f":"SUM(P46:U46)","v":2.8},{"$f":"SUM(V46:AC46)","v":8}]
[2,{"$f":"valueE(B3,'Utility Functions'!$B$3,'Utility Functions'!$B$4,'Utility Functions'!$B$5,'Utility Functions'!$B$6)","v":0.4511890475224023},{"$f":"valueE(C3,'Utility Functions'!$D$3,'Utility Functions'!$D$4,'Utility Functions'!$D$5,'Utility Functions'!$D$6)","v":0.94043675305359531},{"$f":"valuePL(D3,'Utility Functions'!$E$3:$E$5,'Utility Functions'!$F$3:$F$5)","v":0.5},{"$f":"valuePL(E3,'Utility Functions'!$G$3:$G$5,'Utility Functions'!$H$3:$H$5)","v":0},{"$f":"valuePL(F3,'Utility Functions'!$I$3:$I$4,'Utility Functions'!$J$3:$J$5)","v":0},{"$f":"valueE(G3,'Utility Functions'!$L$3,'Utility Functions'!$L$4,'Utility Functions'!$L$5,'Utility Functions'!$L$6)","v":0},{"$f":"valueE(H3,'Utility Functions'!$N$3,'Utility Functions'!$N$4,'Utility Functions'!$N$5,'Utility Functions'!$N$6)","v":0},{"$f":"valuePL(I3,'Utility Functions'!$O$3:$O$6,'Utility Functions'!$P$3:$P$6)","v":0},{"$f":"valuePL(J3,'Utility Functions'!$Q$3:$Q$6,'Utility Functions'!$R$3:$R$6)","v":0},{"$f":"valuePL(K3,'Utility Functions'!$S$3:$S$7,'Utility Functions'!$T$3:$T$7)","v":0},{"$f":"valueE(L3,'Utility Functions'!$V$3,'Utility Functions'!$V$4,'Utility Functions'!$V$5,'Utility Functions'!$V$6)","v":0},{"$f":"valuePL(M3,'Utility Functions'!$W$3:$W$6,'Utility Functions'!$X$3:$X$6)","v":0},{"$f":"valueE(N3,'Utility Functions'!$Z$3,'Utility Functions'!$Z$4,'Utility Functions'!$Z$5,'Utility Functions'!$Z$6)","v":0.5},{"$f":"valuePL(O3,'Utility Functions'!$AA$3:$AA$5,'Utility Functions'!$AB$3:$AB$5)","v":0.25},{"$f":"valuePL(P3,'Utility Functions'!$AC$3:$AC$7,'Utility Functions'!$AD$3:$AD$7)","v":0},{"$f":"valuePL(Q3,'Utility Functions'!$AE$3:$AE$6,'Utility Functions'!$AF$3:$AF$6)","v":0},{"$f":"valuePL(R3,'Utility Functions'!$AG$3:$AG$6,'Utility Functions'!$AH$3:$AH$6)","v":1},{"$f":"valuePL(S3,'Utility Functions'!$AI$3:$AI$6,'Utility Functions'!$AJ$3:$AJ$6)","v":1},{"$f":"valuePL(T3,'Utility Functions'!$AK$3:$AK$8,'Utility Functions'!$AL$3:$AL$8)","v":0},{"$f":"valuePL(U3,'Utility Functions'!$AM$3:$AM$5,'Utility Functions'!$AN$3:$AN$5)","v":0},{"$f":"valuePL(V3,'Utility Functions'!$AO$3:$AO$5,'Utility Functions'!$AP$3:$AP$5)","v":1},{"$f":"valuePL(W3,'Utility Functions'!$AQ$3:$AQ$6,'Utility Functions'!$AR$3:$AR$6)","v":1},{"$f":"valuePL(X3,'Utility Functions'!$AS$3:$AS$6,'Utility Functions'!$AT$3:$AT$6)","v":1},{"$f":"valuePL(Y3,'Utility Functions'!$AU$3:$AU$6,'Utility Functions'!$AV$3:$AV$6)","v":1},{"$f":"valuePL(Z3,'Utility Functions'!$AW$3:$AW$5,'Utility Functions'!$AX$3:$AX$5)","v":1},{"$f":"valuePL(AA3,'Utility Functions'!$AY$3:$AY$6,'Utility Functions'!$AZ$3:$AZ$6)","v":1},{"$f":"valuePL(AB3,'Utility Functions'!$BA$3:$BA$5,'Utility Functions'!$BB$3:$BB$5)","v":1},{"$f":"valuePL(AC3,'Utility Functions'!$BC$3:$BC$5,'Utility Functions'!$BD$3:$BD$5)","v":1},{"$f":"SUM(B47:AC47)","v":12.641625800575998},null,{"$f":"SUM(AG47:AK47)","v":12.641625800575998},{"$f":"SUM(B47:F47)","v":1.8916258005759976},{"$f":"SUM(G47:M47)","v":0},{"$f":"SUM(N47:O47)","v":0.75},{"$f":"SUM(P47:U47)","v":2},{"$f":"SUM(V47:AC47)","v":8}]
[3,{"$f":"valueE(B4,'Utility Functions'!$B$3,'Utility Functions'!$B$4,'Utility Functions'!$B$5,'Utility Functions'!$B$6)","v":0.79810469124896843},{"$f":"valueE(C4,'Utility Functions'!$D$3,'Utility Functions'!$D$4,'Utility Functions'!$D$5,'Utility Functions'!$D$6)","v":0.94043675305359531},{"$f":"valuePL(D4,'Utility Functions'!$E$3:$E$5,'Utility Functions'!$F$3:$F$5)","v":1},{"$f":"valuePL(E4,'Utility Functions'!$G$3:$G$5,'Utility Functions'!$H$3:$H$5)","v":0},{"$f":"valuePL(F4,'Utility Functions'!$I$3:$I$4,'Utility Functions'!$J$3:$J$5)","v":0},{"$f":"valueE(G4,'Utility Functions'!$L$3,'Utility Functions'!$L$4,'Utility Functions'!$L$5,'Utility Functions'!$L$6)","v":0},{"$f":"valueE(H4,'Utility Functions'!$N$3,'Utility Functions'!$N$4,'Utility Functions'!$N$5,'Utility Functions'!$N$6)","v":0},{"$f":"valuePL(I4,'Utility Functions'!$O$3:$O$6,'Utility Functions'!$P$3:$P$6)","v":0},{"$f":"valuePL(J4,'Utility Functions'!$Q$3:$Q$6,'Utility Functions'!$R$3:$R$6)","v":0},{"$f":"valuePL(K4,'Utility Functions'!$S$3:$S$7,'Utility Functions'!$T$3:$T$7)","v":0},{"$f":"valueE(L4,'Utility Functions'!$V$3,'Utility Functions'!$V$4,'Utility Functions'!$V$5,'Utility Functions'!$V$6)","v":0},{"$f":"valuePL(M4,'Utility Functions'!$W$3:$W$6,'Utility Functions'!$X$3:$X$6)","v":0},{"$f":"valueE(N4,'Utility Functions'!$Z$3,'Utility Functions'!$Z$4,'Utility Functions'!$Z$5,'Utility Functions'!$Z$6)","v":0.625},{"$f":"valuePL(O4,'Utility Functions'!$AA$3:$AA$5,'Utility Functions'!$AB$3:$AB$5)","v":0.25},{"$f":"valuePL(P4,'Utility Functions'!$AC$3:$AC$7,'Utility Functions'!$AD$3:$AD$7)","v":0},{"$f":"valuePL(Q4,'Utility Functions'!$AE$3:$AE$6,'Utility Functions'!$AF$3:$AF$6)","v":0.5},{"$f":"valuePL(R4,'Utility Functions'!$AG$3:$AG$6,'Utility Functions'!$AH$3:$AH$6)","v":0},{"$f":"valuePL(S4,'Utility Functions'!$AI$3:$AI$6,'Utility Functions'!$AJ$3:$AJ$6)","v":0},{"$f":"valuePL(T4,'Utility Functions'!$AK$3:$AK$8,'Utility Functions'!$AL$3:$AL$8)","v":0},{"$f":"valuePL(U4,'Utility Functions'!$AM$3:$AM$5,'Utility Functions'!$AN$3:$AN$5)","v":0.25},{"$f":"valuePL(V4,'Utility Functions'!$AO$3:$AO$5,'Utility Functions'!$AP$3:$AP$5)","v":1},{"$f":"valuePL(W4,'Utility Functions'!$AQ$3:$AQ$6,'Utility Functions'!$AR$3:$AR$6)","v":1},{"$f":"valuePL(X4,'Utility Functions'!$AS$3:$AS$6,'Utility Functions'!$AT$3:$AT$6)","v":1},{"$f":"valuePL(Y4,'Utility Functions'!$AU$3:$AU$6,'Utility Functions'!$AV$3:$AV$6)","v":1},{"$f":"valuePL(Z4,'Utility Functions'!$AW$3:$AW$5,'Utility Functions'!$AX$3:$AX$5)","v":1},{"$f":"valuePL(AA4,'Utility Functions'!$AY$3:$AY$6,'Utility Functions'!$AZ$3:$AZ$6)","v":0.2},{"$f":"valuePL(AB4,'Utility Functions'!$BA$3:$BA$5,'Utility Functions'!$BB$3:$BB$5)","v":1},{"$f":"valuePL(AC4,'Utility Functions'!$BC$3:$BC$5,'Utility Functions'!$BD$3:$BD$5)","v":1},11.563541444302563,null,11.563541444302565,2.7385414443025637,0,0.875,0.75,7.2]
[4,{"$f":"valueE(B5,'Utility Functions'!$B$3,'Utility Functions'!$B$4,'Utility Functions'!$B$5,'Utility Functions'!$B$6)","v":0.1812695215714665},{"$f":"valueE(C5,'Utility Functions'!$D$3,'Utility Functions'!$D$4,'Utility Functions'!$D$5,'Utility Functions'!$D$6)","v":0.46475967153745396},{"$f":"valuePL(D5,'Utility Functions'!$E$3:$E$5,'Utility Functions'!$F$3:$F$5)","v":1},{"$f":"valuePL(E5,'Utility Functions'!$G$3:$G$5,'Utility Functions'!$H$3:$H$5)","v":0},{"$f":"valuePL(F5,'Utility Functions'!$I$3:$I$4,'Utility Functions'!$J$3:$J$5)","v":0},{"$f":"valueE(G5,'Utility Functions'!$L$3,'Utility Functions'!$L$4,'Utility Functions'!$L$5,'Utility Functions'!$L$6)","v":0},{"$f":"valueE(H5,'Utility Functions'!$N$3,'Utility Functions'!$N$4,'Utility Functions'!$N$5,'Utility Functions'!$N$6)","v":0},{"$f":"valuePL(I5,'Utility Functions'!$O$3:$O$6,'Utility Functions'!$P$3:$P$6)","v":0},{"$f":"valuePL(J5,'Utility Functions'!$Q$3:$Q$6,'Utility Functions'!$R$3:$R$6)","v":0},{"$f":"valuePL(K5,'Utility Functions'!$S$3:$S$7,'Utility Functions'!$T$3:$T$7)","v":0},{"$f":"valueE(L5,'Utility Functions'!$V$3,'Utility Functions'!$V$4,'Utility Functions'!$V$5,'Utility Functions'!$V$6)","v":0},{"$f":"valuePL(M5,'Utility Functions'!$W$3:$W$6,'Utility Functions'!$X$3:$X$6)","v":0},{"$f":"valueE(N5,'Utility Functions'!$Z$3,'Utility Functions'!$Z$4,'Utility Functions'!$Z$5,'Utility Functions'!$Z$6)","v":0.5},{"$f":"valuePL(O5,'Utility Functions'!$AA$3:$AA$5,'Utility Functions'!$AB$3:$AB$5)","v":0.25},{"$f":"valuePL(P5,'Utility Functions'!$AC$3:$AC$7,'Utility Functions'!$AD$3:$AD$7)","v":0},{"$f":"valuePL(Q5,'Utility Functions'!$AE$3:$AE$6,'Utility Functions'!$AF$3:$AF$6)","v":0.1},{"$f":"valuePL(R5,'Utility Functions'!$AG$3:$AG$6,'Utility Functions'!$AH$3:$AH$6)","v":1},{"$f":"valuePL(S5,'Utility Functions'!$AI$3:$AI$6,'Utility Functions'!$AJ$3:$AJ$6)","v":1},{"$f":"valuePL(T5,'Utility Functions'!$AK$3:$AK$8,'Utility Functions'!$AL$3:$AL$8)","v":0.8},{"$f":"valuePL(U5,'Utility Functions'!$AM$3:$AM$5,'Utility Functions'!$AN$3:$AN$5)","v":0},{"$f":"valuePL(V5,'Utility Functions'!$AO$3:$AO$5,'Utility Functions'!$AP$3:$AP$5)","v":0.5},{"$f":"valuePL(W5,'Utility Functions'!$AQ$3:$AQ$6,'Utility Functions'!$AR$3:$AR$6)","v":1},{"$f":"valuePL(X5,'Utility Functions'!$AS$3:$AS$6,'Utility Functions'!$AT$3:$AT$6)","v":1},{"$f":"valuePL(Y5,'Utility Functions'!$AU$3:$AU$6,'Utility Functions'!$AV$3:$AV$6)","v":0.2},{"$f":"valuePL(Z5,'Utility Functions'!$AW$3:$AW$5,'Utility Functions'!$AX$3:$AX$5)","v":0},{"$f":"valuePL(AA5,'Utility Functions'!$AY$3:$AY$6,'Utility Functions'!$AZ$3:$AZ$6)","v":0},{"$f":"valuePL(AB5,'Utility Functions'!$BA$3:$BA$5,'Utility Functions'!$BB$3:$BB$5)","v":1},{"$f":"valuePL(AC5,'Utility Functions'!$BC$3:$BC$5,'Utility Functions'!$BD$3:$BD$5)","v":0.25},9.2460291931089209,null,9.2460291931089209,1.6460291931089204,0,0.75,2.9000000000000004,3.95]
[5,{"$f":"valueE(B6,'Utility Functions'!$B$3,'Utility Functions'!$B$4,'Utility Functions'!$B$5,'Utility Functions'!$B$6)","v":0.55067187023002029},{"$f":"valueE(C6,'Utility Functions'!$D$3,'Utility Functions'!$D$4,'Utility Functions'!$D$5,'Utility Functions'!$D$6)","v":0.26656514581460788},{"$f":"valuePL(D6,'Utility Functions'!$E$3:$E$5,'Utility Functions'!$F$3:$F$5)","v":1},{"$f":"valuePL(E6,'Utility Functions'!$G$3:$G$5,'Utility Functions'!$H$3:$H$5)","v":0},{"$f":"valuePL(F6,'Utility Functions'!$I$3:$I$4,'Utility Functions'!$J$3:$J$5)","v":0},{"$f":"valueE(G6,'Utility Functions'!$L$3,'Utility Functions'!$L$4,'Utility Functions'!$L$5,'Utility Functions'!$L$6)","v":0},{"$f":"valueE(H6,'Utility Functions'!$N$3,'Utility Functions'!$N$4,'Utility Functions'!$N$5,'Utility Functions'!$N$6)","v":0},{"$f":"valuePL(I6,'Utility Functions'!$O$3:$O$6,'Utility Functions'!$P$3:$P$6)","v":0.50909090909090915},{"$f":"valuePL(J6,'Utility Functions'!$Q$3:$Q$6,'Utility Functions'!$R$3:$R$6)","v":0.04},{"$f":"valuePL(K6,'Utility Functions'!$S$3:$S$7,'Utility Functions'!$T$3:$T$7)","v":0},{"$f":"valueE(L6,'Utility Functions'!$V$3,'Utility Functions'!$V$4,'Utility Functions'!$V$5,'Utility Functions'!$V$6)","v":0},{"$f":"valuePL(M6,'Utility Functions'!$W$3:$W$6,'Utility Functions'!$X$3:$X$6)","v":0},{"$f":"valueE(N6,'Utility Functions'!$Z$3,'Utility Functions'!$Z$4,'Utility Functions'!$Z$5,'Utility Functions'!$Z$6)","v":0},{"$f":"valuePL(O6,'Utility Functions'!$AA$3:$AA$5,'Utility Functions'!$AB$3:$AB$5)","v":0},{"$f":"valuePL(P6,'Utility Functions'!$AC$3:$AC$7,'Utility Functions'!$AD$3:$AD$7)","v":0},{"$f":"valuePL(Q6,'Utility Functions'!$AE$3:$AE$6,'Utility Functions'!$AF$3:$AF$6)","v":0.1},{"$f":"valuePL(R6,'Utility Functions'!$AG$3:$AG$6,'Utility Functions'!$AH$3:$AH$6)","v":1},{"$f":"valuePL(S6,'Utility Functions'!$AI$3:$AI$6,'Utility Functions'!$AJ$3:$AJ$6)","v":1},{"$f":"valuePL(T6,'Utility Functions'!$AK$3:$AK$8,'Utility Functions'!$AL$3:$AL$8)","v":0.8},{"$f":"valuePL(U6,'Utility Functions'!$AM$3:$AM$5,'Utility Functions'!$AN$3:$AN$5)","v":0.25},{"$f":"valuePL(V6,'Utility Functions'!$AO$3:$AO$5,'Utility Functions'!$AP$3:$AP$5)","v":0},{"$f":"valuePL(W6,'Utility Functions'!$AQ$3:$AQ$6,'Utility Functions'!$AR$3:$AR$6)","v":1},{"$f":"valuePL(X6,'Utility Functions'!$AS$3:$AS$6,'Utility Functions'!$AT$3:$AT$6)","v":1},{"$f":"valuePL(Y6,'Utility Functions'!$AU$3:$AU$6,'Utility Functions'!$AV$3:$AV$6)","v":0.8},{"$f":"valuePL(Z6,'Utility Functions'!$AW$3:$AW$5,'Utility Functions'!$AX$3:$AX$5)","v":0},{"$f":"valuePL(AA6,'Utility Functions'!$AY$3:$AY$6,'Utility Functions'!$AZ$3:$AZ$6)","v":0},{"$f":"valuePL(AB6,'Utility Functions'!$BA$3:$BA$5,'Utility Functions'!$BB$3:$BB$5)","v":1},{"$f":"valuePL(AC6,'Utility Functions'!$BC$3:$BC$5,'Utility Functions'!$BD$3:$BD$5)","v":0.25},9.5663279251355373,null,9.5663279251355391,1.8172370160446283,0.54909090909090918,0,3.1500000000000004,4.05]
[6,{"$f":"valueE(B7,'Utility Functions'!$B$3,'Utility Functions'!$B$4,'Utility Functions'!$B$5,'Utility Functions'!$B$6)","v":0.86466602685702687},{"$f":"valueE(C7,'Utility Functions'!$D$3,'Utility Functions'!$D$4,'Utility Functions'!$D$5,'Utility Functions'!$D$6)","v":6.1811002813601471E-3},{"$f":"valuePL(D7,'Utility Functions'!$E$3:$E$5,'Utility Functions'!$F$3:$F$5)","v":1},{"$f":"valuePL(E7,'Utility Functions'!$G$3:$G$5,'Utility Functions'!$H$3:$H$5)","v":0},{"$f":"valuePL(F7,'Utility Functions'!$I$3:$I$4,'Utility Functions'!$J$3:$J$5)","v":0},{"$f":"valueE(G7,'Utility Functions'!$L$3,'Utility Functions'!$L$4,'Utility Functions'!$L$5,'Utility Functions'!$L$6)","v":0},{"$f":"valueE(H7,'Utility Functions'!$N$3,'Utility Functions'!$N$4,'Utility Functions'!$N$5,'Utility Functions'!$N$6)","v":0},{"$f":"valuePL(I7,'Utility Functions'!$O$3:$O$6,'Utility Functions'!$P$3:$P$6)","v":0.04},{"$f":"valuePL(J7,'Utility Functions'!$Q$3:$Q$6,'Utility Functions'!$R$3:$R$6)","v":0.04},{"$f":"valuePL(K7,'Utility Functions'!$S$3:$S$7,'Utility Functions'!$T$3:$T$7)","v":0},{"$f":"valueE(L7,'Utility Functions'!$V$3,'Utility Functions'!$V$4,'Utility Functions'!$V$5,'Utility Functions'!$V$6)","v":0},{"$f":"valuePL(M7,'Utility Functions'!$W$3:$W$6,'Utility Functions'!$X$3:$X$6)","v":0},{"$f":"valueE(N7,'Utility Functions'!$Z$3,'Utility Functions'!$Z$4,'Utility Functions'!$Z$5,'Utility Functions'!$Z$6)","v":0},{"$f":"valuePL(O7,'Utility Functions'!$AA$3:$AA$5,'Utility Functions'!$AB$3:$AB$5)","v":0},{"$f":"valuePL(P7,'Utility Functions'!$AC$3:$AC$7,'Utility Functions'!$AD$3:$AD$7)","v":0},{"$f":"valuePL(Q7,'Utility Functions'!$AE$3:$AE$6,'Utility Functions'!$AF$3:$AF$6)","v":0.1},{"$f":"valuePL(R7,'Utility Functions'!$AG$3:$AG$6,'Utility Functions'!$AH$3:$AH$6)","v":0},{"$f":"valuePL(S7,'Utility Functions'!$AI$3:$AI$6,'Utility Functions'!$AJ$3:$AJ$6)","v":1},{"$f":"valuePL(T7,'Utility Functions'!$AK$3:$AK$8,'Utility Functions'!$AL$3:$AL$8)","v":0.6},{"$f":"valuePL(U7,'Utility Functions'!$AM$3:$AM$5,'Utility Functions'!$AN$3:$AN$5)","v":0},{"$f":"valuePL(V7,'Utility Functions'!$AO$3:$AO$5,'Utility Functions'!$AP$3:$AP$5)","v":0},{"$f":"valuePL(W7,'Utility Functions'!$AQ$3:$AQ$6,'Utility Functions'!$AR$3:$AR$6)","v":0},{"$f":"valuePL(X7,'Utility Functions'!$AS$3:$AS$6,'Utility Functions'!$AT$3:$AT$6)","v":1},{"$f":"valuePL(Y7,'Utility Functions'!$AU$3:$AU$6,'Utility Functions'!$AV$3:$AV$6)","v":0},{"$f":"valuePL(Z7,'Utility Functions'!$AW$3:$AW$5,'Utility Functions'!$AX$3:$AX$5)","v":0},{"$f":"valuePL(AA7,'Utility Functions'!$AY$3:$AY$6,'Utility Functions'!$AZ$3:$AZ$6)","v":0},{"$f":"valuePL(AB7,'Utility Functions'!$BA$3:$BA$5,'Utility Functions'!$BB$3:$BB$5)","v":1},{"$f":"valuePL(AC7,'Utility Functions'!$BC$3:$BC$5,'Utility Functions'!$BD$3:$BD$5)","v":0.25},5.9008471271383875,null,5.9008471271383875,1.8708471271383869,0.08,0,1.7000000000000002,2.25]
[7,{"$f":"valueE(B8,'Utility Functions'!$B$3,'Utility Functions'!$B$4,'Utility Functions'!$B$5,'Utility Functions'!$B$6)","v":0.99997108261728973},{"$f":"valueE(C8,'Utility Functions'!$D$3,'Utility Functions'!$D$4,'Utility Functions'!$D$5,'Utility Functions'!$D$6)","v":0.84744836833951609},{"$f":"valuePL(D8,'Utility Functions'!$E$3:$E$5,'Utility Functions'!$F$3:$F$5)","v":0},{"$f":"valuePL(E8,'Utility Functions'!$G$3:$G$5,'Utility Functions'!$H$3:$H$5)","v":1},{"$f":"valuePL(F8,'Utility Functions'!$I$3:$I$4,'Utility Functions'!$J$3:$J$5)","v":0},{"$f":"valueE(G8,'Utility Functions'!$L$3,'Utility Functions'!$L$4,'Utility Functions'!$L$5,'Utility Functions'!$L$6)","v":0},{"$f":"valueE(H8,'Utility Functions'!$N$3,'Utility Functions'!$N$4,'Utility Functions'!$N$5,'Utility Functions'!$N$6)","v":0},{"$f":"valuePL(I8,'Utility Functions'!$O$3:$O$6,'Utility Functions'!$P$3:$P$6)","v":1},{"$f":"valuePL(J8,'Utility Functions'!$Q$3:$Q$6,'Utility Functions'!$R$3:$R$6)","v":0.67272727272727273},{"$f":"valuePL(K8,'Utility Functions'!$S$3:$S$7,'Utility Functions'!$T$3:$T$7)","v":1},{"$f":"valueE(L8,'Utility Functions'!$V$3,'Utility Functions'!$V$4,'Utility Functions'!$V$5,'Utility Functions'!$V$6)","v":1},{"$f":"valuePL(M8,'Utility Functions'!$W$3:$W$6,'Utility Functions'!$X$3:$X$6)","v":0.67272727272727273},{"$f":"valueE(N8,'Utility Functions'!$Z$3,'Utility Functions'!$Z$4,'Utility Functions'!$Z$5,'Utility Functions'!$Z$6)","v":1},{"$f":"valuePL(O8,'Utility Functions'!$AA$3:$AA$5,'Utility Functions'!$AB$3:$AB$5)","v":0.25},{"$f":"valuePL(P8,'Utility Functions'!$AC$3:$AC$7,'Utility Functions'!$AD$3:$AD$7)","v":0},{"$f":"valuePL(Q8,'Utility Functions'!$AE$3:$AE$6,'Utility Functions'!$AF$3:$AF$6)","v":0},{"$f":"valuePL(R8,'Utility Functions'!$AG$3:$AG$6,'Utility Functions'!$AH$3:$AH$6)","v":1},{"$f":"valuePL(S8,'Utility Functions'!$AI$3:$AI$6,'Utility Functions'!$AJ$3:$AJ$6)","v":1},{"$f":"valuePL(T8,'Utility Functions'!$AK$3:$AK$8,'Utility Functions'!$AL$3:$AL$8)","v":0},{"$f":"valuePL(U8,'Utility Functions'!$AM$3:$AM$5,'Utility Functions'!$AN$3:$AN$5)","v":0},{"$f":"valuePL(V8,'Utility Functions'!$AO$3:$AO$5,'Utility Functions'!$AP$3:$AP$5)","v":1},{"$f":"valuePL(W8,'Utility Functions'!$AQ$3:$AQ$6,'Utility Functions'!$AR$3:$AR$6)","v":0},{"$f":"valuePL(X8,'Utility Functions'!$AS$3:$AS$6,'Utility Functions'!$AT$3:$AT$6)","v":0.2},{"$f":"valuePL(Y8,'Utility Functions'!$AU$3:$AU$6,'Utility Functions'!$AV$3:$AV$6)","v":1},{"$f":"valuePL(Z8,'Utility Functions'!$AW$3:$AW$5,'Utility Functions'!$AX$3:$AX$5)","v":1},{"$f":"valuePL(AA8,'Utility Functions'!$AY$3:$AY$6,'Utility Functions'!$AZ$3:$AZ$6)","v":0.89999999999999991},{"$f":"valuePL(AB8,'Utility Functions'!$BA$3:$BA$5,'Utility Functions'!$BB$3:$BB$5)","v":0},{"$f":"valuePL(AC8,'Utility Functions'!$BC$3:$BC$5,'Utility Functions'!$BD$3:$BD$5)","v":1},15.54287399641135,null,15.54287399641135,2.8474194509568056,4.3454545454545457,1.25,2,5.0999999999999996]
[8,{"$f":"valueE(B9,'Utility Functions'!$B$3,'Utility Functions'!$B$4,'Utility Functions'!$B$5,'Utility Functions'!$B$6)","v":0.4511890475224023},{"$f":"valueE(C9,'Utility Functions'!$D$3,'Utility Functions'!$D$4,'Utility Functions'!$D$5,'Utility Functions'!$D$6)","v":0.84744836833951609},{"$f":"valuePL(D9,'Utility Functions'!$E$3:$E$5,'Utility Functions'!$F$3:$F$5)","v":1},{"$f":"valuePL(E9,'Utility Functions'!$G$3:$G$5,'Utility Functions'!$H$3:$H$5)","v":0.5},{"$f":"valuePL(F9,'Utility Functions'!$I$3:$I$4,'Utility Functions'!$J$3:$J$5)","v":1},{"$f":"valueE(G9,'Utility Functions'!$L$3,'Utility Functions'!$L$4,'Utility Functions'!$L$5,'Utility Functions'!$L$6)","v":0},{"$f":"valueE(H9,'Utility Functions'!$N$3,'Utility Functions'!$N$4,'Utility Functions'!$N$5,'Utility Functions'!$N$6)","v":0},{"$f":"valuePL(I9,'Utility Functions'!$O$3:$O$6,'Utility Functions'!$P$3:$P$6)","v":5.6000000000000008E-2},{"$f":"valuePL(J9,'Utility Functions'!$Q$3:$Q$6,'Utility Functions'!$R$3:$R$6)","v":0.83636363636363631},{"$f":"valuePL(K9,'Utility Functions'!$S$3:$S$7,'Utility Functions'!$T$3:$T$7)","v":0},{"$f":"valueE(L9,'Utility Functions'!$V$3,'Utility Functions'!$V$4,'Utility Functions'!$V$5,'Utility Functions'!$V$6)","v":1},{"$f":"valuePL(M9,'Utility Functions'!$W$3:$W$6,'Utility Functions'!$X$3:$X$6)","v":0.83636363636363631},{"$f":"valueE(N9,'Utility Functions'!$Z$3,'Utility Functions'!$Z$4,'Utility Functions'!$Z$5,'Utility Functions'!$Z$6)","v":0},{"$f":"valuePL(O9,'Utility Functions'!$AA$3:$AA$5,'Utility Functions'!$AB$3:$AB$5)","v":0},{"$f":"valuePL(P9,'Utility Functions'!$AC$3:$AC$7,'Utility Functions'!$AD$3:$AD$7)","v":0},{"$f":"valuePL(Q9,'Utility Functions'!$AE$3:$AE$6,'Utility Functions'!$AF$3:$AF$6)","v":1},{"$f":"valuePL(R9,'Utility Functions'!$AG$3:$AG$6,'Utility Functions'!$AH$3:$AH$6)","v":0.2},{"$f":"valuePL(S9,'Utility Functions'!$AI$3:$AI$6,'Utility Functions'!$AJ$3:$AJ$6)","v":1},{"$f":"valuePL(T9,'Utility Functions'!$AK$3:$AK$8,'Utility Functions'!$AL$3:$AL$8)","v":0},{"$f":"valuePL(U9,'Utility Functions'!$AM$3:$AM$5,'Utility Functions'!$AN$3:$AN$5)","v":0},{"$f":"valuePL(V9,'Utility Functions'!$AO$3:$AO$5,'Utility Functions'!$AP$3:$AP$5)","v":1},{"$f":"valuePL(W9,'Utility Functions'!$AQ$3:$AQ$6,'Utility Functions'!$AR$3:$AR$6)","v":1},{"$f":"valuePL(X9,'Utility Functions'!$AS$3:$AS$6,'Utility Functions'!$AT$3:$AT$6)","v":1},{"$f":"valuePL(Y9,'Utility Functions'!$AU$3:$AU$6,'Utility Functions'!$AV$3:$AV$6)","v":1},{"$f":"valuePL(Z9,'Utility Functions'!$AW$3:$AW$5,'Utility Functions'!$AX$3:$AX$5)","v":1},{"$f":"valuePL(AA9,'Utility Functions'!$AY$3:$AY$6,'Utility Functions'!$AZ$3:$AZ$6)","v":0},{"$f":"valuePL(AB9,'Utility Functions'!$BA$3:$BA$5,'Utility Functions'!$BB$3:$BB$5)","v":0.25},{"$f":"valuePL(AC9,'Utility Functions'!$BC$3:$BC$5,'Utility Functions'!$BD$3:$BD$5)","v":0.25},14.227364688589191,null,14.227364688589191,3.7986374158619185,2.7287272727272729,0,2.2000000000000002,5.5]
[9,{"$f":"valueE(B10,'Utility Functions'!$B$3,'Utility Functions'!$B$4,'Utility Functions'!$B$5,'Utility Functions'!$B$6)","v":0.83470237647280454},{"$f":"valueE(C10,'Utility Functions'!$D$3,'Utility Functions'!$D$4,'Utility Functions'!$D$5,'Utility Functions'!$D$6)","v":0.78989979019422951},{"$f":"valuePL(D10,'Utility Functions'!$E$3:$E$5,'Utility Functions'!$F$3:$F$5)","v":1},{"$f":"valuePL(E10,'Utility Functions'!$G$3:$G$5,'Utility Functions'!$H$3:$H$5)","v":0.5},{"$f":"valuePL(F10,'Utility Functions'!$I$3:$I$4,'Utility Functions'!$J$3:$J$5)","v":0},{"$f":"valueE(G10,'Utility Functions'!$L$3,'Utility Functions'!$L$4,'Utility Functions'!$L$5,'Utility Functions'!$L$6)","v":0.37634408602150538},{"$f":"valueE(H10,'Utility Functions'!$N$3,'Utility Functions'!$N$4,'Utility Functions'!$N$5,'Utility Functions'!$N$6)","v":0.13282732447817835},{"$f":"valuePL(I10,'Utility Functions'!$O$3:$O$6,'Utility Functions'!$P$3:$P$6)","v":0},{"$f":"valuePL(J10,'Utility Functions'!$Q$3:$Q$6,'Utility Functions'!$R$3:$R$6)","v":0},{"$f":"valuePL(K10,'Utility Functions'!$S$3:$S$7,'Utility Functions'!$T$3:$T$7)","v":0},{"$f":"valueE(L10,'Utility Functions'!$V$3,'Utility Functions'!$V$4,'Utility Functions'!$V$5,'Utility Functions'!$V$6)","v":0},{"$f":"valuePL(M10,'Utility Functions'!$W$3:$W$6,'Utility Functions'!$X$3:$X$6)","v":0},{"$f":"valueE(N10,'Utility Functions'!$Z$3,'Utility Functions'!$Z$4,'Utility Functions'!$Z$5,'Utility Functions'!$Z$6)","v":0},{"$f":"valuePL(O10,'Utility Functions'!$AA$3:$AA$5,'Utility Functions'!$AB$3:$AB$5)","v":0},{"$f":"valuePL(P10,'Utility Functions'!$AC$3:$AC$7,'Utility Functions'!$AD$3:$AD$7)","v":0.75},{"$f":"valuePL(Q10,'Utility Functions'!$AE$3:$AE$6,'Utility Functions'!$AF$3:$AF$6)","v":0},{"$f":"valuePL(R10,'Utility Functions'!$AG$3:$AG$6,'Utility Functions'!$AH$3:$AH$6)","v":1},{"$f":"valuePL(S10,'Utility Functions'!$AI$3:$AI$6,'Utility Functions'!$AJ$3:$AJ$6)","v":0.66},{"$f":"valuePL(T10,'Utility Functions'!$AK$3:$AK$8,'Utility Functions'!$AL$3:$AL$8)","v":0.2},{"$f":"valuePL(U10,'Utility Functions'!$AM$3:$AM$5,'Utility Functions'!$AN$3:$AN$5)","v":0},{"$f":"valuePL(V10,'Utility Functions'!$AO$3:$AO$5,'Utility Functions'!$AP$3:$AP$5)","v":1},{"$f":"valuePL(W10,'Utility Functions'!$AQ$3:$AQ$6,'Utility Functions'!$AR$3:$AR$6)","v":1},{"$f":"valuePL(X10,'Utility Functions'!$AS$3:$AS$6,'Utility Functions'!$AT$3:$AT$6)","v":1},{"$f":"valuePL(Y10,'Utility Functions'!$AU$3:$AU$6,'Utility Functions'!$AV$3:$AV$6)","v":0.2},{"$f":"valuePL(Z10,'Utility Functions'!$AW$3:$AW$5,'Utility Functions'!$AX$3:$AX$5)","v":1},{"$f":"valuePL(AA10,'Utility Functions'!$AY$3:$AY$6,'Utility Functions'!$AZ$3:$AZ$6)","v":0.2},{"$f":"valuePL(AB10,'Utility Functions'!$BA$3:$BA$5,'Utility Functions'!$BB$3:$BB$5)","v":0.25},{"$f":"valuePL(AC10,'Utility Functions'!$BC$3:$BC$5,'Utility Functions'!$BD$3:$BD$5)","v":1},11.893773577166716,null,11.893773577166719,3.1246021666670343,0.50917141049968373,0,2.6100000000000003,5.65]
[10,{"$f":"valueE(B11,'Utility Functions'!$B$3,'Utility Functions'!$B$4,'Utility Functions'!$B$5,'Utility Functions'!$B$6)","v":0},{"$f":"valueE(C11,'Utility Functions'!$D$3,'Utility Functions'!$D$4,'Utility Functions'!$D$5,'Utility Functions'!$D$6)","v":0},{"$f":"valuePL(D11,'Utility Functions'!$E$3:$E$5,'Utility Functions'!$F$3:$F$5)","v":0},{"$f":"valuePL(E11,'Utility Functions'!$G$3:$G$5,'Utility Functions'!$H$3:$H$5)","v":0},{"$f":"valuePL(F11,'Utility Functions'!$I$3:$I$4,'Utility Functions'!$J$3:$J$5)","v":0},{"$f":"valueE(G11,'Utility Functions'!$L$3,'Utility Functions'!$L$4,'Utility Functions'!$L$5,'Utility Functions'!$L$6)","v":0},{"$f":"valueE(H11,'Utility Functions'!$N$3,'Utility Functions'!$N$4,'Utility Functions'!$N$5,'Utility Functions'!$N$6)","v":0},{"$f":"valuePL(I11,'Utility Functions'!$O$3:$O$6,'Utility Functions'!$P$3:$P$6)","v":0},{"$f":"valuePL(J11,'Utility Functions'!$Q$3:$Q$6,'Utility Functions'!$R$3:$R$6)","v":0},{"$f":"valuePL(K11,'Utility Functions'!$S$3:$S$7,'Utility Functions'!$T$3:$T$7)","v":0},{"$f":"valueE(L11,'Utility Functions'!$V$3,'Utility Functions'!$V$4,'Utility Functions'!$V$5,'Utility Functions'!$V$6)","v":0},{"$f":"valuePL(M11,'Utility Functions'!$W$3:$W$6,'Utility Functions'!$X$3:$X$6)","v":0},{"$f":"valueE(N11,'Utility Functions'!$Z$3,'Utility Functions'!$Z$4,'Utility Functions'!$Z$5,'Utility Functions'!$Z$6)","v":0.75},{"$f":"valuePL(O11,'Utility Functions'!$AA$3:$AA$5,'Utility Functions'!$AB$3:$AB$5)","v":1},{"$f":"valuePL(P11,'Utility Functions'!$AC$3:$AC$7,'Utility Functions'!$AD$3:$AD$7)","v":0.25},{"$f":"valuePL(Q11,'Utility Functions'!$AE$3:$AE$6,'Utility Functions'!$AF$3:$AF$6)","v":0.5},{"$f":"valuePL(R11,'Utility Functions'!$AG$3:$AG$6,'Utility Functions'!$AH$3:$AH$6)","v":1},{"$f":"valuePL(S11,'Utility Functions'!$AI$3:$AI$6,'Utility Functions'!$AJ$3:$AJ$6)","v":0.66},{"$f":"valuePL(T11,'Utility Functions'!$AK$3:$AK$8,'Utility Functions'!$AL$3:$AL$8)","v":0.4},{"$f":"valuePL(U11,'Utility Functions'!$AM$3:$AM$5,'Utility Functions'!$AN$3:$AN$5)","v":0},{"$f":"valuePL(V11,'Utility Functions'!$AO$3:$AO$5,'Utility Functions'!$AP$3:$AP$5)","v":0},{"$f":"valuePL(W11,'Utility Functions'!$AQ$3:$AQ$6,'Utility Functions'!$AR$3:$AR$6)","v":0.75},{"$f":"valuePL(X11,'Utility Functions'!$AS$3:$AS$6,'Utility Functions'!$AT$3:$AT$6)","v":1},{"$f":"valuePL(Y11,'Utility Functions'!$AU$3:$AU$6,'Utility Functions'!$AV$3:$AV$6)","v":1},{"$f":"valuePL(Z11,'Utility Functions'!$AW$3:$AW$5,'Utility Functions'!$AX$3:$AX$5)","v":0.5},{"$f":"valuePL(AA11,'Utility Functions'!$AY$3:$AY$6,'Utility Functions'!$AZ$3:$AZ$6)","v":0.2},{"$f":"valuePL(AB11,'Utility Functions'!$BA$3:$BA$5,'Utility Functions'!$BB$3:$BB$5)","v":0},{"$f":"valuePL(AC11,'Utility Functions'!$BC$3:$BC$5,'Utility Functions'!$BD$3:$BD$5)","v":1},9.01,null,9.0100000000000016,0,0,1.75,2.81,4.45]
[11,{"$f":"valueE(B12,'Utility Functions'!$B$3,'Utility Functions'!$B$4,'Utility Functions'!$B$5,'Utility Functions'!$B$6)","v":0},{"$f":"valueE(C12,'Utility Functions'!$D$3,'Utility Functions'!$D$4,'Utility Functions'!$D$5,'Utility Functions'!$D$6)","v":0},{"$f":"valuePL(D12,'Utility Functions'!$E$3:$E$5,'Utility Functions'!$F$3:$F$5)","v":0},{"$f":"valuePL(E12,'Utility Functions'!$G$3:$G$5,'Utility Functions'!$H$3:$H$5)","v":0},{"$f":"valuePL(F12,'Utility Functions'!$I$3:$I$4,'Utility Functions'!$J$3:$J$5)","v":0},{"$f":"valueE(G12,'Utility Functions'!$L$3,'Utility Functions'!$L$4,'Utility Functions'!$L$5,'Utility Functions'!$L$6)","v":3.2258064516129031E-2},{"$f":"valueE(H12,'Utility Functions'!$N$3,'Utility Functions'!$N$4,'Utility Functions'!$N$5,'Utility Functions'!$N$6)","v":9.6774193548387094E-2},{"$f":"valuePL(I12,'Utility Functions'!$O$3:$O$6,'Utility Functions'!$P$3:$P$6)","v":0.54181818181818187},{"$f":"valuePL(J12,'Utility Functions'!$Q$3:$Q$6,'Utility Functions'!$R$3:$R$6)","v":0.91818181818181821},{"$f":"valuePL(K12,'Utility Functions'!$S$3:$S$7,'Utility Functions'!$T$3:$T$7)","v":0.54181818181818187},{"$f":"valueE(L12,'Utility Functions'!$V$3,'Utility Functions'!$V$4,'Utility Functions'!$V$5,'Utility Functions'!$V$6)","v":1},{"$f":"valuePL(M12,'Utility Functions'!$W$3:$W$6,'Utility Functions'!$X$3:$X$6)","v":0.91818181818181821},{"$f":"valueE(N12,'Utility Functions'!$Z$3,'Utility Functions'!$Z$4,'Utility Functions'!$Z$5,'Utility Functions'!$Z$6)","v":0.375},{"$f":"valuePL(O12,'Utility Functions'!$AA$3:$AA$5,'Utility Functions'!$AB$3:$AB$5)","v":0.25},{"$f":"valuePL(P12,'Utility Functions'!$AC$3:$AC$7,'Utility Functions'!$AD$3:$AD$7)","v":0.25},{"$f":"valuePL(Q12,'Utility Functions'!$AE$3:$AE$6,'Utility Functions'!$AF$3:$AF$6)","v":0},{"$f":"valuePL(R12,'Utility Functions'!$AG$3:$AG$6,'Utility Functions'!$AH$3:$AH$6)","v":1},{"$f":"valuePL(S12,'Utility Functions'!$AI$3:$AI$6,'Utility Functions'!$AJ$3:$AJ$6)","v":1},{"$f":"valuePL(T12,'Utility Functions'!$AK$3:$AK$8,'Utility Functions'!$AL$3:$AL$8)","v":0.4},{"$f":"valuePL(U12,'Utility Functions'!$AM$3:$AM$5,'Utility Functions'!$AN$3:$AN$5)","v":1},{"$f":"valuePL(V12,'Utility Functions'!$AO$3:$AO$5,'Utility Functions'!$AP$3:$AP$5)","v":1},{"$f":"valuePL(W12,'Utility Functions'!$AQ$3:$AQ$6,'Utility Functions'!$AR$3:$AR$6)","v":0.2},{"$f":"valuePL(X12,'Utility Functions'!$AS$3:$AS$6,'Utility Functions'!$AT$3:$AT$6)","v":1},{"$f":"valuePL(Y12,'Utility Functions'!$AU$3:$AU$6,'Utility Functions'!$AV$3:$AV$6)","v":1},{"$f":"valuePL(Z12,'Utility Functions'!$AW$3:$AW$5,'Utility Functions'!$AX$3:$AX$5)","v":0.5},{"$f":"valuePL(AA12,'Utility Functions'!$AY$3:$AY$6,'Utility Functions'!$AZ$3:$AZ$6)","v":0.89999999999999991},{"$f":"valuePL(AB12,'Utility Functions'!$BA$3:$BA$5,'Utility Functions'!$BB$3:$BB$5)","v":0},{"$f":"valuePL(AC12,'Utility Functions'!$BC$3:$BC$5,'Utility Functions'!$BD$3:$BD$5)","v":0.25},13.174032258064516,null,13.174032258064516,0,4.0490322580645159,0.625,3.65,4.8499999999999996]
[12,{"$f":"valueE(B13,'Utility Functions'!$B$3,'Utility Functions'!$B$4,'Utility Functions'!$B$5,'Utility Functions'!$B$6)","v":0.32968045347775865},{"$f":"valueE(C13,'Utility Functions'!$D$3,'Utility Functions'!$D$4,'Utility Functions'!$D$5,'Utility Functions'!$D$6)","v":0.78989979019422951},{"$f":"valuePL(D13,'Utility Functions'!$E$3:$E$5,'Utility Functions'!$F$3:$F$5)","v":1},{"$f":"valuePL(E13,'Utility Functions'!$G$3:$G$5,'Utility Functions'!$H$3:$H$5)","v":0.5},{"$f":"valuePL(F13,'Utility Functions'!$I$3:$I$4,'Utility Functions'!$J$3:$J$5)","v":0},{"$f":"valueE(G13,'Utility Functions'!$L$3,'Utility Functions'!$L$4,'Utility Functions'!$L$5,'Utility Functions'!$L$6)","v":0},{"$f":"valueE(H13,'Utility Functions'!$N$3,'Utility Functions'!$N$4,'Utility Functions'!$N$5,'Utility Functions'!$N$6)","v":0},{"$f":"valuePL(I13,'Utility Functions'!$O$3:$O$6,'Utility Functions'!$P$3:$P$6)","v":0},{"$f":"valuePL(J13,'Utility Functions'!$Q$3:$Q$6,'Utility Functions'!$R$3:$R$6)","v":0},{"$f":"valuePL(K13,'Utility Functions'!$S$3:$S$7,'Utility Functions'!$T$3:$T$7)","v":0},{"$f":"valueE(L13,'Utility Functions'!$V$3,'Utility Functions'!$V$4,'Utility Functions'!$V$5,'Utility Functions'!$V$6)","v":0},{"$f":"valuePL(M13,'Utility Functions'!$W$3:$W$6,'Utility Functions'!$X$3:$X$6)","v":0},{"$f":"valueE(N13,'Utility Functions'!$Z$3,'Utility Functions'!$Z$4,'Utility Functions'!$Z$5,'Utility Functions'!$Z$6)","v":0},{"$f":"valuePL(O13,'Utility Functions'!$AA$3:$AA$5,'Utility Functions'!$AB$3:$AB$5)","v":0},{"$f":"valuePL(P13,'Utility Functions'!$AC$3:$AC$7,'Utility Functions'!$AD$3:$AD$7)","v":0},{"$f":"valuePL(Q13,'Utility Functions'!$AE$3:$AE$6,'Utility Functions'!$AF$3:$AF$6)","v":0.1},{"$f":"valuePL(R13,'Utility Functions'!$AG$3:$AG$6,'Utility Functions'!$AH$3:$AH$6)","v":1},{"$f":"valuePL(S13,'Utility Functions'!$AI$3:$AI$6,'Utility Functions'!$AJ$3:$AJ$6)","v":1},{"$f":"valuePL(T13,'Utility Functions'!$AK$3:$AK$8,'Utility Functions'!$AL$3:$AL$8)","v":0.6},{"$f":"valuePL(U13,'Utility Functions'!$AM$3:$AM$5,'Utility Functions'!$AN$3:$AN$5)","v":0},{"$f":"valuePL(V13,'Utility Functions'!$AO$3:$AO$5,'Utility Functions'!$AP$3:$AP$5)","v":0.5},{"$f":"valuePL(W13,'Utility Functions'!$AQ$3:$AQ$6,'Utility Functions'!$AR$3:$AR$6)","v":0.2},{"$f":"valuePL(X13,'Utility Functions'!$AS$3:$AS$6,'Utility Functions'!$AT$3:$AT$6)","v":1},{"$f":"valuePL(Y13,'Utility Functions'!$AU$3:$AU$6,'Utility Functions'!$AV$3:$AV$6)","v":0.2},{"$f":"valuePL(Z13,'Utility Functions'!$AW$3:$AW$5,'Utility Functions'!$AX$3:$AX$5)","v":1},{"$f":"valuePL(AA13,'Utility Functions'!$AY$3:$AY$6,'Utility Functions'!$AZ$3:$AZ$6)","v":0.2},{"$f":"valuePL(AB13,'Utility Functions'!$BA$3:$BA$5,'Utility Functions'!$BB$3:$BB$5)","v":1},{"$f":"valuePL(AC13,'Utility Functions'!$BC$3:$BC$5,'Utility Functions'!$BD$3:$BD$5)","v":0},9.4195802436719873,null,9.4195802436719873,2.6195802436719884,0,0,2.7,4.0999999999999996]
[13,{"$f":"valueE(B14,'Utility Functions'!$B$3,'Utility Functions'!$B$4,'Utility Functions'!$B$5,'Utility Functions'!$B$6)","v":0},{"$f":"valueE(C14,'Utility Functions'!$D$3,'Utility Functions'!$D$4,'Utility Functions'!$D$5,'Utility Functions'!$D$6)","v":0},{"$f":"valuePL(D14,'Utility Functions'!$E$3:$E$5,'Utility Functions'!$F$3:$F$5)","v":0},{"$f":"valuePL(E14,'Utility Functions'!$G$3:$G$5,'Utility Functions'!$H$3:$H$5)","v":0},{"$f":"valuePL(F14,'Utility Functions'!$I$3:$I$4,'Utility Functions'!$J$3:$J$5)","v":0},{"$f":"valueE(G14,'Utility Functions'!$L$3,'Utility Functions'!$L$4,'Utility Functions'!$L$5,'Utility Functions'!$L$6)","v":0},{"$f":"valueE(H14,'Utility Functions'!$N$3,'Utility Functions'!$N$4,'Utility Functions'!$N$5,'Utility Functions'!$N$6)","v":1.1385199240986717E-2},{"$f":"valuePL(I14,'Utility Functions'!$O$3:$O$6,'Utility Functions'!$P$3:$P$6)","v":0.3290909090909091},{"$f":"valuePL(J14,'Utility Functions'!$Q$3:$Q$6,'Utility Functions'!$R$3:$R$6)","v":0.04},{"$f":"valuePL(K14,'Utility Functions'!$S$3:$S$7,'Utility Functions'!$T$3:$T$7)","v":0.3290909090909091},{"$f":"valueE(L14,'Utility Functions'!$V$3,'Utility Functions'!$V$4,'Utility Functions'!$V$5,'Utility Functions'!$V$6)","v":1},{"$f":"valuePL(M14,'Utility Functions'!$W$3:$W$6,'Utility Functions'!$X$3:$X$6)","v":0.04},{"$f":"valueE(N14,'Utility Functions'!$Z$3,'Utility Functions'!$Z$4,'Utility Functions'!$Z$5,'Utility Functions'!$Z$6)","v":0.875},{"$f":"valuePL(O14,'Utility Functions'!$AA$3:$AA$5,'Utility Functions'!$AB$3:$AB$5)","v":0.25},{"$f":"valuePL(P14,'Utility Functions'!$AC$3:$AC$7,'Utility Functions'!$AD$3:$AD$7)","v":0.25},{"$f":"valuePL(Q14,'Utility Functions'!$AE$3:$AE$6,'Utility Functions'!$AF$3:$AF$6)","v":0},{"$f":"valuePL(R14,'Utility Functions'!$AG$3:$AG$6,'Utility Functions'!$AH$3:$AH$6)","v":1},{"$f":"valuePL(S14,'Utility Functions'!$AI$3:$AI$6,'Utility Functions'!$AJ$3:$AJ$6)","v":1},{"$f":"valuePL(T14,'Utility Functions'!$AK$3:$AK$8,'Utility Functions'!$AL$3:$AL$8)","v":0},{"$f":"valuePL(U14,'Utility Functions'!$AM$3:$AM$5,'Utility Functions'!$AN$3:$AN$5)","v":0},{"$f":"valuePL(V14,'Utility Functions'!$AO$3:$AO$5,'Utility Functions'!$AP$3:$AP$5)","v":0.5},{"$f":"valuePL(W14,'Utility Functions'!$AQ$3:$AQ$6,'Utility Functions'!$AR$3:$AR$6)","v":0},{"$f":"valuePL(X14,'Utility Functions'!$AS$3:$AS$6,'Utility Functions'!$AT$3:$AT$6)","v":0.2},{"$f":"valuePL(Y14,'Utility Functions'!$AU$3:$AU$6,'Utility Functions'!$AV$3:$AV$6)","v":0},{"$f":"valuePL(Z14,'Utility Functions'!$AW$3:$AW$5,'Utility Functions'!$AX$3:$AX$5)","v":1},{"$f":"valuePL(AA14,'Utility Functions'!$AY$3:$AY$6,'Utility Functions'!$AZ$3:$AZ$6)","v":0.2},{"$f":"valuePL(AB14,'Utility Functions'!$BA$3:$BA$5,'Utility Functions'!$BB$3:$BB$5)","v":0.25},{"$f":"valuePL(AC14,'Utility Functions'!$BC$3:$BC$5,'Utility Functions'!$BD$3:$BD$5)","v":0.25},7.5245670174228056,null,7.5245670174228056,0,1.7495670174228048,1.125,2.25,2.4]
[14,{"$f":"valueE(B15,'Utility Functions'!$B$3,'Utility Functions'!$B$4,'Utility Functions'!$B$5,'Utility Functions'!$B$6)","v":0.69880684688087746},{"$f":"valueE(C15,'Utility Functions'!$D$3,'Utility Functions'!$D$4,'Utility Functions'!$D$5,'Utility Functions'!$D$6)","v":0.78989979019422951},{"$f":"valuePL(D15,'Utility Functions'!$E$3:$E$5,'Utility Functions'!$F$3:$F$5)","v":0.5},{"$f":"valuePL(E15,'Utility Functions'!$G$3:$G$5,'Utility Functions'!$H$3:$H$5)","v":0.5},{"$f":"valuePL(F15,'Utility Functions'!$I$3:$I$4,'Utility Functions'!$J$3:$J$5)","v":0},{"$f":"valueE(G15,'Utility Functions'!$L$3,'Utility Functions'!$L$4,'Utility Functions'!$L$5,'Utility Functions'!$L$6)","v":0},{"$f":"valueE(H15,'Utility Functions'!$N$3,'Utility Functions'!$N$4,'Utility Functions'!$N$5,'Utility Functions'!$N$6)","v":0},{"$f":"valuePL(I15,'Utility Functions'!$O$3:$O$6,'Utility Functions'!$P$3:$P$6)","v":0},{"$f":"valuePL(J15,'Utility Functions'!$Q$3:$Q$6,'Utility Functions'!$R$3:$R$6)","v":0},{"$f":"valuePL(K15,'Utility Functions'!$S$3:$S$7,'Utility Functions'!$T$3:$T$7)","v":0},{"$f":"valueE(L15,'Utility Functions'!$V$3,'Utility Functions'!$V$4,'Utility Functions'!$V$5,'Utility Functions'!$V$6)","v":0},{"$f":"valuePL(M15,'Utility Functions'!$W$3:$W$6,'Utility Functions'!$X$3:$X$6)","v":0},{"$f":"valueE(N15,'Utility Functions'!$Z$3,'Utility Functions'!$Z$4,'Utility Functions'!$Z$5,'Utility Functions'!$Z$6)","v":0.75},{"$f":"valuePL(O15,'Utility Functions'!$AA$3:$AA$5,'Utility Functions'!$AB$3:$AB$5)","v":0.25},{"$f":"valuePL(P15,'Utility Functions'!$AC$3:$AC$7,'Utility Functions'!$AD$3:$AD$7)","v":0.25},{"$f":"valuePL(Q15,'Utility Functions'!$AE$3:$AE$6,'Utility Functions'!$AF$3:$AF$6)","v":0},{"$f":"valuePL(R15,'Utility Functions'!$AG$3:$AG$6,'Utility Functions'!$AH$3:$AH$6)","v":1},{"$f":"valuePL(S15,'Utility Functions'!$AI$3:$AI$6,'Utility Functions'!$AJ$3:$AJ$6)","v":1},{"$f":"valuePL(T15,'Utility Functions'!$AK$3:$AK$8,'Utility Functions'!$AL$3:$AL$8)","v":0},{"$f":"valuePL(U15,'Utility Functions'!$AM$3:$AM$5,'Utility Functions'!$AN$3:$AN$5)","v":0},{"$f":"valuePL(V15,'Utility Functions'!$AO$3:$AO$5,'Utility Functions'!$AP$3:$AP$5)","v":0.5},{"$f":"valuePL(W15,'Utility Functions'!$AQ$3:$AQ$6,'Utility Functions'!$AR$3:$AR$6)","v":0.2},{"$f":"valuePL(X15,'Utility Functions'!$AS$3:$AS$6,'Utility Functions'!$AT$3:$AT$6)","v":1},{"$f":"valuePL(Y15,'Utility Functions'!$AU$3:$AU$6,'Utility Functions'!$AV$3:$AV$6)","v":1},{"$f":"valuePL(Z15,'Utility Functions'!$AW$3:$AW$5,'Utility Functions'!$AX$3:$AX$5)","v":0.5},{"$f":"valuePL(AA15,'Utility Functions'!$AY$3:$AY$6,'Utility Functions'!$AZ$3:$AZ$6)","v":0.89999999999999991},{"$f":"valuePL(AB15,'Utility Functions'!$BA$3:$BA$5,'Utility Functions'!$BB$3:$BB$5)","v":0.25},{"$f":"valuePL(AC15,'Utility Functions'!$BC$3:$BC$5,'Utility Functions'!$BD$3:$BD$5)","v":0.25},10.338706637075108,null,10.338706637075106,2.488706637075107,0,1,2.25,4.5999999999999996]
[15,{"$f":"valueE(B16,'Utility Functions'!$B$3,'Utility Functions'!$B$4,'Utility Functions'!$B$5,'Utility Functions'!$B$6)","v":0.98994966417177144},{"$f":"valueE(C16,'Utility Functions'!$D$3,'Utility Functions'!$D$4,'Utility Functions'!$D$5,'Utility Functions'!$D$6)","v":0.71352759724260828},{"$f":"valuePL(D16,'Utility Functions'!$E$3:$E$5,'Utility Functions'!$F$3:$F$5)","v":1},{"$f":"valuePL(E16,'Utility Functions'!$G$3:$G$5,'Utility Functions'!$H$3:$H$5)","v":0.5},{"$f":"valuePL(F16,'Utility Functions'!$I$3:$I$4,'Utility Functions'!$J$3:$J$5)","v":1},{"$f":"valueE(G16,'Utility Functions'!$L$3,'Utility Functions'!$L$4,'Utility Functions'!$L$5,'Utility Functions'!$L$6)","v":0},{"$f":"valueE(H16,'Utility Functions'!$N$3,'Utility Functions'!$N$4,'Utility Functions'!$N$5,'Utility Functions'!$N$6)","v":0},{"$f":"valuePL(I16,'Utility Functions'!$O$3:$O$6,'Utility Functions'!$P$3:$P$6)","v":9.2000000000000012E-2},{"$f":"valuePL(J16,'Utility Functions'!$Q$3:$Q$6,'Utility Functions'!$R$3:$R$6)","v":6.0000000000000012E-2},{"$f":"valuePL(K16,'Utility Functions'!$S$3:$S$7,'Utility Functions'!$T$3:$T$7)","v":6.0000000000000012E-2},{"$f":"valueE(L16,'Utility Functions'!$V$3,'Utility Functions'!$V$4,'Utility Functions'!$V$5,'Utility Functions'!$V$6)","v":1},{"$f":"valuePL(M16,'Utility Functions'!$W$3:$W$6,'Utility Functions'!$X$3:$X$6)","v":6.0000000000000012E-2},{"$f":"valueE(N16,'Utility Functions'!$Z$3,'Utility Functions'!$Z$4,'Utility Functions'!$Z$5,'Utility Functions'!$Z$6)","v":0.125},{"$f":"valuePL(O16,'Utility Functions'!$AA$3:$AA$5,'Utility Functions'!$AB$3:$AB$5)","v":1},{"$f":"valuePL(P16,'Utility Functions'!$AC$3:$AC$7,'Utility Functions'!$AD$3:$AD$7)","v":0.5},{"$f":"valuePL(Q16,'Utility Functions'!$AE$3:$AE$6,'Utility Functions'!$AF$3:$AF$6)","v":0},{"$f":"valuePL(R16,'Utility Functions'!$AG$3:$AG$6,'Utility Functions'!$AH$3:$AH$6)","v":0.8},{"$f":"valuePL(S16,'Utility Functions'!$AI$3:$AI$6,'Utility Functions'!$AJ$3:$AJ$6)","v":1},{"$f":"valuePL(T16,'Utility Functions'!$AK$3:$AK$8,'Utility Functions'!$AL$3:$AL$8)","v":0.6},{"$f":"valuePL(U16,'Utility Functions'!$AM$3:$AM$5,'Utility Functions'!$AN$3:$AN$5)","v":1},{"$f":"valuePL(V16,'Utility Functions'!$AO$3:$AO$5,'Utility Functions'!$AP$3:$AP$5)","v":0},{"$f":"valuePL(W16,'Utility Functions'!$AQ$3:$AQ$6,'Utility Functions'!$AR$3:$AR$6)","v":1},{"$f":"valuePL(X16,'Utility Functions'!$AS$3:$AS$6,'Utility Functions'!$AT$3:$AT$6)","v":0.2},{"$f":"valuePL(Y16,'Utility Functions'!$AU$3:$AU$6,'Utility Functions'!$AV$3:$AV$6)","v":0.2},{"$f":"valuePL(Z16,'Utility Functions'!$AW$3:$AW$5,'Utility Functions'!$AX$3:$AX$5)","v":1},{"$f":"valuePL(AA16,'Utility Functions'!$AY$3:$AY$6,'Utility Functions'!$AZ$3:$AZ$6)","v":1},{"$f":"valuePL(AB16,'Utility Functions'!$BA$3:$BA$5,'Utility Functions'!$BB$3:$BB$5)","v":1},{"$f":"valuePL(AC16,'Utility Functions'!$BC$3:$BC$5,'Utility Functions'!$BD$3:$BD$5)","v":0.25},15.150477261414375,null,15.15047726141438,4.2034772614143794,1.272,1.125,3.9,4.6500000000000004]
[16,{"$f":"valueE(B17,'Utility Functions'!$B$3,'Utility Functions'!$B$4,'Utility Functions'!$B$5,'Utility Functions'!$B$6)","v":0},{"$f":"valueE(C17,'Utility Functions'!$D$3,'Utility Functions'!$D$4,'Utility Functions'!$D$5,'Utility Functions'!$D$6)","v":0},{"$f":"valuePL(D17,'Utility Functions'!$E$3:$E$5,'Utility Functions'!$F$3:$F$5)","v":0},{"$f":"valuePL(E17,'Utility Functions'!$G$3:$G$5,'Utility Functions'!$H$3:$H$5)","v":0},{"$f":"valuePL(F17,'Utility Functions'!$I$3:$I$4,'Utility Functions'!$J$3:$J$5)","v":0},{"$f":"valueE(G17,'Utility Functions'!$L$3,'Utility Functions'!$L$4,'Utility Functions'!$L$5,'Utility Functions'!$L$6)","v":0},{"$f":"valueE(H17,'Utility Functions'!$N$3,'Utility Functions'!$N$4,'Utility Functions'!$N$5,'Utility Functions'!$N$6)","v":0},{"$f":"valuePL(I17,'Utility Functions'!$O$3:$O$6,'Utility Functions'!$P$3:$P$6)","v":1},{"$f":"valuePL(J17,'Utility Functions'!$Q$3:$Q$6,'Utility Functions'!$R$3:$R$6)","v":0.91818181818181821},{"$f":"valuePL(K17,'Utility Functions'!$S$3:$S$7,'Utility Functions'!$T$3:$T$7)","v":1},{"$f":"valueE(L17,'Utility Functions'!$V$3,'Utility Functions'!$V$4,'Utility Functions'!$V$5,'Utility Functions'!$V$6)","v":0.83333333333333337},{"$f":"valuePL(M17,'Utility Functions'!$W$3:$W$6,'Utility Functions'!$X$3:$X$6)","v":0.91818181818181821},{"$f":"valueE(N17,'Utility Functions'!$Z$3,'Utility Functions'!$Z$4,'Utility Functions'!$Z$5,'Utility Functions'!$Z$6)","v":0},{"$f":"valuePL(O17,'Utility Functions'!$AA$3:$AA$5,'Utility Functions'!$AB$3:$AB$5)","v":0},{"$f":"valuePL(P17,'Utility Functions'!$AC$3:$AC$7,'Utility Functions'!$AD$3:$AD$7)","v":0.75},{"$f":"valuePL(Q17,'Utility Functions'!$AE$3:$AE$6,'Utility Functions'!$AF$3:$AF$6)","v":0},{"$f":"valuePL(R17,'Utility Functions'!$AG$3:$AG$6,'Utility Functions'!$AH$3:$AH$6)","v":1},{"$f":"valuePL(S17,'Utility Functions'!$AI$3:$AI$6,'Utility Functions'!$AJ$3:$AJ$6)","v":1},{"$f":"valuePL(T17,'Utility Functions'!$AK$3:$AK$8,'Utility Functions'!$AL$3:$AL$8)","v":1},{"$f":"valuePL(U17,'Utility Functions'!$AM$3:$AM$5,'Utility Functions'!$AN$3:$AN$5)","v":0},{"$f":"valuePL(V17,'Utility Functions'!$AO$3:$AO$5,'Utility Functions'!$AP$3:$AP$5)","v":1},{"$f":"valuePL(W17,'Utility Functions'!$AQ$3:$AQ$6,'Utility Functions'!$AR$3:$AR$6)","v":0.75},{"$f":"valuePL(X17,'Utility Functions'!$AS$3:$AS$6,'Utility Functions'!$AT$3:$AT$6)","v":0.75},{"$f":"valuePL(Y17,'Utility Functions'!$AU$3:$AU$6,'Utility Functions'!$AV$3:$AV$6)","v":0.2},{"$f":"valuePL(Z17,'Utility Functions'!$AW$3:$AW$5,'Utility Functions'!$AX$3:$AX$5)","v":1},{"$f":"valuePL(AA17,'Utility Functions'!$AY$3:$AY$6,'Utility Functions'!$AZ$3:$AZ$6)","v":1},{"$f":"valuePL(AB17,'Utility Functions'!$BA$3:$BA$5,'Utility Functions'!$BB$3:$BB$5)","v":1},{"$f":"valuePL(AC17,'Utility Functions'!$BC$3:$BC$5,'Utility Functions'!$BD$3:$BD$5)","v":1},15.119696969696969,null,15.119696969696971,0,4.6696969696969699,0,3.75,6.7]
[17,{"$f":"valueE(B18,'Utility Functions'!$B$3,'Utility Functions'!$B$4,'Utility Functions'!$B$5,'Utility Functions'!$B$6)","v":0.32968045347775865},{"$f":"valueE(C18,'Utility Functions'!$D$3,'Utility Functions'!$D$4,'Utility Functions'!$D$5,'Utility Functions'!$D$6)","v":0.78989979019422951},{"$f":"valuePL(D18,'Utility Functions'!$E$3:$E$5,'Utility Functions'!$F$3:$F$5)","v":1},{"$f":"valuePL(E18,'Utility Functions'!$G$3:$G$5,'Utility Functions'!$H$3:$H$5)","v":0.5},{"$f":"valuePL(F18,'Utility Functions'!$I$3:$I$4,'Utility Functions'!$J$3:$J$5)","v":1},{"$f":"valueE(G18,'Utility Functions'!$L$3,'Utility Functions'!$L$4,'Utility Functions'!$L$5,'Utility Functions'!$L$6)","v":0.31182795698924731},{"$f":"valueE(H18,'Utility Functions'!$N$3,'Utility Functions'!$N$4,'Utility Functions'!$N$5,'Utility Functions'!$N$6)","v":0.27514231499051234},{"$f":"valuePL(I18,'Utility Functions'!$O$3:$O$6,'Utility Functions'!$P$3:$P$6)","v":0},{"$f":"valuePL(J18,'Utility Functions'!$Q$3:$Q$6,'Utility Functions'!$R$3:$R$6)","v":0},{"$f":"valuePL(K18,'Utility Functions'!$S$3:$S$7,'Utility Functions'!$T$3:$T$7)","v":0},{"$f":"valueE(L18,'Utility Functions'!$V$3,'Utility Functions'!$V$4,'Utility Functions'!$V$5,'Utility Functions'!$V$6)","v":1},{"$f":"valuePL(M18,'Utility Functions'!$W$3:$W$6,'Utility Functions'!$X$3:$X$6)","v":6.0000000000000012E-2},{"$f":"valueE(N18,'Utility Functions'!$Z$3,'Utility Functions'!$Z$4,'Utility Functions'!$Z$5,'Utility Functions'!$Z$6)","v":0},{"$f":"valuePL(O18,'Utility Functions'!$AA$3:$AA$5,'Utility Functions'!$AB$3:$AB$5)","v":0},{"$f":"valuePL(P18,'Utility Functions'!$AC$3:$AC$7,'Utility Functions'!$AD$3:$AD$7)","v":0},{"$f":"valuePL(Q18,'Utility Functions'!$AE$3:$AE$6,'Utility Functions'!$AF$3:$AF$6)","v":0},{"$f":"valuePL(R18,'Utility Functions'!$AG$3:$AG$6,'Utility Functions'!$AH$3:$AH$6)","v":1},{"$f":"valuePL(S18,'Utility Functions'!$AI$3:$AI$6,'Utility Functions'!$AJ$3:$AJ$6)","v":0.66},{"$f":"valuePL(T18,'Utility Functions'!$AK$3:$AK$8,'Utility Functions'!$AL$3:$AL$8)","v":0},{"$f":"valuePL(U18,'Utility Functions'!$AM$3:$AM$5,'Utility Functions'!$AN$3:$AN$5)","v":0},{"$f":"valuePL(V18,'Utility Functions'!$AO$3:$AO$5,'Utility Functions'!$AP$3:$AP$5)","v":1},{"$f":"valuePL(W18,'Utility Functions'!$AQ$3:$AQ$6,'Utility Functions'!$AR$3:$AR$6)","v":1},{"$f":"valuePL(X18,'Utility Functions'!$AS$3:$AS$6,'Utility Functions'!$AT$3:$AT$6)","v":0.2},{"$f":"valuePL(Y18,'Utility Functions'!$AU$3:$AU$6,'Utility Functions'!$AV$3:$AV$6)","v":0},{"$f":"valuePL(Z18,'Utility Functions'!$AW$3:$AW$5,'Utility Functions'!$AX$3:$AX$5)","v":0.5},{"$f":"valuePL(AA18,'Utility Functions'!$AY$3:$AY$6,'Utility Functions'!$AZ$3:$AZ$6)","v":0},{"$f":"valuePL(AB18,'Utility Functions'!$BA$3:$BA$5,'Utility Functions'!$BB$3:$BB$5)","v":1},{"$f":"valuePL(AC18,'Utility Functions'!$BC$3:$BC$5,'Utility Functions'!$BD$3:$BD$5)","v":0.25},10.876550515651747,null,10.876550515651747,3.6195802436719884,1.6469702719797596,0,1.6600000000000001,3.95]
[18,{"$f":"valueE(B19,'Utility Functions'!$B$3,'Utility Functions'!$B$4,'Utility Functions'!$B$5,'Utility Functions'!$B$6)","v":0},{"$f":"valueE(C19,'Utility Functions'!$D$3,'Utility Functions'!$D$4,'Utility Functions'!$D$5,'Utility Functions'!$D$6)","v":0},{"$f":"valuePL(D19,'Utility Functions'!$E$3:$E$5,'Utility Functions'!$F$3:$F$5)","v":0},{"$f":"valuePL(E19,'Utility Functions'!$G$3:$G$5,'Utility Functions'!$H$3:$H$5)","v":0},{"$f":"valuePL(F19,'Utility Functions'!$I$3:$I$4,'Utility Functions'!$J$3:$J$5)","v":0},{"$f":"valueE(G19,'Utility Functions'!$L$3,'Utility Functions'!$L$4,'Utility Functions'!$L$5,'Utility Functions'!$L$6)","v":0},{"$f":"valueE(H19,'Utility Functions'!$N$3,'Utility Functions'!$N$4,'Utility Functions'!$N$5,'Utility Functions'!$N$6)","v":2.8462998102466792E-2},{"$f":"valuePL(I19,'Utility Functions'!$O$3:$O$6,'Utility Functions'!$P$3:$P$6)","v":0},{"$f":"valuePL(J19,'Utility Functions'!$Q$3:$Q$6,'Utility Functions'!$R$3:$R$6)","v":0},{"$f":"valuePL(K19,'Utility Functions'!$S$3:$S$7,'Utility Functions'!$T$3:$T$7)","v":0},{"$f":"valueE(L19,'Utility Functions'!$V$3,'Utility Functions'!$V$4,'Utility Functions'!$V$5,'Utility Functions'!$V$6)","v":0},{"$f":"valuePL(M19,'Utility Functions'!$W$3:$W$6,'Utility Functions'!$X$3:$X$6)","v":0},{"$f":"valueE(N19,'Utility Functions'!$Z$3,'Utility Functions'!$Z$4,'Utility Functions'!$Z$5,'Utility Functions'!$Z$6)","v":1},{"$f":"valuePL(O19,'Utility Functions'!$AA$3:$AA$5,'Utility Functions'!$AB$3:$AB$5)","v":0.25},{"$f":"valuePL(P19,'Utility Functions'!$AC$3:$AC$7,'Utility Functions'!$AD$3:$AD$7)","v":0.25},{"$f":"valuePL(Q19,'Utility Functions'!$AE$3:$AE$6,'Utility Functions'!$AF$3:$AF$6)","v":1},{"$f":"valuePL(R19,'Utility Functions'!$AG$3:$AG$6,'Utility Functions'!$AH$3:$AH$6)","v":1},{"$f":"valuePL(S19,'Utility Functions'!$AI$3:$AI$6,'Utility Functions'!$AJ$3:$AJ$6)","v":1},{"$f":"valuePL(T19,'Utility Functions'!$AK$3:$AK$8,'Utility Functions'!$AL$3:$AL$8)","v":1},{"$f":"valuePL(U19,'Utility Functions'!$AM$3:$AM$5,'Utility Functions'!$AN$3:$AN$5)","v":0.25},{"$f":"valuePL(V19,'Utility Functions'!$AO$3:$AO$5,'Utility Functions'!$AP$3:$AP$5)","v":1},{"$f":"valuePL(W19,'Utility Functions'!$AQ$3:$AQ$6,'Utility Functions'!$AR$3:$AR$6)","v":0.75},{"$f":"valuePL(X19,'Utility Functions'!$AS$3:$AS$6,'Utility Functions'!$AT$3:$AT$6)","v":0.2},{"$f":"valuePL(Y19,'Utility Functions'!$AU$3:$AU$6,'Utility Functions'!$AV$3:$AV$6)","v":0.8},{"$f":"valuePL(Z19,'Utility Functions'!$AW$3:$AW$5,'Utility Functions'!$AX$3:$AX$5)","v":0.5},{"$f":"valuePL(AA19,'Utility Functions'!$AY$3:$AY$6,'Utility Functions'!$AZ$3:$AZ$6)","v":0.89999999999999991},{"$f":"valuePL(AB19,'Utility Functions'!$BA$3:$BA$5,'Utility Functions'!$BB$3:$BB$5)","v":0.25},{"$f":"valuePL(AC19,'Utility Functions'!$BC$3:$BC$5,'Utility Functions'!$BD$3:$BD$5)","v":0},10.178462998102468,null,10.178462998102468,0,2.8462998102466792E-2,1.25,4.5,4.4000000000000004]
[19,{"$f":"valueE(B20,'Utility Functions'!$B$3,'Utility Functions'!$B$4,'Utility Functions'!$B$5,'Utility Functions'!$B$6)","v":0.79810469124896843},{"$f":"valueE(C20,'Utility Functions'!$D$3,'Utility Functions'!$D$4,'Utility Functions'!$D$5,'Utility Functions'!$D$6)","v":0.26839655623815994},{"$f":"valuePL(D20,'Utility Functions'!$E$3:$E$5,'Utility Functions'!$F$3:$F$5)","v":0.5},{"$f":"valuePL(E20,'Utility Functions'!$G$3:$G$5,'Utility Functions'!$H$3:$H$5)","v":1},{"$f":"valuePL(F20,'Utility Functions'!$I$3:$I$4,'Utility Functions'!$J$3:$J$5)","v":0},{"$f":"valueE(G20,'Utility Functions'!$L$3,'Utility Functions'!$L$4,'Utility Functions'!$L$5,'Utility Functions'!$L$6)","v":0},{"$f":"valueE(H20,'Utility Functions'!$N$3,'Utility Functions'!$N$4,'Utility Functions'!$N$5,'Utility Functions'!$N$6)","v":0},{"$f":"valuePL(I20,'Utility Functions'!$O$3:$O$6,'Utility Functions'!$P$3:$P$6)","v":0},{"$f":"valuePL(J20,'Utility Functions'!$Q$3:$Q$6,'Utility Functions'!$R$3:$R$6)","v":0},{"$f":"valuePL(K20,'Utility Functions'!$S$3:$S$7,'Utility Functions'!$T$3:$T$7)","v":0},{"$f":"valueE(L20,'Utility Functions'!$V$3,'Utility Functions'!$V$4,'Utility Functions'!$V$5,'Utility Functions'!$V$6)","v":0},{"$f":"valuePL(M20,'Utility Functions'!$W$3:$W$6,'Utility Functions'!$X$3:$X$6)","v":0},{"$f":"valueE(N20,'Utility Functions'!$Z$3,'Utility Functions'!$Z$4,'Utility Functions'!$Z$5,'Utility Functions'!$Z$6)","v":1},{"$f":"valuePL(O20,'Utility Functions'!$AA$3:$AA$5,'Utility Functions'!$AB$3:$AB$5)","v":1},{"$f":"valuePL(P20,'Utility Functions'!$AC$3:$AC$7,'Utility Functions'!$AD$3:$AD$7)","v":0},{"$f":"valuePL(Q20,'Utility Functions'!$AE$3:$AE$6,'Utility Functions'!$AF$3:$AF$6)","v":0},{"$f":"valuePL(R20,'Utility Functions'!$AG$3:$AG$6,'Utility Functions'!$AH$3:$AH$6)","v":0.8},{"$f":"valuePL(S20,'Utility Functions'!$AI$3:$AI$6,'Utility Functions'!$AJ$3:$AJ$6)","v":1},{"$f":"valuePL(T20,'Utility Functions'!$AK$3:$AK$8,'Utility Functions'!$AL$3:$AL$8)","v":0},{"$f":"valuePL(U20,'Utility Functions'!$AM$3:$AM$5,'Utility Functions'!$AN$3:$AN$5)","v":0},{"$f":"valuePL(V20,'Utility Functions'!$AO$3:$AO$5,'Utility Functions'!$AP$3:$AP$5)","v":0.5},{"$f":"valuePL(W20,'Utility Functions'!$AQ$3:$AQ$6,'Utility Functions'!$AR$3:$AR$6)","v":0.2},{"$f":"valuePL(X20,'Utility Functions'!$AS$3:$AS$6,'Utility Functions'!$AT$3:$AT$6)","v":1},{"$f":"valuePL(Y20,'Utility Functions'!$AU$3:$AU$6,'Utility Functions'!$AV$3:$AV$6)","v":0.8},{"$f":"valuePL(Z20,'Utility Functions'!$AW$3:$AW$5,'Utility Functions'!$AX$3:$AX$5)","v":0},{"$f":"valuePL(AA20,'Utility Functions'!$AY$3:$AY$6,'Utility Functions'!$AZ$3:$AZ$6)","v":0.2},{"$f":"valuePL(AB20,'Utility Functions'!$BA$3:$BA$5,'Utility Functions'!$BB$3:$BB$5)","v":0},{"$f":"valuePL(AC20,'Utility Functions'!$BC$3:$BC$5,'Utility Functions'!$BD$3:$BD$5)","v":0.25},9.3165012474871283,null,9.3165012474871283,2.5665012474871283,0,2,1.8,2.95]
[20,{"$f":"valueE(B21,'Utility Functions'!$B$3,'Utility Functions'!$B$4,'Utility Functions'!$B$5,'Utility Functions'!$B$6)","v":0.83470237647280454},{"$f":"valueE(C21,'Utility Functions'!$D$3,'Utility Functions'!$D$4,'Utility Functions'!$D$5,'Utility Functions'!$D$6)","v":0.78989979019422951},{"$f":"valuePL(D21,'Utility Functions'!$E$3:$E$5,'Utility Functions'!$F$3:$F$5)","v":0.5},{"$f":"valuePL(E21,'Utility Functions'!$G$3:$G$5,'Utility Functions'!$H$3:$H$5)","v":1},{"$f":"valuePL(F21,'Utility Functions'!$I$3:$I$4,'Utility Functions'!$J$3:$J$5)","v":0},{"$f":"valueE(G21,'Utility Functions'!$L$3,'Utility Functions'!$L$4,'Utility Functions'!$L$5,'Utility Functions'!$L$6)","v":0},{"$f":"valueE(H21,'Utility Functions'!$N$3,'Utility Functions'!$N$4,'Utility Functions'!$N$5,'Utility Functions'!$N$6)","v":0.41271347248576851},{"$f":"valuePL(I21,'Utility Functions'!$O$3:$O$6,'Utility Functions'!$P$3:$P$6)","v":0.93454545454545446},{"$f":"valuePL(J21,'Utility Functions'!$Q$3:$Q$6,'Utility Functions'!$R$3:$R$6)","v":0.50909090909090915},{"$f":"valuePL(K21,'Utility Functions'!$S$3:$S$7,'Utility Functions'!$T$3:$T$7)","v":0.93454545454545446},{"$f":"valueE(L21,'Utility Functions'!$V$3,'Utility Functions'!$V$4,'Utility Functions'!$V$5,'Utility Functions'!$V$6)","v":0.66666666666666663},{"$f":"valuePL(M21,'Utility Functions'!$W$3:$W$6,'Utility Functions'!$X$3:$X$6)","v":0.50909090909090915},{"$f":"valueE(N21,'Utility Functions'!$Z$3,'Utility Functions'!$Z$4,'Utility Functions'!$Z$5,'Utility Functions'!$Z$6)","v":1},{"$f":"valuePL(O21,'Utility Functions'!$AA$3:$AA$5,'Utility Functions'!$AB$3:$AB$5)","v":1},{"$f":"valuePL(P21,'Utility Functions'!$AC$3:$AC$7,'Utility Functions'!$AD$3:$AD$7)","v":0.25},{"$f":"valuePL(Q21,'Utility Functions'!$AE$3:$AE$6,'Utility Functions'!$AF$3:$AF$6)","v":0},{"$f":"valuePL(R21,'Utility Functions'!$AG$3:$AG$6,'Utility Functions'!$AH$3:$AH$6)","v":1},{"$f":"valuePL(S21,'Utility Functions'!$AI$3:$AI$6,'Utility Functions'!$AJ$3:$AJ$6)","v":1},{"$f":"valuePL(T21,'Utility Functions'!$AK$3:$AK$8,'Utility Functions'!$AL$3:$AL$8)","v":0.6},{"$f":"valuePL(U21,'Utility Functions'!$AM$3:$AM$5,'Utility Functions'!$AN$3:$AN$5)","v":1},{"$f":"valuePL(V21,'Utility Functions'!$AO$3:$AO$5,'Utility Functions'!$AP$3:$AP$5)","v":0.5},{"$f":"valuePL(W21,'Utility Functions'!$AQ$3:$AQ$6,'Utility Functions'!$AR$3:$AR$6)","v":0},{"$f":"valuePL(X21,'Utility Functions'!$AS$3:$AS$6,'Utility Functions'!$AT$3:$AT$6)","v":0},{"$f":"valuePL(Y21,'Utility Functions'!$AU$3:$AU$6,'Utility Functions'!$AV$3:$AV$6)","v":0.2},{"$f":"valuePL(Z21,'Utility Functions'!$AW$3:$AW$5,'Utility Functions'!$AX$3:$AX$5)","v":1},{"$f":"valuePL(AA21,'Utility Functions'!$AY$3:$AY$6,'Utility Functions'!$AZ$3:$AZ$6)","v":0.2},{"$f":"valuePL(AB21,'Utility Functions'!$BA$3:$BA$5,'Utility Functions'!$BB$3:$BB$5)","v":0},{"$f":"valuePL(AC21,'Utility Functions'!$BC$3:$BC$5,'Utility Functions'!$BD$3:$BD$5)","v":0.25},15.091255033092194,null,15.091255033092196,3.1246021666670343,3.9666528664251626,2,3.85,2.15]
[21,{"$f":"valueE(B22,'Utility Functions'!$B$3,'Utility Functions'!$B$4,'Utility Functions'!$B$5,'Utility Functions'!$B$6)","v":0},{"$f":"valueE(C22,'Utility Functions'!$D$3,'Utility Functions'!$D$4,'Utility Functions'!$D$5,'Utility Functions'!$D$6)","v":0},{"$f":"valuePL(D22,'Utility Functions'!$E$3:$E$5,'Utility Functions'!$F$3:$F$5)","v":0},{"$f":"valuePL(E22,'Utility Functions'!$G$3:$G$5,'Utility Functions'!$H$3:$H$5)","v":0},{"$f":"valuePL(F22,'Utility Functions'!$I$3:$I$4,'Utility Functions'!$J$3:$J$5)","v":0},{"$f":"valueE(G22,'Utility Functions'!$L$3,'Utility Functions'!$L$4,'Utility Functions'!$L$5,'Utility Functions'!$L$6)","v":0},{"$f":"valueE(H22,'Utility Functions'!$N$3,'Utility Functions'!$N$4,'Utility Functions'!$N$5,'Utility Functions'!$N$6)","v":0},{"$f":"valuePL(I22,'Utility Functions'!$O$3:$O$6,'Utility Functions'!$P$3:$P$6)","v":0},{"$f":"valuePL(J22,'Utility Functions'!$Q$3:$Q$6,'Utility Functions'!$R$3:$R$6)","v":0},{"$f":"valuePL(K22,'Utility Functions'!$S$3:$S$7,'Utility Functions'!$T$3:$T$7)","v":0},{"$f":"valueE(L22,'Utility Functions'!$V$3,'Utility Functions'!$V$4,'Utility Functions'!$V$5,'Utility Functions'!$V$6)","v":0},{"$f":"valuePL(M22,'Utility Functions'!$W$3:$W$6,'Utility Functions'!$X$3:$X$6)","v":0},{"$f":"valueE(N22,'Utility Functions'!$Z$3,'Utility Functions'!$Z$4,'Utility Functions'!$Z$5,'Utility Functions'!$Z$6)","v":1},{"$f":"valuePL(O22,'Utility Functions'!$AA$3:$AA$5,'Utility Functions'!$AB$3:$AB$5)","v":1},{"$f":"valuePL(P22,'Utility Functions'!$AC$3:$AC$7,'Utility Functions'!$AD$3:$AD$7)","v":0},{"$f":"valuePL(Q22,'Utility Functions'!$AE$3:$AE$6,'Utility Functions'!$AF$3:$AF$6)","v":0.1},{"$f":"valuePL(R22,'Utility Functions'!$AG$3:$AG$6,'Utility Functions'!$AH$3:$AH$6)","v":1},{"$f":"valuePL(S22,'Utility Functions'!$AI$3:$AI$6,'Utility Functions'!$AJ$3:$AJ$6)","v":1},{"$f":"valuePL(T22,'Utility Functions'!$AK$3:$AK$8,'Utility Functions'!$AL$3:$AL$8)","v":1},{"$f":"valuePL(U22,'Utility Functions'!$AM$3:$AM$5,'Utility Functions'!$AN$3:$AN$5)","v":0.25},{"$f":"valuePL(V22,'Utility Functions'!$AO$3:$AO$5,'Utility Functions'!$AP$3:$AP$5)","v":0},{"$f":"valuePL(W22,'Utility Functions'!$AQ$3:$AQ$6,'Utility Functions'!$AR$3:$AR$6)","v":0.75},{"$f":"valuePL(X22,'Utility Functions'!$AS$3:$AS$6,'Utility Functions'!$AT$3:$AT$6)","v":1},{"$f":"valuePL(Y22,'Utility Functions'!$AU$3:$AU$6,'Utility Functions'!$AV$3:$AV$6)","v":0.2},{"$f":"valuePL(Z22,'Utility Functions'!$AW$3:$AW$5,'Utility Functions'!$AX$3:$AX$5)","v":0},{"$f":"valuePL(AA22,'Utility Functions'!$AY$3:$AY$6,'Utility Functions'!$AZ$3:$AZ$6)","v":1},{"$f":"valuePL(AB22,'Utility Functions'!$BA$3:$BA$5,'Utility Functions'!$BB$3:$BB$5)","v":0.25},{"$f":"valuePL(AC22,'Utility Functions'!$BC$3:$BC$5,'Utility Functions'!$BD$3:$BD$5)","v":1},9.5500000000000007,null,9.5500000000000007,0,0,2,3.35,4.2]
[22,{"$f":"valueE(B23,'Utility Functions'!$B$3,'Utility Functions'!$B$4,'Utility Functions'!$B$5,'Utility Functions'!$B$6)","v":0},{"$f":"valueE(C23,'Utility Functions'!$D$3,'Utility Functions'!$D$4,'Utility Functions'!$D$5,'Utility Functions'!$D$6)","v":0},{"$f":"valuePL(D23,'Utility Functions'!$E$3:$E$5,'Utility Functions'!$F$3:$F$5)","v":0},{"$f":"valuePL(E23,'Utility Functions'!$G$3:$G$5,'Utility Functions'!$H$3:$H$5)","v":0},{"$f":"valuePL(F23,'Utility Functions'!$I$3:$I$4,'Utility Functions'!$J$3:$J$5)","v":0},{"$f":"valueE(G23,'Utility Functions'!$L$3,'Utility Functions'!$L$4,'Utility Functions'!$L$5,'Utility Functions'!$L$6)","v":8.6021505376344093E-2},{"$f":"valueE(H23,'Utility Functions'!$N$3,'Utility Functions'!$N$4,'Utility Functions'!$N$5,'Utility Functions'!$N$6)","v":6.0721062618595827E-2},{"$f":"valuePL(I23,'Utility Functions'!$O$3:$O$6,'Utility Functions'!$P$3:$P$6)","v":0},{"$f":"valuePL(J23,'Utility Functions'!$Q$3:$Q$6,'Utility Functions'!$R$3:$R$6)","v":0},{"$f":"valuePL(K23,'Utility Functions'!$S$3:$S$7,'Utility Functions'!$T$3:$T$7)","v":0},{"$f":"valueE(L23,'Utility Functions'!$V$3,'Utility Functions'!$V$4,'Utility Functions'!$V$5,'Utility Functions'!$V$6)","v":0},{"$f":"valuePL(M23,'Utility Functions'!$W$3:$W$6,'Utility Functions'!$X$3:$X$6)","v":0},{"$f":"valueE(N23,'Utility Functions'!$Z$3,'Utility Functions'!$Z$4,'Utility Functions'!$Z$5,'Utility Functions'!$Z$6)","v":0.125},{"$f":"valuePL(O23,'Utility Functions'!$AA$3:$AA$5,'Utility Functions'!$AB$3:$AB$5)","v":1},{"$f":"valuePL(P23,'Utility Functions'!$AC$3:$AC$7,'Utility Functions'!$AD$3:$AD$7)","v":1},{"$f":"valuePL(Q23,'Utility Functions'!$AE$3:$AE$6,'Utility Functions'!$AF$3:$AF$6)","v":0.5},{"$f":"valuePL(R23,'Utility Functions'!$AG$3:$AG$6,'Utility Functions'!$AH$3:$AH$6)","v":0.8},{"$f":"valuePL(S23,'Utility Functions'!$AI$3:$AI$6,'Utility Functions'!$AJ$3:$AJ$6)","v":1},{"$f":"valuePL(T23,'Utility Functions'!$AK$3:$AK$8,'Utility Functions'!$AL$3:$AL$8)","v":1},{"$f":"valuePL(U23,'Utility Functions'!$AM$3:$AM$5,'Utility Functions'!$AN$3:$AN$5)","v":0},{"$f":"valuePL(V23,'Utility Functions'!$AO$3:$AO$5,'Utility Functions'!$AP$3:$AP$5)","v":0.5},{"$f":"valuePL(W23,'Utility Functions'!$AQ$3:$AQ$6,'Utility Functions'!$AR$3:$AR$6)","v":0.75},{"$f":"valuePL(X23,'Utility Functions'!$AS$3:$AS$6,'Utility Functions'!$AT$3:$AT$6)","v":0.2},{"$f":"valuePL(Y23,'Utility Functions'!$AU$3:$AU$6,'Utility Functions'!$AV$3:$AV$6)","v":0},{"$f":"valuePL(Z23,'Utility Functions'!$AW$3:$AW$5,'Utility Functions'!$AX$3:$AX$5)","v":1},{"$f":"valuePL(AA23,'Utility Functions'!$AY$3:$AY$6,'Utility Functions'!$AZ$3:$AZ$6)","v":0.2},{"$f":"valuePL(AB23,'Utility Functions'!$BA$3:$BA$5,'Utility Functions'!$BB$3:$BB$5)","v":1},{"$f":"valuePL(AC23,'Utility Functions'!$BC$3:$BC$5,'Utility Functions'!$BD$3:$BD$5)","v":0.25},9.471742567994939,null,9.4717425679949407,0,0.14674256799493993,1.125,4.3,3.9000000000000004]
[23,{"$f":"valueE(B24,'Utility Functions'!$B$3,'Utility Functions'!$B$4,'Utility Functions'!$B$5,'Utility Functions'!$B$6)","v":0.83470237647280454},{"$f":"valueE(C24,'Utility Functions'!$D$3,'Utility Functions'!$D$4,'Utility Functions'!$D$5,'Utility Functions'!$D$6)","v":0.84744836833951609},{"$f":"valuePL(D24,'Utility Functions'!$E$3:$E$5,'Utility Functions'!$F$3:$F$5)","v":1},{"$f":"valuePL(E24,'Utility Functions'!$G$3:$G$5,'Utility Functions'!$H$3:$H$5)","v":0},{"$f":"valuePL(F24,'Utility Functions'!$I$3:$I$4,'Utility Functions'!$J$3:$J$5)","v":0},{"$f":"valueE(G24,'Utility Functions'!$L$3,'Utility Functions'!$L$4,'Utility Functions'!$L$5,'Utility Functions'!$L$6)","v":0},{"$f":"valueE(H24,'Utility Functions'!$N$3,'Utility Functions'!$N$4,'Utility Functions'!$N$5,'Utility Functions'!$N$6)","v":0},{"$f":"valuePL(I24,'Utility Functions'!$O$3:$O$6,'Utility Functions'!$P$3:$P$6)","v":0},{"$f":"valuePL(J24,'Utility Functions'!$Q$3:$Q$6,'Utility Functions'!$R$3:$R$6)","v":0},{"$f":"valuePL(K24,'Utility Functions'!$S$3:$S$7,'Utility Functions'!$T$3:$T$7)","v":0},{"$f":"valueE(L24,'Utility Functions'!$V$3,'Utility Functions'!$V$4,'Utility Functions'!$V$5,'Utility Functions'!$V$6)","v":0},{"$f":"valuePL(M24,'Utility Functions'!$W$3:$W$6,'Utility Functions'!$X$3:$X$6)","v":0},{"$f":"valueE(N24,'Utility Functions'!$Z$3,'Utility Functions'!$Z$4,'Utility Functions'!$Z$5,'Utility Functions'!$Z$6)","v":0},{"$f":"valuePL(O24,'Utility Functions'!$AA$3:$AA$5,'Utility Functions'!$AB$3:$AB$5)","v":0},{"$f":"valuePL(P24,'Utility Functions'!$AC$3:$AC$7,'Utility Functions'!$AD$3:$AD$7)","v":0.75},{"$f":"valuePL(Q24,'Utility Functions'!$AE$3:$AE$6,'Utility Functions'!$AF$3:$AF$6)","v":0},{"$f":"valuePL(R24,'Utility Functions'!$AG$3:$AG$6,'Utility Functions'!$AH$3:$AH$6)","v":1},{"$f":"valuePL(S24,'Utility Functions'!$AI$3:$AI$6,'Utility Functions'!$AJ$3:$AJ$6)","v":1},{"$f":"valuePL(T24,'Utility Functions'!$AK$3:$AK$8,'Utility Functions'!$AL$3:$AL$8)","v":1},{"$f":"valuePL(U24,'Utility Functions'!$AM$3:$AM$5,'Utility Functions'!$AN$3:$AN$5)","v":0},{"$f":"valuePL(V24,'Utility Functions'!$AO$3:$AO$5,'Utility Functions'!$AP$3:$AP$5)","v":1},{"$f":"valuePL(W24,'Utility Functions'!$AQ$3:$AQ$6,'Utility Functions'!$AR$3:$AR$6)","v":0.2},{"$f":"valuePL(X24,'Utility Functions'!$AS$3:$AS$6,'Utility Functions'!$AT$3:$AT$6)","v":0.75},{"$f":"valuePL(Y24,'Utility Functions'!$AU$3:$AU$6,'Utility Functions'!$AV$3:$AV$6)","v":0.2},{"$f":"valuePL(Z24,'Utility Functions'!$AW$3:$AW$5,'Utility Functions'!$AX$3:$AX$5)","v":0.5},{"$f":"valuePL(AA24,'Utility Functions'!$AY$3:$AY$6,'Utility Functions'!$AZ$3:$AZ$6)","v":0.2},{"$f":"valuePL(AB24,'Utility Functions'!$BA$3:$BA$5,'Utility Functions'!$BB$3:$BB$5)","v":0},{"$f":"valuePL(AC24,'Utility Functions'!$BC$3:$BC$5,'Utility Functions'!$BD$3:$BD$5)","v":0.25},9.5321507448123199,null,9.5321507448123199,2.6821507448123207,0,0,3.75,3.1]
[24,{"$f":"valueE(B25,'Utility Functions'!$B$3,'Utility Functions'!$B$4,'Utility Functions'!$B$5,'Utility Functions'!$B$6)","v":0.63212151658375171},{"$f":"valueE(C25,'Utility Functions'!$D$3,'Utility Functions'!$D$4,'Utility Functions'!$D$5,'Utility Functions'!$D$6)","v":0.46475967153745396},{"$f":"valuePL(D25,'Utility Functions'!$E$3:$E$5,'Utility Functions'!$F$3:$F$5)","v":1},{"$f":"valuePL(E25,'Utility Functions'!$G$3:$G$5,'Utility Functions'!$H$3:$H$5)","v":0},{"$f":"valuePL(F25,'Utility Functions'!$I$3:$I$4,'Utility Functions'!$J$3:$J$5)","v":0},{"$f":"valueE(G25,'Utility Functions'!$L$3,'Utility Functions'!$L$4,'Utility Functions'!$L$5,'Utility Functions'!$L$6)","v":0},{"$f":"valueE(H25,'Utility Functions'!$N$3,'Utility Functions'!$N$4,'Utility Functions'!$N$5,'Utility Functions'!$N$6)","v":0},{"$f":"valuePL(I25,'Utility Functions'!$O$3:$O$6,'Utility Functions'!$P$3:$P$6)","v":0},{"$f":"valuePL(J25,'Utility Functions'!$Q$3:$Q$6,'Utility Functions'!$R$3:$R$6)","v":0},{"$f":"valuePL(K25,'Utility Functions'!$S$3:$S$7,'Utility Functions'!$T$3:$T$7)","v":0},{"$f":"valueE(L25,'Utility Functions'!$V$3,'Utility Functions'!$V$4,'Utility Functions'!$V$5,'Utility Functions'!$V$6)","v":0},{"$f":"valuePL(M25,'Utility Functions'!$W$3:$W$6,'Utility Functions'!$X$3:$X$6)","v":0},{"$f":"valueE(N25,'Utility Functions'!$Z$3,'Utility Functions'!$Z$4,'Utility Functions'!$Z$5,'Utility Functions'!$Z$6)","v":0},{"$f":"valuePL(O25,'Utility Functions'!$AA$3:$AA$5,'Utility Functions'!$AB$3:$AB$5)","v":0},{"$f":"valuePL(P25,'Utility Functions'!$AC$3:$AC$7,'Utility Functions'!$AD$3:$AD$7)","v":0},{"$f":"valuePL(Q25,'Utility Functions'!$AE$3:$AE$6,'Utility Functions'!$AF$3:$AF$6)","v":0},{"$f":"valuePL(R25,'Utility Functions'!$AG$3:$AG$6,'Utility Functions'!$AH$3:$AH$6)","v":1},{"$f":"valuePL(S25,'Utility Functions'!$AI$3:$AI$6,'Utility Functions'!$AJ$3:$AJ$6)","v":1},{"$f":"valuePL(T25,'Utility Functions'!$AK$3:$AK$8,'Utility Functions'!$AL$3:$AL$8)","v":1},{"$f":"valuePL(U25,'Utility Functions'!$AM$3:$AM$5,'Utility Functions'!$AN$3:$AN$5)","v":0},{"$f":"valuePL(V25,'Utility Functions'!$AO$3:$AO$5,'Utility Functions'!$AP$3:$AP$5)","v":0},{"$f":"valuePL(W25,'Utility Functions'!$AQ$3:$AQ$6,'Utility Functions'!$AR$3:$AR$6)","v":1},{"$f":"valuePL(X25,'Utility Functions'!$AS$3:$AS$6,'Utility Functions'!$AT$3:$AT$6)","v":0.2},{"$f":"valuePL(Y25,'Utility Functions'!$AU$3:$AU$6,'Utility Functions'!$AV$3:$AV$6)","v":1},{"$f":"valuePL(Z25,'Utility Functions'!$AW$3:$AW$5,'Utility Functions'!$AX$3:$AX$5)","v":1},{"$f":"valuePL(AA25,'Utility Functions'!$AY$3:$AY$6,'Utility Functions'!$AZ$3:$AZ$6)","v":0.2},{"$f":"valuePL(AB25,'Utility Functions'!$BA$3:$BA$5,'Utility Functions'!$BB$3:$BB$5)","v":0},{"$f":"valuePL(AC25,'Utility Functions'!$BC$3:$BC$5,'Utility Functions'!$BD$3:$BD$5)","v":1},9.4968811881212041,null,9.4968811881212059,2.0968811881212055,0,0,3,4.4000000000000004]
[25,{"$f":"valueE(B26,'Utility Functions'!$B$3,'Utility Functions'!$B$4,'Utility Functions'!$B$5,'Utility Functions'!$B$6)","v":0.83470237647280454},{"$f":"valueE(C26,'Utility Functions'!$D$3,'Utility Functions'!$D$4,'Utility Functions'!$D$5,'Utility Functions'!$D$6)","v":0.84744836833951609},{"$f":"valuePL(D26,'Utility Functions'!$E$3:$E$5,'Utility Functions'!$F$3:$F$5)","v":1},{"$f":"valuePL(E26,'Utility Functions'!$G$3:$G$5,'Utility Functions'!$H$3:$H$5)","v":0},{"$f":"valuePL(F26,'Utility Functions'!$I$3:$I$4,'Utility Functions'!$J$3:$J$5)","v":0},{"$f":"valueE(G26,'Utility Functions'!$L$3,'Utility Functions'!$L$4,'Utility Functions'!$L$5,'Utility Functions'!$L$6)","v":0.94623655913978499},{"$f":"valueE(H26,'Utility Functions'!$N$3,'Utility Functions'!$N$4,'Utility Functions'!$N$5,'Utility Functions'!$N$6)","v":0.29222011385199242},{"$f":"valuePL(I26,'Utility Functions'!$O$3:$O$6,'Utility Functions'!$P$3:$P$6)","v":0},{"$f":"valuePL(J26,'Utility Functions'!$Q$3:$Q$6,'Utility Functions'!$R$3:$R$6)","v":0},{"$f":"valuePL(K26,'Utility Functions'!$S$3:$S$7,'Utility Functions'!$T$3:$T$7)","v":0},{"$f":"valueE(L26,'Utility Functions'!$V$3,'Utility Functions'!$V$4,'Utility Functions'!$V$5,'Utility Functions'!$V$6)","v":0},{"$f":"valuePL(M26,'Utility Functions'!$W$3:$W$6,'Utility Functions'!$X$3:$X$6)","v":0},{"$f":"valueE(N26,'Utility Functions'!$Z$3,'Utility Functions'!$Z$4,'Utility Functions'!$Z$5,'Utility Functions'!$Z$6)","v":1},{"$f":"valuePL(O26,'Utility Functions'!$AA$3:$AA$5,'Utility Functions'!$AB$3:$AB$5)","v":0.25},{"$f":"valuePL(P26,'Utility Functions'!$AC$3:$AC$7,'Utility Functions'!$AD$3:$AD$7)","v":0.5},{"$f":"valuePL(Q26,'Utility Functions'!$AE$3:$AE$6,'Utility Functions'!$AF$3:$AF$6)","v":0.5},{"$f":"valuePL(R26,'Utility Functions'!$AG$3:$AG$6,'Utility Functions'!$AH$3:$AH$6)","v":1},{"$f":"valuePL(S26,'Utility Functions'!$AI$3:$AI$6,'Utility Functions'!$AJ$3:$AJ$6)","v":1},{"$f":"valuePL(T26,'Utility Functions'!$AK$3:$AK$8,'Utility Functions'!$AL$3:$AL$8)","v":0},{"$f":"valuePL(U26,'Utility Functions'!$AM$3:$AM$5,'Utility Functions'!$AN$3:$AN$5)","v":0},{"$f":"valuePL(V26,'Utility Functions'!$AO$3:$AO$5,'Utility Functions'!$AP$3:$AP$5)","v":1},{"$f":"valuePL(W26,'Utility Functions'!$AQ$3:$AQ$6,'Utility Functions'!$AR$3:$AR$6)","v":0.2},{"$f":"valuePL(X26,'Utility Functions'!$AS$3:$AS$6,'Utility Functions'!$AT$3:$AT$6)","v":1},{"$f":"valuePL(Y26,'Utility Functions'!$AU$3:$AU$6,'Utility Functions'!$AV$3:$AV$6)","v":0.8},{"$f":"valuePL(Z26,'Utility Functions'!$AW$3:$AW$5,'Utility Functions'!$AX$3:$AX$5)","v":0.5},{"$f":"valuePL(AA26,'Utility Functions'!$AY$3:$AY$6,'Utility Functions'!$AZ$3:$AZ$6)","v":0.2},{"$f":"valuePL(AB26,'Utility Functions'!$BA$3:$BA$5,'Utility Functions'!$BB$3:$BB$5)","v":1},{"$f":"valuePL(AC26,'Utility Functions'!$BC$3:$BC$5,'Utility Functions'!$BD$3:$BD$5)","v":1},13.870607417804099,null,13.870607417804099,2.6821507448123207,1.2384566729917774,1.25,3,5.7]
[26,{"$f":"valueE(B27,'Utility Functions'!$B$3,'Utility Functions'!$B$4,'Utility Functions'!$B$5,'Utility Functions'!$B$6)","v":0.96662819462069161},{"$f":"valueE(C27,'Utility Functions'!$D$3,'Utility Functions'!$D$4,'Utility Functions'!$D$5,'Utility Functions'!$D$6)","v":0.84744836833951609},{"$f":"valuePL(D27,'Utility Functions'!$E$3:$E$5,'Utility Functions'!$F$3:$F$5)","v":1},{"$f":"valuePL(E27,'Utility Functions'!$G$3:$G$5,'Utility Functions'!$H$3:$H$5)","v":0.5},{"$f":"valuePL(F27,'Utility Functions'!$I$3:$I$4,'Utility Functions'!$J$3:$J$5)","v":0},{"$f":"valueE(G27,'Utility Functions'!$L$3,'Utility Functions'!$L$4,'Utility Functions'!$L$5,'Utility Functions'!$L$6)","v":0},{"$f":"valueE(H27,'Utility Functions'!$N$3,'Utility Functions'!$N$4,'Utility Functions'!$N$5,'Utility Functions'!$N$6)","v":0},{"$f":"valuePL(I27,'Utility Functions'!$O$3:$O$6,'Utility Functions'!$P$3:$P$6)","v":0},{"$f":"valuePL(J27,'Utility Functions'!$Q$3:$Q$6,'Utility Functions'!$R$3:$R$6)","v":0},{"$f":"valuePL(K27,'Utility Functions'!$S$3:$S$7,'Utility Functions'!$T$3:$T$7)","v":0},{"$f":"valueE(L27,'Utility Functions'!$V$3,'Utility Functions'!$V$4,'Utility Functions'!$V$5,'Utility Functions'!$V$6)","v":0},{"$f":"valuePL(M27,'Utility Functions'!$W$3:$W$6,'Utility Functions'!$X$3:$X$6)","v":0},{"$f":"valueE(N27,'Utility Functions'!$Z$3,'Utility Functions'!$Z$4,'Utility Functions'!$Z$5,'Utility Functions'!$Z$6)","v":0},{"$f":"valuePL(O27,'Utility Functions'!$AA$3:$AA$5,'Utility Functions'!$AB$3:$AB$5)","v":0},{"$f":"valuePL(P27,'Utility Functions'!$AC$3:$AC$7,'Utility Functions'!$AD$3:$AD$7)","v":0.75},{"$f":"valuePL(Q27,'Utility Functions'!$AE$3:$AE$6,'Utility Functions'!$AF$3:$AF$6)","v":0},{"$f":"valuePL(R27,'Utility Functions'!$AG$3:$AG$6,'Utility Functions'!$AH$3:$AH$6)","v":1},{"$f":"valuePL(S27,'Utility Functions'!$AI$3:$AI$6,'Utility Functions'!$AJ$3:$AJ$6)","v":1},{"$f":"valuePL(T27,'Utility Functions'!$AK$3:$AK$8,'Utility Functions'!$AL$3:$AL$8)","v":0.8},{"$f":"valuePL(U27,'Utility Functions'!$AM$3:$AM$5,'Utility Functions'!$AN$3:$AN$5)","v":0},{"$f":"valuePL(V27,'Utility Functions'!$AO$3:$AO$5,'Utility Functions'!$AP$3:$AP$5)","v":1},{"$f":"valuePL(W27,'Utility Functions'!$AQ$3:$AQ$6,'Utility Functions'!$AR$3:$AR$6)","v":0.2},{"$f":"valuePL(X27,'Utility Functions'!$AS$3:$AS$6,'Utility Functions'!$AT$3:$AT$6)","v":0},{"$f":"valuePL(Y27,'Utility Functions'!$AU$3:$AU$6,'Utility Functions'!$AV$3:$AV$6)","v":0.8},{"$f":"valuePL(Z27,'Utility Functions'!$AW$3:$AW$5,'Utility Functions'!$AX$3:$AX$5)","v":0},{"$f":"valuePL(AA27,'Utility Functions'!$AY$3:$AY$6,'Utility Functions'!$AZ$3:$AZ$6)","v":0.2},{"$f":"valuePL(AB27,'Utility Functions'!$BA$3:$BA$5,'Utility Functions'!$BB$3:$BB$5)","v":1},{"$f":"valuePL(AC27,'Utility Functions'!$BC$3:$BC$5,'Utility Functions'!$BD$3:$BD$5)","v":1},11.064076562960208,null,11.064076562960206,3.3140765629602078,0,0,3.55,4.2]
[27,{"$f":"valueE(B28,'Utility Functions'!$B$3,'Utility Functions'!$B$4,'Utility Functions'!$B$5,'Utility Functions'!$B$6)","v":0},{"$f":"valueE(C28,'Utility Functions'!$D$3,'Utility Functions'!$D$4,'Utility Functions'!$D$5,'Utility Functions'!$D$6)","v":0.46475967153745396},{"$f":"valuePL(D28,'Utility Functions'!$E$3:$E$5,'Utility Functions'!$F$3:$F$5)","v":1},{"$f":"valuePL(E28,'Utility Functions'!$G$3:$G$5,'Utility Functions'!$H$3:$H$5)","v":0},{"$f":"valuePL(F28,'Utility Functions'!$I$3:$I$4,'Utility Functions'!$J$3:$J$5)","v":0},{"$f":"valueE(G28,'Utility Functions'!$L$3,'Utility Functions'!$L$4,'Utility Functions'!$L$5,'Utility Functions'!$L$6)","v":0},{"$f":"valueE(H28,'Utility Functions'!$N$3,'Utility Functions'!$N$4,'Utility Functions'!$N$5,'Utility Functions'!$N$6)","v":0},{"$f":"valuePL(I28,'Utility Functions'!$O$3:$O$6,'Utility Functions'!$P$3:$P$6)","v":0},{"$f":"valuePL(J28,'Utility Functions'!$Q$3:$Q$6,'Utility Functions'!$R$3:$R$6)","v":0},{"$f":"valuePL(K28,'Utility Functions'!$S$3:$S$7,'Utility Functions'!$T$3:$T$7)","v":1},{"$f":"valueE(L28,'Utility Functions'!$V$3,'Utility Functions'!$V$4,'Utility Functions'!$V$5,'Utility Functions'!$V$6)","v":0},{"$f":"valuePL(M28,'Utility Functions'!$W$3:$W$6,'Utility Functions'!$X$3:$X$6)","v":0.1},{"$f":"valueE(N28,'Utility Functions'!$Z$3,'Utility Functions'!$Z$4,'Utility Functions'!$Z$5,'Utility Functions'!$Z$6)","v":0},{"$f":"valuePL(O28,'Utility Functions'!$AA$3:$AA$5,'Utility Functions'!$AB$3:$AB$5)","v":0},{"$f":"valuePL(P28,'Utility Functions'!$AC$3:$AC$7,'Utility Functions'!$AD$3:$AD$7)","v":0.5},{"$f":"valuePL(Q28,'Utility Functions'!$AE$3:$AE$6,'Utility Functions'!$AF$3:$AF$6)","v":0.5},{"$f":"valuePL(R28,'Utility Functions'!$AG$3:$AG$6,'Utility Functions'!$AH$3:$AH$6)","v":1},{"$f":"valuePL(S28,'Utility Functions'!$AI$3:$AI$6,'Utility Functions'!$AJ$3:$AJ$6)","v":1},{"$f":"valuePL(T28,'Utility Functions'!$AK$3:$AK$8,'Utility Functions'!$AL$3:$AL$8)","v":1},{"$f":"valuePL(U28,'Utility Functions'!$AM$3:$AM$5,'Utility Functions'!$AN$3:$AN$5)","v":0},{"$f":"valuePL(V28,'Utility Functions'!$AO$3:$AO$5,'Utility Functions'!$AP$3:$AP$5)","v":0.5},{"$f":"valuePL(W28,'Utility Functions'!$AQ$3:$AQ$6,'Utility Functions'!$AR$3:$AR$6)","v":0.75},{"$f":"valuePL(X28,'Utility Functions'!$AS$3:$AS$6,'Utility Functions'!$AT$3:$AT$6)","v":1},{"$f":"valuePL(Y28,'Utility Functions'!$AU$3:$AU$6,'Utility Functions'!$AV$3:$AV$6)","v":0.2},{"$f":"valuePL(Z28,'Utility Functions'!$AW$3:$AW$5,'Utility Functions'!$AX$3:$AX$5)","v":0},{"$f":"valuePL(AA28,'Utility Functions'!$AY$3:$AY$6,'Utility Functions'!$AZ$3:$AZ$6)","v":0},{"$f":"valuePL(AB28,'Utility Functions'!$BA$3:$BA$5,'Utility Functions'!$BB$3:$BB$5)","v":0},{"$f":"valuePL(AC28,'Utility Functions'!$BC$3:$BC$5,'Utility Functions'!$BD$3:$BD$5)","v":0},9.0147596715374529,null,9.0147596715374547,1.464759671537454,1.1000000000000001,0,4,2.4500000000000002]
[28,{"$f":"valueE(B29,'Utility Functions'!$B$3,'Utility Functions'!$B$4,'Utility Functions'!$B$5,'Utility Functions'!$B$6)","v":0.4511890475224023},{"$f":"valueE(C29,'Utility Functions'!$D$3,'Utility Functions'!$D$4,'Utility Functions'!$D$5,'Utility Functions'!$D$6)","v":0.46475967153745396},{"$f":"valuePL(D29,'Utility Functions'!$E$3:$E$5,'Utility Functions'!$F$3:$F$5)","v":1},{"$f":"valuePL(E29,'Utility Functions'!$G$3:$G$5,'Utility Functions'!$H$3:$H$5)","v":0},{"$f":"valuePL(F29,'Utility Functions'!$I$3:$I$4,'Utility Functions'!$J$3:$J$5)","v":1},{"$f":"valueE(G29,'Utility Functions'!$L$3,'Utility Functions'!$L$4,'Utility Functions'!$L$5,'Utility Functions'!$L$6)","v":0},{"$f":"valueE(H29,'Utility Functions'!$N$3,'Utility Functions'!$N$4,'Utility Functions'!$N$5,'Utility Functions'!$N$6)","v":0},{"$f":"valuePL(I29,'Utility Functions'!$O$3:$O$6,'Utility Functions'!$P$3:$P$6)","v":0},{"$f":"valuePL(J29,'Utility Functions'!$Q$3:$Q$6,'Utility Functions'!$R$3:$R$6)","v":0},{"$f":"valuePL(K29,'Utility Functions'!$S$3:$S$7,'Utility Functions'!$T$3:$T$7)","v":0},{"$f":"valueE(L29,'Utility Functions'!$V$3,'Utility Functions'!$V$4,'Utility Functions'!$V$5,'Utility Functions'!$V$6)","v":0.33333333333333331},{"$f":"valuePL(M29,'Utility Functions'!$W$3:$W$6,'Utility Functions'!$X$3:$X$6)","v":0.1},{"$f":"valueE(N29,'Utility Functions'!$Z$3,'Utility Functions'!$Z$4,'Utility Functions'!$Z$5,'Utility Functions'!$Z$6)","v":0},{"$f":"valuePL(O29,'Utility Functions'!$AA$3:$AA$5,'Utility Functions'!$AB$3:$AB$5)","v":0},{"$f":"valuePL(P29,'Utility Functions'!$AC$3:$AC$7,'Utility Functions'!$AD$3:$AD$7)","v":1},{"$f":"valuePL(Q29,'Utility Functions'!$AE$3:$AE$6,'Utility Functions'!$AF$3:$AF$6)","v":0},{"$f":"valuePL(R29,'Utility Functions'!$AG$3:$AG$6,'Utility Functions'!$AH$3:$AH$6)","v":1},{"$f":"valuePL(S29,'Utility Functions'!$AI$3:$AI$6,'Utility Functions'!$AJ$3:$AJ$6)","v":1},{"$f":"valuePL(T29,'Utility Functions'!$AK$3:$AK$8,'Utility Functions'!$AL$3:$AL$8)","v":0.8},{"$f":"valuePL(U29,'Utility Functions'!$AM$3:$AM$5,'Utility Functions'!$AN$3:$AN$5)","v":0},{"$f":"valuePL(V29,'Utility Functions'!$AO$3:$AO$5,'Utility Functions'!$AP$3:$AP$5)","v":1},{"$f":"valuePL(W29,'Utility Functions'!$AQ$3:$AQ$6,'Utility Functions'!$AR$3:$AR$6)","v":1},{"$f":"valuePL(X29,'Utility Functions'!$AS$3:$AS$6,'Utility Functions'!$AT$3:$AT$6)","v":1},{"$f":"valuePL(Y29,'Utility Functions'!$AU$3:$AU$6,'Utility Functions'!$AV$3:$AV$6)","v":0.2},{"$f":"valuePL(Z29,'Utility Functions'!$AW$3:$AW$5,'Utility Functions'!$AX$3:$AX$5)","v":0},{"$f":"valuePL(AA29,'Utility Functions'!$AY$3:$AY$6,'Utility Functions'!$AZ$3:$AZ$6)","v":0.89999999999999991},{"$f":"valuePL(AB29,'Utility Functions'!$BA$3:$BA$5,'Utility Functions'!$BB$3:$BB$5)","v":1},{"$f":"valuePL(AC29,'Utility Functions'!$BC$3:$BC$5,'Utility Functions'!$BD$3:$BD$5)","v":0.25},12.499282052393189,null,12.499282052393189,2.9159487190598563,0.43333333333333335,0,3.8,5.35]
[29,{"$f":"valueE(B30,'Utility Functions'!$B$3,'Utility Functions'!$B$4,'Utility Functions'!$B$5,'Utility Functions'!$B$6)","v":0.83470237647280454},{"$f":"valueE(C30,'Utility Functions'!$D$3,'Utility Functions'!$D$4,'Utility Functions'!$D$5,'Utility Functions'!$D$6)","v":0.71352759724260828},{"$f":"valuePL(D30,'Utility Functions'!$E$3:$E$5,'Utility Functions'!$F$3:$F$5)","v":1},{"$f":"valuePL(E30,'Utility Functions'!$G$3:$G$5,'Utility Functions'!$H$3:$H$5)","v":0.5},{"$f":"valuePL(F30,'Utility Functions'!$I$3:$I$4,'Utility Functions'!$J$3:$J$5)","v":0},{"$f":"valueE(G30,'Utility Functions'!$L$3,'Utility Functions'!$L$4,'Utility Functions'!$L$5,'Utility Functions'!$L$6)","v":0},{"$f":"valueE(H30,'Utility Functions'!$N$3,'Utility Functions'!$N$4,'Utility Functions'!$N$5,'Utility Functions'!$N$6)","v":0},{"$f":"valuePL(I30,'Utility Functions'!$O$3:$O$6,'Utility Functions'!$P$3:$P$6)","v":0.06},{"$f":"valuePL(J30,'Utility Functions'!$Q$3:$Q$6,'Utility Functions'!$R$3:$R$6)","v":0.67272727272727273},{"$f":"valuePL(K30,'Utility Functions'!$S$3:$S$7,'Utility Functions'!$T$3:$T$7)","v":0},{"$f":"valueE(L30,'Utility Functions'!$V$3,'Utility Functions'!$V$4,'Utility Functions'!$V$5,'Utility Functions'!$V$6)","v":1},{"$f":"valuePL(M30,'Utility Functions'!$W$3:$W$6,'Utility Functions'!$X$3:$X$6)","v":0.67272727272727273},{"$f":"valueE(N30,'Utility Functions'!$Z$3,'Utility Functions'!$Z$4,'Utility Functions'!$Z$5,'Utility Functions'!$Z$6)","v":0},{"$f":"valuePL(O30,'Utility Functions'!$AA$3:$AA$5,'Utility Functions'!$AB$3:$AB$5)","v":0},{"$f":"valuePL(P30,'Utility Functions'!$AC$3:$AC$7,'Utility Functions'!$AD$3:$AD$7)","v":0.25},{"$f":"valuePL(Q30,'Utility Functions'!$AE$3:$AE$6,'Utility Functions'!$AF$3:$AF$6)","v":0},{"$f":"valuePL(R30,'Utility Functions'!$AG$3:$AG$6,'Utility Functions'!$AH$3:$AH$6)","v":1},{"$f":"valuePL(S30,'Utility Functions'!$AI$3:$AI$6,'Utility Functions'!$AJ$3:$AJ$6)","v":1},{"$f":"valuePL(T30,'Utility Functions'!$AK$3:$AK$8,'Utility Functions'!$AL$3:$AL$8)","v":0.8},{"$f":"valuePL(U30,'Utility Functions'!$AM$3:$AM$5,'Utility Functions'!$AN$3:$AN$5)","v":0},{"$f":"valuePL(V30,'Utility Functions'!$AO$3:$AO$5,'Utility Functions'!$AP$3:$AP$5)","v":1},{"$f":"valuePL(W30,'Utility Functions'!$AQ$3:$AQ$6,'Utility Functions'!$AR$3:$AR$6)","v":0.2},{"$f":"valuePL(X30,'Utility Functions'!$AS$3:$AS$6,'Utility Functions'!$AT$3:$AT$6)","v":0},{"$f":"valuePL(Y30,'Utility Functions'!$AU$3:$AU$6,'Utility Functions'!$AV$3:$AV$6)","v":0.8},{"$f":"valuePL(Z30,'Utility Functions'!$AW$3:$AW$5,'Utility Functions'!$AX$3:$AX$5)","v":0.5},{"$f":"valuePL(AA30,'Utility Functions'!$AY$3:$AY$6,'Utility Functions'!$AZ$3:$AZ$6)","v":0.2},{"$f":"valuePL(AB30,'Utility Functions'!$BA$3:$BA$5,'Utility Functions'!$BB$3:$BB$5)","v":0.25},{"$f":"valuePL(AC30,'Utility Functions'!$BC$3:$BC$5,'Utility Functions'!$BD$3:$BD$5)","v":1},12.453684519169958,null,12.453684519169958,3.0482299737154128,2.4054545454545453,0,3.05,3.95]
[30,{"$f":"valueE(B31,'Utility Functions'!$B$3,'Utility Functions'!$B$4,'Utility Functions'!$B$5,'Utility Functions'!$B$6)","v":0.99864114504770318},{"$f":"valueE(C31,'Utility Functions'!$D$3,'Utility Functions'!$D$4,'Utility Functions'!$D$5,'Utility Functions'!$D$6)","v":0.84744836833951609},{"$f":"valuePL(D31,'Utility Functions'!$E$3:$E$5,'Utility Functions'!$F$3:$F$5)","v":1},{"$f":"valuePL(E31,'Utility Functions'!$G$3:$G$5,'Utility Functions'!$H$3:$H$5)","v":0},{"$f":"valuePL(F31,'Utility Functions'!$I$3:$I$4,'Utility Functions'!$J$3:$J$5)","v":0},{"$f":"valueE(G31,'Utility Functions'!$L$3,'Utility Functions'!$L$4,'Utility Functions'!$L$5,'Utility Functions'!$L$6)","v":0},{"$f":"valueE(H31,'Utility Functions'!$N$3,'Utility Functions'!$N$4,'Utility Functions'!$N$5,'Utility Functions'!$N$6)","v":0},{"$f":"valuePL(I31,'Utility Functions'!$O$3:$O$6,'Utility Functions'!$P$3:$P$6)","v":0},{"$f":"valuePL(J31,'Utility Functions'!$Q$3:$Q$6,'Utility Functions'!$R$3:$R$6)","v":0},{"$f":"valuePL(K31,'Utility Functions'!$S$3:$S$7,'Utility Functions'!$T$3:$T$7)","v":0},{"$f":"valueE(L31,'Utility Functions'!$V$3,'Utility Functions'!$V$4,'Utility Functions'!$V$5,'Utility Functions'!$V$6)","v":0.33333333333333331},{"$f":"valuePL(M31,'Utility Functions'!$W$3:$W$6,'Utility Functions'!$X$3:$X$6)","v":0.04},{"$f":"valueE(N31,'Utility Functions'!$Z$3,'Utility Functions'!$Z$4,'Utility Functions'!$Z$5,'Utility Functions'!$Z$6)","v":0},{"$f":"valuePL(O31,'Utility Functions'!$AA$3:$AA$5,'Utility Functions'!$AB$3:$AB$5)","v":0},{"$f":"valuePL(P31,'Utility Functions'!$AC$3:$AC$7,'Utility Functions'!$AD$3:$AD$7)","v":0},{"$f":"valuePL(Q31,'Utility Functions'!$AE$3:$AE$6,'Utility Functions'!$AF$3:$AF$6)","v":0},{"$f":"valuePL(R31,'Utility Functions'!$AG$3:$AG$6,'Utility Functions'!$AH$3:$AH$6)","v":0.2},{"$f":"valuePL(S31,'Utility Functions'!$AI$3:$AI$6,'Utility Functions'!$AJ$3:$AJ$6)","v":0.33},{"$f":"valuePL(T31,'Utility Functions'!$AK$3:$AK$8,'Utility Functions'!$AL$3:$AL$8)","v":0},{"$f":"valuePL(U31,'Utility Functions'!$AM$3:$AM$5,'Utility Functions'!$AN$3:$AN$5)","v":0},{"$f":"valuePL(V31,'Utility Functions'!$AO$3:$AO$5,'Utility Functions'!$AP$3:$AP$5)","v":0},{"$f":"valuePL(W31,'Utility Functions'!$AQ$3:$AQ$6,'Utility Functions'!$AR$3:$AR$6)","v":1},{"$f":"valuePL(X31,'Utility Functions'!$AS$3:$AS$6,'Utility Functions'!$AT$3:$AT$6)","v":0.2},{"$f":"valuePL(Y31,'Utility Functions'!$AU$3:$AU$6,'Utility Functions'!$AV$3:$AV$6)","v":0.8},{"$f":"valuePL(Z31,'Utility Functions'!$AW$3:$AW$5,'Utility Functions'!$AX$3:$AX$5)","v":0},{"$f":"valuePL(AA31,'Utility Functions'!$AY$3:$AY$6,'Utility Functions'!$AZ$3:$AZ$6)","v":0.89999999999999991},{"$f":"valuePL(AB31,'Utility Functions'!$BA$3:$BA$5,'Utility Functions'!$BB$3:$BB$5)","v":1},{"$f":"valuePL(AC31,'Utility Functions'!$BC$3:$BC$5,'Utility Functions'!$BD$3:$BD$5)","v":0},7.6494228467205527,null,7.6494228467205527,2.846089513387219,0.37333333333333329,0,0.53,3.9]
[31,{"$f":"valueE(B32,'Utility Functions'!$B$3,'Utility Functions'!$B$4,'Utility Functions'!$B$5,'Utility Functions'!$B$6)","v":0.55067187023002029},{"$f":"valueE(C32,'Utility Functions'!$D$3,'Utility Functions'!$D$4,'Utility Functions'!$D$5,'Utility Functions'!$D$6)","v":0.84744836833951609},{"$f":"valuePL(D32,'Utility Functions'!$E$3:$E$5,'Utility Functions'!$F$3:$F$5)","v":0.5},{"$f":"valuePL(E32,'Utility Functions'!$G$3:$G$5,'Utility Functions'!$H$3:$H$5)","v":0},{"$f":"valuePL(F32,'Utility Functions'!$I$3:$I$4,'Utility Functions'!$J$3:$J$5)","v":0},{"$f":"valueE(G32,'Utility Functions'!$L$3,'Utility Functions'!$L$4,'Utility Functions'!$L$5,'Utility Functions'!$L$6)","v":0},{"$f":"valueE(H32,'Utility Functions'!$N$3,'Utility Functions'!$N$4,'Utility Functions'!$N$5,'Utility Functions'!$N$6)","v":0},{"$f":"valuePL(I32,'Utility Functions'!$O$3:$O$6,'Utility Functions'!$P$3:$P$6)","v":0.75454545454545452},{"$f":"valuePL(J32,'Utility Functions'!$Q$3:$Q$6,'Utility Functions'!$R$3:$R$6)","v":0.08},{"$f":"valuePL(K32,'Utility Functions'!$S$3:$S$7,'Utility Functions'!$T$3:$T$7)","v":0},{"$f":"valueE(L32,'Utility Functions'!$V$3,'Utility Functions'!$V$4,'Utility Functions'!$V$5,'Utility Functions'!$V$6)","v":0.33333333333333331},{"$f":"valuePL(M32,'Utility Functions'!$W$3:$W$6,'Utility Functions'!$X$3:$X$6)","v":0.08},{"$f":"valueE(N32,'Utility Functions'!$Z$3,'Utility Functions'!$Z$4,'Utility Functions'!$Z$5,'Utility Functions'!$Z$6)","v":0},{"$f":"valuePL(O32,'Utility Functions'!$AA$3:$AA$5,'Utility Functions'!$AB$3:$AB$5)","v":0},{"$f":"valuePL(P32,'Utility Functions'!$AC$3:$AC$7,'Utility Functions'!$AD$3:$AD$7)","v":0.5},{"$f":"valuePL(Q32,'Utility Functions'!$AE$3:$AE$6,'Utility Functions'!$AF$3:$AF$6)","v":0},{"$f":"valuePL(R32,'Utility Functions'!$AG$3:$AG$6,'Utility Functions'!$AH$3:$AH$6)","v":1},{"$f":"valuePL(S32,'Utility Functions'!$AI$3:$AI$6,'Utility Functions'!$AJ$3:$AJ$6)","v":0.66},{"$f":"valuePL(T32,'Utility Functions'!$AK$3:$AK$8,'Utility Functions'!$AL$3:$AL$8)","v":0.6},{"$f":"valuePL(U32,'Utility Functions'!$AM$3:$AM$5,'Utility Functions'!$AN$3:$AN$5)","v":0},{"$f":"valuePL(V32,'Utility Functions'!$AO$3:$AO$5,'Utility Functions'!$AP$3:$AP$5)","v":0.5},{"$f":"valuePL(W32,'Utility Functions'!$AQ$3:$AQ$6,'Utility Functions'!$AR$3:$AR$6)","v":0},{"$f":"valuePL(X32,'Utility Functions'!$AS$3:$AS$6,'Utility Functions'!$AT$3:$AT$6)","v":0.2},{"$f":"valuePL(Y32,'Utility Functions'!$AU$3:$AU$6,'Utility Functions'!$AV$3:$AV$6)","v":0.2},{"$f":"valuePL(Z32,'Utility Functions'!$AW$3:$AW$5,'Utility Functions'!$AX$3:$AX$5)","v":1},{"$f":"valuePL(AA32,'Utility Functions'!$AY$3:$AY$6,'Utility Functions'!$AZ$3:$AZ$6)","v":0.89999999999999991},{"$f":"valuePL(AB32,'Utility Functions'!$BA$3:$BA$5,'Utility Functions'!$BB$3:$BB$5)","v":0.25},{"$f":"valuePL(AC32,'Utility Functions'!$BC$3:$BC$5,'Utility Functions'!$BD$3:$BD$5)","v":0.25},9.2059990264483247,null,9.2059990264483247,1.8981202385695364,1.2478787878787878,0,2.7600000000000002,3.3]
[32,{"$f":"valueE(B33,'Utility Functions'!$B$3,'Utility Functions'!$B$4,'Utility Functions'!$B$5,'Utility Functions'!$B$6)","v":0.63212151658375171},{"$f":"valueE(C33,'Utility Functions'!$D$3,'Utility Functions'!$D$4,'Utility Functions'!$D$5,'Utility Functions'!$D$6)","v":0.26839655623815994},{"$f":"valuePL(D33,'Utility Functions'!$E$3:$E$5,'Utility Functions'!$F$3:$F$5)","v":1},{"$f":"valuePL(E33,'Utility Functions'!$G$3:$G$5,'Utility Functions'!$H$3:$H$5)","v":1},{"$f":"valuePL(F33,'Utility Functions'!$I$3:$I$4,'Utility Functions'!$J$3:$J$5)","v":1},{"$f":"valueE(G33,'Utility Functions'!$L$3,'Utility Functions'!$L$4,'Utility Functions'!$L$5,'Utility Functions'!$L$6)","v":3.2258064516129031E-2},{"$f":"valueE(H33,'Utility Functions'!$N$3,'Utility Functions'!$N$4,'Utility Functions'!$N$5,'Utility Functions'!$N$6)","v":9.6774193548387094E-2},{"$f":"valuePL(I33,'Utility Functions'!$O$3:$O$6,'Utility Functions'!$P$3:$P$6)","v":0.34545454545454546},{"$f":"valuePL(J33,'Utility Functions'!$Q$3:$Q$6,'Utility Functions'!$R$3:$R$6)","v":1},{"$f":"valuePL(K33,'Utility Functions'!$S$3:$S$7,'Utility Functions'!$T$3:$T$7)","v":0.34545454545454546},{"$f":"valueE(L33,'Utility Functions'!$V$3,'Utility Functions'!$V$4,'Utility Functions'!$V$5,'Utility Functions'!$V$6)","v":1},{"$f":"valuePL(M33,'Utility Functions'!$W$3:$W$6,'Utility Functions'!$X$3:$X$6)","v":1},{"$f":"valueE(N33,'Utility Functions'!$Z$3,'Utility Functions'!$Z$4,'Utility Functions'!$Z$5,'Utility Functions'!$Z$6)","v":0},{"$f":"valuePL(O33,'Utility Functions'!$AA$3:$AA$5,'Utility Functions'!$AB$3:$AB$5)","v":0},{"$f":"valuePL(P33,'Utility Functions'!$AC$3:$AC$7,'Utility Functions'!$AD$3:$AD$7)","v":0.5},{"$f":"valuePL(Q33,'Utility Functions'!$AE$3:$AE$6,'Utility Functions'!$AF$3:$AF$6)","v":1},{"$f":"valuePL(R33,'Utility Functions'!$AG$3:$AG$6,'Utility Functions'!$AH$3:$AH$6)","v":1},{"$f":"valuePL(S33,'Utility Functions'!$AI$3:$AI$6,'Utility Functions'!$AJ$3:$AJ$6)","v":0},{"$f":"valuePL(T33,'Utility Functions'!$AK$3:$AK$8,'Utility Functions'!$AL$3:$AL$8)","v":0.8},{"$f":"valuePL(U33,'Utility Functions'!$AM$3:$AM$5,'Utility Functions'!$AN$3:$AN$5)","v":0},{"$f":"valuePL(V33,'Utility Functions'!$AO$3:$AO$5,'Utility Functions'!$AP$3:$AP$5)","v":0},{"$f":"valuePL(W33,'Utility Functions'!$AQ$3:$AQ$6,'Utility Functions'!$AR$3:$AR$6)","v":0.75},{"$f":"valuePL(X33,'Utility Functions'!$AS$3:$AS$6,'Utility Functions'!$AT$3:$AT$6)","v":0.2},{"$f":"valuePL(Y33,'Utility Functions'!$AU$3:$AU$6,'Utility Functions'!$AV$3:$AV$6)","v":0.8},{"$f":"valuePL(Z33,'Utility Functions'!$AW$3:$AW$5,'Utility Functions'!$AX$3:$AX$5)","v":0.5},{"$f":"valuePL(AA33,'Utility Functions'!$AY$3:$AY$6,'Utility Functions'!$AZ$3:$AZ$6)","v":0},{"$f":"valuePL(AB33,'Utility Functions'!$BA$3:$BA$5,'Utility Functions'!$BB$3:$BB$5)","v":1},{"$f":"valuePL(AC33,'Utility Functions'!$BC$3:$BC$5,'Utility Functions'!$BD$3:$BD$5)","v":0.25},14.52045942179552,null,14.520459421795518,3.9005180728219115,3.8199413489736074,0,3.3,3.5]
[33,{"$f":"valueE(B34,'Utility Functions'!$B$3,'Utility Functions'!$B$4,'Utility Functions'!$B$5,'Utility Functions'!$B$6)","v":0.93919136038504192},{"$f":"valueE(C34,'Utility Functions'!$D$3,'Utility Functions'!$D$4,'Utility Functions'!$D$5,'Utility Functions'!$D$6)","v":0.84744836833951609},{"$f":"valuePL(D34,'Utility Functions'!$E$3:$E$5,'Utility Functions'!$F$3:$F$5)","v":1},{"$f":"valuePL(E34,'Utility Functions'!$G$3:$G$5,'Utility Functions'!$H$3:$H$5)","v":0.5},{"$f":"valuePL(F34,'Utility Functions'!$I$3:$I$4,'Utility Functions'!$J$3:$J$5)","v":0},{"$f":"valueE(G34,'Utility Functions'!$L$3,'Utility Functions'!$L$4,'Utility Functions'!$L$5,'Utility Functions'!$L$6)","v":0},{"$f":"valueE(H34,'Utility Functions'!$N$3,'Utility Functions'!$N$4,'Utility Functions'!$N$5,'Utility Functions'!$N$6)","v":0},{"$f":"valuePL(I34,'Utility Functions'!$O$3:$O$6,'Utility Functions'!$P$3:$P$6)","v":0},{"$f":"valuePL(J34,'Utility Functions'!$Q$3:$Q$6,'Utility Functions'!$R$3:$R$6)","v":0},{"$f":"valuePL(K34,'Utility Functions'!$S$3:$S$7,'Utility Functions'!$T$3:$T$7)","v":0},{"$f":"valueE(L34,'Utility Functions'!$V$3,'Utility Functions'!$V$4,'Utility Functions'!$V$5,'Utility Functions'!$V$6)","v":0.5},{"$f":"valuePL(M34,'Utility Functions'!$W$3:$W$6,'Utility Functions'!$X$3:$X$6)","v":0},{"$f":"valueE(N34,'Utility Functions'!$Z$3,'Utility Functions'!$Z$4,'Utility Functions'!$Z$5,'Utility Functions'!$Z$6)","v":0},{"$f":"valuePL(O34,'Utility Functions'!$AA$3:$AA$5,'Utility Functions'!$AB$3:$AB$5)","v":0},{"$f":"valuePL(P34,'Utility Functions'!$AC$3:$AC$7,'Utility Functions'!$AD$3:$AD$7)","v":0.5},{"$f":"valuePL(Q34,'Utility Functions'!$AE$3:$AE$6,'Utility Functions'!$AF$3:$AF$6)","v":0},{"$f":"valuePL(R34,'Utility Functions'!$AG$3:$AG$6,'Utility Functions'!$AH$3:$AH$6)","v":1},{"$f":"valuePL(S34,'Utility Functions'!$AI$3:$AI$6,'Utility Functions'!$AJ$3:$AJ$6)","v":0.66},{"$f":"valuePL(T34,'Utility Functions'!$AK$3:$AK$8,'Utility Functions'!$AL$3:$AL$8)","v":0},{"$f":"valuePL(U34,'Utility Functions'!$AM$3:$AM$5,'Utility Functions'!$AN$3:$AN$5)","v":0},{"$f":"valuePL(V34,'Utility Functions'!$AO$3:$AO$5,'Utility Functions'!$AP$3:$AP$5)","v":0.5},{"$f":"valuePL(W34,'Utility Functions'!$AQ$3:$AQ$6,'Utility Functions'!$AR$3:$AR$6)","v":1},{"$f":"valuePL(X34,'Utility Functions'!$AS$3:$AS$6,'Utility Functions'!$AT$3:$AT$6)","v":0},{"$f":"valuePL(Y34,'Utility Functions'!$AU$3:$AU$6,'Utility Functions'!$AV$3:$AV$6)","v":0.8},{"$f":"valuePL(Z34,'Utility Functions'!$AW$3:$AW$5,'Utility Functions'!$AX$3:$AX$5)","v":1},{"$f":"valuePL(AA34,'Utility Functions'!$AY$3:$AY$6,'Utility Functions'!$AZ$3:$AZ$6)","v":1},{"$f":"valuePL(AB34,'Utility Functions'!$BA$3:$BA$5,'Utility Functions'!$BB$3:$BB$5)","v":0},{"$f":"valuePL(AC34,'Utility Functions'!$BC$3:$BC$5,'Utility Functions'!$BD$3:$BD$5)","v":0},10.246639728724558,null,10.246639728724558,3.2866397287245581,0.5,0,2.16,4.3]
[34,{"$f":"valueE(B35,'Utility Functions'!$B$3,'Utility Functions'!$B$4,'Utility Functions'!$B$5,'Utility Functions'!$B$6)","v":0},{"$f":"valueE(C35,'Utility Functions'!$D$3,'Utility Functions'!$D$4,'Utility Functions'!$D$5,'Utility Functions'!$D$6)","v":0},{"$f":"valuePL(D35,'Utility Functions'!$E$3:$E$5,'Utility Functions'!$F$3:$F$5)","v":0},{"$f":"valuePL(E35,'Utility Functions'!$G$3:$G$5,'Utility Functions'!$H$3:$H$5)","v":0},{"$f":"valuePL(F35,'Utility Functions'!$I$3:$I$4,'Utility Functions'!$J$3:$J$5)","v":0},{"$f":"valueE(G35,'Utility Functions'!$L$3,'Utility Functions'!$L$4,'Utility Functions'!$L$5,'Utility Functions'!$L$6)","v":0},{"$f":"valueE(H35,'Utility Functions'!$N$3,'Utility Functions'!$N$4,'Utility Functions'!$N$5,'Utility Functions'!$N$6)","v":1.1385199240986717E-2},{"$f":"valuePL(I35,'Utility Functions'!$O$3:$O$6,'Utility Functions'!$P$3:$P$6)","v":1},{"$f":"valuePL(J35,'Utility Functions'!$Q$3:$Q$6,'Utility Functions'!$R$3:$R$6)","v":0.91818181818181821},{"$f":"valuePL(K35,'Utility Functions'!$S$3:$S$7,'Utility Functions'!$T$3:$T$7)","v":1},{"$f":"valueE(L35,'Utility Functions'!$V$3,'Utility Functions'!$V$4,'Utility Functions'!$V$5,'Utility Functions'!$V$6)","v":1},{"$f":"valuePL(M35,'Utility Functions'!$W$3:$W$6,'Utility Functions'!$X$3:$X$6)","v":0.91818181818181821},{"$f":"valueE(N35,'Utility Functions'!$Z$3,'Utility Functions'!$Z$4,'Utility Functions'!$Z$5,'Utility Functions'!$Z$6)","v":0},{"$f":"valuePL(O35,'Utility Functions'!$AA$3:$AA$5,'Utility Functions'!$AB$3:$AB$5)","v":0},{"$f":"valuePL(P35,'Utility Functions'!$AC$3:$AC$7,'Utility Functions'!$AD$3:$AD$7)","v":0.5},{"$f":"valuePL(Q35,'Utility Functions'!$AE$3:$AE$6,'Utility Functions'!$AF$3:$AF$6)","v":0},{"$f":"valuePL(R35,'Utility Functions'!$AG$3:$AG$6,'Utility Functions'!$AH$3:$AH$6)","v":1},{"$f":"valuePL(S35,'Utility Functions'!$AI$3:$AI$6,'Utility Functions'!$AJ$3:$AJ$6)","v":1},{"$f":"valuePL(T35,'Utility Functions'!$AK$3:$AK$8,'Utility Functions'!$AL$3:$AL$8)","v":0.8},{"$f":"valuePL(U35,'Utility Functions'!$AM$3:$AM$5,'Utility Functions'!$AN$3:$AN$5)","v":0},{"$f":"valuePL(V35,'Utility Functions'!$AO$3:$AO$5,'Utility Functions'!$AP$3:$AP$5)","v":1},{"$f":"valuePL(W35,'Utility Functions'!$AQ$3:$AQ$6,'Utility Functions'!$AR$3:$AR$6)","v":1},{"$f":"valuePL(X35,'Utility Functions'!$AS$3:$AS$6,'Utility Functions'!$AT$3:$AT$6)","v":1},{"$f":"valuePL(Y35,'Utility Functions'!$AU$3:$AU$6,'Utility Functions'!$AV$3:$AV$6)","v":0},{"$f":"valuePL(Z35,'Utility Functions'!$AW$3:$AW$5,'Utility Functions'!$AX$3:$AX$5)","v":1},{"$f":"valuePL(AA35,'Utility Functions'!$AY$3:$AY$6,'Utility Functions'!$AZ$3:$AZ$6)","v":0.89999999999999991},{"$f":"valuePL(AB35,'Utility Functions'!$BA$3:$BA$5,'Utility Functions'!$BB$3:$BB$5)","v":0.25},{"$f":"valuePL(AC35,'Utility Functions'!$BC$3:$BC$5,'Utility Functions'!$BD$3:$BD$5)","v":0},13.297748835604624,null,13.297748835604624,0,4.847748835604623,0,3.3,5.15]
[35,{"$f":"valueE(B36,'Utility Functions'!$B$3,'Utility Functions'!$B$4,'Utility Functions'!$B$5,'Utility Functions'!$B$6)","v":0.79810469124896843},{"$f":"valueE(C36,'Utility Functions'!$D$3,'Utility Functions'!$D$4,'Utility Functions'!$D$5,'Utility Functions'!$D$6)","v":0.60939983135101949},{"$f":"valuePL(D36,'Utility Functions'!$E$3:$E$5,'Utility Functions'!$F$3:$F$5)","v":0.5},{"$f":"valuePL(E36,'Utility Functions'!$G$3:$G$5,'Utility Functions'!$H$3:$H$5)","v":0.5},{"$f":"valuePL(F36,'Utility Functions'!$I$3:$I$4,'Utility Functions'!$J$3:$J$5)","v":1},{"$f":"valueE(G36,'Utility Functions'!$L$3,'Utility Functions'!$L$4,'Utility Functions'!$L$5,'Utility Functions'!$L$6)","v":0},{"$f":"valueE(H36,'Utility Functions'!$N$3,'Utility Functions'!$N$4,'Utility Functions'!$N$5,'Utility Functions'!$N$6)","v":0},{"$f":"valuePL(I36,'Utility Functions'!$O$3:$O$6,'Utility Functions'!$P$3:$P$6)","v":0},{"$f":"valuePL(J36,'Utility Functions'!$Q$3:$Q$6,'Utility Functions'!$R$3:$R$6)","v":0},{"$f":"valuePL(K36,'Utility Functions'!$S$3:$S$7,'Utility Functions'!$T$3:$T$7)","v":1},{"$f":"valueE(L36,'Utility Functions'!$V$3,'Utility Functions'!$V$4,'Utility Functions'!$V$5,'Utility Functions'!$V$6)","v":0.66666666666666663},{"$f":"valuePL(M36,'Utility Functions'!$W$3:$W$6,'Utility Functions'!$X$3:$X$6)","v":0.1},{"$f":"valueE(N36,'Utility Functions'!$Z$3,'Utility Functions'!$Z$4,'Utility Functions'!$Z$5,'Utility Functions'!$Z$6)","v":1},{"$f":"valuePL(O36,'Utility Functions'!$AA$3:$AA$5,'Utility Functions'!$AB$3:$AB$5)","v":0},{"$f":"valuePL(P36,'Utility Functions'!$AC$3:$AC$7,'Utility Functions'!$AD$3:$AD$7)","v":0},{"$f":"valuePL(Q36,'Utility Functions'!$AE$3:$AE$6,'Utility Functions'!$AF$3:$AF$6)","v":0},{"$f":"valuePL(R36,'Utility Functions'!$AG$3:$AG$6,'Utility Functions'!$AH$3:$AH$6)","v":1},{"$f":"valuePL(S36,'Utility Functions'!$AI$3:$AI$6,'Utility Functions'!$AJ$3:$AJ$6)","v":1},{"$f":"valuePL(T36,'Utility Functions'!$AK$3:$AK$8,'Utility Functions'!$AL$3:$AL$8)","v":0.6},{"$f":"valuePL(U36,'Utility Functions'!$AM$3:$AM$5,'Utility Functions'!$AN$3:$AN$5)","v":0},{"$f":"valuePL(V36,'Utility Functions'!$AO$3:$AO$5,'Utility Functions'!$AP$3:$AP$5)","v":1},{"$f":"valuePL(W36,'Utility Functions'!$AQ$3:$AQ$6,'Utility Functions'!$AR$3:$AR$6)","v":0.75},{"$f":"valuePL(X36,'Utility Functions'!$AS$3:$AS$6,'Utility Functions'!$AT$3:$AT$6)","v":0},{"$f":"valuePL(Y36,'Utility Functions'!$AU$3:$AU$6,'Utility Functions'!$AV$3:$AV$6)","v":0.2},{"$f":"valuePL(Z36,'Utility Functions'!$AW$3:$AW$5,'Utility Functions'!$AX$3:$AX$5)","v":1},{"$f":"valuePL(AA36,'Utility Functions'!$AY$3:$AY$6,'Utility Functions'!$AZ$3:$AZ$6)","v":0},{"$f":"valuePL(AB36,'Utility Functions'!$BA$3:$BA$5,'Utility Functions'!$BB$3:$BB$5)","v":0.25},{"$f":"valuePL(AC36,'Utility Functions'!$BC$3:$BC$5,'Utility Functions'!$BD$3:$BD$5)","v":0.25},12.224171189266654,null,12.224171189266656,3.407504522599988,1.7666666666666666,1,2.6,3.45]
["Unweighted",{"$f":"SUMPRODUCT(B46:B80,$B$85:$B$119)","v":2.4313097951313183},{"$f":"SUMPRODUCT(C46:C80,$B$85:$B$119)","v":1.66702526070833},{"$f":"SUMPRODUCT(D46:D80,$B$85:$B$119)","v":5},1,0,1,1,1.4672727272727273,0.18000000000000002,1,0,0.1,0.5,0.25,1.5,0.8,3.8,5,3.2,0.25,2,3.75,5,2.2000000000000002,1,1,4,1.75,null,null,"Unweighted",{"$f":"SUMPRODUCT(AG46:AG80,$B$85:$B$119)","v":10.098335055839648},{"$f":"SUMPRODUCT(AH46:AH80,$B$85:$B$119)","v":4.747272727272728},0.75,14.55,20.7]
["Weighted",{"$f":"B$81*Sens_Mgmt!I$5","v":0.43371609154963175},{"$f":"C$81*Sens_Mgmt!J$5","v":0.28111788074110833},{"$f":"D$81*Sens_Mgmt!K$5","v":0.8539095612005676},{"$f":"E$81*Sens_Mgmt!L$5","v":0.16638497086135273},{"$f":"F$81*Sens_Mgmt!M$5","v":0},{"$f":"G$81*Sens_Mgmt!N$5","v":1.7673045476532324E-3},{"$f":"H$81*Sens_Mgmt!O$5","v":1.7673045476532324E-3},{"$f":"I$81*Sens_Mgmt!P$5","v":4.4017879355734684E-3},{"$f":"J$81*Sens_Mgmt!Q$5","v":5.2619936122489741E-4},{"$f":"K$81*Sens_Mgmt!R$5","v":2.5755760333468734E-3},{"$f":"L$81*Sens_Mgmt!S$5","v":0},{"$f":"M$81*Sens_Mgmt!T$5","v":1.9933023652734749E-4},{"$f":"N$81*Sens_Mgmt!U$5","v":1.7857142857142852E-3},{"$f":"O$81*Sens_Mgmt!V$5","v":2.6785714285714277E-3},{"$f":"P$81*Sens_Mgmt!W$5","v":7.060257125877073E-3},{"$f":"Q$81*Sens_Mgmt!X$5","v":4.1507273431152141E-3},{"$f":"R$81*Sens_Mgmt!Y$5","v":2.2567834960249503E-2},{"$f":"S$81*Sens_Mgmt!Z$5","v":2.6008001741800554E-2},{"$f":"T$81*Sens_Mgmt!AA$5","v":1.2115550774911861E-2},{"$f":"U$81*Sens_Mgmt!AB$5","v":9.3739185154716675E-4},{"$f":"V$81*Sens_Mgmt!AC$5","v":1.2965801857436336E-2},{"$f":"W$81*Sens_Mgmt!AD$5","v":1.7532309623938657E-2},{"$f":"X$81*Sens_Mgmt!AE$5","v":2.4999652651419957E-2},{"$f":"Y$81*Sens_Mgmt!AF$5","v":1.366921441747215E-2},{"$f":"Z$81*Sens_Mgmt!AG$5","v":5.3836573831294015E-3},{"$f":"AA$81*Sens_Mgmt!AH$5","v":4.1715134600722016E-3},{"$f":"AB$81*Sens_Mgmt!AI$5","v":1.769586745010596E-2},{"$f":"AC$81*Sens_Mgmt!AJ$5","v":7.219904062712979E-3},null,null,"Weighted for SA",{"$f":"AG81*#REF!","v":{"$error":"#REF!"}},{"$f":"AH81*#REF!","v":{"$error":"#REF!"}},{"$f":"AI81*#REF!","v":{"$error":"#REF!"}},{"$f":"AJ81*#REF!","v":{"$error":"#REF!"}},{"$f":"AK81*#REF!","v":{"$error":"#REF!"}}]
[]
[null,"Decision variable","Benefit","Cost"]
[{"$f":"A2","v":1},1,{"$f":"AD46","v":17.117643866192076},{"$f":"AD2","v":700000}]
[2,0,{"$f":"AD47","v":12.641625800575998},{"$f":"AD3","v":5400000}]
[3,0,11.563541444302563,250000]
[4,1,9.2460291931089209,150000]
[5,1,9.5663279251355373,220000]
[6,1,5.9008471271383875,110000]
[7,0,15.54287399641135,1000000]
[8,0,14.227364688589191,5000000]
[9,0,11.893773577166716,25000]
[10,0,9.01,900000]
[11,0,13.174032258064516,1500000]
[12,0,9.4195802436719873,100000]
[13,0,7.5245670174228056,250000]
[14,0,10.338706637075108,500000]
[15,0,15.150477261414375,800000]
[16,0,15.119696969696969,2000000]
[17,0,10.876550515651747,500000]
[18,0,10.178462998102468,300000]
[19,0,9.3165012474871283,750000]
[20,0,15.091255033092194,1500000]
[21,0,9.5500000000000007,900000]
[22,0,9.471742567994939,750000]
[23,0,9.5321507448123199,1000000]
[24,0,9.4968811881212041,150000]
[25,0,13.870607417804099,250000]
[26,0,11.064076562960208,500000]
[27,1,9.0147596715374529,1200000]
[28,0,12.499282052393189,500000]
[29,0,12.453684519169958,2000000]
[30,0,7.6494228467205527,250000]
[31,0,9.2059990264483247,650000]
[32,0,14.52045942179552,200000]
[33,0,10.246639728724558,400000]
[34,0,13.297748835604624,900000]
[35,0,12.224171189266654,900000]
[null,{"$f":"SUM(B85:B119)","v":5},{"$f":"SUMPRODUCT(C85:C119,B85:B119)","v":50.845607783112378},{"$f":"SUMPRODUCT(B85:B119,D85:D119)","v":2380000}]
[]
[null,null,"Cost constraint",15000000]

{"sheet":"Portfolio_C_Mgmt","index":40,"n_rows":122,"n_cols":37,"rows_kept":122,"cut":false,"hidden":false,"merged":[]}
["Project","manage_species","manage_spatial","manage_uncertainty","manage_currentpractices","manage_adaptivemanagement","pop_a","pop_b","pop_spatialscope","pop_temporalscope","hab_quantity","hab_quality","hab_temporal","ecoprocess_spp","ecoprocess_uncertainty","datasharing","broaderimpacts","exisitingpriorities","partners","leverage","alignment","objhyp","response","targettaxa","surveydesign","stats","datamanagement","budget","timeline","cost"]
[1,9,6.25,2,2,0,186,1054,75,5,0,2,0,0,0,4,0,2,3,0,0,2,3,3,3,2,3,2,2,700000]
[2,3,28.2,1,0,0,0,0,0,0,0,2,0,4,1,0,0,3,3,0,0,2,3,3,3,2,3,2,2,5400000]
[3,8,28.2,2,0,0,0,0,0,0,0,2,0,5,1,0,2,0,0,0,1,2,3,3,3,2,1,2,2,250000]
[4,1,6.25,2,0,0,0,0,0,0,0,2,0,4,1,0,1,3,3,4,0,1,3,3,1,0,0,2,1,150000]
[5,4,3.1,2,0,0,0,0,50,2,0,2,0,0,0,0,1,3,3,4,1,0,3,3,2,0,0,2,1,220000]
[6,10,6.2E-2,2,0,0,0,0,10,2,0,2,0,0,0,0,1,0,3,3,0,0,0,3,0,0,0,2,1,110000]
[7,52,18.8,0,2,0,0,0,85,12,85,8,12,8,1,0,0,3,3,0,0,2,0,1,3,2,2,0,2,1000000]
[8,3,18.8,2,1,1,0,0,14,14,14,8,14,0,0,0,3,1,3,0,0,2,3,3,3,2,0,1,1,5000000]
[9,9,15.6,2,1,0,70,140,0,0,0,2,0,0,0,3,0,3,2,1,0,2,3,3,1,2,1,1,2,25000]
[10,0,0,0,0,0,0,0,0,0,0,2,0,6,2,1,2,3,2,2,0,0,2,3,3,1,1,0,2,900000]
[11,0,0,0,0,0,6,102,52,15,52,8,15,3,1,1,0,3,3,2,2,2,1,3,3,1,2,0,1,1500000]
[12,2,15.6,2,1,0,0,0,0,0,0,2,0,0,0,0,1,3,3,3,0,1,1,3,1,2,1,2,0,100000]
[13,0,0,0,0,0,0,12,39,2,39,8,2,7,1,1,0,3,3,0,0,1,0,1,0,2,1,1,1,250000]
[14,6,15.6,1,1,0,0,0,0,0,0,2,0,6,1,1,0,3,3,0,0,1,1,3,3,1,2,1,1,500000]
[15,23,12.5,2,1,1,0,0,23,3,23,8,3,1,2,2,0,2,3,3,2,0,3,1,1,2,3,2,1,800000]
[16,0,0,0,0,0,0,0,100,15,100,7,15,0,0,3,0,3,3,5,0,2,2,2,1,2,3,2,2,2000000]
[17,2,15.6,2,1,1,58,290,0,0,0,8,3,0,0,0,0,3,2,0,0,2,3,1,0,1,0,2,1,500000]
[18,0,0,0,0,0,0,30,0,0,0,2,0,8,1,1,3,3,3,5,1,2,2,1,2,1,2,1,0,300000]
[19,8,3.125,1,2,0,0,0,0,0,0,2,0,8,2,0,0,2,3,0,0,1,1,3,2,0,1,0,1,750000]
[20,9,15.6,1,2,0,0,435,76,10,76,6,10,8,2,1,0,3,3,3,2,1,0,0,1,2,1,0,1,1500000]
[21,0,0,0,0,0,0,0,0,0,0,2,0,8,2,0,1,3,3,5,1,0,2,3,1,0,3,1,2,900000]
[22,0,0,0,0,0,16,64,0,0,0,2,0,1,2,4,2,2,3,5,0,1,2,1,0,2,1,2,1,750000]
[23,9,18.8,2,0,0,0,0,0,0,0,2,0,0,0,3,0,3,3,5,0,2,1,2,1,1,1,0,1,1000000]
[24,5,6.25,2,0,0,0,0,0,0,0,2,0,0,0,0,0,3,3,5,0,0,3,1,3,2,1,0,2,150000]
[25,9,18.8,2,0,0,176,308,0,0,0,2,0,8,1,2,2,3,3,0,0,2,1,3,2,1,1,2,2,250000]
[26,17,18.8,2,1,0,0,0,0,0,0,2,0,0,0,3,0,3,3,4,0,2,1,0,2,0,1,2,2,500000]
[27,0,6.25,2,0,0,0,0,0,0,80,2,5,0,0,2,2,3,3,5,0,1,2,3,1,0,0,0,0,1200000]
[28,3,6.25,2,0,1,0,0,0,0,0,4,5,0,0,4,0,3,3,4,0,2,3,3,1,0,2,2,1,500000]
[29,9,12.5,2,1,0,0,0,15,12,15,8,12,0,0,1,0,3,3,4,0,2,1,0,2,1,1,1,2,2000000]
[30,33,18.8,2,0,0,0,0,0,0,0,4,2,0,0,0,0,1,1,0,0,0,3,1,2,0,2,2,0,250000]
[31,4,18.8,1,0,0,0,0,65,4,0,4,4,0,0,2,0,3,2,3,0,1,0,1,1,2,2,1,1,650000]
[32,5,3.125,2,2,1,6,102,40,16,40,8,16,0,0,2,3,3,0,4,0,0,2,1,2,1,0,2,1,200000]
[33,14,18.8,2,1,0,0,0,0,0,0,5,0,0,0,2,0,3,2,0,0,1,3,0,2,2,3,0,0,400000]
[34,0,0,0,0,0,0,12,100,15,100,8,15,0,0,2,0,3,3,4,0,2,3,3,0,2,2,1,0,900000]
[35,8,9.4,1,1,1,0,0,0,0,100,6,5,8,0,0,0,3,3,3,0,2,2,0,1,2,0,1,1,900000]
["CV",{"$f":"_xlfn.STDEV.S(B2:B36)/AVERAGE(B2:B36)","v":1.383842854444886},{"$f":"_xlfn.STDEV.S(C2:C36)/AVERAGE(C2:C36)","v":0.84395823753626376},{"$f":"_xlfn.STDEV.S(D2:D36)/AVERAGE(D2:D36)","v":0.65948586466528381},{"$f":"_xlfn.STDEV.S(E2:E36)/AVERAGE(E2:E36)","v":1.2933654230908831},2.2305806858480666,2.9881459898804135,2.7250501152884543,1.5394659205075842,1.5790297611729722,1.6828143944790142,0.63288342730791625,1.4346340567392073,1.2744250477591585,1.2909944487358058,1.043011114951035,1.4910544805781871,0.32582327651393111,0.30721159062514791,0.8219511329380369,2.1760730956581078,0.64975875258290616,0.58618247649425104,0.61083323417736113,0.63333947951472869,0.68629571860885286,0.76505300516434493,0.69428102652373402,0.60312027652595823]
["sd",{"$f":"_xlfn.STDEV.S(B2:B36)","v":10.477667326511279}]
["mean",{"$f":"AVERAGE(B2:B36)","v":7.5714285714285712}]
[null,{"$f":"B1","v":"manage_species"},{"$f":"C1","v":"manage_spatial"},"manage_uncertainty","manage_currentpractices","manage_adaptivemanagement","pop_a","pop_b","pop_spatialscope","pop_temporalscope","hab_quantity","hab_quality","hab_temporal","ecoprocess_spp","ecoprocess_uncertainty","datasharing","broaderimpacts","exisitingpriorities","partners","leverage","alignment","objhyp","response","targettaxa","surveydesign","stats","datamanagement","budget","timeline"]
[null,"Metric 1","Metric 2","Metric 3","Metric 4","Metric 5","Metric 6a","Metric 6b","Metric 7","Metric 8","Metric 9","Metric 10","Metric 11","Metric 12","Metric 13","Metric 14","Metric 15","Metric 16","Metric 17","Metric 18","Metric 19","Metric 20","Metric 21","Metric 22","Metric 23","Metric 24","Metric 25","Metric 26","Metric 27"]
["Weights",0.03,0.03,0.03,0.03,0.04,1.4999999999999999E-2,1.4999999999999999E-2,0.03,0.02,0.02,0.02,0.02,0.03,0.09,0.04,0.04,0.05,0.05,0.03,0.03,0.05,0.04,0.04,0.05,0.05,0.04,0.04,0.03]
[]
[null,"Unweighted"]
["Project",null,null,null,null,null,null,null,null,null,null,null,null,null,null,null,null,null,null,null,null,null,null,null,null,null,null,null,null,"Unweighted total",null,"Unweighted total","management","status","ecol_proc","integration","rigor"]
[{"$f":"A2","v":1},{"$f":"valueE(B2,'Utility Functions'!$B$3,'Utility Functions'!$B$4,'Utility Functions'!$B$5,'Utility Functions'!$B$6)","v":0.83470237647280454},{"$f":"valueE(C2,'Utility Functions'!$D$3,'Utility Functions'!$D$4,'Utility Functions'!$D$5,'Utility Functions'!$D$6)","v":0.46475967153745396},{"$f":"valuePL(D2,'Utility Functions'!$E$3:$E$5,'Utility Functions'!$F$3:$F$5)","v":1},{"$f":"valuePL(E2,'Utility Functions'!$G$3:$G$5,'Utility Functions'!$H$3:$H$5)","v":1},{"$f":"valuePL(F2,'Utility Functions'!$I$3:$I$4,'Utility Functions'!$J$3:$J$5)","v":0},{"$f":"valueE(G2,'Utility Functions'!$L$3,'Utility Functions'!$L$4,'Utility Functions'!$L$5,'Utility Functions'!$L$6)","v":1},{"$f":"valueE(H2,'Utility Functions'!$N$3,'Utility Functions'!$N$4,'Utility Functions'!$N$5,'Utility Functions'!$N$6)","v":1},{"$f":"valuePL(I2,'Utility Functions'!$O$3:$O$6,'Utility Functions'!$P$3:$P$6)","v":0.91818181818181821},{"$f":"valuePL(J2,'Utility Functions'!$Q$3:$Q$6,'Utility Functions'!$R$3:$R$6)","v":0.1},{"$f":"valuePL(K2,'Utility Functions'!$S$3:$S$7,'Utility Functions'!$T$3:$T$7)","v":0},{"$f":"valueE(L2,'Utility Functions'!$V$3,'Utility Functions'!$V$4,'Utility Functions'!$V$5,'Utility Functions'!$V$6)","v":0},{"$f":"valuePL(M2,'Utility Functions'!$W$3:$W$6,'Utility Functions'!$X$3:$X$6)","v":0},{"$f":"valueE(N2,'Utility Functions'!$Z$3,'Utility Functions'!$Z$4,'Utility Functions'!$Z$5,'Utility Functions'!$Z$6)","v":0},{"$f":"valuePL(O2,'Utility Functions'!$AA$3:$AA$5,'Utility Functions'!$AB$3:$AB$5)","v":0},{"$f":"valuePL(P2,'Utility Functions'!$AC$3:$AC$7,'Utility Functions'!$AD$3:$AD$7)","v":1},{"$f":"valuePL(Q2,'Utility Functions'!$AE$3:$AE$6,'Utility Functions'!$AF$3:$AF$6)","v":0},{"$f":"valuePL(R2,'Utility Functions'!$AG$3:$AG$6,'Utility Functions'!$AH$3:$AH$6)","v":0.8},{"$f":"valuePL(S2,'Utility Functions'!$AI$3:$AI$6,'Utility Functions'!$AJ$3:$AJ$6)","v":1},{"$f":"valuePL(T2,'Utility Functions'!$AK$3:$AK$8,'Utility Functions'!$AL$3:$AL$8)","v":0},{"$f":"valuePL(U2,'Utility Functions'!$AM$3:$AM$5,'Utility Functions'!$AN$3:$AN$5)","v":0},{"$f":"valuePL(V2,'Utility Functions'!$AO$3:$AO$5,'Utility Functions'!$AP$3:$AP$5)","v":1},{"$f":"valuePL(W2,'Utility Functions'!$AQ$3:$AQ$6,'Utility Functions'!$AR$3:$AR$6)","v":1},{"$f":"valuePL(X2,'Utility Functions'!$AS$3:$AS$6,'Utility Functions'!$AT$3:$AT$6)","v":1},{"$f":"valuePL(Y2,'Utility Functions'!$AU$3:$AU$6,'Utility Functions'!$AV$3:$AV$6)","v":1},{"$f":"valuePL(Z2,'Utility Functions'!$AW$3:$AW$5,'Utility Functions'!$AX$3:$AX$5)","v":1},{"$f":"valuePL(AA2,'Utility Functions'!$AY$3:$AY$6,'Utility Functions'!$AZ$3:$AZ$6)","v":1},{"$f":"valuePL(AB2,'Utility Functions'!$BA$3:$BA$5,'Utility Functions'!$BB$3:$BB$5)","v":1},{"$f":"valuePL(AC2,'Utility Functions'!$BC$3:$BC$5,'Utility Functions'!$BD$3:$BD$5)","v":1},{"$f":"SUM(B46:AC46)","v":17.117643866192076},null,{"$f":"SUM(AG46:AK46)","v":17.117643866192076},{"$f":"SUM(B46:F46)","v":3.2994620480102586},{"$f":"SUM(G46:M46)","v":3.0181818181818181},{"$f":"SUM(N46:O46)","v":0},{"$f":"SUM(P46:U46)","v":2.8},{"$f":"SUM(V46:AC46)","v":8}]
[2,{"$f":"valueE(B3,'Utility Functions'!$B$3,'Utility Functions'!$B$4,'Utility Functions'!$B$5,'Utility Functions'!$B$6)","v":0.4511890475224023},{"$f":"valueE(C3,'Utility Functions'!$D$3,'Utility Functions'!$D$4,'Utility Functions'!$D$5,'Utility Functions'!$D$6)","v":0.94043675305359531},{"$f":"valuePL(D3,'Utility Functions'!$E$3:$E$5,'Utility Functions'!$F$3:$F$5)","v":0.5},{"$f":"valuePL(E3,'Utility Functions'!$G$3:$G$5,'Utility Functions'!$H$3:$H$5)","v":0},{"$f":"valuePL(F3,'Utility Functions'!$I$3:$I$4,'Utility Functions'!$J$3:$J$5)","v":0},{"$f":"valueE(G3,'Utility Functions'!$L$3,'Utility Functions'!$L$4,'Utility Functions'!$L$5,'Utility Functions'!$L$6)","v":0},{"$f":"valueE(H3,'Utility Functions'!$N$3,'Utility Functions'!$N$4,'Utility Functions'!$N$5,'Utility Functions'!$N$6)","v":0},{"$f":"valuePL(I3,'Utility Functions'!$O$3:$O$6,'Utility Functions'!$P$3:$P$6)","v":0},{"$f":"valuePL(J3,'Utility Functions'!$Q$3:$Q$6,'Utility Functions'!$R$3:$R$6)","v":0},{"$f":"valuePL(K3,'Utility Functions'!$S$3:$S$7,'Utility Functions'!$T$3:$T$7)","v":0},{"$f":"valueE(L3,'Utility Functions'!$V$3,'Utility Functions'!$V$4,'Utility Functions'!$V$5,'Utility Functions'!$V$6)","v":0},{"$f":"valuePL(M3,'Utility Functions'!$W$3:$W$6,'Utility Functions'!$X$3:$X$6)","v":0},{"$f":"valueE(N3,'Utility Functions'!$Z$3,'Utility Functions'!$Z$4,'Utility Functions'!$Z$5,'Utility Functions'!$Z$6)","v":0.5},{"$f":"valuePL(O3,'Utility Functions'!$AA$3:$AA$5,'Utility Functions'!$AB$3:$AB$5)","v":0.25},{"$f":"valuePL(P3,'Utility Functions'!$AC$3:$AC$7,'Utility Functions'!$AD$3:$AD$7)","v":0},{"$f":"valuePL(Q3,'Utility Functions'!$AE$3:$AE$6,'Utility Functions'!$AF$3:$AF$6)","v":0},{"$f":"valuePL(R3,'Utility Functions'!$AG$3:$AG$6,'Utility Functions'!$AH$3:$AH$6)","v":1},{"$f":"valuePL(S3,'Utility Functions'!$AI$3:$AI$6,'Utility Functions'!$AJ$3:$AJ$6)","v":1},{"$f":"valuePL(T3,'Utility Functions'!$AK$3:$AK$8,'Utility Functions'!$AL$3:$AL$8)","v":0},{"$f":"valuePL(U3,'Utility Functions'!$AM$3:$AM$5,'Utility Functions'!$AN$3:$AN$5)","v":0},{"$f":"valuePL(V3,'Utility Functions'!$AO$3:$AO$5,'Utility Functions'!$AP$3:$AP$5)","v":1},{"$f":"valuePL(W3,'Utility Functions'!$AQ$3:$AQ$6,'Utility Functions'!$AR$3:$AR$6)","v":1},{"$f":"valuePL(X3,'Utility Functions'!$AS$3:$AS$6,'Utility Functions'!$AT$3:$AT$6)","v":1},{"$f":"valuePL(Y3,'Utility Functions'!$AU$3:$AU$6,'Utility Functions'!$AV$3:$AV$6)","v":1},{"$f":"valuePL(Z3,'Utility Functions'!$AW$3:$AW$5,'Utility Functions'!$AX$3:$AX$5)","v":1},{"$f":"valuePL(AA3,'Utility Functions'!$AY$3:$AY$6,'Utility Functions'!$AZ$3:$AZ$6)","v":1},{"$f":"valuePL(AB3,'Utility Functions'!$BA$3:$BA$5,'Utility Functions'!$BB$3:$BB$5)","v":1},{"$f":"valuePL(AC3,'Utility Functions'!$BC$3:$BC$5,'Utility Functions'!$BD$3:$BD$5)","v":1},{"$f":"SUM(B47:AC47)","v":12.641625800575998},null,{"$f":"SUM(AG47:AK47)","v":12.641625800575998},{"$f":"SUM(B47:F47)","v":1.8916258005759976},{"$f":"SUM(G47:M47)","v":0},{"$f":"SUM(N47:O47)","v":0.75},{"$f":"SUM(P47:U47)","v":2},{"$f":"SUM(V47:AC47)","v":8}]
[3,{"$f":"valueE(B4,'Utility Functions'!$B$3,'Utility Functions'!$B$4,'Utility Functions'!$B$5,'Utility Functions'!$B$6)","v":0.79810469124896843},{"$f":"valueE(C4,'Utility Functions'!$D$3,'Utility Functions'!$D$4,'Utility Functions'!$D$5,'Utility Functions'!$D$6)","v":0.94043675305359531},{"$f":"valuePL(D4,'Utility Functions'!$E$3:$E$5,'Utility Functions'!$F$3:$F$5)","v":1},{"$f":"valuePL(E4,'Utility Functions'!$G$3:$G$5,'Utility Functions'!$H$3:$H$5)","v":0},{"$f":"valuePL(F4,'Utility Functions'!$I$3:$I$4,'Utility Functions'!$J$3:$J$5)","v":0},{"$f":"valueE(G4,'Utility Functions'!$L$3,'Utility Functions'!$L$4,'Utility Functions'!$L$5,'Utility Functions'!$L$6)","v":0},{"$f":"valueE(H4,'Utility Functions'!$N$3,'Utility Functions'!$N$4,'Utility Functions'!$N$5,'Utility Functions'!$N$6)","v":0},{"$f":"valuePL(I4,'Utility Functions'!$O$3:$O$6,'Utility Functions'!$P$3:$P$6)","v":0},{"$f":"valuePL(J4,'Utility Functions'!$Q$3:$Q$6,'Utility Functions'!$R$3:$R$6)","v":0},{"$f":"valuePL(K4,'Utility Functions'!$S$3:$S$7,'Utility Functions'!$T$3:$T$7)","v":0},{"$f":"valueE(L4,'Utility Functions'!$V$3,'Utility Functions'!$V$4,'Utility Functions'!$V$5,'Utility Functions'!$V$6)","v":0},{"$f":"valuePL(M4,'Utility Functions'!$W$3:$W$6,'Utility Functions'!$X$3:$X$6)","v":0},{"$f":"valueE(N4,'Utility Functions'!$Z$3,'Utility Functions'!$Z$4,'Utility Functions'!$Z$5,'Utility Functions'!$Z$6)","v":0.625},{"$f":"valuePL(O4,'Utility Functions'!$AA$3:$AA$5,'Utility Functions'!$AB$3:$AB$5)","v":0.25},{"$f":"valuePL(P4,'Utility Functions'!$AC$3:$AC$7,'Utility Functions'!$AD$3:$AD$7)","v":0},{"$f":"valuePL(Q4,'Utility Functions'!$AE$3:$AE$6,'Utility Functions'!$AF$3:$AF$6)","v":0.5},{"$f":"valuePL(R4,'Utility Functions'!$AG$3:$AG$6,'Utility Functions'!$AH$3:$AH$6)","v":0},{"$f":"valuePL(S4,'Utility Functions'!$AI$3:$AI$6,'Utility Functions'!$AJ$3:$AJ$6)","v":0},{"$f":"valuePL(T4,'Utility Functions'!$AK$3:$AK$8,'Utility Functions'!$AL$3:$AL$8)","v":0},{"$f":"valuePL(U4,'Utility Functions'!$AM$3:$AM$5,'Utility Functions'!$AN$3:$AN$5)","v":0.25},{"$f":"valuePL(V4,'Utility Functions'!$AO$3:$AO$5,'Utility Functions'!$AP$3:$AP$5)","v":1},{"$f":"valuePL(W4,'Utility Functions'!$AQ$3:$AQ$6,'Utility Functions'!$AR$3:$AR$6)","v":1},{"$f":"valuePL(X4,'Utility Functions'!$AS$3:$AS$6,'Utility Functions'!$AT$3:$AT$6)","v":1},{"$f":"valuePL(Y4,'Utility Functions'!$AU$3:$AU$6,'Utility Functions'!$AV$3:$AV$6)","v":1},{"$f":"valuePL(Z4,'Utility Functions'!$AW$3:$AW$5,'Utility Functions'!$AX$3:$AX$5)","v":1},{"$f":"valuePL(AA4,'Utility Functions'!$AY$3:$AY$6,'Utility Functions'!$AZ$3:$AZ$6)","v":0.2},{"$f":"valuePL(AB4,'Utility Functions'!$BA$3:$BA$5,'Utility Functions'!$BB$3:$BB$5)","v":1},{"$f":"valuePL(AC4,'Utility Functions'!$BC$3:$BC$5,'Utility Functions'!$BD$3:$BD$5)","v":1},11.563541444302563,null,11.563541444302565,2.7385414443025637,0,0.875,0.75,7.2]
[4,{"$f":"valueE(B5,'Utility Functions'!$B$3,'Utility Functions'!$B$4,'Utility Functions'!$B$5,'Utility Functions'!$B$6)","v":0.1812695215714665},{"$f":"valueE(C5,'Utility Functions'!$D$3,'Utility Functions'!$D$4,'Utility Functions'!$D$5,'Utility Functions'!$D$6)","v":0.46475967153745396},{"$f":"valuePL(D5,'Utility Functions'!$E$3:$E$5,'Utility Functions'!$F$3:$F$5)","v":1},{"$f":"valuePL(E5,'Utility Functions'!$G$3:$G$5,'Utility Functions'!$H$3:$H$5)","v":0},{"$f":"valuePL(F5,'Utility Functions'!$I$3:$I$4,'Utility Functions'!$J$3:$J$5)","v":0},{"$f":"valueE(G5,'Utility Functions'!$L$3,'Utility Functions'!$L$4,'Utility Functions'!$L$5,'Utility Functions'!$L$6)","v":0},{"$f":"valueE(H5,'Utility Functions'!$N$3,'Utility Functions'!$N$4,'Utility Functions'!$N$5,'Utility Functions'!$N$6)","v":0},{"$f":"valuePL(I5,'Utility Functions'!$O$3:$O$6,'Utility Functions'!$P$3:$P$6)","v":0},{"$f":"valuePL(J5,'Utility Functions'!$Q$3:$Q$6,'Utility Functions'!$R$3:$R$6)","v":0},{"$f":"valuePL(K5,'Utility Functions'!$S$3:$S$7,'Utility Functions'!$T$3:$T$7)","v":0},{"$f":"valueE(L5,'Utility Functions'!$V$3,'Utility Functions'!$V$4,'Utility Functions'!$V$5,'Utility Functions'!$V$6)","v":0},{"$f":"valuePL(M5,'Utility Functions'!$W$3:$W$6,'Utility Functions'!$X$3:$X$6)","v":0},{"$f":"valueE(N5,'Utility Functions'!$Z$3,'Utility Functions'!$Z$4,'Utility Functions'!$Z$5,'Utility Functions'!$Z$6)","v":0.5},{"$f":"valuePL(O5,'Utility Functions'!$AA$3:$AA$5,'Utility Functions'!$AB$3:$AB$5)","v":0.25},{"$f":"valuePL(P5,'Utility Functions'!$AC$3:$AC$7,'Utility Functions'!$AD$3:$AD$7)","v":0},{"$f":"valuePL(Q5,'Utility Functions'!$AE$3:$AE$6,'Utility Functions'!$AF$3:$AF$6)","v":0.1},{"$f":"valuePL(R5,'Utility Functions'!$AG$3:$AG$6,'Utility Functions'!$AH$3:$AH$6)","v":1},{"$f":"valuePL(S5,'Utility Functions'!$AI$3:$AI$6,'Utility Functions'!$AJ$3:$AJ$6)","v":1},{"$f":"valuePL(T5,'Utility Functions'!$AK$3:$AK$8,'Utility Functions'!$AL$3:$AL$8)","v":0.8},{"$f":"valuePL(U5,'Utility Functions'!$AM$3:$AM$5,'Utility Functions'!$AN$3:$AN$5)","v":0},{"$f":"valuePL(V5,'Utility Functions'!$AO$3:$AO$5,'Utility Functions'!$AP$3:$AP$5)","v":0.5},{"$f":"valuePL(W5,'Utility Functions'!$AQ$3:$AQ$6,'Utility Functions'!$AR$3:$AR$6)","v":1},{"$f":"valuePL(X5,'Utility Functions'!$AS$3:$AS$6,'Utility Functions'!$AT$3:$AT$6)","v":1},{"$f":"valuePL(Y5,'Utility Functions'!$AU$3:$AU$6,'Utility Functions'!$AV$3:$AV$6)","v":0.2},{"$f":"valuePL(Z5,'Utility Functions'!$AW$3:$AW$5,'Utility Functions'!$AX$3:$AX$5)","v":0},{"$f":"valuePL(AA5,'Utility Functions'!$AY$3:$AY$6,'Utility Functions'!$AZ$3:$AZ$6)","v":0},{"$f":"valuePL(AB5,'Utility Functions'!$BA$3:$BA$5,'Utility Functions'!$BB$3:$BB$5)","v":1},{"$f":"valuePL(AC5,'Utility Functions'!$BC$3:$BC$5,'Utility Functions'!$BD$3:$BD$5)","v":0.25},9.2460291931089209,null,9.2460291931089209,1.6460291931089204,0,0.75,2.9000000000000004,3.95]
[5,{"$f":"valueE(B6,'Utility Functions'!$B$3,'Utility Functions'!$B$4,'Utility Functions'!$B$5,'Utility Functions'!$B$6)","v":0.55067187023002029},{"$f":"valueE(C6,'Utility Functions'!$D$3,'Utility Functions'!$D$4,'Utility Functions'!$D$5,'Utility Functions'!$D$6)","v":0.26656514581460788},{"$f":"valuePL(D6,'Utility Functions'!$E$3:$E$5,'Utility Functions'!$F$3:$F$5)","v":1},{"$f":"valuePL(E6,'Utility Functions'!$G$3:$G$5,'Utility Functions'!$H$3:$H$5)","v":0},{"$f":"valuePL(F6,'Utility Functions'!$I$3:$I$4,'Utility Functions'!$J$3:$J$5)","v":0},{"$f":"valueE(G6,'Utility Functions'!$L$3,'Utility Functions'!$L$4,'Utility Functions'!$L$5,'Utility Functions'!$L$6)","v":0},{"$f":"valueE(H6,'Utility Functions'!$N$3,'Utility Functions'!$N$4,'Utility Functions'!$N$5,'Utility Functions'!$N$6)","v":0},{"$f":"valuePL(I6,'Utility Functions'!$O$3:$O$6,'Utility Functions'!$P$3:$P$6)","v":0.50909090909090915},{"$f":"valuePL(J6,'Utility Functions'!$Q$3:$Q$6,'Utility Functions'!$R$3:$R$6)","v":0.04},{"$f":"valuePL(K6,'Utility Functions'!$S$3:$S$7,'Utility Functions'!$T$3:$T$7)","v":0},{"$f":"valueE(L6,'Utility Functions'!$V$3,'Utility Functions'!$V$4,'Utility Functions'!$V$5,'Utility Functions'!$V$6)","v":0},{"$f":"valuePL(M6,'Utility Functions'!$W$3:$W$6,'Utility Functions'!$X$3:$X$6)","v":0},{"$f":"valueE(N6,'Utility Functions'!$Z$3,'Utility Functions'!$Z$4,'Utility Functions'!$Z$5,'Utility Functions'!$Z$6)","v":0},{"$f":"valuePL(O6,'Utility Functions'!$AA$3:$AA$5,'Utility Functions'!$AB$3:$AB$5)","v":0},{"$f":"valuePL(P6,'Utility Functions'!$AC$3:$AC$7,'Utility Functions'!$AD$3:$AD$7)","v":0},{"$f":"valuePL(Q6,'Utility Functions'!$AE$3:$AE$6,'Utility Functions'!$AF$3:$AF$6)","v":0.1},{"$f":"valuePL(R6,'Utility Functions'!$AG$3:$AG$6,'Utility Functions'!$AH$3:$AH$6)","v":1},{"$f":"valuePL(S6,'Utility Functions'!$AI$3:$AI$6,'Utility Functions'!$AJ$3:$AJ$6)","v":1},{"$f":"valuePL(T6,'Utility Functions'!$AK$3:$AK$8,'Utility Functions'!$AL$3:$AL$8)","v":0.8},{"$f":"valuePL(U6,'Utility Functions'!$AM$3:$AM$5,'Utility Functions'!$AN$3:$AN$5)","v":0.25},{"$f":"valuePL(V6,'Utility Functions'!$AO$3:$AO$5,'Utility Functions'!$AP$3:$AP$5)","v":0},{"$f":"valuePL(W6,'Utility Functions'!$AQ$3:$AQ$6,'Utility Functions'!$AR$3:$AR$6)","v":1},{"$f":"valuePL(X6,'Utility Functions'!$AS$3:$AS$6,'Utility Functions'!$AT$3:$AT$6)","v":1},{"$f":"valuePL(Y6,'Utility Functions'!$AU$3:$AU$6,'Utility Functions'!$AV$3:$AV$6)","v":0.8},{"$f":"valuePL(Z6,'Utility Functions'!$AW$3:$AW$5,'Utility Functions'!$AX$3:$AX$5)","v":0},{"$f":"valuePL(AA6,'Utility Functions'!$AY$3:$AY$6,'Utility Functions'!$AZ$3:$AZ$6)","v":0},{"$f":"valuePL(AB6,'Utility Functions'!$BA$3:$BA$5,'Utility Functions'!$BB$3:$BB$5)","v":1},{"$f":"valuePL(AC6,'Utility Functions'!$BC$3:$BC$5,'Utility Functions'!$BD$3:$BD$5)","v":0.25},9.5663279251355373,null,9.5663279251355391,1.8172370160446283,0.54909090909090918,0,3.1500000000000004,4.05]
[6,{"$f":"valueE(B7,'Utility Functions'!$B$3,'Utility Functions'!$B$4,'Utility Functions'!$B$5,'Utility Functions'!$B$6)","v":0.86466602685702687},{"$f":"valueE(C7,'Utility Functions'!$D$3,'Utility Functions'!$D$4,'Utility Functions'!$D$5,'Utility Functions'!$D$6)","v":6.1811002813601471E-3},{"$f":"valuePL(D7,'Utility Functions'!$E$3:$E$5,'Utility Functions'!$F$3:$F$5)","v":1},{"$f":"valuePL(E7,'Utility Functions'!$G$3:$G$5,'Utility Functions'!$H$3:$H$5)","v":0},{"$f":"valuePL(F7,'Utility Functions'!$I$3:$I$4,'Utility Functions'!$J$3:$J$5)","v":0},{"$f":"valueE(G7,'Utility Functions'!$L$3,'Utility Functions'!$L$4,'Utility Functions'!$L$5,'Utility Functions'!$L$6)","v":0},{"$f":"valueE(H7,'Utility Functions'!$N$3,'Utility Functions'!$N$4,'Utility Functions'!$N$5,'Utility Functions'!$N$6)","v":0},{"$f":"valuePL(I7,'Utility Functions'!$O$3:$O$6,'Utility Functions'!$P$3:$P$6)","v":0.04},{"$f":"valuePL(J7,'Utility Functions'!$Q$3:$Q$6,'Utility Functions'!$R$3:$R$6)","v":0.04},{"$f":"valuePL(K7,'Utility Functions'!$S$3:$S$7,'Utility Functions'!$T$3:$T$7)","v":0},{"$f":"valueE(L7,'Utility Functions'!$V$3,'Utility Functions'!$V$4,'Utility Functions'!$V$5,'Utility Functions'!$V$6)","v":0},{"$f":"valuePL(M7,'Utility Functions'!$W$3:$W$6,'Utility Functions'!$X$3:$X$6)","v":0},{"$f":"valueE(N7,'Utility Functions'!$Z$3,'Utility Functions'!$Z$4,'Utility Functions'!$Z$5,'Utility Functions'!$Z$6)","v":0},{"$f":"valuePL(O7,'Utility Functions'!$AA$3:$AA$5,'Utility Functions'!$AB$3:$AB$5)","v":0},{"$f":"valuePL(P7,'Utility Functions'!$AC$3:$AC$7,'Utility Functions'!$AD$3:$AD$7)","v":0},{"$f":"valuePL(Q7,'Utility Functions'!$AE$3:$AE$6,'Utility Functions'!$AF$3:$AF$6)","v":0.1},{"$f":"valuePL(R7,'Utility Functions'!$AG$3:$AG$6,'Utility Functions'!$AH$3:$AH$6)","v":0},{"$f":"valuePL(S7,'Utility Functions'!$AI$3:$AI$6,'Utility Functions'!$AJ$3:$AJ$6)","v":1},{"$f":"valuePL(T7,'Utility Functions'!$AK$3:$AK$8,'Utility Functions'!$AL$3:$AL$8)","v":0.6},{"$f":"valuePL(U7,'Utility Functions'!$AM$3:$AM$5,'Utility Functions'!$AN$3:$AN$5)","v":0},{"$f":"valuePL(V7,'Utility Functions'!$AO$3:$AO$5,'Utility Functions'!$AP$3:$AP$5)","v":0},{"$f":"valuePL(W7,'Utility Functions'!$AQ$3:$AQ$6,'Utility Functions'!$AR$3:$AR$6)","v":0},{"$f":"valuePL(X7,'Utility Functions'!$AS$3:$AS$6,'Utility Functions'!$AT$3:$AT$6)","v":1},{"$f":"valuePL(Y7,'Utility Functions'!$AU$3:$AU$6,'Utility Functions'!$AV$3:$AV$6)","v":0},{"$f":"valuePL(Z7,'Utility Functions'!$AW$3:$AW$5,'Utility Functions'!$AX$3:$AX$5)","v":0},{"$f":"valuePL(AA7,'Utility Functions'!$AY$3:$AY$6,'Utility Functions'!$AZ$3:$AZ$6)","v":0},{"$f":"valuePL(AB7,'Utility Functions'!$BA$3:$BA$5,'Utility Functions'!$BB$3:$BB$5)","v":1},{"$f":"valuePL(AC7,'Utility Functions'!$BC$3:$BC$5,'Utility Functions'!$BD$3:$BD$5)","v":0.25},5.9008471271383875,null,5.9008471271383875,1.8708471271383869,0.08,0,1.7000000000000002,2.25]
[7,{"$f":"valueE(B8,'Utility Functions'!$B$3,'Utility Functions'!$B$4,'Utility Functions'!$B$5,'Utility Functions'!$B$6)","v":0.99997108261728973},{"$f":"valueE(C8,'Utility Functions'!$D$3,'Utility Functions'!$D$4,'Utility Functions'!$D$5,'Utility Functions'!$D$6)","v":0.84744836833951609},{"$f":"valuePL(D8,'Utility Functions'!$E$3:$E$5,'Utility Functions'!$F$3:$F$5)","v":0},{"$f":"valuePL(E8,'Utility Functions'!$G$3:$G$5,'Utility Functions'!$H$3:$H$5)","v":1},{"$f":"valuePL(F8,'Utility Functions'!$I$3:$I$4,'Utility Functions'!$J$3:$J$5)","v":0},{"$f":"valueE(G8,'Utility Functions'!$L$3,'Utility Functions'!$L$4,'Utility Functions'!$L$5,'Utility Functions'!$L$6)","v":0},{"$f":"valueE(H8,'Utility Functions'!$N$3,'Utility Functions'!$N$4,'Utility Functions'!$N$5,'Utility Functions'!$N$6)","v":0},{"$f":"valuePL(I8,'Utility Functions'!$O$3:$O$6,'Utility Functions'!$P$3:$P$6)","v":1},{"$f":"valuePL(J8,'Utility Functions'!$Q$3:$Q$6,'Utility Functions'!$R$3:$R$6)","v":0.67272727272727273},{"$f":"valuePL(K8,'Utility Functions'!$S$3:$S$7,'Utility Functions'!$T$3:$T$7)","v":1},{"$f":"valueE(L8,'Utility Functions'!$V$3,'Utility Functions'!$V$4,'Utility Functions'!$V$5,'Utility Functions'!$V$6)","v":1},{"$f":"valuePL(M8,'Utility Functions'!$W$3:$W$6,'Utility Functions'!$X$3:$X$6)","v":0.67272727272727273},{"$f":"valueE(N8,'Utility Functions'!$Z$3,'Utility Functions'!$Z$4,'Utility Functions'!$Z$5,'Utility Functions'!$Z$6)","v":1},{"$f":"valuePL(O8,'Utility Functions'!$AA$3:$AA$5,'Utility Functions'!$AB$3:$AB$5)","v":0.25},{"$f":"valuePL(P8,'Utility Functions'!$AC$3:$AC$7,'Utility Functions'!$AD$3:$AD$7)","v":0},{"$f":"valuePL(Q8,'Utility Functions'!$AE$3:$AE$6,'Utility Functions'!$AF$3:$AF$6)","v":0},{"$f":"valuePL(R8,'Utility Functions'!$AG$3:$AG$6,'Utility Functions'!$AH$3:$AH$6)","v":1},{"$f":"valuePL(S8,'Utility Functions'!$AI$3:$AI$6,'Utility Functions'!$AJ$3:$AJ$6)","v":1},{"$f":"valuePL(T8,'Utility Functions'!$AK$3:$AK$8,'Utility Functions'!$AL$3:$AL$8)","v":0},{"$f":"valuePL(U8,'Utility Functions'!$AM$3:$AM$5,'Utility Functions'!$AN$3:$AN$5)","v":0},{"$f":"valuePL(V8,'Utility Functions'!$AO$3:$AO$5,'Utility Functions'!$AP$3:$AP$5)","v":1},{"$f":"valuePL(W8,'Utility Functions'!$AQ$3:$AQ$6,'Utility Functions'!$AR$3:$AR$6)","v":0},{"$f":"valuePL(X8,'Utility Functions'!$AS$3:$AS$6,'Utility Functions'!$AT$3:$AT$6)","v":0.2},{"$f":"valuePL(Y8,'Utility Functions'!$AU$3:$AU$6,'Utility Functions'!$AV$3:$AV$6)","v":1},{"$f":"valuePL(Z8,'Utility Functions'!$AW$3:$AW$5,'Utility Functions'!$AX$3:$AX$5)","v":1},{"$f":"valuePL(AA8,'Utility Functions'!$AY$3:$AY$6,'Utility Functions'!$AZ$3:$AZ$6)","v":0.89999999999999991},{"$f":"valuePL(AB8,'Utility Functions'!$BA$3:$BA$5,'Utility Functions'!$BB$3:$BB$5)","v":0},{"$f":"valuePL(AC8,'Utility Functions'!$BC$3:$BC$5,'Utility Functions'!$BD$3:$BD$5)","v":1},15.54287399641135,null,15.54287399641135,2.8474194509568056,4.3454545454545457,1.25,2,5.0999999999999996]
[8,{"$f":"valueE(B9,'Utility Functions'!$B$3,'Utility Functions'!$B$4,'Utility Functions'!$B$5,'Utility Functions'!$B$6)","v":0.4511890475224023},{"$f":"valueE(C9,'Utility Functions'!$D$3,'Utility Functions'!$D$4,'Utility Functions'!$D$5,'Utility Functions'!$D$6)","v":0.84744836833951609},{"$f":"valuePL(D9,'Utility Functions'!$E$3:$E$5,'Utility Functions'!$F$3:$F$5)","v":1},{"$f":"valuePL(E9,'Utility Functions'!$G$3:$G$5,'Utility Functions'!$H$3:$H$5)","v":0.5},{"$f":"valuePL(F9,'Utility Functions'!$I$3:$I$4,'Utility Functions'!$J$3:$J$5)","v":1},{"$f":"valueE(G9,'Utility Functions'!$L$3,'Utility Functions'!$L$4,'Utility Functions'!$L$5,'Utility Functions'!$L$6)","v":0},{"$f":"valueE(H9,'Utility Functions'!$N$3,'Utility Functions'!$N$4,'Utility Functions'!$N$5,'Utility Functions'!$N$6)","v":0},{"$f":"valuePL(I9,'Utility Functions'!$O$3:$O$6,'Utility Functions'!$P$3:$P$6)","v":5.6000000000000008E-2},{"$f":"valuePL(J9,'Utility Functions'!$Q$3:$Q$6,'Utility Functions'!$R$3:$R$6)","v":0.83636363636363631},{"$f":"valuePL(K9,'Utility Functions'!$S$3:$S$7,'Utility Functions'!$T$3:$T$7)","v":0},{"$f":"valueE(L9,'Utility Functions'!$V$3,'Utility Functions'!$V$4,'Utility Functions'!$V$5,'Utility Functions'!$V$6)","v":1},{"$f":"valuePL(M9,'Utility Functions'!$W$3:$W$6,'Utility Functions'!$X$3:$X$6)","v":0.83636363636363631},{"$f":"valueE(N9,'Utility Functions'!$Z$3,'Utility Functions'!$Z$4,'Utility Functions'!$Z$5,'Utility Functions'!$Z$6)","v":0},{"$f":"valuePL(O9,'Utility Functions'!$AA$3:$AA$5,'Utility Functions'!$AB$3:$AB$5)","v":0},{"$f":"valuePL(P9,'Utility Functions'!$AC$3:$AC$7,'Utility Functions'!$AD$3:$AD$7)","v":0},{"$f":"valuePL(Q9,'Utility Functions'!$AE$3:$AE$6,'Utility Functions'!$AF$3:$AF$6)","v":1},{"$f":"valuePL(R9,'Utility Functions'!$AG$3:$AG$6,'Utility Functions'!$AH$3:$AH$6)","v":0.2},{"$f":"valuePL(S9,'Utility Functions'!$AI$3:$AI$6,'Utility Functions'!$AJ$3:$AJ$6)","v":1},{"$f":"valuePL(T9,'Utility Functions'!$AK$3:$AK$8,'Utility Functions'!$AL$3:$AL$8)","v":0},{"$f":"valuePL(U9,'Utility Functions'!$AM$3:$AM$5,'Utility Functions'!$AN$3:$AN$5)","v":0},{"$f":"valuePL(V9,'Utility Functions'!$AO$3:$AO$5,'Utility Functions'!$AP$3:$AP$5)","v":1},{"$f":"valuePL(W9,'Utility Functions'!$AQ$3:$AQ$6,'Utility Functions'!$AR$3:$AR$6)","v":1},{"$f":"valuePL(X9,'Utility Functions'!$AS$3:$AS$6,'Utility Functions'!$AT$3:$AT$6)","v":1},{"$f":"valuePL(Y9,'Utility Functions'!$AU$3:$AU$6,'Utility Functions'!$AV$3:$AV$6)","v":1},{"$f":"valuePL(Z9,'Utility Functions'!$AW$3:$AW$5,'Utility Functions'!$AX$3:$AX$5)","v":1},{"$f":"valuePL(AA9,'Utility Functions'!$AY$3:$AY$6,'Utility Functions'!$AZ$3:$AZ$6)","v":0},{"$f":"valuePL(AB9,'Utility Functions'!$BA$3:$BA$5,'Utility Functions'!$BB$3:$BB$5)","v":0.25},{"$f":"valuePL(AC9,'Utility Functions'!$BC$3:$BC$5,'Utility Functions'!$BD$3:$BD$5)","v":0.25},14.227364688589191,null,14.227364688589191,3.7986374158619185,2.7287272727272729,0,2.2000000000000002,5.5]
[9,{"$f":"valueE(B10,'Utility Functions'!$B$3,'Utility Functions'!$B$4,'Utility Functions'!$B$5,'Utility Functions'!$B$6)","v":0.83470237647280454},{"$f":"valueE(C10,'Utility Functions'!$D$3,'Utility Functions'!$D$4,'Utility Functions'!$D$5,'Utility Functions'!$D$6)","v":0.78989979019422951},{"$f":"valuePL(D10,'Utility Functions'!$E$3:$E$5,'Utility Functions'!$F$3:$F$5)","v":1},{"$f":"valuePL(E10,'Utility Functions'!$G$3:$G$5,'Utility Functions'!$H$3:$H$5)","v":0.5},{"$f":"valuePL(F10,'Utility Functions'!$I$3:$I$4,'Utility Functions'!$J$3:$J$5)","v":0},{"$f":"valueE(G10,'Utility Functions'!$L$3,'Utility Functions'!$L$4,'Utility Functions'!$L$5,'Utility Functions'!$L$6)","v":0.37634408602150538},{"$f":"valueE(H10,'Utility Functions'!$N$3,'Utility Functions'!$N$4,'Utility Functions'!$N$5,'Utility Functions'!$N$6)","v":0.13282732447817835},{"$f":"valuePL(I10,'Utility Functions'!$O$3:$O$6,'Utility Functions'!$P$3:$P$6)","v":0},{"$f":"valuePL(J10,'Utility Functions'!$Q$3:$Q$6,'Utility Functions'!$R$3:$R$6)","v":0},{"$f":"valuePL(K10,'Utility Functions'!$S$3:$S$7,'Utility Functions'!$T$3:$T$7)","v":0},{"$f":"valueE(L10,'Utility Functions'!$V$3,'Utility Functions'!$V$4,'Utility Functions'!$V$5,'Utility Functions'!$V$6)","v":0},{"$f":"valuePL(M10,'Utility Functions'!$W$3:$W$6,'Utility Functions'!$X$3:$X$6)","v":0},{"$f":"valueE(N10,'Utility Functions'!$Z$3,'Utility Functions'!$Z$4,'Utility Functions'!$Z$5,'Utility Functions'!$Z$6)","v":0},{"$f":"valuePL(O10,'Utility Functions'!$AA$3:$AA$5,'Utility Functions'!$AB$3:$AB$5)","v":0},{"$f":"valuePL(P10,'Utility Functions'!$AC$3:$AC$7,'Utility Functions'!$AD$3:$AD$7)","v":0.75},{"$f":"valuePL(Q10,'Utility Functions'!$AE$3:$AE$6,'Utility Functions'!$AF$3:$AF$6)","v":0},{"$f":"valuePL(R10,'Utility Functions'!$AG$3:$AG$6,'Utility Functions'!$AH$3:$AH$6)","v":1},{"$f":"valuePL(S10,'Utility Functions'!$AI$3:$AI$6,'Utility Functions'!$AJ$3:$AJ$6)","v":0.66},{"$f":"valuePL(T10,'Utility Functions'!$AK$3:$AK$8,'Utility Functions'!$AL$3:$AL$8)","v":0.2},{"$f":"valuePL(U10,'Utility Functions'!$AM$3:$AM$5,'Utility Functions'!$AN$3:$AN$5)","v":0},{"$f":"valuePL(V10,'Utility Functions'!$AO$3:$AO$5,'Utility Functions'!$AP$3:$AP$5)","v":1},{"$f":"valuePL(W10,'Utility Functions'!$AQ$3:$AQ$6,'Utility Functions'!$AR$3:$AR$6)","v":1},{"$f":"valuePL(X10,'Utility Functions'!$AS$3:$AS$6,'Utility Functions'!$AT$3:$AT$6)","v":1},{"$f":"valuePL(Y10,'Utility Functions'!$AU$3:$AU$6,'Utility Functions'!$AV$3:$AV$6)","v":0.2},{"$f":"valuePL(Z10,'Utility Functions'!$AW$3:$AW$5,'Utility Functions'!$AX$3:$AX$5)","v":1},{"$f":"valuePL(AA10,'Utility Functions'!$AY$3:$AY$6,'Utility Functions'!$AZ$3:$AZ$6)","v":0.2},{"$f":"valuePL(AB10,'Utility Functions'!$BA$3:$BA$5,'Utility Functions'!$BB$3:$BB$5)","v":0.25},{"$f":"valuePL(AC10,'Utility Functions'!$BC$3:$BC$5,'Utility Functions'!$BD$3:$BD$5)","v":1},11.893773577166716,null,11.893773577166719,3.1246021666670343,0.50917141049968373,0,2.6100000000000003,5.65]
[10,{"$f":"valueE(B11,'Utility Functions'!$B$3,'Utility Functions'!$B$4,'Utility Functions'!$B$5,'Utility Functions'!$B$6)","v":0},{"$f":"valueE(C11,'Utility Functions'!$D$3,'Utility Functions'!$D$4,'Utility Functions'!$D$5,'Utility Functions'!$D$6)","v":0},{"$f":"valuePL(D11,'Utility Functions'!$E$3:$E$5,'Utility Functions'!$F$3:$F$5)","v":0},{"$f":"valuePL(E11,'Utility Functions'!$G$3:$G$5,'Utility Functions'!$H$3:$H$5)","v":0},{"$f":"valuePL(F11,'Utility Functions'!$I$3:$I$4,'Utility Functions'!$J$3:$J$5)","v":0},{"$f":"valueE(G11,'Utility Functions'!$L$3,'Utility Functions'!$L$4,'Utility Functions'!$L$5,'Utility Functions'!$L$6)","v":0},{"$f":"valueE(H11,'Utility Functions'!$N$3,'Utility Functions'!$N$4,'Utility Functions'!$N$5,'Utility Functions'!$N$6)","v":0},{"$f":"valuePL(I11,'Utility Functions'!$O$3:$O$6,'Utility Functions'!$P$3:$P$6)","v":0},{"$f":"valuePL(J11,'Utility Functions'!$Q$3:$Q$6,'Utility Functions'!$R$3:$R$6)","v":0},{"$f":"valuePL(K11,'Utility Functions'!$S$3:$S$7,'Utility Functions'!$T$3:$T$7)","v":0},{"$f":"valueE(L11,'Utility Functions'!$V$3,'Utility Functions'!$V$4,'Utility Functions'!$V$5,'Utility Functions'!$V$6)","v":0},{"$f":"valuePL(M11,'Utility Functions'!$W$3:$W$6,'Utility Functions'!$X$3:$X$6)","v":0},{"$f":"valueE(N11,'Utility Functions'!$Z$3,'Utility Functions'!$Z$4,'Utility Functions'!$Z$5,'Utility Functions'!$Z$6)","v":0.75},{"$f":"valuePL(O11,'Utility Functions'!$AA$3:$AA$5,'Utility Functions'!$AB$3:$AB$5)","v":1},{"$f":"valuePL(P11,'Utility Functions'!$AC$3:$AC$7,'Utility Functions'!$AD$3:$AD$7)","v":0.25},{"$f":"valuePL(Q11,'Utility Functions'!$AE$3:$AE$6,'Utility Functions'!$AF$3:$AF$6)","v":0.5},{"$f":"valuePL(R11,'Utility Functions'!$AG$3:$AG$6,'Utility Functions'!$AH$3:$AH$6)","v":1},{"$f":"valuePL(S11,'Utility Functions'!$AI$3:$AI$6,'Utility Functions'!$AJ$3:$AJ$6)","v":0.66},{"$f":"valuePL(T11,'Utility Functions'!$AK$3:$AK$8,'Utility Functions'!$AL$3:$AL$8)","v":0.4},{"$f":"valuePL(U11,'Utility Functions'!$AM$3:$AM$5,'Utility Functions'!$AN$3:$AN$5)","v":0},{"$f":"valuePL(V11,'Utility Functions'!$AO$3:$AO$5,'Utility Functions'!$AP$3:$AP$5)","v":0},{"$f":"valuePL(W11,'Utility Functions'!$AQ$3:$AQ$6,'Utility Functions'!$AR$3:$AR$6)","v":0.75},{"$f":"valuePL(X11,'Utility Functions'!$AS$3:$AS$6,'Utility Functions'!$AT$3:$AT$6)","v":1},{"$f":"valuePL(Y11,'Utility Functions'!$AU$3:$AU$6,'Utility Functions'!$AV$3:$AV$6)","v":1},{"$f":"valuePL(Z11,'Utility Functions'!$AW$3:$AW$5,'Utility Functions'!$AX$3:$AX$5)","v":0.5},{"$f":"valuePL(AA11,'Utility Functions'!$AY$3:$AY$6,'Utility Functions'!$AZ$3:$AZ$6)","v":0.2},{"$f":"valuePL(AB11,'Utility Functions'!$BA$3:$BA$5,'Utility Functions'!$BB$3:$BB$5)","v":0},{"$f":"valuePL(AC11,'Utility Functions'!$BC$3:$BC$5,'Utility Functions'!$BD$3:$BD$5)","v":1},9.01,null,9.0100000000000016,0,0,1.75,2.81,4.45]
[11,{"$f":"valueE(B12,'Utility Functions'!$B$3,'Utility Functions'!$B$4,'Utility Functions'!$B$5,'Utility Functions'!$B$6)","v":0},{"$f":"valueE(C12,'Utility Functions'!$D$3,'Utility Functions'!$D$4,'Utility Functions'!$D$5,'Utility Functions'!$D$6)","v":0},{"$f":"valuePL(D12,'Utility Functions'!$E$3:$E$5,'Utility Functions'!$F$3:$F$5)","v":0},{"$f":"valuePL(E12,'Utility Functions'!$G$3:$G$5,'Utility Functions'!$H$3:$H$5)","v":0},{"$f":"valuePL(F12,'Utility Functions'!$I$3:$I$4,'Utility Functions'!$J$3:$J$5)","v":0},{"$f":"valueE(G12,'Utility Functions'!$L$3,'Utility Functions'!$L$4,'Utility Functions'!$L$5,'Utility Functions'!$L$6)","v":3.2258064516129031E-2},{"$f":"valueE(H12,'Utility Functions'!$N$3,'Utility Functions'!$N$4,'Utility Functions'!$N$5,'Utility Functions'!$N$6)","v":9.6774193548387094E-2},{"$f":"valuePL(I12,'Utility Functions'!$O$3:$O$6,'Utility Functions'!$P$3:$P$6)","v":0.54181818181818187},{"$f":"valuePL(J12,'Utility Functions'!$Q$3:$Q$6,'Utility Functions'!$R$3:$R$6)","v":0.91818181818181821},{"$f":"valuePL(K12,'Utility Functions'!$S$3:$S$7,'Utility Functions'!$T$3:$T$7)","v":0.54181818181818187},{"$f":"valueE(L12,'Utility Functions'!$V$3,'Utility Functions'!$V$4,'Utility Functions'!$V$5,'Utility Functions'!$V$6)","v":1},{"$f":"valuePL(M12,'Utility Functions'!$W$3:$W$6,'Utility Functions'!$X$3:$X$6)","v":0.91818181818181821},{"$f":"valueE(N12,'Utility Functions'!$Z$3,'Utility Functions'!$Z$4,'Utility Functions'!$Z$5,'Utility Functions'!$Z$6)","v":0.375},{"$f":"valuePL(O12,'Utility Functions'!$AA$3:$AA$5,'Utility Functions'!$AB$3:$AB$5)","v":0.25},{"$f":"valuePL(P12,'Utility Functions'!$AC$3:$AC$7,'Utility Functions'!$AD$3:$AD$7)","v":0.25},{"$f":"valuePL(Q12,'Utility Functions'!$AE$3:$AE$6,'Utility Functions'!$AF$3:$AF$6)","v":0},{"$f":"valuePL(R12,'Utility Functions'!$AG$3:$AG$6,'Utility Functions'!$AH$3:$AH$6)","v":1},{"$f":"valuePL(S12,'Utility Functions'!$AI$3:$AI$6,'Utility Functions'!$AJ$3:$AJ$6)","v":1},{"$f":"valuePL(T12,'Utility Functions'!$AK$3:$AK$8,'Utility Functions'!$AL$3:$AL$8)","v":0.4},{"$f":"valuePL(U12,'Utility Functions'!$AM$3:$AM$5,'Utility Functions'!$AN$3:$AN$5)","v":1},{"$f":"valuePL(V12,'Utility Functions'!$AO$3:$AO$5,'Utility Functions'!$AP$3:$AP$5)","v":1},{"$f":"valuePL(W12,'Utility Functions'!$AQ$3:$AQ$6,'Utility Functions'!$AR$3:$AR$6)","v":0.2},{"$f":"valuePL(X12,'Utility Functions'!$AS$3:$AS$6,'Utility Functions'!$AT$3:$AT$6)","v":1},{"$f":"valuePL(Y12,'Utility Functions'!$AU$3:$AU$6,'Utility Functions'!$AV$3:$AV$6)","v":1},{"$f":"valuePL(Z12,'Utility Functions'!$AW$3:$AW$5,'Utility Functions'!$AX$3:$AX$5)","v":0.5},{"$f":"valuePL(AA12,'Utility Functions'!$AY$3:$AY$6,'Utility Functions'!$AZ$3:$AZ$6)","v":0.89999999999999991},{"$f":"valuePL(AB12,'Utility Functions'!$BA$3:$BA$5,'Utility Functions'!$BB$3:$BB$5)","v":0},{"$f":"valuePL(AC12,'Utility Functions'!$BC$3:$BC$5,'Utility Functions'!$BD$3:$BD$5)","v":0.25},13.174032258064516,null,13.174032258064516,0,4.0490322580645159,0.625,3.65,4.8499999999999996]
[12,{"$f":"valueE(B13,'Utility Functions'!$B$3,'Utility Functions'!$B$4,'Utility Functions'!$B$5,'Utility Functions'!$B$6)","v":0.32968045347775865},{"$f":"valueE(C13,'Utility Functions'!$D$3,'Utility Functions'!$D$4,'Utility Functions'!$D$5,'Utility Functions'!$D$6)","v":0.78989979019422951},{"$f":"valuePL(D13,'Utility Functions'!$E$3:$E$5,'Utility Functions'!$F$3:$F$5)","v":1},{"$f":"valuePL(E13,'Utility Functions'!$G$3:$G$5,'Utility Functions'!$H$3:$H$5)","v":0.5},{"$f":"valuePL(F13,'Utility Functions'!$I$3:$I$4,'Utility Functions'!$J$3:$J$5)","v":0},{"$f":"valueE(G13,'Utility Functions'!$L$3,'Utility Functions'!$L$4,'Utility Functions'!$L$5,'Utility Functions'!$L$6)","v":0},{"$f":"valueE(H13,'Utility Functions'!$N$3,'Utility Functions'!$N$4,'Utility Functions'!$N$5,'Utility Functions'!$N$6)","v":0},{"$f":"valuePL(I13,'Utility Functions'!$O$3:$O$6,'Utility Functions'!$P$3:$P$6)","v":0},{"$f":"valuePL(J13,'Utility Functions'!$Q$3:$Q$6,'Utility Functions'!$R$3:$R$6)","v":0},{"$f":"valuePL(K13,'Utility Functions'!$S$3:$S$7,'Utility Functions'!$T$3:$T$7)","v":0},{"$f":"valueE(L13,'Utility Functions'!$V$3,'Utility Functions'!$V$4,'Utility Functions'!$V$5,'Utility Functions'!$V$6)","v":0},{"$f":"valuePL(M13,'Utility Functions'!$W$3:$W$6,'Utility Functions'!$X$3:$X$6)","v":0},{"$f":"valueE(N13,'Utility Functions'!$Z$3,'Utility Functions'!$Z$4,'Utility Functions'!$Z$5,'Utility Functions'!$Z$6)","v":0},{"$f":"valuePL(O13,'Utility Functions'!$AA$3:$AA$5,'Utility Functions'!$AB$3:$AB$5)","v":0},{"$f":"valuePL(P13,'Utility Functions'!$AC$3:$AC$7,'Utility Functions'!$AD$3:$AD$7)","v":0},{"$f":"valuePL(Q13,'Utility Functions'!$AE$3:$AE$6,'Utility Functions'!$AF$3:$AF$6)","v":0.1},{"$f":"valuePL(R13,'Utility Functions'!$AG$3:$AG$6,'Utility Functions'!$AH$3:$AH$6)","v":1},{"$f":"valuePL(S13,'Utility Functions'!$AI$3:$AI$6,'Utility Functions'!$AJ$3:$AJ$6)","v":1},{"$f":"valuePL(T13,'Utility Functions'!$AK$3:$AK$8,'Utility Functions'!$AL$3:$AL$8)","v":0.6},{"$f":"valuePL(U13,'Utility Functions'!$AM$3:$AM$5,'Utility Functions'!$AN$3:$AN$5)","v":0},{"$f":"valuePL(V13,'Utility Functions'!$AO$3:$AO$5,'Utility Functions'!$AP$3:$AP$5)","v":0.5},{"$f":"valuePL(W13,'Utility Functions'!$AQ$3:$AQ$6,'Utility Functions'!$AR$3:$AR$6)","v":0.2},{"$f":"valuePL(X13,'Utility Functions'!$AS$3:$AS$6,'Utility Functions'!$AT$3:$AT$6)","v":1},{"$f":"valuePL(Y13,'Utility Functions'!$AU$3:$AU$6,'Utility Functions'!$AV$3:$AV$6)","v":0.2},{"$f":"valuePL(Z13,'Utility Functions'!$AW$3:$AW$5,'Utility Functions'!$AX$3:$AX$5)","v":1},{"$f":"valuePL(AA13,'Utility Functions'!$AY$3:$AY$6,'Utility Functions'!$AZ$3:$AZ$6)","v":0.2},{"$f":"valuePL(AB13,'Utility Functions'!$BA$3:$BA$5,'Utility Functions'!$BB$3:$BB$5)","v":1},{"$f":"valuePL(AC13,'Utility Functions'!$BC$3:$BC$5,'Utility Functions'!$BD$3:$BD$5)","v":0},9.4195802436719873,null,9.4195802436719873,2.6195802436719884,0,0,2.7,4.0999999999999996]
[13,{"$f":"valueE(B14,'Utility Functions'!$B$3,'Utility Functions'!$B$4,'Utility Functions'!$B$5,'Utility Functions'!$B$6)","v":0},{"$f":"valueE(C14,'Utility Functions'!$D$3,'Utility Functions'!$D$4,'Utility Functions'!$D$5,'Utility Functions'!$D$6)","v":0},{"$f":"valuePL(D14,'Utility Functions'!$E$3:$E$5,'Utility Functions'!$F$3:$F$5)","v":0},{"$f":"valuePL(E14,'Utility Functions'!$G$3:$G$5,'Utility Functions'!$H$3:$H$5)","v":0},{"$f":"valuePL(F14,'Utility Functions'!$I$3:$I$4,'Utility Functions'!$J$3:$J$5)","v":0},{"$f":"valueE(G14,'Utility Functions'!$L$3,'Utility Functions'!$L$4,'Utility Functions'!$L$5,'Utility Functions'!$L$6)","v":0},{"$f":"valueE(H14,'Utility Functions'!$N$3,'Utility Functions'!$N$4,'Utility Functions'!$N$5,'Utility Functions'!$N$6)","v":1.1385199240986717E-2},{"$f":"valuePL(I14,'Utility Functions'!$O$3:$O$6,'Utility Functions'!$P$3:$P$6)","v":0.3290909090909091},{"$f":"valuePL(J14,'Utility Functions'!$Q$3:$Q$6,'Utility Functions'!$R$3:$R$6)","v":0.04},{"$f":"valuePL(K14,'Utility Functions'!$S$3:$S$7,'Utility Functions'!$T$3:$T$7)","v":0.3290909090909091},{"$f":"valueE(L14,'Utility Functions'!$V$3,'Utility Functions'!$V$4,'Utility Functions'!$V$5,'Utility Functions'!$V$6)","v":1},{"$f":"valuePL(M14,'Utility Functions'!$W$3:$W$6,'Utility Functions'!$X$3:$X$6)","v":0.04},{"$f":"valueE(N14,'Utility Functions'!$Z$3,'Utility Functions'!$Z$4,'Utility Functions'!$Z$5,'Utility Functions'!$Z$6)","v":0.875},{"$f":"valuePL(O14,'Utility Functions'!$AA$3:$AA$5,'Utility Functions'!$AB$3:$AB$5)","v":0.25},{"$f":"valuePL(P14,'Utility Functions'!$AC$3:$AC$7,'Utility Functions'!$AD$3:$AD$7)","v":0.25},{"$f":"valuePL(Q14,'Utility Functions'!$AE$3:$AE$6,'Utility Functions'!$AF$3:$AF$6)","v":0},{"$f":"valuePL(R14,'Utility Functions'!$AG$3:$AG$6,'Utility Functions'!$AH$3:$AH$6)","v":1},{"$f":"valuePL(S14,'Utility Functions'!$AI$3:$AI$6,'Utility Functions'!$AJ$3:$AJ$6)","v":1},{"$f":"valuePL(T14,'Utility Functions'!$AK$3:$AK$8,'Utility Functions'!$AL$3:$AL$8)","v":0},{"$f":"valuePL(U14,'Utility Functions'!$AM$3:$AM$5,'Utility Functions'!$AN$3:$AN$5)","v":0},{"$f":"valuePL(V14,'Utility Functions'!$AO$3:$AO$5,'Utility Functions'!$AP$3:$AP$5)","v":0.5},{"$f":"valuePL(W14,'Utility Functions'!$AQ$3:$AQ$6,'Utility Functions'!$AR$3:$AR$6)","v":0},{"$f":"valuePL(X14,'Utility Functions'!$AS$3:$AS$6,'Utility Functions'!$AT$3:$AT$6)","v":0.2},{"$f":"valuePL(Y14,'Utility Functions'!$AU$3:$AU$6,'Utility Functions'!$AV$3:$AV$6)","v":0},{"$f":"valuePL(Z14,'Utility Functions'!$AW$3:$AW$5,'Utility Functions'!$AX$3:$AX$5)","v":1},{"$f":"valuePL(AA14,'Utility Functions'!$AY$3:$AY$6,'Utility Functions'!$AZ$3:$AZ$6)","v":0.2},{"$f":"valuePL(AB14,'Utility Functions'!$BA$3:$BA$5,'Utility Functions'!$BB$3:$BB$5)","v":0.25},{"$f":"valuePL(AC14,'Utility Functions'!$BC$3:$BC$5,'Utility Functions'!$BD$3:$BD$5)","v":0.25},7.5245670174228056,null,7.5245670174228056,0,1.7495670174228048,1.125,2.25,2.4]
[14,{"$f":"valueE(B15,'Utility Functions'!$B$3,'Utility Functions'!$B$4,'Utility Functions'!$B$5,'Utility Functions'!$B$6)","v":0.69880684688087746},{"$f":"valueE(C15,'Utility Functions'!$D$3,'Utility Functions'!$D$4,'Utility Functions'!$D$5,'Utility Functions'!$D$6)","v":0.78989979019422951},{"$f":"valuePL(D15,'Utility Functions'!$E$3:$E$5,'Utility Functions'!$F$3:$F$5)","v":0.5},{"$f":"valuePL(E15,'Utility Functions'!$G$3:$G$5,'Utility Functions'!$H$3:$H$5)","v":0.5},{"$f":"valuePL(F15,'Utility Functions'!$I$3:$I$4,'Utility Functions'!$J$3:$J$5)","v":0},{"$f":"valueE(G15,'Utility Functions'!$L$3,'Utility Functions'!$L$4,'Utility Functions'!$L$5,'Utility Functions'!$L$6)","v":0},{"$f":"valueE(H15,'Utility Functions'!$N$3,'Utility Functions'!$N$4,'Utility Functions'!$N$5,'Utility Functions'!$N$6)","v":0},{"$f":"valuePL(I15,'Utility Functions'!$O$3:$O$6,'Utility Functions'!$P$3:$P$6)","v":0},{"$f":"valuePL(J15,'Utility Functions'!$Q$3:$Q$6,'Utility Functions'!$R$3:$R$6)","v":0},{"$f":"valuePL(K15,'Utility Functions'!$S$3:$S$7,'Utility Functions'!$T$3:$T$7)","v":0},{"$f":"valueE(L15,'Utility Functions'!$V$3,'Utility Functions'!$V$4,'Utility Functions'!$V$5,'Utility Functions'!$V$6)","v":0},{"$f":"valuePL(M15,'Utility Functions'!$W$3:$W$6,'Utility Functions'!$X$3:$X$6)","v":0},{"$f":"valueE(N15,'Utility Functions'!$Z$3,'Utility Functions'!$Z$4,'Utility Functions'!$Z$5,'Utility Functions'!$Z$6)","v":0.75},{"$f":"valuePL(O15,'Utility Functions'!$AA$3:$AA$5,'Utility Functions'!$AB$3:$AB$5)","v":0.25},{"$f":"valuePL(P15,'Utility Functions'!$AC$3:$AC$7,'Utility Functions'!$AD$3:$AD$7)","v":0.25},{"$f":"valuePL(Q15,'Utility Functions'!$AE$3:$AE$6,'Utility Functions'!$AF$3:$AF$6)","v":0},{"$f":"valuePL(R15,'Utility Functions'!$AG$3:$AG$6,'Utility Functions'!$AH$3:$AH$6)","v":1},{"$f":"valuePL(S15,'Utility Functions'!$AI$3:$AI$6,'Utility Functions'!$AJ$3:$AJ$6)","v":1},{"$f":"valuePL(T15,'Utility Functions'!$AK$3:$AK$8,'Utility Functions'!$AL$3:$AL$8)","v":0},{"$f":"valuePL(U15,'Utility Functions'!$AM$3:$AM$5,'Utility Functions'!$AN$3:$AN$5)","v":0},{"$f":"valuePL(V15,'Utility Functions'!$AO$3:$AO$5,'Utility Functions'!$AP$3:$AP$5)","v":0.5},{"$f":"valuePL(W15,'Utility Functions'!$AQ$3:$AQ$6,'Utility Functions'!$AR$3:$AR$6)","v":0.2},{"$f":"valuePL(X15,'Utility Functions'!$AS$3:$AS$6,'Utility Functions'!$AT$3:$AT$6)","v":1},{"$f":"valuePL(Y15,'Utility Functions'!$AU$3:$AU$6,'Utility Functions'!$AV$3:$AV$6)","v":1},{"$f":"valuePL(Z15,'Utility Functions'!$AW$3:$AW$5,'Utility Functions'!$AX$3:$AX$5)","v":0.5},{"$f":"valuePL(AA15,'Utility Functions'!$AY$3:$AY$6,'Utility Functions'!$AZ$3:$AZ$6)","v":0.89999999999999991},{"$f":"valuePL(AB15,'Utility Functions'!$BA$3:$BA$5,'Utility Functions'!$BB$3:$BB$5)","v":0.25},{"$f":"valuePL(AC15,'Utility Functions'!$BC$3:$BC$5,'Utility Functions'!$BD$3:$BD$5)","v":0.25},10.338706637075108,null,10.338706637075106,2.488706637075107,0,1,2.25,4.5999999999999996]
[15,{"$f":"valueE(B16,'Utility Functions'!$B$3,'Utility Functions'!$B$4,'Utility Functions'!$B$5,'Utility Functions'!$B$6)","v":0.98994966417177144},{"$f":"valueE(C16,'Utility Functions'!$D$3,'Utility Functions'!$D$4,'Utility Functions'!$D$5,'Utility Functions'!$D$6)","v":0.71352759724260828},{"$f":"valuePL(D16,'Utility Functions'!$E$3:$E$5,'Utility Functions'!$F$3:$F$5)","v":1},{"$f":"valuePL(E16,'Utility Functions'!$G$3:$G$5,'Utility Functions'!$H$3:$H$5)","v":0.5},{"$f":"valuePL(F16,'Utility Functions'!$I$3:$I$4,'Utility Functions'!$J$3:$J$5)","v":1},{"$f":"valueE(G16,'Utility Functions'!$L$3,'Utility Functions'!$L$4,'Utility Functions'!$L$5,'Utility Functions'!$L$6)","v":0},{"$f":"valueE(H16,'Utility Functions'!$N$3,'Utility Functions'!$N$4,'Utility Functions'!$N$5,'Utility Functions'!$N$6)","v":0},{"$f":"valuePL(I16,'Utility Functions'!$O$3:$O$6,'Utility Functions'!$P$3:$P$6)","v":9.2000000000000012E-2},{"$f":"valuePL(J16,'Utility Functions'!$Q$3:$Q$6,'Utility Functions'!$R$3:$R$6)","v":6.0000000000000012E-2},{"$f":"valuePL(K16,'Utility Functions'!$S$3:$S$7,'Utility Functions'!$T$3:$T$7)","v":6.0000000000000012E-2},{"$f":"valueE(L16,'Utility Functions'!$V$3,'Utility Functions'!$V$4,'Utility Functions'!$V$5,'Utility Functions'!$V$6)","v":1},{"$f":"valuePL(M16,'Utility Functions'!$W$3:$W$6,'Utility Functions'!$X$3:$X$6)","v":6.0000000000000012E-2},{"$f":"valueE(N16,'Utility Functions'!$Z$3,'Utility Functions'!$Z$4,'Utility Functions'!$Z$5,'Utility Functions'!$Z$6)","v":0.125},{"$f":"valuePL(O16,'Utility Functions'!$AA$3:$AA$5,'Utility Functions'!$AB$3:$AB$5)","v":1},{"$f":"valuePL(P16,'Utility Functions'!$AC$3:$AC$7,'Utility Functions'!$AD$3:$AD$7)","v":0.5},{"$f":"valuePL(Q16,'Utility Functions'!$AE$3:$AE$6,'Utility Functions'!$AF$3:$AF$6)","v":0},{"$f":"valuePL(R16,'Utility Functions'!$AG$3:$AG$6,'Utility Functions'!$AH$3:$AH$6)","v":0.8},{"$f":"valuePL(S16,'Utility Functions'!$AI$3:$AI$6,'Utility Functions'!$AJ$3:$AJ$6)","v":1},{"$f":"valuePL(T16,'Utility Functions'!$AK$3:$AK$8,'Utility Functions'!$AL$3:$AL$8)","v":0.6},{"$f":"valuePL(U16,'Utility Functions'!$AM$3:$AM$5,'Utility Functions'!$AN$3:$AN$5)","v":1},{"$f":"valuePL(V16,'Utility Functions'!$AO$3:$AO$5,'Utility Functions'!$AP$3:$AP$5)","v":0},{"$f":"valuePL(W16,'Utility Functions'!$AQ$3:$AQ$6,'Utility Functions'!$AR$3:$AR$6)","v":1},{"$f":"valuePL(X16,'Utility Functions'!$AS$3:$AS$6,'Utility Functions'!$AT$3:$AT$6)","v":0.2},{"$f":"valuePL(Y16,'Utility Functions'!$AU$3:$AU$6,'Utility Functions'!$AV$3:$AV$6)","v":0.2},{"$f":"valuePL(Z16,'Utility Functions'!$AW$3:$AW$5,'Utility Functions'!$AX$3:$AX$5)","v":1},{"$f":"valuePL(AA16,'Utility Functions'!$AY$3:$AY$6,'Utility Functions'!$AZ$3:$AZ$6)","v":1},{"$f":"valuePL(AB16,'Utility Functions'!$BA$3:$BA$5,'Utility Functions'!$BB$3:$BB$5)","v":1},{"$f":"valuePL(AC16,'Utility Functions'!$BC$3:$BC$5,'Utility Functions'!$BD$3:$BD$5)","v":0.25},15.150477261414375,null,15.15047726141438,4.2034772614143794,1.272,1.125,3.9,4.6500000000000004]
[16,{"$f":"valueE(B17,'Utility Functions'!$B$3,'Utility Functions'!$B$4,'Utility Functions'!$B$5,'Utility Functions'!$B$6)","v":0},{"$f":"valueE(C17,'Utility Functions'!$D$3,'Utility Functions'!$D$4,'Utility Functions'!$D$5,'Utility Functions'!$D$6)","v":0},{"$f":"valuePL(D17,'Utility Functions'!$E$3:$E$5,'Utility Functions'!$F$3:$F$5)","v":0},{"$f":"valuePL(E17,'Utility Functions'!$G$3:$G$5,'Utility Functions'!$H$3:$H$5)","v":0},{"$f":"valuePL(F17,'Utility Functions'!$I$3:$I$4,'Utility Functions'!$J$3:$J$5)","v":0},{"$f":"valueE(G17,'Utility Functions'!$L$3,'Utility Functions'!$L$4,'Utility Functions'!$L$5,'Utility Functions'!$L$6)","v":0},{"$f":"valueE(H17,'Utility Functions'!$N$3,'Utility Functions'!$N$4,'Utility Functions'!$N$5,'Utility Functions'!$N$6)","v":0},{"$f":"valuePL(I17,'Utility Functions'!$O$3:$O$6,'Utility Functions'!$P$3:$P$6)","v":1},{"$f":"valuePL(J17,'Utility Functions'!$Q$3:$Q$6,'Utility Functions'!$R$3:$R$6)","v":0.91818181818181821},{"$f":"valuePL(K17,'Utility Functions'!$S$3:$S$7,'Utility Functions'!$T$3:$T$7)","v":1},{"$f":"valueE(L17,'Utility Functions'!$V$3,'Utility Functions'!$V$4,'Utility Functions'!$V$5,'Utility Functions'!$V$6)","v":0.83333333333333337},{"$f":"valuePL(M17,'Utility Functions'!$W$3:$W$6,'Utility Functions'!$X$3:$X$6)","v":0.91818181818181821},{"$f":"valueE(N17,'Utility Functions'!$Z$3,'Utility Functions'!$Z$4,'Utility Functions'!$Z$5,'Utility Functions'!$Z$6)","v":0},{"$f":"valuePL(O17,'Utility Functions'!$AA$3:$AA$5,'Utility Functions'!$AB$3:$AB$5)","v":0},{"$f":"valuePL(P17,'Utility Functions'!$AC$3:$AC$7,'Utility Functions'!$AD$3:$AD$7)","v":0.75},{"$f":"valuePL(Q17,'Utility Functions'!$AE$3:$AE$6,'Utility Functions'!$AF$3:$AF$6)","v":0},{"$f":"valuePL(R17,'Utility Functions'!$AG$3:$AG$6,'Utility Functions'!$AH$3:$AH$6)","v":1},{"$f":"valuePL(S17,'Utility Functions'!$AI$3:$AI$6,'Utility Functions'!$AJ$3:$AJ$6)","v":1},{"$f":"valuePL(T17,'Utility Functions'!$AK$3:$AK$8,'Utility Functions'!$AL$3:$AL$8)","v":1},{"$f":"valuePL(U17,'Utility Functions'!$AM$3:$AM$5,'Utility Functions'!$AN$3:$AN$5)","v":0},{"$f":"valuePL(V17,'Utility Functions'!$AO$3:$AO$5,'Utility Functions'!$AP$3:$AP$5)","v":1},{"$f":"valuePL(W17,'Utility Functions'!$AQ$3:$AQ$6,'Utility Functions'!$AR$3:$AR$6)","v":0.75},{"$f":"valuePL(X17,'Utility Functions'!$AS$3:$AS$6,'Utility Functions'!$AT$3:$AT$6)","v":0.75},{"$f":"valuePL(Y17,'Utility Functions'!$AU$3:$AU$6,'Utility Functions'!$AV$3:$AV$6)","v":0.2},{"$f":"valuePL(Z17,'Utility Functions'!$AW$3:$AW$5,'Utility Functions'!$AX$3:$AX$5)","v":1},{"$f":"valuePL(AA17,'Utility Functions'!$AY$3:$AY$6,'Utility Functions'!$AZ$3:$AZ$6)","v":1},{"$f":"valuePL(AB17,'Utility Functions'!$BA$3:$BA$5,'Utility Functions'!$BB$3:$BB$5)","v":1},{"$f":"valuePL(AC17,'Utility Functions'!$BC$3:$BC$5,'Utility Functions'!$BD$3:$BD$5)","v":1},15.119696969696969,null,15.119696969696971,0,4.6696969696969699,0,3.75,6.7]
[17,{"$f":"valueE(B18,'Utility Functions'!$B$3,'Utility Functions'!$B$4,'Utility Functions'!$B$5,'Utility Functions'!$B$6)","v":0.32968045347775865},{"$f":"valueE(C18,'Utility Functions'!$D$3,'Utility Functions'!$D$4,'Utility Functions'!$D$5,'Utility Functions'!$D$6)","v":0.78989979019422951},{"$f":"valuePL(D18,'Utility Functions'!$E$3:$E$5,'Utility Functions'!$F$3:$F$5)","v":1},{"$f":"valuePL(E18,'Utility Functions'!$G$3:$G$5,'Utility Functions'!$H$3:$H$5)","v":0.5},{"$f":"valuePL(F18,'Utility Functions'!$I$3:$I$4,'Utility Functions'!$J$3:$J$5)","v":1},{"$f":"valueE(G18,'Utility Functions'!$L$3,'Utility Functions'!$L$4,'Utility Functions'!$L$5,'Utility Functions'!$L$6)","v":0.31182795698924731},{"$f":"valueE(H18,'Utility Functions'!$N$3,'Utility Functions'!$N$4,'Utility Functions'!$N$5,'Utility Functions'!$N$6)","v":0.27514231499051234},{"$f":"valuePL(I18,'Utility Functions'!$O$3:$O$6,'Utility Functions'!$P$3:$P$6)","v":0},{"$f":"valuePL(J18,'Utility Functions'!$Q$3:$Q$6,'Utility Functions'!$R$3:$R$6)","v":0},{"$f":"valuePL(K18,'Utility Functions'!$S$3:$S$7,'Utility Functions'!$T$3:$T$7)","v":0},{"$f":"valueE(L18,'Utility Functions'!$V$3,'Utility Functions'!$V$4,'Utility Functions'!$V$5,'Utility Functions'!$V$6)","v":1},{"$f":"valuePL(M18,'Utility Functions'!$W$3:$W$6,'Utility Functions'!$X$3:$X$6)","v":6.0000000000000012E-2},{"$f":"valueE(N18,'Utility Functions'!$Z$3,'Utility Functions'!$Z$4,'Utility Functions'!$Z$5,'Utility Functions'!$Z$6)","v":0},{"$f":"valuePL(O18,'Utility Functions'!$AA$3:$AA$5,'Utility Functions'!$AB$3:$AB$5)","v":0},{"$f":"valuePL(P18,'Utility Functions'!$AC$3:$AC$7,'Utility Functions'!$AD$3:$AD$7)","v":0},{"$f":"valuePL(Q18,'Utility Functions'!$AE$3:$AE$6,'Utility Functions'!$AF$3:$AF$6)","v":0},{"$f":"valuePL(R18,'Utility Functions'!$AG$3:$AG$6,'Utility Functions'!$AH$3:$AH$6)","v":1},{"$f":"valuePL(S18,'Utility Functions'!$AI$3:$AI$6,'Utility Functions'!$AJ$3:$AJ$6)","v":0.66},{"$f":"valuePL(T18,'Utility Functions'!$AK$3:$AK$8,'Utility Functions'!$AL$3:$AL$8)","v":0},{"$f":"valuePL(U18,'Utility Functions'!$AM$3:$AM$5,'Utility Functions'!$AN$3:$AN$5)","v":0},{"$f":"valuePL(V18,'Utility Functions'!$AO$3:$AO$5,'Utility Functions'!$AP$3:$AP$5)","v":1},{"$f":"valuePL(W18,'Utility Functions'!$AQ$3:$AQ$6,'Utility Functions'!$AR$3:$AR$6)","v":1},{"$f":"valuePL(X18,'Utility Functions'!$AS$3:$AS$6,'Utility Functions'!$AT$3:$AT$6)","v":0.2},{"$f":"valuePL(Y18,'Utility Functions'!$AU$3:$AU$6,'Utility Functions'!$AV$3:$AV$6)","v":0},{"$f":"valuePL(Z18,'Utility Functions'!$AW$3:$AW$5,'Utility Functions'!$AX$3:$AX$5)","v":0.5},{"$f":"valuePL(AA18,'Utility Functions'!$AY$3:$AY$6,'Utility Functions'!$AZ$3:$AZ$6)","v":0},{"$f":"valuePL(AB18,'Utility Functions'!$BA$3:$BA$5,'Utility Functions'!$BB$3:$BB$5)","v":1},{"$f":"valuePL(AC18,'Utility Functions'!$BC$3:$BC$5,'Utility Functions'!$BD$3:$BD$5)","v":0.25},10.876550515651747,null,10.876550515651747,3.6195802436719884,1.6469702719797596,0,1.6600000000000001,3.95]
[18,{"$f":"valueE(B19,'Utility Functions'!$B$3,'Utility Functions'!$B$4,'Utility Functions'!$B$5,'Utility Functions'!$B$6)","v":0},{"$f":"valueE(C19,'Utility Functions'!$D$3,'Utility Functions'!$D$4,'Utility Functions'!$D$5,'Utility Functions'!$D$6)","v":0},{"$f":"valuePL(D19,'Utility Functions'!$E$3:$E$5,'Utility Functions'!$F$3:$F$5)","v":0},{"$f":"valuePL(E19,'Utility Functions'!$G$3:$G$5,'Utility Functions'!$H$3:$H$5)","v":0},{"$f":"valuePL(F19,'Utility Functions'!$I$3:$I$4,'Utility Functions'!$J$3:$J$5)","v":0},{"$f":"valueE(G19,'Utility Functions'!$L$3,'Utility Functions'!$L$4,'Utility Functions'!$L$5,'Utility Functions'!$L$6)","v":0},{"$f":"valueE(H19,'Utility Functions'!$N$3,'Utility Functions'!$N$4,'Utility Functions'!$N$5,'Utility Functions'!$N$6)","v":2.8462998102466792E-2},{"$f":"valuePL(I19,'Utility Functions'!$O$3:$O$6,'Utility Functions'!$P$3:$P$6)","v":0},{"$f":"valuePL(J19,'Utility Functions'!$Q$3:$Q$6,'Utility Functions'!$R$3:$R$6)","v":0},{"$f":"valuePL(K19,'Utility Functions'!$S$3:$S$7,'Utility Functions'!$T$3:$T$7)","v":0},{"$f":"valueE(L19,'Utility Functions'!$V$3,'Utility Functions'!$V$4,'Utility Functions'!$V$5,'Utility Functions'!$V$6)","v":0},{"$f":"valuePL(M19,'Utility Functions'!$W$3:$W$6,'Utility Functions'!$X$3:$X$6)","v":0},{"$f":"valueE(N19,'Utility Functions'!$Z$3,'Utility Functions'!$Z$4,'Utility Functions'!$Z$5,'Utility Functions'!$Z$6)","v":1},{"$f":"valuePL(O19,'Utility Functions'!$AA$3:$AA$5,'Utility Functions'!$AB$3:$AB$5)","v":0.25},{"$f":"valuePL(P19,'Utility Functions'!$AC$3:$AC$7,'Utility Functions'!$AD$3:$AD$7)","v":0.25},{"$f":"valuePL(Q19,'Utility Functions'!$AE$3:$AE$6,'Utility Functions'!$AF$3:$AF$6)","v":1},{"$f":"valuePL(R19,'Utility Functions'!$AG$3:$AG$6,'Utility Functions'!$AH$3:$AH$6)","v":1},{"$f":"valuePL(S19,'Utility Functions'!$AI$3:$AI$6,'Utility Functions'!$AJ$3:$AJ$6)","v":1},{"$f":"valuePL(T19,'Utility Functions'!$AK$3:$AK$8,'Utility Functions'!$AL$3:$AL$8)","v":1},{"$f":"valuePL(U19,'Utility Functions'!$AM$3:$AM$5,'Utility Functions'!$AN$3:$AN$5)","v":0.25},{"$f":"valuePL(V19,'Utility Functions'!$AO$3:$AO$5,'Utility Functions'!$AP$3:$AP$5)","v":1},{"$f":"valuePL(W19,'Utility Functions'!$AQ$3:$AQ$6,'Utility Functions'!$AR$3:$AR$6)","v":0.75},{"$f":"valuePL(X19,'Utility Functions'!$AS$3:$AS$6,'Utility Functions'!$AT$3:$AT$6)","v":0.2},{"$f":"valuePL(Y19,'Utility Functions'!$AU$3:$AU$6,'Utility Functions'!$AV$3:$AV$6)","v":0.8},{"$f":"valuePL(Z19,'Utility Functions'!$AW$3:$AW$5,'Utility Functions'!$AX$3:$AX$5)","v":0.5},{"$f":"valuePL(AA19,'Utility Functions'!$AY$3:$AY$6,'Utility Functions'!$AZ$3:$AZ$6)","v":0.89999999999999991},{"$f":"valuePL(AB19,'Utility Functions'!$BA$3:$BA$5,'Utility Functions'!$BB$3:$BB$5)","v":0.25},{"$f":"valuePL(AC19,'Utility Functions'!$BC$3:$BC$5,'Utility Functions'!$BD$3:$BD$5)","v":0},10.178462998102468,null,10.178462998102468,0,2.8462998102466792E-2,1.25,4.5,4.4000000000000004]
[19,{"$f":"valueE(B20,'Utility Functions'!$B$3,'Utility Functions'!$B$4,'Utility Functions'!$B$5,'Utility Functions'!$B$6)","v":0.79810469124896843},{"$f":"valueE(C20,'Utility Functions'!$D$3,'Utility Functions'!$D$4,'Utility Functions'!$D$5,'Utility Functions'!$D$6)","v":0.26839655623815994},{"$f":"valuePL(D20,'Utility Functions'!$E$3:$E$5,'Utility Functions'!$F$3:$F$5)","v":0.5},{"$f":"valuePL(E20,'Utility Functions'!$G$3:$G$5,'Utility Functions'!$H$3:$H$5)","v":1},{"$f":"valuePL(F20,'Utility Functions'!$I$3:$I$4,'Utility Functions'!$J$3:$J$5)","v":0},{"$f":"valueE(G20,'Utility Functions'!$L$3,'Utility Functions'!$L$4,'Utility Functions'!$L$5,'Utility Functions'!$L$6)","v":0},{"$f":"valueE(H20,'Utility Functions'!$N$3,'Utility Functions'!$N$4,'Utility Functions'!$N$5,'Utility Functions'!$N$6)","v":0},{"$f":"valuePL(I20,'Utility Functions'!$O$3:$O$6,'Utility Functions'!$P$3:$P$6)","v":0},{"$f":"valuePL(J20,'Utility Functions'!$Q$3:$Q$6,'Utility Functions'!$R$3:$R$6)","v":0},{"$f":"valuePL(K20,'Utility Functions'!$S$3:$S$7,'Utility Functions'!$T$3:$T$7)","v":0},{"$f":"valueE(L20,'Utility Functions'!$V$3,'Utility Functions'!$V$4,'Utility Functions'!$V$5,'Utility Functions'!$V$6)","v":0},{"$f":"valuePL(M20,'Utility Functions'!$W$3:$W$6,'Utility Functions'!$X$3:$X$6)","v":0},{"$f":"valueE(N20,'Utility Functions'!$Z$3,'Utility Functions'!$Z$4,'Utility Functions'!$Z$5,'Utility Functions'!$Z$6)","v":1},{"$f":"valuePL(O20,'Utility Functions'!$AA$3:$AA$5,'Utility Functions'!$AB$3:$AB$5)","v":1},{"$f":"valuePL(P20,'Utility Functions'!$AC$3:$AC$7,'Utility Functions'!$AD$3:$AD$7)","v":0},{"$f":"valuePL(Q20,'Utility Functions'!$AE$3:$AE$6,'Utility Functions'!$AF$3:$AF$6)","v":0},{"$f":"valuePL(R20,'Utility Functions'!$AG$3:$AG$6,'Utility Functions'!$AH$3:$AH$6)","v":0.8},{"$f":"valuePL(S20,'Utility Functions'!$AI$3:$AI$6,'Utility Functions'!$AJ$3:$AJ$6)","v":1},{"$f":"valuePL(T20,'Utility Functions'!$AK$3:$AK$8,'Utility Functions'!$AL$3:$AL$8)","v":0},{"$f":"valuePL(U20,'Utility Functions'!$AM$3:$AM$5,'Utility Functions'!$AN$3:$AN$5)","v":0},{"$f":"valuePL(V20,'Utility Functions'!$AO$3:$AO$5,'Utility Functions'!$AP$3:$AP$5)","v":0.5},{"$f":"valuePL(W20,'Utility Functions'!$AQ$3:$AQ$6,'Utility Functions'!$AR$3:$AR$6)","v":0.2},{"$f":"valuePL(X20,'Utility Functions'!$AS$3:$AS$6,'Utility Functions'!$AT$3:$AT$6)","v":1},{"$f":"valuePL(Y20,'Utility Functions'!$AU$3:$AU$6,'Utility Functions'!$AV$3:$AV$6)","v":0.8},{"$f":"valuePL(Z20,'Utility Functions'!$AW$3:$AW$5,'Utility Functions'!$AX$3:$AX$5)","v":0},{"$f":"valuePL(AA20,'Utility Functions'!$AY$3:$AY$6,'Utility Functions'!$AZ$3:$AZ$6)","v":0.2},{"$f":"valuePL(AB20,'Utility Functions'!$BA$3:$BA$5,'Utility Functions'!$BB$3:$BB$5)","v":0},{"$f":"valuePL(AC20,'Utility Functions'!$BC$3:$BC$5,'Utility Functions'!$BD$3:$BD$5)","v":0.25},9.3165012474871283,null,9.3165012474871283,2.5665012474871283,0,2,1.8,2.95]
[20,{"$f":"valueE(B21,'Utility Functions'!$B$3,'Utility Functions'!$B$4,'Utility Functions'!$B$5,'Utility Functions'!$B$6)","v":0.83470237647280454},{"$f":"valueE(C21,'Utility Functions'!$D$3,'Utility Functions'!$D$4,'Utility Functions'!$D$5,'Utility Functions'!$D$6)","v":0.78989979019422951},{"$f":"valuePL(D21,'Utility Functions'!$E$3:$E$5,'Utility Functions'!$F$3:$F$5)","v":0.5},{"$f":"valuePL(E21,'Utility Functions'!$G$3:$G$5,'Utility Functions'!$H$3:$H$5)","v":1},{"$f":"valuePL(F21,'Utility Functions'!$I$3:$I$4,'Utility Functions'!$J$3:$J$5)","v":0},{"$f":"valueE(G21,'Utility Functions'!$L$3,'Utility Functions'!$L$4,'Utility Functions'!$L$5,'Utility Functions'!$L$6)","v":0},{"$f":"valueE(H21,'Utility Functions'!$N$3,'Utility Functions'!$N$4,'Utility Functions'!$N$5,'Utility Functions'!$N$6)","v":0.41271347248576851},{"$f":"valuePL(I21,'Utility Functions'!$O$3:$O$6,'Utility Functions'!$P$3:$P$6)","v":0.93454545454545446},{"$f":"valuePL(J21,'Utility Functions'!$Q$3:$Q$6,'Utility Functions'!$R$3:$R$6)","v":0.50909090909090915},{"$f":"valuePL(K21,'Utility Functions'!$S$3:$S$7,'Utility Functions'!$T$3:$T$7)","v":0.93454545454545446},{"$f":"valueE(L21,'Utility Functions'!$V$3,'Utility Functions'!$V$4,'Utility Functions'!$V$5,'Utility Functions'!$V$6)","v":0.66666666666666663},{"$f":"valuePL(M21,'Utility Functions'!$W$3:$W$6,'Utility Functions'!$X$3:$X$6)","v":0.50909090909090915},{"$f":"valueE(N21,'Utility Functions'!$Z$3,'Utility Functions'!$Z$4,'Utility Functions'!$Z$5,'Utility Functions'!$Z$6)","v":1},{"$f":"valuePL(O21,'Utility Functions'!$AA$3:$AA$5,'Utility Functions'!$AB$3:$AB$5)","v":1},{"$f":"valuePL(P21,'Utility Functions'!$AC$3:$AC$7,'Utility Functions'!$AD$3:$AD$7)","v":0.25},{"$f":"valuePL(Q21,'Utility Functions'!$AE$3:$AE$6,'Utility Functions'!$AF$3:$AF$6)","v":0},{"$f":"valuePL(R21,'Utility Functions'!$AG$3:$AG$6,'Utility Functions'!$AH$3:$AH$6)","v":1},{"$f":"valuePL(S21,'Utility Functions'!$AI$3:$AI$6,'Utility Functions'!$AJ$3:$AJ$6)","v":1},{"$f":"valuePL(T21,'Utility Functions'!$AK$3:$AK$8,'Utility Functions'!$AL$3:$AL$8)","v":0.6},{"$f":"valuePL(U21,'Utility Functions'!$AM$3:$AM$5,'Utility Functions'!$AN$3:$AN$5)","v":1},{"$f":"valuePL(V21,'Utility Functions'!$AO$3:$AO$5,'Utility Functions'!$AP$3:$AP$5)","v":0.5},{"$f":"valuePL(W21,'Utility Functions'!$AQ$3:$AQ$6,'Utility Functions'!$AR$3:$AR$6)","v":0},{"$f":"valuePL(X21,'Utility Functions'!$AS$3:$AS$6,'Utility Functions'!$AT$3:$AT$6)","v":0},{"$f":"valuePL(Y21,'Utility Functions'!$AU$3:$AU$6,'Utility Functions'!$AV$3:$AV$6)","v":0.2},{"$f":"valuePL(Z21,'Utility Functions'!$AW$3:$AW$5,'Utility Functions'!$AX$3:$AX$5)","v":1},{"$f":"valuePL(AA21,'Utility Functions'!$AY$3:$AY$6,'Utility Functions'!$AZ$3:$AZ$6)","v":0.2},{"$f":"valuePL(AB21,'Utility Functions'!$BA$3:$BA$5,'Utility Functions'!$BB$3:$BB$5)","v":0},{"$f":"valuePL(AC21,'Utility Functions'!$BC$3:$BC$5,'Utility Functions'!$BD$3:$BD$5)","v":0.25},15.091255033092194,null,15.091255033092196,3.1246021666670343,3.9666528664251626,2,3.85,2.15]
[21,{"$f":"valueE(B22,'Utility Functions'!$B$3,'Utility Functions'!$B$4,'Utility Functions'!$B$5,'Utility Functions'!$B$6)","v":0},{"$f":"valueE(C22,'Utility Functions'!$D$3,'Utility Functions'!$D$4,'Utility Functions'!$D$5,'Utility Functions'!$D$6)","v":0},{"$f":"valuePL(D22,'Utility Functions'!$E$3:$E$5,'Utility Functions'!$F$3:$F$5)","v":0},{"$f":"valuePL(E22,'Utility Functions'!$G$3:$G$5,'Utility Functions'!$H$3:$H$5)","v":0},{"$f":"valuePL(F22,'Utility Functions'!$I$3:$I$4,'Utility Functions'!$J$3:$J$5)","v":0},{"$f":"valueE(G22,'Utility Functions'!$L$3,'Utility Functions'!$L$4,'Utility Functions'!$L$5,'Utility Functions'!$L$6)","v":0},{"$f":"valueE(H22,'Utility Functions'!$N$3,'Utility Functions'!$N$4,'Utility Functions'!$N$5,'Utility Functions'!$N$6)","v":0},{"$f":"valuePL(I22,'Utility Functions'!$O$3:$O$6,'Utility Functions'!$P$3:$P$6)","v":0},{"$f":"valuePL(J22,'Utility Functions'!$Q$3:$Q$6,'Utility Functions'!$R$3:$R$6)","v":0},{"$f":"valuePL(K22,'Utility Functions'!$S$3:$S$7,'Utility Functions'!$T$3:$T$7)","v":0},{"$f":"valueE(L22,'Utility Functions'!$V$3,'Utility Functions'!$V$4,'Utility Functions'!$V$5,'Utility Functions'!$V$6)","v":0},{"$f":"valuePL(M22,'Utility Functions'!$W$3:$W$6,'Utility Functions'!$X$3:$X$6)","v":0},{"$f":"valueE(N22,'Utility Functions'!$Z$3,'Utility Functions'!$Z$4,'Utility Functions'!$Z$5,'Utility Functions'!$Z$6)","v":1},{"$f":"valuePL(O22,'Utility Functions'!$AA$3:$AA$5,'Utility Functions'!$AB$3:$AB$5)","v":1},{"$f":"valuePL(P22,'Utility Functions'!$AC$3:$AC$7,'Utility Functions'!$AD$3:$AD$7)","v":0},{"$f":"valuePL(Q22,'Utility Functions'!$AE$3:$AE$6,'Utility Functions'!$AF$3:$AF$6)","v":0.1},{"$f":"valuePL(R22,'Utility Functions'!$AG$3:$AG$6,'Utility Functions'!$AH$3:$AH$6)","v":1},{"$f":"valuePL(S22,'Utility Functions'!$AI$3:$AI$6,'Utility Functions'!$AJ$3:$AJ$6)","v":1},{"$f":"valuePL(T22,'Utility Functions'!$AK$3:$AK$8,'Utility Functions'!$AL$3:$AL$8)","v":1},{"$f":"valuePL(U22,'Utility Functions'!$AM$3:$AM$5,'Utility Functions'!$AN$3:$AN$5)","v":0.25},{"$f":"valuePL(V22,'Utility Functions'!$AO$3:$AO$5,'Utility Functions'!$AP$3:$AP$5)","v":0},{"$f":"valuePL(W22,'Utility Functions'!$AQ$3:$AQ$6,'Utility Functions'!$AR$3:$AR$6)","v":0.75},{"$f":"valuePL(X22,'Utility Functions'!$AS$3:$AS$6,'Utility Functions'!$AT$3:$AT$6)","v":1},{"$f":"valuePL(Y22,'Utility Functions'!$AU$3:$AU$6,'Utility Functions'!$AV$3:$AV$6)","v":0.2},{"$f":"valuePL(Z22,'Utility Functions'!$AW$3:$AW$5,'Utility Functions'!$AX$3:$AX$5)","v":0},{"$f":"valuePL(AA22,'Utility Functions'!$AY$3:$AY$6,'Utility Functions'!$AZ$3:$AZ$6)","v":1},{"$f":"valuePL(AB22,'Utility Functions'!$BA$3:$BA$5,'Utility Functions'!$BB$3:$BB$5)","v":0.25},{"$f":"valuePL(AC22,'Utility Functions'!$BC$3:$BC$5,'Utility Functions'!$BD$3:$BD$5)","v":1},9.5500000000000007,null,9.5500000000000007,0,0,2,3.35,4.2]
[22,{"$f":"valueE(B23,'Utility Functions'!$B$3,'Utility Functions'!$B$4,'Utility Functions'!$B$5,'Utility Functions'!$B$6)","v":0},{"$f":"valueE(C23,'Utility Functions'!$D$3,'Utility Functions'!$D$4,'Utility Functions'!$D$5,'Utility Functions'!$D$6)","v":0},{"$f":"valuePL(D23,'Utility Functions'!$E$3:$E$5,'Utility Functions'!$F$3:$F$5)","v":0},{"$f":"valuePL(E23,'Utility Functions'!$G$3:$G$5,'Utility Functions'!$H$3:$H$5)","v":0},{"$f":"valuePL(F23,'Utility Functions'!$I$3:$I$4,'Utility Functions'!$J$3:$J$5)","v":0},{"$f":"valueE(G23,'Utility Functions'!$L$3,'Utility Functions'!$L$4,'Utility Functions'!$L$5,'Utility Functions'!$L$6)","v":8.6021505376344093E-2},{"$f":"valueE(H23,'Utility Functions'!$N$3,'Utility Functions'!$N$4,'Utility Functions'!$N$5,'Utility Functions'!$N$6)","v":6.0721062618595827E-2},{"$f":"valuePL(I23,'Utility Functions'!$O$3:$O$6,'Utility Functions'!$P$3:$P$6)","v":0},{"$f":"valuePL(J23,'Utility Functions'!$Q$3:$Q$6,'Utility Functions'!$R$3:$R$6)","v":0},{"$f":"valuePL(K23,'Utility Functions'!$S$3:$S$7,'Utility Functions'!$T$3:$T$7)","v":0},{"$f":"valueE(L23,'Utility Functions'!$V$3,'Utility Functions'!$V$4,'Utility Functions'!$V$5,'Utility Functions'!$V$6)","v":0},{"$f":"valuePL(M23,'Utility Functions'!$W$3:$W$6,'Utility Functions'!$X$3:$X$6)","v":0},{"$f":"valueE(N23,'Utility Functions'!$Z$3,'Utility Functions'!$Z$4,'Utility Functions'!$Z$5,'Utility Functions'!$Z$6)","v":0.125},{"$f":"valuePL(O23,'Utility Functions'!$AA$3:$AA$5,'Utility Functions'!$AB$3:$AB$5)","v":1},{"$f":"valuePL(P23,'Utility Functions'!$AC$3:$AC$7,'Utility Functions'!$AD$3:$AD$7)","v":1},{"$f":"valuePL(Q23,'Utility Functions'!$AE$3:$AE$6,'Utility Functions'!$AF$3:$AF$6)","v":0.5},{"$f":"valuePL(R23,'Utility Functions'!$AG$3:$AG$6,'Utility Functions'!$AH$3:$AH$6)","v":0.8},{"$f":"valuePL(S23,'Utility Functions'!$AI$3:$AI$6,'Utility Functions'!$AJ$3:$AJ$6)","v":1},{"$f":"valuePL(T23,'Utility Functions'!$AK$3:$AK$8,'Utility Functions'!$AL$3:$AL$8)","v":1},{"$f":"valuePL(U23,'Utility Functions'!$AM$3:$AM$5,'Utility Functions'!$AN$3:$AN$5)","v":0},{"$f":"valuePL(V23,'Utility Functions'!$AO$3:$AO$5,'Utility Functions'!$AP$3:$AP$5)","v":0.5},{"$f":"valuePL(W23,'Utility Functions'!$AQ$3:$AQ$6,'Utility Functions'!$AR$3:$AR$6)","v":0.75},{"$f":"valuePL(X23,'Utility Functions'!$AS$3:$AS$6,'Utility Functions'!$AT$3:$AT$6)","v":0.2},{"$f":"valuePL(Y23,'Utility Functions'!$AU$3:$AU$6,'Utility Functions'!$AV$3:$AV$6)","v":0},{"$f":"valuePL(Z23,'Utility Functions'!$AW$3:$AW$5,'Utility Functions'!$AX$3:$AX$5)","v":1},{"$f":"valuePL(AA23,'Utility Functions'!$AY$3:$AY$6,'Utility Functions'!$AZ$3:$AZ$6)","v":0.2},{"$f":"valuePL(AB23,'Utility Functions'!$BA$3:$BA$5,'Utility Functions'!$BB$3:$BB$5)","v":1},{"$f":"valuePL(AC23,'Utility Functions'!$BC$3:$BC$5,'Utility Functions'!$BD$3:$BD$5)","v":0.25},9.471742567994939,null,9.4717425679949407,0,0.14674256799493993,1.125,4.3,3.9000000000000004]
[23,{"$f":"valueE(B24,'Utility Functions'!$B$3,'Utility Functions'!$B$4,'Utility Functions'!$B$5,'Utility Functions'!$B$6)","v":0.83470237647280454},{"$f":"valueE(C24,'Utility Functions'!$D$3,'Utility Functions'!$D$4,'Utility Functions'!$D$5,'Utility Functions'!$D$6)","v":0.84744836833951609},{"$f":"valuePL(D24,'Utility Functions'!$E$3:$E$5,'Utility Functions'!$F$3:$F$5)","v":1},{"$f":"valuePL(E24,'Utility Functions'!$G$3:$G$5,'Utility Functions'!$H$3:$H$5)","v":0},{"$f":"valuePL(F24,'Utility Functions'!$I$3:$I$4,'Utility Functions'!$J$3:$J$5)","v":0},{"$f":"valueE(G24,'Utility Functions'!$L$3,'Utility Functions'!$L$4,'Utility Functions'!$L$5,'Utility Functions'!$L$6)","v":0},{"$f":"valueE(H24,'Utility Functions'!$N$3,'Utility Functions'!$N$4,'Utility Functions'!$N$5,'Utility Functions'!$N$6)","v":0},{"$f":"valuePL(I24,'Utility Functions'!$O$3:$O$6,'Utility Functions'!$P$3:$P$6)","v":0},{"$f":"valuePL(J24,'Utility Functions'!$Q$3:$Q$6,'Utility Functions'!$R$3:$R$6)","v":0},{"$f":"valuePL(K24,'Utility Functions'!$S$3:$S$7,'Utility Functions'!$T$3:$T$7)","v":0},{"$f":"valueE(L24,'Utility Functions'!$V$3,'Utility Functions'!$V$4,'Utility Functions'!$V$5,'Utility Functions'!$V$6)","v":0},{"$f":"valuePL(M24,'Utility Functions'!$W$3:$W$6,'Utility Functions'!$X$3:$X$6)","v":0},{"$f":"valueE(N24,'Utility Functions'!$Z$3,'Utility Functions'!$Z$4,'Utility Functions'!$Z$5,'Utility Functions'!$Z$6)","v":0},{"$f":"valuePL(O24,'Utility Functions'!$AA$3:$AA$5,'Utility Functions'!$AB$3:$AB$5)","v":0},{"$f":"valuePL(P24,'Utility Functions'!$AC$3:$AC$7,'Utility Functions'!$AD$3:$AD$7)","v":0.75},{"$f":"valuePL(Q24,'Utility Functions'!$AE$3:$AE$6,'Utility Functions'!$AF$3:$AF$6)","v":0},{"$f":"valuePL(R24,'Utility Functions'!$AG$3:$AG$6,'Utility Functions'!$AH$3:$AH$6)","v":1},{"$f":"valuePL(S24,'Utility Functions'!$AI$3:$AI$6,'Utility Functions'!$AJ$3:$AJ$6)","v":1},{"$f":"valuePL(T24,'Utility Functions'!$AK$3:$AK$8,'Utility Functions'!$AL$3:$AL$8)","v":1},{"$f":"valuePL(U24,'Utility Functions'!$AM$3:$AM$5,'Utility Functions'!$AN$3:$AN$5)","v":0},{"$f":"valuePL(V24,'Utility Functions'!$AO$3:$AO$5,'Utility Functions'!$AP$3:$AP$5)","v":1},{"$f":"valuePL(W24,'Utility Functions'!$AQ$3:$AQ$6,'Utility Functions'!$AR$3:$AR$6)","v":0.2},{"$f":"valuePL(X24,'Utility Functions'!$AS$3:$AS$6,'Utility Functions'!$AT$3:$AT$6)","v":0.75},{"$f":"valuePL(Y24,'Utility Functions'!$AU$3:$AU$6,'Utility Functions'!$AV$3:$AV$6)","v":0.2},{"$f":"valuePL(Z24,'Utility Functions'!$AW$3:$AW$5,'Utility Functions'!$AX$3:$AX$5)","v":0.5},{"$f":"valuePL(AA24,'Utility Functions'!$AY$3:$AY$6,'Utility Functions'!$AZ$3:$AZ$6)","v":0.2},{"$f":"valuePL(AB24,'Utility Functions'!$BA$3:$BA$5,'Utility Functions'!$BB$3:$BB$5)","v":0},{"$f":"valuePL(AC24,'Utility Functions'!$BC$3:$BC$5,'Utility Functions'!$BD$3:$BD$5)","v":0.25},9.5321507448123199,null,9.5321507448123199,2.6821507448123207,0,0,3.75,3.1]
[24,{"$f":"valueE(B25,'Utility Functions'!$B$3,'Utility Functions'!$B$4,'Utility Functions'!$B$5,'Utility Functions'!$B$6)","v":0.63212151658375171},{"$f":"valueE(C25,'Utility Functions'!$D$3,'Utility Functions'!$D$4,'Utility Functions'!$D$5,'Utility Functions'!$D$6)","v":0.46475967153745396},{"$f":"valuePL(D25,'Utility Functions'!$E$3:$E$5,'Utility Functions'!$F$3:$F$5)","v":1},{"$f":"valuePL(E25,'Utility Functions'!$G$3:$G$5,'Utility Functions'!$H$3:$H$5)","v":0},{"$f":"valuePL(F25,'Utility Functions'!$I$3:$I$4,'Utility Functions'!$J$3:$J$5)","v":0},{"$f":"valueE(G25,'Utility Functions'!$L$3,'Utility Functions'!$L$4,'Utility Functions'!$L$5,'Utility Functions'!$L$6)","v":0},{"$f":"valueE(H25,'Utility Functions'!$N$3,'Utility Functions'!$N$4,'Utility Functions'!$N$5,'Utility Functions'!$N$6)","v":0},{"$f":"valuePL(I25,'Utility Functions'!$O$3:$O$6,'Utility Functions'!$P$3:$P$6)","v":0},{"$f":"valuePL(J25,'Utility Functions'!$Q$3:$Q$6,'Utility Functions'!$R$3:$R$6)","v":0},{"$f":"valuePL(K25,'Utility Functions'!$S$3:$S$7,'Utility Functions'!$T$3:$T$7)","v":0},{"$f":"valueE(L25,'Utility Functions'!$V$3,'Utility Functions'!$V$4,'Utility Functions'!$V$5,'Utility Functions'!$V$6)","v":0},{"$f":"valuePL(M25,'Utility Functions'!$W$3:$W$6,'Utility Functions'!$X$3:$X$6)","v":0},{"$f":"valueE(N25,'Utility Functions'!$Z$3,'Utility Functions'!$Z$4,'Utility Functions'!$Z$5,'Utility Functions'!$Z$6)","v":0},{"$f":"valuePL(O25,'Utility Functions'!$AA$3:$AA$5,'Utility Functions'!$AB$3:$AB$5)","v":0},{"$f":"valuePL(P25,'Utility Functions'!$AC$3:$AC$7,'Utility Functions'!$AD$3:$AD$7)","v":0},{"$f":"valuePL(Q25,'Utility Functions'!$AE$3:$AE$6,'Utility Functions'!$AF$3:$AF$6)","v":0},{"$f":"valuePL(R25,'Utility Functions'!$AG$3:$AG$6,'Utility Functions'!$AH$3:$AH$6)","v":1},{"$f":"valuePL(S25,'Utility Functions'!$AI$3:$AI$6,'Utility Functions'!$AJ$3:$AJ$6)","v":1},{"$f":"valuePL(T25,'Utility Functions'!$AK$3:$AK$8,'Utility Functions'!$AL$3:$AL$8)","v":1},{"$f":"valuePL(U25,'Utility Functions'!$AM$3:$AM$5,'Utility Functions'!$AN$3:$AN$5)","v":0},{"$f":"valuePL(V25,'Utility Functions'!$AO$3:$AO$5,'Utility Functions'!$AP$3:$AP$5)","v":0},{"$f":"valuePL(W25,'Utility Functions'!$AQ$3:$AQ$6,'Utility Functions'!$AR$3:$AR$6)","v":1},{"$f":"valuePL(X25,'Utility Functions'!$AS$3:$AS$6,'Utility Functions'!$AT$3:$AT$6)","v":0.2},{"$f":"valuePL(Y25,'Utility Functions'!$AU$3:$AU$6,'Utility Functions'!$AV$3:$AV$6)","v":1},{"$f":"valuePL(Z25,'Utility Functions'!$AW$3:$AW$5,'Utility Functions'!$AX$3:$AX$5)","v":1},{"$f":"valuePL(AA25,'Utility Functions'!$AY$3:$AY$6,'Utility Functions'!$AZ$3:$AZ$6)","v":0.2},{"$f":"valuePL(AB25,'Utility Functions'!$BA$3:$BA$5,'Utility Functions'!$BB$3:$BB$5)","v":0},{"$f":"valuePL(AC25,'Utility Functions'!$BC$3:$BC$5,'Utility Functions'!$BD$3:$BD$5)","v":1},9.4968811881212041,null,9.4968811881212059,2.0968811881212055,0,0,3,4.4000000000000004]
[25,{"$f":"valueE(B26,'Utility Functions'!$B$3,'Utility Functions'!$B$4,'Utility Functions'!$B$5,'Utility Functions'!$B$6)","v":0.83470237647280454},{"$f":"valueE(C26,'Utility Functions'!$D$3,'Utility Functions'!$D$4,'Utility Functions'!$D$5,'Utility Functions'!$D$6)","v":0.84744836833951609},{"$f":"valuePL(D26,'Utility Functions'!$E$3:$E$5,'Utility Functions'!$F$3:$F$5)","v":1},{"$f":"valuePL(E26,'Utility Functions'!$G$3:$G$5,'Utility Functions'!$H$3:$H$5)","v":0},{"$f":"valuePL(F26,'Utility Functions'!$I$3:$I$4,'Utility Functions'!$J$3:$J$5)","v":0},{"$f":"valueE(G26,'Utility Functions'!$L$3,'Utility Functions'!$L$4,'Utility Functions'!$L$5,'Utility Functions'!$L$6)","v":0.94623655913978499},{"$f":"valueE(H26,'Utility Functions'!$N$3,'Utility Functions'!$N$4,'Utility Functions'!$N$5,'Utility Functions'!$N$6)","v":0.29222011385199242},{"$f":"valuePL(I26,'Utility Functions'!$O$3:$O$6,'Utility Functions'!$P$3:$P$6)","v":0},{"$f":"valuePL(J26,'Utility Functions'!$Q$3:$Q$6,'Utility Functions'!$R$3:$R$6)","v":0},{"$f":"valuePL(K26,'Utility Functions'!$S$3:$S$7,'Utility Functions'!$T$3:$T$7)","v":0},{"$f":"valueE(L26,'Utility Functions'!$V$3,'Utility Functions'!$V$4,'Utility Functions'!$V$5,'Utility Functions'!$V$6)","v":0},{"$f":"valuePL(M26,'Utility Functions'!$W$3:$W$6,'Utility Functions'!$X$3:$X$6)","v":0},{"$f":"valueE(N26,'Utility Functions'!$Z$3,'Utility Functions'!$Z$4,'Utility Functions'!$Z$5,'Utility Functions'!$Z$6)","v":1},{"$f":"valuePL(O26,'Utility Functions'!$AA$3:$AA$5,'Utility Functions'!$AB$3:$AB$5)","v":0.25},{"$f":"valuePL(P26,'Utility Functions'!$AC$3:$AC$7,'Utility Functions'!$AD$3:$AD$7)","v":0.5},{"$f":"valuePL(Q26,'Utility Functions'!$AE$3:$AE$6,'Utility Functions'!$AF$3:$AF$6)","v":0.5},{"$f":"valuePL(R26,'Utility Functions'!$AG$3:$AG$6,'Utility Functions'!$AH$3:$AH$6)","v":1},{"$f":"valuePL(S26,'Utility Functions'!$AI$3:$AI$6,'Utility Functions'!$AJ$3:$AJ$6)","v":1},{"$f":"valuePL(T26,'Utility Functions'!$AK$3:$AK$8,'Utility Functions'!$AL$3:$AL$8)","v":0},{"$f":"valuePL(U26,'Utility Functions'!$AM$3:$AM$5,'Utility Functions'!$AN$3:$AN$5)","v":0},{"$f":"valuePL(V26,'Utility Functions'!$AO$3:$AO$5,'Utility Functions'!$AP$3:$AP$5)","v":1},{"$f":"valuePL(W26,'Utility Functions'!$AQ$3:$AQ$6,'Utility Functions'!$AR$3:$AR$6)","v":0.2},{"$f":"valuePL(X26,'Utility Functions'!$AS$3:$AS$6,'Utility Functions'!$AT$3:$AT$6)","v":1},{"$f":"valuePL(Y26,'Utility Functions'!$AU$3:$AU$6,'Utility Functions'!$AV$3:$AV$6)","v":0.8},{"$f":"valuePL(Z26,'Utility Functions'!$AW$3:$AW$5,'Utility Functions'!$AX$3:$AX$5)","v":0.5},{"$f":"valuePL(AA26,'Utility Functions'!$AY$3:$AY$6,'Utility Functions'!$AZ$3:$AZ$6)","v":0.2},{"$f":"valuePL(AB26,'Utility Functions'!$BA$3:$BA$5,'Utility Functions'!$BB$3:$BB$5)","v":1},{"$f":"valuePL(AC26,'Utility Functions'!$BC$3:$BC$5,'Utility Functions'!$BD$3:$BD$5)","v":1},13.870607417804099,null,13.870607417804099,2.6821507448123207,1.2384566729917774,1.25,3,5.7]
[26,{"$f":"valueE(B27,'Utility Functions'!$B$3,'Utility Functions'!$B$4,'Utility Functions'!$B$5,'Utility Functions'!$B$6)","v":0.96662819462069161},{"$f":"valueE(C27,'Utility Functions'!$D$3,'Utility Functions'!$D$4,'Utility Functions'!$D$5,'Utility Functions'!$D$6)","v":0.84744836833951609},{"$f":"valuePL(D27,'Utility Functions'!$E$3:$E$5,'Utility Functions'!$F$3:$F$5)","v":1},{"$f":"valuePL(E27,'Utility Functions'!$G$3:$G$5,'Utility Functions'!$H$3:$H$5)","v":0.5},{"$f":"valuePL(F27,'Utility Functions'!$I$3:$I$4,'Utility Functions'!$J$3:$J$5)","v":0},{"$f":"valueE(G27,'Utility Functions'!$L$3,'Utility Functions'!$L$4,'Utility Functions'!$L$5,'Utility Functions'!$L$6)","v":0},{"$f":"valueE(H27,'Utility Functions'!$N$3,'Utility Functions'!$N$4,'Utility Functions'!$N$5,'Utility Functions'!$N$6)","v":0},{"$f":"valuePL(I27,'Utility Functions'!$O$3:$O$6,'Utility Functions'!$P$3:$P$6)","v":0},{"$f":"valuePL(J27,'Utility Functions'!$Q$3:$Q$6,'Utility Functions'!$R$3:$R$6)","v":0},{"$f":"valuePL(K27,'Utility Functions'!$S$3:$S$7,'Utility Functions'!$T$3:$T$7)","v":0},{"$f":"valueE(L27,'Utility Functions'!$V$3,'Utility Functions'!$V$4,'Utility Functions'!$V$5,'Utility Functions'!$V$6)","v":0},{"$f":"valuePL(M27,'Utility Functions'!$W$3:$W$6,'Utility Functions'!$X$3:$X$6)","v":0},{"$f":"valueE(N27,'Utility Functions'!$Z$3,'Utility Functions'!$Z$4,'Utility Functions'!$Z$5,'Utility Functions'!$Z$6)","v":0},{"$f":"valuePL(O27,'Utility Functions'!$AA$3:$AA$5,'Utility Functions'!$AB$3:$AB$5)","v":0},{"$f":"valuePL(P27,'Utility Functions'!$AC$3:$AC$7,'Utility Functions'!$AD$3:$AD$7)","v":0.75},{"$f":"valuePL(Q27,'Utility Functions'!$AE$3:$AE$6,'Utility Functions'!$AF$3:$AF$6)","v":0},{"$f":"valuePL(R27,'Utility Functions'!$AG$3:$AG$6,'Utility Functions'!$AH$3:$AH$6)","v":1},{"$f":"valuePL(S27,'Utility Functions'!$AI$3:$AI$6,'Utility Functions'!$AJ$3:$AJ$6)","v":1},{"$f":"valuePL(T27,'Utility Functions'!$AK$3:$AK$8,'Utility Functions'!$AL$3:$AL$8)","v":0.8},{"$f":"valuePL(U27,'Utility Functions'!$AM$3:$AM$5,'Utility Functions'!$AN$3:$AN$5)","v":0},{"$f":"valuePL(V27,'Utility Functions'!$AO$3:$AO$5,'Utility Functions'!$AP$3:$AP$5)","v":1},{"$f":"valuePL(W27,'Utility Functions'!$AQ$3:$AQ$6,'Utility Functions'!$AR$3:$AR$6)","v":0.2},{"$f":"valuePL(X27,'Utility Functions'!$AS$3:$AS$6,'Utility Functions'!$AT$3:$AT$6)","v":0},{"$f":"valuePL(Y27,'Utility Functions'!$AU$3:$AU$6,'Utility Functions'!$AV$3:$AV$6)","v":0.8},{"$f":"valuePL(Z27,'Utility Functions'!$AW$3:$AW$5,'Utility Functions'!$AX$3:$AX$5)","v":0},{"$f":"valuePL(AA27,'Utility Functions'!$AY$3:$AY$6,'Utility Functions'!$AZ$3:$AZ$6)","v":0.2},{"$f":"valuePL(AB27,'Utility Functions'!$BA$3:$BA$5,'Utility Functions'!$BB$3:$BB$5)","v":1},{"$f":"valuePL(AC27,'Utility Functions'!$BC$3:$BC$5,'Utility Functions'!$BD$3:$BD$5)","v":1},11.064076562960208,null,11.064076562960206,3.3140765629602078,0,0,3.55,4.2]
[27,{"$f":"valueE(B28,'Utility Functions'!$B$3,'Utility Functions'!$B$4,'Utility Functions'!$B$5,'Utility Functions'!$B$6)","v":0},{"$f":"valueE(C28,'Utility Functions'!$D$3,'Utility Functions'!$D$4,'Utility Functions'!$D$5,'Utility Functions'!$D$6)","v":0.46475967153745396},{"$f":"valuePL(D28,'Utility Functions'!$E$3:$E$5,'Utility Functions'!$F$3:$F$5)","v":1},{"$f":"valuePL(E28,'Utility Functions'!$G$3:$G$5,'Utility Functions'!$H$3:$H$5)","v":0},{"$f":"valuePL(F28,'Utility Functions'!$I$3:$I$4,'Utility Functions'!$J$3:$J$5)","v":0},{"$f":"valueE(G28,'Utility Functions'!$L$3,'Utility Functions'!$L$4,'Utility Functions'!$L$5,'Utility Functions'!$L$6)","v":0},{"$f":"valueE(H28,'Utility Functions'!$N$3,'Utility Functions'!$N$4,'Utility Functions'!$N$5,'Utility Functions'!$N$6)","v":0},{"$f":"valuePL(I28,'Utility Functions'!$O$3:$O$6,'Utility Functions'!$P$3:$P$6)","v":0},{"$f":"valuePL(J28,'Utility Functions'!$Q$3:$Q$6,'Utility Functions'!$R$3:$R$6)","v":0},{"$f":"valuePL(K28,'Utility Functions'!$S$3:$S$7,'Utility Functions'!$T$3:$T$7)","v":1},{"$f":"valueE(L28,'Utility Functions'!$V$3,'Utility Functions'!$V$4,'Utility Functions'!$V$5,'Utility Functions'!$V$6)","v":0},{"$f":"valuePL(M28,'Utility Functions'!$W$3:$W$6,'Utility Functions'!$X$3:$X$6)","v":0.1},{"$f":"valueE(N28,'Utility Functions'!$Z$3,'Utility Functions'!$Z$4,'Utility Functions'!$Z$5,'Utility Functions'!$Z$6)","v":0},{"$f":"valuePL(O28,'Utility Functions'!$AA$3:$AA$5,'Utility Functions'!$AB$3:$AB$5)","v":0},{"$f":"valuePL(P28,'Utility Functions'!$AC$3:$AC$7,'Utility Functions'!$AD$3:$AD$7)","v":0.5},{"$f":"valuePL(Q28,'Utility Functions'!$AE$3:$AE$6,'Utility Functions'!$AF$3:$AF$6)","v":0.5},{"$f":"valuePL(R28,'Utility Functions'!$AG$3:$AG$6,'Utility Functions'!$AH$3:$AH$6)","v":1},{"$f":"valuePL(S28,'Utility Functions'!$AI$3:$AI$6,'Utility Functions'!$AJ$3:$AJ$6)","v":1},{"$f":"valuePL(T28,'Utility Functions'!$AK$3:$AK$8,'Utility Functions'!$AL$3:$AL$8)","v":1},{"$f":"valuePL(U28,'Utility Functions'!$AM$3:$AM$5,'Utility Functions'!$AN$3:$AN$5)","v":0},{"$f":"valuePL(V28,'Utility Functions'!$AO$3:$AO$5,'Utility Functions'!$AP$3:$AP$5)","v":0.5},{"$f":"valuePL(W28,'Utility Functions'!$AQ$3:$AQ$6,'Utility Functions'!$AR$3:$AR$6)","v":0.75},{"$f":"valuePL(X28,'Utility Functions'!$AS$3:$AS$6,'Utility Functions'!$AT$3:$AT$6)","v":1},{"$f":"valuePL(Y28,'Utility Functions'!$AU$3:$AU$6,'Utility Functions'!$AV$3:$AV$6)","v":0.2},{"$f":"valuePL(Z28,'Utility Functions'!$AW$3:$AW$5,'Utility Functions'!$AX$3:$AX$5)","v":0},{"$f":"valuePL(AA28,'Utility Functions'!$AY$3:$AY$6,'Utility Functions'!$AZ$3:$AZ$6)","v":0},{"$f":"valuePL(AB28,'Utility Functions'!$BA$3:$BA$5,'Utility Functions'!$BB$3:$BB$5)","v":0},{"$f":"valuePL(AC28,'Utility Functions'!$BC$3:$BC$5,'Utility Functions'!$BD$3:$BD$5)","v":0},9.0147596715374529,null,9.0147596715374547,1.464759671537454,1.1000000000000001,0,4,2.4500000000000002]
[28,{"$f":"valueE(B29,'Utility Functions'!$B$3,'Utility Functions'!$B$4,'Utility Functions'!$B$5,'Utility Functions'!$B$6)","v":0.4511890475224023},{"$f":"valueE(C29,'Utility Functions'!$D$3,'Utility Functions'!$D$4,'Utility Functions'!$D$5,'Utility Functions'!$D$6)","v":0.46475967153745396},{"$f":"valuePL(D29,'Utility Functions'!$E$3:$E$5,'Utility Functions'!$F$3:$F$5)","v":1},{"$f":"valuePL(E29,'Utility Functions'!$G$3:$G$5,'Utility Functions'!$H$3:$H$5)","v":0},{"$f":"valuePL(F29,'Utility Functions'!$I$3:$I$4,'Utility Functions'!$J$3:$J$5)","v":1},{"$f":"valueE(G29,'Utility Functions'!$L$3,'Utility Functions'!$L$4,'Utility Functions'!$L$5,'Utility Functions'!$L$6)","v":0},{"$f":"valueE(H29,'Utility Functions'!$N$3,'Utility Functions'!$N$4,'Utility Functions'!$N$5,'Utility Functions'!$N$6)","v":0},{"$f":"valuePL(I29,'Utility Functions'!$O$3:$O$6,'Utility Functions'!$P$3:$P$6)","v":0},{"$f":"valuePL(J29,'Utility Functions'!$Q$3:$Q$6,'Utility Functions'!$R$3:$R$6)","v":0},{"$f":"valuePL(K29,'Utility Functions'!$S$3:$S$7,'Utility Functions'!$T$3:$T$7)","v":0},{"$f":"valueE(L29,'Utility Functions'!$V$3,'Utility Functions'!$V$4,'Utility Functions'!$V$5,'Utility Functions'!$V$6)","v":0.33333333333333331},{"$f":"valuePL(M29,'Utility Functions'!$W$3:$W$6,'Utility Functions'!$X$3:$X$6)","v":0.1},{"$f":"valueE(N29,'Utility Functions'!$Z$3,'Utility Functions'!$Z$4,'Utility Functions'!$Z$5,'Utility Functions'!$Z$6)","v":0},{"$f":"valuePL(O29,'Utility Functions'!$AA$3:$AA$5,'Utility Functions'!$AB$3:$AB$5)","v":0},{"$f":"valuePL(P29,'Utility Functions'!$AC$3:$AC$7,'Utility Functions'!$AD$3:$AD$7)","v":1},{"$f":"valuePL(Q29,'Utility Functions'!$AE$3:$AE$6,'Utility Functions'!$AF$3:$AF$6)","v":0},{"$f":"valuePL(R29,'Utility Functions'!$AG$3:$AG$6,'Utility Functions'!$AH$3:$AH$6)","v":1},{"$f":"valuePL(S29,'Utility Functions'!$AI$3:$AI$6,'Utility Functions'!$AJ$3:$AJ$6)","v":1},{"$f":"valuePL(T29,'Utility Functions'!$AK$3:$AK$8,'Utility Functions'!$AL$3:$AL$8)","v":0.8},{"$f":"valuePL(U29,'Utility Functions'!$AM$3:$AM$5,'Utility Functions'!$AN$3:$AN$5)","v":0},{"$f":"valuePL(V29,'Utility Functions'!$AO$3:$AO$5,'Utility Functions'!$AP$3:$AP$5)","v":1},{"$f":"valuePL(W29,'Utility Functions'!$AQ$3:$AQ$6,'Utility Functions'!$AR$3:$AR$6)","v":1},{"$f":"valuePL(X29,'Utility Functions'!$AS$3:$AS$6,'Utility Functions'!$AT$3:$AT$6)","v":1},{"$f":"valuePL(Y29,'Utility Functions'!$AU$3:$AU$6,'Utility Functions'!$AV$3:$AV$6)","v":0.2},{"$f":"valuePL(Z29,'Utility Functions'!$AW$3:$AW$5,'Utility Functions'!$AX$3:$AX$5)","v":0},{"$f":"valuePL(AA29,'Utility Functions'!$AY$3:$AY$6,'Utility Functions'!$AZ$3:$AZ$6)","v":0.89999999999999991},{"$f":"valuePL(AB29,'Utility Functions'!$BA$3:$BA$5,'Utility Functions'!$BB$3:$BB$5)","v":1},{"$f":"valuePL(AC29,'Utility Functions'!$BC$3:$BC$5,'Utility Functions'!$BD$3:$BD$5)","v":0.25},12.499282052393189,null,12.499282052393189,2.9159487190598563,0.43333333333333335,0,3.8,5.35]
[29,{"$f":"valueE(B30,'Utility Functions'!$B$3,'Utility Functions'!$B$4,'Utility Functions'!$B$5,'Utility Functions'!$B$6)","v":0.83470237647280454},{"$f":"valueE(C30,'Utility Functions'!$D$3,'Utility Functions'!$D$4,'Utility Functions'!$D$5,'Utility Functions'!$D$6)","v":0.71352759724260828},{"$f":"valuePL(D30,'Utility Functions'!$E$3:$E$5,'Utility Functions'!$F$3:$F$5)","v":1},{"$f":"valuePL(E30,'Utility Functions'!$G$3:$G$5,'Utility Functions'!$H$3:$H$5)","v":0.5},{"$f":"valuePL(F30,'Utility Functions'!$I$3:$I$4,'Utility Functions'!$J$3:$J$5)","v":0},{"$f":"valueE(G30,'Utility Functions'!$L$3,'Utility Functions'!$L$4,'Utility Functions'!$L$5,'Utility Functions'!$L$6)","v":0},{"$f":"valueE(H30,'Utility Functions'!$N$3,'Utility Functions'!$N$4,'Utility Functions'!$N$5,'Utility Functions'!$N$6)","v":0},{"$f":"valuePL(I30,'Utility Functions'!$O$3:$O$6,'Utility Functions'!$P$3:$P$6)","v":0.06},{"$f":"valuePL(J30,'Utility Functions'!$Q$3:$Q$6,'Utility Functions'!$R$3:$R$6)","v":0.67272727272727273},{"$f":"valuePL(K30,'Utility Functions'!$S$3:$S$7,'Utility Functions'!$T$3:$T$7)","v":0},{"$f":"valueE(L30,'Utility Functions'!$V$3,'Utility Functions'!$V$4,'Utility Functions'!$V$5,'Utility Functions'!$V$6)","v":1},{"$f":"valuePL(M30,'Utility Functions'!$W$3:$W$6,'Utility Functions'!$X$3:$X$6)","v":0.67272727272727273},{"$f":"valueE(N30,'Utility Functions'!$Z$3,'Utility Functions'!$Z$4,'Utility Functions'!$Z$5,'Utility Functions'!$Z$6)","v":0},{"$f":"valuePL(O30,'Utility Functions'!$AA$3:$AA$5,'Utility Functions'!$AB$3:$AB$5)","v":0},{"$f":"valuePL(P30,'Utility Functions'!$AC$3:$AC$7,'Utility Functions'!$AD$3:$AD$7)","v":0.25},{"$f":"valuePL(Q30,'Utility Functions'!$AE$3:$AE$6,'Utility Functions'!$AF$3:$AF$6)","v":0},{"$f":"valuePL(R30,'Utility Functions'!$AG$3:$AG$6,'Utility Functions'!$AH$3:$AH$6)","v":1},{"$f":"valuePL(S30,'Utility Functions'!$AI$3:$AI$6,'Utility Functions'!$AJ$3:$AJ$6)","v":1},{"$f":"valuePL(T30,'Utility Functions'!$AK$3:$AK$8,'Utility Functions'!$AL$3:$AL$8)","v":0.8},{"$f":"valuePL(U30,'Utility Functions'!$AM$3:$AM$5,'Utility Functions'!$AN$3:$AN$5)","v":0},{"$f":"valuePL(V30,'Utility Functions'!$AO$3:$AO$5,'Utility Functions'!$AP$3:$AP$5)","v":1},{"$f":"valuePL(W30,'Utility Functions'!$AQ$3:$AQ$6,'Utility Functions'!$AR$3:$AR$6)","v":0.2},{"$f":"valuePL(X30,'Utility Functions'!$AS$3:$AS$6,'Utility Functions'!$AT$3:$AT$6)","v":0},{"$f":"valuePL(Y30,'Utility Functions'!$AU$3:$AU$6,'Utility Functions'!$AV$3:$AV$6)","v":0.8},{"$f":"valuePL(Z30,'Utility Functions'!$AW$3:$AW$5,'Utility Functions'!$AX$3:$AX$5)","v":0.5},{"$f":"valuePL(AA30,'Utility Functions'!$AY$3:$AY$6,'Utility Functions'!$AZ$3:$AZ$6)","v":0.2},{"$f":"valuePL(AB30,'Utility Functions'!$BA$3:$BA$5,'Utility Functions'!$BB$3:$BB$5)","v":0.25},{"$f":"valuePL(AC30,'Utility Functions'!$BC$3:$BC$5,'Utility Functions'!$BD$3:$BD$5)","v":1},12.453684519169958,null,12.453684519169958,3.0482299737154128,2.4054545454545453,0,3.05,3.95]
[30,{"$f":"valueE(B31,'Utility Functions'!$B$3,'Utility Functions'!$B$4,'Utility Functions'!$B$5,'Utility Functions'!$B$6)","v":0.99864114504770318},{"$f":"valueE(C31,'Utility Functions'!$D$3,'Utility Functions'!$D$4,'Utility Functions'!$D$5,'Utility Functions'!$D$6)","v":0.84744836833951609},{"$f":"valuePL(D31,'Utility Functions'!$E$3:$E$5,'Utility Functions'!$F$3:$F$5)","v":1},{"$f":"valuePL(E31,'Utility Functions'!$G$3:$G$5,'Utility Functions'!$H$3:$H$5)","v":0},{"$f":"valuePL(F31,'Utility Functions'!$I$3:$I$4,'Utility Functions'!$J$3:$J$5)","v":0},{"$f":"valueE(G31,'Utility Functions'!$L$3,'Utility Functions'!$L$4,'Utility Functions'!$L$5,'Utility Functions'!$L$6)","v":0},{"$f":"valueE(H31,'Utility Functions'!$N$3,'Utility Functions'!$N$4,'Utility Functions'!$N$5,'Utility Functions'!$N$6)","v":0},{"$f":"valuePL(I31,'Utility Functions'!$O$3:$O$6,'Utility Functions'!$P$3:$P$6)","v":0},{"$f":"valuePL(J31,'Utility Functions'!$Q$3:$Q$6,'Utility Functions'!$R$3:$R$6)","v":0},{"$f":"valuePL(K31,'Utility Functions'!$S$3:$S$7,'Utility Functions'!$T$3:$T$7)","v":0},{"$f":"valueE(L31,'Utility Functions'!$V$3,'Utility Functions'!$V$4,'Utility Functions'!$V$5,'Utility Functions'!$V$6)","v":0.33333333333333331},{"$f":"valuePL(M31,'Utility Functions'!$W$3:$W$6,'Utility Functions'!$X$3:$X$6)","v":0.04},{"$f":"valueE(N31,'Utility Functions'!$Z$3,'Utility Functions'!$Z$4,'Utility Functions'!$Z$5,'Utility Functions'!$Z$6)","v":0},{"$f":"valuePL(O31,'Utility Functions'!$AA$3:$AA$5,'Utility Functions'!$AB$3:$AB$5)","v":0},{"$f":"valuePL(P31,'Utility Functions'!$AC$3:$AC$7,'Utility Functions'!$AD$3:$AD$7)","v":0},{"$f":"valuePL(Q31,'Utility Functions'!$AE$3:$AE$6,'Utility Functions'!$AF$3:$AF$6)","v":0},{"$f":"valuePL(R31,'Utility Functions'!$AG$3:$AG$6,'Utility Functions'!$AH$3:$AH$6)","v":0.2},{"$f":"valuePL(S31,'Utility Functions'!$AI$3:$AI$6,'Utility Functions'!$AJ$3:$AJ$6)","v":0.33},{"$f":"valuePL(T31,'Utility Functions'!$AK$3:$AK$8,'Utility Functions'!$AL$3:$AL$8)","v":0},{"$f":"valuePL(U31,'Utility Functions'!$AM$3:$AM$5,'Utility Functions'!$AN$3:$AN$5)","v":0},{"$f":"valuePL(V31,'Utility Functions'!$AO$3:$AO$5,'Utility Functions'!$AP$3:$AP$5)","v":0},{"$f":"valuePL(W31,'Utility Functions'!$AQ$3:$AQ$6,'Utility Functions'!$AR$3:$AR$6)","v":1},{"$f":"valuePL(X31,'Utility Functions'!$AS$3:$AS$6,'Utility Functions'!$AT$3:$AT$6)","v":0.2},{"$f":"valuePL(Y31,'Utility Functions'!$AU$3:$AU$6,'Utility Functions'!$AV$3:$AV$6)","v":0.8},{"$f":"valuePL(Z31,'Utility Functions'!$AW$3:$AW$5,'Utility Functions'!$AX$3:$AX$5)","v":0},{"$f":"valuePL(AA31,'Utility Functions'!$AY$3:$AY$6,'Utility Functions'!$AZ$3:$AZ$6)","v":0.89999999999999991},{"$f":"valuePL(AB31,'Utility Functions'!$BA$3:$BA$5,'Utility Functions'!$BB$3:$BB$5)","v":1},{"$f":"valuePL(AC31,'Utility Functions'!$BC$3:$BC$5,'Utility Functions'!$BD$3:$BD$5)","v":0},7.6494228467205527,null,7.6494228467205527,2.846089513387219,0.37333333333333329,0,0.53,3.9]
[31,{"$f":"valueE(B32,'Utility Functions'!$B$3,'Utility Functions'!$B$4,'Utility Functions'!$B$5,'Utility Functions'!$B$6)","v":0.55067187023002029},{"$f":"valueE(C32,'Utility Functions'!$D$3,'Utility Functions'!$D$4,'Utility Functions'!$D$5,'Utility Functions'!$D$6)","v":0.84744836833951609},{"$f":"valuePL(D32,'Utility Functions'!$E$3:$E$5,'Utility Functions'!$F$3:$F$5)","v":0.5},{"$f":"valuePL(E32,'Utility Functions'!$G$3:$G$5,'Utility Functions'!$H$3:$H$5)","v":0},{"$f":"valuePL(F32,'Utility Functions'!$I$3:$I$4,'Utility Functions'!$J$3:$J$5)","v":0},{"$f":"valueE(G32,'Utility Functions'!$L$3,'Utility Functions'!$L$4,'Utility Functions'!$L$5,'Utility Functions'!$L$6)","v":0},{"$f":"valueE(H32,'Utility Functions'!$N$3,'Utility Functions'!$N$4,'Utility Functions'!$N$5,'Utility Functions'!$N$6)","v":0},{"$f":"valuePL(I32,'Utility Functions'!$O$3:$O$6,'Utility Functions'!$P$3:$P$6)","v":0.75454545454545452},{"$f":"valuePL(J32,'Utility Functions'!$Q$3:$Q$6,'Utility Functions'!$R$3:$R$6)","v":0.08},{"$f":"valuePL(K32,'Utility Functions'!$S$3:$S$7,'Utility Functions'!$T$3:$T$7)","v":0},{"$f":"valueE(L32,'Utility Functions'!$V$3,'Utility Functions'!$V$4,'Utility Functions'!$V$5,'Utility Functions'!$V$6)","v":0.33333333333333331},{"$f":"valuePL(M32,'Utility Functions'!$W$3:$W$6,'Utility Functions'!$X$3:$X$6)","v":0.08},{"$f":"valueE(N32,'Utility Functions'!$Z$3,'Utility Functions'!$Z$4,'Utility Functions'!$Z$5,'Utility Functions'!$Z$6)","v":0},{"$f":"valuePL(O32,'Utility Functions'!$AA$3:$AA$5,'Utility Functions'!$AB$3:$AB$5)","v":0},{"$f":"valuePL(P32,'Utility Functions'!$AC$3:$AC$7,'Utility Functions'!$AD$3:$AD$7)","v":0.5},{"$f":"valuePL(Q32,'Utility Functions'!$AE$3:$AE$6,'Utility Functions'!$AF$3:$AF$6)","v":0},{"$f":"valuePL(R32,'Utility Functions'!$AG$3:$AG$6,'Utility Functions'!$AH$3:$AH$6)","v":1},{"$f":"valuePL(S32,'Utility Functions'!$AI$3:$AI$6,'Utility Functions'!$AJ$3:$AJ$6)","v":0.66},{"$f":"valuePL(T32,'Utility Functions'!$AK$3:$AK$8,'Utility Functions'!$AL$3:$AL$8)","v":0.6},{"$f":"valuePL(U32,'Utility Functions'!$AM$3:$AM$5,'Utility Functions'!$AN$3:$AN$5)","v":0},{"$f":"valuePL(V32,'Utility Functions'!$AO$3:$AO$5,'Utility Functions'!$AP$3:$AP$5)","v":0.5},{"$f":"valuePL(W32,'Utility Functions'!$AQ$3:$AQ$6,'Utility Functions'!$AR$3:$AR$6)","v":0},{"$f":"valuePL(X32,'Utility Functions'!$AS$3:$AS$6,'Utility Functions'!$AT$3:$AT$6)","v":0.2},{"$f":"valuePL(Y32,'Utility Functions'!$AU$3:$AU$6,'Utility Functions'!$AV$3:$AV$6)","v":0.2},{"$f":"valuePL(Z32,'Utility Functions'!$AW$3:$AW$5,'Utility Functions'!$AX$3:$AX$5)","v":1},{"$f":"valuePL(AA32,'Utility Functions'!$AY$3:$AY$6,'Utility Functions'!$AZ$3:$AZ$6)","v":0.89999999999999991},{"$f":"valuePL(AB32,'Utility Functions'!$BA$3:$BA$5,'Utility Functions'!$BB$3:$BB$5)","v":0.25},{"$f":"valuePL(AC32,'Utility Functions'!$BC$3:$BC$5,'Utility Functions'!$BD$3:$BD$5)","v":0.25},9.2059990264483247,null,9.2059990264483247,1.8981202385695364,1.2478787878787878,0,2.7600000000000002,3.3]
[32,{"$f":"valueE(B33,'Utility Functions'!$B$3,'Utility Functions'!$B$4,'Utility Functions'!$B$5,'Utility Functions'!$B$6)","v":0.63212151658375171},{"$f":"valueE(C33,'Utility Functions'!$D$3,'Utility Functions'!$D$4,'Utility Functions'!$D$5,'Utility Functions'!$D$6)","v":0.26839655623815994},{"$f":"valuePL(D33,'Utility Functions'!$E$3:$E$5,'Utility Functions'!$F$3:$F$5)","v":1},{"$f":"valuePL(E33,'Utility Functions'!$G$3:$G$5,'Utility Functions'!$H$3:$H$5)","v":1},{"$f":"valuePL(F33,'Utility Functions'!$I$3:$I$4,'Utility Functions'!$J$3:$J$5)","v":1},{"$f":"valueE(G33,'Utility Functions'!$L$3,'Utility Functions'!$L$4,'Utility Functions'!$L$5,'Utility Functions'!$L$6)","v":3.2258064516129031E-2},{"$f":"valueE(H33,'Utility Functions'!$N$3,'Utility Functions'!$N$4,'Utility Functions'!$N$5,'Utility Functions'!$N$6)","v":9.6774193548387094E-2},{"$f":"valuePL(I33,'Utility Functions'!$O$3:$O$6,'Utility Functions'!$P$3:$P$6)","v":0.34545454545454546},{"$f":"valuePL(J33,'Utility Functions'!$Q$3:$Q$6,'Utility Functions'!$R$3:$R$6)","v":1},{"$f":"valuePL(K33,'Utility Functions'!$S$3:$S$7,'Utility Functions'!$T$3:$T$7)","v":0.34545454545454546},{"$f":"valueE(L33,'Utility Functions'!$V$3,'Utility Functions'!$V$4,'Utility Functions'!$V$5,'Utility Functions'!$V$6)","v":1},{"$f":"valuePL(M33,'Utility Functions'!$W$3:$W$6,'Utility Functions'!$X$3:$X$6)","v":1},{"$f":"valueE(N33,'Utility Functions'!$Z$3,'Utility Functions'!$Z$4,'Utility Functions'!$Z$5,'Utility Functions'!$Z$6)","v":0},{"$f":"valuePL(O33,'Utility Functions'!$AA$3:$AA$5,'Utility Functions'!$AB$3:$AB$5)","v":0},{"$f":"valuePL(P33,'Utility Functions'!$AC$3:$AC$7,'Utility Functions'!$AD$3:$AD$7)","v":0.5},{"$f":"valuePL(Q33,'Utility Functions'!$AE$3:$AE$6,'Utility Functions'!$AF$3:$AF$6)","v":1},{"$f":"valuePL(R33,'Utility Functions'!$AG$3:$AG$6,'Utility Functions'!$AH$3:$AH$6)","v":1},{"$f":"valuePL(S33,'Utility Functions'!$AI$3:$AI$6,'Utility Functions'!$AJ$3:$AJ$6)","v":0},{"$f":"valuePL(T33,'Utility Functions'!$AK$3:$AK$8,'Utility Functions'!$AL$3:$AL$8)","v":0.8},{"$f":"valuePL(U33,'Utility Functions'!$AM$3:$AM$5,'Utility Functions'!$AN$3:$AN$5)","v":0},{"$f":"valuePL(V33,'Utility Functions'!$AO$3:$AO$5,'Utility Functions'!$AP$3:$AP$5)","v":0},{"$f":"valuePL(W33,'Utility Functions'!$AQ$3:$AQ$6,'Utility Functions'!$AR$3:$AR$6)","v":0.75},{"$f":"valuePL(X33,'Utility Functions'!$AS$3:$AS$6,'Utility Functions'!$AT$3:$AT$6)","v":0.2},{"$f":"valuePL(Y33,'Utility Functions'!$AU$3:$AU$6,'Utility Functions'!$AV$3:$AV$6)","v":0.8},{"$f":"valuePL(Z33,'Utility Functions'!$AW$3:$AW$5,'Utility Functions'!$AX$3:$AX$5)","v":0.5},{"$f":"valuePL(AA33,'Utility Functions'!$AY$3:$AY$6,'Utility Functions'!$AZ$3:$AZ$6)","v":0},{"$f":"valuePL(AB33,'Utility Functions'!$BA$3:$BA$5,'Utility Functions'!$BB$3:$BB$5)","v":1},{"$f":"valuePL(AC33,'Utility Functions'!$BC$3:$BC$5,'Utility Functions'!$BD$3:$BD$5)","v":0.25},14.52045942179552,null,14.520459421795518,3.9005180728219115,3.8199413489736074,0,3.3,3.5]
[33,{"$f":"valueE(B34,'Utility Functions'!$B$3,'Utility Functions'!$B$4,'Utility Functions'!$B$5,'Utility Functions'!$B$6)","v":0.93919136038504192},{"$f":"valueE(C34,'Utility Functions'!$D$3,'Utility Functions'!$D$4,'Utility Functions'!$D$5,'Utility Functions'!$D$6)","v":0.84744836833951609},{"$f":"valuePL(D34,'Utility Functions'!$E$3:$E$5,'Utility Functions'!$F$3:$F$5)","v":1},{"$f":"valuePL(E34,'Utility Functions'!$G$3:$G$5,'Utility Functions'!$H$3:$H$5)","v":0.5},{"$f":"valuePL(F34,'Utility Functions'!$I$3:$I$4,'Utility Functions'!$J$3:$J$5)","v":0},{"$f":"valueE(G34,'Utility Functions'!$L$3,'Utility Functions'!$L$4,'Utility Functions'!$L$5,'Utility Functions'!$L$6)","v":0},{"$f":"valueE(H34,'Utility Functions'!$N$3,'Utility Functions'!$N$4,'Utility Functions'!$N$5,'Utility Functions'!$N$6)","v":0},{"$f":"valuePL(I34,'Utility Functions'!$O$3:$O$6,'Utility Functions'!$P$3:$P$6)","v":0},{"$f":"valuePL(J34,'Utility Functions'!$Q$3:$Q$6,'Utility Functions'!$R$3:$R$6)","v":0},{"$f":"valuePL(K34,'Utility Functions'!$S$3:$S$7,'Utility Functions'!$T$3:$T$7)","v":0},{"$f":"valueE(L34,'Utility Functions'!$V$3,'Utility Functions'!$V$4,'Utility Functions'!$V$5,'Utility Functions'!$V$6)","v":0.5},{"$f":"valuePL(M34,'Utility Functions'!$W$3:$W$6,'Utility Functions'!$X$3:$X$6)","v":0},{"$f":"valueE(N34,'Utility Functions'!$Z$3,'Utility Functions'!$Z$4,'Utility Functions'!$Z$5,'Utility Functions'!$Z$6)","v":0},{"$f":"valuePL(O34,'Utility Functions'!$AA$3:$AA$5,'Utility Functions'!$AB$3:$AB$5)","v":0},{"$f":"valuePL(P34,'Utility Functions'!$AC$3:$AC$7,'Utility Functions'!$AD$3:$AD$7)","v":0.5},{"$f":"valuePL(Q34,'Utility Functions'!$AE$3:$AE$6,'Utility Functions'!$AF$3:$AF$6)","v":0},{"$f":"valuePL(R34,'Utility Functions'!$AG$3:$AG$6,'Utility Functions'!$AH$3:$AH$6)","v":1},{"$f":"valuePL(S34,'Utility Functions'!$AI$3:$AI$6,'Utility Functions'!$AJ$3:$AJ$6)","v":0.66},{"$f":"valuePL(T34,'Utility Functions'!$AK$3:$AK$8,'Utility Functions'!$AL$3:$AL$8)","v":0},{"$f":"valuePL(U34,'Utility Functions'!$AM$3:$AM$5,'Utility Functions'!$AN$3:$AN$5)","v":0},{"$f":"valuePL(V34,'Utility Functions'!$AO$3:$AO$5,'Utility Functions'!$AP$3:$AP$5)","v":0.5},{"$f":"valuePL(W34,'Utility Functions'!$AQ$3:$AQ$6,'Utility Functions'!$AR$3:$AR$6)","v":1},{"$f":"valuePL(X34,'Utility Functions'!$AS$3:$AS$6,'Utility Functions'!$AT$3:$AT$6)","v":0},{"$f":"valuePL(Y34,'Utility Functions'!$AU$3:$AU$6,'Utility Functions'!$AV$3:$AV$6)","v":0.8},{"$f":"valuePL(Z34,'Utility Functions'!$AW$3:$AW$5,'Utility Functions'!$AX$3:$AX$5)","v":1},{"$f":"valuePL(AA34,'Utility Functions'!$AY$3:$AY$6,'Utility Functions'!$AZ$3:$AZ$6)","v":1},{"$f":"valuePL(AB34,'Utility Functions'!$BA$3:$BA$5,'Utility Functions'!$BB$3:$BB$5)","v":0},{"$f":"valuePL(AC34,'Utility Functions'!$BC$3:$BC$5,'Utility Functions'!$BD$3:$BD$5)","v":0},10.246639728724558,null,10.246639728724558,3.2866397287245581,0.5,0,2.16,4.3]
[34,{"$f":"valueE(B35,'Utility Functions'!$B$3,'Utility Functions'!$B$4,'Utility Functions'!$B$5,'Utility Functions'!$B$6)","v":0},{"$f":"valueE(C35,'Utility Functions'!$D$3,'Utility Functions'!$D$4,'Utility Functions'!$D$5,'Utility Functions'!$D$6)","v":0},{"$f":"valuePL(D35,'Utility Functions'!$E$3:$E$5,'Utility Functions'!$F$3:$F$5)","v":0},{"$f":"valuePL(E35,'Utility Functions'!$G$3:$G$5,'Utility Functions'!$H$3:$H$5)","v":0},{"$f":"valuePL(F35,'Utility Functions'!$I$3:$I$4,'Utility Functions'!$J$3:$J$5)","v":0},{"$f":"valueE(G35,'Utility Functions'!$L$3,'Utility Functions'!$L$4,'Utility Functions'!$L$5,'Utility Functions'!$L$6)","v":0},{"$f":"valueE(H35,'Utility Functions'!$N$3,'Utility Functions'!$N$4,'Utility Functions'!$N$5,'Utility Functions'!$N$6)","v":1.1385199240986717E-2},{"$f":"valuePL(I35,'Utility Functions'!$O$3:$O$6,'Utility Functions'!$P$3:$P$6)","v":1},{"$f":"valuePL(J35,'Utility Functions'!$Q$3:$Q$6,'Utility Functions'!$R$3:$R$6)","v":0.91818181818181821},{"$f":"valuePL(K35,'Utility Functions'!$S$3:$S$7,'Utility Functions'!$T$3:$T$7)","v":1},{"$f":"valueE(L35,'Utility Functions'!$V$3,'Utility Functions'!$V$4,'Utility Functions'!$V$5,'Utility Functions'!$V$6)","v":1},{"$f":"valuePL(M35,'Utility Functions'!$W$3:$W$6,'Utility Functions'!$X$3:$X$6)","v":0.91818181818181821},{"$f":"valueE(N35,'Utility Functions'!$Z$3,'Utility Functions'!$Z$4,'Utility Functions'!$Z$5,'Utility Functions'!$Z$6)","v":0},{"$f":"valuePL(O35,'Utility Functions'!$AA$3:$AA$5,'Utility Functions'!$AB$3:$AB$5)","v":0},{"$f":"valuePL(P35,'Utility Functions'!$AC$3:$AC$7,'Utility Functions'!$AD$3:$AD$7)","v":0.5},{"$f":"valuePL(Q35,'Utility Functions'!$AE$3:$AE$6,'Utility Functions'!$AF$3:$AF$6)","v":0},{"$f":"valuePL(R35,'Utility Functions'!$AG$3:$AG$6,'Utility Functions'!$AH$3:$AH$6)","v":1},{"$f":"valuePL(S35,'Utility Functions'!$AI$3:$AI$6,'Utility Functions'!$AJ$3:$AJ$6)","v":1},{"$f":"valuePL(T35,'Utility Functions'!$AK$3:$AK$8,'Utility Functions'!$AL$3:$AL$8)","v":0.8},{"$f":"valuePL(U35,'Utility Functions'!$AM$3:$AM$5,'Utility Functions'!$AN$3:$AN$5)","v":0},{"$f":"valuePL(V35,'Utility Functions'!$AO$3:$AO$5,'Utility Functions'!$AP$3:$AP$5)","v":1},{"$f":"valuePL(W35,'Utility Functions'!$AQ$3:$AQ$6,'Utility Functions'!$AR$3:$AR$6)","v":1},{"$f":"valuePL(X35,'Utility Functions'!$AS$3:$AS$6,'Utility Functions'!$AT$3:$AT$6)","v":1},{"$f":"valuePL(Y35,'Utility Functions'!$AU$3:$AU$6,'Utility Functions'!$AV$3:$AV$6)","v":0},{"$f":"valuePL(Z35,'Utility Functions'!$AW$3:$AW$5,'Utility Functions'!$AX$3:$AX$5)","v":1},{"$f":"valuePL(AA35,'Utility Functions'!$AY$3:$AY$6,'Utility Functions'!$AZ$3:$AZ$6)","v":0.89999999999999991},{"$f":"valuePL(AB35,'Utility Functions'!$BA$3:$BA$5,'Utility Functions'!$BB$3:$BB$5)","v":0.25},{"$f":"valuePL(AC35,'Utility Functions'!$BC$3:$BC$5,'Utility Functions'!$BD$3:$BD$5)","v":0},13.297748835604624,null,13.297748835604624,0,4.847748835604623,0,3.3,5.15]
[35,{"$f":"valueE(B36,'Utility Functions'!$B$3,'Utility Functions'!$B$4,'Utility Functions'!$B$5,'Utility Functions'!$B$6)","v":0.79810469124896843},{"$f":"valueE(C36,'Utility Functions'!$D$3,'Utility Functions'!$D$4,'Utility Functions'!$D$5,'Utility Functions'!$D$6)","v":0.60939983135101949},{"$f":"valuePL(D36,'Utility Functions'!$E$3:$E$5,'Utility Functions'!$F$3:$F$5)","v":0.5},{"$f":"valuePL(E36,'Utility Functions'!$G$3:$G$5,'Utility Functions'!$H$3:$H$5)","v":0.5},{"$f":"valuePL(F36,'Utility Functions'!$I$3:$I$4,'Utility Functions'!$J$3:$J$5)","v":1},{"$f":"valueE(G36,'Utility Functions'!$L$3,'Utility Functions'!$L$4,'Utility Functions'!$L$5,'Utility Functions'!$L$6)","v":0},{"$f":"valueE(H36,'Utility Functions'!$N$3,'Utility Functions'!$N$4,'Utility Functions'!$N$5,'Utility Functions'!$N$6)","v":0},{"$f":"valuePL(I36,'Utility Functions'!$O$3:$O$6,'Utility Functions'!$P$3:$P$6)","v":0},{"$f":"valuePL(J36,'Utility Functions'!$Q$3:$Q$6,'Utility Functions'!$R$3:$R$6)","v":0},{"$f":"valuePL(K36,'Utility Functions'!$S$3:$S$7,'Utility Functions'!$T$3:$T$7)","v":1},{"$f":"valueE(L36,'Utility Functions'!$V$3,'Utility Functions'!$V$4,'Utility Functions'!$V$5,'Utility Functions'!$V$6)","v":0.66666666666666663},{"$f":"valuePL(M36,'Utility Functions'!$W$3:$W$6,'Utility Functions'!$X$3:$X$6)","v":0.1},{"$f":"valueE(N36,'Utility Functions'!$Z$3,'Utility Functions'!$Z$4,'Utility Functions'!$Z$5,'Utility Functions'!$Z$6)","v":1},{"$f":"valuePL(O36,'Utility Functions'!$AA$3:$AA$5,'Utility Functions'!$AB$3:$AB$5)","v":0},{"$f":"valuePL(P36,'Utility Functions'!$AC$3:$AC$7,'Utility Functions'!$AD$3:$AD$7)","v":0},{"$f":"valuePL(Q36,'Utility Functions'!$AE$3:$AE$6,'Utility Functions'!$AF$3:$AF$6)","v":0},{"$f":"valuePL(R36,'Utility Functions'!$AG$3:$AG$6,'Utility Functions'!$AH$3:$AH$6)","v":1},{"$f":"valuePL(S36,'Utility Functions'!$AI$3:$AI$6,'Utility Functions'!$AJ$3:$AJ$6)","v":1},{"$f":"valuePL(T36,'Utility Functions'!$AK$3:$AK$8,'Utility Functions'!$AL$3:$AL$8)","v":0.6},{"$f":"valuePL(U36,'Utility Functions'!$AM$3:$AM$5,'Utility Functions'!$AN$3:$AN$5)","v":0},{"$f":"valuePL(V36,'Utility Functions'!$AO$3:$AO$5,'Utility Functions'!$AP$3:$AP$5)","v":1},{"$f":"valuePL(W36,'Utility Functions'!$AQ$3:$AQ$6,'Utility Functions'!$AR$3:$AR$6)","v":0.75},{"$f":"valuePL(X36,'Utility Functions'!$AS$3:$AS$6,'Utility Functions'!$AT$3:$AT$6)","v":0},{"$f":"valuePL(Y36,'Utility Functions'!$AU$3:$AU$6,'Utility Functions'!$AV$3:$AV$6)","v":0.2},{"$f":"valuePL(Z36,'Utility Functions'!$AW$3:$AW$5,'Utility Functions'!$AX$3:$AX$5)","v":1},{"$f":"valuePL(AA36,'Utility Functions'!$AY$3:$AY$6,'Utility Functions'!$AZ$3:$AZ$6)","v":0},{"$f":"valuePL(AB36,'Utility Functions'!$BA$3:$BA$5,'Utility Functions'!$BB$3:$BB$5)","v":0.25},{"$f":"valuePL(AC36,'Utility Functions'!$BC$3:$BC$5,'Utility Functions'!$BD$3:$BD$5)","v":0.25},12.224171189266654,null,12.224171189266656,3.407504522599988,1.7666666666666666,1,2.6,3.45]
["Unweighted",{"$f":"SUMPRODUCT(B46:B80,$B$85:$B$119)","v":2.7372671342513},{"$f":"SUMPRODUCT(C46:C80,$B$85:$B$119)","v":2.3042965680300518},{"$f":"SUMPRODUCT(D46:D80,$B$85:$B$119)","v":1.5},2,1,3.2258064516129031E-2,0.10815939278937381,2.541818181818182,2.5090909090909088,3.541818181818182,4.166666666666667,2.6090909090909089,2.375,0.5,1.25,0,5,4.66,1.8000000000000003,1,4.5,2.95,2.2000000000000002,3,4.5,3.6999999999999997,0.5,1.5,null,null,"Unweighted",{"$f":"SUMPRODUCT(AG46:AG80,$B$85:$B$119)","v":9.5415637022813513},{"$f":"SUMPRODUCT(AH46:AH80,$B$85:$B$119)","v":15.50890230579035},2.875,13.709999999999999,22.849999999999998]
["Weighted",{"$f":"B$81*Sens_Mgmt!I$5","v":0.48829515900116416},{"$f":"C$81*Sens_Mgmt!J$5","v":0.38858377438646113},{"$f":"D$81*Sens_Mgmt!K$5","v":0.25617286836017028},{"$f":"E$81*Sens_Mgmt!L$5","v":0.33276994172270546},{"$f":"F$81*Sens_Mgmt!M$5","v":0.21581083583448765},{"$f":"G$81*Sens_Mgmt!N$5","v":5.7009824117846206E-5},{"$f":"H$81*Sens_Mgmt!O$5","v":1.9115058674807256E-4},{"$f":"I$81*Sens_Mgmt!P$5","v":7.6254021486142623E-3},{"$f":"J$81*Sens_Mgmt!Q$5","v":7.3349001867712956E-3},{"$f":"K$81*Sens_Mgmt!R$5","v":9.1222220235631091E-3},{"$f":"L$81*Sens_Mgmt!S$5","v":1.0999458341993821E-2},{"$f":"M$81*Sens_Mgmt!T$5","v":5.2007070803044295E-3},{"$f":"N$81*Sens_Mgmt!U$5","v":8.4821428571428548E-3},{"$f":"O$81*Sens_Mgmt!V$5","v":5.3571428571428555E-3},{"$f":"P$81*Sens_Mgmt!W$5","v":5.8835476048975602E-3},{"$f":"Q$81*Sens_Mgmt!X$5","v":0},{"$f":"R$81*Sens_Mgmt!Y$5","v":2.9694519684538824E-2},{"$f":"S$81*Sens_Mgmt!Z$5","v":2.4239457623358114E-2},{"$f":"T$81*Sens_Mgmt!AA$5","v":6.8149973108879228E-3},{"$f":"U$81*Sens_Mgmt!AB$5","v":3.749567406188667E-3},{"$f":"V$81*Sens_Mgmt!AC$5","v":2.9173054179231758E-2},{"$f":"W$81*Sens_Mgmt!AD$5","v":1.3792083570831743E-2},{"$f":"X$81*Sens_Mgmt!AE$5","v":1.0999847166624784E-2},{"$f":"Y$81*Sens_Mgmt!AF$5","v":1.8639837842007477E-2},{"$f":"Z$81*Sens_Mgmt!AG$5","v":2.4226458224082308E-2},{"$f":"AA$81*Sens_Mgmt!AH$5","v":1.5434599802267145E-2},{"$f":"AB$81*Sens_Mgmt!AI$5","v":2.211983431263245E-3},{"$f":"AC$81*Sens_Mgmt!AJ$5","v":6.1884891966111251E-3},null,null,"Weighted for SA",{"$f":"AG81*#REF!","v":{"$error":"#REF!"}},{"$f":"AH81*#REF!","v":{"$error":"#REF!"}},{"$f":"AI81*#REF!","v":{"$error":"#REF!"}},{"$f":"AJ81*#REF!","v":{"$error":"#REF!"}},{"$f":"AK81*#REF!","v":{"$error":"#REF!"}}]
[]
[null,"Decision variable","Benefit","Cost"]
[{"$f":"A2","v":1},0,{"$f":"AD46","v":17.117643866192076},{"$f":"AD2","v":700000}]
[2,0,{"$f":"AD47","v":12.641625800575998},{"$f":"AD3","v":5400000}]
[3,0,11.563541444302563,250000]
[4,0,9.2460291931089209,150000]
[5,0,9.5663279251355373,220000]
[6,0,5.9008471271383875,110000]
[7,1,15.54287399641135,1000000]
[8,0,14.227364688589191,5000000]
[9,0,11.893773577166716,25000]
[10,0,9.01,900000]
[11,1,13.174032258064516,1500000]
[12,0,9.4195802436719873,100000]
[13,0,7.5245670174228056,250000]
[14,0,10.338706637075108,500000]
[15,0,15.150477261414375,800000]
[16,0,15.119696969696969,2000000]
[17,0,10.876550515651747,500000]
[18,0,10.178462998102468,300000]
[19,0,9.3165012474871283,750000]
[20,0,15.091255033092194,1500000]
[21,0,9.5500000000000007,900000]
[22,0,9.471742567994939,750000]
[23,0,9.5321507448123199,1000000]
[24,0,9.4968811881212041,150000]
[25,0,13.870607417804099,250000]
[26,0,11.064076562960208,500000]
[27,0,9.0147596715374529,1200000]
[28,0,12.499282052393189,500000]
[29,0,12.453684519169958,2000000]
[30,0,7.6494228467205527,250000]
[31,0,9.2059990264483247,650000]
[32,0,14.52045942179552,200000]
[33,1,10.246639728724558,400000]
[34,1,13.297748835604624,900000]
[35,1,12.224171189266654,900000]
[null,{"$f":"SUM(B85:B119)","v":5},{"$f":"SUMPRODUCT(C85:C119,B85:B119)","v":64.485466008071697},{"$f":"SUMPRODUCT(B85:B119,D85:D119)","v":4700000}]
[]
[null,null,"Cost constraint",15000000]

{"sheet":"Portfolio_D_Mgmt","index":41,"n_rows":122,"n_cols":37,"rows_kept":122,"cut":false,"hidden":false,"merged":[]}
["Project","manage_species","manage_spatial","manage_uncertainty","manage_currentpractices","manage_adaptivemanagement","pop_a","pop_b","pop_spatialscope","pop_temporalscope","hab_quantity","hab_quality","hab_temporal","ecoprocess_spp","ecoprocess_uncertainty","datasharing","broaderimpacts","exisitingpriorities","partners","leverage","alignment","objhyp","response","targettaxa","surveydesign","stats","datamanagement","budget","timeline","cost"]
[1,9,6.25,2,2,0,186,1054,75,5,0,2,0,0,0,4,0,2,3,0,0,2,3,3,3,2,3,2,2,700000]
[2,3,28.2,1,0,0,0,0,0,0,0,2,0,4,1,0,0,3,3,0,0,2,3,3,3,2,3,2,2,5400000]
[3,8,28.2,2,0,0,0,0,0,0,0,2,0,5,1,0,2,0,0,0,1,2,3,3,3,2,1,2,2,250000]
[4,1,6.25,2,0,0,0,0,0,0,0,2,0,4,1,0,1,3,3,4,0,1,3,3,1,0,0,2,1,150000]
[5,4,3.1,2,0,0,0,0,50,2,0,2,0,0,0,0,1,3,3,4,1,0,3,3,2,0,0,2,1,220000]
[6,10,6.2E-2,2,0,0,0,0,10,2,0,2,0,0,0,0,1,0,3,3,0,0,0,3,0,0,0,2,1,110000]
[7,52,18.8,0,2,0,0,0,85,12,85,8,12,8,1,0,0,3,3,0,0,2,0,1,3,2,2,0,2,1000000]
[8,3,18.8,2,1,1,0,0,14,14,14,8,14,0,0,0,3,1,3,0,0,2,3,3,3,2,0,1,1,5000000]
[9,9,15.6,2,1,0,70,140,0,0,0,2,0,0,0,3,0,3,2,1,0,2,3,3,1,2,1,1,2,25000]
[10,0,0,0,0,0,0,0,0,0,0,2,0,6,2,1,2,3,2,2,0,0,2,3,3,1,1,0,2,900000]
[11,0,0,0,0,0,6,102,52,15,52,8,15,3,1,1,0,3,3,2,2,2,1,3,3,1,2,0,1,1500000]
[12,2,15.6,2,1,0,0,0,0,0,0,2,0,0,0,0,1,3,3,3,0,1,1,3,1,2,1,2,0,100000]
[13,0,0,0,0,0,0,12,39,2,39,8,2,7,1,1,0,3,3,0,0,1,0,1,0,2,1,1,1,250000]
[14,6,15.6,1,1,0,0,0,0,0,0,2,0,6,1,1,0,3,3,0,0,1,1,3,3,1,2,1,1,500000]
[15,23,12.5,2,1,1,0,0,23,3,23,8,3,1,2,2,0,2,3,3,2,0,3,1,1,2,3,2,1,800000]
[16,0,0,0,0,0,0,0,100,15,100,7,15,0,0,3,0,3,3,5,0,2,2,2,1,2,3,2,2,2000000]
[17,2,15.6,2,1,1,58,290,0,0,0,8,3,0,0,0,0,3,2,0,0,2,3,1,0,1,0,2,1,500000]
[18,0,0,0,0,0,0,30,0,0,0,2,0,8,1,1,3,3,3,5,1,2,2,1,2,1,2,1,0,300000]
[19,8,3.125,1,2,0,0,0,0,0,0,2,0,8,2,0,0,2,3,0,0,1,1,3,2,0,1,0,1,750000]
[20,9,15.6,1,2,0,0,435,76,10,76,6,10,8,2,1,0,3,3,3,2,1,0,0,1,2,1,0,1,1500000]
[21,0,0,0,0,0,0,0,0,0,0,2,0,8,2,0,1,3,3,5,1,0,2,3,1,0,3,1,2,900000]
[22,0,0,0,0,0,16,64,0,0,0,2,0,1,2,4,2,2,3,5,0,1,2,1,0,2,1,2,1,750000]
[23,9,18.8,2,0,0,0,0,0,0,0,2,0,0,0,3,0,3,3,5,0,2,1,2,1,1,1,0,1,1000000]
[24,5,6.25,2,0,0,0,0,0,0,0,2,0,0,0,0,0,3,3,5,0,0,3,1,3,2,1,0,2,150000]
[25,9,18.8,2,0,0,176,308,0,0,0,2,0,8,1,2,2,3,3,0,0,2,1,3,2,1,1,2,2,250000]
[26,17,18.8,2,1,0,0,0,0,0,0,2,0,0,0,3,0,3,3,4,0,2,1,0,2,0,1,2,2,500000]
[27,0,6.25,2,0,0,0,0,0,0,80,2,5,0,0,2,2,3,3,5,0,1,2,3,1,0,0,0,0,1200000]
[28,3,6.25,2,0,1,0,0,0,0,0,4,5,0,0,4,0,3,3,4,0,2,3,3,1,0,2,2,1,500000]
[29,9,12.5,2,1,0,0,0,15,12,15,8,12,0,0,1,0,3,3,4,0,2,1,0,2,1,1,1,2,2000000]
[30,33,18.8,2,0,0,0,0,0,0,0,4,2,0,0,0,0,1,1,0,0,0,3,1,2,0,2,2,0,250000]
[31,4,18.8,1,0,0,0,0,65,4,0,4,4,0,0,2,0,3,2,3,0,1,0,1,1,2,2,1,1,650000]
[32,5,3.125,2,2,1,6,102,40,16,40,8,16,0,0,2,3,3,0,4,0,0,2,1,2,1,0,2,1,200000]
[33,14,18.8,2,1,0,0,0,0,0,0,5,0,0,0,2,0,3,2,0,0,1,3,0,2,2,3,0,0,400000]
[34,0,0,0,0,0,0,12,100,15,100,8,15,0,0,2,0,3,3,4,0,2,3,3,0,2,2,1,0,900000]
[35,8,9.4,1,1,1,0,0,0,0,100,6,5,8,0,0,0,3,3,3,0,2,2,0,1,2,0,1,1,900000]
["CV",{"$f":"_xlfn.STDEV.S(B2:B36)/AVERAGE(B2:B36)","v":1.383842854444886},{"$f":"_xlfn.STDEV.S(C2:C36)/AVERAGE(C2:C36)","v":0.84395823753626376},{"$f":"_xlfn.STDEV.S(D2:D36)/AVERAGE(D2:D36)","v":0.65948586466528381},{"$f":"_xlfn.STDEV.S(E2:E36)/AVERAGE(E2:E36)","v":1.2933654230908831},2.2305806858480666,2.9881459898804135,2.7250501152884543,1.5394659205075842,1.5790297611729722,1.6828143944790142,0.63288342730791625,1.4346340567392073,1.2744250477591585,1.2909944487358058,1.043011114951035,1.4910544805781871,0.32582327651393111,0.30721159062514791,0.8219511329380369,2.1760730956581078,0.64975875258290616,0.58618247649425104,0.61083323417736113,0.63333947951472869,0.68629571860885286,0.76505300516434493,0.69428102652373402,0.60312027652595823]
["sd",{"$f":"_xlfn.STDEV.S(B2:B36)","v":10.477667326511279}]
["mean",{"$f":"AVERAGE(B2:B36)","v":7.5714285714285712}]
[null,{"$f":"B1","v":"manage_species"},{"$f":"C1","v":"manage_spatial"},"manage_uncertainty","manage_currentpractices","manage_adaptivemanagement","pop_a","pop_b","pop_spatialscope","pop_temporalscope","hab_quantity","hab_quality","hab_temporal","ecoprocess_spp","ecoprocess_uncertainty","datasharing","broaderimpacts","exisitingpriorities","partners","leverage","alignment","objhyp","response","targettaxa","surveydesign","stats","datamanagement","budget","timeline"]
[null,"Metric 1","Metric 2","Metric 3","Metric 4","Metric 5","Metric 6a","Metric 6b","Metric 7","Metric 8","Metric 9","Metric 10","Metric 11","Metric 12","Metric 13","Metric 14","Metric 15","Metric 16","Metric 17","Metric 18","Metric 19","Metric 20","Metric 21","Metric 22","Metric 23","Metric 24","Metric 25","Metric 26","Metric 27"]
["Weights",0.03,0.03,0.03,0.03,0.04,1.4999999999999999E-2,1.4999999999999999E-2,0.03,0.02,0.02,0.02,0.02,0.03,0.09,0.04,0.04,0.05,0.05,0.03,0.03,0.05,0.04,0.04,0.05,0.05,0.04,0.04,0.03]
[]
[null,"Unweighted"]
["Project",null,null,null,null,null,null,null,null,null,null,null,null,null,null,null,null,null,null,null,null,null,null,null,null,null,null,null,null,"Unweighted total",null,"Unweighted total","management","status","ecol_proc","integration","rigor"]
[{"$f":"A2","v":1},{"$f":"valueE(B2,'Utility Functions'!$B$3,'Utility Functions'!$B$4,'Utility Functions'!$B$5,'Utility Functions'!$B$6)","v":0.83470237647280454},{"$f":"valueE(C2,'Utility Functions'!$D$3,'Utility Functions'!$D$4,'Utility Functions'!$D$5,'Utility Functions'!$D$6)","v":0.46475967153745396},{"$f":"valuePL(D2,'Utility Functions'!$E$3:$E$5,'Utility Functions'!$F$3:$F$5)","v":1},{"$f":"valuePL(E2,'Utility Functions'!$G$3:$G$5,'Utility Functions'!$H$3:$H$5)","v":1},{"$f":"valuePL(F2,'Utility Functions'!$I$3:$I$4,'Utility Functions'!$J$3:$J$5)","v":0},{"$f":"valueE(G2,'Utility Functions'!$L$3,'Utility Functions'!$L$4,'Utility Functions'!$L$5,'Utility Functions'!$L$6)","v":1},{"$f":"valueE(H2,'Utility Functions'!$N$3,'Utility Functions'!$N$4,'Utility Functions'!$N$5,'Utility Functions'!$N$6)","v":1},{"$f":"valuePL(I2,'Utility Functions'!$O$3:$O$6,'Utility Functions'!$P$3:$P$6)","v":0.91818181818181821},{"$f":"valuePL(J2,'Utility Functions'!$Q$3:$Q$6,'Utility Functions'!$R$3:$R$6)","v":0.1},{"$f":"valuePL(K2,'Utility Functions'!$S$3:$S$7,'Utility Functions'!$T$3:$T$7)","v":0},{"$f":"valueE(L2,'Utility Functions'!$V$3,'Utility Functions'!$V$4,'Utility Functions'!$V$5,'Utility Functions'!$V$6)","v":0},{"$f":"valuePL(M2,'Utility Functions'!$W$3:$W$6,'Utility Functions'!$X$3:$X$6)","v":0},{"$f":"valueE(N2,'Utility Functions'!$Z$3,'Utility Functions'!$Z$4,'Utility Functions'!$Z$5,'Utility Functions'!$Z$6)","v":0},{"$f":"valuePL(O2,'Utility Functions'!$AA$3:$AA$5,'Utility Functions'!$AB$3:$AB$5)","v":0},{"$f":"valuePL(P2,'Utility Functions'!$AC$3:$AC$7,'Utility Functions'!$AD$3:$AD$7)","v":1},{"$f":"valuePL(Q2,'Utility Functions'!$AE$3:$AE$6,'Utility Functions'!$AF$3:$AF$6)","v":0},{"$f":"valuePL(R2,'Utility Functions'!$AG$3:$AG$6,'Utility Functions'!$AH$3:$AH$6)","v":0.8},{"$f":"valuePL(S2,'Utility Functions'!$AI$3:$AI$6,'Utility Functions'!$AJ$3:$AJ$6)","v":1},{"$f":"valuePL(T2,'Utility Functions'!$AK$3:$AK$8,'Utility Functions'!$AL$3:$AL$8)","v":0},{"$f":"valuePL(U2,'Utility Functions'!$AM$3:$AM$5,'Utility Functions'!$AN$3:$AN$5)","v":0},{"$f":"valuePL(V2,'Utility Functions'!$AO$3:$AO$5,'Utility Functions'!$AP$3:$AP$5)","v":1},{"$f":"valuePL(W2,'Utility Functions'!$AQ$3:$AQ$6,'Utility Functions'!$AR$3:$AR$6)","v":1},{"$f":"valuePL(X2,'Utility Functions'!$AS$3:$AS$6,'Utility Functions'!$AT$3:$AT$6)","v":1},{"$f":"valuePL(Y2,'Utility Functions'!$AU$3:$AU$6,'Utility Functions'!$AV$3:$AV$6)","v":1},{"$f":"valuePL(Z2,'Utility Functions'!$AW$3:$AW$5,'Utility Functions'!$AX$3:$AX$5)","v":1},{"$f":"valuePL(AA2,'Utility Functions'!$AY$3:$AY$6,'Utility Functions'!$AZ$3:$AZ$6)","v":1},{"$f":"valuePL(AB2,'Utility Functions'!$BA$3:$BA$5,'Utility Functions'!$BB$3:$BB$5)","v":1},{"$f":"valuePL(AC2,'Utility Functions'!$BC$3:$BC$5,'Utility Functions'!$BD$3:$BD$5)","v":1},{"$f":"SUM(B46:AC46)","v":17.117643866192076},null,{"$f":"SUM(AG46:AK46)","v":17.117643866192076},{"$f":"SUM(B46:F46)","v":3.2994620480102586},{"$f":"SUM(G46:M46)","v":3.0181818181818181},{"$f":"SUM(N46:O46)","v":0},{"$f":"SUM(P46:U46)","v":2.8},{"$f":"SUM(V46:AC46)","v":8}]
[2,{"$f":"valueE(B3,'Utility Functions'!$B$3,'Utility Functions'!$B$4,'Utility Functions'!$B$5,'Utility Functions'!$B$6)","v":0.4511890475224023},{"$f":"valueE(C3,'Utility Functions'!$D$3,'Utility Functions'!$D$4,'Utility Functions'!$D$5,'Utility Functions'!$D$6)","v":0.94043675305359531},{"$f":"valuePL(D3,'Utility Functions'!$E$3:$E$5,'Utility Functions'!$F$3:$F$5)","v":0.5},{"$f":"valuePL(E3,'Utility Functions'!$G$3:$G$5,'Utility Functions'!$H$3:$H$5)","v":0},{"$f":"valuePL(F3,'Utility Functions'!$I$3:$I$4,'Utility Functions'!$J$3:$J$5)","v":0},{"$f":"valueE(G3,'Utility Functions'!$L$3,'Utility Functions'!$L$4,'Utility Functions'!$L$5,'Utility Functions'!$L$6)","v":0},{"$f":"valueE(H3,'Utility Functions'!$N$3,'Utility Functions'!$N$4,'Utility Functions'!$N$5,'Utility Functions'!$N$6)","v":0},{"$f":"valuePL(I3,'Utility Functions'!$O$3:$O$6,'Utility Functions'!$P$3:$P$6)","v":0},{"$f":"valuePL(J3,'Utility Functions'!$Q$3:$Q$6,'Utility Functions'!$R$3:$R$6)","v":0},{"$f":"valuePL(K3,'Utility Functions'!$S$3:$S$7,'Utility Functions'!$T$3:$T$7)","v":0},{"$f":"valueE(L3,'Utility Functions'!$V$3,'Utility Functions'!$V$4,'Utility Functions'!$V$5,'Utility Functions'!$V$6)","v":0},{"$f":"valuePL(M3,'Utility Functions'!$W$3:$W$6,'Utility Functions'!$X$3:$X$6)","v":0},{"$f":"valueE(N3,'Utility Functions'!$Z$3,'Utility Functions'!$Z$4,'Utility Functions'!$Z$5,'Utility Functions'!$Z$6)","v":0.5},{"$f":"valuePL(O3,'Utility Functions'!$AA$3:$AA$5,'Utility Functions'!$AB$3:$AB$5)","v":0.25},{"$f":"valuePL(P3,'Utility Functions'!$AC$3:$AC$7,'Utility Functions'!$AD$3:$AD$7)","v":0},{"$f":"valuePL(Q3,'Utility Functions'!$AE$3:$AE$6,'Utility Functions'!$AF$3:$AF$6)","v":0},{"$f":"valuePL(R3,'Utility Functions'!$AG$3:$AG$6,'Utility Functions'!$AH$3:$AH$6)","v":1},{"$f":"valuePL(S3,'Utility Functions'!$AI$3:$AI$6,'Utility Functions'!$AJ$3:$AJ$6)","v":1},{"$f":"valuePL(T3,'Utility Functions'!$AK$3:$AK$8,'Utility Functions'!$AL$3:$AL$8)","v":0},{"$f":"valuePL(U3,'Utility Functions'!$AM$3:$AM$5,'Utility Functions'!$AN$3:$AN$5)","v":0},{"$f":"valuePL(V3,'Utility Functions'!$AO$3:$AO$5,'Utility Functions'!$AP$3:$AP$5)","v":1},{"$f":"valuePL(W3,'Utility Functions'!$AQ$3:$AQ$6,'Utility Functions'!$AR$3:$AR$6)","v":1},{"$f":"valuePL(X3,'Utility Functions'!$AS$3:$AS$6,'Utility Functions'!$AT$3:$AT$6)","v":1},{"$f":"valuePL(Y3,'Utility Functions'!$AU$3:$AU$6,'Utility Functions'!$AV$3:$AV$6)","v":1},{"$f":"valuePL(Z3,'Utility Functions'!$AW$3:$AW$5,'Utility Functions'!$AX$3:$AX$5)","v":1},{"$f":"valuePL(AA3,'Utility Functions'!$AY$3:$AY$6,'Utility Functions'!$AZ$3:$AZ$6)","v":1},{"$f":"valuePL(AB3,'Utility Functions'!$BA$3:$BA$5,'Utility Functions'!$BB$3:$BB$5)","v":1},{"$f":"valuePL(AC3,'Utility Functions'!$BC$3:$BC$5,'Utility Functions'!$BD$3:$BD$5)","v":1},{"$f":"SUM(B47:AC47)","v":12.641625800575998},null,{"$f":"SUM(AG47:AK47)","v":12.641625800575998},{"$f":"SUM(B47:F47)","v":1.8916258005759976},{"$f":"SUM(G47:M47)","v":0},{"$f":"SUM(N47:O47)","v":0.75},{"$f":"SUM(P47:U47)","v":2},{"$f":"SUM(V47:AC47)","v":8}]
[3,{"$f":"valueE(B4,'Utility Functions'!$B$3,'Utility Functions'!$B$4,'Utility Functions'!$B$5,'Utility Functions'!$B$6)","v":0.79810469124896843},{"$f":"valueE(C4,'Utility Functions'!$D$3,'Utility Functions'!$D$4,'Utility Functions'!$D$5,'Utility Functions'!$D$6)","v":0.94043675305359531},{"$f":"valuePL(D4,'Utility Functions'!$E$3:$E$5,'Utility Functions'!$F$3:$F$5)","v":1},{"$f":"valuePL(E4,'Utility Functions'!$G$3:$G$5,'Utility Functions'!$H$3:$H$5)","v":0},{"$f":"valuePL(F4,'Utility Functions'!$I$3:$I$4,'Utility Functions'!$J$3:$J$5)","v":0},{"$f":"valueE(G4,'Utility Functions'!$L$3,'Utility Functions'!$L$4,'Utility Functions'!$L$5,'Utility Functions'!$L$6)","v":0},{"$f":"valueE(H4,'Utility Functions'!$N$3,'Utility Functions'!$N$4,'Utility Functions'!$N$5,'Utility Functions'!$N$6)","v":0},{"$f":"valuePL(I4,'Utility Functions'!$O$3:$O$6,'Utility Functions'!$P$3:$P$6)","v":0},{"$f":"valuePL(J4,'Utility Functions'!$Q$3:$Q$6,'Utility Functions'!$R$3:$R$6)","v":0},{"$f":"valuePL(K4,'Utility Functions'!$S$3:$S$7,'Utility Functions'!$T$3:$T$7)","v":0},{"$f":"valueE(L4,'Utility Functions'!$V$3,'Utility Functions'!$V$4,'Utility Functions'!$V$5,'Utility Functions'!$V$6)","v":0},{"$f":"valuePL(M4,'Utility Functions'!$W$3:$W$6,'Utility Functions'!$X$3:$X$6)","v":0},{"$f":"valueE(N4,'Utility Functions'!$Z$3,'Utility Functions'!$Z$4,'Utility Functions'!$Z$5,'Utility Functions'!$Z$6)","v":0.625},{"$f":"valuePL(O4,'Utility Functions'!$AA$3:$AA$5,'Utility Functions'!$AB$3:$AB$5)","v":0.25},{"$f":"valuePL(P4,'Utility Functions'!$AC$3:$AC$7,'Utility Functions'!$AD$3:$AD$7)","v":0},{"$f":"valuePL(Q4,'Utility Functions'!$AE$3:$AE$6,'Utility Functions'!$AF$3:$AF$6)","v":0.5},{"$f":"valuePL(R4,'Utility Functions'!$AG$3:$AG$6,'Utility Functions'!$AH$3:$AH$6)","v":0},{"$f":"valuePL(S4,'Utility Functions'!$AI$3:$AI$6,'Utility Functions'!$AJ$3:$AJ$6)","v":0},{"$f":"valuePL(T4,'Utility Functions'!$AK$3:$AK$8,'Utility Functions'!$AL$3:$AL$8)","v":0},{"$f":"valuePL(U4,'Utility Functions'!$AM$3:$AM$5,'Utility Functions'!$AN$3:$AN$5)","v":0.25},{"$f":"valuePL(V4,'Utility Functions'!$AO$3:$AO$5,'Utility Functions'!$AP$3:$AP$5)","v":1},{"$f":"valuePL(W4,'Utility Functions'!$AQ$3:$AQ$6,'Utility Functions'!$AR$3:$AR$6)","v":1},{"$f":"valuePL(X4,'Utility Functions'!$AS$3:$AS$6,'Utility Functions'!$AT$3:$AT$6)","v":1},{"$f":"valuePL(Y4,'Utility Functions'!$AU$3:$AU$6,'Utility Functions'!$AV$3:$AV$6)","v":1},{"$f":"valuePL(Z4,'Utility Functions'!$AW$3:$AW$5,'Utility Functions'!$AX$3:$AX$5)","v":1},{"$f":"valuePL(AA4,'Utility Functions'!$AY$3:$AY$6,'Utility Functions'!$AZ$3:$AZ$6)","v":0.2},{"$f":"valuePL(AB4,'Utility Functions'!$BA$3:$BA$5,'Utility Functions'!$BB$3:$BB$5)","v":1},{"$f":"valuePL(AC4,'Utility Functions'!$BC$3:$BC$5,'Utility Functions'!$BD$3:$BD$5)","v":1},11.563541444302563,null,11.563541444302565,2.7385414443025637,0,0.875,0.75,7.2]
[4,{"$f":"valueE(B5,'Utility Functions'!$B$3,'Utility Functions'!$B$4,'Utility Functions'!$B$5,'Utility Functions'!$B$6)","v":0.1812695215714665},{"$f":"valueE(C5,'Utility Functions'!$D$3,'Utility Functions'!$D$4,'Utility Functions'!$D$5,'Utility Functions'!$D$6)","v":0.46475967153745396},{"$f":"valuePL(D5,'Utility Functions'!$E$3:$E$5,'Utility Functions'!$F$3:$F$5)","v":1},{"$f":"valuePL(E5,'Utility Functions'!$G$3:$G$5,'Utility Functions'!$H$3:$H$5)","v":0},{"$f":"valuePL(F5,'Utility Functions'!$I$3:$I$4,'Utility Functions'!$J$3:$J$5)","v":0},{"$f":"valueE(G5,'Utility Functions'!$L$3,'Utility Functions'!$L$4,'Utility Functions'!$L$5,'Utility Functions'!$L$6)","v":0},{"$f":"valueE(H5,'Utility Functions'!$N$3,'Utility Functions'!$N$4,'Utility Functions'!$N$5,'Utility Functions'!$N$6)","v":0},{"$f":"valuePL(I5,'Utility Functions'!$O$3:$O$6,'Utility Functions'!$P$3:$P$6)","v":0},{"$f":"valuePL(J5,'Utility Functions'!$Q$3:$Q$6,'Utility Functions'!$R$3:$R$6)","v":0},{"$f":"valuePL(K5,'Utility Functions'!$S$3:$S$7,'Utility Functions'!$T$3:$T$7)","v":0},{"$f":"valueE(L5,'Utility Functions'!$V$3,'Utility Functions'!$V$4,'Utility Functions'!$V$5,'Utility Functions'!$V$6)","v":0},{"$f":"valuePL(M5,'Utility Functions'!$W$3:$W$6,'Utility Functions'!$X$3:$X$6)","v":0},{"$f":"valueE(N5,'Utility Functions'!$Z$3,'Utility Functions'!$Z$4,'Utility Functions'!$Z$5,'Utility Functions'!$Z$6)","v":0.5},{"$f":"valuePL(O5,'Utility Functions'!$AA$3:$AA$5,'Utility Functions'!$AB$3:$AB$5)","v":0.25},{"$f":"valuePL(P5,'Utility Functions'!$AC$3:$AC$7,'Utility Functions'!$AD$3:$AD$7)","v":0},{"$f":"valuePL(Q5,'Utility Functions'!$AE$3:$AE$6,'Utility Functions'!$AF$3:$AF$6)","v":0.1},{"$f":"valuePL(R5,'Utility Functions'!$AG$3:$AG$6,'Utility Functions'!$AH$3:$AH$6)","v":1},{"$f":"valuePL(S5,'Utility Functions'!$AI$3:$AI$6,'Utility Functions'!$AJ$3:$AJ$6)","v":1},{"$f":"valuePL(T5,'Utility Functions'!$AK$3:$AK$8,'Utility Functions'!$AL$3:$AL$8)","v":0.8},{"$f":"valuePL(U5,'Utility Functions'!$AM$3:$AM$5,'Utility Functions'!$AN$3:$AN$5)","v":0},{"$f":"valuePL(V5,'Utility Functions'!$AO$3:$AO$5,'Utility Functions'!$AP$3:$AP$5)","v":0.5},{"$f":"valuePL(W5,'Utility Functions'!$AQ$3:$AQ$6,'Utility Functions'!$AR$3:$AR$6)","v":1},{"$f":"valuePL(X5,'Utility Functions'!$AS$3:$AS$6,'Utility Functions'!$AT$3:$AT$6)","v":1},{"$f":"valuePL(Y5,'Utility Functions'!$AU$3:$AU$6,'Utility Functions'!$AV$3:$AV$6)","v":0.2},{"$f":"valuePL(Z5,'Utility Functions'!$AW$3:$AW$5,'Utility Functions'!$AX$3:$AX$5)","v":0},{"$f":"valuePL(AA5,'Utility Functions'!$AY$3:$AY$6,'Utility Functions'!$AZ$3:$AZ$6)","v":0},{"$f":"valuePL(AB5,'Utility Functions'!$BA$3:$BA$5,'Utility Functions'!$BB$3:$BB$5)","v":1},{"$f":"valuePL(AC5,'Utility Functions'!$BC$3:$BC$5,'Utility Functions'!$BD$3:$BD$5)","v":0.25},9.2460291931089209,null,9.2460291931089209,1.6460291931089204,0,0.75,2.9000000000000004,3.95]
[5,{"$f":"valueE(B6,'Utility Functions'!$B$3,'Utility Functions'!$B$4,'Utility Functions'!$B$5,'Utility Functions'!$B$6)","v":0.55067187023002029},{"$f":"valueE(C6,'Utility Functions'!$D$3,'Utility Functions'!$D$4,'Utility Functions'!$D$5,'Utility Functions'!$D$6)","v":0.26656514581460788},{"$f":"valuePL(D6,'Utility Functions'!$E$3:$E$5,'Utility Functions'!$F$3:$F$5)","v":1},{"$f":"valuePL(E6,'Utility Functions'!$G$3:$G$5,'Utility Functions'!$H$3:$H$5)","v":0},{"$f":"valuePL(F6,'Utility Functions'!$I$3:$I$4,'Utility Functions'!$J$3:$J$5)","v":0},{"$f":"valueE(G6,'Utility Functions'!$L$3,'Utility Functions'!$L$4,'Utility Functions'!$L$5,'Utility Functions'!$L$6)","v":0},{"$f":"valueE(H6,'Utility Functions'!$N$3,'Utility Functions'!$N$4,'Utility Functions'!$N$5,'Utility Functions'!$N$6)","v":0},{"$f":"valuePL(I6,'Utility Functions'!$O$3:$O$6,'Utility Functions'!$P$3:$P$6)","v":0.50909090909090915},{"$f":"valuePL(J6,'Utility Functions'!$Q$3:$Q$6,'Utility Functions'!$R$3:$R$6)","v":0.04},{"$f":"valuePL(K6,'Utility Functions'!$S$3:$S$7,'Utility Functions'!$T$3:$T$7)","v":0},{"$f":"valueE(L6,'Utility Functions'!$V$3,'Utility Functions'!$V$4,'Utility Functions'!$V$5,'Utility Functions'!$V$6)","v":0},{"$f":"valuePL(M6,'Utility Functions'!$W$3:$W$6,'Utility Functions'!$X$3:$X$6)","v":0},{"$f":"valueE(N6,'Utility Functions'!$Z$3,'Utility Functions'!$Z$4,'Utility Functions'!$Z$5,'Utility Functions'!$Z$6)","v":0},{"$f":"valuePL(O6,'Utility Functions'!$AA$3:$AA$5,'Utility Functions'!$AB$3:$AB$5)","v":0},{"$f":"valuePL(P6,'Utility Functions'!$AC$3:$AC$7,'Utility Functions'!$AD$3:$AD$7)","v":0},{"$f":"valuePL(Q6,'Utility Functions'!$AE$3:$AE$6,'Utility Functions'!$AF$3:$AF$6)","v":0.1},{"$f":"valuePL(R6,'Utility Functions'!$AG$3:$AG$6,'Utility Functions'!$AH$3:$AH$6)","v":1},{"$f":"valuePL(S6,'Utility Functions'!$AI$3:$AI$6,'Utility Functions'!$AJ$3:$AJ$6)","v":1},{"$f":"valuePL(T6,'Utility Functions'!$AK$3:$AK$8,'Utility Functions'!$AL$3:$AL$8)","v":0.8},{"$f":"valuePL(U6,'Utility Functions'!$AM$3:$AM$5,'Utility Functions'!$AN$3:$AN$5)","v":0.25},{"$f":"valuePL(V6,'Utility Functions'!$AO$3:$AO$5,'Utility Functions'!$AP$3:$AP$5)","v":0},{"$f":"valuePL(W6,'Utility Functions'!$AQ$3:$AQ$6,'Utility Functions'!$AR$3:$AR$6)","v":1},{"$f":"valuePL(X6,'Utility Functions'!$AS$3:$AS$6,'Utility Functions'!$AT$3:$AT$6)","v":1},{"$f":"valuePL(Y6,'Utility Functions'!$AU$3:$AU$6,'Utility Functions'!$AV$3:$AV$6)","v":0.8},{"$f":"valuePL(Z6,'Utility Functions'!$AW$3:$AW$5,'Utility Functions'!$AX$3:$AX$5)","v":0},{"$f":"valuePL(AA6,'Utility Functions'!$AY$3:$AY$6,'Utility Functions'!$AZ$3:$AZ$6)","v":0},{"$f":"valuePL(AB6,'Utility Functions'!$BA$3:$BA$5,'Utility Functions'!$BB$3:$BB$5)","v":1},{"$f":"valuePL(AC6,'Utility Functions'!$BC$3:$BC$5,'Utility Functions'!$BD$3:$BD$5)","v":0.25},9.5663279251355373,null,9.5663279251355391,1.8172370160446283,0.54909090909090918,0,3.1500000000000004,4.05]
[6,{"$f":"valueE(B7,'Utility Functions'!$B$3,'Utility Functions'!$B$4,'Utility Functions'!$B$5,'Utility Functions'!$B$6)","v":0.86466602685702687},{"$f":"valueE(C7,'Utility Functions'!$D$3,'Utility Functions'!$D$4,'Utility Functions'!$D$5,'Utility Functions'!$D$6)","v":6.1811002813601471E-3},{"$f":"valuePL(D7,'Utility Functions'!$E$3:$E$5,'Utility Functions'!$F$3:$F$5)","v":1},{"$f":"valuePL(E7,'Utility Functions'!$G$3:$G$5,'Utility Functions'!$H$3:$H$5)","v":0},{"$f":"valuePL(F7,'Utility Functions'!$I$3:$I$4,'Utility Functions'!$J$3:$J$5)","v":0},{"$f":"valueE(G7,'Utility Functions'!$L$3,'Utility Functions'!$L$4,'Utility Functions'!$L$5,'Utility Functions'!$L$6)","v":0},{"$f":"valueE(H7,'Utility Functions'!$N$3,'Utility Functions'!$N$4,'Utility Functions'!$N$5,'Utility Functions'!$N$6)","v":0},{"$f":"valuePL(I7,'Utility Functions'!$O$3:$O$6,'Utility Functions'!$P$3:$P$6)","v":0.04},{"$f":"valuePL(J7,'Utility Functions'!$Q$3:$Q$6,'Utility Functions'!$R$3:$R$6)","v":0.04},{"$f":"valuePL(K7,'Utility Functions'!$S$3:$S$7,'Utility Functions'!$T$3:$T$7)","v":0},{"$f":"valueE(L7,'Utility Functions'!$V$3,'Utility Functions'!$V$4,'Utility Functions'!$V$5,'Utility Functions'!$V$6)","v":0},{"$f":"valuePL(M7,'Utility Functions'!$W$3:$W$6,'Utility Functions'!$X$3:$X$6)","v":0},{"$f":"valueE(N7,'Utility Functions'!$Z$3,'Utility Functions'!$Z$4,'Utility Functions'!$Z$5,'Utility Functions'!$Z$6)","v":0},{"$f":"valuePL(O7,'Utility Functions'!$AA$3:$AA$5,'Utility Functions'!$AB$3:$AB$5)","v":0},{"$f":"valuePL(P7,'Utility Functions'!$AC$3:$AC$7,'Utility Functions'!$AD$3:$AD$7)","v":0},{"$f":"valuePL(Q7,'Utility Functions'!$AE$3:$AE$6,'Utility Functions'!$AF$3:$AF$6)","v":0.1},{"$f":"valuePL(R7,'Utility Functions'!$AG$3:$AG$6,'Utility Functions'!$AH$3:$AH$6)","v":0},{"$f":"valuePL(S7,'Utility Functions'!$AI$3:$AI$6,'Utility Functions'!$AJ$3:$AJ$6)","v":1},{"$f":"valuePL(T7,'Utility Functions'!$AK$3:$AK$8,'Utility Functions'!$AL$3:$AL$8)","v":0.6},{"$f":"valuePL(U7,'Utility Functions'!$AM$3:$AM$5,'Utility Functions'!$AN$3:$AN$5)","v":0},{"$f":"valuePL(V7,'Utility Functions'!$AO$3:$AO$5,'Utility Functions'!$AP$3:$AP$5)","v":0},{"$f":"valuePL(W7,'Utility Functions'!$AQ$3:$AQ$6,'Utility Functions'!$AR$3:$AR$6)","v":0},{"$f":"valuePL(X7,'Utility Functions'!$AS$3:$AS$6,'Utility Functions'!$AT$3:$AT$6)","v":1},{"$f":"valuePL(Y7,'Utility Functions'!$AU$3:$AU$6,'Utility Functions'!$AV$3:$AV$6)","v":0},{"$f":"valuePL(Z7,'Utility Functions'!$AW$3:$AW$5,'Utility Functions'!$AX$3:$AX$5)","v":0},{"$f":"valuePL(AA7,'Utility Functions'!$AY$3:$AY$6,'Utility Functions'!$AZ$3:$AZ$6)","v":0},{"$f":"valuePL(AB7,'Utility Functions'!$BA$3:$BA$5,'Utility Functions'!$BB$3:$BB$5)","v":1},{"$f":"valuePL(AC7,'Utility Functions'!$BC$3:$BC$5,'Utility Functions'!$BD$3:$BD$5)","v":0.25},5.9008471271383875,null,5.9008471271383875,1.8708471271383869,0.08,0,1.7000000000000002,2.25]
[7,{"$f":"valueE(B8,'Utility Functions'!$B$3,'Utility Functions'!$B$4,'Utility Functions'!$B$5,'Utility Functions'!$B$6)","v":0.99997108261728973},{"$f":"valueE(C8,'Utility Functions'!$D$3,'Utility Functions'!$D$4,'Utility Functions'!$D$5,'Utility Functions'!$D$6)","v":0.84744836833951609},{"$f":"valuePL(D8,'Utility Functions'!$E$3:$E$5,'Utility Functions'!$F$3:$F$5)","v":0},{"$f":"valuePL(E8,'Utility Functions'!$G$3:$G$5,'Utility Functions'!$H$3:$H$5)","v":1},{"$f":"valuePL(F8,'Utility Functions'!$I$3:$I$4,'Utility Functions'!$J$3:$J$5)","v":0},{"$f":"valueE(G8,'Utility Functions'!$L$3,'Utility Functions'!$L$4,'Utility Functions'!$L$5,'Utility Functions'!$L$6)","v":0},{"$f":"valueE(H8,'Utility Functions'!$N$3,'Utility Functions'!$N$4,'Utility Functions'!$N$5,'Utility Functions'!$N$6)","v":0},{"$f":"valuePL(I8,'Utility Functions'!$O$3:$O$6,'Utility Functions'!$P$3:$P$6)","v":1},{"$f":"valuePL(J8,'Utility Functions'!$Q$3:$Q$6,'Utility Functions'!$R$3:$R$6)","v":0.67272727272727273},{"$f":"valuePL(K8,'Utility Functions'!$S$3:$S$7,'Utility Functions'!$T$3:$T$7)","v":1},{"$f":"valueE(L8,'Utility Functions'!$V$3,'Utility Functions'!$V$4,'Utility Functions'!$V$5,'Utility Functions'!$V$6)","v":1},{"$f":"valuePL(M8,'Utility Functions'!$W$3:$W$6,'Utility Functions'!$X$3:$X$6)","v":0.67272727272727273},{"$f":"valueE(N8,'Utility Functions'!$Z$3,'Utility Functions'!$Z$4,'Utility Functions'!$Z$5,'Utility Functions'!$Z$6)","v":1},{"$f":"valuePL(O8,'Utility Functions'!$AA$3:$AA$5,'Utility Functions'!$AB$3:$AB$5)","v":0.25},{"$f":"valuePL(P8,'Utility Functions'!$AC$3:$AC$7,'Utility Functions'!$AD$3:$AD$7)","v":0},{"$f":"valuePL(Q8,'Utility Functions'!$AE$3:$AE$6,'Utility Functions'!$AF$3:$AF$6)","v":0},{"$f":"valuePL(R8,'Utility Functions'!$AG$3:$AG$6,'Utility Functions'!$AH$3:$AH$6)","v":1},{"$f":"valuePL(S8,'Utility Functions'!$AI$3:$AI$6,'Utility Functions'!$AJ$3:$AJ$6)","v":1},{"$f":"valuePL(T8,'Utility Functions'!$AK$3:$AK$8,'Utility Functions'!$AL$3:$AL$8)","v":0},{"$f":"valuePL(U8,'Utility Functions'!$AM$3:$AM$5,'Utility Functions'!$AN$3:$AN$5)","v":0},{"$f":"valuePL(V8,'Utility Functions'!$AO$3:$AO$5,'Utility Functions'!$AP$3:$AP$5)","v":1},{"$f":"valuePL(W8,'Utility Functions'!$AQ$3:$AQ$6,'Utility Functions'!$AR$3:$AR$6)","v":0},{"$f":"valuePL(X8,'Utility Functions'!$AS$3:$AS$6,'Utility Functions'!$AT$3:$AT$6)","v":0.2},{"$f":"valuePL(Y8,'Utility Functions'!$AU$3:$AU$6,'Utility Functions'!$AV$3:$AV$6)","v":1},{"$f":"valuePL(Z8,'Utility Functions'!$AW$3:$AW$5,'Utility Functions'!$AX$3:$AX$5)","v":1},{"$f":"valuePL(AA8,'Utility Functions'!$AY$3:$AY$6,'Utility Functions'!$AZ$3:$AZ$6)","v":0.89999999999999991},{"$f":"valuePL(AB8,'Utility Functions'!$BA$3:$BA$5,'Utility Functions'!$BB$3:$BB$5)","v":0},{"$f":"valuePL(AC8,'Utility Functions'!$BC$3:$BC$5,'Utility Functions'!$BD$3:$BD$5)","v":1},15.54287399641135,null,15.54287399641135,2.8474194509568056,4.3454545454545457,1.25,2,5.0999999999999996]
[8,{"$f":"valueE(B9,'Utility Functions'!$B$3,'Utility Functions'!$B$4,'Utility Functions'!$B$5,'Utility Functions'!$B$6)","v":0.4511890475224023},{"$f":"valueE(C9,'Utility Functions'!$D$3,'Utility Functions'!$D$4,'Utility Functions'!$D$5,'Utility Functions'!$D$6)","v":0.84744836833951609},{"$f":"valuePL(D9,'Utility Functions'!$E$3:$E$5,'Utility Functions'!$F$3:$F$5)","v":1},{"$f":"valuePL(E9,'Utility Functions'!$G$3:$G$5,'Utility Functions'!$H$3:$H$5)","v":0.5},{"$f":"valuePL(F9,'Utility Functions'!$I$3:$I$4,'Utility Functions'!$J$3:$J$5)","v":1},{"$f":"valueE(G9,'Utility Functions'!$L$3,'Utility Functions'!$L$4,'Utility Functions'!$L$5,'Utility Functions'!$L$6)","v":0},{"$f":"valueE(H9,'Utility Functions'!$N$3,'Utility Functions'!$N$4,'Utility Functions'!$N$5,'Utility Functions'!$N$6)","v":0},{"$f":"valuePL(I9,'Utility Functions'!$O$3:$O$6,'Utility Functions'!$P$3:$P$6)","v":5.6000000000000008E-2},{"$f":"valuePL(J9,'Utility Functions'!$Q$3:$Q$6,'Utility Functions'!$R$3:$R$6)","v":0.83636363636363631},{"$f":"valuePL(K9,'Utility Functions'!$S$3:$S$7,'Utility Functions'!$T$3:$T$7)","v":0},{"$f":"valueE(L9,'Utility Functions'!$V$3,'Utility Functions'!$V$4,'Utility Functions'!$V$5,'Utility Functions'!$V$6)","v":1},{"$f":"valuePL(M9,'Utility Functions'!$W$3:$W$6,'Utility Functions'!$X$3:$X$6)","v":0.83636363636363631},{"$f":"valueE(N9,'Utility Functions'!$Z$3,'Utility Functions'!$Z$4,'Utility Functions'!$Z$5,'Utility Functions'!$Z$6)","v":0},{"$f":"valuePL(O9,'Utility Functions'!$AA$3:$AA$5,'Utility Functions'!$AB$3:$AB$5)","v":0},{"$f":"valuePL(P9,'Utility Functions'!$AC$3:$AC$7,'Utility Functions'!$AD$3:$AD$7)","v":0},{"$f":"valuePL(Q9,'Utility Functions'!$AE$3:$AE$6,'Utility Functions'!$AF$3:$AF$6)","v":1},{"$f":"valuePL(R9,'Utility Functions'!$AG$3:$AG$6,'Utility Functions'!$AH$3:$AH$6)","v":0.2},{"$f":"valuePL(S9,'Utility Functions'!$AI$3:$AI$6,'Utility Functions'!$AJ$3:$AJ$6)","v":1},{"$f":"valuePL(T9,'Utility Functions'!$AK$3:$AK$8,'Utility Functions'!$AL$3:$AL$8)","v":0},{"$f":"valuePL(U9,'Utility Functions'!$AM$3:$AM$5,'Utility Functions'!$AN$3:$AN$5)","v":0},{"$f":"valuePL(V9,'Utility Functions'!$AO$3:$AO$5,'Utility Functions'!$AP$3:$AP$5)","v":1},{"$f":"valuePL(W9,'Utility Functions'!$AQ$3:$AQ$6,'Utility Functions'!$AR$3:$AR$6)","v":1},{"$f":"valuePL(X9,'Utility Functions'!$AS$3:$AS$6,'Utility Functions'!$AT$3:$AT$6)","v":1},{"$f":"valuePL(Y9,'Utility Functions'!$AU$3:$AU$6,'Utility Functions'!$AV$3:$AV$6)","v":1},{"$f":"valuePL(Z9,'Utility Functions'!$AW$3:$AW$5,'Utility Functions'!$AX$3:$AX$5)","v":1},{"$f":"valuePL(AA9,'Utility Functions'!$AY$3:$AY$6,'Utility Functions'!$AZ$3:$AZ$6)","v":0},{"$f":"valuePL(AB9,'Utility Functions'!$BA$3:$BA$5,'Utility Functions'!$BB$3:$BB$5)","v":0.25},{"$f":"valuePL(AC9,'Utility Functions'!$BC$3:$BC$5,'Utility Functions'!$BD$3:$BD$5)","v":0.25},14.227364688589191,null,14.227364688589191,3.7986374158619185,2.7287272727272729,0,2.2000000000000002,5.5]
[9,{"$f":"valueE(B10,'Utility Functions'!$B$3,'Utility Functions'!$B$4,'Utility Functions'!$B$5,'Utility Functions'!$B$6)","v":0.83470237647280454},{"$f":"valueE(C10,'Utility Functions'!$D$3,'Utility Functions'!$D$4,'Utility Functions'!$D$5,'Utility Functions'!$D$6)","v":0.78989979019422951},{"$f":"valuePL(D10,'Utility Functions'!$E$3:$E$5,'Utility Functions'!$F$3:$F$5)","v":1},{"$f":"valuePL(E10,'Utility Functions'!$G$3:$G$5,'Utility Functions'!$H$3:$H$5)","v":0.5},{"$f":"valuePL(F10,'Utility Functions'!$I$3:$I$4,'Utility Functions'!$J$3:$J$5)","v":0},{"$f":"valueE(G10,'Utility Functions'!$L$3,'Utility Functions'!$L$4,'Utility Functions'!$L$5,'Utility Functions'!$L$6)","v":0.37634408602150538},{"$f":"valueE(H10,'Utility Functions'!$N$3,'Utility Functions'!$N$4,'Utility Functions'!$N$5,'Utility Functions'!$N$6)","v":0.13282732447817835},{"$f":"valuePL(I10,'Utility Functions'!$O$3:$O$6,'Utility Functions'!$P$3:$P$6)","v":0},{"$f":"valuePL(J10,'Utility Functions'!$Q$3:$Q$6,'Utility Functions'!$R$3:$R$6)","v":0},{"$f":"valuePL(K10,'Utility Functions'!$S$3:$S$7,'Utility Functions'!$T$3:$T$7)","v":0},{"$f":"valueE(L10,'Utility Functions'!$V$3,'Utility Functions'!$V$4,'Utility Functions'!$V$5,'Utility Functions'!$V$6)","v":0},{"$f":"valuePL(M10,'Utility Functions'!$W$3:$W$6,'Utility Functions'!$X$3:$X$6)","v":0},{"$f":"valueE(N10,'Utility Functions'!$Z$3,'Utility Functions'!$Z$4,'Utility Functions'!$Z$5,'Utility Functions'!$Z$6)","v":0},{"$f":"valuePL(O10,'Utility Functions'!$AA$3:$AA$5,'Utility Functions'!$AB$3:$AB$5)","v":0},{"$f":"valuePL(P10,'Utility Functions'!$AC$3:$AC$7,'Utility Functions'!$AD$3:$AD$7)","v":0.75},{"$f":"valuePL(Q10,'Utility Functions'!$AE$3:$AE$6,'Utility Functions'!$AF$3:$AF$6)","v":0},{"$f":"valuePL(R10,'Utility Functions'!$AG$3:$AG$6,'Utility Functions'!$AH$3:$AH$6)","v":1},{"$f":"valuePL(S10,'Utility Functions'!$AI$3:$AI$6,'Utility Functions'!$AJ$3:$AJ$6)","v":0.66},{"$f":"valuePL(T10,'Utility Functions'!$AK$3:$AK$8,'Utility Functions'!$AL$3:$AL$8)","v":0.2},{"$f":"valuePL(U10,'Utility Functions'!$AM$3:$AM$5,'Utility Functions'!$AN$3:$AN$5)","v":0},{"$f":"valuePL(V10,'Utility Functions'!$AO$3:$AO$5,'Utility Functions'!$AP$3:$AP$5)","v":1},{"$f":"valuePL(W10,'Utility Functions'!$AQ$3:$AQ$6,'Utility Functions'!$AR$3:$AR$6)","v":1},{"$f":"valuePL(X10,'Utility Functions'!$AS$3:$AS$6,'Utility Functions'!$AT$3:$AT$6)","v":1},{"$f":"valuePL(Y10,'Utility Functions'!$AU$3:$AU$6,'Utility Functions'!$AV$3:$AV$6)","v":0.2},{"$f":"valuePL(Z10,'Utility Functions'!$AW$3:$AW$5,'Utility Functions'!$AX$3:$AX$5)","v":1},{"$f":"valuePL(AA10,'Utility Functions'!$AY$3:$AY$6,'Utility Functions'!$AZ$3:$AZ$6)","v":0.2},{"$f":"valuePL(AB10,'Utility Functions'!$BA$3:$BA$5,'Utility Functions'!$BB$3:$BB$5)","v":0.25},{"$f":"valuePL(AC10,'Utility Functions'!$BC$3:$BC$5,'Utility Functions'!$BD$3:$BD$5)","v":1},11.893773577166716,null,11.893773577166719,3.1246021666670343,0.50917141049968373,0,2.6100000000000003,5.65]
[10,{"$f":"valueE(B11,'Utility Functions'!$B$3,'Utility Functions'!$B$4,'Utility Functions'!$B$5,'Utility Functions'!$B$6)","v":0},{"$f":"valueE(C11,'Utility Functions'!$D$3,'Utility Functions'!$D$4,'Utility Functions'!$D$5,'Utility Functions'!$D$6)","v":0},{"$f":"valuePL(D11,'Utility Functions'!$E$3:$E$5,'Utility Functions'!$F$3:$F$5)","v":0},{"$f":"valuePL(E11,'Utility Functions'!$G$3:$G$5,'Utility Functions'!$H$3:$H$5)","v":0},{"$f":"valuePL(F11,'Utility Functions'!$I$3:$I$4,'Utility Functions'!$J$3:$J$5)","v":0},{"$f":"valueE(G11,'Utility Functions'!$L$3,'Utility Functions'!$L$4,'Utility Functions'!$L$5,'Utility Functions'!$L$6)","v":0},{"$f":"valueE(H11,'Utility Functions'!$N$3,'Utility Functions'!$N$4,'Utility Functions'!$N$5,'Utility Functions'!$N$6)","v":0},{"$f":"valuePL(I11,'Utility Functions'!$O$3:$O$6,'Utility Functions'!$P$3:$P$6)","v":0},{"$f":"valuePL(J11,'Utility Functions'!$Q$3:$Q$6,'Utility Functions'!$R$3:$R$6)","v":0},{"$f":"valuePL(K11,'Utility Functions'!$S$3:$S$7,'Utility Functions'!$T$3:$T$7)","v":0},{"$f":"valueE(L11,'Utility Functions'!$V$3,'Utility Functions'!$V$4,'Utility Functions'!$V$5,'Utility Functions'!$V$6)","v":0},{"$f":"valuePL(M11,'Utility Functions'!$W$3:$W$6,'Utility Functions'!$X$3:$X$6)","v":0},{"$f":"valueE(N11,'Utility Functions'!$Z$3,'Utility Functions'!$Z$4,'Utility Functions'!$Z$5,'Utility Functions'!$Z$6)","v":0.75},{"$f":"valuePL(O11,'Utility Functions'!$AA$3:$AA$5,'Utility Functions'!$AB$3:$AB$5)","v":1},{"$f":"valuePL(P11,'Utility Functions'!$AC$3:$AC$7,'Utility Functions'!$AD$3:$AD$7)","v":0.25},{"$f":"valuePL(Q11,'Utility Functions'!$AE$3:$AE$6,'Utility Functions'!$AF$3:$AF$6)","v":0.5},{"$f":"valuePL(R11,'Utility Functions'!$AG$3:$AG$6,'Utility Functions'!$AH$3:$AH$6)","v":1},{"$f":"valuePL(S11,'Utility Functions'!$AI$3:$AI$6,'Utility Functions'!$AJ$3:$AJ$6)","v":0.66},{"$f":"valuePL(T11,'Utility Functions'!$AK$3:$AK$8,'Utility Functions'!$AL$3:$AL$8)","v":0.4},{"$f":"valuePL(U11,'Utility Functions'!$AM$3:$AM$5,'Utility Functions'!$AN$3:$AN$5)","v":0},{"$f":"valuePL(V11,'Utility Functions'!$AO$3:$AO$5,'Utility Functions'!$AP$3:$AP$5)","v":0},{"$f":"valuePL(W11,'Utility Functions'!$AQ$3:$AQ$6,'Utility Functions'!$AR$3:$AR$6)","v":0.75},{"$f":"valuePL(X11,'Utility Functions'!$AS$3:$AS$6,'Utility Functions'!$AT$3:$AT$6)","v":1},{"$f":"valuePL(Y11,'Utility Functions'!$AU$3:$AU$6,'Utility Functions'!$AV$3:$AV$6)","v":1},{"$f":"valuePL(Z11,'Utility Functions'!$AW$3:$AW$5,'Utility Functions'!$AX$3:$AX$5)","v":0.5},{"$f":"valuePL(AA11,'Utility Functions'!$AY$3:$AY$6,'Utility Functions'!$AZ$3:$AZ$6)","v":0.2},{"$f":"valuePL(AB11,'Utility Functions'!$BA$3:$BA$5,'Utility Functions'!$BB$3:$BB$5)","v":0},{"$f":"valuePL(AC11,'Utility Functions'!$BC$3:$BC$5,'Utility Functions'!$BD$3:$BD$5)","v":1},9.01,null,9.0100000000000016,0,0,1.75,2.81,4.45]
[11,{"$f":"valueE(B12,'Utility Functions'!$B$3,'Utility Functions'!$B$4,'Utility Functions'!$B$5,'Utility Functions'!$B$6)","v":0},{"$f":"valueE(C12,'Utility Functions'!$D$3,'Utility Functions'!$D$4,'Utility Functions'!$D$5,'Utility Functions'!$D$6)","v":0},{"$f":"valuePL(D12,'Utility Functions'!$E$3:$E$5,'Utility Functions'!$F$3:$F$5)","v":0},{"$f":"valuePL(E12,'Utility Functions'!$G$3:$G$5,'Utility Functions'!$H$3:$H$5)","v":0},{"$f":"valuePL(F12,'Utility Functions'!$I$3:$I$4,'Utility Functions'!$J$3:$J$5)","v":0},{"$f":"valueE(G12,'Utility Functions'!$L$3,'Utility Functions'!$L$4,'Utility Functions'!$L$5,'Utility Functions'!$L$6)","v":3.2258064516129031E-2},{"$f":"valueE(H12,'Utility Functions'!$N$3,'Utility Functions'!$N$4,'Utility Functions'!$N$5,'Utility Functions'!$N$6)","v":9.6774193548387094E-2},{"$f":"valuePL(I12,'Utility Functions'!$O$3:$O$6,'Utility Functions'!$P$3:$P$6)","v":0.54181818181818187},{"$f":"valuePL(J12,'Utility Functions'!$Q$3:$Q$6,'Utility Functions'!$R$3:$R$6)","v":0.91818181818181821},{"$f":"valuePL(K12,'Utility Functions'!$S$3:$S$7,'Utility Functions'!$T$3:$T$7)","v":0.54181818181818187},{"$f":"valueE(L12,'Utility Functions'!$V$3,'Utility Functions'!$V$4,'Utility Functions'!$V$5,'Utility Functions'!$V$6)","v":1},{"$f":"valuePL(M12,'Utility Functions'!$W$3:$W$6,'Utility Functions'!$X$3:$X$6)","v":0.91818181818181821},{"$f":"valueE(N12,'Utility Functions'!$Z$3,'Utility Functions'!$Z$4,'Utility Functions'!$Z$5,'Utility Functions'!$Z$6)","v":0.375},{"$f":"valuePL(O12,'Utility Functions'!$AA$3:$AA$5,'Utility Functions'!$AB$3:$AB$5)","v":0.25},{"$f":"valuePL(P12,'Utility Functions'!$AC$3:$AC$7,'Utility Functions'!$AD$3:$AD$7)","v":0.25},{"$f":"valuePL(Q12,'Utility Functions'!$AE$3:$AE$6,'Utility Functions'!$AF$3:$AF$6)","v":0},{"$f":"valuePL(R12,'Utility Functions'!$AG$3:$AG$6,'Utility Functions'!$AH$3:$AH$6)","v":1},{"$f":"valuePL(S12,'Utility Functions'!$AI$3:$AI$6,'Utility Functions'!$AJ$3:$AJ$6)","v":1},{"$f":"valuePL(T12,'Utility Functions'!$AK$3:$AK$8,'Utility Functions'!$AL$3:$AL$8)","v":0.4},{"$f":"valuePL(U12,'Utility Functions'!$AM$3:$AM$5,'Utility Functions'!$AN$3:$AN$5)","v":1},{"$f":"valuePL(V12,'Utility Functions'!$AO$3:$AO$5,'Utility Functions'!$AP$3:$AP$5)","v":1},{"$f":"valuePL(W12,'Utility Functions'!$AQ$3:$AQ$6,'Utility Functions'!$AR$3:$AR$6)","v":0.2},{"$f":"valuePL(X12,'Utility Functions'!$AS$3:$AS$6,'Utility Functions'!$AT$3:$AT$6)","v":1},{"$f":"valuePL(Y12,'Utility Functions'!$AU$3:$AU$6,'Utility Functions'!$AV$3:$AV$6)","v":1},{"$f":"valuePL(Z12,'Utility Functions'!$AW$3:$AW$5,'Utility Functions'!$AX$3:$AX$5)","v":0.5},{"$f":"valuePL(AA12,'Utility Functions'!$AY$3:$AY$6,'Utility Functions'!$AZ$3:$AZ$6)","v":0.89999999999999991},{"$f":"valuePL(AB12,'Utility Functions'!$BA$3:$BA$5,'Utility Functions'!$BB$3:$BB$5)","v":0},{"$f":"valuePL(AC12,'Utility Functions'!$BC$3:$BC$5,'Utility Functions'!$BD$3:$BD$5)","v":0.25},13.174032258064516,null,13.174032258064516,0,4.0490322580645159,0.625,3.65,4.8499999999999996]
[12,{"$f":"valueE(B13,'Utility Functions'!$B$3,'Utility Functions'!$B$4,'Utility Functions'!$B$5,'Utility Functions'!$B$6)","v":0.32968045347775865},{"$f":"valueE(C13,'Utility Functions'!$D$3,'Utility Functions'!$D$4,'Utility Functions'!$D$5,'Utility Functions'!$D$6)","v":0.78989979019422951},{"$f":"valuePL(D13,'Utility Functions'!$E$3:$E$5,'Utility Functions'!$F$3:$F$5)","v":1},{"$f":"valuePL(E13,'Utility Functions'!$G$3:$G$5,'Utility Functions'!$H$3:$H$5)","v":0.5},{"$f":"valuePL(F13,'Utility Functions'!$I$3:$I$4,'Utility Functions'!$J$3:$J$5)","v":0},{"$f":"valueE(G13,'Utility Functions'!$L$3,'Utility Functions'!$L$4,'Utility Functions'!$L$5,'Utility Functions'!$L$6)","v":0},{"$f":"valueE(H13,'Utility Functions'!$N$3,'Utility Functions'!$N$4,'Utility Functions'!$N$5,'Utility Functions'!$N$6)","v":0},{"$f":"valuePL(I13,'Utility Functions'!$O$3:$O$6,'Utility Functions'!$P$3:$P$6)","v":0},{"$f":"valuePL(J13,'Utility Functions'!$Q$3:$Q$6,'Utility Functions'!$R$3:$R$6)","v":0},{"$f":"valuePL(K13,'Utility Functions'!$S$3:$S$7,'Utility Functions'!$T$3:$T$7)","v":0},{"$f":"valueE(L13,'Utility Functions'!$V$3,'Utility Functions'!$V$4,'Utility Functions'!$V$5,'Utility Functions'!$V$6)","v":0},{"$f":"valuePL(M13,'Utility Functions'!$W$3:$W$6,'Utility Functions'!$X$3:$X$6)","v":0},{"$f":"valueE(N13,'Utility Functions'!$Z$3,'Utility Functions'!$Z$4,'Utility Functions'!$Z$5,'Utility Functions'!$Z$6)","v":0},{"$f":"valuePL(O13,'Utility Functions'!$AA$3:$AA$5,'Utility Functions'!$AB$3:$AB$5)","v":0},{"$f":"valuePL(P13,'Utility Functions'!$AC$3:$AC$7,'Utility Functions'!$AD$3:$AD$7)","v":0},{"$f":"valuePL(Q13,'Utility Functions'!$AE$3:$AE$6,'Utility Functions'!$AF$3:$AF$6)","v":0.1},{"$f":"valuePL(R13,'Utility Functions'!$AG$3:$AG$6,'Utility Functions'!$AH$3:$AH$6)","v":1},{"$f":"valuePL(S13,'Utility Functions'!$AI$3:$AI$6,'Utility Functions'!$AJ$3:$AJ$6)","v":1},{"$f":"valuePL(T13,'Utility Functions'!$AK$3:$AK$8,'Utility Functions'!$AL$3:$AL$8)","v":0.6},{"$f":"valuePL(U13,'Utility Functions'!$AM$3:$AM$5,'Utility Functions'!$AN$3:$AN$5)","v":0},{"$f":"valuePL(V13,'Utility Functions'!$AO$3:$AO$5,'Utility Functions'!$AP$3:$AP$5)","v":0.5},{"$f":"valuePL(W13,'Utility Functions'!$AQ$3:$AQ$6,'Utility Functions'!$AR$3:$AR$6)","v":0.2},{"$f":"valuePL(X13,'Utility Functions'!$AS$3:$AS$6,'Utility Functions'!$AT$3:$AT$6)","v":1},{"$f":"valuePL(Y13,'Utility Functions'!$AU$3:$AU$6,'Utility Functions'!$AV$3:$AV$6)","v":0.2},{"$f":"valuePL(Z13,'Utility Functions'!$AW$3:$AW$5,'Utility Functions'!$AX$3:$AX$5)","v":1},{"$f":"valuePL(AA13,'Utility Functions'!$AY$3:$AY$6,'Utility Functions'!$AZ$3:$AZ$6)","v":0.2},{"$f":"valuePL(AB13,'Utility Functions'!$BA$3:$BA$5,'Utility Functions'!$BB$3:$BB$5)","v":1},{"$f":"valuePL(AC13,'Utility Functions'!$BC$3:$BC$5,'Utility Functions'!$BD$3:$BD$5)","v":0},9.4195802436719873,null,9.4195802436719873,2.6195802436719884,0,0,2.7,4.0999999999999996]
[13,{"$f":"valueE(B14,'Utility Functions'!$B$3,'Utility Functions'!$B$4,'Utility Functions'!$B$5,'Utility Functions'!$B$6)","v":0},{"$f":"valueE(C14,'Utility Functions'!$D$3,'Utility Functions'!$D$4,'Utility Functions'!$D$5,'Utility Functions'!$D$6)","v":0},{"$f":"valuePL(D14,'Utility Functions'!$E$3:$E$5,'Utility Functions'!$F$3:$F$5)","v":0},{"$f":"valuePL(E14,'Utility Functions'!$G$3:$G$5,'Utility Functions'!$H$3:$H$5)","v":0},{"$f":"valuePL(F14,'Utility Functions'!$I$3:$I$4,'Utility Functions'!$J$3:$J$5)","v":0},{"$f":"valueE(G14,'Utility Functions'!$L$3,'Utility Functions'!$L$4,'Utility Functions'!$L$5,'Utility Functions'!$L$6)","v":0},{"$f":"valueE(H14,'Utility Functions'!$N$3,'Utility Functions'!$N$4,'Utility Functions'!$N$5,'Utility Functions'!$N$6)","v":1.1385199240986717E-2},{"$f":"valuePL(I14,'Utility Functions'!$O$3:$O$6,'Utility Functions'!$P$3:$P$6)","v":0.3290909090909091},{"$f":"valuePL(J14,'Utility Functions'!$Q$3:$Q$6,'Utility Functions'!$R$3:$R$6)","v":0.04},{"$f":"valuePL(K14,'Utility Functions'!$S$3:$S$7,'Utility Functions'!$T$3:$T$7)","v":0.3290909090909091},{"$f":"valueE(L14,'Utility Functions'!$V$3,'Utility Functions'!$V$4,'Utility Functions'!$V$5,'Utility Functions'!$V$6)","v":1},{"$f":"valuePL(M14,'Utility Functions'!$W$3:$W$6,'Utility Functions'!$X$3:$X$6)","v":0.04},{"$f":"valueE(N14,'Utility Functions'!$Z$3,'Utility Functions'!$Z$4,'Utility Functions'!$Z$5,'Utility Functions'!$Z$6)","v":0.875},{"$f":"valuePL(O14,'Utility Functions'!$AA$3:$AA$5,'Utility Functions'!$AB$3:$AB$5)","v":0.25},{"$f":"valuePL(P14,'Utility Functions'!$AC$3:$AC$7,'Utility Functions'!$AD$3:$AD$7)","v":0.25},{"$f":"valuePL(Q14,'Utility Functions'!$AE$3:$AE$6,'Utility Functions'!$AF$3:$AF$6)","v":0},{"$f":"valuePL(R14,'Utility Functions'!$AG$3:$AG$6,'Utility Functions'!$AH$3:$AH$6)","v":1},{"$f":"valuePL(S14,'Utility Functions'!$AI$3:$AI$6,'Utility Functions'!$AJ$3:$AJ$6)","v":1},{"$f":"valuePL(T14,'Utility Functions'!$AK$3:$AK$8,'Utility Functions'!$AL$3:$AL$8)","v":0},{"$f":"valuePL(U14,'Utility Functions'!$AM$3:$AM$5,'Utility Functions'!$AN$3:$AN$5)","v":0},{"$f":"valuePL(V14,'Utility Functions'!$AO$3:$AO$5,'Utility Functions'!$AP$3:$AP$5)","v":0.5},{"$f":"valuePL(W14,'Utility Functions'!$AQ$3:$AQ$6,'Utility Functions'!$AR$3:$AR$6)","v":0},{"$f":"valuePL(X14,'Utility Functions'!$AS$3:$AS$6,'Utility Functions'!$AT$3:$AT$6)","v":0.2},{"$f":"valuePL(Y14,'Utility Functions'!$AU$3:$AU$6,'Utility Functions'!$AV$3:$AV$6)","v":0},{"$f":"valuePL(Z14,'Utility Functions'!$AW$3:$AW$5,'Utility Functions'!$AX$3:$AX$5)","v":1},{"$f":"valuePL(AA14,'Utility Functions'!$AY$3:$AY$6,'Utility Functions'!$AZ$3:$AZ$6)","v":0.2},{"$f":"valuePL(AB14,'Utility Functions'!$BA$3:$BA$5,'Utility Functions'!$BB$3:$BB$5)","v":0.25},{"$f":"valuePL(AC14,'Utility Functions'!$BC$3:$BC$5,'Utility Functions'!$BD$3:$BD$5)","v":0.25},7.5245670174228056,null,7.5245670174228056,0,1.7495670174228048,1.125,2.25,2.4]
[14,{"$f":"valueE(B15,'Utility Functions'!$B$3,'Utility Functions'!$B$4,'Utility Functions'!$B$5,'Utility Functions'!$B$6)","v":0.69880684688087746},{"$f":"valueE(C15,'Utility Functions'!$D$3,'Utility Functions'!$D$4,'Utility Functions'!$D$5,'Utility Functions'!$D$6)","v":0.78989979019422951},{"$f":"valuePL(D15,'Utility Functions'!$E$3:$E$5,'Utility Functions'!$F$3:$F$5)","v":0.5},{"$f":"valuePL(E15,'Utility Functions'!$G$3:$G$5,'Utility Functions'!$H$3:$H$5)","v":0.5},{"$f":"valuePL(F15,'Utility Functions'!$I$3:$I$4,'Utility Functions'!$J$3:$J$5)","v":0},{"$f":"valueE(G15,'Utility Functions'!$L$3,'Utility Functions'!$L$4,'Utility Functions'!$L$5,'Utility Functions'!$L$6)","v":0},{"$f":"valueE(H15,'Utility Functions'!$N$3,'Utility Functions'!$N$4,'Utility Functions'!$N$5,'Utility Functions'!$N$6)","v":0},{"$f":"valuePL(I15,'Utility Functions'!$O$3:$O$6,'Utility Functions'!$P$3:$P$6)","v":0},{"$f":"valuePL(J15,'Utility Functions'!$Q$3:$Q$6,'Utility Functions'!$R$3:$R$6)","v":0},{"$f":"valuePL(K15,'Utility Functions'!$S$3:$S$7,'Utility Functions'!$T$3:$T$7)","v":0},{"$f":"valueE(L15,'Utility Functions'!$V$3,'Utility Functions'!$V$4,'Utility Functions'!$V$5,'Utility Functions'!$V$6)","v":0},{"$f":"valuePL(M15,'Utility Functions'!$W$3:$W$6,'Utility Functions'!$X$3:$X$6)","v":0},{"$f":"valueE(N15,'Utility Functions'!$Z$3,'Utility Functions'!$Z$4,'Utility Functions'!$Z$5,'Utility Functions'!$Z$6)","v":0.75},{"$f":"valuePL(O15,'Utility Functions'!$AA$3:$AA$5,'Utility Functions'!$AB$3:$AB$5)","v":0.25},{"$f":"valuePL(P15,'Utility Functions'!$AC$3:$AC$7,'Utility Functions'!$AD$3:$AD$7)","v":0.25},{"$f":"valuePL(Q15,'Utility Functions'!$AE$3:$AE$6,'Utility Functions'!$AF$3:$AF$6)","v":0},{"$f":"valuePL(R15,'Utility Functions'!$AG$3:$AG$6,'Utility Functions'!$AH$3:$AH$6)","v":1},{"$f":"valuePL(S15,'Utility Functions'!$AI$3:$AI$6,'Utility Functions'!$AJ$3:$AJ$6)","v":1},{"$f":"valuePL(T15,'Utility Functions'!$AK$3:$AK$8,'Utility Functions'!$AL$3:$AL$8)","v":0},{"$f":"valuePL(U15,'Utility Functions'!$AM$3:$AM$5,'Utility Functions'!$AN$3:$AN$5)","v":0},{"$f":"valuePL(V15,'Utility Functions'!$AO$3:$AO$5,'Utility Functions'!$AP$3:$AP$5)","v":0.5},{"$f":"valuePL(W15,'Utility Functions'!$AQ$3:$AQ$6,'Utility Functions'!$AR$3:$AR$6)","v":0.2},{"$f":"valuePL(X15,'Utility Functions'!$AS$3:$AS$6,'Utility Functions'!$AT$3:$AT$6)","v":1},{"$f":"valuePL(Y15,'Utility Functions'!$AU$3:$AU$6,'Utility Functions'!$AV$3:$AV$6)","v":1},{"$f":"valuePL(Z15,'Utility Functions'!$AW$3:$AW$5,'Utility Functions'!$AX$3:$AX$5)","v":0.5},{"$f":"valuePL(AA15,'Utility Functions'!$AY$3:$AY$6,'Utility Functions'!$AZ$3:$AZ$6)","v":0.89999999999999991},{"$f":"valuePL(AB15,'Utility Functions'!$BA$3:$BA$5,'Utility Functions'!$BB$3:$BB$5)","v":0.25},{"$f":"valuePL(AC15,'Utility Functions'!$BC$3:$BC$5,'Utility Functions'!$BD$3:$BD$5)","v":0.25},10.338706637075108,null,10.338706637075106,2.488706637075107,0,1,2.25,4.5999999999999996]
[15,{"$f":"valueE(B16,'Utility Functions'!$B$3,'Utility Functions'!$B$4,'Utility Functions'!$B$5,'Utility Functions'!$B$6)","v":0.98994966417177144},{"$f":"valueE(C16,'Utility Functions'!$D$3,'Utility Functions'!$D$4,'Utility Functions'!$D$5,'Utility Functions'!$D$6)","v":0.71352759724260828},{"$f":"valuePL(D16,'Utility Functions'!$E$3:$E$5,'Utility Functions'!$F$3:$F$5)","v":1},{"$f":"valuePL(E16,'Utility Functions'!$G$3:$G$5,'Utility Functions'!$H$3:$H$5)","v":0.5},{"$f":"valuePL(F16,'Utility Functions'!$I$3:$I$4,'Utility Functions'!$J$3:$J$5)","v":1},{"$f":"valueE(G16,'Utility Functions'!$L$3,'Utility Functions'!$L$4,'Utility Functions'!$L$5,'Utility Functions'!$L$6)","v":0},{"$f":"valueE(H16,'Utility Functions'!$N$3,'Utility Functions'!$N$4,'Utility Functions'!$N$5,'Utility Functions'!$N$6)","v":0},{"$f":"valuePL(I16,'Utility Functions'!$O$3:$O$6,'Utility Functions'!$P$3:$P$6)","v":9.2000000000000012E-2},{"$f":"valuePL(J16,'Utility Functions'!$Q$3:$Q$6,'Utility Functions'!$R$3:$R$6)","v":6.0000000000000012E-2},{"$f":"valuePL(K16,'Utility Functions'!$S$3:$S$7,'Utility Functions'!$T$3:$T$7)","v":6.0000000000000012E-2},{"$f":"valueE(L16,'Utility Functions'!$V$3,'Utility Functions'!$V$4,'Utility Functions'!$V$5,'Utility Functions'!$V$6)","v":1},{"$f":"valuePL(M16,'Utility Functions'!$W$3:$W$6,'Utility Functions'!$X$3:$X$6)","v":6.0000000000000012E-2},{"$f":"valueE(N16,'Utility Functions'!$Z$3,'Utility Functions'!$Z$4,'Utility Functions'!$Z$5,'Utility Functions'!$Z$6)","v":0.125},{"$f":"valuePL(O16,'Utility Functions'!$AA$3:$AA$5,'Utility Functions'!$AB$3:$AB$5)","v":1},{"$f":"valuePL(P16,'Utility Functions'!$AC$3:$AC$7,'Utility Functions'!$AD$3:$AD$7)","v":0.5},{"$f":"valuePL(Q16,'Utility Functions'!$AE$3:$AE$6,'Utility Functions'!$AF$3:$AF$6)","v":0},{"$f":"valuePL(R16,'Utility Functions'!$AG$3:$AG$6,'Utility Functions'!$AH$3:$AH$6)","v":0.8},{"$f":"valuePL(S16,'Utility Functions'!$AI$3:$AI$6,'Utility Functions'!$AJ$3:$AJ$6)","v":1},{"$f":"valuePL(T16,'Utility Functions'!$AK$3:$AK$8,'Utility Functions'!$AL$3:$AL$8)","v":0.6},{"$f":"valuePL(U16,'Utility Functions'!$AM$3:$AM$5,'Utility Functions'!$AN$3:$AN$5)","v":1},{"$f":"valuePL(V16,'Utility Functions'!$AO$3:$AO$5,'Utility Functions'!$AP$3:$AP$5)","v":0},{"$f":"valuePL(W16,'Utility Functions'!$AQ$3:$AQ$6,'Utility Functions'!$AR$3:$AR$6)","v":1},{"$f":"valuePL(X16,'Utility Functions'!$AS$3:$AS$6,'Utility Functions'!$AT$3:$AT$6)","v":0.2},{"$f":"valuePL(Y16,'Utility Functions'!$AU$3:$AU$6,'Utility Functions'!$AV$3:$AV$6)","v":0.2},{"$f":"valuePL(Z16,'Utility Functions'!$AW$3:$AW$5,'Utility Functions'!$AX$3:$AX$5)","v":1},{"$f":"valuePL(AA16,'Utility Functions'!$AY$3:$AY$6,'Utility Functions'!$AZ$3:$AZ$6)","v":1},{"$f":"valuePL(AB16,'Utility Functions'!$BA$3:$BA$5,'Utility Functions'!$BB$3:$BB$5)","v":1},{"$f":"valuePL(AC16,'Utility Functions'!$BC$3:$BC$5,'Utility Functions'!$BD$3:$BD$5)","v":0.25},15.150477261414375,null,15.15047726141438,4.2034772614143794,1.272,1.125,3.9,4.6500000000000004]
[16,{"$f":"valueE(B17,'Utility Functions'!$B$3,'Utility Functions'!$B$4,'Utility Functions'!$B$5,'Utility Functions'!$B$6)","v":0},{"$f":"valueE(C17,'Utility Functions'!$D$3,'Utility Functions'!$D$4,'Utility Functions'!$D$5,'Utility Functions'!$D$6)","v":0},{"$f":"valuePL(D17,'Utility Functions'!$E$3:$E$5,'Utility Functions'!$F$3:$F$5)","v":0},{"$f":"valuePL(E17,'Utility Functions'!$G$3:$G$5,'Utility Functions'!$H$3:$H$5)","v":0},{"$f":"valuePL(F17,'Utility Functions'!$I$3:$I$4,'Utility Functions'!$J$3:$J$5)","v":0},{"$f":"valueE(G17,'Utility Functions'!$L$3,'Utility Functions'!$L$4,'Utility Functions'!$L$5,'Utility Functions'!$L$6)","v":0},{"$f":"valueE(H17,'Utility Functions'!$N$3,'Utility Functions'!$N$4,'Utility Functions'!$N$5,'Utility Functions'!$N$6)","v":0},{"$f":"valuePL(I17,'Utility Functions'!$O$3:$O$6,'Utility Functions'!$P$3:$P$6)","v":1},{"$f":"valuePL(J17,'Utility Functions'!$Q$3:$Q$6,'Utility Functions'!$R$3:$R$6)","v":0.91818181818181821},{"$f":"valuePL(K17,'Utility Functions'!$S$3:$S$7,'Utility Functions'!$T$3:$T$7)","v":1},{"$f":"valueE(L17,'Utility Functions'!$V$3,'Utility Functions'!$V$4,'Utility Functions'!$V$5,'Utility Functions'!$V$6)","v":0.83333333333333337},{"$f":"valuePL(M17,'Utility Functions'!$W$3:$W$6,'Utility Functions'!$X$3:$X$6)","v":0.91818181818181821},{"$f":"valueE(N17,'Utility Functions'!$Z$3,'Utility Functions'!$Z$4,'Utility Functions'!$Z$5,'Utility Functions'!$Z$6)","v":0},{"$f":"valuePL(O17,'Utility Functions'!$AA$3:$AA$5,'Utility Functions'!$AB$3:$AB$5)","v":0},{"$f":"valuePL(P17,'Utility Functions'!$AC$3:$AC$7,'Utility Functions'!$AD$3:$AD$7)","v":0.75},{"$f":"valuePL(Q17,'Utility Functions'!$AE$3:$AE$6,'Utility Functions'!$AF$3:$AF$6)","v":0},{"$f":"valuePL(R17,'Utility Functions'!$AG$3:$AG$6,'Utility Functions'!$AH$3:$AH$6)","v":1},{"$f":"valuePL(S17,'Utility Functions'!$AI$3:$AI$6,'Utility Functions'!$AJ$3:$AJ$6)","v":1},{"$f":"valuePL(T17,'Utility Functions'!$AK$3:$AK$8,'Utility Functions'!$AL$3:$AL$8)","v":1},{"$f":"valuePL(U17,'Utility Functions'!$AM$3:$AM$5,'Utility Functions'!$AN$3:$AN$5)","v":0},{"$f":"valuePL(V17,'Utility Functions'!$AO$3:$AO$5,'Utility Functions'!$AP$3:$AP$5)","v":1},{"$f":"valuePL(W17,'Utility Functions'!$AQ$3:$AQ$6,'Utility Functions'!$AR$3:$AR$6)","v":0.75},{"$f":"valuePL(X17,'Utility Functions'!$AS$3:$AS$6,'Utility Functions'!$AT$3:$AT$6)","v":0.75},{"$f":"valuePL(Y17,'Utility Functions'!$AU$3:$AU$6,'Utility Functions'!$AV$3:$AV$6)","v":0.2},{"$f":"valuePL(Z17,'Utility Functions'!$AW$3:$AW$5,'Utility Functions'!$AX$3:$AX$5)","v":1},{"$f":"valuePL(AA17,'Utility Functions'!$AY$3:$AY$6,'Utility Functions'!$AZ$3:$AZ$6)","v":1},{"$f":"valuePL(AB17,'Utility Functions'!$BA$3:$BA$5,'Utility Functions'!$BB$3:$BB$5)","v":1},{"$f":"valuePL(AC17,'Utility Functions'!$BC$3:$BC$5,'Utility Functions'!$BD$3:$BD$5)","v":1},15.119696969696969,null,15.119696969696971,0,4.6696969696969699,0,3.75,6.7]
[17,{"$f":"valueE(B18,'Utility Functions'!$B$3,'Utility Functions'!$B$4,'Utility Functions'!$B$5,'Utility Functions'!$B$6)","v":0.32968045347775865},{"$f":"valueE(C18,'Utility Functions'!$D$3,'Utility Functions'!$D$4,'Utility Functions'!$D$5,'Utility Functions'!$D$6)","v":0.78989979019422951},{"$f":"valuePL(D18,'Utility Functions'!$E$3:$E$5,'Utility Functions'!$F$3:$F$5)","v":1},{"$f":"valuePL(E18,'Utility Functions'!$G$3:$G$5,'Utility Functions'!$H$3:$H$5)","v":0.5},{"$f":"valuePL(F18,'Utility Functions'!$I$3:$I$4,'Utility Functions'!$J$3:$J$5)","v":1},{"$f":"valueE(G18,'Utility Functions'!$L$3,'Utility Functions'!$L$4,'Utility Functions'!$L$5,'Utility Functions'!$L$6)","v":0.31182795698924731},{"$f":"valueE(H18,'Utility Functions'!$N$3,'Utility Functions'!$N$4,'Utility Functions'!$N$5,'Utility Functions'!$N$6)","v":0.27514231499051234},{"$f":"valuePL(I18,'Utility Functions'!$O$3:$O$6,'Utility Functions'!$P$3:$P$6)","v":0},{"$f":"valuePL(J18,'Utility Functions'!$Q$3:$Q$6,'Utility Functions'!$R$3:$R$6)","v":0},{"$f":"valuePL(K18,'Utility Functions'!$S$3:$S$7,'Utility Functions'!$T$3:$T$7)","v":0},{"$f":"valueE(L18,'Utility Functions'!$V$3,'Utility Functions'!$V$4,'Utility Functions'!$V$5,'Utility Functions'!$V$6)","v":1},{"$f":"valuePL(M18,'Utility Functions'!$W$3:$W$6,'Utility Functions'!$X$3:$X$6)","v":6.0000000000000012E-2},{"$f":"valueE(N18,'Utility Functions'!$Z$3,'Utility Functions'!$Z$4,'Utility Functions'!$Z$5,'Utility Functions'!$Z$6)","v":0},{"$f":"valuePL(O18,'Utility Functions'!$AA$3:$AA$5,'Utility Functions'!$AB$3:$AB$5)","v":0},{"$f":"valuePL(P18,'Utility Functions'!$AC$3:$AC$7,'Utility Functions'!$AD$3:$AD$7)","v":0},{"$f":"valuePL(Q18,'Utility Functions'!$AE$3:$AE$6,'Utility Functions'!$AF$3:$AF$6)","v":0},{"$f":"valuePL(R18,'Utility Functions'!$AG$3:$AG$6,'Utility Functions'!$AH$3:$AH$6)","v":1},{"$f":"valuePL(S18,'Utility Functions'!$AI$3:$AI$6,'Utility Functions'!$AJ$3:$AJ$6)","v":0.66},{"$f":"valuePL(T18,'Utility Functions'!$AK$3:$AK$8,'Utility Functions'!$AL$3:$AL$8)","v":0},{"$f":"valuePL(U18,'Utility Functions'!$AM$3:$AM$5,'Utility Functions'!$AN$3:$AN$5)","v":0},{"$f":"valuePL(V18,'Utility Functions'!$AO$3:$AO$5,'Utility Functions'!$AP$3:$AP$5)","v":1},{"$f":"valuePL(W18,'Utility Functions'!$AQ$3:$AQ$6,'Utility Functions'!$AR$3:$AR$6)","v":1},{"$f":"valuePL(X18,'Utility Functions'!$AS$3:$AS$6,'Utility Functions'!$AT$3:$AT$6)","v":0.2},{"$f":"valuePL(Y18,'Utility Functions'!$AU$3:$AU$6,'Utility Functions'!$AV$3:$AV$6)","v":0},{"$f":"valuePL(Z18,'Utility Functions'!$AW$3:$AW$5,'Utility Functions'!$AX$3:$AX$5)","v":0.5},{"$f":"valuePL(AA18,'Utility Functions'!$AY$3:$AY$6,'Utility Functions'!$AZ$3:$AZ$6)","v":0},{"$f":"valuePL(AB18,'Utility Functions'!$BA$3:$BA$5,'Utility Functions'!$BB$3:$BB$5)","v":1},{"$f":"valuePL(AC18,'Utility Functions'!$BC$3:$BC$5,'Utility Functions'!$BD$3:$BD$5)","v":0.25},10.876550515651747,null,10.876550515651747,3.6195802436719884,1.6469702719797596,0,1.6600000000000001,3.95]
[18,{"$f":"valueE(B19,'Utility Functions'!$B$3,'Utility Functions'!$B$4,'Utility Functions'!$B$5,'Utility Functions'!$B$6)","v":0},{"$f":"valueE(C19,'Utility Functions'!$D$3,'Utility Functions'!$D$4,'Utility Functions'!$D$5,'Utility Functions'!$D$6)","v":0},{"$f":"valuePL(D19,'Utility Functions'!$E$3:$E$5,'Utility Functions'!$F$3:$F$5)","v":0},{"$f":"valuePL(E19,'Utility Functions'!$G$3:$G$5,'Utility Functions'!$H$3:$H$5)","v":0},{"$f":"valuePL(F19,'Utility Functions'!$I$3:$I$4,'Utility Functions'!$J$3:$J$5)","v":0},{"$f":"valueE(G19,'Utility Functions'!$L$3,'Utility Functions'!$L$4,'Utility Functions'!$L$5,'Utility Functions'!$L$6)","v":0},{"$f":"valueE(H19,'Utility Functions'!$N$3,'Utility Functions'!$N$4,'Utility Functions'!$N$5,'Utility Functions'!$N$6)","v":2.8462998102466792E-2},{"$f":"valuePL(I19,'Utility Functions'!$O$3:$O$6,'Utility Functions'!$P$3:$P$6)","v":0},{"$f":"valuePL(J19,'Utility Functions'!$Q$3:$Q$6,'Utility Functions'!$R$3:$R$6)","v":0},{"$f":"valuePL(K19,'Utility Functions'!$S$3:$S$7,'Utility Functions'!$T$3:$T$7)","v":0},{"$f":"valueE(L19,'Utility Functions'!$V$3,'Utility Functions'!$V$4,'Utility Functions'!$V$5,'Utility Functions'!$V$6)","v":0},{"$f":"valuePL(M19,'Utility Functions'!$W$3:$W$6,'Utility Functions'!$X$3:$X$6)","v":0},{"$f":"valueE(N19,'Utility Functions'!$Z$3,'Utility Functions'!$Z$4,'Utility Functions'!$Z$5,'Utility Functions'!$Z$6)","v":1},{"$f":"valuePL(O19,'Utility Functions'!$AA$3:$AA$5,'Utility Functions'!$AB$3:$AB$5)","v":0.25},{"$f":"valuePL(P19,'Utility Functions'!$AC$3:$AC$7,'Utility Functions'!$AD$3:$AD$7)","v":0.25},{"$f":"valuePL(Q19,'Utility Functions'!$AE$3:$AE$6,'Utility Functions'!$AF$3:$AF$6)","v":1},{"$f":"valuePL(R19,'Utility Functions'!$AG$3:$AG$6,'Utility Functions'!$AH$3:$AH$6)","v":1},{"$f":"valuePL(S19,'Utility Functions'!$AI$3:$AI$6,'Utility Functions'!$AJ$3:$AJ$6)","v":1},{"$f":"valuePL(T19,'Utility Functions'!$AK$3:$AK$8,'Utility Functions'!$AL$3:$AL$8)","v":1},{"$f":"valuePL(U19,'Utility Functions'!$AM$3:$AM$5,'Utility Functions'!$AN$3:$AN$5)","v":0.25},{"$f":"valuePL(V19,'Utility Functions'!$AO$3:$AO$5,'Utility Functions'!$AP$3:$AP$5)","v":1},{"$f":"valuePL(W19,'Utility Functions'!$AQ$3:$AQ$6,'Utility Functions'!$AR$3:$AR$6)","v":0.75},{"$f":"valuePL(X19,'Utility Functions'!$AS$3:$AS$6,'Utility Functions'!$AT$3:$AT$6)","v":0.2},{"$f":"valuePL(Y19,'Utility Functions'!$AU$3:$AU$6,'Utility Functions'!$AV$3:$AV$6)","v":0.8},{"$f":"valuePL(Z19,'Utility Functions'!$AW$3:$AW$5,'Utility Functions'!$AX$3:$AX$5)","v":0.5},{"$f":"valuePL(AA19,'Utility Functions'!$AY$3:$AY$6,'Utility Functions'!$AZ$3:$AZ$6)","v":0.89999999999999991},{"$f":"valuePL(AB19,'Utility Functions'!$BA$3:$BA$5,'Utility Functions'!$BB$3:$BB$5)","v":0.25},{"$f":"valuePL(AC19,'Utility Functions'!$BC$3:$BC$5,'Utility Functions'!$BD$3:$BD$5)","v":0},10.178462998102468,null,10.178462998102468,0,2.8462998102466792E-2,1.25,4.5,4.4000000000000004]
[19,{"$f":"valueE(B20,'Utility Functions'!$B$3,'Utility Functions'!$B$4,'Utility Functions'!$B$5,'Utility Functions'!$B$6)","v":0.79810469124896843},{"$f":"valueE(C20,'Utility Functions'!$D$3,'Utility Functions'!$D$4,'Utility Functions'!$D$5,'Utility Functions'!$D$6)","v":0.26839655623815994},{"$f":"valuePL(D20,'Utility Functions'!$E$3:$E$5,'Utility Functions'!$F$3:$F$5)","v":0.5},{"$f":"valuePL(E20,'Utility Functions'!$G$3:$G$5,'Utility Functions'!$H$3:$H$5)","v":1},{"$f":"valuePL(F20,'Utility Functions'!$I$3:$I$4,'Utility Functions'!$J$3:$J$5)","v":0},{"$f":"valueE(G20,'Utility Functions'!$L$3,'Utility Functions'!$L$4,'Utility Functions'!$L$5,'Utility Functions'!$L$6)","v":0},{"$f":"valueE(H20,'Utility Functions'!$N$3,'Utility Functions'!$N$4,'Utility Functions'!$N$5,'Utility Functions'!$N$6)","v":0},{"$f":"valuePL(I20,'Utility Functions'!$O$3:$O$6,'Utility Functions'!$P$3:$P$6)","v":0},{"$f":"valuePL(J20,'Utility Functions'!$Q$3:$Q$6,'Utility Functions'!$R$3:$R$6)","v":0},{"$f":"valuePL(K20,'Utility Functions'!$S$3:$S$7,'Utility Functions'!$T$3:$T$7)","v":0},{"$f":"valueE(L20,'Utility Functions'!$V$3,'Utility Functions'!$V$4,'Utility Functions'!$V$5,'Utility Functions'!$V$6)","v":0},{"$f":"valuePL(M20,'Utility Functions'!$W$3:$W$6,'Utility Functions'!$X$3:$X$6)","v":0},{"$f":"valueE(N20,'Utility Functions'!$Z$3,'Utility Functions'!$Z$4,'Utility Functions'!$Z$5,'Utility Functions'!$Z$6)","v":1},{"$f":"valuePL(O20,'Utility Functions'!$AA$3:$AA$5,'Utility Functions'!$AB$3:$AB$5)","v":1},{"$f":"valuePL(P20,'Utility Functions'!$AC$3:$AC$7,'Utility Functions'!$AD$3:$AD$7)","v":0},{"$f":"valuePL(Q20,'Utility Functions'!$AE$3:$AE$6,'Utility Functions'!$AF$3:$AF$6)","v":0},{"$f":"valuePL(R20,'Utility Functions'!$AG$3:$AG$6,'Utility Functions'!$AH$3:$AH$6)","v":0.8},{"$f":"valuePL(S20,'Utility Functions'!$AI$3:$AI$6,'Utility Functions'!$AJ$3:$AJ$6)","v":1},{"$f":"valuePL(T20,'Utility Functions'!$AK$3:$AK$8,'Utility Functions'!$AL$3:$AL$8)","v":0},{"$f":"valuePL(U20,'Utility Functions'!$AM$3:$AM$5,'Utility Functions'!$AN$3:$AN$5)","v":0},{"$f":"valuePL(V20,'Utility Functions'!$AO$3:$AO$5,'Utility Functions'!$AP$3:$AP$5)","v":0.5},{"$f":"valuePL(W20,'Utility Functions'!$AQ$3:$AQ$6,'Utility Functions'!$AR$3:$AR$6)","v":0.2},{"$f":"valuePL(X20,'Utility Functions'!$AS$3:$AS$6,'Utility Functions'!$AT$3:$AT$6)","v":1},{"$f":"valuePL(Y20,'Utility Functions'!$AU$3:$AU$6,'Utility Functions'!$AV$3:$AV$6)","v":0.8},{"$f":"valuePL(Z20,'Utility Functions'!$AW$3:$AW$5,'Utility Functions'!$AX$3:$AX$5)","v":0},{"$f":"valuePL(AA20,'Utility Functions'!$AY$3:$AY$6,'Utility Functions'!$AZ$3:$AZ$6)","v":0.2},{"$f":"valuePL(AB20,'Utility Functions'!$BA$3:$BA$5,'Utility Functions'!$BB$3:$BB$5)","v":0},{"$f":"valuePL(AC20,'Utility Functions'!$BC$3:$BC$5,'Utility Functions'!$BD$3:$BD$5)","v":0.25},9.3165012474871283,null,9.3165012474871283,2.5665012474871283,0,2,1.8,2.95]
[20,{"$f":"valueE(B21,'Utility Functions'!$B$3,'Utility Functions'!$B$4,'Utility Functions'!$B$5,'Utility Functions'!$B$6)","v":0.83470237647280454},{"$f":"valueE(C21,'Utility Functions'!$D$3,'Utility Functions'!$D$4,'Utility Functions'!$D$5,'Utility Functions'!$D$6)","v":0.78989979019422951},{"$f":"valuePL(D21,'Utility Functions'!$E$3:$E$5,'Utility Functions'!$F$3:$F$5)","v":0.5},{"$f":"valuePL(E21,'Utility Functions'!$G$3:$G$5,'Utility Functions'!$H$3:$H$5)","v":1},{"$f":"valuePL(F21,'Utility Functions'!$I$3:$I$4,'Utility Functions'!$J$3:$J$5)","v":0},{"$f":"valueE(G21,'Utility Functions'!$L$3,'Utility Functions'!$L$4,'Utility Functions'!$L$5,'Utility Functions'!$L$6)","v":0},{"$f":"valueE(H21,'Utility Functions'!$N$3,'Utility Functions'!$N$4,'Utility Functions'!$N$5,'Utility Functions'!$N$6)","v":0.41271347248576851},{"$f":"valuePL(I21,'Utility Functions'!$O$3:$O$6,'Utility Functions'!$P$3:$P$6)","v":0.93454545454545446},{"$f":"valuePL(J21,'Utility Functions'!$Q$3:$Q$6,'Utility Functions'!$R$3:$R$6)","v":0.50909090909090915},{"$f":"valuePL(K21,'Utility Functions'!$S$3:$S$7,'Utility Functions'!$T$3:$T$7)","v":0.93454545454545446},{"$f":"valueE(L21,'Utility Functions'!$V$3,'Utility Functions'!$V$4,'Utility Functions'!$V$5,'Utility Functions'!$V$6)","v":0.66666666666666663},{"$f":"valuePL(M21,'Utility Functions'!$W$3:$W$6,'Utility Functions'!$X$3:$X$6)","v":0.50909090909090915},{"$f":"valueE(N21,'Utility Functions'!$Z$3,'Utility Functions'!$Z$4,'Utility Functions'!$Z$5,'Utility Functions'!$Z$6)","v":1},{"$f":"valuePL(O21,'Utility Functions'!$AA$3:$AA$5,'Utility Functions'!$AB$3:$AB$5)","v":1},{"$f":"valuePL(P21,'Utility Functions'!$AC$3:$AC$7,'Utility Functions'!$AD$3:$AD$7)","v":0.25},{"$f":"valuePL(Q21,'Utility Functions'!$AE$3:$AE$6,'Utility Functions'!$AF$3:$AF$6)","v":0},{"$f":"valuePL(R21,'Utility Functions'!$AG$3:$AG$6,'Utility Functions'!$AH$3:$AH$6)","v":1},{"$f":"valuePL(S21,'Utility Functions'!$AI$3:$AI$6,'Utility Functions'!$AJ$3:$AJ$6)","v":1},{"$f":"valuePL(T21,'Utility Functions'!$AK$3:$AK$8,'Utility Functions'!$AL$3:$AL$8)","v":0.6},{"$f":"valuePL(U21,'Utility Functions'!$AM$3:$AM$5,'Utility Functions'!$AN$3:$AN$5)","v":1},{"$f":"valuePL(V21,'Utility Functions'!$AO$3:$AO$5,'Utility Functions'!$AP$3:$AP$5)","v":0.5},{"$f":"valuePL(W21,'Utility Functions'!$AQ$3:$AQ$6,'Utility Functions'!$AR$3:$AR$6)","v":0},{"$f":"valuePL(X21,'Utility Functions'!$AS$3:$AS$6,'Utility Functions'!$AT$3:$AT$6)","v":0},{"$f":"valuePL(Y21,'Utility Functions'!$AU$3:$AU$6,'Utility Functions'!$AV$3:$AV$6)","v":0.2},{"$f":"valuePL(Z21,'Utility Functions'!$AW$3:$AW$5,'Utility Functions'!$AX$3:$AX$5)","v":1},{"$f":"valuePL(AA21,'Utility Functions'!$AY$3:$AY$6,'Utility Functions'!$AZ$3:$AZ$6)","v":0.2},{"$f":"valuePL(AB21,'Utility Functions'!$BA$3:$BA$5,'Utility Functions'!$BB$3:$BB$5)","v":0},{"$f":"valuePL(AC21,'Utility Functions'!$BC$3:$BC$5,'Utility Functions'!$BD$3:$BD$5)","v":0.25},15.091255033092194,null,15.091255033092196,3.1246021666670343,3.9666528664251626,2,3.85,2.15]
[21,{"$f":"valueE(B22,'Utility Functions'!$B$3,'Utility Functions'!$B$4,'Utility Functions'!$B$5,'Utility Functions'!$B$6)","v":0},{"$f":"valueE(C22,'Utility Functions'!$D$3,'Utility Functions'!$D$4,'Utility Functions'!$D$5,'Utility Functions'!$D$6)","v":0},{"$f":"valuePL(D22,'Utility Functions'!$E$3:$E$5,'Utility Functions'!$F$3:$F$5)","v":0},{"$f":"valuePL(E22,'Utility Functions'!$G$3:$G$5,'Utility Functions'!$H$3:$H$5)","v":0},{"$f":"valuePL(F22,'Utility Functions'!$I$3:$I$4,'Utility Functions'!$J$3:$J$5)","v":0},{"$f":"valueE(G22,'Utility Functions'!$L$3,'Utility Functions'!$L$4,'Utility Functions'!$L$5,'Utility Functions'!$L$6)","v":0},{"$f":"valueE(H22,'Utility Functions'!$N$3,'Utility Functions'!$N$4,'Utility Functions'!$N$5,'Utility Functions'!$N$6)","v":0},{"$f":"valuePL(I22,'Utility Functions'!$O$3:$O$6,'Utility Functions'!$P$3:$P$6)","v":0},{"$f":"valuePL(J22,'Utility Functions'!$Q$3:$Q$6,'Utility Functions'!$R$3:$R$6)","v":0},{"$f":"valuePL(K22,'Utility Functions'!$S$3:$S$7,'Utility Functions'!$T$3:$T$7)","v":0},{"$f":"valueE(L22,'Utility Functions'!$V$3,'Utility Functions'!$V$4,'Utility Functions'!$V$5,'Utility Functions'!$V$6)","v":0},{"$f":"valuePL(M22,'Utility Functions'!$W$3:$W$6,'Utility Functions'!$X$3:$X$6)","v":0},{"$f":"valueE(N22,'Utility Functions'!$Z$3,'Utility Functions'!$Z$4,'Utility Functions'!$Z$5,'Utility Functions'!$Z$6)","v":1},{"$f":"valuePL(O22,'Utility Functions'!$AA$3:$AA$5,'Utility Functions'!$AB$3:$AB$5)","v":1},{"$f":"valuePL(P22,'Utility Functions'!$AC$3:$AC$7,'Utility Functions'!$AD$3:$AD$7)","v":0},{"$f":"valuePL(Q22,'Utility Functions'!$AE$3:$AE$6,'Utility Functions'!$AF$3:$AF$6)","v":0.1},{"$f":"valuePL(R22,'Utility Functions'!$AG$3:$AG$6,'Utility Functions'!$AH$3:$AH$6)","v":1},{"$f":"valuePL(S22,'Utility Functions'!$AI$3:$AI$6,'Utility Functions'!$AJ$3:$AJ$6)","v":1},{"$f":"valuePL(T22,'Utility Functions'!$AK$3:$AK$8,'Utility Functions'!$AL$3:$AL$8)","v":1},{"$f":"valuePL(U22,'Utility Functions'!$AM$3:$AM$5,'Utility Functions'!$AN$3:$AN$5)","v":0.25},{"$f":"valuePL(V22,'Utility Functions'!$AO$3:$AO$5,'Utility Functions'!$AP$3:$AP$5)","v":0},{"$f":"valuePL(W22,'Utility Functions'!$AQ$3:$AQ$6,'Utility Functions'!$AR$3:$AR$6)","v":0.75},{"$f":"valuePL(X22,'Utility Functions'!$AS$3:$AS$6,'Utility Functions'!$AT$3:$AT$6)","v":1},{"$f":"valuePL(Y22,'Utility Functions'!$AU$3:$AU$6,'Utility Functions'!$AV$3:$AV$6)","v":0.2},{"$f":"valuePL(Z22,'Utility Functions'!$AW$3:$AW$5,'Utility Functions'!$AX$3:$AX$5)","v":0},{"$f":"valuePL(AA22,'Utility Functions'!$AY$3:$AY$6,'Utility Functions'!$AZ$3:$AZ$6)","v":1},{"$f":"valuePL(AB22,'Utility Functions'!$BA$3:$BA$5,'Utility Functions'!$BB$3:$BB$5)","v":0.25},{"$f":"valuePL(AC22,'Utility Functions'!$BC$3:$BC$5,'Utility Functions'!$BD$3:$BD$5)","v":1},9.5500000000000007,null,9.5500000000000007,0,0,2,3.35,4.2]
[22,{"$f":"valueE(B23,'Utility Functions'!$B$3,'Utility Functions'!$B$4,'Utility Functions'!$B$5,'Utility Functions'!$B$6)","v":0},{"$f":"valueE(C23,'Utility Functions'!$D$3,'Utility Functions'!$D$4,'Utility Functions'!$D$5,'Utility Functions'!$D$6)","v":0},{"$f":"valuePL(D23,'Utility Functions'!$E$3:$E$5,'Utility Functions'!$F$3:$F$5)","v":0},{"$f":"valuePL(E23,'Utility Functions'!$G$3:$G$5,'Utility Functions'!$H$3:$H$5)","v":0},{"$f":"valuePL(F23,'Utility Functions'!$I$3:$I$4,'Utility Functions'!$J$3:$J$5)","v":0},{"$f":"valueE(G23,'Utility Functions'!$L$3,'Utility Functions'!$L$4,'Utility Functions'!$L$5,'Utility Functions'!$L$6)","v":8.6021505376344093E-2},{"$f":"valueE(H23,'Utility Functions'!$N$3,'Utility Functions'!$N$4,'Utility Functions'!$N$5,'Utility Functions'!$N$6)","v":6.0721062618595827E-2},{"$f":"valuePL(I23,'Utility Functions'!$O$3:$O$6,'Utility Functions'!$P$3:$P$6)","v":0},{"$f":"valuePL(J23,'Utility Functions'!$Q$3:$Q$6,'Utility Functions'!$R$3:$R$6)","v":0},{"$f":"valuePL(K23,'Utility Functions'!$S$3:$S$7,'Utility Functions'!$T$3:$T$7)","v":0},{"$f":"valueE(L23,'Utility Functions'!$V$3,'Utility Functions'!$V$4,'Utility Functions'!$V$5,'Utility Functions'!$V$6)","v":0},{"$f":"valuePL(M23,'Utility Functions'!$W$3:$W$6,'Utility Functions'!$X$3:$X$6)","v":0},{"$f":"valueE(N23,'Utility Functions'!$Z$3,'Utility Functions'!$Z$4,'Utility Functions'!$Z$5,'Utility Functions'!$Z$6)","v":0.125},{"$f":"valuePL(O23,'Utility Functions'!$AA$3:$AA$5,'Utility Functions'!$AB$3:$AB$5)","v":1},{"$f":"valuePL(P23,'Utility Functions'!$AC$3:$AC$7,'Utility Functions'!$AD$3:$AD$7)","v":1},{"$f":"valuePL(Q23,'Utility Functions'!$AE$3:$AE$6,'Utility Functions'!$AF$3:$AF$6)","v":0.5},{"$f":"valuePL(R23,'Utility Functions'!$AG$3:$AG$6,'Utility Functions'!$AH$3:$AH$6)","v":0.8},{"$f":"valuePL(S23,'Utility Functions'!$AI$3:$AI$6,'Utility Functions'!$AJ$3:$AJ$6)","v":1},{"$f":"valuePL(T23,'Utility Functions'!$AK$3:$AK$8,'Utility Functions'!$AL$3:$AL$8)","v":1},{"$f":"valuePL(U23,'Utility Functions'!$AM$3:$AM$5,'Utility Functions'!$AN$3:$AN$5)","v":0},{"$f":"valuePL(V23,'Utility Functions'!$AO$3:$AO$5,'Utility Functions'!$AP$3:$AP$5)","v":0.5},{"$f":"valuePL(W23,'Utility Functions'!$AQ$3:$AQ$6,'Utility Functions'!$AR$3:$AR$6)","v":0.75},{"$f":"valuePL(X23,'Utility Functions'!$AS$3:$AS$6,'Utility Functions'!$AT$3:$AT$6)","v":0.2},{"$f":"valuePL(Y23,'Utility Functions'!$AU$3:$AU$6,'Utility Functions'!$AV$3:$AV$6)","v":0},{"$f":"valuePL(Z23,'Utility Functions'!$AW$3:$AW$5,'Utility Functions'!$AX$3:$AX$5)","v":1},{"$f":"valuePL(AA23,'Utility Functions'!$AY$3:$AY$6,'Utility Functions'!$AZ$3:$AZ$6)","v":0.2},{"$f":"valuePL(AB23,'Utility Functions'!$BA$3:$BA$5,'Utility Functions'!$BB$3:$BB$5)","v":1},{"$f":"valuePL(AC23,'Utility Functions'!$BC$3:$BC$5,'Utility Functions'!$BD$3:$BD$5)","v":0.25},9.471742567994939,null,9.4717425679949407,0,0.14674256799493993,1.125,4.3,3.9000000000000004]
[23,{"$f":"valueE(B24,'Utility Functions'!$B$3,'Utility Functions'!$B$4,'Utility Functions'!$B$5,'Utility Functions'!$B$6)","v":0.83470237647280454},{"$f":"valueE(C24,'Utility Functions'!$D$3,'Utility Functions'!$D$4,'Utility Functions'!$D$5,'Utility Functions'!$D$6)","v":0.84744836833951609},{"$f":"valuePL(D24,'Utility Functions'!$E$3:$E$5,'Utility Functions'!$F$3:$F$5)","v":1},{"$f":"valuePL(E24,'Utility Functions'!$G$3:$G$5,'Utility Functions'!$H$3:$H$5)","v":0},{"$f":"valuePL(F24,'Utility Functions'!$I$3:$I$4,'Utility Functions'!$J$3:$J$5)","v":0},{"$f":"valueE(G24,'Utility Functions'!$L$3,'Utility Functions'!$L$4,'Utility Functions'!$L$5,'Utility Functions'!$L$6)","v":0},{"$f":"valueE(H24,'Utility Functions'!$N$3,'Utility Functions'!$N$4,'Utility Functions'!$N$5,'Utility Functions'!$N$6)","v":0},{"$f":"valuePL(I24,'Utility Functions'!$O$3:$O$6,'Utility Functions'!$P$3:$P$6)","v":0},{"$f":"valuePL(J24,'Utility Functions'!$Q$3:$Q$6,'Utility Functions'!$R$3:$R$6)","v":0},{"$f":"valuePL(K24,'Utility Functions'!$S$3:$S$7,'Utility Functions'!$T$3:$T$7)","v":0},{"$f":"valueE(L24,'Utility Functions'!$V$3,'Utility Functions'!$V$4,'Utility Functions'!$V$5,'Utility Functions'!$V$6)","v":0},{"$f":"valuePL(M24,'Utility Functions'!$W$3:$W$6,'Utility Functions'!$X$3:$X$6)","v":0},{"$f":"valueE(N24,'Utility Functions'!$Z$3,'Utility Functions'!$Z$4,'Utility Functions'!$Z$5,'Utility Functions'!$Z$6)","v":0},{"$f":"valuePL(O24,'Utility Functions'!$AA$3:$AA$5,'Utility Functions'!$AB$3:$AB$5)","v":0},{"$f":"valuePL(P24,'Utility Functions'!$AC$3:$AC$7,'Utility Functions'!$AD$3:$AD$7)","v":0.75},{"$f":"valuePL(Q24,'Utility Functions'!$AE$3:$AE$6,'Utility Functions'!$AF$3:$AF$6)","v":0},{"$f":"valuePL(R24,'Utility Functions'!$AG$3:$AG$6,'Utility Functions'!$AH$3:$AH$6)","v":1},{"$f":"valuePL(S24,'Utility Functions'!$AI$3:$AI$6,'Utility Functions'!$AJ$3:$AJ$6)","v":1},{"$f":"valuePL(T24,'Utility Functions'!$AK$3:$AK$8,'Utility Functions'!$AL$3:$AL$8)","v":1},{"$f":"valuePL(U24,'Utility Functions'!$AM$3:$AM$5,'Utility Functions'!$AN$3:$AN$5)","v":0},{"$f":"valuePL(V24,'Utility Functions'!$AO$3:$AO$5,'Utility Functions'!$AP$3:$AP$5)","v":1},{"$f":"valuePL(W24,'Utility Functions'!$AQ$3:$AQ$6,'Utility Functions'!$AR$3:$AR$6)","v":0.2},{"$f":"valuePL(X24,'Utility Functions'!$AS$3:$AS$6,'Utility Functions'!$AT$3:$AT$6)","v":0.75},{"$f":"valuePL(Y24,'Utility Functions'!$AU$3:$AU$6,'Utility Functions'!$AV$3:$AV$6)","v":0.2},{"$f":"valuePL(Z24,'Utility Functions'!$AW$3:$AW$5,'Utility Functions'!$AX$3:$AX$5)","v":0.5},{"$f":"valuePL(AA24,'Utility Functions'!$AY$3:$AY$6,'Utility Functions'!$AZ$3:$AZ$6)","v":0.2},{"$f":"valuePL(AB24,'Utility Functions'!$BA$3:$BA$5,'Utility Functions'!$BB$3:$BB$5)","v":0},{"$f":"valuePL(AC24,'Utility Functions'!$BC$3:$BC$5,'Utility Functions'!$BD$3:$BD$5)","v":0.25},9.5321507448123199,null,9.5321507448123199,2.6821507448123207,0,0,3.75,3.1]
[24,{"$f":"valueE(B25,'Utility Functions'!$B$3,'Utility Functions'!$B$4,'Utility Functions'!$B$5,'Utility Functions'!$B$6)","v":0.63212151658375171},{"$f":"valueE(C25,'Utility Functions'!$D$3,'Utility Functions'!$D$4,'Utility Functions'!$D$5,'Utility Functions'!$D$6)","v":0.46475967153745396},{"$f":"valuePL(D25,'Utility Functions'!$E$3:$E$5,'Utility Functions'!$F$3:$F$5)","v":1},{"$f":"valuePL(E25,'Utility Functions'!$G$3:$G$5,'Utility Functions'!$H$3:$H$5)","v":0},{"$f":"valuePL(F25,'Utility Functions'!$I$3:$I$4,'Utility Functions'!$J$3:$J$5)","v":0},{"$f":"valueE(G25,'Utility Functions'!$L$3,'Utility Functions'!$L$4,'Utility Functions'!$L$5,'Utility Functions'!$L$6)","v":0},{"$f":"valueE(H25,'Utility Functions'!$N$3,'Utility Functions'!$N$4,'Utility Functions'!$N$5,'Utility Functions'!$N$6)","v":0},{"$f":"valuePL(I25,'Utility Functions'!$O$3:$O$6,'Utility Functions'!$P$3:$P$6)","v":0},{"$f":"valuePL(J25,'Utility Functions'!$Q$3:$Q$6,'Utility Functions'!$R$3:$R$6)","v":0},{"$f":"valuePL(K25,'Utility Functions'!$S$3:$S$7,'Utility Functions'!$T$3:$T$7)","v":0},{"$f":"valueE(L25,'Utility Functions'!$V$3,'Utility Functions'!$V$4,'Utility Functions'!$V$5,'Utility Functions'!$V$6)","v":0},{"$f":"valuePL(M25,'Utility Functions'!$W$3:$W$6,'Utility Functions'!$X$3:$X$6)","v":0},{"$f":"valueE(N25,'Utility Functions'!$Z$3,'Utility Functions'!$Z$4,'Utility Functions'!$Z$5,'Utility Functions'!$Z$6)","v":0},{"$f":"valuePL(O25,'Utility Functions'!$AA$3:$AA$5,'Utility Functions'!$AB$3:$AB$5)","v":0},{"$f":"valuePL(P25,'Utility Functions'!$AC$3:$AC$7,'Utility Functions'!$AD$3:$AD$7)","v":0},{"$f":"valuePL(Q25,'Utility Functions'!$AE$3:$AE$6,'Utility Functions'!$AF$3:$AF$6)","v":0},{"$f":"valuePL(R25,'Utility Functions'!$AG$3:$AG$6,'Utility Functions'!$AH$3:$AH$6)","v":1},{"$f":"valuePL(S25,'Utility Functions'!$AI$3:$AI$6,'Utility Functions'!$AJ$3:$AJ$6)","v":1},{"$f":"valuePL(T25,'Utility Functions'!$AK$3:$AK$8,'Utility Functions'!$AL$3:$AL$8)","v":1},{"$f":"valuePL(U25,'Utility Functions'!$AM$3:$AM$5,'Utility Functions'!$AN$3:$AN$5)","v":0},{"$f":"valuePL(V25,'Utility Functions'!$AO$3:$AO$5,'Utility Functions'!$AP$3:$AP$5)","v":0},{"$f":"valuePL(W25,'Utility Functions'!$AQ$3:$AQ$6,'Utility Functions'!$AR$3:$AR$6)","v":1},{"$f":"valuePL(X25,'Utility Functions'!$AS$3:$AS$6,'Utility Functions'!$AT$3:$AT$6)","v":0.2},{"$f":"valuePL(Y25,'Utility Functions'!$AU$3:$AU$6,'Utility Functions'!$AV$3:$AV$6)","v":1},{"$f":"valuePL(Z25,'Utility Functions'!$AW$3:$AW$5,'Utility Functions'!$AX$3:$AX$5)","v":1},{"$f":"valuePL(AA25,'Utility Functions'!$AY$3:$AY$6,'Utility Functions'!$AZ$3:$AZ$6)","v":0.2},{"$f":"valuePL(AB25,'Utility Functions'!$BA$3:$BA$5,'Utility Functions'!$BB$3:$BB$5)","v":0},{"$f":"valuePL(AC25,'Utility Functions'!$BC$3:$BC$5,'Utility Functions'!$BD$3:$BD$5)","v":1},9.4968811881212041,null,9.4968811881212059,2.0968811881212055,0,0,3,4.4000000000000004]
[25,{"$f":"valueE(B26,'Utility Functions'!$B$3,'Utility Functions'!$B$4,'Utility Functions'!$B$5,'Utility Functions'!$B$6)","v":0.83470237647280454},{"$f":"valueE(C26,'Utility Functions'!$D$3,'Utility Functions'!$D$4,'Utility Functions'!$D$5,'Utility Functions'!$D$6)","v":0.84744836833951609},{"$f":"valuePL(D26,'Utility Functions'!$E$3:$E$5,'Utility Functions'!$F$3:$F$5)","v":1},{"$f":"valuePL(E26,'Utility Functions'!$G$3:$G$5,'Utility Functions'!$H$3:$H$5)","v":0},{"$f":"valuePL(F26,'Utility Functions'!$I$3:$I$4,'Utility Functions'!$J$3:$J$5)","v":0},{"$f":"valueE(G26,'Utility Functions'!$L$3,'Utility Functions'!$L$4,'Utility Functions'!$L$5,'Utility Functions'!$L$6)","v":0.94623655913978499},{"$f":"valueE(H26,'Utility Functions'!$N$3,'Utility Functions'!$N$4,'Utility Functions'!$N$5,'Utility Functions'!$N$6)","v":0.29222011385199242},{"$f":"valuePL(I26,'Utility Functions'!$O$3:$O$6,'Utility Functions'!$P$3:$P$6)","v":0},{"$f":"valuePL(J26,'Utility Functions'!$Q$3:$Q$6,'Utility Functions'!$R$3:$R$6)","v":0},{"$f":"valuePL(K26,'Utility Functions'!$S$3:$S$7,'Utility Functions'!$T$3:$T$7)","v":0},{"$f":"valueE(L26,'Utility Functions'!$V$3,'Utility Functions'!$V$4,'Utility Functions'!$V$5,'Utility Functions'!$V$6)","v":0},{"$f":"valuePL(M26,'Utility Functions'!$W$3:$W$6,'Utility Functions'!$X$3:$X$6)","v":0},{"$f":"valueE(N26,'Utility Functions'!$Z$3,'Utility Functions'!$Z$4,'Utility Functions'!$Z$5,'Utility Functions'!$Z$6)","v":1},{"$f":"valuePL(O26,'Utility Functions'!$AA$3:$AA$5,'Utility Functions'!$AB$3:$AB$5)","v":0.25},{"$f":"valuePL(P26,'Utility Functions'!$AC$3:$AC$7,'Utility Functions'!$AD$3:$AD$7)","v":0.5},{"$f":"valuePL(Q26,'Utility Functions'!$AE$3:$AE$6,'Utility Functions'!$AF$3:$AF$6)","v":0.5},{"$f":"valuePL(R26,'Utility Functions'!$AG$3:$AG$6,'Utility Functions'!$AH$3:$AH$6)","v":1},{"$f":"valuePL(S26,'Utility Functions'!$AI$3:$AI$6,'Utility Functions'!$AJ$3:$AJ$6)","v":1},{"$f":"valuePL(T26,'Utility Functions'!$AK$3:$AK$8,'Utility Functions'!$AL$3:$AL$8)","v":0},{"$f":"valuePL(U26,'Utility Functions'!$AM$3:$AM$5,'Utility Functions'!$AN$3:$AN$5)","v":0},{"$f":"valuePL(V26,'Utility Functions'!$AO$3:$AO$5,'Utility Functions'!$AP$3:$AP$5)","v":1},{"$f":"valuePL(W26,'Utility Functions'!$AQ$3:$AQ$6,'Utility Functions'!$AR$3:$AR$6)","v":0.2},{"$f":"valuePL(X26,'Utility Functions'!$AS$3:$AS$6,'Utility Functions'!$AT$3:$AT$6)","v":1},{"$f":"valuePL(Y26,'Utility Functions'!$AU$3:$AU$6,'Utility Functions'!$AV$3:$AV$6)","v":0.8},{"$f":"valuePL(Z26,'Utility Functions'!$AW$3:$AW$5,'Utility Functions'!$AX$3:$AX$5)","v":0.5},{"$f":"valuePL(AA26,'Utility Functions'!$AY$3:$AY$6,'Utility Functions'!$AZ$3:$AZ$6)","v":0.2},{"$f":"valuePL(AB26,'Utility Functions'!$BA$3:$BA$5,'Utility Functions'!$BB$3:$BB$5)","v":1},{"$f":"valuePL(AC26,'Utility Functions'!$BC$3:$BC$5,'Utility Functions'!$BD$3:$BD$5)","v":1},13.870607417804099,null,13.870607417804099,2.6821507448123207,1.2384566729917774,1.25,3,5.7]
[26,{"$f":"valueE(B27,'Utility Functions'!$B$3,'Utility Functions'!$B$4,'Utility Functions'!$B$5,'Utility Functions'!$B$6)","v":0.96662819462069161},{"$f":"valueE(C27,'Utility Functions'!$D$3,'Utility Functions'!$D$4,'Utility Functions'!$D$5,'Utility Functions'!$D$6)","v":0.84744836833951609},{"$f":"valuePL(D27,'Utility Functions'!$E$3:$E$5,'Utility Functions'!$F$3:$F$5)","v":1},{"$f":"valuePL(E27,'Utility Functions'!$G$3:$G$5,'Utility Functions'!$H$3:$H$5)","v":0.5},{"$f":"valuePL(F27,'Utility Functions'!$I$3:$I$4,'Utility Functions'!$J$3:$J$5)","v":0},{"$f":"valueE(G27,'Utility Functions'!$L$3,'Utility Functions'!$L$4,'Utility Functions'!$L$5,'Utility Functions'!$L$6)","v":0},{"$f":"valueE(H27,'Utility Functions'!$N$3,'Utility Functions'!$N$4,'Utility Functions'!$N$5,'Utility Functions'!$N$6)","v":0},{"$f":"valuePL(I27,'Utility Functions'!$O$3:$O$6,'Utility Functions'!$P$3:$P$6)","v":0},{"$f":"valuePL(J27,'Utility Functions'!$Q$3:$Q$6,'Utility Functions'!$R$3:$R$6)","v":0},{"$f":"valuePL(K27,'Utility Functions'!$S$3:$S$7,'Utility Functions'!$T$3:$T$7)","v":0},{"$f":"valueE(L27,'Utility Functions'!$V$3,'Utility Functions'!$V$4,'Utility Functions'!$V$5,'Utility Functions'!$V$6)","v":0},{"$f":"valuePL(M27,'Utility Functions'!$W$3:$W$6,'Utility Functions'!$X$3:$X$6)","v":0},{"$f":"valueE(N27,'Utility Functions'!$Z$3,'Utility Functions'!$Z$4,'Utility Functions'!$Z$5,'Utility Functions'!$Z$6)","v":0},{"$f":"valuePL(O27,'Utility Functions'!$AA$3:$AA$5,'Utility Functions'!$AB$3:$AB$5)","v":0},{"$f":"valuePL(P27,'Utility Functions'!$AC$3:$AC$7,'Utility Functions'!$AD$3:$AD$7)","v":0.75},{"$f":"valuePL(Q27,'Utility Functions'!$AE$3:$AE$6,'Utility Functions'!$AF$3:$AF$6)","v":0},{"$f":"valuePL(R27,'Utility Functions'!$AG$3:$AG$6,'Utility Functions'!$AH$3:$AH$6)","v":1},{"$f":"valuePL(S27,'Utility Functions'!$AI$3:$AI$6,'Utility Functions'!$AJ$3:$AJ$6)","v":1},{"$f":"valuePL(T27,'Utility Functions'!$AK$3:$AK$8,'Utility Functions'!$AL$3:$AL$8)","v":0.8},{"$f":"valuePL(U27,'Utility Functions'!$AM$3:$AM$5,'Utility Functions'!$AN$3:$AN$5)","v":0},{"$f":"valuePL(V27,'Utility Functions'!$AO$3:$AO$5,'Utility Functions'!$AP$3:$AP$5)","v":1},{"$f":"valuePL(W27,'Utility Functions'!$AQ$3:$AQ$6,'Utility Functions'!$AR$3:$AR$6)","v":0.2},{"$f":"valuePL(X27,'Utility Functions'!$AS$3:$AS$6,'Utility Functions'!$AT$3:$AT$6)","v":0},{"$f":"valuePL(Y27,'Utility Functions'!$AU$3:$AU$6,'Utility Functions'!$AV$3:$AV$6)","v":0.8},{"$f":"valuePL(Z27,'Utility Functions'!$AW$3:$AW$5,'Utility Functions'!$AX$3:$AX$5)","v":0},{"$f":"valuePL(AA27,'Utility Functions'!$AY$3:$AY$6,'Utility Functions'!$AZ$3:$AZ$6)","v":0.2},{"$f":"valuePL(AB27,'Utility Functions'!$BA$3:$BA$5,'Utility Functions'!$BB$3:$BB$5)","v":1},{"$f":"valuePL(AC27,'Utility Functions'!$BC$3:$BC$5,'Utility Functions'!$BD$3:$BD$5)","v":1},11.064076562960208,null,11.064076562960206,3.3140765629602078,0,0,3.55,4.2]
[27,{"$f":"valueE(B28,'Utility Functions'!$B$3,'Utility Functions'!$B$4,'Utility Functions'!$B$5,'Utility Functions'!$B$6)","v":0},{"$f":"valueE(C28,'Utility Functions'!$D$3,'Utility Functions'!$D$4,'Utility Functions'!$D$5,'Utility Functions'!$D$6)","v":0.46475967153745396},{"$f":"valuePL(D28,'Utility Functions'!$E$3:$E$5,'Utility Functions'!$F$3:$F$5)","v":1},{"$f":"valuePL(E28,'Utility Functions'!$G$3:$G$5,'Utility Functions'!$H$3:$H$5)","v":0},{"$f":"valuePL(F28,'Utility Functions'!$I$3:$I$4,'Utility Functions'!$J$3:$J$5)","v":0},{"$f":"valueE(G28,'Utility Functions'!$L$3,'Utility Functions'!$L$4,'Utility Functions'!$L$5,'Utility Functions'!$L$6)","v":0},{"$f":"valueE(H28,'Utility Functions'!$N$3,'Utility Functions'!$N$4,'Utility Functions'!$N$5,'Utility Functions'!$N$6)","v":0},{"$f":"valuePL(I28,'Utility Functions'!$O$3:$O$6,'Utility Functions'!$P$3:$P$6)","v":0},{"$f":"valuePL(J28,'Utility Functions'!$Q$3:$Q$6,'Utility Functions'!$R$3:$R$6)","v":0},{"$f":"valuePL(K28,'Utility Functions'!$S$3:$S$7,'Utility Functions'!$T$3:$T$7)","v":1},{"$f":"valueE(L28,'Utility Functions'!$V$3,'Utility Functions'!$V$4,'Utility Functions'!$V$5,'Utility Functions'!$V$6)","v":0},{"$f":"valuePL(M28,'Utility Functions'!$W$3:$W$6,'Utility Functions'!$X$3:$X$6)","v":0.1},{"$f":"valueE(N28,'Utility Functions'!$Z$3,'Utility Functions'!$Z$4,'Utility Functions'!$Z$5,'Utility Functions'!$Z$6)","v":0},{"$f":"valuePL(O28,'Utility Functions'!$AA$3:$AA$5,'Utility Functions'!$AB$3:$AB$5)","v":0},{"$f":"valuePL(P28,'Utility Functions'!$AC$3:$AC$7,'Utility Functions'!$AD$3:$AD$7)","v":0.5},{"$f":"valuePL(Q28,'Utility Functions'!$AE$3:$AE$6,'Utility Functions'!$AF$3:$AF$6)","v":0.5},{"$f":"valuePL(R28,'Utility Functions'!$AG$3:$AG$6,'Utility Functions'!$AH$3:$AH$6)","v":1},{"$f":"valuePL(S28,'Utility Functions'!$AI$3:$AI$6,'Utility Functions'!$AJ$3:$AJ$6)","v":1},{"$f":"valuePL(T28,'Utility Functions'!$AK$3:$AK$8,'Utility Functions'!$AL$3:$AL$8)","v":1},{"$f":"valuePL(U28,'Utility Functions'!$AM$3:$AM$5,'Utility Functions'!$AN$3:$AN$5)","v":0},{"$f":"valuePL(V28,'Utility Functions'!$AO$3:$AO$5,'Utility Functions'!$AP$3:$AP$5)","v":0.5},{"$f":"valuePL(W28,'Utility Functions'!$AQ$3:$AQ$6,'Utility Functions'!$AR$3:$AR$6)","v":0.75},{"$f":"valuePL(X28,'Utility Functions'!$AS$3:$AS$6,'Utility Functions'!$AT$3:$AT$6)","v":1},{"$f":"valuePL(Y28,'Utility Functions'!$AU$3:$AU$6,'Utility Functions'!$AV$3:$AV$6)","v":0.2},{"$f":"valuePL(Z28,'Utility Functions'!$AW$3:$AW$5,'Utility Functions'!$AX$3:$AX$5)","v":0},{"$f":"valuePL(AA28,'Utility Functions'!$AY$3:$AY$6,'Utility Functions'!$AZ$3:$AZ$6)","v":0},{"$f":"valuePL(AB28,'Utility Functions'!$BA$3:$BA$5,'Utility Functions'!$BB$3:$BB$5)","v":0},{"$f":"valuePL(AC28,'Utility Functions'!$BC$3:$BC$5,'Utility Functions'!$BD$3:$BD$5)","v":0},9.0147596715374529,null,9.0147596715374547,1.464759671537454,1.1000000000000001,0,4,2.4500000000000002]
[28,{"$f":"valueE(B29,'Utility Functions'!$B$3,'Utility Functions'!$B$4,'Utility Functions'!$B$5,'Utility Functions'!$B$6)","v":0.4511890475224023},{"$f":"valueE(C29,'Utility Functions'!$D$3,'Utility Functions'!$D$4,'Utility Functions'!$D$5,'Utility Functions'!$D$6)","v":0.46475967153745396},{"$f":"valuePL(D29,'Utility Functions'!$E$3:$E$5,'Utility Functions'!$F$3:$F$5)","v":1},{"$f":"valuePL(E29,'Utility Functions'!$G$3:$G$5,'Utility Functions'!$H$3:$H$5)","v":0},{"$f":"valuePL(F29,'Utility Functions'!$I$3:$I$4,'Utility Functions'!$J$3:$J$5)","v":1},{"$f":"valueE(G29,'Utility Functions'!$L$3,'Utility Functions'!$L$4,'Utility Functions'!$L$5,'Utility Functions'!$L$6)","v":0},{"$f":"valueE(H29,'Utility Functions'!$N$3,'Utility Functions'!$N$4,'Utility Functions'!$N$5,'Utility Functions'!$N$6)","v":0},{"$f":"valuePL(I29,'Utility Functions'!$O$3:$O$6,'Utility Functions'!$P$3:$P$6)","v":0},{"$f":"valuePL(J29,'Utility Functions'!$Q$3:$Q$6,'Utility Functions'!$R$3:$R$6)","v":0},{"$f":"valuePL(K29,'Utility Functions'!$S$3:$S$7,'Utility Functions'!$T$3:$T$7)","v":0},{"$f":"valueE(L29,'Utility Functions'!$V$3,'Utility Functions'!$V$4,'Utility Functions'!$V$5,'Utility Functions'!$V$6)","v":0.33333333333333331},{"$f":"valuePL(M29,'Utility Functions'!$W$3:$W$6,'Utility Functions'!$X$3:$X$6)","v":0.1},{"$f":"valueE(N29,'Utility Functions'!$Z$3,'Utility Functions'!$Z$4,'Utility Functions'!$Z$5,'Utility Functions'!$Z$6)","v":0},{"$f":"valuePL(O29,'Utility Functions'!$AA$3:$AA$5,'Utility Functions'!$AB$3:$AB$5)","v":0},{"$f":"valuePL(P29,'Utility Functions'!$AC$3:$AC$7,'Utility Functions'!$AD$3:$AD$7)","v":1},{"$f":"valuePL(Q29,'Utility Functions'!$AE$3:$AE$6,'Utility Functions'!$AF$3:$AF$6)","v":0},{"$f":"valuePL(R29,'Utility Functions'!$AG$3:$AG$6,'Utility Functions'!$AH$3:$AH$6)","v":1},{"$f":"valuePL(S29,'Utility Functions'!$AI$3:$AI$6,'Utility Functions'!$AJ$3:$AJ$6)","v":1},{"$f":"valuePL(T29,'Utility Functions'!$AK$3:$AK$8,'Utility Functions'!$AL$3:$AL$8)","v":0.8},{"$f":"valuePL(U29,'Utility Functions'!$AM$3:$AM$5,'Utility Functions'!$AN$3:$AN$5)","v":0},{"$f":"valuePL(V29,'Utility Functions'!$AO$3:$AO$5,'Utility Functions'!$AP$3:$AP$5)","v":1},{"$f":"valuePL(W29,'Utility Functions'!$AQ$3:$AQ$6,'Utility Functions'!$AR$3:$AR$6)","v":1},{"$f":"valuePL(X29,'Utility Functions'!$AS$3:$AS$6,'Utility Functions'!$AT$3:$AT$6)","v":1},{"$f":"valuePL(Y29,'Utility Functions'!$AU$3:$AU$6,'Utility Functions'!$AV$3:$AV$6)","v":0.2},{"$f":"valuePL(Z29,'Utility Functions'!$AW$3:$AW$5,'Utility Functions'!$AX$3:$AX$5)","v":0},{"$f":"valuePL(AA29,'Utility Functions'!$AY$3:$AY$6,'Utility Functions'!$AZ$3:$AZ$6)","v":0.89999999999999991},{"$f":"valuePL(AB29,'Utility Functions'!$BA$3:$BA$5,'Utility Functions'!$BB$3:$BB$5)","v":1},{"$f":"valuePL(AC29,'Utility Functions'!$BC$3:$BC$5,'Utility Functions'!$BD$3:$BD$5)","v":0.25},12.499282052393189,null,12.499282052393189,2.9159487190598563,0.43333333333333335,0,3.8,5.35]
[29,{"$f":"valueE(B30,'Utility Functions'!$B$3,'Utility Functions'!$B$4,'Utility Functions'!$B$5,'Utility Functions'!$B$6)","v":0.83470237647280454},{"$f":"valueE(C30,'Utility Functions'!$D$3,'Utility Functions'!$D$4,'Utility Functions'!$D$5,'Utility Functions'!$D$6)","v":0.71352759724260828},{"$f":"valuePL(D30,'Utility Functions'!$E$3:$E$5,'Utility Functions'!$F$3:$F$5)","v":1},{"$f":"valuePL(E30,'Utility Functions'!$G$3:$G$5,'Utility Functions'!$H$3:$H$5)","v":0.5},{"$f":"valuePL(F30,'Utility Functions'!$I$3:$I$4,'Utility Functions'!$J$3:$J$5)","v":0},{"$f":"valueE(G30,'Utility Functions'!$L$3,'Utility Functions'!$L$4,'Utility Functions'!$L$5,'Utility Functions'!$L$6)","v":0},{"$f":"valueE(H30,'Utility Functions'!$N$3,'Utility Functions'!$N$4,'Utility Functions'!$N$5,'Utility Functions'!$N$6)","v":0},{"$f":"valuePL(I30,'Utility Functions'!$O$3:$O$6,'Utility Functions'!$P$3:$P$6)","v":0.06},{"$f":"valuePL(J30,'Utility Functions'!$Q$3:$Q$6,'Utility Functions'!$R$3:$R$6)","v":0.67272727272727273},{"$f":"valuePL(K30,'Utility Functions'!$S$3:$S$7,'Utility Functions'!$T$3:$T$7)","v":0},{"$f":"valueE(L30,'Utility Functions'!$V$3,'Utility Functions'!$V$4,'Utility Functions'!$V$5,'Utility Functions'!$V$6)","v":1},{"$f":"valuePL(M30,'Utility Functions'!$W$3:$W$6,'Utility Functions'!$X$3:$X$6)","v":0.67272727272727273},{"$f":"valueE(N30,'Utility Functions'!$Z$3,'Utility Functions'!$Z$4,'Utility Functions'!$Z$5,'Utility Functions'!$Z$6)","v":0},{"$f":"valuePL(O30,'Utility Functions'!$AA$3:$AA$5,'Utility Functions'!$AB$3:$AB$5)","v":0},{"$f":"valuePL(P30,'Utility Functions'!$AC$3:$AC$7,'Utility Functions'!$AD$3:$AD$7)","v":0.25},{"$f":"valuePL(Q30,'Utility Functions'!$AE$3:$AE$6,'Utility Functions'!$AF$3:$AF$6)","v":0},{"$f":"valuePL(R30,'Utility Functions'!$AG$3:$AG$6,'Utility Functions'!$AH$3:$AH$6)","v":1},{"$f":"valuePL(S30,'Utility Functions'!$AI$3:$AI$6,'Utility Functions'!$AJ$3:$AJ$6)","v":1},{"$f":"valuePL(T30,'Utility Functions'!$AK$3:$AK$8,'Utility Functions'!$AL$3:$AL$8)","v":0.8},{"$f":"valuePL(U30,'Utility Functions'!$AM$3:$AM$5,'Utility Functions'!$AN$3:$AN$5)","v":0},{"$f":"valuePL(V30,'Utility Functions'!$AO$3:$AO$5,'Utility Functions'!$AP$3:$AP$5)","v":1},{"$f":"valuePL(W30,'Utility Functions'!$AQ$3:$AQ$6,'Utility Functions'!$AR$3:$AR$6)","v":0.2},{"$f":"valuePL(X30,'Utility Functions'!$AS$3:$AS$6,'Utility Functions'!$AT$3:$AT$6)","v":0},{"$f":"valuePL(Y30,'Utility Functions'!$AU$3:$AU$6,'Utility Functions'!$AV$3:$AV$6)","v":0.8},{"$f":"valuePL(Z30,'Utility Functions'!$AW$3:$AW$5,'Utility Functions'!$AX$3:$AX$5)","v":0.5},{"$f":"valuePL(AA30,'Utility Functions'!$AY$3:$AY$6,'Utility Functions'!$AZ$3:$AZ$6)","v":0.2},{"$f":"valuePL(AB30,'Utility Functions'!$BA$3:$BA$5,'Utility Functions'!$BB$3:$BB$5)","v":0.25},{"$f":"valuePL(AC30,'Utility Functions'!$BC$3:$BC$5,'Utility Functions'!$BD$3:$BD$5)","v":1},12.453684519169958,null,12.453684519169958,3.0482299737154128,2.4054545454545453,0,3.05,3.95]
[30,{"$f":"valueE(B31,'Utility Functions'!$B$3,'Utility Functions'!$B$4,'Utility Functions'!$B$5,'Utility Functions'!$B$6)","v":0.99864114504770318},{"$f":"valueE(C31,'Utility Functions'!$D$3,'Utility Functions'!$D$4,'Utility Functions'!$D$5,'Utility Functions'!$D$6)","v":0.84744836833951609},{"$f":"valuePL(D31,'Utility Functions'!$E$3:$E$5,'Utility Functions'!$F$3:$F$5)","v":1},{"$f":"valuePL(E31,'Utility Functions'!$G$3:$G$5,'Utility Functions'!$H$3:$H$5)","v":0},{"$f":"valuePL(F31,'Utility Functions'!$I$3:$I$4,'Utility Functions'!$J$3:$J$5)","v":0},{"$f":"valueE(G31,'Utility Functions'!$L$3,'Utility Functions'!$L$4,'Utility Functions'!$L$5,'Utility Functions'!$L$6)","v":0},{"$f":"valueE(H31,'Utility Functions'!$N$3,'Utility Functions'!$N$4,'Utility Functions'!$N$5,'Utility Functions'!$N$6)","v":0},{"$f":"valuePL(I31,'Utility Functions'!$O$3:$O$6,'Utility Functions'!$P$3:$P$6)","v":0},{"$f":"valuePL(J31,'Utility Functions'!$Q$3:$Q$6,'Utility Functions'!$R$3:$R$6)","v":0},{"$f":"valuePL(K31,'Utility Functions'!$S$3:$S$7,'Utility Functions'!$T$3:$T$7)","v":0},{"$f":"valueE(L31,'Utility Functions'!$V$3,'Utility Functions'!$V$4,'Utility Functions'!$V$5,'Utility Functions'!$V$6)","v":0.33333333333333331},{"$f":"valuePL(M31,'Utility Functions'!$W$3:$W$6,'Utility Functions'!$X$3:$X$6)","v":0.04},{"$f":"valueE(N31,'Utility Functions'!$Z$3,'Utility Functions'!$Z$4,'Utility Functions'!$Z$5,'Utility Functions'!$Z$6)","v":0},{"$f":"valuePL(O31,'Utility Functions'!$AA$3:$AA$5,'Utility Functions'!$AB$3:$AB$5)","v":0},{"$f":"valuePL(P31,'Utility Functions'!$AC$3:$AC$7,'Utility Functions'!$AD$3:$AD$7)","v":0},{"$f":"valuePL(Q31,'Utility Functions'!$AE$3:$AE$6,'Utility Functions'!$AF$3:$AF$6)","v":0},{"$f":"valuePL(R31,'Utility Functions'!$AG$3:$AG$6,'Utility Functions'!$AH$3:$AH$6)","v":0.2},{"$f":"valuePL(S31,'Utility Functions'!$AI$3:$AI$6,'Utility Functions'!$AJ$3:$AJ$6)","v":0.33},{"$f":"valuePL(T31,'Utility Functions'!$AK$3:$AK$8,'Utility Functions'!$AL$3:$AL$8)","v":0},{"$f":"valuePL(U31,'Utility Functions'!$AM$3:$AM$5,'Utility Functions'!$AN$3:$AN$5)","v":0},{"$f":"valuePL(V31,'Utility Functions'!$AO$3:$AO$5,'Utility Functions'!$AP$3:$AP$5)","v":0},{"$f":"valuePL(W31,'Utility Functions'!$AQ$3:$AQ$6,'Utility Functions'!$AR$3:$AR$6)","v":1},{"$f":"valuePL(X31,'Utility Functions'!$AS$3:$AS$6,'Utility Functions'!$AT$3:$AT$6)","v":0.2},{"$f":"valuePL(Y31,'Utility Functions'!$AU$3:$AU$6,'Utility Functions'!$AV$3:$AV$6)","v":0.8},{"$f":"valuePL(Z31,'Utility Functions'!$AW$3:$AW$5,'Utility Functions'!$AX$3:$AX$5)","v":0},{"$f":"valuePL(AA31,'Utility Functions'!$AY$3:$AY$6,'Utility Functions'!$AZ$3:$AZ$6)","v":0.89999999999999991},{"$f":"valuePL(AB31,'Utility Functions'!$BA$3:$BA$5,'Utility Functions'!$BB$3:$BB$5)","v":1},{"$f":"valuePL(AC31,'Utility Functions'!$BC$3:$BC$5,'Utility Functions'!$BD$3:$BD$5)","v":0},7.6494228467205527,null,7.6494228467205527,2.846089513387219,0.37333333333333329,0,0.53,3.9]
[31,{"$f":"valueE(B32,'Utility Functions'!$B$3,'Utility Functions'!$B$4,'Utility Functions'!$B$5,'Utility Functions'!$B$6)","v":0.55067187023002029},{"$f":"valueE(C32,'Utility Functions'!$D$3,'Utility Functions'!$D$4,'Utility Functions'!$D$5,'Utility Functions'!$D$6)","v":0.84744836833951609},{"$f":"valuePL(D32,'Utility Functions'!$E$3:$E$5,'Utility Functions'!$F$3:$F$5)","v":0.5},{"$f":"valuePL(E32,'Utility Functions'!$G$3:$G$5,'Utility Functions'!$H$3:$H$5)","v":0},{"$f":"valuePL(F32,'Utility Functions'!$I$3:$I$4,'Utility Functions'!$J$3:$J$5)","v":0},{"$f":"valueE(G32,'Utility Functions'!$L$3,'Utility Functions'!$L$4,'Utility Functions'!$L$5,'Utility Functions'!$L$6)","v":0},{"$f":"valueE(H32,'Utility Functions'!$N$3,'Utility Functions'!$N$4,'Utility Functions'!$N$5,'Utility Functions'!$N$6)","v":0},{"$f":"valuePL(I32,'Utility Functions'!$O$3:$O$6,'Utility Functions'!$P$3:$P$6)","v":0.75454545454545452},{"$f":"valuePL(J32,'Utility Functions'!$Q$3:$Q$6,'Utility Functions'!$R$3:$R$6)","v":0.08},{"$f":"valuePL(K32,'Utility Functions'!$S$3:$S$7,'Utility Functions'!$T$3:$T$7)","v":0},{"$f":"valueE(L32,'Utility Functions'!$V$3,'Utility Functions'!$V$4,'Utility Functions'!$V$5,'Utility Functions'!$V$6)","v":0.33333333333333331},{"$f":"valuePL(M32,'Utility Functions'!$W$3:$W$6,'Utility Functions'!$X$3:$X$6)","v":0.08},{"$f":"valueE(N32,'Utility Functions'!$Z$3,'Utility Functions'!$Z$4,'Utility Functions'!$Z$5,'Utility Functions'!$Z$6)","v":0},{"$f":"valuePL(O32,'Utility Functions'!$AA$3:$AA$5,'Utility Functions'!$AB$3:$AB$5)","v":0},{"$f":"valuePL(P32,'Utility Functions'!$AC$3:$AC$7,'Utility Functions'!$AD$3:$AD$7)","v":0.5},{"$f":"valuePL(Q32,'Utility Functions'!$AE$3:$AE$6,'Utility Functions'!$AF$3:$AF$6)","v":0},{"$f":"valuePL(R32,'Utility Functions'!$AG$3:$AG$6,'Utility Functions'!$AH$3:$AH$6)","v":1},{"$f":"valuePL(S32,'Utility Functions'!$AI$3:$AI$6,'Utility Functions'!$AJ$3:$AJ$6)","v":0.66},{"$f":"valuePL(T32,'Utility Functions'!$AK$3:$AK$8,'Utility Functions'!$AL$3:$AL$8)","v":0.6},{"$f":"valuePL(U32,'Utility Functions'!$AM$3:$AM$5,'Utility Functions'!$AN$3:$AN$5)","v":0},{"$f":"valuePL(V32,'Utility Functions'!$AO$3:$AO$5,'Utility Functions'!$AP$3:$AP$5)","v":0.5},{"$f":"valuePL(W32,'Utility Functions'!$AQ$3:$AQ$6,'Utility Functions'!$AR$3:$AR$6)","v":0},{"$f":"valuePL(X32,'Utility Functions'!$AS$3:$AS$6,'Utility Functions'!$AT$3:$AT$6)","v":0.2},{"$f":"valuePL(Y32,'Utility Functions'!$AU$3:$AU$6,'Utility Functions'!$AV$3:$AV$6)","v":0.2},{"$f":"valuePL(Z32,'Utility Functions'!$AW$3:$AW$5,'Utility Functions'!$AX$3:$AX$5)","v":1},{"$f":"valuePL(AA32,'Utility Functions'!$AY$3:$AY$6,'Utility Functions'!$AZ$3:$AZ$6)","v":0.89999999999999991},{"$f":"valuePL(AB32,'Utility Functions'!$BA$3:$BA$5,'Utility Functions'!$BB$3:$BB$5)","v":0.25},{"$f":"valuePL(AC32,'Utility Functions'!$BC$3:$BC$5,'Utility Functions'!$BD$3:$BD$5)","v":0.25},9.2059990264483247,null,9.2059990264483247,1.8981202385695364,1.2478787878787878,0,2.7600000000000002,3.3]
[32,{"$f":"valueE(B33,'Utility Functions'!$B$3,'Utility Functions'!$B$4,'Utility Functions'!$B$5,'Utility Functions'!$B$6)","v":0.63212151658375171},{"$f":"valueE(C33,'Utility Functions'!$D$3,'Utility Functions'!$D$4,'Utility Functions'!$D$5,'Utility Functions'!$D$6)","v":0.26839655623815994},{"$f":"valuePL(D33,'Utility Functions'!$E$3:$E$5,'Utility Functions'!$F$3:$F$5)","v":1},{"$f":"valuePL(E33,'Utility Functions'!$G$3:$G$5,'Utility Functions'!$H$3:$H$5)","v":1},{"$f":"valuePL(F33,'Utility Functions'!$I$3:$I$4,'Utility Functions'!$J$3:$J$5)","v":1},{"$f":"valueE(G33,'Utility Functions'!$L$3,'Utility Functions'!$L$4,'Utility Functions'!$L$5,'Utility Functions'!$L$6)","v":3.2258064516129031E-2},{"$f":"valueE(H33,'Utility Functions'!$N$3,'Utility Functions'!$N$4,'Utility Functions'!$N$5,'Utility Functions'!$N$6)","v":9.6774193548387094E-2},{"$f":"valuePL(I33,'Utility Functions'!$O$3:$O$6,'Utility Functions'!$P$3:$P$6)","v":0.34545454545454546},{"$f":"valuePL(J33,'Utility Functions'!$Q$3:$Q$6,'Utility Functions'!$R$3:$R$6)","v":1},{"$f":"valuePL(K33,'Utility Functions'!$S$3:$S$7,'Utility Functions'!$T$3:$T$7)","v":0.34545454545454546},{"$f":"valueE(L33,'Utility Functions'!$V$3,'Utility Functions'!$V$4,'Utility Functions'!$V$5,'Utility Functions'!$V$6)","v":1},{"$f":"valuePL(M33,'Utility Functions'!$W$3:$W$6,'Utility Functions'!$X$3:$X$6)","v":1},{"$f":"valueE(N33,'Utility Functions'!$Z$3,'Utility Functions'!$Z$4,'Utility Functions'!$Z$5,'Utility Functions'!$Z$6)","v":0},{"$f":"valuePL(O33,'Utility Functions'!$AA$3:$AA$5,'Utility Functions'!$AB$3:$AB$5)","v":0},{"$f":"valuePL(P33,'Utility Functions'!$AC$3:$AC$7,'Utility Functions'!$AD$3:$AD$7)","v":0.5},{"$f":"valuePL(Q33,'Utility Functions'!$AE$3:$AE$6,'Utility Functions'!$AF$3:$AF$6)","v":1},{"$f":"valuePL(R33,'Utility Functions'!$AG$3:$AG$6,'Utility Functions'!$AH$3:$AH$6)","v":1},{"$f":"valuePL(S33,'Utility Functions'!$AI$3:$AI$6,'Utility Functions'!$AJ$3:$AJ$6)","v":0},{"$f":"valuePL(T33,'Utility Functions'!$AK$3:$AK$8,'Utility Functions'!$AL$3:$AL$8)","v":0.8},{"$f":"valuePL(U33,'Utility Functions'!$AM$3:$AM$5,'Utility Functions'!$AN$3:$AN$5)","v":0},{"$f":"valuePL(V33,'Utility Functions'!$AO$3:$AO$5,'Utility Functions'!$AP$3:$AP$5)","v":0},{"$f":"valuePL(W33,'Utility Functions'!$AQ$3:$AQ$6,'Utility Functions'!$AR$3:$AR$6)","v":0.75},{"$f":"valuePL(X33,'Utility Functions'!$AS$3:$AS$6,'Utility Functions'!$AT$3:$AT$6)","v":0.2},{"$f":"valuePL(Y33,'Utility Functions'!$AU$3:$AU$6,'Utility Functions'!$AV$3:$AV$6)","v":0.8},{"$f":"valuePL(Z33,'Utility Functions'!$AW$3:$AW$5,'Utility Functions'!$AX$3:$AX$5)","v":0.5},{"$f":"valuePL(AA33,'Utility Functions'!$AY$3:$AY$6,'Utility Functions'!$AZ$3:$AZ$6)","v":0},{"$f":"valuePL(AB33,'Utility Functions'!$BA$3:$BA$5,'Utility Functions'!$BB$3:$BB$5)","v":1},{"$f":"valuePL(AC33,'Utility Functions'!$BC$3:$BC$5,'Utility Functions'!$BD$3:$BD$5)","v":0.25},14.52045942179552,null,14.520459421795518,3.9005180728219115,3.8199413489736074,0,3.3,3.5]
[33,{"$f":"valueE(B34,'Utility Functions'!$B$3,'Utility Functions'!$B$4,'Utility Functions'!$B$5,'Utility Functions'!$B$6)","v":0.93919136038504192},{"$f":"valueE(C34,'Utility Functions'!$D$3,'Utility Functions'!$D$4,'Utility Functions'!$D$5,'Utility Functions'!$D$6)","v":0.84744836833951609},{"$f":"valuePL(D34,'Utility Functions'!$E$3:$E$5,'Utility Functions'!$F$3:$F$5)","v":1},{"$f":"valuePL(E34,'Utility Functions'!$G$3:$G$5,'Utility Functions'!$H$3:$H$5)","v":0.5},{"$f":"valuePL(F34,'Utility Functions'!$I$3:$I$4,'Utility Functions'!$J$3:$J$5)","v":0},{"$f":"valueE(G34,'Utility Functions'!$L$3,'Utility Functions'!$L$4,'Utility Functions'!$L$5,'Utility Functions'!$L$6)","v":0},{"$f":"valueE(H34,'Utility Functions'!$N$3,'Utility Functions'!$N$4,'Utility Functions'!$N$5,'Utility Functions'!$N$6)","v":0},{"$f":"valuePL(I34,'Utility Functions'!$O$3:$O$6,'Utility Functions'!$P$3:$P$6)","v":0},{"$f":"valuePL(J34,'Utility Functions'!$Q$3:$Q$6,'Utility Functions'!$R$3:$R$6)","v":0},{"$f":"valuePL(K34,'Utility Functions'!$S$3:$S$7,'Utility Functions'!$T$3:$T$7)","v":0},{"$f":"valueE(L34,'Utility Functions'!$V$3,'Utility Functions'!$V$4,'Utility Functions'!$V$5,'Utility Functions'!$V$6)","v":0.5},{"$f":"valuePL(M34,'Utility Functions'!$W$3:$W$6,'Utility Functions'!$X$3:$X$6)","v":0},{"$f":"valueE(N34,'Utility Functions'!$Z$3,'Utility Functions'!$Z$4,'Utility Functions'!$Z$5,'Utility Functions'!$Z$6)","v":0},{"$f":"valuePL(O34,'Utility Functions'!$AA$3:$AA$5,'Utility Functions'!$AB$3:$AB$5)","v":0},{"$f":"valuePL(P34,'Utility Functions'!$AC$3:$AC$7,'Utility Functions'!$AD$3:$AD$7)","v":0.5},{"$f":"valuePL(Q34,'Utility Functions'!$AE$3:$AE$6,'Utility Functions'!$AF$3:$AF$6)","v":0},{"$f":"valuePL(R34,'Utility Functions'!$AG$3:$AG$6,'Utility Functions'!$AH$3:$AH$6)","v":1},{"$f":"valuePL(S34,'Utility Functions'!$AI$3:$AI$6,'Utility Functions'!$AJ$3:$AJ$6)","v":0.66},{"$f":"valuePL(T34,'Utility Functions'!$AK$3:$AK$8,'Utility Functions'!$AL$3:$AL$8)","v":0},{"$f":"valuePL(U34,'Utility Functions'!$AM$3:$AM$5,'Utility Functions'!$AN$3:$AN$5)","v":0},{"$f":"valuePL(V34,'Utility Functions'!$AO$3:$AO$5,'Utility Functions'!$AP$3:$AP$5)","v":0.5},{"$f":"valuePL(W34,'Utility Functions'!$AQ$3:$AQ$6,'Utility Functions'!$AR$3:$AR$6)","v":1},{"$f":"valuePL(X34,'Utility Functions'!$AS$3:$AS$6,'Utility Functions'!$AT$3:$AT$6)","v":0},{"$f":"valuePL(Y34,'Utility Functions'!$AU$3:$AU$6,'Utility Functions'!$AV$3:$AV$6)","v":0.8},{"$f":"valuePL(Z34,'Utility Functions'!$AW$3:$AW$5,'Utility Functions'!$AX$3:$AX$5)","v":1},{"$f":"valuePL(AA34,'Utility Functions'!$AY$3:$AY$6,'Utility Functions'!$AZ$3:$AZ$6)","v":1},{"$f":"valuePL(AB34,'Utility Functions'!$BA$3:$BA$5,'Utility Functions'!$BB$3:$BB$5)","v":0},{"$f":"valuePL(AC34,'Utility Functions'!$BC$3:$BC$5,'Utility Functions'!$BD$3:$BD$5)","v":0},10.246639728724558,null,10.246639728724558,3.2866397287245581,0.5,0,2.16,4.3]
[34,{"$f":"valueE(B35,'Utility Functions'!$B$3,'Utility Functions'!$B$4,'Utility Functions'!$B$5,'Utility Functions'!$B$6)","v":0},{"$f":"valueE(C35,'Utility Functions'!$D$3,'Utility Functions'!$D$4,'Utility Functions'!$D$5,'Utility Functions'!$D$6)","v":0},{"$f":"valuePL(D35,'Utility Functions'!$E$3:$E$5,'Utility Functions'!$F$3:$F$5)","v":0},{"$f":"valuePL(E35,'Utility Functions'!$G$3:$G$5,'Utility Functions'!$H$3:$H$5)","v":0},{"$f":"valuePL(F35,'Utility Functions'!$I$3:$I$4,'Utility Functions'!$J$3:$J$5)","v":0},{"$f":"valueE(G35,'Utility Functions'!$L$3,'Utility Functions'!$L$4,'Utility Functions'!$L$5,'Utility Functions'!$L$6)","v":0},{"$f":"valueE(H35,'Utility Functions'!$N$3,'Utility Functions'!$N$4,'Utility Functions'!$N$5,'Utility Functions'!$N$6)","v":1.1385199240986717E-2},{"$f":"valuePL(I35,'Utility Functions'!$O$3:$O$6,'Utility Functions'!$P$3:$P$6)","v":1},{"$f":"valuePL(J35,'Utility Functions'!$Q$3:$Q$6,'Utility Functions'!$R$3:$R$6)","v":0.91818181818181821},{"$f":"valuePL(K35,'Utility Functions'!$S$3:$S$7,'Utility Functions'!$T$3:$T$7)","v":1},{"$f":"valueE(L35,'Utility Functions'!$V$3,'Utility Functions'!$V$4,'Utility Functions'!$V$5,'Utility Functions'!$V$6)","v":1},{"$f":"valuePL(M35,'Utility Functions'!$W$3:$W$6,'Utility Functions'!$X$3:$X$6)","v":0.91818181818181821},{"$f":"valueE(N35,'Utility Functions'!$Z$3,'Utility Functions'!$Z$4,'Utility Functions'!$Z$5,'Utility Functions'!$Z$6)","v":0},{"$f":"valuePL(O35,'Utility Functions'!$AA$3:$AA$5,'Utility Functions'!$AB$3:$AB$5)","v":0},{"$f":"valuePL(P35,'Utility Functions'!$AC$3:$AC$7,'Utility Functions'!$AD$3:$AD$7)","v":0.5},{"$f":"valuePL(Q35,'Utility Functions'!$AE$3:$AE$6,'Utility Functions'!$AF$3:$AF$6)","v":0},{"$f":"valuePL(R35,'Utility Functions'!$AG$3:$AG$6,'Utility Functions'!$AH$3:$AH$6)","v":1},{"$f":"valuePL(S35,'Utility Functions'!$AI$3:$AI$6,'Utility Functions'!$AJ$3:$AJ$6)","v":1},{"$f":"valuePL(T35,'Utility Functions'!$AK$3:$AK$8,'Utility Functions'!$AL$3:$AL$8)","v":0.8},{"$f":"valuePL(U35,'Utility Functions'!$AM$3:$AM$5,'Utility Functions'!$AN$3:$AN$5)","v":0},{"$f":"valuePL(V35,'Utility Functions'!$AO$3:$AO$5,'Utility Functions'!$AP$3:$AP$5)","v":1},{"$f":"valuePL(W35,'Utility Functions'!$AQ$3:$AQ$6,'Utility Functions'!$AR$3:$AR$6)","v":1},{"$f":"valuePL(X35,'Utility Functions'!$AS$3:$AS$6,'Utility Functions'!$AT$3:$AT$6)","v":1},{"$f":"valuePL(Y35,'Utility Functions'!$AU$3:$AU$6,'Utility Functions'!$AV$3:$AV$6)","v":0},{"$f":"valuePL(Z35,'Utility Functions'!$AW$3:$AW$5,'Utility Functions'!$AX$3:$AX$5)","v":1},{"$f":"valuePL(AA35,'Utility Functions'!$AY$3:$AY$6,'Utility Functions'!$AZ$3:$AZ$6)","v":0.89999999999999991},{"$f":"valuePL(AB35,'Utility Functions'!$BA$3:$BA$5,'Utility Functions'!$BB$3:$BB$5)","v":0.25},{"$f":"valuePL(AC35,'Utility Functions'!$BC$3:$BC$5,'Utility Functions'!$BD$3:$BD$5)","v":0},13.297748835604624,null,13.297748835604624,0,4.847748835604623,0,3.3,5.15]
[35,{"$f":"valueE(B36,'Utility Functions'!$B$3,'Utility Functions'!$B$4,'Utility Functions'!$B$5,'Utility Functions'!$B$6)","v":0.79810469124896843},{"$f":"valueE(C36,'Utility Functions'!$D$3,'Utility Functions'!$D$4,'Utility Functions'!$D$5,'Utility Functions'!$D$6)","v":0.60939983135101949},{"$f":"valuePL(D36,'Utility Functions'!$E$3:$E$5,'Utility Functions'!$F$3:$F$5)","v":0.5},{"$f":"valuePL(E36,'Utility Functions'!$G$3:$G$5,'Utility Functions'!$H$3:$H$5)","v":0.5},{"$f":"valuePL(F36,'Utility Functions'!$I$3:$I$4,'Utility Functions'!$J$3:$J$5)","v":1},{"$f":"valueE(G36,'Utility Functions'!$L$3,'Utility Functions'!$L$4,'Utility Functions'!$L$5,'Utility Functions'!$L$6)","v":0},{"$f":"valueE(H36,'Utility Functions'!$N$3,'Utility Functions'!$N$4,'Utility Functions'!$N$5,'Utility Functions'!$N$6)","v":0},{"$f":"valuePL(I36,'Utility Functions'!$O$3:$O$6,'Utility Functions'!$P$3:$P$6)","v":0},{"$f":"valuePL(J36,'Utility Functions'!$Q$3:$Q$6,'Utility Functions'!$R$3:$R$6)","v":0},{"$f":"valuePL(K36,'Utility Functions'!$S$3:$S$7,'Utility Functions'!$T$3:$T$7)","v":1},{"$f":"valueE(L36,'Utility Functions'!$V$3,'Utility Functions'!$V$4,'Utility Functions'!$V$5,'Utility Functions'!$V$6)","v":0.66666666666666663},{"$f":"valuePL(M36,'Utility Functions'!$W$3:$W$6,'Utility Functions'!$X$3:$X$6)","v":0.1},{"$f":"valueE(N36,'Utility Functions'!$Z$3,'Utility Functions'!$Z$4,'Utility Functions'!$Z$5,'Utility Functions'!$Z$6)","v":1},{"$f":"valuePL(O36,'Utility Functions'!$AA$3:$AA$5,'Utility Functions'!$AB$3:$AB$5)","v":0},{"$f":"valuePL(P36,'Utility Functions'!$AC$3:$AC$7,'Utility Functions'!$AD$3:$AD$7)","v":0},{"$f":"valuePL(Q36,'Utility Functions'!$AE$3:$AE$6,'Utility Functions'!$AF$3:$AF$6)","v":0},{"$f":"valuePL(R36,'Utility Functions'!$AG$3:$AG$6,'Utility Functions'!$AH$3:$AH$6)","v":1},{"$f":"valuePL(S36,'Utility Functions'!$AI$3:$AI$6,'Utility Functions'!$AJ$3:$AJ$6)","v":1},{"$f":"valuePL(T36,'Utility Functions'!$AK$3:$AK$8,'Utility Functions'!$AL$3:$AL$8)","v":0.6},{"$f":"valuePL(U36,'Utility Functions'!$AM$3:$AM$5,'Utility Functions'!$AN$3:$AN$5)","v":0},{"$f":"valuePL(V36,'Utility Functions'!$AO$3:$AO$5,'Utility Functions'!$AP$3:$AP$5)","v":1},{"$f":"valuePL(W36,'Utility Functions'!$AQ$3:$AQ$6,'Utility Functions'!$AR$3:$AR$6)","v":0.75},{"$f":"valuePL(X36,'Utility Functions'!$AS$3:$AS$6,'Utility Functions'!$AT$3:$AT$6)","v":0},{"$f":"valuePL(Y36,'Utility Functions'!$AU$3:$AU$6,'Utility Functions'!$AV$3:$AV$6)","v":0.2},{"$f":"valuePL(Z36,'Utility Functions'!$AW$3:$AW$5,'Utility Functions'!$AX$3:$AX$5)","v":1},{"$f":"valuePL(AA36,'Utility Functions'!$AY$3:$AY$6,'Utility Functions'!$AZ$3:$AZ$6)","v":0},{"$f":"valuePL(AB36,'Utility Functions'!$BA$3:$BA$5,'Utility Functions'!$BB$3:$BB$5)","v":0.25},{"$f":"valuePL(AC36,'Utility Functions'!$BC$3:$BC$5,'Utility Functions'!$BD$3:$BD$5)","v":0.25},12.224171189266654,null,12.224171189266656,3.407504522599988,1.7666666666666666,1,2.6,3.45]
["Unweighted",{"$f":"SUMPRODUCT(B46:B80,$B$85:$B$119)","v":2.2879679218640305},{"$f":"SUMPRODUCT(C46:C80,$B$85:$B$119)","v":2.0544502672077192},{"$f":"SUMPRODUCT(D46:D80,$B$85:$B$119)","v":3},0.5,0,0,3.9848197343453511E-2,0.83818181818181825,0.08,0.3290909090909091,1.5,0.04,2.5,0.75,1,1.6,4,3.66,1.8,0.75,3,3.75,2.4000000000000004,3.4000000000000004,3.5,2.2999999999999998,2.5,1.5,null,null,"Unweighted",{"$f":"SUMPRODUCT(AG46:AG80,$B$85:$B$119)","v":7.8424181890717497},{"$f":"SUMPRODUCT(AH46:AH80,$B$85:$B$119)","v":2.8271209246161808},3.25,12.81,22.35]
["Weighted",{"$f":"B$81*Sens_Mgmt!I5","v":0.4081456450547486},{"$f":"C$81*Sens_Mgmt!J5","v":0.34645108194703422},{"$f":"D$81*Sens_Mgmt!K5","v":0.51234573672034056},{"$f":"E$81*Sens_Mgmt!L5","v":8.3192485430676366E-2},{"$f":"F$81*Sens_Mgmt!M5","v":0},{"$f":"G$81*Sens_Mgmt!N5","v":0},{"$f":"H$81*Sens_Mgmt!O5","v":7.0423900380868848E-5},{"$f":"I$81*Sens_Mgmt!P5","v":2.5145281763313126E-3},{"$f":"J$81*Sens_Mgmt!Q5","v":2.3386638276662105E-4},{"$f":"K$81*Sens_Mgmt!R5","v":8.4759865824688015E-4},{"$f":"L$81*Sens_Mgmt!S5","v":3.9598050031177754E-3},{"$f":"M$81*Sens_Mgmt!T5","v":7.9732094610938999E-5},{"$f":"N$81*Sens_Mgmt!U5","v":8.9285714285714263E-3},{"$f":"O$81*Sens_Mgmt!V5","v":8.0357142857142832E-3},{"$f":"P$81*Sens_Mgmt!W5","v":4.7068380839180484E-3},{"$f":"Q$81*Sens_Mgmt!X5","v":8.3014546862304282E-3},{"$f":"R$81*Sens_Mgmt!Y5","v":2.3755615747631059E-2},{"$f":"S$81*Sens_Mgmt!Z5","v":1.9037857274998005E-2},{"$f":"T$81*Sens_Mgmt!AA5","v":6.8149973108879219E-3},{"$f":"U$81*Sens_Mgmt!AB5","v":2.8121755546415004E-3},{"$f":"V$81*Sens_Mgmt!AC5","v":1.9448702786154504E-2},{"$f":"W$81*Sens_Mgmt!AD5","v":1.7532309623938657E-2},{"$f":"X$81*Sens_Mgmt!AE5","v":1.1999833272681582E-2},{"$f":"Y$81*Sens_Mgmt!AF5","v":2.1125149554275142E-2},{"$f":"Z$81*Sens_Mgmt!AG5","v":1.8842800840952904E-2},{"$f":"AA$81*Sens_Mgmt!AH5","v":9.5944809581660628E-3},{"$f":"AB$81*Sens_Mgmt!AI5","v":1.1059917156316225E-2},{"$f":"AC$81*Sens_Mgmt!AJ5","v":6.1884891966111251E-3},null,null,"Weighted for SA",{"$f":"AG81*#REF!","v":{"$error":"#REF!"}},{"$f":"AH81*#REF!","v":{"$error":"#REF!"}},{"$f":"AI81*#REF!","v":{"$error":"#REF!"}},{"$f":"AJ81*#REF!","v":{"$error":"#REF!"}},{"$f":"AK81*#REF!","v":{"$error":"#REF!"}}]
[]
[null,"Decision variable","Benefit","Cost"]
[{"$f":"A2","v":1},0,{"$f":"AD46","v":17.117643866192076},{"$f":"AD2","v":700000}]
[2,0,{"$f":"AD47","v":12.641625800575998},{"$f":"AD3","v":5400000}]
[3,1,11.563541444302563,250000]
[4,0,9.2460291931089209,150000]
[5,1,9.5663279251355373,220000]
[6,0,5.9008471271383875,110000]
[7,0,15.54287399641135,1000000]
[8,0,14.227364688589191,5000000]
[9,0,11.893773577166716,25000]
[10,0,9.01,900000]
[11,0,13.174032258064516,1500000]
[12,0,9.4195802436719873,100000]
[13,1,7.5245670174228056,250000]
[14,0,10.338706637075108,500000]
[15,0,15.150477261414375,800000]
[16,0,15.119696969696969,2000000]
[17,0,10.876550515651747,500000]
[18,1,10.178462998102468,300000]
[19,0,9.3165012474871283,750000]
[20,0,15.091255033092194,1500000]
[21,0,9.5500000000000007,900000]
[22,0,9.471742567994939,750000]
[23,0,9.5321507448123199,1000000]
[24,0,9.4968811881212041,150000]
[25,0,13.870607417804099,250000]
[26,0,11.064076562960208,500000]
[27,0,9.0147596715374529,1200000]
[28,0,12.499282052393189,500000]
[29,0,12.453684519169958,2000000]
[30,0,7.6494228467205527,250000]
[31,0,9.2059990264483247,650000]
[32,0,14.52045942179552,200000]
[33,1,10.246639728724558,400000]
[34,0,13.297748835604624,900000]
[35,0,12.224171189266654,900000]
[null,{"$f":"SUM(B85:B119)","v":5},{"$f":"SUMPRODUCT(C85:C119,B85:B119)","v":49.079539113687936},{"$f":"SUMPRODUCT(B85:B119,D85:D119)","v":1420000}]
[]
[null,null,"Cost constraint",15000000]

{"sheet":"Portfolio_E_Mgmt","index":42,"n_rows":122,"n_cols":37,"rows_kept":122,"cut":false,"hidden":false,"merged":[]}
["Project","manage_species","manage_spatial","manage_uncertainty","manage_currentpractices","manage_adaptivemanagement","pop_a","pop_b","pop_spatialscope","pop_temporalscope","hab_quantity","hab_quality","hab_temporal","ecoprocess_spp","ecoprocess_uncertainty","datasharing","broaderimpacts","exisitingpriorities","partners","leverage","alignment","objhyp","response","targettaxa","surveydesign","stats","datamanagement","budget","timeline","cost"]
[1,9,6.25,2,2,0,186,1054,75,5,0,2,0,0,0,4,0,2,3,0,0,2,3,3,3,2,3,2,2,700000]
[2,3,28.2,1,0,0,0,0,0,0,0,2,0,4,1,0,0,3,3,0,0,2,3,3,3,2,3,2,2,5400000]
[3,8,28.2,2,0,0,0,0,0,0,0,2,0,5,1,0,2,0,0,0,1,2,3,3,3,2,1,2,2,250000]
[4,1,6.25,2,0,0,0,0,0,0,0,2,0,4,1,0,1,3,3,4,0,1,3,3,1,0,0,2,1,150000]
[5,4,3.1,2,0,0,0,0,50,2,0,2,0,0,0,0,1,3,3,4,1,0,3,3,2,0,0,2,1,220000]
[6,10,6.2E-2,2,0,0,0,0,10,2,0,2,0,0,0,0,1,0,3,3,0,0,0,3,0,0,0,2,1,110000]
[7,52,18.8,0,2,0,0,0,85,12,85,8,12,8,1,0,0,3,3,0,0,2,0,1,3,2,2,0,2,1000000]
[8,3,18.8,2,1,1,0,0,14,14,14,8,14,0,0,0,3,1,3,0,0,2,3,3,3,2,0,1,1,5000000]
[9,9,15.6,2,1,0,70,140,0,0,0,2,0,0,0,3,0,3,2,1,0,2,3,3,1,2,1,1,2,25000]
[10,0,0,0,0,0,0,0,0,0,0,2,0,6,2,1,2,3,2,2,0,0,2,3,3,1,1,0,2,900000]
[11,0,0,0,0,0,6,102,52,15,52,8,15,3,1,1,0,3,3,2,2,2,1,3,3,1,2,0,1,1500000]
[12,2,15.6,2,1,0,0,0,0,0,0,2,0,0,0,0,1,3,3,3,0,1,1,3,1,2,1,2,0,100000]
[13,0,0,0,0,0,0,12,39,2,39,8,2,7,1,1,0,3,3,0,0,1,0,1,0,2,1,1,1,250000]
[14,6,15.6,1,1,0,0,0,0,0,0,2,0,6,1,1,0,3,3,0,0,1,1,3,3,1,2,1,1,500000]
[15,23,12.5,2,1,1,0,0,23,3,23,8,3,1,2,2,0,2,3,3,2,0,3,1,1,2,3,2,1,800000]
[16,0,0,0,0,0,0,0,100,15,100,7,15,0,0,3,0,3,3,5,0,2,2,2,1,2,3,2,2,2000000]
[17,2,15.6,2,1,1,58,290,0,0,0,8,3,0,0,0,0,3,2,0,0,2,3,1,0,1,0,2,1,500000]
[18,0,0,0,0,0,0,30,0,0,0,2,0,8,1,1,3,3,3,5,1,2,2,1,2,1,2,1,0,300000]
[19,8,3.125,1,2,0,0,0,0,0,0,2,0,8,2,0,0,2,3,0,0,1,1,3,2,0,1,0,1,750000]
[20,9,15.6,1,2,0,0,435,76,10,76,6,10,8,2,1,0,3,3,3,2,1,0,0,1,2,1,0,1,1500000]
[21,0,0,0,0,0,0,0,0,0,0,2,0,8,2,0,1,3,3,5,1,0,2,3,1,0,3,1,2,900000]
[22,0,0,0,0,0,16,64,0,0,0,2,0,1,2,4,2,2,3,5,0,1,2,1,0,2,1,2,1,750000]
[23,9,18.8,2,0,0,0,0,0,0,0,2,0,0,0,3,0,3,3,5,0,2,1,2,1,1,1,0,1,1000000]
[24,5,6.25,2,0,0,0,0,0,0,0,2,0,0,0,0,0,3,3,5,0,0,3,1,3,2,1,0,2,150000]
[25,9,18.8,2,0,0,176,308,0,0,0,2,0,8,1,2,2,3,3,0,0,2,1,3,2,1,1,2,2,250000]
[26,17,18.8,2,1,0,0,0,0,0,0,2,0,0,0,3,0,3,3,4,0,2,1,0,2,0,1,2,2,500000]
[27,0,6.25,2,0,0,0,0,0,0,80,2,5,0,0,2,2,3,3,5,0,1,2,3,1,0,0,0,0,1200000]
[28,3,6.25,2,0,1,0,0,0,0,0,4,5,0,0,4,0,3,3,4,0,2,3,3,1,0,2,2,1,500000]
[29,9,12.5,2,1,0,0,0,15,12,15,8,12,0,0,1,0,3,3,4,0,2,1,0,2,1,1,1,2,2000000]
[30,33,18.8,2,0,0,0,0,0,0,0,4,2,0,0,0,0,1,1,0,0,0,3,1,2,0,2,2,0,250000]
[31,4,18.8,1,0,0,0,0,65,4,0,4,4,0,0,2,0,3,2,3,0,1,0,1,1,2,2,1,1,650000]
[32,5,3.125,2,2,1,6,102,40,16,40,8,16,0,0,2,3,3,0,4,0,0,2,1,2,1,0,2,1,200000]
[33,14,18.8,2,1,0,0,0,0,0,0,5,0,0,0,2,0,3,2,0,0,1,3,0,2,2,3,0,0,400000]
[34,0,0,0,0,0,0,12,100,15,100,8,15,0,0,2,0,3,3,4,0,2,3,3,0,2,2,1,0,900000]
[35,8,9.4,1,1,1,0,0,0,0,100,6,5,8,0,0,0,3,3,3,0,2,2,0,1,2,0,1,1,900000]
["CV",{"$f":"_xlfn.STDEV.S(B2:B36)/AVERAGE(B2:B36)","v":1.383842854444886},{"$f":"_xlfn.STDEV.S(C2:C36)/AVERAGE(C2:C36)","v":0.84395823753626376},{"$f":"_xlfn.STDEV.S(D2:D36)/AVERAGE(D2:D36)","v":0.65948586466528381},{"$f":"_xlfn.STDEV.S(E2:E36)/AVERAGE(E2:E36)","v":1.2933654230908831},2.2305806858480666,2.9881459898804135,2.7250501152884543,1.5394659205075842,1.5790297611729722,1.6828143944790142,0.63288342730791625,1.4346340567392073,1.2744250477591585,1.2909944487358058,1.043011114951035,1.4910544805781871,0.32582327651393111,0.30721159062514791,0.8219511329380369,2.1760730956581078,0.64975875258290616,0.58618247649425104,0.61083323417736113,0.63333947951472869,0.68629571860885286,0.76505300516434493,0.69428102652373402,0.60312027652595823]
["sd",{"$f":"_xlfn.STDEV.S(B2:B36)","v":10.477667326511279}]
["mean",{"$f":"AVERAGE(B2:B36)","v":7.5714285714285712}]
[null,{"$f":"B1","v":"manage_species"},{"$f":"C1","v":"manage_spatial"},"manage_uncertainty","manage_currentpractices","manage_adaptivemanagement","pop_a","pop_b","pop_spatialscope","pop_temporalscope","hab_quantity","hab_quality","hab_temporal","ecoprocess_spp","ecoprocess_uncertainty","datasharing","broaderimpacts","exisitingpriorities","partners","leverage","alignment","objhyp","response","targettaxa","surveydesign","stats","datamanagement","budget","timeline"]
[null,"Metric 1","Metric 2","Metric 3","Metric 4","Metric 5","Metric 6a","Metric 6b","Metric 7","Metric 8","Metric 9","Metric 10","Metric 11","Metric 12","Metric 13","Metric 14","Metric 15","Metric 16","Metric 17","Metric 18","Metric 19","Metric 20","Metric 21","Metric 22","Metric 23","Metric 24","Metric 25","Metric 26","Metric 27"]
["Weights",0.03,0.03,0.03,0.03,0.04,1.4999999999999999E-2,1.4999999999999999E-2,0.03,0.02,0.02,0.02,0.02,0.03,0.09,0.04,0.04,0.05,0.05,0.03,0.03,0.05,0.04,0.04,0.05,0.05,0.04,0.04,0.03]
[]
[null,"Unweighted"]
["Project",null,null,null,null,null,null,null,null,null,null,null,null,null,null,null,null,null,null,null,null,null,null,null,null,null,null,null,null,"Unweighted total",null,"Unweighted total","management","status","ecol_proc","integration","rigor"]
[{"$f":"A2","v":1},{"$f":"valueE(B2,'Utility Functions'!$B$3,'Utility Functions'!$B$4,'Utility Functions'!$B$5,'Utility Functions'!$B$6)","v":0.83470237647280454},{"$f":"valueE(C2,'Utility Functions'!$D$3,'Utility Functions'!$D$4,'Utility Functions'!$D$5,'Utility Functions'!$D$6)","v":0.46475967153745396},{"$f":"valuePL(D2,'Utility Functions'!$E$3:$E$5,'Utility Functions'!$F$3:$F$5)","v":1},{"$f":"valuePL(E2,'Utility Functions'!$G$3:$G$5,'Utility Functions'!$H$3:$H$5)","v":1},{"$f":"valuePL(F2,'Utility Functions'!$I$3:$I$4,'Utility Functions'!$J$3:$J$5)","v":0},{"$f":"valueE(G2,'Utility Functions'!$L$3,'Utility Functions'!$L$4,'Utility Functions'!$L$5,'Utility Functions'!$L$6)","v":1},{"$f":"valueE(H2,'Utility Functions'!$N$3,'Utility Functions'!$N$4,'Utility Functions'!$N$5,'Utility Functions'!$N$6)","v":1},{"$f":"valuePL(I2,'Utility Functions'!$O$3:$O$6,'Utility Functions'!$P$3:$P$6)","v":0.91818181818181821},{"$f":"valuePL(J2,'Utility Functions'!$Q$3:$Q$6,'Utility Functions'!$R$3:$R$6)","v":0.1},{"$f":"valuePL(K2,'Utility Functions'!$S$3:$S$7,'Utility Functions'!$T$3:$T$7)","v":0},{"$f":"valueE(L2,'Utility Functions'!$V$3,'Utility Functions'!$V$4,'Utility Functions'!$V$5,'Utility Functions'!$V$6)","v":0},{"$f":"valuePL(M2,'Utility Functions'!$W$3:$W$6,'Utility Functions'!$X$3:$X$6)","v":0},{"$f":"valueE(N2,'Utility Functions'!$Z$3,'Utility Functions'!$Z$4,'Utility Functions'!$Z$5,'Utility Functions'!$Z$6)","v":0},{"$f":"valuePL(O2,'Utility Functions'!$AA$3:$AA$5,'Utility Functions'!$AB$3:$AB$5)","v":0},{"$f":"valuePL(P2,'Utility Functions'!$AC$3:$AC$7,'Utility Functions'!$AD$3:$AD$7)","v":1},{"$f":"valuePL(Q2,'Utility Functions'!$AE$3:$AE$6,'Utility Functions'!$AF$3:$AF$6)","v":0},{"$f":"valuePL(R2,'Utility Functions'!$AG$3:$AG$6,'Utility Functions'!$AH$3:$AH$6)","v":0.8},{"$f":"valuePL(S2,'Utility Functions'!$AI$3:$AI$6,'Utility Functions'!$AJ$3:$AJ$6)","v":1},{"$f":"valuePL(T2,'Utility Functions'!$AK$3:$AK$8,'Utility Functions'!$AL$3:$AL$8)","v":0},{"$f":"valuePL(U2,'Utility Functions'!$AM$3:$AM$5,'Utility Functions'!$AN$3:$AN$5)","v":0},{"$f":"valuePL(V2,'Utility Functions'!$AO$3:$AO$5,'Utility Functions'!$AP$3:$AP$5)","v":1},{"$f":"valuePL(W2,'Utility Functions'!$AQ$3:$AQ$6,'Utility Functions'!$AR$3:$AR$6)","v":1},{"$f":"valuePL(X2,'Utility Functions'!$AS$3:$AS$6,'Utility Functions'!$AT$3:$AT$6)","v":1},{"$f":"valuePL(Y2,'Utility Functions'!$AU$3:$AU$6,'Utility Functions'!$AV$3:$AV$6)","v":1},{"$f":"valuePL(Z2,'Utility Functions'!$AW$3:$AW$5,'Utility Functions'!$AX$3:$AX$5)","v":1},{"$f":"valuePL(AA2,'Utility Functions'!$AY$3:$AY$6,'Utility Functions'!$AZ$3:$AZ$6)","v":1},{"$f":"valuePL(AB2,'Utility Functions'!$BA$3:$BA$5,'Utility Functions'!$BB$3:$BB$5)","v":1},{"$f":"valuePL(AC2,'Utility Functions'!$BC$3:$BC$5,'Utility Functions'!$BD$3:$BD$5)","v":1},{"$f":"SUM(B46:AC46)","v":17.117643866192076},null,{"$f":"SUM(AG46:AK46)","v":17.117643866192076},{"$f":"SUM(B46:F46)","v":3.2994620480102586},{"$f":"SUM(G46:M46)","v":3.0181818181818181},{"$f":"SUM(N46:O46)","v":0},{"$f":"SUM(P46:U46)","v":2.8},{"$f":"SUM(V46:AC46)","v":8}]
[2,{"$f":"valueE(B3,'Utility Functions'!$B$3,'Utility Functions'!$B$4,'Utility Functions'!$B$5,'Utility Functions'!$B$6)","v":0.4511890475224023},{"$f":"valueE(C3,'Utility Functions'!$D$3,'Utility Functions'!$D$4,'Utility Functions'!$D$5,'Utility Functions'!$D$6)","v":0.94043675305359531},{"$f":"valuePL(D3,'Utility Functions'!$E$3:$E$5,'Utility Functions'!$F$3:$F$5)","v":0.5},{"$f":"valuePL(E3,'Utility Functions'!$G$3:$G$5,'Utility Functions'!$H$3:$H$5)","v":0},{"$f":"valuePL(F3,'Utility Functions'!$I$3:$I$4,'Utility Functions'!$J$3:$J$5)","v":0},{"$f":"valueE(G3,'Utility Functions'!$L$3,'Utility Functions'!$L$4,'Utility Functions'!$L$5,'Utility Functions'!$L$6)","v":0},{"$f":"valueE(H3,'Utility Functions'!$N$3,'Utility Functions'!$N$4,'Utility Functions'!$N$5,'Utility Functions'!$N$6)","v":0},{"$f":"valuePL(I3,'Utility Functions'!$O$3:$O$6,'Utility Functions'!$P$3:$P$6)","v":0},{"$f":"valuePL(J3,'Utility Functions'!$Q$3:$Q$6,'Utility Functions'!$R$3:$R$6)","v":0},{"$f":"valuePL(K3,'Utility Functions'!$S$3:$S$7,'Utility Functions'!$T$3:$T$7)","v":0},{"$f":"valueE(L3,'Utility Functions'!$V$3,'Utility Functions'!$V$4,'Utility Functions'!$V$5,'Utility Functions'!$V$6)","v":0},{"$f":"valuePL(M3,'Utility Functions'!$W$3:$W$6,'Utility Functions'!$X$3:$X$6)","v":0},{"$f":"valueE(N3,'Utility Functions'!$Z$3,'Utility Functions'!$Z$4,'Utility Functions'!$Z$5,'Utility Functions'!$Z$6)","v":0.5},{"$f":"valuePL(O3,'Utility Functions'!$AA$3:$AA$5,'Utility Functions'!$AB$3:$AB$5)","v":0.25},{"$f":"valuePL(P3,'Utility Functions'!$AC$3:$AC$7,'Utility Functions'!$AD$3:$AD$7)","v":0},{"$f":"valuePL(Q3,'Utility Functions'!$AE$3:$AE$6,'Utility Functions'!$AF$3:$AF$6)","v":0},{"$f":"valuePL(R3,'Utility Functions'!$AG$3:$AG$6,'Utility Functions'!$AH$3:$AH$6)","v":1},{"$f":"valuePL(S3,'Utility Functions'!$AI$3:$AI$6,'Utility Functions'!$AJ$3:$AJ$6)","v":1},{"$f":"valuePL(T3,'Utility Functions'!$AK$3:$AK$8,'Utility Functions'!$AL$3:$AL$8)","v":0},{"$f":"valuePL(U3,'Utility Functions'!$AM$3:$AM$5,'Utility Functions'!$AN$3:$AN$5)","v":0},{"$f":"valuePL(V3,'Utility Functions'!$AO$3:$AO$5,'Utility Functions'!$AP$3:$AP$5)","v":1},{"$f":"valuePL(W3,'Utility Functions'!$AQ$3:$AQ$6,'Utility Functions'!$AR$3:$AR$6)","v":1},{"$f":"valuePL(X3,'Utility Functions'!$AS$3:$AS$6,'Utility Functions'!$AT$3:$AT$6)","v":1},{"$f":"valuePL(Y3,'Utility Functions'!$AU$3:$AU$6,'Utility Functions'!$AV$3:$AV$6)","v":1},{"$f":"valuePL(Z3,'Utility Functions'!$AW$3:$AW$5,'Utility Functions'!$AX$3:$AX$5)","v":1},{"$f":"valuePL(AA3,'Utility Functions'!$AY$3:$AY$6,'Utility Functions'!$AZ$3:$AZ$6)","v":1},{"$f":"valuePL(AB3,'Utility Functions'!$BA$3:$BA$5,'Utility Functions'!$BB$3:$BB$5)","v":1},{"$f":"valuePL(AC3,'Utility Functions'!$BC$3:$BC$5,'Utility Functions'!$BD$3:$BD$5)","v":1},{"$f":"SUM(B47:AC47)","v":12.641625800575998},null,{"$f":"SUM(AG47:AK47)","v":12.641625800575998},{"$f":"SUM(B47:F47)","v":1.8916258005759976},{"$f":"SUM(G47:M47)","v":0},{"$f":"SUM(N47:O47)","v":0.75},{"$f":"SUM(P47:U47)","v":2},{"$f":"SUM(V47:AC47)","v":8}]
[3,{"$f":"valueE(B4,'Utility Functions'!$B$3,'Utility Functions'!$B$4,'Utility Functions'!$B$5,'Utility Functions'!$B$6)","v":0.79810469124896843},{"$f":"valueE(C4,'Utility Functions'!$D$3,'Utility Functions'!$D$4,'Utility Functions'!$D$5,'Utility Functions'!$D$6)","v":0.94043675305359531},{"$f":"valuePL(D4,'Utility Functions'!$E$3:$E$5,'Utility Functions'!$F$3:$F$5)","v":1},{"$f":"valuePL(E4,'Utility Functions'!$G$3:$G$5,'Utility Functions'!$H$3:$H$5)","v":0},{"$f":"valuePL(F4,'Utility Functions'!$I$3:$I$4,'Utility Functions'!$J$3:$J$5)","v":0},{"$f":"valueE(G4,'Utility Functions'!$L$3,'Utility Functions'!$L$4,'Utility Functions'!$L$5,'Utility Functions'!$L$6)","v":0},{"$f":"valueE(H4,'Utility Functions'!$N$3,'Utility Functions'!$N$4,'Utility Functions'!$N$5,'Utility Functions'!$N$6)","v":0},{"$f":"valuePL(I4,'Utility Functions'!$O$3:$O$6,'Utility Functions'!$P$3:$P$6)","v":0},{"$f":"valuePL(J4,'Utility Functions'!$Q$3:$Q$6,'Utility Functions'!$R$3:$R$6)","v":0},{"$f":"valuePL(K4,'Utility Functions'!$S$3:$S$7,'Utility Functions'!$T$3:$T$7)","v":0},{"$f":"valueE(L4,'Utility Functions'!$V$3,'Utility Functions'!$V$4,'Utility Functions'!$V$5,'Utility Functions'!$V$6)","v":0},{"$f":"valuePL(M4,'Utility Functions'!$W$3:$W$6,'Utility Functions'!$X$3:$X$6)","v":0},{"$f":"valueE(N4,'Utility Functions'!$Z$3,'Utility Functions'!$Z$4,'Utility Functions'!$Z$5,'Utility Functions'!$Z$6)","v":0.625},{"$f":"valuePL(O4,'Utility Functions'!$AA$3:$AA$5,'Utility Functions'!$AB$3:$AB$5)","v":0.25},{"$f":"valuePL(P4,'Utility Functions'!$AC$3:$AC$7,'Utility Functions'!$AD$3:$AD$7)","v":0},{"$f":"valuePL(Q4,'Utility Functions'!$AE$3:$AE$6,'Utility Functions'!$AF$3:$AF$6)","v":0.5},{"$f":"valuePL(R4,'Utility Functions'!$AG$3:$AG$6,'Utility Functions'!$AH$3:$AH$6)","v":0},{"$f":"valuePL(S4,'Utility Functions'!$AI$3:$AI$6,'Utility Functions'!$AJ$3:$AJ$6)","v":0},{"$f":"valuePL(T4,'Utility Functions'!$AK$3:$AK$8,'Utility Functions'!$AL$3:$AL$8)","v":0},{"$f":"valuePL(U4,'Utility Functions'!$AM$3:$AM$5,'Utility Functions'!$AN$3:$AN$5)","v":0.25},{"$f":"valuePL(V4,'Utility Functions'!$AO$3:$AO$5,'Utility Functions'!$AP$3:$AP$5)","v":1},{"$f":"valuePL(W4,'Utility Functions'!$AQ$3:$AQ$6,'Utility Functions'!$AR$3:$AR$6)","v":1},{"$f":"valuePL(X4,'Utility Functions'!$AS$3:$AS$6,'Utility Functions'!$AT$3:$AT$6)","v":1},{"$f":"valuePL(Y4,'Utility Functions'!$AU$3:$AU$6,'Utility Functions'!$AV$3:$AV$6)","v":1},{"$f":"valuePL(Z4,'Utility Functions'!$AW$3:$AW$5,'Utility Functions'!$AX$3:$AX$5)","v":1},{"$f":"valuePL(AA4,'Utility Functions'!$AY$3:$AY$6,'Utility Functions'!$AZ$3:$AZ$6)","v":0.2},{"$f":"valuePL(AB4,'Utility Functions'!$BA$3:$BA$5,'Utility Functions'!$BB$3:$BB$5)","v":1},{"$f":"valuePL(AC4,'Utility Functions'!$BC$3:$BC$5,'Utility Functions'!$BD$3:$BD$5)","v":1},11.563541444302563,null,11.563541444302565,2.7385414443025637,0,0.875,0.75,7.2]
[4,{"$f":"valueE(B5,'Utility Functions'!$B$3,'Utility Functions'!$B$4,'Utility Functions'!$B$5,'Utility Functions'!$B$6)","v":0.1812695215714665},{"$f":"valueE(C5,'Utility Functions'!$D$3,'Utility Functions'!$D$4,'Utility Functions'!$D$5,'Utility Functions'!$D$6)","v":0.46475967153745396},{"$f":"valuePL(D5,'Utility Functions'!$E$3:$E$5,'Utility Functions'!$F$3:$F$5)","v":1},{"$f":"valuePL(E5,'Utility Functions'!$G$3:$G$5,'Utility Functions'!$H$3:$H$5)","v":0},{"$f":"valuePL(F5,'Utility Functions'!$I$3:$I$4,'Utility Functions'!$J$3:$J$5)","v":0},{"$f":"valueE(G5,'Utility Functions'!$L$3,'Utility Functions'!$L$4,'Utility Functions'!$L$5,'Utility Functions'!$L$6)","v":0},{"$f":"valueE(H5,'Utility Functions'!$N$3,'Utility Functions'!$N$4,'Utility Functions'!$N$5,'Utility Functions'!$N$6)","v":0},{"$f":"valuePL(I5,'Utility Functions'!$O$3:$O$6,'Utility Functions'!$P$3:$P$6)","v":0},{"$f":"valuePL(J5,'Utility Functions'!$Q$3:$Q$6,'Utility Functions'!$R$3:$R$6)","v":0},{"$f":"valuePL(K5,'Utility Functions'!$S$3:$S$7,'Utility Functions'!$T$3:$T$7)","v":0},{"$f":"valueE(L5,'Utility Functions'!$V$3,'Utility Functions'!$V$4,'Utility Functions'!$V$5,'Utility Functions'!$V$6)","v":0},{"$f":"valuePL(M5,'Utility Functions'!$W$3:$W$6,'Utility Functions'!$X$3:$X$6)","v":0},{"$f":"valueE(N5,'Utility Functions'!$Z$3,'Utility Functions'!$Z$4,'Utility Functions'!$Z$5,'Utility Functions'!$Z$6)","v":0.5},{"$f":"valuePL(O5,'Utility Functions'!$AA$3:$AA$5,'Utility Functions'!$AB$3:$AB$5)","v":0.25},{"$f":"valuePL(P5,'Utility Functions'!$AC$3:$AC$7,'Utility Functions'!$AD$3:$AD$7)","v":0},{"$f":"valuePL(Q5,'Utility Functions'!$AE$3:$AE$6,'Utility Functions'!$AF$3:$AF$6)","v":0.1},{"$f":"valuePL(R5,'Utility Functions'!$AG$3:$AG$6,'Utility Functions'!$AH$3:$AH$6)","v":1},{"$f":"valuePL(S5,'Utility Functions'!$AI$3:$AI$6,'Utility Functions'!$AJ$3:$AJ$6)","v":1},{"$f":"valuePL(T5,'Utility Functions'!$AK$3:$AK$8,'Utility Functions'!$AL$3:$AL$8)","v":0.8},{"$f":"valuePL(U5,'Utility Functions'!$AM$3:$AM$5,'Utility Functions'!$AN$3:$AN$5)","v":0},{"$f":"valuePL(V5,'Utility Functions'!$AO$3:$AO$5,'Utility Functions'!$AP$3:$AP$5)","v":0.5},{"$f":"valuePL(W5,'Utility Functions'!$AQ$3:$AQ$6,'Utility Functions'!$AR$3:$AR$6)","v":1},{"$f":"valuePL(X5,'Utility Functions'!$AS$3:$AS$6,'Utility Functions'!$AT$3:$AT$6)","v":1},{"$f":"valuePL(Y5,'Utility Functions'!$AU$3:$AU$6,'Utility Functions'!$AV$3:$AV$6)","v":0.2},{"$f":"valuePL(Z5,'Utility Functions'!$AW$3:$AW$5,'Utility Functions'!$AX$3:$AX$5)","v":0},{"$f":"valuePL(AA5,'Utility Functions'!$AY$3:$AY$6,'Utility Functions'!$AZ$3:$AZ$6)","v":0},{"$f":"valuePL(AB5,'Utility Functions'!$BA$3:$BA$5,'Utility Functions'!$BB$3:$BB$5)","v":1},{"$f":"valuePL(AC5,'Utility Functions'!$BC$3:$BC$5,'Utility Functions'!$BD$3:$BD$5)","v":0.25},9.2460291931089209,null,9.2460291931089209,1.6460291931089204,0,0.75,2.9000000000000004,3.95]
[5,{"$f":"valueE(B6,'Utility Functions'!$B$3,'Utility Functions'!$B$4,'Utility Functions'!$B$5,'Utility Functions'!$B$6)","v":0.55067187023002029},{"$f":"valueE(C6,'Utility Functions'!$D$3,'Utility Functions'!$D$4,'Utility Functions'!$D$5,'Utility Functions'!$D$6)","v":0.26656514581460788},{"$f":"valuePL(D6,'Utility Functions'!$E$3:$E$5,'Utility Functions'!$F$3:$F$5)","v":1},{"$f":"valuePL(E6,'Utility Functions'!$G$3:$G$5,'Utility Functions'!$H$3:$H$5)","v":0},{"$f":"valuePL(F6,'Utility Functions'!$I$3:$I$4,'Utility Functions'!$J$3:$J$5)","v":0},{"$f":"valueE(G6,'Utility Functions'!$L$3,'Utility Functions'!$L$4,'Utility Functions'!$L$5,'Utility Functions'!$L$6)","v":0},{"$f":"valueE(H6,'Utility Functions'!$N$3,'Utility Functions'!$N$4,'Utility Functions'!$N$5,'Utility Functions'!$N$6)","v":0},{"$f":"valuePL(I6,'Utility Functions'!$O$3:$O$6,'Utility Functions'!$P$3:$P$6)","v":0.50909090909090915},{"$f":"valuePL(J6,'Utility Functions'!$Q$3:$Q$6,'Utility Functions'!$R$3:$R$6)","v":0.04},{"$f":"valuePL(K6,'Utility Functions'!$S$3:$S$7,'Utility Functions'!$T$3:$T$7)","v":0},{"$f":"valueE(L6,'Utility Functions'!$V$3,'Utility Functions'!$V$4,'Utility Functions'!$V$5,'Utility Functions'!$V$6)","v":0},{"$f":"valuePL(M6,'Utility Functions'!$W$3:$W$6,'Utility Functions'!$X$3:$X$6)","v":0},{"$f":"valueE(N6,'Utility Functions'!$Z$3,'Utility Functions'!$Z$4,'Utility Functions'!$Z$5,'Utility Functions'!$Z$6)","v":0},{"$f":"valuePL(O6,'Utility Functions'!$AA$3:$AA$5,'Utility Functions'!$AB$3:$AB$5)","v":0},{"$f":"valuePL(P6,'Utility Functions'!$AC$3:$AC$7,'Utility Functions'!$AD$3:$AD$7)","v":0},{"$f":"valuePL(Q6,'Utility Functions'!$AE$3:$AE$6,'Utility Functions'!$AF$3:$AF$6)","v":0.1},{"$f":"valuePL(R6,'Utility Functions'!$AG$3:$AG$6,'Utility Functions'!$AH$3:$AH$6)","v":1},{"$f":"valuePL(S6,'Utility Functions'!$AI$3:$AI$6,'Utility Functions'!$AJ$3:$AJ$6)","v":1},{"$f":"valuePL(T6,'Utility Functions'!$AK$3:$AK$8,'Utility Functions'!$AL$3:$AL$8)","v":0.8},{"$f":"valuePL(U6,'Utility Functions'!$AM$3:$AM$5,'Utility Functions'!$AN$3:$AN$5)","v":0.25},{"$f":"valuePL(V6,'Utility Functions'!$AO$3:$AO$5,'Utility Functions'!$AP$3:$AP$5)","v":0},{"$f":"valuePL(W6,'Utility Functions'!$AQ$3:$AQ$6,'Utility Functions'!$AR$3:$AR$6)","v":1},{"$f":"valuePL(X6,'Utility Functions'!$AS$3:$AS$6,'Utility Functions'!$AT$3:$AT$6)","v":1},{"$f":"valuePL(Y6,'Utility Functions'!$AU$3:$AU$6,'Utility Functions'!$AV$3:$AV$6)","v":0.8},{"$f":"valuePL(Z6,'Utility Functions'!$AW$3:$AW$5,'Utility Functions'!$AX$3:$AX$5)","v":0},{"$f":"valuePL(AA6,'Utility Functions'!$AY$3:$AY$6,'Utility Functions'!$AZ$3:$AZ$6)","v":0},{"$f":"valuePL(AB6,'Utility Functions'!$BA$3:$BA$5,'Utility Functions'!$BB$3:$BB$5)","v":1},{"$f":"valuePL(AC6,'Utility Functions'!$BC$3:$BC$5,'Utility Functions'!$BD$3:$BD$5)","v":0.25},9.5663279251355373,null,9.5663279251355391,1.8172370160446283,0.54909090909090918,0,3.1500000000000004,4.05]
[6,{"$f":"valueE(B7,'Utility Functions'!$B$3,'Utility Functions'!$B$4,'Utility Functions'!$B$5,'Utility Functions'!$B$6)","v":0.86466602685702687},{"$f":"valueE(C7,'Utility Functions'!$D$3,'Utility Functions'!$D$4,'Utility Functions'!$D$5,'Utility Functions'!$D$6)","v":6.1811002813601471E-3},{"$f":"valuePL(D7,'Utility Functions'!$E$3:$E$5,'Utility Functions'!$F$3:$F$5)","v":1},{"$f":"valuePL(E7,'Utility Functions'!$G$3:$G$5,'Utility Functions'!$H$3:$H$5)","v":0},{"$f":"valuePL(F7,'Utility Functions'!$I$3:$I$4,'Utility Functions'!$J$3:$J$5)","v":0},{"$f":"valueE(G7,'Utility Functions'!$L$3,'Utility Functions'!$L$4,'Utility Functions'!$L$5,'Utility Functions'!$L$6)","v":0},{"$f":"valueE(H7,'Utility Functions'!$N$3,'Utility Functions'!$N$4,'Utility Functions'!$N$5,'Utility Functions'!$N$6)","v":0},{"$f":"valuePL(I7,'Utility Functions'!$O$3:$O$6,'Utility Functions'!$P$3:$P$6)","v":0.04},{"$f":"valuePL(J7,'Utility Functions'!$Q$3:$Q$6,'Utility Functions'!$R$3:$R$6)","v":0.04},{"$f":"valuePL(K7,'Utility Functions'!$S$3:$S$7,'Utility Functions'!$T$3:$T$7)","v":0},{"$f":"valueE(L7,'Utility Functions'!$V$3,'Utility Functions'!$V$4,'Utility Functions'!$V$5,'Utility Functions'!$V$6)","v":0},{"$f":"valuePL(M7,'Utility Functions'!$W$3:$W$6,'Utility Functions'!$X$3:$X$6)","v":0},{"$f":"valueE(N7,'Utility Functions'!$Z$3,'Utility Functions'!$Z$4,'Utility Functions'!$Z$5,'Utility Functions'!$Z$6)","v":0},{"$f":"valuePL(O7,'Utility Functions'!$AA$3:$AA$5,'Utility Functions'!$AB$3:$AB$5)","v":0},{"$f":"valuePL(P7,'Utility Functions'!$AC$3:$AC$7,'Utility Functions'!$AD$3:$AD$7)","v":0},{"$f":"valuePL(Q7,'Utility Functions'!$AE$3:$AE$6,'Utility Functions'!$AF$3:$AF$6)","v":0.1},{"$f":"valuePL(R7,'Utility Functions'!$AG$3:$AG$6,'Utility Functions'!$AH$3:$AH$6)","v":0},{"$f":"valuePL(S7,'Utility Functions'!$AI$3:$AI$6,'Utility Functions'!$AJ$3:$AJ$6)","v":1},{"$f":"valuePL(T7,'Utility Functions'!$AK$3:$AK$8,'Utility Functions'!$AL$3:$AL$8)","v":0.6},{"$f":"valuePL(U7,'Utility Functions'!$AM$3:$AM$5,'Utility Functions'!$AN$3:$AN$5)","v":0},{"$f":"valuePL(V7,'Utility Functions'!$AO$3:$AO$5,'Utility Functions'!$AP$3:$AP$5)","v":0},{"$f":"valuePL(W7,'Utility Functions'!$AQ$3:$AQ$6,'Utility Functions'!$AR$3:$AR$6)","v":0},{"$f":"valuePL(X7,'Utility Functions'!$AS$3:$AS$6,'Utility Functions'!$AT$3:$AT$6)","v":1},{"$f":"valuePL(Y7,'Utility Functions'!$AU$3:$AU$6,'Utility Functions'!$AV$3:$AV$6)","v":0},{"$f":"valuePL(Z7,'Utility Functions'!$AW$3:$AW$5,'Utility Functions'!$AX$3:$AX$5)","v":0},{"$f":"valuePL(AA7,'Utility Functions'!$AY$3:$AY$6,'Utility Functions'!$AZ$3:$AZ$6)","v":0},{"$f":"valuePL(AB7,'Utility Functions'!$BA$3:$BA$5,'Utility Functions'!$BB$3:$BB$5)","v":1},{"$f":"valuePL(AC7,'Utility Functions'!$BC$3:$BC$5,'Utility Functions'!$BD$3:$BD$5)","v":0.25},5.9008471271383875,null,5.9008471271383875,1.8708471271383869,0.08,0,1.7000000000000002,2.25]
[7,{"$f":"valueE(B8,'Utility Functions'!$B$3,'Utility Functions'!$B$4,'Utility Functions'!$B$5,'Utility Functions'!$B$6)","v":0.99997108261728973},{"$f":"valueE(C8,'Utility Functions'!$D$3,'Utility Functions'!$D$4,'Utility Functions'!$D$5,'Utility Functions'!$D$6)","v":0.84744836833951609},{"$f":"valuePL(D8,'Utility Functions'!$E$3:$E$5,'Utility Functions'!$F$3:$F$5)","v":0},{"$f":"valuePL(E8,'Utility Functions'!$G$3:$G$5,'Utility Functions'!$H$3:$H$5)","v":1},{"$f":"valuePL(F8,'Utility Functions'!$I$3:$I$4,'Utility Functions'!$J$3:$J$5)","v":0},{"$f":"valueE(G8,'Utility Functions'!$L$3,'Utility Functions'!$L$4,'Utility Functions'!$L$5,'Utility Functions'!$L$6)","v":0},{"$f":"valueE(H8,'Utility Functions'!$N$3,'Utility Functions'!$N$4,'Utility Functions'!$N$5,'Utility Functions'!$N$6)","v":0},{"$f":"valuePL(I8,'Utility Functions'!$O$3:$O$6,'Utility Functions'!$P$3:$P$6)","v":1},{"$f":"valuePL(J8,'Utility Functions'!$Q$3:$Q$6,'Utility Functions'!$R$3:$R$6)","v":0.67272727272727273},{"$f":"valuePL(K8,'Utility Functions'!$S$3:$S$7,'Utility Functions'!$T$3:$T$7)","v":1},{"$f":"valueE(L8,'Utility Functions'!$V$3,'Utility Functions'!$V$4,'Utility Functions'!$V$5,'Utility Functions'!$V$6)","v":1},{"$f":"valuePL(M8,'Utility Functions'!$W$3:$W$6,'Utility Functions'!$X$3:$X$6)","v":0.67272727272727273},{"$f":"valueE(N8,'Utility Functions'!$Z$3,'Utility Functions'!$Z$4,'Utility Functions'!$Z$5,'Utility Functions'!$Z$6)","v":1},{"$f":"valuePL(O8,'Utility Functions'!$AA$3:$AA$5,'Utility Functions'!$AB$3:$AB$5)","v":0.25},{"$f":"valuePL(P8,'Utility Functions'!$AC$3:$AC$7,'Utility Functions'!$AD$3:$AD$7)","v":0},{"$f":"valuePL(Q8,'Utility Functions'!$AE$3:$AE$6,'Utility Functions'!$AF$3:$AF$6)","v":0},{"$f":"valuePL(R8,'Utility Functions'!$AG$3:$AG$6,'Utility Functions'!$AH$3:$AH$6)","v":1},{"$f":"valuePL(S8,'Utility Functions'!$AI$3:$AI$6,'Utility Functions'!$AJ$3:$AJ$6)","v":1},{"$f":"valuePL(T8,'Utility Functions'!$AK$3:$AK$8,'Utility Functions'!$AL$3:$AL$8)","v":0},{"$f":"valuePL(U8,'Utility Functions'!$AM$3:$AM$5,'Utility Functions'!$AN$3:$AN$5)","v":0},{"$f":"valuePL(V8,'Utility Functions'!$AO$3:$AO$5,'Utility Functions'!$AP$3:$AP$5)","v":1},{"$f":"valuePL(W8,'Utility Functions'!$AQ$3:$AQ$6,'Utility Functions'!$AR$3:$AR$6)","v":0},{"$f":"valuePL(X8,'Utility Functions'!$AS$3:$AS$6,'Utility Functions'!$AT$3:$AT$6)","v":0.2},{"$f":"valuePL(Y8,'Utility Functions'!$AU$3:$AU$6,'Utility Functions'!$AV$3:$AV$6)","v":1},{"$f":"valuePL(Z8,'Utility Functions'!$AW$3:$AW$5,'Utility Functions'!$AX$3:$AX$5)","v":1},{"$f":"valuePL(AA8,'Utility Functions'!$AY$3:$AY$6,'Utility Functions'!$AZ$3:$AZ$6)","v":0.89999999999999991},{"$f":"valuePL(AB8,'Utility Functions'!$BA$3:$BA$5,'Utility Functions'!$BB$3:$BB$5)","v":0},{"$f":"valuePL(AC8,'Utility Functions'!$BC$3:$BC$5,'Utility Functions'!$BD$3:$BD$5)","v":1},15.54287399641135,null,15.54287399641135,2.8474194509568056,4.3454545454545457,1.25,2,5.0999999999999996]
[8,{"$f":"valueE(B9,'Utility Functions'!$B$3,'Utility Functions'!$B$4,'Utility Functions'!$B$5,'Utility Functions'!$B$6)","v":0.4511890475224023},{"$f":"valueE(C9,'Utility Functions'!$D$3,'Utility Functions'!$D$4,'Utility Functions'!$D$5,'Utility Functions'!$D$6)","v":0.84744836833951609},{"$f":"valuePL(D9,'Utility Functions'!$E$3:$E$5,'Utility Functions'!$F$3:$F$5)","v":1},{"$f":"valuePL(E9,'Utility Functions'!$G$3:$G$5,'Utility Functions'!$H$3:$H$5)","v":0.5},{"$f":"valuePL(F9,'Utility Functions'!$I$3:$I$4,'Utility Functions'!$J$3:$J$5)","v":1},{"$f":"valueE(G9,'Utility Functions'!$L$3,'Utility Functions'!$L$4,'Utility Functions'!$L$5,'Utility Functions'!$L$6)","v":0},{"$f":"valueE(H9,'Utility Functions'!$N$3,'Utility Functions'!$N$4,'Utility Functions'!$N$5,'Utility Functions'!$N$6)","v":0},{"$f":"valuePL(I9,'Utility Functions'!$O$3:$O$6,'Utility Functions'!$P$3:$P$6)","v":5.6000000000000008E-2},{"$f":"valuePL(J9,'Utility Functions'!$Q$3:$Q$6,'Utility Functions'!$R$3:$R$6)","v":0.83636363636363631},{"$f":"valuePL(K9,'Utility Functions'!$S$3:$S$7,'Utility Functions'!$T$3:$T$7)","v":0},{"$f":"valueE(L9,'Utility Functions'!$V$3,'Utility Functions'!$V$4,'Utility Functions'!$V$5,'Utility Functions'!$V$6)","v":1},{"$f":"valuePL(M9,'Utility Functions'!$W$3:$W$6,'Utility Functions'!$X$3:$X$6)","v":0.83636363636363631},{"$f":"valueE(N9,'Utility Functions'!$Z$3,'Utility Functions'!$Z$4,'Utility Functions'!$Z$5,'Utility Functions'!$Z$6)","v":0},{"$f":"valuePL(O9,'Utility Functions'!$AA$3:$AA$5,'Utility Functions'!$AB$3:$AB$5)","v":0},{"$f":"valuePL(P9,'Utility Functions'!$AC$3:$AC$7,'Utility Functions'!$AD$3:$AD$7)","v":0},{"$f":"valuePL(Q9,'Utility Functions'!$AE$3:$AE$6,'Utility Functions'!$AF$3:$AF$6)","v":1},{"$f":"valuePL(R9,'Utility Functions'!$AG$3:$AG$6,'Utility Functions'!$AH$3:$AH$6)","v":0.2},{"$f":"valuePL(S9,'Utility Functions'!$AI$3:$AI$6,'Utility Functions'!$AJ$3:$AJ$6)","v":1},{"$f":"valuePL(T9,'Utility Functions'!$AK$3:$AK$8,'Utility Functions'!$AL$3:$AL$8)","v":0},{"$f":"valuePL(U9,'Utility Functions'!$AM$3:$AM$5,'Utility Functions'!$AN$3:$AN$5)","v":0},{"$f":"valuePL(V9,'Utility Functions'!$AO$3:$AO$5,'Utility Functions'!$AP$3:$AP$5)","v":1},{"$f":"valuePL(W9,'Utility Functions'!$AQ$3:$AQ$6,'Utility Functions'!$AR$3:$AR$6)","v":1},{"$f":"valuePL(X9,'Utility Functions'!$AS$3:$AS$6,'Utility Functions'!$AT$3:$AT$6)","v":1},{"$f":"valuePL(Y9,'Utility Functions'!$AU$3:$AU$6,'Utility Functions'!$AV$3:$AV$6)","v":1},{"$f":"valuePL(Z9,'Utility Functions'!$AW$3:$AW$5,'Utility Functions'!$AX$3:$AX$5)","v":1},{"$f":"valuePL(AA9,'Utility Functions'!$AY$3:$AY$6,'Utility Functions'!$AZ$3:$AZ$6)","v":0},{"$f":"valuePL(AB9,'Utility Functions'!$BA$3:$BA$5,'Utility Functions'!$BB$3:$BB$5)","v":0.25},{"$f":"valuePL(AC9,'Utility Functions'!$BC$3:$BC$5,'Utility Functions'!$BD$3:$BD$5)","v":0.25},14.227364688589191,null,14.227364688589191,3.7986374158619185,2.7287272727272729,0,2.2000000000000002,5.5]
[9,{"$f":"valueE(B10,'Utility Functions'!$B$3,'Utility Functions'!$B$4,'Utility Functions'!$B$5,'Utility Functions'!$B$6)","v":0.83470237647280454},{"$f":"valueE(C10,'Utility Functions'!$D$3,'Utility Functions'!$D$4,'Utility Functions'!$D$5,'Utility Functions'!$D$6)","v":0.78989979019422951},{"$f":"valuePL(D10,'Utility Functions'!$E$3:$E$5,'Utility Functions'!$F$3:$F$5)","v":1},{"$f":"valuePL(E10,'Utility Functions'!$G$3:$G$5,'Utility Functions'!$H$3:$H$5)","v":0.5},{"$f":"valuePL(F10,'Utility Functions'!$I$3:$I$4,'Utility Functions'!$J$3:$J$5)","v":0},{"$f":"valueE(G10,'Utility Functions'!$L$3,'Utility Functions'!$L$4,'Utility Functions'!$L$5,'Utility Functions'!$L$6)","v":0.37634408602150538},{"$f":"valueE(H10,'Utility Functions'!$N$3,'Utility Functions'!$N$4,'Utility Functions'!$N$5,'Utility Functions'!$N$6)","v":0.13282732447817835},{"$f":"valuePL(I10,'Utility Functions'!$O$3:$O$6,'Utility Functions'!$P$3:$P$6)","v":0},{"$f":"valuePL(J10,'Utility Functions'!$Q$3:$Q$6,'Utility Functions'!$R$3:$R$6)","v":0},{"$f":"valuePL(K10,'Utility Functions'!$S$3:$S$7,'Utility Functions'!$T$3:$T$7)","v":0},{"$f":"valueE(L10,'Utility Functions'!$V$3,'Utility Functions'!$V$4,'Utility Functions'!$V$5,'Utility Functions'!$V$6)","v":0},{"$f":"valuePL(M10,'Utility Functions'!$W$3:$W$6,'Utility Functions'!$X$3:$X$6)","v":0},{"$f":"valueE(N10,'Utility Functions'!$Z$3,'Utility Functions'!$Z$4,'Utility Functions'!$Z$5,'Utility Functions'!$Z$6)","v":0},{"$f":"valuePL(O10,'Utility Functions'!$AA$3:$AA$5,'Utility Functions'!$AB$3:$AB$5)","v":0},{"$f":"valuePL(P10,'Utility Functions'!$AC$3:$AC$7,'Utility Functions'!$AD$3:$AD$7)","v":0.75},{"$f":"valuePL(Q10,'Utility Functions'!$AE$3:$AE$6,'Utility Functions'!$AF$3:$AF$6)","v":0},{"$f":"valuePL(R10,'Utility Functions'!$AG$3:$AG$6,'Utility Functions'!$AH$3:$AH$6)","v":1},{"$f":"valuePL(S10,'Utility Functions'!$AI$3:$AI$6,'Utility Functions'!$AJ$3:$AJ$6)","v":0.66},{"$f":"valuePL(T10,'Utility Functions'!$AK$3:$AK$8,'Utility Functions'!$AL$3:$AL$8)","v":0.2},{"$f":"valuePL(U10,'Utility Functions'!$AM$3:$AM$5,'Utility Functions'!$AN$3:$AN$5)","v":0},{"$f":"valuePL(V10,'Utility Functions'!$AO$3:$AO$5,'Utility Functions'!$AP$3:$AP$5)","v":1},{"$f":"valuePL(W10,'Utility Functions'!$AQ$3:$AQ$6,'Utility Functions'!$AR$3:$AR$6)","v":1},{"$f":"valuePL(X10,'Utility Functions'!$AS$3:$AS$6,'Utility Functions'!$AT$3:$AT$6)","v":1},{"$f":"valuePL(Y10,'Utility Functions'!$AU$3:$AU$6,'Utility Functions'!$AV$3:$AV$6)","v":0.2},{"$f":"valuePL(Z10,'Utility Functions'!$AW$3:$AW$5,'Utility Functions'!$AX$3:$AX$5)","v":1},{"$f":"valuePL(AA10,'Utility Functions'!$AY$3:$AY$6,'Utility Functions'!$AZ$3:$AZ$6)","v":0.2},{"$f":"valuePL(AB10,'Utility Functions'!$BA$3:$BA$5,'Utility Functions'!$BB$3:$BB$5)","v":0.25},{"$f":"valuePL(AC10,'Utility Functions'!$BC$3:$BC$5,'Utility Functions'!$BD$3:$BD$5)","v":1},11.893773577166716,null,11.893773577166719,3.1246021666670343,0.50917141049968373,0,2.6100000000000003,5.65]
[10,{"$f":"valueE(B11,'Utility Functions'!$B$3,'Utility Functions'!$B$4,'Utility Functions'!$B$5,'Utility Functions'!$B$6)","v":0},{"$f":"valueE(C11,'Utility Functions'!$D$3,'Utility Functions'!$D$4,'Utility Functions'!$D$5,'Utility Functions'!$D$6)","v":0},{"$f":"valuePL(D11,'Utility Functions'!$E$3:$E$5,'Utility Functions'!$F$3:$F$5)","v":0},{"$f":"valuePL(E11,'Utility Functions'!$G$3:$G$5,'Utility Functions'!$H$3:$H$5)","v":0},{"$f":"valuePL(F11,'Utility Functions'!$I$3:$I$4,'Utility Functions'!$J$3:$J$5)","v":0},{"$f":"valueE(G11,'Utility Functions'!$L$3,'Utility Functions'!$L$4,'Utility Functions'!$L$5,'Utility Functions'!$L$6)","v":0},{"$f":"valueE(H11,'Utility Functions'!$N$3,'Utility Functions'!$N$4,'Utility Functions'!$N$5,'Utility Functions'!$N$6)","v":0},{"$f":"valuePL(I11,'Utility Functions'!$O$3:$O$6,'Utility Functions'!$P$3:$P$6)","v":0},{"$f":"valuePL(J11,'Utility Functions'!$Q$3:$Q$6,'Utility Functions'!$R$3:$R$6)","v":0},{"$f":"valuePL(K11,'Utility Functions'!$S$3:$S$7,'Utility Functions'!$T$3:$T$7)","v":0},{"$f":"valueE(L11,'Utility Functions'!$V$3,'Utility Functions'!$V$4,'Utility Functions'!$V$5,'Utility Functions'!$V$6)","v":0},{"$f":"valuePL(M11,'Utility Functions'!$W$3:$W$6,'Utility Functions'!$X$3:$X$6)","v":0},{"$f":"valueE(N11,'Utility Functions'!$Z$3,'Utility Functions'!$Z$4,'Utility Functions'!$Z$5,'Utility Functions'!$Z$6)","v":0.75},{"$f":"valuePL(O11,'Utility Functions'!$AA$3:$AA$5,'Utility Functions'!$AB$3:$AB$5)","v":1},{"$f":"valuePL(P11,'Utility Functions'!$AC$3:$AC$7,'Utility Functions'!$AD$3:$AD$7)","v":0.25},{"$f":"valuePL(Q11,'Utility Functions'!$AE$3:$AE$6,'Utility Functions'!$AF$3:$AF$6)","v":0.5},{"$f":"valuePL(R11,'Utility Functions'!$AG$3:$AG$6,'Utility Functions'!$AH$3:$AH$6)","v":1},{"$f":"valuePL(S11,'Utility Functions'!$AI$3:$AI$6,'Utility Functions'!$AJ$3:$AJ$6)","v":0.66},{"$f":"valuePL(T11,'Utility Functions'!$AK$3:$AK$8,'Utility Functions'!$AL$3:$AL$8)","v":0.4},{"$f":"valuePL(U11,'Utility Functions'!$AM$3:$AM$5,'Utility Functions'!$AN$3:$AN$5)","v":0},{"$f":"valuePL(V11,'Utility Functions'!$AO$3:$AO$5,'Utility Functions'!$AP$3:$AP$5)","v":0},{"$f":"valuePL(W11,'Utility Functions'!$AQ$3:$AQ$6,'Utility Functions'!$AR$3:$AR$6)","v":0.75},{"$f":"valuePL(X11,'Utility Functions'!$AS$3:$AS$6,'Utility Functions'!$AT$3:$AT$6)","v":1},{"$f":"valuePL(Y11,'Utility Functions'!$AU$3:$AU$6,'Utility Functions'!$AV$3:$AV$6)","v":1},{"$f":"valuePL(Z11,'Utility Functions'!$AW$3:$AW$5,'Utility Functions'!$AX$3:$AX$5)","v":0.5},{"$f":"valuePL(AA11,'Utility Functions'!$AY$3:$AY$6,'Utility Functions'!$AZ$3:$AZ$6)","v":0.2},{"$f":"valuePL(AB11,'Utility Functions'!$BA$3:$BA$5,'Utility Functions'!$BB$3:$BB$5)","v":0},{"$f":"valuePL(AC11,'Utility Functions'!$BC$3:$BC$5,'Utility Functions'!$BD$3:$BD$5)","v":1},9.01,null,9.0100000000000016,0,0,1.75,2.81,4.45]
[11,{"$f":"valueE(B12,'Utility Functions'!$B$3,'Utility Functions'!$B$4,'Utility Functions'!$B$5,'Utility Functions'!$B$6)","v":0},{"$f":"valueE(C12,'Utility Functions'!$D$3,'Utility Functions'!$D$4,'Utility Functions'!$D$5,'Utility Functions'!$D$6)","v":0},{"$f":"valuePL(D12,'Utility Functions'!$E$3:$E$5,'Utility Functions'!$F$3:$F$5)","v":0},{"$f":"valuePL(E12,'Utility Functions'!$G$3:$G$5,'Utility Functions'!$H$3:$H$5)","v":0},{"$f":"valuePL(F12,'Utility Functions'!$I$3:$I$4,'Utility Functions'!$J$3:$J$5)","v":0},{"$f":"valueE(G12,'Utility Functions'!$L$3,'Utility Functions'!$L$4,'Utility Functions'!$L$5,'Utility Functions'!$L$6)","v":3.2258064516129031E-2},{"$f":"valueE(H12,'Utility Functions'!$N$3,'Utility Functions'!$N$4,'Utility Functions'!$N$5,'Utility Functions'!$N$6)","v":9.6774193548387094E-2},{"$f":"valuePL(I12,'Utility Functions'!$O$3:$O$6,'Utility Functions'!$P$3:$P$6)","v":0.54181818181818187},{"$f":"valuePL(J12,'Utility Functions'!$Q$3:$Q$6,'Utility Functions'!$R$3:$R$6)","v":0.91818181818181821},{"$f":"valuePL(K12,'Utility Functions'!$S$3:$S$7,'Utility Functions'!$T$3:$T$7)","v":0.54181818181818187},{"$f":"valueE(L12,'Utility Functions'!$V$3,'Utility Functions'!$V$4,'Utility Functions'!$V$5,'Utility Functions'!$V$6)","v":1},{"$f":"valuePL(M12,'Utility Functions'!$W$3:$W$6,'Utility Functions'!$X$3:$X$6)","v":0.91818181818181821},{"$f":"valueE(N12,'Utility Functions'!$Z$3,'Utility Functions'!$Z$4,'Utility Functions'!$Z$5,'Utility Functions'!$Z$6)","v":0.375},{"$f":"valuePL(O12,'Utility Functions'!$AA$3:$AA$5,'Utility Functions'!$AB$3:$AB$5)","v":0.25},{"$f":"valuePL(P12,'Utility Functions'!$AC$3:$AC$7,'Utility Functions'!$AD$3:$AD$7)","v":0.25},{"$f":"valuePL(Q12,'Utility Functions'!$AE$3:$AE$6,'Utility Functions'!$AF$3:$AF$6)","v":0},{"$f":"valuePL(R12,'Utility Functions'!$AG$3:$AG$6,'Utility Functions'!$AH$3:$AH$6)","v":1},{"$f":"valuePL(S12,'Utility Functions'!$AI$3:$AI$6,'Utility Functions'!$AJ$3:$AJ$6)","v":1},{"$f":"valuePL(T12,'Utility Functions'!$AK$3:$AK$8,'Utility Functions'!$AL$3:$AL$8)","v":0.4},{"$f":"valuePL(U12,'Utility Functions'!$AM$3:$AM$5,'Utility Functions'!$AN$3:$AN$5)","v":1},{"$f":"valuePL(V12,'Utility Functions'!$AO$3:$AO$5,'Utility Functions'!$AP$3:$AP$5)","v":1},{"$f":"valuePL(W12,'Utility Functions'!$AQ$3:$AQ$6,'Utility Functions'!$AR$3:$AR$6)","v":0.2},{"$f":"valuePL(X12,'Utility Functions'!$AS$3:$AS$6,'Utility Functions'!$AT$3:$AT$6)","v":1},{"$f":"valuePL(Y12,'Utility Functions'!$AU$3:$AU$6,'Utility Functions'!$AV$3:$AV$6)","v":1},{"$f":"valuePL(Z12,'Utility Functions'!$AW$3:$AW$5,'Utility Functions'!$AX$3:$AX$5)","v":0.5},{"$f":"valuePL(AA12,'Utility Functions'!$AY$3:$AY$6,'Utility Functions'!$AZ$3:$AZ$6)","v":0.89999999999999991},{"$f":"valuePL(AB12,'Utility Functions'!$BA$3:$BA$5,'Utility Functions'!$BB$3:$BB$5)","v":0},{"$f":"valuePL(AC12,'Utility Functions'!$BC$3:$BC$5,'Utility Functions'!$BD$3:$BD$5)","v":0.25},13.174032258064516,null,13.174032258064516,0,4.0490322580645159,0.625,3.65,4.8499999999999996]
[12,{"$f":"valueE(B13,'Utility Functions'!$B$3,'Utility Functions'!$B$4,'Utility Functions'!$B$5,'Utility Functions'!$B$6)","v":0.32968045347775865},{"$f":"valueE(C13,'Utility Functions'!$D$3,'Utility Functions'!$D$4,'Utility Functions'!$D$5,'Utility Functions'!$D$6)","v":0.78989979019422951},{"$f":"valuePL(D13,'Utility Functions'!$E$3:$E$5,'Utility Functions'!$F$3:$F$5)","v":1},{"$f":"valuePL(E13,'Utility Functions'!$G$3:$G$5,'Utility Functions'!$H$3:$H$5)","v":0.5},{"$f":"valuePL(F13,'Utility Functions'!$I$3:$I$4,'Utility Functions'!$J$3:$J$5)","v":0},{"$f":"valueE(G13,'Utility Functions'!$L$3,'Utility Functions'!$L$4,'Utility Functions'!$L$5,'Utility Functions'!$L$6)","v":0},{"$f":"valueE(H13,'Utility Functions'!$N$3,'Utility Functions'!$N$4,'Utility Functions'!$N$5,'Utility Functions'!$N$6)","v":0},{"$f":"valuePL(I13,'Utility Functions'!$O$3:$O$6,'Utility Functions'!$P$3:$P$6)","v":0},{"$f":"valuePL(J13,'Utility Functions'!$Q$3:$Q$6,'Utility Functions'!$R$3:$R$6)","v":0},{"$f":"valuePL(K13,'Utility Functions'!$S$3:$S$7,'Utility Functions'!$T$3:$T$7)","v":0},{"$f":"valueE(L13,'Utility Functions'!$V$3,'Utility Functions'!$V$4,'Utility Functions'!$V$5,'Utility Functions'!$V$6)","v":0},{"$f":"valuePL(M13,'Utility Functions'!$W$3:$W$6,'Utility Functions'!$X$3:$X$6)","v":0},{"$f":"valueE(N13,'Utility Functions'!$Z$3,'Utility Functions'!$Z$4,'Utility Functions'!$Z$5,'Utility Functions'!$Z$6)","v":0},{"$f":"valuePL(O13,'Utility Functions'!$AA$3:$AA$5,'Utility Functions'!$AB$3:$AB$5)","v":0},{"$f":"valuePL(P13,'Utility Functions'!$AC$3:$AC$7,'Utility Functions'!$AD$3:$AD$7)","v":0},{"$f":"valuePL(Q13,'Utility Functions'!$AE$3:$AE$6,'Utility Functions'!$AF$3:$AF$6)","v":0.1},{"$f":"valuePL(R13,'Utility Functions'!$AG$3:$AG$6,'Utility Functions'!$AH$3:$AH$6)","v":1},{"$f":"valuePL(S13,'Utility Functions'!$AI$3:$AI$6,'Utility Functions'!$AJ$3:$AJ$6)","v":1},{"$f":"valuePL(T13,'Utility Functions'!$AK$3:$AK$8,'Utility Functions'!$AL$3:$AL$8)","v":0.6},{"$f":"valuePL(U13,'Utility Functions'!$AM$3:$AM$5,'Utility Functions'!$AN$3:$AN$5)","v":0},{"$f":"valuePL(V13,'Utility Functions'!$AO$3:$AO$5,'Utility Functions'!$AP$3:$AP$5)","v":0.5},{"$f":"valuePL(W13,'Utility Functions'!$AQ$3:$AQ$6,'Utility Functions'!$AR$3:$AR$6)","v":0.2},{"$f":"valuePL(X13,'Utility Functions'!$AS$3:$AS$6,'Utility Functions'!$AT$3:$AT$6)","v":1},{"$f":"valuePL(Y13,'Utility Functions'!$AU$3:$AU$6,'Utility Functions'!$AV$3:$AV$6)","v":0.2},{"$f":"valuePL(Z13,'Utility Functions'!$AW$3:$AW$5,'Utility Functions'!$AX$3:$AX$5)","v":1},{"$f":"valuePL(AA13,'Utility Functions'!$AY$3:$AY$6,'Utility Functions'!$AZ$3:$AZ$6)","v":0.2},{"$f":"valuePL(AB13,'Utility Functions'!$BA$3:$BA$5,'Utility Functions'!$BB$3:$BB$5)","v":1},{"$f":"valuePL(AC13,'Utility Functions'!$BC$3:$BC$5,'Utility Functions'!$BD$3:$BD$5)","v":0},9.4195802436719873,null,9.4195802436719873,2.6195802436719884,0,0,2.7,4.0999999999999996]
[13,{"$f":"valueE(B14,'Utility Functions'!$B$3,'Utility Functions'!$B$4,'Utility Functions'!$B$5,'Utility Functions'!$B$6)","v":0},{"$f":"valueE(C14,'Utility Functions'!$D$3,'Utility Functions'!$D$4,'Utility Functions'!$D$5,'Utility Functions'!$D$6)","v":0},{"$f":"valuePL(D14,'Utility Functions'!$E$3:$E$5,'Utility Functions'!$F$3:$F$5)","v":0},{"$f":"valuePL(E14,'Utility Functions'!$G$3:$G$5,'Utility Functions'!$H$3:$H$5)","v":0},{"$f":"valuePL(F14,'Utility Functions'!$I$3:$I$4,'Utility Functions'!$J$3:$J$5)","v":0},{"$f":"valueE(G14,'Utility Functions'!$L$3,'Utility Functions'!$L$4,'Utility Functions'!$L$5,'Utility Functions'!$L$6)","v":0},{"$f":"valueE(H14,'Utility Functions'!$N$3,'Utility Functions'!$N$4,'Utility Functions'!$N$5,'Utility Functions'!$N$6)","v":1.1385199240986717E-2},{"$f":"valuePL(I14,'Utility Functions'!$O$3:$O$6,'Utility Functions'!$P$3:$P$6)","v":0.3290909090909091},{"$f":"valuePL(J14,'Utility Functions'!$Q$3:$Q$6,'Utility Functions'!$R$3:$R$6)","v":0.04},{"$f":"valuePL(K14,'Utility Functions'!$S$3:$S$7,'Utility Functions'!$T$3:$T$7)","v":0.3290909090909091},{"$f":"valueE(L14,'Utility Functions'!$V$3,'Utility Functions'!$V$4,'Utility Functions'!$V$5,'Utility Functions'!$V$6)","v":1},{"$f":"valuePL(M14,'Utility Functions'!$W$3:$W$6,'Utility Functions'!$X$3:$X$6)","v":0.04},{"$f":"valueE(N14,'Utility Functions'!$Z$3,'Utility Functions'!$Z$4,'Utility Functions'!$Z$5,'Utility Functions'!$Z$6)","v":0.875},{"$f":"valuePL(O14,'Utility Functions'!$AA$3:$AA$5,'Utility Functions'!$AB$3:$AB$5)","v":0.25},{"$f":"valuePL(P14,'Utility Functions'!$AC$3:$AC$7,'Utility Functions'!$AD$3:$AD$7)","v":0.25},{"$f":"valuePL(Q14,'Utility Functions'!$AE$3:$AE$6,'Utility Functions'!$AF$3:$AF$6)","v":0},{"$f":"valuePL(R14,'Utility Functions'!$AG$3:$AG$6,'Utility Functions'!$AH$3:$AH$6)","v":1},{"$f":"valuePL(S14,'Utility Functions'!$AI$3:$AI$6,'Utility Functions'!$AJ$3:$AJ$6)","v":1},{"$f":"valuePL(T14,'Utility Functions'!$AK$3:$AK$8,'Utility Functions'!$AL$3:$AL$8)","v":0},{"$f":"valuePL(U14,'Utility Functions'!$AM$3:$AM$5,'Utility Functions'!$AN$3:$AN$5)","v":0},{"$f":"valuePL(V14,'Utility Functions'!$AO$3:$AO$5,'Utility Functions'!$AP$3:$AP$5)","v":0.5},{"$f":"valuePL(W14,'Utility Functions'!$AQ$3:$AQ$6,'Utility Functions'!$AR$3:$AR$6)","v":0},{"$f":"valuePL(X14,'Utility Functions'!$AS$3:$AS$6,'Utility Functions'!$AT$3:$AT$6)","v":0.2},{"$f":"valuePL(Y14,'Utility Functions'!$AU$3:$AU$6,'Utility Functions'!$AV$3:$AV$6)","v":0},{"$f":"valuePL(Z14,'Utility Functions'!$AW$3:$AW$5,'Utility Functions'!$AX$3:$AX$5)","v":1},{"$f":"valuePL(AA14,'Utility Functions'!$AY$3:$AY$6,'Utility Functions'!$AZ$3:$AZ$6)","v":0.2},{"$f":"valuePL(AB14,'Utility Functions'!$BA$3:$BA$5,'Utility Functions'!$BB$3:$BB$5)","v":0.25},{"$f":"valuePL(AC14,'Utility Functions'!$BC$3:$BC$5,'Utility Functions'!$BD$3:$BD$5)","v":0.25},7.5245670174228056,null,7.5245670174228056,0,1.7495670174228048,1.125,2.25,2.4]
[14,{"$f":"valueE(B15,'Utility Functions'!$B$3,'Utility Functions'!$B$4,'Utility Functions'!$B$5,'Utility Functions'!$B$6)","v":0.69880684688087746},{"$f":"valueE(C15,'Utility Functions'!$D$3,'Utility Functions'!$D$4,'Utility Functions'!$D$5,'Utility Functions'!$D$6)","v":0.78989979019422951},{"$f":"valuePL(D15,'Utility Functions'!$E$3:$E$5,'Utility Functions'!$F$3:$F$5)","v":0.5},{"$f":"valuePL(E15,'Utility Functions'!$G$3:$G$5,'Utility Functions'!$H$3:$H$5)","v":0.5},{"$f":"valuePL(F15,'Utility Functions'!$I$3:$I$4,'Utility Functions'!$J$3:$J$5)","v":0},{"$f":"valueE(G15,'Utility Functions'!$L$3,'Utility Functions'!$L$4,'Utility Functions'!$L$5,'Utility Functions'!$L$6)","v":0},{"$f":"valueE(H15,'Utility Functions'!$N$3,'Utility Functions'!$N$4,'Utility Functions'!$N$5,'Utility Functions'!$N$6)","v":0},{"$f":"valuePL(I15,'Utility Functions'!$O$3:$O$6,'Utility Functions'!$P$3:$P$6)","v":0},{"$f":"valuePL(J15,'Utility Functions'!$Q$3:$Q$6,'Utility Functions'!$R$3:$R$6)","v":0},{"$f":"valuePL(K15,'Utility Functions'!$S$3:$S$7,'Utility Functions'!$T$3:$T$7)","v":0},{"$f":"valueE(L15,'Utility Functions'!$V$3,'Utility Functions'!$V$4,'Utility Functions'!$V$5,'Utility Functions'!$V$6)","v":0},{"$f":"valuePL(M15,'Utility Functions'!$W$3:$W$6,'Utility Functions'!$X$3:$X$6)","v":0},{"$f":"valueE(N15,'Utility Functions'!$Z$3,'Utility Functions'!$Z$4,'Utility Functions'!$Z$5,'Utility Functions'!$Z$6)","v":0.75},{"$f":"valuePL(O15,'Utility Functions'!$AA$3:$AA$5,'Utility Functions'!$AB$3:$AB$5)","v":0.25},{"$f":"valuePL(P15,'Utility Functions'!$AC$3:$AC$7,'Utility Functions'!$AD$3:$AD$7)","v":0.25},{"$f":"valuePL(Q15,'Utility Functions'!$AE$3:$AE$6,'Utility Functions'!$AF$3:$AF$6)","v":0},{"$f":"valuePL(R15,'Utility Functions'!$AG$3:$AG$6,'Utility Functions'!$AH$3:$AH$6)","v":1},{"$f":"valuePL(S15,'Utility Functions'!$AI$3:$AI$6,'Utility Functions'!$AJ$3:$AJ$6)","v":1},{"$f":"valuePL(T15,'Utility Functions'!$AK$3:$AK$8,'Utility Functions'!$AL$3:$AL$8)","v":0},{"$f":"valuePL(U15,'Utility Functions'!$AM$3:$AM$5,'Utility Functions'!$AN$3:$AN$5)","v":0},{"$f":"valuePL(V15,'Utility Functions'!$AO$3:$AO$5,'Utility Functions'!$AP$3:$AP$5)","v":0.5},{"$f":"valuePL(W15,'Utility Functions'!$AQ$3:$AQ$6,'Utility Functions'!$AR$3:$AR$6)","v":0.2},{"$f":"valuePL(X15,'Utility Functions'!$AS$3:$AS$6,'Utility Functions'!$AT$3:$AT$6)","v":1},{"$f":"valuePL(Y15,'Utility Functions'!$AU$3:$AU$6,'Utility Functions'!$AV$3:$AV$6)","v":1},{"$f":"valuePL(Z15,'Utility Functions'!$AW$3:$AW$5,'Utility Functions'!$AX$3:$AX$5)","v":0.5},{"$f":"valuePL(AA15,'Utility Functions'!$AY$3:$AY$6,'Utility Functions'!$AZ$3:$AZ$6)","v":0.89999999999999991},{"$f":"valuePL(AB15,'Utility Functions'!$BA$3:$BA$5,'Utility Functions'!$BB$3:$BB$5)","v":0.25},{"$f":"valuePL(AC15,'Utility Functions'!$BC$3:$BC$5,'Utility Functions'!$BD$3:$BD$5)","v":0.25},10.338706637075108,null,10.338706637075106,2.488706637075107,0,1,2.25,4.5999999999999996]
[15,{"$f":"valueE(B16,'Utility Functions'!$B$3,'Utility Functions'!$B$4,'Utility Functions'!$B$5,'Utility Functions'!$B$6)","v":0.98994966417177144},{"$f":"valueE(C16,'Utility Functions'!$D$3,'Utility Functions'!$D$4,'Utility Functions'!$D$5,'Utility Functions'!$D$6)","v":0.71352759724260828},{"$f":"valuePL(D16,'Utility Functions'!$E$3:$E$5,'Utility Functions'!$F$3:$F$5)","v":1},{"$f":"valuePL(E16,'Utility Functions'!$G$3:$G$5,'Utility Functions'!$H$3:$H$5)","v":0.5},{"$f":"valuePL(F16,'Utility Functions'!$I$3:$I$4,'Utility Functions'!$J$3:$J$5)","v":1},{"$f":"valueE(G16,'Utility Functions'!$L$3,'Utility Functions'!$L$4,'Utility Functions'!$L$5,'Utility Functions'!$L$6)","v":0},{"$f":"valueE(H16,'Utility Functions'!$N$3,'Utility Functions'!$N$4,'Utility Functions'!$N$5,'Utility Functions'!$N$6)","v":0},{"$f":"valuePL(I16,'Utility Functions'!$O$3:$O$6,'Utility Functions'!$P$3:$P$6)","v":9.2000000000000012E-2},{"$f":"valuePL(J16,'Utility Functions'!$Q$3:$Q$6,'Utility Functions'!$R$3:$R$6)","v":6.0000000000000012E-2},{"$f":"valuePL(K16,'Utility Functions'!$S$3:$S$7,'Utility Functions'!$T$3:$T$7)","v":6.0000000000000012E-2},{"$f":"valueE(L16,'Utility Functions'!$V$3,'Utility Functions'!$V$4,'Utility Functions'!$V$5,'Utility Functions'!$V$6)","v":1},{"$f":"valuePL(M16,'Utility Functions'!$W$3:$W$6,'Utility Functions'!$X$3:$X$6)","v":6.0000000000000012E-2},{"$f":"valueE(N16,'Utility Functions'!$Z$3,'Utility Functions'!$Z$4,'Utility Functions'!$Z$5,'Utility Functions'!$Z$6)","v":0.125},{"$f":"valuePL(O16,'Utility Functions'!$AA$3:$AA$5,'Utility Functions'!$AB$3:$AB$5)","v":1},{"$f":"valuePL(P16,'Utility Functions'!$AC$3:$AC$7,'Utility Functions'!$AD$3:$AD$7)","v":0.5},{"$f":"valuePL(Q16,'Utility Functions'!$AE$3:$AE$6,'Utility Functions'!$AF$3:$AF$6)","v":0},{"$f":"valuePL(R16,'Utility Functions'!$AG$3:$AG$6,'Utility Functions'!$AH$3:$AH$6)","v":0.8},{"$f":"valuePL(S16,'Utility Functions'!$AI$3:$AI$6,'Utility Functions'!$AJ$3:$AJ$6)","v":1},{"$f":"valuePL(T16,'Utility Functions'!$AK$3:$AK$8,'Utility Functions'!$AL$3:$AL$8)","v":0.6},{"$f":"valuePL(U16,'Utility Functions'!$AM$3:$AM$5,'Utility Functions'!$AN$3:$AN$5)","v":1},{"$f":"valuePL(V16,'Utility Functions'!$AO$3:$AO$5,'Utility Functions'!$AP$3:$AP$5)","v":0},{"$f":"valuePL(W16,'Utility Functions'!$AQ$3:$AQ$6,'Utility Functions'!$AR$3:$AR$6)","v":1},{"$f":"valuePL(X16,'Utility Functions'!$AS$3:$AS$6,'Utility Functions'!$AT$3:$AT$6)","v":0.2},{"$f":"valuePL(Y16,'Utility Functions'!$AU$3:$AU$6,'Utility Functions'!$AV$3:$AV$6)","v":0.2},{"$f":"valuePL(Z16,'Utility Functions'!$AW$3:$AW$5,'Utility Functions'!$AX$3:$AX$5)","v":1},{"$f":"valuePL(AA16,'Utility Functions'!$AY$3:$AY$6,'Utility Functions'!$AZ$3:$AZ$6)","v":1},{"$f":"valuePL(AB16,'Utility Functions'!$BA$3:$BA$5,'Utility Functions'!$BB$3:$BB$5)","v":1},{"$f":"valuePL(AC16,'Utility Functions'!$BC$3:$BC$5,'Utility Functions'!$BD$3:$BD$5)","v":0.25},15.150477261414375,null,15.15047726141438,4.2034772614143794,1.272,1.125,3.9,4.6500000000000004]
[16,{"$f":"valueE(B17,'Utility Functions'!$B$3,'Utility Functions'!$B$4,'Utility Functions'!$B$5,'Utility Functions'!$B$6)","v":0},{"$f":"valueE(C17,'Utility Functions'!$D$3,'Utility Functions'!$D$4,'Utility Functions'!$D$5,'Utility Functions'!$D$6)","v":0},{"$f":"valuePL(D17,'Utility Functions'!$E$3:$E$5,'Utility Functions'!$F$3:$F$5)","v":0},{"$f":"valuePL(E17,'Utility Functions'!$G$3:$G$5,'Utility Functions'!$H$3:$H$5)","v":0},{"$f":"valuePL(F17,'Utility Functions'!$I$3:$I$4,'Utility Functions'!$J$3:$J$5)","v":0},{"$f":"valueE(G17,'Utility Functions'!$L$3,'Utility Functions'!$L$4,'Utility Functions'!$L$5,'Utility Functions'!$L$6)","v":0},{"$f":"valueE(H17,'Utility Functions'!$N$3,'Utility Functions'!$N$4,'Utility Functions'!$N$5,'Utility Functions'!$N$6)","v":0},{"$f":"valuePL(I17,'Utility Functions'!$O$3:$O$6,'Utility Functions'!$P$3:$P$6)","v":1},{"$f":"valuePL(J17,'Utility Functions'!$Q$3:$Q$6,'Utility Functions'!$R$3:$R$6)","v":0.91818181818181821},{"$f":"valuePL(K17,'Utility Functions'!$S$3:$S$7,'Utility Functions'!$T$3:$T$7)","v":1},{"$f":"valueE(L17,'Utility Functions'!$V$3,'Utility Functions'!$V$4,'Utility Functions'!$V$5,'Utility Functions'!$V$6)","v":0.83333333333333337},{"$f":"valuePL(M17,'Utility Functions'!$W$3:$W$6,'Utility Functions'!$X$3:$X$6)","v":0.91818181818181821},{"$f":"valueE(N17,'Utility Functions'!$Z$3,'Utility Functions'!$Z$4,'Utility Functions'!$Z$5,'Utility Functions'!$Z$6)","v":0},{"$f":"valuePL(O17,'Utility Functions'!$AA$3:$AA$5,'Utility Functions'!$AB$3:$AB$5)","v":0},{"$f":"valuePL(P17,'Utility Functions'!$AC$3:$AC$7,'Utility Functions'!$AD$3:$AD$7)","v":0.75},{"$f":"valuePL(Q17,'Utility Functions'!$AE$3:$AE$6,'Utility Functions'!$AF$3:$AF$6)","v":0},{"$f":"valuePL(R17,'Utility Functions'!$AG$3:$AG$6,'Utility Functions'!$AH$3:$AH$6)","v":1},{"$f":"valuePL(S17,'Utility Functions'!$AI$3:$AI$6,'Utility Functions'!$AJ$3:$AJ$6)","v":1},{"$f":"valuePL(T17,'Utility Functions'!$AK$3:$AK$8,'Utility Functions'!$AL$3:$AL$8)","v":1},{"$f":"valuePL(U17,'Utility Functions'!$AM$3:$AM$5,'Utility Functions'!$AN$3:$AN$5)","v":0},{"$f":"valuePL(V17,'Utility Functions'!$AO$3:$AO$5,'Utility Functions'!$AP$3:$AP$5)","v":1},{"$f":"valuePL(W17,'Utility Functions'!$AQ$3:$AQ$6,'Utility Functions'!$AR$3:$AR$6)","v":0.75},{"$f":"valuePL(X17,'Utility Functions'!$AS$3:$AS$6,'Utility Functions'!$AT$3:$AT$6)","v":0.75},{"$f":"valuePL(Y17,'Utility Functions'!$AU$3:$AU$6,'Utility Functions'!$AV$3:$AV$6)","v":0.2},{"$f":"valuePL(Z17,'Utility Functions'!$AW$3:$AW$5,'Utility Functions'!$AX$3:$AX$5)","v":1},{"$f":"valuePL(AA17,'Utility Functions'!$AY$3:$AY$6,'Utility Functions'!$AZ$3:$AZ$6)","v":1},{"$f":"valuePL(AB17,'Utility Functions'!$BA$3:$BA$5,'Utility Functions'!$BB$3:$BB$5)","v":1},{"$f":"valuePL(AC17,'Utility Functions'!$BC$3:$BC$5,'Utility Functions'!$BD$3:$BD$5)","v":1},15.119696969696969,null,15.119696969696971,0,4.6696969696969699,0,3.75,6.7]
[17,{"$f":"valueE(B18,'Utility Functions'!$B$3,'Utility Functions'!$B$4,'Utility Functions'!$B$5,'Utility Functions'!$B$6)","v":0.32968045347775865},{"$f":"valueE(C18,'Utility Functions'!$D$3,'Utility Functions'!$D$4,'Utility Functions'!$D$5,'Utility Functions'!$D$6)","v":0.78989979019422951},{"$f":"valuePL(D18,'Utility Functions'!$E$3:$E$5,'Utility Functions'!$F$3:$F$5)","v":1},{"$f":"valuePL(E18,'Utility Functions'!$G$3:$G$5,'Utility Functions'!$H$3:$H$5)","v":0.5},{"$f":"valuePL(F18,'Utility Functions'!$I$3:$I$4,'Utility Functions'!$J$3:$J$5)","v":1},{"$f":"valueE(G18,'Utility Functions'!$L$3,'Utility Functions'!$L$4,'Utility Functions'!$L$5,'Utility Functions'!$L$6)","v":0.31182795698924731},{"$f":"valueE(H18,'Utility Functions'!$N$3,'Utility Functions'!$N$4,'Utility Functions'!$N$5,'Utility Functions'!$N$6)","v":0.27514231499051234},{"$f":"valuePL(I18,'Utility Functions'!$O$3:$O$6,'Utility Functions'!$P$3:$P$6)","v":0},{"$f":"valuePL(J18,'Utility Functions'!$Q$3:$Q$6,'Utility Functions'!$R$3:$R$6)","v":0},{"$f":"valuePL(K18,'Utility Functions'!$S$3:$S$7,'Utility Functions'!$T$3:$T$7)","v":0},{"$f":"valueE(L18,'Utility Functions'!$V$3,'Utility Functions'!$V$4,'Utility Functions'!$V$5,'Utility Functions'!$V$6)","v":1},{"$f":"valuePL(M18,'Utility Functions'!$W$3:$W$6,'Utility Functions'!$X$3:$X$6)","v":6.0000000000000012E-2},{"$f":"valueE(N18,'Utility Functions'!$Z$3,'Utility Functions'!$Z$4,'Utility Functions'!$Z$5,'Utility Functions'!$Z$6)","v":0},{"$f":"valuePL(O18,'Utility Functions'!$AA$3:$AA$5,'Utility Functions'!$AB$3:$AB$5)","v":0},{"$f":"valuePL(P18,'Utility Functions'!$AC$3:$AC$7,'Utility Functions'!$AD$3:$AD$7)","v":0},{"$f":"valuePL(Q18,'Utility Functions'!$AE$3:$AE$6,'Utility Functions'!$AF$3:$AF$6)","v":0},{"$f":"valuePL(R18,'Utility Functions'!$AG$3:$AG$6,'Utility Functions'!$AH$3:$AH$6)","v":1},{"$f":"valuePL(S18,'Utility Functions'!$AI$3:$AI$6,'Utility Functions'!$AJ$3:$AJ$6)","v":0.66},{"$f":"valuePL(T18,'Utility Functions'!$AK$3:$AK$8,'Utility Functions'!$AL$3:$AL$8)","v":0},{"$f":"valuePL(U18,'Utility Functions'!$AM$3:$AM$5,'Utility Functions'!$AN$3:$AN$5)","v":0},{"$f":"valuePL(V18,'Utility Functions'!$AO$3:$AO$5,'Utility Functions'!$AP$3:$AP$5)","v":1},{"$f":"valuePL(W18,'Utility Functions'!$AQ$3:$AQ$6,'Utility Functions'!$AR$3:$AR$6)","v":1},{"$f":"valuePL(X18,'Utility Functions'!$AS$3:$AS$6,'Utility Functions'!$AT$3:$AT$6)","v":0.2},{"$f":"valuePL(Y18,'Utility Functions'!$AU$3:$AU$6,'Utility Functions'!$AV$3:$AV$6)","v":0},{"$f":"valuePL(Z18,'Utility Functions'!$AW$3:$AW$5,'Utility Functions'!$AX$3:$AX$5)","v":0.5},{"$f":"valuePL(AA18,'Utility Functions'!$AY$3:$AY$6,'Utility Functions'!$AZ$3:$AZ$6)","v":0},{"$f":"valuePL(AB18,'Utility Functions'!$BA$3:$BA$5,'Utility Functions'!$BB$3:$BB$5)","v":1},{"$f":"valuePL(AC18,'Utility Functions'!$BC$3:$BC$5,'Utility Functions'!$BD$3:$BD$5)","v":0.25},10.876550515651747,null,10.876550515651747,3.6195802436719884,1.6469702719797596,0,1.6600000000000001,3.95]
[18,{"$f":"valueE(B19,'Utility Functions'!$B$3,'Utility Functions'!$B$4,'Utility Functions'!$B$5,'Utility Functions'!$B$6)","v":0},{"$f":"valueE(C19,'Utility Functions'!$D$3,'Utility Functions'!$D$4,'Utility Functions'!$D$5,'Utility Functions'!$D$6)","v":0},{"$f":"valuePL(D19,'Utility Functions'!$E$3:$E$5,'Utility Functions'!$F$3:$F$5)","v":0},{"$f":"valuePL(E19,'Utility Functions'!$G$3:$G$5,'Utility Functions'!$H$3:$H$5)","v":0},{"$f":"valuePL(F19,'Utility Functions'!$I$3:$I$4,'Utility Functions'!$J$3:$J$5)","v":0},{"$f":"valueE(G19,'Utility Functions'!$L$3,'Utility Functions'!$L$4,'Utility Functions'!$L$5,'Utility Functions'!$L$6)","v":0},{"$f":"valueE(H19,'Utility Functions'!$N$3,'Utility Functions'!$N$4,'Utility Functions'!$N$5,'Utility Functions'!$N$6)","v":2.8462998102466792E-2},{"$f":"valuePL(I19,'Utility Functions'!$O$3:$O$6,'Utility Functions'!$P$3:$P$6)","v":0},{"$f":"valuePL(J19,'Utility Functions'!$Q$3:$Q$6,'Utility Functions'!$R$3:$R$6)","v":0},{"$f":"valuePL(K19,'Utility Functions'!$S$3:$S$7,'Utility Functions'!$T$3:$T$7)","v":0},{"$f":"valueE(L19,'Utility Functions'!$V$3,'Utility Functions'!$V$4,'Utility Functions'!$V$5,'Utility Functions'!$V$6)","v":0},{"$f":"valuePL(M19,'Utility Functions'!$W$3:$W$6,'Utility Functions'!$X$3:$X$6)","v":0},{"$f":"valueE(N19,'Utility Functions'!$Z$3,'Utility Functions'!$Z$4,'Utility Functions'!$Z$5,'Utility Functions'!$Z$6)","v":1},{"$f":"valuePL(O19,'Utility Functions'!$AA$3:$AA$5,'Utility Functions'!$AB$3:$AB$5)","v":0.25},{"$f":"valuePL(P19,'Utility Functions'!$AC$3:$AC$7,'Utility Functions'!$AD$3:$AD$7)","v":0.25},{"$f":"valuePL(Q19,'Utility Functions'!$AE$3:$AE$6,'Utility Functions'!$AF$3:$AF$6)","v":1},{"$f":"valuePL(R19,'Utility Functions'!$AG$3:$AG$6,'Utility Functions'!$AH$3:$AH$6)","v":1},{"$f":"valuePL(S19,'Utility Functions'!$AI$3:$AI$6,'Utility Functions'!$AJ$3:$AJ$6)","v":1},{"$f":"valuePL(T19,'Utility Functions'!$AK$3:$AK$8,'Utility Functions'!$AL$3:$AL$8)","v":1},{"$f":"valuePL(U19,'Utility Functions'!$AM$3:$AM$5,'Utility Functions'!$AN$3:$AN$5)","v":0.25},{"$f":"valuePL(V19,'Utility Functions'!$AO$3:$AO$5,'Utility Functions'!$AP$3:$AP$5)","v":1},{"$f":"valuePL(W19,'Utility Functions'!$AQ$3:$AQ$6,'Utility Functions'!$AR$3:$AR$6)","v":0.75},{"$f":"valuePL(X19,'Utility Functions'!$AS$3:$AS$6,'Utility Functions'!$AT$3:$AT$6)","v":0.2},{"$f":"valuePL(Y19,'Utility Functions'!$AU$3:$AU$6,'Utility Functions'!$AV$3:$AV$6)","v":0.8},{"$f":"valuePL(Z19,'Utility Functions'!$AW$3:$AW$5,'Utility Functions'!$AX$3:$AX$5)","v":0.5},{"$f":"valuePL(AA19,'Utility Functions'!$AY$3:$AY$6,'Utility Functions'!$AZ$3:$AZ$6)","v":0.89999999999999991},{"$f":"valuePL(AB19,'Utility Functions'!$BA$3:$BA$5,'Utility Functions'!$BB$3:$BB$5)","v":0.25},{"$f":"valuePL(AC19,'Utility Functions'!$BC$3:$BC$5,'Utility Functions'!$BD$3:$BD$5)","v":0},10.178462998102468,null,10.178462998102468,0,2.8462998102466792E-2,1.25,4.5,4.4000000000000004]
[19,{"$f":"valueE(B20,'Utility Functions'!$B$3,'Utility Functions'!$B$4,'Utility Functions'!$B$5,'Utility Functions'!$B$6)","v":0.79810469124896843},{"$f":"valueE(C20,'Utility Functions'!$D$3,'Utility Functions'!$D$4,'Utility Functions'!$D$5,'Utility Functions'!$D$6)","v":0.26839655623815994},{"$f":"valuePL(D20,'Utility Functions'!$E$3:$E$5,'Utility Functions'!$F$3:$F$5)","v":0.5},{"$f":"valuePL(E20,'Utility Functions'!$G$3:$G$5,'Utility Functions'!$H$3:$H$5)","v":1},{"$f":"valuePL(F20,'Utility Functions'!$I$3:$I$4,'Utility Functions'!$J$3:$J$5)","v":0},{"$f":"valueE(G20,'Utility Functions'!$L$3,'Utility Functions'!$L$4,'Utility Functions'!$L$5,'Utility Functions'!$L$6)","v":0},{"$f":"valueE(H20,'Utility Functions'!$N$3,'Utility Functions'!$N$4,'Utility Functions'!$N$5,'Utility Functions'!$N$6)","v":0},{"$f":"valuePL(I20,'Utility Functions'!$O$3:$O$6,'Utility Functions'!$P$3:$P$6)","v":0},{"$f":"valuePL(J20,'Utility Functions'!$Q$3:$Q$6,'Utility Functions'!$R$3:$R$6)","v":0},{"$f":"valuePL(K20,'Utility Functions'!$S$3:$S$7,'Utility Functions'!$T$3:$T$7)","v":0},{"$f":"valueE(L20,'Utility Functions'!$V$3,'Utility Functions'!$V$4,'Utility Functions'!$V$5,'Utility Functions'!$V$6)","v":0},{"$f":"valuePL(M20,'Utility Functions'!$W$3:$W$6,'Utility Functions'!$X$3:$X$6)","v":0},{"$f":"valueE(N20,'Utility Functions'!$Z$3,'Utility Functions'!$Z$4,'Utility Functions'!$Z$5,'Utility Functions'!$Z$6)","v":1},{"$f":"valuePL(O20,'Utility Functions'!$AA$3:$AA$5,'Utility Functions'!$AB$3:$AB$5)","v":1},{"$f":"valuePL(P20,'Utility Functions'!$AC$3:$AC$7,'Utility Functions'!$AD$3:$AD$7)","v":0},{"$f":"valuePL(Q20,'Utility Functions'!$AE$3:$AE$6,'Utility Functions'!$AF$3:$AF$6)","v":0},{"$f":"valuePL(R20,'Utility Functions'!$AG$3:$AG$6,'Utility Functions'!$AH$3:$AH$6)","v":0.8},{"$f":"valuePL(S20,'Utility Functions'!$AI$3:$AI$6,'Utility Functions'!$AJ$3:$AJ$6)","v":1},{"$f":"valuePL(T20,'Utility Functions'!$AK$3:$AK$8,'Utility Functions'!$AL$3:$AL$8)","v":0},{"$f":"valuePL(U20,'Utility Functions'!$AM$3:$AM$5,'Utility Functions'!$AN$3:$AN$5)","v":0},{"$f":"valuePL(V20,'Utility Functions'!$AO$3:$AO$5,'Utility Functions'!$AP$3:$AP$5)","v":0.5},{"$f":"valuePL(W20,'Utility Functions'!$AQ$3:$AQ$6,'Utility Functions'!$AR$3:$AR$6)","v":0.2},{"$f":"valuePL(X20,'Utility Functions'!$AS$3:$AS$6,'Utility Functions'!$AT$3:$AT$6)","v":1},{"$f":"valuePL(Y20,'Utility Functions'!$AU$3:$AU$6,'Utility Functions'!$AV$3:$AV$6)","v":0.8},{"$f":"valuePL(Z20,'Utility Functions'!$AW$3:$AW$5,'Utility Functions'!$AX$3:$AX$5)","v":0},{"$f":"valuePL(AA20,'Utility Functions'!$AY$3:$AY$6,'Utility Functions'!$AZ$3:$AZ$6)","v":0.2},{"$f":"valuePL(AB20,'Utility Functions'!$BA$3:$BA$5,'Utility Functions'!$BB$3:$BB$5)","v":0},{"$f":"valuePL(AC20,'Utility Functions'!$BC$3:$BC$5,'Utility Functions'!$BD$3:$BD$5)","v":0.25},9.3165012474871283,null,9.3165012474871283,2.5665012474871283,0,2,1.8,2.95]
[20,{"$f":"valueE(B21,'Utility Functions'!$B$3,'Utility Functions'!$B$4,'Utility Functions'!$B$5,'Utility Functions'!$B$6)","v":0.83470237647280454},{"$f":"valueE(C21,'Utility Functions'!$D$3,'Utility Functions'!$D$4,'Utility Functions'!$D$5,'Utility Functions'!$D$6)","v":0.78989979019422951},{"$f":"valuePL(D21,'Utility Functions'!$E$3:$E$5,'Utility Functions'!$F$3:$F$5)","v":0.5},{"$f":"valuePL(E21,'Utility Functions'!$G$3:$G$5,'Utility Functions'!$H$3:$H$5)","v":1},{"$f":"valuePL(F21,'Utility Functions'!$I$3:$I$4,'Utility Functions'!$J$3:$J$5)","v":0},{"$f":"valueE(G21,'Utility Functions'!$L$3,'Utility Functions'!$L$4,'Utility Functions'!$L$5,'Utility Functions'!$L$6)","v":0},{"$f":"valueE(H21,'Utility Functions'!$N$3,'Utility Functions'!$N$4,'Utility Functions'!$N$5,'Utility Functions'!$N$6)","v":0.41271347248576851},{"$f":"valuePL(I21,'Utility Functions'!$O$3:$O$6,'Utility Functions'!$P$3:$P$6)","v":0.93454545454545446},{"$f":"valuePL(J21,'Utility Functions'!$Q$3:$Q$6,'Utility Functions'!$R$3:$R$6)","v":0.50909090909090915},{"$f":"valuePL(K21,'Utility Functions'!$S$3:$S$7,'Utility Functions'!$T$3:$T$7)","v":0.93454545454545446},{"$f":"valueE(L21,'Utility Functions'!$V$3,'Utility Functions'!$V$4,'Utility Functions'!$V$5,'Utility Functions'!$V$6)","v":0.66666666666666663},{"$f":"valuePL(M21,'Utility Functions'!$W$3:$W$6,'Utility Functions'!$X$3:$X$6)","v":0.50909090909090915},{"$f":"valueE(N21,'Utility Functions'!$Z$3,'Utility Functions'!$Z$4,'Utility Functions'!$Z$5,'Utility Functions'!$Z$6)","v":1},{"$f":"valuePL(O21,'Utility Functions'!$AA$3:$AA$5,'Utility Functions'!$AB$3:$AB$5)","v":1},{"$f":"valuePL(P21,'Utility Functions'!$AC$3:$AC$7,'Utility Functions'!$AD$3:$AD$7)","v":0.25},{"$f":"valuePL(Q21,'Utility Functions'!$AE$3:$AE$6,'Utility Functions'!$AF$3:$AF$6)","v":0},{"$f":"valuePL(R21,'Utility Functions'!$AG$3:$AG$6,'Utility Functions'!$AH$3:$AH$6)","v":1},{"$f":"valuePL(S21,'Utility Functions'!$AI$3:$AI$6,'Utility Functions'!$AJ$3:$AJ$6)","v":1},{"$f":"valuePL(T21,'Utility Functions'!$AK$3:$AK$8,'Utility Functions'!$AL$3:$AL$8)","v":0.6},{"$f":"valuePL(U21,'Utility Functions'!$AM$3:$AM$5,'Utility Functions'!$AN$3:$AN$5)","v":1},{"$f":"valuePL(V21,'Utility Functions'!$AO$3:$AO$5,'Utility Functions'!$AP$3:$AP$5)","v":0.5},{"$f":"valuePL(W21,'Utility Functions'!$AQ$3:$AQ$6,'Utility Functions'!$AR$3:$AR$6)","v":0},{"$f":"valuePL(X21,'Utility Functions'!$AS$3:$AS$6,'Utility Functions'!$AT$3:$AT$6)","v":0},{"$f":"valuePL(Y21,'Utility Functions'!$AU$3:$AU$6,'Utility Functions'!$AV$3:$AV$6)","v":0.2},{"$f":"valuePL(Z21,'Utility Functions'!$AW$3:$AW$5,'Utility Functions'!$AX$3:$AX$5)","v":1},{"$f":"valuePL(AA21,'Utility Functions'!$AY$3:$AY$6,'Utility Functions'!$AZ$3:$AZ$6)","v":0.2},{"$f":"valuePL(AB21,'Utility Functions'!$BA$3:$BA$5,'Utility Functions'!$BB$3:$BB$5)","v":0},{"$f":"valuePL(AC21,'Utility Functions'!$BC$3:$BC$5,'Utility Functions'!$BD$3:$BD$5)","v":0.25},15.091255033092194,null,15.091255033092196,3.1246021666670343,3.9666528664251626,2,3.85,2.15]
[21,{"$f":"valueE(B22,'Utility Functions'!$B$3,'Utility Functions'!$B$4,'Utility Functions'!$B$5,'Utility Functions'!$B$6)","v":0},{"$f":"valueE(C22,'Utility Functions'!$D$3,'Utility Functions'!$D$4,'Utility Functions'!$D$5,'Utility Functions'!$D$6)","v":0},{"$f":"valuePL(D22,'Utility Functions'!$E$3:$E$5,'Utility Functions'!$F$3:$F$5)","v":0},{"$f":"valuePL(E22,'Utility Functions'!$G$3:$G$5,'Utility Functions'!$H$3:$H$5)","v":0},{"$f":"valuePL(F22,'Utility Functions'!$I$3:$I$4,'Utility Functions'!$J$3:$J$5)","v":0},{"$f":"valueE(G22,'Utility Functions'!$L$3,'Utility Functions'!$L$4,'Utility Functions'!$L$5,'Utility Functions'!$L$6)","v":0},{"$f":"valueE(H22,'Utility Functions'!$N$3,'Utility Functions'!$N$4,'Utility Functions'!$N$5,'Utility Functions'!$N$6)","v":0},{"$f":"valuePL(I22,'Utility Functions'!$O$3:$O$6,'Utility Functions'!$P$3:$P$6)","v":0},{"$f":"valuePL(J22,'Utility Functions'!$Q$3:$Q$6,'Utility Functions'!$R$3:$R$6)","v":0},{"$f":"valuePL(K22,'Utility Functions'!$S$3:$S$7,'Utility Functions'!$T$3:$T$7)","v":0},{"$f":"valueE(L22,'Utility Functions'!$V$3,'Utility Functions'!$V$4,'Utility Functions'!$V$5,'Utility Functions'!$V$6)","v":0},{"$f":"valuePL(M22,'Utility Functions'!$W$3:$W$6,'Utility Functions'!$X$3:$X$6)","v":0},{"$f":"valueE(N22,'Utility Functions'!$Z$3,'Utility Functions'!$Z$4,'Utility Functions'!$Z$5,'Utility Functions'!$Z$6)","v":1},{"$f":"valuePL(O22,'Utility Functions'!$AA$3:$AA$5,'Utility Functions'!$AB$3:$AB$5)","v":1},{"$f":"valuePL(P22,'Utility Functions'!$AC$3:$AC$7,'Utility Functions'!$AD$3:$AD$7)","v":0},{"$f":"valuePL(Q22,'Utility Functions'!$AE$3:$AE$6,'Utility Functions'!$AF$3:$AF$6)","v":0.1},{"$f":"valuePL(R22,'Utility Functions'!$AG$3:$AG$6,'Utility Functions'!$AH$3:$AH$6)","v":1},{"$f":"valuePL(S22,'Utility Functions'!$AI$3:$AI$6,'Utility Functions'!$AJ$3:$AJ$6)","v":1},{"$f":"valuePL(T22,'Utility Functions'!$AK$3:$AK$8,'Utility Functions'!$AL$3:$AL$8)","v":1},{"$f":"valuePL(U22,'Utility Functions'!$AM$3:$AM$5,'Utility Functions'!$AN$3:$AN$5)","v":0.25},{"$f":"valuePL(V22,'Utility Functions'!$AO$3:$AO$5,'Utility Functions'!$AP$3:$AP$5)","v":0},{"$f":"valuePL(W22,'Utility Functions'!$AQ$3:$AQ$6,'Utility Functions'!$AR$3:$AR$6)","v":0.75},{"$f":"valuePL(X22,'Utility Functions'!$AS$3:$AS$6,'Utility Functions'!$AT$3:$AT$6)","v":1},{"$f":"valuePL(Y22,'Utility Functions'!$AU$3:$AU$6,'Utility Functions'!$AV$3:$AV$6)","v":0.2},{"$f":"valuePL(Z22,'Utility Functions'!$AW$3:$AW$5,'Utility Functions'!$AX$3:$AX$5)","v":0},{"$f":"valuePL(AA22,'Utility Functions'!$AY$3:$AY$6,'Utility Functions'!$AZ$3:$AZ$6)","v":1},{"$f":"valuePL(AB22,'Utility Functions'!$BA$3:$BA$5,'Utility Functions'!$BB$3:$BB$5)","v":0.25},{"$f":"valuePL(AC22,'Utility Functions'!$BC$3:$BC$5,'Utility Functions'!$BD$3:$BD$5)","v":1},9.5500000000000007,null,9.5500000000000007,0,0,2,3.35,4.2]
[22,{"$f":"valueE(B23,'Utility Functions'!$B$3,'Utility Functions'!$B$4,'Utility Functions'!$B$5,'Utility Functions'!$B$6)","v":0},{"$f":"valueE(C23,'Utility Functions'!$D$3,'Utility Functions'!$D$4,'Utility Functions'!$D$5,'Utility Functions'!$D$6)","v":0},{"$f":"valuePL(D23,'Utility Functions'!$E$3:$E$5,'Utility Functions'!$F$3:$F$5)","v":0},{"$f":"valuePL(E23,'Utility Functions'!$G$3:$G$5,'Utility Functions'!$H$3:$H$5)","v":0},{"$f":"valuePL(F23,'Utility Functions'!$I$3:$I$4,'Utility Functions'!$J$3:$J$5)","v":0},{"$f":"valueE(G23,'Utility Functions'!$L$3,'Utility Functions'!$L$4,'Utility Functions'!$L$5,'Utility Functions'!$L$6)","v":8.6021505376344093E-2},{"$f":"valueE(H23,'Utility Functions'!$N$3,'Utility Functions'!$N$4,'Utility Functions'!$N$5,'Utility Functions'!$N$6)","v":6.0721062618595827E-2},{"$f":"valuePL(I23,'Utility Functions'!$O$3:$O$6,'Utility Functions'!$P$3:$P$6)","v":0},{"$f":"valuePL(J23,'Utility Functions'!$Q$3:$Q$6,'Utility Functions'!$R$3:$R$6)","v":0},{"$f":"valuePL(K23,'Utility Functions'!$S$3:$S$7,'Utility Functions'!$T$3:$T$7)","v":0},{"$f":"valueE(L23,'Utility Functions'!$V$3,'Utility Functions'!$V$4,'Utility Functions'!$V$5,'Utility Functions'!$V$6)","v":0},{"$f":"valuePL(M23,'Utility Functions'!$W$3:$W$6,'Utility Functions'!$X$3:$X$6)","v":0},{"$f":"valueE(N23,'Utility Functions'!$Z$3,'Utility Functions'!$Z$4,'Utility Functions'!$Z$5,'Utility Functions'!$Z$6)","v":0.125},{"$f":"valuePL(O23,'Utility Functions'!$AA$3:$AA$5,'Utility Functions'!$AB$3:$AB$5)","v":1},{"$f":"valuePL(P23,'Utility Functions'!$AC$3:$AC$7,'Utility Functions'!$AD$3:$AD$7)","v":1},{"$f":"valuePL(Q23,'Utility Functions'!$AE$3:$AE$6,'Utility Functions'!$AF$3:$AF$6)","v":0.5},{"$f":"valuePL(R23,'Utility Functions'!$AG$3:$AG$6,'Utility Functions'!$AH$3:$AH$6)","v":0.8},{"$f":"valuePL(S23,'Utility Functions'!$AI$3:$AI$6,'Utility Functions'!$AJ$3:$AJ$6)","v":1},{"$f":"valuePL(T23,'Utility Functions'!$AK$3:$AK$8,'Utility Functions'!$AL$3:$AL$8)","v":1},{"$f":"valuePL(U23,'Utility Functions'!$AM$3:$AM$5,'Utility Functions'!$AN$3:$AN$5)","v":0},{"$f":"valuePL(V23,'Utility Functions'!$AO$3:$AO$5,'Utility Functions'!$AP$3:$AP$5)","v":0.5},{"$f":"valuePL(W23,'Utility Functions'!$AQ$3:$AQ$6,'Utility Functions'!$AR$3:$AR$6)","v":0.75},{"$f":"valuePL(X23,'Utility Functions'!$AS$3:$AS$6,'Utility Functions'!$AT$3:$AT$6)","v":0.2},{"$f":"valuePL(Y23,'Utility Functions'!$AU$3:$AU$6,'Utility Functions'!$AV$3:$AV$6)","v":0},{"$f":"valuePL(Z23,'Utility Functions'!$AW$3:$AW$5,'Utility Functions'!$AX$3:$AX$5)","v":1},{"$f":"valuePL(AA23,'Utility Functions'!$AY$3:$AY$6,'Utility Functions'!$AZ$3:$AZ$6)","v":0.2},{"$f":"valuePL(AB23,'Utility Functions'!$BA$3:$BA$5,'Utility Functions'!$BB$3:$BB$5)","v":1},{"$f":"valuePL(AC23,'Utility Functions'!$BC$3:$BC$5,'Utility Functions'!$BD$3:$BD$5)","v":0.25},9.471742567994939,null,9.4717425679949407,0,0.14674256799493993,1.125,4.3,3.9000000000000004]
[23,{"$f":"valueE(B24,'Utility Functions'!$B$3,'Utility Functions'!$B$4,'Utility Functions'!$B$5,'Utility Functions'!$B$6)","v":0.83470237647280454},{"$f":"valueE(C24,'Utility Functions'!$D$3,'Utility Functions'!$D$4,'Utility Functions'!$D$5,'Utility Functions'!$D$6)","v":0.84744836833951609},{"$f":"valuePL(D24,'Utility Functions'!$E$3:$E$5,'Utility Functions'!$F$3:$F$5)","v":1},{"$f":"valuePL(E24,'Utility Functions'!$G$3:$G$5,'Utility Functions'!$H$3:$H$5)","v":0},{"$f":"valuePL(F24,'Utility Functions'!$I$3:$I$4,'Utility Functions'!$J$3:$J$5)","v":0},{"$f":"valueE(G24,'Utility Functions'!$L$3,'Utility Functions'!$L$4,'Utility Functions'!$L$5,'Utility Functions'!$L$6)","v":0},{"$f":"valueE(H24,'Utility Functions'!$N$3,'Utility Functions'!$N$4,'Utility Functions'!$N$5,'Utility Functions'!$N$6)","v":0},{"$f":"valuePL(I24,'Utility Functions'!$O$3:$O$6,'Utility Functions'!$P$3:$P$6)","v":0},{"$f":"valuePL(J24,'Utility Functions'!$Q$3:$Q$6,'Utility Functions'!$R$3:$R$6)","v":0},{"$f":"valuePL(K24,'Utility Functions'!$S$3:$S$7,'Utility Functions'!$T$3:$T$7)","v":0},{"$f":"valueE(L24,'Utility Functions'!$V$3,'Utility Functions'!$V$4,'Utility Functions'!$V$5,'Utility Functions'!$V$6)","v":0},{"$f":"valuePL(M24,'Utility Functions'!$W$3:$W$6,'Utility Functions'!$X$3:$X$6)","v":0},{"$f":"valueE(N24,'Utility Functions'!$Z$3,'Utility Functions'!$Z$4,'Utility Functions'!$Z$5,'Utility Functions'!$Z$6)","v":0},{"$f":"valuePL(O24,'Utility Functions'!$AA$3:$AA$5,'Utility Functions'!$AB$3:$AB$5)","v":0},{"$f":"valuePL(P24,'Utility Functions'!$AC$3:$AC$7,'Utility Functions'!$AD$3:$AD$7)","v":0.75},{"$f":"valuePL(Q24,'Utility Functions'!$AE$3:$AE$6,'Utility Functions'!$AF$3:$AF$6)","v":0},{"$f":"valuePL(R24,'Utility Functions'!$AG$3:$AG$6,'Utility Functions'!$AH$3:$AH$6)","v":1},{"$f":"valuePL(S24,'Utility Functions'!$AI$3:$AI$6,'Utility Functions'!$AJ$3:$AJ$6)","v":1},{"$f":"valuePL(T24,'Utility Functions'!$AK$3:$AK$8,'Utility Functions'!$AL$3:$AL$8)","v":1},{"$f":"valuePL(U24,'Utility Functions'!$AM$3:$AM$5,'Utility Functions'!$AN$3:$AN$5)","v":0},{"$f":"valuePL(V24,'Utility Functions'!$AO$3:$AO$5,'Utility Functions'!$AP$3:$AP$5)","v":1},{"$f":"valuePL(W24,'Utility Functions'!$AQ$3:$AQ$6,'Utility Functions'!$AR$3:$AR$6)","v":0.2},{"$f":"valuePL(X24,'Utility Functions'!$AS$3:$AS$6,'Utility Functions'!$AT$3:$AT$6)","v":0.75},{"$f":"valuePL(Y24,'Utility Functions'!$AU$3:$AU$6,'Utility Functions'!$AV$3:$AV$6)","v":0.2},{"$f":"valuePL(Z24,'Utility Functions'!$AW$3:$AW$5,'Utility Functions'!$AX$3:$AX$5)","v":0.5},{"$f":"valuePL(AA24,'Utility Functions'!$AY$3:$AY$6,'Utility Functions'!$AZ$3:$AZ$6)","v":0.2},{"$f":"valuePL(AB24,'Utility Functions'!$BA$3:$BA$5,'Utility Functions'!$BB$3:$BB$5)","v":0},{"$f":"valuePL(AC24,'Utility Functions'!$BC$3:$BC$5,'Utility Functions'!$BD$3:$BD$5)","v":0.25},9.5321507448123199,null,9.5321507448123199,2.6821507448123207,0,0,3.75,3.1]
[24,{"$f":"valueE(B25,'Utility Functions'!$B$3,'Utility Functions'!$B$4,'Utility Functions'!$B$5,'Utility Functions'!$B$6)","v":0.63212151658375171},{"$f":"valueE(C25,'Utility Functions'!$D$3,'Utility Functions'!$D$4,'Utility Functions'!$D$5,'Utility Functions'!$D$6)","v":0.46475967153745396},{"$f":"valuePL(D25,'Utility Functions'!$E$3:$E$5,'Utility Functions'!$F$3:$F$5)","v":1},{"$f":"valuePL(E25,'Utility Functions'!$G$3:$G$5,'Utility Functions'!$H$3:$H$5)","v":0},{"$f":"valuePL(F25,'Utility Functions'!$I$3:$I$4,'Utility Functions'!$J$3:$J$5)","v":0},{"$f":"valueE(G25,'Utility Functions'!$L$3,'Utility Functions'!$L$4,'Utility Functions'!$L$5,'Utility Functions'!$L$6)","v":0},{"$f":"valueE(H25,'Utility Functions'!$N$3,'Utility Functions'!$N$4,'Utility Functions'!$N$5,'Utility Functions'!$N$6)","v":0},{"$f":"valuePL(I25,'Utility Functions'!$O$3:$O$6,'Utility Functions'!$P$3:$P$6)","v":0},{"$f":"valuePL(J25,'Utility Functions'!$Q$3:$Q$6,'Utility Functions'!$R$3:$R$6)","v":0},{"$f":"valuePL(K25,'Utility Functions'!$S$3:$S$7,'Utility Functions'!$T$3:$T$7)","v":0},{"$f":"valueE(L25,'Utility Functions'!$V$3,'Utility Functions'!$V$4,'Utility Functions'!$V$5,'Utility Functions'!$V$6)","v":0},{"$f":"valuePL(M25,'Utility Functions'!$W$3:$W$6,'Utility Functions'!$X$3:$X$6)","v":0},{"$f":"valueE(N25,'Utility Functions'!$Z$3,'Utility Functions'!$Z$4,'Utility Functions'!$Z$5,'Utility Functions'!$Z$6)","v":0},{"$f":"valuePL(O25,'Utility Functions'!$AA$3:$AA$5,'Utility Functions'!$AB$3:$AB$5)","v":0},{"$f":"valuePL(P25,'Utility Functions'!$AC$3:$AC$7,'Utility Functions'!$AD$3:$AD$7)","v":0},{"$f":"valuePL(Q25,'Utility Functions'!$AE$3:$AE$6,'Utility Functions'!$AF$3:$AF$6)","v":0},{"$f":"valuePL(R25,'Utility Functions'!$AG$3:$AG$6,'Utility Functions'!$AH$3:$AH$6)","v":1},{"$f":"valuePL(S25,'Utility Functions'!$AI$3:$AI$6,'Utility Functions'!$AJ$3:$AJ$6)","v":1},{"$f":"valuePL(T25,'Utility Functions'!$AK$3:$AK$8,'Utility Functions'!$AL$3:$AL$8)","v":1},{"$f":"valuePL(U25,'Utility Functions'!$AM$3:$AM$5,'Utility Functions'!$AN$3:$AN$5)","v":0},{"$f":"valuePL(V25,'Utility Functions'!$AO$3:$AO$5,'Utility Functions'!$AP$3:$AP$5)","v":0},{"$f":"valuePL(W25,'Utility Functions'!$AQ$3:$AQ$6,'Utility Functions'!$AR$3:$AR$6)","v":1},{"$f":"valuePL(X25,'Utility Functions'!$AS$3:$AS$6,'Utility Functions'!$AT$3:$AT$6)","v":0.2},{"$f":"valuePL(Y25,'Utility Functions'!$AU$3:$AU$6,'Utility Functions'!$AV$3:$AV$6)","v":1},{"$f":"valuePL(Z25,'Utility Functions'!$AW$3:$AW$5,'Utility Functions'!$AX$3:$AX$5)","v":1},{"$f":"valuePL(AA25,'Utility Functions'!$AY$3:$AY$6,'Utility Functions'!$AZ$3:$AZ$6)","v":0.2},{"$f":"valuePL(AB25,'Utility Functions'!$BA$3:$BA$5,'Utility Functions'!$BB$3:$BB$5)","v":0},{"$f":"valuePL(AC25,'Utility Functions'!$BC$3:$BC$5,'Utility Functions'!$BD$3:$BD$5)","v":1},9.4968811881212041,null,9.4968811881212059,2.0968811881212055,0,0,3,4.4000000000000004]
[25,{"$f":"valueE(B26,'Utility Functions'!$B$3,'Utility Functions'!$B$4,'Utility Functions'!$B$5,'Utility Functions'!$B$6)","v":0.83470237647280454},{"$f":"valueE(C26,'Utility Functions'!$D$3,'Utility Functions'!$D$4,'Utility Functions'!$D$5,'Utility Functions'!$D$6)","v":0.84744836833951609},{"$f":"valuePL(D26,'Utility Functions'!$E$3:$E$5,'Utility Functions'!$F$3:$F$5)","v":1},{"$f":"valuePL(E26,'Utility Functions'!$G$3:$G$5,'Utility Functions'!$H$3:$H$5)","v":0},{"$f":"valuePL(F26,'Utility Functions'!$I$3:$I$4,'Utility Functions'!$J$3:$J$5)","v":0},{"$f":"valueE(G26,'Utility Functions'!$L$3,'Utility Functions'!$L$4,'Utility Functions'!$L$5,'Utility Functions'!$L$6)","v":0.94623655913978499},{"$f":"valueE(H26,'Utility Functions'!$N$3,'Utility Functions'!$N$4,'Utility Functions'!$N$5,'Utility Functions'!$N$6)","v":0.29222011385199242},{"$f":"valuePL(I26,'Utility Functions'!$O$3:$O$6,'Utility Functions'!$P$3:$P$6)","v":0},{"$f":"valuePL(J26,'Utility Functions'!$Q$3:$Q$6,'Utility Functions'!$R$3:$R$6)","v":0},{"$f":"valuePL(K26,'Utility Functions'!$S$3:$S$7,'Utility Functions'!$T$3:$T$7)","v":0},{"$f":"valueE(L26,'Utility Functions'!$V$3,'Utility Functions'!$V$4,'Utility Functions'!$V$5,'Utility Functions'!$V$6)","v":0},{"$f":"valuePL(M26,'Utility Functions'!$W$3:$W$6,'Utility Functions'!$X$3:$X$6)","v":0},{"$f":"valueE(N26,'Utility Functions'!$Z$3,'Utility Functions'!$Z$4,'Utility Functions'!$Z$5,'Utility Functions'!$Z$6)","v":1},{"$f":"valuePL(O26,'Utility Functions'!$AA$3:$AA$5,'Utility Functions'!$AB$3:$AB$5)","v":0.25},{"$f":"valuePL(P26,'Utility Functions'!$AC$3:$AC$7,'Utility Functions'!$AD$3:$AD$7)","v":0.5},{"$f":"valuePL(Q26,'Utility Functions'!$AE$3:$AE$6,'Utility Functions'!$AF$3:$AF$6)","v":0.5},{"$f":"valuePL(R26,'Utility Functions'!$AG$3:$AG$6,'Utility Functions'!$AH$3:$AH$6)","v":1},{"$f":"valuePL(S26,'Utility Functions'!$AI$3:$AI$6,'Utility Functions'!$AJ$3:$AJ$6)","v":1},{"$f":"valuePL(T26,'Utility Functions'!$AK$3:$AK$8,'Utility Functions'!$AL$3:$AL$8)","v":0},{"$f":"valuePL(U26,'Utility Functions'!$AM$3:$AM$5,'Utility Functions'!$AN$3:$AN$5)","v":0},{"$f":"valuePL(V26,'Utility Functions'!$AO$3:$AO$5,'Utility Functions'!$AP$3:$AP$5)","v":1},{"$f":"valuePL(W26,'Utility Functions'!$AQ$3:$AQ$6,'Utility Functions'!$AR$3:$AR$6)","v":0.2},{"$f":"valuePL(X26,'Utility Functions'!$AS$3:$AS$6,'Utility Functions'!$AT$3:$AT$6)","v":1},{"$f":"valuePL(Y26,'Utility Functions'!$AU$3:$AU$6,'Utility Functions'!$AV$3:$AV$6)","v":0.8},{"$f":"valuePL(Z26,'Utility Functions'!$AW$3:$AW$5,'Utility Functions'!$AX$3:$AX$5)","v":0.5},{"$f":"valuePL(AA26,'Utility Functions'!$AY$3:$AY$6,'Utility Functions'!$AZ$3:$AZ$6)","v":0.2},{"$f":"valuePL(AB26,'Utility Functions'!$BA$3:$BA$5,'Utility Functions'!$BB$3:$BB$5)","v":1},{"$f":"valuePL(AC26,'Utility Functions'!$BC$3:$BC$5,'Utility Functions'!$BD$3:$BD$5)","v":1},13.870607417804099,null,13.870607417804099,2.6821507448123207,1.2384566729917774,1.25,3,5.7]
[26,{"$f":"valueE(B27,'Utility Functions'!$B$3,'Utility Functions'!$B$4,'Utility Functions'!$B$5,'Utility Functions'!$B$6)","v":0.96662819462069161},{"$f":"valueE(C27,'Utility Functions'!$D$3,'Utility Functions'!$D$4,'Utility Functions'!$D$5,'Utility Functions'!$D$6)","v":0.84744836833951609},{"$f":"valuePL(D27,'Utility Functions'!$E$3:$E$5,'Utility Functions'!$F$3:$F$5)","v":1},{"$f":"valuePL(E27,'Utility Functions'!$G$3:$G$5,'Utility Functions'!$H$3:$H$5)","v":0.5},{"$f":"valuePL(F27,'Utility Functions'!$I$3:$I$4,'Utility Functions'!$J$3:$J$5)","v":0},{"$f":"valueE(G27,'Utility Functions'!$L$3,'Utility Functions'!$L$4,'Utility Functions'!$L$5,'Utility Functions'!$L$6)","v":0},{"$f":"valueE(H27,'Utility Functions'!$N$3,'Utility Functions'!$N$4,'Utility Functions'!$N$5,'Utility Functions'!$N$6)","v":0},{"$f":"valuePL(I27,'Utility Functions'!$O$3:$O$6,'Utility Functions'!$P$3:$P$6)","v":0},{"$f":"valuePL(J27,'Utility Functions'!$Q$3:$Q$6,'Utility Functions'!$R$3:$R$6)","v":0},{"$f":"valuePL(K27,'Utility Functions'!$S$3:$S$7,'Utility Functions'!$T$3:$T$7)","v":0},{"$f":"valueE(L27,'Utility Functions'!$V$3,'Utility Functions'!$V$4,'Utility Functions'!$V$5,'Utility Functions'!$V$6)","v":0},{"$f":"valuePL(M27,'Utility Functions'!$W$3:$W$6,'Utility Functions'!$X$3:$X$6)","v":0},{"$f":"valueE(N27,'Utility Functions'!$Z$3,'Utility Functions'!$Z$4,'Utility Functions'!$Z$5,'Utility Functions'!$Z$6)","v":0},{"$f":"valuePL(O27,'Utility Functions'!$AA$3:$AA$5,'Utility Functions'!$AB$3:$AB$5)","v":0},{"$f":"valuePL(P27,'Utility Functions'!$AC$3:$AC$7,'Utility Functions'!$AD$3:$AD$7)","v":0.75},{"$f":"valuePL(Q27,'Utility Functions'!$AE$3:$AE$6,'Utility Functions'!$AF$3:$AF$6)","v":0},{"$f":"valuePL(R27,'Utility Functions'!$AG$3:$AG$6,'Utility Functions'!$AH$3:$AH$6)","v":1},{"$f":"valuePL(S27,'Utility Functions'!$AI$3:$AI$6,'Utility Functions'!$AJ$3:$AJ$6)","v":1},{"$f":"valuePL(T27,'Utility Functions'!$AK$3:$AK$8,'Utility Functions'!$AL$3:$AL$8)","v":0.8},{"$f":"valuePL(U27,'Utility Functions'!$AM$3:$AM$5,'Utility Functions'!$AN$3:$AN$5)","v":0},{"$f":"valuePL(V27,'Utility Functions'!$AO$3:$AO$5,'Utility Functions'!$AP$3:$AP$5)","v":1},{"$f":"valuePL(W27,'Utility Functions'!$AQ$3:$AQ$6,'Utility Functions'!$AR$3:$AR$6)","v":0.2},{"$f":"valuePL(X27,'Utility Functions'!$AS$3:$AS$6,'Utility Functions'!$AT$3:$AT$6)","v":0},{"$f":"valuePL(Y27,'Utility Functions'!$AU$3:$AU$6,'Utility Functions'!$AV$3:$AV$6)","v":0.8},{"$f":"valuePL(Z27,'Utility Functions'!$AW$3:$AW$5,'Utility Functions'!$AX$3:$AX$5)","v":0},{"$f":"valuePL(AA27,'Utility Functions'!$AY$3:$AY$6,'Utility Functions'!$AZ$3:$AZ$6)","v":0.2},{"$f":"valuePL(AB27,'Utility Functions'!$BA$3:$BA$5,'Utility Functions'!$BB$3:$BB$5)","v":1},{"$f":"valuePL(AC27,'Utility Functions'!$BC$3:$BC$5,'Utility Functions'!$BD$3:$BD$5)","v":1},11.064076562960208,null,11.064076562960206,3.3140765629602078,0,0,3.55,4.2]
[27,{"$f":"valueE(B28,'Utility Functions'!$B$3,'Utility Functions'!$B$4,'Utility Functions'!$B$5,'Utility Functions'!$B$6)","v":0},{"$f":"valueE(C28,'Utility Functions'!$D$3,'Utility Functions'!$D$4,'Utility Functions'!$D$5,'Utility Functions'!$D$6)","v":0.46475967153745396},{"$f":"valuePL(D28,'Utility Functions'!$E$3:$E$5,'Utility Functions'!$F$3:$F$5)","v":1},{"$f":"valuePL(E28,'Utility Functions'!$G$3:$G$5,'Utility Functions'!$H$3:$H$5)","v":0},{"$f":"valuePL(F28,'Utility Functions'!$I$3:$I$4,'Utility Functions'!$J$3:$J$5)","v":0},{"$f":"valueE(G28,'Utility Functions'!$L$3,'Utility Functions'!$L$4,'Utility Functions'!$L$5,'Utility Functions'!$L$6)","v":0},{"$f":"valueE(H28,'Utility Functions'!$N$3,'Utility Functions'!$N$4,'Utility Functions'!$N$5,'Utility Functions'!$N$6)","v":0},{"$f":"valuePL(I28,'Utility Functions'!$O$3:$O$6,'Utility Functions'!$P$3:$P$6)","v":0},{"$f":"valuePL(J28,'Utility Functions'!$Q$3:$Q$6,'Utility Functions'!$R$3:$R$6)","v":0},{"$f":"valuePL(K28,'Utility Functions'!$S$3:$S$7,'Utility Functions'!$T$3:$T$7)","v":1},{"$f":"valueE(L28,'Utility Functions'!$V$3,'Utility Functions'!$V$4,'Utility Functions'!$V$5,'Utility Functions'!$V$6)","v":0},{"$f":"valuePL(M28,'Utility Functions'!$W$3:$W$6,'Utility Functions'!$X$3:$X$6)","v":0.1},{"$f":"valueE(N28,'Utility Functions'!$Z$3,'Utility Functions'!$Z$4,'Utility Functions'!$Z$5,'Utility Functions'!$Z$6)","v":0},{"$f":"valuePL(O28,'Utility Functions'!$AA$3:$AA$5,'Utility Functions'!$AB$3:$AB$5)","v":0},{"$f":"valuePL(P28,'Utility Functions'!$AC$3:$AC$7,'Utility Functions'!$AD$3:$AD$7)","v":0.5},{"$f":"valuePL(Q28,'Utility Functions'!$AE$3:$AE$6,'Utility Functions'!$AF$3:$AF$6)","v":0.5},{"$f":"valuePL(R28,'Utility Functions'!$AG$3:$AG$6,'Utility Functions'!$AH$3:$AH$6)","v":1},{"$f":"valuePL(S28,'Utility Functions'!$AI$3:$AI$6,'Utility Functions'!$AJ$3:$AJ$6)","v":1},{"$f":"valuePL(T28,'Utility Functions'!$AK$3:$AK$8,'Utility Functions'!$AL$3:$AL$8)","v":1},{"$f":"valuePL(U28,'Utility Functions'!$AM$3:$AM$5,'Utility Functions'!$AN$3:$AN$5)","v":0},{"$f":"valuePL(V28,'Utility Functions'!$AO$3:$AO$5,'Utility Functions'!$AP$3:$AP$5)","v":0.5},{"$f":"valuePL(W28,'Utility Functions'!$AQ$3:$AQ$6,'Utility Functions'!$AR$3:$AR$6)","v":0.75},{"$f":"valuePL(X28,'Utility Functions'!$AS$3:$AS$6,'Utility Functions'!$AT$3:$AT$6)","v":1},{"$f":"valuePL(Y28,'Utility Functions'!$AU$3:$AU$6,'Utility Functions'!$AV$3:$AV$6)","v":0.2},{"$f":"valuePL(Z28,'Utility Functions'!$AW$3:$AW$5,'Utility Functions'!$AX$3:$AX$5)","v":0},{"$f":"valuePL(AA28,'Utility Functions'!$AY$3:$AY$6,'Utility Functions'!$AZ$3:$AZ$6)","v":0},{"$f":"valuePL(AB28,'Utility Functions'!$BA$3:$BA$5,'Utility Functions'!$BB$3:$BB$5)","v":0},{"$f":"valuePL(AC28,'Utility Functions'!$BC$3:$BC$5,'Utility Functions'!$BD$3:$BD$5)","v":0},9.0147596715374529,null,9.0147596715374547,1.464759671537454,1.1000000000000001,0,4,2.4500000000000002]
[28,{"$f":"valueE(B29,'Utility Functions'!$B$3,'Utility Functions'!$B$4,'Utility Functions'!$B$5,'Utility Functions'!$B$6)","v":0.4511890475224023},{"$f":"valueE(C29,'Utility Functions'!$D$3,'Utility Functions'!$D$4,'Utility Functions'!$D$5,'Utility Functions'!$D$6)","v":0.46475967153745396},{"$f":"valuePL(D29,'Utility Functions'!$E$3:$E$5,'Utility Functions'!$F$3:$F$5)","v":1},{"$f":"valuePL(E29,'Utility Functions'!$G$3:$G$5,'Utility Functions'!$H$3:$H$5)","v":0},{"$f":"valuePL(F29,'Utility Functions'!$I$3:$I$4,'Utility Functions'!$J$3:$J$5)","v":1},{"$f":"valueE(G29,'Utility Functions'!$L$3,'Utility Functions'!$L$4,'Utility Functions'!$L$5,'Utility Functions'!$L$6)","v":0},{"$f":"valueE(H29,'Utility Functions'!$N$3,'Utility Functions'!$N$4,'Utility Functions'!$N$5,'Utility Functions'!$N$6)","v":0},{"$f":"valuePL(I29,'Utility Functions'!$O$3:$O$6,'Utility Functions'!$P$3:$P$6)","v":0},{"$f":"valuePL(J29,'Utility Functions'!$Q$3:$Q$6,'Utility Functions'!$R$3:$R$6)","v":0},{"$f":"valuePL(K29,'Utility Functions'!$S$3:$S$7,'Utility Functions'!$T$3:$T$7)","v":0},{"$f":"valueE(L29,'Utility Functions'!$V$3,'Utility Functions'!$V$4,'Utility Functions'!$V$5,'Utility Functions'!$V$6)","v":0.33333333333333331},{"$f":"valuePL(M29,'Utility Functions'!$W$3:$W$6,'Utility Functions'!$X$3:$X$6)","v":0.1},{"$f":"valueE(N29,'Utility Functions'!$Z$3,'Utility Functions'!$Z$4,'Utility Functions'!$Z$5,'Utility Functions'!$Z$6)","v":0},{"$f":"valuePL(O29,'Utility Functions'!$AA$3:$AA$5,'Utility Functions'!$AB$3:$AB$5)","v":0},{"$f":"valuePL(P29,'Utility Functions'!$AC$3:$AC$7,'Utility Functions'!$AD$3:$AD$7)","v":1},{"$f":"valuePL(Q29,'Utility Functions'!$AE$3:$AE$6,'Utility Functions'!$AF$3:$AF$6)","v":0},{"$f":"valuePL(R29,'Utility Functions'!$AG$3:$AG$6,'Utility Functions'!$AH$3:$AH$6)","v":1},{"$f":"valuePL(S29,'Utility Functions'!$AI$3:$AI$6,'Utility Functions'!$AJ$3:$AJ$6)","v":1},{"$f":"valuePL(T29,'Utility Functions'!$AK$3:$AK$8,'Utility Functions'!$AL$3:$AL$8)","v":0.8},{"$f":"valuePL(U29,'Utility Functions'!$AM$3:$AM$5,'Utility Functions'!$AN$3:$AN$5)","v":0},{"$f":"valuePL(V29,'Utility Functions'!$AO$3:$AO$5,'Utility Functions'!$AP$3:$AP$5)","v":1},{"$f":"valuePL(W29,'Utility Functions'!$AQ$3:$AQ$6,'Utility Functions'!$AR$3:$AR$6)","v":1},{"$f":"valuePL(X29,'Utility Functions'!$AS$3:$AS$6,'Utility Functions'!$AT$3:$AT$6)","v":1},{"$f":"valuePL(Y29,'Utility Functions'!$AU$3:$AU$6,'Utility Functions'!$AV$3:$AV$6)","v":0.2},{"$f":"valuePL(Z29,'Utility Functions'!$AW$3:$AW$5,'Utility Functions'!$AX$3:$AX$5)","v":0},{"$f":"valuePL(AA29,'Utility Functions'!$AY$3:$AY$6,'Utility Functions'!$AZ$3:$AZ$6)","v":0.89999999999999991},{"$f":"valuePL(AB29,'Utility Functions'!$BA$3:$BA$5,'Utility Functions'!$BB$3:$BB$5)","v":1},{"$f":"valuePL(AC29,'Utility Functions'!$BC$3:$BC$5,'Utility Functions'!$BD$3:$BD$5)","v":0.25},12.499282052393189,null,12.499282052393189,2.9159487190598563,0.43333333333333335,0,3.8,5.35]
[29,{"$f":"valueE(B30,'Utility Functions'!$B$3,'Utility Functions'!$B$4,'Utility Functions'!$B$5,'Utility Functions'!$B$6)","v":0.83470237647280454},{"$f":"valueE(C30,'Utility Functions'!$D$3,'Utility Functions'!$D$4,'Utility Functions'!$D$5,'Utility Functions'!$D$6)","v":0.71352759724260828},{"$f":"valuePL(D30,'Utility Functions'!$E$3:$E$5,'Utility Functions'!$F$3:$F$5)","v":1},{"$f":"valuePL(E30,'Utility Functions'!$G$3:$G$5,'Utility Functions'!$H$3:$H$5)","v":0.5},{"$f":"valuePL(F30,'Utility Functions'!$I$3:$I$4,'Utility Functions'!$J$3:$J$5)","v":0},{"$f":"valueE(G30,'Utility Functions'!$L$3,'Utility Functions'!$L$4,'Utility Functions'!$L$5,'Utility Functions'!$L$6)","v":0},{"$f":"valueE(H30,'Utility Functions'!$N$3,'Utility Functions'!$N$4,'Utility Functions'!$N$5,'Utility Functions'!$N$6)","v":0},{"$f":"valuePL(I30,'Utility Functions'!$O$3:$O$6,'Utility Functions'!$P$3:$P$6)","v":0.06},{"$f":"valuePL(J30,'Utility Functions'!$Q$3:$Q$6,'Utility Functions'!$R$3:$R$6)","v":0.67272727272727273},{"$f":"valuePL(K30,'Utility Functions'!$S$3:$S$7,'Utility Functions'!$T$3:$T$7)","v":0},{"$f":"valueE(L30,'Utility Functions'!$V$3,'Utility Functions'!$V$4,'Utility Functions'!$V$5,'Utility Functions'!$V$6)","v":1},{"$f":"valuePL(M30,'Utility Functions'!$W$3:$W$6,'Utility Functions'!$X$3:$X$6)","v":0.67272727272727273},{"$f":"valueE(N30,'Utility Functions'!$Z$3,'Utility Functions'!$Z$4,'Utility Functions'!$Z$5,'Utility Functions'!$Z$6)","v":0},{"$f":"valuePL(O30,'Utility Functions'!$AA$3:$AA$5,'Utility Functions'!$AB$3:$AB$5)","v":0},{"$f":"valuePL(P30,'Utility Functions'!$AC$3:$AC$7,'Utility Functions'!$AD$3:$AD$7)","v":0.25},{"$f":"valuePL(Q30,'Utility Functions'!$AE$3:$AE$6,'Utility Functions'!$AF$3:$AF$6)","v":0},{"$f":"valuePL(R30,'Utility Functions'!$AG$3:$AG$6,'Utility Functions'!$AH$3:$AH$6)","v":1},{"$f":"valuePL(S30,'Utility Functions'!$AI$3:$AI$6,'Utility Functions'!$AJ$3:$AJ$6)","v":1},{"$f":"valuePL(T30,'Utility Functions'!$AK$3:$AK$8,'Utility Functions'!$AL$3:$AL$8)","v":0.8},{"$f":"valuePL(U30,'Utility Functions'!$AM$3:$AM$5,'Utility Functions'!$AN$3:$AN$5)","v":0},{"$f":"valuePL(V30,'Utility Functions'!$AO$3:$AO$5,'Utility Functions'!$AP$3:$AP$5)","v":1},{"$f":"valuePL(W30,'Utility Functions'!$AQ$3:$AQ$6,'Utility Functions'!$AR$3:$AR$6)","v":0.2},{"$f":"valuePL(X30,'Utility Functions'!$AS$3:$AS$6,'Utility Functions'!$AT$3:$AT$6)","v":0},{"$f":"valuePL(Y30,'Utility Functions'!$AU$3:$AU$6,'Utility Functions'!$AV$3:$AV$6)","v":0.8},{"$f":"valuePL(Z30,'Utility Functions'!$AW$3:$AW$5,'Utility Functions'!$AX$3:$AX$5)","v":0.5},{"$f":"valuePL(AA30,'Utility Functions'!$AY$3:$AY$6,'Utility Functions'!$AZ$3:$AZ$6)","v":0.2},{"$f":"valuePL(AB30,'Utility Functions'!$BA$3:$BA$5,'Utility Functions'!$BB$3:$BB$5)","v":0.25},{"$f":"valuePL(AC30,'Utility Functions'!$BC$3:$BC$5,'Utility Functions'!$BD$3:$BD$5)","v":1},12.453684519169958,null,12.453684519169958,3.0482299737154128,2.4054545454545453,0,3.05,3.95]
[30,{"$f":"valueE(B31,'Utility Functions'!$B$3,'Utility Functions'!$B$4,'Utility Functions'!$B$5,'Utility Functions'!$B$6)","v":0.99864114504770318},{"$f":"valueE(C31,'Utility Functions'!$D$3,'Utility Functions'!$D$4,'Utility Functions'!$D$5,'Utility Functions'!$D$6)","v":0.84744836833951609},{"$f":"valuePL(D31,'Utility Functions'!$E$3:$E$5,'Utility Functions'!$F$3:$F$5)","v":1},{"$f":"valuePL(E31,'Utility Functions'!$G$3:$G$5,'Utility Functions'!$H$3:$H$5)","v":0},{"$f":"valuePL(F31,'Utility Functions'!$I$3:$I$4,'Utility Functions'!$J$3:$J$5)","v":0},{"$f":"valueE(G31,'Utility Functions'!$L$3,'Utility Functions'!$L$4,'Utility Functions'!$L$5,'Utility Functions'!$L$6)","v":0},{"$f":"valueE(H31,'Utility Functions'!$N$3,'Utility Functions'!$N$4,'Utility Functions'!$N$5,'Utility Functions'!$N$6)","v":0},{"$f":"valuePL(I31,'Utility Functions'!$O$3:$O$6,'Utility Functions'!$P$3:$P$6)","v":0},{"$f":"valuePL(J31,'Utility Functions'!$Q$3:$Q$6,'Utility Functions'!$R$3:$R$6)","v":0},{"$f":"valuePL(K31,'Utility Functions'!$S$3:$S$7,'Utility Functions'!$T$3:$T$7)","v":0},{"$f":"valueE(L31,'Utility Functions'!$V$3,'Utility Functions'!$V$4,'Utility Functions'!$V$5,'Utility Functions'!$V$6)","v":0.33333333333333331},{"$f":"valuePL(M31,'Utility Functions'!$W$3:$W$6,'Utility Functions'!$X$3:$X$6)","v":0.04},{"$f":"valueE(N31,'Utility Functions'!$Z$3,'Utility Functions'!$Z$4,'Utility Functions'!$Z$5,'Utility Functions'!$Z$6)","v":0},{"$f":"valuePL(O31,'Utility Functions'!$AA$3:$AA$5,'Utility Functions'!$AB$3:$AB$5)","v":0},{"$f":"valuePL(P31,'Utility Functions'!$AC$3:$AC$7,'Utility Functions'!$AD$3:$AD$7)","v":0},{"$f":"valuePL(Q31,'Utility Functions'!$AE$3:$AE$6,'Utility Functions'!$AF$3:$AF$6)","v":0},{"$f":"valuePL(R31,'Utility Functions'!$AG$3:$AG$6,'Utility Functions'!$AH$3:$AH$6)","v":0.2},{"$f":"valuePL(S31,'Utility Functions'!$AI$3:$AI$6,'Utility Functions'!$AJ$3:$AJ$6)","v":0.33},{"$f":"valuePL(T31,'Utility Functions'!$AK$3:$AK$8,'Utility Functions'!$AL$3:$AL$8)","v":0},{"$f":"valuePL(U31,'Utility Functions'!$AM$3:$AM$5,'Utility Functions'!$AN$3:$AN$5)","v":0},{"$f":"valuePL(V31,'Utility Functions'!$AO$3:$AO$5,'Utility Functions'!$AP$3:$AP$5)","v":0},{"$f":"valuePL(W31,'Utility Functions'!$AQ$3:$AQ$6,'Utility Functions'!$AR$3:$AR$6)","v":1},{"$f":"valuePL(X31,'Utility Functions'!$AS$3:$AS$6,'Utility Functions'!$AT$3:$AT$6)","v":0.2},{"$f":"valuePL(Y31,'Utility Functions'!$AU$3:$AU$6,'Utility Functions'!$AV$3:$AV$6)","v":0.8},{"$f":"valuePL(Z31,'Utility Functions'!$AW$3:$AW$5,'Utility Functions'!$AX$3:$AX$5)","v":0},{"$f":"valuePL(AA31,'Utility Functions'!$AY$3:$AY$6,'Utility Functions'!$AZ$3:$AZ$6)","v":0.89999999999999991},{"$f":"valuePL(AB31,'Utility Functions'!$BA$3:$BA$5,'Utility Functions'!$BB$3:$BB$5)","v":1},{"$f":"valuePL(AC31,'Utility Functions'!$BC$3:$BC$5,'Utility Functions'!$BD$3:$BD$5)","v":0},7.6494228467205527,null,7.6494228467205527,2.846089513387219,0.37333333333333329,0,0.53,3.9]
[31,{"$f":"valueE(B32,'Utility Functions'!$B$3,'Utility Functions'!$B$4,'Utility Functions'!$B$5,'Utility Functions'!$B$6)","v":0.55067187023002029},{"$f":"valueE(C32,'Utility Functions'!$D$3,'Utility Functions'!$D$4,'Utility Functions'!$D$5,'Utility Functions'!$D$6)","v":0.84744836833951609},{"$f":"valuePL(D32,'Utility Functions'!$E$3:$E$5,'Utility Functions'!$F$3:$F$5)","v":0.5},{"$f":"valuePL(E32,'Utility Functions'!$G$3:$G$5,'Utility Functions'!$H$3:$H$5)","v":0},{"$f":"valuePL(F32,'Utility Functions'!$I$3:$I$4,'Utility Functions'!$J$3:$J$5)","v":0},{"$f":"valueE(G32,'Utility Functions'!$L$3,'Utility Functions'!$L$4,'Utility Functions'!$L$5,'Utility Functions'!$L$6)","v":0},{"$f":"valueE(H32,'Utility Functions'!$N$3,'Utility Functions'!$N$4,'Utility Functions'!$N$5,'Utility Functions'!$N$6)","v":0},{"$f":"valuePL(I32,'Utility Functions'!$O$3:$O$6,'Utility Functions'!$P$3:$P$6)","v":0.75454545454545452},{"$f":"valuePL(J32,'Utility Functions'!$Q$3:$Q$6,'Utility Functions'!$R$3:$R$6)","v":0.08},{"$f":"valuePL(K32,'Utility Functions'!$S$3:$S$7,'Utility Functions'!$T$3:$T$7)","v":0},{"$f":"valueE(L32,'Utility Functions'!$V$3,'Utility Functions'!$V$4,'Utility Functions'!$V$5,'Utility Functions'!$V$6)","v":0.33333333333333331},{"$f":"valuePL(M32,'Utility Functions'!$W$3:$W$6,'Utility Functions'!$X$3:$X$6)","v":0.08},{"$f":"valueE(N32,'Utility Functions'!$Z$3,'Utility Functions'!$Z$4,'Utility Functions'!$Z$5,'Utility Functions'!$Z$6)","v":0},{"$f":"valuePL(O32,'Utility Functions'!$AA$3:$AA$5,'Utility Functions'!$AB$3:$AB$5)","v":0},{"$f":"valuePL(P32,'Utility Functions'!$AC$3:$AC$7,'Utility Functions'!$AD$3:$AD$7)","v":0.5},{"$f":"valuePL(Q32,'Utility Functions'!$AE$3:$AE$6,'Utility Functions'!$AF$3:$AF$6)","v":0},{"$f":"valuePL(R32,'Utility Functions'!$AG$3:$AG$6,'Utility Functions'!$AH$3:$AH$6)","v":1},{"$f":"valuePL(S32,'Utility Functions'!$AI$3:$AI$6,'Utility Functions'!$AJ$3:$AJ$6)","v":0.66},{"$f":"valuePL(T32,'Utility Functions'!$AK$3:$AK$8,'Utility Functions'!$AL$3:$AL$8)","v":0.6},{"$f":"valuePL(U32,'Utility Functions'!$AM$3:$AM$5,'Utility Functions'!$AN$3:$AN$5)","v":0},{"$f":"valuePL(V32,'Utility Functions'!$AO$3:$AO$5,'Utility Functions'!$AP$3:$AP$5)","v":0.5},{"$f":"valuePL(W32,'Utility Functions'!$AQ$3:$AQ$6,'Utility Functions'!$AR$3:$AR$6)","v":0},{"$f":"valuePL(X32,'Utility Functions'!$AS$3:$AS$6,'Utility Functions'!$AT$3:$AT$6)","v":0.2},{"$f":"valuePL(Y32,'Utility Functions'!$AU$3:$AU$6,'Utility Functions'!$AV$3:$AV$6)","v":0.2},{"$f":"valuePL(Z32,'Utility Functions'!$AW$3:$AW$5,'Utility Functions'!$AX$3:$AX$5)","v":1},{"$f":"valuePL(AA32,'Utility Functions'!$AY$3:$AY$6,'Utility Functions'!$AZ$3:$AZ$6)","v":0.89999999999999991},{"$f":"valuePL(AB32,'Utility Functions'!$BA$3:$BA$5,'Utility Functions'!$BB$3:$BB$5)","v":0.25},{"$f":"valuePL(AC32,'Utility Functions'!$BC$3:$BC$5,'Utility Functions'!$BD$3:$BD$5)","v":0.25},9.2059990264483247,null,9.2059990264483247,1.8981202385695364,1.2478787878787878,0,2.7600000000000002,3.3]
[32,{"$f":"valueE(B33,'Utility Functions'!$B$3,'Utility Functions'!$B$4,'Utility Functions'!$B$5,'Utility Functions'!$B$6)","v":0.63212151658375171},{"$f":"valueE(C33,'Utility Functions'!$D$3,'Utility Functions'!$D$4,'Utility Functions'!$D$5,'Utility Functions'!$D$6)","v":0.26839655623815994},{"$f":"valuePL(D33,'Utility Functions'!$E$3:$E$5,'Utility Functions'!$F$3:$F$5)","v":1},{"$f":"valuePL(E33,'Utility Functions'!$G$3:$G$5,'Utility Functions'!$H$3:$H$5)","v":1},{"$f":"valuePL(F33,'Utility Functions'!$I$3:$I$4,'Utility Functions'!$J$3:$J$5)","v":1},{"$f":"valueE(G33,'Utility Functions'!$L$3,'Utility Functions'!$L$4,'Utility Functions'!$L$5,'Utility Functions'!$L$6)","v":3.2258064516129031E-2},{"$f":"valueE(H33,'Utility Functions'!$N$3,'Utility Functions'!$N$4,'Utility Functions'!$N$5,'Utility Functions'!$N$6)","v":9.6774193548387094E-2},{"$f":"valuePL(I33,'Utility Functions'!$O$3:$O$6,'Utility Functions'!$P$3:$P$6)","v":0.34545454545454546},{"$f":"valuePL(J33,'Utility Functions'!$Q$3:$Q$6,'Utility Functions'!$R$3:$R$6)","v":1},{"$f":"valuePL(K33,'Utility Functions'!$S$3:$S$7,'Utility Functions'!$T$3:$T$7)","v":0.34545454545454546},{"$f":"valueE(L33,'Utility Functions'!$V$3,'Utility Functions'!$V$4,'Utility Functions'!$V$5,'Utility Functions'!$V$6)","v":1},{"$f":"valuePL(M33,'Utility Functions'!$W$3:$W$6,'Utility Functions'!$X$3:$X$6)","v":1},{"$f":"valueE(N33,'Utility Functions'!$Z$3,'Utility Functions'!$Z$4,'Utility Functions'!$Z$5,'Utility Functions'!$Z$6)","v":0},{"$f":"valuePL(O33,'Utility Functions'!$AA$3:$AA$5,'Utility Functions'!$AB$3:$AB$5)","v":0},{"$f":"valuePL(P33,'Utility Functions'!$AC$3:$AC$7,'Utility Functions'!$AD$3:$AD$7)","v":0.5},{"$f":"valuePL(Q33,'Utility Functions'!$AE$3:$AE$6,'Utility Functions'!$AF$3:$AF$6)","v":1},{"$f":"valuePL(R33,'Utility Functions'!$AG$3:$AG$6,'Utility Functions'!$AH$3:$AH$6)","v":1},{"$f":"valuePL(S33,'Utility Functions'!$AI$3:$AI$6,'Utility Functions'!$AJ$3:$AJ$6)","v":0},{"$f":"valuePL(T33,'Utility Functions'!$AK$3:$AK$8,'Utility Functions'!$AL$3:$AL$8)","v":0.8},{"$f":"valuePL(U33,'Utility Functions'!$AM$3:$AM$5,'Utility Functions'!$AN$3:$AN$5)","v":0},{"$f":"valuePL(V33,'Utility Functions'!$AO$3:$AO$5,'Utility Functions'!$AP$3:$AP$5)","v":0},{"$f":"valuePL(W33,'Utility Functions'!$AQ$3:$AQ$6,'Utility Functions'!$AR$3:$AR$6)","v":0.75},{"$f":"valuePL(X33,'Utility Functions'!$AS$3:$AS$6,'Utility Functions'!$AT$3:$AT$6)","v":0.2},{"$f":"valuePL(Y33,'Utility Functions'!$AU$3:$AU$6,'Utility Functions'!$AV$3:$AV$6)","v":0.8},{"$f":"valuePL(Z33,'Utility Functions'!$AW$3:$AW$5,'Utility Functions'!$AX$3:$AX$5)","v":0.5},{"$f":"valuePL(AA33,'Utility Functions'!$AY$3:$AY$6,'Utility Functions'!$AZ$3:$AZ$6)","v":0},{"$f":"valuePL(AB33,'Utility Functions'!$BA$3:$BA$5,'Utility Functions'!$BB$3:$BB$5)","v":1},{"$f":"valuePL(AC33,'Utility Functions'!$BC$3:$BC$5,'Utility Functions'!$BD$3:$BD$5)","v":0.25},14.52045942179552,null,14.520459421795518,3.9005180728219115,3.8199413489736074,0,3.3,3.5]
[33,{"$f":"valueE(B34,'Utility Functions'!$B$3,'Utility Functions'!$B$4,'Utility Functions'!$B$5,'Utility Functions'!$B$6)","v":0.93919136038504192},{"$f":"valueE(C34,'Utility Functions'!$D$3,'Utility Functions'!$D$4,'Utility Functions'!$D$5,'Utility Functions'!$D$6)","v":0.84744836833951609},{"$f":"valuePL(D34,'Utility Functions'!$E$3:$E$5,'Utility Functions'!$F$3:$F$5)","v":1},{"$f":"valuePL(E34,'Utility Functions'!$G$3:$G$5,'Utility Functions'!$H$3:$H$5)","v":0.5},{"$f":"valuePL(F34,'Utility Functions'!$I$3:$I$4,'Utility Functions'!$J$3:$J$5)","v":0},{"$f":"valueE(G34,'Utility Functions'!$L$3,'Utility Functions'!$L$4,'Utility Functions'!$L$5,'Utility Functions'!$L$6)","v":0},{"$f":"valueE(H34,'Utility Functions'!$N$3,'Utility Functions'!$N$4,'Utility Functions'!$N$5,'Utility Functions'!$N$6)","v":0},{"$f":"valuePL(I34,'Utility Functions'!$O$3:$O$6,'Utility Functions'!$P$3:$P$6)","v":0},{"$f":"valuePL(J34,'Utility Functions'!$Q$3:$Q$6,'Utility Functions'!$R$3:$R$6)","v":0},{"$f":"valuePL(K34,'Utility Functions'!$S$3:$S$7,'Utility Functions'!$T$3:$T$7)","v":0},{"$f":"valueE(L34,'Utility Functions'!$V$3,'Utility Functions'!$V$4,'Utility Functions'!$V$5,'Utility Functions'!$V$6)","v":0.5},{"$f":"valuePL(M34,'Utility Functions'!$W$3:$W$6,'Utility Functions'!$X$3:$X$6)","v":0},{"$f":"valueE(N34,'Utility Functions'!$Z$3,'Utility Functions'!$Z$4,'Utility Functions'!$Z$5,'Utility Functions'!$Z$6)","v":0},{"$f":"valuePL(O34,'Utility Functions'!$AA$3:$AA$5,'Utility Functions'!$AB$3:$AB$5)","v":0},{"$f":"valuePL(P34,'Utility Functions'!$AC$3:$AC$7,'Utility Functions'!$AD$3:$AD$7)","v":0.5},{"$f":"valuePL(Q34,'Utility Functions'!$AE$3:$AE$6,'Utility Functions'!$AF$3:$AF$6)","v":0},{"$f":"valuePL(R34,'Utility Functions'!$AG$3:$AG$6,'Utility Functions'!$AH$3:$AH$6)","v":1},{"$f":"valuePL(S34,'Utility Functions'!$AI$3:$AI$6,'Utility Functions'!$AJ$3:$AJ$6)","v":0.66},{"$f":"valuePL(T34,'Utility Functions'!$AK$3:$AK$8,'Utility Functions'!$AL$3:$AL$8)","v":0},{"$f":"valuePL(U34,'Utility Functions'!$AM$3:$AM$5,'Utility Functions'!$AN$3:$AN$5)","v":0},{"$f":"valuePL(V34,'Utility Functions'!$AO$3:$AO$5,'Utility Functions'!$AP$3:$AP$5)","v":0.5},{"$f":"valuePL(W34,'Utility Functions'!$AQ$3:$AQ$6,'Utility Functions'!$AR$3:$AR$6)","v":1},{"$f":"valuePL(X34,'Utility Functions'!$AS$3:$AS$6,'Utility Functions'!$AT$3:$AT$6)","v":0},{"$f":"valuePL(Y34,'Utility Functions'!$AU$3:$AU$6,'Utility Functions'!$AV$3:$AV$6)","v":0.8},{"$f":"valuePL(Z34,'Utility Functions'!$AW$3:$AW$5,'Utility Functions'!$AX$3:$AX$5)","v":1},{"$f":"valuePL(AA34,'Utility Functions'!$AY$3:$AY$6,'Utility Functions'!$AZ$3:$AZ$6)","v":1},{"$f":"valuePL(AB34,'Utility Functions'!$BA$3:$BA$5,'Utility Functions'!$BB$3:$BB$5)","v":0},{"$f":"valuePL(AC34,'Utility Functions'!$BC$3:$BC$5,'Utility Functions'!$BD$3:$BD$5)","v":0},10.246639728724558,null,10.246639728724558,3.2866397287245581,0.5,0,2.16,4.3]
[34,{"$f":"valueE(B35,'Utility Functions'!$B$3,'Utility Functions'!$B$4,'Utility Functions'!$B$5,'Utility Functions'!$B$6)","v":0},{"$f":"valueE(C35,'Utility Functions'!$D$3,'Utility Functions'!$D$4,'Utility Functions'!$D$5,'Utility Functions'!$D$6)","v":0},{"$f":"valuePL(D35,'Utility Functions'!$E$3:$E$5,'Utility Functions'!$F$3:$F$5)","v":0},{"$f":"valuePL(E35,'Utility Functions'!$G$3:$G$5,'Utility Functions'!$H$3:$H$5)","v":0},{"$f":"valuePL(F35,'Utility Functions'!$I$3:$I$4,'Utility Functions'!$J$3:$J$5)","v":0},{"$f":"valueE(G35,'Utility Functions'!$L$3,'Utility Functions'!$L$4,'Utility Functions'!$L$5,'Utility Functions'!$L$6)","v":0},{"$f":"valueE(H35,'Utility Functions'!$N$3,'Utility Functions'!$N$4,'Utility Functions'!$N$5,'Utility Functions'!$N$6)","v":1.1385199240986717E-2},{"$f":"valuePL(I35,'Utility Functions'!$O$3:$O$6,'Utility Functions'!$P$3:$P$6)","v":1},{"$f":"valuePL(J35,'Utility Functions'!$Q$3:$Q$6,'Utility Functions'!$R$3:$R$6)","v":0.91818181818181821},{"$f":"valuePL(K35,'Utility Functions'!$S$3:$S$7,'Utility Functions'!$T$3:$T$7)","v":1},{"$f":"valueE(L35,'Utility Functions'!$V$3,'Utility Functions'!$V$4,'Utility Functions'!$V$5,'Utility Functions'!$V$6)","v":1},{"$f":"valuePL(M35,'Utility Functions'!$W$3:$W$6,'Utility Functions'!$X$3:$X$6)","v":0.91818181818181821},{"$f":"valueE(N35,'Utility Functions'!$Z$3,'Utility Functions'!$Z$4,'Utility Functions'!$Z$5,'Utility Functions'!$Z$6)","v":0},{"$f":"valuePL(O35,'Utility Functions'!$AA$3:$AA$5,'Utility Functions'!$AB$3:$AB$5)","v":0},{"$f":"valuePL(P35,'Utility Functions'!$AC$3:$AC$7,'Utility Functions'!$AD$3:$AD$7)","v":0.5},{"$f":"valuePL(Q35,'Utility Functions'!$AE$3:$AE$6,'Utility Functions'!$AF$3:$AF$6)","v":0},{"$f":"valuePL(R35,'Utility Functions'!$AG$3:$AG$6,'Utility Functions'!$AH$3:$AH$6)","v":1},{"$f":"valuePL(S35,'Utility Functions'!$AI$3:$AI$6,'Utility Functions'!$AJ$3:$AJ$6)","v":1},{"$f":"valuePL(T35,'Utility Functions'!$AK$3:$AK$8,'Utility Functions'!$AL$3:$AL$8)","v":0.8},{"$f":"valuePL(U35,'Utility Functions'!$AM$3:$AM$5,'Utility Functions'!$AN$3:$AN$5)","v":0},{"$f":"valuePL(V35,'Utility Functions'!$AO$3:$AO$5,'Utility Functions'!$AP$3:$AP$5)","v":1},{"$f":"valuePL(W35,'Utility Functions'!$AQ$3:$AQ$6,'Utility Functions'!$AR$3:$AR$6)","v":1},{"$f":"valuePL(X35,'Utility Functions'!$AS$3:$AS$6,'Utility Functions'!$AT$3:$AT$6)","v":1},{"$f":"valuePL(Y35,'Utility Functions'!$AU$3:$AU$6,'Utility Functions'!$AV$3:$AV$6)","v":0},{"$f":"valuePL(Z35,'Utility Functions'!$AW$3:$AW$5,'Utility Functions'!$AX$3:$AX$5)","v":1},{"$f":"valuePL(AA35,'Utility Functions'!$AY$3:$AY$6,'Utility Functions'!$AZ$3:$AZ$6)","v":0.89999999999999991},{"$f":"valuePL(AB35,'Utility Functions'!$BA$3:$BA$5,'Utility Functions'!$BB$3:$BB$5)","v":0.25},{"$f":"valuePL(AC35,'Utility Functions'!$BC$3:$BC$5,'Utility Functions'!$BD$3:$BD$5)","v":0},13.297748835604624,null,13.297748835604624,0,4.847748835604623,0,3.3,5.15]
[35,{"$f":"valueE(B36,'Utility Functions'!$B$3,'Utility Functions'!$B$4,'Utility Functions'!$B$5,'Utility Functions'!$B$6)","v":0.79810469124896843},{"$f":"valueE(C36,'Utility Functions'!$D$3,'Utility Functions'!$D$4,'Utility Functions'!$D$5,'Utility Functions'!$D$6)","v":0.60939983135101949},{"$f":"valuePL(D36,'Utility Functions'!$E$3:$E$5,'Utility Functions'!$F$3:$F$5)","v":0.5},{"$f":"valuePL(E36,'Utility Functions'!$G$3:$G$5,'Utility Functions'!$H$3:$H$5)","v":0.5},{"$f":"valuePL(F36,'Utility Functions'!$I$3:$I$4,'Utility Functions'!$J$3:$J$5)","v":1},{"$f":"valueE(G36,'Utility Functions'!$L$3,'Utility Functions'!$L$4,'Utility Functions'!$L$5,'Utility Functions'!$L$6)","v":0},{"$f":"valueE(H36,'Utility Functions'!$N$3,'Utility Functions'!$N$4,'Utility Functions'!$N$5,'Utility Functions'!$N$6)","v":0},{"$f":"valuePL(I36,'Utility Functions'!$O$3:$O$6,'Utility Functions'!$P$3:$P$6)","v":0},{"$f":"valuePL(J36,'Utility Functions'!$Q$3:$Q$6,'Utility Functions'!$R$3:$R$6)","v":0},{"$f":"valuePL(K36,'Utility Functions'!$S$3:$S$7,'Utility Functions'!$T$3:$T$7)","v":1},{"$f":"valueE(L36,'Utility Functions'!$V$3,'Utility Functions'!$V$4,'Utility Functions'!$V$5,'Utility Functions'!$V$6)","v":0.66666666666666663},{"$f":"valuePL(M36,'Utility Functions'!$W$3:$W$6,'Utility Functions'!$X$3:$X$6)","v":0.1},{"$f":"valueE(N36,'Utility Functions'!$Z$3,'Utility Functions'!$Z$4,'Utility Functions'!$Z$5,'Utility Functions'!$Z$6)","v":1},{"$f":"valuePL(O36,'Utility Functions'!$AA$3:$AA$5,'Utility Functions'!$AB$3:$AB$5)","v":0},{"$f":"valuePL(P36,'Utility Functions'!$AC$3:$AC$7,'Utility Functions'!$AD$3:$AD$7)","v":0},{"$f":"valuePL(Q36,'Utility Functions'!$AE$3:$AE$6,'Utility Functions'!$AF$3:$AF$6)","v":0},{"$f":"valuePL(R36,'Utility Functions'!$AG$3:$AG$6,'Utility Functions'!$AH$3:$AH$6)","v":1},{"$f":"valuePL(S36,'Utility Functions'!$AI$3:$AI$6,'Utility Functions'!$AJ$3:$AJ$6)","v":1},{"$f":"valuePL(T36,'Utility Functions'!$AK$3:$AK$8,'Utility Functions'!$AL$3:$AL$8)","v":0.6},{"$f":"valuePL(U36,'Utility Functions'!$AM$3:$AM$5,'Utility Functions'!$AN$3:$AN$5)","v":0},{"$f":"valuePL(V36,'Utility Functions'!$AO$3:$AO$5,'Utility Functions'!$AP$3:$AP$5)","v":1},{"$f":"valuePL(W36,'Utility Functions'!$AQ$3:$AQ$6,'Utility Functions'!$AR$3:$AR$6)","v":0.75},{"$f":"valuePL(X36,'Utility Functions'!$AS$3:$AS$6,'Utility Functions'!$AT$3:$AT$6)","v":0},{"$f":"valuePL(Y36,'Utility Functions'!$AU$3:$AU$6,'Utility Functions'!$AV$3:$AV$6)","v":0.2},{"$f":"valuePL(Z36,'Utility Functions'!$AW$3:$AW$5,'Utility Functions'!$AX$3:$AX$5)","v":1},{"$f":"valuePL(AA36,'Utility Functions'!$AY$3:$AY$6,'Utility Functions'!$AZ$3:$AZ$6)","v":0},{"$f":"valuePL(AB36,'Utility Functions'!$BA$3:$BA$5,'Utility Functions'!$BB$3:$BB$5)","v":0.25},{"$f":"valuePL(AC36,'Utility Functions'!$BC$3:$BC$5,'Utility Functions'!$BD$3:$BD$5)","v":0.25},12.224171189266654,null,12.224171189266656,3.407504522599988,1.7666666666666666,1,2.6,3.45]
["Unweighted",{"$f":"SUMPRODUCT(B46:B80,$B$85:$B$119)","v":3.0847426500326565},{"$f":"SUMPRODUCT(C46:C80,$B$85:$B$119)","v":2.4146054342030006},{"$f":"SUMPRODUCT(D46:D80,$B$85:$B$119)","v":3.5},0.5,0,0.94623655913978499,0.29222011385199242,0.8545454545454545,0.79272727272727272,0,1.3333333333333333,0.75272727272727269,1.75,1.25,1.5,1.1000000000000001,4,4.32,2.4,0,2.5,1.1499999999999999,3.2,2.8000000000000003,2.5,1.5,2.5,3.5,null,null,"Unweighted",{"$f":"SUMPRODUCT(AG46:AG80,$B$85:$B$119)","v":9.4993480842356561},{"$f":"SUMPRODUCT(AH46:AH80,$B$85:$B$119)","v":4.9717900063251106},3,13.319999999999999,19.650000000000002]
["Weighted",{"$f":"B$81*Sens_Mgmt!I5","v":0.55028056411723347},{"$f":"C$81*Sens_Mgmt!J5","v":0.40718564888494213},{"$f":"D$81*Sens_Mgmt!K5","v":0.59773669284039732},{"$f":"E$81*Sens_Mgmt!L5","v":8.3192485430676366E-2},{"$f":"F$81*Sens_Mgmt!M5","v":0},{"$f":"G$81*Sens_Mgmt!N5","v":1.6722881741234887E-3},{"$f":"H$81*Sens_Mgmt!O5","v":5.1644193612637149E-4},{"$f":"I$81*Sens_Mgmt!P5","v":2.5636187481035068E-3},{"$f":"J$81*Sens_Mgmt!Q5","v":2.3174032474146994E-3},{"$f":"K$81*Sens_Mgmt!R5","v":0},{"$f":"L$81*Sens_Mgmt!S5","v":3.5198266694380226E-3},{"$f":"M$81*Sens_Mgmt!T5","v":1.5004130531331246E-3},{"$f":"N$81*Sens_Mgmt!U5","v":6.2499999999999986E-3},{"$f":"O$81*Sens_Mgmt!V5","v":1.3392857142857139E-2},{"$f":"P$81*Sens_Mgmt!W5","v":7.060257125877073E-3},{"$f":"Q$81*Sens_Mgmt!X5","v":5.7072500967834195E-3},{"$f":"R$81*Sens_Mgmt!Y5","v":2.3755615747631059E-2},{"$f":"S$81*Sens_Mgmt!Z5","v":2.2470913504915677E-2},{"$f":"T$81*Sens_Mgmt!AA5","v":9.0866630811838947E-3},{"$f":"U$81*Sens_Mgmt!AB5","v":0},{"$f":"V$81*Sens_Mgmt!AC5","v":1.6207252321795422E-2},{"$f":"W$81*Sens_Mgmt!AD5","v":5.3765749513411875E-3},{"$f":"X$81*Sens_Mgmt!AE5","v":1.5999777696908773E-2},{"$f":"Y$81*Sens_Mgmt!AF5","v":1.7397181985873644E-2},{"$f":"Z$81*Sens_Mgmt!AG5","v":1.3459143457823505E-2},{"$f":"AA$81*Sens_Mgmt!AH5","v":6.2572701901083029E-3},{"$f":"AB$81*Sens_Mgmt!AI5","v":1.1059917156316225E-2},{"$f":"AC$81*Sens_Mgmt!AJ5","v":1.4439808125425958E-2},null,null,"Weighted for SA",{"$f":"AG81*#REF!","v":{"$error":"#REF!"}},{"$f":"AH81*#REF!","v":{"$error":"#REF!"}},{"$f":"AI81*#REF!","v":{"$error":"#REF!"}},{"$f":"AJ81*#REF!","v":{"$error":"#REF!"}},{"$f":"AK81*#REF!","v":{"$error":"#REF!"}}]
[]
[null,"Decision variable","Benefit","Cost"]
[{"$f":"A2","v":1},0,{"$f":"AD46","v":17.117643866192076},{"$f":"AD2","v":700000}]
[2,0,{"$f":"AD47","v":12.641625800575998},{"$f":"AD3","v":5400000}]
[3,0,11.563541444302563,250000]
[4,0,9.2460291931089209,150000]
[5,0,9.5663279251355373,220000]
[6,1,5.9008471271383875,110000]
[7,0,15.54287399641135,1000000]
[8,0,14.227364688589191,5000000]
[9,0,11.893773577166716,25000]
[10,1,9.01,900000]
[11,0,13.174032258064516,1500000]
[12,0,9.4195802436719873,100000]
[13,0,7.5245670174228056,250000]
[14,0,10.338706637075108,500000]
[15,0,15.150477261414375,800000]
[16,0,15.119696969696969,2000000]
[17,0,10.876550515651747,500000]
[18,0,10.178462998102468,300000]
[19,0,9.3165012474871283,750000]
[20,0,15.091255033092194,1500000]
[21,0,9.5500000000000007,900000]
[22,0,9.471742567994939,750000]
[23,0,9.5321507448123199,1000000]
[24,0,9.4968811881212041,150000]
[25,1,13.870607417804099,250000]
[26,0,11.064076562960208,500000]
[27,0,9.0147596715374529,1200000]
[28,0,12.499282052393189,500000]
[29,1,12.453684519169958,2000000]
[30,0,7.6494228467205527,250000]
[31,1,9.2059990264483247,650000]
[32,0,14.52045942179552,200000]
[33,0,10.246639728724558,400000]
[34,0,13.297748835604624,900000]
[35,0,12.224171189266654,900000]
[null,{"$f":"SUM(B85:B119)","v":5},{"$f":"SUMPRODUCT(C85:C119,B85:B119)","v":50.44113809056077},{"$f":"SUMPRODUCT(B85:B119,D85:D119)","v":3910000}]
[]
[null,null,"Cost constraint",15000000]

{"sheet":"Portfolio_A_Status","index":43,"n_rows":122,"n_cols":37,"rows_kept":122,"cut":false,"hidden":false,"merged":[]}
["Project","manage_species","manage_spatial","manage_uncertainty","manage_currentpractices","manage_adaptivemanagement","pop_a","pop_b","pop_spatialscope","pop_temporalscope","hab_quantity","hab_quality","hab_temporal","ecoprocess_spp","ecoprocess_uncertainty","datasharing","broaderimpacts","exisitingpriorities","partners","leverage","alignment","objhyp","response","targettaxa","surveydesign","stats","datamanagement","budget","timeline","cost"]
[1,9,6.25,2,2,0,186,1054,75,5,0,2,0,0,0,4,0,2,3,0,0,2,3,3,3,2,3,2,2,700000]
[2,3,28.2,1,0,0,0,0,0,0,0,2,0,4,1,0,0,3,3,0,0,2,3,3,3,2,3,2,2,5400000]
[3,8,28.2,2,0,0,0,0,0,0,0,2,0,5,1,0,2,0,0,0,1,2,3,3,3,2,1,2,2,250000]
[4,1,6.25,2,0,0,0,0,0,0,0,2,0,4,1,0,1,3,3,4,0,1,3,3,1,0,0,2,1,150000]
[5,4,3.1,2,0,0,0,0,50,2,0,2,0,0,0,0,1,3,3,4,1,0,3,3,2,0,0,2,1,220000]
[6,10,6.2E-2,2,0,0,0,0,10,2,0,2,0,0,0,0,1,0,3,3,0,0,0,3,0,0,0,2,1,110000]
[7,52,18.8,0,2,0,0,0,85,12,85,8,12,8,1,0,0,3,3,0,0,2,0,1,3,2,2,0,2,1000000]
[8,3,18.8,2,1,1,0,0,14,14,14,8,14,0,0,0,3,1,3,0,0,2,3,3,3,2,0,1,1,5000000]
[9,9,15.6,2,1,0,70,140,0,0,0,2,0,0,0,3,0,3,2,1,0,2,3,3,1,2,1,1,2,25000]
[10,0,0,0,0,0,0,0,0,0,0,2,0,6,2,1,2,3,2,2,0,0,2,3,3,1,1,0,2,900000]
[11,0,0,0,0,0,6,102,52,15,52,8,15,3,1,1,0,3,3,2,2,2,1,3,3,1,2,0,1,1500000]
[12,2,15.6,2,1,0,0,0,0,0,0,2,0,0,0,0,1,3,3,3,0,1,1,3,1,2,1,2,0,100000]
[13,0,0,0,0,0,0,12,39,2,39,8,2,7,1,1,0,3,3,0,0,1,0,1,0,2,1,1,1,250000]
[14,6,15.6,1,1,0,0,0,0,0,0,2,0,6,1,1,0,3,3,0,0,1,1,3,3,1,2,1,1,500000]
[15,23,12.5,2,1,1,0,0,23,3,23,8,3,1,2,2,0,2,3,3,2,0,3,1,1,2,3,2,1,800000]
[16,0,0,0,0,0,0,0,100,15,100,7,15,0,0,3,0,3,3,5,0,2,2,2,1,2,3,2,2,2000000]
[17,2,15.6,2,1,1,58,290,0,0,0,8,3,0,0,0,0,3,2,0,0,2,3,1,0,1,0,2,1,500000]
[18,0,0,0,0,0,0,30,0,0,0,2,0,8,1,1,3,3,3,5,1,2,2,1,2,1,2,1,0,300000]
[19,8,3.125,1,2,0,0,0,0,0,0,2,0,8,2,0,0,2,3,0,0,1,1,3,2,0,1,0,1,750000]
[20,9,15.6,1,2,0,0,435,76,10,76,6,10,8,2,1,0,3,3,3,2,1,0,0,1,2,1,0,1,1500000]
[21,0,0,0,0,0,0,0,0,0,0,2,0,8,2,0,1,3,3,5,1,0,2,3,1,0,3,1,2,900000]
[22,0,0,0,0,0,16,64,0,0,0,2,0,1,2,4,2,2,3,5,0,1,2,1,0,2,1,2,1,750000]
[23,9,18.8,2,0,0,0,0,0,0,0,2,0,0,0,3,0,3,3,5,0,2,1,2,1,1,1,0,1,1000000]
[24,5,6.25,2,0,0,0,0,0,0,0,2,0,0,0,0,0,3,3,5,0,0,3,1,3,2,1,0,2,150000]
[25,9,18.8,2,0,0,176,308,0,0,0,2,0,8,1,2,2,3,3,0,0,2,1,3,2,1,1,2,2,250000]
[26,17,18.8,2,1,0,0,0,0,0,0,2,0,0,0,3,0,3,3,4,0,2,1,0,2,0,1,2,2,500000]
[27,0,6.25,2,0,0,0,0,0,0,80,2,5,0,0,2,2,3,3,5,0,1,2,3,1,0,0,0,0,1200000]
[28,3,6.25,2,0,1,0,0,0,0,0,4,5,0,0,4,0,3,3,4,0,2,3,3,1,0,2,2,1,500000]
[29,9,12.5,2,1,0,0,0,15,12,15,8,12,0,0,1,0,3,3,4,0,2,1,0,2,1,1,1,2,2000000]
[30,33,18.8,2,0,0,0,0,0,0,0,4,2,0,0,0,0,1,1,0,0,0,3,1,2,0,2,2,0,250000]
[31,4,18.8,1,0,0,0,0,65,4,0,4,4,0,0,2,0,3,2,3,0,1,0,1,1,2,2,1,1,650000]
[32,5,3.125,2,2,1,6,102,40,16,40,8,16,0,0,2,3,3,0,4,0,0,2,1,2,1,0,2,1,200000]
[33,14,18.8,2,1,0,0,0,0,0,0,5,0,0,0,2,0,3,2,0,0,1,3,0,2,2,3,0,0,400000]
[34,0,0,0,0,0,0,12,100,15,100,8,15,0,0,2,0,3,3,4,0,2,3,3,0,2,2,1,0,900000]
[35,8,9.4,1,1,1,0,0,0,0,100,6,5,8,0,0,0,3,3,3,0,2,2,0,1,2,0,1,1,900000]
["CV",{"$f":"_xlfn.STDEV.S(B2:B36)/AVERAGE(B2:B36)","v":1.383842854444886},{"$f":"_xlfn.STDEV.S(C2:C36)/AVERAGE(C2:C36)","v":0.84395823753626376},{"$f":"_xlfn.STDEV.S(D2:D36)/AVERAGE(D2:D36)","v":0.65948586466528381},{"$f":"_xlfn.STDEV.S(E2:E36)/AVERAGE(E2:E36)","v":1.2933654230908831},2.2305806858480666,2.9881459898804135,2.7250501152884543,1.5394659205075842,1.5790297611729722,1.6828143944790142,0.63288342730791625,1.4346340567392073,1.2744250477591585,1.2909944487358058,1.043011114951035,1.4910544805781871,0.32582327651393111,0.30721159062514791,0.8219511329380369,2.1760730956581078,0.64975875258290616,0.58618247649425104,0.61083323417736113,0.63333947951472869,0.68629571860885286,0.76505300516434493,0.69428102652373402,0.60312027652595823]
["sd",{"$f":"_xlfn.STDEV.S(B2:B36)","v":10.477667326511279}]
["mean",{"$f":"AVERAGE(B2:B36)","v":7.5714285714285712}]
[null,{"$f":"B1","v":"manage_species"},{"$f":"C1","v":"manage_spatial"},"manage_uncertainty","manage_currentpractices","manage_adaptivemanagement","pop_a","pop_b","pop_spatialscope","pop_temporalscope","hab_quantity","hab_quality","hab_temporal","ecoprocess_spp","ecoprocess_uncertainty","datasharing","broaderimpacts","exisitingpriorities","partners","leverage","alignment","objhyp","response","targettaxa","surveydesign","stats","datamanagement","budget","timeline"]
[null,"Metric 1","Metric 2","Metric 3","Metric 4","Metric 5","Metric 6a","Metric 6b","Metric 7","Metric 8","Metric 9","Metric 10","Metric 11","Metric 12","Metric 13","Metric 14","Metric 15","Metric 16","Metric 17","Metric 18","Metric 19","Metric 20","Metric 21","Metric 22","Metric 23","Metric 24","Metric 25","Metric 26","Metric 27"]
["Weights",0.03,0.03,0.03,0.03,0.04,1.4999999999999999E-2,1.4999999999999999E-2,0.03,0.02,0.02,0.02,0.02,0.03,0.09,0.04,0.04,0.05,0.05,0.03,0.03,0.05,0.04,0.04,0.05,0.05,0.04,0.04,0.03]
[]
[null,"Unweighted"]
["Project",null,null,null,null,null,null,null,null,null,null,null,null,null,null,null,null,null,null,null,null,null,null,null,null,null,null,null,null,"Unweighted total",null,"Unweighted total","management","status","ecol_proc","integration","rigor"]
[{"$f":"A2","v":1},{"$f":"valueE(B2,'Utility Functions'!$B$3,'Utility Functions'!$B$4,'Utility Functions'!$B$5,'Utility Functions'!$B$6)","v":0.83470237647280454},{"$f":"valueE(C2,'Utility Functions'!$D$3,'Utility Functions'!$D$4,'Utility Functions'!$D$5,'Utility Functions'!$D$6)","v":0.46475967153745396},{"$f":"valuePL(D2,'Utility Functions'!$E$3:$E$5,'Utility Functions'!$F$3:$F$5)","v":1},{"$f":"valuePL(E2,'Utility Functions'!$G$3:$G$5,'Utility Functions'!$H$3:$H$5)","v":1},{"$f":"valuePL(F2,'Utility Functions'!$I$3:$I$4,'Utility Functions'!$J$3:$J$5)","v":0},{"$f":"valueE(G2,'Utility Functions'!$L$3,'Utility Functions'!$L$4,'Utility Functions'!$L$5,'Utility Functions'!$L$6)","v":1},{"$f":"valueE(H2,'Utility Functions'!$N$3,'Utility Functions'!$N$4,'Utility Functions'!$N$5,'Utility Functions'!$N$6)","v":1},{"$f":"valuePL(I2,'Utility Functions'!$O$3:$O$6,'Utility Functions'!$P$3:$P$6)","v":0.91818181818181821},{"$f":"valuePL(J2,'Utility Functions'!$Q$3:$Q$6,'Utility Functions'!$R$3:$R$6)","v":0.1},{"$f":"valuePL(K2,'Utility Functions'!$S$3:$S$7,'Utility Functions'!$T$3:$T$7)","v":0},{"$f":"valueE(L2,'Utility Functions'!$V$3,'Utility Functions'!$V$4,'Utility Functions'!$V$5,'Utility Functions'!$V$6)","v":0},{"$f":"valuePL(M2,'Utility Functions'!$W$3:$W$6,'Utility Functions'!$X$3:$X$6)","v":0},{"$f":"valueE(N2,'Utility Functions'!$Z$3,'Utility Functions'!$Z$4,'Utility Functions'!$Z$5,'Utility Functions'!$Z$6)","v":0},{"$f":"valuePL(O2,'Utility Functions'!$AA$3:$AA$5,'Utility Functions'!$AB$3:$AB$5)","v":0},{"$f":"valuePL(P2,'Utility Functions'!$AC$3:$AC$7,'Utility Functions'!$AD$3:$AD$7)","v":1},{"$f":"valuePL(Q2,'Utility Functions'!$AE$3:$AE$6,'Utility Functions'!$AF$3:$AF$6)","v":0},{"$f":"valuePL(R2,'Utility Functions'!$AG$3:$AG$6,'Utility Functions'!$AH$3:$AH$6)","v":0.8},{"$f":"valuePL(S2,'Utility Functions'!$AI$3:$AI$6,'Utility Functions'!$AJ$3:$AJ$6)","v":1},{"$f":"valuePL(T2,'Utility Functions'!$AK$3:$AK$8,'Utility Functions'!$AL$3:$AL$8)","v":0},{"$f":"valuePL(U2,'Utility Functions'!$AM$3:$AM$5,'Utility Functions'!$AN$3:$AN$5)","v":0},{"$f":"valuePL(V2,'Utility Functions'!$AO$3:$AO$5,'Utility Functions'!$AP$3:$AP$5)","v":1},{"$f":"valuePL(W2,'Utility Functions'!$AQ$3:$AQ$6,'Utility Functions'!$AR$3:$AR$6)","v":1},{"$f":"valuePL(X2,'Utility Functions'!$AS$3:$AS$6,'Utility Functions'!$AT$3:$AT$6)","v":1},{"$f":"valuePL(Y2,'Utility Functions'!$AU$3:$AU$6,'Utility Functions'!$AV$3:$AV$6)","v":1},{"$f":"valuePL(Z2,'Utility Functions'!$AW$3:$AW$5,'Utility Functions'!$AX$3:$AX$5)","v":1},{"$f":"valuePL(AA2,'Utility Functions'!$AY$3:$AY$6,'Utility Functions'!$AZ$3:$AZ$6)","v":1},{"$f":"valuePL(AB2,'Utility Functions'!$BA$3:$BA$5,'Utility Functions'!$BB$3:$BB$5)","v":1},{"$f":"valuePL(AC2,'Utility Functions'!$BC$3:$BC$5,'Utility Functions'!$BD$3:$BD$5)","v":1},{"$f":"SUM(B46:AC46)","v":17.117643866192076},null,{"$f":"SUM(AG46:AK46)","v":17.117643866192076},{"$f":"SUM(B46:F46)","v":3.2994620480102586},{"$f":"SUM(G46:M46)","v":3.0181818181818181},{"$f":"SUM(N46:O46)","v":0},{"$f":"SUM(P46:U46)","v":2.8},{"$f":"SUM(V46:AC46)","v":8}]
[2,{"$f":"valueE(B3,'Utility Functions'!$B$3,'Utility Functions'!$B$4,'Utility Functions'!$B$5,'Utility Functions'!$B$6)","v":0.4511890475224023},{"$f":"valueE(C3,'Utility Functions'!$D$3,'Utility Functions'!$D$4,'Utility Functions'!$D$5,'Utility Functions'!$D$6)","v":0.94043675305359531},{"$f":"valuePL(D3,'Utility Functions'!$E$3:$E$5,'Utility Functions'!$F$3:$F$5)","v":0.5},{"$f":"valuePL(E3,'Utility Functions'!$G$3:$G$5,'Utility Functions'!$H$3:$H$5)","v":0},{"$f":"valuePL(F3,'Utility Functions'!$I$3:$I$4,'Utility Functions'!$J$3:$J$5)","v":0},{"$f":"valueE(G3,'Utility Functions'!$L$3,'Utility Functions'!$L$4,'Utility Functions'!$L$5,'Utility Functions'!$L$6)","v":0},{"$f":"valueE(H3,'Utility Functions'!$N$3,'Utility Functions'!$N$4,'Utility Functions'!$N$5,'Utility Functions'!$N$6)","v":0},{"$f":"valuePL(I3,'Utility Functions'!$O$3:$O$6,'Utility Functions'!$P$3:$P$6)","v":0},{"$f":"valuePL(J3,'Utility Functions'!$Q$3:$Q$6,'Utility Functions'!$R$3:$R$6)","v":0},{"$f":"valuePL(K3,'Utility Functions'!$S$3:$S$7,'Utility Functions'!$T$3:$T$7)","v":0},{"$f":"valueE(L3,'Utility Functions'!$V$3,'Utility Functions'!$V$4,'Utility Functions'!$V$5,'Utility Functions'!$V$6)","v":0},{"$f":"valuePL(M3,'Utility Functions'!$W$3:$W$6,'Utility Functions'!$X$3:$X$6)","v":0},{"$f":"valueE(N3,'Utility Functions'!$Z$3,'Utility Functions'!$Z$4,'Utility Functions'!$Z$5,'Utility Functions'!$Z$6)","v":0.5},{"$f":"valuePL(O3,'Utility Functions'!$AA$3:$AA$5,'Utility Functions'!$AB$3:$AB$5)","v":0.25},{"$f":"valuePL(P3,'Utility Functions'!$AC$3:$AC$7,'Utility Functions'!$AD$3:$AD$7)","v":0},{"$f":"valuePL(Q3,'Utility Functions'!$AE$3:$AE$6,'Utility Functions'!$AF$3:$AF$6)","v":0},{"$f":"valuePL(R3,'Utility Functions'!$AG$3:$AG$6,'Utility Functions'!$AH$3:$AH$6)","v":1},{"$f":"valuePL(S3,'Utility Functions'!$AI$3:$AI$6,'Utility Functions'!$AJ$3:$AJ$6)","v":1},{"$f":"valuePL(T3,'Utility Functions'!$AK$3:$AK$8,'Utility Functions'!$AL$3:$AL$8)","v":0},{"$f":"valuePL(U3,'Utility Functions'!$AM$3:$AM$5,'Utility Functions'!$AN$3:$AN$5)","v":0},{"$f":"valuePL(V3,'Utility Functions'!$AO$3:$AO$5,'Utility Functions'!$AP$3:$AP$5)","v":1},{"$f":"valuePL(W3,'Utility Functions'!$AQ$3:$AQ$6,'Utility Functions'!$AR$3:$AR$6)","v":1},{"$f":"valuePL(X3,'Utility Functions'!$AS$3:$AS$6,'Utility Functions'!$AT$3:$AT$6)","v":1},{"$f":"valuePL(Y3,'Utility Functions'!$AU$3:$AU$6,'Utility Functions'!$AV$3:$AV$6)","v":1},{"$f":"valuePL(Z3,'Utility Functions'!$AW$3:$AW$5,'Utility Functions'!$AX$3:$AX$5)","v":1},{"$f":"valuePL(AA3,'Utility Functions'!$AY$3:$AY$6,'Utility Functions'!$AZ$3:$AZ$6)","v":1},{"$f":"valuePL(AB3,'Utility Functions'!$BA$3:$BA$5,'Utility Functions'!$BB$3:$BB$5)","v":1},{"$f":"valuePL(AC3,'Utility Functions'!$BC$3:$BC$5,'Utility Functions'!$BD$3:$BD$5)","v":1},{"$f":"SUM(B47:AC47)","v":12.641625800575998},null,{"$f":"SUM(AG47:AK47)","v":12.641625800575998},{"$f":"SUM(B47:F47)","v":1.8916258005759976},{"$f":"SUM(G47:M47)","v":0},{"$f":"SUM(N47:O47)","v":0.75},{"$f":"SUM(P47:U47)","v":2},{"$f":"SUM(V47:AC47)","v":8}]
[3,{"$f":"valueE(B4,'Utility Functions'!$B$3,'Utility Functions'!$B$4,'Utility Functions'!$B$5,'Utility Functions'!$B$6)","v":0.79810469124896843},{"$f":"valueE(C4,'Utility Functions'!$D$3,'Utility Functions'!$D$4,'Utility Functions'!$D$5,'Utility Functions'!$D$6)","v":0.94043675305359531},{"$f":"valuePL(D4,'Utility Functions'!$E$3:$E$5,'Utility Functions'!$F$3:$F$5)","v":1},{"$f":"valuePL(E4,'Utility Functions'!$G$3:$G$5,'Utility Functions'!$H$3:$H$5)","v":0},{"$f":"valuePL(F4,'Utility Functions'!$I$3:$I$4,'Utility Functions'!$J$3:$J$5)","v":0},{"$f":"valueE(G4,'Utility Functions'!$L$3,'Utility Functions'!$L$4,'Utility Functions'!$L$5,'Utility Functions'!$L$6)","v":0},{"$f":"valueE(H4,'Utility Functions'!$N$3,'Utility Functions'!$N$4,'Utility Functions'!$N$5,'Utility Functions'!$N$6)","v":0},{"$f":"valuePL(I4,'Utility Functions'!$O$3:$O$6,'Utility Functions'!$P$3:$P$6)","v":0},{"$f":"valuePL(J4,'Utility Functions'!$Q$3:$Q$6,'Utility Functions'!$R$3:$R$6)","v":0},{"$f":"valuePL(K4,'Utility Functions'!$S$3:$S$7,'Utility Functions'!$T$3:$T$7)","v":0},{"$f":"valueE(L4,'Utility Functions'!$V$3,'Utility Functions'!$V$4,'Utility Functions'!$V$5,'Utility Functions'!$V$6)","v":0},{"$f":"valuePL(M4,'Utility Functions'!$W$3:$W$6,'Utility Functions'!$X$3:$X$6)","v":0},{"$f":"valueE(N4,'Utility Functions'!$Z$3,'Utility Functions'!$Z$4,'Utility Functions'!$Z$5,'Utility Functions'!$Z$6)","v":0.625},{"$f":"valuePL(O4,'Utility Functions'!$AA$3:$AA$5,'Utility Functions'!$AB$3:$AB$5)","v":0.25},{"$f":"valuePL(P4,'Utility Functions'!$AC$3:$AC$7,'Utility Functions'!$AD$3:$AD$7)","v":0},{"$f":"valuePL(Q4,'Utility Functions'!$AE$3:$AE$6,'Utility Functions'!$AF$3:$AF$6)","v":0.5},{"$f":"valuePL(R4,'Utility Functions'!$AG$3:$AG$6,'Utility Functions'!$AH$3:$AH$6)","v":0},{"$f":"valuePL(S4,'Utility Functions'!$AI$3:$AI$6,'Utility Functions'!$AJ$3:$AJ$6)","v":0},{"$f":"valuePL(T4,'Utility Functions'!$AK$3:$AK$8,'Utility Functions'!$AL$3:$AL$8)","v":0},{"$f":"valuePL(U4,'Utility Functions'!$AM$3:$AM$5,'Utility Functions'!$AN$3:$AN$5)","v":0.25},{"$f":"valuePL(V4,'Utility Functions'!$AO$3:$AO$5,'Utility Functions'!$AP$3:$AP$5)","v":1},{"$f":"valuePL(W4,'Utility Functions'!$AQ$3:$AQ$6,'Utility Functions'!$AR$3:$AR$6)","v":1},{"$f":"valuePL(X4,'Utility Functions'!$AS$3:$AS$6,'Utility Functions'!$AT$3:$AT$6)","v":1},{"$f":"valuePL(Y4,'Utility Functions'!$AU$3:$AU$6,'Utility Functions'!$AV$3:$AV$6)","v":1},{"$f":"valuePL(Z4,'Utility Functions'!$AW$3:$AW$5,'Utility Functions'!$AX$3:$AX$5)","v":1},{"$f":"valuePL(AA4,'Utility Functions'!$AY$3:$AY$6,'Utility Functions'!$AZ$3:$AZ$6)","v":0.2},{"$f":"valuePL(AB4,'Utility Functions'!$BA$3:$BA$5,'Utility Functions'!$BB$3:$BB$5)","v":1},{"$f":"valuePL(AC4,'Utility Functions'!$BC$3:$BC$5,'Utility Functions'!$BD$3:$BD$5)","v":1},11.563541444302563,null,11.563541444302565,2.7385414443025637,0,0.875,0.75,7.2]
[4,{"$f":"valueE(B5,'Utility Functions'!$B$3,'Utility Functions'!$B$4,'Utility Functions'!$B$5,'Utility Functions'!$B$6)","v":0.1812695215714665},{"$f":"valueE(C5,'Utility Functions'!$D$3,'Utility Functions'!$D$4,'Utility Functions'!$D$5,'Utility Functions'!$D$6)","v":0.46475967153745396},{"$f":"valuePL(D5,'Utility Functions'!$E$3:$E$5,'Utility Functions'!$F$3:$F$5)","v":1},{"$f":"valuePL(E5,'Utility Functions'!$G$3:$G$5,'Utility Functions'!$H$3:$H$5)","v":0},{"$f":"valuePL(F5,'Utility Functions'!$I$3:$I$4,'Utility Functions'!$J$3:$J$5)","v":0},{"$f":"valueE(G5,'Utility Functions'!$L$3,'Utility Functions'!$L$4,'Utility Functions'!$L$5,'Utility Functions'!$L$6)","v":0},{"$f":"valueE(H5,'Utility Functions'!$N$3,'Utility Functions'!$N$4,'Utility Functions'!$N$5,'Utility Functions'!$N$6)","v":0},{"$f":"valuePL(I5,'Utility Functions'!$O$3:$O$6,'Utility Functions'!$P$3:$P$6)","v":0},{"$f":"valuePL(J5,'Utility Functions'!$Q$3:$Q$6,'Utility Functions'!$R$3:$R$6)","v":0},{"$f":"valuePL(K5,'Utility Functions'!$S$3:$S$7,'Utility Functions'!$T$3:$T$7)","v":0},{"$f":"valueE(L5,'Utility Functions'!$V$3,'Utility Functions'!$V$4,'Utility Functions'!$V$5,'Utility Functions'!$V$6)","v":0},{"$f":"valuePL(M5,'Utility Functions'!$W$3:$W$6,'Utility Functions'!$X$3:$X$6)","v":0},{"$f":"valueE(N5,'Utility Functions'!$Z$3,'Utility Functions'!$Z$4,'Utility Functions'!$Z$5,'Utility Functions'!$Z$6)","v":0.5},{"$f":"valuePL(O5,'Utility Functions'!$AA$3:$AA$5,'Utility Functions'!$AB$3:$AB$5)","v":0.25},{"$f":"valuePL(P5,'Utility Functions'!$AC$3:$AC$7,'Utility Functions'!$AD$3:$AD$7)","v":0},{"$f":"valuePL(Q5,'Utility Functions'!$AE$3:$AE$6,'Utility Functions'!$AF$3:$AF$6)","v":0.1},{"$f":"valuePL(R5,'Utility Functions'!$AG$3:$AG$6,'Utility Functions'!$AH$3:$AH$6)","v":1},{"$f":"valuePL(S5,'Utility Functions'!$AI$3:$AI$6,'Utility Functions'!$AJ$3:$AJ$6)","v":1},{"$f":"valuePL(T5,'Utility Functions'!$AK$3:$AK$8,'Utility Functions'!$AL$3:$AL$8)","v":0.8},{"$f":"valuePL(U5,'Utility Functions'!$AM$3:$AM$5,'Utility Functions'!$AN$3:$AN$5)","v":0},{"$f":"valuePL(V5,'Utility Functions'!$AO$3:$AO$5,'Utility Functions'!$AP$3:$AP$5)","v":0.5},{"$f":"valuePL(W5,'Utility Functions'!$AQ$3:$AQ$6,'Utility Functions'!$AR$3:$AR$6)","v":1},{"$f":"valuePL(X5,'Utility Functions'!$AS$3:$AS$6,'Utility Functions'!$AT$3:$AT$6)","v":1},{"$f":"valuePL(Y5,'Utility Functions'!$AU$3:$AU$6,'Utility Functions'!$AV$3:$AV$6)","v":0.2},{"$f":"valuePL(Z5,'Utility Functions'!$AW$3:$AW$5,'Utility Functions'!$AX$3:$AX$5)","v":0},{"$f":"valuePL(AA5,'Utility Functions'!$AY$3:$AY$6,'Utility Functions'!$AZ$3:$AZ$6)","v":0},{"$f":"valuePL(AB5,'Utility Functions'!$BA$3:$BA$5,'Utility Functions'!$BB$3:$BB$5)","v":1},{"$f":"valuePL(AC5,'Utility Functions'!$BC$3:$BC$5,'Utility Functions'!$BD$3:$BD$5)","v":0.25},9.2460291931089209,null,9.2460291931089209,1.6460291931089204,0,0.75,2.9000000000000004,3.95]
[5,{"$f":"valueE(B6,'Utility Functions'!$B$3,'Utility Functions'!$B$4,'Utility Functions'!$B$5,'Utility Functions'!$B$6)","v":0.55067187023002029},{"$f":"valueE(C6,'Utility Functions'!$D$3,'Utility Functions'!$D$4,'Utility Functions'!$D$5,'Utility Functions'!$D$6)","v":0.26656514581460788},{"$f":"valuePL(D6,'Utility Functions'!$E$3:$E$5,'Utility Functions'!$F$3:$F$5)","v":1},{"$f":"valuePL(E6,'Utility Functions'!$G$3:$G$5,'Utility Functions'!$H$3:$H$5)","v":0},{"$f":"valuePL(F6,'Utility Functions'!$I$3:$I$4,'Utility Functions'!$J$3:$J$5)","v":0},{"$f":"valueE(G6,'Utility Functions'!$L$3,'Utility Functions'!$L$4,'Utility Functions'!$L$5,'Utility Functions'!$L$6)","v":0},{"$f":"valueE(H6,'Utility Functions'!$N$3,'Utility Functions'!$N$4,'Utility Functions'!$N$5,'Utility Functions'!$N$6)","v":0},{"$f":"valuePL(I6,'Utility Functions'!$O$3:$O$6,'Utility Functions'!$P$3:$P$6)","v":0.50909090909090915},{"$f":"valuePL(J6,'Utility Functions'!$Q$3:$Q$6,'Utility Functions'!$R$3:$R$6)","v":0.04},{"$f":"valuePL(K6,'Utility Functions'!$S$3:$S$7,'Utility Functions'!$T$3:$T$7)","v":0},{"$f":"valueE(L6,'Utility Functions'!$V$3,'Utility Functions'!$V$4,'Utility Functions'!$V$5,'Utility Functions'!$V$6)","v":0},{"$f":"valuePL(M6,'Utility Functions'!$W$3:$W$6,'Utility Functions'!$X$3:$X$6)","v":0},{"$f":"valueE(N6,'Utility Functions'!$Z$3,'Utility Functions'!$Z$4,'Utility Functions'!$Z$5,'Utility Functions'!$Z$6)","v":0},{"$f":"valuePL(O6,'Utility Functions'!$AA$3:$AA$5,'Utility Functions'!$AB$3:$AB$5)","v":0},{"$f":"valuePL(P6,'Utility Functions'!$AC$3:$AC$7,'Utility Functions'!$AD$3:$AD$7)","v":0},{"$f":"valuePL(Q6,'Utility Functions'!$AE$3:$AE$6,'Utility Functions'!$AF$3:$AF$6)","v":0.1},{"$f":"valuePL(R6,'Utility Functions'!$AG$3:$AG$6,'Utility Functions'!$AH$3:$AH$6)","v":1},{"$f":"valuePL(S6,'Utility Functions'!$AI$3:$AI$6,'Utility Functions'!$AJ$3:$AJ$6)","v":1},{"$f":"valuePL(T6,'Utility Functions'!$AK$3:$AK$8,'Utility Functions'!$AL$3:$AL$8)","v":0.8},{"$f":"valuePL(U6,'Utility Functions'!$AM$3:$AM$5,'Utility Functions'!$AN$3:$AN$5)","v":0.25},{"$f":"valuePL(V6,'Utility Functions'!$AO$3:$AO$5,'Utility Functions'!$AP$3:$AP$5)","v":0},{"$f":"valuePL(W6,'Utility Functions'!$AQ$3:$AQ$6,'Utility Functions'!$AR$3:$AR$6)","v":1},{"$f":"valuePL(X6,'Utility Functions'!$AS$3:$AS$6,'Utility Functions'!$AT$3:$AT$6)","v":1},{"$f":"valuePL(Y6,'Utility Functions'!$AU$3:$AU$6,'Utility Functions'!$AV$3:$AV$6)","v":0.8},{"$f":"valuePL(Z6,'Utility Functions'!$AW$3:$AW$5,'Utility Functions'!$AX$3:$AX$5)","v":0},{"$f":"valuePL(AA6,'Utility Functions'!$AY$3:$AY$6,'Utility Functions'!$AZ$3:$AZ$6)","v":0},{"$f":"valuePL(AB6,'Utility Functions'!$BA$3:$BA$5,'Utility Functions'!$BB$3:$BB$5)","v":1},{"$f":"valuePL(AC6,'Utility Functions'!$BC$3:$BC$5,'Utility Functions'!$BD$3:$BD$5)","v":0.25},9.5663279251355373,null,9.5663279251355391,1.8172370160446283,0.54909090909090918,0,3.1500000000000004,4.05]
[6,{"$f":"valueE(B7,'Utility Functions'!$B$3,'Utility Functions'!$B$4,'Utility Functions'!$B$5,'Utility Functions'!$B$6)","v":0.86466602685702687},{"$f":"valueE(C7,'Utility Functions'!$D$3,'Utility Functions'!$D$4,'Utility Functions'!$D$5,'Utility Functions'!$D$6)","v":6.1811002813601471E-3},{"$f":"valuePL(D7,'Utility Functions'!$E$3:$E$5,'Utility Functions'!$F$3:$F$5)","v":1},{"$f":"valuePL(E7,'Utility Functions'!$G$3:$G$5,'Utility Functions'!$H$3:$H$5)","v":0},{"$f":"valuePL(F7,'Utility Functions'!$I$3:$I$4,'Utility Functions'!$J$3:$J$5)","v":0},{"$f":"valueE(G7,'Utility Functions'!$L$3,'Utility Functions'!$L$4,'Utility Functions'!$L$5,'Utility Functions'!$L$6)","v":0},{"$f":"valueE(H7,'Utility Functions'!$N$3,'Utility Functions'!$N$4,'Utility Functions'!$N$5,'Utility Functions'!$N$6)","v":0},{"$f":"valuePL(I7,'Utility Functions'!$O$3:$O$6,'Utility Functions'!$P$3:$P$6)","v":0.04},{"$f":"valuePL(J7,'Utility Functions'!$Q$3:$Q$6,'Utility Functions'!$R$3:$R$6)","v":0.04},{"$f":"valuePL(K7,'Utility Functions'!$S$3:$S$7,'Utility Functions'!$T$3:$T$7)","v":0},{"$f":"valueE(L7,'Utility Functions'!$V$3,'Utility Functions'!$V$4,'Utility Functions'!$V$5,'Utility Functions'!$V$6)","v":0},{"$f":"valuePL(M7,'Utility Functions'!$W$3:$W$6,'Utility Functions'!$X$3:$X$6)","v":0},{"$f":"valueE(N7,'Utility Functions'!$Z$3,'Utility Functions'!$Z$4,'Utility Functions'!$Z$5,'Utility Functions'!$Z$6)","v":0},{"$f":"valuePL(O7,'Utility Functions'!$AA$3:$AA$5,'Utility Functions'!$AB$3:$AB$5)","v":0},{"$f":"valuePL(P7,'Utility Functions'!$AC$3:$AC$7,'Utility Functions'!$AD$3:$AD$7)","v":0},{"$f":"valuePL(Q7,'Utility Functions'!$AE$3:$AE$6,'Utility Functions'!$AF$3:$AF$6)","v":0.1},{"$f":"valuePL(R7,'Utility Functions'!$AG$3:$AG$6,'Utility Functions'!$AH$3:$AH$6)","v":0},{"$f":"valuePL(S7,'Utility Functions'!$AI$3:$AI$6,'Utility Functions'!$AJ$3:$AJ$6)","v":1},{"$f":"valuePL(T7,'Utility Functions'!$AK$3:$AK$8,'Utility Functions'!$AL$3:$AL$8)","v":0.6},{"$f":"valuePL(U7,'Utility Functions'!$AM$3:$AM$5,'Utility Functions'!$AN$3:$AN$5)","v":0},{"$f":"valuePL(V7,'Utility Functions'!$AO$3:$AO$5,'Utility Functions'!$AP$3:$AP$5)","v":0},{"$f":"valuePL(W7,'Utility Functions'!$AQ$3:$AQ$6,'Utility Functions'!$AR$3:$AR$6)","v":0},{"$f":"valuePL(X7,'Utility Functions'!$AS$3:$AS$6,'Utility Functions'!$AT$3:$AT$6)","v":1},{"$f":"valuePL(Y7,'Utility Functions'!$AU$3:$AU$6,'Utility Functions'!$AV$3:$AV$6)","v":0},{"$f":"valuePL(Z7,'Utility Functions'!$AW$3:$AW$5,'Utility Functions'!$AX$3:$AX$5)","v":0},{"$f":"valuePL(AA7,'Utility Functions'!$AY$3:$AY$6,'Utility Functions'!$AZ$3:$AZ$6)","v":0},{"$f":"valuePL(AB7,'Utility Functions'!$BA$3:$BA$5,'Utility Functions'!$BB$3:$BB$5)","v":1},{"$f":"valuePL(AC7,'Utility Functions'!$BC$3:$BC$5,'Utility Functions'!$BD$3:$BD$5)","v":0.25},5.9008471271383875,null,5.9008471271383875,1.8708471271383869,0.08,0,1.7000000000000002,2.25]
[7,{"$f":"valueE(B8,'Utility Functions'!$B$3,'Utility Functions'!$B$4,'Utility Functions'!$B$5,'Utility Functions'!$B$6)","v":0.99997108261728973},{"$f":"valueE(C8,'Utility Functions'!$D$3,'Utility Functions'!$D$4,'Utility Functions'!$D$5,'Utility Functions'!$D$6)","v":0.84744836833951609},{"$f":"valuePL(D8,'Utility Functions'!$E$3:$E$5,'Utility Functions'!$F$3:$F$5)","v":0},{"$f":"valuePL(E8,'Utility Functions'!$G$3:$G$5,'Utility Functions'!$H$3:$H$5)","v":1},{"$f":"valuePL(F8,'Utility Functions'!$I$3:$I$4,'Utility Functions'!$J$3:$J$5)","v":0},{"$f":"valueE(G8,'Utility Functions'!$L$3,'Utility Functions'!$L$4,'Utility Functions'!$L$5,'Utility Functions'!$L$6)","v":0},{"$f":"valueE(H8,'Utility Functions'!$N$3,'Utility Functions'!$N$4,'Utility Functions'!$N$5,'Utility Functions'!$N$6)","v":0},{"$f":"valuePL(I8,'Utility Functions'!$O$3:$O$6,'Utility Functions'!$P$3:$P$6)","v":1},{"$f":"valuePL(J8,'Utility Functions'!$Q$3:$Q$6,'Utility Functions'!$R$3:$R$6)","v":0.67272727272727273},{"$f":"valuePL(K8,'Utility Functions'!$S$3:$S$7,'Utility Functions'!$T$3:$T$7)","v":1},{"$f":"valueE(L8,'Utility Functions'!$V$3,'Utility Functions'!$V$4,'Utility Functions'!$V$5,'Utility Functions'!$V$6)","v":1},{"$f":"valuePL(M8,'Utility Functions'!$W$3:$W$6,'Utility Functions'!$X$3:$X$6)","v":0.67272727272727273},{"$f":"valueE(N8,'Utility Functions'!$Z$3,'Utility Functions'!$Z$4,'Utility Functions'!$Z$5,'Utility Functions'!$Z$6)","v":1},{"$f":"valuePL(O8,'Utility Functions'!$AA$3:$AA$5,'Utility Functions'!$AB$3:$AB$5)","v":0.25},{"$f":"valuePL(P8,'Utility Functions'!$AC$3:$AC$7,'Utility Functions'!$AD$3:$AD$7)","v":0},{"$f":"valuePL(Q8,'Utility Functions'!$AE$3:$AE$6,'Utility Functions'!$AF$3:$AF$6)","v":0},{"$f":"valuePL(R8,'Utility Functions'!$AG$3:$AG$6,'Utility Functions'!$AH$3:$AH$6)","v":1},{"$f":"valuePL(S8,'Utility Functions'!$AI$3:$AI$6,'Utility Functions'!$AJ$3:$AJ$6)","v":1},{"$f":"valuePL(T8,'Utility Functions'!$AK$3:$AK$8,'Utility Functions'!$AL$3:$AL$8)","v":0},{"$f":"valuePL(U8,'Utility Functions'!$AM$3:$AM$5,'Utility Functions'!$AN$3:$AN$5)","v":0},{"$f":"valuePL(V8,'Utility Functions'!$AO$3:$AO$5,'Utility Functions'!$AP$3:$AP$5)","v":1},{"$f":"valuePL(W8,'Utility Functions'!$AQ$3:$AQ$6,'Utility Functions'!$AR$3:$AR$6)","v":0},{"$f":"valuePL(X8,'Utility Functions'!$AS$3:$AS$6,'Utility Functions'!$AT$3:$AT$6)","v":0.2},{"$f":"valuePL(Y8,'Utility Functions'!$AU$3:$AU$6,'Utility Functions'!$AV$3:$AV$6)","v":1},{"$f":"valuePL(Z8,'Utility Functions'!$AW$3:$AW$5,'Utility Functions'!$AX$3:$AX$5)","v":1},{"$f":"valuePL(AA8,'Utility Functions'!$AY$3:$AY$6,'Utility Functions'!$AZ$3:$AZ$6)","v":0.89999999999999991},{"$f":"valuePL(AB8,'Utility Functions'!$BA$3:$BA$5,'Utility Functions'!$BB$3:$BB$5)","v":0},{"$f":"valuePL(AC8,'Utility Functions'!$BC$3:$BC$5,'Utility Functions'!$BD$3:$BD$5)","v":1},15.54287399641135,null,15.54287399641135,2.8474194509568056,4.3454545454545457,1.25,2,5.0999999999999996]
[8,{"$f":"valueE(B9,'Utility Functions'!$B$3,'Utility Functions'!$B$4,'Utility Functions'!$B$5,'Utility Functions'!$B$6)","v":0.4511890475224023},{"$f":"valueE(C9,'Utility Functions'!$D$3,'Utility Functions'!$D$4,'Utility Functions'!$D$5,'Utility Functions'!$D$6)","v":0.84744836833951609},{"$f":"valuePL(D9,'Utility Functions'!$E$3:$E$5,'Utility Functions'!$F$3:$F$5)","v":1},{"$f":"valuePL(E9,'Utility Functions'!$G$3:$G$5,'Utility Functions'!$H$3:$H$5)","v":0.5},{"$f":"valuePL(F9,'Utility Functions'!$I$3:$I$4,'Utility Functions'!$J$3:$J$5)","v":1},{"$f":"valueE(G9,'Utility Functions'!$L$3,'Utility Functions'!$L$4,'Utility Functions'!$L$5,'Utility Functions'!$L$6)","v":0},{"$f":"valueE(H9,'Utility Functions'!$N$3,'Utility Functions'!$N$4,'Utility Functions'!$N$5,'Utility Functions'!$N$6)","v":0},{"$f":"valuePL(I9,'Utility Functions'!$O$3:$O$6,'Utility Functions'!$P$3:$P$6)","v":5.6000000000000008E-2},{"$f":"valuePL(J9,'Utility Functions'!$Q$3:$Q$6,'Utility Functions'!$R$3:$R$6)","v":0.83636363636363631},{"$f":"valuePL(K9,'Utility Functions'!$S$3:$S$7,'Utility Functions'!$T$3:$T$7)","v":0},{"$f":"valueE(L9,'Utility Functions'!$V$3,'Utility Functions'!$V$4,'Utility Functions'!$V$5,'Utility Functions'!$V$6)","v":1},{"$f":"valuePL(M9,'Utility Functions'!$W$3:$W$6,'Utility Functions'!$X$3:$X$6)","v":0.83636363636363631},{"$f":"valueE(N9,'Utility Functions'!$Z$3,'Utility Functions'!$Z$4,'Utility Functions'!$Z$5,'Utility Functions'!$Z$6)","v":0},{"$f":"valuePL(O9,'Utility Functions'!$AA$3:$AA$5,'Utility Functions'!$AB$3:$AB$5)","v":0},{"$f":"valuePL(P9,'Utility Functions'!$AC$3:$AC$7,'Utility Functions'!$AD$3:$AD$7)","v":0},{"$f":"valuePL(Q9,'Utility Functions'!$AE$3:$AE$6,'Utility Functions'!$AF$3:$AF$6)","v":1},{"$f":"valuePL(R9,'Utility Functions'!$AG$3:$AG$6,'Utility Functions'!$AH$3:$AH$6)","v":0.2},{"$f":"valuePL(S9,'Utility Functions'!$AI$3:$AI$6,'Utility Functions'!$AJ$3:$AJ$6)","v":1},{"$f":"valuePL(T9,'Utility Functions'!$AK$3:$AK$8,'Utility Functions'!$AL$3:$AL$8)","v":0},{"$f":"valuePL(U9,'Utility Functions'!$AM$3:$AM$5,'Utility Functions'!$AN$3:$AN$5)","v":0},{"$f":"valuePL(V9,'Utility Functions'!$AO$3:$AO$5,'Utility Functions'!$AP$3:$AP$5)","v":1},{"$f":"valuePL(W9,'Utility Functions'!$AQ$3:$AQ$6,'Utility Functions'!$AR$3:$AR$6)","v":1},{"$f":"valuePL(X9,'Utility Functions'!$AS$3:$AS$6,'Utility Functions'!$AT$3:$AT$6)","v":1},{"$f":"valuePL(Y9,'Utility Functions'!$AU$3:$AU$6,'Utility Functions'!$AV$3:$AV$6)","v":1},{"$f":"valuePL(Z9,'Utility Functions'!$AW$3:$AW$5,'Utility Functions'!$AX$3:$AX$5)","v":1},{"$f":"valuePL(AA9,'Utility Functions'!$AY$3:$AY$6,'Utility Functions'!$AZ$3:$AZ$6)","v":0},{"$f":"valuePL(AB9,'Utility Functions'!$BA$3:$BA$5,'Utility Functions'!$BB$3:$BB$5)","v":0.25},{"$f":"valuePL(AC9,'Utility Functions'!$BC$3:$BC$5,'Utility Functions'!$BD$3:$BD$5)","v":0.25},14.227364688589191,null,14.227364688589191,3.7986374158619185,2.7287272727272729,0,2.2000000000000002,5.5]
[9,{"$f":"valueE(B10,'Utility Functions'!$B$3,'Utility Functions'!$B$4,'Utility Functions'!$B$5,'Utility Functions'!$B$6)","v":0.83470237647280454},{"$f":"valueE(C10,'Utility Functions'!$D$3,'Utility Functions'!$D$4,'Utility Functions'!$D$5,'Utility Functions'!$D$6)","v":0.78989979019422951},{"$f":"valuePL(D10,'Utility Functions'!$E$3:$E$5,'Utility Functions'!$F$3:$F$5)","v":1},{"$f":"valuePL(E10,'Utility Functions'!$G$3:$G$5,'Utility Functions'!$H$3:$H$5)","v":0.5},{"$f":"valuePL(F10,'Utility Functions'!$I$3:$I$4,'Utility Functions'!$J$3:$J$5)","v":0},{"$f":"valueE(G10,'Utility Functions'!$L$3,'Utility Functions'!$L$4,'Utility Functions'!$L$5,'Utility Functions'!$L$6)","v":0.37634408602150538},{"$f":"valueE(H10,'Utility Functions'!$N$3,'Utility Functions'!$N$4,'Utility Functions'!$N$5,'Utility Functions'!$N$6)","v":0.13282732447817835},{"$f":"valuePL(I10,'Utility Functions'!$O$3:$O$6,'Utility Functions'!$P$3:$P$6)","v":0},{"$f":"valuePL(J10,'Utility Functions'!$Q$3:$Q$6,'Utility Functions'!$R$3:$R$6)","v":0},{"$f":"valuePL(K10,'Utility Functions'!$S$3:$S$7,'Utility Functions'!$T$3:$T$7)","v":0},{"$f":"valueE(L10,'Utility Functions'!$V$3,'Utility Functions'!$V$4,'Utility Functions'!$V$5,'Utility Functions'!$V$6)","v":0},{"$f":"valuePL(M10,'Utility Functions'!$W$3:$W$6,'Utility Functions'!$X$3:$X$6)","v":0},{"$f":"valueE(N10,'Utility Functions'!$Z$3,'Utility Functions'!$Z$4,'Utility Functions'!$Z$5,'Utility Functions'!$Z$6)","v":0},{"$f":"valuePL(O10,'Utility Functions'!$AA$3:$AA$5,'Utility Functions'!$AB$3:$AB$5)","v":0},{"$f":"valuePL(P10,'Utility Functions'!$AC$3:$AC$7,'Utility Functions'!$AD$3:$AD$7)","v":0.75},{"$f":"valuePL(Q10,'Utility Functions'!$AE$3:$AE$6,'Utility Functions'!$AF$3:$AF$6)","v":0},{"$f":"valuePL(R10,'Utility Functions'!$AG$3:$AG$6,'Utility Functions'!$AH$3:$AH$6)","v":1},{"$f":"valuePL(S10,'Utility Functions'!$AI$3:$AI$6,'Utility Functions'!$AJ$3:$AJ$6)","v":0.66},{"$f":"valuePL(T10,'Utility Functions'!$AK$3:$AK$8,'Utility Functions'!$AL$3:$AL$8)","v":0.2},{"$f":"valuePL(U10,'Utility Functions'!$AM$3:$AM$5,'Utility Functions'!$AN$3:$AN$5)","v":0},{"$f":"valuePL(V10,'Utility Functions'!$AO$3:$AO$5,'Utility Functions'!$AP$3:$AP$5)","v":1},{"$f":"valuePL(W10,'Utility Functions'!$AQ$3:$AQ$6,'Utility Functions'!$AR$3:$AR$6)","v":1},{"$f":"valuePL(X10,'Utility Functions'!$AS$3:$AS$6,'Utility Functions'!$AT$3:$AT$6)","v":1},{"$f":"valuePL(Y10,'Utility Functions'!$AU$3:$AU$6,'Utility Functions'!$AV$3:$AV$6)","v":0.2},{"$f":"valuePL(Z10,'Utility Functions'!$AW$3:$AW$5,'Utility Functions'!$AX$3:$AX$5)","v":1},{"$f":"valuePL(AA10,'Utility Functions'!$AY$3:$AY$6,'Utility Functions'!$AZ$3:$AZ$6)","v":0.2},{"$f":"valuePL(AB10,'Utility Functions'!$BA$3:$BA$5,'Utility Functions'!$BB$3:$BB$5)","v":0.25},{"$f":"valuePL(AC10,'Utility Functions'!$BC$3:$BC$5,'Utility Functions'!$BD$3:$BD$5)","v":1},11.893773577166716,null,11.893773577166719,3.1246021666670343,0.50917141049968373,0,2.6100000000000003,5.65]
[10,{"$f":"valueE(B11,'Utility Functions'!$B$3,'Utility Functions'!$B$4,'Utility Functions'!$B$5,'Utility Functions'!$B$6)","v":0},{"$f":"valueE(C11,'Utility Functions'!$D$3,'Utility Functions'!$D$4,'Utility Functions'!$D$5,'Utility Functions'!$D$6)","v":0},{"$f":"valuePL(D11,'Utility Functions'!$E$3:$E$5,'Utility Functions'!$F$3:$F$5)","v":0},{"$f":"valuePL(E11,'Utility Functions'!$G$3:$G$5,'Utility Functions'!$H$3:$H$5)","v":0},{"$f":"valuePL(F11,'Utility Functions'!$I$3:$I$4,'Utility Functions'!$J$3:$J$5)","v":0},{"$f":"valueE(G11,'Utility Functions'!$L$3,'Utility Functions'!$L$4,'Utility Functions'!$L$5,'Utility Functions'!$L$6)","v":0},{"$f":"valueE(H11,'Utility Functions'!$N$3,'Utility Functions'!$N$4,'Utility Functions'!$N$5,'Utility Functions'!$N$6)","v":0},{"$f":"valuePL(I11,'Utility Functions'!$O$3:$O$6,'Utility Functions'!$P$3:$P$6)","v":0},{"$f":"valuePL(J11,'Utility Functions'!$Q$3:$Q$6,'Utility Functions'!$R$3:$R$6)","v":0},{"$f":"valuePL(K11,'Utility Functions'!$S$3:$S$7,'Utility Functions'!$T$3:$T$7)","v":0},{"$f":"valueE(L11,'Utility Functions'!$V$3,'Utility Functions'!$V$4,'Utility Functions'!$V$5,'Utility Functions'!$V$6)","v":0},{"$f":"valuePL(M11,'Utility Functions'!$W$3:$W$6,'Utility Functions'!$X$3:$X$6)","v":0},{"$f":"valueE(N11,'Utility Functions'!$Z$3,'Utility Functions'!$Z$4,'Utility Functions'!$Z$5,'Utility Functions'!$Z$6)","v":0.75},{"$f":"valuePL(O11,'Utility Functions'!$AA$3:$AA$5,'Utility Functions'!$AB$3:$AB$5)","v":1},{"$f":"valuePL(P11,'Utility Functions'!$AC$3:$AC$7,'Utility Functions'!$AD$3:$AD$7)","v":0.25},{"$f":"valuePL(Q11,'Utility Functions'!$AE$3:$AE$6,'Utility Functions'!$AF$3:$AF$6)","v":0.5},{"$f":"valuePL(R11,'Utility Functions'!$AG$3:$AG$6,'Utility Functions'!$AH$3:$AH$6)","v":1},{"$f":"valuePL(S11,'Utility Functions'!$AI$3:$AI$6,'Utility Functions'!$AJ$3:$AJ$6)","v":0.66},{"$f":"valuePL(T11,'Utility Functions'!$AK$3:$AK$8,'Utility Functions'!$AL$3:$AL$8)","v":0.4},{"$f":"valuePL(U11,'Utility Functions'!$AM$3:$AM$5,'Utility Functions'!$AN$3:$AN$5)","v":0},{"$f":"valuePL(V11,'Utility Functions'!$AO$3:$AO$5,'Utility Functions'!$AP$3:$AP$5)","v":0},{"$f":"valuePL(W11,'Utility Functions'!$AQ$3:$AQ$6,'Utility Functions'!$AR$3:$AR$6)","v":0.75},{"$f":"valuePL(X11,'Utility Functions'!$AS$3:$AS$6,'Utility Functions'!$AT$3:$AT$6)","v":1},{"$f":"valuePL(Y11,'Utility Functions'!$AU$3:$AU$6,'Utility Functions'!$AV$3:$AV$6)","v":1},{"$f":"valuePL(Z11,'Utility Functions'!$AW$3:$AW$5,'Utility Functions'!$AX$3:$AX$5)","v":0.5},{"$f":"valuePL(AA11,'Utility Functions'!$AY$3:$AY$6,'Utility Functions'!$AZ$3:$AZ$6)","v":0.2},{"$f":"valuePL(AB11,'Utility Functions'!$BA$3:$BA$5,'Utility Functions'!$BB$3:$BB$5)","v":0},{"$f":"valuePL(AC11,'Utility Functions'!$BC$3:$BC$5,'Utility Functions'!$BD$3:$BD$5)","v":1},9.01,null,9.0100000000000016,0,0,1.75,2.81,4.45]
[11,{"$f":"valueE(B12,'Utility Functions'!$B$3,'Utility Functions'!$B$4,'Utility Functions'!$B$5,'Utility Functions'!$B$6)","v":0},{"$f":"valueE(C12,'Utility Functions'!$D$3,'Utility Functions'!$D$4,'Utility Functions'!$D$5,'Utility Functions'!$D$6)","v":0},{"$f":"valuePL(D12,'Utility Functions'!$E$3:$E$5,'Utility Functions'!$F$3:$F$5)","v":0},{"$f":"valuePL(E12,'Utility Functions'!$G$3:$G$5,'Utility Functions'!$H$3:$H$5)","v":0},{"$f":"valuePL(F12,'Utility Functions'!$I$3:$I$4,'Utility Functions'!$J$3:$J$5)","v":0},{"$f":"valueE(G12,'Utility Functions'!$L$3,'Utility Functions'!$L$4,'Utility Functions'!$L$5,'Utility Functions'!$L$6)","v":3.2258064516129031E-2},{"$f":"valueE(H12,'Utility Functions'!$N$3,'Utility Functions'!$N$4,'Utility Functions'!$N$5,'Utility Functions'!$N$6)","v":9.6774193548387094E-2},{"$f":"valuePL(I12,'Utility Functions'!$O$3:$O$6,'Utility Functions'!$P$3:$P$6)","v":0.54181818181818187},{"$f":"valuePL(J12,'Utility Functions'!$Q$3:$Q$6,'Utility Functions'!$R$3:$R$6)","v":0.91818181818181821},{"$f":"valuePL(K12,'Utility Functions'!$S$3:$S$7,'Utility Functions'!$T$3:$T$7)","v":0.54181818181818187},{"$f":"valueE(L12,'Utility Functions'!$V$3,'Utility Functions'!$V$4,'Utility Functions'!$V$5,'Utility Functions'!$V$6)","v":1},{"$f":"valuePL(M12,'Utility Functions'!$W$3:$W$6,'Utility Functions'!$X$3:$X$6)","v":0.91818181818181821},{"$f":"valueE(N12,'Utility Functions'!$Z$3,'Utility Functions'!$Z$4,'Utility Functions'!$Z$5,'Utility Functions'!$Z$6)","v":0.375},{"$f":"valuePL(O12,'Utility Functions'!$AA$3:$AA$5,'Utility Functions'!$AB$3:$AB$5)","v":0.25},{"$f":"valuePL(P12,'Utility Functions'!$AC$3:$AC$7,'Utility Functions'!$AD$3:$AD$7)","v":0.25},{"$f":"valuePL(Q12,'Utility Functions'!$AE$3:$AE$6,'Utility Functions'!$AF$3:$AF$6)","v":0},{"$f":"valuePL(R12,'Utility Functions'!$AG$3:$AG$6,'Utility Functions'!$AH$3:$AH$6)","v":1},{"$f":"valuePL(S12,'Utility Functions'!$AI$3:$AI$6,'Utility Functions'!$AJ$3:$AJ$6)","v":1},{"$f":"valuePL(T12,'Utility Functions'!$AK$3:$AK$8,'Utility Functions'!$AL$3:$AL$8)","v":0.4},{"$f":"valuePL(U12,'Utility Functions'!$AM$3:$AM$5,'Utility Functions'!$AN$3:$AN$5)","v":1},{"$f":"valuePL(V12,'Utility Functions'!$AO$3:$AO$5,'Utility Functions'!$AP$3:$AP$5)","v":1},{"$f":"valuePL(W12,'Utility Functions'!$AQ$3:$AQ$6,'Utility Functions'!$AR$3:$AR$6)","v":0.2},{"$f":"valuePL(X12,'Utility Functions'!$AS$3:$AS$6,'Utility Functions'!$AT$3:$AT$6)","v":1},{"$f":"valuePL(Y12,'Utility Functions'!$AU$3:$AU$6,'Utility Functions'!$AV$3:$AV$6)","v":1},{"$f":"valuePL(Z12,'Utility Functions'!$AW$3:$AW$5,'Utility Functions'!$AX$3:$AX$5)","v":0.5},{"$f":"valuePL(AA12,'Utility Functions'!$AY$3:$AY$6,'Utility Functions'!$AZ$3:$AZ$6)","v":0.89999999999999991},{"$f":"valuePL(AB12,'Utility Functions'!$BA$3:$BA$5,'Utility Functions'!$BB$3:$BB$5)","v":0},{"$f":"valuePL(AC12,'Utility Functions'!$BC$3:$BC$5,'Utility Functions'!$BD$3:$BD$5)","v":0.25},13.174032258064516,null,13.174032258064516,0,4.0490322580645159,0.625,3.65,4.8499999999999996]
[12,{"$f":"valueE(B13,'Utility Functions'!$B$3,'Utility Functions'!$B$4,'Utility Functions'!$B$5,'Utility Functions'!$B$6)","v":0.32968045347775865},{"$f":"valueE(C13,'Utility Functions'!$D$3,'Utility Functions'!$D$4,'Utility Functions'!$D$5,'Utility Functions'!$D$6)","v":0.78989979019422951},{"$f":"valuePL(D13,'Utility Functions'!$E$3:$E$5,'Utility Functions'!$F$3:$F$5)","v":1},{"$f":"valuePL(E13,'Utility Functions'!$G$3:$G$5,'Utility Functions'!$H$3:$H$5)","v":0.5},{"$f":"valuePL(F13,'Utility Functions'!$I$3:$I$4,'Utility Functions'!$J$3:$J$5)","v":0},{"$f":"valueE(G13,'Utility Functions'!$L$3,'Utility Functions'!$L$4,'Utility Functions'!$L$5,'Utility Functions'!$L$6)","v":0},{"$f":"valueE(H13,'Utility Functions'!$N$3,'Utility Functions'!$N$4,'Utility Functions'!$N$5,'Utility Functions'!$N$6)","v":0},{"$f":"valuePL(I13,'Utility Functions'!$O$3:$O$6,'Utility Functions'!$P$3:$P$6)","v":0},{"$f":"valuePL(J13,'Utility Functions'!$Q$3:$Q$6,'Utility Functions'!$R$3:$R$6)","v":0},{"$f":"valuePL(K13,'Utility Functions'!$S$3:$S$7,'Utility Functions'!$T$3:$T$7)","v":0},{"$f":"valueE(L13,'Utility Functions'!$V$3,'Utility Functions'!$V$4,'Utility Functions'!$V$5,'Utility Functions'!$V$6)","v":0},{"$f":"valuePL(M13,'Utility Functions'!$W$3:$W$6,'Utility Functions'!$X$3:$X$6)","v":0},{"$f":"valueE(N13,'Utility Functions'!$Z$3,'Utility Functions'!$Z$4,'Utility Functions'!$Z$5,'Utility Functions'!$Z$6)","v":0},{"$f":"valuePL(O13,'Utility Functions'!$AA$3:$AA$5,'Utility Functions'!$AB$3:$AB$5)","v":0},{"$f":"valuePL(P13,'Utility Functions'!$AC$3:$AC$7,'Utility Functions'!$AD$3:$AD$7)","v":0},{"$f":"valuePL(Q13,'Utility Functions'!$AE$3:$AE$6,'Utility Functions'!$AF$3:$AF$6)","v":0.1},{"$f":"valuePL(R13,'Utility Functions'!$AG$3:$AG$6,'Utility Functions'!$AH$3:$AH$6)","v":1},{"$f":"valuePL(S13,'Utility Functions'!$AI$3:$AI$6,'Utility Functions'!$AJ$3:$AJ$6)","v":1},{"$f":"valuePL(T13,'Utility Functions'!$AK$3:$AK$8,'Utility Functions'!$AL$3:$AL$8)","v":0.6},{"$f":"valuePL(U13,'Utility Functions'!$AM$3:$AM$5,'Utility Functions'!$AN$3:$AN$5)","v":0},{"$f":"valuePL(V13,'Utility Functions'!$AO$3:$AO$5,'Utility Functions'!$AP$3:$AP$5)","v":0.5},{"$f":"valuePL(W13,'Utility Functions'!$AQ$3:$AQ$6,'Utility Functions'!$AR$3:$AR$6)","v":0.2},{"$f":"valuePL(X13,'Utility Functions'!$AS$3:$AS$6,'Utility Functions'!$AT$3:$AT$6)","v":1},{"$f":"valuePL(Y13,'Utility Functions'!$AU$3:$AU$6,'Utility Functions'!$AV$3:$AV$6)","v":0.2},{"$f":"valuePL(Z13,'Utility Functions'!$AW$3:$AW$5,'Utility Functions'!$AX$3:$AX$5)","v":1},{"$f":"valuePL(AA13,'Utility Functions'!$AY$3:$AY$6,'Utility Functions'!$AZ$3:$AZ$6)","v":0.2},{"$f":"valuePL(AB13,'Utility Functions'!$BA$3:$BA$5,'Utility Functions'!$BB$3:$BB$5)","v":1},{"$f":"valuePL(AC13,'Utility Functions'!$BC$3:$BC$5,'Utility Functions'!$BD$3:$BD$5)","v":0},9.4195802436719873,null,9.4195802436719873,2.6195802436719884,0,0,2.7,4.0999999999999996]
[13,{"$f":"valueE(B14,'Utility Functions'!$B$3,'Utility Functions'!$B$4,'Utility Functions'!$B$5,'Utility Functions'!$B$6)","v":0},{"$f":"valueE(C14,'Utility Functions'!$D$3,'Utility Functions'!$D$4,'Utility Functions'!$D$5,'Utility Functions'!$D$6)","v":0},{"$f":"valuePL(D14,'Utility Functions'!$E$3:$E$5,'Utility Functions'!$F$3:$F$5)","v":0},{"$f":"valuePL(E14,'Utility Functions'!$G$3:$G$5,'Utility Functions'!$H$3:$H$5)","v":0},{"$f":"valuePL(F14,'Utility Functions'!$I$3:$I$4,'Utility Functions'!$J$3:$J$5)","v":0},{"$f":"valueE(G14,'Utility Functions'!$L$3,'Utility Functions'!$L$4,'Utility Functions'!$L$5,'Utility Functions'!$L$6)","v":0},{"$f":"valueE(H14,'Utility Functions'!$N$3,'Utility Functions'!$N$4,'Utility Functions'!$N$5,'Utility Functions'!$N$6)","v":1.1385199240986717E-2},{"$f":"valuePL(I14,'Utility Functions'!$O$3:$O$6,'Utility Functions'!$P$3:$P$6)","v":0.3290909090909091},{"$f":"valuePL(J14,'Utility Functions'!$Q$3:$Q$6,'Utility Functions'!$R$3:$R$6)","v":0.04},{"$f":"valuePL(K14,'Utility Functions'!$S$3:$S$7,'Utility Functions'!$T$3:$T$7)","v":0.3290909090909091},{"$f":"valueE(L14,'Utility Functions'!$V$3,'Utility Functions'!$V$4,'Utility Functions'!$V$5,'Utility Functions'!$V$6)","v":1},{"$f":"valuePL(M14,'Utility Functions'!$W$3:$W$6,'Utility Functions'!$X$3:$X$6)","v":0.04},{"$f":"valueE(N14,'Utility Functions'!$Z$3,'Utility Functions'!$Z$4,'Utility Functions'!$Z$5,'Utility Functions'!$Z$6)","v":0.875},{"$f":"valuePL(O14,'Utility Functions'!$AA$3:$AA$5,'Utility Functions'!$AB$3:$AB$5)","v":0.25},{"$f":"valuePL(P14,'Utility Functions'!$AC$3:$AC$7,'Utility Functions'!$AD$3:$AD$7)","v":0.25},{"$f":"valuePL(Q14,'Utility Functions'!$AE$3:$AE$6,'Utility Functions'!$AF$3:$AF$6)","v":0},{"$f":"valuePL(R14,'Utility Functions'!$AG$3:$AG$6,'Utility Functions'!$AH$3:$AH$6)","v":1},{"$f":"valuePL(S14,'Utility Functions'!$AI$3:$AI$6,'Utility Functions'!$AJ$3:$AJ$6)","v":1},{"$f":"valuePL(T14,'Utility Functions'!$AK$3:$AK$8,'Utility Functions'!$AL$3:$AL$8)","v":0},{"$f":"valuePL(U14,'Utility Functions'!$AM$3:$AM$5,'Utility Functions'!$AN$3:$AN$5)","v":0},{"$f":"valuePL(V14,'Utility Functions'!$AO$3:$AO$5,'Utility Functions'!$AP$3:$AP$5)","v":0.5},{"$f":"valuePL(W14,'Utility Functions'!$AQ$3:$AQ$6,'Utility Functions'!$AR$3:$AR$6)","v":0},{"$f":"valuePL(X14,'Utility Functions'!$AS$3:$AS$6,'Utility Functions'!$AT$3:$AT$6)","v":0.2},{"$f":"valuePL(Y14,'Utility Functions'!$AU$3:$AU$6,'Utility Functions'!$AV$3:$AV$6)","v":0},{"$f":"valuePL(Z14,'Utility Functions'!$AW$3:$AW$5,'Utility Functions'!$AX$3:$AX$5)","v":1},{"$f":"valuePL(AA14,'Utility Functions'!$AY$3:$AY$6,'Utility Functions'!$AZ$3:$AZ$6)","v":0.2},{"$f":"valuePL(AB14,'Utility Functions'!$BA$3:$BA$5,'Utility Functions'!$BB$3:$BB$5)","v":0.25},{"$f":"valuePL(AC14,'Utility Functions'!$BC$3:$BC$5,'Utility Functions'!$BD$3:$BD$5)","v":0.25},7.5245670174228056,null,7.5245670174228056,0,1.7495670174228048,1.125,2.25,2.4]
[14,{"$f":"valueE(B15,'Utility Functions'!$B$3,'Utility Functions'!$B$4,'Utility Functions'!$B$5,'Utility Functions'!$B$6)","v":0.69880684688087746},{"$f":"valueE(C15,'Utility Functions'!$D$3,'Utility Functions'!$D$4,'Utility Functions'!$D$5,'Utility Functions'!$D$6)","v":0.78989979019422951},{"$f":"valuePL(D15,'Utility Functions'!$E$3:$E$5,'Utility Functions'!$F$3:$F$5)","v":0.5},{"$f":"valuePL(E15,'Utility Functions'!$G$3:$G$5,'Utility Functions'!$H$3:$H$5)","v":0.5},{"$f":"valuePL(F15,'Utility Functions'!$I$3:$I$4,'Utility Functions'!$J$3:$J$5)","v":0},{"$f":"valueE(G15,'Utility Functions'!$L$3,'Utility Functions'!$L$4,'Utility Functions'!$L$5,'Utility Functions'!$L$6)","v":0},{"$f":"valueE(H15,'Utility Functions'!$N$3,'Utility Functions'!$N$4,'Utility Functions'!$N$5,'Utility Functions'!$N$6)","v":0},{"$f":"valuePL(I15,'Utility Functions'!$O$3:$O$6,'Utility Functions'!$P$3:$P$6)","v":0},{"$f":"valuePL(J15,'Utility Functions'!$Q$3:$Q$6,'Utility Functions'!$R$3:$R$6)","v":0},{"$f":"valuePL(K15,'Utility Functions'!$S$3:$S$7,'Utility Functions'!$T$3:$T$7)","v":0},{"$f":"valueE(L15,'Utility Functions'!$V$3,'Utility Functions'!$V$4,'Utility Functions'!$V$5,'Utility Functions'!$V$6)","v":0},{"$f":"valuePL(M15,'Utility Functions'!$W$3:$W$6,'Utility Functions'!$X$3:$X$6)","v":0},{"$f":"valueE(N15,'Utility Functions'!$Z$3,'Utility Functions'!$Z$4,'Utility Functions'!$Z$5,'Utility Functions'!$Z$6)","v":0.75},{"$f":"valuePL(O15,'Utility Functions'!$AA$3:$AA$5,'Utility Functions'!$AB$3:$AB$5)","v":0.25},{"$f":"valuePL(P15,'Utility Functions'!$AC$3:$AC$7,'Utility Functions'!$AD$3:$AD$7)","v":0.25},{"$f":"valuePL(Q15,'Utility Functions'!$AE$3:$AE$6,'Utility Functions'!$AF$3:$AF$6)","v":0},{"$f":"valuePL(R15,'Utility Functions'!$AG$3:$AG$6,'Utility Functions'!$AH$3:$AH$6)","v":1},{"$f":"valuePL(S15,'Utility Functions'!$AI$3:$AI$6,'Utility Functions'!$AJ$3:$AJ$6)","v":1},{"$f":"valuePL(T15,'Utility Functions'!$AK$3:$AK$8,'Utility Functions'!$AL$3:$AL$8)","v":0},{"$f":"valuePL(U15,'Utility Functions'!$AM$3:$AM$5,'Utility Functions'!$AN$3:$AN$5)","v":0},{"$f":"valuePL(V15,'Utility Functions'!$AO$3:$AO$5,'Utility Functions'!$AP$3:$AP$5)","v":0.5},{"$f":"valuePL(W15,'Utility Functions'!$AQ$3:$AQ$6,'Utility Functions'!$AR$3:$AR$6)","v":0.2},{"$f":"valuePL(X15,'Utility Functions'!$AS$3:$AS$6,'Utility Functions'!$AT$3:$AT$6)","v":1},{"$f":"valuePL(Y15,'Utility Functions'!$AU$3:$AU$6,'Utility Functions'!$AV$3:$AV$6)","v":1},{"$f":"valuePL(Z15,'Utility Functions'!$AW$3:$AW$5,'Utility Functions'!$AX$3:$AX$5)","v":0.5},{"$f":"valuePL(AA15,'Utility Functions'!$AY$3:$AY$6,'Utility Functions'!$AZ$3:$AZ$6)","v":0.89999999999999991},{"$f":"valuePL(AB15,'Utility Functions'!$BA$3:$BA$5,'Utility Functions'!$BB$3:$BB$5)","v":0.25},{"$f":"valuePL(AC15,'Utility Functions'!$BC$3:$BC$5,'Utility Functions'!$BD$3:$BD$5)","v":0.25},10.338706637075108,null,10.338706637075106,2.488706637075107,0,1,2.25,4.5999999999999996]
[15,{"$f":"valueE(B16,'Utility Functions'!$B$3,'Utility Functions'!$B$4,'Utility Functions'!$B$5,'Utility Functions'!$B$6)","v":0.98994966417177144},{"$f":"valueE(C16,'Utility Functions'!$D$3,'Utility Functions'!$D$4,'Utility Functions'!$D$5,'Utility Functions'!$D$6)","v":0.71352759724260828},{"$f":"valuePL(D16,'Utility Functions'!$E$3:$E$5,'Utility Functions'!$F$3:$F$5)","v":1},{"$f":"valuePL(E16,'Utility Functions'!$G$3:$G$5,'Utility Functions'!$H$3:$H$5)","v":0.5},{"$f":"valuePL(F16,'Utility Functions'!$I$3:$I$4,'Utility Functions'!$J$3:$J$5)","v":1},{"$f":"valueE(G16,'Utility Functions'!$L$3,'Utility Functions'!$L$4,'Utility Functions'!$L$5,'Utility Functions'!$L$6)","v":0},{"$f":"valueE(H16,'Utility Functions'!$N$3,'Utility Functions'!$N$4,'Utility Functions'!$N$5,'Utility Functions'!$N$6)","v":0},{"$f":"valuePL(I16,'Utility Functions'!$O$3:$O$6,'Utility Functions'!$P$3:$P$6)","v":9.2000000000000012E-2},{"$f":"valuePL(J16,'Utility Functions'!$Q$3:$Q$6,'Utility Functions'!$R$3:$R$6)","v":6.0000000000000012E-2},{"$f":"valuePL(K16,'Utility Functions'!$S$3:$S$7,'Utility Functions'!$T$3:$T$7)","v":6.0000000000000012E-2},{"$f":"valueE(L16,'Utility Functions'!$V$3,'Utility Functions'!$V$4,'Utility Functions'!$V$5,'Utility Functions'!$V$6)","v":1},{"$f":"valuePL(M16,'Utility Functions'!$W$3:$W$6,'Utility Functions'!$X$3:$X$6)","v":6.0000000000000012E-2},{"$f":"valueE(N16,'Utility Functions'!$Z$3,'Utility Functions'!$Z$4,'Utility Functions'!$Z$5,'Utility Functions'!$Z$6)","v":0.125},{"$f":"valuePL(O16,'Utility Functions'!$AA$3:$AA$5,'Utility Functions'!$AB$3:$AB$5)","v":1},{"$f":"valuePL(P16,'Utility Functions'!$AC$3:$AC$7,'Utility Functions'!$AD$3:$AD$7)","v":0.5},{"$f":"valuePL(Q16,'Utility Functions'!$AE$3:$AE$6,'Utility Functions'!$AF$3:$AF$6)","v":0},{"$f":"valuePL(R16,'Utility Functions'!$AG$3:$AG$6,'Utility Functions'!$AH$3:$AH$6)","v":0.8},{"$f":"valuePL(S16,'Utility Functions'!$AI$3:$AI$6,'Utility Functions'!$AJ$3:$AJ$6)","v":1},{"$f":"valuePL(T16,'Utility Functions'!$AK$3:$AK$8,'Utility Functions'!$AL$3:$AL$8)","v":0.6},{"$f":"valuePL(U16,'Utility Functions'!$AM$3:$AM$5,'Utility Functions'!$AN$3:$AN$5)","v":1},{"$f":"valuePL(V16,'Utility Functions'!$AO$3:$AO$5,'Utility Functions'!$AP$3:$AP$5)","v":0},{"$f":"valuePL(W16,'Utility Functions'!$AQ$3:$AQ$6,'Utility Functions'!$AR$3:$AR$6)","v":1},{"$f":"valuePL(X16,'Utility Functions'!$AS$3:$AS$6,'Utility Functions'!$AT$3:$AT$6)","v":0.2},{"$f":"valuePL(Y16,'Utility Functions'!$AU$3:$AU$6,'Utility Functions'!$AV$3:$AV$6)","v":0.2},{"$f":"valuePL(Z16,'Utility Functions'!$AW$3:$AW$5,'Utility Functions'!$AX$3:$AX$5)","v":1},{"$f":"valuePL(AA16,'Utility Functions'!$AY$3:$AY$6,'Utility Functions'!$AZ$3:$AZ$6)","v":1},{"$f":"valuePL(AB16,'Utility Functions'!$BA$3:$BA$5,'Utility Functions'!$BB$3:$BB$5)","v":1},{"$f":"valuePL(AC16,'Utility Functions'!$BC$3:$BC$5,'Utility Functions'!$BD$3:$BD$5)","v":0.25},15.150477261414375,null,15.15047726141438,4.2034772614143794,1.272,1.125,3.9,4.6500000000000004]
[16,{"$f":"valueE(B17,'Utility Functions'!$B$3,'Utility Functions'!$B$4,'Utility Functions'!$B$5,'Utility Functions'!$B$6)","v":0},{"$f":"valueE(C17,'Utility Functions'!$D$3,'Utility Functions'!$D$4,'Utility Functions'!$D$5,'Utility Functions'!$D$6)","v":0},{"$f":"valuePL(D17,'Utility Functions'!$E$3:$E$5,'Utility Functions'!$F$3:$F$5)","v":0},{"$f":"valuePL(E17,'Utility Functions'!$G$3:$G$5,'Utility Functions'!$H$3:$H$5)","v":0},{"$f":"valuePL(F17,'Utility Functions'!$I$3:$I$4,'Utility Functions'!$J$3:$J$5)","v":0},{"$f":"valueE(G17,'Utility Functions'!$L$3,'Utility Functions'!$L$4,'Utility Functions'!$L$5,'Utility Functions'!$L$6)","v":0},{"$f":"valueE(H17,'Utility Functions'!$N$3,'Utility Functions'!$N$4,'Utility Functions'!$N$5,'Utility Functions'!$N$6)","v":0},{"$f":"valuePL(I17,'Utility Functions'!$O$3:$O$6,'Utility Functions'!$P$3:$P$6)","v":1},{"$f":"valuePL(J17,'Utility Functions'!$Q$3:$Q$6,'Utility Functions'!$R$3:$R$6)","v":0.91818181818181821},{"$f":"valuePL(K17,'Utility Functions'!$S$3:$S$7,'Utility Functions'!$T$3:$T$7)","v":1},{"$f":"valueE(L17,'Utility Functions'!$V$3,'Utility Functions'!$V$4,'Utility Functions'!$V$5,'Utility Functions'!$V$6)","v":0.83333333333333337},{"$f":"valuePL(M17,'Utility Functions'!$W$3:$W$6,'Utility Functions'!$X$3:$X$6)","v":0.91818181818181821},{"$f":"valueE(N17,'Utility Functions'!$Z$3,'Utility Functions'!$Z$4,'Utility Functions'!$Z$5,'Utility Functions'!$Z$6)","v":0},{"$f":"valuePL(O17,'Utility Functions'!$AA$3:$AA$5,'Utility Functions'!$AB$3:$AB$5)","v":0},{"$f":"valuePL(P17,'Utility Functions'!$AC$3:$AC$7,'Utility Functions'!$AD$3:$AD$7)","v":0.75},{"$f":"valuePL(Q17,'Utility Functions'!$AE$3:$AE$6,'Utility Functions'!$AF$3:$AF$6)","v":0},{"$f":"valuePL(R17,'Utility Functions'!$AG$3:$AG$6,'Utility Functions'!$AH$3:$AH$6)","v":1},{"$f":"valuePL(S17,'Utility Functions'!$AI$3:$AI$6,'Utility Functions'!$AJ$3:$AJ$6)","v":1},{"$f":"valuePL(T17,'Utility Functions'!$AK$3:$AK$8,'Utility Functions'!$AL$3:$AL$8)","v":1},{"$f":"valuePL(U17,'Utility Functions'!$AM$3:$AM$5,'Utility Functions'!$AN$3:$AN$5)","v":0},{"$f":"valuePL(V17,'Utility Functions'!$AO$3:$AO$5,'Utility Functions'!$AP$3:$AP$5)","v":1},{"$f":"valuePL(W17,'Utility Functions'!$AQ$3:$AQ$6,'Utility Functions'!$AR$3:$AR$6)","v":0.75},{"$f":"valuePL(X17,'Utility Functions'!$AS$3:$AS$6,'Utility Functions'!$AT$3:$AT$6)","v":0.75},{"$f":"valuePL(Y17,'Utility Functions'!$AU$3:$AU$6,'Utility Functions'!$AV$3:$AV$6)","v":0.2},{"$f":"valuePL(Z17,'Utility Functions'!$AW$3:$AW$5,'Utility Functions'!$AX$3:$AX$5)","v":1},{"$f":"valuePL(AA17,'Utility Functions'!$AY$3:$AY$6,'Utility Functions'!$AZ$3:$AZ$6)","v":1},{"$f":"valuePL(AB17,'Utility Functions'!$BA$3:$BA$5,'Utility Functions'!$BB$3:$BB$5)","v":1},{"$f":"valuePL(AC17,'Utility Functions'!$BC$3:$BC$5,'Utility Functions'!$BD$3:$BD$5)","v":1},15.119696969696969,null,15.119696969696971,0,4.6696969696969699,0,3.75,6.7]
[17,{"$f":"valueE(B18,'Utility Functions'!$B$3,'Utility Functions'!$B$4,'Utility Functions'!$B$5,'Utility Functions'!$B$6)","v":0.32968045347775865},{"$f":"valueE(C18,'Utility Functions'!$D$3,'Utility Functions'!$D$4,'Utility Functions'!$D$5,'Utility Functions'!$D$6)","v":0.78989979019422951},{"$f":"valuePL(D18,'Utility Functions'!$E$3:$E$5,'Utility Functions'!$F$3:$F$5)","v":1},{"$f":"valuePL(E18,'Utility Functions'!$G$3:$G$5,'Utility Functions'!$H$3:$H$5)","v":0.5},{"$f":"valuePL(F18,'Utility Functions'!$I$3:$I$4,'Utility Functions'!$J$3:$J$5)","v":1},{"$f":"valueE(G18,'Utility Functions'!$L$3,'Utility Functions'!$L$4,'Utility Functions'!$L$5,'Utility Functions'!$L$6)","v":0.31182795698924731},{"$f":"valueE(H18,'Utility Functions'!$N$3,'Utility Functions'!$N$4,'Utility Functions'!$N$5,'Utility Functions'!$N$6)","v":0.27514231499051234},{"$f":"valuePL(I18,'Utility Functions'!$O$3:$O$6,'Utility Functions'!$P$3:$P$6)","v":0},{"$f":"valuePL(J18,'Utility Functions'!$Q$3:$Q$6,'Utility Functions'!$R$3:$R$6)","v":0},{"$f":"valuePL(K18,'Utility Functions'!$S$3:$S$7,'Utility Functions'!$T$3:$T$7)","v":0},{"$f":"valueE(L18,'Utility Functions'!$V$3,'Utility Functions'!$V$4,'Utility Functions'!$V$5,'Utility Functions'!$V$6)","v":1},{"$f":"valuePL(M18,'Utility Functions'!$W$3:$W$6,'Utility Functions'!$X$3:$X$6)","v":6.0000000000000012E-2},{"$f":"valueE(N18,'Utility Functions'!$Z$3,'Utility Functions'!$Z$4,'Utility Functions'!$Z$5,'Utility Functions'!$Z$6)","v":0},{"$f":"valuePL(O18,'Utility Functions'!$AA$3:$AA$5,'Utility Functions'!$AB$3:$AB$5)","v":0},{"$f":"valuePL(P18,'Utility Functions'!$AC$3:$AC$7,'Utility Functions'!$AD$3:$AD$7)","v":0},{"$f":"valuePL(Q18,'Utility Functions'!$AE$3:$AE$6,'Utility Functions'!$AF$3:$AF$6)","v":0},{"$f":"valuePL(R18,'Utility Functions'!$AG$3:$AG$6,'Utility Functions'!$AH$3:$AH$6)","v":1},{"$f":"valuePL(S18,'Utility Functions'!$AI$3:$AI$6,'Utility Functions'!$AJ$3:$AJ$6)","v":0.66},{"$f":"valuePL(T18,'Utility Functions'!$AK$3:$AK$8,'Utility Functions'!$AL$3:$AL$8)","v":0},{"$f":"valuePL(U18,'Utility Functions'!$AM$3:$AM$5,'Utility Functions'!$AN$3:$AN$5)","v":0},{"$f":"valuePL(V18,'Utility Functions'!$AO$3:$AO$5,'Utility Functions'!$AP$3:$AP$5)","v":1},{"$f":"valuePL(W18,'Utility Functions'!$AQ$3:$AQ$6,'Utility Functions'!$AR$3:$AR$6)","v":1},{"$f":"valuePL(X18,'Utility Functions'!$AS$3:$AS$6,'Utility Functions'!$AT$3:$AT$6)","v":0.2},{"$f":"valuePL(Y18,'Utility Functions'!$AU$3:$AU$6,'Utility Functions'!$AV$3:$AV$6)","v":0},{"$f":"valuePL(Z18,'Utility Functions'!$AW$3:$AW$5,'Utility Functions'!$AX$3:$AX$5)","v":0.5},{"$f":"valuePL(AA18,'Utility Functions'!$AY$3:$AY$6,'Utility Functions'!$AZ$3:$AZ$6)","v":0},{"$f":"valuePL(AB18,'Utility Functions'!$BA$3:$BA$5,'Utility Functions'!$BB$3:$BB$5)","v":1},{"$f":"valuePL(AC18,'Utility Functions'!$BC$3:$BC$5,'Utility Functions'!$BD$3:$BD$5)","v":0.25},10.876550515651747,null,10.876550515651747,3.6195802436719884,1.6469702719797596,0,1.6600000000000001,3.95]
[18,{"$f":"valueE(B19,'Utility Functions'!$B$3,'Utility Functions'!$B$4,'Utility Functions'!$B$5,'Utility Functions'!$B$6)","v":0},{"$f":"valueE(C19,'Utility Functions'!$D$3,'Utility Functions'!$D$4,'Utility Functions'!$D$5,'Utility Functions'!$D$6)","v":0},{"$f":"valuePL(D19,'Utility Functions'!$E$3:$E$5,'Utility Functions'!$F$3:$F$5)","v":0},{"$f":"valuePL(E19,'Utility Functions'!$G$3:$G$5,'Utility Functions'!$H$3:$H$5)","v":0},{"$f":"valuePL(F19,'Utility Functions'!$I$3:$I$4,'Utility Functions'!$J$3:$J$5)","v":0},{"$f":"valueE(G19,'Utility Functions'!$L$3,'Utility Functions'!$L$4,'Utility Functions'!$L$5,'Utility Functions'!$L$6)","v":0},{"$f":"valueE(H19,'Utility Functions'!$N$3,'Utility Functions'!$N$4,'Utility Functions'!$N$5,'Utility Functions'!$N$6)","v":2.8462998102466792E-2},{"$f":"valuePL(I19,'Utility Functions'!$O$3:$O$6,'Utility Functions'!$P$3:$P$6)","v":0},{"$f":"valuePL(J19,'Utility Functions'!$Q$3:$Q$6,'Utility Functions'!$R$3:$R$6)","v":0},{"$f":"valuePL(K19,'Utility Functions'!$S$3:$S$7,'Utility Functions'!$T$3:$T$7)","v":0},{"$f":"valueE(L19,'Utility Functions'!$V$3,'Utility Functions'!$V$4,'Utility Functions'!$V$5,'Utility Functions'!$V$6)","v":0},{"$f":"valuePL(M19,'Utility Functions'!$W$3:$W$6,'Utility Functions'!$X$3:$X$6)","v":0},{"$f":"valueE(N19,'Utility Functions'!$Z$3,'Utility Functions'!$Z$4,'Utility Functions'!$Z$5,'Utility Functions'!$Z$6)","v":1},{"$f":"valuePL(O19,'Utility Functions'!$AA$3:$AA$5,'Utility Functions'!$AB$3:$AB$5)","v":0.25},{"$f":"valuePL(P19,'Utility Functions'!$AC$3:$AC$7,'Utility Functions'!$AD$3:$AD$7)","v":0.25},{"$f":"valuePL(Q19,'Utility Functions'!$AE$3:$AE$6,'Utility Functions'!$AF$3:$AF$6)","v":1},{"$f":"valuePL(R19,'Utility Functions'!$AG$3:$AG$6,'Utility Functions'!$AH$3:$AH$6)","v":1},{"$f":"valuePL(S19,'Utility Functions'!$AI$3:$AI$6,'Utility Functions'!$AJ$3:$AJ$6)","v":1},{"$f":"valuePL(T19,'Utility Functions'!$AK$3:$AK$8,'Utility Functions'!$AL$3:$AL$8)","v":1},{"$f":"valuePL(U19,'Utility Functions'!$AM$3:$AM$5,'Utility Functions'!$AN$3:$AN$5)","v":0.25},{"$f":"valuePL(V19,'Utility Functions'!$AO$3:$AO$5,'Utility Functions'!$AP$3:$AP$5)","v":1},{"$f":"valuePL(W19,'Utility Functions'!$AQ$3:$AQ$6,'Utility Functions'!$AR$3:$AR$6)","v":0.75},{"$f":"valuePL(X19,'Utility Functions'!$AS$3:$AS$6,'Utility Functions'!$AT$3:$AT$6)","v":0.2},{"$f":"valuePL(Y19,'Utility Functions'!$AU$3:$AU$6,'Utility Functions'!$AV$3:$AV$6)","v":0.8},{"$f":"valuePL(Z19,'Utility Functions'!$AW$3:$AW$5,'Utility Functions'!$AX$3:$AX$5)","v":0.5},{"$f":"valuePL(AA19,'Utility Functions'!$AY$3:$AY$6,'Utility Functions'!$AZ$3:$AZ$6)","v":0.89999999999999991},{"$f":"valuePL(AB19,'Utility Functions'!$BA$3:$BA$5,'Utility Functions'!$BB$3:$BB$5)","v":0.25},{"$f":"valuePL(AC19,'Utility Functions'!$BC$3:$BC$5,'Utility Functions'!$BD$3:$BD$5)","v":0},10.178462998102468,null,10.178462998102468,0,2.8462998102466792E-2,1.25,4.5,4.4000000000000004]
[19,{"$f":"valueE(B20,'Utility Functions'!$B$3,'Utility Functions'!$B$4,'Utility Functions'!$B$5,'Utility Functions'!$B$6)","v":0.79810469124896843},{"$f":"valueE(C20,'Utility Functions'!$D$3,'Utility Functions'!$D$4,'Utility Functions'!$D$5,'Utility Functions'!$D$6)","v":0.26839655623815994},{"$f":"valuePL(D20,'Utility Functions'!$E$3:$E$5,'Utility Functions'!$F$3:$F$5)","v":0.5},{"$f":"valuePL(E20,'Utility Functions'!$G$3:$G$5,'Utility Functions'!$H$3:$H$5)","v":1},{"$f":"valuePL(F20,'Utility Functions'!$I$3:$I$4,'Utility Functions'!$J$3:$J$5)","v":0},{"$f":"valueE(G20,'Utility Functions'!$L$3,'Utility Functions'!$L$4,'Utility Functions'!$L$5,'Utility Functions'!$L$6)","v":0},{"$f":"valueE(H20,'Utility Functions'!$N$3,'Utility Functions'!$N$4,'Utility Functions'!$N$5,'Utility Functions'!$N$6)","v":0},{"$f":"valuePL(I20,'Utility Functions'!$O$3:$O$6,'Utility Functions'!$P$3:$P$6)","v":0},{"$f":"valuePL(J20,'Utility Functions'!$Q$3:$Q$6,'Utility Functions'!$R$3:$R$6)","v":0},{"$f":"valuePL(K20,'Utility Functions'!$S$3:$S$7,'Utility Functions'!$T$3:$T$7)","v":0},{"$f":"valueE(L20,'Utility Functions'!$V$3,'Utility Functions'!$V$4,'Utility Functions'!$V$5,'Utility Functions'!$V$6)","v":0},{"$f":"valuePL(M20,'Utility Functions'!$W$3:$W$6,'Utility Functions'!$X$3:$X$6)","v":0},{"$f":"valueE(N20,'Utility Functions'!$Z$3,'Utility Functions'!$Z$4,'Utility Functions'!$Z$5,'Utility Functions'!$Z$6)","v":1},{"$f":"valuePL(O20,'Utility Functions'!$AA$3:$AA$5,'Utility Functions'!$AB$3:$AB$5)","v":1},{"$f":"valuePL(P20,'Utility Functions'!$AC$3:$AC$7,'Utility Functions'!$AD$3:$AD$7)","v":0},{"$f":"valuePL(Q20,'Utility Functions'!$AE$3:$AE$6,'Utility Functions'!$AF$3:$AF$6)","v":0},{"$f":"valuePL(R20,'Utility Functions'!$AG$3:$AG$6,'Utility Functions'!$AH$3:$AH$6)","v":0.8},{"$f":"valuePL(S20,'Utility Functions'!$AI$3:$AI$6,'Utility Functions'!$AJ$3:$AJ$6)","v":1},{"$f":"valuePL(T20,'Utility Functions'!$AK$3:$AK$8,'Utility Functions'!$AL$3:$AL$8)","v":0},{"$f":"valuePL(U20,'Utility Functions'!$AM$3:$AM$5,'Utility Functions'!$AN$3:$AN$5)","v":0},{"$f":"valuePL(V20,'Utility Functions'!$AO$3:$AO$5,'Utility Functions'!$AP$3:$AP$5)","v":0.5},{"$f":"valuePL(W20,'Utility Functions'!$AQ$3:$AQ$6,'Utility Functions'!$AR$3:$AR$6)","v":0.2},{"$f":"valuePL(X20,'Utility Functions'!$AS$3:$AS$6,'Utility Functions'!$AT$3:$AT$6)","v":1},{"$f":"valuePL(Y20,'Utility Functions'!$AU$3:$AU$6,'Utility Functions'!$AV$3:$AV$6)","v":0.8},{"$f":"valuePL(Z20,'Utility Functions'!$AW$3:$AW$5,'Utility Functions'!$AX$3:$AX$5)","v":0},{"$f":"valuePL(AA20,'Utility Functions'!$AY$3:$AY$6,'Utility Functions'!$AZ$3:$AZ$6)","v":0.2},{"$f":"valuePL(AB20,'Utility Functions'!$BA$3:$BA$5,'Utility Functions'!$BB$3:$BB$5)","v":0},{"$f":"valuePL(AC20,'Utility Functions'!$BC$3:$BC$5,'Utility Functions'!$BD$3:$BD$5)","v":0.25},9.3165012474871283,null,9.3165012474871283,2.5665012474871283,0,2,1.8,2.95]
[20,{"$f":"valueE(B21,'Utility Functions'!$B$3,'Utility Functions'!$B$4,'Utility Functions'!$B$5,'Utility Functions'!$B$6)","v":0.83470237647280454},{"$f":"valueE(C21,'Utility Functions'!$D$3,'Utility Functions'!$D$4,'Utility Functions'!$D$5,'Utility Functions'!$D$6)","v":0.78989979019422951},{"$f":"valuePL(D21,'Utility Functions'!$E$3:$E$5,'Utility Functions'!$F$3:$F$5)","v":0.5},{"$f":"valuePL(E21,'Utility Functions'!$G$3:$G$5,'Utility Functions'!$H$3:$H$5)","v":1},{"$f":"valuePL(F21,'Utility Functions'!$I$3:$I$4,'Utility Functions'!$J$3:$J$5)","v":0},{"$f":"valueE(G21,'Utility Functions'!$L$3,'Utility Functions'!$L$4,'Utility Functions'!$L$5,'Utility Functions'!$L$6)","v":0},{"$f":"valueE(H21,'Utility Functions'!$N$3,'Utility Functions'!$N$4,'Utility Functions'!$N$5,'Utility Functions'!$N$6)","v":0.41271347248576851},{"$f":"valuePL(I21,'Utility Functions'!$O$3:$O$6,'Utility Functions'!$P$3:$P$6)","v":0.93454545454545446},{"$f":"valuePL(J21,'Utility Functions'!$Q$3:$Q$6,'Utility Functions'!$R$3:$R$6)","v":0.50909090909090915},{"$f":"valuePL(K21,'Utility Functions'!$S$3:$S$7,'Utility Functions'!$T$3:$T$7)","v":0.93454545454545446},{"$f":"valueE(L21,'Utility Functions'!$V$3,'Utility Functions'!$V$4,'Utility Functions'!$V$5,'Utility Functions'!$V$6)","v":0.66666666666666663},{"$f":"valuePL(M21,'Utility Functions'!$W$3:$W$6,'Utility Functions'!$X$3:$X$6)","v":0.50909090909090915},{"$f":"valueE(N21,'Utility Functions'!$Z$3,'Utility Functions'!$Z$4,'Utility Functions'!$Z$5,'Utility Functions'!$Z$6)","v":1},{"$f":"valuePL(O21,'Utility Functions'!$AA$3:$AA$5,'Utility Functions'!$AB$3:$AB$5)","v":1},{"$f":"valuePL(P21,'Utility Functions'!$AC$3:$AC$7,'Utility Functions'!$AD$3:$AD$7)","v":0.25},{"$f":"valuePL(Q21,'Utility Functions'!$AE$3:$AE$6,'Utility Functions'!$AF$3:$AF$6)","v":0},{"$f":"valuePL(R21,'Utility Functions'!$AG$3:$AG$6,'Utility Functions'!$AH$3:$AH$6)","v":1},{"$f":"valuePL(S21,'Utility Functions'!$AI$3:$AI$6,'Utility Functions'!$AJ$3:$AJ$6)","v":1},{"$f":"valuePL(T21,'Utility Functions'!$AK$3:$AK$8,'Utility Functions'!$AL$3:$AL$8)","v":0.6},{"$f":"valuePL(U21,'Utility Functions'!$AM$3:$AM$5,'Utility Functions'!$AN$3:$AN$5)","v":1},{"$f":"valuePL(V21,'Utility Functions'!$AO$3:$AO$5,'Utility Functions'!$AP$3:$AP$5)","v":0.5},{"$f":"valuePL(W21,'Utility Functions'!$AQ$3:$AQ$6,'Utility Functions'!$AR$3:$AR$6)","v":0},{"$f":"valuePL(X21,'Utility Functions'!$AS$3:$AS$6,'Utility Functions'!$AT$3:$AT$6)","v":0},{"$f":"valuePL(Y21,'Utility Functions'!$AU$3:$AU$6,'Utility Functions'!$AV$3:$AV$6)","v":0.2},{"$f":"valuePL(Z21,'Utility Functions'!$AW$3:$AW$5,'Utility Functions'!$AX$3:$AX$5)","v":1},{"$f":"valuePL(AA21,'Utility Functions'!$AY$3:$AY$6,'Utility Functions'!$AZ$3:$AZ$6)","v":0.2},{"$f":"valuePL(AB21,'Utility Functions'!$BA$3:$BA$5,'Utility Functions'!$BB$3:$BB$5)","v":0},{"$f":"valuePL(AC21,'Utility Functions'!$BC$3:$BC$5,'Utility Functions'!$BD$3:$BD$5)","v":0.25},15.091255033092194,null,15.091255033092196,3.1246021666670343,3.9666528664251626,2,3.85,2.15]
[21,{"$f":"valueE(B22,'Utility Functions'!$B$3,'Utility Functions'!$B$4,'Utility Functions'!$B$5,'Utility Functions'!$B$6)","v":0},{"$f":"valueE(C22,'Utility Functions'!$D$3,'Utility Functions'!$D$4,'Utility Functions'!$D$5,'Utility Functions'!$D$6)","v":0},{"$f":"valuePL(D22,'Utility Functions'!$E$3:$E$5,'Utility Functions'!$F$3:$F$5)","v":0},{"$f":"valuePL(E22,'Utility Functions'!$G$3:$G$5,'Utility Functions'!$H$3:$H$5)","v":0},{"$f":"valuePL(F22,'Utility Functions'!$I$3:$I$4,'Utility Functions'!$J$3:$J$5)","v":0},{"$f":"valueE(G22,'Utility Functions'!$L$3,'Utility Functions'!$L$4,'Utility Functions'!$L$5,'Utility Functions'!$L$6)","v":0},{"$f":"valueE(H22,'Utility Functions'!$N$3,'Utility Functions'!$N$4,'Utility Functions'!$N$5,'Utility Functions'!$N$6)","v":0},{"$f":"valuePL(I22,'Utility Functions'!$O$3:$O$6,'Utility Functions'!$P$3:$P$6)","v":0},{"$f":"valuePL(J22,'Utility Functions'!$Q$3:$Q$6,'Utility Functions'!$R$3:$R$6)","v":0},{"$f":"valuePL(K22,'Utility Functions'!$S$3:$S$7,'Utility Functions'!$T$3:$T$7)","v":0},{"$f":"valueE(L22,'Utility Functions'!$V$3,'Utility Functions'!$V$4,'Utility Functions'!$V$5,'Utility Functions'!$V$6)","v":0},{"$f":"valuePL(M22,'Utility Functions'!$W$3:$W$6,'Utility Functions'!$X$3:$X$6)","v":0},{"$f":"valueE(N22,'Utility Functions'!$Z$3,'Utility Functions'!$Z$4,'Utility Functions'!$Z$5,'Utility Functions'!$Z$6)","v":1},{"$f":"valuePL(O22,'Utility Functions'!$AA$3:$AA$5,'Utility Functions'!$AB$3:$AB$5)","v":1},{"$f":"valuePL(P22,'Utility Functions'!$AC$3:$AC$7,'Utility Functions'!$AD$3:$AD$7)","v":0},{"$f":"valuePL(Q22,'Utility Functions'!$AE$3:$AE$6,'Utility Functions'!$AF$3:$AF$6)","v":0.1},{"$f":"valuePL(R22,'Utility Functions'!$AG$3:$AG$6,'Utility Functions'!$AH$3:$AH$6)","v":1},{"$f":"valuePL(S22,'Utility Functions'!$AI$3:$AI$6,'Utility Functions'!$AJ$3:$AJ$6)","v":1},{"$f":"valuePL(T22,'Utility Functions'!$AK$3:$AK$8,'Utility Functions'!$AL$3:$AL$8)","v":1},{"$f":"valuePL(U22,'Utility Functions'!$AM$3:$AM$5,'Utility Functions'!$AN$3:$AN$5)","v":0.25},{"$f":"valuePL(V22,'Utility Functions'!$AO$3:$AO$5,'Utility Functions'!$AP$3:$AP$5)","v":0},{"$f":"valuePL(W22,'Utility Functions'!$AQ$3:$AQ$6,'Utility Functions'!$AR$3:$AR$6)","v":0.75},{"$f":"valuePL(X22,'Utility Functions'!$AS$3:$AS$6,'Utility Functions'!$AT$3:$AT$6)","v":1},{"$f":"valuePL(Y22,'Utility Functions'!$AU$3:$AU$6,'Utility Functions'!$AV$3:$AV$6)","v":0.2},{"$f":"valuePL(Z22,'Utility Functions'!$AW$3:$AW$5,'Utility Functions'!$AX$3:$AX$5)","v":0},{"$f":"valuePL(AA22,'Utility Functions'!$AY$3:$AY$6,'Utility Functions'!$AZ$3:$AZ$6)","v":1},{"$f":"valuePL(AB22,'Utility Functions'!$BA$3:$BA$5,'Utility Functions'!$BB$3:$BB$5)","v":0.25},{"$f":"valuePL(AC22,'Utility Functions'!$BC$3:$BC$5,'Utility Functions'!$BD$3:$BD$5)","v":1},9.5500000000000007,null,9.5500000000000007,0,0,2,3.35,4.2]
[22,{"$f":"valueE(B23,'Utility Functions'!$B$3,'Utility Functions'!$B$4,'Utility Functions'!$B$5,'Utility Functions'!$B$6)","v":0},{"$f":"valueE(C23,'Utility Functions'!$D$3,'Utility Functions'!$D$4,'Utility Functions'!$D$5,'Utility Functions'!$D$6)","v":0},{"$f":"valuePL(D23,'Utility Functions'!$E$3:$E$5,'Utility Functions'!$F$3:$F$5)","v":0},{"$f":"valuePL(E23,'Utility Functions'!$G$3:$G$5,'Utility Functions'!$H$3:$H$5)","v":0},{"$f":"valuePL(F23,'Utility Functions'!$I$3:$I$4,'Utility Functions'!$J$3:$J$5)","v":0},{"$f":"valueE(G23,'Utility Functions'!$L$3,'Utility Functions'!$L$4,'Utility Functions'!$L$5,'Utility Functions'!$L$6)","v":8.6021505376344093E-2},{"$f":"valueE(H23,'Utility Functions'!$N$3,'Utility Functions'!$N$4,'Utility Functions'!$N$5,'Utility Functions'!$N$6)","v":6.0721062618595827E-2},{"$f":"valuePL(I23,'Utility Functions'!$O$3:$O$6,'Utility Functions'!$P$3:$P$6)","v":0},{"$f":"valuePL(J23,'Utility Functions'!$Q$3:$Q$6,'Utility Functions'!$R$3:$R$6)","v":0},{"$f":"valuePL(K23,'Utility Functions'!$S$3:$S$7,'Utility Functions'!$T$3:$T$7)","v":0},{"$f":"valueE(L23,'Utility Functions'!$V$3,'Utility Functions'!$V$4,'Utility Functions'!$V$5,'Utility Functions'!$V$6)","v":0},{"$f":"valuePL(M23,'Utility Functions'!$W$3:$W$6,'Utility Functions'!$X$3:$X$6)","v":0},{"$f":"valueE(N23,'Utility Functions'!$Z$3,'Utility Functions'!$Z$4,'Utility Functions'!$Z$5,'Utility Functions'!$Z$6)","v":0.125},{"$f":"valuePL(O23,'Utility Functions'!$AA$3:$AA$5,'Utility Functions'!$AB$3:$AB$5)","v":1},{"$f":"valuePL(P23,'Utility Functions'!$AC$3:$AC$7,'Utility Functions'!$AD$3:$AD$7)","v":1},{"$f":"valuePL(Q23,'Utility Functions'!$AE$3:$AE$6,'Utility Functions'!$AF$3:$AF$6)","v":0.5},{"$f":"valuePL(R23,'Utility Functions'!$AG$3:$AG$6,'Utility Functions'!$AH$3:$AH$6)","v":0.8},{"$f":"valuePL(S23,'Utility Functions'!$AI$3:$AI$6,'Utility Functions'!$AJ$3:$AJ$6)","v":1},{"$f":"valuePL(T23,'Utility Functions'!$AK$3:$AK$8,'Utility Functions'!$AL$3:$AL$8)","v":1},{"$f":"valuePL(U23,'Utility Functions'!$AM$3:$AM$5,'Utility Functions'!$AN$3:$AN$5)","v":0},{"$f":"valuePL(V23,'Utility Functions'!$AO$3:$AO$5,'Utility Functions'!$AP$3:$AP$5)","v":0.5},{"$f":"valuePL(W23,'Utility Functions'!$AQ$3:$AQ$6,'Utility Functions'!$AR$3:$AR$6)","v":0.75},{"$f":"valuePL(X23,'Utility Functions'!$AS$3:$AS$6,'Utility Functions'!$AT$3:$AT$6)","v":0.2},{"$f":"valuePL(Y23,'Utility Functions'!$AU$3:$AU$6,'Utility Functions'!$AV$3:$AV$6)","v":0},{"$f":"valuePL(Z23,'Utility Functions'!$AW$3:$AW$5,'Utility Functions'!$AX$3:$AX$5)","v":1},{"$f":"valuePL(AA23,'Utility Functions'!$AY$3:$AY$6,'Utility Functions'!$AZ$3:$AZ$6)","v":0.2},{"$f":"valuePL(AB23,'Utility Functions'!$BA$3:$BA$5,'Utility Functions'!$BB$3:$BB$5)","v":1},{"$f":"valuePL(AC23,'Utility Functions'!$BC$3:$BC$5,'Utility Functions'!$BD$3:$BD$5)","v":0.25},9.471742567994939,null,9.4717425679949407,0,0.14674256799493993,1.125,4.3,3.9000000000000004]
[23,{"$f":"valueE(B24,'Utility Functions'!$B$3,'Utility Functions'!$B$4,'Utility Functions'!$B$5,'Utility Functions'!$B$6)","v":0.83470237647280454},{"$f":"valueE(C24,'Utility Functions'!$D$3,'Utility Functions'!$D$4,'Utility Functions'!$D$5,'Utility Functions'!$D$6)","v":0.84744836833951609},{"$f":"valuePL(D24,'Utility Functions'!$E$3:$E$5,'Utility Functions'!$F$3:$F$5)","v":1},{"$f":"valuePL(E24,'Utility Functions'!$G$3:$G$5,'Utility Functions'!$H$3:$H$5)","v":0},{"$f":"valuePL(F24,'Utility Functions'!$I$3:$I$4,'Utility Functions'!$J$3:$J$5)","v":0},{"$f":"valueE(G24,'Utility Functions'!$L$3,'Utility Functions'!$L$4,'Utility Functions'!$L$5,'Utility Functions'!$L$6)","v":0},{"$f":"valueE(H24,'Utility Functions'!$N$3,'Utility Functions'!$N$4,'Utility Functions'!$N$5,'Utility Functions'!$N$6)","v":0},{"$f":"valuePL(I24,'Utility Functions'!$O$3:$O$6,'Utility Functions'!$P$3:$P$6)","v":0},{"$f":"valuePL(J24,'Utility Functions'!$Q$3:$Q$6,'Utility Functions'!$R$3:$R$6)","v":0},{"$f":"valuePL(K24,'Utility Functions'!$S$3:$S$7,'Utility Functions'!$T$3:$T$7)","v":0},{"$f":"valueE(L24,'Utility Functions'!$V$3,'Utility Functions'!$V$4,'Utility Functions'!$V$5,'Utility Functions'!$V$6)","v":0},{"$f":"valuePL(M24,'Utility Functions'!$W$3:$W$6,'Utility Functions'!$X$3:$X$6)","v":0},{"$f":"valueE(N24,'Utility Functions'!$Z$3,'Utility Functions'!$Z$4,'Utility Functions'!$Z$5,'Utility Functions'!$Z$6)","v":0},{"$f":"valuePL(O24,'Utility Functions'!$AA$3:$AA$5,'Utility Functions'!$AB$3:$AB$5)","v":0},{"$f":"valuePL(P24,'Utility Functions'!$AC$3:$AC$7,'Utility Functions'!$AD$3:$AD$7)","v":0.75},{"$f":"valuePL(Q24,'Utility Functions'!$AE$3:$AE$6,'Utility Functions'!$AF$3:$AF$6)","v":0},{"$f":"valuePL(R24,'Utility Functions'!$AG$3:$AG$6,'Utility Functions'!$AH$3:$AH$6)","v":1},{"$f":"valuePL(S24,'Utility Functions'!$AI$3:$AI$6,'Utility Functions'!$AJ$3:$AJ$6)","v":1},{"$f":"valuePL(T24,'Utility Functions'!$AK$3:$AK$8,'Utility Functions'!$AL$3:$AL$8)","v":1},{"$f":"valuePL(U24,'Utility Functions'!$AM$3:$AM$5,'Utility Functions'!$AN$3:$AN$5)","v":0},{"$f":"valuePL(V24,'Utility Functions'!$AO$3:$AO$5,'Utility Functions'!$AP$3:$AP$5)","v":1},{"$f":"valuePL(W24,'Utility Functions'!$AQ$3:$AQ$6,'Utility Functions'!$AR$3:$AR$6)","v":0.2},{"$f":"valuePL(X24,'Utility Functions'!$AS$3:$AS$6,'Utility Functions'!$AT$3:$AT$6)","v":0.75},{"$f":"valuePL(Y24,'Utility Functions'!$AU$3:$AU$6,'Utility Functions'!$AV$3:$AV$6)","v":0.2},{"$f":"valuePL(Z24,'Utility Functions'!$AW$3:$AW$5,'Utility Functions'!$AX$3:$AX$5)","v":0.5},{"$f":"valuePL(AA24,'Utility Functions'!$AY$3:$AY$6,'Utility Functions'!$AZ$3:$AZ$6)","v":0.2},{"$f":"valuePL(AB24,'Utility Functions'!$BA$3:$BA$5,'Utility Functions'!$BB$3:$BB$5)","v":0},{"$f":"valuePL(AC24,'Utility Functions'!$BC$3:$BC$5,'Utility Functions'!$BD$3:$BD$5)","v":0.25},9.5321507448123199,null,9.5321507448123199,2.6821507448123207,0,0,3.75,3.1]
[24,{"$f":"valueE(B25,'Utility Functions'!$B$3,'Utility Functions'!$B$4,'Utility Functions'!$B$5,'Utility Functions'!$B$6)","v":0.63212151658375171},{"$f":"valueE(C25,'Utility Functions'!$D$3,'Utility Functions'!$D$4,'Utility Functions'!$D$5,'Utility Functions'!$D$6)","v":0.46475967153745396},{"$f":"valuePL(D25,'Utility Functions'!$E$3:$E$5,'Utility Functions'!$F$3:$F$5)","v":1},{"$f":"valuePL(E25,'Utility Functions'!$G$3:$G$5,'Utility Functions'!$H$3:$H$5)","v":0},{"$f":"valuePL(F25,'Utility Functions'!$I$3:$I$4,'Utility Functions'!$J$3:$J$5)","v":0},{"$f":"valueE(G25,'Utility Functions'!$L$3,'Utility Functions'!$L$4,'Utility Functions'!$L$5,'Utility Functions'!$L$6)","v":0},{"$f":"valueE(H25,'Utility Functions'!$N$3,'Utility Functions'!$N$4,'Utility Functions'!$N$5,'Utility Functions'!$N$6)","v":0},{"$f":"valuePL(I25,'Utility Functions'!$O$3:$O$6,'Utility Functions'!$P$3:$P$6)","v":0},{"$f":"valuePL(J25,'Utility Functions'!$Q$3:$Q$6,'Utility Functions'!$R$3:$R$6)","v":0},{"$f":"valuePL(K25,'Utility Functions'!$S$3:$S$7,'Utility Functions'!$T$3:$T$7)","v":0},{"$f":"valueE(L25,'Utility Functions'!$V$3,'Utility Functions'!$V$4,'Utility Functions'!$V$5,'Utility Functions'!$V$6)","v":0},{"$f":"valuePL(M25,'Utility Functions'!$W$3:$W$6,'Utility Functions'!$X$3:$X$6)","v":0},{"$f":"valueE(N25,'Utility Functions'!$Z$3,'Utility Functions'!$Z$4,'Utility Functions'!$Z$5,'Utility Functions'!$Z$6)","v":0},{"$f":"valuePL(O25,'Utility Functions'!$AA$3:$AA$5,'Utility Functions'!$AB$3:$AB$5)","v":0},{"$f":"valuePL(P25,'Utility Functions'!$AC$3:$AC$7,'Utility Functions'!$AD$3:$AD$7)","v":0},{"$f":"valuePL(Q25,'Utility Functions'!$AE$3:$AE$6,'Utility Functions'!$AF$3:$AF$6)","v":0},{"$f":"valuePL(R25,'Utility Functions'!$AG$3:$AG$6,'Utility Functions'!$AH$3:$AH$6)","v":1},{"$f":"valuePL(S25,'Utility Functions'!$AI$3:$AI$6,'Utility Functions'!$AJ$3:$AJ$6)","v":1},{"$f":"valuePL(T25,'Utility Functions'!$AK$3:$AK$8,'Utility Functions'!$AL$3:$AL$8)","v":1},{"$f":"valuePL(U25,'Utility Functions'!$AM$3:$AM$5,'Utility Functions'!$AN$3:$AN$5)","v":0},{"$f":"valuePL(V25,'Utility Functions'!$AO$3:$AO$5,'Utility Functions'!$AP$3:$AP$5)","v":0},{"$f":"valuePL(W25,'Utility Functions'!$AQ$3:$AQ$6,'Utility Functions'!$AR$3:$AR$6)","v":1},{"$f":"valuePL(X25,'Utility Functions'!$AS$3:$AS$6,'Utility Functions'!$AT$3:$AT$6)","v":0.2},{"$f":"valuePL(Y25,'Utility Functions'!$AU$3:$AU$6,'Utility Functions'!$AV$3:$AV$6)","v":1},{"$f":"valuePL(Z25,'Utility Functions'!$AW$3:$AW$5,'Utility Functions'!$AX$3:$AX$5)","v":1},{"$f":"valuePL(AA25,'Utility Functions'!$AY$3:$AY$6,'Utility Functions'!$AZ$3:$AZ$6)","v":0.2},{"$f":"valuePL(AB25,'Utility Functions'!$BA$3:$BA$5,'Utility Functions'!$BB$3:$BB$5)","v":0},{"$f":"valuePL(AC25,'Utility Functions'!$BC$3:$BC$5,'Utility Functions'!$BD$3:$BD$5)","v":1},9.4968811881212041,null,9.4968811881212059,2.0968811881212055,0,0,3,4.4000000000000004]
[25,{"$f":"valueE(B26,'Utility Functions'!$B$3,'Utility Functions'!$B$4,'Utility Functions'!$B$5,'Utility Functions'!$B$6)","v":0.83470237647280454},{"$f":"valueE(C26,'Utility Functions'!$D$3,'Utility Functions'!$D$4,'Utility Functions'!$D$5,'Utility Functions'!$D$6)","v":0.84744836833951609},{"$f":"valuePL(D26,'Utility Functions'!$E$3:$E$5,'Utility Functions'!$F$3:$F$5)","v":1},{"$f":"valuePL(E26,'Utility Functions'!$G$3:$G$5,'Utility Functions'!$H$3:$H$5)","v":0},{"$f":"valuePL(F26,'Utility Functions'!$I$3:$I$4,'Utility Functions'!$J$3:$J$5)","v":0},{"$f":"valueE(G26,'Utility Functions'!$L$3,'Utility Functions'!$L$4,'Utility Functions'!$L$5,'Utility Functions'!$L$6)","v":0.94623655913978499},{"$f":"valueE(H26,'Utility Functions'!$N$3,'Utility Functions'!$N$4,'Utility Functions'!$N$5,'Utility Functions'!$N$6)","v":0.29222011385199242},{"$f":"valuePL(I26,'Utility Functions'!$O$3:$O$6,'Utility Functions'!$P$3:$P$6)","v":0},{"$f":"valuePL(J26,'Utility Functions'!$Q$3:$Q$6,'Utility Functions'!$R$3:$R$6)","v":0},{"$f":"valuePL(K26,'Utility Functions'!$S$3:$S$7,'Utility Functions'!$T$3:$T$7)","v":0},{"$f":"valueE(L26,'Utility Functions'!$V$3,'Utility Functions'!$V$4,'Utility Functions'!$V$5,'Utility Functions'!$V$6)","v":0},{"$f":"valuePL(M26,'Utility Functions'!$W$3:$W$6,'Utility Functions'!$X$3:$X$6)","v":0},{"$f":"valueE(N26,'Utility Functions'!$Z$3,'Utility Functions'!$Z$4,'Utility Functions'!$Z$5,'Utility Functions'!$Z$6)","v":1},{"$f":"valuePL(O26,'Utility Functions'!$AA$3:$AA$5,'Utility Functions'!$AB$3:$AB$5)","v":0.25},{"$f":"valuePL(P26,'Utility Functions'!$AC$3:$AC$7,'Utility Functions'!$AD$3:$AD$7)","v":0.5},{"$f":"valuePL(Q26,'Utility Functions'!$AE$3:$AE$6,'Utility Functions'!$AF$3:$AF$6)","v":0.5},{"$f":"valuePL(R26,'Utility Functions'!$AG$3:$AG$6,'Utility Functions'!$AH$3:$AH$6)","v":1},{"$f":"valuePL(S26,'Utility Functions'!$AI$3:$AI$6,'Utility Functions'!$AJ$3:$AJ$6)","v":1},{"$f":"valuePL(T26,'Utility Functions'!$AK$3:$AK$8,'Utility Functions'!$AL$3:$AL$8)","v":0},{"$f":"valuePL(U26,'Utility Functions'!$AM$3:$AM$5,'Utility Functions'!$AN$3:$AN$5)","v":0},{"$f":"valuePL(V26,'Utility Functions'!$AO$3:$AO$5,'Utility Functions'!$AP$3:$AP$5)","v":1},{"$f":"valuePL(W26,'Utility Functions'!$AQ$3:$AQ$6,'Utility Functions'!$AR$3:$AR$6)","v":0.2},{"$f":"valuePL(X26,'Utility Functions'!$AS$3:$AS$6,'Utility Functions'!$AT$3:$AT$6)","v":1},{"$f":"valuePL(Y26,'Utility Functions'!$AU$3:$AU$6,'Utility Functions'!$AV$3:$AV$6)","v":0.8},{"$f":"valuePL(Z26,'Utility Functions'!$AW$3:$AW$5,'Utility Functions'!$AX$3:$AX$5)","v":0.5},{"$f":"valuePL(AA26,'Utility Functions'!$AY$3:$AY$6,'Utility Functions'!$AZ$3:$AZ$6)","v":0.2},{"$f":"valuePL(AB26,'Utility Functions'!$BA$3:$BA$5,'Utility Functions'!$BB$3:$BB$5)","v":1},{"$f":"valuePL(AC26,'Utility Functions'!$BC$3:$BC$5,'Utility Functions'!$BD$3:$BD$5)","v":1},13.870607417804099,null,13.870607417804099,2.6821507448123207,1.2384566729917774,1.25,3,5.7]
[26,{"$f":"valueE(B27,'Utility Functions'!$B$3,'Utility Functions'!$B$4,'Utility Functions'!$B$5,'Utility Functions'!$B$6)","v":0.96662819462069161},{"$f":"valueE(C27,'Utility Functions'!$D$3,'Utility Functions'!$D$4,'Utility Functions'!$D$5,'Utility Functions'!$D$6)","v":0.84744836833951609},{"$f":"valuePL(D27,'Utility Functions'!$E$3:$E$5,'Utility Functions'!$F$3:$F$5)","v":1},{"$f":"valuePL(E27,'Utility Functions'!$G$3:$G$5,'Utility Functions'!$H$3:$H$5)","v":0.5},{"$f":"valuePL(F27,'Utility Functions'!$I$3:$I$4,'Utility Functions'!$J$3:$J$5)","v":0},{"$f":"valueE(G27,'Utility Functions'!$L$3,'Utility Functions'!$L$4,'Utility Functions'!$L$5,'Utility Functions'!$L$6)","v":0},{"$f":"valueE(H27,'Utility Functions'!$N$3,'Utility Functions'!$N$4,'Utility Functions'!$N$5,'Utility Functions'!$N$6)","v":0},{"$f":"valuePL(I27,'Utility Functions'!$O$3:$O$6,'Utility Functions'!$P$3:$P$6)","v":0},{"$f":"valuePL(J27,'Utility Functions'!$Q$3:$Q$6,'Utility Functions'!$R$3:$R$6)","v":0},{"$f":"valuePL(K27,'Utility Functions'!$S$3:$S$7,'Utility Functions'!$T$3:$T$7)","v":0},{"$f":"valueE(L27,'Utility Functions'!$V$3,'Utility Functions'!$V$4,'Utility Functions'!$V$5,'Utility Functions'!$V$6)","v":0},{"$f":"valuePL(M27,'Utility Functions'!$W$3:$W$6,'Utility Functions'!$X$3:$X$6)","v":0},{"$f":"valueE(N27,'Utility Functions'!$Z$3,'Utility Functions'!$Z$4,'Utility Functions'!$Z$5,'Utility Functions'!$Z$6)","v":0},{"$f":"valuePL(O27,'Utility Functions'!$AA$3:$AA$5,'Utility Functions'!$AB$3:$AB$5)","v":0},{"$f":"valuePL(P27,'Utility Functions'!$AC$3:$AC$7,'Utility Functions'!$AD$3:$AD$7)","v":0.75},{"$f":"valuePL(Q27,'Utility Functions'!$AE$3:$AE$6,'Utility Functions'!$AF$3:$AF$6)","v":0},{"$f":"valuePL(R27,'Utility Functions'!$AG$3:$AG$6,'Utility Functions'!$AH$3:$AH$6)","v":1},{"$f":"valuePL(S27,'Utility Functions'!$AI$3:$AI$6,'Utility Functions'!$AJ$3:$AJ$6)","v":1},{"$f":"valuePL(T27,'Utility Functions'!$AK$3:$AK$8,'Utility Functions'!$AL$3:$AL$8)","v":0.8},{"$f":"valuePL(U27,'Utility Functions'!$AM$3:$AM$5,'Utility Functions'!$AN$3:$AN$5)","v":0},{"$f":"valuePL(V27,'Utility Functions'!$AO$3:$AO$5,'Utility Functions'!$AP$3:$AP$5)","v":1},{"$f":"valuePL(W27,'Utility Functions'!$AQ$3:$AQ$6,'Utility Functions'!$AR$3:$AR$6)","v":0.2},{"$f":"valuePL(X27,'Utility Functions'!$AS$3:$AS$6,'Utility Functions'!$AT$3:$AT$6)","v":0},{"$f":"valuePL(Y27,'Utility Functions'!$AU$3:$AU$6,'Utility Functions'!$AV$3:$AV$6)","v":0.8},{"$f":"valuePL(Z27,'Utility Functions'!$AW$3:$AW$5,'Utility Functions'!$AX$3:$AX$5)","v":0},{"$f":"valuePL(AA27,'Utility Functions'!$AY$3:$AY$6,'Utility Functions'!$AZ$3:$AZ$6)","v":0.2},{"$f":"valuePL(AB27,'Utility Functions'!$BA$3:$BA$5,'Utility Functions'!$BB$3:$BB$5)","v":1},{"$f":"valuePL(AC27,'Utility Functions'!$BC$3:$BC$5,'Utility Functions'!$BD$3:$BD$5)","v":1},11.064076562960208,null,11.064076562960206,3.3140765629602078,0,0,3.55,4.2]
[27,{"$f":"valueE(B28,'Utility Functions'!$B$3,'Utility Functions'!$B$4,'Utility Functions'!$B$5,'Utility Functions'!$B$6)","v":0},{"$f":"valueE(C28,'Utility Functions'!$D$3,'Utility Functions'!$D$4,'Utility Functions'!$D$5,'Utility Functions'!$D$6)","v":0.46475967153745396},{"$f":"valuePL(D28,'Utility Functions'!$E$3:$E$5,'Utility Functions'!$F$3:$F$5)","v":1},{"$f":"valuePL(E28,'Utility Functions'!$G$3:$G$5,'Utility Functions'!$H$3:$H$5)","v":0},{"$f":"valuePL(F28,'Utility Functions'!$I$3:$I$4,'Utility Functions'!$J$3:$J$5)","v":0},{"$f":"valueE(G28,'Utility Functions'!$L$3,'Utility Functions'!$L$4,'Utility Functions'!$L$5,'Utility Functions'!$L$6)","v":0},{"$f":"valueE(H28,'Utility Functions'!$N$3,'Utility Functions'!$N$4,'Utility Functions'!$N$5,'Utility Functions'!$N$6)","v":0},{"$f":"valuePL(I28,'Utility Functions'!$O$3:$O$6,'Utility Functions'!$P$3:$P$6)","v":0},{"$f":"valuePL(J28,'Utility Functions'!$Q$3:$Q$6,'Utility Functions'!$R$3:$R$6)","v":0},{"$f":"valuePL(K28,'Utility Functions'!$S$3:$S$7,'Utility Functions'!$T$3:$T$7)","v":1},{"$f":"valueE(L28,'Utility Functions'!$V$3,'Utility Functions'!$V$4,'Utility Functions'!$V$5,'Utility Functions'!$V$6)","v":0},{"$f":"valuePL(M28,'Utility Functions'!$W$3:$W$6,'Utility Functions'!$X$3:$X$6)","v":0.1},{"$f":"valueE(N28,'Utility Functions'!$Z$3,'Utility Functions'!$Z$4,'Utility Functions'!$Z$5,'Utility Functions'!$Z$6)","v":0},{"$f":"valuePL(O28,'Utility Functions'!$AA$3:$AA$5,'Utility Functions'!$AB$3:$AB$5)","v":0},{"$f":"valuePL(P28,'Utility Functions'!$AC$3:$AC$7,'Utility Functions'!$AD$3:$AD$7)","v":0.5},{"$f":"valuePL(Q28,'Utility Functions'!$AE$3:$AE$6,'Utility Functions'!$AF$3:$AF$6)","v":0.5},{"$f":"valuePL(R28,'Utility Functions'!$AG$3:$AG$6,'Utility Functions'!$AH$3:$AH$6)","v":1},{"$f":"valuePL(S28,'Utility Functions'!$AI$3:$AI$6,'Utility Functions'!$AJ$3:$AJ$6)","v":1},{"$f":"valuePL(T28,'Utility Functions'!$AK$3:$AK$8,'Utility Functions'!$AL$3:$AL$8)","v":1},{"$f":"valuePL(U28,'Utility Functions'!$AM$3:$AM$5,'Utility Functions'!$AN$3:$AN$5)","v":0},{"$f":"valuePL(V28,'Utility Functions'!$AO$3:$AO$5,'Utility Functions'!$AP$3:$AP$5)","v":0.5},{"$f":"valuePL(W28,'Utility Functions'!$AQ$3:$AQ$6,'Utility Functions'!$AR$3:$AR$6)","v":0.75},{"$f":"valuePL(X28,'Utility Functions'!$AS$3:$AS$6,'Utility Functions'!$AT$3:$AT$6)","v":1},{"$f":"valuePL(Y28,'Utility Functions'!$AU$3:$AU$6,'Utility Functions'!$AV$3:$AV$6)","v":0.2},{"$f":"valuePL(Z28,'Utility Functions'!$AW$3:$AW$5,'Utility Functions'!$AX$3:$AX$5)","v":0},{"$f":"valuePL(AA28,'Utility Functions'!$AY$3:$AY$6,'Utility Functions'!$AZ$3:$AZ$6)","v":0},{"$f":"valuePL(AB28,'Utility Functions'!$BA$3:$BA$5,'Utility Functions'!$BB$3:$BB$5)","v":0},{"$f":"valuePL(AC28,'Utility Functions'!$BC$3:$BC$5,'Utility Functions'!$BD$3:$BD$5)","v":0},9.0147596715374529,null,9.0147596715374547,1.464759671537454,1.1000000000000001,0,4,2.4500000000000002]
[28,{"$f":"valueE(B29,'Utility Functions'!$B$3,'Utility Functions'!$B$4,'Utility Functions'!$B$5,'Utility Functions'!$B$6)","v":0.4511890475224023},{"$f":"valueE(C29,'Utility Functions'!$D$3,'Utility Functions'!$D$4,'Utility Functions'!$D$5,'Utility Functions'!$D$6)","v":0.46475967153745396},{"$f":"valuePL(D29,'Utility Functions'!$E$3:$E$5,'Utility Functions'!$F$3:$F$5)","v":1},{"$f":"valuePL(E29,'Utility Functions'!$G$3:$G$5,'Utility Functions'!$H$3:$H$5)","v":0},{"$f":"valuePL(F29,'Utility Functions'!$I$3:$I$4,'Utility Functions'!$J$3:$J$5)","v":1},{"$f":"valueE(G29,'Utility Functions'!$L$3,'Utility Functions'!$L$4,'Utility Functions'!$L$5,'Utility Functions'!$L$6)","v":0},{"$f":"valueE(H29,'Utility Functions'!$N$3,'Utility Functions'!$N$4,'Utility Functions'!$N$5,'Utility Functions'!$N$6)","v":0},{"$f":"valuePL(I29,'Utility Functions'!$O$3:$O$6,'Utility Functions'!$P$3:$P$6)","v":0},{"$f":"valuePL(J29,'Utility Functions'!$Q$3:$Q$6,'Utility Functions'!$R$3:$R$6)","v":0},{"$f":"valuePL(K29,'Utility Functions'!$S$3:$S$7,'Utility Functions'!$T$3:$T$7)","v":0},{"$f":"valueE(L29,'Utility Functions'!$V$3,'Utility Functions'!$V$4,'Utility Functions'!$V$5,'Utility Functions'!$V$6)","v":0.33333333333333331},{"$f":"valuePL(M29,'Utility Functions'!$W$3:$W$6,'Utility Functions'!$X$3:$X$6)","v":0.1},{"$f":"valueE(N29,'Utility Functions'!$Z$3,'Utility Functions'!$Z$4,'Utility Functions'!$Z$5,'Utility Functions'!$Z$6)","v":0},{"$f":"valuePL(O29,'Utility Functions'!$AA$3:$AA$5,'Utility Functions'!$AB$3:$AB$5)","v":0},{"$f":"valuePL(P29,'Utility Functions'!$AC$3:$AC$7,'Utility Functions'!$AD$3:$AD$7)","v":1},{"$f":"valuePL(Q29,'Utility Functions'!$AE$3:$AE$6,'Utility Functions'!$AF$3:$AF$6)","v":0},{"$f":"valuePL(R29,'Utility Functions'!$AG$3:$AG$6,'Utility Functions'!$AH$3:$AH$6)","v":1},{"$f":"valuePL(S29,'Utility Functions'!$AI$3:$AI$6,'Utility Functions'!$AJ$3:$AJ$6)","v":1},{"$f":"valuePL(T29,'Utility Functions'!$AK$3:$AK$8,'Utility Functions'!$AL$3:$AL$8)","v":0.8},{"$f":"valuePL(U29,'Utility Functions'!$AM$3:$AM$5,'Utility Functions'!$AN$3:$AN$5)","v":0},{"$f":"valuePL(V29,'Utility Functions'!$AO$3:$AO$5,'Utility Functions'!$AP$3:$AP$5)","v":1},{"$f":"valuePL(W29,'Utility Functions'!$AQ$3:$AQ$6,'Utility Functions'!$AR$3:$AR$6)","v":1},{"$f":"valuePL(X29,'Utility Functions'!$AS$3:$AS$6,'Utility Functions'!$AT$3:$AT$6)","v":1},{"$f":"valuePL(Y29,'Utility Functions'!$AU$3:$AU$6,'Utility Functions'!$AV$3:$AV$6)","v":0.2},{"$f":"valuePL(Z29,'Utility Functions'!$AW$3:$AW$5,'Utility Functions'!$AX$3:$AX$5)","v":0},{"$f":"valuePL(AA29,'Utility Functions'!$AY$3:$AY$6,'Utility Functions'!$AZ$3:$AZ$6)","v":0.89999999999999991},{"$f":"valuePL(AB29,'Utility Functions'!$BA$3:$BA$5,'Utility Functions'!$BB$3:$BB$5)","v":1},{"$f":"valuePL(AC29,'Utility Functions'!$BC$3:$BC$5,'Utility Functions'!$BD$3:$BD$5)","v":0.25},12.499282052393189,null,12.499282052393189,2.9159487190598563,0.43333333333333335,0,3.8,5.35]
[29,{"$f":"valueE(B30,'Utility Functions'!$B$3,'Utility Functions'!$B$4,'Utility Functions'!$B$5,'Utility Functions'!$B$6)","v":0.83470237647280454},{"$f":"valueE(C30,'Utility Functions'!$D$3,'Utility Functions'!$D$4,'Utility Functions'!$D$5,'Utility Functions'!$D$6)","v":0.71352759724260828},{"$f":"valuePL(D30,'Utility Functions'!$E$3:$E$5,'Utility Functions'!$F$3:$F$5)","v":1},{"$f":"valuePL(E30,'Utility Functions'!$G$3:$G$5,'Utility Functions'!$H$3:$H$5)","v":0.5},{"$f":"valuePL(F30,'Utility Functions'!$I$3:$I$4,'Utility Functions'!$J$3:$J$5)","v":0},{"$f":"valueE(G30,'Utility Functions'!$L$3,'Utility Functions'!$L$4,'Utility Functions'!$L$5,'Utility Functions'!$L$6)","v":0},{"$f":"valueE(H30,'Utility Functions'!$N$3,'Utility Functions'!$N$4,'Utility Functions'!$N$5,'Utility Functions'!$N$6)","v":0},{"$f":"valuePL(I30,'Utility Functions'!$O$3:$O$6,'Utility Functions'!$P$3:$P$6)","v":0.06},{"$f":"valuePL(J30,'Utility Functions'!$Q$3:$Q$6,'Utility Functions'!$R$3:$R$6)","v":0.67272727272727273},{"$f":"valuePL(K30,'Utility Functions'!$S$3:$S$7,'Utility Functions'!$T$3:$T$7)","v":0},{"$f":"valueE(L30,'Utility Functions'!$V$3,'Utility Functions'!$V$4,'Utility Functions'!$V$5,'Utility Functions'!$V$6)","v":1},{"$f":"valuePL(M30,'Utility Functions'!$W$3:$W$6,'Utility Functions'!$X$3:$X$6)","v":0.67272727272727273},{"$f":"valueE(N30,'Utility Functions'!$Z$3,'Utility Functions'!$Z$4,'Utility Functions'!$Z$5,'Utility Functions'!$Z$6)","v":0},{"$f":"valuePL(O30,'Utility Functions'!$AA$3:$AA$5,'Utility Functions'!$AB$3:$AB$5)","v":0},{"$f":"valuePL(P30,'Utility Functions'!$AC$3:$AC$7,'Utility Functions'!$AD$3:$AD$7)","v":0.25},{"$f":"valuePL(Q30,'Utility Functions'!$AE$3:$AE$6,'Utility Functions'!$AF$3:$AF$6)","v":0},{"$f":"valuePL(R30,'Utility Functions'!$AG$3:$AG$6,'Utility Functions'!$AH$3:$AH$6)","v":1},{"$f":"valuePL(S30,'Utility Functions'!$AI$3:$AI$6,'Utility Functions'!$AJ$3:$AJ$6)","v":1},{"$f":"valuePL(T30,'Utility Functions'!$AK$3:$AK$8,'Utility Functions'!$AL$3:$AL$8)","v":0.8},{"$f":"valuePL(U30,'Utility Functions'!$AM$3:$AM$5,'Utility Functions'!$AN$3:$AN$5)","v":0},{"$f":"valuePL(V30,'Utility Functions'!$AO$3:$AO$5,'Utility Functions'!$AP$3:$AP$5)","v":1},{"$f":"valuePL(W30,'Utility Functions'!$AQ$3:$AQ$6,'Utility Functions'!$AR$3:$AR$6)","v":0.2},{"$f":"valuePL(X30,'Utility Functions'!$AS$3:$AS$6,'Utility Functions'!$AT$3:$AT$6)","v":0},{"$f":"valuePL(Y30,'Utility Functions'!$AU$3:$AU$6,'Utility Functions'!$AV$3:$AV$6)","v":0.8},{"$f":"valuePL(Z30,'Utility Functions'!$AW$3:$AW$5,'Utility Functions'!$AX$3:$AX$5)","v":0.5},{"$f":"valuePL(AA30,'Utility Functions'!$AY$3:$AY$6,'Utility Functions'!$AZ$3:$AZ$6)","v":0.2},{"$f":"valuePL(AB30,'Utility Functions'!$BA$3:$BA$5,'Utility Functions'!$BB$3:$BB$5)","v":0.25},{"$f":"valuePL(AC30,'Utility Functions'!$BC$3:$BC$5,'Utility Functions'!$BD$3:$BD$5)","v":1},12.453684519169958,null,12.453684519169958,3.0482299737154128,2.4054545454545453,0,3.05,3.95]
[30,{"$f":"valueE(B31,'Utility Functions'!$B$3,'Utility Functions'!$B$4,'Utility Functions'!$B$5,'Utility Functions'!$B$6)","v":0.99864114504770318},{"$f":"valueE(C31,'Utility Functions'!$D$3,'Utility Functions'!$D$4,'Utility Functions'!$D$5,'Utility Functions'!$D$6)","v":0.84744836833951609},{"$f":"valuePL(D31,'Utility Functions'!$E$3:$E$5,'Utility Functions'!$F$3:$F$5)","v":1},{"$f":"valuePL(E31,'Utility Functions'!$G$3:$G$5,'Utility Functions'!$H$3:$H$5)","v":0},{"$f":"valuePL(F31,'Utility Functions'!$I$3:$I$4,'Utility Functions'!$J$3:$J$5)","v":0},{"$f":"valueE(G31,'Utility Functions'!$L$3,'Utility Functions'!$L$4,'Utility Functions'!$L$5,'Utility Functions'!$L$6)","v":0},{"$f":"valueE(H31,'Utility Functions'!$N$3,'Utility Functions'!$N$4,'Utility Functions'!$N$5,'Utility Functions'!$N$6)","v":0},{"$f":"valuePL(I31,'Utility Functions'!$O$3:$O$6,'Utility Functions'!$P$3:$P$6)","v":0},{"$f":"valuePL(J31,'Utility Functions'!$Q$3:$Q$6,'Utility Functions'!$R$3:$R$6)","v":0},{"$f":"valuePL(K31,'Utility Functions'!$S$3:$S$7,'Utility Functions'!$T$3:$T$7)","v":0},{"$f":"valueE(L31,'Utility Functions'!$V$3,'Utility Functions'!$V$4,'Utility Functions'!$V$5,'Utility Functions'!$V$6)","v":0.33333333333333331},{"$f":"valuePL(M31,'Utility Functions'!$W$3:$W$6,'Utility Functions'!$X$3:$X$6)","v":0.04},{"$f":"valueE(N31,'Utility Functions'!$Z$3,'Utility Functions'!$Z$4,'Utility Functions'!$Z$5,'Utility Functions'!$Z$6)","v":0},{"$f":"valuePL(O31,'Utility Functions'!$AA$3:$AA$5,'Utility Functions'!$AB$3:$AB$5)","v":0},{"$f":"valuePL(P31,'Utility Functions'!$AC$3:$AC$7,'Utility Functions'!$AD$3:$AD$7)","v":0},{"$f":"valuePL(Q31,'Utility Functions'!$AE$3:$AE$6,'Utility Functions'!$AF$3:$AF$6)","v":0},{"$f":"valuePL(R31,'Utility Functions'!$AG$3:$AG$6,'Utility Functions'!$AH$3:$AH$6)","v":0.2},{"$f":"valuePL(S31,'Utility Functions'!$AI$3:$AI$6,'Utility Functions'!$AJ$3:$AJ$6)","v":0.33},{"$f":"valuePL(T31,'Utility Functions'!$AK$3:$AK$8,'Utility Functions'!$AL$3:$AL$8)","v":0},{"$f":"valuePL(U31,'Utility Functions'!$AM$3:$AM$5,'Utility Functions'!$AN$3:$AN$5)","v":0},{"$f":"valuePL(V31,'Utility Functions'!$AO$3:$AO$5,'Utility Functions'!$AP$3:$AP$5)","v":0},{"$f":"valuePL(W31,'Utility Functions'!$AQ$3:$AQ$6,'Utility Functions'!$AR$3:$AR$6)","v":1},{"$f":"valuePL(X31,'Utility Functions'!$AS$3:$AS$6,'Utility Functions'!$AT$3:$AT$6)","v":0.2},{"$f":"valuePL(Y31,'Utility Functions'!$AU$3:$AU$6,'Utility Functions'!$AV$3:$AV$6)","v":0.8},{"$f":"valuePL(Z31,'Utility Functions'!$AW$3:$AW$5,'Utility Functions'!$AX$3:$AX$5)","v":0},{"$f":"valuePL(AA31,'Utility Functions'!$AY$3:$AY$6,'Utility Functions'!$AZ$3:$AZ$6)","v":0.89999999999999991},{"$f":"valuePL(AB31,'Utility Functions'!$BA$3:$BA$5,'Utility Functions'!$BB$3:$BB$5)","v":1},{"$f":"valuePL(AC31,'Utility Functions'!$BC$3:$BC$5,'Utility Functions'!$BD$3:$BD$5)","v":0},7.6494228467205527,null,7.6494228467205527,2.846089513387219,0.37333333333333329,0,0.53,3.9]
[31,{"$f":"valueE(B32,'Utility Functions'!$B$3,'Utility Functions'!$B$4,'Utility Functions'!$B$5,'Utility Functions'!$B$6)","v":0.55067187023002029},{"$f":"valueE(C32,'Utility Functions'!$D$3,'Utility Functions'!$D$4,'Utility Functions'!$D$5,'Utility Functions'!$D$6)","v":0.84744836833951609},{"$f":"valuePL(D32,'Utility Functions'!$E$3:$E$5,'Utility Functions'!$F$3:$F$5)","v":0.5},{"$f":"valuePL(E32,'Utility Functions'!$G$3:$G$5,'Utility Functions'!$H$3:$H$5)","v":0},{"$f":"valuePL(F32,'Utility Functions'!$I$3:$I$4,'Utility Functions'!$J$3:$J$5)","v":0},{"$f":"valueE(G32,'Utility Functions'!$L$3,'Utility Functions'!$L$4,'Utility Functions'!$L$5,'Utility Functions'!$L$6)","v":0},{"$f":"valueE(H32,'Utility Functions'!$N$3,'Utility Functions'!$N$4,'Utility Functions'!$N$5,'Utility Functions'!$N$6)","v":0},{"$f":"valuePL(I32,'Utility Functions'!$O$3:$O$6,'Utility Functions'!$P$3:$P$6)","v":0.75454545454545452},{"$f":"valuePL(J32,'Utility Functions'!$Q$3:$Q$6,'Utility Functions'!$R$3:$R$6)","v":0.08},{"$f":"valuePL(K32,'Utility Functions'!$S$3:$S$7,'Utility Functions'!$T$3:$T$7)","v":0},{"$f":"valueE(L32,'Utility Functions'!$V$3,'Utility Functions'!$V$4,'Utility Functions'!$V$5,'Utility Functions'!$V$6)","v":0.33333333333333331},{"$f":"valuePL(M32,'Utility Functions'!$W$3:$W$6,'Utility Functions'!$X$3:$X$6)","v":0.08},{"$f":"valueE(N32,'Utility Functions'!$Z$3,'Utility Functions'!$Z$4,'Utility Functions'!$Z$5,'Utility Functions'!$Z$6)","v":0},{"$f":"valuePL(O32,'Utility Functions'!$AA$3:$AA$5,'Utility Functions'!$AB$3:$AB$5)","v":0},{"$f":"valuePL(P32,'Utility Functions'!$AC$3:$AC$7,'Utility Functions'!$AD$3:$AD$7)","v":0.5},{"$f":"valuePL(Q32,'Utility Functions'!$AE$3:$AE$6,'Utility Functions'!$AF$3:$AF$6)","v":0},{"$f":"valuePL(R32,'Utility Functions'!$AG$3:$AG$6,'Utility Functions'!$AH$3:$AH$6)","v":1},{"$f":"valuePL(S32,'Utility Functions'!$AI$3:$AI$6,'Utility Functions'!$AJ$3:$AJ$6)","v":0.66},{"$f":"valuePL(T32,'Utility Functions'!$AK$3:$AK$8,'Utility Functions'!$AL$3:$AL$8)","v":0.6},{"$f":"valuePL(U32,'Utility Functions'!$AM$3:$AM$5,'Utility Functions'!$AN$3:$AN$5)","v":0},{"$f":"valuePL(V32,'Utility Functions'!$AO$3:$AO$5,'Utility Functions'!$AP$3:$AP$5)","v":0.5},{"$f":"valuePL(W32,'Utility Functions'!$AQ$3:$AQ$6,'Utility Functions'!$AR$3:$AR$6)","v":0},{"$f":"valuePL(X32,'Utility Functions'!$AS$3:$AS$6,'Utility Functions'!$AT$3:$AT$6)","v":0.2},{"$f":"valuePL(Y32,'Utility Functions'!$AU$3:$AU$6,'Utility Functions'!$AV$3:$AV$6)","v":0.2},{"$f":"valuePL(Z32,'Utility Functions'!$AW$3:$AW$5,'Utility Functions'!$AX$3:$AX$5)","v":1},{"$f":"valuePL(AA32,'Utility Functions'!$AY$3:$AY$6,'Utility Functions'!$AZ$3:$AZ$6)","v":0.89999999999999991},{"$f":"valuePL(AB32,'Utility Functions'!$BA$3:$BA$5,'Utility Functions'!$BB$3:$BB$5)","v":0.25},{"$f":"valuePL(AC32,'Utility Functions'!$BC$3:$BC$5,'Utility Functions'!$BD$3:$BD$5)","v":0.25},9.2059990264483247,null,9.2059990264483247,1.8981202385695364,1.2478787878787878,0,2.7600000000000002,3.3]
[32,{"$f":"valueE(B33,'Utility Functions'!$B$3,'Utility Functions'!$B$4,'Utility Functions'!$B$5,'Utility Functions'!$B$6)","v":0.63212151658375171},{"$f":"valueE(C33,'Utility Functions'!$D$3,'Utility Functions'!$D$4,'Utility Functions'!$D$5,'Utility Functions'!$D$6)","v":0.26839655623815994},{"$f":"valuePL(D33,'Utility Functions'!$E$3:$E$5,'Utility Functions'!$F$3:$F$5)","v":1},{"$f":"valuePL(E33,'Utility Functions'!$G$3:$G$5,'Utility Functions'!$H$3:$H$5)","v":1},{"$f":"valuePL(F33,'Utility Functions'!$I$3:$I$4,'Utility Functions'!$J$3:$J$5)","v":1},{"$f":"valueE(G33,'Utility Functions'!$L$3,'Utility Functions'!$L$4,'Utility Functions'!$L$5,'Utility Functions'!$L$6)","v":3.2258064516129031E-2},{"$f":"valueE(H33,'Utility Functions'!$N$3,'Utility Functions'!$N$4,'Utility Functions'!$N$5,'Utility Functions'!$N$6)","v":9.6774193548387094E-2},{"$f":"valuePL(I33,'Utility Functions'!$O$3:$O$6,'Utility Functions'!$P$3:$P$6)","v":0.34545454545454546},{"$f":"valuePL(J33,'Utility Functions'!$Q$3:$Q$6,'Utility Functions'!$R$3:$R$6)","v":1},{"$f":"valuePL(K33,'Utility Functions'!$S$3:$S$7,'Utility Functions'!$T$3:$T$7)","v":0.34545454545454546},{"$f":"valueE(L33,'Utility Functions'!$V$3,'Utility Functions'!$V$4,'Utility Functions'!$V$5,'Utility Functions'!$V$6)","v":1},{"$f":"valuePL(M33,'Utility Functions'!$W$3:$W$6,'Utility Functions'!$X$3:$X$6)","v":1},{"$f":"valueE(N33,'Utility Functions'!$Z$3,'Utility Functions'!$Z$4,'Utility Functions'!$Z$5,'Utility Functions'!$Z$6)","v":0},{"$f":"valuePL(O33,'Utility Functions'!$AA$3:$AA$5,'Utility Functions'!$AB$3:$AB$5)","v":0},{"$f":"valuePL(P33,'Utility Functions'!$AC$3:$AC$7,'Utility Functions'!$AD$3:$AD$7)","v":0.5},{"$f":"valuePL(Q33,'Utility Functions'!$AE$3:$AE$6,'Utility Functions'!$AF$3:$AF$6)","v":1},{"$f":"valuePL(R33,'Utility Functions'!$AG$3:$AG$6,'Utility Functions'!$AH$3:$AH$6)","v":1},{"$f":"valuePL(S33,'Utility Functions'!$AI$3:$AI$6,'Utility Functions'!$AJ$3:$AJ$6)","v":0},{"$f":"valuePL(T33,'Utility Functions'!$AK$3:$AK$8,'Utility Functions'!$AL$3:$AL$8)","v":0.8},{"$f":"valuePL(U33,'Utility Functions'!$AM$3:$AM$5,'Utility Functions'!$AN$3:$AN$5)","v":0},{"$f":"valuePL(V33,'Utility Functions'!$AO$3:$AO$5,'Utility Functions'!$AP$3:$AP$5)","v":0},{"$f":"valuePL(W33,'Utility Functions'!$AQ$3:$AQ$6,'Utility Functions'!$AR$3:$AR$6)","v":0.75},{"$f":"valuePL(X33,'Utility Functions'!$AS$3:$AS$6,'Utility Functions'!$AT$3:$AT$6)","v":0.2},{"$f":"valuePL(Y33,'Utility Functions'!$AU$3:$AU$6,'Utility Functions'!$AV$3:$AV$6)","v":0.8},{"$f":"valuePL(Z33,'Utility Functions'!$AW$3:$AW$5,'Utility Functions'!$AX$3:$AX$5)","v":0.5},{"$f":"valuePL(AA33,'Utility Functions'!$AY$3:$AY$6,'Utility Functions'!$AZ$3:$AZ$6)","v":0},{"$f":"valuePL(AB33,'Utility Functions'!$BA$3:$BA$5,'Utility Functions'!$BB$3:$BB$5)","v":1},{"$f":"valuePL(AC33,'Utility Functions'!$BC$3:$BC$5,'Utility Functions'!$BD$3:$BD$5)","v":0.25},14.52045942179552,null,14.520459421795518,3.9005180728219115,3.8199413489736074,0,3.3,3.5]
[33,{"$f":"valueE(B34,'Utility Functions'!$B$3,'Utility Functions'!$B$4,'Utility Functions'!$B$5,'Utility Functions'!$B$6)","v":0.93919136038504192},{"$f":"valueE(C34,'Utility Functions'!$D$3,'Utility Functions'!$D$4,'Utility Functions'!$D$5,'Utility Functions'!$D$6)","v":0.84744836833951609},{"$f":"valuePL(D34,'Utility Functions'!$E$3:$E$5,'Utility Functions'!$F$3:$F$5)","v":1},{"$f":"valuePL(E34,'Utility Functions'!$G$3:$G$5,'Utility Functions'!$H$3:$H$5)","v":0.5},{"$f":"valuePL(F34,'Utility Functions'!$I$3:$I$4,'Utility Functions'!$J$3:$J$5)","v":0},{"$f":"valueE(G34,'Utility Functions'!$L$3,'Utility Functions'!$L$4,'Utility Functions'!$L$5,'Utility Functions'!$L$6)","v":0},{"$f":"valueE(H34,'Utility Functions'!$N$3,'Utility Functions'!$N$4,'Utility Functions'!$N$5,'Utility Functions'!$N$6)","v":0},{"$f":"valuePL(I34,'Utility Functions'!$O$3:$O$6,'Utility Functions'!$P$3:$P$6)","v":0},{"$f":"valuePL(J34,'Utility Functions'!$Q$3:$Q$6,'Utility Functions'!$R$3:$R$6)","v":0},{"$f":"valuePL(K34,'Utility Functions'!$S$3:$S$7,'Utility Functions'!$T$3:$T$7)","v":0},{"$f":"valueE(L34,'Utility Functions'!$V$3,'Utility Functions'!$V$4,'Utility Functions'!$V$5,'Utility Functions'!$V$6)","v":0.5},{"$f":"valuePL(M34,'Utility Functions'!$W$3:$W$6,'Utility Functions'!$X$3:$X$6)","v":0},{"$f":"valueE(N34,'Utility Functions'!$Z$3,'Utility Functions'!$Z$4,'Utility Functions'!$Z$5,'Utility Functions'!$Z$6)","v":0},{"$f":"valuePL(O34,'Utility Functions'!$AA$3:$AA$5,'Utility Functions'!$AB$3:$AB$5)","v":0},{"$f":"valuePL(P34,'Utility Functions'!$AC$3:$AC$7,'Utility Functions'!$AD$3:$AD$7)","v":0.5},{"$f":"valuePL(Q34,'Utility Functions'!$AE$3:$AE$6,'Utility Functions'!$AF$3:$AF$6)","v":0},{"$f":"valuePL(R34,'Utility Functions'!$AG$3:$AG$6,'Utility Functions'!$AH$3:$AH$6)","v":1},{"$f":"valuePL(S34,'Utility Functions'!$AI$3:$AI$6,'Utility Functions'!$AJ$3:$AJ$6)","v":0.66},{"$f":"valuePL(T34,'Utility Functions'!$AK$3:$AK$8,'Utility Functions'!$AL$3:$AL$8)","v":0},{"$f":"valuePL(U34,'Utility Functions'!$AM$3:$AM$5,'Utility Functions'!$AN$3:$AN$5)","v":0},{"$f":"valuePL(V34,'Utility Functions'!$AO$3:$AO$5,'Utility Functions'!$AP$3:$AP$5)","v":0.5},{"$f":"valuePL(W34,'Utility Functions'!$AQ$3:$AQ$6,'Utility Functions'!$AR$3:$AR$6)","v":1},{"$f":"valuePL(X34,'Utility Functions'!$AS$3:$AS$6,'Utility Functions'!$AT$3:$AT$6)","v":0},{"$f":"valuePL(Y34,'Utility Functions'!$AU$3:$AU$6,'Utility Functions'!$AV$3:$AV$6)","v":0.8},{"$f":"valuePL(Z34,'Utility Functions'!$AW$3:$AW$5,'Utility Functions'!$AX$3:$AX$5)","v":1},{"$f":"valuePL(AA34,'Utility Functions'!$AY$3:$AY$6,'Utility Functions'!$AZ$3:$AZ$6)","v":1},{"$f":"valuePL(AB34,'Utility Functions'!$BA$3:$BA$5,'Utility Functions'!$BB$3:$BB$5)","v":0},{"$f":"valuePL(AC34,'Utility Functions'!$BC$3:$BC$5,'Utility Functions'!$BD$3:$BD$5)","v":0},10.246639728724558,null,10.246639728724558,3.2866397287245581,0.5,0,2.16,4.3]
[34,{"$f":"valueE(B35,'Utility Functions'!$B$3,'Utility Functions'!$B$4,'Utility Functions'!$B$5,'Utility Functions'!$B$6)","v":0},{"$f":"valueE(C35,'Utility Functions'!$D$3,'Utility Functions'!$D$4,'Utility Functions'!$D$5,'Utility Functions'!$D$6)","v":0},{"$f":"valuePL(D35,'Utility Functions'!$E$3:$E$5,'Utility Functions'!$F$3:$F$5)","v":0},{"$f":"valuePL(E35,'Utility Functions'!$G$3:$G$5,'Utility Functions'!$H$3:$H$5)","v":0},{"$f":"valuePL(F35,'Utility Functions'!$I$3:$I$4,'Utility Functions'!$J$3:$J$5)","v":0},{"$f":"valueE(G35,'Utility Functions'!$L$3,'Utility Functions'!$L$4,'Utility Functions'!$L$5,'Utility Functions'!$L$6)","v":0},{"$f":"valueE(H35,'Utility Functions'!$N$3,'Utility Functions'!$N$4,'Utility Functions'!$N$5,'Utility Functions'!$N$6)","v":1.1385199240986717E-2},{"$f":"valuePL(I35,'Utility Functions'!$O$3:$O$6,'Utility Functions'!$P$3:$P$6)","v":1},{"$f":"valuePL(J35,'Utility Functions'!$Q$3:$Q$6,'Utility Functions'!$R$3:$R$6)","v":0.91818181818181821},{"$f":"valuePL(K35,'Utility Functions'!$S$3:$S$7,'Utility Functions'!$T$3:$T$7)","v":1},{"$f":"valueE(L35,'Utility Functions'!$V$3,'Utility Functions'!$V$4,'Utility Functions'!$V$5,'Utility Functions'!$V$6)","v":1},{"$f":"valuePL(M35,'Utility Functions'!$W$3:$W$6,'Utility Functions'!$X$3:$X$6)","v":0.91818181818181821},{"$f":"valueE(N35,'Utility Functions'!$Z$3,'Utility Functions'!$Z$4,'Utility Functions'!$Z$5,'Utility Functions'!$Z$6)","v":0},{"$f":"valuePL(O35,'Utility Functions'!$AA$3:$AA$5,'Utility Functions'!$AB$3:$AB$5)","v":0},{"$f":"valuePL(P35,'Utility Functions'!$AC$3:$AC$7,'Utility Functions'!$AD$3:$AD$7)","v":0.5},{"$f":"valuePL(Q35,'Utility Functions'!$AE$3:$AE$6,'Utility Functions'!$AF$3:$AF$6)","v":0},{"$f":"valuePL(R35,'Utility Functions'!$AG$3:$AG$6,'Utility Functions'!$AH$3:$AH$6)","v":1},{"$f":"valuePL(S35,'Utility Functions'!$AI$3:$AI$6,'Utility Functions'!$AJ$3:$AJ$6)","v":1},{"$f":"valuePL(T35,'Utility Functions'!$AK$3:$AK$8,'Utility Functions'!$AL$3:$AL$8)","v":0.8},{"$f":"valuePL(U35,'Utility Functions'!$AM$3:$AM$5,'Utility Functions'!$AN$3:$AN$5)","v":0},{"$f":"valuePL(V35,'Utility Functions'!$AO$3:$AO$5,'Utility Functions'!$AP$3:$AP$5)","v":1},{"$f":"valuePL(W35,'Utility Functions'!$AQ$3:$AQ$6,'Utility Functions'!$AR$3:$AR$6)","v":1},{"$f":"valuePL(X35,'Utility Functions'!$AS$3:$AS$6,'Utility Functions'!$AT$3:$AT$6)","v":1},{"$f":"valuePL(Y35,'Utility Functions'!$AU$3:$AU$6,'Utility Functions'!$AV$3:$AV$6)","v":0},{"$f":"valuePL(Z35,'Utility Functions'!$AW$3:$AW$5,'Utility Functions'!$AX$3:$AX$5)","v":1},{"$f":"valuePL(AA35,'Utility Functions'!$AY$3:$AY$6,'Utility Functions'!$AZ$3:$AZ$6)","v":0.89999999999999991},{"$f":"valuePL(AB35,'Utility Functions'!$BA$3:$BA$5,'Utility Functions'!$BB$3:$BB$5)","v":0.25},{"$f":"valuePL(AC35,'Utility Functions'!$BC$3:$BC$5,'Utility Functions'!$BD$3:$BD$5)","v":0},13.297748835604624,null,13.297748835604624,0,4.847748835604623,0,3.3,5.15]
[35,{"$f":"valueE(B36,'Utility Functions'!$B$3,'Utility Functions'!$B$4,'Utility Functions'!$B$5,'Utility Functions'!$B$6)","v":0.79810469124896843},{"$f":"valueE(C36,'Utility Functions'!$D$3,'Utility Functions'!$D$4,'Utility Functions'!$D$5,'Utility Functions'!$D$6)","v":0.60939983135101949},{"$f":"valuePL(D36,'Utility Functions'!$E$3:$E$5,'Utility Functions'!$F$3:$F$5)","v":0.5},{"$f":"valuePL(E36,'Utility Functions'!$G$3:$G$5,'Utility Functions'!$H$3:$H$5)","v":0.5},{"$f":"valuePL(F36,'Utility Functions'!$I$3:$I$4,'Utility Functions'!$J$3:$J$5)","v":1},{"$f":"valueE(G36,'Utility Functions'!$L$3,'Utility Functions'!$L$4,'Utility Functions'!$L$5,'Utility Functions'!$L$6)","v":0},{"$f":"valueE(H36,'Utility Functions'!$N$3,'Utility Functions'!$N$4,'Utility Functions'!$N$5,'Utility Functions'!$N$6)","v":0},{"$f":"valuePL(I36,'Utility Functions'!$O$3:$O$6,'Utility Functions'!$P$3:$P$6)","v":0},{"$f":"valuePL(J36,'Utility Functions'!$Q$3:$Q$6,'Utility Functions'!$R$3:$R$6)","v":0},{"$f":"valuePL(K36,'Utility Functions'!$S$3:$S$7,'Utility Functions'!$T$3:$T$7)","v":1},{"$f":"valueE(L36,'Utility Functions'!$V$3,'Utility Functions'!$V$4,'Utility Functions'!$V$5,'Utility Functions'!$V$6)","v":0.66666666666666663},{"$f":"valuePL(M36,'Utility Functions'!$W$3:$W$6,'Utility Functions'!$X$3:$X$6)","v":0.1},{"$f":"valueE(N36,'Utility Functions'!$Z$3,'Utility Functions'!$Z$4,'Utility Functions'!$Z$5,'Utility Functions'!$Z$6)","v":1},{"$f":"valuePL(O36,'Utility Functions'!$AA$3:$AA$5,'Utility Functions'!$AB$3:$AB$5)","v":0},{"$f":"valuePL(P36,'Utility Functions'!$AC$3:$AC$7,'Utility Functions'!$AD$3:$AD$7)","v":0},{"$f":"valuePL(Q36,'Utility Functions'!$AE$3:$AE$6,'Utility Functions'!$AF$3:$AF$6)","v":0},{"$f":"valuePL(R36,'Utility Functions'!$AG$3:$AG$6,'Utility Functions'!$AH$3:$AH$6)","v":1},{"$f":"valuePL(S36,'Utility Functions'!$AI$3:$AI$6,'Utility Functions'!$AJ$3:$AJ$6)","v":1},{"$f":"valuePL(T36,'Utility Functions'!$AK$3:$AK$8,'Utility Functions'!$AL$3:$AL$8)","v":0.6},{"$f":"valuePL(U36,'Utility Functions'!$AM$3:$AM$5,'Utility Functions'!$AN$3:$AN$5)","v":0},{"$f":"valuePL(V36,'Utility Functions'!$AO$3:$AO$5,'Utility Functions'!$AP$3:$AP$5)","v":1},{"$f":"valuePL(W36,'Utility Functions'!$AQ$3:$AQ$6,'Utility Functions'!$AR$3:$AR$6)","v":0.75},{"$f":"valuePL(X36,'Utility Functions'!$AS$3:$AS$6,'Utility Functions'!$AT$3:$AT$6)","v":0},{"$f":"valuePL(Y36,'Utility Functions'!$AU$3:$AU$6,'Utility Functions'!$AV$3:$AV$6)","v":0.2},{"$f":"valuePL(Z36,'Utility Functions'!$AW$3:$AW$5,'Utility Functions'!$AX$3:$AX$5)","v":1},{"$f":"valuePL(AA36,'Utility Functions'!$AY$3:$AY$6,'Utility Functions'!$AZ$3:$AZ$6)","v":0},{"$f":"valuePL(AB36,'Utility Functions'!$BA$3:$BA$5,'Utility Functions'!$BB$3:$BB$5)","v":0.25},{"$f":"valuePL(AC36,'Utility Functions'!$BC$3:$BC$5,'Utility Functions'!$BD$3:$BD$5)","v":0.25},12.224171189266654,null,12.224171189266656,3.407504522599988,1.7666666666666666,1,2.6,3.45]
["Unweighted",{"$f":"SUMPRODUCT(B46:B80,$B$85:$B$119)","v":2.7136958452282869},{"$f":"SUMPRODUCT(C46:C80,$B$85:$B$119)","v":3.3322448952127779},{"$f":"SUMPRODUCT(D46:D80,$B$85:$B$119)","v":3.5},0.5,0,0.94623655913978499,0.3206831119544592,0.75454545454545452,0.08,0,0.66666666666666663,0.12,2,{"$f":"SUMPRODUCT(O46:O80,$B$85:$B$119)","v":0.5},1.25,1.6,4.2,3.99,2.2000000000000002,0.25,3,2.15,2.6000000000000005,2.8000000000000003,3,3.0999999999999996,3.5,1.25,null,null,"Unweighted",{"$f":"SUMPRODUCT(AG46:AG80,$B$85:$B$119)","v":10.045940740441065},{"$f":"SUMPRODUCT(AH46:AH80,$B$85:$B$119)","v":2.8881317923063654},2.5,13.489999999999998,21.4]
["Weighted",{"$f":"B$81*Sens_Status!I$5","v":8.6060502715496978E-2},{"$f":"C$81*Sens_Status!J$5","v":9.9898892570356515E-2},{"$f":"D$81*Sens_Status!K$5","v":0.10626430094940396},{"$f":"E$81*Sens_Status!L$5","v":1.4789775187675798E-2},{"$f":"F$81*Sens_Status!M$5","v":0},{"$f":"G$81*Sens_Status!N$5","v":1.4047220662637307E-2},{"$f":"H$81*Sens_Status!O$5","v":4.7606556657467337E-3},{"$f":"I$81*Sens_Status!P$5","v":1.9014414799763461E-2},{"$f":"J$81*Sens_Status!Q$5","v":1.9644776152396171E-3},{"$f":"K$81*Sens_Status!R$5","v":0},{"$f":"L$81*Sens_Status!S$5","v":1.4783272011639698E-2},{"$f":"M$81*Sens_Status!T$5","v":2.0092487841956628E-3},{"$f":"N$81*Sens_Status!U$5","v":0.06},{"$f":"O$81*Sens_Status!V$5","v":4.4999999999999998E-2},{"$f":"P$81*Sens_Status!W$5","v":4.9421799881139525E-2},{"$f":"Q$81*Sens_Status!X$5","v":6.9732219364335615E-2},{"$f":"R$81*Sens_Status!Y$5","v":0.209524530894106},{"$f":"S$81*Sens_Status!Z$5","v":0.17433683727563754},{"$f":"T$81*Sens_Status!AA$5","v":6.9967305725116016E-2},{"$f":"U$81*Sens_Status!AB$5","v":7.8740915529962024E-3},{"$f":"V$81*Sens_Status!AC$5","v":0.16336910340369784},{"$f":"W$81*Sens_Status!AD$5","v":8.4435603148888566E-2},{"$f":"X$81*Sens_Status!AE$5","v":0.10919848278140241},{"$f":"Y$81*Sens_Status!AF$5","v":0.14613632868133863},{"$f":"Z$81*Sens_Status!AG$5","v":0.13566816605486093},{"$f":"AA$81*Sens_Status!AH$5","v":0.10862621050028012},{"$f":"AB$81*Sens_Status!AI$5","v":0.13006462575827882},{"$f":"AC$81*Sens_Status!AJ$5","v":4.3319424376277872E-2},null,null,"Weighted for SA",{"$f":"AG81*#REF!","v":{"$error":"#REF!"}},{"$f":"AH81*#REF!","v":{"$error":"#REF!"}},{"$f":"AI81*#REF!","v":{"$error":"#REF!"}},{"$f":"AJ81*#REF!","v":{"$error":"#REF!"}},{"$f":"AK81*#REF!","v":{"$error":"#REF!"}}]
[]
[null,"Decision variable","Benefit","Cost"]
[{"$f":"A2","v":1},0,{"$f":"AD46","v":17.117643866192076},{"$f":"AD2","v":700000}]
[2,0,{"$f":"AD47","v":12.641625800575998},{"$f":"AD3","v":5400000}]
[3,0,11.563541444302563,250000]
[4,0,9.2460291931089209,150000]
[5,0,9.5663279251355373,220000]
[6,0,5.9008471271383875,110000]
[7,0,15.54287399641135,1000000]
[8,0,14.227364688589191,5000000]
[9,0,11.893773577166716,25000]
[10,0,9.01,900000]
[11,0,13.174032258064516,1500000]
[12,1,9.4195802436719873,100000]
[13,0,7.5245670174228056,250000]
[14,0,10.338706637075108,500000]
[15,0,15.150477261414375,800000]
[16,0,15.119696969696969,2000000]
[17,0,10.876550515651747,500000]
[18,1,10.178462998102468,300000]
[19,0,9.3165012474871283,750000]
[20,0,15.091255033092194,1500000]
[21,0,9.5500000000000007,900000]
[22,0,9.471742567994939,750000]
[23,0,9.5321507448123199,1000000]
[24,0,9.4968811881212041,150000]
[25,1,13.870607417804099,250000]
[26,0,11.064076562960208,500000]
[27,0,9.0147596715374529,1200000]
[28,0,12.499282052393189,500000]
[29,0,12.453684519169958,2000000]
[30,1,7.6494228467205527,250000]
[31,1,9.2059990264483247,650000]
[32,0,14.52045942179552,200000]
[33,0,10.246639728724558,400000]
[34,0,13.297748835604624,900000]
[35,0,12.224171189266654,900000]
[null,{"$f":"SUM(B85:B119)","v":5},{"$f":"SUMPRODUCT(C85:C119,B85:B119)","v":50.324072532747437},{"$f":"SUMPRODUCT(B85:B119,D85:D119)","v":1550000}]
[]
[null,null,"Cost constraint"]

{"sheet":"Portfolio_B_Status","index":44,"n_rows":122,"n_cols":37,"rows_kept":122,"cut":false,"hidden":false,"merged":[]}
["Project","manage_species","manage_spatial","manage_uncertainty","manage_currentpractices","manage_adaptivemanagement","pop_a","pop_b","pop_spatialscope","pop_temporalscope","hab_quantity","hab_quality","hab_temporal","ecoprocess_spp","ecoprocess_uncertainty","datasharing","broaderimpacts","exisitingpriorities","partners","leverage","alignment","objhyp","response","targettaxa","surveydesign","stats","datamanagement","budget","timeline","cost"]
[1,9,6.25,2,2,0,186,1054,75,5,0,2,0,0,0,4,0,2,3,0,0,2,3,3,3,2,3,2,2,700000]
[2,3,28.2,1,0,0,0,0,0,0,0,2,0,4,1,0,0,3,3,0,0,2,3,3,3,2,3,2,2,5400000]
[3,8,28.2,2,0,0,0,0,0,0,0,2,0,5,1,0,2,0,0,0,1,2,3,3,3,2,1,2,2,250000]
[4,1,6.25,2,0,0,0,0,0,0,0,2,0,4,1,0,1,3,3,4,0,1,3,3,1,0,0,2,1,150000]
[5,4,3.1,2,0,0,0,0,50,2,0,2,0,0,0,0,1,3,3,4,1,0,3,3,2,0,0,2,1,220000]
[6,10,6.2E-2,2,0,0,0,0,10,2,0,2,0,0,0,0,1,0,3,3,0,0,0,3,0,0,0,2,1,110000]
[7,52,18.8,0,2,0,0,0,85,12,85,8,12,8,1,0,0,3,3,0,0,2,0,1,3,2,2,0,2,1000000]
[8,3,18.8,2,1,1,0,0,14,14,14,8,14,0,0,0,3,1,3,0,0,2,3,3,3,2,0,1,1,5000000]
[9,9,15.6,2,1,0,70,140,0,0,0,2,0,0,0,3,0,3,2,1,0,2,3,3,1,2,1,1,2,25000]
[10,0,0,0,0,0,0,0,0,0,0,2,0,6,2,1,2,3,2,2,0,0,2,3,3,1,1,0,2,900000]
[11,0,0,0,0,0,6,102,52,15,52,8,15,3,1,1,0,3,3,2,2,2,1,3,3,1,2,0,1,1500000]
[12,2,15.6,2,1,0,0,0,0,0,0,2,0,0,0,0,1,3,3,3,0,1,1,3,1,2,1,2,0,100000]
[13,0,0,0,0,0,0,12,39,2,39,8,2,7,1,1,0,3,3,0,0,1,0,1,0,2,1,1,1,250000]
[14,6,15.6,1,1,0,0,0,0,0,0,2,0,6,1,1,0,3,3,0,0,1,1,3,3,1,2,1,1,500000]
[15,23,12.5,2,1,1,0,0,23,3,23,8,3,1,2,2,0,2,3,3,2,0,3,1,1,2,3,2,1,800000]
[16,0,0,0,0,0,0,0,100,15,100,7,15,0,0,3,0,3,3,5,0,2,2,2,1,2,3,2,2,2000000]
[17,2,15.6,2,1,1,58,290,0,0,0,8,3,0,0,0,0,3,2,0,0,2,3,1,0,1,0,2,1,500000]
[18,0,0,0,0,0,0,30,0,0,0,2,0,8,1,1,3,3,3,5,1,2,2,1,2,1,2,1,0,300000]
[19,8,3.125,1,2,0,0,0,0,0,0,2,0,8,2,0,0,2,3,0,0,1,1,3,2,0,1,0,1,750000]
[20,9,15.6,1,2,0,0,435,76,10,76,6,10,8,2,1,0,3,3,3,2,1,0,0,1,2,1,0,1,1500000]
[21,0,0,0,0,0,0,0,0,0,0,2,0,8,2,0,1,3,3,5,1,0,2,3,1,0,3,1,2,900000]
[22,0,0,0,0,0,16,64,0,0,0,2,0,1,2,4,2,2,3,5,0,1,2,1,0,2,1,2,1,750000]
[23,9,18.8,2,0,0,0,0,0,0,0,2,0,0,0,3,0,3,3,5,0,2,1,2,1,1,1,0,1,1000000]
[24,5,6.25,2,0,0,0,0,0,0,0,2,0,0,0,0,0,3,3,5,0,0,3,1,3,2,1,0,2,150000]
[25,9,18.8,2,0,0,176,308,0,0,0,2,0,8,1,2,2,3,3,0,0,2,1,3,2,1,1,2,2,250000]
[26,17,18.8,2,1,0,0,0,0,0,0,2,0,0,0,3,0,3,3,4,0,2,1,0,2,0,1,2,2,500000]
[27,0,6.25,2,0,0,0,0,0,0,80,2,5,0,0,2,2,3,3,5,0,1,2,3,1,0,0,0,0,1200000]
[28,3,6.25,2,0,1,0,0,0,0,0,4,5,0,0,4,0,3,3,4,0,2,3,3,1,0,2,2,1,500000]
[29,9,12.5,2,1,0,0,0,15,12,15,8,12,0,0,1,0,3,3,4,0,2,1,0,2,1,1,1,2,2000000]
[30,33,18.8,2,0,0,0,0,0,0,0,4,2,0,0,0,0,1,1,0,0,0,3,1,2,0,2,2,0,250000]
[31,4,18.8,1,0,0,0,0,65,4,0,4,4,0,0,2,0,3,2,3,0,1,0,1,1,2,2,1,1,650000]
[32,5,3.125,2,2,1,6,102,40,16,40,8,16,0,0,2,3,3,0,4,0,0,2,1,2,1,0,2,1,200000]
[33,14,18.8,2,1,0,0,0,0,0,0,5,0,0,0,2,0,3,2,0,0,1,3,0,2,2,3,0,0,400000]
[34,0,0,0,0,0,0,12,100,15,100,8,15,0,0,2,0,3,3,4,0,2,3,3,0,2,2,1,0,900000]
[35,8,9.4,1,1,1,0,0,0,0,100,6,5,8,0,0,0,3,3,3,0,2,2,0,1,2,0,1,1,900000]
["CV",{"$f":"_xlfn.STDEV.S(B2:B36)/AVERAGE(B2:B36)","v":1.383842854444886},{"$f":"_xlfn.STDEV.S(C2:C36)/AVERAGE(C2:C36)","v":0.84395823753626376},{"$f":"_xlfn.STDEV.S(D2:D36)/AVERAGE(D2:D36)","v":0.65948586466528381},{"$f":"_xlfn.STDEV.S(E2:E36)/AVERAGE(E2:E36)","v":1.2933654230908831},2.2305806858480666,2.9881459898804135,2.7250501152884543,1.5394659205075842,1.5790297611729722,1.6828143944790142,0.63288342730791625,1.4346340567392073,1.2744250477591585,1.2909944487358058,1.043011114951035,1.4910544805781871,0.32582327651393111,0.30721159062514791,0.8219511329380369,2.1760730956581078,0.64975875258290616,0.58618247649425104,0.61083323417736113,0.63333947951472869,0.68629571860885286,0.76505300516434493,0.69428102652373402,0.60312027652595823]
["sd",{"$f":"_xlfn.STDEV.S(B2:B36)","v":10.477667326511279}]
["mean",{"$f":"AVERAGE(B2:B36)","v":7.5714285714285712}]
[null,{"$f":"B1","v":"manage_species"},{"$f":"C1","v":"manage_spatial"},"manage_uncertainty","manage_currentpractices","manage_adaptivemanagement","pop_a","pop_b","pop_spatialscope","pop_temporalscope","hab_quantity","hab_quality","hab_temporal","ecoprocess_spp","ecoprocess_uncertainty","datasharing","broaderimpacts","exisitingpriorities","partners","leverage","alignment","objhyp","response","targettaxa","surveydesign","stats","datamanagement","budget","timeline"]
[null,"Metric 1","Metric 2","Metric 3","Metric 4","Metric 5","Metric 6a","Metric 6b","Metric 7","Metric 8","Metric 9","Metric 10","Metric 11","Metric 12","Metric 13","Metric 14","Metric 15","Metric 16","Metric 17","Metric 18","Metric 19","Metric 20","Metric 21","Metric 22","Metric 23","Metric 24","Metric 25","Metric 26","Metric 27"]
["Weights",0.03,0.03,0.03,0.03,0.04,1.4999999999999999E-2,1.4999999999999999E-2,0.03,0.02,0.02,0.02,0.02,0.03,0.09,0.04,0.04,0.05,0.05,0.03,0.03,0.05,0.04,0.04,0.05,0.05,0.04,0.04,0.03]
[]
[null,"Unweighted"]
["Project",null,null,null,null,null,null,null,null,null,null,null,null,null,null,null,null,null,null,null,null,null,null,null,null,null,null,null,null,"Unweighted total",null,"Unweighted total","management","status","ecol_proc","integration","rigor"]
[{"$f":"A2","v":1},{"$f":"valueE(B2,'Utility Functions'!$B$3,'Utility Functions'!$B$4,'Utility Functions'!$B$5,'Utility Functions'!$B$6)","v":0.83470237647280454},{"$f":"valueE(C2,'Utility Functions'!$D$3,'Utility Functions'!$D$4,'Utility Functions'!$D$5,'Utility Functions'!$D$6)","v":0.46475967153745396},{"$f":"valuePL(D2,'Utility Functions'!$E$3:$E$5,'Utility Functions'!$F$3:$F$5)","v":1},{"$f":"valuePL(E2,'Utility Functions'!$G$3:$G$5,'Utility Functions'!$H$3:$H$5)","v":1},{"$f":"valuePL(F2,'Utility Functions'!$I$3:$I$4,'Utility Functions'!$J$3:$J$5)","v":0},{"$f":"valueE(G2,'Utility Functions'!$L$3,'Utility Functions'!$L$4,'Utility Functions'!$L$5,'Utility Functions'!$L$6)","v":1},{"$f":"valueE(H2,'Utility Functions'!$N$3,'Utility Functions'!$N$4,'Utility Functions'!$N$5,'Utility Functions'!$N$6)","v":1},{"$f":"valuePL(I2,'Utility Functions'!$O$3:$O$6,'Utility Functions'!$P$3:$P$6)","v":0.91818181818181821},{"$f":"valuePL(J2,'Utility Functions'!$Q$3:$Q$6,'Utility Functions'!$R$3:$R$6)","v":0.1},{"$f":"valuePL(K2,'Utility Functions'!$S$3:$S$7,'Utility Functions'!$T$3:$T$7)","v":0},{"$f":"valueE(L2,'Utility Functions'!$V$3,'Utility Functions'!$V$4,'Utility Functions'!$V$5,'Utility Functions'!$V$6)","v":0},{"$f":"valuePL(M2,'Utility Functions'!$W$3:$W$6,'Utility Functions'!$X$3:$X$6)","v":0},{"$f":"valueE(N2,'Utility Functions'!$Z$3,'Utility Functions'!$Z$4,'Utility Functions'!$Z$5,'Utility Functions'!$Z$6)","v":0},{"$f":"valuePL(O2,'Utility Functions'!$AA$3:$AA$5,'Utility Functions'!$AB$3:$AB$5)","v":0},{"$f":"valuePL(P2,'Utility Functions'!$AC$3:$AC$7,'Utility Functions'!$AD$3:$AD$7)","v":1},{"$f":"valuePL(Q2,'Utility Functions'!$AE$3:$AE$6,'Utility Functions'!$AF$3:$AF$6)","v":0},{"$f":"valuePL(R2,'Utility Functions'!$AG$3:$AG$6,'Utility Functions'!$AH$3:$AH$6)","v":0.8},{"$f":"valuePL(S2,'Utility Functions'!$AI$3:$AI$6,'Utility Functions'!$AJ$3:$AJ$6)","v":1},{"$f":"valuePL(T2,'Utility Functions'!$AK$3:$AK$8,'Utility Functions'!$AL$3:$AL$8)","v":0},{"$f":"valuePL(U2,'Utility Functions'!$AM$3:$AM$5,'Utility Functions'!$AN$3:$AN$5)","v":0},{"$f":"valuePL(V2,'Utility Functions'!$AO$3:$AO$5,'Utility Functions'!$AP$3:$AP$5)","v":1},{"$f":"valuePL(W2,'Utility Functions'!$AQ$3:$AQ$6,'Utility Functions'!$AR$3:$AR$6)","v":1},{"$f":"valuePL(X2,'Utility Functions'!$AS$3:$AS$6,'Utility Functions'!$AT$3:$AT$6)","v":1},{"$f":"valuePL(Y2,'Utility Functions'!$AU$3:$AU$6,'Utility Functions'!$AV$3:$AV$6)","v":1},{"$f":"valuePL(Z2,'Utility Functions'!$AW$3:$AW$5,'Utility Functions'!$AX$3:$AX$5)","v":1},{"$f":"valuePL(AA2,'Utility Functions'!$AY$3:$AY$6,'Utility Functions'!$AZ$3:$AZ$6)","v":1},{"$f":"valuePL(AB2,'Utility Functions'!$BA$3:$BA$5,'Utility Functions'!$BB$3:$BB$5)","v":1},{"$f":"valuePL(AC2,'Utility Functions'!$BC$3:$BC$5,'Utility Functions'!$BD$3:$BD$5)","v":1},{"$f":"SUM(B46:AC46)","v":17.117643866192076},null,{"$f":"SUM(AG46:AK46)","v":17.117643866192076},{"$f":"SUM(B46:F46)","v":3.2994620480102586},{"$f":"SUM(G46:M46)","v":3.0181818181818181},{"$f":"SUM(N46:O46)","v":0},{"$f":"SUM(P46:U46)","v":2.8},{"$f":"SUM(V46:AC46)","v":8}]
[2,{"$f":"valueE(B3,'Utility Functions'!$B$3,'Utility Functions'!$B$4,'Utility Functions'!$B$5,'Utility Functions'!$B$6)","v":0.4511890475224023},{"$f":"valueE(C3,'Utility Functions'!$D$3,'Utility Functions'!$D$4,'Utility Functions'!$D$5,'Utility Functions'!$D$6)","v":0.94043675305359531},{"$f":"valuePL(D3,'Utility Functions'!$E$3:$E$5,'Utility Functions'!$F$3:$F$5)","v":0.5},{"$f":"valuePL(E3,'Utility Functions'!$G$3:$G$5,'Utility Functions'!$H$3:$H$5)","v":0},{"$f":"valuePL(F3,'Utility Functions'!$I$3:$I$4,'Utility Functions'!$J$3:$J$5)","v":0},{"$f":"valueE(G3,'Utility Functions'!$L$3,'Utility Functions'!$L$4,'Utility Functions'!$L$5,'Utility Functions'!$L$6)","v":0},{"$f":"valueE(H3,'Utility Functions'!$N$3,'Utility Functions'!$N$4,'Utility Functions'!$N$5,'Utility Functions'!$N$6)","v":0},{"$f":"valuePL(I3,'Utility Functions'!$O$3:$O$6,'Utility Functions'!$P$3:$P$6)","v":0},{"$f":"valuePL(J3,'Utility Functions'!$Q$3:$Q$6,'Utility Functions'!$R$3:$R$6)","v":0},{"$f":"valuePL(K3,'Utility Functions'!$S$3:$S$7,'Utility Functions'!$T$3:$T$7)","v":0},{"$f":"valueE(L3,'Utility Functions'!$V$3,'Utility Functions'!$V$4,'Utility Functions'!$V$5,'Utility Functions'!$V$6)","v":0},{"$f":"valuePL(M3,'Utility Functions'!$W$3:$W$6,'Utility Functions'!$X$3:$X$6)","v":0},{"$f":"valueE(N3,'Utility Functions'!$Z$3,'Utility Functions'!$Z$4,'Utility Functions'!$Z$5,'Utility Functions'!$Z$6)","v":0.5},{"$f":"valuePL(O3,'Utility Functions'!$AA$3:$AA$5,'Utility Functions'!$AB$3:$AB$5)","v":0.25},{"$f":"valuePL(P3,'Utility Functions'!$AC$3:$AC$7,'Utility Functions'!$AD$3:$AD$7)","v":0},{"$f":"valuePL(Q3,'Utility Functions'!$AE$3:$AE$6,'Utility Functions'!$AF$3:$AF$6)","v":0},{"$f":"valuePL(R3,'Utility Functions'!$AG$3:$AG$6,'Utility Functions'!$AH$3:$AH$6)","v":1},{"$f":"valuePL(S3,'Utility Functions'!$AI$3:$AI$6,'Utility Functions'!$AJ$3:$AJ$6)","v":1},{"$f":"valuePL(T3,'Utility Functions'!$AK$3:$AK$8,'Utility Functions'!$AL$3:$AL$8)","v":0},{"$f":"valuePL(U3,'Utility Functions'!$AM$3:$AM$5,'Utility Functions'!$AN$3:$AN$5)","v":0},{"$f":"valuePL(V3,'Utility Functions'!$AO$3:$AO$5,'Utility Functions'!$AP$3:$AP$5)","v":1},{"$f":"valuePL(W3,'Utility Functions'!$AQ$3:$AQ$6,'Utility Functions'!$AR$3:$AR$6)","v":1},{"$f":"valuePL(X3,'Utility Functions'!$AS$3:$AS$6,'Utility Functions'!$AT$3:$AT$6)","v":1},{"$f":"valuePL(Y3,'Utility Functions'!$AU$3:$AU$6,'Utility Functions'!$AV$3:$AV$6)","v":1},{"$f":"valuePL(Z3,'Utility Functions'!$AW$3:$AW$5,'Utility Functions'!$AX$3:$AX$5)","v":1},{"$f":"valuePL(AA3,'Utility Functions'!$AY$3:$AY$6,'Utility Functions'!$AZ$3:$AZ$6)","v":1},{"$f":"valuePL(AB3,'Utility Functions'!$BA$3:$BA$5,'Utility Functions'!$BB$3:$BB$5)","v":1},{"$f":"valuePL(AC3,'Utility Functions'!$BC$3:$BC$5,'Utility Functions'!$BD$3:$BD$5)","v":1},{"$f":"SUM(B47:AC47)","v":12.641625800575998},null,{"$f":"SUM(AG47:AK47)","v":12.641625800575998},{"$f":"SUM(B47:F47)","v":1.8916258005759976},{"$f":"SUM(G47:M47)","v":0},{"$f":"SUM(N47:O47)","v":0.75},{"$f":"SUM(P47:U47)","v":2},{"$f":"SUM(V47:AC47)","v":8}]
[3,{"$f":"valueE(B4,'Utility Functions'!$B$3,'Utility Functions'!$B$4,'Utility Functions'!$B$5,'Utility Functions'!$B$6)","v":0.79810469124896843},{"$f":"valueE(C4,'Utility Functions'!$D$3,'Utility Functions'!$D$4,'Utility Functions'!$D$5,'Utility Functions'!$D$6)","v":0.94043675305359531},{"$f":"valuePL(D4,'Utility Functions'!$E$3:$E$5,'Utility Functions'!$F$3:$F$5)","v":1},{"$f":"valuePL(E4,'Utility Functions'!$G$3:$G$5,'Utility Functions'!$H$3:$H$5)","v":0},{"$f":"valuePL(F4,'Utility Functions'!$I$3:$I$4,'Utility Functions'!$J$3:$J$5)","v":0},{"$f":"valueE(G4,'Utility Functions'!$L$3,'Utility Functions'!$L$4,'Utility Functions'!$L$5,'Utility Functions'!$L$6)","v":0},{"$f":"valueE(H4,'Utility Functions'!$N$3,'Utility Functions'!$N$4,'Utility Functions'!$N$5,'Utility Functions'!$N$6)","v":0},{"$f":"valuePL(I4,'Utility Functions'!$O$3:$O$6,'Utility Functions'!$P$3:$P$6)","v":0},{"$f":"valuePL(J4,'Utility Functions'!$Q$3:$Q$6,'Utility Functions'!$R$3:$R$6)","v":0},{"$f":"valuePL(K4,'Utility Functions'!$S$3:$S$7,'Utility Functions'!$T$3:$T$7)","v":0},{"$f":"valueE(L4,'Utility Functions'!$V$3,'Utility Functions'!$V$4,'Utility Functions'!$V$5,'Utility Functions'!$V$6)","v":0},{"$f":"valuePL(M4,'Utility Functions'!$W$3:$W$6,'Utility Functions'!$X$3:$X$6)","v":0},{"$f":"valueE(N4,'Utility Functions'!$Z$3,'Utility Functions'!$Z$4,'Utility Functions'!$Z$5,'Utility Functions'!$Z$6)","v":0.625},{"$f":"valuePL(O4,'Utility Functions'!$AA$3:$AA$5,'Utility Functions'!$AB$3:$AB$5)","v":0.25},{"$f":"valuePL(P4,'Utility Functions'!$AC$3:$AC$7,'Utility Functions'!$AD$3:$AD$7)","v":0},{"$f":"valuePL(Q4,'Utility Functions'!$AE$3:$AE$6,'Utility Functions'!$AF$3:$AF$6)","v":0.5},{"$f":"valuePL(R4,'Utility Functions'!$AG$3:$AG$6,'Utility Functions'!$AH$3:$AH$6)","v":0},{"$f":"valuePL(S4,'Utility Functions'!$AI$3:$AI$6,'Utility Functions'!$AJ$3:$AJ$6)","v":0},{"$f":"valuePL(T4,'Utility Functions'!$AK$3:$AK$8,'Utility Functions'!$AL$3:$AL$8)","v":0},{"$f":"valuePL(U4,'Utility Functions'!$AM$3:$AM$5,'Utility Functions'!$AN$3:$AN$5)","v":0.25},{"$f":"valuePL(V4,'Utility Functions'!$AO$3:$AO$5,'Utility Functions'!$AP$3:$AP$5)","v":1},{"$f":"valuePL(W4,'Utility Functions'!$AQ$3:$AQ$6,'Utility Functions'!$AR$3:$AR$6)","v":1},{"$f":"valuePL(X4,'Utility Functions'!$AS$3:$AS$6,'Utility Functions'!$AT$3:$AT$6)","v":1},{"$f":"valuePL(Y4,'Utility Functions'!$AU$3:$AU$6,'Utility Functions'!$AV$3:$AV$6)","v":1},{"$f":"valuePL(Z4,'Utility Functions'!$AW$3:$AW$5,'Utility Functions'!$AX$3:$AX$5)","v":1},{"$f":"valuePL(AA4,'Utility Functions'!$AY$3:$AY$6,'Utility Functions'!$AZ$3:$AZ$6)","v":0.2},{"$f":"valuePL(AB4,'Utility Functions'!$BA$3:$BA$5,'Utility Functions'!$BB$3:$BB$5)","v":1},{"$f":"valuePL(AC4,'Utility Functions'!$BC$3:$BC$5,'Utility Functions'!$BD$3:$BD$5)","v":1},11.563541444302563,null,11.563541444302565,2.7385414443025637,0,0.875,0.75,7.2]
[4,{"$f":"valueE(B5,'Utility Functions'!$B$3,'Utility Functions'!$B$4,'Utility Functions'!$B$5,'Utility Functions'!$B$6)","v":0.1812695215714665},{"$f":"valueE(C5,'Utility Functions'!$D$3,'Utility Functions'!$D$4,'Utility Functions'!$D$5,'Utility Functions'!$D$6)","v":0.46475967153745396},{"$f":"valuePL(D5,'Utility Functions'!$E$3:$E$5,'Utility Functions'!$F$3:$F$5)","v":1},{"$f":"valuePL(E5,'Utility Functions'!$G$3:$G$5,'Utility Functions'!$H$3:$H$5)","v":0},{"$f":"valuePL(F5,'Utility Functions'!$I$3:$I$4,'Utility Functions'!$J$3:$J$5)","v":0},{"$f":"valueE(G5,'Utility Functions'!$L$3,'Utility Functions'!$L$4,'Utility Functions'!$L$5,'Utility Functions'!$L$6)","v":0},{"$f":"valueE(H5,'Utility Functions'!$N$3,'Utility Functions'!$N$4,'Utility Functions'!$N$5,'Utility Functions'!$N$6)","v":0},{"$f":"valuePL(I5,'Utility Functions'!$O$3:$O$6,'Utility Functions'!$P$3:$P$6)","v":0},{"$f":"valuePL(J5,'Utility Functions'!$Q$3:$Q$6,'Utility Functions'!$R$3:$R$6)","v":0},{"$f":"valuePL(K5,'Utility Functions'!$S$3:$S$7,'Utility Functions'!$T$3:$T$7)","v":0},{"$f":"valueE(L5,'Utility Functions'!$V$3,'Utility Functions'!$V$4,'Utility Functions'!$V$5,'Utility Functions'!$V$6)","v":0},{"$f":"valuePL(M5,'Utility Functions'!$W$3:$W$6,'Utility Functions'!$X$3:$X$6)","v":0},{"$f":"valueE(N5,'Utility Functions'!$Z$3,'Utility Functions'!$Z$4,'Utility Functions'!$Z$5,'Utility Functions'!$Z$6)","v":0.5},{"$f":"valuePL(O5,'Utility Functions'!$AA$3:$AA$5,'Utility Functions'!$AB$3:$AB$5)","v":0.25},{"$f":"valuePL(P5,'Utility Functions'!$AC$3:$AC$7,'Utility Functions'!$AD$3:$AD$7)","v":0},{"$f":"valuePL(Q5,'Utility Functions'!$AE$3:$AE$6,'Utility Functions'!$AF$3:$AF$6)","v":0.1},{"$f":"valuePL(R5,'Utility Functions'!$AG$3:$AG$6,'Utility Functions'!$AH$3:$AH$6)","v":1},{"$f":"valuePL(S5,'Utility Functions'!$AI$3:$AI$6,'Utility Functions'!$AJ$3:$AJ$6)","v":1},{"$f":"valuePL(T5,'Utility Functions'!$AK$3:$AK$8,'Utility Functions'!$AL$3:$AL$8)","v":0.8},{"$f":"valuePL(U5,'Utility Functions'!$AM$3:$AM$5,'Utility Functions'!$AN$3:$AN$5)","v":0},{"$f":"valuePL(V5,'Utility Functions'!$AO$3:$AO$5,'Utility Functions'!$AP$3:$AP$5)","v":0.5},{"$f":"valuePL(W5,'Utility Functions'!$AQ$3:$AQ$6,'Utility Functions'!$AR$3:$AR$6)","v":1},{"$f":"valuePL(X5,'Utility Functions'!$AS$3:$AS$6,'Utility Functions'!$AT$3:$AT$6)","v":1},{"$f":"valuePL(Y5,'Utility Functions'!$AU$3:$AU$6,'Utility Functions'!$AV$3:$AV$6)","v":0.2},{"$f":"valuePL(Z5,'Utility Functions'!$AW$3:$AW$5,'Utility Functions'!$AX$3:$AX$5)","v":0},{"$f":"valuePL(AA5,'Utility Functions'!$AY$3:$AY$6,'Utility Functions'!$AZ$3:$AZ$6)","v":0},{"$f":"valuePL(AB5,'Utility Functions'!$BA$3:$BA$5,'Utility Functions'!$BB$3:$BB$5)","v":1},{"$f":"valuePL(AC5,'Utility Functions'!$BC$3:$BC$5,'Utility Functions'!$BD$3:$BD$5)","v":0.25},9.2460291931089209,null,9.2460291931089209,1.6460291931089204,0,0.75,2.9000000000000004,3.95]
[5,{"$f":"valueE(B6,'Utility Functions'!$B$3,'Utility Functions'!$B$4,'Utility Functions'!$B$5,'Utility Functions'!$B$6)","v":0.55067187023002029},{"$f":"valueE(C6,'Utility Functions'!$D$3,'Utility Functions'!$D$4,'Utility Functions'!$D$5,'Utility Functions'!$D$6)","v":0.26656514581460788},{"$f":"valuePL(D6,'Utility Functions'!$E$3:$E$5,'Utility Functions'!$F$3:$F$5)","v":1},{"$f":"valuePL(E6,'Utility Functions'!$G$3:$G$5,'Utility Functions'!$H$3:$H$5)","v":0},{"$f":"valuePL(F6,'Utility Functions'!$I$3:$I$4,'Utility Functions'!$J$3:$J$5)","v":0},{"$f":"valueE(G6,'Utility Functions'!$L$3,'Utility Functions'!$L$4,'Utility Functions'!$L$5,'Utility Functions'!$L$6)","v":0},{"$f":"valueE(H6,'Utility Functions'!$N$3,'Utility Functions'!$N$4,'Utility Functions'!$N$5,'Utility Functions'!$N$6)","v":0},{"$f":"valuePL(I6,'Utility Functions'!$O$3:$O$6,'Utility Functions'!$P$3:$P$6)","v":0.50909090909090915},{"$f":"valuePL(J6,'Utility Functions'!$Q$3:$Q$6,'Utility Functions'!$R$3:$R$6)","v":0.04},{"$f":"valuePL(K6,'Utility Functions'!$S$3:$S$7,'Utility Functions'!$T$3:$T$7)","v":0},{"$f":"valueE(L6,'Utility Functions'!$V$3,'Utility Functions'!$V$4,'Utility Functions'!$V$5,'Utility Functions'!$V$6)","v":0},{"$f":"valuePL(M6,'Utility Functions'!$W$3:$W$6,'Utility Functions'!$X$3:$X$6)","v":0},{"$f":"valueE(N6,'Utility Functions'!$Z$3,'Utility Functions'!$Z$4,'Utility Functions'!$Z$5,'Utility Functions'!$Z$6)","v":0},{"$f":"valuePL(O6,'Utility Functions'!$AA$3:$AA$5,'Utility Functions'!$AB$3:$AB$5)","v":0},{"$f":"valuePL(P6,'Utility Functions'!$AC$3:$AC$7,'Utility Functions'!$AD$3:$AD$7)","v":0},{"$f":"valuePL(Q6,'Utility Functions'!$AE$3:$AE$6,'Utility Functions'!$AF$3:$AF$6)","v":0.1},{"$f":"valuePL(R6,'Utility Functions'!$AG$3:$AG$6,'Utility Functions'!$AH$3:$AH$6)","v":1},{"$f":"valuePL(S6,'Utility Functions'!$AI$3:$AI$6,'Utility Functions'!$AJ$3:$AJ$6)","v":1},{"$f":"valuePL(T6,'Utility Functions'!$AK$3:$AK$8,'Utility Functions'!$AL$3:$AL$8)","v":0.8},{"$f":"valuePL(U6,'Utility Functions'!$AM$3:$AM$5,'Utility Functions'!$AN$3:$AN$5)","v":0.25},{"$f":"valuePL(V6,'Utility Functions'!$AO$3:$AO$5,'Utility Functions'!$AP$3:$AP$5)","v":0},{"$f":"valuePL(W6,'Utility Functions'!$AQ$3:$AQ$6,'Utility Functions'!$AR$3:$AR$6)","v":1},{"$f":"valuePL(X6,'Utility Functions'!$AS$3:$AS$6,'Utility Functions'!$AT$3:$AT$6)","v":1},{"$f":"valuePL(Y6,'Utility Functions'!$AU$3:$AU$6,'Utility Functions'!$AV$3:$AV$6)","v":0.8},{"$f":"valuePL(Z6,'Utility Functions'!$AW$3:$AW$5,'Utility Functions'!$AX$3:$AX$5)","v":0},{"$f":"valuePL(AA6,'Utility Functions'!$AY$3:$AY$6,'Utility Functions'!$AZ$3:$AZ$6)","v":0},{"$f":"valuePL(AB6,'Utility Functions'!$BA$3:$BA$5,'Utility Functions'!$BB$3:$BB$5)","v":1},{"$f":"valuePL(AC6,'Utility Functions'!$BC$3:$BC$5,'Utility Functions'!$BD$3:$BD$5)","v":0.25},9.5663279251355373,null,9.5663279251355391,1.8172370160446283,0.54909090909090918,0,3.1500000000000004,4.05]
[6,{"$f":"valueE(B7,'Utility Functions'!$B$3,'Utility Functions'!$B$4,'Utility Functions'!$B$5,'Utility Functions'!$B$6)","v":0.86466602685702687},{"$f":"valueE(C7,'Utility Functions'!$D$3,'Utility Functions'!$D$4,'Utility Functions'!$D$5,'Utility Functions'!$D$6)","v":6.1811002813601471E-3},{"$f":"valuePL(D7,'Utility Functions'!$E$3:$E$5,'Utility Functions'!$F$3:$F$5)","v":1},{"$f":"valuePL(E7,'Utility Functions'!$G$3:$G$5,'Utility Functions'!$H$3:$H$5)","v":0},{"$f":"valuePL(F7,'Utility Functions'!$I$3:$I$4,'Utility Functions'!$J$3:$J$5)","v":0},{"$f":"valueE(G7,'Utility Functions'!$L$3,'Utility Functions'!$L$4,'Utility Functions'!$L$5,'Utility Functions'!$L$6)","v":0},{"$f":"valueE(H7,'Utility Functions'!$N$3,'Utility Functions'!$N$4,'Utility Functions'!$N$5,'Utility Functions'!$N$6)","v":0},{"$f":"valuePL(I7,'Utility Functions'!$O$3:$O$6,'Utility Functions'!$P$3:$P$6)","v":0.04},{"$f":"valuePL(J7,'Utility Functions'!$Q$3:$Q$6,'Utility Functions'!$R$3:$R$6)","v":0.04},{"$f":"valuePL(K7,'Utility Functions'!$S$3:$S$7,'Utility Functions'!$T$3:$T$7)","v":0},{"$f":"valueE(L7,'Utility Functions'!$V$3,'Utility Functions'!$V$4,'Utility Functions'!$V$5,'Utility Functions'!$V$6)","v":0},{"$f":"valuePL(M7,'Utility Functions'!$W$3:$W$6,'Utility Functions'!$X$3:$X$6)","v":0},{"$f":"valueE(N7,'Utility Functions'!$Z$3,'Utility Functions'!$Z$4,'Utility Functions'!$Z$5,'Utility Functions'!$Z$6)","v":0},{"$f":"valuePL(O7,'Utility Functions'!$AA$3:$AA$5,'Utility Functions'!$AB$3:$AB$5)","v":0},{"$f":"valuePL(P7,'Utility Functions'!$AC$3:$AC$7,'Utility Functions'!$AD$3:$AD$7)","v":0},{"$f":"valuePL(Q7,'Utility Functions'!$AE$3:$AE$6,'Utility Functions'!$AF$3:$AF$6)","v":0.1},{"$f":"valuePL(R7,'Utility Functions'!$AG$3:$AG$6,'Utility Functions'!$AH$3:$AH$6)","v":0},{"$f":"valuePL(S7,'Utility Functions'!$AI$3:$AI$6,'Utility Functions'!$AJ$3:$AJ$6)","v":1},{"$f":"valuePL(T7,'Utility Functions'!$AK$3:$AK$8,'Utility Functions'!$AL$3:$AL$8)","v":0.6},{"$f":"valuePL(U7,'Utility Functions'!$AM$3:$AM$5,'Utility Functions'!$AN$3:$AN$5)","v":0},{"$f":"valuePL(V7,'Utility Functions'!$AO$3:$AO$5,'Utility Functions'!$AP$3:$AP$5)","v":0},{"$f":"valuePL(W7,'Utility Functions'!$AQ$3:$AQ$6,'Utility Functions'!$AR$3:$AR$6)","v":0},{"$f":"valuePL(X7,'Utility Functions'!$AS$3:$AS$6,'Utility Functions'!$AT$3:$AT$6)","v":1},{"$f":"valuePL(Y7,'Utility Functions'!$AU$3:$AU$6,'Utility Functions'!$AV$3:$AV$6)","v":0},{"$f":"valuePL(Z7,'Utility Functions'!$AW$3:$AW$5,'Utility Functions'!$AX$3:$AX$5)","v":0},{"$f":"valuePL(AA7,'Utility Functions'!$AY$3:$AY$6,'Utility Functions'!$AZ$3:$AZ$6)","v":0},{"$f":"valuePL(AB7,'Utility Functions'!$BA$3:$BA$5,'Utility Functions'!$BB$3:$BB$5)","v":1},{"$f":"valuePL(AC7,'Utility Functions'!$BC$3:$BC$5,'Utility Functions'!$BD$3:$BD$5)","v":0.25},5.9008471271383875,null,5.9008471271383875,1.8708471271383869,0.08,0,1.7000000000000002,2.25]
[7,{"$f":"valueE(B8,'Utility Functions'!$B$3,'Utility Functions'!$B$4,'Utility Functions'!$B$5,'Utility Functions'!$B$6)","v":0.99997108261728973},{"$f":"valueE(C8,'Utility Functions'!$D$3,'Utility Functions'!$D$4,'Utility Functions'!$D$5,'Utility Functions'!$D$6)","v":0.84744836833951609},{"$f":"valuePL(D8,'Utility Functions'!$E$3:$E$5,'Utility Functions'!$F$3:$F$5)","v":0},{"$f":"valuePL(E8,'Utility Functions'!$G$3:$G$5,'Utility Functions'!$H$3:$H$5)","v":1},{"$f":"valuePL(F8,'Utility Functions'!$I$3:$I$4,'Utility Functions'!$J$3:$J$5)","v":0},{"$f":"valueE(G8,'Utility Functions'!$L$3,'Utility Functions'!$L$4,'Utility Functions'!$L$5,'Utility Functions'!$L$6)","v":0},{"$f":"valueE(H8,'Utility Functions'!$N$3,'Utility Functions'!$N$4,'Utility Functions'!$N$5,'Utility Functions'!$N$6)","v":0},{"$f":"valuePL(I8,'Utility Functions'!$O$3:$O$6,'Utility Functions'!$P$3:$P$6)","v":1},{"$f":"valuePL(J8,'Utility Functions'!$Q$3:$Q$6,'Utility Functions'!$R$3:$R$6)","v":0.67272727272727273},{"$f":"valuePL(K8,'Utility Functions'!$S$3:$S$7,'Utility Functions'!$T$3:$T$7)","v":1},{"$f":"valueE(L8,'Utility Functions'!$V$3,'Utility Functions'!$V$4,'Utility Functions'!$V$5,'Utility Functions'!$V$6)","v":1},{"$f":"valuePL(M8,'Utility Functions'!$W$3:$W$6,'Utility Functions'!$X$3:$X$6)","v":0.67272727272727273},{"$f":"valueE(N8,'Utility Functions'!$Z$3,'Utility Functions'!$Z$4,'Utility Functions'!$Z$5,'Utility Functions'!$Z$6)","v":1},{"$f":"valuePL(O8,'Utility Functions'!$AA$3:$AA$5,'Utility Functions'!$AB$3:$AB$5)","v":0.25},{"$f":"valuePL(P8,'Utility Functions'!$AC$3:$AC$7,'Utility Functions'!$AD$3:$AD$7)","v":0},{"$f":"valuePL(Q8,'Utility Functions'!$AE$3:$AE$6,'Utility Functions'!$AF$3:$AF$6)","v":0},{"$f":"valuePL(R8,'Utility Functions'!$AG$3:$AG$6,'Utility Functions'!$AH$3:$AH$6)","v":1},{"$f":"valuePL(S8,'Utility Functions'!$AI$3:$AI$6,'Utility Functions'!$AJ$3:$AJ$6)","v":1},{"$f":"valuePL(T8,'Utility Functions'!$AK$3:$AK$8,'Utility Functions'!$AL$3:$AL$8)","v":0},{"$f":"valuePL(U8,'Utility Functions'!$AM$3:$AM$5,'Utility Functions'!$AN$3:$AN$5)","v":0},{"$f":"valuePL(V8,'Utility Functions'!$AO$3:$AO$5,'Utility Functions'!$AP$3:$AP$5)","v":1},{"$f":"valuePL(W8,'Utility Functions'!$AQ$3:$AQ$6,'Utility Functions'!$AR$3:$AR$6)","v":0},{"$f":"valuePL(X8,'Utility Functions'!$AS$3:$AS$6,'Utility Functions'!$AT$3:$AT$6)","v":0.2},{"$f":"valuePL(Y8,'Utility Functions'!$AU$3:$AU$6,'Utility Functions'!$AV$3:$AV$6)","v":1},{"$f":"valuePL(Z8,'Utility Functions'!$AW$3:$AW$5,'Utility Functions'!$AX$3:$AX$5)","v":1},{"$f":"valuePL(AA8,'Utility Functions'!$AY$3:$AY$6,'Utility Functions'!$AZ$3:$AZ$6)","v":0.89999999999999991},{"$f":"valuePL(AB8,'Utility Functions'!$BA$3:$BA$5,'Utility Functions'!$BB$3:$BB$5)","v":0},{"$f":"valuePL(AC8,'Utility Functions'!$BC$3:$BC$5,'Utility Functions'!$BD$3:$BD$5)","v":1},15.54287399641135,null,15.54287399641135,2.8474194509568056,4.3454545454545457,1.25,2,5.0999999999999996]
[8,{"$f":"valueE(B9,'Utility Functions'!$B$3,'Utility Functions'!$B$4,'Utility Functions'!$B$5,'Utility Functions'!$B$6)","v":0.4511890475224023},{"$f":"valueE(C9,'Utility Functions'!$D$3,'Utility Functions'!$D$4,'Utility Functions'!$D$5,'Utility Functions'!$D$6)","v":0.84744836833951609},{"$f":"valuePL(D9,'Utility Functions'!$E$3:$E$5,'Utility Functions'!$F$3:$F$5)","v":1},{"$f":"valuePL(E9,'Utility Functions'!$G$3:$G$5,'Utility Functions'!$H$3:$H$5)","v":0.5},{"$f":"valuePL(F9,'Utility Functions'!$I$3:$I$4,'Utility Functions'!$J$3:$J$5)","v":1},{"$f":"valueE(G9,'Utility Functions'!$L$3,'Utility Functions'!$L$4,'Utility Functions'!$L$5,'Utility Functions'!$L$6)","v":0},{"$f":"valueE(H9,'Utility Functions'!$N$3,'Utility Functions'!$N$4,'Utility Functions'!$N$5,'Utility Functions'!$N$6)","v":0},{"$f":"valuePL(I9,'Utility Functions'!$O$3:$O$6,'Utility Functions'!$P$3:$P$6)","v":5.6000000000000008E-2},{"$f":"valuePL(J9,'Utility Functions'!$Q$3:$Q$6,'Utility Functions'!$R$3:$R$6)","v":0.83636363636363631},{"$f":"valuePL(K9,'Utility Functions'!$S$3:$S$7,'Utility Functions'!$T$3:$T$7)","v":0},{"$f":"valueE(L9,'Utility Functions'!$V$3,'Utility Functions'!$V$4,'Utility Functions'!$V$5,'Utility Functions'!$V$6)","v":1},{"$f":"valuePL(M9,'Utility Functions'!$W$3:$W$6,'Utility Functions'!$X$3:$X$6)","v":0.83636363636363631},{"$f":"valueE(N9,'Utility Functions'!$Z$3,'Utility Functions'!$Z$4,'Utility Functions'!$Z$5,'Utility Functions'!$Z$6)","v":0},{"$f":"valuePL(O9,'Utility Functions'!$AA$3:$AA$5,'Utility Functions'!$AB$3:$AB$5)","v":0},{"$f":"valuePL(P9,'Utility Functions'!$AC$3:$AC$7,'Utility Functions'!$AD$3:$AD$7)","v":0},{"$f":"valuePL(Q9,'Utility Functions'!$AE$3:$AE$6,'Utility Functions'!$AF$3:$AF$6)","v":1},{"$f":"valuePL(R9,'Utility Functions'!$AG$3:$AG$6,'Utility Functions'!$AH$3:$AH$6)","v":0.2},{"$f":"valuePL(S9,'Utility Functions'!$AI$3:$AI$6,'Utility Functions'!$AJ$3:$AJ$6)","v":1},{"$f":"valuePL(T9,'Utility Functions'!$AK$3:$AK$8,'Utility Functions'!$AL$3:$AL$8)","v":0},{"$f":"valuePL(U9,'Utility Functions'!$AM$3:$AM$5,'Utility Functions'!$AN$3:$AN$5)","v":0},{"$f":"valuePL(V9,'Utility Functions'!$AO$3:$AO$5,'Utility Functions'!$AP$3:$AP$5)","v":1},{"$f":"valuePL(W9,'Utility Functions'!$AQ$3:$AQ$6,'Utility Functions'!$AR$3:$AR$6)","v":1},{"$f":"valuePL(X9,'Utility Functions'!$AS$3:$AS$6,'Utility Functions'!$AT$3:$AT$6)","v":1},{"$f":"valuePL(Y9,'Utility Functions'!$AU$3:$AU$6,'Utility Functions'!$AV$3:$AV$6)","v":1},{"$f":"valuePL(Z9,'Utility Functions'!$AW$3:$AW$5,'Utility Functions'!$AX$3:$AX$5)","v":1},{"$f":"valuePL(AA9,'Utility Functions'!$AY$3:$AY$6,'Utility Functions'!$AZ$3:$AZ$6)","v":0},{"$f":"valuePL(AB9,'Utility Functions'!$BA$3:$BA$5,'Utility Functions'!$BB$3:$BB$5)","v":0.25},{"$f":"valuePL(AC9,'Utility Functions'!$BC$3:$BC$5,'Utility Functions'!$BD$3:$BD$5)","v":0.25},14.227364688589191,null,14.227364688589191,3.7986374158619185,2.7287272727272729,0,2.2000000000000002,5.5]
[9,{"$f":"valueE(B10,'Utility Functions'!$B$3,'Utility Functions'!$B$4,'Utility Functions'!$B$5,'Utility Functions'!$B$6)","v":0.83470237647280454},{"$f":"valueE(C10,'Utility Functions'!$D$3,'Utility Functions'!$D$4,'Utility Functions'!$D$5,'Utility Functions'!$D$6)","v":0.78989979019422951},{"$f":"valuePL(D10,'Utility Functions'!$E$3:$E$5,'Utility Functions'!$F$3:$F$5)","v":1},{"$f":"valuePL(E10,'Utility Functions'!$G$3:$G$5,'Utility Functions'!$H$3:$H$5)","v":0.5},{"$f":"valuePL(F10,'Utility Functions'!$I$3:$I$4,'Utility Functions'!$J$3:$J$5)","v":0},{"$f":"valueE(G10,'Utility Functions'!$L$3,'Utility Functions'!$L$4,'Utility Functions'!$L$5,'Utility Functions'!$L$6)","v":0.37634408602150538},{"$f":"valueE(H10,'Utility Functions'!$N$3,'Utility Functions'!$N$4,'Utility Functions'!$N$5,'Utility Functions'!$N$6)","v":0.13282732447817835},{"$f":"valuePL(I10,'Utility Functions'!$O$3:$O$6,'Utility Functions'!$P$3:$P$6)","v":0},{"$f":"valuePL(J10,'Utility Functions'!$Q$3:$Q$6,'Utility Functions'!$R$3:$R$6)","v":0},{"$f":"valuePL(K10,'Utility Functions'!$S$3:$S$7,'Utility Functions'!$T$3:$T$7)","v":0},{"$f":"valueE(L10,'Utility Functions'!$V$3,'Utility Functions'!$V$4,'Utility Functions'!$V$5,'Utility Functions'!$V$6)","v":0},{"$f":"valuePL(M10,'Utility Functions'!$W$3:$W$6,'Utility Functions'!$X$3:$X$6)","v":0},{"$f":"valueE(N10,'Utility Functions'!$Z$3,'Utility Functions'!$Z$4,'Utility Functions'!$Z$5,'Utility Functions'!$Z$6)","v":0},{"$f":"valuePL(O10,'Utility Functions'!$AA$3:$AA$5,'Utility Functions'!$AB$3:$AB$5)","v":0},{"$f":"valuePL(P10,'Utility Functions'!$AC$3:$AC$7,'Utility Functions'!$AD$3:$AD$7)","v":0.75},{"$f":"valuePL(Q10,'Utility Functions'!$AE$3:$AE$6,'Utility Functions'!$AF$3:$AF$6)","v":0},{"$f":"valuePL(R10,'Utility Functions'!$AG$3:$AG$6,'Utility Functions'!$AH$3:$AH$6)","v":1},{"$f":"valuePL(S10,'Utility Functions'!$AI$3:$AI$6,'Utility Functions'!$AJ$3:$AJ$6)","v":0.66},{"$f":"valuePL(T10,'Utility Functions'!$AK$3:$AK$8,'Utility Functions'!$AL$3:$AL$8)","v":0.2},{"$f":"valuePL(U10,'Utility Functions'!$AM$3:$AM$5,'Utility Functions'!$AN$3:$AN$5)","v":0},{"$f":"valuePL(V10,'Utility Functions'!$AO$3:$AO$5,'Utility Functions'!$AP$3:$AP$5)","v":1},{"$f":"valuePL(W10,'Utility Functions'!$AQ$3:$AQ$6,'Utility Functions'!$AR$3:$AR$6)","v":1},{"$f":"valuePL(X10,'Utility Functions'!$AS$3:$AS$6,'Utility Functions'!$AT$3:$AT$6)","v":1},{"$f":"valuePL(Y10,'Utility Functions'!$AU$3:$AU$6,'Utility Functions'!$AV$3:$AV$6)","v":0.2},{"$f":"valuePL(Z10,'Utility Functions'!$AW$3:$AW$5,'Utility Functions'!$AX$3:$AX$5)","v":1},{"$f":"valuePL(AA10,'Utility Functions'!$AY$3:$AY$6,'Utility Functions'!$AZ$3:$AZ$6)","v":0.2},{"$f":"valuePL(AB10,'Utility Functions'!$BA$3:$BA$5,'Utility Functions'!$BB$3:$BB$5)","v":0.25},{"$f":"valuePL(AC10,'Utility Functions'!$BC$3:$BC$5,'Utility Functions'!$BD$3:$BD$5)","v":1},11.893773577166716,null,11.893773577166719,3.1246021666670343,0.50917141049968373,0,2.6100000000000003,5.65]
[10,{"$f":"valueE(B11,'Utility Functions'!$B$3,'Utility Functions'!$B$4,'Utility Functions'!$B$5,'Utility Functions'!$B$6)","v":0},{"$f":"valueE(C11,'Utility Functions'!$D$3,'Utility Functions'!$D$4,'Utility Functions'!$D$5,'Utility Functions'!$D$6)","v":0},{"$f":"valuePL(D11,'Utility Functions'!$E$3:$E$5,'Utility Functions'!$F$3:$F$5)","v":0},{"$f":"valuePL(E11,'Utility Functions'!$G$3:$G$5,'Utility Functions'!$H$3:$H$5)","v":0},{"$f":"valuePL(F11,'Utility Functions'!$I$3:$I$4,'Utility Functions'!$J$3:$J$5)","v":0},{"$f":"valueE(G11,'Utility Functions'!$L$3,'Utility Functions'!$L$4,'Utility Functions'!$L$5,'Utility Functions'!$L$6)","v":0},{"$f":"valueE(H11,'Utility Functions'!$N$3,'Utility Functions'!$N$4,'Utility Functions'!$N$5,'Utility Functions'!$N$6)","v":0},{"$f":"valuePL(I11,'Utility Functions'!$O$3:$O$6,'Utility Functions'!$P$3:$P$6)","v":0},{"$f":"valuePL(J11,'Utility Functions'!$Q$3:$Q$6,'Utility Functions'!$R$3:$R$6)","v":0},{"$f":"valuePL(K11,'Utility Functions'!$S$3:$S$7,'Utility Functions'!$T$3:$T$7)","v":0},{"$f":"valueE(L11,'Utility Functions'!$V$3,'Utility Functions'!$V$4,'Utility Functions'!$V$5,'Utility Functions'!$V$6)","v":0},{"$f":"valuePL(M11,'Utility Functions'!$W$3:$W$6,'Utility Functions'!$X$3:$X$6)","v":0},{"$f":"valueE(N11,'Utility Functions'!$Z$3,'Utility Functions'!$Z$4,'Utility Functions'!$Z$5,'Utility Functions'!$Z$6)","v":0.75},{"$f":"valuePL(O11,'Utility Functions'!$AA$3:$AA$5,'Utility Functions'!$AB$3:$AB$5)","v":1},{"$f":"valuePL(P11,'Utility Functions'!$AC$3:$AC$7,'Utility Functions'!$AD$3:$AD$7)","v":0.25},{"$f":"valuePL(Q11,'Utility Functions'!$AE$3:$AE$6,'Utility Functions'!$AF$3:$AF$6)","v":0.5},{"$f":"valuePL(R11,'Utility Functions'!$AG$3:$AG$6,'Utility Functions'!$AH$3:$AH$6)","v":1},{"$f":"valuePL(S11,'Utility Functions'!$AI$3:$AI$6,'Utility Functions'!$AJ$3:$AJ$6)","v":0.66},{"$f":"valuePL(T11,'Utility Functions'!$AK$3:$AK$8,'Utility Functions'!$AL$3:$AL$8)","v":0.4},{"$f":"valuePL(U11,'Utility Functions'!$AM$3:$AM$5,'Utility Functions'!$AN$3:$AN$5)","v":0},{"$f":"valuePL(V11,'Utility Functions'!$AO$3:$AO$5,'Utility Functions'!$AP$3:$AP$5)","v":0},{"$f":"valuePL(W11,'Utility Functions'!$AQ$3:$AQ$6,'Utility Functions'!$AR$3:$AR$6)","v":0.75},{"$f":"valuePL(X11,'Utility Functions'!$AS$3:$AS$6,'Utility Functions'!$AT$3:$AT$6)","v":1},{"$f":"valuePL(Y11,'Utility Functions'!$AU$3:$AU$6,'Utility Functions'!$AV$3:$AV$6)","v":1},{"$f":"valuePL(Z11,'Utility Functions'!$AW$3:$AW$5,'Utility Functions'!$AX$3:$AX$5)","v":0.5},{"$f":"valuePL(AA11,'Utility Functions'!$AY$3:$AY$6,'Utility Functions'!$AZ$3:$AZ$6)","v":0.2},{"$f":"valuePL(AB11,'Utility Functions'!$BA$3:$BA$5,'Utility Functions'!$BB$3:$BB$5)","v":0},{"$f":"valuePL(AC11,'Utility Functions'!$BC$3:$BC$5,'Utility Functions'!$BD$3:$BD$5)","v":1},9.01,null,9.0100000000000016,0,0,1.75,2.81,4.45]
[11,{"$f":"valueE(B12,'Utility Functions'!$B$3,'Utility Functions'!$B$4,'Utility Functions'!$B$5,'Utility Functions'!$B$6)","v":0},{"$f":"valueE(C12,'Utility Functions'!$D$3,'Utility Functions'!$D$4,'Utility Functions'!$D$5,'Utility Functions'!$D$6)","v":0},{"$f":"valuePL(D12,'Utility Functions'!$E$3:$E$5,'Utility Functions'!$F$3:$F$5)","v":0},{"$f":"valuePL(E12,'Utility Functions'!$G$3:$G$5,'Utility Functions'!$H$3:$H$5)","v":0},{"$f":"valuePL(F12,'Utility Functions'!$I$3:$I$4,'Utility Functions'!$J$3:$J$5)","v":0},{"$f":"valueE(G12,'Utility Functions'!$L$3,'Utility Functions'!$L$4,'Utility Functions'!$L$5,'Utility Functions'!$L$6)","v":3.2258064516129031E-2},{"$f":"valueE(H12,'Utility Functions'!$N$3,'Utility Functions'!$N$4,'Utility Functions'!$N$5,'Utility Functions'!$N$6)","v":9.6774193548387094E-2},{"$f":"valuePL(I12,'Utility Functions'!$O$3:$O$6,'Utility Functions'!$P$3:$P$6)","v":0.54181818181818187},{"$f":"valuePL(J12,'Utility Functions'!$Q$3:$Q$6,'Utility Functions'!$R$3:$R$6)","v":0.91818181818181821},{"$f":"valuePL(K12,'Utility Functions'!$S$3:$S$7,'Utility Functions'!$T$3:$T$7)","v":0.54181818181818187},{"$f":"valueE(L12,'Utility Functions'!$V$3,'Utility Functions'!$V$4,'Utility Functions'!$V$5,'Utility Functions'!$V$6)","v":1},{"$f":"valuePL(M12,'Utility Functions'!$W$3:$W$6,'Utility Functions'!$X$3:$X$6)","v":0.91818181818181821},{"$f":"valueE(N12,'Utility Functions'!$Z$3,'Utility Functions'!$Z$4,'Utility Functions'!$Z$5,'Utility Functions'!$Z$6)","v":0.375},{"$f":"valuePL(O12,'Utility Functions'!$AA$3:$AA$5,'Utility Functions'!$AB$3:$AB$5)","v":0.25},{"$f":"valuePL(P12,'Utility Functions'!$AC$3:$AC$7,'Utility Functions'!$AD$3:$AD$7)","v":0.25},{"$f":"valuePL(Q12,'Utility Functions'!$AE$3:$AE$6,'Utility Functions'!$AF$3:$AF$6)","v":0},{"$f":"valuePL(R12,'Utility Functions'!$AG$3:$AG$6,'Utility Functions'!$AH$3:$AH$6)","v":1},{"$f":"valuePL(S12,'Utility Functions'!$AI$3:$AI$6,'Utility Functions'!$AJ$3:$AJ$6)","v":1},{"$f":"valuePL(T12,'Utility Functions'!$AK$3:$AK$8,'Utility Functions'!$AL$3:$AL$8)","v":0.4},{"$f":"valuePL(U12,'Utility Functions'!$AM$3:$AM$5,'Utility Functions'!$AN$3:$AN$5)","v":1},{"$f":"valuePL(V12,'Utility Functions'!$AO$3:$AO$5,'Utility Functions'!$AP$3:$AP$5)","v":1},{"$f":"valuePL(W12,'Utility Functions'!$AQ$3:$AQ$6,'Utility Functions'!$AR$3:$AR$6)","v":0.2},{"$f":"valuePL(X12,'Utility Functions'!$AS$3:$AS$6,'Utility Functions'!$AT$3:$AT$6)","v":1},{"$f":"valuePL(Y12,'Utility Functions'!$AU$3:$AU$6,'Utility Functions'!$AV$3:$AV$6)","v":1},{"$f":"valuePL(Z12,'Utility Functions'!$AW$3:$AW$5,'Utility Functions'!$AX$3:$AX$5)","v":0.5},{"$f":"valuePL(AA12,'Utility Functions'!$AY$3:$AY$6,'Utility Functions'!$AZ$3:$AZ$6)","v":0.89999999999999991},{"$f":"valuePL(AB12,'Utility Functions'!$BA$3:$BA$5,'Utility Functions'!$BB$3:$BB$5)","v":0},{"$f":"valuePL(AC12,'Utility Functions'!$BC$3:$BC$5,'Utility Functions'!$BD$3:$BD$5)","v":0.25},13.174032258064516,null,13.174032258064516,0,4.0490322580645159,0.625,3.65,4.8499999999999996]
[12,{"$f":"valueE(B13,'Utility Functions'!$B$3,'Utility Functions'!$B$4,'Utility Functions'!$B$5,'Utility Functions'!$B$6)","v":0.32968045347775865},{"$f":"valueE(C13,'Utility Functions'!$D$3,'Utility Functions'!$D$4,'Utility Functions'!$D$5,'Utility Functions'!$D$6)","v":0.78989979019422951},{"$f":"valuePL(D13,'Utility Functions'!$E$3:$E$5,'Utility Functions'!$F$3:$F$5)","v":1},{"$f":"valuePL(E13,'Utility Functions'!$G$3:$G$5,'Utility Functions'!$H$3:$H$5)","v":0.5},{"$f":"valuePL(F13,'Utility Functions'!$I$3:$I$4,'Utility Functions'!$J$3:$J$5)","v":0},{"$f":"valueE(G13,'Utility Functions'!$L$3,'Utility Functions'!$L$4,'Utility Functions'!$L$5,'Utility Functions'!$L$6)","v":0},{"$f":"valueE(H13,'Utility Functions'!$N$3,'Utility Functions'!$N$4,'Utility Functions'!$N$5,'Utility Functions'!$N$6)","v":0},{"$f":"valuePL(I13,'Utility Functions'!$O$3:$O$6,'Utility Functions'!$P$3:$P$6)","v":0},{"$f":"valuePL(J13,'Utility Functions'!$Q$3:$Q$6,'Utility Functions'!$R$3:$R$6)","v":0},{"$f":"valuePL(K13,'Utility Functions'!$S$3:$S$7,'Utility Functions'!$T$3:$T$7)","v":0},{"$f":"valueE(L13,'Utility Functions'!$V$3,'Utility Functions'!$V$4,'Utility Functions'!$V$5,'Utility Functions'!$V$6)","v":0},{"$f":"valuePL(M13,'Utility Functions'!$W$3:$W$6,'Utility Functions'!$X$3:$X$6)","v":0},{"$f":"valueE(N13,'Utility Functions'!$Z$3,'Utility Functions'!$Z$4,'Utility Functions'!$Z$5,'Utility Functions'!$Z$6)","v":0},{"$f":"valuePL(O13,'Utility Functions'!$AA$3:$AA$5,'Utility Functions'!$AB$3:$AB$5)","v":0},{"$f":"valuePL(P13,'Utility Functions'!$AC$3:$AC$7,'Utility Functions'!$AD$3:$AD$7)","v":0},{"$f":"valuePL(Q13,'Utility Functions'!$AE$3:$AE$6,'Utility Functions'!$AF$3:$AF$6)","v":0.1},{"$f":"valuePL(R13,'Utility Functions'!$AG$3:$AG$6,'Utility Functions'!$AH$3:$AH$6)","v":1},{"$f":"valuePL(S13,'Utility Functions'!$AI$3:$AI$6,'Utility Functions'!$AJ$3:$AJ$6)","v":1},{"$f":"valuePL(T13,'Utility Functions'!$AK$3:$AK$8,'Utility Functions'!$AL$3:$AL$8)","v":0.6},{"$f":"valuePL(U13,'Utility Functions'!$AM$3:$AM$5,'Utility Functions'!$AN$3:$AN$5)","v":0},{"$f":"valuePL(V13,'Utility Functions'!$AO$3:$AO$5,'Utility Functions'!$AP$3:$AP$5)","v":0.5},{"$f":"valuePL(W13,'Utility Functions'!$AQ$3:$AQ$6,'Utility Functions'!$AR$3:$AR$6)","v":0.2},{"$f":"valuePL(X13,'Utility Functions'!$AS$3:$AS$6,'Utility Functions'!$AT$3:$AT$6)","v":1},{"$f":"valuePL(Y13,'Utility Functions'!$AU$3:$AU$6,'Utility Functions'!$AV$3:$AV$6)","v":0.2},{"$f":"valuePL(Z13,'Utility Functions'!$AW$3:$AW$5,'Utility Functions'!$AX$3:$AX$5)","v":1},{"$f":"valuePL(AA13,'Utility Functions'!$AY$3:$AY$6,'Utility Functions'!$AZ$3:$AZ$6)","v":0.2},{"$f":"valuePL(AB13,'Utility Functions'!$BA$3:$BA$5,'Utility Functions'!$BB$3:$BB$5)","v":1},{"$f":"valuePL(AC13,'Utility Functions'!$BC$3:$BC$5,'Utility Functions'!$BD$3:$BD$5)","v":0},9.4195802436719873,null,9.4195802436719873,2.6195802436719884,0,0,2.7,4.0999999999999996]
[13,{"$f":"valueE(B14,'Utility Functions'!$B$3,'Utility Functions'!$B$4,'Utility Functions'!$B$5,'Utility Functions'!$B$6)","v":0},{"$f":"valueE(C14,'Utility Functions'!$D$3,'Utility Functions'!$D$4,'Utility Functions'!$D$5,'Utility Functions'!$D$6)","v":0},{"$f":"valuePL(D14,'Utility Functions'!$E$3:$E$5,'Utility Functions'!$F$3:$F$5)","v":0},{"$f":"valuePL(E14,'Utility Functions'!$G$3:$G$5,'Utility Functions'!$H$3:$H$5)","v":0},{"$f":"valuePL(F14,'Utility Functions'!$I$3:$I$4,'Utility Functions'!$J$3:$J$5)","v":0},{"$f":"valueE(G14,'Utility Functions'!$L$3,'Utility Functions'!$L$4,'Utility Functions'!$L$5,'Utility Functions'!$L$6)","v":0},{"$f":"valueE(H14,'Utility Functions'!$N$3,'Utility Functions'!$N$4,'Utility Functions'!$N$5,'Utility Functions'!$N$6)","v":1.1385199240986717E-2},{"$f":"valuePL(I14,'Utility Functions'!$O$3:$O$6,'Utility Functions'!$P$3:$P$6)","v":0.3290909090909091},{"$f":"valuePL(J14,'Utility Functions'!$Q$3:$Q$6,'Utility Functions'!$R$3:$R$6)","v":0.04},{"$f":"valuePL(K14,'Utility Functions'!$S$3:$S$7,'Utility Functions'!$T$3:$T$7)","v":0.3290909090909091},{"$f":"valueE(L14,'Utility Functions'!$V$3,'Utility Functions'!$V$4,'Utility Functions'!$V$5,'Utility Functions'!$V$6)","v":1},{"$f":"valuePL(M14,'Utility Functions'!$W$3:$W$6,'Utility Functions'!$X$3:$X$6)","v":0.04},{"$f":"valueE(N14,'Utility Functions'!$Z$3,'Utility Functions'!$Z$4,'Utility Functions'!$Z$5,'Utility Functions'!$Z$6)","v":0.875},{"$f":"valuePL(O14,'Utility Functions'!$AA$3:$AA$5,'Utility Functions'!$AB$3:$AB$5)","v":0.25},{"$f":"valuePL(P14,'Utility Functions'!$AC$3:$AC$7,'Utility Functions'!$AD$3:$AD$7)","v":0.25},{"$f":"valuePL(Q14,'Utility Functions'!$AE$3:$AE$6,'Utility Functions'!$AF$3:$AF$6)","v":0},{"$f":"valuePL(R14,'Utility Functions'!$AG$3:$AG$6,'Utility Functions'!$AH$3:$AH$6)","v":1},{"$f":"valuePL(S14,'Utility Functions'!$AI$3:$AI$6,'Utility Functions'!$AJ$3:$AJ$6)","v":1},{"$f":"valuePL(T14,'Utility Functions'!$AK$3:$AK$8,'Utility Functions'!$AL$3:$AL$8)","v":0},{"$f":"valuePL(U14,'Utility Functions'!$AM$3:$AM$5,'Utility Functions'!$AN$3:$AN$5)","v":0},{"$f":"valuePL(V14,'Utility Functions'!$AO$3:$AO$5,'Utility Functions'!$AP$3:$AP$5)","v":0.5},{"$f":"valuePL(W14,'Utility Functions'!$AQ$3:$AQ$6,'Utility Functions'!$AR$3:$AR$6)","v":0},{"$f":"valuePL(X14,'Utility Functions'!$AS$3:$AS$6,'Utility Functions'!$AT$3:$AT$6)","v":0.2},{"$f":"valuePL(Y14,'Utility Functions'!$AU$3:$AU$6,'Utility Functions'!$AV$3:$AV$6)","v":0},{"$f":"valuePL(Z14,'Utility Functions'!$AW$3:$AW$5,'Utility Functions'!$AX$3:$AX$5)","v":1},{"$f":"valuePL(AA14,'Utility Functions'!$AY$3:$AY$6,'Utility Functions'!$AZ$3:$AZ$6)","v":0.2},{"$f":"valuePL(AB14,'Utility Functions'!$BA$3:$BA$5,'Utility Functions'!$BB$3:$BB$5)","v":0.25},{"$f":"valuePL(AC14,'Utility Functions'!$BC$3:$BC$5,'Utility Functions'!$BD$3:$BD$5)","v":0.25},7.5245670174228056,null,7.5245670174228056,0,1.7495670174228048,1.125,2.25,2.4]
[14,{"$f":"valueE(B15,'Utility Functions'!$B$3,'Utility Functions'!$B$4,'Utility Functions'!$B$5,'Utility Functions'!$B$6)","v":0.69880684688087746},{"$f":"valueE(C15,'Utility Functions'!$D$3,'Utility Functions'!$D$4,'Utility Functions'!$D$5,'Utility Functions'!$D$6)","v":0.78989979019422951},{"$f":"valuePL(D15,'Utility Functions'!$E$3:$E$5,'Utility Functions'!$F$3:$F$5)","v":0.5},{"$f":"valuePL(E15,'Utility Functions'!$G$3:$G$5,'Utility Functions'!$H$3:$H$5)","v":0.5},{"$f":"valuePL(F15,'Utility Functions'!$I$3:$I$4,'Utility Functions'!$J$3:$J$5)","v":0},{"$f":"valueE(G15,'Utility Functions'!$L$3,'Utility Functions'!$L$4,'Utility Functions'!$L$5,'Utility Functions'!$L$6)","v":0},{"$f":"valueE(H15,'Utility Functions'!$N$3,'Utility Functions'!$N$4,'Utility Functions'!$N$5,'Utility Functions'!$N$6)","v":0},{"$f":"valuePL(I15,'Utility Functions'!$O$3:$O$6,'Utility Functions'!$P$3:$P$6)","v":0},{"$f":"valuePL(J15,'Utility Functions'!$Q$3:$Q$6,'Utility Functions'!$R$3:$R$6)","v":0},{"$f":"valuePL(K15,'Utility Functions'!$S$3:$S$7,'Utility Functions'!$T$3:$T$7)","v":0},{"$f":"valueE(L15,'Utility Functions'!$V$3,'Utility Functions'!$V$4,'Utility Functions'!$V$5,'Utility Functions'!$V$6)","v":0},{"$f":"valuePL(M15,'Utility Functions'!$W$3:$W$6,'Utility Functions'!$X$3:$X$6)","v":0},{"$f":"valueE(N15,'Utility Functions'!$Z$3,'Utility Functions'!$Z$4,'Utility Functions'!$Z$5,'Utility Functions'!$Z$6)","v":0.75},{"$f":"valuePL(O15,'Utility Functions'!$AA$3:$AA$5,'Utility Functions'!$AB$3:$AB$5)","v":0.25},{"$f":"valuePL(P15,'Utility Functions'!$AC$3:$AC$7,'Utility Functions'!$AD$3:$AD$7)","v":0.25},{"$f":"valuePL(Q15,'Utility Functions'!$AE$3:$AE$6,'Utility Functions'!$AF$3:$AF$6)","v":0},{"$f":"valuePL(R15,'Utility Functions'!$AG$3:$AG$6,'Utility Functions'!$AH$3:$AH$6)","v":1},{"$f":"valuePL(S15,'Utility Functions'!$AI$3:$AI$6,'Utility Functions'!$AJ$3:$AJ$6)","v":1},{"$f":"valuePL(T15,'Utility Functions'!$AK$3:$AK$8,'Utility Functions'!$AL$3:$AL$8)","v":0},{"$f":"valuePL(U15,'Utility Functions'!$AM$3:$AM$5,'Utility Functions'!$AN$3:$AN$5)","v":0},{"$f":"valuePL(V15,'Utility Functions'!$AO$3:$AO$5,'Utility Functions'!$AP$3:$AP$5)","v":0.5},{"$f":"valuePL(W15,'Utility Functions'!$AQ$3:$AQ$6,'Utility Functions'!$AR$3:$AR$6)","v":0.2},{"$f":"valuePL(X15,'Utility Functions'!$AS$3:$AS$6,'Utility Functions'!$AT$3:$AT$6)","v":1},{"$f":"valuePL(Y15,'Utility Functions'!$AU$3:$AU$6,'Utility Functions'!$AV$3:$AV$6)","v":1},{"$f":"valuePL(Z15,'Utility Functions'!$AW$3:$AW$5,'Utility Functions'!$AX$3:$AX$5)","v":0.5},{"$f":"valuePL(AA15,'Utility Functions'!$AY$3:$AY$6,'Utility Functions'!$AZ$3:$AZ$6)","v":0.89999999999999991},{"$f":"valuePL(AB15,'Utility Functions'!$BA$3:$BA$5,'Utility Functions'!$BB$3:$BB$5)","v":0.25},{"$f":"valuePL(AC15,'Utility Functions'!$BC$3:$BC$5,'Utility Functions'!$BD$3:$BD$5)","v":0.25},10.338706637075108,null,10.338706637075106,2.488706637075107,0,1,2.25,4.5999999999999996]
[15,{"$f":"valueE(B16,'Utility Functions'!$B$3,'Utility Functions'!$B$4,'Utility Functions'!$B$5,'Utility Functions'!$B$6)","v":0.98994966417177144},{"$f":"valueE(C16,'Utility Functions'!$D$3,'Utility Functions'!$D$4,'Utility Functions'!$D$5,'Utility Functions'!$D$6)","v":0.71352759724260828},{"$f":"valuePL(D16,'Utility Functions'!$E$3:$E$5,'Utility Functions'!$F$3:$F$5)","v":1},{"$f":"valuePL(E16,'Utility Functions'!$G$3:$G$5,'Utility Functions'!$H$3:$H$5)","v":0.5},{"$f":"valuePL(F16,'Utility Functions'!$I$3:$I$4,'Utility Functions'!$J$3:$J$5)","v":1},{"$f":"valueE(G16,'Utility Functions'!$L$3,'Utility Functions'!$L$4,'Utility Functions'!$L$5,'Utility Functions'!$L$6)","v":0},{"$f":"valueE(H16,'Utility Functions'!$N$3,'Utility Functions'!$N$4,'Utility Functions'!$N$5,'Utility Functions'!$N$6)","v":0},{"$f":"valuePL(I16,'Utility Functions'!$O$3:$O$6,'Utility Functions'!$P$3:$P$6)","v":9.2000000000000012E-2},{"$f":"valuePL(J16,'Utility Functions'!$Q$3:$Q$6,'Utility Functions'!$R$3:$R$6)","v":6.0000000000000012E-2},{"$f":"valuePL(K16,'Utility Functions'!$S$3:$S$7,'Utility Functions'!$T$3:$T$7)","v":6.0000000000000012E-2},{"$f":"valueE(L16,'Utility Functions'!$V$3,'Utility Functions'!$V$4,'Utility Functions'!$V$5,'Utility Functions'!$V$6)","v":1},{"$f":"valuePL(M16,'Utility Functions'!$W$3:$W$6,'Utility Functions'!$X$3:$X$6)","v":6.0000000000000012E-2},{"$f":"valueE(N16,'Utility Functions'!$Z$3,'Utility Functions'!$Z$4,'Utility Functions'!$Z$5,'Utility Functions'!$Z$6)","v":0.125},{"$f":"valuePL(O16,'Utility Functions'!$AA$3:$AA$5,'Utility Functions'!$AB$3:$AB$5)","v":1},{"$f":"valuePL(P16,'Utility Functions'!$AC$3:$AC$7,'Utility Functions'!$AD$3:$AD$7)","v":0.5},{"$f":"valuePL(Q16,'Utility Functions'!$AE$3:$AE$6,'Utility Functions'!$AF$3:$AF$6)","v":0},{"$f":"valuePL(R16,'Utility Functions'!$AG$3:$AG$6,'Utility Functions'!$AH$3:$AH$6)","v":0.8},{"$f":"valuePL(S16,'Utility Functions'!$AI$3:$AI$6,'Utility Functions'!$AJ$3:$AJ$6)","v":1},{"$f":"valuePL(T16,'Utility Functions'!$AK$3:$AK$8,'Utility Functions'!$AL$3:$AL$8)","v":0.6},{"$f":"valuePL(U16,'Utility Functions'!$AM$3:$AM$5,'Utility Functions'!$AN$3:$AN$5)","v":1},{"$f":"valuePL(V16,'Utility Functions'!$AO$3:$AO$5,'Utility Functions'!$AP$3:$AP$5)","v":0},{"$f":"valuePL(W16,'Utility Functions'!$AQ$3:$AQ$6,'Utility Functions'!$AR$3:$AR$6)","v":1},{"$f":"valuePL(X16,'Utility Functions'!$AS$3:$AS$6,'Utility Functions'!$AT$3:$AT$6)","v":0.2},{"$f":"valuePL(Y16,'Utility Functions'!$AU$3:$AU$6,'Utility Functions'!$AV$3:$AV$6)","v":0.2},{"$f":"valuePL(Z16,'Utility Functions'!$AW$3:$AW$5,'Utility Functions'!$AX$3:$AX$5)","v":1},{"$f":"valuePL(AA16,'Utility Functions'!$AY$3:$AY$6,'Utility Functions'!$AZ$3:$AZ$6)","v":1},{"$f":"valuePL(AB16,'Utility Functions'!$BA$3:$BA$5,'Utility Functions'!$BB$3:$BB$5)","v":1},{"$f":"valuePL(AC16,'Utility Functions'!$BC$3:$BC$5,'Utility Functions'!$BD$3:$BD$5)","v":0.25},15.150477261414375,null,15.15047726141438,4.2034772614143794,1.272,1.125,3.9,4.6500000000000004]
[16,{"$f":"valueE(B17,'Utility Functions'!$B$3,'Utility Functions'!$B$4,'Utility Functions'!$B$5,'Utility Functions'!$B$6)","v":0},{"$f":"valueE(C17,'Utility Functions'!$D$3,'Utility Functions'!$D$4,'Utility Functions'!$D$5,'Utility Functions'!$D$6)","v":0},{"$f":"valuePL(D17,'Utility Functions'!$E$3:$E$5,'Utility Functions'!$F$3:$F$5)","v":0},{"$f":"valuePL(E17,'Utility Functions'!$G$3:$G$5,'Utility Functions'!$H$3:$H$5)","v":0},{"$f":"valuePL(F17,'Utility Functions'!$I$3:$I$4,'Utility Functions'!$J$3:$J$5)","v":0},{"$f":"valueE(G17,'Utility Functions'!$L$3,'Utility Functions'!$L$4,'Utility Functions'!$L$5,'Utility Functions'!$L$6)","v":0},{"$f":"valueE(H17,'Utility Functions'!$N$3,'Utility Functions'!$N$4,'Utility Functions'!$N$5,'Utility Functions'!$N$6)","v":0},{"$f":"valuePL(I17,'Utility Functions'!$O$3:$O$6,'Utility Functions'!$P$3:$P$6)","v":1},{"$f":"valuePL(J17,'Utility Functions'!$Q$3:$Q$6,'Utility Functions'!$R$3:$R$6)","v":0.91818181818181821},{"$f":"valuePL(K17,'Utility Functions'!$S$3:$S$7,'Utility Functions'!$T$3:$T$7)","v":1},{"$f":"valueE(L17,'Utility Functions'!$V$3,'Utility Functions'!$V$4,'Utility Functions'!$V$5,'Utility Functions'!$V$6)","v":0.83333333333333337},{"$f":"valuePL(M17,'Utility Functions'!$W$3:$W$6,'Utility Functions'!$X$3:$X$6)","v":0.91818181818181821},{"$f":"valueE(N17,'Utility Functions'!$Z$3,'Utility Functions'!$Z$4,'Utility Functions'!$Z$5,'Utility Functions'!$Z$6)","v":0},{"$f":"valuePL(O17,'Utility Functions'!$AA$3:$AA$5,'Utility Functions'!$AB$3:$AB$5)","v":0},{"$f":"valuePL(P17,'Utility Functions'!$AC$3:$AC$7,'Utility Functions'!$AD$3:$AD$7)","v":0.75},{"$f":"valuePL(Q17,'Utility Functions'!$AE$3:$AE$6,'Utility Functions'!$AF$3:$AF$6)","v":0},{"$f":"valuePL(R17,'Utility Functions'!$AG$3:$AG$6,'Utility Functions'!$AH$3:$AH$6)","v":1},{"$f":"valuePL(S17,'Utility Functions'!$AI$3:$AI$6,'Utility Functions'!$AJ$3:$AJ$6)","v":1},{"$f":"valuePL(T17,'Utility Functions'!$AK$3:$AK$8,'Utility Functions'!$AL$3:$AL$8)","v":1},{"$f":"valuePL(U17,'Utility Functions'!$AM$3:$AM$5,'Utility Functions'!$AN$3:$AN$5)","v":0},{"$f":"valuePL(V17,'Utility Functions'!$AO$3:$AO$5,'Utility Functions'!$AP$3:$AP$5)","v":1},{"$f":"valuePL(W17,'Utility Functions'!$AQ$3:$AQ$6,'Utility Functions'!$AR$3:$AR$6)","v":0.75},{"$f":"valuePL(X17,'Utility Functions'!$AS$3:$AS$6,'Utility Functions'!$AT$3:$AT$6)","v":0.75},{"$f":"valuePL(Y17,'Utility Functions'!$AU$3:$AU$6,'Utility Functions'!$AV$3:$AV$6)","v":0.2},{"$f":"valuePL(Z17,'Utility Functions'!$AW$3:$AW$5,'Utility Functions'!$AX$3:$AX$5)","v":1},{"$f":"valuePL(AA17,'Utility Functions'!$AY$3:$AY$6,'Utility Functions'!$AZ$3:$AZ$6)","v":1},{"$f":"valuePL(AB17,'Utility Functions'!$BA$3:$BA$5,'Utility Functions'!$BB$3:$BB$5)","v":1},{"$f":"valuePL(AC17,'Utility Functions'!$BC$3:$BC$5,'Utility Functions'!$BD$3:$BD$5)","v":1},15.119696969696969,null,15.119696969696971,0,4.6696969696969699,0,3.75,6.7]
[17,{"$f":"valueE(B18,'Utility Functions'!$B$3,'Utility Functions'!$B$4,'Utility Functions'!$B$5,'Utility Functions'!$B$6)","v":0.32968045347775865},{"$f":"valueE(C18,'Utility Functions'!$D$3,'Utility Functions'!$D$4,'Utility Functions'!$D$5,'Utility Functions'!$D$6)","v":0.78989979019422951},{"$f":"valuePL(D18,'Utility Functions'!$E$3:$E$5,'Utility Functions'!$F$3:$F$5)","v":1},{"$f":"valuePL(E18,'Utility Functions'!$G$3:$G$5,'Utility Functions'!$H$3:$H$5)","v":0.5},{"$f":"valuePL(F18,'Utility Functions'!$I$3:$I$4,'Utility Functions'!$J$3:$J$5)","v":1},{"$f":"valueE(G18,'Utility Functions'!$L$3,'Utility Functions'!$L$4,'Utility Functions'!$L$5,'Utility Functions'!$L$6)","v":0.31182795698924731},{"$f":"valueE(H18,'Utility Functions'!$N$3,'Utility Functions'!$N$4,'Utility Functions'!$N$5,'Utility Functions'!$N$6)","v":0.27514231499051234},{"$f":"valuePL(I18,'Utility Functions'!$O$3:$O$6,'Utility Functions'!$P$3:$P$6)","v":0},{"$f":"valuePL(J18,'Utility Functions'!$Q$3:$Q$6,'Utility Functions'!$R$3:$R$6)","v":0},{"$f":"valuePL(K18,'Utility Functions'!$S$3:$S$7,'Utility Functions'!$T$3:$T$7)","v":0},{"$f":"valueE(L18,'Utility Functions'!$V$3,'Utility Functions'!$V$4,'Utility Functions'!$V$5,'Utility Functions'!$V$6)","v":1},{"$f":"valuePL(M18,'Utility Functions'!$W$3:$W$6,'Utility Functions'!$X$3:$X$6)","v":6.0000000000000012E-2},{"$f":"valueE(N18,'Utility Functions'!$Z$3,'Utility Functions'!$Z$4,'Utility Functions'!$Z$5,'Utility Functions'!$Z$6)","v":0},{"$f":"valuePL(O18,'Utility Functions'!$AA$3:$AA$5,'Utility Functions'!$AB$3:$AB$5)","v":0},{"$f":"valuePL(P18,'Utility Functions'!$AC$3:$AC$7,'Utility Functions'!$AD$3:$AD$7)","v":0},{"$f":"valuePL(Q18,'Utility Functions'!$AE$3:$AE$6,'Utility Functions'!$AF$3:$AF$6)","v":0},{"$f":"valuePL(R18,'Utility Functions'!$AG$3:$AG$6,'Utility Functions'!$AH$3:$AH$6)","v":1},{"$f":"valuePL(S18,'Utility Functions'!$AI$3:$AI$6,'Utility Functions'!$AJ$3:$AJ$6)","v":0.66},{"$f":"valuePL(T18,'Utility Functions'!$AK$3:$AK$8,'Utility Functions'!$AL$3:$AL$8)","v":0},{"$f":"valuePL(U18,'Utility Functions'!$AM$3:$AM$5,'Utility Functions'!$AN$3:$AN$5)","v":0},{"$f":"valuePL(V18,'Utility Functions'!$AO$3:$AO$5,'Utility Functions'!$AP$3:$AP$5)","v":1},{"$f":"valuePL(W18,'Utility Functions'!$AQ$3:$AQ$6,'Utility Functions'!$AR$3:$AR$6)","v":1},{"$f":"valuePL(X18,'Utility Functions'!$AS$3:$AS$6,'Utility Functions'!$AT$3:$AT$6)","v":0.2},{"$f":"valuePL(Y18,'Utility Functions'!$AU$3:$AU$6,'Utility Functions'!$AV$3:$AV$6)","v":0},{"$f":"valuePL(Z18,'Utility Functions'!$AW$3:$AW$5,'Utility Functions'!$AX$3:$AX$5)","v":0.5},{"$f":"valuePL(AA18,'Utility Functions'!$AY$3:$AY$6,'Utility Functions'!$AZ$3:$AZ$6)","v":0},{"$f":"valuePL(AB18,'Utility Functions'!$BA$3:$BA$5,'Utility Functions'!$BB$3:$BB$5)","v":1},{"$f":"valuePL(AC18,'Utility Functions'!$BC$3:$BC$5,'Utility Functions'!$BD$3:$BD$5)","v":0.25},10.876550515651747,null,10.876550515651747,3.6195802436719884,1.6469702719797596,0,1.6600000000000001,3.95]
[18,{"$f":"valueE(B19,'Utility Functions'!$B$3,'Utility Functions'!$B$4,'Utility Functions'!$B$5,'Utility Functions'!$B$6)","v":0},{"$f":"valueE(C19,'Utility Functions'!$D$3,'Utility Functions'!$D$4,'Utility Functions'!$D$5,'Utility Functions'!$D$6)","v":0},{"$f":"valuePL(D19,'Utility Functions'!$E$3:$E$5,'Utility Functions'!$F$3:$F$5)","v":0},{"$f":"valuePL(E19,'Utility Functions'!$G$3:$G$5,'Utility Functions'!$H$3:$H$5)","v":0},{"$f":"valuePL(F19,'Utility Functions'!$I$3:$I$4,'Utility Functions'!$J$3:$J$5)","v":0},{"$f":"valueE(G19,'Utility Functions'!$L$3,'Utility Functions'!$L$4,'Utility Functions'!$L$5,'Utility Functions'!$L$6)","v":0},{"$f":"valueE(H19,'Utility Functions'!$N$3,'Utility Functions'!$N$4,'Utility Functions'!$N$5,'Utility Functions'!$N$6)","v":2.8462998102466792E-2},{"$f":"valuePL(I19,'Utility Functions'!$O$3:$O$6,'Utility Functions'!$P$3:$P$6)","v":0},{"$f":"valuePL(J19,'Utility Functions'!$Q$3:$Q$6,'Utility Functions'!$R$3:$R$6)","v":0},{"$f":"valuePL(K19,'Utility Functions'!$S$3:$S$7,'Utility Functions'!$T$3:$T$7)","v":0},{"$f":"valueE(L19,'Utility Functions'!$V$3,'Utility Functions'!$V$4,'Utility Functions'!$V$5,'Utility Functions'!$V$6)","v":0},{"$f":"valuePL(M19,'Utility Functions'!$W$3:$W$6,'Utility Functions'!$X$3:$X$6)","v":0},{"$f":"valueE(N19,'Utility Functions'!$Z$3,'Utility Functions'!$Z$4,'Utility Functions'!$Z$5,'Utility Functions'!$Z$6)","v":1},{"$f":"valuePL(O19,'Utility Functions'!$AA$3:$AA$5,'Utility Functions'!$AB$3:$AB$5)","v":0.25},{"$f":"valuePL(P19,'Utility Functions'!$AC$3:$AC$7,'Utility Functions'!$AD$3:$AD$7)","v":0.25},{"$f":"valuePL(Q19,'Utility Functions'!$AE$3:$AE$6,'Utility Functions'!$AF$3:$AF$6)","v":1},{"$f":"valuePL(R19,'Utility Functions'!$AG$3:$AG$6,'Utility Functions'!$AH$3:$AH$6)","v":1},{"$f":"valuePL(S19,'Utility Functions'!$AI$3:$AI$6,'Utility Functions'!$AJ$3:$AJ$6)","v":1},{"$f":"valuePL(T19,'Utility Functions'!$AK$3:$AK$8,'Utility Functions'!$AL$3:$AL$8)","v":1},{"$f":"valuePL(U19,'Utility Functions'!$AM$3:$AM$5,'Utility Functions'!$AN$3:$AN$5)","v":0.25},{"$f":"valuePL(V19,'Utility Functions'!$AO$3:$AO$5,'Utility Functions'!$AP$3:$AP$5)","v":1},{"$f":"valuePL(W19,'Utility Functions'!$AQ$3:$AQ$6,'Utility Functions'!$AR$3:$AR$6)","v":0.75},{"$f":"valuePL(X19,'Utility Functions'!$AS$3:$AS$6,'Utility Functions'!$AT$3:$AT$6)","v":0.2},{"$f":"valuePL(Y19,'Utility Functions'!$AU$3:$AU$6,'Utility Functions'!$AV$3:$AV$6)","v":0.8},{"$f":"valuePL(Z19,'Utility Functions'!$AW$3:$AW$5,'Utility Functions'!$AX$3:$AX$5)","v":0.5},{"$f":"valuePL(AA19,'Utility Functions'!$AY$3:$AY$6,'Utility Functions'!$AZ$3:$AZ$6)","v":0.89999999999999991},{"$f":"valuePL(AB19,'Utility Functions'!$BA$3:$BA$5,'Utility Functions'!$BB$3:$BB$5)","v":0.25},{"$f":"valuePL(AC19,'Utility Functions'!$BC$3:$BC$5,'Utility Functions'!$BD$3:$BD$5)","v":0},10.178462998102468,null,10.178462998102468,0,2.8462998102466792E-2,1.25,4.5,4.4000000000000004]
[19,{"$f":"valueE(B20,'Utility Functions'!$B$3,'Utility Functions'!$B$4,'Utility Functions'!$B$5,'Utility Functions'!$B$6)","v":0.79810469124896843},{"$f":"valueE(C20,'Utility Functions'!$D$3,'Utility Functions'!$D$4,'Utility Functions'!$D$5,'Utility Functions'!$D$6)","v":0.26839655623815994},{"$f":"valuePL(D20,'Utility Functions'!$E$3:$E$5,'Utility Functions'!$F$3:$F$5)","v":0.5},{"$f":"valuePL(E20,'Utility Functions'!$G$3:$G$5,'Utility Functions'!$H$3:$H$5)","v":1},{"$f":"valuePL(F20,'Utility Functions'!$I$3:$I$4,'Utility Functions'!$J$3:$J$5)","v":0},{"$f":"valueE(G20,'Utility Functions'!$L$3,'Utility Functions'!$L$4,'Utility Functions'!$L$5,'Utility Functions'!$L$6)","v":0},{"$f":"valueE(H20,'Utility Functions'!$N$3,'Utility Functions'!$N$4,'Utility Functions'!$N$5,'Utility Functions'!$N$6)","v":0},{"$f":"valuePL(I20,'Utility Functions'!$O$3:$O$6,'Utility Functions'!$P$3:$P$6)","v":0},{"$f":"valuePL(J20,'Utility Functions'!$Q$3:$Q$6,'Utility Functions'!$R$3:$R$6)","v":0},{"$f":"valuePL(K20,'Utility Functions'!$S$3:$S$7,'Utility Functions'!$T$3:$T$7)","v":0},{"$f":"valueE(L20,'Utility Functions'!$V$3,'Utility Functions'!$V$4,'Utility Functions'!$V$5,'Utility Functions'!$V$6)","v":0},{"$f":"valuePL(M20,'Utility Functions'!$W$3:$W$6,'Utility Functions'!$X$3:$X$6)","v":0},{"$f":"valueE(N20,'Utility Functions'!$Z$3,'Utility Functions'!$Z$4,'Utility Functions'!$Z$5,'Utility Functions'!$Z$6)","v":1},{"$f":"valuePL(O20,'Utility Functions'!$AA$3:$AA$5,'Utility Functions'!$AB$3:$AB$5)","v":1},{"$f":"valuePL(P20,'Utility Functions'!$AC$3:$AC$7,'Utility Functions'!$AD$3:$AD$7)","v":0},{"$f":"valuePL(Q20,'Utility Functions'!$AE$3:$AE$6,'Utility Functions'!$AF$3:$AF$6)","v":0},{"$f":"valuePL(R20,'Utility Functions'!$AG$3:$AG$6,'Utility Functions'!$AH$3:$AH$6)","v":0.8},{"$f":"valuePL(S20,'Utility Functions'!$AI$3:$AI$6,'Utility Functions'!$AJ$3:$AJ$6)","v":1},{"$f":"valuePL(T20,'Utility Functions'!$AK$3:$AK$8,'Utility Functions'!$AL$3:$AL$8)","v":0},{"$f":"valuePL(U20,'Utility Functions'!$AM$3:$AM$5,'Utility Functions'!$AN$3:$AN$5)","v":0},{"$f":"valuePL(V20,'Utility Functions'!$AO$3:$AO$5,'Utility Functions'!$AP$3:$AP$5)","v":0.5},{"$f":"valuePL(W20,'Utility Functions'!$AQ$3:$AQ$6,'Utility Functions'!$AR$3:$AR$6)","v":0.2},{"$f":"valuePL(X20,'Utility Functions'!$AS$3:$AS$6,'Utility Functions'!$AT$3:$AT$6)","v":1},{"$f":"valuePL(Y20,'Utility Functions'!$AU$3:$AU$6,'Utility Functions'!$AV$3:$AV$6)","v":0.8},{"$f":"valuePL(Z20,'Utility Functions'!$AW$3:$AW$5,'Utility Functions'!$AX$3:$AX$5)","v":0},{"$f":"valuePL(AA20,'Utility Functions'!$AY$3:$AY$6,'Utility Functions'!$AZ$3:$AZ$6)","v":0.2},{"$f":"valuePL(AB20,'Utility Functions'!$BA$3:$BA$5,'Utility Functions'!$BB$3:$BB$5)","v":0},{"$f":"valuePL(AC20,'Utility Functions'!$BC$3:$BC$5,'Utility Functions'!$BD$3:$BD$5)","v":0.25},9.3165012474871283,null,9.3165012474871283,2.5665012474871283,0,2,1.8,2.95]
[20,{"$f":"valueE(B21,'Utility Functions'!$B$3,'Utility Functions'!$B$4,'Utility Functions'!$B$5,'Utility Functions'!$B$6)","v":0.83470237647280454},{"$f":"valueE(C21,'Utility Functions'!$D$3,'Utility Functions'!$D$4,'Utility Functions'!$D$5,'Utility Functions'!$D$6)","v":0.78989979019422951},{"$f":"valuePL(D21,'Utility Functions'!$E$3:$E$5,'Utility Functions'!$F$3:$F$5)","v":0.5},{"$f":"valuePL(E21,'Utility Functions'!$G$3:$G$5,'Utility Functions'!$H$3:$H$5)","v":1},{"$f":"valuePL(F21,'Utility Functions'!$I$3:$I$4,'Utility Functions'!$J$3:$J$5)","v":0},{"$f":"valueE(G21,'Utility Functions'!$L$3,'Utility Functions'!$L$4,'Utility Functions'!$L$5,'Utility Functions'!$L$6)","v":0},{"$f":"valueE(H21,'Utility Functions'!$N$3,'Utility Functions'!$N$4,'Utility Functions'!$N$5,'Utility Functions'!$N$6)","v":0.41271347248576851},{"$f":"valuePL(I21,'Utility Functions'!$O$3:$O$6,'Utility Functions'!$P$3:$P$6)","v":0.93454545454545446},{"$f":"valuePL(J21,'Utility Functions'!$Q$3:$Q$6,'Utility Functions'!$R$3:$R$6)","v":0.50909090909090915},{"$f":"valuePL(K21,'Utility Functions'!$S$3:$S$7,'Utility Functions'!$T$3:$T$7)","v":0.93454545454545446},{"$f":"valueE(L21,'Utility Functions'!$V$3,'Utility Functions'!$V$4,'Utility Functions'!$V$5,'Utility Functions'!$V$6)","v":0.66666666666666663},{"$f":"valuePL(M21,'Utility Functions'!$W$3:$W$6,'Utility Functions'!$X$3:$X$6)","v":0.50909090909090915},{"$f":"valueE(N21,'Utility Functions'!$Z$3,'Utility Functions'!$Z$4,'Utility Functions'!$Z$5,'Utility Functions'!$Z$6)","v":1},{"$f":"valuePL(O21,'Utility Functions'!$AA$3:$AA$5,'Utility Functions'!$AB$3:$AB$5)","v":1},{"$f":"valuePL(P21,'Utility Functions'!$AC$3:$AC$7,'Utility Functions'!$AD$3:$AD$7)","v":0.25},{"$f":"valuePL(Q21,'Utility Functions'!$AE$3:$AE$6,'Utility Functions'!$AF$3:$AF$6)","v":0},{"$f":"valuePL(R21,'Utility Functions'!$AG$3:$AG$6,'Utility Functions'!$AH$3:$AH$6)","v":1},{"$f":"valuePL(S21,'Utility Functions'!$AI$3:$AI$6,'Utility Functions'!$AJ$3:$AJ$6)","v":1},{"$f":"valuePL(T21,'Utility Functions'!$AK$3:$AK$8,'Utility Functions'!$AL$3:$AL$8)","v":0.6},{"$f":"valuePL(U21,'Utility Functions'!$AM$3:$AM$5,'Utility Functions'!$AN$3:$AN$5)","v":1},{"$f":"valuePL(V21,'Utility Functions'!$AO$3:$AO$5,'Utility Functions'!$AP$3:$AP$5)","v":0.5},{"$f":"valuePL(W21,'Utility Functions'!$AQ$3:$AQ$6,'Utility Functions'!$AR$3:$AR$6)","v":0},{"$f":"valuePL(X21,'Utility Functions'!$AS$3:$AS$6,'Utility Functions'!$AT$3:$AT$6)","v":0},{"$f":"valuePL(Y21,'Utility Functions'!$AU$3:$AU$6,'Utility Functions'!$AV$3:$AV$6)","v":0.2},{"$f":"valuePL(Z21,'Utility Functions'!$AW$3:$AW$5,'Utility Functions'!$AX$3:$AX$5)","v":1},{"$f":"valuePL(AA21,'Utility Functions'!$AY$3:$AY$6,'Utility Functions'!$AZ$3:$AZ$6)","v":0.2},{"$f":"valuePL(AB21,'Utility Functions'!$BA$3:$BA$5,'Utility Functions'!$BB$3:$BB$5)","v":0},{"$f":"valuePL(AC21,'Utility Functions'!$BC$3:$BC$5,'Utility Functions'!$BD$3:$BD$5)","v":0.25},15.091255033092194,null,15.091255033092196,3.1246021666670343,3.9666528664251626,2,3.85,2.15]
[21,{"$f":"valueE(B22,'Utility Functions'!$B$3,'Utility Functions'!$B$4,'Utility Functions'!$B$5,'Utility Functions'!$B$6)","v":0},{"$f":"valueE(C22,'Utility Functions'!$D$3,'Utility Functions'!$D$4,'Utility Functions'!$D$5,'Utility Functions'!$D$6)","v":0},{"$f":"valuePL(D22,'Utility Functions'!$E$3:$E$5,'Utility Functions'!$F$3:$F$5)","v":0},{"$f":"valuePL(E22,'Utility Functions'!$G$3:$G$5,'Utility Functions'!$H$3:$H$5)","v":0},{"$f":"valuePL(F22,'Utility Functions'!$I$3:$I$4,'Utility Functions'!$J$3:$J$5)","v":0},{"$f":"valueE(G22,'Utility Functions'!$L$3,'Utility Functions'!$L$4,'Utility Functions'!$L$5,'Utility Functions'!$L$6)","v":0},{"$f":"valueE(H22,'Utility Functions'!$N$3,'Utility Functions'!$N$4,'Utility Functions'!$N$5,'Utility Functions'!$N$6)","v":0},{"$f":"valuePL(I22,'Utility Functions'!$O$3:$O$6,'Utility Functions'!$P$3:$P$6)","v":0},{"$f":"valuePL(J22,'Utility Functions'!$Q$3:$Q$6,'Utility Functions'!$R$3:$R$6)","v":0},{"$f":"valuePL(K22,'Utility Functions'!$S$3:$S$7,'Utility Functions'!$T$3:$T$7)","v":0},{"$f":"valueE(L22,'Utility Functions'!$V$3,'Utility Functions'!$V$4,'Utility Functions'!$V$5,'Utility Functions'!$V$6)","v":0},{"$f":"valuePL(M22,'Utility Functions'!$W$3:$W$6,'Utility Functions'!$X$3:$X$6)","v":0},{"$f":"valueE(N22,'Utility Functions'!$Z$3,'Utility Functions'!$Z$4,'Utility Functions'!$Z$5,'Utility Functions'!$Z$6)","v":1},{"$f":"valuePL(O22,'Utility Functions'!$AA$3:$AA$5,'Utility Functions'!$AB$3:$AB$5)","v":1},{"$f":"valuePL(P22,'Utility Functions'!$AC$3:$AC$7,'Utility Functions'!$AD$3:$AD$7)","v":0},{"$f":"valuePL(Q22,'Utility Functions'!$AE$3:$AE$6,'Utility Functions'!$AF$3:$AF$6)","v":0.1},{"$f":"valuePL(R22,'Utility Functions'!$AG$3:$AG$6,'Utility Functions'!$AH$3:$AH$6)","v":1},{"$f":"valuePL(S22,'Utility Functions'!$AI$3:$AI$6,'Utility Functions'!$AJ$3:$AJ$6)","v":1},{"$f":"valuePL(T22,'Utility Functions'!$AK$3:$AK$8,'Utility Functions'!$AL$3:$AL$8)","v":1},{"$f":"valuePL(U22,'Utility Functions'!$AM$3:$AM$5,'Utility Functions'!$AN$3:$AN$5)","v":0.25},{"$f":"valuePL(V22,'Utility Functions'!$AO$3:$AO$5,'Utility Functions'!$AP$3:$AP$5)","v":0},{"$f":"valuePL(W22,'Utility Functions'!$AQ$3:$AQ$6,'Utility Functions'!$AR$3:$AR$6)","v":0.75},{"$f":"valuePL(X22,'Utility Functions'!$AS$3:$AS$6,'Utility Functions'!$AT$3:$AT$6)","v":1},{"$f":"valuePL(Y22,'Utility Functions'!$AU$3:$AU$6,'Utility Functions'!$AV$3:$AV$6)","v":0.2},{"$f":"valuePL(Z22,'Utility Functions'!$AW$3:$AW$5,'Utility Functions'!$AX$3:$AX$5)","v":0},{"$f":"valuePL(AA22,'Utility Functions'!$AY$3:$AY$6,'Utility Functions'!$AZ$3:$AZ$6)","v":1},{"$f":"valuePL(AB22,'Utility Functions'!$BA$3:$BA$5,'Utility Functions'!$BB$3:$BB$5)","v":0.25},{"$f":"valuePL(AC22,'Utility Functions'!$BC$3:$BC$5,'Utility Functions'!$BD$3:$BD$5)","v":1},9.5500000000000007,null,9.5500000000000007,0,0,2,3.35,4.2]
[22,{"$f":"valueE(B23,'Utility Functions'!$B$3,'Utility Functions'!$B$4,'Utility Functions'!$B$5,'Utility Functions'!$B$6)","v":0},{"$f":"valueE(C23,'Utility Functions'!$D$3,'Utility Functions'!$D$4,'Utility Functions'!$D$5,'Utility Functions'!$D$6)","v":0},{"$f":"valuePL(D23,'Utility Functions'!$E$3:$E$5,'Utility Functions'!$F$3:$F$5)","v":0},{"$f":"valuePL(E23,'Utility Functions'!$G$3:$G$5,'Utility Functions'!$H$3:$H$5)","v":0},{"$f":"valuePL(F23,'Utility Functions'!$I$3:$I$4,'Utility Functions'!$J$3:$J$5)","v":0},{"$f":"valueE(G23,'Utility Functions'!$L$3,'Utility Functions'!$L$4,'Utility Functions'!$L$5,'Utility Functions'!$L$6)","v":8.6021505376344093E-2},{"$f":"valueE(H23,'Utility Functions'!$N$3,'Utility Functions'!$N$4,'Utility Functions'!$N$5,'Utility Functions'!$N$6)","v":6.0721062618595827E-2},{"$f":"valuePL(I23,'Utility Functions'!$O$3:$O$6,'Utility Functions'!$P$3:$P$6)","v":0},{"$f":"valuePL(J23,'Utility Functions'!$Q$3:$Q$6,'Utility Functions'!$R$3:$R$6)","v":0},{"$f":"valuePL(K23,'Utility Functions'!$S$3:$S$7,'Utility Functions'!$T$3:$T$7)","v":0},{"$f":"valueE(L23,'Utility Functions'!$V$3,'Utility Functions'!$V$4,'Utility Functions'!$V$5,'Utility Functions'!$V$6)","v":0},{"$f":"valuePL(M23,'Utility Functions'!$W$3:$W$6,'Utility Functions'!$X$3:$X$6)","v":0},{"$f":"valueE(N23,'Utility Functions'!$Z$3,'Utility Functions'!$Z$4,'Utility Functions'!$Z$5,'Utility Functions'!$Z$6)","v":0.125},{"$f":"valuePL(O23,'Utility Functions'!$AA$3:$AA$5,'Utility Functions'!$AB$3:$AB$5)","v":1},{"$f":"valuePL(P23,'Utility Functions'!$AC$3:$AC$7,'Utility Functions'!$AD$3:$AD$7)","v":1},{"$f":"valuePL(Q23,'Utility Functions'!$AE$3:$AE$6,'Utility Functions'!$AF$3:$AF$6)","v":0.5},{"$f":"valuePL(R23,'Utility Functions'!$AG$3:$AG$6,'Utility Functions'!$AH$3:$AH$6)","v":0.8},{"$f":"valuePL(S23,'Utility Functions'!$AI$3:$AI$6,'Utility Functions'!$AJ$3:$AJ$6)","v":1},{"$f":"valuePL(T23,'Utility Functions'!$AK$3:$AK$8,'Utility Functions'!$AL$3:$AL$8)","v":1},{"$f":"valuePL(U23,'Utility Functions'!$AM$3:$AM$5,'Utility Functions'!$AN$3:$AN$5)","v":0},{"$f":"valuePL(V23,'Utility Functions'!$AO$3:$AO$5,'Utility Functions'!$AP$3:$AP$5)","v":0.5},{"$f":"valuePL(W23,'Utility Functions'!$AQ$3:$AQ$6,'Utility Functions'!$AR$3:$AR$6)","v":0.75},{"$f":"valuePL(X23,'Utility Functions'!$AS$3:$AS$6,'Utility Functions'!$AT$3:$AT$6)","v":0.2},{"$f":"valuePL(Y23,'Utility Functions'!$AU$3:$AU$6,'Utility Functions'!$AV$3:$AV$6)","v":0},{"$f":"valuePL(Z23,'Utility Functions'!$AW$3:$AW$5,'Utility Functions'!$AX$3:$AX$5)","v":1},{"$f":"valuePL(AA23,'Utility Functions'!$AY$3:$AY$6,'Utility Functions'!$AZ$3:$AZ$6)","v":0.2},{"$f":"valuePL(AB23,'Utility Functions'!$BA$3:$BA$5,'Utility Functions'!$BB$3:$BB$5)","v":1},{"$f":"valuePL(AC23,'Utility Functions'!$BC$3:$BC$5,'Utility Functions'!$BD$3:$BD$5)","v":0.25},9.471742567994939,null,9.4717425679949407,0,0.14674256799493993,1.125,4.3,3.9000000000000004]
[23,{"$f":"valueE(B24,'Utility Functions'!$B$3,'Utility Functions'!$B$4,'Utility Functions'!$B$5,'Utility Functions'!$B$6)","v":0.83470237647280454},{"$f":"valueE(C24,'Utility Functions'!$D$3,'Utility Functions'!$D$4,'Utility Functions'!$D$5,'Utility Functions'!$D$6)","v":0.84744836833951609},{"$f":"valuePL(D24,'Utility Functions'!$E$3:$E$5,'Utility Functions'!$F$3:$F$5)","v":1},{"$f":"valuePL(E24,'Utility Functions'!$G$3:$G$5,'Utility Functions'!$H$3:$H$5)","v":0},{"$f":"valuePL(F24,'Utility Functions'!$I$3:$I$4,'Utility Functions'!$J$3:$J$5)","v":0},{"$f":"valueE(G24,'Utility Functions'!$L$3,'Utility Functions'!$L$4,'Utility Functions'!$L$5,'Utility Functions'!$L$6)","v":0},{"$f":"valueE(H24,'Utility Functions'!$N$3,'Utility Functions'!$N$4,'Utility Functions'!$N$5,'Utility Functions'!$N$6)","v":0},{"$f":"valuePL(I24,'Utility Functions'!$O$3:$O$6,'Utility Functions'!$P$3:$P$6)","v":0},{"$f":"valuePL(J24,'Utility Functions'!$Q$3:$Q$6,'Utility Functions'!$R$3:$R$6)","v":0},{"$f":"valuePL(K24,'Utility Functions'!$S$3:$S$7,'Utility Functions'!$T$3:$T$7)","v":0},{"$f":"valueE(L24,'Utility Functions'!$V$3,'Utility Functions'!$V$4,'Utility Functions'!$V$5,'Utility Functions'!$V$6)","v":0},{"$f":"valuePL(M24,'Utility Functions'!$W$3:$W$6,'Utility Functions'!$X$3:$X$6)","v":0},{"$f":"valueE(N24,'Utility Functions'!$Z$3,'Utility Functions'!$Z$4,'Utility Functions'!$Z$5,'Utility Functions'!$Z$6)","v":0},{"$f":"valuePL(O24,'Utility Functions'!$AA$3:$AA$5,'Utility Functions'!$AB$3:$AB$5)","v":0},{"$f":"valuePL(P24,'Utility Functions'!$AC$3:$AC$7,'Utility Functions'!$AD$3:$AD$7)","v":0.75},{"$f":"valuePL(Q24,'Utility Functions'!$AE$3:$AE$6,'Utility Functions'!$AF$3:$AF$6)","v":0},{"$f":"valuePL(R24,'Utility Functions'!$AG$3:$AG$6,'Utility Functions'!$AH$3:$AH$6)","v":1},{"$f":"valuePL(S24,'Utility Functions'!$AI$3:$AI$6,'Utility Functions'!$AJ$3:$AJ$6)","v":1},{"$f":"valuePL(T24,'Utility Functions'!$AK$3:$AK$8,'Utility Functions'!$AL$3:$AL$8)","v":1},{"$f":"valuePL(U24,'Utility Functions'!$AM$3:$AM$5,'Utility Functions'!$AN$3:$AN$5)","v":0},{"$f":"valuePL(V24,'Utility Functions'!$AO$3:$AO$5,'Utility Functions'!$AP$3:$AP$5)","v":1},{"$f":"valuePL(W24,'Utility Functions'!$AQ$3:$AQ$6,'Utility Functions'!$AR$3:$AR$6)","v":0.2},{"$f":"valuePL(X24,'Utility Functions'!$AS$3:$AS$6,'Utility Functions'!$AT$3:$AT$6)","v":0.75},{"$f":"valuePL(Y24,'Utility Functions'!$AU$3:$AU$6,'Utility Functions'!$AV$3:$AV$6)","v":0.2},{"$f":"valuePL(Z24,'Utility Functions'!$AW$3:$AW$5,'Utility Functions'!$AX$3:$AX$5)","v":0.5},{"$f":"valuePL(AA24,'Utility Functions'!$AY$3:$AY$6,'Utility Functions'!$AZ$3:$AZ$6)","v":0.2},{"$f":"valuePL(AB24,'Utility Functions'!$BA$3:$BA$5,'Utility Functions'!$BB$3:$BB$5)","v":0},{"$f":"valuePL(AC24,'Utility Functions'!$BC$3:$BC$5,'Utility Functions'!$BD$3:$BD$5)","v":0.25},9.5321507448123199,null,9.5321507448123199,2.6821507448123207,0,0,3.75,3.1]
[24,{"$f":"valueE(B25,'Utility Functions'!$B$3,'Utility Functions'!$B$4,'Utility Functions'!$B$5,'Utility Functions'!$B$6)","v":0.63212151658375171},{"$f":"valueE(C25,'Utility Functions'!$D$3,'Utility Functions'!$D$4,'Utility Functions'!$D$5,'Utility Functions'!$D$6)","v":0.46475967153745396},{"$f":"valuePL(D25,'Utility Functions'!$E$3:$E$5,'Utility Functions'!$F$3:$F$5)","v":1},{"$f":"valuePL(E25,'Utility Functions'!$G$3:$G$5,'Utility Functions'!$H$3:$H$5)","v":0},{"$f":"valuePL(F25,'Utility Functions'!$I$3:$I$4,'Utility Functions'!$J$3:$J$5)","v":0},{"$f":"valueE(G25,'Utility Functions'!$L$3,'Utility Functions'!$L$4,'Utility Functions'!$L$5,'Utility Functions'!$L$6)","v":0},{"$f":"valueE(H25,'Utility Functions'!$N$3,'Utility Functions'!$N$4,'Utility Functions'!$N$5,'Utility Functions'!$N$6)","v":0},{"$f":"valuePL(I25,'Utility Functions'!$O$3:$O$6,'Utility Functions'!$P$3:$P$6)","v":0},{"$f":"valuePL(J25,'Utility Functions'!$Q$3:$Q$6,'Utility Functions'!$R$3:$R$6)","v":0},{"$f":"valuePL(K25,'Utility Functions'!$S$3:$S$7,'Utility Functions'!$T$3:$T$7)","v":0},{"$f":"valueE(L25,'Utility Functions'!$V$3,'Utility Functions'!$V$4,'Utility Functions'!$V$5,'Utility Functions'!$V$6)","v":0},{"$f":"valuePL(M25,'Utility Functions'!$W$3:$W$6,'Utility Functions'!$X$3:$X$6)","v":0},{"$f":"valueE(N25,'Utility Functions'!$Z$3,'Utility Functions'!$Z$4,'Utility Functions'!$Z$5,'Utility Functions'!$Z$6)","v":0},{"$f":"valuePL(O25,'Utility Functions'!$AA$3:$AA$5,'Utility Functions'!$AB$3:$AB$5)","v":0},{"$f":"valuePL(P25,'Utility Functions'!$AC$3:$AC$7,'Utility Functions'!$AD$3:$AD$7)","v":0},{"$f":"valuePL(Q25,'Utility Functions'!$AE$3:$AE$6,'Utility Functions'!$AF$3:$AF$6)","v":0},{"$f":"valuePL(R25,'Utility Functions'!$AG$3:$AG$6,'Utility Functions'!$AH$3:$AH$6)","v":1},{"$f":"valuePL(S25,'Utility Functions'!$AI$3:$AI$6,'Utility Functions'!$AJ$3:$AJ$6)","v":1},{"$f":"valuePL(T25,'Utility Functions'!$AK$3:$AK$8,'Utility Functions'!$AL$3:$AL$8)","v":1},{"$f":"valuePL(U25,'Utility Functions'!$AM$3:$AM$5,'Utility Functions'!$AN$3:$AN$5)","v":0},{"$f":"valuePL(V25,'Utility Functions'!$AO$3:$AO$5,'Utility Functions'!$AP$3:$AP$5)","v":0},{"$f":"valuePL(W25,'Utility Functions'!$AQ$3:$AQ$6,'Utility Functions'!$AR$3:$AR$6)","v":1},{"$f":"valuePL(X25,'Utility Functions'!$AS$3:$AS$6,'Utility Functions'!$AT$3:$AT$6)","v":0.2},{"$f":"valuePL(Y25,'Utility Functions'!$AU$3:$AU$6,'Utility Functions'!$AV$3:$AV$6)","v":1},{"$f":"valuePL(Z25,'Utility Functions'!$AW$3:$AW$5,'Utility Functions'!$AX$3:$AX$5)","v":1},{"$f":"valuePL(AA25,'Utility Functions'!$AY$3:$AY$6,'Utility Functions'!$AZ$3:$AZ$6)","v":0.2},{"$f":"valuePL(AB25,'Utility Functions'!$BA$3:$BA$5,'Utility Functions'!$BB$3:$BB$5)","v":0},{"$f":"valuePL(AC25,'Utility Functions'!$BC$3:$BC$5,'Utility Functions'!$BD$3:$BD$5)","v":1},9.4968811881212041,null,9.4968811881212059,2.0968811881212055,0,0,3,4.4000000000000004]
[25,{"$f":"valueE(B26,'Utility Functions'!$B$3,'Utility Functions'!$B$4,'Utility Functions'!$B$5,'Utility Functions'!$B$6)","v":0.83470237647280454},{"$f":"valueE(C26,'Utility Functions'!$D$3,'Utility Functions'!$D$4,'Utility Functions'!$D$5,'Utility Functions'!$D$6)","v":0.84744836833951609},{"$f":"valuePL(D26,'Utility Functions'!$E$3:$E$5,'Utility Functions'!$F$3:$F$5)","v":1},{"$f":"valuePL(E26,'Utility Functions'!$G$3:$G$5,'Utility Functions'!$H$3:$H$5)","v":0},{"$f":"valuePL(F26,'Utility Functions'!$I$3:$I$4,'Utility Functions'!$J$3:$J$5)","v":0},{"$f":"valueE(G26,'Utility Functions'!$L$3,'Utility Functions'!$L$4,'Utility Functions'!$L$5,'Utility Functions'!$L$6)","v":0.94623655913978499},{"$f":"valueE(H26,'Utility Functions'!$N$3,'Utility Functions'!$N$4,'Utility Functions'!$N$5,'Utility Functions'!$N$6)","v":0.29222011385199242},{"$f":"valuePL(I26,'Utility Functions'!$O$3:$O$6,'Utility Functions'!$P$3:$P$6)","v":0},{"$f":"valuePL(J26,'Utility Functions'!$Q$3:$Q$6,'Utility Functions'!$R$3:$R$6)","v":0},{"$f":"valuePL(K26,'Utility Functions'!$S$3:$S$7,'Utility Functions'!$T$3:$T$7)","v":0},{"$f":"valueE(L26,'Utility Functions'!$V$3,'Utility Functions'!$V$4,'Utility Functions'!$V$5,'Utility Functions'!$V$6)","v":0},{"$f":"valuePL(M26,'Utility Functions'!$W$3:$W$6,'Utility Functions'!$X$3:$X$6)","v":0},{"$f":"valueE(N26,'Utility Functions'!$Z$3,'Utility Functions'!$Z$4,'Utility Functions'!$Z$5,'Utility Functions'!$Z$6)","v":1},{"$f":"valuePL(O26,'Utility Functions'!$AA$3:$AA$5,'Utility Functions'!$AB$3:$AB$5)","v":0.25},{"$f":"valuePL(P26,'Utility Functions'!$AC$3:$AC$7,'Utility Functions'!$AD$3:$AD$7)","v":0.5},{"$f":"valuePL(Q26,'Utility Functions'!$AE$3:$AE$6,'Utility Functions'!$AF$3:$AF$6)","v":0.5},{"$f":"valuePL(R26,'Utility Functions'!$AG$3:$AG$6,'Utility Functions'!$AH$3:$AH$6)","v":1},{"$f":"valuePL(S26,'Utility Functions'!$AI$3:$AI$6,'Utility Functions'!$AJ$3:$AJ$6)","v":1},{"$f":"valuePL(T26,'Utility Functions'!$AK$3:$AK$8,'Utility Functions'!$AL$3:$AL$8)","v":0},{"$f":"valuePL(U26,'Utility Functions'!$AM$3:$AM$5,'Utility Functions'!$AN$3:$AN$5)","v":0},{"$f":"valuePL(V26,'Utility Functions'!$AO$3:$AO$5,'Utility Functions'!$AP$3:$AP$5)","v":1},{"$f":"valuePL(W26,'Utility Functions'!$AQ$3:$AQ$6,'Utility Functions'!$AR$3:$AR$6)","v":0.2},{"$f":"valuePL(X26,'Utility Functions'!$AS$3:$AS$6,'Utility Functions'!$AT$3:$AT$6)","v":1},{"$f":"valuePL(Y26,'Utility Functions'!$AU$3:$AU$6,'Utility Functions'!$AV$3:$AV$6)","v":0.8},{"$f":"valuePL(Z26,'Utility Functions'!$AW$3:$AW$5,'Utility Functions'!$AX$3:$AX$5)","v":0.5},{"$f":"valuePL(AA26,'Utility Functions'!$AY$3:$AY$6,'Utility Functions'!$AZ$3:$AZ$6)","v":0.2},{"$f":"valuePL(AB26,'Utility Functions'!$BA$3:$BA$5,'Utility Functions'!$BB$3:$BB$5)","v":1},{"$f":"valuePL(AC26,'Utility Functions'!$BC$3:$BC$5,'Utility Functions'!$BD$3:$BD$5)","v":1},13.870607417804099,null,13.870607417804099,2.6821507448123207,1.2384566729917774,1.25,3,5.7]
[26,{"$f":"valueE(B27,'Utility Functions'!$B$3,'Utility Functions'!$B$4,'Utility Functions'!$B$5,'Utility Functions'!$B$6)","v":0.96662819462069161},{"$f":"valueE(C27,'Utility Functions'!$D$3,'Utility Functions'!$D$4,'Utility Functions'!$D$5,'Utility Functions'!$D$6)","v":0.84744836833951609},{"$f":"valuePL(D27,'Utility Functions'!$E$3:$E$5,'Utility Functions'!$F$3:$F$5)","v":1},{"$f":"valuePL(E27,'Utility Functions'!$G$3:$G$5,'Utility Functions'!$H$3:$H$5)","v":0.5},{"$f":"valuePL(F27,'Utility Functions'!$I$3:$I$4,'Utility Functions'!$J$3:$J$5)","v":0},{"$f":"valueE(G27,'Utility Functions'!$L$3,'Utility Functions'!$L$4,'Utility Functions'!$L$5,'Utility Functions'!$L$6)","v":0},{"$f":"valueE(H27,'Utility Functions'!$N$3,'Utility Functions'!$N$4,'Utility Functions'!$N$5,'Utility Functions'!$N$6)","v":0},{"$f":"valuePL(I27,'Utility Functions'!$O$3:$O$6,'Utility Functions'!$P$3:$P$6)","v":0},{"$f":"valuePL(J27,'Utility Functions'!$Q$3:$Q$6,'Utility Functions'!$R$3:$R$6)","v":0},{"$f":"valuePL(K27,'Utility Functions'!$S$3:$S$7,'Utility Functions'!$T$3:$T$7)","v":0},{"$f":"valueE(L27,'Utility Functions'!$V$3,'Utility Functions'!$V$4,'Utility Functions'!$V$5,'Utility Functions'!$V$6)","v":0},{"$f":"valuePL(M27,'Utility Functions'!$W$3:$W$6,'Utility Functions'!$X$3:$X$6)","v":0},{"$f":"valueE(N27,'Utility Functions'!$Z$3,'Utility Functions'!$Z$4,'Utility Functions'!$Z$5,'Utility Functions'!$Z$6)","v":0},{"$f":"valuePL(O27,'Utility Functions'!$AA$3:$AA$5,'Utility Functions'!$AB$3:$AB$5)","v":0},{"$f":"valuePL(P27,'Utility Functions'!$AC$3:$AC$7,'Utility Functions'!$AD$3:$AD$7)","v":0.75},{"$f":"valuePL(Q27,'Utility Functions'!$AE$3:$AE$6,'Utility Functions'!$AF$3:$AF$6)","v":0},{"$f":"valuePL(R27,'Utility Functions'!$AG$3:$AG$6,'Utility Functions'!$AH$3:$AH$6)","v":1},{"$f":"valuePL(S27,'Utility Functions'!$AI$3:$AI$6,'Utility Functions'!$AJ$3:$AJ$6)","v":1},{"$f":"valuePL(T27,'Utility Functions'!$AK$3:$AK$8,'Utility Functions'!$AL$3:$AL$8)","v":0.8},{"$f":"valuePL(U27,'Utility Functions'!$AM$3:$AM$5,'Utility Functions'!$AN$3:$AN$5)","v":0},{"$f":"valuePL(V27,'Utility Functions'!$AO$3:$AO$5,'Utility Functions'!$AP$3:$AP$5)","v":1},{"$f":"valuePL(W27,'Utility Functions'!$AQ$3:$AQ$6,'Utility Functions'!$AR$3:$AR$6)","v":0.2},{"$f":"valuePL(X27,'Utility Functions'!$AS$3:$AS$6,'Utility Functions'!$AT$3:$AT$6)","v":0},{"$f":"valuePL(Y27,'Utility Functions'!$AU$3:$AU$6,'Utility Functions'!$AV$3:$AV$6)","v":0.8},{"$f":"valuePL(Z27,'Utility Functions'!$AW$3:$AW$5,'Utility Functions'!$AX$3:$AX$5)","v":0},{"$f":"valuePL(AA27,'Utility Functions'!$AY$3:$AY$6,'Utility Functions'!$AZ$3:$AZ$6)","v":0.2},{"$f":"valuePL(AB27,'Utility Functions'!$BA$3:$BA$5,'Utility Functions'!$BB$3:$BB$5)","v":1},{"$f":"valuePL(AC27,'Utility Functions'!$BC$3:$BC$5,'Utility Functions'!$BD$3:$BD$5)","v":1},11.064076562960208,null,11.064076562960206,3.3140765629602078,0,0,3.55,4.2]
[27,{"$f":"valueE(B28,'Utility Functions'!$B$3,'Utility Functions'!$B$4,'Utility Functions'!$B$5,'Utility Functions'!$B$6)","v":0},{"$f":"valueE(C28,'Utility Functions'!$D$3,'Utility Functions'!$D$4,'Utility Functions'!$D$5,'Utility Functions'!$D$6)","v":0.46475967153745396},{"$f":"valuePL(D28,'Utility Functions'!$E$3:$E$5,'Utility Functions'!$F$3:$F$5)","v":1},{"$f":"valuePL(E28,'Utility Functions'!$G$3:$G$5,'Utility Functions'!$H$3:$H$5)","v":0},{"$f":"valuePL(F28,'Utility Functions'!$I$3:$I$4,'Utility Functions'!$J$3:$J$5)","v":0},{"$f":"valueE(G28,'Utility Functions'!$L$3,'Utility Functions'!$L$4,'Utility Functions'!$L$5,'Utility Functions'!$L$6)","v":0},{"$f":"valueE(H28,'Utility Functions'!$N$3,'Utility Functions'!$N$4,'Utility Functions'!$N$5,'Utility Functions'!$N$6)","v":0},{"$f":"valuePL(I28,'Utility Functions'!$O$3:$O$6,'Utility Functions'!$P$3:$P$6)","v":0},{"$f":"valuePL(J28,'Utility Functions'!$Q$3:$Q$6,'Utility Functions'!$R$3:$R$6)","v":0},{"$f":"valuePL(K28,'Utility Functions'!$S$3:$S$7,'Utility Functions'!$T$3:$T$7)","v":1},{"$f":"valueE(L28,'Utility Functions'!$V$3,'Utility Functions'!$V$4,'Utility Functions'!$V$5,'Utility Functions'!$V$6)","v":0},{"$f":"valuePL(M28,'Utility Functions'!$W$3:$W$6,'Utility Functions'!$X$3:$X$6)","v":0.1},{"$f":"valueE(N28,'Utility Functions'!$Z$3,'Utility Functions'!$Z$4,'Utility Functions'!$Z$5,'Utility Functions'!$Z$6)","v":0},{"$f":"valuePL(O28,'Utility Functions'!$AA$3:$AA$5,'Utility Functions'!$AB$3:$AB$5)","v":0},{"$f":"valuePL(P28,'Utility Functions'!$AC$3:$AC$7,'Utility Functions'!$AD$3:$AD$7)","v":0.5},{"$f":"valuePL(Q28,'Utility Functions'!$AE$3:$AE$6,'Utility Functions'!$AF$3:$AF$6)","v":0.5},{"$f":"valuePL(R28,'Utility Functions'!$AG$3:$AG$6,'Utility Functions'!$AH$3:$AH$6)","v":1},{"$f":"valuePL(S28,'Utility Functions'!$AI$3:$AI$6,'Utility Functions'!$AJ$3:$AJ$6)","v":1},{"$f":"valuePL(T28,'Utility Functions'!$AK$3:$AK$8,'Utility Functions'!$AL$3:$AL$8)","v":1},{"$f":"valuePL(U28,'Utility Functions'!$AM$3:$AM$5,'Utility Functions'!$AN$3:$AN$5)","v":0},{"$f":"valuePL(V28,'Utility Functions'!$AO$3:$AO$5,'Utility Functions'!$AP$3:$AP$5)","v":0.5},{"$f":"valuePL(W28,'Utility Functions'!$AQ$3:$AQ$6,'Utility Functions'!$AR$3:$AR$6)","v":0.75},{"$f":"valuePL(X28,'Utility Functions'!$AS$3:$AS$6,'Utility Functions'!$AT$3:$AT$6)","v":1},{"$f":"valuePL(Y28,'Utility Functions'!$AU$3:$AU$6,'Utility Functions'!$AV$3:$AV$6)","v":0.2},{"$f":"valuePL(Z28,'Utility Functions'!$AW$3:$AW$5,'Utility Functions'!$AX$3:$AX$5)","v":0},{"$f":"valuePL(AA28,'Utility Functions'!$AY$3:$AY$6,'Utility Functions'!$AZ$3:$AZ$6)","v":0},{"$f":"valuePL(AB28,'Utility Functions'!$BA$3:$BA$5,'Utility Functions'!$BB$3:$BB$5)","v":0},{"$f":"valuePL(AC28,'Utility Functions'!$BC$3:$BC$5,'Utility Functions'!$BD$3:$BD$5)","v":0},9.0147596715374529,null,9.0147596715374547,1.464759671537454,1.1000000000000001,0,4,2.4500000000000002]
[28,{"$f":"valueE(B29,'Utility Functions'!$B$3,'Utility Functions'!$B$4,'Utility Functions'!$B$5,'Utility Functions'!$B$6)","v":0.4511890475224023},{"$f":"valueE(C29,'Utility Functions'!$D$3,'Utility Functions'!$D$4,'Utility Functions'!$D$5,'Utility Functions'!$D$6)","v":0.46475967153745396},{"$f":"valuePL(D29,'Utility Functions'!$E$3:$E$5,'Utility Functions'!$F$3:$F$5)","v":1},{"$f":"valuePL(E29,'Utility Functions'!$G$3:$G$5,'Utility Functions'!$H$3:$H$5)","v":0},{"$f":"valuePL(F29,'Utility Functions'!$I$3:$I$4,'Utility Functions'!$J$3:$J$5)","v":1},{"$f":"valueE(G29,'Utility Functions'!$L$3,'Utility Functions'!$L$4,'Utility Functions'!$L$5,'Utility Functions'!$L$6)","v":0},{"$f":"valueE(H29,'Utility Functions'!$N$3,'Utility Functions'!$N$4,'Utility Functions'!$N$5,'Utility Functions'!$N$6)","v":0},{"$f":"valuePL(I29,'Utility Functions'!$O$3:$O$6,'Utility Functions'!$P$3:$P$6)","v":0},{"$f":"valuePL(J29,'Utility Functions'!$Q$3:$Q$6,'Utility Functions'!$R$3:$R$6)","v":0},{"$f":"valuePL(K29,'Utility Functions'!$S$3:$S$7,'Utility Functions'!$T$3:$T$7)","v":0},{"$f":"valueE(L29,'Utility Functions'!$V$3,'Utility Functions'!$V$4,'Utility Functions'!$V$5,'Utility Functions'!$V$6)","v":0.33333333333333331},{"$f":"valuePL(M29,'Utility Functions'!$W$3:$W$6,'Utility Functions'!$X$3:$X$6)","v":0.1},{"$f":"valueE(N29,'Utility Functions'!$Z$3,'Utility Functions'!$Z$4,'Utility Functions'!$Z$5,'Utility Functions'!$Z$6)","v":0},{"$f":"valuePL(O29,'Utility Functions'!$AA$3:$AA$5,'Utility Functions'!$AB$3:$AB$5)","v":0},{"$f":"valuePL(P29,'Utility Functions'!$AC$3:$AC$7,'Utility Functions'!$AD$3:$AD$7)","v":1},{"$f":"valuePL(Q29,'Utility Functions'!$AE$3:$AE$6,'Utility Functions'!$AF$3:$AF$6)","v":0},{"$f":"valuePL(R29,'Utility Functions'!$AG$3:$AG$6,'Utility Functions'!$AH$3:$AH$6)","v":1},{"$f":"valuePL(S29,'Utility Functions'!$AI$3:$AI$6,'Utility Functions'!$AJ$3:$AJ$6)","v":1},{"$f":"valuePL(T29,'Utility Functions'!$AK$3:$AK$8,'Utility Functions'!$AL$3:$AL$8)","v":0.8},{"$f":"valuePL(U29,'Utility Functions'!$AM$3:$AM$5,'Utility Functions'!$AN$3:$AN$5)","v":0},{"$f":"valuePL(V29,'Utility Functions'!$AO$3:$AO$5,'Utility Functions'!$AP$3:$AP$5)","v":1},{"$f":"valuePL(W29,'Utility Functions'!$AQ$3:$AQ$6,'Utility Functions'!$AR$3:$AR$6)","v":1},{"$f":"valuePL(X29,'Utility Functions'!$AS$3:$AS$6,'Utility Functions'!$AT$3:$AT$6)","v":1},{"$f":"valuePL(Y29,'Utility Functions'!$AU$3:$AU$6,'Utility Functions'!$AV$3:$AV$6)","v":0.2},{"$f":"valuePL(Z29,'Utility Functions'!$AW$3:$AW$5,'Utility Functions'!$AX$3:$AX$5)","v":0},{"$f":"valuePL(AA29,'Utility Functions'!$AY$3:$AY$6,'Utility Functions'!$AZ$3:$AZ$6)","v":0.89999999999999991},{"$f":"valuePL(AB29,'Utility Functions'!$BA$3:$BA$5,'Utility Functions'!$BB$3:$BB$5)","v":1},{"$f":"valuePL(AC29,'Utility Functions'!$BC$3:$BC$5,'Utility Functions'!$BD$3:$BD$5)","v":0.25},12.499282052393189,null,12.499282052393189,2.9159487190598563,0.43333333333333335,0,3.8,5.35]
[29,{"$f":"valueE(B30,'Utility Functions'!$B$3,'Utility Functions'!$B$4,'Utility Functions'!$B$5,'Utility Functions'!$B$6)","v":0.83470237647280454},{"$f":"valueE(C30,'Utility Functions'!$D$3,'Utility Functions'!$D$4,'Utility Functions'!$D$5,'Utility Functions'!$D$6)","v":0.71352759724260828},{"$f":"valuePL(D30,'Utility Functions'!$E$3:$E$5,'Utility Functions'!$F$3:$F$5)","v":1},{"$f":"valuePL(E30,'Utility Functions'!$G$3:$G$5,'Utility Functions'!$H$3:$H$5)","v":0.5},{"$f":"valuePL(F30,'Utility Functions'!$I$3:$I$4,'Utility Functions'!$J$3:$J$5)","v":0},{"$f":"valueE(G30,'Utility Functions'!$L$3,'Utility Functions'!$L$4,'Utility Functions'!$L$5,'Utility Functions'!$L$6)","v":0},{"$f":"valueE(H30,'Utility Functions'!$N$3,'Utility Functions'!$N$4,'Utility Functions'!$N$5,'Utility Functions'!$N$6)","v":0},{"$f":"valuePL(I30,'Utility Functions'!$O$3:$O$6,'Utility Functions'!$P$3:$P$6)","v":0.06},{"$f":"valuePL(J30,'Utility Functions'!$Q$3:$Q$6,'Utility Functions'!$R$3:$R$6)","v":0.67272727272727273},{"$f":"valuePL(K30,'Utility Functions'!$S$3:$S$7,'Utility Functions'!$T$3:$T$7)","v":0},{"$f":"valueE(L30,'Utility Functions'!$V$3,'Utility Functions'!$V$4,'Utility Functions'!$V$5,'Utility Functions'!$V$6)","v":1},{"$f":"valuePL(M30,'Utility Functions'!$W$3:$W$6,'Utility Functions'!$X$3:$X$6)","v":0.67272727272727273},{"$f":"valueE(N30,'Utility Functions'!$Z$3,'Utility Functions'!$Z$4,'Utility Functions'!$Z$5,'Utility Functions'!$Z$6)","v":0},{"$f":"valuePL(O30,'Utility Functions'!$AA$3:$AA$5,'Utility Functions'!$AB$3:$AB$5)","v":0},{"$f":"valuePL(P30,'Utility Functions'!$AC$3:$AC$7,'Utility Functions'!$AD$3:$AD$7)","v":0.25},{"$f":"valuePL(Q30,'Utility Functions'!$AE$3:$AE$6,'Utility Functions'!$AF$3:$AF$6)","v":0},{"$f":"valuePL(R30,'Utility Functions'!$AG$3:$AG$6,'Utility Functions'!$AH$3:$AH$6)","v":1},{"$f":"valuePL(S30,'Utility Functions'!$AI$3:$AI$6,'Utility Functions'!$AJ$3:$AJ$6)","v":1},{"$f":"valuePL(T30,'Utility Functions'!$AK$3:$AK$8,'Utility Functions'!$AL$3:$AL$8)","v":0.8},{"$f":"valuePL(U30,'Utility Functions'!$AM$3:$AM$5,'Utility Functions'!$AN$3:$AN$5)","v":0},{"$f":"valuePL(V30,'Utility Functions'!$AO$3:$AO$5,'Utility Functions'!$AP$3:$AP$5)","v":1},{"$f":"valuePL(W30,'Utility Functions'!$AQ$3:$AQ$6,'Utility Functions'!$AR$3:$AR$6)","v":0.2},{"$f":"valuePL(X30,'Utility Functions'!$AS$3:$AS$6,'Utility Functions'!$AT$3:$AT$6)","v":0},{"$f":"valuePL(Y30,'Utility Functions'!$AU$3:$AU$6,'Utility Functions'!$AV$3:$AV$6)","v":0.8},{"$f":"valuePL(Z30,'Utility Functions'!$AW$3:$AW$5,'Utility Functions'!$AX$3:$AX$5)","v":0.5},{"$f":"valuePL(AA30,'Utility Functions'!$AY$3:$AY$6,'Utility Functions'!$AZ$3:$AZ$6)","v":0.2},{"$f":"valuePL(AB30,'Utility Functions'!$BA$3:$BA$5,'Utility Functions'!$BB$3:$BB$5)","v":0.25},{"$f":"valuePL(AC30,'Utility Functions'!$BC$3:$BC$5,'Utility Functions'!$BD$3:$BD$5)","v":1},12.453684519169958,null,12.453684519169958,3.0482299737154128,2.4054545454545453,0,3.05,3.95]
[30,{"$f":"valueE(B31,'Utility Functions'!$B$3,'Utility Functions'!$B$4,'Utility Functions'!$B$5,'Utility Functions'!$B$6)","v":0.99864114504770318},{"$f":"valueE(C31,'Utility Functions'!$D$3,'Utility Functions'!$D$4,'Utility Functions'!$D$5,'Utility Functions'!$D$6)","v":0.84744836833951609},{"$f":"valuePL(D31,'Utility Functions'!$E$3:$E$5,'Utility Functions'!$F$3:$F$5)","v":1},{"$f":"valuePL(E31,'Utility Functions'!$G$3:$G$5,'Utility Functions'!$H$3:$H$5)","v":0},{"$f":"valuePL(F31,'Utility Functions'!$I$3:$I$4,'Utility Functions'!$J$3:$J$5)","v":0},{"$f":"valueE(G31,'Utility Functions'!$L$3,'Utility Functions'!$L$4,'Utility Functions'!$L$5,'Utility Functions'!$L$6)","v":0},{"$f":"valueE(H31,'Utility Functions'!$N$3,'Utility Functions'!$N$4,'Utility Functions'!$N$5,'Utility Functions'!$N$6)","v":0},{"$f":"valuePL(I31,'Utility Functions'!$O$3:$O$6,'Utility Functions'!$P$3:$P$6)","v":0},{"$f":"valuePL(J31,'Utility Functions'!$Q$3:$Q$6,'Utility Functions'!$R$3:$R$6)","v":0},{"$f":"valuePL(K31,'Utility Functions'!$S$3:$S$7,'Utility Functions'!$T$3:$T$7)","v":0},{"$f":"valueE(L31,'Utility Functions'!$V$3,'Utility Functions'!$V$4,'Utility Functions'!$V$5,'Utility Functions'!$V$6)","v":0.33333333333333331},{"$f":"valuePL(M31,'Utility Functions'!$W$3:$W$6,'Utility Functions'!$X$3:$X$6)","v":0.04},{"$f":"valueE(N31,'Utility Functions'!$Z$3,'Utility Functions'!$Z$4,'Utility Functions'!$Z$5,'Utility Functions'!$Z$6)","v":0},{"$f":"valuePL(O31,'Utility Functions'!$AA$3:$AA$5,'Utility Functions'!$AB$3:$AB$5)","v":0},{"$f":"valuePL(P31,'Utility Functions'!$AC$3:$AC$7,'Utility Functions'!$AD$3:$AD$7)","v":0},{"$f":"valuePL(Q31,'Utility Functions'!$AE$3:$AE$6,'Utility Functions'!$AF$3:$AF$6)","v":0},{"$f":"valuePL(R31,'Utility Functions'!$AG$3:$AG$6,'Utility Functions'!$AH$3:$AH$6)","v":0.2},{"$f":"valuePL(S31,'Utility Functions'!$AI$3:$AI$6,'Utility Functions'!$AJ$3:$AJ$6)","v":0.33},{"$f":"valuePL(T31,'Utility Functions'!$AK$3:$AK$8,'Utility Functions'!$AL$3:$AL$8)","v":0},{"$f":"valuePL(U31,'Utility Functions'!$AM$3:$AM$5,'Utility Functions'!$AN$3:$AN$5)","v":0},{"$f":"valuePL(V31,'Utility Functions'!$AO$3:$AO$5,'Utility Functions'!$AP$3:$AP$5)","v":0},{"$f":"valuePL(W31,'Utility Functions'!$AQ$3:$AQ$6,'Utility Functions'!$AR$3:$AR$6)","v":1},{"$f":"valuePL(X31,'Utility Functions'!$AS$3:$AS$6,'Utility Functions'!$AT$3:$AT$6)","v":0.2},{"$f":"valuePL(Y31,'Utility Functions'!$AU$3:$AU$6,'Utility Functions'!$AV$3:$AV$6)","v":0.8},{"$f":"valuePL(Z31,'Utility Functions'!$AW$3:$AW$5,'Utility Functions'!$AX$3:$AX$5)","v":0},{"$f":"valuePL(AA31,'Utility Functions'!$AY$3:$AY$6,'Utility Functions'!$AZ$3:$AZ$6)","v":0.89999999999999991},{"$f":"valuePL(AB31,'Utility Functions'!$BA$3:$BA$5,'Utility Functions'!$BB$3:$BB$5)","v":1},{"$f":"valuePL(AC31,'Utility Functions'!$BC$3:$BC$5,'Utility Functions'!$BD$3:$BD$5)","v":0},7.6494228467205527,null,7.6494228467205527,2.846089513387219,0.37333333333333329,0,0.53,3.9]
[31,{"$f":"valueE(B32,'Utility Functions'!$B$3,'Utility Functions'!$B$4,'Utility Functions'!$B$5,'Utility Functions'!$B$6)","v":0.55067187023002029},{"$f":"valueE(C32,'Utility Functions'!$D$3,'Utility Functions'!$D$4,'Utility Functions'!$D$5,'Utility Functions'!$D$6)","v":0.84744836833951609},{"$f":"valuePL(D32,'Utility Functions'!$E$3:$E$5,'Utility Functions'!$F$3:$F$5)","v":0.5},{"$f":"valuePL(E32,'Utility Functions'!$G$3:$G$5,'Utility Functions'!$H$3:$H$5)","v":0},{"$f":"valuePL(F32,'Utility Functions'!$I$3:$I$4,'Utility Functions'!$J$3:$J$5)","v":0},{"$f":"valueE(G32,'Utility Functions'!$L$3,'Utility Functions'!$L$4,'Utility Functions'!$L$5,'Utility Functions'!$L$6)","v":0},{"$f":"valueE(H32,'Utility Functions'!$N$3,'Utility Functions'!$N$4,'Utility Functions'!$N$5,'Utility Functions'!$N$6)","v":0},{"$f":"valuePL(I32,'Utility Functions'!$O$3:$O$6,'Utility Functions'!$P$3:$P$6)","v":0.75454545454545452},{"$f":"valuePL(J32,'Utility Functions'!$Q$3:$Q$6,'Utility Functions'!$R$3:$R$6)","v":0.08},{"$f":"valuePL(K32,'Utility Functions'!$S$3:$S$7,'Utility Functions'!$T$3:$T$7)","v":0},{"$f":"valueE(L32,'Utility Functions'!$V$3,'Utility Functions'!$V$4,'Utility Functions'!$V$5,'Utility Functions'!$V$6)","v":0.33333333333333331},{"$f":"valuePL(M32,'Utility Functions'!$W$3:$W$6,'Utility Functions'!$X$3:$X$6)","v":0.08},{"$f":"valueE(N32,'Utility Functions'!$Z$3,'Utility Functions'!$Z$4,'Utility Functions'!$Z$5,'Utility Functions'!$Z$6)","v":0},{"$f":"valuePL(O32,'Utility Functions'!$AA$3:$AA$5,'Utility Functions'!$AB$3:$AB$5)","v":0},{"$f":"valuePL(P32,'Utility Functions'!$AC$3:$AC$7,'Utility Functions'!$AD$3:$AD$7)","v":0.5},{"$f":"valuePL(Q32,'Utility Functions'!$AE$3:$AE$6,'Utility Functions'!$AF$3:$AF$6)","v":0},{"$f":"valuePL(R32,'Utility Functions'!$AG$3:$AG$6,'Utility Functions'!$AH$3:$AH$6)","v":1},{"$f":"valuePL(S32,'Utility Functions'!$AI$3:$AI$6,'Utility Functions'!$AJ$3:$AJ$6)","v":0.66},{"$f":"valuePL(T32,'Utility Functions'!$AK$3:$AK$8,'Utility Functions'!$AL$3:$AL$8)","v":0.6},{"$f":"valuePL(U32,'Utility Functions'!$AM$3:$AM$5,'Utility Functions'!$AN$3:$AN$5)","v":0},{"$f":"valuePL(V32,'Utility Functions'!$AO$3:$AO$5,'Utility Functions'!$AP$3:$AP$5)","v":0.5},{"$f":"valuePL(W32,'Utility Functions'!$AQ$3:$AQ$6,'Utility Functions'!$AR$3:$AR$6)","v":0},{"$f":"valuePL(X32,'Utility Functions'!$AS$3:$AS$6,'Utility Functions'!$AT$3:$AT$6)","v":0.2},{"$f":"valuePL(Y32,'Utility Functions'!$AU$3:$AU$6,'Utility Functions'!$AV$3:$AV$6)","v":0.2},{"$f":"valuePL(Z32,'Utility Functions'!$AW$3:$AW$5,'Utility Functions'!$AX$3:$AX$5)","v":1},{"$f":"valuePL(AA32,'Utility Functions'!$AY$3:$AY$6,'Utility Functions'!$AZ$3:$AZ$6)","v":0.89999999999999991},{"$f":"valuePL(AB32,'Utility Functions'!$BA$3:$BA$5,'Utility Functions'!$BB$3:$BB$5)","v":0.25},{"$f":"valuePL(AC32,'Utility Functions'!$BC$3:$BC$5,'Utility Functions'!$BD$3:$BD$5)","v":0.25},9.2059990264483247,null,9.2059990264483247,1.8981202385695364,1.2478787878787878,0,2.7600000000000002,3.3]
[32,{"$f":"valueE(B33,'Utility Functions'!$B$3,'Utility Functions'!$B$4,'Utility Functions'!$B$5,'Utility Functions'!$B$6)","v":0.63212151658375171},{"$f":"valueE(C33,'Utility Functions'!$D$3,'Utility Functions'!$D$4,'Utility Functions'!$D$5,'Utility Functions'!$D$6)","v":0.26839655623815994},{"$f":"valuePL(D33,'Utility Functions'!$E$3:$E$5,'Utility Functions'!$F$3:$F$5)","v":1},{"$f":"valuePL(E33,'Utility Functions'!$G$3:$G$5,'Utility Functions'!$H$3:$H$5)","v":1},{"$f":"valuePL(F33,'Utility Functions'!$I$3:$I$4,'Utility Functions'!$J$3:$J$5)","v":1},{"$f":"valueE(G33,'Utility Functions'!$L$3,'Utility Functions'!$L$4,'Utility Functions'!$L$5,'Utility Functions'!$L$6)","v":3.2258064516129031E-2},{"$f":"valueE(H33,'Utility Functions'!$N$3,'Utility Functions'!$N$4,'Utility Functions'!$N$5,'Utility Functions'!$N$6)","v":9.6774193548387094E-2},{"$f":"valuePL(I33,'Utility Functions'!$O$3:$O$6,'Utility Functions'!$P$3:$P$6)","v":0.34545454545454546},{"$f":"valuePL(J33,'Utility Functions'!$Q$3:$Q$6,'Utility Functions'!$R$3:$R$6)","v":1},{"$f":"valuePL(K33,'Utility Functions'!$S$3:$S$7,'Utility Functions'!$T$3:$T$7)","v":0.34545454545454546},{"$f":"valueE(L33,'Utility Functions'!$V$3,'Utility Functions'!$V$4,'Utility Functions'!$V$5,'Utility Functions'!$V$6)","v":1},{"$f":"valuePL(M33,'Utility Functions'!$W$3:$W$6,'Utility Functions'!$X$3:$X$6)","v":1},{"$f":"valueE(N33,'Utility Functions'!$Z$3,'Utility Functions'!$Z$4,'Utility Functions'!$Z$5,'Utility Functions'!$Z$6)","v":0},{"$f":"valuePL(O33,'Utility Functions'!$AA$3:$AA$5,'Utility Functions'!$AB$3:$AB$5)","v":0},{"$f":"valuePL(P33,'Utility Functions'!$AC$3:$AC$7,'Utility Functions'!$AD$3:$AD$7)","v":0.5},{"$f":"valuePL(Q33,'Utility Functions'!$AE$3:$AE$6,'Utility Functions'!$AF$3:$AF$6)","v":1},{"$f":"valuePL(R33,'Utility Functions'!$AG$3:$AG$6,'Utility Functions'!$AH$3:$AH$6)","v":1},{"$f":"valuePL(S33,'Utility Functions'!$AI$3:$AI$6,'Utility Functions'!$AJ$3:$AJ$6)","v":0},{"$f":"valuePL(T33,'Utility Functions'!$AK$3:$AK$8,'Utility Functions'!$AL$3:$AL$8)","v":0.8},{"$f":"valuePL(U33,'Utility Functions'!$AM$3:$AM$5,'Utility Functions'!$AN$3:$AN$5)","v":0},{"$f":"valuePL(V33,'Utility Functions'!$AO$3:$AO$5,'Utility Functions'!$AP$3:$AP$5)","v":0},{"$f":"valuePL(W33,'Utility Functions'!$AQ$3:$AQ$6,'Utility Functions'!$AR$3:$AR$6)","v":0.75},{"$f":"valuePL(X33,'Utility Functions'!$AS$3:$AS$6,'Utility Functions'!$AT$3:$AT$6)","v":0.2},{"$f":"valuePL(Y33,'Utility Functions'!$AU$3:$AU$6,'Utility Functions'!$AV$3:$AV$6)","v":0.8},{"$f":"valuePL(Z33,'Utility Functions'!$AW$3:$AW$5,'Utility Functions'!$AX$3:$AX$5)","v":0.5},{"$f":"valuePL(AA33,'Utility Functions'!$AY$3:$AY$6,'Utility Functions'!$AZ$3:$AZ$6)","v":0},{"$f":"valuePL(AB33,'Utility Functions'!$BA$3:$BA$5,'Utility Functions'!$BB$3:$BB$5)","v":1},{"$f":"valuePL(AC33,'Utility Functions'!$BC$3:$BC$5,'Utility Functions'!$BD$3:$BD$5)","v":0.25},14.52045942179552,null,14.520459421795518,3.9005180728219115,3.8199413489736074,0,3.3,3.5]
[33,{"$f":"valueE(B34,'Utility Functions'!$B$3,'Utility Functions'!$B$4,'Utility Functions'!$B$5,'Utility Functions'!$B$6)","v":0.93919136038504192},{"$f":"valueE(C34,'Utility Functions'!$D$3,'Utility Functions'!$D$4,'Utility Functions'!$D$5,'Utility Functions'!$D$6)","v":0.84744836833951609},{"$f":"valuePL(D34,'Utility Functions'!$E$3:$E$5,'Utility Functions'!$F$3:$F$5)","v":1},{"$f":"valuePL(E34,'Utility Functions'!$G$3:$G$5,'Utility Functions'!$H$3:$H$5)","v":0.5},{"$f":"valuePL(F34,'Utility Functions'!$I$3:$I$4,'Utility Functions'!$J$3:$J$5)","v":0},{"$f":"valueE(G34,'Utility Functions'!$L$3,'Utility Functions'!$L$4,'Utility Functions'!$L$5,'Utility Functions'!$L$6)","v":0},{"$f":"valueE(H34,'Utility Functions'!$N$3,'Utility Functions'!$N$4,'Utility Functions'!$N$5,'Utility Functions'!$N$6)","v":0},{"$f":"valuePL(I34,'Utility Functions'!$O$3:$O$6,'Utility Functions'!$P$3:$P$6)","v":0},{"$f":"valuePL(J34,'Utility Functions'!$Q$3:$Q$6,'Utility Functions'!$R$3:$R$6)","v":0},{"$f":"valuePL(K34,'Utility Functions'!$S$3:$S$7,'Utility Functions'!$T$3:$T$7)","v":0},{"$f":"valueE(L34,'Utility Functions'!$V$3,'Utility Functions'!$V$4,'Utility Functions'!$V$5,'Utility Functions'!$V$6)","v":0.5},{"$f":"valuePL(M34,'Utility Functions'!$W$3:$W$6,'Utility Functions'!$X$3:$X$6)","v":0},{"$f":"valueE(N34,'Utility Functions'!$Z$3,'Utility Functions'!$Z$4,'Utility Functions'!$Z$5,'Utility Functions'!$Z$6)","v":0},{"$f":"valuePL(O34,'Utility Functions'!$AA$3:$AA$5,'Utility Functions'!$AB$3:$AB$5)","v":0},{"$f":"valuePL(P34,'Utility Functions'!$AC$3:$AC$7,'Utility Functions'!$AD$3:$AD$7)","v":0.5},{"$f":"valuePL(Q34,'Utility Functions'!$AE$3:$AE$6,'Utility Functions'!$AF$3:$AF$6)","v":0},{"$f":"valuePL(R34,'Utility Functions'!$AG$3:$AG$6,'Utility Functions'!$AH$3:$AH$6)","v":1},{"$f":"valuePL(S34,'Utility Functions'!$AI$3:$AI$6,'Utility Functions'!$AJ$3:$AJ$6)","v":0.66},{"$f":"valuePL(T34,'Utility Functions'!$AK$3:$AK$8,'Utility Functions'!$AL$3:$AL$8)","v":0},{"$f":"valuePL(U34,'Utility Functions'!$AM$3:$AM$5,'Utility Functions'!$AN$3:$AN$5)","v":0},{"$f":"valuePL(V34,'Utility Functions'!$AO$3:$AO$5,'Utility Functions'!$AP$3:$AP$5)","v":0.5},{"$f":"valuePL(W34,'Utility Functions'!$AQ$3:$AQ$6,'Utility Functions'!$AR$3:$AR$6)","v":1},{"$f":"valuePL(X34,'Utility Functions'!$AS$3:$AS$6,'Utility Functions'!$AT$3:$AT$6)","v":0},{"$f":"valuePL(Y34,'Utility Functions'!$AU$3:$AU$6,'Utility Functions'!$AV$3:$AV$6)","v":0.8},{"$f":"valuePL(Z34,'Utility Functions'!$AW$3:$AW$5,'Utility Functions'!$AX$3:$AX$5)","v":1},{"$f":"valuePL(AA34,'Utility Functions'!$AY$3:$AY$6,'Utility Functions'!$AZ$3:$AZ$6)","v":1},{"$f":"valuePL(AB34,'Utility Functions'!$BA$3:$BA$5,'Utility Functions'!$BB$3:$BB$5)","v":0},{"$f":"valuePL(AC34,'Utility Functions'!$BC$3:$BC$5,'Utility Functions'!$BD$3:$BD$5)","v":0},10.246639728724558,null,10.246639728724558,3.2866397287245581,0.5,0,2.16,4.3]
[34,{"$f":"valueE(B35,'Utility Functions'!$B$3,'Utility Functions'!$B$4,'Utility Functions'!$B$5,'Utility Functions'!$B$6)","v":0},{"$f":"valueE(C35,'Utility Functions'!$D$3,'Utility Functions'!$D$4,'Utility Functions'!$D$5,'Utility Functions'!$D$6)","v":0},{"$f":"valuePL(D35,'Utility Functions'!$E$3:$E$5,'Utility Functions'!$F$3:$F$5)","v":0},{"$f":"valuePL(E35,'Utility Functions'!$G$3:$G$5,'Utility Functions'!$H$3:$H$5)","v":0},{"$f":"valuePL(F35,'Utility Functions'!$I$3:$I$4,'Utility Functions'!$J$3:$J$5)","v":0},{"$f":"valueE(G35,'Utility Functions'!$L$3,'Utility Functions'!$L$4,'Utility Functions'!$L$5,'Utility Functions'!$L$6)","v":0},{"$f":"valueE(H35,'Utility Functions'!$N$3,'Utility Functions'!$N$4,'Utility Functions'!$N$5,'Utility Functions'!$N$6)","v":1.1385199240986717E-2},{"$f":"valuePL(I35,'Utility Functions'!$O$3:$O$6,'Utility Functions'!$P$3:$P$6)","v":1},{"$f":"valuePL(J35,'Utility Functions'!$Q$3:$Q$6,'Utility Functions'!$R$3:$R$6)","v":0.91818181818181821},{"$f":"valuePL(K35,'Utility Functions'!$S$3:$S$7,'Utility Functions'!$T$3:$T$7)","v":1},{"$f":"valueE(L35,'Utility Functions'!$V$3,'Utility Functions'!$V$4,'Utility Functions'!$V$5,'Utility Functions'!$V$6)","v":1},{"$f":"valuePL(M35,'Utility Functions'!$W$3:$W$6,'Utility Functions'!$X$3:$X$6)","v":0.91818181818181821},{"$f":"valueE(N35,'Utility Functions'!$Z$3,'Utility Functions'!$Z$4,'Utility Functions'!$Z$5,'Utility Functions'!$Z$6)","v":0},{"$f":"valuePL(O35,'Utility Functions'!$AA$3:$AA$5,'Utility Functions'!$AB$3:$AB$5)","v":0},{"$f":"valuePL(P35,'Utility Functions'!$AC$3:$AC$7,'Utility Functions'!$AD$3:$AD$7)","v":0.5},{"$f":"valuePL(Q35,'Utility Functions'!$AE$3:$AE$6,'Utility Functions'!$AF$3:$AF$6)","v":0},{"$f":"valuePL(R35,'Utility Functions'!$AG$3:$AG$6,'Utility Functions'!$AH$3:$AH$6)","v":1},{"$f":"valuePL(S35,'Utility Functions'!$AI$3:$AI$6,'Utility Functions'!$AJ$3:$AJ$6)","v":1},{"$f":"valuePL(T35,'Utility Functions'!$AK$3:$AK$8,'Utility Functions'!$AL$3:$AL$8)","v":0.8},{"$f":"valuePL(U35,'Utility Functions'!$AM$3:$AM$5,'Utility Functions'!$AN$3:$AN$5)","v":0},{"$f":"valuePL(V35,'Utility Functions'!$AO$3:$AO$5,'Utility Functions'!$AP$3:$AP$5)","v":1},{"$f":"valuePL(W35,'Utility Functions'!$AQ$3:$AQ$6,'Utility Functions'!$AR$3:$AR$6)","v":1},{"$f":"valuePL(X35,'Utility Functions'!$AS$3:$AS$6,'Utility Functions'!$AT$3:$AT$6)","v":1},{"$f":"valuePL(Y35,'Utility Functions'!$AU$3:$AU$6,'Utility Functions'!$AV$3:$AV$6)","v":0},{"$f":"valuePL(Z35,'Utility Functions'!$AW$3:$AW$5,'Utility Functions'!$AX$3:$AX$5)","v":1},{"$f":"valuePL(AA35,'Utility Functions'!$AY$3:$AY$6,'Utility Functions'!$AZ$3:$AZ$6)","v":0.89999999999999991},{"$f":"valuePL(AB35,'Utility Functions'!$BA$3:$BA$5,'Utility Functions'!$BB$3:$BB$5)","v":0.25},{"$f":"valuePL(AC35,'Utility Functions'!$BC$3:$BC$5,'Utility Functions'!$BD$3:$BD$5)","v":0},13.297748835604624,null,13.297748835604624,0,4.847748835604623,0,3.3,5.15]
[35,{"$f":"valueE(B36,'Utility Functions'!$B$3,'Utility Functions'!$B$4,'Utility Functions'!$B$5,'Utility Functions'!$B$6)","v":0.79810469124896843},{"$f":"valueE(C36,'Utility Functions'!$D$3,'Utility Functions'!$D$4,'Utility Functions'!$D$5,'Utility Functions'!$D$6)","v":0.60939983135101949},{"$f":"valuePL(D36,'Utility Functions'!$E$3:$E$5,'Utility Functions'!$F$3:$F$5)","v":0.5},{"$f":"valuePL(E36,'Utility Functions'!$G$3:$G$5,'Utility Functions'!$H$3:$H$5)","v":0.5},{"$f":"valuePL(F36,'Utility Functions'!$I$3:$I$4,'Utility Functions'!$J$3:$J$5)","v":1},{"$f":"valueE(G36,'Utility Functions'!$L$3,'Utility Functions'!$L$4,'Utility Functions'!$L$5,'Utility Functions'!$L$6)","v":0},{"$f":"valueE(H36,'Utility Functions'!$N$3,'Utility Functions'!$N$4,'Utility Functions'!$N$5,'Utility Functions'!$N$6)","v":0},{"$f":"valuePL(I36,'Utility Functions'!$O$3:$O$6,'Utility Functions'!$P$3:$P$6)","v":0},{"$f":"valuePL(J36,'Utility Functions'!$Q$3:$Q$6,'Utility Functions'!$R$3:$R$6)","v":0},{"$f":"valuePL(K36,'Utility Functions'!$S$3:$S$7,'Utility Functions'!$T$3:$T$7)","v":1},{"$f":"valueE(L36,'Utility Functions'!$V$3,'Utility Functions'!$V$4,'Utility Functions'!$V$5,'Utility Functions'!$V$6)","v":0.66666666666666663},{"$f":"valuePL(M36,'Utility Functions'!$W$3:$W$6,'Utility Functions'!$X$3:$X$6)","v":0.1},{"$f":"valueE(N36,'Utility Functions'!$Z$3,'Utility Functions'!$Z$4,'Utility Functions'!$Z$5,'Utility Functions'!$Z$6)","v":1},{"$f":"valuePL(O36,'Utility Functions'!$AA$3:$AA$5,'Utility Functions'!$AB$3:$AB$5)","v":0},{"$f":"valuePL(P36,'Utility Functions'!$AC$3:$AC$7,'Utility Functions'!$AD$3:$AD$7)","v":0},{"$f":"valuePL(Q36,'Utility Functions'!$AE$3:$AE$6,'Utility Functions'!$AF$3:$AF$6)","v":0},{"$f":"valuePL(R36,'Utility Functions'!$AG$3:$AG$6,'Utility Functions'!$AH$3:$AH$6)","v":1},{"$f":"valuePL(S36,'Utility Functions'!$AI$3:$AI$6,'Utility Functions'!$AJ$3:$AJ$6)","v":1},{"$f":"valuePL(T36,'Utility Functions'!$AK$3:$AK$8,'Utility Functions'!$AL$3:$AL$8)","v":0.6},{"$f":"valuePL(U36,'Utility Functions'!$AM$3:$AM$5,'Utility Functions'!$AN$3:$AN$5)","v":0},{"$f":"valuePL(V36,'Utility Functions'!$AO$3:$AO$5,'Utility Functions'!$AP$3:$AP$5)","v":1},{"$f":"valuePL(W36,'Utility Functions'!$AQ$3:$AQ$6,'Utility Functions'!$AR$3:$AR$6)","v":0.75},{"$f":"valuePL(X36,'Utility Functions'!$AS$3:$AS$6,'Utility Functions'!$AT$3:$AT$6)","v":0},{"$f":"valuePL(Y36,'Utility Functions'!$AU$3:$AU$6,'Utility Functions'!$AV$3:$AV$6)","v":0.2},{"$f":"valuePL(Z36,'Utility Functions'!$AW$3:$AW$5,'Utility Functions'!$AX$3:$AX$5)","v":1},{"$f":"valuePL(AA36,'Utility Functions'!$AY$3:$AY$6,'Utility Functions'!$AZ$3:$AZ$6)","v":0},{"$f":"valuePL(AB36,'Utility Functions'!$BA$3:$BA$5,'Utility Functions'!$BB$3:$BB$5)","v":0.25},{"$f":"valuePL(AC36,'Utility Functions'!$BC$3:$BC$5,'Utility Functions'!$BD$3:$BD$5)","v":0.25},12.224171189266654,null,12.224171189266656,3.407504522599988,1.7666666666666666,1,2.6,3.45]
["Unweighted",{"$f":"SUMPRODUCT(B46:B80,$B$85:$B$119)","v":2.4313097951313183},{"$f":"SUMPRODUCT(C46:C80,$B$85:$B$119)","v":1.66702526070833},{"$f":"SUMPRODUCT(D46:D80,$B$85:$B$119)","v":5},1,0,1,1,1.4672727272727273,0.18000000000000002,1,0,0.1,0.5,0.25,1.5,0.8,3.8,5,3.2,0.25,2,3.75,5,2.2000000000000002,1,1,4,1.75,null,null,"Unweighted",{"$f":"SUMPRODUCT(AG46:AG80,$B$85:$B$119)","v":10.098335055839648},{"$f":"SUMPRODUCT(AH46:AH80,$B$85:$B$119)","v":4.747272727272728},0.75,14.55,20.7]
["Weighted",{"$f":"B$81*Sens_Status!I5","v":7.7105082942156747E-2},{"$f":"C$81*Sens_Status!J5","v":4.9976512131752582E-2},{"$f":"D$81*Sens_Status!K5","v":0.15180614421343425},{"$f":"E$81*Sens_Status!L5","v":2.9579550375351597E-2},{"$f":"F$81*Sens_Status!M5","v":0},{"$f":"G$81*Sens_Status!N5","v":1.4845358200287153E-2},{"$f":"H$81*Sens_Status!O5","v":1.4845358200287153E-2},{"$f":"I$81*Sens_Status!P5","v":3.6975018658817138E-2},{"$f":"J$81*Sens_Status!Q5","v":4.420074634289139E-3},{"$f":"K$81*Sens_Status!R5","v":2.163483868011374E-2},{"$f":"L$81*Sens_Status!S5","v":0},{"$f":"M$81*Sens_Status!T5","v":1.6743739868297193E-3},{"$f":"N$81*Sens_Status!U5","v":1.4999999999999999E-2},{"$f":"O$81*Sens_Status!V5","v":2.2499999999999999E-2},{"$f":"P$81*Sens_Status!W5","v":5.9306159857367424E-2},{"$f":"Q$81*Sens_Status!X5","v":3.4866109682167808E-2},{"$f":"R$81*Sens_Status!Y5","v":0.18956981366609588},{"$f":"S$81*Sens_Status!Z5","v":0.21846721463112473},{"$f":"T$81*Sens_Status!AA5","v":0.10177062650925967},{"$f":"U$81*Sens_Status!AB5","v":7.8740915529962024E-3},{"$f":"V$81*Sens_Status!AC5","v":0.10891273560246523},{"$f":"W$81*Sens_Status!AD5","v":0.14727140084108473},{"$f":"X$81*Sens_Status!AE5","v":0.20999708227192768},{"$f":"Y$81*Sens_Status!AF5","v":0.11482140110676606},{"$f":"Z$81*Sens_Status!AG5","v":4.5222722018286976E-2},{"$f":"AA$81*Sens_Status!AH5","v":3.5040713064606495E-2},{"$f":"AB$81*Sens_Status!AI5","v":0.14864528658089007},{"$f":"AC$81*Sens_Status!AJ5","v":6.0647194126789025E-2},null,null,"Weighted for SA",{"$f":"AG81*#REF!","v":{"$error":"#REF!"}},{"$f":"AH81*#REF!","v":{"$error":"#REF!"}},{"$f":"AI81*#REF!","v":{"$error":"#REF!"}},{"$f":"AJ81*#REF!","v":{"$error":"#REF!"}},{"$f":"AK81*#REF!","v":{"$error":"#REF!"}}]
[]
[null,"Decision variable","Benefit","Cost"]
[{"$f":"A2","v":1},1,{"$f":"AD46","v":17.117643866192076},{"$f":"AD2","v":700000}]
[2,0,{"$f":"AD47","v":12.641625800575998},{"$f":"AD3","v":5400000}]
[3,0,11.563541444302563,250000]
[4,1,9.2460291931089209,150000]
[5,1,9.5663279251355373,220000]
[6,1,5.9008471271383875,110000]
[7,0,15.54287399641135,1000000]
[8,0,14.227364688589191,5000000]
[9,0,11.893773577166716,25000]
[10,0,9.01,900000]
[11,0,13.174032258064516,1500000]
[12,0,9.4195802436719873,100000]
[13,0,7.5245670174228056,250000]
[14,0,10.338706637075108,500000]
[15,0,15.150477261414375,800000]
[16,0,15.119696969696969,2000000]
[17,0,10.876550515651747,500000]
[18,0,10.178462998102468,300000]
[19,0,9.3165012474871283,750000]
[20,0,15.091255033092194,1500000]
[21,0,9.5500000000000007,900000]
[22,0,9.471742567994939,750000]
[23,0,9.5321507448123199,1000000]
[24,0,9.4968811881212041,150000]
[25,0,13.870607417804099,250000]
[26,0,11.064076562960208,500000]
[27,1,9.0147596715374529,1200000]
[28,0,12.499282052393189,500000]
[29,0,12.453684519169958,2000000]
[30,0,7.6494228467205527,250000]
[31,0,9.2059990264483247,650000]
[32,0,14.52045942179552,200000]
[33,0,10.246639728724558,400000]
[34,0,13.297748835604624,900000]
[35,0,12.224171189266654,900000]
[null,{"$f":"SUM(B85:B119)","v":5},{"$f":"SUMPRODUCT(C85:C119,B85:B119)","v":50.845607783112378},{"$f":"SUMPRODUCT(B85:B119,D85:D119)","v":2380000}]
[]
[null,null,"Cost constraint",15000000]

{"sheet":"Portfolio_C_Status","index":45,"n_rows":122,"n_cols":37,"rows_kept":122,"cut":false,"hidden":false,"merged":[]}
["Project","manage_species","manage_spatial","manage_uncertainty","manage_currentpractices","manage_adaptivemanagement","pop_a","pop_b","pop_spatialscope","pop_temporalscope","hab_quantity","hab_quality","hab_temporal","ecoprocess_spp","ecoprocess_uncertainty","datasharing","broaderimpacts","exisitingpriorities","partners","leverage","alignment","objhyp","response","targettaxa","surveydesign","stats","datamanagement","budget","timeline","cost"]
[1,9,6.25,2,2,0,186,1054,75,5,0,2,0,0,0,4,0,2,3,0,0,2,3,3,3,2,3,2,2,700000]
[2,3,28.2,1,0,0,0,0,0,0,0,2,0,4,1,0,0,3,3,0,0,2,3,3,3,2,3,2,2,5400000]
[3,8,28.2,2,0,0,0,0,0,0,0,2,0,5,1,0,2,0,0,0,1,2,3,3,3,2,1,2,2,250000]
[4,1,6.25,2,0,0,0,0,0,0,0,2,0,4,1,0,1,3,3,4,0,1,3,3,1,0,0,2,1,150000]
[5,4,3.1,2,0,0,0,0,50,2,0,2,0,0,0,0,1,3,3,4,1,0,3,3,2,0,0,2,1,220000]
[6,10,6.2E-2,2,0,0,0,0,10,2,0,2,0,0,0,0,1,0,3,3,0,0,0,3,0,0,0,2,1,110000]
[7,52,18.8,0,2,0,0,0,85,12,85,8,12,8,1,0,0,3,3,0,0,2,0,1,3,2,2,0,2,1000000]
[8,3,18.8,2,1,1,0,0,14,14,14,8,14,0,0,0,3,1,3,0,0,2,3,3,3,2,0,1,1,5000000]
[9,9,15.6,2,1,0,70,140,0,0,0,2,0,0,0,3,0,3,2,1,0,2,3,3,1,2,1,1,2,25000]
[10,0,0,0,0,0,0,0,0,0,0,2,0,6,2,1,2,3,2,2,0,0,2,3,3,1,1,0,2,900000]
[11,0,0,0,0,0,6,102,52,15,52,8,15,3,1,1,0,3,3,2,2,2,1,3,3,1,2,0,1,1500000]
[12,2,15.6,2,1,0,0,0,0,0,0,2,0,0,0,0,1,3,3,3,0,1,1,3,1,2,1,2,0,100000]
[13,0,0,0,0,0,0,12,39,2,39,8,2,7,1,1,0,3,3,0,0,1,0,1,0,2,1,1,1,250000]
[14,6,15.6,1,1,0,0,0,0,0,0,2,0,6,1,1,0,3,3,0,0,1,1,3,3,1,2,1,1,500000]
[15,23,12.5,2,1,1,0,0,23,3,23,8,3,1,2,2,0,2,3,3,2,0,3,1,1,2,3,2,1,800000]
[16,0,0,0,0,0,0,0,100,15,100,7,15,0,0,3,0,3,3,5,0,2,2,2,1,2,3,2,2,2000000]
[17,2,15.6,2,1,1,58,290,0,0,0,8,3,0,0,0,0,3,2,0,0,2,3,1,0,1,0,2,1,500000]
[18,0,0,0,0,0,0,30,0,0,0,2,0,8,1,1,3,3,3,5,1,2,2,1,2,1,2,1,0,300000]
[19,8,3.125,1,2,0,0,0,0,0,0,2,0,8,2,0,0,2,3,0,0,1,1,3,2,0,1,0,1,750000]
[20,9,15.6,1,2,0,0,435,76,10,76,6,10,8,2,1,0,3,3,3,2,1,0,0,1,2,1,0,1,1500000]
[21,0,0,0,0,0,0,0,0,0,0,2,0,8,2,0,1,3,3,5,1,0,2,3,1,0,3,1,2,900000]
[22,0,0,0,0,0,16,64,0,0,0,2,0,1,2,4,2,2,3,5,0,1,2,1,0,2,1,2,1,750000]
[23,9,18.8,2,0,0,0,0,0,0,0,2,0,0,0,3,0,3,3,5,0,2,1,2,1,1,1,0,1,1000000]
[24,5,6.25,2,0,0,0,0,0,0,0,2,0,0,0,0,0,3,3,5,0,0,3,1,3,2,1,0,2,150000]
[25,9,18.8,2,0,0,176,308,0,0,0,2,0,8,1,2,2,3,3,0,0,2,1,3,2,1,1,2,2,250000]
[26,17,18.8,2,1,0,0,0,0,0,0,2,0,0,0,3,0,3,3,4,0,2,1,0,2,0,1,2,2,500000]
[27,0,6.25,2,0,0,0,0,0,0,80,2,5,0,0,2,2,3,3,5,0,1,2,3,1,0,0,0,0,1200000]
[28,3,6.25,2,0,1,0,0,0,0,0,4,5,0,0,4,0,3,3,4,0,2,3,3,1,0,2,2,1,500000]
[29,9,12.5,2,1,0,0,0,15,12,15,8,12,0,0,1,0,3,3,4,0,2,1,0,2,1,1,1,2,2000000]
[30,33,18.8,2,0,0,0,0,0,0,0,4,2,0,0,0,0,1,1,0,0,0,3,1,2,0,2,2,0,250000]
[31,4,18.8,1,0,0,0,0,65,4,0,4,4,0,0,2,0,3,2,3,0,1,0,1,1,2,2,1,1,650000]
[32,5,3.125,2,2,1,6,102,40,16,40,8,16,0,0,2,3,3,0,4,0,0,2,1,2,1,0,2,1,200000]
[33,14,18.8,2,1,0,0,0,0,0,0,5,0,0,0,2,0,3,2,0,0,1,3,0,2,2,3,0,0,400000]
[34,0,0,0,0,0,0,12,100,15,100,8,15,0,0,2,0,3,3,4,0,2,3,3,0,2,2,1,0,900000]
[35,8,9.4,1,1,1,0,0,0,0,100,6,5,8,0,0,0,3,3,3,0,2,2,0,1,2,0,1,1,900000]
["CV",{"$f":"_xlfn.STDEV.S(B2:B36)/AVERAGE(B2:B36)","v":1.383842854444886},{"$f":"_xlfn.STDEV.S(C2:C36)/AVERAGE(C2:C36)","v":0.84395823753626376},{"$f":"_xlfn.STDEV.S(D2:D36)/AVERAGE(D2:D36)","v":0.65948586466528381},{"$f":"_xlfn.STDEV.S(E2:E36)/AVERAGE(E2:E36)","v":1.2933654230908831},2.2305806858480666,2.9881459898804135,2.7250501152884543,1.5394659205075842,1.5790297611729722,1.6828143944790142,0.63288342730791625,1.4346340567392073,1.2744250477591585,1.2909944487358058,1.043011114951035,1.4910544805781871,0.32582327651393111,0.30721159062514791,0.8219511329380369,2.1760730956581078,0.64975875258290616,0.58618247649425104,0.61083323417736113,0.63333947951472869,0.68629571860885286,0.76505300516434493,0.69428102652373402,0.60312027652595823]
["sd",{"$f":"_xlfn.STDEV.S(B2:B36)","v":10.477667326511279}]
["mean",{"$f":"AVERAGE(B2:B36)","v":7.5714285714285712}]
[null,{"$f":"B1","v":"manage_species"},{"$f":"C1","v":"manage_spatial"},"manage_uncertainty","manage_currentpractices","manage_adaptivemanagement","pop_a","pop_b","pop_spatialscope","pop_temporalscope","hab_quantity","hab_quality","hab_temporal","ecoprocess_spp","ecoprocess_uncertainty","datasharing","broaderimpacts","exisitingpriorities","partners","leverage","alignment","objhyp","response","targettaxa","surveydesign","stats","datamanagement","budget","timeline"]
[null,"Metric 1","Metric 2","Metric 3","Metric 4","Metric 5","Metric 6a","Metric 6b","Metric 7","Metric 8","Metric 9","Metric 10","Metric 11","Metric 12","Metric 13","Metric 14","Metric 15","Metric 16","Metric 17","Metric 18","Metric 19","Metric 20","Metric 21","Metric 22","Metric 23","Metric 24","Metric 25","Metric 26","Metric 27"]
["Weights",0.03,0.03,0.03,0.03,0.04,1.4999999999999999E-2,1.4999999999999999E-2,0.03,0.02,0.02,0.02,0.02,0.03,0.09,0.04,0.04,0.05,0.05,0.03,0.03,0.05,0.04,0.04,0.05,0.05,0.04,0.04,0.03]
[]
[null,"Unweighted"]
["Project",null,null,null,null,null,null,null,null,null,null,null,null,null,null,null,null,null,null,null,null,null,null,null,null,null,null,null,null,"Unweighted total",null,"Unweighted total","management","status","ecol_proc","integration","rigor"]
[{"$f":"A2","v":1},{"$f":"valueE(B2,'Utility Functions'!$B$3,'Utility Functions'!$B$4,'Utility Functions'!$B$5,'Utility Functions'!$B$6)","v":0.83470237647280454},{"$f":"valueE(C2,'Utility Functions'!$D$3,'Utility Functions'!$D$4,'Utility Functions'!$D$5,'Utility Functions'!$D$6)","v":0.46475967153745396},{"$f":"valuePL(D2,'Utility Functions'!$E$3:$E$5,'Utility Functions'!$F$3:$F$5)","v":1},{"$f":"valuePL(E2,'Utility Functions'!$G$3:$G$5,'Utility Functions'!$H$3:$H$5)","v":1},{"$f":"valuePL(F2,'Utility Functions'!$I$3:$I$4,'Utility Functions'!$J$3:$J$5)","v":0},{"$f":"valueE(G2,'Utility Functions'!$L$3,'Utility Functions'!$L$4,'Utility Functions'!$L$5,'Utility Functions'!$L$6)","v":1},{"$f":"valueE(H2,'Utility Functions'!$N$3,'Utility Functions'!$N$4,'Utility Functions'!$N$5,'Utility Functions'!$N$6)","v":1},{"$f":"valuePL(I2,'Utility Functions'!$O$3:$O$6,'Utility Functions'!$P$3:$P$6)","v":0.91818181818181821},{"$f":"valuePL(J2,'Utility Functions'!$Q$3:$Q$6,'Utility Functions'!$R$3:$R$6)","v":0.1},{"$f":"valuePL(K2,'Utility Functions'!$S$3:$S$7,'Utility Functions'!$T$3:$T$7)","v":0},{"$f":"valueE(L2,'Utility Functions'!$V$3,'Utility Functions'!$V$4,'Utility Functions'!$V$5,'Utility Functions'!$V$6)","v":0},{"$f":"valuePL(M2,'Utility Functions'!$W$3:$W$6,'Utility Functions'!$X$3:$X$6)","v":0},{"$f":"valueE(N2,'Utility Functions'!$Z$3,'Utility Functions'!$Z$4,'Utility Functions'!$Z$5,'Utility Functions'!$Z$6)","v":0},{"$f":"valuePL(O2,'Utility Functions'!$AA$3:$AA$5,'Utility Functions'!$AB$3:$AB$5)","v":0},{"$f":"valuePL(P2,'Utility Functions'!$AC$3:$AC$7,'Utility Functions'!$AD$3:$AD$7)","v":1},{"$f":"valuePL(Q2,'Utility Functions'!$AE$3:$AE$6,'Utility Functions'!$AF$3:$AF$6)","v":0},{"$f":"valuePL(R2,'Utility Functions'!$AG$3:$AG$6,'Utility Functions'!$AH$3:$AH$6)","v":0.8},{"$f":"valuePL(S2,'Utility Functions'!$AI$3:$AI$6,'Utility Functions'!$AJ$3:$AJ$6)","v":1},{"$f":"valuePL(T2,'Utility Functions'!$AK$3:$AK$8,'Utility Functions'!$AL$3:$AL$8)","v":0},{"$f":"valuePL(U2,'Utility Functions'!$AM$3:$AM$5,'Utility Functions'!$AN$3:$AN$5)","v":0},{"$f":"valuePL(V2,'Utility Functions'!$AO$3:$AO$5,'Utility Functions'!$AP$3:$AP$5)","v":1},{"$f":"valuePL(W2,'Utility Functions'!$AQ$3:$AQ$6,'Utility Functions'!$AR$3:$AR$6)","v":1},{"$f":"valuePL(X2,'Utility Functions'!$AS$3:$AS$6,'Utility Functions'!$AT$3:$AT$6)","v":1},{"$f":"valuePL(Y2,'Utility Functions'!$AU$3:$AU$6,'Utility Functions'!$AV$3:$AV$6)","v":1},{"$f":"valuePL(Z2,'Utility Functions'!$AW$3:$AW$5,'Utility Functions'!$AX$3:$AX$5)","v":1},{"$f":"valuePL(AA2,'Utility Functions'!$AY$3:$AY$6,'Utility Functions'!$AZ$3:$AZ$6)","v":1},{"$f":"valuePL(AB2,'Utility Functions'!$BA$3:$BA$5,'Utility Functions'!$BB$3:$BB$5)","v":1},{"$f":"valuePL(AC2,'Utility Functions'!$BC$3:$BC$5,'Utility Functions'!$BD$3:$BD$5)","v":1},{"$f":"SUM(B46:AC46)","v":17.117643866192076},null,{"$f":"SUM(AG46:AK46)","v":17.117643866192076},{"$f":"SUM(B46:F46)","v":3.2994620480102586},{"$f":"SUM(G46:M46)","v":3.0181818181818181},{"$f":"SUM(N46:O46)","v":0},{"$f":"SUM(P46:U46)","v":2.8},{"$f":"SUM(V46:AC46)","v":8}]
[2,{"$f":"valueE(B3,'Utility Functions'!$B$3,'Utility Functions'!$B$4,'Utility Functions'!$B$5,'Utility Functions'!$B$6)","v":0.4511890475224023},{"$f":"valueE(C3,'Utility Functions'!$D$3,'Utility Functions'!$D$4,'Utility Functions'!$D$5,'Utility Functions'!$D$6)","v":0.94043675305359531},{"$f":"valuePL(D3,'Utility Functions'!$E$3:$E$5,'Utility Functions'!$F$3:$F$5)","v":0.5},{"$f":"valuePL(E3,'Utility Functions'!$G$3:$G$5,'Utility Functions'!$H$3:$H$5)","v":0},{"$f":"valuePL(F3,'Utility Functions'!$I$3:$I$4,'Utility Functions'!$J$3:$J$5)","v":0},{"$f":"valueE(G3,'Utility Functions'!$L$3,'Utility Functions'!$L$4,'Utility Functions'!$L$5,'Utility Functions'!$L$6)","v":0},{"$f":"valueE(H3,'Utility Functions'!$N$3,'Utility Functions'!$N$4,'Utility Functions'!$N$5,'Utility Functions'!$N$6)","v":0},{"$f":"valuePL(I3,'Utility Functions'!$O$3:$O$6,'Utility Functions'!$P$3:$P$6)","v":0},{"$f":"valuePL(J3,'Utility Functions'!$Q$3:$Q$6,'Utility Functions'!$R$3:$R$6)","v":0},{"$f":"valuePL(K3,'Utility Functions'!$S$3:$S$7,'Utility Functions'!$T$3:$T$7)","v":0},{"$f":"valueE(L3,'Utility Functions'!$V$3,'Utility Functions'!$V$4,'Utility Functions'!$V$5,'Utility Functions'!$V$6)","v":0},{"$f":"valuePL(M3,'Utility Functions'!$W$3:$W$6,'Utility Functions'!$X$3:$X$6)","v":0},{"$f":"valueE(N3,'Utility Functions'!$Z$3,'Utility Functions'!$Z$4,'Utility Functions'!$Z$5,'Utility Functions'!$Z$6)","v":0.5},{"$f":"valuePL(O3,'Utility Functions'!$AA$3:$AA$5,'Utility Functions'!$AB$3:$AB$5)","v":0.25},{"$f":"valuePL(P3,'Utility Functions'!$AC$3:$AC$7,'Utility Functions'!$AD$3:$AD$7)","v":0},{"$f":"valuePL(Q3,'Utility Functions'!$AE$3:$AE$6,'Utility Functions'!$AF$3:$AF$6)","v":0},{"$f":"valuePL(R3,'Utility Functions'!$AG$3:$AG$6,'Utility Functions'!$AH$3:$AH$6)","v":1},{"$f":"valuePL(S3,'Utility Functions'!$AI$3:$AI$6,'Utility Functions'!$AJ$3:$AJ$6)","v":1},{"$f":"valuePL(T3,'Utility Functions'!$AK$3:$AK$8,'Utility Functions'!$AL$3:$AL$8)","v":0},{"$f":"valuePL(U3,'Utility Functions'!$AM$3:$AM$5,'Utility Functions'!$AN$3:$AN$5)","v":0},{"$f":"valuePL(V3,'Utility Functions'!$AO$3:$AO$5,'Utility Functions'!$AP$3:$AP$5)","v":1},{"$f":"valuePL(W3,'Utility Functions'!$AQ$3:$AQ$6,'Utility Functions'!$AR$3:$AR$6)","v":1},{"$f":"valuePL(X3,'Utility Functions'!$AS$3:$AS$6,'Utility Functions'!$AT$3:$AT$6)","v":1},{"$f":"valuePL(Y3,'Utility Functions'!$AU$3:$AU$6,'Utility Functions'!$AV$3:$AV$6)","v":1},{"$f":"valuePL(Z3,'Utility Functions'!$AW$3:$AW$5,'Utility Functions'!$AX$3:$AX$5)","v":1},{"$f":"valuePL(AA3,'Utility Functions'!$AY$3:$AY$6,'Utility Functions'!$AZ$3:$AZ$6)","v":1},{"$f":"valuePL(AB3,'Utility Functions'!$BA$3:$BA$5,'Utility Functions'!$BB$3:$BB$5)","v":1},{"$f":"valuePL(AC3,'Utility Functions'!$BC$3:$BC$5,'Utility Functions'!$BD$3:$BD$5)","v":1},{"$f":"SUM(B47:AC47)","v":12.641625800575998},null,{"$f":"SUM(AG47:AK47)","v":12.641625800575998},{"$f":"SUM(B47:F47)","v":1.8916258005759976},{"$f":"SUM(G47:M47)","v":0},{"$f":"SUM(N47:O47)","v":0.75},{"$f":"SUM(P47:U47)","v":2},{"$f":"SUM(V47:AC47)","v":8}]
[3,{"$f":"valueE(B4,'Utility Functions'!$B$3,'Utility Functions'!$B$4,'Utility Functions'!$B$5,'Utility Functions'!$B$6)","v":0.79810469124896843},{"$f":"valueE(C4,'Utility Functions'!$D$3,'Utility Functions'!$D$4,'Utility Functions'!$D$5,'Utility Functions'!$D$6)","v":0.94043675305359531},{"$f":"valuePL(D4,'Utility Functions'!$E$3:$E$5,'Utility Functions'!$F$3:$F$5)","v":1},{"$f":"valuePL(E4,'Utility Functions'!$G$3:$G$5,'Utility Functions'!$H$3:$H$5)","v":0},{"$f":"valuePL(F4,'Utility Functions'!$I$3:$I$4,'Utility Functions'!$J$3:$J$5)","v":0},{"$f":"valueE(G4,'Utility Functions'!$L$3,'Utility Functions'!$L$4,'Utility Functions'!$L$5,'Utility Functions'!$L$6)","v":0},{"$f":"valueE(H4,'Utility Functions'!$N$3,'Utility Functions'!$N$4,'Utility Functions'!$N$5,'Utility Functions'!$N$6)","v":0},{"$f":"valuePL(I4,'Utility Functions'!$O$3:$O$6,'Utility Functions'!$P$3:$P$6)","v":0},{"$f":"valuePL(J4,'Utility Functions'!$Q$3:$Q$6,'Utility Functions'!$R$3:$R$6)","v":0},{"$f":"valuePL(K4,'Utility Functions'!$S$3:$S$7,'Utility Functions'!$T$3:$T$7)","v":0},{"$f":"valueE(L4,'Utility Functions'!$V$3,'Utility Functions'!$V$4,'Utility Functions'!$V$5,'Utility Functions'!$V$6)","v":0},{"$f":"valuePL(M4,'Utility Functions'!$W$3:$W$6,'Utility Functions'!$X$3:$X$6)","v":0},{"$f":"valueE(N4,'Utility Functions'!$Z$3,'Utility Functions'!$Z$4,'Utility Functions'!$Z$5,'Utility Functions'!$Z$6)","v":0.625},{"$f":"valuePL(O4,'Utility Functions'!$AA$3:$AA$5,'Utility Functions'!$AB$3:$AB$5)","v":0.25},{"$f":"valuePL(P4,'Utility Functions'!$AC$3:$AC$7,'Utility Functions'!$AD$3:$AD$7)","v":0},{"$f":"valuePL(Q4,'Utility Functions'!$AE$3:$AE$6,'Utility Functions'!$AF$3:$AF$6)","v":0.5},{"$f":"valuePL(R4,'Utility Functions'!$AG$3:$AG$6,'Utility Functions'!$AH$3:$AH$6)","v":0},{"$f":"valuePL(S4,'Utility Functions'!$AI$3:$AI$6,'Utility Functions'!$AJ$3:$AJ$6)","v":0},{"$f":"valuePL(T4,'Utility Functions'!$AK$3:$AK$8,'Utility Functions'!$AL$3:$AL$8)","v":0},{"$f":"valuePL(U4,'Utility Functions'!$AM$3:$AM$5,'Utility Functions'!$AN$3:$AN$5)","v":0.25},{"$f":"valuePL(V4,'Utility Functions'!$AO$3:$AO$5,'Utility Functions'!$AP$3:$AP$5)","v":1},{"$f":"valuePL(W4,'Utility Functions'!$AQ$3:$AQ$6,'Utility Functions'!$AR$3:$AR$6)","v":1},{"$f":"valuePL(X4,'Utility Functions'!$AS$3:$AS$6,'Utility Functions'!$AT$3:$AT$6)","v":1},{"$f":"valuePL(Y4,'Utility Functions'!$AU$3:$AU$6,'Utility Functions'!$AV$3:$AV$6)","v":1},{"$f":"valuePL(Z4,'Utility Functions'!$AW$3:$AW$5,'Utility Functions'!$AX$3:$AX$5)","v":1},{"$f":"valuePL(AA4,'Utility Functions'!$AY$3:$AY$6,'Utility Functions'!$AZ$3:$AZ$6)","v":0.2},{"$f":"valuePL(AB4,'Utility Functions'!$BA$3:$BA$5,'Utility Functions'!$BB$3:$BB$5)","v":1},{"$f":"valuePL(AC4,'Utility Functions'!$BC$3:$BC$5,'Utility Functions'!$BD$3:$BD$5)","v":1},11.563541444302563,null,11.563541444302565,2.7385414443025637,0,0.875,0.75,7.2]
[4,{"$f":"valueE(B5,'Utility Functions'!$B$3,'Utility Functions'!$B$4,'Utility Functions'!$B$5,'Utility Functions'!$B$6)","v":0.1812695215714665},{"$f":"valueE(C5,'Utility Functions'!$D$3,'Utility Functions'!$D$4,'Utility Functions'!$D$5,'Utility Functions'!$D$6)","v":0.46475967153745396},{"$f":"valuePL(D5,'Utility Functions'!$E$3:$E$5,'Utility Functions'!$F$3:$F$5)","v":1},{"$f":"valuePL(E5,'Utility Functions'!$G$3:$G$5,'Utility Functions'!$H$3:$H$5)","v":0},{"$f":"valuePL(F5,'Utility Functions'!$I$3:$I$4,'Utility Functions'!$J$3:$J$5)","v":0},{"$f":"valueE(G5,'Utility Functions'!$L$3,'Utility Functions'!$L$4,'Utility Functions'!$L$5,'Utility Functions'!$L$6)","v":0},{"$f":"valueE(H5,'Utility Functions'!$N$3,'Utility Functions'!$N$4,'Utility Functions'!$N$5,'Utility Functions'!$N$6)","v":0},{"$f":"valuePL(I5,'Utility Functions'!$O$3:$O$6,'Utility Functions'!$P$3:$P$6)","v":0},{"$f":"valuePL(J5,'Utility Functions'!$Q$3:$Q$6,'Utility Functions'!$R$3:$R$6)","v":0},{"$f":"valuePL(K5,'Utility Functions'!$S$3:$S$7,'Utility Functions'!$T$3:$T$7)","v":0},{"$f":"valueE(L5,'Utility Functions'!$V$3,'Utility Functions'!$V$4,'Utility Functions'!$V$5,'Utility Functions'!$V$6)","v":0},{"$f":"valuePL(M5,'Utility Functions'!$W$3:$W$6,'Utility Functions'!$X$3:$X$6)","v":0},{"$f":"valueE(N5,'Utility Functions'!$Z$3,'Utility Functions'!$Z$4,'Utility Functions'!$Z$5,'Utility Functions'!$Z$6)","v":0.5},{"$f":"valuePL(O5,'Utility Functions'!$AA$3:$AA$5,'Utility Functions'!$AB$3:$AB$5)","v":0.25},{"$f":"valuePL(P5,'Utility Functions'!$AC$3:$AC$7,'Utility Functions'!$AD$3:$AD$7)","v":0},{"$f":"valuePL(Q5,'Utility Functions'!$AE$3:$AE$6,'Utility Functions'!$AF$3:$AF$6)","v":0.1},{"$f":"valuePL(R5,'Utility Functions'!$AG$3:$AG$6,'Utility Functions'!$AH$3:$AH$6)","v":1},{"$f":"valuePL(S5,'Utility Functions'!$AI$3:$AI$6,'Utility Functions'!$AJ$3:$AJ$6)","v":1},{"$f":"valuePL(T5,'Utility Functions'!$AK$3:$AK$8,'Utility Functions'!$AL$3:$AL$8)","v":0.8},{"$f":"valuePL(U5,'Utility Functions'!$AM$3:$AM$5,'Utility Functions'!$AN$3:$AN$5)","v":0},{"$f":"valuePL(V5,'Utility Functions'!$AO$3:$AO$5,'Utility Functions'!$AP$3:$AP$5)","v":0.5},{"$f":"valuePL(W5,'Utility Functions'!$AQ$3:$AQ$6,'Utility Functions'!$AR$3:$AR$6)","v":1},{"$f":"valuePL(X5,'Utility Functions'!$AS$3:$AS$6,'Utility Functions'!$AT$3:$AT$6)","v":1},{"$f":"valuePL(Y5,'Utility Functions'!$AU$3:$AU$6,'Utility Functions'!$AV$3:$AV$6)","v":0.2},{"$f":"valuePL(Z5,'Utility Functions'!$AW$3:$AW$5,'Utility Functions'!$AX$3:$AX$5)","v":0},{"$f":"valuePL(AA5,'Utility Functions'!$AY$3:$AY$6,'Utility Functions'!$AZ$3:$AZ$6)","v":0},{"$f":"valuePL(AB5,'Utility Functions'!$BA$3:$BA$5,'Utility Functions'!$BB$3:$BB$5)","v":1},{"$f":"valuePL(AC5,'Utility Functions'!$BC$3:$BC$5,'Utility Functions'!$BD$3:$BD$5)","v":0.25},9.2460291931089209,null,9.2460291931089209,1.6460291931089204,0,0.75,2.9000000000000004,3.95]
[5,{"$f":"valueE(B6,'Utility Functions'!$B$3,'Utility Functions'!$B$4,'Utility Functions'!$B$5,'Utility Functions'!$B$6)","v":0.55067187023002029},{"$f":"valueE(C6,'Utility Functions'!$D$3,'Utility Functions'!$D$4,'Utility Functions'!$D$5,'Utility Functions'!$D$6)","v":0.26656514581460788},{"$f":"valuePL(D6,'Utility Functions'!$E$3:$E$5,'Utility Functions'!$F$3:$F$5)","v":1},{"$f":"valuePL(E6,'Utility Functions'!$G$3:$G$5,'Utility Functions'!$H$3:$H$5)","v":0},{"$f":"valuePL(F6,'Utility Functions'!$I$3:$I$4,'Utility Functions'!$J$3:$J$5)","v":0},{"$f":"valueE(G6,'Utility Functions'!$L$3,'Utility Functions'!$L$4,'Utility Functions'!$L$5,'Utility Functions'!$L$6)","v":0},{"$f":"valueE(H6,'Utility Functions'!$N$3,'Utility Functions'!$N$4,'Utility Functions'!$N$5,'Utility Functions'!$N$6)","v":0},{"$f":"valuePL(I6,'Utility Functions'!$O$3:$O$6,'Utility Functions'!$P$3:$P$6)","v":0.50909090909090915},{"$f":"valuePL(J6,'Utility Functions'!$Q$3:$Q$6,'Utility Functions'!$R$3:$R$6)","v":0.04},{"$f":"valuePL(K6,'Utility Functions'!$S$3:$S$7,'Utility Functions'!$T$3:$T$7)","v":0},{"$f":"valueE(L6,'Utility Functions'!$V$3,'Utility Functions'!$V$4,'Utility Functions'!$V$5,'Utility Functions'!$V$6)","v":0},{"$f":"valuePL(M6,'Utility Functions'!$W$3:$W$6,'Utility Functions'!$X$3:$X$6)","v":0},{"$f":"valueE(N6,'Utility Functions'!$Z$3,'Utility Functions'!$Z$4,'Utility Functions'!$Z$5,'Utility Functions'!$Z$6)","v":0},{"$f":"valuePL(O6,'Utility Functions'!$AA$3:$AA$5,'Utility Functions'!$AB$3:$AB$5)","v":0},{"$f":"valuePL(P6,'Utility Functions'!$AC$3:$AC$7,'Utility Functions'!$AD$3:$AD$7)","v":0},{"$f":"valuePL(Q6,'Utility Functions'!$AE$3:$AE$6,'Utility Functions'!$AF$3:$AF$6)","v":0.1},{"$f":"valuePL(R6,'Utility Functions'!$AG$3:$AG$6,'Utility Functions'!$AH$3:$AH$6)","v":1},{"$f":"valuePL(S6,'Utility Functions'!$AI$3:$AI$6,'Utility Functions'!$AJ$3:$AJ$6)","v":1},{"$f":"valuePL(T6,'Utility Functions'!$AK$3:$AK$8,'Utility Functions'!$AL$3:$AL$8)","v":0.8},{"$f":"valuePL(U6,'Utility Functions'!$AM$3:$AM$5,'Utility Functions'!$AN$3:$AN$5)","v":0.25},{"$f":"valuePL(V6,'Utility Functions'!$AO$3:$AO$5,'Utility Functions'!$AP$3:$AP$5)","v":0},{"$f":"valuePL(W6,'Utility Functions'!$AQ$3:$AQ$6,'Utility Functions'!$AR$3:$AR$6)","v":1},{"$f":"valuePL(X6,'Utility Functions'!$AS$3:$AS$6,'Utility Functions'!$AT$3:$AT$6)","v":1},{"$f":"valuePL(Y6,'Utility Functions'!$AU$3:$AU$6,'Utility Functions'!$AV$3:$AV$6)","v":0.8},{"$f":"valuePL(Z6,'Utility Functions'!$AW$3:$AW$5,'Utility Functions'!$AX$3:$AX$5)","v":0},{"$f":"valuePL(AA6,'Utility Functions'!$AY$3:$AY$6,'Utility Functions'!$AZ$3:$AZ$6)","v":0},{"$f":"valuePL(AB6,'Utility Functions'!$BA$3:$BA$5,'Utility Functions'!$BB$3:$BB$5)","v":1},{"$f":"valuePL(AC6,'Utility Functions'!$BC$3:$BC$5,'Utility Functions'!$BD$3:$BD$5)","v":0.25},9.5663279251355373,null,9.5663279251355391,1.8172370160446283,0.54909090909090918,0,3.1500000000000004,4.05]
[6,{"$f":"valueE(B7,'Utility Functions'!$B$3,'Utility Functions'!$B$4,'Utility Functions'!$B$5,'Utility Functions'!$B$6)","v":0.86466602685702687},{"$f":"valueE(C7,'Utility Functions'!$D$3,'Utility Functions'!$D$4,'Utility Functions'!$D$5,'Utility Functions'!$D$6)","v":6.1811002813601471E-3},{"$f":"valuePL(D7,'Utility Functions'!$E$3:$E$5,'Utility Functions'!$F$3:$F$5)","v":1},{"$f":"valuePL(E7,'Utility Functions'!$G$3:$G$5,'Utility Functions'!$H$3:$H$5)","v":0},{"$f":"valuePL(F7,'Utility Functions'!$I$3:$I$4,'Utility Functions'!$J$3:$J$5)","v":0},{"$f":"valueE(G7,'Utility Functions'!$L$3,'Utility Functions'!$L$4,'Utility Functions'!$L$5,'Utility Functions'!$L$6)","v":0},{"$f":"valueE(H7,'Utility Functions'!$N$3,'Utility Functions'!$N$4,'Utility Functions'!$N$5,'Utility Functions'!$N$6)","v":0},{"$f":"valuePL(I7,'Utility Functions'!$O$3:$O$6,'Utility Functions'!$P$3:$P$6)","v":0.04},{"$f":"valuePL(J7,'Utility Functions'!$Q$3:$Q$6,'Utility Functions'!$R$3:$R$6)","v":0.04},{"$f":"valuePL(K7,'Utility Functions'!$S$3:$S$7,'Utility Functions'!$T$3:$T$7)","v":0},{"$f":"valueE(L7,'Utility Functions'!$V$3,'Utility Functions'!$V$4,'Utility Functions'!$V$5,'Utility Functions'!$V$6)","v":0},{"$f":"valuePL(M7,'Utility Functions'!$W$3:$W$6,'Utility Functions'!$X$3:$X$6)","v":0},{"$f":"valueE(N7,'Utility Functions'!$Z$3,'Utility Functions'!$Z$4,'Utility Functions'!$Z$5,'Utility Functions'!$Z$6)","v":0},{"$f":"valuePL(O7,'Utility Functions'!$AA$3:$AA$5,'Utility Functions'!$AB$3:$AB$5)","v":0},{"$f":"valuePL(P7,'Utility Functions'!$AC$3:$AC$7,'Utility Functions'!$AD$3:$AD$7)","v":0},{"$f":"valuePL(Q7,'Utility Functions'!$AE$3:$AE$6,'Utility Functions'!$AF$3:$AF$6)","v":0.1},{"$f":"valuePL(R7,'Utility Functions'!$AG$3:$AG$6,'Utility Functions'!$AH$3:$AH$6)","v":0},{"$f":"valuePL(S7,'Utility Functions'!$AI$3:$AI$6,'Utility Functions'!$AJ$3:$AJ$6)","v":1},{"$f":"valuePL(T7,'Utility Functions'!$AK$3:$AK$8,'Utility Functions'!$AL$3:$AL$8)","v":0.6},{"$f":"valuePL(U7,'Utility Functions'!$AM$3:$AM$5,'Utility Functions'!$AN$3:$AN$5)","v":0},{"$f":"valuePL(V7,'Utility Functions'!$AO$3:$AO$5,'Utility Functions'!$AP$3:$AP$5)","v":0},{"$f":"valuePL(W7,'Utility Functions'!$AQ$3:$AQ$6,'Utility Functions'!$AR$3:$AR$6)","v":0},{"$f":"valuePL(X7,'Utility Functions'!$AS$3:$AS$6,'Utility Functions'!$AT$3:$AT$6)","v":1},{"$f":"valuePL(Y7,'Utility Functions'!$AU$3:$AU$6,'Utility Functions'!$AV$3:$AV$6)","v":0},{"$f":"valuePL(Z7,'Utility Functions'!$AW$3:$AW$5,'Utility Functions'!$AX$3:$AX$5)","v":0},{"$f":"valuePL(AA7,'Utility Functions'!$AY$3:$AY$6,'Utility Functions'!$AZ$3:$AZ$6)","v":0},{"$f":"valuePL(AB7,'Utility Functions'!$BA$3:$BA$5,'Utility Functions'!$BB$3:$BB$5)","v":1},{"$f":"valuePL(AC7,'Utility Functions'!$BC$3:$BC$5,'Utility Functions'!$BD$3:$BD$5)","v":0.25},5.9008471271383875,null,5.9008471271383875,1.8708471271383869,0.08,0,1.7000000000000002,2.25]
[7,{"$f":"valueE(B8,'Utility Functions'!$B$3,'Utility Functions'!$B$4,'Utility Functions'!$B$5,'Utility Functions'!$B$6)","v":0.99997108261728973},{"$f":"valueE(C8,'Utility Functions'!$D$3,'Utility Functions'!$D$4,'Utility Functions'!$D$5,'Utility Functions'!$D$6)","v":0.84744836833951609},{"$f":"valuePL(D8,'Utility Functions'!$E$3:$E$5,'Utility Functions'!$F$3:$F$5)","v":0},{"$f":"valuePL(E8,'Utility Functions'!$G$3:$G$5,'Utility Functions'!$H$3:$H$5)","v":1},{"$f":"valuePL(F8,'Utility Functions'!$I$3:$I$4,'Utility Functions'!$J$3:$J$5)","v":0},{"$f":"valueE(G8,'Utility Functions'!$L$3,'Utility Functions'!$L$4,'Utility Functions'!$L$5,'Utility Functions'!$L$6)","v":0},{"$f":"valueE(H8,'Utility Functions'!$N$3,'Utility Functions'!$N$4,'Utility Functions'!$N$5,'Utility Functions'!$N$6)","v":0},{"$f":"valuePL(I8,'Utility Functions'!$O$3:$O$6,'Utility Functions'!$P$3:$P$6)","v":1},{"$f":"valuePL(J8,'Utility Functions'!$Q$3:$Q$6,'Utility Functions'!$R$3:$R$6)","v":0.67272727272727273},{"$f":"valuePL(K8,'Utility Functions'!$S$3:$S$7,'Utility Functions'!$T$3:$T$7)","v":1},{"$f":"valueE(L8,'Utility Functions'!$V$3,'Utility Functions'!$V$4,'Utility Functions'!$V$5,'Utility Functions'!$V$6)","v":1},{"$f":"valuePL(M8,'Utility Functions'!$W$3:$W$6,'Utility Functions'!$X$3:$X$6)","v":0.67272727272727273},{"$f":"valueE(N8,'Utility Functions'!$Z$3,'Utility Functions'!$Z$4,'Utility Functions'!$Z$5,'Utility Functions'!$Z$6)","v":1},{"$f":"valuePL(O8,'Utility Functions'!$AA$3:$AA$5,'Utility Functions'!$AB$3:$AB$5)","v":0.25},{"$f":"valuePL(P8,'Utility Functions'!$AC$3:$AC$7,'Utility Functions'!$AD$3:$AD$7)","v":0},{"$f":"valuePL(Q8,'Utility Functions'!$AE$3:$AE$6,'Utility Functions'!$AF$3:$AF$6)","v":0},{"$f":"valuePL(R8,'Utility Functions'!$AG$3:$AG$6,'Utility Functions'!$AH$3:$AH$6)","v":1},{"$f":"valuePL(S8,'Utility Functions'!$AI$3:$AI$6,'Utility Functions'!$AJ$3:$AJ$6)","v":1},{"$f":"valuePL(T8,'Utility Functions'!$AK$3:$AK$8,'Utility Functions'!$AL$3:$AL$8)","v":0},{"$f":"valuePL(U8,'Utility Functions'!$AM$3:$AM$5,'Utility Functions'!$AN$3:$AN$5)","v":0},{"$f":"valuePL(V8,'Utility Functions'!$AO$3:$AO$5,'Utility Functions'!$AP$3:$AP$5)","v":1},{"$f":"valuePL(W8,'Utility Functions'!$AQ$3:$AQ$6,'Utility Functions'!$AR$3:$AR$6)","v":0},{"$f":"valuePL(X8,'Utility Functions'!$AS$3:$AS$6,'Utility Functions'!$AT$3:$AT$6)","v":0.2},{"$f":"valuePL(Y8,'Utility Functions'!$AU$3:$AU$6,'Utility Functions'!$AV$3:$AV$6)","v":1},{"$f":"valuePL(Z8,'Utility Functions'!$AW$3:$AW$5,'Utility Functions'!$AX$3:$AX$5)","v":1},{"$f":"valuePL(AA8,'Utility Functions'!$AY$3:$AY$6,'Utility Functions'!$AZ$3:$AZ$6)","v":0.89999999999999991},{"$f":"valuePL(AB8,'Utility Functions'!$BA$3:$BA$5,'Utility Functions'!$BB$3:$BB$5)","v":0},{"$f":"valuePL(AC8,'Utility Functions'!$BC$3:$BC$5,'Utility Functions'!$BD$3:$BD$5)","v":1},15.54287399641135,null,15.54287399641135,2.8474194509568056,4.3454545454545457,1.25,2,5.0999999999999996]
[8,{"$f":"valueE(B9,'Utility Functions'!$B$3,'Utility Functions'!$B$4,'Utility Functions'!$B$5,'Utility Functions'!$B$6)","v":0.4511890475224023},{"$f":"valueE(C9,'Utility Functions'!$D$3,'Utility Functions'!$D$4,'Utility Functions'!$D$5,'Utility Functions'!$D$6)","v":0.84744836833951609},{"$f":"valuePL(D9,'Utility Functions'!$E$3:$E$5,'Utility Functions'!$F$3:$F$5)","v":1},{"$f":"valuePL(E9,'Utility Functions'!$G$3:$G$5,'Utility Functions'!$H$3:$H$5)","v":0.5},{"$f":"valuePL(F9,'Utility Functions'!$I$3:$I$4,'Utility Functions'!$J$3:$J$5)","v":1},{"$f":"valueE(G9,'Utility Functions'!$L$3,'Utility Functions'!$L$4,'Utility Functions'!$L$5,'Utility Functions'!$L$6)","v":0},{"$f":"valueE(H9,'Utility Functions'!$N$3,'Utility Functions'!$N$4,'Utility Functions'!$N$5,'Utility Functions'!$N$6)","v":0},{"$f":"valuePL(I9,'Utility Functions'!$O$3:$O$6,'Utility Functions'!$P$3:$P$6)","v":5.6000000000000008E-2},{"$f":"valuePL(J9,'Utility Functions'!$Q$3:$Q$6,'Utility Functions'!$R$3:$R$6)","v":0.83636363636363631},{"$f":"valuePL(K9,'Utility Functions'!$S$3:$S$7,'Utility Functions'!$T$3:$T$7)","v":0},{"$f":"valueE(L9,'Utility Functions'!$V$3,'Utility Functions'!$V$4,'Utility Functions'!$V$5,'Utility Functions'!$V$6)","v":1},{"$f":"valuePL(M9,'Utility Functions'!$W$3:$W$6,'Utility Functions'!$X$3:$X$6)","v":0.83636363636363631},{"$f":"valueE(N9,'Utility Functions'!$Z$3,'Utility Functions'!$Z$4,'Utility Functions'!$Z$5,'Utility Functions'!$Z$6)","v":0},{"$f":"valuePL(O9,'Utility Functions'!$AA$3:$AA$5,'Utility Functions'!$AB$3:$AB$5)","v":0},{"$f":"valuePL(P9,'Utility Functions'!$AC$3:$AC$7,'Utility Functions'!$AD$3:$AD$7)","v":0},{"$f":"valuePL(Q9,'Utility Functions'!$AE$3:$AE$6,'Utility Functions'!$AF$3:$AF$6)","v":1},{"$f":"valuePL(R9,'Utility Functions'!$AG$3:$AG$6,'Utility Functions'!$AH$3:$AH$6)","v":0.2},{"$f":"valuePL(S9,'Utility Functions'!$AI$3:$AI$6,'Utility Functions'!$AJ$3:$AJ$6)","v":1},{"$f":"valuePL(T9,'Utility Functions'!$AK$3:$AK$8,'Utility Functions'!$AL$3:$AL$8)","v":0},{"$f":"valuePL(U9,'Utility Functions'!$AM$3:$AM$5,'Utility Functions'!$AN$3:$AN$5)","v":0},{"$f":"valuePL(V9,'Utility Functions'!$AO$3:$AO$5,'Utility Functions'!$AP$3:$AP$5)","v":1},{"$f":"valuePL(W9,'Utility Functions'!$AQ$3:$AQ$6,'Utility Functions'!$AR$3:$AR$6)","v":1},{"$f":"valuePL(X9,'Utility Functions'!$AS$3:$AS$6,'Utility Functions'!$AT$3:$AT$6)","v":1},{"$f":"valuePL(Y9,'Utility Functions'!$AU$3:$AU$6,'Utility Functions'!$AV$3:$AV$6)","v":1},{"$f":"valuePL(Z9,'Utility Functions'!$AW$3:$AW$5,'Utility Functions'!$AX$3:$AX$5)","v":1},{"$f":"valuePL(AA9,'Utility Functions'!$AY$3:$AY$6,'Utility Functions'!$AZ$3:$AZ$6)","v":0},{"$f":"valuePL(AB9,'Utility Functions'!$BA$3:$BA$5,'Utility Functions'!$BB$3:$BB$5)","v":0.25},{"$f":"valuePL(AC9,'Utility Functions'!$BC$3:$BC$5,'Utility Functions'!$BD$3:$BD$5)","v":0.25},14.227364688589191,null,14.227364688589191,3.7986374158619185,2.7287272727272729,0,2.2000000000000002,5.5]
[9,{"$f":"valueE(B10,'Utility Functions'!$B$3,'Utility Functions'!$B$4,'Utility Functions'!$B$5,'Utility Functions'!$B$6)","v":0.83470237647280454},{"$f":"valueE(C10,'Utility Functions'!$D$3,'Utility Functions'!$D$4,'Utility Functions'!$D$5,'Utility Functions'!$D$6)","v":0.78989979019422951},{"$f":"valuePL(D10,'Utility Functions'!$E$3:$E$5,'Utility Functions'!$F$3:$F$5)","v":1},{"$f":"valuePL(E10,'Utility Functions'!$G$3:$G$5,'Utility Functions'!$H$3:$H$5)","v":0.5},{"$f":"valuePL(F10,'Utility Functions'!$I$3:$I$4,'Utility Functions'!$J$3:$J$5)","v":0},{"$f":"valueE(G10,'Utility Functions'!$L$3,'Utility Functions'!$L$4,'Utility Functions'!$L$5,'Utility Functions'!$L$6)","v":0.37634408602150538},{"$f":"valueE(H10,'Utility Functions'!$N$3,'Utility Functions'!$N$4,'Utility Functions'!$N$5,'Utility Functions'!$N$6)","v":0.13282732447817835},{"$f":"valuePL(I10,'Utility Functions'!$O$3:$O$6,'Utility Functions'!$P$3:$P$6)","v":0},{"$f":"valuePL(J10,'Utility Functions'!$Q$3:$Q$6,'Utility Functions'!$R$3:$R$6)","v":0},{"$f":"valuePL(K10,'Utility Functions'!$S$3:$S$7,'Utility Functions'!$T$3:$T$7)","v":0},{"$f":"valueE(L10,'Utility Functions'!$V$3,'Utility Functions'!$V$4,'Utility Functions'!$V$5,'Utility Functions'!$V$6)","v":0},{"$f":"valuePL(M10,'Utility Functions'!$W$3:$W$6,'Utility Functions'!$X$3:$X$6)","v":0},{"$f":"valueE(N10,'Utility Functions'!$Z$3,'Utility Functions'!$Z$4,'Utility Functions'!$Z$5,'Utility Functions'!$Z$6)","v":0},{"$f":"valuePL(O10,'Utility Functions'!$AA$3:$AA$5,'Utility Functions'!$AB$3:$AB$5)","v":0},{"$f":"valuePL(P10,'Utility Functions'!$AC$3:$AC$7,'Utility Functions'!$AD$3:$AD$7)","v":0.75},{"$f":"valuePL(Q10,'Utility Functions'!$AE$3:$AE$6,'Utility Functions'!$AF$3:$AF$6)","v":0},{"$f":"valuePL(R10,'Utility Functions'!$AG$3:$AG$6,'Utility Functions'!$AH$3:$AH$6)","v":1},{"$f":"valuePL(S10,'Utility Functions'!$AI$3:$AI$6,'Utility Functions'!$AJ$3:$AJ$6)","v":0.66},{"$f":"valuePL(T10,'Utility Functions'!$AK$3:$AK$8,'Utility Functions'!$AL$3:$AL$8)","v":0.2},{"$f":"valuePL(U10,'Utility Functions'!$AM$3:$AM$5,'Utility Functions'!$AN$3:$AN$5)","v":0},{"$f":"valuePL(V10,'Utility Functions'!$AO$3:$AO$5,'Utility Functions'!$AP$3:$AP$5)","v":1},{"$f":"valuePL(W10,'Utility Functions'!$AQ$3:$AQ$6,'Utility Functions'!$AR$3:$AR$6)","v":1},{"$f":"valuePL(X10,'Utility Functions'!$AS$3:$AS$6,'Utility Functions'!$AT$3:$AT$6)","v":1},{"$f":"valuePL(Y10,'Utility Functions'!$AU$3:$AU$6,'Utility Functions'!$AV$3:$AV$6)","v":0.2},{"$f":"valuePL(Z10,'Utility Functions'!$AW$3:$AW$5,'Utility Functions'!$AX$3:$AX$5)","v":1},{"$f":"valuePL(AA10,'Utility Functions'!$AY$3:$AY$6,'Utility Functions'!$AZ$3:$AZ$6)","v":0.2},{"$f":"valuePL(AB10,'Utility Functions'!$BA$3:$BA$5,'Utility Functions'!$BB$3:$BB$5)","v":0.25},{"$f":"valuePL(AC10,'Utility Functions'!$BC$3:$BC$5,'Utility Functions'!$BD$3:$BD$5)","v":1},11.893773577166716,null,11.893773577166719,3.1246021666670343,0.50917141049968373,0,2.6100000000000003,5.65]
[10,{"$f":"valueE(B11,'Utility Functions'!$B$3,'Utility Functions'!$B$4,'Utility Functions'!$B$5,'Utility Functions'!$B$6)","v":0},{"$f":"valueE(C11,'Utility Functions'!$D$3,'Utility Functions'!$D$4,'Utility Functions'!$D$5,'Utility Functions'!$D$6)","v":0},{"$f":"valuePL(D11,'Utility Functions'!$E$3:$E$5,'Utility Functions'!$F$3:$F$5)","v":0},{"$f":"valuePL(E11,'Utility Functions'!$G$3:$G$5,'Utility Functions'!$H$3:$H$5)","v":0},{"$f":"valuePL(F11,'Utility Functions'!$I$3:$I$4,'Utility Functions'!$J$3:$J$5)","v":0},{"$f":"valueE(G11,'Utility Functions'!$L$3,'Utility Functions'!$L$4,'Utility Functions'!$L$5,'Utility Functions'!$L$6)","v":0},{"$f":"valueE(H11,'Utility Functions'!$N$3,'Utility Functions'!$N$4,'Utility Functions'!$N$5,'Utility Functions'!$N$6)","v":0},{"$f":"valuePL(I11,'Utility Functions'!$O$3:$O$6,'Utility Functions'!$P$3:$P$6)","v":0},{"$f":"valuePL(J11,'Utility Functions'!$Q$3:$Q$6,'Utility Functions'!$R$3:$R$6)","v":0},{"$f":"valuePL(K11,'Utility Functions'!$S$3:$S$7,'Utility Functions'!$T$3:$T$7)","v":0},{"$f":"valueE(L11,'Utility Functions'!$V$3,'Utility Functions'!$V$4,'Utility Functions'!$V$5,'Utility Functions'!$V$6)","v":0},{"$f":"valuePL(M11,'Utility Functions'!$W$3:$W$6,'Utility Functions'!$X$3:$X$6)","v":0},{"$f":"valueE(N11,'Utility Functions'!$Z$3,'Utility Functions'!$Z$4,'Utility Functions'!$Z$5,'Utility Functions'!$Z$6)","v":0.75},{"$f":"valuePL(O11,'Utility Functions'!$AA$3:$AA$5,'Utility Functions'!$AB$3:$AB$5)","v":1},{"$f":"valuePL(P11,'Utility Functions'!$AC$3:$AC$7,'Utility Functions'!$AD$3:$AD$7)","v":0.25},{"$f":"valuePL(Q11,'Utility Functions'!$AE$3:$AE$6,'Utility Functions'!$AF$3:$AF$6)","v":0.5},{"$f":"valuePL(R11,'Utility Functions'!$AG$3:$AG$6,'Utility Functions'!$AH$3:$AH$6)","v":1},{"$f":"valuePL(S11,'Utility Functions'!$AI$3:$AI$6,'Utility Functions'!$AJ$3:$AJ$6)","v":0.66},{"$f":"valuePL(T11,'Utility Functions'!$AK$3:$AK$8,'Utility Functions'!$AL$3:$AL$8)","v":0.4},{"$f":"valuePL(U11,'Utility Functions'!$AM$3:$AM$5,'Utility Functions'!$AN$3:$AN$5)","v":0},{"$f":"valuePL(V11,'Utility Functions'!$AO$3:$AO$5,'Utility Functions'!$AP$3:$AP$5)","v":0},{"$f":"valuePL(W11,'Utility Functions'!$AQ$3:$AQ$6,'Utility Functions'!$AR$3:$AR$6)","v":0.75},{"$f":"valuePL(X11,'Utility Functions'!$AS$3:$AS$6,'Utility Functions'!$AT$3:$AT$6)","v":1},{"$f":"valuePL(Y11,'Utility Functions'!$AU$3:$AU$6,'Utility Functions'!$AV$3:$AV$6)","v":1},{"$f":"valuePL(Z11,'Utility Functions'!$AW$3:$AW$5,'Utility Functions'!$AX$3:$AX$5)","v":0.5},{"$f":"valuePL(AA11,'Utility Functions'!$AY$3:$AY$6,'Utility Functions'!$AZ$3:$AZ$6)","v":0.2},{"$f":"valuePL(AB11,'Utility Functions'!$BA$3:$BA$5,'Utility Functions'!$BB$3:$BB$5)","v":0},{"$f":"valuePL(AC11,'Utility Functions'!$BC$3:$BC$5,'Utility Functions'!$BD$3:$BD$5)","v":1},9.01,null,9.0100000000000016,0,0,1.75,2.81,4.45]
[11,{"$f":"valueE(B12,'Utility Functions'!$B$3,'Utility Functions'!$B$4,'Utility Functions'!$B$5,'Utility Functions'!$B$6)","v":0},{"$f":"valueE(C12,'Utility Functions'!$D$3,'Utility Functions'!$D$4,'Utility Functions'!$D$5,'Utility Functions'!$D$6)","v":0},{"$f":"valuePL(D12,'Utility Functions'!$E$3:$E$5,'Utility Functions'!$F$3:$F$5)","v":0},{"$f":"valuePL(E12,'Utility Functions'!$G$3:$G$5,'Utility Functions'!$H$3:$H$5)","v":0},{"$f":"valuePL(F12,'Utility Functions'!$I$3:$I$4,'Utility Functions'!$J$3:$J$5)","v":0},{"$f":"valueE(G12,'Utility Functions'!$L$3,'Utility Functions'!$L$4,'Utility Functions'!$L$5,'Utility Functions'!$L$6)","v":3.2258064516129031E-2},{"$f":"valueE(H12,'Utility Functions'!$N$3,'Utility Functions'!$N$4,'Utility Functions'!$N$5,'Utility Functions'!$N$6)","v":9.6774193548387094E-2},{"$f":"valuePL(I12,'Utility Functions'!$O$3:$O$6,'Utility Functions'!$P$3:$P$6)","v":0.54181818181818187},{"$f":"valuePL(J12,'Utility Functions'!$Q$3:$Q$6,'Utility Functions'!$R$3:$R$6)","v":0.91818181818181821},{"$f":"valuePL(K12,'Utility Functions'!$S$3:$S$7,'Utility Functions'!$T$3:$T$7)","v":0.54181818181818187},{"$f":"valueE(L12,'Utility Functions'!$V$3,'Utility Functions'!$V$4,'Utility Functions'!$V$5,'Utility Functions'!$V$6)","v":1},{"$f":"valuePL(M12,'Utility Functions'!$W$3:$W$6,'Utility Functions'!$X$3:$X$6)","v":0.91818181818181821},{"$f":"valueE(N12,'Utility Functions'!$Z$3,'Utility Functions'!$Z$4,'Utility Functions'!$Z$5,'Utility Functions'!$Z$6)","v":0.375},{"$f":"valuePL(O12,'Utility Functions'!$AA$3:$AA$5,'Utility Functions'!$AB$3:$AB$5)","v":0.25},{"$f":"valuePL(P12,'Utility Functions'!$AC$3:$AC$7,'Utility Functions'!$AD$3:$AD$7)","v":0.25},{"$f":"valuePL(Q12,'Utility Functions'!$AE$3:$AE$6,'Utility Functions'!$AF$3:$AF$6)","v":0},{"$f":"valuePL(R12,'Utility Functions'!$AG$3:$AG$6,'Utility Functions'!$AH$3:$AH$6)","v":1},{"$f":"valuePL(S12,'Utility Functions'!$AI$3:$AI$6,'Utility Functions'!$AJ$3:$AJ$6)","v":1},{"$f":"valuePL(T12,'Utility Functions'!$AK$3:$AK$8,'Utility Functions'!$AL$3:$AL$8)","v":0.4},{"$f":"valuePL(U12,'Utility Functions'!$AM$3:$AM$5,'Utility Functions'!$AN$3:$AN$5)","v":1},{"$f":"valuePL(V12,'Utility Functions'!$AO$3:$AO$5,'Utility Functions'!$AP$3:$AP$5)","v":1},{"$f":"valuePL(W12,'Utility Functions'!$AQ$3:$AQ$6,'Utility Functions'!$AR$3:$AR$6)","v":0.2},{"$f":"valuePL(X12,'Utility Functions'!$AS$3:$AS$6,'Utility Functions'!$AT$3:$AT$6)","v":1},{"$f":"valuePL(Y12,'Utility Functions'!$AU$3:$AU$6,'Utility Functions'!$AV$3:$AV$6)","v":1},{"$f":"valuePL(Z12,'Utility Functions'!$AW$3:$AW$5,'Utility Functions'!$AX$3:$AX$5)","v":0.5},{"$f":"valuePL(AA12,'Utility Functions'!$AY$3:$AY$6,'Utility Functions'!$AZ$3:$AZ$6)","v":0.89999999999999991},{"$f":"valuePL(AB12,'Utility Functions'!$BA$3:$BA$5,'Utility Functions'!$BB$3:$BB$5)","v":0},{"$f":"valuePL(AC12,'Utility Functions'!$BC$3:$BC$5,'Utility Functions'!$BD$3:$BD$5)","v":0.25},13.174032258064516,null,13.174032258064516,0,4.0490322580645159,0.625,3.65,4.8499999999999996]
[12,{"$f":"valueE(B13,'Utility Functions'!$B$3,'Utility Functions'!$B$4,'Utility Functions'!$B$5,'Utility Functions'!$B$6)","v":0.32968045347775865},{"$f":"valueE(C13,'Utility Functions'!$D$3,'Utility Functions'!$D$4,'Utility Functions'!$D$5,'Utility Functions'!$D$6)","v":0.78989979019422951},{"$f":"valuePL(D13,'Utility Functions'!$E$3:$E$5,'Utility Functions'!$F$3:$F$5)","v":1},{"$f":"valuePL(E13,'Utility Functions'!$G$3:$G$5,'Utility Functions'!$H$3:$H$5)","v":0.5},{"$f":"valuePL(F13,'Utility Functions'!$I$3:$I$4,'Utility Functions'!$J$3:$J$5)","v":0},{"$f":"valueE(G13,'Utility Functions'!$L$3,'Utility Functions'!$L$4,'Utility Functions'!$L$5,'Utility Functions'!$L$6)","v":0},{"$f":"valueE(H13,'Utility Functions'!$N$3,'Utility Functions'!$N$4,'Utility Functions'!$N$5,'Utility Functions'!$N$6)","v":0},{"$f":"valuePL(I13,'Utility Functions'!$O$3:$O$6,'Utility Functions'!$P$3:$P$6)","v":0},{"$f":"valuePL(J13,'Utility Functions'!$Q$3:$Q$6,'Utility Functions'!$R$3:$R$6)","v":0},{"$f":"valuePL(K13,'Utility Functions'!$S$3:$S$7,'Utility Functions'!$T$3:$T$7)","v":0},{"$f":"valueE(L13,'Utility Functions'!$V$3,'Utility Functions'!$V$4,'Utility Functions'!$V$5,'Utility Functions'!$V$6)","v":0},{"$f":"valuePL(M13,'Utility Functions'!$W$3:$W$6,'Utility Functions'!$X$3:$X$6)","v":0},{"$f":"valueE(N13,'Utility Functions'!$Z$3,'Utility Functions'!$Z$4,'Utility Functions'!$Z$5,'Utility Functions'!$Z$6)","v":0},{"$f":"valuePL(O13,'Utility Functions'!$AA$3:$AA$5,'Utility Functions'!$AB$3:$AB$5)","v":0},{"$f":"valuePL(P13,'Utility Functions'!$AC$3:$AC$7,'Utility Functions'!$AD$3:$AD$7)","v":0},{"$f":"valuePL(Q13,'Utility Functions'!$AE$3:$AE$6,'Utility Functions'!$AF$3:$AF$6)","v":0.1},{"$f":"valuePL(R13,'Utility Functions'!$AG$3:$AG$6,'Utility Functions'!$AH$3:$AH$6)","v":1},{"$f":"valuePL(S13,'Utility Functions'!$AI$3:$AI$6,'Utility Functions'!$AJ$3:$AJ$6)","v":1},{"$f":"valuePL(T13,'Utility Functions'!$AK$3:$AK$8,'Utility Functions'!$AL$3:$AL$8)","v":0.6},{"$f":"valuePL(U13,'Utility Functions'!$AM$3:$AM$5,'Utility Functions'!$AN$3:$AN$5)","v":0},{"$f":"valuePL(V13,'Utility Functions'!$AO$3:$AO$5,'Utility Functions'!$AP$3:$AP$5)","v":0.5},{"$f":"valuePL(W13,'Utility Functions'!$AQ$3:$AQ$6,'Utility Functions'!$AR$3:$AR$6)","v":0.2},{"$f":"valuePL(X13,'Utility Functions'!$AS$3:$AS$6,'Utility Functions'!$AT$3:$AT$6)","v":1},{"$f":"valuePL(Y13,'Utility Functions'!$AU$3:$AU$6,'Utility Functions'!$AV$3:$AV$6)","v":0.2},{"$f":"valuePL(Z13,'Utility Functions'!$AW$3:$AW$5,'Utility Functions'!$AX$3:$AX$5)","v":1},{"$f":"valuePL(AA13,'Utility Functions'!$AY$3:$AY$6,'Utility Functions'!$AZ$3:$AZ$6)","v":0.2},{"$f":"valuePL(AB13,'Utility Functions'!$BA$3:$BA$5,'Utility Functions'!$BB$3:$BB$5)","v":1},{"$f":"valuePL(AC13,'Utility Functions'!$BC$3:$BC$5,'Utility Functions'!$BD$3:$BD$5)","v":0},9.4195802436719873,null,9.4195802436719873,2.6195802436719884,0,0,2.7,4.0999999999999996]
[13,{"$f":"valueE(B14,'Utility Functions'!$B$3,'Utility Functions'!$B$4,'Utility Functions'!$B$5,'Utility Functions'!$B$6)","v":0},{"$f":"valueE(C14,'Utility Functions'!$D$3,'Utility Functions'!$D$4,'Utility Functions'!$D$5,'Utility Functions'!$D$6)","v":0},{"$f":"valuePL(D14,'Utility Functions'!$E$3:$E$5,'Utility Functions'!$F$3:$F$5)","v":0},{"$f":"valuePL(E14,'Utility Functions'!$G$3:$G$5,'Utility Functions'!$H$3:$H$5)","v":0},{"$f":"valuePL(F14,'Utility Functions'!$I$3:$I$4,'Utility Functions'!$J$3:$J$5)","v":0},{"$f":"valueE(G14,'Utility Functions'!$L$3,'Utility Functions'!$L$4,'Utility Functions'!$L$5,'Utility Functions'!$L$6)","v":0},{"$f":"valueE(H14,'Utility Functions'!$N$3,'Utility Functions'!$N$4,'Utility Functions'!$N$5,'Utility Functions'!$N$6)","v":1.1385199240986717E-2},{"$f":"valuePL(I14,'Utility Functions'!$O$3:$O$6,'Utility Functions'!$P$3:$P$6)","v":0.3290909090909091},{"$f":"valuePL(J14,'Utility Functions'!$Q$3:$Q$6,'Utility Functions'!$R$3:$R$6)","v":0.04},{"$f":"valuePL(K14,'Utility Functions'!$S$3:$S$7,'Utility Functions'!$T$3:$T$7)","v":0.3290909090909091},{"$f":"valueE(L14,'Utility Functions'!$V$3,'Utility Functions'!$V$4,'Utility Functions'!$V$5,'Utility Functions'!$V$6)","v":1},{"$f":"valuePL(M14,'Utility Functions'!$W$3:$W$6,'Utility Functions'!$X$3:$X$6)","v":0.04},{"$f":"valueE(N14,'Utility Functions'!$Z$3,'Utility Functions'!$Z$4,'Utility Functions'!$Z$5,'Utility Functions'!$Z$6)","v":0.875},{"$f":"valuePL(O14,'Utility Functions'!$AA$3:$AA$5,'Utility Functions'!$AB$3:$AB$5)","v":0.25},{"$f":"valuePL(P14,'Utility Functions'!$AC$3:$AC$7,'Utility Functions'!$AD$3:$AD$7)","v":0.25},{"$f":"valuePL(Q14,'Utility Functions'!$AE$3:$AE$6,'Utility Functions'!$AF$3:$AF$6)","v":0},{"$f":"valuePL(R14,'Utility Functions'!$AG$3:$AG$6,'Utility Functions'!$AH$3:$AH$6)","v":1},{"$f":"valuePL(S14,'Utility Functions'!$AI$3:$AI$6,'Utility Functions'!$AJ$3:$AJ$6)","v":1},{"$f":"valuePL(T14,'Utility Functions'!$AK$3:$AK$8,'Utility Functions'!$AL$3:$AL$8)","v":0},{"$f":"valuePL(U14,'Utility Functions'!$AM$3:$AM$5,'Utility Functions'!$AN$3:$AN$5)","v":0},{"$f":"valuePL(V14,'Utility Functions'!$AO$3:$AO$5,'Utility Functions'!$AP$3:$AP$5)","v":0.5},{"$f":"valuePL(W14,'Utility Functions'!$AQ$3:$AQ$6,'Utility Functions'!$AR$3:$AR$6)","v":0},{"$f":"valuePL(X14,'Utility Functions'!$AS$3:$AS$6,'Utility Functions'!$AT$3:$AT$6)","v":0.2},{"$f":"valuePL(Y14,'Utility Functions'!$AU$3:$AU$6,'Utility Functions'!$AV$3:$AV$6)","v":0},{"$f":"valuePL(Z14,'Utility Functions'!$AW$3:$AW$5,'Utility Functions'!$AX$3:$AX$5)","v":1},{"$f":"valuePL(AA14,'Utility Functions'!$AY$3:$AY$6,'Utility Functions'!$AZ$3:$AZ$6)","v":0.2},{"$f":"valuePL(AB14,'Utility Functions'!$BA$3:$BA$5,'Utility Functions'!$BB$3:$BB$5)","v":0.25},{"$f":"valuePL(AC14,'Utility Functions'!$BC$3:$BC$5,'Utility Functions'!$BD$3:$BD$5)","v":0.25},7.5245670174228056,null,7.5245670174228056,0,1.7495670174228048,1.125,2.25,2.4]
[14,{"$f":"valueE(B15,'Utility Functions'!$B$3,'Utility Functions'!$B$4,'Utility Functions'!$B$5,'Utility Functions'!$B$6)","v":0.69880684688087746},{"$f":"valueE(C15,'Utility Functions'!$D$3,'Utility Functions'!$D$4,'Utility Functions'!$D$5,'Utility Functions'!$D$6)","v":0.78989979019422951},{"$f":"valuePL(D15,'Utility Functions'!$E$3:$E$5,'Utility Functions'!$F$3:$F$5)","v":0.5},{"$f":"valuePL(E15,'Utility Functions'!$G$3:$G$5,'Utility Functions'!$H$3:$H$5)","v":0.5},{"$f":"valuePL(F15,'Utility Functions'!$I$3:$I$4,'Utility Functions'!$J$3:$J$5)","v":0},{"$f":"valueE(G15,'Utility Functions'!$L$3,'Utility Functions'!$L$4,'Utility Functions'!$L$5,'Utility Functions'!$L$6)","v":0},{"$f":"valueE(H15,'Utility Functions'!$N$3,'Utility Functions'!$N$4,'Utility Functions'!$N$5,'Utility Functions'!$N$6)","v":0},{"$f":"valuePL(I15,'Utility Functions'!$O$3:$O$6,'Utility Functions'!$P$3:$P$6)","v":0},{"$f":"valuePL(J15,'Utility Functions'!$Q$3:$Q$6,'Utility Functions'!$R$3:$R$6)","v":0},{"$f":"valuePL(K15,'Utility Functions'!$S$3:$S$7,'Utility Functions'!$T$3:$T$7)","v":0},{"$f":"valueE(L15,'Utility Functions'!$V$3,'Utility Functions'!$V$4,'Utility Functions'!$V$5,'Utility Functions'!$V$6)","v":0},{"$f":"valuePL(M15,'Utility Functions'!$W$3:$W$6,'Utility Functions'!$X$3:$X$6)","v":0},{"$f":"valueE(N15,'Utility Functions'!$Z$3,'Utility Functions'!$Z$4,'Utility Functions'!$Z$5,'Utility Functions'!$Z$6)","v":0.75},{"$f":"valuePL(O15,'Utility Functions'!$AA$3:$AA$5,'Utility Functions'!$AB$3:$AB$5)","v":0.25},{"$f":"valuePL(P15,'Utility Functions'!$AC$3:$AC$7,'Utility Functions'!$AD$3:$AD$7)","v":0.25},{"$f":"valuePL(Q15,'Utility Functions'!$AE$3:$AE$6,'Utility Functions'!$AF$3:$AF$6)","v":0},{"$f":"valuePL(R15,'Utility Functions'!$AG$3:$AG$6,'Utility Functions'!$AH$3:$AH$6)","v":1},{"$f":"valuePL(S15,'Utility Functions'!$AI$3:$AI$6,'Utility Functions'!$AJ$3:$AJ$6)","v":1},{"$f":"valuePL(T15,'Utility Functions'!$AK$3:$AK$8,'Utility Functions'!$AL$3:$AL$8)","v":0},{"$f":"valuePL(U15,'Utility Functions'!$AM$3:$AM$5,'Utility Functions'!$AN$3:$AN$5)","v":0},{"$f":"valuePL(V15,'Utility Functions'!$AO$3:$AO$5,'Utility Functions'!$AP$3:$AP$5)","v":0.5},{"$f":"valuePL(W15,'Utility Functions'!$AQ$3:$AQ$6,'Utility Functions'!$AR$3:$AR$6)","v":0.2},{"$f":"valuePL(X15,'Utility Functions'!$AS$3:$AS$6,'Utility Functions'!$AT$3:$AT$6)","v":1},{"$f":"valuePL(Y15,'Utility Functions'!$AU$3:$AU$6,'Utility Functions'!$AV$3:$AV$6)","v":1},{"$f":"valuePL(Z15,'Utility Functions'!$AW$3:$AW$5,'Utility Functions'!$AX$3:$AX$5)","v":0.5},{"$f":"valuePL(AA15,'Utility Functions'!$AY$3:$AY$6,'Utility Functions'!$AZ$3:$AZ$6)","v":0.89999999999999991},{"$f":"valuePL(AB15,'Utility Functions'!$BA$3:$BA$5,'Utility Functions'!$BB$3:$BB$5)","v":0.25},{"$f":"valuePL(AC15,'Utility Functions'!$BC$3:$BC$5,'Utility Functions'!$BD$3:$BD$5)","v":0.25},10.338706637075108,null,10.338706637075106,2.488706637075107,0,1,2.25,4.5999999999999996]
[15,{"$f":"valueE(B16,'Utility Functions'!$B$3,'Utility Functions'!$B$4,'Utility Functions'!$B$5,'Utility Functions'!$B$6)","v":0.98994966417177144},{"$f":"valueE(C16,'Utility Functions'!$D$3,'Utility Functions'!$D$4,'Utility Functions'!$D$5,'Utility Functions'!$D$6)","v":0.71352759724260828},{"$f":"valuePL(D16,'Utility Functions'!$E$3:$E$5,'Utility Functions'!$F$3:$F$5)","v":1},{"$f":"valuePL(E16,'Utility Functions'!$G$3:$G$5,'Utility Functions'!$H$3:$H$5)","v":0.5},{"$f":"valuePL(F16,'Utility Functions'!$I$3:$I$4,'Utility Functions'!$J$3:$J$5)","v":1},{"$f":"valueE(G16,'Utility Functions'!$L$3,'Utility Functions'!$L$4,'Utility Functions'!$L$5,'Utility Functions'!$L$6)","v":0},{"$f":"valueE(H16,'Utility Functions'!$N$3,'Utility Functions'!$N$4,'Utility Functions'!$N$5,'Utility Functions'!$N$6)","v":0},{"$f":"valuePL(I16,'Utility Functions'!$O$3:$O$6,'Utility Functions'!$P$3:$P$6)","v":9.2000000000000012E-2},{"$f":"valuePL(J16,'Utility Functions'!$Q$3:$Q$6,'Utility Functions'!$R$3:$R$6)","v":6.0000000000000012E-2},{"$f":"valuePL(K16,'Utility Functions'!$S$3:$S$7,'Utility Functions'!$T$3:$T$7)","v":6.0000000000000012E-2},{"$f":"valueE(L16,'Utility Functions'!$V$3,'Utility Functions'!$V$4,'Utility Functions'!$V$5,'Utility Functions'!$V$6)","v":1},{"$f":"valuePL(M16,'Utility Functions'!$W$3:$W$6,'Utility Functions'!$X$3:$X$6)","v":6.0000000000000012E-2},{"$f":"valueE(N16,'Utility Functions'!$Z$3,'Utility Functions'!$Z$4,'Utility Functions'!$Z$5,'Utility Functions'!$Z$6)","v":0.125},{"$f":"valuePL(O16,'Utility Functions'!$AA$3:$AA$5,'Utility Functions'!$AB$3:$AB$5)","v":1},{"$f":"valuePL(P16,'Utility Functions'!$AC$3:$AC$7,'Utility Functions'!$AD$3:$AD$7)","v":0.5},{"$f":"valuePL(Q16,'Utility Functions'!$AE$3:$AE$6,'Utility Functions'!$AF$3:$AF$6)","v":0},{"$f":"valuePL(R16,'Utility Functions'!$AG$3:$AG$6,'Utility Functions'!$AH$3:$AH$6)","v":0.8},{"$f":"valuePL(S16,'Utility Functions'!$AI$3:$AI$6,'Utility Functions'!$AJ$3:$AJ$6)","v":1},{"$f":"valuePL(T16,'Utility Functions'!$AK$3:$AK$8,'Utility Functions'!$AL$3:$AL$8)","v":0.6},{"$f":"valuePL(U16,'Utility Functions'!$AM$3:$AM$5,'Utility Functions'!$AN$3:$AN$5)","v":1},{"$f":"valuePL(V16,'Utility Functions'!$AO$3:$AO$5,'Utility Functions'!$AP$3:$AP$5)","v":0},{"$f":"valuePL(W16,'Utility Functions'!$AQ$3:$AQ$6,'Utility Functions'!$AR$3:$AR$6)","v":1},{"$f":"valuePL(X16,'Utility Functions'!$AS$3:$AS$6,'Utility Functions'!$AT$3:$AT$6)","v":0.2},{"$f":"valuePL(Y16,'Utility Functions'!$AU$3:$AU$6,'Utility Functions'!$AV$3:$AV$6)","v":0.2},{"$f":"valuePL(Z16,'Utility Functions'!$AW$3:$AW$5,'Utility Functions'!$AX$3:$AX$5)","v":1},{"$f":"valuePL(AA16,'Utility Functions'!$AY$3:$AY$6,'Utility Functions'!$AZ$3:$AZ$6)","v":1},{"$f":"valuePL(AB16,'Utility Functions'!$BA$3:$BA$5,'Utility Functions'!$BB$3:$BB$5)","v":1},{"$f":"valuePL(AC16,'Utility Functions'!$BC$3:$BC$5,'Utility Functions'!$BD$3:$BD$5)","v":0.25},15.150477261414375,null,15.15047726141438,4.2034772614143794,1.272,1.125,3.9,4.6500000000000004]
[16,{"$f":"valueE(B17,'Utility Functions'!$B$3,'Utility Functions'!$B$4,'Utility Functions'!$B$5,'Utility Functions'!$B$6)","v":0},{"$f":"valueE(C17,'Utility Functions'!$D$3,'Utility Functions'!$D$4,'Utility Functions'!$D$5,'Utility Functions'!$D$6)","v":0},{"$f":"valuePL(D17,'Utility Functions'!$E$3:$E$5,'Utility Functions'!$F$3:$F$5)","v":0},{"$f":"valuePL(E17,'Utility Functions'!$G$3:$G$5,'Utility Functions'!$H$3:$H$5)","v":0},{"$f":"valuePL(F17,'Utility Functions'!$I$3:$I$4,'Utility Functions'!$J$3:$J$5)","v":0},{"$f":"valueE(G17,'Utility Functions'!$L$3,'Utility Functions'!$L$4,'Utility Functions'!$L$5,'Utility Functions'!$L$6)","v":0},{"$f":"valueE(H17,'Utility Functions'!$N$3,'Utility Functions'!$N$4,'Utility Functions'!$N$5,'Utility Functions'!$N$6)","v":0},{"$f":"valuePL(I17,'Utility Functions'!$O$3:$O$6,'Utility Functions'!$P$3:$P$6)","v":1},{"$f":"valuePL(J17,'Utility Functions'!$Q$3:$Q$6,'Utility Functions'!$R$3:$R$6)","v":0.91818181818181821},{"$f":"valuePL(K17,'Utility Functions'!$S$3:$S$7,'Utility Functions'!$T$3:$T$7)","v":1},{"$f":"valueE(L17,'Utility Functions'!$V$3,'Utility Functions'!$V$4,'Utility Functions'!$V$5,'Utility Functions'!$V$6)","v":0.83333333333333337},{"$f":"valuePL(M17,'Utility Functions'!$W$3:$W$6,'Utility Functions'!$X$3:$X$6)","v":0.91818181818181821},{"$f":"valueE(N17,'Utility Functions'!$Z$3,'Utility Functions'!$Z$4,'Utility Functions'!$Z$5,'Utility Functions'!$Z$6)","v":0},{"$f":"valuePL(O17,'Utility Functions'!$AA$3:$AA$5,'Utility Functions'!$AB$3:$AB$5)","v":0},{"$f":"valuePL(P17,'Utility Functions'!$AC$3:$AC$7,'Utility Functions'!$AD$3:$AD$7)","v":0.75},{"$f":"valuePL(Q17,'Utility Functions'!$AE$3:$AE$6,'Utility Functions'!$AF$3:$AF$6)","v":0},{"$f":"valuePL(R17,'Utility Functions'!$AG$3:$AG$6,'Utility Functions'!$AH$3:$AH$6)","v":1},{"$f":"valuePL(S17,'Utility Functions'!$AI$3:$AI$6,'Utility Functions'!$AJ$3:$AJ$6)","v":1},{"$f":"valuePL(T17,'Utility Functions'!$AK$3:$AK$8,'Utility Functions'!$AL$3:$AL$8)","v":1},{"$f":"valuePL(U17,'Utility Functions'!$AM$3:$AM$5,'Utility Functions'!$AN$3:$AN$5)","v":0},{"$f":"valuePL(V17,'Utility Functions'!$AO$3:$AO$5,'Utility Functions'!$AP$3:$AP$5)","v":1},{"$f":"valuePL(W17,'Utility Functions'!$AQ$3:$AQ$6,'Utility Functions'!$AR$3:$AR$6)","v":0.75},{"$f":"valuePL(X17,'Utility Functions'!$AS$3:$AS$6,'Utility Functions'!$AT$3:$AT$6)","v":0.75},{"$f":"valuePL(Y17,'Utility Functions'!$AU$3:$AU$6,'Utility Functions'!$AV$3:$AV$6)","v":0.2},{"$f":"valuePL(Z17,'Utility Functions'!$AW$3:$AW$5,'Utility Functions'!$AX$3:$AX$5)","v":1},{"$f":"valuePL(AA17,'Utility Functions'!$AY$3:$AY$6,'Utility Functions'!$AZ$3:$AZ$6)","v":1},{"$f":"valuePL(AB17,'Utility Functions'!$BA$3:$BA$5,'Utility Functions'!$BB$3:$BB$5)","v":1},{"$f":"valuePL(AC17,'Utility Functions'!$BC$3:$BC$5,'Utility Functions'!$BD$3:$BD$5)","v":1},15.119696969696969,null,15.119696969696971,0,4.6696969696969699,0,3.75,6.7]
[17,{"$f":"valueE(B18,'Utility Functions'!$B$3,'Utility Functions'!$B$4,'Utility Functions'!$B$5,'Utility Functions'!$B$6)","v":0.32968045347775865},{"$f":"valueE(C18,'Utility Functions'!$D$3,'Utility Functions'!$D$4,'Utility Functions'!$D$5,'Utility Functions'!$D$6)","v":0.78989979019422951},{"$f":"valuePL(D18,'Utility Functions'!$E$3:$E$5,'Utility Functions'!$F$3:$F$5)","v":1},{"$f":"valuePL(E18,'Utility Functions'!$G$3:$G$5,'Utility Functions'!$H$3:$H$5)","v":0.5},{"$f":"valuePL(F18,'Utility Functions'!$I$3:$I$4,'Utility Functions'!$J$3:$J$5)","v":1},{"$f":"valueE(G18,'Utility Functions'!$L$3,'Utility Functions'!$L$4,'Utility Functions'!$L$5,'Utility Functions'!$L$6)","v":0.31182795698924731},{"$f":"valueE(H18,'Utility Functions'!$N$3,'Utility Functions'!$N$4,'Utility Functions'!$N$5,'Utility Functions'!$N$6)","v":0.27514231499051234},{"$f":"valuePL(I18,'Utility Functions'!$O$3:$O$6,'Utility Functions'!$P$3:$P$6)","v":0},{"$f":"valuePL(J18,'Utility Functions'!$Q$3:$Q$6,'Utility Functions'!$R$3:$R$6)","v":0},{"$f":"valuePL(K18,'Utility Functions'!$S$3:$S$7,'Utility Functions'!$T$3:$T$7)","v":0},{"$f":"valueE(L18,'Utility Functions'!$V$3,'Utility Functions'!$V$4,'Utility Functions'!$V$5,'Utility Functions'!$V$6)","v":1},{"$f":"valuePL(M18,'Utility Functions'!$W$3:$W$6,'Utility Functions'!$X$3:$X$6)","v":6.0000000000000012E-2},{"$f":"valueE(N18,'Utility Functions'!$Z$3,'Utility Functions'!$Z$4,'Utility Functions'!$Z$5,'Utility Functions'!$Z$6)","v":0},{"$f":"valuePL(O18,'Utility Functions'!$AA$3:$AA$5,'Utility Functions'!$AB$3:$AB$5)","v":0},{"$f":"valuePL(P18,'Utility Functions'!$AC$3:$AC$7,'Utility Functions'!$AD$3:$AD$7)","v":0},{"$f":"valuePL(Q18,'Utility Functions'!$AE$3:$AE$6,'Utility Functions'!$AF$3:$AF$6)","v":0},{"$f":"valuePL(R18,'Utility Functions'!$AG$3:$AG$6,'Utility Functions'!$AH$3:$AH$6)","v":1},{"$f":"valuePL(S18,'Utility Functions'!$AI$3:$AI$6,'Utility Functions'!$AJ$3:$AJ$6)","v":0.66},{"$f":"valuePL(T18,'Utility Functions'!$AK$3:$AK$8,'Utility Functions'!$AL$3:$AL$8)","v":0},{"$f":"valuePL(U18,'Utility Functions'!$AM$3:$AM$5,'Utility Functions'!$AN$3:$AN$5)","v":0},{"$f":"valuePL(V18,'Utility Functions'!$AO$3:$AO$5,'Utility Functions'!$AP$3:$AP$5)","v":1},{"$f":"valuePL(W18,'Utility Functions'!$AQ$3:$AQ$6,'Utility Functions'!$AR$3:$AR$6)","v":1},{"$f":"valuePL(X18,'Utility Functions'!$AS$3:$AS$6,'Utility Functions'!$AT$3:$AT$6)","v":0.2},{"$f":"valuePL(Y18,'Utility Functions'!$AU$3:$AU$6,'Utility Functions'!$AV$3:$AV$6)","v":0},{"$f":"valuePL(Z18,'Utility Functions'!$AW$3:$AW$5,'Utility Functions'!$AX$3:$AX$5)","v":0.5},{"$f":"valuePL(AA18,'Utility Functions'!$AY$3:$AY$6,'Utility Functions'!$AZ$3:$AZ$6)","v":0},{"$f":"valuePL(AB18,'Utility Functions'!$BA$3:$BA$5,'Utility Functions'!$BB$3:$BB$5)","v":1},{"$f":"valuePL(AC18,'Utility Functions'!$BC$3:$BC$5,'Utility Functions'!$BD$3:$BD$5)","v":0.25},10.876550515651747,null,10.876550515651747,3.6195802436719884,1.6469702719797596,0,1.6600000000000001,3.95]
[18,{"$f":"valueE(B19,'Utility Functions'!$B$3,'Utility Functions'!$B$4,'Utility Functions'!$B$5,'Utility Functions'!$B$6)","v":0},{"$f":"valueE(C19,'Utility Functions'!$D$3,'Utility Functions'!$D$4,'Utility Functions'!$D$5,'Utility Functions'!$D$6)","v":0},{"$f":"valuePL(D19,'Utility Functions'!$E$3:$E$5,'Utility Functions'!$F$3:$F$5)","v":0},{"$f":"valuePL(E19,'Utility Functions'!$G$3:$G$5,'Utility Functions'!$H$3:$H$5)","v":0},{"$f":"valuePL(F19,'Utility Functions'!$I$3:$I$4,'Utility Functions'!$J$3:$J$5)","v":0},{"$f":"valueE(G19,'Utility Functions'!$L$3,'Utility Functions'!$L$4,'Utility Functions'!$L$5,'Utility Functions'!$L$6)","v":0},{"$f":"valueE(H19,'Utility Functions'!$N$3,'Utility Functions'!$N$4,'Utility Functions'!$N$5,'Utility Functions'!$N$6)","v":2.8462998102466792E-2},{"$f":"valuePL(I19,'Utility Functions'!$O$3:$O$6,'Utility Functions'!$P$3:$P$6)","v":0},{"$f":"valuePL(J19,'Utility Functions'!$Q$3:$Q$6,'Utility Functions'!$R$3:$R$6)","v":0},{"$f":"valuePL(K19,'Utility Functions'!$S$3:$S$7,'Utility Functions'!$T$3:$T$7)","v":0},{"$f":"valueE(L19,'Utility Functions'!$V$3,'Utility Functions'!$V$4,'Utility Functions'!$V$5,'Utility Functions'!$V$6)","v":0},{"$f":"valuePL(M19,'Utility Functions'!$W$3:$W$6,'Utility Functions'!$X$3:$X$6)","v":0},{"$f":"valueE(N19,'Utility Functions'!$Z$3,'Utility Functions'!$Z$4,'Utility Functions'!$Z$5,'Utility Functions'!$Z$6)","v":1},{"$f":"valuePL(O19,'Utility Functions'!$AA$3:$AA$5,'Utility Functions'!$AB$3:$AB$5)","v":0.25},{"$f":"valuePL(P19,'Utility Functions'!$AC$3:$AC$7,'Utility Functions'!$AD$3:$AD$7)","v":0.25},{"$f":"valuePL(Q19,'Utility Functions'!$AE$3:$AE$6,'Utility Functions'!$AF$3:$AF$6)","v":1},{"$f":"valuePL(R19,'Utility Functions'!$AG$3:$AG$6,'Utility Functions'!$AH$3:$AH$6)","v":1},{"$f":"valuePL(S19,'Utility Functions'!$AI$3:$AI$6,'Utility Functions'!$AJ$3:$AJ$6)","v":1},{"$f":"valuePL(T19,'Utility Functions'!$AK$3:$AK$8,'Utility Functions'!$AL$3:$AL$8)","v":1},{"$f":"valuePL(U19,'Utility Functions'!$AM$3:$AM$5,'Utility Functions'!$AN$3:$AN$5)","v":0.25},{"$f":"valuePL(V19,'Utility Functions'!$AO$3:$AO$5,'Utility Functions'!$AP$3:$AP$5)","v":1},{"$f":"valuePL(W19,'Utility Functions'!$AQ$3:$AQ$6,'Utility Functions'!$AR$3:$AR$6)","v":0.75},{"$f":"valuePL(X19,'Utility Functions'!$AS$3:$AS$6,'Utility Functions'!$AT$3:$AT$6)","v":0.2},{"$f":"valuePL(Y19,'Utility Functions'!$AU$3:$AU$6,'Utility Functions'!$AV$3:$AV$6)","v":0.8},{"$f":"valuePL(Z19,'Utility Functions'!$AW$3:$AW$5,'Utility Functions'!$AX$3:$AX$5)","v":0.5},{"$f":"valuePL(AA19,'Utility Functions'!$AY$3:$AY$6,'Utility Functions'!$AZ$3:$AZ$6)","v":0.89999999999999991},{"$f":"valuePL(AB19,'Utility Functions'!$BA$3:$BA$5,'Utility Functions'!$BB$3:$BB$5)","v":0.25},{"$f":"valuePL(AC19,'Utility Functions'!$BC$3:$BC$5,'Utility Functions'!$BD$3:$BD$5)","v":0},10.178462998102468,null,10.178462998102468,0,2.8462998102466792E-2,1.25,4.5,4.4000000000000004]
[19,{"$f":"valueE(B20,'Utility Functions'!$B$3,'Utility Functions'!$B$4,'Utility Functions'!$B$5,'Utility Functions'!$B$6)","v":0.79810469124896843},{"$f":"valueE(C20,'Utility Functions'!$D$3,'Utility Functions'!$D$4,'Utility Functions'!$D$5,'Utility Functions'!$D$6)","v":0.26839655623815994},{"$f":"valuePL(D20,'Utility Functions'!$E$3:$E$5,'Utility Functions'!$F$3:$F$5)","v":0.5},{"$f":"valuePL(E20,'Utility Functions'!$G$3:$G$5,'Utility Functions'!$H$3:$H$5)","v":1},{"$f":"valuePL(F20,'Utility Functions'!$I$3:$I$4,'Utility Functions'!$J$3:$J$5)","v":0},{"$f":"valueE(G20,'Utility Functions'!$L$3,'Utility Functions'!$L$4,'Utility Functions'!$L$5,'Utility Functions'!$L$6)","v":0},{"$f":"valueE(H20,'Utility Functions'!$N$3,'Utility Functions'!$N$4,'Utility Functions'!$N$5,'Utility Functions'!$N$6)","v":0},{"$f":"valuePL(I20,'Utility Functions'!$O$3:$O$6,'Utility Functions'!$P$3:$P$6)","v":0},{"$f":"valuePL(J20,'Utility Functions'!$Q$3:$Q$6,'Utility Functions'!$R$3:$R$6)","v":0},{"$f":"valuePL(K20,'Utility Functions'!$S$3:$S$7,'Utility Functions'!$T$3:$T$7)","v":0},{"$f":"valueE(L20,'Utility Functions'!$V$3,'Utility Functions'!$V$4,'Utility Functions'!$V$5,'Utility Functions'!$V$6)","v":0},{"$f":"valuePL(M20,'Utility Functions'!$W$3:$W$6,'Utility Functions'!$X$3:$X$6)","v":0},{"$f":"valueE(N20,'Utility Functions'!$Z$3,'Utility Functions'!$Z$4,'Utility Functions'!$Z$5,'Utility Functions'!$Z$6)","v":1},{"$f":"valuePL(O20,'Utility Functions'!$AA$3:$AA$5,'Utility Functions'!$AB$3:$AB$5)","v":1},{"$f":"valuePL(P20,'Utility Functions'!$AC$3:$AC$7,'Utility Functions'!$AD$3:$AD$7)","v":0},{"$f":"valuePL(Q20,'Utility Functions'!$AE$3:$AE$6,'Utility Functions'!$AF$3:$AF$6)","v":0},{"$f":"valuePL(R20,'Utility Functions'!$AG$3:$AG$6,'Utility Functions'!$AH$3:$AH$6)","v":0.8},{"$f":"valuePL(S20,'Utility Functions'!$AI$3:$AI$6,'Utility Functions'!$AJ$3:$AJ$6)","v":1},{"$f":"valuePL(T20,'Utility Functions'!$AK$3:$AK$8,'Utility Functions'!$AL$3:$AL$8)","v":0},{"$f":"valuePL(U20,'Utility Functions'!$AM$3:$AM$5,'Utility Functions'!$AN$3:$AN$5)","v":0},{"$f":"valuePL(V20,'Utility Functions'!$AO$3:$AO$5,'Utility Functions'!$AP$3:$AP$5)","v":0.5},{"$f":"valuePL(W20,'Utility Functions'!$AQ$3:$AQ$6,'Utility Functions'!$AR$3:$AR$6)","v":0.2},{"$f":"valuePL(X20,'Utility Functions'!$AS$3:$AS$6,'Utility Functions'!$AT$3:$AT$6)","v":1},{"$f":"valuePL(Y20,'Utility Functions'!$AU$3:$AU$6,'Utility Functions'!$AV$3:$AV$6)","v":0.8},{"$f":"valuePL(Z20,'Utility Functions'!$AW$3:$AW$5,'Utility Functions'!$AX$3:$AX$5)","v":0},{"$f":"valuePL(AA20,'Utility Functions'!$AY$3:$AY$6,'Utility Functions'!$AZ$3:$AZ$6)","v":0.2},{"$f":"valuePL(AB20,'Utility Functions'!$BA$3:$BA$5,'Utility Functions'!$BB$3:$BB$5)","v":0},{"$f":"valuePL(AC20,'Utility Functions'!$BC$3:$BC$5,'Utility Functions'!$BD$3:$BD$5)","v":0.25},9.3165012474871283,null,9.3165012474871283,2.5665012474871283,0,2,1.8,2.95]
[20,{"$f":"valueE(B21,'Utility Functions'!$B$3,'Utility Functions'!$B$4,'Utility Functions'!$B$5,'Utility Functions'!$B$6)","v":0.83470237647280454},{"$f":"valueE(C21,'Utility Functions'!$D$3,'Utility Functions'!$D$4,'Utility Functions'!$D$5,'Utility Functions'!$D$6)","v":0.78989979019422951},{"$f":"valuePL(D21,'Utility Functions'!$E$3:$E$5,'Utility Functions'!$F$3:$F$5)","v":0.5},{"$f":"valuePL(E21,'Utility Functions'!$G$3:$G$5,'Utility Functions'!$H$3:$H$5)","v":1},{"$f":"valuePL(F21,'Utility Functions'!$I$3:$I$4,'Utility Functions'!$J$3:$J$5)","v":0},{"$f":"valueE(G21,'Utility Functions'!$L$3,'Utility Functions'!$L$4,'Utility Functions'!$L$5,'Utility Functions'!$L$6)","v":0},{"$f":"valueE(H21,'Utility Functions'!$N$3,'Utility Functions'!$N$4,'Utility Functions'!$N$5,'Utility Functions'!$N$6)","v":0.41271347248576851},{"$f":"valuePL(I21,'Utility Functions'!$O$3:$O$6,'Utility Functions'!$P$3:$P$6)","v":0.93454545454545446},{"$f":"valuePL(J21,'Utility Functions'!$Q$3:$Q$6,'Utility Functions'!$R$3:$R$6)","v":0.50909090909090915},{"$f":"valuePL(K21,'Utility Functions'!$S$3:$S$7,'Utility Functions'!$T$3:$T$7)","v":0.93454545454545446},{"$f":"valueE(L21,'Utility Functions'!$V$3,'Utility Functions'!$V$4,'Utility Functions'!$V$5,'Utility Functions'!$V$6)","v":0.66666666666666663},{"$f":"valuePL(M21,'Utility Functions'!$W$3:$W$6,'Utility Functions'!$X$3:$X$6)","v":0.50909090909090915},{"$f":"valueE(N21,'Utility Functions'!$Z$3,'Utility Functions'!$Z$4,'Utility Functions'!$Z$5,'Utility Functions'!$Z$6)","v":1},{"$f":"valuePL(O21,'Utility Functions'!$AA$3:$AA$5,'Utility Functions'!$AB$3:$AB$5)","v":1},{"$f":"valuePL(P21,'Utility Functions'!$AC$3:$AC$7,'Utility Functions'!$AD$3:$AD$7)","v":0.25},{"$f":"valuePL(Q21,'Utility Functions'!$AE$3:$AE$6,'Utility Functions'!$AF$3:$AF$6)","v":0},{"$f":"valuePL(R21,'Utility Functions'!$AG$3:$AG$6,'Utility Functions'!$AH$3:$AH$6)","v":1},{"$f":"valuePL(S21,'Utility Functions'!$AI$3:$AI$6,'Utility Functions'!$AJ$3:$AJ$6)","v":1},{"$f":"valuePL(T21,'Utility Functions'!$AK$3:$AK$8,'Utility Functions'!$AL$3:$AL$8)","v":0.6},{"$f":"valuePL(U21,'Utility Functions'!$AM$3:$AM$5,'Utility Functions'!$AN$3:$AN$5)","v":1},{"$f":"valuePL(V21,'Utility Functions'!$AO$3:$AO$5,'Utility Functions'!$AP$3:$AP$5)","v":0.5},{"$f":"valuePL(W21,'Utility Functions'!$AQ$3:$AQ$6,'Utility Functions'!$AR$3:$AR$6)","v":0},{"$f":"valuePL(X21,'Utility Functions'!$AS$3:$AS$6,'Utility Functions'!$AT$3:$AT$6)","v":0},{"$f":"valuePL(Y21,'Utility Functions'!$AU$3:$AU$6,'Utility Functions'!$AV$3:$AV$6)","v":0.2},{"$f":"valuePL(Z21,'Utility Functions'!$AW$3:$AW$5,'Utility Functions'!$AX$3:$AX$5)","v":1},{"$f":"valuePL(AA21,'Utility Functions'!$AY$3:$AY$6,'Utility Functions'!$AZ$3:$AZ$6)","v":0.2},{"$f":"valuePL(AB21,'Utility Functions'!$BA$3:$BA$5,'Utility Functions'!$BB$3:$BB$5)","v":0},{"$f":"valuePL(AC21,'Utility Functions'!$BC$3:$BC$5,'Utility Functions'!$BD$3:$BD$5)","v":0.25},15.091255033092194,null,15.091255033092196,3.1246021666670343,3.9666528664251626,2,3.85,2.15]
[21,{"$f":"valueE(B22,'Utility Functions'!$B$3,'Utility Functions'!$B$4,'Utility Functions'!$B$5,'Utility Functions'!$B$6)","v":0},{"$f":"valueE(C22,'Utility Functions'!$D$3,'Utility Functions'!$D$4,'Utility Functions'!$D$5,'Utility Functions'!$D$6)","v":0},{"$f":"valuePL(D22,'Utility Functions'!$E$3:$E$5,'Utility Functions'!$F$3:$F$5)","v":0},{"$f":"valuePL(E22,'Utility Functions'!$G$3:$G$5,'Utility Functions'!$H$3:$H$5)","v":0},{"$f":"valuePL(F22,'Utility Functions'!$I$3:$I$4,'Utility Functions'!$J$3:$J$5)","v":0},{"$f":"valueE(G22,'Utility Functions'!$L$3,'Utility Functions'!$L$4,'Utility Functions'!$L$5,'Utility Functions'!$L$6)","v":0},{"$f":"valueE(H22,'Utility Functions'!$N$3,'Utility Functions'!$N$4,'Utility Functions'!$N$5,'Utility Functions'!$N$6)","v":0},{"$f":"valuePL(I22,'Utility Functions'!$O$3:$O$6,'Utility Functions'!$P$3:$P$6)","v":0},{"$f":"valuePL(J22,'Utility Functions'!$Q$3:$Q$6,'Utility Functions'!$R$3:$R$6)","v":0},{"$f":"valuePL(K22,'Utility Functions'!$S$3:$S$7,'Utility Functions'!$T$3:$T$7)","v":0},{"$f":"valueE(L22,'Utility Functions'!$V$3,'Utility Functions'!$V$4,'Utility Functions'!$V$5,'Utility Functions'!$V$6)","v":0},{"$f":"valuePL(M22,'Utility Functions'!$W$3:$W$6,'Utility Functions'!$X$3:$X$6)","v":0},{"$f":"valueE(N22,'Utility Functions'!$Z$3,'Utility Functions'!$Z$4,'Utility Functions'!$Z$5,'Utility Functions'!$Z$6)","v":1},{"$f":"valuePL(O22,'Utility Functions'!$AA$3:$AA$5,'Utility Functions'!$AB$3:$AB$5)","v":1},{"$f":"valuePL(P22,'Utility Functions'!$AC$3:$AC$7,'Utility Functions'!$AD$3:$AD$7)","v":0},{"$f":"valuePL(Q22,'Utility Functions'!$AE$3:$AE$6,'Utility Functions'!$AF$3:$AF$6)","v":0.1},{"$f":"valuePL(R22,'Utility Functions'!$AG$3:$AG$6,'Utility Functions'!$AH$3:$AH$6)","v":1},{"$f":"valuePL(S22,'Utility Functions'!$AI$3:$AI$6,'Utility Functions'!$AJ$3:$AJ$6)","v":1},{"$f":"valuePL(T22,'Utility Functions'!$AK$3:$AK$8,'Utility Functions'!$AL$3:$AL$8)","v":1},{"$f":"valuePL(U22,'Utility Functions'!$AM$3:$AM$5,'Utility Functions'!$AN$3:$AN$5)","v":0.25},{"$f":"valuePL(V22,'Utility Functions'!$AO$3:$AO$5,'Utility Functions'!$AP$3:$AP$5)","v":0},{"$f":"valuePL(W22,'Utility Functions'!$AQ$3:$AQ$6,'Utility Functions'!$AR$3:$AR$6)","v":0.75},{"$f":"valuePL(X22,'Utility Functions'!$AS$3:$AS$6,'Utility Functions'!$AT$3:$AT$6)","v":1},{"$f":"valuePL(Y22,'Utility Functions'!$AU$3:$AU$6,'Utility Functions'!$AV$3:$AV$6)","v":0.2},{"$f":"valuePL(Z22,'Utility Functions'!$AW$3:$AW$5,'Utility Functions'!$AX$3:$AX$5)","v":0},{"$f":"valuePL(AA22,'Utility Functions'!$AY$3:$AY$6,'Utility Functions'!$AZ$3:$AZ$6)","v":1},{"$f":"valuePL(AB22,'Utility Functions'!$BA$3:$BA$5,'Utility Functions'!$BB$3:$BB$5)","v":0.25},{"$f":"valuePL(AC22,'Utility Functions'!$BC$3:$BC$5,'Utility Functions'!$BD$3:$BD$5)","v":1},9.5500000000000007,null,9.5500000000000007,0,0,2,3.35,4.2]
[22,{"$f":"valueE(B23,'Utility Functions'!$B$3,'Utility Functions'!$B$4,'Utility Functions'!$B$5,'Utility Functions'!$B$6)","v":0},{"$f":"valueE(C23,'Utility Functions'!$D$3,'Utility Functions'!$D$4,'Utility Functions'!$D$5,'Utility Functions'!$D$6)","v":0},{"$f":"valuePL(D23,'Utility Functions'!$E$3:$E$5,'Utility Functions'!$F$3:$F$5)","v":0},{"$f":"valuePL(E23,'Utility Functions'!$G$3:$G$5,'Utility Functions'!$H$3:$H$5)","v":0},{"$f":"valuePL(F23,'Utility Functions'!$I$3:$I$4,'Utility Functions'!$J$3:$J$5)","v":0},{"$f":"valueE(G23,'Utility Functions'!$L$3,'Utility Functions'!$L$4,'Utility Functions'!$L$5,'Utility Functions'!$L$6)","v":8.6021505376344093E-2},{"$f":"valueE(H23,'Utility Functions'!$N$3,'Utility Functions'!$N$4,'Utility Functions'!$N$5,'Utility Functions'!$N$6)","v":6.0721062618595827E-2},{"$f":"valuePL(I23,'Utility Functions'!$O$3:$O$6,'Utility Functions'!$P$3:$P$6)","v":0},{"$f":"valuePL(J23,'Utility Functions'!$Q$3:$Q$6,'Utility Functions'!$R$3:$R$6)","v":0},{"$f":"valuePL(K23,'Utility Functions'!$S$3:$S$7,'Utility Functions'!$T$3:$T$7)","v":0},{"$f":"valueE(L23,'Utility Functions'!$V$3,'Utility Functions'!$V$4,'Utility Functions'!$V$5,'Utility Functions'!$V$6)","v":0},{"$f":"valuePL(M23,'Utility Functions'!$W$3:$W$6,'Utility Functions'!$X$3:$X$6)","v":0},{"$f":"valueE(N23,'Utility Functions'!$Z$3,'Utility Functions'!$Z$4,'Utility Functions'!$Z$5,'Utility Functions'!$Z$6)","v":0.125},{"$f":"valuePL(O23,'Utility Functions'!$AA$3:$AA$5,'Utility Functions'!$AB$3:$AB$5)","v":1},{"$f":"valuePL(P23,'Utility Functions'!$AC$3:$AC$7,'Utility Functions'!$AD$3:$AD$7)","v":1},{"$f":"valuePL(Q23,'Utility Functions'!$AE$3:$AE$6,'Utility Functions'!$AF$3:$AF$6)","v":0.5},{"$f":"valuePL(R23,'Utility Functions'!$AG$3:$AG$6,'Utility Functions'!$AH$3:$AH$6)","v":0.8},{"$f":"valuePL(S23,'Utility Functions'!$AI$3:$AI$6,'Utility Functions'!$AJ$3:$AJ$6)","v":1},{"$f":"valuePL(T23,'Utility Functions'!$AK$3:$AK$8,'Utility Functions'!$AL$3:$AL$8)","v":1},{"$f":"valuePL(U23,'Utility Functions'!$AM$3:$AM$5,'Utility Functions'!$AN$3:$AN$5)","v":0},{"$f":"valuePL(V23,'Utility Functions'!$AO$3:$AO$5,'Utility Functions'!$AP$3:$AP$5)","v":0.5},{"$f":"valuePL(W23,'Utility Functions'!$AQ$3:$AQ$6,'Utility Functions'!$AR$3:$AR$6)","v":0.75},{"$f":"valuePL(X23,'Utility Functions'!$AS$3:$AS$6,'Utility Functions'!$AT$3:$AT$6)","v":0.2},{"$f":"valuePL(Y23,'Utility Functions'!$AU$3:$AU$6,'Utility Functions'!$AV$3:$AV$6)","v":0},{"$f":"valuePL(Z23,'Utility Functions'!$AW$3:$AW$5,'Utility Functions'!$AX$3:$AX$5)","v":1},{"$f":"valuePL(AA23,'Utility Functions'!$AY$3:$AY$6,'Utility Functions'!$AZ$3:$AZ$6)","v":0.2},{"$f":"valuePL(AB23,'Utility Functions'!$BA$3:$BA$5,'Utility Functions'!$BB$3:$BB$5)","v":1},{"$f":"valuePL(AC23,'Utility Functions'!$BC$3:$BC$5,'Utility Functions'!$BD$3:$BD$5)","v":0.25},9.471742567994939,null,9.4717425679949407,0,0.14674256799493993,1.125,4.3,3.9000000000000004]
[23,{"$f":"valueE(B24,'Utility Functions'!$B$3,'Utility Functions'!$B$4,'Utility Functions'!$B$5,'Utility Functions'!$B$6)","v":0.83470237647280454},{"$f":"valueE(C24,'Utility Functions'!$D$3,'Utility Functions'!$D$4,'Utility Functions'!$D$5,'Utility Functions'!$D$6)","v":0.84744836833951609},{"$f":"valuePL(D24,'Utility Functions'!$E$3:$E$5,'Utility Functions'!$F$3:$F$5)","v":1},{"$f":"valuePL(E24,'Utility Functions'!$G$3:$G$5,'Utility Functions'!$H$3:$H$5)","v":0},{"$f":"valuePL(F24,'Utility Functions'!$I$3:$I$4,'Utility Functions'!$J$3:$J$5)","v":0},{"$f":"valueE(G24,'Utility Functions'!$L$3,'Utility Functions'!$L$4,'Utility Functions'!$L$5,'Utility Functions'!$L$6)","v":0},{"$f":"valueE(H24,'Utility Functions'!$N$3,'Utility Functions'!$N$4,'Utility Functions'!$N$5,'Utility Functions'!$N$6)","v":0},{"$f":"valuePL(I24,'Utility Functions'!$O$3:$O$6,'Utility Functions'!$P$3:$P$6)","v":0},{"$f":"valuePL(J24,'Utility Functions'!$Q$3:$Q$6,'Utility Functions'!$R$3:$R$6)","v":0},{"$f":"valuePL(K24,'Utility Functions'!$S$3:$S$7,'Utility Functions'!$T$3:$T$7)","v":0},{"$f":"valueE(L24,'Utility Functions'!$V$3,'Utility Functions'!$V$4,'Utility Functions'!$V$5,'Utility Functions'!$V$6)","v":0},{"$f":"valuePL(M24,'Utility Functions'!$W$3:$W$6,'Utility Functions'!$X$3:$X$6)","v":0},{"$f":"valueE(N24,'Utility Functions'!$Z$3,'Utility Functions'!$Z$4,'Utility Functions'!$Z$5,'Utility Functions'!$Z$6)","v":0},{"$f":"valuePL(O24,'Utility Functions'!$AA$3:$AA$5,'Utility Functions'!$AB$3:$AB$5)","v":0},{"$f":"valuePL(P24,'Utility Functions'!$AC$3:$AC$7,'Utility Functions'!$AD$3:$AD$7)","v":0.75},{"$f":"valuePL(Q24,'Utility Functions'!$AE$3:$AE$6,'Utility Functions'!$AF$3:$AF$6)","v":0},{"$f":"valuePL(R24,'Utility Functions'!$AG$3:$AG$6,'Utility Functions'!$AH$3:$AH$6)","v":1},{"$f":"valuePL(S24,'Utility Functions'!$AI$3:$AI$6,'Utility Functions'!$AJ$3:$AJ$6)","v":1},{"$f":"valuePL(T24,'Utility Functions'!$AK$3:$AK$8,'Utility Functions'!$AL$3:$AL$8)","v":1},{"$f":"valuePL(U24,'Utility Functions'!$AM$3:$AM$5,'Utility Functions'!$AN$3:$AN$5)","v":0},{"$f":"valuePL(V24,'Utility Functions'!$AO$3:$AO$5,'Utility Functions'!$AP$3:$AP$5)","v":1},{"$f":"valuePL(W24,'Utility Functions'!$AQ$3:$AQ$6,'Utility Functions'!$AR$3:$AR$6)","v":0.2},{"$f":"valuePL(X24,'Utility Functions'!$AS$3:$AS$6,'Utility Functions'!$AT$3:$AT$6)","v":0.75},{"$f":"valuePL(Y24,'Utility Functions'!$AU$3:$AU$6,'Utility Functions'!$AV$3:$AV$6)","v":0.2},{"$f":"valuePL(Z24,'Utility Functions'!$AW$3:$AW$5,'Utility Functions'!$AX$3:$AX$5)","v":0.5},{"$f":"valuePL(AA24,'Utility Functions'!$AY$3:$AY$6,'Utility Functions'!$AZ$3:$AZ$6)","v":0.2},{"$f":"valuePL(AB24,'Utility Functions'!$BA$3:$BA$5,'Utility Functions'!$BB$3:$BB$5)","v":0},{"$f":"valuePL(AC24,'Utility Functions'!$BC$3:$BC$5,'Utility Functions'!$BD$3:$BD$5)","v":0.25},9.5321507448123199,null,9.5321507448123199,2.6821507448123207,0,0,3.75,3.1]
[24,{"$f":"valueE(B25,'Utility Functions'!$B$3,'Utility Functions'!$B$4,'Utility Functions'!$B$5,'Utility Functions'!$B$6)","v":0.63212151658375171},{"$f":"valueE(C25,'Utility Functions'!$D$3,'Utility Functions'!$D$4,'Utility Functions'!$D$5,'Utility Functions'!$D$6)","v":0.46475967153745396},{"$f":"valuePL(D25,'Utility Functions'!$E$3:$E$5,'Utility Functions'!$F$3:$F$5)","v":1},{"$f":"valuePL(E25,'Utility Functions'!$G$3:$G$5,'Utility Functions'!$H$3:$H$5)","v":0},{"$f":"valuePL(F25,'Utility Functions'!$I$3:$I$4,'Utility Functions'!$J$3:$J$5)","v":0},{"$f":"valueE(G25,'Utility Functions'!$L$3,'Utility Functions'!$L$4,'Utility Functions'!$L$5,'Utility Functions'!$L$6)","v":0},{"$f":"valueE(H25,'Utility Functions'!$N$3,'Utility Functions'!$N$4,'Utility Functions'!$N$5,'Utility Functions'!$N$6)","v":0},{"$f":"valuePL(I25,'Utility Functions'!$O$3:$O$6,'Utility Functions'!$P$3:$P$6)","v":0},{"$f":"valuePL(J25,'Utility Functions'!$Q$3:$Q$6,'Utility Functions'!$R$3:$R$6)","v":0},{"$f":"valuePL(K25,'Utility Functions'!$S$3:$S$7,'Utility Functions'!$T$3:$T$7)","v":0},{"$f":"valueE(L25,'Utility Functions'!$V$3,'Utility Functions'!$V$4,'Utility Functions'!$V$5,'Utility Functions'!$V$6)","v":0},{"$f":"valuePL(M25,'Utility Functions'!$W$3:$W$6,'Utility Functions'!$X$3:$X$6)","v":0},{"$f":"valueE(N25,'Utility Functions'!$Z$3,'Utility Functions'!$Z$4,'Utility Functions'!$Z$5,'Utility Functions'!$Z$6)","v":0},{"$f":"valuePL(O25,'Utility Functions'!$AA$3:$AA$5,'Utility Functions'!$AB$3:$AB$5)","v":0},{"$f":"valuePL(P25,'Utility Functions'!$AC$3:$AC$7,'Utility Functions'!$AD$3:$AD$7)","v":0},{"$f":"valuePL(Q25,'Utility Functions'!$AE$3:$AE$6,'Utility Functions'!$AF$3:$AF$6)","v":0},{"$f":"valuePL(R25,'Utility Functions'!$AG$3:$AG$6,'Utility Functions'!$AH$3:$AH$6)","v":1},{"$f":"valuePL(S25,'Utility Functions'!$AI$3:$AI$6,'Utility Functions'!$AJ$3:$AJ$6)","v":1},{"$f":"valuePL(T25,'Utility Functions'!$AK$3:$AK$8,'Utility Functions'!$AL$3:$AL$8)","v":1},{"$f":"valuePL(U25,'Utility Functions'!$AM$3:$AM$5,'Utility Functions'!$AN$3:$AN$5)","v":0},{"$f":"valuePL(V25,'Utility Functions'!$AO$3:$AO$5,'Utility Functions'!$AP$3:$AP$5)","v":0},{"$f":"valuePL(W25,'Utility Functions'!$AQ$3:$AQ$6,'Utility Functions'!$AR$3:$AR$6)","v":1},{"$f":"valuePL(X25,'Utility Functions'!$AS$3:$AS$6,'Utility Functions'!$AT$3:$AT$6)","v":0.2},{"$f":"valuePL(Y25,'Utility Functions'!$AU$3:$AU$6,'Utility Functions'!$AV$3:$AV$6)","v":1},{"$f":"valuePL(Z25,'Utility Functions'!$AW$3:$AW$5,'Utility Functions'!$AX$3:$AX$5)","v":1},{"$f":"valuePL(AA25,'Utility Functions'!$AY$3:$AY$6,'Utility Functions'!$AZ$3:$AZ$6)","v":0.2},{"$f":"valuePL(AB25,'Utility Functions'!$BA$3:$BA$5,'Utility Functions'!$BB$3:$BB$5)","v":0},{"$f":"valuePL(AC25,'Utility Functions'!$BC$3:$BC$5,'Utility Functions'!$BD$3:$BD$5)","v":1},9.4968811881212041,null,9.4968811881212059,2.0968811881212055,0,0,3,4.4000000000000004]
[25,{"$f":"valueE(B26,'Utility Functions'!$B$3,'Utility Functions'!$B$4,'Utility Functions'!$B$5,'Utility Functions'!$B$6)","v":0.83470237647280454},{"$f":"valueE(C26,'Utility Functions'!$D$3,'Utility Functions'!$D$4,'Utility Functions'!$D$5,'Utility Functions'!$D$6)","v":0.84744836833951609},{"$f":"valuePL(D26,'Utility Functions'!$E$3:$E$5,'Utility Functions'!$F$3:$F$5)","v":1},{"$f":"valuePL(E26,'Utility Functions'!$G$3:$G$5,'Utility Functions'!$H$3:$H$5)","v":0},{"$f":"valuePL(F26,'Utility Functions'!$I$3:$I$4,'Utility Functions'!$J$3:$J$5)","v":0},{"$f":"valueE(G26,'Utility Functions'!$L$3,'Utility Functions'!$L$4,'Utility Functions'!$L$5,'Utility Functions'!$L$6)","v":0.94623655913978499},{"$f":"valueE(H26,'Utility Functions'!$N$3,'Utility Functions'!$N$4,'Utility Functions'!$N$5,'Utility Functions'!$N$6)","v":0.29222011385199242},{"$f":"valuePL(I26,'Utility Functions'!$O$3:$O$6,'Utility Functions'!$P$3:$P$6)","v":0},{"$f":"valuePL(J26,'Utility Functions'!$Q$3:$Q$6,'Utility Functions'!$R$3:$R$6)","v":0},{"$f":"valuePL(K26,'Utility Functions'!$S$3:$S$7,'Utility Functions'!$T$3:$T$7)","v":0},{"$f":"valueE(L26,'Utility Functions'!$V$3,'Utility Functions'!$V$4,'Utility Functions'!$V$5,'Utility Functions'!$V$6)","v":0},{"$f":"valuePL(M26,'Utility Functions'!$W$3:$W$6,'Utility Functions'!$X$3:$X$6)","v":0},{"$f":"valueE(N26,'Utility Functions'!$Z$3,'Utility Functions'!$Z$4,'Utility Functions'!$Z$5,'Utility Functions'!$Z$6)","v":1},{"$f":"valuePL(O26,'Utility Functions'!$AA$3:$AA$5,'Utility Functions'!$AB$3:$AB$5)","v":0.25},{"$f":"valuePL(P26,'Utility Functions'!$AC$3:$AC$7,'Utility Functions'!$AD$3:$AD$7)","v":0.5},{"$f":"valuePL(Q26,'Utility Functions'!$AE$3:$AE$6,'Utility Functions'!$AF$3:$AF$6)","v":0.5},{"$f":"valuePL(R26,'Utility Functions'!$AG$3:$AG$6,'Utility Functions'!$AH$3:$AH$6)","v":1},{"$f":"valuePL(S26,'Utility Functions'!$AI$3:$AI$6,'Utility Functions'!$AJ$3:$AJ$6)","v":1},{"$f":"valuePL(T26,'Utility Functions'!$AK$3:$AK$8,'Utility Functions'!$AL$3:$AL$8)","v":0},{"$f":"valuePL(U26,'Utility Functions'!$AM$3:$AM$5,'Utility Functions'!$AN$3:$AN$5)","v":0},{"$f":"valuePL(V26,'Utility Functions'!$AO$3:$AO$5,'Utility Functions'!$AP$3:$AP$5)","v":1},{"$f":"valuePL(W26,'Utility Functions'!$AQ$3:$AQ$6,'Utility Functions'!$AR$3:$AR$6)","v":0.2},{"$f":"valuePL(X26,'Utility Functions'!$AS$3:$AS$6,'Utility Functions'!$AT$3:$AT$6)","v":1},{"$f":"valuePL(Y26,'Utility Functions'!$AU$3:$AU$6,'Utility Functions'!$AV$3:$AV$6)","v":0.8},{"$f":"valuePL(Z26,'Utility Functions'!$AW$3:$AW$5,'Utility Functions'!$AX$3:$AX$5)","v":0.5},{"$f":"valuePL(AA26,'Utility Functions'!$AY$3:$AY$6,'Utility Functions'!$AZ$3:$AZ$6)","v":0.2},{"$f":"valuePL(AB26,'Utility Functions'!$BA$3:$BA$5,'Utility Functions'!$BB$3:$BB$5)","v":1},{"$f":"valuePL(AC26,'Utility Functions'!$BC$3:$BC$5,'Utility Functions'!$BD$3:$BD$5)","v":1},13.870607417804099,null,13.870607417804099,2.6821507448123207,1.2384566729917774,1.25,3,5.7]
[26,{"$f":"valueE(B27,'Utility Functions'!$B$3,'Utility Functions'!$B$4,'Utility Functions'!$B$5,'Utility Functions'!$B$6)","v":0.96662819462069161},{"$f":"valueE(C27,'Utility Functions'!$D$3,'Utility Functions'!$D$4,'Utility Functions'!$D$5,'Utility Functions'!$D$6)","v":0.84744836833951609},{"$f":"valuePL(D27,'Utility Functions'!$E$3:$E$5,'Utility Functions'!$F$3:$F$5)","v":1},{"$f":"valuePL(E27,'Utility Functions'!$G$3:$G$5,'Utility Functions'!$H$3:$H$5)","v":0.5},{"$f":"valuePL(F27,'Utility Functions'!$I$3:$I$4,'Utility Functions'!$J$3:$J$5)","v":0},{"$f":"valueE(G27,'Utility Functions'!$L$3,'Utility Functions'!$L$4,'Utility Functions'!$L$5,'Utility Functions'!$L$6)","v":0},{"$f":"valueE(H27,'Utility Functions'!$N$3,'Utility Functions'!$N$4,'Utility Functions'!$N$5,'Utility Functions'!$N$6)","v":0},{"$f":"valuePL(I27,'Utility Functions'!$O$3:$O$6,'Utility Functions'!$P$3:$P$6)","v":0},{"$f":"valuePL(J27,'Utility Functions'!$Q$3:$Q$6,'Utility Functions'!$R$3:$R$6)","v":0},{"$f":"valuePL(K27,'Utility Functions'!$S$3:$S$7,'Utility Functions'!$T$3:$T$7)","v":0},{"$f":"valueE(L27,'Utility Functions'!$V$3,'Utility Functions'!$V$4,'Utility Functions'!$V$5,'Utility Functions'!$V$6)","v":0},{"$f":"valuePL(M27,'Utility Functions'!$W$3:$W$6,'Utility Functions'!$X$3:$X$6)","v":0},{"$f":"valueE(N27,'Utility Functions'!$Z$3,'Utility Functions'!$Z$4,'Utility Functions'!$Z$5,'Utility Functions'!$Z$6)","v":0},{"$f":"valuePL(O27,'Utility Functions'!$AA$3:$AA$5,'Utility Functions'!$AB$3:$AB$5)","v":0},{"$f":"valuePL(P27,'Utility Functions'!$AC$3:$AC$7,'Utility Functions'!$AD$3:$AD$7)","v":0.75},{"$f":"valuePL(Q27,'Utility Functions'!$AE$3:$AE$6,'Utility Functions'!$AF$3:$AF$6)","v":0},{"$f":"valuePL(R27,'Utility Functions'!$AG$3:$AG$6,'Utility Functions'!$AH$3:$AH$6)","v":1},{"$f":"valuePL(S27,'Utility Functions'!$AI$3:$AI$6,'Utility Functions'!$AJ$3:$AJ$6)","v":1},{"$f":"valuePL(T27,'Utility Functions'!$AK$3:$AK$8,'Utility Functions'!$AL$3:$AL$8)","v":0.8},{"$f":"valuePL(U27,'Utility Functions'!$AM$3:$AM$5,'Utility Functions'!$AN$3:$AN$5)","v":0},{"$f":"valuePL(V27,'Utility Functions'!$AO$3:$AO$5,'Utility Functions'!$AP$3:$AP$5)","v":1},{"$f":"valuePL(W27,'Utility Functions'!$AQ$3:$AQ$6,'Utility Functions'!$AR$3:$AR$6)","v":0.2},{"$f":"valuePL(X27,'Utility Functions'!$AS$3:$AS$6,'Utility Functions'!$AT$3:$AT$6)","v":0},{"$f":"valuePL(Y27,'Utility Functions'!$AU$3:$AU$6,'Utility Functions'!$AV$3:$AV$6)","v":0.8},{"$f":"valuePL(Z27,'Utility Functions'!$AW$3:$AW$5,'Utility Functions'!$AX$3:$AX$5)","v":0},{"$f":"valuePL(AA27,'Utility Functions'!$AY$3:$AY$6,'Utility Functions'!$AZ$3:$AZ$6)","v":0.2},{"$f":"valuePL(AB27,'Utility Functions'!$BA$3:$BA$5,'Utility Functions'!$BB$3:$BB$5)","v":1},{"$f":"valuePL(AC27,'Utility Functions'!$BC$3:$BC$5,'Utility Functions'!$BD$3:$BD$5)","v":1},11.064076562960208,null,11.064076562960206,3.3140765629602078,0,0,3.55,4.2]
[27,{"$f":"valueE(B28,'Utility Functions'!$B$3,'Utility Functions'!$B$4,'Utility Functions'!$B$5,'Utility Functions'!$B$6)","v":0},{"$f":"valueE(C28,'Utility Functions'!$D$3,'Utility Functions'!$D$4,'Utility Functions'!$D$5,'Utility Functions'!$D$6)","v":0.46475967153745396},{"$f":"valuePL(D28,'Utility Functions'!$E$3:$E$5,'Utility Functions'!$F$3:$F$5)","v":1},{"$f":"valuePL(E28,'Utility Functions'!$G$3:$G$5,'Utility Functions'!$H$3:$H$5)","v":0},{"$f":"valuePL(F28,'Utility Functions'!$I$3:$I$4,'Utility Functions'!$J$3:$J$5)","v":0},{"$f":"valueE(G28,'Utility Functions'!$L$3,'Utility Functions'!$L$4,'Utility Functions'!$L$5,'Utility Functions'!$L$6)","v":0},{"$f":"valueE(H28,'Utility Functions'!$N$3,'Utility Functions'!$N$4,'Utility Functions'!$N$5,'Utility Functions'!$N$6)","v":0},{"$f":"valuePL(I28,'Utility Functions'!$O$3:$O$6,'Utility Functions'!$P$3:$P$6)","v":0},{"$f":"valuePL(J28,'Utility Functions'!$Q$3:$Q$6,'Utility Functions'!$R$3:$R$6)","v":0},{"$f":"valuePL(K28,'Utility Functions'!$S$3:$S$7,'Utility Functions'!$T$3:$T$7)","v":1},{"$f":"valueE(L28,'Utility Functions'!$V$3,'Utility Functions'!$V$4,'Utility Functions'!$V$5,'Utility Functions'!$V$6)","v":0},{"$f":"valuePL(M28,'Utility Functions'!$W$3:$W$6,'Utility Functions'!$X$3:$X$6)","v":0.1},{"$f":"valueE(N28,'Utility Functions'!$Z$3,'Utility Functions'!$Z$4,'Utility Functions'!$Z$5,'Utility Functions'!$Z$6)","v":0},{"$f":"valuePL(O28,'Utility Functions'!$AA$3:$AA$5,'Utility Functions'!$AB$3:$AB$5)","v":0},{"$f":"valuePL(P28,'Utility Functions'!$AC$3:$AC$7,'Utility Functions'!$AD$3:$AD$7)","v":0.5},{"$f":"valuePL(Q28,'Utility Functions'!$AE$3:$AE$6,'Utility Functions'!$AF$3:$AF$6)","v":0.5},{"$f":"valuePL(R28,'Utility Functions'!$AG$3:$AG$6,'Utility Functions'!$AH$3:$AH$6)","v":1},{"$f":"valuePL(S28,'Utility Functions'!$AI$3:$AI$6,'Utility Functions'!$AJ$3:$AJ$6)","v":1},{"$f":"valuePL(T28,'Utility Functions'!$AK$3:$AK$8,'Utility Functions'!$AL$3:$AL$8)","v":1},{"$f":"valuePL(U28,'Utility Functions'!$AM$3:$AM$5,'Utility Functions'!$AN$3:$AN$5)","v":0},{"$f":"valuePL(V28,'Utility Functions'!$AO$3:$AO$5,'Utility Functions'!$AP$3:$AP$5)","v":0.5},{"$f":"valuePL(W28,'Utility Functions'!$AQ$3:$AQ$6,'Utility Functions'!$AR$3:$AR$6)","v":0.75},{"$f":"valuePL(X28,'Utility Functions'!$AS$3:$AS$6,'Utility Functions'!$AT$3:$AT$6)","v":1},{"$f":"valuePL(Y28,'Utility Functions'!$AU$3:$AU$6,'Utility Functions'!$AV$3:$AV$6)","v":0.2},{"$f":"valuePL(Z28,'Utility Functions'!$AW$3:$AW$5,'Utility Functions'!$AX$3:$AX$5)","v":0},{"$f":"valuePL(AA28,'Utility Functions'!$AY$3:$AY$6,'Utility Functions'!$AZ$3:$AZ$6)","v":0},{"$f":"valuePL(AB28,'Utility Functions'!$BA$3:$BA$5,'Utility Functions'!$BB$3:$BB$5)","v":0},{"$f":"valuePL(AC28,'Utility Functions'!$BC$3:$BC$5,'Utility Functions'!$BD$3:$BD$5)","v":0},9.0147596715374529,null,9.0147596715374547,1.464759671537454,1.1000000000000001,0,4,2.4500000000000002]
[28,{"$f":"valueE(B29,'Utility Functions'!$B$3,'Utility Functions'!$B$4,'Utility Functions'!$B$5,'Utility Functions'!$B$6)","v":0.4511890475224023},{"$f":"valueE(C29,'Utility Functions'!$D$3,'Utility Functions'!$D$4,'Utility Functions'!$D$5,'Utility Functions'!$D$6)","v":0.46475967153745396},{"$f":"valuePL(D29,'Utility Functions'!$E$3:$E$5,'Utility Functions'!$F$3:$F$5)","v":1},{"$f":"valuePL(E29,'Utility Functions'!$G$3:$G$5,'Utility Functions'!$H$3:$H$5)","v":0},{"$f":"valuePL(F29,'Utility Functions'!$I$3:$I$4,'Utility Functions'!$J$3:$J$5)","v":1},{"$f":"valueE(G29,'Utility Functions'!$L$3,'Utility Functions'!$L$4,'Utility Functions'!$L$5,'Utility Functions'!$L$6)","v":0},{"$f":"valueE(H29,'Utility Functions'!$N$3,'Utility Functions'!$N$4,'Utility Functions'!$N$5,'Utility Functions'!$N$6)","v":0},{"$f":"valuePL(I29,'Utility Functions'!$O$3:$O$6,'Utility Functions'!$P$3:$P$6)","v":0},{"$f":"valuePL(J29,'Utility Functions'!$Q$3:$Q$6,'Utility Functions'!$R$3:$R$6)","v":0},{"$f":"valuePL(K29,'Utility Functions'!$S$3:$S$7,'Utility Functions'!$T$3:$T$7)","v":0},{"$f":"valueE(L29,'Utility Functions'!$V$3,'Utility Functions'!$V$4,'Utility Functions'!$V$5,'Utility Functions'!$V$6)","v":0.33333333333333331},{"$f":"valuePL(M29,'Utility Functions'!$W$3:$W$6,'Utility Functions'!$X$3:$X$6)","v":0.1},{"$f":"valueE(N29,'Utility Functions'!$Z$3,'Utility Functions'!$Z$4,'Utility Functions'!$Z$5,'Utility Functions'!$Z$6)","v":0},{"$f":"valuePL(O29,'Utility Functions'!$AA$3:$AA$5,'Utility Functions'!$AB$3:$AB$5)","v":0},{"$f":"valuePL(P29,'Utility Functions'!$AC$3:$AC$7,'Utility Functions'!$AD$3:$AD$7)","v":1},{"$f":"valuePL(Q29,'Utility Functions'!$AE$3:$AE$6,'Utility Functions'!$AF$3:$AF$6)","v":0},{"$f":"valuePL(R29,'Utility Functions'!$AG$3:$AG$6,'Utility Functions'!$AH$3:$AH$6)","v":1},{"$f":"valuePL(S29,'Utility Functions'!$AI$3:$AI$6,'Utility Functions'!$AJ$3:$AJ$6)","v":1},{"$f":"valuePL(T29,'Utility Functions'!$AK$3:$AK$8,'Utility Functions'!$AL$3:$AL$8)","v":0.8},{"$f":"valuePL(U29,'Utility Functions'!$AM$3:$AM$5,'Utility Functions'!$AN$3:$AN$5)","v":0},{"$f":"valuePL(V29,'Utility Functions'!$AO$3:$AO$5,'Utility Functions'!$AP$3:$AP$5)","v":1},{"$f":"valuePL(W29,'Utility Functions'!$AQ$3:$AQ$6,'Utility Functions'!$AR$3:$AR$6)","v":1},{"$f":"valuePL(X29,'Utility Functions'!$AS$3:$AS$6,'Utility Functions'!$AT$3:$AT$6)","v":1},{"$f":"valuePL(Y29,'Utility Functions'!$AU$3:$AU$6,'Utility Functions'!$AV$3:$AV$6)","v":0.2},{"$f":"valuePL(Z29,'Utility Functions'!$AW$3:$AW$5,'Utility Functions'!$AX$3:$AX$5)","v":0},{"$f":"valuePL(AA29,'Utility Functions'!$AY$3:$AY$6,'Utility Functions'!$AZ$3:$AZ$6)","v":0.89999999999999991},{"$f":"valuePL(AB29,'Utility Functions'!$BA$3:$BA$5,'Utility Functions'!$BB$3:$BB$5)","v":1},{"$f":"valuePL(AC29,'Utility Functions'!$BC$3:$BC$5,'Utility Functions'!$BD$3:$BD$5)","v":0.25},12.499282052393189,null,12.499282052393189,2.9159487190598563,0.43333333333333335,0,3.8,5.35]
[29,{"$f":"valueE(B30,'Utility Functions'!$B$3,'Utility Functions'!$B$4,'Utility Functions'!$B$5,'Utility Functions'!$B$6)","v":0.83470237647280454},{"$f":"valueE(C30,'Utility Functions'!$D$3,'Utility Functions'!$D$4,'Utility Functions'!$D$5,'Utility Functions'!$D$6)","v":0.71352759724260828},{"$f":"valuePL(D30,'Utility Functions'!$E$3:$E$5,'Utility Functions'!$F$3:$F$5)","v":1},{"$f":"valuePL(E30,'Utility Functions'!$G$3:$G$5,'Utility Functions'!$H$3:$H$5)","v":0.5},{"$f":"valuePL(F30,'Utility Functions'!$I$3:$I$4,'Utility Functions'!$J$3:$J$5)","v":0},{"$f":"valueE(G30,'Utility Functions'!$L$3,'Utility Functions'!$L$4,'Utility Functions'!$L$5,'Utility Functions'!$L$6)","v":0},{"$f":"valueE(H30,'Utility Functions'!$N$3,'Utility Functions'!$N$4,'Utility Functions'!$N$5,'Utility Functions'!$N$6)","v":0},{"$f":"valuePL(I30,'Utility Functions'!$O$3:$O$6,'Utility Functions'!$P$3:$P$6)","v":0.06},{"$f":"valuePL(J30,'Utility Functions'!$Q$3:$Q$6,'Utility Functions'!$R$3:$R$6)","v":0.67272727272727273},{"$f":"valuePL(K30,'Utility Functions'!$S$3:$S$7,'Utility Functions'!$T$3:$T$7)","v":0},{"$f":"valueE(L30,'Utility Functions'!$V$3,'Utility Functions'!$V$4,'Utility Functions'!$V$5,'Utility Functions'!$V$6)","v":1},{"$f":"valuePL(M30,'Utility Functions'!$W$3:$W$6,'Utility Functions'!$X$3:$X$6)","v":0.67272727272727273},{"$f":"valueE(N30,'Utility Functions'!$Z$3,'Utility Functions'!$Z$4,'Utility Functions'!$Z$5,'Utility Functions'!$Z$6)","v":0},{"$f":"valuePL(O30,'Utility Functions'!$AA$3:$AA$5,'Utility Functions'!$AB$3:$AB$5)","v":0},{"$f":"valuePL(P30,'Utility Functions'!$AC$3:$AC$7,'Utility Functions'!$AD$3:$AD$7)","v":0.25},{"$f":"valuePL(Q30,'Utility Functions'!$AE$3:$AE$6,'Utility Functions'!$AF$3:$AF$6)","v":0},{"$f":"valuePL(R30,'Utility Functions'!$AG$3:$AG$6,'Utility Functions'!$AH$3:$AH$6)","v":1},{"$f":"valuePL(S30,'Utility Functions'!$AI$3:$AI$6,'Utility Functions'!$AJ$3:$AJ$6)","v":1},{"$f":"valuePL(T30,'Utility Functions'!$AK$3:$AK$8,'Utility Functions'!$AL$3:$AL$8)","v":0.8},{"$f":"valuePL(U30,'Utility Functions'!$AM$3:$AM$5,'Utility Functions'!$AN$3:$AN$5)","v":0},{"$f":"valuePL(V30,'Utility Functions'!$AO$3:$AO$5,'Utility Functions'!$AP$3:$AP$5)","v":1},{"$f":"valuePL(W30,'Utility Functions'!$AQ$3:$AQ$6,'Utility Functions'!$AR$3:$AR$6)","v":0.2},{"$f":"valuePL(X30,'Utility Functions'!$AS$3:$AS$6,'Utility Functions'!$AT$3:$AT$6)","v":0},{"$f":"valuePL(Y30,'Utility Functions'!$AU$3:$AU$6,'Utility Functions'!$AV$3:$AV$6)","v":0.8},{"$f":"valuePL(Z30,'Utility Functions'!$AW$3:$AW$5,'Utility Functions'!$AX$3:$AX$5)","v":0.5},{"$f":"valuePL(AA30,'Utility Functions'!$AY$3:$AY$6,'Utility Functions'!$AZ$3:$AZ$6)","v":0.2},{"$f":"valuePL(AB30,'Utility Functions'!$BA$3:$BA$5,'Utility Functions'!$BB$3:$BB$5)","v":0.25},{"$f":"valuePL(AC30,'Utility Functions'!$BC$3:$BC$5,'Utility Functions'!$BD$3:$BD$5)","v":1},12.453684519169958,null,12.453684519169958,3.0482299737154128,2.4054545454545453,0,3.05,3.95]
[30,{"$f":"valueE(B31,'Utility Functions'!$B$3,'Utility Functions'!$B$4,'Utility Functions'!$B$5,'Utility Functions'!$B$6)","v":0.99864114504770318},{"$f":"valueE(C31,'Utility Functions'!$D$3,'Utility Functions'!$D$4,'Utility Functions'!$D$5,'Utility Functions'!$D$6)","v":0.84744836833951609},{"$f":"valuePL(D31,'Utility Functions'!$E$3:$E$5,'Utility Functions'!$F$3:$F$5)","v":1},{"$f":"valuePL(E31,'Utility Functions'!$G$3:$G$5,'Utility Functions'!$H$3:$H$5)","v":0},{"$f":"valuePL(F31,'Utility Functions'!$I$3:$I$4,'Utility Functions'!$J$3:$J$5)","v":0},{"$f":"valueE(G31,'Utility Functions'!$L$3,'Utility Functions'!$L$4,'Utility Functions'!$L$5,'Utility Functions'!$L$6)","v":0},{"$f":"valueE(H31,'Utility Functions'!$N$3,'Utility Functions'!$N$4,'Utility Functions'!$N$5,'Utility Functions'!$N$6)","v":0},{"$f":"valuePL(I31,'Utility Functions'!$O$3:$O$6,'Utility Functions'!$P$3:$P$6)","v":0},{"$f":"valuePL(J31,'Utility Functions'!$Q$3:$Q$6,'Utility Functions'!$R$3:$R$6)","v":0},{"$f":"valuePL(K31,'Utility Functions'!$S$3:$S$7,'Utility Functions'!$T$3:$T$7)","v":0},{"$f":"valueE(L31,'Utility Functions'!$V$3,'Utility Functions'!$V$4,'Utility Functions'!$V$5,'Utility Functions'!$V$6)","v":0.33333333333333331},{"$f":"valuePL(M31,'Utility Functions'!$W$3:$W$6,'Utility Functions'!$X$3:$X$6)","v":0.04},{"$f":"valueE(N31,'Utility Functions'!$Z$3,'Utility Functions'!$Z$4,'Utility Functions'!$Z$5,'Utility Functions'!$Z$6)","v":0},{"$f":"valuePL(O31,'Utility Functions'!$AA$3:$AA$5,'Utility Functions'!$AB$3:$AB$5)","v":0},{"$f":"valuePL(P31,'Utility Functions'!$AC$3:$AC$7,'Utility Functions'!$AD$3:$AD$7)","v":0},{"$f":"valuePL(Q31,'Utility Functions'!$AE$3:$AE$6,'Utility Functions'!$AF$3:$AF$6)","v":0},{"$f":"valuePL(R31,'Utility Functions'!$AG$3:$AG$6,'Utility Functions'!$AH$3:$AH$6)","v":0.2},{"$f":"valuePL(S31,'Utility Functions'!$AI$3:$AI$6,'Utility Functions'!$AJ$3:$AJ$6)","v":0.33},{"$f":"valuePL(T31,'Utility Functions'!$AK$3:$AK$8,'Utility Functions'!$AL$3:$AL$8)","v":0},{"$f":"valuePL(U31,'Utility Functions'!$AM$3:$AM$5,'Utility Functions'!$AN$3:$AN$5)","v":0},{"$f":"valuePL(V31,'Utility Functions'!$AO$3:$AO$5,'Utility Functions'!$AP$3:$AP$5)","v":0},{"$f":"valuePL(W31,'Utility Functions'!$AQ$3:$AQ$6,'Utility Functions'!$AR$3:$AR$6)","v":1},{"$f":"valuePL(X31,'Utility Functions'!$AS$3:$AS$6,'Utility Functions'!$AT$3:$AT$6)","v":0.2},{"$f":"valuePL(Y31,'Utility Functions'!$AU$3:$AU$6,'Utility Functions'!$AV$3:$AV$6)","v":0.8},{"$f":"valuePL(Z31,'Utility Functions'!$AW$3:$AW$5,'Utility Functions'!$AX$3:$AX$5)","v":0},{"$f":"valuePL(AA31,'Utility Functions'!$AY$3:$AY$6,'Utility Functions'!$AZ$3:$AZ$6)","v":0.89999999999999991},{"$f":"valuePL(AB31,'Utility Functions'!$BA$3:$BA$5,'Utility Functions'!$BB$3:$BB$5)","v":1},{"$f":"valuePL(AC31,'Utility Functions'!$BC$3:$BC$5,'Utility Functions'!$BD$3:$BD$5)","v":0},7.6494228467205527,null,7.6494228467205527,2.846089513387219,0.37333333333333329,0,0.53,3.9]
[31,{"$f":"valueE(B32,'Utility Functions'!$B$3,'Utility Functions'!$B$4,'Utility Functions'!$B$5,'Utility Functions'!$B$6)","v":0.55067187023002029},{"$f":"valueE(C32,'Utility Functions'!$D$3,'Utility Functions'!$D$4,'Utility Functions'!$D$5,'Utility Functions'!$D$6)","v":0.84744836833951609},{"$f":"valuePL(D32,'Utility Functions'!$E$3:$E$5,'Utility Functions'!$F$3:$F$5)","v":0.5},{"$f":"valuePL(E32,'Utility Functions'!$G$3:$G$5,'Utility Functions'!$H$3:$H$5)","v":0},{"$f":"valuePL(F32,'Utility Functions'!$I$3:$I$4,'Utility Functions'!$J$3:$J$5)","v":0},{"$f":"valueE(G32,'Utility Functions'!$L$3,'Utility Functions'!$L$4,'Utility Functions'!$L$5,'Utility Functions'!$L$6)","v":0},{"$f":"valueE(H32,'Utility Functions'!$N$3,'Utility Functions'!$N$4,'Utility Functions'!$N$5,'Utility Functions'!$N$6)","v":0},{"$f":"valuePL(I32,'Utility Functions'!$O$3:$O$6,'Utility Functions'!$P$3:$P$6)","v":0.75454545454545452},{"$f":"valuePL(J32,'Utility Functions'!$Q$3:$Q$6,'Utility Functions'!$R$3:$R$6)","v":0.08},{"$f":"valuePL(K32,'Utility Functions'!$S$3:$S$7,'Utility Functions'!$T$3:$T$7)","v":0},{"$f":"valueE(L32,'Utility Functions'!$V$3,'Utility Functions'!$V$4,'Utility Functions'!$V$5,'Utility Functions'!$V$6)","v":0.33333333333333331},{"$f":"valuePL(M32,'Utility Functions'!$W$3:$W$6,'Utility Functions'!$X$3:$X$6)","v":0.08},{"$f":"valueE(N32,'Utility Functions'!$Z$3,'Utility Functions'!$Z$4,'Utility Functions'!$Z$5,'Utility Functions'!$Z$6)","v":0},{"$f":"valuePL(O32,'Utility Functions'!$AA$3:$AA$5,'Utility Functions'!$AB$3:$AB$5)","v":0},{"$f":"valuePL(P32,'Utility Functions'!$AC$3:$AC$7,'Utility Functions'!$AD$3:$AD$7)","v":0.5},{"$f":"valuePL(Q32,'Utility Functions'!$AE$3:$AE$6,'Utility Functions'!$AF$3:$AF$6)","v":0},{"$f":"valuePL(R32,'Utility Functions'!$AG$3:$AG$6,'Utility Functions'!$AH$3:$AH$6)","v":1},{"$f":"valuePL(S32,'Utility Functions'!$AI$3:$AI$6,'Utility Functions'!$AJ$3:$AJ$6)","v":0.66},{"$f":"valuePL(T32,'Utility Functions'!$AK$3:$AK$8,'Utility Functions'!$AL$3:$AL$8)","v":0.6},{"$f":"valuePL(U32,'Utility Functions'!$AM$3:$AM$5,'Utility Functions'!$AN$3:$AN$5)","v":0},{"$f":"valuePL(V32,'Utility Functions'!$AO$3:$AO$5,'Utility Functions'!$AP$3:$AP$5)","v":0.5},{"$f":"valuePL(W32,'Utility Functions'!$AQ$3:$AQ$6,'Utility Functions'!$AR$3:$AR$6)","v":0},{"$f":"valuePL(X32,'Utility Functions'!$AS$3:$AS$6,'Utility Functions'!$AT$3:$AT$6)","v":0.2},{"$f":"valuePL(Y32,'Utility Functions'!$AU$3:$AU$6,'Utility Functions'!$AV$3:$AV$6)","v":0.2},{"$f":"valuePL(Z32,'Utility Functions'!$AW$3:$AW$5,'Utility Functions'!$AX$3:$AX$5)","v":1},{"$f":"valuePL(AA32,'Utility Functions'!$AY$3:$AY$6,'Utility Functions'!$AZ$3:$AZ$6)","v":0.89999999999999991},{"$f":"valuePL(AB32,'Utility Functions'!$BA$3:$BA$5,'Utility Functions'!$BB$3:$BB$5)","v":0.25},{"$f":"valuePL(AC32,'Utility Functions'!$BC$3:$BC$5,'Utility Functions'!$BD$3:$BD$5)","v":0.25},9.2059990264483247,null,9.2059990264483247,1.8981202385695364,1.2478787878787878,0,2.7600000000000002,3.3]
[32,{"$f":"valueE(B33,'Utility Functions'!$B$3,'Utility Functions'!$B$4,'Utility Functions'!$B$5,'Utility Functions'!$B$6)","v":0.63212151658375171},{"$f":"valueE(C33,'Utility Functions'!$D$3,'Utility Functions'!$D$4,'Utility Functions'!$D$5,'Utility Functions'!$D$6)","v":0.26839655623815994},{"$f":"valuePL(D33,'Utility Functions'!$E$3:$E$5,'Utility Functions'!$F$3:$F$5)","v":1},{"$f":"valuePL(E33,'Utility Functions'!$G$3:$G$5,'Utility Functions'!$H$3:$H$5)","v":1},{"$f":"valuePL(F33,'Utility Functions'!$I$3:$I$4,'Utility Functions'!$J$3:$J$5)","v":1},{"$f":"valueE(G33,'Utility Functions'!$L$3,'Utility Functions'!$L$4,'Utility Functions'!$L$5,'Utility Functions'!$L$6)","v":3.2258064516129031E-2},{"$f":"valueE(H33,'Utility Functions'!$N$3,'Utility Functions'!$N$4,'Utility Functions'!$N$5,'Utility Functions'!$N$6)","v":9.6774193548387094E-2},{"$f":"valuePL(I33,'Utility Functions'!$O$3:$O$6,'Utility Functions'!$P$3:$P$6)","v":0.34545454545454546},{"$f":"valuePL(J33,'Utility Functions'!$Q$3:$Q$6,'Utility Functions'!$R$3:$R$6)","v":1},{"$f":"valuePL(K33,'Utility Functions'!$S$3:$S$7,'Utility Functions'!$T$3:$T$7)","v":0.34545454545454546},{"$f":"valueE(L33,'Utility Functions'!$V$3,'Utility Functions'!$V$4,'Utility Functions'!$V$5,'Utility Functions'!$V$6)","v":1},{"$f":"valuePL(M33,'Utility Functions'!$W$3:$W$6,'Utility Functions'!$X$3:$X$6)","v":1},{"$f":"valueE(N33,'Utility Functions'!$Z$3,'Utility Functions'!$Z$4,'Utility Functions'!$Z$5,'Utility Functions'!$Z$6)","v":0},{"$f":"valuePL(O33,'Utility Functions'!$AA$3:$AA$5,'Utility Functions'!$AB$3:$AB$5)","v":0},{"$f":"valuePL(P33,'Utility Functions'!$AC$3:$AC$7,'Utility Functions'!$AD$3:$AD$7)","v":0.5},{"$f":"valuePL(Q33,'Utility Functions'!$AE$3:$AE$6,'Utility Functions'!$AF$3:$AF$6)","v":1},{"$f":"valuePL(R33,'Utility Functions'!$AG$3:$AG$6,'Utility Functions'!$AH$3:$AH$6)","v":1},{"$f":"valuePL(S33,'Utility Functions'!$AI$3:$AI$6,'Utility Functions'!$AJ$3:$AJ$6)","v":0},{"$f":"valuePL(T33,'Utility Functions'!$AK$3:$AK$8,'Utility Functions'!$AL$3:$AL$8)","v":0.8},{"$f":"valuePL(U33,'Utility Functions'!$AM$3:$AM$5,'Utility Functions'!$AN$3:$AN$5)","v":0},{"$f":"valuePL(V33,'Utility Functions'!$AO$3:$AO$5,'Utility Functions'!$AP$3:$AP$5)","v":0},{"$f":"valuePL(W33,'Utility Functions'!$AQ$3:$AQ$6,'Utility Functions'!$AR$3:$AR$6)","v":0.75},{"$f":"valuePL(X33,'Utility Functions'!$AS$3:$AS$6,'Utility Functions'!$AT$3:$AT$6)","v":0.2},{"$f":"valuePL(Y33,'Utility Functions'!$AU$3:$AU$6,'Utility Functions'!$AV$3:$AV$6)","v":0.8},{"$f":"valuePL(Z33,'Utility Functions'!$AW$3:$AW$5,'Utility Functions'!$AX$3:$AX$5)","v":0.5},{"$f":"valuePL(AA33,'Utility Functions'!$AY$3:$AY$6,'Utility Functions'!$AZ$3:$AZ$6)","v":0},{"$f":"valuePL(AB33,'Utility Functions'!$BA$3:$BA$5,'Utility Functions'!$BB$3:$BB$5)","v":1},{"$f":"valuePL(AC33,'Utility Functions'!$BC$3:$BC$5,'Utility Functions'!$BD$3:$BD$5)","v":0.25},14.52045942179552,null,14.520459421795518,3.9005180728219115,3.8199413489736074,0,3.3,3.5]
[33,{"$f":"valueE(B34,'Utility Functions'!$B$3,'Utility Functions'!$B$4,'Utility Functions'!$B$5,'Utility Functions'!$B$6)","v":0.93919136038504192},{"$f":"valueE(C34,'Utility Functions'!$D$3,'Utility Functions'!$D$4,'Utility Functions'!$D$5,'Utility Functions'!$D$6)","v":0.84744836833951609},{"$f":"valuePL(D34,'Utility Functions'!$E$3:$E$5,'Utility Functions'!$F$3:$F$5)","v":1},{"$f":"valuePL(E34,'Utility Functions'!$G$3:$G$5,'Utility Functions'!$H$3:$H$5)","v":0.5},{"$f":"valuePL(F34,'Utility Functions'!$I$3:$I$4,'Utility Functions'!$J$3:$J$5)","v":0},{"$f":"valueE(G34,'Utility Functions'!$L$3,'Utility Functions'!$L$4,'Utility Functions'!$L$5,'Utility Functions'!$L$6)","v":0},{"$f":"valueE(H34,'Utility Functions'!$N$3,'Utility Functions'!$N$4,'Utility Functions'!$N$5,'Utility Functions'!$N$6)","v":0},{"$f":"valuePL(I34,'Utility Functions'!$O$3:$O$6,'Utility Functions'!$P$3:$P$6)","v":0},{"$f":"valuePL(J34,'Utility Functions'!$Q$3:$Q$6,'Utility Functions'!$R$3:$R$6)","v":0},{"$f":"valuePL(K34,'Utility Functions'!$S$3:$S$7,'Utility Functions'!$T$3:$T$7)","v":0},{"$f":"valueE(L34,'Utility Functions'!$V$3,'Utility Functions'!$V$4,'Utility Functions'!$V$5,'Utility Functions'!$V$6)","v":0.5},{"$f":"valuePL(M34,'Utility Functions'!$W$3:$W$6,'Utility Functions'!$X$3:$X$6)","v":0},{"$f":"valueE(N34,'Utility Functions'!$Z$3,'Utility Functions'!$Z$4,'Utility Functions'!$Z$5,'Utility Functions'!$Z$6)","v":0},{"$f":"valuePL(O34,'Utility Functions'!$AA$3:$AA$5,'Utility Functions'!$AB$3:$AB$5)","v":0},{"$f":"valuePL(P34,'Utility Functions'!$AC$3:$AC$7,'Utility Functions'!$AD$3:$AD$7)","v":0.5},{"$f":"valuePL(Q34,'Utility Functions'!$AE$3:$AE$6,'Utility Functions'!$AF$3:$AF$6)","v":0},{"$f":"valuePL(R34,'Utility Functions'!$AG$3:$AG$6,'Utility Functions'!$AH$3:$AH$6)","v":1},{"$f":"valuePL(S34,'Utility Functions'!$AI$3:$AI$6,'Utility Functions'!$AJ$3:$AJ$6)","v":0.66},{"$f":"valuePL(T34,'Utility Functions'!$AK$3:$AK$8,'Utility Functions'!$AL$3:$AL$8)","v":0},{"$f":"valuePL(U34,'Utility Functions'!$AM$3:$AM$5,'Utility Functions'!$AN$3:$AN$5)","v":0},{"$f":"valuePL(V34,'Utility Functions'!$AO$3:$AO$5,'Utility Functions'!$AP$3:$AP$5)","v":0.5},{"$f":"valuePL(W34,'Utility Functions'!$AQ$3:$AQ$6,'Utility Functions'!$AR$3:$AR$6)","v":1},{"$f":"valuePL(X34,'Utility Functions'!$AS$3:$AS$6,'Utility Functions'!$AT$3:$AT$6)","v":0},{"$f":"valuePL(Y34,'Utility Functions'!$AU$3:$AU$6,'Utility Functions'!$AV$3:$AV$6)","v":0.8},{"$f":"valuePL(Z34,'Utility Functions'!$AW$3:$AW$5,'Utility Functions'!$AX$3:$AX$5)","v":1},{"$f":"valuePL(AA34,'Utility Functions'!$AY$3:$AY$6,'Utility Functions'!$AZ$3:$AZ$6)","v":1},{"$f":"valuePL(AB34,'Utility Functions'!$BA$3:$BA$5,'Utility Functions'!$BB$3:$BB$5)","v":0},{"$f":"valuePL(AC34,'Utility Functions'!$BC$3:$BC$5,'Utility Functions'!$BD$3:$BD$5)","v":0},10.246639728724558,null,10.246639728724558,3.2866397287245581,0.5,0,2.16,4.3]
[34,{"$f":"valueE(B35,'Utility Functions'!$B$3,'Utility Functions'!$B$4,'Utility Functions'!$B$5,'Utility Functions'!$B$6)","v":0},{"$f":"valueE(C35,'Utility Functions'!$D$3,'Utility Functions'!$D$4,'Utility Functions'!$D$5,'Utility Functions'!$D$6)","v":0},{"$f":"valuePL(D35,'Utility Functions'!$E$3:$E$5,'Utility Functions'!$F$3:$F$5)","v":0},{"$f":"valuePL(E35,'Utility Functions'!$G$3:$G$5,'Utility Functions'!$H$3:$H$5)","v":0},{"$f":"valuePL(F35,'Utility Functions'!$I$3:$I$4,'Utility Functions'!$J$3:$J$5)","v":0},{"$f":"valueE(G35,'Utility Functions'!$L$3,'Utility Functions'!$L$4,'Utility Functions'!$L$5,'Utility Functions'!$L$6)","v":0},{"$f":"valueE(H35,'Utility Functions'!$N$3,'Utility Functions'!$N$4,'Utility Functions'!$N$5,'Utility Functions'!$N$6)","v":1.1385199240986717E-2},{"$f":"valuePL(I35,'Utility Functions'!$O$3:$O$6,'Utility Functions'!$P$3:$P$6)","v":1},{"$f":"valuePL(J35,'Utility Functions'!$Q$3:$Q$6,'Utility Functions'!$R$3:$R$6)","v":0.91818181818181821},{"$f":"valuePL(K35,'Utility Functions'!$S$3:$S$7,'Utility Functions'!$T$3:$T$7)","v":1},{"$f":"valueE(L35,'Utility Functions'!$V$3,'Utility Functions'!$V$4,'Utility Functions'!$V$5,'Utility Functions'!$V$6)","v":1},{"$f":"valuePL(M35,'Utility Functions'!$W$3:$W$6,'Utility Functions'!$X$3:$X$6)","v":0.91818181818181821},{"$f":"valueE(N35,'Utility Functions'!$Z$3,'Utility Functions'!$Z$4,'Utility Functions'!$Z$5,'Utility Functions'!$Z$6)","v":0},{"$f":"valuePL(O35,'Utility Functions'!$AA$3:$AA$5,'Utility Functions'!$AB$3:$AB$5)","v":0},{"$f":"valuePL(P35,'Utility Functions'!$AC$3:$AC$7,'Utility Functions'!$AD$3:$AD$7)","v":0.5},{"$f":"valuePL(Q35,'Utility Functions'!$AE$3:$AE$6,'Utility Functions'!$AF$3:$AF$6)","v":0},{"$f":"valuePL(R35,'Utility Functions'!$AG$3:$AG$6,'Utility Functions'!$AH$3:$AH$6)","v":1},{"$f":"valuePL(S35,'Utility Functions'!$AI$3:$AI$6,'Utility Functions'!$AJ$3:$AJ$6)","v":1},{"$f":"valuePL(T35,'Utility Functions'!$AK$3:$AK$8,'Utility Functions'!$AL$3:$AL$8)","v":0.8},{"$f":"valuePL(U35,'Utility Functions'!$AM$3:$AM$5,'Utility Functions'!$AN$3:$AN$5)","v":0},{"$f":"valuePL(V35,'Utility Functions'!$AO$3:$AO$5,'Utility Functions'!$AP$3:$AP$5)","v":1},{"$f":"valuePL(W35,'Utility Functions'!$AQ$3:$AQ$6,'Utility Functions'!$AR$3:$AR$6)","v":1},{"$f":"valuePL(X35,'Utility Functions'!$AS$3:$AS$6,'Utility Functions'!$AT$3:$AT$6)","v":1},{"$f":"valuePL(Y35,'Utility Functions'!$AU$3:$AU$6,'Utility Functions'!$AV$3:$AV$6)","v":0},{"$f":"valuePL(Z35,'Utility Functions'!$AW$3:$AW$5,'Utility Functions'!$AX$3:$AX$5)","v":1},{"$f":"valuePL(AA35,'Utility Functions'!$AY$3:$AY$6,'Utility Functions'!$AZ$3:$AZ$6)","v":0.89999999999999991},{"$f":"valuePL(AB35,'Utility Functions'!$BA$3:$BA$5,'Utility Functions'!$BB$3:$BB$5)","v":0.25},{"$f":"valuePL(AC35,'Utility Functions'!$BC$3:$BC$5,'Utility Functions'!$BD$3:$BD$5)","v":0},13.297748835604624,null,13.297748835604624,0,4.847748835604623,0,3.3,5.15]
[35,{"$f":"valueE(B36,'Utility Functions'!$B$3,'Utility Functions'!$B$4,'Utility Functions'!$B$5,'Utility Functions'!$B$6)","v":0.79810469124896843},{"$f":"valueE(C36,'Utility Functions'!$D$3,'Utility Functions'!$D$4,'Utility Functions'!$D$5,'Utility Functions'!$D$6)","v":0.60939983135101949},{"$f":"valuePL(D36,'Utility Functions'!$E$3:$E$5,'Utility Functions'!$F$3:$F$5)","v":0.5},{"$f":"valuePL(E36,'Utility Functions'!$G$3:$G$5,'Utility Functions'!$H$3:$H$5)","v":0.5},{"$f":"valuePL(F36,'Utility Functions'!$I$3:$I$4,'Utility Functions'!$J$3:$J$5)","v":1},{"$f":"valueE(G36,'Utility Functions'!$L$3,'Utility Functions'!$L$4,'Utility Functions'!$L$5,'Utility Functions'!$L$6)","v":0},{"$f":"valueE(H36,'Utility Functions'!$N$3,'Utility Functions'!$N$4,'Utility Functions'!$N$5,'Utility Functions'!$N$6)","v":0},{"$f":"valuePL(I36,'Utility Functions'!$O$3:$O$6,'Utility Functions'!$P$3:$P$6)","v":0},{"$f":"valuePL(J36,'Utility Functions'!$Q$3:$Q$6,'Utility Functions'!$R$3:$R$6)","v":0},{"$f":"valuePL(K36,'Utility Functions'!$S$3:$S$7,'Utility Functions'!$T$3:$T$7)","v":1},{"$f":"valueE(L36,'Utility Functions'!$V$3,'Utility Functions'!$V$4,'Utility Functions'!$V$5,'Utility Functions'!$V$6)","v":0.66666666666666663},{"$f":"valuePL(M36,'Utility Functions'!$W$3:$W$6,'Utility Functions'!$X$3:$X$6)","v":0.1},{"$f":"valueE(N36,'Utility Functions'!$Z$3,'Utility Functions'!$Z$4,'Utility Functions'!$Z$5,'Utility Functions'!$Z$6)","v":1},{"$f":"valuePL(O36,'Utility Functions'!$AA$3:$AA$5,'Utility Functions'!$AB$3:$AB$5)","v":0},{"$f":"valuePL(P36,'Utility Functions'!$AC$3:$AC$7,'Utility Functions'!$AD$3:$AD$7)","v":0},{"$f":"valuePL(Q36,'Utility Functions'!$AE$3:$AE$6,'Utility Functions'!$AF$3:$AF$6)","v":0},{"$f":"valuePL(R36,'Utility Functions'!$AG$3:$AG$6,'Utility Functions'!$AH$3:$AH$6)","v":1},{"$f":"valuePL(S36,'Utility Functions'!$AI$3:$AI$6,'Utility Functions'!$AJ$3:$AJ$6)","v":1},{"$f":"valuePL(T36,'Utility Functions'!$AK$3:$AK$8,'Utility Functions'!$AL$3:$AL$8)","v":0.6},{"$f":"valuePL(U36,'Utility Functions'!$AM$3:$AM$5,'Utility Functions'!$AN$3:$AN$5)","v":0},{"$f":"valuePL(V36,'Utility Functions'!$AO$3:$AO$5,'Utility Functions'!$AP$3:$AP$5)","v":1},{"$f":"valuePL(W36,'Utility Functions'!$AQ$3:$AQ$6,'Utility Functions'!$AR$3:$AR$6)","v":0.75},{"$f":"valuePL(X36,'Utility Functions'!$AS$3:$AS$6,'Utility Functions'!$AT$3:$AT$6)","v":0},{"$f":"valuePL(Y36,'Utility Functions'!$AU$3:$AU$6,'Utility Functions'!$AV$3:$AV$6)","v":0.2},{"$f":"valuePL(Z36,'Utility Functions'!$AW$3:$AW$5,'Utility Functions'!$AX$3:$AX$5)","v":1},{"$f":"valuePL(AA36,'Utility Functions'!$AY$3:$AY$6,'Utility Functions'!$AZ$3:$AZ$6)","v":0},{"$f":"valuePL(AB36,'Utility Functions'!$BA$3:$BA$5,'Utility Functions'!$BB$3:$BB$5)","v":0.25},{"$f":"valuePL(AC36,'Utility Functions'!$BC$3:$BC$5,'Utility Functions'!$BD$3:$BD$5)","v":0.25},12.224171189266654,null,12.224171189266656,3.407504522599988,1.7666666666666666,1,2.6,3.45]
["Unweighted",{"$f":"SUMPRODUCT(B46:B80,$B$85:$B$119)","v":2.7372671342513},{"$f":"SUMPRODUCT(C46:C80,$B$85:$B$119)","v":2.3042965680300518},{"$f":"SUMPRODUCT(D46:D80,$B$85:$B$119)","v":1.5},2,1,3.2258064516129031E-2,0.10815939278937381,2.541818181818182,2.5090909090909088,3.541818181818182,4.166666666666667,2.6090909090909089,2.375,0.5,1.25,0,5,4.66,1.8000000000000003,1,4.5,2.95,2.2000000000000002,3,4.5,3.6999999999999997,0.5,1.5,null,null,"Unweighted",{"$f":"SUMPRODUCT(AG46:AG80,$B$85:$B$119)","v":9.5415637022813513},{"$f":"SUMPRODUCT(AH46:AH80,$B$85:$B$119)","v":15.50890230579035},2.875,13.709999999999999,22.849999999999998]
["Weighted",{"$f":"B$81*Sens_Status!I5","v":8.680802826687363E-2},{"$f":"C$81*Sens_Status!J5","v":6.9081559890926417E-2},{"$f":"D$81*Sens_Status!K5","v":4.5541843264030268E-2},{"$f":"E$81*Sens_Status!L5","v":5.9159100750703193E-2},{"$f":"F$81*Sens_Status!M5","v":3.8366370815020027E-2},{"$f":"G$81*Sens_Status!N5","v":4.7888252258990812E-4},{"$f":"H$81*Sens_Status!O5","v":1.6056649286838097E-3},{"$f":"I$81*Sens_Status!P5","v":6.405337804835981E-2},{"$f":"J$81*Sens_Status!Q5","v":6.1613161568878895E-2},{"$f":"K$81*Sens_Status!R5","v":7.6626664997930125E-2},{"$f":"L$81*Sens_Status!S5","v":9.2395450072748117E-2},{"$f":"M$81*Sens_Status!T5","v":4.3685939474557213E-2},{"$f":"N$81*Sens_Status!U5","v":7.1249999999999994E-2},{"$f":"O$81*Sens_Status!V5","v":4.4999999999999998E-2},{"$f":"P$81*Sens_Status!W5","v":4.9421799881139525E-2},{"$f":"Q$81*Sens_Status!X5","v":0},{"$f":"R$81*Sens_Status!Y5","v":0.24943396535012619},{"$f":"S$81*Sens_Status!Z5","v":0.20361144403620823},{"$f":"T$81*Sens_Status!AA5","v":5.7245977411458565E-2},{"$f":"U$81*Sens_Status!AB5","v":3.149636621198481E-2},{"$f":"V$81*Sens_Status!AC5","v":0.24505365510554677},{"$f":"W$81*Sens_Status!AD5","v":0.11585350199498666},{"$f":"X$81*Sens_Status!AE5","v":9.2398716199648179E-2},{"$f":"Y$81*Sens_Status!AF5","v":0.1565746378728628},{"$f":"Z$81*Sens_Status!AG5","v":0.20350224908229139},{"$f":"AA$81*Sens_Status!AH5","v":0.12965063833904403},{"$f":"AB$81*Sens_Status!AI5","v":1.8580660822611259E-2},{"$f":"AC$81*Sens_Status!AJ5","v":5.1983309251533452E-2},null,null,"Weighted for SA",{"$f":"AG81*#REF!","v":{"$error":"#REF!"}},{"$f":"AH81*#REF!","v":{"$error":"#REF!"}},{"$f":"AI81*#REF!","v":{"$error":"#REF!"}},{"$f":"AJ81*#REF!","v":{"$error":"#REF!"}},{"$f":"AK81*#REF!","v":{"$error":"#REF!"}}]
[]
[null,"Decision variable","Benefit","Cost"]
[{"$f":"A2","v":1},0,{"$f":"AD46","v":17.117643866192076},{"$f":"AD2","v":700000}]
[2,0,{"$f":"AD47","v":12.641625800575998},{"$f":"AD3","v":5400000}]
[3,0,11.563541444302563,250000]
[4,0,9.2460291931089209,150000]
[5,0,9.5663279251355373,220000]
[6,0,5.9008471271383875,110000]
[7,1,15.54287399641135,1000000]
[8,0,14.227364688589191,5000000]
[9,0,11.893773577166716,25000]
[10,0,9.01,900000]
[11,1,13.174032258064516,1500000]
[12,0,9.4195802436719873,100000]
[13,0,7.5245670174228056,250000]
[14,0,10.338706637075108,500000]
[15,0,15.150477261414375,800000]
[16,0,15.119696969696969,2000000]
[17,0,10.876550515651747,500000]
[18,0,10.178462998102468,300000]
[19,0,9.3165012474871283,750000]
[20,0,15.091255033092194,1500000]
[21,0,9.5500000000000007,900000]
[22,0,9.471742567994939,750000]
[23,0,9.5321507448123199,1000000]
[24,0,9.4968811881212041,150000]
[25,0,13.870607417804099,250000]
[26,0,11.064076562960208,500000]
[27,0,9.0147596715374529,1200000]
[28,0,12.499282052393189,500000]
[29,0,12.453684519169958,2000000]
[30,0,7.6494228467205527,250000]
[31,0,9.2059990264483247,650000]
[32,0,14.52045942179552,200000]
[33,1,10.246639728724558,400000]
[34,1,13.297748835604624,900000]
[35,1,12.224171189266654,900000]
[null,{"$f":"SUM(B85:B119)","v":5},{"$f":"SUMPRODUCT(C85:C119,B85:B119)","v":64.485466008071697},{"$f":"SUMPRODUCT(B85:B119,D85:D119)","v":4700000}]
[]
[null,null,"Cost constraint",15000000]

{"sheet":"Portfolio_D_Status","index":46,"n_rows":122,"n_cols":37,"rows_kept":122,"cut":false,"hidden":false,"merged":[]}
["Project","manage_species","manage_spatial","manage_uncertainty","manage_currentpractices","manage_adaptivemanagement","pop_a","pop_b","pop_spatialscope","pop_temporalscope","hab_quantity","hab_quality","hab_temporal","ecoprocess_spp","ecoprocess_uncertainty","datasharing","broaderimpacts","exisitingpriorities","partners","leverage","alignment","objhyp","response","targettaxa","surveydesign","stats","datamanagement","budget","timeline","cost"]
[1,9,6.25,2,2,0,186,1054,75,5,0,2,0,0,0,4,0,2,3,0,0,2,3,3,3,2,3,2,2,700000]
[2,3,28.2,1,0,0,0,0,0,0,0,2,0,4,1,0,0,3,3,0,0,2,3,3,3,2,3,2,2,5400000]
[3,8,28.2,2,0,0,0,0,0,0,0,2,0,5,1,0,2,0,0,0,1,2,3,3,3,2,1,2,2,250000]
[4,1,6.25,2,0,0,0,0,0,0,0,2,0,4,1,0,1,3,3,4,0,1,3,3,1,0,0,2,1,150000]
[5,4,3.1,2,0,0,0,0,50,2,0,2,0,0,0,0,1,3,3,4,1,0,3,3,2,0,0,2,1,220000]
[6,10,6.2E-2,2,0,0,0,0,10,2,0,2,0,0,0,0,1,0,3,3,0,0,0,3,0,0,0,2,1,110000]
[7,52,18.8,0,2,0,0,0,85,12,85,8,12,8,1,0,0,3,3,0,0,2,0,1,3,2,2,0,2,1000000]
[8,3,18.8,2,1,1,0,0,14,14,14,8,14,0,0,0,3,1,3,0,0,2,3,3,3,2,0,1,1,5000000]
[9,9,15.6,2,1,0,70,140,0,0,0,2,0,0,0,3,0,3,2,1,0,2,3,3,1,2,1,1,2,25000]
[10,0,0,0,0,0,0,0,0,0,0,2,0,6,2,1,2,3,2,2,0,0,2,3,3,1,1,0,2,900000]
[11,0,0,0,0,0,6,102,52,15,52,8,15,3,1,1,0,3,3,2,2,2,1,3,3,1,2,0,1,1500000]
[12,2,15.6,2,1,0,0,0,0,0,0,2,0,0,0,0,1,3,3,3,0,1,1,3,1,2,1,2,0,100000]
[13,0,0,0,0,0,0,12,39,2,39,8,2,7,1,1,0,3,3,0,0,1,0,1,0,2,1,1,1,250000]
[14,6,15.6,1,1,0,0,0,0,0,0,2,0,6,1,1,0,3,3,0,0,1,1,3,3,1,2,1,1,500000]
[15,23,12.5,2,1,1,0,0,23,3,23,8,3,1,2,2,0,2,3,3,2,0,3,1,1,2,3,2,1,800000]
[16,0,0,0,0,0,0,0,100,15,100,7,15,0,0,3,0,3,3,5,0,2,2,2,1,2,3,2,2,2000000]
[17,2,15.6,2,1,1,58,290,0,0,0,8,3,0,0,0,0,3,2,0,0,2,3,1,0,1,0,2,1,500000]
[18,0,0,0,0,0,0,30,0,0,0,2,0,8,1,1,3,3,3,5,1,2,2,1,2,1,2,1,0,300000]
[19,8,3.125,1,2,0,0,0,0,0,0,2,0,8,2,0,0,2,3,0,0,1,1,3,2,0,1,0,1,750000]
[20,9,15.6,1,2,0,0,435,76,10,76,6,10,8,2,1,0,3,3,3,2,1,0,0,1,2,1,0,1,1500000]
[21,0,0,0,0,0,0,0,0,0,0,2,0,8,2,0,1,3,3,5,1,0,2,3,1,0,3,1,2,900000]
[22,0,0,0,0,0,16,64,0,0,0,2,0,1,2,4,2,2,3,5,0,1,2,1,0,2,1,2,1,750000]
[23,9,18.8,2,0,0,0,0,0,0,0,2,0,0,0,3,0,3,3,5,0,2,1,2,1,1,1,0,1,1000000]
[24,5,6.25,2,0,0,0,0,0,0,0,2,0,0,0,0,0,3,3,5,0,0,3,1,3,2,1,0,2,150000]
[25,9,18.8,2,0,0,176,308,0,0,0,2,0,8,1,2,2,3,3,0,0,2,1,3,2,1,1,2,2,250000]
[26,17,18.8,2,1,0,0,0,0,0,0,2,0,0,0,3,0,3,3,4,0,2,1,0,2,0,1,2,2,500000]
[27,0,6.25,2,0,0,0,0,0,0,80,2,5,0,0,2,2,3,3,5,0,1,2,3,1,0,0,0,0,1200000]
[28,3,6.25,2,0,1,0,0,0,0,0,4,5,0,0,4,0,3,3,4,0,2,3,3,1,0,2,2,1,500000]
[29,9,12.5,2,1,0,0,0,15,12,15,8,12,0,0,1,0,3,3,4,0,2,1,0,2,1,1,1,2,2000000]
[30,33,18.8,2,0,0,0,0,0,0,0,4,2,0,0,0,0,1,1,0,0,0,3,1,2,0,2,2,0,250000]
[31,4,18.8,1,0,0,0,0,65,4,0,4,4,0,0,2,0,3,2,3,0,1,0,1,1,2,2,1,1,650000]
[32,5,3.125,2,2,1,6,102,40,16,40,8,16,0,0,2,3,3,0,4,0,0,2,1,2,1,0,2,1,200000]
[33,14,18.8,2,1,0,0,0,0,0,0,5,0,0,0,2,0,3,2,0,0,1,3,0,2,2,3,0,0,400000]
[34,0,0,0,0,0,0,12,100,15,100,8,15,0,0,2,0,3,3,4,0,2,3,3,0,2,2,1,0,900000]
[35,8,9.4,1,1,1,0,0,0,0,100,6,5,8,0,0,0,3,3,3,0,2,2,0,1,2,0,1,1,900000]
["CV",{"$f":"_xlfn.STDEV.S(B2:B36)/AVERAGE(B2:B36)","v":1.383842854444886},{"$f":"_xlfn.STDEV.S(C2:C36)/AVERAGE(C2:C36)","v":0.84395823753626376},{"$f":"_xlfn.STDEV.S(D2:D36)/AVERAGE(D2:D36)","v":0.65948586466528381},{"$f":"_xlfn.STDEV.S(E2:E36)/AVERAGE(E2:E36)","v":1.2933654230908831},2.2305806858480666,2.9881459898804135,2.7250501152884543,1.5394659205075842,1.5790297611729722,1.6828143944790142,0.63288342730791625,1.4346340567392073,1.2744250477591585,1.2909944487358058,1.043011114951035,1.4910544805781871,0.32582327651393111,0.30721159062514791,0.8219511329380369,2.1760730956581078,0.64975875258290616,0.58618247649425104,0.61083323417736113,0.63333947951472869,0.68629571860885286,0.76505300516434493,0.69428102652373402,0.60312027652595823]
["sd",{"$f":"_xlfn.STDEV.S(B2:B36)","v":10.477667326511279}]
["mean",{"$f":"AVERAGE(B2:B36)","v":7.5714285714285712}]
[null,{"$f":"B1","v":"manage_species"},{"$f":"C1","v":"manage_spatial"},"manage_uncertainty","manage_currentpractices","manage_adaptivemanagement","pop_a","pop_b","pop_spatialscope","pop_temporalscope","hab_quantity","hab_quality","hab_temporal","ecoprocess_spp","ecoprocess_uncertainty","datasharing","broaderimpacts","exisitingpriorities","partners","leverage","alignment","objhyp","response","targettaxa","surveydesign","stats","datamanagement","budget","timeline"]
[null,"Metric 1","Metric 2","Metric 3","Metric 4","Metric 5","Metric 6a","Metric 6b","Metric 7","Metric 8","Metric 9","Metric 10","Metric 11","Metric 12","Metric 13","Metric 14","Metric 15","Metric 16","Metric 17","Metric 18","Metric 19","Metric 20","Metric 21","Metric 22","Metric 23","Metric 24","Metric 25","Metric 26","Metric 27"]
["Weights",0.03,0.03,0.03,0.03,0.04,1.4999999999999999E-2,1.4999999999999999E-2,0.03,0.02,0.02,0.02,0.02,0.03,0.09,0.04,0.04,0.05,0.05,0.03,0.03,0.05,0.04,0.04,0.05,0.05,0.04,0.04,0.03]
[]
[null,"Unweighted"]
["Project",null,null,null,null,null,null,null,null,null,null,null,null,null,null,null,null,null,null,null,null,null,null,null,null,null,null,null,null,"Unweighted total",null,"Unweighted total","management","status","ecol_proc","integration","rigor"]
[{"$f":"A2","v":1},{"$f":"valueE(B2,'Utility Functions'!$B$3,'Utility Functions'!$B$4,'Utility Functions'!$B$5,'Utility Functions'!$B$6)","v":0.83470237647280454},{"$f":"valueE(C2,'Utility Functions'!$D$3,'Utility Functions'!$D$4,'Utility Functions'!$D$5,'Utility Functions'!$D$6)","v":0.46475967153745396},{"$f":"valuePL(D2,'Utility Functions'!$E$3:$E$5,'Utility Functions'!$F$3:$F$5)","v":1},{"$f":"valuePL(E2,'Utility Functions'!$G$3:$G$5,'Utility Functions'!$H$3:$H$5)","v":1},{"$f":"valuePL(F2,'Utility Functions'!$I$3:$I$4,'Utility Functions'!$J$3:$J$5)","v":0},{"$f":"valueE(G2,'Utility Functions'!$L$3,'Utility Functions'!$L$4,'Utility Functions'!$L$5,'Utility Functions'!$L$6)","v":1},{"$f":"valueE(H2,'Utility Functions'!$N$3,'Utility Functions'!$N$4,'Utility Functions'!$N$5,'Utility Functions'!$N$6)","v":1},{"$f":"valuePL(I2,'Utility Functions'!$O$3:$O$6,'Utility Functions'!$P$3:$P$6)","v":0.91818181818181821},{"$f":"valuePL(J2,'Utility Functions'!$Q$3:$Q$6,'Utility Functions'!$R$3:$R$6)","v":0.1},{"$f":"valuePL(K2,'Utility Functions'!$S$3:$S$7,'Utility Functions'!$T$3:$T$7)","v":0},{"$f":"valueE(L2,'Utility Functions'!$V$3,'Utility Functions'!$V$4,'Utility Functions'!$V$5,'Utility Functions'!$V$6)","v":0},{"$f":"valuePL(M2,'Utility Functions'!$W$3:$W$6,'Utility Functions'!$X$3:$X$6)","v":0},{"$f":"valueE(N2,'Utility Functions'!$Z$3,'Utility Functions'!$Z$4,'Utility Functions'!$Z$5,'Utility Functions'!$Z$6)","v":0},{"$f":"valuePL(O2,'Utility Functions'!$AA$3:$AA$5,'Utility Functions'!$AB$3:$AB$5)","v":0},{"$f":"valuePL(P2,'Utility Functions'!$AC$3:$AC$7,'Utility Functions'!$AD$3:$AD$7)","v":1},{"$f":"valuePL(Q2,'Utility Functions'!$AE$3:$AE$6,'Utility Functions'!$AF$3:$AF$6)","v":0},{"$f":"valuePL(R2,'Utility Functions'!$AG$3:$AG$6,'Utility Functions'!$AH$3:$AH$6)","v":0.8},{"$f":"valuePL(S2,'Utility Functions'!$AI$3:$AI$6,'Utility Functions'!$AJ$3:$AJ$6)","v":1},{"$f":"valuePL(T2,'Utility Functions'!$AK$3:$AK$8,'Utility Functions'!$AL$3:$AL$8)","v":0},{"$f":"valuePL(U2,'Utility Functions'!$AM$3:$AM$5,'Utility Functions'!$AN$3:$AN$5)","v":0},{"$f":"valuePL(V2,'Utility Functions'!$AO$3:$AO$5,'Utility Functions'!$AP$3:$AP$5)","v":1},{"$f":"valuePL(W2,'Utility Functions'!$AQ$3:$AQ$6,'Utility Functions'!$AR$3:$AR$6)","v":1},{"$f":"valuePL(X2,'Utility Functions'!$AS$3:$AS$6,'Utility Functions'!$AT$3:$AT$6)","v":1},{"$f":"valuePL(Y2,'Utility Functions'!$AU$3:$AU$6,'Utility Functions'!$AV$3:$AV$6)","v":1},{"$f":"valuePL(Z2,'Utility Functions'!$AW$3:$AW$5,'Utility Functions'!$AX$3:$AX$5)","v":1},{"$f":"valuePL(AA2,'Utility Functions'!$AY$3:$AY$6,'Utility Functions'!$AZ$3:$AZ$6)","v":1},{"$f":"valuePL(AB2,'Utility Functions'!$BA$3:$BA$5,'Utility Functions'!$BB$3:$BB$5)","v":1},{"$f":"valuePL(AC2,'Utility Functions'!$BC$3:$BC$5,'Utility Functions'!$BD$3:$BD$5)","v":1},{"$f":"SUM(B46:AC46)","v":17.117643866192076},null,{"$f":"SUM(AG46:AK46)","v":17.117643866192076},{"$f":"SUM(B46:F46)","v":3.2994620480102586},{"$f":"SUM(G46:M46)","v":3.0181818181818181},{"$f":"SUM(N46:O46)","v":0},{"$f":"SUM(P46:U46)","v":2.8},{"$f":"SUM(V46:AC46)","v":8}]
[2,{"$f":"valueE(B3,'Utility Functions'!$B$3,'Utility Functions'!$B$4,'Utility Functions'!$B$5,'Utility Functions'!$B$6)","v":0.4511890475224023},{"$f":"valueE(C3,'Utility Functions'!$D$3,'Utility Functions'!$D$4,'Utility Functions'!$D$5,'Utility Functions'!$D$6)","v":0.94043675305359531},{"$f":"valuePL(D3,'Utility Functions'!$E$3:$E$5,'Utility Functions'!$F$3:$F$5)","v":0.5},{"$f":"valuePL(E3,'Utility Functions'!$G$3:$G$5,'Utility Functions'!$H$3:$H$5)","v":0},{"$f":"valuePL(F3,'Utility Functions'!$I$3:$I$4,'Utility Functions'!$J$3:$J$5)","v":0},{"$f":"valueE(G3,'Utility Functions'!$L$3,'Utility Functions'!$L$4,'Utility Functions'!$L$5,'Utility Functions'!$L$6)","v":0},{"$f":"valueE(H3,'Utility Functions'!$N$3,'Utility Functions'!$N$4,'Utility Functions'!$N$5,'Utility Functions'!$N$6)","v":0},{"$f":"valuePL(I3,'Utility Functions'!$O$3:$O$6,'Utility Functions'!$P$3:$P$6)","v":0},{"$f":"valuePL(J3,'Utility Functions'!$Q$3:$Q$6,'Utility Functions'!$R$3:$R$6)","v":0},{"$f":"valuePL(K3,'Utility Functions'!$S$3:$S$7,'Utility Functions'!$T$3:$T$7)","v":0},{"$f":"valueE(L3,'Utility Functions'!$V$3,'Utility Functions'!$V$4,'Utility Functions'!$V$5,'Utility Functions'!$V$6)","v":0},{"$f":"valuePL(M3,'Utility Functions'!$W$3:$W$6,'Utility Functions'!$X$3:$X$6)","v":0},{"$f":"valueE(N3,'Utility Functions'!$Z$3,'Utility Functions'!$Z$4,'Utility Functions'!$Z$5,'Utility Functions'!$Z$6)","v":0.5},{"$f":"valuePL(O3,'Utility Functions'!$AA$3:$AA$5,'Utility Functions'!$AB$3:$AB$5)","v":0.25},{"$f":"valuePL(P3,'Utility Functions'!$AC$3:$AC$7,'Utility Functions'!$AD$3:$AD$7)","v":0},{"$f":"valuePL(Q3,'Utility Functions'!$AE$3:$AE$6,'Utility Functions'!$AF$3:$AF$6)","v":0},{"$f":"valuePL(R3,'Utility Functions'!$AG$3:$AG$6,'Utility Functions'!$AH$3:$AH$6)","v":1},{"$f":"valuePL(S3,'Utility Functions'!$AI$3:$AI$6,'Utility Functions'!$AJ$3:$AJ$6)","v":1},{"$f":"valuePL(T3,'Utility Functions'!$AK$3:$AK$8,'Utility Functions'!$AL$3:$AL$8)","v":0},{"$f":"valuePL(U3,'Utility Functions'!$AM$3:$AM$5,'Utility Functions'!$AN$3:$AN$5)","v":0},{"$f":"valuePL(V3,'Utility Functions'!$AO$3:$AO$5,'Utility Functions'!$AP$3:$AP$5)","v":1},{"$f":"valuePL(W3,'Utility Functions'!$AQ$3:$AQ$6,'Utility Functions'!$AR$3:$AR$6)","v":1},{"$f":"valuePL(X3,'Utility Functions'!$AS$3:$AS$6,'Utility Functions'!$AT$3:$AT$6)","v":1},{"$f":"valuePL(Y3,'Utility Functions'!$AU$3:$AU$6,'Utility Functions'!$AV$3:$AV$6)","v":1},{"$f":"valuePL(Z3,'Utility Functions'!$AW$3:$AW$5,'Utility Functions'!$AX$3:$AX$5)","v":1},{"$f":"valuePL(AA3,'Utility Functions'!$AY$3:$AY$6,'Utility Functions'!$AZ$3:$AZ$6)","v":1},{"$f":"valuePL(AB3,'Utility Functions'!$BA$3:$BA$5,'Utility Functions'!$BB$3:$BB$5)","v":1},{"$f":"valuePL(AC3,'Utility Functions'!$BC$3:$BC$5,'Utility Functions'!$BD$3:$BD$5)","v":1},{"$f":"SUM(B47:AC47)","v":12.641625800575998},null,{"$f":"SUM(AG47:AK47)","v":12.641625800575998},{"$f":"SUM(B47:F47)","v":1.8916258005759976},{"$f":"SUM(G47:M47)","v":0},{"$f":"SUM(N47:O47)","v":0.75},{"$f":"SUM(P47:U47)","v":2},{"$f":"SUM(V47:AC47)","v":8}]
[3,{"$f":"valueE(B4,'Utility Functions'!$B$3,'Utility Functions'!$B$4,'Utility Functions'!$B$5,'Utility Functions'!$B$6)","v":0.79810469124896843},{"$f":"valueE(C4,'Utility Functions'!$D$3,'Utility Functions'!$D$4,'Utility Functions'!$D$5,'Utility Functions'!$D$6)","v":0.94043675305359531},{"$f":"valuePL(D4,'Utility Functions'!$E$3:$E$5,'Utility Functions'!$F$3:$F$5)","v":1},{"$f":"valuePL(E4,'Utility Functions'!$G$3:$G$5,'Utility Functions'!$H$3:$H$5)","v":0},{"$f":"valuePL(F4,'Utility Functions'!$I$3:$I$4,'Utility Functions'!$J$3:$J$5)","v":0},{"$f":"valueE(G4,'Utility Functions'!$L$3,'Utility Functions'!$L$4,'Utility Functions'!$L$5,'Utility Functions'!$L$6)","v":0},{"$f":"valueE(H4,'Utility Functions'!$N$3,'Utility Functions'!$N$4,'Utility Functions'!$N$5,'Utility Functions'!$N$6)","v":0},{"$f":"valuePL(I4,'Utility Functions'!$O$3:$O$6,'Utility Functions'!$P$3:$P$6)","v":0},{"$f":"valuePL(J4,'Utility Functions'!$Q$3:$Q$6,'Utility Functions'!$R$3:$R$6)","v":0},{"$f":"valuePL(K4,'Utility Functions'!$S$3:$S$7,'Utility Functions'!$T$3:$T$7)","v":0},{"$f":"valueE(L4,'Utility Functions'!$V$3,'Utility Functions'!$V$4,'Utility Functions'!$V$5,'Utility Functions'!$V$6)","v":0},{"$f":"valuePL(M4,'Utility Functions'!$W$3:$W$6,'Utility Functions'!$X$3:$X$6)","v":0},{"$f":"valueE(N4,'Utility Functions'!$Z$3,'Utility Functions'!$Z$4,'Utility Functions'!$Z$5,'Utility Functions'!$Z$6)","v":0.625},{"$f":"valuePL(O4,'Utility Functions'!$AA$3:$AA$5,'Utility Functions'!$AB$3:$AB$5)","v":0.25},{"$f":"valuePL(P4,'Utility Functions'!$AC$3:$AC$7,'Utility Functions'!$AD$3:$AD$7)","v":0},{"$f":"valuePL(Q4,'Utility Functions'!$AE$3:$AE$6,'Utility Functions'!$AF$3:$AF$6)","v":0.5},{"$f":"valuePL(R4,'Utility Functions'!$AG$3:$AG$6,'Utility Functions'!$AH$3:$AH$6)","v":0},{"$f":"valuePL(S4,'Utility Functions'!$AI$3:$AI$6,'Utility Functions'!$AJ$3:$AJ$6)","v":0},{"$f":"valuePL(T4,'Utility Functions'!$AK$3:$AK$8,'Utility Functions'!$AL$3:$AL$8)","v":0},{"$f":"valuePL(U4,'Utility Functions'!$AM$3:$AM$5,'Utility Functions'!$AN$3:$AN$5)","v":0.25},{"$f":"valuePL(V4,'Utility Functions'!$AO$3:$AO$5,'Utility Functions'!$AP$3:$AP$5)","v":1},{"$f":"valuePL(W4,'Utility Functions'!$AQ$3:$AQ$6,'Utility Functions'!$AR$3:$AR$6)","v":1},{"$f":"valuePL(X4,'Utility Functions'!$AS$3:$AS$6,'Utility Functions'!$AT$3:$AT$6)","v":1},{"$f":"valuePL(Y4,'Utility Functions'!$AU$3:$AU$6,'Utility Functions'!$AV$3:$AV$6)","v":1},{"$f":"valuePL(Z4,'Utility Functions'!$AW$3:$AW$5,'Utility Functions'!$AX$3:$AX$5)","v":1},{"$f":"valuePL(AA4,'Utility Functions'!$AY$3:$AY$6,'Utility Functions'!$AZ$3:$AZ$6)","v":0.2},{"$f":"valuePL(AB4,'Utility Functions'!$BA$3:$BA$5,'Utility Functions'!$BB$3:$BB$5)","v":1},{"$f":"valuePL(AC4,'Utility Functions'!$BC$3:$BC$5,'Utility Functions'!$BD$3:$BD$5)","v":1},11.563541444302563,null,11.563541444302565,2.7385414443025637,0,0.875,0.75,7.2]
[4,{"$f":"valueE(B5,'Utility Functions'!$B$3,'Utility Functions'!$B$4,'Utility Functions'!$B$5,'Utility Functions'!$B$6)","v":0.1812695215714665},{"$f":"valueE(C5,'Utility Functions'!$D$3,'Utility Functions'!$D$4,'Utility Functions'!$D$5,'Utility Functions'!$D$6)","v":0.46475967153745396},{"$f":"valuePL(D5,'Utility Functions'!$E$3:$E$5,'Utility Functions'!$F$3:$F$5)","v":1},{"$f":"valuePL(E5,'Utility Functions'!$G$3:$G$5,'Utility Functions'!$H$3:$H$5)","v":0},{"$f":"valuePL(F5,'Utility Functions'!$I$3:$I$4,'Utility Functions'!$J$3:$J$5)","v":0},{"$f":"valueE(G5,'Utility Functions'!$L$3,'Utility Functions'!$L$4,'Utility Functions'!$L$5,'Utility Functions'!$L$6)","v":0},{"$f":"valueE(H5,'Utility Functions'!$N$3,'Utility Functions'!$N$4,'Utility Functions'!$N$5,'Utility Functions'!$N$6)","v":0},{"$f":"valuePL(I5,'Utility Functions'!$O$3:$O$6,'Utility Functions'!$P$3:$P$6)","v":0},{"$f":"valuePL(J5,'Utility Functions'!$Q$3:$Q$6,'Utility Functions'!$R$3:$R$6)","v":0},{"$f":"valuePL(K5,'Utility Functions'!$S$3:$S$7,'Utility Functions'!$T$3:$T$7)","v":0},{"$f":"valueE(L5,'Utility Functions'!$V$3,'Utility Functions'!$V$4,'Utility Functions'!$V$5,'Utility Functions'!$V$6)","v":0},{"$f":"valuePL(M5,'Utility Functions'!$W$3:$W$6,'Utility Functions'!$X$3:$X$6)","v":0},{"$f":"valueE(N5,'Utility Functions'!$Z$3,'Utility Functions'!$Z$4,'Utility Functions'!$Z$5,'Utility Functions'!$Z$6)","v":0.5},{"$f":"valuePL(O5,'Utility Functions'!$AA$3:$AA$5,'Utility Functions'!$AB$3:$AB$5)","v":0.25},{"$f":"valuePL(P5,'Utility Functions'!$AC$3:$AC$7,'Utility Functions'!$AD$3:$AD$7)","v":0},{"$f":"valuePL(Q5,'Utility Functions'!$AE$3:$AE$6,'Utility Functions'!$AF$3:$AF$6)","v":0.1},{"$f":"valuePL(R5,'Utility Functions'!$AG$3:$AG$6,'Utility Functions'!$AH$3:$AH$6)","v":1},{"$f":"valuePL(S5,'Utility Functions'!$AI$3:$AI$6,'Utility Functions'!$AJ$3:$AJ$6)","v":1},{"$f":"valuePL(T5,'Utility Functions'!$AK$3:$AK$8,'Utility Functions'!$AL$3:$AL$8)","v":0.8},{"$f":"valuePL(U5,'Utility Functions'!$AM$3:$AM$5,'Utility Functions'!$AN$3:$AN$5)","v":0},{"$f":"valuePL(V5,'Utility Functions'!$AO$3:$AO$5,'Utility Functions'!$AP$3:$AP$5)","v":0.5},{"$f":"valuePL(W5,'Utility Functions'!$AQ$3:$AQ$6,'Utility Functions'!$AR$3:$AR$6)","v":1},{"$f":"valuePL(X5,'Utility Functions'!$AS$3:$AS$6,'Utility Functions'!$AT$3:$AT$6)","v":1},{"$f":"valuePL(Y5,'Utility Functions'!$AU$3:$AU$6,'Utility Functions'!$AV$3:$AV$6)","v":0.2},{"$f":"valuePL(Z5,'Utility Functions'!$AW$3:$AW$5,'Utility Functions'!$AX$3:$AX$5)","v":0},{"$f":"valuePL(AA5,'Utility Functions'!$AY$3:$AY$6,'Utility Functions'!$AZ$3:$AZ$6)","v":0},{"$f":"valuePL(AB5,'Utility Functions'!$BA$3:$BA$5,'Utility Functions'!$BB$3:$BB$5)","v":1},{"$f":"valuePL(AC5,'Utility Functions'!$BC$3:$BC$5,'Utility Functions'!$BD$3:$BD$5)","v":0.25},9.2460291931089209,null,9.2460291931089209,1.6460291931089204,0,0.75,2.9000000000000004,3.95]
[5,{"$f":"valueE(B6,'Utility Functions'!$B$3,'Utility Functions'!$B$4,'Utility Functions'!$B$5,'Utility Functions'!$B$6)","v":0.55067187023002029},{"$f":"valueE(C6,'Utility Functions'!$D$3,'Utility Functions'!$D$4,'Utility Functions'!$D$5,'Utility Functions'!$D$6)","v":0.26656514581460788},{"$f":"valuePL(D6,'Utility Functions'!$E$3:$E$5,'Utility Functions'!$F$3:$F$5)","v":1},{"$f":"valuePL(E6,'Utility Functions'!$G$3:$G$5,'Utility Functions'!$H$3:$H$5)","v":0},{"$f":"valuePL(F6,'Utility Functions'!$I$3:$I$4,'Utility Functions'!$J$3:$J$5)","v":0},{"$f":"valueE(G6,'Utility Functions'!$L$3,'Utility Functions'!$L$4,'Utility Functions'!$L$5,'Utility Functions'!$L$6)","v":0},{"$f":"valueE(H6,'Utility Functions'!$N$3,'Utility Functions'!$N$4,'Utility Functions'!$N$5,'Utility Functions'!$N$6)","v":0},{"$f":"valuePL(I6,'Utility Functions'!$O$3:$O$6,'Utility Functions'!$P$3:$P$6)","v":0.50909090909090915},{"$f":"valuePL(J6,'Utility Functions'!$Q$3:$Q$6,'Utility Functions'!$R$3:$R$6)","v":0.04},{"$f":"valuePL(K6,'Utility Functions'!$S$3:$S$7,'Utility Functions'!$T$3:$T$7)","v":0},{"$f":"valueE(L6,'Utility Functions'!$V$3,'Utility Functions'!$V$4,'Utility Functions'!$V$5,'Utility Functions'!$V$6)","v":0},{"$f":"valuePL(M6,'Utility Functions'!$W$3:$W$6,'Utility Functions'!$X$3:$X$6)","v":0},{"$f":"valueE(N6,'Utility Functions'!$Z$3,'Utility Functions'!$Z$4,'Utility Functions'!$Z$5,'Utility Functions'!$Z$6)","v":0},{"$f":"valuePL(O6,'Utility Functions'!$AA$3:$AA$5,'Utility Functions'!$AB$3:$AB$5)","v":0},{"$f":"valuePL(P6,'Utility Functions'!$AC$3:$AC$7,'Utility Functions'!$AD$3:$AD$7)","v":0},{"$f":"valuePL(Q6,'Utility Functions'!$AE$3:$AE$6,'Utility Functions'!$AF$3:$AF$6)","v":0.1},{"$f":"valuePL(R6,'Utility Functions'!$AG$3:$AG$6,'Utility Functions'!$AH$3:$AH$6)","v":1},{"$f":"valuePL(S6,'Utility Functions'!$AI$3:$AI$6,'Utility Functions'!$AJ$3:$AJ$6)","v":1},{"$f":"valuePL(T6,'Utility Functions'!$AK$3:$AK$8,'Utility Functions'!$AL$3:$AL$8)","v":0.8},{"$f":"valuePL(U6,'Utility Functions'!$AM$3:$AM$5,'Utility Functions'!$AN$3:$AN$5)","v":0.25},{"$f":"valuePL(V6,'Utility Functions'!$AO$3:$AO$5,'Utility Functions'!$AP$3:$AP$5)","v":0},{"$f":"valuePL(W6,'Utility Functions'!$AQ$3:$AQ$6,'Utility Functions'!$AR$3:$AR$6)","v":1},{"$f":"valuePL(X6,'Utility Functions'!$AS$3:$AS$6,'Utility Functions'!$AT$3:$AT$6)","v":1},{"$f":"valuePL(Y6,'Utility Functions'!$AU$3:$AU$6,'Utility Functions'!$AV$3:$AV$6)","v":0.8},{"$f":"valuePL(Z6,'Utility Functions'!$AW$3:$AW$5,'Utility Functions'!$AX$3:$AX$5)","v":0},{"$f":"valuePL(AA6,'Utility Functions'!$AY$3:$AY$6,'Utility Functions'!$AZ$3:$AZ$6)","v":0},{"$f":"valuePL(AB6,'Utility Functions'!$BA$3:$BA$5,'Utility Functions'!$BB$3:$BB$5)","v":1},{"$f":"valuePL(AC6,'Utility Functions'!$BC$3:$BC$5,'Utility Functions'!$BD$3:$BD$5)","v":0.25},9.5663279251355373,null,9.5663279251355391,1.8172370160446283,0.54909090909090918,0,3.1500000000000004,4.05]
[6,{"$f":"valueE(B7,'Utility Functions'!$B$3,'Utility Functions'!$B$4,'Utility Functions'!$B$5,'Utility Functions'!$B$6)","v":0.86466602685702687},{"$f":"valueE(C7,'Utility Functions'!$D$3,'Utility Functions'!$D$4,'Utility Functions'!$D$5,'Utility Functions'!$D$6)","v":6.1811002813601471E-3},{"$f":"valuePL(D7,'Utility Functions'!$E$3:$E$5,'Utility Functions'!$F$3:$F$5)","v":1},{"$f":"valuePL(E7,'Utility Functions'!$G$3:$G$5,'Utility Functions'!$H$3:$H$5)","v":0},{"$f":"valuePL(F7,'Utility Functions'!$I$3:$I$4,'Utility Functions'!$J$3:$J$5)","v":0},{"$f":"valueE(G7,'Utility Functions'!$L$3,'Utility Functions'!$L$4,'Utility Functions'!$L$5,'Utility Functions'!$L$6)","v":0},{"$f":"valueE(H7,'Utility Functions'!$N$3,'Utility Functions'!$N$4,'Utility Functions'!$N$5,'Utility Functions'!$N$6)","v":0},{"$f":"valuePL(I7,'Utility Functions'!$O$3:$O$6,'Utility Functions'!$P$3:$P$6)","v":0.04},{"$f":"valuePL(J7,'Utility Functions'!$Q$3:$Q$6,'Utility Functions'!$R$3:$R$6)","v":0.04},{"$f":"valuePL(K7,'Utility Functions'!$S$3:$S$7,'Utility Functions'!$T$3:$T$7)","v":0},{"$f":"valueE(L7,'Utility Functions'!$V$3,'Utility Functions'!$V$4,'Utility Functions'!$V$5,'Utility Functions'!$V$6)","v":0},{"$f":"valuePL(M7,'Utility Functions'!$W$3:$W$6,'Utility Functions'!$X$3:$X$6)","v":0},{"$f":"valueE(N7,'Utility Functions'!$Z$3,'Utility Functions'!$Z$4,'Utility Functions'!$Z$5,'Utility Functions'!$Z$6)","v":0},{"$f":"valuePL(O7,'Utility Functions'!$AA$3:$AA$5,'Utility Functions'!$AB$3:$AB$5)","v":0},{"$f":"valuePL(P7,'Utility Functions'!$AC$3:$AC$7,'Utility Functions'!$AD$3:$AD$7)","v":0},{"$f":"valuePL(Q7,'Utility Functions'!$AE$3:$AE$6,'Utility Functions'!$AF$3:$AF$6)","v":0.1},{"$f":"valuePL(R7,'Utility Functions'!$AG$3:$AG$6,'Utility Functions'!$AH$3:$AH$6)","v":0},{"$f":"valuePL(S7,'Utility Functions'!$AI$3:$AI$6,'Utility Functions'!$AJ$3:$AJ$6)","v":1},{"$f":"valuePL(T7,'Utility Functions'!$AK$3:$AK$8,'Utility Functions'!$AL$3:$AL$8)","v":0.6},{"$f":"valuePL(U7,'Utility Functions'!$AM$3:$AM$5,'Utility Functions'!$AN$3:$AN$5)","v":0},{"$f":"valuePL(V7,'Utility Functions'!$AO$3:$AO$5,'Utility Functions'!$AP$3:$AP$5)","v":0},{"$f":"valuePL(W7,'Utility Functions'!$AQ$3:$AQ$6,'Utility Functions'!$AR$3:$AR$6)","v":0},{"$f":"valuePL(X7,'Utility Functions'!$AS$3:$AS$6,'Utility Functions'!$AT$3:$AT$6)","v":1},{"$f":"valuePL(Y7,'Utility Functions'!$AU$3:$AU$6,'Utility Functions'!$AV$3:$AV$6)","v":0},{"$f":"valuePL(Z7,'Utility Functions'!$AW$3:$AW$5,'Utility Functions'!$AX$3:$AX$5)","v":0},{"$f":"valuePL(AA7,'Utility Functions'!$AY$3:$AY$6,'Utility Functions'!$AZ$3:$AZ$6)","v":0},{"$f":"valuePL(AB7,'Utility Functions'!$BA$3:$BA$5,'Utility Functions'!$BB$3:$BB$5)","v":1},{"$f":"valuePL(AC7,'Utility Functions'!$BC$3:$BC$5,'Utility Functions'!$BD$3:$BD$5)","v":0.25},5.9008471271383875,null,5.9008471271383875,1.8708471271383869,0.08,0,1.7000000000000002,2.25]
[7,{"$f":"valueE(B8,'Utility Functions'!$B$3,'Utility Functions'!$B$4,'Utility Functions'!$B$5,'Utility Functions'!$B$6)","v":0.99997108261728973},{"$f":"valueE(C8,'Utility Functions'!$D$3,'Utility Functions'!$D$4,'Utility Functions'!$D$5,'Utility Functions'!$D$6)","v":0.84744836833951609},{"$f":"valuePL(D8,'Utility Functions'!$E$3:$E$5,'Utility Functions'!$F$3:$F$5)","v":0},{"$f":"valuePL(E8,'Utility Functions'!$G$3:$G$5,'Utility Functions'!$H$3:$H$5)","v":1},{"$f":"valuePL(F8,'Utility Functions'!$I$3:$I$4,'Utility Functions'!$J$3:$J$5)","v":0},{"$f":"valueE(G8,'Utility Functions'!$L$3,'Utility Functions'!$L$4,'Utility Functions'!$L$5,'Utility Functions'!$L$6)","v":0},{"$f":"valueE(H8,'Utility Functions'!$N$3,'Utility Functions'!$N$4,'Utility Functions'!$N$5,'Utility Functions'!$N$6)","v":0},{"$f":"valuePL(I8,'Utility Functions'!$O$3:$O$6,'Utility Functions'!$P$3:$P$6)","v":1},{"$f":"valuePL(J8,'Utility Functions'!$Q$3:$Q$6,'Utility Functions'!$R$3:$R$6)","v":0.67272727272727273},{"$f":"valuePL(K8,'Utility Functions'!$S$3:$S$7,'Utility Functions'!$T$3:$T$7)","v":1},{"$f":"valueE(L8,'Utility Functions'!$V$3,'Utility Functions'!$V$4,'Utility Functions'!$V$5,'Utility Functions'!$V$6)","v":1},{"$f":"valuePL(M8,'Utility Functions'!$W$3:$W$6,'Utility Functions'!$X$3:$X$6)","v":0.67272727272727273},{"$f":"valueE(N8,'Utility Functions'!$Z$3,'Utility Functions'!$Z$4,'Utility Functions'!$Z$5,'Utility Functions'!$Z$6)","v":1},{"$f":"valuePL(O8,'Utility Functions'!$AA$3:$AA$5,'Utility Functions'!$AB$3:$AB$5)","v":0.25},{"$f":"valuePL(P8,'Utility Functions'!$AC$3:$AC$7,'Utility Functions'!$AD$3:$AD$7)","v":0},{"$f":"valuePL(Q8,'Utility Functions'!$AE$3:$AE$6,'Utility Functions'!$AF$3:$AF$6)","v":0},{"$f":"valuePL(R8,'Utility Functions'!$AG$3:$AG$6,'Utility Functions'!$AH$3:$AH$6)","v":1},{"$f":"valuePL(S8,'Utility Functions'!$AI$3:$AI$6,'Utility Functions'!$AJ$3:$AJ$6)","v":1},{"$f":"valuePL(T8,'Utility Functions'!$AK$3:$AK$8,'Utility Functions'!$AL$3:$AL$8)","v":0},{"$f":"valuePL(U8,'Utility Functions'!$AM$3:$AM$5,'Utility Functions'!$AN$3:$AN$5)","v":0},{"$f":"valuePL(V8,'Utility Functions'!$AO$3:$AO$5,'Utility Functions'!$AP$3:$AP$5)","v":1},{"$f":"valuePL(W8,'Utility Functions'!$AQ$3:$AQ$6,'Utility Functions'!$AR$3:$AR$6)","v":0},{"$f":"valuePL(X8,'Utility Functions'!$AS$3:$AS$6,'Utility Functions'!$AT$3:$AT$6)","v":0.2},{"$f":"valuePL(Y8,'Utility Functions'!$AU$3:$AU$6,'Utility Functions'!$AV$3:$AV$6)","v":1},{"$f":"valuePL(Z8,'Utility Functions'!$AW$3:$AW$5,'Utility Functions'!$AX$3:$AX$5)","v":1},{"$f":"valuePL(AA8,'Utility Functions'!$AY$3:$AY$6,'Utility Functions'!$AZ$3:$AZ$6)","v":0.89999999999999991},{"$f":"valuePL(AB8,'Utility Functions'!$BA$3:$BA$5,'Utility Functions'!$BB$3:$BB$5)","v":0},{"$f":"valuePL(AC8,'Utility Functions'!$BC$3:$BC$5,'Utility Functions'!$BD$3:$BD$5)","v":1},15.54287399641135,null,15.54287399641135,2.8474194509568056,4.3454545454545457,1.25,2,5.0999999999999996]
[8,{"$f":"valueE(B9,'Utility Functions'!$B$3,'Utility Functions'!$B$4,'Utility Functions'!$B$5,'Utility Functions'!$B$6)","v":0.4511890475224023},{"$f":"valueE(C9,'Utility Functions'!$D$3,'Utility Functions'!$D$4,'Utility Functions'!$D$5,'Utility Functions'!$D$6)","v":0.84744836833951609},{"$f":"valuePL(D9,'Utility Functions'!$E$3:$E$5,'Utility Functions'!$F$3:$F$5)","v":1},{"$f":"valuePL(E9,'Utility Functions'!$G$3:$G$5,'Utility Functions'!$H$3:$H$5)","v":0.5},{"$f":"valuePL(F9,'Utility Functions'!$I$3:$I$4,'Utility Functions'!$J$3:$J$5)","v":1},{"$f":"valueE(G9,'Utility Functions'!$L$3,'Utility Functions'!$L$4,'Utility Functions'!$L$5,'Utility Functions'!$L$6)","v":0},{"$f":"valueE(H9,'Utility Functions'!$N$3,'Utility Functions'!$N$4,'Utility Functions'!$N$5,'Utility Functions'!$N$6)","v":0},{"$f":"valuePL(I9,'Utility Functions'!$O$3:$O$6,'Utility Functions'!$P$3:$P$6)","v":5.6000000000000008E-2},{"$f":"valuePL(J9,'Utility Functions'!$Q$3:$Q$6,'Utility Functions'!$R$3:$R$6)","v":0.83636363636363631},{"$f":"valuePL(K9,'Utility Functions'!$S$3:$S$7,'Utility Functions'!$T$3:$T$7)","v":0},{"$f":"valueE(L9,'Utility Functions'!$V$3,'Utility Functions'!$V$4,'Utility Functions'!$V$5,'Utility Functions'!$V$6)","v":1},{"$f":"valuePL(M9,'Utility Functions'!$W$3:$W$6,'Utility Functions'!$X$3:$X$6)","v":0.83636363636363631},{"$f":"valueE(N9,'Utility Functions'!$Z$3,'Utility Functions'!$Z$4,'Utility Functions'!$Z$5,'Utility Functions'!$Z$6)","v":0},{"$f":"valuePL(O9,'Utility Functions'!$AA$3:$AA$5,'Utility Functions'!$AB$3:$AB$5)","v":0},{"$f":"valuePL(P9,'Utility Functions'!$AC$3:$AC$7,'Utility Functions'!$AD$3:$AD$7)","v":0},{"$f":"valuePL(Q9,'Utility Functions'!$AE$3:$AE$6,'Utility Functions'!$AF$3:$AF$6)","v":1},{"$f":"valuePL(R9,'Utility Functions'!$AG$3:$AG$6,'Utility Functions'!$AH$3:$AH$6)","v":0.2},{"$f":"valuePL(S9,'Utility Functions'!$AI$3:$AI$6,'Utility Functions'!$AJ$3:$AJ$6)","v":1},{"$f":"valuePL(T9,'Utility Functions'!$AK$3:$AK$8,'Utility Functions'!$AL$3:$AL$8)","v":0},{"$f":"valuePL(U9,'Utility Functions'!$AM$3:$AM$5,'Utility Functions'!$AN$3:$AN$5)","v":0},{"$f":"valuePL(V9,'Utility Functions'!$AO$3:$AO$5,'Utility Functions'!$AP$3:$AP$5)","v":1},{"$f":"valuePL(W9,'Utility Functions'!$AQ$3:$AQ$6,'Utility Functions'!$AR$3:$AR$6)","v":1},{"$f":"valuePL(X9,'Utility Functions'!$AS$3:$AS$6,'Utility Functions'!$AT$3:$AT$6)","v":1},{"$f":"valuePL(Y9,'Utility Functions'!$AU$3:$AU$6,'Utility Functions'!$AV$3:$AV$6)","v":1},{"$f":"valuePL(Z9,'Utility Functions'!$AW$3:$AW$5,'Utility Functions'!$AX$3:$AX$5)","v":1},{"$f":"valuePL(AA9,'Utility Functions'!$AY$3:$AY$6,'Utility Functions'!$AZ$3:$AZ$6)","v":0},{"$f":"valuePL(AB9,'Utility Functions'!$BA$3:$BA$5,'Utility Functions'!$BB$3:$BB$5)","v":0.25},{"$f":"valuePL(AC9,'Utility Functions'!$BC$3:$BC$5,'Utility Functions'!$BD$3:$BD$5)","v":0.25},14.227364688589191,null,14.227364688589191,3.7986374158619185,2.7287272727272729,0,2.2000000000000002,5.5]
[9,{"$f":"valueE(B10,'Utility Functions'!$B$3,'Utility Functions'!$B$4,'Utility Functions'!$B$5,'Utility Functions'!$B$6)","v":0.83470237647280454},{"$f":"valueE(C10,'Utility Functions'!$D$3,'Utility Functions'!$D$4,'Utility Functions'!$D$5,'Utility Functions'!$D$6)","v":0.78989979019422951},{"$f":"valuePL(D10,'Utility Functions'!$E$3:$E$5,'Utility Functions'!$F$3:$F$5)","v":1},{"$f":"valuePL(E10,'Utility Functions'!$G$3:$G$5,'Utility Functions'!$H$3:$H$5)","v":0.5},{"$f":"valuePL(F10,'Utility Functions'!$I$3:$I$4,'Utility Functions'!$J$3:$J$5)","v":0},{"$f":"valueE(G10,'Utility Functions'!$L$3,'Utility Functions'!$L$4,'Utility Functions'!$L$5,'Utility Functions'!$L$6)","v":0.37634408602150538},{"$f":"valueE(H10,'Utility Functions'!$N$3,'Utility Functions'!$N$4,'Utility Functions'!$N$5,'Utility Functions'!$N$6)","v":0.13282732447817835},{"$f":"valuePL(I10,'Utility Functions'!$O$3:$O$6,'Utility Functions'!$P$3:$P$6)","v":0},{"$f":"valuePL(J10,'Utility Functions'!$Q$3:$Q$6,'Utility Functions'!$R$3:$R$6)","v":0},{"$f":"valuePL(K10,'Utility Functions'!$S$3:$S$7,'Utility Functions'!$T$3:$T$7)","v":0},{"$f":"valueE(L10,'Utility Functions'!$V$3,'Utility Functions'!$V$4,'Utility Functions'!$V$5,'Utility Functions'!$V$6)","v":0},{"$f":"valuePL(M10,'Utility Functions'!$W$3:$W$6,'Utility Functions'!$X$3:$X$6)","v":0},{"$f":"valueE(N10,'Utility Functions'!$Z$3,'Utility Functions'!$Z$4,'Utility Functions'!$Z$5,'Utility Functions'!$Z$6)","v":0},{"$f":"valuePL(O10,'Utility Functions'!$AA$3:$AA$5,'Utility Functions'!$AB$3:$AB$5)","v":0},{"$f":"valuePL(P10,'Utility Functions'!$AC$3:$AC$7,'Utility Functions'!$AD$3:$AD$7)","v":0.75},{"$f":"valuePL(Q10,'Utility Functions'!$AE$3:$AE$6,'Utility Functions'!$AF$3:$AF$6)","v":0},{"$f":"valuePL(R10,'Utility Functions'!$AG$3:$AG$6,'Utility Functions'!$AH$3:$AH$6)","v":1},{"$f":"valuePL(S10,'Utility Functions'!$AI$3:$AI$6,'Utility Functions'!$AJ$3:$AJ$6)","v":0.66},{"$f":"valuePL(T10,'Utility Functions'!$AK$3:$AK$8,'Utility Functions'!$AL$3:$AL$8)","v":0.2},{"$f":"valuePL(U10,'Utility Functions'!$AM$3:$AM$5,'Utility Functions'!$AN$3:$AN$5)","v":0},{"$f":"valuePL(V10,'Utility Functions'!$AO$3:$AO$5,'Utility Functions'!$AP$3:$AP$5)","v":1},{"$f":"valuePL(W10,'Utility Functions'!$AQ$3:$AQ$6,'Utility Functions'!$AR$3:$AR$6)","v":1},{"$f":"valuePL(X10,'Utility Functions'!$AS$3:$AS$6,'Utility Functions'!$AT$3:$AT$6)","v":1},{"$f":"valuePL(Y10,'Utility Functions'!$AU$3:$AU$6,'Utility Functions'!$AV$3:$AV$6)","v":0.2},{"$f":"valuePL(Z10,'Utility Functions'!$AW$3:$AW$5,'Utility Functions'!$AX$3:$AX$5)","v":1},{"$f":"valuePL(AA10,'Utility Functions'!$AY$3:$AY$6,'Utility Functions'!$AZ$3:$AZ$6)","v":0.2},{"$f":"valuePL(AB10,'Utility Functions'!$BA$3:$BA$5,'Utility Functions'!$BB$3:$BB$5)","v":0.25},{"$f":"valuePL(AC10,'Utility Functions'!$BC$3:$BC$5,'Utility Functions'!$BD$3:$BD$5)","v":1},11.893773577166716,null,11.893773577166719,3.1246021666670343,0.50917141049968373,0,2.6100000000000003,5.65]
[10,{"$f":"valueE(B11,'Utility Functions'!$B$3,'Utility Functions'!$B$4,'Utility Functions'!$B$5,'Utility Functions'!$B$6)","v":0},{"$f":"valueE(C11,'Utility Functions'!$D$3,'Utility Functions'!$D$4,'Utility Functions'!$D$5,'Utility Functions'!$D$6)","v":0},{"$f":"valuePL(D11,'Utility Functions'!$E$3:$E$5,'Utility Functions'!$F$3:$F$5)","v":0},{"$f":"valuePL(E11,'Utility Functions'!$G$3:$G$5,'Utility Functions'!$H$3:$H$5)","v":0},{"$f":"valuePL(F11,'Utility Functions'!$I$3:$I$4,'Utility Functions'!$J$3:$J$5)","v":0},{"$f":"valueE(G11,'Utility Functions'!$L$3,'Utility Functions'!$L$4,'Utility Functions'!$L$5,'Utility Functions'!$L$6)","v":0},{"$f":"valueE(H11,'Utility Functions'!$N$3,'Utility Functions'!$N$4,'Utility Functions'!$N$5,'Utility Functions'!$N$6)","v":0},{"$f":"valuePL(I11,'Utility Functions'!$O$3:$O$6,'Utility Functions'!$P$3:$P$6)","v":0},{"$f":"valuePL(J11,'Utility Functions'!$Q$3:$Q$6,'Utility Functions'!$R$3:$R$6)","v":0},{"$f":"valuePL(K11,'Utility Functions'!$S$3:$S$7,'Utility Functions'!$T$3:$T$7)","v":0},{"$f":"valueE(L11,'Utility Functions'!$V$3,'Utility Functions'!$V$4,'Utility Functions'!$V$5,'Utility Functions'!$V$6)","v":0},{"$f":"valuePL(M11,'Utility Functions'!$W$3:$W$6,'Utility Functions'!$X$3:$X$6)","v":0},{"$f":"valueE(N11,'Utility Functions'!$Z$3,'Utility Functions'!$Z$4,'Utility Functions'!$Z$5,'Utility Functions'!$Z$6)","v":0.75},{"$f":"valuePL(O11,'Utility Functions'!$AA$3:$AA$5,'Utility Functions'!$AB$3:$AB$5)","v":1},{"$f":"valuePL(P11,'Utility Functions'!$AC$3:$AC$7,'Utility Functions'!$AD$3:$AD$7)","v":0.25},{"$f":"valuePL(Q11,'Utility Functions'!$AE$3:$AE$6,'Utility Functions'!$AF$3:$AF$6)","v":0.5},{"$f":"valuePL(R11,'Utility Functions'!$AG$3:$AG$6,'Utility Functions'!$AH$3:$AH$6)","v":1},{"$f":"valuePL(S11,'Utility Functions'!$AI$3:$AI$6,'Utility Functions'!$AJ$3:$AJ$6)","v":0.66},{"$f":"valuePL(T11,'Utility Functions'!$AK$3:$AK$8,'Utility Functions'!$AL$3:$AL$8)","v":0.4},{"$f":"valuePL(U11,'Utility Functions'!$AM$3:$AM$5,'Utility Functions'!$AN$3:$AN$5)","v":0},{"$f":"valuePL(V11,'Utility Functions'!$AO$3:$AO$5,'Utility Functions'!$AP$3:$AP$5)","v":0},{"$f":"valuePL(W11,'Utility Functions'!$AQ$3:$AQ$6,'Utility Functions'!$AR$3:$AR$6)","v":0.75},{"$f":"valuePL(X11,'Utility Functions'!$AS$3:$AS$6,'Utility Functions'!$AT$3:$AT$6)","v":1},{"$f":"valuePL(Y11,'Utility Functions'!$AU$3:$AU$6,'Utility Functions'!$AV$3:$AV$6)","v":1},{"$f":"valuePL(Z11,'Utility Functions'!$AW$3:$AW$5,'Utility Functions'!$AX$3:$AX$5)","v":0.5},{"$f":"valuePL(AA11,'Utility Functions'!$AY$3:$AY$6,'Utility Functions'!$AZ$3:$AZ$6)","v":0.2},{"$f":"valuePL(AB11,'Utility Functions'!$BA$3:$BA$5,'Utility Functions'!$BB$3:$BB$5)","v":0},{"$f":"valuePL(AC11,'Utility Functions'!$BC$3:$BC$5,'Utility Functions'!$BD$3:$BD$5)","v":1},9.01,null,9.0100000000000016,0,0,1.75,2.81,4.45]
[11,{"$f":"valueE(B12,'Utility Functions'!$B$3,'Utility Functions'!$B$4,'Utility Functions'!$B$5,'Utility Functions'!$B$6)","v":0},{"$f":"valueE(C12,'Utility Functions'!$D$3,'Utility Functions'!$D$4,'Utility Functions'!$D$5,'Utility Functions'!$D$6)","v":0},{"$f":"valuePL(D12,'Utility Functions'!$E$3:$E$5,'Utility Functions'!$F$3:$F$5)","v":0},{"$f":"valuePL(E12,'Utility Functions'!$G$3:$G$5,'Utility Functions'!$H$3:$H$5)","v":0},{"$f":"valuePL(F12,'Utility Functions'!$I$3:$I$4,'Utility Functions'!$J$3:$J$5)","v":0},{"$f":"valueE(G12,'Utility Functions'!$L$3,'Utility Functions'!$L$4,'Utility Functions'!$L$5,'Utility Functions'!$L$6)","v":3.2258064516129031E-2},{"$f":"valueE(H12,'Utility Functions'!$N$3,'Utility Functions'!$N$4,'Utility Functions'!$N$5,'Utility Functions'!$N$6)","v":9.6774193548387094E-2},{"$f":"valuePL(I12,'Utility Functions'!$O$3:$O$6,'Utility Functions'!$P$3:$P$6)","v":0.54181818181818187},{"$f":"valuePL(J12,'Utility Functions'!$Q$3:$Q$6,'Utility Functions'!$R$3:$R$6)","v":0.91818181818181821},{"$f":"valuePL(K12,'Utility Functions'!$S$3:$S$7,'Utility Functions'!$T$3:$T$7)","v":0.54181818181818187},{"$f":"valueE(L12,'Utility Functions'!$V$3,'Utility Functions'!$V$4,'Utility Functions'!$V$5,'Utility Functions'!$V$6)","v":1},{"$f":"valuePL(M12,'Utility Functions'!$W$3:$W$6,'Utility Functions'!$X$3:$X$6)","v":0.91818181818181821},{"$f":"valueE(N12,'Utility Functions'!$Z$3,'Utility Functions'!$Z$4,'Utility Functions'!$Z$5,'Utility Functions'!$Z$6)","v":0.375},{"$f":"valuePL(O12,'Utility Functions'!$AA$3:$AA$5,'Utility Functions'!$AB$3:$AB$5)","v":0.25},{"$f":"valuePL(P12,'Utility Functions'!$AC$3:$AC$7,'Utility Functions'!$AD$3:$AD$7)","v":0.25},{"$f":"valuePL(Q12,'Utility Functions'!$AE$3:$AE$6,'Utility Functions'!$AF$3:$AF$6)","v":0},{"$f":"valuePL(R12,'Utility Functions'!$AG$3:$AG$6,'Utility Functions'!$AH$3:$AH$6)","v":1},{"$f":"valuePL(S12,'Utility Functions'!$AI$3:$AI$6,'Utility Functions'!$AJ$3:$AJ$6)","v":1},{"$f":"valuePL(T12,'Utility Functions'!$AK$3:$AK$8,'Utility Functions'!$AL$3:$AL$8)","v":0.4},{"$f":"valuePL(U12,'Utility Functions'!$AM$3:$AM$5,'Utility Functions'!$AN$3:$AN$5)","v":1},{"$f":"valuePL(V12,'Utility Functions'!$AO$3:$AO$5,'Utility Functions'!$AP$3:$AP$5)","v":1},{"$f":"valuePL(W12,'Utility Functions'!$AQ$3:$AQ$6,'Utility Functions'!$AR$3:$AR$6)","v":0.2},{"$f":"valuePL(X12,'Utility Functions'!$AS$3:$AS$6,'Utility Functions'!$AT$3:$AT$6)","v":1},{"$f":"valuePL(Y12,'Utility Functions'!$AU$3:$AU$6,'Utility Functions'!$AV$3:$AV$6)","v":1},{"$f":"valuePL(Z12,'Utility Functions'!$AW$3:$AW$5,'Utility Functions'!$AX$3:$AX$5)","v":0.5},{"$f":"valuePL(AA12,'Utility Functions'!$AY$3:$AY$6,'Utility Functions'!$AZ$3:$AZ$6)","v":0.89999999999999991},{"$f":"valuePL(AB12,'Utility Functions'!$BA$3:$BA$5,'Utility Functions'!$BB$3:$BB$5)","v":0},{"$f":"valuePL(AC12,'Utility Functions'!$BC$3:$BC$5,'Utility Functions'!$BD$3:$BD$5)","v":0.25},13.174032258064516,null,13.174032258064516,0,4.0490322580645159,0.625,3.65,4.8499999999999996]
[12,{"$f":"valueE(B13,'Utility Functions'!$B$3,'Utility Functions'!$B$4,'Utility Functions'!$B$5,'Utility Functions'!$B$6)","v":0.32968045347775865},{"$f":"valueE(C13,'Utility Functions'!$D$3,'Utility Functions'!$D$4,'Utility Functions'!$D$5,'Utility Functions'!$D$6)","v":0.78989979019422951},{"$f":"valuePL(D13,'Utility Functions'!$E$3:$E$5,'Utility Functions'!$F$3:$F$5)","v":1},{"$f":"valuePL(E13,'Utility Functions'!$G$3:$G$5,'Utility Functions'!$H$3:$H$5)","v":0.5},{"$f":"valuePL(F13,'Utility Functions'!$I$3:$I$4,'Utility Functions'!$J$3:$J$5)","v":0},{"$f":"valueE(G13,'Utility Functions'!$L$3,'Utility Functions'!$L$4,'Utility Functions'!$L$5,'Utility Functions'!$L$6)","v":0},{"$f":"valueE(H13,'Utility Functions'!$N$3,'Utility Functions'!$N$4,'Utility Functions'!$N$5,'Utility Functions'!$N$6)","v":0},{"$f":"valuePL(I13,'Utility Functions'!$O$3:$O$6,'Utility Functions'!$P$3:$P$6)","v":0},{"$f":"valuePL(J13,'Utility Functions'!$Q$3:$Q$6,'Utility Functions'!$R$3:$R$6)","v":0},{"$f":"valuePL(K13,'Utility Functions'!$S$3:$S$7,'Utility Functions'!$T$3:$T$7)","v":0},{"$f":"valueE(L13,'Utility Functions'!$V$3,'Utility Functions'!$V$4,'Utility Functions'!$V$5,'Utility Functions'!$V$6)","v":0},{"$f":"valuePL(M13,'Utility Functions'!$W$3:$W$6,'Utility Functions'!$X$3:$X$6)","v":0},{"$f":"valueE(N13,'Utility Functions'!$Z$3,'Utility Functions'!$Z$4,'Utility Functions'!$Z$5,'Utility Functions'!$Z$6)","v":0},{"$f":"valuePL(O13,'Utility Functions'!$AA$3:$AA$5,'Utility Functions'!$AB$3:$AB$5)","v":0},{"$f":"valuePL(P13,'Utility Functions'!$AC$3:$AC$7,'Utility Functions'!$AD$3:$AD$7)","v":0},{"$f":"valuePL(Q13,'Utility Functions'!$AE$3:$AE$6,'Utility Functions'!$AF$3:$AF$6)","v":0.1},{"$f":"valuePL(R13,'Utility Functions'!$AG$3:$AG$6,'Utility Functions'!$AH$3:$AH$6)","v":1},{"$f":"valuePL(S13,'Utility Functions'!$AI$3:$AI$6,'Utility Functions'!$AJ$3:$AJ$6)","v":1},{"$f":"valuePL(T13,'Utility Functions'!$AK$3:$AK$8,'Utility Functions'!$AL$3:$AL$8)","v":0.6},{"$f":"valuePL(U13,'Utility Functions'!$AM$3:$AM$5,'Utility Functions'!$AN$3:$AN$5)","v":0},{"$f":"valuePL(V13,'Utility Functions'!$AO$3:$AO$5,'Utility Functions'!$AP$3:$AP$5)","v":0.5},{"$f":"valuePL(W13,'Utility Functions'!$AQ$3:$AQ$6,'Utility Functions'!$AR$3:$AR$6)","v":0.2},{"$f":"valuePL(X13,'Utility Functions'!$AS$3:$AS$6,'Utility Functions'!$AT$3:$AT$6)","v":1},{"$f":"valuePL(Y13,'Utility Functions'!$AU$3:$AU$6,'Utility Functions'!$AV$3:$AV$6)","v":0.2},{"$f":"valuePL(Z13,'Utility Functions'!$AW$3:$AW$5,'Utility Functions'!$AX$3:$AX$5)","v":1},{"$f":"valuePL(AA13,'Utility Functions'!$AY$3:$AY$6,'Utility Functions'!$AZ$3:$AZ$6)","v":0.2},{"$f":"valuePL(AB13,'Utility Functions'!$BA$3:$BA$5,'Utility Functions'!$BB$3:$BB$5)","v":1},{"$f":"valuePL(AC13,'Utility Functions'!$BC$3:$BC$5,'Utility Functions'!$BD$3:$BD$5)","v":0},9.4195802436719873,null,9.4195802436719873,2.6195802436719884,0,0,2.7,4.0999999999999996]
[13,{"$f":"valueE(B14,'Utility Functions'!$B$3,'Utility Functions'!$B$4,'Utility Functions'!$B$5,'Utility Functions'!$B$6)","v":0},{"$f":"valueE(C14,'Utility Functions'!$D$3,'Utility Functions'!$D$4,'Utility Functions'!$D$5,'Utility Functions'!$D$6)","v":0},{"$f":"valuePL(D14,'Utility Functions'!$E$3:$E$5,'Utility Functions'!$F$3:$F$5)","v":0},{"$f":"valuePL(E14,'Utility Functions'!$G$3:$G$5,'Utility Functions'!$H$3:$H$5)","v":0},{"$f":"valuePL(F14,'Utility Functions'!$I$3:$I$4,'Utility Functions'!$J$3:$J$5)","v":0},{"$f":"valueE(G14,'Utility Functions'!$L$3,'Utility Functions'!$L$4,'Utility Functions'!$L$5,'Utility Functions'!$L$6)","v":0},{"$f":"valueE(H14,'Utility Functions'!$N$3,'Utility Functions'!$N$4,'Utility Functions'!$N$5,'Utility Functions'!$N$6)","v":1.1385199240986717E-2},{"$f":"valuePL(I14,'Utility Functions'!$O$3:$O$6,'Utility Functions'!$P$3:$P$6)","v":0.3290909090909091},{"$f":"valuePL(J14,'Utility Functions'!$Q$3:$Q$6,'Utility Functions'!$R$3:$R$6)","v":0.04},{"$f":"valuePL(K14,'Utility Functions'!$S$3:$S$7,'Utility Functions'!$T$3:$T$7)","v":0.3290909090909091},{"$f":"valueE(L14,'Utility Functions'!$V$3,'Utility Functions'!$V$4,'Utility Functions'!$V$5,'Utility Functions'!$V$6)","v":1},{"$f":"valuePL(M14,'Utility Functions'!$W$3:$W$6,'Utility Functions'!$X$3:$X$6)","v":0.04},{"$f":"valueE(N14,'Utility Functions'!$Z$3,'Utility Functions'!$Z$4,'Utility Functions'!$Z$5,'Utility Functions'!$Z$6)","v":0.875},{"$f":"valuePL(O14,'Utility Functions'!$AA$3:$AA$5,'Utility Functions'!$AB$3:$AB$5)","v":0.25},{"$f":"valuePL(P14,'Utility Functions'!$AC$3:$AC$7,'Utility Functions'!$AD$3:$AD$7)","v":0.25},{"$f":"valuePL(Q14,'Utility Functions'!$AE$3:$AE$6,'Utility Functions'!$AF$3:$AF$6)","v":0},{"$f":"valuePL(R14,'Utility Functions'!$AG$3:$AG$6,'Utility Functions'!$AH$3:$AH$6)","v":1},{"$f":"valuePL(S14,'Utility Functions'!$AI$3:$AI$6,'Utility Functions'!$AJ$3:$AJ$6)","v":1},{"$f":"valuePL(T14,'Utility Functions'!$AK$3:$AK$8,'Utility Functions'!$AL$3:$AL$8)","v":0},{"$f":"valuePL(U14,'Utility Functions'!$AM$3:$AM$5,'Utility Functions'!$AN$3:$AN$5)","v":0},{"$f":"valuePL(V14,'Utility Functions'!$AO$3:$AO$5,'Utility Functions'!$AP$3:$AP$5)","v":0.5},{"$f":"valuePL(W14,'Utility Functions'!$AQ$3:$AQ$6,'Utility Functions'!$AR$3:$AR$6)","v":0},{"$f":"valuePL(X14,'Utility Functions'!$AS$3:$AS$6,'Utility Functions'!$AT$3:$AT$6)","v":0.2},{"$f":"valuePL(Y14,'Utility Functions'!$AU$3:$AU$6,'Utility Functions'!$AV$3:$AV$6)","v":0},{"$f":"valuePL(Z14,'Utility Functions'!$AW$3:$AW$5,'Utility Functions'!$AX$3:$AX$5)","v":1},{"$f":"valuePL(AA14,'Utility Functions'!$AY$3:$AY$6,'Utility Functions'!$AZ$3:$AZ$6)","v":0.2},{"$f":"valuePL(AB14,'Utility Functions'!$BA$3:$BA$5,'Utility Functions'!$BB$3:$BB$5)","v":0.25},{"$f":"valuePL(AC14,'Utility Functions'!$BC$3:$BC$5,'Utility Functions'!$BD$3:$BD$5)","v":0.25},7.5245670174228056,null,7.5245670174228056,0,1.7495670174228048,1.125,2.25,2.4]
[14,{"$f":"valueE(B15,'Utility Functions'!$B$3,'Utility Functions'!$B$4,'Utility Functions'!$B$5,'Utility Functions'!$B$6)","v":0.69880684688087746},{"$f":"valueE(C15,'Utility Functions'!$D$3,'Utility Functions'!$D$4,'Utility Functions'!$D$5,'Utility Functions'!$D$6)","v":0.78989979019422951},{"$f":"valuePL(D15,'Utility Functions'!$E$3:$E$5,'Utility Functions'!$F$3:$F$5)","v":0.5},{"$f":"valuePL(E15,'Utility Functions'!$G$3:$G$5,'Utility Functions'!$H$3:$H$5)","v":0.5},{"$f":"valuePL(F15,'Utility Functions'!$I$3:$I$4,'Utility Functions'!$J$3:$J$5)","v":0},{"$f":"valueE(G15,'Utility Functions'!$L$3,'Utility Functions'!$L$4,'Utility Functions'!$L$5,'Utility Functions'!$L$6)","v":0},{"$f":"valueE(H15,'Utility Functions'!$N$3,'Utility Functions'!$N$4,'Utility Functions'!$N$5,'Utility Functions'!$N$6)","v":0},{"$f":"valuePL(I15,'Utility Functions'!$O$3:$O$6,'Utility Functions'!$P$3:$P$6)","v":0},{"$f":"valuePL(J15,'Utility Functions'!$Q$3:$Q$6,'Utility Functions'!$R$3:$R$6)","v":0},{"$f":"valuePL(K15,'Utility Functions'!$S$3:$S$7,'Utility Functions'!$T$3:$T$7)","v":0},{"$f":"valueE(L15,'Utility Functions'!$V$3,'Utility Functions'!$V$4,'Utility Functions'!$V$5,'Utility Functions'!$V$6)","v":0},{"$f":"valuePL(M15,'Utility Functions'!$W$3:$W$6,'Utility Functions'!$X$3:$X$6)","v":0},{"$f":"valueE(N15,'Utility Functions'!$Z$3,'Utility Functions'!$Z$4,'Utility Functions'!$Z$5,'Utility Functions'!$Z$6)","v":0.75},{"$f":"valuePL(O15,'Utility Functions'!$AA$3:$AA$5,'Utility Functions'!$AB$3:$AB$5)","v":0.25},{"$f":"valuePL(P15,'Utility Functions'!$AC$3:$AC$7,'Utility Functions'!$AD$3:$AD$7)","v":0.25},{"$f":"valuePL(Q15,'Utility Functions'!$AE$3:$AE$6,'Utility Functions'!$AF$3:$AF$6)","v":0},{"$f":"valuePL(R15,'Utility Functions'!$AG$3:$AG$6,'Utility Functions'!$AH$3:$AH$6)","v":1},{"$f":"valuePL(S15,'Utility Functions'!$AI$3:$AI$6,'Utility Functions'!$AJ$3:$AJ$6)","v":1},{"$f":"valuePL(T15,'Utility Functions'!$AK$3:$AK$8,'Utility Functions'!$AL$3:$AL$8)","v":0},{"$f":"valuePL(U15,'Utility Functions'!$AM$3:$AM$5,'Utility Functions'!$AN$3:$AN$5)","v":0},{"$f":"valuePL(V15,'Utility Functions'!$AO$3:$AO$5,'Utility Functions'!$AP$3:$AP$5)","v":0.5},{"$f":"valuePL(W15,'Utility Functions'!$AQ$3:$AQ$6,'Utility Functions'!$AR$3:$AR$6)","v":0.2},{"$f":"valuePL(X15,'Utility Functions'!$AS$3:$AS$6,'Utility Functions'!$AT$3:$AT$6)","v":1},{"$f":"valuePL(Y15,'Utility Functions'!$AU$3:$AU$6,'Utility Functions'!$AV$3:$AV$6)","v":1},{"$f":"valuePL(Z15,'Utility Functions'!$AW$3:$AW$5,'Utility Functions'!$AX$3:$AX$5)","v":0.5},{"$f":"valuePL(AA15,'Utility Functions'!$AY$3:$AY$6,'Utility Functions'!$AZ$3:$AZ$6)","v":0.89999999999999991},{"$f":"valuePL(AB15,'Utility Functions'!$BA$3:$BA$5,'Utility Functions'!$BB$3:$BB$5)","v":0.25},{"$f":"valuePL(AC15,'Utility Functions'!$BC$3:$BC$5,'Utility Functions'!$BD$3:$BD$5)","v":0.25},10.338706637075108,null,10.338706637075106,2.488706637075107,0,1,2.25,4.5999999999999996]
[15,{"$f":"valueE(B16,'Utility Functions'!$B$3,'Utility Functions'!$B$4,'Utility Functions'!$B$5,'Utility Functions'!$B$6)","v":0.98994966417177144},{"$f":"valueE(C16,'Utility Functions'!$D$3,'Utility Functions'!$D$4,'Utility Functions'!$D$5,'Utility Functions'!$D$6)","v":0.71352759724260828},{"$f":"valuePL(D16,'Utility Functions'!$E$3:$E$5,'Utility Functions'!$F$3:$F$5)","v":1},{"$f":"valuePL(E16,'Utility Functions'!$G$3:$G$5,'Utility Functions'!$H$3:$H$5)","v":0.5},{"$f":"valuePL(F16,'Utility Functions'!$I$3:$I$4,'Utility Functions'!$J$3:$J$5)","v":1},{"$f":"valueE(G16,'Utility Functions'!$L$3,'Utility Functions'!$L$4,'Utility Functions'!$L$5,'Utility Functions'!$L$6)","v":0},{"$f":"valueE(H16,'Utility Functions'!$N$3,'Utility Functions'!$N$4,'Utility Functions'!$N$5,'Utility Functions'!$N$6)","v":0},{"$f":"valuePL(I16,'Utility Functions'!$O$3:$O$6,'Utility Functions'!$P$3:$P$6)","v":9.2000000000000012E-2},{"$f":"valuePL(J16,'Utility Functions'!$Q$3:$Q$6,'Utility Functions'!$R$3:$R$6)","v":6.0000000000000012E-2},{"$f":"valuePL(K16,'Utility Functions'!$S$3:$S$7,'Utility Functions'!$T$3:$T$7)","v":6.0000000000000012E-2},{"$f":"valueE(L16,'Utility Functions'!$V$3,'Utility Functions'!$V$4,'Utility Functions'!$V$5,'Utility Functions'!$V$6)","v":1},{"$f":"valuePL(M16,'Utility Functions'!$W$3:$W$6,'Utility Functions'!$X$3:$X$6)","v":6.0000000000000012E-2},{"$f":"valueE(N16,'Utility Functions'!$Z$3,'Utility Functions'!$Z$4,'Utility Functions'!$Z$5,'Utility Functions'!$Z$6)","v":0.125},{"$f":"valuePL(O16,'Utility Functions'!$AA$3:$AA$5,'Utility Functions'!$AB$3:$AB$5)","v":1},{"$f":"valuePL(P16,'Utility Functions'!$AC$3:$AC$7,'Utility Functions'!$AD$3:$AD$7)","v":0.5},{"$f":"valuePL(Q16,'Utility Functions'!$AE$3:$AE$6,'Utility Functions'!$AF$3:$AF$6)","v":0},{"$f":"valuePL(R16,'Utility Functions'!$AG$3:$AG$6,'Utility Functions'!$AH$3:$AH$6)","v":0.8},{"$f":"valuePL(S16,'Utility Functions'!$AI$3:$AI$6,'Utility Functions'!$AJ$3:$AJ$6)","v":1},{"$f":"valuePL(T16,'Utility Functions'!$AK$3:$AK$8,'Utility Functions'!$AL$3:$AL$8)","v":0.6},{"$f":"valuePL(U16,'Utility Functions'!$AM$3:$AM$5,'Utility Functions'!$AN$3:$AN$5)","v":1},{"$f":"valuePL(V16,'Utility Functions'!$AO$3:$AO$5,'Utility Functions'!$AP$3:$AP$5)","v":0},{"$f":"valuePL(W16,'Utility Functions'!$AQ$3:$AQ$6,'Utility Functions'!$AR$3:$AR$6)","v":1},{"$f":"valuePL(X16,'Utility Functions'!$AS$3:$AS$6,'Utility Functions'!$AT$3:$AT$6)","v":0.2},{"$f":"valuePL(Y16,'Utility Functions'!$AU$3:$AU$6,'Utility Functions'!$AV$3:$AV$6)","v":0.2},{"$f":"valuePL(Z16,'Utility Functions'!$AW$3:$AW$5,'Utility Functions'!$AX$3:$AX$5)","v":1},{"$f":"valuePL(AA16,'Utility Functions'!$AY$3:$AY$6,'Utility Functions'!$AZ$3:$AZ$6)","v":1},{"$f":"valuePL(AB16,'Utility Functions'!$BA$3:$BA$5,'Utility Functions'!$BB$3:$BB$5)","v":1},{"$f":"valuePL(AC16,'Utility Functions'!$BC$3:$BC$5,'Utility Functions'!$BD$3:$BD$5)","v":0.25},15.150477261414375,null,15.15047726141438,4.2034772614143794,1.272,1.125,3.9,4.6500000000000004]
[16,{"$f":"valueE(B17,'Utility Functions'!$B$3,'Utility Functions'!$B$4,'Utility Functions'!$B$5,'Utility Functions'!$B$6)","v":0},{"$f":"valueE(C17,'Utility Functions'!$D$3,'Utility Functions'!$D$4,'Utility Functions'!$D$5,'Utility Functions'!$D$6)","v":0},{"$f":"valuePL(D17,'Utility Functions'!$E$3:$E$5,'Utility Functions'!$F$3:$F$5)","v":0},{"$f":"valuePL(E17,'Utility Functions'!$G$3:$G$5,'Utility Functions'!$H$3:$H$5)","v":0},{"$f":"valuePL(F17,'Utility Functions'!$I$3:$I$4,'Utility Functions'!$J$3:$J$5)","v":0},{"$f":"valueE(G17,'Utility Functions'!$L$3,'Utility Functions'!$L$4,'Utility Functions'!$L$5,'Utility Functions'!$L$6)","v":0},{"$f":"valueE(H17,'Utility Functions'!$N$3,'Utility Functions'!$N$4,'Utility Functions'!$N$5,'Utility Functions'!$N$6)","v":0},{"$f":"valuePL(I17,'Utility Functions'!$O$3:$O$6,'Utility Functions'!$P$3:$P$6)","v":1},{"$f":"valuePL(J17,'Utility Functions'!$Q$3:$Q$6,'Utility Functions'!$R$3:$R$6)","v":0.91818181818181821},{"$f":"valuePL(K17,'Utility Functions'!$S$3:$S$7,'Utility Functions'!$T$3:$T$7)","v":1},{"$f":"valueE(L17,'Utility Functions'!$V$3,'Utility Functions'!$V$4,'Utility Functions'!$V$5,'Utility Functions'!$V$6)","v":0.83333333333333337},{"$f":"valuePL(M17,'Utility Functions'!$W$3:$W$6,'Utility Functions'!$X$3:$X$6)","v":0.91818181818181821},{"$f":"valueE(N17,'Utility Functions'!$Z$3,'Utility Functions'!$Z$4,'Utility Functions'!$Z$5,'Utility Functions'!$Z$6)","v":0},{"$f":"valuePL(O17,'Utility Functions'!$AA$3:$AA$5,'Utility Functions'!$AB$3:$AB$5)","v":0},{"$f":"valuePL(P17,'Utility Functions'!$AC$3:$AC$7,'Utility Functions'!$AD$3:$AD$7)","v":0.75},{"$f":"valuePL(Q17,'Utility Functions'!$AE$3:$AE$6,'Utility Functions'!$AF$3:$AF$6)","v":0},{"$f":"valuePL(R17,'Utility Functions'!$AG$3:$AG$6,'Utility Functions'!$AH$3:$AH$6)","v":1},{"$f":"valuePL(S17,'Utility Functions'!$AI$3:$AI$6,'Utility Functions'!$AJ$3:$AJ$6)","v":1},{"$f":"valuePL(T17,'Utility Functions'!$AK$3:$AK$8,'Utility Functions'!$AL$3:$AL$8)","v":1},{"$f":"valuePL(U17,'Utility Functions'!$AM$3:$AM$5,'Utility Functions'!$AN$3:$AN$5)","v":0},{"$f":"valuePL(V17,'Utility Functions'!$AO$3:$AO$5,'Utility Functions'!$AP$3:$AP$5)","v":1},{"$f":"valuePL(W17,'Utility Functions'!$AQ$3:$AQ$6,'Utility Functions'!$AR$3:$AR$6)","v":0.75},{"$f":"valuePL(X17,'Utility Functions'!$AS$3:$AS$6,'Utility Functions'!$AT$3:$AT$6)","v":0.75},{"$f":"valuePL(Y17,'Utility Functions'!$AU$3:$AU$6,'Utility Functions'!$AV$3:$AV$6)","v":0.2},{"$f":"valuePL(Z17,'Utility Functions'!$AW$3:$AW$5,'Utility Functions'!$AX$3:$AX$5)","v":1},{"$f":"valuePL(AA17,'Utility Functions'!$AY$3:$AY$6,'Utility Functions'!$AZ$3:$AZ$6)","v":1},{"$f":"valuePL(AB17,'Utility Functions'!$BA$3:$BA$5,'Utility Functions'!$BB$3:$BB$5)","v":1},{"$f":"valuePL(AC17,'Utility Functions'!$BC$3:$BC$5,'Utility Functions'!$BD$3:$BD$5)","v":1},15.119696969696969,null,15.119696969696971,0,4.6696969696969699,0,3.75,6.7]
[17,{"$f":"valueE(B18,'Utility Functions'!$B$3,'Utility Functions'!$B$4,'Utility Functions'!$B$5,'Utility Functions'!$B$6)","v":0.32968045347775865},{"$f":"valueE(C18,'Utility Functions'!$D$3,'Utility Functions'!$D$4,'Utility Functions'!$D$5,'Utility Functions'!$D$6)","v":0.78989979019422951},{"$f":"valuePL(D18,'Utility Functions'!$E$3:$E$5,'Utility Functions'!$F$3:$F$5)","v":1},{"$f":"valuePL(E18,'Utility Functions'!$G$3:$G$5,'Utility Functions'!$H$3:$H$5)","v":0.5},{"$f":"valuePL(F18,'Utility Functions'!$I$3:$I$4,'Utility Functions'!$J$3:$J$5)","v":1},{"$f":"valueE(G18,'Utility Functions'!$L$3,'Utility Functions'!$L$4,'Utility Functions'!$L$5,'Utility Functions'!$L$6)","v":0.31182795698924731},{"$f":"valueE(H18,'Utility Functions'!$N$3,'Utility Functions'!$N$4,'Utility Functions'!$N$5,'Utility Functions'!$N$6)","v":0.27514231499051234},{"$f":"valuePL(I18,'Utility Functions'!$O$3:$O$6,'Utility Functions'!$P$3:$P$6)","v":0},{"$f":"valuePL(J18,'Utility Functions'!$Q$3:$Q$6,'Utility Functions'!$R$3:$R$6)","v":0},{"$f":"valuePL(K18,'Utility Functions'!$S$3:$S$7,'Utility Functions'!$T$3:$T$7)","v":0},{"$f":"valueE(L18,'Utility Functions'!$V$3,'Utility Functions'!$V$4,'Utility Functions'!$V$5,'Utility Functions'!$V$6)","v":1},{"$f":"valuePL(M18,'Utility Functions'!$W$3:$W$6,'Utility Functions'!$X$3:$X$6)","v":6.0000000000000012E-2},{"$f":"valueE(N18,'Utility Functions'!$Z$3,'Utility Functions'!$Z$4,'Utility Functions'!$Z$5,'Utility Functions'!$Z$6)","v":0},{"$f":"valuePL(O18,'Utility Functions'!$AA$3:$AA$5,'Utility Functions'!$AB$3:$AB$5)","v":0},{"$f":"valuePL(P18,'Utility Functions'!$AC$3:$AC$7,'Utility Functions'!$AD$3:$AD$7)","v":0},{"$f":"valuePL(Q18,'Utility Functions'!$AE$3:$AE$6,'Utility Functions'!$AF$3:$AF$6)","v":0},{"$f":"valuePL(R18,'Utility Functions'!$AG$3:$AG$6,'Utility Functions'!$AH$3:$AH$6)","v":1},{"$f":"valuePL(S18,'Utility Functions'!$AI$3:$AI$6,'Utility Functions'!$AJ$3:$AJ$6)","v":0.66},{"$f":"valuePL(T18,'Utility Functions'!$AK$3:$AK$8,'Utility Functions'!$AL$3:$AL$8)","v":0},{"$f":"valuePL(U18,'Utility Functions'!$AM$3:$AM$5,'Utility Functions'!$AN$3:$AN$5)","v":0},{"$f":"valuePL(V18,'Utility Functions'!$AO$3:$AO$5,'Utility Functions'!$AP$3:$AP$5)","v":1},{"$f":"valuePL(W18,'Utility Functions'!$AQ$3:$AQ$6,'Utility Functions'!$AR$3:$AR$6)","v":1},{"$f":"valuePL(X18,'Utility Functions'!$AS$3:$AS$6,'Utility Functions'!$AT$3:$AT$6)","v":0.2},{"$f":"valuePL(Y18,'Utility Functions'!$AU$3:$AU$6,'Utility Functions'!$AV$3:$AV$6)","v":0},{"$f":"valuePL(Z18,'Utility Functions'!$AW$3:$AW$5,'Utility Functions'!$AX$3:$AX$5)","v":0.5},{"$f":"valuePL(AA18,'Utility Functions'!$AY$3:$AY$6,'Utility Functions'!$AZ$3:$AZ$6)","v":0},{"$f":"valuePL(AB18,'Utility Functions'!$BA$3:$BA$5,'Utility Functions'!$BB$3:$BB$5)","v":1},{"$f":"valuePL(AC18,'Utility Functions'!$BC$3:$BC$5,'Utility Functions'!$BD$3:$BD$5)","v":0.25},10.876550515651747,null,10.876550515651747,3.6195802436719884,1.6469702719797596,0,1.6600000000000001,3.95]
[18,{"$f":"valueE(B19,'Utility Functions'!$B$3,'Utility Functions'!$B$4,'Utility Functions'!$B$5,'Utility Functions'!$B$6)","v":0},{"$f":"valueE(C19,'Utility Functions'!$D$3,'Utility Functions'!$D$4,'Utility Functions'!$D$5,'Utility Functions'!$D$6)","v":0},{"$f":"valuePL(D19,'Utility Functions'!$E$3:$E$5,'Utility Functions'!$F$3:$F$5)","v":0},{"$f":"valuePL(E19,'Utility Functions'!$G$3:$G$5,'Utility Functions'!$H$3:$H$5)","v":0},{"$f":"valuePL(F19,'Utility Functions'!$I$3:$I$4,'Utility Functions'!$J$3:$J$5)","v":0},{"$f":"valueE(G19,'Utility Functions'!$L$3,'Utility Functions'!$L$4,'Utility Functions'!$L$5,'Utility Functions'!$L$6)","v":0},{"$f":"valueE(H19,'Utility Functions'!$N$3,'Utility Functions'!$N$4,'Utility Functions'!$N$5,'Utility Functions'!$N$6)","v":2.8462998102466792E-2},{"$f":"valuePL(I19,'Utility Functions'!$O$3:$O$6,'Utility Functions'!$P$3:$P$6)","v":0},{"$f":"valuePL(J19,'Utility Functions'!$Q$3:$Q$6,'Utility Functions'!$R$3:$R$6)","v":0},{"$f":"valuePL(K19,'Utility Functions'!$S$3:$S$7,'Utility Functions'!$T$3:$T$7)","v":0},{"$f":"valueE(L19,'Utility Functions'!$V$3,'Utility Functions'!$V$4,'Utility Functions'!$V$5,'Utility Functions'!$V$6)","v":0},{"$f":"valuePL(M19,'Utility Functions'!$W$3:$W$6,'Utility Functions'!$X$3:$X$6)","v":0},{"$f":"valueE(N19,'Utility Functions'!$Z$3,'Utility Functions'!$Z$4,'Utility Functions'!$Z$5,'Utility Functions'!$Z$6)","v":1},{"$f":"valuePL(O19,'Utility Functions'!$AA$3:$AA$5,'Utility Functions'!$AB$3:$AB$5)","v":0.25},{"$f":"valuePL(P19,'Utility Functions'!$AC$3:$AC$7,'Utility Functions'!$AD$3:$AD$7)","v":0.25},{"$f":"valuePL(Q19,'Utility Functions'!$AE$3:$AE$6,'Utility Functions'!$AF$3:$AF$6)","v":1},{"$f":"valuePL(R19,'Utility Functions'!$AG$3:$AG$6,'Utility Functions'!$AH$3:$AH$6)","v":1},{"$f":"valuePL(S19,'Utility Functions'!$AI$3:$AI$6,'Utility Functions'!$AJ$3:$AJ$6)","v":1},{"$f":"valuePL(T19,'Utility Functions'!$AK$3:$AK$8,'Utility Functions'!$AL$3:$AL$8)","v":1},{"$f":"valuePL(U19,'Utility Functions'!$AM$3:$AM$5,'Utility Functions'!$AN$3:$AN$5)","v":0.25},{"$f":"valuePL(V19,'Utility Functions'!$AO$3:$AO$5,'Utility Functions'!$AP$3:$AP$5)","v":1},{"$f":"valuePL(W19,'Utility Functions'!$AQ$3:$AQ$6,'Utility Functions'!$AR$3:$AR$6)","v":0.75},{"$f":"valuePL(X19,'Utility Functions'!$AS$3:$AS$6,'Utility Functions'!$AT$3:$AT$6)","v":0.2},{"$f":"valuePL(Y19,'Utility Functions'!$AU$3:$AU$6,'Utility Functions'!$AV$3:$AV$6)","v":0.8},{"$f":"valuePL(Z19,'Utility Functions'!$AW$3:$AW$5,'Utility Functions'!$AX$3:$AX$5)","v":0.5},{"$f":"valuePL(AA19,'Utility Functions'!$AY$3:$AY$6,'Utility Functions'!$AZ$3:$AZ$6)","v":0.89999999999999991},{"$f":"valuePL(AB19,'Utility Functions'!$BA$3:$BA$5,'Utility Functions'!$BB$3:$BB$5)","v":0.25},{"$f":"valuePL(AC19,'Utility Functions'!$BC$3:$BC$5,'Utility Functions'!$BD$3:$BD$5)","v":0},10.178462998102468,null,10.178462998102468,0,2.8462998102466792E-2,1.25,4.5,4.4000000000000004]
[19,{"$f":"valueE(B20,'Utility Functions'!$B$3,'Utility Functions'!$B$4,'Utility Functions'!$B$5,'Utility Functions'!$B$6)","v":0.79810469124896843},{"$f":"valueE(C20,'Utility Functions'!$D$3,'Utility Functions'!$D$4,'Utility Functions'!$D$5,'Utility Functions'!$D$6)","v":0.26839655623815994},{"$f":"valuePL(D20,'Utility Functions'!$E$3:$E$5,'Utility Functions'!$F$3:$F$5)","v":0.5},{"$f":"valuePL(E20,'Utility Functions'!$G$3:$G$5,'Utility Functions'!$H$3:$H$5)","v":1},{"$f":"valuePL(F20,'Utility Functions'!$I$3:$I$4,'Utility Functions'!$J$3:$J$5)","v":0},{"$f":"valueE(G20,'Utility Functions'!$L$3,'Utility Functions'!$L$4,'Utility Functions'!$L$5,'Utility Functions'!$L$6)","v":0},{"$f":"valueE(H20,'Utility Functions'!$N$3,'Utility Functions'!$N$4,'Utility Functions'!$N$5,'Utility Functions'!$N$6)","v":0},{"$f":"valuePL(I20,'Utility Functions'!$O$3:$O$6,'Utility Functions'!$P$3:$P$6)","v":0},{"$f":"valuePL(J20,'Utility Functions'!$Q$3:$Q$6,'Utility Functions'!$R$3:$R$6)","v":0},{"$f":"valuePL(K20,'Utility Functions'!$S$3:$S$7,'Utility Functions'!$T$3:$T$7)","v":0},{"$f":"valueE(L20,'Utility Functions'!$V$3,'Utility Functions'!$V$4,'Utility Functions'!$V$5,'Utility Functions'!$V$6)","v":0},{"$f":"valuePL(M20,'Utility Functions'!$W$3:$W$6,'Utility Functions'!$X$3:$X$6)","v":0},{"$f":"valueE(N20,'Utility Functions'!$Z$3,'Utility Functions'!$Z$4,'Utility Functions'!$Z$5,'Utility Functions'!$Z$6)","v":1},{"$f":"valuePL(O20,'Utility Functions'!$AA$3:$AA$5,'Utility Functions'!$AB$3:$AB$5)","v":1},{"$f":"valuePL(P20,'Utility Functions'!$AC$3:$AC$7,'Utility Functions'!$AD$3:$AD$7)","v":0},{"$f":"valuePL(Q20,'Utility Functions'!$AE$3:$AE$6,'Utility Functions'!$AF$3:$AF$6)","v":0},{"$f":"valuePL(R20,'Utility Functions'!$AG$3:$AG$6,'Utility Functions'!$AH$3:$AH$6)","v":0.8},{"$f":"valuePL(S20,'Utility Functions'!$AI$3:$AI$6,'Utility Functions'!$AJ$3:$AJ$6)","v":1},{"$f":"valuePL(T20,'Utility Functions'!$AK$3:$AK$8,'Utility Functions'!$AL$3:$AL$8)","v":0},{"$f":"valuePL(U20,'Utility Functions'!$AM$3:$AM$5,'Utility Functions'!$AN$3:$AN$5)","v":0},{"$f":"valuePL(V20,'Utility Functions'!$AO$3:$AO$5,'Utility Functions'!$AP$3:$AP$5)","v":0.5},{"$f":"valuePL(W20,'Utility Functions'!$AQ$3:$AQ$6,'Utility Functions'!$AR$3:$AR$6)","v":0.2},{"$f":"valuePL(X20,'Utility Functions'!$AS$3:$AS$6,'Utility Functions'!$AT$3:$AT$6)","v":1},{"$f":"valuePL(Y20,'Utility Functions'!$AU$3:$AU$6,'Utility Functions'!$AV$3:$AV$6)","v":0.8},{"$f":"valuePL(Z20,'Utility Functions'!$AW$3:$AW$5,'Utility Functions'!$AX$3:$AX$5)","v":0},{"$f":"valuePL(AA20,'Utility Functions'!$AY$3:$AY$6,'Utility Functions'!$AZ$3:$AZ$6)","v":0.2},{"$f":"valuePL(AB20,'Utility Functions'!$BA$3:$BA$5,'Utility Functions'!$BB$3:$BB$5)","v":0},{"$f":"valuePL(AC20,'Utility Functions'!$BC$3:$BC$5,'Utility Functions'!$BD$3:$BD$5)","v":0.25},9.3165012474871283,null,9.3165012474871283,2.5665012474871283,0,2,1.8,2.95]
[20,{"$f":"valueE(B21,'Utility Functions'!$B$3,'Utility Functions'!$B$4,'Utility Functions'!$B$5,'Utility Functions'!$B$6)","v":0.83470237647280454},{"$f":"valueE(C21,'Utility Functions'!$D$3,'Utility Functions'!$D$4,'Utility Functions'!$D$5,'Utility Functions'!$D$6)","v":0.78989979019422951},{"$f":"valuePL(D21,'Utility Functions'!$E$3:$E$5,'Utility Functions'!$F$3:$F$5)","v":0.5},{"$f":"valuePL(E21,'Utility Functions'!$G$3:$G$5,'Utility Functions'!$H$3:$H$5)","v":1},{"$f":"valuePL(F21,'Utility Functions'!$I$3:$I$4,'Utility Functions'!$J$3:$J$5)","v":0},{"$f":"valueE(G21,'Utility Functions'!$L$3,'Utility Functions'!$L$4,'Utility Functions'!$L$5,'Utility Functions'!$L$6)","v":0},{"$f":"valueE(H21,'Utility Functions'!$N$3,'Utility Functions'!$N$4,'Utility Functions'!$N$5,'Utility Functions'!$N$6)","v":0.41271347248576851},{"$f":"valuePL(I21,'Utility Functions'!$O$3:$O$6,'Utility Functions'!$P$3:$P$6)","v":0.93454545454545446},{"$f":"valuePL(J21,'Utility Functions'!$Q$3:$Q$6,'Utility Functions'!$R$3:$R$6)","v":0.50909090909090915},{"$f":"valuePL(K21,'Utility Functions'!$S$3:$S$7,'Utility Functions'!$T$3:$T$7)","v":0.93454545454545446},{"$f":"valueE(L21,'Utility Functions'!$V$3,'Utility Functions'!$V$4,'Utility Functions'!$V$5,'Utility Functions'!$V$6)","v":0.66666666666666663},{"$f":"valuePL(M21,'Utility Functions'!$W$3:$W$6,'Utility Functions'!$X$3:$X$6)","v":0.50909090909090915},{"$f":"valueE(N21,'Utility Functions'!$Z$3,'Utility Functions'!$Z$4,'Utility Functions'!$Z$5,'Utility Functions'!$Z$6)","v":1},{"$f":"valuePL(O21,'Utility Functions'!$AA$3:$AA$5,'Utility Functions'!$AB$3:$AB$5)","v":1},{"$f":"valuePL(P21,'Utility Functions'!$AC$3:$AC$7,'Utility Functions'!$AD$3:$AD$7)","v":0.25},{"$f":"valuePL(Q21,'Utility Functions'!$AE$3:$AE$6,'Utility Functions'!$AF$3:$AF$6)","v":0},{"$f":"valuePL(R21,'Utility Functions'!$AG$3:$AG$6,'Utility Functions'!$AH$3:$AH$6)","v":1},{"$f":"valuePL(S21,'Utility Functions'!$AI$3:$AI$6,'Utility Functions'!$AJ$3:$AJ$6)","v":1},{"$f":"valuePL(T21,'Utility Functions'!$AK$3:$AK$8,'Utility Functions'!$AL$3:$AL$8)","v":0.6},{"$f":"valuePL(U21,'Utility Functions'!$AM$3:$AM$5,'Utility Functions'!$AN$3:$AN$5)","v":1},{"$f":"valuePL(V21,'Utility Functions'!$AO$3:$AO$5,'Utility Functions'!$AP$3:$AP$5)","v":0.5},{"$f":"valuePL(W21,'Utility Functions'!$AQ$3:$AQ$6,'Utility Functions'!$AR$3:$AR$6)","v":0},{"$f":"valuePL(X21,'Utility Functions'!$AS$3:$AS$6,'Utility Functions'!$AT$3:$AT$6)","v":0},{"$f":"valuePL(Y21,'Utility Functions'!$AU$3:$AU$6,'Utility Functions'!$AV$3:$AV$6)","v":0.2},{"$f":"valuePL(Z21,'Utility Functions'!$AW$3:$AW$5,'Utility Functions'!$AX$3:$AX$5)","v":1},{"$f":"valuePL(AA21,'Utility Functions'!$AY$3:$AY$6,'Utility Functions'!$AZ$3:$AZ$6)","v":0.2},{"$f":"valuePL(AB21,'Utility Functions'!$BA$3:$BA$5,'Utility Functions'!$BB$3:$BB$5)","v":0},{"$f":"valuePL(AC21,'Utility Functions'!$BC$3:$BC$5,'Utility Functions'!$BD$3:$BD$5)","v":0.25},15.091255033092194,null,15.091255033092196,3.1246021666670343,3.9666528664251626,2,3.85,2.15]
[21,{"$f":"valueE(B22,'Utility Functions'!$B$3,'Utility Functions'!$B$4,'Utility Functions'!$B$5,'Utility Functions'!$B$6)","v":0},{"$f":"valueE(C22,'Utility Functions'!$D$3,'Utility Functions'!$D$4,'Utility Functions'!$D$5,'Utility Functions'!$D$6)","v":0},{"$f":"valuePL(D22,'Utility Functions'!$E$3:$E$5,'Utility Functions'!$F$3:$F$5)","v":0},{"$f":"valuePL(E22,'Utility Functions'!$G$3:$G$5,'Utility Functions'!$H$3:$H$5)","v":0},{"$f":"valuePL(F22,'Utility Functions'!$I$3:$I$4,'Utility Functions'!$J$3:$J$5)","v":0},{"$f":"valueE(G22,'Utility Functions'!$L$3,'Utility Functions'!$L$4,'Utility Functions'!$L$5,'Utility Functions'!$L$6)","v":0},{"$f":"valueE(H22,'Utility Functions'!$N$3,'Utility Functions'!$N$4,'Utility Functions'!$N$5,'Utility Functions'!$N$6)","v":0},{"$f":"valuePL(I22,'Utility Functions'!$O$3:$O$6,'Utility Functions'!$P$3:$P$6)","v":0},{"$f":"valuePL(J22,'Utility Functions'!$Q$3:$Q$6,'Utility Functions'!$R$3:$R$6)","v":0},{"$f":"valuePL(K22,'Utility Functions'!$S$3:$S$7,'Utility Functions'!$T$3:$T$7)","v":0},{"$f":"valueE(L22,'Utility Functions'!$V$3,'Utility Functions'!$V$4,'Utility Functions'!$V$5,'Utility Functions'!$V$6)","v":0},{"$f":"valuePL(M22,'Utility Functions'!$W$3:$W$6,'Utility Functions'!$X$3:$X$6)","v":0},{"$f":"valueE(N22,'Utility Functions'!$Z$3,'Utility Functions'!$Z$4,'Utility Functions'!$Z$5,'Utility Functions'!$Z$6)","v":1},{"$f":"valuePL(O22,'Utility Functions'!$AA$3:$AA$5,'Utility Functions'!$AB$3:$AB$5)","v":1},{"$f":"valuePL(P22,'Utility Functions'!$AC$3:$AC$7,'Utility Functions'!$AD$3:$AD$7)","v":0},{"$f":"valuePL(Q22,'Utility Functions'!$AE$3:$AE$6,'Utility Functions'!$AF$3:$AF$6)","v":0.1},{"$f":"valuePL(R22,'Utility Functions'!$AG$3:$AG$6,'Utility Functions'!$AH$3:$AH$6)","v":1},{"$f":"valuePL(S22,'Utility Functions'!$AI$3:$AI$6,'Utility Functions'!$AJ$3:$AJ$6)","v":1},{"$f":"valuePL(T22,'Utility Functions'!$AK$3:$AK$8,'Utility Functions'!$AL$3:$AL$8)","v":1},{"$f":"valuePL(U22,'Utility Functions'!$AM$3:$AM$5,'Utility Functions'!$AN$3:$AN$5)","v":0.25},{"$f":"valuePL(V22,'Utility Functions'!$AO$3:$AO$5,'Utility Functions'!$AP$3:$AP$5)","v":0},{"$f":"valuePL(W22,'Utility Functions'!$AQ$3:$AQ$6,'Utility Functions'!$AR$3:$AR$6)","v":0.75},{"$f":"valuePL(X22,'Utility Functions'!$AS$3:$AS$6,'Utility Functions'!$AT$3:$AT$6)","v":1},{"$f":"valuePL(Y22,'Utility Functions'!$AU$3:$AU$6,'Utility Functions'!$AV$3:$AV$6)","v":0.2},{"$f":"valuePL(Z22,'Utility Functions'!$AW$3:$AW$5,'Utility Functions'!$AX$3:$AX$5)","v":0},{"$f":"valuePL(AA22,'Utility Functions'!$AY$3:$AY$6,'Utility Functions'!$AZ$3:$AZ$6)","v":1},{"$f":"valuePL(AB22,'Utility Functions'!$BA$3:$BA$5,'Utility Functions'!$BB$3:$BB$5)","v":0.25},{"$f":"valuePL(AC22,'Utility Functions'!$BC$3:$BC$5,'Utility Functions'!$BD$3:$BD$5)","v":1},9.5500000000000007,null,9.5500000000000007,0,0,2,3.35,4.2]
[22,{"$f":"valueE(B23,'Utility Functions'!$B$3,'Utility Functions'!$B$4,'Utility Functions'!$B$5,'Utility Functions'!$B$6)","v":0},{"$f":"valueE(C23,'Utility Functions'!$D$3,'Utility Functions'!$D$4,'Utility Functions'!$D$5,'Utility Functions'!$D$6)","v":0},{"$f":"valuePL(D23,'Utility Functions'!$E$3:$E$5,'Utility Functions'!$F$3:$F$5)","v":0},{"$f":"valuePL(E23,'Utility Functions'!$G$3:$G$5,'Utility Functions'!$H$3:$H$5)","v":0},{"$f":"valuePL(F23,'Utility Functions'!$I$3:$I$4,'Utility Functions'!$J$3:$J$5)","v":0},{"$f":"valueE(G23,'Utility Functions'!$L$3,'Utility Functions'!$L$4,'Utility Functions'!$L$5,'Utility Functions'!$L$6)","v":8.6021505376344093E-2},{"$f":"valueE(H23,'Utility Functions'!$N$3,'Utility Functions'!$N$4,'Utility Functions'!$N$5,'Utility Functions'!$N$6)","v":6.0721062618595827E-2},{"$f":"valuePL(I23,'Utility Functions'!$O$3:$O$6,'Utility Functions'!$P$3:$P$6)","v":0},{"$f":"valuePL(J23,'Utility Functions'!$Q$3:$Q$6,'Utility Functions'!$R$3:$R$6)","v":0},{"$f":"valuePL(K23,'Utility Functions'!$S$3:$S$7,'Utility Functions'!$T$3:$T$7)","v":0},{"$f":"valueE(L23,'Utility Functions'!$V$3,'Utility Functions'!$V$4,'Utility Functions'!$V$5,'Utility Functions'!$V$6)","v":0},{"$f":"valuePL(M23,'Utility Functions'!$W$3:$W$6,'Utility Functions'!$X$3:$X$6)","v":0},{"$f":"valueE(N23,'Utility Functions'!$Z$3,'Utility Functions'!$Z$4,'Utility Functions'!$Z$5,'Utility Functions'!$Z$6)","v":0.125},{"$f":"valuePL(O23,'Utility Functions'!$AA$3:$AA$5,'Utility Functions'!$AB$3:$AB$5)","v":1},{"$f":"valuePL(P23,'Utility Functions'!$AC$3:$AC$7,'Utility Functions'!$AD$3:$AD$7)","v":1},{"$f":"valuePL(Q23,'Utility Functions'!$AE$3:$AE$6,'Utility Functions'!$AF$3:$AF$6)","v":0.5},{"$f":"valuePL(R23,'Utility Functions'!$AG$3:$AG$6,'Utility Functions'!$AH$3:$AH$6)","v":0.8},{"$f":"valuePL(S23,'Utility Functions'!$AI$3:$AI$6,'Utility Functions'!$AJ$3:$AJ$6)","v":1},{"$f":"valuePL(T23,'Utility Functions'!$AK$3:$AK$8,'Utility Functions'!$AL$3:$AL$8)","v":1},{"$f":"valuePL(U23,'Utility Functions'!$AM$3:$AM$5,'Utility Functions'!$AN$3:$AN$5)","v":0},{"$f":"valuePL(V23,'Utility Functions'!$AO$3:$AO$5,'Utility Functions'!$AP$3:$AP$5)","v":0.5},{"$f":"valuePL(W23,'Utility Functions'!$AQ$3:$AQ$6,'Utility Functions'!$AR$3:$AR$6)","v":0.75},{"$f":"valuePL(X23,'Utility Functions'!$AS$3:$AS$6,'Utility Functions'!$AT$3:$AT$6)","v":0.2},{"$f":"valuePL(Y23,'Utility Functions'!$AU$3:$AU$6,'Utility Functions'!$AV$3:$AV$6)","v":0},{"$f":"valuePL(Z23,'Utility Functions'!$AW$3:$AW$5,'Utility Functions'!$AX$3:$AX$5)","v":1},{"$f":"valuePL(AA23,'Utility Functions'!$AY$3:$AY$6,'Utility Functions'!$AZ$3:$AZ$6)","v":0.2},{"$f":"valuePL(AB23,'Utility Functions'!$BA$3:$BA$5,'Utility Functions'!$BB$3:$BB$5)","v":1},{"$f":"valuePL(AC23,'Utility Functions'!$BC$3:$BC$5,'Utility Functions'!$BD$3:$BD$5)","v":0.25},9.471742567994939,null,9.4717425679949407,0,0.14674256799493993,1.125,4.3,3.9000000000000004]
[23,{"$f":"valueE(B24,'Utility Functions'!$B$3,'Utility Functions'!$B$4,'Utility Functions'!$B$5,'Utility Functions'!$B$6)","v":0.83470237647280454},{"$f":"valueE(C24,'Utility Functions'!$D$3,'Utility Functions'!$D$4,'Utility Functions'!$D$5,'Utility Functions'!$D$6)","v":0.84744836833951609},{"$f":"valuePL(D24,'Utility Functions'!$E$3:$E$5,'Utility Functions'!$F$3:$F$5)","v":1},{"$f":"valuePL(E24,'Utility Functions'!$G$3:$G$5,'Utility Functions'!$H$3:$H$5)","v":0},{"$f":"valuePL(F24,'Utility Functions'!$I$3:$I$4,'Utility Functions'!$J$3:$J$5)","v":0},{"$f":"valueE(G24,'Utility Functions'!$L$3,'Utility Functions'!$L$4,'Utility Functions'!$L$5,'Utility Functions'!$L$6)","v":0},{"$f":"valueE(H24,'Utility Functions'!$N$3,'Utility Functions'!$N$4,'Utility Functions'!$N$5,'Utility Functions'!$N$6)","v":0},{"$f":"valuePL(I24,'Utility Functions'!$O$3:$O$6,'Utility Functions'!$P$3:$P$6)","v":0},{"$f":"valuePL(J24,'Utility Functions'!$Q$3:$Q$6,'Utility Functions'!$R$3:$R$6)","v":0},{"$f":"valuePL(K24,'Utility Functions'!$S$3:$S$7,'Utility Functions'!$T$3:$T$7)","v":0},{"$f":"valueE(L24,'Utility Functions'!$V$3,'Utility Functions'!$V$4,'Utility Functions'!$V$5,'Utility Functions'!$V$6)","v":0},{"$f":"valuePL(M24,'Utility Functions'!$W$3:$W$6,'Utility Functions'!$X$3:$X$6)","v":0},{"$f":"valueE(N24,'Utility Functions'!$Z$3,'Utility Functions'!$Z$4,'Utility Functions'!$Z$5,'Utility Functions'!$Z$6)","v":0},{"$f":"valuePL(O24,'Utility Functions'!$AA$3:$AA$5,'Utility Functions'!$AB$3:$AB$5)","v":0},{"$f":"valuePL(P24,'Utility Functions'!$AC$3:$AC$7,'Utility Functions'!$AD$3:$AD$7)","v":0.75},{"$f":"valuePL(Q24,'Utility Functions'!$AE$3:$AE$6,'Utility Functions'!$AF$3:$AF$6)","v":0},{"$f":"valuePL(R24,'Utility Functions'!$AG$3:$AG$6,'Utility Functions'!$AH$3:$AH$6)","v":1},{"$f":"valuePL(S24,'Utility Functions'!$AI$3:$AI$6,'Utility Functions'!$AJ$3:$AJ$6)","v":1},{"$f":"valuePL(T24,'Utility Functions'!$AK$3:$AK$8,'Utility Functions'!$AL$3:$AL$8)","v":1},{"$f":"valuePL(U24,'Utility Functions'!$AM$3:$AM$5,'Utility Functions'!$AN$3:$AN$5)","v":0},{"$f":"valuePL(V24,'Utility Functions'!$AO$3:$AO$5,'Utility Functions'!$AP$3:$AP$5)","v":1},{"$f":"valuePL(W24,'Utility Functions'!$AQ$3:$AQ$6,'Utility Functions'!$AR$3:$AR$6)","v":0.2},{"$f":"valuePL(X24,'Utility Functions'!$AS$3:$AS$6,'Utility Functions'!$AT$3:$AT$6)","v":0.75},{"$f":"valuePL(Y24,'Utility Functions'!$AU$3:$AU$6,'Utility Functions'!$AV$3:$AV$6)","v":0.2},{"$f":"valuePL(Z24,'Utility Functions'!$AW$3:$AW$5,'Utility Functions'!$AX$3:$AX$5)","v":0.5},{"$f":"valuePL(AA24,'Utility Functions'!$AY$3:$AY$6,'Utility Functions'!$AZ$3:$AZ$6)","v":0.2},{"$f":"valuePL(AB24,'Utility Functions'!$BA$3:$BA$5,'Utility Functions'!$BB$3:$BB$5)","v":0},{"$f":"valuePL(AC24,'Utility Functions'!$BC$3:$BC$5,'Utility Functions'!$BD$3:$BD$5)","v":0.25},9.5321507448123199,null,9.5321507448123199,2.6821507448123207,0,0,3.75,3.1]
[24,{"$f":"valueE(B25,'Utility Functions'!$B$3,'Utility Functions'!$B$4,'Utility Functions'!$B$5,'Utility Functions'!$B$6)","v":0.63212151658375171},{"$f":"valueE(C25,'Utility Functions'!$D$3,'Utility Functions'!$D$4,'Utility Functions'!$D$5,'Utility Functions'!$D$6)","v":0.46475967153745396},{"$f":"valuePL(D25,'Utility Functions'!$E$3:$E$5,'Utility Functions'!$F$3:$F$5)","v":1},{"$f":"valuePL(E25,'Utility Functions'!$G$3:$G$5,'Utility Functions'!$H$3:$H$5)","v":0},{"$f":"valuePL(F25,'Utility Functions'!$I$3:$I$4,'Utility Functions'!$J$3:$J$5)","v":0},{"$f":"valueE(G25,'Utility Functions'!$L$3,'Utility Functions'!$L$4,'Utility Functions'!$L$5,'Utility Functions'!$L$6)","v":0},{"$f":"valueE(H25,'Utility Functions'!$N$3,'Utility Functions'!$N$4,'Utility Functions'!$N$5,'Utility Functions'!$N$6)","v":0},{"$f":"valuePL(I25,'Utility Functions'!$O$3:$O$6,'Utility Functions'!$P$3:$P$6)","v":0},{"$f":"valuePL(J25,'Utility Functions'!$Q$3:$Q$6,'Utility Functions'!$R$3:$R$6)","v":0},{"$f":"valuePL(K25,'Utility Functions'!$S$3:$S$7,'Utility Functions'!$T$3:$T$7)","v":0},{"$f":"valueE(L25,'Utility Functions'!$V$3,'Utility Functions'!$V$4,'Utility Functions'!$V$5,'Utility Functions'!$V$6)","v":0},{"$f":"valuePL(M25,'Utility Functions'!$W$3:$W$6,'Utility Functions'!$X$3:$X$6)","v":0},{"$f":"valueE(N25,'Utility Functions'!$Z$3,'Utility Functions'!$Z$4,'Utility Functions'!$Z$5,'Utility Functions'!$Z$6)","v":0},{"$f":"valuePL(O25,'Utility Functions'!$AA$3:$AA$5,'Utility Functions'!$AB$3:$AB$5)","v":0},{"$f":"valuePL(P25,'Utility Functions'!$AC$3:$AC$7,'Utility Functions'!$AD$3:$AD$7)","v":0},{"$f":"valuePL(Q25,'Utility Functions'!$AE$3:$AE$6,'Utility Functions'!$AF$3:$AF$6)","v":0},{"$f":"valuePL(R25,'Utility Functions'!$AG$3:$AG$6,'Utility Functions'!$AH$3:$AH$6)","v":1},{"$f":"valuePL(S25,'Utility Functions'!$AI$3:$AI$6,'Utility Functions'!$AJ$3:$AJ$6)","v":1},{"$f":"valuePL(T25,'Utility Functions'!$AK$3:$AK$8,'Utility Functions'!$AL$3:$AL$8)","v":1},{"$f":"valuePL(U25,'Utility Functions'!$AM$3:$AM$5,'Utility Functions'!$AN$3:$AN$5)","v":0},{"$f":"valuePL(V25,'Utility Functions'!$AO$3:$AO$5,'Utility Functions'!$AP$3:$AP$5)","v":0},{"$f":"valuePL(W25,'Utility Functions'!$AQ$3:$AQ$6,'Utility Functions'!$AR$3:$AR$6)","v":1},{"$f":"valuePL(X25,'Utility Functions'!$AS$3:$AS$6,'Utility Functions'!$AT$3:$AT$6)","v":0.2},{"$f":"valuePL(Y25,'Utility Functions'!$AU$3:$AU$6,'Utility Functions'!$AV$3:$AV$6)","v":1},{"$f":"valuePL(Z25,'Utility Functions'!$AW$3:$AW$5,'Utility Functions'!$AX$3:$AX$5)","v":1},{"$f":"valuePL(AA25,'Utility Functions'!$AY$3:$AY$6,'Utility Functions'!$AZ$3:$AZ$6)","v":0.2},{"$f":"valuePL(AB25,'Utility Functions'!$BA$3:$BA$5,'Utility Functions'!$BB$3:$BB$5)","v":0},{"$f":"valuePL(AC25,'Utility Functions'!$BC$3:$BC$5,'Utility Functions'!$BD$3:$BD$5)","v":1},9.4968811881212041,null,9.4968811881212059,2.0968811881212055,0,0,3,4.4000000000000004]
[25,{"$f":"valueE(B26,'Utility Functions'!$B$3,'Utility Functions'!$B$4,'Utility Functions'!$B$5,'Utility Functions'!$B$6)","v":0.83470237647280454},{"$f":"valueE(C26,'Utility Functions'!$D$3,'Utility Functions'!$D$4,'Utility Functions'!$D$5,'Utility Functions'!$D$6)","v":0.84744836833951609},{"$f":"valuePL(D26,'Utility Functions'!$E$3:$E$5,'Utility Functions'!$F$3:$F$5)","v":1},{"$f":"valuePL(E26,'Utility Functions'!$G$3:$G$5,'Utility Functions'!$H$3:$H$5)","v":0},{"$f":"valuePL(F26,'Utility Functions'!$I$3:$I$4,'Utility Functions'!$J$3:$J$5)","v":0},{"$f":"valueE(G26,'Utility Functions'!$L$3,'Utility Functions'!$L$4,'Utility Functions'!$L$5,'Utility Functions'!$L$6)","v":0.94623655913978499},{"$f":"valueE(H26,'Utility Functions'!$N$3,'Utility Functions'!$N$4,'Utility Functions'!$N$5,'Utility Functions'!$N$6)","v":0.29222011385199242},{"$f":"valuePL(I26,'Utility Functions'!$O$3:$O$6,'Utility Functions'!$P$3:$P$6)","v":0},{"$f":"valuePL(J26,'Utility Functions'!$Q$3:$Q$6,'Utility Functions'!$R$3:$R$6)","v":0},{"$f":"valuePL(K26,'Utility Functions'!$S$3:$S$7,'Utility Functions'!$T$3:$T$7)","v":0},{"$f":"valueE(L26,'Utility Functions'!$V$3,'Utility Functions'!$V$4,'Utility Functions'!$V$5,'Utility Functions'!$V$6)","v":0},{"$f":"valuePL(M26,'Utility Functions'!$W$3:$W$6,'Utility Functions'!$X$3:$X$6)","v":0},{"$f":"valueE(N26,'Utility Functions'!$Z$3,'Utility Functions'!$Z$4,'Utility Functions'!$Z$5,'Utility Functions'!$Z$6)","v":1},{"$f":"valuePL(O26,'Utility Functions'!$AA$3:$AA$5,'Utility Functions'!$AB$3:$AB$5)","v":0.25},{"$f":"valuePL(P26,'Utility Functions'!$AC$3:$AC$7,'Utility Functions'!$AD$3:$AD$7)","v":0.5},{"$f":"valuePL(Q26,'Utility Functions'!$AE$3:$AE$6,'Utility Functions'!$AF$3:$AF$6)","v":0.5},{"$f":"valuePL(R26,'Utility Functions'!$AG$3:$AG$6,'Utility Functions'!$AH$3:$AH$6)","v":1},{"$f":"valuePL(S26,'Utility Functions'!$AI$3:$AI$6,'Utility Functions'!$AJ$3:$AJ$6)","v":1},{"$f":"valuePL(T26,'Utility Functions'!$AK$3:$AK$8,'Utility Functions'!$AL$3:$AL$8)","v":0},{"$f":"valuePL(U26,'Utility Functions'!$AM$3:$AM$5,'Utility Functions'!$AN$3:$AN$5)","v":0},{"$f":"valuePL(V26,'Utility Functions'!$AO$3:$AO$5,'Utility Functions'!$AP$3:$AP$5)","v":1},{"$f":"valuePL(W26,'Utility Functions'!$AQ$3:$AQ$6,'Utility Functions'!$AR$3:$AR$6)","v":0.2},{"$f":"valuePL(X26,'Utility Functions'!$AS$3:$AS$6,'Utility Functions'!$AT$3:$AT$6)","v":1},{"$f":"valuePL(Y26,'Utility Functions'!$AU$3:$AU$6,'Utility Functions'!$AV$3:$AV$6)","v":0.8},{"$f":"valuePL(Z26,'Utility Functions'!$AW$3:$AW$5,'Utility Functions'!$AX$3:$AX$5)","v":0.5},{"$f":"valuePL(AA26,'Utility Functions'!$AY$3:$AY$6,'Utility Functions'!$AZ$3:$AZ$6)","v":0.2},{"$f":"valuePL(AB26,'Utility Functions'!$BA$3:$BA$5,'Utility Functions'!$BB$3:$BB$5)","v":1},{"$f":"valuePL(AC26,'Utility Functions'!$BC$3:$BC$5,'Utility Functions'!$BD$3:$BD$5)","v":1},13.870607417804099,null,13.870607417804099,2.6821507448123207,1.2384566729917774,1.25,3,5.7]
[26,{"$f":"valueE(B27,'Utility Functions'!$B$3,'Utility Functions'!$B$4,'Utility Functions'!$B$5,'Utility Functions'!$B$6)","v":0.96662819462069161},{"$f":"valueE(C27,'Utility Functions'!$D$3,'Utility Functions'!$D$4,'Utility Functions'!$D$5,'Utility Functions'!$D$6)","v":0.84744836833951609},{"$f":"valuePL(D27,'Utility Functions'!$E$3:$E$5,'Utility Functions'!$F$3:$F$5)","v":1},{"$f":"valuePL(E27,'Utility Functions'!$G$3:$G$5,'Utility Functions'!$H$3:$H$5)","v":0.5},{"$f":"valuePL(F27,'Utility Functions'!$I$3:$I$4,'Utility Functions'!$J$3:$J$5)","v":0},{"$f":"valueE(G27,'Utility Functions'!$L$3,'Utility Functions'!$L$4,'Utility Functions'!$L$5,'Utility Functions'!$L$6)","v":0},{"$f":"valueE(H27,'Utility Functions'!$N$3,'Utility Functions'!$N$4,'Utility Functions'!$N$5,'Utility Functions'!$N$6)","v":0},{"$f":"valuePL(I27,'Utility Functions'!$O$3:$O$6,'Utility Functions'!$P$3:$P$6)","v":0},{"$f":"valuePL(J27,'Utility Functions'!$Q$3:$Q$6,'Utility Functions'!$R$3:$R$6)","v":0},{"$f":"valuePL(K27,'Utility Functions'!$S$3:$S$7,'Utility Functions'!$T$3:$T$7)","v":0},{"$f":"valueE(L27,'Utility Functions'!$V$3,'Utility Functions'!$V$4,'Utility Functions'!$V$5,'Utility Functions'!$V$6)","v":0},{"$f":"valuePL(M27,'Utility Functions'!$W$3:$W$6,'Utility Functions'!$X$3:$X$6)","v":0},{"$f":"valueE(N27,'Utility Functions'!$Z$3,'Utility Functions'!$Z$4,'Utility Functions'!$Z$5,'Utility Functions'!$Z$6)","v":0},{"$f":"valuePL(O27,'Utility Functions'!$AA$3:$AA$5,'Utility Functions'!$AB$3:$AB$5)","v":0},{"$f":"valuePL(P27,'Utility Functions'!$AC$3:$AC$7,'Utility Functions'!$AD$3:$AD$7)","v":0.75},{"$f":"valuePL(Q27,'Utility Functions'!$AE$3:$AE$6,'Utility Functions'!$AF$3:$AF$6)","v":0},{"$f":"valuePL(R27,'Utility Functions'!$AG$3:$AG$6,'Utility Functions'!$AH$3:$AH$6)","v":1},{"$f":"valuePL(S27,'Utility Functions'!$AI$3:$AI$6,'Utility Functions'!$AJ$3:$AJ$6)","v":1},{"$f":"valuePL(T27,'Utility Functions'!$AK$3:$AK$8,'Utility Functions'!$AL$3:$AL$8)","v":0.8},{"$f":"valuePL(U27,'Utility Functions'!$AM$3:$AM$5,'Utility Functions'!$AN$3:$AN$5)","v":0},{"$f":"valuePL(V27,'Utility Functions'!$AO$3:$AO$5,'Utility Functions'!$AP$3:$AP$5)","v":1},{"$f":"valuePL(W27,'Utility Functions'!$AQ$3:$AQ$6,'Utility Functions'!$AR$3:$AR$6)","v":0.2},{"$f":"valuePL(X27,'Utility Functions'!$AS$3:$AS$6,'Utility Functions'!$AT$3:$AT$6)","v":0},{"$f":"valuePL(Y27,'Utility Functions'!$AU$3:$AU$6,'Utility Functions'!$AV$3:$AV$6)","v":0.8},{"$f":"valuePL(Z27,'Utility Functions'!$AW$3:$AW$5,'Utility Functions'!$AX$3:$AX$5)","v":0},{"$f":"valuePL(AA27,'Utility Functions'!$AY$3:$AY$6,'Utility Functions'!$AZ$3:$AZ$6)","v":0.2},{"$f":"valuePL(AB27,'Utility Functions'!$BA$3:$BA$5,'Utility Functions'!$BB$3:$BB$5)","v":1},{"$f":"valuePL(AC27,'Utility Functions'!$BC$3:$BC$5,'Utility Functions'!$BD$3:$BD$5)","v":1},11.064076562960208,null,11.064076562960206,3.3140765629602078,0,0,3.55,4.2]
[27,{"$f":"valueE(B28,'Utility Functions'!$B$3,'Utility Functions'!$B$4,'Utility Functions'!$B$5,'Utility Functions'!$B$6)","v":0},{"$f":"valueE(C28,'Utility Functions'!$D$3,'Utility Functions'!$D$4,'Utility Functions'!$D$5,'Utility Functions'!$D$6)","v":0.46475967153745396},{"$f":"valuePL(D28,'Utility Functions'!$E$3:$E$5,'Utility Functions'!$F$3:$F$5)","v":1},{"$f":"valuePL(E28,'Utility Functions'!$G$3:$G$5,'Utility Functions'!$H$3:$H$5)","v":0},{"$f":"valuePL(F28,'Utility Functions'!$I$3:$I$4,'Utility Functions'!$J$3:$J$5)","v":0},{"$f":"valueE(G28,'Utility Functions'!$L$3,'Utility Functions'!$L$4,'Utility Functions'!$L$5,'Utility Functions'!$L$6)","v":0},{"$f":"valueE(H28,'Utility Functions'!$N$3,'Utility Functions'!$N$4,'Utility Functions'!$N$5,'Utility Functions'!$N$6)","v":0},{"$f":"valuePL(I28,'Utility Functions'!$O$3:$O$6,'Utility Functions'!$P$3:$P$6)","v":0},{"$f":"valuePL(J28,'Utility Functions'!$Q$3:$Q$6,'Utility Functions'!$R$3:$R$6)","v":0},{"$f":"valuePL(K28,'Utility Functions'!$S$3:$S$7,'Utility Functions'!$T$3:$T$7)","v":1},{"$f":"valueE(L28,'Utility Functions'!$V$3,'Utility Functions'!$V$4,'Utility Functions'!$V$5,'Utility Functions'!$V$6)","v":0},{"$f":"valuePL(M28,'Utility Functions'!$W$3:$W$6,'Utility Functions'!$X$3:$X$6)","v":0.1},{"$f":"valueE(N28,'Utility Functions'!$Z$3,'Utility Functions'!$Z$4,'Utility Functions'!$Z$5,'Utility Functions'!$Z$6)","v":0},{"$f":"valuePL(O28,'Utility Functions'!$AA$3:$AA$5,'Utility Functions'!$AB$3:$AB$5)","v":0},{"$f":"valuePL(P28,'Utility Functions'!$AC$3:$AC$7,'Utility Functions'!$AD$3:$AD$7)","v":0.5},{"$f":"valuePL(Q28,'Utility Functions'!$AE$3:$AE$6,'Utility Functions'!$AF$3:$AF$6)","v":0.5},{"$f":"valuePL(R28,'Utility Functions'!$AG$3:$AG$6,'Utility Functions'!$AH$3:$AH$6)","v":1},{"$f":"valuePL(S28,'Utility Functions'!$AI$3:$AI$6,'Utility Functions'!$AJ$3:$AJ$6)","v":1},{"$f":"valuePL(T28,'Utility Functions'!$AK$3:$AK$8,'Utility Functions'!$AL$3:$AL$8)","v":1},{"$f":"valuePL(U28,'Utility Functions'!$AM$3:$AM$5,'Utility Functions'!$AN$3:$AN$5)","v":0},{"$f":"valuePL(V28,'Utility Functions'!$AO$3:$AO$5,'Utility Functions'!$AP$3:$AP$5)","v":0.5},{"$f":"valuePL(W28,'Utility Functions'!$AQ$3:$AQ$6,'Utility Functions'!$AR$3:$AR$6)","v":0.75},{"$f":"valuePL(X28,'Utility Functions'!$AS$3:$AS$6,'Utility Functions'!$AT$3:$AT$6)","v":1},{"$f":"valuePL(Y28,'Utility Functions'!$AU$3:$AU$6,'Utility Functions'!$AV$3:$AV$6)","v":0.2},{"$f":"valuePL(Z28,'Utility Functions'!$AW$3:$AW$5,'Utility Functions'!$AX$3:$AX$5)","v":0},{"$f":"valuePL(AA28,'Utility Functions'!$AY$3:$AY$6,'Utility Functions'!$AZ$3:$AZ$6)","v":0},{"$f":"valuePL(AB28,'Utility Functions'!$BA$3:$BA$5,'Utility Functions'!$BB$3:$BB$5)","v":0},{"$f":"valuePL(AC28,'Utility Functions'!$BC$3:$BC$5,'Utility Functions'!$BD$3:$BD$5)","v":0},9.0147596715374529,null,9.0147596715374547,1.464759671537454,1.1000000000000001,0,4,2.4500000000000002]
[28,{"$f":"valueE(B29,'Utility Functions'!$B$3,'Utility Functions'!$B$4,'Utility Functions'!$B$5,'Utility Functions'!$B$6)","v":0.4511890475224023},{"$f":"valueE(C29,'Utility Functions'!$D$3,'Utility Functions'!$D$4,'Utility Functions'!$D$5,'Utility Functions'!$D$6)","v":0.46475967153745396},{"$f":"valuePL(D29,'Utility Functions'!$E$3:$E$5,'Utility Functions'!$F$3:$F$5)","v":1},{"$f":"valuePL(E29,'Utility Functions'!$G$3:$G$5,'Utility Functions'!$H$3:$H$5)","v":0},{"$f":"valuePL(F29,'Utility Functions'!$I$3:$I$4,'Utility Functions'!$J$3:$J$5)","v":1},{"$f":"valueE(G29,'Utility Functions'!$L$3,'Utility Functions'!$L$4,'Utility Functions'!$L$5,'Utility Functions'!$L$6)","v":0},{"$f":"valueE(H29,'Utility Functions'!$N$3,'Utility Functions'!$N$4,'Utility Functions'!$N$5,'Utility Functions'!$N$6)","v":0},{"$f":"valuePL(I29,'Utility Functions'!$O$3:$O$6,'Utility Functions'!$P$3:$P$6)","v":0},{"$f":"valuePL(J29,'Utility Functions'!$Q$3:$Q$6,'Utility Functions'!$R$3:$R$6)","v":0},{"$f":"valuePL(K29,'Utility Functions'!$S$3:$S$7,'Utility Functions'!$T$3:$T$7)","v":0},{"$f":"valueE(L29,'Utility Functions'!$V$3,'Utility Functions'!$V$4,'Utility Functions'!$V$5,'Utility Functions'!$V$6)","v":0.33333333333333331},{"$f":"valuePL(M29,'Utility Functions'!$W$3:$W$6,'Utility Functions'!$X$3:$X$6)","v":0.1},{"$f":"valueE(N29,'Utility Functions'!$Z$3,'Utility Functions'!$Z$4,'Utility Functions'!$Z$5,'Utility Functions'!$Z$6)","v":0},{"$f":"valuePL(O29,'Utility Functions'!$AA$3:$AA$5,'Utility Functions'!$AB$3:$AB$5)","v":0},{"$f":"valuePL(P29,'Utility Functions'!$AC$3:$AC$7,'Utility Functions'!$AD$3:$AD$7)","v":1},{"$f":"valuePL(Q29,'Utility Functions'!$AE$3:$AE$6,'Utility Functions'!$AF$3:$AF$6)","v":0},{"$f":"valuePL(R29,'Utility Functions'!$AG$3:$AG$6,'Utility Functions'!$AH$3:$AH$6)","v":1},{"$f":"valuePL(S29,'Utility Functions'!$AI$3:$AI$6,'Utility Functions'!$AJ$3:$AJ$6)","v":1},{"$f":"valuePL(T29,'Utility Functions'!$AK$3:$AK$8,'Utility Functions'!$AL$3:$AL$8)","v":0.8},{"$f":"valuePL(U29,'Utility Functions'!$AM$3:$AM$5,'Utility Functions'!$AN$3:$AN$5)","v":0},{"$f":"valuePL(V29,'Utility Functions'!$AO$3:$AO$5,'Utility Functions'!$AP$3:$AP$5)","v":1},{"$f":"valuePL(W29,'Utility Functions'!$AQ$3:$AQ$6,'Utility Functions'!$AR$3:$AR$6)","v":1},{"$f":"valuePL(X29,'Utility Functions'!$AS$3:$AS$6,'Utility Functions'!$AT$3:$AT$6)","v":1},{"$f":"valuePL(Y29,'Utility Functions'!$AU$3:$AU$6,'Utility Functions'!$AV$3:$AV$6)","v":0.2},{"$f":"valuePL(Z29,'Utility Functions'!$AW$3:$AW$5,'Utility Functions'!$AX$3:$AX$5)","v":0},{"$f":"valuePL(AA29,'Utility Functions'!$AY$3:$AY$6,'Utility Functions'!$AZ$3:$AZ$6)","v":0.89999999999999991},{"$f":"valuePL(AB29,'Utility Functions'!$BA$3:$BA$5,'Utility Functions'!$BB$3:$BB$5)","v":1},{"$f":"valuePL(AC29,'Utility Functions'!$BC$3:$BC$5,'Utility Functions'!$BD$3:$BD$5)","v":0.25},12.499282052393189,null,12.499282052393189,2.9159487190598563,0.43333333333333335,0,3.8,5.35]
[29,{"$f":"valueE(B30,'Utility Functions'!$B$3,'Utility Functions'!$B$4,'Utility Functions'!$B$5,'Utility Functions'!$B$6)","v":0.83470237647280454},{"$f":"valueE(C30,'Utility Functions'!$D$3,'Utility Functions'!$D$4,'Utility Functions'!$D$5,'Utility Functions'!$D$6)","v":0.71352759724260828},{"$f":"valuePL(D30,'Utility Functions'!$E$3:$E$5,'Utility Functions'!$F$3:$F$5)","v":1},{"$f":"valuePL(E30,'Utility Functions'!$G$3:$G$5,'Utility Functions'!$H$3:$H$5)","v":0.5},{"$f":"valuePL(F30,'Utility Functions'!$I$3:$I$4,'Utility Functions'!$J$3:$J$5)","v":0},{"$f":"valueE(G30,'Utility Functions'!$L$3,'Utility Functions'!$L$4,'Utility Functions'!$L$5,'Utility Functions'!$L$6)","v":0},{"$f":"valueE(H30,'Utility Functions'!$N$3,'Utility Functions'!$N$4,'Utility Functions'!$N$5,'Utility Functions'!$N$6)","v":0},{"$f":"valuePL(I30,'Utility Functions'!$O$3:$O$6,'Utility Functions'!$P$3:$P$6)","v":0.06},{"$f":"valuePL(J30,'Utility Functions'!$Q$3:$Q$6,'Utility Functions'!$R$3:$R$6)","v":0.67272727272727273},{"$f":"valuePL(K30,'Utility Functions'!$S$3:$S$7,'Utility Functions'!$T$3:$T$7)","v":0},{"$f":"valueE(L30,'Utility Functions'!$V$3,'Utility Functions'!$V$4,'Utility Functions'!$V$5,'Utility Functions'!$V$6)","v":1},{"$f":"valuePL(M30,'Utility Functions'!$W$3:$W$6,'Utility Functions'!$X$3:$X$6)","v":0.67272727272727273},{"$f":"valueE(N30,'Utility Functions'!$Z$3,'Utility Functions'!$Z$4,'Utility Functions'!$Z$5,'Utility Functions'!$Z$6)","v":0},{"$f":"valuePL(O30,'Utility Functions'!$AA$3:$AA$5,'Utility Functions'!$AB$3:$AB$5)","v":0},{"$f":"valuePL(P30,'Utility Functions'!$AC$3:$AC$7,'Utility Functions'!$AD$3:$AD$7)","v":0.25},{"$f":"valuePL(Q30,'Utility Functions'!$AE$3:$AE$6,'Utility Functions'!$AF$3:$AF$6)","v":0},{"$f":"valuePL(R30,'Utility Functions'!$AG$3:$AG$6,'Utility Functions'!$AH$3:$AH$6)","v":1},{"$f":"valuePL(S30,'Utility Functions'!$AI$3:$AI$6,'Utility Functions'!$AJ$3:$AJ$6)","v":1},{"$f":"valuePL(T30,'Utility Functions'!$AK$3:$AK$8,'Utility Functions'!$AL$3:$AL$8)","v":0.8},{"$f":"valuePL(U30,'Utility Functions'!$AM$3:$AM$5,'Utility Functions'!$AN$3:$AN$5)","v":0},{"$f":"valuePL(V30,'Utility Functions'!$AO$3:$AO$5,'Utility Functions'!$AP$3:$AP$5)","v":1},{"$f":"valuePL(W30,'Utility Functions'!$AQ$3:$AQ$6,'Utility Functions'!$AR$3:$AR$6)","v":0.2},{"$f":"valuePL(X30,'Utility Functions'!$AS$3:$AS$6,'Utility Functions'!$AT$3:$AT$6)","v":0},{"$f":"valuePL(Y30,'Utility Functions'!$AU$3:$AU$6,'Utility Functions'!$AV$3:$AV$6)","v":0.8},{"$f":"valuePL(Z30,'Utility Functions'!$AW$3:$AW$5,'Utility Functions'!$AX$3:$AX$5)","v":0.5},{"$f":"valuePL(AA30,'Utility Functions'!$AY$3:$AY$6,'Utility Functions'!$AZ$3:$AZ$6)","v":0.2},{"$f":"valuePL(AB30,'Utility Functions'!$BA$3:$BA$5,'Utility Functions'!$BB$3:$BB$5)","v":0.25},{"$f":"valuePL(AC30,'Utility Functions'!$BC$3:$BC$5,'Utility Functions'!$BD$3:$BD$5)","v":1},12.453684519169958,null,12.453684519169958,3.0482299737154128,2.4054545454545453,0,3.05,3.95]
[30,{"$f":"valueE(B31,'Utility Functions'!$B$3,'Utility Functions'!$B$4,'Utility Functions'!$B$5,'Utility Functions'!$B$6)","v":0.99864114504770318},{"$f":"valueE(C31,'Utility Functions'!$D$3,'Utility Functions'!$D$4,'Utility Functions'!$D$5,'Utility Functions'!$D$6)","v":0.84744836833951609},{"$f":"valuePL(D31,'Utility Functions'!$E$3:$E$5,'Utility Functions'!$F$3:$F$5)","v":1},{"$f":"valuePL(E31,'Utility Functions'!$G$3:$G$5,'Utility Functions'!$H$3:$H$5)","v":0},{"$f":"valuePL(F31,'Utility Functions'!$I$3:$I$4,'Utility Functions'!$J$3:$J$5)","v":0},{"$f":"valueE(G31,'Utility Functions'!$L$3,'Utility Functions'!$L$4,'Utility Functions'!$L$5,'Utility Functions'!$L$6)","v":0},{"$f":"valueE(H31,'Utility Functions'!$N$3,'Utility Functions'!$N$4,'Utility Functions'!$N$5,'Utility Functions'!$N$6)","v":0},{"$f":"valuePL(I31,'Utility Functions'!$O$3:$O$6,'Utility Functions'!$P$3:$P$6)","v":0},{"$f":"valuePL(J31,'Utility Functions'!$Q$3:$Q$6,'Utility Functions'!$R$3:$R$6)","v":0},{"$f":"valuePL(K31,'Utility Functions'!$S$3:$S$7,'Utility Functions'!$T$3:$T$7)","v":0},{"$f":"valueE(L31,'Utility Functions'!$V$3,'Utility Functions'!$V$4,'Utility Functions'!$V$5,'Utility Functions'!$V$6)","v":0.33333333333333331},{"$f":"valuePL(M31,'Utility Functions'!$W$3:$W$6,'Utility Functions'!$X$3:$X$6)","v":0.04},{"$f":"valueE(N31,'Utility Functions'!$Z$3,'Utility Functions'!$Z$4,'Utility Functions'!$Z$5,'Utility Functions'!$Z$6)","v":0},{"$f":"valuePL(O31,'Utility Functions'!$AA$3:$AA$5,'Utility Functions'!$AB$3:$AB$5)","v":0},{"$f":"valuePL(P31,'Utility Functions'!$AC$3:$AC$7,'Utility Functions'!$AD$3:$AD$7)","v":0},{"$f":"valuePL(Q31,'Utility Functions'!$AE$3:$AE$6,'Utility Functions'!$AF$3:$AF$6)","v":0},{"$f":"valuePL(R31,'Utility Functions'!$AG$3:$AG$6,'Utility Functions'!$AH$3:$AH$6)","v":0.2},{"$f":"valuePL(S31,'Utility Functions'!$AI$3:$AI$6,'Utility Functions'!$AJ$3:$AJ$6)","v":0.33},{"$f":"valuePL(T31,'Utility Functions'!$AK$3:$AK$8,'Utility Functions'!$AL$3:$AL$8)","v":0},{"$f":"valuePL(U31,'Utility Functions'!$AM$3:$AM$5,'Utility Functions'!$AN$3:$AN$5)","v":0},{"$f":"valuePL(V31,'Utility Functions'!$AO$3:$AO$5,'Utility Functions'!$AP$3:$AP$5)","v":0},{"$f":"valuePL(W31,'Utility Functions'!$AQ$3:$AQ$6,'Utility Functions'!$AR$3:$AR$6)","v":1},{"$f":"valuePL(X31,'Utility Functions'!$AS$3:$AS$6,'Utility Functions'!$AT$3:$AT$6)","v":0.2},{"$f":"valuePL(Y31,'Utility Functions'!$AU$3:$AU$6,'Utility Functions'!$AV$3:$AV$6)","v":0.8},{"$f":"valuePL(Z31,'Utility Functions'!$AW$3:$AW$5,'Utility Functions'!$AX$3:$AX$5)","v":0},{"$f":"valuePL(AA31,'Utility Functions'!$AY$3:$AY$6,'Utility Functions'!$AZ$3:$AZ$6)","v":0.89999999999999991},{"$f":"valuePL(AB31,'Utility Functions'!$BA$3:$BA$5,'Utility Functions'!$BB$3:$BB$5)","v":1},{"$f":"valuePL(AC31,'Utility Functions'!$BC$3:$BC$5,'Utility Functions'!$BD$3:$BD$5)","v":0},7.6494228467205527,null,7.6494228467205527,2.846089513387219,0.37333333333333329,0,0.53,3.9]
[31,{"$f":"valueE(B32,'Utility Functions'!$B$3,'Utility Functions'!$B$4,'Utility Functions'!$B$5,'Utility Functions'!$B$6)","v":0.55067187023002029},{"$f":"valueE(C32,'Utility Functions'!$D$3,'Utility Functions'!$D$4,'Utility Functions'!$D$5,'Utility Functions'!$D$6)","v":0.84744836833951609},{"$f":"valuePL(D32,'Utility Functions'!$E$3:$E$5,'Utility Functions'!$F$3:$F$5)","v":0.5},{"$f":"valuePL(E32,'Utility Functions'!$G$3:$G$5,'Utility Functions'!$H$3:$H$5)","v":0},{"$f":"valuePL(F32,'Utility Functions'!$I$3:$I$4,'Utility Functions'!$J$3:$J$5)","v":0},{"$f":"valueE(G32,'Utility Functions'!$L$3,'Utility Functions'!$L$4,'Utility Functions'!$L$5,'Utility Functions'!$L$6)","v":0},{"$f":"valueE(H32,'Utility Functions'!$N$3,'Utility Functions'!$N$4,'Utility Functions'!$N$5,'Utility Functions'!$N$6)","v":0},{"$f":"valuePL(I32,'Utility Functions'!$O$3:$O$6,'Utility Functions'!$P$3:$P$6)","v":0.75454545454545452},{"$f":"valuePL(J32,'Utility Functions'!$Q$3:$Q$6,'Utility Functions'!$R$3:$R$6)","v":0.08},{"$f":"valuePL(K32,'Utility Functions'!$S$3:$S$7,'Utility Functions'!$T$3:$T$7)","v":0},{"$f":"valueE(L32,'Utility Functions'!$V$3,'Utility Functions'!$V$4,'Utility Functions'!$V$5,'Utility Functions'!$V$6)","v":0.33333333333333331},{"$f":"valuePL(M32,'Utility Functions'!$W$3:$W$6,'Utility Functions'!$X$3:$X$6)","v":0.08},{"$f":"valueE(N32,'Utility Functions'!$Z$3,'Utility Functions'!$Z$4,'Utility Functions'!$Z$5,'Utility Functions'!$Z$6)","v":0},{"$f":"valuePL(O32,'Utility Functions'!$AA$3:$AA$5,'Utility Functions'!$AB$3:$AB$5)","v":0},{"$f":"valuePL(P32,'Utility Functions'!$AC$3:$AC$7,'Utility Functions'!$AD$3:$AD$7)","v":0.5},{"$f":"valuePL(Q32,'Utility Functions'!$AE$3:$AE$6,'Utility Functions'!$AF$3:$AF$6)","v":0},{"$f":"valuePL(R32,'Utility Functions'!$AG$3:$AG$6,'Utility Functions'!$AH$3:$AH$6)","v":1},{"$f":"valuePL(S32,'Utility Functions'!$AI$3:$AI$6,'Utility Functions'!$AJ$3:$AJ$6)","v":0.66},{"$f":"valuePL(T32,'Utility Functions'!$AK$3:$AK$8,'Utility Functions'!$AL$3:$AL$8)","v":0.6},{"$f":"valuePL(U32,'Utility Functions'!$AM$3:$AM$5,'Utility Functions'!$AN$3:$AN$5)","v":0},{"$f":"valuePL(V32,'Utility Functions'!$AO$3:$AO$5,'Utility Functions'!$AP$3:$AP$5)","v":0.5},{"$f":"valuePL(W32,'Utility Functions'!$AQ$3:$AQ$6,'Utility Functions'!$AR$3:$AR$6)","v":0},{"$f":"valuePL(X32,'Utility Functions'!$AS$3:$AS$6,'Utility Functions'!$AT$3:$AT$6)","v":0.2},{"$f":"valuePL(Y32,'Utility Functions'!$AU$3:$AU$6,'Utility Functions'!$AV$3:$AV$6)","v":0.2},{"$f":"valuePL(Z32,'Utility Functions'!$AW$3:$AW$5,'Utility Functions'!$AX$3:$AX$5)","v":1},{"$f":"valuePL(AA32,'Utility Functions'!$AY$3:$AY$6,'Utility Functions'!$AZ$3:$AZ$6)","v":0.89999999999999991},{"$f":"valuePL(AB32,'Utility Functions'!$BA$3:$BA$5,'Utility Functions'!$BB$3:$BB$5)","v":0.25},{"$f":"valuePL(AC32,'Utility Functions'!$BC$3:$BC$5,'Utility Functions'!$BD$3:$BD$5)","v":0.25},9.2059990264483247,null,9.2059990264483247,1.8981202385695364,1.2478787878787878,0,2.7600000000000002,3.3]
[32,{"$f":"valueE(B33,'Utility Functions'!$B$3,'Utility Functions'!$B$4,'Utility Functions'!$B$5,'Utility Functions'!$B$6)","v":0.63212151658375171},{"$f":"valueE(C33,'Utility Functions'!$D$3,'Utility Functions'!$D$4,'Utility Functions'!$D$5,'Utility Functions'!$D$6)","v":0.26839655623815994},{"$f":"valuePL(D33,'Utility Functions'!$E$3:$E$5,'Utility Functions'!$F$3:$F$5)","v":1},{"$f":"valuePL(E33,'Utility Functions'!$G$3:$G$5,'Utility Functions'!$H$3:$H$5)","v":1},{"$f":"valuePL(F33,'Utility Functions'!$I$3:$I$4,'Utility Functions'!$J$3:$J$5)","v":1},{"$f":"valueE(G33,'Utility Functions'!$L$3,'Utility Functions'!$L$4,'Utility Functions'!$L$5,'Utility Functions'!$L$6)","v":3.2258064516129031E-2},{"$f":"valueE(H33,'Utility Functions'!$N$3,'Utility Functions'!$N$4,'Utility Functions'!$N$5,'Utility Functions'!$N$6)","v":9.6774193548387094E-2},{"$f":"valuePL(I33,'Utility Functions'!$O$3:$O$6,'Utility Functions'!$P$3:$P$6)","v":0.34545454545454546},{"$f":"valuePL(J33,'Utility Functions'!$Q$3:$Q$6,'Utility Functions'!$R$3:$R$6)","v":1},{"$f":"valuePL(K33,'Utility Functions'!$S$3:$S$7,'Utility Functions'!$T$3:$T$7)","v":0.34545454545454546},{"$f":"valueE(L33,'Utility Functions'!$V$3,'Utility Functions'!$V$4,'Utility Functions'!$V$5,'Utility Functions'!$V$6)","v":1},{"$f":"valuePL(M33,'Utility Functions'!$W$3:$W$6,'Utility Functions'!$X$3:$X$6)","v":1},{"$f":"valueE(N33,'Utility Functions'!$Z$3,'Utility Functions'!$Z$4,'Utility Functions'!$Z$5,'Utility Functions'!$Z$6)","v":0},{"$f":"valuePL(O33,'Utility Functions'!$AA$3:$AA$5,'Utility Functions'!$AB$3:$AB$5)","v":0},{"$f":"valuePL(P33,'Utility Functions'!$AC$3:$AC$7,'Utility Functions'!$AD$3:$AD$7)","v":0.5},{"$f":"valuePL(Q33,'Utility Functions'!$AE$3:$AE$6,'Utility Functions'!$AF$3:$AF$6)","v":1},{"$f":"valuePL(R33,'Utility Functions'!$AG$3:$AG$6,'Utility Functions'!$AH$3:$AH$6)","v":1},{"$f":"valuePL(S33,'Utility Functions'!$AI$3:$AI$6,'Utility Functions'!$AJ$3:$AJ$6)","v":0},{"$f":"valuePL(T33,'Utility Functions'!$AK$3:$AK$8,'Utility Functions'!$AL$3:$AL$8)","v":0.8},{"$f":"valuePL(U33,'Utility Functions'!$AM$3:$AM$5,'Utility Functions'!$AN$3:$AN$5)","v":0},{"$f":"valuePL(V33,'Utility Functions'!$AO$3:$AO$5,'Utility Functions'!$AP$3:$AP$5)","v":0},{"$f":"valuePL(W33,'Utility Functions'!$AQ$3:$AQ$6,'Utility Functions'!$AR$3:$AR$6)","v":0.75},{"$f":"valuePL(X33,'Utility Functions'!$AS$3:$AS$6,'Utility Functions'!$AT$3:$AT$6)","v":0.2},{"$f":"valuePL(Y33,'Utility Functions'!$AU$3:$AU$6,'Utility Functions'!$AV$3:$AV$6)","v":0.8},{"$f":"valuePL(Z33,'Utility Functions'!$AW$3:$AW$5,'Utility Functions'!$AX$3:$AX$5)","v":0.5},{"$f":"valuePL(AA33,'Utility Functions'!$AY$3:$AY$6,'Utility Functions'!$AZ$3:$AZ$6)","v":0},{"$f":"valuePL(AB33,'Utility Functions'!$BA$3:$BA$5,'Utility Functions'!$BB$3:$BB$5)","v":1},{"$f":"valuePL(AC33,'Utility Functions'!$BC$3:$BC$5,'Utility Functions'!$BD$3:$BD$5)","v":0.25},14.52045942179552,null,14.520459421795518,3.9005180728219115,3.8199413489736074,0,3.3,3.5]
[33,{"$f":"valueE(B34,'Utility Functions'!$B$3,'Utility Functions'!$B$4,'Utility Functions'!$B$5,'Utility Functions'!$B$6)","v":0.93919136038504192},{"$f":"valueE(C34,'Utility Functions'!$D$3,'Utility Functions'!$D$4,'Utility Functions'!$D$5,'Utility Functions'!$D$6)","v":0.84744836833951609},{"$f":"valuePL(D34,'Utility Functions'!$E$3:$E$5,'Utility Functions'!$F$3:$F$5)","v":1},{"$f":"valuePL(E34,'Utility Functions'!$G$3:$G$5,'Utility Functions'!$H$3:$H$5)","v":0.5},{"$f":"valuePL(F34,'Utility Functions'!$I$3:$I$4,'Utility Functions'!$J$3:$J$5)","v":0},{"$f":"valueE(G34,'Utility Functions'!$L$3,'Utility Functions'!$L$4,'Utility Functions'!$L$5,'Utility Functions'!$L$6)","v":0},{"$f":"valueE(H34,'Utility Functions'!$N$3,'Utility Functions'!$N$4,'Utility Functions'!$N$5,'Utility Functions'!$N$6)","v":0},{"$f":"valuePL(I34,'Utility Functions'!$O$3:$O$6,'Utility Functions'!$P$3:$P$6)","v":0},{"$f":"valuePL(J34,'Utility Functions'!$Q$3:$Q$6,'Utility Functions'!$R$3:$R$6)","v":0},{"$f":"valuePL(K34,'Utility Functions'!$S$3:$S$7,'Utility Functions'!$T$3:$T$7)","v":0},{"$f":"valueE(L34,'Utility Functions'!$V$3,'Utility Functions'!$V$4,'Utility Functions'!$V$5,'Utility Functions'!$V$6)","v":0.5},{"$f":"valuePL(M34,'Utility Functions'!$W$3:$W$6,'Utility Functions'!$X$3:$X$6)","v":0},{"$f":"valueE(N34,'Utility Functions'!$Z$3,'Utility Functions'!$Z$4,'Utility Functions'!$Z$5,'Utility Functions'!$Z$6)","v":0},{"$f":"valuePL(O34,'Utility Functions'!$AA$3:$AA$5,'Utility Functions'!$AB$3:$AB$5)","v":0},{"$f":"valuePL(P34,'Utility Functions'!$AC$3:$AC$7,'Utility Functions'!$AD$3:$AD$7)","v":0.5},{"$f":"valuePL(Q34,'Utility Functions'!$AE$3:$AE$6,'Utility Functions'!$AF$3:$AF$6)","v":0},{"$f":"valuePL(R34,'Utility Functions'!$AG$3:$AG$6,'Utility Functions'!$AH$3:$AH$6)","v":1},{"$f":"valuePL(S34,'Utility Functions'!$AI$3:$AI$6,'Utility Functions'!$AJ$3:$AJ$6)","v":0.66},{"$f":"valuePL(T34,'Utility Functions'!$AK$3:$AK$8,'Utility Functions'!$AL$3:$AL$8)","v":0},{"$f":"valuePL(U34,'Utility Functions'!$AM$3:$AM$5,'Utility Functions'!$AN$3:$AN$5)","v":0},{"$f":"valuePL(V34,'Utility Functions'!$AO$3:$AO$5,'Utility Functions'!$AP$3:$AP$5)","v":0.5},{"$f":"valuePL(W34,'Utility Functions'!$AQ$3:$AQ$6,'Utility Functions'!$AR$3:$AR$6)","v":1},{"$f":"valuePL(X34,'Utility Functions'!$AS$3:$AS$6,'Utility Functions'!$AT$3:$AT$6)","v":0},{"$f":"valuePL(Y34,'Utility Functions'!$AU$3:$AU$6,'Utility Functions'!$AV$3:$AV$6)","v":0.8},{"$f":"valuePL(Z34,'Utility Functions'!$AW$3:$AW$5,'Utility Functions'!$AX$3:$AX$5)","v":1},{"$f":"valuePL(AA34,'Utility Functions'!$AY$3:$AY$6,'Utility Functions'!$AZ$3:$AZ$6)","v":1},{"$f":"valuePL(AB34,'Utility Functions'!$BA$3:$BA$5,'Utility Functions'!$BB$3:$BB$5)","v":0},{"$f":"valuePL(AC34,'Utility Functions'!$BC$3:$BC$5,'Utility Functions'!$BD$3:$BD$5)","v":0},10.246639728724558,null,10.246639728724558,3.2866397287245581,0.5,0,2.16,4.3]
[34,{"$f":"valueE(B35,'Utility Functions'!$B$3,'Utility Functions'!$B$4,'Utility Functions'!$B$5,'Utility Functions'!$B$6)","v":0},{"$f":"valueE(C35,'Utility Functions'!$D$3,'Utility Functions'!$D$4,'Utility Functions'!$D$5,'Utility Functions'!$D$6)","v":0},{"$f":"valuePL(D35,'Utility Functions'!$E$3:$E$5,'Utility Functions'!$F$3:$F$5)","v":0},{"$f":"valuePL(E35,'Utility Functions'!$G$3:$G$5,'Utility Functions'!$H$3:$H$5)","v":0},{"$f":"valuePL(F35,'Utility Functions'!$I$3:$I$4,'Utility Functions'!$J$3:$J$5)","v":0},{"$f":"valueE(G35,'Utility Functions'!$L$3,'Utility Functions'!$L$4,'Utility Functions'!$L$5,'Utility Functions'!$L$6)","v":0},{"$f":"valueE(H35,'Utility Functions'!$N$3,'Utility Functions'!$N$4,'Utility Functions'!$N$5,'Utility Functions'!$N$6)","v":1.1385199240986717E-2},{"$f":"valuePL(I35,'Utility Functions'!$O$3:$O$6,'Utility Functions'!$P$3:$P$6)","v":1},{"$f":"valuePL(J35,'Utility Functions'!$Q$3:$Q$6,'Utility Functions'!$R$3:$R$6)","v":0.91818181818181821},{"$f":"valuePL(K35,'Utility Functions'!$S$3:$S$7,'Utility Functions'!$T$3:$T$7)","v":1},{"$f":"valueE(L35,'Utility Functions'!$V$3,'Utility Functions'!$V$4,'Utility Functions'!$V$5,'Utility Functions'!$V$6)","v":1},{"$f":"valuePL(M35,'Utility Functions'!$W$3:$W$6,'Utility Functions'!$X$3:$X$6)","v":0.91818181818181821},{"$f":"valueE(N35,'Utility Functions'!$Z$3,'Utility Functions'!$Z$4,'Utility Functions'!$Z$5,'Utility Functions'!$Z$6)","v":0},{"$f":"valuePL(O35,'Utility Functions'!$AA$3:$AA$5,'Utility Functions'!$AB$3:$AB$5)","v":0},{"$f":"valuePL(P35,'Utility Functions'!$AC$3:$AC$7,'Utility Functions'!$AD$3:$AD$7)","v":0.5},{"$f":"valuePL(Q35,'Utility Functions'!$AE$3:$AE$6,'Utility Functions'!$AF$3:$AF$6)","v":0},{"$f":"valuePL(R35,'Utility Functions'!$AG$3:$AG$6,'Utility Functions'!$AH$3:$AH$6)","v":1},{"$f":"valuePL(S35,'Utility Functions'!$AI$3:$AI$6,'Utility Functions'!$AJ$3:$AJ$6)","v":1},{"$f":"valuePL(T35,'Utility Functions'!$AK$3:$AK$8,'Utility Functions'!$AL$3:$AL$8)","v":0.8},{"$f":"valuePL(U35,'Utility Functions'!$AM$3:$AM$5,'Utility Functions'!$AN$3:$AN$5)","v":0},{"$f":"valuePL(V35,'Utility Functions'!$AO$3:$AO$5,'Utility Functions'!$AP$3:$AP$5)","v":1},{"$f":"valuePL(W35,'Utility Functions'!$AQ$3:$AQ$6,'Utility Functions'!$AR$3:$AR$6)","v":1},{"$f":"valuePL(X35,'Utility Functions'!$AS$3:$AS$6,'Utility Functions'!$AT$3:$AT$6)","v":1},{"$f":"valuePL(Y35,'Utility Functions'!$AU$3:$AU$6,'Utility Functions'!$AV$3:$AV$6)","v":0},{"$f":"valuePL(Z35,'Utility Functions'!$AW$3:$AW$5,'Utility Functions'!$AX$3:$AX$5)","v":1},{"$f":"valuePL(AA35,'Utility Functions'!$AY$3:$AY$6,'Utility Functions'!$AZ$3:$AZ$6)","v":0.89999999999999991},{"$f":"valuePL(AB35,'Utility Functions'!$BA$3:$BA$5,'Utility Functions'!$BB$3:$BB$5)","v":0.25},{"$f":"valuePL(AC35,'Utility Functions'!$BC$3:$BC$5,'Utility Functions'!$BD$3:$BD$5)","v":0},13.297748835604624,null,13.297748835604624,0,4.847748835604623,0,3.3,5.15]
[35,{"$f":"valueE(B36,'Utility Functions'!$B$3,'Utility Functions'!$B$4,'Utility Functions'!$B$5,'Utility Functions'!$B$6)","v":0.79810469124896843},{"$f":"valueE(C36,'Utility Functions'!$D$3,'Utility Functions'!$D$4,'Utility Functions'!$D$5,'Utility Functions'!$D$6)","v":0.60939983135101949},{"$f":"valuePL(D36,'Utility Functions'!$E$3:$E$5,'Utility Functions'!$F$3:$F$5)","v":0.5},{"$f":"valuePL(E36,'Utility Functions'!$G$3:$G$5,'Utility Functions'!$H$3:$H$5)","v":0.5},{"$f":"valuePL(F36,'Utility Functions'!$I$3:$I$4,'Utility Functions'!$J$3:$J$5)","v":1},{"$f":"valueE(G36,'Utility Functions'!$L$3,'Utility Functions'!$L$4,'Utility Functions'!$L$5,'Utility Functions'!$L$6)","v":0},{"$f":"valueE(H36,'Utility Functions'!$N$3,'Utility Functions'!$N$4,'Utility Functions'!$N$5,'Utility Functions'!$N$6)","v":0},{"$f":"valuePL(I36,'Utility Functions'!$O$3:$O$6,'Utility Functions'!$P$3:$P$6)","v":0},{"$f":"valuePL(J36,'Utility Functions'!$Q$3:$Q$6,'Utility Functions'!$R$3:$R$6)","v":0},{"$f":"valuePL(K36,'Utility Functions'!$S$3:$S$7,'Utility Functions'!$T$3:$T$7)","v":1},{"$f":"valueE(L36,'Utility Functions'!$V$3,'Utility Functions'!$V$4,'Utility Functions'!$V$5,'Utility Functions'!$V$6)","v":0.66666666666666663},{"$f":"valuePL(M36,'Utility Functions'!$W$3:$W$6,'Utility Functions'!$X$3:$X$6)","v":0.1},{"$f":"valueE(N36,'Utility Functions'!$Z$3,'Utility Functions'!$Z$4,'Utility Functions'!$Z$5,'Utility Functions'!$Z$6)","v":1},{"$f":"valuePL(O36,'Utility Functions'!$AA$3:$AA$5,'Utility Functions'!$AB$3:$AB$5)","v":0},{"$f":"valuePL(P36,'Utility Functions'!$AC$3:$AC$7,'Utility Functions'!$AD$3:$AD$7)","v":0},{"$f":"valuePL(Q36,'Utility Functions'!$AE$3:$AE$6,'Utility Functions'!$AF$3:$AF$6)","v":0},{"$f":"valuePL(R36,'Utility Functions'!$AG$3:$AG$6,'Utility Functions'!$AH$3:$AH$6)","v":1},{"$f":"valuePL(S36,'Utility Functions'!$AI$3:$AI$6,'Utility Functions'!$AJ$3:$AJ$6)","v":1},{"$f":"valuePL(T36,'Utility Functions'!$AK$3:$AK$8,'Utility Functions'!$AL$3:$AL$8)","v":0.6},{"$f":"valuePL(U36,'Utility Functions'!$AM$3:$AM$5,'Utility Functions'!$AN$3:$AN$5)","v":0},{"$f":"valuePL(V36,'Utility Functions'!$AO$3:$AO$5,'Utility Functions'!$AP$3:$AP$5)","v":1},{"$f":"valuePL(W36,'Utility Functions'!$AQ$3:$AQ$6,'Utility Functions'!$AR$3:$AR$6)","v":0.75},{"$f":"valuePL(X36,'Utility Functions'!$AS$3:$AS$6,'Utility Functions'!$AT$3:$AT$6)","v":0},{"$f":"valuePL(Y36,'Utility Functions'!$AU$3:$AU$6,'Utility Functions'!$AV$3:$AV$6)","v":0.2},{"$f":"valuePL(Z36,'Utility Functions'!$AW$3:$AW$5,'Utility Functions'!$AX$3:$AX$5)","v":1},{"$f":"valuePL(AA36,'Utility Functions'!$AY$3:$AY$6,'Utility Functions'!$AZ$3:$AZ$6)","v":0},{"$f":"valuePL(AB36,'Utility Functions'!$BA$3:$BA$5,'Utility Functions'!$BB$3:$BB$5)","v":0.25},{"$f":"valuePL(AC36,'Utility Functions'!$BC$3:$BC$5,'Utility Functions'!$BD$3:$BD$5)","v":0.25},12.224171189266654,null,12.224171189266656,3.407504522599988,1.7666666666666666,1,2.6,3.45]
["Unweighted",{"$f":"SUMPRODUCT(B46:B80,$B$85:$B$119)","v":2.2879679218640305},{"$f":"SUMPRODUCT(C46:C80,$B$85:$B$119)","v":2.0544502672077192},{"$f":"SUMPRODUCT(D46:D80,$B$85:$B$119)","v":3},0.5,0,0,3.9848197343453511E-2,0.83818181818181825,0.08,0.3290909090909091,1.5,0.04,2.5,0.75,1,1.6,4,3.66,1.8,0.75,3,3.75,2.4000000000000004,3.4000000000000004,3.5,2.2999999999999998,2.5,1.5,null,null,"Unweighted",{"$f":"SUMPRODUCT(AG46:AG80,$B$85:$B$119)","v":7.8424181890717497},{"$f":"SUMPRODUCT(AH46:AH80,$B$85:$B$119)","v":2.8271209246161808},3.25,12.81,22.35]
["Weighted",{"$f":"B$81*Sens_Status!I5","v":7.2559225787510853E-2},{"$f":"C$81*Sens_Status!J5","v":6.1591303457250522E-2},{"$f":"D$81*Sens_Status!K5","v":9.1083686528060537E-2},{"$f":"E$81*Sens_Status!L5","v":1.4789775187675798E-2},{"$f":"F$81*Sens_Status!M5","v":0},{"$f":"G$81*Sens_Status!N5","v":0},{"$f":"H$81*Sens_Status!O5","v":5.9156076319929834E-4},{"$f":"I$81*Sens_Status!P5","v":2.1122036681183027E-2},{"$f":"J$81*Sens_Status!Q5","v":1.9644776152396171E-3},{"$f":"K$81*Sens_Status!R5","v":7.1198287292737949E-3},{"$f":"L$81*Sens_Status!S5","v":3.3262362026189318E-2},{"$f":"M$81*Sens_Status!T5","v":6.6974959473188763E-4},{"$f":"N$81*Sens_Status!U5","v":7.4999999999999997E-2},{"$f":"O$81*Sens_Status!V5","v":6.7500000000000004E-2},{"$f":"P$81*Sens_Status!W5","v":3.9537439904911618E-2},{"$f":"Q$81*Sens_Status!X5","v":6.9732219364335615E-2},{"$f":"R$81*Sens_Status!Y5","v":0.19954717228010094},{"$f":"S$81*Sens_Status!Z5","v":0.1599180011099833},{"$f":"T$81*Sens_Status!AA5","v":5.7245977411458558E-2},{"$f":"U$81*Sens_Status!AB5","v":2.3622274658988605E-2},{"$f":"V$81*Sens_Status!AC5","v":0.16336910340369784},{"$f":"W$81*Sens_Status!AD5","v":0.14727140084108473},{"$f":"X$81*Sens_Status!AE5","v":0.10079859949052529},{"$f":"Y$81*Sens_Status!AF5","v":0.17745125625591118},{"$f":"Z$81*Sens_Status!AG5","v":0.15827952706400442},{"$f":"AA$81*Sens_Status!AH5","v":8.0593640048594928E-2},{"$f":"AB$81*Sens_Status!AI5","v":9.2903304113056293E-2},{"$f":"AC$81*Sens_Status!AJ5","v":5.1983309251533452E-2},null,null,"Weighted for SA",{"$f":"AG81*#REF!","v":{"$error":"#REF!"}},{"$f":"AH81*#REF!","v":{"$error":"#REF!"}},{"$f":"AI81*#REF!","v":{"$error":"#REF!"}},{"$f":"AJ81*#REF!","v":{"$error":"#REF!"}},{"$f":"AK81*#REF!","v":{"$error":"#REF!"}}]
[]
[null,"Decision variable","Benefit","Cost"]
[{"$f":"A2","v":1},0,{"$f":"AD46","v":17.117643866192076},{"$f":"AD2","v":700000}]
[2,0,{"$f":"AD47","v":12.641625800575998},{"$f":"AD3","v":5400000}]
[3,1,11.563541444302563,250000]
[4,0,9.2460291931089209,150000]
[5,1,9.5663279251355373,220000]
[6,0,5.9008471271383875,110000]
[7,0,15.54287399641135,1000000]
[8,0,14.227364688589191,5000000]
[9,0,11.893773577166716,25000]
[10,0,9.01,900000]
[11,0,13.174032258064516,1500000]
[12,0,9.4195802436719873,100000]
[13,1,7.5245670174228056,250000]
[14,0,10.338706637075108,500000]
[15,0,15.150477261414375,800000]
[16,0,15.119696969696969,2000000]
[17,0,10.876550515651747,500000]
[18,1,10.178462998102468,300000]
[19,0,9.3165012474871283,750000]
[20,0,15.091255033092194,1500000]
[21,0,9.5500000000000007,900000]
[22,0,9.471742567994939,750000]
[23,0,9.5321507448123199,1000000]
[24,0,9.4968811881212041,150000]
[25,0,13.870607417804099,250000]
[26,0,11.064076562960208,500000]
[27,0,9.0147596715374529,1200000]
[28,0,12.499282052393189,500000]
[29,0,12.453684519169958,2000000]
[30,0,7.6494228467205527,250000]
[31,0,9.2059990264483247,650000]
[32,0,14.52045942179552,200000]
[33,1,10.246639728724558,400000]
[34,0,13.297748835604624,900000]
[35,0,12.224171189266654,900000]
[null,{"$f":"SUM(B85:B119)","v":5},{"$f":"SUMPRODUCT(C85:C119,B85:B119)","v":49.079539113687936},{"$f":"SUMPRODUCT(B85:B119,D85:D119)","v":1420000}]
[]
[null,null,"Cost constraint",15000000]

{"sheet":"Portfolio_E_Status","index":47,"n_rows":122,"n_cols":37,"rows_kept":122,"cut":false,"hidden":false,"merged":[]}
["Project","manage_species","manage_spatial","manage_uncertainty","manage_currentpractices","manage_adaptivemanagement","pop_a","pop_b","pop_spatialscope","pop_temporalscope","hab_quantity","hab_quality","hab_temporal","ecoprocess_spp","ecoprocess_uncertainty","datasharing","broaderimpacts","exisitingpriorities","partners","leverage","alignment","objhyp","response","targettaxa","surveydesign","stats","datamanagement","budget","timeline","cost"]
[1,9,6.25,2,2,0,186,1054,75,5,0,2,0,0,0,4,0,2,3,0,0,2,3,3,3,2,3,2,2,700000]
[2,3,28.2,1,0,0,0,0,0,0,0,2,0,4,1,0,0,3,3,0,0,2,3,3,3,2,3,2,2,5400000]
[3,8,28.2,2,0,0,0,0,0,0,0,2,0,5,1,0,2,0,0,0,1,2,3,3,3,2,1,2,2,250000]
[4,1,6.25,2,0,0,0,0,0,0,0,2,0,4,1,0,1,3,3,4,0,1,3,3,1,0,0,2,1,150000]
[5,4,3.1,2,0,0,0,0,50,2,0,2,0,0,0,0,1,3,3,4,1,0,3,3,2,0,0,2,1,220000]
[6,10,6.2E-2,2,0,0,0,0,10,2,0,2,0,0,0,0,1,0,3,3,0,0,0,3,0,0,0,2,1,110000]
[7,52,18.8,0,2,0,0,0,85,12,85,8,12,8,1,0,0,3,3,0,0,2,0,1,3,2,2,0,2,1000000]
[8,3,18.8,2,1,1,0,0,14,14,14,8,14,0,0,0,3,1,3,0,0,2,3,3,3,2,0,1,1,5000000]
[9,9,15.6,2,1,0,70,140,0,0,0,2,0,0,0,3,0,3,2,1,0,2,3,3,1,2,1,1,2,25000]
[10,0,0,0,0,0,0,0,0,0,0,2,0,6,2,1,2,3,2,2,0,0,2,3,3,1,1,0,2,900000]
[11,0,0,0,0,0,6,102,52,15,52,8,15,3,1,1,0,3,3,2,2,2,1,3,3,1,2,0,1,1500000]
[12,2,15.6,2,1,0,0,0,0,0,0,2,0,0,0,0,1,3,3,3,0,1,1,3,1,2,1,2,0,100000]
[13,0,0,0,0,0,0,12,39,2,39,8,2,7,1,1,0,3,3,0,0,1,0,1,0,2,1,1,1,250000]
[14,6,15.6,1,1,0,0,0,0,0,0,2,0,6,1,1,0,3,3,0,0,1,1,3,3,1,2,1,1,500000]
[15,23,12.5,2,1,1,0,0,23,3,23,8,3,1,2,2,0,2,3,3,2,0,3,1,1,2,3,2,1,800000]
[16,0,0,0,0,0,0,0,100,15,100,7,15,0,0,3,0,3,3,5,0,2,2,2,1,2,3,2,2,2000000]
[17,2,15.6,2,1,1,58,290,0,0,0,8,3,0,0,0,0,3,2,0,0,2,3,1,0,1,0,2,1,500000]
[18,0,0,0,0,0,0,30,0,0,0,2,0,8,1,1,3,3,3,5,1,2,2,1,2,1,2,1,0,300000]
[19,8,3.125,1,2,0,0,0,0,0,0,2,0,8,2,0,0,2,3,0,0,1,1,3,2,0,1,0,1,750000]
[20,9,15.6,1,2,0,0,435,76,10,76,6,10,8,2,1,0,3,3,3,2,1,0,0,1,2,1,0,1,1500000]
[21,0,0,0,0,0,0,0,0,0,0,2,0,8,2,0,1,3,3,5,1,0,2,3,1,0,3,1,2,900000]
[22,0,0,0,0,0,16,64,0,0,0,2,0,1,2,4,2,2,3,5,0,1,2,1,0,2,1,2,1,750000]
[23,9,18.8,2,0,0,0,0,0,0,0,2,0,0,0,3,0,3,3,5,0,2,1,2,1,1,1,0,1,1000000]
[24,5,6.25,2,0,0,0,0,0,0,0,2,0,0,0,0,0,3,3,5,0,0,3,1,3,2,1,0,2,150000]
[25,9,18.8,2,0,0,176,308,0,0,0,2,0,8,1,2,2,3,3,0,0,2,1,3,2,1,1,2,2,250000]
[26,17,18.8,2,1,0,0,0,0,0,0,2,0,0,0,3,0,3,3,4,0,2,1,0,2,0,1,2,2,500000]
[27,0,6.25,2,0,0,0,0,0,0,80,2,5,0,0,2,2,3,3,5,0,1,2,3,1,0,0,0,0,1200000]
[28,3,6.25,2,0,1,0,0,0,0,0,4,5,0,0,4,0,3,3,4,0,2,3,3,1,0,2,2,1,500000]
[29,9,12.5,2,1,0,0,0,15,12,15,8,12,0,0,1,0,3,3,4,0,2,1,0,2,1,1,1,2,2000000]
[30,33,18.8,2,0,0,0,0,0,0,0,4,2,0,0,0,0,1,1,0,0,0,3,1,2,0,2,2,0,250000]
[31,4,18.8,1,0,0,0,0,65,4,0,4,4,0,0,2,0,3,2,3,0,1,0,1,1,2,2,1,1,650000]
[32,5,3.125,2,2,1,6,102,40,16,40,8,16,0,0,2,3,3,0,4,0,0,2,1,2,1,0,2,1,200000]
[33,14,18.8,2,1,0,0,0,0,0,0,5,0,0,0,2,0,3,2,0,0,1,3,0,2,2,3,0,0,400000]
[34,0,0,0,0,0,0,12,100,15,100,8,15,0,0,2,0,3,3,4,0,2,3,3,0,2,2,1,0,900000]
[35,8,9.4,1,1,1,0,0,0,0,100,6,5,8,0,0,0,3,3,3,0,2,2,0,1,2,0,1,1,900000]
["CV",{"$f":"_xlfn.STDEV.S(B2:B36)/AVERAGE(B2:B36)","v":1.383842854444886},{"$f":"_xlfn.STDEV.S(C2:C36)/AVERAGE(C2:C36)","v":0.84395823753626376},{"$f":"_xlfn.STDEV.S(D2:D36)/AVERAGE(D2:D36)","v":0.65948586466528381},{"$f":"_xlfn.STDEV.S(E2:E36)/AVERAGE(E2:E36)","v":1.2933654230908831},2.2305806858480666,2.9881459898804135,2.7250501152884543,1.5394659205075842,1.5790297611729722,1.6828143944790142,0.63288342730791625,1.4346340567392073,1.2744250477591585,1.2909944487358058,1.043011114951035,1.4910544805781871,0.32582327651393111,0.30721159062514791,0.8219511329380369,2.1760730956581078,0.64975875258290616,0.58618247649425104,0.61083323417736113,0.63333947951472869,0.68629571860885286,0.76505300516434493,0.69428102652373402,0.60312027652595823]
["sd",{"$f":"_xlfn.STDEV.S(B2:B36)","v":10.477667326511279}]
["mean",{"$f":"AVERAGE(B2:B36)","v":7.5714285714285712}]
[null,{"$f":"B1","v":"manage_species"},{"$f":"C1","v":"manage_spatial"},"manage_uncertainty","manage_currentpractices","manage_adaptivemanagement","pop_a","pop_b","pop_spatialscope","pop_temporalscope","hab_quantity","hab_quality","hab_temporal","ecoprocess_spp","ecoprocess_uncertainty","datasharing","broaderimpacts","exisitingpriorities","partners","leverage","alignment","objhyp","response","targettaxa","surveydesign","stats","datamanagement","budget","timeline"]
[null,"Metric 1","Metric 2","Metric 3","Metric 4","Metric 5","Metric 6a","Metric 6b","Metric 7","Metric 8","Metric 9","Metric 10","Metric 11","Metric 12","Metric 13","Metric 14","Metric 15","Metric 16","Metric 17","Metric 18","Metric 19","Metric 20","Metric 21","Metric 22","Metric 23","Metric 24","Metric 25","Metric 26","Metric 27"]
["Weights",0.03,0.03,0.03,0.03,0.04,1.4999999999999999E-2,1.4999999999999999E-2,0.03,0.02,0.02,0.02,0.02,0.03,0.09,0.04,0.04,0.05,0.05,0.03,0.03,0.05,0.04,0.04,0.05,0.05,0.04,0.04,0.03]
[]
[null,"Unweighted"]
["Project",null,null,null,null,null,null,null,null,null,null,null,null,null,null,null,null,null,null,null,null,null,null,null,null,null,null,null,null,"Unweighted total",null,"Unweighted total","management","status","ecol_proc","integration","rigor"]
[{"$f":"A2","v":1},{"$f":"valueE(B2,'Utility Functions'!$B$3,'Utility Functions'!$B$4,'Utility Functions'!$B$5,'Utility Functions'!$B$6)","v":0.83470237647280454},{"$f":"valueE(C2,'Utility Functions'!$D$3,'Utility Functions'!$D$4,'Utility Functions'!$D$5,'Utility Functions'!$D$6)","v":0.46475967153745396},{"$f":"valuePL(D2,'Utility Functions'!$E$3:$E$5,'Utility Functions'!$F$3:$F$5)","v":1},{"$f":"valuePL(E2,'Utility Functions'!$G$3:$G$5,'Utility Functions'!$H$3:$H$5)","v":1},{"$f":"valuePL(F2,'Utility Functions'!$I$3:$I$4,'Utility Functions'!$J$3:$J$5)","v":0},{"$f":"valueE(G2,'Utility Functions'!$L$3,'Utility Functions'!$L$4,'Utility Functions'!$L$5,'Utility Functions'!$L$6)","v":1},{"$f":"valueE(H2,'Utility Functions'!$N$3,'Utility Functions'!$N$4,'Utility Functions'!$N$5,'Utility Functions'!$N$6)","v":1},{"$f":"valuePL(I2,'Utility Functions'!$O$3:$O$6,'Utility Functions'!$P$3:$P$6)","v":0.91818181818181821},{"$f":"valuePL(J2,'Utility Functions'!$Q$3:$Q$6,'Utility Functions'!$R$3:$R$6)","v":0.1},{"$f":"valuePL(K2,'Utility Functions'!$S$3:$S$7,'Utility Functions'!$T$3:$T$7)","v":0},{"$f":"valueE(L2,'Utility Functions'!$V$3,'Utility Functions'!$V$4,'Utility Functions'!$V$5,'Utility Functions'!$V$6)","v":0},{"$f":"valuePL(M2,'Utility Functions'!$W$3:$W$6,'Utility Functions'!$X$3:$X$6)","v":0},{"$f":"valueE(N2,'Utility Functions'!$Z$3,'Utility Functions'!$Z$4,'Utility Functions'!$Z$5,'Utility Functions'!$Z$6)","v":0},{"$f":"valuePL(O2,'Utility Functions'!$AA$3:$AA$5,'Utility Functions'!$AB$3:$AB$5)","v":0},{"$f":"valuePL(P2,'Utility Functions'!$AC$3:$AC$7,'Utility Functions'!$AD$3:$AD$7)","v":1},{"$f":"valuePL(Q2,'Utility Functions'!$AE$3:$AE$6,'Utility Functions'!$AF$3:$AF$6)","v":0},{"$f":"valuePL(R2,'Utility Functions'!$AG$3:$AG$6,'Utility Functions'!$AH$3:$AH$6)","v":0.8},{"$f":"valuePL(S2,'Utility Functions'!$AI$3:$AI$6,'Utility Functions'!$AJ$3:$AJ$6)","v":1},{"$f":"valuePL(T2,'Utility Functions'!$AK$3:$AK$8,'Utility Functions'!$AL$3:$AL$8)","v":0},{"$f":"valuePL(U2,'Utility Functions'!$AM$3:$AM$5,'Utility Functions'!$AN$3:$AN$5)","v":0},{"$f":"valuePL(V2,'Utility Functions'!$AO$3:$AO$5,'Utility Functions'!$AP$3:$AP$5)","v":1},{"$f":"valuePL(W2,'Utility Functions'!$AQ$3:$AQ$6,'Utility Functions'!$AR$3:$AR$6)","v":1},{"$f":"valuePL(X2,'Utility Functions'!$AS$3:$AS$6,'Utility Functions'!$AT$3:$AT$6)","v":1},{"$f":"valuePL(Y2,'Utility Functions'!$AU$3:$AU$6,'Utility Functions'!$AV$3:$AV$6)","v":1},{"$f":"valuePL(Z2,'Utility Functions'!$AW$3:$AW$5,'Utility Functions'!$AX$3:$AX$5)","v":1},{"$f":"valuePL(AA2,'Utility Functions'!$AY$3:$AY$6,'Utility Functions'!$AZ$3:$AZ$6)","v":1},{"$f":"valuePL(AB2,'Utility Functions'!$BA$3:$BA$5,'Utility Functions'!$BB$3:$BB$5)","v":1},{"$f":"valuePL(AC2,'Utility Functions'!$BC$3:$BC$5,'Utility Functions'!$BD$3:$BD$5)","v":1},{"$f":"SUM(B46:AC46)","v":17.117643866192076},null,{"$f":"SUM(AG46:AK46)","v":17.117643866192076},{"$f":"SUM(B46:F46)","v":3.2994620480102586},{"$f":"SUM(G46:M46)","v":3.0181818181818181},{"$f":"SUM(N46:O46)","v":0},{"$f":"SUM(P46:U46)","v":2.8},{"$f":"SUM(V46:AC46)","v":8}]
[2,{"$f":"valueE(B3,'Utility Functions'!$B$3,'Utility Functions'!$B$4,'Utility Functions'!$B$5,'Utility Functions'!$B$6)","v":0.4511890475224023},{"$f":"valueE(C3,'Utility Functions'!$D$3,'Utility Functions'!$D$4,'Utility Functions'!$D$5,'Utility Functions'!$D$6)","v":0.94043675305359531},{"$f":"valuePL(D3,'Utility Functions'!$E$3:$E$5,'Utility Functions'!$F$3:$F$5)","v":0.5},{"$f":"valuePL(E3,'Utility Functions'!$G$3:$G$5,'Utility Functions'!$H$3:$H$5)","v":0},{"$f":"valuePL(F3,'Utility Functions'!$I$3:$I$4,'Utility Functions'!$J$3:$J$5)","v":0},{"$f":"valueE(G3,'Utility Functions'!$L$3,'Utility Functions'!$L$4,'Utility Functions'!$L$5,'Utility Functions'!$L$6)","v":0},{"$f":"valueE(H3,'Utility Functions'!$N$3,'Utility Functions'!$N$4,'Utility Functions'!$N$5,'Utility Functions'!$N$6)","v":0},{"$f":"valuePL(I3,'Utility Functions'!$O$3:$O$6,'Utility Functions'!$P$3:$P$6)","v":0},{"$f":"valuePL(J3,'Utility Functions'!$Q$3:$Q$6,'Utility Functions'!$R$3:$R$6)","v":0},{"$f":"valuePL(K3,'Utility Functions'!$S$3:$S$7,'Utility Functions'!$T$3:$T$7)","v":0},{"$f":"valueE(L3,'Utility Functions'!$V$3,'Utility Functions'!$V$4,'Utility Functions'!$V$5,'Utility Functions'!$V$6)","v":0},{"$f":"valuePL(M3,'Utility Functions'!$W$3:$W$6,'Utility Functions'!$X$3:$X$6)","v":0},{"$f":"valueE(N3,'Utility Functions'!$Z$3,'Utility Functions'!$Z$4,'Utility Functions'!$Z$5,'Utility Functions'!$Z$6)","v":0.5},{"$f":"valuePL(O3,'Utility Functions'!$AA$3:$AA$5,'Utility Functions'!$AB$3:$AB$5)","v":0.25},{"$f":"valuePL(P3,'Utility Functions'!$AC$3:$AC$7,'Utility Functions'!$AD$3:$AD$7)","v":0},{"$f":"valuePL(Q3,'Utility Functions'!$AE$3:$AE$6,'Utility Functions'!$AF$3:$AF$6)","v":0},{"$f":"valuePL(R3,'Utility Functions'!$AG$3:$AG$6,'Utility Functions'!$AH$3:$AH$6)","v":1},{"$f":"valuePL(S3,'Utility Functions'!$AI$3:$AI$6,'Utility Functions'!$AJ$3:$AJ$6)","v":1},{"$f":"valuePL(T3,'Utility Functions'!$AK$3:$AK$8,'Utility Functions'!$AL$3:$AL$8)","v":0},{"$f":"valuePL(U3,'Utility Functions'!$AM$3:$AM$5,'Utility Functions'!$AN$3:$AN$5)","v":0},{"$f":"valuePL(V3,'Utility Functions'!$AO$3:$AO$5,'Utility Functions'!$AP$3:$AP$5)","v":1},{"$f":"valuePL(W3,'Utility Functions'!$AQ$3:$AQ$6,'Utility Functions'!$AR$3:$AR$6)","v":1},{"$f":"valuePL(X3,'Utility Functions'!$AS$3:$AS$6,'Utility Functions'!$AT$3:$AT$6)","v":1},{"$f":"valuePL(Y3,'Utility Functions'!$AU$3:$AU$6,'Utility Functions'!$AV$3:$AV$6)","v":1},{"$f":"valuePL(Z3,'Utility Functions'!$AW$3:$AW$5,'Utility Functions'!$AX$3:$AX$5)","v":1},{"$f":"valuePL(AA3,'Utility Functions'!$AY$3:$AY$6,'Utility Functions'!$AZ$3:$AZ$6)","v":1},{"$f":"valuePL(AB3,'Utility Functions'!$BA$3:$BA$5,'Utility Functions'!$BB$3:$BB$5)","v":1},{"$f":"valuePL(AC3,'Utility Functions'!$BC$3:$BC$5,'Utility Functions'!$BD$3:$BD$5)","v":1},{"$f":"SUM(B47:AC47)","v":12.641625800575998},null,{"$f":"SUM(AG47:AK47)","v":12.641625800575998},{"$f":"SUM(B47:F47)","v":1.8916258005759976},{"$f":"SUM(G47:M47)","v":0},{"$f":"SUM(N47:O47)","v":0.75},{"$f":"SUM(P47:U47)","v":2},{"$f":"SUM(V47:AC47)","v":8}]
[3,{"$f":"valueE(B4,'Utility Functions'!$B$3,'Utility Functions'!$B$4,'Utility Functions'!$B$5,'Utility Functions'!$B$6)","v":0.79810469124896843},{"$f":"valueE(C4,'Utility Functions'!$D$3,'Utility Functions'!$D$4,'Utility Functions'!$D$5,'Utility Functions'!$D$6)","v":0.94043675305359531},{"$f":"valuePL(D4,'Utility Functions'!$E$3:$E$5,'Utility Functions'!$F$3:$F$5)","v":1},{"$f":"valuePL(E4,'Utility Functions'!$G$3:$G$5,'Utility Functions'!$H$3:$H$5)","v":0},{"$f":"valuePL(F4,'Utility Functions'!$I$3:$I$4,'Utility Functions'!$J$3:$J$5)","v":0},{"$f":"valueE(G4,'Utility Functions'!$L$3,'Utility Functions'!$L$4,'Utility Functions'!$L$5,'Utility Functions'!$L$6)","v":0},{"$f":"valueE(H4,'Utility Functions'!$N$3,'Utility Functions'!$N$4,'Utility Functions'!$N$5,'Utility Functions'!$N$6)","v":0},{"$f":"valuePL(I4,'Utility Functions'!$O$3:$O$6,'Utility Functions'!$P$3:$P$6)","v":0},{"$f":"valuePL(J4,'Utility Functions'!$Q$3:$Q$6,'Utility Functions'!$R$3:$R$6)","v":0},{"$f":"valuePL(K4,'Utility Functions'!$S$3:$S$7,'Utility Functions'!$T$3:$T$7)","v":0},{"$f":"valueE(L4,'Utility Functions'!$V$3,'Utility Functions'!$V$4,'Utility Functions'!$V$5,'Utility Functions'!$V$6)","v":0},{"$f":"valuePL(M4,'Utility Functions'!$W$3:$W$6,'Utility Functions'!$X$3:$X$6)","v":0},{"$f":"valueE(N4,'Utility Functions'!$Z$3,'Utility Functions'!$Z$4,'Utility Functions'!$Z$5,'Utility Functions'!$Z$6)","v":0.625},{"$f":"valuePL(O4,'Utility Functions'!$AA$3:$AA$5,'Utility Functions'!$AB$3:$AB$5)","v":0.25},{"$f":"valuePL(P4,'Utility Functions'!$AC$3:$AC$7,'Utility Functions'!$AD$3:$AD$7)","v":0},{"$f":"valuePL(Q4,'Utility Functions'!$AE$3:$AE$6,'Utility Functions'!$AF$3:$AF$6)","v":0.5},{"$f":"valuePL(R4,'Utility Functions'!$AG$3:$AG$6,'Utility Functions'!$AH$3:$AH$6)","v":0},{"$f":"valuePL(S4,'Utility Functions'!$AI$3:$AI$6,'Utility Functions'!$AJ$3:$AJ$6)","v":0},{"$f":"valuePL(T4,'Utility Functions'!$AK$3:$AK$8,'Utility Functions'!$AL$3:$AL$8)","v":0},{"$f":"valuePL(U4,'Utility Functions'!$AM$3:$AM$5,'Utility Functions'!$AN$3:$AN$5)","v":0.25},{"$f":"valuePL(V4,'Utility Functions'!$AO$3:$AO$5,'Utility Functions'!$AP$3:$AP$5)","v":1},{"$f":"valuePL(W4,'Utility Functions'!$AQ$3:$AQ$6,'Utility Functions'!$AR$3:$AR$6)","v":1},{"$f":"valuePL(X4,'Utility Functions'!$AS$3:$AS$6,'Utility Functions'!$AT$3:$AT$6)","v":1},{"$f":"valuePL(Y4,'Utility Functions'!$AU$3:$AU$6,'Utility Functions'!$AV$3:$AV$6)","v":1},{"$f":"valuePL(Z4,'Utility Functions'!$AW$3:$AW$5,'Utility Functions'!$AX$3:$AX$5)","v":1},{"$f":"valuePL(AA4,'Utility Functions'!$AY$3:$AY$6,'Utility Functions'!$AZ$3:$AZ$6)","v":0.2},{"$f":"valuePL(AB4,'Utility Functions'!$BA$3:$BA$5,'Utility Functions'!$BB$3:$BB$5)","v":1},{"$f":"valuePL(AC4,'Utility Functions'!$BC$3:$BC$5,'Utility Functions'!$BD$3:$BD$5)","v":1},11.563541444302563,null,11.563541444302565,2.7385414443025637,0,0.875,0.75,7.2]
[4,{"$f":"valueE(B5,'Utility Functions'!$B$3,'Utility Functions'!$B$4,'Utility Functions'!$B$5,'Utility Functions'!$B$6)","v":0.1812695215714665},{"$f":"valueE(C5,'Utility Functions'!$D$3,'Utility Functions'!$D$4,'Utility Functions'!$D$5,'Utility Functions'!$D$6)","v":0.46475967153745396},{"$f":"valuePL(D5,'Utility Functions'!$E$3:$E$5,'Utility Functions'!$F$3:$F$5)","v":1},{"$f":"valuePL(E5,'Utility Functions'!$G$3:$G$5,'Utility Functions'!$H$3:$H$5)","v":0},{"$f":"valuePL(F5,'Utility Functions'!$I$3:$I$4,'Utility Functions'!$J$3:$J$5)","v":0},{"$f":"valueE(G5,'Utility Functions'!$L$3,'Utility Functions'!$L$4,'Utility Functions'!$L$5,'Utility Functions'!$L$6)","v":0},{"$f":"valueE(H5,'Utility Functions'!$N$3,'Utility Functions'!$N$4,'Utility Functions'!$N$5,'Utility Functions'!$N$6)","v":0},{"$f":"valuePL(I5,'Utility Functions'!$O$3:$O$6,'Utility Functions'!$P$3:$P$6)","v":0},{"$f":"valuePL(J5,'Utility Functions'!$Q$3:$Q$6,'Utility Functions'!$R$3:$R$6)","v":0},{"$f":"valuePL(K5,'Utility Functions'!$S$3:$S$7,'Utility Functions'!$T$3:$T$7)","v":0},{"$f":"valueE(L5,'Utility Functions'!$V$3,'Utility Functions'!$V$4,'Utility Functions'!$V$5,'Utility Functions'!$V$6)","v":0},{"$f":"valuePL(M5,'Utility Functions'!$W$3:$W$6,'Utility Functions'!$X$3:$X$6)","v":0},{"$f":"valueE(N5,'Utility Functions'!$Z$3,'Utility Functions'!$Z$4,'Utility Functions'!$Z$5,'Utility Functions'!$Z$6)","v":0.5},{"$f":"valuePL(O5,'Utility Functions'!$AA$3:$AA$5,'Utility Functions'!$AB$3:$AB$5)","v":0.25},{"$f":"valuePL(P5,'Utility Functions'!$AC$3:$AC$7,'Utility Functions'!$AD$3:$AD$7)","v":0},{"$f":"valuePL(Q5,'Utility Functions'!$AE$3:$AE$6,'Utility Functions'!$AF$3:$AF$6)","v":0.1},{"$f":"valuePL(R5,'Utility Functions'!$AG$3:$AG$6,'Utility Functions'!$AH$3:$AH$6)","v":1},{"$f":"valuePL(S5,'Utility Functions'!$AI$3:$AI$6,'Utility Functions'!$AJ$3:$AJ$6)","v":1},{"$f":"valuePL(T5,'Utility Functions'!$AK$3:$AK$8,'Utility Functions'!$AL$3:$AL$8)","v":0.8},{"$f":"valuePL(U5,'Utility Functions'!$AM$3:$AM$5,'Utility Functions'!$AN$3:$AN$5)","v":0},{"$f":"valuePL(V5,'Utility Functions'!$AO$3:$AO$5,'Utility Functions'!$AP$3:$AP$5)","v":0.5},{"$f":"valuePL(W5,'Utility Functions'!$AQ$3:$AQ$6,'Utility Functions'!$AR$3:$AR$6)","v":1},{"$f":"valuePL(X5,'Utility Functions'!$AS$3:$AS$6,'Utility Functions'!$AT$3:$AT$6)","v":1},{"$f":"valuePL(Y5,'Utility Functions'!$AU$3:$AU$6,'Utility Functions'!$AV$3:$AV$6)","v":0.2},{"$f":"valuePL(Z5,'Utility Functions'!$AW$3:$AW$5,'Utility Functions'!$AX$3:$AX$5)","v":0},{"$f":"valuePL(AA5,'Utility Functions'!$AY$3:$AY$6,'Utility Functions'!$AZ$3:$AZ$6)","v":0},{"$f":"valuePL(AB5,'Utility Functions'!$BA$3:$BA$5,'Utility Functions'!$BB$3:$BB$5)","v":1},{"$f":"valuePL(AC5,'Utility Functions'!$BC$3:$BC$5,'Utility Functions'!$BD$3:$BD$5)","v":0.25},9.2460291931089209,null,9.2460291931089209,1.6460291931089204,0,0.75,2.9000000000000004,3.95]
[5,{"$f":"valueE(B6,'Utility Functions'!$B$3,'Utility Functions'!$B$4,'Utility Functions'!$B$5,'Utility Functions'!$B$6)","v":0.55067187023002029},{"$f":"valueE(C6,'Utility Functions'!$D$3,'Utility Functions'!$D$4,'Utility Functions'!$D$5,'Utility Functions'!$D$6)","v":0.26656514581460788},{"$f":"valuePL(D6,'Utility Functions'!$E$3:$E$5,'Utility Functions'!$F$3:$F$5)","v":1},{"$f":"valuePL(E6,'Utility Functions'!$G$3:$G$5,'Utility Functions'!$H$3:$H$5)","v":0},{"$f":"valuePL(F6,'Utility Functions'!$I$3:$I$4,'Utility Functions'!$J$3:$J$5)","v":0},{"$f":"valueE(G6,'Utility Functions'!$L$3,'Utility Functions'!$L$4,'Utility Functions'!$L$5,'Utility Functions'!$L$6)","v":0},{"$f":"valueE(H6,'Utility Functions'!$N$3,'Utility Functions'!$N$4,'Utility Functions'!$N$5,'Utility Functions'!$N$6)","v":0},{"$f":"valuePL(I6,'Utility Functions'!$O$3:$O$6,'Utility Functions'!$P$3:$P$6)","v":0.50909090909090915},{"$f":"valuePL(J6,'Utility Functions'!$Q$3:$Q$6,'Utility Functions'!$R$3:$R$6)","v":0.04},{"$f":"valuePL(K6,'Utility Functions'!$S$3:$S$7,'Utility Functions'!$T$3:$T$7)","v":0},{"$f":"valueE(L6,'Utility Functions'!$V$3,'Utility Functions'!$V$4,'Utility Functions'!$V$5,'Utility Functions'!$V$6)","v":0},{"$f":"valuePL(M6,'Utility Functions'!$W$3:$W$6,'Utility Functions'!$X$3:$X$6)","v":0},{"$f":"valueE(N6,'Utility Functions'!$Z$3,'Utility Functions'!$Z$4,'Utility Functions'!$Z$5,'Utility Functions'!$Z$6)","v":0},{"$f":"valuePL(O6,'Utility Functions'!$AA$3:$AA$5,'Utility Functions'!$AB$3:$AB$5)","v":0},{"$f":"valuePL(P6,'Utility Functions'!$AC$3:$AC$7,'Utility Functions'!$AD$3:$AD$7)","v":0},{"$f":"valuePL(Q6,'Utility Functions'!$AE$3:$AE$6,'Utility Functions'!$AF$3:$AF$6)","v":0.1},{"$f":"valuePL(R6,'Utility Functions'!$AG$3:$AG$6,'Utility Functions'!$AH$3:$AH$6)","v":1},{"$f":"valuePL(S6,'Utility Functions'!$AI$3:$AI$6,'Utility Functions'!$AJ$3:$AJ$6)","v":1},{"$f":"valuePL(T6,'Utility Functions'!$AK$3:$AK$8,'Utility Functions'!$AL$3:$AL$8)","v":0.8},{"$f":"valuePL(U6,'Utility Functions'!$AM$3:$AM$5,'Utility Functions'!$AN$3:$AN$5)","v":0.25},{"$f":"valuePL(V6,'Utility Functions'!$AO$3:$AO$5,'Utility Functions'!$AP$3:$AP$5)","v":0},{"$f":"valuePL(W6,'Utility Functions'!$AQ$3:$AQ$6,'Utility Functions'!$AR$3:$AR$6)","v":1},{"$f":"valuePL(X6,'Utility Functions'!$AS$3:$AS$6,'Utility Functions'!$AT$3:$AT$6)","v":1},{"$f":"valuePL(Y6,'Utility Functions'!$AU$3:$AU$6,'Utility Functions'!$AV$3:$AV$6)","v":0.8},{"$f":"valuePL(Z6,'Utility Functions'!$AW$3:$AW$5,'Utility Functions'!$AX$3:$AX$5)","v":0},{"$f":"valuePL(AA6,'Utility Functions'!$AY$3:$AY$6,'Utility Functions'!$AZ$3:$AZ$6)","v":0},{"$f":"valuePL(AB6,'Utility Functions'!$BA$3:$BA$5,'Utility Functions'!$BB$3:$BB$5)","v":1},{"$f":"valuePL(AC6,'Utility Functions'!$BC$3:$BC$5,'Utility Functions'!$BD$3:$BD$5)","v":0.25},9.5663279251355373,null,9.5663279251355391,1.8172370160446283,0.54909090909090918,0,3.1500000000000004,4.05]
[6,{"$f":"valueE(B7,'Utility Functions'!$B$3,'Utility Functions'!$B$4,'Utility Functions'!$B$5,'Utility Functions'!$B$6)","v":0.86466602685702687},{"$f":"valueE(C7,'Utility Functions'!$D$3,'Utility Functions'!$D$4,'Utility Functions'!$D$5,'Utility Functions'!$D$6)","v":6.1811002813601471E-3},{"$f":"valuePL(D7,'Utility Functions'!$E$3:$E$5,'Utility Functions'!$F$3:$F$5)","v":1},{"$f":"valuePL(E7,'Utility Functions'!$G$3:$G$5,'Utility Functions'!$H$3:$H$5)","v":0},{"$f":"valuePL(F7,'Utility Functions'!$I$3:$I$4,'Utility Functions'!$J$3:$J$5)","v":0},{"$f":"valueE(G7,'Utility Functions'!$L$3,'Utility Functions'!$L$4,'Utility Functions'!$L$5,'Utility Functions'!$L$6)","v":0},{"$f":"valueE(H7,'Utility Functions'!$N$3,'Utility Functions'!$N$4,'Utility Functions'!$N$5,'Utility Functions'!$N$6)","v":0},{"$f":"valuePL(I7,'Utility Functions'!$O$3:$O$6,'Utility Functions'!$P$3:$P$6)","v":0.04},{"$f":"valuePL(J7,'Utility Functions'!$Q$3:$Q$6,'Utility Functions'!$R$3:$R$6)","v":0.04},{"$f":"valuePL(K7,'Utility Functions'!$S$3:$S$7,'Utility Functions'!$T$3:$T$7)","v":0},{"$f":"valueE(L7,'Utility Functions'!$V$3,'Utility Functions'!$V$4,'Utility Functions'!$V$5,'Utility Functions'!$V$6)","v":0},{"$f":"valuePL(M7,'Utility Functions'!$W$3:$W$6,'Utility Functions'!$X$3:$X$6)","v":0},{"$f":"valueE(N7,'Utility Functions'!$Z$3,'Utility Functions'!$Z$4,'Utility Functions'!$Z$5,'Utility Functions'!$Z$6)","v":0},{"$f":"valuePL(O7,'Utility Functions'!$AA$3:$AA$5,'Utility Functions'!$AB$3:$AB$5)","v":0},{"$f":"valuePL(P7,'Utility Functions'!$AC$3:$AC$7,'Utility Functions'!$AD$3:$AD$7)","v":0},{"$f":"valuePL(Q7,'Utility Functions'!$AE$3:$AE$6,'Utility Functions'!$AF$3:$AF$6)","v":0.1},{"$f":"valuePL(R7,'Utility Functions'!$AG$3:$AG$6,'Utility Functions'!$AH$3:$AH$6)","v":0},{"$f":"valuePL(S7,'Utility Functions'!$AI$3:$AI$6,'Utility Functions'!$AJ$3:$AJ$6)","v":1},{"$f":"valuePL(T7,'Utility Functions'!$AK$3:$AK$8,'Utility Functions'!$AL$3:$AL$8)","v":0.6},{"$f":"valuePL(U7,'Utility Functions'!$AM$3:$AM$5,'Utility Functions'!$AN$3:$AN$5)","v":0},{"$f":"valuePL(V7,'Utility Functions'!$AO$3:$AO$5,'Utility Functions'!$AP$3:$AP$5)","v":0},{"$f":"valuePL(W7,'Utility Functions'!$AQ$3:$AQ$6,'Utility Functions'!$AR$3:$AR$6)","v":0},{"$f":"valuePL(X7,'Utility Functions'!$AS$3:$AS$6,'Utility Functions'!$AT$3:$AT$6)","v":1},{"$f":"valuePL(Y7,'Utility Functions'!$AU$3:$AU$6,'Utility Functions'!$AV$3:$AV$6)","v":0},{"$f":"valuePL(Z7,'Utility Functions'!$AW$3:$AW$5,'Utility Functions'!$AX$3:$AX$5)","v":0},{"$f":"valuePL(AA7,'Utility Functions'!$AY$3:$AY$6,'Utility Functions'!$AZ$3:$AZ$6)","v":0},{"$f":"valuePL(AB7,'Utility Functions'!$BA$3:$BA$5,'Utility Functions'!$BB$3:$BB$5)","v":1},{"$f":"valuePL(AC7,'Utility Functions'!$BC$3:$BC$5,'Utility Functions'!$BD$3:$BD$5)","v":0.25},5.9008471271383875,null,5.9008471271383875,1.8708471271383869,0.08,0,1.7000000000000002,2.25]
[7,{"$f":"valueE(B8,'Utility Functions'!$B$3,'Utility Functions'!$B$4,'Utility Functions'!$B$5,'Utility Functions'!$B$6)","v":0.99997108261728973},{"$f":"valueE(C8,'Utility Functions'!$D$3,'Utility Functions'!$D$4,'Utility Functions'!$D$5,'Utility Functions'!$D$6)","v":0.84744836833951609},{"$f":"valuePL(D8,'Utility Functions'!$E$3:$E$5,'Utility Functions'!$F$3:$F$5)","v":0},{"$f":"valuePL(E8,'Utility Functions'!$G$3:$G$5,'Utility Functions'!$H$3:$H$5)","v":1},{"$f":"valuePL(F8,'Utility Functions'!$I$3:$I$4,'Utility Functions'!$J$3:$J$5)","v":0},{"$f":"valueE(G8,'Utility Functions'!$L$3,'Utility Functions'!$L$4,'Utility Functions'!$L$5,'Utility Functions'!$L$6)","v":0},{"$f":"valueE(H8,'Utility Functions'!$N$3,'Utility Functions'!$N$4,'Utility Functions'!$N$5,'Utility Functions'!$N$6)","v":0},{"$f":"valuePL(I8,'Utility Functions'!$O$3:$O$6,'Utility Functions'!$P$3:$P$6)","v":1},{"$f":"valuePL(J8,'Utility Functions'!$Q$3:$Q$6,'Utility Functions'!$R$3:$R$6)","v":0.67272727272727273},{"$f":"valuePL(K8,'Utility Functions'!$S$3:$S$7,'Utility Functions'!$T$3:$T$7)","v":1},{"$f":"valueE(L8,'Utility Functions'!$V$3,'Utility Functions'!$V$4,'Utility Functions'!$V$5,'Utility Functions'!$V$6)","v":1},{"$f":"valuePL(M8,'Utility Functions'!$W$3:$W$6,'Utility Functions'!$X$3:$X$6)","v":0.67272727272727273},{"$f":"valueE(N8,'Utility Functions'!$Z$3,'Utility Functions'!$Z$4,'Utility Functions'!$Z$5,'Utility Functions'!$Z$6)","v":1},{"$f":"valuePL(O8,'Utility Functions'!$AA$3:$AA$5,'Utility Functions'!$AB$3:$AB$5)","v":0.25},{"$f":"valuePL(P8,'Utility Functions'!$AC$3:$AC$7,'Utility Functions'!$AD$3:$AD$7)","v":0},{"$f":"valuePL(Q8,'Utility Functions'!$AE$3:$AE$6,'Utility Functions'!$AF$3:$AF$6)","v":0},{"$f":"valuePL(R8,'Utility Functions'!$AG$3:$AG$6,'Utility Functions'!$AH$3:$AH$6)","v":1},{"$f":"valuePL(S8,'Utility Functions'!$AI$3:$AI$6,'Utility Functions'!$AJ$3:$AJ$6)","v":1},{"$f":"valuePL(T8,'Utility Functions'!$AK$3:$AK$8,'Utility Functions'!$AL$3:$AL$8)","v":0},{"$f":"valuePL(U8,'Utility Functions'!$AM$3:$AM$5,'Utility Functions'!$AN$3:$AN$5)","v":0},{"$f":"valuePL(V8,'Utility Functions'!$AO$3:$AO$5,'Utility Functions'!$AP$3:$AP$5)","v":1},{"$f":"valuePL(W8,'Utility Functions'!$AQ$3:$AQ$6,'Utility Functions'!$AR$3:$AR$6)","v":0},{"$f":"valuePL(X8,'Utility Functions'!$AS$3:$AS$6,'Utility Functions'!$AT$3:$AT$6)","v":0.2},{"$f":"valuePL(Y8,'Utility Functions'!$AU$3:$AU$6,'Utility Functions'!$AV$3:$AV$6)","v":1},{"$f":"valuePL(Z8,'Utility Functions'!$AW$3:$AW$5,'Utility Functions'!$AX$3:$AX$5)","v":1},{"$f":"valuePL(AA8,'Utility Functions'!$AY$3:$AY$6,'Utility Functions'!$AZ$3:$AZ$6)","v":0.89999999999999991},{"$f":"valuePL(AB8,'Utility Functions'!$BA$3:$BA$5,'Utility Functions'!$BB$3:$BB$5)","v":0},{"$f":"valuePL(AC8,'Utility Functions'!$BC$3:$BC$5,'Utility Functions'!$BD$3:$BD$5)","v":1},15.54287399641135,null,15.54287399641135,2.8474194509568056,4.3454545454545457,1.25,2,5.0999999999999996]
[8,{"$f":"valueE(B9,'Utility Functions'!$B$3,'Utility Functions'!$B$4,'Utility Functions'!$B$5,'Utility Functions'!$B$6)","v":0.4511890475224023},{"$f":"valueE(C9,'Utility Functions'!$D$3,'Utility Functions'!$D$4,'Utility Functions'!$D$5,'Utility Functions'!$D$6)","v":0.84744836833951609},{"$f":"valuePL(D9,'Utility Functions'!$E$3:$E$5,'Utility Functions'!$F$3:$F$5)","v":1},{"$f":"valuePL(E9,'Utility Functions'!$G$3:$G$5,'Utility Functions'!$H$3:$H$5)","v":0.5},{"$f":"valuePL(F9,'Utility Functions'!$I$3:$I$4,'Utility Functions'!$J$3:$J$5)","v":1},{"$f":"valueE(G9,'Utility Functions'!$L$3,'Utility Functions'!$L$4,'Utility Functions'!$L$5,'Utility Functions'!$L$6)","v":0},{"$f":"valueE(H9,'Utility Functions'!$N$3,'Utility Functions'!$N$4,'Utility Functions'!$N$5,'Utility Functions'!$N$6)","v":0},{"$f":"valuePL(I9,'Utility Functions'!$O$3:$O$6,'Utility Functions'!$P$3:$P$6)","v":5.6000000000000008E-2},{"$f":"valuePL(J9,'Utility Functions'!$Q$3:$Q$6,'Utility Functions'!$R$3:$R$6)","v":0.83636363636363631},{"$f":"valuePL(K9,'Utility Functions'!$S$3:$S$7,'Utility Functions'!$T$3:$T$7)","v":0},{"$f":"valueE(L9,'Utility Functions'!$V$3,'Utility Functions'!$V$4,'Utility Functions'!$V$5,'Utility Functions'!$V$6)","v":1},{"$f":"valuePL(M9,'Utility Functions'!$W$3:$W$6,'Utility Functions'!$X$3:$X$6)","v":0.83636363636363631},{"$f":"valueE(N9,'Utility Functions'!$Z$3,'Utility Functions'!$Z$4,'Utility Functions'!$Z$5,'Utility Functions'!$Z$6)","v":0},{"$f":"valuePL(O9,'Utility Functions'!$AA$3:$AA$5,'Utility Functions'!$AB$3:$AB$5)","v":0},{"$f":"valuePL(P9,'Utility Functions'!$AC$3:$AC$7,'Utility Functions'!$AD$3:$AD$7)","v":0},{"$f":"valuePL(Q9,'Utility Functions'!$AE$3:$AE$6,'Utility Functions'!$AF$3:$AF$6)","v":1},{"$f":"valuePL(R9,'Utility Functions'!$AG$3:$AG$6,'Utility Functions'!$AH$3:$AH$6)","v":0.2},{"$f":"valuePL(S9,'Utility Functions'!$AI$3:$AI$6,'Utility Functions'!$AJ$3:$AJ$6)","v":1},{"$f":"valuePL(T9,'Utility Functions'!$AK$3:$AK$8,'Utility Functions'!$AL$3:$AL$8)","v":0},{"$f":"valuePL(U9,'Utility Functions'!$AM$3:$AM$5,'Utility Functions'!$AN$3:$AN$5)","v":0},{"$f":"valuePL(V9,'Utility Functions'!$AO$3:$AO$5,'Utility Functions'!$AP$3:$AP$5)","v":1},{"$f":"valuePL(W9,'Utility Functions'!$AQ$3:$AQ$6,'Utility Functions'!$AR$3:$AR$6)","v":1},{"$f":"valuePL(X9,'Utility Functions'!$AS$3:$AS$6,'Utility Functions'!$AT$3:$AT$6)","v":1},{"$f":"valuePL(Y9,'Utility Functions'!$AU$3:$AU$6,'Utility Functions'!$AV$3:$AV$6)","v":1},{"$f":"valuePL(Z9,'Utility Functions'!$AW$3:$AW$5,'Utility Functions'!$AX$3:$AX$5)","v":1},{"$f":"valuePL(AA9,'Utility Functions'!$AY$3:$AY$6,'Utility Functions'!$AZ$3:$AZ$6)","v":0},{"$f":"valuePL(AB9,'Utility Functions'!$BA$3:$BA$5,'Utility Functions'!$BB$3:$BB$5)","v":0.25},{"$f":"valuePL(AC9,'Utility Functions'!$BC$3:$BC$5,'Utility Functions'!$BD$3:$BD$5)","v":0.25},14.227364688589191,null,14.227364688589191,3.7986374158619185,2.7287272727272729,0,2.2000000000000002,5.5]
[9,{"$f":"valueE(B10,'Utility Functions'!$B$3,'Utility Functions'!$B$4,'Utility Functions'!$B$5,'Utility Functions'!$B$6)","v":0.83470237647280454},{"$f":"valueE(C10,'Utility Functions'!$D$3,'Utility Functions'!$D$4,'Utility Functions'!$D$5,'Utility Functions'!$D$6)","v":0.78989979019422951},{"$f":"valuePL(D10,'Utility Functions'!$E$3:$E$5,'Utility Functions'!$F$3:$F$5)","v":1},{"$f":"valuePL(E10,'Utility Functions'!$G$3:$G$5,'Utility Functions'!$H$3:$H$5)","v":0.5},{"$f":"valuePL(F10,'Utility Functions'!$I$3:$I$4,'Utility Functions'!$J$3:$J$5)","v":0},{"$f":"valueE(G10,'Utility Functions'!$L$3,'Utility Functions'!$L$4,'Utility Functions'!$L$5,'Utility Functions'!$L$6)","v":0.37634408602150538},{"$f":"valueE(H10,'Utility Functions'!$N$3,'Utility Functions'!$N$4,'Utility Functions'!$N$5,'Utility Functions'!$N$6)","v":0.13282732447817835},{"$f":"valuePL(I10,'Utility Functions'!$O$3:$O$6,'Utility Functions'!$P$3:$P$6)","v":0},{"$f":"valuePL(J10,'Utility Functions'!$Q$3:$Q$6,'Utility Functions'!$R$3:$R$6)","v":0},{"$f":"valuePL(K10,'Utility Functions'!$S$3:$S$7,'Utility Functions'!$T$3:$T$7)","v":0},{"$f":"valueE(L10,'Utility Functions'!$V$3,'Utility Functions'!$V$4,'Utility Functions'!$V$5,'Utility Functions'!$V$6)","v":0},{"$f":"valuePL(M10,'Utility Functions'!$W$3:$W$6,'Utility Functions'!$X$3:$X$6)","v":0},{"$f":"valueE(N10,'Utility Functions'!$Z$3,'Utility Functions'!$Z$4,'Utility Functions'!$Z$5,'Utility Functions'!$Z$6)","v":0},{"$f":"valuePL(O10,'Utility Functions'!$AA$3:$AA$5,'Utility Functions'!$AB$3:$AB$5)","v":0},{"$f":"valuePL(P10,'Utility Functions'!$AC$3:$AC$7,'Utility Functions'!$AD$3:$AD$7)","v":0.75},{"$f":"valuePL(Q10,'Utility Functions'!$AE$3:$AE$6,'Utility Functions'!$AF$3:$AF$6)","v":0},{"$f":"valuePL(R10,'Utility Functions'!$AG$3:$AG$6,'Utility Functions'!$AH$3:$AH$6)","v":1},{"$f":"valuePL(S10,'Utility Functions'!$AI$3:$AI$6,'Utility Functions'!$AJ$3:$AJ$6)","v":0.66},{"$f":"valuePL(T10,'Utility Functions'!$AK$3:$AK$8,'Utility Functions'!$AL$3:$AL$8)","v":0.2},{"$f":"valuePL(U10,'Utility Functions'!$AM$3:$AM$5,'Utility Functions'!$AN$3:$AN$5)","v":0},{"$f":"valuePL(V10,'Utility Functions'!$AO$3:$AO$5,'Utility Functions'!$AP$3:$AP$5)","v":1},{"$f":"valuePL(W10,'Utility Functions'!$AQ$3:$AQ$6,'Utility Functions'!$AR$3:$AR$6)","v":1},{"$f":"valuePL(X10,'Utility Functions'!$AS$3:$AS$6,'Utility Functions'!$AT$3:$AT$6)","v":1},{"$f":"valuePL(Y10,'Utility Functions'!$AU$3:$AU$6,'Utility Functions'!$AV$3:$AV$6)","v":0.2},{"$f":"valuePL(Z10,'Utility Functions'!$AW$3:$AW$5,'Utility Functions'!$AX$3:$AX$5)","v":1},{"$f":"valuePL(AA10,'Utility Functions'!$AY$3:$AY$6,'Utility Functions'!$AZ$3:$AZ$6)","v":0.2},{"$f":"valuePL(AB10,'Utility Functions'!$BA$3:$BA$5,'Utility Functions'!$BB$3:$BB$5)","v":0.25},{"$f":"valuePL(AC10,'Utility Functions'!$BC$3:$BC$5,'Utility Functions'!$BD$3:$BD$5)","v":1},11.893773577166716,null,11.893773577166719,3.1246021666670343,0.50917141049968373,0,2.6100000000000003,5.65]
[10,{"$f":"valueE(B11,'Utility Functions'!$B$3,'Utility Functions'!$B$4,'Utility Functions'!$B$5,'Utility Functions'!$B$6)","v":0},{"$f":"valueE(C11,'Utility Functions'!$D$3,'Utility Functions'!$D$4,'Utility Functions'!$D$5,'Utility Functions'!$D$6)","v":0},{"$f":"valuePL(D11,'Utility Functions'!$E$3:$E$5,'Utility Functions'!$F$3:$F$5)","v":0},{"$f":"valuePL(E11,'Utility Functions'!$G$3:$G$5,'Utility Functions'!$H$3:$H$5)","v":0},{"$f":"valuePL(F11,'Utility Functions'!$I$3:$I$4,'Utility Functions'!$J$3:$J$5)","v":0},{"$f":"valueE(G11,'Utility Functions'!$L$3,'Utility Functions'!$L$4,'Utility Functions'!$L$5,'Utility Functions'!$L$6)","v":0},{"$f":"valueE(H11,'Utility Functions'!$N$3,'Utility Functions'!$N$4,'Utility Functions'!$N$5,'Utility Functions'!$N$6)","v":0},{"$f":"valuePL(I11,'Utility Functions'!$O$3:$O$6,'Utility Functions'!$P$3:$P$6)","v":0},{"$f":"valuePL(J11,'Utility Functions'!$Q$3:$Q$6,'Utility Functions'!$R$3:$R$6)","v":0},{"$f":"valuePL(K11,'Utility Functions'!$S$3:$S$7,'Utility Functions'!$T$3:$T$7)","v":0},{"$f":"valueE(L11,'Utility Functions'!$V$3,'Utility Functions'!$V$4,'Utility Functions'!$V$5,'Utility Functions'!$V$6)","v":0},{"$f":"valuePL(M11,'Utility Functions'!$W$3:$W$6,'Utility Functions'!$X$3:$X$6)","v":0},{"$f":"valueE(N11,'Utility Functions'!$Z$3,'Utility Functions'!$Z$4,'Utility Functions'!$Z$5,'Utility Functions'!$Z$6)","v":0.75},{"$f":"valuePL(O11,'Utility Functions'!$AA$3:$AA$5,'Utility Functions'!$AB$3:$AB$5)","v":1},{"$f":"valuePL(P11,'Utility Functions'!$AC$3:$AC$7,'Utility Functions'!$AD$3:$AD$7)","v":0.25},{"$f":"valuePL(Q11,'Utility Functions'!$AE$3:$AE$6,'Utility Functions'!$AF$3:$AF$6)","v":0.5},{"$f":"valuePL(R11,'Utility Functions'!$AG$3:$AG$6,'Utility Functions'!$AH$3:$AH$6)","v":1},{"$f":"valuePL(S11,'Utility Functions'!$AI$3:$AI$6,'Utility Functions'!$AJ$3:$AJ$6)","v":0.66},{"$f":"valuePL(T11,'Utility Functions'!$AK$3:$AK$8,'Utility Functions'!$AL$3:$AL$8)","v":0.4},{"$f":"valuePL(U11,'Utility Functions'!$AM$3:$AM$5,'Utility Functions'!$AN$3:$AN$5)","v":0},{"$f":"valuePL(V11,'Utility Functions'!$AO$3:$AO$5,'Utility Functions'!$AP$3:$AP$5)","v":0},{"$f":"valuePL(W11,'Utility Functions'!$AQ$3:$AQ$6,'Utility Functions'!$AR$3:$AR$6)","v":0.75},{"$f":"valuePL(X11,'Utility Functions'!$AS$3:$AS$6,'Utility Functions'!$AT$3:$AT$6)","v":1},{"$f":"valuePL(Y11,'Utility Functions'!$AU$3:$AU$6,'Utility Functions'!$AV$3:$AV$6)","v":1},{"$f":"valuePL(Z11,'Utility Functions'!$AW$3:$AW$5,'Utility Functions'!$AX$3:$AX$5)","v":0.5},{"$f":"valuePL(AA11,'Utility Functions'!$AY$3:$AY$6,'Utility Functions'!$AZ$3:$AZ$6)","v":0.2},{"$f":"valuePL(AB11,'Utility Functions'!$BA$3:$BA$5,'Utility Functions'!$BB$3:$BB$5)","v":0},{"$f":"valuePL(AC11,'Utility Functions'!$BC$3:$BC$5,'Utility Functions'!$BD$3:$BD$5)","v":1},9.01,null,9.0100000000000016,0,0,1.75,2.81,4.45]
[11,{"$f":"valueE(B12,'Utility Functions'!$B$3,'Utility Functions'!$B$4,'Utility Functions'!$B$5,'Utility Functions'!$B$6)","v":0},{"$f":"valueE(C12,'Utility Functions'!$D$3,'Utility Functions'!$D$4,'Utility Functions'!$D$5,'Utility Functions'!$D$6)","v":0},{"$f":"valuePL(D12,'Utility Functions'!$E$3:$E$5,'Utility Functions'!$F$3:$F$5)","v":0},{"$f":"valuePL(E12,'Utility Functions'!$G$3:$G$5,'Utility Functions'!$H$3:$H$5)","v":0},{"$f":"valuePL(F12,'Utility Functions'!$I$3:$I$4,'Utility Functions'!$J$3:$J$5)","v":0},{"$f":"valueE(G12,'Utility Functions'!$L$3,'Utility Functions'!$L$4,'Utility Functions'!$L$5,'Utility Functions'!$L$6)","v":3.2258064516129031E-2},{"$f":"valueE(H12,'Utility Functions'!$N$3,'Utility Functions'!$N$4,'Utility Functions'!$N$5,'Utility Functions'!$N$6)","v":9.6774193548387094E-2},{"$f":"valuePL(I12,'Utility Functions'!$O$3:$O$6,'Utility Functions'!$P$3:$P$6)","v":0.54181818181818187},{"$f":"valuePL(J12,'Utility Functions'!$Q$3:$Q$6,'Utility Functions'!$R$3:$R$6)","v":0.91818181818181821},{"$f":"valuePL(K12,'Utility Functions'!$S$3:$S$7,'Utility Functions'!$T$3:$T$7)","v":0.54181818181818187},{"$f":"valueE(L12,'Utility Functions'!$V$3,'Utility Functions'!$V$4,'Utility Functions'!$V$5,'Utility Functions'!$V$6)","v":1},{"$f":"valuePL(M12,'Utility Functions'!$W$3:$W$6,'Utility Functions'!$X$3:$X$6)","v":0.91818181818181821},{"$f":"valueE(N12,'Utility Functions'!$Z$3,'Utility Functions'!$Z$4,'Utility Functions'!$Z$5,'Utility Functions'!$Z$6)","v":0.375},{"$f":"valuePL(O12,'Utility Functions'!$AA$3:$AA$5,'Utility Functions'!$AB$3:$AB$5)","v":0.25},{"$f":"valuePL(P12,'Utility Functions'!$AC$3:$AC$7,'Utility Functions'!$AD$3:$AD$7)","v":0.25},{"$f":"valuePL(Q12,'Utility Functions'!$AE$3:$AE$6,'Utility Functions'!$AF$3:$AF$6)","v":0},{"$f":"valuePL(R12,'Utility Functions'!$AG$3:$AG$6,'Utility Functions'!$AH$3:$AH$6)","v":1},{"$f":"valuePL(S12,'Utility Functions'!$AI$3:$AI$6,'Utility Functions'!$AJ$3:$AJ$6)","v":1},{"$f":"valuePL(T12,'Utility Functions'!$AK$3:$AK$8,'Utility Functions'!$AL$3:$AL$8)","v":0.4},{"$f":"valuePL(U12,'Utility Functions'!$AM$3:$AM$5,'Utility Functions'!$AN$3:$AN$5)","v":1},{"$f":"valuePL(V12,'Utility Functions'!$AO$3:$AO$5,'Utility Functions'!$AP$3:$AP$5)","v":1},{"$f":"valuePL(W12,'Utility Functions'!$AQ$3:$AQ$6,'Utility Functions'!$AR$3:$AR$6)","v":0.2},{"$f":"valuePL(X12,'Utility Functions'!$AS$3:$AS$6,'Utility Functions'!$AT$3:$AT$6)","v":1},{"$f":"valuePL(Y12,'Utility Functions'!$AU$3:$AU$6,'Utility Functions'!$AV$3:$AV$6)","v":1},{"$f":"valuePL(Z12,'Utility Functions'!$AW$3:$AW$5,'Utility Functions'!$AX$3:$AX$5)","v":0.5},{"$f":"valuePL(AA12,'Utility Functions'!$AY$3:$AY$6,'Utility Functions'!$AZ$3:$AZ$6)","v":0.89999999999999991},{"$f":"valuePL(AB12,'Utility Functions'!$BA$3:$BA$5,'Utility Functions'!$BB$3:$BB$5)","v":0},{"$f":"valuePL(AC12,'Utility Functions'!$BC$3:$BC$5,'Utility Functions'!$BD$3:$BD$5)","v":0.25},13.174032258064516,null,13.174032258064516,0,4.0490322580645159,0.625,3.65,4.8499999999999996]
[12,{"$f":"valueE(B13,'Utility Functions'!$B$3,'Utility Functions'!$B$4,'Utility Functions'!$B$5,'Utility Functions'!$B$6)","v":0.32968045347775865},{"$f":"valueE(C13,'Utility Functions'!$D$3,'Utility Functions'!$D$4,'Utility Functions'!$D$5,'Utility Functions'!$D$6)","v":0.78989979019422951},{"$f":"valuePL(D13,'Utility Functions'!$E$3:$E$5,'Utility Functions'!$F$3:$F$5)","v":1},{"$f":"valuePL(E13,'Utility Functions'!$G$3:$G$5,'Utility Functions'!$H$3:$H$5)","v":0.5},{"$f":"valuePL(F13,'Utility Functions'!$I$3:$I$4,'Utility Functions'!$J$3:$J$5)","v":0},{"$f":"valueE(G13,'Utility Functions'!$L$3,'Utility Functions'!$L$4,'Utility Functions'!$L$5,'Utility Functions'!$L$6)","v":0},{"$f":"valueE(H13,'Utility Functions'!$N$3,'Utility Functions'!$N$4,'Utility Functions'!$N$5,'Utility Functions'!$N$6)","v":0},{"$f":"valuePL(I13,'Utility Functions'!$O$3:$O$6,'Utility Functions'!$P$3:$P$6)","v":0},{"$f":"valuePL(J13,'Utility Functions'!$Q$3:$Q$6,'Utility Functions'!$R$3:$R$6)","v":0},{"$f":"valuePL(K13,'Utility Functions'!$S$3:$S$7,'Utility Functions'!$T$3:$T$7)","v":0},{"$f":"valueE(L13,'Utility Functions'!$V$3,'Utility Functions'!$V$4,'Utility Functions'!$V$5,'Utility Functions'!$V$6)","v":0},{"$f":"valuePL(M13,'Utility Functions'!$W$3:$W$6,'Utility Functions'!$X$3:$X$6)","v":0},{"$f":"valueE(N13,'Utility Functions'!$Z$3,'Utility Functions'!$Z$4,'Utility Functions'!$Z$5,'Utility Functions'!$Z$6)","v":0},{"$f":"valuePL(O13,'Utility Functions'!$AA$3:$AA$5,'Utility Functions'!$AB$3:$AB$5)","v":0},{"$f":"valuePL(P13,'Utility Functions'!$AC$3:$AC$7,'Utility Functions'!$AD$3:$AD$7)","v":0},{"$f":"valuePL(Q13,'Utility Functions'!$AE$3:$AE$6,'Utility Functions'!$AF$3:$AF$6)","v":0.1},{"$f":"valuePL(R13,'Utility Functions'!$AG$3:$AG$6,'Utility Functions'!$AH$3:$AH$6)","v":1},{"$f":"valuePL(S13,'Utility Functions'!$AI$3:$AI$6,'Utility Functions'!$AJ$3:$AJ$6)","v":1},{"$f":"valuePL(T13,'Utility Functions'!$AK$3:$AK$8,'Utility Functions'!$AL$3:$AL$8)","v":0.6},{"$f":"valuePL(U13,'Utility Functions'!$AM$3:$AM$5,'Utility Functions'!$AN$3:$AN$5)","v":0},{"$f":"valuePL(V13,'Utility Functions'!$AO$3:$AO$5,'Utility Functions'!$AP$3:$AP$5)","v":0.5},{"$f":"valuePL(W13,'Utility Functions'!$AQ$3:$AQ$6,'Utility Functions'!$AR$3:$AR$6)","v":0.2},{"$f":"valuePL(X13,'Utility Functions'!$AS$3:$AS$6,'Utility Functions'!$AT$3:$AT$6)","v":1},{"$f":"valuePL(Y13,'Utility Functions'!$AU$3:$AU$6,'Utility Functions'!$AV$3:$AV$6)","v":0.2},{"$f":"valuePL(Z13,'Utility Functions'!$AW$3:$AW$5,'Utility Functions'!$AX$3:$AX$5)","v":1},{"$f":"valuePL(AA13,'Utility Functions'!$AY$3:$AY$6,'Utility Functions'!$AZ$3:$AZ$6)","v":0.2},{"$f":"valuePL(AB13,'Utility Functions'!$BA$3:$BA$5,'Utility Functions'!$BB$3:$BB$5)","v":1},{"$f":"valuePL(AC13,'Utility Functions'!$BC$3:$BC$5,'Utility Functions'!$BD$3:$BD$5)","v":0},9.4195802436719873,null,9.4195802436719873,2.6195802436719884,0,0,2.7,4.0999999999999996]
[13,{"$f":"valueE(B14,'Utility Functions'!$B$3,'Utility Functions'!$B$4,'Utility Functions'!$B$5,'Utility Functions'!$B$6)","v":0},{"$f":"valueE(C14,'Utility Functions'!$D$3,'Utility Functions'!$D$4,'Utility Functions'!$D$5,'Utility Functions'!$D$6)","v":0},{"$f":"valuePL(D14,'Utility Functions'!$E$3:$E$5,'Utility Functions'!$F$3:$F$5)","v":0},{"$f":"valuePL(E14,'Utility Functions'!$G$3:$G$5,'Utility Functions'!$H$3:$H$5)","v":0},{"$f":"valuePL(F14,'Utility Functions'!$I$3:$I$4,'Utility Functions'!$J$3:$J$5)","v":0},{"$f":"valueE(G14,'Utility Functions'!$L$3,'Utility Functions'!$L$4,'Utility Functions'!$L$5,'Utility Functions'!$L$6)","v":0},{"$f":"valueE(H14,'Utility Functions'!$N$3,'Utility Functions'!$N$4,'Utility Functions'!$N$5,'Utility Functions'!$N$6)","v":1.1385199240986717E-2},{"$f":"valuePL(I14,'Utility Functions'!$O$3:$O$6,'Utility Functions'!$P$3:$P$6)","v":0.3290909090909091},{"$f":"valuePL(J14,'Utility Functions'!$Q$3:$Q$6,'Utility Functions'!$R$3:$R$6)","v":0.04},{"$f":"valuePL(K14,'Utility Functions'!$S$3:$S$7,'Utility Functions'!$T$3:$T$7)","v":0.3290909090909091},{"$f":"valueE(L14,'Utility Functions'!$V$3,'Utility Functions'!$V$4,'Utility Functions'!$V$5,'Utility Functions'!$V$6)","v":1},{"$f":"valuePL(M14,'Utility Functions'!$W$3:$W$6,'Utility Functions'!$X$3:$X$6)","v":0.04},{"$f":"valueE(N14,'Utility Functions'!$Z$3,'Utility Functions'!$Z$4,'Utility Functions'!$Z$5,'Utility Functions'!$Z$6)","v":0.875},{"$f":"valuePL(O14,'Utility Functions'!$AA$3:$AA$5,'Utility Functions'!$AB$3:$AB$5)","v":0.25},{"$f":"valuePL(P14,'Utility Functions'!$AC$3:$AC$7,'Utility Functions'!$AD$3:$AD$7)","v":0.25},{"$f":"valuePL(Q14,'Utility Functions'!$AE$3:$AE$6,'Utility Functions'!$AF$3:$AF$6)","v":0},{"$f":"valuePL(R14,'Utility Functions'!$AG$3:$AG$6,'Utility Functions'!$AH$3:$AH$6)","v":1},{"$f":"valuePL(S14,'Utility Functions'!$AI$3:$AI$6,'Utility Functions'!$AJ$3:$AJ$6)","v":1},{"$f":"valuePL(T14,'Utility Functions'!$AK$3:$AK$8,'Utility Functions'!$AL$3:$AL$8)","v":0},{"$f":"valuePL(U14,'Utility Functions'!$AM$3:$AM$5,'Utility Functions'!$AN$3:$AN$5)","v":0},{"$f":"valuePL(V14,'Utility Functions'!$AO$3:$AO$5,'Utility Functions'!$AP$3:$AP$5)","v":0.5},{"$f":"valuePL(W14,'Utility Functions'!$AQ$3:$AQ$6,'Utility Functions'!$AR$3:$AR$6)","v":0},{"$f":"valuePL(X14,'Utility Functions'!$AS$3:$AS$6,'Utility Functions'!$AT$3:$AT$6)","v":0.2},{"$f":"valuePL(Y14,'Utility Functions'!$AU$3:$AU$6,'Utility Functions'!$AV$3:$AV$6)","v":0},{"$f":"valuePL(Z14,'Utility Functions'!$AW$3:$AW$5,'Utility Functions'!$AX$3:$AX$5)","v":1},{"$f":"valuePL(AA14,'Utility Functions'!$AY$3:$AY$6,'Utility Functions'!$AZ$3:$AZ$6)","v":0.2},{"$f":"valuePL(AB14,'Utility Functions'!$BA$3:$BA$5,'Utility Functions'!$BB$3:$BB$5)","v":0.25},{"$f":"valuePL(AC14,'Utility Functions'!$BC$3:$BC$5,'Utility Functions'!$BD$3:$BD$5)","v":0.25},7.5245670174228056,null,7.5245670174228056,0,1.7495670174228048,1.125,2.25,2.4]
[14,{"$f":"valueE(B15,'Utility Functions'!$B$3,'Utility Functions'!$B$4,'Utility Functions'!$B$5,'Utility Functions'!$B$6)","v":0.69880684688087746},{"$f":"valueE(C15,'Utility Functions'!$D$3,'Utility Functions'!$D$4,'Utility Functions'!$D$5,'Utility Functions'!$D$6)","v":0.78989979019422951},{"$f":"valuePL(D15,'Utility Functions'!$E$3:$E$5,'Utility Functions'!$F$3:$F$5)","v":0.5},{"$f":"valuePL(E15,'Utility Functions'!$G$3:$G$5,'Utility Functions'!$H$3:$H$5)","v":0.5},{"$f":"valuePL(F15,'Utility Functions'!$I$3:$I$4,'Utility Functions'!$J$3:$J$5)","v":0},{"$f":"valueE(G15,'Utility Functions'!$L$3,'Utility Functions'!$L$4,'Utility Functions'!$L$5,'Utility Functions'!$L$6)","v":0},{"$f":"valueE(H15,'Utility Functions'!$N$3,'Utility Functions'!$N$4,'Utility Functions'!$N$5,'Utility Functions'!$N$6)","v":0},{"$f":"valuePL(I15,'Utility Functions'!$O$3:$O$6,'Utility Functions'!$P$3:$P$6)","v":0},{"$f":"valuePL(J15,'Utility Functions'!$Q$3:$Q$6,'Utility Functions'!$R$3:$R$6)","v":0},{"$f":"valuePL(K15,'Utility Functions'!$S$3:$S$7,'Utility Functions'!$T$3:$T$7)","v":0},{"$f":"valueE(L15,'Utility Functions'!$V$3,'Utility Functions'!$V$4,'Utility Functions'!$V$5,'Utility Functions'!$V$6)","v":0},{"$f":"valuePL(M15,'Utility Functions'!$W$3:$W$6,'Utility Functions'!$X$3:$X$6)","v":0},{"$f":"valueE(N15,'Utility Functions'!$Z$3,'Utility Functions'!$Z$4,'Utility Functions'!$Z$5,'Utility Functions'!$Z$6)","v":0.75},{"$f":"valuePL(O15,'Utility Functions'!$AA$3:$AA$5,'Utility Functions'!$AB$3:$AB$5)","v":0.25},{"$f":"valuePL(P15,'Utility Functions'!$AC$3:$AC$7,'Utility Functions'!$AD$3:$AD$7)","v":0.25},{"$f":"valuePL(Q15,'Utility Functions'!$AE$3:$AE$6,'Utility Functions'!$AF$3:$AF$6)","v":0},{"$f":"valuePL(R15,'Utility Functions'!$AG$3:$AG$6,'Utility Functions'!$AH$3:$AH$6)","v":1},{"$f":"valuePL(S15,'Utility Functions'!$AI$3:$AI$6,'Utility Functions'!$AJ$3:$AJ$6)","v":1},{"$f":"valuePL(T15,'Utility Functions'!$AK$3:$AK$8,'Utility Functions'!$AL$3:$AL$8)","v":0},{"$f":"valuePL(U15,'Utility Functions'!$AM$3:$AM$5,'Utility Functions'!$AN$3:$AN$5)","v":0},{"$f":"valuePL(V15,'Utility Functions'!$AO$3:$AO$5,'Utility Functions'!$AP$3:$AP$5)","v":0.5},{"$f":"valuePL(W15,'Utility Functions'!$AQ$3:$AQ$6,'Utility Functions'!$AR$3:$AR$6)","v":0.2},{"$f":"valuePL(X15,'Utility Functions'!$AS$3:$AS$6,'Utility Functions'!$AT$3:$AT$6)","v":1},{"$f":"valuePL(Y15,'Utility Functions'!$AU$3:$AU$6,'Utility Functions'!$AV$3:$AV$6)","v":1},{"$f":"valuePL(Z15,'Utility Functions'!$AW$3:$AW$5,'Utility Functions'!$AX$3:$AX$5)","v":0.5},{"$f":"valuePL(AA15,'Utility Functions'!$AY$3:$AY$6,'Utility Functions'!$AZ$3:$AZ$6)","v":0.89999999999999991},{"$f":"valuePL(AB15,'Utility Functions'!$BA$3:$BA$5,'Utility Functions'!$BB$3:$BB$5)","v":0.25},{"$f":"valuePL(AC15,'Utility Functions'!$BC$3:$BC$5,'Utility Functions'!$BD$3:$BD$5)","v":0.25},10.338706637075108,null,10.338706637075106,2.488706637075107,0,1,2.25,4.5999999999999996]
[15,{"$f":"valueE(B16,'Utility Functions'!$B$3,'Utility Functions'!$B$4,'Utility Functions'!$B$5,'Utility Functions'!$B$6)","v":0.98994966417177144},{"$f":"valueE(C16,'Utility Functions'!$D$3,'Utility Functions'!$D$4,'Utility Functions'!$D$5,'Utility Functions'!$D$6)","v":0.71352759724260828},{"$f":"valuePL(D16,'Utility Functions'!$E$3:$E$5,'Utility Functions'!$F$3:$F$5)","v":1},{"$f":"valuePL(E16,'Utility Functions'!$G$3:$G$5,'Utility Functions'!$H$3:$H$5)","v":0.5},{"$f":"valuePL(F16,'Utility Functions'!$I$3:$I$4,'Utility Functions'!$J$3:$J$5)","v":1},{"$f":"valueE(G16,'Utility Functions'!$L$3,'Utility Functions'!$L$4,'Utility Functions'!$L$5,'Utility Functions'!$L$6)","v":0},{"$f":"valueE(H16,'Utility Functions'!$N$3,'Utility Functions'!$N$4,'Utility Functions'!$N$5,'Utility Functions'!$N$6)","v":0},{"$f":"valuePL(I16,'Utility Functions'!$O$3:$O$6,'Utility Functions'!$P$3:$P$6)","v":9.2000000000000012E-2},{"$f":"valuePL(J16,'Utility Functions'!$Q$3:$Q$6,'Utility Functions'!$R$3:$R$6)","v":6.0000000000000012E-2},{"$f":"valuePL(K16,'Utility Functions'!$S$3:$S$7,'Utility Functions'!$T$3:$T$7)","v":6.0000000000000012E-2},{"$f":"valueE(L16,'Utility Functions'!$V$3,'Utility Functions'!$V$4,'Utility Functions'!$V$5,'Utility Functions'!$V$6)","v":1},{"$f":"valuePL(M16,'Utility Functions'!$W$3:$W$6,'Utility Functions'!$X$3:$X$6)","v":6.0000000000000012E-2},{"$f":"valueE(N16,'Utility Functions'!$Z$3,'Utility Functions'!$Z$4,'Utility Functions'!$Z$5,'Utility Functions'!$Z$6)","v":0.125},{"$f":"valuePL(O16,'Utility Functions'!$AA$3:$AA$5,'Utility Functions'!$AB$3:$AB$5)","v":1},{"$f":"valuePL(P16,'Utility Functions'!$AC$3:$AC$7,'Utility Functions'!$AD$3:$AD$7)","v":0.5},{"$f":"valuePL(Q16,'Utility Functions'!$AE$3:$AE$6,'Utility Functions'!$AF$3:$AF$6)","v":0},{"$f":"valuePL(R16,'Utility Functions'!$AG$3:$AG$6,'Utility Functions'!$AH$3:$AH$6)","v":0.8},{"$f":"valuePL(S16,'Utility Functions'!$AI$3:$AI$6,'Utility Functions'!$AJ$3:$AJ$6)","v":1},{"$f":"valuePL(T16,'Utility Functions'!$AK$3:$AK$8,'Utility Functions'!$AL$3:$AL$8)","v":0.6},{"$f":"valuePL(U16,'Utility Functions'!$AM$3:$AM$5,'Utility Functions'!$AN$3:$AN$5)","v":1},{"$f":"valuePL(V16,'Utility Functions'!$AO$3:$AO$5,'Utility Functions'!$AP$3:$AP$5)","v":0},{"$f":"valuePL(W16,'Utility Functions'!$AQ$3:$AQ$6,'Utility Functions'!$AR$3:$AR$6)","v":1},{"$f":"valuePL(X16,'Utility Functions'!$AS$3:$AS$6,'Utility Functions'!$AT$3:$AT$6)","v":0.2},{"$f":"valuePL(Y16,'Utility Functions'!$AU$3:$AU$6,'Utility Functions'!$AV$3:$AV$6)","v":0.2},{"$f":"valuePL(Z16,'Utility Functions'!$AW$3:$AW$5,'Utility Functions'!$AX$3:$AX$5)","v":1},{"$f":"valuePL(AA16,'Utility Functions'!$AY$3:$AY$6,'Utility Functions'!$AZ$3:$AZ$6)","v":1},{"$f":"valuePL(AB16,'Utility Functions'!$BA$3:$BA$5,'Utility Functions'!$BB$3:$BB$5)","v":1},{"$f":"valuePL(AC16,'Utility Functions'!$BC$3:$BC$5,'Utility Functions'!$BD$3:$BD$5)","v":0.25},15.150477261414375,null,15.15047726141438,4.2034772614143794,1.272,1.125,3.9,4.6500000000000004]
[16,{"$f":"valueE(B17,'Utility Functions'!$B$3,'Utility Functions'!$B$4,'Utility Functions'!$B$5,'Utility Functions'!$B$6)","v":0},{"$f":"valueE(C17,'Utility Functions'!$D$3,'Utility Functions'!$D$4,'Utility Functions'!$D$5,'Utility Functions'!$D$6)","v":0},{"$f":"valuePL(D17,'Utility Functions'!$E$3:$E$5,'Utility Functions'!$F$3:$F$5)","v":0},{"$f":"valuePL(E17,'Utility Functions'!$G$3:$G$5,'Utility Functions'!$H$3:$H$5)","v":0},{"$f":"valuePL(F17,'Utility Functions'!$I$3:$I$4,'Utility Functions'!$J$3:$J$5)","v":0},{"$f":"valueE(G17,'Utility Functions'!$L$3,'Utility Functions'!$L$4,'Utility Functions'!$L$5,'Utility Functions'!$L$6)","v":0},{"$f":"valueE(H17,'Utility Functions'!$N$3,'Utility Functions'!$N$4,'Utility Functions'!$N$5,'Utility Functions'!$N$6)","v":0},{"$f":"valuePL(I17,'Utility Functions'!$O$3:$O$6,'Utility Functions'!$P$3:$P$6)","v":1},{"$f":"valuePL(J17,'Utility Functions'!$Q$3:$Q$6,'Utility Functions'!$R$3:$R$6)","v":0.91818181818181821},{"$f":"valuePL(K17,'Utility Functions'!$S$3:$S$7,'Utility Functions'!$T$3:$T$7)","v":1},{"$f":"valueE(L17,'Utility Functions'!$V$3,'Utility Functions'!$V$4,'Utility Functions'!$V$5,'Utility Functions'!$V$6)","v":0.83333333333333337},{"$f":"valuePL(M17,'Utility Functions'!$W$3:$W$6,'Utility Functions'!$X$3:$X$6)","v":0.91818181818181821},{"$f":"valueE(N17,'Utility Functions'!$Z$3,'Utility Functions'!$Z$4,'Utility Functions'!$Z$5,'Utility Functions'!$Z$6)","v":0},{"$f":"valuePL(O17,'Utility Functions'!$AA$3:$AA$5,'Utility Functions'!$AB$3:$AB$5)","v":0},{"$f":"valuePL(P17,'Utility Functions'!$AC$3:$AC$7,'Utility Functions'!$AD$3:$AD$7)","v":0.75},{"$f":"valuePL(Q17,'Utility Functions'!$AE$3:$AE$6,'Utility Functions'!$AF$3:$AF$6)","v":0},{"$f":"valuePL(R17,'Utility Functions'!$AG$3:$AG$6,'Utility Functions'!$AH$3:$AH$6)","v":1},{"$f":"valuePL(S17,'Utility Functions'!$AI$3:$AI$6,'Utility Functions'!$AJ$3:$AJ$6)","v":1},{"$f":"valuePL(T17,'Utility Functions'!$AK$3:$AK$8,'Utility Functions'!$AL$3:$AL$8)","v":1},{"$f":"valuePL(U17,'Utility Functions'!$AM$3:$AM$5,'Utility Functions'!$AN$3:$AN$5)","v":0},{"$f":"valuePL(V17,'Utility Functions'!$AO$3:$AO$5,'Utility Functions'!$AP$3:$AP$5)","v":1},{"$f":"valuePL(W17,'Utility Functions'!$AQ$3:$AQ$6,'Utility Functions'!$AR$3:$AR$6)","v":0.75},{"$f":"valuePL(X17,'Utility Functions'!$AS$3:$AS$6,'Utility Functions'!$AT$3:$AT$6)","v":0.75},{"$f":"valuePL(Y17,'Utility Functions'!$AU$3:$AU$6,'Utility Functions'!$AV$3:$AV$6)","v":0.2},{"$f":"valuePL(Z17,'Utility Functions'!$AW$3:$AW$5,'Utility Functions'!$AX$3:$AX$5)","v":1},{"$f":"valuePL(AA17,'Utility Functions'!$AY$3:$AY$6,'Utility Functions'!$AZ$3:$AZ$6)","v":1},{"$f":"valuePL(AB17,'Utility Functions'!$BA$3:$BA$5,'Utility Functions'!$BB$3:$BB$5)","v":1},{"$f":"valuePL(AC17,'Utility Functions'!$BC$3:$BC$5,'Utility Functions'!$BD$3:$BD$5)","v":1},15.119696969696969,null,15.119696969696971,0,4.6696969696969699,0,3.75,6.7]
[17,{"$f":"valueE(B18,'Utility Functions'!$B$3,'Utility Functions'!$B$4,'Utility Functions'!$B$5,'Utility Functions'!$B$6)","v":0.32968045347775865},{"$f":"valueE(C18,'Utility Functions'!$D$3,'Utility Functions'!$D$4,'Utility Functions'!$D$5,'Utility Functions'!$D$6)","v":0.78989979019422951},{"$f":"valuePL(D18,'Utility Functions'!$E$3:$E$5,'Utility Functions'!$F$3:$F$5)","v":1},{"$f":"valuePL(E18,'Utility Functions'!$G$3:$G$5,'Utility Functions'!$H$3:$H$5)","v":0.5},{"$f":"valuePL(F18,'Utility Functions'!$I$3:$I$4,'Utility Functions'!$J$3:$J$5)","v":1},{"$f":"valueE(G18,'Utility Functions'!$L$3,'Utility Functions'!$L$4,'Utility Functions'!$L$5,'Utility Functions'!$L$6)","v":0.31182795698924731},{"$f":"valueE(H18,'Utility Functions'!$N$3,'Utility Functions'!$N$4,'Utility Functions'!$N$5,'Utility Functions'!$N$6)","v":0.27514231499051234},{"$f":"valuePL(I18,'Utility Functions'!$O$3:$O$6,'Utility Functions'!$P$3:$P$6)","v":0},{"$f":"valuePL(J18,'Utility Functions'!$Q$3:$Q$6,'Utility Functions'!$R$3:$R$6)","v":0},{"$f":"valuePL(K18,'Utility Functions'!$S$3:$S$7,'Utility Functions'!$T$3:$T$7)","v":0},{"$f":"valueE(L18,'Utility Functions'!$V$3,'Utility Functions'!$V$4,'Utility Functions'!$V$5,'Utility Functions'!$V$6)","v":1},{"$f":"valuePL(M18,'Utility Functions'!$W$3:$W$6,'Utility Functions'!$X$3:$X$6)","v":6.0000000000000012E-2},{"$f":"valueE(N18,'Utility Functions'!$Z$3,'Utility Functions'!$Z$4,'Utility Functions'!$Z$5,'Utility Functions'!$Z$6)","v":0},{"$f":"valuePL(O18,'Utility Functions'!$AA$3:$AA$5,'Utility Functions'!$AB$3:$AB$5)","v":0},{"$f":"valuePL(P18,'Utility Functions'!$AC$3:$AC$7,'Utility Functions'!$AD$3:$AD$7)","v":0},{"$f":"valuePL(Q18,'Utility Functions'!$AE$3:$AE$6,'Utility Functions'!$AF$3:$AF$6)","v":0},{"$f":"valuePL(R18,'Utility Functions'!$AG$3:$AG$6,'Utility Functions'!$AH$3:$AH$6)","v":1},{"$f":"valuePL(S18,'Utility Functions'!$AI$3:$AI$6,'Utility Functions'!$AJ$3:$AJ$6)","v":0.66},{"$f":"valuePL(T18,'Utility Functions'!$AK$3:$AK$8,'Utility Functions'!$AL$3:$AL$8)","v":0},{"$f":"valuePL(U18,'Utility Functions'!$AM$3:$AM$5,'Utility Functions'!$AN$3:$AN$5)","v":0},{"$f":"valuePL(V18,'Utility Functions'!$AO$3:$AO$5,'Utility Functions'!$AP$3:$AP$5)","v":1},{"$f":"valuePL(W18,'Utility Functions'!$AQ$3:$AQ$6,'Utility Functions'!$AR$3:$AR$6)","v":1},{"$f":"valuePL(X18,'Utility Functions'!$AS$3:$AS$6,'Utility Functions'!$AT$3:$AT$6)","v":0.2},{"$f":"valuePL(Y18,'Utility Functions'!$AU$3:$AU$6,'Utility Functions'!$AV$3:$AV$6)","v":0},{"$f":"valuePL(Z18,'Utility Functions'!$AW$3:$AW$5,'Utility Functions'!$AX$3:$AX$5)","v":0.5},{"$f":"valuePL(AA18,'Utility Functions'!$AY$3:$AY$6,'Utility Functions'!$AZ$3:$AZ$6)","v":0},{"$f":"valuePL(AB18,'Utility Functions'!$BA$3:$BA$5,'Utility Functions'!$BB$3:$BB$5)","v":1},{"$f":"valuePL(AC18,'Utility Functions'!$BC$3:$BC$5,'Utility Functions'!$BD$3:$BD$5)","v":0.25},10.876550515651747,null,10.876550515651747,3.6195802436719884,1.6469702719797596,0,1.6600000000000001,3.95]
[18,{"$f":"valueE(B19,'Utility Functions'!$B$3,'Utility Functions'!$B$4,'Utility Functions'!$B$5,'Utility Functions'!$B$6)","v":0},{"$f":"valueE(C19,'Utility Functions'!$D$3,'Utility Functions'!$D$4,'Utility Functions'!$D$5,'Utility Functions'!$D$6)","v":0},{"$f":"valuePL(D19,'Utility Functions'!$E$3:$E$5,'Utility Functions'!$F$3:$F$5)","v":0},{"$f":"valuePL(E19,'Utility Functions'!$G$3:$G$5,'Utility Functions'!$H$3:$H$5)","v":0},{"$f":"valuePL(F19,'Utility Functions'!$I$3:$I$4,'Utility Functions'!$J$3:$J$5)","v":0},{"$f":"valueE(G19,'Utility Functions'!$L$3,'Utility Functions'!$L$4,'Utility Functions'!$L$5,'Utility Functions'!$L$6)","v":0},{"$f":"valueE(H19,'Utility Functions'!$N$3,'Utility Functions'!$N$4,'Utility Functions'!$N$5,'Utility Functions'!$N$6)","v":2.8462998102466792E-2},{"$f":"valuePL(I19,'Utility Functions'!$O$3:$O$6,'Utility Functions'!$P$3:$P$6)","v":0},{"$f":"valuePL(J19,'Utility Functions'!$Q$3:$Q$6,'Utility Functions'!$R$3:$R$6)","v":0},{"$f":"valuePL(K19,'Utility Functions'!$S$3:$S$7,'Utility Functions'!$T$3:$T$7)","v":0},{"$f":"valueE(L19,'Utility Functions'!$V$3,'Utility Functions'!$V$4,'Utility Functions'!$V$5,'Utility Functions'!$V$6)","v":0},{"$f":"valuePL(M19,'Utility Functions'!$W$3:$W$6,'Utility Functions'!$X$3:$X$6)","v":0},{"$f":"valueE(N19,'Utility Functions'!$Z$3,'Utility Functions'!$Z$4,'Utility Functions'!$Z$5,'Utility Functions'!$Z$6)","v":1},{"$f":"valuePL(O19,'Utility Functions'!$AA$3:$AA$5,'Utility Functions'!$AB$3:$AB$5)","v":0.25},{"$f":"valuePL(P19,'Utility Functions'!$AC$3:$AC$7,'Utility Functions'!$AD$3:$AD$7)","v":0.25},{"$f":"valuePL(Q19,'Utility Functions'!$AE$3:$AE$6,'Utility Functions'!$AF$3:$AF$6)","v":1},{"$f":"valuePL(R19,'Utility Functions'!$AG$3:$AG$6,'Utility Functions'!$AH$3:$AH$6)","v":1},{"$f":"valuePL(S19,'Utility Functions'!$AI$3:$AI$6,'Utility Functions'!$AJ$3:$AJ$6)","v":1},{"$f":"valuePL(T19,'Utility Functions'!$AK$3:$AK$8,'Utility Functions'!$AL$3:$AL$8)","v":1},{"$f":"valuePL(U19,'Utility Functions'!$AM$3:$AM$5,'Utility Functions'!$AN$3:$AN$5)","v":0.25},{"$f":"valuePL(V19,'Utility Functions'!$AO$3:$AO$5,'Utility Functions'!$AP$3:$AP$5)","v":1},{"$f":"valuePL(W19,'Utility Functions'!$AQ$3:$AQ$6,'Utility Functions'!$AR$3:$AR$6)","v":0.75},{"$f":"valuePL(X19,'Utility Functions'!$AS$3:$AS$6,'Utility Functions'!$AT$3:$AT$6)","v":0.2},{"$f":"valuePL(Y19,'Utility Functions'!$AU$3:$AU$6,'Utility Functions'!$AV$3:$AV$6)","v":0.8},{"$f":"valuePL(Z19,'Utility Functions'!$AW$3:$AW$5,'Utility Functions'!$AX$3:$AX$5)","v":0.5},{"$f":"valuePL(AA19,'Utility Functions'!$AY$3:$AY$6,'Utility Functions'!$AZ$3:$AZ$6)","v":0.89999999999999991},{"$f":"valuePL(AB19,'Utility Functions'!$BA$3:$BA$5,'Utility Functions'!$BB$3:$BB$5)","v":0.25},{"$f":"valuePL(AC19,'Utility Functions'!$BC$3:$BC$5,'Utility Functions'!$BD$3:$BD$5)","v":0},10.178462998102468,null,10.178462998102468,0,2.8462998102466792E-2,1.25,4.5,4.4000000000000004]
[19,{"$f":"valueE(B20,'Utility Functions'!$B$3,'Utility Functions'!$B$4,'Utility Functions'!$B$5,'Utility Functions'!$B$6)","v":0.79810469124896843},{"$f":"valueE(C20,'Utility Functions'!$D$3,'Utility Functions'!$D$4,'Utility Functions'!$D$5,'Utility Functions'!$D$6)","v":0.26839655623815994},{"$f":"valuePL(D20,'Utility Functions'!$E$3:$E$5,'Utility Functions'!$F$3:$F$5)","v":0.5},{"$f":"valuePL(E20,'Utility Functions'!$G$3:$G$5,'Utility Functions'!$H$3:$H$5)","v":1},{"$f":"valuePL(F20,'Utility Functions'!$I$3:$I$4,'Utility Functions'!$J$3:$J$5)","v":0},{"$f":"valueE(G20,'Utility Functions'!$L$3,'Utility Functions'!$L$4,'Utility Functions'!$L$5,'Utility Functions'!$L$6)","v":0},{"$f":"valueE(H20,'Utility Functions'!$N$3,'Utility Functions'!$N$4,'Utility Functions'!$N$5,'Utility Functions'!$N$6)","v":0},{"$f":"valuePL(I20,'Utility Functions'!$O$3:$O$6,'Utility Functions'!$P$3:$P$6)","v":0},{"$f":"valuePL(J20,'Utility Functions'!$Q$3:$Q$6,'Utility Functions'!$R$3:$R$6)","v":0},{"$f":"valuePL(K20,'Utility Functions'!$S$3:$S$7,'Utility Functions'!$T$3:$T$7)","v":0},{"$f":"valueE(L20,'Utility Functions'!$V$3,'Utility Functions'!$V$4,'Utility Functions'!$V$5,'Utility Functions'!$V$6)","v":0},{"$f":"valuePL(M20,'Utility Functions'!$W$3:$W$6,'Utility Functions'!$X$3:$X$6)","v":0},{"$f":"valueE(N20,'Utility Functions'!$Z$3,'Utility Functions'!$Z$4,'Utility Functions'!$Z$5,'Utility Functions'!$Z$6)","v":1},{"$f":"valuePL(O20,'Utility Functions'!$AA$3:$AA$5,'Utility Functions'!$AB$3:$AB$5)","v":1},{"$f":"valuePL(P20,'Utility Functions'!$AC$3:$AC$7,'Utility Functions'!$AD$3:$AD$7)","v":0},{"$f":"valuePL(Q20,'Utility Functions'!$AE$3:$AE$6,'Utility Functions'!$AF$3:$AF$6)","v":0},{"$f":"valuePL(R20,'Utility Functions'!$AG$3:$AG$6,'Utility Functions'!$AH$3:$AH$6)","v":0.8},{"$f":"valuePL(S20,'Utility Functions'!$AI$3:$AI$6,'Utility Functions'!$AJ$3:$AJ$6)","v":1},{"$f":"valuePL(T20,'Utility Functions'!$AK$3:$AK$8,'Utility Functions'!$AL$3:$AL$8)","v":0},{"$f":"valuePL(U20,'Utility Functions'!$AM$3:$AM$5,'Utility Functions'!$AN$3:$AN$5)","v":0},{"$f":"valuePL(V20,'Utility Functions'!$AO$3:$AO$5,'Utility Functions'!$AP$3:$AP$5)","v":0.5},{"$f":"valuePL(W20,'Utility Functions'!$AQ$3:$AQ$6,'Utility Functions'!$AR$3:$AR$6)","v":0.2},{"$f":"valuePL(X20,'Utility Functions'!$AS$3:$AS$6,'Utility Functions'!$AT$3:$AT$6)","v":1},{"$f":"valuePL(Y20,'Utility Functions'!$AU$3:$AU$6,'Utility Functions'!$AV$3:$AV$6)","v":0.8},{"$f":"valuePL(Z20,'Utility Functions'!$AW$3:$AW$5,'Utility Functions'!$AX$3:$AX$5)","v":0},{"$f":"valuePL(AA20,'Utility Functions'!$AY$3:$AY$6,'Utility Functions'!$AZ$3:$AZ$6)","v":0.2},{"$f":"valuePL(AB20,'Utility Functions'!$BA$3:$BA$5,'Utility Functions'!$BB$3:$BB$5)","v":0},{"$f":"valuePL(AC20,'Utility Functions'!$BC$3:$BC$5,'Utility Functions'!$BD$3:$BD$5)","v":0.25},9.3165012474871283,null,9.3165012474871283,2.5665012474871283,0,2,1.8,2.95]
[20,{"$f":"valueE(B21,'Utility Functions'!$B$3,'Utility Functions'!$B$4,'Utility Functions'!$B$5,'Utility Functions'!$B$6)","v":0.83470237647280454},{"$f":"valueE(C21,'Utility Functions'!$D$3,'Utility Functions'!$D$4,'Utility Functions'!$D$5,'Utility Functions'!$D$6)","v":0.78989979019422951},{"$f":"valuePL(D21,'Utility Functions'!$E$3:$E$5,'Utility Functions'!$F$3:$F$5)","v":0.5},{"$f":"valuePL(E21,'Utility Functions'!$G$3:$G$5,'Utility Functions'!$H$3:$H$5)","v":1},{"$f":"valuePL(F21,'Utility Functions'!$I$3:$I$4,'Utility Functions'!$J$3:$J$5)","v":0},{"$f":"valueE(G21,'Utility Functions'!$L$3,'Utility Functions'!$L$4,'Utility Functions'!$L$5,'Utility Functions'!$L$6)","v":0},{"$f":"valueE(H21,'Utility Functions'!$N$3,'Utility Functions'!$N$4,'Utility Functions'!$N$5,'Utility Functions'!$N$6)","v":0.41271347248576851},{"$f":"valuePL(I21,'Utility Functions'!$O$3:$O$6,'Utility Functions'!$P$3:$P$6)","v":0.93454545454545446},{"$f":"valuePL(J21,'Utility Functions'!$Q$3:$Q$6,'Utility Functions'!$R$3:$R$6)","v":0.50909090909090915},{"$f":"valuePL(K21,'Utility Functions'!$S$3:$S$7,'Utility Functions'!$T$3:$T$7)","v":0.93454545454545446},{"$f":"valueE(L21,'Utility Functions'!$V$3,'Utility Functions'!$V$4,'Utility Functions'!$V$5,'Utility Functions'!$V$6)","v":0.66666666666666663},{"$f":"valuePL(M21,'Utility Functions'!$W$3:$W$6,'Utility Functions'!$X$3:$X$6)","v":0.50909090909090915},{"$f":"valueE(N21,'Utility Functions'!$Z$3,'Utility Functions'!$Z$4,'Utility Functions'!$Z$5,'Utility Functions'!$Z$6)","v":1},{"$f":"valuePL(O21,'Utility Functions'!$AA$3:$AA$5,'Utility Functions'!$AB$3:$AB$5)","v":1},{"$f":"valuePL(P21,'Utility Functions'!$AC$3:$AC$7,'Utility Functions'!$AD$3:$AD$7)","v":0.25},{"$f":"valuePL(Q21,'Utility Functions'!$AE$3:$AE$6,'Utility Functions'!$AF$3:$AF$6)","v":0},{"$f":"valuePL(R21,'Utility Functions'!$AG$3:$AG$6,'Utility Functions'!$AH$3:$AH$6)","v":1},{"$f":"valuePL(S21,'Utility Functions'!$AI$3:$AI$6,'Utility Functions'!$AJ$3:$AJ$6)","v":1},{"$f":"valuePL(T21,'Utility Functions'!$AK$3:$AK$8,'Utility Functions'!$AL$3:$AL$8)","v":0.6},{"$f":"valuePL(U21,'Utility Functions'!$AM$3:$AM$5,'Utility Functions'!$AN$3:$AN$5)","v":1},{"$f":"valuePL(V21,'Utility Functions'!$AO$3:$AO$5,'Utility Functions'!$AP$3:$AP$5)","v":0.5},{"$f":"valuePL(W21,'Utility Functions'!$AQ$3:$AQ$6,'Utility Functions'!$AR$3:$AR$6)","v":0},{"$f":"valuePL(X21,'Utility Functions'!$AS$3:$AS$6,'Utility Functions'!$AT$3:$AT$6)","v":0},{"$f":"valuePL(Y21,'Utility Functions'!$AU$3:$AU$6,'Utility Functions'!$AV$3:$AV$6)","v":0.2},{"$f":"valuePL(Z21,'Utility Functions'!$AW$3:$AW$5,'Utility Functions'!$AX$3:$AX$5)","v":1},{"$f":"valuePL(AA21,'Utility Functions'!$AY$3:$AY$6,'Utility Functions'!$AZ$3:$AZ$6)","v":0.2},{"$f":"valuePL(AB21,'Utility Functions'!$BA$3:$BA$5,'Utility Functions'!$BB$3:$BB$5)","v":0},{"$f":"valuePL(AC21,'Utility Functions'!$BC$3:$BC$5,'Utility Functions'!$BD$3:$BD$5)","v":0.25},15.091255033092194,null,15.091255033092196,3.1246021666670343,3.9666528664251626,2,3.85,2.15]
[21,{"$f":"valueE(B22,'Utility Functions'!$B$3,'Utility Functions'!$B$4,'Utility Functions'!$B$5,'Utility Functions'!$B$6)","v":0},{"$f":"valueE(C22,'Utility Functions'!$D$3,'Utility Functions'!$D$4,'Utility Functions'!$D$5,'Utility Functions'!$D$6)","v":0},{"$f":"valuePL(D22,'Utility Functions'!$E$3:$E$5,'Utility Functions'!$F$3:$F$5)","v":0},{"$f":"valuePL(E22,'Utility Functions'!$G$3:$G$5,'Utility Functions'!$H$3:$H$5)","v":0},{"$f":"valuePL(F22,'Utility Functions'!$I$3:$I$4,'Utility Functions'!$J$3:$J$5)","v":0},{"$f":"valueE(G22,'Utility Functions'!$L$3,'Utility Functions'!$L$4,'Utility Functions'!$L$5,'Utility Functions'!$L$6)","v":0},{"$f":"valueE(H22,'Utility Functions'!$N$3,'Utility Functions'!$N$4,'Utility Functions'!$N$5,'Utility Functions'!$N$6)","v":0},{"$f":"valuePL(I22,'Utility Functions'!$O$3:$O$6,'Utility Functions'!$P$3:$P$6)","v":0},{"$f":"valuePL(J22,'Utility Functions'!$Q$3:$Q$6,'Utility Functions'!$R$3:$R$6)","v":0},{"$f":"valuePL(K22,'Utility Functions'!$S$3:$S$7,'Utility Functions'!$T$3:$T$7)","v":0},{"$f":"valueE(L22,'Utility Functions'!$V$3,'Utility Functions'!$V$4,'Utility Functions'!$V$5,'Utility Functions'!$V$6)","v":0},{"$f":"valuePL(M22,'Utility Functions'!$W$3:$W$6,'Utility Functions'!$X$3:$X$6)","v":0},{"$f":"valueE(N22,'Utility Functions'!$Z$3,'Utility Functions'!$Z$4,'Utility Functions'!$Z$5,'Utility Functions'!$Z$6)","v":1},{"$f":"valuePL(O22,'Utility Functions'!$AA$3:$AA$5,'Utility Functions'!$AB$3:$AB$5)","v":1},{"$f":"valuePL(P22,'Utility Functions'!$AC$3:$AC$7,'Utility Functions'!$AD$3:$AD$7)","v":0},{"$f":"valuePL(Q22,'Utility Functions'!$AE$3:$AE$6,'Utility Functions'!$AF$3:$AF$6)","v":0.1},{"$f":"valuePL(R22,'Utility Functions'!$AG$3:$AG$6,'Utility Functions'!$AH$3:$AH$6)","v":1},{"$f":"valuePL(S22,'Utility Functions'!$AI$3:$AI$6,'Utility Functions'!$AJ$3:$AJ$6)","v":1},{"$f":"valuePL(T22,'Utility Functions'!$AK$3:$AK$8,'Utility Functions'!$AL$3:$AL$8)","v":1},{"$f":"valuePL(U22,'Utility Functions'!$AM$3:$AM$5,'Utility Functions'!$AN$3:$AN$5)","v":0.25},{"$f":"valuePL(V22,'Utility Functions'!$AO$3:$AO$5,'Utility Functions'!$AP$3:$AP$5)","v":0},{"$f":"valuePL(W22,'Utility Functions'!$AQ$3:$AQ$6,'Utility Functions'!$AR$3:$AR$6)","v":0.75},{"$f":"valuePL(X22,'Utility Functions'!$AS$3:$AS$6,'Utility Functions'!$AT$3:$AT$6)","v":1},{"$f":"valuePL(Y22,'Utility Functions'!$AU$3:$AU$6,'Utility Functions'!$AV$3:$AV$6)","v":0.2},{"$f":"valuePL(Z22,'Utility Functions'!$AW$3:$AW$5,'Utility Functions'!$AX$3:$AX$5)","v":0},{"$f":"valuePL(AA22,'Utility Functions'!$AY$3:$AY$6,'Utility Functions'!$AZ$3:$AZ$6)","v":1},{"$f":"valuePL(AB22,'Utility Functions'!$BA$3:$BA$5,'Utility Functions'!$BB$3:$BB$5)","v":0.25},{"$f":"valuePL(AC22,'Utility Functions'!$BC$3:$BC$5,'Utility Functions'!$BD$3:$BD$5)","v":1},9.5500000000000007,null,9.5500000000000007,0,0,2,3.35,4.2]
[22,{"$f":"valueE(B23,'Utility Functions'!$B$3,'Utility Functions'!$B$4,'Utility Functions'!$B$5,'Utility Functions'!$B$6)","v":0},{"$f":"valueE(C23,'Utility Functions'!$D$3,'Utility Functions'!$D$4,'Utility Functions'!$D$5,'Utility Functions'!$D$6)","v":0},{"$f":"valuePL(D23,'Utility Functions'!$E$3:$E$5,'Utility Functions'!$F$3:$F$5)","v":0},{"$f":"valuePL(E23,'Utility Functions'!$G$3:$G$5,'Utility Functions'!$H$3:$H$5)","v":0},{"$f":"valuePL(F23,'Utility Functions'!$I$3:$I$4,'Utility Functions'!$J$3:$J$5)","v":0},{"$f":"valueE(G23,'Utility Functions'!$L$3,'Utility Functions'!$L$4,'Utility Functions'!$L$5,'Utility Functions'!$L$6)","v":8.6021505376344093E-2},{"$f":"valueE(H23,'Utility Functions'!$N$3,'Utility Functions'!$N$4,'Utility Functions'!$N$5,'Utility Functions'!$N$6)","v":6.0721062618595827E-2},{"$f":"valuePL(I23,'Utility Functions'!$O$3:$O$6,'Utility Functions'!$P$3:$P$6)","v":0},{"$f":"valuePL(J23,'Utility Functions'!$Q$3:$Q$6,'Utility Functions'!$R$3:$R$6)","v":0},{"$f":"valuePL(K23,'Utility Functions'!$S$3:$S$7,'Utility Functions'!$T$3:$T$7)","v":0},{"$f":"valueE(L23,'Utility Functions'!$V$3,'Utility Functions'!$V$4,'Utility Functions'!$V$5,'Utility Functions'!$V$6)","v":0},{"$f":"valuePL(M23,'Utility Functions'!$W$3:$W$6,'Utility Functions'!$X$3:$X$6)","v":0},{"$f":"valueE(N23,'Utility Functions'!$Z$3,'Utility Functions'!$Z$4,'Utility Functions'!$Z$5,'Utility Functions'!$Z$6)","v":0.125},{"$f":"valuePL(O23,'Utility Functions'!$AA$3:$AA$5,'Utility Functions'!$AB$3:$AB$5)","v":1},{"$f":"valuePL(P23,'Utility Functions'!$AC$3:$AC$7,'Utility Functions'!$AD$3:$AD$7)","v":1},{"$f":"valuePL(Q23,'Utility Functions'!$AE$3:$AE$6,'Utility Functions'!$AF$3:$AF$6)","v":0.5},{"$f":"valuePL(R23,'Utility Functions'!$AG$3:$AG$6,'Utility Functions'!$AH$3:$AH$6)","v":0.8},{"$f":"valuePL(S23,'Utility Functions'!$AI$3:$AI$6,'Utility Functions'!$AJ$3:$AJ$6)","v":1},{"$f":"valuePL(T23,'Utility Functions'!$AK$3:$AK$8,'Utility Functions'!$AL$3:$AL$8)","v":1},{"$f":"valuePL(U23,'Utility Functions'!$AM$3:$AM$5,'Utility Functions'!$AN$3:$AN$5)","v":0},{"$f":"valuePL(V23,'Utility Functions'!$AO$3:$AO$5,'Utility Functions'!$AP$3:$AP$5)","v":0.5},{"$f":"valuePL(W23,'Utility Functions'!$AQ$3:$AQ$6,'Utility Functions'!$AR$3:$AR$6)","v":0.75},{"$f":"valuePL(X23,'Utility Functions'!$AS$3:$AS$6,'Utility Functions'!$AT$3:$AT$6)","v":0.2},{"$f":"valuePL(Y23,'Utility Functions'!$AU$3:$AU$6,'Utility Functions'!$AV$3:$AV$6)","v":0},{"$f":"valuePL(Z23,'Utility Functions'!$AW$3:$AW$5,'Utility Functions'!$AX$3:$AX$5)","v":1},{"$f":"valuePL(AA23,'Utility Functions'!$AY$3:$AY$6,'Utility Functions'!$AZ$3:$AZ$6)","v":0.2},{"$f":"valuePL(AB23,'Utility Functions'!$BA$3:$BA$5,'Utility Functions'!$BB$3:$BB$5)","v":1},{"$f":"valuePL(AC23,'Utility Functions'!$BC$3:$BC$5,'Utility Functions'!$BD$3:$BD$5)","v":0.25},9.471742567994939,null,9.4717425679949407,0,0.14674256799493993,1.125,4.3,3.9000000000000004]
[23,{"$f":"valueE(B24,'Utility Functions'!$B$3,'Utility Functions'!$B$4,'Utility Functions'!$B$5,'Utility Functions'!$B$6)","v":0.83470237647280454},{"$f":"valueE(C24,'Utility Functions'!$D$3,'Utility Functions'!$D$4,'Utility Functions'!$D$5,'Utility Functions'!$D$6)","v":0.84744836833951609},{"$f":"valuePL(D24,'Utility Functions'!$E$3:$E$5,'Utility Functions'!$F$3:$F$5)","v":1},{"$f":"valuePL(E24,'Utility Functions'!$G$3:$G$5,'Utility Functions'!$H$3:$H$5)","v":0},{"$f":"valuePL(F24,'Utility Functions'!$I$3:$I$4,'Utility Functions'!$J$3:$J$5)","v":0},{"$f":"valueE(G24,'Utility Functions'!$L$3,'Utility Functions'!$L$4,'Utility Functions'!$L$5,'Utility Functions'!$L$6)","v":0},{"$f":"valueE(H24,'Utility Functions'!$N$3,'Utility Functions'!$N$4,'Utility Functions'!$N$5,'Utility Functions'!$N$6)","v":0},{"$f":"valuePL(I24,'Utility Functions'!$O$3:$O$6,'Utility Functions'!$P$3:$P$6)","v":0},{"$f":"valuePL(J24,'Utility Functions'!$Q$3:$Q$6,'Utility Functions'!$R$3:$R$6)","v":0},{"$f":"valuePL(K24,'Utility Functions'!$S$3:$S$7,'Utility Functions'!$T$3:$T$7)","v":0},{"$f":"valueE(L24,'Utility Functions'!$V$3,'Utility Functions'!$V$4,'Utility Functions'!$V$5,'Utility Functions'!$V$6)","v":0},{"$f":"valuePL(M24,'Utility Functions'!$W$3:$W$6,'Utility Functions'!$X$3:$X$6)","v":0},{"$f":"valueE(N24,'Utility Functions'!$Z$3,'Utility Functions'!$Z$4,'Utility Functions'!$Z$5,'Utility Functions'!$Z$6)","v":0},{"$f":"valuePL(O24,'Utility Functions'!$AA$3:$AA$5,'Utility Functions'!$AB$3:$AB$5)","v":0},{"$f":"valuePL(P24,'Utility Functions'!$AC$3:$AC$7,'Utility Functions'!$AD$3:$AD$7)","v":0.75},{"$f":"valuePL(Q24,'Utility Functions'!$AE$3:$AE$6,'Utility Functions'!$AF$3:$AF$6)","v":0},{"$f":"valuePL(R24,'Utility Functions'!$AG$3:$AG$6,'Utility Functions'!$AH$3:$AH$6)","v":1},{"$f":"valuePL(S24,'Utility Functions'!$AI$3:$AI$6,'Utility Functions'!$AJ$3:$AJ$6)","v":1},{"$f":"valuePL(T24,'Utility Functions'!$AK$3:$AK$8,'Utility Functions'!$AL$3:$AL$8)","v":1},{"$f":"valuePL(U24,'Utility Functions'!$AM$3:$AM$5,'Utility Functions'!$AN$3:$AN$5)","v":0},{"$f":"valuePL(V24,'Utility Functions'!$AO$3:$AO$5,'Utility Functions'!$AP$3:$AP$5)","v":1},{"$f":"valuePL(W24,'Utility Functions'!$AQ$3:$AQ$6,'Utility Functions'!$AR$3:$AR$6)","v":0.2},{"$f":"valuePL(X24,'Utility Functions'!$AS$3:$AS$6,'Utility Functions'!$AT$3:$AT$6)","v":0.75},{"$f":"valuePL(Y24,'Utility Functions'!$AU$3:$AU$6,'Utility Functions'!$AV$3:$AV$6)","v":0.2},{"$f":"valuePL(Z24,'Utility Functions'!$AW$3:$AW$5,'Utility Functions'!$AX$3:$AX$5)","v":0.5},{"$f":"valuePL(AA24,'Utility Functions'!$AY$3:$AY$6,'Utility Functions'!$AZ$3:$AZ$6)","v":0.2},{"$f":"valuePL(AB24,'Utility Functions'!$BA$3:$BA$5,'Utility Functions'!$BB$3:$BB$5)","v":0},{"$f":"valuePL(AC24,'Utility Functions'!$BC$3:$BC$5,'Utility Functions'!$BD$3:$BD$5)","v":0.25},9.5321507448123199,null,9.5321507448123199,2.6821507448123207,0,0,3.75,3.1]
[24,{"$f":"valueE(B25,'Utility Functions'!$B$3,'Utility Functions'!$B$4,'Utility Functions'!$B$5,'Utility Functions'!$B$6)","v":0.63212151658375171},{"$f":"valueE(C25,'Utility Functions'!$D$3,'Utility Functions'!$D$4,'Utility Functions'!$D$5,'Utility Functions'!$D$6)","v":0.46475967153745396},{"$f":"valuePL(D25,'Utility Functions'!$E$3:$E$5,'Utility Functions'!$F$3:$F$5)","v":1},{"$f":"valuePL(E25,'Utility Functions'!$G$3:$G$5,'Utility Functions'!$H$3:$H$5)","v":0},{"$f":"valuePL(F25,'Utility Functions'!$I$3:$I$4,'Utility Functions'!$J$3:$J$5)","v":0},{"$f":"valueE(G25,'Utility Functions'!$L$3,'Utility Functions'!$L$4,'Utility Functions'!$L$5,'Utility Functions'!$L$6)","v":0},{"$f":"valueE(H25,'Utility Functions'!$N$3,'Utility Functions'!$N$4,'Utility Functions'!$N$5,'Utility Functions'!$N$6)","v":0},{"$f":"valuePL(I25,'Utility Functions'!$O$3:$O$6,'Utility Functions'!$P$3:$P$6)","v":0},{"$f":"valuePL(J25,'Utility Functions'!$Q$3:$Q$6,'Utility Functions'!$R$3:$R$6)","v":0},{"$f":"valuePL(K25,'Utility Functions'!$S$3:$S$7,'Utility Functions'!$T$3:$T$7)","v":0},{"$f":"valueE(L25,'Utility Functions'!$V$3,'Utility Functions'!$V$4,'Utility Functions'!$V$5,'Utility Functions'!$V$6)","v":0},{"$f":"valuePL(M25,'Utility Functions'!$W$3:$W$6,'Utility Functions'!$X$3:$X$6)","v":0},{"$f":"valueE(N25,'Utility Functions'!$Z$3,'Utility Functions'!$Z$4,'Utility Functions'!$Z$5,'Utility Functions'!$Z$6)","v":0},{"$f":"valuePL(O25,'Utility Functions'!$AA$3:$AA$5,'Utility Functions'!$AB$3:$AB$5)","v":0},{"$f":"valuePL(P25,'Utility Functions'!$AC$3:$AC$7,'Utility Functions'!$AD$3:$AD$7)","v":0},{"$f":"valuePL(Q25,'Utility Functions'!$AE$3:$AE$6,'Utility Functions'!$AF$3:$AF$6)","v":0},{"$f":"valuePL(R25,'Utility Functions'!$AG$3:$AG$6,'Utility Functions'!$AH$3:$AH$6)","v":1},{"$f":"valuePL(S25,'Utility Functions'!$AI$3:$AI$6,'Utility Functions'!$AJ$3:$AJ$6)","v":1},{"$f":"valuePL(T25,'Utility Functions'!$AK$3:$AK$8,'Utility Functions'!$AL$3:$AL$8)","v":1},{"$f":"valuePL(U25,'Utility Functions'!$AM$3:$AM$5,'Utility Functions'!$AN$3:$AN$5)","v":0},{"$f":"valuePL(V25,'Utility Functions'!$AO$3:$AO$5,'Utility Functions'!$AP$3:$AP$5)","v":0},{"$f":"valuePL(W25,'Utility Functions'!$AQ$3:$AQ$6,'Utility Functions'!$AR$3:$AR$6)","v":1},{"$f":"valuePL(X25,'Utility Functions'!$AS$3:$AS$6,'Utility Functions'!$AT$3:$AT$6)","v":0.2},{"$f":"valuePL(Y25,'Utility Functions'!$AU$3:$AU$6,'Utility Functions'!$AV$3:$AV$6)","v":1},{"$f":"valuePL(Z25,'Utility Functions'!$AW$3:$AW$5,'Utility Functions'!$AX$3:$AX$5)","v":1},{"$f":"valuePL(AA25,'Utility Functions'!$AY$3:$AY$6,'Utility Functions'!$AZ$3:$AZ$6)","v":0.2},{"$f":"valuePL(AB25,'Utility Functions'!$BA$3:$BA$5,'Utility Functions'!$BB$3:$BB$5)","v":0},{"$f":"valuePL(AC25,'Utility Functions'!$BC$3:$BC$5,'Utility Functions'!$BD$3:$BD$5)","v":1},9.4968811881212041,null,9.4968811881212059,2.0968811881212055,0,0,3,4.4000000000000004]
[25,{"$f":"valueE(B26,'Utility Functions'!$B$3,'Utility Functions'!$B$4,'Utility Functions'!$B$5,'Utility Functions'!$B$6)","v":0.83470237647280454},{"$f":"valueE(C26,'Utility Functions'!$D$3,'Utility Functions'!$D$4,'Utility Functions'!$D$5,'Utility Functions'!$D$6)","v":0.84744836833951609},{"$f":"valuePL(D26,'Utility Functions'!$E$3:$E$5,'Utility Functions'!$F$3:$F$5)","v":1},{"$f":"valuePL(E26,'Utility Functions'!$G$3:$G$5,'Utility Functions'!$H$3:$H$5)","v":0},{"$f":"valuePL(F26,'Utility Functions'!$I$3:$I$4,'Utility Functions'!$J$3:$J$5)","v":0},{"$f":"valueE(G26,'Utility Functions'!$L$3,'Utility Functions'!$L$4,'Utility Functions'!$L$5,'Utility Functions'!$L$6)","v":0.94623655913978499},{"$f":"valueE(H26,'Utility Functions'!$N$3,'Utility Functions'!$N$4,'Utility Functions'!$N$5,'Utility Functions'!$N$6)","v":0.29222011385199242},{"$f":"valuePL(I26,'Utility Functions'!$O$3:$O$6,'Utility Functions'!$P$3:$P$6)","v":0},{"$f":"valuePL(J26,'Utility Functions'!$Q$3:$Q$6,'Utility Functions'!$R$3:$R$6)","v":0},{"$f":"valuePL(K26,'Utility Functions'!$S$3:$S$7,'Utility Functions'!$T$3:$T$7)","v":0},{"$f":"valueE(L26,'Utility Functions'!$V$3,'Utility Functions'!$V$4,'Utility Functions'!$V$5,'Utility Functions'!$V$6)","v":0},{"$f":"valuePL(M26,'Utility Functions'!$W$3:$W$6,'Utility Functions'!$X$3:$X$6)","v":0},{"$f":"valueE(N26,'Utility Functions'!$Z$3,'Utility Functions'!$Z$4,'Utility Functions'!$Z$5,'Utility Functions'!$Z$6)","v":1},{"$f":"valuePL(O26,'Utility Functions'!$AA$3:$AA$5,'Utility Functions'!$AB$3:$AB$5)","v":0.25},{"$f":"valuePL(P26,'Utility Functions'!$AC$3:$AC$7,'Utility Functions'!$AD$3:$AD$7)","v":0.5},{"$f":"valuePL(Q26,'Utility Functions'!$AE$3:$AE$6,'Utility Functions'!$AF$3:$AF$6)","v":0.5},{"$f":"valuePL(R26,'Utility Functions'!$AG$3:$AG$6,'Utility Functions'!$AH$3:$AH$6)","v":1},{"$f":"valuePL(S26,'Utility Functions'!$AI$3:$AI$6,'Utility Functions'!$AJ$3:$AJ$6)","v":1},{"$f":"valuePL(T26,'Utility Functions'!$AK$3:$AK$8,'Utility Functions'!$AL$3:$AL$8)","v":0},{"$f":"valuePL(U26,'Utility Functions'!$AM$3:$AM$5,'Utility Functions'!$AN$3:$AN$5)","v":0},{"$f":"valuePL(V26,'Utility Functions'!$AO$3:$AO$5,'Utility Functions'!$AP$3:$AP$5)","v":1},{"$f":"valuePL(W26,'Utility Functions'!$AQ$3:$AQ$6,'Utility Functions'!$AR$3:$AR$6)","v":0.2},{"$f":"valuePL(X26,'Utility Functions'!$AS$3:$AS$6,'Utility Functions'!$AT$3:$AT$6)","v":1},{"$f":"valuePL(Y26,'Utility Functions'!$AU$3:$AU$6,'Utility Functions'!$AV$3:$AV$6)","v":0.8},{"$f":"valuePL(Z26,'Utility Functions'!$AW$3:$AW$5,'Utility Functions'!$AX$3:$AX$5)","v":0.5},{"$f":"valuePL(AA26,'Utility Functions'!$AY$3:$AY$6,'Utility Functions'!$AZ$3:$AZ$6)","v":0.2},{"$f":"valuePL(AB26,'Utility Functions'!$BA$3:$BA$5,'Utility Functions'!$BB$3:$BB$5)","v":1},{"$f":"valuePL(AC26,'Utility Functions'!$BC$3:$BC$5,'Utility Functions'!$BD$3:$BD$5)","v":1},13.870607417804099,null,13.870607417804099,2.6821507448123207,1.2384566729917774,1.25,3,5.7]
[26,{"$f":"valueE(B27,'Utility Functions'!$B$3,'Utility Functions'!$B$4,'Utility Functions'!$B$5,'Utility Functions'!$B$6)","v":0.96662819462069161},{"$f":"valueE(C27,'Utility Functions'!$D$3,'Utility Functions'!$D$4,'Utility Functions'!$D$5,'Utility Functions'!$D$6)","v":0.84744836833951609},{"$f":"valuePL(D27,'Utility Functions'!$E$3:$E$5,'Utility Functions'!$F$3:$F$5)","v":1},{"$f":"valuePL(E27,'Utility Functions'!$G$3:$G$5,'Utility Functions'!$H$3:$H$5)","v":0.5},{"$f":"valuePL(F27,'Utility Functions'!$I$3:$I$4,'Utility Functions'!$J$3:$J$5)","v":0},{"$f":"valueE(G27,'Utility Functions'!$L$3,'Utility Functions'!$L$4,'Utility Functions'!$L$5,'Utility Functions'!$L$6)","v":0},{"$f":"valueE(H27,'Utility Functions'!$N$3,'Utility Functions'!$N$4,'Utility Functions'!$N$5,'Utility Functions'!$N$6)","v":0},{"$f":"valuePL(I27,'Utility Functions'!$O$3:$O$6,'Utility Functions'!$P$3:$P$6)","v":0},{"$f":"valuePL(J27,'Utility Functions'!$Q$3:$Q$6,'Utility Functions'!$R$3:$R$6)","v":0},{"$f":"valuePL(K27,'Utility Functions'!$S$3:$S$7,'Utility Functions'!$T$3:$T$7)","v":0},{"$f":"valueE(L27,'Utility Functions'!$V$3,'Utility Functions'!$V$4,'Utility Functions'!$V$5,'Utility Functions'!$V$6)","v":0},{"$f":"valuePL(M27,'Utility Functions'!$W$3:$W$6,'Utility Functions'!$X$3:$X$6)","v":0},{"$f":"valueE(N27,'Utility Functions'!$Z$3,'Utility Functions'!$Z$4,'Utility Functions'!$Z$5,'Utility Functions'!$Z$6)","v":0},{"$f":"valuePL(O27,'Utility Functions'!$AA$3:$AA$5,'Utility Functions'!$AB$3:$AB$5)","v":0},{"$f":"valuePL(P27,'Utility Functions'!$AC$3:$AC$7,'Utility Functions'!$AD$3:$AD$7)","v":0.75},{"$f":"valuePL(Q27,'Utility Functions'!$AE$3:$AE$6,'Utility Functions'!$AF$3:$AF$6)","v":0},{"$f":"valuePL(R27,'Utility Functions'!$AG$3:$AG$6,'Utility Functions'!$AH$3:$AH$6)","v":1},{"$f":"valuePL(S27,'Utility Functions'!$AI$3:$AI$6,'Utility Functions'!$AJ$3:$AJ$6)","v":1},{"$f":"valuePL(T27,'Utility Functions'!$AK$3:$AK$8,'Utility Functions'!$AL$3:$AL$8)","v":0.8},{"$f":"valuePL(U27,'Utility Functions'!$AM$3:$AM$5,'Utility Functions'!$AN$3:$AN$5)","v":0},{"$f":"valuePL(V27,'Utility Functions'!$AO$3:$AO$5,'Utility Functions'!$AP$3:$AP$5)","v":1},{"$f":"valuePL(W27,'Utility Functions'!$AQ$3:$AQ$6,'Utility Functions'!$AR$3:$AR$6)","v":0.2},{"$f":"valuePL(X27,'Utility Functions'!$AS$3:$AS$6,'Utility Functions'!$AT$3:$AT$6)","v":0},{"$f":"valuePL(Y27,'Utility Functions'!$AU$3:$AU$6,'Utility Functions'!$AV$3:$AV$6)","v":0.8},{"$f":"valuePL(Z27,'Utility Functions'!$AW$3:$AW$5,'Utility Functions'!$AX$3:$AX$5)","v":0},{"$f":"valuePL(AA27,'Utility Functions'!$AY$3:$AY$6,'Utility Functions'!$AZ$3:$AZ$6)","v":0.2},{"$f":"valuePL(AB27,'Utility Functions'!$BA$3:$BA$5,'Utility Functions'!$BB$3:$BB$5)","v":1},{"$f":"valuePL(AC27,'Utility Functions'!$BC$3:$BC$5,'Utility Functions'!$BD$3:$BD$5)","v":1},11.064076562960208,null,11.064076562960206,3.3140765629602078,0,0,3.55,4.2]
[27,{"$f":"valueE(B28,'Utility Functions'!$B$3,'Utility Functions'!$B$4,'Utility Functions'!$B$5,'Utility Functions'!$B$6)","v":0},{"$f":"valueE(C28,'Utility Functions'!$D$3,'Utility Functions'!$D$4,'Utility Functions'!$D$5,'Utility Functions'!$D$6)","v":0.46475967153745396},{"$f":"valuePL(D28,'Utility Functions'!$E$3:$E$5,'Utility Functions'!$F$3:$F$5)","v":1},{"$f":"valuePL(E28,'Utility Functions'!$G$3:$G$5,'Utility Functions'!$H$3:$H$5)","v":0},{"$f":"valuePL(F28,'Utility Functions'!$I$3:$I$4,'Utility Functions'!$J$3:$J$5)","v":0},{"$f":"valueE(G28,'Utility Functions'!$L$3,'Utility Functions'!$L$4,'Utility Functions'!$L$5,'Utility Functions'!$L$6)","v":0},{"$f":"valueE(H28,'Utility Functions'!$N$3,'Utility Functions'!$N$4,'Utility Functions'!$N$5,'Utility Functions'!$N$6)","v":0},{"$f":"valuePL(I28,'Utility Functions'!$O$3:$O$6,'Utility Functions'!$P$3:$P$6)","v":0},{"$f":"valuePL(J28,'Utility Functions'!$Q$3:$Q$6,'Utility Functions'!$R$3:$R$6)","v":0},{"$f":"valuePL(K28,'Utility Functions'!$S$3:$S$7,'Utility Functions'!$T$3:$T$7)","v":1},{"$f":"valueE(L28,'Utility Functions'!$V$3,'Utility Functions'!$V$4,'Utility Functions'!$V$5,'Utility Functions'!$V$6)","v":0},{"$f":"valuePL(M28,'Utility Functions'!$W$3:$W$6,'Utility Functions'!$X$3:$X$6)","v":0.1},{"$f":"valueE(N28,'Utility Functions'!$Z$3,'Utility Functions'!$Z$4,'Utility Functions'!$Z$5,'Utility Functions'!$Z$6)","v":0},{"$f":"valuePL(O28,'Utility Functions'!$AA$3:$AA$5,'Utility Functions'!$AB$3:$AB$5)","v":0},{"$f":"valuePL(P28,'Utility Functions'!$AC$3:$AC$7,'Utility Functions'!$AD$3:$AD$7)","v":0.5},{"$f":"valuePL(Q28,'Utility Functions'!$AE$3:$AE$6,'Utility Functions'!$AF$3:$AF$6)","v":0.5},{"$f":"valuePL(R28,'Utility Functions'!$AG$3:$AG$6,'Utility Functions'!$AH$3:$AH$6)","v":1},{"$f":"valuePL(S28,'Utility Functions'!$AI$3:$AI$6,'Utility Functions'!$AJ$3:$AJ$6)","v":1},{"$f":"valuePL(T28,'Utility Functions'!$AK$3:$AK$8,'Utility Functions'!$AL$3:$AL$8)","v":1},{"$f":"valuePL(U28,'Utility Functions'!$AM$3:$AM$5,'Utility Functions'!$AN$3:$AN$5)","v":0},{"$f":"valuePL(V28,'Utility Functions'!$AO$3:$AO$5,'Utility Functions'!$AP$3:$AP$5)","v":0.5},{"$f":"valuePL(W28,'Utility Functions'!$AQ$3:$AQ$6,'Utility Functions'!$AR$3:$AR$6)","v":0.75},{"$f":"valuePL(X28,'Utility Functions'!$AS$3:$AS$6,'Utility Functions'!$AT$3:$AT$6)","v":1},{"$f":"valuePL(Y28,'Utility Functions'!$AU$3:$AU$6,'Utility Functions'!$AV$3:$AV$6)","v":0.2},{"$f":"valuePL(Z28,'Utility Functions'!$AW$3:$AW$5,'Utility Functions'!$AX$3:$AX$5)","v":0},{"$f":"valuePL(AA28,'Utility Functions'!$AY$3:$AY$6,'Utility Functions'!$AZ$3:$AZ$6)","v":0},{"$f":"valuePL(AB28,'Utility Functions'!$BA$3:$BA$5,'Utility Functions'!$BB$3:$BB$5)","v":0},{"$f":"valuePL(AC28,'Utility Functions'!$BC$3:$BC$5,'Utility Functions'!$BD$3:$BD$5)","v":0},9.0147596715374529,null,9.0147596715374547,1.464759671537454,1.1000000000000001,0,4,2.4500000000000002]
[28,{"$f":"valueE(B29,'Utility Functions'!$B$3,'Utility Functions'!$B$4,'Utility Functions'!$B$5,'Utility Functions'!$B$6)","v":0.4511890475224023},{"$f":"valueE(C29,'Utility Functions'!$D$3,'Utility Functions'!$D$4,'Utility Functions'!$D$5,'Utility Functions'!$D$6)","v":0.46475967153745396},{"$f":"valuePL(D29,'Utility Functions'!$E$3:$E$5,'Utility Functions'!$F$3:$F$5)","v":1},{"$f":"valuePL(E29,'Utility Functions'!$G$3:$G$5,'Utility Functions'!$H$3:$H$5)","v":0},{"$f":"valuePL(F29,'Utility Functions'!$I$3:$I$4,'Utility Functions'!$J$3:$J$5)","v":1},{"$f":"valueE(G29,'Utility Functions'!$L$3,'Utility Functions'!$L$4,'Utility Functions'!$L$5,'Utility Functions'!$L$6)","v":0},{"$f":"valueE(H29,'Utility Functions'!$N$3,'Utility Functions'!$N$4,'Utility Functions'!$N$5,'Utility Functions'!$N$6)","v":0},{"$f":"valuePL(I29,'Utility Functions'!$O$3:$O$6,'Utility Functions'!$P$3:$P$6)","v":0},{"$f":"valuePL(J29,'Utility Functions'!$Q$3:$Q$6,'Utility Functions'!$R$3:$R$6)","v":0},{"$f":"valuePL(K29,'Utility Functions'!$S$3:$S$7,'Utility Functions'!$T$3:$T$7)","v":0},{"$f":"valueE(L29,'Utility Functions'!$V$3,'Utility Functions'!$V$4,'Utility Functions'!$V$5,'Utility Functions'!$V$6)","v":0.33333333333333331},{"$f":"valuePL(M29,'Utility Functions'!$W$3:$W$6,'Utility Functions'!$X$3:$X$6)","v":0.1},{"$f":"valueE(N29,'Utility Functions'!$Z$3,'Utility Functions'!$Z$4,'Utility Functions'!$Z$5,'Utility Functions'!$Z$6)","v":0},{"$f":"valuePL(O29,'Utility Functions'!$AA$3:$AA$5,'Utility Functions'!$AB$3:$AB$5)","v":0},{"$f":"valuePL(P29,'Utility Functions'!$AC$3:$AC$7,'Utility Functions'!$AD$3:$AD$7)","v":1},{"$f":"valuePL(Q29,'Utility Functions'!$AE$3:$AE$6,'Utility Functions'!$AF$3:$AF$6)","v":0},{"$f":"valuePL(R29,'Utility Functions'!$AG$3:$AG$6,'Utility Functions'!$AH$3:$AH$6)","v":1},{"$f":"valuePL(S29,'Utility Functions'!$AI$3:$AI$6,'Utility Functions'!$AJ$3:$AJ$6)","v":1},{"$f":"valuePL(T29,'Utility Functions'!$AK$3:$AK$8,'Utility Functions'!$AL$3:$AL$8)","v":0.8},{"$f":"valuePL(U29,'Utility Functions'!$AM$3:$AM$5,'Utility Functions'!$AN$3:$AN$5)","v":0},{"$f":"valuePL(V29,'Utility Functions'!$AO$3:$AO$5,'Utility Functions'!$AP$3:$AP$5)","v":1},{"$f":"valuePL(W29,'Utility Functions'!$AQ$3:$AQ$6,'Utility Functions'!$AR$3:$AR$6)","v":1},{"$f":"valuePL(X29,'Utility Functions'!$AS$3:$AS$6,'Utility Functions'!$AT$3:$AT$6)","v":1},{"$f":"valuePL(Y29,'Utility Functions'!$AU$3:$AU$6,'Utility Functions'!$AV$3:$AV$6)","v":0.2},{"$f":"valuePL(Z29,'Utility Functions'!$AW$3:$AW$5,'Utility Functions'!$AX$3:$AX$5)","v":0},{"$f":"valuePL(AA29,'Utility Functions'!$AY$3:$AY$6,'Utility Functions'!$AZ$3:$AZ$6)","v":0.89999999999999991},{"$f":"valuePL(AB29,'Utility Functions'!$BA$3:$BA$5,'Utility Functions'!$BB$3:$BB$5)","v":1},{"$f":"valuePL(AC29,'Utility Functions'!$BC$3:$BC$5,'Utility Functions'!$BD$3:$BD$5)","v":0.25},12.499282052393189,null,12.499282052393189,2.9159487190598563,0.43333333333333335,0,3.8,5.35]
[29,{"$f":"valueE(B30,'Utility Functions'!$B$3,'Utility Functions'!$B$4,'Utility Functions'!$B$5,'Utility Functions'!$B$6)","v":0.83470237647280454},{"$f":"valueE(C30,'Utility Functions'!$D$3,'Utility Functions'!$D$4,'Utility Functions'!$D$5,'Utility Functions'!$D$6)","v":0.71352759724260828},{"$f":"valuePL(D30,'Utility Functions'!$E$3:$E$5,'Utility Functions'!$F$3:$F$5)","v":1},{"$f":"valuePL(E30,'Utility Functions'!$G$3:$G$5,'Utility Functions'!$H$3:$H$5)","v":0.5},{"$f":"valuePL(F30,'Utility Functions'!$I$3:$I$4,'Utility Functions'!$J$3:$J$5)","v":0},{"$f":"valueE(G30,'Utility Functions'!$L$3,'Utility Functions'!$L$4,'Utility Functions'!$L$5,'Utility Functions'!$L$6)","v":0},{"$f":"valueE(H30,'Utility Functions'!$N$3,'Utility Functions'!$N$4,'Utility Functions'!$N$5,'Utility Functions'!$N$6)","v":0},{"$f":"valuePL(I30,'Utility Functions'!$O$3:$O$6,'Utility Functions'!$P$3:$P$6)","v":0.06},{"$f":"valuePL(J30,'Utility Functions'!$Q$3:$Q$6,'Utility Functions'!$R$3:$R$6)","v":0.67272727272727273},{"$f":"valuePL(K30,'Utility Functions'!$S$3:$S$7,'Utility Functions'!$T$3:$T$7)","v":0},{"$f":"valueE(L30,'Utility Functions'!$V$3,'Utility Functions'!$V$4,'Utility Functions'!$V$5,'Utility Functions'!$V$6)","v":1},{"$f":"valuePL(M30,'Utility Functions'!$W$3:$W$6,'Utility Functions'!$X$3:$X$6)","v":0.67272727272727273},{"$f":"valueE(N30,'Utility Functions'!$Z$3,'Utility Functions'!$Z$4,'Utility Functions'!$Z$5,'Utility Functions'!$Z$6)","v":0},{"$f":"valuePL(O30,'Utility Functions'!$AA$3:$AA$5,'Utility Functions'!$AB$3:$AB$5)","v":0},{"$f":"valuePL(P30,'Utility Functions'!$AC$3:$AC$7,'Utility Functions'!$AD$3:$AD$7)","v":0.25},{"$f":"valuePL(Q30,'Utility Functions'!$AE$3:$AE$6,'Utility Functions'!$AF$3:$AF$6)","v":0},{"$f":"valuePL(R30,'Utility Functions'!$AG$3:$AG$6,'Utility Functions'!$AH$3:$AH$6)","v":1},{"$f":"valuePL(S30,'Utility Functions'!$AI$3:$AI$6,'Utility Functions'!$AJ$3:$AJ$6)","v":1},{"$f":"valuePL(T30,'Utility Functions'!$AK$3:$AK$8,'Utility Functions'!$AL$3:$AL$8)","v":0.8},{"$f":"valuePL(U30,'Utility Functions'!$AM$3:$AM$5,'Utility Functions'!$AN$3:$AN$5)","v":0},{"$f":"valuePL(V30,'Utility Functions'!$AO$3:$AO$5,'Utility Functions'!$AP$3:$AP$5)","v":1},{"$f":"valuePL(W30,'Utility Functions'!$AQ$3:$AQ$6,'Utility Functions'!$AR$3:$AR$6)","v":0.2},{"$f":"valuePL(X30,'Utility Functions'!$AS$3:$AS$6,'Utility Functions'!$AT$3:$AT$6)","v":0},{"$f":"valuePL(Y30,'Utility Functions'!$AU$3:$AU$6,'Utility Functions'!$AV$3:$AV$6)","v":0.8},{"$f":"valuePL(Z30,'Utility Functions'!$AW$3:$AW$5,'Utility Functions'!$AX$3:$AX$5)","v":0.5},{"$f":"valuePL(AA30,'Utility Functions'!$AY$3:$AY$6,'Utility Functions'!$AZ$3:$AZ$6)","v":0.2},{"$f":"valuePL(AB30,'Utility Functions'!$BA$3:$BA$5,'Utility Functions'!$BB$3:$BB$5)","v":0.25},{"$f":"valuePL(AC30,'Utility Functions'!$BC$3:$BC$5,'Utility Functions'!$BD$3:$BD$5)","v":1},12.453684519169958,null,12.453684519169958,3.0482299737154128,2.4054545454545453,0,3.05,3.95]
[30,{"$f":"valueE(B31,'Utility Functions'!$B$3,'Utility Functions'!$B$4,'Utility Functions'!$B$5,'Utility Functions'!$B$6)","v":0.99864114504770318},{"$f":"valueE(C31,'Utility Functions'!$D$3,'Utility Functions'!$D$4,'Utility Functions'!$D$5,'Utility Functions'!$D$6)","v":0.84744836833951609},{"$f":"valuePL(D31,'Utility Functions'!$E$3:$E$5,'Utility Functions'!$F$3:$F$5)","v":1},{"$f":"valuePL(E31,'Utility Functions'!$G$3:$G$5,'Utility Functions'!$H$3:$H$5)","v":0},{"$f":"valuePL(F31,'Utility Functions'!$I$3:$I$4,'Utility Functions'!$J$3:$J$5)","v":0},{"$f":"valueE(G31,'Utility Functions'!$L$3,'Utility Functions'!$L$4,'Utility Functions'!$L$5,'Utility Functions'!$L$6)","v":0},{"$f":"valueE(H31,'Utility Functions'!$N$3,'Utility Functions'!$N$4,'Utility Functions'!$N$5,'Utility Functions'!$N$6)","v":0},{"$f":"valuePL(I31,'Utility Functions'!$O$3:$O$6,'Utility Functions'!$P$3:$P$6)","v":0},{"$f":"valuePL(J31,'Utility Functions'!$Q$3:$Q$6,'Utility Functions'!$R$3:$R$6)","v":0},{"$f":"valuePL(K31,'Utility Functions'!$S$3:$S$7,'Utility Functions'!$T$3:$T$7)","v":0},{"$f":"valueE(L31,'Utility Functions'!$V$3,'Utility Functions'!$V$4,'Utility Functions'!$V$5,'Utility Functions'!$V$6)","v":0.33333333333333331},{"$f":"valuePL(M31,'Utility Functions'!$W$3:$W$6,'Utility Functions'!$X$3:$X$6)","v":0.04},{"$f":"valueE(N31,'Utility Functions'!$Z$3,'Utility Functions'!$Z$4,'Utility Functions'!$Z$5,'Utility Functions'!$Z$6)","v":0},{"$f":"valuePL(O31,'Utility Functions'!$AA$3:$AA$5,'Utility Functions'!$AB$3:$AB$5)","v":0},{"$f":"valuePL(P31,'Utility Functions'!$AC$3:$AC$7,'Utility Functions'!$AD$3:$AD$7)","v":0},{"$f":"valuePL(Q31,'Utility Functions'!$AE$3:$AE$6,'Utility Functions'!$AF$3:$AF$6)","v":0},{"$f":"valuePL(R31,'Utility Functions'!$AG$3:$AG$6,'Utility Functions'!$AH$3:$AH$6)","v":0.2},{"$f":"valuePL(S31,'Utility Functions'!$AI$3:$AI$6,'Utility Functions'!$AJ$3:$AJ$6)","v":0.33},{"$f":"valuePL(T31,'Utility Functions'!$AK$3:$AK$8,'Utility Functions'!$AL$3:$AL$8)","v":0},{"$f":"valuePL(U31,'Utility Functions'!$AM$3:$AM$5,'Utility Functions'!$AN$3:$AN$5)","v":0},{"$f":"valuePL(V31,'Utility Functions'!$AO$3:$AO$5,'Utility Functions'!$AP$3:$AP$5)","v":0},{"$f":"valuePL(W31,'Utility Functions'!$AQ$3:$AQ$6,'Utility Functions'!$AR$3:$AR$6)","v":1},{"$f":"valuePL(X31,'Utility Functions'!$AS$3:$AS$6,'Utility Functions'!$AT$3:$AT$6)","v":0.2},{"$f":"valuePL(Y31,'Utility Functions'!$AU$3:$AU$6,'Utility Functions'!$AV$3:$AV$6)","v":0.8},{"$f":"valuePL(Z31,'Utility Functions'!$AW$3:$AW$5,'Utility Functions'!$AX$3:$AX$5)","v":0},{"$f":"valuePL(AA31,'Utility Functions'!$AY$3:$AY$6,'Utility Functions'!$AZ$3:$AZ$6)","v":0.89999999999999991},{"$f":"valuePL(AB31,'Utility Functions'!$BA$3:$BA$5,'Utility Functions'!$BB$3:$BB$5)","v":1},{"$f":"valuePL(AC31,'Utility Functions'!$BC$3:$BC$5,'Utility Functions'!$BD$3:$BD$5)","v":0},7.6494228467205527,null,7.6494228467205527,2.846089513387219,0.37333333333333329,0,0.53,3.9]
[31,{"$f":"valueE(B32,'Utility Functions'!$B$3,'Utility Functions'!$B$4,'Utility Functions'!$B$5,'Utility Functions'!$B$6)","v":0.55067187023002029},{"$f":"valueE(C32,'Utility Functions'!$D$3,'Utility Functions'!$D$4,'Utility Functions'!$D$5,'Utility Functions'!$D$6)","v":0.84744836833951609},{"$f":"valuePL(D32,'Utility Functions'!$E$3:$E$5,'Utility Functions'!$F$3:$F$5)","v":0.5},{"$f":"valuePL(E32,'Utility Functions'!$G$3:$G$5,'Utility Functions'!$H$3:$H$5)","v":0},{"$f":"valuePL(F32,'Utility Functions'!$I$3:$I$4,'Utility Functions'!$J$3:$J$5)","v":0},{"$f":"valueE(G32,'Utility Functions'!$L$3,'Utility Functions'!$L$4,'Utility Functions'!$L$5,'Utility Functions'!$L$6)","v":0},{"$f":"valueE(H32,'Utility Functions'!$N$3,'Utility Functions'!$N$4,'Utility Functions'!$N$5,'Utility Functions'!$N$6)","v":0},{"$f":"valuePL(I32,'Utility Functions'!$O$3:$O$6,'Utility Functions'!$P$3:$P$6)","v":0.75454545454545452},{"$f":"valuePL(J32,'Utility Functions'!$Q$3:$Q$6,'Utility Functions'!$R$3:$R$6)","v":0.08},{"$f":"valuePL(K32,'Utility Functions'!$S$3:$S$7,'Utility Functions'!$T$3:$T$7)","v":0},{"$f":"valueE(L32,'Utility Functions'!$V$3,'Utility Functions'!$V$4,'Utility Functions'!$V$5,'Utility Functions'!$V$6)","v":0.33333333333333331},{"$f":"valuePL(M32,'Utility Functions'!$W$3:$W$6,'Utility Functions'!$X$3:$X$6)","v":0.08},{"$f":"valueE(N32,'Utility Functions'!$Z$3,'Utility Functions'!$Z$4,'Utility Functions'!$Z$5,'Utility Functions'!$Z$6)","v":0},{"$f":"valuePL(O32,'Utility Functions'!$AA$3:$AA$5,'Utility Functions'!$AB$3:$AB$5)","v":0},{"$f":"valuePL(P32,'Utility Functions'!$AC$3:$AC$7,'Utility Functions'!$AD$3:$AD$7)","v":0.5},{"$f":"valuePL(Q32,'Utility Functions'!$AE$3:$AE$6,'Utility Functions'!$AF$3:$AF$6)","v":0},{"$f":"valuePL(R32,'Utility Functions'!$AG$3:$AG$6,'Utility Functions'!$AH$3:$AH$6)","v":1},{"$f":"valuePL(S32,'Utility Functions'!$AI$3:$AI$6,'Utility Functions'!$AJ$3:$AJ$6)","v":0.66},{"$f":"valuePL(T32,'Utility Functions'!$AK$3:$AK$8,'Utility Functions'!$AL$3:$AL$8)","v":0.6},{"$f":"valuePL(U32,'Utility Functions'!$AM$3:$AM$5,'Utility Functions'!$AN$3:$AN$5)","v":0},{"$f":"valuePL(V32,'Utility Functions'!$AO$3:$AO$5,'Utility Functions'!$AP$3:$AP$5)","v":0.5},{"$f":"valuePL(W32,'Utility Functions'!$AQ$3:$AQ$6,'Utility Functions'!$AR$3:$AR$6)","v":0},{"$f":"valuePL(X32,'Utility Functions'!$AS$3:$AS$6,'Utility Functions'!$AT$3:$AT$6)","v":0.2},{"$f":"valuePL(Y32,'Utility Functions'!$AU$3:$AU$6,'Utility Functions'!$AV$3:$AV$6)","v":0.2},{"$f":"valuePL(Z32,'Utility Functions'!$AW$3:$AW$5,'Utility Functions'!$AX$3:$AX$5)","v":1},{"$f":"valuePL(AA32,'Utility Functions'!$AY$3:$AY$6,'Utility Functions'!$AZ$3:$AZ$6)","v":0.89999999999999991},{"$f":"valuePL(AB32,'Utility Functions'!$BA$3:$BA$5,'Utility Functions'!$BB$3:$BB$5)","v":0.25},{"$f":"valuePL(AC32,'Utility Functions'!$BC$3:$BC$5,'Utility Functions'!$BD$3:$BD$5)","v":0.25},9.2059990264483247,null,9.2059990264483247,1.8981202385695364,1.2478787878787878,0,2.7600000000000002,3.3]
[32,{"$f":"valueE(B33,'Utility Functions'!$B$3,'Utility Functions'!$B$4,'Utility Functions'!$B$5,'Utility Functions'!$B$6)","v":0.63212151658375171},{"$f":"valueE(C33,'Utility Functions'!$D$3,'Utility Functions'!$D$4,'Utility Functions'!$D$5,'Utility Functions'!$D$6)","v":0.26839655623815994},{"$f":"valuePL(D33,'Utility Functions'!$E$3:$E$5,'Utility Functions'!$F$3:$F$5)","v":1},{"$f":"valuePL(E33,'Utility Functions'!$G$3:$G$5,'Utility Functions'!$H$3:$H$5)","v":1},{"$f":"valuePL(F33,'Utility Functions'!$I$3:$I$4,'Utility Functions'!$J$3:$J$5)","v":1},{"$f":"valueE(G33,'Utility Functions'!$L$3,'Utility Functions'!$L$4,'Utility Functions'!$L$5,'Utility Functions'!$L$6)","v":3.2258064516129031E-2},{"$f":"valueE(H33,'Utility Functions'!$N$3,'Utility Functions'!$N$4,'Utility Functions'!$N$5,'Utility Functions'!$N$6)","v":9.6774193548387094E-2},{"$f":"valuePL(I33,'Utility Functions'!$O$3:$O$6,'Utility Functions'!$P$3:$P$6)","v":0.34545454545454546},{"$f":"valuePL(J33,'Utility Functions'!$Q$3:$Q$6,'Utility Functions'!$R$3:$R$6)","v":1},{"$f":"valuePL(K33,'Utility Functions'!$S$3:$S$7,'Utility Functions'!$T$3:$T$7)","v":0.34545454545454546},{"$f":"valueE(L33,'Utility Functions'!$V$3,'Utility Functions'!$V$4,'Utility Functions'!$V$5,'Utility Functions'!$V$6)","v":1},{"$f":"valuePL(M33,'Utility Functions'!$W$3:$W$6,'Utility Functions'!$X$3:$X$6)","v":1},{"$f":"valueE(N33,'Utility Functions'!$Z$3,'Utility Functions'!$Z$4,'Utility Functions'!$Z$5,'Utility Functions'!$Z$6)","v":0},{"$f":"valuePL(O33,'Utility Functions'!$AA$3:$AA$5,'Utility Functions'!$AB$3:$AB$5)","v":0},{"$f":"valuePL(P33,'Utility Functions'!$AC$3:$AC$7,'Utility Functions'!$AD$3:$AD$7)","v":0.5},{"$f":"valuePL(Q33,'Utility Functions'!$AE$3:$AE$6,'Utility Functions'!$AF$3:$AF$6)","v":1},{"$f":"valuePL(R33,'Utility Functions'!$AG$3:$AG$6,'Utility Functions'!$AH$3:$AH$6)","v":1},{"$f":"valuePL(S33,'Utility Functions'!$AI$3:$AI$6,'Utility Functions'!$AJ$3:$AJ$6)","v":0},{"$f":"valuePL(T33,'Utility Functions'!$AK$3:$AK$8,'Utility Functions'!$AL$3:$AL$8)","v":0.8},{"$f":"valuePL(U33,'Utility Functions'!$AM$3:$AM$5,'Utility Functions'!$AN$3:$AN$5)","v":0},{"$f":"valuePL(V33,'Utility Functions'!$AO$3:$AO$5,'Utility Functions'!$AP$3:$AP$5)","v":0},{"$f":"valuePL(W33,'Utility Functions'!$AQ$3:$AQ$6,'Utility Functions'!$AR$3:$AR$6)","v":0.75},{"$f":"valuePL(X33,'Utility Functions'!$AS$3:$AS$6,'Utility Functions'!$AT$3:$AT$6)","v":0.2},{"$f":"valuePL(Y33,'Utility Functions'!$AU$3:$AU$6,'Utility Functions'!$AV$3:$AV$6)","v":0.8},{"$f":"valuePL(Z33,'Utility Functions'!$AW$3:$AW$5,'Utility Functions'!$AX$3:$AX$5)","v":0.5},{"$f":"valuePL(AA33,'Utility Functions'!$AY$3:$AY$6,'Utility Functions'!$AZ$3:$AZ$6)","v":0},{"$f":"valuePL(AB33,'Utility Functions'!$BA$3:$BA$5,'Utility Functions'!$BB$3:$BB$5)","v":1},{"$f":"valuePL(AC33,'Utility Functions'!$BC$3:$BC$5,'Utility Functions'!$BD$3:$BD$5)","v":0.25},14.52045942179552,null,14.520459421795518,3.9005180728219115,3.8199413489736074,0,3.3,3.5]
[33,{"$f":"valueE(B34,'Utility Functions'!$B$3,'Utility Functions'!$B$4,'Utility Functions'!$B$5,'Utility Functions'!$B$6)","v":0.93919136038504192},{"$f":"valueE(C34,'Utility Functions'!$D$3,'Utility Functions'!$D$4,'Utility Functions'!$D$5,'Utility Functions'!$D$6)","v":0.84744836833951609},{"$f":"valuePL(D34,'Utility Functions'!$E$3:$E$5,'Utility Functions'!$F$3:$F$5)","v":1},{"$f":"valuePL(E34,'Utility Functions'!$G$3:$G$5,'Utility Functions'!$H$3:$H$5)","v":0.5},{"$f":"valuePL(F34,'Utility Functions'!$I$3:$I$4,'Utility Functions'!$J$3:$J$5)","v":0},{"$f":"valueE(G34,'Utility Functions'!$L$3,'Utility Functions'!$L$4,'Utility Functions'!$L$5,'Utility Functions'!$L$6)","v":0},{"$f":"valueE(H34,'Utility Functions'!$N$3,'Utility Functions'!$N$4,'Utility Functions'!$N$5,'Utility Functions'!$N$6)","v":0},{"$f":"valuePL(I34,'Utility Functions'!$O$3:$O$6,'Utility Functions'!$P$3:$P$6)","v":0},{"$f":"valuePL(J34,'Utility Functions'!$Q$3:$Q$6,'Utility Functions'!$R$3:$R$6)","v":0},{"$f":"valuePL(K34,'Utility Functions'!$S$3:$S$7,'Utility Functions'!$T$3:$T$7)","v":0},{"$f":"valueE(L34,'Utility Functions'!$V$3,'Utility Functions'!$V$4,'Utility Functions'!$V$5,'Utility Functions'!$V$6)","v":0.5},{"$f":"valuePL(M34,'Utility Functions'!$W$3:$W$6,'Utility Functions'!$X$3:$X$6)","v":0},{"$f":"valueE(N34,'Utility Functions'!$Z$3,'Utility Functions'!$Z$4,'Utility Functions'!$Z$5,'Utility Functions'!$Z$6)","v":0},{"$f":"valuePL(O34,'Utility Functions'!$AA$3:$AA$5,'Utility Functions'!$AB$3:$AB$5)","v":0},{"$f":"valuePL(P34,'Utility Functions'!$AC$3:$AC$7,'Utility Functions'!$AD$3:$AD$7)","v":0.5},{"$f":"valuePL(Q34,'Utility Functions'!$AE$3:$AE$6,'Utility Functions'!$AF$3:$AF$6)","v":0},{"$f":"valuePL(R34,'Utility Functions'!$AG$3:$AG$6,'Utility Functions'!$AH$3:$AH$6)","v":1},{"$f":"valuePL(S34,'Utility Functions'!$AI$3:$AI$6,'Utility Functions'!$AJ$3:$AJ$6)","v":0.66},{"$f":"valuePL(T34,'Utility Functions'!$AK$3:$AK$8,'Utility Functions'!$AL$3:$AL$8)","v":0},{"$f":"valuePL(U34,'Utility Functions'!$AM$3:$AM$5,'Utility Functions'!$AN$3:$AN$5)","v":0},{"$f":"valuePL(V34,'Utility Functions'!$AO$3:$AO$5,'Utility Functions'!$AP$3:$AP$5)","v":0.5},{"$f":"valuePL(W34,'Utility Functions'!$AQ$3:$AQ$6,'Utility Functions'!$AR$3:$AR$6)","v":1},{"$f":"valuePL(X34,'Utility Functions'!$AS$3:$AS$6,'Utility Functions'!$AT$3:$AT$6)","v":0},{"$f":"valuePL(Y34,'Utility Functions'!$AU$3:$AU$6,'Utility Functions'!$AV$3:$AV$6)","v":0.8},{"$f":"valuePL(Z34,'Utility Functions'!$AW$3:$AW$5,'Utility Functions'!$AX$3:$AX$5)","v":1},{"$f":"valuePL(AA34,'Utility Functions'!$AY$3:$AY$6,'Utility Functions'!$AZ$3:$AZ$6)","v":1},{"$f":"valuePL(AB34,'Utility Functions'!$BA$3:$BA$5,'Utility Functions'!$BB$3:$BB$5)","v":0},{"$f":"valuePL(AC34,'Utility Functions'!$BC$3:$BC$5,'Utility Functions'!$BD$3:$BD$5)","v":0},10.246639728724558,null,10.246639728724558,3.2866397287245581,0.5,0,2.16,4.3]
[34,{"$f":"valueE(B35,'Utility Functions'!$B$3,'Utility Functions'!$B$4,'Utility Functions'!$B$5,'Utility Functions'!$B$6)","v":0},{"$f":"valueE(C35,'Utility Functions'!$D$3,'Utility Functions'!$D$4,'Utility Functions'!$D$5,'Utility Functions'!$D$6)","v":0},{"$f":"valuePL(D35,'Utility Functions'!$E$3:$E$5,'Utility Functions'!$F$3:$F$5)","v":0},{"$f":"valuePL(E35,'Utility Functions'!$G$3:$G$5,'Utility Functions'!$H$3:$H$5)","v":0},{"$f":"valuePL(F35,'Utility Functions'!$I$3:$I$4,'Utility Functions'!$J$3:$J$5)","v":0},{"$f":"valueE(G35,'Utility Functions'!$L$3,'Utility Functions'!$L$4,'Utility Functions'!$L$5,'Utility Functions'!$L$6)","v":0},{"$f":"valueE(H35,'Utility Functions'!$N$3,'Utility Functions'!$N$4,'Utility Functions'!$N$5,'Utility Functions'!$N$6)","v":1.1385199240986717E-2},{"$f":"valuePL(I35,'Utility Functions'!$O$3:$O$6,'Utility Functions'!$P$3:$P$6)","v":1},{"$f":"valuePL(J35,'Utility Functions'!$Q$3:$Q$6,'Utility Functions'!$R$3:$R$6)","v":0.91818181818181821},{"$f":"valuePL(K35,'Utility Functions'!$S$3:$S$7,'Utility Functions'!$T$3:$T$7)","v":1},{"$f":"valueE(L35,'Utility Functions'!$V$3,'Utility Functions'!$V$4,'Utility Functions'!$V$5,'Utility Functions'!$V$6)","v":1},{"$f":"valuePL(M35,'Utility Functions'!$W$3:$W$6,'Utility Functions'!$X$3:$X$6)","v":0.91818181818181821},{"$f":"valueE(N35,'Utility Functions'!$Z$3,'Utility Functions'!$Z$4,'Utility Functions'!$Z$5,'Utility Functions'!$Z$6)","v":0},{"$f":"valuePL(O35,'Utility Functions'!$AA$3:$AA$5,'Utility Functions'!$AB$3:$AB$5)","v":0},{"$f":"valuePL(P35,'Utility Functions'!$AC$3:$AC$7,'Utility Functions'!$AD$3:$AD$7)","v":0.5},{"$f":"valuePL(Q35,'Utility Functions'!$AE$3:$AE$6,'Utility Functions'!$AF$3:$AF$6)","v":0},{"$f":"valuePL(R35,'Utility Functions'!$AG$3:$AG$6,'Utility Functions'!$AH$3:$AH$6)","v":1},{"$f":"valuePL(S35,'Utility Functions'!$AI$3:$AI$6,'Utility Functions'!$AJ$3:$AJ$6)","v":1},{"$f":"valuePL(T35,'Utility Functions'!$AK$3:$AK$8,'Utility Functions'!$AL$3:$AL$8)","v":0.8},{"$f":"valuePL(U35,'Utility Functions'!$AM$3:$AM$5,'Utility Functions'!$AN$3:$AN$5)","v":0},{"$f":"valuePL(V35,'Utility Functions'!$AO$3:$AO$5,'Utility Functions'!$AP$3:$AP$5)","v":1},{"$f":"valuePL(W35,'Utility Functions'!$AQ$3:$AQ$6,'Utility Functions'!$AR$3:$AR$6)","v":1},{"$f":"valuePL(X35,'Utility Functions'!$AS$3:$AS$6,'Utility Functions'!$AT$3:$AT$6)","v":1},{"$f":"valuePL(Y35,'Utility Functions'!$AU$3:$AU$6,'Utility Functions'!$AV$3:$AV$6)","v":0},{"$f":"valuePL(Z35,'Utility Functions'!$AW$3:$AW$5,'Utility Functions'!$AX$3:$AX$5)","v":1},{"$f":"valuePL(AA35,'Utility Functions'!$AY$3:$AY$6,'Utility Functions'!$AZ$3:$AZ$6)","v":0.89999999999999991},{"$f":"valuePL(AB35,'Utility Functions'!$BA$3:$BA$5,'Utility Functions'!$BB$3:$BB$5)","v":0.25},{"$f":"valuePL(AC35,'Utility Functions'!$BC$3:$BC$5,'Utility Functions'!$BD$3:$BD$5)","v":0},13.297748835604624,null,13.297748835604624,0,4.847748835604623,0,3.3,5.15]
[35,{"$f":"valueE(B36,'Utility Functions'!$B$3,'Utility Functions'!$B$4,'Utility Functions'!$B$5,'Utility Functions'!$B$6)","v":0.79810469124896843},{"$f":"valueE(C36,'Utility Functions'!$D$3,'Utility Functions'!$D$4,'Utility Functions'!$D$5,'Utility Functions'!$D$6)","v":0.60939983135101949},{"$f":"valuePL(D36,'Utility Functions'!$E$3:$E$5,'Utility Functions'!$F$3:$F$5)","v":0.5},{"$f":"valuePL(E36,'Utility Functions'!$G$3:$G$5,'Utility Functions'!$H$3:$H$5)","v":0.5},{"$f":"valuePL(F36,'Utility Functions'!$I$3:$I$4,'Utility Functions'!$J$3:$J$5)","v":1},{"$f":"valueE(G36,'Utility Functions'!$L$3,'Utility Functions'!$L$4,'Utility Functions'!$L$5,'Utility Functions'!$L$6)","v":0},{"$f":"valueE(H36,'Utility Functions'!$N$3,'Utility Functions'!$N$4,'Utility Functions'!$N$5,'Utility Functions'!$N$6)","v":0},{"$f":"valuePL(I36,'Utility Functions'!$O$3:$O$6,'Utility Functions'!$P$3:$P$6)","v":0},{"$f":"valuePL(J36,'Utility Functions'!$Q$3:$Q$6,'Utility Functions'!$R$3:$R$6)","v":0},{"$f":"valuePL(K36,'Utility Functions'!$S$3:$S$7,'Utility Functions'!$T$3:$T$7)","v":1},{"$f":"valueE(L36,'Utility Functions'!$V$3,'Utility Functions'!$V$4,'Utility Functions'!$V$5,'Utility Functions'!$V$6)","v":0.66666666666666663},{"$f":"valuePL(M36,'Utility Functions'!$W$3:$W$6,'Utility Functions'!$X$3:$X$6)","v":0.1},{"$f":"valueE(N36,'Utility Functions'!$Z$3,'Utility Functions'!$Z$4,'Utility Functions'!$Z$5,'Utility Functions'!$Z$6)","v":1},{"$f":"valuePL(O36,'Utility Functions'!$AA$3:$AA$5,'Utility Functions'!$AB$3:$AB$5)","v":0},{"$f":"valuePL(P36,'Utility Functions'!$AC$3:$AC$7,'Utility Functions'!$AD$3:$AD$7)","v":0},{"$f":"valuePL(Q36,'Utility Functions'!$AE$3:$AE$6,'Utility Functions'!$AF$3:$AF$6)","v":0},{"$f":"valuePL(R36,'Utility Functions'!$AG$3:$AG$6,'Utility Functions'!$AH$3:$AH$6)","v":1},{"$f":"valuePL(S36,'Utility Functions'!$AI$3:$AI$6,'Utility Functions'!$AJ$3:$AJ$6)","v":1},{"$f":"valuePL(T36,'Utility Functions'!$AK$3:$AK$8,'Utility Functions'!$AL$3:$AL$8)","v":0.6},{"$f":"valuePL(U36,'Utility Functions'!$AM$3:$AM$5,'Utility Functions'!$AN$3:$AN$5)","v":0},{"$f":"valuePL(V36,'Utility Functions'!$AO$3:$AO$5,'Utility Functions'!$AP$3:$AP$5)","v":1},{"$f":"valuePL(W36,'Utility Functions'!$AQ$3:$AQ$6,'Utility Functions'!$AR$3:$AR$6)","v":0.75},{"$f":"valuePL(X36,'Utility Functions'!$AS$3:$AS$6,'Utility Functions'!$AT$3:$AT$6)","v":0},{"$f":"valuePL(Y36,'Utility Functions'!$AU$3:$AU$6,'Utility Functions'!$AV$3:$AV$6)","v":0.2},{"$f":"valuePL(Z36,'Utility Functions'!$AW$3:$AW$5,'Utility Functions'!$AX$3:$AX$5)","v":1},{"$f":"valuePL(AA36,'Utility Functions'!$AY$3:$AY$6,'Utility Functions'!$AZ$3:$AZ$6)","v":0},{"$f":"valuePL(AB36,'Utility Functions'!$BA$3:$BA$5,'Utility Functions'!$BB$3:$BB$5)","v":0.25},{"$f":"valuePL(AC36,'Utility Functions'!$BC$3:$BC$5,'Utility Functions'!$BD$3:$BD$5)","v":0.25},12.224171189266654,null,12.224171189266656,3.407504522599988,1.7666666666666666,1,2.6,3.45]
["Unweighted",{"$f":"SUMPRODUCT(B46:B80,$B$85:$B$119)","v":3.0847426500326565},{"$f":"SUMPRODUCT(C46:C80,$B$85:$B$119)","v":2.4146054342030006},{"$f":"SUMPRODUCT(D46:D80,$B$85:$B$119)","v":3.5},0.5,0,0.94623655913978499,0.29222011385199242,0.8545454545454545,0.79272727272727272,0,1.3333333333333333,0.75272727272727269,1.75,1.25,1.5,1.1000000000000001,4,4.32,2.4,0,2.5,1.1499999999999999,3.2,2.8000000000000003,2.5,1.5,2.5,3.5,null,null,"Unweighted",{"$f":"SUMPRODUCT(AG46:AG80,$B$85:$B$119)","v":9.4993480842356561},{"$f":"SUMPRODUCT(AH46:AH80,$B$85:$B$119)","v":4.9717900063251106},3,13.319999999999999,19.650000000000002]
["Weighted",{"$f":"B$81*Sens_Status!I5","v":9.7827655843063729E-2},{"$f":"C$81*Sens_Status!J5","v":7.2388559801767477E-2},{"$f":"D$81*Sens_Status!K5","v":0.10626430094940396},{"$f":"E$81*Sens_Status!L5","v":1.4789775187675798E-2},{"$f":"F$81*Sens_Status!M5","v":0},{"$f":"G$81*Sens_Status!N5","v":1.4047220662637307E-2},{"$f":"H$81*Sens_Status!O5","v":4.3381122634615207E-3},{"$f":"I$81*Sens_Status!P5","v":2.1534397484069462E-2},{"$f":"J$81*Sens_Status!Q5","v":1.9466187278283479E-2},{"$f":"K$81*Sens_Status!R5","v":0},{"$f":"L$81*Sens_Status!S5","v":2.9566544023279396E-2},{"$f":"M$81*Sens_Status!T5","v":1.260346964631825E-2},{"$f":"N$81*Sens_Status!U5","v":5.2499999999999998E-2},{"$f":"O$81*Sens_Status!V5","v":0.11249999999999999},{"$f":"P$81*Sens_Status!W5","v":5.9306159857367424E-2},{"$f":"Q$81*Sens_Status!X5","v":4.794090081298074E-2},{"$f":"R$81*Sens_Status!Y5","v":0.19954717228010094},{"$f":"S$81*Sens_Status!Z5","v":0.18875567344129177},{"$f":"T$81*Sens_Status!AA5","v":7.6327969881944735E-2},{"$f":"U$81*Sens_Status!AB5","v":0},{"$f":"V$81*Sens_Status!AC5","v":0.13614091950308155},{"$f":"W$81*Sens_Status!AD5","v":4.516322959126598E-2},{"$f":"X$81*Sens_Status!AE5","v":0.13439813265403372},{"$f":"Y$81*Sens_Status!AF5","v":0.14613632868133863},{"$f":"Z$81*Sens_Status!AG5","v":0.11305680504571744},{"$f":"AA$81*Sens_Status!AH5","v":5.2561069596909746E-2},{"$f":"AB$81*Sens_Status!AI5","v":9.2903304113056293E-2},{"$f":"AC$81*Sens_Status!AJ5","v":0.12129438825357805},null,null,"Weighted for SA",{"$f":"AG81*#REF!","v":{"$error":"#REF!"}},{"$f":"AH81*#REF!","v":{"$error":"#REF!"}},{"$f":"AI81*#REF!","v":{"$error":"#REF!"}},{"$f":"AJ81*#REF!","v":{"$error":"#REF!"}},{"$f":"AK81*#REF!","v":{"$error":"#REF!"}}]
[]
[null,"Decision variable","Benefit","Cost"]
[{"$f":"A2","v":1},0,{"$f":"AD46","v":17.117643866192076},{"$f":"AD2","v":700000}]
[2,0,{"$f":"AD47","v":12.641625800575998},{"$f":"AD3","v":5400000}]
[3,0,11.563541444302563,250000]
[4,0,9.2460291931089209,150000]
[5,0,9.5663279251355373,220000]
[6,1,5.9008471271383875,110000]
[7,0,15.54287399641135,1000000]
[8,0,14.227364688589191,5000000]
[9,0,11.893773577166716,25000]
[10,1,9.01,900000]
[11,0,13.174032258064516,1500000]
[12,0,9.4195802436719873,100000]
[13,0,7.5245670174228056,250000]
[14,0,10.338706637075108,500000]
[15,0,15.150477261414375,800000]
[16,0,15.119696969696969,2000000]
[17,0,10.876550515651747,500000]
[18,0,10.178462998102468,300000]
[19,0,9.3165012474871283,750000]
[20,0,15.091255033092194,1500000]
[21,0,9.5500000000000007,900000]
[22,0,9.471742567994939,750000]
[23,0,9.5321507448123199,1000000]
[24,0,9.4968811881212041,150000]
[25,1,13.870607417804099,250000]
[26,0,11.064076562960208,500000]
[27,0,9.0147596715374529,1200000]
[28,0,12.499282052393189,500000]
[29,1,12.453684519169958,2000000]
[30,0,7.6494228467205527,250000]
[31,1,9.2059990264483247,650000]
[32,0,14.52045942179552,200000]
[33,0,10.246639728724558,400000]
[34,0,13.297748835604624,900000]
[35,0,12.224171189266654,900000]
[null,{"$f":"SUM(B85:B119)","v":5},{"$f":"SUMPRODUCT(C85:C119,B85:B119)","v":50.44113809056077},{"$f":"SUMPRODUCT(B85:B119,D85:D119)","v":3910000}]
[]
[null,null,"Cost constraint",15000000]

{"sheet":"Weights worksheet","index":48,"n_rows":29,"n_cols":7,"rows_kept":29,"cut":false,"hidden":false,"merged":[]}
[1,"manage_species",0.03,"Management",1,"bcc","B"]
[2,"manage_spatial",0.03,null,2,"Spatial Scope","C"]
[3,"manage_uncertainty",0.03,null,3,"Uncertainty Reduction","D"]
[4,"manage_currentpractices",0.03,null,4,"Current Practices","E"]
[5,"manage_adaptivemanagement",0.04,null,5,"Adaptive Management","F"]
["6a","pop_a",1.4999999999999999E-2,"Status and Trends","6a","Conservation Need","G"]
["6b","pop_b",1.4999999999999999E-2,null,"6b",null,"H"]
[7,"pop_spatialscope",0.03,null,7,"Population Spatial Scope","I"]
[8,"pop_temporalscope",0.02,null,8,"Population Temporal Scope","J"]
[9,"hab_quantity",0.02,null,9,"Habitat Spatial Scope","K"]
[10,"hab_quality",0.02,null,10,"Habitat Quality","L"]
[11,"hab_temporal",0.02,null,11,"Habitat Temporal Scope","M"]
[12,"ecoprocess_spp",0.03,"Ecologial Proc",12,"Conservation Need","N"]
[13,"ecoprocess_uncertainty",0.09,null,13,"Uncertainty Reduction","O"]
[14,"datasharing",0.04,"Integration",14,"Data Sharing","P"]
[15,"broaderimpacts",0.04,null,15,"Broader Impacts","Q"]
[16,"exisitingpriorities",0.05,null,16,"Existing Priorities","R"]
[17,"partners",0.05,null,17,"Partners","S"]
[18,"leverage",0.03,null,18,"Leverage","T"]
[19,"alignment",0.03,null,19,"Alignment","U"]
[20,"objhyp",0.05,"Scientific Rigor",20,"Objectives/Hypotheses","V"]
[21,"response",0.04,null,21,"Response Variable","W"]
[22,"targettaxa",0.04,null,22,"Target Taxa","X"]
[23,"surveydesign",0.05,null,23,"Survey Design","Y"]
[24,"stats",0.05,null,24,"Statistical Rigor","Z"]
[25,"datamanagement",0.04,null,25,"Data Management","AA"]
[26,"budget",0.04,null,26,"Budget","AB"]
[27,"timeline",0.03,null,27,"Timeline","AC"]
[null,null,{"$f":"SUM(C1:C28)","v":1.0000000000000004},null,null,"Total"]